{"text_format":"3","workbook":"xlsx","n_sheets":18,"sheets":["Documentation","Assumptions","Real Estate","Main","Print Main","Fixed Rate Proj","Goal Seek","Random Yr Returns","Random Years","Hist Returns","RE Appr","Inflation","Equities","T Bills","T Bonds","Correlation","1000-20Yr","Distribution Charts"],"not_rendered":{"charts":8,"images":5,"macros":1,"defined_names":1,"comments":5},"read":"whole","date_system":"1900"}

{"sheet":"Documentation","index":0,"n_rows":19,"n_cols":3,"rows_kept":19}
["Documentation"]
["Introduction"]
[null,"This worksheet shows results based on your input data for 100 tests or simulations with the returns and inflation for each year based on the historical returns of a randomly selected year between 1928 and 2010.  "]
[null,"Pressing Ctrl r will show another 100 simulations. "]
[null,"Read the worksheet of Assumptions.  All formulas are visible and not protected so that if you are familiar with Excel you can see how numbers are derived and create your own adaptations. "]
["Entering Data and Using the Worksheets"]
[null,"Most users will access three or four worksheets.  "]
[null,null,"First enter data on real estate you own in the Real Estate worksheet.  Enter zeros if you want to ignore your homestead in these projections."]
[null,null,"The Main worksheet is for the rest of your data entry and shows the implications."]
[null,null,"The Print Main worksheet is identical to the Main worksheet except being formatted for printing.  Any further identifying entry or comments are optional. "]
[null,null,"The Fixed Rate Proj worksheet gives results for fixed annual rates of return.  You need to complete the data on this worksheet for the fixed return line on the charts to be accurate.  See the Assumptions worksheet regarding fixed returns. "]
[null,null,"The Goal Seek worksheet is useful for finding out what fixed rate of return is necessary to reach a specific goal.  The compounding is monthly. "]
[null,null,"Most of the rest of the worksheet perform calculations or contain historical source data. "]
[null,"The grey cells with bold print are for data entry.  Depending on your circumstances, you may need to enter or overwrite formulas in other cells. "]
[null,"To update the charts and some other columns, a sort is necessary after each recalculation.  Pressing Control r sets recalculation to Manual and then does the sort so that the charts match the numbers.  When you exit the spreadsheet, turn recalculation back to Automatic by going to Tools, Options, Calculation. "]
[null,"To change the time span for the historical sources, go to worksheet Random Years, ^H and do a global replace to the desired time frame.  Better results are achieved by using 1943-2005, as 3 of the 5 years with < -15% returns were before 1938. "]
[null,"To get results and chart for say 1,000 tests of the same parameters, copy and past the results for the desired year(s) from multiple calculations in worksheet Random Yr Returns into another worksheet.  See example in worksheet 1000-20Yr."]
[null,"You may change the conditional color formatting by marking the desired column or section and then going to Format, Conditional Formatting. "]
[null,"Further documentation is on each worksheet. "]

{"sheet":"Assumptions","index":1,"n_rows":21,"n_cols":2,"rows_kept":21}
[null,"Some Assumptions of the Model"]
[]
[null,"The formulas have been checked and rechecked.  They are assumed to be accurate, but there may be errors. "]
[null,"Many people attend to daily financial affairs, but have little idea as to whether and how they will achieve longer-term financial security.  The model is a tool to help in doing likely future projections. "]
[null,"Judging from historical experience, doing projections with fixed or average rates of return and inflation gives an unrealistic picture of likely variability.   To expect no or low volatility because that was a simiple way to do planning is shortsighted.  This is a tool to focus on probability instead of volatility. "]
[null,"It is better to understand market variability and plan to capitalize on it rather than to fight it with unrealistic and unproductive requirements of consistent returns. "]
[null,"It is better to focus on the possibilities of meeting future requirements than to focus on current volatility.  While volatility may be disconcerting, if the numbers are there to show that even with short-term volatility one is more likely to achieve future goals, the volatility should be accepted on the path to getting there. "]
[null,"Many people have unrealistic ideas about the longer-term impact of different allocations between fixed income and equities. "]
[null,"Inflation, interest rates and equity returns in future years will be generally similar to such rates in past years. "]
[null,"The returns and rates for one year do not have a statistical probability of impacting returns for the next year.  "]
[null,"Since returns and rates do not conform to a statistically normal bell-shaped curve, it is better to do these Monte Carlo simulations drawing randomly from historical returns than from a statistical metric of variation.  The random selection of historical returns is easier for most people to understand than measures of standard deviation, thus giving it better face validity.  "]
[null,"Within any given year, the relationship between inflation, interest rates and equity returns will be similar in the future as has historically been the case. "]
[null,"The major features of the financial environment will continue, such as Social Security benefits, tax rates, relative cost of living, and lack of major changes such as needing long-term care. "]
[null,"The user of this model will enter fairly accurate current data and estimates of their future such as for income and living expenses. "]
[null,"Investments such as in small cap stocks or emerging markets will also approximate the historical returns of the S&P 500.  This is not a precise tool.  Equity returns are based on the S&P 500, including dividends.   "]
[null,"Social Security COLA (Cost of Living Adjustment) will correspond to inflation rates.  (You may want to set the COLA to say 75% of inflation.)"]
[null,"It is better to have a general model where all the assumptions can be known and adaptations can be made to fit specific circumstances than to have a model attempting to be too precise, that is built on unknown assumptions and is unable to incorporate unique financial situations. "]
[null,"The purpose of financial projections is to guide right actions now more than to guarantee financial circumstances far into the future.   Unrealistic endeavors towards security, such as with fixed income investments, can still be upended by changes in world events and rates, and reflect poor stewardship in foregoing available and prudent financial management.  If low-variability investments can assure a realistic lifestyle in the future, that may be prudent.  To apply the same strategy to investments far in excess of what might be needed for a personal lifestyle may not be prudent.  "]
[null,"Most people in the world have either too little money to meet basic needs, or far more money than necessary for basic needs today or far into the future.  There are many reasons for this.  If you experiment with some numbers in the Main worksheet, you will discover one reason.  It is very easy to have 100 scenarios with the same input numbers show a 50% likelihood of being broke in twenty years, and a 20% likelihood of having ten million. "]
[null,"This is not a tool that many people unfamiliar with Excel could take and work with on their own.  Call or e-mail if you have questions or want to sit down for help in entering or adapting the worksheets to your data. "]
[null,"Lee Wenzel, Wenzel Analytics.  Lee@WenzelAnalytics.com.  (952) 944-2699."]

{"sheet":"Real Estate","index":2,"n_rows":41,"n_cols":105,"rows_kept":41}
[null,null,"House Value",{"v":400000,"d":"400,000"},null,"Values applying randomly selected historical appreciation rates, + or - C2 if not 0."]
[null,null,"+or- on Hist Ret",{"v":0,"d":"0.0%"},null,1,2,3,4,5,6,7,8,9,10,11,12,13,14,15,16,17,18,19,20,21,22,23,24,25,26,27,28,29,30,31,32,33,34,35,36,37,38,39,40,41,42,43,44,45,46,47,48,49,50,51,52,53,54,55,56,57,58,59,60,61,62,63,64,65,66,67,68,69,70,71,72,73,74,75,76,77,78,79,80,81,82,83,84,85,86,87,88,89,90,91,92,93,94,95,96,97,98,99,100]
[null,null,"Interest Rate",{"v":0.02875,"d":"2.875%"}]
[null,null,"Annual P&I",{"$f":"1259.64*12","v":{"v":15115.68,"d":"15,116"}},"Mortgage"]
[{"$f":"Main!A7","v":"2022-12-31"},null,"Principal","Interest",{"v":102881.7,"d":"102,882"}]
[{"$f":"Main!A8","v":"2023-12-31"},1,{"$f":"D4-D6","v":{"v":12157.831125,"d":"12,158"}},{"$f":"D3*E5","v":{"v":2957.848875,"d":"2,958"}},{"$f":"E5-C6","v":{"v":90723.868875,"d":"90,724"}},{"$f":"($A6-$A5)/365.25*$D$1*(1+$D$2+(VLOOKUP('RE Appr'!L13,'RE Appr'!$E$13:$J$59,6,FALSE)/100))","v":{"v":419542.64202600956,"d":"419,543"}},{"$f":"($A6-$A5)/365.25*$D$1*(1+$D$2+(VLOOKUP('RE Appr'!M13,'RE Appr'!$E$13:$J$59,6,FALSE)/100))","v":{"v":429315.94798083504,"d":"429,316"}},{"$f":"($A6-$A5)/365.25*$D$1*(1+$D$2+(VLOOKUP('RE Appr'!N13,'RE Appr'!$E$13:$J$59,6,FALSE)/100))","v":{"v":418173.57973990415,"d":"418,174"}},{"$f":"($A6-$A5)/365.25*$D$1*(1+$D$2+(VLOOKUP('RE Appr'!O13,'RE Appr'!$E$13:$J$59,6,FALSE)/100))","v":{"v":375602.7378507871,"d":"375,603"}},{"$f":"($A6-$A5)/365.25*$D$1*(1+$D$2+(VLOOKUP('RE Appr'!P13,'RE Appr'!$E$13:$J$59,6,FALSE)/100))","v":{"v":415285.5578370979,"d":"415,286"}},{"$f":"($A6-$A5)/365.25*$D$1*(1+$D$2+(VLOOKUP('RE Appr'!Q13,'RE Appr'!$E$13:$J$59,6,FALSE)/100))","v":{"v":401385.0787132102,"d":"401,385"}},{"$f":"($A6-$A5)/365.25*$D$1*(1+$D$2+(VLOOKUP('RE Appr'!R13,'RE Appr'!$E$13:$J$59,6,FALSE)/100))","v":{"v":437040.65708418895,"d":"437,041"}},{"$f":"($A6-$A5)/365.25*$D$1*(1+$D$2+(VLOOKUP('RE Appr'!S13,'RE Appr'!$E$13:$J$59,6,FALSE)/100))","v":{"v":407091.1704312115,"d":"407,091"}},{"$f":"($A6-$A5)/365.25*$D$1*(1+$D$2+(VLOOKUP('RE Appr'!T13,'RE Appr'!$E$13:$J$59,6,FALSE)/100))","v":{"v":371325.66735112935,"d":"371,326"}},{"$f":"($A6-$A5)/365.25*$D$1*(1+$D$2+(VLOOKUP('RE Appr'!U13,'RE Appr'!$E$13:$J$59,6,FALSE)/100))","v":{"v":418173.57973990415,"d":"418,174"}},{"$f":"($A6-$A5)/365.25*$D$1*(1+$D$2+(VLOOKUP('RE Appr'!V13,'RE Appr'!$E$13:$J$59,6,FALSE)/100))","v":{"v":416694.59274469543,"d":"416,695"}},{"$f":"($A6-$A5)/365.25*$D$1*(1+$D$2+(VLOOKUP('RE Appr'!W13,'RE Appr'!$E$13:$J$59,6,FALSE)/100))","v":{"v":422510.60917180014,"d":"422,511"}},{"$f":"($A6-$A5)/365.25*$D$1*(1+$D$2+(VLOOKUP('RE Appr'!X13,'RE Appr'!$E$13:$J$59,6,FALSE)/100))","v":{"v":383827.10472279263,"d":"383,827"}},{"$f":"($A6-$A5)/365.25*$D$1*(1+$D$2+(VLOOKUP('RE Appr'!Y13,'RE Appr'!$E$13:$J$59,6,FALSE)/100))","v":{"v":436840.79397672834,"d":"436,841"}},{"$f":"($A6-$A5)/365.25*$D$1*(1+$D$2+(VLOOKUP('RE Appr'!Z13,'RE Appr'!$E$13:$J$59,6,FALSE)/100))","v":{"v":371325.66735112935,"d":"371,326"}},{"$f":"($A6-$A5)/365.25*$D$1*(1+$D$2+(VLOOKUP('RE Appr'!AA13,'RE Appr'!$E$13:$J$59,6,FALSE)/100))","v":{"v":399326.4887063655,"d":"399,326"}},{"$f":"($A6-$A5)/365.25*$D$1*(1+$D$2+(VLOOKUP('RE Appr'!AB13,'RE Appr'!$E$13:$J$59,6,FALSE)/100))","v":{"v":415285.5578370979,"d":"415,286"}},{"$f":"($A6-$A5)/365.25*$D$1*(1+$D$2+(VLOOKUP('RE Appr'!AC13,'RE Appr'!$E$13:$J$59,6,FALSE)/100))","v":{"v":375602.7378507871,"d":"375,603"}},{"$f":"($A6-$A5)/365.25*$D$1*(1+$D$2+(VLOOKUP('RE Appr'!AD13,'RE Appr'!$E$13:$J$59,6,FALSE)/100))","v":{"v":412977.13894592744,"d":"412,977"}},{"$f":"($A6-$A5)/365.25*$D$1*(1+$D$2+(VLOOKUP('RE Appr'!AE13,'RE Appr'!$E$13:$J$59,6,FALSE)/100))","v":{"v":416694.59274469543,"d":"416,695"}},{"$f":"($A6-$A5)/365.25*$D$1*(1+$D$2+(VLOOKUP('RE Appr'!AF13,'RE Appr'!$E$13:$J$59,6,FALSE)/100))","v":{"v":418833.85952220886,"d":"418,834"}},{"$f":"($A6-$A5)/365.25*$D$1*(1+$D$2+(VLOOKUP('RE Appr'!AG13,'RE Appr'!$E$13:$J$59,6,FALSE)/100))","v":{"v":455687.8850102669,"d":"455,688"}},{"$f":"($A6-$A5)/365.25*$D$1*(1+$D$2+(VLOOKUP('RE Appr'!AH13,'RE Appr'!$E$13:$J$59,6,FALSE)/100))","v":{"v":435771.5263518138,"d":"435,772"}},{"$f":"($A6-$A5)/365.25*$D$1*(1+$D$2+(VLOOKUP('RE Appr'!AI13,'RE Appr'!$E$13:$J$59,6,FALSE)/100))","v":{"v":429315.94798083504,"d":"429,316"}},{"$f":"($A6-$A5)/365.25*$D$1*(1+$D$2+(VLOOKUP('RE Appr'!AJ13,'RE Appr'!$E$13:$J$59,6,FALSE)/100))","v":{"v":435181.93018480495,"d":"435,182"}},{"$f":"($A6-$A5)/365.25*$D$1*(1+$D$2+(VLOOKUP('RE Appr'!AK13,'RE Appr'!$E$13:$J$59,6,FALSE)/100))","v":{"v":399326.4887063655,"d":"399,326"}},{"$f":"($A6-$A5)/365.25*$D$1*(1+$D$2+(VLOOKUP('RE Appr'!AL13,'RE Appr'!$E$13:$J$59,6,FALSE)/100))","v":{"v":429315.94798083504,"d":"429,316"}},{"$f":"($A6-$A5)/365.25*$D$1*(1+$D$2+(VLOOKUP('RE Appr'!AM13,'RE Appr'!$E$13:$J$59,6,FALSE)/100))","v":{"v":470497.7412731006,"d":"470,498"}},{"$f":"($A6-$A5)/365.25*$D$1*(1+$D$2+(VLOOKUP('RE Appr'!AN13,'RE Appr'!$E$13:$J$59,6,FALSE)/100))","v":{"v":412977.13894592744,"d":"412,977"}},{"$f":"($A6-$A5)/365.25*$D$1*(1+$D$2+(VLOOKUP('RE Appr'!AO13,'RE Appr'!$E$13:$J$59,6,FALSE)/100))","v":{"v":383827.10472279263,"d":"383,827"}},{"$f":"($A6-$A5)/365.25*$D$1*(1+$D$2+(VLOOKUP('RE Appr'!AP13,'RE Appr'!$E$13:$J$59,6,FALSE)/100))","v":{"v":417916.4969295789,"d":"417,916"}},{"$f":"($A6-$A5)/365.25*$D$1*(1+$D$2+(VLOOKUP('RE Appr'!AQ13,'RE Appr'!$E$13:$J$59,6,FALSE)/100))","v":{"v":375602.7378507871,"d":"375,603"}},{"$f":"($A6-$A5)/365.25*$D$1*(1+$D$2+(VLOOKUP('RE Appr'!AR13,'RE Appr'!$E$13:$J$59,6,FALSE)/100))","v":{"v":401385.0787132102,"d":"401,385"}},{"$f":"($A6-$A5)/365.25*$D$1*(1+$D$2+(VLOOKUP('RE Appr'!AS13,'RE Appr'!$E$13:$J$59,6,FALSE)/100))","v":{"v":412277.6180698152,"d":"412,278"}},{"$f":"($A6-$A5)/365.25*$D$1*(1+$D$2+(VLOOKUP('RE Appr'!AT13,'RE Appr'!$E$13:$J$59,6,FALSE)/100))","v":{"v":407091.1704312115,"d":"407,091"}},{"$f":"($A6-$A5)/365.25*$D$1*(1+$D$2+(VLOOKUP('RE Appr'!AU13,'RE Appr'!$E$13:$J$59,6,FALSE)/100))","v":{"v":434212.5941136209,"d":"434,213"}},{"$f":"($A6-$A5)/365.25*$D$1*(1+$D$2+(VLOOKUP('RE Appr'!AV13,'RE Appr'!$E$13:$J$59,6,FALSE)/100))","v":{"v":421665.9736136933,"d":"421,666"}},{"$f":"($A6-$A5)/365.25*$D$1*(1+$D$2+(VLOOKUP('RE Appr'!AW13,'RE Appr'!$E$13:$J$59,6,FALSE)/100))","v":{"v":412637.3716632444,"d":"412,637"}},{"$f":"($A6-$A5)/365.25*$D$1*(1+$D$2+(VLOOKUP('RE Appr'!AX13,'RE Appr'!$E$13:$J$59,6,FALSE)/100))","v":{"v":415847.54106599226,"d":"415,848"}},{"$f":"($A6-$A5)/365.25*$D$1*(1+$D$2+(VLOOKUP('RE Appr'!AY13,'RE Appr'!$E$13:$J$59,6,FALSE)/100))","v":{"v":415285.5578370979,"d":"415,286"}},{"$f":"($A6-$A5)/365.25*$D$1*(1+$D$2+(VLOOKUP('RE Appr'!AZ13,'RE Appr'!$E$13:$J$59,6,FALSE)/100))","v":{"v":420192.19712525664,"d":"420,192"}},{"$f":"($A6-$A5)/365.25*$D$1*(1+$D$2+(VLOOKUP('RE Appr'!BA13,'RE Appr'!$E$13:$J$59,6,FALSE)/100))","v":{"v":383827.10472279263,"d":"383,827"}},{"$f":"($A6-$A5)/365.25*$D$1*(1+$D$2+(VLOOKUP('RE Appr'!BB13,'RE Appr'!$E$13:$J$59,6,FALSE)/100))","v":{"v":383827.10472279263,"d":"383,827"}},{"$f":"($A6-$A5)/365.25*$D$1*(1+$D$2+(VLOOKUP('RE Appr'!BC13,'RE Appr'!$E$13:$J$59,6,FALSE)/100))","v":{"v":419632.5804243669,"d":"419,633"}},{"$f":"($A6-$A5)/365.25*$D$1*(1+$D$2+(VLOOKUP('RE Appr'!BD13,'RE Appr'!$E$13:$J$59,6,FALSE)/100))","v":{"v":417653.93566050654,"d":"417,654"}},{"$f":"($A6-$A5)/365.25*$D$1*(1+$D$2+(VLOOKUP('RE Appr'!BE13,'RE Appr'!$E$13:$J$59,6,FALSE)/100))","v":{"v":426041.984729592,"d":"426,042"}},{"$f":"($A6-$A5)/365.25*$D$1*(1+$D$2+(VLOOKUP('RE Appr'!BF13,'RE Appr'!$E$13:$J$59,6,FALSE)/100))","v":{"v":440668.1724845996,"d":"440,668"}},{"$f":"($A6-$A5)/365.25*$D$1*(1+$D$2+(VLOOKUP('RE Appr'!BG13,'RE Appr'!$E$13:$J$59,6,FALSE)/100))","v":{"v":419632.5804243669,"d":"419,633"}},{"$f":"($A6-$A5)/365.25*$D$1*(1+$D$2+(VLOOKUP('RE Appr'!BH13,'RE Appr'!$E$13:$J$59,6,FALSE)/100))","v":{"v":386675.1540041068,"d":"386,675"}},{"$f":"($A6-$A5)/365.25*$D$1*(1+$D$2+(VLOOKUP('RE Appr'!BI13,'RE Appr'!$E$13:$J$59,6,FALSE)/100))","v":{"v":409269.6783025325,"d":"409,270"}},{"$f":"($A6-$A5)/365.25*$D$1*(1+$D$2+(VLOOKUP('RE Appr'!BJ13,'RE Appr'!$E$13:$J$59,6,FALSE)/100))","v":{"v":470497.7412731006,"d":"470,498"}},{"$f":"($A6-$A5)/365.25*$D$1*(1+$D$2+(VLOOKUP('RE Appr'!BK13,'RE Appr'!$E$13:$J$59,6,FALSE)/100))","v":{"v":437040.65708418895,"d":"437,041"}},{"$f":"($A6-$A5)/365.25*$D$1*(1+$D$2+(VLOOKUP('RE Appr'!BL13,'RE Appr'!$E$13:$J$59,6,FALSE)/100))","v":{"v":421665.9736136933,"d":"421,666"}},{"$f":"($A6-$A5)/365.25*$D$1*(1+$D$2+(VLOOKUP('RE Appr'!BM13,'RE Appr'!$E$13:$J$59,6,FALSE)/100))","v":{"v":415285.5578370979,"d":"415,286"}},{"$f":"($A6-$A5)/365.25*$D$1*(1+$D$2+(VLOOKUP('RE Appr'!BN13,'RE Appr'!$E$13:$J$59,6,FALSE)/100))","v":{"v":417916.4969295789,"d":"417,916"}},{"$f":"($A6-$A5)/365.25*$D$1*(1+$D$2+(VLOOKUP('RE Appr'!BO13,'RE Appr'!$E$13:$J$59,6,FALSE)/100))","v":{"v":451019.08281998633,"d":"451,019"}},{"$f":"($A6-$A5)/365.25*$D$1*(1+$D$2+(VLOOKUP('RE Appr'!BP13,'RE Appr'!$E$13:$J$59,6,FALSE)/100))","v":{"v":423729.77412731,"d":"423,730"}},{"$f":"($A6-$A5)/365.25*$D$1*(1+$D$2+(VLOOKUP('RE Appr'!BQ13,'RE Appr'!$E$13:$J$59,6,FALSE)/100))","v":{"v":409269.6783025325,"d":"409,270"}},{"$f":"($A6-$A5)/365.25*$D$1*(1+$D$2+(VLOOKUP('RE Appr'!BR13,'RE Appr'!$E$13:$J$59,6,FALSE)/100))","v":{"v":383827.10472279263,"d":"383,827"}},{"$f":"($A6-$A5)/365.25*$D$1*(1+$D$2+(VLOOKUP('RE Appr'!BS13,'RE Appr'!$E$13:$J$59,6,FALSE)/100))","v":{"v":412277.6180698152,"d":"412,278"}},{"$f":"($A6-$A5)/365.25*$D$1*(1+$D$2+(VLOOKUP('RE Appr'!BT13,'RE Appr'!$E$13:$J$59,6,FALSE)/100))","v":{"v":437040.65708418895,"d":"437,041"}},{"$f":"($A6-$A5)/365.25*$D$1*(1+$D$2+(VLOOKUP('RE Appr'!BU13,'RE Appr'!$E$13:$J$59,6,FALSE)/100))","v":{"v":441107.871321013,"d":"441,108"}},{"$f":"($A6-$A5)/365.25*$D$1*(1+$D$2+(VLOOKUP('RE Appr'!BV13,'RE Appr'!$E$13:$J$59,6,FALSE)/100))","v":{"v":470497.7412731006,"d":"470,498"}},{"$f":"($A6-$A5)/365.25*$D$1*(1+$D$2+(VLOOKUP('RE Appr'!BW13,'RE Appr'!$E$13:$J$59,6,FALSE)/100))","v":{"v":436840.79397672834,"d":"436,841"}},{"$f":"($A6-$A5)/365.25*$D$1*(1+$D$2+(VLOOKUP('RE Appr'!BX13,'RE Appr'!$E$13:$J$59,6,FALSE)/100))","v":{"v":431774.264202601,"d":"431,774"}},{"$f":"($A6-$A5)/365.25*$D$1*(1+$D$2+(VLOOKUP('RE Appr'!BY13,'RE Appr'!$E$13:$J$59,6,FALSE)/100))","v":{"v":441107.871321013,"d":"441,108"}},{"$f":"($A6-$A5)/365.25*$D$1*(1+$D$2+(VLOOKUP('RE Appr'!BZ13,'RE Appr'!$E$13:$J$59,6,FALSE)/100))","v":{"v":407091.1704312115,"d":"407,091"}},{"$f":"($A6-$A5)/365.25*$D$1*(1+$D$2+(VLOOKUP('RE Appr'!CA13,'RE Appr'!$E$13:$J$59,6,FALSE)/100))","v":{"v":416694.59274469543,"d":"416,695"}},{"$f":"($A6-$A5)/365.25*$D$1*(1+$D$2+(VLOOKUP('RE Appr'!CB13,'RE Appr'!$E$13:$J$59,6,FALSE)/100))","v":{"v":412977.13894592744,"d":"412,977"}},{"$f":"($A6-$A5)/365.25*$D$1*(1+$D$2+(VLOOKUP('RE Appr'!CC13,'RE Appr'!$E$13:$J$59,6,FALSE)/100))","v":{"v":409269.6783025325,"d":"409,270"}},{"$f":"($A6-$A5)/365.25*$D$1*(1+$D$2+(VLOOKUP('RE Appr'!CD13,'RE Appr'!$E$13:$J$59,6,FALSE)/100))","v":{"v":435181.93018480495,"d":"435,182"}},{"$f":"($A6-$A5)/365.25*$D$1*(1+$D$2+(VLOOKUP('RE Appr'!CE13,'RE Appr'!$E$13:$J$59,6,FALSE)/100))","v":{"v":470497.7412731006,"d":"470,498"}},{"$f":"($A6-$A5)/365.25*$D$1*(1+$D$2+(VLOOKUP('RE Appr'!CF13,'RE Appr'!$E$13:$J$59,6,FALSE)/100))","v":{"v":423729.77412731,"d":"423,730"}},{"$f":"($A6-$A5)/365.25*$D$1*(1+$D$2+(VLOOKUP('RE Appr'!CG13,'RE Appr'!$E$13:$J$59,6,FALSE)/100))","v":{"v":407091.1704312115,"d":"407,091"}},{"$f":"($A6-$A5)/365.25*$D$1*(1+$D$2+(VLOOKUP('RE Appr'!CH13,'RE Appr'!$E$13:$J$59,6,FALSE)/100))","v":{"v":419632.5804243669,"d":"419,633"}},{"$f":"($A6-$A5)/365.25*$D$1*(1+$D$2+(VLOOKUP('RE Appr'!CI13,'RE Appr'!$E$13:$J$59,6,FALSE)/100))","v":{"v":375602.7378507871,"d":"375,603"}},{"$f":"($A6-$A5)/365.25*$D$1*(1+$D$2+(VLOOKUP('RE Appr'!CJ13,'RE Appr'!$E$13:$J$59,6,FALSE)/100))","v":{"v":435181.93018480495,"d":"435,182"}},{"$f":"($A6-$A5)/365.25*$D$1*(1+$D$2+(VLOOKUP('RE Appr'!CK13,'RE Appr'!$E$13:$J$59,6,FALSE)/100))","v":{"v":412517.453798768,"d":"412,517"}},{"$f":"($A6-$A5)/365.25*$D$1*(1+$D$2+(VLOOKUP('RE Appr'!CL13,'RE Appr'!$E$13:$J$59,6,FALSE)/100))","v":{"v":431774.264202601,"d":"431,774"}},{"$f":"($A6-$A5)/365.25*$D$1*(1+$D$2+(VLOOKUP('RE Appr'!CM13,'RE Appr'!$E$13:$J$59,6,FALSE)/100))","v":{"v":412517.453798768,"d":"412,517"}},{"$f":"($A6-$A5)/365.25*$D$1*(1+$D$2+(VLOOKUP('RE Appr'!CN13,'RE Appr'!$E$13:$J$59,6,FALSE)/100))","v":{"v":415285.5578370979,"d":"415,286"}},{"$f":"($A6-$A5)/365.25*$D$1*(1+$D$2+(VLOOKUP('RE Appr'!CO13,'RE Appr'!$E$13:$J$59,6,FALSE)/100))","v":{"v":386675.1540041068,"d":"386,675"}},{"$f":"($A6-$A5)/365.25*$D$1*(1+$D$2+(VLOOKUP('RE Appr'!CP13,'RE Appr'!$E$13:$J$59,6,FALSE)/100))","v":{"v":401385.0787132102,"d":"401,385"}},{"$f":"($A6-$A5)/365.25*$D$1*(1+$D$2+(VLOOKUP('RE Appr'!CQ13,'RE Appr'!$E$13:$J$59,6,FALSE)/100))","v":{"v":412637.3716632444,"d":"412,637"}},{"$f":"($A6-$A5)/365.25*$D$1*(1+$D$2+(VLOOKUP('RE Appr'!CR13,'RE Appr'!$E$13:$J$59,6,FALSE)/100))","v":{"v":419632.5804243669,"d":"419,633"}},{"$f":"($A6-$A5)/365.25*$D$1*(1+$D$2+(VLOOKUP('RE Appr'!CS13,'RE Appr'!$E$13:$J$59,6,FALSE)/100))","v":{"v":415045.72210814507,"d":"415,046"}},{"$f":"($A6-$A5)/365.25*$D$1*(1+$D$2+(VLOOKUP('RE Appr'!CT13,'RE Appr'!$E$13:$J$59,6,FALSE)/100))","v":{"v":371325.66735112935,"d":"371,326"}},{"$f":"($A6-$A5)/365.25*$D$1*(1+$D$2+(VLOOKUP('RE Appr'!CU13,'RE Appr'!$E$13:$J$59,6,FALSE)/100))","v":{"v":437040.65708418895,"d":"437,041"}},{"$f":"($A6-$A5)/365.25*$D$1*(1+$D$2+(VLOOKUP('RE Appr'!CV13,'RE Appr'!$E$13:$J$59,6,FALSE)/100))","v":{"v":419289.85199380416,"d":"419,290"}},{"$f":"($A6-$A5)/365.25*$D$1*(1+$D$2+(VLOOKUP('RE Appr'!CW13,'RE Appr'!$E$13:$J$59,6,FALSE)/100))","v":{"v":412517.453798768,"d":"412,517"}},{"$f":"($A6-$A5)/365.25*$D$1*(1+$D$2+(VLOOKUP('RE Appr'!CX13,'RE Appr'!$E$13:$J$59,6,FALSE)/100))","v":{"v":414845.85900068446,"d":"414,846"}},{"$f":"($A6-$A5)/365.25*$D$1*(1+$D$2+(VLOOKUP('RE Appr'!CY13,'RE Appr'!$E$13:$J$59,6,FALSE)/100))","v":{"v":416694.59274469543,"d":"416,695"}},{"$f":"($A6-$A5)/365.25*$D$1*(1+$D$2+(VLOOKUP('RE Appr'!CZ13,'RE Appr'!$E$13:$J$59,6,FALSE)/100))","v":{"v":383827.10472279263,"d":"383,827"}},{"$f":"($A6-$A5)/365.25*$D$1*(1+$D$2+(VLOOKUP('RE Appr'!DA13,'RE Appr'!$E$13:$J$59,6,FALSE)/100))","v":{"v":426041.984729592,"d":"426,042"}},{"$f":"($A6-$A5)/365.25*$D$1*(1+$D$2+(VLOOKUP('RE Appr'!DB13,'RE Appr'!$E$13:$J$59,6,FALSE)/100))","v":{"v":414845.85900068446,"d":"414,846"}},{"$f":"($A6-$A5)/365.25*$D$1*(1+$D$2+(VLOOKUP('RE Appr'!DC13,'RE Appr'!$E$13:$J$59,6,FALSE)/100))","v":{"v":407091.1704312115,"d":"407,091"}},{"$f":"($A6-$A5)/365.25*$D$1*(1+$D$2+(VLOOKUP('RE Appr'!DD13,'RE Appr'!$E$13:$J$59,6,FALSE)/100))","v":{"v":421665.9736136933,"d":"421,666"}},{"$f":"($A6-$A5)/365.25*$D$1*(1+$D$2+(VLOOKUP('RE Appr'!DE13,'RE Appr'!$E$13:$J$59,6,FALSE)/100))","v":{"v":417653.93566050654,"d":"417,654"}},{"$f":"($A6-$A5)/365.25*$D$1*(1+$D$2+(VLOOKUP('RE Appr'!DF13,'RE Appr'!$E$13:$J$59,6,FALSE)/100))","v":{"v":409269.6783025325,"d":"409,270"}},{"$f":"($A6-$A5)/365.25*$D$1*(1+$D$2+(VLOOKUP('RE Appr'!DG13,'RE Appr'!$E$13:$J$59,6,FALSE)/100))","v":{"v":415847.54106599226,"d":"415,848"}}]
[{"$f":"Main!A9","v":"2024-12-30"},{"$f":"B6+1","v":2},{"$f":"$D$4-D7","v":{"v":12507.36876984375,"d":"12,507"}},{"$f":"($E$5-C6)*$D$3","v":{"v":2608.31123015625,"d":"2,608"}},{"v":78216.50010515624,"d":"78,217"},{"$f":"($A7-$A6)/365.25*$D$1*(1+$D$2+(VLOOKUP('RE Appr'!L14,'RE Appr'!$E$13:$J$59,6,FALSE)/100))","v":{"v":417916.4969295789,"d":"417,916"}},{"$f":"($A7-$A6)/365.25*$D$1*(1+$D$2+(VLOOKUP('RE Appr'!M14,'RE Appr'!$E$13:$J$59,6,FALSE)/100))","v":{"v":419542.64202600956,"d":"419,543"}},{"$f":"($A7-$A6)/365.25*$D$1*(1+$D$2+(VLOOKUP('RE Appr'!N14,'RE Appr'!$E$13:$J$59,6,FALSE)/100))","v":{"v":435181.93018480495,"d":"435,182"}},{"$f":"($A7-$A6)/365.25*$D$1*(1+$D$2+(VLOOKUP('RE Appr'!O14,'RE Appr'!$E$13:$J$59,6,FALSE)/100))","v":{"v":431774.264202601,"d":"431,774"}},{"$f":"($A7-$A6)/365.25*$D$1*(1+$D$2+(VLOOKUP('RE Appr'!P14,'RE Appr'!$E$13:$J$59,6,FALSE)/100))","v":{"v":421665.9736136933,"d":"421,666"}},{"$f":"($A7-$A6)/365.25*$D$1*(1+$D$2+(VLOOKUP('RE Appr'!Q14,'RE Appr'!$E$13:$J$59,6,FALSE)/100))","v":{"v":435181.93018480495,"d":"435,182"}},{"$f":"($A7-$A6)/365.25*$D$1*(1+$D$2+(VLOOKUP('RE Appr'!R14,'RE Appr'!$E$13:$J$59,6,FALSE)/100))","v":{"v":407091.1704312115,"d":"407,091"}},{"$f":"($A7-$A6)/365.25*$D$1*(1+$D$2+(VLOOKUP('RE Appr'!S14,'RE Appr'!$E$13:$J$59,6,FALSE)/100))","v":{"v":422510.60917180014,"d":"422,511"}},{"$f":"($A7-$A6)/365.25*$D$1*(1+$D$2+(VLOOKUP('RE Appr'!T14,'RE Appr'!$E$13:$J$59,6,FALSE)/100))","v":{"v":451019.08281998633,"d":"451,019"}},{"$f":"($A7-$A6)/365.25*$D$1*(1+$D$2+(VLOOKUP('RE Appr'!U14,'RE Appr'!$E$13:$J$59,6,FALSE)/100))","v":{"v":419342.77891854895,"d":"419,343"}},{"$f":"($A7-$A6)/365.25*$D$1*(1+$D$2+(VLOOKUP('RE Appr'!V14,'RE Appr'!$E$13:$J$59,6,FALSE)/100))","v":{"v":415847.54106599226,"d":"415,848"}},{"$f":"($A7-$A6)/365.25*$D$1*(1+$D$2+(VLOOKUP('RE Appr'!W14,'RE Appr'!$E$13:$J$59,6,FALSE)/100))","v":{"v":412637.3716632444,"d":"412,637"}},{"$f":"($A7-$A6)/365.25*$D$1*(1+$D$2+(VLOOKUP('RE Appr'!X14,'RE Appr'!$E$13:$J$59,6,FALSE)/100))","v":{"v":412277.6180698152,"d":"412,278"}},{"$f":"($A7-$A6)/365.25*$D$1*(1+$D$2+(VLOOKUP('RE Appr'!Y14,'RE Appr'!$E$13:$J$59,6,FALSE)/100))","v":{"v":419632.5804243669,"d":"419,633"}},{"$f":"($A7-$A6)/365.25*$D$1*(1+$D$2+(VLOOKUP('RE Appr'!Z14,'RE Appr'!$E$13:$J$59,6,FALSE)/100))","v":{"v":437040.65708418895,"d":"437,041"}},{"$f":"($A7-$A6)/365.25*$D$1*(1+$D$2+(VLOOKUP('RE Appr'!AA14,'RE Appr'!$E$13:$J$59,6,FALSE)/100))","v":{"v":440668.1724845996,"d":"440,668"}},{"$f":"($A7-$A6)/365.25*$D$1*(1+$D$2+(VLOOKUP('RE Appr'!AB14,'RE Appr'!$E$13:$J$59,6,FALSE)/100))","v":{"v":415045.72210814507,"d":"415,046"}},{"$f":"($A7-$A6)/365.25*$D$1*(1+$D$2+(VLOOKUP('RE Appr'!AC14,'RE Appr'!$E$13:$J$59,6,FALSE)/100))","v":{"v":415847.54106599226,"d":"415,848"}},{"$f":"($A7-$A6)/365.25*$D$1*(1+$D$2+(VLOOKUP('RE Appr'!AD14,'RE Appr'!$E$13:$J$59,6,FALSE)/100))","v":{"v":401385.0787132102,"d":"401,385"}},{"$f":"($A7-$A6)/365.25*$D$1*(1+$D$2+(VLOOKUP('RE Appr'!AE14,'RE Appr'!$E$13:$J$59,6,FALSE)/100))","v":{"v":422510.60917180014,"d":"422,511"}},{"$f":"($A7-$A6)/365.25*$D$1*(1+$D$2+(VLOOKUP('RE Appr'!AF14,'RE Appr'!$E$13:$J$59,6,FALSE)/100))","v":{"v":416234.9075975359,"d":"416,235"}},{"$f":"($A7-$A6)/365.25*$D$1*(1+$D$2+(VLOOKUP('RE Appr'!AG14,'RE Appr'!$E$13:$J$59,6,FALSE)/100))","v":{"v":412637.3716632444,"d":"412,637"}},{"$f":"($A7-$A6)/365.25*$D$1*(1+$D$2+(VLOOKUP('RE Appr'!AH14,'RE Appr'!$E$13:$J$59,6,FALSE)/100))","v":{"v":419632.5804243669,"d":"419,633"}},{"$f":"($A7-$A6)/365.25*$D$1*(1+$D$2+(VLOOKUP('RE Appr'!AI14,'RE Appr'!$E$13:$J$59,6,FALSE)/100))","v":{"v":416234.9075975359,"d":"416,235"}},{"$f":"($A7-$A6)/365.25*$D$1*(1+$D$2+(VLOOKUP('RE Appr'!AJ14,'RE Appr'!$E$13:$J$59,6,FALSE)/100))","v":{"v":375602.7378507871,"d":"375,603"}},{"$f":"($A7-$A6)/365.25*$D$1*(1+$D$2+(VLOOKUP('RE Appr'!AK14,'RE Appr'!$E$13:$J$59,6,FALSE)/100))","v":{"v":441527.5838466804,"d":"441,528"}},{"$f":"($A7-$A6)/365.25*$D$1*(1+$D$2+(VLOOKUP('RE Appr'!AL14,'RE Appr'!$E$13:$J$59,6,FALSE)/100))","v":{"v":429315.94798083504,"d":"429,316"}},{"$f":"($A7-$A6)/365.25*$D$1*(1+$D$2+(VLOOKUP('RE Appr'!AM14,'RE Appr'!$E$13:$J$59,6,FALSE)/100))","v":{"v":423749.76043805614,"d":"423,750"}},{"$f":"($A7-$A6)/365.25*$D$1*(1+$D$2+(VLOOKUP('RE Appr'!AN14,'RE Appr'!$E$13:$J$59,6,FALSE)/100))","v":{"v":414845.85900068446,"d":"414,846"}},{"$f":"($A7-$A6)/365.25*$D$1*(1+$D$2+(VLOOKUP('RE Appr'!AO14,'RE Appr'!$E$13:$J$59,6,FALSE)/100))","v":{"v":422510.60917180014,"d":"422,511"}},{"$f":"($A7-$A6)/365.25*$D$1*(1+$D$2+(VLOOKUP('RE Appr'!AP14,'RE Appr'!$E$13:$J$59,6,FALSE)/100))","v":{"v":440668.1724845996,"d":"440,668"}},{"$f":"($A7-$A6)/365.25*$D$1*(1+$D$2+(VLOOKUP('RE Appr'!AQ14,'RE Appr'!$E$13:$J$59,6,FALSE)/100))","v":{"v":419342.77891854895,"d":"419,343"}},{"$f":"($A7-$A6)/365.25*$D$1*(1+$D$2+(VLOOKUP('RE Appr'!AR14,'RE Appr'!$E$13:$J$59,6,FALSE)/100))","v":{"v":431774.264202601,"d":"431,774"}},{"$f":"($A7-$A6)/365.25*$D$1*(1+$D$2+(VLOOKUP('RE Appr'!AS14,'RE Appr'!$E$13:$J$59,6,FALSE)/100))","v":{"v":420192.19712525664,"d":"420,192"}},{"$f":"($A7-$A6)/365.25*$D$1*(1+$D$2+(VLOOKUP('RE Appr'!AT14,'RE Appr'!$E$13:$J$59,6,FALSE)/100))","v":{"v":416694.59274469543,"d":"416,695"}},{"$f":"($A7-$A6)/365.25*$D$1*(1+$D$2+(VLOOKUP('RE Appr'!AU14,'RE Appr'!$E$13:$J$59,6,FALSE)/100))","v":{"v":375602.7378507871,"d":"375,603"}},{"$f":"($A7-$A6)/365.25*$D$1*(1+$D$2+(VLOOKUP('RE Appr'!AV14,'RE Appr'!$E$13:$J$59,6,FALSE)/100))","v":{"v":423749.76043805614,"d":"423,750"}},{"$f":"($A7-$A6)/365.25*$D$1*(1+$D$2+(VLOOKUP('RE Appr'!AW14,'RE Appr'!$E$13:$J$59,6,FALSE)/100))","v":{"v":399326.4887063655,"d":"399,326"}},{"$f":"($A7-$A6)/365.25*$D$1*(1+$D$2+(VLOOKUP('RE Appr'!AX14,'RE Appr'!$E$13:$J$59,6,FALSE)/100))","v":{"v":435181.93018480495,"d":"435,182"}},{"$f":"($A7-$A6)/365.25*$D$1*(1+$D$2+(VLOOKUP('RE Appr'!AY14,'RE Appr'!$E$13:$J$59,6,FALSE)/100))","v":{"v":435181.93018480495,"d":"435,182"}},{"$f":"($A7-$A6)/365.25*$D$1*(1+$D$2+(VLOOKUP('RE Appr'!AZ14,'RE Appr'!$E$13:$J$59,6,FALSE)/100))","v":{"v":417653.93566050654,"d":"417,654"}},{"$f":"($A7-$A6)/365.25*$D$1*(1+$D$2+(VLOOKUP('RE Appr'!BA14,'RE Appr'!$E$13:$J$59,6,FALSE)/100))","v":{"v":412637.3716632444,"d":"412,637"}},{"$f":"($A7-$A6)/365.25*$D$1*(1+$D$2+(VLOOKUP('RE Appr'!BB14,'RE Appr'!$E$13:$J$59,6,FALSE)/100))","v":{"v":371325.66735112935,"d":"371,326"}},{"$f":"($A7-$A6)/365.25*$D$1*(1+$D$2+(VLOOKUP('RE Appr'!BC14,'RE Appr'!$E$13:$J$59,6,FALSE)/100))","v":{"v":435181.93018480495,"d":"435,182"}},{"$f":"($A7-$A6)/365.25*$D$1*(1+$D$2+(VLOOKUP('RE Appr'!BD14,'RE Appr'!$E$13:$J$59,6,FALSE)/100))","v":{"v":407091.1704312115,"d":"407,091"}},{"$f":"($A7-$A6)/365.25*$D$1*(1+$D$2+(VLOOKUP('RE Appr'!BE14,'RE Appr'!$E$13:$J$59,6,FALSE)/100))","v":{"v":417916.4969295789,"d":"417,916"}},{"$f":"($A7-$A6)/365.25*$D$1*(1+$D$2+(VLOOKUP('RE Appr'!BF14,'RE Appr'!$E$13:$J$59,6,FALSE)/100))","v":{"v":440668.1724845996,"d":"440,668"}},{"$f":"($A7-$A6)/365.25*$D$1*(1+$D$2+(VLOOKUP('RE Appr'!BG14,'RE Appr'!$E$13:$J$59,6,FALSE)/100))","v":{"v":435181.93018480495,"d":"435,182"}},{"$f":"($A7-$A6)/365.25*$D$1*(1+$D$2+(VLOOKUP('RE Appr'!BH14,'RE Appr'!$E$13:$J$59,6,FALSE)/100))","v":{"v":410728.67898699525,"d":"410,729"}},{"$f":"($A7-$A6)/365.25*$D$1*(1+$D$2+(VLOOKUP('RE Appr'!BI14,'RE Appr'!$E$13:$J$59,6,FALSE)/100))","v":{"v":419289.85199380416,"d":"419,290"}},{"$f":"($A7-$A6)/365.25*$D$1*(1+$D$2+(VLOOKUP('RE Appr'!BJ14,'RE Appr'!$E$13:$J$59,6,FALSE)/100))","v":{"v":371325.66735112935,"d":"371,326"}},{"$f":"($A7-$A6)/365.25*$D$1*(1+$D$2+(VLOOKUP('RE Appr'!BK14,'RE Appr'!$E$13:$J$59,6,FALSE)/100))","v":{"v":420192.19712525664,"d":"420,192"}},{"$f":"($A7-$A6)/365.25*$D$1*(1+$D$2+(VLOOKUP('RE Appr'!BL14,'RE Appr'!$E$13:$J$59,6,FALSE)/100))","v":{"v":437040.65708418895,"d":"437,041"}},{"$f":"($A7-$A6)/365.25*$D$1*(1+$D$2+(VLOOKUP('RE Appr'!BM14,'RE Appr'!$E$13:$J$59,6,FALSE)/100))","v":{"v":412977.13894592744,"d":"412,977"}},{"$f":"($A7-$A6)/365.25*$D$1*(1+$D$2+(VLOOKUP('RE Appr'!BN14,'RE Appr'!$E$13:$J$59,6,FALSE)/100))","v":{"v":441107.871321013,"d":"441,108"}},{"$f":"($A7-$A6)/365.25*$D$1*(1+$D$2+(VLOOKUP('RE Appr'!BO14,'RE Appr'!$E$13:$J$59,6,FALSE)/100))","v":{"v":435771.5263518138,"d":"435,772"}},{"$f":"($A7-$A6)/365.25*$D$1*(1+$D$2+(VLOOKUP('RE Appr'!BP14,'RE Appr'!$E$13:$J$59,6,FALSE)/100))","v":{"v":371325.66735112935,"d":"371,326"}},{"$f":"($A7-$A6)/365.25*$D$1*(1+$D$2+(VLOOKUP('RE Appr'!BQ14,'RE Appr'!$E$13:$J$59,6,FALSE)/100))","v":{"v":407091.1704312115,"d":"407,091"}},{"$f":"($A7-$A6)/365.25*$D$1*(1+$D$2+(VLOOKUP('RE Appr'!BR14,'RE Appr'!$E$13:$J$59,6,FALSE)/100))","v":{"v":412277.6180698152,"d":"412,278"}},{"$f":"($A7-$A6)/365.25*$D$1*(1+$D$2+(VLOOKUP('RE Appr'!BS14,'RE Appr'!$E$13:$J$59,6,FALSE)/100))","v":{"v":412977.13894592744,"d":"412,977"}},{"$f":"($A7-$A6)/365.25*$D$1*(1+$D$2+(VLOOKUP('RE Appr'!BT14,'RE Appr'!$E$13:$J$59,6,FALSE)/100))","v":{"v":415847.54106599226,"d":"415,848"}},{"$f":"($A7-$A6)/365.25*$D$1*(1+$D$2+(VLOOKUP('RE Appr'!BU14,'RE Appr'!$E$13:$J$59,6,FALSE)/100))","v":{"v":436840.79397672834,"d":"436,841"}},{"$f":"($A7-$A6)/365.25*$D$1*(1+$D$2+(VLOOKUP('RE Appr'!BV14,'RE Appr'!$E$13:$J$59,6,FALSE)/100))","v":{"v":417653.93566050654,"d":"417,654"}},{"$f":"($A7-$A6)/365.25*$D$1*(1+$D$2+(VLOOKUP('RE Appr'!BW14,'RE Appr'!$E$13:$J$59,6,FALSE)/100))","v":{"v":426041.984729592,"d":"426,042"}},{"$f":"($A7-$A6)/365.25*$D$1*(1+$D$2+(VLOOKUP('RE Appr'!BX14,'RE Appr'!$E$13:$J$59,6,FALSE)/100))","v":{"v":423729.77412731,"d":"423,730"}},{"$f":"($A7-$A6)/365.25*$D$1*(1+$D$2+(VLOOKUP('RE Appr'!BY14,'RE Appr'!$E$13:$J$59,6,FALSE)/100))","v":{"v":417916.4969295789,"d":"417,916"}},{"$f":"($A7-$A6)/365.25*$D$1*(1+$D$2+(VLOOKUP('RE Appr'!BZ14,'RE Appr'!$E$13:$J$59,6,FALSE)/100))","v":{"v":421665.9736136933,"d":"421,666"}},{"$f":"($A7-$A6)/365.25*$D$1*(1+$D$2+(VLOOKUP('RE Appr'!CA14,'RE Appr'!$E$13:$J$59,6,FALSE)/100))","v":{"v":417653.93566050654,"d":"417,654"}},{"$f":"($A7-$A6)/365.25*$D$1*(1+$D$2+(VLOOKUP('RE Appr'!CB14,'RE Appr'!$E$13:$J$59,6,FALSE)/100))","v":{"v":386675.1540041068,"d":"386,675"}},{"$f":"($A7-$A6)/365.25*$D$1*(1+$D$2+(VLOOKUP('RE Appr'!CC14,'RE Appr'!$E$13:$J$59,6,FALSE)/100))","v":{"v":455687.8850102669,"d":"455,688"}},{"$f":"($A7-$A6)/365.25*$D$1*(1+$D$2+(VLOOKUP('RE Appr'!CD14,'RE Appr'!$E$13:$J$59,6,FALSE)/100))","v":{"v":441107.871321013,"d":"441,108"}},{"$f":"($A7-$A6)/365.25*$D$1*(1+$D$2+(VLOOKUP('RE Appr'!CE14,'RE Appr'!$E$13:$J$59,6,FALSE)/100))","v":{"v":435771.5263518138,"d":"435,772"}},{"$f":"($A7-$A6)/365.25*$D$1*(1+$D$2+(VLOOKUP('RE Appr'!CF14,'RE Appr'!$E$13:$J$59,6,FALSE)/100))","v":{"v":412977.13894592744,"d":"412,977"}},{"$f":"($A7-$A6)/365.25*$D$1*(1+$D$2+(VLOOKUP('RE Appr'!CG14,'RE Appr'!$E$13:$J$59,6,FALSE)/100))","v":{"v":409269.6783025325,"d":"409,270"}},{"$f":"($A7-$A6)/365.25*$D$1*(1+$D$2+(VLOOKUP('RE Appr'!CH14,'RE Appr'!$E$13:$J$59,6,FALSE)/100))","v":{"v":383827.10472279263,"d":"383,827"}},{"$f":"($A7-$A6)/365.25*$D$1*(1+$D$2+(VLOOKUP('RE Appr'!CI14,'RE Appr'!$E$13:$J$59,6,FALSE)/100))","v":{"v":410728.67898699525,"d":"410,729"}},{"$f":"($A7-$A6)/365.25*$D$1*(1+$D$2+(VLOOKUP('RE Appr'!CJ14,'RE Appr'!$E$13:$J$59,6,FALSE)/100))","v":{"v":415045.72210814507,"d":"415,046"}},{"$f":"($A7-$A6)/365.25*$D$1*(1+$D$2+(VLOOKUP('RE Appr'!CK14,'RE Appr'!$E$13:$J$59,6,FALSE)/100))","v":{"v":418833.85952220886,"d":"418,834"}},{"$f":"($A7-$A6)/365.25*$D$1*(1+$D$2+(VLOOKUP('RE Appr'!CL14,'RE Appr'!$E$13:$J$59,6,FALSE)/100))","v":{"v":422510.60917180014,"d":"422,511"}},{"$f":"($A7-$A6)/365.25*$D$1*(1+$D$2+(VLOOKUP('RE Appr'!CM14,'RE Appr'!$E$13:$J$59,6,FALSE)/100))","v":{"v":434212.5941136209,"d":"434,213"}},{"$f":"($A7-$A6)/365.25*$D$1*(1+$D$2+(VLOOKUP('RE Appr'!CN14,'RE Appr'!$E$13:$J$59,6,FALSE)/100))","v":{"v":409269.6783025325,"d":"409,270"}},{"$f":"($A7-$A6)/365.25*$D$1*(1+$D$2+(VLOOKUP('RE Appr'!CO14,'RE Appr'!$E$13:$J$59,6,FALSE)/100))","v":{"v":420192.19712525664,"d":"420,192"}},{"$f":"($A7-$A6)/365.25*$D$1*(1+$D$2+(VLOOKUP('RE Appr'!CP14,'RE Appr'!$E$13:$J$59,6,FALSE)/100))","v":{"v":470497.7412731006,"d":"470,498"}},{"$f":"($A7-$A6)/365.25*$D$1*(1+$D$2+(VLOOKUP('RE Appr'!CQ14,'RE Appr'!$E$13:$J$59,6,FALSE)/100))","v":{"v":435771.5263518138,"d":"435,772"}},{"$f":"($A7-$A6)/365.25*$D$1*(1+$D$2+(VLOOKUP('RE Appr'!CR14,'RE Appr'!$E$13:$J$59,6,FALSE)/100))","v":{"v":417916.4969295789,"d":"417,916"}},{"$f":"($A7-$A6)/365.25*$D$1*(1+$D$2+(VLOOKUP('RE Appr'!CS14,'RE Appr'!$E$13:$J$59,6,FALSE)/100))","v":{"v":429315.94798083504,"d":"429,316"}},{"$f":"($A7-$A6)/365.25*$D$1*(1+$D$2+(VLOOKUP('RE Appr'!CT14,'RE Appr'!$E$13:$J$59,6,FALSE)/100))","v":{"v":419342.77891854895,"d":"419,343"}},{"$f":"($A7-$A6)/365.25*$D$1*(1+$D$2+(VLOOKUP('RE Appr'!CU14,'RE Appr'!$E$13:$J$59,6,FALSE)/100))","v":{"v":375602.7378507871,"d":"375,603"}},{"$f":"($A7-$A6)/365.25*$D$1*(1+$D$2+(VLOOKUP('RE Appr'!CV14,'RE Appr'!$E$13:$J$59,6,FALSE)/100))","v":{"v":419542.64202600956,"d":"419,543"}},{"$f":"($A7-$A6)/365.25*$D$1*(1+$D$2+(VLOOKUP('RE Appr'!CW14,'RE Appr'!$E$13:$J$59,6,FALSE)/100))","v":{"v":418173.57973990415,"d":"418,174"}},{"$f":"($A7-$A6)/365.25*$D$1*(1+$D$2+(VLOOKUP('RE Appr'!CX14,'RE Appr'!$E$13:$J$59,6,FALSE)/100))","v":{"v":415847.54106599226,"d":"415,848"}},{"$f":"($A7-$A6)/365.25*$D$1*(1+$D$2+(VLOOKUP('RE Appr'!CY14,'RE Appr'!$E$13:$J$59,6,FALSE)/100))","v":{"v":426041.984729592,"d":"426,042"}},{"$f":"($A7-$A6)/365.25*$D$1*(1+$D$2+(VLOOKUP('RE Appr'!CZ14,'RE Appr'!$E$13:$J$59,6,FALSE)/100))","v":{"v":441107.871321013,"d":"441,108"}},{"$f":"($A7-$A6)/365.25*$D$1*(1+$D$2+(VLOOKUP('RE Appr'!DA14,'RE Appr'!$E$13:$J$59,6,FALSE)/100))","v":{"v":410728.67898699525,"d":"410,729"}},{"$f":"($A7-$A6)/365.25*$D$1*(1+$D$2+(VLOOKUP('RE Appr'!DB14,'RE Appr'!$E$13:$J$59,6,FALSE)/100))","v":{"v":417653.93566050654,"d":"417,654"}},{"$f":"($A7-$A6)/365.25*$D$1*(1+$D$2+(VLOOKUP('RE Appr'!DC14,'RE Appr'!$E$13:$J$59,6,FALSE)/100))","v":{"v":401385.0787132102,"d":"401,385"}},{"$f":"($A7-$A6)/365.25*$D$1*(1+$D$2+(VLOOKUP('RE Appr'!DD14,'RE Appr'!$E$13:$J$59,6,FALSE)/100))","v":{"v":419289.85199380416,"d":"419,290"}},{"$f":"($A7-$A6)/365.25*$D$1*(1+$D$2+(VLOOKUP('RE Appr'!DE14,'RE Appr'!$E$13:$J$59,6,FALSE)/100))","v":{"v":434212.5941136209,"d":"434,213"}},{"$f":"($A7-$A6)/365.25*$D$1*(1+$D$2+(VLOOKUP('RE Appr'!DF14,'RE Appr'!$E$13:$J$59,6,FALSE)/100))","v":{"v":407091.1704312115,"d":"407,091"}},{"$f":"($A7-$A6)/365.25*$D$1*(1+$D$2+(VLOOKUP('RE Appr'!DG14,'RE Appr'!$E$13:$J$59,6,FALSE)/100))","v":{"v":412637.3716632444,"d":"412,637"}}]
[{"$f":"Main!A10","v":"2025-12-30"},{"$f":"B7+1","v":3},{"$f":"$D$4-D8","v":{"v":12866.955621976758,"d":"12,867"}},{"$f":"($E$5-SUM(C$6:C7))*$D$3","v":{"v":2248.724378023242,"d":"2,249"}},{"v":65349.54448317949,"d":"65,350"},{"$f":"($A8-$A7)/365.25*$D$1*(1+$D$2+(VLOOKUP('RE Appr'!L15,'RE Appr'!$E$13:$J$59,6,FALSE)/100))","v":{"v":421665.9736136933,"d":"421,666"}},{"$f":"($A8-$A7)/365.25*$D$1*(1+$D$2+(VLOOKUP('RE Appr'!M15,'RE Appr'!$E$13:$J$59,6,FALSE)/100))","v":{"v":437040.65708418895,"d":"437,041"}},{"$f":"($A8-$A7)/365.25*$D$1*(1+$D$2+(VLOOKUP('RE Appr'!N15,'RE Appr'!$E$13:$J$59,6,FALSE)/100))","v":{"v":371325.66735112935,"d":"371,326"}},{"$f":"($A8-$A7)/365.25*$D$1*(1+$D$2+(VLOOKUP('RE Appr'!O15,'RE Appr'!$E$13:$J$59,6,FALSE)/100))","v":{"v":423749.76043805614,"d":"423,750"}},{"$f":"($A8-$A7)/365.25*$D$1*(1+$D$2+(VLOOKUP('RE Appr'!P15,'RE Appr'!$E$13:$J$59,6,FALSE)/100))","v":{"v":412277.6180698152,"d":"412,278"}},{"$f":"($A8-$A7)/365.25*$D$1*(1+$D$2+(VLOOKUP('RE Appr'!Q15,'RE Appr'!$E$13:$J$59,6,FALSE)/100))","v":{"v":435181.93018480495,"d":"435,182"}},{"$f":"($A8-$A7)/365.25*$D$1*(1+$D$2+(VLOOKUP('RE Appr'!R15,'RE Appr'!$E$13:$J$59,6,FALSE)/100))","v":{"v":423729.77412731,"d":"423,730"}},{"$f":"($A8-$A7)/365.25*$D$1*(1+$D$2+(VLOOKUP('RE Appr'!S15,'RE Appr'!$E$13:$J$59,6,FALSE)/100))","v":{"v":420192.19712525664,"d":"420,192"}},{"$f":"($A8-$A7)/365.25*$D$1*(1+$D$2+(VLOOKUP('RE Appr'!T15,'RE Appr'!$E$13:$J$59,6,FALSE)/100))","v":{"v":419289.85199380416,"d":"419,290"}},{"$f":"($A8-$A7)/365.25*$D$1*(1+$D$2+(VLOOKUP('RE Appr'!U15,'RE Appr'!$E$13:$J$59,6,FALSE)/100))","v":{"v":417916.4969295789,"d":"417,916"}},{"$f":"($A8-$A7)/365.25*$D$1*(1+$D$2+(VLOOKUP('RE Appr'!V15,'RE Appr'!$E$13:$J$59,6,FALSE)/100))","v":{"v":418833.85952220886,"d":"418,834"}},{"$f":"($A8-$A7)/365.25*$D$1*(1+$D$2+(VLOOKUP('RE Appr'!W15,'RE Appr'!$E$13:$J$59,6,FALSE)/100))","v":{"v":371325.66735112935,"d":"371,326"}},{"$f":"($A8-$A7)/365.25*$D$1*(1+$D$2+(VLOOKUP('RE Appr'!X15,'RE Appr'!$E$13:$J$59,6,FALSE)/100))","v":{"v":383827.10472279263,"d":"383,827"}},{"$f":"($A8-$A7)/365.25*$D$1*(1+$D$2+(VLOOKUP('RE Appr'!Y15,'RE Appr'!$E$13:$J$59,6,FALSE)/100))","v":{"v":434212.5941136209,"d":"434,213"}},{"$f":"($A8-$A7)/365.25*$D$1*(1+$D$2+(VLOOKUP('RE Appr'!Z15,'RE Appr'!$E$13:$J$59,6,FALSE)/100))","v":{"v":429315.94798083504,"d":"429,316"}},{"$f":"($A8-$A7)/365.25*$D$1*(1+$D$2+(VLOOKUP('RE Appr'!AA15,'RE Appr'!$E$13:$J$59,6,FALSE)/100))","v":{"v":407091.1704312115,"d":"407,091"}},{"$f":"($A8-$A7)/365.25*$D$1*(1+$D$2+(VLOOKUP('RE Appr'!AB15,'RE Appr'!$E$13:$J$59,6,FALSE)/100))","v":{"v":441527.5838466804,"d":"441,528"}},{"$f":"($A8-$A7)/365.25*$D$1*(1+$D$2+(VLOOKUP('RE Appr'!AC15,'RE Appr'!$E$13:$J$59,6,FALSE)/100))","v":{"v":423749.76043805614,"d":"423,750"}},{"$f":"($A8-$A7)/365.25*$D$1*(1+$D$2+(VLOOKUP('RE Appr'!AD15,'RE Appr'!$E$13:$J$59,6,FALSE)/100))","v":{"v":412637.3716632444,"d":"412,637"}},{"$f":"($A8-$A7)/365.25*$D$1*(1+$D$2+(VLOOKUP('RE Appr'!AE15,'RE Appr'!$E$13:$J$59,6,FALSE)/100))","v":{"v":386675.1540041068,"d":"386,675"}},{"$f":"($A8-$A7)/365.25*$D$1*(1+$D$2+(VLOOKUP('RE Appr'!AF15,'RE Appr'!$E$13:$J$59,6,FALSE)/100))","v":{"v":441107.871321013,"d":"441,108"}},{"$f":"($A8-$A7)/365.25*$D$1*(1+$D$2+(VLOOKUP('RE Appr'!AG15,'RE Appr'!$E$13:$J$59,6,FALSE)/100))","v":{"v":441527.5838466804,"d":"441,528"}},{"$f":"($A8-$A7)/365.25*$D$1*(1+$D$2+(VLOOKUP('RE Appr'!AH15,'RE Appr'!$E$13:$J$59,6,FALSE)/100))","v":{"v":409269.6783025325,"d":"409,270"}},{"$f":"($A8-$A7)/365.25*$D$1*(1+$D$2+(VLOOKUP('RE Appr'!AI15,'RE Appr'!$E$13:$J$59,6,FALSE)/100))","v":{"v":440668.1724845996,"d":"440,668"}},{"$f":"($A8-$A7)/365.25*$D$1*(1+$D$2+(VLOOKUP('RE Appr'!AJ15,'RE Appr'!$E$13:$J$59,6,FALSE)/100))","v":{"v":416234.9075975359,"d":"416,235"}},{"$f":"($A8-$A7)/365.25*$D$1*(1+$D$2+(VLOOKUP('RE Appr'!AK15,'RE Appr'!$E$13:$J$59,6,FALSE)/100))","v":{"v":419632.5804243669,"d":"419,633"}},{"$f":"($A8-$A7)/365.25*$D$1*(1+$D$2+(VLOOKUP('RE Appr'!AL15,'RE Appr'!$E$13:$J$59,6,FALSE)/100))","v":{"v":440668.1724845996,"d":"440,668"}},{"$f":"($A8-$A7)/365.25*$D$1*(1+$D$2+(VLOOKUP('RE Appr'!AM15,'RE Appr'!$E$13:$J$59,6,FALSE)/100))","v":{"v":417916.4969295789,"d":"417,916"}},{"$f":"($A8-$A7)/365.25*$D$1*(1+$D$2+(VLOOKUP('RE Appr'!AN15,'RE Appr'!$E$13:$J$59,6,FALSE)/100))","v":{"v":415285.5578370979,"d":"415,286"}},{"$f":"($A8-$A7)/365.25*$D$1*(1+$D$2+(VLOOKUP('RE Appr'!AO15,'RE Appr'!$E$13:$J$59,6,FALSE)/100))","v":{"v":440668.1724845996,"d":"440,668"}},{"$f":"($A8-$A7)/365.25*$D$1*(1+$D$2+(VLOOKUP('RE Appr'!AP15,'RE Appr'!$E$13:$J$59,6,FALSE)/100))","v":{"v":435181.93018480495,"d":"435,182"}},{"$f":"($A8-$A7)/365.25*$D$1*(1+$D$2+(VLOOKUP('RE Appr'!AQ15,'RE Appr'!$E$13:$J$59,6,FALSE)/100))","v":{"v":411048.45995893225,"d":"411,048"}},{"$f":"($A8-$A7)/365.25*$D$1*(1+$D$2+(VLOOKUP('RE Appr'!AR15,'RE Appr'!$E$13:$J$59,6,FALSE)/100))","v":{"v":421665.9736136933,"d":"421,666"}},{"$f":"($A8-$A7)/365.25*$D$1*(1+$D$2+(VLOOKUP('RE Appr'!AS15,'RE Appr'!$E$13:$J$59,6,FALSE)/100))","v":{"v":441107.871321013,"d":"441,108"}},{"$f":"($A8-$A7)/365.25*$D$1*(1+$D$2+(VLOOKUP('RE Appr'!AT15,'RE Appr'!$E$13:$J$59,6,FALSE)/100))","v":{"v":435181.93018480495,"d":"435,182"}},{"$f":"($A8-$A7)/365.25*$D$1*(1+$D$2+(VLOOKUP('RE Appr'!AU15,'RE Appr'!$E$13:$J$59,6,FALSE)/100))","v":{"v":412637.3716632444,"d":"412,637"}},{"$f":"($A8-$A7)/365.25*$D$1*(1+$D$2+(VLOOKUP('RE Appr'!AV15,'RE Appr'!$E$13:$J$59,6,FALSE)/100))","v":{"v":455687.8850102669,"d":"455,688"}},{"$f":"($A8-$A7)/365.25*$D$1*(1+$D$2+(VLOOKUP('RE Appr'!AW15,'RE Appr'!$E$13:$J$59,6,FALSE)/100))","v":{"v":440668.1724845996,"d":"440,668"}},{"$f":"($A8-$A7)/365.25*$D$1*(1+$D$2+(VLOOKUP('RE Appr'!AX15,'RE Appr'!$E$13:$J$59,6,FALSE)/100))","v":{"v":417653.93566050654,"d":"417,654"}},{"$f":"($A8-$A7)/365.25*$D$1*(1+$D$2+(VLOOKUP('RE Appr'!AY15,'RE Appr'!$E$13:$J$59,6,FALSE)/100))","v":{"v":470497.7412731006,"d":"470,498"}},{"$f":"($A8-$A7)/365.25*$D$1*(1+$D$2+(VLOOKUP('RE Appr'!AZ15,'RE Appr'!$E$13:$J$59,6,FALSE)/100))","v":{"v":418173.57973990415,"d":"418,174"}},{"$f":"($A8-$A7)/365.25*$D$1*(1+$D$2+(VLOOKUP('RE Appr'!BA15,'RE Appr'!$E$13:$J$59,6,FALSE)/100))","v":{"v":412637.3716632444,"d":"412,637"}},{"$f":"($A8-$A7)/365.25*$D$1*(1+$D$2+(VLOOKUP('RE Appr'!BB15,'RE Appr'!$E$13:$J$59,6,FALSE)/100))","v":{"v":421665.9736136933,"d":"421,666"}},{"$f":"($A8-$A7)/365.25*$D$1*(1+$D$2+(VLOOKUP('RE Appr'!BC15,'RE Appr'!$E$13:$J$59,6,FALSE)/100))","v":{"v":435771.5263518138,"d":"435,772"}},{"$f":"($A8-$A7)/365.25*$D$1*(1+$D$2+(VLOOKUP('RE Appr'!BD15,'RE Appr'!$E$13:$J$59,6,FALSE)/100))","v":{"v":418833.85952220886,"d":"418,834"}},{"$f":"($A8-$A7)/365.25*$D$1*(1+$D$2+(VLOOKUP('RE Appr'!BE15,'RE Appr'!$E$13:$J$59,6,FALSE)/100))","v":{"v":441107.871321013,"d":"441,108"}},{"$f":"($A8-$A7)/365.25*$D$1*(1+$D$2+(VLOOKUP('RE Appr'!BF15,'RE Appr'!$E$13:$J$59,6,FALSE)/100))","v":{"v":420192.19712525664,"d":"420,192"}},{"$f":"($A8-$A7)/365.25*$D$1*(1+$D$2+(VLOOKUP('RE Appr'!BG15,'RE Appr'!$E$13:$J$59,6,FALSE)/100))","v":{"v":451019.08281998633,"d":"451,019"}},{"$f":"($A8-$A7)/365.25*$D$1*(1+$D$2+(VLOOKUP('RE Appr'!BH15,'RE Appr'!$E$13:$J$59,6,FALSE)/100))","v":{"v":375602.7378507871,"d":"375,603"}},{"$f":"($A8-$A7)/365.25*$D$1*(1+$D$2+(VLOOKUP('RE Appr'!BI15,'RE Appr'!$E$13:$J$59,6,FALSE)/100))","v":{"v":431774.264202601,"d":"431,774"}},{"$f":"($A8-$A7)/365.25*$D$1*(1+$D$2+(VLOOKUP('RE Appr'!BJ15,'RE Appr'!$E$13:$J$59,6,FALSE)/100))","v":{"v":435771.5263518138,"d":"435,772"}},{"$f":"($A8-$A7)/365.25*$D$1*(1+$D$2+(VLOOKUP('RE Appr'!BK15,'RE Appr'!$E$13:$J$59,6,FALSE)/100))","v":{"v":383827.10472279263,"d":"383,827"}},{"$f":"($A8-$A7)/365.25*$D$1*(1+$D$2+(VLOOKUP('RE Appr'!BL15,'RE Appr'!$E$13:$J$59,6,FALSE)/100))","v":{"v":423749.76043805614,"d":"423,750"}},{"$f":"($A8-$A7)/365.25*$D$1*(1+$D$2+(VLOOKUP('RE Appr'!BM15,'RE Appr'!$E$13:$J$59,6,FALSE)/100))","v":{"v":412977.13894592744,"d":"412,977"}},{"$f":"($A8-$A7)/365.25*$D$1*(1+$D$2+(VLOOKUP('RE Appr'!BN15,'RE Appr'!$E$13:$J$59,6,FALSE)/100))","v":{"v":386675.1540041068,"d":"386,675"}},{"$f":"($A8-$A7)/365.25*$D$1*(1+$D$2+(VLOOKUP('RE Appr'!BO15,'RE Appr'!$E$13:$J$59,6,FALSE)/100))","v":{"v":426041.984729592,"d":"426,042"}},{"$f":"($A8-$A7)/365.25*$D$1*(1+$D$2+(VLOOKUP('RE Appr'!BP15,'RE Appr'!$E$13:$J$59,6,FALSE)/100))","v":{"v":429315.94798083504,"d":"429,316"}},{"$f":"($A8-$A7)/365.25*$D$1*(1+$D$2+(VLOOKUP('RE Appr'!BQ15,'RE Appr'!$E$13:$J$59,6,FALSE)/100))","v":{"v":371325.66735112935,"d":"371,326"}},{"$f":"($A8-$A7)/365.25*$D$1*(1+$D$2+(VLOOKUP('RE Appr'!BR15,'RE Appr'!$E$13:$J$59,6,FALSE)/100))","v":{"v":455687.8850102669,"d":"455,688"}},{"$f":"($A8-$A7)/365.25*$D$1*(1+$D$2+(VLOOKUP('RE Appr'!BS15,'RE Appr'!$E$13:$J$59,6,FALSE)/100))","v":{"v":470497.7412731006,"d":"470,498"}},{"$f":"($A8-$A7)/365.25*$D$1*(1+$D$2+(VLOOKUP('RE Appr'!BT15,'RE Appr'!$E$13:$J$59,6,FALSE)/100))","v":{"v":419542.64202600956,"d":"419,543"}},{"$f":"($A8-$A7)/365.25*$D$1*(1+$D$2+(VLOOKUP('RE Appr'!BU15,'RE Appr'!$E$13:$J$59,6,FALSE)/100))","v":{"v":440668.1724845996,"d":"440,668"}},{"$f":"($A8-$A7)/365.25*$D$1*(1+$D$2+(VLOOKUP('RE Appr'!BV15,'RE Appr'!$E$13:$J$59,6,FALSE)/100))","v":{"v":419542.64202600956,"d":"419,543"}},{"$f":"($A8-$A7)/365.25*$D$1*(1+$D$2+(VLOOKUP('RE Appr'!BW15,'RE Appr'!$E$13:$J$59,6,FALSE)/100))","v":{"v":417653.93566050654,"d":"417,654"}},{"$f":"($A8-$A7)/365.25*$D$1*(1+$D$2+(VLOOKUP('RE Appr'!BX15,'RE Appr'!$E$13:$J$59,6,FALSE)/100))","v":{"v":375602.7378507871,"d":"375,603"}},{"$f":"($A8-$A7)/365.25*$D$1*(1+$D$2+(VLOOKUP('RE Appr'!BY15,'RE Appr'!$E$13:$J$59,6,FALSE)/100))","v":{"v":451019.08281998633,"d":"451,019"}},{"$f":"($A8-$A7)/365.25*$D$1*(1+$D$2+(VLOOKUP('RE Appr'!BZ15,'RE Appr'!$E$13:$J$59,6,FALSE)/100))","v":{"v":419342.77891854895,"d":"419,343"}},{"$f":"($A8-$A7)/365.25*$D$1*(1+$D$2+(VLOOKUP('RE Appr'!CA15,'RE Appr'!$E$13:$J$59,6,FALSE)/100))","v":{"v":470497.7412731006,"d":"470,498"}},{"$f":"($A8-$A7)/365.25*$D$1*(1+$D$2+(VLOOKUP('RE Appr'!CB15,'RE Appr'!$E$13:$J$59,6,FALSE)/100))","v":{"v":419542.64202600956,"d":"419,543"}},{"$f":"($A8-$A7)/365.25*$D$1*(1+$D$2+(VLOOKUP('RE Appr'!CC15,'RE Appr'!$E$13:$J$59,6,FALSE)/100))","v":{"v":418173.57973990415,"d":"418,174"}},{"$f":"($A8-$A7)/365.25*$D$1*(1+$D$2+(VLOOKUP('RE Appr'!CD15,'RE Appr'!$E$13:$J$59,6,FALSE)/100))","v":{"v":455687.8850102669,"d":"455,688"}},{"$f":"($A8-$A7)/365.25*$D$1*(1+$D$2+(VLOOKUP('RE Appr'!CE15,'RE Appr'!$E$13:$J$59,6,FALSE)/100))","v":{"v":455687.8850102669,"d":"455,688"}},{"$f":"($A8-$A7)/365.25*$D$1*(1+$D$2+(VLOOKUP('RE Appr'!CF15,'RE Appr'!$E$13:$J$59,6,FALSE)/100))","v":{"v":415285.5578370979,"d":"415,286"}},{"$f":"($A8-$A7)/365.25*$D$1*(1+$D$2+(VLOOKUP('RE Appr'!CG15,'RE Appr'!$E$13:$J$59,6,FALSE)/100))","v":{"v":418173.57973990415,"d":"418,174"}},{"$f":"($A8-$A7)/365.25*$D$1*(1+$D$2+(VLOOKUP('RE Appr'!CH15,'RE Appr'!$E$13:$J$59,6,FALSE)/100))","v":{"v":375602.7378507871,"d":"375,603"}},{"$f":"($A8-$A7)/365.25*$D$1*(1+$D$2+(VLOOKUP('RE Appr'!CI15,'RE Appr'!$E$13:$J$59,6,FALSE)/100))","v":{"v":411048.45995893225,"d":"411,048"}},{"$f":"($A8-$A7)/365.25*$D$1*(1+$D$2+(VLOOKUP('RE Appr'!CJ15,'RE Appr'!$E$13:$J$59,6,FALSE)/100))","v":{"v":386675.1540041068,"d":"386,675"}},{"$f":"($A8-$A7)/365.25*$D$1*(1+$D$2+(VLOOKUP('RE Appr'!CK15,'RE Appr'!$E$13:$J$59,6,FALSE)/100))","v":{"v":371325.66735112935,"d":"371,326"}},{"$f":"($A8-$A7)/365.25*$D$1*(1+$D$2+(VLOOKUP('RE Appr'!CL15,'RE Appr'!$E$13:$J$59,6,FALSE)/100))","v":{"v":412977.13894592744,"d":"412,977"}},{"$f":"($A8-$A7)/365.25*$D$1*(1+$D$2+(VLOOKUP('RE Appr'!CM15,'RE Appr'!$E$13:$J$59,6,FALSE)/100))","v":{"v":418833.85952220886,"d":"418,834"}},{"$f":"($A8-$A7)/365.25*$D$1*(1+$D$2+(VLOOKUP('RE Appr'!CN15,'RE Appr'!$E$13:$J$59,6,FALSE)/100))","v":{"v":412977.13894592744,"d":"412,977"}},{"$f":"($A8-$A7)/365.25*$D$1*(1+$D$2+(VLOOKUP('RE Appr'!CO15,'RE Appr'!$E$13:$J$59,6,FALSE)/100))","v":{"v":423749.76043805614,"d":"423,750"}},{"$f":"($A8-$A7)/365.25*$D$1*(1+$D$2+(VLOOKUP('RE Appr'!CP15,'RE Appr'!$E$13:$J$59,6,FALSE)/100))","v":{"v":412517.453798768,"d":"412,517"}},{"$f":"($A8-$A7)/365.25*$D$1*(1+$D$2+(VLOOKUP('RE Appr'!CQ15,'RE Appr'!$E$13:$J$59,6,FALSE)/100))","v":{"v":440668.1724845996,"d":"440,668"}},{"$f":"($A8-$A7)/365.25*$D$1*(1+$D$2+(VLOOKUP('RE Appr'!CR15,'RE Appr'!$E$13:$J$59,6,FALSE)/100))","v":{"v":419632.5804243669,"d":"419,633"}},{"$f":"($A8-$A7)/365.25*$D$1*(1+$D$2+(VLOOKUP('RE Appr'!CS15,'RE Appr'!$E$13:$J$59,6,FALSE)/100))","v":{"v":423729.77412731,"d":"423,730"}},{"$f":"($A8-$A7)/365.25*$D$1*(1+$D$2+(VLOOKUP('RE Appr'!CT15,'RE Appr'!$E$13:$J$59,6,FALSE)/100))","v":{"v":441107.871321013,"d":"441,108"}},{"$f":"($A8-$A7)/365.25*$D$1*(1+$D$2+(VLOOKUP('RE Appr'!CU15,'RE Appr'!$E$13:$J$59,6,FALSE)/100))","v":{"v":423749.76043805614,"d":"423,750"}},{"$f":"($A8-$A7)/365.25*$D$1*(1+$D$2+(VLOOKUP('RE Appr'!CV15,'RE Appr'!$E$13:$J$59,6,FALSE)/100))","v":{"v":419542.64202600956,"d":"419,543"}},{"$f":"($A8-$A7)/365.25*$D$1*(1+$D$2+(VLOOKUP('RE Appr'!CW15,'RE Appr'!$E$13:$J$59,6,FALSE)/100))","v":{"v":455687.8850102669,"d":"455,688"}},{"$f":"($A8-$A7)/365.25*$D$1*(1+$D$2+(VLOOKUP('RE Appr'!CX15,'RE Appr'!$E$13:$J$59,6,FALSE)/100))","v":{"v":416694.59274469543,"d":"416,695"}},{"$f":"($A8-$A7)/365.25*$D$1*(1+$D$2+(VLOOKUP('RE Appr'!CY15,'RE Appr'!$E$13:$J$59,6,FALSE)/100))","v":{"v":451019.08281998633,"d":"451,019"}},{"$f":"($A8-$A7)/365.25*$D$1*(1+$D$2+(VLOOKUP('RE Appr'!CZ15,'RE Appr'!$E$13:$J$59,6,FALSE)/100))","v":{"v":375602.7378507871,"d":"375,603"}},{"$f":"($A8-$A7)/365.25*$D$1*(1+$D$2+(VLOOKUP('RE Appr'!DA15,'RE Appr'!$E$13:$J$59,6,FALSE)/100))","v":{"v":426041.984729592,"d":"426,042"}},{"$f":"($A8-$A7)/365.25*$D$1*(1+$D$2+(VLOOKUP('RE Appr'!DB15,'RE Appr'!$E$13:$J$59,6,FALSE)/100))","v":{"v":417653.93566050654,"d":"417,654"}},{"$f":"($A8-$A7)/365.25*$D$1*(1+$D$2+(VLOOKUP('RE Appr'!DC15,'RE Appr'!$E$13:$J$59,6,FALSE)/100))","v":{"v":410728.67898699525,"d":"410,729"}},{"$f":"($A8-$A7)/365.25*$D$1*(1+$D$2+(VLOOKUP('RE Appr'!DD15,'RE Appr'!$E$13:$J$59,6,FALSE)/100))","v":{"v":470497.7412731006,"d":"470,498"}},{"$f":"($A8-$A7)/365.25*$D$1*(1+$D$2+(VLOOKUP('RE Appr'!DE15,'RE Appr'!$E$13:$J$59,6,FALSE)/100))","v":{"v":435181.93018480495,"d":"435,182"}},{"$f":"($A8-$A7)/365.25*$D$1*(1+$D$2+(VLOOKUP('RE Appr'!DF15,'RE Appr'!$E$13:$J$59,6,FALSE)/100))","v":{"v":441527.5838466804,"d":"441,528"}},{"$f":"($A8-$A7)/365.25*$D$1*(1+$D$2+(VLOOKUP('RE Appr'!DG15,'RE Appr'!$E$13:$J$59,6,FALSE)/100))","v":{"v":441527.5838466804,"d":"441,528"}}]
[{"$f":"Main!A11","v":"2026-12-30"},4,{"v":13236.880596108589,"d":"13,237"},{"$f":"($E$5-SUM(C$6:C8))*$D$3","v":{"v":1878.7994038914103,"d":"1,879"}},{"v":52112.6638870709,"d":"52,113"},{"$f":"($A9-$A8)/365.25*$D$1*(1+$D$2+(VLOOKUP('RE Appr'!L16,'RE Appr'!$E$13:$J$59,6,FALSE)/100))","v":{"v":410728.67898699525,"d":"410,729"}},{"$f":"($A9-$A8)/365.25*$D$1*(1+$D$2+(VLOOKUP('RE Appr'!M16,'RE Appr'!$E$13:$J$59,6,FALSE)/100))","v":{"v":383827.10472279263,"d":"383,827"}},{"$f":"($A9-$A8)/365.25*$D$1*(1+$D$2+(VLOOKUP('RE Appr'!N16,'RE Appr'!$E$13:$J$59,6,FALSE)/100))","v":{"v":399326.4887063655,"d":"399,326"}},{"$f":"($A9-$A8)/365.25*$D$1*(1+$D$2+(VLOOKUP('RE Appr'!O16,'RE Appr'!$E$13:$J$59,6,FALSE)/100))","v":{"v":415285.5578370979,"d":"415,286"}},{"$f":"($A9-$A8)/365.25*$D$1*(1+$D$2+(VLOOKUP('RE Appr'!P16,'RE Appr'!$E$13:$J$59,6,FALSE)/100))","v":{"v":429315.94798083504,"d":"429,316"}},{"$f":"($A9-$A8)/365.25*$D$1*(1+$D$2+(VLOOKUP('RE Appr'!Q16,'RE Appr'!$E$13:$J$59,6,FALSE)/100))","v":{"v":419289.85199380416,"d":"419,290"}},{"$f":"($A9-$A8)/365.25*$D$1*(1+$D$2+(VLOOKUP('RE Appr'!R16,'RE Appr'!$E$13:$J$59,6,FALSE)/100))","v":{"v":417916.4969295789,"d":"417,916"}},{"$f":"($A9-$A8)/365.25*$D$1*(1+$D$2+(VLOOKUP('RE Appr'!S16,'RE Appr'!$E$13:$J$59,6,FALSE)/100))","v":{"v":418173.57973990415,"d":"418,174"}},{"$f":"($A9-$A8)/365.25*$D$1*(1+$D$2+(VLOOKUP('RE Appr'!T16,'RE Appr'!$E$13:$J$59,6,FALSE)/100))","v":{"v":441107.871321013,"d":"441,108"}},{"$f":"($A9-$A8)/365.25*$D$1*(1+$D$2+(VLOOKUP('RE Appr'!U16,'RE Appr'!$E$13:$J$59,6,FALSE)/100))","v":{"v":416234.9075975359,"d":"416,235"}},{"$f":"($A9-$A8)/365.25*$D$1*(1+$D$2+(VLOOKUP('RE Appr'!V16,'RE Appr'!$E$13:$J$59,6,FALSE)/100))","v":{"v":419342.77891854895,"d":"419,343"}},{"$f":"($A9-$A8)/365.25*$D$1*(1+$D$2+(VLOOKUP('RE Appr'!W16,'RE Appr'!$E$13:$J$59,6,FALSE)/100))","v":{"v":375602.7378507871,"d":"375,603"}},{"$f":"($A9-$A8)/365.25*$D$1*(1+$D$2+(VLOOKUP('RE Appr'!X16,'RE Appr'!$E$13:$J$59,6,FALSE)/100))","v":{"v":417916.4969295789,"d":"417,916"}},{"$f":"($A9-$A8)/365.25*$D$1*(1+$D$2+(VLOOKUP('RE Appr'!Y16,'RE Appr'!$E$13:$J$59,6,FALSE)/100))","v":{"v":419289.85199380416,"d":"419,290"}},{"$f":"($A9-$A8)/365.25*$D$1*(1+$D$2+(VLOOKUP('RE Appr'!Z16,'RE Appr'!$E$13:$J$59,6,FALSE)/100))","v":{"v":419542.64202600956,"d":"419,543"}},{"$f":"($A9-$A8)/365.25*$D$1*(1+$D$2+(VLOOKUP('RE Appr'!AA16,'RE Appr'!$E$13:$J$59,6,FALSE)/100))","v":{"v":455687.8850102669,"d":"455,688"}},{"$f":"($A9-$A8)/365.25*$D$1*(1+$D$2+(VLOOKUP('RE Appr'!AB16,'RE Appr'!$E$13:$J$59,6,FALSE)/100))","v":{"v":437040.65708418895,"d":"437,041"}},{"$f":"($A9-$A8)/365.25*$D$1*(1+$D$2+(VLOOKUP('RE Appr'!AC16,'RE Appr'!$E$13:$J$59,6,FALSE)/100))","v":{"v":412517.453798768,"d":"412,517"}},{"$f":"($A9-$A8)/365.25*$D$1*(1+$D$2+(VLOOKUP('RE Appr'!AD16,'RE Appr'!$E$13:$J$59,6,FALSE)/100))","v":{"v":423749.76043805614,"d":"423,750"}},{"$f":"($A9-$A8)/365.25*$D$1*(1+$D$2+(VLOOKUP('RE Appr'!AE16,'RE Appr'!$E$13:$J$59,6,FALSE)/100))","v":{"v":455687.8850102669,"d":"455,688"}},{"$f":"($A9-$A8)/365.25*$D$1*(1+$D$2+(VLOOKUP('RE Appr'!AF16,'RE Appr'!$E$13:$J$59,6,FALSE)/100))","v":{"v":421665.9736136933,"d":"421,666"}},{"$f":"($A9-$A8)/365.25*$D$1*(1+$D$2+(VLOOKUP('RE Appr'!AG16,'RE Appr'!$E$13:$J$59,6,FALSE)/100))","v":{"v":435181.93018480495,"d":"435,182"}},{"$f":"($A9-$A8)/365.25*$D$1*(1+$D$2+(VLOOKUP('RE Appr'!AH16,'RE Appr'!$E$13:$J$59,6,FALSE)/100))","v":{"v":417653.93566050654,"d":"417,654"}},{"$f":"($A9-$A8)/365.25*$D$1*(1+$D$2+(VLOOKUP('RE Appr'!AI16,'RE Appr'!$E$13:$J$59,6,FALSE)/100))","v":{"v":410728.67898699525,"d":"410,729"}},{"$f":"($A9-$A8)/365.25*$D$1*(1+$D$2+(VLOOKUP('RE Appr'!AJ16,'RE Appr'!$E$13:$J$59,6,FALSE)/100))","v":{"v":399326.4887063655,"d":"399,326"}},{"$f":"($A9-$A8)/365.25*$D$1*(1+$D$2+(VLOOKUP('RE Appr'!AK16,'RE Appr'!$E$13:$J$59,6,FALSE)/100))","v":{"v":401385.0787132102,"d":"401,385"}},{"$f":"($A9-$A8)/365.25*$D$1*(1+$D$2+(VLOOKUP('RE Appr'!AL16,'RE Appr'!$E$13:$J$59,6,FALSE)/100))","v":{"v":441527.5838466804,"d":"441,528"}},{"$f":"($A9-$A8)/365.25*$D$1*(1+$D$2+(VLOOKUP('RE Appr'!AM16,'RE Appr'!$E$13:$J$59,6,FALSE)/100))","v":{"v":418833.85952220886,"d":"418,834"}},{"$f":"($A9-$A8)/365.25*$D$1*(1+$D$2+(VLOOKUP('RE Appr'!AN16,'RE Appr'!$E$13:$J$59,6,FALSE)/100))","v":{"v":417916.4969295789,"d":"417,916"}},{"$f":"($A9-$A8)/365.25*$D$1*(1+$D$2+(VLOOKUP('RE Appr'!AO16,'RE Appr'!$E$13:$J$59,6,FALSE)/100))","v":{"v":426041.984729592,"d":"426,042"}},{"$f":"($A9-$A8)/365.25*$D$1*(1+$D$2+(VLOOKUP('RE Appr'!AP16,'RE Appr'!$E$13:$J$59,6,FALSE)/100))","v":{"v":441527.5838466804,"d":"441,528"}},{"$f":"($A9-$A8)/365.25*$D$1*(1+$D$2+(VLOOKUP('RE Appr'!AQ16,'RE Appr'!$E$13:$J$59,6,FALSE)/100))","v":{"v":441107.871321013,"d":"441,108"}},{"$f":"($A9-$A8)/365.25*$D$1*(1+$D$2+(VLOOKUP('RE Appr'!AR16,'RE Appr'!$E$13:$J$59,6,FALSE)/100))","v":{"v":419632.5804243669,"d":"419,633"}},{"$f":"($A9-$A8)/365.25*$D$1*(1+$D$2+(VLOOKUP('RE Appr'!AS16,'RE Appr'!$E$13:$J$59,6,FALSE)/100))","v":{"v":415285.5578370979,"d":"415,286"}},{"$f":"($A9-$A8)/365.25*$D$1*(1+$D$2+(VLOOKUP('RE Appr'!AT16,'RE Appr'!$E$13:$J$59,6,FALSE)/100))","v":{"v":419632.5804243669,"d":"419,633"}},{"$f":"($A9-$A8)/365.25*$D$1*(1+$D$2+(VLOOKUP('RE Appr'!AU16,'RE Appr'!$E$13:$J$59,6,FALSE)/100))","v":{"v":416234.9075975359,"d":"416,235"}},{"$f":"($A9-$A8)/365.25*$D$1*(1+$D$2+(VLOOKUP('RE Appr'!AV16,'RE Appr'!$E$13:$J$59,6,FALSE)/100))","v":{"v":437040.65708418895,"d":"437,041"}},{"$f":"($A9-$A8)/365.25*$D$1*(1+$D$2+(VLOOKUP('RE Appr'!AW16,'RE Appr'!$E$13:$J$59,6,FALSE)/100))","v":{"v":386675.1540041068,"d":"386,675"}},{"$f":"($A9-$A8)/365.25*$D$1*(1+$D$2+(VLOOKUP('RE Appr'!AX16,'RE Appr'!$E$13:$J$59,6,FALSE)/100))","v":{"v":437040.65708418895,"d":"437,041"}},{"$f":"($A9-$A8)/365.25*$D$1*(1+$D$2+(VLOOKUP('RE Appr'!AY16,'RE Appr'!$E$13:$J$59,6,FALSE)/100))","v":{"v":436840.79397672834,"d":"436,841"}},{"$f":"($A9-$A8)/365.25*$D$1*(1+$D$2+(VLOOKUP('RE Appr'!AZ16,'RE Appr'!$E$13:$J$59,6,FALSE)/100))","v":{"v":419342.77891854895,"d":"419,343"}},{"$f":"($A9-$A8)/365.25*$D$1*(1+$D$2+(VLOOKUP('RE Appr'!BA16,'RE Appr'!$E$13:$J$59,6,FALSE)/100))","v":{"v":440668.1724845996,"d":"440,668"}},{"$f":"($A9-$A8)/365.25*$D$1*(1+$D$2+(VLOOKUP('RE Appr'!BB16,'RE Appr'!$E$13:$J$59,6,FALSE)/100))","v":{"v":407091.1704312115,"d":"407,091"}},{"$f":"($A9-$A8)/365.25*$D$1*(1+$D$2+(VLOOKUP('RE Appr'!BC16,'RE Appr'!$E$13:$J$59,6,FALSE)/100))","v":{"v":416234.9075975359,"d":"416,235"}},{"$f":"($A9-$A8)/365.25*$D$1*(1+$D$2+(VLOOKUP('RE Appr'!BD16,'RE Appr'!$E$13:$J$59,6,FALSE)/100))","v":{"v":399326.4887063655,"d":"399,326"}},{"$f":"($A9-$A8)/365.25*$D$1*(1+$D$2+(VLOOKUP('RE Appr'!BE16,'RE Appr'!$E$13:$J$59,6,FALSE)/100))","v":{"v":410728.67898699525,"d":"410,729"}},{"$f":"($A9-$A8)/365.25*$D$1*(1+$D$2+(VLOOKUP('RE Appr'!BF16,'RE Appr'!$E$13:$J$59,6,FALSE)/100))","v":{"v":431774.264202601,"d":"431,774"}},{"$f":"($A9-$A8)/365.25*$D$1*(1+$D$2+(VLOOKUP('RE Appr'!BG16,'RE Appr'!$E$13:$J$59,6,FALSE)/100))","v":{"v":412637.3716632444,"d":"412,637"}},{"$f":"($A9-$A8)/365.25*$D$1*(1+$D$2+(VLOOKUP('RE Appr'!BH16,'RE Appr'!$E$13:$J$59,6,FALSE)/100))","v":{"v":431774.264202601,"d":"431,774"}},{"$f":"($A9-$A8)/365.25*$D$1*(1+$D$2+(VLOOKUP('RE Appr'!BI16,'RE Appr'!$E$13:$J$59,6,FALSE)/100))","v":{"v":416694.59274469543,"d":"416,695"}},{"$f":"($A9-$A8)/365.25*$D$1*(1+$D$2+(VLOOKUP('RE Appr'!BJ16,'RE Appr'!$E$13:$J$59,6,FALSE)/100))","v":{"v":415847.54106599226,"d":"415,848"}},{"$f":"($A9-$A8)/365.25*$D$1*(1+$D$2+(VLOOKUP('RE Appr'!BK16,'RE Appr'!$E$13:$J$59,6,FALSE)/100))","v":{"v":417916.4969295789,"d":"417,916"}},{"$f":"($A9-$A8)/365.25*$D$1*(1+$D$2+(VLOOKUP('RE Appr'!BL16,'RE Appr'!$E$13:$J$59,6,FALSE)/100))","v":{"v":412637.3716632444,"d":"412,637"}},{"$f":"($A9-$A8)/365.25*$D$1*(1+$D$2+(VLOOKUP('RE Appr'!BM16,'RE Appr'!$E$13:$J$59,6,FALSE)/100))","v":{"v":435181.93018480495,"d":"435,182"}},{"$f":"($A9-$A8)/365.25*$D$1*(1+$D$2+(VLOOKUP('RE Appr'!BN16,'RE Appr'!$E$13:$J$59,6,FALSE)/100))","v":{"v":410728.67898699525,"d":"410,729"}},{"$f":"($A9-$A8)/365.25*$D$1*(1+$D$2+(VLOOKUP('RE Appr'!BO16,'RE Appr'!$E$13:$J$59,6,FALSE)/100))","v":{"v":412977.13894592744,"d":"412,977"}},{"$f":"($A9-$A8)/365.25*$D$1*(1+$D$2+(VLOOKUP('RE Appr'!BP16,'RE Appr'!$E$13:$J$59,6,FALSE)/100))","v":{"v":422510.60917180014,"d":"422,511"}},{"$f":"($A9-$A8)/365.25*$D$1*(1+$D$2+(VLOOKUP('RE Appr'!BQ16,'RE Appr'!$E$13:$J$59,6,FALSE)/100))","v":{"v":415847.54106599226,"d":"415,848"}},{"$f":"($A9-$A8)/365.25*$D$1*(1+$D$2+(VLOOKUP('RE Appr'!BR16,'RE Appr'!$E$13:$J$59,6,FALSE)/100))","v":{"v":412517.453798768,"d":"412,517"}},{"$f":"($A9-$A8)/365.25*$D$1*(1+$D$2+(VLOOKUP('RE Appr'!BS16,'RE Appr'!$E$13:$J$59,6,FALSE)/100))","v":{"v":420192.19712525664,"d":"420,192"}},{"$f":"($A9-$A8)/365.25*$D$1*(1+$D$2+(VLOOKUP('RE Appr'!BT16,'RE Appr'!$E$13:$J$59,6,FALSE)/100))","v":{"v":419632.5804243669,"d":"419,633"}},{"$f":"($A9-$A8)/365.25*$D$1*(1+$D$2+(VLOOKUP('RE Appr'!BU16,'RE Appr'!$E$13:$J$59,6,FALSE)/100))","v":{"v":415285.5578370979,"d":"415,286"}},{"$f":"($A9-$A8)/365.25*$D$1*(1+$D$2+(VLOOKUP('RE Appr'!BV16,'RE Appr'!$E$13:$J$59,6,FALSE)/100))","v":{"v":423729.77412731,"d":"423,730"}},{"$f":"($A9-$A8)/365.25*$D$1*(1+$D$2+(VLOOKUP('RE Appr'!BW16,'RE Appr'!$E$13:$J$59,6,FALSE)/100))","v":{"v":431774.264202601,"d":"431,774"}},{"$f":"($A9-$A8)/365.25*$D$1*(1+$D$2+(VLOOKUP('RE Appr'!BX16,'RE Appr'!$E$13:$J$59,6,FALSE)/100))","v":{"v":431774.264202601,"d":"431,774"}},{"$f":"($A9-$A8)/365.25*$D$1*(1+$D$2+(VLOOKUP('RE Appr'!BY16,'RE Appr'!$E$13:$J$59,6,FALSE)/100))","v":{"v":401385.0787132102,"d":"401,385"}},{"$f":"($A9-$A8)/365.25*$D$1*(1+$D$2+(VLOOKUP('RE Appr'!BZ16,'RE Appr'!$E$13:$J$59,6,FALSE)/100))","v":{"v":422510.60917180014,"d":"422,511"}},{"$f":"($A9-$A8)/365.25*$D$1*(1+$D$2+(VLOOKUP('RE Appr'!CA16,'RE Appr'!$E$13:$J$59,6,FALSE)/100))","v":{"v":417653.93566050654,"d":"417,654"}},{"$f":"($A9-$A8)/365.25*$D$1*(1+$D$2+(VLOOKUP('RE Appr'!CB16,'RE Appr'!$E$13:$J$59,6,FALSE)/100))","v":{"v":415285.5578370979,"d":"415,286"}},{"$f":"($A9-$A8)/365.25*$D$1*(1+$D$2+(VLOOKUP('RE Appr'!CC16,'RE Appr'!$E$13:$J$59,6,FALSE)/100))","v":{"v":451019.08281998633,"d":"451,019"}},{"$f":"($A9-$A8)/365.25*$D$1*(1+$D$2+(VLOOKUP('RE Appr'!CD16,'RE Appr'!$E$13:$J$59,6,FALSE)/100))","v":{"v":414845.85900068446,"d":"414,846"}},{"$f":"($A9-$A8)/365.25*$D$1*(1+$D$2+(VLOOKUP('RE Appr'!CE16,'RE Appr'!$E$13:$J$59,6,FALSE)/100))","v":{"v":421665.9736136933,"d":"421,666"}},{"$f":"($A9-$A8)/365.25*$D$1*(1+$D$2+(VLOOKUP('RE Appr'!CF16,'RE Appr'!$E$13:$J$59,6,FALSE)/100))","v":{"v":470497.7412731006,"d":"470,498"}},{"$f":"($A9-$A8)/365.25*$D$1*(1+$D$2+(VLOOKUP('RE Appr'!CG16,'RE Appr'!$E$13:$J$59,6,FALSE)/100))","v":{"v":415847.54106599226,"d":"415,848"}},{"$f":"($A9-$A8)/365.25*$D$1*(1+$D$2+(VLOOKUP('RE Appr'!CH16,'RE Appr'!$E$13:$J$59,6,FALSE)/100))","v":{"v":415045.72210814507,"d":"415,046"}},{"$f":"($A9-$A8)/365.25*$D$1*(1+$D$2+(VLOOKUP('RE Appr'!CI16,'RE Appr'!$E$13:$J$59,6,FALSE)/100))","v":{"v":431774.264202601,"d":"431,774"}},{"$f":"($A9-$A8)/365.25*$D$1*(1+$D$2+(VLOOKUP('RE Appr'!CJ16,'RE Appr'!$E$13:$J$59,6,FALSE)/100))","v":{"v":437040.65708418895,"d":"437,041"}},{"$f":"($A9-$A8)/365.25*$D$1*(1+$D$2+(VLOOKUP('RE Appr'!CK16,'RE Appr'!$E$13:$J$59,6,FALSE)/100))","v":{"v":437040.65708418895,"d":"437,041"}},{"$f":"($A9-$A8)/365.25*$D$1*(1+$D$2+(VLOOKUP('RE Appr'!CL16,'RE Appr'!$E$13:$J$59,6,FALSE)/100))","v":{"v":418173.57973990415,"d":"418,174"}},{"$f":"($A9-$A8)/365.25*$D$1*(1+$D$2+(VLOOKUP('RE Appr'!CM16,'RE Appr'!$E$13:$J$59,6,FALSE)/100))","v":{"v":399326.4887063655,"d":"399,326"}},{"$f":"($A9-$A8)/365.25*$D$1*(1+$D$2+(VLOOKUP('RE Appr'!CN16,'RE Appr'!$E$13:$J$59,6,FALSE)/100))","v":{"v":470497.7412731006,"d":"470,498"}},{"$f":"($A9-$A8)/365.25*$D$1*(1+$D$2+(VLOOKUP('RE Appr'!CO16,'RE Appr'!$E$13:$J$59,6,FALSE)/100))","v":{"v":419542.64202600956,"d":"419,543"}},{"$f":"($A9-$A8)/365.25*$D$1*(1+$D$2+(VLOOKUP('RE Appr'!CP16,'RE Appr'!$E$13:$J$59,6,FALSE)/100))","v":{"v":431774.264202601,"d":"431,774"}},{"$f":"($A9-$A8)/365.25*$D$1*(1+$D$2+(VLOOKUP('RE Appr'!CQ16,'RE Appr'!$E$13:$J$59,6,FALSE)/100))","v":{"v":436840.79397672834,"d":"436,841"}},{"$f":"($A9-$A8)/365.25*$D$1*(1+$D$2+(VLOOKUP('RE Appr'!CR16,'RE Appr'!$E$13:$J$59,6,FALSE)/100))","v":{"v":435771.5263518138,"d":"435,772"}},{"$f":"($A9-$A8)/365.25*$D$1*(1+$D$2+(VLOOKUP('RE Appr'!CS16,'RE Appr'!$E$13:$J$59,6,FALSE)/100))","v":{"v":415847.54106599226,"d":"415,848"}},{"$f":"($A9-$A8)/365.25*$D$1*(1+$D$2+(VLOOKUP('RE Appr'!CT16,'RE Appr'!$E$13:$J$59,6,FALSE)/100))","v":{"v":436840.79397672834,"d":"436,841"}},{"$f":"($A9-$A8)/365.25*$D$1*(1+$D$2+(VLOOKUP('RE Appr'!CU16,'RE Appr'!$E$13:$J$59,6,FALSE)/100))","v":{"v":386675.1540041068,"d":"386,675"}},{"$f":"($A9-$A8)/365.25*$D$1*(1+$D$2+(VLOOKUP('RE Appr'!CV16,'RE Appr'!$E$13:$J$59,6,FALSE)/100))","v":{"v":418173.57973990415,"d":"418,174"}},{"$f":"($A9-$A8)/365.25*$D$1*(1+$D$2+(VLOOKUP('RE Appr'!CW16,'RE Appr'!$E$13:$J$59,6,FALSE)/100))","v":{"v":375602.7378507871,"d":"375,603"}},{"$f":"($A9-$A8)/365.25*$D$1*(1+$D$2+(VLOOKUP('RE Appr'!CX16,'RE Appr'!$E$13:$J$59,6,FALSE)/100))","v":{"v":419542.64202600956,"d":"419,543"}},{"$f":"($A9-$A8)/365.25*$D$1*(1+$D$2+(VLOOKUP('RE Appr'!CY16,'RE Appr'!$E$13:$J$59,6,FALSE)/100))","v":{"v":412637.3716632444,"d":"412,637"}},{"$f":"($A9-$A8)/365.25*$D$1*(1+$D$2+(VLOOKUP('RE Appr'!CZ16,'RE Appr'!$E$13:$J$59,6,FALSE)/100))","v":{"v":419289.85199380416,"d":"419,290"}},{"$f":"($A9-$A8)/365.25*$D$1*(1+$D$2+(VLOOKUP('RE Appr'!DA16,'RE Appr'!$E$13:$J$59,6,FALSE)/100))","v":{"v":412277.6180698152,"d":"412,278"}},{"$f":"($A9-$A8)/365.25*$D$1*(1+$D$2+(VLOOKUP('RE Appr'!DB16,'RE Appr'!$E$13:$J$59,6,FALSE)/100))","v":{"v":399326.4887063655,"d":"399,326"}},{"$f":"($A9-$A8)/365.25*$D$1*(1+$D$2+(VLOOKUP('RE Appr'!DC16,'RE Appr'!$E$13:$J$59,6,FALSE)/100))","v":{"v":399326.4887063655,"d":"399,326"}},{"$f":"($A9-$A8)/365.25*$D$1*(1+$D$2+(VLOOKUP('RE Appr'!DD16,'RE Appr'!$E$13:$J$59,6,FALSE)/100))","v":{"v":418833.85952220886,"d":"418,834"}},{"$f":"($A9-$A8)/365.25*$D$1*(1+$D$2+(VLOOKUP('RE Appr'!DE16,'RE Appr'!$E$13:$J$59,6,FALSE)/100))","v":{"v":414845.85900068446,"d":"414,846"}},{"$f":"($A9-$A8)/365.25*$D$1*(1+$D$2+(VLOOKUP('RE Appr'!DF16,'RE Appr'!$E$13:$J$59,6,FALSE)/100))","v":{"v":418833.85952220886,"d":"418,834"}},{"$f":"($A9-$A8)/365.25*$D$1*(1+$D$2+(VLOOKUP('RE Appr'!DG16,'RE Appr'!$E$13:$J$59,6,FALSE)/100))","v":{"v":451019.08281998633,"d":"451,019"}}]
[{"$f":"Main!A12","v":"2027-12-31"},5,{"v":13617.440913246712,"d":"13,617"},{"$f":"($E$5-SUM(C$6:C9))*$D$3","v":{"v":1498.2390867532883,"d":"1,498"}},{"v":38495.22297382419,"d":"38,495"},{"$f":"($A10-$A9)/365.25*$D$1*(1+$D$2+(VLOOKUP('RE Appr'!L17,'RE Appr'!$E$13:$J$59,6,FALSE)/100))","v":{"v":410390.9650924025,"d":"410,391"}},{"$f":"($A10-$A9)/365.25*$D$1*(1+$D$2+(VLOOKUP('RE Appr'!M17,'RE Appr'!$E$13:$J$59,6,FALSE)/100))","v":{"v":441875.4825462012,"d":"441,875"}},{"$f":"($A10-$A9)/365.25*$D$1*(1+$D$2+(VLOOKUP('RE Appr'!N17,'RE Appr'!$E$13:$J$59,6,FALSE)/100))","v":{"v":411853.9630390144,"d":"411,854"}},{"$f":"($A10-$A9)/365.25*$D$1*(1+$D$2+(VLOOKUP('RE Appr'!O17,'RE Appr'!$E$13:$J$59,6,FALSE)/100))","v":{"v":423668.1724845995,"d":"423,668"}},{"$f":"($A10-$A9)/365.25*$D$1*(1+$D$2+(VLOOKUP('RE Appr'!P17,'RE Appr'!$E$13:$J$59,6,FALSE)/100))","v":{"v":387734.53798767965,"d":"387,735"}},{"$f":"($A10-$A9)/365.25*$D$1*(1+$D$2+(VLOOKUP('RE Appr'!Q17,'RE Appr'!$E$13:$J$59,6,FALSE)/100))","v":{"v":417836.22176591377,"d":"417,836"}},{"$f":"($A10-$A9)/365.25*$D$1*(1+$D$2+(VLOOKUP('RE Appr'!R17,'RE Appr'!$E$13:$J$59,6,FALSE)/100))","v":{"v":436965.42094455846,"d":"436,965"}},{"$f":"($A10-$A9)/365.25*$D$1*(1+$D$2+(VLOOKUP('RE Appr'!S17,'RE Appr'!$E$13:$J$59,6,FALSE)/100))","v":{"v":420692.0739219712,"d":"420,692"}},{"$f":"($A10-$A9)/365.25*$D$1*(1+$D$2+(VLOOKUP('RE Appr'!T17,'RE Appr'!$E$13:$J$59,6,FALSE)/100))","v":{"v":441875.4825462012,"d":"441,875"}},{"$f":"($A10-$A9)/365.25*$D$1*(1+$D$2+(VLOOKUP('RE Appr'!U17,'RE Appr'!$E$13:$J$59,6,FALSE)/100))","v":{"v":413767.8850102669,"d":"413,768"}},{"$f":"($A10-$A9)/365.25*$D$1*(1+$D$2+(VLOOKUP('RE Appr'!V17,'RE Appr'!$E$13:$J$59,6,FALSE)/100))","v":{"v":412174.62012320326,"d":"412,175"}},{"$f":"($A10-$A9)/365.25*$D$1*(1+$D$2+(VLOOKUP('RE Appr'!W17,'RE Appr'!$E$13:$J$59,6,FALSE)/100))","v":{"v":400420.5338809035,"d":"400,421"}},{"$f":"($A10-$A9)/365.25*$D$1*(1+$D$2+(VLOOKUP('RE Appr'!X17,'RE Appr'!$E$13:$J$59,6,FALSE)/100))","v":{"v":441875.4825462012,"d":"441,875"}},{"$f":"($A10-$A9)/365.25*$D$1*(1+$D$2+(VLOOKUP('RE Appr'!Y17,'RE Appr'!$E$13:$J$59,6,FALSE)/100))","v":{"v":420692.0739219712,"d":"420,692"}},{"$f":"($A10-$A9)/365.25*$D$1*(1+$D$2+(VLOOKUP('RE Appr'!Z17,'RE Appr'!$E$13:$J$59,6,FALSE)/100))","v":{"v":412174.62012320326,"d":"412,175"}},{"$f":"($A10-$A9)/365.25*$D$1*(1+$D$2+(VLOOKUP('RE Appr'!AA17,'RE Appr'!$E$13:$J$59,6,FALSE)/100))","v":{"v":424890.67761806975,"d":"424,891"}},{"$f":"($A10-$A9)/365.25*$D$1*(1+$D$2+(VLOOKUP('RE Appr'!AB17,'RE Appr'!$E$13:$J$59,6,FALSE)/100))","v":{"v":436965.42094455846,"d":"436,965"}},{"$f":"($A10-$A9)/365.25*$D$1*(1+$D$2+(VLOOKUP('RE Appr'!AC17,'RE Appr'!$E$13:$J$59,6,FALSE)/100))","v":{"v":411853.9630390144,"d":"411,854"}},{"$f":"($A10-$A9)/365.25*$D$1*(1+$D$2+(VLOOKUP('RE Appr'!AD17,'RE Appr'!$E$13:$J$59,6,FALSE)/100))","v":{"v":402484.7638603696,"d":"402,485"}},{"$f":"($A10-$A9)/365.25*$D$1*(1+$D$2+(VLOOKUP('RE Appr'!AE17,'RE Appr'!$E$13:$J$59,6,FALSE)/100))","v":{"v":442737.24845995894,"d":"442,737"}},{"$f":"($A10-$A9)/365.25*$D$1*(1+$D$2+(VLOOKUP('RE Appr'!AF17,'RE Appr'!$E$13:$J$59,6,FALSE)/100))","v":{"v":471786.7761806981,"d":"471,787"}},{"$f":"($A10-$A9)/365.25*$D$1*(1+$D$2+(VLOOKUP('RE Appr'!AG17,'RE Appr'!$E$13:$J$59,6,FALSE)/100))","v":{"v":413647.6386036961,"d":"413,648"}},{"$f":"($A10-$A9)/365.25*$D$1*(1+$D$2+(VLOOKUP('RE Appr'!AH17,'RE Appr'!$E$13:$J$59,6,FALSE)/100))","v":{"v":417375.27720739215,"d":"417,375"}},{"$f":"($A10-$A9)/365.25*$D$1*(1+$D$2+(VLOOKUP('RE Appr'!AI17,'RE Appr'!$E$13:$J$59,6,FALSE)/100))","v":{"v":402484.7638603696,"d":"402,485"}},{"$f":"($A10-$A9)/365.25*$D$1*(1+$D$2+(VLOOKUP('RE Appr'!AJ17,'RE Appr'!$E$13:$J$59,6,FALSE)/100))","v":{"v":416423.3264887064,"d":"416,423"}},{"$f":"($A10-$A9)/365.25*$D$1*(1+$D$2+(VLOOKUP('RE Appr'!AK17,'RE Appr'!$E$13:$J$59,6,FALSE)/100))","v":{"v":471786.7761806981,"d":"471,787"}},{"$f":"($A10-$A9)/365.25*$D$1*(1+$D$2+(VLOOKUP('RE Appr'!AL17,'RE Appr'!$E$13:$J$59,6,FALSE)/100))","v":{"v":413647.6386036961,"d":"413,648"}},{"$f":"($A10-$A9)/365.25*$D$1*(1+$D$2+(VLOOKUP('RE Appr'!AM17,'RE Appr'!$E$13:$J$59,6,FALSE)/100))","v":{"v":420491.66324435314,"d":"420,492"}},{"$f":"($A10-$A9)/365.25*$D$1*(1+$D$2+(VLOOKUP('RE Appr'!AN17,'RE Appr'!$E$13:$J$59,6,FALSE)/100))","v":{"v":408206.48870636546,"d":"408,206"}},{"$f":"($A10-$A9)/365.25*$D$1*(1+$D$2+(VLOOKUP('RE Appr'!AO17,'RE Appr'!$E$13:$J$59,6,FALSE)/100))","v":{"v":435402.2176591376,"d":"435,402"}},{"$f":"($A10-$A9)/365.25*$D$1*(1+$D$2+(VLOOKUP('RE Appr'!AP17,'RE Appr'!$E$13:$J$59,6,FALSE)/100))","v":{"v":416182.8336755646,"d":"416,183"}},{"$f":"($A10-$A9)/365.25*$D$1*(1+$D$2+(VLOOKUP('RE Appr'!AQ17,'RE Appr'!$E$13:$J$59,6,FALSE)/100))","v":{"v":423668.1724845995,"d":"423,668"}},{"$f":"($A10-$A9)/365.25*$D$1*(1+$D$2+(VLOOKUP('RE Appr'!AR17,'RE Appr'!$E$13:$J$59,6,FALSE)/100))","v":{"v":416986.8493976799,"d":"416,987"}},{"$f":"($A10-$A9)/365.25*$D$1*(1+$D$2+(VLOOKUP('RE Appr'!AS17,'RE Appr'!$E$13:$J$59,6,FALSE)/100))","v":{"v":376631.7864476386,"d":"376,632"}},{"$f":"($A10-$A9)/365.25*$D$1*(1+$D$2+(VLOOKUP('RE Appr'!AT17,'RE Appr'!$E$13:$J$59,6,FALSE)/100))","v":{"v":384878.68583162216,"d":"384,879"}},{"$f":"($A10-$A9)/365.25*$D$1*(1+$D$2+(VLOOKUP('RE Appr'!AU17,'RE Appr'!$E$13:$J$59,6,FALSE)/100))","v":{"v":411853.9630390144,"d":"411,854"}},{"$f":"($A10-$A9)/365.25*$D$1*(1+$D$2+(VLOOKUP('RE Appr'!AV17,'RE Appr'!$E$13:$J$59,6,FALSE)/100))","v":{"v":384878.68583162216,"d":"384,879"}},{"$f":"($A10-$A9)/365.25*$D$1*(1+$D$2+(VLOOKUP('RE Appr'!AW17,'RE Appr'!$E$13:$J$59,6,FALSE)/100))","v":{"v":441875.4825462012,"d":"441,875"}},{"$f":"($A10-$A9)/365.25*$D$1*(1+$D$2+(VLOOKUP('RE Appr'!AX17,'RE Appr'!$E$13:$J$59,6,FALSE)/100))","v":{"v":416182.8336755646,"d":"416,183"}},{"$f":"($A10-$A9)/365.25*$D$1*(1+$D$2+(VLOOKUP('RE Appr'!AY17,'RE Appr'!$E$13:$J$59,6,FALSE)/100))","v":{"v":402484.7638603696,"d":"402,485"}},{"$f":"($A10-$A9)/365.25*$D$1*(1+$D$2+(VLOOKUP('RE Appr'!AZ17,'RE Appr'!$E$13:$J$59,6,FALSE)/100))","v":{"v":372342.9979466119,"d":"372,343"}},{"$f":"($A10-$A9)/365.25*$D$1*(1+$D$2+(VLOOKUP('RE Appr'!BA17,'RE Appr'!$E$13:$J$59,6,FALSE)/100))","v":{"v":420438.5913143351,"d":"420,439"}},{"$f":"($A10-$A9)/365.25*$D$1*(1+$D$2+(VLOOKUP('RE Appr'!BB17,'RE Appr'!$E$13:$J$59,6,FALSE)/100))","v":{"v":432957.20739219716,"d":"432,957"}},{"$f":"($A10-$A9)/365.25*$D$1*(1+$D$2+(VLOOKUP('RE Appr'!BC17,'RE Appr'!$E$13:$J$59,6,FALSE)/100))","v":{"v":418798.1930184805,"d":"418,798"}},{"$f":"($A10-$A9)/365.25*$D$1*(1+$D$2+(VLOOKUP('RE Appr'!BD17,'RE Appr'!$E$13:$J$59,6,FALSE)/100))","v":{"v":420491.66324435314,"d":"420,492"}},{"$f":"($A10-$A9)/365.25*$D$1*(1+$D$2+(VLOOKUP('RE Appr'!BE17,'RE Appr'!$E$13:$J$59,6,FALSE)/100))","v":{"v":432957.20739219716,"d":"432,957"}},{"$f":"($A10-$A9)/365.25*$D$1*(1+$D$2+(VLOOKUP('RE Appr'!BF17,'RE Appr'!$E$13:$J$59,6,FALSE)/100))","v":{"v":412174.62012320326,"d":"412,175"}},{"$f":"($A10-$A9)/365.25*$D$1*(1+$D$2+(VLOOKUP('RE Appr'!BG17,'RE Appr'!$E$13:$J$59,6,FALSE)/100))","v":{"v":402484.7638603696,"d":"402,485"}},{"$f":"($A10-$A9)/365.25*$D$1*(1+$D$2+(VLOOKUP('RE Appr'!BH17,'RE Appr'!$E$13:$J$59,6,FALSE)/100))","v":{"v":456936.3449691991,"d":"456,936"}},{"$f":"($A10-$A9)/365.25*$D$1*(1+$D$2+(VLOOKUP('RE Appr'!BI17,'RE Appr'!$E$13:$J$59,6,FALSE)/100))","v":{"v":423668.1724845995,"d":"423,668"}},{"$f":"($A10-$A9)/365.25*$D$1*(1+$D$2+(VLOOKUP('RE Appr'!BJ17,'RE Appr'!$E$13:$J$59,6,FALSE)/100))","v":{"v":430492.15605749487,"d":"430,492"}},{"$f":"($A10-$A9)/365.25*$D$1*(1+$D$2+(VLOOKUP('RE Appr'!BK17,'RE Appr'!$E$13:$J$59,6,FALSE)/100))","v":{"v":452254.75154004106,"d":"452,255"}},{"$f":"($A10-$A9)/365.25*$D$1*(1+$D$2+(VLOOKUP('RE Appr'!BL17,'RE Appr'!$E$13:$J$59,6,FALSE)/100))","v":{"v":419061.4736334955,"d":"419,061"}},{"$f":"($A10-$A9)/365.25*$D$1*(1+$D$2+(VLOOKUP('RE Appr'!BM17,'RE Appr'!$E$13:$J$59,6,FALSE)/100))","v":{"v":435402.2176591376,"d":"435,402"}},{"$f":"($A10-$A9)/365.25*$D$1*(1+$D$2+(VLOOKUP('RE Appr'!BN17,'RE Appr'!$E$13:$J$59,6,FALSE)/100))","v":{"v":416182.8336755646,"d":"416,183"}},{"$f":"($A10-$A9)/365.25*$D$1*(1+$D$2+(VLOOKUP('RE Appr'!BO17,'RE Appr'!$E$13:$J$59,6,FALSE)/100))","v":{"v":418798.1930184805,"d":"418,798"}},{"$f":"($A10-$A9)/365.25*$D$1*(1+$D$2+(VLOOKUP('RE Appr'!BP17,'RE Appr'!$E$13:$J$59,6,FALSE)/100))","v":{"v":411853.9630390144,"d":"411,854"}},{"$f":"($A10-$A9)/365.25*$D$1*(1+$D$2+(VLOOKUP('RE Appr'!BQ17,'RE Appr'!$E$13:$J$59,6,FALSE)/100))","v":{"v":419319.26078028744,"d":"419,319"}},{"$f":"($A10-$A9)/365.25*$D$1*(1+$D$2+(VLOOKUP('RE Appr'!BR17,'RE Appr'!$E$13:$J$59,6,FALSE)/100))","v":{"v":441875.4825462012,"d":"441,875"}},{"$f":"($A10-$A9)/365.25*$D$1*(1+$D$2+(VLOOKUP('RE Appr'!BS17,'RE Appr'!$E$13:$J$59,6,FALSE)/100))","v":{"v":438238.0287474333,"d":"438,238"}},{"$f":"($A10-$A9)/365.25*$D$1*(1+$D$2+(VLOOKUP('RE Appr'!BT17,'RE Appr'!$E$13:$J$59,6,FALSE)/100))","v":{"v":412174.62012320326,"d":"412,175"}},{"$f":"($A10-$A9)/365.25*$D$1*(1+$D$2+(VLOOKUP('RE Appr'!BU17,'RE Appr'!$E$13:$J$59,6,FALSE)/100))","v":{"v":414108.58316221763,"d":"414,109"}},{"$f":"($A10-$A9)/365.25*$D$1*(1+$D$2+(VLOOKUP('RE Appr'!BV17,'RE Appr'!$E$13:$J$59,6,FALSE)/100))","v":{"v":413407.1457905544,"d":"413,407"}},{"$f":"($A10-$A9)/365.25*$D$1*(1+$D$2+(VLOOKUP('RE Appr'!BW17,'RE Appr'!$E$13:$J$59,6,FALSE)/100))","v":{"v":441875.4825462012,"d":"441,875"}},{"$f":"($A10-$A9)/365.25*$D$1*(1+$D$2+(VLOOKUP('RE Appr'!BX17,'RE Appr'!$E$13:$J$59,6,FALSE)/100))","v":{"v":420782.2587268994,"d":"420,782"}},{"$f":"($A10-$A9)/365.25*$D$1*(1+$D$2+(VLOOKUP('RE Appr'!BY17,'RE Appr'!$E$13:$J$59,6,FALSE)/100))","v":{"v":419319.26078028744,"d":"419,319"}},{"$f":"($A10-$A9)/365.25*$D$1*(1+$D$2+(VLOOKUP('RE Appr'!BZ17,'RE Appr'!$E$13:$J$59,6,FALSE)/100))","v":{"v":415982.4229979466,"d":"415,982"}},{"$f":"($A10-$A9)/365.25*$D$1*(1+$D$2+(VLOOKUP('RE Appr'!CA17,'RE Appr'!$E$13:$J$59,6,FALSE)/100))","v":{"v":402484.7638603696,"d":"402,485"}},{"$f":"($A10-$A9)/365.25*$D$1*(1+$D$2+(VLOOKUP('RE Appr'!CB17,'RE Appr'!$E$13:$J$59,6,FALSE)/100))","v":{"v":384878.68583162216,"d":"384,879"}},{"$f":"($A10-$A9)/365.25*$D$1*(1+$D$2+(VLOOKUP('RE Appr'!CC17,'RE Appr'!$E$13:$J$59,6,FALSE)/100))","v":{"v":376631.7864476386,"d":"376,632"}},{"$f":"($A10-$A9)/365.25*$D$1*(1+$D$2+(VLOOKUP('RE Appr'!CD17,'RE Appr'!$E$13:$J$59,6,FALSE)/100))","v":{"v":411853.9630390144,"d":"411,854"}},{"$f":"($A10-$A9)/365.25*$D$1*(1+$D$2+(VLOOKUP('RE Appr'!CE17,'RE Appr'!$E$13:$J$59,6,FALSE)/100))","v":{"v":376631.7864476386,"d":"376,632"}},{"$f":"($A10-$A9)/365.25*$D$1*(1+$D$2+(VLOOKUP('RE Appr'!CF17,'RE Appr'!$E$13:$J$59,6,FALSE)/100))","v":{"v":436374.2094455852,"d":"436,374"}},{"$f":"($A10-$A9)/365.25*$D$1*(1+$D$2+(VLOOKUP('RE Appr'!CG17,'RE Appr'!$E$13:$J$59,6,FALSE)/100))","v":{"v":435402.2176591376,"d":"435,402"}},{"$f":"($A10-$A9)/365.25*$D$1*(1+$D$2+(VLOOKUP('RE Appr'!CH17,'RE Appr'!$E$13:$J$59,6,FALSE)/100))","v":{"v":372342.9979466119,"d":"372,343"}},{"$f":"($A10-$A9)/365.25*$D$1*(1+$D$2+(VLOOKUP('RE Appr'!CI17,'RE Appr'!$E$13:$J$59,6,FALSE)/100))","v":{"v":416182.8336755646,"d":"416,183"}},{"$f":"($A10-$A9)/365.25*$D$1*(1+$D$2+(VLOOKUP('RE Appr'!CJ17,'RE Appr'!$E$13:$J$59,6,FALSE)/100))","v":{"v":417375.27720739215,"d":"417,375"}},{"$f":"($A10-$A9)/365.25*$D$1*(1+$D$2+(VLOOKUP('RE Appr'!CK17,'RE Appr'!$E$13:$J$59,6,FALSE)/100))","v":{"v":417836.22176591377,"d":"417,836"}},{"$f":"($A10-$A9)/365.25*$D$1*(1+$D$2+(VLOOKUP('RE Appr'!CL17,'RE Appr'!$E$13:$J$59,6,FALSE)/100))","v":{"v":417375.27720739215,"d":"417,375"}},{"$f":"($A10-$A9)/365.25*$D$1*(1+$D$2+(VLOOKUP('RE Appr'!CM17,'RE Appr'!$E$13:$J$59,6,FALSE)/100))","v":{"v":413407.1457905544,"d":"413,407"}},{"$f":"($A10-$A9)/365.25*$D$1*(1+$D$2+(VLOOKUP('RE Appr'!CN17,'RE Appr'!$E$13:$J$59,6,FALSE)/100))","v":{"v":412174.62012320326,"d":"412,175"}},{"$f":"($A10-$A9)/365.25*$D$1*(1+$D$2+(VLOOKUP('RE Appr'!CO17,'RE Appr'!$E$13:$J$59,6,FALSE)/100))","v":{"v":372342.9979466119,"d":"372,343"}},{"$f":"($A10-$A9)/365.25*$D$1*(1+$D$2+(VLOOKUP('RE Appr'!CP17,'RE Appr'!$E$13:$J$59,6,FALSE)/100))","v":{"v":419319.26078028744,"d":"419,319"}},{"$f":"($A10-$A9)/365.25*$D$1*(1+$D$2+(VLOOKUP('RE Appr'!CQ17,'RE Appr'!$E$13:$J$59,6,FALSE)/100))","v":{"v":424890.67761806975,"d":"424,891"}},{"$f":"($A10-$A9)/365.25*$D$1*(1+$D$2+(VLOOKUP('RE Appr'!CR17,'RE Appr'!$E$13:$J$59,6,FALSE)/100))","v":{"v":408206.48870636546,"d":"408,206"}},{"$f":"($A10-$A9)/365.25*$D$1*(1+$D$2+(VLOOKUP('RE Appr'!CS17,'RE Appr'!$E$13:$J$59,6,FALSE)/100))","v":{"v":456936.3449691991,"d":"456,936"}},{"$f":"($A10-$A9)/365.25*$D$1*(1+$D$2+(VLOOKUP('RE Appr'!CT17,'RE Appr'!$E$13:$J$59,6,FALSE)/100))","v":{"v":471786.7761806981,"d":"471,787"}},{"$f":"($A10-$A9)/365.25*$D$1*(1+$D$2+(VLOOKUP('RE Appr'!CU17,'RE Appr'!$E$13:$J$59,6,FALSE)/100))","v":{"v":400420.5338809035,"d":"400,421"}},{"$f":"($A10-$A9)/365.25*$D$1*(1+$D$2+(VLOOKUP('RE Appr'!CV17,'RE Appr'!$E$13:$J$59,6,FALSE)/100))","v":{"v":435402.2176591376,"d":"435,402"}},{"$f":"($A10-$A9)/365.25*$D$1*(1+$D$2+(VLOOKUP('RE Appr'!CW17,'RE Appr'!$E$13:$J$59,6,FALSE)/100))","v":{"v":410390.9650924025,"d":"410,391"}},{"$f":"($A10-$A9)/365.25*$D$1*(1+$D$2+(VLOOKUP('RE Appr'!CX17,'RE Appr'!$E$13:$J$59,6,FALSE)/100))","v":{"v":416986.8493976799,"d":"416,987"}},{"$f":"($A10-$A9)/365.25*$D$1*(1+$D$2+(VLOOKUP('RE Appr'!CY17,'RE Appr'!$E$13:$J$59,6,FALSE)/100))","v":{"v":420491.66324435314,"d":"420,492"}},{"$f":"($A10-$A9)/365.25*$D$1*(1+$D$2+(VLOOKUP('RE Appr'!CZ17,'RE Appr'!$E$13:$J$59,6,FALSE)/100))","v":{"v":384878.68583162216,"d":"384,879"}},{"$f":"($A10-$A9)/365.25*$D$1*(1+$D$2+(VLOOKUP('RE Appr'!DA17,'RE Appr'!$E$13:$J$59,6,FALSE)/100))","v":{"v":441875.4825462012,"d":"441,875"}},{"$f":"($A10-$A9)/365.25*$D$1*(1+$D$2+(VLOOKUP('RE Appr'!DB17,'RE Appr'!$E$13:$J$59,6,FALSE)/100))","v":{"v":442316.386036961,"d":"442,316"}},{"$f":"($A10-$A9)/365.25*$D$1*(1+$D$2+(VLOOKUP('RE Appr'!DC17,'RE Appr'!$E$13:$J$59,6,FALSE)/100))","v":{"v":441875.4825462012,"d":"441,875"}},{"$f":"($A10-$A9)/365.25*$D$1*(1+$D$2+(VLOOKUP('RE Appr'!DD17,'RE Appr'!$E$13:$J$59,6,FALSE)/100))","v":{"v":419981.34954829706,"d":"419,981"}},{"$f":"($A10-$A9)/365.25*$D$1*(1+$D$2+(VLOOKUP('RE Appr'!DE17,'RE Appr'!$E$13:$J$59,6,FALSE)/100))","v":{"v":419319.26078028744,"d":"419,319"}},{"$f":"($A10-$A9)/365.25*$D$1*(1+$D$2+(VLOOKUP('RE Appr'!DF17,'RE Appr'!$E$13:$J$59,6,FALSE)/100))","v":{"v":419319.26078028744,"d":"419,319"}},{"$f":"($A10-$A9)/365.25*$D$1*(1+$D$2+(VLOOKUP('RE Appr'!DG17,'RE Appr'!$E$13:$J$59,6,FALSE)/100))","v":{"v":412174.62012320326,"d":"412,175"}}]
[{"$f":"Main!A13","v":"2028-12-30"},6,{"v":14008.942339502555,"d":"14,009"},{"$f":"($E$5-SUM(C$6:C10))*$D$3","v":{"v":1106.7376604974454,"d":"1,107"}},{"v":24486.280634321633,"d":"24,486"},{"$f":"($A11-$A10)/365.25*$D$1*(1+$D$2+(VLOOKUP('RE Appr'!L18,'RE Appr'!$E$13:$J$59,6,FALSE)/100))","v":{"v":436840.79397672834,"d":"436,841"}},{"$f":"($A11-$A10)/365.25*$D$1*(1+$D$2+(VLOOKUP('RE Appr'!M18,'RE Appr'!$E$13:$J$59,6,FALSE)/100))","v":{"v":416234.9075975359,"d":"416,235"}},{"$f":"($A11-$A10)/365.25*$D$1*(1+$D$2+(VLOOKUP('RE Appr'!N18,'RE Appr'!$E$13:$J$59,6,FALSE)/100))","v":{"v":415847.54106599226,"d":"415,848"}},{"$f":"($A11-$A10)/365.25*$D$1*(1+$D$2+(VLOOKUP('RE Appr'!O18,'RE Appr'!$E$13:$J$59,6,FALSE)/100))","v":{"v":434212.5941136209,"d":"434,213"}},{"$f":"($A11-$A10)/365.25*$D$1*(1+$D$2+(VLOOKUP('RE Appr'!P18,'RE Appr'!$E$13:$J$59,6,FALSE)/100))","v":{"v":420192.19712525664,"d":"420,192"}},{"$f":"($A11-$A10)/365.25*$D$1*(1+$D$2+(VLOOKUP('RE Appr'!Q18,'RE Appr'!$E$13:$J$59,6,FALSE)/100))","v":{"v":451019.08281998633,"d":"451,019"}},{"$f":"($A11-$A10)/365.25*$D$1*(1+$D$2+(VLOOKUP('RE Appr'!R18,'RE Appr'!$E$13:$J$59,6,FALSE)/100))","v":{"v":470497.7412731006,"d":"470,498"}},{"$f":"($A11-$A10)/365.25*$D$1*(1+$D$2+(VLOOKUP('RE Appr'!S18,'RE Appr'!$E$13:$J$59,6,FALSE)/100))","v":{"v":415847.54106599226,"d":"415,848"}},{"$f":"($A11-$A10)/365.25*$D$1*(1+$D$2+(VLOOKUP('RE Appr'!T18,'RE Appr'!$E$13:$J$59,6,FALSE)/100))","v":{"v":418833.85952220886,"d":"418,834"}},{"$f":"($A11-$A10)/365.25*$D$1*(1+$D$2+(VLOOKUP('RE Appr'!U18,'RE Appr'!$E$13:$J$59,6,FALSE)/100))","v":{"v":435771.5263518138,"d":"435,772"}},{"$f":"($A11-$A10)/365.25*$D$1*(1+$D$2+(VLOOKUP('RE Appr'!V18,'RE Appr'!$E$13:$J$59,6,FALSE)/100))","v":{"v":419632.5804243669,"d":"419,633"}},{"$f":"($A11-$A10)/365.25*$D$1*(1+$D$2+(VLOOKUP('RE Appr'!W18,'RE Appr'!$E$13:$J$59,6,FALSE)/100))","v":{"v":419342.77891854895,"d":"419,343"}},{"$f":"($A11-$A10)/365.25*$D$1*(1+$D$2+(VLOOKUP('RE Appr'!X18,'RE Appr'!$E$13:$J$59,6,FALSE)/100))","v":{"v":386675.1540041068,"d":"386,675"}},{"$f":"($A11-$A10)/365.25*$D$1*(1+$D$2+(VLOOKUP('RE Appr'!Y18,'RE Appr'!$E$13:$J$59,6,FALSE)/100))","v":{"v":436840.79397672834,"d":"436,841"}},{"$f":"($A11-$A10)/365.25*$D$1*(1+$D$2+(VLOOKUP('RE Appr'!Z18,'RE Appr'!$E$13:$J$59,6,FALSE)/100))","v":{"v":412637.3716632444,"d":"412,637"}},{"$f":"($A11-$A10)/365.25*$D$1*(1+$D$2+(VLOOKUP('RE Appr'!AA18,'RE Appr'!$E$13:$J$59,6,FALSE)/100))","v":{"v":440668.1724845996,"d":"440,668"}},{"$f":"($A11-$A10)/365.25*$D$1*(1+$D$2+(VLOOKUP('RE Appr'!AB18,'RE Appr'!$E$13:$J$59,6,FALSE)/100))","v":{"v":415285.5578370979,"d":"415,286"}},{"$f":"($A11-$A10)/365.25*$D$1*(1+$D$2+(VLOOKUP('RE Appr'!AC18,'RE Appr'!$E$13:$J$59,6,FALSE)/100))","v":{"v":435771.5263518138,"d":"435,772"}},{"$f":"($A11-$A10)/365.25*$D$1*(1+$D$2+(VLOOKUP('RE Appr'!AD18,'RE Appr'!$E$13:$J$59,6,FALSE)/100))","v":{"v":415285.5578370979,"d":"415,286"}},{"$f":"($A11-$A10)/365.25*$D$1*(1+$D$2+(VLOOKUP('RE Appr'!AE18,'RE Appr'!$E$13:$J$59,6,FALSE)/100))","v":{"v":441107.871321013,"d":"441,108"}},{"$f":"($A11-$A10)/365.25*$D$1*(1+$D$2+(VLOOKUP('RE Appr'!AF18,'RE Appr'!$E$13:$J$59,6,FALSE)/100))","v":{"v":409269.6783025325,"d":"409,270"}},{"$f":"($A11-$A10)/365.25*$D$1*(1+$D$2+(VLOOKUP('RE Appr'!AG18,'RE Appr'!$E$13:$J$59,6,FALSE)/100))","v":{"v":434212.5941136209,"d":"434,213"}},{"$f":"($A11-$A10)/365.25*$D$1*(1+$D$2+(VLOOKUP('RE Appr'!AH18,'RE Appr'!$E$13:$J$59,6,FALSE)/100))","v":{"v":416234.9075975359,"d":"416,235"}},{"$f":"($A11-$A10)/365.25*$D$1*(1+$D$2+(VLOOKUP('RE Appr'!AI18,'RE Appr'!$E$13:$J$59,6,FALSE)/100))","v":{"v":451019.08281998633,"d":"451,019"}},{"$f":"($A11-$A10)/365.25*$D$1*(1+$D$2+(VLOOKUP('RE Appr'!AJ18,'RE Appr'!$E$13:$J$59,6,FALSE)/100))","v":{"v":375602.7378507871,"d":"375,603"}},{"$f":"($A11-$A10)/365.25*$D$1*(1+$D$2+(VLOOKUP('RE Appr'!AK18,'RE Appr'!$E$13:$J$59,6,FALSE)/100))","v":{"v":386675.1540041068,"d":"386,675"}},{"$f":"($A11-$A10)/365.25*$D$1*(1+$D$2+(VLOOKUP('RE Appr'!AL18,'RE Appr'!$E$13:$J$59,6,FALSE)/100))","v":{"v":419342.77891854895,"d":"419,343"}},{"$f":"($A11-$A10)/365.25*$D$1*(1+$D$2+(VLOOKUP('RE Appr'!AM18,'RE Appr'!$E$13:$J$59,6,FALSE)/100))","v":{"v":399326.4887063655,"d":"399,326"}},{"$f":"($A11-$A10)/365.25*$D$1*(1+$D$2+(VLOOKUP('RE Appr'!AN18,'RE Appr'!$E$13:$J$59,6,FALSE)/100))","v":{"v":418173.57973990415,"d":"418,174"}},{"$f":"($A11-$A10)/365.25*$D$1*(1+$D$2+(VLOOKUP('RE Appr'!AO18,'RE Appr'!$E$13:$J$59,6,FALSE)/100))","v":{"v":416234.9075975359,"d":"416,235"}},{"$f":"($A11-$A10)/365.25*$D$1*(1+$D$2+(VLOOKUP('RE Appr'!AP18,'RE Appr'!$E$13:$J$59,6,FALSE)/100))","v":{"v":401385.0787132102,"d":"401,385"}},{"$f":"($A11-$A10)/365.25*$D$1*(1+$D$2+(VLOOKUP('RE Appr'!AQ18,'RE Appr'!$E$13:$J$59,6,FALSE)/100))","v":{"v":415045.72210814507,"d":"415,046"}},{"$f":"($A11-$A10)/365.25*$D$1*(1+$D$2+(VLOOKUP('RE Appr'!AR18,'RE Appr'!$E$13:$J$59,6,FALSE)/100))","v":{"v":437040.65708418895,"d":"437,041"}},{"$f":"($A11-$A10)/365.25*$D$1*(1+$D$2+(VLOOKUP('RE Appr'!AS18,'RE Appr'!$E$13:$J$59,6,FALSE)/100))","v":{"v":423749.76043805614,"d":"423,750"}},{"$f":"($A11-$A10)/365.25*$D$1*(1+$D$2+(VLOOKUP('RE Appr'!AT18,'RE Appr'!$E$13:$J$59,6,FALSE)/100))","v":{"v":415847.54106599226,"d":"415,848"}},{"$f":"($A11-$A10)/365.25*$D$1*(1+$D$2+(VLOOKUP('RE Appr'!AU18,'RE Appr'!$E$13:$J$59,6,FALSE)/100))","v":{"v":418173.57973990415,"d":"418,174"}},{"$f":"($A11-$A10)/365.25*$D$1*(1+$D$2+(VLOOKUP('RE Appr'!AV18,'RE Appr'!$E$13:$J$59,6,FALSE)/100))","v":{"v":417916.4969295789,"d":"417,916"}},{"$f":"($A11-$A10)/365.25*$D$1*(1+$D$2+(VLOOKUP('RE Appr'!AW18,'RE Appr'!$E$13:$J$59,6,FALSE)/100))","v":{"v":419289.85199380416,"d":"419,290"}},{"$f":"($A11-$A10)/365.25*$D$1*(1+$D$2+(VLOOKUP('RE Appr'!AX18,'RE Appr'!$E$13:$J$59,6,FALSE)/100))","v":{"v":419342.77891854895,"d":"419,343"}},{"$f":"($A11-$A10)/365.25*$D$1*(1+$D$2+(VLOOKUP('RE Appr'!AY18,'RE Appr'!$E$13:$J$59,6,FALSE)/100))","v":{"v":417653.93566050654,"d":"417,654"}},{"$f":"($A11-$A10)/365.25*$D$1*(1+$D$2+(VLOOKUP('RE Appr'!AZ18,'RE Appr'!$E$13:$J$59,6,FALSE)/100))","v":{"v":415285.5578370979,"d":"415,286"}},{"$f":"($A11-$A10)/365.25*$D$1*(1+$D$2+(VLOOKUP('RE Appr'!BA18,'RE Appr'!$E$13:$J$59,6,FALSE)/100))","v":{"v":440668.1724845996,"d":"440,668"}},{"$f":"($A11-$A10)/365.25*$D$1*(1+$D$2+(VLOOKUP('RE Appr'!BB18,'RE Appr'!$E$13:$J$59,6,FALSE)/100))","v":{"v":436840.79397672834,"d":"436,841"}},{"$f":"($A11-$A10)/365.25*$D$1*(1+$D$2+(VLOOKUP('RE Appr'!BC18,'RE Appr'!$E$13:$J$59,6,FALSE)/100))","v":{"v":440668.1724845996,"d":"440,668"}},{"$f":"($A11-$A10)/365.25*$D$1*(1+$D$2+(VLOOKUP('RE Appr'!BD18,'RE Appr'!$E$13:$J$59,6,FALSE)/100))","v":{"v":440668.1724845996,"d":"440,668"}},{"$f":"($A11-$A10)/365.25*$D$1*(1+$D$2+(VLOOKUP('RE Appr'!BE18,'RE Appr'!$E$13:$J$59,6,FALSE)/100))","v":{"v":451019.08281998633,"d":"451,019"}},{"$f":"($A11-$A10)/365.25*$D$1*(1+$D$2+(VLOOKUP('RE Appr'!BF18,'RE Appr'!$E$13:$J$59,6,FALSE)/100))","v":{"v":451019.08281998633,"d":"451,019"}},{"$f":"($A11-$A10)/365.25*$D$1*(1+$D$2+(VLOOKUP('RE Appr'!BG18,'RE Appr'!$E$13:$J$59,6,FALSE)/100))","v":{"v":436840.79397672834,"d":"436,841"}},{"$f":"($A11-$A10)/365.25*$D$1*(1+$D$2+(VLOOKUP('RE Appr'!BH18,'RE Appr'!$E$13:$J$59,6,FALSE)/100))","v":{"v":426041.984729592,"d":"426,042"}},{"$f":"($A11-$A10)/365.25*$D$1*(1+$D$2+(VLOOKUP('RE Appr'!BI18,'RE Appr'!$E$13:$J$59,6,FALSE)/100))","v":{"v":441107.871321013,"d":"441,108"}},{"$f":"($A11-$A10)/365.25*$D$1*(1+$D$2+(VLOOKUP('RE Appr'!BJ18,'RE Appr'!$E$13:$J$59,6,FALSE)/100))","v":{"v":423729.77412731,"d":"423,730"}},{"$f":"($A11-$A10)/365.25*$D$1*(1+$D$2+(VLOOKUP('RE Appr'!BK18,'RE Appr'!$E$13:$J$59,6,FALSE)/100))","v":{"v":417916.4969295789,"d":"417,916"}},{"$f":"($A11-$A10)/365.25*$D$1*(1+$D$2+(VLOOKUP('RE Appr'!BL18,'RE Appr'!$E$13:$J$59,6,FALSE)/100))","v":{"v":431774.264202601,"d":"431,774"}},{"$f":"($A11-$A10)/365.25*$D$1*(1+$D$2+(VLOOKUP('RE Appr'!BM18,'RE Appr'!$E$13:$J$59,6,FALSE)/100))","v":{"v":412977.13894592744,"d":"412,977"}},{"$f":"($A11-$A10)/365.25*$D$1*(1+$D$2+(VLOOKUP('RE Appr'!BN18,'RE Appr'!$E$13:$J$59,6,FALSE)/100))","v":{"v":419632.5804243669,"d":"419,633"}},{"$f":"($A11-$A10)/365.25*$D$1*(1+$D$2+(VLOOKUP('RE Appr'!BO18,'RE Appr'!$E$13:$J$59,6,FALSE)/100))","v":{"v":434212.5941136209,"d":"434,213"}},{"$f":"($A11-$A10)/365.25*$D$1*(1+$D$2+(VLOOKUP('RE Appr'!BP18,'RE Appr'!$E$13:$J$59,6,FALSE)/100))","v":{"v":435181.93018480495,"d":"435,182"}},{"$f":"($A11-$A10)/365.25*$D$1*(1+$D$2+(VLOOKUP('RE Appr'!BQ18,'RE Appr'!$E$13:$J$59,6,FALSE)/100))","v":{"v":412277.6180698152,"d":"412,278"}},{"$f":"($A11-$A10)/365.25*$D$1*(1+$D$2+(VLOOKUP('RE Appr'!BR18,'RE Appr'!$E$13:$J$59,6,FALSE)/100))","v":{"v":415045.72210814507,"d":"415,046"}},{"$f":"($A11-$A10)/365.25*$D$1*(1+$D$2+(VLOOKUP('RE Appr'!BS18,'RE Appr'!$E$13:$J$59,6,FALSE)/100))","v":{"v":415847.54106599226,"d":"415,848"}},{"$f":"($A11-$A10)/365.25*$D$1*(1+$D$2+(VLOOKUP('RE Appr'!BT18,'RE Appr'!$E$13:$J$59,6,FALSE)/100))","v":{"v":409269.6783025325,"d":"409,270"}},{"$f":"($A11-$A10)/365.25*$D$1*(1+$D$2+(VLOOKUP('RE Appr'!BU18,'RE Appr'!$E$13:$J$59,6,FALSE)/100))","v":{"v":409269.6783025325,"d":"409,270"}},{"$f":"($A11-$A10)/365.25*$D$1*(1+$D$2+(VLOOKUP('RE Appr'!BV18,'RE Appr'!$E$13:$J$59,6,FALSE)/100))","v":{"v":429315.94798083504,"d":"429,316"}},{"$f":"($A11-$A10)/365.25*$D$1*(1+$D$2+(VLOOKUP('RE Appr'!BW18,'RE Appr'!$E$13:$J$59,6,FALSE)/100))","v":{"v":419289.85199380416,"d":"419,290"}},{"$f":"($A11-$A10)/365.25*$D$1*(1+$D$2+(VLOOKUP('RE Appr'!BX18,'RE Appr'!$E$13:$J$59,6,FALSE)/100))","v":{"v":371325.66735112935,"d":"371,326"}},{"$f":"($A11-$A10)/365.25*$D$1*(1+$D$2+(VLOOKUP('RE Appr'!BY18,'RE Appr'!$E$13:$J$59,6,FALSE)/100))","v":{"v":451019.08281998633,"d":"451,019"}},{"$f":"($A11-$A10)/365.25*$D$1*(1+$D$2+(VLOOKUP('RE Appr'!BZ18,'RE Appr'!$E$13:$J$59,6,FALSE)/100))","v":{"v":419289.85199380416,"d":"419,290"}},{"$f":"($A11-$A10)/365.25*$D$1*(1+$D$2+(VLOOKUP('RE Appr'!CA18,'RE Appr'!$E$13:$J$59,6,FALSE)/100))","v":{"v":409269.6783025325,"d":"409,270"}},{"$f":"($A11-$A10)/365.25*$D$1*(1+$D$2+(VLOOKUP('RE Appr'!CB18,'RE Appr'!$E$13:$J$59,6,FALSE)/100))","v":{"v":421665.9736136933,"d":"421,666"}},{"$f":"($A11-$A10)/365.25*$D$1*(1+$D$2+(VLOOKUP('RE Appr'!CC18,'RE Appr'!$E$13:$J$59,6,FALSE)/100))","v":{"v":415847.54106599226,"d":"415,848"}},{"$f":"($A11-$A10)/365.25*$D$1*(1+$D$2+(VLOOKUP('RE Appr'!CD18,'RE Appr'!$E$13:$J$59,6,FALSE)/100))","v":{"v":420192.19712525664,"d":"420,192"}},{"$f":"($A11-$A10)/365.25*$D$1*(1+$D$2+(VLOOKUP('RE Appr'!CE18,'RE Appr'!$E$13:$J$59,6,FALSE)/100))","v":{"v":434212.5941136209,"d":"434,213"}},{"$f":"($A11-$A10)/365.25*$D$1*(1+$D$2+(VLOOKUP('RE Appr'!CF18,'RE Appr'!$E$13:$J$59,6,FALSE)/100))","v":{"v":418833.85952220886,"d":"418,834"}},{"$f":"($A11-$A10)/365.25*$D$1*(1+$D$2+(VLOOKUP('RE Appr'!CG18,'RE Appr'!$E$13:$J$59,6,FALSE)/100))","v":{"v":429315.94798083504,"d":"429,316"}},{"$f":"($A11-$A10)/365.25*$D$1*(1+$D$2+(VLOOKUP('RE Appr'!CH18,'RE Appr'!$E$13:$J$59,6,FALSE)/100))","v":{"v":419289.85199380416,"d":"419,290"}},{"$f":"($A11-$A10)/365.25*$D$1*(1+$D$2+(VLOOKUP('RE Appr'!CI18,'RE Appr'!$E$13:$J$59,6,FALSE)/100))","v":{"v":431774.264202601,"d":"431,774"}},{"$f":"($A11-$A10)/365.25*$D$1*(1+$D$2+(VLOOKUP('RE Appr'!CJ18,'RE Appr'!$E$13:$J$59,6,FALSE)/100))","v":{"v":375602.7378507871,"d":"375,603"}},{"$f":"($A11-$A10)/365.25*$D$1*(1+$D$2+(VLOOKUP('RE Appr'!CK18,'RE Appr'!$E$13:$J$59,6,FALSE)/100))","v":{"v":412977.13894592744,"d":"412,977"}},{"$f":"($A11-$A10)/365.25*$D$1*(1+$D$2+(VLOOKUP('RE Appr'!CL18,'RE Appr'!$E$13:$J$59,6,FALSE)/100))","v":{"v":412517.453798768,"d":"412,517"}},{"$f":"($A11-$A10)/365.25*$D$1*(1+$D$2+(VLOOKUP('RE Appr'!CM18,'RE Appr'!$E$13:$J$59,6,FALSE)/100))","v":{"v":411048.45995893225,"d":"411,048"}},{"$f":"($A11-$A10)/365.25*$D$1*(1+$D$2+(VLOOKUP('RE Appr'!CN18,'RE Appr'!$E$13:$J$59,6,FALSE)/100))","v":{"v":435181.93018480495,"d":"435,182"}},{"$f":"($A11-$A10)/365.25*$D$1*(1+$D$2+(VLOOKUP('RE Appr'!CO18,'RE Appr'!$E$13:$J$59,6,FALSE)/100))","v":{"v":412637.3716632444,"d":"412,637"}},{"$f":"($A11-$A10)/365.25*$D$1*(1+$D$2+(VLOOKUP('RE Appr'!CP18,'RE Appr'!$E$13:$J$59,6,FALSE)/100))","v":{"v":419632.5804243669,"d":"419,633"}},{"$f":"($A11-$A10)/365.25*$D$1*(1+$D$2+(VLOOKUP('RE Appr'!CQ18,'RE Appr'!$E$13:$J$59,6,FALSE)/100))","v":{"v":416234.9075975359,"d":"416,235"}},{"$f":"($A11-$A10)/365.25*$D$1*(1+$D$2+(VLOOKUP('RE Appr'!CR18,'RE Appr'!$E$13:$J$59,6,FALSE)/100))","v":{"v":441527.5838466804,"d":"441,528"}},{"$f":"($A11-$A10)/365.25*$D$1*(1+$D$2+(VLOOKUP('RE Appr'!CS18,'RE Appr'!$E$13:$J$59,6,FALSE)/100))","v":{"v":423749.76043805614,"d":"423,750"}},{"$f":"($A11-$A10)/365.25*$D$1*(1+$D$2+(VLOOKUP('RE Appr'!CT18,'RE Appr'!$E$13:$J$59,6,FALSE)/100))","v":{"v":415847.54106599226,"d":"415,848"}},{"$f":"($A11-$A10)/365.25*$D$1*(1+$D$2+(VLOOKUP('RE Appr'!CU18,'RE Appr'!$E$13:$J$59,6,FALSE)/100))","v":{"v":441107.871321013,"d":"441,108"}},{"$f":"($A11-$A10)/365.25*$D$1*(1+$D$2+(VLOOKUP('RE Appr'!CV18,'RE Appr'!$E$13:$J$59,6,FALSE)/100))","v":{"v":426041.984729592,"d":"426,042"}},{"$f":"($A11-$A10)/365.25*$D$1*(1+$D$2+(VLOOKUP('RE Appr'!CW18,'RE Appr'!$E$13:$J$59,6,FALSE)/100))","v":{"v":455687.8850102669,"d":"455,688"}},{"$f":"($A11-$A10)/365.25*$D$1*(1+$D$2+(VLOOKUP('RE Appr'!CX18,'RE Appr'!$E$13:$J$59,6,FALSE)/100))","v":{"v":423749.76043805614,"d":"423,750"}},{"$f":"($A11-$A10)/365.25*$D$1*(1+$D$2+(VLOOKUP('RE Appr'!CY18,'RE Appr'!$E$13:$J$59,6,FALSE)/100))","v":{"v":423729.77412731,"d":"423,730"}},{"$f":"($A11-$A10)/365.25*$D$1*(1+$D$2+(VLOOKUP('RE Appr'!CZ18,'RE Appr'!$E$13:$J$59,6,FALSE)/100))","v":{"v":420192.19712525664,"d":"420,192"}},{"$f":"($A11-$A10)/365.25*$D$1*(1+$D$2+(VLOOKUP('RE Appr'!DA18,'RE Appr'!$E$13:$J$59,6,FALSE)/100))","v":{"v":375602.7378507871,"d":"375,603"}},{"$f":"($A11-$A10)/365.25*$D$1*(1+$D$2+(VLOOKUP('RE Appr'!DB18,'RE Appr'!$E$13:$J$59,6,FALSE)/100))","v":{"v":421665.9736136933,"d":"421,666"}},{"$f":"($A11-$A10)/365.25*$D$1*(1+$D$2+(VLOOKUP('RE Appr'!DC18,'RE Appr'!$E$13:$J$59,6,FALSE)/100))","v":{"v":417916.4969295789,"d":"417,916"}},{"$f":"($A11-$A10)/365.25*$D$1*(1+$D$2+(VLOOKUP('RE Appr'!DD18,'RE Appr'!$E$13:$J$59,6,FALSE)/100))","v":{"v":426041.984729592,"d":"426,042"}},{"$f":"($A11-$A10)/365.25*$D$1*(1+$D$2+(VLOOKUP('RE Appr'!DE18,'RE Appr'!$E$13:$J$59,6,FALSE)/100))","v":{"v":426041.984729592,"d":"426,042"}},{"$f":"($A11-$A10)/365.25*$D$1*(1+$D$2+(VLOOKUP('RE Appr'!DF18,'RE Appr'!$E$13:$J$59,6,FALSE)/100))","v":{"v":412277.6180698152,"d":"412,278"}},{"$f":"($A11-$A10)/365.25*$D$1*(1+$D$2+(VLOOKUP('RE Appr'!DG18,'RE Appr'!$E$13:$J$59,6,FALSE)/100))","v":{"v":418173.57973990415,"d":"418,174"}}]
[{"$f":"Main!A14","v":"2029-12-30"},7,{"v":14411.699431763253,"d":"14,412"},{"$f":"($E$5-SUM(C$6:C11))*$D$3","v":{"v":703.9805682367471,"d":"704"}},{"v":10074.58120255838,"d":"10,075"},{"$f":"($A12-$A11)/365.25*$D$1*(1+$D$2+(VLOOKUP('RE Appr'!L19,'RE Appr'!$E$13:$J$59,6,FALSE)/100))","v":{"v":455687.8850102669,"d":"455,688"}},{"$f":"($A12-$A11)/365.25*$D$1*(1+$D$2+(VLOOKUP('RE Appr'!M19,'RE Appr'!$E$13:$J$59,6,FALSE)/100))","v":{"v":416694.59274469543,"d":"416,695"}},{"$f":"($A12-$A11)/365.25*$D$1*(1+$D$2+(VLOOKUP('RE Appr'!N19,'RE Appr'!$E$13:$J$59,6,FALSE)/100))","v":{"v":441527.5838466804,"d":"441,528"}},{"$f":"($A12-$A11)/365.25*$D$1*(1+$D$2+(VLOOKUP('RE Appr'!O19,'RE Appr'!$E$13:$J$59,6,FALSE)/100))","v":{"v":418833.85952220886,"d":"418,834"}},{"$f":"($A12-$A11)/365.25*$D$1*(1+$D$2+(VLOOKUP('RE Appr'!P19,'RE Appr'!$E$13:$J$59,6,FALSE)/100))","v":{"v":412277.6180698152,"d":"412,278"}},{"$f":"($A12-$A11)/365.25*$D$1*(1+$D$2+(VLOOKUP('RE Appr'!Q19,'RE Appr'!$E$13:$J$59,6,FALSE)/100))","v":{"v":440668.1724845996,"d":"440,668"}},{"$f":"($A12-$A11)/365.25*$D$1*(1+$D$2+(VLOOKUP('RE Appr'!R19,'RE Appr'!$E$13:$J$59,6,FALSE)/100))","v":{"v":429315.94798083504,"d":"429,316"}},{"$f":"($A12-$A11)/365.25*$D$1*(1+$D$2+(VLOOKUP('RE Appr'!S19,'RE Appr'!$E$13:$J$59,6,FALSE)/100))","v":{"v":419632.5804243669,"d":"419,633"}},{"$f":"($A12-$A11)/365.25*$D$1*(1+$D$2+(VLOOKUP('RE Appr'!T19,'RE Appr'!$E$13:$J$59,6,FALSE)/100))","v":{"v":436840.79397672834,"d":"436,841"}},{"$f":"($A12-$A11)/365.25*$D$1*(1+$D$2+(VLOOKUP('RE Appr'!U19,'RE Appr'!$E$13:$J$59,6,FALSE)/100))","v":{"v":412277.6180698152,"d":"412,278"}},{"$f":"($A12-$A11)/365.25*$D$1*(1+$D$2+(VLOOKUP('RE Appr'!V19,'RE Appr'!$E$13:$J$59,6,FALSE)/100))","v":{"v":418173.57973990415,"d":"418,174"}},{"$f":"($A12-$A11)/365.25*$D$1*(1+$D$2+(VLOOKUP('RE Appr'!W19,'RE Appr'!$E$13:$J$59,6,FALSE)/100))","v":{"v":371325.66735112935,"d":"371,326"}},{"$f":"($A12-$A11)/365.25*$D$1*(1+$D$2+(VLOOKUP('RE Appr'!X19,'RE Appr'!$E$13:$J$59,6,FALSE)/100))","v":{"v":411048.45995893225,"d":"411,048"}},{"$f":"($A12-$A11)/365.25*$D$1*(1+$D$2+(VLOOKUP('RE Appr'!Y19,'RE Appr'!$E$13:$J$59,6,FALSE)/100))","v":{"v":409269.6783025325,"d":"409,270"}},{"$f":"($A12-$A11)/365.25*$D$1*(1+$D$2+(VLOOKUP('RE Appr'!Z19,'RE Appr'!$E$13:$J$59,6,FALSE)/100))","v":{"v":410728.67898699525,"d":"410,729"}},{"$f":"($A12-$A11)/365.25*$D$1*(1+$D$2+(VLOOKUP('RE Appr'!AA19,'RE Appr'!$E$13:$J$59,6,FALSE)/100))","v":{"v":411048.45995893225,"d":"411,048"}},{"$f":"($A12-$A11)/365.25*$D$1*(1+$D$2+(VLOOKUP('RE Appr'!AB19,'RE Appr'!$E$13:$J$59,6,FALSE)/100))","v":{"v":422510.60917180014,"d":"422,511"}},{"$f":"($A12-$A11)/365.25*$D$1*(1+$D$2+(VLOOKUP('RE Appr'!AC19,'RE Appr'!$E$13:$J$59,6,FALSE)/100))","v":{"v":411048.45995893225,"d":"411,048"}},{"$f":"($A12-$A11)/365.25*$D$1*(1+$D$2+(VLOOKUP('RE Appr'!AD19,'RE Appr'!$E$13:$J$59,6,FALSE)/100))","v":{"v":440668.1724845996,"d":"440,668"}},{"$f":"($A12-$A11)/365.25*$D$1*(1+$D$2+(VLOOKUP('RE Appr'!AE19,'RE Appr'!$E$13:$J$59,6,FALSE)/100))","v":{"v":410728.67898699525,"d":"410,729"}},{"$f":"($A12-$A11)/365.25*$D$1*(1+$D$2+(VLOOKUP('RE Appr'!AF19,'RE Appr'!$E$13:$J$59,6,FALSE)/100))","v":{"v":417916.4969295789,"d":"417,916"}},{"$f":"($A12-$A11)/365.25*$D$1*(1+$D$2+(VLOOKUP('RE Appr'!AG19,'RE Appr'!$E$13:$J$59,6,FALSE)/100))","v":{"v":419342.77891854895,"d":"419,343"}},{"$f":"($A12-$A11)/365.25*$D$1*(1+$D$2+(VLOOKUP('RE Appr'!AH19,'RE Appr'!$E$13:$J$59,6,FALSE)/100))","v":{"v":411048.45995893225,"d":"411,048"}},{"$f":"($A12-$A11)/365.25*$D$1*(1+$D$2+(VLOOKUP('RE Appr'!AI19,'RE Appr'!$E$13:$J$59,6,FALSE)/100))","v":{"v":436840.79397672834,"d":"436,841"}},{"$f":"($A12-$A11)/365.25*$D$1*(1+$D$2+(VLOOKUP('RE Appr'!AJ19,'RE Appr'!$E$13:$J$59,6,FALSE)/100))","v":{"v":451019.08281998633,"d":"451,019"}},{"$f":"($A12-$A11)/365.25*$D$1*(1+$D$2+(VLOOKUP('RE Appr'!AK19,'RE Appr'!$E$13:$J$59,6,FALSE)/100))","v":{"v":429315.94798083504,"d":"429,316"}},{"$f":"($A12-$A11)/365.25*$D$1*(1+$D$2+(VLOOKUP('RE Appr'!AL19,'RE Appr'!$E$13:$J$59,6,FALSE)/100))","v":{"v":410728.67898699525,"d":"410,729"}},{"$f":"($A12-$A11)/365.25*$D$1*(1+$D$2+(VLOOKUP('RE Appr'!AM19,'RE Appr'!$E$13:$J$59,6,FALSE)/100))","v":{"v":423729.77412731,"d":"423,730"}},{"$f":"($A12-$A11)/365.25*$D$1*(1+$D$2+(VLOOKUP('RE Appr'!AN19,'RE Appr'!$E$13:$J$59,6,FALSE)/100))","v":{"v":420192.19712525664,"d":"420,192"}},{"$f":"($A12-$A11)/365.25*$D$1*(1+$D$2+(VLOOKUP('RE Appr'!AO19,'RE Appr'!$E$13:$J$59,6,FALSE)/100))","v":{"v":412517.453798768,"d":"412,517"}},{"$f":"($A12-$A11)/365.25*$D$1*(1+$D$2+(VLOOKUP('RE Appr'!AP19,'RE Appr'!$E$13:$J$59,6,FALSE)/100))","v":{"v":435771.5263518138,"d":"435,772"}},{"$f":"($A12-$A11)/365.25*$D$1*(1+$D$2+(VLOOKUP('RE Appr'!AQ19,'RE Appr'!$E$13:$J$59,6,FALSE)/100))","v":{"v":412517.453798768,"d":"412,517"}},{"$f":"($A12-$A11)/365.25*$D$1*(1+$D$2+(VLOOKUP('RE Appr'!AR19,'RE Appr'!$E$13:$J$59,6,FALSE)/100))","v":{"v":415285.5578370979,"d":"415,286"}},{"$f":"($A12-$A11)/365.25*$D$1*(1+$D$2+(VLOOKUP('RE Appr'!AS19,'RE Appr'!$E$13:$J$59,6,FALSE)/100))","v":{"v":418173.57973990415,"d":"418,174"}},{"$f":"($A12-$A11)/365.25*$D$1*(1+$D$2+(VLOOKUP('RE Appr'!AT19,'RE Appr'!$E$13:$J$59,6,FALSE)/100))","v":{"v":440668.1724845996,"d":"440,668"}},{"$f":"($A12-$A11)/365.25*$D$1*(1+$D$2+(VLOOKUP('RE Appr'!AU19,'RE Appr'!$E$13:$J$59,6,FALSE)/100))","v":{"v":412977.13894592744,"d":"412,977"}},{"$f":"($A12-$A11)/365.25*$D$1*(1+$D$2+(VLOOKUP('RE Appr'!AV19,'RE Appr'!$E$13:$J$59,6,FALSE)/100))","v":{"v":411048.45995893225,"d":"411,048"}},{"$f":"($A12-$A11)/365.25*$D$1*(1+$D$2+(VLOOKUP('RE Appr'!AW19,'RE Appr'!$E$13:$J$59,6,FALSE)/100))","v":{"v":431774.264202601,"d":"431,774"}},{"$f":"($A12-$A11)/365.25*$D$1*(1+$D$2+(VLOOKUP('RE Appr'!AX19,'RE Appr'!$E$13:$J$59,6,FALSE)/100))","v":{"v":416694.59274469543,"d":"416,695"}},{"$f":"($A12-$A11)/365.25*$D$1*(1+$D$2+(VLOOKUP('RE Appr'!AY19,'RE Appr'!$E$13:$J$59,6,FALSE)/100))","v":{"v":417653.93566050654,"d":"417,654"}},{"$f":"($A12-$A11)/365.25*$D$1*(1+$D$2+(VLOOKUP('RE Appr'!AZ19,'RE Appr'!$E$13:$J$59,6,FALSE)/100))","v":{"v":419542.64202600956,"d":"419,543"}},{"$f":"($A12-$A11)/365.25*$D$1*(1+$D$2+(VLOOKUP('RE Appr'!BA19,'RE Appr'!$E$13:$J$59,6,FALSE)/100))","v":{"v":414845.85900068446,"d":"414,846"}},{"$f":"($A12-$A11)/365.25*$D$1*(1+$D$2+(VLOOKUP('RE Appr'!BB19,'RE Appr'!$E$13:$J$59,6,FALSE)/100))","v":{"v":416694.59274469543,"d":"416,695"}},{"$f":"($A12-$A11)/365.25*$D$1*(1+$D$2+(VLOOKUP('RE Appr'!BC19,'RE Appr'!$E$13:$J$59,6,FALSE)/100))","v":{"v":401385.0787132102,"d":"401,385"}},{"$f":"($A12-$A11)/365.25*$D$1*(1+$D$2+(VLOOKUP('RE Appr'!BD19,'RE Appr'!$E$13:$J$59,6,FALSE)/100))","v":{"v":410728.67898699525,"d":"410,729"}},{"$f":"($A12-$A11)/365.25*$D$1*(1+$D$2+(VLOOKUP('RE Appr'!BE19,'RE Appr'!$E$13:$J$59,6,FALSE)/100))","v":{"v":417653.93566050654,"d":"417,654"}},{"$f":"($A12-$A11)/365.25*$D$1*(1+$D$2+(VLOOKUP('RE Appr'!BF19,'RE Appr'!$E$13:$J$59,6,FALSE)/100))","v":{"v":412517.453798768,"d":"412,517"}},{"$f":"($A12-$A11)/365.25*$D$1*(1+$D$2+(VLOOKUP('RE Appr'!BG19,'RE Appr'!$E$13:$J$59,6,FALSE)/100))","v":{"v":441527.5838466804,"d":"441,528"}},{"$f":"($A12-$A11)/365.25*$D$1*(1+$D$2+(VLOOKUP('RE Appr'!BH19,'RE Appr'!$E$13:$J$59,6,FALSE)/100))","v":{"v":441527.5838466804,"d":"441,528"}},{"$f":"($A12-$A11)/365.25*$D$1*(1+$D$2+(VLOOKUP('RE Appr'!BI19,'RE Appr'!$E$13:$J$59,6,FALSE)/100))","v":{"v":417653.93566050654,"d":"417,654"}},{"$f":"($A12-$A11)/365.25*$D$1*(1+$D$2+(VLOOKUP('RE Appr'!BJ19,'RE Appr'!$E$13:$J$59,6,FALSE)/100))","v":{"v":375602.7378507871,"d":"375,603"}},{"$f":"($A12-$A11)/365.25*$D$1*(1+$D$2+(VLOOKUP('RE Appr'!BK19,'RE Appr'!$E$13:$J$59,6,FALSE)/100))","v":{"v":417916.4969295789,"d":"417,916"}},{"$f":"($A12-$A11)/365.25*$D$1*(1+$D$2+(VLOOKUP('RE Appr'!BL19,'RE Appr'!$E$13:$J$59,6,FALSE)/100))","v":{"v":441527.5838466804,"d":"441,528"}},{"$f":"($A12-$A11)/365.25*$D$1*(1+$D$2+(VLOOKUP('RE Appr'!BM19,'RE Appr'!$E$13:$J$59,6,FALSE)/100))","v":{"v":426041.984729592,"d":"426,042"}},{"$f":"($A12-$A11)/365.25*$D$1*(1+$D$2+(VLOOKUP('RE Appr'!BN19,'RE Appr'!$E$13:$J$59,6,FALSE)/100))","v":{"v":409269.6783025325,"d":"409,270"}},{"$f":"($A12-$A11)/365.25*$D$1*(1+$D$2+(VLOOKUP('RE Appr'!BO19,'RE Appr'!$E$13:$J$59,6,FALSE)/100))","v":{"v":409269.6783025325,"d":"409,270"}},{"$f":"($A12-$A11)/365.25*$D$1*(1+$D$2+(VLOOKUP('RE Appr'!BP19,'RE Appr'!$E$13:$J$59,6,FALSE)/100))","v":{"v":435771.5263518138,"d":"435,772"}},{"$f":"($A12-$A11)/365.25*$D$1*(1+$D$2+(VLOOKUP('RE Appr'!BQ19,'RE Appr'!$E$13:$J$59,6,FALSE)/100))","v":{"v":441107.871321013,"d":"441,108"}},{"$f":"($A12-$A11)/365.25*$D$1*(1+$D$2+(VLOOKUP('RE Appr'!BR19,'RE Appr'!$E$13:$J$59,6,FALSE)/100))","v":{"v":440668.1724845996,"d":"440,668"}},{"$f":"($A12-$A11)/365.25*$D$1*(1+$D$2+(VLOOKUP('RE Appr'!BS19,'RE Appr'!$E$13:$J$59,6,FALSE)/100))","v":{"v":451019.08281998633,"d":"451,019"}},{"$f":"($A12-$A11)/365.25*$D$1*(1+$D$2+(VLOOKUP('RE Appr'!BT19,'RE Appr'!$E$13:$J$59,6,FALSE)/100))","v":{"v":429315.94798083504,"d":"429,316"}},{"$f":"($A12-$A11)/365.25*$D$1*(1+$D$2+(VLOOKUP('RE Appr'!BU19,'RE Appr'!$E$13:$J$59,6,FALSE)/100))","v":{"v":419289.85199380416,"d":"419,290"}},{"$f":"($A12-$A11)/365.25*$D$1*(1+$D$2+(VLOOKUP('RE Appr'!BV19,'RE Appr'!$E$13:$J$59,6,FALSE)/100))","v":{"v":409269.6783025325,"d":"409,270"}},{"$f":"($A12-$A11)/365.25*$D$1*(1+$D$2+(VLOOKUP('RE Appr'!BW19,'RE Appr'!$E$13:$J$59,6,FALSE)/100))","v":{"v":451019.08281998633,"d":"451,019"}},{"$f":"($A12-$A11)/365.25*$D$1*(1+$D$2+(VLOOKUP('RE Appr'!BX19,'RE Appr'!$E$13:$J$59,6,FALSE)/100))","v":{"v":419542.64202600956,"d":"419,543"}},{"$f":"($A12-$A11)/365.25*$D$1*(1+$D$2+(VLOOKUP('RE Appr'!BY19,'RE Appr'!$E$13:$J$59,6,FALSE)/100))","v":{"v":441107.871321013,"d":"441,108"}},{"$f":"($A12-$A11)/365.25*$D$1*(1+$D$2+(VLOOKUP('RE Appr'!BZ19,'RE Appr'!$E$13:$J$59,6,FALSE)/100))","v":{"v":434212.5941136209,"d":"434,213"}},{"$f":"($A12-$A11)/365.25*$D$1*(1+$D$2+(VLOOKUP('RE Appr'!CA19,'RE Appr'!$E$13:$J$59,6,FALSE)/100))","v":{"v":412977.13894592744,"d":"412,977"}},{"$f":"($A12-$A11)/365.25*$D$1*(1+$D$2+(VLOOKUP('RE Appr'!CB19,'RE Appr'!$E$13:$J$59,6,FALSE)/100))","v":{"v":437040.65708418895,"d":"437,041"}},{"$f":"($A12-$A11)/365.25*$D$1*(1+$D$2+(VLOOKUP('RE Appr'!CC19,'RE Appr'!$E$13:$J$59,6,FALSE)/100))","v":{"v":436840.79397672834,"d":"436,841"}},{"$f":"($A12-$A11)/365.25*$D$1*(1+$D$2+(VLOOKUP('RE Appr'!CD19,'RE Appr'!$E$13:$J$59,6,FALSE)/100))","v":{"v":451019.08281998633,"d":"451,019"}},{"$f":"($A12-$A11)/365.25*$D$1*(1+$D$2+(VLOOKUP('RE Appr'!CE19,'RE Appr'!$E$13:$J$59,6,FALSE)/100))","v":{"v":411048.45995893225,"d":"411,048"}},{"$f":"($A12-$A11)/365.25*$D$1*(1+$D$2+(VLOOKUP('RE Appr'!CF19,'RE Appr'!$E$13:$J$59,6,FALSE)/100))","v":{"v":470497.7412731006,"d":"470,498"}},{"$f":"($A12-$A11)/365.25*$D$1*(1+$D$2+(VLOOKUP('RE Appr'!CG19,'RE Appr'!$E$13:$J$59,6,FALSE)/100))","v":{"v":437040.65708418895,"d":"437,041"}},{"$f":"($A12-$A11)/365.25*$D$1*(1+$D$2+(VLOOKUP('RE Appr'!CH19,'RE Appr'!$E$13:$J$59,6,FALSE)/100))","v":{"v":419342.77891854895,"d":"419,343"}},{"$f":"($A12-$A11)/365.25*$D$1*(1+$D$2+(VLOOKUP('RE Appr'!CI19,'RE Appr'!$E$13:$J$59,6,FALSE)/100))","v":{"v":418833.85952220886,"d":"418,834"}},{"$f":"($A12-$A11)/365.25*$D$1*(1+$D$2+(VLOOKUP('RE Appr'!CJ19,'RE Appr'!$E$13:$J$59,6,FALSE)/100))","v":{"v":412277.6180698152,"d":"412,278"}},{"$f":"($A12-$A11)/365.25*$D$1*(1+$D$2+(VLOOKUP('RE Appr'!CK19,'RE Appr'!$E$13:$J$59,6,FALSE)/100))","v":{"v":419632.5804243669,"d":"419,633"}},{"$f":"($A12-$A11)/365.25*$D$1*(1+$D$2+(VLOOKUP('RE Appr'!CL19,'RE Appr'!$E$13:$J$59,6,FALSE)/100))","v":{"v":386675.1540041068,"d":"386,675"}},{"$f":"($A12-$A11)/365.25*$D$1*(1+$D$2+(VLOOKUP('RE Appr'!CM19,'RE Appr'!$E$13:$J$59,6,FALSE)/100))","v":{"v":371325.66735112935,"d":"371,326"}},{"$f":"($A12-$A11)/365.25*$D$1*(1+$D$2+(VLOOKUP('RE Appr'!CN19,'RE Appr'!$E$13:$J$59,6,FALSE)/100))","v":{"v":415285.5578370979,"d":"415,286"}},{"$f":"($A12-$A11)/365.25*$D$1*(1+$D$2+(VLOOKUP('RE Appr'!CO19,'RE Appr'!$E$13:$J$59,6,FALSE)/100))","v":{"v":470497.7412731006,"d":"470,498"}},{"$f":"($A12-$A11)/365.25*$D$1*(1+$D$2+(VLOOKUP('RE Appr'!CP19,'RE Appr'!$E$13:$J$59,6,FALSE)/100))","v":{"v":419632.5804243669,"d":"419,633"}},{"$f":"($A12-$A11)/365.25*$D$1*(1+$D$2+(VLOOKUP('RE Appr'!CQ19,'RE Appr'!$E$13:$J$59,6,FALSE)/100))","v":{"v":416234.9075975359,"d":"416,235"}},{"$f":"($A12-$A11)/365.25*$D$1*(1+$D$2+(VLOOKUP('RE Appr'!CR19,'RE Appr'!$E$13:$J$59,6,FALSE)/100))","v":{"v":436840.79397672834,"d":"436,841"}},{"$f":"($A12-$A11)/365.25*$D$1*(1+$D$2+(VLOOKUP('RE Appr'!CS19,'RE Appr'!$E$13:$J$59,6,FALSE)/100))","v":{"v":470497.7412731006,"d":"470,498"}},{"$f":"($A12-$A11)/365.25*$D$1*(1+$D$2+(VLOOKUP('RE Appr'!CT19,'RE Appr'!$E$13:$J$59,6,FALSE)/100))","v":{"v":410728.67898699525,"d":"410,729"}},{"$f":"($A12-$A11)/365.25*$D$1*(1+$D$2+(VLOOKUP('RE Appr'!CU19,'RE Appr'!$E$13:$J$59,6,FALSE)/100))","v":{"v":423729.77412731,"d":"423,730"}},{"$f":"($A12-$A11)/365.25*$D$1*(1+$D$2+(VLOOKUP('RE Appr'!CV19,'RE Appr'!$E$13:$J$59,6,FALSE)/100))","v":{"v":434212.5941136209,"d":"434,213"}},{"$f":"($A12-$A11)/365.25*$D$1*(1+$D$2+(VLOOKUP('RE Appr'!CW19,'RE Appr'!$E$13:$J$59,6,FALSE)/100))","v":{"v":418173.57973990415,"d":"418,174"}},{"$f":"($A12-$A11)/365.25*$D$1*(1+$D$2+(VLOOKUP('RE Appr'!CX19,'RE Appr'!$E$13:$J$59,6,FALSE)/100))","v":{"v":434212.5941136209,"d":"434,213"}},{"$f":"($A12-$A11)/365.25*$D$1*(1+$D$2+(VLOOKUP('RE Appr'!CY19,'RE Appr'!$E$13:$J$59,6,FALSE)/100))","v":{"v":386675.1540041068,"d":"386,675"}},{"$f":"($A12-$A11)/365.25*$D$1*(1+$D$2+(VLOOKUP('RE Appr'!CZ19,'RE Appr'!$E$13:$J$59,6,FALSE)/100))","v":{"v":386675.1540041068,"d":"386,675"}},{"$f":"($A12-$A11)/365.25*$D$1*(1+$D$2+(VLOOKUP('RE Appr'!DA19,'RE Appr'!$E$13:$J$59,6,FALSE)/100))","v":{"v":435181.93018480495,"d":"435,182"}},{"$f":"($A12-$A11)/365.25*$D$1*(1+$D$2+(VLOOKUP('RE Appr'!DB19,'RE Appr'!$E$13:$J$59,6,FALSE)/100))","v":{"v":423729.77412731,"d":"423,730"}},{"$f":"($A12-$A11)/365.25*$D$1*(1+$D$2+(VLOOKUP('RE Appr'!DC19,'RE Appr'!$E$13:$J$59,6,FALSE)/100))","v":{"v":422510.60917180014,"d":"422,511"}},{"$f":"($A12-$A11)/365.25*$D$1*(1+$D$2+(VLOOKUP('RE Appr'!DD19,'RE Appr'!$E$13:$J$59,6,FALSE)/100))","v":{"v":419542.64202600956,"d":"419,543"}},{"$f":"($A12-$A11)/365.25*$D$1*(1+$D$2+(VLOOKUP('RE Appr'!DE19,'RE Appr'!$E$13:$J$59,6,FALSE)/100))","v":{"v":416694.59274469543,"d":"416,695"}},{"$f":"($A12-$A11)/365.25*$D$1*(1+$D$2+(VLOOKUP('RE Appr'!DF19,'RE Appr'!$E$13:$J$59,6,FALSE)/100))","v":{"v":420192.19712525664,"d":"420,192"}},{"$f":"($A12-$A11)/365.25*$D$1*(1+$D$2+(VLOOKUP('RE Appr'!DG19,'RE Appr'!$E$13:$J$59,6,FALSE)/100))","v":{"v":383827.10472279263,"d":"383,827"}}]
[{"$f":"Main!A15","v":"2030-12-30"},8,{"$f":"$D$4-D13-4751","v":{"v":10075.035790426447,"d":"10,075"}},{"$f":"($E$5-SUM(C$6:C12))*$D$3","v":{"v":289.64420957355367,"d":"290"}},{"v":-0.45458786806739226,"d":"(0)"},{"$f":"($A13-$A12)/365.25*$D$1*(1+$D$2+(VLOOKUP('RE Appr'!L20,'RE Appr'!$E$13:$J$59,6,FALSE)/100))","v":{"v":401385.0787132102,"d":"401,385"}},{"$f":"($A13-$A12)/365.25*$D$1*(1+$D$2+(VLOOKUP('RE Appr'!M20,'RE Appr'!$E$13:$J$59,6,FALSE)/100))","v":{"v":412977.13894592744,"d":"412,977"}},{"$f":"($A13-$A12)/365.25*$D$1*(1+$D$2+(VLOOKUP('RE Appr'!N20,'RE Appr'!$E$13:$J$59,6,FALSE)/100))","v":{"v":420192.19712525664,"d":"420,192"}},{"$f":"($A13-$A12)/365.25*$D$1*(1+$D$2+(VLOOKUP('RE Appr'!O20,'RE Appr'!$E$13:$J$59,6,FALSE)/100))","v":{"v":429315.94798083504,"d":"429,316"}},{"$f":"($A13-$A12)/365.25*$D$1*(1+$D$2+(VLOOKUP('RE Appr'!P20,'RE Appr'!$E$13:$J$59,6,FALSE)/100))","v":{"v":420192.19712525664,"d":"420,192"}},{"$f":"($A13-$A12)/365.25*$D$1*(1+$D$2+(VLOOKUP('RE Appr'!Q20,'RE Appr'!$E$13:$J$59,6,FALSE)/100))","v":{"v":409269.6783025325,"d":"409,270"}},{"$f":"($A13-$A12)/365.25*$D$1*(1+$D$2+(VLOOKUP('RE Appr'!R20,'RE Appr'!$E$13:$J$59,6,FALSE)/100))","v":{"v":455687.8850102669,"d":"455,688"}},{"$f":"($A13-$A12)/365.25*$D$1*(1+$D$2+(VLOOKUP('RE Appr'!S20,'RE Appr'!$E$13:$J$59,6,FALSE)/100))","v":{"v":420192.19712525664,"d":"420,192"}},{"$f":"($A13-$A12)/365.25*$D$1*(1+$D$2+(VLOOKUP('RE Appr'!T20,'RE Appr'!$E$13:$J$59,6,FALSE)/100))","v":{"v":426041.984729592,"d":"426,042"}},{"$f":"($A13-$A12)/365.25*$D$1*(1+$D$2+(VLOOKUP('RE Appr'!U20,'RE Appr'!$E$13:$J$59,6,FALSE)/100))","v":{"v":412637.3716632444,"d":"412,637"}},{"$f":"($A13-$A12)/365.25*$D$1*(1+$D$2+(VLOOKUP('RE Appr'!V20,'RE Appr'!$E$13:$J$59,6,FALSE)/100))","v":{"v":434212.5941136209,"d":"434,213"}},{"$f":"($A13-$A12)/365.25*$D$1*(1+$D$2+(VLOOKUP('RE Appr'!W20,'RE Appr'!$E$13:$J$59,6,FALSE)/100))","v":{"v":417653.93566050654,"d":"417,654"}},{"$f":"($A13-$A12)/365.25*$D$1*(1+$D$2+(VLOOKUP('RE Appr'!X20,'RE Appr'!$E$13:$J$59,6,FALSE)/100))","v":{"v":417653.93566050654,"d":"417,654"}},{"$f":"($A13-$A12)/365.25*$D$1*(1+$D$2+(VLOOKUP('RE Appr'!Y20,'RE Appr'!$E$13:$J$59,6,FALSE)/100))","v":{"v":417653.93566050654,"d":"417,654"}},{"$f":"($A13-$A12)/365.25*$D$1*(1+$D$2+(VLOOKUP('RE Appr'!Z20,'RE Appr'!$E$13:$J$59,6,FALSE)/100))","v":{"v":423749.76043805614,"d":"423,750"}},{"$f":"($A13-$A12)/365.25*$D$1*(1+$D$2+(VLOOKUP('RE Appr'!AA20,'RE Appr'!$E$13:$J$59,6,FALSE)/100))","v":{"v":410728.67898699525,"d":"410,729"}},{"$f":"($A13-$A12)/365.25*$D$1*(1+$D$2+(VLOOKUP('RE Appr'!AB20,'RE Appr'!$E$13:$J$59,6,FALSE)/100))","v":{"v":386675.1540041068,"d":"386,675"}},{"$f":"($A13-$A12)/365.25*$D$1*(1+$D$2+(VLOOKUP('RE Appr'!AC20,'RE Appr'!$E$13:$J$59,6,FALSE)/100))","v":{"v":426041.984729592,"d":"426,042"}},{"$f":"($A13-$A12)/365.25*$D$1*(1+$D$2+(VLOOKUP('RE Appr'!AD20,'RE Appr'!$E$13:$J$59,6,FALSE)/100))","v":{"v":416234.9075975359,"d":"416,235"}},{"$f":"($A13-$A12)/365.25*$D$1*(1+$D$2+(VLOOKUP('RE Appr'!AE20,'RE Appr'!$E$13:$J$59,6,FALSE)/100))","v":{"v":407091.1704312115,"d":"407,091"}},{"$f":"($A13-$A12)/365.25*$D$1*(1+$D$2+(VLOOKUP('RE Appr'!AF20,'RE Appr'!$E$13:$J$59,6,FALSE)/100))","v":{"v":410728.67898699525,"d":"410,729"}},{"$f":"($A13-$A12)/365.25*$D$1*(1+$D$2+(VLOOKUP('RE Appr'!AG20,'RE Appr'!$E$13:$J$59,6,FALSE)/100))","v":{"v":371325.66735112935,"d":"371,326"}},{"$f":"($A13-$A12)/365.25*$D$1*(1+$D$2+(VLOOKUP('RE Appr'!AH20,'RE Appr'!$E$13:$J$59,6,FALSE)/100))","v":{"v":422510.60917180014,"d":"422,511"}},{"$f":"($A13-$A12)/365.25*$D$1*(1+$D$2+(VLOOKUP('RE Appr'!AI20,'RE Appr'!$E$13:$J$59,6,FALSE)/100))","v":{"v":399326.4887063655,"d":"399,326"}},{"$f":"($A13-$A12)/365.25*$D$1*(1+$D$2+(VLOOKUP('RE Appr'!AJ20,'RE Appr'!$E$13:$J$59,6,FALSE)/100))","v":{"v":414845.85900068446,"d":"414,846"}},{"$f":"($A13-$A12)/365.25*$D$1*(1+$D$2+(VLOOKUP('RE Appr'!AK20,'RE Appr'!$E$13:$J$59,6,FALSE)/100))","v":{"v":419542.64202600956,"d":"419,543"}},{"$f":"($A13-$A12)/365.25*$D$1*(1+$D$2+(VLOOKUP('RE Appr'!AL20,'RE Appr'!$E$13:$J$59,6,FALSE)/100))","v":{"v":411048.45995893225,"d":"411,048"}},{"$f":"($A13-$A12)/365.25*$D$1*(1+$D$2+(VLOOKUP('RE Appr'!AM20,'RE Appr'!$E$13:$J$59,6,FALSE)/100))","v":{"v":431774.264202601,"d":"431,774"}},{"$f":"($A13-$A12)/365.25*$D$1*(1+$D$2+(VLOOKUP('RE Appr'!AN20,'RE Appr'!$E$13:$J$59,6,FALSE)/100))","v":{"v":436840.79397672834,"d":"436,841"}},{"$f":"($A13-$A12)/365.25*$D$1*(1+$D$2+(VLOOKUP('RE Appr'!AO20,'RE Appr'!$E$13:$J$59,6,FALSE)/100))","v":{"v":418833.85952220886,"d":"418,834"}},{"$f":"($A13-$A12)/365.25*$D$1*(1+$D$2+(VLOOKUP('RE Appr'!AP20,'RE Appr'!$E$13:$J$59,6,FALSE)/100))","v":{"v":418833.85952220886,"d":"418,834"}},{"$f":"($A13-$A12)/365.25*$D$1*(1+$D$2+(VLOOKUP('RE Appr'!AQ20,'RE Appr'!$E$13:$J$59,6,FALSE)/100))","v":{"v":431774.264202601,"d":"431,774"}},{"$f":"($A13-$A12)/365.25*$D$1*(1+$D$2+(VLOOKUP('RE Appr'!AR20,'RE Appr'!$E$13:$J$59,6,FALSE)/100))","v":{"v":416694.59274469543,"d":"416,695"}},{"$f":"($A13-$A12)/365.25*$D$1*(1+$D$2+(VLOOKUP('RE Appr'!AS20,'RE Appr'!$E$13:$J$59,6,FALSE)/100))","v":{"v":409269.6783025325,"d":"409,270"}},{"$f":"($A13-$A12)/365.25*$D$1*(1+$D$2+(VLOOKUP('RE Appr'!AT20,'RE Appr'!$E$13:$J$59,6,FALSE)/100))","v":{"v":410728.67898699525,"d":"410,729"}},{"$f":"($A13-$A12)/365.25*$D$1*(1+$D$2+(VLOOKUP('RE Appr'!AU20,'RE Appr'!$E$13:$J$59,6,FALSE)/100))","v":{"v":441527.5838466804,"d":"441,528"}},{"$f":"($A13-$A12)/365.25*$D$1*(1+$D$2+(VLOOKUP('RE Appr'!AV20,'RE Appr'!$E$13:$J$59,6,FALSE)/100))","v":{"v":426041.984729592,"d":"426,042"}},{"$f":"($A13-$A12)/365.25*$D$1*(1+$D$2+(VLOOKUP('RE Appr'!AW20,'RE Appr'!$E$13:$J$59,6,FALSE)/100))","v":{"v":419289.85199380416,"d":"419,290"}},{"$f":"($A13-$A12)/365.25*$D$1*(1+$D$2+(VLOOKUP('RE Appr'!AX20,'RE Appr'!$E$13:$J$59,6,FALSE)/100))","v":{"v":416694.59274469543,"d":"416,695"}},{"$f":"($A13-$A12)/365.25*$D$1*(1+$D$2+(VLOOKUP('RE Appr'!AY20,'RE Appr'!$E$13:$J$59,6,FALSE)/100))","v":{"v":416234.9075975359,"d":"416,235"}},{"$f":"($A13-$A12)/365.25*$D$1*(1+$D$2+(VLOOKUP('RE Appr'!AZ20,'RE Appr'!$E$13:$J$59,6,FALSE)/100))","v":{"v":371325.66735112935,"d":"371,326"}},{"$f":"($A13-$A12)/365.25*$D$1*(1+$D$2+(VLOOKUP('RE Appr'!BA20,'RE Appr'!$E$13:$J$59,6,FALSE)/100))","v":{"v":418173.57973990415,"d":"418,174"}},{"$f":"($A13-$A12)/365.25*$D$1*(1+$D$2+(VLOOKUP('RE Appr'!BB20,'RE Appr'!$E$13:$J$59,6,FALSE)/100))","v":{"v":401385.0787132102,"d":"401,385"}},{"$f":"($A13-$A12)/365.25*$D$1*(1+$D$2+(VLOOKUP('RE Appr'!BC20,'RE Appr'!$E$13:$J$59,6,FALSE)/100))","v":{"v":423729.77412731,"d":"423,730"}},{"$f":"($A13-$A12)/365.25*$D$1*(1+$D$2+(VLOOKUP('RE Appr'!BD20,'RE Appr'!$E$13:$J$59,6,FALSE)/100))","v":{"v":420192.19712525664,"d":"420,192"}},{"$f":"($A13-$A12)/365.25*$D$1*(1+$D$2+(VLOOKUP('RE Appr'!BE20,'RE Appr'!$E$13:$J$59,6,FALSE)/100))","v":{"v":420192.19712525664,"d":"420,192"}},{"$f":"($A13-$A12)/365.25*$D$1*(1+$D$2+(VLOOKUP('RE Appr'!BF20,'RE Appr'!$E$13:$J$59,6,FALSE)/100))","v":{"v":386675.1540041068,"d":"386,675"}},{"$f":"($A13-$A12)/365.25*$D$1*(1+$D$2+(VLOOKUP('RE Appr'!BG20,'RE Appr'!$E$13:$J$59,6,FALSE)/100))","v":{"v":426041.984729592,"d":"426,042"}},{"$f":"($A13-$A12)/365.25*$D$1*(1+$D$2+(VLOOKUP('RE Appr'!BH20,'RE Appr'!$E$13:$J$59,6,FALSE)/100))","v":{"v":423729.77412731,"d":"423,730"}},{"$f":"($A13-$A12)/365.25*$D$1*(1+$D$2+(VLOOKUP('RE Appr'!BI20,'RE Appr'!$E$13:$J$59,6,FALSE)/100))","v":{"v":410728.67898699525,"d":"410,729"}},{"$f":"($A13-$A12)/365.25*$D$1*(1+$D$2+(VLOOKUP('RE Appr'!BJ20,'RE Appr'!$E$13:$J$59,6,FALSE)/100))","v":{"v":419632.5804243669,"d":"419,633"}},{"$f":"($A13-$A12)/365.25*$D$1*(1+$D$2+(VLOOKUP('RE Appr'!BK20,'RE Appr'!$E$13:$J$59,6,FALSE)/100))","v":{"v":371325.66735112935,"d":"371,326"}},{"$f":"($A13-$A12)/365.25*$D$1*(1+$D$2+(VLOOKUP('RE Appr'!BL20,'RE Appr'!$E$13:$J$59,6,FALSE)/100))","v":{"v":412277.6180698152,"d":"412,278"}},{"$f":"($A13-$A12)/365.25*$D$1*(1+$D$2+(VLOOKUP('RE Appr'!BM20,'RE Appr'!$E$13:$J$59,6,FALSE)/100))","v":{"v":371325.66735112935,"d":"371,326"}},{"$f":"($A13-$A12)/365.25*$D$1*(1+$D$2+(VLOOKUP('RE Appr'!BN20,'RE Appr'!$E$13:$J$59,6,FALSE)/100))","v":{"v":415847.54106599226,"d":"415,848"}},{"$f":"($A13-$A12)/365.25*$D$1*(1+$D$2+(VLOOKUP('RE Appr'!BO20,'RE Appr'!$E$13:$J$59,6,FALSE)/100))","v":{"v":419289.85199380416,"d":"419,290"}},{"$f":"($A13-$A12)/365.25*$D$1*(1+$D$2+(VLOOKUP('RE Appr'!BP20,'RE Appr'!$E$13:$J$59,6,FALSE)/100))","v":{"v":455687.8850102669,"d":"455,688"}},{"$f":"($A13-$A12)/365.25*$D$1*(1+$D$2+(VLOOKUP('RE Appr'!BQ20,'RE Appr'!$E$13:$J$59,6,FALSE)/100))","v":{"v":418833.85952220886,"d":"418,834"}},{"$f":"($A13-$A12)/365.25*$D$1*(1+$D$2+(VLOOKUP('RE Appr'!BR20,'RE Appr'!$E$13:$J$59,6,FALSE)/100))","v":{"v":420192.19712525664,"d":"420,192"}},{"$f":"($A13-$A12)/365.25*$D$1*(1+$D$2+(VLOOKUP('RE Appr'!BS20,'RE Appr'!$E$13:$J$59,6,FALSE)/100))","v":{"v":431774.264202601,"d":"431,774"}},{"$f":"($A13-$A12)/365.25*$D$1*(1+$D$2+(VLOOKUP('RE Appr'!BT20,'RE Appr'!$E$13:$J$59,6,FALSE)/100))","v":{"v":441107.871321013,"d":"441,108"}},{"$f":"($A13-$A12)/365.25*$D$1*(1+$D$2+(VLOOKUP('RE Appr'!BU20,'RE Appr'!$E$13:$J$59,6,FALSE)/100))","v":{"v":416694.59274469543,"d":"416,695"}},{"$f":"($A13-$A12)/365.25*$D$1*(1+$D$2+(VLOOKUP('RE Appr'!BV20,'RE Appr'!$E$13:$J$59,6,FALSE)/100))","v":{"v":451019.08281998633,"d":"451,019"}},{"$f":"($A13-$A12)/365.25*$D$1*(1+$D$2+(VLOOKUP('RE Appr'!BW20,'RE Appr'!$E$13:$J$59,6,FALSE)/100))","v":{"v":415045.72210814507,"d":"415,046"}},{"$f":"($A13-$A12)/365.25*$D$1*(1+$D$2+(VLOOKUP('RE Appr'!BX20,'RE Appr'!$E$13:$J$59,6,FALSE)/100))","v":{"v":417916.4969295789,"d":"417,916"}},{"$f":"($A13-$A12)/365.25*$D$1*(1+$D$2+(VLOOKUP('RE Appr'!BY20,'RE Appr'!$E$13:$J$59,6,FALSE)/100))","v":{"v":422510.60917180014,"d":"422,511"}},{"$f":"($A13-$A12)/365.25*$D$1*(1+$D$2+(VLOOKUP('RE Appr'!BZ20,'RE Appr'!$E$13:$J$59,6,FALSE)/100))","v":{"v":423749.76043805614,"d":"423,750"}},{"$f":"($A13-$A12)/365.25*$D$1*(1+$D$2+(VLOOKUP('RE Appr'!CA20,'RE Appr'!$E$13:$J$59,6,FALSE)/100))","v":{"v":429315.94798083504,"d":"429,316"}},{"$f":"($A13-$A12)/365.25*$D$1*(1+$D$2+(VLOOKUP('RE Appr'!CB20,'RE Appr'!$E$13:$J$59,6,FALSE)/100))","v":{"v":419342.77891854895,"d":"419,343"}},{"$f":"($A13-$A12)/365.25*$D$1*(1+$D$2+(VLOOKUP('RE Appr'!CC20,'RE Appr'!$E$13:$J$59,6,FALSE)/100))","v":{"v":419342.77891854895,"d":"419,343"}},{"$f":"($A13-$A12)/365.25*$D$1*(1+$D$2+(VLOOKUP('RE Appr'!CD20,'RE Appr'!$E$13:$J$59,6,FALSE)/100))","v":{"v":423749.76043805614,"d":"423,750"}},{"$f":"($A13-$A12)/365.25*$D$1*(1+$D$2+(VLOOKUP('RE Appr'!CE20,'RE Appr'!$E$13:$J$59,6,FALSE)/100))","v":{"v":419289.85199380416,"d":"419,290"}},{"$f":"($A13-$A12)/365.25*$D$1*(1+$D$2+(VLOOKUP('RE Appr'!CF20,'RE Appr'!$E$13:$J$59,6,FALSE)/100))","v":{"v":419632.5804243669,"d":"419,633"}},{"$f":"($A13-$A12)/365.25*$D$1*(1+$D$2+(VLOOKUP('RE Appr'!CG20,'RE Appr'!$E$13:$J$59,6,FALSE)/100))","v":{"v":440668.1724845996,"d":"440,668"}},{"$f":"($A13-$A12)/365.25*$D$1*(1+$D$2+(VLOOKUP('RE Appr'!CH20,'RE Appr'!$E$13:$J$59,6,FALSE)/100))","v":{"v":410728.67898699525,"d":"410,729"}},{"$f":"($A13-$A12)/365.25*$D$1*(1+$D$2+(VLOOKUP('RE Appr'!CI20,'RE Appr'!$E$13:$J$59,6,FALSE)/100))","v":{"v":451019.08281998633,"d":"451,019"}},{"$f":"($A13-$A12)/365.25*$D$1*(1+$D$2+(VLOOKUP('RE Appr'!CJ20,'RE Appr'!$E$13:$J$59,6,FALSE)/100))","v":{"v":435181.93018480495,"d":"435,182"}},{"$f":"($A13-$A12)/365.25*$D$1*(1+$D$2+(VLOOKUP('RE Appr'!CK20,'RE Appr'!$E$13:$J$59,6,FALSE)/100))","v":{"v":411048.45995893225,"d":"411,048"}},{"$f":"($A13-$A12)/365.25*$D$1*(1+$D$2+(VLOOKUP('RE Appr'!CL20,'RE Appr'!$E$13:$J$59,6,FALSE)/100))","v":{"v":412517.453798768,"d":"412,517"}},{"$f":"($A13-$A12)/365.25*$D$1*(1+$D$2+(VLOOKUP('RE Appr'!CM20,'RE Appr'!$E$13:$J$59,6,FALSE)/100))","v":{"v":455687.8850102669,"d":"455,688"}},{"$f":"($A13-$A12)/365.25*$D$1*(1+$D$2+(VLOOKUP('RE Appr'!CN20,'RE Appr'!$E$13:$J$59,6,FALSE)/100))","v":{"v":412977.13894592744,"d":"412,977"}},{"$f":"($A13-$A12)/365.25*$D$1*(1+$D$2+(VLOOKUP('RE Appr'!CO20,'RE Appr'!$E$13:$J$59,6,FALSE)/100))","v":{"v":429315.94798083504,"d":"429,316"}},{"$f":"($A13-$A12)/365.25*$D$1*(1+$D$2+(VLOOKUP('RE Appr'!CP20,'RE Appr'!$E$13:$J$59,6,FALSE)/100))","v":{"v":436840.79397672834,"d":"436,841"}},{"$f":"($A13-$A12)/365.25*$D$1*(1+$D$2+(VLOOKUP('RE Appr'!CQ20,'RE Appr'!$E$13:$J$59,6,FALSE)/100))","v":{"v":437040.65708418895,"d":"437,041"}},{"$f":"($A13-$A12)/365.25*$D$1*(1+$D$2+(VLOOKUP('RE Appr'!CR20,'RE Appr'!$E$13:$J$59,6,FALSE)/100))","v":{"v":412517.453798768,"d":"412,517"}},{"$f":"($A13-$A12)/365.25*$D$1*(1+$D$2+(VLOOKUP('RE Appr'!CS20,'RE Appr'!$E$13:$J$59,6,FALSE)/100))","v":{"v":410728.67898699525,"d":"410,729"}},{"$f":"($A13-$A12)/365.25*$D$1*(1+$D$2+(VLOOKUP('RE Appr'!CT20,'RE Appr'!$E$13:$J$59,6,FALSE)/100))","v":{"v":417653.93566050654,"d":"417,654"}},{"$f":"($A13-$A12)/365.25*$D$1*(1+$D$2+(VLOOKUP('RE Appr'!CU20,'RE Appr'!$E$13:$J$59,6,FALSE)/100))","v":{"v":435181.93018480495,"d":"435,182"}},{"$f":"($A13-$A12)/365.25*$D$1*(1+$D$2+(VLOOKUP('RE Appr'!CV20,'RE Appr'!$E$13:$J$59,6,FALSE)/100))","v":{"v":418173.57973990415,"d":"418,174"}},{"$f":"($A13-$A12)/365.25*$D$1*(1+$D$2+(VLOOKUP('RE Appr'!CW20,'RE Appr'!$E$13:$J$59,6,FALSE)/100))","v":{"v":375602.7378507871,"d":"375,603"}},{"$f":"($A13-$A12)/365.25*$D$1*(1+$D$2+(VLOOKUP('RE Appr'!CX20,'RE Appr'!$E$13:$J$59,6,FALSE)/100))","v":{"v":401385.0787132102,"d":"401,385"}},{"$f":"($A13-$A12)/365.25*$D$1*(1+$D$2+(VLOOKUP('RE Appr'!CY20,'RE Appr'!$E$13:$J$59,6,FALSE)/100))","v":{"v":386675.1540041068,"d":"386,675"}},{"$f":"($A13-$A12)/365.25*$D$1*(1+$D$2+(VLOOKUP('RE Appr'!CZ20,'RE Appr'!$E$13:$J$59,6,FALSE)/100))","v":{"v":399326.4887063655,"d":"399,326"}},{"$f":"($A13-$A12)/365.25*$D$1*(1+$D$2+(VLOOKUP('RE Appr'!DA20,'RE Appr'!$E$13:$J$59,6,FALSE)/100))","v":{"v":371325.66735112935,"d":"371,326"}},{"$f":"($A13-$A12)/365.25*$D$1*(1+$D$2+(VLOOKUP('RE Appr'!DB20,'RE Appr'!$E$13:$J$59,6,FALSE)/100))","v":{"v":418173.57973990415,"d":"418,174"}},{"$f":"($A13-$A12)/365.25*$D$1*(1+$D$2+(VLOOKUP('RE Appr'!DC20,'RE Appr'!$E$13:$J$59,6,FALSE)/100))","v":{"v":386675.1540041068,"d":"386,675"}},{"$f":"($A13-$A12)/365.25*$D$1*(1+$D$2+(VLOOKUP('RE Appr'!DD20,'RE Appr'!$E$13:$J$59,6,FALSE)/100))","v":{"v":417916.4969295789,"d":"417,916"}},{"$f":"($A13-$A12)/365.25*$D$1*(1+$D$2+(VLOOKUP('RE Appr'!DE20,'RE Appr'!$E$13:$J$59,6,FALSE)/100))","v":{"v":411048.45995893225,"d":"411,048"}},{"$f":"($A13-$A12)/365.25*$D$1*(1+$D$2+(VLOOKUP('RE Appr'!DF20,'RE Appr'!$E$13:$J$59,6,FALSE)/100))","v":{"v":414845.85900068446,"d":"414,846"}},{"$f":"($A13-$A12)/365.25*$D$1*(1+$D$2+(VLOOKUP('RE Appr'!DG20,'RE Appr'!$E$13:$J$59,6,FALSE)/100))","v":{"v":412977.13894592744,"d":"412,977"}}]
[{"$f":"Main!A16","v":"2031-12-31"},9,{"$nulls":3},{"$f":"($A14-$A13)/365.25*$D$1*(1+$D$2+(VLOOKUP('RE Appr'!L21,'RE Appr'!$E$13:$J$59,6,FALSE)/100))","v":{"v":442737.24845995894,"d":"442,737"}},{"$f":"($A14-$A13)/365.25*$D$1*(1+$D$2+(VLOOKUP('RE Appr'!M21,'RE Appr'!$E$13:$J$59,6,FALSE)/100))","v":{"v":436965.42094455846,"d":"436,965"}},{"$f":"($A14-$A13)/365.25*$D$1*(1+$D$2+(VLOOKUP('RE Appr'!N21,'RE Appr'!$E$13:$J$59,6,FALSE)/100))","v":{"v":416182.8336755646,"d":"416,183"}},{"$f":"($A14-$A13)/365.25*$D$1*(1+$D$2+(VLOOKUP('RE Appr'!O21,'RE Appr'!$E$13:$J$59,6,FALSE)/100))","v":{"v":471786.7761806981,"d":"471,787"}},{"$f":"($A14-$A13)/365.25*$D$1*(1+$D$2+(VLOOKUP('RE Appr'!P21,'RE Appr'!$E$13:$J$59,6,FALSE)/100))","v":{"v":430492.15605749487,"d":"430,492"}},{"$f":"($A14-$A13)/365.25*$D$1*(1+$D$2+(VLOOKUP('RE Appr'!Q21,'RE Appr'!$E$13:$J$59,6,FALSE)/100))","v":{"v":430492.15605749487,"d":"430,492"}},{"$f":"($A14-$A13)/365.25*$D$1*(1+$D$2+(VLOOKUP('RE Appr'!R21,'RE Appr'!$E$13:$J$59,6,FALSE)/100))","v":{"v":423668.1724845995,"d":"423,668"}},{"$f":"($A14-$A13)/365.25*$D$1*(1+$D$2+(VLOOKUP('RE Appr'!S21,'RE Appr'!$E$13:$J$59,6,FALSE)/100))","v":{"v":418798.1930184805,"d":"418,798"}},{"$f":"($A14-$A13)/365.25*$D$1*(1+$D$2+(VLOOKUP('RE Appr'!T21,'RE Appr'!$E$13:$J$59,6,FALSE)/100))","v":{"v":424890.67761806975,"d":"424,891"}},{"$f":"($A14-$A13)/365.25*$D$1*(1+$D$2+(VLOOKUP('RE Appr'!U21,'RE Appr'!$E$13:$J$59,6,FALSE)/100))","v":{"v":413407.1457905544,"d":"413,407"}},{"$f":"($A14-$A13)/365.25*$D$1*(1+$D$2+(VLOOKUP('RE Appr'!V21,'RE Appr'!$E$13:$J$59,6,FALSE)/100))","v":{"v":471786.7761806981,"d":"471,787"}},{"$f":"($A14-$A13)/365.25*$D$1*(1+$D$2+(VLOOKUP('RE Appr'!W21,'RE Appr'!$E$13:$J$59,6,FALSE)/100))","v":{"v":436374.2094455852,"d":"436,374"}},{"$f":"($A14-$A13)/365.25*$D$1*(1+$D$2+(VLOOKUP('RE Appr'!X21,'RE Appr'!$E$13:$J$59,6,FALSE)/100))","v":{"v":442737.24845995894,"d":"442,737"}},{"$f":"($A14-$A13)/365.25*$D$1*(1+$D$2+(VLOOKUP('RE Appr'!Y21,'RE Appr'!$E$13:$J$59,6,FALSE)/100))","v":{"v":418798.1930184805,"d":"418,798"}},{"$f":"($A14-$A13)/365.25*$D$1*(1+$D$2+(VLOOKUP('RE Appr'!Z21,'RE Appr'!$E$13:$J$59,6,FALSE)/100))","v":{"v":442316.386036961,"d":"442,316"}},{"$f":"($A14-$A13)/365.25*$D$1*(1+$D$2+(VLOOKUP('RE Appr'!AA21,'RE Appr'!$E$13:$J$59,6,FALSE)/100))","v":{"v":420438.5913143351,"d":"420,439"}},{"$f":"($A14-$A13)/365.25*$D$1*(1+$D$2+(VLOOKUP('RE Appr'!AB21,'RE Appr'!$E$13:$J$59,6,FALSE)/100))","v":{"v":410390.9650924025,"d":"410,391"}},{"$f":"($A14-$A13)/365.25*$D$1*(1+$D$2+(VLOOKUP('RE Appr'!AC21,'RE Appr'!$E$13:$J$59,6,FALSE)/100))","v":{"v":416182.8336755646,"d":"416,183"}},{"$f":"($A14-$A13)/365.25*$D$1*(1+$D$2+(VLOOKUP('RE Appr'!AD21,'RE Appr'!$E$13:$J$59,6,FALSE)/100))","v":{"v":420438.5913143351,"d":"420,439"}},{"$f":"($A14-$A13)/365.25*$D$1*(1+$D$2+(VLOOKUP('RE Appr'!AE21,'RE Appr'!$E$13:$J$59,6,FALSE)/100))","v":{"v":384878.68583162216,"d":"384,879"}},{"$f":"($A14-$A13)/365.25*$D$1*(1+$D$2+(VLOOKUP('RE Appr'!AF21,'RE Appr'!$E$13:$J$59,6,FALSE)/100))","v":{"v":400420.5338809035,"d":"400,421"}},{"$f":"($A14-$A13)/365.25*$D$1*(1+$D$2+(VLOOKUP('RE Appr'!AG21,'RE Appr'!$E$13:$J$59,6,FALSE)/100))","v":{"v":416423.3264887064,"d":"416,423"}},{"$f":"($A14-$A13)/365.25*$D$1*(1+$D$2+(VLOOKUP('RE Appr'!AH21,'RE Appr'!$E$13:$J$59,6,FALSE)/100))","v":{"v":420692.0739219712,"d":"420,692"}},{"$f":"($A14-$A13)/365.25*$D$1*(1+$D$2+(VLOOKUP('RE Appr'!AI21,'RE Appr'!$E$13:$J$59,6,FALSE)/100))","v":{"v":423668.1724845995,"d":"423,668"}},{"$f":"($A14-$A13)/365.25*$D$1*(1+$D$2+(VLOOKUP('RE Appr'!AJ21,'RE Appr'!$E$13:$J$59,6,FALSE)/100))","v":{"v":387734.53798767965,"d":"387,735"}},{"$f":"($A14-$A13)/365.25*$D$1*(1+$D$2+(VLOOKUP('RE Appr'!AK21,'RE Appr'!$E$13:$J$59,6,FALSE)/100))","v":{"v":417836.22176591377,"d":"417,836"}},{"$f":"($A14-$A13)/365.25*$D$1*(1+$D$2+(VLOOKUP('RE Appr'!AL21,'RE Appr'!$E$13:$J$59,6,FALSE)/100))","v":{"v":438238.0287474333,"d":"438,238"}},{"$f":"($A14-$A13)/365.25*$D$1*(1+$D$2+(VLOOKUP('RE Appr'!AM21,'RE Appr'!$E$13:$J$59,6,FALSE)/100))","v":{"v":408206.48870636546,"d":"408,206"}},{"$f":"($A14-$A13)/365.25*$D$1*(1+$D$2+(VLOOKUP('RE Appr'!AN21,'RE Appr'!$E$13:$J$59,6,FALSE)/100))","v":{"v":452254.75154004106,"d":"452,255"}},{"$f":"($A14-$A13)/365.25*$D$1*(1+$D$2+(VLOOKUP('RE Appr'!AO21,'RE Appr'!$E$13:$J$59,6,FALSE)/100))","v":{"v":438037.6180698152,"d":"438,038"}},{"$f":"($A14-$A13)/365.25*$D$1*(1+$D$2+(VLOOKUP('RE Appr'!AP21,'RE Appr'!$E$13:$J$59,6,FALSE)/100))","v":{"v":420438.5913143351,"d":"420,439"}},{"$f":"($A14-$A13)/365.25*$D$1*(1+$D$2+(VLOOKUP('RE Appr'!AQ21,'RE Appr'!$E$13:$J$59,6,FALSE)/100))","v":{"v":416182.8336755646,"d":"416,183"}},{"$f":"($A14-$A13)/365.25*$D$1*(1+$D$2+(VLOOKUP('RE Appr'!AR21,'RE Appr'!$E$13:$J$59,6,FALSE)/100))","v":{"v":419061.4736334955,"d":"419,061"}},{"$f":"($A14-$A13)/365.25*$D$1*(1+$D$2+(VLOOKUP('RE Appr'!AS21,'RE Appr'!$E$13:$J$59,6,FALSE)/100))","v":{"v":438238.0287474333,"d":"438,238"}},{"$f":"($A14-$A13)/365.25*$D$1*(1+$D$2+(VLOOKUP('RE Appr'!AT21,'RE Appr'!$E$13:$J$59,6,FALSE)/100))","v":{"v":416986.8493976799,"d":"416,987"}},{"$f":"($A14-$A13)/365.25*$D$1*(1+$D$2+(VLOOKUP('RE Appr'!AU21,'RE Appr'!$E$13:$J$59,6,FALSE)/100))","v":{"v":452254.75154004106,"d":"452,255"}},{"$f":"($A14-$A13)/365.25*$D$1*(1+$D$2+(VLOOKUP('RE Appr'!AV21,'RE Appr'!$E$13:$J$59,6,FALSE)/100))","v":{"v":420692.0739219712,"d":"420,692"}},{"$f":"($A14-$A13)/365.25*$D$1*(1+$D$2+(VLOOKUP('RE Appr'!AW21,'RE Appr'!$E$13:$J$59,6,FALSE)/100))","v":{"v":432957.20739219716,"d":"432,957"}},{"$f":"($A14-$A13)/365.25*$D$1*(1+$D$2+(VLOOKUP('RE Appr'!AX21,'RE Appr'!$E$13:$J$59,6,FALSE)/100))","v":{"v":376631.7864476386,"d":"376,632"}},{"$f":"($A14-$A13)/365.25*$D$1*(1+$D$2+(VLOOKUP('RE Appr'!AY21,'RE Appr'!$E$13:$J$59,6,FALSE)/100))","v":{"v":417375.27720739215,"d":"417,375"}},{"$f":"($A14-$A13)/365.25*$D$1*(1+$D$2+(VLOOKUP('RE Appr'!AZ21,'RE Appr'!$E$13:$J$59,6,FALSE)/100))","v":{"v":435402.2176591376,"d":"435,402"}},{"$f":"($A14-$A13)/365.25*$D$1*(1+$D$2+(VLOOKUP('RE Appr'!BA21,'RE Appr'!$E$13:$J$59,6,FALSE)/100))","v":{"v":420491.66324435314,"d":"420,492"}},{"$f":"($A14-$A13)/365.25*$D$1*(1+$D$2+(VLOOKUP('RE Appr'!BB21,'RE Appr'!$E$13:$J$59,6,FALSE)/100))","v":{"v":410390.9650924025,"d":"410,391"}},{"$f":"($A14-$A13)/365.25*$D$1*(1+$D$2+(VLOOKUP('RE Appr'!BC21,'RE Appr'!$E$13:$J$59,6,FALSE)/100))","v":{"v":419319.26078028744,"d":"419,319"}},{"$f":"($A14-$A13)/365.25*$D$1*(1+$D$2+(VLOOKUP('RE Appr'!BD21,'RE Appr'!$E$13:$J$59,6,FALSE)/100))","v":{"v":413647.6386036961,"d":"413,648"}},{"$f":"($A14-$A13)/365.25*$D$1*(1+$D$2+(VLOOKUP('RE Appr'!BE21,'RE Appr'!$E$13:$J$59,6,FALSE)/100))","v":{"v":414108.58316221763,"d":"414,109"}},{"$f":"($A14-$A13)/365.25*$D$1*(1+$D$2+(VLOOKUP('RE Appr'!BF21,'RE Appr'!$E$13:$J$59,6,FALSE)/100))","v":{"v":435402.2176591376,"d":"435,402"}},{"$f":"($A14-$A13)/365.25*$D$1*(1+$D$2+(VLOOKUP('RE Appr'!BG21,'RE Appr'!$E$13:$J$59,6,FALSE)/100))","v":{"v":420491.66324435314,"d":"420,492"}},{"$f":"($A14-$A13)/365.25*$D$1*(1+$D$2+(VLOOKUP('RE Appr'!BH21,'RE Appr'!$E$13:$J$59,6,FALSE)/100))","v":{"v":420782.2587268994,"d":"420,782"}},{"$f":"($A14-$A13)/365.25*$D$1*(1+$D$2+(VLOOKUP('RE Appr'!BI21,'RE Appr'!$E$13:$J$59,6,FALSE)/100))","v":{"v":430492.15605749487,"d":"430,492"}},{"$f":"($A14-$A13)/365.25*$D$1*(1+$D$2+(VLOOKUP('RE Appr'!BJ21,'RE Appr'!$E$13:$J$59,6,FALSE)/100))","v":{"v":418798.1930184805,"d":"418,798"}},{"$f":"($A14-$A13)/365.25*$D$1*(1+$D$2+(VLOOKUP('RE Appr'!BK21,'RE Appr'!$E$13:$J$59,6,FALSE)/100))","v":{"v":413647.6386036961,"d":"413,648"}},{"$f":"($A14-$A13)/365.25*$D$1*(1+$D$2+(VLOOKUP('RE Appr'!BL21,'RE Appr'!$E$13:$J$59,6,FALSE)/100))","v":{"v":410390.9650924025,"d":"410,391"}},{"$f":"($A14-$A13)/365.25*$D$1*(1+$D$2+(VLOOKUP('RE Appr'!BM21,'RE Appr'!$E$13:$J$59,6,FALSE)/100))","v":{"v":419981.34954829706,"d":"419,981"}},{"$f":"($A14-$A13)/365.25*$D$1*(1+$D$2+(VLOOKUP('RE Appr'!BN21,'RE Appr'!$E$13:$J$59,6,FALSE)/100))","v":{"v":384878.68583162216,"d":"384,879"}},{"$f":"($A14-$A13)/365.25*$D$1*(1+$D$2+(VLOOKUP('RE Appr'!BO21,'RE Appr'!$E$13:$J$59,6,FALSE)/100))","v":{"v":442737.24845995894,"d":"442,737"}},{"$f":"($A14-$A13)/365.25*$D$1*(1+$D$2+(VLOOKUP('RE Appr'!BP21,'RE Appr'!$E$13:$J$59,6,FALSE)/100))","v":{"v":436374.2094455852,"d":"436,374"}},{"$f":"($A14-$A13)/365.25*$D$1*(1+$D$2+(VLOOKUP('RE Appr'!BQ21,'RE Appr'!$E$13:$J$59,6,FALSE)/100))","v":{"v":438037.6180698152,"d":"438,038"}},{"$f":"($A14-$A13)/365.25*$D$1*(1+$D$2+(VLOOKUP('RE Appr'!BR21,'RE Appr'!$E$13:$J$59,6,FALSE)/100))","v":{"v":424890.67761806975,"d":"424,891"}},{"$f":"($A14-$A13)/365.25*$D$1*(1+$D$2+(VLOOKUP('RE Appr'!BS21,'RE Appr'!$E$13:$J$59,6,FALSE)/100))","v":{"v":415982.4229979466,"d":"415,982"}},{"$f":"($A14-$A13)/365.25*$D$1*(1+$D$2+(VLOOKUP('RE Appr'!BT21,'RE Appr'!$E$13:$J$59,6,FALSE)/100))","v":{"v":412174.62012320326,"d":"412,175"}},{"$f":"($A14-$A13)/365.25*$D$1*(1+$D$2+(VLOOKUP('RE Appr'!BU21,'RE Appr'!$E$13:$J$59,6,FALSE)/100))","v":{"v":418798.1930184805,"d":"418,798"}},{"$f":"($A14-$A13)/365.25*$D$1*(1+$D$2+(VLOOKUP('RE Appr'!BV21,'RE Appr'!$E$13:$J$59,6,FALSE)/100))","v":{"v":420491.66324435314,"d":"420,492"}},{"$f":"($A14-$A13)/365.25*$D$1*(1+$D$2+(VLOOKUP('RE Appr'!BW21,'RE Appr'!$E$13:$J$59,6,FALSE)/100))","v":{"v":438238.0287474333,"d":"438,238"}},{"$f":"($A14-$A13)/365.25*$D$1*(1+$D$2+(VLOOKUP('RE Appr'!BX21,'RE Appr'!$E$13:$J$59,6,FALSE)/100))","v":{"v":372342.9979466119,"d":"372,343"}},{"$f":"($A14-$A13)/365.25*$D$1*(1+$D$2+(VLOOKUP('RE Appr'!BY21,'RE Appr'!$E$13:$J$59,6,FALSE)/100))","v":{"v":471786.7761806981,"d":"471,787"}},{"$f":"($A14-$A13)/365.25*$D$1*(1+$D$2+(VLOOKUP('RE Appr'!BZ21,'RE Appr'!$E$13:$J$59,6,FALSE)/100))","v":{"v":411853.9630390144,"d":"411,854"}},{"$f":"($A14-$A13)/365.25*$D$1*(1+$D$2+(VLOOKUP('RE Appr'!CA21,'RE Appr'!$E$13:$J$59,6,FALSE)/100))","v":{"v":413647.6386036961,"d":"413,648"}},{"$f":"($A14-$A13)/365.25*$D$1*(1+$D$2+(VLOOKUP('RE Appr'!CB21,'RE Appr'!$E$13:$J$59,6,FALSE)/100))","v":{"v":418798.1930184805,"d":"418,798"}},{"$f":"($A14-$A13)/365.25*$D$1*(1+$D$2+(VLOOKUP('RE Appr'!CC21,'RE Appr'!$E$13:$J$59,6,FALSE)/100))","v":{"v":442737.24845995894,"d":"442,737"}},{"$f":"($A14-$A13)/365.25*$D$1*(1+$D$2+(VLOOKUP('RE Appr'!CD21,'RE Appr'!$E$13:$J$59,6,FALSE)/100))","v":{"v":435402.2176591376,"d":"435,402"}},{"$f":"($A14-$A13)/365.25*$D$1*(1+$D$2+(VLOOKUP('RE Appr'!CE21,'RE Appr'!$E$13:$J$59,6,FALSE)/100))","v":{"v":372342.9979466119,"d":"372,343"}},{"$f":"($A14-$A13)/365.25*$D$1*(1+$D$2+(VLOOKUP('RE Appr'!CF21,'RE Appr'!$E$13:$J$59,6,FALSE)/100))","v":{"v":419061.4736334955,"d":"419,061"}},{"$f":"($A14-$A13)/365.25*$D$1*(1+$D$2+(VLOOKUP('RE Appr'!CG21,'RE Appr'!$E$13:$J$59,6,FALSE)/100))","v":{"v":418798.1930184805,"d":"418,798"}},{"$f":"($A14-$A13)/365.25*$D$1*(1+$D$2+(VLOOKUP('RE Appr'!CH21,'RE Appr'!$E$13:$J$59,6,FALSE)/100))","v":{"v":420782.2587268994,"d":"420,782"}},{"$f":"($A14-$A13)/365.25*$D$1*(1+$D$2+(VLOOKUP('RE Appr'!CI21,'RE Appr'!$E$13:$J$59,6,FALSE)/100))","v":{"v":372342.9979466119,"d":"372,343"}},{"$f":"($A14-$A13)/365.25*$D$1*(1+$D$2+(VLOOKUP('RE Appr'!CJ21,'RE Appr'!$E$13:$J$59,6,FALSE)/100))","v":{"v":421343.40862422995,"d":"421,343"}},{"$f":"($A14-$A13)/365.25*$D$1*(1+$D$2+(VLOOKUP('RE Appr'!CK21,'RE Appr'!$E$13:$J$59,6,FALSE)/100))","v":{"v":438037.6180698152,"d":"438,038"}},{"$f":"($A14-$A13)/365.25*$D$1*(1+$D$2+(VLOOKUP('RE Appr'!CL21,'RE Appr'!$E$13:$J$59,6,FALSE)/100))","v":{"v":400420.5338809035,"d":"400,421"}},{"$f":"($A14-$A13)/365.25*$D$1*(1+$D$2+(VLOOKUP('RE Appr'!CM21,'RE Appr'!$E$13:$J$59,6,FALSE)/100))","v":{"v":430492.15605749487,"d":"430,492"}},{"$f":"($A14-$A13)/365.25*$D$1*(1+$D$2+(VLOOKUP('RE Appr'!CN21,'RE Appr'!$E$13:$J$59,6,FALSE)/100))","v":{"v":419981.34954829706,"d":"419,981"}},{"$f":"($A14-$A13)/365.25*$D$1*(1+$D$2+(VLOOKUP('RE Appr'!CO21,'RE Appr'!$E$13:$J$59,6,FALSE)/100))","v":{"v":452254.75154004106,"d":"452,255"}},{"$f":"($A14-$A13)/365.25*$D$1*(1+$D$2+(VLOOKUP('RE Appr'!CP21,'RE Appr'!$E$13:$J$59,6,FALSE)/100))","v":{"v":420438.5913143351,"d":"420,439"}},{"$f":"($A14-$A13)/365.25*$D$1*(1+$D$2+(VLOOKUP('RE Appr'!CQ21,'RE Appr'!$E$13:$J$59,6,FALSE)/100))","v":{"v":424910.71868583164,"d":"424,911"}},{"$f":"($A14-$A13)/365.25*$D$1*(1+$D$2+(VLOOKUP('RE Appr'!CR21,'RE Appr'!$E$13:$J$59,6,FALSE)/100))","v":{"v":430492.15605749487,"d":"430,492"}},{"$f":"($A14-$A13)/365.25*$D$1*(1+$D$2+(VLOOKUP('RE Appr'!CS21,'RE Appr'!$E$13:$J$59,6,FALSE)/100))","v":{"v":384878.68583162216,"d":"384,879"}},{"$f":"($A14-$A13)/365.25*$D$1*(1+$D$2+(VLOOKUP('RE Appr'!CT21,'RE Appr'!$E$13:$J$59,6,FALSE)/100))","v":{"v":420782.2587268994,"d":"420,782"}},{"$f":"($A14-$A13)/365.25*$D$1*(1+$D$2+(VLOOKUP('RE Appr'!CU21,'RE Appr'!$E$13:$J$59,6,FALSE)/100))","v":{"v":424910.71868583164,"d":"424,911"}},{"$f":"($A14-$A13)/365.25*$D$1*(1+$D$2+(VLOOKUP('RE Appr'!CV21,'RE Appr'!$E$13:$J$59,6,FALSE)/100))","v":{"v":436374.2094455852,"d":"436,374"}},{"$f":"($A14-$A13)/365.25*$D$1*(1+$D$2+(VLOOKUP('RE Appr'!CW21,'RE Appr'!$E$13:$J$59,6,FALSE)/100))","v":{"v":416423.3264887064,"d":"416,423"}},{"$f":"($A14-$A13)/365.25*$D$1*(1+$D$2+(VLOOKUP('RE Appr'!CX21,'RE Appr'!$E$13:$J$59,6,FALSE)/100))","v":{"v":441875.4825462012,"d":"441,875"}},{"$f":"($A14-$A13)/365.25*$D$1*(1+$D$2+(VLOOKUP('RE Appr'!CY21,'RE Appr'!$E$13:$J$59,6,FALSE)/100))","v":{"v":432957.20739219716,"d":"432,957"}},{"$f":"($A14-$A13)/365.25*$D$1*(1+$D$2+(VLOOKUP('RE Appr'!CZ21,'RE Appr'!$E$13:$J$59,6,FALSE)/100))","v":{"v":419061.4736334955,"d":"419,061"}},{"$f":"($A14-$A13)/365.25*$D$1*(1+$D$2+(VLOOKUP('RE Appr'!DA21,'RE Appr'!$E$13:$J$59,6,FALSE)/100))","v":{"v":417375.27720739215,"d":"417,375"}},{"$f":"($A14-$A13)/365.25*$D$1*(1+$D$2+(VLOOKUP('RE Appr'!DB21,'RE Appr'!$E$13:$J$59,6,FALSE)/100))","v":{"v":387734.53798767965,"d":"387,735"}},{"$f":"($A14-$A13)/365.25*$D$1*(1+$D$2+(VLOOKUP('RE Appr'!DC21,'RE Appr'!$E$13:$J$59,6,FALSE)/100))","v":{"v":417375.27720739215,"d":"417,375"}},{"$f":"($A14-$A13)/365.25*$D$1*(1+$D$2+(VLOOKUP('RE Appr'!DD21,'RE Appr'!$E$13:$J$59,6,FALSE)/100))","v":{"v":422821.22285647056,"d":"422,821"}},{"$f":"($A14-$A13)/365.25*$D$1*(1+$D$2+(VLOOKUP('RE Appr'!DE21,'RE Appr'!$E$13:$J$59,6,FALSE)/100))","v":{"v":442737.24845995894,"d":"442,737"}},{"$f":"($A14-$A13)/365.25*$D$1*(1+$D$2+(VLOOKUP('RE Appr'!DF21,'RE Appr'!$E$13:$J$59,6,FALSE)/100))","v":{"v":420438.5913143351,"d":"420,439"}},{"$f":"($A14-$A13)/365.25*$D$1*(1+$D$2+(VLOOKUP('RE Appr'!DG21,'RE Appr'!$E$13:$J$59,6,FALSE)/100))","v":{"v":420692.0739219712,"d":"420,692"}}]
[{"$f":"Main!A17","v":"2032-12-30"},10,{"$nulls":3},{"$f":"($A15-$A14)/365.25*$D$1*(1+$D$2+(VLOOKUP('RE Appr'!L22,'RE Appr'!$E$13:$J$59,6,FALSE)/100))","v":{"v":437040.65708418895,"d":"437,041"}},{"$f":"($A15-$A14)/365.25*$D$1*(1+$D$2+(VLOOKUP('RE Appr'!M22,'RE Appr'!$E$13:$J$59,6,FALSE)/100))","v":{"v":417916.4969295789,"d":"417,916"}},{"$f":"($A15-$A14)/365.25*$D$1*(1+$D$2+(VLOOKUP('RE Appr'!N22,'RE Appr'!$E$13:$J$59,6,FALSE)/100))","v":{"v":435771.5263518138,"d":"435,772"}},{"$f":"($A15-$A14)/365.25*$D$1*(1+$D$2+(VLOOKUP('RE Appr'!O22,'RE Appr'!$E$13:$J$59,6,FALSE)/100))","v":{"v":441107.871321013,"d":"441,108"}},{"$f":"($A15-$A14)/365.25*$D$1*(1+$D$2+(VLOOKUP('RE Appr'!P22,'RE Appr'!$E$13:$J$59,6,FALSE)/100))","v":{"v":426041.984729592,"d":"426,042"}},{"$f":"($A15-$A14)/365.25*$D$1*(1+$D$2+(VLOOKUP('RE Appr'!Q22,'RE Appr'!$E$13:$J$59,6,FALSE)/100))","v":{"v":401385.0787132102,"d":"401,385"}},{"$f":"($A15-$A14)/365.25*$D$1*(1+$D$2+(VLOOKUP('RE Appr'!R22,'RE Appr'!$E$13:$J$59,6,FALSE)/100))","v":{"v":429315.94798083504,"d":"429,316"}},{"$f":"($A15-$A14)/365.25*$D$1*(1+$D$2+(VLOOKUP('RE Appr'!S22,'RE Appr'!$E$13:$J$59,6,FALSE)/100))","v":{"v":417916.4969295789,"d":"417,916"}},{"$f":"($A15-$A14)/365.25*$D$1*(1+$D$2+(VLOOKUP('RE Appr'!T22,'RE Appr'!$E$13:$J$59,6,FALSE)/100))","v":{"v":421665.9736136933,"d":"421,666"}},{"$f":"($A15-$A14)/365.25*$D$1*(1+$D$2+(VLOOKUP('RE Appr'!U22,'RE Appr'!$E$13:$J$59,6,FALSE)/100))","v":{"v":419632.5804243669,"d":"419,633"}},{"$f":"($A15-$A14)/365.25*$D$1*(1+$D$2+(VLOOKUP('RE Appr'!V22,'RE Appr'!$E$13:$J$59,6,FALSE)/100))","v":{"v":429315.94798083504,"d":"429,316"}},{"$f":"($A15-$A14)/365.25*$D$1*(1+$D$2+(VLOOKUP('RE Appr'!W22,'RE Appr'!$E$13:$J$59,6,FALSE)/100))","v":{"v":436840.79397672834,"d":"436,841"}},{"$f":"($A15-$A14)/365.25*$D$1*(1+$D$2+(VLOOKUP('RE Appr'!X22,'RE Appr'!$E$13:$J$59,6,FALSE)/100))","v":{"v":419632.5804243669,"d":"419,633"}},{"$f":"($A15-$A14)/365.25*$D$1*(1+$D$2+(VLOOKUP('RE Appr'!Y22,'RE Appr'!$E$13:$J$59,6,FALSE)/100))","v":{"v":414845.85900068446,"d":"414,846"}},{"$f":"($A15-$A14)/365.25*$D$1*(1+$D$2+(VLOOKUP('RE Appr'!Z22,'RE Appr'!$E$13:$J$59,6,FALSE)/100))","v":{"v":416234.9075975359,"d":"416,235"}},{"$f":"($A15-$A14)/365.25*$D$1*(1+$D$2+(VLOOKUP('RE Appr'!AA22,'RE Appr'!$E$13:$J$59,6,FALSE)/100))","v":{"v":434212.5941136209,"d":"434,213"}},{"$f":"($A15-$A14)/365.25*$D$1*(1+$D$2+(VLOOKUP('RE Appr'!AB22,'RE Appr'!$E$13:$J$59,6,FALSE)/100))","v":{"v":440668.1724845996,"d":"440,668"}},{"$f":"($A15-$A14)/365.25*$D$1*(1+$D$2+(VLOOKUP('RE Appr'!AC22,'RE Appr'!$E$13:$J$59,6,FALSE)/100))","v":{"v":429315.94798083504,"d":"429,316"}},{"$f":"($A15-$A14)/365.25*$D$1*(1+$D$2+(VLOOKUP('RE Appr'!AD22,'RE Appr'!$E$13:$J$59,6,FALSE)/100))","v":{"v":386675.1540041068,"d":"386,675"}},{"$f":"($A15-$A14)/365.25*$D$1*(1+$D$2+(VLOOKUP('RE Appr'!AE22,'RE Appr'!$E$13:$J$59,6,FALSE)/100))","v":{"v":436840.79397672834,"d":"436,841"}},{"$f":"($A15-$A14)/365.25*$D$1*(1+$D$2+(VLOOKUP('RE Appr'!AF22,'RE Appr'!$E$13:$J$59,6,FALSE)/100))","v":{"v":412977.13894592744,"d":"412,977"}},{"$f":"($A15-$A14)/365.25*$D$1*(1+$D$2+(VLOOKUP('RE Appr'!AG22,'RE Appr'!$E$13:$J$59,6,FALSE)/100))","v":{"v":417916.4969295789,"d":"417,916"}},{"$f":"($A15-$A14)/365.25*$D$1*(1+$D$2+(VLOOKUP('RE Appr'!AH22,'RE Appr'!$E$13:$J$59,6,FALSE)/100))","v":{"v":455687.8850102669,"d":"455,688"}},{"$f":"($A15-$A14)/365.25*$D$1*(1+$D$2+(VLOOKUP('RE Appr'!AI22,'RE Appr'!$E$13:$J$59,6,FALSE)/100))","v":{"v":407091.1704312115,"d":"407,091"}},{"$f":"($A15-$A14)/365.25*$D$1*(1+$D$2+(VLOOKUP('RE Appr'!AJ22,'RE Appr'!$E$13:$J$59,6,FALSE)/100))","v":{"v":410728.67898699525,"d":"410,729"}},{"$f":"($A15-$A14)/365.25*$D$1*(1+$D$2+(VLOOKUP('RE Appr'!AK22,'RE Appr'!$E$13:$J$59,6,FALSE)/100))","v":{"v":451019.08281998633,"d":"451,019"}},{"$f":"($A15-$A14)/365.25*$D$1*(1+$D$2+(VLOOKUP('RE Appr'!AL22,'RE Appr'!$E$13:$J$59,6,FALSE)/100))","v":{"v":410728.67898699525,"d":"410,729"}},{"$f":"($A15-$A14)/365.25*$D$1*(1+$D$2+(VLOOKUP('RE Appr'!AM22,'RE Appr'!$E$13:$J$59,6,FALSE)/100))","v":{"v":416694.59274469543,"d":"416,695"}},{"$f":"($A15-$A14)/365.25*$D$1*(1+$D$2+(VLOOKUP('RE Appr'!AN22,'RE Appr'!$E$13:$J$59,6,FALSE)/100))","v":{"v":422510.60917180014,"d":"422,511"}},{"$f":"($A15-$A14)/365.25*$D$1*(1+$D$2+(VLOOKUP('RE Appr'!AO22,'RE Appr'!$E$13:$J$59,6,FALSE)/100))","v":{"v":429315.94798083504,"d":"429,316"}},{"$f":"($A15-$A14)/365.25*$D$1*(1+$D$2+(VLOOKUP('RE Appr'!AP22,'RE Appr'!$E$13:$J$59,6,FALSE)/100))","v":{"v":411048.45995893225,"d":"411,048"}},{"$f":"($A15-$A14)/365.25*$D$1*(1+$D$2+(VLOOKUP('RE Appr'!AQ22,'RE Appr'!$E$13:$J$59,6,FALSE)/100))","v":{"v":407091.1704312115,"d":"407,091"}},{"$f":"($A15-$A14)/365.25*$D$1*(1+$D$2+(VLOOKUP('RE Appr'!AR22,'RE Appr'!$E$13:$J$59,6,FALSE)/100))","v":{"v":451019.08281998633,"d":"451,019"}},{"$f":"($A15-$A14)/365.25*$D$1*(1+$D$2+(VLOOKUP('RE Appr'!AS22,'RE Appr'!$E$13:$J$59,6,FALSE)/100))","v":{"v":386675.1540041068,"d":"386,675"}},{"$f":"($A15-$A14)/365.25*$D$1*(1+$D$2+(VLOOKUP('RE Appr'!AT22,'RE Appr'!$E$13:$J$59,6,FALSE)/100))","v":{"v":422510.60917180014,"d":"422,511"}},{"$f":"($A15-$A14)/365.25*$D$1*(1+$D$2+(VLOOKUP('RE Appr'!AU22,'RE Appr'!$E$13:$J$59,6,FALSE)/100))","v":{"v":441527.5838466804,"d":"441,528"}},{"$f":"($A15-$A14)/365.25*$D$1*(1+$D$2+(VLOOKUP('RE Appr'!AV22,'RE Appr'!$E$13:$J$59,6,FALSE)/100))","v":{"v":412977.13894592744,"d":"412,977"}},{"$f":"($A15-$A14)/365.25*$D$1*(1+$D$2+(VLOOKUP('RE Appr'!AW22,'RE Appr'!$E$13:$J$59,6,FALSE)/100))","v":{"v":414845.85900068446,"d":"414,846"}},{"$f":"($A15-$A14)/365.25*$D$1*(1+$D$2+(VLOOKUP('RE Appr'!AX22,'RE Appr'!$E$13:$J$59,6,FALSE)/100))","v":{"v":431774.264202601,"d":"431,774"}},{"$f":"($A15-$A14)/365.25*$D$1*(1+$D$2+(VLOOKUP('RE Appr'!AY22,'RE Appr'!$E$13:$J$59,6,FALSE)/100))","v":{"v":441107.871321013,"d":"441,108"}},{"$f":"($A15-$A14)/365.25*$D$1*(1+$D$2+(VLOOKUP('RE Appr'!AZ22,'RE Appr'!$E$13:$J$59,6,FALSE)/100))","v":{"v":418833.85952220886,"d":"418,834"}},{"$f":"($A15-$A14)/365.25*$D$1*(1+$D$2+(VLOOKUP('RE Appr'!BA22,'RE Appr'!$E$13:$J$59,6,FALSE)/100))","v":{"v":412277.6180698152,"d":"412,278"}},{"$f":"($A15-$A14)/365.25*$D$1*(1+$D$2+(VLOOKUP('RE Appr'!BB22,'RE Appr'!$E$13:$J$59,6,FALSE)/100))","v":{"v":440668.1724845996,"d":"440,668"}},{"$f":"($A15-$A14)/365.25*$D$1*(1+$D$2+(VLOOKUP('RE Appr'!BC22,'RE Appr'!$E$13:$J$59,6,FALSE)/100))","v":{"v":412517.453798768,"d":"412,517"}},{"$f":"($A15-$A14)/365.25*$D$1*(1+$D$2+(VLOOKUP('RE Appr'!BD22,'RE Appr'!$E$13:$J$59,6,FALSE)/100))","v":{"v":401385.0787132102,"d":"401,385"}},{"$f":"($A15-$A14)/365.25*$D$1*(1+$D$2+(VLOOKUP('RE Appr'!BE22,'RE Appr'!$E$13:$J$59,6,FALSE)/100))","v":{"v":419542.64202600956,"d":"419,543"}},{"$f":"($A15-$A14)/365.25*$D$1*(1+$D$2+(VLOOKUP('RE Appr'!BF22,'RE Appr'!$E$13:$J$59,6,FALSE)/100))","v":{"v":383827.10472279263,"d":"383,827"}},{"$f":"($A15-$A14)/365.25*$D$1*(1+$D$2+(VLOOKUP('RE Appr'!BG22,'RE Appr'!$E$13:$J$59,6,FALSE)/100))","v":{"v":399326.4887063655,"d":"399,326"}},{"$f":"($A15-$A14)/365.25*$D$1*(1+$D$2+(VLOOKUP('RE Appr'!BH22,'RE Appr'!$E$13:$J$59,6,FALSE)/100))","v":{"v":441527.5838466804,"d":"441,528"}},{"$f":"($A15-$A14)/365.25*$D$1*(1+$D$2+(VLOOKUP('RE Appr'!BI22,'RE Appr'!$E$13:$J$59,6,FALSE)/100))","v":{"v":386675.1540041068,"d":"386,675"}},{"$f":"($A15-$A14)/365.25*$D$1*(1+$D$2+(VLOOKUP('RE Appr'!BJ22,'RE Appr'!$E$13:$J$59,6,FALSE)/100))","v":{"v":375602.7378507871,"d":"375,603"}},{"$f":"($A15-$A14)/365.25*$D$1*(1+$D$2+(VLOOKUP('RE Appr'!BK22,'RE Appr'!$E$13:$J$59,6,FALSE)/100))","v":{"v":419289.85199380416,"d":"419,290"}},{"$f":"($A15-$A14)/365.25*$D$1*(1+$D$2+(VLOOKUP('RE Appr'!BL22,'RE Appr'!$E$13:$J$59,6,FALSE)/100))","v":{"v":429315.94798083504,"d":"429,316"}},{"$f":"($A15-$A14)/365.25*$D$1*(1+$D$2+(VLOOKUP('RE Appr'!BM22,'RE Appr'!$E$13:$J$59,6,FALSE)/100))","v":{"v":431774.264202601,"d":"431,774"}},{"$f":"($A15-$A14)/365.25*$D$1*(1+$D$2+(VLOOKUP('RE Appr'!BN22,'RE Appr'!$E$13:$J$59,6,FALSE)/100))","v":{"v":414845.85900068446,"d":"414,846"}},{"$f":"($A15-$A14)/365.25*$D$1*(1+$D$2+(VLOOKUP('RE Appr'!BO22,'RE Appr'!$E$13:$J$59,6,FALSE)/100))","v":{"v":418173.57973990415,"d":"418,174"}},{"$f":"($A15-$A14)/365.25*$D$1*(1+$D$2+(VLOOKUP('RE Appr'!BP22,'RE Appr'!$E$13:$J$59,6,FALSE)/100))","v":{"v":435181.93018480495,"d":"435,182"}},{"$f":"($A15-$A14)/365.25*$D$1*(1+$D$2+(VLOOKUP('RE Appr'!BQ22,'RE Appr'!$E$13:$J$59,6,FALSE)/100))","v":{"v":435771.5263518138,"d":"435,772"}},{"$f":"($A15-$A14)/365.25*$D$1*(1+$D$2+(VLOOKUP('RE Appr'!BR22,'RE Appr'!$E$13:$J$59,6,FALSE)/100))","v":{"v":419632.5804243669,"d":"419,633"}},{"$f":"($A15-$A14)/365.25*$D$1*(1+$D$2+(VLOOKUP('RE Appr'!BS22,'RE Appr'!$E$13:$J$59,6,FALSE)/100))","v":{"v":409269.6783025325,"d":"409,270"}},{"$f":"($A15-$A14)/365.25*$D$1*(1+$D$2+(VLOOKUP('RE Appr'!BT22,'RE Appr'!$E$13:$J$59,6,FALSE)/100))","v":{"v":420192.19712525664,"d":"420,192"}},{"$f":"($A15-$A14)/365.25*$D$1*(1+$D$2+(VLOOKUP('RE Appr'!BU22,'RE Appr'!$E$13:$J$59,6,FALSE)/100))","v":{"v":420192.19712525664,"d":"420,192"}},{"$f":"($A15-$A14)/365.25*$D$1*(1+$D$2+(VLOOKUP('RE Appr'!BV22,'RE Appr'!$E$13:$J$59,6,FALSE)/100))","v":{"v":415045.72210814507,"d":"415,046"}},{"$f":"($A15-$A14)/365.25*$D$1*(1+$D$2+(VLOOKUP('RE Appr'!BW22,'RE Appr'!$E$13:$J$59,6,FALSE)/100))","v":{"v":412637.3716632444,"d":"412,637"}},{"$f":"($A15-$A14)/365.25*$D$1*(1+$D$2+(VLOOKUP('RE Appr'!BX22,'RE Appr'!$E$13:$J$59,6,FALSE)/100))","v":{"v":415847.54106599226,"d":"415,848"}},{"$f":"($A15-$A14)/365.25*$D$1*(1+$D$2+(VLOOKUP('RE Appr'!BY22,'RE Appr'!$E$13:$J$59,6,FALSE)/100))","v":{"v":412977.13894592744,"d":"412,977"}},{"$f":"($A15-$A14)/365.25*$D$1*(1+$D$2+(VLOOKUP('RE Appr'!BZ22,'RE Appr'!$E$13:$J$59,6,FALSE)/100))","v":{"v":419542.64202600956,"d":"419,543"}},{"$f":"($A15-$A14)/365.25*$D$1*(1+$D$2+(VLOOKUP('RE Appr'!CA22,'RE Appr'!$E$13:$J$59,6,FALSE)/100))","v":{"v":431774.264202601,"d":"431,774"}},{"$f":"($A15-$A14)/365.25*$D$1*(1+$D$2+(VLOOKUP('RE Appr'!CB22,'RE Appr'!$E$13:$J$59,6,FALSE)/100))","v":{"v":411048.45995893225,"d":"411,048"}},{"$f":"($A15-$A14)/365.25*$D$1*(1+$D$2+(VLOOKUP('RE Appr'!CC22,'RE Appr'!$E$13:$J$59,6,FALSE)/100))","v":{"v":410728.67898699525,"d":"410,729"}},{"$f":"($A15-$A14)/365.25*$D$1*(1+$D$2+(VLOOKUP('RE Appr'!CD22,'RE Appr'!$E$13:$J$59,6,FALSE)/100))","v":{"v":426041.984729592,"d":"426,042"}},{"$f":"($A15-$A14)/365.25*$D$1*(1+$D$2+(VLOOKUP('RE Appr'!CE22,'RE Appr'!$E$13:$J$59,6,FALSE)/100))","v":{"v":437040.65708418895,"d":"437,041"}},{"$f":"($A15-$A14)/365.25*$D$1*(1+$D$2+(VLOOKUP('RE Appr'!CF22,'RE Appr'!$E$13:$J$59,6,FALSE)/100))","v":{"v":414845.85900068446,"d":"414,846"}},{"$f":"($A15-$A14)/365.25*$D$1*(1+$D$2+(VLOOKUP('RE Appr'!CG22,'RE Appr'!$E$13:$J$59,6,FALSE)/100))","v":{"v":435181.93018480495,"d":"435,182"}},{"$f":"($A15-$A14)/365.25*$D$1*(1+$D$2+(VLOOKUP('RE Appr'!CH22,'RE Appr'!$E$13:$J$59,6,FALSE)/100))","v":{"v":371325.66735112935,"d":"371,326"}},{"$f":"($A15-$A14)/365.25*$D$1*(1+$D$2+(VLOOKUP('RE Appr'!CI22,'RE Appr'!$E$13:$J$59,6,FALSE)/100))","v":{"v":441107.871321013,"d":"441,108"}},{"$f":"($A15-$A14)/365.25*$D$1*(1+$D$2+(VLOOKUP('RE Appr'!CJ22,'RE Appr'!$E$13:$J$59,6,FALSE)/100))","v":{"v":416694.59274469543,"d":"416,695"}},{"$f":"($A15-$A14)/365.25*$D$1*(1+$D$2+(VLOOKUP('RE Appr'!CK22,'RE Appr'!$E$13:$J$59,6,FALSE)/100))","v":{"v":407091.1704312115,"d":"407,091"}},{"$f":"($A15-$A14)/365.25*$D$1*(1+$D$2+(VLOOKUP('RE Appr'!CL22,'RE Appr'!$E$13:$J$59,6,FALSE)/100))","v":{"v":423749.76043805614,"d":"423,750"}},{"$f":"($A15-$A14)/365.25*$D$1*(1+$D$2+(VLOOKUP('RE Appr'!CM22,'RE Appr'!$E$13:$J$59,6,FALSE)/100))","v":{"v":436840.79397672834,"d":"436,841"}},{"$f":"($A15-$A14)/365.25*$D$1*(1+$D$2+(VLOOKUP('RE Appr'!CN22,'RE Appr'!$E$13:$J$59,6,FALSE)/100))","v":{"v":414845.85900068446,"d":"414,846"}},{"$f":"($A15-$A14)/365.25*$D$1*(1+$D$2+(VLOOKUP('RE Appr'!CO22,'RE Appr'!$E$13:$J$59,6,FALSE)/100))","v":{"v":417653.93566050654,"d":"417,654"}},{"$f":"($A15-$A14)/365.25*$D$1*(1+$D$2+(VLOOKUP('RE Appr'!CP22,'RE Appr'!$E$13:$J$59,6,FALSE)/100))","v":{"v":440668.1724845996,"d":"440,668"}},{"$f":"($A15-$A14)/365.25*$D$1*(1+$D$2+(VLOOKUP('RE Appr'!CQ22,'RE Appr'!$E$13:$J$59,6,FALSE)/100))","v":{"v":411048.45995893225,"d":"411,048"}},{"$f":"($A15-$A14)/365.25*$D$1*(1+$D$2+(VLOOKUP('RE Appr'!CR22,'RE Appr'!$E$13:$J$59,6,FALSE)/100))","v":{"v":416694.59274469543,"d":"416,695"}},{"$f":"($A15-$A14)/365.25*$D$1*(1+$D$2+(VLOOKUP('RE Appr'!CS22,'RE Appr'!$E$13:$J$59,6,FALSE)/100))","v":{"v":411048.45995893225,"d":"411,048"}},{"$f":"($A15-$A14)/365.25*$D$1*(1+$D$2+(VLOOKUP('RE Appr'!CT22,'RE Appr'!$E$13:$J$59,6,FALSE)/100))","v":{"v":420192.19712525664,"d":"420,192"}},{"$f":"($A15-$A14)/365.25*$D$1*(1+$D$2+(VLOOKUP('RE Appr'!CU22,'RE Appr'!$E$13:$J$59,6,FALSE)/100))","v":{"v":455687.8850102669,"d":"455,688"}},{"$f":"($A15-$A14)/365.25*$D$1*(1+$D$2+(VLOOKUP('RE Appr'!CV22,'RE Appr'!$E$13:$J$59,6,FALSE)/100))","v":{"v":419632.5804243669,"d":"419,633"}},{"$f":"($A15-$A14)/365.25*$D$1*(1+$D$2+(VLOOKUP('RE Appr'!CW22,'RE Appr'!$E$13:$J$59,6,FALSE)/100))","v":{"v":399326.4887063655,"d":"399,326"}},{"$f":"($A15-$A14)/365.25*$D$1*(1+$D$2+(VLOOKUP('RE Appr'!CX22,'RE Appr'!$E$13:$J$59,6,FALSE)/100))","v":{"v":417653.93566050654,"d":"417,654"}},{"$f":"($A15-$A14)/365.25*$D$1*(1+$D$2+(VLOOKUP('RE Appr'!CY22,'RE Appr'!$E$13:$J$59,6,FALSE)/100))","v":{"v":371325.66735112935,"d":"371,326"}},{"$f":"($A15-$A14)/365.25*$D$1*(1+$D$2+(VLOOKUP('RE Appr'!CZ22,'RE Appr'!$E$13:$J$59,6,FALSE)/100))","v":{"v":440668.1724845996,"d":"440,668"}},{"$f":"($A15-$A14)/365.25*$D$1*(1+$D$2+(VLOOKUP('RE Appr'!DA22,'RE Appr'!$E$13:$J$59,6,FALSE)/100))","v":{"v":423729.77412731,"d":"423,730"}},{"$f":"($A15-$A14)/365.25*$D$1*(1+$D$2+(VLOOKUP('RE Appr'!DB22,'RE Appr'!$E$13:$J$59,6,FALSE)/100))","v":{"v":431774.264202601,"d":"431,774"}},{"$f":"($A15-$A14)/365.25*$D$1*(1+$D$2+(VLOOKUP('RE Appr'!DC22,'RE Appr'!$E$13:$J$59,6,FALSE)/100))","v":{"v":401385.0787132102,"d":"401,385"}},{"$f":"($A15-$A14)/365.25*$D$1*(1+$D$2+(VLOOKUP('RE Appr'!DD22,'RE Appr'!$E$13:$J$59,6,FALSE)/100))","v":{"v":470497.7412731006,"d":"470,498"}},{"$f":"($A15-$A14)/365.25*$D$1*(1+$D$2+(VLOOKUP('RE Appr'!DE22,'RE Appr'!$E$13:$J$59,6,FALSE)/100))","v":{"v":423749.76043805614,"d":"423,750"}},{"$f":"($A15-$A14)/365.25*$D$1*(1+$D$2+(VLOOKUP('RE Appr'!DF22,'RE Appr'!$E$13:$J$59,6,FALSE)/100))","v":{"v":419342.77891854895,"d":"419,343"}},{"$f":"($A15-$A14)/365.25*$D$1*(1+$D$2+(VLOOKUP('RE Appr'!DG22,'RE Appr'!$E$13:$J$59,6,FALSE)/100))","v":{"v":419342.77891854895,"d":"419,343"}}]
[{"$f":"Main!A18","v":"2033-12-30"},11,{"$nulls":3},{"$f":"($A16-$A15)/365.25*$D$1*(1+$D$2+(VLOOKUP('RE Appr'!L23,'RE Appr'!$E$13:$J$59,6,FALSE)/100))","v":{"v":375602.7378507871,"d":"375,603"}},{"$f":"($A16-$A15)/365.25*$D$1*(1+$D$2+(VLOOKUP('RE Appr'!M23,'RE Appr'!$E$13:$J$59,6,FALSE)/100))","v":{"v":420192.19712525664,"d":"420,192"}},{"$f":"($A16-$A15)/365.25*$D$1*(1+$D$2+(VLOOKUP('RE Appr'!N23,'RE Appr'!$E$13:$J$59,6,FALSE)/100))","v":{"v":423749.76043805614,"d":"423,750"}},{"$f":"($A16-$A15)/365.25*$D$1*(1+$D$2+(VLOOKUP('RE Appr'!O23,'RE Appr'!$E$13:$J$59,6,FALSE)/100))","v":{"v":410728.67898699525,"d":"410,729"}},{"$f":"($A16-$A15)/365.25*$D$1*(1+$D$2+(VLOOKUP('RE Appr'!P23,'RE Appr'!$E$13:$J$59,6,FALSE)/100))","v":{"v":386675.1540041068,"d":"386,675"}},{"$f":"($A16-$A15)/365.25*$D$1*(1+$D$2+(VLOOKUP('RE Appr'!Q23,'RE Appr'!$E$13:$J$59,6,FALSE)/100))","v":{"v":412637.3716632444,"d":"412,637"}},{"$f":"($A16-$A15)/365.25*$D$1*(1+$D$2+(VLOOKUP('RE Appr'!R23,'RE Appr'!$E$13:$J$59,6,FALSE)/100))","v":{"v":418833.85952220886,"d":"418,834"}},{"$f":"($A16-$A15)/365.25*$D$1*(1+$D$2+(VLOOKUP('RE Appr'!S23,'RE Appr'!$E$13:$J$59,6,FALSE)/100))","v":{"v":412637.3716632444,"d":"412,637"}},{"$f":"($A16-$A15)/365.25*$D$1*(1+$D$2+(VLOOKUP('RE Appr'!T23,'RE Appr'!$E$13:$J$59,6,FALSE)/100))","v":{"v":407091.1704312115,"d":"407,091"}},{"$f":"($A16-$A15)/365.25*$D$1*(1+$D$2+(VLOOKUP('RE Appr'!U23,'RE Appr'!$E$13:$J$59,6,FALSE)/100))","v":{"v":416234.9075975359,"d":"416,235"}},{"$f":"($A16-$A15)/365.25*$D$1*(1+$D$2+(VLOOKUP('RE Appr'!V23,'RE Appr'!$E$13:$J$59,6,FALSE)/100))","v":{"v":412637.3716632444,"d":"412,637"}},{"$f":"($A16-$A15)/365.25*$D$1*(1+$D$2+(VLOOKUP('RE Appr'!W23,'RE Appr'!$E$13:$J$59,6,FALSE)/100))","v":{"v":419342.77891854895,"d":"419,343"}},{"$f":"($A16-$A15)/365.25*$D$1*(1+$D$2+(VLOOKUP('RE Appr'!X23,'RE Appr'!$E$13:$J$59,6,FALSE)/100))","v":{"v":419342.77891854895,"d":"419,343"}},{"$f":"($A16-$A15)/365.25*$D$1*(1+$D$2+(VLOOKUP('RE Appr'!Y23,'RE Appr'!$E$13:$J$59,6,FALSE)/100))","v":{"v":419542.64202600956,"d":"419,543"}},{"$f":"($A16-$A15)/365.25*$D$1*(1+$D$2+(VLOOKUP('RE Appr'!Z23,'RE Appr'!$E$13:$J$59,6,FALSE)/100))","v":{"v":437040.65708418895,"d":"437,041"}},{"$f":"($A16-$A15)/365.25*$D$1*(1+$D$2+(VLOOKUP('RE Appr'!AA23,'RE Appr'!$E$13:$J$59,6,FALSE)/100))","v":{"v":419342.77891854895,"d":"419,343"}},{"$f":"($A16-$A15)/365.25*$D$1*(1+$D$2+(VLOOKUP('RE Appr'!AB23,'RE Appr'!$E$13:$J$59,6,FALSE)/100))","v":{"v":455687.8850102669,"d":"455,688"}},{"$f":"($A16-$A15)/365.25*$D$1*(1+$D$2+(VLOOKUP('RE Appr'!AC23,'RE Appr'!$E$13:$J$59,6,FALSE)/100))","v":{"v":437040.65708418895,"d":"437,041"}},{"$f":"($A16-$A15)/365.25*$D$1*(1+$D$2+(VLOOKUP('RE Appr'!AD23,'RE Appr'!$E$13:$J$59,6,FALSE)/100))","v":{"v":412517.453798768,"d":"412,517"}},{"$f":"($A16-$A15)/365.25*$D$1*(1+$D$2+(VLOOKUP('RE Appr'!AE23,'RE Appr'!$E$13:$J$59,6,FALSE)/100))","v":{"v":401385.0787132102,"d":"401,385"}},{"$f":"($A16-$A15)/365.25*$D$1*(1+$D$2+(VLOOKUP('RE Appr'!AF23,'RE Appr'!$E$13:$J$59,6,FALSE)/100))","v":{"v":435181.93018480495,"d":"435,182"}},{"$f":"($A16-$A15)/365.25*$D$1*(1+$D$2+(VLOOKUP('RE Appr'!AG23,'RE Appr'!$E$13:$J$59,6,FALSE)/100))","v":{"v":470497.7412731006,"d":"470,498"}},{"$f":"($A16-$A15)/365.25*$D$1*(1+$D$2+(VLOOKUP('RE Appr'!AH23,'RE Appr'!$E$13:$J$59,6,FALSE)/100))","v":{"v":412517.453798768,"d":"412,517"}},{"$f":"($A16-$A15)/365.25*$D$1*(1+$D$2+(VLOOKUP('RE Appr'!AI23,'RE Appr'!$E$13:$J$59,6,FALSE)/100))","v":{"v":383827.10472279263,"d":"383,827"}},{"$f":"($A16-$A15)/365.25*$D$1*(1+$D$2+(VLOOKUP('RE Appr'!AJ23,'RE Appr'!$E$13:$J$59,6,FALSE)/100))","v":{"v":412637.3716632444,"d":"412,637"}},{"$f":"($A16-$A15)/365.25*$D$1*(1+$D$2+(VLOOKUP('RE Appr'!AK23,'RE Appr'!$E$13:$J$59,6,FALSE)/100))","v":{"v":435181.93018480495,"d":"435,182"}},{"$f":"($A16-$A15)/365.25*$D$1*(1+$D$2+(VLOOKUP('RE Appr'!AL23,'RE Appr'!$E$13:$J$59,6,FALSE)/100))","v":{"v":422510.60917180014,"d":"422,511"}},{"$f":"($A16-$A15)/365.25*$D$1*(1+$D$2+(VLOOKUP('RE Appr'!AM23,'RE Appr'!$E$13:$J$59,6,FALSE)/100))","v":{"v":419289.85199380416,"d":"419,290"}},{"$f":"($A16-$A15)/365.25*$D$1*(1+$D$2+(VLOOKUP('RE Appr'!AN23,'RE Appr'!$E$13:$J$59,6,FALSE)/100))","v":{"v":440668.1724845996,"d":"440,668"}},{"$f":"($A16-$A15)/365.25*$D$1*(1+$D$2+(VLOOKUP('RE Appr'!AO23,'RE Appr'!$E$13:$J$59,6,FALSE)/100))","v":{"v":420192.19712525664,"d":"420,192"}},{"$f":"($A16-$A15)/365.25*$D$1*(1+$D$2+(VLOOKUP('RE Appr'!AP23,'RE Appr'!$E$13:$J$59,6,FALSE)/100))","v":{"v":419542.64202600956,"d":"419,543"}},{"$f":"($A16-$A15)/365.25*$D$1*(1+$D$2+(VLOOKUP('RE Appr'!AQ23,'RE Appr'!$E$13:$J$59,6,FALSE)/100))","v":{"v":441527.5838466804,"d":"441,528"}},{"$f":"($A16-$A15)/365.25*$D$1*(1+$D$2+(VLOOKUP('RE Appr'!AR23,'RE Appr'!$E$13:$J$59,6,FALSE)/100))","v":{"v":429315.94798083504,"d":"429,316"}},{"$f":"($A16-$A15)/365.25*$D$1*(1+$D$2+(VLOOKUP('RE Appr'!AS23,'RE Appr'!$E$13:$J$59,6,FALSE)/100))","v":{"v":414845.85900068446,"d":"414,846"}},{"$f":"($A16-$A15)/365.25*$D$1*(1+$D$2+(VLOOKUP('RE Appr'!AT23,'RE Appr'!$E$13:$J$59,6,FALSE)/100))","v":{"v":437040.65708418895,"d":"437,041"}},{"$f":"($A16-$A15)/365.25*$D$1*(1+$D$2+(VLOOKUP('RE Appr'!AU23,'RE Appr'!$E$13:$J$59,6,FALSE)/100))","v":{"v":441107.871321013,"d":"441,108"}},{"$f":"($A16-$A15)/365.25*$D$1*(1+$D$2+(VLOOKUP('RE Appr'!AV23,'RE Appr'!$E$13:$J$59,6,FALSE)/100))","v":{"v":426041.984729592,"d":"426,042"}},{"$f":"($A16-$A15)/365.25*$D$1*(1+$D$2+(VLOOKUP('RE Appr'!AW23,'RE Appr'!$E$13:$J$59,6,FALSE)/100))","v":{"v":419342.77891854895,"d":"419,343"}},{"$f":"($A16-$A15)/365.25*$D$1*(1+$D$2+(VLOOKUP('RE Appr'!AX23,'RE Appr'!$E$13:$J$59,6,FALSE)/100))","v":{"v":409269.6783025325,"d":"409,270"}},{"$f":"($A16-$A15)/365.25*$D$1*(1+$D$2+(VLOOKUP('RE Appr'!AY23,'RE Appr'!$E$13:$J$59,6,FALSE)/100))","v":{"v":416234.9075975359,"d":"416,235"}},{"$f":"($A16-$A15)/365.25*$D$1*(1+$D$2+(VLOOKUP('RE Appr'!AZ23,'RE Appr'!$E$13:$J$59,6,FALSE)/100))","v":{"v":440668.1724845996,"d":"440,668"}},{"$f":"($A16-$A15)/365.25*$D$1*(1+$D$2+(VLOOKUP('RE Appr'!BA23,'RE Appr'!$E$13:$J$59,6,FALSE)/100))","v":{"v":470497.7412731006,"d":"470,498"}},{"$f":"($A16-$A15)/365.25*$D$1*(1+$D$2+(VLOOKUP('RE Appr'!BB23,'RE Appr'!$E$13:$J$59,6,FALSE)/100))","v":{"v":431774.264202601,"d":"431,774"}},{"$f":"($A16-$A15)/365.25*$D$1*(1+$D$2+(VLOOKUP('RE Appr'!BC23,'RE Appr'!$E$13:$J$59,6,FALSE)/100))","v":{"v":422510.60917180014,"d":"422,511"}},{"$f":"($A16-$A15)/365.25*$D$1*(1+$D$2+(VLOOKUP('RE Appr'!BD23,'RE Appr'!$E$13:$J$59,6,FALSE)/100))","v":{"v":401385.0787132102,"d":"401,385"}},{"$f":"($A16-$A15)/365.25*$D$1*(1+$D$2+(VLOOKUP('RE Appr'!BE23,'RE Appr'!$E$13:$J$59,6,FALSE)/100))","v":{"v":436840.79397672834,"d":"436,841"}},{"$f":"($A16-$A15)/365.25*$D$1*(1+$D$2+(VLOOKUP('RE Appr'!BF23,'RE Appr'!$E$13:$J$59,6,FALSE)/100))","v":{"v":409269.6783025325,"d":"409,270"}},{"$f":"($A16-$A15)/365.25*$D$1*(1+$D$2+(VLOOKUP('RE Appr'!BG23,'RE Appr'!$E$13:$J$59,6,FALSE)/100))","v":{"v":415847.54106599226,"d":"415,848"}},{"$f":"($A16-$A15)/365.25*$D$1*(1+$D$2+(VLOOKUP('RE Appr'!BH23,'RE Appr'!$E$13:$J$59,6,FALSE)/100))","v":{"v":441527.5838466804,"d":"441,528"}},{"$f":"($A16-$A15)/365.25*$D$1*(1+$D$2+(VLOOKUP('RE Appr'!BI23,'RE Appr'!$E$13:$J$59,6,FALSE)/100))","v":{"v":409269.6783025325,"d":"409,270"}},{"$f":"($A16-$A15)/365.25*$D$1*(1+$D$2+(VLOOKUP('RE Appr'!BJ23,'RE Appr'!$E$13:$J$59,6,FALSE)/100))","v":{"v":415045.72210814507,"d":"415,046"}},{"$f":"($A16-$A15)/365.25*$D$1*(1+$D$2+(VLOOKUP('RE Appr'!BK23,'RE Appr'!$E$13:$J$59,6,FALSE)/100))","v":{"v":415847.54106599226,"d":"415,848"}},{"$f":"($A16-$A15)/365.25*$D$1*(1+$D$2+(VLOOKUP('RE Appr'!BL23,'RE Appr'!$E$13:$J$59,6,FALSE)/100))","v":{"v":435771.5263518138,"d":"435,772"}},{"$f":"($A16-$A15)/365.25*$D$1*(1+$D$2+(VLOOKUP('RE Appr'!BM23,'RE Appr'!$E$13:$J$59,6,FALSE)/100))","v":{"v":383827.10472279263,"d":"383,827"}},{"$f":"($A16-$A15)/365.25*$D$1*(1+$D$2+(VLOOKUP('RE Appr'!BN23,'RE Appr'!$E$13:$J$59,6,FALSE)/100))","v":{"v":417653.93566050654,"d":"417,654"}},{"$f":"($A16-$A15)/365.25*$D$1*(1+$D$2+(VLOOKUP('RE Appr'!BO23,'RE Appr'!$E$13:$J$59,6,FALSE)/100))","v":{"v":421665.9736136933,"d":"421,666"}},{"$f":"($A16-$A15)/365.25*$D$1*(1+$D$2+(VLOOKUP('RE Appr'!BP23,'RE Appr'!$E$13:$J$59,6,FALSE)/100))","v":{"v":407091.1704312115,"d":"407,091"}},{"$f":"($A16-$A15)/365.25*$D$1*(1+$D$2+(VLOOKUP('RE Appr'!BQ23,'RE Appr'!$E$13:$J$59,6,FALSE)/100))","v":{"v":451019.08281998633,"d":"451,019"}},{"$f":"($A16-$A15)/365.25*$D$1*(1+$D$2+(VLOOKUP('RE Appr'!BR23,'RE Appr'!$E$13:$J$59,6,FALSE)/100))","v":{"v":441527.5838466804,"d":"441,528"}},{"$f":"($A16-$A15)/365.25*$D$1*(1+$D$2+(VLOOKUP('RE Appr'!BS23,'RE Appr'!$E$13:$J$59,6,FALSE)/100))","v":{"v":419342.77891854895,"d":"419,343"}},{"$f":"($A16-$A15)/365.25*$D$1*(1+$D$2+(VLOOKUP('RE Appr'!BT23,'RE Appr'!$E$13:$J$59,6,FALSE)/100))","v":{"v":423729.77412731,"d":"423,730"}},{"$f":"($A16-$A15)/365.25*$D$1*(1+$D$2+(VLOOKUP('RE Appr'!BU23,'RE Appr'!$E$13:$J$59,6,FALSE)/100))","v":{"v":409269.6783025325,"d":"409,270"}},{"$f":"($A16-$A15)/365.25*$D$1*(1+$D$2+(VLOOKUP('RE Appr'!BV23,'RE Appr'!$E$13:$J$59,6,FALSE)/100))","v":{"v":421665.9736136933,"d":"421,666"}},{"$f":"($A16-$A15)/365.25*$D$1*(1+$D$2+(VLOOKUP('RE Appr'!BW23,'RE Appr'!$E$13:$J$59,6,FALSE)/100))","v":{"v":415847.54106599226,"d":"415,848"}},{"$f":"($A16-$A15)/365.25*$D$1*(1+$D$2+(VLOOKUP('RE Appr'!BX23,'RE Appr'!$E$13:$J$59,6,FALSE)/100))","v":{"v":437040.65708418895,"d":"437,041"}},{"$f":"($A16-$A15)/365.25*$D$1*(1+$D$2+(VLOOKUP('RE Appr'!BY23,'RE Appr'!$E$13:$J$59,6,FALSE)/100))","v":{"v":429315.94798083504,"d":"429,316"}},{"$f":"($A16-$A15)/365.25*$D$1*(1+$D$2+(VLOOKUP('RE Appr'!BZ23,'RE Appr'!$E$13:$J$59,6,FALSE)/100))","v":{"v":423749.76043805614,"d":"423,750"}},{"$f":"($A16-$A15)/365.25*$D$1*(1+$D$2+(VLOOKUP('RE Appr'!CA23,'RE Appr'!$E$13:$J$59,6,FALSE)/100))","v":{"v":411048.45995893225,"d":"411,048"}},{"$f":"($A16-$A15)/365.25*$D$1*(1+$D$2+(VLOOKUP('RE Appr'!CB23,'RE Appr'!$E$13:$J$59,6,FALSE)/100))","v":{"v":470497.7412731006,"d":"470,498"}},{"$f":"($A16-$A15)/365.25*$D$1*(1+$D$2+(VLOOKUP('RE Appr'!CC23,'RE Appr'!$E$13:$J$59,6,FALSE)/100))","v":{"v":431774.264202601,"d":"431,774"}},{"$f":"($A16-$A15)/365.25*$D$1*(1+$D$2+(VLOOKUP('RE Appr'!CD23,'RE Appr'!$E$13:$J$59,6,FALSE)/100))","v":{"v":415285.5578370979,"d":"415,286"}},{"$f":"($A16-$A15)/365.25*$D$1*(1+$D$2+(VLOOKUP('RE Appr'!CE23,'RE Appr'!$E$13:$J$59,6,FALSE)/100))","v":{"v":410728.67898699525,"d":"410,729"}},{"$f":"($A16-$A15)/365.25*$D$1*(1+$D$2+(VLOOKUP('RE Appr'!CF23,'RE Appr'!$E$13:$J$59,6,FALSE)/100))","v":{"v":411048.45995893225,"d":"411,048"}},{"$f":"($A16-$A15)/365.25*$D$1*(1+$D$2+(VLOOKUP('RE Appr'!CG23,'RE Appr'!$E$13:$J$59,6,FALSE)/100))","v":{"v":423749.76043805614,"d":"423,750"}},{"$f":"($A16-$A15)/365.25*$D$1*(1+$D$2+(VLOOKUP('RE Appr'!CH23,'RE Appr'!$E$13:$J$59,6,FALSE)/100))","v":{"v":455687.8850102669,"d":"455,688"}},{"$f":"($A16-$A15)/365.25*$D$1*(1+$D$2+(VLOOKUP('RE Appr'!CI23,'RE Appr'!$E$13:$J$59,6,FALSE)/100))","v":{"v":415045.72210814507,"d":"415,046"}},{"$f":"($A16-$A15)/365.25*$D$1*(1+$D$2+(VLOOKUP('RE Appr'!CJ23,'RE Appr'!$E$13:$J$59,6,FALSE)/100))","v":{"v":375602.7378507871,"d":"375,603"}},{"$f":"($A16-$A15)/365.25*$D$1*(1+$D$2+(VLOOKUP('RE Appr'!CK23,'RE Appr'!$E$13:$J$59,6,FALSE)/100))","v":{"v":418173.57973990415,"d":"418,174"}},{"$f":"($A16-$A15)/365.25*$D$1*(1+$D$2+(VLOOKUP('RE Appr'!CL23,'RE Appr'!$E$13:$J$59,6,FALSE)/100))","v":{"v":412977.13894592744,"d":"412,977"}},{"$f":"($A16-$A15)/365.25*$D$1*(1+$D$2+(VLOOKUP('RE Appr'!CM23,'RE Appr'!$E$13:$J$59,6,FALSE)/100))","v":{"v":429315.94798083504,"d":"429,316"}},{"$f":"($A16-$A15)/365.25*$D$1*(1+$D$2+(VLOOKUP('RE Appr'!CN23,'RE Appr'!$E$13:$J$59,6,FALSE)/100))","v":{"v":419542.64202600956,"d":"419,543"}},{"$f":"($A16-$A15)/365.25*$D$1*(1+$D$2+(VLOOKUP('RE Appr'!CO23,'RE Appr'!$E$13:$J$59,6,FALSE)/100))","v":{"v":419342.77891854895,"d":"419,343"}},{"$f":"($A16-$A15)/365.25*$D$1*(1+$D$2+(VLOOKUP('RE Appr'!CP23,'RE Appr'!$E$13:$J$59,6,FALSE)/100))","v":{"v":409269.6783025325,"d":"409,270"}},{"$f":"($A16-$A15)/365.25*$D$1*(1+$D$2+(VLOOKUP('RE Appr'!CQ23,'RE Appr'!$E$13:$J$59,6,FALSE)/100))","v":{"v":420192.19712525664,"d":"420,192"}},{"$f":"($A16-$A15)/365.25*$D$1*(1+$D$2+(VLOOKUP('RE Appr'!CR23,'RE Appr'!$E$13:$J$59,6,FALSE)/100))","v":{"v":419342.77891854895,"d":"419,343"}},{"$f":"($A16-$A15)/365.25*$D$1*(1+$D$2+(VLOOKUP('RE Appr'!CS23,'RE Appr'!$E$13:$J$59,6,FALSE)/100))","v":{"v":410728.67898699525,"d":"410,729"}},{"$f":"($A16-$A15)/365.25*$D$1*(1+$D$2+(VLOOKUP('RE Appr'!CT23,'RE Appr'!$E$13:$J$59,6,FALSE)/100))","v":{"v":417653.93566050654,"d":"417,654"}},{"$f":"($A16-$A15)/365.25*$D$1*(1+$D$2+(VLOOKUP('RE Appr'!CU23,'RE Appr'!$E$13:$J$59,6,FALSE)/100))","v":{"v":375602.7378507871,"d":"375,603"}},{"$f":"($A16-$A15)/365.25*$D$1*(1+$D$2+(VLOOKUP('RE Appr'!CV23,'RE Appr'!$E$13:$J$59,6,FALSE)/100))","v":{"v":407091.1704312115,"d":"407,091"}},{"$f":"($A16-$A15)/365.25*$D$1*(1+$D$2+(VLOOKUP('RE Appr'!CW23,'RE Appr'!$E$13:$J$59,6,FALSE)/100))","v":{"v":383827.10472279263,"d":"383,827"}},{"$f":"($A16-$A15)/365.25*$D$1*(1+$D$2+(VLOOKUP('RE Appr'!CX23,'RE Appr'!$E$13:$J$59,6,FALSE)/100))","v":{"v":418833.85952220886,"d":"418,834"}},{"$f":"($A16-$A15)/365.25*$D$1*(1+$D$2+(VLOOKUP('RE Appr'!CY23,'RE Appr'!$E$13:$J$59,6,FALSE)/100))","v":{"v":437040.65708418895,"d":"437,041"}},{"$f":"($A16-$A15)/365.25*$D$1*(1+$D$2+(VLOOKUP('RE Appr'!CZ23,'RE Appr'!$E$13:$J$59,6,FALSE)/100))","v":{"v":423729.77412731,"d":"423,730"}},{"$f":"($A16-$A15)/365.25*$D$1*(1+$D$2+(VLOOKUP('RE Appr'!DA23,'RE Appr'!$E$13:$J$59,6,FALSE)/100))","v":{"v":412977.13894592744,"d":"412,977"}},{"$f":"($A16-$A15)/365.25*$D$1*(1+$D$2+(VLOOKUP('RE Appr'!DB23,'RE Appr'!$E$13:$J$59,6,FALSE)/100))","v":{"v":423749.76043805614,"d":"423,750"}},{"$f":"($A16-$A15)/365.25*$D$1*(1+$D$2+(VLOOKUP('RE Appr'!DC23,'RE Appr'!$E$13:$J$59,6,FALSE)/100))","v":{"v":399326.4887063655,"d":"399,326"}},{"$f":"($A16-$A15)/365.25*$D$1*(1+$D$2+(VLOOKUP('RE Appr'!DD23,'RE Appr'!$E$13:$J$59,6,FALSE)/100))","v":{"v":401385.0787132102,"d":"401,385"}},{"$f":"($A16-$A15)/365.25*$D$1*(1+$D$2+(VLOOKUP('RE Appr'!DE23,'RE Appr'!$E$13:$J$59,6,FALSE)/100))","v":{"v":415285.5578370979,"d":"415,286"}},{"$f":"($A16-$A15)/365.25*$D$1*(1+$D$2+(VLOOKUP('RE Appr'!DF23,'RE Appr'!$E$13:$J$59,6,FALSE)/100))","v":{"v":455687.8850102669,"d":"455,688"}},{"$f":"($A16-$A15)/365.25*$D$1*(1+$D$2+(VLOOKUP('RE Appr'!DG23,'RE Appr'!$E$13:$J$59,6,FALSE)/100))","v":{"v":419289.85199380416,"d":"419,290"}}]
[{"$f":"Main!A19","v":"2034-12-30"},12,{"$nulls":3},{"$f":"($A17-$A16)/365.25*$D$1*(1+$D$2+(VLOOKUP('RE Appr'!L24,'RE Appr'!$E$13:$J$59,6,FALSE)/100))","v":{"v":399326.4887063655,"d":"399,326"}},{"$f":"($A17-$A16)/365.25*$D$1*(1+$D$2+(VLOOKUP('RE Appr'!M24,'RE Appr'!$E$13:$J$59,6,FALSE)/100))","v":{"v":418173.57973990415,"d":"418,174"}},{"$f":"($A17-$A16)/365.25*$D$1*(1+$D$2+(VLOOKUP('RE Appr'!N24,'RE Appr'!$E$13:$J$59,6,FALSE)/100))","v":{"v":470497.7412731006,"d":"470,498"}},{"$f":"($A17-$A16)/365.25*$D$1*(1+$D$2+(VLOOKUP('RE Appr'!O24,'RE Appr'!$E$13:$J$59,6,FALSE)/100))","v":{"v":417653.93566050654,"d":"417,654"}},{"$f":"($A17-$A16)/365.25*$D$1*(1+$D$2+(VLOOKUP('RE Appr'!P24,'RE Appr'!$E$13:$J$59,6,FALSE)/100))","v":{"v":410728.67898699525,"d":"410,729"}},{"$f":"($A17-$A16)/365.25*$D$1*(1+$D$2+(VLOOKUP('RE Appr'!Q24,'RE Appr'!$E$13:$J$59,6,FALSE)/100))","v":{"v":436840.79397672834,"d":"436,841"}},{"$f":"($A17-$A16)/365.25*$D$1*(1+$D$2+(VLOOKUP('RE Appr'!R24,'RE Appr'!$E$13:$J$59,6,FALSE)/100))","v":{"v":441107.871321013,"d":"441,108"}},{"$f":"($A17-$A16)/365.25*$D$1*(1+$D$2+(VLOOKUP('RE Appr'!S24,'RE Appr'!$E$13:$J$59,6,FALSE)/100))","v":{"v":415285.5578370979,"d":"415,286"}},{"$f":"($A17-$A16)/365.25*$D$1*(1+$D$2+(VLOOKUP('RE Appr'!T24,'RE Appr'!$E$13:$J$59,6,FALSE)/100))","v":{"v":412517.453798768,"d":"412,517"}},{"$f":"($A17-$A16)/365.25*$D$1*(1+$D$2+(VLOOKUP('RE Appr'!U24,'RE Appr'!$E$13:$J$59,6,FALSE)/100))","v":{"v":455687.8850102669,"d":"455,688"}},{"$f":"($A17-$A16)/365.25*$D$1*(1+$D$2+(VLOOKUP('RE Appr'!V24,'RE Appr'!$E$13:$J$59,6,FALSE)/100))","v":{"v":411048.45995893225,"d":"411,048"}},{"$f":"($A17-$A16)/365.25*$D$1*(1+$D$2+(VLOOKUP('RE Appr'!W24,'RE Appr'!$E$13:$J$59,6,FALSE)/100))","v":{"v":429315.94798083504,"d":"429,316"}},{"$f":"($A17-$A16)/365.25*$D$1*(1+$D$2+(VLOOKUP('RE Appr'!X24,'RE Appr'!$E$13:$J$59,6,FALSE)/100))","v":{"v":435181.93018480495,"d":"435,182"}},{"$f":"($A17-$A16)/365.25*$D$1*(1+$D$2+(VLOOKUP('RE Appr'!Y24,'RE Appr'!$E$13:$J$59,6,FALSE)/100))","v":{"v":399326.4887063655,"d":"399,326"}},{"$f":"($A17-$A16)/365.25*$D$1*(1+$D$2+(VLOOKUP('RE Appr'!Z24,'RE Appr'!$E$13:$J$59,6,FALSE)/100))","v":{"v":435771.5263518138,"d":"435,772"}},{"$f":"($A17-$A16)/365.25*$D$1*(1+$D$2+(VLOOKUP('RE Appr'!AA24,'RE Appr'!$E$13:$J$59,6,FALSE)/100))","v":{"v":440668.1724845996,"d":"440,668"}},{"$f":"($A17-$A16)/365.25*$D$1*(1+$D$2+(VLOOKUP('RE Appr'!AB24,'RE Appr'!$E$13:$J$59,6,FALSE)/100))","v":{"v":441107.871321013,"d":"441,108"}},{"$f":"($A17-$A16)/365.25*$D$1*(1+$D$2+(VLOOKUP('RE Appr'!AC24,'RE Appr'!$E$13:$J$59,6,FALSE)/100))","v":{"v":441527.5838466804,"d":"441,528"}},{"$f":"($A17-$A16)/365.25*$D$1*(1+$D$2+(VLOOKUP('RE Appr'!AD24,'RE Appr'!$E$13:$J$59,6,FALSE)/100))","v":{"v":412517.453798768,"d":"412,517"}},{"$f":"($A17-$A16)/365.25*$D$1*(1+$D$2+(VLOOKUP('RE Appr'!AE24,'RE Appr'!$E$13:$J$59,6,FALSE)/100))","v":{"v":415285.5578370979,"d":"415,286"}},{"$f":"($A17-$A16)/365.25*$D$1*(1+$D$2+(VLOOKUP('RE Appr'!AF24,'RE Appr'!$E$13:$J$59,6,FALSE)/100))","v":{"v":412517.453798768,"d":"412,517"}},{"$f":"($A17-$A16)/365.25*$D$1*(1+$D$2+(VLOOKUP('RE Appr'!AG24,'RE Appr'!$E$13:$J$59,6,FALSE)/100))","v":{"v":422510.60917180014,"d":"422,511"}},{"$f":"($A17-$A16)/365.25*$D$1*(1+$D$2+(VLOOKUP('RE Appr'!AH24,'RE Appr'!$E$13:$J$59,6,FALSE)/100))","v":{"v":412517.453798768,"d":"412,517"}},{"$f":"($A17-$A16)/365.25*$D$1*(1+$D$2+(VLOOKUP('RE Appr'!AI24,'RE Appr'!$E$13:$J$59,6,FALSE)/100))","v":{"v":423749.76043805614,"d":"423,750"}},{"$f":"($A17-$A16)/365.25*$D$1*(1+$D$2+(VLOOKUP('RE Appr'!AJ24,'RE Appr'!$E$13:$J$59,6,FALSE)/100))","v":{"v":415285.5578370979,"d":"415,286"}},{"$f":"($A17-$A16)/365.25*$D$1*(1+$D$2+(VLOOKUP('RE Appr'!AK24,'RE Appr'!$E$13:$J$59,6,FALSE)/100))","v":{"v":415045.72210814507,"d":"415,046"}},{"$f":"($A17-$A16)/365.25*$D$1*(1+$D$2+(VLOOKUP('RE Appr'!AL24,'RE Appr'!$E$13:$J$59,6,FALSE)/100))","v":{"v":418173.57973990415,"d":"418,174"}},{"$f":"($A17-$A16)/365.25*$D$1*(1+$D$2+(VLOOKUP('RE Appr'!AM24,'RE Appr'!$E$13:$J$59,6,FALSE)/100))","v":{"v":435771.5263518138,"d":"435,772"}},{"$f":"($A17-$A16)/365.25*$D$1*(1+$D$2+(VLOOKUP('RE Appr'!AN24,'RE Appr'!$E$13:$J$59,6,FALSE)/100))","v":{"v":410728.67898699525,"d":"410,729"}},{"$f":"($A17-$A16)/365.25*$D$1*(1+$D$2+(VLOOKUP('RE Appr'!AO24,'RE Appr'!$E$13:$J$59,6,FALSE)/100))","v":{"v":412517.453798768,"d":"412,517"}},{"$f":"($A17-$A16)/365.25*$D$1*(1+$D$2+(VLOOKUP('RE Appr'!AP24,'RE Appr'!$E$13:$J$59,6,FALSE)/100))","v":{"v":434212.5941136209,"d":"434,213"}},{"$f":"($A17-$A16)/365.25*$D$1*(1+$D$2+(VLOOKUP('RE Appr'!AQ24,'RE Appr'!$E$13:$J$59,6,FALSE)/100))","v":{"v":436840.79397672834,"d":"436,841"}},{"$f":"($A17-$A16)/365.25*$D$1*(1+$D$2+(VLOOKUP('RE Appr'!AR24,'RE Appr'!$E$13:$J$59,6,FALSE)/100))","v":{"v":399326.4887063655,"d":"399,326"}},{"$f":"($A17-$A16)/365.25*$D$1*(1+$D$2+(VLOOKUP('RE Appr'!AS24,'RE Appr'!$E$13:$J$59,6,FALSE)/100))","v":{"v":412637.3716632444,"d":"412,637"}},{"$f":"($A17-$A16)/365.25*$D$1*(1+$D$2+(VLOOKUP('RE Appr'!AT24,'RE Appr'!$E$13:$J$59,6,FALSE)/100))","v":{"v":415045.72210814507,"d":"415,046"}},{"$f":"($A17-$A16)/365.25*$D$1*(1+$D$2+(VLOOKUP('RE Appr'!AU24,'RE Appr'!$E$13:$J$59,6,FALSE)/100))","v":{"v":437040.65708418895,"d":"437,041"}},{"$f":"($A17-$A16)/365.25*$D$1*(1+$D$2+(VLOOKUP('RE Appr'!AV24,'RE Appr'!$E$13:$J$59,6,FALSE)/100))","v":{"v":410728.67898699525,"d":"410,729"}},{"$f":"($A17-$A16)/365.25*$D$1*(1+$D$2+(VLOOKUP('RE Appr'!AW24,'RE Appr'!$E$13:$J$59,6,FALSE)/100))","v":{"v":419632.5804243669,"d":"419,633"}},{"$f":"($A17-$A16)/365.25*$D$1*(1+$D$2+(VLOOKUP('RE Appr'!AX24,'RE Appr'!$E$13:$J$59,6,FALSE)/100))","v":{"v":435771.5263518138,"d":"435,772"}},{"$f":"($A17-$A16)/365.25*$D$1*(1+$D$2+(VLOOKUP('RE Appr'!AY24,'RE Appr'!$E$13:$J$59,6,FALSE)/100))","v":{"v":423749.76043805614,"d":"423,750"}},{"$f":"($A17-$A16)/365.25*$D$1*(1+$D$2+(VLOOKUP('RE Appr'!AZ24,'RE Appr'!$E$13:$J$59,6,FALSE)/100))","v":{"v":429315.94798083504,"d":"429,316"}},{"$f":"($A17-$A16)/365.25*$D$1*(1+$D$2+(VLOOKUP('RE Appr'!BA24,'RE Appr'!$E$13:$J$59,6,FALSE)/100))","v":{"v":440668.1724845996,"d":"440,668"}},{"$f":"($A17-$A16)/365.25*$D$1*(1+$D$2+(VLOOKUP('RE Appr'!BB24,'RE Appr'!$E$13:$J$59,6,FALSE)/100))","v":{"v":437040.65708418895,"d":"437,041"}},{"$f":"($A17-$A16)/365.25*$D$1*(1+$D$2+(VLOOKUP('RE Appr'!BC24,'RE Appr'!$E$13:$J$59,6,FALSE)/100))","v":{"v":416694.59274469543,"d":"416,695"}},{"$f":"($A17-$A16)/365.25*$D$1*(1+$D$2+(VLOOKUP('RE Appr'!BD24,'RE Appr'!$E$13:$J$59,6,FALSE)/100))","v":{"v":437040.65708418895,"d":"437,041"}},{"$f":"($A17-$A16)/365.25*$D$1*(1+$D$2+(VLOOKUP('RE Appr'!BE24,'RE Appr'!$E$13:$J$59,6,FALSE)/100))","v":{"v":415285.5578370979,"d":"415,286"}},{"$f":"($A17-$A16)/365.25*$D$1*(1+$D$2+(VLOOKUP('RE Appr'!BF24,'RE Appr'!$E$13:$J$59,6,FALSE)/100))","v":{"v":401385.0787132102,"d":"401,385"}},{"$f":"($A17-$A16)/365.25*$D$1*(1+$D$2+(VLOOKUP('RE Appr'!BG24,'RE Appr'!$E$13:$J$59,6,FALSE)/100))","v":{"v":422510.60917180014,"d":"422,511"}},{"$f":"($A17-$A16)/365.25*$D$1*(1+$D$2+(VLOOKUP('RE Appr'!BH24,'RE Appr'!$E$13:$J$59,6,FALSE)/100))","v":{"v":437040.65708418895,"d":"437,041"}},{"$f":"($A17-$A16)/365.25*$D$1*(1+$D$2+(VLOOKUP('RE Appr'!BI24,'RE Appr'!$E$13:$J$59,6,FALSE)/100))","v":{"v":412277.6180698152,"d":"412,278"}},{"$f":"($A17-$A16)/365.25*$D$1*(1+$D$2+(VLOOKUP('RE Appr'!BJ24,'RE Appr'!$E$13:$J$59,6,FALSE)/100))","v":{"v":407091.1704312115,"d":"407,091"}},{"$f":"($A17-$A16)/365.25*$D$1*(1+$D$2+(VLOOKUP('RE Appr'!BK24,'RE Appr'!$E$13:$J$59,6,FALSE)/100))","v":{"v":451019.08281998633,"d":"451,019"}},{"$f":"($A17-$A16)/365.25*$D$1*(1+$D$2+(VLOOKUP('RE Appr'!BL24,'RE Appr'!$E$13:$J$59,6,FALSE)/100))","v":{"v":435771.5263518138,"d":"435,772"}},{"$f":"($A17-$A16)/365.25*$D$1*(1+$D$2+(VLOOKUP('RE Appr'!BM24,'RE Appr'!$E$13:$J$59,6,FALSE)/100))","v":{"v":419289.85199380416,"d":"419,290"}},{"$f":"($A17-$A16)/365.25*$D$1*(1+$D$2+(VLOOKUP('RE Appr'!BN24,'RE Appr'!$E$13:$J$59,6,FALSE)/100))","v":{"v":431774.264202601,"d":"431,774"}},{"$f":"($A17-$A16)/365.25*$D$1*(1+$D$2+(VLOOKUP('RE Appr'!BO24,'RE Appr'!$E$13:$J$59,6,FALSE)/100))","v":{"v":419289.85199380416,"d":"419,290"}},{"$f":"($A17-$A16)/365.25*$D$1*(1+$D$2+(VLOOKUP('RE Appr'!BP24,'RE Appr'!$E$13:$J$59,6,FALSE)/100))","v":{"v":407091.1704312115,"d":"407,091"}},{"$f":"($A17-$A16)/365.25*$D$1*(1+$D$2+(VLOOKUP('RE Appr'!BQ24,'RE Appr'!$E$13:$J$59,6,FALSE)/100))","v":{"v":431774.264202601,"d":"431,774"}},{"$f":"($A17-$A16)/365.25*$D$1*(1+$D$2+(VLOOKUP('RE Appr'!BR24,'RE Appr'!$E$13:$J$59,6,FALSE)/100))","v":{"v":435181.93018480495,"d":"435,182"}},{"$f":"($A17-$A16)/365.25*$D$1*(1+$D$2+(VLOOKUP('RE Appr'!BS24,'RE Appr'!$E$13:$J$59,6,FALSE)/100))","v":{"v":407091.1704312115,"d":"407,091"}},{"$f":"($A17-$A16)/365.25*$D$1*(1+$D$2+(VLOOKUP('RE Appr'!BT24,'RE Appr'!$E$13:$J$59,6,FALSE)/100))","v":{"v":423729.77412731,"d":"423,730"}},{"$f":"($A17-$A16)/365.25*$D$1*(1+$D$2+(VLOOKUP('RE Appr'!BU24,'RE Appr'!$E$13:$J$59,6,FALSE)/100))","v":{"v":412977.13894592744,"d":"412,977"}},{"$f":"($A17-$A16)/365.25*$D$1*(1+$D$2+(VLOOKUP('RE Appr'!BV24,'RE Appr'!$E$13:$J$59,6,FALSE)/100))","v":{"v":421665.9736136933,"d":"421,666"}},{"$f":"($A17-$A16)/365.25*$D$1*(1+$D$2+(VLOOKUP('RE Appr'!BW24,'RE Appr'!$E$13:$J$59,6,FALSE)/100))","v":{"v":383827.10472279263,"d":"383,827"}},{"$f":"($A17-$A16)/365.25*$D$1*(1+$D$2+(VLOOKUP('RE Appr'!BX24,'RE Appr'!$E$13:$J$59,6,FALSE)/100))","v":{"v":419632.5804243669,"d":"419,633"}},{"$f":"($A17-$A16)/365.25*$D$1*(1+$D$2+(VLOOKUP('RE Appr'!BY24,'RE Appr'!$E$13:$J$59,6,FALSE)/100))","v":{"v":416234.9075975359,"d":"416,235"}},{"$f":"($A17-$A16)/365.25*$D$1*(1+$D$2+(VLOOKUP('RE Appr'!BZ24,'RE Appr'!$E$13:$J$59,6,FALSE)/100))","v":{"v":420192.19712525664,"d":"420,192"}},{"$f":"($A17-$A16)/365.25*$D$1*(1+$D$2+(VLOOKUP('RE Appr'!CA24,'RE Appr'!$E$13:$J$59,6,FALSE)/100))","v":{"v":429315.94798083504,"d":"429,316"}},{"$f":"($A17-$A16)/365.25*$D$1*(1+$D$2+(VLOOKUP('RE Appr'!CB24,'RE Appr'!$E$13:$J$59,6,FALSE)/100))","v":{"v":437040.65708418895,"d":"437,041"}},{"$f":"($A17-$A16)/365.25*$D$1*(1+$D$2+(VLOOKUP('RE Appr'!CC24,'RE Appr'!$E$13:$J$59,6,FALSE)/100))","v":{"v":412277.6180698152,"d":"412,278"}},{"$f":"($A17-$A16)/365.25*$D$1*(1+$D$2+(VLOOKUP('RE Appr'!CD24,'RE Appr'!$E$13:$J$59,6,FALSE)/100))","v":{"v":419289.85199380416,"d":"419,290"}},{"$f":"($A17-$A16)/365.25*$D$1*(1+$D$2+(VLOOKUP('RE Appr'!CE24,'RE Appr'!$E$13:$J$59,6,FALSE)/100))","v":{"v":436840.79397672834,"d":"436,841"}},{"$f":"($A17-$A16)/365.25*$D$1*(1+$D$2+(VLOOKUP('RE Appr'!CF24,'RE Appr'!$E$13:$J$59,6,FALSE)/100))","v":{"v":416694.59274469543,"d":"416,695"}},{"$f":"($A17-$A16)/365.25*$D$1*(1+$D$2+(VLOOKUP('RE Appr'!CG24,'RE Appr'!$E$13:$J$59,6,FALSE)/100))","v":{"v":415285.5578370979,"d":"415,286"}},{"$f":"($A17-$A16)/365.25*$D$1*(1+$D$2+(VLOOKUP('RE Appr'!CH24,'RE Appr'!$E$13:$J$59,6,FALSE)/100))","v":{"v":434212.5941136209,"d":"434,213"}},{"$f":"($A17-$A16)/365.25*$D$1*(1+$D$2+(VLOOKUP('RE Appr'!CI24,'RE Appr'!$E$13:$J$59,6,FALSE)/100))","v":{"v":412517.453798768,"d":"412,517"}},{"$f":"($A17-$A16)/365.25*$D$1*(1+$D$2+(VLOOKUP('RE Appr'!CJ24,'RE Appr'!$E$13:$J$59,6,FALSE)/100))","v":{"v":429315.94798083504,"d":"429,316"}},{"$f":"($A17-$A16)/365.25*$D$1*(1+$D$2+(VLOOKUP('RE Appr'!CK24,'RE Appr'!$E$13:$J$59,6,FALSE)/100))","v":{"v":437040.65708418895,"d":"437,041"}},{"$f":"($A17-$A16)/365.25*$D$1*(1+$D$2+(VLOOKUP('RE Appr'!CL24,'RE Appr'!$E$13:$J$59,6,FALSE)/100))","v":{"v":416234.9075975359,"d":"416,235"}},{"$f":"($A17-$A16)/365.25*$D$1*(1+$D$2+(VLOOKUP('RE Appr'!CM24,'RE Appr'!$E$13:$J$59,6,FALSE)/100))","v":{"v":411048.45995893225,"d":"411,048"}},{"$f":"($A17-$A16)/365.25*$D$1*(1+$D$2+(VLOOKUP('RE Appr'!CN24,'RE Appr'!$E$13:$J$59,6,FALSE)/100))","v":{"v":418833.85952220886,"d":"418,834"}},{"$f":"($A17-$A16)/365.25*$D$1*(1+$D$2+(VLOOKUP('RE Appr'!CO24,'RE Appr'!$E$13:$J$59,6,FALSE)/100))","v":{"v":419342.77891854895,"d":"419,343"}},{"$f":"($A17-$A16)/365.25*$D$1*(1+$D$2+(VLOOKUP('RE Appr'!CP24,'RE Appr'!$E$13:$J$59,6,FALSE)/100))","v":{"v":409269.6783025325,"d":"409,270"}},{"$f":"($A17-$A16)/365.25*$D$1*(1+$D$2+(VLOOKUP('RE Appr'!CQ24,'RE Appr'!$E$13:$J$59,6,FALSE)/100))","v":{"v":410728.67898699525,"d":"410,729"}},{"$f":"($A17-$A16)/365.25*$D$1*(1+$D$2+(VLOOKUP('RE Appr'!CR24,'RE Appr'!$E$13:$J$59,6,FALSE)/100))","v":{"v":418173.57973990415,"d":"418,174"}},{"$f":"($A17-$A16)/365.25*$D$1*(1+$D$2+(VLOOKUP('RE Appr'!CS24,'RE Appr'!$E$13:$J$59,6,FALSE)/100))","v":{"v":418173.57973990415,"d":"418,174"}},{"$f":"($A17-$A16)/365.25*$D$1*(1+$D$2+(VLOOKUP('RE Appr'!CT24,'RE Appr'!$E$13:$J$59,6,FALSE)/100))","v":{"v":375602.7378507871,"d":"375,603"}},{"$f":"($A17-$A16)/365.25*$D$1*(1+$D$2+(VLOOKUP('RE Appr'!CU24,'RE Appr'!$E$13:$J$59,6,FALSE)/100))","v":{"v":455687.8850102669,"d":"455,688"}},{"$f":"($A17-$A16)/365.25*$D$1*(1+$D$2+(VLOOKUP('RE Appr'!CV24,'RE Appr'!$E$13:$J$59,6,FALSE)/100))","v":{"v":421665.9736136933,"d":"421,666"}},{"$f":"($A17-$A16)/365.25*$D$1*(1+$D$2+(VLOOKUP('RE Appr'!CW24,'RE Appr'!$E$13:$J$59,6,FALSE)/100))","v":{"v":441527.5838466804,"d":"441,528"}},{"$f":"($A17-$A16)/365.25*$D$1*(1+$D$2+(VLOOKUP('RE Appr'!CX24,'RE Appr'!$E$13:$J$59,6,FALSE)/100))","v":{"v":401385.0787132102,"d":"401,385"}},{"$f":"($A17-$A16)/365.25*$D$1*(1+$D$2+(VLOOKUP('RE Appr'!CY24,'RE Appr'!$E$13:$J$59,6,FALSE)/100))","v":{"v":409269.6783025325,"d":"409,270"}},{"$f":"($A17-$A16)/365.25*$D$1*(1+$D$2+(VLOOKUP('RE Appr'!CZ24,'RE Appr'!$E$13:$J$59,6,FALSE)/100))","v":{"v":399326.4887063655,"d":"399,326"}},{"$f":"($A17-$A16)/365.25*$D$1*(1+$D$2+(VLOOKUP('RE Appr'!DA24,'RE Appr'!$E$13:$J$59,6,FALSE)/100))","v":{"v":415285.5578370979,"d":"415,286"}},{"$f":"($A17-$A16)/365.25*$D$1*(1+$D$2+(VLOOKUP('RE Appr'!DB24,'RE Appr'!$E$13:$J$59,6,FALSE)/100))","v":{"v":420192.19712525664,"d":"420,192"}},{"$f":"($A17-$A16)/365.25*$D$1*(1+$D$2+(VLOOKUP('RE Appr'!DC24,'RE Appr'!$E$13:$J$59,6,FALSE)/100))","v":{"v":420192.19712525664,"d":"420,192"}},{"$f":"($A17-$A16)/365.25*$D$1*(1+$D$2+(VLOOKUP('RE Appr'!DD24,'RE Appr'!$E$13:$J$59,6,FALSE)/100))","v":{"v":455687.8850102669,"d":"455,688"}},{"$f":"($A17-$A16)/365.25*$D$1*(1+$D$2+(VLOOKUP('RE Appr'!DE24,'RE Appr'!$E$13:$J$59,6,FALSE)/100))","v":{"v":411048.45995893225,"d":"411,048"}},{"$f":"($A17-$A16)/365.25*$D$1*(1+$D$2+(VLOOKUP('RE Appr'!DF24,'RE Appr'!$E$13:$J$59,6,FALSE)/100))","v":{"v":410728.67898699525,"d":"410,729"}},{"$f":"($A17-$A16)/365.25*$D$1*(1+$D$2+(VLOOKUP('RE Appr'!DG24,'RE Appr'!$E$13:$J$59,6,FALSE)/100))","v":{"v":423749.76043805614,"d":"423,750"}}]
[{"$f":"Main!A20","v":"2035-12-31"},13,{"$nulls":3},{"$f":"($A18-$A17)/365.25*$D$1*(1+$D$2+(VLOOKUP('RE Appr'!L25,'RE Appr'!$E$13:$J$59,6,FALSE)/100))","v":{"v":402484.7638603696,"d":"402,485"}},{"$f":"($A18-$A17)/365.25*$D$1*(1+$D$2+(VLOOKUP('RE Appr'!M25,'RE Appr'!$E$13:$J$59,6,FALSE)/100))","v":{"v":416423.3264887064,"d":"416,423"}},{"$f":"($A18-$A17)/365.25*$D$1*(1+$D$2+(VLOOKUP('RE Appr'!N25,'RE Appr'!$E$13:$J$59,6,FALSE)/100))","v":{"v":413407.1457905544,"d":"413,407"}},{"$f":"($A18-$A17)/365.25*$D$1*(1+$D$2+(VLOOKUP('RE Appr'!O25,'RE Appr'!$E$13:$J$59,6,FALSE)/100))","v":{"v":442316.386036961,"d":"442,316"}},{"$f":"($A18-$A17)/365.25*$D$1*(1+$D$2+(VLOOKUP('RE Appr'!P25,'RE Appr'!$E$13:$J$59,6,FALSE)/100))","v":{"v":372342.9979466119,"d":"372,343"}},{"$f":"($A18-$A17)/365.25*$D$1*(1+$D$2+(VLOOKUP('RE Appr'!Q25,'RE Appr'!$E$13:$J$59,6,FALSE)/100))","v":{"v":416986.8493976799,"d":"416,987"}},{"$f":"($A18-$A17)/365.25*$D$1*(1+$D$2+(VLOOKUP('RE Appr'!R25,'RE Appr'!$E$13:$J$59,6,FALSE)/100))","v":{"v":413767.8850102669,"d":"413,768"}},{"$f":"($A18-$A17)/365.25*$D$1*(1+$D$2+(VLOOKUP('RE Appr'!S25,'RE Appr'!$E$13:$J$59,6,FALSE)/100))","v":{"v":410390.9650924025,"d":"410,391"}},{"$f":"($A18-$A17)/365.25*$D$1*(1+$D$2+(VLOOKUP('RE Appr'!T25,'RE Appr'!$E$13:$J$59,6,FALSE)/100))","v":{"v":384878.68583162216,"d":"384,879"}},{"$f":"($A18-$A17)/365.25*$D$1*(1+$D$2+(VLOOKUP('RE Appr'!U25,'RE Appr'!$E$13:$J$59,6,FALSE)/100))","v":{"v":423668.1724845995,"d":"423,668"}},{"$f":"($A18-$A17)/365.25*$D$1*(1+$D$2+(VLOOKUP('RE Appr'!V25,'RE Appr'!$E$13:$J$59,6,FALSE)/100))","v":{"v":376631.7864476386,"d":"376,632"}},{"$f":"($A18-$A17)/365.25*$D$1*(1+$D$2+(VLOOKUP('RE Appr'!W25,'RE Appr'!$E$13:$J$59,6,FALSE)/100))","v":{"v":420491.66324435314,"d":"420,492"}},{"$f":"($A18-$A17)/365.25*$D$1*(1+$D$2+(VLOOKUP('RE Appr'!X25,'RE Appr'!$E$13:$J$59,6,FALSE)/100))","v":{"v":471786.7761806981,"d":"471,787"}},{"$f":"($A18-$A17)/365.25*$D$1*(1+$D$2+(VLOOKUP('RE Appr'!Y25,'RE Appr'!$E$13:$J$59,6,FALSE)/100))","v":{"v":420782.2587268994,"d":"420,782"}},{"$f":"($A18-$A17)/365.25*$D$1*(1+$D$2+(VLOOKUP('RE Appr'!Z25,'RE Appr'!$E$13:$J$59,6,FALSE)/100))","v":{"v":436374.2094455852,"d":"436,374"}},{"$f":"($A18-$A17)/365.25*$D$1*(1+$D$2+(VLOOKUP('RE Appr'!AA25,'RE Appr'!$E$13:$J$59,6,FALSE)/100))","v":{"v":432957.20739219716,"d":"432,957"}},{"$f":"($A18-$A17)/365.25*$D$1*(1+$D$2+(VLOOKUP('RE Appr'!AB25,'RE Appr'!$E$13:$J$59,6,FALSE)/100))","v":{"v":408206.48870636546,"d":"408,206"}},{"$f":"($A18-$A17)/365.25*$D$1*(1+$D$2+(VLOOKUP('RE Appr'!AC25,'RE Appr'!$E$13:$J$59,6,FALSE)/100))","v":{"v":471786.7761806981,"d":"471,787"}},{"$f":"($A18-$A17)/365.25*$D$1*(1+$D$2+(VLOOKUP('RE Appr'!AD25,'RE Appr'!$E$13:$J$59,6,FALSE)/100))","v":{"v":387734.53798767965,"d":"387,735"}},{"$f":"($A18-$A17)/365.25*$D$1*(1+$D$2+(VLOOKUP('RE Appr'!AE25,'RE Appr'!$E$13:$J$59,6,FALSE)/100))","v":{"v":413767.8850102669,"d":"413,768"}},{"$f":"($A18-$A17)/365.25*$D$1*(1+$D$2+(VLOOKUP('RE Appr'!AF25,'RE Appr'!$E$13:$J$59,6,FALSE)/100))","v":{"v":408206.48870636546,"d":"408,206"}},{"$f":"($A18-$A17)/365.25*$D$1*(1+$D$2+(VLOOKUP('RE Appr'!AG25,'RE Appr'!$E$13:$J$59,6,FALSE)/100))","v":{"v":415982.4229979466,"d":"415,982"}},{"$f":"($A18-$A17)/365.25*$D$1*(1+$D$2+(VLOOKUP('RE Appr'!AH25,'RE Appr'!$E$13:$J$59,6,FALSE)/100))","v":{"v":421343.40862422995,"d":"421,343"}},{"$f":"($A18-$A17)/365.25*$D$1*(1+$D$2+(VLOOKUP('RE Appr'!AI25,'RE Appr'!$E$13:$J$59,6,FALSE)/100))","v":{"v":436965.42094455846,"d":"436,965"}},{"$f":"($A18-$A17)/365.25*$D$1*(1+$D$2+(VLOOKUP('RE Appr'!AJ25,'RE Appr'!$E$13:$J$59,6,FALSE)/100))","v":{"v":420692.0739219712,"d":"420,692"}},{"$f":"($A18-$A17)/365.25*$D$1*(1+$D$2+(VLOOKUP('RE Appr'!AK25,'RE Appr'!$E$13:$J$59,6,FALSE)/100))","v":{"v":417375.27720739215,"d":"417,375"}},{"$f":"($A18-$A17)/365.25*$D$1*(1+$D$2+(VLOOKUP('RE Appr'!AL25,'RE Appr'!$E$13:$J$59,6,FALSE)/100))","v":{"v":418798.1930184805,"d":"418,798"}},{"$f":"($A18-$A17)/365.25*$D$1*(1+$D$2+(VLOOKUP('RE Appr'!AM25,'RE Appr'!$E$13:$J$59,6,FALSE)/100))","v":{"v":418798.1930184805,"d":"418,798"}},{"$f":"($A18-$A17)/365.25*$D$1*(1+$D$2+(VLOOKUP('RE Appr'!AN25,'RE Appr'!$E$13:$J$59,6,FALSE)/100))","v":{"v":418798.1930184805,"d":"418,798"}},{"$f":"($A18-$A17)/365.25*$D$1*(1+$D$2+(VLOOKUP('RE Appr'!AO25,'RE Appr'!$E$13:$J$59,6,FALSE)/100))","v":{"v":412174.62012320326,"d":"412,175"}},{"$f":"($A18-$A17)/365.25*$D$1*(1+$D$2+(VLOOKUP('RE Appr'!AP25,'RE Appr'!$E$13:$J$59,6,FALSE)/100))","v":{"v":420438.5913143351,"d":"420,439"}},{"$f":"($A18-$A17)/365.25*$D$1*(1+$D$2+(VLOOKUP('RE Appr'!AQ25,'RE Appr'!$E$13:$J$59,6,FALSE)/100))","v":{"v":430492.15605749487,"d":"430,492"}},{"$f":"($A18-$A17)/365.25*$D$1*(1+$D$2+(VLOOKUP('RE Appr'!AR25,'RE Appr'!$E$13:$J$59,6,FALSE)/100))","v":{"v":372342.9979466119,"d":"372,343"}},{"$f":"($A18-$A17)/365.25*$D$1*(1+$D$2+(VLOOKUP('RE Appr'!AS25,'RE Appr'!$E$13:$J$59,6,FALSE)/100))","v":{"v":376631.7864476386,"d":"376,632"}},{"$f":"($A18-$A17)/365.25*$D$1*(1+$D$2+(VLOOKUP('RE Appr'!AT25,'RE Appr'!$E$13:$J$59,6,FALSE)/100))","v":{"v":417375.27720739215,"d":"417,375"}},{"$f":"($A18-$A17)/365.25*$D$1*(1+$D$2+(VLOOKUP('RE Appr'!AU25,'RE Appr'!$E$13:$J$59,6,FALSE)/100))","v":{"v":413647.6386036961,"d":"413,648"}},{"$f":"($A18-$A17)/365.25*$D$1*(1+$D$2+(VLOOKUP('RE Appr'!AV25,'RE Appr'!$E$13:$J$59,6,FALSE)/100))","v":{"v":420491.66324435314,"d":"420,492"}},{"$f":"($A18-$A17)/365.25*$D$1*(1+$D$2+(VLOOKUP('RE Appr'!AW25,'RE Appr'!$E$13:$J$59,6,FALSE)/100))","v":{"v":414108.58316221763,"d":"414,109"}},{"$f":"($A18-$A17)/365.25*$D$1*(1+$D$2+(VLOOKUP('RE Appr'!AX25,'RE Appr'!$E$13:$J$59,6,FALSE)/100))","v":{"v":415982.4229979466,"d":"415,982"}},{"$f":"($A18-$A17)/365.25*$D$1*(1+$D$2+(VLOOKUP('RE Appr'!AY25,'RE Appr'!$E$13:$J$59,6,FALSE)/100))","v":{"v":417836.22176591377,"d":"417,836"}},{"$f":"($A18-$A17)/365.25*$D$1*(1+$D$2+(VLOOKUP('RE Appr'!AZ25,'RE Appr'!$E$13:$J$59,6,FALSE)/100))","v":{"v":420491.66324435314,"d":"420,492"}},{"$f":"($A18-$A17)/365.25*$D$1*(1+$D$2+(VLOOKUP('RE Appr'!BA25,'RE Appr'!$E$13:$J$59,6,FALSE)/100))","v":{"v":419981.34954829706,"d":"419,981"}},{"$f":"($A18-$A17)/365.25*$D$1*(1+$D$2+(VLOOKUP('RE Appr'!BB25,'RE Appr'!$E$13:$J$59,6,FALSE)/100))","v":{"v":402484.7638603696,"d":"402,485"}},{"$f":"($A18-$A17)/365.25*$D$1*(1+$D$2+(VLOOKUP('RE Appr'!BC25,'RE Appr'!$E$13:$J$59,6,FALSE)/100))","v":{"v":424910.71868583164,"d":"424,911"}},{"$f":"($A18-$A17)/365.25*$D$1*(1+$D$2+(VLOOKUP('RE Appr'!BD25,'RE Appr'!$E$13:$J$59,6,FALSE)/100))","v":{"v":420782.2587268994,"d":"420,782"}},{"$f":"($A18-$A17)/365.25*$D$1*(1+$D$2+(VLOOKUP('RE Appr'!BE25,'RE Appr'!$E$13:$J$59,6,FALSE)/100))","v":{"v":424890.67761806975,"d":"424,891"}},{"$f":"($A18-$A17)/365.25*$D$1*(1+$D$2+(VLOOKUP('RE Appr'!BF25,'RE Appr'!$E$13:$J$59,6,FALSE)/100))","v":{"v":416182.8336755646,"d":"416,183"}},{"$f":"($A18-$A17)/365.25*$D$1*(1+$D$2+(VLOOKUP('RE Appr'!BG25,'RE Appr'!$E$13:$J$59,6,FALSE)/100))","v":{"v":402484.7638603696,"d":"402,485"}},{"$f":"($A18-$A17)/365.25*$D$1*(1+$D$2+(VLOOKUP('RE Appr'!BH25,'RE Appr'!$E$13:$J$59,6,FALSE)/100))","v":{"v":417836.22176591377,"d":"417,836"}},{"$f":"($A18-$A17)/365.25*$D$1*(1+$D$2+(VLOOKUP('RE Appr'!BI25,'RE Appr'!$E$13:$J$59,6,FALSE)/100))","v":{"v":418798.1930184805,"d":"418,798"}},{"$f":"($A18-$A17)/365.25*$D$1*(1+$D$2+(VLOOKUP('RE Appr'!BJ25,'RE Appr'!$E$13:$J$59,6,FALSE)/100))","v":{"v":402484.7638603696,"d":"402,485"}},{"$f":"($A18-$A17)/365.25*$D$1*(1+$D$2+(VLOOKUP('RE Appr'!BK25,'RE Appr'!$E$13:$J$59,6,FALSE)/100))","v":{"v":422821.22285647056,"d":"422,821"}},{"$f":"($A18-$A17)/365.25*$D$1*(1+$D$2+(VLOOKUP('RE Appr'!BL25,'RE Appr'!$E$13:$J$59,6,FALSE)/100))","v":{"v":422821.22285647056,"d":"422,821"}},{"$f":"($A18-$A17)/365.25*$D$1*(1+$D$2+(VLOOKUP('RE Appr'!BM25,'RE Appr'!$E$13:$J$59,6,FALSE)/100))","v":{"v":372342.9979466119,"d":"372,343"}},{"$f":"($A18-$A17)/365.25*$D$1*(1+$D$2+(VLOOKUP('RE Appr'!BN25,'RE Appr'!$E$13:$J$59,6,FALSE)/100))","v":{"v":372342.9979466119,"d":"372,343"}},{"$f":"($A18-$A17)/365.25*$D$1*(1+$D$2+(VLOOKUP('RE Appr'!BO25,'RE Appr'!$E$13:$J$59,6,FALSE)/100))","v":{"v":456936.3449691991,"d":"456,936"}},{"$f":"($A18-$A17)/365.25*$D$1*(1+$D$2+(VLOOKUP('RE Appr'!BP25,'RE Appr'!$E$13:$J$59,6,FALSE)/100))","v":{"v":421343.40862422995,"d":"421,343"}},{"$f":"($A18-$A17)/365.25*$D$1*(1+$D$2+(VLOOKUP('RE Appr'!BQ25,'RE Appr'!$E$13:$J$59,6,FALSE)/100))","v":{"v":421343.40862422995,"d":"421,343"}},{"$f":"($A18-$A17)/365.25*$D$1*(1+$D$2+(VLOOKUP('RE Appr'!BR25,'RE Appr'!$E$13:$J$59,6,FALSE)/100))","v":{"v":436374.2094455852,"d":"436,374"}},{"$f":"($A18-$A17)/365.25*$D$1*(1+$D$2+(VLOOKUP('RE Appr'!BS25,'RE Appr'!$E$13:$J$59,6,FALSE)/100))","v":{"v":442316.386036961,"d":"442,316"}},{"$f":"($A18-$A17)/365.25*$D$1*(1+$D$2+(VLOOKUP('RE Appr'!BT25,'RE Appr'!$E$13:$J$59,6,FALSE)/100))","v":{"v":436965.42094455846,"d":"436,965"}},{"$f":"($A18-$A17)/365.25*$D$1*(1+$D$2+(VLOOKUP('RE Appr'!BU25,'RE Appr'!$E$13:$J$59,6,FALSE)/100))","v":{"v":456936.3449691991,"d":"456,936"}},{"$f":"($A18-$A17)/365.25*$D$1*(1+$D$2+(VLOOKUP('RE Appr'!BV25,'RE Appr'!$E$13:$J$59,6,FALSE)/100))","v":{"v":435402.2176591376,"d":"435,402"}},{"$f":"($A18-$A17)/365.25*$D$1*(1+$D$2+(VLOOKUP('RE Appr'!BW25,'RE Appr'!$E$13:$J$59,6,FALSE)/100))","v":{"v":420438.5913143351,"d":"420,439"}},{"$f":"($A18-$A17)/365.25*$D$1*(1+$D$2+(VLOOKUP('RE Appr'!BX25,'RE Appr'!$E$13:$J$59,6,FALSE)/100))","v":{"v":419981.34954829706,"d":"419,981"}},{"$f":"($A18-$A17)/365.25*$D$1*(1+$D$2+(VLOOKUP('RE Appr'!BY25,'RE Appr'!$E$13:$J$59,6,FALSE)/100))","v":{"v":432957.20739219716,"d":"432,957"}},{"$f":"($A18-$A17)/365.25*$D$1*(1+$D$2+(VLOOKUP('RE Appr'!BZ25,'RE Appr'!$E$13:$J$59,6,FALSE)/100))","v":{"v":376631.7864476386,"d":"376,632"}},{"$f":"($A18-$A17)/365.25*$D$1*(1+$D$2+(VLOOKUP('RE Appr'!CA25,'RE Appr'!$E$13:$J$59,6,FALSE)/100))","v":{"v":412174.62012320326,"d":"412,175"}},{"$f":"($A18-$A17)/365.25*$D$1*(1+$D$2+(VLOOKUP('RE Appr'!CB25,'RE Appr'!$E$13:$J$59,6,FALSE)/100))","v":{"v":414108.58316221763,"d":"414,109"}},{"$f":"($A18-$A17)/365.25*$D$1*(1+$D$2+(VLOOKUP('RE Appr'!CC25,'RE Appr'!$E$13:$J$59,6,FALSE)/100))","v":{"v":420491.66324435314,"d":"420,492"}},{"$f":"($A18-$A17)/365.25*$D$1*(1+$D$2+(VLOOKUP('RE Appr'!CD25,'RE Appr'!$E$13:$J$59,6,FALSE)/100))","v":{"v":436374.2094455852,"d":"436,374"}},{"$f":"($A18-$A17)/365.25*$D$1*(1+$D$2+(VLOOKUP('RE Appr'!CE25,'RE Appr'!$E$13:$J$59,6,FALSE)/100))","v":{"v":413767.8850102669,"d":"413,768"}},{"$f":"($A18-$A17)/365.25*$D$1*(1+$D$2+(VLOOKUP('RE Appr'!CF25,'RE Appr'!$E$13:$J$59,6,FALSE)/100))","v":{"v":471786.7761806981,"d":"471,787"}},{"$f":"($A18-$A17)/365.25*$D$1*(1+$D$2+(VLOOKUP('RE Appr'!CG25,'RE Appr'!$E$13:$J$59,6,FALSE)/100))","v":{"v":416423.3264887064,"d":"416,423"}},{"$f":"($A18-$A17)/365.25*$D$1*(1+$D$2+(VLOOKUP('RE Appr'!CH25,'RE Appr'!$E$13:$J$59,6,FALSE)/100))","v":{"v":419061.4736334955,"d":"419,061"}},{"$f":"($A18-$A17)/365.25*$D$1*(1+$D$2+(VLOOKUP('RE Appr'!CI25,'RE Appr'!$E$13:$J$59,6,FALSE)/100))","v":{"v":441875.4825462012,"d":"441,875"}},{"$f":"($A18-$A17)/365.25*$D$1*(1+$D$2+(VLOOKUP('RE Appr'!CJ25,'RE Appr'!$E$13:$J$59,6,FALSE)/100))","v":{"v":427209.2230439196,"d":"427,209"}},{"$f":"($A18-$A17)/365.25*$D$1*(1+$D$2+(VLOOKUP('RE Appr'!CK25,'RE Appr'!$E$13:$J$59,6,FALSE)/100))","v":{"v":411853.9630390144,"d":"411,854"}},{"$f":"($A18-$A17)/365.25*$D$1*(1+$D$2+(VLOOKUP('RE Appr'!CL25,'RE Appr'!$E$13:$J$59,6,FALSE)/100))","v":{"v":427209.2230439196,"d":"427,209"}},{"$f":"($A18-$A17)/365.25*$D$1*(1+$D$2+(VLOOKUP('RE Appr'!CM25,'RE Appr'!$E$13:$J$59,6,FALSE)/100))","v":{"v":417375.27720739215,"d":"417,375"}},{"$f":"($A18-$A17)/365.25*$D$1*(1+$D$2+(VLOOKUP('RE Appr'!CN25,'RE Appr'!$E$13:$J$59,6,FALSE)/100))","v":{"v":420438.5913143351,"d":"420,439"}},{"$f":"($A18-$A17)/365.25*$D$1*(1+$D$2+(VLOOKUP('RE Appr'!CO25,'RE Appr'!$E$13:$J$59,6,FALSE)/100))","v":{"v":400420.5338809035,"d":"400,421"}},{"$f":"($A18-$A17)/365.25*$D$1*(1+$D$2+(VLOOKUP('RE Appr'!CP25,'RE Appr'!$E$13:$J$59,6,FALSE)/100))","v":{"v":413647.6386036961,"d":"413,648"}},{"$f":"($A18-$A17)/365.25*$D$1*(1+$D$2+(VLOOKUP('RE Appr'!CQ25,'RE Appr'!$E$13:$J$59,6,FALSE)/100))","v":{"v":419981.34954829706,"d":"419,981"}},{"$f":"($A18-$A17)/365.25*$D$1*(1+$D$2+(VLOOKUP('RE Appr'!CR25,'RE Appr'!$E$13:$J$59,6,FALSE)/100))","v":{"v":432957.20739219716,"d":"432,957"}},{"$f":"($A18-$A17)/365.25*$D$1*(1+$D$2+(VLOOKUP('RE Appr'!CS25,'RE Appr'!$E$13:$J$59,6,FALSE)/100))","v":{"v":424890.67761806975,"d":"424,891"}},{"$f":"($A18-$A17)/365.25*$D$1*(1+$D$2+(VLOOKUP('RE Appr'!CT25,'RE Appr'!$E$13:$J$59,6,FALSE)/100))","v":{"v":416182.8336755646,"d":"416,183"}},{"$f":"($A18-$A17)/365.25*$D$1*(1+$D$2+(VLOOKUP('RE Appr'!CU25,'RE Appr'!$E$13:$J$59,6,FALSE)/100))","v":{"v":400420.5338809035,"d":"400,421"}},{"$f":"($A18-$A17)/365.25*$D$1*(1+$D$2+(VLOOKUP('RE Appr'!CV25,'RE Appr'!$E$13:$J$59,6,FALSE)/100))","v":{"v":442316.386036961,"d":"442,316"}},{"$f":"($A18-$A17)/365.25*$D$1*(1+$D$2+(VLOOKUP('RE Appr'!CW25,'RE Appr'!$E$13:$J$59,6,FALSE)/100))","v":{"v":424910.71868583164,"d":"424,911"}},{"$f":"($A18-$A17)/365.25*$D$1*(1+$D$2+(VLOOKUP('RE Appr'!CX25,'RE Appr'!$E$13:$J$59,6,FALSE)/100))","v":{"v":411853.9630390144,"d":"411,854"}},{"$f":"($A18-$A17)/365.25*$D$1*(1+$D$2+(VLOOKUP('RE Appr'!CY25,'RE Appr'!$E$13:$J$59,6,FALSE)/100))","v":{"v":441875.4825462012,"d":"441,875"}},{"$f":"($A18-$A17)/365.25*$D$1*(1+$D$2+(VLOOKUP('RE Appr'!CZ25,'RE Appr'!$E$13:$J$59,6,FALSE)/100))","v":{"v":416423.3264887064,"d":"416,423"}},{"$f":"($A18-$A17)/365.25*$D$1*(1+$D$2+(VLOOKUP('RE Appr'!DA25,'RE Appr'!$E$13:$J$59,6,FALSE)/100))","v":{"v":416182.8336755646,"d":"416,183"}},{"$f":"($A18-$A17)/365.25*$D$1*(1+$D$2+(VLOOKUP('RE Appr'!DB25,'RE Appr'!$E$13:$J$59,6,FALSE)/100))","v":{"v":471786.7761806981,"d":"471,787"}},{"$f":"($A18-$A17)/365.25*$D$1*(1+$D$2+(VLOOKUP('RE Appr'!DC25,'RE Appr'!$E$13:$J$59,6,FALSE)/100))","v":{"v":435402.2176591376,"d":"435,402"}},{"$f":"($A18-$A17)/365.25*$D$1*(1+$D$2+(VLOOKUP('RE Appr'!DD25,'RE Appr'!$E$13:$J$59,6,FALSE)/100))","v":{"v":432957.20739219716,"d":"432,957"}},{"$f":"($A18-$A17)/365.25*$D$1*(1+$D$2+(VLOOKUP('RE Appr'!DE25,'RE Appr'!$E$13:$J$59,6,FALSE)/100))","v":{"v":372342.9979466119,"d":"372,343"}},{"$f":"($A18-$A17)/365.25*$D$1*(1+$D$2+(VLOOKUP('RE Appr'!DF25,'RE Appr'!$E$13:$J$59,6,FALSE)/100))","v":{"v":420491.66324435314,"d":"420,492"}},{"$f":"($A18-$A17)/365.25*$D$1*(1+$D$2+(VLOOKUP('RE Appr'!DG25,'RE Appr'!$E$13:$J$59,6,FALSE)/100))","v":{"v":427209.2230439196,"d":"427,209"}}]
[{"$f":"Main!A21","v":"2036-12-30"},14,{"$nulls":3},{"$f":"($A19-$A18)/365.25*$D$1*(1+$D$2+(VLOOKUP('RE Appr'!L26,'RE Appr'!$E$13:$J$59,6,FALSE)/100))","v":{"v":386675.1540041068,"d":"386,675"}},{"$f":"($A19-$A18)/365.25*$D$1*(1+$D$2+(VLOOKUP('RE Appr'!M26,'RE Appr'!$E$13:$J$59,6,FALSE)/100))","v":{"v":441107.871321013,"d":"441,108"}},{"$f":"($A19-$A18)/365.25*$D$1*(1+$D$2+(VLOOKUP('RE Appr'!N26,'RE Appr'!$E$13:$J$59,6,FALSE)/100))","v":{"v":412637.3716632444,"d":"412,637"}},{"$f":"($A19-$A18)/365.25*$D$1*(1+$D$2+(VLOOKUP('RE Appr'!O26,'RE Appr'!$E$13:$J$59,6,FALSE)/100))","v":{"v":436840.79397672834,"d":"436,841"}},{"$f":"($A19-$A18)/365.25*$D$1*(1+$D$2+(VLOOKUP('RE Appr'!P26,'RE Appr'!$E$13:$J$59,6,FALSE)/100))","v":{"v":412977.13894592744,"d":"412,977"}},{"$f":"($A19-$A18)/365.25*$D$1*(1+$D$2+(VLOOKUP('RE Appr'!Q26,'RE Appr'!$E$13:$J$59,6,FALSE)/100))","v":{"v":412977.13894592744,"d":"412,977"}},{"$f":"($A19-$A18)/365.25*$D$1*(1+$D$2+(VLOOKUP('RE Appr'!R26,'RE Appr'!$E$13:$J$59,6,FALSE)/100))","v":{"v":386675.1540041068,"d":"386,675"}},{"$f":"($A19-$A18)/365.25*$D$1*(1+$D$2+(VLOOKUP('RE Appr'!S26,'RE Appr'!$E$13:$J$59,6,FALSE)/100))","v":{"v":441527.5838466804,"d":"441,528"}},{"$f":"($A19-$A18)/365.25*$D$1*(1+$D$2+(VLOOKUP('RE Appr'!T26,'RE Appr'!$E$13:$J$59,6,FALSE)/100))","v":{"v":422510.60917180014,"d":"422,511"}},{"$f":"($A19-$A18)/365.25*$D$1*(1+$D$2+(VLOOKUP('RE Appr'!U26,'RE Appr'!$E$13:$J$59,6,FALSE)/100))","v":{"v":412517.453798768,"d":"412,517"}},{"$f":"($A19-$A18)/365.25*$D$1*(1+$D$2+(VLOOKUP('RE Appr'!V26,'RE Appr'!$E$13:$J$59,6,FALSE)/100))","v":{"v":412977.13894592744,"d":"412,977"}},{"$f":"($A19-$A18)/365.25*$D$1*(1+$D$2+(VLOOKUP('RE Appr'!W26,'RE Appr'!$E$13:$J$59,6,FALSE)/100))","v":{"v":410728.67898699525,"d":"410,729"}},{"$f":"($A19-$A18)/365.25*$D$1*(1+$D$2+(VLOOKUP('RE Appr'!X26,'RE Appr'!$E$13:$J$59,6,FALSE)/100))","v":{"v":419289.85199380416,"d":"419,290"}},{"$f":"($A19-$A18)/365.25*$D$1*(1+$D$2+(VLOOKUP('RE Appr'!Y26,'RE Appr'!$E$13:$J$59,6,FALSE)/100))","v":{"v":375602.7378507871,"d":"375,603"}},{"$f":"($A19-$A18)/365.25*$D$1*(1+$D$2+(VLOOKUP('RE Appr'!Z26,'RE Appr'!$E$13:$J$59,6,FALSE)/100))","v":{"v":440668.1724845996,"d":"440,668"}},{"$f":"($A19-$A18)/365.25*$D$1*(1+$D$2+(VLOOKUP('RE Appr'!AA26,'RE Appr'!$E$13:$J$59,6,FALSE)/100))","v":{"v":411048.45995893225,"d":"411,048"}},{"$f":"($A19-$A18)/365.25*$D$1*(1+$D$2+(VLOOKUP('RE Appr'!AB26,'RE Appr'!$E$13:$J$59,6,FALSE)/100))","v":{"v":418833.85952220886,"d":"418,834"}},{"$f":"($A19-$A18)/365.25*$D$1*(1+$D$2+(VLOOKUP('RE Appr'!AC26,'RE Appr'!$E$13:$J$59,6,FALSE)/100))","v":{"v":412977.13894592744,"d":"412,977"}},{"$f":"($A19-$A18)/365.25*$D$1*(1+$D$2+(VLOOKUP('RE Appr'!AD26,'RE Appr'!$E$13:$J$59,6,FALSE)/100))","v":{"v":418833.85952220886,"d":"418,834"}},{"$f":"($A19-$A18)/365.25*$D$1*(1+$D$2+(VLOOKUP('RE Appr'!AE26,'RE Appr'!$E$13:$J$59,6,FALSE)/100))","v":{"v":407091.1704312115,"d":"407,091"}},{"$f":"($A19-$A18)/365.25*$D$1*(1+$D$2+(VLOOKUP('RE Appr'!AF26,'RE Appr'!$E$13:$J$59,6,FALSE)/100))","v":{"v":435771.5263518138,"d":"435,772"}},{"$f":"($A19-$A18)/365.25*$D$1*(1+$D$2+(VLOOKUP('RE Appr'!AG26,'RE Appr'!$E$13:$J$59,6,FALSE)/100))","v":{"v":417916.4969295789,"d":"417,916"}},{"$f":"($A19-$A18)/365.25*$D$1*(1+$D$2+(VLOOKUP('RE Appr'!AH26,'RE Appr'!$E$13:$J$59,6,FALSE)/100))","v":{"v":416694.59274469543,"d":"416,695"}},{"$f":"($A19-$A18)/365.25*$D$1*(1+$D$2+(VLOOKUP('RE Appr'!AI26,'RE Appr'!$E$13:$J$59,6,FALSE)/100))","v":{"v":426041.984729592,"d":"426,042"}},{"$f":"($A19-$A18)/365.25*$D$1*(1+$D$2+(VLOOKUP('RE Appr'!AJ26,'RE Appr'!$E$13:$J$59,6,FALSE)/100))","v":{"v":371325.66735112935,"d":"371,326"}},{"$f":"($A19-$A18)/365.25*$D$1*(1+$D$2+(VLOOKUP('RE Appr'!AK26,'RE Appr'!$E$13:$J$59,6,FALSE)/100))","v":{"v":423729.77412731,"d":"423,730"}},{"$f":"($A19-$A18)/365.25*$D$1*(1+$D$2+(VLOOKUP('RE Appr'!AL26,'RE Appr'!$E$13:$J$59,6,FALSE)/100))","v":{"v":415285.5578370979,"d":"415,286"}},{"$f":"($A19-$A18)/365.25*$D$1*(1+$D$2+(VLOOKUP('RE Appr'!AM26,'RE Appr'!$E$13:$J$59,6,FALSE)/100))","v":{"v":436840.79397672834,"d":"436,841"}},{"$f":"($A19-$A18)/365.25*$D$1*(1+$D$2+(VLOOKUP('RE Appr'!AN26,'RE Appr'!$E$13:$J$59,6,FALSE)/100))","v":{"v":421665.9736136933,"d":"421,666"}},{"$f":"($A19-$A18)/365.25*$D$1*(1+$D$2+(VLOOKUP('RE Appr'!AO26,'RE Appr'!$E$13:$J$59,6,FALSE)/100))","v":{"v":401385.0787132102,"d":"401,385"}},{"$f":"($A19-$A18)/365.25*$D$1*(1+$D$2+(VLOOKUP('RE Appr'!AP26,'RE Appr'!$E$13:$J$59,6,FALSE)/100))","v":{"v":412517.453798768,"d":"412,517"}},{"$f":"($A19-$A18)/365.25*$D$1*(1+$D$2+(VLOOKUP('RE Appr'!AQ26,'RE Appr'!$E$13:$J$59,6,FALSE)/100))","v":{"v":435771.5263518138,"d":"435,772"}},{"$f":"($A19-$A18)/365.25*$D$1*(1+$D$2+(VLOOKUP('RE Appr'!AR26,'RE Appr'!$E$13:$J$59,6,FALSE)/100))","v":{"v":441107.871321013,"d":"441,108"}},{"$f":"($A19-$A18)/365.25*$D$1*(1+$D$2+(VLOOKUP('RE Appr'!AS26,'RE Appr'!$E$13:$J$59,6,FALSE)/100))","v":{"v":415285.5578370979,"d":"415,286"}},{"$f":"($A19-$A18)/365.25*$D$1*(1+$D$2+(VLOOKUP('RE Appr'!AT26,'RE Appr'!$E$13:$J$59,6,FALSE)/100))","v":{"v":423729.77412731,"d":"423,730"}},{"$f":"($A19-$A18)/365.25*$D$1*(1+$D$2+(VLOOKUP('RE Appr'!AU26,'RE Appr'!$E$13:$J$59,6,FALSE)/100))","v":{"v":419542.64202600956,"d":"419,543"}},{"$f":"($A19-$A18)/365.25*$D$1*(1+$D$2+(VLOOKUP('RE Appr'!AV26,'RE Appr'!$E$13:$J$59,6,FALSE)/100))","v":{"v":399326.4887063655,"d":"399,326"}},{"$f":"($A19-$A18)/365.25*$D$1*(1+$D$2+(VLOOKUP('RE Appr'!AW26,'RE Appr'!$E$13:$J$59,6,FALSE)/100))","v":{"v":401385.0787132102,"d":"401,385"}},{"$f":"($A19-$A18)/365.25*$D$1*(1+$D$2+(VLOOKUP('RE Appr'!AX26,'RE Appr'!$E$13:$J$59,6,FALSE)/100))","v":{"v":451019.08281998633,"d":"451,019"}},{"$f":"($A19-$A18)/365.25*$D$1*(1+$D$2+(VLOOKUP('RE Appr'!AY26,'RE Appr'!$E$13:$J$59,6,FALSE)/100))","v":{"v":416234.9075975359,"d":"416,235"}},{"$f":"($A19-$A18)/365.25*$D$1*(1+$D$2+(VLOOKUP('RE Appr'!AZ26,'RE Appr'!$E$13:$J$59,6,FALSE)/100))","v":{"v":412277.6180698152,"d":"412,278"}},{"$f":"($A19-$A18)/365.25*$D$1*(1+$D$2+(VLOOKUP('RE Appr'!BA26,'RE Appr'!$E$13:$J$59,6,FALSE)/100))","v":{"v":420192.19712525664,"d":"420,192"}},{"$f":"($A19-$A18)/365.25*$D$1*(1+$D$2+(VLOOKUP('RE Appr'!BB26,'RE Appr'!$E$13:$J$59,6,FALSE)/100))","v":{"v":437040.65708418895,"d":"437,041"}},{"$f":"($A19-$A18)/365.25*$D$1*(1+$D$2+(VLOOKUP('RE Appr'!BC26,'RE Appr'!$E$13:$J$59,6,FALSE)/100))","v":{"v":431774.264202601,"d":"431,774"}},{"$f":"($A19-$A18)/365.25*$D$1*(1+$D$2+(VLOOKUP('RE Appr'!BD26,'RE Appr'!$E$13:$J$59,6,FALSE)/100))","v":{"v":419542.64202600956,"d":"419,543"}},{"$f":"($A19-$A18)/365.25*$D$1*(1+$D$2+(VLOOKUP('RE Appr'!BE26,'RE Appr'!$E$13:$J$59,6,FALSE)/100))","v":{"v":412977.13894592744,"d":"412,977"}},{"$f":"($A19-$A18)/365.25*$D$1*(1+$D$2+(VLOOKUP('RE Appr'!BF26,'RE Appr'!$E$13:$J$59,6,FALSE)/100))","v":{"v":412277.6180698152,"d":"412,278"}},{"$f":"($A19-$A18)/365.25*$D$1*(1+$D$2+(VLOOKUP('RE Appr'!BG26,'RE Appr'!$E$13:$J$59,6,FALSE)/100))","v":{"v":411048.45995893225,"d":"411,048"}},{"$f":"($A19-$A18)/365.25*$D$1*(1+$D$2+(VLOOKUP('RE Appr'!BH26,'RE Appr'!$E$13:$J$59,6,FALSE)/100))","v":{"v":421665.9736136933,"d":"421,666"}},{"$f":"($A19-$A18)/365.25*$D$1*(1+$D$2+(VLOOKUP('RE Appr'!BI26,'RE Appr'!$E$13:$J$59,6,FALSE)/100))","v":{"v":418173.57973990415,"d":"418,174"}},{"$f":"($A19-$A18)/365.25*$D$1*(1+$D$2+(VLOOKUP('RE Appr'!BJ26,'RE Appr'!$E$13:$J$59,6,FALSE)/100))","v":{"v":415285.5578370979,"d":"415,286"}},{"$f":"($A19-$A18)/365.25*$D$1*(1+$D$2+(VLOOKUP('RE Appr'!BK26,'RE Appr'!$E$13:$J$59,6,FALSE)/100))","v":{"v":386675.1540041068,"d":"386,675"}},{"$f":"($A19-$A18)/365.25*$D$1*(1+$D$2+(VLOOKUP('RE Appr'!BL26,'RE Appr'!$E$13:$J$59,6,FALSE)/100))","v":{"v":411048.45995893225,"d":"411,048"}},{"$f":"($A19-$A18)/365.25*$D$1*(1+$D$2+(VLOOKUP('RE Appr'!BM26,'RE Appr'!$E$13:$J$59,6,FALSE)/100))","v":{"v":429315.94798083504,"d":"429,316"}},{"$f":"($A19-$A18)/365.25*$D$1*(1+$D$2+(VLOOKUP('RE Appr'!BN26,'RE Appr'!$E$13:$J$59,6,FALSE)/100))","v":{"v":419342.77891854895,"d":"419,343"}},{"$f":"($A19-$A18)/365.25*$D$1*(1+$D$2+(VLOOKUP('RE Appr'!BO26,'RE Appr'!$E$13:$J$59,6,FALSE)/100))","v":{"v":409269.6783025325,"d":"409,270"}},{"$f":"($A19-$A18)/365.25*$D$1*(1+$D$2+(VLOOKUP('RE Appr'!BP26,'RE Appr'!$E$13:$J$59,6,FALSE)/100))","v":{"v":412637.3716632444,"d":"412,637"}},{"$f":"($A19-$A18)/365.25*$D$1*(1+$D$2+(VLOOKUP('RE Appr'!BQ26,'RE Appr'!$E$13:$J$59,6,FALSE)/100))","v":{"v":383827.10472279263,"d":"383,827"}},{"$f":"($A19-$A18)/365.25*$D$1*(1+$D$2+(VLOOKUP('RE Appr'!BR26,'RE Appr'!$E$13:$J$59,6,FALSE)/100))","v":{"v":371325.66735112935,"d":"371,326"}},{"$f":"($A19-$A18)/365.25*$D$1*(1+$D$2+(VLOOKUP('RE Appr'!BS26,'RE Appr'!$E$13:$J$59,6,FALSE)/100))","v":{"v":419632.5804243669,"d":"419,633"}},{"$f":"($A19-$A18)/365.25*$D$1*(1+$D$2+(VLOOKUP('RE Appr'!BT26,'RE Appr'!$E$13:$J$59,6,FALSE)/100))","v":{"v":371325.66735112935,"d":"371,326"}},{"$f":"($A19-$A18)/365.25*$D$1*(1+$D$2+(VLOOKUP('RE Appr'!BU26,'RE Appr'!$E$13:$J$59,6,FALSE)/100))","v":{"v":419289.85199380416,"d":"419,290"}},{"$f":"($A19-$A18)/365.25*$D$1*(1+$D$2+(VLOOKUP('RE Appr'!BV26,'RE Appr'!$E$13:$J$59,6,FALSE)/100))","v":{"v":436840.79397672834,"d":"436,841"}},{"$f":"($A19-$A18)/365.25*$D$1*(1+$D$2+(VLOOKUP('RE Appr'!BW26,'RE Appr'!$E$13:$J$59,6,FALSE)/100))","v":{"v":412637.3716632444,"d":"412,637"}},{"$f":"($A19-$A18)/365.25*$D$1*(1+$D$2+(VLOOKUP('RE Appr'!BX26,'RE Appr'!$E$13:$J$59,6,FALSE)/100))","v":{"v":415285.5578370979,"d":"415,286"}},{"$f":"($A19-$A18)/365.25*$D$1*(1+$D$2+(VLOOKUP('RE Appr'!BY26,'RE Appr'!$E$13:$J$59,6,FALSE)/100))","v":{"v":375602.7378507871,"d":"375,603"}},{"$f":"($A19-$A18)/365.25*$D$1*(1+$D$2+(VLOOKUP('RE Appr'!BZ26,'RE Appr'!$E$13:$J$59,6,FALSE)/100))","v":{"v":435181.93018480495,"d":"435,182"}},{"$f":"($A19-$A18)/365.25*$D$1*(1+$D$2+(VLOOKUP('RE Appr'!CA26,'RE Appr'!$E$13:$J$59,6,FALSE)/100))","v":{"v":416234.9075975359,"d":"416,235"}},{"$f":"($A19-$A18)/365.25*$D$1*(1+$D$2+(VLOOKUP('RE Appr'!CB26,'RE Appr'!$E$13:$J$59,6,FALSE)/100))","v":{"v":414845.85900068446,"d":"414,846"}},{"$f":"($A19-$A18)/365.25*$D$1*(1+$D$2+(VLOOKUP('RE Appr'!CC26,'RE Appr'!$E$13:$J$59,6,FALSE)/100))","v":{"v":441107.871321013,"d":"441,108"}},{"$f":"($A19-$A18)/365.25*$D$1*(1+$D$2+(VLOOKUP('RE Appr'!CD26,'RE Appr'!$E$13:$J$59,6,FALSE)/100))","v":{"v":437040.65708418895,"d":"437,041"}},{"$f":"($A19-$A18)/365.25*$D$1*(1+$D$2+(VLOOKUP('RE Appr'!CE26,'RE Appr'!$E$13:$J$59,6,FALSE)/100))","v":{"v":431774.264202601,"d":"431,774"}},{"$f":"($A19-$A18)/365.25*$D$1*(1+$D$2+(VLOOKUP('RE Appr'!CF26,'RE Appr'!$E$13:$J$59,6,FALSE)/100))","v":{"v":416694.59274469543,"d":"416,695"}},{"$f":"($A19-$A18)/365.25*$D$1*(1+$D$2+(VLOOKUP('RE Appr'!CG26,'RE Appr'!$E$13:$J$59,6,FALSE)/100))","v":{"v":419542.64202600956,"d":"419,543"}},{"$f":"($A19-$A18)/365.25*$D$1*(1+$D$2+(VLOOKUP('RE Appr'!CH26,'RE Appr'!$E$13:$J$59,6,FALSE)/100))","v":{"v":401385.0787132102,"d":"401,385"}},{"$f":"($A19-$A18)/365.25*$D$1*(1+$D$2+(VLOOKUP('RE Appr'!CI26,'RE Appr'!$E$13:$J$59,6,FALSE)/100))","v":{"v":416694.59274469543,"d":"416,695"}},{"$f":"($A19-$A18)/365.25*$D$1*(1+$D$2+(VLOOKUP('RE Appr'!CJ26,'RE Appr'!$E$13:$J$59,6,FALSE)/100))","v":{"v":419542.64202600956,"d":"419,543"}},{"$f":"($A19-$A18)/365.25*$D$1*(1+$D$2+(VLOOKUP('RE Appr'!CK26,'RE Appr'!$E$13:$J$59,6,FALSE)/100))","v":{"v":435181.93018480495,"d":"435,182"}},{"$f":"($A19-$A18)/365.25*$D$1*(1+$D$2+(VLOOKUP('RE Appr'!CL26,'RE Appr'!$E$13:$J$59,6,FALSE)/100))","v":{"v":417653.93566050654,"d":"417,654"}},{"$f":"($A19-$A18)/365.25*$D$1*(1+$D$2+(VLOOKUP('RE Appr'!CM26,'RE Appr'!$E$13:$J$59,6,FALSE)/100))","v":{"v":431774.264202601,"d":"431,774"}},{"$f":"($A19-$A18)/365.25*$D$1*(1+$D$2+(VLOOKUP('RE Appr'!CN26,'RE Appr'!$E$13:$J$59,6,FALSE)/100))","v":{"v":417653.93566050654,"d":"417,654"}},{"$f":"($A19-$A18)/365.25*$D$1*(1+$D$2+(VLOOKUP('RE Appr'!CO26,'RE Appr'!$E$13:$J$59,6,FALSE)/100))","v":{"v":371325.66735112935,"d":"371,326"}},{"$f":"($A19-$A18)/365.25*$D$1*(1+$D$2+(VLOOKUP('RE Appr'!CP26,'RE Appr'!$E$13:$J$59,6,FALSE)/100))","v":{"v":441527.5838466804,"d":"441,528"}},{"$f":"($A19-$A18)/365.25*$D$1*(1+$D$2+(VLOOKUP('RE Appr'!CQ26,'RE Appr'!$E$13:$J$59,6,FALSE)/100))","v":{"v":418833.85952220886,"d":"418,834"}},{"$f":"($A19-$A18)/365.25*$D$1*(1+$D$2+(VLOOKUP('RE Appr'!CR26,'RE Appr'!$E$13:$J$59,6,FALSE)/100))","v":{"v":383827.10472279263,"d":"383,827"}},{"$f":"($A19-$A18)/365.25*$D$1*(1+$D$2+(VLOOKUP('RE Appr'!CS26,'RE Appr'!$E$13:$J$59,6,FALSE)/100))","v":{"v":455687.8850102669,"d":"455,688"}},{"$f":"($A19-$A18)/365.25*$D$1*(1+$D$2+(VLOOKUP('RE Appr'!CT26,'RE Appr'!$E$13:$J$59,6,FALSE)/100))","v":{"v":437040.65708418895,"d":"437,041"}},{"$f":"($A19-$A18)/365.25*$D$1*(1+$D$2+(VLOOKUP('RE Appr'!CU26,'RE Appr'!$E$13:$J$59,6,FALSE)/100))","v":{"v":429315.94798083504,"d":"429,316"}},{"$f":"($A19-$A18)/365.25*$D$1*(1+$D$2+(VLOOKUP('RE Appr'!CV26,'RE Appr'!$E$13:$J$59,6,FALSE)/100))","v":{"v":455687.8850102669,"d":"455,688"}},{"$f":"($A19-$A18)/365.25*$D$1*(1+$D$2+(VLOOKUP('RE Appr'!CW26,'RE Appr'!$E$13:$J$59,6,FALSE)/100))","v":{"v":415847.54106599226,"d":"415,848"}},{"$f":"($A19-$A18)/365.25*$D$1*(1+$D$2+(VLOOKUP('RE Appr'!CX26,'RE Appr'!$E$13:$J$59,6,FALSE)/100))","v":{"v":420192.19712525664,"d":"420,192"}},{"$f":"($A19-$A18)/365.25*$D$1*(1+$D$2+(VLOOKUP('RE Appr'!CY26,'RE Appr'!$E$13:$J$59,6,FALSE)/100))","v":{"v":415847.54106599226,"d":"415,848"}},{"$f":"($A19-$A18)/365.25*$D$1*(1+$D$2+(VLOOKUP('RE Appr'!CZ26,'RE Appr'!$E$13:$J$59,6,FALSE)/100))","v":{"v":426041.984729592,"d":"426,042"}},{"$f":"($A19-$A18)/365.25*$D$1*(1+$D$2+(VLOOKUP('RE Appr'!DA26,'RE Appr'!$E$13:$J$59,6,FALSE)/100))","v":{"v":416234.9075975359,"d":"416,235"}},{"$f":"($A19-$A18)/365.25*$D$1*(1+$D$2+(VLOOKUP('RE Appr'!DB26,'RE Appr'!$E$13:$J$59,6,FALSE)/100))","v":{"v":422510.60917180014,"d":"422,511"}},{"$f":"($A19-$A18)/365.25*$D$1*(1+$D$2+(VLOOKUP('RE Appr'!DC26,'RE Appr'!$E$13:$J$59,6,FALSE)/100))","v":{"v":383827.10472279263,"d":"383,827"}},{"$f":"($A19-$A18)/365.25*$D$1*(1+$D$2+(VLOOKUP('RE Appr'!DD26,'RE Appr'!$E$13:$J$59,6,FALSE)/100))","v":{"v":470497.7412731006,"d":"470,498"}},{"$f":"($A19-$A18)/365.25*$D$1*(1+$D$2+(VLOOKUP('RE Appr'!DE26,'RE Appr'!$E$13:$J$59,6,FALSE)/100))","v":{"v":399326.4887063655,"d":"399,326"}},{"$f":"($A19-$A18)/365.25*$D$1*(1+$D$2+(VLOOKUP('RE Appr'!DF26,'RE Appr'!$E$13:$J$59,6,FALSE)/100))","v":{"v":415045.72210814507,"d":"415,046"}},{"$f":"($A19-$A18)/365.25*$D$1*(1+$D$2+(VLOOKUP('RE Appr'!DG26,'RE Appr'!$E$13:$J$59,6,FALSE)/100))","v":{"v":470497.7412731006,"d":"470,498"}}]
[{"$f":"Main!A22","v":"2037-12-30"},15,{"$nulls":3},{"$f":"($A20-$A19)/365.25*$D$1*(1+$D$2+(VLOOKUP('RE Appr'!L27,'RE Appr'!$E$13:$J$59,6,FALSE)/100))","v":{"v":441527.5838466804,"d":"441,528"}},{"$f":"($A20-$A19)/365.25*$D$1*(1+$D$2+(VLOOKUP('RE Appr'!M27,'RE Appr'!$E$13:$J$59,6,FALSE)/100))","v":{"v":435771.5263518138,"d":"435,772"}},{"$f":"($A20-$A19)/365.25*$D$1*(1+$D$2+(VLOOKUP('RE Appr'!N27,'RE Appr'!$E$13:$J$59,6,FALSE)/100))","v":{"v":426041.984729592,"d":"426,042"}},{"$f":"($A20-$A19)/365.25*$D$1*(1+$D$2+(VLOOKUP('RE Appr'!O27,'RE Appr'!$E$13:$J$59,6,FALSE)/100))","v":{"v":375602.7378507871,"d":"375,603"}},{"$f":"($A20-$A19)/365.25*$D$1*(1+$D$2+(VLOOKUP('RE Appr'!P27,'RE Appr'!$E$13:$J$59,6,FALSE)/100))","v":{"v":371325.66735112935,"d":"371,326"}},{"$f":"($A20-$A19)/365.25*$D$1*(1+$D$2+(VLOOKUP('RE Appr'!Q27,'RE Appr'!$E$13:$J$59,6,FALSE)/100))","v":{"v":410728.67898699525,"d":"410,729"}},{"$f":"($A20-$A19)/365.25*$D$1*(1+$D$2+(VLOOKUP('RE Appr'!R27,'RE Appr'!$E$13:$J$59,6,FALSE)/100))","v":{"v":419342.77891854895,"d":"419,343"}},{"$f":"($A20-$A19)/365.25*$D$1*(1+$D$2+(VLOOKUP('RE Appr'!S27,'RE Appr'!$E$13:$J$59,6,FALSE)/100))","v":{"v":419342.77891854895,"d":"419,343"}},{"$f":"($A20-$A19)/365.25*$D$1*(1+$D$2+(VLOOKUP('RE Appr'!T27,'RE Appr'!$E$13:$J$59,6,FALSE)/100))","v":{"v":401385.0787132102,"d":"401,385"}},{"$f":"($A20-$A19)/365.25*$D$1*(1+$D$2+(VLOOKUP('RE Appr'!U27,'RE Appr'!$E$13:$J$59,6,FALSE)/100))","v":{"v":401385.0787132102,"d":"401,385"}},{"$f":"($A20-$A19)/365.25*$D$1*(1+$D$2+(VLOOKUP('RE Appr'!V27,'RE Appr'!$E$13:$J$59,6,FALSE)/100))","v":{"v":383827.10472279263,"d":"383,827"}},{"$f":"($A20-$A19)/365.25*$D$1*(1+$D$2+(VLOOKUP('RE Appr'!W27,'RE Appr'!$E$13:$J$59,6,FALSE)/100))","v":{"v":415045.72210814507,"d":"415,046"}},{"$f":"($A20-$A19)/365.25*$D$1*(1+$D$2+(VLOOKUP('RE Appr'!X27,'RE Appr'!$E$13:$J$59,6,FALSE)/100))","v":{"v":417653.93566050654,"d":"417,654"}},{"$f":"($A20-$A19)/365.25*$D$1*(1+$D$2+(VLOOKUP('RE Appr'!Y27,'RE Appr'!$E$13:$J$59,6,FALSE)/100))","v":{"v":371325.66735112935,"d":"371,326"}},{"$f":"($A20-$A19)/365.25*$D$1*(1+$D$2+(VLOOKUP('RE Appr'!Z27,'RE Appr'!$E$13:$J$59,6,FALSE)/100))","v":{"v":401385.0787132102,"d":"401,385"}},{"$f":"($A20-$A19)/365.25*$D$1*(1+$D$2+(VLOOKUP('RE Appr'!AA27,'RE Appr'!$E$13:$J$59,6,FALSE)/100))","v":{"v":414845.85900068446,"d":"414,846"}},{"$f":"($A20-$A19)/365.25*$D$1*(1+$D$2+(VLOOKUP('RE Appr'!AB27,'RE Appr'!$E$13:$J$59,6,FALSE)/100))","v":{"v":417916.4969295789,"d":"417,916"}},{"$f":"($A20-$A19)/365.25*$D$1*(1+$D$2+(VLOOKUP('RE Appr'!AC27,'RE Appr'!$E$13:$J$59,6,FALSE)/100))","v":{"v":422510.60917180014,"d":"422,511"}},{"$f":"($A20-$A19)/365.25*$D$1*(1+$D$2+(VLOOKUP('RE Appr'!AD27,'RE Appr'!$E$13:$J$59,6,FALSE)/100))","v":{"v":415045.72210814507,"d":"415,046"}},{"$f":"($A20-$A19)/365.25*$D$1*(1+$D$2+(VLOOKUP('RE Appr'!AE27,'RE Appr'!$E$13:$J$59,6,FALSE)/100))","v":{"v":434212.5941136209,"d":"434,213"}},{"$f":"($A20-$A19)/365.25*$D$1*(1+$D$2+(VLOOKUP('RE Appr'!AF27,'RE Appr'!$E$13:$J$59,6,FALSE)/100))","v":{"v":416694.59274469543,"d":"416,695"}},{"$f":"($A20-$A19)/365.25*$D$1*(1+$D$2+(VLOOKUP('RE Appr'!AG27,'RE Appr'!$E$13:$J$59,6,FALSE)/100))","v":{"v":412517.453798768,"d":"412,517"}},{"$f":"($A20-$A19)/365.25*$D$1*(1+$D$2+(VLOOKUP('RE Appr'!AH27,'RE Appr'!$E$13:$J$59,6,FALSE)/100))","v":{"v":416694.59274469543,"d":"416,695"}},{"$f":"($A20-$A19)/365.25*$D$1*(1+$D$2+(VLOOKUP('RE Appr'!AI27,'RE Appr'!$E$13:$J$59,6,FALSE)/100))","v":{"v":423729.77412731,"d":"423,730"}},{"$f":"($A20-$A19)/365.25*$D$1*(1+$D$2+(VLOOKUP('RE Appr'!AJ27,'RE Appr'!$E$13:$J$59,6,FALSE)/100))","v":{"v":417653.93566050654,"d":"417,654"}},{"$f":"($A20-$A19)/365.25*$D$1*(1+$D$2+(VLOOKUP('RE Appr'!AK27,'RE Appr'!$E$13:$J$59,6,FALSE)/100))","v":{"v":386675.1540041068,"d":"386,675"}},{"$f":"($A20-$A19)/365.25*$D$1*(1+$D$2+(VLOOKUP('RE Appr'!AL27,'RE Appr'!$E$13:$J$59,6,FALSE)/100))","v":{"v":431774.264202601,"d":"431,774"}},{"$f":"($A20-$A19)/365.25*$D$1*(1+$D$2+(VLOOKUP('RE Appr'!AM27,'RE Appr'!$E$13:$J$59,6,FALSE)/100))","v":{"v":419632.5804243669,"d":"419,633"}},{"$f":"($A20-$A19)/365.25*$D$1*(1+$D$2+(VLOOKUP('RE Appr'!AN27,'RE Appr'!$E$13:$J$59,6,FALSE)/100))","v":{"v":414845.85900068446,"d":"414,846"}},{"$f":"($A20-$A19)/365.25*$D$1*(1+$D$2+(VLOOKUP('RE Appr'!AO27,'RE Appr'!$E$13:$J$59,6,FALSE)/100))","v":{"v":399326.4887063655,"d":"399,326"}},{"$f":"($A20-$A19)/365.25*$D$1*(1+$D$2+(VLOOKUP('RE Appr'!AP27,'RE Appr'!$E$13:$J$59,6,FALSE)/100))","v":{"v":441107.871321013,"d":"441,108"}},{"$f":"($A20-$A19)/365.25*$D$1*(1+$D$2+(VLOOKUP('RE Appr'!AQ27,'RE Appr'!$E$13:$J$59,6,FALSE)/100))","v":{"v":417916.4969295789,"d":"417,916"}},{"$f":"($A20-$A19)/365.25*$D$1*(1+$D$2+(VLOOKUP('RE Appr'!AR27,'RE Appr'!$E$13:$J$59,6,FALSE)/100))","v":{"v":411048.45995893225,"d":"411,048"}},{"$f":"($A20-$A19)/365.25*$D$1*(1+$D$2+(VLOOKUP('RE Appr'!AS27,'RE Appr'!$E$13:$J$59,6,FALSE)/100))","v":{"v":437040.65708418895,"d":"437,041"}},{"$f":"($A20-$A19)/365.25*$D$1*(1+$D$2+(VLOOKUP('RE Appr'!AT27,'RE Appr'!$E$13:$J$59,6,FALSE)/100))","v":{"v":419289.85199380416,"d":"419,290"}},{"$f":"($A20-$A19)/365.25*$D$1*(1+$D$2+(VLOOKUP('RE Appr'!AU27,'RE Appr'!$E$13:$J$59,6,FALSE)/100))","v":{"v":407091.1704312115,"d":"407,091"}},{"$f":"($A20-$A19)/365.25*$D$1*(1+$D$2+(VLOOKUP('RE Appr'!AV27,'RE Appr'!$E$13:$J$59,6,FALSE)/100))","v":{"v":417916.4969295789,"d":"417,916"}},{"$f":"($A20-$A19)/365.25*$D$1*(1+$D$2+(VLOOKUP('RE Appr'!AW27,'RE Appr'!$E$13:$J$59,6,FALSE)/100))","v":{"v":412637.3716632444,"d":"412,637"}},{"$f":"($A20-$A19)/365.25*$D$1*(1+$D$2+(VLOOKUP('RE Appr'!AX27,'RE Appr'!$E$13:$J$59,6,FALSE)/100))","v":{"v":401385.0787132102,"d":"401,385"}},{"$f":"($A20-$A19)/365.25*$D$1*(1+$D$2+(VLOOKUP('RE Appr'!AY27,'RE Appr'!$E$13:$J$59,6,FALSE)/100))","v":{"v":429315.94798083504,"d":"429,316"}},{"$f":"($A20-$A19)/365.25*$D$1*(1+$D$2+(VLOOKUP('RE Appr'!AZ27,'RE Appr'!$E$13:$J$59,6,FALSE)/100))","v":{"v":440668.1724845996,"d":"440,668"}},{"$f":"($A20-$A19)/365.25*$D$1*(1+$D$2+(VLOOKUP('RE Appr'!BA27,'RE Appr'!$E$13:$J$59,6,FALSE)/100))","v":{"v":417916.4969295789,"d":"417,916"}},{"$f":"($A20-$A19)/365.25*$D$1*(1+$D$2+(VLOOKUP('RE Appr'!BB27,'RE Appr'!$E$13:$J$59,6,FALSE)/100))","v":{"v":409269.6783025325,"d":"409,270"}},{"$f":"($A20-$A19)/365.25*$D$1*(1+$D$2+(VLOOKUP('RE Appr'!BC27,'RE Appr'!$E$13:$J$59,6,FALSE)/100))","v":{"v":451019.08281998633,"d":"451,019"}},{"$f":"($A20-$A19)/365.25*$D$1*(1+$D$2+(VLOOKUP('RE Appr'!BD27,'RE Appr'!$E$13:$J$59,6,FALSE)/100))","v":{"v":412977.13894592744,"d":"412,977"}},{"$f":"($A20-$A19)/365.25*$D$1*(1+$D$2+(VLOOKUP('RE Appr'!BE27,'RE Appr'!$E$13:$J$59,6,FALSE)/100))","v":{"v":409269.6783025325,"d":"409,270"}},{"$f":"($A20-$A19)/365.25*$D$1*(1+$D$2+(VLOOKUP('RE Appr'!BF27,'RE Appr'!$E$13:$J$59,6,FALSE)/100))","v":{"v":441107.871321013,"d":"441,108"}},{"$f":"($A20-$A19)/365.25*$D$1*(1+$D$2+(VLOOKUP('RE Appr'!BG27,'RE Appr'!$E$13:$J$59,6,FALSE)/100))","v":{"v":419542.64202600956,"d":"419,543"}},{"$f":"($A20-$A19)/365.25*$D$1*(1+$D$2+(VLOOKUP('RE Appr'!BH27,'RE Appr'!$E$13:$J$59,6,FALSE)/100))","v":{"v":419542.64202600956,"d":"419,543"}},{"$f":"($A20-$A19)/365.25*$D$1*(1+$D$2+(VLOOKUP('RE Appr'!BI27,'RE Appr'!$E$13:$J$59,6,FALSE)/100))","v":{"v":383827.10472279263,"d":"383,827"}},{"$f":"($A20-$A19)/365.25*$D$1*(1+$D$2+(VLOOKUP('RE Appr'!BJ27,'RE Appr'!$E$13:$J$59,6,FALSE)/100))","v":{"v":421665.9736136933,"d":"421,666"}},{"$f":"($A20-$A19)/365.25*$D$1*(1+$D$2+(VLOOKUP('RE Appr'!BK27,'RE Appr'!$E$13:$J$59,6,FALSE)/100))","v":{"v":375602.7378507871,"d":"375,603"}},{"$f":"($A20-$A19)/365.25*$D$1*(1+$D$2+(VLOOKUP('RE Appr'!BL27,'RE Appr'!$E$13:$J$59,6,FALSE)/100))","v":{"v":415285.5578370979,"d":"415,286"}},{"$f":"($A20-$A19)/365.25*$D$1*(1+$D$2+(VLOOKUP('RE Appr'!BM27,'RE Appr'!$E$13:$J$59,6,FALSE)/100))","v":{"v":451019.08281998633,"d":"451,019"}},{"$f":"($A20-$A19)/365.25*$D$1*(1+$D$2+(VLOOKUP('RE Appr'!BN27,'RE Appr'!$E$13:$J$59,6,FALSE)/100))","v":{"v":434212.5941136209,"d":"434,213"}},{"$f":"($A20-$A19)/365.25*$D$1*(1+$D$2+(VLOOKUP('RE Appr'!BO27,'RE Appr'!$E$13:$J$59,6,FALSE)/100))","v":{"v":417653.93566050654,"d":"417,654"}},{"$f":"($A20-$A19)/365.25*$D$1*(1+$D$2+(VLOOKUP('RE Appr'!BP27,'RE Appr'!$E$13:$J$59,6,FALSE)/100))","v":{"v":440668.1724845996,"d":"440,668"}},{"$f":"($A20-$A19)/365.25*$D$1*(1+$D$2+(VLOOKUP('RE Appr'!BQ27,'RE Appr'!$E$13:$J$59,6,FALSE)/100))","v":{"v":417653.93566050654,"d":"417,654"}},{"$f":"($A20-$A19)/365.25*$D$1*(1+$D$2+(VLOOKUP('RE Appr'!BR27,'RE Appr'!$E$13:$J$59,6,FALSE)/100))","v":{"v":412517.453798768,"d":"412,517"}},{"$f":"($A20-$A19)/365.25*$D$1*(1+$D$2+(VLOOKUP('RE Appr'!BS27,'RE Appr'!$E$13:$J$59,6,FALSE)/100))","v":{"v":470497.7412731006,"d":"470,498"}},{"$f":"($A20-$A19)/365.25*$D$1*(1+$D$2+(VLOOKUP('RE Appr'!BT27,'RE Appr'!$E$13:$J$59,6,FALSE)/100))","v":{"v":436840.79397672834,"d":"436,841"}},{"$f":"($A20-$A19)/365.25*$D$1*(1+$D$2+(VLOOKUP('RE Appr'!BU27,'RE Appr'!$E$13:$J$59,6,FALSE)/100))","v":{"v":386675.1540041068,"d":"386,675"}},{"$f":"($A20-$A19)/365.25*$D$1*(1+$D$2+(VLOOKUP('RE Appr'!BV27,'RE Appr'!$E$13:$J$59,6,FALSE)/100))","v":{"v":414845.85900068446,"d":"414,846"}},{"$f":"($A20-$A19)/365.25*$D$1*(1+$D$2+(VLOOKUP('RE Appr'!BW27,'RE Appr'!$E$13:$J$59,6,FALSE)/100))","v":{"v":371325.66735112935,"d":"371,326"}},{"$f":"($A20-$A19)/365.25*$D$1*(1+$D$2+(VLOOKUP('RE Appr'!BX27,'RE Appr'!$E$13:$J$59,6,FALSE)/100))","v":{"v":417916.4969295789,"d":"417,916"}},{"$f":"($A20-$A19)/365.25*$D$1*(1+$D$2+(VLOOKUP('RE Appr'!BY27,'RE Appr'!$E$13:$J$59,6,FALSE)/100))","v":{"v":371325.66735112935,"d":"371,326"}},{"$f":"($A20-$A19)/365.25*$D$1*(1+$D$2+(VLOOKUP('RE Appr'!BZ27,'RE Appr'!$E$13:$J$59,6,FALSE)/100))","v":{"v":418833.85952220886,"d":"418,834"}},{"$f":"($A20-$A19)/365.25*$D$1*(1+$D$2+(VLOOKUP('RE Appr'!CA27,'RE Appr'!$E$13:$J$59,6,FALSE)/100))","v":{"v":423729.77412731,"d":"423,730"}},{"$f":"($A20-$A19)/365.25*$D$1*(1+$D$2+(VLOOKUP('RE Appr'!CB27,'RE Appr'!$E$13:$J$59,6,FALSE)/100))","v":{"v":434212.5941136209,"d":"434,213"}},{"$f":"($A20-$A19)/365.25*$D$1*(1+$D$2+(VLOOKUP('RE Appr'!CC27,'RE Appr'!$E$13:$J$59,6,FALSE)/100))","v":{"v":412977.13894592744,"d":"412,977"}},{"$f":"($A20-$A19)/365.25*$D$1*(1+$D$2+(VLOOKUP('RE Appr'!CD27,'RE Appr'!$E$13:$J$59,6,FALSE)/100))","v":{"v":371325.66735112935,"d":"371,326"}},{"$f":"($A20-$A19)/365.25*$D$1*(1+$D$2+(VLOOKUP('RE Appr'!CE27,'RE Appr'!$E$13:$J$59,6,FALSE)/100))","v":{"v":435181.93018480495,"d":"435,182"}},{"$f":"($A20-$A19)/365.25*$D$1*(1+$D$2+(VLOOKUP('RE Appr'!CF27,'RE Appr'!$E$13:$J$59,6,FALSE)/100))","v":{"v":451019.08281998633,"d":"451,019"}},{"$f":"($A20-$A19)/365.25*$D$1*(1+$D$2+(VLOOKUP('RE Appr'!CG27,'RE Appr'!$E$13:$J$59,6,FALSE)/100))","v":{"v":436840.79397672834,"d":"436,841"}},{"$f":"($A20-$A19)/365.25*$D$1*(1+$D$2+(VLOOKUP('RE Appr'!CH27,'RE Appr'!$E$13:$J$59,6,FALSE)/100))","v":{"v":426041.984729592,"d":"426,042"}},{"$f":"($A20-$A19)/365.25*$D$1*(1+$D$2+(VLOOKUP('RE Appr'!CI27,'RE Appr'!$E$13:$J$59,6,FALSE)/100))","v":{"v":371325.66735112935,"d":"371,326"}},{"$f":"($A20-$A19)/365.25*$D$1*(1+$D$2+(VLOOKUP('RE Appr'!CJ27,'RE Appr'!$E$13:$J$59,6,FALSE)/100))","v":{"v":419342.77891854895,"d":"419,343"}},{"$f":"($A20-$A19)/365.25*$D$1*(1+$D$2+(VLOOKUP('RE Appr'!CK27,'RE Appr'!$E$13:$J$59,6,FALSE)/100))","v":{"v":435771.5263518138,"d":"435,772"}},{"$f":"($A20-$A19)/365.25*$D$1*(1+$D$2+(VLOOKUP('RE Appr'!CL27,'RE Appr'!$E$13:$J$59,6,FALSE)/100))","v":{"v":434212.5941136209,"d":"434,213"}},{"$f":"($A20-$A19)/365.25*$D$1*(1+$D$2+(VLOOKUP('RE Appr'!CM27,'RE Appr'!$E$13:$J$59,6,FALSE)/100))","v":{"v":437040.65708418895,"d":"437,041"}},{"$f":"($A20-$A19)/365.25*$D$1*(1+$D$2+(VLOOKUP('RE Appr'!CN27,'RE Appr'!$E$13:$J$59,6,FALSE)/100))","v":{"v":440668.1724845996,"d":"440,668"}},{"$f":"($A20-$A19)/365.25*$D$1*(1+$D$2+(VLOOKUP('RE Appr'!CO27,'RE Appr'!$E$13:$J$59,6,FALSE)/100))","v":{"v":451019.08281998633,"d":"451,019"}},{"$f":"($A20-$A19)/365.25*$D$1*(1+$D$2+(VLOOKUP('RE Appr'!CP27,'RE Appr'!$E$13:$J$59,6,FALSE)/100))","v":{"v":434212.5941136209,"d":"434,213"}},{"$f":"($A20-$A19)/365.25*$D$1*(1+$D$2+(VLOOKUP('RE Appr'!CQ27,'RE Appr'!$E$13:$J$59,6,FALSE)/100))","v":{"v":437040.65708418895,"d":"437,041"}},{"$f":"($A20-$A19)/365.25*$D$1*(1+$D$2+(VLOOKUP('RE Appr'!CR27,'RE Appr'!$E$13:$J$59,6,FALSE)/100))","v":{"v":375602.7378507871,"d":"375,603"}},{"$f":"($A20-$A19)/365.25*$D$1*(1+$D$2+(VLOOKUP('RE Appr'!CS27,'RE Appr'!$E$13:$J$59,6,FALSE)/100))","v":{"v":383827.10472279263,"d":"383,827"}},{"$f":"($A20-$A19)/365.25*$D$1*(1+$D$2+(VLOOKUP('RE Appr'!CT27,'RE Appr'!$E$13:$J$59,6,FALSE)/100))","v":{"v":412277.6180698152,"d":"412,278"}},{"$f":"($A20-$A19)/365.25*$D$1*(1+$D$2+(VLOOKUP('RE Appr'!CU27,'RE Appr'!$E$13:$J$59,6,FALSE)/100))","v":{"v":407091.1704312115,"d":"407,091"}},{"$f":"($A20-$A19)/365.25*$D$1*(1+$D$2+(VLOOKUP('RE Appr'!CV27,'RE Appr'!$E$13:$J$59,6,FALSE)/100))","v":{"v":441527.5838466804,"d":"441,528"}},{"$f":"($A20-$A19)/365.25*$D$1*(1+$D$2+(VLOOKUP('RE Appr'!CW27,'RE Appr'!$E$13:$J$59,6,FALSE)/100))","v":{"v":441107.871321013,"d":"441,108"}},{"$f":"($A20-$A19)/365.25*$D$1*(1+$D$2+(VLOOKUP('RE Appr'!CX27,'RE Appr'!$E$13:$J$59,6,FALSE)/100))","v":{"v":415847.54106599226,"d":"415,848"}},{"$f":"($A20-$A19)/365.25*$D$1*(1+$D$2+(VLOOKUP('RE Appr'!CY27,'RE Appr'!$E$13:$J$59,6,FALSE)/100))","v":{"v":434212.5941136209,"d":"434,213"}},{"$f":"($A20-$A19)/365.25*$D$1*(1+$D$2+(VLOOKUP('RE Appr'!CZ27,'RE Appr'!$E$13:$J$59,6,FALSE)/100))","v":{"v":415045.72210814507,"d":"415,046"}},{"$f":"($A20-$A19)/365.25*$D$1*(1+$D$2+(VLOOKUP('RE Appr'!DA27,'RE Appr'!$E$13:$J$59,6,FALSE)/100))","v":{"v":415045.72210814507,"d":"415,046"}},{"$f":"($A20-$A19)/365.25*$D$1*(1+$D$2+(VLOOKUP('RE Appr'!DB27,'RE Appr'!$E$13:$J$59,6,FALSE)/100))","v":{"v":383827.10472279263,"d":"383,827"}},{"$f":"($A20-$A19)/365.25*$D$1*(1+$D$2+(VLOOKUP('RE Appr'!DC27,'RE Appr'!$E$13:$J$59,6,FALSE)/100))","v":{"v":419632.5804243669,"d":"419,633"}},{"$f":"($A20-$A19)/365.25*$D$1*(1+$D$2+(VLOOKUP('RE Appr'!DD27,'RE Appr'!$E$13:$J$59,6,FALSE)/100))","v":{"v":419289.85199380416,"d":"419,290"}},{"$f":"($A20-$A19)/365.25*$D$1*(1+$D$2+(VLOOKUP('RE Appr'!DE27,'RE Appr'!$E$13:$J$59,6,FALSE)/100))","v":{"v":415285.5578370979,"d":"415,286"}},{"$f":"($A20-$A19)/365.25*$D$1*(1+$D$2+(VLOOKUP('RE Appr'!DF27,'RE Appr'!$E$13:$J$59,6,FALSE)/100))","v":{"v":415045.72210814507,"d":"415,046"}},{"$f":"($A20-$A19)/365.25*$D$1*(1+$D$2+(VLOOKUP('RE Appr'!DG27,'RE Appr'!$E$13:$J$59,6,FALSE)/100))","v":{"v":418173.57973990415,"d":"418,174"}}]
[{"$f":"Main!A23","v":"2038-12-30"},16,{"$nulls":3},{"$f":"($A21-$A20)/365.25*$D$1*(1+$D$2+(VLOOKUP('RE Appr'!L28,'RE Appr'!$E$13:$J$59,6,FALSE)/100))","v":{"v":407091.1704312115,"d":"407,091"}},{"$f":"($A21-$A20)/365.25*$D$1*(1+$D$2+(VLOOKUP('RE Appr'!M28,'RE Appr'!$E$13:$J$59,6,FALSE)/100))","v":{"v":383827.10472279263,"d":"383,827"}},{"$f":"($A21-$A20)/365.25*$D$1*(1+$D$2+(VLOOKUP('RE Appr'!N28,'RE Appr'!$E$13:$J$59,6,FALSE)/100))","v":{"v":412277.6180698152,"d":"412,278"}},{"$f":"($A21-$A20)/365.25*$D$1*(1+$D$2+(VLOOKUP('RE Appr'!O28,'RE Appr'!$E$13:$J$59,6,FALSE)/100))","v":{"v":415847.54106599226,"d":"415,848"}},{"$f":"($A21-$A20)/365.25*$D$1*(1+$D$2+(VLOOKUP('RE Appr'!P28,'RE Appr'!$E$13:$J$59,6,FALSE)/100))","v":{"v":423749.76043805614,"d":"423,750"}},{"$f":"($A21-$A20)/365.25*$D$1*(1+$D$2+(VLOOKUP('RE Appr'!Q28,'RE Appr'!$E$13:$J$59,6,FALSE)/100))","v":{"v":415285.5578370979,"d":"415,286"}},{"$f":"($A21-$A20)/365.25*$D$1*(1+$D$2+(VLOOKUP('RE Appr'!R28,'RE Appr'!$E$13:$J$59,6,FALSE)/100))","v":{"v":429315.94798083504,"d":"429,316"}},{"$f":"($A21-$A20)/365.25*$D$1*(1+$D$2+(VLOOKUP('RE Appr'!S28,'RE Appr'!$E$13:$J$59,6,FALSE)/100))","v":{"v":423729.77412731,"d":"423,730"}},{"$f":"($A21-$A20)/365.25*$D$1*(1+$D$2+(VLOOKUP('RE Appr'!T28,'RE Appr'!$E$13:$J$59,6,FALSE)/100))","v":{"v":399326.4887063655,"d":"399,326"}},{"$f":"($A21-$A20)/365.25*$D$1*(1+$D$2+(VLOOKUP('RE Appr'!U28,'RE Appr'!$E$13:$J$59,6,FALSE)/100))","v":{"v":412977.13894592744,"d":"412,977"}},{"$f":"($A21-$A20)/365.25*$D$1*(1+$D$2+(VLOOKUP('RE Appr'!V28,'RE Appr'!$E$13:$J$59,6,FALSE)/100))","v":{"v":417653.93566050654,"d":"417,654"}},{"$f":"($A21-$A20)/365.25*$D$1*(1+$D$2+(VLOOKUP('RE Appr'!W28,'RE Appr'!$E$13:$J$59,6,FALSE)/100))","v":{"v":412517.453798768,"d":"412,517"}},{"$f":"($A21-$A20)/365.25*$D$1*(1+$D$2+(VLOOKUP('RE Appr'!X28,'RE Appr'!$E$13:$J$59,6,FALSE)/100))","v":{"v":435771.5263518138,"d":"435,772"}},{"$f":"($A21-$A20)/365.25*$D$1*(1+$D$2+(VLOOKUP('RE Appr'!Y28,'RE Appr'!$E$13:$J$59,6,FALSE)/100))","v":{"v":451019.08281998633,"d":"451,019"}},{"$f":"($A21-$A20)/365.25*$D$1*(1+$D$2+(VLOOKUP('RE Appr'!Z28,'RE Appr'!$E$13:$J$59,6,FALSE)/100))","v":{"v":423729.77412731,"d":"423,730"}},{"$f":"($A21-$A20)/365.25*$D$1*(1+$D$2+(VLOOKUP('RE Appr'!AA28,'RE Appr'!$E$13:$J$59,6,FALSE)/100))","v":{"v":420192.19712525664,"d":"420,192"}},{"$f":"($A21-$A20)/365.25*$D$1*(1+$D$2+(VLOOKUP('RE Appr'!AB28,'RE Appr'!$E$13:$J$59,6,FALSE)/100))","v":{"v":423749.76043805614,"d":"423,750"}},{"$f":"($A21-$A20)/365.25*$D$1*(1+$D$2+(VLOOKUP('RE Appr'!AC28,'RE Appr'!$E$13:$J$59,6,FALSE)/100))","v":{"v":451019.08281998633,"d":"451,019"}},{"$f":"($A21-$A20)/365.25*$D$1*(1+$D$2+(VLOOKUP('RE Appr'!AD28,'RE Appr'!$E$13:$J$59,6,FALSE)/100))","v":{"v":401385.0787132102,"d":"401,385"}},{"$f":"($A21-$A20)/365.25*$D$1*(1+$D$2+(VLOOKUP('RE Appr'!AE28,'RE Appr'!$E$13:$J$59,6,FALSE)/100))","v":{"v":419342.77891854895,"d":"419,343"}},{"$f":"($A21-$A20)/365.25*$D$1*(1+$D$2+(VLOOKUP('RE Appr'!AF28,'RE Appr'!$E$13:$J$59,6,FALSE)/100))","v":{"v":383827.10472279263,"d":"383,827"}},{"$f":"($A21-$A20)/365.25*$D$1*(1+$D$2+(VLOOKUP('RE Appr'!AG28,'RE Appr'!$E$13:$J$59,6,FALSE)/100))","v":{"v":423729.77412731,"d":"423,730"}},{"$f":"($A21-$A20)/365.25*$D$1*(1+$D$2+(VLOOKUP('RE Appr'!AH28,'RE Appr'!$E$13:$J$59,6,FALSE)/100))","v":{"v":412277.6180698152,"d":"412,278"}},{"$f":"($A21-$A20)/365.25*$D$1*(1+$D$2+(VLOOKUP('RE Appr'!AI28,'RE Appr'!$E$13:$J$59,6,FALSE)/100))","v":{"v":441107.871321013,"d":"441,108"}},{"$f":"($A21-$A20)/365.25*$D$1*(1+$D$2+(VLOOKUP('RE Appr'!AJ28,'RE Appr'!$E$13:$J$59,6,FALSE)/100))","v":{"v":401385.0787132102,"d":"401,385"}},{"$f":"($A21-$A20)/365.25*$D$1*(1+$D$2+(VLOOKUP('RE Appr'!AK28,'RE Appr'!$E$13:$J$59,6,FALSE)/100))","v":{"v":416234.9075975359,"d":"416,235"}},{"$f":"($A21-$A20)/365.25*$D$1*(1+$D$2+(VLOOKUP('RE Appr'!AL28,'RE Appr'!$E$13:$J$59,6,FALSE)/100))","v":{"v":412277.6180698152,"d":"412,278"}},{"$f":"($A21-$A20)/365.25*$D$1*(1+$D$2+(VLOOKUP('RE Appr'!AM28,'RE Appr'!$E$13:$J$59,6,FALSE)/100))","v":{"v":431774.264202601,"d":"431,774"}},{"$f":"($A21-$A20)/365.25*$D$1*(1+$D$2+(VLOOKUP('RE Appr'!AN28,'RE Appr'!$E$13:$J$59,6,FALSE)/100))","v":{"v":451019.08281998633,"d":"451,019"}},{"$f":"($A21-$A20)/365.25*$D$1*(1+$D$2+(VLOOKUP('RE Appr'!AO28,'RE Appr'!$E$13:$J$59,6,FALSE)/100))","v":{"v":419542.64202600956,"d":"419,543"}},{"$f":"($A21-$A20)/365.25*$D$1*(1+$D$2+(VLOOKUP('RE Appr'!AP28,'RE Appr'!$E$13:$J$59,6,FALSE)/100))","v":{"v":426041.984729592,"d":"426,042"}},{"$f":"($A21-$A20)/365.25*$D$1*(1+$D$2+(VLOOKUP('RE Appr'!AQ28,'RE Appr'!$E$13:$J$59,6,FALSE)/100))","v":{"v":383827.10472279263,"d":"383,827"}},{"$f":"($A21-$A20)/365.25*$D$1*(1+$D$2+(VLOOKUP('RE Appr'!AR28,'RE Appr'!$E$13:$J$59,6,FALSE)/100))","v":{"v":440668.1724845996,"d":"440,668"}},{"$f":"($A21-$A20)/365.25*$D$1*(1+$D$2+(VLOOKUP('RE Appr'!AS28,'RE Appr'!$E$13:$J$59,6,FALSE)/100))","v":{"v":419542.64202600956,"d":"419,543"}},{"$f":"($A21-$A20)/365.25*$D$1*(1+$D$2+(VLOOKUP('RE Appr'!AT28,'RE Appr'!$E$13:$J$59,6,FALSE)/100))","v":{"v":399326.4887063655,"d":"399,326"}},{"$f":"($A21-$A20)/365.25*$D$1*(1+$D$2+(VLOOKUP('RE Appr'!AU28,'RE Appr'!$E$13:$J$59,6,FALSE)/100))","v":{"v":414845.85900068446,"d":"414,846"}},{"$f":"($A21-$A20)/365.25*$D$1*(1+$D$2+(VLOOKUP('RE Appr'!AV28,'RE Appr'!$E$13:$J$59,6,FALSE)/100))","v":{"v":412517.453798768,"d":"412,517"}},{"$f":"($A21-$A20)/365.25*$D$1*(1+$D$2+(VLOOKUP('RE Appr'!AW28,'RE Appr'!$E$13:$J$59,6,FALSE)/100))","v":{"v":414845.85900068446,"d":"414,846"}},{"$f":"($A21-$A20)/365.25*$D$1*(1+$D$2+(VLOOKUP('RE Appr'!AX28,'RE Appr'!$E$13:$J$59,6,FALSE)/100))","v":{"v":411048.45995893225,"d":"411,048"}},{"$f":"($A21-$A20)/365.25*$D$1*(1+$D$2+(VLOOKUP('RE Appr'!AY28,'RE Appr'!$E$13:$J$59,6,FALSE)/100))","v":{"v":435181.93018480495,"d":"435,182"}},{"$f":"($A21-$A20)/365.25*$D$1*(1+$D$2+(VLOOKUP('RE Appr'!AZ28,'RE Appr'!$E$13:$J$59,6,FALSE)/100))","v":{"v":412977.13894592744,"d":"412,977"}},{"$f":"($A21-$A20)/365.25*$D$1*(1+$D$2+(VLOOKUP('RE Appr'!BA28,'RE Appr'!$E$13:$J$59,6,FALSE)/100))","v":{"v":455687.8850102669,"d":"455,688"}},{"$f":"($A21-$A20)/365.25*$D$1*(1+$D$2+(VLOOKUP('RE Appr'!BB28,'RE Appr'!$E$13:$J$59,6,FALSE)/100))","v":{"v":401385.0787132102,"d":"401,385"}},{"$f":"($A21-$A20)/365.25*$D$1*(1+$D$2+(VLOOKUP('RE Appr'!BC28,'RE Appr'!$E$13:$J$59,6,FALSE)/100))","v":{"v":401385.0787132102,"d":"401,385"}},{"$f":"($A21-$A20)/365.25*$D$1*(1+$D$2+(VLOOKUP('RE Appr'!BD28,'RE Appr'!$E$13:$J$59,6,FALSE)/100))","v":{"v":412277.6180698152,"d":"412,278"}},{"$f":"($A21-$A20)/365.25*$D$1*(1+$D$2+(VLOOKUP('RE Appr'!BE28,'RE Appr'!$E$13:$J$59,6,FALSE)/100))","v":{"v":412277.6180698152,"d":"412,278"}},{"$f":"($A21-$A20)/365.25*$D$1*(1+$D$2+(VLOOKUP('RE Appr'!BF28,'RE Appr'!$E$13:$J$59,6,FALSE)/100))","v":{"v":417653.93566050654,"d":"417,654"}},{"$f":"($A21-$A20)/365.25*$D$1*(1+$D$2+(VLOOKUP('RE Appr'!BG28,'RE Appr'!$E$13:$J$59,6,FALSE)/100))","v":{"v":411048.45995893225,"d":"411,048"}},{"$f":"($A21-$A20)/365.25*$D$1*(1+$D$2+(VLOOKUP('RE Appr'!BH28,'RE Appr'!$E$13:$J$59,6,FALSE)/100))","v":{"v":415847.54106599226,"d":"415,848"}},{"$f":"($A21-$A20)/365.25*$D$1*(1+$D$2+(VLOOKUP('RE Appr'!BI28,'RE Appr'!$E$13:$J$59,6,FALSE)/100))","v":{"v":419342.77891854895,"d":"419,343"}},{"$f":"($A21-$A20)/365.25*$D$1*(1+$D$2+(VLOOKUP('RE Appr'!BJ28,'RE Appr'!$E$13:$J$59,6,FALSE)/100))","v":{"v":435181.93018480495,"d":"435,182"}},{"$f":"($A21-$A20)/365.25*$D$1*(1+$D$2+(VLOOKUP('RE Appr'!BK28,'RE Appr'!$E$13:$J$59,6,FALSE)/100))","v":{"v":455687.8850102669,"d":"455,688"}},{"$f":"($A21-$A20)/365.25*$D$1*(1+$D$2+(VLOOKUP('RE Appr'!BL28,'RE Appr'!$E$13:$J$59,6,FALSE)/100))","v":{"v":409269.6783025325,"d":"409,270"}},{"$f":"($A21-$A20)/365.25*$D$1*(1+$D$2+(VLOOKUP('RE Appr'!BM28,'RE Appr'!$E$13:$J$59,6,FALSE)/100))","v":{"v":419289.85199380416,"d":"419,290"}},{"$f":"($A21-$A20)/365.25*$D$1*(1+$D$2+(VLOOKUP('RE Appr'!BN28,'RE Appr'!$E$13:$J$59,6,FALSE)/100))","v":{"v":440668.1724845996,"d":"440,668"}},{"$f":"($A21-$A20)/365.25*$D$1*(1+$D$2+(VLOOKUP('RE Appr'!BO28,'RE Appr'!$E$13:$J$59,6,FALSE)/100))","v":{"v":401385.0787132102,"d":"401,385"}},{"$f":"($A21-$A20)/365.25*$D$1*(1+$D$2+(VLOOKUP('RE Appr'!BP28,'RE Appr'!$E$13:$J$59,6,FALSE)/100))","v":{"v":419632.5804243669,"d":"419,633"}},{"$f":"($A21-$A20)/365.25*$D$1*(1+$D$2+(VLOOKUP('RE Appr'!BQ28,'RE Appr'!$E$13:$J$59,6,FALSE)/100))","v":{"v":417653.93566050654,"d":"417,654"}},{"$f":"($A21-$A20)/365.25*$D$1*(1+$D$2+(VLOOKUP('RE Appr'!BR28,'RE Appr'!$E$13:$J$59,6,FALSE)/100))","v":{"v":419289.85199380416,"d":"419,290"}},{"$f":"($A21-$A20)/365.25*$D$1*(1+$D$2+(VLOOKUP('RE Appr'!BS28,'RE Appr'!$E$13:$J$59,6,FALSE)/100))","v":{"v":399326.4887063655,"d":"399,326"}},{"$f":"($A21-$A20)/365.25*$D$1*(1+$D$2+(VLOOKUP('RE Appr'!BT28,'RE Appr'!$E$13:$J$59,6,FALSE)/100))","v":{"v":375602.7378507871,"d":"375,603"}},{"$f":"($A21-$A20)/365.25*$D$1*(1+$D$2+(VLOOKUP('RE Appr'!BU28,'RE Appr'!$E$13:$J$59,6,FALSE)/100))","v":{"v":441107.871321013,"d":"441,108"}},{"$f":"($A21-$A20)/365.25*$D$1*(1+$D$2+(VLOOKUP('RE Appr'!BV28,'RE Appr'!$E$13:$J$59,6,FALSE)/100))","v":{"v":415285.5578370979,"d":"415,286"}},{"$f":"($A21-$A20)/365.25*$D$1*(1+$D$2+(VLOOKUP('RE Appr'!BW28,'RE Appr'!$E$13:$J$59,6,FALSE)/100))","v":{"v":417916.4969295789,"d":"417,916"}},{"$f":"($A21-$A20)/365.25*$D$1*(1+$D$2+(VLOOKUP('RE Appr'!BX28,'RE Appr'!$E$13:$J$59,6,FALSE)/100))","v":{"v":437040.65708418895,"d":"437,041"}},{"$f":"($A21-$A20)/365.25*$D$1*(1+$D$2+(VLOOKUP('RE Appr'!BY28,'RE Appr'!$E$13:$J$59,6,FALSE)/100))","v":{"v":415285.5578370979,"d":"415,286"}},{"$f":"($A21-$A20)/365.25*$D$1*(1+$D$2+(VLOOKUP('RE Appr'!BZ28,'RE Appr'!$E$13:$J$59,6,FALSE)/100))","v":{"v":421665.9736136933,"d":"421,666"}},{"$f":"($A21-$A20)/365.25*$D$1*(1+$D$2+(VLOOKUP('RE Appr'!CA28,'RE Appr'!$E$13:$J$59,6,FALSE)/100))","v":{"v":441527.5838466804,"d":"441,528"}},{"$f":"($A21-$A20)/365.25*$D$1*(1+$D$2+(VLOOKUP('RE Appr'!CB28,'RE Appr'!$E$13:$J$59,6,FALSE)/100))","v":{"v":431774.264202601,"d":"431,774"}},{"$f":"($A21-$A20)/365.25*$D$1*(1+$D$2+(VLOOKUP('RE Appr'!CC28,'RE Appr'!$E$13:$J$59,6,FALSE)/100))","v":{"v":419289.85199380416,"d":"419,290"}},{"$f":"($A21-$A20)/365.25*$D$1*(1+$D$2+(VLOOKUP('RE Appr'!CD28,'RE Appr'!$E$13:$J$59,6,FALSE)/100))","v":{"v":419542.64202600956,"d":"419,543"}},{"$f":"($A21-$A20)/365.25*$D$1*(1+$D$2+(VLOOKUP('RE Appr'!CE28,'RE Appr'!$E$13:$J$59,6,FALSE)/100))","v":{"v":419342.77891854895,"d":"419,343"}},{"$f":"($A21-$A20)/365.25*$D$1*(1+$D$2+(VLOOKUP('RE Appr'!CF28,'RE Appr'!$E$13:$J$59,6,FALSE)/100))","v":{"v":419342.77891854895,"d":"419,343"}},{"$f":"($A21-$A20)/365.25*$D$1*(1+$D$2+(VLOOKUP('RE Appr'!CG28,'RE Appr'!$E$13:$J$59,6,FALSE)/100))","v":{"v":417653.93566050654,"d":"417,654"}},{"$f":"($A21-$A20)/365.25*$D$1*(1+$D$2+(VLOOKUP('RE Appr'!CH28,'RE Appr'!$E$13:$J$59,6,FALSE)/100))","v":{"v":375602.7378507871,"d":"375,603"}},{"$f":"($A21-$A20)/365.25*$D$1*(1+$D$2+(VLOOKUP('RE Appr'!CI28,'RE Appr'!$E$13:$J$59,6,FALSE)/100))","v":{"v":375602.7378507871,"d":"375,603"}},{"$f":"($A21-$A20)/365.25*$D$1*(1+$D$2+(VLOOKUP('RE Appr'!CJ28,'RE Appr'!$E$13:$J$59,6,FALSE)/100))","v":{"v":412277.6180698152,"d":"412,278"}},{"$f":"($A21-$A20)/365.25*$D$1*(1+$D$2+(VLOOKUP('RE Appr'!CK28,'RE Appr'!$E$13:$J$59,6,FALSE)/100))","v":{"v":441527.5838466804,"d":"441,528"}},{"$f":"($A21-$A20)/365.25*$D$1*(1+$D$2+(VLOOKUP('RE Appr'!CL28,'RE Appr'!$E$13:$J$59,6,FALSE)/100))","v":{"v":417916.4969295789,"d":"417,916"}},{"$f":"($A21-$A20)/365.25*$D$1*(1+$D$2+(VLOOKUP('RE Appr'!CM28,'RE Appr'!$E$13:$J$59,6,FALSE)/100))","v":{"v":434212.5941136209,"d":"434,213"}},{"$f":"($A21-$A20)/365.25*$D$1*(1+$D$2+(VLOOKUP('RE Appr'!CN28,'RE Appr'!$E$13:$J$59,6,FALSE)/100))","v":{"v":399326.4887063655,"d":"399,326"}},{"$f":"($A21-$A20)/365.25*$D$1*(1+$D$2+(VLOOKUP('RE Appr'!CO28,'RE Appr'!$E$13:$J$59,6,FALSE)/100))","v":{"v":437040.65708418895,"d":"437,041"}},{"$f":"($A21-$A20)/365.25*$D$1*(1+$D$2+(VLOOKUP('RE Appr'!CP28,'RE Appr'!$E$13:$J$59,6,FALSE)/100))","v":{"v":412277.6180698152,"d":"412,278"}},{"$f":"($A21-$A20)/365.25*$D$1*(1+$D$2+(VLOOKUP('RE Appr'!CQ28,'RE Appr'!$E$13:$J$59,6,FALSE)/100))","v":{"v":386675.1540041068,"d":"386,675"}},{"$f":"($A21-$A20)/365.25*$D$1*(1+$D$2+(VLOOKUP('RE Appr'!CR28,'RE Appr'!$E$13:$J$59,6,FALSE)/100))","v":{"v":418833.85952220886,"d":"418,834"}},{"$f":"($A21-$A20)/365.25*$D$1*(1+$D$2+(VLOOKUP('RE Appr'!CS28,'RE Appr'!$E$13:$J$59,6,FALSE)/100))","v":{"v":412637.3716632444,"d":"412,637"}},{"$f":"($A21-$A20)/365.25*$D$1*(1+$D$2+(VLOOKUP('RE Appr'!CT28,'RE Appr'!$E$13:$J$59,6,FALSE)/100))","v":{"v":423729.77412731,"d":"423,730"}},{"$f":"($A21-$A20)/365.25*$D$1*(1+$D$2+(VLOOKUP('RE Appr'!CU28,'RE Appr'!$E$13:$J$59,6,FALSE)/100))","v":{"v":441527.5838466804,"d":"441,528"}},{"$f":"($A21-$A20)/365.25*$D$1*(1+$D$2+(VLOOKUP('RE Appr'!CV28,'RE Appr'!$E$13:$J$59,6,FALSE)/100))","v":{"v":441527.5838466804,"d":"441,528"}},{"$f":"($A21-$A20)/365.25*$D$1*(1+$D$2+(VLOOKUP('RE Appr'!CW28,'RE Appr'!$E$13:$J$59,6,FALSE)/100))","v":{"v":436840.79397672834,"d":"436,841"}},{"$f":"($A21-$A20)/365.25*$D$1*(1+$D$2+(VLOOKUP('RE Appr'!CX28,'RE Appr'!$E$13:$J$59,6,FALSE)/100))","v":{"v":410728.67898699525,"d":"410,729"}},{"$f":"($A21-$A20)/365.25*$D$1*(1+$D$2+(VLOOKUP('RE Appr'!CY28,'RE Appr'!$E$13:$J$59,6,FALSE)/100))","v":{"v":417916.4969295789,"d":"417,916"}},{"$f":"($A21-$A20)/365.25*$D$1*(1+$D$2+(VLOOKUP('RE Appr'!CZ28,'RE Appr'!$E$13:$J$59,6,FALSE)/100))","v":{"v":409269.6783025325,"d":"409,270"}},{"$f":"($A21-$A20)/365.25*$D$1*(1+$D$2+(VLOOKUP('RE Appr'!DA28,'RE Appr'!$E$13:$J$59,6,FALSE)/100))","v":{"v":412517.453798768,"d":"412,517"}},{"$f":"($A21-$A20)/365.25*$D$1*(1+$D$2+(VLOOKUP('RE Appr'!DB28,'RE Appr'!$E$13:$J$59,6,FALSE)/100))","v":{"v":423729.77412731,"d":"423,730"}},{"$f":"($A21-$A20)/365.25*$D$1*(1+$D$2+(VLOOKUP('RE Appr'!DC28,'RE Appr'!$E$13:$J$59,6,FALSE)/100))","v":{"v":420192.19712525664,"d":"420,192"}},{"$f":"($A21-$A20)/365.25*$D$1*(1+$D$2+(VLOOKUP('RE Appr'!DD28,'RE Appr'!$E$13:$J$59,6,FALSE)/100))","v":{"v":417653.93566050654,"d":"417,654"}},{"$f":"($A21-$A20)/365.25*$D$1*(1+$D$2+(VLOOKUP('RE Appr'!DE28,'RE Appr'!$E$13:$J$59,6,FALSE)/100))","v":{"v":429315.94798083504,"d":"429,316"}},{"$f":"($A21-$A20)/365.25*$D$1*(1+$D$2+(VLOOKUP('RE Appr'!DF28,'RE Appr'!$E$13:$J$59,6,FALSE)/100))","v":{"v":435181.93018480495,"d":"435,182"}},{"$f":"($A21-$A20)/365.25*$D$1*(1+$D$2+(VLOOKUP('RE Appr'!DG28,'RE Appr'!$E$13:$J$59,6,FALSE)/100))","v":{"v":470497.7412731006,"d":"470,498"}}]
[{"$f":"Main!A24","v":"2039-12-31"},17,{"$nulls":3},{"$f":"($A22-$A21)/365.25*$D$1*(1+$D$2+(VLOOKUP('RE Appr'!L29,'RE Appr'!$E$13:$J$59,6,FALSE)/100))","v":{"v":413407.1457905544,"d":"413,407"}},{"$f":"($A22-$A21)/365.25*$D$1*(1+$D$2+(VLOOKUP('RE Appr'!M29,'RE Appr'!$E$13:$J$59,6,FALSE)/100))","v":{"v":402484.7638603696,"d":"402,485"}},{"$f":"($A22-$A21)/365.25*$D$1*(1+$D$2+(VLOOKUP('RE Appr'!N29,'RE Appr'!$E$13:$J$59,6,FALSE)/100))","v":{"v":436965.42094455846,"d":"436,965"}},{"$f":"($A22-$A21)/365.25*$D$1*(1+$D$2+(VLOOKUP('RE Appr'!O29,'RE Appr'!$E$13:$J$59,6,FALSE)/100))","v":{"v":427209.2230439196,"d":"427,209"}},{"$f":"($A22-$A21)/365.25*$D$1*(1+$D$2+(VLOOKUP('RE Appr'!P29,'RE Appr'!$E$13:$J$59,6,FALSE)/100))","v":{"v":415982.4229979466,"d":"415,982"}},{"$f":"($A22-$A21)/365.25*$D$1*(1+$D$2+(VLOOKUP('RE Appr'!Q29,'RE Appr'!$E$13:$J$59,6,FALSE)/100))","v":{"v":416423.3264887064,"d":"416,423"}},{"$f":"($A22-$A21)/365.25*$D$1*(1+$D$2+(VLOOKUP('RE Appr'!R29,'RE Appr'!$E$13:$J$59,6,FALSE)/100))","v":{"v":420438.5913143351,"d":"420,439"}},{"$f":"($A22-$A21)/365.25*$D$1*(1+$D$2+(VLOOKUP('RE Appr'!S29,'RE Appr'!$E$13:$J$59,6,FALSE)/100))","v":{"v":384878.68583162216,"d":"384,879"}},{"$f":"($A22-$A21)/365.25*$D$1*(1+$D$2+(VLOOKUP('RE Appr'!T29,'RE Appr'!$E$13:$J$59,6,FALSE)/100))","v":{"v":416423.3264887064,"d":"416,423"}},{"$f":"($A22-$A21)/365.25*$D$1*(1+$D$2+(VLOOKUP('RE Appr'!U29,'RE Appr'!$E$13:$J$59,6,FALSE)/100))","v":{"v":419319.26078028744,"d":"419,319"}},{"$f":"($A22-$A21)/365.25*$D$1*(1+$D$2+(VLOOKUP('RE Appr'!V29,'RE Appr'!$E$13:$J$59,6,FALSE)/100))","v":{"v":435402.2176591376,"d":"435,402"}},{"$f":"($A22-$A21)/365.25*$D$1*(1+$D$2+(VLOOKUP('RE Appr'!W29,'RE Appr'!$E$13:$J$59,6,FALSE)/100))","v":{"v":416423.3264887064,"d":"416,423"}},{"$f":"($A22-$A21)/365.25*$D$1*(1+$D$2+(VLOOKUP('RE Appr'!X29,'RE Appr'!$E$13:$J$59,6,FALSE)/100))","v":{"v":420438.5913143351,"d":"420,439"}},{"$f":"($A22-$A21)/365.25*$D$1*(1+$D$2+(VLOOKUP('RE Appr'!Y29,'RE Appr'!$E$13:$J$59,6,FALSE)/100))","v":{"v":417836.22176591377,"d":"417,836"}},{"$f":"($A22-$A21)/365.25*$D$1*(1+$D$2+(VLOOKUP('RE Appr'!Z29,'RE Appr'!$E$13:$J$59,6,FALSE)/100))","v":{"v":418798.1930184805,"d":"418,798"}},{"$f":"($A22-$A21)/365.25*$D$1*(1+$D$2+(VLOOKUP('RE Appr'!AA29,'RE Appr'!$E$13:$J$59,6,FALSE)/100))","v":{"v":471786.7761806981,"d":"471,787"}},{"$f":"($A22-$A21)/365.25*$D$1*(1+$D$2+(VLOOKUP('RE Appr'!AB29,'RE Appr'!$E$13:$J$59,6,FALSE)/100))","v":{"v":471786.7761806981,"d":"471,787"}},{"$f":"($A22-$A21)/365.25*$D$1*(1+$D$2+(VLOOKUP('RE Appr'!AC29,'RE Appr'!$E$13:$J$59,6,FALSE)/100))","v":{"v":441875.4825462012,"d":"441,875"}},{"$f":"($A22-$A21)/365.25*$D$1*(1+$D$2+(VLOOKUP('RE Appr'!AD29,'RE Appr'!$E$13:$J$59,6,FALSE)/100))","v":{"v":436965.42094455846,"d":"436,965"}},{"$f":"($A22-$A21)/365.25*$D$1*(1+$D$2+(VLOOKUP('RE Appr'!AE29,'RE Appr'!$E$13:$J$59,6,FALSE)/100))","v":{"v":416423.3264887064,"d":"416,423"}},{"$f":"($A22-$A21)/365.25*$D$1*(1+$D$2+(VLOOKUP('RE Appr'!AF29,'RE Appr'!$E$13:$J$59,6,FALSE)/100))","v":{"v":441875.4825462012,"d":"441,875"}},{"$f":"($A22-$A21)/365.25*$D$1*(1+$D$2+(VLOOKUP('RE Appr'!AG29,'RE Appr'!$E$13:$J$59,6,FALSE)/100))","v":{"v":419981.34954829706,"d":"419,981"}},{"$f":"($A22-$A21)/365.25*$D$1*(1+$D$2+(VLOOKUP('RE Appr'!AH29,'RE Appr'!$E$13:$J$59,6,FALSE)/100))","v":{"v":402484.7638603696,"d":"402,485"}},{"$f":"($A22-$A21)/365.25*$D$1*(1+$D$2+(VLOOKUP('RE Appr'!AI29,'RE Appr'!$E$13:$J$59,6,FALSE)/100))","v":{"v":419981.34954829706,"d":"419,981"}},{"$f":"($A22-$A21)/365.25*$D$1*(1+$D$2+(VLOOKUP('RE Appr'!AJ29,'RE Appr'!$E$13:$J$59,6,FALSE)/100))","v":{"v":435402.2176591376,"d":"435,402"}},{"$f":"($A22-$A21)/365.25*$D$1*(1+$D$2+(VLOOKUP('RE Appr'!AK29,'RE Appr'!$E$13:$J$59,6,FALSE)/100))","v":{"v":422821.22285647056,"d":"422,821"}},{"$f":"($A22-$A21)/365.25*$D$1*(1+$D$2+(VLOOKUP('RE Appr'!AL29,'RE Appr'!$E$13:$J$59,6,FALSE)/100))","v":{"v":436965.42094455846,"d":"436,965"}},{"$f":"($A22-$A21)/365.25*$D$1*(1+$D$2+(VLOOKUP('RE Appr'!AM29,'RE Appr'!$E$13:$J$59,6,FALSE)/100))","v":{"v":436965.42094455846,"d":"436,965"}},{"$f":"($A22-$A21)/365.25*$D$1*(1+$D$2+(VLOOKUP('RE Appr'!AN29,'RE Appr'!$E$13:$J$59,6,FALSE)/100))","v":{"v":415982.4229979466,"d":"415,982"}},{"$f":"($A22-$A21)/365.25*$D$1*(1+$D$2+(VLOOKUP('RE Appr'!AO29,'RE Appr'!$E$13:$J$59,6,FALSE)/100))","v":{"v":436965.42094455846,"d":"436,965"}},{"$f":"($A22-$A21)/365.25*$D$1*(1+$D$2+(VLOOKUP('RE Appr'!AP29,'RE Appr'!$E$13:$J$59,6,FALSE)/100))","v":{"v":414108.58316221763,"d":"414,109"}},{"$f":"($A22-$A21)/365.25*$D$1*(1+$D$2+(VLOOKUP('RE Appr'!AQ29,'RE Appr'!$E$13:$J$59,6,FALSE)/100))","v":{"v":419061.4736334955,"d":"419,061"}},{"$f":"($A22-$A21)/365.25*$D$1*(1+$D$2+(VLOOKUP('RE Appr'!AR29,'RE Appr'!$E$13:$J$59,6,FALSE)/100))","v":{"v":416182.8336755646,"d":"416,183"}},{"$f":"($A22-$A21)/365.25*$D$1*(1+$D$2+(VLOOKUP('RE Appr'!AS29,'RE Appr'!$E$13:$J$59,6,FALSE)/100))","v":{"v":376631.7864476386,"d":"376,632"}},{"$f":"($A22-$A21)/365.25*$D$1*(1+$D$2+(VLOOKUP('RE Appr'!AT29,'RE Appr'!$E$13:$J$59,6,FALSE)/100))","v":{"v":456936.3449691991,"d":"456,936"}},{"$f":"($A22-$A21)/365.25*$D$1*(1+$D$2+(VLOOKUP('RE Appr'!AU29,'RE Appr'!$E$13:$J$59,6,FALSE)/100))","v":{"v":417375.27720739215,"d":"417,375"}},{"$f":"($A22-$A21)/365.25*$D$1*(1+$D$2+(VLOOKUP('RE Appr'!AV29,'RE Appr'!$E$13:$J$59,6,FALSE)/100))","v":{"v":438238.0287474333,"d":"438,238"}},{"$f":"($A22-$A21)/365.25*$D$1*(1+$D$2+(VLOOKUP('RE Appr'!AW29,'RE Appr'!$E$13:$J$59,6,FALSE)/100))","v":{"v":412174.62012320326,"d":"412,175"}},{"$f":"($A22-$A21)/365.25*$D$1*(1+$D$2+(VLOOKUP('RE Appr'!AX29,'RE Appr'!$E$13:$J$59,6,FALSE)/100))","v":{"v":413407.1457905544,"d":"413,407"}},{"$f":"($A22-$A21)/365.25*$D$1*(1+$D$2+(VLOOKUP('RE Appr'!AY29,'RE Appr'!$E$13:$J$59,6,FALSE)/100))","v":{"v":372342.9979466119,"d":"372,343"}},{"$f":"($A22-$A21)/365.25*$D$1*(1+$D$2+(VLOOKUP('RE Appr'!AZ29,'RE Appr'!$E$13:$J$59,6,FALSE)/100))","v":{"v":413407.1457905544,"d":"413,407"}},{"$f":"($A22-$A21)/365.25*$D$1*(1+$D$2+(VLOOKUP('RE Appr'!BA29,'RE Appr'!$E$13:$J$59,6,FALSE)/100))","v":{"v":411853.9630390144,"d":"411,854"}},{"$f":"($A22-$A21)/365.25*$D$1*(1+$D$2+(VLOOKUP('RE Appr'!BB29,'RE Appr'!$E$13:$J$59,6,FALSE)/100))","v":{"v":420491.66324435314,"d":"420,492"}},{"$f":"($A22-$A21)/365.25*$D$1*(1+$D$2+(VLOOKUP('RE Appr'!BC29,'RE Appr'!$E$13:$J$59,6,FALSE)/100))","v":{"v":438037.6180698152,"d":"438,038"}},{"$f":"($A22-$A21)/365.25*$D$1*(1+$D$2+(VLOOKUP('RE Appr'!BD29,'RE Appr'!$E$13:$J$59,6,FALSE)/100))","v":{"v":436965.42094455846,"d":"436,965"}},{"$f":"($A22-$A21)/365.25*$D$1*(1+$D$2+(VLOOKUP('RE Appr'!BE29,'RE Appr'!$E$13:$J$59,6,FALSE)/100))","v":{"v":435402.2176591376,"d":"435,402"}},{"$f":"($A22-$A21)/365.25*$D$1*(1+$D$2+(VLOOKUP('RE Appr'!BF29,'RE Appr'!$E$13:$J$59,6,FALSE)/100))","v":{"v":384878.68583162216,"d":"384,879"}},{"$f":"($A22-$A21)/365.25*$D$1*(1+$D$2+(VLOOKUP('RE Appr'!BG29,'RE Appr'!$E$13:$J$59,6,FALSE)/100))","v":{"v":427209.2230439196,"d":"427,209"}},{"$f":"($A22-$A21)/365.25*$D$1*(1+$D$2+(VLOOKUP('RE Appr'!BH29,'RE Appr'!$E$13:$J$59,6,FALSE)/100))","v":{"v":384878.68583162216,"d":"384,879"}},{"$f":"($A22-$A21)/365.25*$D$1*(1+$D$2+(VLOOKUP('RE Appr'!BI29,'RE Appr'!$E$13:$J$59,6,FALSE)/100))","v":{"v":402484.7638603696,"d":"402,485"}},{"$f":"($A22-$A21)/365.25*$D$1*(1+$D$2+(VLOOKUP('RE Appr'!BJ29,'RE Appr'!$E$13:$J$59,6,FALSE)/100))","v":{"v":436374.2094455852,"d":"436,374"}},{"$f":"($A22-$A21)/365.25*$D$1*(1+$D$2+(VLOOKUP('RE Appr'!BK29,'RE Appr'!$E$13:$J$59,6,FALSE)/100))","v":{"v":420782.2587268994,"d":"420,782"}},{"$f":"($A22-$A21)/365.25*$D$1*(1+$D$2+(VLOOKUP('RE Appr'!BL29,'RE Appr'!$E$13:$J$59,6,FALSE)/100))","v":{"v":442737.24845995894,"d":"442,737"}},{"$f":"($A22-$A21)/365.25*$D$1*(1+$D$2+(VLOOKUP('RE Appr'!BM29,'RE Appr'!$E$13:$J$59,6,FALSE)/100))","v":{"v":438037.6180698152,"d":"438,038"}},{"$f":"($A22-$A21)/365.25*$D$1*(1+$D$2+(VLOOKUP('RE Appr'!BN29,'RE Appr'!$E$13:$J$59,6,FALSE)/100))","v":{"v":456936.3449691991,"d":"456,936"}},{"$f":"($A22-$A21)/365.25*$D$1*(1+$D$2+(VLOOKUP('RE Appr'!BO29,'RE Appr'!$E$13:$J$59,6,FALSE)/100))","v":{"v":420491.66324435314,"d":"420,492"}},{"$f":"($A22-$A21)/365.25*$D$1*(1+$D$2+(VLOOKUP('RE Appr'!BP29,'RE Appr'!$E$13:$J$59,6,FALSE)/100))","v":{"v":372342.9979466119,"d":"372,343"}},{"$f":"($A22-$A21)/365.25*$D$1*(1+$D$2+(VLOOKUP('RE Appr'!BQ29,'RE Appr'!$E$13:$J$59,6,FALSE)/100))","v":{"v":432957.20739219716,"d":"432,957"}},{"$f":"($A22-$A21)/365.25*$D$1*(1+$D$2+(VLOOKUP('RE Appr'!BR29,'RE Appr'!$E$13:$J$59,6,FALSE)/100))","v":{"v":410390.9650924025,"d":"410,391"}},{"$f":"($A22-$A21)/365.25*$D$1*(1+$D$2+(VLOOKUP('RE Appr'!BS29,'RE Appr'!$E$13:$J$59,6,FALSE)/100))","v":{"v":438238.0287474333,"d":"438,238"}},{"$f":"($A22-$A21)/365.25*$D$1*(1+$D$2+(VLOOKUP('RE Appr'!BT29,'RE Appr'!$E$13:$J$59,6,FALSE)/100))","v":{"v":452254.75154004106,"d":"452,255"}},{"$f":"($A22-$A21)/365.25*$D$1*(1+$D$2+(VLOOKUP('RE Appr'!BU29,'RE Appr'!$E$13:$J$59,6,FALSE)/100))","v":{"v":422821.22285647056,"d":"422,821"}},{"$f":"($A22-$A21)/365.25*$D$1*(1+$D$2+(VLOOKUP('RE Appr'!BV29,'RE Appr'!$E$13:$J$59,6,FALSE)/100))","v":{"v":410390.9650924025,"d":"410,391"}},{"$f":"($A22-$A21)/365.25*$D$1*(1+$D$2+(VLOOKUP('RE Appr'!BW29,'RE Appr'!$E$13:$J$59,6,FALSE)/100))","v":{"v":424910.71868583164,"d":"424,911"}},{"$f":"($A22-$A21)/365.25*$D$1*(1+$D$2+(VLOOKUP('RE Appr'!BX29,'RE Appr'!$E$13:$J$59,6,FALSE)/100))","v":{"v":419061.4736334955,"d":"419,061"}},{"$f":"($A22-$A21)/365.25*$D$1*(1+$D$2+(VLOOKUP('RE Appr'!BY29,'RE Appr'!$E$13:$J$59,6,FALSE)/100))","v":{"v":384878.68583162216,"d":"384,879"}},{"$f":"($A22-$A21)/365.25*$D$1*(1+$D$2+(VLOOKUP('RE Appr'!BZ29,'RE Appr'!$E$13:$J$59,6,FALSE)/100))","v":{"v":442737.24845995894,"d":"442,737"}},{"$f":"($A22-$A21)/365.25*$D$1*(1+$D$2+(VLOOKUP('RE Appr'!CA29,'RE Appr'!$E$13:$J$59,6,FALSE)/100))","v":{"v":408206.48870636546,"d":"408,206"}},{"$f":"($A22-$A21)/365.25*$D$1*(1+$D$2+(VLOOKUP('RE Appr'!CB29,'RE Appr'!$E$13:$J$59,6,FALSE)/100))","v":{"v":387734.53798767965,"d":"387,735"}},{"$f":"($A22-$A21)/365.25*$D$1*(1+$D$2+(VLOOKUP('RE Appr'!CC29,'RE Appr'!$E$13:$J$59,6,FALSE)/100))","v":{"v":419319.26078028744,"d":"419,319"}},{"$f":"($A22-$A21)/365.25*$D$1*(1+$D$2+(VLOOKUP('RE Appr'!CD29,'RE Appr'!$E$13:$J$59,6,FALSE)/100))","v":{"v":410390.9650924025,"d":"410,391"}},{"$f":"($A22-$A21)/365.25*$D$1*(1+$D$2+(VLOOKUP('RE Appr'!CE29,'RE Appr'!$E$13:$J$59,6,FALSE)/100))","v":{"v":452254.75154004106,"d":"452,255"}},{"$f":"($A22-$A21)/365.25*$D$1*(1+$D$2+(VLOOKUP('RE Appr'!CF29,'RE Appr'!$E$13:$J$59,6,FALSE)/100))","v":{"v":424890.67761806975,"d":"424,891"}},{"$f":"($A22-$A21)/365.25*$D$1*(1+$D$2+(VLOOKUP('RE Appr'!CG29,'RE Appr'!$E$13:$J$59,6,FALSE)/100))","v":{"v":423668.1724845995,"d":"423,668"}},{"$f":"($A22-$A21)/365.25*$D$1*(1+$D$2+(VLOOKUP('RE Appr'!CH29,'RE Appr'!$E$13:$J$59,6,FALSE)/100))","v":{"v":438037.6180698152,"d":"438,038"}},{"$f":"($A22-$A21)/365.25*$D$1*(1+$D$2+(VLOOKUP('RE Appr'!CI29,'RE Appr'!$E$13:$J$59,6,FALSE)/100))","v":{"v":420438.5913143351,"d":"420,439"}},{"$f":"($A22-$A21)/365.25*$D$1*(1+$D$2+(VLOOKUP('RE Appr'!CJ29,'RE Appr'!$E$13:$J$59,6,FALSE)/100))","v":{"v":452254.75154004106,"d":"452,255"}},{"$f":"($A22-$A21)/365.25*$D$1*(1+$D$2+(VLOOKUP('RE Appr'!CK29,'RE Appr'!$E$13:$J$59,6,FALSE)/100))","v":{"v":412174.62012320326,"d":"412,175"}},{"$f":"($A22-$A21)/365.25*$D$1*(1+$D$2+(VLOOKUP('RE Appr'!CL29,'RE Appr'!$E$13:$J$59,6,FALSE)/100))","v":{"v":420438.5913143351,"d":"420,439"}},{"$f":"($A22-$A21)/365.25*$D$1*(1+$D$2+(VLOOKUP('RE Appr'!CM29,'RE Appr'!$E$13:$J$59,6,FALSE)/100))","v":{"v":416986.8493976799,"d":"416,987"}},{"$f":"($A22-$A21)/365.25*$D$1*(1+$D$2+(VLOOKUP('RE Appr'!CN29,'RE Appr'!$E$13:$J$59,6,FALSE)/100))","v":{"v":442737.24845995894,"d":"442,737"}},{"$f":"($A22-$A21)/365.25*$D$1*(1+$D$2+(VLOOKUP('RE Appr'!CO29,'RE Appr'!$E$13:$J$59,6,FALSE)/100))","v":{"v":432957.20739219716,"d":"432,957"}},{"$f":"($A22-$A21)/365.25*$D$1*(1+$D$2+(VLOOKUP('RE Appr'!CP29,'RE Appr'!$E$13:$J$59,6,FALSE)/100))","v":{"v":419319.26078028744,"d":"419,319"}},{"$f":"($A22-$A21)/365.25*$D$1*(1+$D$2+(VLOOKUP('RE Appr'!CQ29,'RE Appr'!$E$13:$J$59,6,FALSE)/100))","v":{"v":416986.8493976799,"d":"416,987"}},{"$f":"($A22-$A21)/365.25*$D$1*(1+$D$2+(VLOOKUP('RE Appr'!CR29,'RE Appr'!$E$13:$J$59,6,FALSE)/100))","v":{"v":421343.40862422995,"d":"421,343"}},{"$f":"($A22-$A21)/365.25*$D$1*(1+$D$2+(VLOOKUP('RE Appr'!CS29,'RE Appr'!$E$13:$J$59,6,FALSE)/100))","v":{"v":416182.8336755646,"d":"416,183"}},{"$f":"($A22-$A21)/365.25*$D$1*(1+$D$2+(VLOOKUP('RE Appr'!CT29,'RE Appr'!$E$13:$J$59,6,FALSE)/100))","v":{"v":438238.0287474333,"d":"438,238"}},{"$f":"($A22-$A21)/365.25*$D$1*(1+$D$2+(VLOOKUP('RE Appr'!CU29,'RE Appr'!$E$13:$J$59,6,FALSE)/100))","v":{"v":430492.15605749487,"d":"430,492"}},{"$f":"($A22-$A21)/365.25*$D$1*(1+$D$2+(VLOOKUP('RE Appr'!CV29,'RE Appr'!$E$13:$J$59,6,FALSE)/100))","v":{"v":419319.26078028744,"d":"419,319"}},{"$f":"($A22-$A21)/365.25*$D$1*(1+$D$2+(VLOOKUP('RE Appr'!CW29,'RE Appr'!$E$13:$J$59,6,FALSE)/100))","v":{"v":417375.27720739215,"d":"417,375"}},{"$f":"($A22-$A21)/365.25*$D$1*(1+$D$2+(VLOOKUP('RE Appr'!CX29,'RE Appr'!$E$13:$J$59,6,FALSE)/100))","v":{"v":408206.48870636546,"d":"408,206"}},{"$f":"($A22-$A21)/365.25*$D$1*(1+$D$2+(VLOOKUP('RE Appr'!CY29,'RE Appr'!$E$13:$J$59,6,FALSE)/100))","v":{"v":456936.3449691991,"d":"456,936"}},{"$f":"($A22-$A21)/365.25*$D$1*(1+$D$2+(VLOOKUP('RE Appr'!CZ29,'RE Appr'!$E$13:$J$59,6,FALSE)/100))","v":{"v":416182.8336755646,"d":"416,183"}},{"$f":"($A22-$A21)/365.25*$D$1*(1+$D$2+(VLOOKUP('RE Appr'!DA29,'RE Appr'!$E$13:$J$59,6,FALSE)/100))","v":{"v":413407.1457905544,"d":"413,407"}},{"$f":"($A22-$A21)/365.25*$D$1*(1+$D$2+(VLOOKUP('RE Appr'!DB29,'RE Appr'!$E$13:$J$59,6,FALSE)/100))","v":{"v":424890.67761806975,"d":"424,891"}},{"$f":"($A22-$A21)/365.25*$D$1*(1+$D$2+(VLOOKUP('RE Appr'!DC29,'RE Appr'!$E$13:$J$59,6,FALSE)/100))","v":{"v":424910.71868583164,"d":"424,911"}},{"$f":"($A22-$A21)/365.25*$D$1*(1+$D$2+(VLOOKUP('RE Appr'!DD29,'RE Appr'!$E$13:$J$59,6,FALSE)/100))","v":{"v":413767.8850102669,"d":"413,768"}},{"$f":"($A22-$A21)/365.25*$D$1*(1+$D$2+(VLOOKUP('RE Appr'!DE29,'RE Appr'!$E$13:$J$59,6,FALSE)/100))","v":{"v":471786.7761806981,"d":"471,787"}},{"$f":"($A22-$A21)/365.25*$D$1*(1+$D$2+(VLOOKUP('RE Appr'!DF29,'RE Appr'!$E$13:$J$59,6,FALSE)/100))","v":{"v":372342.9979466119,"d":"372,343"}},{"$f":"($A22-$A21)/365.25*$D$1*(1+$D$2+(VLOOKUP('RE Appr'!DG29,'RE Appr'!$E$13:$J$59,6,FALSE)/100))","v":{"v":427209.2230439196,"d":"427,209"}}]
[{"$f":"Main!A25","v":"2040-12-30"},18,{"$nulls":3},{"$f":"($A23-$A22)/365.25*$D$1*(1+$D$2+(VLOOKUP('RE Appr'!L30,'RE Appr'!$E$13:$J$59,6,FALSE)/100))","v":{"v":470497.7412731006,"d":"470,498"}},{"$f":"($A23-$A22)/365.25*$D$1*(1+$D$2+(VLOOKUP('RE Appr'!M30,'RE Appr'!$E$13:$J$59,6,FALSE)/100))","v":{"v":399326.4887063655,"d":"399,326"}},{"$f":"($A23-$A22)/365.25*$D$1*(1+$D$2+(VLOOKUP('RE Appr'!N30,'RE Appr'!$E$13:$J$59,6,FALSE)/100))","v":{"v":435771.5263518138,"d":"435,772"}},{"$f":"($A23-$A22)/365.25*$D$1*(1+$D$2+(VLOOKUP('RE Appr'!O30,'RE Appr'!$E$13:$J$59,6,FALSE)/100))","v":{"v":420192.19712525664,"d":"420,192"}},{"$f":"($A23-$A22)/365.25*$D$1*(1+$D$2+(VLOOKUP('RE Appr'!P30,'RE Appr'!$E$13:$J$59,6,FALSE)/100))","v":{"v":416694.59274469543,"d":"416,695"}},{"$f":"($A23-$A22)/365.25*$D$1*(1+$D$2+(VLOOKUP('RE Appr'!Q30,'RE Appr'!$E$13:$J$59,6,FALSE)/100))","v":{"v":421665.9736136933,"d":"421,666"}},{"$f":"($A23-$A22)/365.25*$D$1*(1+$D$2+(VLOOKUP('RE Appr'!R30,'RE Appr'!$E$13:$J$59,6,FALSE)/100))","v":{"v":415045.72210814507,"d":"415,046"}},{"$f":"($A23-$A22)/365.25*$D$1*(1+$D$2+(VLOOKUP('RE Appr'!S30,'RE Appr'!$E$13:$J$59,6,FALSE)/100))","v":{"v":412977.13894592744,"d":"412,977"}},{"$f":"($A23-$A22)/365.25*$D$1*(1+$D$2+(VLOOKUP('RE Appr'!T30,'RE Appr'!$E$13:$J$59,6,FALSE)/100))","v":{"v":440668.1724845996,"d":"440,668"}},{"$f":"($A23-$A22)/365.25*$D$1*(1+$D$2+(VLOOKUP('RE Appr'!U30,'RE Appr'!$E$13:$J$59,6,FALSE)/100))","v":{"v":412517.453798768,"d":"412,517"}},{"$f":"($A23-$A22)/365.25*$D$1*(1+$D$2+(VLOOKUP('RE Appr'!V30,'RE Appr'!$E$13:$J$59,6,FALSE)/100))","v":{"v":423749.76043805614,"d":"423,750"}},{"$f":"($A23-$A22)/365.25*$D$1*(1+$D$2+(VLOOKUP('RE Appr'!W30,'RE Appr'!$E$13:$J$59,6,FALSE)/100))","v":{"v":441527.5838466804,"d":"441,528"}},{"$f":"($A23-$A22)/365.25*$D$1*(1+$D$2+(VLOOKUP('RE Appr'!X30,'RE Appr'!$E$13:$J$59,6,FALSE)/100))","v":{"v":441527.5838466804,"d":"441,528"}},{"$f":"($A23-$A22)/365.25*$D$1*(1+$D$2+(VLOOKUP('RE Appr'!Y30,'RE Appr'!$E$13:$J$59,6,FALSE)/100))","v":{"v":422510.60917180014,"d":"422,511"}},{"$f":"($A23-$A22)/365.25*$D$1*(1+$D$2+(VLOOKUP('RE Appr'!Z30,'RE Appr'!$E$13:$J$59,6,FALSE)/100))","v":{"v":421665.9736136933,"d":"421,666"}},{"$f":"($A23-$A22)/365.25*$D$1*(1+$D$2+(VLOOKUP('RE Appr'!AA30,'RE Appr'!$E$13:$J$59,6,FALSE)/100))","v":{"v":451019.08281998633,"d":"451,019"}},{"$f":"($A23-$A22)/365.25*$D$1*(1+$D$2+(VLOOKUP('RE Appr'!AB30,'RE Appr'!$E$13:$J$59,6,FALSE)/100))","v":{"v":422510.60917180014,"d":"422,511"}},{"$f":"($A23-$A22)/365.25*$D$1*(1+$D$2+(VLOOKUP('RE Appr'!AC30,'RE Appr'!$E$13:$J$59,6,FALSE)/100))","v":{"v":411048.45995893225,"d":"411,048"}},{"$f":"($A23-$A22)/365.25*$D$1*(1+$D$2+(VLOOKUP('RE Appr'!AD30,'RE Appr'!$E$13:$J$59,6,FALSE)/100))","v":{"v":436840.79397672834,"d":"436,841"}},{"$f":"($A23-$A22)/365.25*$D$1*(1+$D$2+(VLOOKUP('RE Appr'!AE30,'RE Appr'!$E$13:$J$59,6,FALSE)/100))","v":{"v":455687.8850102669,"d":"455,688"}},{"$f":"($A23-$A22)/365.25*$D$1*(1+$D$2+(VLOOKUP('RE Appr'!AF30,'RE Appr'!$E$13:$J$59,6,FALSE)/100))","v":{"v":418833.85952220886,"d":"418,834"}},{"$f":"($A23-$A22)/365.25*$D$1*(1+$D$2+(VLOOKUP('RE Appr'!AG30,'RE Appr'!$E$13:$J$59,6,FALSE)/100))","v":{"v":401385.0787132102,"d":"401,385"}},{"$f":"($A23-$A22)/365.25*$D$1*(1+$D$2+(VLOOKUP('RE Appr'!AH30,'RE Appr'!$E$13:$J$59,6,FALSE)/100))","v":{"v":419542.64202600956,"d":"419,543"}},{"$f":"($A23-$A22)/365.25*$D$1*(1+$D$2+(VLOOKUP('RE Appr'!AI30,'RE Appr'!$E$13:$J$59,6,FALSE)/100))","v":{"v":423749.76043805614,"d":"423,750"}},{"$f":"($A23-$A22)/365.25*$D$1*(1+$D$2+(VLOOKUP('RE Appr'!AJ30,'RE Appr'!$E$13:$J$59,6,FALSE)/100))","v":{"v":371325.66735112935,"d":"371,326"}},{"$f":"($A23-$A22)/365.25*$D$1*(1+$D$2+(VLOOKUP('RE Appr'!AK30,'RE Appr'!$E$13:$J$59,6,FALSE)/100))","v":{"v":410728.67898699525,"d":"410,729"}},{"$f":"($A23-$A22)/365.25*$D$1*(1+$D$2+(VLOOKUP('RE Appr'!AL30,'RE Appr'!$E$13:$J$59,6,FALSE)/100))","v":{"v":435771.5263518138,"d":"435,772"}},{"$f":"($A23-$A22)/365.25*$D$1*(1+$D$2+(VLOOKUP('RE Appr'!AM30,'RE Appr'!$E$13:$J$59,6,FALSE)/100))","v":{"v":371325.66735112935,"d":"371,326"}},{"$f":"($A23-$A22)/365.25*$D$1*(1+$D$2+(VLOOKUP('RE Appr'!AN30,'RE Appr'!$E$13:$J$59,6,FALSE)/100))","v":{"v":440668.1724845996,"d":"440,668"}},{"$f":"($A23-$A22)/365.25*$D$1*(1+$D$2+(VLOOKUP('RE Appr'!AO30,'RE Appr'!$E$13:$J$59,6,FALSE)/100))","v":{"v":415285.5578370979,"d":"415,286"}},{"$f":"($A23-$A22)/365.25*$D$1*(1+$D$2+(VLOOKUP('RE Appr'!AP30,'RE Appr'!$E$13:$J$59,6,FALSE)/100))","v":{"v":418833.85952220886,"d":"418,834"}},{"$f":"($A23-$A22)/365.25*$D$1*(1+$D$2+(VLOOKUP('RE Appr'!AQ30,'RE Appr'!$E$13:$J$59,6,FALSE)/100))","v":{"v":412277.6180698152,"d":"412,278"}},{"$f":"($A23-$A22)/365.25*$D$1*(1+$D$2+(VLOOKUP('RE Appr'!AR30,'RE Appr'!$E$13:$J$59,6,FALSE)/100))","v":{"v":418173.57973990415,"d":"418,174"}},{"$f":"($A23-$A22)/365.25*$D$1*(1+$D$2+(VLOOKUP('RE Appr'!AS30,'RE Appr'!$E$13:$J$59,6,FALSE)/100))","v":{"v":407091.1704312115,"d":"407,091"}},{"$f":"($A23-$A22)/365.25*$D$1*(1+$D$2+(VLOOKUP('RE Appr'!AT30,'RE Appr'!$E$13:$J$59,6,FALSE)/100))","v":{"v":431774.264202601,"d":"431,774"}},{"$f":"($A23-$A22)/365.25*$D$1*(1+$D$2+(VLOOKUP('RE Appr'!AU30,'RE Appr'!$E$13:$J$59,6,FALSE)/100))","v":{"v":470497.7412731006,"d":"470,498"}},{"$f":"($A23-$A22)/365.25*$D$1*(1+$D$2+(VLOOKUP('RE Appr'!AV30,'RE Appr'!$E$13:$J$59,6,FALSE)/100))","v":{"v":420192.19712525664,"d":"420,192"}},{"$f":"($A23-$A22)/365.25*$D$1*(1+$D$2+(VLOOKUP('RE Appr'!AW30,'RE Appr'!$E$13:$J$59,6,FALSE)/100))","v":{"v":417916.4969295789,"d":"417,916"}},{"$f":"($A23-$A22)/365.25*$D$1*(1+$D$2+(VLOOKUP('RE Appr'!AX30,'RE Appr'!$E$13:$J$59,6,FALSE)/100))","v":{"v":371325.66735112935,"d":"371,326"}},{"$f":"($A23-$A22)/365.25*$D$1*(1+$D$2+(VLOOKUP('RE Appr'!AY30,'RE Appr'!$E$13:$J$59,6,FALSE)/100))","v":{"v":415045.72210814507,"d":"415,046"}},{"$f":"($A23-$A22)/365.25*$D$1*(1+$D$2+(VLOOKUP('RE Appr'!AZ30,'RE Appr'!$E$13:$J$59,6,FALSE)/100))","v":{"v":419632.5804243669,"d":"419,633"}},{"$f":"($A23-$A22)/365.25*$D$1*(1+$D$2+(VLOOKUP('RE Appr'!BA30,'RE Appr'!$E$13:$J$59,6,FALSE)/100))","v":{"v":416694.59274469543,"d":"416,695"}},{"$f":"($A23-$A22)/365.25*$D$1*(1+$D$2+(VLOOKUP('RE Appr'!BB30,'RE Appr'!$E$13:$J$59,6,FALSE)/100))","v":{"v":440668.1724845996,"d":"440,668"}},{"$f":"($A23-$A22)/365.25*$D$1*(1+$D$2+(VLOOKUP('RE Appr'!BC30,'RE Appr'!$E$13:$J$59,6,FALSE)/100))","v":{"v":417916.4969295789,"d":"417,916"}},{"$f":"($A23-$A22)/365.25*$D$1*(1+$D$2+(VLOOKUP('RE Appr'!BD30,'RE Appr'!$E$13:$J$59,6,FALSE)/100))","v":{"v":441527.5838466804,"d":"441,528"}},{"$f":"($A23-$A22)/365.25*$D$1*(1+$D$2+(VLOOKUP('RE Appr'!BE30,'RE Appr'!$E$13:$J$59,6,FALSE)/100))","v":{"v":434212.5941136209,"d":"434,213"}},{"$f":"($A23-$A22)/365.25*$D$1*(1+$D$2+(VLOOKUP('RE Appr'!BF30,'RE Appr'!$E$13:$J$59,6,FALSE)/100))","v":{"v":426041.984729592,"d":"426,042"}},{"$f":"($A23-$A22)/365.25*$D$1*(1+$D$2+(VLOOKUP('RE Appr'!BG30,'RE Appr'!$E$13:$J$59,6,FALSE)/100))","v":{"v":412277.6180698152,"d":"412,278"}},{"$f":"($A23-$A22)/365.25*$D$1*(1+$D$2+(VLOOKUP('RE Appr'!BH30,'RE Appr'!$E$13:$J$59,6,FALSE)/100))","v":{"v":386675.1540041068,"d":"386,675"}},{"$f":"($A23-$A22)/365.25*$D$1*(1+$D$2+(VLOOKUP('RE Appr'!BI30,'RE Appr'!$E$13:$J$59,6,FALSE)/100))","v":{"v":419542.64202600956,"d":"419,543"}},{"$f":"($A23-$A22)/365.25*$D$1*(1+$D$2+(VLOOKUP('RE Appr'!BJ30,'RE Appr'!$E$13:$J$59,6,FALSE)/100))","v":{"v":401385.0787132102,"d":"401,385"}},{"$f":"($A23-$A22)/365.25*$D$1*(1+$D$2+(VLOOKUP('RE Appr'!BK30,'RE Appr'!$E$13:$J$59,6,FALSE)/100))","v":{"v":451019.08281998633,"d":"451,019"}},{"$f":"($A23-$A22)/365.25*$D$1*(1+$D$2+(VLOOKUP('RE Appr'!BL30,'RE Appr'!$E$13:$J$59,6,FALSE)/100))","v":{"v":415045.72210814507,"d":"415,046"}},{"$f":"($A23-$A22)/365.25*$D$1*(1+$D$2+(VLOOKUP('RE Appr'!BM30,'RE Appr'!$E$13:$J$59,6,FALSE)/100))","v":{"v":383827.10472279263,"d":"383,827"}},{"$f":"($A23-$A22)/365.25*$D$1*(1+$D$2+(VLOOKUP('RE Appr'!BN30,'RE Appr'!$E$13:$J$59,6,FALSE)/100))","v":{"v":411048.45995893225,"d":"411,048"}},{"$f":"($A23-$A22)/365.25*$D$1*(1+$D$2+(VLOOKUP('RE Appr'!BO30,'RE Appr'!$E$13:$J$59,6,FALSE)/100))","v":{"v":437040.65708418895,"d":"437,041"}},{"$f":"($A23-$A22)/365.25*$D$1*(1+$D$2+(VLOOKUP('RE Appr'!BP30,'RE Appr'!$E$13:$J$59,6,FALSE)/100))","v":{"v":455687.8850102669,"d":"455,688"}},{"$f":"($A23-$A22)/365.25*$D$1*(1+$D$2+(VLOOKUP('RE Appr'!BQ30,'RE Appr'!$E$13:$J$59,6,FALSE)/100))","v":{"v":407091.1704312115,"d":"407,091"}},{"$f":"($A23-$A22)/365.25*$D$1*(1+$D$2+(VLOOKUP('RE Appr'!BR30,'RE Appr'!$E$13:$J$59,6,FALSE)/100))","v":{"v":421665.9736136933,"d":"421,666"}},{"$f":"($A23-$A22)/365.25*$D$1*(1+$D$2+(VLOOKUP('RE Appr'!BS30,'RE Appr'!$E$13:$J$59,6,FALSE)/100))","v":{"v":455687.8850102669,"d":"455,688"}},{"$f":"($A23-$A22)/365.25*$D$1*(1+$D$2+(VLOOKUP('RE Appr'!BT30,'RE Appr'!$E$13:$J$59,6,FALSE)/100))","v":{"v":441107.871321013,"d":"441,108"}},{"$f":"($A23-$A22)/365.25*$D$1*(1+$D$2+(VLOOKUP('RE Appr'!BU30,'RE Appr'!$E$13:$J$59,6,FALSE)/100))","v":{"v":383827.10472279263,"d":"383,827"}},{"$f":"($A23-$A22)/365.25*$D$1*(1+$D$2+(VLOOKUP('RE Appr'!BV30,'RE Appr'!$E$13:$J$59,6,FALSE)/100))","v":{"v":414845.85900068446,"d":"414,846"}},{"$f":"($A23-$A22)/365.25*$D$1*(1+$D$2+(VLOOKUP('RE Appr'!BW30,'RE Appr'!$E$13:$J$59,6,FALSE)/100))","v":{"v":435771.5263518138,"d":"435,772"}},{"$f":"($A23-$A22)/365.25*$D$1*(1+$D$2+(VLOOKUP('RE Appr'!BX30,'RE Appr'!$E$13:$J$59,6,FALSE)/100))","v":{"v":441107.871321013,"d":"441,108"}},{"$f":"($A23-$A22)/365.25*$D$1*(1+$D$2+(VLOOKUP('RE Appr'!BY30,'RE Appr'!$E$13:$J$59,6,FALSE)/100))","v":{"v":419342.77891854895,"d":"419,343"}},{"$f":"($A23-$A22)/365.25*$D$1*(1+$D$2+(VLOOKUP('RE Appr'!BZ30,'RE Appr'!$E$13:$J$59,6,FALSE)/100))","v":{"v":417916.4969295789,"d":"417,916"}},{"$f":"($A23-$A22)/365.25*$D$1*(1+$D$2+(VLOOKUP('RE Appr'!CA30,'RE Appr'!$E$13:$J$59,6,FALSE)/100))","v":{"v":418833.85952220886,"d":"418,834"}},{"$f":"($A23-$A22)/365.25*$D$1*(1+$D$2+(VLOOKUP('RE Appr'!CB30,'RE Appr'!$E$13:$J$59,6,FALSE)/100))","v":{"v":418173.57973990415,"d":"418,174"}},{"$f":"($A23-$A22)/365.25*$D$1*(1+$D$2+(VLOOKUP('RE Appr'!CC30,'RE Appr'!$E$13:$J$59,6,FALSE)/100))","v":{"v":421665.9736136933,"d":"421,666"}},{"$f":"($A23-$A22)/365.25*$D$1*(1+$D$2+(VLOOKUP('RE Appr'!CD30,'RE Appr'!$E$13:$J$59,6,FALSE)/100))","v":{"v":417916.4969295789,"d":"417,916"}},{"$f":"($A23-$A22)/365.25*$D$1*(1+$D$2+(VLOOKUP('RE Appr'!CE30,'RE Appr'!$E$13:$J$59,6,FALSE)/100))","v":{"v":412277.6180698152,"d":"412,278"}},{"$f":"($A23-$A22)/365.25*$D$1*(1+$D$2+(VLOOKUP('RE Appr'!CF30,'RE Appr'!$E$13:$J$59,6,FALSE)/100))","v":{"v":437040.65708418895,"d":"437,041"}},{"$f":"($A23-$A22)/365.25*$D$1*(1+$D$2+(VLOOKUP('RE Appr'!CG30,'RE Appr'!$E$13:$J$59,6,FALSE)/100))","v":{"v":375602.7378507871,"d":"375,603"}},{"$f":"($A23-$A22)/365.25*$D$1*(1+$D$2+(VLOOKUP('RE Appr'!CH30,'RE Appr'!$E$13:$J$59,6,FALSE)/100))","v":{"v":422510.60917180014,"d":"422,511"}},{"$f":"($A23-$A22)/365.25*$D$1*(1+$D$2+(VLOOKUP('RE Appr'!CI30,'RE Appr'!$E$13:$J$59,6,FALSE)/100))","v":{"v":410728.67898699525,"d":"410,729"}},{"$f":"($A23-$A22)/365.25*$D$1*(1+$D$2+(VLOOKUP('RE Appr'!CJ30,'RE Appr'!$E$13:$J$59,6,FALSE)/100))","v":{"v":419632.5804243669,"d":"419,633"}},{"$f":"($A23-$A22)/365.25*$D$1*(1+$D$2+(VLOOKUP('RE Appr'!CK30,'RE Appr'!$E$13:$J$59,6,FALSE)/100))","v":{"v":419342.77891854895,"d":"419,343"}},{"$f":"($A23-$A22)/365.25*$D$1*(1+$D$2+(VLOOKUP('RE Appr'!CL30,'RE Appr'!$E$13:$J$59,6,FALSE)/100))","v":{"v":419542.64202600956,"d":"419,543"}},{"$f":"($A23-$A22)/365.25*$D$1*(1+$D$2+(VLOOKUP('RE Appr'!CM30,'RE Appr'!$E$13:$J$59,6,FALSE)/100))","v":{"v":420192.19712525664,"d":"420,192"}},{"$f":"($A23-$A22)/365.25*$D$1*(1+$D$2+(VLOOKUP('RE Appr'!CN30,'RE Appr'!$E$13:$J$59,6,FALSE)/100))","v":{"v":423749.76043805614,"d":"423,750"}},{"$f":"($A23-$A22)/365.25*$D$1*(1+$D$2+(VLOOKUP('RE Appr'!CO30,'RE Appr'!$E$13:$J$59,6,FALSE)/100))","v":{"v":470497.7412731006,"d":"470,498"}},{"$f":"($A23-$A22)/365.25*$D$1*(1+$D$2+(VLOOKUP('RE Appr'!CP30,'RE Appr'!$E$13:$J$59,6,FALSE)/100))","v":{"v":435771.5263518138,"d":"435,772"}},{"$f":"($A23-$A22)/365.25*$D$1*(1+$D$2+(VLOOKUP('RE Appr'!CQ30,'RE Appr'!$E$13:$J$59,6,FALSE)/100))","v":{"v":421665.9736136933,"d":"421,666"}},{"$f":"($A23-$A22)/365.25*$D$1*(1+$D$2+(VLOOKUP('RE Appr'!CR30,'RE Appr'!$E$13:$J$59,6,FALSE)/100))","v":{"v":407091.1704312115,"d":"407,091"}},{"$f":"($A23-$A22)/365.25*$D$1*(1+$D$2+(VLOOKUP('RE Appr'!CS30,'RE Appr'!$E$13:$J$59,6,FALSE)/100))","v":{"v":421665.9736136933,"d":"421,666"}},{"$f":"($A23-$A22)/365.25*$D$1*(1+$D$2+(VLOOKUP('RE Appr'!CT30,'RE Appr'!$E$13:$J$59,6,FALSE)/100))","v":{"v":416694.59274469543,"d":"416,695"}},{"$f":"($A23-$A22)/365.25*$D$1*(1+$D$2+(VLOOKUP('RE Appr'!CU30,'RE Appr'!$E$13:$J$59,6,FALSE)/100))","v":{"v":417916.4969295789,"d":"417,916"}},{"$f":"($A23-$A22)/365.25*$D$1*(1+$D$2+(VLOOKUP('RE Appr'!CV30,'RE Appr'!$E$13:$J$59,6,FALSE)/100))","v":{"v":440668.1724845996,"d":"440,668"}},{"$f":"($A23-$A22)/365.25*$D$1*(1+$D$2+(VLOOKUP('RE Appr'!CW30,'RE Appr'!$E$13:$J$59,6,FALSE)/100))","v":{"v":420192.19712525664,"d":"420,192"}},{"$f":"($A23-$A22)/365.25*$D$1*(1+$D$2+(VLOOKUP('RE Appr'!CX30,'RE Appr'!$E$13:$J$59,6,FALSE)/100))","v":{"v":423749.76043805614,"d":"423,750"}},{"$f":"($A23-$A22)/365.25*$D$1*(1+$D$2+(VLOOKUP('RE Appr'!CY30,'RE Appr'!$E$13:$J$59,6,FALSE)/100))","v":{"v":470497.7412731006,"d":"470,498"}},{"$f":"($A23-$A22)/365.25*$D$1*(1+$D$2+(VLOOKUP('RE Appr'!CZ30,'RE Appr'!$E$13:$J$59,6,FALSE)/100))","v":{"v":407091.1704312115,"d":"407,091"}},{"$f":"($A23-$A22)/365.25*$D$1*(1+$D$2+(VLOOKUP('RE Appr'!DA30,'RE Appr'!$E$13:$J$59,6,FALSE)/100))","v":{"v":417653.93566050654,"d":"417,654"}},{"$f":"($A23-$A22)/365.25*$D$1*(1+$D$2+(VLOOKUP('RE Appr'!DB30,'RE Appr'!$E$13:$J$59,6,FALSE)/100))","v":{"v":435181.93018480495,"d":"435,182"}},{"$f":"($A23-$A22)/365.25*$D$1*(1+$D$2+(VLOOKUP('RE Appr'!DC30,'RE Appr'!$E$13:$J$59,6,FALSE)/100))","v":{"v":437040.65708418895,"d":"437,041"}},{"$f":"($A23-$A22)/365.25*$D$1*(1+$D$2+(VLOOKUP('RE Appr'!DD30,'RE Appr'!$E$13:$J$59,6,FALSE)/100))","v":{"v":383827.10472279263,"d":"383,827"}},{"$f":"($A23-$A22)/365.25*$D$1*(1+$D$2+(VLOOKUP('RE Appr'!DE30,'RE Appr'!$E$13:$J$59,6,FALSE)/100))","v":{"v":422510.60917180014,"d":"422,511"}},{"$f":"($A23-$A22)/365.25*$D$1*(1+$D$2+(VLOOKUP('RE Appr'!DF30,'RE Appr'!$E$13:$J$59,6,FALSE)/100))","v":{"v":429315.94798083504,"d":"429,316"}},{"$f":"($A23-$A22)/365.25*$D$1*(1+$D$2+(VLOOKUP('RE Appr'!DG30,'RE Appr'!$E$13:$J$59,6,FALSE)/100))","v":{"v":420192.19712525664,"d":"420,192"}}]
[{"$f":"Main!A26","v":"2041-12-30"},19,{"$nulls":3},{"$f":"($A24-$A23)/365.25*$D$1*(1+$D$2+(VLOOKUP('RE Appr'!L31,'RE Appr'!$E$13:$J$59,6,FALSE)/100))","v":{"v":407091.1704312115,"d":"407,091"}},{"$f":"($A24-$A23)/365.25*$D$1*(1+$D$2+(VLOOKUP('RE Appr'!M31,'RE Appr'!$E$13:$J$59,6,FALSE)/100))","v":{"v":419632.5804243669,"d":"419,633"}},{"$f":"($A24-$A23)/365.25*$D$1*(1+$D$2+(VLOOKUP('RE Appr'!N31,'RE Appr'!$E$13:$J$59,6,FALSE)/100))","v":{"v":416694.59274469543,"d":"416,695"}},{"$f":"($A24-$A23)/365.25*$D$1*(1+$D$2+(VLOOKUP('RE Appr'!O31,'RE Appr'!$E$13:$J$59,6,FALSE)/100))","v":{"v":470497.7412731006,"d":"470,498"}},{"$f":"($A24-$A23)/365.25*$D$1*(1+$D$2+(VLOOKUP('RE Appr'!P31,'RE Appr'!$E$13:$J$59,6,FALSE)/100))","v":{"v":419632.5804243669,"d":"419,633"}},{"$f":"($A24-$A23)/365.25*$D$1*(1+$D$2+(VLOOKUP('RE Appr'!Q31,'RE Appr'!$E$13:$J$59,6,FALSE)/100))","v":{"v":419632.5804243669,"d":"419,633"}},{"$f":"($A24-$A23)/365.25*$D$1*(1+$D$2+(VLOOKUP('RE Appr'!R31,'RE Appr'!$E$13:$J$59,6,FALSE)/100))","v":{"v":416694.59274469543,"d":"416,695"}},{"$f":"($A24-$A23)/365.25*$D$1*(1+$D$2+(VLOOKUP('RE Appr'!S31,'RE Appr'!$E$13:$J$59,6,FALSE)/100))","v":{"v":375602.7378507871,"d":"375,603"}},{"$f":"($A24-$A23)/365.25*$D$1*(1+$D$2+(VLOOKUP('RE Appr'!T31,'RE Appr'!$E$13:$J$59,6,FALSE)/100))","v":{"v":451019.08281998633,"d":"451,019"}},{"$f":"($A24-$A23)/365.25*$D$1*(1+$D$2+(VLOOKUP('RE Appr'!U31,'RE Appr'!$E$13:$J$59,6,FALSE)/100))","v":{"v":375602.7378507871,"d":"375,603"}},{"$f":"($A24-$A23)/365.25*$D$1*(1+$D$2+(VLOOKUP('RE Appr'!V31,'RE Appr'!$E$13:$J$59,6,FALSE)/100))","v":{"v":415285.5578370979,"d":"415,286"}},{"$f":"($A24-$A23)/365.25*$D$1*(1+$D$2+(VLOOKUP('RE Appr'!W31,'RE Appr'!$E$13:$J$59,6,FALSE)/100))","v":{"v":417653.93566050654,"d":"417,654"}},{"$f":"($A24-$A23)/365.25*$D$1*(1+$D$2+(VLOOKUP('RE Appr'!X31,'RE Appr'!$E$13:$J$59,6,FALSE)/100))","v":{"v":415285.5578370979,"d":"415,286"}},{"$f":"($A24-$A23)/365.25*$D$1*(1+$D$2+(VLOOKUP('RE Appr'!Y31,'RE Appr'!$E$13:$J$59,6,FALSE)/100))","v":{"v":420192.19712525664,"d":"420,192"}},{"$f":"($A24-$A23)/365.25*$D$1*(1+$D$2+(VLOOKUP('RE Appr'!Z31,'RE Appr'!$E$13:$J$59,6,FALSE)/100))","v":{"v":419632.5804243669,"d":"419,633"}},{"$f":"($A24-$A23)/365.25*$D$1*(1+$D$2+(VLOOKUP('RE Appr'!AA31,'RE Appr'!$E$13:$J$59,6,FALSE)/100))","v":{"v":441107.871321013,"d":"441,108"}},{"$f":"($A24-$A23)/365.25*$D$1*(1+$D$2+(VLOOKUP('RE Appr'!AB31,'RE Appr'!$E$13:$J$59,6,FALSE)/100))","v":{"v":416234.9075975359,"d":"416,235"}},{"$f":"($A24-$A23)/365.25*$D$1*(1+$D$2+(VLOOKUP('RE Appr'!AC31,'RE Appr'!$E$13:$J$59,6,FALSE)/100))","v":{"v":429315.94798083504,"d":"429,316"}},{"$f":"($A24-$A23)/365.25*$D$1*(1+$D$2+(VLOOKUP('RE Appr'!AD31,'RE Appr'!$E$13:$J$59,6,FALSE)/100))","v":{"v":435181.93018480495,"d":"435,182"}},{"$f":"($A24-$A23)/365.25*$D$1*(1+$D$2+(VLOOKUP('RE Appr'!AE31,'RE Appr'!$E$13:$J$59,6,FALSE)/100))","v":{"v":422510.60917180014,"d":"422,511"}},{"$f":"($A24-$A23)/365.25*$D$1*(1+$D$2+(VLOOKUP('RE Appr'!AF31,'RE Appr'!$E$13:$J$59,6,FALSE)/100))","v":{"v":371325.66735112935,"d":"371,326"}},{"$f":"($A24-$A23)/365.25*$D$1*(1+$D$2+(VLOOKUP('RE Appr'!AG31,'RE Appr'!$E$13:$J$59,6,FALSE)/100))","v":{"v":412977.13894592744,"d":"412,977"}},{"$f":"($A24-$A23)/365.25*$D$1*(1+$D$2+(VLOOKUP('RE Appr'!AH31,'RE Appr'!$E$13:$J$59,6,FALSE)/100))","v":{"v":419632.5804243669,"d":"419,633"}},{"$f":"($A24-$A23)/365.25*$D$1*(1+$D$2+(VLOOKUP('RE Appr'!AI31,'RE Appr'!$E$13:$J$59,6,FALSE)/100))","v":{"v":415285.5578370979,"d":"415,286"}},{"$f":"($A24-$A23)/365.25*$D$1*(1+$D$2+(VLOOKUP('RE Appr'!AJ31,'RE Appr'!$E$13:$J$59,6,FALSE)/100))","v":{"v":412277.6180698152,"d":"412,278"}},{"$f":"($A24-$A23)/365.25*$D$1*(1+$D$2+(VLOOKUP('RE Appr'!AK31,'RE Appr'!$E$13:$J$59,6,FALSE)/100))","v":{"v":399326.4887063655,"d":"399,326"}},{"$f":"($A24-$A23)/365.25*$D$1*(1+$D$2+(VLOOKUP('RE Appr'!AL31,'RE Appr'!$E$13:$J$59,6,FALSE)/100))","v":{"v":419289.85199380416,"d":"419,290"}},{"$f":"($A24-$A23)/365.25*$D$1*(1+$D$2+(VLOOKUP('RE Appr'!AM31,'RE Appr'!$E$13:$J$59,6,FALSE)/100))","v":{"v":429315.94798083504,"d":"429,316"}},{"$f":"($A24-$A23)/365.25*$D$1*(1+$D$2+(VLOOKUP('RE Appr'!AN31,'RE Appr'!$E$13:$J$59,6,FALSE)/100))","v":{"v":410728.67898699525,"d":"410,729"}},{"$f":"($A24-$A23)/365.25*$D$1*(1+$D$2+(VLOOKUP('RE Appr'!AO31,'RE Appr'!$E$13:$J$59,6,FALSE)/100))","v":{"v":419542.64202600956,"d":"419,543"}},{"$f":"($A24-$A23)/365.25*$D$1*(1+$D$2+(VLOOKUP('RE Appr'!AP31,'RE Appr'!$E$13:$J$59,6,FALSE)/100))","v":{"v":411048.45995893225,"d":"411,048"}},{"$f":"($A24-$A23)/365.25*$D$1*(1+$D$2+(VLOOKUP('RE Appr'!AQ31,'RE Appr'!$E$13:$J$59,6,FALSE)/100))","v":{"v":421665.9736136933,"d":"421,666"}},{"$f":"($A24-$A23)/365.25*$D$1*(1+$D$2+(VLOOKUP('RE Appr'!AR31,'RE Appr'!$E$13:$J$59,6,FALSE)/100))","v":{"v":412277.6180698152,"d":"412,278"}},{"$f":"($A24-$A23)/365.25*$D$1*(1+$D$2+(VLOOKUP('RE Appr'!AS31,'RE Appr'!$E$13:$J$59,6,FALSE)/100))","v":{"v":429315.94798083504,"d":"429,316"}},{"$f":"($A24-$A23)/365.25*$D$1*(1+$D$2+(VLOOKUP('RE Appr'!AT31,'RE Appr'!$E$13:$J$59,6,FALSE)/100))","v":{"v":435771.5263518138,"d":"435,772"}},{"$f":"($A24-$A23)/365.25*$D$1*(1+$D$2+(VLOOKUP('RE Appr'!AU31,'RE Appr'!$E$13:$J$59,6,FALSE)/100))","v":{"v":401385.0787132102,"d":"401,385"}},{"$f":"($A24-$A23)/365.25*$D$1*(1+$D$2+(VLOOKUP('RE Appr'!AV31,'RE Appr'!$E$13:$J$59,6,FALSE)/100))","v":{"v":419289.85199380416,"d":"419,290"}},{"$f":"($A24-$A23)/365.25*$D$1*(1+$D$2+(VLOOKUP('RE Appr'!AW31,'RE Appr'!$E$13:$J$59,6,FALSE)/100))","v":{"v":415045.72210814507,"d":"415,046"}},{"$f":"($A24-$A23)/365.25*$D$1*(1+$D$2+(VLOOKUP('RE Appr'!AX31,'RE Appr'!$E$13:$J$59,6,FALSE)/100))","v":{"v":435771.5263518138,"d":"435,772"}},{"$f":"($A24-$A23)/365.25*$D$1*(1+$D$2+(VLOOKUP('RE Appr'!AY31,'RE Appr'!$E$13:$J$59,6,FALSE)/100))","v":{"v":423749.76043805614,"d":"423,750"}},{"$f":"($A24-$A23)/365.25*$D$1*(1+$D$2+(VLOOKUP('RE Appr'!AZ31,'RE Appr'!$E$13:$J$59,6,FALSE)/100))","v":{"v":422510.60917180014,"d":"422,511"}},{"$f":"($A24-$A23)/365.25*$D$1*(1+$D$2+(VLOOKUP('RE Appr'!BA31,'RE Appr'!$E$13:$J$59,6,FALSE)/100))","v":{"v":401385.0787132102,"d":"401,385"}},{"$f":"($A24-$A23)/365.25*$D$1*(1+$D$2+(VLOOKUP('RE Appr'!BB31,'RE Appr'!$E$13:$J$59,6,FALSE)/100))","v":{"v":414845.85900068446,"d":"414,846"}},{"$f":"($A24-$A23)/365.25*$D$1*(1+$D$2+(VLOOKUP('RE Appr'!BC31,'RE Appr'!$E$13:$J$59,6,FALSE)/100))","v":{"v":470497.7412731006,"d":"470,498"}},{"$f":"($A24-$A23)/365.25*$D$1*(1+$D$2+(VLOOKUP('RE Appr'!BD31,'RE Appr'!$E$13:$J$59,6,FALSE)/100))","v":{"v":421665.9736136933,"d":"421,666"}},{"$f":"($A24-$A23)/365.25*$D$1*(1+$D$2+(VLOOKUP('RE Appr'!BE31,'RE Appr'!$E$13:$J$59,6,FALSE)/100))","v":{"v":401385.0787132102,"d":"401,385"}},{"$f":"($A24-$A23)/365.25*$D$1*(1+$D$2+(VLOOKUP('RE Appr'!BF31,'RE Appr'!$E$13:$J$59,6,FALSE)/100))","v":{"v":423729.77412731,"d":"423,730"}},{"$f":"($A24-$A23)/365.25*$D$1*(1+$D$2+(VLOOKUP('RE Appr'!BG31,'RE Appr'!$E$13:$J$59,6,FALSE)/100))","v":{"v":423749.76043805614,"d":"423,750"}},{"$f":"($A24-$A23)/365.25*$D$1*(1+$D$2+(VLOOKUP('RE Appr'!BH31,'RE Appr'!$E$13:$J$59,6,FALSE)/100))","v":{"v":386675.1540041068,"d":"386,675"}},{"$f":"($A24-$A23)/365.25*$D$1*(1+$D$2+(VLOOKUP('RE Appr'!BI31,'RE Appr'!$E$13:$J$59,6,FALSE)/100))","v":{"v":415847.54106599226,"d":"415,848"}},{"$f":"($A24-$A23)/365.25*$D$1*(1+$D$2+(VLOOKUP('RE Appr'!BJ31,'RE Appr'!$E$13:$J$59,6,FALSE)/100))","v":{"v":419289.85199380416,"d":"419,290"}},{"$f":"($A24-$A23)/365.25*$D$1*(1+$D$2+(VLOOKUP('RE Appr'!BK31,'RE Appr'!$E$13:$J$59,6,FALSE)/100))","v":{"v":401385.0787132102,"d":"401,385"}},{"$f":"($A24-$A23)/365.25*$D$1*(1+$D$2+(VLOOKUP('RE Appr'!BL31,'RE Appr'!$E$13:$J$59,6,FALSE)/100))","v":{"v":437040.65708418895,"d":"437,041"}},{"$f":"($A24-$A23)/365.25*$D$1*(1+$D$2+(VLOOKUP('RE Appr'!BM31,'RE Appr'!$E$13:$J$59,6,FALSE)/100))","v":{"v":386675.1540041068,"d":"386,675"}},{"$f":"($A24-$A23)/365.25*$D$1*(1+$D$2+(VLOOKUP('RE Appr'!BN31,'RE Appr'!$E$13:$J$59,6,FALSE)/100))","v":{"v":436840.79397672834,"d":"436,841"}},{"$f":"($A24-$A23)/365.25*$D$1*(1+$D$2+(VLOOKUP('RE Appr'!BO31,'RE Appr'!$E$13:$J$59,6,FALSE)/100))","v":{"v":441107.871321013,"d":"441,108"}},{"$f":"($A24-$A23)/365.25*$D$1*(1+$D$2+(VLOOKUP('RE Appr'!BP31,'RE Appr'!$E$13:$J$59,6,FALSE)/100))","v":{"v":407091.1704312115,"d":"407,091"}},{"$f":"($A24-$A23)/365.25*$D$1*(1+$D$2+(VLOOKUP('RE Appr'!BQ31,'RE Appr'!$E$13:$J$59,6,FALSE)/100))","v":{"v":455687.8850102669,"d":"455,688"}},{"$f":"($A24-$A23)/365.25*$D$1*(1+$D$2+(VLOOKUP('RE Appr'!BR31,'RE Appr'!$E$13:$J$59,6,FALSE)/100))","v":{"v":436840.79397672834,"d":"436,841"}},{"$f":"($A24-$A23)/365.25*$D$1*(1+$D$2+(VLOOKUP('RE Appr'!BS31,'RE Appr'!$E$13:$J$59,6,FALSE)/100))","v":{"v":414845.85900068446,"d":"414,846"}},{"$f":"($A24-$A23)/365.25*$D$1*(1+$D$2+(VLOOKUP('RE Appr'!BT31,'RE Appr'!$E$13:$J$59,6,FALSE)/100))","v":{"v":412517.453798768,"d":"412,517"}},{"$f":"($A24-$A23)/365.25*$D$1*(1+$D$2+(VLOOKUP('RE Appr'!BU31,'RE Appr'!$E$13:$J$59,6,FALSE)/100))","v":{"v":423729.77412731,"d":"423,730"}},{"$f":"($A24-$A23)/365.25*$D$1*(1+$D$2+(VLOOKUP('RE Appr'!BV31,'RE Appr'!$E$13:$J$59,6,FALSE)/100))","v":{"v":436840.79397672834,"d":"436,841"}},{"$f":"($A24-$A23)/365.25*$D$1*(1+$D$2+(VLOOKUP('RE Appr'!BW31,'RE Appr'!$E$13:$J$59,6,FALSE)/100))","v":{"v":440668.1724845996,"d":"440,668"}},{"$f":"($A24-$A23)/365.25*$D$1*(1+$D$2+(VLOOKUP('RE Appr'!BX31,'RE Appr'!$E$13:$J$59,6,FALSE)/100))","v":{"v":422510.60917180014,"d":"422,511"}},{"$f":"($A24-$A23)/365.25*$D$1*(1+$D$2+(VLOOKUP('RE Appr'!BY31,'RE Appr'!$E$13:$J$59,6,FALSE)/100))","v":{"v":407091.1704312115,"d":"407,091"}},{"$f":"($A24-$A23)/365.25*$D$1*(1+$D$2+(VLOOKUP('RE Appr'!BZ31,'RE Appr'!$E$13:$J$59,6,FALSE)/100))","v":{"v":437040.65708418895,"d":"437,041"}},{"$f":"($A24-$A23)/365.25*$D$1*(1+$D$2+(VLOOKUP('RE Appr'!CA31,'RE Appr'!$E$13:$J$59,6,FALSE)/100))","v":{"v":410728.67898699525,"d":"410,729"}},{"$f":"($A24-$A23)/365.25*$D$1*(1+$D$2+(VLOOKUP('RE Appr'!CB31,'RE Appr'!$E$13:$J$59,6,FALSE)/100))","v":{"v":415045.72210814507,"d":"415,046"}},{"$f":"($A24-$A23)/365.25*$D$1*(1+$D$2+(VLOOKUP('RE Appr'!CC31,'RE Appr'!$E$13:$J$59,6,FALSE)/100))","v":{"v":436840.79397672834,"d":"436,841"}},{"$f":"($A24-$A23)/365.25*$D$1*(1+$D$2+(VLOOKUP('RE Appr'!CD31,'RE Appr'!$E$13:$J$59,6,FALSE)/100))","v":{"v":412517.453798768,"d":"412,517"}},{"$f":"($A24-$A23)/365.25*$D$1*(1+$D$2+(VLOOKUP('RE Appr'!CE31,'RE Appr'!$E$13:$J$59,6,FALSE)/100))","v":{"v":416694.59274469543,"d":"416,695"}},{"$f":"($A24-$A23)/365.25*$D$1*(1+$D$2+(VLOOKUP('RE Appr'!CF31,'RE Appr'!$E$13:$J$59,6,FALSE)/100))","v":{"v":416234.9075975359,"d":"416,235"}},{"$f":"($A24-$A23)/365.25*$D$1*(1+$D$2+(VLOOKUP('RE Appr'!CG31,'RE Appr'!$E$13:$J$59,6,FALSE)/100))","v":{"v":419632.5804243669,"d":"419,633"}},{"$f":"($A24-$A23)/365.25*$D$1*(1+$D$2+(VLOOKUP('RE Appr'!CH31,'RE Appr'!$E$13:$J$59,6,FALSE)/100))","v":{"v":412637.3716632444,"d":"412,637"}},{"$f":"($A24-$A23)/365.25*$D$1*(1+$D$2+(VLOOKUP('RE Appr'!CI31,'RE Appr'!$E$13:$J$59,6,FALSE)/100))","v":{"v":412517.453798768,"d":"412,517"}},{"$f":"($A24-$A23)/365.25*$D$1*(1+$D$2+(VLOOKUP('RE Appr'!CJ31,'RE Appr'!$E$13:$J$59,6,FALSE)/100))","v":{"v":386675.1540041068,"d":"386,675"}},{"$f":"($A24-$A23)/365.25*$D$1*(1+$D$2+(VLOOKUP('RE Appr'!CK31,'RE Appr'!$E$13:$J$59,6,FALSE)/100))","v":{"v":419289.85199380416,"d":"419,290"}},{"$f":"($A24-$A23)/365.25*$D$1*(1+$D$2+(VLOOKUP('RE Appr'!CL31,'RE Appr'!$E$13:$J$59,6,FALSE)/100))","v":{"v":371325.66735112935,"d":"371,326"}},{"$f":"($A24-$A23)/365.25*$D$1*(1+$D$2+(VLOOKUP('RE Appr'!CM31,'RE Appr'!$E$13:$J$59,6,FALSE)/100))","v":{"v":441107.871321013,"d":"441,108"}},{"$f":"($A24-$A23)/365.25*$D$1*(1+$D$2+(VLOOKUP('RE Appr'!CN31,'RE Appr'!$E$13:$J$59,6,FALSE)/100))","v":{"v":434212.5941136209,"d":"434,213"}},{"$f":"($A24-$A23)/365.25*$D$1*(1+$D$2+(VLOOKUP('RE Appr'!CO31,'RE Appr'!$E$13:$J$59,6,FALSE)/100))","v":{"v":412517.453798768,"d":"412,517"}},{"$f":"($A24-$A23)/365.25*$D$1*(1+$D$2+(VLOOKUP('RE Appr'!CP31,'RE Appr'!$E$13:$J$59,6,FALSE)/100))","v":{"v":426041.984729592,"d":"426,042"}},{"$f":"($A24-$A23)/365.25*$D$1*(1+$D$2+(VLOOKUP('RE Appr'!CQ31,'RE Appr'!$E$13:$J$59,6,FALSE)/100))","v":{"v":441107.871321013,"d":"441,108"}},{"$f":"($A24-$A23)/365.25*$D$1*(1+$D$2+(VLOOKUP('RE Appr'!CR31,'RE Appr'!$E$13:$J$59,6,FALSE)/100))","v":{"v":421665.9736136933,"d":"421,666"}},{"$f":"($A24-$A23)/365.25*$D$1*(1+$D$2+(VLOOKUP('RE Appr'!CS31,'RE Appr'!$E$13:$J$59,6,FALSE)/100))","v":{"v":418833.85952220886,"d":"418,834"}},{"$f":"($A24-$A23)/365.25*$D$1*(1+$D$2+(VLOOKUP('RE Appr'!CT31,'RE Appr'!$E$13:$J$59,6,FALSE)/100))","v":{"v":416694.59274469543,"d":"416,695"}},{"$f":"($A24-$A23)/365.25*$D$1*(1+$D$2+(VLOOKUP('RE Appr'!CU31,'RE Appr'!$E$13:$J$59,6,FALSE)/100))","v":{"v":429315.94798083504,"d":"429,316"}},{"$f":"($A24-$A23)/365.25*$D$1*(1+$D$2+(VLOOKUP('RE Appr'!CV31,'RE Appr'!$E$13:$J$59,6,FALSE)/100))","v":{"v":418833.85952220886,"d":"418,834"}},{"$f":"($A24-$A23)/365.25*$D$1*(1+$D$2+(VLOOKUP('RE Appr'!CW31,'RE Appr'!$E$13:$J$59,6,FALSE)/100))","v":{"v":419542.64202600956,"d":"419,543"}},{"$f":"($A24-$A23)/365.25*$D$1*(1+$D$2+(VLOOKUP('RE Appr'!CX31,'RE Appr'!$E$13:$J$59,6,FALSE)/100))","v":{"v":422510.60917180014,"d":"422,511"}},{"$f":"($A24-$A23)/365.25*$D$1*(1+$D$2+(VLOOKUP('RE Appr'!CY31,'RE Appr'!$E$13:$J$59,6,FALSE)/100))","v":{"v":422510.60917180014,"d":"422,511"}},{"$f":"($A24-$A23)/365.25*$D$1*(1+$D$2+(VLOOKUP('RE Appr'!CZ31,'RE Appr'!$E$13:$J$59,6,FALSE)/100))","v":{"v":419342.77891854895,"d":"419,343"}},{"$f":"($A24-$A23)/365.25*$D$1*(1+$D$2+(VLOOKUP('RE Appr'!DA31,'RE Appr'!$E$13:$J$59,6,FALSE)/100))","v":{"v":441527.5838466804,"d":"441,528"}},{"$f":"($A24-$A23)/365.25*$D$1*(1+$D$2+(VLOOKUP('RE Appr'!DB31,'RE Appr'!$E$13:$J$59,6,FALSE)/100))","v":{"v":419542.64202600956,"d":"419,543"}},{"$f":"($A24-$A23)/365.25*$D$1*(1+$D$2+(VLOOKUP('RE Appr'!DC31,'RE Appr'!$E$13:$J$59,6,FALSE)/100))","v":{"v":437040.65708418895,"d":"437,041"}},{"$f":"($A24-$A23)/365.25*$D$1*(1+$D$2+(VLOOKUP('RE Appr'!DD31,'RE Appr'!$E$13:$J$59,6,FALSE)/100))","v":{"v":437040.65708418895,"d":"437,041"}},{"$f":"($A24-$A23)/365.25*$D$1*(1+$D$2+(VLOOKUP('RE Appr'!DE31,'RE Appr'!$E$13:$J$59,6,FALSE)/100))","v":{"v":412977.13894592744,"d":"412,977"}},{"$f":"($A24-$A23)/365.25*$D$1*(1+$D$2+(VLOOKUP('RE Appr'!DF31,'RE Appr'!$E$13:$J$59,6,FALSE)/100))","v":{"v":436840.79397672834,"d":"436,841"}},{"$f":"($A24-$A23)/365.25*$D$1*(1+$D$2+(VLOOKUP('RE Appr'!DG31,'RE Appr'!$E$13:$J$59,6,FALSE)/100))","v":{"v":414845.85900068446,"d":"414,846"}}]
[{"$f":"Main!A27","v":"2042-12-30"},20,{"$nulls":3},{"$f":"($A25-$A24)/365.25*$D$1*(1+$D$2+(VLOOKUP('RE Appr'!L32,'RE Appr'!$E$13:$J$59,6,FALSE)/100))","v":{"v":436840.79397672834,"d":"436,841"}},{"$f":"($A25-$A24)/365.25*$D$1*(1+$D$2+(VLOOKUP('RE Appr'!M32,'RE Appr'!$E$13:$J$59,6,FALSE)/100))","v":{"v":409269.6783025325,"d":"409,270"}},{"$f":"($A25-$A24)/365.25*$D$1*(1+$D$2+(VLOOKUP('RE Appr'!N32,'RE Appr'!$E$13:$J$59,6,FALSE)/100))","v":{"v":411048.45995893225,"d":"411,048"}},{"$f":"($A25-$A24)/365.25*$D$1*(1+$D$2+(VLOOKUP('RE Appr'!O32,'RE Appr'!$E$13:$J$59,6,FALSE)/100))","v":{"v":415847.54106599226,"d":"415,848"}},{"$f":"($A25-$A24)/365.25*$D$1*(1+$D$2+(VLOOKUP('RE Appr'!P32,'RE Appr'!$E$13:$J$59,6,FALSE)/100))","v":{"v":423749.76043805614,"d":"423,750"}},{"$f":"($A25-$A24)/365.25*$D$1*(1+$D$2+(VLOOKUP('RE Appr'!Q32,'RE Appr'!$E$13:$J$59,6,FALSE)/100))","v":{"v":420192.19712525664,"d":"420,192"}},{"$f":"($A25-$A24)/365.25*$D$1*(1+$D$2+(VLOOKUP('RE Appr'!R32,'RE Appr'!$E$13:$J$59,6,FALSE)/100))","v":{"v":435771.5263518138,"d":"435,772"}},{"$f":"($A25-$A24)/365.25*$D$1*(1+$D$2+(VLOOKUP('RE Appr'!S32,'RE Appr'!$E$13:$J$59,6,FALSE)/100))","v":{"v":383827.10472279263,"d":"383,827"}},{"$f":"($A25-$A24)/365.25*$D$1*(1+$D$2+(VLOOKUP('RE Appr'!T32,'RE Appr'!$E$13:$J$59,6,FALSE)/100))","v":{"v":417916.4969295789,"d":"417,916"}},{"$f":"($A25-$A24)/365.25*$D$1*(1+$D$2+(VLOOKUP('RE Appr'!U32,'RE Appr'!$E$13:$J$59,6,FALSE)/100))","v":{"v":419289.85199380416,"d":"419,290"}},{"$f":"($A25-$A24)/365.25*$D$1*(1+$D$2+(VLOOKUP('RE Appr'!V32,'RE Appr'!$E$13:$J$59,6,FALSE)/100))","v":{"v":417653.93566050654,"d":"417,654"}},{"$f":"($A25-$A24)/365.25*$D$1*(1+$D$2+(VLOOKUP('RE Appr'!W32,'RE Appr'!$E$13:$J$59,6,FALSE)/100))","v":{"v":455687.8850102669,"d":"455,688"}},{"$f":"($A25-$A24)/365.25*$D$1*(1+$D$2+(VLOOKUP('RE Appr'!X32,'RE Appr'!$E$13:$J$59,6,FALSE)/100))","v":{"v":426041.984729592,"d":"426,042"}},{"$f":"($A25-$A24)/365.25*$D$1*(1+$D$2+(VLOOKUP('RE Appr'!Y32,'RE Appr'!$E$13:$J$59,6,FALSE)/100))","v":{"v":386675.1540041068,"d":"386,675"}},{"$f":"($A25-$A24)/365.25*$D$1*(1+$D$2+(VLOOKUP('RE Appr'!Z32,'RE Appr'!$E$13:$J$59,6,FALSE)/100))","v":{"v":414845.85900068446,"d":"414,846"}},{"$f":"($A25-$A24)/365.25*$D$1*(1+$D$2+(VLOOKUP('RE Appr'!AA32,'RE Appr'!$E$13:$J$59,6,FALSE)/100))","v":{"v":412517.453798768,"d":"412,517"}},{"$f":"($A25-$A24)/365.25*$D$1*(1+$D$2+(VLOOKUP('RE Appr'!AB32,'RE Appr'!$E$13:$J$59,6,FALSE)/100))","v":{"v":407091.1704312115,"d":"407,091"}},{"$f":"($A25-$A24)/365.25*$D$1*(1+$D$2+(VLOOKUP('RE Appr'!AC32,'RE Appr'!$E$13:$J$59,6,FALSE)/100))","v":{"v":419289.85199380416,"d":"419,290"}},{"$f":"($A25-$A24)/365.25*$D$1*(1+$D$2+(VLOOKUP('RE Appr'!AD32,'RE Appr'!$E$13:$J$59,6,FALSE)/100))","v":{"v":436840.79397672834,"d":"436,841"}},{"$f":"($A25-$A24)/365.25*$D$1*(1+$D$2+(VLOOKUP('RE Appr'!AE32,'RE Appr'!$E$13:$J$59,6,FALSE)/100))","v":{"v":419289.85199380416,"d":"419,290"}},{"$f":"($A25-$A24)/365.25*$D$1*(1+$D$2+(VLOOKUP('RE Appr'!AF32,'RE Appr'!$E$13:$J$59,6,FALSE)/100))","v":{"v":399326.4887063655,"d":"399,326"}},{"$f":"($A25-$A24)/365.25*$D$1*(1+$D$2+(VLOOKUP('RE Appr'!AG32,'RE Appr'!$E$13:$J$59,6,FALSE)/100))","v":{"v":418833.85952220886,"d":"418,834"}},{"$f":"($A25-$A24)/365.25*$D$1*(1+$D$2+(VLOOKUP('RE Appr'!AH32,'RE Appr'!$E$13:$J$59,6,FALSE)/100))","v":{"v":415847.54106599226,"d":"415,848"}},{"$f":"($A25-$A24)/365.25*$D$1*(1+$D$2+(VLOOKUP('RE Appr'!AI32,'RE Appr'!$E$13:$J$59,6,FALSE)/100))","v":{"v":415045.72210814507,"d":"415,046"}},{"$f":"($A25-$A24)/365.25*$D$1*(1+$D$2+(VLOOKUP('RE Appr'!AJ32,'RE Appr'!$E$13:$J$59,6,FALSE)/100))","v":{"v":431774.264202601,"d":"431,774"}},{"$f":"($A25-$A24)/365.25*$D$1*(1+$D$2+(VLOOKUP('RE Appr'!AK32,'RE Appr'!$E$13:$J$59,6,FALSE)/100))","v":{"v":415285.5578370979,"d":"415,286"}},{"$f":"($A25-$A24)/365.25*$D$1*(1+$D$2+(VLOOKUP('RE Appr'!AL32,'RE Appr'!$E$13:$J$59,6,FALSE)/100))","v":{"v":441527.5838466804,"d":"441,528"}},{"$f":"($A25-$A24)/365.25*$D$1*(1+$D$2+(VLOOKUP('RE Appr'!AM32,'RE Appr'!$E$13:$J$59,6,FALSE)/100))","v":{"v":434212.5941136209,"d":"434,213"}},{"$f":"($A25-$A24)/365.25*$D$1*(1+$D$2+(VLOOKUP('RE Appr'!AN32,'RE Appr'!$E$13:$J$59,6,FALSE)/100))","v":{"v":418833.85952220886,"d":"418,834"}},{"$f":"($A25-$A24)/365.25*$D$1*(1+$D$2+(VLOOKUP('RE Appr'!AO32,'RE Appr'!$E$13:$J$59,6,FALSE)/100))","v":{"v":437040.65708418895,"d":"437,041"}},{"$f":"($A25-$A24)/365.25*$D$1*(1+$D$2+(VLOOKUP('RE Appr'!AP32,'RE Appr'!$E$13:$J$59,6,FALSE)/100))","v":{"v":418833.85952220886,"d":"418,834"}},{"$f":"($A25-$A24)/365.25*$D$1*(1+$D$2+(VLOOKUP('RE Appr'!AQ32,'RE Appr'!$E$13:$J$59,6,FALSE)/100))","v":{"v":412637.3716632444,"d":"412,637"}},{"$f":"($A25-$A24)/365.25*$D$1*(1+$D$2+(VLOOKUP('RE Appr'!AR32,'RE Appr'!$E$13:$J$59,6,FALSE)/100))","v":{"v":412977.13894592744,"d":"412,977"}},{"$f":"($A25-$A24)/365.25*$D$1*(1+$D$2+(VLOOKUP('RE Appr'!AS32,'RE Appr'!$E$13:$J$59,6,FALSE)/100))","v":{"v":419632.5804243669,"d":"419,633"}},{"$f":"($A25-$A24)/365.25*$D$1*(1+$D$2+(VLOOKUP('RE Appr'!AT32,'RE Appr'!$E$13:$J$59,6,FALSE)/100))","v":{"v":419542.64202600956,"d":"419,543"}},{"$f":"($A25-$A24)/365.25*$D$1*(1+$D$2+(VLOOKUP('RE Appr'!AU32,'RE Appr'!$E$13:$J$59,6,FALSE)/100))","v":{"v":415285.5578370979,"d":"415,286"}},{"$f":"($A25-$A24)/365.25*$D$1*(1+$D$2+(VLOOKUP('RE Appr'!AV32,'RE Appr'!$E$13:$J$59,6,FALSE)/100))","v":{"v":383827.10472279263,"d":"383,827"}},{"$f":"($A25-$A24)/365.25*$D$1*(1+$D$2+(VLOOKUP('RE Appr'!AW32,'RE Appr'!$E$13:$J$59,6,FALSE)/100))","v":{"v":375602.7378507871,"d":"375,603"}},{"$f":"($A25-$A24)/365.25*$D$1*(1+$D$2+(VLOOKUP('RE Appr'!AX32,'RE Appr'!$E$13:$J$59,6,FALSE)/100))","v":{"v":418173.57973990415,"d":"418,174"}},{"$f":"($A25-$A24)/365.25*$D$1*(1+$D$2+(VLOOKUP('RE Appr'!AY32,'RE Appr'!$E$13:$J$59,6,FALSE)/100))","v":{"v":426041.984729592,"d":"426,042"}},{"$f":"($A25-$A24)/365.25*$D$1*(1+$D$2+(VLOOKUP('RE Appr'!AZ32,'RE Appr'!$E$13:$J$59,6,FALSE)/100))","v":{"v":429315.94798083504,"d":"429,316"}},{"$f":"($A25-$A24)/365.25*$D$1*(1+$D$2+(VLOOKUP('RE Appr'!BA32,'RE Appr'!$E$13:$J$59,6,FALSE)/100))","v":{"v":440668.1724845996,"d":"440,668"}},{"$f":"($A25-$A24)/365.25*$D$1*(1+$D$2+(VLOOKUP('RE Appr'!BB32,'RE Appr'!$E$13:$J$59,6,FALSE)/100))","v":{"v":414845.85900068446,"d":"414,846"}},{"$f":"($A25-$A24)/365.25*$D$1*(1+$D$2+(VLOOKUP('RE Appr'!BC32,'RE Appr'!$E$13:$J$59,6,FALSE)/100))","v":{"v":422510.60917180014,"d":"422,511"}},{"$f":"($A25-$A24)/365.25*$D$1*(1+$D$2+(VLOOKUP('RE Appr'!BD32,'RE Appr'!$E$13:$J$59,6,FALSE)/100))","v":{"v":410728.67898699525,"d":"410,729"}},{"$f":"($A25-$A24)/365.25*$D$1*(1+$D$2+(VLOOKUP('RE Appr'!BE32,'RE Appr'!$E$13:$J$59,6,FALSE)/100))","v":{"v":415285.5578370979,"d":"415,286"}},{"$f":"($A25-$A24)/365.25*$D$1*(1+$D$2+(VLOOKUP('RE Appr'!BF32,'RE Appr'!$E$13:$J$59,6,FALSE)/100))","v":{"v":431774.264202601,"d":"431,774"}},{"$f":"($A25-$A24)/365.25*$D$1*(1+$D$2+(VLOOKUP('RE Appr'!BG32,'RE Appr'!$E$13:$J$59,6,FALSE)/100))","v":{"v":441527.5838466804,"d":"441,528"}},{"$f":"($A25-$A24)/365.25*$D$1*(1+$D$2+(VLOOKUP('RE Appr'!BH32,'RE Appr'!$E$13:$J$59,6,FALSE)/100))","v":{"v":419289.85199380416,"d":"419,290"}},{"$f":"($A25-$A24)/365.25*$D$1*(1+$D$2+(VLOOKUP('RE Appr'!BI32,'RE Appr'!$E$13:$J$59,6,FALSE)/100))","v":{"v":419289.85199380416,"d":"419,290"}},{"$f":"($A25-$A24)/365.25*$D$1*(1+$D$2+(VLOOKUP('RE Appr'!BJ32,'RE Appr'!$E$13:$J$59,6,FALSE)/100))","v":{"v":416234.9075975359,"d":"416,235"}},{"$f":"($A25-$A24)/365.25*$D$1*(1+$D$2+(VLOOKUP('RE Appr'!BK32,'RE Appr'!$E$13:$J$59,6,FALSE)/100))","v":{"v":426041.984729592,"d":"426,042"}},{"$f":"($A25-$A24)/365.25*$D$1*(1+$D$2+(VLOOKUP('RE Appr'!BL32,'RE Appr'!$E$13:$J$59,6,FALSE)/100))","v":{"v":419342.77891854895,"d":"419,343"}},{"$f":"($A25-$A24)/365.25*$D$1*(1+$D$2+(VLOOKUP('RE Appr'!BM32,'RE Appr'!$E$13:$J$59,6,FALSE)/100))","v":{"v":418173.57973990415,"d":"418,174"}},{"$f":"($A25-$A24)/365.25*$D$1*(1+$D$2+(VLOOKUP('RE Appr'!BN32,'RE Appr'!$E$13:$J$59,6,FALSE)/100))","v":{"v":423749.76043805614,"d":"423,750"}},{"$f":"($A25-$A24)/365.25*$D$1*(1+$D$2+(VLOOKUP('RE Appr'!BO32,'RE Appr'!$E$13:$J$59,6,FALSE)/100))","v":{"v":436840.79397672834,"d":"436,841"}},{"$f":"($A25-$A24)/365.25*$D$1*(1+$D$2+(VLOOKUP('RE Appr'!BP32,'RE Appr'!$E$13:$J$59,6,FALSE)/100))","v":{"v":410728.67898699525,"d":"410,729"}},{"$f":"($A25-$A24)/365.25*$D$1*(1+$D$2+(VLOOKUP('RE Appr'!BQ32,'RE Appr'!$E$13:$J$59,6,FALSE)/100))","v":{"v":418833.85952220886,"d":"418,834"}},{"$f":"($A25-$A24)/365.25*$D$1*(1+$D$2+(VLOOKUP('RE Appr'!BR32,'RE Appr'!$E$13:$J$59,6,FALSE)/100))","v":{"v":414845.85900068446,"d":"414,846"}},{"$f":"($A25-$A24)/365.25*$D$1*(1+$D$2+(VLOOKUP('RE Appr'!BS32,'RE Appr'!$E$13:$J$59,6,FALSE)/100))","v":{"v":409269.6783025325,"d":"409,270"}},{"$f":"($A25-$A24)/365.25*$D$1*(1+$D$2+(VLOOKUP('RE Appr'!BT32,'RE Appr'!$E$13:$J$59,6,FALSE)/100))","v":{"v":470497.7412731006,"d":"470,498"}},{"$f":"($A25-$A24)/365.25*$D$1*(1+$D$2+(VLOOKUP('RE Appr'!BU32,'RE Appr'!$E$13:$J$59,6,FALSE)/100))","v":{"v":419289.85199380416,"d":"419,290"}},{"$f":"($A25-$A24)/365.25*$D$1*(1+$D$2+(VLOOKUP('RE Appr'!BV32,'RE Appr'!$E$13:$J$59,6,FALSE)/100))","v":{"v":411048.45995893225,"d":"411,048"}},{"$f":"($A25-$A24)/365.25*$D$1*(1+$D$2+(VLOOKUP('RE Appr'!BW32,'RE Appr'!$E$13:$J$59,6,FALSE)/100))","v":{"v":410728.67898699525,"d":"410,729"}},{"$f":"($A25-$A24)/365.25*$D$1*(1+$D$2+(VLOOKUP('RE Appr'!BX32,'RE Appr'!$E$13:$J$59,6,FALSE)/100))","v":{"v":435181.93018480495,"d":"435,182"}},{"$f":"($A25-$A24)/365.25*$D$1*(1+$D$2+(VLOOKUP('RE Appr'!BY32,'RE Appr'!$E$13:$J$59,6,FALSE)/100))","v":{"v":451019.08281998633,"d":"451,019"}},{"$f":"($A25-$A24)/365.25*$D$1*(1+$D$2+(VLOOKUP('RE Appr'!BZ32,'RE Appr'!$E$13:$J$59,6,FALSE)/100))","v":{"v":431774.264202601,"d":"431,774"}},{"$f":"($A25-$A24)/365.25*$D$1*(1+$D$2+(VLOOKUP('RE Appr'!CA32,'RE Appr'!$E$13:$J$59,6,FALSE)/100))","v":{"v":436840.79397672834,"d":"436,841"}},{"$f":"($A25-$A24)/365.25*$D$1*(1+$D$2+(VLOOKUP('RE Appr'!CB32,'RE Appr'!$E$13:$J$59,6,FALSE)/100))","v":{"v":412977.13894592744,"d":"412,977"}},{"$f":"($A25-$A24)/365.25*$D$1*(1+$D$2+(VLOOKUP('RE Appr'!CC32,'RE Appr'!$E$13:$J$59,6,FALSE)/100))","v":{"v":415285.5578370979,"d":"415,286"}},{"$f":"($A25-$A24)/365.25*$D$1*(1+$D$2+(VLOOKUP('RE Appr'!CD32,'RE Appr'!$E$13:$J$59,6,FALSE)/100))","v":{"v":441527.5838466804,"d":"441,528"}},{"$f":"($A25-$A24)/365.25*$D$1*(1+$D$2+(VLOOKUP('RE Appr'!CE32,'RE Appr'!$E$13:$J$59,6,FALSE)/100))","v":{"v":412277.6180698152,"d":"412,278"}},{"$f":"($A25-$A24)/365.25*$D$1*(1+$D$2+(VLOOKUP('RE Appr'!CF32,'RE Appr'!$E$13:$J$59,6,FALSE)/100))","v":{"v":470497.7412731006,"d":"470,498"}},{"$f":"($A25-$A24)/365.25*$D$1*(1+$D$2+(VLOOKUP('RE Appr'!CG32,'RE Appr'!$E$13:$J$59,6,FALSE)/100))","v":{"v":440668.1724845996,"d":"440,668"}},{"$f":"($A25-$A24)/365.25*$D$1*(1+$D$2+(VLOOKUP('RE Appr'!CH32,'RE Appr'!$E$13:$J$59,6,FALSE)/100))","v":{"v":409269.6783025325,"d":"409,270"}},{"$f":"($A25-$A24)/365.25*$D$1*(1+$D$2+(VLOOKUP('RE Appr'!CI32,'RE Appr'!$E$13:$J$59,6,FALSE)/100))","v":{"v":419342.77891854895,"d":"419,343"}},{"$f":"($A25-$A24)/365.25*$D$1*(1+$D$2+(VLOOKUP('RE Appr'!CJ32,'RE Appr'!$E$13:$J$59,6,FALSE)/100))","v":{"v":416694.59274469543,"d":"416,695"}},{"$f":"($A25-$A24)/365.25*$D$1*(1+$D$2+(VLOOKUP('RE Appr'!CK32,'RE Appr'!$E$13:$J$59,6,FALSE)/100))","v":{"v":455687.8850102669,"d":"455,688"}},{"$f":"($A25-$A24)/365.25*$D$1*(1+$D$2+(VLOOKUP('RE Appr'!CL32,'RE Appr'!$E$13:$J$59,6,FALSE)/100))","v":{"v":417916.4969295789,"d":"417,916"}},{"$f":"($A25-$A24)/365.25*$D$1*(1+$D$2+(VLOOKUP('RE Appr'!CM32,'RE Appr'!$E$13:$J$59,6,FALSE)/100))","v":{"v":421665.9736136933,"d":"421,666"}},{"$f":"($A25-$A24)/365.25*$D$1*(1+$D$2+(VLOOKUP('RE Appr'!CN32,'RE Appr'!$E$13:$J$59,6,FALSE)/100))","v":{"v":386675.1540041068,"d":"386,675"}},{"$f":"($A25-$A24)/365.25*$D$1*(1+$D$2+(VLOOKUP('RE Appr'!CO32,'RE Appr'!$E$13:$J$59,6,FALSE)/100))","v":{"v":440668.1724845996,"d":"440,668"}},{"$f":"($A25-$A24)/365.25*$D$1*(1+$D$2+(VLOOKUP('RE Appr'!CP32,'RE Appr'!$E$13:$J$59,6,FALSE)/100))","v":{"v":421665.9736136933,"d":"421,666"}},{"$f":"($A25-$A24)/365.25*$D$1*(1+$D$2+(VLOOKUP('RE Appr'!CQ32,'RE Appr'!$E$13:$J$59,6,FALSE)/100))","v":{"v":418173.57973990415,"d":"418,174"}},{"$f":"($A25-$A24)/365.25*$D$1*(1+$D$2+(VLOOKUP('RE Appr'!CR32,'RE Appr'!$E$13:$J$59,6,FALSE)/100))","v":{"v":399326.4887063655,"d":"399,326"}},{"$f":"($A25-$A24)/365.25*$D$1*(1+$D$2+(VLOOKUP('RE Appr'!CS32,'RE Appr'!$E$13:$J$59,6,FALSE)/100))","v":{"v":415847.54106599226,"d":"415,848"}},{"$f":"($A25-$A24)/365.25*$D$1*(1+$D$2+(VLOOKUP('RE Appr'!CT32,'RE Appr'!$E$13:$J$59,6,FALSE)/100))","v":{"v":416694.59274469543,"d":"416,695"}},{"$f":"($A25-$A24)/365.25*$D$1*(1+$D$2+(VLOOKUP('RE Appr'!CU32,'RE Appr'!$E$13:$J$59,6,FALSE)/100))","v":{"v":399326.4887063655,"d":"399,326"}},{"$f":"($A25-$A24)/365.25*$D$1*(1+$D$2+(VLOOKUP('RE Appr'!CV32,'RE Appr'!$E$13:$J$59,6,FALSE)/100))","v":{"v":421665.9736136933,"d":"421,666"}},{"$f":"($A25-$A24)/365.25*$D$1*(1+$D$2+(VLOOKUP('RE Appr'!CW32,'RE Appr'!$E$13:$J$59,6,FALSE)/100))","v":{"v":416694.59274469543,"d":"416,695"}},{"$f":"($A25-$A24)/365.25*$D$1*(1+$D$2+(VLOOKUP('RE Appr'!CX32,'RE Appr'!$E$13:$J$59,6,FALSE)/100))","v":{"v":437040.65708418895,"d":"437,041"}},{"$f":"($A25-$A24)/365.25*$D$1*(1+$D$2+(VLOOKUP('RE Appr'!CY32,'RE Appr'!$E$13:$J$59,6,FALSE)/100))","v":{"v":455687.8850102669,"d":"455,688"}},{"$f":"($A25-$A24)/365.25*$D$1*(1+$D$2+(VLOOKUP('RE Appr'!CZ32,'RE Appr'!$E$13:$J$59,6,FALSE)/100))","v":{"v":435181.93018480495,"d":"435,182"}},{"$f":"($A25-$A24)/365.25*$D$1*(1+$D$2+(VLOOKUP('RE Appr'!DA32,'RE Appr'!$E$13:$J$59,6,FALSE)/100))","v":{"v":412517.453798768,"d":"412,517"}},{"$f":"($A25-$A24)/365.25*$D$1*(1+$D$2+(VLOOKUP('RE Appr'!DB32,'RE Appr'!$E$13:$J$59,6,FALSE)/100))","v":{"v":386675.1540041068,"d":"386,675"}},{"$f":"($A25-$A24)/365.25*$D$1*(1+$D$2+(VLOOKUP('RE Appr'!DC32,'RE Appr'!$E$13:$J$59,6,FALSE)/100))","v":{"v":383827.10472279263,"d":"383,827"}},{"$f":"($A25-$A24)/365.25*$D$1*(1+$D$2+(VLOOKUP('RE Appr'!DD32,'RE Appr'!$E$13:$J$59,6,FALSE)/100))","v":{"v":420192.19712525664,"d":"420,192"}},{"$f":"($A25-$A24)/365.25*$D$1*(1+$D$2+(VLOOKUP('RE Appr'!DE32,'RE Appr'!$E$13:$J$59,6,FALSE)/100))","v":{"v":441107.871321013,"d":"441,108"}},{"$f":"($A25-$A24)/365.25*$D$1*(1+$D$2+(VLOOKUP('RE Appr'!DF32,'RE Appr'!$E$13:$J$59,6,FALSE)/100))","v":{"v":412977.13894592744,"d":"412,977"}},{"$f":"($A25-$A24)/365.25*$D$1*(1+$D$2+(VLOOKUP('RE Appr'!DG32,'RE Appr'!$E$13:$J$59,6,FALSE)/100))","v":{"v":375602.7378507871,"d":"375,603"}}]
[{"$f":"Main!A28","v":"2043-12-31"},21,{"$nulls":3},{"$f":"($A26-$A25)/365.25*$D$1*(1+$D$2+(VLOOKUP('RE Appr'!L33,'RE Appr'!$E$13:$J$59,6,FALSE)/100))","v":{"v":420782.2587268994,"d":"420,782"}},{"$f":"($A26-$A25)/365.25*$D$1*(1+$D$2+(VLOOKUP('RE Appr'!M33,'RE Appr'!$E$13:$J$59,6,FALSE)/100))","v":{"v":416986.8493976799,"d":"416,987"}},{"$f":"($A26-$A25)/365.25*$D$1*(1+$D$2+(VLOOKUP('RE Appr'!N33,'RE Appr'!$E$13:$J$59,6,FALSE)/100))","v":{"v":420491.66324435314,"d":"420,492"}},{"$f":"($A26-$A25)/365.25*$D$1*(1+$D$2+(VLOOKUP('RE Appr'!O33,'RE Appr'!$E$13:$J$59,6,FALSE)/100))","v":{"v":422821.22285647056,"d":"422,821"}},{"$f":"($A26-$A25)/365.25*$D$1*(1+$D$2+(VLOOKUP('RE Appr'!P33,'RE Appr'!$E$13:$J$59,6,FALSE)/100))","v":{"v":471786.7761806981,"d":"471,787"}},{"$f":"($A26-$A25)/365.25*$D$1*(1+$D$2+(VLOOKUP('RE Appr'!Q33,'RE Appr'!$E$13:$J$59,6,FALSE)/100))","v":{"v":424910.71868583164,"d":"424,911"}},{"$f":"($A26-$A25)/365.25*$D$1*(1+$D$2+(VLOOKUP('RE Appr'!R33,'RE Appr'!$E$13:$J$59,6,FALSE)/100))","v":{"v":411853.9630390144,"d":"411,854"}},{"$f":"($A26-$A25)/365.25*$D$1*(1+$D$2+(VLOOKUP('RE Appr'!S33,'RE Appr'!$E$13:$J$59,6,FALSE)/100))","v":{"v":442737.24845995894,"d":"442,737"}},{"$f":"($A26-$A25)/365.25*$D$1*(1+$D$2+(VLOOKUP('RE Appr'!T33,'RE Appr'!$E$13:$J$59,6,FALSE)/100))","v":{"v":419061.4736334955,"d":"419,061"}},{"$f":"($A26-$A25)/365.25*$D$1*(1+$D$2+(VLOOKUP('RE Appr'!U33,'RE Appr'!$E$13:$J$59,6,FALSE)/100))","v":{"v":410390.9650924025,"d":"410,391"}},{"$f":"($A26-$A25)/365.25*$D$1*(1+$D$2+(VLOOKUP('RE Appr'!V33,'RE Appr'!$E$13:$J$59,6,FALSE)/100))","v":{"v":412174.62012320326,"d":"412,175"}},{"$f":"($A26-$A25)/365.25*$D$1*(1+$D$2+(VLOOKUP('RE Appr'!W33,'RE Appr'!$E$13:$J$59,6,FALSE)/100))","v":{"v":420438.5913143351,"d":"420,439"}},{"$f":"($A26-$A25)/365.25*$D$1*(1+$D$2+(VLOOKUP('RE Appr'!X33,'RE Appr'!$E$13:$J$59,6,FALSE)/100))","v":{"v":422821.22285647056,"d":"422,821"}},{"$f":"($A26-$A25)/365.25*$D$1*(1+$D$2+(VLOOKUP('RE Appr'!Y33,'RE Appr'!$E$13:$J$59,6,FALSE)/100))","v":{"v":419319.26078028744,"d":"419,319"}},{"$f":"($A26-$A25)/365.25*$D$1*(1+$D$2+(VLOOKUP('RE Appr'!Z33,'RE Appr'!$E$13:$J$59,6,FALSE)/100))","v":{"v":420692.0739219712,"d":"420,692"}},{"$f":"($A26-$A25)/365.25*$D$1*(1+$D$2+(VLOOKUP('RE Appr'!AA33,'RE Appr'!$E$13:$J$59,6,FALSE)/100))","v":{"v":408206.48870636546,"d":"408,206"}},{"$f":"($A26-$A25)/365.25*$D$1*(1+$D$2+(VLOOKUP('RE Appr'!AB33,'RE Appr'!$E$13:$J$59,6,FALSE)/100))","v":{"v":456936.3449691991,"d":"456,936"}},{"$f":"($A26-$A25)/365.25*$D$1*(1+$D$2+(VLOOKUP('RE Appr'!AC33,'RE Appr'!$E$13:$J$59,6,FALSE)/100))","v":{"v":427209.2230439196,"d":"427,209"}},{"$f":"($A26-$A25)/365.25*$D$1*(1+$D$2+(VLOOKUP('RE Appr'!AD33,'RE Appr'!$E$13:$J$59,6,FALSE)/100))","v":{"v":419061.4736334955,"d":"419,061"}},{"$f":"($A26-$A25)/365.25*$D$1*(1+$D$2+(VLOOKUP('RE Appr'!AE33,'RE Appr'!$E$13:$J$59,6,FALSE)/100))","v":{"v":417375.27720739215,"d":"417,375"}},{"$f":"($A26-$A25)/365.25*$D$1*(1+$D$2+(VLOOKUP('RE Appr'!AF33,'RE Appr'!$E$13:$J$59,6,FALSE)/100))","v":{"v":420782.2587268994,"d":"420,782"}},{"$f":"($A26-$A25)/365.25*$D$1*(1+$D$2+(VLOOKUP('RE Appr'!AG33,'RE Appr'!$E$13:$J$59,6,FALSE)/100))","v":{"v":421343.40862422995,"d":"421,343"}},{"$f":"($A26-$A25)/365.25*$D$1*(1+$D$2+(VLOOKUP('RE Appr'!AH33,'RE Appr'!$E$13:$J$59,6,FALSE)/100))","v":{"v":410390.9650924025,"d":"410,391"}},{"$f":"($A26-$A25)/365.25*$D$1*(1+$D$2+(VLOOKUP('RE Appr'!AI33,'RE Appr'!$E$13:$J$59,6,FALSE)/100))","v":{"v":400420.5338809035,"d":"400,421"}},{"$f":"($A26-$A25)/365.25*$D$1*(1+$D$2+(VLOOKUP('RE Appr'!AJ33,'RE Appr'!$E$13:$J$59,6,FALSE)/100))","v":{"v":419319.26078028744,"d":"419,319"}},{"$f":"($A26-$A25)/365.25*$D$1*(1+$D$2+(VLOOKUP('RE Appr'!AK33,'RE Appr'!$E$13:$J$59,6,FALSE)/100))","v":{"v":430492.15605749487,"d":"430,492"}},{"$f":"($A26-$A25)/365.25*$D$1*(1+$D$2+(VLOOKUP('RE Appr'!AL33,'RE Appr'!$E$13:$J$59,6,FALSE)/100))","v":{"v":402484.7638603696,"d":"402,485"}},{"$f":"($A26-$A25)/365.25*$D$1*(1+$D$2+(VLOOKUP('RE Appr'!AM33,'RE Appr'!$E$13:$J$59,6,FALSE)/100))","v":{"v":384878.68583162216,"d":"384,879"}},{"$f":"($A26-$A25)/365.25*$D$1*(1+$D$2+(VLOOKUP('RE Appr'!AN33,'RE Appr'!$E$13:$J$59,6,FALSE)/100))","v":{"v":419319.26078028744,"d":"419,319"}},{"$f":"($A26-$A25)/365.25*$D$1*(1+$D$2+(VLOOKUP('RE Appr'!AO33,'RE Appr'!$E$13:$J$59,6,FALSE)/100))","v":{"v":420782.2587268994,"d":"420,782"}},{"$f":"($A26-$A25)/365.25*$D$1*(1+$D$2+(VLOOKUP('RE Appr'!AP33,'RE Appr'!$E$13:$J$59,6,FALSE)/100))","v":{"v":411853.9630390144,"d":"411,854"}},{"$f":"($A26-$A25)/365.25*$D$1*(1+$D$2+(VLOOKUP('RE Appr'!AQ33,'RE Appr'!$E$13:$J$59,6,FALSE)/100))","v":{"v":416986.8493976799,"d":"416,987"}},{"$f":"($A26-$A25)/365.25*$D$1*(1+$D$2+(VLOOKUP('RE Appr'!AR33,'RE Appr'!$E$13:$J$59,6,FALSE)/100))","v":{"v":436965.42094455846,"d":"436,965"}},{"$f":"($A26-$A25)/365.25*$D$1*(1+$D$2+(VLOOKUP('RE Appr'!AS33,'RE Appr'!$E$13:$J$59,6,FALSE)/100))","v":{"v":411853.9630390144,"d":"411,854"}},{"$f":"($A26-$A25)/365.25*$D$1*(1+$D$2+(VLOOKUP('RE Appr'!AT33,'RE Appr'!$E$13:$J$59,6,FALSE)/100))","v":{"v":421343.40862422995,"d":"421,343"}},{"$f":"($A26-$A25)/365.25*$D$1*(1+$D$2+(VLOOKUP('RE Appr'!AU33,'RE Appr'!$E$13:$J$59,6,FALSE)/100))","v":{"v":432957.20739219716,"d":"432,957"}},{"$f":"($A26-$A25)/365.25*$D$1*(1+$D$2+(VLOOKUP('RE Appr'!AV33,'RE Appr'!$E$13:$J$59,6,FALSE)/100))","v":{"v":419319.26078028744,"d":"419,319"}},{"$f":"($A26-$A25)/365.25*$D$1*(1+$D$2+(VLOOKUP('RE Appr'!AW33,'RE Appr'!$E$13:$J$59,6,FALSE)/100))","v":{"v":384878.68583162216,"d":"384,879"}},{"$f":"($A26-$A25)/365.25*$D$1*(1+$D$2+(VLOOKUP('RE Appr'!AX33,'RE Appr'!$E$13:$J$59,6,FALSE)/100))","v":{"v":420438.5913143351,"d":"420,439"}},{"$f":"($A26-$A25)/365.25*$D$1*(1+$D$2+(VLOOKUP('RE Appr'!AY33,'RE Appr'!$E$13:$J$59,6,FALSE)/100))","v":{"v":420782.2587268994,"d":"420,782"}},{"$f":"($A26-$A25)/365.25*$D$1*(1+$D$2+(VLOOKUP('RE Appr'!AZ33,'RE Appr'!$E$13:$J$59,6,FALSE)/100))","v":{"v":436965.42094455846,"d":"436,965"}},{"$f":"($A26-$A25)/365.25*$D$1*(1+$D$2+(VLOOKUP('RE Appr'!BA33,'RE Appr'!$E$13:$J$59,6,FALSE)/100))","v":{"v":416182.8336755646,"d":"416,183"}},{"$f":"($A26-$A25)/365.25*$D$1*(1+$D$2+(VLOOKUP('RE Appr'!BB33,'RE Appr'!$E$13:$J$59,6,FALSE)/100))","v":{"v":408206.48870636546,"d":"408,206"}},{"$f":"($A26-$A25)/365.25*$D$1*(1+$D$2+(VLOOKUP('RE Appr'!BC33,'RE Appr'!$E$13:$J$59,6,FALSE)/100))","v":{"v":417375.27720739215,"d":"417,375"}},{"$f":"($A26-$A25)/365.25*$D$1*(1+$D$2+(VLOOKUP('RE Appr'!BD33,'RE Appr'!$E$13:$J$59,6,FALSE)/100))","v":{"v":384878.68583162216,"d":"384,879"}},{"$f":"($A26-$A25)/365.25*$D$1*(1+$D$2+(VLOOKUP('RE Appr'!BE33,'RE Appr'!$E$13:$J$59,6,FALSE)/100))","v":{"v":410390.9650924025,"d":"410,391"}},{"$f":"($A26-$A25)/365.25*$D$1*(1+$D$2+(VLOOKUP('RE Appr'!BF33,'RE Appr'!$E$13:$J$59,6,FALSE)/100))","v":{"v":435402.2176591376,"d":"435,402"}},{"$f":"($A26-$A25)/365.25*$D$1*(1+$D$2+(VLOOKUP('RE Appr'!BG33,'RE Appr'!$E$13:$J$59,6,FALSE)/100))","v":{"v":435402.2176591376,"d":"435,402"}},{"$f":"($A26-$A25)/365.25*$D$1*(1+$D$2+(VLOOKUP('RE Appr'!BH33,'RE Appr'!$E$13:$J$59,6,FALSE)/100))","v":{"v":435402.2176591376,"d":"435,402"}},{"$f":"($A26-$A25)/365.25*$D$1*(1+$D$2+(VLOOKUP('RE Appr'!BI33,'RE Appr'!$E$13:$J$59,6,FALSE)/100))","v":{"v":417375.27720739215,"d":"417,375"}},{"$f":"($A26-$A25)/365.25*$D$1*(1+$D$2+(VLOOKUP('RE Appr'!BJ33,'RE Appr'!$E$13:$J$59,6,FALSE)/100))","v":{"v":441875.4825462012,"d":"441,875"}},{"$f":"($A26-$A25)/365.25*$D$1*(1+$D$2+(VLOOKUP('RE Appr'!BK33,'RE Appr'!$E$13:$J$59,6,FALSE)/100))","v":{"v":413767.8850102669,"d":"413,768"}},{"$f":"($A26-$A25)/365.25*$D$1*(1+$D$2+(VLOOKUP('RE Appr'!BL33,'RE Appr'!$E$13:$J$59,6,FALSE)/100))","v":{"v":376631.7864476386,"d":"376,632"}},{"$f":"($A26-$A25)/365.25*$D$1*(1+$D$2+(VLOOKUP('RE Appr'!BM33,'RE Appr'!$E$13:$J$59,6,FALSE)/100))","v":{"v":402484.7638603696,"d":"402,485"}},{"$f":"($A26-$A25)/365.25*$D$1*(1+$D$2+(VLOOKUP('RE Appr'!BN33,'RE Appr'!$E$13:$J$59,6,FALSE)/100))","v":{"v":402484.7638603696,"d":"402,485"}},{"$f":"($A26-$A25)/365.25*$D$1*(1+$D$2+(VLOOKUP('RE Appr'!BO33,'RE Appr'!$E$13:$J$59,6,FALSE)/100))","v":{"v":418798.1930184805,"d":"418,798"}},{"$f":"($A26-$A25)/365.25*$D$1*(1+$D$2+(VLOOKUP('RE Appr'!BP33,'RE Appr'!$E$13:$J$59,6,FALSE)/100))","v":{"v":415982.4229979466,"d":"415,982"}},{"$f":"($A26-$A25)/365.25*$D$1*(1+$D$2+(VLOOKUP('RE Appr'!BQ33,'RE Appr'!$E$13:$J$59,6,FALSE)/100))","v":{"v":419319.26078028744,"d":"419,319"}},{"$f":"($A26-$A25)/365.25*$D$1*(1+$D$2+(VLOOKUP('RE Appr'!BR33,'RE Appr'!$E$13:$J$59,6,FALSE)/100))","v":{"v":419981.34954829706,"d":"419,981"}},{"$f":"($A26-$A25)/365.25*$D$1*(1+$D$2+(VLOOKUP('RE Appr'!BS33,'RE Appr'!$E$13:$J$59,6,FALSE)/100))","v":{"v":452254.75154004106,"d":"452,255"}},{"$f":"($A26-$A25)/365.25*$D$1*(1+$D$2+(VLOOKUP('RE Appr'!BT33,'RE Appr'!$E$13:$J$59,6,FALSE)/100))","v":{"v":414108.58316221763,"d":"414,109"}},{"$f":"($A26-$A25)/365.25*$D$1*(1+$D$2+(VLOOKUP('RE Appr'!BU33,'RE Appr'!$E$13:$J$59,6,FALSE)/100))","v":{"v":441875.4825462012,"d":"441,875"}},{"$f":"($A26-$A25)/365.25*$D$1*(1+$D$2+(VLOOKUP('RE Appr'!BV33,'RE Appr'!$E$13:$J$59,6,FALSE)/100))","v":{"v":430492.15605749487,"d":"430,492"}},{"$f":"($A26-$A25)/365.25*$D$1*(1+$D$2+(VLOOKUP('RE Appr'!BW33,'RE Appr'!$E$13:$J$59,6,FALSE)/100))","v":{"v":471786.7761806981,"d":"471,787"}},{"$f":"($A26-$A25)/365.25*$D$1*(1+$D$2+(VLOOKUP('RE Appr'!BX33,'RE Appr'!$E$13:$J$59,6,FALSE)/100))","v":{"v":436374.2094455852,"d":"436,374"}},{"$f":"($A26-$A25)/365.25*$D$1*(1+$D$2+(VLOOKUP('RE Appr'!BY33,'RE Appr'!$E$13:$J$59,6,FALSE)/100))","v":{"v":410390.9650924025,"d":"410,391"}},{"$f":"($A26-$A25)/365.25*$D$1*(1+$D$2+(VLOOKUP('RE Appr'!BZ33,'RE Appr'!$E$13:$J$59,6,FALSE)/100))","v":{"v":417836.22176591377,"d":"417,836"}},{"$f":"($A26-$A25)/365.25*$D$1*(1+$D$2+(VLOOKUP('RE Appr'!CA33,'RE Appr'!$E$13:$J$59,6,FALSE)/100))","v":{"v":410390.9650924025,"d":"410,391"}},{"$f":"($A26-$A25)/365.25*$D$1*(1+$D$2+(VLOOKUP('RE Appr'!CB33,'RE Appr'!$E$13:$J$59,6,FALSE)/100))","v":{"v":414108.58316221763,"d":"414,109"}},{"$f":"($A26-$A25)/365.25*$D$1*(1+$D$2+(VLOOKUP('RE Appr'!CC33,'RE Appr'!$E$13:$J$59,6,FALSE)/100))","v":{"v":471786.7761806981,"d":"471,787"}},{"$f":"($A26-$A25)/365.25*$D$1*(1+$D$2+(VLOOKUP('RE Appr'!CD33,'RE Appr'!$E$13:$J$59,6,FALSE)/100))","v":{"v":442737.24845995894,"d":"442,737"}},{"$f":"($A26-$A25)/365.25*$D$1*(1+$D$2+(VLOOKUP('RE Appr'!CE33,'RE Appr'!$E$13:$J$59,6,FALSE)/100))","v":{"v":416423.3264887064,"d":"416,423"}},{"$f":"($A26-$A25)/365.25*$D$1*(1+$D$2+(VLOOKUP('RE Appr'!CF33,'RE Appr'!$E$13:$J$59,6,FALSE)/100))","v":{"v":441875.4825462012,"d":"441,875"}},{"$f":"($A26-$A25)/365.25*$D$1*(1+$D$2+(VLOOKUP('RE Appr'!CG33,'RE Appr'!$E$13:$J$59,6,FALSE)/100))","v":{"v":413647.6386036961,"d":"413,648"}},{"$f":"($A26-$A25)/365.25*$D$1*(1+$D$2+(VLOOKUP('RE Appr'!CH33,'RE Appr'!$E$13:$J$59,6,FALSE)/100))","v":{"v":436374.2094455852,"d":"436,374"}},{"$f":"($A26-$A25)/365.25*$D$1*(1+$D$2+(VLOOKUP('RE Appr'!CI33,'RE Appr'!$E$13:$J$59,6,FALSE)/100))","v":{"v":376631.7864476386,"d":"376,632"}},{"$f":"($A26-$A25)/365.25*$D$1*(1+$D$2+(VLOOKUP('RE Appr'!CJ33,'RE Appr'!$E$13:$J$59,6,FALSE)/100))","v":{"v":420491.66324435314,"d":"420,492"}},{"$f":"($A26-$A25)/365.25*$D$1*(1+$D$2+(VLOOKUP('RE Appr'!CK33,'RE Appr'!$E$13:$J$59,6,FALSE)/100))","v":{"v":420782.2587268994,"d":"420,782"}},{"$f":"($A26-$A25)/365.25*$D$1*(1+$D$2+(VLOOKUP('RE Appr'!CL33,'RE Appr'!$E$13:$J$59,6,FALSE)/100))","v":{"v":420438.5913143351,"d":"420,439"}},{"$f":"($A26-$A25)/365.25*$D$1*(1+$D$2+(VLOOKUP('RE Appr'!CM33,'RE Appr'!$E$13:$J$59,6,FALSE)/100))","v":{"v":421343.40862422995,"d":"421,343"}},{"$f":"($A26-$A25)/365.25*$D$1*(1+$D$2+(VLOOKUP('RE Appr'!CN33,'RE Appr'!$E$13:$J$59,6,FALSE)/100))","v":{"v":400420.5338809035,"d":"400,421"}},{"$f":"($A26-$A25)/365.25*$D$1*(1+$D$2+(VLOOKUP('RE Appr'!CO33,'RE Appr'!$E$13:$J$59,6,FALSE)/100))","v":{"v":424910.71868583164,"d":"424,911"}},{"$f":"($A26-$A25)/365.25*$D$1*(1+$D$2+(VLOOKUP('RE Appr'!CP33,'RE Appr'!$E$13:$J$59,6,FALSE)/100))","v":{"v":408206.48870636546,"d":"408,206"}},{"$f":"($A26-$A25)/365.25*$D$1*(1+$D$2+(VLOOKUP('RE Appr'!CQ33,'RE Appr'!$E$13:$J$59,6,FALSE)/100))","v":{"v":416986.8493976799,"d":"416,987"}},{"$f":"($A26-$A25)/365.25*$D$1*(1+$D$2+(VLOOKUP('RE Appr'!CR33,'RE Appr'!$E$13:$J$59,6,FALSE)/100))","v":{"v":442316.386036961,"d":"442,316"}},{"$f":"($A26-$A25)/365.25*$D$1*(1+$D$2+(VLOOKUP('RE Appr'!CS33,'RE Appr'!$E$13:$J$59,6,FALSE)/100))","v":{"v":408206.48870636546,"d":"408,206"}},{"$f":"($A26-$A25)/365.25*$D$1*(1+$D$2+(VLOOKUP('RE Appr'!CT33,'RE Appr'!$E$13:$J$59,6,FALSE)/100))","v":{"v":415982.4229979466,"d":"415,982"}},{"$f":"($A26-$A25)/365.25*$D$1*(1+$D$2+(VLOOKUP('RE Appr'!CU33,'RE Appr'!$E$13:$J$59,6,FALSE)/100))","v":{"v":419319.26078028744,"d":"419,319"}},{"$f":"($A26-$A25)/365.25*$D$1*(1+$D$2+(VLOOKUP('RE Appr'!CV33,'RE Appr'!$E$13:$J$59,6,FALSE)/100))","v":{"v":438037.6180698152,"d":"438,038"}},{"$f":"($A26-$A25)/365.25*$D$1*(1+$D$2+(VLOOKUP('RE Appr'!CW33,'RE Appr'!$E$13:$J$59,6,FALSE)/100))","v":{"v":419319.26078028744,"d":"419,319"}},{"$f":"($A26-$A25)/365.25*$D$1*(1+$D$2+(VLOOKUP('RE Appr'!CX33,'RE Appr'!$E$13:$J$59,6,FALSE)/100))","v":{"v":416423.3264887064,"d":"416,423"}},{"$f":"($A26-$A25)/365.25*$D$1*(1+$D$2+(VLOOKUP('RE Appr'!CY33,'RE Appr'!$E$13:$J$59,6,FALSE)/100))","v":{"v":413407.1457905544,"d":"413,407"}},{"$f":"($A26-$A25)/365.25*$D$1*(1+$D$2+(VLOOKUP('RE Appr'!CZ33,'RE Appr'!$E$13:$J$59,6,FALSE)/100))","v":{"v":413407.1457905544,"d":"413,407"}},{"$f":"($A26-$A25)/365.25*$D$1*(1+$D$2+(VLOOKUP('RE Appr'!DA33,'RE Appr'!$E$13:$J$59,6,FALSE)/100))","v":{"v":417375.27720739215,"d":"417,375"}},{"$f":"($A26-$A25)/365.25*$D$1*(1+$D$2+(VLOOKUP('RE Appr'!DB33,'RE Appr'!$E$13:$J$59,6,FALSE)/100))","v":{"v":452254.75154004106,"d":"452,255"}},{"$f":"($A26-$A25)/365.25*$D$1*(1+$D$2+(VLOOKUP('RE Appr'!DC33,'RE Appr'!$E$13:$J$59,6,FALSE)/100))","v":{"v":418798.1930184805,"d":"418,798"}},{"$f":"($A26-$A25)/365.25*$D$1*(1+$D$2+(VLOOKUP('RE Appr'!DD33,'RE Appr'!$E$13:$J$59,6,FALSE)/100))","v":{"v":452254.75154004106,"d":"452,255"}},{"$f":"($A26-$A25)/365.25*$D$1*(1+$D$2+(VLOOKUP('RE Appr'!DE33,'RE Appr'!$E$13:$J$59,6,FALSE)/100))","v":{"v":416986.8493976799,"d":"416,987"}},{"$f":"($A26-$A25)/365.25*$D$1*(1+$D$2+(VLOOKUP('RE Appr'!DF33,'RE Appr'!$E$13:$J$59,6,FALSE)/100))","v":{"v":419981.34954829706,"d":"419,981"}},{"$f":"($A26-$A25)/365.25*$D$1*(1+$D$2+(VLOOKUP('RE Appr'!DG33,'RE Appr'!$E$13:$J$59,6,FALSE)/100))","v":{"v":415982.4229979466,"d":"415,982"}}]
[{"$f":"Main!A29","v":"2044-12-30"},22,{"$nulls":3},{"$f":"($A27-$A26)/365.25*$D$1*(1+$D$2+(VLOOKUP('RE Appr'!L34,'RE Appr'!$E$13:$J$59,6,FALSE)/100))","v":{"v":418833.85952220886,"d":"418,834"}},{"$f":"($A27-$A26)/365.25*$D$1*(1+$D$2+(VLOOKUP('RE Appr'!M34,'RE Appr'!$E$13:$J$59,6,FALSE)/100))","v":{"v":418173.57973990415,"d":"418,174"}},{"$f":"($A27-$A26)/365.25*$D$1*(1+$D$2+(VLOOKUP('RE Appr'!N34,'RE Appr'!$E$13:$J$59,6,FALSE)/100))","v":{"v":411048.45995893225,"d":"411,048"}},{"$f":"($A27-$A26)/365.25*$D$1*(1+$D$2+(VLOOKUP('RE Appr'!O34,'RE Appr'!$E$13:$J$59,6,FALSE)/100))","v":{"v":415285.5578370979,"d":"415,286"}},{"$f":"($A27-$A26)/365.25*$D$1*(1+$D$2+(VLOOKUP('RE Appr'!P34,'RE Appr'!$E$13:$J$59,6,FALSE)/100))","v":{"v":415847.54106599226,"d":"415,848"}},{"$f":"($A27-$A26)/365.25*$D$1*(1+$D$2+(VLOOKUP('RE Appr'!Q34,'RE Appr'!$E$13:$J$59,6,FALSE)/100))","v":{"v":419342.77891854895,"d":"419,343"}},{"$f":"($A27-$A26)/365.25*$D$1*(1+$D$2+(VLOOKUP('RE Appr'!R34,'RE Appr'!$E$13:$J$59,6,FALSE)/100))","v":{"v":437040.65708418895,"d":"437,041"}},{"$f":"($A27-$A26)/365.25*$D$1*(1+$D$2+(VLOOKUP('RE Appr'!S34,'RE Appr'!$E$13:$J$59,6,FALSE)/100))","v":{"v":383827.10472279263,"d":"383,827"}},{"$f":"($A27-$A26)/365.25*$D$1*(1+$D$2+(VLOOKUP('RE Appr'!T34,'RE Appr'!$E$13:$J$59,6,FALSE)/100))","v":{"v":414845.85900068446,"d":"414,846"}},{"$f":"($A27-$A26)/365.25*$D$1*(1+$D$2+(VLOOKUP('RE Appr'!U34,'RE Appr'!$E$13:$J$59,6,FALSE)/100))","v":{"v":426041.984729592,"d":"426,042"}},{"$f":"($A27-$A26)/365.25*$D$1*(1+$D$2+(VLOOKUP('RE Appr'!V34,'RE Appr'!$E$13:$J$59,6,FALSE)/100))","v":{"v":417916.4969295789,"d":"417,916"}},{"$f":"($A27-$A26)/365.25*$D$1*(1+$D$2+(VLOOKUP('RE Appr'!W34,'RE Appr'!$E$13:$J$59,6,FALSE)/100))","v":{"v":415285.5578370979,"d":"415,286"}},{"$f":"($A27-$A26)/365.25*$D$1*(1+$D$2+(VLOOKUP('RE Appr'!X34,'RE Appr'!$E$13:$J$59,6,FALSE)/100))","v":{"v":418833.85952220886,"d":"418,834"}},{"$f":"($A27-$A26)/365.25*$D$1*(1+$D$2+(VLOOKUP('RE Appr'!Y34,'RE Appr'!$E$13:$J$59,6,FALSE)/100))","v":{"v":418833.85952220886,"d":"418,834"}},{"$f":"($A27-$A26)/365.25*$D$1*(1+$D$2+(VLOOKUP('RE Appr'!Z34,'RE Appr'!$E$13:$J$59,6,FALSE)/100))","v":{"v":418173.57973990415,"d":"418,174"}},{"$f":"($A27-$A26)/365.25*$D$1*(1+$D$2+(VLOOKUP('RE Appr'!AA34,'RE Appr'!$E$13:$J$59,6,FALSE)/100))","v":{"v":383827.10472279263,"d":"383,827"}},{"$f":"($A27-$A26)/365.25*$D$1*(1+$D$2+(VLOOKUP('RE Appr'!AB34,'RE Appr'!$E$13:$J$59,6,FALSE)/100))","v":{"v":436840.79397672834,"d":"436,841"}},{"$f":"($A27-$A26)/365.25*$D$1*(1+$D$2+(VLOOKUP('RE Appr'!AC34,'RE Appr'!$E$13:$J$59,6,FALSE)/100))","v":{"v":441527.5838466804,"d":"441,528"}},{"$f":"($A27-$A26)/365.25*$D$1*(1+$D$2+(VLOOKUP('RE Appr'!AD34,'RE Appr'!$E$13:$J$59,6,FALSE)/100))","v":{"v":399326.4887063655,"d":"399,326"}},{"$f":"($A27-$A26)/365.25*$D$1*(1+$D$2+(VLOOKUP('RE Appr'!AE34,'RE Appr'!$E$13:$J$59,6,FALSE)/100))","v":{"v":416234.9075975359,"d":"416,235"}},{"$f":"($A27-$A26)/365.25*$D$1*(1+$D$2+(VLOOKUP('RE Appr'!AF34,'RE Appr'!$E$13:$J$59,6,FALSE)/100))","v":{"v":422510.60917180014,"d":"422,511"}},{"$f":"($A27-$A26)/365.25*$D$1*(1+$D$2+(VLOOKUP('RE Appr'!AG34,'RE Appr'!$E$13:$J$59,6,FALSE)/100))","v":{"v":375602.7378507871,"d":"375,603"}},{"$f":"($A27-$A26)/365.25*$D$1*(1+$D$2+(VLOOKUP('RE Appr'!AH34,'RE Appr'!$E$13:$J$59,6,FALSE)/100))","v":{"v":412637.3716632444,"d":"412,637"}},{"$f":"($A27-$A26)/365.25*$D$1*(1+$D$2+(VLOOKUP('RE Appr'!AI34,'RE Appr'!$E$13:$J$59,6,FALSE)/100))","v":{"v":412517.453798768,"d":"412,517"}},{"$f":"($A27-$A26)/365.25*$D$1*(1+$D$2+(VLOOKUP('RE Appr'!AJ34,'RE Appr'!$E$13:$J$59,6,FALSE)/100))","v":{"v":441107.871321013,"d":"441,108"}},{"$f":"($A27-$A26)/365.25*$D$1*(1+$D$2+(VLOOKUP('RE Appr'!AK34,'RE Appr'!$E$13:$J$59,6,FALSE)/100))","v":{"v":451019.08281998633,"d":"451,019"}},{"$f":"($A27-$A26)/365.25*$D$1*(1+$D$2+(VLOOKUP('RE Appr'!AL34,'RE Appr'!$E$13:$J$59,6,FALSE)/100))","v":{"v":437040.65708418895,"d":"437,041"}},{"$f":"($A27-$A26)/365.25*$D$1*(1+$D$2+(VLOOKUP('RE Appr'!AM34,'RE Appr'!$E$13:$J$59,6,FALSE)/100))","v":{"v":419632.5804243669,"d":"419,633"}},{"$f":"($A27-$A26)/365.25*$D$1*(1+$D$2+(VLOOKUP('RE Appr'!AN34,'RE Appr'!$E$13:$J$59,6,FALSE)/100))","v":{"v":434212.5941136209,"d":"434,213"}},{"$f":"($A27-$A26)/365.25*$D$1*(1+$D$2+(VLOOKUP('RE Appr'!AO34,'RE Appr'!$E$13:$J$59,6,FALSE)/100))","v":{"v":420192.19712525664,"d":"420,192"}},{"$f":"($A27-$A26)/365.25*$D$1*(1+$D$2+(VLOOKUP('RE Appr'!AP34,'RE Appr'!$E$13:$J$59,6,FALSE)/100))","v":{"v":411048.45995893225,"d":"411,048"}},{"$f":"($A27-$A26)/365.25*$D$1*(1+$D$2+(VLOOKUP('RE Appr'!AQ34,'RE Appr'!$E$13:$J$59,6,FALSE)/100))","v":{"v":399326.4887063655,"d":"399,326"}},{"$f":"($A27-$A26)/365.25*$D$1*(1+$D$2+(VLOOKUP('RE Appr'!AR34,'RE Appr'!$E$13:$J$59,6,FALSE)/100))","v":{"v":419289.85199380416,"d":"419,290"}},{"$f":"($A27-$A26)/365.25*$D$1*(1+$D$2+(VLOOKUP('RE Appr'!AS34,'RE Appr'!$E$13:$J$59,6,FALSE)/100))","v":{"v":423749.76043805614,"d":"423,750"}},{"$f":"($A27-$A26)/365.25*$D$1*(1+$D$2+(VLOOKUP('RE Appr'!AT34,'RE Appr'!$E$13:$J$59,6,FALSE)/100))","v":{"v":455687.8850102669,"d":"455,688"}},{"$f":"($A27-$A26)/365.25*$D$1*(1+$D$2+(VLOOKUP('RE Appr'!AU34,'RE Appr'!$E$13:$J$59,6,FALSE)/100))","v":{"v":418173.57973990415,"d":"418,174"}},{"$f":"($A27-$A26)/365.25*$D$1*(1+$D$2+(VLOOKUP('RE Appr'!AV34,'RE Appr'!$E$13:$J$59,6,FALSE)/100))","v":{"v":412517.453798768,"d":"412,517"}},{"$f":"($A27-$A26)/365.25*$D$1*(1+$D$2+(VLOOKUP('RE Appr'!AW34,'RE Appr'!$E$13:$J$59,6,FALSE)/100))","v":{"v":470497.7412731006,"d":"470,498"}},{"$f":"($A27-$A26)/365.25*$D$1*(1+$D$2+(VLOOKUP('RE Appr'!AX34,'RE Appr'!$E$13:$J$59,6,FALSE)/100))","v":{"v":411048.45995893225,"d":"411,048"}},{"$f":"($A27-$A26)/365.25*$D$1*(1+$D$2+(VLOOKUP('RE Appr'!AY34,'RE Appr'!$E$13:$J$59,6,FALSE)/100))","v":{"v":417916.4969295789,"d":"417,916"}},{"$f":"($A27-$A26)/365.25*$D$1*(1+$D$2+(VLOOKUP('RE Appr'!AZ34,'RE Appr'!$E$13:$J$59,6,FALSE)/100))","v":{"v":419289.85199380416,"d":"419,290"}},{"$f":"($A27-$A26)/365.25*$D$1*(1+$D$2+(VLOOKUP('RE Appr'!BA34,'RE Appr'!$E$13:$J$59,6,FALSE)/100))","v":{"v":441107.871321013,"d":"441,108"}},{"$f":"($A27-$A26)/365.25*$D$1*(1+$D$2+(VLOOKUP('RE Appr'!BB34,'RE Appr'!$E$13:$J$59,6,FALSE)/100))","v":{"v":411048.45995893225,"d":"411,048"}},{"$f":"($A27-$A26)/365.25*$D$1*(1+$D$2+(VLOOKUP('RE Appr'!BC34,'RE Appr'!$E$13:$J$59,6,FALSE)/100))","v":{"v":411048.45995893225,"d":"411,048"}},{"$f":"($A27-$A26)/365.25*$D$1*(1+$D$2+(VLOOKUP('RE Appr'!BD34,'RE Appr'!$E$13:$J$59,6,FALSE)/100))","v":{"v":429315.94798083504,"d":"429,316"}},{"$f":"($A27-$A26)/365.25*$D$1*(1+$D$2+(VLOOKUP('RE Appr'!BE34,'RE Appr'!$E$13:$J$59,6,FALSE)/100))","v":{"v":423749.76043805614,"d":"423,750"}},{"$f":"($A27-$A26)/365.25*$D$1*(1+$D$2+(VLOOKUP('RE Appr'!BF34,'RE Appr'!$E$13:$J$59,6,FALSE)/100))","v":{"v":414845.85900068446,"d":"414,846"}},{"$f":"($A27-$A26)/365.25*$D$1*(1+$D$2+(VLOOKUP('RE Appr'!BG34,'RE Appr'!$E$13:$J$59,6,FALSE)/100))","v":{"v":435771.5263518138,"d":"435,772"}},{"$f":"($A27-$A26)/365.25*$D$1*(1+$D$2+(VLOOKUP('RE Appr'!BH34,'RE Appr'!$E$13:$J$59,6,FALSE)/100))","v":{"v":431774.264202601,"d":"431,774"}},{"$f":"($A27-$A26)/365.25*$D$1*(1+$D$2+(VLOOKUP('RE Appr'!BI34,'RE Appr'!$E$13:$J$59,6,FALSE)/100))","v":{"v":451019.08281998633,"d":"451,019"}},{"$f":"($A27-$A26)/365.25*$D$1*(1+$D$2+(VLOOKUP('RE Appr'!BJ34,'RE Appr'!$E$13:$J$59,6,FALSE)/100))","v":{"v":412517.453798768,"d":"412,517"}},{"$f":"($A27-$A26)/365.25*$D$1*(1+$D$2+(VLOOKUP('RE Appr'!BK34,'RE Appr'!$E$13:$J$59,6,FALSE)/100))","v":{"v":423749.76043805614,"d":"423,750"}},{"$f":"($A27-$A26)/365.25*$D$1*(1+$D$2+(VLOOKUP('RE Appr'!BL34,'RE Appr'!$E$13:$J$59,6,FALSE)/100))","v":{"v":412637.3716632444,"d":"412,637"}},{"$f":"($A27-$A26)/365.25*$D$1*(1+$D$2+(VLOOKUP('RE Appr'!BM34,'RE Appr'!$E$13:$J$59,6,FALSE)/100))","v":{"v":419342.77891854895,"d":"419,343"}},{"$f":"($A27-$A26)/365.25*$D$1*(1+$D$2+(VLOOKUP('RE Appr'!BN34,'RE Appr'!$E$13:$J$59,6,FALSE)/100))","v":{"v":422510.60917180014,"d":"422,511"}},{"$f":"($A27-$A26)/365.25*$D$1*(1+$D$2+(VLOOKUP('RE Appr'!BO34,'RE Appr'!$E$13:$J$59,6,FALSE)/100))","v":{"v":409269.6783025325,"d":"409,270"}},{"$f":"($A27-$A26)/365.25*$D$1*(1+$D$2+(VLOOKUP('RE Appr'!BP34,'RE Appr'!$E$13:$J$59,6,FALSE)/100))","v":{"v":386675.1540041068,"d":"386,675"}},{"$f":"($A27-$A26)/365.25*$D$1*(1+$D$2+(VLOOKUP('RE Appr'!BQ34,'RE Appr'!$E$13:$J$59,6,FALSE)/100))","v":{"v":441107.871321013,"d":"441,108"}},{"$f":"($A27-$A26)/365.25*$D$1*(1+$D$2+(VLOOKUP('RE Appr'!BR34,'RE Appr'!$E$13:$J$59,6,FALSE)/100))","v":{"v":423749.76043805614,"d":"423,750"}},{"$f":"($A27-$A26)/365.25*$D$1*(1+$D$2+(VLOOKUP('RE Appr'!BS34,'RE Appr'!$E$13:$J$59,6,FALSE)/100))","v":{"v":416234.9075975359,"d":"416,235"}},{"$f":"($A27-$A26)/365.25*$D$1*(1+$D$2+(VLOOKUP('RE Appr'!BT34,'RE Appr'!$E$13:$J$59,6,FALSE)/100))","v":{"v":386675.1540041068,"d":"386,675"}},{"$f":"($A27-$A26)/365.25*$D$1*(1+$D$2+(VLOOKUP('RE Appr'!BU34,'RE Appr'!$E$13:$J$59,6,FALSE)/100))","v":{"v":426041.984729592,"d":"426,042"}},{"$f":"($A27-$A26)/365.25*$D$1*(1+$D$2+(VLOOKUP('RE Appr'!BV34,'RE Appr'!$E$13:$J$59,6,FALSE)/100))","v":{"v":422510.60917180014,"d":"422,511"}},{"$f":"($A27-$A26)/365.25*$D$1*(1+$D$2+(VLOOKUP('RE Appr'!BW34,'RE Appr'!$E$13:$J$59,6,FALSE)/100))","v":{"v":470497.7412731006,"d":"470,498"}},{"$f":"($A27-$A26)/365.25*$D$1*(1+$D$2+(VLOOKUP('RE Appr'!BX34,'RE Appr'!$E$13:$J$59,6,FALSE)/100))","v":{"v":409269.6783025325,"d":"409,270"}},{"$f":"($A27-$A26)/365.25*$D$1*(1+$D$2+(VLOOKUP('RE Appr'!BY34,'RE Appr'!$E$13:$J$59,6,FALSE)/100))","v":{"v":410728.67898699525,"d":"410,729"}},{"$f":"($A27-$A26)/365.25*$D$1*(1+$D$2+(VLOOKUP('RE Appr'!BZ34,'RE Appr'!$E$13:$J$59,6,FALSE)/100))","v":{"v":412277.6180698152,"d":"412,278"}},{"$f":"($A27-$A26)/365.25*$D$1*(1+$D$2+(VLOOKUP('RE Appr'!CA34,'RE Appr'!$E$13:$J$59,6,FALSE)/100))","v":{"v":418833.85952220886,"d":"418,834"}},{"$f":"($A27-$A26)/365.25*$D$1*(1+$D$2+(VLOOKUP('RE Appr'!CB34,'RE Appr'!$E$13:$J$59,6,FALSE)/100))","v":{"v":409269.6783025325,"d":"409,270"}},{"$f":"($A27-$A26)/365.25*$D$1*(1+$D$2+(VLOOKUP('RE Appr'!CC34,'RE Appr'!$E$13:$J$59,6,FALSE)/100))","v":{"v":421665.9736136933,"d":"421,666"}},{"$f":"($A27-$A26)/365.25*$D$1*(1+$D$2+(VLOOKUP('RE Appr'!CD34,'RE Appr'!$E$13:$J$59,6,FALSE)/100))","v":{"v":383827.10472279263,"d":"383,827"}},{"$f":"($A27-$A26)/365.25*$D$1*(1+$D$2+(VLOOKUP('RE Appr'!CE34,'RE Appr'!$E$13:$J$59,6,FALSE)/100))","v":{"v":420192.19712525664,"d":"420,192"}},{"$f":"($A27-$A26)/365.25*$D$1*(1+$D$2+(VLOOKUP('RE Appr'!CF34,'RE Appr'!$E$13:$J$59,6,FALSE)/100))","v":{"v":441527.5838466804,"d":"441,528"}},{"$f":"($A27-$A26)/365.25*$D$1*(1+$D$2+(VLOOKUP('RE Appr'!CG34,'RE Appr'!$E$13:$J$59,6,FALSE)/100))","v":{"v":435771.5263518138,"d":"435,772"}},{"$f":"($A27-$A26)/365.25*$D$1*(1+$D$2+(VLOOKUP('RE Appr'!CH34,'RE Appr'!$E$13:$J$59,6,FALSE)/100))","v":{"v":470497.7412731006,"d":"470,498"}},{"$f":"($A27-$A26)/365.25*$D$1*(1+$D$2+(VLOOKUP('RE Appr'!CI34,'RE Appr'!$E$13:$J$59,6,FALSE)/100))","v":{"v":412277.6180698152,"d":"412,278"}},{"$f":"($A27-$A26)/365.25*$D$1*(1+$D$2+(VLOOKUP('RE Appr'!CJ34,'RE Appr'!$E$13:$J$59,6,FALSE)/100))","v":{"v":434212.5941136209,"d":"434,213"}},{"$f":"($A27-$A26)/365.25*$D$1*(1+$D$2+(VLOOKUP('RE Appr'!CK34,'RE Appr'!$E$13:$J$59,6,FALSE)/100))","v":{"v":441107.871321013,"d":"441,108"}},{"$f":"($A27-$A26)/365.25*$D$1*(1+$D$2+(VLOOKUP('RE Appr'!CL34,'RE Appr'!$E$13:$J$59,6,FALSE)/100))","v":{"v":423729.77412731,"d":"423,730"}},{"$f":"($A27-$A26)/365.25*$D$1*(1+$D$2+(VLOOKUP('RE Appr'!CM34,'RE Appr'!$E$13:$J$59,6,FALSE)/100))","v":{"v":419289.85199380416,"d":"419,290"}},{"$f":"($A27-$A26)/365.25*$D$1*(1+$D$2+(VLOOKUP('RE Appr'!CN34,'RE Appr'!$E$13:$J$59,6,FALSE)/100))","v":{"v":416694.59274469543,"d":"416,695"}},{"$f":"($A27-$A26)/365.25*$D$1*(1+$D$2+(VLOOKUP('RE Appr'!CO34,'RE Appr'!$E$13:$J$59,6,FALSE)/100))","v":{"v":470497.7412731006,"d":"470,498"}},{"$f":"($A27-$A26)/365.25*$D$1*(1+$D$2+(VLOOKUP('RE Appr'!CP34,'RE Appr'!$E$13:$J$59,6,FALSE)/100))","v":{"v":411048.45995893225,"d":"411,048"}},{"$f":"($A27-$A26)/365.25*$D$1*(1+$D$2+(VLOOKUP('RE Appr'!CQ34,'RE Appr'!$E$13:$J$59,6,FALSE)/100))","v":{"v":470497.7412731006,"d":"470,498"}},{"$f":"($A27-$A26)/365.25*$D$1*(1+$D$2+(VLOOKUP('RE Appr'!CR34,'RE Appr'!$E$13:$J$59,6,FALSE)/100))","v":{"v":375602.7378507871,"d":"375,603"}},{"$f":"($A27-$A26)/365.25*$D$1*(1+$D$2+(VLOOKUP('RE Appr'!CS34,'RE Appr'!$E$13:$J$59,6,FALSE)/100))","v":{"v":470497.7412731006,"d":"470,498"}},{"$f":"($A27-$A26)/365.25*$D$1*(1+$D$2+(VLOOKUP('RE Appr'!CT34,'RE Appr'!$E$13:$J$59,6,FALSE)/100))","v":{"v":414845.85900068446,"d":"414,846"}},{"$f":"($A27-$A26)/365.25*$D$1*(1+$D$2+(VLOOKUP('RE Appr'!CU34,'RE Appr'!$E$13:$J$59,6,FALSE)/100))","v":{"v":411048.45995893225,"d":"411,048"}},{"$f":"($A27-$A26)/365.25*$D$1*(1+$D$2+(VLOOKUP('RE Appr'!CV34,'RE Appr'!$E$13:$J$59,6,FALSE)/100))","v":{"v":412637.3716632444,"d":"412,637"}},{"$f":"($A27-$A26)/365.25*$D$1*(1+$D$2+(VLOOKUP('RE Appr'!CW34,'RE Appr'!$E$13:$J$59,6,FALSE)/100))","v":{"v":415045.72210814507,"d":"415,046"}},{"$f":"($A27-$A26)/365.25*$D$1*(1+$D$2+(VLOOKUP('RE Appr'!CX34,'RE Appr'!$E$13:$J$59,6,FALSE)/100))","v":{"v":435771.5263518138,"d":"435,772"}},{"$f":"($A27-$A26)/365.25*$D$1*(1+$D$2+(VLOOKUP('RE Appr'!CY34,'RE Appr'!$E$13:$J$59,6,FALSE)/100))","v":{"v":455687.8850102669,"d":"455,688"}},{"$f":"($A27-$A26)/365.25*$D$1*(1+$D$2+(VLOOKUP('RE Appr'!CZ34,'RE Appr'!$E$13:$J$59,6,FALSE)/100))","v":{"v":412517.453798768,"d":"412,517"}},{"$f":"($A27-$A26)/365.25*$D$1*(1+$D$2+(VLOOKUP('RE Appr'!DA34,'RE Appr'!$E$13:$J$59,6,FALSE)/100))","v":{"v":455687.8850102669,"d":"455,688"}},{"$f":"($A27-$A26)/365.25*$D$1*(1+$D$2+(VLOOKUP('RE Appr'!DB34,'RE Appr'!$E$13:$J$59,6,FALSE)/100))","v":{"v":412977.13894592744,"d":"412,977"}},{"$f":"($A27-$A26)/365.25*$D$1*(1+$D$2+(VLOOKUP('RE Appr'!DC34,'RE Appr'!$E$13:$J$59,6,FALSE)/100))","v":{"v":419632.5804243669,"d":"419,633"}},{"$f":"($A27-$A26)/365.25*$D$1*(1+$D$2+(VLOOKUP('RE Appr'!DD34,'RE Appr'!$E$13:$J$59,6,FALSE)/100))","v":{"v":410728.67898699525,"d":"410,729"}},{"$f":"($A27-$A26)/365.25*$D$1*(1+$D$2+(VLOOKUP('RE Appr'!DE34,'RE Appr'!$E$13:$J$59,6,FALSE)/100))","v":{"v":470497.7412731006,"d":"470,498"}},{"$f":"($A27-$A26)/365.25*$D$1*(1+$D$2+(VLOOKUP('RE Appr'!DF34,'RE Appr'!$E$13:$J$59,6,FALSE)/100))","v":{"v":431774.264202601,"d":"431,774"}},{"$f":"($A27-$A26)/365.25*$D$1*(1+$D$2+(VLOOKUP('RE Appr'!DG34,'RE Appr'!$E$13:$J$59,6,FALSE)/100))","v":{"v":422510.60917180014,"d":"422,511"}}]
[{"$f":"Main!A30","v":"2045-12-30"},23,{"$nulls":3},{"$f":"($A28-$A27)/365.25*$D$1*(1+$D$2+(VLOOKUP('RE Appr'!L35,'RE Appr'!$E$13:$J$59,6,FALSE)/100))","v":{"v":412977.13894592744,"d":"412,977"}},{"$f":"($A28-$A27)/365.25*$D$1*(1+$D$2+(VLOOKUP('RE Appr'!M35,'RE Appr'!$E$13:$J$59,6,FALSE)/100))","v":{"v":451019.08281998633,"d":"451,019"}},{"$f":"($A28-$A27)/365.25*$D$1*(1+$D$2+(VLOOKUP('RE Appr'!N35,'RE Appr'!$E$13:$J$59,6,FALSE)/100))","v":{"v":421665.9736136933,"d":"421,666"}},{"$f":"($A28-$A27)/365.25*$D$1*(1+$D$2+(VLOOKUP('RE Appr'!O35,'RE Appr'!$E$13:$J$59,6,FALSE)/100))","v":{"v":440668.1724845996,"d":"440,668"}},{"$f":"($A28-$A27)/365.25*$D$1*(1+$D$2+(VLOOKUP('RE Appr'!P35,'RE Appr'!$E$13:$J$59,6,FALSE)/100))","v":{"v":440668.1724845996,"d":"440,668"}},{"$f":"($A28-$A27)/365.25*$D$1*(1+$D$2+(VLOOKUP('RE Appr'!Q35,'RE Appr'!$E$13:$J$59,6,FALSE)/100))","v":{"v":411048.45995893225,"d":"411,048"}},{"$f":"($A28-$A27)/365.25*$D$1*(1+$D$2+(VLOOKUP('RE Appr'!R35,'RE Appr'!$E$13:$J$59,6,FALSE)/100))","v":{"v":421665.9736136933,"d":"421,666"}},{"$f":"($A28-$A27)/365.25*$D$1*(1+$D$2+(VLOOKUP('RE Appr'!S35,'RE Appr'!$E$13:$J$59,6,FALSE)/100))","v":{"v":418833.85952220886,"d":"418,834"}},{"$f":"($A28-$A27)/365.25*$D$1*(1+$D$2+(VLOOKUP('RE Appr'!T35,'RE Appr'!$E$13:$J$59,6,FALSE)/100))","v":{"v":418833.85952220886,"d":"418,834"}},{"$f":"($A28-$A27)/365.25*$D$1*(1+$D$2+(VLOOKUP('RE Appr'!U35,'RE Appr'!$E$13:$J$59,6,FALSE)/100))","v":{"v":414845.85900068446,"d":"414,846"}},{"$f":"($A28-$A27)/365.25*$D$1*(1+$D$2+(VLOOKUP('RE Appr'!V35,'RE Appr'!$E$13:$J$59,6,FALSE)/100))","v":{"v":436840.79397672834,"d":"436,841"}},{"$f":"($A28-$A27)/365.25*$D$1*(1+$D$2+(VLOOKUP('RE Appr'!W35,'RE Appr'!$E$13:$J$59,6,FALSE)/100))","v":{"v":437040.65708418895,"d":"437,041"}},{"$f":"($A28-$A27)/365.25*$D$1*(1+$D$2+(VLOOKUP('RE Appr'!X35,'RE Appr'!$E$13:$J$59,6,FALSE)/100))","v":{"v":440668.1724845996,"d":"440,668"}},{"$f":"($A28-$A27)/365.25*$D$1*(1+$D$2+(VLOOKUP('RE Appr'!Y35,'RE Appr'!$E$13:$J$59,6,FALSE)/100))","v":{"v":435771.5263518138,"d":"435,772"}},{"$f":"($A28-$A27)/365.25*$D$1*(1+$D$2+(VLOOKUP('RE Appr'!Z35,'RE Appr'!$E$13:$J$59,6,FALSE)/100))","v":{"v":441527.5838466804,"d":"441,528"}},{"$f":"($A28-$A27)/365.25*$D$1*(1+$D$2+(VLOOKUP('RE Appr'!AA35,'RE Appr'!$E$13:$J$59,6,FALSE)/100))","v":{"v":401385.0787132102,"d":"401,385"}},{"$f":"($A28-$A27)/365.25*$D$1*(1+$D$2+(VLOOKUP('RE Appr'!AB35,'RE Appr'!$E$13:$J$59,6,FALSE)/100))","v":{"v":371325.66735112935,"d":"371,326"}},{"$f":"($A28-$A27)/365.25*$D$1*(1+$D$2+(VLOOKUP('RE Appr'!AC35,'RE Appr'!$E$13:$J$59,6,FALSE)/100))","v":{"v":429315.94798083504,"d":"429,316"}},{"$f":"($A28-$A27)/365.25*$D$1*(1+$D$2+(VLOOKUP('RE Appr'!AD35,'RE Appr'!$E$13:$J$59,6,FALSE)/100))","v":{"v":431774.264202601,"d":"431,774"}},{"$f":"($A28-$A27)/365.25*$D$1*(1+$D$2+(VLOOKUP('RE Appr'!AE35,'RE Appr'!$E$13:$J$59,6,FALSE)/100))","v":{"v":399326.4887063655,"d":"399,326"}},{"$f":"($A28-$A27)/365.25*$D$1*(1+$D$2+(VLOOKUP('RE Appr'!AF35,'RE Appr'!$E$13:$J$59,6,FALSE)/100))","v":{"v":419342.77891854895,"d":"419,343"}},{"$f":"($A28-$A27)/365.25*$D$1*(1+$D$2+(VLOOKUP('RE Appr'!AG35,'RE Appr'!$E$13:$J$59,6,FALSE)/100))","v":{"v":410728.67898699525,"d":"410,729"}},{"$f":"($A28-$A27)/365.25*$D$1*(1+$D$2+(VLOOKUP('RE Appr'!AH35,'RE Appr'!$E$13:$J$59,6,FALSE)/100))","v":{"v":411048.45995893225,"d":"411,048"}},{"$f":"($A28-$A27)/365.25*$D$1*(1+$D$2+(VLOOKUP('RE Appr'!AI35,'RE Appr'!$E$13:$J$59,6,FALSE)/100))","v":{"v":429315.94798083504,"d":"429,316"}},{"$f":"($A28-$A27)/365.25*$D$1*(1+$D$2+(VLOOKUP('RE Appr'!AJ35,'RE Appr'!$E$13:$J$59,6,FALSE)/100))","v":{"v":416694.59274469543,"d":"416,695"}},{"$f":"($A28-$A27)/365.25*$D$1*(1+$D$2+(VLOOKUP('RE Appr'!AK35,'RE Appr'!$E$13:$J$59,6,FALSE)/100))","v":{"v":418833.85952220886,"d":"418,834"}},{"$f":"($A28-$A27)/365.25*$D$1*(1+$D$2+(VLOOKUP('RE Appr'!AL35,'RE Appr'!$E$13:$J$59,6,FALSE)/100))","v":{"v":437040.65708418895,"d":"437,041"}},{"$f":"($A28-$A27)/365.25*$D$1*(1+$D$2+(VLOOKUP('RE Appr'!AM35,'RE Appr'!$E$13:$J$59,6,FALSE)/100))","v":{"v":419542.64202600956,"d":"419,543"}},{"$f":"($A28-$A27)/365.25*$D$1*(1+$D$2+(VLOOKUP('RE Appr'!AN35,'RE Appr'!$E$13:$J$59,6,FALSE)/100))","v":{"v":437040.65708418895,"d":"437,041"}},{"$f":"($A28-$A27)/365.25*$D$1*(1+$D$2+(VLOOKUP('RE Appr'!AO35,'RE Appr'!$E$13:$J$59,6,FALSE)/100))","v":{"v":412517.453798768,"d":"412,517"}},{"$f":"($A28-$A27)/365.25*$D$1*(1+$D$2+(VLOOKUP('RE Appr'!AP35,'RE Appr'!$E$13:$J$59,6,FALSE)/100))","v":{"v":383827.10472279263,"d":"383,827"}},{"$f":"($A28-$A27)/365.25*$D$1*(1+$D$2+(VLOOKUP('RE Appr'!AQ35,'RE Appr'!$E$13:$J$59,6,FALSE)/100))","v":{"v":435181.93018480495,"d":"435,182"}},{"$f":"($A28-$A27)/365.25*$D$1*(1+$D$2+(VLOOKUP('RE Appr'!AR35,'RE Appr'!$E$13:$J$59,6,FALSE)/100))","v":{"v":414845.85900068446,"d":"414,846"}},{"$f":"($A28-$A27)/365.25*$D$1*(1+$D$2+(VLOOKUP('RE Appr'!AS35,'RE Appr'!$E$13:$J$59,6,FALSE)/100))","v":{"v":440668.1724845996,"d":"440,668"}},{"$f":"($A28-$A27)/365.25*$D$1*(1+$D$2+(VLOOKUP('RE Appr'!AT35,'RE Appr'!$E$13:$J$59,6,FALSE)/100))","v":{"v":421665.9736136933,"d":"421,666"}},{"$f":"($A28-$A27)/365.25*$D$1*(1+$D$2+(VLOOKUP('RE Appr'!AU35,'RE Appr'!$E$13:$J$59,6,FALSE)/100))","v":{"v":412277.6180698152,"d":"412,278"}},{"$f":"($A28-$A27)/365.25*$D$1*(1+$D$2+(VLOOKUP('RE Appr'!AV35,'RE Appr'!$E$13:$J$59,6,FALSE)/100))","v":{"v":422510.60917180014,"d":"422,511"}},{"$f":"($A28-$A27)/365.25*$D$1*(1+$D$2+(VLOOKUP('RE Appr'!AW35,'RE Appr'!$E$13:$J$59,6,FALSE)/100))","v":{"v":441107.871321013,"d":"441,108"}},{"$f":"($A28-$A27)/365.25*$D$1*(1+$D$2+(VLOOKUP('RE Appr'!AX35,'RE Appr'!$E$13:$J$59,6,FALSE)/100))","v":{"v":441527.5838466804,"d":"441,528"}},{"$f":"($A28-$A27)/365.25*$D$1*(1+$D$2+(VLOOKUP('RE Appr'!AY35,'RE Appr'!$E$13:$J$59,6,FALSE)/100))","v":{"v":386675.1540041068,"d":"386,675"}},{"$f":"($A28-$A27)/365.25*$D$1*(1+$D$2+(VLOOKUP('RE Appr'!AZ35,'RE Appr'!$E$13:$J$59,6,FALSE)/100))","v":{"v":434212.5941136209,"d":"434,213"}},{"$f":"($A28-$A27)/365.25*$D$1*(1+$D$2+(VLOOKUP('RE Appr'!BA35,'RE Appr'!$E$13:$J$59,6,FALSE)/100))","v":{"v":411048.45995893225,"d":"411,048"}},{"$f":"($A28-$A27)/365.25*$D$1*(1+$D$2+(VLOOKUP('RE Appr'!BB35,'RE Appr'!$E$13:$J$59,6,FALSE)/100))","v":{"v":410728.67898699525,"d":"410,729"}},{"$f":"($A28-$A27)/365.25*$D$1*(1+$D$2+(VLOOKUP('RE Appr'!BC35,'RE Appr'!$E$13:$J$59,6,FALSE)/100))","v":{"v":416234.9075975359,"d":"416,235"}},{"$f":"($A28-$A27)/365.25*$D$1*(1+$D$2+(VLOOKUP('RE Appr'!BD35,'RE Appr'!$E$13:$J$59,6,FALSE)/100))","v":{"v":423729.77412731,"d":"423,730"}},{"$f":"($A28-$A27)/365.25*$D$1*(1+$D$2+(VLOOKUP('RE Appr'!BE35,'RE Appr'!$E$13:$J$59,6,FALSE)/100))","v":{"v":418833.85952220886,"d":"418,834"}},{"$f":"($A28-$A27)/365.25*$D$1*(1+$D$2+(VLOOKUP('RE Appr'!BF35,'RE Appr'!$E$13:$J$59,6,FALSE)/100))","v":{"v":434212.5941136209,"d":"434,213"}},{"$f":"($A28-$A27)/365.25*$D$1*(1+$D$2+(VLOOKUP('RE Appr'!BG35,'RE Appr'!$E$13:$J$59,6,FALSE)/100))","v":{"v":411048.45995893225,"d":"411,048"}},{"$f":"($A28-$A27)/365.25*$D$1*(1+$D$2+(VLOOKUP('RE Appr'!BH35,'RE Appr'!$E$13:$J$59,6,FALSE)/100))","v":{"v":423729.77412731,"d":"423,730"}},{"$f":"($A28-$A27)/365.25*$D$1*(1+$D$2+(VLOOKUP('RE Appr'!BI35,'RE Appr'!$E$13:$J$59,6,FALSE)/100))","v":{"v":416694.59274469543,"d":"416,695"}},{"$f":"($A28-$A27)/365.25*$D$1*(1+$D$2+(VLOOKUP('RE Appr'!BJ35,'RE Appr'!$E$13:$J$59,6,FALSE)/100))","v":{"v":421665.9736136933,"d":"421,666"}},{"$f":"($A28-$A27)/365.25*$D$1*(1+$D$2+(VLOOKUP('RE Appr'!BK35,'RE Appr'!$E$13:$J$59,6,FALSE)/100))","v":{"v":420192.19712525664,"d":"420,192"}},{"$f":"($A28-$A27)/365.25*$D$1*(1+$D$2+(VLOOKUP('RE Appr'!BL35,'RE Appr'!$E$13:$J$59,6,FALSE)/100))","v":{"v":417653.93566050654,"d":"417,654"}},{"$f":"($A28-$A27)/365.25*$D$1*(1+$D$2+(VLOOKUP('RE Appr'!BM35,'RE Appr'!$E$13:$J$59,6,FALSE)/100))","v":{"v":437040.65708418895,"d":"437,041"}},{"$f":"($A28-$A27)/365.25*$D$1*(1+$D$2+(VLOOKUP('RE Appr'!BN35,'RE Appr'!$E$13:$J$59,6,FALSE)/100))","v":{"v":412517.453798768,"d":"412,517"}},{"$f":"($A28-$A27)/365.25*$D$1*(1+$D$2+(VLOOKUP('RE Appr'!BO35,'RE Appr'!$E$13:$J$59,6,FALSE)/100))","v":{"v":423749.76043805614,"d":"423,750"}},{"$f":"($A28-$A27)/365.25*$D$1*(1+$D$2+(VLOOKUP('RE Appr'!BP35,'RE Appr'!$E$13:$J$59,6,FALSE)/100))","v":{"v":412517.453798768,"d":"412,517"}},{"$f":"($A28-$A27)/365.25*$D$1*(1+$D$2+(VLOOKUP('RE Appr'!BQ35,'RE Appr'!$E$13:$J$59,6,FALSE)/100))","v":{"v":429315.94798083504,"d":"429,316"}},{"$f":"($A28-$A27)/365.25*$D$1*(1+$D$2+(VLOOKUP('RE Appr'!BR35,'RE Appr'!$E$13:$J$59,6,FALSE)/100))","v":{"v":470497.7412731006,"d":"470,498"}},{"$f":"($A28-$A27)/365.25*$D$1*(1+$D$2+(VLOOKUP('RE Appr'!BS35,'RE Appr'!$E$13:$J$59,6,FALSE)/100))","v":{"v":419542.64202600956,"d":"419,543"}},{"$f":"($A28-$A27)/365.25*$D$1*(1+$D$2+(VLOOKUP('RE Appr'!BT35,'RE Appr'!$E$13:$J$59,6,FALSE)/100))","v":{"v":412517.453798768,"d":"412,517"}},{"$f":"($A28-$A27)/365.25*$D$1*(1+$D$2+(VLOOKUP('RE Appr'!BU35,'RE Appr'!$E$13:$J$59,6,FALSE)/100))","v":{"v":415847.54106599226,"d":"415,848"}},{"$f":"($A28-$A27)/365.25*$D$1*(1+$D$2+(VLOOKUP('RE Appr'!BV35,'RE Appr'!$E$13:$J$59,6,FALSE)/100))","v":{"v":412517.453798768,"d":"412,517"}},{"$f":"($A28-$A27)/365.25*$D$1*(1+$D$2+(VLOOKUP('RE Appr'!BW35,'RE Appr'!$E$13:$J$59,6,FALSE)/100))","v":{"v":423729.77412731,"d":"423,730"}},{"$f":"($A28-$A27)/365.25*$D$1*(1+$D$2+(VLOOKUP('RE Appr'!BX35,'RE Appr'!$E$13:$J$59,6,FALSE)/100))","v":{"v":412517.453798768,"d":"412,517"}},{"$f":"($A28-$A27)/365.25*$D$1*(1+$D$2+(VLOOKUP('RE Appr'!BY35,'RE Appr'!$E$13:$J$59,6,FALSE)/100))","v":{"v":429315.94798083504,"d":"429,316"}},{"$f":"($A28-$A27)/365.25*$D$1*(1+$D$2+(VLOOKUP('RE Appr'!BZ35,'RE Appr'!$E$13:$J$59,6,FALSE)/100))","v":{"v":437040.65708418895,"d":"437,041"}},{"$f":"($A28-$A27)/365.25*$D$1*(1+$D$2+(VLOOKUP('RE Appr'!CA35,'RE Appr'!$E$13:$J$59,6,FALSE)/100))","v":{"v":409269.6783025325,"d":"409,270"}},{"$f":"($A28-$A27)/365.25*$D$1*(1+$D$2+(VLOOKUP('RE Appr'!CB35,'RE Appr'!$E$13:$J$59,6,FALSE)/100))","v":{"v":418833.85952220886,"d":"418,834"}},{"$f":"($A28-$A27)/365.25*$D$1*(1+$D$2+(VLOOKUP('RE Appr'!CC35,'RE Appr'!$E$13:$J$59,6,FALSE)/100))","v":{"v":431774.264202601,"d":"431,774"}},{"$f":"($A28-$A27)/365.25*$D$1*(1+$D$2+(VLOOKUP('RE Appr'!CD35,'RE Appr'!$E$13:$J$59,6,FALSE)/100))","v":{"v":383827.10472279263,"d":"383,827"}},{"$f":"($A28-$A27)/365.25*$D$1*(1+$D$2+(VLOOKUP('RE Appr'!CE35,'RE Appr'!$E$13:$J$59,6,FALSE)/100))","v":{"v":441527.5838466804,"d":"441,528"}},{"$f":"($A28-$A27)/365.25*$D$1*(1+$D$2+(VLOOKUP('RE Appr'!CF35,'RE Appr'!$E$13:$J$59,6,FALSE)/100))","v":{"v":421665.9736136933,"d":"421,666"}},{"$f":"($A28-$A27)/365.25*$D$1*(1+$D$2+(VLOOKUP('RE Appr'!CG35,'RE Appr'!$E$13:$J$59,6,FALSE)/100))","v":{"v":423729.77412731,"d":"423,730"}},{"$f":"($A28-$A27)/365.25*$D$1*(1+$D$2+(VLOOKUP('RE Appr'!CH35,'RE Appr'!$E$13:$J$59,6,FALSE)/100))","v":{"v":435771.5263518138,"d":"435,772"}},{"$f":"($A28-$A27)/365.25*$D$1*(1+$D$2+(VLOOKUP('RE Appr'!CI35,'RE Appr'!$E$13:$J$59,6,FALSE)/100))","v":{"v":434212.5941136209,"d":"434,213"}},{"$f":"($A28-$A27)/365.25*$D$1*(1+$D$2+(VLOOKUP('RE Appr'!CJ35,'RE Appr'!$E$13:$J$59,6,FALSE)/100))","v":{"v":419289.85199380416,"d":"419,290"}},{"$f":"($A28-$A27)/365.25*$D$1*(1+$D$2+(VLOOKUP('RE Appr'!CK35,'RE Appr'!$E$13:$J$59,6,FALSE)/100))","v":{"v":416234.9075975359,"d":"416,235"}},{"$f":"($A28-$A27)/365.25*$D$1*(1+$D$2+(VLOOKUP('RE Appr'!CL35,'RE Appr'!$E$13:$J$59,6,FALSE)/100))","v":{"v":436840.79397672834,"d":"436,841"}},{"$f":"($A28-$A27)/365.25*$D$1*(1+$D$2+(VLOOKUP('RE Appr'!CM35,'RE Appr'!$E$13:$J$59,6,FALSE)/100))","v":{"v":412277.6180698152,"d":"412,278"}},{"$f":"($A28-$A27)/365.25*$D$1*(1+$D$2+(VLOOKUP('RE Appr'!CN35,'RE Appr'!$E$13:$J$59,6,FALSE)/100))","v":{"v":407091.1704312115,"d":"407,091"}},{"$f":"($A28-$A27)/365.25*$D$1*(1+$D$2+(VLOOKUP('RE Appr'!CO35,'RE Appr'!$E$13:$J$59,6,FALSE)/100))","v":{"v":409269.6783025325,"d":"409,270"}},{"$f":"($A28-$A27)/365.25*$D$1*(1+$D$2+(VLOOKUP('RE Appr'!CP35,'RE Appr'!$E$13:$J$59,6,FALSE)/100))","v":{"v":441107.871321013,"d":"441,108"}},{"$f":"($A28-$A27)/365.25*$D$1*(1+$D$2+(VLOOKUP('RE Appr'!CQ35,'RE Appr'!$E$13:$J$59,6,FALSE)/100))","v":{"v":441107.871321013,"d":"441,108"}},{"$f":"($A28-$A27)/365.25*$D$1*(1+$D$2+(VLOOKUP('RE Appr'!CR35,'RE Appr'!$E$13:$J$59,6,FALSE)/100))","v":{"v":412977.13894592744,"d":"412,977"}},{"$f":"($A28-$A27)/365.25*$D$1*(1+$D$2+(VLOOKUP('RE Appr'!CS35,'RE Appr'!$E$13:$J$59,6,FALSE)/100))","v":{"v":426041.984729592,"d":"426,042"}},{"$f":"($A28-$A27)/365.25*$D$1*(1+$D$2+(VLOOKUP('RE Appr'!CT35,'RE Appr'!$E$13:$J$59,6,FALSE)/100))","v":{"v":419542.64202600956,"d":"419,543"}},{"$f":"($A28-$A27)/365.25*$D$1*(1+$D$2+(VLOOKUP('RE Appr'!CU35,'RE Appr'!$E$13:$J$59,6,FALSE)/100))","v":{"v":415285.5578370979,"d":"415,286"}},{"$f":"($A28-$A27)/365.25*$D$1*(1+$D$2+(VLOOKUP('RE Appr'!CV35,'RE Appr'!$E$13:$J$59,6,FALSE)/100))","v":{"v":451019.08281998633,"d":"451,019"}},{"$f":"($A28-$A27)/365.25*$D$1*(1+$D$2+(VLOOKUP('RE Appr'!CW35,'RE Appr'!$E$13:$J$59,6,FALSE)/100))","v":{"v":407091.1704312115,"d":"407,091"}},{"$f":"($A28-$A27)/365.25*$D$1*(1+$D$2+(VLOOKUP('RE Appr'!CX35,'RE Appr'!$E$13:$J$59,6,FALSE)/100))","v":{"v":410728.67898699525,"d":"410,729"}},{"$f":"($A28-$A27)/365.25*$D$1*(1+$D$2+(VLOOKUP('RE Appr'!CY35,'RE Appr'!$E$13:$J$59,6,FALSE)/100))","v":{"v":416234.9075975359,"d":"416,235"}},{"$f":"($A28-$A27)/365.25*$D$1*(1+$D$2+(VLOOKUP('RE Appr'!CZ35,'RE Appr'!$E$13:$J$59,6,FALSE)/100))","v":{"v":418833.85952220886,"d":"418,834"}},{"$f":"($A28-$A27)/365.25*$D$1*(1+$D$2+(VLOOKUP('RE Appr'!DA35,'RE Appr'!$E$13:$J$59,6,FALSE)/100))","v":{"v":415847.54106599226,"d":"415,848"}},{"$f":"($A28-$A27)/365.25*$D$1*(1+$D$2+(VLOOKUP('RE Appr'!DB35,'RE Appr'!$E$13:$J$59,6,FALSE)/100))","v":{"v":415847.54106599226,"d":"415,848"}},{"$f":"($A28-$A27)/365.25*$D$1*(1+$D$2+(VLOOKUP('RE Appr'!DC35,'RE Appr'!$E$13:$J$59,6,FALSE)/100))","v":{"v":409269.6783025325,"d":"409,270"}},{"$f":"($A28-$A27)/365.25*$D$1*(1+$D$2+(VLOOKUP('RE Appr'!DD35,'RE Appr'!$E$13:$J$59,6,FALSE)/100))","v":{"v":441107.871321013,"d":"441,108"}},{"$f":"($A28-$A27)/365.25*$D$1*(1+$D$2+(VLOOKUP('RE Appr'!DE35,'RE Appr'!$E$13:$J$59,6,FALSE)/100))","v":{"v":410728.67898699525,"d":"410,729"}},{"$f":"($A28-$A27)/365.25*$D$1*(1+$D$2+(VLOOKUP('RE Appr'!DF35,'RE Appr'!$E$13:$J$59,6,FALSE)/100))","v":{"v":418173.57973990415,"d":"418,174"}},{"$f":"($A28-$A27)/365.25*$D$1*(1+$D$2+(VLOOKUP('RE Appr'!DG35,'RE Appr'!$E$13:$J$59,6,FALSE)/100))","v":{"v":415285.5578370979,"d":"415,286"}}]
[{"$f":"Main!A31","v":"2046-12-30"},24,{"$nulls":3},{"$f":"($A29-$A28)/365.25*$D$1*(1+$D$2+(VLOOKUP('RE Appr'!L36,'RE Appr'!$E$13:$J$59,6,FALSE)/100))","v":{"v":418833.85952220886,"d":"418,834"}},{"$f":"($A29-$A28)/365.25*$D$1*(1+$D$2+(VLOOKUP('RE Appr'!M36,'RE Appr'!$E$13:$J$59,6,FALSE)/100))","v":{"v":411048.45995893225,"d":"411,048"}},{"$f":"($A29-$A28)/365.25*$D$1*(1+$D$2+(VLOOKUP('RE Appr'!N36,'RE Appr'!$E$13:$J$59,6,FALSE)/100))","v":{"v":411048.45995893225,"d":"411,048"}},{"$f":"($A29-$A28)/365.25*$D$1*(1+$D$2+(VLOOKUP('RE Appr'!O36,'RE Appr'!$E$13:$J$59,6,FALSE)/100))","v":{"v":412517.453798768,"d":"412,517"}},{"$f":"($A29-$A28)/365.25*$D$1*(1+$D$2+(VLOOKUP('RE Appr'!P36,'RE Appr'!$E$13:$J$59,6,FALSE)/100))","v":{"v":455687.8850102669,"d":"455,688"}},{"$f":"($A29-$A28)/365.25*$D$1*(1+$D$2+(VLOOKUP('RE Appr'!Q36,'RE Appr'!$E$13:$J$59,6,FALSE)/100))","v":{"v":415847.54106599226,"d":"415,848"}},{"$f":"($A29-$A28)/365.25*$D$1*(1+$D$2+(VLOOKUP('RE Appr'!R36,'RE Appr'!$E$13:$J$59,6,FALSE)/100))","v":{"v":415285.5578370979,"d":"415,286"}},{"$f":"($A29-$A28)/365.25*$D$1*(1+$D$2+(VLOOKUP('RE Appr'!S36,'RE Appr'!$E$13:$J$59,6,FALSE)/100))","v":{"v":451019.08281998633,"d":"451,019"}},{"$f":"($A29-$A28)/365.25*$D$1*(1+$D$2+(VLOOKUP('RE Appr'!T36,'RE Appr'!$E$13:$J$59,6,FALSE)/100))","v":{"v":401385.0787132102,"d":"401,385"}},{"$f":"($A29-$A28)/365.25*$D$1*(1+$D$2+(VLOOKUP('RE Appr'!U36,'RE Appr'!$E$13:$J$59,6,FALSE)/100))","v":{"v":383827.10472279263,"d":"383,827"}},{"$f":"($A29-$A28)/365.25*$D$1*(1+$D$2+(VLOOKUP('RE Appr'!V36,'RE Appr'!$E$13:$J$59,6,FALSE)/100))","v":{"v":416694.59274469543,"d":"416,695"}},{"$f":"($A29-$A28)/365.25*$D$1*(1+$D$2+(VLOOKUP('RE Appr'!W36,'RE Appr'!$E$13:$J$59,6,FALSE)/100))","v":{"v":416234.9075975359,"d":"416,235"}},{"$f":"($A29-$A28)/365.25*$D$1*(1+$D$2+(VLOOKUP('RE Appr'!X36,'RE Appr'!$E$13:$J$59,6,FALSE)/100))","v":{"v":411048.45995893225,"d":"411,048"}},{"$f":"($A29-$A28)/365.25*$D$1*(1+$D$2+(VLOOKUP('RE Appr'!Y36,'RE Appr'!$E$13:$J$59,6,FALSE)/100))","v":{"v":419542.64202600956,"d":"419,543"}},{"$f":"($A29-$A28)/365.25*$D$1*(1+$D$2+(VLOOKUP('RE Appr'!Z36,'RE Appr'!$E$13:$J$59,6,FALSE)/100))","v":{"v":412637.3716632444,"d":"412,637"}},{"$f":"($A29-$A28)/365.25*$D$1*(1+$D$2+(VLOOKUP('RE Appr'!AA36,'RE Appr'!$E$13:$J$59,6,FALSE)/100))","v":{"v":431774.264202601,"d":"431,774"}},{"$f":"($A29-$A28)/365.25*$D$1*(1+$D$2+(VLOOKUP('RE Appr'!AB36,'RE Appr'!$E$13:$J$59,6,FALSE)/100))","v":{"v":371325.66735112935,"d":"371,326"}},{"$f":"($A29-$A28)/365.25*$D$1*(1+$D$2+(VLOOKUP('RE Appr'!AC36,'RE Appr'!$E$13:$J$59,6,FALSE)/100))","v":{"v":371325.66735112935,"d":"371,326"}},{"$f":"($A29-$A28)/365.25*$D$1*(1+$D$2+(VLOOKUP('RE Appr'!AD36,'RE Appr'!$E$13:$J$59,6,FALSE)/100))","v":{"v":417653.93566050654,"d":"417,654"}},{"$f":"($A29-$A28)/365.25*$D$1*(1+$D$2+(VLOOKUP('RE Appr'!AE36,'RE Appr'!$E$13:$J$59,6,FALSE)/100))","v":{"v":441527.5838466804,"d":"441,528"}},{"$f":"($A29-$A28)/365.25*$D$1*(1+$D$2+(VLOOKUP('RE Appr'!AF36,'RE Appr'!$E$13:$J$59,6,FALSE)/100))","v":{"v":431774.264202601,"d":"431,774"}},{"$f":"($A29-$A28)/365.25*$D$1*(1+$D$2+(VLOOKUP('RE Appr'!AG36,'RE Appr'!$E$13:$J$59,6,FALSE)/100))","v":{"v":412637.3716632444,"d":"412,637"}},{"$f":"($A29-$A28)/365.25*$D$1*(1+$D$2+(VLOOKUP('RE Appr'!AH36,'RE Appr'!$E$13:$J$59,6,FALSE)/100))","v":{"v":470497.7412731006,"d":"470,498"}},{"$f":"($A29-$A28)/365.25*$D$1*(1+$D$2+(VLOOKUP('RE Appr'!AI36,'RE Appr'!$E$13:$J$59,6,FALSE)/100))","v":{"v":423729.77412731,"d":"423,730"}},{"$f":"($A29-$A28)/365.25*$D$1*(1+$D$2+(VLOOKUP('RE Appr'!AJ36,'RE Appr'!$E$13:$J$59,6,FALSE)/100))","v":{"v":419289.85199380416,"d":"419,290"}},{"$f":"($A29-$A28)/365.25*$D$1*(1+$D$2+(VLOOKUP('RE Appr'!AK36,'RE Appr'!$E$13:$J$59,6,FALSE)/100))","v":{"v":416234.9075975359,"d":"416,235"}},{"$f":"($A29-$A28)/365.25*$D$1*(1+$D$2+(VLOOKUP('RE Appr'!AL36,'RE Appr'!$E$13:$J$59,6,FALSE)/100))","v":{"v":415847.54106599226,"d":"415,848"}},{"$f":"($A29-$A28)/365.25*$D$1*(1+$D$2+(VLOOKUP('RE Appr'!AM36,'RE Appr'!$E$13:$J$59,6,FALSE)/100))","v":{"v":410728.67898699525,"d":"410,729"}},{"$f":"($A29-$A28)/365.25*$D$1*(1+$D$2+(VLOOKUP('RE Appr'!AN36,'RE Appr'!$E$13:$J$59,6,FALSE)/100))","v":{"v":435181.93018480495,"d":"435,182"}},{"$f":"($A29-$A28)/365.25*$D$1*(1+$D$2+(VLOOKUP('RE Appr'!AO36,'RE Appr'!$E$13:$J$59,6,FALSE)/100))","v":{"v":426041.984729592,"d":"426,042"}},{"$f":"($A29-$A28)/365.25*$D$1*(1+$D$2+(VLOOKUP('RE Appr'!AP36,'RE Appr'!$E$13:$J$59,6,FALSE)/100))","v":{"v":470497.7412731006,"d":"470,498"}},{"$f":"($A29-$A28)/365.25*$D$1*(1+$D$2+(VLOOKUP('RE Appr'!AQ36,'RE Appr'!$E$13:$J$59,6,FALSE)/100))","v":{"v":407091.1704312115,"d":"407,091"}},{"$f":"($A29-$A28)/365.25*$D$1*(1+$D$2+(VLOOKUP('RE Appr'!AR36,'RE Appr'!$E$13:$J$59,6,FALSE)/100))","v":{"v":412637.3716632444,"d":"412,637"}},{"$f":"($A29-$A28)/365.25*$D$1*(1+$D$2+(VLOOKUP('RE Appr'!AS36,'RE Appr'!$E$13:$J$59,6,FALSE)/100))","v":{"v":415045.72210814507,"d":"415,046"}},{"$f":"($A29-$A28)/365.25*$D$1*(1+$D$2+(VLOOKUP('RE Appr'!AT36,'RE Appr'!$E$13:$J$59,6,FALSE)/100))","v":{"v":441527.5838466804,"d":"441,528"}},{"$f":"($A29-$A28)/365.25*$D$1*(1+$D$2+(VLOOKUP('RE Appr'!AU36,'RE Appr'!$E$13:$J$59,6,FALSE)/100))","v":{"v":470497.7412731006,"d":"470,498"}},{"$f":"($A29-$A28)/365.25*$D$1*(1+$D$2+(VLOOKUP('RE Appr'!AV36,'RE Appr'!$E$13:$J$59,6,FALSE)/100))","v":{"v":375602.7378507871,"d":"375,603"}},{"$f":"($A29-$A28)/365.25*$D$1*(1+$D$2+(VLOOKUP('RE Appr'!AW36,'RE Appr'!$E$13:$J$59,6,FALSE)/100))","v":{"v":429315.94798083504,"d":"429,316"}},{"$f":"($A29-$A28)/365.25*$D$1*(1+$D$2+(VLOOKUP('RE Appr'!AX36,'RE Appr'!$E$13:$J$59,6,FALSE)/100))","v":{"v":435181.93018480495,"d":"435,182"}},{"$f":"($A29-$A28)/365.25*$D$1*(1+$D$2+(VLOOKUP('RE Appr'!AY36,'RE Appr'!$E$13:$J$59,6,FALSE)/100))","v":{"v":375602.7378507871,"d":"375,603"}},{"$f":"($A29-$A28)/365.25*$D$1*(1+$D$2+(VLOOKUP('RE Appr'!AZ36,'RE Appr'!$E$13:$J$59,6,FALSE)/100))","v":{"v":421665.9736136933,"d":"421,666"}},{"$f":"($A29-$A28)/365.25*$D$1*(1+$D$2+(VLOOKUP('RE Appr'!BA36,'RE Appr'!$E$13:$J$59,6,FALSE)/100))","v":{"v":415045.72210814507,"d":"415,046"}},{"$f":"($A29-$A28)/365.25*$D$1*(1+$D$2+(VLOOKUP('RE Appr'!BB36,'RE Appr'!$E$13:$J$59,6,FALSE)/100))","v":{"v":415847.54106599226,"d":"415,848"}},{"$f":"($A29-$A28)/365.25*$D$1*(1+$D$2+(VLOOKUP('RE Appr'!BC36,'RE Appr'!$E$13:$J$59,6,FALSE)/100))","v":{"v":451019.08281998633,"d":"451,019"}},{"$f":"($A29-$A28)/365.25*$D$1*(1+$D$2+(VLOOKUP('RE Appr'!BD36,'RE Appr'!$E$13:$J$59,6,FALSE)/100))","v":{"v":415847.54106599226,"d":"415,848"}},{"$f":"($A29-$A28)/365.25*$D$1*(1+$D$2+(VLOOKUP('RE Appr'!BE36,'RE Appr'!$E$13:$J$59,6,FALSE)/100))","v":{"v":419289.85199380416,"d":"419,290"}},{"$f":"($A29-$A28)/365.25*$D$1*(1+$D$2+(VLOOKUP('RE Appr'!BF36,'RE Appr'!$E$13:$J$59,6,FALSE)/100))","v":{"v":420192.19712525664,"d":"420,192"}},{"$f":"($A29-$A28)/365.25*$D$1*(1+$D$2+(VLOOKUP('RE Appr'!BG36,'RE Appr'!$E$13:$J$59,6,FALSE)/100))","v":{"v":434212.5941136209,"d":"434,213"}},{"$f":"($A29-$A28)/365.25*$D$1*(1+$D$2+(VLOOKUP('RE Appr'!BH36,'RE Appr'!$E$13:$J$59,6,FALSE)/100))","v":{"v":407091.1704312115,"d":"407,091"}},{"$f":"($A29-$A28)/365.25*$D$1*(1+$D$2+(VLOOKUP('RE Appr'!BI36,'RE Appr'!$E$13:$J$59,6,FALSE)/100))","v":{"v":410728.67898699525,"d":"410,729"}},{"$f":"($A29-$A28)/365.25*$D$1*(1+$D$2+(VLOOKUP('RE Appr'!BJ36,'RE Appr'!$E$13:$J$59,6,FALSE)/100))","v":{"v":401385.0787132102,"d":"401,385"}},{"$f":"($A29-$A28)/365.25*$D$1*(1+$D$2+(VLOOKUP('RE Appr'!BK36,'RE Appr'!$E$13:$J$59,6,FALSE)/100))","v":{"v":407091.1704312115,"d":"407,091"}},{"$f":"($A29-$A28)/365.25*$D$1*(1+$D$2+(VLOOKUP('RE Appr'!BL36,'RE Appr'!$E$13:$J$59,6,FALSE)/100))","v":{"v":417916.4969295789,"d":"417,916"}},{"$f":"($A29-$A28)/365.25*$D$1*(1+$D$2+(VLOOKUP('RE Appr'!BM36,'RE Appr'!$E$13:$J$59,6,FALSE)/100))","v":{"v":423729.77412731,"d":"423,730"}},{"$f":"($A29-$A28)/365.25*$D$1*(1+$D$2+(VLOOKUP('RE Appr'!BN36,'RE Appr'!$E$13:$J$59,6,FALSE)/100))","v":{"v":411048.45995893225,"d":"411,048"}},{"$f":"($A29-$A28)/365.25*$D$1*(1+$D$2+(VLOOKUP('RE Appr'!BO36,'RE Appr'!$E$13:$J$59,6,FALSE)/100))","v":{"v":419342.77891854895,"d":"419,343"}},{"$f":"($A29-$A28)/365.25*$D$1*(1+$D$2+(VLOOKUP('RE Appr'!BP36,'RE Appr'!$E$13:$J$59,6,FALSE)/100))","v":{"v":421665.9736136933,"d":"421,666"}},{"$f":"($A29-$A28)/365.25*$D$1*(1+$D$2+(VLOOKUP('RE Appr'!BQ36,'RE Appr'!$E$13:$J$59,6,FALSE)/100))","v":{"v":416694.59274469543,"d":"416,695"}},{"$f":"($A29-$A28)/365.25*$D$1*(1+$D$2+(VLOOKUP('RE Appr'!BR36,'RE Appr'!$E$13:$J$59,6,FALSE)/100))","v":{"v":418173.57973990415,"d":"418,174"}},{"$f":"($A29-$A28)/365.25*$D$1*(1+$D$2+(VLOOKUP('RE Appr'!BS36,'RE Appr'!$E$13:$J$59,6,FALSE)/100))","v":{"v":416234.9075975359,"d":"416,235"}},{"$f":"($A29-$A28)/365.25*$D$1*(1+$D$2+(VLOOKUP('RE Appr'!BT36,'RE Appr'!$E$13:$J$59,6,FALSE)/100))","v":{"v":419542.64202600956,"d":"419,543"}},{"$f":"($A29-$A28)/365.25*$D$1*(1+$D$2+(VLOOKUP('RE Appr'!BU36,'RE Appr'!$E$13:$J$59,6,FALSE)/100))","v":{"v":437040.65708418895,"d":"437,041"}},{"$f":"($A29-$A28)/365.25*$D$1*(1+$D$2+(VLOOKUP('RE Appr'!BV36,'RE Appr'!$E$13:$J$59,6,FALSE)/100))","v":{"v":411048.45995893225,"d":"411,048"}},{"$f":"($A29-$A28)/365.25*$D$1*(1+$D$2+(VLOOKUP('RE Appr'!BW36,'RE Appr'!$E$13:$J$59,6,FALSE)/100))","v":{"v":410728.67898699525,"d":"410,729"}},{"$f":"($A29-$A28)/365.25*$D$1*(1+$D$2+(VLOOKUP('RE Appr'!BX36,'RE Appr'!$E$13:$J$59,6,FALSE)/100))","v":{"v":419342.77891854895,"d":"419,343"}},{"$f":"($A29-$A28)/365.25*$D$1*(1+$D$2+(VLOOKUP('RE Appr'!BY36,'RE Appr'!$E$13:$J$59,6,FALSE)/100))","v":{"v":419542.64202600956,"d":"419,543"}},{"$f":"($A29-$A28)/365.25*$D$1*(1+$D$2+(VLOOKUP('RE Appr'!BZ36,'RE Appr'!$E$13:$J$59,6,FALSE)/100))","v":{"v":422510.60917180014,"d":"422,511"}},{"$f":"($A29-$A28)/365.25*$D$1*(1+$D$2+(VLOOKUP('RE Appr'!CA36,'RE Appr'!$E$13:$J$59,6,FALSE)/100))","v":{"v":455687.8850102669,"d":"455,688"}},{"$f":"($A29-$A28)/365.25*$D$1*(1+$D$2+(VLOOKUP('RE Appr'!CB36,'RE Appr'!$E$13:$J$59,6,FALSE)/100))","v":{"v":429315.94798083504,"d":"429,316"}},{"$f":"($A29-$A28)/365.25*$D$1*(1+$D$2+(VLOOKUP('RE Appr'!CC36,'RE Appr'!$E$13:$J$59,6,FALSE)/100))","v":{"v":371325.66735112935,"d":"371,326"}},{"$f":"($A29-$A28)/365.25*$D$1*(1+$D$2+(VLOOKUP('RE Appr'!CD36,'RE Appr'!$E$13:$J$59,6,FALSE)/100))","v":{"v":412517.453798768,"d":"412,517"}},{"$f":"($A29-$A28)/365.25*$D$1*(1+$D$2+(VLOOKUP('RE Appr'!CE36,'RE Appr'!$E$13:$J$59,6,FALSE)/100))","v":{"v":415285.5578370979,"d":"415,286"}},{"$f":"($A29-$A28)/365.25*$D$1*(1+$D$2+(VLOOKUP('RE Appr'!CF36,'RE Appr'!$E$13:$J$59,6,FALSE)/100))","v":{"v":420192.19712525664,"d":"420,192"}},{"$f":"($A29-$A28)/365.25*$D$1*(1+$D$2+(VLOOKUP('RE Appr'!CG36,'RE Appr'!$E$13:$J$59,6,FALSE)/100))","v":{"v":416234.9075975359,"d":"416,235"}},{"$f":"($A29-$A28)/365.25*$D$1*(1+$D$2+(VLOOKUP('RE Appr'!CH36,'RE Appr'!$E$13:$J$59,6,FALSE)/100))","v":{"v":421665.9736136933,"d":"421,666"}},{"$f":"($A29-$A28)/365.25*$D$1*(1+$D$2+(VLOOKUP('RE Appr'!CI36,'RE Appr'!$E$13:$J$59,6,FALSE)/100))","v":{"v":415285.5578370979,"d":"415,286"}},{"$f":"($A29-$A28)/365.25*$D$1*(1+$D$2+(VLOOKUP('RE Appr'!CJ36,'RE Appr'!$E$13:$J$59,6,FALSE)/100))","v":{"v":401385.0787132102,"d":"401,385"}},{"$f":"($A29-$A28)/365.25*$D$1*(1+$D$2+(VLOOKUP('RE Appr'!CK36,'RE Appr'!$E$13:$J$59,6,FALSE)/100))","v":{"v":419289.85199380416,"d":"419,290"}},{"$f":"($A29-$A28)/365.25*$D$1*(1+$D$2+(VLOOKUP('RE Appr'!CL36,'RE Appr'!$E$13:$J$59,6,FALSE)/100))","v":{"v":419342.77891854895,"d":"419,343"}},{"$f":"($A29-$A28)/365.25*$D$1*(1+$D$2+(VLOOKUP('RE Appr'!CM36,'RE Appr'!$E$13:$J$59,6,FALSE)/100))","v":{"v":418833.85952220886,"d":"418,834"}},{"$f":"($A29-$A28)/365.25*$D$1*(1+$D$2+(VLOOKUP('RE Appr'!CN36,'RE Appr'!$E$13:$J$59,6,FALSE)/100))","v":{"v":411048.45995893225,"d":"411,048"}},{"$f":"($A29-$A28)/365.25*$D$1*(1+$D$2+(VLOOKUP('RE Appr'!CO36,'RE Appr'!$E$13:$J$59,6,FALSE)/100))","v":{"v":411048.45995893225,"d":"411,048"}},{"$f":"($A29-$A28)/365.25*$D$1*(1+$D$2+(VLOOKUP('RE Appr'!CP36,'RE Appr'!$E$13:$J$59,6,FALSE)/100))","v":{"v":435181.93018480495,"d":"435,182"}},{"$f":"($A29-$A28)/365.25*$D$1*(1+$D$2+(VLOOKUP('RE Appr'!CQ36,'RE Appr'!$E$13:$J$59,6,FALSE)/100))","v":{"v":436840.79397672834,"d":"436,841"}},{"$f":"($A29-$A28)/365.25*$D$1*(1+$D$2+(VLOOKUP('RE Appr'!CR36,'RE Appr'!$E$13:$J$59,6,FALSE)/100))","v":{"v":431774.264202601,"d":"431,774"}},{"$f":"($A29-$A28)/365.25*$D$1*(1+$D$2+(VLOOKUP('RE Appr'!CS36,'RE Appr'!$E$13:$J$59,6,FALSE)/100))","v":{"v":470497.7412731006,"d":"470,498"}},{"$f":"($A29-$A28)/365.25*$D$1*(1+$D$2+(VLOOKUP('RE Appr'!CT36,'RE Appr'!$E$13:$J$59,6,FALSE)/100))","v":{"v":419289.85199380416,"d":"419,290"}},{"$f":"($A29-$A28)/365.25*$D$1*(1+$D$2+(VLOOKUP('RE Appr'!CU36,'RE Appr'!$E$13:$J$59,6,FALSE)/100))","v":{"v":415847.54106599226,"d":"415,848"}},{"$f":"($A29-$A28)/365.25*$D$1*(1+$D$2+(VLOOKUP('RE Appr'!CV36,'RE Appr'!$E$13:$J$59,6,FALSE)/100))","v":{"v":436840.79397672834,"d":"436,841"}},{"$f":"($A29-$A28)/365.25*$D$1*(1+$D$2+(VLOOKUP('RE Appr'!CW36,'RE Appr'!$E$13:$J$59,6,FALSE)/100))","v":{"v":412277.6180698152,"d":"412,278"}},{"$f":"($A29-$A28)/365.25*$D$1*(1+$D$2+(VLOOKUP('RE Appr'!CX36,'RE Appr'!$E$13:$J$59,6,FALSE)/100))","v":{"v":419289.85199380416,"d":"419,290"}},{"$f":"($A29-$A28)/365.25*$D$1*(1+$D$2+(VLOOKUP('RE Appr'!CY36,'RE Appr'!$E$13:$J$59,6,FALSE)/100))","v":{"v":431774.264202601,"d":"431,774"}},{"$f":"($A29-$A28)/365.25*$D$1*(1+$D$2+(VLOOKUP('RE Appr'!CZ36,'RE Appr'!$E$13:$J$59,6,FALSE)/100))","v":{"v":417916.4969295789,"d":"417,916"}},{"$f":"($A29-$A28)/365.25*$D$1*(1+$D$2+(VLOOKUP('RE Appr'!DA36,'RE Appr'!$E$13:$J$59,6,FALSE)/100))","v":{"v":418833.85952220886,"d":"418,834"}},{"$f":"($A29-$A28)/365.25*$D$1*(1+$D$2+(VLOOKUP('RE Appr'!DB36,'RE Appr'!$E$13:$J$59,6,FALSE)/100))","v":{"v":437040.65708418895,"d":"437,041"}},{"$f":"($A29-$A28)/365.25*$D$1*(1+$D$2+(VLOOKUP('RE Appr'!DC36,'RE Appr'!$E$13:$J$59,6,FALSE)/100))","v":{"v":417916.4969295789,"d":"417,916"}},{"$f":"($A29-$A28)/365.25*$D$1*(1+$D$2+(VLOOKUP('RE Appr'!DD36,'RE Appr'!$E$13:$J$59,6,FALSE)/100))","v":{"v":401385.0787132102,"d":"401,385"}},{"$f":"($A29-$A28)/365.25*$D$1*(1+$D$2+(VLOOKUP('RE Appr'!DE36,'RE Appr'!$E$13:$J$59,6,FALSE)/100))","v":{"v":429315.94798083504,"d":"429,316"}},{"$f":"($A29-$A28)/365.25*$D$1*(1+$D$2+(VLOOKUP('RE Appr'!DF36,'RE Appr'!$E$13:$J$59,6,FALSE)/100))","v":{"v":426041.984729592,"d":"426,042"}},{"$f":"($A29-$A28)/365.25*$D$1*(1+$D$2+(VLOOKUP('RE Appr'!DG36,'RE Appr'!$E$13:$J$59,6,FALSE)/100))","v":{"v":441527.5838466804,"d":"441,528"}}]
[{"$f":"Main!A32","v":"2047-12-31"},25,{"$nulls":3},{"$f":"($A30-$A29)/365.25*$D$1*(1+$D$2+(VLOOKUP('RE Appr'!L37,'RE Appr'!$E$13:$J$59,6,FALSE)/100))","v":{"v":420438.5913143351,"d":"420,439"}},{"$f":"($A30-$A29)/365.25*$D$1*(1+$D$2+(VLOOKUP('RE Appr'!M37,'RE Appr'!$E$13:$J$59,6,FALSE)/100))","v":{"v":420692.0739219712,"d":"420,692"}},{"$f":"($A30-$A29)/365.25*$D$1*(1+$D$2+(VLOOKUP('RE Appr'!N37,'RE Appr'!$E$13:$J$59,6,FALSE)/100))","v":{"v":422821.22285647056,"d":"422,821"}},{"$f":"($A30-$A29)/365.25*$D$1*(1+$D$2+(VLOOKUP('RE Appr'!O37,'RE Appr'!$E$13:$J$59,6,FALSE)/100))","v":{"v":384878.68583162216,"d":"384,879"}},{"$f":"($A30-$A29)/365.25*$D$1*(1+$D$2+(VLOOKUP('RE Appr'!P37,'RE Appr'!$E$13:$J$59,6,FALSE)/100))","v":{"v":441875.4825462012,"d":"441,875"}},{"$f":"($A30-$A29)/365.25*$D$1*(1+$D$2+(VLOOKUP('RE Appr'!Q37,'RE Appr'!$E$13:$J$59,6,FALSE)/100))","v":{"v":372342.9979466119,"d":"372,343"}},{"$f":"($A30-$A29)/365.25*$D$1*(1+$D$2+(VLOOKUP('RE Appr'!R37,'RE Appr'!$E$13:$J$59,6,FALSE)/100))","v":{"v":421343.40862422995,"d":"421,343"}},{"$f":"($A30-$A29)/365.25*$D$1*(1+$D$2+(VLOOKUP('RE Appr'!S37,'RE Appr'!$E$13:$J$59,6,FALSE)/100))","v":{"v":441875.4825462012,"d":"441,875"}},{"$f":"($A30-$A29)/365.25*$D$1*(1+$D$2+(VLOOKUP('RE Appr'!T37,'RE Appr'!$E$13:$J$59,6,FALSE)/100))","v":{"v":436965.42094455846,"d":"436,965"}},{"$f":"($A30-$A29)/365.25*$D$1*(1+$D$2+(VLOOKUP('RE Appr'!U37,'RE Appr'!$E$13:$J$59,6,FALSE)/100))","v":{"v":423668.1724845995,"d":"423,668"}},{"$f":"($A30-$A29)/365.25*$D$1*(1+$D$2+(VLOOKUP('RE Appr'!V37,'RE Appr'!$E$13:$J$59,6,FALSE)/100))","v":{"v":424890.67761806975,"d":"424,891"}},{"$f":"($A30-$A29)/365.25*$D$1*(1+$D$2+(VLOOKUP('RE Appr'!W37,'RE Appr'!$E$13:$J$59,6,FALSE)/100))","v":{"v":414108.58316221763,"d":"414,109"}},{"$f":"($A30-$A29)/365.25*$D$1*(1+$D$2+(VLOOKUP('RE Appr'!X37,'RE Appr'!$E$13:$J$59,6,FALSE)/100))","v":{"v":413767.8850102669,"d":"413,768"}},{"$f":"($A30-$A29)/365.25*$D$1*(1+$D$2+(VLOOKUP('RE Appr'!Y37,'RE Appr'!$E$13:$J$59,6,FALSE)/100))","v":{"v":420692.0739219712,"d":"420,692"}},{"$f":"($A30-$A29)/365.25*$D$1*(1+$D$2+(VLOOKUP('RE Appr'!Z37,'RE Appr'!$E$13:$J$59,6,FALSE)/100))","v":{"v":430492.15605749487,"d":"430,492"}},{"$f":"($A30-$A29)/365.25*$D$1*(1+$D$2+(VLOOKUP('RE Appr'!AA37,'RE Appr'!$E$13:$J$59,6,FALSE)/100))","v":{"v":419319.26078028744,"d":"419,319"}},{"$f":"($A30-$A29)/365.25*$D$1*(1+$D$2+(VLOOKUP('RE Appr'!AB37,'RE Appr'!$E$13:$J$59,6,FALSE)/100))","v":{"v":438238.0287474333,"d":"438,238"}},{"$f":"($A30-$A29)/365.25*$D$1*(1+$D$2+(VLOOKUP('RE Appr'!AC37,'RE Appr'!$E$13:$J$59,6,FALSE)/100))","v":{"v":421343.40862422995,"d":"421,343"}},{"$f":"($A30-$A29)/365.25*$D$1*(1+$D$2+(VLOOKUP('RE Appr'!AD37,'RE Appr'!$E$13:$J$59,6,FALSE)/100))","v":{"v":436374.2094455852,"d":"436,374"}},{"$f":"($A30-$A29)/365.25*$D$1*(1+$D$2+(VLOOKUP('RE Appr'!AE37,'RE Appr'!$E$13:$J$59,6,FALSE)/100))","v":{"v":438238.0287474333,"d":"438,238"}},{"$f":"($A30-$A29)/365.25*$D$1*(1+$D$2+(VLOOKUP('RE Appr'!AF37,'RE Appr'!$E$13:$J$59,6,FALSE)/100))","v":{"v":411853.9630390144,"d":"411,854"}},{"$f":"($A30-$A29)/365.25*$D$1*(1+$D$2+(VLOOKUP('RE Appr'!AG37,'RE Appr'!$E$13:$J$59,6,FALSE)/100))","v":{"v":424890.67761806975,"d":"424,891"}},{"$f":"($A30-$A29)/365.25*$D$1*(1+$D$2+(VLOOKUP('RE Appr'!AH37,'RE Appr'!$E$13:$J$59,6,FALSE)/100))","v":{"v":416986.8493976799,"d":"416,987"}},{"$f":"($A30-$A29)/365.25*$D$1*(1+$D$2+(VLOOKUP('RE Appr'!AI37,'RE Appr'!$E$13:$J$59,6,FALSE)/100))","v":{"v":442316.386036961,"d":"442,316"}},{"$f":"($A30-$A29)/365.25*$D$1*(1+$D$2+(VLOOKUP('RE Appr'!AJ37,'RE Appr'!$E$13:$J$59,6,FALSE)/100))","v":{"v":432957.20739219716,"d":"432,957"}},{"$f":"($A30-$A29)/365.25*$D$1*(1+$D$2+(VLOOKUP('RE Appr'!AK37,'RE Appr'!$E$13:$J$59,6,FALSE)/100))","v":{"v":414108.58316221763,"d":"414,109"}},{"$f":"($A30-$A29)/365.25*$D$1*(1+$D$2+(VLOOKUP('RE Appr'!AL37,'RE Appr'!$E$13:$J$59,6,FALSE)/100))","v":{"v":424910.71868583164,"d":"424,911"}},{"$f":"($A30-$A29)/365.25*$D$1*(1+$D$2+(VLOOKUP('RE Appr'!AM37,'RE Appr'!$E$13:$J$59,6,FALSE)/100))","v":{"v":416182.8336755646,"d":"416,183"}},{"$f":"($A30-$A29)/365.25*$D$1*(1+$D$2+(VLOOKUP('RE Appr'!AN37,'RE Appr'!$E$13:$J$59,6,FALSE)/100))","v":{"v":387734.53798767965,"d":"387,735"}},{"$f":"($A30-$A29)/365.25*$D$1*(1+$D$2+(VLOOKUP('RE Appr'!AO37,'RE Appr'!$E$13:$J$59,6,FALSE)/100))","v":{"v":413767.8850102669,"d":"413,768"}},{"$f":"($A30-$A29)/365.25*$D$1*(1+$D$2+(VLOOKUP('RE Appr'!AP37,'RE Appr'!$E$13:$J$59,6,FALSE)/100))","v":{"v":412174.62012320326,"d":"412,175"}},{"$f":"($A30-$A29)/365.25*$D$1*(1+$D$2+(VLOOKUP('RE Appr'!AQ37,'RE Appr'!$E$13:$J$59,6,FALSE)/100))","v":{"v":424890.67761806975,"d":"424,891"}},{"$f":"($A30-$A29)/365.25*$D$1*(1+$D$2+(VLOOKUP('RE Appr'!AR37,'RE Appr'!$E$13:$J$59,6,FALSE)/100))","v":{"v":419319.26078028744,"d":"419,319"}},{"$f":"($A30-$A29)/365.25*$D$1*(1+$D$2+(VLOOKUP('RE Appr'!AS37,'RE Appr'!$E$13:$J$59,6,FALSE)/100))","v":{"v":420491.66324435314,"d":"420,492"}},{"$f":"($A30-$A29)/365.25*$D$1*(1+$D$2+(VLOOKUP('RE Appr'!AT37,'RE Appr'!$E$13:$J$59,6,FALSE)/100))","v":{"v":452254.75154004106,"d":"452,255"}},{"$f":"($A30-$A29)/365.25*$D$1*(1+$D$2+(VLOOKUP('RE Appr'!AU37,'RE Appr'!$E$13:$J$59,6,FALSE)/100))","v":{"v":441875.4825462012,"d":"441,875"}},{"$f":"($A30-$A29)/365.25*$D$1*(1+$D$2+(VLOOKUP('RE Appr'!AV37,'RE Appr'!$E$13:$J$59,6,FALSE)/100))","v":{"v":421343.40862422995,"d":"421,343"}},{"$f":"($A30-$A29)/365.25*$D$1*(1+$D$2+(VLOOKUP('RE Appr'!AW37,'RE Appr'!$E$13:$J$59,6,FALSE)/100))","v":{"v":417836.22176591377,"d":"417,836"}},{"$f":"($A30-$A29)/365.25*$D$1*(1+$D$2+(VLOOKUP('RE Appr'!AX37,'RE Appr'!$E$13:$J$59,6,FALSE)/100))","v":{"v":413767.8850102669,"d":"413,768"}},{"$f":"($A30-$A29)/365.25*$D$1*(1+$D$2+(VLOOKUP('RE Appr'!AY37,'RE Appr'!$E$13:$J$59,6,FALSE)/100))","v":{"v":408206.48870636546,"d":"408,206"}},{"$f":"($A30-$A29)/365.25*$D$1*(1+$D$2+(VLOOKUP('RE Appr'!AZ37,'RE Appr'!$E$13:$J$59,6,FALSE)/100))","v":{"v":420692.0739219712,"d":"420,692"}},{"$f":"($A30-$A29)/365.25*$D$1*(1+$D$2+(VLOOKUP('RE Appr'!BA37,'RE Appr'!$E$13:$J$59,6,FALSE)/100))","v":{"v":410390.9650924025,"d":"410,391"}},{"$f":"($A30-$A29)/365.25*$D$1*(1+$D$2+(VLOOKUP('RE Appr'!BB37,'RE Appr'!$E$13:$J$59,6,FALSE)/100))","v":{"v":432957.20739219716,"d":"432,957"}},{"$f":"($A30-$A29)/365.25*$D$1*(1+$D$2+(VLOOKUP('RE Appr'!BC37,'RE Appr'!$E$13:$J$59,6,FALSE)/100))","v":{"v":416423.3264887064,"d":"416,423"}},{"$f":"($A30-$A29)/365.25*$D$1*(1+$D$2+(VLOOKUP('RE Appr'!BD37,'RE Appr'!$E$13:$J$59,6,FALSE)/100))","v":{"v":423668.1724845995,"d":"423,668"}},{"$f":"($A30-$A29)/365.25*$D$1*(1+$D$2+(VLOOKUP('RE Appr'!BE37,'RE Appr'!$E$13:$J$59,6,FALSE)/100))","v":{"v":424890.67761806975,"d":"424,891"}},{"$f":"($A30-$A29)/365.25*$D$1*(1+$D$2+(VLOOKUP('RE Appr'!BF37,'RE Appr'!$E$13:$J$59,6,FALSE)/100))","v":{"v":456936.3449691991,"d":"456,936"}},{"$f":"($A30-$A29)/365.25*$D$1*(1+$D$2+(VLOOKUP('RE Appr'!BG37,'RE Appr'!$E$13:$J$59,6,FALSE)/100))","v":{"v":416986.8493976799,"d":"416,987"}},{"$f":"($A30-$A29)/365.25*$D$1*(1+$D$2+(VLOOKUP('RE Appr'!BH37,'RE Appr'!$E$13:$J$59,6,FALSE)/100))","v":{"v":384878.68583162216,"d":"384,879"}},{"$f":"($A30-$A29)/365.25*$D$1*(1+$D$2+(VLOOKUP('RE Appr'!BI37,'RE Appr'!$E$13:$J$59,6,FALSE)/100))","v":{"v":416423.3264887064,"d":"416,423"}},{"$f":"($A30-$A29)/365.25*$D$1*(1+$D$2+(VLOOKUP('RE Appr'!BJ37,'RE Appr'!$E$13:$J$59,6,FALSE)/100))","v":{"v":435402.2176591376,"d":"435,402"}},{"$f":"($A30-$A29)/365.25*$D$1*(1+$D$2+(VLOOKUP('RE Appr'!BK37,'RE Appr'!$E$13:$J$59,6,FALSE)/100))","v":{"v":413407.1457905544,"d":"413,407"}},{"$f":"($A30-$A29)/365.25*$D$1*(1+$D$2+(VLOOKUP('RE Appr'!BL37,'RE Appr'!$E$13:$J$59,6,FALSE)/100))","v":{"v":387734.53798767965,"d":"387,735"}},{"$f":"($A30-$A29)/365.25*$D$1*(1+$D$2+(VLOOKUP('RE Appr'!BM37,'RE Appr'!$E$13:$J$59,6,FALSE)/100))","v":{"v":424890.67761806975,"d":"424,891"}},{"$f":"($A30-$A29)/365.25*$D$1*(1+$D$2+(VLOOKUP('RE Appr'!BN37,'RE Appr'!$E$13:$J$59,6,FALSE)/100))","v":{"v":436374.2094455852,"d":"436,374"}},{"$f":"($A30-$A29)/365.25*$D$1*(1+$D$2+(VLOOKUP('RE Appr'!BO37,'RE Appr'!$E$13:$J$59,6,FALSE)/100))","v":{"v":471786.7761806981,"d":"471,787"}},{"$f":"($A30-$A29)/365.25*$D$1*(1+$D$2+(VLOOKUP('RE Appr'!BP37,'RE Appr'!$E$13:$J$59,6,FALSE)/100))","v":{"v":430492.15605749487,"d":"430,492"}},{"$f":"($A30-$A29)/365.25*$D$1*(1+$D$2+(VLOOKUP('RE Appr'!BQ37,'RE Appr'!$E$13:$J$59,6,FALSE)/100))","v":{"v":424910.71868583164,"d":"424,911"}},{"$f":"($A30-$A29)/365.25*$D$1*(1+$D$2+(VLOOKUP('RE Appr'!BR37,'RE Appr'!$E$13:$J$59,6,FALSE)/100))","v":{"v":421343.40862422995,"d":"421,343"}},{"$f":"($A30-$A29)/365.25*$D$1*(1+$D$2+(VLOOKUP('RE Appr'!BS37,'RE Appr'!$E$13:$J$59,6,FALSE)/100))","v":{"v":419981.34954829706,"d":"419,981"}},{"$f":"($A30-$A29)/365.25*$D$1*(1+$D$2+(VLOOKUP('RE Appr'!BT37,'RE Appr'!$E$13:$J$59,6,FALSE)/100))","v":{"v":424890.67761806975,"d":"424,891"}},{"$f":"($A30-$A29)/365.25*$D$1*(1+$D$2+(VLOOKUP('RE Appr'!BU37,'RE Appr'!$E$13:$J$59,6,FALSE)/100))","v":{"v":400420.5338809035,"d":"400,421"}},{"$f":"($A30-$A29)/365.25*$D$1*(1+$D$2+(VLOOKUP('RE Appr'!BV37,'RE Appr'!$E$13:$J$59,6,FALSE)/100))","v":{"v":442316.386036961,"d":"442,316"}},{"$f":"($A30-$A29)/365.25*$D$1*(1+$D$2+(VLOOKUP('RE Appr'!BW37,'RE Appr'!$E$13:$J$59,6,FALSE)/100))","v":{"v":419061.4736334955,"d":"419,061"}},{"$f":"($A30-$A29)/365.25*$D$1*(1+$D$2+(VLOOKUP('RE Appr'!BX37,'RE Appr'!$E$13:$J$59,6,FALSE)/100))","v":{"v":413767.8850102669,"d":"413,768"}},{"$f":"($A30-$A29)/365.25*$D$1*(1+$D$2+(VLOOKUP('RE Appr'!BY37,'RE Appr'!$E$13:$J$59,6,FALSE)/100))","v":{"v":420438.5913143351,"d":"420,439"}},{"$f":"($A30-$A29)/365.25*$D$1*(1+$D$2+(VLOOKUP('RE Appr'!BZ37,'RE Appr'!$E$13:$J$59,6,FALSE)/100))","v":{"v":408206.48870636546,"d":"408,206"}},{"$f":"($A30-$A29)/365.25*$D$1*(1+$D$2+(VLOOKUP('RE Appr'!CA37,'RE Appr'!$E$13:$J$59,6,FALSE)/100))","v":{"v":413407.1457905544,"d":"413,407"}},{"$f":"($A30-$A29)/365.25*$D$1*(1+$D$2+(VLOOKUP('RE Appr'!CB37,'RE Appr'!$E$13:$J$59,6,FALSE)/100))","v":{"v":442316.386036961,"d":"442,316"}},{"$f":"($A30-$A29)/365.25*$D$1*(1+$D$2+(VLOOKUP('RE Appr'!CC37,'RE Appr'!$E$13:$J$59,6,FALSE)/100))","v":{"v":442316.386036961,"d":"442,316"}},{"$f":"($A30-$A29)/365.25*$D$1*(1+$D$2+(VLOOKUP('RE Appr'!CD37,'RE Appr'!$E$13:$J$59,6,FALSE)/100))","v":{"v":413407.1457905544,"d":"413,407"}},{"$f":"($A30-$A29)/365.25*$D$1*(1+$D$2+(VLOOKUP('RE Appr'!CE37,'RE Appr'!$E$13:$J$59,6,FALSE)/100))","v":{"v":436965.42094455846,"d":"436,965"}},{"$f":"($A30-$A29)/365.25*$D$1*(1+$D$2+(VLOOKUP('RE Appr'!CF37,'RE Appr'!$E$13:$J$59,6,FALSE)/100))","v":{"v":427209.2230439196,"d":"427,209"}},{"$f":"($A30-$A29)/365.25*$D$1*(1+$D$2+(VLOOKUP('RE Appr'!CG37,'RE Appr'!$E$13:$J$59,6,FALSE)/100))","v":{"v":416182.8336755646,"d":"416,183"}},{"$f":"($A30-$A29)/365.25*$D$1*(1+$D$2+(VLOOKUP('RE Appr'!CH37,'RE Appr'!$E$13:$J$59,6,FALSE)/100))","v":{"v":436374.2094455852,"d":"436,374"}},{"$f":"($A30-$A29)/365.25*$D$1*(1+$D$2+(VLOOKUP('RE Appr'!CI37,'RE Appr'!$E$13:$J$59,6,FALSE)/100))","v":{"v":420438.5913143351,"d":"420,439"}},{"$f":"($A30-$A29)/365.25*$D$1*(1+$D$2+(VLOOKUP('RE Appr'!CJ37,'RE Appr'!$E$13:$J$59,6,FALSE)/100))","v":{"v":441875.4825462012,"d":"441,875"}},{"$f":"($A30-$A29)/365.25*$D$1*(1+$D$2+(VLOOKUP('RE Appr'!CK37,'RE Appr'!$E$13:$J$59,6,FALSE)/100))","v":{"v":436374.2094455852,"d":"436,374"}},{"$f":"($A30-$A29)/365.25*$D$1*(1+$D$2+(VLOOKUP('RE Appr'!CL37,'RE Appr'!$E$13:$J$59,6,FALSE)/100))","v":{"v":416423.3264887064,"d":"416,423"}},{"$f":"($A30-$A29)/365.25*$D$1*(1+$D$2+(VLOOKUP('RE Appr'!CM37,'RE Appr'!$E$13:$J$59,6,FALSE)/100))","v":{"v":436374.2094455852,"d":"436,374"}},{"$f":"($A30-$A29)/365.25*$D$1*(1+$D$2+(VLOOKUP('RE Appr'!CN37,'RE Appr'!$E$13:$J$59,6,FALSE)/100))","v":{"v":424890.67761806975,"d":"424,891"}},{"$f":"($A30-$A29)/365.25*$D$1*(1+$D$2+(VLOOKUP('RE Appr'!CO37,'RE Appr'!$E$13:$J$59,6,FALSE)/100))","v":{"v":442737.24845995894,"d":"442,737"}},{"$f":"($A30-$A29)/365.25*$D$1*(1+$D$2+(VLOOKUP('RE Appr'!CP37,'RE Appr'!$E$13:$J$59,6,FALSE)/100))","v":{"v":442737.24845995894,"d":"442,737"}},{"$f":"($A30-$A29)/365.25*$D$1*(1+$D$2+(VLOOKUP('RE Appr'!CQ37,'RE Appr'!$E$13:$J$59,6,FALSE)/100))","v":{"v":372342.9979466119,"d":"372,343"}},{"$f":"($A30-$A29)/365.25*$D$1*(1+$D$2+(VLOOKUP('RE Appr'!CR37,'RE Appr'!$E$13:$J$59,6,FALSE)/100))","v":{"v":452254.75154004106,"d":"452,255"}},{"$f":"($A30-$A29)/365.25*$D$1*(1+$D$2+(VLOOKUP('RE Appr'!CS37,'RE Appr'!$E$13:$J$59,6,FALSE)/100))","v":{"v":438238.0287474333,"d":"438,238"}},{"$f":"($A30-$A29)/365.25*$D$1*(1+$D$2+(VLOOKUP('RE Appr'!CT37,'RE Appr'!$E$13:$J$59,6,FALSE)/100))","v":{"v":432957.20739219716,"d":"432,957"}},{"$f":"($A30-$A29)/365.25*$D$1*(1+$D$2+(VLOOKUP('RE Appr'!CU37,'RE Appr'!$E$13:$J$59,6,FALSE)/100))","v":{"v":438238.0287474333,"d":"438,238"}},{"$f":"($A30-$A29)/365.25*$D$1*(1+$D$2+(VLOOKUP('RE Appr'!CV37,'RE Appr'!$E$13:$J$59,6,FALSE)/100))","v":{"v":412174.62012320326,"d":"412,175"}},{"$f":"($A30-$A29)/365.25*$D$1*(1+$D$2+(VLOOKUP('RE Appr'!CW37,'RE Appr'!$E$13:$J$59,6,FALSE)/100))","v":{"v":420491.66324435314,"d":"420,492"}},{"$f":"($A30-$A29)/365.25*$D$1*(1+$D$2+(VLOOKUP('RE Appr'!CX37,'RE Appr'!$E$13:$J$59,6,FALSE)/100))","v":{"v":427209.2230439196,"d":"427,209"}},{"$f":"($A30-$A29)/365.25*$D$1*(1+$D$2+(VLOOKUP('RE Appr'!CY37,'RE Appr'!$E$13:$J$59,6,FALSE)/100))","v":{"v":419319.26078028744,"d":"419,319"}},{"$f":"($A30-$A29)/365.25*$D$1*(1+$D$2+(VLOOKUP('RE Appr'!CZ37,'RE Appr'!$E$13:$J$59,6,FALSE)/100))","v":{"v":438238.0287474333,"d":"438,238"}},{"$f":"($A30-$A29)/365.25*$D$1*(1+$D$2+(VLOOKUP('RE Appr'!DA37,'RE Appr'!$E$13:$J$59,6,FALSE)/100))","v":{"v":412174.62012320326,"d":"412,175"}},{"$f":"($A30-$A29)/365.25*$D$1*(1+$D$2+(VLOOKUP('RE Appr'!DB37,'RE Appr'!$E$13:$J$59,6,FALSE)/100))","v":{"v":408206.48870636546,"d":"408,206"}},{"$f":"($A30-$A29)/365.25*$D$1*(1+$D$2+(VLOOKUP('RE Appr'!DC37,'RE Appr'!$E$13:$J$59,6,FALSE)/100))","v":{"v":408206.48870636546,"d":"408,206"}},{"$f":"($A30-$A29)/365.25*$D$1*(1+$D$2+(VLOOKUP('RE Appr'!DD37,'RE Appr'!$E$13:$J$59,6,FALSE)/100))","v":{"v":411853.9630390144,"d":"411,854"}},{"$f":"($A30-$A29)/365.25*$D$1*(1+$D$2+(VLOOKUP('RE Appr'!DE37,'RE Appr'!$E$13:$J$59,6,FALSE)/100))","v":{"v":419319.26078028744,"d":"419,319"}},{"$f":"($A30-$A29)/365.25*$D$1*(1+$D$2+(VLOOKUP('RE Appr'!DF37,'RE Appr'!$E$13:$J$59,6,FALSE)/100))","v":{"v":417375.27720739215,"d":"417,375"}},{"$f":"($A30-$A29)/365.25*$D$1*(1+$D$2+(VLOOKUP('RE Appr'!DG37,'RE Appr'!$E$13:$J$59,6,FALSE)/100))","v":{"v":400420.5338809035,"d":"400,421"}}]
[{"$f":"Main!A33","v":"2048-12-30"},26,{"$nulls":3},{"$f":"($A31-$A30)/365.25*$D$1*(1+$D$2+(VLOOKUP('RE Appr'!L38,'RE Appr'!$E$13:$J$59,6,FALSE)/100))","v":{"v":412977.13894592744,"d":"412,977"}},{"$f":"($A31-$A30)/365.25*$D$1*(1+$D$2+(VLOOKUP('RE Appr'!M38,'RE Appr'!$E$13:$J$59,6,FALSE)/100))","v":{"v":375602.7378507871,"d":"375,603"}},{"$f":"($A31-$A30)/365.25*$D$1*(1+$D$2+(VLOOKUP('RE Appr'!N38,'RE Appr'!$E$13:$J$59,6,FALSE)/100))","v":{"v":423749.76043805614,"d":"423,750"}},{"$f":"($A31-$A30)/365.25*$D$1*(1+$D$2+(VLOOKUP('RE Appr'!O38,'RE Appr'!$E$13:$J$59,6,FALSE)/100))","v":{"v":429315.94798083504,"d":"429,316"}},{"$f":"($A31-$A30)/365.25*$D$1*(1+$D$2+(VLOOKUP('RE Appr'!P38,'RE Appr'!$E$13:$J$59,6,FALSE)/100))","v":{"v":431774.264202601,"d":"431,774"}},{"$f":"($A31-$A30)/365.25*$D$1*(1+$D$2+(VLOOKUP('RE Appr'!Q38,'RE Appr'!$E$13:$J$59,6,FALSE)/100))","v":{"v":386675.1540041068,"d":"386,675"}},{"$f":"($A31-$A30)/365.25*$D$1*(1+$D$2+(VLOOKUP('RE Appr'!R38,'RE Appr'!$E$13:$J$59,6,FALSE)/100))","v":{"v":407091.1704312115,"d":"407,091"}},{"$f":"($A31-$A30)/365.25*$D$1*(1+$D$2+(VLOOKUP('RE Appr'!S38,'RE Appr'!$E$13:$J$59,6,FALSE)/100))","v":{"v":375602.7378507871,"d":"375,603"}},{"$f":"($A31-$A30)/365.25*$D$1*(1+$D$2+(VLOOKUP('RE Appr'!T38,'RE Appr'!$E$13:$J$59,6,FALSE)/100))","v":{"v":420192.19712525664,"d":"420,192"}},{"$f":"($A31-$A30)/365.25*$D$1*(1+$D$2+(VLOOKUP('RE Appr'!U38,'RE Appr'!$E$13:$J$59,6,FALSE)/100))","v":{"v":412277.6180698152,"d":"412,278"}},{"$f":"($A31-$A30)/365.25*$D$1*(1+$D$2+(VLOOKUP('RE Appr'!V38,'RE Appr'!$E$13:$J$59,6,FALSE)/100))","v":{"v":434212.5941136209,"d":"434,213"}},{"$f":"($A31-$A30)/365.25*$D$1*(1+$D$2+(VLOOKUP('RE Appr'!W38,'RE Appr'!$E$13:$J$59,6,FALSE)/100))","v":{"v":419542.64202600956,"d":"419,543"}},{"$f":"($A31-$A30)/365.25*$D$1*(1+$D$2+(VLOOKUP('RE Appr'!X38,'RE Appr'!$E$13:$J$59,6,FALSE)/100))","v":{"v":375602.7378507871,"d":"375,603"}},{"$f":"($A31-$A30)/365.25*$D$1*(1+$D$2+(VLOOKUP('RE Appr'!Y38,'RE Appr'!$E$13:$J$59,6,FALSE)/100))","v":{"v":419632.5804243669,"d":"419,633"}},{"$f":"($A31-$A30)/365.25*$D$1*(1+$D$2+(VLOOKUP('RE Appr'!Z38,'RE Appr'!$E$13:$J$59,6,FALSE)/100))","v":{"v":399326.4887063655,"d":"399,326"}},{"$f":"($A31-$A30)/365.25*$D$1*(1+$D$2+(VLOOKUP('RE Appr'!AA38,'RE Appr'!$E$13:$J$59,6,FALSE)/100))","v":{"v":412637.3716632444,"d":"412,637"}},{"$f":"($A31-$A30)/365.25*$D$1*(1+$D$2+(VLOOKUP('RE Appr'!AB38,'RE Appr'!$E$13:$J$59,6,FALSE)/100))","v":{"v":455687.8850102669,"d":"455,688"}},{"$f":"($A31-$A30)/365.25*$D$1*(1+$D$2+(VLOOKUP('RE Appr'!AC38,'RE Appr'!$E$13:$J$59,6,FALSE)/100))","v":{"v":410728.67898699525,"d":"410,729"}},{"$f":"($A31-$A30)/365.25*$D$1*(1+$D$2+(VLOOKUP('RE Appr'!AD38,'RE Appr'!$E$13:$J$59,6,FALSE)/100))","v":{"v":411048.45995893225,"d":"411,048"}},{"$f":"($A31-$A30)/365.25*$D$1*(1+$D$2+(VLOOKUP('RE Appr'!AE38,'RE Appr'!$E$13:$J$59,6,FALSE)/100))","v":{"v":417653.93566050654,"d":"417,654"}},{"$f":"($A31-$A30)/365.25*$D$1*(1+$D$2+(VLOOKUP('RE Appr'!AF38,'RE Appr'!$E$13:$J$59,6,FALSE)/100))","v":{"v":383827.10472279263,"d":"383,827"}},{"$f":"($A31-$A30)/365.25*$D$1*(1+$D$2+(VLOOKUP('RE Appr'!AG38,'RE Appr'!$E$13:$J$59,6,FALSE)/100))","v":{"v":426041.984729592,"d":"426,042"}},{"$f":"($A31-$A30)/365.25*$D$1*(1+$D$2+(VLOOKUP('RE Appr'!AH38,'RE Appr'!$E$13:$J$59,6,FALSE)/100))","v":{"v":419289.85199380416,"d":"419,290"}},{"$f":"($A31-$A30)/365.25*$D$1*(1+$D$2+(VLOOKUP('RE Appr'!AI38,'RE Appr'!$E$13:$J$59,6,FALSE)/100))","v":{"v":417916.4969295789,"d":"417,916"}},{"$f":"($A31-$A30)/365.25*$D$1*(1+$D$2+(VLOOKUP('RE Appr'!AJ38,'RE Appr'!$E$13:$J$59,6,FALSE)/100))","v":{"v":435771.5263518138,"d":"435,772"}},{"$f":"($A31-$A30)/365.25*$D$1*(1+$D$2+(VLOOKUP('RE Appr'!AK38,'RE Appr'!$E$13:$J$59,6,FALSE)/100))","v":{"v":407091.1704312115,"d":"407,091"}},{"$f":"($A31-$A30)/365.25*$D$1*(1+$D$2+(VLOOKUP('RE Appr'!AL38,'RE Appr'!$E$13:$J$59,6,FALSE)/100))","v":{"v":401385.0787132102,"d":"401,385"}},{"$f":"($A31-$A30)/365.25*$D$1*(1+$D$2+(VLOOKUP('RE Appr'!AM38,'RE Appr'!$E$13:$J$59,6,FALSE)/100))","v":{"v":423749.76043805614,"d":"423,750"}},{"$f":"($A31-$A30)/365.25*$D$1*(1+$D$2+(VLOOKUP('RE Appr'!AN38,'RE Appr'!$E$13:$J$59,6,FALSE)/100))","v":{"v":419342.77891854895,"d":"419,343"}},{"$f":"($A31-$A30)/365.25*$D$1*(1+$D$2+(VLOOKUP('RE Appr'!AO38,'RE Appr'!$E$13:$J$59,6,FALSE)/100))","v":{"v":470497.7412731006,"d":"470,498"}},{"$f":"($A31-$A30)/365.25*$D$1*(1+$D$2+(VLOOKUP('RE Appr'!AP38,'RE Appr'!$E$13:$J$59,6,FALSE)/100))","v":{"v":431774.264202601,"d":"431,774"}},{"$f":"($A31-$A30)/365.25*$D$1*(1+$D$2+(VLOOKUP('RE Appr'!AQ38,'RE Appr'!$E$13:$J$59,6,FALSE)/100))","v":{"v":451019.08281998633,"d":"451,019"}},{"$f":"($A31-$A30)/365.25*$D$1*(1+$D$2+(VLOOKUP('RE Appr'!AR38,'RE Appr'!$E$13:$J$59,6,FALSE)/100))","v":{"v":434212.5941136209,"d":"434,213"}},{"$f":"($A31-$A30)/365.25*$D$1*(1+$D$2+(VLOOKUP('RE Appr'!AS38,'RE Appr'!$E$13:$J$59,6,FALSE)/100))","v":{"v":423729.77412731,"d":"423,730"}},{"$f":"($A31-$A30)/365.25*$D$1*(1+$D$2+(VLOOKUP('RE Appr'!AT38,'RE Appr'!$E$13:$J$59,6,FALSE)/100))","v":{"v":375602.7378507871,"d":"375,603"}},{"$f":"($A31-$A30)/365.25*$D$1*(1+$D$2+(VLOOKUP('RE Appr'!AU38,'RE Appr'!$E$13:$J$59,6,FALSE)/100))","v":{"v":440668.1724845996,"d":"440,668"}},{"$f":"($A31-$A30)/365.25*$D$1*(1+$D$2+(VLOOKUP('RE Appr'!AV38,'RE Appr'!$E$13:$J$59,6,FALSE)/100))","v":{"v":437040.65708418895,"d":"437,041"}},{"$f":"($A31-$A30)/365.25*$D$1*(1+$D$2+(VLOOKUP('RE Appr'!AW38,'RE Appr'!$E$13:$J$59,6,FALSE)/100))","v":{"v":419542.64202600956,"d":"419,543"}},{"$f":"($A31-$A30)/365.25*$D$1*(1+$D$2+(VLOOKUP('RE Appr'!AX38,'RE Appr'!$E$13:$J$59,6,FALSE)/100))","v":{"v":423749.76043805614,"d":"423,750"}},{"$f":"($A31-$A30)/365.25*$D$1*(1+$D$2+(VLOOKUP('RE Appr'!AY38,'RE Appr'!$E$13:$J$59,6,FALSE)/100))","v":{"v":422510.60917180014,"d":"422,511"}},{"$f":"($A31-$A30)/365.25*$D$1*(1+$D$2+(VLOOKUP('RE Appr'!AZ38,'RE Appr'!$E$13:$J$59,6,FALSE)/100))","v":{"v":437040.65708418895,"d":"437,041"}},{"$f":"($A31-$A30)/365.25*$D$1*(1+$D$2+(VLOOKUP('RE Appr'!BA38,'RE Appr'!$E$13:$J$59,6,FALSE)/100))","v":{"v":417653.93566050654,"d":"417,654"}},{"$f":"($A31-$A30)/365.25*$D$1*(1+$D$2+(VLOOKUP('RE Appr'!BB38,'RE Appr'!$E$13:$J$59,6,FALSE)/100))","v":{"v":440668.1724845996,"d":"440,668"}},{"$f":"($A31-$A30)/365.25*$D$1*(1+$D$2+(VLOOKUP('RE Appr'!BC38,'RE Appr'!$E$13:$J$59,6,FALSE)/100))","v":{"v":416234.9075975359,"d":"416,235"}},{"$f":"($A31-$A30)/365.25*$D$1*(1+$D$2+(VLOOKUP('RE Appr'!BD38,'RE Appr'!$E$13:$J$59,6,FALSE)/100))","v":{"v":435771.5263518138,"d":"435,772"}},{"$f":"($A31-$A30)/365.25*$D$1*(1+$D$2+(VLOOKUP('RE Appr'!BE38,'RE Appr'!$E$13:$J$59,6,FALSE)/100))","v":{"v":415847.54106599226,"d":"415,848"}},{"$f":"($A31-$A30)/365.25*$D$1*(1+$D$2+(VLOOKUP('RE Appr'!BF38,'RE Appr'!$E$13:$J$59,6,FALSE)/100))","v":{"v":412277.6180698152,"d":"412,278"}},{"$f":"($A31-$A30)/365.25*$D$1*(1+$D$2+(VLOOKUP('RE Appr'!BG38,'RE Appr'!$E$13:$J$59,6,FALSE)/100))","v":{"v":401385.0787132102,"d":"401,385"}},{"$f":"($A31-$A30)/365.25*$D$1*(1+$D$2+(VLOOKUP('RE Appr'!BH38,'RE Appr'!$E$13:$J$59,6,FALSE)/100))","v":{"v":399326.4887063655,"d":"399,326"}},{"$f":"($A31-$A30)/365.25*$D$1*(1+$D$2+(VLOOKUP('RE Appr'!BI38,'RE Appr'!$E$13:$J$59,6,FALSE)/100))","v":{"v":417653.93566050654,"d":"417,654"}},{"$f":"($A31-$A30)/365.25*$D$1*(1+$D$2+(VLOOKUP('RE Appr'!BJ38,'RE Appr'!$E$13:$J$59,6,FALSE)/100))","v":{"v":399326.4887063655,"d":"399,326"}},{"$f":"($A31-$A30)/365.25*$D$1*(1+$D$2+(VLOOKUP('RE Appr'!BK38,'RE Appr'!$E$13:$J$59,6,FALSE)/100))","v":{"v":426041.984729592,"d":"426,042"}},{"$f":"($A31-$A30)/365.25*$D$1*(1+$D$2+(VLOOKUP('RE Appr'!BL38,'RE Appr'!$E$13:$J$59,6,FALSE)/100))","v":{"v":423729.77412731,"d":"423,730"}},{"$f":"($A31-$A30)/365.25*$D$1*(1+$D$2+(VLOOKUP('RE Appr'!BM38,'RE Appr'!$E$13:$J$59,6,FALSE)/100))","v":{"v":410728.67898699525,"d":"410,729"}},{"$f":"($A31-$A30)/365.25*$D$1*(1+$D$2+(VLOOKUP('RE Appr'!BN38,'RE Appr'!$E$13:$J$59,6,FALSE)/100))","v":{"v":451019.08281998633,"d":"451,019"}},{"$f":"($A31-$A30)/365.25*$D$1*(1+$D$2+(VLOOKUP('RE Appr'!BO38,'RE Appr'!$E$13:$J$59,6,FALSE)/100))","v":{"v":470497.7412731006,"d":"470,498"}},{"$f":"($A31-$A30)/365.25*$D$1*(1+$D$2+(VLOOKUP('RE Appr'!BP38,'RE Appr'!$E$13:$J$59,6,FALSE)/100))","v":{"v":455687.8850102669,"d":"455,688"}},{"$f":"($A31-$A30)/365.25*$D$1*(1+$D$2+(VLOOKUP('RE Appr'!BQ38,'RE Appr'!$E$13:$J$59,6,FALSE)/100))","v":{"v":401385.0787132102,"d":"401,385"}},{"$f":"($A31-$A30)/365.25*$D$1*(1+$D$2+(VLOOKUP('RE Appr'!BR38,'RE Appr'!$E$13:$J$59,6,FALSE)/100))","v":{"v":407091.1704312115,"d":"407,091"}},{"$f":"($A31-$A30)/365.25*$D$1*(1+$D$2+(VLOOKUP('RE Appr'!BS38,'RE Appr'!$E$13:$J$59,6,FALSE)/100))","v":{"v":422510.60917180014,"d":"422,511"}},{"$f":"($A31-$A30)/365.25*$D$1*(1+$D$2+(VLOOKUP('RE Appr'!BT38,'RE Appr'!$E$13:$J$59,6,FALSE)/100))","v":{"v":383827.10472279263,"d":"383,827"}},{"$f":"($A31-$A30)/365.25*$D$1*(1+$D$2+(VLOOKUP('RE Appr'!BU38,'RE Appr'!$E$13:$J$59,6,FALSE)/100))","v":{"v":383827.10472279263,"d":"383,827"}},{"$f":"($A31-$A30)/365.25*$D$1*(1+$D$2+(VLOOKUP('RE Appr'!BV38,'RE Appr'!$E$13:$J$59,6,FALSE)/100))","v":{"v":441527.5838466804,"d":"441,528"}},{"$f":"($A31-$A30)/365.25*$D$1*(1+$D$2+(VLOOKUP('RE Appr'!BW38,'RE Appr'!$E$13:$J$59,6,FALSE)/100))","v":{"v":440668.1724845996,"d":"440,668"}},{"$f":"($A31-$A30)/365.25*$D$1*(1+$D$2+(VLOOKUP('RE Appr'!BX38,'RE Appr'!$E$13:$J$59,6,FALSE)/100))","v":{"v":440668.1724845996,"d":"440,668"}},{"$f":"($A31-$A30)/365.25*$D$1*(1+$D$2+(VLOOKUP('RE Appr'!BY38,'RE Appr'!$E$13:$J$59,6,FALSE)/100))","v":{"v":420192.19712525664,"d":"420,192"}},{"$f":"($A31-$A30)/365.25*$D$1*(1+$D$2+(VLOOKUP('RE Appr'!BZ38,'RE Appr'!$E$13:$J$59,6,FALSE)/100))","v":{"v":412637.3716632444,"d":"412,637"}},{"$f":"($A31-$A30)/365.25*$D$1*(1+$D$2+(VLOOKUP('RE Appr'!CA38,'RE Appr'!$E$13:$J$59,6,FALSE)/100))","v":{"v":386675.1540041068,"d":"386,675"}},{"$f":"($A31-$A30)/365.25*$D$1*(1+$D$2+(VLOOKUP('RE Appr'!CB38,'RE Appr'!$E$13:$J$59,6,FALSE)/100))","v":{"v":412977.13894592744,"d":"412,977"}},{"$f":"($A31-$A30)/365.25*$D$1*(1+$D$2+(VLOOKUP('RE Appr'!CC38,'RE Appr'!$E$13:$J$59,6,FALSE)/100))","v":{"v":399326.4887063655,"d":"399,326"}},{"$f":"($A31-$A30)/365.25*$D$1*(1+$D$2+(VLOOKUP('RE Appr'!CD38,'RE Appr'!$E$13:$J$59,6,FALSE)/100))","v":{"v":412517.453798768,"d":"412,517"}},{"$f":"($A31-$A30)/365.25*$D$1*(1+$D$2+(VLOOKUP('RE Appr'!CE38,'RE Appr'!$E$13:$J$59,6,FALSE)/100))","v":{"v":435771.5263518138,"d":"435,772"}},{"$f":"($A31-$A30)/365.25*$D$1*(1+$D$2+(VLOOKUP('RE Appr'!CF38,'RE Appr'!$E$13:$J$59,6,FALSE)/100))","v":{"v":412637.3716632444,"d":"412,637"}},{"$f":"($A31-$A30)/365.25*$D$1*(1+$D$2+(VLOOKUP('RE Appr'!CG38,'RE Appr'!$E$13:$J$59,6,FALSE)/100))","v":{"v":415045.72210814507,"d":"415,046"}},{"$f":"($A31-$A30)/365.25*$D$1*(1+$D$2+(VLOOKUP('RE Appr'!CH38,'RE Appr'!$E$13:$J$59,6,FALSE)/100))","v":{"v":412277.6180698152,"d":"412,278"}},{"$f":"($A31-$A30)/365.25*$D$1*(1+$D$2+(VLOOKUP('RE Appr'!CI38,'RE Appr'!$E$13:$J$59,6,FALSE)/100))","v":{"v":375602.7378507871,"d":"375,603"}},{"$f":"($A31-$A30)/365.25*$D$1*(1+$D$2+(VLOOKUP('RE Appr'!CJ38,'RE Appr'!$E$13:$J$59,6,FALSE)/100))","v":{"v":416694.59274469543,"d":"416,695"}},{"$f":"($A31-$A30)/365.25*$D$1*(1+$D$2+(VLOOKUP('RE Appr'!CK38,'RE Appr'!$E$13:$J$59,6,FALSE)/100))","v":{"v":412517.453798768,"d":"412,517"}},{"$f":"($A31-$A30)/365.25*$D$1*(1+$D$2+(VLOOKUP('RE Appr'!CL38,'RE Appr'!$E$13:$J$59,6,FALSE)/100))","v":{"v":419342.77891854895,"d":"419,343"}},{"$f":"($A31-$A30)/365.25*$D$1*(1+$D$2+(VLOOKUP('RE Appr'!CM38,'RE Appr'!$E$13:$J$59,6,FALSE)/100))","v":{"v":401385.0787132102,"d":"401,385"}},{"$f":"($A31-$A30)/365.25*$D$1*(1+$D$2+(VLOOKUP('RE Appr'!CN38,'RE Appr'!$E$13:$J$59,6,FALSE)/100))","v":{"v":435771.5263518138,"d":"435,772"}},{"$f":"($A31-$A30)/365.25*$D$1*(1+$D$2+(VLOOKUP('RE Appr'!CO38,'RE Appr'!$E$13:$J$59,6,FALSE)/100))","v":{"v":412637.3716632444,"d":"412,637"}},{"$f":"($A31-$A30)/365.25*$D$1*(1+$D$2+(VLOOKUP('RE Appr'!CP38,'RE Appr'!$E$13:$J$59,6,FALSE)/100))","v":{"v":435771.5263518138,"d":"435,772"}},{"$f":"($A31-$A30)/365.25*$D$1*(1+$D$2+(VLOOKUP('RE Appr'!CQ38,'RE Appr'!$E$13:$J$59,6,FALSE)/100))","v":{"v":429315.94798083504,"d":"429,316"}},{"$f":"($A31-$A30)/365.25*$D$1*(1+$D$2+(VLOOKUP('RE Appr'!CR38,'RE Appr'!$E$13:$J$59,6,FALSE)/100))","v":{"v":412517.453798768,"d":"412,517"}},{"$f":"($A31-$A30)/365.25*$D$1*(1+$D$2+(VLOOKUP('RE Appr'!CS38,'RE Appr'!$E$13:$J$59,6,FALSE)/100))","v":{"v":386675.1540041068,"d":"386,675"}},{"$f":"($A31-$A30)/365.25*$D$1*(1+$D$2+(VLOOKUP('RE Appr'!CT38,'RE Appr'!$E$13:$J$59,6,FALSE)/100))","v":{"v":415285.5578370979,"d":"415,286"}},{"$f":"($A31-$A30)/365.25*$D$1*(1+$D$2+(VLOOKUP('RE Appr'!CU38,'RE Appr'!$E$13:$J$59,6,FALSE)/100))","v":{"v":416234.9075975359,"d":"416,235"}},{"$f":"($A31-$A30)/365.25*$D$1*(1+$D$2+(VLOOKUP('RE Appr'!CV38,'RE Appr'!$E$13:$J$59,6,FALSE)/100))","v":{"v":419289.85199380416,"d":"419,290"}},{"$f":"($A31-$A30)/365.25*$D$1*(1+$D$2+(VLOOKUP('RE Appr'!CW38,'RE Appr'!$E$13:$J$59,6,FALSE)/100))","v":{"v":412277.6180698152,"d":"412,278"}},{"$f":"($A31-$A30)/365.25*$D$1*(1+$D$2+(VLOOKUP('RE Appr'!CX38,'RE Appr'!$E$13:$J$59,6,FALSE)/100))","v":{"v":401385.0787132102,"d":"401,385"}},{"$f":"($A31-$A30)/365.25*$D$1*(1+$D$2+(VLOOKUP('RE Appr'!CY38,'RE Appr'!$E$13:$J$59,6,FALSE)/100))","v":{"v":412517.453798768,"d":"412,517"}},{"$f":"($A31-$A30)/365.25*$D$1*(1+$D$2+(VLOOKUP('RE Appr'!CZ38,'RE Appr'!$E$13:$J$59,6,FALSE)/100))","v":{"v":412977.13894592744,"d":"412,977"}},{"$f":"($A31-$A30)/365.25*$D$1*(1+$D$2+(VLOOKUP('RE Appr'!DA38,'RE Appr'!$E$13:$J$59,6,FALSE)/100))","v":{"v":401385.0787132102,"d":"401,385"}},{"$f":"($A31-$A30)/365.25*$D$1*(1+$D$2+(VLOOKUP('RE Appr'!DB38,'RE Appr'!$E$13:$J$59,6,FALSE)/100))","v":{"v":411048.45995893225,"d":"411,048"}},{"$f":"($A31-$A30)/365.25*$D$1*(1+$D$2+(VLOOKUP('RE Appr'!DC38,'RE Appr'!$E$13:$J$59,6,FALSE)/100))","v":{"v":419542.64202600956,"d":"419,543"}},{"$f":"($A31-$A30)/365.25*$D$1*(1+$D$2+(VLOOKUP('RE Appr'!DD38,'RE Appr'!$E$13:$J$59,6,FALSE)/100))","v":{"v":412977.13894592744,"d":"412,977"}},{"$f":"($A31-$A30)/365.25*$D$1*(1+$D$2+(VLOOKUP('RE Appr'!DE38,'RE Appr'!$E$13:$J$59,6,FALSE)/100))","v":{"v":417916.4969295789,"d":"417,916"}},{"$f":"($A31-$A30)/365.25*$D$1*(1+$D$2+(VLOOKUP('RE Appr'!DF38,'RE Appr'!$E$13:$J$59,6,FALSE)/100))","v":{"v":418833.85952220886,"d":"418,834"}},{"$f":"($A31-$A30)/365.25*$D$1*(1+$D$2+(VLOOKUP('RE Appr'!DG38,'RE Appr'!$E$13:$J$59,6,FALSE)/100))","v":{"v":419542.64202600956,"d":"419,543"}}]
[{"$f":"Main!A34","v":"2049-12-30"},27,{"$nulls":3},{"$f":"($A32-$A31)/365.25*$D$1*(1+$D$2+(VLOOKUP('RE Appr'!L39,'RE Appr'!$E$13:$J$59,6,FALSE)/100))","v":{"v":399326.4887063655,"d":"399,326"}},{"$f":"($A32-$A31)/365.25*$D$1*(1+$D$2+(VLOOKUP('RE Appr'!M39,'RE Appr'!$E$13:$J$59,6,FALSE)/100))","v":{"v":419342.77891854895,"d":"419,343"}},{"$f":"($A32-$A31)/365.25*$D$1*(1+$D$2+(VLOOKUP('RE Appr'!N39,'RE Appr'!$E$13:$J$59,6,FALSE)/100))","v":{"v":412517.453798768,"d":"412,517"}},{"$f":"($A32-$A31)/365.25*$D$1*(1+$D$2+(VLOOKUP('RE Appr'!O39,'RE Appr'!$E$13:$J$59,6,FALSE)/100))","v":{"v":421665.9736136933,"d":"421,666"}},{"$f":"($A32-$A31)/365.25*$D$1*(1+$D$2+(VLOOKUP('RE Appr'!P39,'RE Appr'!$E$13:$J$59,6,FALSE)/100))","v":{"v":423749.76043805614,"d":"423,750"}},{"$f":"($A32-$A31)/365.25*$D$1*(1+$D$2+(VLOOKUP('RE Appr'!Q39,'RE Appr'!$E$13:$J$59,6,FALSE)/100))","v":{"v":416694.59274469543,"d":"416,695"}},{"$f":"($A32-$A31)/365.25*$D$1*(1+$D$2+(VLOOKUP('RE Appr'!R39,'RE Appr'!$E$13:$J$59,6,FALSE)/100))","v":{"v":451019.08281998633,"d":"451,019"}},{"$f":"($A32-$A31)/365.25*$D$1*(1+$D$2+(VLOOKUP('RE Appr'!S39,'RE Appr'!$E$13:$J$59,6,FALSE)/100))","v":{"v":421665.9736136933,"d":"421,666"}},{"$f":"($A32-$A31)/365.25*$D$1*(1+$D$2+(VLOOKUP('RE Appr'!T39,'RE Appr'!$E$13:$J$59,6,FALSE)/100))","v":{"v":415045.72210814507,"d":"415,046"}},{"$f":"($A32-$A31)/365.25*$D$1*(1+$D$2+(VLOOKUP('RE Appr'!U39,'RE Appr'!$E$13:$J$59,6,FALSE)/100))","v":{"v":423729.77412731,"d":"423,730"}},{"$f":"($A32-$A31)/365.25*$D$1*(1+$D$2+(VLOOKUP('RE Appr'!V39,'RE Appr'!$E$13:$J$59,6,FALSE)/100))","v":{"v":412517.453798768,"d":"412,517"}},{"$f":"($A32-$A31)/365.25*$D$1*(1+$D$2+(VLOOKUP('RE Appr'!W39,'RE Appr'!$E$13:$J$59,6,FALSE)/100))","v":{"v":412277.6180698152,"d":"412,278"}},{"$f":"($A32-$A31)/365.25*$D$1*(1+$D$2+(VLOOKUP('RE Appr'!X39,'RE Appr'!$E$13:$J$59,6,FALSE)/100))","v":{"v":440668.1724845996,"d":"440,668"}},{"$f":"($A32-$A31)/365.25*$D$1*(1+$D$2+(VLOOKUP('RE Appr'!Y39,'RE Appr'!$E$13:$J$59,6,FALSE)/100))","v":{"v":371325.66735112935,"d":"371,326"}},{"$f":"($A32-$A31)/365.25*$D$1*(1+$D$2+(VLOOKUP('RE Appr'!Z39,'RE Appr'!$E$13:$J$59,6,FALSE)/100))","v":{"v":417916.4969295789,"d":"417,916"}},{"$f":"($A32-$A31)/365.25*$D$1*(1+$D$2+(VLOOKUP('RE Appr'!AA39,'RE Appr'!$E$13:$J$59,6,FALSE)/100))","v":{"v":412277.6180698152,"d":"412,278"}},{"$f":"($A32-$A31)/365.25*$D$1*(1+$D$2+(VLOOKUP('RE Appr'!AB39,'RE Appr'!$E$13:$J$59,6,FALSE)/100))","v":{"v":412277.6180698152,"d":"412,278"}},{"$f":"($A32-$A31)/365.25*$D$1*(1+$D$2+(VLOOKUP('RE Appr'!AC39,'RE Appr'!$E$13:$J$59,6,FALSE)/100))","v":{"v":423749.76043805614,"d":"423,750"}},{"$f":"($A32-$A31)/365.25*$D$1*(1+$D$2+(VLOOKUP('RE Appr'!AD39,'RE Appr'!$E$13:$J$59,6,FALSE)/100))","v":{"v":423749.76043805614,"d":"423,750"}},{"$f":"($A32-$A31)/365.25*$D$1*(1+$D$2+(VLOOKUP('RE Appr'!AE39,'RE Appr'!$E$13:$J$59,6,FALSE)/100))","v":{"v":441107.871321013,"d":"441,108"}},{"$f":"($A32-$A31)/365.25*$D$1*(1+$D$2+(VLOOKUP('RE Appr'!AF39,'RE Appr'!$E$13:$J$59,6,FALSE)/100))","v":{"v":386675.1540041068,"d":"386,675"}},{"$f":"($A32-$A31)/365.25*$D$1*(1+$D$2+(VLOOKUP('RE Appr'!AG39,'RE Appr'!$E$13:$J$59,6,FALSE)/100))","v":{"v":412637.3716632444,"d":"412,637"}},{"$f":"($A32-$A31)/365.25*$D$1*(1+$D$2+(VLOOKUP('RE Appr'!AH39,'RE Appr'!$E$13:$J$59,6,FALSE)/100))","v":{"v":441527.5838466804,"d":"441,528"}},{"$f":"($A32-$A31)/365.25*$D$1*(1+$D$2+(VLOOKUP('RE Appr'!AI39,'RE Appr'!$E$13:$J$59,6,FALSE)/100))","v":{"v":410728.67898699525,"d":"410,729"}},{"$f":"($A32-$A31)/365.25*$D$1*(1+$D$2+(VLOOKUP('RE Appr'!AJ39,'RE Appr'!$E$13:$J$59,6,FALSE)/100))","v":{"v":451019.08281998633,"d":"451,019"}},{"$f":"($A32-$A31)/365.25*$D$1*(1+$D$2+(VLOOKUP('RE Appr'!AK39,'RE Appr'!$E$13:$J$59,6,FALSE)/100))","v":{"v":383827.10472279263,"d":"383,827"}},{"$f":"($A32-$A31)/365.25*$D$1*(1+$D$2+(VLOOKUP('RE Appr'!AL39,'RE Appr'!$E$13:$J$59,6,FALSE)/100))","v":{"v":435181.93018480495,"d":"435,182"}},{"$f":"($A32-$A31)/365.25*$D$1*(1+$D$2+(VLOOKUP('RE Appr'!AM39,'RE Appr'!$E$13:$J$59,6,FALSE)/100))","v":{"v":422510.60917180014,"d":"422,511"}},{"$f":"($A32-$A31)/365.25*$D$1*(1+$D$2+(VLOOKUP('RE Appr'!AN39,'RE Appr'!$E$13:$J$59,6,FALSE)/100))","v":{"v":451019.08281998633,"d":"451,019"}},{"$f":"($A32-$A31)/365.25*$D$1*(1+$D$2+(VLOOKUP('RE Appr'!AO39,'RE Appr'!$E$13:$J$59,6,FALSE)/100))","v":{"v":399326.4887063655,"d":"399,326"}},{"$f":"($A32-$A31)/365.25*$D$1*(1+$D$2+(VLOOKUP('RE Appr'!AP39,'RE Appr'!$E$13:$J$59,6,FALSE)/100))","v":{"v":409269.6783025325,"d":"409,270"}},{"$f":"($A32-$A31)/365.25*$D$1*(1+$D$2+(VLOOKUP('RE Appr'!AQ39,'RE Appr'!$E$13:$J$59,6,FALSE)/100))","v":{"v":416234.9075975359,"d":"416,235"}},{"$f":"($A32-$A31)/365.25*$D$1*(1+$D$2+(VLOOKUP('RE Appr'!AR39,'RE Appr'!$E$13:$J$59,6,FALSE)/100))","v":{"v":386675.1540041068,"d":"386,675"}},{"$f":"($A32-$A31)/365.25*$D$1*(1+$D$2+(VLOOKUP('RE Appr'!AS39,'RE Appr'!$E$13:$J$59,6,FALSE)/100))","v":{"v":416234.9075975359,"d":"416,235"}},{"$f":"($A32-$A31)/365.25*$D$1*(1+$D$2+(VLOOKUP('RE Appr'!AT39,'RE Appr'!$E$13:$J$59,6,FALSE)/100))","v":{"v":415045.72210814507,"d":"415,046"}},{"$f":"($A32-$A31)/365.25*$D$1*(1+$D$2+(VLOOKUP('RE Appr'!AU39,'RE Appr'!$E$13:$J$59,6,FALSE)/100))","v":{"v":415847.54106599226,"d":"415,848"}},{"$f":"($A32-$A31)/365.25*$D$1*(1+$D$2+(VLOOKUP('RE Appr'!AV39,'RE Appr'!$E$13:$J$59,6,FALSE)/100))","v":{"v":419342.77891854895,"d":"419,343"}},{"$f":"($A32-$A31)/365.25*$D$1*(1+$D$2+(VLOOKUP('RE Appr'!AW39,'RE Appr'!$E$13:$J$59,6,FALSE)/100))","v":{"v":441107.871321013,"d":"441,108"}},{"$f":"($A32-$A31)/365.25*$D$1*(1+$D$2+(VLOOKUP('RE Appr'!AX39,'RE Appr'!$E$13:$J$59,6,FALSE)/100))","v":{"v":419632.5804243669,"d":"419,633"}},{"$f":"($A32-$A31)/365.25*$D$1*(1+$D$2+(VLOOKUP('RE Appr'!AY39,'RE Appr'!$E$13:$J$59,6,FALSE)/100))","v":{"v":431774.264202601,"d":"431,774"}},{"$f":"($A32-$A31)/365.25*$D$1*(1+$D$2+(VLOOKUP('RE Appr'!AZ39,'RE Appr'!$E$13:$J$59,6,FALSE)/100))","v":{"v":386675.1540041068,"d":"386,675"}},{"$f":"($A32-$A31)/365.25*$D$1*(1+$D$2+(VLOOKUP('RE Appr'!BA39,'RE Appr'!$E$13:$J$59,6,FALSE)/100))","v":{"v":414845.85900068446,"d":"414,846"}},{"$f":"($A32-$A31)/365.25*$D$1*(1+$D$2+(VLOOKUP('RE Appr'!BB39,'RE Appr'!$E$13:$J$59,6,FALSE)/100))","v":{"v":409269.6783025325,"d":"409,270"}},{"$f":"($A32-$A31)/365.25*$D$1*(1+$D$2+(VLOOKUP('RE Appr'!BC39,'RE Appr'!$E$13:$J$59,6,FALSE)/100))","v":{"v":426041.984729592,"d":"426,042"}},{"$f":"($A32-$A31)/365.25*$D$1*(1+$D$2+(VLOOKUP('RE Appr'!BD39,'RE Appr'!$E$13:$J$59,6,FALSE)/100))","v":{"v":407091.1704312115,"d":"407,091"}},{"$f":"($A32-$A31)/365.25*$D$1*(1+$D$2+(VLOOKUP('RE Appr'!BE39,'RE Appr'!$E$13:$J$59,6,FALSE)/100))","v":{"v":419632.5804243669,"d":"419,633"}},{"$f":"($A32-$A31)/365.25*$D$1*(1+$D$2+(VLOOKUP('RE Appr'!BF39,'RE Appr'!$E$13:$J$59,6,FALSE)/100))","v":{"v":451019.08281998633,"d":"451,019"}},{"$f":"($A32-$A31)/365.25*$D$1*(1+$D$2+(VLOOKUP('RE Appr'!BG39,'RE Appr'!$E$13:$J$59,6,FALSE)/100))","v":{"v":401385.0787132102,"d":"401,385"}},{"$f":"($A32-$A31)/365.25*$D$1*(1+$D$2+(VLOOKUP('RE Appr'!BH39,'RE Appr'!$E$13:$J$59,6,FALSE)/100))","v":{"v":440668.1724845996,"d":"440,668"}},{"$f":"($A32-$A31)/365.25*$D$1*(1+$D$2+(VLOOKUP('RE Appr'!BI39,'RE Appr'!$E$13:$J$59,6,FALSE)/100))","v":{"v":419632.5804243669,"d":"419,633"}},{"$f":"($A32-$A31)/365.25*$D$1*(1+$D$2+(VLOOKUP('RE Appr'!BJ39,'RE Appr'!$E$13:$J$59,6,FALSE)/100))","v":{"v":423749.76043805614,"d":"423,750"}},{"$f":"($A32-$A31)/365.25*$D$1*(1+$D$2+(VLOOKUP('RE Appr'!BK39,'RE Appr'!$E$13:$J$59,6,FALSE)/100))","v":{"v":419289.85199380416,"d":"419,290"}},{"$f":"($A32-$A31)/365.25*$D$1*(1+$D$2+(VLOOKUP('RE Appr'!BL39,'RE Appr'!$E$13:$J$59,6,FALSE)/100))","v":{"v":422510.60917180014,"d":"422,511"}},{"$f":"($A32-$A31)/365.25*$D$1*(1+$D$2+(VLOOKUP('RE Appr'!BM39,'RE Appr'!$E$13:$J$59,6,FALSE)/100))","v":{"v":401385.0787132102,"d":"401,385"}},{"$f":"($A32-$A31)/365.25*$D$1*(1+$D$2+(VLOOKUP('RE Appr'!BN39,'RE Appr'!$E$13:$J$59,6,FALSE)/100))","v":{"v":419342.77891854895,"d":"419,343"}},{"$f":"($A32-$A31)/365.25*$D$1*(1+$D$2+(VLOOKUP('RE Appr'!BO39,'RE Appr'!$E$13:$J$59,6,FALSE)/100))","v":{"v":423749.76043805614,"d":"423,750"}},{"$f":"($A32-$A31)/365.25*$D$1*(1+$D$2+(VLOOKUP('RE Appr'!BP39,'RE Appr'!$E$13:$J$59,6,FALSE)/100))","v":{"v":375602.7378507871,"d":"375,603"}},{"$f":"($A32-$A31)/365.25*$D$1*(1+$D$2+(VLOOKUP('RE Appr'!BQ39,'RE Appr'!$E$13:$J$59,6,FALSE)/100))","v":{"v":437040.65708418895,"d":"437,041"}},{"$f":"($A32-$A31)/365.25*$D$1*(1+$D$2+(VLOOKUP('RE Appr'!BR39,'RE Appr'!$E$13:$J$59,6,FALSE)/100))","v":{"v":371325.66735112935,"d":"371,326"}},{"$f":"($A32-$A31)/365.25*$D$1*(1+$D$2+(VLOOKUP('RE Appr'!BS39,'RE Appr'!$E$13:$J$59,6,FALSE)/100))","v":{"v":441527.5838466804,"d":"441,528"}},{"$f":"($A32-$A31)/365.25*$D$1*(1+$D$2+(VLOOKUP('RE Appr'!BT39,'RE Appr'!$E$13:$J$59,6,FALSE)/100))","v":{"v":418833.85952220886,"d":"418,834"}},{"$f":"($A32-$A31)/365.25*$D$1*(1+$D$2+(VLOOKUP('RE Appr'!BU39,'RE Appr'!$E$13:$J$59,6,FALSE)/100))","v":{"v":451019.08281998633,"d":"451,019"}},{"$f":"($A32-$A31)/365.25*$D$1*(1+$D$2+(VLOOKUP('RE Appr'!BV39,'RE Appr'!$E$13:$J$59,6,FALSE)/100))","v":{"v":419342.77891854895,"d":"419,343"}},{"$f":"($A32-$A31)/365.25*$D$1*(1+$D$2+(VLOOKUP('RE Appr'!BW39,'RE Appr'!$E$13:$J$59,6,FALSE)/100))","v":{"v":441527.5838466804,"d":"441,528"}},{"$f":"($A32-$A31)/365.25*$D$1*(1+$D$2+(VLOOKUP('RE Appr'!BX39,'RE Appr'!$E$13:$J$59,6,FALSE)/100))","v":{"v":416234.9075975359,"d":"416,235"}},{"$f":"($A32-$A31)/365.25*$D$1*(1+$D$2+(VLOOKUP('RE Appr'!BY39,'RE Appr'!$E$13:$J$59,6,FALSE)/100))","v":{"v":418833.85952220886,"d":"418,834"}},{"$f":"($A32-$A31)/365.25*$D$1*(1+$D$2+(VLOOKUP('RE Appr'!BZ39,'RE Appr'!$E$13:$J$59,6,FALSE)/100))","v":{"v":419632.5804243669,"d":"419,633"}},{"$f":"($A32-$A31)/365.25*$D$1*(1+$D$2+(VLOOKUP('RE Appr'!CA39,'RE Appr'!$E$13:$J$59,6,FALSE)/100))","v":{"v":415045.72210814507,"d":"415,046"}},{"$f":"($A32-$A31)/365.25*$D$1*(1+$D$2+(VLOOKUP('RE Appr'!CB39,'RE Appr'!$E$13:$J$59,6,FALSE)/100))","v":{"v":437040.65708418895,"d":"437,041"}},{"$f":"($A32-$A31)/365.25*$D$1*(1+$D$2+(VLOOKUP('RE Appr'!CC39,'RE Appr'!$E$13:$J$59,6,FALSE)/100))","v":{"v":401385.0787132102,"d":"401,385"}},{"$f":"($A32-$A31)/365.25*$D$1*(1+$D$2+(VLOOKUP('RE Appr'!CD39,'RE Appr'!$E$13:$J$59,6,FALSE)/100))","v":{"v":410728.67898699525,"d":"410,729"}},{"$f":"($A32-$A31)/365.25*$D$1*(1+$D$2+(VLOOKUP('RE Appr'!CE39,'RE Appr'!$E$13:$J$59,6,FALSE)/100))","v":{"v":415285.5578370979,"d":"415,286"}},{"$f":"($A32-$A31)/365.25*$D$1*(1+$D$2+(VLOOKUP('RE Appr'!CF39,'RE Appr'!$E$13:$J$59,6,FALSE)/100))","v":{"v":419289.85199380416,"d":"419,290"}},{"$f":"($A32-$A31)/365.25*$D$1*(1+$D$2+(VLOOKUP('RE Appr'!CG39,'RE Appr'!$E$13:$J$59,6,FALSE)/100))","v":{"v":417916.4969295789,"d":"417,916"}},{"$f":"($A32-$A31)/365.25*$D$1*(1+$D$2+(VLOOKUP('RE Appr'!CH39,'RE Appr'!$E$13:$J$59,6,FALSE)/100))","v":{"v":431774.264202601,"d":"431,774"}},{"$f":"($A32-$A31)/365.25*$D$1*(1+$D$2+(VLOOKUP('RE Appr'!CI39,'RE Appr'!$E$13:$J$59,6,FALSE)/100))","v":{"v":429315.94798083504,"d":"429,316"}},{"$f":"($A32-$A31)/365.25*$D$1*(1+$D$2+(VLOOKUP('RE Appr'!CJ39,'RE Appr'!$E$13:$J$59,6,FALSE)/100))","v":{"v":429315.94798083504,"d":"429,316"}},{"$f":"($A32-$A31)/365.25*$D$1*(1+$D$2+(VLOOKUP('RE Appr'!CK39,'RE Appr'!$E$13:$J$59,6,FALSE)/100))","v":{"v":420192.19712525664,"d":"420,192"}},{"$f":"($A32-$A31)/365.25*$D$1*(1+$D$2+(VLOOKUP('RE Appr'!CL39,'RE Appr'!$E$13:$J$59,6,FALSE)/100))","v":{"v":451019.08281998633,"d":"451,019"}},{"$f":"($A32-$A31)/365.25*$D$1*(1+$D$2+(VLOOKUP('RE Appr'!CM39,'RE Appr'!$E$13:$J$59,6,FALSE)/100))","v":{"v":441527.5838466804,"d":"441,528"}},{"$f":"($A32-$A31)/365.25*$D$1*(1+$D$2+(VLOOKUP('RE Appr'!CN39,'RE Appr'!$E$13:$J$59,6,FALSE)/100))","v":{"v":415847.54106599226,"d":"415,848"}},{"$f":"($A32-$A31)/365.25*$D$1*(1+$D$2+(VLOOKUP('RE Appr'!CO39,'RE Appr'!$E$13:$J$59,6,FALSE)/100))","v":{"v":451019.08281998633,"d":"451,019"}},{"$f":"($A32-$A31)/365.25*$D$1*(1+$D$2+(VLOOKUP('RE Appr'!CP39,'RE Appr'!$E$13:$J$59,6,FALSE)/100))","v":{"v":419342.77891854895,"d":"419,343"}},{"$f":"($A32-$A31)/365.25*$D$1*(1+$D$2+(VLOOKUP('RE Appr'!CQ39,'RE Appr'!$E$13:$J$59,6,FALSE)/100))","v":{"v":421665.9736136933,"d":"421,666"}},{"$f":"($A32-$A31)/365.25*$D$1*(1+$D$2+(VLOOKUP('RE Appr'!CR39,'RE Appr'!$E$13:$J$59,6,FALSE)/100))","v":{"v":420192.19712525664,"d":"420,192"}},{"$f":"($A32-$A31)/365.25*$D$1*(1+$D$2+(VLOOKUP('RE Appr'!CS39,'RE Appr'!$E$13:$J$59,6,FALSE)/100))","v":{"v":401385.0787132102,"d":"401,385"}},{"$f":"($A32-$A31)/365.25*$D$1*(1+$D$2+(VLOOKUP('RE Appr'!CT39,'RE Appr'!$E$13:$J$59,6,FALSE)/100))","v":{"v":419542.64202600956,"d":"419,543"}},{"$f":"($A32-$A31)/365.25*$D$1*(1+$D$2+(VLOOKUP('RE Appr'!CU39,'RE Appr'!$E$13:$J$59,6,FALSE)/100))","v":{"v":415847.54106599226,"d":"415,848"}},{"$f":"($A32-$A31)/365.25*$D$1*(1+$D$2+(VLOOKUP('RE Appr'!CV39,'RE Appr'!$E$13:$J$59,6,FALSE)/100))","v":{"v":434212.5941136209,"d":"434,213"}},{"$f":"($A32-$A31)/365.25*$D$1*(1+$D$2+(VLOOKUP('RE Appr'!CW39,'RE Appr'!$E$13:$J$59,6,FALSE)/100))","v":{"v":414845.85900068446,"d":"414,846"}},{"$f":"($A32-$A31)/365.25*$D$1*(1+$D$2+(VLOOKUP('RE Appr'!CX39,'RE Appr'!$E$13:$J$59,6,FALSE)/100))","v":{"v":412277.6180698152,"d":"412,278"}},{"$f":"($A32-$A31)/365.25*$D$1*(1+$D$2+(VLOOKUP('RE Appr'!CY39,'RE Appr'!$E$13:$J$59,6,FALSE)/100))","v":{"v":401385.0787132102,"d":"401,385"}},{"$f":"($A32-$A31)/365.25*$D$1*(1+$D$2+(VLOOKUP('RE Appr'!CZ39,'RE Appr'!$E$13:$J$59,6,FALSE)/100))","v":{"v":435181.93018480495,"d":"435,182"}},{"$f":"($A32-$A31)/365.25*$D$1*(1+$D$2+(VLOOKUP('RE Appr'!DA39,'RE Appr'!$E$13:$J$59,6,FALSE)/100))","v":{"v":470497.7412731006,"d":"470,498"}},{"$f":"($A32-$A31)/365.25*$D$1*(1+$D$2+(VLOOKUP('RE Appr'!DB39,'RE Appr'!$E$13:$J$59,6,FALSE)/100))","v":{"v":386675.1540041068,"d":"386,675"}},{"$f":"($A32-$A31)/365.25*$D$1*(1+$D$2+(VLOOKUP('RE Appr'!DC39,'RE Appr'!$E$13:$J$59,6,FALSE)/100))","v":{"v":416234.9075975359,"d":"416,235"}},{"$f":"($A32-$A31)/365.25*$D$1*(1+$D$2+(VLOOKUP('RE Appr'!DD39,'RE Appr'!$E$13:$J$59,6,FALSE)/100))","v":{"v":429315.94798083504,"d":"429,316"}},{"$f":"($A32-$A31)/365.25*$D$1*(1+$D$2+(VLOOKUP('RE Appr'!DE39,'RE Appr'!$E$13:$J$59,6,FALSE)/100))","v":{"v":383827.10472279263,"d":"383,827"}},{"$f":"($A32-$A31)/365.25*$D$1*(1+$D$2+(VLOOKUP('RE Appr'!DF39,'RE Appr'!$E$13:$J$59,6,FALSE)/100))","v":{"v":407091.1704312115,"d":"407,091"}},{"$f":"($A32-$A31)/365.25*$D$1*(1+$D$2+(VLOOKUP('RE Appr'!DG39,'RE Appr'!$E$13:$J$59,6,FALSE)/100))","v":{"v":441527.5838466804,"d":"441,528"}}]
[{"$f":"Main!A35","v":"2050-12-30"},28,{"$nulls":3},{"$f":"($A33-$A32)/365.25*$D$1*(1+$D$2+(VLOOKUP('RE Appr'!L40,'RE Appr'!$E$13:$J$59,6,FALSE)/100))","v":{"v":417653.93566050654,"d":"417,654"}},{"$f":"($A33-$A32)/365.25*$D$1*(1+$D$2+(VLOOKUP('RE Appr'!M40,'RE Appr'!$E$13:$J$59,6,FALSE)/100))","v":{"v":409269.6783025325,"d":"409,270"}},{"$f":"($A33-$A32)/365.25*$D$1*(1+$D$2+(VLOOKUP('RE Appr'!N40,'RE Appr'!$E$13:$J$59,6,FALSE)/100))","v":{"v":409269.6783025325,"d":"409,270"}},{"$f":"($A33-$A32)/365.25*$D$1*(1+$D$2+(VLOOKUP('RE Appr'!O40,'RE Appr'!$E$13:$J$59,6,FALSE)/100))","v":{"v":418833.85952220886,"d":"418,834"}},{"$f":"($A33-$A32)/365.25*$D$1*(1+$D$2+(VLOOKUP('RE Appr'!P40,'RE Appr'!$E$13:$J$59,6,FALSE)/100))","v":{"v":435181.93018480495,"d":"435,182"}},{"$f":"($A33-$A32)/365.25*$D$1*(1+$D$2+(VLOOKUP('RE Appr'!Q40,'RE Appr'!$E$13:$J$59,6,FALSE)/100))","v":{"v":436840.79397672834,"d":"436,841"}},{"$f":"($A33-$A32)/365.25*$D$1*(1+$D$2+(VLOOKUP('RE Appr'!R40,'RE Appr'!$E$13:$J$59,6,FALSE)/100))","v":{"v":415847.54106599226,"d":"415,848"}},{"$f":"($A33-$A32)/365.25*$D$1*(1+$D$2+(VLOOKUP('RE Appr'!S40,'RE Appr'!$E$13:$J$59,6,FALSE)/100))","v":{"v":470497.7412731006,"d":"470,498"}},{"$f":"($A33-$A32)/365.25*$D$1*(1+$D$2+(VLOOKUP('RE Appr'!T40,'RE Appr'!$E$13:$J$59,6,FALSE)/100))","v":{"v":421665.9736136933,"d":"421,666"}},{"$f":"($A33-$A32)/365.25*$D$1*(1+$D$2+(VLOOKUP('RE Appr'!U40,'RE Appr'!$E$13:$J$59,6,FALSE)/100))","v":{"v":440668.1724845996,"d":"440,668"}},{"$f":"($A33-$A32)/365.25*$D$1*(1+$D$2+(VLOOKUP('RE Appr'!V40,'RE Appr'!$E$13:$J$59,6,FALSE)/100))","v":{"v":418833.85952220886,"d":"418,834"}},{"$f":"($A33-$A32)/365.25*$D$1*(1+$D$2+(VLOOKUP('RE Appr'!W40,'RE Appr'!$E$13:$J$59,6,FALSE)/100))","v":{"v":419542.64202600956,"d":"419,543"}},{"$f":"($A33-$A32)/365.25*$D$1*(1+$D$2+(VLOOKUP('RE Appr'!X40,'RE Appr'!$E$13:$J$59,6,FALSE)/100))","v":{"v":412517.453798768,"d":"412,517"}},{"$f":"($A33-$A32)/365.25*$D$1*(1+$D$2+(VLOOKUP('RE Appr'!Y40,'RE Appr'!$E$13:$J$59,6,FALSE)/100))","v":{"v":440668.1724845996,"d":"440,668"}},{"$f":"($A33-$A32)/365.25*$D$1*(1+$D$2+(VLOOKUP('RE Appr'!Z40,'RE Appr'!$E$13:$J$59,6,FALSE)/100))","v":{"v":455687.8850102669,"d":"455,688"}},{"$f":"($A33-$A32)/365.25*$D$1*(1+$D$2+(VLOOKUP('RE Appr'!AA40,'RE Appr'!$E$13:$J$59,6,FALSE)/100))","v":{"v":383827.10472279263,"d":"383,827"}},{"$f":"($A33-$A32)/365.25*$D$1*(1+$D$2+(VLOOKUP('RE Appr'!AB40,'RE Appr'!$E$13:$J$59,6,FALSE)/100))","v":{"v":383827.10472279263,"d":"383,827"}},{"$f":"($A33-$A32)/365.25*$D$1*(1+$D$2+(VLOOKUP('RE Appr'!AC40,'RE Appr'!$E$13:$J$59,6,FALSE)/100))","v":{"v":417653.93566050654,"d":"417,654"}},{"$f":"($A33-$A32)/365.25*$D$1*(1+$D$2+(VLOOKUP('RE Appr'!AD40,'RE Appr'!$E$13:$J$59,6,FALSE)/100))","v":{"v":434212.5941136209,"d":"434,213"}},{"$f":"($A33-$A32)/365.25*$D$1*(1+$D$2+(VLOOKUP('RE Appr'!AE40,'RE Appr'!$E$13:$J$59,6,FALSE)/100))","v":{"v":412277.6180698152,"d":"412,278"}},{"$f":"($A33-$A32)/365.25*$D$1*(1+$D$2+(VLOOKUP('RE Appr'!AF40,'RE Appr'!$E$13:$J$59,6,FALSE)/100))","v":{"v":412637.3716632444,"d":"412,637"}},{"$f":"($A33-$A32)/365.25*$D$1*(1+$D$2+(VLOOKUP('RE Appr'!AG40,'RE Appr'!$E$13:$J$59,6,FALSE)/100))","v":{"v":422510.60917180014,"d":"422,511"}},{"$f":"($A33-$A32)/365.25*$D$1*(1+$D$2+(VLOOKUP('RE Appr'!AH40,'RE Appr'!$E$13:$J$59,6,FALSE)/100))","v":{"v":441527.5838466804,"d":"441,528"}},{"$f":"($A33-$A32)/365.25*$D$1*(1+$D$2+(VLOOKUP('RE Appr'!AI40,'RE Appr'!$E$13:$J$59,6,FALSE)/100))","v":{"v":436840.79397672834,"d":"436,841"}},{"$f":"($A33-$A32)/365.25*$D$1*(1+$D$2+(VLOOKUP('RE Appr'!AJ40,'RE Appr'!$E$13:$J$59,6,FALSE)/100))","v":{"v":435181.93018480495,"d":"435,182"}},{"$f":"($A33-$A32)/365.25*$D$1*(1+$D$2+(VLOOKUP('RE Appr'!AK40,'RE Appr'!$E$13:$J$59,6,FALSE)/100))","v":{"v":386675.1540041068,"d":"386,675"}},{"$f":"($A33-$A32)/365.25*$D$1*(1+$D$2+(VLOOKUP('RE Appr'!AL40,'RE Appr'!$E$13:$J$59,6,FALSE)/100))","v":{"v":436840.79397672834,"d":"436,841"}},{"$f":"($A33-$A32)/365.25*$D$1*(1+$D$2+(VLOOKUP('RE Appr'!AM40,'RE Appr'!$E$13:$J$59,6,FALSE)/100))","v":{"v":435771.5263518138,"d":"435,772"}},{"$f":"($A33-$A32)/365.25*$D$1*(1+$D$2+(VLOOKUP('RE Appr'!AN40,'RE Appr'!$E$13:$J$59,6,FALSE)/100))","v":{"v":426041.984729592,"d":"426,042"}},{"$f":"($A33-$A32)/365.25*$D$1*(1+$D$2+(VLOOKUP('RE Appr'!AO40,'RE Appr'!$E$13:$J$59,6,FALSE)/100))","v":{"v":417653.93566050654,"d":"417,654"}},{"$f":"($A33-$A32)/365.25*$D$1*(1+$D$2+(VLOOKUP('RE Appr'!AP40,'RE Appr'!$E$13:$J$59,6,FALSE)/100))","v":{"v":410728.67898699525,"d":"410,729"}},{"$f":"($A33-$A32)/365.25*$D$1*(1+$D$2+(VLOOKUP('RE Appr'!AQ40,'RE Appr'!$E$13:$J$59,6,FALSE)/100))","v":{"v":417916.4969295789,"d":"417,916"}},{"$f":"($A33-$A32)/365.25*$D$1*(1+$D$2+(VLOOKUP('RE Appr'!AR40,'RE Appr'!$E$13:$J$59,6,FALSE)/100))","v":{"v":417916.4969295789,"d":"417,916"}},{"$f":"($A33-$A32)/365.25*$D$1*(1+$D$2+(VLOOKUP('RE Appr'!AS40,'RE Appr'!$E$13:$J$59,6,FALSE)/100))","v":{"v":412637.3716632444,"d":"412,637"}},{"$f":"($A33-$A32)/365.25*$D$1*(1+$D$2+(VLOOKUP('RE Appr'!AT40,'RE Appr'!$E$13:$J$59,6,FALSE)/100))","v":{"v":421665.9736136933,"d":"421,666"}},{"$f":"($A33-$A32)/365.25*$D$1*(1+$D$2+(VLOOKUP('RE Appr'!AU40,'RE Appr'!$E$13:$J$59,6,FALSE)/100))","v":{"v":416234.9075975359,"d":"416,235"}},{"$f":"($A33-$A32)/365.25*$D$1*(1+$D$2+(VLOOKUP('RE Appr'!AV40,'RE Appr'!$E$13:$J$59,6,FALSE)/100))","v":{"v":436840.79397672834,"d":"436,841"}},{"$f":"($A33-$A32)/365.25*$D$1*(1+$D$2+(VLOOKUP('RE Appr'!AW40,'RE Appr'!$E$13:$J$59,6,FALSE)/100))","v":{"v":435771.5263518138,"d":"435,772"}},{"$f":"($A33-$A32)/365.25*$D$1*(1+$D$2+(VLOOKUP('RE Appr'!AX40,'RE Appr'!$E$13:$J$59,6,FALSE)/100))","v":{"v":423729.77412731,"d":"423,730"}},{"$f":"($A33-$A32)/365.25*$D$1*(1+$D$2+(VLOOKUP('RE Appr'!AY40,'RE Appr'!$E$13:$J$59,6,FALSE)/100))","v":{"v":412977.13894592744,"d":"412,977"}},{"$f":"($A33-$A32)/365.25*$D$1*(1+$D$2+(VLOOKUP('RE Appr'!AZ40,'RE Appr'!$E$13:$J$59,6,FALSE)/100))","v":{"v":419542.64202600956,"d":"419,543"}},{"$f":"($A33-$A32)/365.25*$D$1*(1+$D$2+(VLOOKUP('RE Appr'!BA40,'RE Appr'!$E$13:$J$59,6,FALSE)/100))","v":{"v":412977.13894592744,"d":"412,977"}},{"$f":"($A33-$A32)/365.25*$D$1*(1+$D$2+(VLOOKUP('RE Appr'!BB40,'RE Appr'!$E$13:$J$59,6,FALSE)/100))","v":{"v":441107.871321013,"d":"441,108"}},{"$f":"($A33-$A32)/365.25*$D$1*(1+$D$2+(VLOOKUP('RE Appr'!BC40,'RE Appr'!$E$13:$J$59,6,FALSE)/100))","v":{"v":415045.72210814507,"d":"415,046"}},{"$f":"($A33-$A32)/365.25*$D$1*(1+$D$2+(VLOOKUP('RE Appr'!BD40,'RE Appr'!$E$13:$J$59,6,FALSE)/100))","v":{"v":419632.5804243669,"d":"419,633"}},{"$f":"($A33-$A32)/365.25*$D$1*(1+$D$2+(VLOOKUP('RE Appr'!BE40,'RE Appr'!$E$13:$J$59,6,FALSE)/100))","v":{"v":441527.5838466804,"d":"441,528"}},{"$f":"($A33-$A32)/365.25*$D$1*(1+$D$2+(VLOOKUP('RE Appr'!BF40,'RE Appr'!$E$13:$J$59,6,FALSE)/100))","v":{"v":435771.5263518138,"d":"435,772"}},{"$f":"($A33-$A32)/365.25*$D$1*(1+$D$2+(VLOOKUP('RE Appr'!BG40,'RE Appr'!$E$13:$J$59,6,FALSE)/100))","v":{"v":410728.67898699525,"d":"410,729"}},{"$f":"($A33-$A32)/365.25*$D$1*(1+$D$2+(VLOOKUP('RE Appr'!BH40,'RE Appr'!$E$13:$J$59,6,FALSE)/100))","v":{"v":441107.871321013,"d":"441,108"}},{"$f":"($A33-$A32)/365.25*$D$1*(1+$D$2+(VLOOKUP('RE Appr'!BI40,'RE Appr'!$E$13:$J$59,6,FALSE)/100))","v":{"v":412517.453798768,"d":"412,517"}},{"$f":"($A33-$A32)/365.25*$D$1*(1+$D$2+(VLOOKUP('RE Appr'!BJ40,'RE Appr'!$E$13:$J$59,6,FALSE)/100))","v":{"v":419542.64202600956,"d":"419,543"}},{"$f":"($A33-$A32)/365.25*$D$1*(1+$D$2+(VLOOKUP('RE Appr'!BK40,'RE Appr'!$E$13:$J$59,6,FALSE)/100))","v":{"v":419542.64202600956,"d":"419,543"}},{"$f":"($A33-$A32)/365.25*$D$1*(1+$D$2+(VLOOKUP('RE Appr'!BL40,'RE Appr'!$E$13:$J$59,6,FALSE)/100))","v":{"v":416234.9075975359,"d":"416,235"}},{"$f":"($A33-$A32)/365.25*$D$1*(1+$D$2+(VLOOKUP('RE Appr'!BM40,'RE Appr'!$E$13:$J$59,6,FALSE)/100))","v":{"v":436840.79397672834,"d":"436,841"}},{"$f":"($A33-$A32)/365.25*$D$1*(1+$D$2+(VLOOKUP('RE Appr'!BN40,'RE Appr'!$E$13:$J$59,6,FALSE)/100))","v":{"v":421665.9736136933,"d":"421,666"}},{"$f":"($A33-$A32)/365.25*$D$1*(1+$D$2+(VLOOKUP('RE Appr'!BO40,'RE Appr'!$E$13:$J$59,6,FALSE)/100))","v":{"v":401385.0787132102,"d":"401,385"}},{"$f":"($A33-$A32)/365.25*$D$1*(1+$D$2+(VLOOKUP('RE Appr'!BP40,'RE Appr'!$E$13:$J$59,6,FALSE)/100))","v":{"v":407091.1704312115,"d":"407,091"}},{"$f":"($A33-$A32)/365.25*$D$1*(1+$D$2+(VLOOKUP('RE Appr'!BQ40,'RE Appr'!$E$13:$J$59,6,FALSE)/100))","v":{"v":414845.85900068446,"d":"414,846"}},{"$f":"($A33-$A32)/365.25*$D$1*(1+$D$2+(VLOOKUP('RE Appr'!BR40,'RE Appr'!$E$13:$J$59,6,FALSE)/100))","v":{"v":383827.10472279263,"d":"383,827"}},{"$f":"($A33-$A32)/365.25*$D$1*(1+$D$2+(VLOOKUP('RE Appr'!BS40,'RE Appr'!$E$13:$J$59,6,FALSE)/100))","v":{"v":410728.67898699525,"d":"410,729"}},{"$f":"($A33-$A32)/365.25*$D$1*(1+$D$2+(VLOOKUP('RE Appr'!BT40,'RE Appr'!$E$13:$J$59,6,FALSE)/100))","v":{"v":434212.5941136209,"d":"434,213"}},{"$f":"($A33-$A32)/365.25*$D$1*(1+$D$2+(VLOOKUP('RE Appr'!BU40,'RE Appr'!$E$13:$J$59,6,FALSE)/100))","v":{"v":423729.77412731,"d":"423,730"}},{"$f":"($A33-$A32)/365.25*$D$1*(1+$D$2+(VLOOKUP('RE Appr'!BV40,'RE Appr'!$E$13:$J$59,6,FALSE)/100))","v":{"v":386675.1540041068,"d":"386,675"}},{"$f":"($A33-$A32)/365.25*$D$1*(1+$D$2+(VLOOKUP('RE Appr'!BW40,'RE Appr'!$E$13:$J$59,6,FALSE)/100))","v":{"v":437040.65708418895,"d":"437,041"}},{"$f":"($A33-$A32)/365.25*$D$1*(1+$D$2+(VLOOKUP('RE Appr'!BX40,'RE Appr'!$E$13:$J$59,6,FALSE)/100))","v":{"v":412517.453798768,"d":"412,517"}},{"$f":"($A33-$A32)/365.25*$D$1*(1+$D$2+(VLOOKUP('RE Appr'!BY40,'RE Appr'!$E$13:$J$59,6,FALSE)/100))","v":{"v":415045.72210814507,"d":"415,046"}},{"$f":"($A33-$A32)/365.25*$D$1*(1+$D$2+(VLOOKUP('RE Appr'!BZ40,'RE Appr'!$E$13:$J$59,6,FALSE)/100))","v":{"v":410728.67898699525,"d":"410,729"}},{"$f":"($A33-$A32)/365.25*$D$1*(1+$D$2+(VLOOKUP('RE Appr'!CA40,'RE Appr'!$E$13:$J$59,6,FALSE)/100))","v":{"v":412277.6180698152,"d":"412,278"}},{"$f":"($A33-$A32)/365.25*$D$1*(1+$D$2+(VLOOKUP('RE Appr'!CB40,'RE Appr'!$E$13:$J$59,6,FALSE)/100))","v":{"v":419542.64202600956,"d":"419,543"}},{"$f":"($A33-$A32)/365.25*$D$1*(1+$D$2+(VLOOKUP('RE Appr'!CC40,'RE Appr'!$E$13:$J$59,6,FALSE)/100))","v":{"v":441107.871321013,"d":"441,108"}},{"$f":"($A33-$A32)/365.25*$D$1*(1+$D$2+(VLOOKUP('RE Appr'!CD40,'RE Appr'!$E$13:$J$59,6,FALSE)/100))","v":{"v":411048.45995893225,"d":"411,048"}},{"$f":"($A33-$A32)/365.25*$D$1*(1+$D$2+(VLOOKUP('RE Appr'!CE40,'RE Appr'!$E$13:$J$59,6,FALSE)/100))","v":{"v":386675.1540041068,"d":"386,675"}},{"$f":"($A33-$A32)/365.25*$D$1*(1+$D$2+(VLOOKUP('RE Appr'!CF40,'RE Appr'!$E$13:$J$59,6,FALSE)/100))","v":{"v":386675.1540041068,"d":"386,675"}},{"$f":"($A33-$A32)/365.25*$D$1*(1+$D$2+(VLOOKUP('RE Appr'!CG40,'RE Appr'!$E$13:$J$59,6,FALSE)/100))","v":{"v":441527.5838466804,"d":"441,528"}},{"$f":"($A33-$A32)/365.25*$D$1*(1+$D$2+(VLOOKUP('RE Appr'!CH40,'RE Appr'!$E$13:$J$59,6,FALSE)/100))","v":{"v":401385.0787132102,"d":"401,385"}},{"$f":"($A33-$A32)/365.25*$D$1*(1+$D$2+(VLOOKUP('RE Appr'!CI40,'RE Appr'!$E$13:$J$59,6,FALSE)/100))","v":{"v":419632.5804243669,"d":"419,633"}},{"$f":"($A33-$A32)/365.25*$D$1*(1+$D$2+(VLOOKUP('RE Appr'!CJ40,'RE Appr'!$E$13:$J$59,6,FALSE)/100))","v":{"v":434212.5941136209,"d":"434,213"}},{"$f":"($A33-$A32)/365.25*$D$1*(1+$D$2+(VLOOKUP('RE Appr'!CK40,'RE Appr'!$E$13:$J$59,6,FALSE)/100))","v":{"v":419289.85199380416,"d":"419,290"}},{"$f":"($A33-$A32)/365.25*$D$1*(1+$D$2+(VLOOKUP('RE Appr'!CL40,'RE Appr'!$E$13:$J$59,6,FALSE)/100))","v":{"v":383827.10472279263,"d":"383,827"}},{"$f":"($A33-$A32)/365.25*$D$1*(1+$D$2+(VLOOKUP('RE Appr'!CM40,'RE Appr'!$E$13:$J$59,6,FALSE)/100))","v":{"v":412517.453798768,"d":"412,517"}},{"$f":"($A33-$A32)/365.25*$D$1*(1+$D$2+(VLOOKUP('RE Appr'!CN40,'RE Appr'!$E$13:$J$59,6,FALSE)/100))","v":{"v":411048.45995893225,"d":"411,048"}},{"$f":"($A33-$A32)/365.25*$D$1*(1+$D$2+(VLOOKUP('RE Appr'!CO40,'RE Appr'!$E$13:$J$59,6,FALSE)/100))","v":{"v":435181.93018480495,"d":"435,182"}},{"$f":"($A33-$A32)/365.25*$D$1*(1+$D$2+(VLOOKUP('RE Appr'!CP40,'RE Appr'!$E$13:$J$59,6,FALSE)/100))","v":{"v":417653.93566050654,"d":"417,654"}},{"$f":"($A33-$A32)/365.25*$D$1*(1+$D$2+(VLOOKUP('RE Appr'!CQ40,'RE Appr'!$E$13:$J$59,6,FALSE)/100))","v":{"v":417653.93566050654,"d":"417,654"}},{"$f":"($A33-$A32)/365.25*$D$1*(1+$D$2+(VLOOKUP('RE Appr'!CR40,'RE Appr'!$E$13:$J$59,6,FALSE)/100))","v":{"v":417653.93566050654,"d":"417,654"}},{"$f":"($A33-$A32)/365.25*$D$1*(1+$D$2+(VLOOKUP('RE Appr'!CS40,'RE Appr'!$E$13:$J$59,6,FALSE)/100))","v":{"v":411048.45995893225,"d":"411,048"}},{"$f":"($A33-$A32)/365.25*$D$1*(1+$D$2+(VLOOKUP('RE Appr'!CT40,'RE Appr'!$E$13:$J$59,6,FALSE)/100))","v":{"v":416694.59274469543,"d":"416,695"}},{"$f":"($A33-$A32)/365.25*$D$1*(1+$D$2+(VLOOKUP('RE Appr'!CU40,'RE Appr'!$E$13:$J$59,6,FALSE)/100))","v":{"v":411048.45995893225,"d":"411,048"}},{"$f":"($A33-$A32)/365.25*$D$1*(1+$D$2+(VLOOKUP('RE Appr'!CV40,'RE Appr'!$E$13:$J$59,6,FALSE)/100))","v":{"v":414845.85900068446,"d":"414,846"}},{"$f":"($A33-$A32)/365.25*$D$1*(1+$D$2+(VLOOKUP('RE Appr'!CW40,'RE Appr'!$E$13:$J$59,6,FALSE)/100))","v":{"v":418173.57973990415,"d":"418,174"}},{"$f":"($A33-$A32)/365.25*$D$1*(1+$D$2+(VLOOKUP('RE Appr'!CX40,'RE Appr'!$E$13:$J$59,6,FALSE)/100))","v":{"v":411048.45995893225,"d":"411,048"}},{"$f":"($A33-$A32)/365.25*$D$1*(1+$D$2+(VLOOKUP('RE Appr'!CY40,'RE Appr'!$E$13:$J$59,6,FALSE)/100))","v":{"v":437040.65708418895,"d":"437,041"}},{"$f":"($A33-$A32)/365.25*$D$1*(1+$D$2+(VLOOKUP('RE Appr'!CZ40,'RE Appr'!$E$13:$J$59,6,FALSE)/100))","v":{"v":371325.66735112935,"d":"371,326"}},{"$f":"($A33-$A32)/365.25*$D$1*(1+$D$2+(VLOOKUP('RE Appr'!DA40,'RE Appr'!$E$13:$J$59,6,FALSE)/100))","v":{"v":386675.1540041068,"d":"386,675"}},{"$f":"($A33-$A32)/365.25*$D$1*(1+$D$2+(VLOOKUP('RE Appr'!DB40,'RE Appr'!$E$13:$J$59,6,FALSE)/100))","v":{"v":437040.65708418895,"d":"437,041"}},{"$f":"($A33-$A32)/365.25*$D$1*(1+$D$2+(VLOOKUP('RE Appr'!DC40,'RE Appr'!$E$13:$J$59,6,FALSE)/100))","v":{"v":419342.77891854895,"d":"419,343"}},{"$f":"($A33-$A32)/365.25*$D$1*(1+$D$2+(VLOOKUP('RE Appr'!DD40,'RE Appr'!$E$13:$J$59,6,FALSE)/100))","v":{"v":431774.264202601,"d":"431,774"}},{"$f":"($A33-$A32)/365.25*$D$1*(1+$D$2+(VLOOKUP('RE Appr'!DE40,'RE Appr'!$E$13:$J$59,6,FALSE)/100))","v":{"v":423729.77412731,"d":"423,730"}},{"$f":"($A33-$A32)/365.25*$D$1*(1+$D$2+(VLOOKUP('RE Appr'!DF40,'RE Appr'!$E$13:$J$59,6,FALSE)/100))","v":{"v":416234.9075975359,"d":"416,235"}},{"$f":"($A33-$A32)/365.25*$D$1*(1+$D$2+(VLOOKUP('RE Appr'!DG40,'RE Appr'!$E$13:$J$59,6,FALSE)/100))","v":{"v":419542.64202600956,"d":"419,543"}}]
[{"$f":"Main!A36","v":"2051-12-31"},29,{"$nulls":3},{"$f":"($A34-$A33)/365.25*$D$1*(1+$D$2+(VLOOKUP('RE Appr'!L41,'RE Appr'!$E$13:$J$59,6,FALSE)/100))","v":{"v":420782.2587268994,"d":"420,782"}},{"$f":"($A34-$A33)/365.25*$D$1*(1+$D$2+(VLOOKUP('RE Appr'!M41,'RE Appr'!$E$13:$J$59,6,FALSE)/100))","v":{"v":418798.1930184805,"d":"418,798"}},{"$f":"($A34-$A33)/365.25*$D$1*(1+$D$2+(VLOOKUP('RE Appr'!N41,'RE Appr'!$E$13:$J$59,6,FALSE)/100))","v":{"v":415982.4229979466,"d":"415,982"}},{"$f":"($A34-$A33)/365.25*$D$1*(1+$D$2+(VLOOKUP('RE Appr'!O41,'RE Appr'!$E$13:$J$59,6,FALSE)/100))","v":{"v":417836.22176591377,"d":"417,836"}},{"$f":"($A34-$A33)/365.25*$D$1*(1+$D$2+(VLOOKUP('RE Appr'!P41,'RE Appr'!$E$13:$J$59,6,FALSE)/100))","v":{"v":413767.8850102669,"d":"413,768"}},{"$f":"($A34-$A33)/365.25*$D$1*(1+$D$2+(VLOOKUP('RE Appr'!Q41,'RE Appr'!$E$13:$J$59,6,FALSE)/100))","v":{"v":436374.2094455852,"d":"436,374"}},{"$f":"($A34-$A33)/365.25*$D$1*(1+$D$2+(VLOOKUP('RE Appr'!R41,'RE Appr'!$E$13:$J$59,6,FALSE)/100))","v":{"v":471786.7761806981,"d":"471,787"}},{"$f":"($A34-$A33)/365.25*$D$1*(1+$D$2+(VLOOKUP('RE Appr'!S41,'RE Appr'!$E$13:$J$59,6,FALSE)/100))","v":{"v":436374.2094455852,"d":"436,374"}},{"$f":"($A34-$A33)/365.25*$D$1*(1+$D$2+(VLOOKUP('RE Appr'!T41,'RE Appr'!$E$13:$J$59,6,FALSE)/100))","v":{"v":410390.9650924025,"d":"410,391"}},{"$f":"($A34-$A33)/365.25*$D$1*(1+$D$2+(VLOOKUP('RE Appr'!U41,'RE Appr'!$E$13:$J$59,6,FALSE)/100))","v":{"v":413407.1457905544,"d":"413,407"}},{"$f":"($A34-$A33)/365.25*$D$1*(1+$D$2+(VLOOKUP('RE Appr'!V41,'RE Appr'!$E$13:$J$59,6,FALSE)/100))","v":{"v":427209.2230439196,"d":"427,209"}},{"$f":"($A34-$A33)/365.25*$D$1*(1+$D$2+(VLOOKUP('RE Appr'!W41,'RE Appr'!$E$13:$J$59,6,FALSE)/100))","v":{"v":414108.58316221763,"d":"414,109"}},{"$f":"($A34-$A33)/365.25*$D$1*(1+$D$2+(VLOOKUP('RE Appr'!X41,'RE Appr'!$E$13:$J$59,6,FALSE)/100))","v":{"v":432957.20739219716,"d":"432,957"}},{"$f":"($A34-$A33)/365.25*$D$1*(1+$D$2+(VLOOKUP('RE Appr'!Y41,'RE Appr'!$E$13:$J$59,6,FALSE)/100))","v":{"v":413407.1457905544,"d":"413,407"}},{"$f":"($A34-$A33)/365.25*$D$1*(1+$D$2+(VLOOKUP('RE Appr'!Z41,'RE Appr'!$E$13:$J$59,6,FALSE)/100))","v":{"v":435402.2176591376,"d":"435,402"}},{"$f":"($A34-$A33)/365.25*$D$1*(1+$D$2+(VLOOKUP('RE Appr'!AA41,'RE Appr'!$E$13:$J$59,6,FALSE)/100))","v":{"v":410390.9650924025,"d":"410,391"}},{"$f":"($A34-$A33)/365.25*$D$1*(1+$D$2+(VLOOKUP('RE Appr'!AB41,'RE Appr'!$E$13:$J$59,6,FALSE)/100))","v":{"v":456936.3449691991,"d":"456,936"}},{"$f":"($A34-$A33)/365.25*$D$1*(1+$D$2+(VLOOKUP('RE Appr'!AC41,'RE Appr'!$E$13:$J$59,6,FALSE)/100))","v":{"v":420692.0739219712,"d":"420,692"}},{"$f":"($A34-$A33)/365.25*$D$1*(1+$D$2+(VLOOKUP('RE Appr'!AD41,'RE Appr'!$E$13:$J$59,6,FALSE)/100))","v":{"v":413407.1457905544,"d":"413,407"}},{"$f":"($A34-$A33)/365.25*$D$1*(1+$D$2+(VLOOKUP('RE Appr'!AE41,'RE Appr'!$E$13:$J$59,6,FALSE)/100))","v":{"v":420438.5913143351,"d":"420,439"}},{"$f":"($A34-$A33)/365.25*$D$1*(1+$D$2+(VLOOKUP('RE Appr'!AF41,'RE Appr'!$E$13:$J$59,6,FALSE)/100))","v":{"v":424910.71868583164,"d":"424,911"}},{"$f":"($A34-$A33)/365.25*$D$1*(1+$D$2+(VLOOKUP('RE Appr'!AG41,'RE Appr'!$E$13:$J$59,6,FALSE)/100))","v":{"v":442316.386036961,"d":"442,316"}},{"$f":"($A34-$A33)/365.25*$D$1*(1+$D$2+(VLOOKUP('RE Appr'!AH41,'RE Appr'!$E$13:$J$59,6,FALSE)/100))","v":{"v":400420.5338809035,"d":"400,421"}},{"$f":"($A34-$A33)/365.25*$D$1*(1+$D$2+(VLOOKUP('RE Appr'!AI41,'RE Appr'!$E$13:$J$59,6,FALSE)/100))","v":{"v":438238.0287474333,"d":"438,238"}},{"$f":"($A34-$A33)/365.25*$D$1*(1+$D$2+(VLOOKUP('RE Appr'!AJ41,'RE Appr'!$E$13:$J$59,6,FALSE)/100))","v":{"v":412174.62012320326,"d":"412,175"}},{"$f":"($A34-$A33)/365.25*$D$1*(1+$D$2+(VLOOKUP('RE Appr'!AK41,'RE Appr'!$E$13:$J$59,6,FALSE)/100))","v":{"v":384878.68583162216,"d":"384,879"}},{"$f":"($A34-$A33)/365.25*$D$1*(1+$D$2+(VLOOKUP('RE Appr'!AL41,'RE Appr'!$E$13:$J$59,6,FALSE)/100))","v":{"v":432957.20739219716,"d":"432,957"}},{"$f":"($A34-$A33)/365.25*$D$1*(1+$D$2+(VLOOKUP('RE Appr'!AM41,'RE Appr'!$E$13:$J$59,6,FALSE)/100))","v":{"v":413767.8850102669,"d":"413,768"}},{"$f":"($A34-$A33)/365.25*$D$1*(1+$D$2+(VLOOKUP('RE Appr'!AN41,'RE Appr'!$E$13:$J$59,6,FALSE)/100))","v":{"v":419981.34954829706,"d":"419,981"}},{"$f":"($A34-$A33)/365.25*$D$1*(1+$D$2+(VLOOKUP('RE Appr'!AO41,'RE Appr'!$E$13:$J$59,6,FALSE)/100))","v":{"v":413407.1457905544,"d":"413,407"}},{"$f":"($A34-$A33)/365.25*$D$1*(1+$D$2+(VLOOKUP('RE Appr'!AP41,'RE Appr'!$E$13:$J$59,6,FALSE)/100))","v":{"v":452254.75154004106,"d":"452,255"}},{"$f":"($A34-$A33)/365.25*$D$1*(1+$D$2+(VLOOKUP('RE Appr'!AQ41,'RE Appr'!$E$13:$J$59,6,FALSE)/100))","v":{"v":438238.0287474333,"d":"438,238"}},{"$f":"($A34-$A33)/365.25*$D$1*(1+$D$2+(VLOOKUP('RE Appr'!AR41,'RE Appr'!$E$13:$J$59,6,FALSE)/100))","v":{"v":417375.27720739215,"d":"417,375"}},{"$f":"($A34-$A33)/365.25*$D$1*(1+$D$2+(VLOOKUP('RE Appr'!AS41,'RE Appr'!$E$13:$J$59,6,FALSE)/100))","v":{"v":436965.42094455846,"d":"436,965"}},{"$f":"($A34-$A33)/365.25*$D$1*(1+$D$2+(VLOOKUP('RE Appr'!AT41,'RE Appr'!$E$13:$J$59,6,FALSE)/100))","v":{"v":415982.4229979466,"d":"415,982"}},{"$f":"($A34-$A33)/365.25*$D$1*(1+$D$2+(VLOOKUP('RE Appr'!AU41,'RE Appr'!$E$13:$J$59,6,FALSE)/100))","v":{"v":420782.2587268994,"d":"420,782"}},{"$f":"($A34-$A33)/365.25*$D$1*(1+$D$2+(VLOOKUP('RE Appr'!AV41,'RE Appr'!$E$13:$J$59,6,FALSE)/100))","v":{"v":438238.0287474333,"d":"438,238"}},{"$f":"($A34-$A33)/365.25*$D$1*(1+$D$2+(VLOOKUP('RE Appr'!AW41,'RE Appr'!$E$13:$J$59,6,FALSE)/100))","v":{"v":414108.58316221763,"d":"414,109"}},{"$f":"($A34-$A33)/365.25*$D$1*(1+$D$2+(VLOOKUP('RE Appr'!AX41,'RE Appr'!$E$13:$J$59,6,FALSE)/100))","v":{"v":438238.0287474333,"d":"438,238"}},{"$f":"($A34-$A33)/365.25*$D$1*(1+$D$2+(VLOOKUP('RE Appr'!AY41,'RE Appr'!$E$13:$J$59,6,FALSE)/100))","v":{"v":452254.75154004106,"d":"452,255"}},{"$f":"($A34-$A33)/365.25*$D$1*(1+$D$2+(VLOOKUP('RE Appr'!AZ41,'RE Appr'!$E$13:$J$59,6,FALSE)/100))","v":{"v":420782.2587268994,"d":"420,782"}},{"$f":"($A34-$A33)/365.25*$D$1*(1+$D$2+(VLOOKUP('RE Appr'!BA41,'RE Appr'!$E$13:$J$59,6,FALSE)/100))","v":{"v":432957.20739219716,"d":"432,957"}},{"$f":"($A34-$A33)/365.25*$D$1*(1+$D$2+(VLOOKUP('RE Appr'!BB41,'RE Appr'!$E$13:$J$59,6,FALSE)/100))","v":{"v":415982.4229979466,"d":"415,982"}},{"$f":"($A34-$A33)/365.25*$D$1*(1+$D$2+(VLOOKUP('RE Appr'!BC41,'RE Appr'!$E$13:$J$59,6,FALSE)/100))","v":{"v":420438.5913143351,"d":"420,439"}},{"$f":"($A34-$A33)/365.25*$D$1*(1+$D$2+(VLOOKUP('RE Appr'!BD41,'RE Appr'!$E$13:$J$59,6,FALSE)/100))","v":{"v":420692.0739219712,"d":"420,692"}},{"$f":"($A34-$A33)/365.25*$D$1*(1+$D$2+(VLOOKUP('RE Appr'!BE41,'RE Appr'!$E$13:$J$59,6,FALSE)/100))","v":{"v":412174.62012320326,"d":"412,175"}},{"$f":"($A34-$A33)/365.25*$D$1*(1+$D$2+(VLOOKUP('RE Appr'!BF41,'RE Appr'!$E$13:$J$59,6,FALSE)/100))","v":{"v":441875.4825462012,"d":"441,875"}},{"$f":"($A34-$A33)/365.25*$D$1*(1+$D$2+(VLOOKUP('RE Appr'!BG41,'RE Appr'!$E$13:$J$59,6,FALSE)/100))","v":{"v":413767.8850102669,"d":"413,768"}},{"$f":"($A34-$A33)/365.25*$D$1*(1+$D$2+(VLOOKUP('RE Appr'!BH41,'RE Appr'!$E$13:$J$59,6,FALSE)/100))","v":{"v":420491.66324435314,"d":"420,492"}},{"$f":"($A34-$A33)/365.25*$D$1*(1+$D$2+(VLOOKUP('RE Appr'!BI41,'RE Appr'!$E$13:$J$59,6,FALSE)/100))","v":{"v":420782.2587268994,"d":"420,782"}},{"$f":"($A34-$A33)/365.25*$D$1*(1+$D$2+(VLOOKUP('RE Appr'!BJ41,'RE Appr'!$E$13:$J$59,6,FALSE)/100))","v":{"v":414108.58316221763,"d":"414,109"}},{"$f":"($A34-$A33)/365.25*$D$1*(1+$D$2+(VLOOKUP('RE Appr'!BK41,'RE Appr'!$E$13:$J$59,6,FALSE)/100))","v":{"v":430492.15605749487,"d":"430,492"}},{"$f":"($A34-$A33)/365.25*$D$1*(1+$D$2+(VLOOKUP('RE Appr'!BL41,'RE Appr'!$E$13:$J$59,6,FALSE)/100))","v":{"v":376631.7864476386,"d":"376,632"}},{"$f":"($A34-$A33)/365.25*$D$1*(1+$D$2+(VLOOKUP('RE Appr'!BM41,'RE Appr'!$E$13:$J$59,6,FALSE)/100))","v":{"v":414108.58316221763,"d":"414,109"}},{"$f":"($A34-$A33)/365.25*$D$1*(1+$D$2+(VLOOKUP('RE Appr'!BN41,'RE Appr'!$E$13:$J$59,6,FALSE)/100))","v":{"v":384878.68583162216,"d":"384,879"}},{"$f":"($A34-$A33)/365.25*$D$1*(1+$D$2+(VLOOKUP('RE Appr'!BO41,'RE Appr'!$E$13:$J$59,6,FALSE)/100))","v":{"v":387734.53798767965,"d":"387,735"}},{"$f":"($A34-$A33)/365.25*$D$1*(1+$D$2+(VLOOKUP('RE Appr'!BP41,'RE Appr'!$E$13:$J$59,6,FALSE)/100))","v":{"v":372342.9979466119,"d":"372,343"}},{"$f":"($A34-$A33)/365.25*$D$1*(1+$D$2+(VLOOKUP('RE Appr'!BQ41,'RE Appr'!$E$13:$J$59,6,FALSE)/100))","v":{"v":438238.0287474333,"d":"438,238"}},{"$f":"($A34-$A33)/365.25*$D$1*(1+$D$2+(VLOOKUP('RE Appr'!BR41,'RE Appr'!$E$13:$J$59,6,FALSE)/100))","v":{"v":402484.7638603696,"d":"402,485"}},{"$f":"($A34-$A33)/365.25*$D$1*(1+$D$2+(VLOOKUP('RE Appr'!BS41,'RE Appr'!$E$13:$J$59,6,FALSE)/100))","v":{"v":413647.6386036961,"d":"413,648"}},{"$f":"($A34-$A33)/365.25*$D$1*(1+$D$2+(VLOOKUP('RE Appr'!BT41,'RE Appr'!$E$13:$J$59,6,FALSE)/100))","v":{"v":456936.3449691991,"d":"456,936"}},{"$f":"($A34-$A33)/365.25*$D$1*(1+$D$2+(VLOOKUP('RE Appr'!BU41,'RE Appr'!$E$13:$J$59,6,FALSE)/100))","v":{"v":424890.67761806975,"d":"424,891"}},{"$f":"($A34-$A33)/365.25*$D$1*(1+$D$2+(VLOOKUP('RE Appr'!BV41,'RE Appr'!$E$13:$J$59,6,FALSE)/100))","v":{"v":436374.2094455852,"d":"436,374"}},{"$f":"($A34-$A33)/365.25*$D$1*(1+$D$2+(VLOOKUP('RE Appr'!BW41,'RE Appr'!$E$13:$J$59,6,FALSE)/100))","v":{"v":417375.27720739215,"d":"417,375"}},{"$f":"($A34-$A33)/365.25*$D$1*(1+$D$2+(VLOOKUP('RE Appr'!BX41,'RE Appr'!$E$13:$J$59,6,FALSE)/100))","v":{"v":432957.20739219716,"d":"432,957"}},{"$f":"($A34-$A33)/365.25*$D$1*(1+$D$2+(VLOOKUP('RE Appr'!BY41,'RE Appr'!$E$13:$J$59,6,FALSE)/100))","v":{"v":376631.7864476386,"d":"376,632"}},{"$f":"($A34-$A33)/365.25*$D$1*(1+$D$2+(VLOOKUP('RE Appr'!BZ41,'RE Appr'!$E$13:$J$59,6,FALSE)/100))","v":{"v":436374.2094455852,"d":"436,374"}},{"$f":"($A34-$A33)/365.25*$D$1*(1+$D$2+(VLOOKUP('RE Appr'!CA41,'RE Appr'!$E$13:$J$59,6,FALSE)/100))","v":{"v":408206.48870636546,"d":"408,206"}},{"$f":"($A34-$A33)/365.25*$D$1*(1+$D$2+(VLOOKUP('RE Appr'!CB41,'RE Appr'!$E$13:$J$59,6,FALSE)/100))","v":{"v":420491.66324435314,"d":"420,492"}},{"$f":"($A34-$A33)/365.25*$D$1*(1+$D$2+(VLOOKUP('RE Appr'!CC41,'RE Appr'!$E$13:$J$59,6,FALSE)/100))","v":{"v":387734.53798767965,"d":"387,735"}},{"$f":"($A34-$A33)/365.25*$D$1*(1+$D$2+(VLOOKUP('RE Appr'!CD41,'RE Appr'!$E$13:$J$59,6,FALSE)/100))","v":{"v":417375.27720739215,"d":"417,375"}},{"$f":"($A34-$A33)/365.25*$D$1*(1+$D$2+(VLOOKUP('RE Appr'!CE41,'RE Appr'!$E$13:$J$59,6,FALSE)/100))","v":{"v":419981.34954829706,"d":"419,981"}},{"$f":"($A34-$A33)/365.25*$D$1*(1+$D$2+(VLOOKUP('RE Appr'!CF41,'RE Appr'!$E$13:$J$59,6,FALSE)/100))","v":{"v":420692.0739219712,"d":"420,692"}},{"$f":"($A34-$A33)/365.25*$D$1*(1+$D$2+(VLOOKUP('RE Appr'!CG41,'RE Appr'!$E$13:$J$59,6,FALSE)/100))","v":{"v":421343.40862422995,"d":"421,343"}},{"$f":"($A34-$A33)/365.25*$D$1*(1+$D$2+(VLOOKUP('RE Appr'!CH41,'RE Appr'!$E$13:$J$59,6,FALSE)/100))","v":{"v":410390.9650924025,"d":"410,391"}},{"$f":"($A34-$A33)/365.25*$D$1*(1+$D$2+(VLOOKUP('RE Appr'!CI41,'RE Appr'!$E$13:$J$59,6,FALSE)/100))","v":{"v":438037.6180698152,"d":"438,038"}},{"$f":"($A34-$A33)/365.25*$D$1*(1+$D$2+(VLOOKUP('RE Appr'!CJ41,'RE Appr'!$E$13:$J$59,6,FALSE)/100))","v":{"v":421343.40862422995,"d":"421,343"}},{"$f":"($A34-$A33)/365.25*$D$1*(1+$D$2+(VLOOKUP('RE Appr'!CK41,'RE Appr'!$E$13:$J$59,6,FALSE)/100))","v":{"v":400420.5338809035,"d":"400,421"}},{"$f":"($A34-$A33)/365.25*$D$1*(1+$D$2+(VLOOKUP('RE Appr'!CL41,'RE Appr'!$E$13:$J$59,6,FALSE)/100))","v":{"v":414108.58316221763,"d":"414,109"}},{"$f":"($A34-$A33)/365.25*$D$1*(1+$D$2+(VLOOKUP('RE Appr'!CM41,'RE Appr'!$E$13:$J$59,6,FALSE)/100))","v":{"v":456936.3449691991,"d":"456,936"}},{"$f":"($A34-$A33)/365.25*$D$1*(1+$D$2+(VLOOKUP('RE Appr'!CN41,'RE Appr'!$E$13:$J$59,6,FALSE)/100))","v":{"v":414108.58316221763,"d":"414,109"}},{"$f":"($A34-$A33)/365.25*$D$1*(1+$D$2+(VLOOKUP('RE Appr'!CO41,'RE Appr'!$E$13:$J$59,6,FALSE)/100))","v":{"v":423668.1724845995,"d":"423,668"}},{"$f":"($A34-$A33)/365.25*$D$1*(1+$D$2+(VLOOKUP('RE Appr'!CP41,'RE Appr'!$E$13:$J$59,6,FALSE)/100))","v":{"v":387734.53798767965,"d":"387,735"}},{"$f":"($A34-$A33)/365.25*$D$1*(1+$D$2+(VLOOKUP('RE Appr'!CQ41,'RE Appr'!$E$13:$J$59,6,FALSE)/100))","v":{"v":438238.0287474333,"d":"438,238"}},{"$f":"($A34-$A33)/365.25*$D$1*(1+$D$2+(VLOOKUP('RE Appr'!CR41,'RE Appr'!$E$13:$J$59,6,FALSE)/100))","v":{"v":435402.2176591376,"d":"435,402"}},{"$f":"($A34-$A33)/365.25*$D$1*(1+$D$2+(VLOOKUP('RE Appr'!CS41,'RE Appr'!$E$13:$J$59,6,FALSE)/100))","v":{"v":424890.67761806975,"d":"424,891"}},{"$f":"($A34-$A33)/365.25*$D$1*(1+$D$2+(VLOOKUP('RE Appr'!CT41,'RE Appr'!$E$13:$J$59,6,FALSE)/100))","v":{"v":441875.4825462012,"d":"441,875"}},{"$f":"($A34-$A33)/365.25*$D$1*(1+$D$2+(VLOOKUP('RE Appr'!CU41,'RE Appr'!$E$13:$J$59,6,FALSE)/100))","v":{"v":416986.8493976799,"d":"416,987"}},{"$f":"($A34-$A33)/365.25*$D$1*(1+$D$2+(VLOOKUP('RE Appr'!CV41,'RE Appr'!$E$13:$J$59,6,FALSE)/100))","v":{"v":419061.4736334955,"d":"419,061"}},{"$f":"($A34-$A33)/365.25*$D$1*(1+$D$2+(VLOOKUP('RE Appr'!CW41,'RE Appr'!$E$13:$J$59,6,FALSE)/100))","v":{"v":416986.8493976799,"d":"416,987"}},{"$f":"($A34-$A33)/365.25*$D$1*(1+$D$2+(VLOOKUP('RE Appr'!CX41,'RE Appr'!$E$13:$J$59,6,FALSE)/100))","v":{"v":372342.9979466119,"d":"372,343"}},{"$f":"($A34-$A33)/365.25*$D$1*(1+$D$2+(VLOOKUP('RE Appr'!CY41,'RE Appr'!$E$13:$J$59,6,FALSE)/100))","v":{"v":414108.58316221763,"d":"414,109"}},{"$f":"($A34-$A33)/365.25*$D$1*(1+$D$2+(VLOOKUP('RE Appr'!CZ41,'RE Appr'!$E$13:$J$59,6,FALSE)/100))","v":{"v":423668.1724845995,"d":"423,668"}},{"$f":"($A34-$A33)/365.25*$D$1*(1+$D$2+(VLOOKUP('RE Appr'!DA41,'RE Appr'!$E$13:$J$59,6,FALSE)/100))","v":{"v":372342.9979466119,"d":"372,343"}},{"$f":"($A34-$A33)/365.25*$D$1*(1+$D$2+(VLOOKUP('RE Appr'!DB41,'RE Appr'!$E$13:$J$59,6,FALSE)/100))","v":{"v":456936.3449691991,"d":"456,936"}},{"$f":"($A34-$A33)/365.25*$D$1*(1+$D$2+(VLOOKUP('RE Appr'!DC41,'RE Appr'!$E$13:$J$59,6,FALSE)/100))","v":{"v":420491.66324435314,"d":"420,492"}},{"$f":"($A34-$A33)/365.25*$D$1*(1+$D$2+(VLOOKUP('RE Appr'!DD41,'RE Appr'!$E$13:$J$59,6,FALSE)/100))","v":{"v":421343.40862422995,"d":"421,343"}},{"$f":"($A34-$A33)/365.25*$D$1*(1+$D$2+(VLOOKUP('RE Appr'!DE41,'RE Appr'!$E$13:$J$59,6,FALSE)/100))","v":{"v":418798.1930184805,"d":"418,798"}},{"$f":"($A34-$A33)/365.25*$D$1*(1+$D$2+(VLOOKUP('RE Appr'!DF41,'RE Appr'!$E$13:$J$59,6,FALSE)/100))","v":{"v":387734.53798767965,"d":"387,735"}},{"$f":"($A34-$A33)/365.25*$D$1*(1+$D$2+(VLOOKUP('RE Appr'!DG41,'RE Appr'!$E$13:$J$59,6,FALSE)/100))","v":{"v":419061.4736334955,"d":"419,061"}}]
[{"$f":"Main!A37","v":"2052-12-30"},30,{"$nulls":3},{"$f":"($A35-$A34)/365.25*$D$1*(1+$D$2+(VLOOKUP('RE Appr'!L42,'RE Appr'!$E$13:$J$59,6,FALSE)/100))","v":{"v":375602.7378507871,"d":"375,603"}},{"$f":"($A35-$A34)/365.25*$D$1*(1+$D$2+(VLOOKUP('RE Appr'!M42,'RE Appr'!$E$13:$J$59,6,FALSE)/100))","v":{"v":419542.64202600956,"d":"419,543"}},{"$f":"($A35-$A34)/365.25*$D$1*(1+$D$2+(VLOOKUP('RE Appr'!N42,'RE Appr'!$E$13:$J$59,6,FALSE)/100))","v":{"v":412977.13894592744,"d":"412,977"}},{"$f":"($A35-$A34)/365.25*$D$1*(1+$D$2+(VLOOKUP('RE Appr'!O42,'RE Appr'!$E$13:$J$59,6,FALSE)/100))","v":{"v":419542.64202600956,"d":"419,543"}},{"$f":"($A35-$A34)/365.25*$D$1*(1+$D$2+(VLOOKUP('RE Appr'!P42,'RE Appr'!$E$13:$J$59,6,FALSE)/100))","v":{"v":383827.10472279263,"d":"383,827"}},{"$f":"($A35-$A34)/365.25*$D$1*(1+$D$2+(VLOOKUP('RE Appr'!Q42,'RE Appr'!$E$13:$J$59,6,FALSE)/100))","v":{"v":399326.4887063655,"d":"399,326"}},{"$f":"($A35-$A34)/365.25*$D$1*(1+$D$2+(VLOOKUP('RE Appr'!R42,'RE Appr'!$E$13:$J$59,6,FALSE)/100))","v":{"v":412517.453798768,"d":"412,517"}},{"$f":"($A35-$A34)/365.25*$D$1*(1+$D$2+(VLOOKUP('RE Appr'!S42,'RE Appr'!$E$13:$J$59,6,FALSE)/100))","v":{"v":435771.5263518138,"d":"435,772"}},{"$f":"($A35-$A34)/365.25*$D$1*(1+$D$2+(VLOOKUP('RE Appr'!T42,'RE Appr'!$E$13:$J$59,6,FALSE)/100))","v":{"v":415285.5578370979,"d":"415,286"}},{"$f":"($A35-$A34)/365.25*$D$1*(1+$D$2+(VLOOKUP('RE Appr'!U42,'RE Appr'!$E$13:$J$59,6,FALSE)/100))","v":{"v":417653.93566050654,"d":"417,654"}},{"$f":"($A35-$A34)/365.25*$D$1*(1+$D$2+(VLOOKUP('RE Appr'!V42,'RE Appr'!$E$13:$J$59,6,FALSE)/100))","v":{"v":431774.264202601,"d":"431,774"}},{"$f":"($A35-$A34)/365.25*$D$1*(1+$D$2+(VLOOKUP('RE Appr'!W42,'RE Appr'!$E$13:$J$59,6,FALSE)/100))","v":{"v":415285.5578370979,"d":"415,286"}},{"$f":"($A35-$A34)/365.25*$D$1*(1+$D$2+(VLOOKUP('RE Appr'!X42,'RE Appr'!$E$13:$J$59,6,FALSE)/100))","v":{"v":409269.6783025325,"d":"409,270"}},{"$f":"($A35-$A34)/365.25*$D$1*(1+$D$2+(VLOOKUP('RE Appr'!Y42,'RE Appr'!$E$13:$J$59,6,FALSE)/100))","v":{"v":410728.67898699525,"d":"410,729"}},{"$f":"($A35-$A34)/365.25*$D$1*(1+$D$2+(VLOOKUP('RE Appr'!Z42,'RE Appr'!$E$13:$J$59,6,FALSE)/100))","v":{"v":414845.85900068446,"d":"414,846"}},{"$f":"($A35-$A34)/365.25*$D$1*(1+$D$2+(VLOOKUP('RE Appr'!AA42,'RE Appr'!$E$13:$J$59,6,FALSE)/100))","v":{"v":440668.1724845996,"d":"440,668"}},{"$f":"($A35-$A34)/365.25*$D$1*(1+$D$2+(VLOOKUP('RE Appr'!AB42,'RE Appr'!$E$13:$J$59,6,FALSE)/100))","v":{"v":412517.453798768,"d":"412,517"}},{"$f":"($A35-$A34)/365.25*$D$1*(1+$D$2+(VLOOKUP('RE Appr'!AC42,'RE Appr'!$E$13:$J$59,6,FALSE)/100))","v":{"v":451019.08281998633,"d":"451,019"}},{"$f":"($A35-$A34)/365.25*$D$1*(1+$D$2+(VLOOKUP('RE Appr'!AD42,'RE Appr'!$E$13:$J$59,6,FALSE)/100))","v":{"v":417653.93566050654,"d":"417,654"}},{"$f":"($A35-$A34)/365.25*$D$1*(1+$D$2+(VLOOKUP('RE Appr'!AE42,'RE Appr'!$E$13:$J$59,6,FALSE)/100))","v":{"v":418173.57973990415,"d":"418,174"}},{"$f":"($A35-$A34)/365.25*$D$1*(1+$D$2+(VLOOKUP('RE Appr'!AF42,'RE Appr'!$E$13:$J$59,6,FALSE)/100))","v":{"v":375602.7378507871,"d":"375,603"}},{"$f":"($A35-$A34)/365.25*$D$1*(1+$D$2+(VLOOKUP('RE Appr'!AG42,'RE Appr'!$E$13:$J$59,6,FALSE)/100))","v":{"v":419542.64202600956,"d":"419,543"}},{"$f":"($A35-$A34)/365.25*$D$1*(1+$D$2+(VLOOKUP('RE Appr'!AH42,'RE Appr'!$E$13:$J$59,6,FALSE)/100))","v":{"v":426041.984729592,"d":"426,042"}},{"$f":"($A35-$A34)/365.25*$D$1*(1+$D$2+(VLOOKUP('RE Appr'!AI42,'RE Appr'!$E$13:$J$59,6,FALSE)/100))","v":{"v":412277.6180698152,"d":"412,278"}},{"$f":"($A35-$A34)/365.25*$D$1*(1+$D$2+(VLOOKUP('RE Appr'!AJ42,'RE Appr'!$E$13:$J$59,6,FALSE)/100))","v":{"v":422510.60917180014,"d":"422,511"}},{"$f":"($A35-$A34)/365.25*$D$1*(1+$D$2+(VLOOKUP('RE Appr'!AK42,'RE Appr'!$E$13:$J$59,6,FALSE)/100))","v":{"v":423749.76043805614,"d":"423,750"}},{"$f":"($A35-$A34)/365.25*$D$1*(1+$D$2+(VLOOKUP('RE Appr'!AL42,'RE Appr'!$E$13:$J$59,6,FALSE)/100))","v":{"v":412277.6180698152,"d":"412,278"}},{"$f":"($A35-$A34)/365.25*$D$1*(1+$D$2+(VLOOKUP('RE Appr'!AM42,'RE Appr'!$E$13:$J$59,6,FALSE)/100))","v":{"v":412637.3716632444,"d":"412,637"}},{"$f":"($A35-$A34)/365.25*$D$1*(1+$D$2+(VLOOKUP('RE Appr'!AN42,'RE Appr'!$E$13:$J$59,6,FALSE)/100))","v":{"v":431774.264202601,"d":"431,774"}},{"$f":"($A35-$A34)/365.25*$D$1*(1+$D$2+(VLOOKUP('RE Appr'!AO42,'RE Appr'!$E$13:$J$59,6,FALSE)/100))","v":{"v":423749.76043805614,"d":"423,750"}},{"$f":"($A35-$A34)/365.25*$D$1*(1+$D$2+(VLOOKUP('RE Appr'!AP42,'RE Appr'!$E$13:$J$59,6,FALSE)/100))","v":{"v":412977.13894592744,"d":"412,977"}},{"$f":"($A35-$A34)/365.25*$D$1*(1+$D$2+(VLOOKUP('RE Appr'!AQ42,'RE Appr'!$E$13:$J$59,6,FALSE)/100))","v":{"v":371325.66735112935,"d":"371,326"}},{"$f":"($A35-$A34)/365.25*$D$1*(1+$D$2+(VLOOKUP('RE Appr'!AR42,'RE Appr'!$E$13:$J$59,6,FALSE)/100))","v":{"v":435771.5263518138,"d":"435,772"}},{"$f":"($A35-$A34)/365.25*$D$1*(1+$D$2+(VLOOKUP('RE Appr'!AS42,'RE Appr'!$E$13:$J$59,6,FALSE)/100))","v":{"v":399326.4887063655,"d":"399,326"}},{"$f":"($A35-$A34)/365.25*$D$1*(1+$D$2+(VLOOKUP('RE Appr'!AT42,'RE Appr'!$E$13:$J$59,6,FALSE)/100))","v":{"v":440668.1724845996,"d":"440,668"}},{"$f":"($A35-$A34)/365.25*$D$1*(1+$D$2+(VLOOKUP('RE Appr'!AU42,'RE Appr'!$E$13:$J$59,6,FALSE)/100))","v":{"v":436840.79397672834,"d":"436,841"}},{"$f":"($A35-$A34)/365.25*$D$1*(1+$D$2+(VLOOKUP('RE Appr'!AV42,'RE Appr'!$E$13:$J$59,6,FALSE)/100))","v":{"v":416234.9075975359,"d":"416,235"}},{"$f":"($A35-$A34)/365.25*$D$1*(1+$D$2+(VLOOKUP('RE Appr'!AW42,'RE Appr'!$E$13:$J$59,6,FALSE)/100))","v":{"v":416234.9075975359,"d":"416,235"}},{"$f":"($A35-$A34)/365.25*$D$1*(1+$D$2+(VLOOKUP('RE Appr'!AX42,'RE Appr'!$E$13:$J$59,6,FALSE)/100))","v":{"v":383827.10472279263,"d":"383,827"}},{"$f":"($A35-$A34)/365.25*$D$1*(1+$D$2+(VLOOKUP('RE Appr'!AY42,'RE Appr'!$E$13:$J$59,6,FALSE)/100))","v":{"v":407091.1704312115,"d":"407,091"}},{"$f":"($A35-$A34)/365.25*$D$1*(1+$D$2+(VLOOKUP('RE Appr'!AZ42,'RE Appr'!$E$13:$J$59,6,FALSE)/100))","v":{"v":415847.54106599226,"d":"415,848"}},{"$f":"($A35-$A34)/365.25*$D$1*(1+$D$2+(VLOOKUP('RE Appr'!BA42,'RE Appr'!$E$13:$J$59,6,FALSE)/100))","v":{"v":409269.6783025325,"d":"409,270"}},{"$f":"($A35-$A34)/365.25*$D$1*(1+$D$2+(VLOOKUP('RE Appr'!BB42,'RE Appr'!$E$13:$J$59,6,FALSE)/100))","v":{"v":441107.871321013,"d":"441,108"}},{"$f":"($A35-$A34)/365.25*$D$1*(1+$D$2+(VLOOKUP('RE Appr'!BC42,'RE Appr'!$E$13:$J$59,6,FALSE)/100))","v":{"v":415045.72210814507,"d":"415,046"}},{"$f":"($A35-$A34)/365.25*$D$1*(1+$D$2+(VLOOKUP('RE Appr'!BD42,'RE Appr'!$E$13:$J$59,6,FALSE)/100))","v":{"v":422510.60917180014,"d":"422,511"}},{"$f":"($A35-$A34)/365.25*$D$1*(1+$D$2+(VLOOKUP('RE Appr'!BE42,'RE Appr'!$E$13:$J$59,6,FALSE)/100))","v":{"v":414845.85900068446,"d":"414,846"}},{"$f":"($A35-$A34)/365.25*$D$1*(1+$D$2+(VLOOKUP('RE Appr'!BF42,'RE Appr'!$E$13:$J$59,6,FALSE)/100))","v":{"v":436840.79397672834,"d":"436,841"}},{"$f":"($A35-$A34)/365.25*$D$1*(1+$D$2+(VLOOKUP('RE Appr'!BG42,'RE Appr'!$E$13:$J$59,6,FALSE)/100))","v":{"v":441107.871321013,"d":"441,108"}},{"$f":"($A35-$A34)/365.25*$D$1*(1+$D$2+(VLOOKUP('RE Appr'!BH42,'RE Appr'!$E$13:$J$59,6,FALSE)/100))","v":{"v":417916.4969295789,"d":"417,916"}},{"$f":"($A35-$A34)/365.25*$D$1*(1+$D$2+(VLOOKUP('RE Appr'!BI42,'RE Appr'!$E$13:$J$59,6,FALSE)/100))","v":{"v":412517.453798768,"d":"412,517"}},{"$f":"($A35-$A34)/365.25*$D$1*(1+$D$2+(VLOOKUP('RE Appr'!BJ42,'RE Appr'!$E$13:$J$59,6,FALSE)/100))","v":{"v":441107.871321013,"d":"441,108"}},{"$f":"($A35-$A34)/365.25*$D$1*(1+$D$2+(VLOOKUP('RE Appr'!BK42,'RE Appr'!$E$13:$J$59,6,FALSE)/100))","v":{"v":422510.60917180014,"d":"422,511"}},{"$f":"($A35-$A34)/365.25*$D$1*(1+$D$2+(VLOOKUP('RE Appr'!BL42,'RE Appr'!$E$13:$J$59,6,FALSE)/100))","v":{"v":429315.94798083504,"d":"429,316"}},{"$f":"($A35-$A34)/365.25*$D$1*(1+$D$2+(VLOOKUP('RE Appr'!BM42,'RE Appr'!$E$13:$J$59,6,FALSE)/100))","v":{"v":412977.13894592744,"d":"412,977"}},{"$f":"($A35-$A34)/365.25*$D$1*(1+$D$2+(VLOOKUP('RE Appr'!BN42,'RE Appr'!$E$13:$J$59,6,FALSE)/100))","v":{"v":410728.67898699525,"d":"410,729"}},{"$f":"($A35-$A34)/365.25*$D$1*(1+$D$2+(VLOOKUP('RE Appr'!BO42,'RE Appr'!$E$13:$J$59,6,FALSE)/100))","v":{"v":399326.4887063655,"d":"399,326"}},{"$f":"($A35-$A34)/365.25*$D$1*(1+$D$2+(VLOOKUP('RE Appr'!BP42,'RE Appr'!$E$13:$J$59,6,FALSE)/100))","v":{"v":418833.85952220886,"d":"418,834"}},{"$f":"($A35-$A34)/365.25*$D$1*(1+$D$2+(VLOOKUP('RE Appr'!BQ42,'RE Appr'!$E$13:$J$59,6,FALSE)/100))","v":{"v":435181.93018480495,"d":"435,182"}},{"$f":"($A35-$A34)/365.25*$D$1*(1+$D$2+(VLOOKUP('RE Appr'!BR42,'RE Appr'!$E$13:$J$59,6,FALSE)/100))","v":{"v":414845.85900068446,"d":"414,846"}},{"$f":"($A35-$A34)/365.25*$D$1*(1+$D$2+(VLOOKUP('RE Appr'!BS42,'RE Appr'!$E$13:$J$59,6,FALSE)/100))","v":{"v":386675.1540041068,"d":"386,675"}},{"$f":"($A35-$A34)/365.25*$D$1*(1+$D$2+(VLOOKUP('RE Appr'!BT42,'RE Appr'!$E$13:$J$59,6,FALSE)/100))","v":{"v":386675.1540041068,"d":"386,675"}},{"$f":"($A35-$A34)/365.25*$D$1*(1+$D$2+(VLOOKUP('RE Appr'!BU42,'RE Appr'!$E$13:$J$59,6,FALSE)/100))","v":{"v":401385.0787132102,"d":"401,385"}},{"$f":"($A35-$A34)/365.25*$D$1*(1+$D$2+(VLOOKUP('RE Appr'!BV42,'RE Appr'!$E$13:$J$59,6,FALSE)/100))","v":{"v":418833.85952220886,"d":"418,834"}},{"$f":"($A35-$A34)/365.25*$D$1*(1+$D$2+(VLOOKUP('RE Appr'!BW42,'RE Appr'!$E$13:$J$59,6,FALSE)/100))","v":{"v":412277.6180698152,"d":"412,278"}},{"$f":"($A35-$A34)/365.25*$D$1*(1+$D$2+(VLOOKUP('RE Appr'!BX42,'RE Appr'!$E$13:$J$59,6,FALSE)/100))","v":{"v":470497.7412731006,"d":"470,498"}},{"$f":"($A35-$A34)/365.25*$D$1*(1+$D$2+(VLOOKUP('RE Appr'!BY42,'RE Appr'!$E$13:$J$59,6,FALSE)/100))","v":{"v":423729.77412731,"d":"423,730"}},{"$f":"($A35-$A34)/365.25*$D$1*(1+$D$2+(VLOOKUP('RE Appr'!BZ42,'RE Appr'!$E$13:$J$59,6,FALSE)/100))","v":{"v":417653.93566050654,"d":"417,654"}},{"$f":"($A35-$A34)/365.25*$D$1*(1+$D$2+(VLOOKUP('RE Appr'!CA42,'RE Appr'!$E$13:$J$59,6,FALSE)/100))","v":{"v":419342.77891854895,"d":"419,343"}},{"$f":"($A35-$A34)/365.25*$D$1*(1+$D$2+(VLOOKUP('RE Appr'!CB42,'RE Appr'!$E$13:$J$59,6,FALSE)/100))","v":{"v":435771.5263518138,"d":"435,772"}},{"$f":"($A35-$A34)/365.25*$D$1*(1+$D$2+(VLOOKUP('RE Appr'!CC42,'RE Appr'!$E$13:$J$59,6,FALSE)/100))","v":{"v":410728.67898699525,"d":"410,729"}},{"$f":"($A35-$A34)/365.25*$D$1*(1+$D$2+(VLOOKUP('RE Appr'!CD42,'RE Appr'!$E$13:$J$59,6,FALSE)/100))","v":{"v":440668.1724845996,"d":"440,668"}},{"$f":"($A35-$A34)/365.25*$D$1*(1+$D$2+(VLOOKUP('RE Appr'!CE42,'RE Appr'!$E$13:$J$59,6,FALSE)/100))","v":{"v":418833.85952220886,"d":"418,834"}},{"$f":"($A35-$A34)/365.25*$D$1*(1+$D$2+(VLOOKUP('RE Appr'!CF42,'RE Appr'!$E$13:$J$59,6,FALSE)/100))","v":{"v":429315.94798083504,"d":"429,316"}},{"$f":"($A35-$A34)/365.25*$D$1*(1+$D$2+(VLOOKUP('RE Appr'!CG42,'RE Appr'!$E$13:$J$59,6,FALSE)/100))","v":{"v":436840.79397672834,"d":"436,841"}},{"$f":"($A35-$A34)/365.25*$D$1*(1+$D$2+(VLOOKUP('RE Appr'!CH42,'RE Appr'!$E$13:$J$59,6,FALSE)/100))","v":{"v":415045.72210814507,"d":"415,046"}},{"$f":"($A35-$A34)/365.25*$D$1*(1+$D$2+(VLOOKUP('RE Appr'!CI42,'RE Appr'!$E$13:$J$59,6,FALSE)/100))","v":{"v":399326.4887063655,"d":"399,326"}},{"$f":"($A35-$A34)/365.25*$D$1*(1+$D$2+(VLOOKUP('RE Appr'!CJ42,'RE Appr'!$E$13:$J$59,6,FALSE)/100))","v":{"v":415847.54106599226,"d":"415,848"}},{"$f":"($A35-$A34)/365.25*$D$1*(1+$D$2+(VLOOKUP('RE Appr'!CK42,'RE Appr'!$E$13:$J$59,6,FALSE)/100))","v":{"v":371325.66735112935,"d":"371,326"}},{"$f":"($A35-$A34)/365.25*$D$1*(1+$D$2+(VLOOKUP('RE Appr'!CL42,'RE Appr'!$E$13:$J$59,6,FALSE)/100))","v":{"v":412637.3716632444,"d":"412,637"}},{"$f":"($A35-$A34)/365.25*$D$1*(1+$D$2+(VLOOKUP('RE Appr'!CM42,'RE Appr'!$E$13:$J$59,6,FALSE)/100))","v":{"v":416694.59274469543,"d":"416,695"}},{"$f":"($A35-$A34)/365.25*$D$1*(1+$D$2+(VLOOKUP('RE Appr'!CN42,'RE Appr'!$E$13:$J$59,6,FALSE)/100))","v":{"v":412277.6180698152,"d":"412,278"}},{"$f":"($A35-$A34)/365.25*$D$1*(1+$D$2+(VLOOKUP('RE Appr'!CO42,'RE Appr'!$E$13:$J$59,6,FALSE)/100))","v":{"v":419632.5804243669,"d":"419,633"}},{"$f":"($A35-$A34)/365.25*$D$1*(1+$D$2+(VLOOKUP('RE Appr'!CP42,'RE Appr'!$E$13:$J$59,6,FALSE)/100))","v":{"v":421665.9736136933,"d":"421,666"}},{"$f":"($A35-$A34)/365.25*$D$1*(1+$D$2+(VLOOKUP('RE Appr'!CQ42,'RE Appr'!$E$13:$J$59,6,FALSE)/100))","v":{"v":470497.7412731006,"d":"470,498"}},{"$f":"($A35-$A34)/365.25*$D$1*(1+$D$2+(VLOOKUP('RE Appr'!CR42,'RE Appr'!$E$13:$J$59,6,FALSE)/100))","v":{"v":410728.67898699525,"d":"410,729"}},{"$f":"($A35-$A34)/365.25*$D$1*(1+$D$2+(VLOOKUP('RE Appr'!CS42,'RE Appr'!$E$13:$J$59,6,FALSE)/100))","v":{"v":401385.0787132102,"d":"401,385"}},{"$f":"($A35-$A34)/365.25*$D$1*(1+$D$2+(VLOOKUP('RE Appr'!CT42,'RE Appr'!$E$13:$J$59,6,FALSE)/100))","v":{"v":409269.6783025325,"d":"409,270"}},{"$f":"($A35-$A34)/365.25*$D$1*(1+$D$2+(VLOOKUP('RE Appr'!CU42,'RE Appr'!$E$13:$J$59,6,FALSE)/100))","v":{"v":426041.984729592,"d":"426,042"}},{"$f":"($A35-$A34)/365.25*$D$1*(1+$D$2+(VLOOKUP('RE Appr'!CV42,'RE Appr'!$E$13:$J$59,6,FALSE)/100))","v":{"v":415847.54106599226,"d":"415,848"}},{"$f":"($A35-$A34)/365.25*$D$1*(1+$D$2+(VLOOKUP('RE Appr'!CW42,'RE Appr'!$E$13:$J$59,6,FALSE)/100))","v":{"v":419289.85199380416,"d":"419,290"}},{"$f":"($A35-$A34)/365.25*$D$1*(1+$D$2+(VLOOKUP('RE Appr'!CX42,'RE Appr'!$E$13:$J$59,6,FALSE)/100))","v":{"v":419289.85199380416,"d":"419,290"}},{"$f":"($A35-$A34)/365.25*$D$1*(1+$D$2+(VLOOKUP('RE Appr'!CY42,'RE Appr'!$E$13:$J$59,6,FALSE)/100))","v":{"v":423729.77412731,"d":"423,730"}},{"$f":"($A35-$A34)/365.25*$D$1*(1+$D$2+(VLOOKUP('RE Appr'!CZ42,'RE Appr'!$E$13:$J$59,6,FALSE)/100))","v":{"v":411048.45995893225,"d":"411,048"}},{"$f":"($A35-$A34)/365.25*$D$1*(1+$D$2+(VLOOKUP('RE Appr'!DA42,'RE Appr'!$E$13:$J$59,6,FALSE)/100))","v":{"v":416234.9075975359,"d":"416,235"}},{"$f":"($A35-$A34)/365.25*$D$1*(1+$D$2+(VLOOKUP('RE Appr'!DB42,'RE Appr'!$E$13:$J$59,6,FALSE)/100))","v":{"v":423729.77412731,"d":"423,730"}},{"$f":"($A35-$A34)/365.25*$D$1*(1+$D$2+(VLOOKUP('RE Appr'!DC42,'RE Appr'!$E$13:$J$59,6,FALSE)/100))","v":{"v":470497.7412731006,"d":"470,498"}},{"$f":"($A35-$A34)/365.25*$D$1*(1+$D$2+(VLOOKUP('RE Appr'!DD42,'RE Appr'!$E$13:$J$59,6,FALSE)/100))","v":{"v":435771.5263518138,"d":"435,772"}},{"$f":"($A35-$A34)/365.25*$D$1*(1+$D$2+(VLOOKUP('RE Appr'!DE42,'RE Appr'!$E$13:$J$59,6,FALSE)/100))","v":{"v":435181.93018480495,"d":"435,182"}},{"$f":"($A35-$A34)/365.25*$D$1*(1+$D$2+(VLOOKUP('RE Appr'!DF42,'RE Appr'!$E$13:$J$59,6,FALSE)/100))","v":{"v":371325.66735112935,"d":"371,326"}},{"$f":"($A35-$A34)/365.25*$D$1*(1+$D$2+(VLOOKUP('RE Appr'!DG42,'RE Appr'!$E$13:$J$59,6,FALSE)/100))","v":{"v":399326.4887063655,"d":"399,326"}}]
[]
["This worksheet calculatates 100 scenarios of annually compounded valuation for real estate using the randomly selected years of worksheet RE Appr."]
["The data on this worksheet are referenced by other worksheets such as Main, Main Print, Fixed Rate Proj and Random Yr Returns. "]
["Cell D2 permits an addition or subtraction to the randomly selected historical appreciation rate.  The average 1976-2006 for Minnesota residences was 6.1%."]
["The results from this worksheet are added to the similar numbers for equities, Treasury Bills and Treasury Bonds as part of the Random Yr Returns worksheet and report in Main. "]
["Pressing F9 or Ctrl a'r for a recalculation will give a new set of numbers. "]

{"sheet":"Main","index":3,"n_rows":39,"n_cols":15,"rows_kept":39,"merged":[[0,12,0,14],[45,2,45,3]]}
["Current Invested Assets Excluding Homestead:",{"$nulls":7},{"v":1000000,"d":"1,000,000"},null,"Test ID:",null,{"$f":"NOW()","v":"2023-03-09T07:16:10.830"}]
[null,"% Equities",null,{"v":0.7,"d":"70%"},"Add or Subtract on Equity Return:",{"$nulls":3},{"v":0,"d":"0%"},null,"Date of Birth: ",null,"1953-02-21"]
[null,"% T Bills",null,{"v":0.05,"d":"5%"},{"$nulls":6},"Randomly selected years, 1928-2022."]
[null,"% T Bonds",null,{"v":0.25,"d":"25%"},"Add or Subtract on Bond Return:",{"$nulls":3},{"v":0,"d":"0%"}]
[null,null,"Total",{"$f":"SUM(D2:D4)","v":{"v":1,"d":"100%"}},"Investment assets with homestead",{"$nulls":3},{"$f":"I1+'Real Estate'!D1-'Real Estate'!E5","v":{"v":1297118.3,"d":"1,297,118"}}]
["Date","Age","Social  Security","Pension","Income","Inc Tax St&Fed","House Prin&Int\nLT Care","Other Expense ","Add or Withdraw","% Neg (Red)","How Positive?",null,null,"Final 5th %ile (000)","Final 95th %ile (000)"]
["2022-12-31",68,{"$nulls":3},{"v":0.1,"d":"10.0%"},{"$nulls":4},">500k",">1 mil",">10 mil"]
[{"$f":"A7+365","v":"2023-12-31"},{"$f":"B7+1","v":69},{"$f":"(974.6+2391.6)*12","v":{"v":40394.399999999994,"d":"40,394"}},{"$f":"452*12","v":{"v":5424,"d":"5,424"}},{"v":20000,"d":"20,000"},{"$f":"$F$7*(C8+D8+E8)","v":{"v":6581.84,"d":"6,582"}},{"$f":"'Real Estate'!C6+'Real Estate'!D6","v":{"v":15115.68,"d":"15,116"}},{"v":60000,"d":"60,000"},{"$f":"C8+D8+E8-F8-G8-H8","v":{"v":-15879.120000000003,"d":"-15,879"}},{"$f":"COUNTIF('Random Yr Returns'!$C3:$CX3,\"<0\")","v":0},{"$f":"COUNTIF('Random Yr Returns'!$C3:$CX3,\">500000\")","v":100},{"$f":"COUNTIF('Random Yr Returns'!$C3:$CX3,\">1000000\")","v":100},{"$f":"COUNTIF('Random Yr Returns'!$C3:$CX3,\">10000000\")","v":0},{"$f":"'Random Yr Returns'!L68","v":{"v":972.9532770448083,"d":"973"}},{"$f":"'Random Yr Returns'!M68","v":{"v":1337.4126598504163,"d":"1,337"}}]
[{"$f":"A8+365","v":"2024-12-30"},70,{"$f":"C8*(1+VLOOKUP('Random Years'!A3,Inflation!$A$7:$B$101,2,FALSE))","v":{"v":42599.934239999995,"d":"42,600"}},{"$f":"D8","v":{"v":5424,"d":"5,424"}},{"$f":"E8*0.9","v":{"v":18000,"d":"18,000"}},{"$f":"$F$7*(C9+D9+E9)","v":{"v":6602.393424000001,"d":"6,602"}},{"$f":"'Real Estate'!C7+'Real Estate'!D7","v":{"v":15115.68,"d":"15,116"}},{"$f":"H8*(1+VLOOKUP('Random Years'!E3,Inflation!$A$7:$B$101,2,FALSE))","v":{"v":59310,"d":"59,310"}},{"$f":"C9+D9+E9-F9-G9-H9","v":{"v":-15004.139184,"d":"-15,004"}},{"$f":"COUNTIF('Random Yr Returns'!C4:CX4,\"<0\")","v":0},{"$f":"COUNTIF('Random Yr Returns'!$C4:$CX4,\">500000\")","v":100},{"$f":"COUNTIF('Random Yr Returns'!$C4:$CX4,\">1000000\")","v":99},{"$f":"COUNTIF('Random Yr Returns'!$C4:$CX4,\">10000000\")","v":0},{"$f":"'Random Yr Returns'!L69","v":{"v":1036.4332232305228,"d":"1,036"}},{"$f":"'Random Yr Returns'!M69","v":{"v":1576.3356135073204,"d":"1,576"}}]
[{"$f":"A9+365","v":"2025-12-30"},71,{"$f":"C9*(1+VLOOKUP('Random Years'!A4,Inflation!$A$7:$B$101,2,FALSE))","v":{"v":44095.19193182399,"d":"44,095"}},{"$f":"D9","v":{"v":5424,"d":"5,424"}},{"$f":"E9*0.9","v":{"v":16200,"d":"16,200"}},{"v":6571.9191931824,"d":"6,572"},{"$f":"'Real Estate'!C8+'Real Estate'!D8","v":{"v":15115.68,"d":"15,116"}},{"$f":"H9*(1+VLOOKUP('Random Years'!E4,Inflation!$A$7:$B$101,2,FALSE))","v":{"v":64766.520000000004,"d":"64,767"}},{"v":-20734.92726135841,"d":"-20,735"},{"$f":"COUNTIF('Random Yr Returns'!C5:CX5,\"<0\")","v":0},{"$f":"COUNTIF('Random Yr Returns'!$C5:$CX5,\">500000\")","v":100},{"$f":"COUNTIF('Random Yr Returns'!$C5:$CX5,\">1000000\")","v":99},{"$f":"COUNTIF('Random Yr Returns'!$C5:$CX5,\">10000000\")","v":0},{"$f":"'Random Yr Returns'!L70","v":{"v":1035.8922609726662,"d":"1,036"}},{"$f":"'Random Yr Returns'!M70","v":{"v":1963.7485961938335,"d":"1,964"}}]
[{"$f":"A10+365","v":"2026-12-30"},72,{"$f":"C10*(1+VLOOKUP('Random Years'!A5,Inflation!$A$7:$B$101,2,FALSE))","v":{"v":47569.89305605172,"d":"47,570"}},{"v":5424,"d":"5,424"},{"v":14580,"d":"14,580"},{"v":6757.389305605172,"d":"6,757"},{"$f":"'Real Estate'!C9+'Real Estate'!D9","v":{"v":15115.68,"d":"15,116"}},{"$f":"H10*(1+VLOOKUP('Random Years'!E5,Inflation!$A$7:$B$101,2,FALSE))","v":{"v":70226.33763600001,"d":"70,226"}},{"v":-24525.513885553468,"d":"-24,526"},{"$f":"COUNTIF('Random Yr Returns'!C6:CX6,\"<0\")","v":0},{"$f":"COUNTIF('Random Yr Returns'!$C6:$CX6,\">500000\")","v":100},{"$f":"COUNTIF('Random Yr Returns'!$C6:$CX6,\">1000000\")","v":98},{"$f":"COUNTIF('Random Yr Returns'!$C6:$CX6,\">10000000\")","v":0},{"$f":"'Random Yr Returns'!L71","v":{"v":1089.2816603873146,"d":"1,089"}},{"$f":"'Random Yr Returns'!M71","v":{"v":2239.164795720138,"d":"2,239"}}]
[{"$f":"A11+366","v":"2027-12-31"},73,{"$f":"C11*(1+VLOOKUP('Random Years'!A6,Inflation!$A$7:$B$101,2,FALSE))","v":{"v":48159.75972994676,"d":"48,160"}},{"v":5424,"d":"5,424"},{"v":13122,"d":"13,122"},{"v":6670.575972994677,"d":"6,671"},{"$f":"'Real Estate'!C10+'Real Estate'!D10","v":{"v":15115.68,"d":"15,116"}},{"$f":"H11*(1+VLOOKUP('Random Years'!E6,Inflation!$A$7:$B$101,2,FALSE))","v":{"v":72445.48990529761,"d":"72,445"}},{"v":-27525.986148345524,"d":"-27,526"},{"$f":"COUNTIF('Random Yr Returns'!C7:CX7,\"<0\")","v":0},{"$f":"COUNTIF('Random Yr Returns'!$C7:$CX7,\">500000\")","v":100},{"$f":"COUNTIF('Random Yr Returns'!$C7:$CX7,\">1000000\")","v":99},{"$f":"COUNTIF('Random Yr Returns'!$C7:$CX7,\">10000000\")","v":0},{"$f":"'Random Yr Returns'!L72","v":{"v":1093.680100711217,"d":"1,094"}},{"$f":"'Random Yr Returns'!M72","v":{"v":2220.653019949991,"d":"2,221"}}]
["2028-12-30",74,{"$f":"C12*(1+VLOOKUP('Random Years'!A7,Inflation!$A$7:$B$101,2,FALSE))","v":{"v":46878.71012113018,"d":"46,879"}},{"v":5424,"d":"5,424"},{"v":11809.800000000001,"d":"11,810"},{"v":6411.251012113018,"d":"6,411"},{"$f":"'Real Estate'!C11+'Real Estate'!D11","v":{"v":15115.68,"d":"15,116"}},{"$f":"H12*(1+VLOOKUP('Random Years'!E7,Inflation!$A$7:$B$101,2,FALSE))","v":{"v":73235.14574526534,"d":"73,235"}},{"v":-30649.56663624818,"d":"-30,650"},{"$f":"COUNTIF('Random Yr Returns'!C8:CX8,\"<0\")","v":0},{"$f":"COUNTIF('Random Yr Returns'!$C8:$CX8,\">500000\")","v":100},{"$f":"COUNTIF('Random Yr Returns'!$C8:$CX8,\">1000000\")","v":98},{"$f":"COUNTIF('Random Yr Returns'!$C8:$CX8,\">10000000\")","v":0},{"$f":"'Random Yr Returns'!L73","v":{"v":1243.978554836919,"d":"1,244"}},{"$f":"'Random Yr Returns'!M73","v":{"v":2936.696183341676,"d":"2,937"}}]
["2029-12-30",75,{"$f":"C13*(1+VLOOKUP('Random Years'!A8,Inflation!$A$7:$B$101,2,FALSE))","v":{"v":47647.52096711671,"d":"47,648"}},{"v":5424,"d":"5,424"},{"v":10628.820000000002,"d":"10,629"},{"v":6370.034096711672,"d":"6,370"},{"$f":"'Real Estate'!C12+'Real Estate'!D12","v":{"v":15115.68,"d":"15,116"}},{"$f":"H13*(1+VLOOKUP('Random Years'!E8,Inflation!$A$7:$B$101,2,FALSE))","v":{"v":75234.46522411109,"d":"75,234"}},{"v":-33019.83835370605,"d":"-33,020"},{"$f":"COUNTIF('Random Yr Returns'!C9:CX9,\"<0\")","v":0},{"$f":"COUNTIF('Random Yr Returns'!$C9:$CX9,\">500000\")","v":100},{"$f":"COUNTIF('Random Yr Returns'!$C9:$CX9,\">1000000\")","v":98},{"$f":"COUNTIF('Random Yr Returns'!$C9:$CX9,\">10000000\")","v":0},{"$f":"'Random Yr Returns'!L74","v":{"v":1370.9405299672235,"d":"1,371"}},{"$f":"'Random Yr Returns'!M74","v":{"v":3408.8575759660175,"d":"3,409"}}]
["2030-12-30",76,{"$f":"C14*(1+VLOOKUP('Random Years'!A9,Inflation!$A$7:$B$101,2,FALSE))","v":{"v":50582.60825869111,"d":"50,583"}},{"v":5424,"d":"5,424"},{"v":9565.938000000002,"d":"9,566"},{"v":6557.254625869112,"d":"6,557"},{"$f":"'Real Estate'!C13+'Real Estate'!D13","v":{"v":10364.68,"d":"10,365"}},{"$f":"H14*(1+VLOOKUP('Random Years'!E9,Inflation!$A$7:$B$101,2,FALSE))","v":{"v":76468.31045378651,"d":"76,468"}},{"v":-27817.698820964513,"d":"-27,818"},{"$f":"COUNTIF('Random Yr Returns'!C10:CX10,\"<0\")","v":0},{"$f":"COUNTIF('Random Yr Returns'!$C10:$CX10,\">500000\")","v":100},{"$f":"COUNTIF('Random Yr Returns'!$C10:$CX10,\">1000000\")","v":99},{"$f":"COUNTIF('Random Yr Returns'!$C10:$CX10,\">10000000\")","v":0},{"$f":"'Random Yr Returns'!L75","v":{"v":1474.6537349450646,"d":"1,475"}},{"$f":"'Random Yr Returns'!M75","v":{"v":3909.9190847586783,"d":"3,910"}}]
[{"$f":"A15+366","v":"2031-12-31"},77,{"$f":"C15*(1+VLOOKUP('Random Years'!A10,Inflation!$A$7:$B$101,2,FALSE))","v":{"v":56257.97690531625,"d":"56,258"}},{"v":5424,"d":"5,424"},null,{"v":6168.197690531626,"d":"6,168"},{"$f":"'Real Estate'!C14+'Real Estate'!D14","v":0},{"$f":"H15*(1+VLOOKUP('Random Years'!E10,Inflation!$A$7:$B$101,2,FALSE))","v":{"v":84382.78058575341,"d":"84,383"}},{"v":-28869.001370968785,"d":"-28,869"},{"$f":"COUNTIF('Random Yr Returns'!C11:CX11,\"<0\")","v":0},{"$f":"COUNTIF('Random Yr Returns'!$C11:$CX11,\">500000\")","v":100},{"$f":"COUNTIF('Random Yr Returns'!$C11:$CX11,\">1000000\")","v":99},{"$f":"COUNTIF('Random Yr Returns'!$C11:$CX11,\">10000000\")","v":0},{"$f":"'Random Yr Returns'!L76","v":{"v":1608.3864282333875,"d":"1,608"}},{"$f":"'Random Yr Returns'!M76","v":{"v":4414.95805795862,"d":"4,415"}}]
["2032-12-30",78,{"$f":"C16*(1+VLOOKUP('Random Years'!A11,Inflation!$A$7:$B$101,2,FALSE))","v":{"v":57726.31010254501,"d":"57,726"}},{"v":5424,"d":"5,424"},null,{"v":6315.031010254501,"d":"6,315"},{"$f":"'Real Estate'!C15+'Real Estate'!D15","v":0},{"$f":"H16*(1+VLOOKUP('Random Years'!E11,Inflation!$A$7:$B$101,2,FALSE))","v":{"v":87049.27645226322,"d":"87,049"}},{"v":-30213.99735997271,"d":"-30,214"},{"$f":"COUNTIF('Random Yr Returns'!C12:CX12,\"<0\")","v":0},{"$f":"COUNTIF('Random Yr Returns'!$C12:$CX12,\">500000\")","v":100},{"$f":"COUNTIF('Random Yr Returns'!$C12:$CX12,\">1000000\")","v":99},{"$f":"COUNTIF('Random Yr Returns'!$C12:$CX12,\">10000000\")","v":0},{"$f":"'Random Yr Returns'!L77","v":{"v":1586.5284519894935,"d":"1,587"}},{"$f":"'Random Yr Returns'!M77","v":{"v":5593.470794197031,"d":"5,593"}}]
["2033-12-30",79,{"$f":"C17*(1+VLOOKUP('Random Years'!A12,Inflation!$A$7:$B$101,2,FALSE))","v":{"v":60878.16663414396,"d":"60,878"}},{"v":5424,"d":"5,424"},null,{"v":6630.216663414398,"d":"6,630"},null,{"$f":"H17*(1+VLOOKUP('Random Years'!E12,Inflation!$A$7:$B$101,2,FALSE))","v":{"v":89495.36112057182,"d":"89,495"}},{"v":-29823.411149842243,"d":"-29,823"},{"$f":"COUNTIF('Random Yr Returns'!C13:CX13,\"<0\")","v":0},{"$f":"COUNTIF('Random Yr Returns'!$C13:$CX13,\">500000\")","v":100},{"$f":"COUNTIF('Random Yr Returns'!$C13:$CX13,\">1000000\")","v":99},{"$f":"COUNTIF('Random Yr Returns'!$C13:$CX13,\">10000000\")","v":0},{"$f":"'Random Yr Returns'!L78","v":{"v":1753.5776580539016,"d":"1,754"}},{"$f":"'Random Yr Returns'!M78","v":{"v":6091.1769705549805,"d":"6,091"}}]
["2034-12-30",80,{"$f":"C18*(1+VLOOKUP('Random Years'!A13,Inflation!$A$7:$B$101,2,FALSE))","v":{"v":62302.71573338294,"d":"62,303"}},{"v":5424,"d":"5,424"},null,{"v":6772.671573338294,"d":"6,773"},null,{"$f":"H18*(1+VLOOKUP('Random Years'!E13,Inflation!$A$7:$B$101,2,FALSE))","v":{"v":93298.91396819612,"d":"93,299"}},{"v":-32344.86980815148,"d":"-32,345"},{"$f":"COUNTIF('Random Yr Returns'!C14:CX14,\"<0\")","v":0},{"$f":"COUNTIF('Random Yr Returns'!$C14:$CX14,\">500000\")","v":100},{"$f":"COUNTIF('Random Yr Returns'!$C14:$CX14,\">1000000\")","v":100},{"$f":"COUNTIF('Random Yr Returns'!$C14:$CX14,\">10000000\")","v":0},{"$f":"'Random Yr Returns'!L79","v":{"v":1274.1070130315086,"d":"1,274"}},{"$f":"'Random Yr Returns'!M79","v":{"v":7693.266610531019,"d":"7,693"}}]
[{"$f":"A19+366","v":"2035-12-31"},81,{"$f":"C19*(1+VLOOKUP('Random Years'!A14,Inflation!$A$7:$B$101,2,FALSE))","v":{"v":69137.32364933504,"d":"69,137"}},{"v":5424,"d":"5,424"},null,{"v":7456.1323649335045,"d":"7,456"},{"v":112000,"d":"112,000"},{"$f":"H19*(1+VLOOKUP('Random Years'!E14,Inflation!$A$7:$B$101,2,FALSE))","v":{"v":99046.12706863701,"d":"99,046"}},{"v":-143940.93578423548,"d":"-143,941"},{"$f":"COUNTIF('Random Yr Returns'!C15:CX15,\"<0\")","v":0},{"$f":"COUNTIF('Random Yr Returns'!$C15:$CX15,\">500000\")","v":100},{"$f":"COUNTIF('Random Yr Returns'!$C15:$CX15,\">1000000\")","v":97},{"$f":"COUNTIF('Random Yr Returns'!$C15:$CX15,\">10000000\")","v":0},{"$f":"'Random Yr Returns'!L80","v":{"v":1244.6797682096924,"d":"1,245"}},{"$f":"'Random Yr Returns'!M80","v":{"v":8068.413844637432,"d":"8,068"}}]
["2036-12-30",82,{"$f":"C20*(1+VLOOKUP('Random Years'!A15,Inflation!$A$7:$B$101,2,FALSE))","v":{"v":70208.95216589974,"d":"70,209"}},{"v":5424,"d":"5,424"},null,{"v":7563.295216589974,"d":"7,563"},{"$f":"G20*(1+VLOOKUP('Random Years'!D15,Inflation!$A$7:$B$100,2,FALSE))","v":{"v":113198.4,"d":"113,198"}},{"$f":"H20*(1+VLOOKUP('Random Years'!E15,Inflation!$A$7:$B$101,2,FALSE))","v":{"v":94004.6792008434,"d":"94,005"}},{"v":-139133.42225153363,"d":"-139,133"},{"$f":"COUNTIF('Random Yr Returns'!C16:CX16,\"<0\")","v":0},{"$f":"COUNTIF('Random Yr Returns'!$C16:$CX16,\">500000\")","v":100},{"$f":"COUNTIF('Random Yr Returns'!$C16:$CX16,\">1000000\")","v":91},{"$f":"COUNTIF('Random Yr Returns'!$C16:$CX16,\">10000000\")","v":0},{"$f":"'Random Yr Returns'!L81","v":{"v":1246.1797546677442,"d":"1,246"}},{"$f":"'Random Yr Returns'!M81","v":{"v":10051.112499589224,"d":"10,051"}}]
["2037-12-30",83,{"$f":"C21*(1+VLOOKUP('Random Years'!A16,Inflation!$A$7:$B$101,2,FALSE))","v":{"v":62977.430092812065,"d":"62,977"}},{"v":5424,"d":"5,424"},null,{"v":6840.143009281207,"d":"6,840"},{"$f":"G21*(1+VLOOKUP('Random Years'!D16,Inflation!$A$7:$B$100,2,FALSE))","v":{"v":118065.93119999999,"d":"118,066"}},{"$f":"H21*(1+VLOOKUP('Random Years'!E16,Inflation!$A$7:$B$101,2,FALSE))","v":{"v":89219.84102952048,"d":"89,220"}},{"v":-145724.48514598963,"d":"-145,724"},{"$f":"COUNTIF('Random Yr Returns'!C17:CX17,\"<0\")","v":0},{"$f":"COUNTIF('Random Yr Returns'!$C17:$CX17,\">500000\")","v":100},{"$f":"COUNTIF('Random Yr Returns'!$C17:$CX17,\">1000000\")","v":86},{"$f":"COUNTIF('Random Yr Returns'!$C17:$CX17,\">10000000\")","v":1},{"$f":"'Random Yr Returns'!L82","v":{"v":1134.3527336794934,"d":"1,134"}},{"$f":"'Random Yr Returns'!M82","v":{"v":8925.300710662726,"d":"8,925"}}]
["2038-12-30",84,{"$f":"C22*(1+VLOOKUP('Random Years'!A17,Inflation!$A$7:$B$101,2,FALSE))","v":{"v":63663.88408082371,"d":"63,664"}},{"v":5424,"d":"5,424"},null,{"v":6908.7884080823715,"d":"6,909"},null,{"$f":"H22*(1+VLOOKUP('Random Years'!E17,Inflation!$A$7:$B$101,2,FALSE))","v":{"v":93056.29419378986,"d":"93,056"}},{"v":-30877.198521048515,"d":"-30,877"},{"$f":"COUNTIF('Random Yr Returns'!C18:CX18,\"<0\")","v":0},{"$f":"COUNTIF('Random Yr Returns'!$C18:$CX18,\">500000\")","v":100},{"$f":"COUNTIF('Random Yr Returns'!$C18:$CX18,\">1000000\")","v":88},{"$f":"COUNTIF('Random Yr Returns'!$C18:$CX18,\">10000000\")","v":2},{"$f":"'Random Yr Returns'!L83","v":{"v":1016.8574534175548,"d":"1,017"}},{"$f":"'Random Yr Returns'!M83","v":{"v":9844.445612657077,"d":"9,844"}}]
[{"$f":"A23+366","v":"2039-12-31"},85,{"$f":"C23*(1+VLOOKUP('Random Years'!A18,Inflation!$A$7:$B$101,2,FALSE))","v":{"v":65580.1669916565,"d":"65,580"}},{"v":5424,"d":"5,424"},null,{"v":7100.41669916565,"d":"7,100"},null,{"$f":"H23*(1+VLOOKUP('Random Years'!E18,Inflation!$A$7:$B$101,2,FALSE))","v":{"v":96052.70686682989,"d":"96,053"}},{"v":-32148.95657433904,"d":"-32,149"},{"$f":"COUNTIF('Random Yr Returns'!C19:CX19,\"<0\")","v":0},{"$f":"COUNTIF('Random Yr Returns'!$C19:$CX19,\">500000\")","v":99},{"$f":"COUNTIF('Random Yr Returns'!$C19:$CX19,\">1000000\")","v":85},{"$f":"COUNTIF('Random Yr Returns'!$C19:$CX19,\">10000000\")","v":5},{"$f":"'Random Yr Returns'!L84","v":{"v":1052.6713457794335,"d":"1,053"}},{"$f":"'Random Yr Returns'!M84","v":{"v":12589.130394207947,"d":"12,589"}}]
["2040-12-30",86,{"$f":"C24*(1+VLOOKUP('Random Years'!A19,Inflation!$A$7:$B$101,2,FALSE))","v":{"v":67068.8367823671,"d":"67,069"}},{"v":5424,"d":"5,424"},null,{"v":7249.28367823671,"d":"7,249"},null,{"$f":"H24*(1+VLOOKUP('Random Years'!E19,Inflation!$A$7:$B$101,2,FALSE))","v":{"v":103487.18637832251,"d":"103,487"}},{"v":-38243.63327419212,"d":"-38,244"},{"$f":"COUNTIF('Random Yr Returns'!C20:CX20,\"<0\")","v":0},{"$f":"COUNTIF('Random Yr Returns'!$C20:$CX20,\">500000\")","v":98},{"$f":"COUNTIF('Random Yr Returns'!$C20:$CX20,\">1000000\")","v":88},{"$f":"COUNTIF('Random Yr Returns'!$C20:$CX20,\">10000000\")","v":7},{"$f":"'Random Yr Returns'!L85","v":{"v":1112.6359714569037,"d":"1,113"}},{"$f":"'Random Yr Returns'!M85","v":{"v":9548.479980812028,"d":"9,548"}}]
["2041-12-30",87,{"$f":"C25*(1+VLOOKUP('Random Years'!A20,Inflation!$A$7:$B$101,2,FALSE))","v":{"v":69241.86709411579,"d":"69,242"}},{"v":5424,"d":"5,424"},null,{"v":7466.586709411579,"d":"7,467"},null,{"$f":"H25*(1+VLOOKUP('Random Years'!E20,Inflation!$A$7:$B$101,2,FALSE))","v":{"v":107119.58662020162,"d":"107,120"}},{"v":-39920.30623549741,"d":"-39,920"},{"$f":"COUNTIF('Random Yr Returns'!C21:CX21,\"<0\")","v":0},{"$f":"COUNTIF('Random Yr Returns'!$C21:$CX21,\">500000\")","v":97},{"$f":"COUNTIF('Random Yr Returns'!$C21:$CX21,\">1000000\")","v":85},{"$f":"COUNTIF('Random Yr Returns'!$C21:$CX21,\">10000000\")","v":9},{"$f":"'Random Yr Returns'!L86","v":{"v":1267.1030308649797,"d":"1,267"}},{"$f":"'Random Yr Returns'!M86","v":{"v":10573.031977560015,"d":"10,573"}}]
["2042-12-30",88,{"$f":"C26*(1+VLOOKUP('Random Years'!A21,Inflation!$A$7:$B$101,2,FALSE))","v":{"v":69047.98986625226,"d":"69,048"}},{"v":5424,"d":"5,424"},null,{"v":7447.198986625226,"d":"7,447"},null,{"$f":"H26*(1+VLOOKUP('Random Years'!E21,Inflation!$A$7:$B$101,2,FALSE))","v":{"v":109861.84803767879,"d":"109,862"}},{"v":-42837.05715805176,"d":"-42,837"},{"$f":"COUNTIF('Random Yr Returns'!C22:CX22,\"<0\")","v":0},{"$f":"COUNTIF('Random Yr Returns'!$C22:$CX22,\">500000\")","v":97},{"$f":"COUNTIF('Random Yr Returns'!$C22:$CX22,\">1000000\")","v":87},{"$f":"COUNTIF('Random Yr Returns'!$C22:$CX22,\">10000000\")","v":10},{"$f":"'Random Yr Returns'!L87","v":{"v":1428.022932992303,"d":"1,428"}},{"$f":"'Random Yr Returns'!M87","v":{"v":12379.636699403367,"d":"12,380"}}]
[{"$f":"A27+366","v":"2043-12-31"},89,{"$f":"C27*(1+VLOOKUP('Random Years'!A22,Inflation!$A$7:$B$101,2,FALSE))","v":{"v":72017.05343050111,"d":"72,017"}},{"v":5424,"d":"5,424"},null,{"v":7744.1053430501115,"d":"7,744"},null,{"$f":"H27*(1+VLOOKUP('Random Years'!E22,Inflation!$A$7:$B$101,2,FALSE))","v":{"v":113168.68966361292,"d":"113,169"}},{"v":-43471.74157616192,"d":"-43,472"},{"$f":"COUNTIF('Random Yr Returns'!C23:CX23,\"<0\")","v":0},{"$f":"COUNTIF('Random Yr Returns'!$C23:$CX23,\">500000\")","v":97},{"$f":"COUNTIF('Random Yr Returns'!$C23:$CX23,\">1000000\")","v":86},{"$f":"COUNTIF('Random Yr Returns'!$C23:$CX23,\">10000000\")","v":12},{"$f":"'Random Yr Returns'!L88","v":{"v":1532.3614358040938,"d":"1,532"}},{"$f":"'Random Yr Returns'!M88","v":{"v":15781.972755158622,"d":"15,782"}}]
["2044-12-30",90,{"$f":"C28*(1+VLOOKUP('Random Years'!A23,Inflation!$A$7:$B$101,2,FALSE))","v":{"v":73111.71264264474,"d":"73,112"}},{"v":5424,"d":"5,424"},null,{"v":7853.571264264474,"d":"7,854"},null,{"$f":"H28*(1+VLOOKUP('Random Years'!E23,Inflation!$A$7:$B$101,2,FALSE))","v":{"v":114571.98141544173,"d":"114,572"}},{"v":-43889.84003706147,"d":"-43,890"},{"$f":"COUNTIF('Random Yr Returns'!C24:CX24,\"<0\")","v":0},{"$f":"COUNTIF('Random Yr Returns'!$C24:$CX24,\">500000\")","v":95},{"$f":"COUNTIF('Random Yr Returns'!$C24:$CX24,\">1000000\")","v":85},{"$f":"COUNTIF('Random Yr Returns'!$C24:$CX24,\">10000000\")","v":13},{"$f":"'Random Yr Returns'!L89","v":{"v":1593.2875229479655,"d":"1,593"}},{"$f":"'Random Yr Returns'!M89","v":{"v":15143.583590508075,"d":"15,144"}}]
["2045-12-30",91,{"$f":"C29*(1+VLOOKUP('Random Years'!A24,Inflation!$A$7:$B$101,2,FALSE))","v":{"v":78872.91559888514,"d":"78,873"}},{"v":5424,"d":"5,424"},null,{"v":8429.691559888515,"d":"8,430"},{"v":182228.71542983752,"d":"182,229"},{"$f":"H29*(1+VLOOKUP('Random Years'!E24,Inflation!$A$7:$B$101,2,FALSE))","v":{"v":118983.00269993623,"d":"118,983"}},{"v":-225344.49409077712,"d":"-225,344"},{"$f":"COUNTIF('Random Yr Returns'!C25:CX25,\"<0\")","v":3},{"$f":"COUNTIF('Random Yr Returns'!$C25:$CX25,\">500000\")","v":91},{"$f":"COUNTIF('Random Yr Returns'!$C25:$CX25,\">1000000\")","v":81},{"$f":"COUNTIF('Random Yr Returns'!$C25:$CX25,\">10000000\")","v":13},{"$f":"'Random Yr Returns'!L90","v":{"v":1360.425188743904,"d":"1,360"}},{"$f":"'Random Yr Returns'!M90","v":{"v":15479.800582228447,"d":"15,480"}}]
["2046-12-30",92,{"$f":"C30*(1+VLOOKUP('Random Years'!A25,Inflation!$A$7:$B$101,2,FALSE))","v":{"v":70749.00529219997,"d":"70,749"}},{"v":5424,"d":"5,424"},null,{"v":7617.300529219998,"d":"7,617"},{"$f":"G30*(1+VLOOKUP('Random Years'!D25,Inflation!$A$7:$B$100,2,FALSE))","v":{"v":179859.74212924964,"d":"179,860"}},{"$f":"H30*(1+VLOOKUP('Random Years'!E25,Inflation!$A$7:$B$101,2,FALSE))","v":{"v":136414.0125954769,"d":"136,414"}},{"v":-247718.04996174655,"d":"-247,718"},{"$f":"COUNTIF('Random Yr Returns'!C26:CX26,\"<0\")","v":7},{"$f":"COUNTIF('Random Yr Returns'!$C26:$CX26,\">500000\")","v":85},{"$f":"COUNTIF('Random Yr Returns'!$C26:$CX26,\">1000000\")","v":77},{"$f":"COUNTIF('Random Yr Returns'!$C26:$CX26,\">10000000\")","v":17},{"$f":"'Random Yr Returns'!L91","v":{"v":1368.767253588349,"d":"1,369"}},{"$f":"'Random Yr Returns'!M91","v":{"v":19808.0282515081,"d":"19,808"}}]
[{"$f":"A31+366","v":"2047-12-31"},93,{"$f":"C31*(1+VLOOKUP('Random Years'!A26,Inflation!$A$7:$B$101,2,FALSE))","v":{"v":70508.4586742065,"d":"70,508"}},{"v":5424,"d":"5,424"},null,{"v":7593.24586742065,"d":"7,593"},{"$f":"G31*(1+VLOOKUP('Random Years'!D26,Inflation!$A$7:$B$100,2,FALSE))","v":{"v":182161.94682850403,"d":"182,162"}},{"$f":"H31*(1+VLOOKUP('Random Years'!E26,Inflation!$A$7:$B$101,2,FALSE))","v":{"v":134640.6304317357,"d":"134,641"}},{"v":-248463.3644534539,"d":"-248,463"},{"$f":"COUNTIF('Random Yr Returns'!C27:CX27,\"<0\")","v":12},{"$f":"COUNTIF('Random Yr Returns'!$C27:$CX27,\">500000\")","v":82},{"$f":"COUNTIF('Random Yr Returns'!$C27:$CX27,\">1000000\")","v":70},{"$f":"COUNTIF('Random Yr Returns'!$C27:$CX27,\">10000000\")","v":18},{"$f":"'Random Yr Returns'!L92","v":{"v":1288.2925733124216,"d":"1,288"}},{"$f":"'Random Yr Returns'!M92","v":{"v":23760.000087401982,"d":"23,760"}}]
["2048-12-30",94,{"$f":"C32*(1+VLOOKUP('Random Years'!A27,Inflation!$A$7:$B$101,2,FALSE))","v":{"v":71580.18724605444,"d":"71,580"}},{"v":5424,"d":"5,424"},null,{"v":7700.418724605444,"d":"7,700"},{"$f":"G32*(1+VLOOKUP('Random Years'!D27,Inflation!$A$7:$B$100,2,FALSE))","v":{"v":189994.91054212968,"d":"189,995"}},{"$f":"H32*(1+VLOOKUP('Random Years'!E27,Inflation!$A$7:$B$101,2,FALSE))","v":{"v":142503.64324894908,"d":"142,504"}},{"v":-263194.7852696298,"d":"-263,195"},{"$f":"COUNTIF('Random Yr Returns'!C28:CX28,\"<0\")","v":17},{"$f":"COUNTIF('Random Yr Returns'!$C28:$CX28,\">500000\")","v":76},{"$f":"COUNTIF('Random Yr Returns'!$C28:$CX28,\">1000000\")","v":68},{"$f":"COUNTIF('Random Yr Returns'!$C28:$CX28,\">10000000\")","v":18},{"$f":"'Random Yr Returns'!L93","v":{"v":1042.5071296907684,"d":"1,043"}},{"$f":"'Random Yr Returns'!M93","v":{"v":22894.750446552454,"d":"22,895"}}]
["2049-12-30",95,{"$f":"C33*(1+VLOOKUP('Random Years'!A28,Inflation!$A$7:$B$101,2,FALSE))","v":{"v":73326.74381485817,"d":"73,327"}},{"v":5424,"d":"5,424"},null,{"v":7875.074381485818,"d":"7,875"},{"$f":"G33*(1+VLOOKUP('Random Years'!D28,Inflation!$A$7:$B$100,2,FALSE))","v":{"v":197746.70289224858,"d":"197,747"}},{"$f":"H33*(1+VLOOKUP('Random Years'!E28,Inflation!$A$7:$B$101,2,FALSE))","v":{"v":144812.20226958205,"d":"144,812"}},{"v":-271683.23572845827,"d":"-271,683"},{"$f":"COUNTIF('Random Yr Returns'!C29:CX29,\"<0\")","v":20},{"$f":"COUNTIF('Random Yr Returns'!$C29:$CX29,\">500000\")","v":68},{"$f":"COUNTIF('Random Yr Returns'!$C29:$CX29,\">1000000\")","v":65},{"$f":"COUNTIF('Random Yr Returns'!$C29:$CX29,\">10000000\")","v":22},{"$f":"'Random Yr Returns'!L94","v":{"v":726.2382236671111,"d":"726"}},{"$f":"'Random Yr Returns'!M94","v":{"v":29373.900497221202,"d":"29,374"}}]
["2050-12-30",96,{"$f":"C34*(1+VLOOKUP('Random Years'!A29,Inflation!$A$7:$B$101,2,FALSE))","v":{"v":74265.32613568834,"d":"74,265"}},{"v":5424,"d":"5,424"},null,{"v":7968.932613568835,"d":"7,969"},{"$f":"G34*(1+VLOOKUP('Random Years'!D29,Inflation!$A$7:$B$100,2,FALSE))","v":{"v":213329.14308015775,"d":"213,329"}},{"$f":"H34*(1+VLOOKUP('Random Years'!E29,Inflation!$A$7:$B$101,2,FALSE))","v":{"v":152212.1058055577,"d":"152,212"}},{"v":-293820.85536359594,"d":"-293,821"},{"$f":"COUNTIF('Random Yr Returns'!C30:CX30,\"<0\")","v":31},{"$f":"COUNTIF('Random Yr Returns'!$C30:$CX30,\">500000\")","v":67},{"$f":"COUNTIF('Random Yr Returns'!$C30:$CX30,\">1000000\")","v":62},{"$f":"COUNTIF('Random Yr Returns'!$C30:$CX30,\">10000000\")","v":21},{"$f":"'Random Yr Returns'!L95","v":{"v":272.8755426464224,"d":"273"}},{"$f":"'Random Yr Returns'!M95","v":{"v":32563.675786754204,"d":"32,564"}}]
[{"$f":"A35+366","v":"2051-12-31"},97,{"$f":"C35*(1+VLOOKUP('Random Years'!A30,Inflation!$A$7:$B$101,2,FALSE))","v":{"v":78535.58238849044,"d":"78,536"}},{"v":5424,"d":"5,424"},null,{"v":8395.958238849043,"d":"8,396"},{"$f":"G35*(1+VLOOKUP('Random Years'!D30,Inflation!$A$7:$B$100,2,FALSE))","v":{"v":226470.21829389548,"d":"226,470"}},{"$f":"H35*(1+VLOOKUP('Random Years'!E30,Inflation!$A$7:$B$101,2,FALSE))","v":{"v":155454.22365921608,"d":"155,454"}},{"v":-306360.8178034702,"d":"-306,361"},{"$f":"COUNTIF('Random Yr Returns'!C31:CX31,\"<0\")","v":33},{"$f":"COUNTIF('Random Yr Returns'!$C31:$CX31,\">500000\")","v":64},{"$f":"COUNTIF('Random Yr Returns'!$C31:$CX31,\">1000000\")","v":60},{"$f":"COUNTIF('Random Yr Returns'!$C31:$CX31,\">10000000\")","v":22},{"$f":"'Random Yr Returns'!L96","v":{"v":-198.0942864624145,"d":"-198"}},{"$f":"'Random Yr Returns'!M96","v":{"v":42366.62573363069,"d":"42,367"}}]
["2052-12-30",98,{"$f":"C36*(1+VLOOKUP('Random Years'!A31,Inflation!$A$7:$B$101,2,FALSE))","v":{"v":80585.36108883005,"d":"80,585"}},{"v":5424,"d":"5,424"},null,{"v":8600.936108883005,"d":"8,601"},{"$f":"G36*(1+VLOOKUP('Random Years'!D31,Inflation!$A$7:$B$100,2,FALSE))","v":{"v":234917.5574362578,"d":"234,918"}},{"$f":"H36*(1+VLOOKUP('Random Years'!E31,Inflation!$A$7:$B$101,2,FALSE))","v":{"v":163397.934488202,"d":"163,398"}},{"v":-320907.0669445128,"d":"-320,907"},{"$f":"COUNTIF('Random Yr Returns'!C32:CX32,\"<0\")","v":35},{"$f":"COUNTIF('Random Yr Returns'!$C32:$CX32,\">500000\")","v":61},{"$f":"COUNTIF('Random Yr Returns'!$C32:$CX32,\">1000000\")","v":56},{"$f":"COUNTIF('Random Yr Returns'!$C32:$CX32,\">10000000\")","v":21},{"$f":"'Random Yr Returns'!L97","v":{"v":-835.8468504273919,"d":"-836"}},{"$f":"'Random Yr Returns'!M97","v":{"v":48212.71322381164,"d":"48,213"}}]
[]
["Ctrl a to recalculate.  Press Ctrl a when loading before viewing, and after saving before printing. "]

{"sheet":"Print Main","index":4,"n_rows":37,"n_cols":15,"rows_kept":37,"merged":[[0,11,0,13],[45,2,45,3]]}
[{"$f":"Main!A1","v":"Current Invested Assets Excluding Homestead:"},{"$nulls":7},{"$f":"Main!I1","v":{"v":1000000,"d":"1,000,000"}},null,"Trial ID:",{"$f":"NOW()","v":"2023-03-09T07:16:10.820"}]
[null,"% Equities",null,{"$f":"Main!D2","v":{"v":0.7,"d":"70%"}},"Add or Subtract on Equity Return:",{"$nulls":3},{"$f":"Main!I2","v":{"v":0,"d":"0%"}},null,{"$f":"Main!K2","v":"Date of Birth: "},null,{"$f":"Main!M2","v":"1953-02-21"}]
[null,"% T Bills",null,{"$f":"Main!D3","v":{"v":0.05,"d":"5%"}},{"$nulls":6},{"$f":"Main!$K$3","v":"Randomly selected years, 1928-2022."}]
[null,"% T Bonds",null,{"$f":"Main!D4","v":{"v":0.25,"d":"25%"}},"Add or Subtract on Bond Return:",{"$nulls":3},{"v":0.01,"d":"1%"}]
[null,null,"Total",{"$f":"SUM(D2:D4)","v":{"v":1,"d":"100%"}},"Investment assets with homestead",{"$nulls":3},{"$f":"Main!I5","v":{"v":1297118.3,"d":"1,297,118"}}]
["Date","Age","Social  Security","Pension","Income","Inc Tax St&Fed","House Prin&Int","Other Expense ","Add or Withdraw","% Neg (Red)","How Positive?",null,null,"5 %ile (000)","95 %ile (000)"]
[{"$f":"Main!A7","v":"2022-12-31"},{"$f":"Main!B7","v":68},{"$nulls":3},{"$f":"Main!F7","v":{"v":0.1,"d":"10.0%"}},{"$nulls":4},">500k",">1 mil",">10 mil"]
[{"$f":"Main!A8","v":"2023-12-31"},{"$f":"Main!B8","v":69},{"$f":"Main!C8","v":{"v":40394.399999999994,"d":"40,394"}},{"$f":"Main!D8","v":{"v":5424,"d":"5,424"}},{"$f":"Main!E8","v":{"v":20000,"d":"20,000"}},{"$f":"Main!F8","v":{"v":6581.84,"d":"6,582"}},{"$f":"Main!G8","v":{"v":15115.68,"d":"15,116"}},{"$f":"Main!H8","v":{"v":60000,"d":"60,000"}},{"$f":"Main!I8","v":{"v":-15879.120000000003,"d":"-15,879"}},{"$f":"Main!J8","v":0},{"$f":"Main!K8","v":100},{"$f":"Main!L8","v":100},{"$f":"Main!M8","v":0},{"$f":"Main!N8","v":{"v":972.9532770448083,"d":"973"}},{"$f":"Main!O8","v":{"v":1337.4126598504163,"d":"1,337"}}]
[{"$f":"Main!A9","v":"2024-12-30"},{"$f":"Main!B9","v":70},{"$f":"Main!C9","v":{"v":42599.934239999995,"d":"42,600"}},{"$f":"Main!D9","v":{"v":5424,"d":"5,424"}},{"$f":"Main!E9","v":{"v":18000,"d":"18,000"}},{"$f":"Main!F9","v":{"v":6602.393424000001,"d":"6,602"}},{"$f":"Main!G9","v":{"v":15115.68,"d":"15,116"}},{"$f":"Main!H9","v":{"v":59310,"d":"59,310"}},{"$f":"Main!I9","v":{"v":-15004.139184,"d":"-15,004"}},{"$f":"Main!J9","v":0},{"$f":"Main!K9","v":100},{"$f":"Main!L9","v":99},{"$f":"Main!M9","v":0},{"$f":"Main!N9","v":{"v":1036.4332232305228,"d":"1,036"}},{"$f":"Main!O9","v":{"v":1576.3356135073204,"d":"1,576"}}]
[{"$f":"Main!A10","v":"2025-12-30"},{"$f":"Main!B10","v":71},{"$f":"Main!C10","v":{"v":44095.19193182399,"d":"44,095"}},{"$f":"Main!D10","v":{"v":5424,"d":"5,424"}},{"$f":"Main!E10","v":{"v":16200,"d":"16,200"}},{"$f":"Main!F10","v":{"v":6571.9191931824,"d":"6,572"}},{"$f":"Main!G10","v":{"v":15115.68,"d":"15,116"}},{"$f":"Main!H10","v":{"v":64766.520000000004,"d":"64,767"}},{"$f":"Main!I10","v":{"v":-20734.92726135841,"d":"-20,735"}},{"$f":"Main!J10","v":0},{"$f":"Main!K10","v":100},{"$f":"Main!L10","v":99},{"$f":"Main!M10","v":0},{"$f":"Main!N10","v":{"v":1035.8922609726662,"d":"1,036"}},{"$f":"Main!O10","v":{"v":1963.7485961938335,"d":"1,964"}}]
[{"$f":"Main!A11","v":"2026-12-30"},{"$f":"Main!B11","v":72},{"$f":"Main!C11","v":{"v":47569.89305605172,"d":"47,570"}},{"$f":"Main!D11","v":{"v":5424,"d":"5,424"}},{"$f":"Main!E11","v":{"v":14580,"d":"14,580"}},{"$f":"Main!F11","v":{"v":6757.389305605172,"d":"6,757"}},{"$f":"Main!G11","v":{"v":15115.68,"d":"15,116"}},{"$f":"Main!H11","v":{"v":70226.33763600001,"d":"70,226"}},{"$f":"Main!I11","v":{"v":-24525.513885553468,"d":"-24,526"}},{"$f":"Main!J11","v":0},{"$f":"Main!K11","v":100},{"$f":"Main!L11","v":98},{"$f":"Main!M11","v":0},{"$f":"Main!N11","v":{"v":1089.2816603873146,"d":"1,089"}},{"$f":"Main!O11","v":{"v":2239.164795720138,"d":"2,239"}}]
[{"$f":"Main!A12","v":"2027-12-31"},{"$f":"Main!B12","v":73},{"$f":"Main!C12","v":{"v":48159.75972994676,"d":"48,160"}},{"$f":"Main!D12","v":{"v":5424,"d":"5,424"}},{"$f":"Main!E12","v":{"v":13122,"d":"13,122"}},{"$f":"Main!F12","v":{"v":6670.575972994677,"d":"6,671"}},{"$f":"Main!G12","v":{"v":15115.68,"d":"15,116"}},{"$f":"Main!H12","v":{"v":72445.48990529761,"d":"72,445"}},{"$f":"Main!I12","v":{"v":-27525.986148345524,"d":"-27,526"}},{"$f":"Main!J12","v":0},{"$f":"Main!K12","v":100},{"$f":"Main!L12","v":99},{"$f":"Main!M12","v":0},{"$f":"Main!N12","v":{"v":1093.680100711217,"d":"1,094"}},{"$f":"Main!O12","v":{"v":2220.653019949991,"d":"2,221"}}]
[{"$f":"Main!A13","v":"2028-12-30"},{"$f":"Main!B13","v":74},{"$f":"Main!C13","v":{"v":46878.71012113018,"d":"46,879"}},{"$f":"Main!D13","v":{"v":5424,"d":"5,424"}},{"$f":"Main!E13","v":{"v":11809.800000000001,"d":"11,810"}},{"$f":"Main!F13","v":{"v":6411.251012113018,"d":"6,411"}},{"$f":"Main!G13","v":{"v":15115.68,"d":"15,116"}},{"$f":"Main!H13","v":{"v":73235.14574526534,"d":"73,235"}},{"$f":"Main!I13","v":{"v":-30649.56663624818,"d":"-30,650"}},{"$f":"Main!J13","v":0},{"$f":"Main!K13","v":100},{"$f":"Main!L13","v":98},{"$f":"Main!M13","v":0},{"$f":"Main!N13","v":{"v":1243.978554836919,"d":"1,244"}},{"$f":"Main!O13","v":{"v":2936.696183341676,"d":"2,937"}}]
[{"$f":"Main!A14","v":"2029-12-30"},{"$f":"Main!B14","v":75},{"$f":"Main!C14","v":{"v":47647.52096711671,"d":"47,648"}},{"$f":"Main!D14","v":{"v":5424,"d":"5,424"}},{"$f":"Main!E14","v":{"v":10628.820000000002,"d":"10,629"}},{"$f":"Main!F14","v":{"v":6370.034096711672,"d":"6,370"}},{"$f":"Main!G14","v":{"v":15115.68,"d":"15,116"}},{"$f":"Main!H14","v":{"v":75234.46522411109,"d":"75,234"}},{"$f":"Main!I14","v":{"v":-33019.83835370605,"d":"-33,020"}},{"$f":"Main!J14","v":0},{"$f":"Main!K14","v":100},{"$f":"Main!L14","v":98},{"$f":"Main!M14","v":0},{"$f":"Main!N14","v":{"v":1370.9405299672235,"d":"1,371"}},{"$f":"Main!O14","v":{"v":3408.8575759660175,"d":"3,409"}}]
[{"$f":"Main!A15","v":"2030-12-30"},{"$f":"Main!B15","v":76},{"$f":"Main!C15","v":{"v":50582.60825869111,"d":"50,583"}},{"$f":"Main!D15","v":{"v":5424,"d":"5,424"}},{"$f":"Main!E15","v":{"v":9565.938000000002,"d":"9,566"}},{"$f":"Main!F15","v":{"v":6557.254625869112,"d":"6,557"}},{"$f":"Main!G15","v":{"v":10364.68,"d":"10,365"}},{"$f":"Main!H15","v":{"v":76468.31045378651,"d":"76,468"}},{"$f":"Main!I15","v":{"v":-27817.698820964513,"d":"-27,818"}},{"$f":"Main!J15","v":0},{"$f":"Main!K15","v":100},{"$f":"Main!L15","v":99},{"$f":"Main!M15","v":0},{"$f":"Main!N15","v":{"v":1474.6537349450646,"d":"1,475"}},{"$f":"Main!O15","v":{"v":3909.9190847586783,"d":"3,910"}}]
[{"$f":"Main!A16","v":"2031-12-31"},{"$f":"Main!B16","v":77},{"$f":"Main!C16","v":{"v":56257.97690531625,"d":"56,258"}},{"$f":"Main!D16","v":{"v":5424,"d":"5,424"}},{"$f":"Main!E16","v":0},{"$f":"Main!F16","v":{"v":6168.197690531626,"d":"6,168"}},{"$f":"Main!G16","v":0},{"$f":"Main!H16","v":{"v":84382.78058575341,"d":"84,383"}},{"$f":"Main!I16","v":{"v":-28869.001370968785,"d":"-28,869"}},{"$f":"Main!J16","v":0},{"$f":"Main!K16","v":100},{"$f":"Main!L16","v":99},{"$f":"Main!M16","v":0},{"$f":"Main!N16","v":{"v":1608.3864282333875,"d":"1,608"}},{"$f":"Main!O16","v":{"v":4414.95805795862,"d":"4,415"}}]
[{"$f":"Main!A17","v":"2032-12-30"},{"$f":"Main!B17","v":78},{"$f":"Main!C17","v":{"v":57726.31010254501,"d":"57,726"}},{"$f":"Main!D17","v":{"v":5424,"d":"5,424"}},{"$f":"Main!E17","v":0},{"$f":"Main!F17","v":{"v":6315.031010254501,"d":"6,315"}},{"$f":"Main!G17","v":0},{"$f":"Main!H17","v":{"v":87049.27645226322,"d":"87,049"}},{"$f":"Main!I17","v":{"v":-30213.99735997271,"d":"-30,214"}},{"$f":"Main!J17","v":0},{"$f":"Main!K17","v":100},{"$f":"Main!L17","v":99},{"$f":"Main!M17","v":0},{"$f":"Main!N17","v":{"v":1586.5284519894935,"d":"1,587"}},{"$f":"Main!O17","v":{"v":5593.470794197031,"d":"5,593"}}]
[{"$f":"Main!A18","v":"2033-12-30"},{"$f":"Main!B18","v":79},{"$f":"Main!C18","v":{"v":60878.16663414396,"d":"60,878"}},{"$f":"Main!D18","v":{"v":5424,"d":"5,424"}},{"$f":"Main!E18","v":0},{"$f":"Main!F18","v":{"v":6630.216663414398,"d":"6,630"}},{"$f":"Main!G18","v":0},{"$f":"Main!H18","v":{"v":89495.36112057182,"d":"89,495"}},{"$f":"Main!I18","v":{"v":-29823.411149842243,"d":"-29,823"}},{"$f":"Main!J18","v":0},{"$f":"Main!K18","v":100},{"$f":"Main!L18","v":99},{"$f":"Main!M18","v":0},{"$f":"Main!N18","v":{"v":1753.5776580539016,"d":"1,754"}},{"$f":"Main!O18","v":{"v":6091.1769705549805,"d":"6,091"}}]
[{"$f":"Main!A19","v":"2034-12-30"},{"$f":"Main!B19","v":80},{"$f":"Main!C19","v":{"v":62302.71573338294,"d":"62,303"}},{"$f":"Main!D19","v":{"v":5424,"d":"5,424"}},{"$f":"Main!E19","v":0},{"$f":"Main!F19","v":{"v":6772.671573338294,"d":"6,773"}},{"$f":"Main!G19","v":0},{"$f":"Main!H19","v":{"v":93298.91396819612,"d":"93,299"}},{"$f":"Main!I19","v":{"v":-32344.86980815148,"d":"-32,345"}},{"$f":"Main!J19","v":0},{"$f":"Main!K19","v":100},{"$f":"Main!L19","v":100},{"$f":"Main!M19","v":0},{"$f":"Main!N19","v":{"v":1274.1070130315086,"d":"1,274"}},{"$f":"Main!O19","v":{"v":7693.266610531019,"d":"7,693"}}]
[{"$f":"Main!A20","v":"2035-12-31"},{"$f":"Main!B20","v":81},{"$f":"Main!C20","v":{"v":69137.32364933504,"d":"69,137"}},{"$f":"Main!D20","v":{"v":5424,"d":"5,424"}},{"$f":"Main!E20","v":0},{"$f":"Main!F20","v":{"v":7456.1323649335045,"d":"7,456"}},{"$f":"Main!G20","v":{"v":112000,"d":"112,000"}},{"$f":"Main!H20","v":{"v":99046.12706863701,"d":"99,046"}},{"$f":"Main!I20","v":{"v":-143940.93578423548,"d":"-143,941"}},{"$f":"Main!J20","v":0},{"$f":"Main!K20","v":100},{"$f":"Main!L20","v":97},{"$f":"Main!M20","v":0},{"$f":"Main!N20","v":{"v":1244.6797682096924,"d":"1,245"}},{"$f":"Main!O20","v":{"v":8068.413844637432,"d":"8,068"}}]
[{"$f":"Main!A21","v":"2036-12-30"},{"$f":"Main!B21","v":82},{"$f":"Main!C21","v":{"v":70208.95216589974,"d":"70,209"}},{"$f":"Main!D21","v":{"v":5424,"d":"5,424"}},{"$f":"Main!E21","v":0},{"$f":"Main!F21","v":{"v":7563.295216589974,"d":"7,563"}},{"$f":"Main!G21","v":{"v":113198.4,"d":"113,198"}},{"$f":"Main!H21","v":{"v":94004.6792008434,"d":"94,005"}},{"$f":"Main!I21","v":{"v":-139133.42225153363,"d":"-139,133"}},{"$f":"Main!J21","v":0},{"$f":"Main!K21","v":100},{"$f":"Main!L21","v":91},{"$f":"Main!M21","v":0},{"$f":"Main!N21","v":{"v":1246.1797546677442,"d":"1,246"}},{"$f":"Main!O21","v":{"v":10051.112499589224,"d":"10,051"}}]
[{"$f":"Main!A22","v":"2037-12-30"},{"$f":"Main!B22","v":83},{"$f":"Main!C22","v":{"v":62977.430092812065,"d":"62,977"}},{"$f":"Main!D22","v":{"v":5424,"d":"5,424"}},{"$f":"Main!E22","v":0},{"$f":"Main!F22","v":{"v":6840.143009281207,"d":"6,840"}},{"$f":"Main!G22","v":{"v":118065.93119999999,"d":"118,066"}},{"$f":"Main!H22","v":{"v":89219.84102952048,"d":"89,220"}},{"$f":"Main!I22","v":{"v":-145724.48514598963,"d":"-145,724"}},{"$f":"Main!J22","v":0},{"$f":"Main!K22","v":100},{"$f":"Main!L22","v":86},{"$f":"Main!M22","v":1},{"$f":"Main!N22","v":{"v":1134.3527336794934,"d":"1,134"}},{"$f":"Main!O22","v":{"v":8925.300710662726,"d":"8,925"}}]
[{"$f":"Main!A23","v":"2038-12-30"},{"$f":"Main!B23","v":84},{"$f":"Main!C23","v":{"v":63663.88408082371,"d":"63,664"}},{"$f":"Main!D23","v":{"v":5424,"d":"5,424"}},{"$f":"Main!E23","v":0},{"$f":"Main!F23","v":{"v":6908.7884080823715,"d":"6,909"}},{"$f":"Main!G23","v":0},{"$f":"Main!H23","v":{"v":93056.29419378986,"d":"93,056"}},{"$f":"Main!I23","v":{"v":-30877.198521048515,"d":"-30,877"}},{"$f":"Main!J23","v":0},{"$f":"Main!K23","v":100},{"$f":"Main!L23","v":88},{"$f":"Main!M23","v":2},{"$f":"Main!N23","v":{"v":1016.8574534175548,"d":"1,017"}},{"$f":"Main!O23","v":{"v":9844.445612657077,"d":"9,844"}}]
[{"$f":"Main!A24","v":"2039-12-31"},{"$f":"Main!B24","v":85},{"$f":"Main!C24","v":{"v":65580.1669916565,"d":"65,580"}},{"$f":"Main!D24","v":{"v":5424,"d":"5,424"}},{"$f":"Main!E24","v":0},{"$f":"Main!F24","v":{"v":7100.41669916565,"d":"7,100"}},{"$f":"Main!G24","v":0},{"$f":"Main!H24","v":{"v":96052.70686682989,"d":"96,053"}},{"$f":"Main!I24","v":{"v":-32148.95657433904,"d":"-32,149"}},{"$f":"Main!J24","v":0},{"$f":"Main!K24","v":99},{"$f":"Main!L24","v":85},{"$f":"Main!M24","v":5},{"$f":"Main!N24","v":{"v":1052.6713457794335,"d":"1,053"}},{"$f":"Main!O24","v":{"v":12589.130394207947,"d":"12,589"}}]
[{"$f":"Main!A25","v":"2040-12-30"},{"$f":"Main!B25","v":86},{"$f":"Main!C25","v":{"v":67068.8367823671,"d":"67,069"}},{"$f":"Main!D25","v":{"v":5424,"d":"5,424"}},{"$f":"Main!E25","v":0},{"$f":"Main!F25","v":{"v":7249.28367823671,"d":"7,249"}},{"$f":"Main!G25","v":0},{"$f":"Main!H25","v":{"v":103487.18637832251,"d":"103,487"}},{"$f":"Main!I25","v":{"v":-38243.63327419212,"d":"-38,244"}},{"$f":"Main!J25","v":0},{"$f":"Main!K25","v":98},{"$f":"Main!L25","v":88},{"$f":"Main!M25","v":7},{"$f":"Main!N25","v":{"v":1112.6359714569037,"d":"1,113"}},{"$f":"Main!O25","v":{"v":9548.479980812028,"d":"9,548"}}]
[{"$f":"Main!A26","v":"2041-12-30"},{"$f":"Main!B26","v":87},{"$f":"Main!C26","v":{"v":69241.86709411579,"d":"69,242"}},{"$f":"Main!D26","v":{"v":5424,"d":"5,424"}},{"$f":"Main!E26","v":0},{"$f":"Main!F26","v":{"v":7466.586709411579,"d":"7,467"}},{"$f":"Main!G26","v":0},{"$f":"Main!H26","v":{"v":107119.58662020162,"d":"107,120"}},{"$f":"Main!I26","v":{"v":-39920.30623549741,"d":"-39,920"}},{"$f":"Main!J26","v":0},{"$f":"Main!K26","v":97},{"$f":"Main!L26","v":85},{"$f":"Main!M26","v":9},{"$f":"Main!N26","v":{"v":1267.1030308649797,"d":"1,267"}},{"$f":"Main!O26","v":{"v":10573.031977560015,"d":"10,573"}}]
[{"$f":"Main!A27","v":"2042-12-30"},{"$f":"Main!B27","v":88},{"$f":"Main!C27","v":{"v":69047.98986625226,"d":"69,048"}},{"$f":"Main!D27","v":{"v":5424,"d":"5,424"}},{"$f":"Main!E27","v":0},{"$f":"Main!F27","v":{"v":7447.198986625226,"d":"7,447"}},{"$f":"Main!G27","v":0},{"$f":"Main!H27","v":{"v":109861.84803767879,"d":"109,862"}},{"$f":"Main!I27","v":{"v":-42837.05715805176,"d":"-42,837"}},{"$f":"Main!J27","v":0},{"$f":"Main!K27","v":97},{"$f":"Main!L27","v":87},{"$f":"Main!M27","v":10},{"$f":"Main!N27","v":{"v":1428.022932992303,"d":"1,428"}},{"$f":"Main!O27","v":{"v":12379.636699403367,"d":"12,380"}}]
[{"$f":"Main!A28","v":"2043-12-31"},{"$f":"Main!B28","v":89},{"$f":"Main!C28","v":{"v":72017.05343050111,"d":"72,017"}},{"$f":"Main!D28","v":{"v":5424,"d":"5,424"}},{"$f":"Main!E28","v":0},{"$f":"Main!F28","v":{"v":7744.1053430501115,"d":"7,744"}},{"$f":"Main!G28","v":0},{"$f":"Main!H28","v":{"v":113168.68966361292,"d":"113,169"}},{"$f":"Main!I28","v":{"v":-43471.74157616192,"d":"-43,472"}},{"$f":"Main!J28","v":0},{"$f":"Main!K28","v":97},{"$f":"Main!L28","v":86},{"$f":"Main!M28","v":12},{"$f":"Main!N28","v":{"v":1532.3614358040938,"d":"1,532"}},{"$f":"Main!O28","v":{"v":15781.972755158622,"d":"15,782"}}]
[{"$f":"Main!A29","v":"2044-12-30"},{"$f":"Main!B29","v":90},{"$f":"Main!C29","v":{"v":73111.71264264474,"d":"73,112"}},{"$f":"Main!D29","v":{"v":5424,"d":"5,424"}},{"$f":"Main!E29","v":0},{"$f":"Main!F29","v":{"v":7853.571264264474,"d":"7,854"}},{"$f":"Main!G29","v":0},{"$f":"Main!H29","v":{"v":114571.98141544173,"d":"114,572"}},{"$f":"Main!I29","v":{"v":-43889.84003706147,"d":"-43,890"}},{"$f":"Main!J29","v":0},{"$f":"Main!K29","v":95},{"$f":"Main!L29","v":85},{"$f":"Main!M29","v":13},{"$f":"Main!N29","v":{"v":1593.2875229479655,"d":"1,593"}},{"$f":"Main!O29","v":{"v":15143.583590508075,"d":"15,144"}}]
[{"$f":"Main!A30","v":"2045-12-30"},{"$f":"Main!B30","v":91},{"$f":"Main!C30","v":{"v":78872.91559888514,"d":"78,873"}},{"$f":"Main!D30","v":{"v":5424,"d":"5,424"}},{"$f":"Main!E30","v":0},{"$f":"Main!F30","v":{"v":8429.691559888515,"d":"8,430"}},{"$f":"Main!G30","v":{"v":182228.71542983752,"d":"182,229"}},{"$f":"Main!H30","v":{"v":118983.00269993623,"d":"118,983"}},{"$f":"Main!I30","v":{"v":-225344.49409077712,"d":"-225,344"}},{"$f":"Main!J30","v":3},{"$f":"Main!K30","v":91},{"$f":"Main!L30","v":81},{"$f":"Main!M30","v":13},{"$f":"Main!N30","v":{"v":1360.425188743904,"d":"1,360"}},{"$f":"Main!O30","v":{"v":15479.800582228447,"d":"15,480"}}]
[{"$f":"Main!A31","v":"2046-12-30"},{"$f":"Main!B31","v":92},{"$f":"Main!C31","v":{"v":70749.00529219997,"d":"70,749"}},{"$f":"Main!D31","v":{"v":5424,"d":"5,424"}},{"$f":"Main!E31","v":0},{"$f":"Main!F31","v":{"v":7617.300529219998,"d":"7,617"}},{"$f":"Main!G31","v":{"v":179859.74212924964,"d":"179,860"}},{"$f":"Main!H31","v":{"v":136414.0125954769,"d":"136,414"}},{"$f":"Main!I31","v":{"v":-247718.04996174655,"d":"-247,718"}},{"$f":"Main!J31","v":7},{"$f":"Main!K31","v":85},{"$f":"Main!L31","v":77},{"$f":"Main!M31","v":17},{"$f":"Main!N31","v":{"v":1368.767253588349,"d":"1,369"}},{"$f":"Main!O31","v":{"v":19808.0282515081,"d":"19,808"}}]
[{"$f":"Main!A32","v":"2047-12-31"},{"$f":"Main!B32","v":93},{"$f":"Main!C32","v":{"v":70508.4586742065,"d":"70,508"}},{"$f":"Main!D32","v":{"v":5424,"d":"5,424"}},{"$f":"Main!E32","v":0},{"$f":"Main!F32","v":{"v":7593.24586742065,"d":"7,593"}},{"$f":"Main!G32","v":{"v":182161.94682850403,"d":"182,162"}},{"$f":"Main!H32","v":{"v":134640.6304317357,"d":"134,641"}},{"$f":"Main!I32","v":{"v":-248463.3644534539,"d":"-248,463"}},{"$f":"Main!J32","v":12},{"$f":"Main!K32","v":82},{"$f":"Main!L32","v":70},{"$f":"Main!M32","v":18},{"$f":"Main!N32","v":{"v":1288.2925733124216,"d":"1,288"}},{"$f":"Main!O32","v":{"v":23760.000087401982,"d":"23,760"}}]
[{"$f":"Main!A33","v":"2048-12-30"},{"$f":"Main!B33","v":94},{"$f":"Main!C33","v":{"v":71580.18724605444,"d":"71,580"}},{"$f":"Main!D33","v":{"v":5424,"d":"5,424"}},{"$f":"Main!E33","v":0},{"$f":"Main!F33","v":{"v":7700.418724605444,"d":"7,700"}},{"$f":"Main!G33","v":{"v":189994.91054212968,"d":"189,995"}},{"$f":"Main!H33","v":{"v":142503.64324894908,"d":"142,504"}},{"$f":"Main!I33","v":{"v":-263194.7852696298,"d":"-263,195"}},{"$f":"Main!J33","v":17},{"$f":"Main!K33","v":76},{"$f":"Main!L33","v":68},{"$f":"Main!M33","v":18},{"$f":"Main!N33","v":{"v":1042.5071296907684,"d":"1,043"}},{"$f":"Main!O33","v":{"v":22894.750446552454,"d":"22,895"}}]
[{"$f":"Main!A34","v":"2049-12-30"},{"$f":"Main!B34","v":95},{"$f":"Main!C34","v":{"v":73326.74381485817,"d":"73,327"}},{"$f":"Main!D34","v":{"v":5424,"d":"5,424"}},{"$f":"Main!E34","v":0},{"$f":"Main!F34","v":{"v":7875.074381485818,"d":"7,875"}},{"$f":"Main!G34","v":{"v":197746.70289224858,"d":"197,747"}},{"$f":"Main!H34","v":{"v":144812.20226958205,"d":"144,812"}},{"$f":"Main!I34","v":{"v":-271683.23572845827,"d":"-271,683"}},{"$f":"Main!J34","v":20},{"$f":"Main!K34","v":68},{"$f":"Main!L34","v":65},{"$f":"Main!M34","v":22},{"$f":"Main!N34","v":{"v":726.2382236671111,"d":"726"}},{"$f":"Main!O34","v":{"v":29373.900497221202,"d":"29,374"}}]
[{"$f":"Main!A35","v":"2050-12-30"},{"$f":"Main!B35","v":96},{"$f":"Main!C35","v":{"v":74265.32613568834,"d":"74,265"}},{"$f":"Main!D35","v":{"v":5424,"d":"5,424"}},{"$f":"Main!E35","v":0},{"$f":"Main!F35","v":{"v":7968.932613568835,"d":"7,969"}},{"$f":"Main!G35","v":{"v":213329.14308015775,"d":"213,329"}},{"$f":"Main!H35","v":{"v":152212.1058055577,"d":"152,212"}},{"$f":"Main!I35","v":{"v":-293820.85536359594,"d":"-293,821"}},{"$f":"Main!J35","v":31},{"$f":"Main!K35","v":67},{"$f":"Main!L35","v":62},{"$f":"Main!M35","v":21},{"$f":"Main!N35","v":{"v":272.8755426464224,"d":"273"}},{"$f":"Main!O35","v":{"v":32563.675786754204,"d":"32,564"}}]
[{"$f":"Main!A36","v":"2051-12-31"},{"$f":"Main!B36","v":97},{"$f":"Main!C36","v":{"v":78535.58238849044,"d":"78,536"}},{"$f":"Main!D36","v":{"v":5424,"d":"5,424"}},{"$f":"Main!E36","v":0},{"$f":"Main!F36","v":{"v":8395.958238849043,"d":"8,396"}},{"$f":"Main!G36","v":{"v":226470.21829389548,"d":"226,470"}},{"$f":"Main!H36","v":{"v":155454.22365921608,"d":"155,454"}},{"$f":"Main!I36","v":{"v":-306360.8178034702,"d":"-306,361"}},{"$f":"Main!J36","v":33},{"$f":"Main!K36","v":64},{"$f":"Main!L36","v":60},{"$f":"Main!M36","v":22},{"$f":"Main!N36","v":{"v":-198.0942864624145,"d":"-198"}},{"$f":"Main!O36","v":{"v":42366.62573363069,"d":"42,367"}}]
[{"$f":"Main!A37","v":"2052-12-30"},{"$f":"Main!B37","v":98},{"$f":"Main!C37","v":{"v":80585.36108883005,"d":"80,585"}},{"$f":"Main!D37","v":{"v":5424,"d":"5,424"}},{"$f":"Main!E37","v":0},{"$f":"Main!F37","v":{"v":8600.936108883005,"d":"8,601"}},{"$f":"Main!G37","v":{"v":234917.5574362578,"d":"234,918"}},{"$f":"Main!H37","v":{"v":163397.934488202,"d":"163,398"}},{"$f":"Main!I37","v":{"v":-320907.0669445128,"d":"-320,907"}},{"$f":"Main!J37","v":35},{"$f":"Main!K37","v":61},{"$f":"Main!L37","v":56},{"$f":"Main!M37","v":21},{"$f":"Main!N37","v":{"v":-835.8468504273919,"d":"-836"}},{"$f":"Main!O37","v":{"v":48212.71322381164,"d":"48,213"}}]

{"sheet":"Fixed Rate Proj","index":5,"n_rows":44,"n_cols":25,"rows_kept":44}
["Date","Age","Social  Security COLA (2013)","Pension","Income","Inc Tax St&Fed","Expense -Excl IncTax, Mort Prin Interest ","Real Estate Prin&Int","Add or Withdraw","Equity Returns Projected",{"$nulls":6},"House Apprec:",{"v":0.05,"d":"5%"},"Equity Plus House"]
[null,null,{"v":0.017,"d":"1.70%"},{"$nulls":3},"Infla",null,null,{"v":-0.05,"d":"-5%"},{"v":0.03,"d":"3%"},{"v":0.05,"d":"5%"},{"v":0.06,"d":"6%"},{"$f":"'Hist Returns'!B120","v":{"v":0,"d":"0.00%"}},{"v":0.12,"d":"12%"},{"v":0.16,"d":"16%"},"House  Value","Equity",{"$f":"J2","v":{"v":-0.05,"d":"-5%"}},{"$f":"K2","v":{"v":0.03,"d":"3%"}},{"v":0.05,"d":"5%"},{"v":0.06,"d":"6%"},{"v":0,"d":"0.0%"},{"v":0.12,"d":"12%"},{"v":0.16,"d":"16%"}]
[{"$f":"Main!A7","v":"2022-12-31"},{"$f":"Main!B7","v":68},{"$nulls":3},{"$f":"Main!F7","v":{"v":0.1,"d":"10%"}},{"v":0.03,"d":"3%"},null,null,{"$f":"Main!I1","v":{"v":1000000,"d":"1,000,000"}},{"$nulls":6},{"$f":"'Real Estate'!D1","v":{"v":400000,"d":"400,000"}},{"$f":"Q3-'Real Estate'!E5","v":{"v":297118.3,"d":"297,118"}}]
[{"$f":"Main!A8","v":"2023-12-31"},{"$f":"Main!B8","v":69},{"v":5370,"d":"5,370"},{"$f":"Main!D8","v":{"v":5424,"d":"5,424"}},{"$f":"Main!E8","v":{"v":20000,"d":"20,000"}},{"$f":"Main!F8","v":{"v":6581.84,"d":"6,582"}},{"$f":"Main!H8","v":{"v":60000,"d":"60,000"}},{"$f":"'Real Estate'!C6+'Real Estate'!D6","v":{"v":15115.68,"d":"15,116"}},{"$f":"C4+D4+E4-G4-F4-H4","v":{"v":-50903.52,"d":"-50,904"}},{"$f":"($A4-$A3)/365.25*($J3+I4)*(1+J$2)","v":{"v":901024.5159206023,"d":"901,025"}},{"$f":"($A4-$A3)/365.25*($J3+$I4)*(1+K$2)","v":{"v":976900.2646297057,"d":"976,900"}},{"v":995869.2018069816,"d":"995,869"},{"v":1005353.6703956195,"d":"1,005,354"},{"v":948446.8588637919,"d":"948,447"},{"v":1062260.481927447,"d":"1,062,260"},{"v":1100198.3562819986,"d":"1,100,198"},{"$f":"Q3*(1+$R$1)","v":{"v":420000,"d":"420,000"}},{"$f":"Q4-'Real Estate'!E6","v":{"v":329276.131125,"d":"329,276"}},{"$f":"J4+$R4","v":{"v":1230300.6470456023,"d":"1,230,301"}},{"$f":"K4+$R4","v":{"v":1306176.3957547056,"d":"1,306,176"}},{"$f":"L4+$R4","v":{"v":1325145.3329319817,"d":"1,325,145"}},{"$f":"M4+$R4","v":{"v":1334629.8015206195,"d":"1,334,630"}},{"$f":"N4+$R4","v":{"v":1277722.989988792,"d":"1,277,723"}},{"$f":"O4+$R4","v":{"v":1391536.613052447,"d":"1,391,537"}},{"$f":"P4+$R4","v":{"v":1429474.4874069986,"d":"1,429,474"}}]
[{"$f":"Main!A9","v":"2024-12-30"},{"$f":"Main!B9","v":70},{"$f":"(1+$C$2)*C4","v":{"v":5461.289999999999,"d":"5,461"}},{"$f":"Main!D9","v":{"v":5424,"d":"5,424"}},{"$f":"Main!E9","v":{"v":18000,"d":"18,000"}},{"$f":"Main!F9","v":{"v":6602.393424000001,"d":"6,602"}},{"$f":"(1+$G$3)*G4","v":{"v":61800,"d":"61,800"}},{"$f":"'Real Estate'!C7+'Real Estate'!D7","v":{"v":15115.68,"d":"15,116"}},{"v":-54632.783424,"d":"-54,633"},{"$f":"($A5-$A4)/365.25*(J4+$I5)*(1+J$2)","v":{"v":803521.7884824006,"d":"803,522"}},{"$f":"($A5-$A4)/365.25*(K4+$I5)*(1+K$2)","v":{"v":949285.3102239153,"d":"949,285"}},{"$f":"($A5-$A4)/365.25*(L4+$I5)*(1+L$2)","v":{"v":987621.786024032,"d":"987,622"}},{"$f":"($A5-$A4)/365.25*(M4+$I5)*(1+M$2)","v":{"v":1007074.363228801,"d":"1,007,074"}},{"$f":"($A5-$A4)/365.25*(N4+$I5)*(1+N$2)","v":{"v":893202.2930472938,"d":"893,202"}},{"$f":"($A5-$A4)/365.25*(O4+$I5)*(1+O$2)","v":{"v":1127770.5767233653,"d":"1,127,771"}},{"$f":"($A5-$A4)/365.25*(P4+$I5)*(1+P$2)","v":{"v":1212025.9097825505,"d":"1,212,026"}},{"v":441000,"d":"441,000"},{"$f":"Q5-'Real Estate'!E7","v":{"v":362783.4998948438,"d":"362,783"}},{"v":1166305.2883772445,"d":"1,166,305"},{"v":1312068.810118759,"d":"1,312,069"},{"v":1350405.2859188758,"d":"1,350,405"},{"v":1369857.8631236448,"d":"1,369,858"},{"v":1255985.7929421375,"d":"1,255,986"},{"v":1490554.076618209,"d":"1,490,554"},{"v":1574809.4096773942,"d":"1,574,809"}]
[{"$f":"Main!A10","v":"2025-12-30"},{"$f":"Main!B10","v":71},{"v":27254,"d":"27,254"},{"$f":"Main!D10","v":{"v":5424,"d":"5,424"}},{"$f":"Main!E10","v":{"v":16200,"d":"16,200"}},{"$f":"Main!F10","v":{"v":6571.9191931824,"d":"6,572"}},{"$f":"(1+$G$3)*G5","v":{"v":63654,"d":"63,654"}},{"$f":"'Real Estate'!C8+'Real Estate'!D8","v":{"v":15115.68,"d":"15,116"}},{"v":-36463.599193182396,"d":"-36,464"},{"v":728206.5082437684,"d":"728,207"},{"v":939562.8261793402,"d":"939,563"},{"v":998032.5122598854,"d":"998,033"},{"v":1028143.2022050127,"d":"1,028,143"},{"v":856152.2881772777,"d":"856,152"},{"v":1221427.2208469235,"d":"1,221,427"},{"v":1362718.9111664298,"d":"1,362,719"},{"v":463050,"d":"463,050"},{"$f":"Q6-'Real Estate'!E8","v":{"v":397700.45551682054,"d":"397,700"}},{"v":1125906.9637605888,"d":"1,125,907"},{"v":1337263.2816961608,"d":"1,337,263"},{"v":1395732.967776706,"d":"1,395,733"},{"v":1425843.6577218333,"d":"1,425,844"},{"v":1253852.7436940982,"d":"1,253,853"},{"v":1619127.676363744,"d":"1,619,128"},{"v":1760419.3666832503,"d":"1,760,419"}]
[{"$f":"Main!A11","v":"2026-12-30"},{"$f":"Main!B11","v":72},{"v":27717.317999999996,"d":"27,717"},{"$f":"Main!D11","v":{"v":5424,"d":"5,424"}},{"$f":"Main!E11","v":{"v":14580,"d":"14,580"}},{"$f":"Main!F11","v":{"v":6757.389305605172,"d":"6,757"}},{"v":65563.62,"d":"65,564"},{"$f":"'Real Estate'!C9+'Real Estate'!D9","v":{"v":15115.68,"d":"15,116"}},{"v":-39715.371305605164,"d":"-39,715"},{"v":653618.8959159701,"d":"653,619"},{"v":926208.4891438212,"d":"926,208"},{"v":1005544.2690505899,"d":"1,005,544"},{"v":1047016.3662559364,"d":"1,047,016"},{"v":815878.0962577973,"d":"815,878"},{"v":1322611.3732853963,"d":"1,322,611"},{"v":1533633.6722164901,"d":"1,533,634"},{"v":486202.5,"d":"486,203"},{"$f":"Q7-'Real Estate'!E9","v":{"v":434089.8361129291,"d":"434,090"}},{"v":1087708.7320288992,"d":"1,087,709"},{"v":1360298.3252567502,"d":"1,360,298"},{"v":1439634.105163519,"d":"1,439,634"},{"v":1481106.2023688655,"d":"1,481,106"},{"v":1249967.9323707265,"d":"1,249,968"},{"v":1756701.2093983253,"d":"1,756,701"},{"v":1967723.5083294192,"d":"1,967,724"}]
[{"$f":"Main!A12","v":"2027-12-31"},{"$f":"Main!B12","v":73},{"v":28188.512405999994,"d":"28,189"},{"$f":"Main!D12","v":{"v":5424,"d":"5,424"}},{"$f":"Main!E12","v":{"v":13122,"d":"13,122"}},{"$f":"Main!F12","v":{"v":6670.575972994677,"d":"6,671"}},{"v":67530.52859999999,"d":"67,531"},{"$f":"'Real Estate'!C10+'Real Estate'!D10","v":{"v":15115.68,"d":"15,116"}},{"v":-42582.27216699468,"d":"-42,582"},{"v":581676.7531212012,"d":"581,677"},{"v":912003.8638628996,"d":"912,004"},{"v":1013186.2981584275,"d":"1,013,186"},{"v":1066886.3823210017,"d":"1,066,886"},{"v":774883.7005263075,"d":"774,884"},{"v":1436576.3973455313,"d":"1,436,576"},{"v":1733171.2043942881,"d":"1,733,171"},{"v":510512.625,"d":"510,513"},{"$f":"Q8-'Real Estate'!E10","v":{"v":472017.4020261758,"d":"472,017"}},{"v":1053694.155147377,"d":"1,053,694"},{"v":1384021.2658890754,"d":"1,384,021"},{"v":1485203.7001846032,"d":"1,485,204"},{"v":1538903.7843471775,"d":"1,538,904"},{"v":1246901.1025524833,"d":"1,246,901"},{"v":1908593.799371707,"d":"1,908,594"},{"v":2205188.606420464,"d":"2,205,189"}]
[{"$f":"Main!A13","v":"2028-12-30"},{"$f":"Main!B13","v":74},{"v":28667.717116901993,"d":"28,668"},{"$f":"Main!D13","v":{"v":5424,"d":"5,424"}},{"$f":"Main!E13","v":{"v":11809.800000000001,"d":"11,810"}},{"$f":"Main!F13","v":{"v":6411.251012113018,"d":"6,411"}},{"v":69556.444458,"d":"69,556"},{"$f":"'Real Estate'!C11+'Real Estate'!D11","v":{"v":15115.68,"d":"15,116"}},{"v":-45181.85835321102,"d":"-45,182"},{"v":509321.2998242315,"d":"509,321"},{"v":892215.5591276315,"d":"892,216"},{"v":1015708.9707196419,"d":"1,015,709"},{"v":1082265.5176540404,"d":"1,082,266"},{"v":729202.3884823552,"d":"729,202"},{"v":1557295.2430939372,"d":"1,557,295"},{"v":1956727.4171493277,"d":"1,956,727"},{"v":536038.25625,"d":"536,038"},{"$f":"Q9-'Real Estate'!E11","v":{"v":511551.97561567836,"d":"511,552"}},{"v":1020873.2754399099,"d":"1,020,873"},{"v":1403767.53474331,"d":"1,403,768"},{"v":1527260.9463353204,"d":"1,527,261"},{"v":1593817.4932697187,"d":"1,593,817"},{"v":1240754.3640980334,"d":"1,240,754"},{"v":2068847.2187096155,"d":"2,068,847"},{"v":2468279.392765006,"d":"2,468,279"}]
[{"$f":"Main!A14","v":"2029-12-30"},{"$f":"Main!B14","v":75},{"v":29155.068307889323,"d":"29,155"},{"$f":"Main!D14","v":{"v":5424,"d":"5,424"}},{"$f":"Main!E14","v":{"v":10628.820000000002,"d":"10,629"}},{"$f":"Main!F14","v":{"v":6370.034096711672,"d":"6,370"}},{"v":71643.13779174,"d":"71,643"},{"$f":"'Real Estate'!C12+'Real Estate'!D12","v":{"v":15115.68,"d":"15,116"}},{"v":-47920.96358056235,"d":"-47,921"},{"v":438030.29867896583,"d":"438,030"},{"v":869028.2086130613,"d":"869,028"},{"v":1015481.8719672889,"d":"1,015,482"},{"v":1095654.7788392298,"d":"1,095,655"},{"v":680815.1131804363,"d":"680,815"},{"v":1689342.109418392,"d":"1,689,342"},{"v":2212699.9382368657,"d":"2,212,700"},{"v":562840.1690625,"d":"562,840"},{"$f":"Q10-'Real Estate'!E12","v":{"v":552765.5878599416,"d":"552,766"}},{"v":990795.8865389074,"d":"990,796"},{"v":1421793.796473003,"d":"1,421,794"},{"v":1568247.4598272305,"d":"1,568,247"},{"v":1648420.3666991715,"d":"1,648,420"},{"v":1233580.7010403778,"d":"1,233,581"},{"v":2242107.697278334,"d":"2,242,108"},{"v":2765465.5260968073,"d":"2,765,466"}]
[{"$f":"Main!A15","v":"2030-12-30"},{"$f":"Main!B15","v":76},{"$f":"(1+$C$2)*C10","v":{"v":29650.70446912344,"d":"29,651"}},{"$f":"Main!D15","v":{"v":5424,"d":"5,424"}},{"$f":"Main!E15","v":{"v":9565.938000000002,"d":"9,566"}},{"$f":"Main!F15","v":{"v":6557.254625869112,"d":"6,557"}},{"v":73792.4319254922,"d":"73,792"},{"$f":"'Real Estate'!C13+'Real Estate'!D13","v":{"v":10364.68,"d":"10,365"}},{"v":-46073.72408223787,"d":"-46,074"},{"v":372103.8801955247,"d":"372,104"},{"v":847062.9389715622,"d":"847,063"},{"v":1017181.8553783594,"d":"1,017,182"},{"v":1111794.4150184265,"d":"1,111,794"},{"v":634306.9322952564,"d":"634,307"},{"v":1839200.8649566595,"d":"1,839,201"},{"v":2511566.1576264733,"d":"2,511,566"},{"v":590982.177515625,"d":"590,982"},{"$f":"Q11-'Real Estate'!E13","v":{"v":590982.6321034931,"d":"590,983"}},{"v":963086.5122990177,"d":"963,087"},{"v":1438045.5710750553,"d":"1,438,046"},{"v":1608164.4874818525,"d":"1,608,164"},{"v":1702777.0471219197,"d":"1,702,777"},{"v":1225289.5643987495,"d":"1,225,290"},{"v":2430183.4970601527,"d":"2,430,183"},{"v":3102548.7897299663,"d":"3,102,549"}]
[{"$f":"Main!A16","v":"2031-12-31"},{"$f":"Main!B16","v":77},{"v":30154.766445098536,"d":"30,155"},{"$f":"Main!D16","v":{"v":5424,"d":"5,424"}},{"$f":"Main!E16","v":0},{"$f":"Main!F16","v":{"v":6168.197690531626,"d":"6,168"}},{"v":76006.20488325697,"d":"76,006"},{"$f":"'Real Estate'!C14+'Real Estate'!D14","v":0},{"v":-46595.636128690065,"d":"-46,596"},{"v":309867.80687758635,"d":"309,868"},{"v":826174.3020553208,"d":"826,174"},{"v":1021208.1699045802,"d":"1,021,208"},{"v":1131429.2080987329,"d":"1,131,429"},{"v":588918.0955426784,"d":"588,918"},{"v":2011840.4802222075,"d":"2,011,840"},{"v":2865237.192627238,"d":"2,865,237"},{"v":620531.2863914063,"d":"620,531"},{"$f":"Q12-'Real Estate'!E14","v":{"v":620531.2863914063,"d":"620,531"}},{"v":930399.0932689926,"d":"930,399"},{"v":1446705.588446727,"d":"1,446,706"},{"v":1641739.4562959867,"d":"1,641,739"},{"v":1751960.4944901392,"d":"1,751,960"},{"v":1209449.3819340847,"d":"1,209,449"},{"v":2632371.766613614,"d":"2,632,372"},{"v":3485768.4790186444,"d":"3,485,768"}]
[{"$f":"Main!A17","v":"2032-12-30"},{"$f":"Main!B17","v":78},{"v":30667.39747466521,"d":"30,667"},{"$f":"Main!D17","v":{"v":5424,"d":"5,424"}},{"$f":"Main!E17","v":0},{"$f":"Main!F17","v":{"v":6315.031010254501,"d":"6,315"}},{"v":78286.39102975468,"d":"78,286"},{"$f":"'Real Estate'!C15+'Real Estate'!D15","v":0},{"v":-48510.02456534398,"d":"-48,510"},{"v":248119.94802674893,"d":"248,120"},{"v":800445.9551604567,"d":"800,446"},{"v":1020633.9882306977,"d":"1,020,634"},{"v":1147108.6436935475,"d":"1,147,109"},{"v":540038.1818117099,"d":"540,038"},{"v":2197425.0247023297,"d":"2,197,425"},{"v":3265167.099130475,"d":"3,265,167"},{"v":651557.8507109766,"d":"651,558"},{"$f":"Q13-'Real Estate'!E15","v":{"v":651557.8507109766,"d":"651,558"}},{"v":899677.7987377256,"d":"899,678"},{"v":1452003.8058714333,"d":"1,452,004"},{"v":1672191.8389416742,"d":"1,672,192"},{"v":1798666.494404524,"d":"1,798,666"},{"v":1191596.0325226865,"d":"1,191,596"},{"v":2848982.875413306,"d":"2,848,983"},{"v":3916724.949841452,"d":"3,916,725"}]
[{"$f":"Main!A18","v":"2033-12-30"},{"$f":"Main!B18","v":79},{"v":31188.743231734516,"d":"31,189"},{"$f":"Main!D18","v":{"v":5424,"d":"5,424"}},{"$f":"Main!E18","v":0},{"$f":"Main!F18","v":{"v":6630.216663414398,"d":"6,630"}},{"v":80634.98276064733,"d":"80,635"},{"$f":"'Real Estate'!C16+'Real Estate'!D16","v":0},{"v":-50652.45619232721,"d":"-50,652"},{"v":187465.71606731202,"d":"187,466"},{"v":771758.7020864292,"d":"771,759"},{"v":1017783.4966562779,"d":"1,017,783"},{"v":1161448.0463907518,"d":"1,161,448"},{"v":489050.7593458581,"d":"489,051"},{"v":2402739.5647005863,"d":"2,402,740"},{"v":3726284.7359890807,"d":"3,726,285"},{"v":684135.7432465255,"d":"684,136"},{"$f":"Q14-'Real Estate'!E16","v":{"v":684135.7432465255,"d":"684,136"}},{"v":871601.4593138376,"d":"871,601"},{"v":1455894.4453329546,"d":"1,455,894"},{"v":1701919.2399028034,"d":"1,701,919"},{"v":1845583.7896372774,"d":"1,845,584"},{"v":1173186.5025923837,"d":"1,173,187"},{"v":3086875.307947112,"d":"3,086,875"},{"v":4410420.479235606,"d":"4,410,420"}]
[{"$f":"Main!A19","v":"2034-12-30"},{"$f":"Main!B19","v":80},{"v":31718.951866674,"d":"31,719"},{"$f":"Main!D19","v":{"v":5424,"d":"5,424"}},{"$f":"Main!E19","v":0},{"$f":"Main!F19","v":{"v":6772.671573338294,"d":"6,773"}},{"v":83054.03224346675,"d":"83,054"},{"$f":"'Real Estate'!C17+'Real Estate'!D17","v":0},{"v":-52683.75195013104,"d":"-52,684"},{"v":127955.22534601646,"d":"127,955"},{"v":740140.253261441,"d":"740,140"},{"v":1012661.1284288318,"d":"1,012,661"},{"v":1174485.7098400444,"d":"1,174,486"},{"v":436068.33045705786,"d":"436,068"},{"v":2630260.961676622,"d":"2,630,261"},{"v":4258460.387794911,"d":"4,258,460"},{"v":718342.5304088518,"d":"718,343"},{"$f":"Q15-'Real Estate'!E17","v":{"v":718342.5304088518,"d":"718,343"}},{"v":846297.7557548683,"d":"846,298"},{"v":1458482.7836702927,"d":"1,458,483"},{"v":1731003.6588376835,"d":"1,731,004"},{"v":1892828.2402488962,"d":"1,892,828"},{"v":1154410.8608659096,"d":"1,154,411"},{"v":3348603.4920854736,"d":"3,348,603"},{"v":4976802.918203763,"d":"4,976,803"}]
[{"$f":"Main!A20","v":"2035-12-31"},{"$f":"Main!B20","v":81},{"v":32258.174048407454,"d":"32,258"},{"$f":"Main!D20","v":{"v":5424,"d":"5,424"}},{"$f":"Main!E20","v":0},{"$f":"Main!F20","v":{"v":7456.1323649335045,"d":"7,456"}},{"v":85545.65321077075,"d":"85,546"},{"$f":"'Real Estate'!C18+'Real Estate'!D18","v":0},{"v":-55319.611527296795,"d":"-55,320"},{"v":69145.5247769167,"d":"69,146"},{"v":706813.6496124235,"d":"706,814"},{"v":1007272.6760992742,"d":"1,007,273"},{"v":1188752.0314891543,"d":"1,188,752"},{"v":381530.5438146271,"d":"381,531"},{"v":2889856.1485371976,"d":"2,889,856"},{"v":4885654.888356409,"d":"4,885,655"},{"v":754259.6569292945,"d":"754,260"},{"$f":"Q16-'Real Estate'!E18","v":{"v":754259.6569292945,"d":"754,260"}},{"v":823405.1817062112,"d":"823,405"},{"v":1461073.306541718,"d":"1,461,073"},{"v":1761532.3330285687,"d":"1,761,532"},{"v":1943011.688418449,"d":"1,943,012"},{"v":1135790.2007439216,"d":"1,135,790"},{"v":3644115.805466492,"d":"3,644,116"},{"v":5639914.545285704,"d":"5,639,915"}]
[{"$f":"Main!A21","v":"2036-12-30"},{"$f":"Main!B21","v":82},{"v":32806.563007230376,"d":"32,807"},{"$f":"Main!D21","v":{"v":5424,"d":"5,424"}},{"$f":"Main!E21","v":0},{"$f":"Main!F21","v":{"v":7563.295216589974,"d":"7,563"}},{"v":88112.02280709388,"d":"88,112"},{"$f":"'Real Estate'!C19+'Real Estate'!D19","v":0},{"v":-57444.75501645348,"d":"-57,445"},{"v":11108.122969036614,"d":"11,108"},{"v":668392.158585503,"d":"668,392"},{"v":996636.6892676004,"d":"996,637"},{"v":1198364.9151739574,"d":"1,198,365"},{"v":323863.96416518383,"d":"323,864"},{"v":3170129.4392095287,"d":"3,170,129"},{"v":5596890.268189287,"d":"5,596,890"},{"v":791972.6397757592,"d":"791,973"},{"$f":"Q17-'Real Estate'!E19","v":{"v":791972.6397757592,"d":"791,973"}},{"v":803080.7627447958,"d":"803,081"},{"v":1460364.7983612623,"d":"1,460,365"},{"v":1788609.3290433595,"d":"1,788,609"},{"v":1990337.5549497167,"d":"1,990,338"},{"v":1115836.603940943,"d":"1,115,837"},{"v":3962102.078985288,"d":"3,962,102"},{"v":6388862.907965046,"d":"6,388,863"}]
[{"$f":"Main!A22","v":"2037-12-30"},{"$f":"Main!B22","v":83},{"v":33364.27457835329,"d":"33,364"},{"$f":"Main!D22","v":{"v":5424,"d":"5,424"}},{"$f":"Main!E22","v":0},{"$f":"Main!F22","v":{"v":6840.143009281207,"d":"6,840"}},{"v":90755.3834913067,"d":"90,755"},{"$f":"'Real Estate'!C20+'Real Estate'!D20","v":0},{"v":-58807.251922234616,"d":"-58,807"},{"v":-45283.15664482246,"d":"-45,283"},{"v":627442.6985901594,"d":"627,443"},{"v":984046.9044835358,"d":"984,047"},{"v":1207104.3392528174,"d":"1,207,104"},{"v":264875.290810887,"d":"264,875"},{"v":3482295.715709914,"d":"3,482,296"},{"v":6419779.189835645,"d":"6,419,779"},{"v":831571.2717645472,"d":"831,571"},{"$f":"Q18-'Real Estate'!E20","v":{"v":831571.2717645472,"d":"831,571"}},{"v":786288.1151197248,"d":"786,288"},{"v":1459013.9703547065,"d":"1,459,014"},{"v":1815618.176248083,"d":"1,815,618"},{"v":2038675.6110173645,"d":"2,038,676"},{"v":1096446.5625754343,"d":"1,096,447"},{"v":4313866.987474461,"d":"4,313,867"},{"v":7251350.461600193,"d":"7,251,350"}]
[{"$f":"Main!A23","v":"2038-12-30"},{"$f":"Main!B23","v":84},{"v":33931.46724618529,"d":"33,931"},{"$f":"Main!D23","v":{"v":5424,"d":"5,424"}},{"$f":"Main!E23","v":0},{"$f":"Main!F23","v":{"v":6908.7884080823715,"d":"6,909"}},{"v":93478.0449960459,"d":"93,478"},{"$f":"'Real Estate'!C21+'Real Estate'!D21","v":0},{"v":-61031.366157942975,"d":"-61,031"},{"v":-100929.66675389162,"d":"-100,930"},{"v":583004.3543542555,"d":"583,004"},{"v":968502.9570521108,"d":"968,503"},{"v":1214005.8406308198,"d":"1,214,006"},{"v":203704.40109055323,"d":"203,704"},{"v":3829193.336336334,"d":"3,829,193"},{"v":7371098.777673207,"d":"7,371,099"},{"v":873149.8353527746,"d":"873,150"},{"$f":"Q19-'Real Estate'!E21","v":{"v":873149.8353527746,"d":"873,150"}},{"v":772220.168598883,"d":"772,220"},{"v":1456154.18970703,"d":"1,456,154"},{"v":1841652.7924048854,"d":"1,841,653"},{"v":2087155.6759835943,"d":"2,087,156"},{"v":1076854.2364433277,"d":"1,076,854"},{"v":4702343.171689108,"d":"4,702,343"},{"v":8244248.613025982,"d":"8,244,249"}]
[{"$f":"Main!A24","v":"2039-12-31"},{"$f":"Main!B24","v":85},{"v":34508.302189370435,"d":"34,508"},{"$f":"Main!D24","v":{"v":5424,"d":"5,424"}},{"$f":"Main!E24","v":0},{"$f":"Main!F24","v":{"v":7100.41669916565,"d":"7,100"}},{"v":96282.38634592727,"d":"96,282"},{"$f":"'Real Estate'!C22+'Real Estate'!D22","v":0},{"v":-63450.50085572249,"d":"-63,451"},{"v":-156481.8186936696,"d":"-156,482"},{"v":536239.32016941,"d":"536,239"},{"v":952256.4241376374,"d":"952,256"},{"v":1222092.9489915038,"d":"1,222,093"},{"v":140541.89592319794,"d":"140,542"},{"v":4226292.411006741,"d":"4,226,292"},{"v":8494278.30911877,"d":"8,494,278"},{"v":916807.3271204133,"d":"916,807"},{"$f":"Q20-'Real Estate'!E22","v":{"v":916807.3271204133,"d":"916,807"}},{"v":760325.5084267437,"d":"760,326"},{"v":1453046.6472898233,"d":"1,453,047"},{"v":1869063.7512580506,"d":"1,869,064"},{"v":2138900.276111917,"d":"2,138,900"},{"v":1057349.2230436113,"d":"1,057,349"},{"v":5143099.738127154,"d":"5,143,100"},{"v":9411085.636239184,"d":"9,411,086"}]
[{"$f":"Main!A25","v":"2040-12-30"},{"$f":"Main!B25","v":86},{"v":35094.94332658973,"d":"35,095"},{"$f":"Main!D25","v":{"v":5424,"d":"5,424"}},{"$f":"Main!E25","v":0},{"$f":"Main!F25","v":{"v":7249.28367823671,"d":"7,249"}},{"v":99170.8579363051,"d":"99,171"},{"$f":"'Real Estate'!C23+'Real Estate'!D23","v":0},{"v":-65901.19828795208,"d":"-65,901"},{"v":-211119.2638969947,"d":"-211,119"},{"v":484116.6787716197,"d":"484,117"},{"v":930035.9761995671,"d":"930,036"},{"v":1224724.403414659,"d":"1,224,724"},{"v":74589.60886205267,"d":"74,590"},{"v":4656448.809745219,"d":"4,656,449"},{"v":9770225.513280679,"d":"9,770,226"},{"v":962647.693476434,"d":"962,648"},{"$f":"Q21-'Real Estate'!E23","v":{"v":962647.693476434,"d":"962,648"}},{"v":751528.4295794393,"d":"751,528"},{"v":1446764.3722480536,"d":"1,446,764"},{"v":1892683.6696760012,"d":"1,892,684"},{"v":2187372.096891093,"d":"2,187,372"},{"v":1037237.3023384867,"d":"1,037,237"},{"v":5619096.5032216525,"d":"5,619,097"},{"v":10732873.206757113,"d":"10,732,873"}]
[{"$f":"Main!A26","v":"2041-12-30"},{"$f":"Main!B26","v":87},{"v":35691.55736314175,"d":"35,692"},{"$f":"Main!D26","v":{"v":5424,"d":"5,424"}},{"$f":"Main!E26","v":0},{"$f":"Main!F26","v":{"v":7466.586709411579,"d":"7,467"}},{"v":102145.98367439426,"d":"102,146"},{"$f":"'Real Estate'!C24+'Real Estate'!D24","v":0},{"v":-68497.01302066409,"d":"-68,497"},{"v":-265453.6455063605,"d":"-265,454"},{"v":427795.24528151064,"d":"427,795"},{"v":903996.735491621,"d":"903,997"},{"v":1224762.155628848,"d":"1,224,762"},{"v":6088.425686808576,"d":"6,088"},{"v":5134988.896648865,"d":"5,134,989"},{"v":11246302.113648431,"d":"11,246,302"},{"v":1010780.0781502557,"d":"1,010,780"},{"$f":"Q22-'Real Estate'!E24","v":{"v":1010780.0781502557,"d":"1,010,780"}},{"v":745326.4326438953,"d":"745,326"},{"v":1438575.3234317664,"d":"1,438,575"},{"v":1914776.8136418767,"d":"1,914,777"},{"v":2235542.2337791035,"d":"2,235,542"},{"v":1016868.5038370643,"d":"1,016,869"},{"v":6145768.974799121,"d":"6,145,769"},{"v":12257082.191798687,"d":"12,257,082"}]
[{"$f":"Main!A27","v":"2042-12-30"},{"$f":"Main!B27","v":88},{"v":36298.31383831516,"d":"36,298"},{"$f":"Main!D27","v":{"v":5424,"d":"5,424"}},{"$f":"Main!E27","v":0},{"$f":"Main!F27","v":{"v":7447.198986625226,"d":"7,447"}},{"v":105210.36318462608,"d":"105,210"},{"$f":"'Real Estate'!C25+'Real Estate'!D25","v":0},{"v":-70935.24833293614,"d":"-70,935"},{"v":-319350.71578035894,"d":"-319,351"},{"v":367314.21178046975,"d":"367,314"},{"v":874115.852028928,"d":"874,116"},{"v":1222219.3851684825,"d":"1,222,219"},{"v":-64802.437415021384,"d":"-64,802"},{"v":5667857.991599047,"d":"5,667,858"},{"v":12954552.582545051,"d":"12,954,553"},{"v":1061319.0820577685,"d":"1,061,319"},{"$f":"Q23-'Real Estate'!E25","v":{"v":1061319.0820577685,"d":"1,061,319"}},{"v":741968.3662774095,"d":"741,968"},{"v":1428633.2938382383,"d":"1,428,633"},{"v":1935434.9340866965,"d":"1,935,435"},{"v":2283538.467226251,"d":"2,283,538"},{"v":996516.6446427471,"d":"996,517"},{"v":6729177.073656815,"d":"6,729,177"},{"v":14015871.66460282,"d":"14,015,872"}]
[{"$f":"Main!A28","v":"2043-12-31"},{"$f":"Main!B28","v":89},{"v":36915.385173566516,"d":"36,915"},{"$f":"Main!D28","v":{"v":5424,"d":"5,424"}},{"$f":"Main!E28","v":0},{"$f":"Main!F28","v":{"v":7744.1053430501115,"d":"7,744"}},{"v":108366.67408016487,"d":"108,367"},{"$f":"'Real Estate'!C26+'Real Estate'!D26","v":0},{"v":-73771.39424964845,"d":"-73,771"},{"v":-374232.87517435604,"d":"-374,233"},{"v":302969.942102037,"d":"302,970"},{"v":842087.2693349135,"d":"842,087"},{"v":1219854.5723665184,"d":"1,219,855"},{"v":-138858.37752024413,"d":"-138,858"},{"v":6278242.23952215,"d":"6,278,242"},{"v":14972387.299938934,"d":"14,972,387"},{"v":1114385.036160657,"d":"1,114,385"},{"$f":"Q24-'Real Estate'!E26","v":{"v":1114385.036160657,"d":"1,114,385"}},{"v":740152.1609863009,"d":"740,152"},{"v":1417354.978262694,"d":"1,417,355"},{"v":1956472.3054955704,"d":"1,956,472"},{"v":2334239.608527175,"d":"2,334,240"},{"v":975526.6586404128,"d":"975,527"},{"v":7392627.275682807,"d":"7,392,627"},{"v":16086772.336099591,"d":"16,086,772"}]
[{"$f":"Main!A29","v":"2044-12-30"},{"$f":"Main!B29","v":90},{"v":37542.946721517146,"d":"37,543"},{"$f":"Main!D29","v":{"v":5424,"d":"5,424"}},{"$f":"Main!E29","v":0},{"$f":"Main!F29","v":{"v":7853.571264264474,"d":"7,854"}},{"v":111617.67430256982,"d":"111,618"},{"$f":"'Real Estate'!C27+'Real Estate'!D27","v":0},{"v":-76504.29884531716,"d":"-76,504"},{"v":-427907.22817610315,"d":"-427,907"},{"v":233099.9550509619,"d":"233,100"},{"v":803311.905380254,"d":"803,312"},{"v":1211121.7544841964,"d":"1,211,122"},{"v":-215215.2686473097,"d":"-215,215"},{"v":6941192.252289361,"d":"6,941,192"},{"v":17267397.29681872,"d":"17,267,397"},{"v":1170104.2879686898,"d":"1,170,104"},{"$f":"Q25-'Real Estate'!E27","v":{"v":1170104.2879686898,"d":"1,170,104"}},{"v":742197.0597925866,"d":"742,197"},{"v":1403204.2430196516,"d":"1,403,204"},{"v":1973416.1933489437,"d":"1,973,416"},{"v":2381226.0424528862,"d":"2,381,226"},{"v":954889.0193213801,"d":"954,889"},{"v":8111296.540258051,"d":"8,111,297"},{"v":18437501.58478741,"d":"18,437,502"}]
[{"$f":"Main!A30","v":"2045-12-30"},{"$f":"Main!B30","v":91},{"v":38181.176815782936,"d":"38,181"},{"$f":"Main!D30","v":{"v":5424,"d":"5,424"}},{"$f":"Main!E30","v":0},{"$f":"Main!F30","v":{"v":8429.691559888515,"d":"8,430"}},{"v":114966.20453164692,"d":"114,966"},{"$f":"'Real Estate'!C28+'Real Estate'!D28","v":0},{"v":-79790.71927575249,"d":"-79,791"},{"v":-481982.92478831194,"d":"-481,983"},{"v":157800.43036191643,"d":"157,800"},{"v":759177.2609843949,"d":"759,177"},{"v":1198390.0821961588,"d":"1,198,390"},{"v":-294804.0673290012,"d":"-294,804"},{"v":7679509.778770606,"d":"7,679,510"},{"v":19923977.070312638,"d":"19,923,977"},{"v":1228609.5023671244,"d":"1,228,610"},{"$f":"Q26-'Real Estate'!E28","v":{"v":1228609.5023671244,"d":"1,228,610"}},{"v":746626.5775788125,"d":"746,627"},{"v":1386409.9327290407,"d":"1,386,410"},{"v":1987786.7633515194,"d":"1,987,787"},{"v":2426999.5845632832,"d":"2,427,000"},{"v":933805.4350381233,"d":"933,805"},{"v":8908119.28113773,"d":"8,908,119"},{"v":21152586.57267976,"d":"21,152,587"}]
[{"$f":"Main!A31","v":"2046-12-30"},{"$f":"Main!B31","v":92},{"v":38830.256821651245,"d":"38,830"},{"$f":"Main!D31","v":{"v":5424,"d":"5,424"}},{"$f":"Main!E31","v":0},{"$f":"Main!F31","v":{"v":7617.300529219998,"d":"7,617"}},{"v":118415.19066759633,"d":"118,415"},{"$f":"'Real Estate'!C29+'Real Estate'!D29","v":0},{"v":-81778.23437516508,"d":"-81,778"},{"v":-535206.5213961276,"d":"-535,207"},{"v":78249.26647835503,"d":"78,249"},{"v":710782.1408569126,"d":"710,782"},{"v":1182798.4227842367,"d":"1,182,798"},{"v":-376324.5451663811,"d":"-376,325"},{"v":8503634.922241908,"d":"8,503,635"},{"v":23001196.40557406,"d":"23,001,196"},{"v":1290039.9774854807,"d":"1,290,040"},{"$f":"Q27-'Real Estate'!E29","v":{"v":1290039.9774854807,"d":"1,290,040"}},{"v":754833.4560893531,"d":"754,833"},{"v":1368289.2439638358,"d":"1,368,289"},{"v":2000822.1183423933,"d":"2,000,822"},{"v":2472838.4002697174,"d":"2,472,838"},{"v":913715.4323190995,"d":"913,715"},{"v":9793674.89972739,"d":"9,793,675"},{"v":24291236.383059543,"d":"24,291,236"}]
[{"$f":"Main!A32","v":"2047-12-31"},{"$f":"Main!B32","v":93},{"v":39490.37118761931,"d":"39,490"},{"$f":"Main!D32","v":{"v":5424,"d":"5,424"}},{"$f":"Main!E32","v":0},{"$f":"Main!F32","v":{"v":7593.24586742065,"d":"7,593"}},{"v":121967.64638762422,"d":"121,968"},{"$f":"'Real Estate'!C30+'Real Estate'!D30","v":0},{"v":-84646.52106742555,"d":"-84,647"},{"v":-590069.5492527786,"d":"-590,070"},{"v":-6602.70235451829,"d":"-6,603"},{"v":658792.3851748114,"d":"658,792"},{"v":1166431.243778382,"d":"1,166,431"},{"v":-461917.6187312067,"d":"-461,918"},{"v":9448628.95389307,"d":"9,448,629"},{"v":26637783.487929188,"d":"26,637,783"},{"v":1354541.9763597548,"d":"1,354,542"},{"$f":"Q28-'Real Estate'!E30","v":{"v":1354541.9763597548,"d":"1,354,542"}},{"v":764472.4271069762,"d":"764,472"},{"v":1347939.2740052366,"d":"1,347,939"},{"v":2013334.3615345662,"d":"2,013,334"},{"v":2520973.2201381368,"d":"2,520,973"},{"v":892624.357628548,"d":"892,624"},{"v":10803170.930252824,"d":"10,803,171"},{"v":27992325.464288943,"d":"27,992,325"}]
[{"$f":"Main!A33","v":"2048-12-30"},{"$f":"Main!B33","v":94},{"v":40161.707497808835,"d":"40,162"},{"$f":"Main!D33","v":{"v":5424,"d":"5,424"}},{"$f":"Main!E33","v":0},{"$f":"Main!F33","v":{"v":7700.418724605444,"d":"7,700"}},{"v":125626.67577925295,"d":"125,627"},{"$f":"'Real Estate'!C31+'Real Estate'!D31","v":0},{"v":-87741.38700604957,"d":"-87,741"},{"v":-643479.6499596131,"d":"-643,480"},{"v":-97107.89978126074,"d":"-97,108"},{"v":599193.1418156824,"d":"599,193"},{"v":1142628.6258322122,"d":"1,142,629"},{"v":-549282.7846518783,"d":"-549,283"},{"v":10477018.03516335,"d":"10,477,018"},{"v":30776968.721508164,"d":"30,776,969"},{"v":1422269.0751777426,"d":"1,422,269"},{"$f":"Q29-'Real Estate'!E31","v":{"v":1422269.0751777426,"d":"1,422,269"}},{"v":778789.4252181295,"d":"778,789"},{"v":1325161.175396482,"d":"1,325,161"},{"v":2021462.216993425,"d":"2,021,462"},{"v":2564897.701009955,"d":"2,564,898"},{"v":872986.2905258643,"d":"872,986"},{"v":11899287.110341093,"d":"11,899,287"},{"v":32199237.796685908,"d":"32,199,238"}]
[{"$f":"Main!A34","v":"2049-12-30"},{"$f":"Main!B34","v":95},{"v":40844.456525271584,"d":"40,844"},{"$f":"Main!D34","v":{"v":5424,"d":"5,424"}},{"$f":"Main!E34","v":0},{"$f":"Main!F34","v":{"v":7875.074381485818,"d":"7,875"}},{"v":129395.47605263055,"d":"129,395"},{"$f":"'Real Estate'!C32+'Real Estate'!D32","v":0},{"v":-91002.09390884478,"d":"-91,002"},{"v":-697280.0675876461,"d":"-697,280"},{"v":-193620.67659902852,"d":"-193,621"},{"v":533235.3705962917,"d":"533,235"},{"v":1113961.1367587978,"d":"1,113,961"},{"v":-639846.627446034,"d":"-639,847"},{"v":11624375.952867467,"d":"11,624,376"},{"v":35571357.344628476,"d":"35,571,357"},{"v":1493382.5289366299,"d":"1,493,383"},{"$f":"Q30-'Real Estate'!E32","v":{"v":1493382.5289366299,"d":"1,493,383"}},{"v":796102.4613489838,"d":"796,102"},{"v":1299761.8523376014,"d":"1,299,762"},{"v":2026617.8995329216,"d":"2,026,618"},{"v":2607343.665695428,"d":"2,607,344"},{"v":853535.9014905959,"d":"853,536"},{"v":13117758.481804097,"d":"13,117,758"},{"v":37064739.87356511,"d":"37,064,740"}]
[{"$f":"Main!A35","v":"2050-12-30"},{"$f":"Main!B35","v":96},{"v":41538.812286201195,"d":"41,539"},{"$f":"Main!D35","v":{"v":5424,"d":"5,424"}},{"$f":"Main!E35","v":0},{"$f":"Main!F35","v":{"v":7968.932613568835,"d":"7,969"}},{"v":133277.34033420947,"d":"133,277"},{"$f":"'Real Estate'!C33+'Real Estate'!D33","v":0},{"v":-94283.4606615771,"d":"-94,283"},{"v":-751470.6459149024,"d":"-751,471"},{"v":-296338.2899469533,"d":"-296,338"},{"v":460584.0369130168,"d":"460,584"},{"v":1080118.5294511013,"d":"1,080,119"},{"v":-733627.6034477154,"d":"-733,628"},{"v":12904864.642885061,"d":"12,904,865"},{"v":41125237.73435068,"d":"41,125,238"},{"v":1568051.6553834614,"d":"1,568,052"},{"$f":"Q31-'Real Estate'!E33","v":{"v":1568051.6553834614,"d":"1,568,052"}},{"v":816581.009468559,"d":"816,581"},{"v":1271713.365436508,"d":"1,271,713"},{"v":2028635.6922964782,"d":"2,028,636"},{"v":2648170.1848345627,"d":"2,648,170"},{"v":834424.051935746,"d":"834,424"},{"v":14472916.298268523,"d":"14,472,916"},{"v":42693289.38973414,"d":"42,693,289"}]
[{"$f":"Main!A36","v":"2051-12-31"},{"$f":"Main!B36","v":97},{"v":42244.97209506661,"d":"42,245"},{"$f":"Main!D36","v":{"v":5424,"d":"5,424"}},{"$f":"Main!E36","v":0},{"$f":"Main!F36","v":{"v":8395.958238849043,"d":"8,396"}},{"v":137275.66054423575,"d":"137,276"},{"$f":"'Real Estate'!C34+'Real Estate'!D34","v":0},{"v":-98002.64668801818,"d":"-98,003"},{"v":-808656.7113977701,"d":"-808,657"},{"v":-407005.19176632864,"d":"-407,005"},{"v":381492.2060601423,"d":"381,492"},{"v":1043180.500689297,"d":"1,043,181"},{"v":-833337.9097869364,"d":"-833,338"},{"v":14373138.588586153,"d":"14,373,139"},{"v":47689316.71134307,"d":"47,689,317"},{"v":1646454.2381526346,"d":"1,646,454"},{"$f":"Q32-'Real Estate'!E34","v":{"v":1646454.2381526346,"d":"1,646,454"}},{"v":837797.5267548645,"d":"837,798"},{"v":1239449.046386306,"d":"1,239,449"},{"v":2027946.4442127768,"d":"2,027,946"},{"v":2689634.7388419313,"d":"2,689,635"},{"v":813116.3283656982,"d":"813,116"},{"v":16019592.826738788,"d":"16,019,593"},{"v":49335770.94949571,"d":"49,335,771"}]
[{"$f":"Main!A37","v":"2052-12-30"},{"$f":"Main!B37","v":98},{"v":42963.13662068274,"d":"42,963"},{"$f":"Main!D37","v":{"v":5424,"d":"5,424"}},{"$f":"Main!E37","v":0},{"$f":"Main!F37","v":{"v":8600.936108883005,"d":"8,601"}},{"v":141393.93036056284,"d":"141,394"},{"$f":"'Real Estate'!C35+'Real Estate'!D35","v":0},{"v":-101607.7298487631,"d":"-101,608"},{"v":-864159.3292326772,"d":"-864,159"},{"v":-523512.7388944387,"d":"-523,513"},{"v":293677.5510144041,"d":"293,678"},{"v":997383.9973667421,"d":"997,384"},{"v":-934305.7042218489,"d":"-934,306"},{"v":15973174.03162723,"d":"15,973,174"},{"v":55163958.88505048,"d":"55,163,959"},{"v":1728776.9500602663,"d":"1,728,777"},{"$f":"Q33-'Real Estate'!E35","v":{"v":1728776.9500602663,"d":"1,728,777"}},{"v":864617.6208275891,"d":"864,618"},{"v":1205264.2111658277,"d":"1,205,264"},{"v":2022454.5010746703,"d":"2,022,455"},{"v":2726160.9474270083,"d":"2,726,161"},{"v":794471.2458384174,"d":"794,471"},{"v":17701950.981687497,"d":"17,701,951"},{"v":56892735.83511075,"d":"56,892,736"}]
[]
["Cells not in bold are formulas.  For your unique data, edit the grey cells in bold and the real estate data in worksheet Real Estate. "]
["The fixed returns line shown on the charts in the Main worksheet are taken from Column W on this worksheet. "]
["This worksheet shows results using fixed rates for the Social Security COLA, inflation and equity returns. "]
["The assumption for how the model is constructed is that the value placed in cell J3 is investment assets, excluding homestead which is on the Real Estate worksheet, and any personal property. "]
["The tax rate is for state and federal taxes.  It is not the marginal rate.  The rate is taken times Social Security, pension, income, last year's withdrawal or contribution (to avoid a circular calculation)  and a deduction for mortgage interest on the Real Estate worksheet. "]
["My Conclusions"]
["If there are negative net worth (red cells), the returns become rates of interest expense instead of income. "]
["The future is likely to be outside the range of plans. "]
["Any average expected rate of return is going to be unrealistic, given that returns vary significantly each year. "]
["Strong returns in the next few years are crucial. "]

{"sheet":"Goal Seek","index":6,"n_rows":362,"n_cols":12,"rows_kept":362}
["Return","DOB",{"v":-0.05,"d":"-5%"},{"v":0.03,"d":"3%"},{"v":0.05,"d":"5%"},{"v":0.07,"d":"7%"},{"v":0.098,"d":"9.8%"},{"v":0.12,"d":"12%"},{"v":0.2,"d":"20%"},{"v":0.12512735346304846,"d":"12.5%"},"Goal Seek"]
["2012-12-01","1945-01-01",{"v":500000,"d":"500,000"},{"$nulls":3},"Geometric Avg, 1928-2005",null,null,"Goal of $1m?"]
[{"$f":"EDATE(A2,1)","v":"2013-01-01"},{"$f":"(A3-$B$2)/367.5","v":{"v":67.58367346938776,"d":"68"}},{"$f":"($A3-$A2)/365*$C2*C$1+$C2","v":{"v":497876.7123287671,"d":"497,877"}},{"v":501273.9726027397,"d":"501,274"},{"v":502123.2876712329,"d":"502,123"},{"v":502972.602739726,"d":"502,973"},{"v":504161.6438356164,"d":"504,162"},{"v":505095.8904109589,"d":"505,096"},{"v":508493.1506849315,"d":"508,493"},{"v":505313.6273388418,"d":"505,314"}]
["2013-02-01",{"$f":"(A4-$B$2)/367.5","v":{"v":67.66802721088435,"d":"68"}},{"$f":"(A4-A3)/365*C3*C$1+C3","v":{"v":495762.4413586038,"d":"495,762"}},{"$f":"($A4-$A3)/365*D3*D$1+D3","v":{"v":502551.1912178645,"d":"502,551"}},{"$f":"($A4-$A3)/365*E3*E$1+E3","v":{"v":504255.5920435354,"d":"504,256"}},{"v":505962.8782135485,"d":"505,963"},{"v":508357.9262300619,"d":"508,358"},{"v":510243.7170200788,"d":"510,244"},{"v":517130.5685869769,"d":"517,131"},{"v":510683.72394867573,"d":"510,684"}]
["2013-03-01",{"v":67.74421768707484,"d":"68"},{"v":493860.8867890092,"d":"493,861"},{"$f":"($A5-$A4)/365*D4*D$1+D4","v":{"v":503707.74738395493,"d":"503,708"}},{"$f":"($A5-$A4)/365*E4*E$1+E4","v":{"v":506189.7230815106,"d":"506,190"}},{"$f":"($A5-$A4)/365*F4*F$1+F4","v":{"v":508679.8295595719,"d":"508,680"}},{"$f":"($A5-$A4)/365*G4*G$1+G4","v":{"v":512179.6636261586,"d":"512,180"}},{"$f":"($A5-$A4)/365*H4*H$1+H4","v":{"v":514940.7550726472,"d":"514,941"}},{"$f":"($A5-$A4)/365*I4*I$1+I4","v":{"v":525064.6266255716,"d":"525,065"}},{"v":515585.680330489,"d":"515,586"},null,"This worksheet compounds monthly instead of annually, and does not provide for periodic additions or withdrawals. "]
["2013-04-01",{"v":67.82857142857142,"d":"68"},{"v":491763.6693245627,"d":"491,764"},{"v":504991.16712386475,"d":"504,991"},{"v":508339.29587815807,"d":"508,339"},{"v":511704.03566955624,"d":"511,704"},{"v":516442.6823058744,"d":"516,443"},{"v":520188.91838462045,"d":"520,189"},{"v":533983.5326120881,"d":"533,984"},{"v":521064.9406635279,"d":"521,065"},null,"Column J (or any other) of this worksheet is for the purpose of working backwards."]
["2013-05-01",{"v":67.91020408163266,"d":"68"},{"v":489742.72273829737,"d":"489,743"},{"v":506236.35082362226,"d":"506,236"},{"v":510428.36147765734,"d":"510,428"},{"v":514648.0862857372,"d":"514,648"},{"v":520602.5219934889,"d":"520,603"},{"v":525319.5488125236,"d":"525,320"},{"v":542761.3441070814,"d":"542,761"},{"v":526423.8017874408,"d":"526,424"},null,"If you want a given value at a given date, what return would you need given a specific starting value to get there? "]
["2013-06-01",{"v":67.99455782312926,"d":"68"},{"v":487662.99336776487,"d":"487,663"},{"v":507526.2133065427,"d":"507,526"},{"v":512595.9339716036,"d":"512,596"},{"v":517707.7749083127,"d":"517,708"},{"v":524935.64654641,"d":"524,936"},{"v":530673.4905154896,"d":"530,673"},{"v":551980.8518699962,"d":"551,981"},{"v":532018.2415974303,"d":"532,018"},null,"Use the Goal Seek feature under the menu Tools. "]
["2013-07-01",{"v":68.07619047619048,"d":"68"},{"v":485658.8988744727,"d":"485,659"},{"v":508777.64780510677,"d":"508,778"},{"v":514702.4926043636,"d":"514,702"},{"v":520686.3675858674,"d":"520,686"},{"v":529163.8953158524,"d":"529,164"},{"v":535907.5304219438,"d":"535,908"},{"v":561054.5097089551,"d":"561,055"},{"v":537489.7512877167,"d":"537,490"},null,"See comment in J2"]
["2013-08-01",{"v":68.16054421768708,"d":"68"},{"v":483596.5117696633,"d":"483,597"},{"v":510073.9853734869,"d":"510,074"},{"v":516888.21551816294,"d":"516,888"},{"v":523781.9550315149,"d":"523,782"},{"v":533568.2786417963,"d":"533,568"},{"v":541369.3825128195,"d":"541,369"},{"v":570584.7506957921,"d":"570,585"},{"v":543201.791761296,"d":"543,202"},null,"The rates need to be net of taxes and inflation. "]
["2013-09-01",{"v":68.24489795918367,"d":"68"},{"v":481542.8827470798,"d":"481,543"},{"v":511373.62593895907,"d":"511,374"},{"v":519083.22026899346,"d":"519,083"},{"v":526895.9463806064,"d":"526,896"},{"v":538009.3209171765,"d":"538,009"},{"v":546886.9006030872,"d":"546,887"},{"v":580276.875228159,"d":"580,277"},{"v":548974.5355437173,"d":"548,975"},null,"The 360 rows is for 30 years.  You may copy down for additional years. "]
["2013-10-01",{"v":68.3265306122449,"d":"68"},{"v":479563.9393933247,"d":"479,564"},{"v":512634.5472083976,"d":"512,635"},{"v":521216.4389824277,"d":"521,216"},{"v":529927.4025104675,"d":"529,927"},{"v":542342.875447304,"d":"542,343"},{"v":552280.8535953368,"d":"552,281"},{"v":589815.673177115,"d":"589,816"},{"v":554620.4312218975,"d":"554,620"},null,"This worksheet is not linked by formulas to any other sheet. "]
["2013-11-01",{"v":68.4108843537415,"d":"68"},{"v":477527.4349931613,"d":"477,527"},{"v":513940.71194512036,"d":"513,941"},{"v":523429.82386029826,"d":"523,430"},{"v":533077.9298075845,"d":"533,078"},{"v":546856.9512160955,"d":"546,857"},{"v":557909.5790073221,"d":"557,910"},{"v":599834.4599543702,"d":"599,834"},{"v":560514.5237939393,"d":"560,515"}]
["2013-12-01",{"v":68.49251700680271,"d":"68"},{"v":475564.99347949075,"d":"475,565"},{"v":515207.96301566996,"d":"515,208"},{"v":525580.9053282173,"d":"525,581"},{"v":536144.9535133268,"d":"536,145"},{"v":551261.7715902744,"d":"551,262"},{"v":563412.2488276683,"d":"563,412"},{"v":609694.7524467708,"d":"609,695"},{"v":566279.1017890025,"d":"566,279"}]
["2014-01-01",{"v":68.57687074829931,"d":"69"},{"v":473545.47090444085,"d":"473,545"},{"v":516520.68467486056,"d":"516,521"},{"v":527812.824241255,"d":"527,813"},{"v":539332.4454287349,"d":"539,332"},{"v":555850.0818973738,"d":"555,850"},{"v":569154.4229801036,"d":"569,154"},{"v":620051.2112554556,"d":"620,051"},{"v":572297.0940223641,"d":"572,297"}]
["2014-02-01",{"v":68.66122448979591,"d":"69"},{"v":471534.52438416175,"d":"471,535"},{"v":517836.75107690884,"d":"517,837"},{"v":530054.221166115,"d":"530,054"},{"v":542538.8876385441,"d":"542,539"},{"v":560476.582031084,"d":"560,477"},{"v":574955.120112942,"d":"574,955"},{"v":630583.5879945894,"d":"630,584"},{"v":578379.040991838,"d":"578,379"}]
["2014-03-01",{"v":68.73741496598639,"d":"69"},{"v":469725.8988111814,"d":"469,726"},{"v":519028.4849697982,"d":"519,028"},{"v":532087.3058500398,"d":"532,087"},{"v":545452.2471447675,"d":"545,452"},{"v":564690.1374861341,"d":"564,690"},{"v":580247.8576569953,"d":"580,248"},{"v":640258.295098068,"d":"640,258"},{"v":583930.7919056421,"d":"583,931"}]
["2014-04-01",{"v":68.82176870748299,"d":"69"},{"v":467731.1723915723,"d":"467,731"},{"v":520350.94110958424,"d":"520,351"},{"v":534346.8546831016,"d":"534,347"},{"v":548695.072833272,"d":"548,695"},{"v":569390.2159455392,"d":"569,390"},{"v":586161.6166446228,"d":"586,162"},{"v":651133.9154531584,"d":"651,134"},{"v":590136.3731453648,"d":"590,136"}]
["2014-05-01",{"v":68.90340136054422,"d":"69"},{"v":465808.98949133296,"d":"465,809"},{"v":521633.99822464894,"d":"521,634"},{"v":536542.8006612514,"d":"536,543"},{"v":551851.9485947785,"d":"551,852"},{"v":573976.5371369909,"d":"573,977"},{"v":591942.9366991998,"d":"591,943"},{"v":661837.4866660871,"d":"661,837"},{"v":596205.5952730876,"d":"596,206"}]
["2014-06-01",{"v":68.98775510204082,"d":"69"},{"v":463830.89652226015,"d":"463,831"},{"v":522963.0930694405,"d":"522,963"},{"v":538821.270088717,"d":"538,821"},{"v":555132.8218234105,"d":"555,133"},{"v":578753.9089721201,"d":"578,754"},{"v":597975.8893691205,"d":"597,976"},{"v":673079.65767247,"d":"673,080"},{"v":602541.6239743147,"d":"602,542"}]
["2014-07-01",{"v":69.06938775510204,"d":"69"},{"v":461924.7421529906,"d":"461,925"},{"v":524252.591107146,"d":"524,253"},{"v":541035.6040753829,"d":"541,036"},{"v":558326.7366886958,"d":"558,327"},{"v":583415.6527868545,"d":"583,416"},{"v":603873.7337574187,"d":"603,874"},{"v":684143.9808122914,"d":"684,144"},{"v":608738.4271600051,"d":"608,738"}]
["2014-08-01",{"v":69.15374149659864,"d":"69"},{"v":459963.14393288887,"d":"459,963"},{"v":525588.3579831176,"d":"525,588"},{"v":543333.1525310455,"d":"543,333"},{"v":561646.103862982,"d":"561,646"},{"v":588271.5890968996,"d":"588,272"},{"v":610028.2824959875,"d":"610,028"},{"v":695765.0566507467,"d":"695,765"},{"v":615207.645457527,"d":"615,208"}]
["2014-09-01",{"v":69.23809523809524,"d":"69"},{"v":458009.87578742043,"d":"458,010"},{"v":526927.5283198964,"d":"526,928"},{"v":545640.457699328,"d":"545,640"},{"v":564985.2053571811,"d":"564,985"},{"v":593167.9427617664,"d":"593,168"},{"v":616245.5570463575,"d":"616,246"},{"v":707583.5315856361,"d":"707,584"},{"v":621745.6137854622,"d":"621,746"}]
["2014-10-01",{"v":69.31972789115646,"d":"69"},{"v":456127.64342117077,"d":"456,128"},{"v":528226.8016773976,"d":"528,227"},{"v":547882.8157446677,"d":"547,883"},{"v":568235.8051688252,"d":"568,236"},{"v":597945.7886568885,"d":"597,946"},{"v":622323.5954172257,"d":"622,324"},{"v":719215.0416938931,"d":"719,215"},{"v":628139.9192523308,"d":"628,140"}]
["2014-11-01",{"v":69.40408163265306,"d":"69"},{"v":454190.6630176014,"d":"454,191"},{"v":529572.6946241372,"d":"529,573"},{"v":550209.4414005696,"d":"550,209"},{"v":571614.0837913357,"d":"571,614"},{"v":602922.6634676821,"d":"602,923"},{"v":628666.1811020259,"d":"628,666"},{"v":731431.8451418442,"d":"731,432"},{"v":634815.3221474449,"d":"634,815"}]
["2014-12-01",{"v":69.48571428571428,"d":"69"},{"v":452324.1260462962,"d":"452,324"},{"v":530878.4903095118,"d":"530,878"},{"v":552470.5760912569,"d":"552,471"},{"v":574902.8223556146,"d":"574,903"},{"v":607779.0816336958,"d":"607,779"},{"v":634866.7242581007,"d":"634,867"},{"v":743455.3823222581,"d":"743,455"},{"v":641344.0422459191,"d":"641,344"}]
["2015-01-01",{"v":69.57006802721088,"d":"70"},{"v":450403.29756582563,"d":"450,403"},{"v":532231.1396135881,"d":"532,231"},{"v":554816.6840171239,"d":"554,817"},{"v":578320.7377652357,"d":"578,321"},{"v":612837.8017706907,"d":"612,838"},{"v":641337.1467628683,"d":"641,337"},{"v":756083.9395014307,"d":"756,084"},{"v":648159.7687188815,"d":"648,160"}]
["2015-02-01",{"v":69.65442176870748,"d":"70"},{"v":448490.6260282173,"d":"448,491"},{"v":533587.2353939734,"d":"533,587"},{"v":557172.7548670596,"d":"557,173"},{"v":581758.9733842784,"d":"581,759"},{"v":617938.6270906342,"d":"617,939"},{"v":647873.5143956295,"d":"647,874"},{"v":768927.0091587153,"d":"768,927"},{"v":655047.9276528856,"d":"655,048"}]
["2015-03-01",{"v":69.73061224489796,"d":"70"},{"v":446770.38801057485,"d":"446,770"},{"v":534815.2169767979,"d":"534,815"},{"v":559309.8558446319,"d":"559,310"},{"v":584882.9393783419,"d":"584,883"},{"v":622584.1711803238,"d":"622,584"},{"v":653837.500719929,"d":"653,838"},{"v":780724.2454636161,"d":"780,724"},{"v":661335.6086945361,"d":"661,336"}]
["2015-04-01",{"v":69.81496598639455,"d":"70"},{"v":444873.1438971053,"d":"444,873"},{"v":536177.8968447114,"d":"536,178"},{"v":561685.0072872598,"d":"561,685"},{"v":588360.1886343721,"d":"588,360"},{"v":627766.1183366138,"d":"627,766"},{"v":660501.269220417,"d":"660,501"},{"v":793985.86278382,"d":"793,986"},{"v":668363.7906355539,"d":"668,364"}]
["2015-05-01",{"v":69.89659863945579,"d":"70"},{"v":443044.89810026786,"d":"443,045"},{"v":537499.979330082,"d":"537,500"},{"v":563993.3018377554,"d":"563,993"},{"v":591745.2746511726,"d":"591,745"},{"v":632822.6454267772,"d":"632,823"},{"v":667015.8022867006,"d":"667,016"},{"v":807037.6851857458,"d":"807,038"},{"v":675237.5379456435,"d":"675,238"}]
["2015-06-01",{"v":69.98095238095237,"d":"70"},{"v":441163.47456039,"d":"441,163"},{"v":538869.4998253613,"d":"538,869"},{"v":566388.3418866554,"d":"566,388"},{"v":595263.3219004686,"d":"595,263"},{"v":638089.8103495348,"d":"638,090"},{"v":673813.8811483623,"d":"673,814"},{"v":820746.2705231475,"d":"820,746"},{"v":682413.4592293239,"d":"682,413"}]
["2015-07-01",{"v":70.06258503401361,"d":"70"},{"v":439350.47398000484,"d":"439,350"},{"v":540198.2191399991,"d":"540,198"},{"v":568715.9652094773,"d":"568,716"},{"v":598688.1245744164,"d":"598,688"},{"v":643229.4926575557,"d":"643,229"},{"v":680459.7166884558,"d":"680,460"},{"v":834237.9900385966,"d":"834,238"},{"v":689431.699513236,"d":"689,432"}]
["2015-08-01",{"v":70.14693877551021,"d":"70"},{"v":437484.7390905007,"d":"437,485"},{"v":541574.6146024654,"d":"541,575"},{"v":571131.0604042026,"d":"571,131"},{"v":602247.4484931191,"d":"602,247"},{"v":648583.2767635657,"d":"648,583"},{"v":687394.8129790889,"d":"687,395"},{"v":848408.6079515809,"d":"848,409"},{"v":696758.4657668313,"d":"696,758"}]
["2015-09-01",{"v":70.2312925170068,"d":"70"},{"v":435626.9271847739,"d":"435,627"},{"v":542954.5170451511,"d":"542,955"},{"v":573556.4114826313,"d":"573,556"},{"v":605827.9333238864,"d":"605,828"},{"v":653981.6219548198,"d":"653,982"},{"v":694400.5902510949,"d":"694,401"},{"v":862819.9322510324,"d":"862,820"},{"v":704163.0954313675,"d":"704,163"}]
["2015-10-01",{"v":70.31292517006803,"d":"70"},{"v":433836.67953880905,"d":"433,837"},{"v":544293.3090049884,"d":"544,293"},{"v":575913.4926257107,"d":"575,913"},{"v":609313.5186936951,"d":"609,314"},{"v":659249.3095398805,"d":"659,249"},{"v":701249.4727850783,"d":"701,249"},{"v":877003.2736031042,"d":"877,003"},{"v":711405.0185440532,"d":"711,405"}]
["2015-11-01",{"v":70.39727891156463,"d":"70"},{"v":431994.3593928223,"d":"431,994"},{"v":545680.1385320422,"d":"545,680"},{"v":578359.1526628884,"d":"578,359"},{"v":612936.012763737,"d":"612,936"},{"v":664736.4311902425,"d":"664,736"},{"v":708396.4537131892,"d":"708,396"},{"v":891900.3155108829,"d":"891,900"},{"v":718965.3008551031,"d":"718,965"}]
["2015-12-01",{"v":70.47891156462585,"d":"70"},{"v":430219.0401076463,"d":"430,219"},{"v":547025.6512023951,"d":"547,026"},{"v":580735.9710984894,"d":"580,736"},{"v":616462.4939330627,"d":"616,462"},{"v":670090.7465538023,"d":"670,091"},{"v":715383.3776402235,"d":"715,383"},{"v":906561.6905603769,"d":"906,562"},{"v":726359.4563614946,"d":"726,359"}]
["2016-01-01",{"v":70.56326530612245,"d":"71"},{"v":428392.0825400659,"d":"428,392"},{"v":548419.4425876505,"d":"548,419"},{"v":583202.1101538391,"d":"583,202"},{"v":620127.4901298701,"d":"620,127"},{"v":675668.1046032008,"d":"675,668"},{"v":722674.408228776,"d":"722,674"},{"v":921960.8206466079,"d":"921,961"},{"v":734078.663291792,"d":"734,079"}]
["2016-02-01",{"v":70.64761904761905,"d":"71"},{"v":426572.8832854437,"d":"426,573"},{"v":549816.7852769834,"d":"549,817"},{"v":585678.7218544924,"d":"585,679"},{"v":623814.2754821491,"d":"623,814"},{"v":681291.8846080899,"d":"681,292"},{"v":730039.7474030528,"d":"730,040"},{"v":937621.5249973173,"d":"937,622"},{"v":741879.9042000475,"d":"741,880"}]
["2016-03-01",{"v":70.7265306122449,"d":"71"},{"v":424878.2786806111,"d":"424,878"},{"v":551127.3074775066,"d":"551,127"},{"v":588005.3907495309,"d":"588,005"},{"v":627283.708301954,"d":"627,284"},{"v":686596.6285424904,"d":"686,597"},{"v":737000.1263645942,"d":"737,000"},{"v":952520.7163534391,"d":"952,521"},{"v":749255.3962575794,"d":"749,255"}]
["2016-04-01",{"v":70.8108843537415,"d":"71"},{"v":423074.00105881674,"d":"423,074"},{"v":552531.5496582027,"d":"552,532"},{"v":590502.3999431247,"d":"590,502"},{"v":631013.0388417217,"d":"631,013"},{"v":692311.3697959482,"d":"692,311"},{"v":744511.4701182279,"d":"744,511"},{"v":968700.5203024565,"d":"968,701"},{"v":757217.9241722375,"d":"757,218"}]
["2016-05-01",{"v":70.89251700680272,"d":"71"},{"v":421335.3407804928,"d":"421,335"},{"v":553893.9562190038,"d":"553,894"},{"v":592929.1221346718,"d":"592,929"},{"v":634643.5248186192,"d":"634,644"},{"v":697887.7956238936,"d":"697,888"},{"v":751854.5969467913,"d":"751,855"},{"v":984624.3644718119,"d":"984,624"},{"v":765005.4864883845,"d":"765,005"}]
["2016-06-01",{"v":70.97687074829932,"d":"71"},{"v":419546.108511425,"d":"419,546"},{"v":555305.247669096,"d":"555,305"},{"v":595447.0403245587,"d":"595,447"},{"v":638416.6109798696,"d":"638,417"},{"v":703696.5165091138,"d":"703,697"},{"v":759517.3342088243,"d":"759,517"},{"v":1001349.49066284,"d":"1,001,349"},{"v":773135.3946231218,"d":"773,135"}]
["2016-07-01",{"v":71.05850340136054,"d":"71"},{"v":417821.946421652,"d":"417,822"},{"v":556674.4934852663,"d":"556,674"},{"v":597894.0829560296,"d":"597,894"},{"v":642089.6928512607,"d":"642,090"},{"v":709364.6473544202,"d":"709,365"},{"v":767008.464080473,"d":"767,008"},{"v":1017810.0302353798,"d":"1,017,810"},{"v":781086.6592092424,"d":"781,087"}]
["2016-08-01",{"v":71.14285714285714,"d":"71"},{"v":416047.63404643675,"d":"416,048"},{"v":558092.8695919549,"d":"558,093"},{"v":600433.0852261168,"d":"600,433"},{"v":645907.0480114997,"d":"645,907"},{"v":715268.8933781537,"d":"715,269"},{"v":774825.6462349369,"d":"774,826"},{"v":1035098.8581462273,"d":"1,035,099"},{"v":789387.4660620001,"d":"789,387"}]
["2016-09-01",{"v":71.22721088435374,"d":"71"},{"v":414280.85642240394,"d":"414,281"},{"v":559514.859643244,"d":"559,515"},{"v":602982.8695606387,"d":"602,983"},{"v":649747.0981325543,"d":"649,747"},{"v":721222.2821400245,"d":"721,222"},{"v":782722.4993965642,"d":"782,722"},{"v":1052681.3592983002,"d":"1,052,681"},{"v":797776.4877032123,"d":"797,776"}]
["2016-10-01",{"v":71.30884353741497,"d":"71"},{"v":412578.33235491463,"d":"412,578"},{"v":560894.485324556,"d":"560,894"},{"v":605460.8813533536,"d":"605,461"},{"v":653485.3691081115,"d":"653,485"},{"v":727031.579426303,"d":"727,032"},{"v":790442.5021303386,"d":"790,443"},{"v":1069985.7104100531,"d":"1,069,986"},{"v":805981.1721329122,"d":"805,981"}]
["2016-11-01",{"v":71.39319727891156,"d":"71"},{"v":410826.2873819006,"d":"410,826"},{"v":562323.6137392186,"d":"562,324"},{"v":608032.0166029363,"d":"608,032"},{"v":657370.4739052748,"d":"657,370"},{"v":733082.8724079389,"d":"733,083"},{"v":798498.5188643793,"d":"798,499"},{"v":1088160.8101485253,"d":"1,088,161"},{"v":814546.5393145866,"d":"814,547"}]
["2016-12-01",{"v":71.47482993197279,"d":"71"},{"v":409137.96017348184,"d":"409,138"},{"v":563710.1651155618,"d":"563,710"},{"v":610530.7783150031,"d":"610,531"},{"v":661152.6053989764,"d":"661,153"},{"v":738987.704311718,"d":"738,988"},{"v":806374.1206942745,"d":"806,374"},{"v":1106048.385109871,"d":"1,106,048"},{"v":822923.6943340594,"d":"822,924"}]
["2017-01-01",{"v":71.55918367346939,"d":"72"},{"v":407400.5250001424,"d":"407,401"},{"v":565146.467728048,"d":"565,146"},{"v":613123.4432640121,"d":"613,123"},{"v":665083.2934913484,"d":"665,083"},{"v":745138.5115602084,"d":"745,139"},{"v":814592.5089928573,"d":"814,593"},{"v":1124836.0563089976,"d":"1,124,836"},{"v":831669.1140140477,"d":"831,669"}]
["2017-02-01",{"v":71.64353741496599,"d":"72"},{"v":405670.4679761692,"d":"405,670"},{"v":566586.4299608893,"d":"566,586"},{"v":615727.1181600648,"d":"615,727"},{"v":669037.3503321052,"d":"669,037"},{"v":751340.5137468383,"d":"751,341"},{"v":822894.6573036886,"d":"822,895"},{"v":1143942.8605531503,"d":"1,143,943"},{"v":840507.4734962384,"d":"840,507"}]
["2017-03-01",{"v":71.71972789115647,"d":"72"},{"v":404114.47166064417,"d":"404,114"},{"v":567890.3548955938,"d":"567,890"},{"v":618088.8112160212,"d":"618,089"},{"v":672629.9892544365,"d":"672,630"},{"v":756988.9476364858,"d":"756,989"},{"v":830469.7971627034,"d":"830,470"},{"v":1161493.7647150618,"d":"1,161,494"},{"v":848575.3456066108,"d":"848,575"}]
["2017-04-01",{"v":71.80408163265307,"d":"72"},{"v":402398.3691097565,"d":"402,398"},{"v":569337.3084025881,"d":"569,337"},{"v":620713.5719211851,"d":"620,714"},{"v":676628.9127521957,"d":"676,629"},{"v":763289.584411608,"d":"763,290"},{"v":838933.7633146081,"d":"838,934"},{"v":1181223.2478417286,"d":"1,181,223"},{"v":857593.3719175756,"d":"857,593"}]
["2017-05-01",{"v":71.88571428571429,"d":"72"},{"v":400744.67718190816,"d":"400,745"},{"$f":"($A55-$A54)/365*D54*D$1+D54","v":{"v":570741.1538205671,"d":"570,741"}},{"$f":"($A55-$A54)/365*E54*E$1+E54","v":{"v":623264.4496140119,"d":"623,264"}},{"$f":"($A55-$A54)/365*F54*F$1+F54","v":{"v":680521.8462228248,"d":"680,522"}},{"$f":"($A55-$A54)/365*G54*G$1+G54","v":{"v":769437.725173718,"d":"769,438"}},{"$f":"($A55-$A54)/365*H54*H$1+H54","v":{"v":847208.1785144234,"d":"847,208"}},{"$f":"($A55-$A54)/365*I54*I$1+I54","v":{"v":1200640.6162994008,"d":"1,200,641"}},{"$f":"($A55-$A54)/365*J54*J$1+J54","v":{"v":866413.2395046029,"d":"866,413"}}]
["2017-06-01",{"v":71.97006802721089,"d":"72"},{"v":399042.88471716305,"d":"399,043"},{"v":572195.371007014,"d":"572,195"},{"v":625911.1890575782,"d":"625,911"},{"v":684567.6884318755,"d":"684,568"},{"v":775841.9767054379,"d":"775,842"},{"v":855842.7385803787,"d":"855,843"},{"v":1221035.0596447606,"d":"1,221,035"},{"v":875620.8336569351,"d":"875,621"}]
["2017-07-01",{"v":72.0517006802721,"d":"72"},{"v":397402.9824512021,"d":"397,403"},{"v":573606.2637026476,"d":"573,606"},{"v":628483.4268208286,"d":"628,483"},{"v":688506.2970502507,"d":"688,506"},{"v":782091.224408216,"d":"782,091"},{"v":864283.9272348701,"d":"864,284"},{"v":1241106.8688444004,"d":"1,241,107"},{"v":884626.1035927653,"d":"884,626"}]
["2017-08-01",{"v":72.1360544217687,"d":"72"},{"v":395715.3807449025,"d":"395,715"},{"v":575067.7810320818,"d":"575,068"},{"v":631152.3290443143,"d":"631,152"},{"v":692599.6084601111,"d":"692,600"},{"v":788600.7946541123,"d":"788,601"},{"v":873092.5195891543,"d":"873,093"},{"v":1262188.6841507985,"d":"1,262,189"},{"v":894027.2504901725,"d":"894,027"}]
["2017-09-01",{"v":72.2204081632653,"d":"72"},{"v":394034.94556639675,"d":"394,035"},{"v":576533.0222275882,"d":"576,533"},{"v":633832.5649621737,"d":"633,833"},{"v":696717.2554473944,"d":"696,717"},{"v":795164.5459257814,"d":"795,165"},{"v":881990.8871860629,"d":"881,991"},{"v":1283628.6015254147,"d":"1,283,629"},{"v":903528.3057699208,"d":"903,528"}]
["2017-10-01",{"v":72.30204081632652,"d":"72"},{"v":392415.62387228827,"d":"392,416"},{"v":577954.610501574,"d":"577,955"},{"v":636437.356325032,"d":"636,437"},{"v":700725.7656842151,"d":"700,726"},{"v":801569.4329532384,"d":"801,569"},{"v":890689.975388446,"d":"890,690"},{"v":1304729.345660079,"d":"1,304,729"},{"v":912820.5884285462,"d":"912,821"}]
["2017-11-01",{"v":72.38639455782312,"d":"72"},{"v":390749.2013599539,"d":"390,749"},{"v":579427.2071803862,"d":"579,427"},{"v":639140.0355094259,"d":"639,140"},{"v":704891.7243459541,"d":"704,892"},{"v":808241.1259321752,"d":"808,241"},{"v":899767.6923978844,"d":"899,768"},{"v":1326891.8715315652,"d":"1,326,892"},{"v":922521.3652968094,"d":"922,521"}]
["2017-12-01",{"v":72.46802721088436,"d":"72"},{"v":389143.3827242281,"d":"389,143"},{"v":580855.931800831,"d":"580,856"},{"v":641766.638395081,"d":"641,767"},{"v":708947.265773698,"d":"708,947"},{"v":814751.3421246152,"d":"814,751"},{"v":908642.1134735896,"d":"908,642"},{"v":1348703.7927074265,"d":"1,348,704"},{"v":932008.980936758,"d":"932,009"}]
["2018-01-01",{"v":72.55238095238096,"d":"73"},{"v":387490.85603046766,"d":"387,491"},{"v":582335.9208873372,"d":"582,336"},{"v":644491.9487773067,"d":"644,492"},{"v":713162.1029428183,"d":"713,162"},{"v":821532.7519256414,"d":"821,533"},{"v":917902.7947396766,"d":"917,903"},{"v":1371613.281789032,"d":"1,371,613"},{"v":941913.6777390613,"d":"941,914"}]
["2018-02-01",{"v":72.63673469387756,"d":"73"},{"v":385845.34691581776,"d":"385,845"},{"v":583819.6809049406,"d":"583,820"},{"v":647228.8323954021,"d":"647,229"},{"v":717401.9981849715,"d":"717,402"},{"v":828370.6053512582,"d":"828,371"},{"v":927257.8588394893,"d":"927,258"},{"v":1394911.9183564074,"d":"1,394,912"},{"v":951923.6342767879,"d":"951,924"}]
["2018-03-01",{"v":72.71292517006803,"d":"73"},{"v":384365.3921605242,"d":"384,365"},{"v":585163.2659240095,"d":"585,163"},{"v":649711.353944316,"d":"649,711"},{"v":721254.3486409785,"d":"721,254"},{"v":834598.1366966934,"d":"834,598"},{"v":935793.7120057925,"d":"935,794"},{"v":1416313.3066928345,"d":"1,416,313"},{"v":961060.9690208083,"d":"961,061"}]
["2018-04-01",{"v":72.79727891156463,"d":"73"},{"v":382733.1555636781,"d":"382,733"},{"v":586654.2298618433,"d":"586,654"},{"v":652470.402159696,"d":"652,470"},{"v":725542.3539465974,"d":"725,542"},{"v":841544.7370782949,"d":"841,545"},{"v":945331.1164130844,"d":"945,331"},{"v":1440371.2313544662,"d":"1,440,371"},{"v":971274.4086993738,"d":"971,274"}]
[{"$f":"EDATE(A66,1)","v":"2018-05-01"},{"v":72.87891156462585,"d":"73"},{"v":381160.2795819096,"d":"381,160"},{"v":588100.7745382149,"d":"588,101"},{"v":655151.7873740509,"d":"655,152"},{"v":729716.7072158792,"d":"729,717"},{"v":848323.207015309,"d":"848,323"},{"v":954654.930164008,"d":"954,655"},{"v":1464048.5666644026,"d":"1,464,049"},{"v":981263.4220895333,"d":"981,263"}]
["2018-06-01",{"$f":"(A68-$B$2)/367.5","v":{"v":72.96326530612245,"d":"73"}},{"$f":"(A68-A67)/365*C67*C$1+C67","v":{"v":379541.6537371097,"d":"379,542"}},{"v":589599.2230870383,"d":"589,599"},{"v":657933.9387998859,"d":"657,934"},{"v":734055.0229820667,"d":"734,055"},{"v":855384.0451054802,"d":"855,384"},{"v":964384.5639728028,"d":"964,385"},{"v":1488917.33683788,"d":"1,488,917"},{"v":991691.5583819741,"d":"991,692"}]
["2018-07-01",{"v":73.04489795918367,"d":"73"},{"v":377981.89351627225,"d":"377,982"},{"v":591053.0293905406,"d":"591,053"},{"v":660637.7769045429,"d":"660,638"},{"v":738278.3532512786,"d":"738,278"},{"v":862273.98782496,"d":"862,274"},{"v":973896.302138014,"d":"973,896"},{"v":1513392.6903201465,"d":"1,513,393"},{"v":1001890.5507232329,"d":"1,001,891"}]
["2018-08-01",{"v":73.12925170068027,"d":"73"},{"v":376376.7649273675,"d":"376,377"},{"v":592559.0001229603,"d":"592,559"},{"v":663443.2249982471,"d":"663,443"},{"v":742667.569762389,"d":"742,668"},{"v":869450.9422770484,"d":"869,451"},{"v":983822.0397926809,"d":"983,822"},{"v":1539099.6346488723,"d":"1,539,100"},{"v":1012537.8967649334,"d":"1,012,538"}]
["2018-09-01",{"v":73.21360544217687,"d":"73"},{"v":374778.4526379499,"d":"374,778"},{"v":594068.8079862873,"d":"594,069"},{"v":666260.5866386506,"d":"666,261"},{"v":747082.8810675517,"d":"747,083"},{"v":876687.6325856447,"d":"876,688"},{"v":993848.9383900199,"d":"993,849"},{"v":1565243.2448812642,"d":"1,565,243"},{"v":1023298.3948646603,"d":"1,023,298"}]
["2018-10-01",{"v":73.29523809523809,"d":"73"},{"v":373238.2672161501,"d":"373,238"},{"v":595533.6351840617,"d":"595,534"},{"v":668998.643844015,"d":"668,999"},{"v":751381.1661367074,"d":"751,381"},{"v":883749.1713248277,"d":"883,749"},{"v":1003651.2840837297,"d":"1,003,651"},{"v":1590973.2708245178,"d":"1,590,973"},{"v":1033822.4458196522,"d":"1,033,822"}]
["2018-11-01",{"v":73.37959183673469,"d":"73"},{"v":371653.2827937254,"d":"371,653"},{"v":597051.0222545307,"d":"597,051"},{"v":671839.596989106,"d":"671,840"},{"v":755848.2815627805,"d":"755,848"},{"v":891104.8699069779,"d":"891,105"},{"v":1013880.2779927475,"d":"1,013,880"},{"v":1617998.0222741398,"d":"1,617,998"},{"v":1044809.1402428834,"d":"1,044,809"}]
["2018-12-01",{"v":73.46122448979592,"d":"73"},{"v":370125.940535669,"d":"370,126"},{"v":598523.2028573501,"d":"598,523"},{"v":674600.5816342668,"d":"674,601"},{"v":760196.9977032787,"d":"760,197"},{"v":898282.5365303382,"d":"898,283"},{"v":1023880.1930633609,"d":"1,023,880"},{"v":1644595.2500375502,"d":"1,644,595"},{"v":1055554.4171683022,"d":"1,055,554"}]
["2019-01-01",{"v":73.54557823129252,"d":"74"},{"v":368554.1728429833,"d":"368,554"},{"v":600048.2071824387,"d":"600,048"},{"v":677465.3238302479,"d":"677,465"},{"v":764716.5250594872,"d":"764,717"},{"v":905759.200491925,"d":"905,759"},{"v":1034315.3555789655,"d":"1,034,315"},{"v":1672530.8405861333,"d":"1,672,531"},{"v":1066772.0627857037,"d":"1,066,772"}]
["2019-02-01",{"v":73.62993197278911,"d":"74"},{"v":366989.0797802254,"d":"366,989"},{"v":601577.0971349857,"d":"601,577"},{"v":680342.231369801,"d":"680,342"},{"v":769262.9219344984,"d":"769,263"},{"v":913298.0948784852,"d":"913,298"},{"v":1044856.8709837703,"d":"1,044,857"},{"v":1700940.9534947197,"d":"1,700,941"},{"v":1078108.9211799651,"d":"1,078,109"}]
["2019-03-01",{"v":73.70612244897958,"d":"74"},{"v":365581.45043312316,"d":"365,581"},{"v":602961.5485366115,"d":"602,962"},{"v":682951.7632161509,"d":"682,952"},{"v":773393.7584468041,"d":"773,394"},{"v":920164.0948027223,"d":"920,164"},{"v":1054475.2794399497,"d":"1,054,475"},{"v":1727037.5818223099,"d":"1,727,038"},{"v":1088457.4846031438,"d":"1,088,457"}]
["2019-04-01",{"v":73.79047619047618,"d":"74"},{"v":364028.981260051,"d":"364,029"},{"v":604497.8615232938,"d":"604,498"},{"v":685851.9693339182,"d":"685,852"},{"v":777991.743257296,"d":"777,992"},{"v":927822.885268505,"d":"927,823"},{"v":1065222.260370132,"d":"1,065,222"},{"v":1756373.5626642231,"d":"1,756,374"},{"v":1100024.799497852,"d":"1,100,025"}]
["2019-05-01",{"v":73.87210884353742,"d":"74"},{"v":362532.9717480234,"d":"362,533"},{"v":605988.404195543,"d":"605,988"},{"v":688670.5390709069,"d":"688,671"},{"v":782467.8601363106,"d":"782,468"},{"v":935296.3079608047,"d":"935,296"},{"v":1075728.5621162485,"d":"1,075,729"},{"v":1785245.4568450048,"d":"1,785,245"},{"v":1111337.9385585277,"d":"1,111,338"}]
["2019-06-01",{"v":73.95646258503402,"d":"74"},{"v":360993.44816936745,"d":"360,993"},{"v":607532.4294445892,"d":"607,532"},{"v":691595.0304012081,"d":"691,595"},{"v":787119.7923458881,"d":"787,120"},{"v":943081.0481898044,"d":"943,081"},{"v":1086692.1518452142,"d":"1,086,692"},{"v":1815570.174194153,"d":"1,815,570"},{"v":1123148.4098645612,"d":"1,123,148"}]
["2019-07-01",{"v":74.03809523809524,"d":"74"},{"v":359509.9134508632,"d":"359,510"},{"v":609030.4546130827,"d":"609,030"},{"v":694437.2017590213,"d":"694,437"},{"v":791648.4267676042,"d":"791,648"},{"v":950677.3722491963,"d":"950,677"},{"v":1097410.2114250574,"d":"1,097,410"},{"v":1845415.1633589882,"d":"1,845,415"},{"v":1134699.362308883,"d":"1,134,699"}]
["2019-08-01",{"v":74.12244897959184,"d":"74"},{"v":357983.2275170308,"d":"357,983"},{"v":610582.2308399051,"d":"610,582"},{"v":697386.1816569021,"d":"697,386"},{"v":796354.9393322226,"d":"796,355"},{"v":958590.1335009581,"d":"958,590"},{"v":1108594.775771636,"d":"1,108,595"},{"v":1876761.941476319,"d":"1,876,762"},{"v":1146758.1014147447,"d":"1,146,758"}]
["2019-09-01",{"v":74.20680272108844,"d":"74"},{"v":356463.02477004065,"d":"356,463"},{"v":612137.9609075246,"d":"612,138"},{"v":700347.6846201026,"d":"700,348"},{"v":801089.4330811292,"d":"801,089"},{"v":966568.7549408921,"d":"966,569"},{"v":1119893.3307466237,"d":"1,119,893"},{"v":1908641.185413725,"d":"1,908,641"},{"v":1158944.991812176,"d":"1,158,945"}]
["2019-10-01",{"v":74.28843537414966,"d":"74"},{"v":354998.10822988977,"d":"354,998"},{"v":613647.3421809952,"d":"613,647"},{"v":703225.8257897743,"d":"703,226"},{"v":805698.4407783083,"d":"805,698"},{"v":974354.2676519229,"d":"974,354"},{"v":1130938.8540087822,"d":"1,130,939"},{"v":1940016.109009567,"d":"1,940,016"},{"v":1170864.092056125,"d":"1,170,864"}]
["2019-11-01",{"v":74.37278911564626,"d":"74"},{"v":353490.58201685874,"d":"353,491"},{"v":615210.8819843604,"d":"615,211"},{"v":706212.1272417583,"d":"706,212"},{"v":810488.4835632095,"d":"810,488"},{"v":982464.0985152833,"d":"982,464"},{"v":1142465.1349318307,"d":"1,142,465"},{"v":1972969.8072995925,"d":"1,972,970"},{"v":1183307.16295536,"d":"1,183,307"}]
["2019-12-01",{"v":74.45442176870748,"d":"74"},{"v":352037.88099487167,"d":"352,038"},{"v":616727.8403234999,"d":"616,728"},{"v":709114.36886056,"d":"709,114"},{"v":815151.5679891896,"d":"815,152"},{"v":990377.6449526392,"d":"990,378"},{"v":1153733.2842078707,"d":"1,153,733"},{"v":2005402.1876935584,"d":"2,005,402"},{"v":1195476.8144869604,"d":"1,195,477"}]
["2020-01-01",{"v":74.53877551020408,"d":"75"},{"v":350542.92560982495,"d":"350,543"},{"v":618299.2290673378,"d":"618,299"},{"v":712125.6764543514,"d":"712,126"},{"v":819997.8115577829,"d":"819,998"},{"v":998620.8429947381,"d":"998,621"},{"v":1165491.8809674687,"d":"1,165,492"},{"v":2039466.5536215038,"d":"2,039,467"},{"v":1208181.4510557791,"d":"1,208,181"}]
["2020-02-01",{"v":74.62312925170068,"d":"75"},{"v":349054.31866545446,"d":"349,054"},{"v":619874.6216235916,"d":"619,875"},{"v":715149.7717927191,"d":"715,150"},{"v":824872.8670401949,"d":"824,873"},{"v":1006932.6515454724,"d":"1,006,933"},{"v":1177370.318768014,"d":"1,177,370"},{"v":2074109.5471350746,"d":"2,074,110"},{"v":1221021.1030330022,"d":"1,221,021"}]
["2020-03-01",{"v":74.70204081632653,"d":"75"},{"v":347667.6645228109,"d":"347,668"},{"v":621352.1309956807,"d":"621,352"},{"v":717990.7777354573,"d":"717,991"},{"v":829460.5161363363,"d":"829,461"},{"v":1014772.9326295607,"d":"1,014,773"},{"v":1188595.6576976378,"d":"1,188,596"},{"v":2107068.0002128375,"d":"2,107,068"},{"v":1233160.0373760338,"d":"1,233,160"}]
["2020-04-01",{"v":74.78639455782313,"d":"75"},{"v":346191.2675912757,"d":"346,191"},{"v":622935.3021787655,"d":"622,935"},{"v":721039.7796683065,"d":"721,040"},{"v":834391.8293418591,"d":"834,392"},{"v":1023219.1796688172,"d":"1,023,219"},{"v":1200709.5641267754,"d":"1,200,710"},{"v":2142859.292271247,"d":"2,142,859"},{"v":1246265.1431515708,"d":"1,246,265"}]
["2020-05-01",{"v":74.86802721088435,"d":"75"},{"v":344768.5637518595,"d":"344,769"},{"v":624471.3070334529,"d":"624,471"},{"v":724002.9568450255,"d":"724,003"},{"v":839192.4398668397,"d":"839,192"},{"v":1031460.9999105332,"d":"1,031,461"},{"v":1212552.179005834,"d":"1,212,552"},{"v":2178084.3765277606,"d":"2,178,084"},{"v":1259082.2822536917,"d":"1,259,082"}]
["2020-06-01",{"v":74.95238095238095,"d":"75"},{"v":343304.47807017347,"d":"343,304"},{"v":626062.4257061683,"d":"626,062"},{"v":727077.4899494359,"d":"727,077"},{"v":844181.6113586507,"d":"844,182"},{"v":1040046.146534446,"d":"1,040,046"},{"v":1224910.2450494003,"d":"1,224,910"},{"v":2215081.9741564514,"d":"2,215,082"},{"v":1272462.8703273607,"d":"1,272,463"}]
["2020-07-01",{"v":75.03401360544218,"d":"75"},{"v":341893.6377493371,"d":"341,894"},{"v":627606.1412764026,"d":"627,606"},{"v":730065.4796341596,"d":"730,065"},{"v":849038.5466568785,"d":"849,039"},{"v":1048423.5045366687,"d":"1,048,424"},{"v":1236991.551575915,"d":"1,236,992"},{"v":2251494.280580941,"d":"2,251,494"},{"v":1285549.4383830365,"d":"1,285,549"}]
["2020-08-01",{"v":75.11836734693877,"d":"75"},{"v":340441.76065752486,"d":"340,442"},{"v":629205.2473349973,"d":"629,205"},{"v":733165.7576983594,"d":"733,166"},{"v":854086.255276729,"d":"854,086"},{"v":1057149.8349662095,"d":"1,057,150"},{"v":1249598.6983481408,"d":"1,249,599"},{"v":2289738.840963412,"d":"2,289,739"},{"v":1299211.2996654862,"d":"1,299,211"}]
["2020-09-01",{"v":75.20272108843537,"d":"75"},{"v":338996.049071171,"d":"338,996"},{"v":630808.427828207,"d":"630,808"},{"v":736279.2013269415,"d":"736,279"},{"v":859163.9735615249,"d":"859,164"},{"v":1065948.7971542296,"d":"1,065,949"},{"v":1262334.334397059,"d":"1,262,334"},{"v":2328633.0349742975,"d":"2,328,633"},{"v":1313018.3490271557,"d":"1,313,018"}]
["2020-10-01",{"v":75.2843537414966,"d":"75"},{"v":337602.91462293325,"d":"337,603"},{"v":632363.8458694273,"d":"632,364"},{"v":739305.0062639015,"d":"739,305"},{"v":864107.1087518788,"d":"864,107"},{"v":1074534.7956847323,"d":"1,074,535"},{"v":1274784.7552294682,"d":"1,274,785"},{"v":2366911.9341793545,"d":"2,366,912"},{"v":1326522.0074706234,"d":"1,326,522"}]
["2020-11-01",{"v":75.3687074829932,"d":"75"},{"v":336169.25841015094,"d":"336,169"},{"v":633975.0742986288,"d":"633,975"},{"v":742444.5206740632,"d":"742,445"},{"v":869244.403069664,"d":"869,244"},{"v":1083478.4579019658,"d":"1,083,478"},{"v":1287777.082049889,"d":"1,287,777"},{"v":2407117.0136092505,"d":"2,407,117"},{"v":1340619.2946795658,"d":"1,340,619"}]
["2020-12-01",{"v":75.45034013605442,"d":"75"},{"v":334787.74090983527,"d":"334,788"},{"v":635538.3005092283,"d":"635,538"},{"v":745495.6625398471,"d":"745,496"},{"v":874245.5352517087,"d":"874,246"},{"v":1092205.6542478064,"d":"1,092,206"},{"v":1300478.445050929,"d":"1,300,478"},{"v":2446686.060408307,"d":"2,446,686"},{"v":1354406.813392833,"d":"1,354,407"}]
["2021-01-01",{"v":75.53469387755102,"d":"76"},{"v":333366.03954432777,"d":"333,366"},{"v":637157.6172749093,"d":"637,158"},{"v":748661.4660383039,"d":"748,661"},{"v":879443.1045982736,"d":"879,443"},{"v":1101296.396104258,"d":"1,101,296"},{"v":1313732.6363265165,"d":"1,313,733"},{"v":2488246.2071878454,"d":"2,488,246"},{"v":1368800.4395359487,"d":"1,368,800"}]
["2021-02-01",{"v":75.61904761904762,"d":"76"},{"v":331950.37554078334,"d":"331,950"},{"v":638781.0599709796,"d":"638,781"},{"v":751840.7133598365,"d":"751,841"},{"v":884671.5745625977,"d":"884,672"},{"v":1110462.8028203258,"d":"1,110,463"},{"v":1327121.9114145567,"d":"1,327,122"},{"v":2530512.307145557,"d":"2,530,512"},{"v":1383347.0304098225,"d":"1,383,347"}]
["2021-03-01",{"v":75.6952380952381,"d":"76"},{"v":330677.1412236406,"d":"330,677"},{"v":640251.1314514608,"d":"640,251"},{"v":754724.4859590249,"d":"754,724"},{"v":889422.1397301119,"d":"889,422"},{"v":1118811.04920646,"d":"1,118,811"},{"v":1339338.704900455,"d":"1,339,339"},{"v":2569336.6055565574,"d":"2,569,337"},{"v":1396625.5166547874,"d":"1,396,626"}]
["2021-04-01",{"v":75.7795918367347,"d":"76"},{"v":329272.8958294032,"d":"329,273"},{"v":641882.4562521453,"d":"641,882"},{"v":757929.4803514536,"d":"757,929"},{"v":894709.9371087813,"d":"894,710"},{"v":1128123.235418759,"d":"1,128,123"},{"v":1352988.9514271116,"d":"1,352,989"},{"v":2612980.131459162,"d":"2,612,980"},{"v":1411467.8117096291,"d":"1,411,468"}]
["2021-05-01",{"v":75.86122448979592,"d":"76"},{"v":327919.71954517276,"d":"327,920"},{"v":643465.1801168766,"d":"643,465"},{"v":761044.2590378295,"d":"761,044"},{"v":899857.5833222839,"d":"899,858"},{"v":1137210.036273913,"d":"1,137,210"},{"v":1366333.4999891324,"d":"1,366,333"},{"v":2655933.2295105457,"d":"2,655,933"},{"v":1425983.9677461365,"d":"1,425,984"}]
["2021-06-01",{"v":75.94557823129252,"d":"76"},{"v":326527.18374984397,"d":"326,527"},{"v":645104.6941374483,"d":"645,105"},{"v":764276.0908227846,"d":"764,276"},{"v":905207.421557378,"d":"905,207"},{"v":1146675.362548434,"d":"1,146,675"},{"v":1380258.8715506655,"d":"1,380,259"},{"v":2701047.7117652455,"d":"2,701,048"},{"v":1441138.2625376685,"d":"1,441,138"}]
["2021-07-01",{"v":76.02721088435374,"d":"76"},{"v":325185.2912138857,"d":"325,185"},{"v":646695.3632462804,"d":"646,695"},{"v":767416.9514700015,"d":"767,417"},{"v":910415.4642567493,"d":"910,415"},{"v":1155911.5969755363,"d":"1,155,912"},{"v":1393872.3837084256,"d":"1,393,872"},{"v":2745448.496068236,"d":"2,745,448"},{"v":1455959.5625458062,"d":"1,455,960"}]
["2021-08-01",{"v":76.11156462585033,"d":"76"},{"v":323804.36737448425,"d":"323,804"},{"v":648343.1075964695,"d":"648,343"},{"v":770675.8453735042,"d":"770,676"},{"v":915828.0712634263,"d":"915,828"},{"v":1165532.581719678,"d":"1,165,533"},{"v":1408078.4255369059,"d":"1,408,078"},{"v":2792083.511617888,"d":"2,792,084"},{"v":1471432.4156173891,"d":"1,471,432"}]
["2021-09-01",{"v":76.19591836734693,"d":"76"},{"v":322429.30773220904,"d":"322,429"},{"v":649995.0503089755,"d":"649,995"},{"v":773948.5784155013,"d":"773,949"},{"v":921272.8573309376,"d":"921,273"},{"v":1175233.6446875255,"d":"1,175,234"},{"v":1422429.252230049,"d":"1,422,429"},{"v":2839510.683596055,"d":"2,839,511"},{"v":1487069.7026391542,"d":"1,487,070"}]
["2021-10-01",{"v":76.27755102040817,"d":"76"},{"v":321104.2557826246,"d":"321,104"},{"v":651597.7778302853,"d":"651,598"},{"v":777129.1890117293,"d":"777,129"},{"v":926573.3313046225,"d":"926,573"},{"v":1184699.9102091182,"d":"1,184,700"},{"v":1436458.6914301263,"d":"1,436,459"},{"v":2886187.571545579,"d":"2,886,188"},{"v":1502363.3817876189,"d":"1,502,363"}]
["2021-11-01",{"v":76.36190476190477,"d":"76"},{"v":319740.6623676573,"d":"319,741"},{"v":653258.013264209,"d":"653,258"},{"v":780429.3266636969,"d":"780,429"},{"v":932082.0001510088,"d":"932,082"},{"v":1194560.5083658723,"d":"1,194,561"},{"v":1451098.763572921,"d":"1,451,099"},{"v":2935213.2234458053,"d":"2,935,213"},{"v":1518329.380064302,"d":"1,518,329"}]
["2021-12-01",{"v":76.44353741496599,"d":"76"},{"v":318426.65964559844,"d":"318,427"},{"v":654868.7864476002,"d":"654,869"},{"v":783636.5704719039,"d":"783,637"},{"v":937444.6637135214,"d":"937,445"},{"v":1204182.4478031206,"d":"1,204,182"},{"v":1465410.970556106,"d":"1,465,411"},{"v":2983463.303831216,"d":"2,983,463"},{"v":1533944.5474899982,"d":"1,533,945"}]
["2022-01-01",{"v":76.52789115646259,"d":"77"},{"v":317074.4368443637,"d":"317,074"},{"v":656537.3562322475,"d":"656,537"},{"v":786964.3422095244,"d":"786,964"},{"v":943017.9648649142,"d":"943,018"},{"v":1214205.2047248352,"d":"1,214,205"},{"v":1480346.1179820476,"d":"1,480,346"},{"v":3034141.3106360203,"d":"3,034,141"},{"v":1550246.1668576184,"d":"1,550,246"}]
["2022-02-01",{"v":76.61224489795919,"d":"77"},{"v":315727.95635913423,"d":"315,728"},{"v":658210.1774412777,"d":"658,210"},{"v":790306.2455805511,"d":"790,306"},{"v":948624.4004368508,"d":"948,624"},{"v":1224311.3839356683,"d":"1,224,311"},{"v":1495433.4811570975,"d":"1,495,433"},{"v":3085680.149337235,"d":"3,085,680"},{"v":1566721.027685917,"d":"1,566,721"}]
["2022-03-01",{"v":76.68843537414966,"d":"77"},{"v":314516.94501967455,"d":"314,517"},{"v":659724.9625071699,"d":"659,725"},{"v":793337.5572074354,"d":"793,338"},{"v":953718.3835186487,"d":"953,718"},{"v":1233515.5221206532,"d":"1,233,516"},{"v":1509199.663339804,"d":"1,509,200"},{"v":3133022.0913544637,"d":"3,133,022"},{"v":1581759.6862137495,"d":"1,581,760"}]
["2022-04-01",{"v":76.77278911564626,"d":"77"},{"v":313181.3251161663,"d":"313,181"},{"v":661405.9055623251,"d":"661,406"},{"v":796706.5249161245,"d":"796,707"},{"v":959388.4352781979,"d":"959,388"},{"v":1243782.4266581945,"d":"1,243,782"},{"v":1524581.0955250754,"d":"1,524,581"},{"v":3186240.548796649,"d":"3,186,241"},{"v":1598569.4492380358,"d":"1,598,569"}]
["2022-05-01",{"v":76.85442176870748,"d":"77"},{"v":311894.278574593,"d":"311,894"},{"v":663036.7694390542,"d":"663,037"},{"v":799980.6613198895,"d":"799,981"},{"v":964908.2043578806,"d":"964,908"},{"v":1253800.8385331947,"d":"1,253,801"},{"v":1539618.0597549118,"d":"1,539,618"},{"v":3238617.1057631695,"d":"3,238,617"},{"v":1615009.8408416007,"d":"1,615,010"}]
["2022-06-01",{"v":76.93877551020408,"d":"77"},{"v":310569.796021742,"d":"310,570"},{"v":664726.1507968031,"d":"664,726"},{"v":803377.8394707,"d":"803,378"},{"v":970644.7819015974,"d":"970,645"},{"v":1264236.5835947394,"d":"1,264,237"},{"v":1555309.5095694002,"d":"1,555,310"},{"v":3293629.231943256,"d":"3,293,629"},{"v":1632172.9617271896,"d":"1,632,173"}]
["2022-07-01",{"v":77.0204081632653,"d":"77"},{"v":309293.48179151566,"d":"309,293"},{"v":666365.2015795897,"d":"666,365"},{"v":806679.3922356481,"d":"806,679"},{"v":976229.313523497,"d":"976,229"},{"v":1274419.7495009545,"d":"1,274,420"},{"v":1570649.548567893,"d":"1,570,650"},{"v":3347771.0823313645,"d":"3,347,771"},{"v":1648958.9466390966,"d":"1,648,959"}]
["2022-08-01",{"v":77.1047619047619,"d":"77"},{"v":307980.0437181544,"d":"307,980"},{"v":668063.0636000528,"d":"668,063"},{"v":810105.0170519913,"d":"810,105"},{"v":982033.1973874585,"d":"982,033"},{"v":1285027.1116899515,"d":"1,285,027"},{"v":1586657.264514941,"d":"1,586,657"},{"v":3404637.3308531577,"d":"3,404,637"},{"v":1666482.8533180752,"d":"1,666,483"}]
["2022-09-01",{"v":77.1891156462585,"d":"77"},{"v":306672.1832585294,"d":"306,672"},{"$f":"($A119-$A118)/365*D118*D$1+D118","v":{"v":669765.2516799105,"d":"669,765"}},{"$f":"($A119-$A118)/365*E118*E$1+E118","v":{"v":813545.1890422121,"d":"813,545"}},{"$f":"($A119-$A118)/365*F118*F$1+F118","v":{"v":987871.5865335703,"d":"987,872"}},{"$f":"($A119-$A118)/365*G118*G$1+G118","v":{"v":1295722.7620058805,"d":"1,295,723"}},{"$f":"($A119-$A118)/365*H118*H$1+H118","v":{"v":1602828.1275943809,"d":"1,602,828"}},{"$f":"($A119-$A118)/365*I118*I$1+I118","v":{"v":3462469.5266101155,"d":"3,462,470"}},{"$f":"($A119-$A118)/365*J118*J$1+J118","v":{"v":1684192.9910162792,"d":"1,684,193"}}]
["2022-10-01",{"v":77.27074829931973,"d":"77"},{"v":305411.8866150012,"d":"305,412"},{"v":671416.7276429568,"d":"671,417"},{"v":816888.5254355363,"d":"816,889"},{"v":993555.2312780101,"d":"993,555"},{"v":1306159.5426094346,"d":"1,306,160"},{"v":1618636.8433733939,"d":"1,618,637"},{"v":3519386.833896857,"d":"3,519,387"},{"v":1701513.9727987626,"d":"1,701,514"}]
["2022-11-01",{"v":77.35510204081632,"d":"77"},{"v":304114.932028006,"d":"304,115"},{"v":673127.4606750334,"d":"673,127"},{"v":820357.504105194,"d":"820,358"},{"v":999462.1212831424,"d":"999,462"},{"v":1317031.0842270989,"d":"1,317,031"},{"v":1635133.6353113365,"d":"1,635,134"},{"v":3579168.1992945573,"d":"3,579,168"},{"v":1719596.3951253323,"d":"1,719,596"}]
["2022-12-01",{"v":77.43673469387755,"d":"77"},{"v":302865.1446361101,"d":"302,865"},{"v":674787.2270164238,"d":"674,787"},{"v":823728.8363138455,"d":"823,729"},{"v":1005212.4512960042,"d":"1,005,212"},{"v":1327639.4989877227,"d":"1,327,639"},{"v":1651260.980755503,"d":"1,651,261"},{"v":3638003.8409267967,"d":"3,638,004"},{"v":1737281.4810935485,"d":"1,737,281"}]
["2023-01-01",{"v":77.52108843537415,"d":"78"},{"v":301579.0049808061,"d":"301,579"},{"v":676506.5478962191,"d":"676,507"},{"v":827226.8628790139,"d":"827,227"},{"v":1011188.6458694626,"d":"1,011,189"},{"v":1338689.824461489,"d":"1,338,690"},{"v":1668090.2707511482,"d":"1,668,090"},{"v":3699800.0705534983,"d":"3,699,800"},{"v":1755744.0138399529,"d":"1,755,744"}]
["2023-02-01",{"v":77.60544217687075,"d":"78"},{"v":300298.3270144492,"d":"300,298"},{"v":678230.2495114066,"d":"678,230"},{"v":830739.7440775412,"d":"830,740"},{"v":1017200.3701476455,"d":"1,017,200"},{"v":1349832.1249730343,"d":"1,349,832"},{"v":1685091.0811818175,"d":"1,685,091"},{"v":3762645.9895601603,"d":"3,762,646"},{"v":1774402.7526238484,"d":"1,774,403"}]
["2023-03-01",{"v":77.68163265306123,"d":"78"},{"v":299146.49781494174,"d":"299,146"},{"v":679791.1081678164,"d":"679,791"},{"v":833926.1430959208,"d":"833,926"},{"v":1022662.5967928219,"d":"1,022,663"},{"v":1359979.904016667,"d":"1,359,980"},{"v":1700603.1525044774,"d":"1,700,603"},{"v":3820374.2567972476,"d":"3,820,374"},{"v":1791434.9087103535,"d":"1,791,435"}]
["2023-04-01",{"v":77.76598639455783,"d":"78"},{"v":297876.14967353584,"d":"297,876"},{"v":681523.1786626002,"d":"681,523"},{"v":837467.4732926295,"d":"837,467"},{"v":1028742.5360669052,"d":"1,028,743"},{"v":1371299.4079848935,"d":"1,371,299"},{"v":1717935.3270998655,"d":"1,717,935"},{"v":3885268.285268872,"d":"3,885,268"},{"v":1810472.9437237112,"d":"1,810,473"}]
["2023-05-01",{"v":77.84761904761905,"d":"78"},{"v":296652.0011132336,"d":"296,652"},{"v":683203.646774371,"d":"683,204"},{"v":840909.1204431471,"d":"840,909"},{"v":1034661.3287401668,"d":"1,034,661"},{"v":1382344.9429423609,"d":"1,382,345"},{"v":1734879.3467644122,"d":"1,734,879"},{"v":3949135.7091363054,"d":"3,949,136"},{"v":1829092.6441043634,"d":"1,829,093"}]
["2023-06-01",{"v":77.93197278911565,"d":"78"},{"v":295392.24604001304,"d":"295,392"},{"v":684944.4122305359,"d":"684,944"},{"v":844480.1043792756,"d":"844,480"},{"v":1040812.60294117,"d":"1,040,813"},{"v":1393850.597563344,"d":"1,393,851"},{"v":1752560.856819107,"d":"1,752,561"},{"v":4016216.9184421822,"d":"4,016,217"},{"v":1848530.8774623382,"d":"1,848,531"}]
["2023-07-01",{"v":78.01360544217687,"d":"78"},{"v":294178.3053028623,"d":"294,178"},{"v":686633.3162606934,"d":"686,633"},{"v":847950.5705616561,"d":"847,951"},{"v":1046800.8398348041,"d":"1,046,801"},{"v":1405077.7777190597,"d":"1,405,078"},{"v":1769846.3885575968,"d":"1,769,846"},{"v":4082236.922580958,"d":"4,082,237"},{"v":1867541.9823794551,"d":"1,867,542"}]
["2023-08-01",{"v":78.09795918367347,"d":"78"},{"v":292929.0549652748,"d":"292,929"},{"v":688382.8203267823,"d":"688,383"},{"v":851551.456546233,"d":"851,551"},{"v":1053024.285923685,"d":"1,053,024"},{"v":1416772.6442634722,"d":"1,416,773"},{"v":1787884.2750382386,"d":"1,787,884"},{"v":4151579.0292111,"d":"4,151,579"},{"v":1887388.8266474677,"d":"1,887,389"}]
[{"$f":"EDATE(A130,1)","v":"2023-09-01"},{"v":78.18231292517007,"d":"78"},{"v":291685.1096633675,"d":"291,685"},{"v":690136.7820333684,"d":"690,137"},{"v":855167.6339644431,"d":"855,168"},{"v":1059284.7316783546,"d":"1,059,285"},{"v":1428564.8505464103,"d":"1,428,565"},{"v":1806105.9997043817,"d":"1,806,106"},{"v":4222099.001762083,"d":"4,222,099"},{"v":1907446.5883840646,"d":"1,907,447"}]
["2023-10-01",{"$f":"(A132-$B$2)/367.5","v":{"v":78.26394557823129,"d":"78"}},{"$f":"(A132-A131)/365*C131*C$1+C131","v":{"v":290486.40373324405,"d":"290,486"}},{"v":691838.4891671493,"d":"691,838"},{"v":858682.0215012833,"d":"858,682"},{"v":1065379.2465729422,"d":"1,065,379"},{"v":1440071.646876839,"d":"1,440,072"},{"v":1823919.6479206441,"d":"1,823,920"},{"v":4291503.368914336,"d":"4,291,503"},{"v":1927063.6083958414,"d":"1,927,064"}]
["2023-11-01",{"v":78.34829931972789,"d":"78"},{"v":289252.8313338289,"d":"289,253"},{"v":693601.2557285889,"d":"693,601"},{"v":862328.4794008093,"d":"862,328"},{"v":1071713.1451073622,"d":"1,071,713"},{"v":1452057.777460981,"d":"1,452,058"},{"v":1842508.6372090408,"d":"1,842,509"},{"v":4364400.138468497,"d":"4,364,400"},{"v":1947543.0041423598,"d":"1,947,543"}]
["2023-12-01",{"v":78.42993197278912,"d":"78"},{"v":288064.12106807344,"d":"288,064"},{"v":695311.5054002485,"d":"695,312"},{"v":865872.2950695797,"d":"865,872"},{"v":1077879.1659422265,"d":"1,077,879"},{"v":1463753.8044903926,"d":"1,463,754"},{"v":1860681.3251376778,"d":"1,860,681"},{"v":4436143.702388528,"d":"4,436,144"},{"v":1967572.3933366453,"d":"1,967,572"}]
["2024-01-01",{"v":78.51428571428572,"d":"79"},{"v":286840.8350744967,"d":"286,841"},{"v":697083.1210167477,"d":"697,083"},{"v":869549.2870075464,"d":"869,549"},{"v":1084287.3790657734,"d":"1,084,287"},{"v":1475937.0484850276,"d":"1,475,937"},{"v":1879644.9813829167,"d":"1,879,645"},{"v":4511497.376237319,"d":"4,511,497"},{"v":1988482.2862574132,"d":"1,988,482"}]
["2024-02-01",{"v":78.59863945578232,"d":"79"},{"v":285622.74385705707,"d":"285,623"},{"v":698859.250612763,"d":"698,859"},{"v":873241.8935688114,"d":"873,242"},{"v":1090733.690333096,"d":"1,090,734"},{"v":1488221.697124199,"d":"1,488,222"},{"v":1898801.911056189,"d":"1,898,802"},{"v":4588131.030299433,"d":"4,588,131"},{"v":2009614.3939355332,"d":"2,009,614"}]
["2024-03-01",{"v":78.67755102040816,"d":"79"},{"v":284488.0781622825,"d":"284,488"},{"v":700525.0247169633,"d":"700,525"},{"v":876710.9367076464,"d":"876,711"},{"v":1096799.9626382363,"d":"1,096,800"},{"v":1499809.439763177,"d":"1,499,809"},{"v":1916905.5566739303,"d":"1,916,906"},{"v":4661038.317904191,"d":"4,661,038"},{"v":2029593.2273252255,"d":"2,029,593"}]
["2024-04-01",{"v":78.76190476190476,"d":"79"},{"v":283279.97810433304,"d":"283,280"},{"v":702309.9240950092,"d":"702,310"},{"v":880433.9557539391,"d":"880,434"},{"v":1103320.663785976,"d":"1,103,321"},{"v":1512292.7851823566,"d":"1,512,293"},{"v":1936442.2379638674,"d":"1,936,442"},{"v":4740212.119468591,"d":"4,740,212"},{"v":2051162.2314441123,"d":"2,051,162"}]
["2024-05-01",{"v":78.84353741496598,"d":"79"},{"v":282115.8138107536,"d":"282,116"},{"v":704041.6471955174,"d":"704,042"},{"v":884052.1774899142,"d":"884,052"},{"v":1109668.5360981692,"d":"1,109,669"},{"v":1524473.9928219076,"d":"1,524,474"},{"v":1955541.394283511,"d":"1,955,541"},{"v":4818133.414583144,"d":"4,818,133"},{"v":2072257.286365534,"d":"2,072,257"}]
["2024-06-01",{"v":78.92789115646258,"d":"79"},{"v":280917.78775210516,"d":"280,918"},{"v":705835.5067349471,"d":"705,836"},{"v":887806.371668296,"d":"887,806"},{"v":1116265.7435593556,"d":"1,116,266"},{"v":1537162.6284114774,"d":"1,537,163"},{"v":1975471.843562236,"d":"1,975,472"},{"v":4899975.68080346,"d":"4,899,976"},{"v":2094279.6923054259,"d":"2,094,280"}]
["2024-07-01",{"v":79.00952380952381,"d":"79"},{"v":279763.3310901102,"d":"279,763"},{"v":707575.9230529236,"d":"707,576"},{"v":891454.8910039192,"d":"891,455"},{"v":1122688.0944127108,"d":"1,122,688"},{"v":1549544.1575279974,"d":"1,549,544"},{"v":1994955.9494165485,"d":"1,994,956"},{"v":4980523.226241325,"d":"4,980,523"},{"v":2115818.1861664876,"d":"2,115,818"}]
["2024-08-01",{"v":79.09387755102041,"d":"79"},{"v":278575.29502657684,"d":"278,575"},{"v":709378.787733579,"d":"709,379"},{"v":895240.5213629769,"d":"895,241"},{"v":1129362.7058233288,"d":"1,129,363"},{"v":1562441.4593103812,"d":"1,562,441"},{"v":2015288.1032023828,"d":"2,015,288"},{"v":5065123.894741863,"d":"5,065,124"},{"v":2138303.5248825536,"d":"2,138,304"}]
["2024-09-01",{"v":79.17823129251701,"d":"79"},{"v":277392.3040476969,"d":"277,392"},{"v":711186.2460146537,"d":"711,186"},{"v":899042.227686573,"d":"899,042"},{"v":1136076.9991702784,"d":"1,136,077"},{"v":1575446.1090456825,"d":"1,575,446"},{"v":2035827.47784324,"d":"2,035,827"},{"v":5151161.615693643,"d":"5,151,162"},{"v":2161027.821019669,"d":"2,161,028"}]
["2024-10-01",{"v":79.25986394557823,"d":"79"},{"v":276252.3356748981,"d":"276,252"},{"v":712939.8559363337,"d":"712,940"},{"v":902736.9217729563,"d":"902,737"},{"v":1142613.3325901623,"d":"1,142,613"},{"v":1588136.0037322422,"d":"1,588,136"},{"v":2055906.8721452553,"d":"2,055,907"},{"v":5235838.244992716,"d":"5,235,838"},{"v":2183252.7820063164,"d":"2,183,253"}]
["2024-11-01",{"v":79.34421768707483,"d":"79"},{"v":275079.20931792253,"d":"275,079"},{"v":714756.3876240619,"d":"714,756"},{"v":906570.4621256908,"d":"906,570"},{"v":1149406.4036359722,"d":"1,149,406"},{"v":1601354.5165523477,"d":"1,601,355"},{"v":2076860.2243764345,"d":"2,076,860"},{"v":5324775.771346017,"d":"5,324,776"},{"v":2206454.7653464586,"d":"2,206,455"}]
["2024-12-01",{"v":79.42585034013605,"d":"79"},{"v":273948.74681387626,"d":"273,949"},{"v":716518.8006346418,"d":"716,519"},{"v":910296.0941618237,"d":"910,296"},{"v":1156019.4267801791,"d":"1,156,019"},{"v":1614253.0981377282,"d":"1,614,253"},{"v":2097344.325219599,"d":"2,097,344"},{"v":5412306.331970883,"d":"5,412,306"},{"v":2229146.9170169025,"d":"2,229,147"}]
["2025-01-01",{"v":79.51020408163265,"d":"80"},{"v":272785.40282055706,"d":"272,785"},{"v":718344.4512773547,"d":"718,344"},{"v":914161.7351096342,"d":"914,162"},{"v":1162892.1998106258,"d":"1,162,892"},{"v":1627688.9910477074,"d":"1,627,689"},{"v":2118719.9988903305,"d":"2,118,720"},{"v":5504241.398431757,"d":"5,504,241"},{"v":2252836.6290180143,"d":"2,252,837"}]
["2025-02-01",{"v":79.59455782312925,"d":"80"},{"v":271626.9990551547,"d":"271,627"},{"v":720174.7535778696,"d":"720,175"},{"v":918043.7917929766,"d":"918,044"},{"v":1169805.832888952,"d":"1,169,806"},{"v":1641236.7147594963,"d":"1,641,237"},{"v":2140313.528742035,"d":"2,140,314"},{"v":5597738.101637996,"d":"5,597,738"},{"v":2276778.0976218027,"d":"2,276,778"}]
["2025-03-01",{"v":79.67074829931973,"d":"80"},{"v":270585.1420724774,"d":"270,585"},{"v":721832.1420518571,"d":"721,832"},{"v":921565.0556519085,"d":"921,565"},{"v":1176087.5299641914,"d":"1,176,088"},{"v":1653575.217623332,"d":"1,653,575"},{"v":2160016.140951825,"d":"2,160,016"},{"v":5683621.206759017,"d":"5,683,621"},{"v":2298632.4595335433,"d":"2,298,632"}]
["2025-04-01",{"v":79.75510204081633,"d":"80"},{"v":269436.0818801148,"d":"269,436"},{"v":723671.3307973591,"d":"723,671"},{"v":925478.551093718,"d":"925,479"},{"v":1183079.6119916497,"d":"1,183,080"},{"v":1667338.3998456325,"d":"1,667,338"},{"v":2182030.5520322104,"d":"2,182,031"},{"v":5780164.90944917,"d":"5,780,165"},{"v":2323060.6120913965,"d":"2,323,061"}]
["2025-05-01",{"v":79.83673469387755,"d":"80"},{"v":268328.81031074445,"d":"268,329"},{"v":725455.7258595992,"d":"725,456"},{"v":929281.8876050621,"d":"929,282"},{"v":1189886.3714031086,"d":"1,189,886"},{"v":1680768.4680526082,"d":"1,680,768"},{"v":2203551.9492577338,"d":"2,203,552"},{"v":5875181.318919567,"d":"5,875,181"},{"v":2346951.989597581,"d":"2,346,952"}]
["2025-06-01",{"v":79.92108843537414,"d":"80"},{"v":267189.3318012057,"d":"267,189"},{"v":727304.1472980907,"d":"727,304"},{"v":933228.1531551658,"d":"933,228"},{"v":1196960.4903782997,"d":"1,196,960"},{"v":1694757.9875209474,"d":"1,694,758"},{"v":2226010.0677542784,"d":"2,226,010"},{"v":5974978.919405324,"d":"5,974,979"},{"v":2371893.6461073305,"d":"2,371,894"}]
["2025-07-01",{"v":80.00272108843538,"d":"80"},{"v":266091.2934513377,"d":"266,091"},{"v":729097.4999900586,"d":"729,097"},{"v":937063.3373462145,"d":"937,063"},{"v":1203847.1123777365,"d":"1,203,847"},{"v":1708408.914872486,"d":"1,708,409"},{"v":2247965.2355458275,"d":"2,247,965"},{"v":6073197.750957193,"d":"6,073,198"},{"v":2396287.2440223903,"d":"2,396,287"}]
["2025-08-01",{"v":80.08707482993198,"d":"80"},{"v":264961.31672572246,"d":"264,961"},{"v":730955.2004694854,"d":"730,955"},{"v":941042.6474089175,"d":"941,043"},{"v":1211004.230826667,"d":"1,211,004"},{"v":1722628.4937310684,"d":"1,722,628"},{"v":2270876.0045218016,"d":"2,270,876"},{"v":6176358.918233726,"d":"6,176,359"},{"v":2421753.1988455006,"d":"2,421,753"}]
["2025-09-01",{"v":80.17142857142858,"d":"80"},{"v":263836.13853140775,"d":"263,836"},{"v":732817.6342679418,"d":"732,818"},{"v":945038.855911613,"d":"945,039"},{"v":1218203.8998154174,"d":"1,218,204"},{"v":1736966.4262350546,"d":"1,736,966"},{"v":2294020.27503364,"d":"2,294,020"},{"v":6281272.412187286,"d":"6,281,272"},{"v":2447489.7868561265,"d":"2,447,490"}]
["2025-10-01",{"v":80.2530612244898,"d":"80"},{"v":262751.880427854,"d":"262,752"},{"v":734624.5818592875,"d":"734,625"},{"v":948922.5772372772,"d":"948,923"},{"v":1225212.7441705198,"d":"1,225,213"},{"v":1750957.3338874686,"d":"1,750,957"},{"v":2316646.2284312323,"d":"2,316,646"},{"v":6384526.205264337,"d":"6,384,526"},{"v":2472660.848745755,"d":"2,472,661"}]
["2025-11-01",{"v":80.3374149659864,"d":"80"},{"v":261636.08477124257,"d":"261,636"},{"v":736496.3650404632,"d":"736,496"},{"v":952952.2484556821,"d":"952,952"},{"v":1232496.8856906567,"d":"1,232,497"},{"v":1765531.055477469,"d":"1,765,531"},{"v":2340256.979033326,"d":"2,340,257"},{"v":6492975.691490745,"d":"6,492,976"},{"v":2498938.445316913,"d":"2,498,938"}]
["2025-12-01",{"v":80.41904761904762,"d":"80"},{"v":260560.86798451145,"d":"260,561"},{"v":738312.3834748095,"d":"738,312"},{"v":956868.4905726232,"d":"956,868"},{"v":1239587.9636631235,"d":"1,239,588"},{"v":1779752.045348986,"d":"1,779,752"},{"v":2363338.965675846,"d":"2,363,339"},{"v":6599709.538474155,"d":"6,599,710"},{"v":2524638.6278481106,"d":"2,524,639"}]
["2026-01-01",{"v":80.50340136054422,"d":"81"},{"v":259454.37662731696,"d":"259,454"},{"v":740193.5629724303,"d":"740,194"},{"v":960931.9047106713,"d":"960,932"},{"v":1246957.5688169564,"d":"1,246,958"},{"v":1794565.4336058907,"d":"1,794,565"},{"v":2387425.598421912,"d":"2,387,426"},{"v":6711814.193648236,"d":"6,711,814"},{"v":2551468.60551537,"d":"2,551,469"}]
["2026-02-01",{"v":80.58775510204082,"d":"81"},{"v":258352.5840690366,"d":"258,353"},{"v":742079.5356123326,"d":"742,080"},{"v":965012.5744430043,"d":"965,013"},{"v":1254370.9877877312,"d":"1,254,371"},{"v":1809502.1179546432,"d":"1,809,502"},{"v":2411757.716849664,"d":"2,411,758"},{"v":6825823.092280069,"d":"6,825,823"},{"v":2578583.712188296,"d":"2,578,584"}]
["2026-03-01",{"v":80.66394557823129,"d":"81"},{"v":257361.6426506896,"d":"257,362"},{"v":743787.33509155,"d":"743,787"},{"v":968713.9925367583,"d":"968,714"},{"v":1261106.7881605092,"d":"1,261,107"},{"v":1823105.6078496228,"d":"1,823,106"},{"v":2433959.102955458,"d":"2,433,959"},{"v":6930548.049312311,"d":"6,930,548"},{"v":2603335.049055401,"d":"2,603,335"}]
["2026-04-01",{"v":80.74829931972789,"d":"81"},{"v":256268.7370449127,"d":"256,269"},{"v":745682.4644658929,"d":"745,682"},{"v":972827.7094913664,"d":"972,828"},{"v":1268604.3271476552,"d":"1,268,604"},{"v":1838279.8402787931,"d":"1,838,280"},{"v":2458765.480662292,"d":"2,458,765"},{"v":7048272.427136246,"d":"7,048,272"},{"v":2631001.353633052,"d":"2,631,001"}]
["2026-05-01",{"v":80.82993197278911,"d":"81"},{"v":255215.57785157746,"d":"255,216"},{"v":747521.1335563568,"d":"747,521"},{"v":976825.6315851666,"d":"976,826"},{"v":1275903.1465641211,"d":"1,275,903"},{"v":1853086.8066635046,"d":"1,853,087"},{"v":2483016.318279783,"d":"2,483,016"},{"v":7164134.439637116,"d":"7,164,134"},{"v":2658059.7292224606,"d":"2,658,060"}]
["2026-06-01",{"v":80.91428571428571,"d":"81"},{"v":254131.7856716598,"d":"254,132"},{"v":749425.7764445962,"d":"749,426"},{"v":980973.7952261446,"d":"980,974"},{"v":1283488.6529423243,"d":"1,283,489"},{"v":1868510.5812351312,"d":"1,868,511"},{"v":2508322.6763729355,"d":"2,508,323"},{"v":7285826.586283007,"d":"7,285,827"},{"v":2686307.606913402,"d":"2,686,308"}]
["2026-07-01",{"v":80.99591836734695,"d":"81"},{"v":253087.4084702694,"d":"253,087"},{"v":751273.6756193911,"d":"751,274"},{"v":985005.1943846082,"d":"985,005"},{"v":1290873.1082058281,"d":"1,290,873"},{"v":1883561.0500264498,"d":"1,883,561"},{"v":2533062.2972905864,"d":"2,533,062"},{"v":7405593.598660261,"d":"7,405,594"},{"v":2713934.776346887,"d":"2,713,935"}]
["2026-08-01",{"v":81.08027210884353,"d":"81"},{"v":252012.653721971,"d":"252,013"},{"v":753187.8797791885,"d":"753,188"},{"v":989188.0931552825,"d":"989,188"},{"v":1298547.6140820107,"d":"1,298,548"},{"v":1899238.4704921495,"d":"1,899,238"},{"v":2558878.7130328356,"d":"2,558,879"},{"v":7531387.2433498325,"d":"7,531,387"},{"v":2742776.4523937474,"d":"2,742,776"}]
["2026-09-01",{"v":81.16462585034013,"d":"81"},{"v":250942.4630006859,"d":"250,942"},{"v":755106.9612262972,"d":"755,107"},{"v":993388.7549207365,"d":"993,389"},{"v":1306267.7464725804,"d":"1,306,268"},{"v":1915046.378638328,"d":"1,915,046"},{"v":2584958.2440259373,"d":"2,584,958"},{"v":7659317.656798515,"d":"7,659,318"},{"v":2771924.636277289,"d":"2,771,925"}]
["2026-10-01",{"v":81.24625850340136,"d":"81"},{"v":249911.19260479268,"d":"249,911"},{"v":756968.8688019237,"d":"756,969"},{"v":997471.1744615067,"d":"997,471"},{"v":1313783.2595344775,"d":"1,313,783"},{"v":1930471.6837155793,"d":"1,930,472"},{"v":2610453.722597152,"d":"2,610,454"},{"v":7785224.24841712,"d":"7,785,224"},{"v":2800432.328913158,"d":"2,800,432"}]
["2026-11-01",{"v":81.33061224489796,"d":"81"},{"v":248849.92589647096,"d":"248,850"},{"v":758897.5840018848,"d":"758,898"},{"v":1001707.0109557953,"d":"1,001,707"},{"v":1321593.9709678742,"d":"1,321,594"},{"v":1946539.5548803133,"d":"1,946,540"},{"v":2637058.8947836217,"d":"2,637,059"},{"v":7917466.413732699,"d":"7,917,466"},{"v":2830193.2364801364,"d":"2,830,193"}]
["2026-12-01",{"v":81.41224489795918,"d":"81"},{"v":247827.2549681293,"d":"247,827"},{"v":760768.8383186017,"d":"760,769"},{"v":1005823.6151104082,"d":"1,005,824"},{"v":1329197.6623076894,"d":"1,329,198"},{"v":1962218.5310209931,"d":"1,962,219"},{"v":2663068.2427869667,"d":"2,663,068"},{"v":8047616.546561182,"d":"8,047,617"},{"v":2859300.1890392965,"d":"2,859,300"}]
["2027-01-01",{"v":81.49659863945578,"d":"81"},{"v":246774.83785799067,"d":"246,775"},{"v":762707.2356326737,"d":"762,707"},{"v":1010094.9208732058,"d":"1,010,095"},{"v":1337100.015532916,"d":"1,337,100"},{"v":1978550.6403285048,"d":"1,978,551"},{"v":2690209.650631261,"d":"2,690,210"},{"v":8184315.786530166,"d":"8,184,316"},{"v":2889686.700348166,"d":"2,889,687"}]
["2027-02-01",{"v":81.58095238095238,"d":"82"},{"v":245726.88991640194,"d":"245,727"},{"v":764650.5718768885,"d":"764,651"},{"v":1014384.3650577358,"d":"1,014,384"},{"v":1345049.3498718378,"d":"1,345,049"},{"v":1995018.686480061,"d":"1,995,019"},{"v":2717627.677755503,"d":"2,717,628"},{"v":8323337.040986295,"d":"8,323,337"},{"v":2920396.1368514807,"d":"2,920,396"}]
["2027-03-01",{"v":81.65714285714286,"d":"82"},{"v":244784.37581809246,"d":"244,784"},{"v":766410.3156587422,"d":"766,410"},{"v":1018275.1544031628,"d":"1,018,275"},{"v":1352272.080627314,"d":"1,352,272"},{"v":2010016.8543586945,"d":"2,010,017"},{"v":2742644.743501417,"d":"2,742,645"},{"v":8451037.554491838,"d":"8,451,038"},{"v":2948428.466469843,"d":"2,948,428"}]
["2027-04-01",{"v":81.74149659863946,"d":"82"},{"v":243744.88052352247,"d":"243,745"},{"v":768363.0871479549,"d":"768,363"},{"v":1022599.3365656968,"d":"1,022,599"},{"v":1360311.6160107695,"d":"1,360,312"},{"v":2026746.8028615485,"d":"2,026,747"},{"v":2770597.1775995684,"d":"2,770,597"},{"v":8594589.425280467,"d":"8,594,589"},{"v":2979762.16668195,"d":"2,979,762"}]
["2027-05-01",{"v":81.82312925170068,"d":"82"},{"v":242743.18923369978,"d":"242,743"},{"v":770257.6810614703,"d":"770,258"},{"v":1026801.799592679,"d":"1,026,802"},{"v":1368138.066404256,"d":"1,368,138"},{"v":2043071.8319037757,"d":"2,043,072"},{"v":2797923.615515619,"d":"2,797,924"},{"v":8735870.347339872,"d":"8,735,870"},{"v":3010407.3519312292,"d":"3,010,407"}]
["2027-06-01",{"v":81.90748299319728,"d":"82"},{"v":241712.36199174845,"d":"241,712"},{"v":772220.2554269145,"d":"772,220"},{"v":1031162.1907964287,"d":"1,031,162"},{"v":1376271.9283332895,"d":"1,376,272"},{"v":2060076.9064937036,"d":"2,060,077"},{"v":2826439.439761422,"d":"2,826,439"},{"v":8884260.473787837,"d":"8,884,260"},{"v":3042399.7175437734,"d":"3,042,400"}]
["2027-07-01",{"v":81.9891156462585,"d":"82"},{"v":240719.02351780975,"d":"240,719"},{"v":774124.3601663234,"d":"774,124"},{"v":1035399.8436353181,"d":"1,035,400"},{"v":1384190.2051812345,"d":"1,384,190"},{"v":2076670.4026720366,"d":"2,076,670"},{"v":2854316.6506741373,"d":"2,854,317"},{"v":9030303.111713117,"d":"9,030,303"},{"v":3073689.094927306,"d":"3,073,689"}]
["2027-08-01",{"v":82.0734693877551,"d":"82"},{"v":239696.79204807658,"d":"239,697"},{"v":776096.786618254,"d":"776,097"},{"v":1039796.7470808928,"d":"1,039,797"},{"v":1392419.5003736818,"d":"1,392,420"},{"v":2093955.1278318109,"d":"2,093,955"},{"v":2883407.2203741586,"d":"2,883,407"},{"v":9183694.561829887,"d":"9,183,695"},{"v":3106353.971739117,"d":"3,106,354"}]
["2027-09-01",{"v":82.1578231292517,"d":"82"},{"v":238678.90156129707,"d":"238,679"},{"v":778074.2387047061,"d":"778,074"},{"v":1044212.3223082226,"d":"1,044,212"},{"v":1400697.7204169992,"d":"1,400,698"},{"v":2111383.718731408,"d":"2,111,384"},{"v":2912794.2747845473,"d":"2,912,794"},{"v":9339691.565345902,"d":"9,339,692"},{"v":3139365.9865158224,"d":"3,139,366"}]
["2027-10-01",{"v":82.23945578231293,"d":"82"},{"v":237698.02936309995,"d":"237,698"},{"v":779992.77792343,"d":"779,993"},{"v":1048503.6058245578,"d":"1,048,504"},{"v":1408756.5292193983,"d":"1,408,757"},{"v":2128390.48073982,"d":"2,128,390"},{"v":2941523.2046180386,"d":"2,941,523"},{"v":9493220.741762547,"d":"9,493,221"},{"v":3171652.6076756557,"d":"3,171,653"}]
["2027-11-01",{"v":82.32380952380953,"d":"82"},{"v":236688.62677265392,"d":"236,689"},{"v":781980.1567822485,"d":"781,980"},{"v":1052956.155383539,"d":"1,052,956"},{"v":1417131.8762561274,"d":"1,417,132"},{"v":2146105.686987731,"d":"2,146,106"},{"v":2971502.564402091,"d":"2,971,503"},{"v":9654475.45025276,"d":"9,654,475"},{"v":3205358.5676865643,"d":"3,205,359"}]
["2027-12-01",{"v":82.40544217687075,"d":"82"},{"v":235715.93378591698,"d":"235,716"},{"v":783908.3270318486,"d":"783,908"},{"v":1057283.3724604575,"d":"1,057,283"},{"v":1425285.2377359571,"d":"1,425,285"},{"v":2163392.127315797,"d":"2,163,392"},{"v":3000810.5349003035,"d":"3,000,811"},{"v":9813179.156284312,"d":"9,813,179"},{"v":3238323.8855885966,"d":"3,238,324"}]
["2028-01-01",{"v":82.48979591836735,"d":"82"},{"v":234714.9483136754,"d":"234,715"},{"$f":"($A183-$A182)/365*D182*D$1+D182","v":{"v":785905.6824952448,"d":"785,906"}},{"$f":"($A183-$A182)/365*E182*E$1+E182","v":{"v":1061773.205959947,"d":"1,061,773"}},{"$f":"($A183-$A182)/365*F182*F$1+F182","v":{"v":1433758.8513411272,"d":"1,433,759"}},{"$f":"($A183-$A182)/365*G182*G$1+G182","v":{"v":2181398.6623371267,"d":"2,181,399"}},{"$f":"($A183-$A182)/365*H182*H$1+H182","v":{"v":3031394.1381601095,"d":"3,031,394"}},{"$f":"($A183-$A182)/365*I182*I$1+I182","v":{"v":9979868.774829416,"d":"9,979,869"}},{"$f":"($A183-$A182)/365*J182*J$1+J182","v":{"v":3272738.3782495726,"d":"3,272,738"}}]
["2028-02-01",{"v":82.57414965986395,"d":"83"},{"v":233718.21360165844,"d":"233,718"},{"v":787908.1271109176,"d":"787,908"},{"v":1066282.1058756674,"d":"1,066,282"},{"v":1442282.8423203332,"d":"1,442,283"},{"v":2199555.070929401,"d":"2,199,555"},{"v":3062289.442801084,"d":"3,062,289"},{"v":10149389.833470354,"d":"10,149,390"},{"v":3307518.60248866,"d":"3,307,519"}]
["2028-03-01",{"v":82.65306122448979,"d":"83"},{"v":232789.74398598063,"d":"232,790"},{"v":789786.1547015655,"d":"789,786"},{"v":1070518.02109079,"d":"1,070,518"},{"v":1450304.3057995394,"d":"1,450,304"},{"v":2216681.469591268,"d":"2,216,681"},{"v":3091486.0654338174,"d":"3,091,486"},{"v":10310667.80890632,"d":"10,310,668"},{"v":3340400.71325172,"d":"3,340,401"}]
["2028-04-01",{"v":82.73741496598639,"d":"83"},{"v":231801.18479919084,"d":"231,801"},{"v":791798.4865477914,"d":"791,798"},{"v":1075064.0565228192,"d":"1,075,064"},{"v":1458926.6629052518,"d":"1,458,927"},{"v":2235131.547138167,"d":"2,235,132"},{"v":3122993.813826732,"d":"3,122,994"},{"v":10485807.919632949,"d":"10,485,808"},{"v":3375900.002356962,"d":"3,375,900"}]
["2028-05-01",{"v":82.81904761904762,"d":"83"},{"v":230848.57719042705,"d":"230,849"},{"v":793750.8663776353,"d":"793,751"},{"v":1079482.1279879815,"d":"1,079,482"},{"v":1467320.4875411452,"d":"1,467,320"},{"v":2253135.0724767596,"d":"2,253,135"},{"v":3153795.944593242,"d":"3,153,796"},{"v":10658177.36488719,"d":"10,658,177"},{"v":3410619.243413194,"d":"3,410,619"}]
["2028-06-01",{"v":82.90340136054422,"d":"83"},{"v":229868.26131468688,"d":"229,868"},{"v":795773.3000919673,"d":"795,773"},{"v":1084066.2301753277,"d":"1,084,066"},{"v":1476044.009343787,"d":"1,476,044"},{"v":2271888.563847128,"d":"2,271,889"},{"v":3185938.7416175893,"d":"3,185,939"},{"v":10839220.377660615,"d":"10,839,220"},{"v":3446864.7627215544,"d":"3,446,865"}]
["2028-07-01",{"v":82.98503401360544,"d":"83"},{"v":228923.59722709228,"d":"228,924"},{"v":797735.4808319202,"d":"797,735"},{"v":1088521.2968746785,"d":"1,088,521"},{"v":1484536.3173427514,"d":"1,484,536"},{"v":2290188.1594024994,"d":"2,290,188"},{"v":3217361.69906916,"d":"3,217,362"},{"v":11017399.342772845,"d":"11,017,399"},{"v":3482313.8365986273,"d":"3,482,314"}]
["2028-08-01",{"v":83.06938775510204,"d":"83"},{"v":227951.45592379913,"d":"227,951"},{"v":799768.0671255467,"d":"799,768"},{"v":1093143.7845737352,"d":"1,093,144"},{"v":1493362.190791063,"d":"1,493,362"},{"v":2309250.054274458,"d":"2,309,250"},{"v":3250152.344330906,"d":"3,250,152"},{"v":11204544.208321316,"d":"11,204,544"},{"v":3519321.2726077824,"d":"3,519,321"}]
["2028-09-01",{"v":83.15374149659864,"d":"83"},{"v":226983.44289179397,"d":"226,983"},{"v":801805.8323376748,"d":"801,806"},{"v":1097785.9020150758,"d":"1,097,786"},{"v":1502240.5358705607,"d":"1,502,241"},{"v":2328470.606780994,"d":"2,328,471"},{"v":3283277.184662169,"d":"3,283,277"},{"v":11394867.972955815,"d":"11,394,868"},{"v":3556721.9960643747,"d":"3,556,722"}]
["2028-10-01",{"v":83.23537414965986,"d":"83"},{"v":226050.63422237564,"d":"226,051"},{"v":803782.8878146718,"d":"803,783"},{"v":1102297.3509274665,"d":"1,102,297"},{"v":1510883.5636111859,"d":"1,510,884"},{"v":2347225.9590657507,"d":"2,347,226"},{"v":3315660.1925108917,"d":"3,315,660"},{"v":11582180.87114139,"d":"11,582,181"},{"v":3593300.890067499,"d":"3,593,301"}]
["2028-11-01",{"v":83.31972789115646,"d":"83"},{"v":225090.69317293816,"d":"225,091"},{"v":805830.8825699256,"d":"805,831"},{"v":1106978.3396779804,"d":"1,106,978"},{"v":1519866.0768523812,"d":"1,519,866"},{"v":2366762.5959524405,"d":"2,366,763"},{"v":3349452.6744729206,"d":"3,349,453"},{"v":11778919.28593886,"d":"11,778,919"},{"v":3631487.8137597935,"d":"3,631,488"}]
["2028-12-01",{"v":83.40136054421768,"d":"83"},{"v":224165.66292702197,"d":"224,166"},{"v":807817.8628283172,"d":"807,818"},{"v":1111527.5657314516,"d":"1,111,528"},{"v":1528610.5118150935,"d":"1,528,611"},{"v":2385826.382341756,"d":"2,385,826"},{"v":3382488.3720841603,"d":"3,382,488"},{"v":11972545.35639265,"d":"11,972,545"},{"v":3668835.6323298546,"d":"3,668,836"}]
[{"$f":"EDATE(A194,1)","v":"2029-01-01"},{"v":83.48571428571428,"d":"83"},{"v":223213.72655020858,"d":"223,214"},{"v":809876.1384788112,"d":"809,876"},{"v":1116247.7512845579,"d":"1,116,248"},{"v":1537698.4154058846,"d":"1,537,698"},{"v":2405684.301655603,"d":"2,405,684"},{"v":3416961.9522051276,"d":"3,416,962"},{"v":12175914.61998069,"d":"12,175,915"},{"v":3707825.282965184,"d":"3,707,825"}]
["2029-02-01",{"$f":"(A196-$B$2)/367.5","v":{"v":83.57006802721088,"d":"84"}},{"$f":"(A196-A195)/365*C195*C$1+C195","v":{"v":222265.83264294057,"d":"222,266"}},{"v":811939.6585028806,"d":"811,940"},{"v":1120987.9814612458,"d":"1,120,988"},{"v":1546840.3484509005,"d":"1,546,840"},{"v":2425707.5041444516,"d":"2,425,708"},{"v":3451786.8794988347,"d":"3,451,787"},{"v":12382738.375169402,"d":"12,382,738"},{"v":3747229.286547609,"d":"3,747,229"}]
["2029-03-01",{"v":83.64625850340136,"d":"84"},{"v":221413.3061615704,"d":"221,413"},{"v":813808.2319635447,"d":"813,808"},{"v":1125287.6613901383,"d":"1,125,288"},{"v":1555146.6692261437,"d":"1,555,147"},{"v":2443943.507956431,"d":"2,443,944"},{"v":3483562.2326909336,"d":"3,483,562"},{"v":12572720.114624055,"d":"12,572,720"},{"v":3783198.2310310556,"d":"3,783,198"}]
["2029-04-01",{"v":83.73061224489796,"d":"84"},{"v":220473.05787513085,"d":"220,473"},{"v":815881.770746356,"d":"815,882"},{"v":1130066.2802261787,"d":"1,130,066"},{"v":1564392.3357253787,"d":"1,564,392"},{"v":2464285.152825394,"d":"2,464,285"},{"v":3519065.9354460305,"d":"3,519,066"},{"v":12786284.127529997,"d":"12,786,284"},{"v":3823403.2421283848,"d":"3,823,403"}]
["2029-05-01",{"v":83.81224489795919,"d":"84"},{"v":219567.0042126303,"d":"219,567"},{"v":817893.5340166895,"d":"817,894"},{"v":1134710.3882271082,"d":"1,134,710"},{"v":1573392.9491637987,"d":"1,573,393"},{"v":2484134.46337144,"d":"2,484,134"},{"v":3553774.530973717,"d":"3,553,775"},{"v":12996469.62003734,"d":"12,996,470"},{"v":3862724.8034086227,"d":"3,862,725"}]
["2029-06-01",{"v":83.89659863945579,"d":"84"},{"v":218634.59638652188,"d":"218,635"},{"v":819977.48192528,"d":"819,977"},{"v":1139529.021382593,"d":"1,139,529"},{"v":1582747.0935464986,"d":"1,582,747"},{"v":2504810.629124104,"d":"2,504,811"},{"v":3589993.822083915,"d":"3,589,994"},{"v":13217231.569747563,"d":"13,217,232"},{"v":3903774.963644251,"d":"3,903,775"}]
["2029-07-01",{"v":83.97823129251701,"d":"84"},{"v":217736.0980452074,"d":"217,736"},{"v":821999.3442094793,"d":"821,999"},{"v":1144212.0173608777,"d":"1,144,212"},{"v":1591853.3097011496,"d":"1,591,853"},{"v":2524986.364054583,"d":"2,524,986"},{"v":3625401.980329126,"d":"3,625,402"},{"v":13434501.129798207,"d":"13,434,501"},{"v":3943923.103072973,"d":"3,943,923"}]
["2029-08-01",{"v":84.06258503401361,"d":"84"},{"v":216811.46530008392,"d":"216,811"},{"v":824093.753497465,"d":"824,094"},{"v":1149070.9999003555,"d":"1,149,071"},{"v":1601317.2047204687,"d":"1,601,317"},{"v":2546002.5519285495,"d":"2,546,003"},{"v":3662351.2827039873,"d":"3,662,351"},{"v":13662703.614742724,"d":"13,662,704"},{"v":3985836.1783185294,"d":"3,985,836"}]
["2029-09-01",{"v":84.14693877551021,"d":"84"},{"v":215890.75907757672,"d":"215,891"},{"v":826193.4992255545,"d":"826,193"},{"v":1153950.6164752748,"d":"1,153,951"},{"v":1610837.3645403136,"d":"1,610,837"},{"v":2567193.663579944,"d":"2,567,194"},{"v":3699677.164270176,"d":"3,699,677"},{"v":13894782.415869862,"d":"13,894,782"},{"v":4028194.6744890455,"d":"4,028,195"}]
["2029-10-01",{"v":84.22857142857143,"d":"84"},{"v":215003.53677999764,"d":"215,004"},{"v":828230.6886756998,"d":"828,231"},{"v":1158692.8792827073,"d":"1,158,693"},{"v":1620105.1959527372,"d":"1,620,105"},{"v":2587871.881034533,"d":"2,587,872"},{"v":3736167.130821882,"d":"3,736,167"},{"v":14123189.798048545,"d":"14,123,190"},{"v":4069622.4009700944,"d":"4,069,622"}]
["2029-11-01",{"v":84.31292517006803,"d":"84"},{"v":214090.50806216476,"d":"214,091"},{"v":830340.975087942,"d":"830,341"},{"v":1163613.35589336,"d":"1,163,613"},{"v":1629737.0542410042,"d":"1,629,737"},{"v":2609411.483156678,"d":"2,609,411"},{"v":3774245.327333272,"d":"3,774,245"},{"v":14363090.556261972,"d":"14,363,091"},{"v":4112871.3146672095,"d":"4,112,871"}]
["2029-12-01",{"v":84.39455782312925,"d":"84"},{"v":213210.68405642983,"d":"213,211"},{"v":832388.3911908985,"d":"832,388"},{"v":1168395.3285888121,"d":"1,168,395"},{"v":1639113.6235941716,"d":"1,639,114"},{"v":2630429.756473063,"d":"2,630,430"},{"v":3811470.7606987506,"d":"3,811,471"},{"v":14599196.1544471,"d":"14,599,196"},{"v":4155169.892974475,"d":"4,155,170"}]
["2030-01-01",{"v":84.47891156462585,"d":"84"},{"v":212305.26882276553,"d":"212,305"},{"v":834509.2712013301,"d":"834,509"},{"v":1173357.0073814495,"d":"1,173,357"},{"v":1648858.4908906082,"d":"1,648,858"},{"v":2652323.5800351594,"d":"2,652,324"},{"v":3850316.4353009406,"d":"3,850,316"},{"v":14847182.500084283,"d":"14,847,183"},{"v":4199327.941656158,"d":"4,199,328"}]
["2030-02-01",{"v":84.56326530612245,"d":"85"},{"v":211403.6985031072,"d":"211,404"},{"v":836635.5550978157,"d":"836,636"},{"v":1178339.756316905,"d":"1,178,340"},{"v":1658661.293425492,"d":"1,658,661"},{"v":2674399.632188986,"d":"2,674,400"},{"v":3889558.016504556,"d":"3,889,558"},{"v":15099381.21652407,"d":"15,099,381"},{"v":4243955.269167251,"d":"4,243,955"}]
["2030-03-01",{"v":84.63945578231292,"d":"85"},{"v":210592.8350019994,"d":"210,593"},{"v":838560.9629506435,"d":"838,561"},{"v":1182859.4156562027,"d":"1,182,859"},{"v":1667568.077357311,"d":"1,667,568"},{"v":2694505.255725223,"d":"2,694,505"},{"v":3925363.2629030636,"d":"3,925,363"},{"v":15331042.955736494,"d":"15,331,043"},{"v":4284692.19231602,"d":"4,284,692"}]
["2030-04-01",{"v":84.72380952380952,"d":"85"},{"v":209698.53666157994,"d":"209,699"},{"v":840697.5703356959,"d":"840,698"},{"v":1187882.5172843318,"d":"1,187,883"},{"v":1677482.1122281752,"d":"1,677,482"},{"v":2716932.398100273,"d":"2,716,932"},{"v":3965369.7049249797,"d":"3,965,370"},{"v":15591460.67169695,"d":"15,591,461"},{"v":4330226.707459245,"d":"4,330,227"}]
["2030-05-01",{"v":84.80544217687074,"d":"85"},{"v":208836.76185338167,"d":"208,837"},{"v":842770.5232488523,"d":"842,771"},{"v":1192764.226259473,"d":"1,192,764"},{"v":1687133.3791752413,"d":"1,687,133"},{"v":2738816.7302931906,"d":"2,738,817"},{"v":4004480.200644788,"d":"4,004,480"},{"v":15847758.655341282,"d":"15,847,759"},{"v":4374760.664264673,"d":"4,374,761"}]
["2030-06-01",{"v":84.88979591836734,"d":"85"},{"v":207949.9208098947,"d":"207,950"},{"v":844917.8563628837,"d":"844,918"},{"v":1197829.3894120818,"d":"1,197,829"},{"v":1697163.7337856805,"d":"1,697,164"},{"v":2761612.6898182062,"d":"2,761,613"},{"v":4045292.985155469,"d":"4,045,293"},{"v":16116953.459897764,"d":"16,116,953"},{"v":4421252.359997726,"d":"4,421,252"}]
["2030-07-01",{"v":84.97142857142858,"d":"85"},{"v":207095.33209423762,"d":"207,095"},{"v":847001.2154607648,"d":"847,001"},{"v":1202751.9759439123,"d":"1,202,752"},{"v":1706928.237459516,"d":"1,706,928"},{"v":2783856.9125800296,"d":"2,783,857"},{"v":4085191.7652830295,"d":"4,085,192"},{"v":16381889.681156358,"d":"16,381,890"},{"v":4466722.464666118,"d":"4,466,722"}]
["2030-08-01",{"v":85.05578231292517,"d":"85"},{"v":206215.88616342648,"d":"206,216"},{"v":849159.3281467333,"d":"849,159"},{"v":1207859.5528280577,"d":"1,207,860"},{"v":1717076.2765698917,"d":"1,717,076"},{"v":2807027.7544989833,"d":"2,807,028"},{"v":4126827.1443702974,"d":"4,126,827"},{"v":16660157.396288328,"d":"16,660,157"},{"v":4514191.461872655,"d":"4,514,191"}]
["2030-09-01",{"v":85.14013605442177,"d":"85"},{"v":205340.17486602016,"d":"205,340"},{"v":851322.9395855729,"d":"851,323"},{"v":1212988.819422259,"d":"1,212,989"},{"v":1727284.6478579922,"d":"1,727,285"},{"v":2830391.454000813,"d":"2,830,391"},{"v":4168886.8621156607,"d":"4,168,887"},{"v":16943151.850691035,"d":"16,943,152"},{"v":4562164.9242018005,"d":"4,562,165"}]
["2030-10-01",{"v":85.221768707483,"d":"85"},{"v":204496.31113369405,"d":"204,496"},{"v":853422.0920393455,"d":"853,422"},{"v":1217973.7049815285,"d":"1,217,974"},{"v":1737222.4499415588,"d":"1,737,222"},{"v":2853189.6755755045,"d":"2,853,190"},{"v":4210004.650344746,"d":"4,210,005"},{"v":17221669.41535993,"d":"17,221,669"},{"v":4609084.235683498,"d":"4,609,084"}]
["2030-11-01",{"v":85.3061224489796,"d":"85"},{"v":203627.9021412085,"d":"203,628"},{"v":855596.5647670075,"d":"855,597"},{"v":1223145.9220848747,"d":"1,223,146"},{"v":1747550.5943699784,"d":"1,747,551"},{"v":2876937.5940259113,"d":"2,876,938"},{"v":4252912.0950003145,"d":"4,252,912"},{"v":17514201.882141385,"d":"17,514,202"},{"v":4658066.147687003,"d":"4,658,066"}]
["2030-12-01",{"v":85.38775510204081,"d":"85"},{"v":202791.07514610764,"d":"202,791"},{"v":857706.2549267069,"d":"857,706"},{"v":1228172.549161936,"d":"1,228,173"},{"v":1757604.9950499153,"d":"1,757,605"},{"v":2900110.7351942295,"d":"2,900,111"},{"v":4294858.625252373,"d":"4,294,859"},{"v":17802106.57061494,"d":"17,802,107"},{"v":4705971.749548583,"d":"4,705,972"}]
["2031-01-01",{"v":85.47210884353741,"d":"85"},{"v":201929.90756672007,"d":"201,930"},{"v":859891.6434666571,"d":"859,892"},{"v":1233388.0764255002,"d":"1,233,388"},{"v":1768054.3178971983,"d":"1,768,054"},{"v":2924249.1911216816,"d":"2,924,249"},{"v":4338630.883022068,"d":"4,338,631"},{"v":18104498.517841827,"d":"18,104,499"},{"v":4755983.30983702,"d":"4,755,983"}]
["2031-02-01",{"v":85.55646258503401,"d":"86"},{"v":201072.39700034083,"d":"201,072"},{"v":862082.6002568599,"d":"862,083"},{"v":1238625.75181854,"d":"1,238,626"},{"v":1778565.7641159296,"d":"1,778,566"},{"v":2948588.5583617575,"d":"2,948,589"},{"v":4382849.258049033,"d":"4,382,849"},{"v":18412026.985816125,"d":"18,412,027"},{"v":4806526.355713471,"d":"4,806,526"}]
["2031-03-01",{"v":85.63265306122449,"d":"86"},{"v":200301.16040910664,"d":"200,301"},{"v":864066.5711725196,"d":"864,067"},{"v":1243376.6451131864,"d":"1,243,377"},{"v":1788116.4186300864,"d":"1,788,116"},{"v":2970755.481660784,"d":"2,970,755"},{"v":4423195.486835456,"d":"4,423,195"},{"v":18694512.87929714,"d":"18,694,513"},{"v":4852663.292214137,"d":"4,852,663"}]
["2031-04-01",{"v":85.71700680272109,"d":"86"},{"v":199450.56644024604,"d":"199,451"},{"v":866268.1654497536,"d":"866,268"},{"v":1248656.7377157218,"d":"1,248,657"},{"v":1798747.138160024,"d":"1,798,747"},{"v":2995481.934135539,"d":"2,995,482"},{"v":4468275.72576978,"d":"4,468,276"},{"v":19012063.509027667,"d":"19,012,064"},{"v":4904233.780885543,"d":"4,904,234"}]
["2031-05-01",{"v":85.79863945578231,"d":"86"},{"v":198630.90657816283,"d":"198,631"},{"v":868404.1691453832,"d":"868,404"},{"v":1253788.203761129,"d":"1,253,788"},{"v":1809096.0942973832,"d":"1,809,096"},{"v":3019609.9256050144,"d":"3,019,610"},{"v":4512346.3904623035,"d":"4,512,346"},{"v":19324590.580408946,"d":"19,324,591"},{"v":4954671.07900332,"d":"4,954,671"}]
["2031-06-01",{"v":85.8829931972789,"d":"86"},{"v":197787.4054680364,"d":"197,787"},{"v":870616.8153845755,"d":"870,617"},{"v":1259112.5098318954,"d":"1,259,113"},{"v":1819851.5423100553,"d":"1,819,852"},{"v":3044743.007670735,"d":"3,044,743"},{"v":4558335.2358664675,"d":"4,558,335"},{"v":19652843.89985699,"d":"19,652,844"},{"v":5007325.630404041,"d":"5,007,326"}]
["2031-07-01",{"v":85.96462585034014,"d":"86"},{"v":196974.58051405815,"d":"196,975"},{"v":872763.5417786745,"d":"872,764"},{"v":1264286.9448038072,"d":"1,264,287"},{"v":1830321.9210466337,"d":"1,830,322"},{"v":3069267.786965398,"d":"3,069,268"},{"v":4603294.158740767,"d":"4,603,294"},{"v":19975904.34752587,"d":"19,975,904"},{"v":5058823.170463779,"d":"5,058,823"}]
["2031-08-01",{"v":86.04897959183674,"d":"86"},{"v":196138.1131173546,"d":"196,138"},{"v":874987.2954604668,"d":"874,987"},{"v":1269655.8345694123,"d":"1,269,656"},{"v":1841203.5609608013,"d":"1,841,204"},{"v":3094814.1856963593,"d":"3,094,814"},{"v":4650209.923865467,"d":"4,650,210"},{"v":20315221.0789085,"d":"20,315,221"},{"v":5112584.572665664,"d":"5,112,585"}]
["2031-09-01",{"v":86.13333333333334,"d":"86"},{"v":195305.1978424727,"d":"195,305"},{"v":877216.7151447907,"d":"877,217"},{"v":1275047.5237299125,"d":"1,275,048"},{"v":1852149.8944602122,"d":"1,852,150"},{"v":3120573.2144529223,"d":"3,120,573"},{"v":4697603.844185411,"d":"4,697,604"},{"v":20660301.546550233,"d":"20,660,302"},{"v":5166917.310980578,"d":"5,166,917"}]
["2031-10-01",{"v":86.21496598639456,"d":"86"},{"v":194502.5737417502,"d":"194,503"},{"v":879379.7152643258,"d":"879,380"},{"v":1280287.4450603095,"d":"1,280,287"},{"v":1862806.099332449,"d":"1,862,806"},{"v":3145708.7904816666,"d":"3,145,709"},{"v":4743936.375251349,"d":"4,743,936"},{"v":20999922.941835992,"d":"20,999,923"},{"v":5220056.162105407,"d":"5,220,056"}]
["2031-11-01",{"v":86.29931972789116,"d":"86"},{"v":193676.60390805238,"d":"193,677"},{"v":881620.3265936294,"d":"881,620"},{"v":1285724.282155771,"d":"1,285,724"},{"v":1873880.864361357,"d":"1,873,881"},{"v":3171891.4296747716,"d":"3,171,891"},{"v":4792285.535021034,"d":"4,792,286"},{"v":21356633.96166992,"d":"21,356,634"},{"v":5275531.028371912,"d":"5,275,531"}]
["2031-12-01",{"v":86.38095238095238,"d":"86"},{"v":192880.67265911517,"d":"192,881"},{"v":883794.1849331753,"d":"883,794"},{"v":1291008.0805755893,"d":"1,291,008"},{"v":1884662.096731655,"d":"1,884,662"},{"v":3197440.363382289,"d":"3,197,440"},{"v":4839551.912900694,"d":"4,839,552"},{"v":21707701.91720422,"d":"21,707,702"},{"v":5329786.910757586,"d":"5,329,787"}]
["2032-01-01",{"v":86.46530612244898,"d":"86"},{"v":192061.59035056276,"d":"192,062"},{"v":886046.0440893064,"d":"886,046"},{"v":1296490.4436574858,"d":"1,296,490"},{"v":1895866.8001560597,"d":"1,895,867"},{"v":3224053.5793383312,"d":"3,224,054"},{"v":4888875.565273271,"d":"4,888,876"},{"v":22076435.484017003,"d":"22,076,435"},{"v":5386427.9136359915,"d":"5,386,428"}]
["2032-02-01",{"v":86.54965986394558,"d":"87"},{"v":191245.9863367453,"d":"191,246"},{"v":888303.6408591778,"d":"888,304"},{"v":1301996.088007264,"d":"1,301,996"},{"v":1907138.1178446587,"d":"1,907,138"},{"v":3250888.304746632,"d":"3,250,888"},{"v":4938701.913500166,"d":"4,938,702"},{"v":22451432.470320854,"d":"22,451,432"},{"v":5443670.854877185,"d":"5,443,671"}]
["2032-03-01",{"v":86.62857142857143,"d":"87"},{"v":190486.24200746234,"d":"190,486"},{"v":890420.9673456092,"d":"890,421"},{"v":1307168.4012335944,"d":"1,307,168"},{"v":1917744.9408014386,"d":"1,917,745"},{"v":3276200.7008071523,"d":"3,276,201"},{"v":4985788.715305592,"d":"4,985,789"},{"v":22808194.958890337,"d":"22,808,195"},{"v":5497789.791010464,"d":"5,497,790"}]
["2032-04-01",{"v":86.71292517006803,"d":"87"},{"v":189677.3278290745,"d":"189,677"},{"v":892689.7111802158,"d":"892,690"},{"v":1312719.3903347233,"d":"1,312,719"},{"v":1929146.3285316827,"d":"1,929,146"},{"v":3303469.461708665,"d":"3,303,469"},{"v":5036602.781116378,"d":"5,036,603"},{"v":23195621.832164638,"d":"23,195,622"},{"v":5556216.2032839,"d":"5,556,216"}]
["2032-05-01",{"v":86.79455782312925,"d":"87"},{"v":188897.83196128378,"d":"188,898"},{"v":894890.863892715,"d":"894,891"},{"v":1318114.127555277,"d":"1,318,114"},{"v":1940245.5265862485,"d":"1,940,246"},{"v":3330078.2294276333,"d":"3,330,078"},{"v":5086278.8633410875,"d":"5,086,279"},{"v":23576919.72529611,"d":"23,576,920"},{"v":5613358.775512839,"d":"5,613,359"}]
["2032-06-01",{"v":86.87891156462585,"d":"87"},{"v":188095.66308583177,"d":"188,096"},{"v":897170.9967787978,"d":"897,171"},{"v":1323711.5985079089,"d":"1,323,712"},{"v":1951780.6849223915,"d":"1,951,781"},{"v":3357795.4284988693,"d":"3,357,795"},{"v":5138117.102715413,"d":"5,138,117"},{"v":23977404.389123056,"d":"23,977,404"},{"v":5673013.3688174235,"d":"5,673,013"}]
["2032-07-01",{"v":86.96054421768707,"d":"87"},{"v":187322.66721013657,"d":"187,323"},{"v":899383.1992366086,"d":"899,383"},{"v":1329151.5091867086,"d":"1,329,152"},{"v":1963010.108041123,"d":"1,963,010"},{"v":3384841.7807174628,"d":"3,384,842"},{"v":5188794.422084661,"d":"5,188,794"},{"v":24371553.502368916,"d":"24,371,554"},{"v":5731357.134488707,"d":"5,731,357"}]
["2032-08-01",{"v":87.04489795918367,"d":"87"},{"v":186527.18739047708,"d":"186,527"},{"v":901674.7783469922,"d":"901,675"},{"v":1334795.8512120221,"d":"1,334,796"},{"v":1974680.6064916688,"d":"1,974,681"},{"v":3413014.7925799824,"d":"3,413,015"},{"v":5241677.477564538,"d":"5,241,677"},{"v":24785536.055011895,"d":"24,785,536"},{"v":5792265.726405677,"d":"5,792,266"}]
["2032-09-01",{"v":87.12925170068027,"d":"87"},{"v":185735.08563580518,"d":"185,735"},{"v":903972.1962753832,"d":"903,972"},{"v":1340464.1623610046,"d":"1,340,464"},{"v":1986420.4884535507,"d":"1,986,420"},{"v":3441422.296524799,"d":"3,441,422"},{"v":5295099.505555059,"d":"5,295,100"},{"v":25206550.640055932,"d":"25,206,551"},{"v":5853821.609441008,"d":"5,853,822"}]
["2032-10-01",{"v":87.21088435374149,"d":"87"},{"v":184971.79076332928,"d":"184,972"},{"v":906201.1688141444,"d":"906,201"},{"v":1345972.9191926252,"d":"1,345,973"},{"v":1997849.2090720506,"d":"1,997,849"},{"v":3469142.2459817384,"d":"3,469,142"},{"v":5347325.144513958,"d":"5,347,325"},{"v":25620904.89715274,"d":"25,620,905"},{"v":5914024.886616418,"d":"5,914,025"}]
["2032-11-01",{"v":87.29523809523809,"d":"87"},{"v":184186.294117622,"d":"184,186"},{"v":908510.1197374243,"d":"908,510"},{"v":1351688.6946028953,"d":"1,351,689"},{"v":2009726.8331369448,"d":"2,009,727"},{"v":3498016.9148674714,"d":"3,498,017"},{"v":5401823.910370374,"d":"5,401,824"},{"v":26056109.309104376,"d":"26,056,109"},{"v":5976874.73525665,"d":"5,976,875"}]
["2032-12-01",{"v":87.37687074829932,"d":"87"},{"v":183429.36414179613,"d":"183,429"},{"v":910750.2816765029,"d":"910,750"},{"v":1357243.5796492086,"d":"1,357,244"},{"v":2021289.645053623,"d":"2,021,290"},{"v":3526192.72234613,"d":"3,526,193"},{"v":5455102.173595945,"d":"5,455,102"},{"v":26484428.914185543,"d":"26,484,429"},{"v":6038343.544922635,"d":"6,038,344"}]
["2033-01-01",{"v":87.46122448979592,"d":"87"},{"v":182650.41752694742,"d":"182,650"},{"v":913070.8234900896,"d":"913,071"},{"v":1363007.2167682669,"d":"1,363,007"},{"v":2033306.6273269556,"d":"2,033,307"},{"v":3555542.2387584243,"d":"3,555,542"},{"v":5510699.379310403,"d":"5,510,699"},{"v":26934301.405330613,"d":"26,934,301"},{"v":6102514.559605874,"d":"6,102,515"}]
["2033-02-01",{"v":87.54557823129252,"d":"88"},{"v":181874.77876758642,"d":"181,875"},{"v":915397.2779170644,"d":"915,397"},{"v":1368795.3296065978,"d":"1,368,795"},{"v":2045395.053029146,"d":"2,045,395"},{"v":3585136.03963883,"d":"3,585,136"},{"v":5566863.219559813,"d":"5,566,863"},{"v":27391815.566188283,"d":"27,391,816"},{"v":6167367.536005078,"d":"6,167,368"}]
["2033-03-01",{"v":87.621768707483,"d":"88"},{"v":181177.17687642307,"d":"181,177"},{"v":917503.9456251474,"d":"917,504"},{"v":1374045.503473582,"d":"1,374,046"},{"v":2056378.5442728093,"d":"2,056,379"},{"v":3612088.404824498,"d":"3,612,088"},{"v":5618108.86453987,"d":"5,618,109"},{"v":27812073.55843665,"d":"27,812,074"},{"v":6226566.929356307,"d":"6,226,567"}]
["2033-04-01",{"v":87.70612244897958,"d":"88"},{"v":180407.7943444821,"d":"180,408"},{"v":919841.6954044115,"d":"919,842"},{"v":1379880.491228059,"d":"1,379,880"},{"v":2068604.1372620477,"d":"2,068,604"},{"v":3642152.855711777,"d":"3,642,153"},{"v":5675367.398720934,"d":"5,675,367"},{"v":28284497.821621053,"d":"28,284,498"},{"v":6292738.241882218,"d":"6,292,738"}]
["2033-05-01",{"v":87.78775510204082,"d":"88"},{"v":179666.39244991573,"d":"179,666"},{"$f":"($A247-$A246)/365*D246*D$1+D246","v":{"v":922109.7982149977,"d":"922,110"}},{"$f":"($A247-$A246)/365*E246*E$1+E246","v":{"v":1385551.2329728317,"d":"1,385,551"}},{"$f":"($A247-$A246)/365*F246*F$1+F246","v":{"v":2080505.6953120485,"d":"2,080,506"}},{"$f":"($A247-$A246)/365*G246*G$1+G246","v":{"v":3671489.6485769623,"d":"3,671,490"}},{"$f":"($A247-$A246)/365*H246*H$1+H246","v":{"v":5731343.625119277,"d":"5,731,344"}},{"$f":"($A247-$A246)/365*I246*I$1+I246","v":{"v":28749448.47074359,"d":"28,749,448"}},{"$f":"($A247-$A246)/365*J246*J$1+J246","v":{"v":6357455.530833651,"d":"6,357,456"}}]
["2033-06-01",{"v":87.87210884353742,"d":"88"},{"v":178903.42557786815,"d":"178,903"},{"v":924459.2834542852,"d":"924,459"},{"v":1391435.0806744972,"d":"1,391,435"},{"v":2092874.7291718489,"d":"2,092,875"},{"v":3702048.513104022,"d":"3,702,049"},{"v":5789756.223161588,"d":"5,789,756"},{"v":29237795.266684987,"d":"29,237,795"},{"v":6425017.829861868,"d":"6,425,018"}]
["2033-07-01",{"v":87.95374149659864,"d":"88"},{"v":178168.20602069882,"d":"178,168"},{"v":926738.7720984191,"d":"926,739"},{"v":1397153.3070334336,"d":"1,397,153"},{"v":2104915.9262437965,"d":"2,104,916"},{"v":3731867.753182175,"d":"3,731,868"},{"v":5846860.66810236,"d":"5,846,861"},{"v":29718416.558740083,"d":"29,718,417"},{"v":6491095.540300514,"d":"6,491,096"}]
["2033-08-01",{"v":88.03809523809524,"d":"88"},{"v":177411.60131019997,"d":"177,412"},{"v":929100.0517095192,"d":"929,100"},{"v":1403086.4238167263,"d":"1,403,086"},{"v":2117430.083942287,"d":"2,117,430"},{"v":3762929.162042908,"d":"3,762,929"},{"v":5906450.590527952,"d":"5,906,451"},{"v":30223222.53864197,"d":"30,223,223"},{"v":6560078.065744463,"d":"6,560,078"}]
["2033-09-01",{"v":88.12244897959184,"d":"88"},{"v":176658.20957860872,"d":"176,658"},{"v":931467.3477316832,"d":"931,467"},{"v":1409044.736027455,"d":"1,409,045"},{"v":2130018.6408796976,"d":"2,130,019"},{"v":3794249.1039450625,"d":"3,794,249"},{"v":5966647.840382099,"d":"5,966,648"},{"v":30736603.30505178,"d":"30,736,603"},{"v":6629793.686054615,"d":"6,629,794"}]
["2033-10-01",{"v":88.20408163265306,"d":"88"},{"v":175932.21693650485,"d":"175,932"},{"v":933764.1165343092,"d":"933,764"},{"v":1414835.3308330472,"d":"1,414,835"},{"v":2142273.5426491424,"d":"2,142,274"},{"v":3824811.0008371132,"d":"3,824,811"},{"v":6025496.969766689,"d":"6,025,497"},{"v":31241862.53746359,"d":"31,241,863"},{"v":6697977.401501906,"d":"6,697,977"}]
["2033-11-01",{"v":88.28843537414966,"d":"88"},{"v":175185.10752211694,"d":"175,185"},{"v":936143.2963380816,"d":"936,143"},{"v":1420843.5356626122,"d":"1,420,844"},{"v":2155009.7990533854,"d":"2,155,010"},{"v":3856646.0030851765,"d":"3,856,646"},{"v":6086907.514225681,"d":"6,086,908"},{"v":31772546.22988078,"d":"31,772,546"},{"v":6769158.513173036,"d":"6,769,159"}]
["2033-12-01",{"v":88.37006802721089,"d":"88"},{"v":174465.16872408084,"d":"174,465"},{"v":938451.5948769974,"d":"938,452"},{"v":1426682.6186858832,"d":"1,426,683"},{"v":2167408.485568487,"d":"2,167,408"},{"v":3887710.49417852,"d":"3,887,710"},{"v":6146942.7664207835,"d":"6,146,943"},{"v":32294834.661056902,"d":"32,294,835"},{"v":6838775.5178244235,"d":"6,838,776"}]
["2034-01-01",{"v":88.45442176870748,"d":"88"},{"v":173724.28924045802,"d":"173,724"},{"v":940842.7181187388,"d":"940,843"},{"v":1432741.133915919,"d":"1,432,741"},{"v":2180294.1743730996,"d":"2,180,294"},{"v":3920069.027004039,"d":"3,920,069"},{"v":6209591.059821017,"d":"6,209,591"},{"v":32843404.45529951,"d":"32,843,404"},{"v":6911452.926935851,"d":"6,911,453"}]
["2034-02-01",{"v":88.53877551020408,"d":"89"},{"v":172986.5559573821,"d":"172,987"},{"v":943239.9338114797,"d":"943,240"},{"v":1438825.3770873428,"d":"1,438,825"},{"v":2193256.4712454,"d":"2,193,256"},{"v":3952696.8892068835,"d":"3,952,697"},{"v":6272877.8508964535,"d":"6,272,878"},{"v":33401292.42138953,"d":"33,401,292"},{"v":6984902.697383219,"d":"6,984,903"}]
["2034-03-01",{"v":88.61496598639455,"d":"89"},{"v":172323.04587973736,"d":"172,323"},{"v":945410.6777687445,"d":"945,411"},{"v":1444344.159355623,"d":"1,444,344"},{"v":2205033.958049896,"d":"2,205,034"},{"v":3982412.5063684825,"d":"3,982,413"},{"v":6330622.69905813,"d":"6,330,623"},{"v":33913750.60648482,"d":"33,913,751"},{"v":7051949.455969995,"d":"7,051,949"}]
["2034-04-01",{"v":88.69931972789115,"d":"89"},{"v":171591.26308216588,"d":"171,591"},{"v":947819.5323723744,"d":"947,820"},{"v":1450477.675648777,"d":"1,450,478"},{"v":2218143.3380196723,"d":"2,218,143"},{"v":4015559.271284503,"d":"4,015,559"},{"v":6395143.018073188,"d":"6,395,143"},{"v":34489819.794868946,"d":"34,489,820"},{"v":7126892.31881274,"d":"7,126,892"}]
[{"$f":"EDATE(A258,1)","v":"2034-05-01"},{"v":88.78095238095239,"d":"89"},{"v":170886.0935078556,"d":"170,886"},{"v":950156.6216302789,"d":"950,157"},{"v":1456438.5428089774,"d":"1,456,439"},{"v":2230905.25859458,"d":"2,230,905"},{"v":4047903.776099781,"d":"4,047,904"},{"v":6458218.4012651425,"d":"6,458,218"},{"v":35056775.736702405,"d":"35,056,776"},{"v":7200188.415328014,"d":"7,200,188"}]
["2034-06-01",{"$f":"(A260-$B$2)/367.5","v":{"v":88.86530612244898,"d":"89"}},{"$f":"(A260-A259)/365*C259*C$1+C259","v":{"v":170160.41283679486,"d":"170,160"}},{"v":952577.5686388164,"d":"952,578"},{"v":1462623.4188126868,"d":"1,462,623"},{"v":2244168.448762115,"d":"2,244,168"},{"v":4081595.6436937293,"d":"4,081,596"},{"v":6524039.147710913,"d":"6,524,039"},{"v":35652260.69442173,"d":"35,652,261"},{"v":7276706.651345012,"d":"7,276,707"}]
["2034-07-01",{"v":88.9469387755102,"d":"89"},{"v":169461.12346897242,"d":"169,461"},{"v":954926.3900409394,"d":"954,926"},{"v":1468634.1999858897,"d":"1,468,634"},{"v":2257080.1028508833,"d":"2,257,080"},{"v":4114472.0579196457,"d":"4,114,472"},{"v":6588385.835195185,"d":"6,588,386"},{"v":36238325.253782086,"d":"36,238,325"},{"v":7351543.504375951,"d":"7,351,544"}]
["2034-08-01",{"v":89.0312925170068,"d":"89"},{"v":168741.49404054254,"d":"168,741"},{"v":957359.4901580301,"d":"957,359"},{"v":1474870.8657666517,"d":"1,474,871"},{"v":2270498.9078459144,"d":"2,270,499"},{"v":4148717.9924729606,"d":"4,148,718"},{"v":6655533.2195977215,"d":"6,655,533"},{"v":36853880.36768194,"d":"36,853,880"},{"v":7429670.229471025,"d":"7,429,670"}]
["2034-09-01",{"v":89.1156462585034,"d":"89"},{"v":168024.92057269913,"d":"168,025"},{"v":959798.7896808984,"d":"959,799"},{"v":1481134.0160185376,"d":"1,481,134"},{"v":2283997.4903939296,"d":"2,283,997"},{"v":4183248.9657911328,"d":"4,183,249"},{"v":6723364.9554248545,"d":"6,723,365"},{"v":37479891.486256264,"d":"37,479,891"},{"v":7508627.227170818,"d":"7,508,627"}]
["2034-10-01",{"v":89.19727891156462,"d":"89"},{"v":167334.40720048256,"d":"167,334"},{"v":962165.4168335362,"d":"962,165"},{"v":1487220.8681391617,"d":"1,487,221"},{"v":2297138.2978729084,"d":"2,297,138"},{"v":4216944.176638875,"d":"4,216,944"},{"v":6789677.5960810995,"d":"6,789,678"},{"v":38095999.29150979,"d":"38,095,999"},{"v":7585849.253451075,"d":"7,585,849"}]
["2034-11-01",{"v":89.28163265306122,"d":"89"},{"v":166623.80903291886,"d":"166,624"},{"v":964616.9615942354,"d":"964,617"},{"v":1493536.463606602,"d":"1,493,536"},{"v":2310795.2570684818,"d":"2,310,795"},{"v":4252043.016114571,"d":"4,252,043"},{"v":6858876.501991844,"d":"6,858,877"},{"v":38743109.41646147,"d":"38,743,109"},{"v":7666466.005414016,"d":"7,666,466"}]
["2034-12-01",{"v":89.36326530612244,"d":"89"},{"v":165939.05365333153,"d":"165,939"},{"v":966995.4691707691,"d":"966,995"},{"v":1499674.2846899168,"d":"1,499,674"},{"v":2324090.243479013,"d":"2,324,090"},{"v":4286292.348901905,"d":"4,286,292"},{"v":6926525.694888202,"d":"6,926,526"},{"v":39379982.447964944,"d":"39,379,982"},{"v":7745311.315140472,"d":"7,745,311"}]
["2035-01-01",{"v":89.44761904761904,"d":"89"},{"v":165234.3809597352,"d":"165,234"},{"$f":"($A267-$A266)/365*D266*D$1+D266","v":{"v":969459.3206401631,"d":"969,459"}},{"$f":"($A267-$A266)/365*E266*E$1+E266","v":{"v":1506042.764529011,"d":"1,506,043"}},{"$f":"($A267-$A266)/365*F266*F$1+F266","v":{"v":2337907.4375292854,"d":"2,337,907"}},{"$f":"($A267-$A266)/365*G266*G$1+G266","v":{"v":4321968.39316482,"d":"4,321,968"}},{"$f":"($A267-$A266)/365*H266*H$1+H266","v":{"v":6997119.326627884,"d":"6,997,119"}},{"$f":"($A267-$A266)/365*I266*I$1+I266","v":{"v":40048902.69776599,"d":"40,048,903"}},{"$f":"($A267-$A266)/365*J266*J$1+J266","v":{"v":7827622.711044414,"d":"7,827,623"}}]
["2035-02-01",{"v":89.53197278911564,"d":"90"},{"v":164532.700711824,"d":"164,533"},{"v":971929.4498680956,"d":"971,929"},{"v":1512438.2885975589,"d":"1,512,438"},{"v":2351806.7776373364,"d":"2,351,807"},{"v":4357941.379407107,"d":"4,357,941"},{"v":7068432.433189681,"d":"7,068,432"},{"v":40729185.428522564,"d":"40,729,185"},{"v":7910808.851115502,"d":"7,910,809"}]
["2035-03-01",{"v":89.60816326530612,"d":"90"},{"v":163901.6163803266,"d":"163,902"},{"v":974166.2190129975,"d":"974,166"},{"v":1518239.421759303,"d":"1,518,239"},{"v":2364435.657867937,"d":"2,364,436"},{"v":4390703.54692791,"d":"4,390,704"},{"v":7133500.7427116465,"d":"7,133,501"},{"v":41354071.561124556,"d":"41,354,072"},{"v":7986743.207576269,"d":"7,986,743"}]
["2035-04-01",{"v":89.69251700680272,"d":"90"},{"v":163205.59581761563,"d":"163,206"},{"v":976648.3411600717,"d":"976,648"},{"v":1524686.7398517055,"d":"1,524,687"},{"v":2378492.713696905,"d":"2,378,493"},{"v":4427248.635628094,"d":"4,427,249"},{"v":7206203.818774352,"d":"7,206,204"},{"v":42056524.2835327,"d":"42,056,524"},{"v":8071620.361688442,"d":"8,071,620"}]
["2035-05-01",{"v":89.77414965986395,"d":"90"},{"v":162534.88788959803,"d":"162,535"},{"v":979056.5151519732,"d":"979,057"},{"v":1530952.5757689043,"d":"1,530,953"},{"v":2392177.1923236544,"d":"2,392,177"},{"v":4462909.213679454,"d":"4,462,909"},{"v":7277278.7057540445,"d":"7,277,279"},{"v":42747864.40874146,"d":"42,747,864"},{"v":8154632.45708706,"d":"8,154,632"}]
["2035-06-01",{"v":89.85850340136055,"d":"90"},{"v":161844.67124239562,"d":"161,845"},{"v":981551.0975056482,"d":"981,551"},{"v":1537453.881227649,"d":"1,537,454"},{"v":2406399.177275277,"d":"2,406,399"},{"v":4500055.290915504,"d":"4,500,055"},{"v":7351447.1353031,"d":"7,351,447"},{"v":43473992.51650638,"d":"43,473,993"},{"v":8241293.813011429,"d":"8,241,294"}]
["2035-07-01",{"v":89.94013605442177,"d":"90"},{"v":161179.5561550981,"d":"161,180"},{"v":983971.360485799,"d":"983,971"},{"v":1543772.1848491326,"d":"1,543,772"},{"v":2420244.213637683,"d":"2,420,244"},{"v":4536302.311614933,"d":"4,536,302"},{"v":7423954.559103349,"d":"7,423,955"},{"v":44188633.48938046,"d":"44,188,633"},{"v":8326050.904841581,"d":"8,326,051"}]
["2035-08-01",{"v":90.02448979591837,"d":"90"},{"v":160495.09502622028,"d":"160,495"},{"v":986478.465596078,"d":"986,478"},{"v":1550327.9297436974,"d":"1,550,328"},{"v":2434633.062798214,"d":"2,434,633"},{"v":4574059.260718184,"d":"4,574,059"},{"v":7499617.876801608,"d":"7,499,618"},{"v":44939234.934953496,"d":"44,939,235"},{"v":8414533.96826669,"d":"8,414,534"}]
["2035-09-01",{"v":90.10884353741497,"d":"90"},{"v":159813.54051309524,"d":"159,814"},{"v":988991.9586728022,"d":"988,992"},{"v":1556911.514102883,"d":"1,556,912"},{"v":2449107.456623617,"d":"2,449,107"},{"v":4612130.471770408,"d":"4,612,130"},{"v":7576052.338450107,"d":"7,576,052"},{"v":45702586.32288969,"d":"45,702,586"},{"v":8503957.36374148,"d":"8,503,957"}]
["2035-10-01",{"v":90.19047619047619,"d":"90"},{"v":159156.7725383839,"d":"159,157"},{"v":991430.5689818584,"d":"991,431"},{"v":1563309.7805991962,"d":"1,563,310"},{"v":2463198.2118535065,"d":"2,463,198"},{"v":4649280.235022476,"d":"4,649,280"},{"v":7650775.0464457795,"d":"7,650,775"},{"v":46453861.71449884,"d":"46,453,862"},{"v":8591415.803102102,"d":"8,591,416"}]
["2035-11-01",{"v":90.27482993197279,"d":"90"},{"v":158480.90131253598,"d":"158,481"},{"v":993956.6797466616,"d":"993,957"},{"v":1569948.4933661243,"d":"1,569,948"},{"v":2477842.4313595947,"d":"2,477,842"},{"v":4687977.531882745,"d":"4,687,978"},{"v":7728750.068836953,"d":"7,728,750"},{"v":47242941.00937526,"d":"47,242,941"},{"v":8682718.966883544,"d":"8,682,719"}]
["2035-12-01",{"v":90.35646258503401,"d":"90"},{"v":157829.609937279,"d":"157,830"},{"v":996407.5318337082,"d":"996,408"},{"v":1576400.3364895468,"d":"1,576,400"},{"v":2492098.5111016636,"d":"2,492,099"},{"v":4725738.227619006,"d":"4,725,738"},{"v":7804978.83663918,"d":"7,804,979"},{"v":48019537.29994033,"d":"48,019,537"},{"v":8772015.86922789,"d":"8,772,016"}]
["2036-01-01",{"v":90.44081632653061,"d":"90"},{"v":157159.37460740836,"d":"157,159"},{"v":998946.3236271475,"d":"998,946"},{"v":1583094.6392883381,"d":"1,583,095"},{"v":2506914.5488251997,"d":"2,506,915"},{"v":4765071.906346422,"d":"4,765,072"},{"v":7884525.470261914,"d":"7,884,525"},{"v":48835211.632158495,"d":"48,835,212"},{"v":8865238.315906856,"d":"8,865,238"}]
["2036-02-01",{"v":90.52517006802721,"d":"91"},{"v":156491.9854823632,"d":"156,492"},{"v":1001491.5841229646,"d":"1,001,492"},{"v":1589817.3699483296,"d":"1,589,817"},{"v":2521818.6709373933,"d":"2,521,819"},{"v":4804732.970597053,"d":"4,804,733"},{"v":7964882.825739652,"d":"7,964,883"},{"v":49664741.25440338,"d":"49,664,741"},{"v":8959451.461268356,"d":"8,959,451"}]
["2036-03-01",{"v":90.60408163265306,"d":"91"},{"v":155870.3049920908,"d":"155,870"},{"v":1003878.7010495043,"d":"1,003,879"},{"v":1596133.0827878504,"d":"1,596,133"},{"v":2535844.1282031545,"d":"2,535,844"},{"v":4842144.069507839,"d":"4,842,144"},{"v":8040821.982543964,"d":"8,040,822"},{"v":50453934.40310349,"d":"50,453,934"},{"v":9048522.97098081,"d":"9,048,523"}]
["2036-04-01",{"v":90.68843537414966,"d":"91"},{"v":155208.38999828877,"d":"155,208"},{"v":1006436.5289727263,"d":"1,006,437"},{"v":1602911.182180511,"d":"1,602,911"},{"v":2550920.2426091842,"d":"2,550,920"},{"v":4882446.627543908,"d":"4,882,447"},{"v":8122772.277818111,"d":"8,122,772"},{"v":51310960.13816991,"d":"51,310,960"},{"v":9144683.929050293,"d":"9,144,684"}]
["2036-05-01",{"v":90.77006802721088,"d":"91"},{"v":154570.54729966566,"d":"154,571"},{"v":1008918.1532907413,"d":"1,008,918"},{"v":1609498.48840865,"d":"1,609,498"},{"v":2565596.770032415,"d":"2,565,597"},{"v":4921773.731886316,"d":"4,921,774"},{"v":8202887.292065084,"d":"8,202,887"},{"v":52154427.976057634,"d":"52,154,428"},{"v":9238731.88233507,"d":"9,238,732"}]
["2036-06-01",{"v":90.85442176870748,"d":"91"},{"v":153914.15182483147,"d":"153,914"},{"v":1011488.8214621396,"d":"1,011,489"},{"v":1616333.3450032622,"d":"1,616,333"},{"v":2580849.7700076764,"d":"2,580,850"},{"v":4962739.070509523,"d":"4,962,739"},{"v":8286489.321452706,"d":"8,286,489"},{"v":53040338.807431765,"d":"53,040,339"},{"v":9336914.23894748,"d":"9,336,914"}]
["2036-07-01",{"v":90.9360544217687,"d":"91"},{"v":153281.62791322256,"d":"153,282"},{"v":1013982.9034876627,"d":"1,013,983"},{"v":1622975.8108046455,"d":"1,622,976"},{"v":2595698.4947118303,"d":"2,595,698"},{"v":5002712.913981573,"d":"5,002,713"},{"v":8368219.079143747,"d":"8,368,219"},{"v":53912234.7878279,"d":"53,912,235"},{"v":9432939.173322627,"d":"9,432,939"}]
["2036-08-01",{"v":91.0204081632653,"d":"91"},{"v":152630.70593167326,"d":"152,631"},{"v":1016566.4763650422,"d":"1,016,566"},{"v":1629867.8998642268,"d":"1,629,868"},{"v":2611130.4556255965,"d":"2,611,130"},{"v":5044351.932701233,"d":"5,044,352"},{"v":8453506.13386817,"d":"8,453,506"},{"v":54828004.25545676,"d":"54,828,004"},{"v":9533185.420276625,"d":"9,533,185"}]
["2036-09-01",{"v":91.1047619047619,"d":"91"},{"v":151982.54813936068,"d":"151,983"},{"v":1019156.6320445476,"d":"1,019,157"},{"v":1636789.2566992666,"d":"1,636,789"},{"v":2626654.162717946,"d":"2,626,654"},{"v":5086337.524952045,"d":"5,086,338"},{"v":8539662.415561292,"d":"8,539,662"},{"v":55759329.25924808,"d":"55,759,329"},{"v":9634497.009627484,"d":"9,634,497"}]
["2036-10-01",{"v":91.18639455782314,"d":"91"},{"v":151357.96232508932,"d":"151,358"},{"v":1021669.6210002739,"d":"1,021,670"},{"v":1643515.7878911814,"d":"1,643,516"},{"v":2641766.419544542,"d":"2,641,766"},{"v":5127306.928577686,"d":"5,127,307"},{"v":8623889.22294765,"d":"8,623,889"},{"v":56675920.97309873,"d":"56,675,921"},{"v":9733582.416155895,"d":"9,733,582"}]
["2036-11-01",{"v":91.27074829931973,"d":"91"},{"v":150715.20933439373,"d":"150,715"},{"v":1024272.7792126855,"d":"1,024,273"},{"v":1650495.1015109932,"d":"1,650,495"},{"v":2657472.263737451,"d":"2,657,472"},{"v":5169982.979122943,"d":"5,169,983"},{"v":8711782.011740431,"d":"8,711,782"},{"v":57638635.24716233,"d":"57,638,635"},{"v":9837023.675418606,"d":"9,837,024"}]
["2036-12-01",{"v":91.35238095238095,"d":"91"},{"v":150095.83176178663,"d":"150,096"},{"v":1026798.3833258128,"d":"1,026,798"},{"v":1657277.9580925452,"d":"1,657,278"},{"v":2672761.830186351,"d":"2,672,762"},{"v":5211626.129694509,"d":"5,211,626"},{"v":8797706.437061707,"d":"8,797,706"},{"v":58586119.66218417,"d":"58,586,120"},{"v":9938191.955291906,"d":"9,938,192"}]
[{"$f":"EDATE(A290,1)","v":"2037-01-01"},{"v":91.43673469387755,"d":"91"},{"v":149458.43850362013,"d":"149,458"},{"v":1029414.6093436019,"d":"1,029,415"},{"v":1664315.7138049928,"d":"1,664,316"},{"v":2688651.9484644453,"d":"2,688,652"},{"v":5255003.993206871,"d":"5,255,004"},{"v":8887370.732803814,"d":"8,887,371"},{"v":59581281.14685689,"d":"59,581,281"},{"v":10043807.652236499,"d":"10,043,808"}]
["2037-02-01",{"v":91.52108843537415,"d":"92"},{"v":148823.7519839472,"d":"148,824"},{"v":1032037.5013619293,"d":"1,032,038"},{"v":1671383.3558773154,"d":"1,671,383"},{"v":2704636.5367607954,"d":"2,704,637"},{"v":5298742.903155809,"d":"5,298,743"},{"v":8977948.867395679,"d":"8,977,949"},{"v":60593346.74441994,"d":"60,593,347"},{"v":10150545.754090482,"d":"10,150,546"}]
["2037-03-01",{"v":91.59727891156463,"d":"92"},{"v":148252.92115441975,"d":"148,253"},{"v":1034412.6013650637,"d":"1,034,413"},{"v":1677794.1413519133,"d":"1,677,794"},{"v":2719160.064465045,"d":"2,719,160"},{"v":5338577.836104466,"d":"5,338,578"},{"v":9060595.191216089,"d":"9,060,595"},{"v":61522998.091731586,"d":"61,522,998"},{"v":10247978.92104834,"d":"10,247,979"}]
["2037-04-01",{"v":91.68163265306123,"d":"92"},{"v":147623.35395499686,"d":"147,623"},{"v":1037048.2279931994,"d":"1,037,048"},{"v":1684919.0205823118,"d":"1,684,919"},{"v":2735326.02977981,"d":"2,735,326"},{"v":5383012.355189631,"d":"5,383,012"},{"v":9152938.791521085,"d":"9,152,939"},{"v":62568046.278495245,"d":"62,568,046"},{"v":10356886.802973853,"d":"10,356,887"}]
["2037-05-01",{"v":91.76326530612245,"d":"92"},{"v":147016.68263737357,"d":"147,017"},{"v":1039605.3332129086,"d":"1,039,605"},{"v":1691843.3453244308,"d":"1,691,843"},{"v":2751063.5220059403,"d":"2,751,064"},{"v":5426371.413612254,"d":"5,426,371"},{"v":9243214.352204582,"d":"9,243,214"},{"v":63596562.10773078,"d":"63,596,562"},{"v":10463401.58399625,"d":"10,463,402"}]
["2037-06-01",{"v":91.84761904761905,"d":"92"},{"v":146392.3652179546,"d":"146,392"},{"v":1042254.1906372593,"d":"1,042,254"},{"v":1699027.8855580003,"d":"1,699,028"},{"v":2767419.159931291,"d":"2,767,419"},{"v":5471536.663898704,"d":"5,471,537"},{"v":9337419.166972255,"d":"9,337,419"},{"v":64676832.47777991,"d":"64,676,832"},{"v":10574598.817424254,"d":"10,574,599"}]
["2037-07-01",{"v":91.92925170068027,"d":"92"},{"v":145790.75275815476,"d":"145,791"},{"v":1044824.1324771867,"d":"1,044,824"},{"v":1706010.1919370058,"d":"1,706,010"},{"v":2783341.297563772,"d":"2,783,341"},{"v":5515608.767438052,"d":"5,515,609"},{"v":9429514.260125954,"d":"9,429,514"},{"v":65740013.285633825,"d":"65,740,013"},{"v":10683352.644598866,"d":"10,683,353"}]
["2037-08-01",{"v":92.01360544217687,"d":"92"},{"v":145171.64134233247,"d":"145,172"},{"v":1047486.2871161012,"d":"1,047,486"},{"v":1713254.8927520807,"d":"1,713,255"},{"v":2799888.8334972337,"d":"2,799,889"},{"v":5561516.765891413,"d":"5,561,517"},{"v":9525617.802722305,"d":"9,525,618"},{"v":66856692.963362396,"d":"66,856,693"},{"v":10796887.353964522,"d":"10,796,887"}]
["2037-09-01",{"v":92.09795918367347,"d":"92"},{"v":144555.15902978284,"d":"144,555"},{"v":1050155.2247791642,"d":"1,050,155"},{"v":1720530.3587350005,"d":"1,720,530"},{"v":2816534.747931998,"d":"2,816,535"},{"v":5607806.869822312,"d":"5,607,807"},{"v":9622700.811561009,"d":"9,622,701"},{"v":67992340.89863047,"d":"67,992,341"},{"v":10911628.625601364,"d":"10,911,629"}]
["2037-10-01",{"v":92.17959183673469,"d":"92"},{"v":143961.09673240015,"d":"143,961"},{"v":1052744.6486210853,"d":"1,052,745"},{"v":1727601.0314421307,"d":"1,727,601"},{"v":2832739.468399552,"d":"2,832,739"},{"v":5652976.601869648,"d":"5,652,977"},{"v":9717609.641483255,"d":"9,717,610"},{"v":69110023.21477234,"d":"69,110,023"},{"v":11023848.615619978,"d":"11,023,849"}]
["2037-11-01",{"v":92.26394557823129,"d":"92"},{"v":143349.755088742,"d":"143,350"},{"v":1055426.9843011335,"d":"1,055,427"},{"v":1734937.4193838711,"d":"1,734,937"},{"v":2849580.6866089413,"d":"2,849,581"},{"v":5700027.952325758,"d":"5,700,028"},{"v":9816649.389062207,"d":"9,816,649"},{"v":70283946.89677669,"d":"70,283,947"},{"v":11141001.862386402,"d":"11,141,002"}]
["2037-12-01",{"v":92.34557823129252,"d":"92"},{"v":142760.64650618553,"d":"142,761"},{"v":1058029.40700215,"d":"1,058,029"},{"v":1742067.2991895583,"d":"1,742,067"},{"v":2865975.5343949106,"d":"2,865,976"},{"v":5745940.506243121,"d":"5,745,941"},{"v":9913471.136461176,"d":"9,913,471"},{"v":71439299.44850452,"d":"71,439,299"},{"v":11255580.827698782,"d":"11,255,581"}]
["2038-01-01",{"v":92.42993197278912,"d":"92"},{"v":142154.4026648579,"d":"142,154"},{"v":1060725.2079569774,"d":"1,060,725"},{"v":1749465.1192272126,"d":"1,749,465"},{"v":2883014.3478459707,"d":"2,883,014"},{"v":5793765.622018372,"d":"5,793,766"},{"v":10014507.061468396,"d":"10,014,507"},{"v":72652788.91858871,"d":"72,652,789"},{"v":11375196.75169999,"d":"11,375,197"}]
["2038-02-01",{"v":92.51428571428572,"d":"93"},{"v":141550.73328367836,"d":"141,551"},{"v":1063427.8776649225,"d":"1,063,428"},{"v":1756894.3546650268,"d":"1,756,894"},{"v":2900154.4605441233,"d":"2,900,154"},{"v":5841988.79999013,"d":"5,841,989"},{"v":10116572.72247843,"d":"10,116,573"},{"v":73886891.08652091,"d":"73,886,891"},{"v":11496083.864589063,"d":"11,496,084"}]
["2038-03-01",{"v":92.5904761904762,"d":"93"},{"v":141007.79896423413,"d":"141,008"},{"v":1065875.2185340691,"d":"1,065,875"},{"v":1763633.127532235,"d":"1,763,633"},{"v":2915727.892715812,"d":"2,915,728"},{"v":5885907.751407042,"d":"5,885,908"},{"v":10209700.624800423,"d":"10,209,701"},{"v":75020498.18264288,"d":"75,020,498"},{"v":11606432.597127771,"d":"11,606,433"}]
["2038-04-01",{"v":92.6748299319728,"d":"93"},{"v":140408.99872205724,"d":"140,409"},{"v":1068591.0101867723,"d":"1,068,591"},{"v":1771122.5284847692,"d":"1,771,123"},{"v":2933062.4941601777,"d":"2,933,062"},{"v":5934897.854828343,"d":"5,934,898"},{"v":10313755.655825786,"d":"10,313,756"},{"v":76294818.97369051,"d":"76,294,819"},{"v":11729777.112236816,"d":"11,729,777"}]
["2038-05-01",{"v":92.75646258503401,"d":"93"},{"v":139831.9754396378,"d":"139,832"},{"v":1071225.8921296985,"d":"1,071,226"},{"v":1778401.1142182683,"d":"1,778,401"},{"v":2949937.6482361676,"d":"2,949,938"},{"v":5982702.237549426,"d":"5,982,702"},{"v":10415480.36914352,"d":"10,415,480"},{"v":77548980.3814772,"d":"77,548,980"},{"v":11850411.301286047,"d":"11,850,411"}]
["2038-06-01",{"v":92.84081632653061,"d":"93"},{"v":139238.16842064756,"d":"139,238"},{"v":1073955.3170055358,"d":"1,073,955"},{"v":1785953.2285389213,"d":"1,785,953"},{"v":2967475.633706503,"d":"2,967,476"},{"v":6032497.989323879,"d":"6,032,498"},{"v":10521632.662220817,"d":"10,521,633"},{"v":78866250.73316257,"d":"78,866,251"},{"v":11976348.640220113,"d":"11,976,349"}]
["2038-07-01",{"v":92.92244897959183,"d":"93"},{"v":138665.9567696038,"d":"138,666"},{"v":1076603.4260063714,"d":"1,076,603"},{"v":1793292.7623548347,"d":"1,793,293"},{"v":2984548.781188102,"d":"2,984,549"},{"v":6081088.521073502,"d":"6,081,089"},{"v":10625407.669300254,"d":"10,625,408"},{"v":80162682.25206387,"d":"80,162,682"},{"v":12099518.679357225,"d":"12,099,519"}]
["2038-08-01",{"v":93.00680272108843,"d":"93"},{"v":138077.10133674656,"d":"138,077"},{"v":1079346.5525438671,"d":"1,079,347"},{"v":1800908.115181273,"d":"1,800,908"},{"v":3002292.5369557133,"d":"3,002,293"},{"v":6131703.170188628,"d":"6,131,703"},{"v":10733699.495409288,"d":"10,733,699"},{"v":81524349.73141399,"d":"81,524,350"},{"v":12228103.345840143,"d":"12,228,103"}]
["2038-09-01",{"v":93.09115646258503,"d":"93"},{"v":137490.7465228508,"d":"137,491"},{"v":1082096.6684174722,"d":"1,082,097"},{"v":1808555.8071772484,"d":"1,808,556"},{"v":3020141.7829973404,"d":"3,020,142"},{"v":6182739.099588718,"d":"6,182,739"},{"v":10843095.00807483,"d":"10,843,095"},{"v":82909146.9049339,"d":"82,909,147"},{"v":12358054.51432142,"d":"12,358,055"}]
["2038-10-01",{"v":93.17278911564625,"d":"93"},{"v":136925.7160576884,"d":"136,926"},{"v":1084764.8519834331,"d":"1,084,765"},{"v":1815988.2283026343,"d":"1,815,988"},{"v":3037517.941200887,"d":"3,037,518"},{"v":6232539.792610063,"d":"6,232,540"},{"v":10950040.602675019,"d":"10,950,041"},{"v":84272036.9910424,"d":"84,272,037"},{"v":12485150.184622444,"d":"12,485,150"}]
["2038-11-01",{"v":93.25714285714285,"d":"93"},{"v":136344.25068812835,"d":"136,344"},{"v":1087528.7733871168,"d":"1,087,529"},{"v":1823699.9591351524,"d":"1,823,700"},{"v":3055576.6095088483,"d":"3,055,577"},{"v":6284415.014226363,"d":"6,284,415"},{"v":11061641.016488584,"d":"11,061,641"},{"v":85703507.2084245,"d":"85,703,507"},{"v":12617833.055323554,"d":"12,617,833"}]
["2038-12-01",{"v":93.33877551020409,"d":"93"},{"v":135783.93184968398,"d":"135,784"},{"v":1090210.3511845097,"d":"1,090,210"},{"v":1831194.6165014612,"d":"1,831,195"},{"v":3073156.639316981,"d":"3,073,157"},{"v":6335034.685847803,"d":"6,335,035"},{"v":11170742.13336354,"d":"11,170,742"},{"v":87112331.9844534,"d":"87,112,332"},{"v":12747600.402445571,"d":"12,747,600"}]
["2039-01-01",{"v":93.42312925170069,"d":"93"},{"v":135207.31515278807,"d":"135,207"},{"v":1092988.1474217742,"d":"1,092,988"},{"v":1838970.9224071524,"d":"1,838,971"},{"v":3091427.187008263,"d":"3,091,427"},{"v":6387763.001945353,"d":"6,387,763"},{"v":11284591.888804942,"d":"11,284,592"},{"v":88592048.30857287,"d":"88,592,048"},{"v":12883072.398451703,"d":"12,883,072"}]
["2039-02-01",{"v":93.50748299319729,"d":"94"},{"v":134633.14710213925,"d":"134,633"},{"v":1095773.0213316435,"d":"1,095,773"},{"v":1846780.250981758,"d":"1,846,780"},{"v":3109806.3568597916,"d":"3,109,806"},{"v":6440930.190986202,"d":"6,440,930"},{"v":11399601.976000434,"d":"11,399,602"},{"v":90096899.54011576,"d":"90,096,900"},{"v":13019984.089861084,"d":"13,019,984"}]
["2039-03-01",{"v":93.58367346938776,"d":"94"},{"v":134116.74598996667,"d":"134,117"},{"v":1098294.8003396397,"d":"1,098,295"},{"v":1853863.7916704554,"d":"1,853,864"},{"v":3126505.5909952577,"d":"3,126,506"},{"v":6489351.868915151,"d":"6,489,352"},{"v":11504540.777752109,"d":"11,504,541"},{"v":91479208.13579972,"d":"91,479,208"},{"v":13144960.452152232,"d":"13,144,960"}]
["2039-04-01",{"v":93.66802721088435,"d":"94"},{"v":133547.20912343395,"d":"133,547"},{"v":1101093.195310368,"d":"1,101,093"},{"v":1861736.3639364531,"d":"1,861,736"},{"v":3145093.30916638,"d":"3,145,093"},{"v":6543364.611319984,"d":"6,543,365"},{"v":11621792.535815774,"d":"11,621,793"},{"v":93033101.53427084,"d":"93,033,102"},{"v":13284655.294605331,"d":"13,284,655"}]
["2039-05-01",{"v":93.74965986394558,"d":"94"},{"v":132998.38497635134,"d":"132,998"},{"v":1103808.2196275715,"d":"1,103,808"},{"v":1869387.335295096,"d":"1,869,387"},{"v":3163188.366561584,"d":"3,163,188"},{"v":6596070.068737192,"d":"6,596,070"},{"v":11736418.434799163,"d":"11,736,418"},{"v":94562412.79236844,"d":"94,562,413"},{"v":13421280.535045017,"d":"13,421,281"}]
["2039-06-01",{"v":93.83401360544218,"d":"94"},{"v":132433.597314123,"d":"132,434"},{"v":1106620.6624885404,"d":"1,106,621"},{"v":1877325.829458678,"d":"1,877,326"},{"v":3181994.171371005,"d":"3,181,994"},{"v":6650971.057418901,"d":"6,650,971"},{"v":11856033.439120952,"d":"11,856,033"},{"v":96168678.434321,"d":"96,168,678"},{"v":13563911.901391577,"d":"13,563,912"}]
["2039-07-01",{"v":93.9156462585034,"d":"94"},{"v":131889.349653928,"d":"131,889"},{"v":1109349.3161768683,"d":"1,109,349"},{"v":1885040.8671139874,"d":"1,885,041"},{"v":3200301.5350967012,"d":"3,200,302"},{"v":6704543.262648521,"d":"6,704,543"},{"v":11972969.65934242,"d":"11,972,970"},{"v":97749533.42228244,"d":"97,749,533"},{"v":13703409.139651336,"d":"13,703,409"}]
["2039-08-01",94,{"v":131329.27159375377,"d":"131,329"},{"v":1112175.877448223,"d":"1,112,176"},{"v":1893045.835179814,"d":"1,893,046"},{"v":3219327.985319057,"d":"3,219,328"},{"v":6760347.104927771,"d":"6,760,347"},{"v":12094995.54189791,"d":"12,094,996"},{"v":99409936.45575683,"d":"99,409,936"},{"v":13849038.758530907,"d":"13,849,039"}]
["2039-09-01",{"v":94.0843537414966,"d":"94"},{"v":130771.57194725976,"d":"130,772"},{"v":1115009.6406428171,"d":"1,115,010"},{"v":1901084.796945646,"d":"1,901,085"},{"v":3238467.5516975294,"d":"3,238,468"},{"v":6816615.418639471,"d":"6,816,615"},{"v":12218265.085503006,"d":"12,218,265"},{"v":101098543.59555325,"d":"101,098,544"},{"v":13996216.020458926,"d":"13,996,216"}]
["2039-10-01",{"$f":"(A324-$B$2)/367.5","v":{"v":94.16598639455782,"d":"94"}},{"$f":"(A324-A323)/365*C323*C$1+C323","v":{"v":130234.15452829842,"d":"130,234"}},{"v":1117758.9794827583,"d":"1,117,759"},{"v":1908897.4741933679,"d":"1,908,897"},{"v":3257099.8307620906,"d":"3,257,100"},{"v":6871521.855162211,"d":"6,871,522"},{"v":12338774.001414817,"d":"12,338,774"},{"v":102760437.46287741,"d":"102,760,437"},{"v":14140159.264497595,"d":"14,140,159"}]
["2039-11-01",{"v":94.25034013605442,"d":"94"},{"v":129681.10537893166,"d":"129,681"},{"v":1120606.968115413,"d":"1,120,607"},{"v":1917003.7511385726,"d":"1,917,004"},{"v":3276463.9585230597,"d":"3,276,464"},{"v":6928715.5083018895,"d":"6,928,716"},{"v":12464528.081648415,"d":"12,464,528"},{"v":104505957.2225208,"d":"104,505,957"},{"v":14290430.338184418,"d":"14,290,430"}]
["2039-12-01",{"v":94.33197278911565,"d":"94"},{"v":129148.1693294292,"d":"129,148"},{"v":1123370.1085847388,"d":"1,123,370"},{"v":1924881.8487459915,"d":"1,924,882"},{"v":3295314.847051549,"d":"3,295,315"},{"v":6984524.8880125955,"d":"6,984,525"},{"v":12587465.892864672,"d":"12,587,466"},{"v":106223863.36864443,"d":"106,223,863"},{"v":14437399.411724012,"d":"14,437,399"}]
["2040-01-01",{"v":94.41632653061224,"d":"94"},{"v":128599.73189803027,"d":"128,600"},{"v":1126232.3940668863,"d":"1,126,232"},{"v":1933056.004542036,"d":"1,933,056"},{"v":3314906.1709367596,"d":"3,314,906"},{"v":7042659.09790241,"d":"7,042,659"},{"v":12715754.586348115,"d":"12,715,755"},{"v":108028213.92449538,"d":"108,028,214"},{"v":14590829.332155842,"d":"14,590,829"}]
["2040-02-01",{"v":94.50068027210884,"d":"95"},{"v":128053.62344750439,"d":"128,054"},{"v":1129101.9724956045,"d":"1,129,102"},{"v":1941264.8725065296,"d":"1,941,265"},{"v":3334613.969268082,"d":"3,334,614"},{"v":7101277.175544677,"d":"7,101,277"},{"v":12845350.77007747,"d":"12,845,351"},{"v":109863213.7226649,"d":"109,863,214"},{"v":14745889.791427279,"d":"14,745,890"}]
["2040-03-01",{"v":94.57959183673469,"d":"95"},{"v":127544.91727216498,"d":"127,545"},{"v":1131793.256649224,"d":"1,131,793"},{"v":1948976.746657583,"d":"1,948,977"},{"v":3353159.9044944225,"d":"3,353,160"},{"v":7156569.859744398,"d":"7,156,570"},{"v":12967821.511666154,"d":"12,967,822"},{"v":111608985.33798395,"d":"111,608,985"},{"v":14892487.903092247,"d":"14,892,488"}]
["2040-04-01",{"v":94.66394557823129,"d":"95"},{"v":127003.28817142016,"d":"127,003"},{"v":1134677.0038510975,"d":"1,134,677"},{"v":1957253.2232529782,"d":"1,957,253"},{"v":3373095.129132102,"d":"3,373,095"},{"v":7216136.049426326,"d":"7,216,136"},{"v":13099986.706250807,"d":"13,099,987"},{"v":113504809.19851957,"d":"113,504,809"},{"v":15050754.16482273,"d":"15,050,754"}]
["2040-05-01",{"v":94.74557823129251,"d":"95"},{"v":126481.35685016775,"d":"126,481"},{"$f":"($A331-$A330)/365*D330*D$1+D330","v":{"v":1137474.8375592236,"d":"1,137,475"}},{"$f":"($A331-$A330)/365*E330*E$1+E330","v":{"v":1965296.7296499081,"d":"1,965,297"}},{"$f":"($A331-$A330)/365*F330*F$1+F330","v":{"v":3392501.977820259,"d":"3,392,502"}},{"$f":"($A331-$A330)/365*G330*G$1+G330","v":{"v":7274260.542536773,"d":"7,274,261"}},{"$f":"($A331-$A330)/365*H330*H$1+H330","v":{"v":13229192.054586431,"d":"13,229,192"}},{"$f":"($A331-$A330)/365*I330*I$1+I330","v":{"v":115370641.67849524,"d":"115,370,642"}},{"$f":"($A331-$A330)/365*J330*J$1+J330","v":{"v":15205542.743146062,"d":"15,205,543"}}]
["2040-06-01",{"v":94.82993197278911,"d":"95"},{"v":125944.24423888621,"d":"125,944"},{"v":1140373.0611179362,"d":"1,140,373"},{"v":1973642.510282668,"d":"1,973,643"},{"v":3412671.099167848,"d":"3,412,671"},{"v":7334806.305627805,"d":"7,334,806"},{"v":13364021.080457833,"d":"13,364,021"},{"v":117330362.16728064,"d":"117,330,362"},{"v":15367135.91838988,"d":"15,367,136"}]
["2040-07-01",{"v":94.91156462585035,"d":"95"},{"v":125426.66515297299,"d":"125,427"},{"v":1143184.939898775,"d":"1,143,185"},{"v":1981753.3699139666,"d":"1,981,753"},{"v":3432305.645217855,"d":"3,432,306"},{"v":7393886.663267656,"d":"7,393,887"},{"v":13495830.60344317,"d":"13,495,831"},{"v":119259080.44948252,"d":"119,259,080"},{"v":15525178.305878242,"d":"15,525,178"}]
["2040-08-01",{"v":94.99591836734695,"d":"95"},{"v":124894.03136944666,"d":"124,894"},{"v":1146097.7124853663,"d":"1,146,098"},{"v":1990169.0349094917,"d":"1,990,169"},{"v":3452711.4075469584,"d":"3,452,711"},{"v":7455428.108974525,"d":"7,455,428"},{"v":13633377.150963193,"d":"13,633,377"},{"v":121284851.13109016,"d":"121,284,851"},{"v":15690168.329651259,"d":"15,690,168"}]
["2040-09-01",{"v":95.08027210884353,"d":"95"},{"v":124363.65945541202,"d":"124,364"},{"v":1149017.9066569044,"d":"1,149,018"},{"v":1998620.4376604771,"d":"1,998,620"},{"v":3473238.4863260733,"d":"3,473,238"},{"v":7517481.781837716,"d":"7,517,482"},{"v":13772325.542748353,"d":"13,772,326"},{"v":123345032.16400184,"d":"123,345,032"},{"v":15856911.744426187,"d":"15,856,912"}]
["2040-10-01",{"v":95.16190476190476,"d":"95"},{"v":123852.57592340348,"d":"123,853"},{"v":1151851.1014952364,"d":"1,151,851"},{"v":2006833.946308397,"d":"2,006,834"},{"v":3493221.5022747987,"d":"3,493,222"},{"v":7578033.552902381,"d":"7,578,034"},{"v":13908162.178238474,"d":"13,908,162"},{"v":125372621.73382105,"d":"125,372,622"},{"v":16019991.202016093,"d":"16,019,991"}]
["2040-11-01",{"v":95.24625850340136,"d":"95"},{"v":123326.62662838628,"d":"123,327"},{"$f":"($A337-$A336)/365*D336*D$1+D336","v":{"v":1154785.9549867173,"d":"1,154,786"}},{"$f":"($A337-$A336)/365*E336*E$1+E336","v":{"v":2015356.1178612134,"d":"2,015,356"}},{"$f":"($A337-$A336)/365*F336*F$1+F336","v":{"v":3513989.4218910625,"d":"3,513,989"}},{"$f":"($A337-$A336)/365*G336*G$1+G336","v":{"v":7641107.706145442,"d":"7,641,108"}},{"$f":"($A337-$A336)/365*H336*H$1+H336","v":{"v":14049911.118794767,"d":"14,049,911"}},{"$f":"($A337-$A336)/365*I336*I$1+I336","v":{"v":127502238.87012157,"d":"127,502,239"}},{"$f":"($A337-$A336)/365*J336*J$1+J336","v":{"v":16190239.728454169,"d":"16,190,240"}}]
["2040-12-01",{"v":95.32789115646258,"d":"95"},{"v":122819.80487511893,"d":"122,820"},{"v":1157633.3724099721,"d":"1,157,633"},{"v":2023638.4032770814,"d":"2,023,638"},{"v":3534206.895277285,"d":"3,534,207"},{"v":7702655.258627819,"d":"7,702,655"},{"v":14188485.584623976,"d":"14,188,486"},{"v":129598166.08442494,"d":"129,598,166"},{"v":16356747.277699685,"d":"16,356,747"}]
["2041-01-01",{"v":95.41224489795918,"d":"95"},{"v":122298.2413201698,"d":"122,298"},{"v":1160582.958810907,"d":"1,160,583"},{"v":2032231.9362225046,"d":"2,032,232"},{"v":3555218.481476605,"d":"3,555,218"},{"v":7766766.674177713,"d":"7,766,767"},{"v":14333091.519897403,"d":"14,333,092"},{"v":131799559.59051654,"d":"131,799,560"},{"v":16530574.596718308,"d":"16,530,575"}]
["2041-02-01",{"v":95.49659863945578,"d":"95"},{"v":121778.89262415264,"d":"121,779"},{"v":1163540.0605963706,"d":"1,163,540"},{"v":2040861.9622530385,"d":"2,040,862"},{"v":3576354.985873329,"d":"3,576,355"},{"v":7831411.707482238,"d":"7,831,412"},{"v":14479171.247168686,"d":"14,479,171"},{"v":134038346.63013627,"d":"134,038,347"},{"v":16706249.22292608,"d":"16,706,249"}]
["2041-03-01",{"v":95.57278911564626,"d":"96"},{"v":121311.79550175862,"d":"121,312"},{"v":1166217.7966262363,"d":"1,166,218"},{"v":2048689.9259438722,"d":"2,048,690"},{"v":3595559.522235827,"d":"3,595,560"},{"v":7890286.758784516,"d":"7,890,287"},{"v":14612458.96056728,"d":"14,612,459"},{"v":136094825.3729548,"d":"136,094,825"},{"v":16866609.346333336,"d":"16,866,609"}]
["2041-04-01",{"v":95.65714285714286,"d":"96"},{"v":120796.6358222306,"d":"120,797"},{"v":1169189.2556696949,"d":"1,169,189"},{"v":2057389.8420677434,"d":"2,057,390"},{"v":3616935.8624091195,"d":"3,616,936"},{"v":7955959.885286399,"d":"7,955,960"},{"v":14761385.93956265,"d":"14,761,386"},{"v":138406573.0916187,"d":"138,406,573"},{"v":17045855.099405818,"d":"17,045,855"}]
["2041-05-01",{"v":95.73877551020408,"d":"96"},{"v":120300.21129145431,"d":"120,300"},{"v":1172072.1880809353,"d":"1,172,072"},{"v":2065844.868815967,"d":"2,065,845"},{"v":3637745.630384624,"d":"3,637,746"},{"v":8020043.507376104,"d":"8,020,044"},{"v":14906977.691295324,"d":"14,906,978"},{"v":140681749.6355905,"d":"140,681,750"},{"v":17221162.173606087,"d":"17,221,162"}]
["2041-06-01",{"v":95.82312925170068,"d":"96"},{"v":119789.3473804906,"d":"119,789"},{"v":1175058.563793032,"d":"1,175,059"},{"v":2074617.6346972403,"d":"2,074,618"},{"v":3659372.7756392392,"d":"3,659,373"},{"v":8086796.636623799,"d":"8,086,797"},{"v":15058906.340642225,"d":"15,058,906"},{"v":143071412.23214024,"d":"143,071,412"},{"v":17404175.84987069,"d":"17,404,176"}]
["2041-07-01",{"v":95.9047619047619,"d":"96"},{"v":119297.0623912557,"d":"119,297"},{"v":1177955.9684708777,"d":"1,177,956"},{"v":2083143.4605932564,"d":"2,083,143"},{"v":3680426.7011977118,"d":"3,680,427"},{"v":8151934.121861262,"d":"8,151,934"},{"v":15207432.540166367,"d":"15,207,433"},{"v":145423271.0633535,"d":"145,423,271"},{"v":17583168.052333687,"d":"17,583,168"}]
["2041-08-01",{"v":95.9891156462585,"d":"96"},{"v":118790.4584276764,"d":"118,790"},{"v":1180957.335733009,"d":"1,180,957"},{"v":2091989.6862478305,"d":"2,091,990"},{"v":3702307.594188394,"d":"3,702,308"},{"v":8219785.014634453,"d":"8,219,785"},{"v":15362423.359479843,"d":"15,362,423"},{"v":147893474.5718269,"d":"147,893,475"},{"v":17770028.857266344,"d":"17,770,029"}]
["2041-09-01",{"v":96.0734693877551,"d":"96"},{"v":118286.00579599723,"d":"118,286"},{"v":1183966.3503144658,"d":"1,183,966"},{"v":2100873.478066143,"d":"2,100,873"},{"v":3724318.5735839796,"d":"3,724,319"},{"v":8288200.6499069445,"d":"8,288,201"},{"v":15518993.811253171,"d":"15,518,994"},{"v":150405637.70154014,"d":"150,405,638"},{"v":17958875.4795623,"d":"17,958,875"}]
["2041-10-01",{"v":96.15510204081633,"d":"96"},{"v":117799.898922863,"d":"117,800"},{"v":1186885.719397433,"d":"1,186,886"},{"v":2109507.204688333,"d":"2,109,507"},{"v":3745746.1598977502,"d":"3,745,746"},{"v":8354960.403087017,"d":"8,354,960"},{"v":15672057.859802518,"d":"15,672,058"},{"v":152878059.1432093,"d":"152,878,059"},{"v":18143572.4570908,"d":"18,143,572"}]
["2041-11-01",{"v":96.23945578231293,"d":"96"},{"v":117299.6527767522,"d":"117,300"},{"v":1189909.8391756238,"d":"1,189,910"},{"v":2118465.385968516,"d":"2,118,465"},{"v":3768015.3904922106,"d":"3,768,015"},{"v":8424501.14200367,"d":"8,424,501"},{"v":15831784.038538039,"d":"15,831,784"},{"v":155474891.9286556,"d":"155,474,892"},{"v":18336388.822355308,"d":"18,336,389"}]
["2041-12-01",{"v":96.32108843537415,"d":"96"},{"v":116817.59940917652,"d":"116,818"},{"v":1192843.8634366048,"d":"1,192,844"},{"v":2127171.4081026334,"d":"2,127,171"},{"v":3789694.383149837,"d":"3,789,694"},{"v":8492358.767640632,"d":"8,492,359"},{"v":15987933.141383894,"d":"15,987,933"},{"v":158030643.57679787,"d":"158,030,644"},{"v":18524968.313210987,"d":"18,524,968"}]
["2042-01-01",{"v":96.40544217687075,"d":"96"},{"v":116321.52467195947,"d":"116,322"},{"v":1195883.1642393337,"d":"1,195,883"},{"v":2136204.6017534803,"d":"2,136,205"},{"v":3812224.894961988,"d":"3,812,225"},{"v":8563043.112671021,"d":"8,563,043"},{"v":16150878.651756354,"d":"16,150,879"},{"v":160714999.71426678,"d":"160,715,000"},{"v":18721837.869371496,"d":"18,721,838"}]
["2042-02-01",{"v":96.48979591836735,"d":"96"},{"v":115827.55655348951,"d":"115,828"},{"v":1198930.2090139708,"d":"1,198,930"},{"v":2145276.1555417483,"d":"2,145,276"},{"v":3834889.3552964195,"d":"3,834,889"},{"v":8634315.783838952,"d":"8,634,316"},{"v":16315484.867056446,"d":"16,315,485"},{"v":163444953.13407075,"d":"163,444,953"},{"v":18920799.608443607,"d":"18,920,800"}]
[{"$f":"EDATE(A352,1)","v":"2042-03-01"},{"v":96.56598639455783,"d":"97"},{"v":115383.28647355833,"d":"115,383"},{"v":1201689.3908648524,"d":"1,201,689"},{"v":2153504.6120287576,"d":"2,153,505"},{"v":3855482.185807052,"d":"3,855,482"},{"v":8699226.914005676,"d":"8,699,227"},{"v":16465676.727750445,"d":"16,465,677"},{"v":165952601.73010033,"d":"165,952,602"},{"v":19102416.781735275,"d":"19,102,417"}]
["2042-04-01",{"v":96.65034013605442,"d":"97"},{"v":114893.30265428705,"d":"114,893"},{"v":1204751.229586782,"d":"1,204,751"},{"v":2162649.6316140853,"d":"2,162,650"},{"v":3878403.819624042,"d":"3,878,404"},{"v":8771633.082128277,"d":"8,771,633"},{"v":16633491.29604423,"d":"16,633,491"},{"v":168771522.63620067,"d":"168,771,523"},{"v":19305423.029834032,"d":"19,305,423"}]
["2042-05-01",{"v":96.73197278911564,"d":"97"},{"v":114421.13839680368,"d":"114,421"},{"v":1207721.849056996,"d":"1,207,722"},{"v":2171537.232839897,"d":"2,171,537"},{"v":3900717.923791742,"d":"3,900,718"},{"v":8842286.784214461,"d":"8,842,287"},{"v":16797547.64855316,"d":"16,797,548"},{"v":171545849.03569984,"d":"171,545,849"},{"v":19503968.494864803,"d":"19,503,968"}]
["2042-06-01",{"v":96.81632653061224,"d":"97"},{"v":113935.24041183095,"d":"113,935"},{"v":1210799.0581518535,"d":"1,210,799"},{"v":2180758.829308121,"d":"2,180,759"},{"v":3923908.4933660654,"d":"3,923,908"},{"v":8915883.680791019,"d":"8,915,884"},{"v":16968744.572532933,"d":"16,968,745"},{"v":174459778.52616927,"d":"174,459,779"},{"v":19711242.135285247,"d":"19,711,242"}]
["2042-07-01",{"v":96.89795918367346,"d":"97"},{"v":113467.01339643987,"d":"113,467"},{"v":1213784.5900760635,"d":"1,213,785"},{"v":2189720.8518943186,"d":"2,189,721"},{"v":3946484.405245706,"d":"3,946,484"},{"v":8987699.291808898,"d":"8,987,699"},{"v":17136107.532700382,"d":"17,136,108"},{"v":177327610.50194192,"d":"177,327,611"},{"v":19913961.22256121,"d":"19,913,961"}]
["2042-08-01",{"v":96.98231292517006,"d":"97"},{"v":112985.16717516731,"d":"112,985"},{"v":1216877.2467028326,"d":"1,216,877"},{"v":2199019.666470856,"d":"2,199,020"},{"v":3969947.065956345,"d":"3,969,947"},{"v":9062506.49851716,"d":"9,062,506"},{"v":17310754.98481448,"d":"17,310,755"},{"v":180339750.7351256,"d":"180,339,751"},{"v":20125591.96011488,"d":"20,125,592"}]
["2042-09-01",{"v":97.06666666666666,"d":"97"},{"v":112505.36715017687,"d":"112,505"},{"v":1219977.7832492262,"d":"1,219,978"},{"v":2208357.9691640884,"d":"2,208,358"},{"v":3993549.217006003,"d":"3,993,549"},{"v":9137936.347126735,"d":"9,137,936"},{"v":17487182.40548163,"d":"17,487,182"},{"v":183403056.0900784,"d":"183,403,056"},{"v":20339471.751414165,"d":"20,339,472"}]
["2042-10-01",{"v":97.1482993197279,"d":"97"},{"v":112043.01632627203,"d":"112,043"},{"v":1222985.9476462791,"d":"1,222,986"},{"v":2217433.4128729817,"d":"2,217,433"},{"v":4016525.801542202,"d":"4,016,526"},{"v":9211540.546744687,"d":"9,211,541"},{"v":17659658.72509734,"d":"17,659,659"},{"v":186417900.84772354,"d":"186,417,901"},{"v":20548651.828490127,"d":"20,548,652"}]
["2042-11-01",{"v":97.2326530612245,"d":"97"},{"v":111567.21721584539,"d":"111,567"},{"v":1226102.0488279532,"d":"1,226,102"},{"v":2226849.9109276477,"d":"2,226,850"},{"v":4040404.872745891,"d":"4,040,405"},{"v":9288210.84861047,"d":"9,288,211"},{"v":17839642.0962134,"d":"17,839,642"},{"v":189584451.49226022,"d":"189,584,451"},{"v":20767027.584754538,"d":"20,767,028"}]
["2042-12-01",{"v":97.31428571428572,"d":"97"},{"v":111108.72180262959,"d":"111,109"},{"v":1229125.3141538303,"d":"1,229,125"},{"v":2236001.3489177614,"d":"2,236,001"},{"v":4063651.037767169,"d":"4,063,651"},{"v":9363025.478459552,"d":"9,363,025"},{"v":18015594.730587013,"d":"18,015,595"},{"v":192700908.2291193,"d":"192,700,908"},{"v":20980604.8341497,"d":"20,980,605"}]

{"sheet":"Random Yr Returns","index":7,"n_rows":97,"n_cols":102,"rows_kept":97}
["Date","Age","Simulations",null,"Lines 2-42 aggregate the returns from each type of investment.  This worksheet is also used to sort results into percentiles and as source data for the charts. "]
[{"$f":"Main!A7","v":"2022-12-31"},{"$f":"'Fixed Rate Proj'!B3","v":68},1,2,3,4,5,6,7,8,9,10,11,12,13,14,15,16,17,18,19,20,21,22,23,24,25,26,27,28,29,30,31,32,33,34,35,36,37,38,39,40,41,42,43,44,45,46,47,48,49,50,51,52,53,54,55,56,57,58,59,60,61,62,63,64,65,66,67,68,69,70,71,72,73,74,75,76,77,78,79,80,81,82,83,84,85,86,87,88,89,90,91,92,93,94,95,96,97,98,99,100]
[{"$f":"Main!A8","v":"2023-12-31"},{"$f":"B2+1","v":69},{"$f":"Equities!C2+'T Bills'!C2+'T Bonds'!C2+'Real Estate'!F6-'Real Estate'!$E$5","v":{"v":1330740.4268615101,"d":"1,330,740"}},{"$f":"Equities!D2+'T Bills'!D2+'T Bonds'!D2+'Real Estate'!G6-'Real Estate'!$E$5","v":{"v":1429409.717085963,"d":"1,429,410"}},{"$f":"Equities!E2+'T Bills'!E2+'T Bonds'!E2+'Real Estate'!H6-'Real Estate'!$E$5","v":{"v":1631589.9155749402,"d":"1,631,590"}},{"$f":"Equities!F2+'T Bills'!F2+'T Bonds'!F2+'Real Estate'!I6-'Real Estate'!$E$5","v":{"v":1495554.1449333278,"d":"1,495,554"}},{"$f":"Equities!G2+'T Bills'!G2+'T Bonds'!G2+'Real Estate'!J6-'Real Estate'!$E$5","v":{"v":1236739.2476111643,"d":"1,236,739"}},{"$f":"Equities!H2+'T Bills'!H2+'T Bonds'!H2+'Real Estate'!K6-'Real Estate'!$E$5","v":{"v":1480889.4418761644,"d":"1,480,889"}},{"$f":"Equities!I2+'T Bills'!I2+'T Bonds'!I2+'Real Estate'!L6-'Real Estate'!$E$5","v":{"v":1666723.891146949,"d":"1,666,724"}},{"$f":"Equities!J2+'T Bills'!J2+'T Bonds'!J2+'Real Estate'!M6-'Real Estate'!$E$5","v":{"v":1299210.9310764938,"d":"1,299,211"}},{"$f":"Equities!K2+'T Bills'!K2+'T Bonds'!K2+'Real Estate'!N6-'Real Estate'!$E$5","v":{"v":1233496.2997598231,"d":"1,233,496"}},{"$f":"Equities!L2+'T Bills'!L2+'T Bonds'!L2+'Real Estate'!O6-'Real Estate'!$E$5","v":{"v":1270729.140797015,"d":"1,270,729"}},{"$f":"Equities!M2+'T Bills'!M2+'T Bonds'!M2+'Real Estate'!P6-'Real Estate'!$E$5","v":{"v":1509243.9126014605,"d":"1,509,244"}},{"$f":"Equities!N2+'T Bills'!N2+'T Bonds'!N2+'Real Estate'!Q6-'Real Estate'!$E$5","v":{"v":1550865.7473761796,"d":"1,550,866"}},{"$f":"Equities!O2+'T Bills'!O2+'T Bonds'!O2+'Real Estate'!R6-'Real Estate'!$E$5","v":{"v":1342486.884476811,"d":"1,342,487"}},{"$f":"Equities!P2+'T Bills'!P2+'T Bonds'!P2+'Real Estate'!S6-'Real Estate'!$E$5","v":{"v":1473740.077759228,"d":"1,473,740"}},{"$f":"Equities!Q2+'T Bills'!Q2+'T Bonds'!Q2+'Real Estate'!T6-'Real Estate'!$E$5","v":{"v":1403774.8521646212,"d":"1,403,775"}},{"$f":"Equities!R2+'T Bills'!R2+'T Bonds'!R2+'Real Estate'!U6-'Real Estate'!$E$5","v":{"v":1113064.9943196112,"d":"1,113,065"}},{"$f":"Equities!S2+'T Bills'!S2+'T Bonds'!S2+'Real Estate'!V6-'Real Estate'!$E$5","v":{"v":1481004.764334905,"d":"1,481,005"}},{"$f":"Equities!T2+'T Bills'!T2+'T Bonds'!T2+'Real Estate'!W6-'Real Estate'!$E$5","v":{"v":1250986.8416016132,"d":"1,250,987"}},{"$f":"Equities!U2+'T Bills'!U2+'T Bonds'!U2+'Real Estate'!X6-'Real Estate'!$E$5","v":{"v":1417737.6542007318,"d":"1,417,738"}},{"$f":"Equities!V2+'T Bills'!V2+'T Bonds'!V2+'Real Estate'!Y6-'Real Estate'!$E$5","v":{"v":1460267.5070363,"d":"1,460,268"}},{"$f":"Equities!W2+'T Bills'!W2+'T Bonds'!W2+'Real Estate'!Z6-'Real Estate'!$E$5","v":{"v":1433426.8200787015,"d":"1,433,427"}},{"$f":"Equities!X2+'T Bills'!X2+'T Bonds'!X2+'Real Estate'!AA6-'Real Estate'!$E$5","v":{"v":1339565.4270623385,"d":"1,339,565"}},{"$f":"Equities!Y2+'T Bills'!Y2+'T Bonds'!Y2+'Real Estate'!AB6-'Real Estate'!$E$5","v":{"v":1454141.1991251234,"d":"1,454,141"}},{"$f":"Equities!Z2+'T Bills'!Z2+'T Bonds'!Z2+'Real Estate'!AC6-'Real Estate'!$E$5","v":{"v":1515681.0516887952,"d":"1,515,681"}},{"$f":"Equities!AA2+'T Bills'!AA2+'T Bonds'!AA2+'Real Estate'!AD6-'Real Estate'!$E$5","v":{"v":1398514.4397404299,"d":"1,398,514"}},{"$f":"Equities!AB2+'T Bills'!AB2+'T Bonds'!AB2+'Real Estate'!AE6-'Real Estate'!$E$5","v":{"v":1544061.1640845034,"d":"1,544,061"}},{"$f":"Equities!AC2+'T Bills'!AC2+'T Bonds'!AC2+'Real Estate'!AF6-'Real Estate'!$E$5","v":{"v":1606570.0152485024,"d":"1,606,570"}},{"$f":"Equities!AD2+'T Bills'!AD2+'T Bonds'!AD2+'Real Estate'!AG6-'Real Estate'!$E$5","v":{"v":1427344.601944872,"d":"1,427,345"}},{"$f":"Equities!AE2+'T Bills'!AE2+'T Bonds'!AE2+'Real Estate'!AH6-'Real Estate'!$E$5","v":{"v":1371636.9186999456,"d":"1,371,637"}},{"$f":"Equities!AF2+'T Bills'!AF2+'T Bonds'!AF2+'Real Estate'!AI6-'Real Estate'!$E$5","v":{"v":1306204.124218829,"d":"1,306,204"}},{"$f":"Equities!AG2+'T Bills'!AG2+'T Bonds'!AG2+'Real Estate'!AJ6-'Real Estate'!$E$5","v":{"v":1436468.2567544277,"d":"1,436,468"}},{"$f":"Equities!AH2+'T Bills'!AH2+'T Bonds'!AH2+'Real Estate'!AK6-'Real Estate'!$E$5","v":{"v":1197056.4276248536,"d":"1,197,056"}},{"$f":"Equities!AI2+'T Bills'!AI2+'T Bonds'!AI2+'Real Estate'!AL6-'Real Estate'!$E$5","v":{"v":1447745.7298383808,"d":"1,447,746"}},{"$f":"Equities!AJ2+'T Bills'!AJ2+'T Bonds'!AJ2+'Real Estate'!AM6-'Real Estate'!$E$5","v":{"v":1589531.6853374825,"d":"1,589,532"}},{"$f":"Equities!AK2+'T Bills'!AK2+'T Bonds'!AK2+'Real Estate'!AN6-'Real Estate'!$E$5","v":{"v":1425665.1716194304,"d":"1,425,665"}},{"$f":"Equities!AL2+'T Bills'!AL2+'T Bonds'!AL2+'Real Estate'!AO6-'Real Estate'!$E$5","v":{"v":1379920.943071189,"d":"1,379,921"}},{"$f":"Equities!AM2+'T Bills'!AM2+'T Bonds'!AM2+'Real Estate'!AP6-'Real Estate'!$E$5","v":{"v":1252082.5378023144,"d":"1,252,083"}},{"$f":"Equities!AN2+'T Bills'!AN2+'T Bonds'!AN2+'Real Estate'!AQ6-'Real Estate'!$E$5","v":{"v":1325636.5637235278,"d":"1,325,637"}},{"$f":"Equities!AO2+'T Bills'!AO2+'T Bonds'!AO2+'Real Estate'!AR6-'Real Estate'!$E$5","v":{"v":1294359.9615591427,"d":"1,294,360"}},{"$f":"Equities!AP2+'T Bills'!AP2+'T Bonds'!AP2+'Real Estate'!AS6-'Real Estate'!$E$5","v":{"v":1299163.0998891692,"d":"1,299,163"}},{"$f":"Equities!AQ2+'T Bills'!AQ2+'T Bonds'!AQ2+'Real Estate'!AT6-'Real Estate'!$E$5","v":{"v":1556895.2850562304,"d":"1,556,895"}},{"$f":"Equities!AR2+'T Bills'!AR2+'T Bonds'!AR2+'Real Estate'!AU6-'Real Estate'!$E$5","v":{"v":1311319.9909467953,"d":"1,311,320"}},{"$f":"Equities!AS2+'T Bills'!AS2+'T Bonds'!AS2+'Real Estate'!AV6-'Real Estate'!$E$5","v":{"v":1277143.0847538891,"d":"1,277,143"}},{"$f":"Equities!AT2+'T Bills'!AT2+'T Bonds'!AT2+'Real Estate'!AW6-'Real Estate'!$E$5","v":{"v":1419726.349529495,"d":"1,419,726"}},{"$f":"Equities!AU2+'T Bills'!AU2+'T Bonds'!AU2+'Real Estate'!AX6-'Real Estate'!$E$5","v":{"v":1631070.2714955427,"d":"1,631,070"}},{"$f":"Equities!AV2+'T Bills'!AV2+'T Bonds'!AV2+'Real Estate'!AY6-'Real Estate'!$E$5","v":{"v":1518591.304586357,"d":"1,518,591"}},{"$f":"Equities!AW2+'T Bills'!AW2+'T Bonds'!AW2+'Real Estate'!AZ6-'Real Estate'!$E$5","v":{"v":1553557.0123223942,"d":"1,553,557"}},{"$f":"Equities!AX2+'T Bills'!AX2+'T Bonds'!AX2+'Real Estate'!BA6-'Real Estate'!$E$5","v":{"v":1419726.349529495,"d":"1,419,726"}},{"$f":"Equities!AY2+'T Bills'!AY2+'T Bonds'!AY2+'Real Estate'!BB6-'Real Estate'!$E$5","v":{"v":1201169.937638039,"d":"1,201,170"}},{"$f":"Equities!AZ2+'T Bills'!AZ2+'T Bonds'!AZ2+'Real Estate'!BC6-'Real Estate'!$E$5","v":{"v":1331646.697798569,"d":"1,331,647"}},{"$f":"Equities!BA2+'T Bills'!BA2+'T Bonds'!BA2+'Real Estate'!BD6-'Real Estate'!$E$5","v":{"v":1044124.5296115435,"d":"1,044,125"}},{"$f":"Equities!BB2+'T Bills'!BB2+'T Bonds'!BB2+'Real Estate'!BE6-'Real Estate'!$E$5","v":{"v":1299211.2894928828,"d":"1,299,211"}},{"$f":"Equities!BC2+'T Bills'!BC2+'T Bonds'!BC2+'Real Estate'!BF6-'Real Estate'!$E$5","v":{"v":1132635.112790968,"d":"1,132,635"}},{"$f":"Equities!BD2+'T Bills'!BD2+'T Bonds'!BD2+'Real Estate'!BG6-'Real Estate'!$E$5","v":{"v":1492485.4264797175,"d":"1,492,485"}},{"$f":"Equities!BE2+'T Bills'!BE2+'T Bonds'!BE2+'Real Estate'!BH6-'Real Estate'!$E$5","v":{"v":1384081.227339644,"d":"1,384,081"}},{"$f":"Equities!BF2+'T Bills'!BF2+'T Bonds'!BF2+'Real Estate'!BI6-'Real Estate'!$E$5","v":{"v":1373396.1023160226,"d":"1,373,396"}},{"$f":"Equities!BG2+'T Bills'!BG2+'T Bonds'!BG2+'Real Estate'!BJ6-'Real Estate'!$E$5","v":{"v":1442099.44690062,"d":"1,442,099"}},{"$f":"Equities!BH2+'T Bills'!BH2+'T Bonds'!BH2+'Real Estate'!BK6-'Real Estate'!$E$5","v":{"v":1378878.386246211,"d":"1,378,878"}},{"$f":"Equities!BI2+'T Bills'!BI2+'T Bonds'!BI2+'Real Estate'!BL6-'Real Estate'!$E$5","v":{"v":1383920.8738279205,"d":"1,383,921"}},{"$f":"Equities!BJ2+'T Bills'!BJ2+'T Bonds'!BJ2+'Real Estate'!BM6-'Real Estate'!$E$5","v":{"v":1424194.3028881713,"d":"1,424,194"}},{"$f":"Equities!BK2+'T Bills'!BK2+'T Bonds'!BK2+'Real Estate'!BN6-'Real Estate'!$E$5","v":{"v":1329160.4177294713,"d":"1,329,160"}},{"$f":"Equities!BL2+'T Bills'!BL2+'T Bonds'!BL2+'Real Estate'!BO6-'Real Estate'!$E$5","v":{"v":1511668.18476889,"d":"1,511,668"}},{"$f":"Equities!BM2+'T Bills'!BM2+'T Bonds'!BM2+'Real Estate'!BP6-'Real Estate'!$E$5","v":{"v":1433830.2508287255,"d":"1,433,830"}},{"$f":"Equities!BN2+'T Bills'!BN2+'T Bonds'!BN2+'Real Estate'!BQ6-'Real Estate'!$E$5","v":{"v":1308737.1011976018,"d":"1,308,737"}},{"$f":"Equities!BO2+'T Bills'!BO2+'T Bonds'!BO2+'Real Estate'!BR6-'Real Estate'!$E$5","v":{"v":1342972.0490381017,"d":"1,342,972"}},{"$f":"Equities!BP2+'T Bills'!BP2+'T Bonds'!BP2+'Real Estate'!BS6-'Real Estate'!$E$5","v":{"v":1520612.234483967,"d":"1,520,612"}},{"$f":"Equities!BQ2+'T Bills'!BQ2+'T Bonds'!BQ2+'Real Estate'!BT6-'Real Estate'!$E$5","v":{"v":1407184.9395363394,"d":"1,407,185"}},{"$f":"Equities!BR2+'T Bills'!BR2+'T Bonds'!BR2+'Real Estate'!BU6-'Real Estate'!$E$5","v":{"v":1386303.3006883739,"d":"1,386,303"}},{"$f":"Equities!BS2+'T Bills'!BS2+'T Bonds'!BS2+'Real Estate'!BV6-'Real Estate'!$E$5","v":{"v":1180306.0624327066,"d":"1,180,306"}},{"$f":"Equities!BT2+'T Bills'!BT2+'T Bonds'!BT2+'Real Estate'!BW6-'Real Estate'!$E$5","v":{"v":1292635.3033743545,"d":"1,292,635"}},{"$f":"Equities!BU2+'T Bills'!BU2+'T Bonds'!BU2+'Real Estate'!BX6-'Real Estate'!$E$5","v":{"v":1532383.6031938752,"d":"1,532,384"}},{"$f":"Equities!BV2+'T Bills'!BV2+'T Bonds'!BV2+'Real Estate'!BY6-'Real Estate'!$E$5","v":{"v":1429157.5210271187,"d":"1,429,158"}},{"$f":"Equities!BW2+'T Bills'!BW2+'T Bonds'!BW2+'Real Estate'!BZ6-'Real Estate'!$E$5","v":{"v":1442099.44690062,"d":"1,442,099"}},{"$f":"Equities!BX2+'T Bills'!BX2+'T Bonds'!BX2+'Real Estate'!CA6-'Real Estate'!$E$5","v":{"v":1504292.843440282,"d":"1,504,293"}},{"$f":"Equities!BY2+'T Bills'!BY2+'T Bonds'!BY2+'Real Estate'!CB6-'Real Estate'!$E$5","v":{"v":1451474.3870734067,"d":"1,451,474"}},{"$f":"Equities!BZ2+'T Bills'!BZ2+'T Bonds'!BZ2+'Real Estate'!CC6-'Real Estate'!$E$5","v":{"v":1461967.8415587472,"d":"1,461,968"}},{"$f":"Equities!CA2+'T Bills'!CA2+'T Bonds'!CA2+'Real Estate'!CD6-'Real Estate'!$E$5","v":{"v":1432470.933826593,"d":"1,432,471"}},{"$f":"Equities!CB2+'T Bills'!CB2+'T Bonds'!CB2+'Real Estate'!CE6-'Real Estate'!$E$5","v":{"v":1412611.222903896,"d":"1,412,611"}},{"$f":"Equities!CC2+'T Bills'!CC2+'T Bonds'!CC2+'Real Estate'!CF6-'Real Estate'!$E$5","v":{"v":1538999.6266620546,"d":"1,539,000"}},{"$f":"Equities!CD2+'T Bills'!CD2+'T Bonds'!CD2+'Real Estate'!CG6-'Real Estate'!$E$5","v":{"v":1305833.4338298645,"d":"1,305,833"}},{"$f":"Equities!CE2+'T Bills'!CE2+'T Bonds'!CE2+'Real Estate'!CH6-'Real Estate'!$E$5","v":{"v":1560020.2332152359,"d":"1,560,020"}},{"$f":"Equities!CF2+'T Bills'!CF2+'T Bonds'!CF2+'Real Estate'!CI6-'Real Estate'!$E$5","v":{"v":1336239.2612153,"d":"1,336,239"}},{"$f":"Equities!CG2+'T Bills'!CG2+'T Bonds'!CG2+'Real Estate'!CJ6-'Real Estate'!$E$5","v":{"v":1447745.7298383808,"d":"1,447,746"}},{"$f":"Equities!CH2+'T Bills'!CH2+'T Bonds'!CH2+'Real Estate'!CK6-'Real Estate'!$E$5","v":{"v":1358345.7206208126,"d":"1,358,346"}},{"$f":"Equities!CI2+'T Bills'!CI2+'T Bonds'!CI2+'Real Estate'!CL6-'Real Estate'!$E$5","v":{"v":1140645.52173866,"d":"1,140,646"}},{"$f":"Equities!CJ2+'T Bills'!CJ2+'T Bonds'!CJ2+'Real Estate'!CM6-'Real Estate'!$E$5","v":{"v":1461406.3732333155,"d":"1,461,406"}},{"$f":"Equities!CK2+'T Bills'!CK2+'T Bonds'!CK2+'Real Estate'!CN6-'Real Estate'!$E$5","v":{"v":1389125.7550696374,"d":"1,389,126"}},{"$f":"Equities!CL2+'T Bills'!CL2+'T Bonds'!CL2+'Real Estate'!CO6-'Real Estate'!$E$5","v":{"v":1257430.1771859927,"d":"1,257,430"}},{"$f":"Equities!CM2+'T Bills'!CM2+'T Bonds'!CM2+'Real Estate'!CP6-'Real Estate'!$E$5","v":{"v":1478689.594334021,"d":"1,478,690"}},{"$f":"Equities!CN2+'T Bills'!CN2+'T Bonds'!CN2+'Real Estate'!CQ6-'Real Estate'!$E$5","v":{"v":1358225.8027563363,"d":"1,358,226"}},{"$f":"Equities!CO2+'T Bills'!CO2+'T Bonds'!CO2+'Real Estate'!CR6-'Real Estate'!$E$5","v":{"v":1333750.391975087,"d":"1,333,750"}},{"$f":"Equities!CP2+'T Bills'!CP2+'T Bonds'!CP2+'Real Estate'!CS6-'Real Estate'!$E$5","v":{"v":1366258.6999558888,"d":"1,366,259"}},{"$f":"Equities!CQ2+'T Bills'!CQ2+'T Bonds'!CQ2+'Real Estate'!CT6-'Real Estate'!$E$5","v":{"v":1388290.6776470437,"d":"1,388,291"}},{"$f":"Equities!CR2+'T Bills'!CR2+'T Bonds'!CR2+'Real Estate'!CU6-'Real Estate'!$E$5","v":{"v":1496168.3063967684,"d":"1,496,168"}},{"$f":"Equities!CS2+'T Bills'!CS2+'T Bonds'!CS2+'Real Estate'!CV6-'Real Estate'!$E$5","v":{"v":1342338.745224687,"d":"1,342,339"}},{"$f":"Equities!CT2+'T Bills'!CT2+'T Bonds'!CT2+'Real Estate'!CW6-'Real Estate'!$E$5","v":{"v":1242362.7507289958,"d":"1,242,363"}},{"$f":"Equities!CU2+'T Bills'!CU2+'T Bonds'!CU2+'Real Estate'!CX6-'Real Estate'!$E$5","v":{"v":1293562.2808345668,"d":"1,293,562"}},{"$f":"Equities!CV2+'T Bills'!CV2+'T Bonds'!CV2+'Real Estate'!CY6-'Real Estate'!$E$5","v":{"v":1487780.257327683,"d":"1,487,780"}},{"$f":"Equities!CW2+'T Bills'!CW2+'T Bonds'!CW2+'Real Estate'!CZ6-'Real Estate'!$E$5","v":{"v":1130282.6196168258,"d":"1,130,283"}},{"$f":"Equities!CX2+'T Bills'!CX2+'T Bonds'!CX2+'Real Estate'!DA6-'Real Estate'!$E$5","v":{"v":1411013.4121495213,"d":"1,411,013"}}]
[{"$f":"Main!A9","v":"2024-12-30"},{"$f":"B3+1","v":70},{"$f":"Equities!C3+'T Bills'!C3+'T Bonds'!C3+'Real Estate'!F7-'Real Estate'!$E$5","v":{"v":1244859.402302933,"d":"1,244,859"}},{"$f":"Equities!D3+'T Bills'!D3+'T Bonds'!D3+'Real Estate'!G7-'Real Estate'!$E$5","v":{"v":1538939.1271946996,"d":"1,538,939"}},{"$f":"Equities!E3+'T Bills'!E3+'T Bonds'!E3+'Real Estate'!H7-'Real Estate'!$E$5","v":{"v":1819969.028306641,"d":"1,819,969"}},{"$f":"Equities!F3+'T Bills'!F3+'T Bonds'!F3+'Real Estate'!I7-'Real Estate'!$E$5","v":{"v":1831527.6010370795,"d":"1,831,528"}},{"$f":"Equities!G3+'T Bills'!G3+'T Bonds'!G3+'Real Estate'!J7-'Real Estate'!$E$5","v":{"v":1494437.8151468192,"d":"1,494,438"}},{"$f":"Equities!H3+'T Bills'!H3+'T Bonds'!H3+'Real Estate'!K7-'Real Estate'!$E$5","v":{"v":1456490.8226923554,"d":"1,456,491"}},{"$f":"Equities!I3+'T Bills'!I3+'T Bonds'!I3+'Real Estate'!L7-'Real Estate'!$E$5","v":{"v":1909129.5934227093,"d":"1,909,130"}},{"$f":"Equities!J3+'T Bills'!J3+'T Bonds'!J3+'Real Estate'!M7-'Real Estate'!$E$5","v":{"v":1192221.0389941717,"d":"1,192,221"}},{"$f":"Equities!K3+'T Bills'!K3+'T Bonds'!K3+'Real Estate'!N7-'Real Estate'!$E$5","v":{"v":1564163.974169625,"d":"1,564,164"}},{"$f":"Equities!L3+'T Bills'!L3+'T Bonds'!L3+'Real Estate'!O7-'Real Estate'!$E$5","v":{"v":1439447.3474597465,"d":"1,439,447"}},{"$f":"Equities!M3+'T Bills'!M3+'T Bonds'!M3+'Real Estate'!P7-'Real Estate'!$E$5","v":{"v":1728770.8233339086,"d":"1,728,771"}},{"$f":"Equities!N3+'T Bills'!N3+'T Bonds'!N3+'Real Estate'!Q7-'Real Estate'!$E$5","v":{"v":1305058.9345683046,"d":"1,305,059"}},{"$f":"Equities!O3+'T Bills'!O3+'T Bonds'!O3+'Real Estate'!R7-'Real Estate'!$E$5","v":{"v":1344871.6985265503,"d":"1,344,872"}},{"$f":"Equities!P3+'T Bills'!P3+'T Bonds'!P3+'Real Estate'!S7-'Real Estate'!$E$5","v":{"v":1357732.3860653087,"d":"1,357,732"}},{"$f":"Equities!Q3+'T Bills'!Q3+'T Bonds'!Q3+'Real Estate'!T7-'Real Estate'!$E$5","v":{"v":1442795.0678364371,"d":"1,442,795"}},{"$f":"Equities!R3+'T Bills'!R3+'T Bonds'!R3+'Real Estate'!U7-'Real Estate'!$E$5","v":{"v":1270606.1047680874,"d":"1,270,606"}},{"$f":"Equities!S3+'T Bills'!S3+'T Bonds'!S3+'Real Estate'!V7-'Real Estate'!$E$5","v":{"v":1258029.01905541,"d":"1,258,029"}},{"$f":"Equities!T3+'T Bills'!T3+'T Bonds'!T3+'Real Estate'!W7-'Real Estate'!$E$5","v":{"v":1117725.3282159043,"d":"1,117,725"}},{"$f":"Equities!U3+'T Bills'!U3+'T Bonds'!U3+'Real Estate'!X7-'Real Estate'!$E$5","v":{"v":1337699.3846800511,"d":"1,337,699"}},{"$f":"Equities!V3+'T Bills'!V3+'T Bonds'!V3+'Real Estate'!Y7-'Real Estate'!$E$5","v":{"v":1504717.6606898152,"d":"1,504,718"}},{"$f":"Equities!W3+'T Bills'!W3+'T Bonds'!W3+'Real Estate'!Z7-'Real Estate'!$E$5","v":{"v":1593801.8064574914,"d":"1,593,802"}},{"$f":"Equities!X3+'T Bills'!X3+'T Bonds'!X3+'Real Estate'!AA7-'Real Estate'!$E$5","v":{"v":1452656.5577243571,"d":"1,452,657"}},{"$f":"Equities!Y3+'T Bills'!Y3+'T Bonds'!Y3+'Real Estate'!AB7-'Real Estate'!$E$5","v":{"v":1365439.1581404186,"d":"1,365,439"}},{"$f":"Equities!Z3+'T Bills'!Z3+'T Bonds'!Z3+'Real Estate'!AC7-'Real Estate'!$E$5","v":{"v":1742372.221056986,"d":"1,742,372"}},{"$f":"Equities!AA3+'T Bills'!AA3+'T Bonds'!AA3+'Real Estate'!AD7-'Real Estate'!$E$5","v":{"v":1454356.7581455112,"d":"1,454,357"}},{"$f":"Equities!AB3+'T Bills'!AB3+'T Bonds'!AB3+'Real Estate'!AE7-'Real Estate'!$E$5","v":{"v":1715891.1258186463,"d":"1,715,891"}},{"$f":"Equities!AC3+'T Bills'!AC3+'T Bonds'!AC3+'Real Estate'!AF7-'Real Estate'!$E$5","v":{"v":2019317.4198581248,"d":"2,019,317"}},{"$f":"Equities!AD3+'T Bills'!AD3+'T Bonds'!AD3+'Real Estate'!AG7-'Real Estate'!$E$5","v":{"v":1411923.8096561371,"d":"1,411,924"}},{"$f":"Equities!AE3+'T Bills'!AE3+'T Bonds'!AE3+'Real Estate'!AH7-'Real Estate'!$E$5","v":{"v":1502841.0437914794,"d":"1,502,841"}},{"$f":"Equities!AF3+'T Bills'!AF3+'T Bonds'!AF3+'Real Estate'!AI7-'Real Estate'!$E$5","v":{"v":1469051.3399780747,"d":"1,469,051"}},{"$f":"Equities!AG3+'T Bills'!AG3+'T Bonds'!AG3+'Real Estate'!AJ7-'Real Estate'!$E$5","v":{"v":1584763.198424419,"d":"1,584,763"}},{"$f":"Equities!AH3+'T Bills'!AH3+'T Bonds'!AH3+'Real Estate'!AK7-'Real Estate'!$E$5","v":{"v":1345373.909174885,"d":"1,345,374"}},{"$f":"Equities!AI3+'T Bills'!AI3+'T Bonds'!AI3+'Real Estate'!AL7-'Real Estate'!$E$5","v":{"v":1751660.6492192699,"d":"1,751,661"}},{"$f":"Equities!AJ3+'T Bills'!AJ3+'T Bonds'!AJ3+'Real Estate'!AM7-'Real Estate'!$E$5","v":{"v":1612766.224121215,"d":"1,612,766"}},{"$f":"Equities!AK3+'T Bills'!AK3+'T Bonds'!AK3+'Real Estate'!AN7-'Real Estate'!$E$5","v":{"v":1558930.506933476,"d":"1,558,931"}},{"$f":"Equities!AL3+'T Bills'!AL3+'T Bonds'!AL3+'Real Estate'!AO7-'Real Estate'!$E$5","v":{"v":1129333.3098781474,"d":"1,129,333"}},{"$f":"Equities!AM3+'T Bills'!AM3+'T Bonds'!AM3+'Real Estate'!AP7-'Real Estate'!$E$5","v":{"v":1212117.5616549125,"d":"1,212,118"}},{"$f":"Equities!AN3+'T Bills'!AN3+'T Bonds'!AN3+'Real Estate'!AQ7-'Real Estate'!$E$5","v":{"v":1557801.775813512,"d":"1,557,802"}},{"$f":"Equities!AO3+'T Bills'!AO3+'T Bonds'!AO3+'Real Estate'!AR7-'Real Estate'!$E$5","v":{"v":1458120.8932098902,"d":"1,458,121"}},{"$f":"Equities!AP3+'T Bills'!AP3+'T Bonds'!AP3+'Real Estate'!AS7-'Real Estate'!$E$5","v":{"v":1485507.8659846804,"d":"1,485,508"}},{"$f":"Equities!AQ3+'T Bills'!AQ3+'T Bonds'!AQ3+'Real Estate'!AT7-'Real Estate'!$E$5","v":{"v":1444023.7297974506,"d":"1,444,024"}},{"$f":"Equities!AR3+'T Bills'!AR3+'T Bonds'!AR3+'Real Estate'!AU7-'Real Estate'!$E$5","v":{"v":1460626.7817354174,"d":"1,460,627"}},{"$f":"Equities!AS3+'T Bills'!AS3+'T Bonds'!AS3+'Real Estate'!AV7-'Real Estate'!$E$5","v":{"v":1352186.6908549306,"d":"1,352,187"}},{"$f":"Equities!AT3+'T Bills'!AT3+'T Bonds'!AT3+'Real Estate'!AW7-'Real Estate'!$E$5","v":{"v":1420932.7308743342,"d":"1,420,933"}},{"$f":"Equities!AU3+'T Bills'!AU3+'T Bonds'!AU3+'Real Estate'!AX7-'Real Estate'!$E$5","v":{"v":1874962.9338993814,"d":"1,874,963"}},{"$f":"Equities!AV3+'T Bills'!AV3+'T Bonds'!AV3+'Real Estate'!AY7-'Real Estate'!$E$5","v":{"v":1340478.3497817153,"d":"1,340,478"}},{"$f":"Equities!AW3+'T Bills'!AW3+'T Bonds'!AW3+'Real Estate'!AZ7-'Real Estate'!$E$5","v":{"v":1446563.4186347474,"d":"1,446,563"}},{"$f":"Equities!AX3+'T Bills'!AX3+'T Bonds'!AX3+'Real Estate'!BA7-'Real Estate'!$E$5","v":{"v":1545198.9383644236,"d":"1,545,199"}},{"$f":"Equities!AY3+'T Bills'!AY3+'T Bonds'!AY3+'Real Estate'!BB7-'Real Estate'!$E$5","v":{"v":1278346.314439339,"d":"1,278,346"}},{"$f":"Equities!AZ3+'T Bills'!AZ3+'T Bonds'!AZ3+'Real Estate'!BC7-'Real Estate'!$E$5","v":{"v":1453414.878363618,"d":"1,453,415"}},{"$f":"Equities!BA3+'T Bills'!BA3+'T Bonds'!BA3+'Real Estate'!BD7-'Real Estate'!$E$5","v":{"v":888672.4859402333,"d":"888,672"}},{"$f":"Equities!BB3+'T Bills'!BB3+'T Bonds'!BB3+'Real Estate'!BE7-'Real Estate'!$E$5","v":{"v":1203896.1448646009,"d":"1,203,896"}},{"$f":"Equities!BC3+'T Bills'!BC3+'T Bonds'!BC3+'Real Estate'!BF7-'Real Estate'!$E$5","v":{"v":1310911.807247101,"d":"1,310,912"}},{"$f":"Equities!BD3+'T Bills'!BD3+'T Bonds'!BD3+'Real Estate'!BG7-'Real Estate'!$E$5","v":{"v":1678407.2703363253,"d":"1,678,407"}},{"$f":"Equities!BE3+'T Bills'!BE3+'T Bonds'!BE3+'Real Estate'!BH7-'Real Estate'!$E$5","v":{"v":1502323.5293924161,"d":"1,502,324"}},{"$f":"Equities!BF3+'T Bills'!BF3+'T Bonds'!BF3+'Real Estate'!BI7-'Real Estate'!$E$5","v":{"v":1273141.2296159153,"d":"1,273,141"}},{"$f":"Equities!BG3+'T Bills'!BG3+'T Bonds'!BG3+'Real Estate'!BJ7-'Real Estate'!$E$5","v":{"v":1183782.7427860417,"d":"1,183,783"}},{"$f":"Equities!BH3+'T Bills'!BH3+'T Bonds'!BH3+'Real Estate'!BK7-'Real Estate'!$E$5","v":{"v":1510322.5836773973,"d":"1,510,323"}},{"$f":"Equities!BI3+'T Bills'!BI3+'T Bonds'!BI3+'Real Estate'!BL7-'Real Estate'!$E$5","v":{"v":1444605.8951463187,"d":"1,444,606"}},{"$f":"Equities!BJ3+'T Bills'!BJ3+'T Bonds'!BJ3+'Real Estate'!BM7-'Real Estate'!$E$5","v":{"v":1337754.2400570635,"d":"1,337,754"}},{"$f":"Equities!BK3+'T Bills'!BK3+'T Bonds'!BK3+'Real Estate'!BN7-'Real Estate'!$E$5","v":{"v":1295186.977316821,"d":"1,295,187"}},{"$f":"Equities!BL3+'T Bills'!BL3+'T Bonds'!BL3+'Real Estate'!BO7-'Real Estate'!$E$5","v":{"v":1543381.1234581026,"d":"1,543,381"}},{"$f":"Equities!BM3+'T Bills'!BM3+'T Bonds'!BM3+'Real Estate'!BP7-'Real Estate'!$E$5","v":{"v":1185026.5620497207,"d":"1,185,027"}},{"$f":"Equities!BN3+'T Bills'!BN3+'T Bonds'!BN3+'Real Estate'!BQ7-'Real Estate'!$E$5","v":{"v":1364565.5064725338,"d":"1,364,566"}},{"$f":"Equities!BO3+'T Bills'!BO3+'T Bonds'!BO3+'Real Estate'!BR7-'Real Estate'!$E$5","v":{"v":1265121.8051748143,"d":"1,265,122"}},{"$f":"Equities!BP3+'T Bills'!BP3+'T Bonds'!BP3+'Real Estate'!BS7-'Real Estate'!$E$5","v":{"v":1510510.6470704193,"d":"1,510,511"}},{"$f":"Equities!BQ3+'T Bills'!BQ3+'T Bonds'!BQ3+'Real Estate'!BT7-'Real Estate'!$E$5","v":{"v":1743844.7315890628,"d":"1,743,845"}},{"$f":"Equities!BR3+'T Bills'!BR3+'T Bonds'!BR3+'Real Estate'!BU7-'Real Estate'!$E$5","v":{"v":1510302.784197615,"d":"1,510,303"}},{"$f":"Equities!BS3+'T Bills'!BS3+'T Bonds'!BS3+'Real Estate'!BV7-'Real Estate'!$E$5","v":{"v":1369409.0639102496,"d":"1,369,409"}},{"$f":"Equities!BT3+'T Bills'!BT3+'T Bonds'!BT3+'Real Estate'!BW7-'Real Estate'!$E$5","v":{"v":1158642.893747623,"d":"1,158,643"}},{"$f":"Equities!BU3+'T Bills'!BU3+'T Bonds'!BU3+'Real Estate'!BX7-'Real Estate'!$E$5","v":{"v":1362028.2320073703,"d":"1,362,028"}},{"$f":"Equities!BV3+'T Bills'!BV3+'T Bonds'!BV3+'Real Estate'!BY7-'Real Estate'!$E$5","v":{"v":1504437.1716519056,"d":"1,504,437"}},{"$f":"Equities!BW3+'T Bills'!BW3+'T Bonds'!BW3+'Real Estate'!BZ7-'Real Estate'!$E$5","v":{"v":1171033.5270859897,"d":"1,171,034"}},{"$f":"Equities!BX3+'T Bills'!BX3+'T Bonds'!BX3+'Real Estate'!CA7-'Real Estate'!$E$5","v":{"v":1398761.1820579348,"d":"1,398,761"}},{"$f":"Equities!BY3+'T Bills'!BY3+'T Bonds'!BY3+'Real Estate'!CB7-'Real Estate'!$E$5","v":{"v":1766910.8088441787,"d":"1,766,911"}},{"$f":"Equities!BZ3+'T Bills'!BZ3+'T Bonds'!BZ3+'Real Estate'!CC7-'Real Estate'!$E$5","v":{"v":1618397.8229822733,"d":"1,618,398"}},{"$f":"Equities!CA3+'T Bills'!CA3+'T Bonds'!CA3+'Real Estate'!CD7-'Real Estate'!$E$5","v":{"v":1696482.8735533524,"d":"1,696,483"}},{"$f":"Equities!CB3+'T Bills'!CB3+'T Bonds'!CB3+'Real Estate'!CE7-'Real Estate'!$E$5","v":{"v":1486132.4777974836,"d":"1,486,132"}},{"$f":"Equities!CC3+'T Bills'!CC3+'T Bonds'!CC3+'Real Estate'!CF7-'Real Estate'!$E$5","v":{"v":1729637.1245247945,"d":"1,729,637"}},{"$f":"Equities!CD3+'T Bills'!CD3+'T Bonds'!CD3+'Real Estate'!CG7-'Real Estate'!$E$5","v":{"v":1625118.9186003595,"d":"1,625,119"}},{"$f":"Equities!CE3+'T Bills'!CE3+'T Bonds'!CE3+'Real Estate'!CH7-'Real Estate'!$E$5","v":{"v":1920415.3320079132,"d":"1,920,415"}},{"$f":"Equities!CF3+'T Bills'!CF3+'T Bonds'!CF3+'Real Estate'!CI7-'Real Estate'!$E$5","v":{"v":1598667.4372225932,"d":"1,598,667"}},{"$f":"Equities!CG3+'T Bills'!CG3+'T Bonds'!CG3+'Real Estate'!CJ7-'Real Estate'!$E$5","v":{"v":1510053.900533763,"d":"1,510,054"}},{"$f":"Equities!CH3+'T Bills'!CH3+'T Bonds'!CH3+'Real Estate'!CK7-'Real Estate'!$E$5","v":{"v":1604920.1284103512,"d":"1,604,920"}},{"$f":"Equities!CI3+'T Bills'!CI3+'T Bonds'!CI3+'Real Estate'!CL7-'Real Estate'!$E$5","v":{"v":1217043.5301621316,"d":"1,217,044"}},{"$f":"Equities!CJ3+'T Bills'!CJ3+'T Bonds'!CJ3+'Real Estate'!CM7-'Real Estate'!$E$5","v":{"v":1559195.7800142271,"d":"1,559,196"}},{"$f":"Equities!CK3+'T Bills'!CK3+'T Bonds'!CK3+'Real Estate'!CN7-'Real Estate'!$E$5","v":{"v":1145694.9041044558,"d":"1,145,695"}},{"$f":"Equities!CL3+'T Bills'!CL3+'T Bonds'!CL3+'Real Estate'!CO7-'Real Estate'!$E$5","v":{"v":1470722.2373992344,"d":"1,470,722"}},{"$f":"Equities!CM3+'T Bills'!CM3+'T Bonds'!CM3+'Real Estate'!CP7-'Real Estate'!$E$5","v":{"v":1621599.2155737893,"d":"1,621,599"}},{"$f":"Equities!CN3+'T Bills'!CN3+'T Bonds'!CN3+'Real Estate'!CQ7-'Real Estate'!$E$5","v":{"v":1489898.404279026,"d":"1,489,898"}},{"$f":"Equities!CO3+'T Bills'!CO3+'T Bonds'!CO3+'Real Estate'!CR7-'Real Estate'!$E$5","v":{"v":1537516.1766067115,"d":"1,537,516"}},{"$f":"Equities!CP3+'T Bills'!CP3+'T Bonds'!CP3+'Real Estate'!CS7-'Real Estate'!$E$5","v":{"v":1499306.1834759442,"d":"1,499,306"}},{"$f":"Equities!CQ3+'T Bills'!CQ3+'T Bonds'!CQ3+'Real Estate'!CT7-'Real Estate'!$E$5","v":{"v":1475108.2157618718,"d":"1,475,108"}},{"$f":"Equities!CR3+'T Bills'!CR3+'T Bonds'!CR3+'Real Estate'!CU7-'Real Estate'!$E$5","v":{"v":1665551.7439554986,"d":"1,665,552"}},{"$f":"Equities!CS3+'T Bills'!CS3+'T Bonds'!CS3+'Real Estate'!CV7-'Real Estate'!$E$5","v":{"v":1648726.2170506178,"d":"1,648,726"}},{"$f":"Equities!CT3+'T Bills'!CT3+'T Bonds'!CT3+'Real Estate'!CW7-'Real Estate'!$E$5","v":{"v":1260814.2071031218,"d":"1,260,814"}},{"$f":"Equities!CU3+'T Bills'!CU3+'T Bonds'!CU3+'Real Estate'!CX7-'Real Estate'!$E$5","v":{"v":1548746.4387426453,"d":"1,548,746"}},{"$f":"Equities!CV3+'T Bills'!CV3+'T Bonds'!CV3+'Real Estate'!CY7-'Real Estate'!$E$5","v":{"v":1773171.4841070396,"d":"1,773,171"}},{"$f":"Equities!CW3+'T Bills'!CW3+'T Bonds'!CW3+'Real Estate'!CZ7-'Real Estate'!$E$5","v":{"v":1198153.1828909696,"d":"1,198,153"}},{"$f":"Equities!CX3+'T Bills'!CX3+'T Bonds'!CX3+'Real Estate'!DA7-'Real Estate'!$E$5","v":{"v":1382855.2073336216,"d":"1,382,855"}}]
[{"$f":"Main!A10","v":"2025-12-30"},71,{"$f":"Equities!C4+'T Bills'!C4+'T Bonds'!C4+'Real Estate'!F8-'Real Estate'!$E$5","v":{"v":1235338.5060796514,"d":"1,235,339"}},{"$f":"Equities!D4+'T Bills'!D4+'T Bonds'!D4+'Real Estate'!G8-'Real Estate'!$E$5","v":{"v":1479123.4650852534,"d":"1,479,123"}},{"$f":"Equities!E4+'T Bills'!E4+'T Bonds'!E4+'Real Estate'!H8-'Real Estate'!$E$5","v":{"v":2149271.1205204404,"d":"2,149,271"}},{"$f":"Equities!F4+'T Bills'!F4+'T Bonds'!F4+'Real Estate'!I8-'Real Estate'!$E$5","v":{"v":1715701.1859565394,"d":"1,715,701"}},{"$f":"Equities!G4+'T Bills'!G4+'T Bonds'!G4+'Real Estate'!J8-'Real Estate'!$E$5","v":{"v":1787292.4631548186,"d":"1,787,292"}},{"$f":"Equities!H4+'T Bills'!H4+'T Bonds'!H4+'Real Estate'!K8-'Real Estate'!$E$5","v":{"v":1357983.411500937,"d":"1,357,983"}},{"$f":"Equities!I4+'T Bills'!I4+'T Bonds'!I4+'Real Estate'!L8-'Real Estate'!$E$5","v":{"v":1786770.1213532814,"d":"1,786,770"}},{"$f":"Equities!J4+'T Bills'!J4+'T Bonds'!J4+'Real Estate'!M8-'Real Estate'!$E$5","v":{"v":1335112.7352224465,"d":"1,335,113"}},{"$f":"Equities!K4+'T Bills'!K4+'T Bonds'!K4+'Real Estate'!N8-'Real Estate'!$E$5","v":{"v":1644662.4792524124,"d":"1,644,662"}},{"$f":"Equities!L4+'T Bills'!L4+'T Bonds'!L4+'Real Estate'!O8-'Real Estate'!$E$5","v":{"v":1520794.0701363154,"d":"1,520,794"}},{"$f":"Equities!M4+'T Bills'!M4+'T Bonds'!M4+'Real Estate'!P8-'Real Estate'!$E$5","v":{"v":1726408.2124182165,"d":"1,726,408"}},{"$f":"Equities!N4+'T Bills'!N4+'T Bonds'!N4+'Real Estate'!Q8-'Real Estate'!$E$5","v":{"v":1277357.2446277065,"d":"1,277,357"}},{"$f":"Equities!O4+'T Bills'!O4+'T Bonds'!O4+'Real Estate'!R8-'Real Estate'!$E$5","v":{"v":1255669.746056069,"d":"1,255,670"}},{"$f":"Equities!P4+'T Bills'!P4+'T Bonds'!P4+'Real Estate'!S8-'Real Estate'!$E$5","v":{"v":1575268.2987986899,"d":"1,575,268"}},{"$f":"Equities!Q4+'T Bills'!Q4+'T Bonds'!Q4+'Real Estate'!T8-'Real Estate'!$E$5","v":{"v":1366050.2946268164,"d":"1,366,050"}},{"$f":"Equities!R4+'T Bills'!R4+'T Bonds'!R4+'Real Estate'!U8-'Real Estate'!$E$5","v":{"v":1126386.3148850845,"d":"1,126,386"}},{"$f":"Equities!S4+'T Bills'!S4+'T Bonds'!S4+'Real Estate'!V8-'Real Estate'!$E$5","v":{"v":1183265.00712669,"d":"1,183,265"}},{"$f":"Equities!T4+'T Bills'!T4+'T Bonds'!T4+'Real Estate'!W8-'Real Estate'!$E$5","v":{"v":1276510.2915456223,"d":"1,276,510"}},{"$f":"Equities!U4+'T Bills'!U4+'T Bonds'!U4+'Real Estate'!X8-'Real Estate'!$E$5","v":{"v":1158478.420981863,"d":"1,158,478"}},{"$f":"Equities!V4+'T Bills'!V4+'T Bonds'!V4+'Real Estate'!Y8-'Real Estate'!$E$5","v":{"v":1365581.3428137542,"d":"1,365,581"}},{"$f":"Equities!W4+'T Bills'!W4+'T Bonds'!W4+'Real Estate'!Z8-'Real Estate'!$E$5","v":{"v":1521943.9748164266,"d":"1,521,944"}},{"$f":"Equities!X4+'T Bills'!X4+'T Bonds'!X4+'Real Estate'!AA8-'Real Estate'!$E$5","v":{"v":1494879.45964514,"d":"1,494,879"}},{"$f":"Equities!Y4+'T Bills'!Y4+'T Bonds'!Y4+'Real Estate'!AB8-'Real Estate'!$E$5","v":{"v":1412107.9234850444,"d":"1,412,108"}},{"$f":"Equities!Z4+'T Bills'!Z4+'T Bonds'!Z4+'Real Estate'!AC8-'Real Estate'!$E$5","v":{"v":1812599.3311890017,"d":"1,812,599"}},{"$f":"Equities!AA4+'T Bills'!AA4+'T Bonds'!AA4+'Real Estate'!AD8-'Real Estate'!$E$5","v":{"v":1671177.6503517728,"d":"1,671,178"}},{"$f":"Equities!AB4+'T Bills'!AB4+'T Bonds'!AB4+'Real Estate'!AE8-'Real Estate'!$E$5","v":{"v":1904549.1974491763,"d":"1,904,549"}},{"$f":"Equities!AC4+'T Bills'!AC4+'T Bonds'!AC4+'Real Estate'!AF8-'Real Estate'!$E$5","v":{"v":2134247.263711108,"d":"2,134,247"}},{"$f":"Equities!AD4+'T Bills'!AD4+'T Bonds'!AD4+'Real Estate'!AG8-'Real Estate'!$E$5","v":{"v":1197525.2118410815,"d":"1,197,525"}},{"$f":"Equities!AE4+'T Bills'!AE4+'T Bonds'!AE4+'Real Estate'!AH8-'Real Estate'!$E$5","v":{"v":1406193.302020277,"d":"1,406,193"}},{"$f":"Equities!AF4+'T Bills'!AF4+'T Bonds'!AF4+'Real Estate'!AI8-'Real Estate'!$E$5","v":{"v":1675785.7019288463,"d":"1,675,786"}},{"$f":"Equities!AG4+'T Bills'!AG4+'T Bonds'!AG4+'Real Estate'!AJ8-'Real Estate'!$E$5","v":{"v":1565659.5049150677,"d":"1,565,660"}},{"$f":"Equities!AH4+'T Bills'!AH4+'T Bonds'!AH4+'Real Estate'!AK8-'Real Estate'!$E$5","v":{"v":1538550.3518849562,"d":"1,538,550"}},{"$f":"Equities!AI4+'T Bills'!AI4+'T Bonds'!AI4+'Real Estate'!AL8-'Real Estate'!$E$5","v":{"v":1844233.8393976951,"d":"1,844,234"}},{"$f":"Equities!AJ4+'T Bills'!AJ4+'T Bonds'!AJ4+'Real Estate'!AM8-'Real Estate'!$E$5","v":{"v":1941699.1246659933,"d":"1,941,699"}},{"$f":"Equities!AK4+'T Bills'!AK4+'T Bonds'!AK4+'Real Estate'!AN8-'Real Estate'!$E$5","v":{"v":1731237.1896512944,"d":"1,731,237"}},{"$f":"Equities!AL4+'T Bills'!AL4+'T Bonds'!AL4+'Real Estate'!AO8-'Real Estate'!$E$5","v":{"v":1177721.9168318452,"d":"1,177,722"}},{"$f":"Equities!AM4+'T Bills'!AM4+'T Bonds'!AM4+'Real Estate'!AP8-'Real Estate'!$E$5","v":{"v":1082364.1689444517,"d":"1,082,364"}},{"$f":"Equities!AN4+'T Bills'!AN4+'T Bonds'!AN4+'Real Estate'!AQ8-'Real Estate'!$E$5","v":{"v":1496090.142498692,"d":"1,496,090"}},{"$f":"Equities!AO4+'T Bills'!AO4+'T Bonds'!AO4+'Real Estate'!AR8-'Real Estate'!$E$5","v":{"v":1605508.0091299668,"d":"1,605,508"}},{"$f":"Equities!AP4+'T Bills'!AP4+'T Bonds'!AP4+'Real Estate'!AS8-'Real Estate'!$E$5","v":{"v":1709735.8691427584,"d":"1,709,736"}},{"$f":"Equities!AQ4+'T Bills'!AQ4+'T Bonds'!AQ4+'Real Estate'!AT8-'Real Estate'!$E$5","v":{"v":1578423.703532608,"d":"1,578,424"}},{"$f":"Equities!AR4+'T Bills'!AR4+'T Bonds'!AR4+'Real Estate'!AU8-'Real Estate'!$E$5","v":{"v":1806101.2326640668,"d":"1,806,101"}},{"$f":"Equities!AS4+'T Bills'!AS4+'T Bonds'!AS4+'Real Estate'!AV8-'Real Estate'!$E$5","v":{"v":1262265.6872753098,"d":"1,262,266"}},{"$f":"Equities!AT4+'T Bills'!AT4+'T Bonds'!AT4+'Real Estate'!AW8-'Real Estate'!$E$5","v":{"v":1512712.167111172,"d":"1,512,712"}},{"$f":"Equities!AU4+'T Bills'!AU4+'T Bonds'!AU4+'Real Estate'!AX8-'Real Estate'!$E$5","v":{"v":2161596.907618366,"d":"2,161,597"}},{"$f":"Equities!AV4+'T Bills'!AV4+'T Bonds'!AV4+'Real Estate'!AY8-'Real Estate'!$E$5","v":{"v":1377931.906555721,"d":"1,377,932"}},{"$f":"Equities!AW4+'T Bills'!AW4+'T Bonds'!AW4+'Real Estate'!AZ8-'Real Estate'!$E$5","v":{"v":1714896.8089987806,"d":"1,714,897"}},{"$f":"Equities!AX4+'T Bills'!AX4+'T Bonds'!AX4+'Real Estate'!BA8-'Real Estate'!$E$5","v":{"v":1682952.214636808,"d":"1,682,952"}},{"$f":"Equities!AY4+'T Bills'!AY4+'T Bonds'!AY4+'Real Estate'!BB8-'Real Estate'!$E$5","v":{"v":1294118.885945358,"d":"1,294,119"}},{"$f":"Equities!AZ4+'T Bills'!AZ4+'T Bonds'!AZ4+'Real Estate'!BC8-'Real Estate'!$E$5","v":{"v":1542567.0837413864,"d":"1,542,567"}},{"$f":"Equities!BA4+'T Bills'!BA4+'T Bonds'!BA4+'Real Estate'!BD8-'Real Estate'!$E$5","v":{"v":982530.5499379991,"d":"982,531"}},{"$f":"Equities!BB4+'T Bills'!BB4+'T Bonds'!BB4+'Real Estate'!BE8-'Real Estate'!$E$5","v":{"v":1211680.3165177165,"d":"1,211,680"}},{"$f":"Equities!BC4+'T Bills'!BC4+'T Bonds'!BC4+'Real Estate'!BF8-'Real Estate'!$E$5","v":{"v":1537469.7703525685,"d":"1,537,470"}},{"$f":"Equities!BD4+'T Bills'!BD4+'T Bonds'!BD4+'Real Estate'!BG8-'Real Estate'!$E$5","v":{"v":1403638.6691058015,"d":"1,403,639"}},{"$f":"Equities!BE4+'T Bills'!BE4+'T Bonds'!BE4+'Real Estate'!BH8-'Real Estate'!$E$5","v":{"v":1778747.2794345187,"d":"1,778,747"}},{"$f":"Equities!BF4+'T Bills'!BF4+'T Bonds'!BF4+'Real Estate'!BI8-'Real Estate'!$E$5","v":{"v":1418562.7045762574,"d":"1,418,563"}},{"$f":"Equities!BG4+'T Bills'!BG4+'T Bonds'!BG4+'Real Estate'!BJ8-'Real Estate'!$E$5","v":{"v":1291523.103922664,"d":"1,291,523"}},{"$f":"Equities!BH4+'T Bills'!BH4+'T Bonds'!BH4+'Real Estate'!BK8-'Real Estate'!$E$5","v":{"v":1333341.9783726747,"d":"1,333,342"}},{"$f":"Equities!BI4+'T Bills'!BI4+'T Bonds'!BI4+'Real Estate'!BL8-'Real Estate'!$E$5","v":{"v":1845340.546939803,"d":"1,845,341"}},{"$f":"Equities!BJ4+'T Bills'!BJ4+'T Bonds'!BJ4+'Real Estate'!BM8-'Real Estate'!$E$5","v":{"v":1498459.9062162077,"d":"1,498,460"}},{"$f":"Equities!BK4+'T Bills'!BK4+'T Bonds'!BK4+'Real Estate'!BN8-'Real Estate'!$E$5","v":{"v":1245102.8601378943,"d":"1,245,103"}},{"$f":"Equities!BL4+'T Bills'!BL4+'T Bonds'!BL4+'Real Estate'!BO8-'Real Estate'!$E$5","v":{"v":1451177.8448956767,"d":"1,451,178"}},{"$f":"Equities!BM4+'T Bills'!BM4+'T Bonds'!BM4+'Real Estate'!BP8-'Real Estate'!$E$5","v":{"v":1145977.7122027592,"d":"1,145,978"}},{"$f":"Equities!BN4+'T Bills'!BN4+'T Bonds'!BN4+'Real Estate'!BQ8-'Real Estate'!$E$5","v":{"v":1111492.4905723638,"d":"1,111,492"}},{"$f":"Equities!BO4+'T Bills'!BO4+'T Bonds'!BO4+'Real Estate'!BR8-'Real Estate'!$E$5","v":{"v":1269618.8124316067,"d":"1,269,619"}},{"$f":"Equities!BP4+'T Bills'!BP4+'T Bonds'!BP4+'Real Estate'!BS8-'Real Estate'!$E$5","v":{"v":1719710.1274850229,"d":"1,719,710"}},{"$f":"Equities!BQ4+'T Bills'!BQ4+'T Bonds'!BQ4+'Real Estate'!BT8-'Real Estate'!$E$5","v":{"v":1842352.6535980764,"d":"1,842,353"}},{"$f":"Equities!BR4+'T Bills'!BR4+'T Bonds'!BR4+'Real Estate'!BU8-'Real Estate'!$E$5","v":{"v":1881941.3484111547,"d":"1,881,941"}},{"$f":"Equities!BS4+'T Bills'!BS4+'T Bonds'!BS4+'Real Estate'!BV8-'Real Estate'!$E$5","v":{"v":1613486.7197780411,"d":"1,613,487"}},{"$f":"Equities!BT4+'T Bills'!BT4+'T Bonds'!BT4+'Real Estate'!BW8-'Real Estate'!$E$5","v":{"v":1191329.4146972897,"d":"1,191,329"}},{"$f":"Equities!BU4+'T Bills'!BU4+'T Bonds'!BU4+'Real Estate'!BX8-'Real Estate'!$E$5","v":{"v":1562633.1764510325,"d":"1,562,633"}},{"$f":"Equities!BV4+'T Bills'!BV4+'T Bonds'!BV4+'Real Estate'!BY8-'Real Estate'!$E$5","v":{"v":1770182.1130371075,"d":"1,770,182"}},{"$f":"Equities!BW4+'T Bills'!BW4+'T Bonds'!BW4+'Real Estate'!BZ8-'Real Estate'!$E$5","v":{"v":1243683.348964127,"d":"1,243,683"}},{"$f":"Equities!BX4+'T Bills'!BX4+'T Bonds'!BX4+'Real Estate'!CA8-'Real Estate'!$E$5","v":{"v":1287575.96097645,"d":"1,287,576"}},{"$f":"Equities!BY4+'T Bills'!BY4+'T Bonds'!BY4+'Real Estate'!CB8-'Real Estate'!$E$5","v":{"v":1503667.2810391092,"d":"1,503,667"}},{"$f":"Equities!BZ4+'T Bills'!BZ4+'T Bonds'!BZ4+'Real Estate'!CC8-'Real Estate'!$E$5","v":{"v":1782237.4015681043,"d":"1,782,237"}},{"$f":"Equities!CA4+'T Bills'!CA4+'T Bonds'!CA4+'Real Estate'!CD8-'Real Estate'!$E$5","v":{"v":1828230.1964165862,"d":"1,828,230"}},{"$f":"Equities!CB4+'T Bills'!CB4+'T Bonds'!CB4+'Real Estate'!CE8-'Real Estate'!$E$5","v":{"v":1514027.8016363017,"d":"1,514,028"}},{"$f":"Equities!CC4+'T Bills'!CC4+'T Bonds'!CC4+'Real Estate'!CF8-'Real Estate'!$E$5","v":{"v":1687114.6142121565,"d":"1,687,115"}},{"$f":"Equities!CD4+'T Bills'!CD4+'T Bonds'!CD4+'Real Estate'!CG8-'Real Estate'!$E$5","v":{"v":1872911.921584054,"d":"1,872,912"}},{"$f":"Equities!CE4+'T Bills'!CE4+'T Bonds'!CE4+'Real Estate'!CH8-'Real Estate'!$E$5","v":{"v":2066995.7007233647,"d":"2,066,996"}},{"$f":"Equities!CF4+'T Bills'!CF4+'T Bonds'!CF4+'Real Estate'!CI8-'Real Estate'!$E$5","v":{"v":1637870.8145903104,"d":"1,637,871"}},{"$f":"Equities!CG4+'T Bills'!CG4+'T Bonds'!CG4+'Real Estate'!CJ8-'Real Estate'!$E$5","v":{"v":1472658.664367915,"d":"1,472,659"}},{"$f":"Equities!CH4+'T Bills'!CH4+'T Bonds'!CH4+'Real Estate'!CK8-'Real Estate'!$E$5","v":{"v":1667545.9504951506,"d":"1,667,546"}},{"$f":"Equities!CI4+'T Bills'!CI4+'T Bonds'!CI4+'Real Estate'!CL8-'Real Estate'!$E$5","v":{"v":1264439.5083553544,"d":"1,264,440"}},{"$f":"Equities!CJ4+'T Bills'!CJ4+'T Bonds'!CJ4+'Real Estate'!CM8-'Real Estate'!$E$5","v":{"v":1644753.3822419213,"d":"1,644,753"}},{"$f":"Equities!CK4+'T Bills'!CK4+'T Bonds'!CK4+'Real Estate'!CN8-'Real Estate'!$E$5","v":{"v":1235902.2516613638,"d":"1,235,902"}},{"$f":"Equities!CL4+'T Bills'!CL4+'T Bonds'!CL4+'Real Estate'!CO8-'Real Estate'!$E$5","v":{"v":1698426.4942514957,"d":"1,698,426"}},{"$f":"Equities!CM4+'T Bills'!CM4+'T Bonds'!CM4+'Real Estate'!CP8-'Real Estate'!$E$5","v":{"v":1886662.581447134,"d":"1,886,663"}},{"$f":"Equities!CN4+'T Bills'!CN4+'T Bonds'!CN4+'Real Estate'!CQ8-'Real Estate'!$E$5","v":{"v":1558444.763587495,"d":"1,558,445"}},{"$f":"Equities!CO4+'T Bills'!CO4+'T Bonds'!CO4+'Real Estate'!CR8-'Real Estate'!$E$5","v":{"v":1623714.556774419,"d":"1,623,715"}},{"$f":"Equities!CP4+'T Bills'!CP4+'T Bonds'!CP4+'Real Estate'!CS8-'Real Estate'!$E$5","v":{"v":1582025.2607631446,"d":"1,582,025"}},{"$f":"Equities!CQ4+'T Bills'!CQ4+'T Bonds'!CQ4+'Real Estate'!CT8-'Real Estate'!$E$5","v":{"v":1397373.5181016242,"d":"1,397,374"}},{"$f":"Equities!CR4+'T Bills'!CR4+'T Bonds'!CR4+'Real Estate'!CU8-'Real Estate'!$E$5","v":{"v":1715895.1869211905,"d":"1,715,895"}},{"$f":"Equities!CS4+'T Bills'!CS4+'T Bonds'!CS4+'Real Estate'!CV8-'Real Estate'!$E$5","v":{"v":1852852.0530824063,"d":"1,852,852"}},{"$f":"Equities!CT4+'T Bills'!CT4+'T Bonds'!CT4+'Real Estate'!CW8-'Real Estate'!$E$5","v":{"v":1478786.8356364272,"d":"1,478,787"}},{"$f":"Equities!CU4+'T Bills'!CU4+'T Bonds'!CU4+'Real Estate'!CX8-'Real Estate'!$E$5","v":{"v":1925694.766077622,"d":"1,925,695"}},{"$f":"Equities!CV4+'T Bills'!CV4+'T Bonds'!CV4+'Real Estate'!CY8-'Real Estate'!$E$5","v":{"v":1649810.27741539,"d":"1,649,810"}},{"$f":"Equities!CW4+'T Bills'!CW4+'T Bonds'!CW4+'Real Estate'!CZ8-'Real Estate'!$E$5","v":{"v":1312385.7379112698,"d":"1,312,386"}},{"$f":"Equities!CX4+'T Bills'!CX4+'T Bonds'!CX4+'Real Estate'!DA8-'Real Estate'!$E$5","v":{"v":1541008.7990421338,"d":"1,541,009"}}]
[{"$f":"Main!A11","v":"2026-12-30"},72,{"$f":"Equities!C5+'T Bills'!C5+'T Bonds'!C5+'Real Estate'!F9-'Real Estate'!$E$5","v":{"v":1339094.0226506097,"d":"1,339,094"}},{"$f":"Equities!D5+'T Bills'!D5+'T Bonds'!D5+'Real Estate'!G9-'Real Estate'!$E$5","v":{"v":1632067.8463301954,"d":"1,632,068"}},{"$f":"Equities!E5+'T Bills'!E5+'T Bonds'!E5+'Real Estate'!H9-'Real Estate'!$E$5","v":{"v":2446815.3026370276,"d":"2,446,815"}},{"$f":"Equities!F5+'T Bills'!F5+'T Bonds'!F5+'Real Estate'!I9-'Real Estate'!$E$5","v":{"v":2131951.2146098716,"d":"2,131,951"}},{"$f":"Equities!G5+'T Bills'!G5+'T Bonds'!G5+'Real Estate'!J9-'Real Estate'!$E$5","v":{"v":1688948.5354736703,"d":"1,688,949"}},{"$f":"Equities!H5+'T Bills'!H5+'T Bonds'!H5+'Real Estate'!K9-'Real Estate'!$E$5","v":{"v":1582732.0397437976,"d":"1,582,732"}},{"$f":"Equities!I5+'T Bills'!I5+'T Bonds'!I5+'Real Estate'!L9-'Real Estate'!$E$5","v":{"v":1666244.882454677,"d":"1,666,245"}},{"$f":"Equities!J5+'T Bills'!J5+'T Bonds'!J5+'Real Estate'!M9-'Real Estate'!$E$5","v":{"v":1582121.3881907805,"d":"1,582,121"}},{"$f":"Equities!K5+'T Bills'!K5+'T Bonds'!K5+'Real Estate'!N9-'Real Estate'!$E$5","v":{"v":1989947.6088455357,"d":"1,989,948"}},{"$f":"Equities!L5+'T Bills'!L5+'T Bonds'!L5+'Real Estate'!O9-'Real Estate'!$E$5","v":{"v":1738666.9344065415,"d":"1,738,667"}},{"$f":"Equities!M5+'T Bills'!M5+'T Bonds'!M5+'Real Estate'!P9-'Real Estate'!$E$5","v":{"v":1459698.245904453,"d":"1,459,698"}},{"$f":"Equities!N5+'T Bills'!N5+'T Bonds'!N5+'Real Estate'!Q9-'Real Estate'!$E$5","v":{"v":980228.6437137467,"d":"980,229"}},{"$f":"Equities!O5+'T Bills'!O5+'T Bonds'!O5+'Real Estate'!R9-'Real Estate'!$E$5","v":{"v":1364454.4971559823,"d":"1,364,454"}},{"$f":"Equities!P5+'T Bills'!P5+'T Bonds'!P5+'Real Estate'!S9-'Real Estate'!$E$5","v":{"v":1129396.2998502187,"d":"1,129,396"}},{"$f":"Equities!Q5+'T Bills'!Q5+'T Bonds'!Q5+'Real Estate'!T9-'Real Estate'!$E$5","v":{"v":1406613.2159498471,"d":"1,406,613"}},{"$f":"Equities!R5+'T Bills'!R5+'T Bonds'!R5+'Real Estate'!U9-'Real Estate'!$E$5","v":{"v":1439734.7398253833,"d":"1,439,735"}},{"$f":"Equities!S5+'T Bills'!S5+'T Bonds'!S5+'Real Estate'!V9-'Real Estate'!$E$5","v":{"v":1312498.376841519,"d":"1,312,498"}},{"$f":"Equities!T5+'T Bills'!T5+'T Bonds'!T5+'Real Estate'!W9-'Real Estate'!$E$5","v":{"v":1313209.7300990426,"d":"1,313,210"}},{"$f":"Equities!U5+'T Bills'!U5+'T Bonds'!U5+'Real Estate'!X9-'Real Estate'!$E$5","v":{"v":1348390.265966453,"d":"1,348,390"}},{"$f":"Equities!V5+'T Bills'!V5+'T Bonds'!V5+'Real Estate'!Y9-'Real Estate'!$E$5","v":{"v":1673845.244686237,"d":"1,673,845"}},{"$f":"Equities!W5+'T Bills'!W5+'T Bonds'!W5+'Real Estate'!Z9-'Real Estate'!$E$5","v":{"v":1724093.1876899267,"d":"1,724,093"}},{"$f":"Equities!X5+'T Bills'!X5+'T Bonds'!X5+'Real Estate'!AA9-'Real Estate'!$E$5","v":{"v":1547954.1831077582,"d":"1,547,954"}},{"$f":"Equities!Y5+'T Bills'!Y5+'T Bonds'!Y5+'Real Estate'!AB9-'Real Estate'!$E$5","v":{"v":1208935.0978078975,"d":"1,208,935"}},{"$f":"Equities!Z5+'T Bills'!Z5+'T Bonds'!Z5+'Real Estate'!AC9-'Real Estate'!$E$5","v":{"v":2063590.023707785,"d":"2,063,590"}},{"$f":"Equities!AA5+'T Bills'!AA5+'T Bonds'!AA5+'Real Estate'!AD9-'Real Estate'!$E$5","v":{"v":2016023.0690115641,"d":"2,016,023"}},{"$f":"Equities!AB5+'T Bills'!AB5+'T Bonds'!AB5+'Real Estate'!AE9-'Real Estate'!$E$5","v":{"v":1780375.4165163862,"d":"1,780,375"}},{"$f":"Equities!AC5+'T Bills'!AC5+'T Bonds'!AC5+'Real Estate'!AF9-'Real Estate'!$E$5","v":{"v":2566918.09923975,"d":"2,566,918"}},{"$f":"Equities!AD5+'T Bills'!AD5+'T Bonds'!AD5+'Real Estate'!AG9-'Real Estate'!$E$5","v":{"v":1364074.6999294788,"d":"1,364,075"}},{"$f":"Equities!AE5+'T Bills'!AE5+'T Bonds'!AE5+'Real Estate'!AH9-'Real Estate'!$E$5","v":{"v":1307419.9587709748,"d":"1,307,420"}},{"$f":"Equities!AF5+'T Bills'!AF5+'T Bonds'!AF5+'Real Estate'!AI9-'Real Estate'!$E$5","v":{"v":1821650.2986610818,"d":"1,821,650"}},{"$f":"Equities!AG5+'T Bills'!AG5+'T Bonds'!AG5+'Real Estate'!AJ9-'Real Estate'!$E$5","v":{"v":1713322.8089997594,"d":"1,713,323"}},{"$f":"Equities!AH5+'T Bills'!AH5+'T Bonds'!AH5+'Real Estate'!AK9-'Real Estate'!$E$5","v":{"v":1689739.969759125,"d":"1,689,740"}},{"$f":"Equities!AI5+'T Bills'!AI5+'T Bonds'!AI5+'Real Estate'!AL9-'Real Estate'!$E$5","v":{"v":2211012.1687276466,"d":"2,211,012"}},{"$f":"Equities!AJ5+'T Bills'!AJ5+'T Bonds'!AJ5+'Real Estate'!AM9-'Real Estate'!$E$5","v":{"v":1725986.946932173,"d":"1,725,987"}},{"$f":"Equities!AK5+'T Bills'!AK5+'T Bonds'!AK5+'Real Estate'!AN9-'Real Estate'!$E$5","v":{"v":1858631.4348657245,"d":"1,858,631"}},{"$f":"Equities!AL5+'T Bills'!AL5+'T Bonds'!AL5+'Real Estate'!AO9-'Real Estate'!$E$5","v":{"v":1414083.5261311254,"d":"1,414,084"}},{"$f":"Equities!AM5+'T Bills'!AM5+'T Bonds'!AM5+'Real Estate'!AP9-'Real Estate'!$E$5","v":{"v":1129671.5976348897,"d":"1,129,672"}},{"$f":"Equities!AN5+'T Bills'!AN5+'T Bonds'!AN5+'Real Estate'!AQ9-'Real Estate'!$E$5","v":{"v":1600992.6288035966,"d":"1,600,993"}},{"$f":"Equities!AO5+'T Bills'!AO5+'T Bonds'!AO5+'Real Estate'!AR9-'Real Estate'!$E$5","v":{"v":1942895.4489223782,"d":"1,942,895"}},{"$f":"Equities!AP5+'T Bills'!AP5+'T Bonds'!AP5+'Real Estate'!AS9-'Real Estate'!$E$5","v":{"v":2128459.9005814306,"d":"2,128,460"}},{"$f":"Equities!AQ5+'T Bills'!AQ5+'T Bonds'!AQ5+'Real Estate'!AT9-'Real Estate'!$E$5","v":{"v":1484084.5308906587,"d":"1,484,085"}},{"$f":"Equities!AR5+'T Bills'!AR5+'T Bonds'!AR5+'Real Estate'!AU9-'Real Estate'!$E$5","v":{"v":1955461.055132547,"d":"1,955,461"}},{"$f":"Equities!AS5+'T Bills'!AS5+'T Bonds'!AS5+'Real Estate'!AV9-'Real Estate'!$E$5","v":{"v":1157316.2464784498,"d":"1,157,316"}},{"$f":"Equities!AT5+'T Bills'!AT5+'T Bonds'!AT5+'Real Estate'!AW9-'Real Estate'!$E$5","v":{"v":1415913.245299502,"d":"1,415,913"}},{"$f":"Equities!AU5+'T Bills'!AU5+'T Bonds'!AU5+'Real Estate'!AX9-'Real Estate'!$E$5","v":{"v":2208398.4829311213,"d":"2,208,398"}},{"$f":"Equities!AV5+'T Bills'!AV5+'T Bonds'!AV5+'Real Estate'!AY9-'Real Estate'!$E$5","v":{"v":1147888.2087849372,"d":"1,147,888"}},{"$f":"Equities!AW5+'T Bills'!AW5+'T Bonds'!AW5+'Real Estate'!AZ9-'Real Estate'!$E$5","v":{"v":1884910.482437165,"d":"1,884,910"}},{"$f":"Equities!AX5+'T Bills'!AX5+'T Bonds'!AX5+'Real Estate'!BA9-'Real Estate'!$E$5","v":{"v":1809680.3919282008,"d":"1,809,680"}},{"$f":"Equities!AY5+'T Bills'!AY5+'T Bonds'!AY5+'Real Estate'!BB9-'Real Estate'!$E$5","v":{"v":1498596.0909071816,"d":"1,498,596"}},{"$f":"Equities!AZ5+'T Bills'!AZ5+'T Bonds'!AZ5+'Real Estate'!BC9-'Real Estate'!$E$5","v":{"v":1383484.8579978952,"d":"1,383,485"}},{"$f":"Equities!BA5+'T Bills'!BA5+'T Bonds'!BA5+'Real Estate'!BD9-'Real Estate'!$E$5","v":{"v":942896.7107047974,"d":"942,897"}},{"$f":"Equities!BB5+'T Bills'!BB5+'T Bonds'!BB5+'Real Estate'!BE9-'Real Estate'!$E$5","v":{"v":1312218.1088883244,"d":"1,312,218"}},{"$f":"Equities!BC5+'T Bills'!BC5+'T Bonds'!BC5+'Real Estate'!BF9-'Real Estate'!$E$5","v":{"v":1555881.4408824584,"d":"1,555,881"}},{"$f":"Equities!BD5+'T Bills'!BD5+'T Bonds'!BD5+'Real Estate'!BG9-'Real Estate'!$E$5","v":{"v":1526897.8004155548,"d":"1,526,898"}},{"$f":"Equities!BE5+'T Bills'!BE5+'T Bonds'!BE5+'Real Estate'!BH9-'Real Estate'!$E$5","v":{"v":1849229.467331748,"d":"1,849,229"}},{"$f":"Equities!BF5+'T Bills'!BF5+'T Bonds'!BF5+'Real Estate'!BI9-'Real Estate'!$E$5","v":{"v":1656440.3754342927,"d":"1,656,440"}},{"$f":"Equities!BG5+'T Bills'!BG5+'T Bonds'!BG5+'Real Estate'!BJ9-'Real Estate'!$E$5","v":{"v":1394153.5986440696,"d":"1,394,154"}},{"$f":"Equities!BH5+'T Bills'!BH5+'T Bonds'!BH5+'Real Estate'!BK9-'Real Estate'!$E$5","v":{"v":1434210.4962272088,"d":"1,434,210"}},{"$f":"Equities!BI5+'T Bills'!BI5+'T Bonds'!BI5+'Real Estate'!BL9-'Real Estate'!$E$5","v":{"v":2161895.5037414297,"d":"2,161,896"}},{"$f":"Equities!BJ5+'T Bills'!BJ5+'T Bonds'!BJ5+'Real Estate'!BM9-'Real Estate'!$E$5","v":{"v":1492192.5990414016,"d":"1,492,193"}},{"$f":"Equities!BK5+'T Bills'!BK5+'T Bonds'!BK5+'Real Estate'!BN9-'Real Estate'!$E$5","v":{"v":1332190.5261190743,"d":"1,332,191"}},{"$f":"Equities!BL5+'T Bills'!BL5+'T Bonds'!BL5+'Real Estate'!BO9-'Real Estate'!$E$5","v":{"v":1588349.294446875,"d":"1,588,349"}},{"$f":"Equities!BM5+'T Bills'!BM5+'T Bonds'!BM5+'Real Estate'!BP9-'Real Estate'!$E$5","v":{"v":1112726.4218155881,"d":"1,112,726"}},{"$f":"Equities!BN5+'T Bills'!BN5+'T Bonds'!BN5+'Real Estate'!BQ9-'Real Estate'!$E$5","v":{"v":1209870.3791041248,"d":"1,209,870"}},{"$f":"Equities!BO5+'T Bills'!BO5+'T Bonds'!BO5+'Real Estate'!BR9-'Real Estate'!$E$5","v":{"v":1512600.2510541417,"d":"1,512,600"}},{"$f":"Equities!BP5+'T Bills'!BP5+'T Bonds'!BP5+'Real Estate'!BS9-'Real Estate'!$E$5","v":{"v":1861047.462887034,"d":"1,861,047"}},{"$f":"Equities!BQ5+'T Bills'!BQ5+'T Bonds'!BQ5+'Real Estate'!BT9-'Real Estate'!$E$5","v":{"v":1911721.7908395627,"d":"1,911,722"}},{"$f":"Equities!BR5+'T Bills'!BR5+'T Bonds'!BR5+'Real Estate'!BU9-'Real Estate'!$E$5","v":{"v":2406260.73314403,"d":"2,406,261"}},{"$f":"Equities!BS5+'T Bills'!BS5+'T Bonds'!BS5+'Real Estate'!BV9-'Real Estate'!$E$5","v":{"v":1748067.9453930785,"d":"1,748,068"}},{"$f":"Equities!BT5+'T Bills'!BT5+'T Bonds'!BT5+'Real Estate'!BW9-'Real Estate'!$E$5","v":{"v":1298815.2548821233,"d":"1,298,815"}},{"$f":"Equities!BU5+'T Bills'!BU5+'T Bonds'!BU5+'Real Estate'!BX9-'Real Estate'!$E$5","v":{"v":1589133.1022280217,"d":"1,589,133"}},{"$f":"Equities!BV5+'T Bills'!BV5+'T Bonds'!BV5+'Real Estate'!BY9-'Real Estate'!$E$5","v":{"v":1836426.0244567855,"d":"1,836,426"}},{"$f":"Equities!BW5+'T Bills'!BW5+'T Bonds'!BW5+'Real Estate'!BZ9-'Real Estate'!$E$5","v":{"v":1369326.4223178502,"d":"1,369,326"}},{"$f":"Equities!BX5+'T Bills'!BX5+'T Bonds'!BX5+'Real Estate'!CA9-'Real Estate'!$E$5","v":{"v":1270813.9323068017,"d":"1,270,814"}},{"$f":"Equities!BY5+'T Bills'!BY5+'T Bonds'!BY5+'Real Estate'!CB9-'Real Estate'!$E$5","v":{"v":1738586.583754512,"d":"1,738,587"}},{"$f":"Equities!BZ5+'T Bills'!BZ5+'T Bonds'!BZ5+'Real Estate'!CC9-'Real Estate'!$E$5","v":{"v":1905775.2377481838,"d":"1,905,775"}},{"$f":"Equities!CA5+'T Bills'!CA5+'T Bonds'!CA5+'Real Estate'!CD9-'Real Estate'!$E$5","v":{"v":2140254.4730863837,"d":"2,140,254"}},{"$f":"Equities!CB5+'T Bills'!CB5+'T Bonds'!CB5+'Real Estate'!CE9-'Real Estate'!$E$5","v":{"v":1754893.5380455686,"d":"1,754,894"}},{"$f":"Equities!CC5+'T Bills'!CC5+'T Bonds'!CC5+'Real Estate'!CF9-'Real Estate'!$E$5","v":{"v":1412114.2388599177,"d":"1,412,114"}},{"$f":"Equities!CD5+'T Bills'!CD5+'T Bonds'!CD5+'Real Estate'!CG9-'Real Estate'!$E$5","v":{"v":2336425.309792463,"d":"2,336,425"}},{"$f":"Equities!CE5+'T Bills'!CE5+'T Bonds'!CE5+'Real Estate'!CH9-'Real Estate'!$E$5","v":{"v":2417402.734462871,"d":"2,417,403"}},{"$f":"Equities!CF5+'T Bills'!CF5+'T Bonds'!CF5+'Real Estate'!CI9-'Real Estate'!$E$5","v":{"v":1956488.1690331267,"d":"1,956,488"}},{"$f":"Equities!CG5+'T Bills'!CG5+'T Bonds'!CG5+'Real Estate'!CJ9-'Real Estate'!$E$5","v":{"v":1274900.6477144398,"d":"1,274,901"}},{"$f":"Equities!CH5+'T Bills'!CH5+'T Bonds'!CH5+'Real Estate'!CK9-'Real Estate'!$E$5","v":{"v":1756782.9275856183,"d":"1,756,783"}},{"$f":"Equities!CI5+'T Bills'!CI5+'T Bonds'!CI5+'Real Estate'!CL9-'Real Estate'!$E$5","v":{"v":1386932.9401904226,"d":"1,386,933"}},{"$f":"Equities!CJ5+'T Bills'!CJ5+'T Bonds'!CJ5+'Real Estate'!CM9-'Real Estate'!$E$5","v":{"v":1815348.5011632417,"d":"1,815,349"}},{"$f":"Equities!CK5+'T Bills'!CK5+'T Bonds'!CK5+'Real Estate'!CN9-'Real Estate'!$E$5","v":{"v":1182255.6963513382,"d":"1,182,256"}},{"$f":"Equities!CL5+'T Bills'!CL5+'T Bonds'!CL5+'Real Estate'!CO9-'Real Estate'!$E$5","v":{"v":1669367.7541033782,"d":"1,669,368"}},{"$f":"Equities!CM5+'T Bills'!CM5+'T Bonds'!CM5+'Real Estate'!CP9-'Real Estate'!$E$5","v":{"v":1988870.964882389,"d":"1,988,871"}},{"$f":"Equities!CN5+'T Bills'!CN5+'T Bonds'!CN5+'Real Estate'!CQ9-'Real Estate'!$E$5","v":{"v":1692527.7471510505,"d":"1,692,528"}},{"$f":"Equities!CO5+'T Bills'!CO5+'T Bonds'!CO5+'Real Estate'!CR9-'Real Estate'!$E$5","v":{"v":2121569.137570041,"d":"2,121,569"}},{"$f":"Equities!CP5+'T Bills'!CP5+'T Bonds'!CP5+'Real Estate'!CS9-'Real Estate'!$E$5","v":{"v":1673704.3963669285,"d":"1,673,704"}},{"$f":"Equities!CQ5+'T Bills'!CQ5+'T Bonds'!CQ5+'Real Estate'!CT9-'Real Estate'!$E$5","v":{"v":1357526.847247421,"d":"1,357,527"}},{"$f":"Equities!CR5+'T Bills'!CR5+'T Bonds'!CR5+'Real Estate'!CU9-'Real Estate'!$E$5","v":{"v":1965958.629791049,"d":"1,965,959"}},{"$f":"Equities!CS5+'T Bills'!CS5+'T Bonds'!CS5+'Real Estate'!CV9-'Real Estate'!$E$5","v":{"v":2006902.9189432396,"d":"2,006,903"}},{"$f":"Equities!CT5+'T Bills'!CT5+'T Bonds'!CT5+'Real Estate'!CW9-'Real Estate'!$E$5","v":{"v":1492937.7742180154,"d":"1,492,938"}},{"$f":"Equities!CU5+'T Bills'!CU5+'T Bonds'!CU5+'Real Estate'!CX9-'Real Estate'!$E$5","v":{"v":2142467.91967316,"d":"2,142,468"}},{"$f":"Equities!CV5+'T Bills'!CV5+'T Bonds'!CV5+'Real Estate'!CY9-'Real Estate'!$E$5","v":{"v":1666274.1067102938,"d":"1,666,274"}},{"$f":"Equities!CW5+'T Bills'!CW5+'T Bonds'!CW5+'Real Estate'!CZ9-'Real Estate'!$E$5","v":{"v":1223156.9548080768,"d":"1,223,157"}},{"$f":"Equities!CX5+'T Bills'!CX5+'T Bonds'!CX5+'Real Estate'!DA9-'Real Estate'!$E$5","v":{"v":1523290.4006940671,"d":"1,523,290"}}]
[{"$f":"Main!A12","v":"2027-12-31"},73,{"$f":"Equities!C6+'T Bills'!C6+'T Bonds'!C6+'Real Estate'!F10-'Real Estate'!$E$5","v":{"v":1466217.4411098252,"d":"1,466,217"}},{"$f":"Equities!D6+'T Bills'!D6+'T Bonds'!D6+'Real Estate'!G10-'Real Estate'!$E$5","v":{"v":1679891.2134334275,"d":"1,679,891"}},{"$f":"Equities!E6+'T Bills'!E6+'T Bonds'!E6+'Real Estate'!H10-'Real Estate'!$E$5","v":{"v":2970397.6657865047,"d":"2,970,398"}},{"$f":"Equities!F6+'T Bills'!F6+'T Bonds'!F6+'Real Estate'!I10-'Real Estate'!$E$5","v":{"v":2204108.227033752,"d":"2,204,108"}},{"$f":"Equities!G6+'T Bills'!G6+'T Bonds'!G6+'Real Estate'!J10-'Real Estate'!$E$5","v":{"v":1684116.4162931256,"d":"1,684,116"}},{"$f":"Equities!H6+'T Bills'!H6+'T Bonds'!H6+'Real Estate'!K10-'Real Estate'!$E$5","v":{"v":1843013.5544071654,"d":"1,843,014"}},{"$f":"Equities!I6+'T Bills'!I6+'T Bonds'!I6+'Real Estate'!L10-'Real Estate'!$E$5","v":{"v":1584647.5739625862,"d":"1,584,648"}},{"$f":"Equities!J6+'T Bills'!J6+'T Bonds'!J6+'Real Estate'!M10-'Real Estate'!$E$5","v":{"v":1569426.5749506073,"d":"1,569,427"}},{"$f":"Equities!K6+'T Bills'!K6+'T Bonds'!K6+'Real Estate'!N10-'Real Estate'!$E$5","v":{"v":2041764.7845905016,"d":"2,041,765"}},{"$f":"Equities!L6+'T Bills'!L6+'T Bonds'!L6+'Real Estate'!O10-'Real Estate'!$E$5","v":{"v":2082059.1218609961,"d":"2,082,059"}},{"$f":"Equities!M6+'T Bills'!M6+'T Bonds'!M6+'Real Estate'!P10-'Real Estate'!$E$5","v":{"v":1665967.3759273358,"d":"1,665,967"}},{"$f":"Equities!N6+'T Bills'!N6+'T Bonds'!N6+'Real Estate'!Q10-'Real Estate'!$E$5","v":{"v":1054291.4596520194,"d":"1,054,291"}},{"$f":"Equities!O6+'T Bills'!O6+'T Bonds'!O6+'Real Estate'!R10-'Real Estate'!$E$5","v":{"v":1602761.6459312055,"d":"1,602,762"}},{"$f":"Equities!P6+'T Bills'!P6+'T Bonds'!P6+'Real Estate'!S10-'Real Estate'!$E$5","v":{"v":1064228.1420873324,"d":"1,064,228"}},{"$f":"Equities!Q6+'T Bills'!Q6+'T Bonds'!Q6+'Real Estate'!T10-'Real Estate'!$E$5","v":{"v":1246669.191870489,"d":"1,246,669"}},{"$f":"Equities!R6+'T Bills'!R6+'T Bonds'!R6+'Real Estate'!U10-'Real Estate'!$E$5","v":{"v":1130054.3809475065,"d":"1,130,054"}},{"$f":"Equities!S6+'T Bills'!S6+'T Bonds'!S6+'Real Estate'!V10-'Real Estate'!$E$5","v":{"v":1567713.7934121832,"d":"1,567,714"}},{"$f":"Equities!T6+'T Bills'!T6+'T Bonds'!T6+'Real Estate'!W10-'Real Estate'!$E$5","v":{"v":1410945.9190410974,"d":"1,410,946"}},{"$f":"Equities!U6+'T Bills'!U6+'T Bonds'!U6+'Real Estate'!X10-'Real Estate'!$E$5","v":{"v":1380774.7727708735,"d":"1,380,775"}},{"$f":"Equities!V6+'T Bills'!V6+'T Bonds'!V6+'Real Estate'!Y10-'Real Estate'!$E$5","v":{"v":2096741.5926851218,"d":"2,096,742"}},{"$f":"Equities!W6+'T Bills'!W6+'T Bonds'!W6+'Real Estate'!Z10-'Real Estate'!$E$5","v":{"v":1850608.4575937646,"d":"1,850,608"}},{"$f":"Equities!X6+'T Bills'!X6+'T Bonds'!X6+'Real Estate'!AA10-'Real Estate'!$E$5","v":{"v":1349024.7920232161,"d":"1,349,025"}},{"$f":"Equities!Y6+'T Bills'!Y6+'T Bonds'!Y6+'Real Estate'!AB10-'Real Estate'!$E$5","v":{"v":1182382.086161657,"d":"1,182,382"}},{"$f":"Equities!Z6+'T Bills'!Z6+'T Bonds'!Z6+'Real Estate'!AC10-'Real Estate'!$E$5","v":{"v":1639179.8915701208,"d":"1,639,180"}},{"$f":"Equities!AA6+'T Bills'!AA6+'T Bonds'!AA6+'Real Estate'!AD10-'Real Estate'!$E$5","v":{"v":1423766.7495902397,"d":"1,423,767"}},{"$f":"Equities!AB6+'T Bills'!AB6+'T Bonds'!AB6+'Real Estate'!AE10-'Real Estate'!$E$5","v":{"v":1748166.1940051953,"d":"1,748,166"}},{"$f":"Equities!AC6+'T Bills'!AC6+'T Bonds'!AC6+'Real Estate'!AF10-'Real Estate'!$E$5","v":{"v":3098755.415395349,"d":"3,098,755"}},{"$f":"Equities!AD6+'T Bills'!AD6+'T Bonds'!AD6+'Real Estate'!AG10-'Real Estate'!$E$5","v":{"v":1374783.0349457257,"d":"1,374,783"}},{"$f":"Equities!AE6+'T Bills'!AE6+'T Bonds'!AE6+'Real Estate'!AH10-'Real Estate'!$E$5","v":{"v":1046390.0419556666,"d":"1,046,390"}},{"$f":"Equities!AF6+'T Bills'!AF6+'T Bonds'!AF6+'Real Estate'!AI10-'Real Estate'!$E$5","v":{"v":2186845.7975165714,"d":"2,186,846"}},{"$f":"Equities!AG6+'T Bills'!AG6+'T Bonds'!AG6+'Real Estate'!AJ10-'Real Estate'!$E$5","v":{"v":1874742.7930374362,"d":"1,874,743"}},{"$f":"Equities!AH6+'T Bills'!AH6+'T Bonds'!AH6+'Real Estate'!AK10-'Real Estate'!$E$5","v":{"v":1759112.115419595,"d":"1,759,112"}},{"$f":"Equities!AI6+'T Bills'!AI6+'T Bonds'!AI6+'Real Estate'!AL10-'Real Estate'!$E$5","v":{"v":2417645.025108315,"d":"2,417,645"}},{"$f":"Equities!AJ6+'T Bills'!AJ6+'T Bonds'!AJ6+'Real Estate'!AM10-'Real Estate'!$E$5","v":{"v":1807210.8205323245,"d":"1,807,211"}},{"$f":"Equities!AK6+'T Bills'!AK6+'T Bonds'!AK6+'Real Estate'!AN10-'Real Estate'!$E$5","v":{"v":1394200.5197407305,"d":"1,394,201"}},{"$f":"Equities!AL6+'T Bills'!AL6+'T Bonds'!AL6+'Real Estate'!AO10-'Real Estate'!$E$5","v":{"v":1564072.449341288,"d":"1,564,072"}},{"$f":"Equities!AM6+'T Bills'!AM6+'T Bonds'!AM6+'Real Estate'!AP10-'Real Estate'!$E$5","v":{"v":1075149.1593249599,"d":"1,075,149"}},{"$f":"Equities!AN6+'T Bills'!AN6+'T Bonds'!AN6+'Real Estate'!AQ10-'Real Estate'!$E$5","v":{"v":1888645.6944601268,"d":"1,888,646"}},{"$f":"Equities!AO6+'T Bills'!AO6+'T Bonds'!AO6+'Real Estate'!AR10-'Real Estate'!$E$5","v":{"v":1867261.9277669995,"d":"1,867,262"}},{"$f":"Equities!AP6+'T Bills'!AP6+'T Bonds'!AP6+'Real Estate'!AS10-'Real Estate'!$E$5","v":{"v":1936508.6034294108,"d":"1,936,509"}},{"$f":"Equities!AQ6+'T Bills'!AQ6+'T Bonds'!AQ6+'Real Estate'!AT10-'Real Estate'!$E$5","v":{"v":1213909.7945283828,"d":"1,213,910"}},{"$f":"Equities!AR6+'T Bills'!AR6+'T Bonds'!AR6+'Real Estate'!AU10-'Real Estate'!$E$5","v":{"v":2214806.52529582,"d":"2,214,807"}},{"$f":"Equities!AS6+'T Bills'!AS6+'T Bonds'!AS6+'Real Estate'!AV10-'Real Estate'!$E$5","v":{"v":1220569.3079815726,"d":"1,220,569"}},{"$f":"Equities!AT6+'T Bills'!AT6+'T Bonds'!AT6+'Real Estate'!AW10-'Real Estate'!$E$5","v":{"v":1530963.7236782955,"d":"1,530,964"}},{"$f":"Equities!AU6+'T Bills'!AU6+'T Bonds'!AU6+'Real Estate'!AX10-'Real Estate'!$E$5","v":{"v":1800712.4521576064,"d":"1,800,712"}},{"$f":"Equities!AV6+'T Bills'!AV6+'T Bonds'!AV6+'Real Estate'!AY10-'Real Estate'!$E$5","v":{"v":1237350.2235871379,"d":"1,237,350"}},{"$f":"Equities!AW6+'T Bills'!AW6+'T Bonds'!AW6+'Real Estate'!AZ10-'Real Estate'!$E$5","v":{"v":1766222.0896521003,"d":"1,766,222"}},{"$f":"Equities!AX6+'T Bills'!AX6+'T Bonds'!AX6+'Real Estate'!BA10-'Real Estate'!$E$5","v":{"v":1987486.301011601,"d":"1,987,486"}},{"$f":"Equities!AY6+'T Bills'!AY6+'T Bonds'!AY6+'Real Estate'!BB10-'Real Estate'!$E$5","v":{"v":1913294.7033869768,"d":"1,913,295"}},{"$f":"Equities!AZ6+'T Bills'!AZ6+'T Bonds'!AZ6+'Real Estate'!BC10-'Real Estate'!$E$5","v":{"v":1289882.7810855324,"d":"1,289,883"}},{"$f":"Equities!BA6+'T Bills'!BA6+'T Bonds'!BA6+'Real Estate'!BD10-'Real Estate'!$E$5","v":{"v":910442.6166232324,"d":"910,443"}},{"$f":"Equities!BB6+'T Bills'!BB6+'T Bonds'!BB6+'Real Estate'!BE10-'Real Estate'!$E$5","v":{"v":1402273.538074496,"d":"1,402,274"}},{"$f":"Equities!BC6+'T Bills'!BC6+'T Bonds'!BC6+'Real Estate'!BF10-'Real Estate'!$E$5","v":{"v":1523363.9806546478,"d":"1,523,364"}},{"$f":"Equities!BD6+'T Bills'!BD6+'T Bonds'!BD6+'Real Estate'!BG10-'Real Estate'!$E$5","v":{"v":1869811.653766011,"d":"1,869,812"}},{"$f":"Equities!BE6+'T Bills'!BE6+'T Bonds'!BE6+'Real Estate'!BH10-'Real Estate'!$E$5","v":{"v":2099299.3285807227,"d":"2,099,299"}},{"$f":"Equities!BF6+'T Bills'!BF6+'T Bonds'!BF6+'Real Estate'!BI10-'Real Estate'!$E$5","v":{"v":1724744.2612371733,"d":"1,724,744"}},{"$f":"Equities!BG6+'T Bills'!BG6+'T Bonds'!BG6+'Real Estate'!BJ10-'Real Estate'!$E$5","v":{"v":1298273.007249059,"d":"1,298,273"}},{"$f":"Equities!BH6+'T Bills'!BH6+'T Bonds'!BH6+'Real Estate'!BK10-'Real Estate'!$E$5","v":{"v":1354199.028196461,"d":"1,354,199"}},{"$f":"Equities!BI6+'T Bills'!BI6+'T Bonds'!BI6+'Real Estate'!BL10-'Real Estate'!$E$5","v":{"v":2436003.103444241,"d":"2,436,003"}},{"$f":"Equities!BJ6+'T Bills'!BJ6+'T Bonds'!BJ6+'Real Estate'!BM10-'Real Estate'!$E$5","v":{"v":1641488.770271853,"d":"1,641,489"}},{"$f":"Equities!BK6+'T Bills'!BK6+'T Bonds'!BK6+'Real Estate'!BN10-'Real Estate'!$E$5","v":{"v":1339114.2780925974,"d":"1,339,114"}},{"$f":"Equities!BL6+'T Bills'!BL6+'T Bonds'!BL6+'Real Estate'!BO10-'Real Estate'!$E$5","v":{"v":1247222.2399550017,"d":"1,247,222"}},{"$f":"Equities!BM6+'T Bills'!BM6+'T Bonds'!BM6+'Real Estate'!BP10-'Real Estate'!$E$5","v":{"v":1155283.1421989412,"d":"1,155,283"}},{"$f":"Equities!BN6+'T Bills'!BN6+'T Bonds'!BN6+'Real Estate'!BQ10-'Real Estate'!$E$5","v":{"v":1452201.4966633772,"d":"1,452,201"}},{"$f":"Equities!BO6+'T Bills'!BO6+'T Bonds'!BO6+'Real Estate'!BR10-'Real Estate'!$E$5","v":{"v":1459339.1708229173,"d":"1,459,339"}},{"$f":"Equities!BP6+'T Bills'!BP6+'T Bonds'!BP6+'Real Estate'!BS10-'Real Estate'!$E$5","v":{"v":2262336.2602422237,"d":"2,262,336"}},{"$f":"Equities!BQ6+'T Bills'!BQ6+'T Bonds'!BQ6+'Real Estate'!BT10-'Real Estate'!$E$5","v":{"v":1876285.2696827096,"d":"1,876,285"}},{"$f":"Equities!BR6+'T Bills'!BR6+'T Bonds'!BR6+'Real Estate'!BU10-'Real Estate'!$E$5","v":{"v":2122855.0290098824,"d":"2,122,855"}},{"$f":"Equities!BS6+'T Bills'!BS6+'T Bonds'!BS6+'Real Estate'!BV10-'Real Estate'!$E$5","v":{"v":1679129.1495717217,"d":"1,679,129"}},{"$f":"Equities!BT6+'T Bills'!BT6+'T Bonds'!BT6+'Real Estate'!BW10-'Real Estate'!$E$5","v":{"v":1430136.4983282317,"d":"1,430,136"}},{"$f":"Equities!BU6+'T Bills'!BU6+'T Bonds'!BU6+'Real Estate'!BX10-'Real Estate'!$E$5","v":{"v":1298301.6606602056,"d":"1,298,302"}},{"$f":"Equities!BV6+'T Bills'!BV6+'T Bonds'!BV6+'Real Estate'!BY10-'Real Estate'!$E$5","v":{"v":1907870.7062429488,"d":"1,907,871"}},{"$f":"Equities!BW6+'T Bills'!BW6+'T Bonds'!BW6+'Real Estate'!BZ10-'Real Estate'!$E$5","v":{"v":1281563.4770016833,"d":"1,281,563"}},{"$f":"Equities!BX6+'T Bills'!BX6+'T Bonds'!BX6+'Real Estate'!CA10-'Real Estate'!$E$5","v":{"v":1523683.7950391013,"d":"1,523,684"}},{"$f":"Equities!BY6+'T Bills'!BY6+'T Bonds'!BY6+'Real Estate'!CB10-'Real Estate'!$E$5","v":{"v":2073802.747907081,"d":"2,073,803"}},{"$f":"Equities!BZ6+'T Bills'!BZ6+'T Bonds'!BZ6+'Real Estate'!CC10-'Real Estate'!$E$5","v":{"v":1444257.9841529664,"d":"1,444,258"}},{"$f":"Equities!CA6+'T Bills'!CA6+'T Bonds'!CA6+'Real Estate'!CD10-'Real Estate'!$E$5","v":{"v":2516231.8419486494,"d":"2,516,232"}},{"$f":"Equities!CB6+'T Bills'!CB6+'T Bonds'!CB6+'Real Estate'!CE10-'Real Estate'!$E$5","v":{"v":1719768.851361242,"d":"1,719,769"}},{"$f":"Equities!CC6+'T Bills'!CC6+'T Bonds'!CC6+'Real Estate'!CF10-'Real Estate'!$E$5","v":{"v":1512118.0748656716,"d":"1,512,118"}},{"$f":"Equities!CD6+'T Bills'!CD6+'T Bonds'!CD6+'Real Estate'!CG10-'Real Estate'!$E$5","v":{"v":2351124.297713431,"d":"2,351,124"}},{"$f":"Equities!CE6+'T Bills'!CE6+'T Bonds'!CE6+'Real Estate'!CH10-'Real Estate'!$E$5","v":{"v":2835599.0526615027,"d":"2,835,599"}},{"$f":"Equities!CF6+'T Bills'!CF6+'T Bonds'!CF6+'Real Estate'!CI10-'Real Estate'!$E$5","v":{"v":1793269.0148423791,"d":"1,793,269"}},{"$f":"Equities!CG6+'T Bills'!CG6+'T Bonds'!CG6+'Real Estate'!CJ10-'Real Estate'!$E$5","v":{"v":1530470.8501496299,"d":"1,530,471"}},{"$f":"Equities!CH6+'T Bills'!CH6+'T Bonds'!CH6+'Real Estate'!CK10-'Real Estate'!$E$5","v":{"v":1915872.3396786507,"d":"1,915,872"}},{"$f":"Equities!CI6+'T Bills'!CI6+'T Bonds'!CI6+'Real Estate'!CL10-'Real Estate'!$E$5","v":{"v":1622458.7257757797,"d":"1,622,459"}},{"$f":"Equities!CJ6+'T Bills'!CJ6+'T Bonds'!CJ6+'Real Estate'!CM10-'Real Estate'!$E$5","v":{"v":1964448.3586173586,"d":"1,964,448"}},{"$f":"Equities!CK6+'T Bills'!CK6+'T Bonds'!CK6+'Real Estate'!CN10-'Real Estate'!$E$5","v":{"v":1308684.2579284934,"d":"1,308,684"}},{"$f":"Equities!CL6+'T Bills'!CL6+'T Bonds'!CL6+'Real Estate'!CO10-'Real Estate'!$E$5","v":{"v":1822020.1495068192,"d":"1,822,020"}},{"$f":"Equities!CM6+'T Bills'!CM6+'T Bonds'!CM6+'Real Estate'!CP10-'Real Estate'!$E$5","v":{"v":2417671.186559208,"d":"2,417,671"}},{"$f":"Equities!CN6+'T Bills'!CN6+'T Bonds'!CN6+'Real Estate'!CQ10-'Real Estate'!$E$5","v":{"v":1625026.183397623,"d":"1,625,026"}},{"$f":"Equities!CO6+'T Bills'!CO6+'T Bonds'!CO6+'Real Estate'!CR10-'Real Estate'!$E$5","v":{"v":2604754.138935148,"d":"2,604,754"}},{"$f":"Equities!CP6+'T Bills'!CP6+'T Bonds'!CP6+'Real Estate'!CS10-'Real Estate'!$E$5","v":{"v":1581394.0409511926,"d":"1,581,394"}},{"$f":"Equities!CQ6+'T Bills'!CQ6+'T Bonds'!CQ6+'Real Estate'!CT10-'Real Estate'!$E$5","v":{"v":1380651.3181814814,"d":"1,380,651"}},{"$f":"Equities!CR6+'T Bills'!CR6+'T Bonds'!CR6+'Real Estate'!CU10-'Real Estate'!$E$5","v":{"v":2125660.439097359,"d":"2,125,660"}},{"$f":"Equities!CS6+'T Bills'!CS6+'T Bonds'!CS6+'Real Estate'!CV10-'Real Estate'!$E$5","v":{"v":2019017.6685461153,"d":"2,019,018"}},{"$f":"Equities!CT6+'T Bills'!CT6+'T Bonds'!CT6+'Real Estate'!CW10-'Real Estate'!$E$5","v":{"v":1766362.2219207566,"d":"1,766,362"}},{"$f":"Equities!CU6+'T Bills'!CU6+'T Bonds'!CU6+'Real Estate'!CX10-'Real Estate'!$E$5","v":{"v":2533412.56651443,"d":"2,533,413"}},{"$f":"Equities!CV6+'T Bills'!CV6+'T Bonds'!CV6+'Real Estate'!CY10-'Real Estate'!$E$5","v":{"v":1415086.6593278595,"d":"1,415,087"}},{"$f":"Equities!CW6+'T Bills'!CW6+'T Bonds'!CW6+'Real Estate'!CZ10-'Real Estate'!$E$5","v":{"v":1130600.5354471183,"d":"1,130,601"}},{"$f":"Equities!CX6+'T Bills'!CX6+'T Bonds'!CX6+'Real Estate'!DA10-'Real Estate'!$E$5","v":{"v":1755023.8858830028,"d":"1,755,024"}}]
[{"$f":"Main!A13","v":"2028-12-30"},74,{"$f":"Equities!C7+'T Bills'!C7+'T Bonds'!C7+'Real Estate'!F11-'Real Estate'!$E$5","v":{"v":1267600.4303784245,"d":"1,267,600"}},{"$f":"Equities!D7+'T Bills'!D7+'T Bonds'!D7+'Real Estate'!G11-'Real Estate'!$E$5","v":{"v":1504801.6769313936,"d":"1,504,802"}},{"$f":"Equities!E7+'T Bills'!E7+'T Bonds'!E7+'Real Estate'!H11-'Real Estate'!$E$5","v":{"v":2476438.999809414,"d":"2,476,439"}},{"$f":"Equities!F7+'T Bills'!F7+'T Bonds'!F7+'Real Estate'!I11-'Real Estate'!$E$5","v":{"v":2596810.8428031583,"d":"2,596,811"}},{"$f":"Equities!G7+'T Bills'!G7+'T Bonds'!G7+'Real Estate'!J11-'Real Estate'!$E$5","v":{"v":1993409.4443385594,"d":"1,993,409"}},{"$f":"Equities!H7+'T Bills'!H7+'T Bonds'!H7+'Real Estate'!K11-'Real Estate'!$E$5","v":{"v":2165014.6832032725,"d":"2,165,015"}},{"$f":"Equities!I7+'T Bills'!I7+'T Bonds'!I7+'Real Estate'!L11-'Real Estate'!$E$5","v":{"v":1679582.623776721,"d":"1,679,583"}},{"$f":"Equities!J7+'T Bills'!J7+'T Bonds'!J7+'Real Estate'!M11-'Real Estate'!$E$5","v":{"v":1792482.152575465,"d":"1,792,482"}},{"$f":"Equities!K7+'T Bills'!K7+'T Bonds'!K7+'Real Estate'!N11-'Real Estate'!$E$5","v":{"v":2275341.8109398484,"d":"2,275,342"}},{"$f":"Equities!L7+'T Bills'!L7+'T Bonds'!L7+'Real Estate'!O11-'Real Estate'!$E$5","v":{"v":2064166.0710575471,"d":"2,064,166"}},{"$f":"Equities!M7+'T Bills'!M7+'T Bonds'!M7+'Real Estate'!P11-'Real Estate'!$E$5","v":{"v":1853177.7201261327,"d":"1,853,178"}},{"$f":"Equities!N7+'T Bills'!N7+'T Bonds'!N7+'Real Estate'!Q11-'Real Estate'!$E$5","v":{"v":997620.6380105575,"d":"997,621"}},{"$f":"Equities!O7+'T Bills'!O7+'T Bonds'!O7+'Real Estate'!R11-'Real Estate'!$E$5","v":{"v":1711633.5509800948,"d":"1,711,634"}},{"$f":"Equities!P7+'T Bills'!P7+'T Bonds'!P7+'Real Estate'!S11-'Real Estate'!$E$5","v":{"v":1079716.7167047176,"d":"1,079,717"}},{"$f":"Equities!Q7+'T Bills'!Q7+'T Bonds'!Q7+'Real Estate'!T11-'Real Estate'!$E$5","v":{"v":1492291.4462307421,"d":"1,492,291"}},{"$f":"Equities!R7+'T Bills'!R7+'T Bonds'!R7+'Real Estate'!U11-'Real Estate'!$E$5","v":{"v":1173937.8963114095,"d":"1,173,938"}},{"$f":"Equities!S7+'T Bills'!S7+'T Bonds'!S7+'Real Estate'!V11-'Real Estate'!$E$5","v":{"v":1687319.0197672981,"d":"1,687,319"}},{"$f":"Equities!T7+'T Bills'!T7+'T Bonds'!T7+'Real Estate'!W11-'Real Estate'!$E$5","v":{"v":1607601.606345019,"d":"1,607,602"}},{"$f":"Equities!U7+'T Bills'!U7+'T Bonds'!U7+'Real Estate'!X11-'Real Estate'!$E$5","v":{"v":1369933.5932812437,"d":"1,369,934"}},{"$f":"Equities!V7+'T Bills'!V7+'T Bonds'!V7+'Real Estate'!Y11-'Real Estate'!$E$5","v":{"v":2438581.425010912,"d":"2,438,581"}},{"$f":"Equities!W7+'T Bills'!W7+'T Bonds'!W7+'Real Estate'!Z11-'Real Estate'!$E$5","v":{"v":1729196.9883312539,"d":"1,729,197"}},{"$f":"Equities!X7+'T Bills'!X7+'T Bonds'!X7+'Real Estate'!AA11-'Real Estate'!$E$5","v":{"v":1536918.6523650105,"d":"1,536,919"}},{"$f":"Equities!Y7+'T Bills'!Y7+'T Bonds'!Y7+'Real Estate'!AB11-'Real Estate'!$E$5","v":{"v":1270761.1151025894,"d":"1,270,761"}},{"$f":"Equities!Z7+'T Bills'!Z7+'T Bonds'!Z7+'Real Estate'!AC11-'Real Estate'!$E$5","v":{"v":1834345.4915491885,"d":"1,834,345"}},{"$f":"Equities!AA7+'T Bills'!AA7+'T Bonds'!AA7+'Real Estate'!AD11-'Real Estate'!$E$5","v":{"v":1575084.5860150266,"d":"1,575,085"}},{"$f":"Equities!AB7+'T Bills'!AB7+'T Bonds'!AB7+'Real Estate'!AE11-'Real Estate'!$E$5","v":{"v":1793652.3016439683,"d":"1,793,652"}},{"$f":"Equities!AC7+'T Bills'!AC7+'T Bonds'!AC7+'Real Estate'!AF11-'Real Estate'!$E$5","v":{"v":3627948.2380196773,"d":"3,627,948"}},{"$f":"Equities!AD7+'T Bills'!AD7+'T Bonds'!AD7+'Real Estate'!AG11-'Real Estate'!$E$5","v":{"v":1404492.573107673,"d":"1,404,493"}},{"$f":"Equities!AE7+'T Bills'!AE7+'T Bonds'!AE7+'Real Estate'!AH11-'Real Estate'!$E$5","v":{"v":1097142.569621553,"d":"1,097,143"}},{"$f":"Equities!AF7+'T Bills'!AF7+'T Bonds'!AF7+'Real Estate'!AI11-'Real Estate'!$E$5","v":{"v":2627038.1364580723,"d":"2,627,038"}},{"$f":"Equities!AG7+'T Bills'!AG7+'T Bonds'!AG7+'Real Estate'!AJ11-'Real Estate'!$E$5","v":{"v":2447811.4851425644,"d":"2,447,811"}},{"$f":"Equities!AH7+'T Bills'!AH7+'T Bonds'!AH7+'Real Estate'!AK11-'Real Estate'!$E$5","v":{"v":1617741.4503832757,"d":"1,617,741"}},{"$f":"Equities!AI7+'T Bills'!AI7+'T Bonds'!AI7+'Real Estate'!AL11-'Real Estate'!$E$5","v":{"v":2720560.742219779,"d":"2,720,561"}},{"$f":"Equities!AJ7+'T Bills'!AJ7+'T Bonds'!AJ7+'Real Estate'!AM11-'Real Estate'!$E$5","v":{"v":2016197.1783058255,"d":"2,016,197"}},{"$f":"Equities!AK7+'T Bills'!AK7+'T Bonds'!AK7+'Real Estate'!AN11-'Real Estate'!$E$5","v":{"v":1645819.591387895,"d":"1,645,820"}},{"$f":"Equities!AL7+'T Bills'!AL7+'T Bonds'!AL7+'Real Estate'!AO11-'Real Estate'!$E$5","v":{"v":1774581.9280224827,"d":"1,774,582"}},{"$f":"Equities!AM7+'T Bills'!AM7+'T Bonds'!AM7+'Real Estate'!AP11-'Real Estate'!$E$5","v":{"v":1137085.4400156213,"d":"1,137,085"}},{"$f":"Equities!AN7+'T Bills'!AN7+'T Bonds'!AN7+'Real Estate'!AQ11-'Real Estate'!$E$5","v":{"v":2054211.1438330563,"d":"2,054,211"}},{"$f":"Equities!AO7+'T Bills'!AO7+'T Bonds'!AO7+'Real Estate'!AR11-'Real Estate'!$E$5","v":{"v":1729375.2648833413,"d":"1,729,375"}},{"$f":"Equities!AP7+'T Bills'!AP7+'T Bonds'!AP7+'Real Estate'!AS11-'Real Estate'!$E$5","v":{"v":1915947.9479539425,"d":"1,915,948"}},{"$f":"Equities!AQ7+'T Bills'!AQ7+'T Bonds'!AQ7+'Real Estate'!AT11-'Real Estate'!$E$5","v":{"v":1420648.6551388137,"d":"1,420,649"}},{"$f":"Equities!AR7+'T Bills'!AR7+'T Bonds'!AR7+'Real Estate'!AU11-'Real Estate'!$E$5","v":{"v":2284270.1685754145,"d":"2,284,270"}},{"$f":"Equities!AS7+'T Bills'!AS7+'T Bonds'!AS7+'Real Estate'!AV11-'Real Estate'!$E$5","v":{"v":1290878.3969822507,"d":"1,290,878"}},{"$f":"Equities!AT7+'T Bills'!AT7+'T Bonds'!AT7+'Real Estate'!AW11-'Real Estate'!$E$5","v":{"v":1470021.1497627841,"d":"1,470,021"}},{"$f":"Equities!AU7+'T Bills'!AU7+'T Bonds'!AU7+'Real Estate'!AX11-'Real Estate'!$E$5","v":{"v":1843026.9473302315,"d":"1,843,027"}},{"$f":"Equities!AV7+'T Bills'!AV7+'T Bonds'!AV7+'Real Estate'!AY11-'Real Estate'!$E$5","v":{"v":1347148.2872009466,"d":"1,347,148"}},{"$f":"Equities!AW7+'T Bills'!AW7+'T Bonds'!AW7+'Real Estate'!AZ11-'Real Estate'!$E$5","v":{"v":1467679.2204128373,"d":"1,467,679"}},{"$f":"Equities!AX7+'T Bills'!AX7+'T Bonds'!AX7+'Real Estate'!BA11-'Real Estate'!$E$5","v":{"v":2146337.600837302,"d":"2,146,338"}},{"$f":"Equities!AY7+'T Bills'!AY7+'T Bonds'!AY7+'Real Estate'!BB11-'Real Estate'!$E$5","v":{"v":2178672.5943762166,"d":"2,178,673"}},{"$f":"Equities!AZ7+'T Bills'!AZ7+'T Bonds'!AZ7+'Real Estate'!BC11-'Real Estate'!$E$5","v":{"v":1420040.8622982618,"d":"1,420,041"}},{"$f":"Equities!BA7+'T Bills'!BA7+'T Bonds'!BA7+'Real Estate'!BD11-'Real Estate'!$E$5","v":{"v":885834.010809007,"d":"885,834"}},{"$f":"Equities!BB7+'T Bills'!BB7+'T Bonds'!BB7+'Real Estate'!BE11-'Real Estate'!$E$5","v":{"v":1418486.7916805104,"d":"1,418,487"}},{"$f":"Equities!BC7+'T Bills'!BC7+'T Bonds'!BC7+'Real Estate'!BF11-'Real Estate'!$E$5","v":{"v":1771892.9120131857,"d":"1,771,893"}},{"$f":"Equities!BD7+'T Bills'!BD7+'T Bonds'!BD7+'Real Estate'!BG11-'Real Estate'!$E$5","v":{"v":1953708.445336202,"d":"1,953,708"}},{"$f":"Equities!BE7+'T Bills'!BE7+'T Bonds'!BE7+'Real Estate'!BH11-'Real Estate'!$E$5","v":{"v":2298882.2132792673,"d":"2,298,882"}},{"$f":"Equities!BF7+'T Bills'!BF7+'T Bonds'!BF7+'Real Estate'!BI11-'Real Estate'!$E$5","v":{"v":1502348.5114634482,"d":"1,502,349"}},{"$f":"Equities!BG7+'T Bills'!BG7+'T Bonds'!BG7+'Real Estate'!BJ11-'Real Estate'!$E$5","v":{"v":1224731.7258141956,"d":"1,224,732"}},{"$f":"Equities!BH7+'T Bills'!BH7+'T Bonds'!BH7+'Real Estate'!BK11-'Real Estate'!$E$5","v":{"v":1540510.690637458,"d":"1,540,511"}},{"$f":"Equities!BI7+'T Bills'!BI7+'T Bonds'!BI7+'Real Estate'!BL11-'Real Estate'!$E$5","v":{"v":2250155.053304939,"d":"2,250,155"}},{"$f":"Equities!BJ7+'T Bills'!BJ7+'T Bonds'!BJ7+'Real Estate'!BM11-'Real Estate'!$E$5","v":{"v":1649882.8516268737,"d":"1,649,883"}},{"$f":"Equities!BK7+'T Bills'!BK7+'T Bonds'!BK7+'Real Estate'!BN11-'Real Estate'!$E$5","v":{"v":1426943.8693641543,"d":"1,426,944"}},{"$f":"Equities!BL7+'T Bills'!BL7+'T Bonds'!BL7+'Real Estate'!BO11-'Real Estate'!$E$5","v":{"v":1424796.0116999547,"d":"1,424,796"}},{"$f":"Equities!BM7+'T Bills'!BM7+'T Bonds'!BM7+'Real Estate'!BP11-'Real Estate'!$E$5","v":{"v":1157845.4772886913,"d":"1,157,845"}},{"$f":"Equities!BN7+'T Bills'!BN7+'T Bonds'!BN7+'Real Estate'!BQ11-'Real Estate'!$E$5","v":{"v":1571398.6499578322,"d":"1,571,399"}},{"$f":"Equities!BO7+'T Bills'!BO7+'T Bonds'!BO7+'Real Estate'!BR11-'Real Estate'!$E$5","v":{"v":1623312.2163438883,"d":"1,623,312"}},{"$f":"Equities!BP7+'T Bills'!BP7+'T Bonds'!BP7+'Real Estate'!BS11-'Real Estate'!$E$5","v":{"v":2631246.49099256,"d":"2,631,246"}},{"$f":"Equities!BQ7+'T Bills'!BQ7+'T Bonds'!BQ7+'Real Estate'!BT11-'Real Estate'!$E$5","v":{"v":2066405.3998163112,"d":"2,066,405"}},{"$f":"Equities!BR7+'T Bills'!BR7+'T Bonds'!BR7+'Real Estate'!BU11-'Real Estate'!$E$5","v":{"v":2388687.8096148237,"d":"2,388,688"}},{"$f":"Equities!BS7+'T Bills'!BS7+'T Bonds'!BS7+'Real Estate'!BV11-'Real Estate'!$E$5","v":{"v":1693658.5323225488,"d":"1,693,659"}},{"$f":"Equities!BT7+'T Bills'!BT7+'T Bonds'!BT7+'Real Estate'!BW11-'Real Estate'!$E$5","v":{"v":1243834.8322925693,"d":"1,243,835"}},{"$f":"Equities!BU7+'T Bills'!BU7+'T Bonds'!BU7+'Real Estate'!BX11-'Real Estate'!$E$5","v":{"v":1356713.8569430318,"d":"1,356,714"}},{"$f":"Equities!BV7+'T Bills'!BV7+'T Bonds'!BV7+'Real Estate'!BY11-'Real Estate'!$E$5","v":{"v":1951871.2258946395,"d":"1,951,871"}},{"$f":"Equities!BW7+'T Bills'!BW7+'T Bonds'!BW7+'Real Estate'!BZ11-'Real Estate'!$E$5","v":{"v":1267101.4033853107,"d":"1,267,101"}},{"$f":"Equities!BX7+'T Bills'!BX7+'T Bonds'!BX7+'Real Estate'!CA11-'Real Estate'!$E$5","v":{"v":1636099.3005946625,"d":"1,636,099"}},{"$f":"Equities!BY7+'T Bills'!BY7+'T Bonds'!BY7+'Real Estate'!CB11-'Real Estate'!$E$5","v":{"v":2322375.1906182007,"d":"2,322,375"}},{"$f":"Equities!BZ7+'T Bills'!BZ7+'T Bonds'!BZ7+'Real Estate'!CC11-'Real Estate'!$E$5","v":{"v":1601176.881168251,"d":"1,601,177"}},{"$f":"Equities!CA7+'T Bills'!CA7+'T Bonds'!CA7+'Real Estate'!CD11-'Real Estate'!$E$5","v":{"v":2853582.7212764807,"d":"2,853,583"}},{"$f":"Equities!CB7+'T Bills'!CB7+'T Bonds'!CB7+'Real Estate'!CE11-'Real Estate'!$E$5","v":{"v":1581410.6474555149,"d":"1,581,411"}},{"$f":"Equities!CC7+'T Bills'!CC7+'T Bonds'!CC7+'Real Estate'!CF11-'Real Estate'!$E$5","v":{"v":1572605.6375693053,"d":"1,572,606"}},{"$f":"Equities!CD7+'T Bills'!CD7+'T Bonds'!CD7+'Real Estate'!CG11-'Real Estate'!$E$5","v":{"v":2579605.870229814,"d":"2,579,606"}},{"$f":"Equities!CE7+'T Bills'!CE7+'T Bonds'!CE7+'Real Estate'!CH11-'Real Estate'!$E$5","v":{"v":2679480.6393781644,"d":"2,679,481"}},{"$f":"Equities!CF7+'T Bills'!CF7+'T Bonds'!CF7+'Real Estate'!CI11-'Real Estate'!$E$5","v":{"v":2000873.3400514724,"d":"2,000,873"}},{"$f":"Equities!CG7+'T Bills'!CG7+'T Bonds'!CG7+'Real Estate'!CJ11-'Real Estate'!$E$5","v":{"v":1695280.9358337424,"d":"1,695,281"}},{"$f":"Equities!CH7+'T Bills'!CH7+'T Bonds'!CH7+'Real Estate'!CK11-'Real Estate'!$E$5","v":{"v":2282827.9550922443,"d":"2,282,828"}},{"$f":"Equities!CI7+'T Bills'!CI7+'T Bonds'!CI7+'Real Estate'!CL11-'Real Estate'!$E$5","v":{"v":1518833.6094301073,"d":"1,518,834"}},{"$f":"Equities!CJ7+'T Bills'!CJ7+'T Bonds'!CJ7+'Real Estate'!CM11-'Real Estate'!$E$5","v":{"v":2290213.676509475,"d":"2,290,214"}},{"$f":"Equities!CK7+'T Bills'!CK7+'T Bonds'!CK7+'Real Estate'!CN11-'Real Estate'!$E$5","v":{"v":1325707.0297703021,"d":"1,325,707"}},{"$f":"Equities!CL7+'T Bills'!CL7+'T Bonds'!CL7+'Real Estate'!CO11-'Real Estate'!$E$5","v":{"v":2174923.473864873,"d":"2,174,923"}},{"$f":"Equities!CM7+'T Bills'!CM7+'T Bonds'!CM7+'Real Estate'!CP11-'Real Estate'!$E$5","v":{"v":2866736.2990541514,"d":"2,866,736"}},{"$f":"Equities!CN7+'T Bills'!CN7+'T Bonds'!CN7+'Real Estate'!CQ11-'Real Estate'!$E$5","v":{"v":1879485.1479292577,"d":"1,879,485"}},{"$f":"Equities!CO7+'T Bills'!CO7+'T Bonds'!CO7+'Real Estate'!CR11-'Real Estate'!$E$5","v":{"v":3005205.6188216936,"d":"3,005,206"}},{"$f":"Equities!CP7+'T Bills'!CP7+'T Bonds'!CP7+'Real Estate'!CS11-'Real Estate'!$E$5","v":{"v":1801705.2711895874,"d":"1,801,705"}},{"$f":"Equities!CQ7+'T Bills'!CQ7+'T Bonds'!CQ7+'Real Estate'!CT11-'Real Estate'!$E$5","v":{"v":1539934.6848910244,"d":"1,539,935"}},{"$f":"Equities!CR7+'T Bills'!CR7+'T Bonds'!CR7+'Real Estate'!CU11-'Real Estate'!$E$5","v":{"v":2399202.804549577,"d":"2,399,203"}},{"$f":"Equities!CS7+'T Bills'!CS7+'T Bonds'!CS7+'Real Estate'!CV11-'Real Estate'!$E$5","v":{"v":2179519.469111539,"d":"2,179,519"}},{"$f":"Equities!CT7+'T Bills'!CT7+'T Bonds'!CT7+'Real Estate'!CW11-'Real Estate'!$E$5","v":{"v":1610996.5364052195,"d":"1,610,997"}},{"$f":"Equities!CU7+'T Bills'!CU7+'T Bonds'!CU7+'Real Estate'!CX11-'Real Estate'!$E$5","v":{"v":2904515.2059870195,"d":"2,904,515"}},{"$f":"Equities!CV7+'T Bills'!CV7+'T Bonds'!CV7+'Real Estate'!CY11-'Real Estate'!$E$5","v":{"v":1732285.675333276,"d":"1,732,286"}},{"$f":"Equities!CW7+'T Bills'!CW7+'T Bonds'!CW7+'Real Estate'!CZ11-'Real Estate'!$E$5","v":{"v":1097323.5188247447,"d":"1,097,324"}},{"$f":"Equities!CX7+'T Bills'!CX7+'T Bonds'!CX7+'Real Estate'!DA11-'Real Estate'!$E$5","v":{"v":2199758.824858531,"d":"2,199,759"}}]
[{"$f":"Main!A14","v":"2029-12-30"},75,{"$f":"Equities!C8+'T Bills'!C8+'T Bonds'!C8+'Real Estate'!F12-'Real Estate'!$E$5","v":{"v":1357805.391430878,"d":"1,357,805"}},{"$f":"Equities!D8+'T Bills'!D8+'T Bonds'!D8+'Real Estate'!G12-'Real Estate'!$E$5","v":{"v":1483140.520640795,"d":"1,483,141"}},{"$f":"Equities!E8+'T Bills'!E8+'T Bonds'!E8+'Real Estate'!H12-'Real Estate'!$E$5","v":{"v":2915413.7476957305,"d":"2,915,414"}},{"$f":"Equities!F8+'T Bills'!F8+'T Bonds'!F8+'Real Estate'!I12-'Real Estate'!$E$5","v":{"v":2660492.2504248046,"d":"2,660,492"}},{"$f":"Equities!G8+'T Bills'!G8+'T Bonds'!G8+'Real Estate'!J12-'Real Estate'!$E$5","v":{"v":2502314.200103921,"d":"2,502,314"}},{"$f":"Equities!H8+'T Bills'!H8+'T Bonds'!H8+'Real Estate'!K12-'Real Estate'!$E$5","v":{"v":2114682.867862756,"d":"2,114,683"}},{"$f":"Equities!I8+'T Bills'!I8+'T Bonds'!I8+'Real Estate'!L12-'Real Estate'!$E$5","v":{"v":1801834.7766749694,"d":"1,801,835"}},{"$f":"Equities!J8+'T Bills'!J8+'T Bonds'!J8+'Real Estate'!M12-'Real Estate'!$E$5","v":{"v":1770250.3113094217,"d":"1,770,250"}},{"$f":"Equities!K8+'T Bills'!K8+'T Bonds'!K8+'Real Estate'!N12-'Real Estate'!$E$5","v":{"v":2496074.482957149,"d":"2,496,074"}},{"$f":"Equities!L8+'T Bills'!L8+'T Bonds'!L8+'Real Estate'!O12-'Real Estate'!$E$5","v":{"v":2376191.6143298447,"d":"2,376,192"}},{"$f":"Equities!M8+'T Bills'!M8+'T Bonds'!M8+'Real Estate'!P12-'Real Estate'!$E$5","v":{"v":2094276.7382824353,"d":"2,094,277"}},{"$f":"Equities!N8+'T Bills'!N8+'T Bonds'!N8+'Real Estate'!Q12-'Real Estate'!$E$5","v":{"v":985931.4664044634,"d":"985,931"}},{"$f":"Equities!O8+'T Bills'!O8+'T Bonds'!O8+'Real Estate'!R12-'Real Estate'!$E$5","v":{"v":1759260.8102046542,"d":"1,759,261"}},{"$f":"Equities!P8+'T Bills'!P8+'T Bonds'!P8+'Real Estate'!S12-'Real Estate'!$E$5","v":{"v":1165727.9348908577,"d":"1,165,728"}},{"$f":"Equities!Q8+'T Bills'!Q8+'T Bonds'!Q8+'Real Estate'!T12-'Real Estate'!$E$5","v":{"v":1352923.9269509076,"d":"1,352,924"}},{"$f":"Equities!R8+'T Bills'!R8+'T Bonds'!R8+'Real Estate'!U12-'Real Estate'!$E$5","v":{"v":1298172.9796115232,"d":"1,298,173"}},{"$f":"Equities!S8+'T Bills'!S8+'T Bonds'!S8+'Real Estate'!V12-'Real Estate'!$E$5","v":{"v":2173865.933506632,"d":"2,173,866"}},{"$f":"Equities!T8+'T Bills'!T8+'T Bonds'!T8+'Real Estate'!W12-'Real Estate'!$E$5","v":{"v":1599286.871034988,"d":"1,599,287"}},{"$f":"Equities!U8+'T Bills'!U8+'T Bonds'!U8+'Real Estate'!X12-'Real Estate'!$E$5","v":{"v":1426635.4398657468,"d":"1,426,635"}},{"$f":"Equities!V8+'T Bills'!V8+'T Bonds'!V8+'Real Estate'!Y12-'Real Estate'!$E$5","v":{"v":2693995.2730130916,"d":"2,693,995"}},{"$f":"Equities!W8+'T Bills'!W8+'T Bonds'!W8+'Real Estate'!Z12-'Real Estate'!$E$5","v":{"v":1943713.9719888133,"d":"1,943,714"}},{"$f":"Equities!X8+'T Bills'!X8+'T Bonds'!X8+'Real Estate'!AA12-'Real Estate'!$E$5","v":{"v":1649016.7075719505,"d":"1,649,017"}},{"$f":"Equities!Y8+'T Bills'!Y8+'T Bonds'!Y8+'Real Estate'!AB12-'Real Estate'!$E$5","v":{"v":1390672.2988888647,"d":"1,390,672"}},{"$f":"Equities!Z8+'T Bills'!Z8+'T Bonds'!Z8+'Real Estate'!AC12-'Real Estate'!$E$5","v":{"v":1705290.494452116,"d":"1,705,290"}},{"$f":"Equities!AA8+'T Bills'!AA8+'T Bonds'!AA8+'Real Estate'!AD12-'Real Estate'!$E$5","v":{"v":1787286.1359276706,"d":"1,787,286"}},{"$f":"Equities!AB8+'T Bills'!AB8+'T Bonds'!AB8+'Real Estate'!AE12-'Real Estate'!$E$5","v":{"v":1818305.6821116535,"d":"1,818,306"}},{"$f":"Equities!AC8+'T Bills'!AC8+'T Bonds'!AC8+'Real Estate'!AF12-'Real Estate'!$E$5","v":{"v":2822135.9985522367,"d":"2,822,136"}},{"$f":"Equities!AD8+'T Bills'!AD8+'T Bonds'!AD8+'Real Estate'!AG12-'Real Estate'!$E$5","v":{"v":1648118.9842131974,"d":"1,648,119"}},{"$f":"Equities!AE8+'T Bills'!AE8+'T Bonds'!AE8+'Real Estate'!AH12-'Real Estate'!$E$5","v":{"v":1031716.347018895,"d":"1,031,716"}},{"$f":"Equities!AF8+'T Bills'!AF8+'T Bonds'!AF8+'Real Estate'!AI12-'Real Estate'!$E$5","v":{"v":3249452.9084187443,"d":"3,249,453"}},{"$f":"Equities!AG8+'T Bills'!AG8+'T Bonds'!AG8+'Real Estate'!AJ12-'Real Estate'!$E$5","v":{"v":2768672.451572562,"d":"2,768,672"}},{"$f":"Equities!AH8+'T Bills'!AH8+'T Bonds'!AH8+'Real Estate'!AK12-'Real Estate'!$E$5","v":{"v":1733058.6076013704,"d":"1,733,059"}},{"$f":"Equities!AI8+'T Bills'!AI8+'T Bonds'!AI8+'Real Estate'!AL12-'Real Estate'!$E$5","v":{"v":2790070.4248545156,"d":"2,790,070"}},{"$f":"Equities!AJ8+'T Bills'!AJ8+'T Bonds'!AJ8+'Real Estate'!AM12-'Real Estate'!$E$5","v":{"v":2079868.4285234583,"d":"2,079,868"}},{"$f":"Equities!AK8+'T Bills'!AK8+'T Bonds'!AK8+'Real Estate'!AN12-'Real Estate'!$E$5","v":{"v":1584144.4712222326,"d":"1,584,144"}},{"$f":"Equities!AL8+'T Bills'!AL8+'T Bonds'!AL8+'Real Estate'!AO12-'Real Estate'!$E$5","v":{"v":2258506.30947297,"d":"2,258,506"}},{"$f":"Equities!AM8+'T Bills'!AM8+'T Bonds'!AM8+'Real Estate'!AP12-'Real Estate'!$E$5","v":{"v":1046351.3325071882,"d":"1,046,351"}},{"$f":"Equities!AN8+'T Bills'!AN8+'T Bonds'!AN8+'Real Estate'!AQ12-'Real Estate'!$E$5","v":{"v":2403601.4644460953,"d":"2,403,601"}},{"$f":"Equities!AO8+'T Bills'!AO8+'T Bonds'!AO8+'Real Estate'!AR12-'Real Estate'!$E$5","v":{"v":1682885.5744682993,"d":"1,682,886"}},{"$f":"Equities!AP8+'T Bills'!AP8+'T Bonds'!AP8+'Real Estate'!AS12-'Real Estate'!$E$5","v":{"v":2460278.535581553,"d":"2,460,279"}},{"$f":"Equities!AQ8+'T Bills'!AQ8+'T Bonds'!AQ8+'Real Estate'!AT12-'Real Estate'!$E$5","v":{"v":1528672.877935533,"d":"1,528,673"}},{"$f":"Equities!AR8+'T Bills'!AR8+'T Bonds'!AR8+'Real Estate'!AU12-'Real Estate'!$E$5","v":{"v":2465574.4739526957,"d":"2,465,574"}},{"$f":"Equities!AS8+'T Bills'!AS8+'T Bonds'!AS8+'Real Estate'!AV12-'Real Estate'!$E$5","v":{"v":1412164.143317414,"d":"1,412,164"}},{"$f":"Equities!AT8+'T Bills'!AT8+'T Bonds'!AT8+'Real Estate'!AW12-'Real Estate'!$E$5","v":{"v":1312387.3621123764,"d":"1,312,387"}},{"$f":"Equities!AU8+'T Bills'!AU8+'T Bonds'!AU8+'Real Estate'!AX12-'Real Estate'!$E$5","v":{"v":2170515.9651518352,"d":"2,170,516"}},{"$f":"Equities!AV8+'T Bills'!AV8+'T Bonds'!AV8+'Real Estate'!AY12-'Real Estate'!$E$5","v":{"v":1500919.3609840316,"d":"1,500,919"}},{"$f":"Equities!AW8+'T Bills'!AW8+'T Bonds'!AW8+'Real Estate'!AZ12-'Real Estate'!$E$5","v":{"v":1322820.5374721584,"d":"1,322,821"}},{"$f":"Equities!AX8+'T Bills'!AX8+'T Bonds'!AX8+'Real Estate'!BA12-'Real Estate'!$E$5","v":{"v":2217599.578431732,"d":"2,217,600"}},{"$f":"Equities!AY8+'T Bills'!AY8+'T Bonds'!AY8+'Real Estate'!BB12-'Real Estate'!$E$5","v":{"v":2151389.0322077973,"d":"2,151,389"}},{"$f":"Equities!AZ8+'T Bills'!AZ8+'T Bonds'!AZ8+'Real Estate'!BC12-'Real Estate'!$E$5","v":{"v":1371600.774147874,"d":"1,371,601"}},{"$f":"Equities!BA8+'T Bills'!BA8+'T Bonds'!BA8+'Real Estate'!BD12-'Real Estate'!$E$5","v":{"v":860301.5370908926,"d":"860,302"}},{"$f":"Equities!BB8+'T Bills'!BB8+'T Bonds'!BB8+'Real Estate'!BE12-'Real Estate'!$E$5","v":{"v":1460011.4955991507,"d":"1,460,011"}},{"$f":"Equities!BC8+'T Bills'!BC8+'T Bonds'!BC8+'Real Estate'!BF12-'Real Estate'!$E$5","v":{"v":1850338.679500111,"d":"1,850,339"}},{"$f":"Equities!BD8+'T Bills'!BD8+'T Bonds'!BD8+'Real Estate'!BG12-'Real Estate'!$E$5","v":{"v":2322413.641842845,"d":"2,322,414"}},{"$f":"Equities!BE8+'T Bills'!BE8+'T Bonds'!BE8+'Real Estate'!BH12-'Real Estate'!$E$5","v":{"v":1699567.097823414,"d":"1,699,567"}},{"$f":"Equities!BF8+'T Bills'!BF8+'T Bonds'!BF8+'Real Estate'!BI12-'Real Estate'!$E$5","v":{"v":1404469.32431311,"d":"1,404,469"}},{"$f":"Equities!BG8+'T Bills'!BG8+'T Bonds'!BG8+'Real Estate'!BJ12-'Real Estate'!$E$5","v":{"v":1294584.8373597183,"d":"1,294,585"}},{"$f":"Equities!BH8+'T Bills'!BH8+'T Bonds'!BH8+'Real Estate'!BK12-'Real Estate'!$E$5","v":{"v":1732758.3056356194,"d":"1,732,758"}},{"$f":"Equities!BI8+'T Bills'!BI8+'T Bonds'!BI8+'Real Estate'!BL12-'Real Estate'!$E$5","v":{"v":2998206.945552919,"d":"2,998,207"}},{"$f":"Equities!BJ8+'T Bills'!BJ8+'T Bonds'!BJ8+'Real Estate'!BM12-'Real Estate'!$E$5","v":{"v":1808520.6823411344,"d":"1,808,521"}},{"$f":"Equities!BK8+'T Bills'!BK8+'T Bonds'!BK8+'Real Estate'!BN12-'Real Estate'!$E$5","v":{"v":1457805.724741491,"d":"1,457,806"}},{"$f":"Equities!BL8+'T Bills'!BL8+'T Bonds'!BL8+'Real Estate'!BO12-'Real Estate'!$E$5","v":{"v":1562272.2087020702,"d":"1,562,272"}},{"$f":"Equities!BM8+'T Bills'!BM8+'T Bonds'!BM8+'Real Estate'!BP12-'Real Estate'!$E$5","v":{"v":1235583.3756107443,"d":"1,235,583"}},{"$f":"Equities!BN8+'T Bills'!BN8+'T Bonds'!BN8+'Real Estate'!BQ12-'Real Estate'!$E$5","v":{"v":1819872.6223437707,"d":"1,819,873"}},{"$f":"Equities!BO8+'T Bills'!BO8+'T Bonds'!BO8+'Real Estate'!BR12-'Real Estate'!$E$5","v":{"v":1409197.0546717586,"d":"1,409,197"}},{"$f":"Equities!BP8+'T Bills'!BP8+'T Bonds'!BP8+'Real Estate'!BS12-'Real Estate'!$E$5","v":{"v":2439148.5556143816,"d":"2,439,149"}},{"$f":"Equities!BQ8+'T Bills'!BQ8+'T Bonds'!BQ8+'Real Estate'!BT12-'Real Estate'!$E$5","v":{"v":2224067.253162611,"d":"2,224,067"}},{"$f":"Equities!BR8+'T Bills'!BR8+'T Bonds'!BR8+'Real Estate'!BU12-'Real Estate'!$E$5","v":{"v":3191401.985155445,"d":"3,191,402"}},{"$f":"Equities!BS8+'T Bills'!BS8+'T Bonds'!BS8+'Real Estate'!BV12-'Real Estate'!$E$5","v":{"v":2188252.7230767836,"d":"2,188,253"}},{"$f":"Equities!BT8+'T Bills'!BT8+'T Bonds'!BT8+'Real Estate'!BW12-'Real Estate'!$E$5","v":{"v":1471448.3938269112,"d":"1,471,448"}},{"$f":"Equities!BU8+'T Bills'!BU8+'T Bonds'!BU8+'Real Estate'!BX12-'Real Estate'!$E$5","v":{"v":1331165.237904253,"d":"1,331,165"}},{"$f":"Equities!BV8+'T Bills'!BV8+'T Bonds'!BV8+'Real Estate'!BY12-'Real Estate'!$E$5","v":{"v":1616761.0150119767,"d":"1,616,761"}},{"$f":"Equities!BW8+'T Bills'!BW8+'T Bonds'!BW8+'Real Estate'!BZ12-'Real Estate'!$E$5","v":{"v":1402804.2729983323,"d":"1,402,804"}},{"$f":"Equities!BX8+'T Bills'!BX8+'T Bonds'!BX8+'Real Estate'!CA12-'Real Estate'!$E$5","v":{"v":1779402.2088361944,"d":"1,779,402"}},{"$f":"Equities!BY8+'T Bills'!BY8+'T Bonds'!BY8+'Real Estate'!CB12-'Real Estate'!$E$5","v":{"v":2234345.605498149,"d":"2,234,346"}},{"$f":"Equities!BZ8+'T Bills'!BZ8+'T Bonds'!BZ8+'Real Estate'!CC12-'Real Estate'!$E$5","v":{"v":1338794.370925859,"d":"1,338,794"}},{"$f":"Equities!CA8+'T Bills'!CA8+'T Bonds'!CA8+'Real Estate'!CD12-'Real Estate'!$E$5","v":{"v":2696152.432580946,"d":"2,696,152"}},{"$f":"Equities!CB8+'T Bills'!CB8+'T Bonds'!CB8+'Real Estate'!CE12-'Real Estate'!$E$5","v":{"v":1355378.3569838894,"d":"1,355,378"}},{"$f":"Equities!CC8+'T Bills'!CC8+'T Bonds'!CC8+'Real Estate'!CF12-'Real Estate'!$E$5","v":{"v":1823889.4477697923,"d":"1,823,889"}},{"$f":"Equities!CD8+'T Bills'!CD8+'T Bonds'!CD8+'Real Estate'!CG12-'Real Estate'!$E$5","v":{"v":2427661.8300129753,"d":"2,427,662"}},{"$f":"Equities!CE8+'T Bills'!CE8+'T Bonds'!CE8+'Real Estate'!CH12-'Real Estate'!$E$5","v":{"v":3216505.4305391638,"d":"3,216,505"}},{"$f":"Equities!CF8+'T Bills'!CF8+'T Bonds'!CF8+'Real Estate'!CI12-'Real Estate'!$E$5","v":{"v":2237641.5598464482,"d":"2,237,642"}},{"$f":"Equities!CG8+'T Bills'!CG8+'T Bonds'!CG8+'Real Estate'!CJ12-'Real Estate'!$E$5","v":{"v":1857095.9617595344,"d":"1,857,096"}},{"$f":"Equities!CH8+'T Bills'!CH8+'T Bonds'!CH8+'Real Estate'!CK12-'Real Estate'!$E$5","v":{"v":2392911.246591316,"d":"2,392,911"}},{"$f":"Equities!CI8+'T Bills'!CI8+'T Bonds'!CI8+'Real Estate'!CL12-'Real Estate'!$E$5","v":{"v":1755237.5454870278,"d":"1,755,238"}},{"$f":"Equities!CJ8+'T Bills'!CJ8+'T Bonds'!CJ8+'Real Estate'!CM12-'Real Estate'!$E$5","v":{"v":2871288.921324906,"d":"2,871,289"}},{"$f":"Equities!CK8+'T Bills'!CK8+'T Bonds'!CK8+'Real Estate'!CN12-'Real Estate'!$E$5","v":{"v":1355684.4360761435,"d":"1,355,684"}},{"$f":"Equities!CL8+'T Bills'!CL8+'T Bonds'!CL8+'Real Estate'!CO12-'Real Estate'!$E$5","v":{"v":2465037.7245343206,"d":"2,465,038"}},{"$f":"Equities!CM8+'T Bills'!CM8+'T Bonds'!CM8+'Real Estate'!CP12-'Real Estate'!$E$5","v":{"v":2827846.984289608,"d":"2,827,847"}},{"$f":"Equities!CN8+'T Bills'!CN8+'T Bonds'!CN8+'Real Estate'!CQ12-'Real Estate'!$E$5","v":{"v":1991099.0251937525,"d":"1,991,099"}},{"$f":"Equities!CO8+'T Bills'!CO8+'T Bonds'!CO8+'Real Estate'!CR12-'Real Estate'!$E$5","v":{"v":3723239.4857205367,"d":"3,723,239"}},{"$f":"Equities!CP8+'T Bills'!CP8+'T Bonds'!CP8+'Real Estate'!CS12-'Real Estate'!$E$5","v":{"v":1685291.3866149955,"d":"1,685,291"}},{"$f":"Equities!CQ8+'T Bills'!CQ8+'T Bonds'!CQ8+'Real Estate'!CT12-'Real Estate'!$E$5","v":{"v":1475159.8387578712,"d":"1,475,160"}},{"$f":"Equities!CR8+'T Bills'!CR8+'T Bonds'!CR8+'Real Estate'!CU12-'Real Estate'!$E$5","v":{"v":2540110.0068694563,"d":"2,540,110"}},{"$f":"Equities!CS8+'T Bills'!CS8+'T Bonds'!CS8+'Real Estate'!CV12-'Real Estate'!$E$5","v":{"v":2425111.3628614363,"d":"2,425,111"}},{"$f":"Equities!CT8+'T Bills'!CT8+'T Bonds'!CT8+'Real Estate'!CW12-'Real Estate'!$E$5","v":{"v":1364854.6188950662,"d":"1,364,855"}},{"$f":"Equities!CU8+'T Bills'!CU8+'T Bonds'!CU8+'Real Estate'!CX12-'Real Estate'!$E$5","v":{"v":3398665.9278817712,"d":"3,398,666"}},{"$f":"Equities!CV8+'T Bills'!CV8+'T Bonds'!CV8+'Real Estate'!CY12-'Real Estate'!$E$5","v":{"v":2002286.8249762456,"d":"2,002,287"}},{"$f":"Equities!CW8+'T Bills'!CW8+'T Bonds'!CW8+'Real Estate'!CZ12-'Real Estate'!$E$5","v":{"v":1149447.430434202,"d":"1,149,447"}},{"$f":"Equities!CX8+'T Bills'!CX8+'T Bonds'!CX8+'Real Estate'!DA12-'Real Estate'!$E$5","v":{"v":1991555.5217023792,"d":"1,991,556"}}]
[{"$f":"Main!A15","v":"2030-12-30"},76,{"$f":"Equities!C9+'T Bills'!C9+'T Bonds'!C9+'Real Estate'!F13-'Real Estate'!$E$5","v":{"v":1502391.7757056628,"d":"1,502,392"}},{"$f":"Equities!D9+'T Bills'!D9+'T Bonds'!D9+'Real Estate'!G13-'Real Estate'!$E$5","v":{"v":1599121.7031338015,"d":"1,599,122"}},{"$f":"Equities!E9+'T Bills'!E9+'T Bonds'!E9+'Real Estate'!H13-'Real Estate'!$E$5","v":{"v":3133644.8932775175,"d":"3,133,645"}},{"$f":"Equities!F9+'T Bills'!F9+'T Bonds'!F9+'Real Estate'!I13-'Real Estate'!$E$5","v":{"v":3544460.479432826,"d":"3,544,460"}},{"$f":"Equities!G9+'T Bills'!G9+'T Bonds'!G9+'Real Estate'!J13-'Real Estate'!$E$5","v":{"v":2772122.9100159165,"d":"2,772,123"}},{"$f":"Equities!H9+'T Bills'!H9+'T Bonds'!H9+'Real Estate'!K13-'Real Estate'!$E$5","v":{"v":1871789.804601409,"d":"1,871,790"}},{"$f":"Equities!I9+'T Bills'!I9+'T Bonds'!I9+'Real Estate'!L13-'Real Estate'!$E$5","v":{"v":1752496.5488674545,"d":"1,752,497"}},{"$f":"Equities!J9+'T Bills'!J9+'T Bonds'!J9+'Real Estate'!M13-'Real Estate'!$E$5","v":{"v":1627109.5009856804,"d":"1,627,110"}},{"$f":"Equities!K9+'T Bills'!K9+'T Bonds'!K9+'Real Estate'!N13-'Real Estate'!$E$5","v":{"v":3049699.1314663216,"d":"3,049,699"}},{"$f":"Equities!L9+'T Bills'!L9+'T Bonds'!L9+'Real Estate'!O13-'Real Estate'!$E$5","v":{"v":2186793.9515000973,"d":"2,186,794"}},{"$f":"Equities!M9+'T Bills'!M9+'T Bonds'!M9+'Real Estate'!P13-'Real Estate'!$E$5","v":{"v":2180881.3607879183,"d":"2,180,881"}},{"$f":"Equities!N9+'T Bills'!N9+'T Bonds'!N9+'Real Estate'!Q13-'Real Estate'!$E$5","v":{"v":1077710.6243558612,"d":"1,077,711"}},{"$f":"Equities!O9+'T Bills'!O9+'T Bonds'!O9+'Real Estate'!R13-'Real Estate'!$E$5","v":{"v":1964319.0481535017,"d":"1,964,319"}},{"$f":"Equities!P9+'T Bills'!P9+'T Bonds'!P9+'Real Estate'!S13-'Real Estate'!$E$5","v":{"v":1371951.0487799246,"d":"1,371,951"}},{"$f":"Equities!Q9+'T Bills'!Q9+'T Bonds'!Q9+'Real Estate'!T13-'Real Estate'!$E$5","v":{"v":1453692.3378878564,"d":"1,453,692"}},{"$f":"Equities!R9+'T Bills'!R9+'T Bonds'!R9+'Real Estate'!U13-'Real Estate'!$E$5","v":{"v":1272582.7302331591,"d":"1,272,583"}},{"$f":"Equities!S9+'T Bills'!S9+'T Bonds'!S9+'Real Estate'!V13-'Real Estate'!$E$5","v":{"v":2100072.499381977,"d":"2,100,072"}},{"$f":"Equities!T9+'T Bills'!T9+'T Bonds'!T9+'Real Estate'!W13-'Real Estate'!$E$5","v":{"v":1533605.4142372117,"d":"1,533,605"}},{"$f":"Equities!U9+'T Bills'!U9+'T Bonds'!U9+'Real Estate'!X13-'Real Estate'!$E$5","v":{"v":1463462.7704888352,"d":"1,463,463"}},{"$f":"Equities!V9+'T Bills'!V9+'T Bonds'!V9+'Real Estate'!Y13-'Real Estate'!$E$5","v":{"v":2890694.3061335897,"d":"2,890,694"}},{"$f":"Equities!W9+'T Bills'!W9+'T Bonds'!W9+'Real Estate'!Z13-'Real Estate'!$E$5","v":{"v":2208770.9889138266,"d":"2,208,771"}},{"$f":"Equities!X9+'T Bills'!X9+'T Bonds'!X9+'Real Estate'!AA13-'Real Estate'!$E$5","v":{"v":1333943.5173577436,"d":"1,333,944"}},{"$f":"Equities!Y9+'T Bills'!Y9+'T Bonds'!Y9+'Real Estate'!AB13-'Real Estate'!$E$5","v":{"v":1467625.9206554466,"d":"1,467,626"}},{"$f":"Equities!Z9+'T Bills'!Z9+'T Bonds'!Z9+'Real Estate'!AC13-'Real Estate'!$E$5","v":{"v":1574923.0478959845,"d":"1,574,923"}},{"$f":"Equities!AA9+'T Bills'!AA9+'T Bonds'!AA9+'Real Estate'!AD13-'Real Estate'!$E$5","v":{"v":1641883.5525540279,"d":"1,641,884"}},{"$f":"Equities!AB9+'T Bills'!AB9+'T Bonds'!AB9+'Real Estate'!AE13-'Real Estate'!$E$5","v":{"v":1762453.8566604478,"d":"1,762,454"}},{"$f":"Equities!AC9+'T Bills'!AC9+'T Bonds'!AC9+'Real Estate'!AF13-'Real Estate'!$E$5","v":{"v":1834725.0817779356,"d":"1,834,725"}},{"$f":"Equities!AD9+'T Bills'!AD9+'T Bonds'!AD9+'Real Estate'!AG13-'Real Estate'!$E$5","v":{"v":1662113.3391589029,"d":"1,662,113"}},{"$f":"Equities!AE9+'T Bills'!AE9+'T Bonds'!AE9+'Real Estate'!AH13-'Real Estate'!$E$5","v":{"v":1043750.2319390334,"d":"1,043,750"}},{"$f":"Equities!AF9+'T Bills'!AF9+'T Bonds'!AF9+'Real Estate'!AI13-'Real Estate'!$E$5","v":{"v":3815809.51746896,"d":"3,815,810"}},{"$f":"Equities!AG9+'T Bills'!AG9+'T Bonds'!AG9+'Real Estate'!AJ13-'Real Estate'!$E$5","v":{"v":3176524.0797650055,"d":"3,176,524"}},{"$f":"Equities!AH9+'T Bills'!AH9+'T Bonds'!AH9+'Real Estate'!AK13-'Real Estate'!$E$5","v":{"v":1809896.326732606,"d":"1,809,896"}},{"$f":"Equities!AI9+'T Bills'!AI9+'T Bonds'!AI9+'Real Estate'!AL13-'Real Estate'!$E$5","v":{"v":2762876.534558997,"d":"2,762,877"}},{"$f":"Equities!AJ9+'T Bills'!AJ9+'T Bonds'!AJ9+'Real Estate'!AM13-'Real Estate'!$E$5","v":{"v":2025495.8668185708,"d":"2,025,496"}},{"$f":"Equities!AK9+'T Bills'!AK9+'T Bonds'!AK9+'Real Estate'!AN13-'Real Estate'!$E$5","v":{"v":1883066.088155768,"d":"1,883,066"}},{"$f":"Equities!AL9+'T Bills'!AL9+'T Bonds'!AL9+'Real Estate'!AO13-'Real Estate'!$E$5","v":{"v":2510386.7400526647,"d":"2,510,387"}},{"$f":"Equities!AM9+'T Bills'!AM9+'T Bonds'!AM9+'Real Estate'!AP13-'Real Estate'!$E$5","v":{"v":1100710.1682472455,"d":"1,100,710"}},{"$f":"Equities!AN9+'T Bills'!AN9+'T Bonds'!AN9+'Real Estate'!AQ13-'Real Estate'!$E$5","v":{"v":2509790.869835535,"d":"2,509,791"}},{"$f":"Equities!AO9+'T Bills'!AO9+'T Bonds'!AO9+'Real Estate'!AR13-'Real Estate'!$E$5","v":{"v":1634409.1569718092,"d":"1,634,409"}},{"$f":"Equities!AP9+'T Bills'!AP9+'T Bonds'!AP9+'Real Estate'!AS13-'Real Estate'!$E$5","v":{"v":2190261.0787618784,"d":"2,190,261"}},{"$f":"Equities!AQ9+'T Bills'!AQ9+'T Bonds'!AQ9+'Real Estate'!AT13-'Real Estate'!$E$5","v":{"v":1694588.9148807034,"d":"1,694,589"}},{"$f":"Equities!AR9+'T Bills'!AR9+'T Bonds'!AR9+'Real Estate'!AU13-'Real Estate'!$E$5","v":{"v":2316449.7086036345,"d":"2,316,450"}},{"$f":"Equities!AS9+'T Bills'!AS9+'T Bonds'!AS9+'Real Estate'!AV13-'Real Estate'!$E$5","v":{"v":1489149.8201097108,"d":"1,489,150"}},{"$f":"Equities!AT9+'T Bills'!AT9+'T Bonds'!AT9+'Real Estate'!AW13-'Real Estate'!$E$5","v":{"v":1482582.6327062922,"d":"1,482,583"}},{"$f":"Equities!AU9+'T Bills'!AU9+'T Bonds'!AU9+'Real Estate'!AX13-'Real Estate'!$E$5","v":{"v":2440116.8527220245,"d":"2,440,117"}},{"$f":"Equities!AV9+'T Bills'!AV9+'T Bonds'!AV9+'Real Estate'!AY13-'Real Estate'!$E$5","v":{"v":1650828.7991343501,"d":"1,650,829"}},{"$f":"Equities!AW9+'T Bills'!AW9+'T Bonds'!AW9+'Real Estate'!AZ13-'Real Estate'!$E$5","v":{"v":1354500.895876995,"d":"1,354,501"}},{"$f":"Equities!AX9+'T Bills'!AX9+'T Bonds'!AX9+'Real Estate'!BA13-'Real Estate'!$E$5","v":{"v":2721632.934614986,"d":"2,721,633"}},{"$f":"Equities!AY9+'T Bills'!AY9+'T Bonds'!AY9+'Real Estate'!BB13-'Real Estate'!$E$5","v":{"v":2238422.647277625,"d":"2,238,423"}},{"$f":"Equities!AZ9+'T Bills'!AZ9+'T Bonds'!AZ9+'Real Estate'!BC13-'Real Estate'!$E$5","v":{"v":1421076.2514661336,"d":"1,421,076"}},{"$f":"Equities!BA9+'T Bills'!BA9+'T Bonds'!BA9+'Real Estate'!BD13-'Real Estate'!$E$5","v":{"v":920564.3259647775,"d":"920,564"}},{"$f":"Equities!BB9+'T Bills'!BB9+'T Bonds'!BB9+'Real Estate'!BE13-'Real Estate'!$E$5","v":{"v":1718824.3244712271,"d":"1,718,824"}},{"$f":"Equities!BC9+'T Bills'!BC9+'T Bonds'!BC9+'Real Estate'!BF13-'Real Estate'!$E$5","v":{"v":2033821.9455546078,"d":"2,033,822"}},{"$f":"Equities!BD9+'T Bills'!BD9+'T Bonds'!BD9+'Real Estate'!BG13-'Real Estate'!$E$5","v":{"v":2977361.004602376,"d":"2,977,361"}},{"$f":"Equities!BE9+'T Bills'!BE9+'T Bonds'!BE9+'Real Estate'!BH13-'Real Estate'!$E$5","v":{"v":1506922.4570761935,"d":"1,506,922"}},{"$f":"Equities!BF9+'T Bills'!BF9+'T Bonds'!BF9+'Real Estate'!BI13-'Real Estate'!$E$5","v":{"v":1318268.9105969602,"d":"1,318,269"}},{"$f":"Equities!BG9+'T Bills'!BG9+'T Bonds'!BG9+'Real Estate'!BJ13-'Real Estate'!$E$5","v":{"v":1381211.3626725955,"d":"1,381,211"}},{"$f":"Equities!BH9+'T Bills'!BH9+'T Bonds'!BH9+'Real Estate'!BK13-'Real Estate'!$E$5","v":{"v":1438306.194466441,"d":"1,438,306"}},{"$f":"Equities!BI9+'T Bills'!BI9+'T Bonds'!BI9+'Real Estate'!BL13-'Real Estate'!$E$5","v":{"v":3086700.478191572,"d":"3,086,700"}},{"$f":"Equities!BJ9+'T Bills'!BJ9+'T Bonds'!BJ9+'Real Estate'!BM13-'Real Estate'!$E$5","v":{"v":1688833.763493233,"d":"1,688,834"}},{"$f":"Equities!BK9+'T Bills'!BK9+'T Bonds'!BK9+'Real Estate'!BN13-'Real Estate'!$E$5","v":{"v":1564814.582972711,"d":"1,564,815"}},{"$f":"Equities!BL9+'T Bills'!BL9+'T Bonds'!BL9+'Real Estate'!BO13-'Real Estate'!$E$5","v":{"v":1855100.5289723545,"d":"1,855,101"}},{"$f":"Equities!BM9+'T Bills'!BM9+'T Bonds'!BM9+'Real Estate'!BP13-'Real Estate'!$E$5","v":{"v":1199353.9024790716,"d":"1,199,354"}},{"$f":"Equities!BN9+'T Bills'!BN9+'T Bonds'!BN9+'Real Estate'!BQ13-'Real Estate'!$E$5","v":{"v":2061593.1189421436,"d":"2,061,593"}},{"$f":"Equities!BO9+'T Bills'!BO9+'T Bonds'!BO9+'Real Estate'!BR13-'Real Estate'!$E$5","v":{"v":1422511.7254154128,"d":"1,422,512"}},{"$f":"Equities!BP9+'T Bills'!BP9+'T Bonds'!BP9+'Real Estate'!BS13-'Real Estate'!$E$5","v":{"v":2257166.944845608,"d":"2,257,167"}},{"$f":"Equities!BQ9+'T Bills'!BQ9+'T Bonds'!BQ9+'Real Estate'!BT13-'Real Estate'!$E$5","v":{"v":2469702.0458966885,"d":"2,469,702"}},{"$f":"Equities!BR9+'T Bills'!BR9+'T Bonds'!BR9+'Real Estate'!BU13-'Real Estate'!$E$5","v":{"v":3465062.314885933,"d":"3,465,062"}},{"$f":"Equities!BS9+'T Bills'!BS9+'T Bonds'!BS9+'Real Estate'!BV13-'Real Estate'!$E$5","v":{"v":2007496.6556972836,"d":"2,007,497"}},{"$f":"Equities!BT9+'T Bills'!BT9+'T Bonds'!BT9+'Real Estate'!BW13-'Real Estate'!$E$5","v":{"v":1474966.770147167,"d":"1,474,967"}},{"$f":"Equities!BU9+'T Bills'!BU9+'T Bonds'!BU9+'Real Estate'!BX13-'Real Estate'!$E$5","v":{"v":1363298.8633270848,"d":"1,363,299"}},{"$f":"Equities!BV9+'T Bills'!BV9+'T Bonds'!BV9+'Real Estate'!BY13-'Real Estate'!$E$5","v":{"v":1796402.4303203272,"d":"1,796,402"}},{"$f":"Equities!BW9+'T Bills'!BW9+'T Bonds'!BW9+'Real Estate'!BZ13-'Real Estate'!$E$5","v":{"v":1327697.259978204,"d":"1,327,697"}},{"$f":"Equities!BX9+'T Bills'!BX9+'T Bonds'!BX9+'Real Estate'!CA13-'Real Estate'!$E$5","v":{"v":1870902.7236265505,"d":"1,870,903"}},{"$f":"Equities!BY9+'T Bills'!BY9+'T Bonds'!BY9+'Real Estate'!CB13-'Real Estate'!$E$5","v":{"v":2562471.1466105403,"d":"2,562,471"}},{"$f":"Equities!BZ9+'T Bills'!BZ9+'T Bonds'!BZ9+'Real Estate'!CC13-'Real Estate'!$E$5","v":{"v":1504886.9808582622,"d":"1,504,887"}},{"$f":"Equities!CA9+'T Bills'!CA9+'T Bonds'!CA9+'Real Estate'!CD13-'Real Estate'!$E$5","v":{"v":2566834.6400085855,"d":"2,566,835"}},{"$f":"Equities!CB9+'T Bills'!CB9+'T Bonds'!CB9+'Real Estate'!CE13-'Real Estate'!$E$5","v":{"v":1181263.042610354,"d":"1,181,263"}},{"$f":"Equities!CC9+'T Bills'!CC9+'T Bonds'!CC9+'Real Estate'!CF13-'Real Estate'!$E$5","v":{"v":1979237.2034946468,"d":"1,979,237"}},{"$f":"Equities!CD9+'T Bills'!CD9+'T Bonds'!CD9+'Real Estate'!CG13-'Real Estate'!$E$5","v":{"v":2478891.1947943373,"d":"2,478,891"}},{"$f":"Equities!CE9+'T Bills'!CE9+'T Bonds'!CE9+'Real Estate'!CH13-'Real Estate'!$E$5","v":{"v":2982564.2173889074,"d":"2,982,564"}},{"$f":"Equities!CF9+'T Bills'!CF9+'T Bonds'!CF9+'Real Estate'!CI13-'Real Estate'!$E$5","v":{"v":1816139.3292304582,"d":"1,816,139"}},{"$f":"Equities!CG9+'T Bills'!CG9+'T Bonds'!CG9+'Real Estate'!CJ13-'Real Estate'!$E$5","v":{"v":2242572.4057036713,"d":"2,242,572"}},{"$f":"Equities!CH9+'T Bills'!CH9+'T Bonds'!CH9+'Real Estate'!CK13-'Real Estate'!$E$5","v":{"v":2471661.8319801246,"d":"2,471,662"}},{"$f":"Equities!CI9+'T Bills'!CI9+'T Bonds'!CI9+'Real Estate'!CL13-'Real Estate'!$E$5","v":{"v":1515761.7308517245,"d":"1,515,762"}},{"$f":"Equities!CJ9+'T Bills'!CJ9+'T Bonds'!CJ9+'Real Estate'!CM13-'Real Estate'!$E$5","v":{"v":3010714.2845480954,"d":"3,010,714"}},{"$f":"Equities!CK9+'T Bills'!CK9+'T Bonds'!CK9+'Real Estate'!CN13-'Real Estate'!$E$5","v":{"v":1575932.9042784283,"d":"1,575,933"}},{"$f":"Equities!CL9+'T Bills'!CL9+'T Bonds'!CL9+'Real Estate'!CO13-'Real Estate'!$E$5","v":{"v":2644500.359507256,"d":"2,644,500"}},{"$f":"Equities!CM9+'T Bills'!CM9+'T Bonds'!CM9+'Real Estate'!CP13-'Real Estate'!$E$5","v":{"v":3452610.8609492136,"d":"3,452,611"}},{"$f":"Equities!CN9+'T Bills'!CN9+'T Bonds'!CN9+'Real Estate'!CQ13-'Real Estate'!$E$5","v":{"v":2468532.357859718,"d":"2,468,532"}},{"$f":"Equities!CO9+'T Bills'!CO9+'T Bonds'!CO9+'Real Estate'!CR13-'Real Estate'!$E$5","v":{"v":3371847.1101096338,"d":"3,371,847"}},{"$f":"Equities!CP9+'T Bills'!CP9+'T Bonds'!CP9+'Real Estate'!CS13-'Real Estate'!$E$5","v":{"v":1375430.5750078207,"d":"1,375,431"}},{"$f":"Equities!CQ9+'T Bills'!CQ9+'T Bonds'!CQ9+'Real Estate'!CT13-'Real Estate'!$E$5","v":{"v":1506959.6682238923,"d":"1,506,960"}},{"$f":"Equities!CR9+'T Bills'!CR9+'T Bonds'!CR9+'Real Estate'!CU13-'Real Estate'!$E$5","v":{"v":3448106.15561494,"d":"3,448,106"}},{"$f":"Equities!CS9+'T Bills'!CS9+'T Bonds'!CS9+'Real Estate'!CV13-'Real Estate'!$E$5","v":{"v":1960570.6061222556,"d":"1,960,571"}},{"$f":"Equities!CT9+'T Bills'!CT9+'T Bonds'!CT9+'Real Estate'!CW13-'Real Estate'!$E$5","v":{"v":1428754.6376674706,"d":"1,428,755"}},{"$f":"Equities!CU9+'T Bills'!CU9+'T Bonds'!CU9+'Real Estate'!CX13-'Real Estate'!$E$5","v":{"v":3210015.259458507,"d":"3,210,015"}},{"$f":"Equities!CV9+'T Bills'!CV9+'T Bonds'!CV9+'Real Estate'!CY13-'Real Estate'!$E$5","v":{"v":2065508.6266299814,"d":"2,065,509"}},{"$f":"Equities!CW9+'T Bills'!CW9+'T Bonds'!CW9+'Real Estate'!CZ13-'Real Estate'!$E$5","v":{"v":1312310.8970969042,"d":"1,312,311"}},{"$f":"Equities!CX9+'T Bills'!CX9+'T Bonds'!CX9+'Real Estate'!DA13-'Real Estate'!$E$5","v":{"v":1891498.0866746472,"d":"1,891,498"}}]
[{"$f":"Main!A16","v":"2031-12-31"},77,{"$f":"Equities!C10+'T Bills'!C10+'T Bonds'!C10+'Real Estate'!F14-'Real Estate'!$E$5","v":{"v":1658573.884363288,"d":"1,658,574"}},{"$f":"Equities!D10+'T Bills'!D10+'T Bonds'!D10+'Real Estate'!G14-'Real Estate'!$E$5","v":{"v":1791190.8166883213,"d":"1,791,191"}},{"$f":"Equities!E10+'T Bills'!E10+'T Bonds'!E10+'Real Estate'!H14-'Real Estate'!$E$5","v":{"v":2902316.745233392,"d":"2,902,317"}},{"$f":"Equities!F10+'T Bills'!F10+'T Bonds'!F10+'Real Estate'!I14-'Real Estate'!$E$5","v":{"v":4192608.4049364887,"d":"4,192,608"}},{"$f":"Equities!G10+'T Bills'!G10+'T Bonds'!G10+'Real Estate'!J14-'Real Estate'!$E$5","v":{"v":2692469.2304812274,"d":"2,692,469"}},{"$f":"Equities!H10+'T Bills'!H10+'T Bonds'!H10+'Real Estate'!K14-'Real Estate'!$E$5","v":{"v":2137664.3011984876,"d":"2,137,664"}},{"$f":"Equities!I10+'T Bills'!I10+'T Bonds'!I10+'Real Estate'!L14-'Real Estate'!$E$5","v":{"v":1557589.7674874633,"d":"1,557,590"}},{"$f":"Equities!J10+'T Bills'!J10+'T Bonds'!J10+'Real Estate'!M14-'Real Estate'!$E$5","v":{"v":1526793.4384409445,"d":"1,526,793"}},{"$f":"Equities!K10+'T Bills'!K10+'T Bonds'!K10+'Real Estate'!N14-'Real Estate'!$E$5","v":{"v":3421148.6829621964,"d":"3,421,149"}},{"$f":"Equities!L10+'T Bills'!L10+'T Bonds'!L10+'Real Estate'!O14-'Real Estate'!$E$5","v":{"v":2444197.7930143187,"d":"2,444,198"}},{"$f":"Equities!M10+'T Bills'!M10+'T Bonds'!M10+'Real Estate'!P14-'Real Estate'!$E$5","v":{"v":2660344.5433445387,"d":"2,660,345"}},{"$f":"Equities!N10+'T Bills'!N10+'T Bonds'!N10+'Real Estate'!Q14-'Real Estate'!$E$5","v":{"v":1090283.4040922448,"d":"1,090,283"}},{"$f":"Equities!O10+'T Bills'!O10+'T Bonds'!O10+'Real Estate'!R14-'Real Estate'!$E$5","v":{"v":2443277.217310176,"d":"2,443,277"}},{"$f":"Equities!P10+'T Bills'!P10+'T Bonds'!P10+'Real Estate'!S14-'Real Estate'!$E$5","v":{"v":1503020.0175633195,"d":"1,503,020"}},{"$f":"Equities!Q10+'T Bills'!Q10+'T Bonds'!Q10+'Real Estate'!T14-'Real Estate'!$E$5","v":{"v":1204442.353364019,"d":"1,204,442"}},{"$f":"Equities!R10+'T Bills'!R10+'T Bonds'!R10+'Real Estate'!U14-'Real Estate'!$E$5","v":{"v":1328061.2329164983,"d":"1,328,061"}},{"$f":"Equities!S10+'T Bills'!S10+'T Bonds'!S10+'Real Estate'!V14-'Real Estate'!$E$5","v":{"v":2175776.666904709,"d":"2,175,777"}},{"$f":"Equities!T10+'T Bills'!T10+'T Bonds'!T10+'Real Estate'!W14-'Real Estate'!$E$5","v":{"v":1669760.1941526404,"d":"1,669,760"}},{"$f":"Equities!U10+'T Bills'!U10+'T Bonds'!U10+'Real Estate'!X14-'Real Estate'!$E$5","v":{"v":1444698.44567319,"d":"1,444,698"}},{"$f":"Equities!V10+'T Bills'!V10+'T Bonds'!V10+'Real Estate'!Y14-'Real Estate'!$E$5","v":{"v":3329455.0080557233,"d":"3,329,455"}},{"$f":"Equities!W10+'T Bills'!W10+'T Bonds'!W10+'Real Estate'!Z14-'Real Estate'!$E$5","v":{"v":2630675.152847468,"d":"2,630,675"}},{"$f":"Equities!X10+'T Bills'!X10+'T Bonds'!X10+'Real Estate'!AA14-'Real Estate'!$E$5","v":{"v":1431042.2451376726,"d":"1,431,042"}},{"$f":"Equities!Y10+'T Bills'!Y10+'T Bonds'!Y10+'Real Estate'!AB14-'Real Estate'!$E$5","v":{"v":1441604.5558283234,"d":"1,441,605"}},{"$f":"Equities!Z10+'T Bills'!Z10+'T Bonds'!Z10+'Real Estate'!AC14-'Real Estate'!$E$5","v":{"v":1850204.258116467,"d":"1,850,204"}},{"$f":"Equities!AA10+'T Bills'!AA10+'T Bonds'!AA10+'Real Estate'!AD14-'Real Estate'!$E$5","v":{"v":1750465.699988404,"d":"1,750,466"}},{"$f":"Equities!AB10+'T Bills'!AB10+'T Bonds'!AB10+'Real Estate'!AE14-'Real Estate'!$E$5","v":{"v":1689838.4472118223,"d":"1,689,838"}},{"$f":"Equities!AC10+'T Bills'!AC10+'T Bonds'!AC10+'Real Estate'!AF14-'Real Estate'!$E$5","v":{"v":1746735.326432845,"d":"1,746,735"}},{"$f":"Equities!AD10+'T Bills'!AD10+'T Bonds'!AD10+'Real Estate'!AG14-'Real Estate'!$E$5","v":{"v":1668662.6893311301,"d":"1,668,663"}},{"$f":"Equities!AE10+'T Bills'!AE10+'T Bonds'!AE10+'Real Estate'!AH14-'Real Estate'!$E$5","v":{"v":1159413.017577069,"d":"1,159,413"}},{"$f":"Equities!AF10+'T Bills'!AF10+'T Bonds'!AF10+'Real Estate'!AI14-'Real Estate'!$E$5","v":{"v":4782252.476371104,"d":"4,782,252"}},{"$f":"Equities!AG10+'T Bills'!AG10+'T Bonds'!AG10+'Real Estate'!AJ14-'Real Estate'!$E$5","v":{"v":3542370.1171175977,"d":"3,542,370"}},{"$f":"Equities!AH10+'T Bills'!AH10+'T Bonds'!AH10+'Real Estate'!AK14-'Real Estate'!$E$5","v":{"v":2015207.800349394,"d":"2,015,208"}},{"$f":"Equities!AI10+'T Bills'!AI10+'T Bonds'!AI10+'Real Estate'!AL14-'Real Estate'!$E$5","v":{"v":2728923.815731271,"d":"2,728,924"}},{"$f":"Equities!AJ10+'T Bills'!AJ10+'T Bonds'!AJ10+'Real Estate'!AM14-'Real Estate'!$E$5","v":{"v":2310761.031824826,"d":"2,310,761"}},{"$f":"Equities!AK10+'T Bills'!AK10+'T Bonds'!AK10+'Real Estate'!AN14-'Real Estate'!$E$5","v":{"v":1995215.3427378626,"d":"1,995,215"}},{"$f":"Equities!AL10+'T Bills'!AL10+'T Bonds'!AL10+'Real Estate'!AO14-'Real Estate'!$E$5","v":{"v":2780978.570463798,"d":"2,780,979"}},{"$f":"Equities!AM10+'T Bills'!AM10+'T Bonds'!AM10+'Real Estate'!AP14-'Real Estate'!$E$5","v":{"v":1074606.6387744707,"d":"1,074,607"}},{"$f":"Equities!AN10+'T Bills'!AN10+'T Bonds'!AN10+'Real Estate'!AQ14-'Real Estate'!$E$5","v":{"v":2657666.877749106,"d":"2,657,667"}},{"$f":"Equities!AO10+'T Bills'!AO10+'T Bonds'!AO10+'Real Estate'!AR14-'Real Estate'!$E$5","v":{"v":1501482.7872151674,"d":"1,501,483"}},{"$f":"Equities!AP10+'T Bills'!AP10+'T Bonds'!AP10+'Real Estate'!AS14-'Real Estate'!$E$5","v":{"v":2303414.5998033592,"d":"2,303,415"}},{"$f":"Equities!AQ10+'T Bills'!AQ10+'T Bonds'!AQ10+'Real Estate'!AT14-'Real Estate'!$E$5","v":{"v":1581362.172913896,"d":"1,581,362"}},{"$f":"Equities!AR10+'T Bills'!AR10+'T Bonds'!AR10+'Real Estate'!AU14-'Real Estate'!$E$5","v":{"v":2368617.298448607,"d":"2,368,617"}},{"$f":"Equities!AS10+'T Bills'!AS10+'T Bonds'!AS10+'Real Estate'!AV14-'Real Estate'!$E$5","v":{"v":1628099.800882794,"d":"1,628,100"}},{"$f":"Equities!AT10+'T Bills'!AT10+'T Bonds'!AT10+'Real Estate'!AW14-'Real Estate'!$E$5","v":{"v":1453831.038509693,"d":"1,453,831"}},{"$f":"Equities!AU10+'T Bills'!AU10+'T Bonds'!AU10+'Real Estate'!AX14-'Real Estate'!$E$5","v":{"v":3242100.857464452,"d":"3,242,101"}},{"$f":"Equities!AV10+'T Bills'!AV10+'T Bonds'!AV10+'Real Estate'!AY14-'Real Estate'!$E$5","v":{"v":1781336.9199249307,"d":"1,781,337"}},{"$f":"Equities!AW10+'T Bills'!AW10+'T Bonds'!AW10+'Real Estate'!AZ14-'Real Estate'!$E$5","v":{"v":1489074.8384434718,"d":"1,489,075"}},{"$f":"Equities!AX10+'T Bills'!AX10+'T Bonds'!AX10+'Real Estate'!BA14-'Real Estate'!$E$5","v":{"v":2538332.7762716,"d":"2,538,333"}},{"$f":"Equities!AY10+'T Bills'!AY10+'T Bonds'!AY10+'Real Estate'!BB14-'Real Estate'!$E$5","v":{"v":2718343.227137186,"d":"2,718,343"}},{"$f":"Equities!AZ10+'T Bills'!AZ10+'T Bonds'!AZ10+'Real Estate'!BC14-'Real Estate'!$E$5","v":{"v":1560077.6140559358,"d":"1,560,078"}},{"$f":"Equities!BA10+'T Bills'!BA10+'T Bonds'!BA10+'Real Estate'!BD14-'Real Estate'!$E$5","v":{"v":873313.1973610045,"d":"873,313"}},{"$f":"Equities!BB10+'T Bills'!BB10+'T Bonds'!BB10+'Real Estate'!BE14-'Real Estate'!$E$5","v":{"v":1782945.6597999888,"d":"1,782,946"}},{"$f":"Equities!BC10+'T Bills'!BC10+'T Bonds'!BC10+'Real Estate'!BF14-'Real Estate'!$E$5","v":{"v":2135051.7320813313,"d":"2,135,052"}},{"$f":"Equities!BD10+'T Bills'!BD10+'T Bonds'!BD10+'Real Estate'!BG14-'Real Estate'!$E$5","v":{"v":3567849.1702591334,"d":"3,567,849"}},{"$f":"Equities!BE10+'T Bills'!BE10+'T Bonds'!BE10+'Real Estate'!BH14-'Real Estate'!$E$5","v":{"v":1722959.7172969796,"d":"1,722,960"}},{"$f":"Equities!BF10+'T Bills'!BF10+'T Bonds'!BF10+'Real Estate'!BI14-'Real Estate'!$E$5","v":{"v":1218494.1551128349,"d":"1,218,494"}},{"$f":"Equities!BG10+'T Bills'!BG10+'T Bonds'!BG10+'Real Estate'!BJ14-'Real Estate'!$E$5","v":{"v":1399612.43798621,"d":"1,399,612"}},{"$f":"Equities!BH10+'T Bills'!BH10+'T Bonds'!BH10+'Real Estate'!BK14-'Real Estate'!$E$5","v":{"v":1595518.7409198713,"d":"1,595,519"}},{"$f":"Equities!BI10+'T Bills'!BI10+'T Bonds'!BI10+'Real Estate'!BL14-'Real Estate'!$E$5","v":{"v":3899882.015686966,"d":"3,899,882"}},{"$f":"Equities!BJ10+'T Bills'!BJ10+'T Bonds'!BJ10+'Real Estate'!BM14-'Real Estate'!$E$5","v":{"v":1946852.6467320584,"d":"1,946,853"}},{"$f":"Equities!BK10+'T Bills'!BK10+'T Bonds'!BK10+'Real Estate'!BN14-'Real Estate'!$E$5","v":{"v":1807871.9519033183,"d":"1,807,872"}},{"$f":"Equities!BL10+'T Bills'!BL10+'T Bonds'!BL10+'Real Estate'!BO14-'Real Estate'!$E$5","v":{"v":2052956.7685809203,"d":"2,052,957"}},{"$f":"Equities!BM10+'T Bills'!BM10+'T Bonds'!BM10+'Real Estate'!BP14-'Real Estate'!$E$5","v":{"v":1195072.189907964,"d":"1,195,072"}},{"$f":"Equities!BN10+'T Bills'!BN10+'T Bonds'!BN10+'Real Estate'!BQ14-'Real Estate'!$E$5","v":{"v":2307703.4700829163,"d":"2,307,703"}},{"$f":"Equities!BO10+'T Bills'!BO10+'T Bonds'!BO10+'Real Estate'!BR14-'Real Estate'!$E$5","v":{"v":1699291.3660703425,"d":"1,699,291"}},{"$f":"Equities!BP10+'T Bills'!BP10+'T Bonds'!BP10+'Real Estate'!BS14-'Real Estate'!$E$5","v":{"v":2627185.2666000254,"d":"2,627,185"}},{"$f":"Equities!BQ10+'T Bills'!BQ10+'T Bonds'!BQ10+'Real Estate'!BT14-'Real Estate'!$E$5","v":{"v":2755808.843350966,"d":"2,755,809"}},{"$f":"Equities!BR10+'T Bills'!BR10+'T Bonds'!BR10+'Real Estate'!BU14-'Real Estate'!$E$5","v":{"v":3636992.5142171355,"d":"3,636,993"}},{"$f":"Equities!BS10+'T Bills'!BS10+'T Bonds'!BS10+'Real Estate'!BV14-'Real Estate'!$E$5","v":{"v":2061962.3524550477,"d":"2,061,962"}},{"$f":"Equities!BT10+'T Bills'!BT10+'T Bonds'!BT10+'Real Estate'!BW14-'Real Estate'!$E$5","v":{"v":1464726.1165036524,"d":"1,464,726"}},{"$f":"Equities!BU10+'T Bills'!BU10+'T Bonds'!BU10+'Real Estate'!BX14-'Real Estate'!$E$5","v":{"v":1373520.0442405294,"d":"1,373,520"}},{"$f":"Equities!BV10+'T Bills'!BV10+'T Bonds'!BV10+'Real Estate'!BY14-'Real Estate'!$E$5","v":{"v":1999287.0833385692,"d":"1,999,287"}},{"$f":"Equities!BW10+'T Bills'!BW10+'T Bonds'!BW10+'Real Estate'!BZ14-'Real Estate'!$E$5","v":{"v":1336426.5445440963,"d":"1,336,427"}},{"$f":"Equities!BX10+'T Bills'!BX10+'T Bonds'!BX10+'Real Estate'!CA14-'Real Estate'!$E$5","v":{"v":2287486.022969193,"d":"2,287,486"}},{"$f":"Equities!BY10+'T Bills'!BY10+'T Bonds'!BY10+'Real Estate'!CB14-'Real Estate'!$E$5","v":{"v":2062054.6250459475,"d":"2,062,055"}},{"$f":"Equities!BZ10+'T Bills'!BZ10+'T Bonds'!BZ10+'Real Estate'!CC14-'Real Estate'!$E$5","v":{"v":1688789.2182640997,"d":"1,688,789"}},{"$f":"Equities!CA10+'T Bills'!CA10+'T Bonds'!CA10+'Real Estate'!CD14-'Real Estate'!$E$5","v":{"v":2803693.6390755065,"d":"2,803,694"}},{"$f":"Equities!CB10+'T Bills'!CB10+'T Bonds'!CB10+'Real Estate'!CE14-'Real Estate'!$E$5","v":{"v":1352199.4511470238,"d":"1,352,199"}},{"$f":"Equities!CC10+'T Bills'!CC10+'T Bonds'!CC10+'Real Estate'!CF14-'Real Estate'!$E$5","v":{"v":2168740.5726808254,"d":"2,168,741"}},{"$f":"Equities!CD10+'T Bills'!CD10+'T Bonds'!CD10+'Real Estate'!CG14-'Real Estate'!$E$5","v":{"v":2749693.884256007,"d":"2,749,694"}},{"$f":"Equities!CE10+'T Bills'!CE10+'T Bonds'!CE10+'Real Estate'!CH14-'Real Estate'!$E$5","v":{"v":3104245.879193232,"d":"3,104,246"}},{"$f":"Equities!CF10+'T Bills'!CF10+'T Bonds'!CF10+'Real Estate'!CI14-'Real Estate'!$E$5","v":{"v":1935058.0626869106,"d":"1,935,058"}},{"$f":"Equities!CG10+'T Bills'!CG10+'T Bonds'!CG10+'Real Estate'!CJ14-'Real Estate'!$E$5","v":{"v":2674657.1815853054,"d":"2,674,657"}},{"$f":"Equities!CH10+'T Bills'!CH10+'T Bonds'!CH10+'Real Estate'!CK14-'Real Estate'!$E$5","v":{"v":2263753.180343815,"d":"2,263,753"}},{"$f":"Equities!CI10+'T Bills'!CI10+'T Bonds'!CI10+'Real Estate'!CL14-'Real Estate'!$E$5","v":{"v":1689410.0920857103,"d":"1,689,410"}},{"$f":"Equities!CJ10+'T Bills'!CJ10+'T Bonds'!CJ10+'Real Estate'!CM14-'Real Estate'!$E$5","v":{"v":3485226.465186742,"d":"3,485,226"}},{"$f":"Equities!CK10+'T Bills'!CK10+'T Bonds'!CK10+'Real Estate'!CN14-'Real Estate'!$E$5","v":{"v":1501378.3810174742,"d":"1,501,378"}},{"$f":"Equities!CL10+'T Bills'!CL10+'T Bonds'!CL10+'Real Estate'!CO14-'Real Estate'!$E$5","v":{"v":3389327.0273139626,"d":"3,389,327"}},{"$f":"Equities!CM10+'T Bills'!CM10+'T Bonds'!CM10+'Real Estate'!CP14-'Real Estate'!$E$5","v":{"v":3754153.3960176976,"d":"3,754,153"}},{"$f":"Equities!CN10+'T Bills'!CN10+'T Bonds'!CN10+'Real Estate'!CQ14-'Real Estate'!$E$5","v":{"v":3125454.9511421956,"d":"3,125,455"}},{"$f":"Equities!CO10+'T Bills'!CO10+'T Bonds'!CO10+'Real Estate'!CR14-'Real Estate'!$E$5","v":{"v":3232236.3343331227,"d":"3,232,236"}},{"$f":"Equities!CP10+'T Bills'!CP10+'T Bonds'!CP10+'Real Estate'!CS14-'Real Estate'!$E$5","v":{"v":1255474.447057502,"d":"1,255,474"}},{"$f":"Equities!CQ10+'T Bills'!CQ10+'T Bonds'!CQ10+'Real Estate'!CT14-'Real Estate'!$E$5","v":{"v":1549581.7893768216,"d":"1,549,582"}},{"$f":"Equities!CR10+'T Bills'!CR10+'T Bonds'!CR10+'Real Estate'!CU14-'Real Estate'!$E$5","v":{"v":3234785.076430332,"d":"3,234,785"}},{"$f":"Equities!CS10+'T Bills'!CS10+'T Bonds'!CS10+'Real Estate'!CV14-'Real Estate'!$E$5","v":{"v":2052768.9040383918,"d":"2,052,769"}},{"$f":"Equities!CT10+'T Bills'!CT10+'T Bonds'!CT10+'Real Estate'!CW14-'Real Estate'!$E$5","v":{"v":1682295.7749079994,"d":"1,682,296"}},{"$f":"Equities!CU10+'T Bills'!CU10+'T Bonds'!CU10+'Real Estate'!CX14-'Real Estate'!$E$5","v":{"v":3552207.9321997375,"d":"3,552,208"}},{"$f":"Equities!CV10+'T Bills'!CV10+'T Bonds'!CV10+'Real Estate'!CY14-'Real Estate'!$E$5","v":{"v":2668625.358612492,"d":"2,668,625"}},{"$f":"Equities!CW10+'T Bills'!CW10+'T Bonds'!CW10+'Real Estate'!CZ14-'Real Estate'!$E$5","v":{"v":1394586.8695654534,"d":"1,394,587"}},{"$f":"Equities!CX10+'T Bills'!CX10+'T Bonds'!CX10+'Real Estate'!DA14-'Real Estate'!$E$5","v":{"v":2109795.3019007123,"d":"2,109,795"}}]
[{"$f":"Main!A17","v":"2032-12-30"},78,{"$f":"Equities!C11+'T Bills'!C11+'T Bonds'!C11+'Real Estate'!F15-'Real Estate'!$E$5","v":{"v":1601201.3769910012,"d":"1,601,201"}},{"$f":"Equities!D11+'T Bills'!D11+'T Bonds'!D11+'Real Estate'!G15-'Real Estate'!$E$5","v":{"v":1983072.4646786316,"d":"1,983,072"}},{"$f":"Equities!E11+'T Bills'!E11+'T Bonds'!E11+'Real Estate'!H15-'Real Estate'!$E$5","v":{"v":2690413.4309379337,"d":"2,690,413"}},{"$f":"Equities!F11+'T Bills'!F11+'T Bonds'!F11+'Real Estate'!I15-'Real Estate'!$E$5","v":{"v":4536513.245360819,"d":"4,536,513"}},{"$f":"Equities!G11+'T Bills'!G11+'T Bonds'!G11+'Real Estate'!J15-'Real Estate'!$E$5","v":{"v":2749802.214273745,"d":"2,749,802"}},{"$f":"Equities!H11+'T Bills'!H11+'T Bonds'!H11+'Real Estate'!K15-'Real Estate'!$E$5","v":{"v":2308775.9558937214,"d":"2,308,776"}},{"$f":"Equities!I11+'T Bills'!I11+'T Bonds'!I11+'Real Estate'!L15-'Real Estate'!$E$5","v":{"v":1754572.7353351894,"d":"1,754,573"}},{"$f":"Equities!J11+'T Bills'!J11+'T Bonds'!J11+'Real Estate'!M15-'Real Estate'!$E$5","v":{"v":1511280.270446992,"d":"1,511,280"}},{"$f":"Equities!K11+'T Bills'!K11+'T Bonds'!K11+'Real Estate'!N15-'Real Estate'!$E$5","v":{"v":3317588.0082446667,"d":"3,317,588"}},{"$f":"Equities!L11+'T Bills'!L11+'T Bonds'!L11+'Real Estate'!O15-'Real Estate'!$E$5","v":{"v":3035234.9477436673,"d":"3,035,235"}},{"$f":"Equities!M11+'T Bills'!M11+'T Bonds'!M11+'Real Estate'!P15-'Real Estate'!$E$5","v":{"v":1919561.3960136806,"d":"1,919,561"}},{"$f":"Equities!N11+'T Bills'!N11+'T Bonds'!N11+'Real Estate'!Q15-'Real Estate'!$E$5","v":{"v":1038703.4162732663,"d":"1,038,703"}},{"$f":"Equities!O11+'T Bills'!O11+'T Bonds'!O11+'Real Estate'!R15-'Real Estate'!$E$5","v":{"v":1894701.592556547,"d":"1,894,702"}},{"$f":"Equities!P11+'T Bills'!P11+'T Bonds'!P11+'Real Estate'!S15-'Real Estate'!$E$5","v":{"v":1515661.319954226,"d":"1,515,661"}},{"$f":"Equities!Q11+'T Bills'!Q11+'T Bonds'!Q11+'Real Estate'!T15-'Real Estate'!$E$5","v":{"v":1319617.1228942235,"d":"1,319,617"}},{"$f":"Equities!R11+'T Bills'!R11+'T Bonds'!R11+'Real Estate'!U15-'Real Estate'!$E$5","v":{"v":1484244.708053793,"d":"1,484,245"}},{"$f":"Equities!S11+'T Bills'!S11+'T Bonds'!S11+'Real Estate'!V15-'Real Estate'!$E$5","v":{"v":1507640.1560391295,"d":"1,507,640"}},{"$f":"Equities!T11+'T Bills'!T11+'T Bonds'!T11+'Real Estate'!W15-'Real Estate'!$E$5","v":{"v":1425334.46367095,"d":"1,425,334"}},{"$f":"Equities!U11+'T Bills'!U11+'T Bonds'!U11+'Real Estate'!X15-'Real Estate'!$E$5","v":{"v":1617523.5583915398,"d":"1,617,524"}},{"$f":"Equities!V11+'T Bills'!V11+'T Bonds'!V11+'Real Estate'!Y15-'Real Estate'!$E$5","v":{"v":3531216.60728081,"d":"3,531,217"}},{"$f":"Equities!W11+'T Bills'!W11+'T Bonds'!W11+'Real Estate'!Z15-'Real Estate'!$E$5","v":{"v":2900421.744932112,"d":"2,900,422"}},{"$f":"Equities!X11+'T Bills'!X11+'T Bonds'!X11+'Real Estate'!AA15-'Real Estate'!$E$5","v":{"v":1587731.9679994113,"d":"1,587,732"}},{"$f":"Equities!Y11+'T Bills'!Y11+'T Bonds'!Y11+'Real Estate'!AB15-'Real Estate'!$E$5","v":{"v":1383349.8878115865,"d":"1,383,350"}},{"$f":"Equities!Z11+'T Bills'!Z11+'T Bonds'!Z11+'Real Estate'!AC15-'Real Estate'!$E$5","v":{"v":1953070.027783551,"d":"1,953,070"}},{"$f":"Equities!AA11+'T Bills'!AA11+'T Bonds'!AA11+'Real Estate'!AD15-'Real Estate'!$E$5","v":{"v":1983390.686552525,"d":"1,983,391"}},{"$f":"Equities!AB11+'T Bills'!AB11+'T Bonds'!AB11+'Real Estate'!AE15-'Real Estate'!$E$5","v":{"v":1910342.113381094,"d":"1,910,342"}},{"$f":"Equities!AC11+'T Bills'!AC11+'T Bonds'!AC11+'Real Estate'!AF15-'Real Estate'!$E$5","v":{"v":1863918.7154485432,"d":"1,863,919"}},{"$f":"Equities!AD11+'T Bills'!AD11+'T Bonds'!AD11+'Real Estate'!AG15-'Real Estate'!$E$5","v":{"v":1647668.8473467138,"d":"1,647,669"}},{"$f":"Equities!AE11+'T Bills'!AE11+'T Bonds'!AE11+'Real Estate'!AH15-'Real Estate'!$E$5","v":{"v":1262837.9018944898,"d":"1,262,838"}},{"$f":"Equities!AF11+'T Bills'!AF11+'T Bonds'!AF11+'Real Estate'!AI15-'Real Estate'!$E$5","v":{"v":5475872.8083968125,"d":"5,475,873"}},{"$f":"Equities!AG11+'T Bills'!AG11+'T Bonds'!AG11+'Real Estate'!AJ15-'Real Estate'!$E$5","v":{"v":3502554.0610173782,"d":"3,502,554"}},{"$f":"Equities!AH11+'T Bills'!AH11+'T Bonds'!AH11+'Real Estate'!AK15-'Real Estate'!$E$5","v":{"v":2482737.68267259,"d":"2,482,738"}},{"$f":"Equities!AI11+'T Bills'!AI11+'T Bonds'!AI11+'Real Estate'!AL15-'Real Estate'!$E$5","v":{"v":2599213.7197882663,"d":"2,599,214"}},{"$f":"Equities!AJ11+'T Bills'!AJ11+'T Bonds'!AJ11+'Real Estate'!AM15-'Real Estate'!$E$5","v":{"v":2478703.8469313723,"d":"2,478,704"}},{"$f":"Equities!AK11+'T Bills'!AK11+'T Bonds'!AK11+'Real Estate'!AN15-'Real Estate'!$E$5","v":{"v":2291677.9849378276,"d":"2,291,678"}},{"$f":"Equities!AL11+'T Bills'!AL11+'T Bonds'!AL11+'Real Estate'!AO15-'Real Estate'!$E$5","v":{"v":2767530.239323039,"d":"2,767,530"}},{"$f":"Equities!AM11+'T Bills'!AM11+'T Bonds'!AM11+'Real Estate'!AP15-'Real Estate'!$E$5","v":{"v":1052677.200840074,"d":"1,052,677"}},{"$f":"Equities!AN11+'T Bills'!AN11+'T Bonds'!AN11+'Real Estate'!AQ15-'Real Estate'!$E$5","v":{"v":3302272.4018988367,"d":"3,302,272"}},{"$f":"Equities!AO11+'T Bills'!AO11+'T Bonds'!AO11+'Real Estate'!AR15-'Real Estate'!$E$5","v":{"v":1750797.4806384915,"d":"1,750,797"}},{"$f":"Equities!AP11+'T Bills'!AP11+'T Bonds'!AP11+'Real Estate'!AS15-'Real Estate'!$E$5","v":{"v":2758282.6230064975,"d":"2,758,283"}},{"$f":"Equities!AQ11+'T Bills'!AQ11+'T Bonds'!AQ11+'Real Estate'!AT15-'Real Estate'!$E$5","v":{"v":1197200.8238732864,"d":"1,197,201"}},{"$f":"Equities!AR11+'T Bills'!AR11+'T Bonds'!AR11+'Real Estate'!AU15-'Real Estate'!$E$5","v":{"v":2849031.89056163,"d":"2,849,032"}},{"$f":"Equities!AS11+'T Bills'!AS11+'T Bonds'!AS11+'Real Estate'!AV15-'Real Estate'!$E$5","v":{"v":2007832.6546024054,"d":"2,007,833"}},{"$f":"Equities!AT11+'T Bills'!AT11+'T Bonds'!AT11+'Real Estate'!AW15-'Real Estate'!$E$5","v":{"v":1429136.6391635125,"d":"1,429,137"}},{"$f":"Equities!AU11+'T Bills'!AU11+'T Bonds'!AU11+'Real Estate'!AX15-'Real Estate'!$E$5","v":{"v":3601350.5182010164,"d":"3,601,351"}},{"$f":"Equities!AV11+'T Bills'!AV11+'T Bonds'!AV11+'Real Estate'!AY15-'Real Estate'!$E$5","v":{"v":1954282.50533032,"d":"1,954,283"}},{"$f":"Equities!AW11+'T Bills'!AW11+'T Bonds'!AW11+'Real Estate'!AZ15-'Real Estate'!$E$5","v":{"v":1553640.7214687814,"d":"1,553,641"}},{"$f":"Equities!AX11+'T Bills'!AX11+'T Bonds'!AX11+'Real Estate'!BA15-'Real Estate'!$E$5","v":{"v":2823490.066030208,"d":"2,823,490"}},{"$f":"Equities!AY11+'T Bills'!AY11+'T Bonds'!AY11+'Real Estate'!BB15-'Real Estate'!$E$5","v":{"v":3324890.99233293,"d":"3,324,891"}},{"$f":"Equities!AZ11+'T Bills'!AZ11+'T Bonds'!AZ11+'Real Estate'!BC15-'Real Estate'!$E$5","v":{"v":1283917.2000958521,"d":"1,283,917"}},{"$f":"Equities!BA11+'T Bills'!BA11+'T Bonds'!BA11+'Real Estate'!BD15-'Real Estate'!$E$5","v":{"v":901168.0475991752,"d":"901,168"}},{"$f":"Equities!BB11+'T Bills'!BB11+'T Bonds'!BB11+'Real Estate'!BE15-'Real Estate'!$E$5","v":{"v":1817238.8039314598,"d":"1,817,239"}},{"$f":"Equities!BC11+'T Bills'!BC11+'T Bonds'!BC11+'Real Estate'!BF15-'Real Estate'!$E$5","v":{"v":2430251.076500524,"d":"2,430,251"}},{"$f":"Equities!BD11+'T Bills'!BD11+'T Bonds'!BD11+'Real Estate'!BG15-'Real Estate'!$E$5","v":{"v":2252450.851584049,"d":"2,252,451"}},{"$f":"Equities!BE11+'T Bills'!BE11+'T Bonds'!BE11+'Real Estate'!BH15-'Real Estate'!$E$5","v":{"v":1770601.3498781538,"d":"1,770,601"}},{"$f":"Equities!BF11+'T Bills'!BF11+'T Bonds'!BF11+'Real Estate'!BI15-'Real Estate'!$E$5","v":{"v":1159842.9465630867,"d":"1,159,843"}},{"$f":"Equities!BG11+'T Bills'!BG11+'T Bonds'!BG11+'Real Estate'!BJ15-'Real Estate'!$E$5","v":{"v":1564585.4078516306,"d":"1,564,585"}},{"$f":"Equities!BH11+'T Bills'!BH11+'T Bonds'!BH11+'Real Estate'!BK15-'Real Estate'!$E$5","v":{"v":1488161.6120831908,"d":"1,488,162"}},{"$f":"Equities!BI11+'T Bills'!BI11+'T Bonds'!BI11+'Real Estate'!BL15-'Real Estate'!$E$5","v":{"v":2821704.1376202423,"d":"2,821,704"}},{"$f":"Equities!BJ11+'T Bills'!BJ11+'T Bonds'!BJ11+'Real Estate'!BM15-'Real Estate'!$E$5","v":{"v":1814200.0125263578,"d":"1,814,200"}},{"$f":"Equities!BK11+'T Bills'!BK11+'T Bonds'!BK11+'Real Estate'!BN15-'Real Estate'!$E$5","v":{"v":1862871.3276851063,"d":"1,862,871"}},{"$f":"Equities!BL11+'T Bills'!BL11+'T Bonds'!BL11+'Real Estate'!BO15-'Real Estate'!$E$5","v":{"v":2328843.3598790825,"d":"2,328,843"}},{"$f":"Equities!BM11+'T Bills'!BM11+'T Bonds'!BM11+'Real Estate'!BP15-'Real Estate'!$E$5","v":{"v":1346219.0477223077,"d":"1,346,219"}},{"$f":"Equities!BN11+'T Bills'!BN11+'T Bonds'!BN11+'Real Estate'!BQ15-'Real Estate'!$E$5","v":{"v":2594351.4884455716,"d":"2,594,351"}},{"$f":"Equities!BO11+'T Bills'!BO11+'T Bonds'!BO11+'Real Estate'!BR15-'Real Estate'!$E$5","v":{"v":2081846.3770996544,"d":"2,081,846"}},{"$f":"Equities!BP11+'T Bills'!BP11+'T Bonds'!BP11+'Real Estate'!BS15-'Real Estate'!$E$5","v":{"v":2967056.411151939,"d":"2,967,056"}},{"$f":"Equities!BQ11+'T Bills'!BQ11+'T Bonds'!BQ11+'Real Estate'!BT15-'Real Estate'!$E$5","v":{"v":2960649.665371718,"d":"2,960,650"}},{"$f":"Equities!BR11+'T Bills'!BR11+'T Bonds'!BR11+'Real Estate'!BU15-'Real Estate'!$E$5","v":{"v":3869361.7333693183,"d":"3,869,362"}},{"$f":"Equities!BS11+'T Bills'!BS11+'T Bonds'!BS11+'Real Estate'!BV15-'Real Estate'!$E$5","v":{"v":2341551.3700109334,"d":"2,341,551"}},{"$f":"Equities!BT11+'T Bills'!BT11+'T Bonds'!BT11+'Real Estate'!BW15-'Real Estate'!$E$5","v":{"v":1288070.412674886,"d":"1,288,070"}},{"$f":"Equities!BU11+'T Bills'!BU11+'T Bonds'!BU11+'Real Estate'!BX15-'Real Estate'!$E$5","v":{"v":1363847.754751941,"d":"1,363,848"}},{"$f":"Equities!BV11+'T Bills'!BV11+'T Bonds'!BV11+'Real Estate'!BY15-'Real Estate'!$E$5","v":{"v":2020925.268646314,"d":"2,020,925"}},{"$f":"Equities!BW11+'T Bills'!BW11+'T Bonds'!BW11+'Real Estate'!BZ15-'Real Estate'!$E$5","v":{"v":1318346.1974539054,"d":"1,318,346"}},{"$f":"Equities!BX11+'T Bills'!BX11+'T Bonds'!BX11+'Real Estate'!CA15-'Real Estate'!$E$5","v":{"v":2626312.37383588,"d":"2,626,312"}},{"$f":"Equities!BY11+'T Bills'!BY11+'T Bonds'!BY11+'Real Estate'!CB15-'Real Estate'!$E$5","v":{"v":2052735.729536833,"d":"2,052,736"}},{"$f":"Equities!BZ11+'T Bills'!BZ11+'T Bonds'!BZ11+'Real Estate'!CC15-'Real Estate'!$E$5","v":{"v":1472562.9741761005,"d":"1,472,563"}},{"$f":"Equities!CA11+'T Bills'!CA11+'T Bonds'!CA11+'Real Estate'!CD15-'Real Estate'!$E$5","v":{"v":2632272.8580507026,"d":"2,632,273"}},{"$f":"Equities!CB11+'T Bills'!CB11+'T Bonds'!CB11+'Real Estate'!CE15-'Real Estate'!$E$5","v":{"v":1397663.7622155712,"d":"1,397,664"}},{"$f":"Equities!CC11+'T Bills'!CC11+'T Bonds'!CC11+'Real Estate'!CF15-'Real Estate'!$E$5","v":{"v":2396009.9725844753,"d":"2,396,010"}},{"$f":"Equities!CD11+'T Bills'!CD11+'T Bonds'!CD11+'Real Estate'!CG15-'Real Estate'!$E$5","v":{"v":3567082.4996458055,"d":"3,567,082"}},{"$f":"Equities!CE11+'T Bills'!CE11+'T Bonds'!CE11+'Real Estate'!CH15-'Real Estate'!$E$5","v":{"v":3775475.6081899265,"d":"3,775,476"}},{"$f":"Equities!CF11+'T Bills'!CF11+'T Bonds'!CF11+'Real Estate'!CI15-'Real Estate'!$E$5","v":{"v":1872371.6596450487,"d":"1,872,372"}},{"$f":"Equities!CG11+'T Bills'!CG11+'T Bonds'!CG11+'Real Estate'!CJ15-'Real Estate'!$E$5","v":{"v":3666378.376859785,"d":"3,666,378"}},{"$f":"Equities!CH11+'T Bills'!CH11+'T Bonds'!CH11+'Real Estate'!CK15-'Real Estate'!$E$5","v":{"v":2971246.3286002306,"d":"2,971,246"}},{"$f":"Equities!CI11+'T Bills'!CI11+'T Bonds'!CI11+'Real Estate'!CL15-'Real Estate'!$E$5","v":{"v":1790802.40415283,"d":"1,790,802"}},{"$f":"Equities!CJ11+'T Bills'!CJ11+'T Bonds'!CJ11+'Real Estate'!CM15-'Real Estate'!$E$5","v":{"v":3791450.5497467895,"d":"3,791,451"}},{"$f":"Equities!CK11+'T Bills'!CK11+'T Bonds'!CK11+'Real Estate'!CN15-'Real Estate'!$E$5","v":{"v":1848819.586703168,"d":"1,848,820"}},{"$f":"Equities!CL11+'T Bills'!CL11+'T Bonds'!CL11+'Real Estate'!CO15-'Real Estate'!$E$5","v":{"v":4578505.679525312,"d":"4,578,506"}},{"$f":"Equities!CM11+'T Bills'!CM11+'T Bonds'!CM11+'Real Estate'!CP15-'Real Estate'!$E$5","v":{"v":4786982.660824187,"d":"4,786,983"}},{"$f":"Equities!CN11+'T Bills'!CN11+'T Bonds'!CN11+'Real Estate'!CQ15-'Real Estate'!$E$5","v":{"v":3432884.8408244024,"d":"3,432,885"}},{"$f":"Equities!CO11+'T Bills'!CO11+'T Bonds'!CO11+'Real Estate'!CR15-'Real Estate'!$E$5","v":{"v":3440411.745675642,"d":"3,440,412"}},{"$f":"Equities!CP11+'T Bills'!CP11+'T Bonds'!CP11+'Real Estate'!CS15-'Real Estate'!$E$5","v":{"v":1013745.3161226849,"d":"1,013,745"}},{"$f":"Equities!CQ11+'T Bills'!CQ11+'T Bonds'!CQ11+'Real Estate'!CT15-'Real Estate'!$E$5","v":{"v":1676692.7933845634,"d":"1,676,693"}},{"$f":"Equities!CR11+'T Bills'!CR11+'T Bonds'!CR11+'Real Estate'!CU15-'Real Estate'!$E$5","v":{"v":3600791.7984661204,"d":"3,600,792"}},{"$f":"Equities!CS11+'T Bills'!CS11+'T Bonds'!CS11+'Real Estate'!CV15-'Real Estate'!$E$5","v":{"v":2228654.6478526792,"d":"2,228,655"}},{"$f":"Equities!CT11+'T Bills'!CT11+'T Bonds'!CT11+'Real Estate'!CW15-'Real Estate'!$E$5","v":{"v":1827454.5344408022,"d":"1,827,455"}},{"$f":"Equities!CU11+'T Bills'!CU11+'T Bonds'!CU11+'Real Estate'!CX15-'Real Estate'!$E$5","v":{"v":3563064.300722723,"d":"3,563,064"}},{"$f":"Equities!CV11+'T Bills'!CV11+'T Bonds'!CV11+'Real Estate'!CY15-'Real Estate'!$E$5","v":{"v":3132414.065672438,"d":"3,132,414"}},{"$f":"Equities!CW11+'T Bills'!CW11+'T Bonds'!CW11+'Real Estate'!CZ15-'Real Estate'!$E$5","v":{"v":1447156.0783230553,"d":"1,447,156"}},{"$f":"Equities!CX11+'T Bills'!CX11+'T Bonds'!CX11+'Real Estate'!DA15-'Real Estate'!$E$5","v":{"v":2421415.281243968,"d":"2,421,415"}}]
[{"$f":"Main!A18","v":"2033-12-30"},79,{"$f":"Equities!C12+'T Bills'!C12+'T Bonds'!C12+'Real Estate'!F16-'Real Estate'!$E$5","v":{"v":1424492.406035734,"d":"1,424,492"}},{"$f":"Equities!D12+'T Bills'!D12+'T Bonds'!D12+'Real Estate'!G16-'Real Estate'!$E$5","v":{"v":2058712.3253805328,"d":"2,058,712"}},{"$f":"Equities!E12+'T Bills'!E12+'T Bonds'!E12+'Real Estate'!H16-'Real Estate'!$E$5","v":{"v":2804048.6456494206,"d":"2,804,049"}},{"$f":"Equities!F12+'T Bills'!F12+'T Bonds'!F12+'Real Estate'!I16-'Real Estate'!$E$5","v":{"v":5175223.237921305,"d":"5,175,223"}},{"$f":"Equities!G12+'T Bills'!G12+'T Bonds'!G12+'Real Estate'!J16-'Real Estate'!$E$5","v":{"v":3494042.402895269,"d":"3,494,042"}},{"$f":"Equities!H12+'T Bills'!H12+'T Bonds'!H12+'Real Estate'!K16-'Real Estate'!$E$5","v":{"v":2146901.5963595286,"d":"2,146,902"}},{"$f":"Equities!I12+'T Bills'!I12+'T Bonds'!I12+'Real Estate'!L16-'Real Estate'!$E$5","v":{"v":1749886.932509147,"d":"1,749,887"}},{"$f":"Equities!J12+'T Bills'!J12+'T Bonds'!J12+'Real Estate'!M16-'Real Estate'!$E$5","v":{"v":1575581.3559536345,"d":"1,575,581"}},{"$f":"Equities!K12+'T Bills'!K12+'T Bonds'!K12+'Real Estate'!N16-'Real Estate'!$E$5","v":{"v":3903066.49229767,"d":"3,903,066"}},{"$f":"Equities!L12+'T Bills'!L12+'T Bonds'!L12+'Real Estate'!O16-'Real Estate'!$E$5","v":{"v":3440145.478100484,"d":"3,440,145"}},{"$f":"Equities!M12+'T Bills'!M12+'T Bonds'!M12+'Real Estate'!P16-'Real Estate'!$E$5","v":{"v":2149438.056985193,"d":"2,149,438"}},{"$f":"Equities!N12+'T Bills'!N12+'T Bonds'!N12+'Real Estate'!Q16-'Real Estate'!$E$5","v":{"v":1057391.9836080202,"d":"1,057,392"}},{"$f":"Equities!O12+'T Bills'!O12+'T Bonds'!O12+'Real Estate'!R16-'Real Estate'!$E$5","v":{"v":2228692.2524492666,"d":"2,228,692"}},{"$f":"Equities!P12+'T Bills'!P12+'T Bonds'!P12+'Real Estate'!S16-'Real Estate'!$E$5","v":{"v":1575896.378776447,"d":"1,575,896"}},{"$f":"Equities!Q12+'T Bills'!Q12+'T Bonds'!Q12+'Real Estate'!T16-'Real Estate'!$E$5","v":{"v":1450620.2569582176,"d":"1,450,620"}},{"$f":"Equities!R12+'T Bills'!R12+'T Bonds'!R12+'Real Estate'!U16-'Real Estate'!$E$5","v":{"v":1576386.5936937828,"d":"1,576,387"}},{"$f":"Equities!S12+'T Bills'!S12+'T Bonds'!S12+'Real Estate'!V16-'Real Estate'!$E$5","v":{"v":1294335.9339814545,"d":"1,294,336"}},{"$f":"Equities!T12+'T Bills'!T12+'T Bonds'!T12+'Real Estate'!W16-'Real Estate'!$E$5","v":{"v":1351591.8392067624,"d":"1,351,592"}},{"$f":"Equities!U12+'T Bills'!U12+'T Bonds'!U12+'Real Estate'!X16-'Real Estate'!$E$5","v":{"v":1809383.455582157,"d":"1,809,383"}},{"$f":"Equities!V12+'T Bills'!V12+'T Bonds'!V12+'Real Estate'!Y16-'Real Estate'!$E$5","v":{"v":4069748.8185340147,"d":"4,069,749"}},{"$f":"Equities!W12+'T Bills'!W12+'T Bonds'!W12+'Real Estate'!Z16-'Real Estate'!$E$5","v":{"v":3132930.338655904,"d":"3,132,930"}},{"$f":"Equities!X12+'T Bills'!X12+'T Bonds'!X12+'Real Estate'!AA16-'Real Estate'!$E$5","v":{"v":1901785.0826400581,"d":"1,901,785"}},{"$f":"Equities!Y12+'T Bills'!Y12+'T Bonds'!Y12+'Real Estate'!AB16-'Real Estate'!$E$5","v":{"v":1444745.878256295,"d":"1,444,746"}},{"$f":"Equities!Z12+'T Bills'!Z12+'T Bonds'!Z12+'Real Estate'!AC16-'Real Estate'!$E$5","v":{"v":1815357.6943678616,"d":"1,815,358"}},{"$f":"Equities!AA12+'T Bills'!AA12+'T Bonds'!AA12+'Real Estate'!AD16-'Real Estate'!$E$5","v":{"v":2433553.5434879186,"d":"2,433,554"}},{"$f":"Equities!AB12+'T Bills'!AB12+'T Bonds'!AB12+'Real Estate'!AE16-'Real Estate'!$E$5","v":{"v":1843218.6046617317,"d":"1,843,219"}},{"$f":"Equities!AC12+'T Bills'!AC12+'T Bonds'!AC12+'Real Estate'!AF16-'Real Estate'!$E$5","v":{"v":1735087.152882264,"d":"1,735,087"}},{"$f":"Equities!AD12+'T Bills'!AD12+'T Bonds'!AD12+'Real Estate'!AG16-'Real Estate'!$E$5","v":{"v":1924922.01565434,"d":"1,924,922"}},{"$f":"Equities!AE12+'T Bills'!AE12+'T Bonds'!AE12+'Real Estate'!AH16-'Real Estate'!$E$5","v":{"v":1441168.7940234346,"d":"1,441,169"}},{"$f":"Equities!AF12+'T Bills'!AF12+'T Bonds'!AF12+'Real Estate'!AI16-'Real Estate'!$E$5","v":{"v":5043551.061656357,"d":"5,043,551"}},{"$f":"Equities!AG12+'T Bills'!AG12+'T Bonds'!AG12+'Real Estate'!AJ16-'Real Estate'!$E$5","v":{"v":4189733.0263526943,"d":"4,189,733"}},{"$f":"Equities!AH12+'T Bills'!AH12+'T Bonds'!AH12+'Real Estate'!AK16-'Real Estate'!$E$5","v":{"v":2602315.2302022097,"d":"2,602,315"}},{"$f":"Equities!AI12+'T Bills'!AI12+'T Bonds'!AI12+'Real Estate'!AL16-'Real Estate'!$E$5","v":{"v":2896322.132978687,"d":"2,896,322"}},{"$f":"Equities!AJ12+'T Bills'!AJ12+'T Bonds'!AJ12+'Real Estate'!AM16-'Real Estate'!$E$5","v":{"v":2793741.56645819,"d":"2,793,742"}},{"$f":"Equities!AK12+'T Bills'!AK12+'T Bonds'!AK12+'Real Estate'!AN16-'Real Estate'!$E$5","v":{"v":1815940.5056901926,"d":"1,815,941"}},{"$f":"Equities!AL12+'T Bills'!AL12+'T Bonds'!AL12+'Real Estate'!AO16-'Real Estate'!$E$5","v":{"v":2670188.537125569,"d":"2,670,189"}},{"$f":"Equities!AM12+'T Bills'!AM12+'T Bonds'!AM12+'Real Estate'!AP16-'Real Estate'!$E$5","v":{"v":1128592.5049082444,"d":"1,128,593"}},{"$f":"Equities!AN12+'T Bills'!AN12+'T Bonds'!AN12+'Real Estate'!AQ16-'Real Estate'!$E$5","v":{"v":3674725.1564515163,"d":"3,674,725"}},{"$f":"Equities!AO12+'T Bills'!AO12+'T Bonds'!AO12+'Real Estate'!AR16-'Real Estate'!$E$5","v":{"v":1949892.6108084705,"d":"1,949,893"}},{"$f":"Equities!AP12+'T Bills'!AP12+'T Bonds'!AP12+'Real Estate'!AS16-'Real Estate'!$E$5","v":{"v":3362552.0895255455,"d":"3,362,552"}},{"$f":"Equities!AQ12+'T Bills'!AQ12+'T Bonds'!AQ12+'Real Estate'!AT16-'Real Estate'!$E$5","v":{"v":1482874.0351683442,"d":"1,482,874"}},{"$f":"Equities!AR12+'T Bills'!AR12+'T Bonds'!AR12+'Real Estate'!AU16-'Real Estate'!$E$5","v":{"v":3217563.826533088,"d":"3,217,564"}},{"$f":"Equities!AS12+'T Bills'!AS12+'T Bonds'!AS12+'Real Estate'!AV16-'Real Estate'!$E$5","v":{"v":2302572.624362314,"d":"2,302,573"}},{"$f":"Equities!AT12+'T Bills'!AT12+'T Bonds'!AT12+'Real Estate'!AW16-'Real Estate'!$E$5","v":{"v":1529265.5197789697,"d":"1,529,266"}},{"$f":"Equities!AU12+'T Bills'!AU12+'T Bonds'!AU12+'Real Estate'!AX16-'Real Estate'!$E$5","v":{"v":3547296.7110618437,"d":"3,547,297"}},{"$f":"Equities!AV12+'T Bills'!AV12+'T Bonds'!AV12+'Real Estate'!AY16-'Real Estate'!$E$5","v":{"v":2170264.2190627507,"d":"2,170,264"}},{"$f":"Equities!AW12+'T Bills'!AW12+'T Bonds'!AW12+'Real Estate'!AZ16-'Real Estate'!$E$5","v":{"v":1908856.6928668213,"d":"1,908,857"}},{"$f":"Equities!AX12+'T Bills'!AX12+'T Bonds'!AX12+'Real Estate'!BA16-'Real Estate'!$E$5","v":{"v":2598867.9734025868,"d":"2,598,868"}},{"$f":"Equities!AY12+'T Bills'!AY12+'T Bonds'!AY12+'Real Estate'!BB16-'Real Estate'!$E$5","v":{"v":3601685.6987009454,"d":"3,601,686"}},{"$f":"Equities!AZ12+'T Bills'!AZ12+'T Bonds'!AZ12+'Real Estate'!BC16-'Real Estate'!$E$5","v":{"v":1396774.3205419017,"d":"1,396,774"}},{"$f":"Equities!BA12+'T Bills'!BA12+'T Bonds'!BA12+'Real Estate'!BD16-'Real Estate'!$E$5","v":{"v":983612.3597897016,"d":"983,612"}},{"$f":"Equities!BB12+'T Bills'!BB12+'T Bonds'!BB12+'Real Estate'!BE16-'Real Estate'!$E$5","v":{"v":1759874.3200683445,"d":"1,759,874"}},{"$f":"Equities!BC12+'T Bills'!BC12+'T Bonds'!BC12+'Real Estate'!BF16-'Real Estate'!$E$5","v":{"v":2493263.798379963,"d":"2,493,264"}},{"$f":"Equities!BD12+'T Bills'!BD12+'T Bonds'!BD12+'Real Estate'!BG16-'Real Estate'!$E$5","v":{"v":2354959.2610113653,"d":"2,354,959"}},{"$f":"Equities!BE12+'T Bills'!BE12+'T Bonds'!BE12+'Real Estate'!BH16-'Real Estate'!$E$5","v":{"v":1897116.1222819013,"d":"1,897,116"}},{"$f":"Equities!BF12+'T Bills'!BF12+'T Bonds'!BF12+'Real Estate'!BI16-'Real Estate'!$E$5","v":{"v":1199568.6084617733,"d":"1,199,569"}},{"$f":"Equities!BG12+'T Bills'!BG12+'T Bonds'!BG12+'Real Estate'!BJ16-'Real Estate'!$E$5","v":{"v":1545592.5843633518,"d":"1,545,593"}},{"$f":"Equities!BH12+'T Bills'!BH12+'T Bonds'!BH12+'Real Estate'!BK16-'Real Estate'!$E$5","v":{"v":1484421.9747759784,"d":"1,484,422"}},{"$f":"Equities!BI12+'T Bills'!BI12+'T Bonds'!BI12+'Real Estate'!BL16-'Real Estate'!$E$5","v":{"v":2785345.7240416673,"d":"2,785,346"}},{"$f":"Equities!BJ12+'T Bills'!BJ12+'T Bonds'!BJ12+'Real Estate'!BM16-'Real Estate'!$E$5","v":{"v":1843887.8035846606,"d":"1,843,888"}},{"$f":"Equities!BK12+'T Bills'!BK12+'T Bonds'!BK12+'Real Estate'!BN16-'Real Estate'!$E$5","v":{"v":1767982.863037361,"d":"1,767,983"}},{"$f":"Equities!BL12+'T Bills'!BL12+'T Bonds'!BL12+'Real Estate'!BO16-'Real Estate'!$E$5","v":{"v":2408082.0401607016,"d":"2,408,082"}},{"$f":"Equities!BM12+'T Bills'!BM12+'T Bonds'!BM12+'Real Estate'!BP16-'Real Estate'!$E$5","v":{"v":1281159.843391191,"d":"1,281,160"}},{"$f":"Equities!BN12+'T Bills'!BN12+'T Bonds'!BN12+'Real Estate'!BQ16-'Real Estate'!$E$5","v":{"v":3057526.128104394,"d":"3,057,526"}},{"$f":"Equities!BO12+'T Bills'!BO12+'T Bonds'!BO12+'Real Estate'!BR16-'Real Estate'!$E$5","v":{"v":1953104.58645974,"d":"1,953,105"}},{"$f":"Equities!BP12+'T Bills'!BP12+'T Bonds'!BP12+'Real Estate'!BS16-'Real Estate'!$E$5","v":{"v":3485950.868546569,"d":"3,485,951"}},{"$f":"Equities!BQ12+'T Bills'!BQ12+'T Bonds'!BQ12+'Real Estate'!BT16-'Real Estate'!$E$5","v":{"v":2693250.5550855305,"d":"2,693,251"}},{"$f":"Equities!BR12+'T Bills'!BR12+'T Bonds'!BR12+'Real Estate'!BU16-'Real Estate'!$E$5","v":{"v":4172311.763809613,"d":"4,172,312"}},{"$f":"Equities!BS12+'T Bills'!BS12+'T Bonds'!BS12+'Real Estate'!BV16-'Real Estate'!$E$5","v":{"v":2874725.782749823,"d":"2,874,726"}},{"$f":"Equities!BT12+'T Bills'!BT12+'T Bonds'!BT12+'Real Estate'!BW16-'Real Estate'!$E$5","v":{"v":1314062.649315722,"d":"1,314,063"}},{"$f":"Equities!BU12+'T Bills'!BU12+'T Bonds'!BU12+'Real Estate'!BX16-'Real Estate'!$E$5","v":{"v":1348965.796958471,"d":"1,348,966"}},{"$f":"Equities!BV12+'T Bills'!BV12+'T Bonds'!BV12+'Real Estate'!BY16-'Real Estate'!$E$5","v":{"v":2293603.8905433775,"d":"2,293,604"}},{"$f":"Equities!BW12+'T Bills'!BW12+'T Bonds'!BW12+'Real Estate'!BZ16-'Real Estate'!$E$5","v":{"v":1397347.7193849345,"d":"1,397,348"}},{"$f":"Equities!BX12+'T Bills'!BX12+'T Bonds'!BX12+'Real Estate'!CA16-'Real Estate'!$E$5","v":{"v":3175101.093040248,"d":"3,175,101"}},{"$f":"Equities!BY12+'T Bills'!BY12+'T Bonds'!BY12+'Real Estate'!CB16-'Real Estate'!$E$5","v":{"v":2348355.100975399,"d":"2,348,355"}},{"$f":"Equities!BZ12+'T Bills'!BZ12+'T Bonds'!BZ12+'Real Estate'!CC16-'Real Estate'!$E$5","v":{"v":1750487.0060907833,"d":"1,750,487"}},{"$f":"Equities!CA12+'T Bills'!CA12+'T Bonds'!CA12+'Real Estate'!CD16-'Real Estate'!$E$5","v":{"v":2450434.1651170393,"d":"2,450,434"}},{"$f":"Equities!CB12+'T Bills'!CB12+'T Bonds'!CB12+'Real Estate'!CE16-'Real Estate'!$E$5","v":{"v":1485874.0255848824,"d":"1,485,874"}},{"$f":"Equities!CC12+'T Bills'!CC12+'T Bonds'!CC12+'Real Estate'!CF16-'Real Estate'!$E$5","v":{"v":1868406.6001579456,"d":"1,868,407"}},{"$f":"Equities!CD12+'T Bills'!CD12+'T Bonds'!CD12+'Real Estate'!CG16-'Real Estate'!$E$5","v":{"v":3167653.6754914317,"d":"3,167,654"}},{"$f":"Equities!CE12+'T Bills'!CE12+'T Bonds'!CE12+'Real Estate'!CH16-'Real Estate'!$E$5","v":{"v":4736330.65095799,"d":"4,736,331"}},{"$f":"Equities!CF12+'T Bills'!CF12+'T Bonds'!CF12+'Real Estate'!CI16-'Real Estate'!$E$5","v":{"v":2301128.9962957106,"d":"2,301,129"}},{"$f":"Equities!CG12+'T Bills'!CG12+'T Bonds'!CG12+'Real Estate'!CJ16-'Real Estate'!$E$5","v":{"v":3958197.0012683957,"d":"3,958,197"}},{"$f":"Equities!CH12+'T Bills'!CH12+'T Bonds'!CH12+'Real Estate'!CK16-'Real Estate'!$E$5","v":{"v":3110632.1729645524,"d":"3,110,632"}},{"$f":"Equities!CI12+'T Bills'!CI12+'T Bonds'!CI12+'Real Estate'!CL16-'Real Estate'!$E$5","v":{"v":1803784.8190093671,"d":"1,803,785"}},{"$f":"Equities!CJ12+'T Bills'!CJ12+'T Bonds'!CJ12+'Real Estate'!CM16-'Real Estate'!$E$5","v":{"v":4229974.679580629,"d":"4,229,975"}},{"$f":"Equities!CK12+'T Bills'!CK12+'T Bonds'!CK12+'Real Estate'!CN16-'Real Estate'!$E$5","v":{"v":2146337.257664076,"d":"2,146,337"}},{"$f":"Equities!CL12+'T Bills'!CL12+'T Bonds'!CL12+'Real Estate'!CO16-'Real Estate'!$E$5","v":{"v":5642755.387714944,"d":"5,642,755"}},{"$f":"Equities!CM12+'T Bills'!CM12+'T Bonds'!CM12+'Real Estate'!CP16-'Real Estate'!$E$5","v":{"v":5217008.555752093,"d":"5,217,009"}},{"$f":"Equities!CN12+'T Bills'!CN12+'T Bonds'!CN12+'Real Estate'!CQ16-'Real Estate'!$E$5","v":{"v":4179721.8872394366,"d":"4,179,722"}},{"$f":"Equities!CO12+'T Bills'!CO12+'T Bonds'!CO12+'Real Estate'!CR16-'Real Estate'!$E$5","v":{"v":3544754.6006808183,"d":"3,544,755"}},{"$f":"Equities!CP12+'T Bills'!CP12+'T Bonds'!CP12+'Real Estate'!CS16-'Real Estate'!$E$5","v":{"v":1051810.42873032,"d":"1,051,810"}},{"$f":"Equities!CQ12+'T Bills'!CQ12+'T Bonds'!CQ12+'Real Estate'!CT16-'Real Estate'!$E$5","v":{"v":1559763.360238867,"d":"1,559,763"}},{"$f":"Equities!CR12+'T Bills'!CR12+'T Bonds'!CR12+'Real Estate'!CU16-'Real Estate'!$E$5","v":{"v":4615144.047304709,"d":"4,615,144"}},{"$f":"Equities!CS12+'T Bills'!CS12+'T Bonds'!CS12+'Real Estate'!CV16-'Real Estate'!$E$5","v":{"v":2466369.076166228,"d":"2,466,369"}},{"$f":"Equities!CT12+'T Bills'!CT12+'T Bonds'!CT12+'Real Estate'!CW16-'Real Estate'!$E$5","v":{"v":2172357.3050602376,"d":"2,172,357"}},{"$f":"Equities!CU12+'T Bills'!CU12+'T Bonds'!CU12+'Real Estate'!CX16-'Real Estate'!$E$5","v":{"v":4029717.03183683,"d":"4,029,717"}},{"$f":"Equities!CV12+'T Bills'!CV12+'T Bonds'!CV12+'Real Estate'!CY16-'Real Estate'!$E$5","v":{"v":3377723.6278720982,"d":"3,377,724"}},{"$f":"Equities!CW12+'T Bills'!CW12+'T Bonds'!CW12+'Real Estate'!CZ16-'Real Estate'!$E$5","v":{"v":1441415.7354940595,"d":"1,441,416"}},{"$f":"Equities!CX12+'T Bills'!CX12+'T Bonds'!CX12+'Real Estate'!DA16-'Real Estate'!$E$5","v":{"v":3044418.033858461,"d":"3,044,418"}}]
[{"$f":"Main!A19","v":"2034-12-30"},80,{"$f":"Equities!C13+'T Bills'!C13+'T Bonds'!C13+'Real Estate'!F17-'Real Estate'!$E$5","v":{"v":1677894.3584901092,"d":"1,677,894"}},{"$f":"Equities!D13+'T Bills'!D13+'T Bonds'!D13+'Real Estate'!G17-'Real Estate'!$E$5","v":{"v":2379084.931165635,"d":"2,379,085"}},{"$f":"Equities!E13+'T Bills'!E13+'T Bonds'!E13+'Real Estate'!H17-'Real Estate'!$E$5","v":{"v":3130874.82504784,"d":"3,130,875"}},{"$f":"Equities!F13+'T Bills'!F13+'T Bonds'!F13+'Real Estate'!I17-'Real Estate'!$E$5","v":{"v":7012199.170122789,"d":"7,012,199"}},{"$f":"Equities!G13+'T Bills'!G13+'T Bonds'!G13+'Real Estate'!J17-'Real Estate'!$E$5","v":{"v":4350829.688018946,"d":"4,350,830"}},{"$f":"Equities!H13+'T Bills'!H13+'T Bonds'!H13+'Real Estate'!K17-'Real Estate'!$E$5","v":{"v":2220562.465976487,"d":"2,220,562"}},{"$f":"Equities!I13+'T Bills'!I13+'T Bonds'!I13+'Real Estate'!L17-'Real Estate'!$E$5","v":{"v":1931433.5477465298,"d":"1,931,434"}},{"$f":"Equities!J13+'T Bills'!J13+'T Bonds'!J13+'Real Estate'!M17-'Real Estate'!$E$5","v":{"v":1765119.4044822652,"d":"1,765,119"}},{"$f":"Equities!K13+'T Bills'!K13+'T Bonds'!K13+'Real Estate'!N17-'Real Estate'!$E$5","v":{"v":4662030.579317027,"d":"4,662,031"}},{"$f":"Equities!L13+'T Bills'!L13+'T Bonds'!L13+'Real Estate'!O17-'Real Estate'!$E$5","v":{"v":4199418.158726412,"d":"4,199,418"}},{"$f":"Equities!M13+'T Bills'!M13+'T Bonds'!M13+'Real Estate'!P17-'Real Estate'!$E$5","v":{"v":2201787.9031147696,"d":"2,201,788"}},{"$f":"Equities!N13+'T Bills'!N13+'T Bonds'!N13+'Real Estate'!Q17-'Real Estate'!$E$5","v":{"v":1089931.2607981176,"d":"1,089,931"}},{"$f":"Equities!O13+'T Bills'!O13+'T Bonds'!O13+'Real Estate'!R17-'Real Estate'!$E$5","v":{"v":2086716.1818389867,"d":"2,086,716"}},{"$f":"Equities!P13+'T Bills'!P13+'T Bonds'!P13+'Real Estate'!S17-'Real Estate'!$E$5","v":{"v":1648611.249036966,"d":"1,648,611"}},{"$f":"Equities!Q13+'T Bills'!Q13+'T Bonds'!Q13+'Real Estate'!T17-'Real Estate'!$E$5","v":{"v":1538827.129865974,"d":"1,538,827"}},{"$f":"Equities!R13+'T Bills'!R13+'T Bonds'!R13+'Real Estate'!U17-'Real Estate'!$E$5","v":{"v":1816730.446682137,"d":"1,816,730"}},{"$f":"Equities!S13+'T Bills'!S13+'T Bonds'!S13+'Real Estate'!V17-'Real Estate'!$E$5","v":{"v":1217818.533935423,"d":"1,217,819"}},{"$f":"Equities!T13+'T Bills'!T13+'T Bonds'!T13+'Real Estate'!W17-'Real Estate'!$E$5","v":{"v":1383138.0242172333,"d":"1,383,138"}},{"$f":"Equities!U13+'T Bills'!U13+'T Bonds'!U13+'Real Estate'!X17-'Real Estate'!$E$5","v":{"v":1733611.6944985047,"d":"1,733,612"}},{"$f":"Equities!V13+'T Bills'!V13+'T Bonds'!V13+'Real Estate'!Y17-'Real Estate'!$E$5","v":{"v":4313621.123799736,"d":"4,313,621"}},{"$f":"Equities!W13+'T Bills'!W13+'T Bonds'!W13+'Real Estate'!Z17-'Real Estate'!$E$5","v":{"v":3832160.852992825,"d":"3,832,161"}},{"$f":"Equities!X13+'T Bills'!X13+'T Bonds'!X13+'Real Estate'!AA17-'Real Estate'!$E$5","v":{"v":2038108.3879158634,"d":"2,038,108"}},{"$f":"Equities!Y13+'T Bills'!Y13+'T Bonds'!Y13+'Real Estate'!AB17-'Real Estate'!$E$5","v":{"v":1548301.8991878142,"d":"1,548,302"}},{"$f":"Equities!Z13+'T Bills'!Z13+'T Bonds'!Z13+'Real Estate'!AC17-'Real Estate'!$E$5","v":{"v":2181872.3424315425,"d":"2,181,872"}},{"$f":"Equities!AA13+'T Bills'!AA13+'T Bonds'!AA13+'Real Estate'!AD17-'Real Estate'!$E$5","v":{"v":2874596.266971009,"d":"2,874,596"}},{"$f":"Equities!AB13+'T Bills'!AB13+'T Bonds'!AB13+'Real Estate'!AE17-'Real Estate'!$E$5","v":{"v":1853928.3113138261,"d":"1,853,928"}},{"$f":"Equities!AC13+'T Bills'!AC13+'T Bonds'!AC13+'Real Estate'!AF17-'Real Estate'!$E$5","v":{"v":1989039.1646052848,"d":"1,989,039"}},{"$f":"Equities!AD13+'T Bills'!AD13+'T Bonds'!AD13+'Real Estate'!AG17-'Real Estate'!$E$5","v":{"v":1817297.9296908628,"d":"1,817,298"}},{"$f":"Equities!AE13+'T Bills'!AE13+'T Bonds'!AE13+'Real Estate'!AH17-'Real Estate'!$E$5","v":{"v":1422316.815371811,"d":"1,422,317"}},{"$f":"Equities!AF13+'T Bills'!AF13+'T Bonds'!AF13+'Real Estate'!AI17-'Real Estate'!$E$5","v":{"v":4965572.614637432,"d":"4,965,573"}},{"$f":"Equities!AG13+'T Bills'!AG13+'T Bonds'!AG13+'Real Estate'!AJ17-'Real Estate'!$E$5","v":{"v":4361945.9693844365,"d":"4,361,946"}},{"$f":"Equities!AH13+'T Bills'!AH13+'T Bonds'!AH13+'Real Estate'!AK17-'Real Estate'!$E$5","v":{"v":2696887.5573902763,"d":"2,696,888"}},{"$f":"Equities!AI13+'T Bills'!AI13+'T Bonds'!AI13+'Real Estate'!AL17-'Real Estate'!$E$5","v":{"v":2635192.189200442,"d":"2,635,192"}},{"$f":"Equities!AJ13+'T Bills'!AJ13+'T Bonds'!AJ13+'Real Estate'!AM17-'Real Estate'!$E$5","v":{"v":2982582.1413457235,"d":"2,982,582"}},{"$f":"Equities!AK13+'T Bills'!AK13+'T Bonds'!AK13+'Real Estate'!AN17-'Real Estate'!$E$5","v":{"v":1819379.249142534,"d":"1,819,379"}},{"$f":"Equities!AL13+'T Bills'!AL13+'T Bonds'!AL13+'Real Estate'!AO17-'Real Estate'!$E$5","v":{"v":3000570.913099615,"d":"3,000,571"}},{"$f":"Equities!AM13+'T Bills'!AM13+'T Bonds'!AM13+'Real Estate'!AP17-'Real Estate'!$E$5","v":{"v":1153228.5738143765,"d":"1,153,229"}},{"$f":"Equities!AN13+'T Bills'!AN13+'T Bonds'!AN13+'Real Estate'!AQ17-'Real Estate'!$E$5","v":{"v":4382230.914389724,"d":"4,382,231"}},{"$f":"Equities!AO13+'T Bills'!AO13+'T Bonds'!AO13+'Real Estate'!AR17-'Real Estate'!$E$5","v":{"v":2324447.2300801696,"d":"2,324,447"}},{"$f":"Equities!AP13+'T Bills'!AP13+'T Bonds'!AP13+'Real Estate'!AS17-'Real Estate'!$E$5","v":{"v":4020066.300775278,"d":"4,020,066"}},{"$f":"Equities!AQ13+'T Bills'!AQ13+'T Bonds'!AQ13+'Real Estate'!AT17-'Real Estate'!$E$5","v":{"v":1234683.9513550163,"d":"1,234,684"}},{"$f":"Equities!AR13+'T Bills'!AR13+'T Bonds'!AR13+'Real Estate'!AU17-'Real Estate'!$E$5","v":{"v":3539363.499909307,"d":"3,539,363"}},{"$f":"Equities!AS13+'T Bills'!AS13+'T Bonds'!AS13+'Real Estate'!AV17-'Real Estate'!$E$5","v":{"v":2439457.497921725,"d":"2,439,457"}},{"$f":"Equities!AT13+'T Bills'!AT13+'T Bonds'!AT13+'Real Estate'!AW17-'Real Estate'!$E$5","v":{"v":1502114.5681221373,"d":"1,502,115"}},{"$f":"Equities!AU13+'T Bills'!AU13+'T Bonds'!AU13+'Real Estate'!AX17-'Real Estate'!$E$5","v":{"v":3312610.1398314973,"d":"3,312,610"}},{"$f":"Equities!AV13+'T Bills'!AV13+'T Bonds'!AV13+'Real Estate'!AY17-'Real Estate'!$E$5","v":{"v":2610699.5595459514,"d":"2,610,700"}},{"$f":"Equities!AW13+'T Bills'!AW13+'T Bonds'!AW13+'Real Estate'!AZ17-'Real Estate'!$E$5","v":{"v":2157244.8073788,"d":"2,157,245"}},{"$f":"Equities!AX13+'T Bills'!AX13+'T Bonds'!AX13+'Real Estate'!BA17-'Real Estate'!$E$5","v":{"v":3166607.1103041507,"d":"3,166,607"}},{"$f":"Equities!AY13+'T Bills'!AY13+'T Bonds'!AY13+'Real Estate'!BB17-'Real Estate'!$E$5","v":{"v":3181481.5378563334,"d":"3,181,482"}},{"$f":"Equities!AZ13+'T Bills'!AZ13+'T Bonds'!AZ13+'Real Estate'!BC17-'Real Estate'!$E$5","v":{"v":1321951.2326818134,"d":"1,321,951"}},{"$f":"Equities!BA13+'T Bills'!BA13+'T Bonds'!BA13+'Real Estate'!BD17-'Real Estate'!$E$5","v":{"v":1013733.8469383495,"d":"1,013,734"}},{"$f":"Equities!BB13+'T Bills'!BB13+'T Bonds'!BB13+'Real Estate'!BE17-'Real Estate'!$E$5","v":{"v":1519090.3905339541,"d":"1,519,090"}},{"$f":"Equities!BC13+'T Bills'!BC13+'T Bonds'!BC13+'Real Estate'!BF17-'Real Estate'!$E$5","v":{"v":2650533.4865539507,"d":"2,650,533"}},{"$f":"Equities!BD13+'T Bills'!BD13+'T Bonds'!BD13+'Real Estate'!BG17-'Real Estate'!$E$5","v":{"v":2702958.2369767576,"d":"2,702,958"}},{"$f":"Equities!BE13+'T Bills'!BE13+'T Bonds'!BE13+'Real Estate'!BH17-'Real Estate'!$E$5","v":{"v":1880325.991430414,"d":"1,880,326"}},{"$f":"Equities!BF13+'T Bills'!BF13+'T Bonds'!BF13+'Real Estate'!BI17-'Real Estate'!$E$5","v":{"v":1200606.3612783903,"d":"1,200,606"}},{"$f":"Equities!BG13+'T Bills'!BG13+'T Bonds'!BG13+'Real Estate'!BJ17-'Real Estate'!$E$5","v":{"v":1303147.9814926747,"d":"1,303,148"}},{"$f":"Equities!BH13+'T Bills'!BH13+'T Bonds'!BH13+'Real Estate'!BK17-'Real Estate'!$E$5","v":{"v":1627846.825632581,"d":"1,627,847"}},{"$f":"Equities!BI13+'T Bills'!BI13+'T Bonds'!BI13+'Real Estate'!BL17-'Real Estate'!$E$5","v":{"v":2932178.1170816002,"d":"2,932,178"}},{"$f":"Equities!BJ13+'T Bills'!BJ13+'T Bonds'!BJ13+'Real Estate'!BM17-'Real Estate'!$E$5","v":{"v":1804734.2648938128,"d":"1,804,734"}},{"$f":"Equities!BK13+'T Bills'!BK13+'T Bonds'!BK13+'Real Estate'!BN17-'Real Estate'!$E$5","v":{"v":1653219.3502192122,"d":"1,653,219"}},{"$f":"Equities!BL13+'T Bills'!BL13+'T Bonds'!BL13+'Real Estate'!BO17-'Real Estate'!$E$5","v":{"v":2563246.1772511886,"d":"2,563,246"}},{"$f":"Equities!BM13+'T Bills'!BM13+'T Bonds'!BM13+'Real Estate'!BP17-'Real Estate'!$E$5","v":{"v":1463003.56394875,"d":"1,463,004"}},{"$f":"Equities!BN13+'T Bills'!BN13+'T Bonds'!BN13+'Real Estate'!BQ17-'Real Estate'!$E$5","v":{"v":3789534.504881742,"d":"3,789,535"}},{"$f":"Equities!BO13+'T Bills'!BO13+'T Bonds'!BO13+'Real Estate'!BR17-'Real Estate'!$E$5","v":{"v":2148957.8671740033,"d":"2,148,958"}},{"$f":"Equities!BP13+'T Bills'!BP13+'T Bonds'!BP13+'Real Estate'!BS17-'Real Estate'!$E$5","v":{"v":3541871.6973976074,"d":"3,541,872"}},{"$f":"Equities!BQ13+'T Bills'!BQ13+'T Bonds'!BQ13+'Real Estate'!BT17-'Real Estate'!$E$5","v":{"v":2776404.7308255136,"d":"2,776,405"}},{"$f":"Equities!BR13+'T Bills'!BR13+'T Bonds'!BR13+'Real Estate'!BU17-'Real Estate'!$E$5","v":{"v":5953990.431072672,"d":"5,953,990"}},{"$f":"Equities!BS13+'T Bills'!BS13+'T Bonds'!BS13+'Real Estate'!BV17-'Real Estate'!$E$5","v":{"v":2837053.2092092526,"d":"2,837,053"}},{"$f":"Equities!BT13+'T Bills'!BT13+'T Bonds'!BT13+'Real Estate'!BW17-'Real Estate'!$E$5","v":{"v":1230485.1858382558,"d":"1,230,485"}},{"$f":"Equities!BU13+'T Bills'!BU13+'T Bonds'!BU13+'Real Estate'!BX17-'Real Estate'!$E$5","v":{"v":1281466.9472245623,"d":"1,281,467"}},{"$f":"Equities!BV13+'T Bills'!BV13+'T Bonds'!BV13+'Real Estate'!BY17-'Real Estate'!$E$5","v":{"v":2049278.133634295,"d":"2,049,278"}},{"$f":"Equities!BW13+'T Bills'!BW13+'T Bonds'!BW13+'Real Estate'!BZ17-'Real Estate'!$E$5","v":{"v":1373976.678751201,"d":"1,373,977"}},{"$f":"Equities!BX13+'T Bills'!BX13+'T Bonds'!BX13+'Real Estate'!CA17-'Real Estate'!$E$5","v":{"v":3118565.970547557,"d":"3,118,566"}},{"$f":"Equities!BY13+'T Bills'!BY13+'T Bonds'!BY13+'Real Estate'!CB17-'Real Estate'!$E$5","v":{"v":2823678.067739557,"d":"2,823,678"}},{"$f":"Equities!BZ13+'T Bills'!BZ13+'T Bonds'!BZ13+'Real Estate'!CC17-'Real Estate'!$E$5","v":{"v":2000939.9932543251,"d":"2,000,940"}},{"$f":"Equities!CA13+'T Bills'!CA13+'T Bonds'!CA13+'Real Estate'!CD17-'Real Estate'!$E$5","v":{"v":2316729.19813644,"d":"2,316,729"}},{"$f":"Equities!CB13+'T Bills'!CB13+'T Bonds'!CB13+'Real Estate'!CE17-'Real Estate'!$E$5","v":{"v":1443120.0629401058,"d":"1,443,120"}},{"$f":"Equities!CC13+'T Bills'!CC13+'T Bonds'!CC13+'Real Estate'!CF17-'Real Estate'!$E$5","v":{"v":1770707.7124184167,"d":"1,770,708"}},{"$f":"Equities!CD13+'T Bills'!CD13+'T Bonds'!CD13+'Real Estate'!CG17-'Real Estate'!$E$5","v":{"v":3746360.09963912,"d":"3,746,360"}},{"$f":"Equities!CE13+'T Bills'!CE13+'T Bonds'!CE13+'Real Estate'!CH17-'Real Estate'!$E$5","v":{"v":5925413.782763412,"d":"5,925,414"}},{"$f":"Equities!CF13+'T Bills'!CF13+'T Bonds'!CF13+'Real Estate'!CI17-'Real Estate'!$E$5","v":{"v":2835157.8418116407,"d":"2,835,158"}},{"$f":"Equities!CG13+'T Bills'!CG13+'T Bonds'!CG13+'Real Estate'!CJ17-'Real Estate'!$E$5","v":{"v":3969034.762464461,"d":"3,969,035"}},{"$f":"Equities!CH13+'T Bills'!CH13+'T Bonds'!CH13+'Real Estate'!CK17-'Real Estate'!$E$5","v":{"v":2903652.529600638,"d":"2,903,653"}},{"$f":"Equities!CI13+'T Bills'!CI13+'T Bonds'!CI13+'Real Estate'!CL17-'Real Estate'!$E$5","v":{"v":1936559.7898108035,"d":"1,936,560"}},{"$f":"Equities!CJ13+'T Bills'!CJ13+'T Bonds'!CJ13+'Real Estate'!CM17-'Real Estate'!$E$5","v":{"v":5455371.731898001,"d":"5,455,372"}},{"$f":"Equities!CK13+'T Bills'!CK13+'T Bonds'!CK13+'Real Estate'!CN17-'Real Estate'!$E$5","v":{"v":2434905.6583586284,"d":"2,434,906"}},{"$f":"Equities!CL13+'T Bills'!CL13+'T Bonds'!CL13+'Real Estate'!CO17-'Real Estate'!$E$5","v":{"v":5301766.429662425,"d":"5,301,766"}},{"$f":"Equities!CM13+'T Bills'!CM13+'T Bonds'!CM13+'Real Estate'!CP17-'Real Estate'!$E$5","v":{"v":4042284.571781725,"d":"4,042,285"}},{"$f":"Equities!CN13+'T Bills'!CN13+'T Bonds'!CN13+'Real Estate'!CQ17-'Real Estate'!$E$5","v":{"v":4576569.34743882,"d":"4,576,569"}},{"$f":"Equities!CO13+'T Bills'!CO13+'T Bonds'!CO13+'Real Estate'!CR17-'Real Estate'!$E$5","v":{"v":3967011.22596969,"d":"3,967,011"}},{"$f":"Equities!CP13+'T Bills'!CP13+'T Bonds'!CP13+'Real Estate'!CS17-'Real Estate'!$E$5","v":{"v":1030463.9610298879,"d":"1,030,464"}},{"$f":"Equities!CQ13+'T Bills'!CQ13+'T Bonds'!CQ13+'Real Estate'!CT17-'Real Estate'!$E$5","v":{"v":1709607.5278134968,"d":"1,709,608"}},{"$f":"Equities!CR13+'T Bills'!CR13+'T Bonds'!CR13+'Real Estate'!CU17-'Real Estate'!$E$5","v":{"v":5865522.920037595,"d":"5,865,523"}},{"$f":"Equities!CS13+'T Bills'!CS13+'T Bonds'!CS13+'Real Estate'!CV17-'Real Estate'!$E$5","v":{"v":3196540.738454023,"d":"3,196,541"}},{"$f":"Equities!CT13+'T Bills'!CT13+'T Bonds'!CT13+'Real Estate'!CW17-'Real Estate'!$E$5","v":{"v":2618987.269155991,"d":"2,618,987"}},{"$f":"Equities!CU13+'T Bills'!CU13+'T Bonds'!CU13+'Real Estate'!CX17-'Real Estate'!$E$5","v":{"v":5535041.087006209,"d":"5,535,041"}},{"$f":"Equities!CV13+'T Bills'!CV13+'T Bonds'!CV13+'Real Estate'!CY17-'Real Estate'!$E$5","v":{"v":3831482.4766984517,"d":"3,831,482"}},{"$f":"Equities!CW13+'T Bills'!CW13+'T Bonds'!CW13+'Real Estate'!CZ17-'Real Estate'!$E$5","v":{"v":1368399.518174305,"d":"1,368,400"}},{"$f":"Equities!CX13+'T Bills'!CX13+'T Bonds'!CX13+'Real Estate'!DA17-'Real Estate'!$E$5","v":{"v":2833881.375825288,"d":"2,833,881"}}]
[{"$f":"Main!A20","v":"2035-12-31"},81,{"$f":"Equities!C14+'T Bills'!C14+'T Bonds'!C14+'Real Estate'!F18-'Real Estate'!$E$5","v":{"v":1688786.5838456822,"d":"1,688,787"}},{"$f":"Equities!D14+'T Bills'!D14+'T Bonds'!D14+'Real Estate'!G18-'Real Estate'!$E$5","v":{"v":2248395.0475436435,"d":"2,248,395"}},{"$f":"Equities!E14+'T Bills'!E14+'T Bonds'!E14+'Real Estate'!H18-'Real Estate'!$E$5","v":{"v":2460026.5361497323,"d":"2,460,027"}},{"$f":"Equities!F14+'T Bills'!F14+'T Bonds'!F14+'Real Estate'!I18-'Real Estate'!$E$5","v":{"v":5397120.469375244,"d":"5,397,120"}},{"$f":"Equities!G14+'T Bills'!G14+'T Bonds'!G14+'Real Estate'!J18-'Real Estate'!$E$5","v":{"v":5022579.388908118,"d":"5,022,579"}},{"$f":"Equities!H14+'T Bills'!H14+'T Bonds'!H14+'Real Estate'!K18-'Real Estate'!$E$5","v":{"v":2555494.8048852677,"d":"2,555,495"}},{"$f":"Equities!I14+'T Bills'!I14+'T Bonds'!I14+'Real Estate'!L18-'Real Estate'!$E$5","v":{"v":1960155.1203408404,"d":"1,960,155"}},{"$f":"Equities!J14+'T Bills'!J14+'T Bonds'!J14+'Real Estate'!M18-'Real Estate'!$E$5","v":{"v":1696271.0744164905,"d":"1,696,271"}},{"$f":"Equities!K14+'T Bills'!K14+'T Bonds'!K14+'Real Estate'!N18-'Real Estate'!$E$5","v":{"v":3742577.017572721,"d":"3,742,577"}},{"$f":"Equities!L14+'T Bills'!L14+'T Bonds'!L14+'Real Estate'!O18-'Real Estate'!$E$5","v":{"v":4793512.692705921,"d":"4,793,513"}},{"$f":"Equities!M14+'T Bills'!M14+'T Bonds'!M14+'Real Estate'!P18-'Real Estate'!$E$5","v":{"v":2409593.012206062,"d":"2,409,593"}},{"$f":"Equities!N14+'T Bills'!N14+'T Bonds'!N14+'Real Estate'!Q18-'Real Estate'!$E$5","v":{"v":933070.2782545469,"d":"933,070"}},{"$f":"Equities!O14+'T Bills'!O14+'T Bonds'!O14+'Real Estate'!R18-'Real Estate'!$E$5","v":{"v":2252540.7213503937,"d":"2,252,541"}},{"$f":"Equities!P14+'T Bills'!P14+'T Bonds'!P14+'Real Estate'!S18-'Real Estate'!$E$5","v":{"v":1608864.4141271606,"d":"1,608,864"}},{"$f":"Equities!Q14+'T Bills'!Q14+'T Bonds'!Q14+'Real Estate'!T18-'Real Estate'!$E$5","v":{"v":1505518.9445763915,"d":"1,505,519"}},{"$f":"Equities!R14+'T Bills'!R14+'T Bonds'!R14+'Real Estate'!U18-'Real Estate'!$E$5","v":{"v":1768617.5608835716,"d":"1,768,618"}},{"$f":"Equities!S14+'T Bills'!S14+'T Bonds'!S14+'Real Estate'!V18-'Real Estate'!$E$5","v":{"v":1056355.385247261,"d":"1,056,355"}},{"$f":"Equities!T14+'T Bills'!T14+'T Bonds'!T14+'Real Estate'!W18-'Real Estate'!$E$5","v":{"v":1148320.2629543887,"d":"1,148,320"}},{"$f":"Equities!U14+'T Bills'!U14+'T Bonds'!U14+'Real Estate'!X18-'Real Estate'!$E$5","v":{"v":1654832.462369315,"d":"1,654,832"}},{"$f":"Equities!V14+'T Bills'!V14+'T Bonds'!V14+'Real Estate'!Y18-'Real Estate'!$E$5","v":{"v":4717871.571666776,"d":"4,717,872"}},{"$f":"Equities!W14+'T Bills'!W14+'T Bonds'!W14+'Real Estate'!Z18-'Real Estate'!$E$5","v":{"v":3583341.981399107,"d":"3,583,342"}},{"$f":"Equities!X14+'T Bills'!X14+'T Bonds'!X14+'Real Estate'!AA18-'Real Estate'!$E$5","v":{"v":1804112.3857793713,"d":"1,804,112"}},{"$f":"Equities!Y14+'T Bills'!Y14+'T Bonds'!Y14+'Real Estate'!AB18-'Real Estate'!$E$5","v":{"v":1692996.7512943058,"d":"1,692,997"}},{"$f":"Equities!Z14+'T Bills'!Z14+'T Bonds'!Z14+'Real Estate'!AC18-'Real Estate'!$E$5","v":{"v":2253930.1330385734,"d":"2,253,930"}},{"$f":"Equities!AA14+'T Bills'!AA14+'T Bonds'!AA14+'Real Estate'!AD18-'Real Estate'!$E$5","v":{"v":2876735.1917105285,"d":"2,876,735"}},{"$f":"Equities!AB14+'T Bills'!AB14+'T Bonds'!AB14+'Real Estate'!AE18-'Real Estate'!$E$5","v":{"v":1609490.6351063263,"d":"1,609,491"}},{"$f":"Equities!AC14+'T Bills'!AC14+'T Bonds'!AC14+'Real Estate'!AF18-'Real Estate'!$E$5","v":{"v":1790012.65340977,"d":"1,790,013"}},{"$f":"Equities!AD14+'T Bills'!AD14+'T Bonds'!AD14+'Real Estate'!AG18-'Real Estate'!$E$5","v":{"v":1869874.8223365732,"d":"1,869,875"}},{"$f":"Equities!AE14+'T Bills'!AE14+'T Bonds'!AE14+'Real Estate'!AH18-'Real Estate'!$E$5","v":{"v":1340563.055361622,"d":"1,340,563"}},{"$f":"Equities!AF14+'T Bills'!AF14+'T Bonds'!AF14+'Real Estate'!AI18-'Real Estate'!$E$5","v":{"v":4462633.279748094,"d":"4,462,633"}},{"$f":"Equities!AG14+'T Bills'!AG14+'T Bonds'!AG14+'Real Estate'!AJ18-'Real Estate'!$E$5","v":{"v":5776252.318003751,"d":"5,776,252"}},{"$f":"Equities!AH14+'T Bills'!AH14+'T Bonds'!AH14+'Real Estate'!AK18-'Real Estate'!$E$5","v":{"v":3170389.073980893,"d":"3,170,389"}},{"$f":"Equities!AI14+'T Bills'!AI14+'T Bonds'!AI14+'Real Estate'!AL18-'Real Estate'!$E$5","v":{"v":2411296.0069683325,"d":"2,411,296"}},{"$f":"Equities!AJ14+'T Bills'!AJ14+'T Bonds'!AJ14+'Real Estate'!AM18-'Real Estate'!$E$5","v":{"v":2901063.396451074,"d":"2,901,063"}},{"$f":"Equities!AK14+'T Bills'!AK14+'T Bonds'!AK14+'Real Estate'!AN18-'Real Estate'!$E$5","v":{"v":1500604.0181413412,"d":"1,500,604"}},{"$f":"Equities!AL14+'T Bills'!AL14+'T Bonds'!AL14+'Real Estate'!AO18-'Real Estate'!$E$5","v":{"v":3490742.0274970317,"d":"3,490,742"}},{"$f":"Equities!AM14+'T Bills'!AM14+'T Bonds'!AM14+'Real Estate'!AP18-'Real Estate'!$E$5","v":{"v":1149607.1437321915,"d":"1,149,607"}},{"$f":"Equities!AN14+'T Bills'!AN14+'T Bonds'!AN14+'Real Estate'!AQ18-'Real Estate'!$E$5","v":{"v":6006437.583735032,"d":"6,006,438"}},{"$f":"Equities!AO14+'T Bills'!AO14+'T Bonds'!AO14+'Real Estate'!AR18-'Real Estate'!$E$5","v":{"v":2917125.196443444,"d":"2,917,125"}},{"$f":"Equities!AP14+'T Bills'!AP14+'T Bonds'!AP14+'Real Estate'!AS18-'Real Estate'!$E$5","v":{"v":5499109.851217139,"d":"5,499,110"}},{"$f":"Equities!AQ14+'T Bills'!AQ14+'T Bonds'!AQ14+'Real Estate'!AT18-'Real Estate'!$E$5","v":{"v":1244033.8561556207,"d":"1,244,034"}},{"$f":"Equities!AR14+'T Bills'!AR14+'T Bonds'!AR14+'Real Estate'!AU18-'Real Estate'!$E$5","v":{"v":4161599.838534384,"d":"4,161,600"}},{"$f":"Equities!AS14+'T Bills'!AS14+'T Bonds'!AS14+'Real Estate'!AV18-'Real Estate'!$E$5","v":{"v":1824096.8110961448,"d":"1,824,097"}},{"$f":"Equities!AT14+'T Bills'!AT14+'T Bonds'!AT14+'Real Estate'!AW18-'Real Estate'!$E$5","v":{"v":1483468.3457361017,"d":"1,483,468"}},{"$f":"Equities!AU14+'T Bills'!AU14+'T Bonds'!AU14+'Real Estate'!AX18-'Real Estate'!$E$5","v":{"v":2644604.1749530663,"d":"2,644,604"}},{"$f":"Equities!AV14+'T Bills'!AV14+'T Bonds'!AV14+'Real Estate'!AY18-'Real Estate'!$E$5","v":{"v":2844023.1457416574,"d":"2,844,023"}},{"$f":"Equities!AW14+'T Bills'!AW14+'T Bonds'!AW14+'Real Estate'!AZ18-'Real Estate'!$E$5","v":{"v":1850556.368923701,"d":"1,850,556"}},{"$f":"Equities!AX14+'T Bills'!AX14+'T Bonds'!AX14+'Real Estate'!BA18-'Real Estate'!$E$5","v":{"v":3342450.3872044184,"d":"3,342,450"}},{"$f":"Equities!AY14+'T Bills'!AY14+'T Bonds'!AY14+'Real Estate'!BB18-'Real Estate'!$E$5","v":{"v":3138623.4726442527,"d":"3,138,623"}},{"$f":"Equities!AZ14+'T Bills'!AZ14+'T Bonds'!AZ14+'Real Estate'!BC18-'Real Estate'!$E$5","v":{"v":1272726.859312066,"d":"1,272,727"}},{"$f":"Equities!BA14+'T Bills'!BA14+'T Bonds'!BA14+'Real Estate'!BD18-'Real Estate'!$E$5","v":{"v":864963.6034569414,"d":"864,964"}},{"$f":"Equities!BB14+'T Bills'!BB14+'T Bonds'!BB14+'Real Estate'!BE18-'Real Estate'!$E$5","v":{"v":1171921.0397951945,"d":"1,171,921"}},{"$f":"Equities!BC14+'T Bills'!BC14+'T Bonds'!BC14+'Real Estate'!BF18-'Real Estate'!$E$5","v":{"v":2474250.582439682,"d":"2,474,251"}},{"$f":"Equities!BD14+'T Bills'!BD14+'T Bonds'!BD14+'Real Estate'!BG18-'Real Estate'!$E$5","v":{"v":2725787.0845508585,"d":"2,725,787"}},{"$f":"Equities!BE14+'T Bills'!BE14+'T Bonds'!BE14+'Real Estate'!BH18-'Real Estate'!$E$5","v":{"v":1678836.3301910185,"d":"1,678,836"}},{"$f":"Equities!BF14+'T Bills'!BF14+'T Bonds'!BF14+'Real Estate'!BI18-'Real Estate'!$E$5","v":{"v":1098691.7634136488,"d":"1,098,692"}},{"$f":"Equities!BG14+'T Bills'!BG14+'T Bonds'!BG14+'Real Estate'!BJ18-'Real Estate'!$E$5","v":{"v":1284677.0380595496,"d":"1,284,677"}},{"$f":"Equities!BH14+'T Bills'!BH14+'T Bonds'!BH14+'Real Estate'!BK18-'Real Estate'!$E$5","v":{"v":1384243.2218812124,"d":"1,384,243"}},{"$f":"Equities!BI14+'T Bills'!BI14+'T Bonds'!BI14+'Real Estate'!BL18-'Real Estate'!$E$5","v":{"v":3129915.473648807,"d":"3,129,915"}},{"$f":"Equities!BJ14+'T Bills'!BJ14+'T Bonds'!BJ14+'Real Estate'!BM18-'Real Estate'!$E$5","v":{"v":1692911.3872877096,"d":"1,692,911"}},{"$f":"Equities!BK14+'T Bills'!BK14+'T Bonds'!BK14+'Real Estate'!BN18-'Real Estate'!$E$5","v":{"v":1622048.7973944093,"d":"1,622,049"}},{"$f":"Equities!BL14+'T Bills'!BL14+'T Bonds'!BL14+'Real Estate'!BO18-'Real Estate'!$E$5","v":{"v":2765231.5607375563,"d":"2,765,232"}},{"$f":"Equities!BM14+'T Bills'!BM14+'T Bonds'!BM14+'Real Estate'!BP18-'Real Estate'!$E$5","v":{"v":1283427.7359759426,"d":"1,283,428"}},{"$f":"Equities!BN14+'T Bills'!BN14+'T Bonds'!BN14+'Real Estate'!BQ18-'Real Estate'!$E$5","v":{"v":3661043.3625360653,"d":"3,661,043"}},{"$f":"Equities!BO14+'T Bills'!BO14+'T Bonds'!BO14+'Real Estate'!BR18-'Real Estate'!$E$5","v":{"v":2155878.9947821815,"d":"2,155,879"}},{"$f":"Equities!BP14+'T Bills'!BP14+'T Bonds'!BP14+'Real Estate'!BS18-'Real Estate'!$E$5","v":{"v":3930523.3061912907,"d":"3,930,523"}},{"$f":"Equities!BQ14+'T Bills'!BQ14+'T Bonds'!BQ14+'Real Estate'!BT18-'Real Estate'!$E$5","v":{"v":2797348.18701347,"d":"2,797,348"}},{"$f":"Equities!BR14+'T Bills'!BR14+'T Bonds'!BR14+'Real Estate'!BU18-'Real Estate'!$E$5","v":{"v":5375051.617761914,"d":"5,375,052"}},{"$f":"Equities!BS14+'T Bills'!BS14+'T Bonds'!BS14+'Real Estate'!BV18-'Real Estate'!$E$5","v":{"v":3465848.62009642,"d":"3,465,849"}},{"$f":"Equities!BT14+'T Bills'!BT14+'T Bonds'!BT14+'Real Estate'!BW18-'Real Estate'!$E$5","v":{"v":1176172.0568903626,"d":"1,176,172"}},{"$f":"Equities!BU14+'T Bills'!BU14+'T Bonds'!BU14+'Real Estate'!BX18-'Real Estate'!$E$5","v":{"v":1252406.055902555,"d":"1,252,406"}},{"$f":"Equities!BV14+'T Bills'!BV14+'T Bonds'!BV14+'Real Estate'!BY18-'Real Estate'!$E$5","v":{"v":2027570.3529453466,"d":"2,027,570"}},{"$f":"Equities!BW14+'T Bills'!BW14+'T Bonds'!BW14+'Real Estate'!BZ18-'Real Estate'!$E$5","v":{"v":1249342.2568398274,"d":"1,249,342"}},{"$f":"Equities!BX14+'T Bills'!BX14+'T Bonds'!BX14+'Real Estate'!CA18-'Real Estate'!$E$5","v":{"v":3479889.4007825507,"d":"3,479,889"}},{"$f":"Equities!BY14+'T Bills'!BY14+'T Bonds'!BY14+'Real Estate'!CB18-'Real Estate'!$E$5","v":{"v":3356852.873677574,"d":"3,356,853"}},{"$f":"Equities!BZ14+'T Bills'!BZ14+'T Bonds'!BZ14+'Real Estate'!CC18-'Real Estate'!$E$5","v":{"v":1582082.1130601566,"d":"1,582,082"}},{"$f":"Equities!CA14+'T Bills'!CA14+'T Bonds'!CA14+'Real Estate'!CD18-'Real Estate'!$E$5","v":{"v":2362582.1842856403,"d":"2,362,582"}},{"$f":"Equities!CB14+'T Bills'!CB14+'T Bonds'!CB14+'Real Estate'!CE18-'Real Estate'!$E$5","v":{"v":1273720.6742014608,"d":"1,273,721"}},{"$f":"Equities!CC14+'T Bills'!CC14+'T Bonds'!CC14+'Real Estate'!CF18-'Real Estate'!$E$5","v":{"v":1778910.2899537247,"d":"1,778,910"}},{"$f":"Equities!CD14+'T Bills'!CD14+'T Bonds'!CD14+'Real Estate'!CG18-'Real Estate'!$E$5","v":{"v":3933144.413058844,"d":"3,933,144"}},{"$f":"Equities!CE14+'T Bills'!CE14+'T Bonds'!CE14+'Real Estate'!CH18-'Real Estate'!$E$5","v":{"v":6073488.136256906,"d":"6,073,488"}},{"$f":"Equities!CF14+'T Bills'!CF14+'T Bonds'!CF14+'Real Estate'!CI18-'Real Estate'!$E$5","v":{"v":2878339.210337607,"d":"2,878,339"}},{"$f":"Equities!CG14+'T Bills'!CG14+'T Bonds'!CG14+'Real Estate'!CJ18-'Real Estate'!$E$5","v":{"v":3879602.4593858053,"d":"3,879,602"}},{"$f":"Equities!CH14+'T Bills'!CH14+'T Bonds'!CH14+'Real Estate'!CK18-'Real Estate'!$E$5","v":{"v":2758949.3448194177,"d":"2,758,949"}},{"$f":"Equities!CI14+'T Bills'!CI14+'T Bonds'!CI14+'Real Estate'!CL18-'Real Estate'!$E$5","v":{"v":1947574.931236691,"d":"1,947,575"}},{"$f":"Equities!CJ14+'T Bills'!CJ14+'T Bonds'!CJ14+'Real Estate'!CM18-'Real Estate'!$E$5","v":{"v":6201930.04639797,"d":"6,201,930"}},{"$f":"Equities!CK14+'T Bills'!CK14+'T Bonds'!CK14+'Real Estate'!CN18-'Real Estate'!$E$5","v":{"v":2670629.738960434,"d":"2,670,630"}},{"$f":"Equities!CL14+'T Bills'!CL14+'T Bonds'!CL14+'Real Estate'!CO18-'Real Estate'!$E$5","v":{"v":5598851.739318139,"d":"5,598,852"}},{"$f":"Equities!CM14+'T Bills'!CM14+'T Bonds'!CM14+'Real Estate'!CP18-'Real Estate'!$E$5","v":{"v":4677522.746051781,"d":"4,677,523"}},{"$f":"Equities!CN14+'T Bills'!CN14+'T Bonds'!CN14+'Real Estate'!CQ18-'Real Estate'!$E$5","v":{"v":5220043.7962872125,"d":"5,220,044"}},{"$f":"Equities!CO14+'T Bills'!CO14+'T Bonds'!CO14+'Real Estate'!CR18-'Real Estate'!$E$5","v":{"v":3820213.4029999683,"d":"3,820,213"}},{"$f":"Equities!CP14+'T Bills'!CP14+'T Bonds'!CP14+'Real Estate'!CS18-'Real Estate'!$E$5","v":{"v":919903.4369015903,"d":"919,903"}},{"$f":"Equities!CQ14+'T Bills'!CQ14+'T Bonds'!CQ14+'Real Estate'!CT18-'Real Estate'!$E$5","v":{"v":1905974.1578777602,"d":"1,905,974"}},{"$f":"Equities!CR14+'T Bills'!CR14+'T Bonds'!CR14+'Real Estate'!CU18-'Real Estate'!$E$5","v":{"v":4650929.683162218,"d":"4,650,930"}},{"$f":"Equities!CS14+'T Bills'!CS14+'T Bonds'!CS14+'Real Estate'!CV18-'Real Estate'!$E$5","v":{"v":3901359.11773244,"d":"3,901,359"}},{"$f":"Equities!CT14+'T Bills'!CT14+'T Bonds'!CT14+'Real Estate'!CW18-'Real Estate'!$E$5","v":{"v":1660343.883786422,"d":"1,660,344"}},{"$f":"Equities!CU14+'T Bills'!CU14+'T Bonds'!CU14+'Real Estate'!CX18-'Real Estate'!$E$5","v":{"v":7227874.553053278,"d":"7,227,875"}},{"$f":"Equities!CV14+'T Bills'!CV14+'T Bonds'!CV14+'Real Estate'!CY18-'Real Estate'!$E$5","v":{"v":4276106.699417234,"d":"4,276,107"}},{"$f":"Equities!CW14+'T Bills'!CW14+'T Bonds'!CW14+'Real Estate'!CZ18-'Real Estate'!$E$5","v":{"v":1478059.1902379862,"d":"1,478,059"}},{"$f":"Equities!CX14+'T Bills'!CX14+'T Bonds'!CX14+'Real Estate'!DA18-'Real Estate'!$E$5","v":{"v":3556345.7452896317,"d":"3,556,346"}}]
[{"$f":"Main!A21","v":"2036-12-30"},82,{"$f":"Equities!C15+'T Bills'!C15+'T Bonds'!C15+'Real Estate'!F19-'Real Estate'!$E$5","v":{"v":1808939.713169148,"d":"1,808,940"}},{"$f":"Equities!D15+'T Bills'!D15+'T Bonds'!D15+'Real Estate'!G19-'Real Estate'!$E$5","v":{"v":2120195.866269813,"d":"2,120,196"}},{"$f":"Equities!E15+'T Bills'!E15+'T Bonds'!E15+'Real Estate'!H19-'Real Estate'!$E$5","v":{"v":2635607.086755082,"d":"2,635,607"}},{"$f":"Equities!F15+'T Bills'!F15+'T Bonds'!F15+'Real Estate'!I19-'Real Estate'!$E$5","v":{"v":6413300.7474654885,"d":"6,413,301"}},{"$f":"Equities!G15+'T Bills'!G15+'T Bonds'!G15+'Real Estate'!J19-'Real Estate'!$E$5","v":{"v":6823409.398975279,"d":"6,823,409"}},{"$f":"Equities!H15+'T Bills'!H15+'T Bonds'!H15+'Real Estate'!K19-'Real Estate'!$E$5","v":{"v":2488035.119757652,"d":"2,488,035"}},{"$f":"Equities!I15+'T Bills'!I15+'T Bonds'!I15+'Real Estate'!L19-'Real Estate'!$E$5","v":{"v":1973304.617507276,"d":"1,973,305"}},{"$f":"Equities!J15+'T Bills'!J15+'T Bonds'!J15+'Real Estate'!M19-'Real Estate'!$E$5","v":{"v":1690807.5219606322,"d":"1,690,808"}},{"$f":"Equities!K15+'T Bills'!K15+'T Bonds'!K15+'Real Estate'!N19-'Real Estate'!$E$5","v":{"v":4415672.430647213,"d":"4,415,672"}},{"$f":"Equities!L15+'T Bills'!L15+'T Bonds'!L15+'Real Estate'!O19-'Real Estate'!$E$5","v":{"v":5927189.260543711,"d":"5,927,189"}},{"$f":"Equities!M15+'T Bills'!M15+'T Bonds'!M15+'Real Estate'!P19-'Real Estate'!$E$5","v":{"v":2380055.5137629057,"d":"2,380,056"}},{"$f":"Equities!N15+'T Bills'!N15+'T Bonds'!N15+'Real Estate'!Q19-'Real Estate'!$E$5","v":{"v":771756.6576598508,"d":"771,757"}},{"$f":"Equities!O15+'T Bills'!O15+'T Bonds'!O15+'Real Estate'!R19-'Real Estate'!$E$5","v":{"v":2326287.403908177,"d":"2,326,287"}},{"$f":"Equities!P15+'T Bills'!P15+'T Bonds'!P15+'Real Estate'!S19-'Real Estate'!$E$5","v":{"v":1549558.4598772747,"d":"1,549,558"}},{"$f":"Equities!Q15+'T Bills'!Q15+'T Bonds'!Q15+'Real Estate'!T19-'Real Estate'!$E$5","v":{"v":1488791.0313051245,"d":"1,488,791"}},{"$f":"Equities!R15+'T Bills'!R15+'T Bonds'!R15+'Real Estate'!U19-'Real Estate'!$E$5","v":{"v":1928286.6822544134,"d":"1,928,287"}},{"$f":"Equities!S15+'T Bills'!S15+'T Bonds'!S15+'Real Estate'!V19-'Real Estate'!$E$5","v":{"v":1005931.847006686,"d":"1,005,932"}},{"$f":"Equities!T15+'T Bills'!T15+'T Bonds'!T15+'Real Estate'!W19-'Real Estate'!$E$5","v":{"v":838065.9026579899,"d":"838,066"}},{"$f":"Equities!U15+'T Bills'!U15+'T Bonds'!U15+'Real Estate'!X19-'Real Estate'!$E$5","v":{"v":1706867.6267790468,"d":"1,706,868"}},{"$f":"Equities!V15+'T Bills'!V15+'T Bonds'!V15+'Real Estate'!Y19-'Real Estate'!$E$5","v":{"v":5137570.498135256,"d":"5,137,570"}},{"$f":"Equities!W15+'T Bills'!W15+'T Bonds'!W15+'Real Estate'!Z19-'Real Estate'!$E$5","v":{"v":3903905.39943233,"d":"3,903,905"}},{"$f":"Equities!X15+'T Bills'!X15+'T Bonds'!X15+'Real Estate'!AA19-'Real Estate'!$E$5","v":{"v":1648324.483992622,"d":"1,648,324"}},{"$f":"Equities!Y15+'T Bills'!Y15+'T Bonds'!Y15+'Real Estate'!AB19-'Real Estate'!$E$5","v":{"v":1704344.685645714,"d":"1,704,345"}},{"$f":"Equities!Z15+'T Bills'!Z15+'T Bonds'!Z15+'Real Estate'!AC19-'Real Estate'!$E$5","v":{"v":2303750.0175880287,"d":"2,303,750"}},{"$f":"Equities!AA15+'T Bills'!AA15+'T Bonds'!AA15+'Real Estate'!AD19-'Real Estate'!$E$5","v":{"v":2569358.611612645,"d":"2,569,359"}},{"$f":"Equities!AB15+'T Bills'!AB15+'T Bonds'!AB15+'Real Estate'!AE19-'Real Estate'!$E$5","v":{"v":1659690.6657178153,"d":"1,659,691"}},{"$f":"Equities!AC15+'T Bills'!AC15+'T Bonds'!AC15+'Real Estate'!AF19-'Real Estate'!$E$5","v":{"v":1595925.4044810366,"d":"1,595,925"}},{"$f":"Equities!AD15+'T Bills'!AD15+'T Bonds'!AD15+'Real Estate'!AG19-'Real Estate'!$E$5","v":{"v":2052543.2924922484,"d":"2,052,543"}},{"$f":"Equities!AE15+'T Bills'!AE15+'T Bonds'!AE15+'Real Estate'!AH19-'Real Estate'!$E$5","v":{"v":1263952.4801750935,"d":"1,263,952"}},{"$f":"Equities!AF15+'T Bills'!AF15+'T Bonds'!AF15+'Real Estate'!AI19-'Real Estate'!$E$5","v":{"v":5874074.973951395,"d":"5,874,075"}},{"$f":"Equities!AG15+'T Bills'!AG15+'T Bonds'!AG15+'Real Estate'!AJ19-'Real Estate'!$E$5","v":{"v":5863253.213289214,"d":"5,863,253"}},{"$f":"Equities!AH15+'T Bills'!AH15+'T Bonds'!AH15+'Real Estate'!AK19-'Real Estate'!$E$5","v":{"v":2921680.797974317,"d":"2,921,681"}},{"$f":"Equities!AI15+'T Bills'!AI15+'T Bonds'!AI15+'Real Estate'!AL19-'Real Estate'!$E$5","v":{"v":2479946.287549706,"d":"2,479,946"}},{"$f":"Equities!AJ15+'T Bills'!AJ15+'T Bonds'!AJ15+'Real Estate'!AM19-'Real Estate'!$E$5","v":{"v":3489875.494328078,"d":"3,489,875"}},{"$f":"Equities!AK15+'T Bills'!AK15+'T Bonds'!AK15+'Real Estate'!AN19-'Real Estate'!$E$5","v":{"v":1420395.5787622326,"d":"1,420,396"}},{"$f":"Equities!AL15+'T Bills'!AL15+'T Bonds'!AL15+'Real Estate'!AO19-'Real Estate'!$E$5","v":{"v":3571912.33634138,"d":"3,571,912"}},{"$f":"Equities!AM15+'T Bills'!AM15+'T Bonds'!AM15+'Real Estate'!AP19-'Real Estate'!$E$5","v":{"v":983972.9826232248,"d":"983,973"}},{"$f":"Equities!AN15+'T Bills'!AN15+'T Bonds'!AN15+'Real Estate'!AQ19-'Real Estate'!$E$5","v":{"v":5447271.435264311,"d":"5,447,271"}},{"$f":"Equities!AO15+'T Bills'!AO15+'T Bonds'!AO15+'Real Estate'!AR19-'Real Estate'!$E$5","v":{"v":2908131.7637539217,"d":"2,908,132"}},{"$f":"Equities!AP15+'T Bills'!AP15+'T Bonds'!AP15+'Real Estate'!AS19-'Real Estate'!$E$5","v":{"v":6063696.362497923,"d":"6,063,696"}},{"$f":"Equities!AQ15+'T Bills'!AQ15+'T Bonds'!AQ15+'Real Estate'!AT19-'Real Estate'!$E$5","v":{"v":1114363.439729187,"d":"1,114,363"}},{"$f":"Equities!AR15+'T Bills'!AR15+'T Bonds'!AR15+'Real Estate'!AU19-'Real Estate'!$E$5","v":{"v":4177077.8171105813,"d":"4,177,078"}},{"$f":"Equities!AS15+'T Bills'!AS15+'T Bonds'!AS15+'Real Estate'!AV19-'Real Estate'!$E$5","v":{"v":1740350.203584025,"d":"1,740,350"}},{"$f":"Equities!AT15+'T Bills'!AT15+'T Bonds'!AT15+'Real Estate'!AW19-'Real Estate'!$E$5","v":{"v":1256282.3445502054,"d":"1,256,282"}},{"$f":"Equities!AU15+'T Bills'!AU15+'T Bonds'!AU15+'Real Estate'!AX19-'Real Estate'!$E$5","v":{"v":2477377.986431918,"d":"2,477,378"}},{"$f":"Equities!AV15+'T Bills'!AV15+'T Bonds'!AV15+'Real Estate'!AY19-'Real Estate'!$E$5","v":{"v":3321860.3456056938,"d":"3,321,860"}},{"$f":"Equities!AW15+'T Bills'!AW15+'T Bonds'!AW15+'Real Estate'!AZ19-'Real Estate'!$E$5","v":{"v":1867758.1289870632,"d":"1,867,758"}},{"$f":"Equities!AX15+'T Bills'!AX15+'T Bonds'!AX15+'Real Estate'!BA19-'Real Estate'!$E$5","v":{"v":3248341.985383545,"d":"3,248,342"}},{"$f":"Equities!AY15+'T Bills'!AY15+'T Bonds'!AY15+'Real Estate'!BB19-'Real Estate'!$E$5","v":{"v":3161924.041057872,"d":"3,161,924"}},{"$f":"Equities!AZ15+'T Bills'!AZ15+'T Bonds'!AZ15+'Real Estate'!BC19-'Real Estate'!$E$5","v":{"v":972220.753296877,"d":"972,221"}},{"$f":"Equities!BA15+'T Bills'!BA15+'T Bonds'!BA15+'Real Estate'!BD19-'Real Estate'!$E$5","v":{"v":748339.5691101092,"d":"748,340"}},{"$f":"Equities!BB15+'T Bills'!BB15+'T Bonds'!BB15+'Real Estate'!BE19-'Real Estate'!$E$5","v":{"v":957640.0740153531,"d":"957,640"}},{"$f":"Equities!BC15+'T Bills'!BC15+'T Bonds'!BC15+'Real Estate'!BF19-'Real Estate'!$E$5","v":{"v":2207567.1862122365,"d":"2,207,567"}},{"$f":"Equities!BD15+'T Bills'!BD15+'T Bonds'!BD15+'Real Estate'!BG19-'Real Estate'!$E$5","v":{"v":3533041.960838264,"d":"3,533,042"}},{"$f":"Equities!BE15+'T Bills'!BE15+'T Bonds'!BE15+'Real Estate'!BH19-'Real Estate'!$E$5","v":{"v":1856889.8818575137,"d":"1,856,890"}},{"$f":"Equities!BF15+'T Bills'!BF15+'T Bonds'!BF15+'Real Estate'!BI19-'Real Estate'!$E$5","v":{"v":887723.0544748672,"d":"887,723"}},{"$f":"Equities!BG15+'T Bills'!BG15+'T Bonds'!BG15+'Real Estate'!BJ19-'Real Estate'!$E$5","v":{"v":1236869.1333731087,"d":"1,236,869"}},{"$f":"Equities!BH15+'T Bills'!BH15+'T Bonds'!BH15+'Real Estate'!BK19-'Real Estate'!$E$5","v":{"v":1300724.0424292118,"d":"1,300,724"}},{"$f":"Equities!BI15+'T Bills'!BI15+'T Bonds'!BI15+'Real Estate'!BL19-'Real Estate'!$E$5","v":{"v":3689734.284919161,"d":"3,689,734"}},{"$f":"Equities!BJ15+'T Bills'!BJ15+'T Bonds'!BJ15+'Real Estate'!BM19-'Real Estate'!$E$5","v":{"v":1653654.9939351336,"d":"1,653,655"}},{"$f":"Equities!BK15+'T Bills'!BK15+'T Bonds'!BK15+'Real Estate'!BN19-'Real Estate'!$E$5","v":{"v":1758658.623285896,"d":"1,758,659"}},{"$f":"Equities!BL15+'T Bills'!BL15+'T Bonds'!BL15+'Real Estate'!BO19-'Real Estate'!$E$5","v":{"v":3092797.61982212,"d":"3,092,798"}},{"$f":"Equities!BM15+'T Bills'!BM15+'T Bonds'!BM15+'Real Estate'!BP19-'Real Estate'!$E$5","v":{"v":1225531.587196869,"d":"1,225,532"}},{"$f":"Equities!BN15+'T Bills'!BN15+'T Bonds'!BN15+'Real Estate'!BQ19-'Real Estate'!$E$5","v":{"v":4176417.5160661545,"d":"4,176,418"}},{"$f":"Equities!BO15+'T Bills'!BO15+'T Bonds'!BO15+'Real Estate'!BR19-'Real Estate'!$E$5","v":{"v":1871948.0375175902,"d":"1,871,948"}},{"$f":"Equities!BP15+'T Bills'!BP15+'T Bonds'!BP15+'Real Estate'!BS19-'Real Estate'!$E$5","v":{"v":3879278.244972851,"d":"3,879,278"}},{"$f":"Equities!BQ15+'T Bills'!BQ15+'T Bonds'!BQ15+'Real Estate'!BT19-'Real Estate'!$E$5","v":{"v":1831071.4339400425,"d":"1,831,071"}},{"$f":"Equities!BR15+'T Bills'!BR15+'T Bonds'!BR15+'Real Estate'!BU19-'Real Estate'!$E$5","v":{"v":5515224.449128788,"d":"5,515,224"}},{"$f":"Equities!BS15+'T Bills'!BS15+'T Bonds'!BS15+'Real Estate'!BV19-'Real Estate'!$E$5","v":{"v":3446362.065807783,"d":"3,446,362"}},{"$f":"Equities!BT15+'T Bills'!BT15+'T Bonds'!BT15+'Real Estate'!BW19-'Real Estate'!$E$5","v":{"v":1089834.43056701,"d":"1,089,834"}},{"$f":"Equities!BU15+'T Bills'!BU15+'T Bonds'!BU15+'Real Estate'!BX19-'Real Estate'!$E$5","v":{"v":1217990.390089665,"d":"1,217,990"}},{"$f":"Equities!BV15+'T Bills'!BV15+'T Bonds'!BV15+'Real Estate'!BY19-'Real Estate'!$E$5","v":{"v":2313402.7646015454,"d":"2,313,403"}},{"$f":"Equities!BW15+'T Bills'!BW15+'T Bonds'!BW15+'Real Estate'!BZ19-'Real Estate'!$E$5","v":{"v":987865.055590404,"d":"987,865"}},{"$f":"Equities!BX15+'T Bills'!BX15+'T Bonds'!BX15+'Real Estate'!CA19-'Real Estate'!$E$5","v":{"v":2813022.176079292,"d":"2,813,022"}},{"$f":"Equities!BY15+'T Bills'!BY15+'T Bonds'!BY15+'Real Estate'!CB19-'Real Estate'!$E$5","v":{"v":2861890.7221672027,"d":"2,861,891"}},{"$f":"Equities!BZ15+'T Bills'!BZ15+'T Bonds'!BZ15+'Real Estate'!CC19-'Real Estate'!$E$5","v":{"v":1746536.5414057227,"d":"1,746,537"}},{"$f":"Equities!CA15+'T Bills'!CA15+'T Bonds'!CA15+'Real Estate'!CD19-'Real Estate'!$E$5","v":{"v":2101677.8766781017,"d":"2,101,678"}},{"$f":"Equities!CB15+'T Bills'!CB15+'T Bonds'!CB15+'Real Estate'!CE19-'Real Estate'!$E$5","v":{"v":1244854.5774866806,"d":"1,244,855"}},{"$f":"Equities!CC15+'T Bills'!CC15+'T Bonds'!CC15+'Real Estate'!CF19-'Real Estate'!$E$5","v":{"v":1783158.4053850903,"d":"1,783,158"}},{"$f":"Equities!CD15+'T Bills'!CD15+'T Bonds'!CD15+'Real Estate'!CG19-'Real Estate'!$E$5","v":{"v":4819364.471405949,"d":"4,819,364"}},{"$f":"Equities!CE15+'T Bills'!CE15+'T Bonds'!CE15+'Real Estate'!CH19-'Real Estate'!$E$5","v":{"v":5712710.547455443,"d":"5,712,711"}},{"$f":"Equities!CF15+'T Bills'!CF15+'T Bonds'!CF15+'Real Estate'!CI19-'Real Estate'!$E$5","v":{"v":2510115.924715922,"d":"2,510,116"}},{"$f":"Equities!CG15+'T Bills'!CG15+'T Bonds'!CG15+'Real Estate'!CJ19-'Real Estate'!$E$5","v":{"v":3472735.105352363,"d":"3,472,735"}},{"$f":"Equities!CH15+'T Bills'!CH15+'T Bonds'!CH15+'Real Estate'!CK19-'Real Estate'!$E$5","v":{"v":2941693.857850223,"d":"2,941,694"}},{"$f":"Equities!CI15+'T Bills'!CI15+'T Bonds'!CI15+'Real Estate'!CL19-'Real Estate'!$E$5","v":{"v":1941638.4648204444,"d":"1,941,638"}},{"$f":"Equities!CJ15+'T Bills'!CJ15+'T Bonds'!CJ15+'Real Estate'!CM19-'Real Estate'!$E$5","v":{"v":6951792.584688122,"d":"6,951,793"}},{"$f":"Equities!CK15+'T Bills'!CK15+'T Bonds'!CK15+'Real Estate'!CN19-'Real Estate'!$E$5","v":{"v":2634734.197528224,"d":"2,634,734"}},{"$f":"Equities!CL15+'T Bills'!CL15+'T Bonds'!CL15+'Real Estate'!CO19-'Real Estate'!$E$5","v":{"v":5978503.927790783,"d":"5,978,504"}},{"$f":"Equities!CM15+'T Bills'!CM15+'T Bonds'!CM15+'Real Estate'!CP19-'Real Estate'!$E$5","v":{"v":3752087.168561492,"d":"3,752,087"}},{"$f":"Equities!CN15+'T Bills'!CN15+'T Bonds'!CN15+'Real Estate'!CQ19-'Real Estate'!$E$5","v":{"v":6044331.555332272,"d":"6,044,332"}},{"$f":"Equities!CO15+'T Bills'!CO15+'T Bonds'!CO15+'Real Estate'!CR19-'Real Estate'!$E$5","v":{"v":3862916.279583519,"d":"3,862,916"}},{"$f":"Equities!CP15+'T Bills'!CP15+'T Bonds'!CP15+'Real Estate'!CS19-'Real Estate'!$E$5","v":{"v":802585.0725158107,"d":"802,585"}},{"$f":"Equities!CQ15+'T Bills'!CQ15+'T Bonds'!CQ15+'Real Estate'!CT19-'Real Estate'!$E$5","v":{"v":1992854.6814158424,"d":"1,992,855"}},{"$f":"Equities!CR15+'T Bills'!CR15+'T Bonds'!CR15+'Real Estate'!CU19-'Real Estate'!$E$5","v":{"v":5386691.402348139,"d":"5,386,691"}},{"$f":"Equities!CS15+'T Bills'!CS15+'T Bonds'!CS15+'Real Estate'!CV19-'Real Estate'!$E$5","v":{"v":3898300.140481269,"d":"3,898,300"}},{"$f":"Equities!CT15+'T Bills'!CT15+'T Bonds'!CT15+'Real Estate'!CW19-'Real Estate'!$E$5","v":{"v":1726373.0960416615,"d":"1,726,373"}},{"$f":"Equities!CU15+'T Bills'!CU15+'T Bonds'!CU15+'Real Estate'!CX19-'Real Estate'!$E$5","v":{"v":9066760.463652777,"d":"9,066,760"}},{"$f":"Equities!CV15+'T Bills'!CV15+'T Bonds'!CV15+'Real Estate'!CY19-'Real Estate'!$E$5","v":{"v":5228351.262435884,"d":"5,228,351"}},{"$f":"Equities!CW15+'T Bills'!CW15+'T Bonds'!CW15+'Real Estate'!CZ19-'Real Estate'!$E$5","v":{"v":1124536.3007853113,"d":"1,124,536"}},{"$f":"Equities!CX15+'T Bills'!CX15+'T Bonds'!CX15+'Real Estate'!DA19-'Real Estate'!$E$5","v":{"v":3788583.049604193,"d":"3,788,583"}}]
[{"$f":"Main!A22","v":"2037-12-30"},83,{"$f":"Equities!C16+'T Bills'!C16+'T Bonds'!C16+'Real Estate'!F20-'Real Estate'!$E$5","v":{"v":1660095.6687248924,"d":"1,660,096"}},{"$f":"Equities!D16+'T Bills'!D16+'T Bonds'!D16+'Real Estate'!G20-'Real Estate'!$E$5","v":{"v":1942217.7437106252,"d":"1,942,218"}},{"$f":"Equities!E16+'T Bills'!E16+'T Bonds'!E16+'Real Estate'!H20-'Real Estate'!$E$5","v":{"v":3212799.3805480767,"d":"3,212,799"}},{"$f":"Equities!F16+'T Bills'!F16+'T Bonds'!F16+'Real Estate'!I20-'Real Estate'!$E$5","v":{"v":6588869.688292388,"d":"6,588,870"}},{"$f":"Equities!G16+'T Bills'!G16+'T Bonds'!G16+'Real Estate'!J20-'Real Estate'!$E$5","v":{"v":9409535.974480558,"d":"9,409,536"}},{"$f":"Equities!H16+'T Bills'!H16+'T Bonds'!H16+'Real Estate'!K20-'Real Estate'!$E$5","v":{"v":2127288.8148714905,"d":"2,127,289"}},{"$f":"Equities!I16+'T Bills'!I16+'T Bonds'!I16+'Real Estate'!L20-'Real Estate'!$E$5","v":{"v":1729960.6512854607,"d":"1,729,961"}},{"$f":"Equities!J16+'T Bills'!J16+'T Bonds'!J16+'Real Estate'!M20-'Real Estate'!$E$5","v":{"v":1588352.2244717586,"d":"1,588,352"}},{"$f":"Equities!K16+'T Bills'!K16+'T Bonds'!K16+'Real Estate'!N20-'Real Estate'!$E$5","v":{"v":3891116.6841517203,"d":"3,891,117"}},{"$f":"Equities!L16+'T Bills'!L16+'T Bonds'!L16+'Real Estate'!O20-'Real Estate'!$E$5","v":{"v":5357149.034442039,"d":"5,357,149"}},{"$f":"Equities!M16+'T Bills'!M16+'T Bonds'!M16+'Real Estate'!P20-'Real Estate'!$E$5","v":{"v":2056900.5897027662,"d":"2,056,901"}},{"$f":"Equities!N16+'T Bills'!N16+'T Bonds'!N16+'Real Estate'!Q20-'Real Estate'!$E$5","v":{"v":678279.0085847655,"d":"678,279"}},{"$f":"Equities!O16+'T Bills'!O16+'T Bonds'!O16+'Real Estate'!R20-'Real Estate'!$E$5","v":{"v":2403939.7633250155,"d":"2,403,940"}},{"$f":"Equities!P16+'T Bills'!P16+'T Bonds'!P16+'Real Estate'!S20-'Real Estate'!$E$5","v":{"v":1381662.8351211592,"d":"1,381,663"}},{"$f":"Equities!Q16+'T Bills'!Q16+'T Bonds'!Q16+'Real Estate'!T20-'Real Estate'!$E$5","v":{"v":1363468.690273743,"d":"1,363,469"}},{"$f":"Equities!R16+'T Bills'!R16+'T Bonds'!R16+'Real Estate'!U20-'Real Estate'!$E$5","v":{"v":1758999.6003752921,"d":"1,759,000"}},{"$f":"Equities!S16+'T Bills'!S16+'T Bonds'!S16+'Real Estate'!V20-'Real Estate'!$E$5","v":{"v":905645.4380391587,"d":"905,645"}},{"$f":"Equities!T16+'T Bills'!T16+'T Bonds'!T16+'Real Estate'!W20-'Real Estate'!$E$5","v":{"v":696791.6820425815,"d":"696,792"}},{"$f":"Equities!U16+'T Bills'!U16+'T Bonds'!U16+'Real Estate'!X20-'Real Estate'!$E$5","v":{"v":1737558.31052422,"d":"1,737,558"}},{"$f":"Equities!V16+'T Bills'!V16+'T Bonds'!V16+'Real Estate'!Y20-'Real Estate'!$E$5","v":{"v":6325559.833797075,"d":"6,325,560"}},{"$f":"Equities!W16+'T Bills'!W16+'T Bonds'!W16+'Real Estate'!Z20-'Real Estate'!$E$5","v":{"v":4661691.917818089,"d":"4,661,692"}},{"$f":"Equities!X16+'T Bills'!X16+'T Bonds'!X16+'Real Estate'!AA20-'Real Estate'!$E$5","v":{"v":1821935.535670182,"d":"1,821,936"}},{"$f":"Equities!Y16+'T Bills'!Y16+'T Bonds'!Y16+'Real Estate'!AB20-'Real Estate'!$E$5","v":{"v":1608318.9649188807,"d":"1,608,319"}},{"$f":"Equities!Z16+'T Bills'!Z16+'T Bonds'!Z16+'Real Estate'!AC20-'Real Estate'!$E$5","v":{"v":1873754.5344015297,"d":"1,873,755"}},{"$f":"Equities!AA16+'T Bills'!AA16+'T Bonds'!AA16+'Real Estate'!AD20-'Real Estate'!$E$5","v":{"v":2556258.7503406545,"d":"2,556,259"}},{"$f":"Equities!AB16+'T Bills'!AB16+'T Bonds'!AB16+'Real Estate'!AE20-'Real Estate'!$E$5","v":{"v":1608065.6740419685,"d":"1,608,066"}},{"$f":"Equities!AC16+'T Bills'!AC16+'T Bonds'!AC16+'Real Estate'!AF20-'Real Estate'!$E$5","v":{"v":1719291.5383558003,"d":"1,719,292"}},{"$f":"Equities!AD16+'T Bills'!AD16+'T Bonds'!AD16+'Real Estate'!AG20-'Real Estate'!$E$5","v":{"v":2004288.1100675373,"d":"2,004,288"}},{"$f":"Equities!AE16+'T Bills'!AE16+'T Bonds'!AE16+'Real Estate'!AH20-'Real Estate'!$E$5","v":{"v":1130104.7962745668,"d":"1,130,105"}},{"$f":"Equities!AF16+'T Bills'!AF16+'T Bonds'!AF16+'Real Estate'!AI20-'Real Estate'!$E$5","v":{"v":7353203.267560433,"d":"7,353,203"}},{"$f":"Equities!AG16+'T Bills'!AG16+'T Bonds'!AG16+'Real Estate'!AJ20-'Real Estate'!$E$5","v":{"v":6889660.261624638,"d":"6,889,660"}},{"$f":"Equities!AH16+'T Bills'!AH16+'T Bonds'!AH16+'Real Estate'!AK20-'Real Estate'!$E$5","v":{"v":3291940.9028658406,"d":"3,291,941"}},{"$f":"Equities!AI16+'T Bills'!AI16+'T Bonds'!AI16+'Real Estate'!AL20-'Real Estate'!$E$5","v":{"v":2787208.5671105958,"d":"2,787,209"}},{"$f":"Equities!AJ16+'T Bills'!AJ16+'T Bonds'!AJ16+'Real Estate'!AM20-'Real Estate'!$E$5","v":{"v":4021601.8266292973,"d":"4,021,602"}},{"$f":"Equities!AK16+'T Bills'!AK16+'T Bonds'!AK16+'Real Estate'!AN20-'Real Estate'!$E$5","v":{"v":1329211.229873904,"d":"1,329,211"}},{"$f":"Equities!AL16+'T Bills'!AL16+'T Bonds'!AL16+'Real Estate'!AO20-'Real Estate'!$E$5","v":{"v":3542521.102947256,"d":"3,542,521"}},{"$f":"Equities!AM16+'T Bills'!AM16+'T Bonds'!AM16+'Real Estate'!AP20-'Real Estate'!$E$5","v":{"v":874852.0689950867,"d":"874,852"}},{"$f":"Equities!AN16+'T Bills'!AN16+'T Bonds'!AN16+'Real Estate'!AQ20-'Real Estate'!$E$5","v":{"v":6548557.974417338,"d":"6,548,558"}},{"$f":"Equities!AO16+'T Bills'!AO16+'T Bonds'!AO16+'Real Estate'!AR20-'Real Estate'!$E$5","v":{"v":3371393.675799391,"d":"3,371,394"}},{"$f":"Equities!AP16+'T Bills'!AP16+'T Bonds'!AP16+'Real Estate'!AS20-'Real Estate'!$E$5","v":{"v":6482822.468309348,"d":"6,482,822"}},{"$f":"Equities!AQ16+'T Bills'!AQ16+'T Bonds'!AQ16+'Real Estate'!AT20-'Real Estate'!$E$5","v":{"v":897900.3636659181,"d":"897,900"}},{"$f":"Equities!AR16+'T Bills'!AR16+'T Bonds'!AR16+'Real Estate'!AU20-'Real Estate'!$E$5","v":{"v":4533249.102821569,"d":"4,533,249"}},{"$f":"Equities!AS16+'T Bills'!AS16+'T Bonds'!AS16+'Real Estate'!AV20-'Real Estate'!$E$5","v":{"v":1868632.4359794443,"d":"1,868,632"}},{"$f":"Equities!AT16+'T Bills'!AT16+'T Bonds'!AT16+'Real Estate'!AW20-'Real Estate'!$E$5","v":{"v":1207995.9693215857,"d":"1,207,996"}},{"$f":"Equities!AU16+'T Bills'!AU16+'T Bonds'!AU16+'Real Estate'!AX20-'Real Estate'!$E$5","v":{"v":2584250.1969993296,"d":"2,584,250"}},{"$f":"Equities!AV16+'T Bills'!AV16+'T Bonds'!AV16+'Real Estate'!AY20-'Real Estate'!$E$5","v":{"v":4406150.271700927,"d":"4,406,150"}},{"$f":"Equities!AW16+'T Bills'!AW16+'T Bonds'!AW16+'Real Estate'!AZ20-'Real Estate'!$E$5","v":{"v":1598099.079426205,"d":"1,598,099"}},{"$f":"Equities!AX16+'T Bills'!AX16+'T Bonds'!AX16+'Real Estate'!BA20-'Real Estate'!$E$5","v":{"v":4207397.94840589,"d":"4,207,398"}},{"$f":"Equities!AY16+'T Bills'!AY16+'T Bonds'!AY16+'Real Estate'!BB20-'Real Estate'!$E$5","v":{"v":3461612.114348939,"d":"3,461,612"}},{"$f":"Equities!AZ16+'T Bills'!AZ16+'T Bonds'!AZ16+'Real Estate'!BC20-'Real Estate'!$E$5","v":{"v":794083.5995850925,"d":"794,084"}},{"$f":"Equities!BA16+'T Bills'!BA16+'T Bonds'!BA16+'Real Estate'!BD20-'Real Estate'!$E$5","v":{"v":594385.8195775673,"d":"594,386"}},{"$f":"Equities!BB16+'T Bills'!BB16+'T Bonds'!BB16+'Real Estate'!BE20-'Real Estate'!$E$5","v":{"v":885116.2852075459,"d":"885,116"}},{"$f":"Equities!BC16+'T Bills'!BC16+'T Bonds'!BC16+'Real Estate'!BF20-'Real Estate'!$E$5","v":{"v":2205865.9398452463,"d":"2,205,866"}},{"$f":"Equities!BD16+'T Bills'!BD16+'T Bonds'!BD16+'Real Estate'!BG20-'Real Estate'!$E$5","v":{"v":3156802.4870404964,"d":"3,156,802"}},{"$f":"Equities!BE16+'T Bills'!BE16+'T Bonds'!BE16+'Real Estate'!BH20-'Real Estate'!$E$5","v":{"v":1891378.4390862433,"d":"1,891,378"}},{"$f":"Equities!BF16+'T Bills'!BF16+'T Bonds'!BF16+'Real Estate'!BI20-'Real Estate'!$E$5","v":{"v":711204.198968492,"d":"711,204"}},{"$f":"Equities!BG16+'T Bills'!BG16+'T Bonds'!BG16+'Real Estate'!BJ20-'Real Estate'!$E$5","v":{"v":1128789.0298274842,"d":"1,128,789"}},{"$f":"Equities!BH16+'T Bills'!BH16+'T Bonds'!BH16+'Real Estate'!BK20-'Real Estate'!$E$5","v":{"v":1226358.1396713303,"d":"1,226,358"}},{"$f":"Equities!BI16+'T Bills'!BI16+'T Bonds'!BI16+'Real Estate'!BL20-'Real Estate'!$E$5","v":{"v":4635557.591569125,"d":"4,635,558"}},{"$f":"Equities!BJ16+'T Bills'!BJ16+'T Bonds'!BJ16+'Real Estate'!BM20-'Real Estate'!$E$5","v":{"v":1726666.1056399706,"d":"1,726,666"}},{"$f":"Equities!BK16+'T Bills'!BK16+'T Bonds'!BK16+'Real Estate'!BN20-'Real Estate'!$E$5","v":{"v":1855901.5594734643,"d":"1,855,902"}},{"$f":"Equities!BL16+'T Bills'!BL16+'T Bonds'!BL16+'Real Estate'!BO20-'Real Estate'!$E$5","v":{"v":2890707.699415404,"d":"2,890,708"}},{"$f":"Equities!BM16+'T Bills'!BM16+'T Bonds'!BM16+'Real Estate'!BP20-'Real Estate'!$E$5","v":{"v":960951.2316611272,"d":"960,951"}},{"$f":"Equities!BN16+'T Bills'!BN16+'T Bonds'!BN16+'Real Estate'!BQ20-'Real Estate'!$E$5","v":{"v":4041205.36971517,"d":"4,041,205"}},{"$f":"Equities!BO16+'T Bills'!BO16+'T Bonds'!BO16+'Real Estate'!BR20-'Real Estate'!$E$5","v":{"v":1978490.5476230357,"d":"1,978,491"}},{"$f":"Equities!BP16+'T Bills'!BP16+'T Bonds'!BP16+'Real Estate'!BS20-'Real Estate'!$E$5","v":{"v":4227133.731508251,"d":"4,227,134"}},{"$f":"Equities!BQ16+'T Bills'!BQ16+'T Bonds'!BQ16+'Real Estate'!BT20-'Real Estate'!$E$5","v":{"v":1589640.6751012492,"d":"1,589,641"}},{"$f":"Equities!BR16+'T Bills'!BR16+'T Bonds'!BR16+'Real Estate'!BU20-'Real Estate'!$E$5","v":{"v":6458013.2035941705,"d":"6,458,013"}},{"$f":"Equities!BS16+'T Bills'!BS16+'T Bonds'!BS16+'Real Estate'!BV20-'Real Estate'!$E$5","v":{"v":3121188.048399456,"d":"3,121,188"}},{"$f":"Equities!BT16+'T Bills'!BT16+'T Bonds'!BT16+'Real Estate'!BW20-'Real Estate'!$E$5","v":{"v":924634.5024503455,"d":"924,635"}},{"$f":"Equities!BU16+'T Bills'!BU16+'T Bonds'!BU16+'Real Estate'!BX20-'Real Estate'!$E$5","v":{"v":1007957.7803468339,"d":"1,007,958"}},{"$f":"Equities!BV16+'T Bills'!BV16+'T Bonds'!BV16+'Real Estate'!BY20-'Real Estate'!$E$5","v":{"v":2336754.15020788,"d":"2,336,754"}},{"$f":"Equities!BW16+'T Bills'!BW16+'T Bonds'!BW16+'Real Estate'!BZ20-'Real Estate'!$E$5","v":{"v":880069.7673874758,"d":"880,070"}},{"$f":"Equities!BX16+'T Bills'!BX16+'T Bonds'!BX16+'Real Estate'!CA20-'Real Estate'!$E$5","v":{"v":2885595.1957483613,"d":"2,885,595"}},{"$f":"Equities!BY16+'T Bills'!BY16+'T Bonds'!BY16+'Real Estate'!CB20-'Real Estate'!$E$5","v":{"v":3068108.823366385,"d":"3,068,109"}},{"$f":"Equities!BZ16+'T Bills'!BZ16+'T Bonds'!BZ16+'Real Estate'!CC20-'Real Estate'!$E$5","v":{"v":1201194.8171299016,"d":"1,201,195"}},{"$f":"Equities!CA16+'T Bills'!CA16+'T Bonds'!CA16+'Real Estate'!CD20-'Real Estate'!$E$5","v":{"v":2126362.238281129,"d":"2,126,362"}},{"$f":"Equities!CB16+'T Bills'!CB16+'T Bonds'!CB16+'Real Estate'!CE20-'Real Estate'!$E$5","v":{"v":1158904.3648473423,"d":"1,158,904"}},{"$f":"Equities!CC16+'T Bills'!CC16+'T Bonds'!CC16+'Real Estate'!CF20-'Real Estate'!$E$5","v":{"v":2042843.8854279278,"d":"2,042,844"}},{"$f":"Equities!CD16+'T Bills'!CD16+'T Bonds'!CD16+'Real Estate'!CG20-'Real Estate'!$E$5","v":{"v":6054172.818390109,"d":"6,054,173"}},{"$f":"Equities!CE16+'T Bills'!CE16+'T Bonds'!CE16+'Real Estate'!CH20-'Real Estate'!$E$5","v":{"v":3900586.2295867773,"d":"3,900,586"}},{"$f":"Equities!CF16+'T Bills'!CF16+'T Bonds'!CF16+'Real Estate'!CI20-'Real Estate'!$E$5","v":{"v":2434849.460461074,"d":"2,434,849"}},{"$f":"Equities!CG16+'T Bills'!CG16+'T Bonds'!CG16+'Real Estate'!CJ20-'Real Estate'!$E$5","v":{"v":3873978.002029371,"d":"3,873,978"}},{"$f":"Equities!CH16+'T Bills'!CH16+'T Bonds'!CH16+'Real Estate'!CK20-'Real Estate'!$E$5","v":{"v":3387266.6884817253,"d":"3,387,267"}},{"$f":"Equities!CI16+'T Bills'!CI16+'T Bonds'!CI16+'Real Estate'!CL20-'Real Estate'!$E$5","v":{"v":1951638.5332415176,"d":"1,951,639"}},{"$f":"Equities!CJ16+'T Bills'!CJ16+'T Bonds'!CJ16+'Real Estate'!CM20-'Real Estate'!$E$5","v":{"v":8010570.234015425,"d":"8,010,570"}},{"$f":"Equities!CK16+'T Bills'!CK16+'T Bonds'!CK16+'Real Estate'!CN20-'Real Estate'!$E$5","v":{"v":2445418.32467427,"d":"2,445,418"}},{"$f":"Equities!CL16+'T Bills'!CL16+'T Bonds'!CL16+'Real Estate'!CO20-'Real Estate'!$E$5","v":{"v":6349293.468358603,"d":"6,349,293"}},{"$f":"Equities!CM16+'T Bills'!CM16+'T Bonds'!CM16+'Real Estate'!CP20-'Real Estate'!$E$5","v":{"v":4991456.46019747,"d":"4,991,456"}},{"$f":"Equities!CN16+'T Bills'!CN16+'T Bonds'!CN16+'Real Estate'!CQ20-'Real Estate'!$E$5","v":{"v":7894074.309119648,"d":"7,894,074"}},{"$f":"Equities!CO16+'T Bills'!CO16+'T Bonds'!CO16+'Real Estate'!CR20-'Real Estate'!$E$5","v":{"v":3094817.3854029244,"d":"3,094,817"}},{"$f":"Equities!CP16+'T Bills'!CP16+'T Bonds'!CP16+'Real Estate'!CS20-'Real Estate'!$E$5","v":{"v":646036.3008676369,"d":"646,036"}},{"$f":"Equities!CQ16+'T Bills'!CQ16+'T Bonds'!CQ16+'Real Estate'!CT20-'Real Estate'!$E$5","v":{"v":2380912.7779502748,"d":"2,380,913"}},{"$f":"Equities!CR16+'T Bills'!CR16+'T Bonds'!CR16+'Real Estate'!CU20-'Real Estate'!$E$5","v":{"v":6050960.131606644,"d":"6,050,960"}},{"$f":"Equities!CS16+'T Bills'!CS16+'T Bonds'!CS16+'Real Estate'!CV20-'Real Estate'!$E$5","v":{"v":3494203.0040585804,"d":"3,494,203"}},{"$f":"Equities!CT16+'T Bills'!CT16+'T Bonds'!CT16+'Real Estate'!CW20-'Real Estate'!$E$5","v":{"v":1883405.241223323,"d":"1,883,405"}},{"$f":"Equities!CU16+'T Bills'!CU16+'T Bonds'!CU16+'Real Estate'!CX20-'Real Estate'!$E$5","v":{"v":11670670.347267104,"d":"11,670,670"}},{"$f":"Equities!CV16+'T Bills'!CV16+'T Bonds'!CV16+'Real Estate'!CY20-'Real Estate'!$E$5","v":{"v":4640079.058784775,"d":"4,640,079"}},{"$f":"Equities!CW16+'T Bills'!CW16+'T Bonds'!CW16+'Real Estate'!CZ20-'Real Estate'!$E$5","v":{"v":972189.9399612593,"d":"972,190"}},{"$f":"Equities!CX16+'T Bills'!CX16+'T Bonds'!CX16+'Real Estate'!DA20-'Real Estate'!$E$5","v":{"v":2279340.396526342,"d":"2,279,340"}}]
[{"$f":"Main!A23","v":"2038-12-30"},84,{"$f":"Equities!C17+'T Bills'!C17+'T Bonds'!C17+'Real Estate'!F21-'Real Estate'!$E$5","v":{"v":1840079.0145901816,"d":"1,840,079"}},{"$f":"Equities!D17+'T Bills'!D17+'T Bonds'!D17+'Real Estate'!G21-'Real Estate'!$E$5","v":{"v":1873865.0231697315,"d":"1,873,865"}},{"$f":"Equities!E17+'T Bills'!E17+'T Bonds'!E17+'Real Estate'!H21-'Real Estate'!$E$5","v":{"v":3767000.4080529604,"d":"3,767,000"}},{"$f":"Equities!F17+'T Bills'!F17+'T Bonds'!F17+'Real Estate'!I21-'Real Estate'!$E$5","v":{"v":6146660.064717943,"d":"6,146,660"}},{"$f":"Equities!G17+'T Bills'!G17+'T Bonds'!G17+'Real Estate'!J21-'Real Estate'!$E$5","v":{"v":10678465.934772287,"d":"10,678,466"}},{"$f":"Equities!H17+'T Bills'!H17+'T Bonds'!H17+'Real Estate'!K21-'Real Estate'!$E$5","v":{"v":2553489.1790285343,"d":"2,553,489"}},{"$f":"Equities!I17+'T Bills'!I17+'T Bonds'!I17+'Real Estate'!L21-'Real Estate'!$E$5","v":{"v":1880029.8577269046,"d":"1,880,030"}},{"$f":"Equities!J17+'T Bills'!J17+'T Bonds'!J17+'Real Estate'!M21-'Real Estate'!$E$5","v":{"v":1832366.3865999987,"d":"1,832,366"}},{"$f":"Equities!K17+'T Bills'!K17+'T Bonds'!K17+'Real Estate'!N21-'Real Estate'!$E$5","v":{"v":3523167.9719568407,"d":"3,523,168"}},{"$f":"Equities!L17+'T Bills'!L17+'T Bonds'!L17+'Real Estate'!O21-'Real Estate'!$E$5","v":{"v":5867250.384945903,"d":"5,867,250"}},{"$f":"Equities!M17+'T Bills'!M17+'T Bonds'!M17+'Real Estate'!P21-'Real Estate'!$E$5","v":{"v":1893453.8547017584,"d":"1,893,454"}},{"$f":"Equities!N17+'T Bills'!N17+'T Bonds'!N17+'Real Estate'!Q21-'Real Estate'!$E$5","v":{"v":583621.2175933424,"d":"583,621"}},{"$f":"Equities!O17+'T Bills'!O17+'T Bonds'!O17+'Real Estate'!R21-'Real Estate'!$E$5","v":{"v":3014237.7202732735,"d":"3,014,238"}},{"$f":"Equities!P17+'T Bills'!P17+'T Bonds'!P17+'Real Estate'!S21-'Real Estate'!$E$5","v":{"v":1434331.1185699324,"d":"1,434,331"}},{"$f":"Equities!Q17+'T Bills'!Q17+'T Bonds'!Q17+'Real Estate'!T21-'Real Estate'!$E$5","v":{"v":1402355.4288530794,"d":"1,402,355"}},{"$f":"Equities!R17+'T Bills'!R17+'T Bonds'!R17+'Real Estate'!U21-'Real Estate'!$E$5","v":{"v":2036082.9597969514,"d":"2,036,083"}},{"$f":"Equities!S17+'T Bills'!S17+'T Bonds'!S17+'Real Estate'!V21-'Real Estate'!$E$5","v":{"v":919634.8531151798,"d":"919,635"}},{"$f":"Equities!T17+'T Bills'!T17+'T Bonds'!T17+'Real Estate'!W21-'Real Estate'!$E$5","v":{"v":690844.963433133,"d":"690,845"}},{"$f":"Equities!U17+'T Bills'!U17+'T Bonds'!U17+'Real Estate'!X21-'Real Estate'!$E$5","v":{"v":1750646.002415361,"d":"1,750,646"}},{"$f":"Equities!V17+'T Bills'!V17+'T Bonds'!V17+'Real Estate'!Y21-'Real Estate'!$E$5","v":{"v":7987607.337494525,"d":"7,987,607"}},{"$f":"Equities!W17+'T Bills'!W17+'T Bonds'!W17+'Real Estate'!Z21-'Real Estate'!$E$5","v":{"v":5874064.407141499,"d":"5,874,064"}},{"$f":"Equities!X17+'T Bills'!X17+'T Bonds'!X17+'Real Estate'!AA21-'Real Estate'!$E$5","v":{"v":1729838.6810394663,"d":"1,729,839"}},{"$f":"Equities!Y17+'T Bills'!Y17+'T Bonds'!Y17+'Real Estate'!AB21-'Real Estate'!$E$5","v":{"v":1805971.4451572031,"d":"1,805,971"}},{"$f":"Equities!Z17+'T Bills'!Z17+'T Bonds'!Z17+'Real Estate'!AC21-'Real Estate'!$E$5","v":{"v":1882572.6206831476,"d":"1,882,573"}},{"$f":"Equities!AA17+'T Bills'!AA17+'T Bonds'!AA17+'Real Estate'!AD21-'Real Estate'!$E$5","v":{"v":2579765.993845224,"d":"2,579,766"}},{"$f":"Equities!AB17+'T Bills'!AB17+'T Bonds'!AB17+'Real Estate'!AE21-'Real Estate'!$E$5","v":{"v":1568665.8669140807,"d":"1,568,666"}},{"$f":"Equities!AC17+'T Bills'!AC17+'T Bonds'!AC17+'Real Estate'!AF21-'Real Estate'!$E$5","v":{"v":1434843.1746866503,"d":"1,434,843"}},{"$f":"Equities!AD17+'T Bills'!AD17+'T Bonds'!AD17+'Real Estate'!AG21-'Real Estate'!$E$5","v":{"v":2044212.042946474,"d":"2,044,212"}},{"$f":"Equities!AE17+'T Bills'!AE17+'T Bonds'!AE17+'Real Estate'!AH21-'Real Estate'!$E$5","v":{"v":1272657.7720656379,"d":"1,272,658"}},{"$f":"Equities!AF17+'T Bills'!AF17+'T Bonds'!AF17+'Real Estate'!AI21-'Real Estate'!$E$5","v":{"v":8921631.600136911,"d":"8,921,632"}},{"$f":"Equities!AG17+'T Bills'!AG17+'T Bonds'!AG17+'Real Estate'!AJ21-'Real Estate'!$E$5","v":{"v":8717533.254216764,"d":"8,717,533"}},{"$f":"Equities!AH17+'T Bills'!AH17+'T Bonds'!AH17+'Real Estate'!AK21-'Real Estate'!$E$5","v":{"v":3012777.4003663003,"d":"3,012,777"}},{"$f":"Equities!AI17+'T Bills'!AI17+'T Bonds'!AI17+'Real Estate'!AL21-'Real Estate'!$E$5","v":{"v":2611203.611568148,"d":"2,611,204"}},{"$f":"Equities!AJ17+'T Bills'!AJ17+'T Bonds'!AJ17+'Real Estate'!AM21-'Real Estate'!$E$5","v":{"v":3688792.630527781,"d":"3,688,793"}},{"$f":"Equities!AK17+'T Bills'!AK17+'T Bonds'!AK17+'Real Estate'!AN21-'Real Estate'!$E$5","v":{"v":1420230.3038648446,"d":"1,420,230"}},{"$f":"Equities!AL17+'T Bills'!AL17+'T Bonds'!AL17+'Real Estate'!AO21-'Real Estate'!$E$5","v":{"v":4060875.1778623695,"d":"4,060,875"}},{"$f":"Equities!AM17+'T Bills'!AM17+'T Bonds'!AM17+'Real Estate'!AP21-'Real Estate'!$E$5","v":{"v":855680.4610077215,"d":"855,680"}},{"$f":"Equities!AN17+'T Bills'!AN17+'T Bonds'!AN17+'Real Estate'!AQ21-'Real Estate'!$E$5","v":{"v":7646916.361340696,"d":"7,646,916"}},{"$f":"Equities!AO17+'T Bills'!AO17+'T Bonds'!AO17+'Real Estate'!AR21-'Real Estate'!$E$5","v":{"v":3086229.017020588,"d":"3,086,229"}},{"$f":"Equities!AP17+'T Bills'!AP17+'T Bonds'!AP17+'Real Estate'!AS21-'Real Estate'!$E$5","v":{"v":8557672.839981532,"d":"8,557,673"}},{"$f":"Equities!AQ17+'T Bills'!AQ17+'T Bonds'!AQ17+'Real Estate'!AT21-'Real Estate'!$E$5","v":{"v":897217.0008792893,"d":"897,217"}},{"$f":"Equities!AR17+'T Bills'!AR17+'T Bonds'!AR17+'Real Estate'!AU21-'Real Estate'!$E$5","v":{"v":4728385.407687088,"d":"4,728,385"}},{"$f":"Equities!AS17+'T Bills'!AS17+'T Bonds'!AS17+'Real Estate'!AV21-'Real Estate'!$E$5","v":{"v":2037376.0048101845,"d":"2,037,376"}},{"$f":"Equities!AT17+'T Bills'!AT17+'T Bonds'!AT17+'Real Estate'!AW21-'Real Estate'!$E$5","v":{"v":1308225.1026925512,"d":"1,308,225"}},{"$f":"Equities!AU17+'T Bills'!AU17+'T Bonds'!AU17+'Real Estate'!AX21-'Real Estate'!$E$5","v":{"v":2284061.448735562,"d":"2,284,061"}},{"$f":"Equities!AV17+'T Bills'!AV17+'T Bonds'!AV17+'Real Estate'!AY21-'Real Estate'!$E$5","v":{"v":5211640.2136360975,"d":"5,211,640"}},{"$f":"Equities!AW17+'T Bills'!AW17+'T Bonds'!AW17+'Real Estate'!AZ21-'Real Estate'!$E$5","v":{"v":1630553.643290393,"d":"1,630,554"}},{"$f":"Equities!AX17+'T Bills'!AX17+'T Bonds'!AX17+'Real Estate'!BA21-'Real Estate'!$E$5","v":{"v":5190827.38453993,"d":"5,190,827"}},{"$f":"Equities!AY17+'T Bills'!AY17+'T Bonds'!AY17+'Real Estate'!BB21-'Real Estate'!$E$5","v":{"v":4264430.640559941,"d":"4,264,431"}},{"$f":"Equities!AZ17+'T Bills'!AZ17+'T Bonds'!AZ17+'Real Estate'!BC21-'Real Estate'!$E$5","v":{"v":826528.214368612,"d":"826,528"}},{"$f":"Equities!BA17+'T Bills'!BA17+'T Bonds'!BA17+'Real Estate'!BD21-'Real Estate'!$E$5","v":{"v":530638.4665141094,"d":"530,638"}},{"$f":"Equities!BB17+'T Bills'!BB17+'T Bonds'!BB17+'Real Estate'!BE21-'Real Estate'!$E$5","v":{"v":1033384.4670561044,"d":"1,033,384"}},{"$f":"Equities!BC17+'T Bills'!BC17+'T Bonds'!BC17+'Real Estate'!BF21-'Real Estate'!$E$5","v":{"v":2164331.1714394437,"d":"2,164,331"}},{"$f":"Equities!BD17+'T Bills'!BD17+'T Bonds'!BD17+'Real Estate'!BG21-'Real Estate'!$E$5","v":{"v":2889402.82689343,"d":"2,889,403"}},{"$f":"Equities!BE17+'T Bills'!BE17+'T Bonds'!BE17+'Real Estate'!BH21-'Real Estate'!$E$5","v":{"v":2192436.08993271,"d":"2,192,436"}},{"$f":"Equities!BF17+'T Bills'!BF17+'T Bonds'!BF17+'Real Estate'!BI21-'Real Estate'!$E$5","v":{"v":608138.5321122573,"d":"608,139"}},{"$f":"Equities!BG17+'T Bills'!BG17+'T Bonds'!BG17+'Real Estate'!BJ21-'Real Estate'!$E$5","v":{"v":1015017.280597091,"d":"1,015,017"}},{"$f":"Equities!BH17+'T Bills'!BH17+'T Bonds'!BH17+'Real Estate'!BK21-'Real Estate'!$E$5","v":{"v":1161912.5857787235,"d":"1,161,913"}},{"$f":"Equities!BI17+'T Bills'!BI17+'T Bonds'!BI17+'Real Estate'!BL21-'Real Estate'!$E$5","v":{"v":4340570.880951916,"d":"4,340,571"}},{"$f":"Equities!BJ17+'T Bills'!BJ17+'T Bonds'!BJ17+'Real Estate'!BM21-'Real Estate'!$E$5","v":{"v":1635531.7567118898,"d":"1,635,532"}},{"$f":"Equities!BK17+'T Bills'!BK17+'T Bonds'!BK17+'Real Estate'!BN21-'Real Estate'!$E$5","v":{"v":1716965.9197039,"d":"1,716,966"}},{"$f":"Equities!BL17+'T Bills'!BL17+'T Bonds'!BL17+'Real Estate'!BO21-'Real Estate'!$E$5","v":{"v":3613016.2593008303,"d":"3,613,016"}},{"$f":"Equities!BM17+'T Bills'!BM17+'T Bonds'!BM17+'Real Estate'!BP21-'Real Estate'!$E$5","v":{"v":969455.3025299583,"d":"969,455"}},{"$f":"Equities!BN17+'T Bills'!BN17+'T Bonds'!BN17+'Real Estate'!BQ21-'Real Estate'!$E$5","v":{"v":5086188.302693229,"d":"5,086,188"}},{"$f":"Equities!BO17+'T Bills'!BO17+'T Bonds'!BO17+'Real Estate'!BR21-'Real Estate'!$E$5","v":{"v":2053491.0865215075,"d":"2,053,491"}},{"$f":"Equities!BP17+'T Bills'!BP17+'T Bonds'!BP17+'Real Estate'!BS21-'Real Estate'!$E$5","v":{"v":4369815.883467426,"d":"4,369,816"}},{"$f":"Equities!BQ17+'T Bills'!BQ17+'T Bonds'!BQ17+'Real Estate'!BT21-'Real Estate'!$E$5","v":{"v":1485280.861838789,"d":"1,485,281"}},{"$f":"Equities!BR17+'T Bills'!BR17+'T Bonds'!BR17+'Real Estate'!BU21-'Real Estate'!$E$5","v":{"v":7068161.176420168,"d":"7,068,161"}},{"$f":"Equities!BS17+'T Bills'!BS17+'T Bonds'!BS17+'Real Estate'!BV21-'Real Estate'!$E$5","v":{"v":3775871.262487482,"d":"3,775,871"}},{"$f":"Equities!BT17+'T Bills'!BT17+'T Bonds'!BT17+'Real Estate'!BW21-'Real Estate'!$E$5","v":{"v":861508.5990392801,"d":"861,509"}},{"$f":"Equities!BU17+'T Bills'!BU17+'T Bonds'!BU17+'Real Estate'!BX21-'Real Estate'!$E$5","v":{"v":1138961.619205886,"d":"1,138,962"}},{"$f":"Equities!BV17+'T Bills'!BV17+'T Bonds'!BV17+'Real Estate'!BY21-'Real Estate'!$E$5","v":{"v":2569521.7212353,"d":"2,569,522"}},{"$f":"Equities!BW17+'T Bills'!BW17+'T Bonds'!BW17+'Real Estate'!BZ21-'Real Estate'!$E$5","v":{"v":814411.0469313583,"d":"814,411"}},{"$f":"Equities!BX17+'T Bills'!BX17+'T Bonds'!BX17+'Real Estate'!CA21-'Real Estate'!$E$5","v":{"v":2642214.707354955,"d":"2,642,215"}},{"$f":"Equities!BY17+'T Bills'!BY17+'T Bonds'!BY17+'Real Estate'!CB21-'Real Estate'!$E$5","v":{"v":3510522.7133242013,"d":"3,510,523"}},{"$f":"Equities!BZ17+'T Bills'!BZ17+'T Bonds'!BZ17+'Real Estate'!CC21-'Real Estate'!$E$5","v":{"v":1146315.5862795252,"d":"1,146,316"}},{"$f":"Equities!CA17+'T Bills'!CA17+'T Bonds'!CA17+'Real Estate'!CD21-'Real Estate'!$E$5","v":{"v":1619273.543950505,"d":"1,619,274"}},{"$f":"Equities!CB17+'T Bills'!CB17+'T Bonds'!CB17+'Real Estate'!CE21-'Real Estate'!$E$5","v":{"v":1148654.5765104527,"d":"1,148,655"}},{"$f":"Equities!CC17+'T Bills'!CC17+'T Bonds'!CC17+'Real Estate'!CF21-'Real Estate'!$E$5","v":{"v":2407890.9377283417,"d":"2,407,891"}},{"$f":"Equities!CD17+'T Bills'!CD17+'T Bonds'!CD17+'Real Estate'!CG21-'Real Estate'!$E$5","v":{"v":7324787.926953081,"d":"7,324,788"}},{"$f":"Equities!CE17+'T Bills'!CE17+'T Bonds'!CE17+'Real Estate'!CH21-'Real Estate'!$E$5","v":{"v":4540397.105925474,"d":"4,540,397"}},{"$f":"Equities!CF17+'T Bills'!CF17+'T Bonds'!CF17+'Real Estate'!CI21-'Real Estate'!$E$5","v":{"v":1987616.5856165409,"d":"1,987,617"}},{"$f":"Equities!CG17+'T Bills'!CG17+'T Bonds'!CG17+'Real Estate'!CJ21-'Real Estate'!$E$5","v":{"v":4627328.225583612,"d":"4,627,328"}},{"$f":"Equities!CH17+'T Bills'!CH17+'T Bonds'!CH17+'Real Estate'!CK21-'Real Estate'!$E$5","v":{"v":3312418.857259222,"d":"3,312,419"}},{"$f":"Equities!CI17+'T Bills'!CI17+'T Bonds'!CI17+'Real Estate'!CL21-'Real Estate'!$E$5","v":{"v":2002967.0444589073,"d":"2,002,967"}},{"$f":"Equities!CJ17+'T Bills'!CJ17+'T Bonds'!CJ17+'Real Estate'!CM21-'Real Estate'!$E$5","v":{"v":9809012.946331913,"d":"9,809,013"}},{"$f":"Equities!CK17+'T Bills'!CK17+'T Bonds'!CK17+'Real Estate'!CN21-'Real Estate'!$E$5","v":{"v":2889562.111246406,"d":"2,889,562"}},{"$f":"Equities!CL17+'T Bills'!CL17+'T Bonds'!CL17+'Real Estate'!CO21-'Real Estate'!$E$5","v":{"v":7600286.404747204,"d":"7,600,286"}},{"$f":"Equities!CM17+'T Bills'!CM17+'T Bonds'!CM17+'Real Estate'!CP21-'Real Estate'!$E$5","v":{"v":5762431.824518493,"d":"5,762,432"}},{"$f":"Equities!CN17+'T Bills'!CN17+'T Bonds'!CN17+'Real Estate'!CQ21-'Real Estate'!$E$5","v":{"v":9476780.40120918,"d":"9,476,780"}},{"$f":"Equities!CO17+'T Bills'!CO17+'T Bonds'!CO17+'Real Estate'!CR21-'Real Estate'!$E$5","v":{"v":3845084.1186182024,"d":"3,845,084"}},{"$f":"Equities!CP17+'T Bills'!CP17+'T Bonds'!CP17+'Real Estate'!CS21-'Real Estate'!$E$5","v":{"v":592670.9288559537,"d":"592,671"}},{"$f":"Equities!CQ17+'T Bills'!CQ17+'T Bonds'!CQ17+'Real Estate'!CT21-'Real Estate'!$E$5","v":{"v":2679512.1413810584,"d":"2,679,512"}},{"$f":"Equities!CR17+'T Bills'!CR17+'T Bonds'!CR17+'Real Estate'!CU21-'Real Estate'!$E$5","v":{"v":6046405.13395175,"d":"6,046,405"}},{"$f":"Equities!CS17+'T Bills'!CS17+'T Bonds'!CS17+'Real Estate'!CV21-'Real Estate'!$E$5","v":{"v":4021159.177239272,"d":"4,021,159"}},{"$f":"Equities!CT17+'T Bills'!CT17+'T Bonds'!CT17+'Real Estate'!CW21-'Real Estate'!$E$5","v":{"v":2241014.223787092,"d":"2,241,014"}},{"$f":"Equities!CU17+'T Bills'!CU17+'T Bonds'!CU17+'Real Estate'!CX21-'Real Estate'!$E$5","v":{"v":12782843.839804513,"d":"12,782,844"}},{"$f":"Equities!CV17+'T Bills'!CV17+'T Bonds'!CV17+'Real Estate'!CY21-'Real Estate'!$E$5","v":{"v":5364703.993234477,"d":"5,364,704"}},{"$f":"Equities!CW17+'T Bills'!CW17+'T Bonds'!CW17+'Real Estate'!CZ21-'Real Estate'!$E$5","v":{"v":1032035.090196949,"d":"1,032,035"}},{"$f":"Equities!CX17+'T Bills'!CX17+'T Bonds'!CX17+'Real Estate'!DA21-'Real Estate'!$E$5","v":{"v":2828915.4615758,"d":"2,828,915"}}]
[{"$f":"Main!A24","v":"2039-12-31"},85,{"$f":"Equities!C18+'T Bills'!C18+'T Bonds'!C18+'Real Estate'!F22-'Real Estate'!$E$5","v":{"v":1727533.184827947,"d":"1,727,533"}},{"$f":"Equities!D18+'T Bills'!D18+'T Bonds'!D18+'Real Estate'!G22-'Real Estate'!$E$5","v":{"v":1933001.6139278805,"d":"1,933,002"}},{"$f":"Equities!E18+'T Bills'!E18+'T Bonds'!E18+'Real Estate'!H22-'Real Estate'!$E$5","v":{"v":2990534.802798361,"d":"2,990,535"}},{"$f":"Equities!F18+'T Bills'!F18+'T Bonds'!F18+'Real Estate'!I22-'Real Estate'!$E$5","v":{"v":7734207.357401905,"d":"7,734,207"}},{"$f":"Equities!G18+'T Bills'!G18+'T Bonds'!G18+'Real Estate'!J22-'Real Estate'!$E$5","v":{"v":12801334.94309644,"d":"12,801,335"}},{"$f":"Equities!H18+'T Bills'!H18+'T Bonds'!H18+'Real Estate'!K22-'Real Estate'!$E$5","v":{"v":2878127.505221647,"d":"2,878,128"}},{"$f":"Equities!I18+'T Bills'!I18+'T Bonds'!I18+'Real Estate'!L22-'Real Estate'!$E$5","v":{"v":1326813.541603812,"d":"1,326,814"}},{"$f":"Equities!J18+'T Bills'!J18+'T Bonds'!J18+'Real Estate'!M22-'Real Estate'!$E$5","v":{"v":1915554.7561312646,"d":"1,915,555"}},{"$f":"Equities!K18+'T Bills'!K18+'T Bonds'!K18+'Real Estate'!N22-'Real Estate'!$E$5","v":{"v":3229049.9588576406,"d":"3,229,050"}},{"$f":"Equities!L18+'T Bills'!L18+'T Bonds'!L18+'Real Estate'!O22-'Real Estate'!$E$5","v":{"v":6822139.820205276,"d":"6,822,140"}},{"$f":"Equities!M18+'T Bills'!M18+'T Bonds'!M18+'Real Estate'!P22-'Real Estate'!$E$5","v":{"v":2343208.1592757287,"d":"2,343,208"}},{"$f":"Equities!N18+'T Bills'!N18+'T Bonds'!N18+'Real Estate'!Q22-'Real Estate'!$E$5","v":{"v":505732.01406319597,"d":"505,732"}},{"$f":"Equities!O18+'T Bills'!O18+'T Bonds'!O18+'Real Estate'!R22-'Real Estate'!$E$5","v":{"v":3215983.071877867,"d":"3,215,983"}},{"$f":"Equities!P18+'T Bills'!P18+'T Bonds'!P18+'Real Estate'!S22-'Real Estate'!$E$5","v":{"v":1611223.592277971,"d":"1,611,224"}},{"$f":"Equities!Q18+'T Bills'!Q18+'T Bonds'!Q18+'Real Estate'!T22-'Real Estate'!$E$5","v":{"v":1377922.978351837,"d":"1,377,923"}},{"$f":"Equities!R18+'T Bills'!R18+'T Bonds'!R18+'Real Estate'!U22-'Real Estate'!$E$5","v":{"v":1964400.2203740843,"d":"1,964,400"}},{"$f":"Equities!S18+'T Bills'!S18+'T Bonds'!S18+'Real Estate'!V22-'Real Estate'!$E$5","v":{"v":967977.3856237126,"d":"967,977"}},{"$f":"Equities!T18+'T Bills'!T18+'T Bonds'!T18+'Real Estate'!W22-'Real Estate'!$E$5","v":{"v":653797.33699063,"d":"653,797"}},{"$f":"Equities!U18+'T Bills'!U18+'T Bonds'!U18+'Real Estate'!X22-'Real Estate'!$E$5","v":{"v":1950192.3744569875,"d":"1,950,192"}},{"$f":"Equities!V18+'T Bills'!V18+'T Bonds'!V18+'Real Estate'!Y22-'Real Estate'!$E$5","v":{"v":9170381.724224234,"d":"9,170,382"}},{"$f":"Equities!W18+'T Bills'!W18+'T Bonds'!W18+'Real Estate'!Z22-'Real Estate'!$E$5","v":{"v":6268837.448531862,"d":"6,268,837"}},{"$f":"Equities!X18+'T Bills'!X18+'T Bonds'!X18+'Real Estate'!AA22-'Real Estate'!$E$5","v":{"v":1886523.8190902348,"d":"1,886,524"}},{"$f":"Equities!Y18+'T Bills'!Y18+'T Bonds'!Y18+'Real Estate'!AB22-'Real Estate'!$E$5","v":{"v":2190009.234983157,"d":"2,190,009"}},{"$f":"Equities!Z18+'T Bills'!Z18+'T Bonds'!Z18+'Real Estate'!AC22-'Real Estate'!$E$5","v":{"v":1687208.4262101299,"d":"1,687,208"}},{"$f":"Equities!AA18+'T Bills'!AA18+'T Bonds'!AA18+'Real Estate'!AD22-'Real Estate'!$E$5","v":{"v":2468366.67624077,"d":"2,468,367"}},{"$f":"Equities!AB18+'T Bills'!AB18+'T Bonds'!AB18+'Real Estate'!AE22-'Real Estate'!$E$5","v":{"v":1718338.4516274275,"d":"1,718,338"}},{"$f":"Equities!AC18+'T Bills'!AC18+'T Bonds'!AC18+'Real Estate'!AF22-'Real Estate'!$E$5","v":{"v":1405692.2989670835,"d":"1,405,692"}},{"$f":"Equities!AD18+'T Bills'!AD18+'T Bonds'!AD18+'Real Estate'!AG22-'Real Estate'!$E$5","v":{"v":2159968.5941604655,"d":"2,159,969"}},{"$f":"Equities!AE18+'T Bills'!AE18+'T Bonds'!AE18+'Real Estate'!AH22-'Real Estate'!$E$5","v":{"v":1225449.5774534214,"d":"1,225,450"}},{"$f":"Equities!AF18+'T Bills'!AF18+'T Bonds'!AF18+'Real Estate'!AI22-'Real Estate'!$E$5","v":{"v":8846959.799147466,"d":"8,846,960"}},{"$f":"Equities!AG18+'T Bills'!AG18+'T Bonds'!AG18+'Real Estate'!AJ22-'Real Estate'!$E$5","v":{"v":8628854.44592952,"d":"8,628,854"}},{"$f":"Equities!AH18+'T Bills'!AH18+'T Bonds'!AH18+'Real Estate'!AK22-'Real Estate'!$E$5","v":{"v":2865011.139711938,"d":"2,865,011"}},{"$f":"Equities!AI18+'T Bills'!AI18+'T Bonds'!AI18+'Real Estate'!AL22-'Real Estate'!$E$5","v":{"v":2894515.592805809,"d":"2,894,516"}},{"$f":"Equities!AJ18+'T Bills'!AJ18+'T Bonds'!AJ18+'Real Estate'!AM22-'Real Estate'!$E$5","v":{"v":4369064.216634336,"d":"4,369,064"}},{"$f":"Equities!AK18+'T Bills'!AK18+'T Bonds'!AK18+'Real Estate'!AN22-'Real Estate'!$E$5","v":{"v":1361112.383313064,"d":"1,361,112"}},{"$f":"Equities!AL18+'T Bills'!AL18+'T Bonds'!AL18+'Real Estate'!AO22-'Real Estate'!$E$5","v":{"v":4210076.091014511,"d":"4,210,076"}},{"$f":"Equities!AM18+'T Bills'!AM18+'T Bonds'!AM18+'Real Estate'!AP22-'Real Estate'!$E$5","v":{"v":909479.620145692,"d":"909,480"}},{"$f":"Equities!AN18+'T Bills'!AN18+'T Bonds'!AN18+'Real Estate'!AQ22-'Real Estate'!$E$5","v":{"v":8470644.291060511,"d":"8,470,644"}},{"$f":"Equities!AO18+'T Bills'!AO18+'T Bonds'!AO18+'Real Estate'!AR22-'Real Estate'!$E$5","v":{"v":3509734.868024615,"d":"3,509,735"}},{"$f":"Equities!AP18+'T Bills'!AP18+'T Bonds'!AP18+'Real Estate'!AS22-'Real Estate'!$E$5","v":{"v":11007737.70563344,"d":"11,007,738"}},{"$f":"Equities!AQ18+'T Bills'!AQ18+'T Bonds'!AQ18+'Real Estate'!AT22-'Real Estate'!$E$5","v":{"v":910457.5365795186,"d":"910,458"}},{"$f":"Equities!AR18+'T Bills'!AR18+'T Bonds'!AR18+'Real Estate'!AU22-'Real Estate'!$E$5","v":{"v":4914750.154674395,"d":"4,914,750"}},{"$f":"Equities!AS18+'T Bills'!AS18+'T Bonds'!AS18+'Real Estate'!AV22-'Real Estate'!$E$5","v":{"v":2270648.599728706,"d":"2,270,649"}},{"$f":"Equities!AT18+'T Bills'!AT18+'T Bonds'!AT18+'Real Estate'!AW22-'Real Estate'!$E$5","v":{"v":1358256.8382239956,"d":"1,358,257"}},{"$f":"Equities!AU18+'T Bills'!AU18+'T Bonds'!AU18+'Real Estate'!AX22-'Real Estate'!$E$5","v":{"v":2579436.517726606,"d":"2,579,437"}},{"$f":"Equities!AV18+'T Bills'!AV18+'T Bonds'!AV18+'Real Estate'!AY22-'Real Estate'!$E$5","v":{"v":6568255.88634415,"d":"6,568,256"}},{"$f":"Equities!AW18+'T Bills'!AW18+'T Bonds'!AW18+'Real Estate'!AZ22-'Real Estate'!$E$5","v":{"v":1642889.187524154,"d":"1,642,889"}},{"$f":"Equities!AX18+'T Bills'!AX18+'T Bonds'!AX18+'Real Estate'!BA22-'Real Estate'!$E$5","v":{"v":6415690.932426055,"d":"6,415,691"}},{"$f":"Equities!AY18+'T Bills'!AY18+'T Bonds'!AY18+'Real Estate'!BB22-'Real Estate'!$E$5","v":{"v":5566703.871621122,"d":"5,566,704"}},{"$f":"Equities!AZ18+'T Bills'!AZ18+'T Bonds'!AZ18+'Real Estate'!BC22-'Real Estate'!$E$5","v":{"v":804430.004632541,"d":"804,430"}},{"$f":"Equities!BA18+'T Bills'!BA18+'T Bonds'!BA18+'Real Estate'!BD22-'Real Estate'!$E$5","v":{"v":437546.51152743,"d":"437,547"}},{"$f":"Equities!BB18+'T Bills'!BB18+'T Bonds'!BB18+'Real Estate'!BE22-'Real Estate'!$E$5","v":{"v":999447.0611472235,"d":"999,447"}},{"$f":"Equities!BC18+'T Bills'!BC18+'T Bonds'!BC18+'Real Estate'!BF22-'Real Estate'!$E$5","v":{"v":2330547.3184515713,"d":"2,330,547"}},{"$f":"Equities!BD18+'T Bills'!BD18+'T Bonds'!BD18+'Real Estate'!BG22-'Real Estate'!$E$5","v":{"v":3640773.0734560536,"d":"3,640,773"}},{"$f":"Equities!BE18+'T Bills'!BE18+'T Bonds'!BE18+'Real Estate'!BH22-'Real Estate'!$E$5","v":{"v":2453159.444966293,"d":"2,453,159"}},{"$f":"Equities!BF18+'T Bills'!BF18+'T Bonds'!BF18+'Real Estate'!BI22-'Real Estate'!$E$5","v":{"v":694373.315744004,"d":"694,373"}},{"$f":"Equities!BG18+'T Bills'!BG18+'T Bonds'!BG18+'Real Estate'!BJ22-'Real Estate'!$E$5","v":{"v":785075.8710892932,"d":"785,076"}},{"$f":"Equities!BH18+'T Bills'!BH18+'T Bonds'!BH18+'Real Estate'!BK22-'Real Estate'!$E$5","v":{"v":1242827.8399772844,"d":"1,242,828"}},{"$f":"Equities!BI18+'T Bills'!BI18+'T Bonds'!BI18+'Real Estate'!BL22-'Real Estate'!$E$5","v":{"v":4916303.641744076,"d":"4,916,304"}},{"$f":"Equities!BJ18+'T Bills'!BJ18+'T Bonds'!BJ18+'Real Estate'!BM22-'Real Estate'!$E$5","v":{"v":1740128.3183820497,"d":"1,740,128"}},{"$f":"Equities!BK18+'T Bills'!BK18+'T Bonds'!BK18+'Real Estate'!BN22-'Real Estate'!$E$5","v":{"v":1715056.6639603546,"d":"1,715,057"}},{"$f":"Equities!BL18+'T Bills'!BL18+'T Bonds'!BL18+'Real Estate'!BO22-'Real Estate'!$E$5","v":{"v":3883993.3723093923,"d":"3,883,993"}},{"$f":"Equities!BM18+'T Bills'!BM18+'T Bonds'!BM18+'Real Estate'!BP22-'Real Estate'!$E$5","v":{"v":997640.4031578517,"d":"997,640"}},{"$f":"Equities!BN18+'T Bills'!BN18+'T Bonds'!BN18+'Real Estate'!BQ22-'Real Estate'!$E$5","v":{"v":6509878.021509728,"d":"6,509,878"}},{"$f":"Equities!BO18+'T Bills'!BO18+'T Bonds'!BO18+'Real Estate'!BR22-'Real Estate'!$E$5","v":{"v":2471292.953544556,"d":"2,471,293"}},{"$f":"Equities!BP18+'T Bills'!BP18+'T Bonds'!BP18+'Real Estate'!BS22-'Real Estate'!$E$5","v":{"v":5411643.600080088,"d":"5,411,644"}},{"$f":"Equities!BQ18+'T Bills'!BQ18+'T Bonds'!BQ18+'Real Estate'!BT22-'Real Estate'!$E$5","v":{"v":1798020.61090144,"d":"1,798,021"}},{"$f":"Equities!BR18+'T Bills'!BR18+'T Bonds'!BR18+'Real Estate'!BU22-'Real Estate'!$E$5","v":{"v":8183802.4966759235,"d":"8,183,802"}},{"$f":"Equities!BS18+'T Bills'!BS18+'T Bonds'!BS18+'Real Estate'!BV22-'Real Estate'!$E$5","v":{"v":4173614.921272983,"d":"4,173,615"}},{"$f":"Equities!BT18+'T Bills'!BT18+'T Bonds'!BT18+'Real Estate'!BW22-'Real Estate'!$E$5","v":{"v":869432.7465656936,"d":"869,433"}},{"$f":"Equities!BU18+'T Bills'!BU18+'T Bonds'!BU18+'Real Estate'!BX22-'Real Estate'!$E$5","v":{"v":1085318.673721411,"d":"1,085,319"}},{"$f":"Equities!BV18+'T Bills'!BV18+'T Bonds'!BV18+'Real Estate'!BY22-'Real Estate'!$E$5","v":{"v":1866683.6806119801,"d":"1,866,684"}},{"$f":"Equities!BW18+'T Bills'!BW18+'T Bonds'!BW18+'Real Estate'!BZ22-'Real Estate'!$E$5","v":{"v":807907.7161039175,"d":"807,908"}},{"$f":"Equities!BX18+'T Bills'!BX18+'T Bonds'!BX18+'Real Estate'!CA22-'Real Estate'!$E$5","v":{"v":3278587.655882181,"d":"3,278,588"}},{"$f":"Equities!BY18+'T Bills'!BY18+'T Bonds'!BY18+'Real Estate'!CB22-'Real Estate'!$E$5","v":{"v":4335955.293282682,"d":"4,335,955"}},{"$f":"Equities!BZ18+'T Bills'!BZ18+'T Bonds'!BZ18+'Real Estate'!CC22-'Real Estate'!$E$5","v":{"v":1168501.4580176973,"d":"1,168,501"}},{"$f":"Equities!CA18+'T Bills'!CA18+'T Bonds'!CA18+'Real Estate'!CD22-'Real Estate'!$E$5","v":{"v":1371757.0673898568,"d":"1,371,757"}},{"$f":"Equities!CB18+'T Bills'!CB18+'T Bonds'!CB18+'Real Estate'!CE22-'Real Estate'!$E$5","v":{"v":1070554.0986990693,"d":"1,070,554"}},{"$f":"Equities!CC18+'T Bills'!CC18+'T Bonds'!CC18+'Real Estate'!CF22-'Real Estate'!$E$5","v":{"v":2481517.865880414,"d":"2,481,518"}},{"$f":"Equities!CD18+'T Bills'!CD18+'T Bonds'!CD18+'Real Estate'!CG22-'Real Estate'!$E$5","v":{"v":8209830.601388322,"d":"8,209,831"}},{"$f":"Equities!CE18+'T Bills'!CE18+'T Bonds'!CE18+'Real Estate'!CH22-'Real Estate'!$E$5","v":{"v":6535267.126481091,"d":"6,535,267"}},{"$f":"Equities!CF18+'T Bills'!CF18+'T Bonds'!CF18+'Real Estate'!CI22-'Real Estate'!$E$5","v":{"v":1826274.4047903905,"d":"1,826,274"}},{"$f":"Equities!CG18+'T Bills'!CG18+'T Bonds'!CG18+'Real Estate'!CJ22-'Real Estate'!$E$5","v":{"v":4235877.754835686,"d":"4,235,878"}},{"$f":"Equities!CH18+'T Bills'!CH18+'T Bonds'!CH18+'Real Estate'!CK22-'Real Estate'!$E$5","v":{"v":3895799.637185677,"d":"3,895,800"}},{"$f":"Equities!CI18+'T Bills'!CI18+'T Bonds'!CI18+'Real Estate'!CL22-'Real Estate'!$E$5","v":{"v":2066747.4804352706,"d":"2,066,747"}},{"$f":"Equities!CJ18+'T Bills'!CJ18+'T Bonds'!CJ18+'Real Estate'!CM22-'Real Estate'!$E$5","v":{"v":11243363.428790579,"d":"11,243,363"}},{"$f":"Equities!CK18+'T Bills'!CK18+'T Bonds'!CK18+'Real Estate'!CN22-'Real Estate'!$E$5","v":{"v":3297832.5394713,"d":"3,297,833"}},{"$f":"Equities!CL18+'T Bills'!CL18+'T Bonds'!CL18+'Real Estate'!CO22-'Real Estate'!$E$5","v":{"v":7955341.581105834,"d":"7,955,342"}},{"$f":"Equities!CM18+'T Bills'!CM18+'T Bonds'!CM18+'Real Estate'!CP22-'Real Estate'!$E$5","v":{"v":5672980.219915143,"d":"5,672,980"}},{"$f":"Equities!CN18+'T Bills'!CN18+'T Bonds'!CN18+'Real Estate'!CQ22-'Real Estate'!$E$5","v":{"v":11848535.106658164,"d":"11,848,535"}},{"$f":"Equities!CO18+'T Bills'!CO18+'T Bonds'!CO18+'Real Estate'!CR22-'Real Estate'!$E$5","v":{"v":4294670.258697012,"d":"4,294,670"}},{"$f":"Equities!CP18+'T Bills'!CP18+'T Bonds'!CP18+'Real Estate'!CS22-'Real Estate'!$E$5","v":{"v":561393.0130080692,"d":"561,393"}},{"$f":"Equities!CQ18+'T Bills'!CQ18+'T Bonds'!CQ18+'Real Estate'!CT22-'Real Estate'!$E$5","v":{"v":2902315.1270801397,"d":"2,902,315"}},{"$f":"Equities!CR18+'T Bills'!CR18+'T Bonds'!CR18+'Real Estate'!CU22-'Real Estate'!$E$5","v":{"v":5510384.316845457,"d":"5,510,384"}},{"$f":"Equities!CS18+'T Bills'!CS18+'T Bonds'!CS18+'Real Estate'!CV22-'Real Estate'!$E$5","v":{"v":4214618.719849887,"d":"4,214,619"}},{"$f":"Equities!CT18+'T Bills'!CT18+'T Bonds'!CT18+'Real Estate'!CW22-'Real Estate'!$E$5","v":{"v":2331837.0953482576,"d":"2,331,837"}},{"$f":"Equities!CU18+'T Bills'!CU18+'T Bonds'!CU18+'Real Estate'!CX22-'Real Estate'!$E$5","v":{"v":11794473.569990164,"d":"11,794,474"}},{"$f":"Equities!CV18+'T Bills'!CV18+'T Bonds'!CV18+'Real Estate'!CY22-'Real Estate'!$E$5","v":{"v":4782221.354460733,"d":"4,782,221"}},{"$f":"Equities!CW18+'T Bills'!CW18+'T Bonds'!CW18+'Real Estate'!CZ22-'Real Estate'!$E$5","v":{"v":977271.3485854042,"d":"977,271"}},{"$f":"Equities!CX18+'T Bills'!CX18+'T Bonds'!CX18+'Real Estate'!DA22-'Real Estate'!$E$5","v":{"v":3008461.0504513374,"d":"3,008,461"}}]
[{"$f":"Main!A25","v":"2040-12-30"},86,{"$f":"Equities!C19+'T Bills'!C19+'T Bonds'!C19+'Real Estate'!F23-'Real Estate'!$E$5","v":{"v":2073460.0000732157,"d":"2,073,460"}},{"$f":"Equities!D19+'T Bills'!D19+'T Bonds'!D19+'Real Estate'!G23-'Real Estate'!$E$5","v":{"v":1962749.2973030796,"d":"1,962,749"}},{"$f":"Equities!E19+'T Bills'!E19+'T Bonds'!E19+'Real Estate'!H23-'Real Estate'!$E$5","v":{"v":2759911.6370475045,"d":"2,759,912"}},{"$f":"Equities!F19+'T Bills'!F19+'T Bonds'!F19+'Real Estate'!I23-'Real Estate'!$E$5","v":{"v":8430776.268082388,"d":"8,430,776"}},{"$f":"Equities!G19+'T Bills'!G19+'T Bonds'!G19+'Real Estate'!J23-'Real Estate'!$E$5","v":{"v":13426754.744676152,"d":"13,426,755"}},{"$f":"Equities!H19+'T Bills'!H19+'T Bonds'!H19+'Real Estate'!K23-'Real Estate'!$E$5","v":{"v":3042517.4945604764,"d":"3,042,517"}},{"$f":"Equities!I19+'T Bills'!I19+'T Bonds'!I19+'Real Estate'!L23-'Real Estate'!$E$5","v":{"v":1608991.5236119141,"d":"1,608,992"}},{"$f":"Equities!J19+'T Bills'!J19+'T Bonds'!J19+'Real Estate'!M23-'Real Estate'!$E$5","v":{"v":2228000.6937405374,"d":"2,228,001"}},{"$f":"Equities!K19+'T Bills'!K19+'T Bonds'!K19+'Real Estate'!N23-'Real Estate'!$E$5","v":{"v":3652906.232283411,"d":"3,652,906"}},{"$f":"Equities!L19+'T Bills'!L19+'T Bonds'!L19+'Real Estate'!O23-'Real Estate'!$E$5","v":{"v":7472599.393225534,"d":"7,472,599"}},{"$f":"Equities!M19+'T Bills'!M19+'T Bonds'!M19+'Real Estate'!P23-'Real Estate'!$E$5","v":{"v":2494491.737637681,"d":"2,494,492"}},{"$f":"Equities!N19+'T Bills'!N19+'T Bonds'!N19+'Real Estate'!Q23-'Real Estate'!$E$5","v":{"v":612514.1659985691,"d":"612,514"}},{"$f":"Equities!O19+'T Bills'!O19+'T Bonds'!O19+'Real Estate'!R23-'Real Estate'!$E$5","v":{"v":2993286.2642641827,"d":"2,993,286"}},{"$f":"Equities!P19+'T Bills'!P19+'T Bonds'!P19+'Real Estate'!S23-'Real Estate'!$E$5","v":{"v":1740838.372643347,"d":"1,740,838"}},{"$f":"Equities!Q19+'T Bills'!Q19+'T Bonds'!Q19+'Real Estate'!T23-'Real Estate'!$E$5","v":{"v":1444384.191597725,"d":"1,444,384"}},{"$f":"Equities!R19+'T Bills'!R19+'T Bonds'!R19+'Real Estate'!U23-'Real Estate'!$E$5","v":{"v":2430855.4365328574,"d":"2,430,855"}},{"$f":"Equities!S19+'T Bills'!S19+'T Bonds'!S19+'Real Estate'!V23-'Real Estate'!$E$5","v":{"v":1019392.2114479514,"d":"1,019,392"}},{"$f":"Equities!T19+'T Bills'!T19+'T Bonds'!T19+'Real Estate'!W23-'Real Estate'!$E$5","v":{"v":633094.2746571517,"d":"633,094"}},{"$f":"Equities!U19+'T Bills'!U19+'T Bonds'!U19+'Real Estate'!X23-'Real Estate'!$E$5","v":{"v":1627238.8765046399,"d":"1,627,239"}},{"$f":"Equities!V19+'T Bills'!V19+'T Bonds'!V19+'Real Estate'!Y23-'Real Estate'!$E$5","v":{"v":6368433.761745658,"d":"6,368,434"}},{"$f":"Equities!W19+'T Bills'!W19+'T Bonds'!W19+'Real Estate'!Z23-'Real Estate'!$E$5","v":{"v":6828971.231965561,"d":"6,828,971"}},{"$f":"Equities!X19+'T Bills'!X19+'T Bonds'!X19+'Real Estate'!AA23-'Real Estate'!$E$5","v":{"v":2192610.1580380863,"d":"2,192,610"}},{"$f":"Equities!Y19+'T Bills'!Y19+'T Bonds'!Y19+'Real Estate'!AB23-'Real Estate'!$E$5","v":{"v":2156966.439801648,"d":"2,156,966"}},{"$f":"Equities!Z19+'T Bills'!Z19+'T Bonds'!Z19+'Real Estate'!AC23-'Real Estate'!$E$5","v":{"v":1569021.2417649564,"d":"1,569,021"}},{"$f":"Equities!AA19+'T Bills'!AA19+'T Bonds'!AA19+'Real Estate'!AD23-'Real Estate'!$E$5","v":{"v":3125375.726246546,"d":"3,125,376"}},{"$f":"Equities!AB19+'T Bills'!AB19+'T Bonds'!AB19+'Real Estate'!AE23-'Real Estate'!$E$5","v":{"v":1901881.5655059712,"d":"1,901,882"}},{"$f":"Equities!AC19+'T Bills'!AC19+'T Bonds'!AC19+'Real Estate'!AF23-'Real Estate'!$E$5","v":{"v":1484651.0929705242,"d":"1,484,651"}},{"$f":"Equities!AD19+'T Bills'!AD19+'T Bonds'!AD19+'Real Estate'!AG23-'Real Estate'!$E$5","v":{"v":1907574.3622266331,"d":"1,907,574"}},{"$f":"Equities!AE19+'T Bills'!AE19+'T Bonds'!AE19+'Real Estate'!AH23-'Real Estate'!$E$5","v":{"v":1218474.439421934,"d":"1,218,474"}},{"$f":"Equities!AF19+'T Bills'!AF19+'T Bonds'!AF19+'Real Estate'!AI23-'Real Estate'!$E$5","v":{"v":11057715.836012814,"d":"11,057,716"}},{"$f":"Equities!AG19+'T Bills'!AG19+'T Bonds'!AG19+'Real Estate'!AJ23-'Real Estate'!$E$5","v":{"v":10976720.695421532,"d":"10,976,721"}},{"$f":"Equities!AH19+'T Bills'!AH19+'T Bonds'!AH19+'Real Estate'!AK23-'Real Estate'!$E$5","v":{"v":2805973.676418606,"d":"2,805,974"}},{"$f":"Equities!AI19+'T Bills'!AI19+'T Bonds'!AI19+'Real Estate'!AL23-'Real Estate'!$E$5","v":{"v":3087067.6278413422,"d":"3,087,068"}},{"$f":"Equities!AJ19+'T Bills'!AJ19+'T Bonds'!AJ19+'Real Estate'!AM23-'Real Estate'!$E$5","v":{"v":4357576.408109296,"d":"4,357,576"}},{"$f":"Equities!AK19+'T Bills'!AK19+'T Bonds'!AK19+'Real Estate'!AN23-'Real Estate'!$E$5","v":{"v":1371579.4774182148,"d":"1,371,579"}},{"$f":"Equities!AL19+'T Bills'!AL19+'T Bonds'!AL19+'Real Estate'!AO23-'Real Estate'!$E$5","v":{"v":3514807.631863728,"d":"3,514,808"}},{"$f":"Equities!AM19+'T Bills'!AM19+'T Bonds'!AM19+'Real Estate'!AP23-'Real Estate'!$E$5","v":{"v":862386.9428632617,"d":"862,387"}},{"$f":"Equities!AN19+'T Bills'!AN19+'T Bonds'!AN19+'Real Estate'!AQ23-'Real Estate'!$E$5","v":{"v":9331944.820027635,"d":"9,331,945"}},{"$f":"Equities!AO19+'T Bills'!AO19+'T Bonds'!AO19+'Real Estate'!AR23-'Real Estate'!$E$5","v":{"v":3944255.8343579825,"d":"3,944,256"}},{"$f":"Equities!AP19+'T Bills'!AP19+'T Bonds'!AP19+'Real Estate'!AS23-'Real Estate'!$E$5","v":{"v":11614123.333519427,"d":"11,614,123"}},{"$f":"Equities!AQ19+'T Bills'!AQ19+'T Bonds'!AQ19+'Real Estate'!AT23-'Real Estate'!$E$5","v":{"v":951920.02372149,"d":"951,920"}},{"$f":"Equities!AR19+'T Bills'!AR19+'T Bonds'!AR19+'Real Estate'!AU23-'Real Estate'!$E$5","v":{"v":4859555.662241226,"d":"4,859,556"}},{"$f":"Equities!AS19+'T Bills'!AS19+'T Bonds'!AS19+'Real Estate'!AV23-'Real Estate'!$E$5","v":{"v":2410028.80350009,"d":"2,410,029"}},{"$f":"Equities!AT19+'T Bills'!AT19+'T Bonds'!AT19+'Real Estate'!AW23-'Real Estate'!$E$5","v":{"v":1291344.2335499635,"d":"1,291,344"}},{"$f":"Equities!AU19+'T Bills'!AU19+'T Bonds'!AU19+'Real Estate'!AX23-'Real Estate'!$E$5","v":{"v":3309857.2078708434,"d":"3,309,857"}},{"$f":"Equities!AV19+'T Bills'!AV19+'T Bonds'!AV19+'Real Estate'!AY23-'Real Estate'!$E$5","v":{"v":6810928.273868813,"d":"6,810,928"}},{"$f":"Equities!AW19+'T Bills'!AW19+'T Bonds'!AW19+'Real Estate'!AZ23-'Real Estate'!$E$5","v":{"v":1278826.8265688026,"d":"1,278,827"}},{"$f":"Equities!AX19+'T Bills'!AX19+'T Bonds'!AX19+'Real Estate'!BA23-'Real Estate'!$E$5","v":{"v":6636804.129166368,"d":"6,636,804"}},{"$f":"Equities!AY19+'T Bills'!AY19+'T Bonds'!AY19+'Real Estate'!BB23-'Real Estate'!$E$5","v":{"v":4950593.802214574,"d":"4,950,594"}},{"$f":"Equities!AZ19+'T Bills'!AZ19+'T Bonds'!AZ19+'Real Estate'!BC23-'Real Estate'!$E$5","v":{"v":819442.5385782511,"d":"819,443"}},{"$f":"Equities!BA19+'T Bills'!BA19+'T Bonds'!BA19+'Real Estate'!BD23-'Real Estate'!$E$5","v":{"v":399217.2570704805,"d":"399,217"}},{"$f":"Equities!BB19+'T Bills'!BB19+'T Bonds'!BB19+'Real Estate'!BE23-'Real Estate'!$E$5","v":{"v":1048920.741441541,"d":"1,048,921"}},{"$f":"Equities!BC19+'T Bills'!BC19+'T Bonds'!BC19+'Real Estate'!BF23-'Real Estate'!$E$5","v":{"v":2384621.228210313,"d":"2,384,621"}},{"$f":"Equities!BD19+'T Bills'!BD19+'T Bonds'!BD19+'Real Estate'!BG23-'Real Estate'!$E$5","v":{"v":4481121.771142908,"d":"4,481,122"}},{"$f":"Equities!BE19+'T Bills'!BE19+'T Bonds'!BE19+'Real Estate'!BH23-'Real Estate'!$E$5","v":{"v":2244070.264379143,"d":"2,244,070"}},{"$f":"Equities!BF19+'T Bills'!BF19+'T Bonds'!BF19+'Real Estate'!BI23-'Real Estate'!$E$5","v":{"v":760080.7826890298,"d":"760,081"}},{"$f":"Equities!BG19+'T Bills'!BG19+'T Bonds'!BG19+'Real Estate'!BJ23-'Real Estate'!$E$5","v":{"v":865983.2431377424,"d":"865,983"}},{"$f":"Equities!BH19+'T Bills'!BH19+'T Bonds'!BH19+'Real Estate'!BK23-'Real Estate'!$E$5","v":{"v":1397563.9594133517,"d":"1,397,564"}},{"$f":"Equities!BI19+'T Bills'!BI19+'T Bonds'!BI19+'Real Estate'!BL23-'Real Estate'!$E$5","v":{"v":5173548.481956335,"d":"5,173,548"}},{"$f":"Equities!BJ19+'T Bills'!BJ19+'T Bonds'!BJ19+'Real Estate'!BM23-'Real Estate'!$E$5","v":{"v":1688019.5083592702,"d":"1,688,020"}},{"$f":"Equities!BK19+'T Bills'!BK19+'T Bonds'!BK19+'Real Estate'!BN23-'Real Estate'!$E$5","v":{"v":1956123.4587386332,"d":"1,956,123"}},{"$f":"Equities!BL19+'T Bills'!BL19+'T Bonds'!BL19+'Real Estate'!BO23-'Real Estate'!$E$5","v":{"v":4147225.9433947476,"d":"4,147,226"}},{"$f":"Equities!BM19+'T Bills'!BM19+'T Bonds'!BM19+'Real Estate'!BP23-'Real Estate'!$E$5","v":{"v":949553.7256969598,"d":"949,554"}},{"$f":"Equities!BN19+'T Bills'!BN19+'T Bonds'!BN19+'Real Estate'!BQ23-'Real Estate'!$E$5","v":{"v":7333841.772122138,"d":"7,333,842"}},{"$f":"Equities!BO19+'T Bills'!BO19+'T Bonds'!BO19+'Real Estate'!BR23-'Real Estate'!$E$5","v":{"v":2809670.3997766995,"d":"2,809,670"}},{"$f":"Equities!BP19+'T Bills'!BP19+'T Bonds'!BP19+'Real Estate'!BS23-'Real Estate'!$E$5","v":{"v":5916839.408783236,"d":"5,916,839"}},{"$f":"Equities!BQ19+'T Bills'!BQ19+'T Bonds'!BQ19+'Real Estate'!BT23-'Real Estate'!$E$5","v":{"v":2243834.4131879723,"d":"2,243,834"}},{"$f":"Equities!BR19+'T Bills'!BR19+'T Bonds'!BR19+'Real Estate'!BU23-'Real Estate'!$E$5","v":{"v":8690640.885299236,"d":"8,690,641"}},{"$f":"Equities!BS19+'T Bills'!BS19+'T Bonds'!BS19+'Real Estate'!BV23-'Real Estate'!$E$5","v":{"v":5395341.360089264,"d":"5,395,341"}},{"$f":"Equities!BT19+'T Bills'!BT19+'T Bonds'!BT19+'Real Estate'!BW23-'Real Estate'!$E$5","v":{"v":888091.175981995,"d":"888,091"}},{"$f":"Equities!BU19+'T Bills'!BU19+'T Bonds'!BU19+'Real Estate'!BX23-'Real Estate'!$E$5","v":{"v":1138076.4795060374,"d":"1,138,076"}},{"$f":"Equities!BV19+'T Bills'!BV19+'T Bonds'!BV19+'Real Estate'!BY23-'Real Estate'!$E$5","v":{"v":1672578.4387888685,"d":"1,672,578"}},{"$f":"Equities!BW19+'T Bills'!BW19+'T Bonds'!BW19+'Real Estate'!BZ23-'Real Estate'!$E$5","v":{"v":799038.8596350839,"d":"799,039"}},{"$f":"Equities!BX19+'T Bills'!BX19+'T Bonds'!BX19+'Real Estate'!CA23-'Real Estate'!$E$5","v":{"v":4102841.779887448,"d":"4,102,842"}},{"$f":"Equities!BY19+'T Bills'!BY19+'T Bonds'!BY19+'Real Estate'!CB23-'Real Estate'!$E$5","v":{"v":5424062.243143873,"d":"5,424,062"}},{"$f":"Equities!BZ19+'T Bills'!BZ19+'T Bonds'!BZ19+'Real Estate'!CC23-'Real Estate'!$E$5","v":{"v":1274241.912649871,"d":"1,274,242"}},{"$f":"Equities!CA19+'T Bills'!CA19+'T Bonds'!CA19+'Real Estate'!CD23-'Real Estate'!$E$5","v":{"v":1373392.5046452703,"d":"1,373,393"}},{"$f":"Equities!CB19+'T Bills'!CB19+'T Bonds'!CB19+'Real Estate'!CE23-'Real Estate'!$E$5","v":{"v":1036665.0163164821,"d":"1,036,665"}},{"$f":"Equities!CC19+'T Bills'!CC19+'T Bonds'!CC19+'Real Estate'!CF23-'Real Estate'!$E$5","v":{"v":2462389.082580428,"d":"2,462,389"}},{"$f":"Equities!CD19+'T Bills'!CD19+'T Bonds'!CD19+'Real Estate'!CG23-'Real Estate'!$E$5","v":{"v":8272952.8695266815,"d":"8,272,953"}},{"$f":"Equities!CE19+'T Bills'!CE19+'T Bonds'!CE19+'Real Estate'!CH23-'Real Estate'!$E$5","v":{"v":7545194.840342212,"d":"7,545,195"}},{"$f":"Equities!CF19+'T Bills'!CF19+'T Bonds'!CF19+'Real Estate'!CI23-'Real Estate'!$E$5","v":{"v":1794112.5048526844,"d":"1,794,113"}},{"$f":"Equities!CG19+'T Bills'!CG19+'T Bonds'!CG19+'Real Estate'!CJ23-'Real Estate'!$E$5","v":{"v":3756387.9626050727,"d":"3,756,388"}},{"$f":"Equities!CH19+'T Bills'!CH19+'T Bonds'!CH19+'Real Estate'!CK23-'Real Estate'!$E$5","v":{"v":2827171.0657322346,"d":"2,827,171"}},{"$f":"Equities!CI19+'T Bills'!CI19+'T Bonds'!CI19+'Real Estate'!CL23-'Real Estate'!$E$5","v":{"v":1929090.0447880707,"d":"1,929,090"}},{"$f":"Equities!CJ19+'T Bills'!CJ19+'T Bonds'!CJ19+'Real Estate'!CM23-'Real Estate'!$E$5","v":{"v":14267125.58161649,"d":"14,267,126"}},{"$f":"Equities!CK19+'T Bills'!CK19+'T Bonds'!CK19+'Real Estate'!CN23-'Real Estate'!$E$5","v":{"v":3362463.9561660094,"d":"3,362,464"}},{"$f":"Equities!CL19+'T Bills'!CL19+'T Bonds'!CL19+'Real Estate'!CO23-'Real Estate'!$E$5","v":{"v":8392068.99627614,"d":"8,392,069"}},{"$f":"Equities!CM19+'T Bills'!CM19+'T Bonds'!CM19+'Real Estate'!CP23-'Real Estate'!$E$5","v":{"v":6878836.403530585,"d":"6,878,836"}},{"$f":"Equities!CN19+'T Bills'!CN19+'T Bonds'!CN19+'Real Estate'!CQ23-'Real Estate'!$E$5","v":{"v":10709712.679418689,"d":"10,709,713"}},{"$f":"Equities!CO19+'T Bills'!CO19+'T Bonds'!CO19+'Real Estate'!CR23-'Real Estate'!$E$5","v":{"v":4904009.120262802,"d":"4,904,009"}},{"$f":"Equities!CP19+'T Bills'!CP19+'T Bonds'!CP19+'Real Estate'!CS23-'Real Estate'!$E$5","v":{"v":471431.07116239524,"d":"471,431"}},{"$f":"Equities!CQ19+'T Bills'!CQ19+'T Bonds'!CQ19+'Real Estate'!CT23-'Real Estate'!$E$5","v":{"v":2694330.6528311223,"d":"2,694,331"}},{"$f":"Equities!CR19+'T Bills'!CR19+'T Bonds'!CR19+'Real Estate'!CU23-'Real Estate'!$E$5","v":{"v":6946699.758165956,"d":"6,946,700"}},{"$f":"Equities!CS19+'T Bills'!CS19+'T Bonds'!CS19+'Real Estate'!CV23-'Real Estate'!$E$5","v":{"v":5006530.342190094,"d":"5,006,530"}},{"$f":"Equities!CT19+'T Bills'!CT19+'T Bonds'!CT19+'Real Estate'!CW23-'Real Estate'!$E$5","v":{"v":2603717.695115597,"d":"2,603,718"}},{"$f":"Equities!CU19+'T Bills'!CU19+'T Bonds'!CU19+'Real Estate'!CX23-'Real Estate'!$E$5","v":{"v":14210010.4932233,"d":"14,210,010"}},{"$f":"Equities!CV19+'T Bills'!CV19+'T Bonds'!CV19+'Real Estate'!CY23-'Real Estate'!$E$5","v":{"v":5617828.17403122,"d":"5,617,828"}},{"$f":"Equities!CW19+'T Bills'!CW19+'T Bonds'!CW19+'Real Estate'!CZ23-'Real Estate'!$E$5","v":{"v":1005048.3150687953,"d":"1,005,048"}},{"$f":"Equities!CX19+'T Bills'!CX19+'T Bonds'!CX19+'Real Estate'!DA23-'Real Estate'!$E$5","v":{"v":3396723.6249056947,"d":"3,396,724"}}]
[{"$f":"Main!A26","v":"2041-12-30"},87,{"$f":"Equities!C20+'T Bills'!C20+'T Bonds'!C20+'Real Estate'!F24-'Real Estate'!$E$5","v":{"v":2155878.5550096724,"d":"2,155,879"}},{"$f":"Equities!D20+'T Bills'!D20+'T Bonds'!D20+'Real Estate'!G24-'Real Estate'!$E$5","v":{"v":1651649.7342638746,"d":"1,651,650"}},{"$f":"Equities!E20+'T Bills'!E20+'T Bonds'!E20+'Real Estate'!H24-'Real Estate'!$E$5","v":{"v":3531760.6827084096,"d":"3,531,761"}},{"$f":"Equities!F20+'T Bills'!F20+'T Bonds'!F20+'Real Estate'!I24-'Real Estate'!$E$5","v":{"v":7814164.377017008,"d":"7,814,164"}},{"$f":"Equities!G20+'T Bills'!G20+'T Bonds'!G20+'Real Estate'!J24-'Real Estate'!$E$5","v":{"v":13302344.46589366,"d":"13,302,344"}},{"$f":"Equities!H20+'T Bills'!H20+'T Bonds'!H20+'Real Estate'!K24-'Real Estate'!$E$5","v":{"v":3102395.2512185085,"d":"3,102,395"}},{"$f":"Equities!I20+'T Bills'!I20+'T Bonds'!I20+'Real Estate'!L24-'Real Estate'!$E$5","v":{"v":1839472.0450435893,"d":"1,839,472"}},{"$f":"Equities!J20+'T Bills'!J20+'T Bonds'!J20+'Real Estate'!M24-'Real Estate'!$E$5","v":{"v":2303407.531506712,"d":"2,303,408"}},{"$f":"Equities!K20+'T Bills'!K20+'T Bonds'!K20+'Real Estate'!N24-'Real Estate'!$E$5","v":{"v":3761642.0267352136,"d":"3,761,642"}},{"$f":"Equities!L20+'T Bills'!L20+'T Bonds'!L20+'Real Estate'!O24-'Real Estate'!$E$5","v":{"v":6531675.36763275,"d":"6,531,675"}},{"$f":"Equities!M20+'T Bills'!M20+'T Bonds'!M20+'Real Estate'!P24-'Real Estate'!$E$5","v":{"v":2469475.461086249,"d":"2,469,475"}},{"$f":"Equities!N20+'T Bills'!N20+'T Bonds'!N20+'Real Estate'!Q24-'Real Estate'!$E$5","v":{"v":440443.4387074868,"d":"440,443"}},{"$f":"Equities!O20+'T Bills'!O20+'T Bonds'!O20+'Real Estate'!R24-'Real Estate'!$E$5","v":{"v":2791577.7152012205,"d":"2,791,578"}},{"$f":"Equities!P20+'T Bills'!P20+'T Bonds'!P20+'Real Estate'!S24-'Real Estate'!$E$5","v":{"v":1859201.9790843802,"d":"1,859,202"}},{"$f":"Equities!Q20+'T Bills'!Q20+'T Bonds'!Q20+'Real Estate'!T24-'Real Estate'!$E$5","v":{"v":1607078.4277605847,"d":"1,607,078"}},{"$f":"Equities!R20+'T Bills'!R20+'T Bonds'!R20+'Real Estate'!U24-'Real Estate'!$E$5","v":{"v":2234043.2347341874,"d":"2,234,043"}},{"$f":"Equities!S20+'T Bills'!S20+'T Bonds'!S20+'Real Estate'!V24-'Real Estate'!$E$5","v":{"v":949326.1533790205,"d":"949,326"}},{"$f":"Equities!T20+'T Bills'!T20+'T Bonds'!T20+'Real Estate'!W24-'Real Estate'!$E$5","v":{"v":557476.4130552366,"d":"557,476"}},{"$f":"Equities!U20+'T Bills'!U20+'T Bonds'!U20+'Real Estate'!X24-'Real Estate'!$E$5","v":{"v":1854632.435130989,"d":"1,854,632"}},{"$f":"Equities!V20+'T Bills'!V20+'T Bonds'!V20+'Real Estate'!Y24-'Real Estate'!$E$5","v":{"v":6645030.73816973,"d":"6,645,031"}},{"$f":"Equities!W20+'T Bills'!W20+'T Bonds'!W20+'Real Estate'!Z24-'Real Estate'!$E$5","v":{"v":6329968.201860759,"d":"6,329,968"}},{"$f":"Equities!X20+'T Bills'!X20+'T Bonds'!X20+'Real Estate'!AA24-'Real Estate'!$E$5","v":{"v":2076314.6069135123,"d":"2,076,315"}},{"$f":"Equities!Y20+'T Bills'!Y20+'T Bonds'!Y20+'Real Estate'!AB24-'Real Estate'!$E$5","v":{"v":2371849.50894107,"d":"2,371,850"}},{"$f":"Equities!Z20+'T Bills'!Z20+'T Bonds'!Z20+'Real Estate'!AC24-'Real Estate'!$E$5","v":{"v":1514201.2877150127,"d":"1,514,201"}},{"$f":"Equities!AA20+'T Bills'!AA20+'T Bonds'!AA20+'Real Estate'!AD24-'Real Estate'!$E$5","v":{"v":3883864.2636013962,"d":"3,883,864"}},{"$f":"Equities!AB20+'T Bills'!AB20+'T Bonds'!AB20+'Real Estate'!AE24-'Real Estate'!$E$5","v":{"v":2340074.552649172,"d":"2,340,075"}},{"$f":"Equities!AC20+'T Bills'!AC20+'T Bonds'!AC20+'Real Estate'!AF24-'Real Estate'!$E$5","v":{"v":1641948.441872965,"d":"1,641,948"}},{"$f":"Equities!AD20+'T Bills'!AD20+'T Bonds'!AD20+'Real Estate'!AG24-'Real Estate'!$E$5","v":{"v":1890429.293264218,"d":"1,890,429"}},{"$f":"Equities!AE20+'T Bills'!AE20+'T Bonds'!AE20+'Real Estate'!AH24-'Real Estate'!$E$5","v":{"v":1218324.2935579997,"d":"1,218,324"}},{"$f":"Equities!AF20+'T Bills'!AF20+'T Bonds'!AF20+'Real Estate'!AI24-'Real Estate'!$E$5","v":{"v":11550557.406417172,"d":"11,550,557"}},{"$f":"Equities!AG20+'T Bills'!AG20+'T Bonds'!AG20+'Real Estate'!AJ24-'Real Estate'!$E$5","v":{"v":14099229.524270637,"d":"14,099,230"}},{"$f":"Equities!AH20+'T Bills'!AH20+'T Bonds'!AH20+'Real Estate'!AK24-'Real Estate'!$E$5","v":{"v":2554406.325750395,"d":"2,554,406"}},{"$f":"Equities!AI20+'T Bills'!AI20+'T Bonds'!AI20+'Real Estate'!AL24-'Real Estate'!$E$5","v":{"v":3541009.536603721,"d":"3,541,010"}},{"$f":"Equities!AJ20+'T Bills'!AJ20+'T Bonds'!AJ20+'Real Estate'!AM24-'Real Estate'!$E$5","v":{"v":5367800.18188125,"d":"5,367,800"}},{"$f":"Equities!AK20+'T Bills'!AK20+'T Bonds'!AK20+'Real Estate'!AN24-'Real Estate'!$E$5","v":{"v":1343806.97524711,"d":"1,343,807"}},{"$f":"Equities!AL20+'T Bills'!AL20+'T Bonds'!AL20+'Real Estate'!AO24-'Real Estate'!$E$5","v":{"v":3151371.327900146,"d":"3,151,371"}},{"$f":"Equities!AM20+'T Bills'!AM20+'T Bonds'!AM20+'Real Estate'!AP24-'Real Estate'!$E$5","v":{"v":776447.4855160606,"d":"776,447"}},{"$f":"Equities!AN20+'T Bills'!AN20+'T Bonds'!AN20+'Real Estate'!AQ24-'Real Estate'!$E$5","v":{"v":5562188.808874967,"d":"5,562,189"}},{"$f":"Equities!AO20+'T Bills'!AO20+'T Bonds'!AO20+'Real Estate'!AR24-'Real Estate'!$E$5","v":{"v":3707255.823935206,"d":"3,707,256"}},{"$f":"Equities!AP20+'T Bills'!AP20+'T Bonds'!AP20+'Real Estate'!AS24-'Real Estate'!$E$5","v":{"v":12128036.821635462,"d":"12,128,037"}},{"$f":"Equities!AQ20+'T Bills'!AQ20+'T Bonds'!AQ20+'Real Estate'!AT24-'Real Estate'!$E$5","v":{"v":982146.0340533154,"d":"982,146"}},{"$f":"Equities!AR20+'T Bills'!AR20+'T Bonds'!AR20+'Real Estate'!AU24-'Real Estate'!$E$5","v":{"v":5018568.106276765,"d":"5,018,568"}},{"$f":"Equities!AS20+'T Bills'!AS20+'T Bonds'!AS20+'Real Estate'!AV24-'Real Estate'!$E$5","v":{"v":2472464.582957576,"d":"2,472,465"}},{"$f":"Equities!AT20+'T Bills'!AT20+'T Bonds'!AT20+'Real Estate'!AW24-'Real Estate'!$E$5","v":{"v":1329470.3992096505,"d":"1,329,470"}},{"$f":"Equities!AU20+'T Bills'!AU20+'T Bonds'!AU20+'Real Estate'!AX24-'Real Estate'!$E$5","v":{"v":3951260.1539982595,"d":"3,951,260"}},{"$f":"Equities!AV20+'T Bills'!AV20+'T Bonds'!AV20+'Real Estate'!AY24-'Real Estate'!$E$5","v":{"v":4642666.053727877,"d":"4,642,666"}},{"$f":"Equities!AW20+'T Bills'!AW20+'T Bonds'!AW20+'Real Estate'!AZ24-'Real Estate'!$E$5","v":{"v":1223729.1488913817,"d":"1,223,729"}},{"$f":"Equities!AX20+'T Bills'!AX20+'T Bonds'!AX20+'Real Estate'!BA24-'Real Estate'!$E$5","v":{"v":4594634.612845404,"d":"4,594,635"}},{"$f":"Equities!AY20+'T Bills'!AY20+'T Bonds'!AY20+'Real Estate'!BB24-'Real Estate'!$E$5","v":{"v":5624791.944800917,"d":"5,624,792"}},{"$f":"Equities!AZ20+'T Bills'!AZ20+'T Bonds'!AZ20+'Real Estate'!BC24-'Real Estate'!$E$5","v":{"v":839088.5080483954,"d":"839,089"}},{"$f":"Equities!BA20+'T Bills'!BA20+'T Bonds'!BA20+'Real Estate'!BD24-'Real Estate'!$E$5","v":{"v":347763.06899139984,"d":"347,763"}},{"$f":"Equities!BB20+'T Bills'!BB20+'T Bonds'!BB20+'Real Estate'!BE24-'Real Estate'!$E$5","v":{"v":1050218.490451114,"d":"1,050,218"}},{"$f":"Equities!BC20+'T Bills'!BC20+'T Bonds'!BC20+'Real Estate'!BF24-'Real Estate'!$E$5","v":{"v":2449763.1291395915,"d":"2,449,763"}},{"$f":"Equities!BD20+'T Bills'!BD20+'T Bonds'!BD20+'Real Estate'!BG24-'Real Estate'!$E$5","v":{"v":4175738.7854541764,"d":"4,175,739"}},{"$f":"Equities!BE20+'T Bills'!BE20+'T Bonds'!BE20+'Real Estate'!BH24-'Real Estate'!$E$5","v":{"v":2848212.1021859054,"d":"2,848,212"}},{"$f":"Equities!BF20+'T Bills'!BF20+'T Bonds'!BF20+'Real Estate'!BI24-'Real Estate'!$E$5","v":{"v":665771.9704445327,"d":"665,772"}},{"$f":"Equities!BG20+'T Bills'!BG20+'T Bonds'!BG20+'Real Estate'!BJ24-'Real Estate'!$E$5","v":{"v":810816.0038278454,"d":"810,816"}},{"$f":"Equities!BH20+'T Bills'!BH20+'T Bonds'!BH20+'Real Estate'!BK24-'Real Estate'!$E$5","v":{"v":1770915.0719831353,"d":"1,770,915"}},{"$f":"Equities!BI20+'T Bills'!BI20+'T Bonds'!BI20+'Real Estate'!BL24-'Real Estate'!$E$5","v":{"v":5378317.297501703,"d":"5,378,317"}},{"$f":"Equities!BJ20+'T Bills'!BJ20+'T Bonds'!BJ20+'Real Estate'!BM24-'Real Estate'!$E$5","v":{"v":1654798.9885408164,"d":"1,654,799"}},{"$f":"Equities!BK20+'T Bills'!BK20+'T Bonds'!BK20+'Real Estate'!BN24-'Real Estate'!$E$5","v":{"v":2231111.92565797,"d":"2,231,112"}},{"$f":"Equities!BL20+'T Bills'!BL20+'T Bonds'!BL20+'Real Estate'!BO24-'Real Estate'!$E$5","v":{"v":3845069.650933752,"d":"3,845,070"}},{"$f":"Equities!BM20+'T Bills'!BM20+'T Bonds'!BM20+'Real Estate'!BP24-'Real Estate'!$E$5","v":{"v":969695.84503814,"d":"969,696"}},{"$f":"Equities!BN20+'T Bills'!BN20+'T Bonds'!BN20+'Real Estate'!BQ24-'Real Estate'!$E$5","v":{"v":8203985.458102284,"d":"8,203,985"}},{"$f":"Equities!BO20+'T Bills'!BO20+'T Bonds'!BO20+'Real Estate'!BR24-'Real Estate'!$E$5","v":{"v":3264815.4070848967,"d":"3,264,815"}},{"$f":"Equities!BP20+'T Bills'!BP20+'T Bonds'!BP20+'Real Estate'!BS24-'Real Estate'!$E$5","v":{"v":3622957.3044683016,"d":"3,622,957"}},{"$f":"Equities!BQ20+'T Bills'!BQ20+'T Bonds'!BQ20+'Real Estate'!BT24-'Real Estate'!$E$5","v":{"v":2155851.110167285,"d":"2,155,851"}},{"$f":"Equities!BR20+'T Bills'!BR20+'T Bonds'!BR20+'Real Estate'!BU24-'Real Estate'!$E$5","v":{"v":10129438.380894195,"d":"10,129,438"}},{"$f":"Equities!BS20+'T Bills'!BS20+'T Bonds'!BS20+'Real Estate'!BV24-'Real Estate'!$E$5","v":{"v":6166500.801336316,"d":"6,166,501"}},{"$f":"Equities!BT20+'T Bills'!BT20+'T Bonds'!BT20+'Real Estate'!BW24-'Real Estate'!$E$5","v":{"v":906827.4534390803,"d":"906,827"}},{"$f":"Equities!BU20+'T Bills'!BU20+'T Bonds'!BU20+'Real Estate'!BX24-'Real Estate'!$E$5","v":{"v":1143786.8062798989,"d":"1,143,787"}},{"$f":"Equities!BV20+'T Bills'!BV20+'T Bonds'!BV20+'Real Estate'!BY24-'Real Estate'!$E$5","v":{"v":1895305.7461284313,"d":"1,895,306"}},{"$f":"Equities!BW20+'T Bills'!BW20+'T Bonds'!BW20+'Real Estate'!BZ24-'Real Estate'!$E$5","v":{"v":700323.1266326527,"d":"700,323"}},{"$f":"Equities!BX20+'T Bills'!BX20+'T Bonds'!BX20+'Real Estate'!CA24-'Real Estate'!$E$5","v":{"v":3789631.8088855473,"d":"3,789,632"}},{"$f":"Equities!BY20+'T Bills'!BY20+'T Bonds'!BY20+'Real Estate'!CB24-'Real Estate'!$E$5","v":{"v":6664879.645744068,"d":"6,664,880"}},{"$f":"Equities!BZ20+'T Bills'!BZ20+'T Bonds'!BZ20+'Real Estate'!CC24-'Real Estate'!$E$5","v":{"v":1306818.1742692145,"d":"1,306,818"}},{"$f":"Equities!CA20+'T Bills'!CA20+'T Bonds'!CA20+'Real Estate'!CD24-'Real Estate'!$E$5","v":{"v":1476492.8664212404,"d":"1,476,493"}},{"$f":"Equities!CB20+'T Bills'!CB20+'T Bonds'!CB20+'Real Estate'!CE24-'Real Estate'!$E$5","v":{"v":998116.2091130824,"d":"998,116"}},{"$f":"Equities!CC20+'T Bills'!CC20+'T Bonds'!CC20+'Real Estate'!CF24-'Real Estate'!$E$5","v":{"v":3005511.3415701874,"d":"3,005,511"}},{"$f":"Equities!CD20+'T Bills'!CD20+'T Bonds'!CD20+'Real Estate'!CG24-'Real Estate'!$E$5","v":{"v":8715105.009663563,"d":"8,715,105"}},{"$f":"Equities!CE20+'T Bills'!CE20+'T Bonds'!CE20+'Real Estate'!CH24-'Real Estate'!$E$5","v":{"v":7225297.268193802,"d":"7,225,297"}},{"$f":"Equities!CF20+'T Bills'!CF20+'T Bonds'!CF20+'Real Estate'!CI24-'Real Estate'!$E$5","v":{"v":1986712.4876176727,"d":"1,986,712"}},{"$f":"Equities!CG20+'T Bills'!CG20+'T Bonds'!CG20+'Real Estate'!CJ24-'Real Estate'!$E$5","v":{"v":3172298.9806376603,"d":"3,172,299"}},{"$f":"Equities!CH20+'T Bills'!CH20+'T Bonds'!CH20+'Real Estate'!CK24-'Real Estate'!$E$5","v":{"v":3304578.584371985,"d":"3,304,579"}},{"$f":"Equities!CI20+'T Bills'!CI20+'T Bonds'!CI20+'Real Estate'!CL24-'Real Estate'!$E$5","v":{"v":1946785.800613955,"d":"1,946,786"}},{"$f":"Equities!CJ20+'T Bills'!CJ20+'T Bonds'!CJ20+'Real Estate'!CM24-'Real Estate'!$E$5","v":{"v":18010341.146728404,"d":"18,010,341"}},{"$f":"Equities!CK20+'T Bills'!CK20+'T Bonds'!CK20+'Real Estate'!CN24-'Real Estate'!$E$5","v":{"v":3912008.1140964343,"d":"3,912,008"}},{"$f":"Equities!CL20+'T Bills'!CL20+'T Bonds'!CL20+'Real Estate'!CO24-'Real Estate'!$E$5","v":{"v":10534200.570567666,"d":"10,534,201"}},{"$f":"Equities!CM20+'T Bills'!CM20+'T Bonds'!CM20+'Real Estate'!CP24-'Real Estate'!$E$5","v":{"v":6393788.211228371,"d":"6,393,788"}},{"$f":"Equities!CN20+'T Bills'!CN20+'T Bonds'!CN20+'Real Estate'!CQ24-'Real Estate'!$E$5","v":{"v":13095282.615312116,"d":"13,095,283"}},{"$f":"Equities!CO20+'T Bills'!CO20+'T Bonds'!CO20+'Real Estate'!CR24-'Real Estate'!$E$5","v":{"v":5479483.5130453035,"d":"5,479,484"}},{"$f":"Equities!CP20+'T Bills'!CP20+'T Bonds'!CP20+'Real Estate'!CS24-'Real Estate'!$E$5","v":{"v":406922.99226916867,"d":"406,923"}},{"$f":"Equities!CQ20+'T Bills'!CQ20+'T Bonds'!CQ20+'Real Estate'!CT24-'Real Estate'!$E$5","v":{"v":2886483.923727422,"d":"2,886,484"}},{"$f":"Equities!CR20+'T Bills'!CR20+'T Bonds'!CR20+'Real Estate'!CU24-'Real Estate'!$E$5","v":{"v":9224759.651000863,"d":"9,224,760"}},{"$f":"Equities!CS20+'T Bills'!CS20+'T Bonds'!CS20+'Real Estate'!CV24-'Real Estate'!$E$5","v":{"v":5791745.965688497,"d":"5,791,746"}},{"$f":"Equities!CT20+'T Bills'!CT20+'T Bonds'!CT20+'Real Estate'!CW24-'Real Estate'!$E$5","v":{"v":2789373.458722045,"d":"2,789,373"}},{"$f":"Equities!CU20+'T Bills'!CU20+'T Bonds'!CU20+'Real Estate'!CX24-'Real Estate'!$E$5","v":{"v":17041910.642599273,"d":"17,041,911"}},{"$f":"Equities!CV20+'T Bills'!CV20+'T Bonds'!CV20+'Real Estate'!CY24-'Real Estate'!$E$5","v":{"v":6439695.960286976,"d":"6,439,696"}},{"$f":"Equities!CW20+'T Bills'!CW20+'T Bonds'!CW20+'Real Estate'!CZ24-'Real Estate'!$E$5","v":{"v":974008.5451156062,"d":"974,009"}},{"$f":"Equities!CX20+'T Bills'!CX20+'T Bonds'!CX20+'Real Estate'!DA24-'Real Estate'!$E$5","v":{"v":4006907.8907285063,"d":"4,006,908"}}]
[{"$f":"Main!A27","v":"2042-12-30"},88,{"$f":"Equities!C21+'T Bills'!C21+'T Bonds'!C21+'Real Estate'!F25-'Real Estate'!$E$5","v":{"v":2551304.688110785,"d":"2,551,305"}},{"$f":"Equities!D21+'T Bills'!D21+'T Bonds'!D21+'Real Estate'!G25-'Real Estate'!$E$5","v":{"v":1754933.8120407055,"d":"1,754,934"}},{"$f":"Equities!E21+'T Bills'!E21+'T Bonds'!E21+'Real Estate'!H25-'Real Estate'!$E$5","v":{"v":4004285.7589745377,"d":"4,004,286"}},{"$f":"Equities!F21+'T Bills'!F21+'T Bonds'!F21+'Real Estate'!I25-'Real Estate'!$E$5","v":{"v":9614119.659393933,"d":"9,614,120"}},{"$f":"Equities!G21+'T Bills'!G21+'T Bonds'!G21+'Real Estate'!J25-'Real Estate'!$E$5","v":{"v":18878364.837829746,"d":"18,878,365"}},{"$f":"Equities!H21+'T Bills'!H21+'T Bonds'!H21+'Real Estate'!K25-'Real Estate'!$E$5","v":{"v":3572704.735406907,"d":"3,572,705"}},{"$f":"Equities!I21+'T Bills'!I21+'T Bonds'!I21+'Real Estate'!L25-'Real Estate'!$E$5","v":{"v":2197384.8570055407,"d":"2,197,385"}},{"$f":"Equities!J21+'T Bills'!J21+'T Bonds'!J21+'Real Estate'!M25-'Real Estate'!$E$5","v":{"v":2659668.4972793264,"d":"2,659,668"}},{"$f":"Equities!K21+'T Bills'!K21+'T Bonds'!K21+'Real Estate'!N25-'Real Estate'!$E$5","v":{"v":3613243.063382222,"d":"3,613,243"}},{"$f":"Equities!L21+'T Bills'!L21+'T Bonds'!L21+'Real Estate'!O25-'Real Estate'!$E$5","v":{"v":8150497.773759494,"d":"8,150,498"}},{"$f":"Equities!M21+'T Bills'!M21+'T Bonds'!M21+'Real Estate'!P25-'Real Estate'!$E$5","v":{"v":3094911.9370266288,"d":"3,094,912"}},{"$f":"Equities!N21+'T Bills'!N21+'T Bonds'!N21+'Real Estate'!Q25-'Real Estate'!$E$5","v":{"v":393628.3894577359,"d":"393,628"}},{"$f":"Equities!O21+'T Bills'!O21+'T Bonds'!O21+'Real Estate'!R25-'Real Estate'!$E$5","v":{"v":2628843.5066679837,"d":"2,628,844"}},{"$f":"Equities!P21+'T Bills'!P21+'T Bonds'!P21+'Real Estate'!S25-'Real Estate'!$E$5","v":{"v":2034558.0410724396,"d":"2,034,558"}},{"$f":"Equities!Q21+'T Bills'!Q21+'T Bonds'!Q21+'Real Estate'!T25-'Real Estate'!$E$5","v":{"v":1335198.4011389061,"d":"1,335,198"}},{"$f":"Equities!R21+'T Bills'!R21+'T Bonds'!R21+'Real Estate'!U25-'Real Estate'!$E$5","v":{"v":2479504.4516937714,"d":"2,479,504"}},{"$f":"Equities!S21+'T Bills'!S21+'T Bonds'!S21+'Real Estate'!V25-'Real Estate'!$E$5","v":{"v":940685.3692337058,"d":"940,685"}},{"$f":"Equities!T21+'T Bills'!T21+'T Bonds'!T21+'Real Estate'!W25-'Real Estate'!$E$5","v":{"v":548156.3184826827,"d":"548,156"}},{"$f":"Equities!U21+'T Bills'!U21+'T Bonds'!U21+'Real Estate'!X25-'Real Estate'!$E$5","v":{"v":2119700.380841412,"d":"2,119,700"}},{"$f":"Equities!V21+'T Bills'!V21+'T Bonds'!V21+'Real Estate'!Y25-'Real Estate'!$E$5","v":{"v":7616708.3449924,"d":"7,616,708"}},{"$f":"Equities!W21+'T Bills'!W21+'T Bonds'!W21+'Real Estate'!Z25-'Real Estate'!$E$5","v":{"v":4414592.365767715,"d":"4,414,592"}},{"$f":"Equities!X21+'T Bills'!X21+'T Bonds'!X21+'Real Estate'!AA25-'Real Estate'!$E$5","v":{"v":2175370.8049794887,"d":"2,175,371"}},{"$f":"Equities!Y21+'T Bills'!Y21+'T Bonds'!Y21+'Real Estate'!AB25-'Real Estate'!$E$5","v":{"v":2654981.316282653,"d":"2,654,981"}},{"$f":"Equities!Z21+'T Bills'!Z21+'T Bonds'!Z21+'Real Estate'!AC25-'Real Estate'!$E$5","v":{"v":1496909.8846438718,"d":"1,496,910"}},{"$f":"Equities!AA21+'T Bills'!AA21+'T Bonds'!AA21+'Real Estate'!AD25-'Real Estate'!$E$5","v":{"v":3901611.6784707033,"d":"3,901,612"}},{"$f":"Equities!AB21+'T Bills'!AB21+'T Bonds'!AB21+'Real Estate'!AE25-'Real Estate'!$E$5","v":{"v":2271323.586640445,"d":"2,271,324"}},{"$f":"Equities!AC21+'T Bills'!AC21+'T Bonds'!AC21+'Real Estate'!AF25-'Real Estate'!$E$5","v":{"v":1497138.1188192605,"d":"1,497,138"}},{"$f":"Equities!AD21+'T Bills'!AD21+'T Bonds'!AD21+'Real Estate'!AG25-'Real Estate'!$E$5","v":{"v":2030312.4864941447,"d":"2,030,312"}},{"$f":"Equities!AE21+'T Bills'!AE21+'T Bonds'!AE21+'Real Estate'!AH25-'Real Estate'!$E$5","v":{"v":1299125.0147695336,"d":"1,299,125"}},{"$f":"Equities!AF21+'T Bills'!AF21+'T Bonds'!AF21+'Real Estate'!AI25-'Real Estate'!$E$5","v":{"v":11591255.87980552,"d":"11,591,256"}},{"$f":"Equities!AG21+'T Bills'!AG21+'T Bonds'!AG21+'Real Estate'!AJ25-'Real Estate'!$E$5","v":{"v":17346382.610352654,"d":"17,346,383"}},{"$f":"Equities!AH21+'T Bills'!AH21+'T Bonds'!AH21+'Real Estate'!AK25-'Real Estate'!$E$5","v":{"v":2315998.5932995714,"d":"2,315,999"}},{"$f":"Equities!AI21+'T Bills'!AI21+'T Bonds'!AI21+'Real Estate'!AL25-'Real Estate'!$E$5","v":{"v":4015392.1973820585,"d":"4,015,392"}},{"$f":"Equities!AJ21+'T Bills'!AJ21+'T Bonds'!AJ21+'Real Estate'!AM25-'Real Estate'!$E$5","v":{"v":6828594.738192165,"d":"6,828,595"}},{"$f":"Equities!AK21+'T Bills'!AK21+'T Bonds'!AK21+'Real Estate'!AN25-'Real Estate'!$E$5","v":{"v":1303872.6405363244,"d":"1,303,873"}},{"$f":"Equities!AL21+'T Bills'!AL21+'T Bonds'!AL21+'Real Estate'!AO25-'Real Estate'!$E$5","v":{"v":3958854.055370575,"d":"3,958,854"}},{"$f":"Equities!AM21+'T Bills'!AM21+'T Bonds'!AM21+'Real Estate'!AP25-'Real Estate'!$E$5","v":{"v":735888.3801717471,"d":"735,888"}},{"$f":"Equities!AN21+'T Bills'!AN21+'T Bonds'!AN21+'Real Estate'!AQ25-'Real Estate'!$E$5","v":{"v":6378697.0093504945,"d":"6,378,697"}},{"$f":"Equities!AO21+'T Bills'!AO21+'T Bonds'!AO21+'Real Estate'!AR25-'Real Estate'!$E$5","v":{"v":4105261.9282683404,"d":"4,105,262"}},{"$f":"Equities!AP21+'T Bills'!AP21+'T Bonds'!AP21+'Real Estate'!AS25-'Real Estate'!$E$5","v":{"v":17289055.203689452,"d":"17,289,055"}},{"$f":"Equities!AQ21+'T Bills'!AQ21+'T Bonds'!AQ21+'Real Estate'!AT25-'Real Estate'!$E$5","v":{"v":1003160.9948968792,"d":"1,003,161"}},{"$f":"Equities!AR21+'T Bills'!AR21+'T Bonds'!AR21+'Real Estate'!AU25-'Real Estate'!$E$5","v":{"v":4471400.986341962,"d":"4,471,401"}},{"$f":"Equities!AS21+'T Bills'!AS21+'T Bonds'!AS21+'Real Estate'!AV25-'Real Estate'!$E$5","v":{"v":2748344.9644234693,"d":"2,748,345"}},{"$f":"Equities!AT21+'T Bills'!AT21+'T Bonds'!AT21+'Real Estate'!AW25-'Real Estate'!$E$5","v":{"v":1248237.5653785106,"d":"1,248,238"}},{"$f":"Equities!AU21+'T Bills'!AU21+'T Bonds'!AU21+'Real Estate'!AX25-'Real Estate'!$E$5","v":{"v":3627297.0719363037,"d":"3,627,297"}},{"$f":"Equities!AV21+'T Bills'!AV21+'T Bonds'!AV21+'Real Estate'!AY25-'Real Estate'!$E$5","v":{"v":4253163.005807473,"d":"4,253,163"}},{"$f":"Equities!AW21+'T Bills'!AW21+'T Bonds'!AW21+'Real Estate'!AZ25-'Real Estate'!$E$5","v":{"v":1180070.5250532052,"d":"1,180,071"}},{"$f":"Equities!AX21+'T Bills'!AX21+'T Bonds'!AX21+'Real Estate'!BA25-'Real Estate'!$E$5","v":{"v":4444827.792101846,"d":"4,444,828"}},{"$f":"Equities!AY21+'T Bills'!AY21+'T Bonds'!AY21+'Real Estate'!BB25-'Real Estate'!$E$5","v":{"v":4657598.50092457,"d":"4,657,599"}},{"$f":"Equities!AZ21+'T Bills'!AZ21+'T Bonds'!AZ21+'Real Estate'!BC25-'Real Estate'!$E$5","v":{"v":816213.7403417088,"d":"816,214"}},{"$f":"Equities!BA21+'T Bills'!BA21+'T Bonds'!BA21+'Real Estate'!BD25-'Real Estate'!$E$5","v":{"v":240913.57226340345,"d":"240,914"}},{"$f":"Equities!BB21+'T Bills'!BB21+'T Bonds'!BB21+'Real Estate'!BE25-'Real Estate'!$E$5","v":{"v":1065542.203832595,"d":"1,065,542"}},{"$f":"Equities!BC21+'T Bills'!BC21+'T Bonds'!BC21+'Real Estate'!BF25-'Real Estate'!$E$5","v":{"v":2022599.8290785698,"d":"2,022,600"}},{"$f":"Equities!BD21+'T Bills'!BD21+'T Bonds'!BD21+'Real Estate'!BG25-'Real Estate'!$E$5","v":{"v":4978496.956193571,"d":"4,978,497"}},{"$f":"Equities!BE21+'T Bills'!BE21+'T Bonds'!BE21+'Real Estate'!BH25-'Real Estate'!$E$5","v":{"v":2554804.312313757,"d":"2,554,804"}},{"$f":"Equities!BF21+'T Bills'!BF21+'T Bonds'!BF21+'Real Estate'!BI25-'Real Estate'!$E$5","v":{"v":688218.5893646154,"d":"688,219"}},{"$f":"Equities!BG21+'T Bills'!BG21+'T Bonds'!BG21+'Real Estate'!BJ25-'Real Estate'!$E$5","v":{"v":858263.0863149614,"d":"858,263"}},{"$f":"Equities!BH21+'T Bills'!BH21+'T Bonds'!BH21+'Real Estate'!BK25-'Real Estate'!$E$5","v":{"v":1731303.6177935172,"d":"1,731,304"}},{"$f":"Equities!BI21+'T Bills'!BI21+'T Bonds'!BI21+'Real Estate'!BL25-'Real Estate'!$E$5","v":{"v":5109201.045057838,"d":"5,109,201"}},{"$f":"Equities!BJ21+'T Bills'!BJ21+'T Bonds'!BJ21+'Real Estate'!BM25-'Real Estate'!$E$5","v":{"v":1646153.2219649802,"d":"1,646,153"}},{"$f":"Equities!BK21+'T Bills'!BK21+'T Bonds'!BK21+'Real Estate'!BN25-'Real Estate'!$E$5","v":{"v":2525463.594613591,"d":"2,525,464"}},{"$f":"Equities!BL21+'T Bills'!BL21+'T Bonds'!BL21+'Real Estate'!BO25-'Real Estate'!$E$5","v":{"v":4135332.091654394,"d":"4,135,332"}},{"$f":"Equities!BM21+'T Bills'!BM21+'T Bonds'!BM21+'Real Estate'!BP25-'Real Estate'!$E$5","v":{"v":922833.6109997806,"d":"922,834"}},{"$f":"Equities!BN21+'T Bills'!BN21+'T Bonds'!BN21+'Real Estate'!BQ25-'Real Estate'!$E$5","v":{"v":7640578.704058438,"d":"7,640,579"}},{"$f":"Equities!BO21+'T Bills'!BO21+'T Bonds'!BO21+'Real Estate'!BR25-'Real Estate'!$E$5","v":{"v":4057897.7350773765,"d":"4,057,898"}},{"$f":"Equities!BP21+'T Bills'!BP21+'T Bonds'!BP21+'Real Estate'!BS25-'Real Estate'!$E$5","v":{"v":3355519.0580365025,"d":"3,355,519"}},{"$f":"Equities!BQ21+'T Bills'!BQ21+'T Bonds'!BQ21+'Real Estate'!BT25-'Real Estate'!$E$5","v":{"v":1975780.6802789224,"d":"1,975,781"}},{"$f":"Equities!BR21+'T Bills'!BR21+'T Bonds'!BR21+'Real Estate'!BU25-'Real Estate'!$E$5","v":{"v":10655041.810829533,"d":"10,655,042"}},{"$f":"Equities!BS21+'T Bills'!BS21+'T Bonds'!BS21+'Real Estate'!BV25-'Real Estate'!$E$5","v":{"v":7086990.219067617,"d":"7,086,990"}},{"$f":"Equities!BT21+'T Bills'!BT21+'T Bonds'!BT21+'Real Estate'!BW25-'Real Estate'!$E$5","v":{"v":739910.1236603019,"d":"739,910"}},{"$f":"Equities!BU21+'T Bills'!BU21+'T Bonds'!BU21+'Real Estate'!BX25-'Real Estate'!$E$5","v":{"v":1189177.1904337164,"d":"1,189,177"}},{"$f":"Equities!BV21+'T Bills'!BV21+'T Bonds'!BV21+'Real Estate'!BY25-'Real Estate'!$E$5","v":{"v":2421496.1525822794,"d":"2,421,496"}},{"$f":"Equities!BW21+'T Bills'!BW21+'T Bonds'!BW21+'Real Estate'!BZ25-'Real Estate'!$E$5","v":{"v":715699.5337441841,"d":"715,700"}},{"$f":"Equities!BX21+'T Bills'!BX21+'T Bonds'!BX21+'Real Estate'!CA25-'Real Estate'!$E$5","v":{"v":4231434.466165475,"d":"4,231,434"}},{"$f":"Equities!BY21+'T Bills'!BY21+'T Bonds'!BY21+'Real Estate'!CB25-'Real Estate'!$E$5","v":{"v":6113605.550884365,"d":"6,113,606"}},{"$f":"Equities!BZ21+'T Bills'!BZ21+'T Bonds'!BZ21+'Real Estate'!CC25-'Real Estate'!$E$5","v":{"v":1418342.488765557,"d":"1,418,342"}},{"$f":"Equities!CA21+'T Bills'!CA21+'T Bonds'!CA21+'Real Estate'!CD25-'Real Estate'!$E$5","v":{"v":1548121.8296416355,"d":"1,548,122"}},{"$f":"Equities!CB21+'T Bills'!CB21+'T Bonds'!CB21+'Real Estate'!CE25-'Real Estate'!$E$5","v":{"v":1019617.2669523747,"d":"1,019,617"}},{"$f":"Equities!CC21+'T Bills'!CC21+'T Bonds'!CC21+'Real Estate'!CF25-'Real Estate'!$E$5","v":{"v":3543232.884461599,"d":"3,543,233"}},{"$f":"Equities!CD21+'T Bills'!CD21+'T Bonds'!CD21+'Real Estate'!CG25-'Real Estate'!$E$5","v":{"v":7565228.218348224,"d":"7,565,228"}},{"$f":"Equities!CE21+'T Bills'!CE21+'T Bonds'!CE21+'Real Estate'!CH25-'Real Estate'!$E$5","v":{"v":9595582.72970656,"d":"9,595,583"}},{"$f":"Equities!CF21+'T Bills'!CF21+'T Bonds'!CF21+'Real Estate'!CI25-'Real Estate'!$E$5","v":{"v":1927362.5841868578,"d":"1,927,363"}},{"$f":"Equities!CG21+'T Bills'!CG21+'T Bonds'!CG21+'Real Estate'!CJ25-'Real Estate'!$E$5","v":{"v":3074877.3569225613,"d":"3,074,877"}},{"$f":"Equities!CH21+'T Bills'!CH21+'T Bonds'!CH21+'Real Estate'!CK25-'Real Estate'!$E$5","v":{"v":3775925.7813051697,"d":"3,775,926"}},{"$f":"Equities!CI21+'T Bills'!CI21+'T Bonds'!CI21+'Real Estate'!CL25-'Real Estate'!$E$5","v":{"v":1783528.984016406,"d":"1,783,529"}},{"$f":"Equities!CJ21+'T Bills'!CJ21+'T Bonds'!CJ21+'Real Estate'!CM25-'Real Estate'!$E$5","v":{"v":21112706.063920088,"d":"21,112,706"}},{"$f":"Equities!CK21+'T Bills'!CK21+'T Bonds'!CK21+'Real Estate'!CN25-'Real Estate'!$E$5","v":{"v":4866114.594019415,"d":"4,866,115"}},{"$f":"Equities!CL21+'T Bills'!CL21+'T Bonds'!CL21+'Real Estate'!CO25-'Real Estate'!$E$5","v":{"v":10514094.521394057,"d":"10,514,095"}},{"$f":"Equities!CM21+'T Bills'!CM21+'T Bonds'!CM21+'Real Estate'!CP25-'Real Estate'!$E$5","v":{"v":6751320.555510274,"d":"6,751,321"}},{"$f":"Equities!CN21+'T Bills'!CN21+'T Bonds'!CN21+'Real Estate'!CQ25-'Real Estate'!$E$5","v":{"v":16855939.222501803,"d":"16,855,939"}},{"$f":"Equities!CO21+'T Bills'!CO21+'T Bonds'!CO21+'Real Estate'!CR25-'Real Estate'!$E$5","v":{"v":4859644.307711482,"d":"4,859,644"}},{"$f":"Equities!CP21+'T Bills'!CP21+'T Bonds'!CP21+'Real Estate'!CS25-'Real Estate'!$E$5","v":{"v":322767.28527533956,"d":"322,767"}},{"$f":"Equities!CQ21+'T Bills'!CQ21+'T Bonds'!CQ21+'Real Estate'!CT25-'Real Estate'!$E$5","v":{"v":2966353.404458376,"d":"2,966,353"}},{"$f":"Equities!CR21+'T Bills'!CR21+'T Bonds'!CR21+'Real Estate'!CU25-'Real Estate'!$E$5","v":{"v":11211811.379301801,"d":"11,211,811"}},{"$f":"Equities!CS21+'T Bills'!CS21+'T Bonds'!CS21+'Real Estate'!CV25-'Real Estate'!$E$5","v":{"v":7667536.567039315,"d":"7,667,537"}},{"$f":"Equities!CT21+'T Bills'!CT21+'T Bonds'!CT21+'Real Estate'!CW25-'Real Estate'!$E$5","v":{"v":3328694.496397207,"d":"3,328,694"}},{"$f":"Equities!CU21+'T Bills'!CU21+'T Bonds'!CU21+'Real Estate'!CX25-'Real Estate'!$E$5","v":{"v":19901240.087827876,"d":"19,901,240"}},{"$f":"Equities!CV21+'T Bills'!CV21+'T Bonds'!CV21+'Real Estate'!CY25-'Real Estate'!$E$5","v":{"v":7077993.910466757,"d":"7,077,994"}},{"$f":"Equities!CW21+'T Bills'!CW21+'T Bonds'!CW21+'Real Estate'!CZ25-'Real Estate'!$E$5","v":{"v":955933.92897554,"d":"955,934"}},{"$f":"Equities!CX21+'T Bills'!CX21+'T Bonds'!CX21+'Real Estate'!DA25-'Real Estate'!$E$5","v":{"v":5095116.714183465,"d":"5,095,117"}}]
[{"$f":"Main!A28","v":"2043-12-31"},89,{"$f":"Equities!C22+'T Bills'!C22+'T Bonds'!C22+'Real Estate'!F26-'Real Estate'!$E$5","v":{"v":2776520.9707505023,"d":"2,776,521"}},{"$f":"Equities!D22+'T Bills'!D22+'T Bonds'!D22+'Real Estate'!G26-'Real Estate'!$E$5","v":{"v":1619024.300956928,"d":"1,619,024"}},{"$f":"Equities!E22+'T Bills'!E22+'T Bonds'!E22+'Real Estate'!H26-'Real Estate'!$E$5","v":{"v":3962926.4594347915,"d":"3,962,926"}},{"$f":"Equities!F22+'T Bills'!F22+'T Bonds'!F22+'Real Estate'!I26-'Real Estate'!$E$5","v":{"v":10298004.562125167,"d":"10,298,005"}},{"$f":"Equities!G22+'T Bills'!G22+'T Bonds'!G22+'Real Estate'!J26-'Real Estate'!$E$5","v":{"v":17199138.355448592,"d":"17,199,138"}},{"$f":"Equities!H22+'T Bills'!H22+'T Bonds'!H22+'Real Estate'!K26-'Real Estate'!$E$5","v":{"v":4598141.276678625,"d":"4,598,141"}},{"$f":"Equities!I22+'T Bills'!I22+'T Bonds'!I22+'Real Estate'!L26-'Real Estate'!$E$5","v":{"v":1689850.284414754,"d":"1,689,850"}},{"$f":"Equities!J22+'T Bills'!J22+'T Bonds'!J22+'Real Estate'!M26-'Real Estate'!$E$5","v":{"v":3192935.4910208457,"d":"3,192,935"}},{"$f":"Equities!K22+'T Bills'!K22+'T Bonds'!K22+'Real Estate'!N26-'Real Estate'!$E$5","v":{"v":2941549.8350994955,"d":"2,941,550"}},{"$f":"Equities!L22+'T Bills'!L22+'T Bonds'!L22+'Real Estate'!O26-'Real Estate'!$E$5","v":{"v":9472214.184516389,"d":"9,472,214"}},{"$f":"Equities!M22+'T Bills'!M22+'T Bonds'!M22+'Real Estate'!P26-'Real Estate'!$E$5","v":{"v":3512827.5016109436,"d":"3,512,828"}},{"$f":"Equities!N22+'T Bills'!N22+'T Bonds'!N22+'Real Estate'!Q26-'Real Estate'!$E$5","v":{"v":166801.64169831626,"d":"166,802"}},{"$f":"Equities!O22+'T Bills'!O22+'T Bonds'!O22+'Real Estate'!R26-'Real Estate'!$E$5","v":{"v":2907197.5394197237,"d":"2,907,198"}},{"$f":"Equities!P22+'T Bills'!P22+'T Bonds'!P22+'Real Estate'!S26-'Real Estate'!$E$5","v":{"v":2284256.0485537983,"d":"2,284,256"}},{"$f":"Equities!Q22+'T Bills'!Q22+'T Bonds'!Q22+'Real Estate'!T26-'Real Estate'!$E$5","v":{"v":1216752.5004847066,"d":"1,216,753"}},{"$f":"Equities!R22+'T Bills'!R22+'T Bonds'!R22+'Real Estate'!U26-'Real Estate'!$E$5","v":{"v":2756971.3843255434,"d":"2,756,971"}},{"$f":"Equities!S22+'T Bills'!S22+'T Bonds'!S22+'Real Estate'!V26-'Real Estate'!$E$5","v":{"v":988855.3845515451,"d":"988,855"}},{"$f":"Equities!T22+'T Bills'!T22+'T Bonds'!T22+'Real Estate'!W26-'Real Estate'!$E$5","v":{"v":538892.8845656326,"d":"538,893"}},{"$f":"Equities!U22+'T Bills'!U22+'T Bonds'!U22+'Real Estate'!X26-'Real Estate'!$E$5","v":{"v":1744770.5293138425,"d":"1,744,771"}},{"$f":"Equities!V22+'T Bills'!V22+'T Bonds'!V22+'Real Estate'!Y26-'Real Estate'!$E$5","v":{"v":9107585.952292733,"d":"9,107,586"}},{"$f":"Equities!W22+'T Bills'!W22+'T Bonds'!W22+'Real Estate'!Z26-'Real Estate'!$E$5","v":{"v":4802854.881352736,"d":"4,802,855"}},{"$f":"Equities!X22+'T Bills'!X22+'T Bonds'!X22+'Real Estate'!AA26-'Real Estate'!$E$5","v":{"v":2052939.3913189883,"d":"2,052,939"}},{"$f":"Equities!Y22+'T Bills'!Y22+'T Bonds'!Y22+'Real Estate'!AB26-'Real Estate'!$E$5","v":{"v":2203001.6885068426,"d":"2,203,002"}},{"$f":"Equities!Z22+'T Bills'!Z22+'T Bonds'!Z22+'Real Estate'!AC26-'Real Estate'!$E$5","v":{"v":1562358.8901206783,"d":"1,562,359"}},{"$f":"Equities!AA22+'T Bills'!AA22+'T Bonds'!AA22+'Real Estate'!AD26-'Real Estate'!$E$5","v":{"v":4765236.124159616,"d":"4,765,236"}},{"$f":"Equities!AB22+'T Bills'!AB22+'T Bonds'!AB22+'Real Estate'!AE26-'Real Estate'!$E$5","v":{"v":2416117.043086661,"d":"2,416,117"}},{"$f":"Equities!AC22+'T Bills'!AC22+'T Bonds'!AC22+'Real Estate'!AF26-'Real Estate'!$E$5","v":{"v":1415369.990969171,"d":"1,415,370"}},{"$f":"Equities!AD22+'T Bills'!AD22+'T Bonds'!AD22+'Real Estate'!AG26-'Real Estate'!$E$5","v":{"v":1612103.942684903,"d":"1,612,104"}},{"$f":"Equities!AE22+'T Bills'!AE22+'T Bonds'!AE22+'Real Estate'!AH26-'Real Estate'!$E$5","v":{"v":1284101.522356247,"d":"1,284,102"}},{"$f":"Equities!AF22+'T Bills'!AF22+'T Bonds'!AF22+'Real Estate'!AI26-'Real Estate'!$E$5","v":{"v":14133451.855203768,"d":"14,133,452"}},{"$f":"Equities!AG22+'T Bills'!AG22+'T Bonds'!AG22+'Real Estate'!AJ26-'Real Estate'!$E$5","v":{"v":20310744.041783027,"d":"20,310,744"}},{"$f":"Equities!AH22+'T Bills'!AH22+'T Bonds'!AH22+'Real Estate'!AK26-'Real Estate'!$E$5","v":{"v":2794519.572053102,"d":"2,794,520"}},{"$f":"Equities!AI22+'T Bills'!AI22+'T Bonds'!AI22+'Real Estate'!AL26-'Real Estate'!$E$5","v":{"v":5023743.68271437,"d":"5,023,744"}},{"$f":"Equities!AJ22+'T Bills'!AJ22+'T Bonds'!AJ22+'Real Estate'!AM26-'Real Estate'!$E$5","v":{"v":7901930.801666331,"d":"7,901,931"}},{"$f":"Equities!AK22+'T Bills'!AK22+'T Bonds'!AK22+'Real Estate'!AN26-'Real Estate'!$E$5","v":{"v":1283945.1636868059,"d":"1,283,945"}},{"$f":"Equities!AL22+'T Bills'!AL22+'T Bonds'!AL22+'Real Estate'!AO26-'Real Estate'!$E$5","v":{"v":4483126.40864301,"d":"4,483,126"}},{"$f":"Equities!AM22+'T Bills'!AM22+'T Bonds'!AM22+'Real Estate'!AP26-'Real Estate'!$E$5","v":{"v":706320.0195317225,"d":"706,320"}},{"$f":"Equities!AN22+'T Bills'!AN22+'T Bonds'!AN22+'Real Estate'!AQ26-'Real Estate'!$E$5","v":{"v":8135199.242311633,"d":"8,135,199"}},{"$f":"Equities!AO22+'T Bills'!AO22+'T Bonds'!AO22+'Real Estate'!AR26-'Real Estate'!$E$5","v":{"v":4451108.612702824,"d":"4,451,109"}},{"$f":"Equities!AP22+'T Bills'!AP22+'T Bonds'!AP22+'Real Estate'!AS26-'Real Estate'!$E$5","v":{"v":19185473.9704367,"d":"19,185,474"}},{"$f":"Equities!AQ22+'T Bills'!AQ22+'T Bonds'!AQ22+'Real Estate'!AT26-'Real Estate'!$E$5","v":{"v":1019829.8554749733,"d":"1,019,830"}},{"$f":"Equities!AR22+'T Bills'!AR22+'T Bonds'!AR22+'Real Estate'!AU26-'Real Estate'!$E$5","v":{"v":4973326.753320186,"d":"4,973,327"}},{"$f":"Equities!AS22+'T Bills'!AS22+'T Bonds'!AS22+'Real Estate'!AV26-'Real Estate'!$E$5","v":{"v":3094387.2139519136,"d":"3,094,387"}},{"$f":"Equities!AT22+'T Bills'!AT22+'T Bonds'!AT22+'Real Estate'!AW26-'Real Estate'!$E$5","v":{"v":1276677.0401107843,"d":"1,276,677"}},{"$f":"Equities!AU22+'T Bills'!AU22+'T Bonds'!AU22+'Real Estate'!AX26-'Real Estate'!$E$5","v":{"v":4101733.759300028,"d":"4,101,734"}},{"$f":"Equities!AV22+'T Bills'!AV22+'T Bonds'!AV22+'Real Estate'!AY26-'Real Estate'!$E$5","v":{"v":5966955.092330891,"d":"5,966,955"}},{"$f":"Equities!AW22+'T Bills'!AW22+'T Bonds'!AW22+'Real Estate'!AZ26-'Real Estate'!$E$5","v":{"v":1269362.7671369442,"d":"1,269,363"}},{"$f":"Equities!AX22+'T Bills'!AX22+'T Bonds'!AX22+'Real Estate'!BA26-'Real Estate'!$E$5","v":{"v":4567053.863546483,"d":"4,567,054"}},{"$f":"Equities!AY22+'T Bills'!AY22+'T Bonds'!AY22+'Real Estate'!BB26-'Real Estate'!$E$5","v":{"v":5072290.58336001,"d":"5,072,291"}},{"$f":"Equities!AZ22+'T Bills'!AZ22+'T Bonds'!AZ22+'Real Estate'!BC26-'Real Estate'!$E$5","v":{"v":692946.1211289129,"d":"692,946"}},{"$f":"Equities!BA22+'T Bills'!BA22+'T Bonds'!BA22+'Real Estate'!BD26-'Real Estate'!$E$5","v":{"v":395760.2513361859,"d":"395,760"}},{"$f":"Equities!BB22+'T Bills'!BB22+'T Bonds'!BB22+'Real Estate'!BE26-'Real Estate'!$E$5","v":{"v":1103635.0516100884,"d":"1,103,635"}},{"$f":"Equities!BC22+'T Bills'!BC22+'T Bonds'!BC22+'Real Estate'!BF26-'Real Estate'!$E$5","v":{"v":2533664.6610919395,"d":"2,533,665"}},{"$f":"Equities!BD22+'T Bills'!BD22+'T Bonds'!BD22+'Real Estate'!BG26-'Real Estate'!$E$5","v":{"v":4584244.017531894,"d":"4,584,244"}},{"$f":"Equities!BE22+'T Bills'!BE22+'T Bonds'!BE22+'Real Estate'!BH26-'Real Estate'!$E$5","v":{"v":3021845.8538594535,"d":"3,021,846"}},{"$f":"Equities!BF22+'T Bills'!BF22+'T Bonds'!BF22+'Real Estate'!BI26-'Real Estate'!$E$5","v":{"v":562021.7175721759,"d":"562,022"}},{"$f":"Equities!BG22+'T Bills'!BG22+'T Bonds'!BG22+'Real Estate'!BJ26-'Real Estate'!$E$5","v":{"v":803244.3226212849,"d":"803,244"}},{"$f":"Equities!BH22+'T Bills'!BH22+'T Bonds'!BH22+'Real Estate'!BK26-'Real Estate'!$E$5","v":{"v":1606019.270445356,"d":"1,606,019"}},{"$f":"Equities!BI22+'T Bills'!BI22+'T Bonds'!BI22+'Real Estate'!BL26-'Real Estate'!$E$5","v":{"v":5783466.148041748,"d":"5,783,466"}},{"$f":"Equities!BJ22+'T Bills'!BJ22+'T Bonds'!BJ22+'Real Estate'!BM26-'Real Estate'!$E$5","v":{"v":1621967.3118164542,"d":"1,621,967"}},{"$f":"Equities!BK22+'T Bills'!BK22+'T Bonds'!BK22+'Real Estate'!BN26-'Real Estate'!$E$5","v":{"v":2388774.222860769,"d":"2,388,774"}},{"$f":"Equities!BL22+'T Bills'!BL22+'T Bonds'!BL22+'Real Estate'!BO26-'Real Estate'!$E$5","v":{"v":3869222.608427557,"d":"3,869,223"}},{"$f":"Equities!BM22+'T Bills'!BM22+'T Bonds'!BM22+'Real Estate'!BP26-'Real Estate'!$E$5","v":{"v":918937.9859241406,"d":"918,938"}},{"$f":"Equities!BN22+'T Bills'!BN22+'T Bonds'!BN22+'Real Estate'!BQ26-'Real Estate'!$E$5","v":{"v":10997346.98648427,"d":"10,997,347"}},{"$f":"Equities!BO22+'T Bills'!BO22+'T Bonds'!BO22+'Real Estate'!BR26-'Real Estate'!$E$5","v":{"v":3759539.0649301703,"d":"3,759,539"}},{"$f":"Equities!BP22+'T Bills'!BP22+'T Bonds'!BP22+'Real Estate'!BS26-'Real Estate'!$E$5","v":{"v":3198506.3154718094,"d":"3,198,506"}},{"$f":"Equities!BQ22+'T Bills'!BQ22+'T Bonds'!BQ22+'Real Estate'!BT26-'Real Estate'!$E$5","v":{"v":2152972.3885866934,"d":"2,152,972"}},{"$f":"Equities!BR22+'T Bills'!BR22+'T Bonds'!BR22+'Real Estate'!BU26-'Real Estate'!$E$5","v":{"v":9602378.709656827,"d":"9,602,379"}},{"$f":"Equities!BS22+'T Bills'!BS22+'T Bonds'!BS22+'Real Estate'!BV26-'Real Estate'!$E$5","v":{"v":6902763.14986261,"d":"6,902,763"}},{"$f":"Equities!BT22+'T Bills'!BT22+'T Bonds'!BT22+'Real Estate'!BW26-'Real Estate'!$E$5","v":{"v":738235.1315483492,"d":"738,235"}},{"$f":"Equities!BU22+'T Bills'!BU22+'T Bonds'!BU22+'Real Estate'!BX26-'Real Estate'!$E$5","v":{"v":1189801.9179194681,"d":"1,189,802"}},{"$f":"Equities!BV22+'T Bills'!BV22+'T Bonds'!BV22+'Real Estate'!BY26-'Real Estate'!$E$5","v":{"v":2121945.689165593,"d":"2,121,946"}},{"$f":"Equities!BW22+'T Bills'!BW22+'T Bonds'!BW22+'Real Estate'!BZ26-'Real Estate'!$E$5","v":{"v":591312.0054818178,"d":"591,312"}},{"$f":"Equities!BX22+'T Bills'!BX22+'T Bonds'!BX22+'Real Estate'!CA26-'Real Estate'!$E$5","v":{"v":3869846.835252091,"d":"3,869,847"}},{"$f":"Equities!BY22+'T Bills'!BY22+'T Bonds'!BY22+'Real Estate'!CB26-'Real Estate'!$E$5","v":{"v":8032279.505540018,"d":"8,032,280"}},{"$f":"Equities!BZ22+'T Bills'!BZ22+'T Bonds'!BZ22+'Real Estate'!CC26-'Real Estate'!$E$5","v":{"v":1149963.7577559997,"d":"1,149,964"}},{"$f":"Equities!CA22+'T Bills'!CA22+'T Bonds'!CA22+'Real Estate'!CD26-'Real Estate'!$E$5","v":{"v":1576244.1294769563,"d":"1,576,244"}},{"$f":"Equities!CB22+'T Bills'!CB22+'T Bonds'!CB22+'Real Estate'!CE26-'Real Estate'!$E$5","v":{"v":992728.1575499582,"d":"992,728"}},{"$f":"Equities!CC22+'T Bills'!CC22+'T Bonds'!CC22+'Real Estate'!CF26-'Real Estate'!$E$5","v":{"v":4292934.495147132,"d":"4,292,934"}},{"$f":"Equities!CD22+'T Bills'!CD22+'T Bonds'!CD22+'Real Estate'!CG26-'Real Estate'!$E$5","v":{"v":5911599.188673361,"d":"5,911,599"}},{"$f":"Equities!CE22+'T Bills'!CE22+'T Bonds'!CE22+'Real Estate'!CH26-'Real Estate'!$E$5","v":{"v":13928225.661965258,"d":"13,928,226"}},{"$f":"Equities!CF22+'T Bills'!CF22+'T Bonds'!CF22+'Real Estate'!CI26-'Real Estate'!$E$5","v":{"v":1598118.7471230628,"d":"1,598,119"}},{"$f":"Equities!CG22+'T Bills'!CG22+'T Bonds'!CG22+'Real Estate'!CJ26-'Real Estate'!$E$5","v":{"v":3469741.2569497237,"d":"3,469,741"}},{"$f":"Equities!CH22+'T Bills'!CH22+'T Bonds'!CH22+'Real Estate'!CK26-'Real Estate'!$E$5","v":{"v":4304949.281064148,"d":"4,304,949"}},{"$f":"Equities!CI22+'T Bills'!CI22+'T Bonds'!CI22+'Real Estate'!CL26-'Real Estate'!$E$5","v":{"v":1977087.7594032555,"d":"1,977,088"}},{"$f":"Equities!CJ22+'T Bills'!CJ22+'T Bonds'!CJ22+'Real Estate'!CM26-'Real Estate'!$E$5","v":{"v":29975864.45243275,"d":"29,975,864"}},{"$f":"Equities!CK22+'T Bills'!CK22+'T Bonds'!CK22+'Real Estate'!CN26-'Real Estate'!$E$5","v":{"v":5503741.575978135,"d":"5,503,742"}},{"$f":"Equities!CL22+'T Bills'!CL22+'T Bonds'!CL22+'Real Estate'!CO26-'Real Estate'!$E$5","v":{"v":10422109.498683093,"d":"10,422,109"}},{"$f":"Equities!CM22+'T Bills'!CM22+'T Bonds'!CM22+'Real Estate'!CP26-'Real Estate'!$E$5","v":{"v":7944648.172231259,"d":"7,944,648"}},{"$f":"Equities!CN22+'T Bills'!CN22+'T Bonds'!CN22+'Real Estate'!CQ26-'Real Estate'!$E$5","v":{"v":19159571.61217633,"d":"19,159,572"}},{"$f":"Equities!CO22+'T Bills'!CO22+'T Bonds'!CO22+'Real Estate'!CR26-'Real Estate'!$E$5","v":{"v":5715095.35868469,"d":"5,715,095"}},{"$f":"Equities!CP22+'T Bills'!CP22+'T Bonds'!CP22+'Real Estate'!CS26-'Real Estate'!$E$5","v":{"v":109190.39123858536,"d":"109,190"}},{"$f":"Equities!CQ22+'T Bills'!CQ22+'T Bonds'!CQ22+'Real Estate'!CT26-'Real Estate'!$E$5","v":{"v":2896146.5547988997,"d":"2,896,147"}},{"$f":"Equities!CR22+'T Bills'!CR22+'T Bonds'!CR22+'Real Estate'!CU26-'Real Estate'!$E$5","v":{"v":14484083.308340048,"d":"14,484,083"}},{"$f":"Equities!CS22+'T Bills'!CS22+'T Bonds'!CS22+'Real Estate'!CV26-'Real Estate'!$E$5","v":{"v":7801025.961225691,"d":"7,801,026"}},{"$f":"Equities!CT22+'T Bills'!CT22+'T Bonds'!CT22+'Real Estate'!CW26-'Real Estate'!$E$5","v":{"v":3819741.346965891,"d":"3,819,741"}},{"$f":"Equities!CU22+'T Bills'!CU22+'T Bonds'!CU22+'Real Estate'!CX26-'Real Estate'!$E$5","v":{"v":18405384.59429928,"d":"18,405,385"}},{"$f":"Equities!CV22+'T Bills'!CV22+'T Bonds'!CV22+'Real Estate'!CY26-'Real Estate'!$E$5","v":{"v":9736670.55579555,"d":"9,736,671"}},{"$f":"Equities!CW22+'T Bills'!CW22+'T Bonds'!CW22+'Real Estate'!CZ26-'Real Estate'!$E$5","v":{"v":924450.5804810983,"d":"924,451"}},{"$f":"Equities!CX22+'T Bills'!CX22+'T Bonds'!CX22+'Real Estate'!DA26-'Real Estate'!$E$5","v":{"v":5598060.128669909,"d":"5,598,060"}}]
[{"$f":"Main!A29","v":"2044-12-30"},90,{"$f":"Equities!C23+'T Bills'!C23+'T Bonds'!C23+'Real Estate'!F27-'Real Estate'!$E$5","v":{"v":2852423.285808145,"d":"2,852,423"}},{"$f":"Equities!D23+'T Bills'!D23+'T Bonds'!D23+'Real Estate'!G27-'Real Estate'!$E$5","v":{"v":1835930.5561220695,"d":"1,835,931"}},{"$f":"Equities!E23+'T Bills'!E23+'T Bonds'!E23+'Real Estate'!H27-'Real Estate'!$E$5","v":{"v":4279152.020388936,"d":"4,279,152"}},{"$f":"Equities!F23+'T Bills'!F23+'T Bonds'!F23+'Real Estate'!I27-'Real Estate'!$E$5","v":{"v":7020048.188783079,"d":"7,020,048"}},{"$f":"Equities!G23+'T Bills'!G23+'T Bonds'!G23+'Real Estate'!J27-'Real Estate'!$E$5","v":{"v":20030220.90483382,"d":"20,030,221"}},{"$f":"Equities!H23+'T Bills'!H23+'T Bonds'!H23+'Real Estate'!K27-'Real Estate'!$E$5","v":{"v":4729637.283760832,"d":"4,729,637"}},{"$f":"Equities!I23+'T Bills'!I23+'T Bonds'!I23+'Real Estate'!L27-'Real Estate'!$E$5","v":{"v":1991462.4905251444,"d":"1,991,462"}},{"$f":"Equities!J23+'T Bills'!J23+'T Bonds'!J23+'Real Estate'!M27-'Real Estate'!$E$5","v":{"v":3432936.2626979086,"d":"3,432,936"}},{"$f":"Equities!K23+'T Bills'!K23+'T Bonds'!K23+'Real Estate'!N27-'Real Estate'!$E$5","v":{"v":3233871.0218694787,"d":"3,233,871"}},{"$f":"Equities!L23+'T Bills'!L23+'T Bonds'!L23+'Real Estate'!O27-'Real Estate'!$E$5","v":{"v":13482175.540712865,"d":"13,482,176"}},{"$f":"Equities!M23+'T Bills'!M23+'T Bonds'!M23+'Real Estate'!P27-'Real Estate'!$E$5","v":{"v":3221016.9862466385,"d":"3,221,017"}},{"$f":"Equities!N23+'T Bills'!N23+'T Bonds'!N23+'Real Estate'!Q27-'Real Estate'!$E$5","v":{"v":240339.30349813396,"d":"240,339"}},{"$f":"Equities!O23+'T Bills'!O23+'T Bonds'!O23+'Real Estate'!R27-'Real Estate'!$E$5","v":{"v":3865381.1455111513,"d":"3,865,381"}},{"$f":"Equities!P23+'T Bills'!P23+'T Bonds'!P23+'Real Estate'!S27-'Real Estate'!$E$5","v":{"v":2380644.845529062,"d":"2,380,645"}},{"$f":"Equities!Q23+'T Bills'!Q23+'T Bonds'!Q23+'Real Estate'!T27-'Real Estate'!$E$5","v":{"v":1178106.484973729,"d":"1,178,106"}},{"$f":"Equities!R23+'T Bills'!R23+'T Bonds'!R23+'Real Estate'!U27-'Real Estate'!$E$5","v":{"v":2073643.4766836374,"d":"2,073,643"}},{"$f":"Equities!S23+'T Bills'!S23+'T Bonds'!S23+'Real Estate'!V27-'Real Estate'!$E$5","v":{"v":849706.8143539433,"d":"849,707"}},{"$f":"Equities!T23+'T Bills'!T23+'T Bonds'!T23+'Real Estate'!W27-'Real Estate'!$E$5","v":{"v":467941.6574129152,"d":"467,942"}},{"$f":"Equities!U23+'T Bills'!U23+'T Bonds'!U23+'Real Estate'!X27-'Real Estate'!$E$5","v":{"v":1624706.0720807118,"d":"1,624,706"}},{"$f":"Equities!V23+'T Bills'!V23+'T Bonds'!V23+'Real Estate'!Y27-'Real Estate'!$E$5","v":{"v":8037002.913175722,"d":"8,037,003"}},{"$f":"Equities!W23+'T Bills'!W23+'T Bonds'!W23+'Real Estate'!Z27-'Real Estate'!$E$5","v":{"v":4382291.850553028,"d":"4,382,292"}},{"$f":"Equities!X23+'T Bills'!X23+'T Bonds'!X23+'Real Estate'!AA27-'Real Estate'!$E$5","v":{"v":2500366.7942612143,"d":"2,500,367"}},{"$f":"Equities!Y23+'T Bills'!Y23+'T Bonds'!Y23+'Real Estate'!AB27-'Real Estate'!$E$5","v":{"v":2180642.5042352444,"d":"2,180,643"}},{"$f":"Equities!Z23+'T Bills'!Z23+'T Bonds'!Z23+'Real Estate'!AC27-'Real Estate'!$E$5","v":{"v":1640874.5610273236,"d":"1,640,875"}},{"$f":"Equities!AA23+'T Bills'!AA23+'T Bonds'!AA23+'Real Estate'!AD27-'Real Estate'!$E$5","v":{"v":4603012.174711999,"d":"4,603,012"}},{"$f":"Equities!AB23+'T Bills'!AB23+'T Bonds'!AB23+'Real Estate'!AE27-'Real Estate'!$E$5","v":{"v":2414262.545398801,"d":"2,414,263"}},{"$f":"Equities!AC23+'T Bills'!AC23+'T Bonds'!AC23+'Real Estate'!AF27-'Real Estate'!$E$5","v":{"v":1614635.949049561,"d":"1,614,636"}},{"$f":"Equities!AD23+'T Bills'!AD23+'T Bonds'!AD23+'Real Estate'!AG27-'Real Estate'!$E$5","v":{"v":1760690.9607725842,"d":"1,760,691"}},{"$f":"Equities!AE23+'T Bills'!AE23+'T Bonds'!AE23+'Real Estate'!AH27-'Real Estate'!$E$5","v":{"v":1325262.5775333368,"d":"1,325,263"}},{"$f":"Equities!AF23+'T Bills'!AF23+'T Bonds'!AF23+'Real Estate'!AI27-'Real Estate'!$E$5","v":{"v":17998325.94512178,"d":"17,998,326"}},{"$f":"Equities!AG23+'T Bills'!AG23+'T Bonds'!AG23+'Real Estate'!AJ27-'Real Estate'!$E$5","v":{"v":18000924.057873506,"d":"18,000,924"}},{"$f":"Equities!AH23+'T Bills'!AH23+'T Bonds'!AH23+'Real Estate'!AK27-'Real Estate'!$E$5","v":{"v":2813618.9738802495,"d":"2,813,619"}},{"$f":"Equities!AI23+'T Bills'!AI23+'T Bonds'!AI23+'Real Estate'!AL27-'Real Estate'!$E$5","v":{"v":6004505.4409955945,"d":"6,004,505"}},{"$f":"Equities!AJ23+'T Bills'!AJ23+'T Bonds'!AJ23+'Real Estate'!AM27-'Real Estate'!$E$5","v":{"v":8261312.776752324,"d":"8,261,313"}},{"$f":"Equities!AK23+'T Bills'!AK23+'T Bonds'!AK23+'Real Estate'!AN27-'Real Estate'!$E$5","v":{"v":1438337.4175762166,"d":"1,438,337"}},{"$f":"Equities!AL23+'T Bills'!AL23+'T Bonds'!AL23+'Real Estate'!AO27-'Real Estate'!$E$5","v":{"v":4603570.508350987,"d":"4,603,571"}},{"$f":"Equities!AM23+'T Bills'!AM23+'T Bonds'!AM23+'Real Estate'!AP27-'Real Estate'!$E$5","v":{"v":742683.5769580866,"d":"742,684"}},{"$f":"Equities!AN23+'T Bills'!AN23+'T Bonds'!AN23+'Real Estate'!AQ27-'Real Estate'!$E$5","v":{"v":8109941.623002229,"d":"8,109,942"}},{"$f":"Equities!AO23+'T Bills'!AO23+'T Bonds'!AO23+'Real Estate'!AR27-'Real Estate'!$E$5","v":{"v":4027988.574279309,"d":"4,027,989"}},{"$f":"Equities!AP23+'T Bills'!AP23+'T Bonds'!AP23+'Real Estate'!AS27-'Real Estate'!$E$5","v":{"v":20143367.82086369,"d":"20,143,368"}},{"$f":"Equities!AQ23+'T Bills'!AQ23+'T Bonds'!AQ23+'Real Estate'!AT27-'Real Estate'!$E$5","v":{"v":966010.3643355118,"d":"966,010"}},{"$f":"Equities!AR23+'T Bills'!AR23+'T Bonds'!AR23+'Real Estate'!AU27-'Real Estate'!$E$5","v":{"v":5224314.449097964,"d":"5,224,314"}},{"$f":"Equities!AS23+'T Bills'!AS23+'T Bonds'!AS23+'Real Estate'!AV27-'Real Estate'!$E$5","v":{"v":2966739.372746465,"d":"2,966,739"}},{"$f":"Equities!AT23+'T Bills'!AT23+'T Bonds'!AT23+'Real Estate'!AW27-'Real Estate'!$E$5","v":{"v":1246823.9236394924,"d":"1,246,824"}},{"$f":"Equities!AU23+'T Bills'!AU23+'T Bonds'!AU23+'Real Estate'!AX27-'Real Estate'!$E$5","v":{"v":5794591.271987762,"d":"5,794,591"}},{"$f":"Equities!AV23+'T Bills'!AV23+'T Bonds'!AV23+'Real Estate'!AY27-'Real Estate'!$E$5","v":{"v":6263801.4023511,"d":"6,263,801"}},{"$f":"Equities!AW23+'T Bills'!AW23+'T Bonds'!AW23+'Real Estate'!AZ27-'Real Estate'!$E$5","v":{"v":1276176.6907211796,"d":"1,276,177"}},{"$f":"Equities!AX23+'T Bills'!AX23+'T Bonds'!AX23+'Real Estate'!BA27-'Real Estate'!$E$5","v":{"v":5175395.100887613,"d":"5,175,395"}},{"$f":"Equities!AY23+'T Bills'!AY23+'T Bonds'!AY23+'Real Estate'!BB27-'Real Estate'!$E$5","v":{"v":5853112.1989430105,"d":"5,853,112"}},{"$f":"Equities!AZ23+'T Bills'!AZ23+'T Bonds'!AZ23+'Real Estate'!BC27-'Real Estate'!$E$5","v":{"v":669310.4154048376,"d":"669,310"}},{"$f":"Equities!BA23+'T Bills'!BA23+'T Bonds'!BA23+'Real Estate'!BD27-'Real Estate'!$E$5","v":{"v":262318.57697113283,"d":"262,319"}},{"$f":"Equities!BB23+'T Bills'!BB23+'T Bonds'!BB23+'Real Estate'!BE27-'Real Estate'!$E$5","v":{"v":983953.7234257571,"d":"983,954"}},{"$f":"Equities!BC23+'T Bills'!BC23+'T Bonds'!BC23+'Real Estate'!BF27-'Real Estate'!$E$5","v":{"v":2618095.011649494,"d":"2,618,095"}},{"$f":"Equities!BD23+'T Bills'!BD23+'T Bonds'!BD23+'Real Estate'!BG27-'Real Estate'!$E$5","v":{"v":4612472.110346959,"d":"4,612,472"}},{"$f":"Equities!BE23+'T Bills'!BE23+'T Bonds'!BE23+'Real Estate'!BH27-'Real Estate'!$E$5","v":{"v":3428681.0275800424,"d":"3,428,681"}},{"$f":"Equities!BF23+'T Bills'!BF23+'T Bonds'!BF23+'Real Estate'!BI27-'Real Estate'!$E$5","v":{"v":349875.3110549505,"d":"349,875"}},{"$f":"Equities!BG23+'T Bills'!BG23+'T Bonds'!BG23+'Real Estate'!BJ27-'Real Estate'!$E$5","v":{"v":764290.0072056144,"d":"764,290"}},{"$f":"Equities!BH23+'T Bills'!BH23+'T Bonds'!BH23+'Real Estate'!BK27-'Real Estate'!$E$5","v":{"v":1810143.81423328,"d":"1,810,144"}},{"$f":"Equities!BI23+'T Bills'!BI23+'T Bonds'!BI23+'Real Estate'!BL27-'Real Estate'!$E$5","v":{"v":6082555.009621153,"d":"6,082,555"}},{"$f":"Equities!BJ23+'T Bills'!BJ23+'T Bonds'!BJ23+'Real Estate'!BM27-'Real Estate'!$E$5","v":{"v":1658973.2418602516,"d":"1,658,973"}},{"$f":"Equities!BK23+'T Bills'!BK23+'T Bonds'!BK23+'Real Estate'!BN27-'Real Estate'!$E$5","v":{"v":2537980.8306033253,"d":"2,537,981"}},{"$f":"Equities!BL23+'T Bills'!BL23+'T Bonds'!BL23+'Real Estate'!BO27-'Real Estate'!$E$5","v":{"v":3394860.4416694725,"d":"3,394,860"}},{"$f":"Equities!BM23+'T Bills'!BM23+'T Bonds'!BM23+'Real Estate'!BP27-'Real Estate'!$E$5","v":{"v":903000.6996223296,"d":"903,001"}},{"$f":"Equities!BN23+'T Bills'!BN23+'T Bonds'!BN23+'Real Estate'!BQ27-'Real Estate'!$E$5","v":{"v":12437816.02829159,"d":"12,437,816"}},{"$f":"Equities!BO23+'T Bills'!BO23+'T Bonds'!BO23+'Real Estate'!BR27-'Real Estate'!$E$5","v":{"v":4441222.04013737,"d":"4,441,222"}},{"$f":"Equities!BP23+'T Bills'!BP23+'T Bonds'!BP23+'Real Estate'!BS27-'Real Estate'!$E$5","v":{"v":3420030.984482658,"d":"3,420,031"}},{"$f":"Equities!BQ23+'T Bills'!BQ23+'T Bonds'!BQ23+'Real Estate'!BT27-'Real Estate'!$E$5","v":{"v":2214761.545755384,"d":"2,214,762"}},{"$f":"Equities!BR23+'T Bills'!BR23+'T Bonds'!BR23+'Real Estate'!BU27-'Real Estate'!$E$5","v":{"v":8544033.177801887,"d":"8,544,033"}},{"$f":"Equities!BS23+'T Bills'!BS23+'T Bonds'!BS23+'Real Estate'!BV27-'Real Estate'!$E$5","v":{"v":8723928.169398794,"d":"8,723,928"}},{"$f":"Equities!BT23+'T Bills'!BT23+'T Bonds'!BT23+'Real Estate'!BW27-'Real Estate'!$E$5","v":{"v":654482.8235749243,"d":"654,483"}},{"$f":"Equities!BU23+'T Bills'!BU23+'T Bonds'!BU23+'Real Estate'!BX27-'Real Estate'!$E$5","v":{"v":1163538.312700357,"d":"1,163,538"}},{"$f":"Equities!BV23+'T Bills'!BV23+'T Bonds'!BV23+'Real Estate'!BY27-'Real Estate'!$E$5","v":{"v":1693215.5113603992,"d":"1,693,216"}},{"$f":"Equities!BW23+'T Bills'!BW23+'T Bonds'!BW23+'Real Estate'!BZ27-'Real Estate'!$E$5","v":{"v":526076.922605074,"d":"526,077"}},{"$f":"Equities!BX23+'T Bills'!BX23+'T Bonds'!BX23+'Real Estate'!CA27-'Real Estate'!$E$5","v":{"v":4187496.7948174058,"d":"4,187,497"}},{"$f":"Equities!BY23+'T Bills'!BY23+'T Bonds'!BY23+'Real Estate'!CB27-'Real Estate'!$E$5","v":{"v":7951991.464561519,"d":"7,951,991"}},{"$f":"Equities!BZ23+'T Bills'!BZ23+'T Bonds'!BZ23+'Real Estate'!CC27-'Real Estate'!$E$5","v":{"v":1172659.8457318766,"d":"1,172,660"}},{"$f":"Equities!CA23+'T Bills'!CA23+'T Bonds'!CA23+'Real Estate'!CD27-'Real Estate'!$E$5","v":{"v":1697990.56743009,"d":"1,697,991"}},{"$f":"Equities!CB23+'T Bills'!CB23+'T Bonds'!CB23+'Real Estate'!CE27-'Real Estate'!$E$5","v":{"v":1020909.7931804827,"d":"1,020,910"}},{"$f":"Equities!CC23+'T Bills'!CC23+'T Bonds'!CC23+'Real Estate'!CF27-'Real Estate'!$E$5","v":{"v":4708773.168137829,"d":"4,708,773"}},{"$f":"Equities!CD23+'T Bills'!CD23+'T Bonds'!CD23+'Real Estate'!CG27-'Real Estate'!$E$5","v":{"v":5949818.590486375,"d":"5,949,819"}},{"$f":"Equities!CE23+'T Bills'!CE23+'T Bonds'!CE23+'Real Estate'!CH27-'Real Estate'!$E$5","v":{"v":14913327.343419896,"d":"14,913,327"}},{"$f":"Equities!CF23+'T Bills'!CF23+'T Bonds'!CF23+'Real Estate'!CI27-'Real Estate'!$E$5","v":{"v":1585319.0868360142,"d":"1,585,319"}},{"$f":"Equities!CG23+'T Bills'!CG23+'T Bonds'!CG23+'Real Estate'!CJ27-'Real Estate'!$E$5","v":{"v":3573366.2179392087,"d":"3,573,366"}},{"$f":"Equities!CH23+'T Bills'!CH23+'T Bonds'!CH23+'Real Estate'!CK27-'Real Estate'!$E$5","v":{"v":5216420.0345442835,"d":"5,216,420"}},{"$f":"Equities!CI23+'T Bills'!CI23+'T Bonds'!CI23+'Real Estate'!CL27-'Real Estate'!$E$5","v":{"v":1585398.2186253406,"d":"1,585,398"}},{"$f":"Equities!CJ23+'T Bills'!CJ23+'T Bonds'!CJ23+'Real Estate'!CM27-'Real Estate'!$E$5","v":{"v":26541279.86772188,"d":"26,541,280"}},{"$f":"Equities!CK23+'T Bills'!CK23+'T Bonds'!CK23+'Real Estate'!CN27-'Real Estate'!$E$5","v":{"v":6339836.261865827,"d":"6,339,836"}},{"$f":"Equities!CL23+'T Bills'!CL23+'T Bonds'!CL23+'Real Estate'!CO27-'Real Estate'!$E$5","v":{"v":12693223.397368653,"d":"12,693,223"}},{"$f":"Equities!CM23+'T Bills'!CM23+'T Bonds'!CM23+'Real Estate'!CP27-'Real Estate'!$E$5","v":{"v":8991307.969674705,"d":"8,991,308"}},{"$f":"Equities!CN23+'T Bills'!CN23+'T Bonds'!CN23+'Real Estate'!CQ27-'Real Estate'!$E$5","v":{"v":24387203.061306167,"d":"24,387,203"}},{"$f":"Equities!CO23+'T Bills'!CO23+'T Bonds'!CO23+'Real Estate'!CR27-'Real Estate'!$E$5","v":{"v":7005400.423941757,"d":"7,005,400"}},{"$f":"Equities!CP23+'T Bills'!CP23+'T Bonds'!CP23+'Real Estate'!CS27-'Real Estate'!$E$5","v":{"v":248684.00539497897,"d":"248,684"}},{"$f":"Equities!CQ23+'T Bills'!CQ23+'T Bonds'!CQ23+'Real Estate'!CT27-'Real Estate'!$E$5","v":{"v":2726708.4763410874,"d":"2,726,708"}},{"$f":"Equities!CR23+'T Bills'!CR23+'T Bonds'!CR23+'Real Estate'!CU27-'Real Estate'!$E$5","v":{"v":16999527.84185161,"d":"16,999,528"}},{"$f":"Equities!CS23+'T Bills'!CS23+'T Bonds'!CS23+'Real Estate'!CV27-'Real Estate'!$E$5","v":{"v":7766019.67055916,"d":"7,766,020"}},{"$f":"Equities!CT23+'T Bills'!CT23+'T Bonds'!CT23+'Real Estate'!CW27-'Real Estate'!$E$5","v":{"v":4558676.841358522,"d":"4,558,677"}},{"$f":"Equities!CU23+'T Bills'!CU23+'T Bonds'!CU23+'Real Estate'!CX27-'Real Estate'!$E$5","v":{"v":21189064.182045627,"d":"21,189,064"}},{"$f":"Equities!CV23+'T Bills'!CV23+'T Bonds'!CV23+'Real Estate'!CY27-'Real Estate'!$E$5","v":{"v":11929208.15990274,"d":"11,929,208"}},{"$f":"Equities!CW23+'T Bills'!CW23+'T Bonds'!CW23+'Real Estate'!CZ27-'Real Estate'!$E$5","v":{"v":922028.6670433742,"d":"922,029"}},{"$f":"Equities!CX23+'T Bills'!CX23+'T Bonds'!CX23+'Real Estate'!DA27-'Real Estate'!$E$5","v":{"v":6300269.7608978255,"d":"6,300,270"}}]
[{"$f":"Main!A30","v":"2045-12-30"},91,{"$f":"Equities!C24+'T Bills'!C24+'T Bonds'!C24+'Real Estate'!F28-'Real Estate'!$E$5","v":{"v":3015422.953427207,"d":"3,015,423"}},{"$f":"Equities!D24+'T Bills'!D24+'T Bonds'!D24+'Real Estate'!G28-'Real Estate'!$E$5","v":{"v":1992781.6589667741,"d":"1,992,782"}},{"$f":"Equities!E24+'T Bills'!E24+'T Bonds'!E24+'Real Estate'!H28-'Real Estate'!$E$5","v":{"v":4324260.116046419,"d":"4,324,260"}},{"$f":"Equities!F24+'T Bills'!F24+'T Bonds'!F24+'Real Estate'!I28-'Real Estate'!$E$5","v":{"v":8350321.981839442,"d":"8,350,322"}},{"$f":"Equities!G24+'T Bills'!G24+'T Bonds'!G24+'Real Estate'!J28-'Real Estate'!$E$5","v":{"v":13321382.04075808,"d":"13,321,382"}},{"$f":"Equities!H24+'T Bills'!H24+'T Bonds'!H24+'Real Estate'!K28-'Real Estate'!$E$5","v":{"v":5062999.272953597,"d":"5,062,999"}},{"$f":"Equities!I24+'T Bills'!I24+'T Bonds'!I24+'Real Estate'!L28-'Real Estate'!$E$5","v":{"v":1871878.6438223557,"d":"1,871,879"}},{"$f":"Equities!J24+'T Bills'!J24+'T Bonds'!J24+'Real Estate'!M28-'Real Estate'!$E$5","v":{"v":3236164.415966691,"d":"3,236,164"}},{"$f":"Equities!K24+'T Bills'!K24+'T Bonds'!K24+'Real Estate'!N28-'Real Estate'!$E$5","v":{"v":3536688.7639200203,"d":"3,536,689"}},{"$f":"Equities!L24+'T Bills'!L24+'T Bonds'!L24+'Real Estate'!O28-'Real Estate'!$E$5","v":{"v":11991247.531113032,"d":"11,991,248"}},{"$f":"Equities!M24+'T Bills'!M24+'T Bonds'!M24+'Real Estate'!P28-'Real Estate'!$E$5","v":{"v":3176058.327510457,"d":"3,176,058"}},{"$f":"Equities!N24+'T Bills'!N24+'T Bonds'!N24+'Real Estate'!Q28-'Real Estate'!$E$5","v":{"v":-78506.32043108599,"d":"-78,506"}},{"$f":"Equities!O24+'T Bills'!O24+'T Bonds'!O24+'Real Estate'!R28-'Real Estate'!$E$5","v":{"v":3596598.679892183,"d":"3,596,599"}},{"$f":"Equities!P24+'T Bills'!P24+'T Bonds'!P24+'Real Estate'!S28-'Real Estate'!$E$5","v":{"v":2266871.63809519,"d":"2,266,872"}},{"$f":"Equities!Q24+'T Bills'!Q24+'T Bonds'!Q24+'Real Estate'!T28-'Real Estate'!$E$5","v":{"v":1021772.5109098265,"d":"1,021,773"}},{"$f":"Equities!R24+'T Bills'!R24+'T Bonds'!R24+'Real Estate'!U28-'Real Estate'!$E$5","v":{"v":1962279.9411019112,"d":"1,962,280"}},{"$f":"Equities!S24+'T Bills'!S24+'T Bonds'!S24+'Real Estate'!V28-'Real Estate'!$E$5","v":{"v":525688.7792041276,"d":"525,689"}},{"$f":"Equities!T24+'T Bills'!T24+'T Bonds'!T24+'Real Estate'!W28-'Real Estate'!$E$5","v":{"v":297961.8806552175,"d":"297,962"}},{"$f":"Equities!U24+'T Bills'!U24+'T Bonds'!U24+'Real Estate'!X28-'Real Estate'!$E$5","v":{"v":1531319.9175033655,"d":"1,531,320"}},{"$f":"Equities!V24+'T Bills'!V24+'T Bonds'!V24+'Real Estate'!Y28-'Real Estate'!$E$5","v":{"v":8838481.2898076,"d":"8,838,481"}},{"$f":"Equities!W24+'T Bills'!W24+'T Bonds'!W24+'Real Estate'!Z28-'Real Estate'!$E$5","v":{"v":4872794.454560823,"d":"4,872,794"}},{"$f":"Equities!X24+'T Bills'!X24+'T Bonds'!X24+'Real Estate'!AA28-'Real Estate'!$E$5","v":{"v":2451107.760658955,"d":"2,451,108"}},{"$f":"Equities!Y24+'T Bills'!Y24+'T Bonds'!Y24+'Real Estate'!AB28-'Real Estate'!$E$5","v":{"v":2269048.423483458,"d":"2,269,048"}},{"$f":"Equities!Z24+'T Bills'!Z24+'T Bonds'!Z24+'Real Estate'!AC28-'Real Estate'!$E$5","v":{"v":1492776.5323971075,"d":"1,492,777"}},{"$f":"Equities!AA24+'T Bills'!AA24+'T Bonds'!AA24+'Real Estate'!AD28-'Real Estate'!$E$5","v":{"v":4734284.719831756,"d":"4,734,285"}},{"$f":"Equities!AB24+'T Bills'!AB24+'T Bonds'!AB24+'Real Estate'!AE28-'Real Estate'!$E$5","v":{"v":2150243.691644975,"d":"2,150,244"}},{"$f":"Equities!AC24+'T Bills'!AC24+'T Bonds'!AC24+'Real Estate'!AF28-'Real Estate'!$E$5","v":{"v":1421568.2709295729,"d":"1,421,568"}},{"$f":"Equities!AD24+'T Bills'!AD24+'T Bonds'!AD24+'Real Estate'!AG28-'Real Estate'!$E$5","v":{"v":1679416.1967707959,"d":"1,679,416"}},{"$f":"Equities!AE24+'T Bills'!AE24+'T Bonds'!AE24+'Real Estate'!AH28-'Real Estate'!$E$5","v":{"v":1087941.7486154856,"d":"1,087,942"}},{"$f":"Equities!AF24+'T Bills'!AF24+'T Bonds'!AF24+'Real Estate'!AI28-'Real Estate'!$E$5","v":{"v":24038992.017126143,"d":"24,038,992"}},{"$f":"Equities!AG24+'T Bills'!AG24+'T Bonds'!AG24+'Real Estate'!AJ28-'Real Estate'!$E$5","v":{"v":21714080.05063486,"d":"21,714,080"}},{"$f":"Equities!AH24+'T Bills'!AH24+'T Bonds'!AH24+'Real Estate'!AK28-'Real Estate'!$E$5","v":{"v":3030779.6225556172,"d":"3,030,780"}},{"$f":"Equities!AI24+'T Bills'!AI24+'T Bonds'!AI24+'Real Estate'!AL28-'Real Estate'!$E$5","v":{"v":5818794.898528275,"d":"5,818,795"}},{"$f":"Equities!AJ24+'T Bills'!AJ24+'T Bonds'!AJ24+'Real Estate'!AM28-'Real Estate'!$E$5","v":{"v":8820751.449517297,"d":"8,820,751"}},{"$f":"Equities!AK24+'T Bills'!AK24+'T Bonds'!AK24+'Real Estate'!AN28-'Real Estate'!$E$5","v":{"v":1190254.767041727,"d":"1,190,255"}},{"$f":"Equities!AL24+'T Bills'!AL24+'T Bonds'!AL24+'Real Estate'!AO28-'Real Estate'!$E$5","v":{"v":4519074.288792742,"d":"4,519,074"}},{"$f":"Equities!AM24+'T Bills'!AM24+'T Bonds'!AM24+'Real Estate'!AP28-'Real Estate'!$E$5","v":{"v":440999.6651763557,"d":"441,000"}},{"$f":"Equities!AN24+'T Bills'!AN24+'T Bonds'!AN24+'Real Estate'!AQ28-'Real Estate'!$E$5","v":{"v":6855001.149094121,"d":"6,855,001"}},{"$f":"Equities!AO24+'T Bills'!AO24+'T Bonds'!AO24+'Real Estate'!AR28-'Real Estate'!$E$5","v":{"v":4396756.968027761,"d":"4,396,757"}},{"$f":"Equities!AP24+'T Bills'!AP24+'T Bonds'!AP24+'Real Estate'!AS28-'Real Estate'!$E$5","v":{"v":26880229.079636034,"d":"26,880,229"}},{"$f":"Equities!AQ24+'T Bills'!AQ24+'T Bonds'!AQ24+'Real Estate'!AT28-'Real Estate'!$E$5","v":{"v":731484.4364125445,"d":"731,484"}},{"$f":"Equities!AR24+'T Bills'!AR24+'T Bonds'!AR24+'Real Estate'!AU28-'Real Estate'!$E$5","v":{"v":5271649.142236634,"d":"5,271,649"}},{"$f":"Equities!AS24+'T Bills'!AS24+'T Bonds'!AS24+'Real Estate'!AV28-'Real Estate'!$E$5","v":{"v":2606799.8529656846,"d":"2,606,800"}},{"$f":"Equities!AT24+'T Bills'!AT24+'T Bonds'!AT24+'Real Estate'!AW28-'Real Estate'!$E$5","v":{"v":943460.4731577173,"d":"943,460"}},{"$f":"Equities!AU24+'T Bills'!AU24+'T Bonds'!AU24+'Real Estate'!AX28-'Real Estate'!$E$5","v":{"v":6520588.405723045,"d":"6,520,588"}},{"$f":"Equities!AV24+'T Bills'!AV24+'T Bonds'!AV24+'Real Estate'!AY28-'Real Estate'!$E$5","v":{"v":7749188.820511464,"d":"7,749,189"}},{"$f":"Equities!AW24+'T Bills'!AW24+'T Bonds'!AW24+'Real Estate'!AZ28-'Real Estate'!$E$5","v":{"v":1039723.7360687354,"d":"1,039,724"}},{"$f":"Equities!AX24+'T Bills'!AX24+'T Bonds'!AX24+'Real Estate'!BA28-'Real Estate'!$E$5","v":{"v":4816925.395280274,"d":"4,816,925"}},{"$f":"Equities!AY24+'T Bills'!AY24+'T Bonds'!AY24+'Real Estate'!BB28-'Real Estate'!$E$5","v":{"v":5183477.741280273,"d":"5,183,478"}},{"$f":"Equities!AZ24+'T Bills'!AZ24+'T Bonds'!AZ24+'Real Estate'!BC28-'Real Estate'!$E$5","v":{"v":443060.2654024122,"d":"443,060"}},{"$f":"Equities!BA24+'T Bills'!BA24+'T Bonds'!BA24+'Real Estate'!BD28-'Real Estate'!$E$5","v":{"v":-39817.69721975816,"d":"-39,818"}},{"$f":"Equities!BB24+'T Bills'!BB24+'T Bonds'!BB24+'Real Estate'!BE28-'Real Estate'!$E$5","v":{"v":723531.3665886825,"d":"723,531"}},{"$f":"Equities!BC24+'T Bills'!BC24+'T Bonds'!BC24+'Real Estate'!BF28-'Real Estate'!$E$5","v":{"v":2575819.7387734344,"d":"2,575,820"}},{"$f":"Equities!BD24+'T Bills'!BD24+'T Bonds'!BD24+'Real Estate'!BG28-'Real Estate'!$E$5","v":{"v":5677829.487013834,"d":"5,677,829"}},{"$f":"Equities!BE24+'T Bills'!BE24+'T Bonds'!BE24+'Real Estate'!BH28-'Real Estate'!$E$5","v":{"v":3762326.3268613606,"d":"3,762,326"}},{"$f":"Equities!BF24+'T Bills'!BF24+'T Bonds'!BF24+'Real Estate'!BI28-'Real Estate'!$E$5","v":{"v":245288.61749386566,"d":"245,289"}},{"$f":"Equities!BG24+'T Bills'!BG24+'T Bonds'!BG24+'Real Estate'!BJ28-'Real Estate'!$E$5","v":{"v":516110.95856126334,"d":"516,111"}},{"$f":"Equities!BH24+'T Bills'!BH24+'T Bonds'!BH24+'Real Estate'!BK28-'Real Estate'!$E$5","v":{"v":1363692.8419575344,"d":"1,363,693"}},{"$f":"Equities!BI24+'T Bills'!BI24+'T Bonds'!BI24+'Real Estate'!BL28-'Real Estate'!$E$5","v":{"v":6342163.049757885,"d":"6,342,163"}},{"$f":"Equities!BJ24+'T Bills'!BJ24+'T Bonds'!BJ24+'Real Estate'!BM28-'Real Estate'!$E$5","v":{"v":1392640.2846119597,"d":"1,392,640"}},{"$f":"Equities!BK24+'T Bills'!BK24+'T Bonds'!BK24+'Real Estate'!BN28-'Real Estate'!$E$5","v":{"v":2361922.4990115967,"d":"2,361,922"}},{"$f":"Equities!BL24+'T Bills'!BL24+'T Bonds'!BL24+'Real Estate'!BO28-'Real Estate'!$E$5","v":{"v":3683086.051242828,"d":"3,683,086"}},{"$f":"Equities!BM24+'T Bills'!BM24+'T Bonds'!BM24+'Real Estate'!BP28-'Real Estate'!$E$5","v":{"v":759739.5753946404,"d":"759,740"}},{"$f":"Equities!BN24+'T Bills'!BN24+'T Bonds'!BN24+'Real Estate'!BQ28-'Real Estate'!$E$5","v":{"v":11294868.929927656,"d":"11,294,869"}},{"$f":"Equities!BO24+'T Bills'!BO24+'T Bonds'!BO24+'Real Estate'!BR28-'Real Estate'!$E$5","v":{"v":5336632.415211511,"d":"5,336,632"}},{"$f":"Equities!BP24+'T Bills'!BP24+'T Bonds'!BP24+'Real Estate'!BS28-'Real Estate'!$E$5","v":{"v":4196793.618571673,"d":"4,196,794"}},{"$f":"Equities!BQ24+'T Bills'!BQ24+'T Bonds'!BQ24+'Real Estate'!BT28-'Real Estate'!$E$5","v":{"v":2255702.5500413543,"d":"2,255,703"}},{"$f":"Equities!BR24+'T Bills'!BR24+'T Bonds'!BR24+'Real Estate'!BU28-'Real Estate'!$E$5","v":{"v":9673999.606360283,"d":"9,674,000"}},{"$f":"Equities!BS24+'T Bills'!BS24+'T Bonds'!BS24+'Real Estate'!BV28-'Real Estate'!$E$5","v":{"v":8858643.030700766,"d":"8,858,643"}},{"$f":"Equities!BT24+'T Bills'!BT24+'T Bonds'!BT24+'Real Estate'!BW28-'Real Estate'!$E$5","v":{"v":452415.8196282244,"d":"452,416"}},{"$f":"Equities!BU24+'T Bills'!BU24+'T Bonds'!BU24+'Real Estate'!BX28-'Real Estate'!$E$5","v":{"v":921134.0777694337,"d":"921,134"}},{"$f":"Equities!BV24+'T Bills'!BV24+'T Bonds'!BV24+'Real Estate'!BY28-'Real Estate'!$E$5","v":{"v":1426351.6375924658,"d":"1,426,352"}},{"$f":"Equities!BW24+'T Bills'!BW24+'T Bonds'!BW24+'Real Estate'!BZ28-'Real Estate'!$E$5","v":{"v":106089.69030303777,"d":"106,090"}},{"$f":"Equities!BX24+'T Bills'!BX24+'T Bonds'!BX24+'Real Estate'!CA28-'Real Estate'!$E$5","v":{"v":5091022.785264205,"d":"5,091,023"}},{"$f":"Equities!BY24+'T Bills'!BY24+'T Bonds'!BY24+'Real Estate'!CB28-'Real Estate'!$E$5","v":{"v":9509522.065832252,"d":"9,509,522"}},{"$f":"Equities!BZ24+'T Bills'!BZ24+'T Bonds'!BZ24+'Real Estate'!CC28-'Real Estate'!$E$5","v":{"v":837782.69504584,"d":"837,783"}},{"$f":"Equities!CA24+'T Bills'!CA24+'T Bonds'!CA24+'Real Estate'!CD28-'Real Estate'!$E$5","v":{"v":1457995.2927717294,"d":"1,457,995"}},{"$f":"Equities!CB24+'T Bills'!CB24+'T Bonds'!CB24+'Real Estate'!CE28-'Real Estate'!$E$5","v":{"v":762137.5276011433,"d":"762,138"}},{"$f":"Equities!CC24+'T Bills'!CC24+'T Bonds'!CC24+'Real Estate'!CF28-'Real Estate'!$E$5","v":{"v":4498320.133950975,"d":"4,498,320"}},{"$f":"Equities!CD24+'T Bills'!CD24+'T Bonds'!CD24+'Real Estate'!CG28-'Real Estate'!$E$5","v":{"v":7737990.683603703,"d":"7,737,991"}},{"$f":"Equities!CE24+'T Bills'!CE24+'T Bonds'!CE24+'Real Estate'!CH28-'Real Estate'!$E$5","v":{"v":17268725.983433265,"d":"17,268,726"}},{"$f":"Equities!CF24+'T Bills'!CF24+'T Bonds'!CF24+'Real Estate'!CI28-'Real Estate'!$E$5","v":{"v":1294132.1437203318,"d":"1,294,132"}},{"$f":"Equities!CG24+'T Bills'!CG24+'T Bonds'!CG24+'Real Estate'!CJ28-'Real Estate'!$E$5","v":{"v":2547908.4699093965,"d":"2,547,908"}},{"$f":"Equities!CH24+'T Bills'!CH24+'T Bonds'!CH24+'Real Estate'!CK28-'Real Estate'!$E$5","v":{"v":5980851.140921003,"d":"5,980,851"}},{"$f":"Equities!CI24+'T Bills'!CI24+'T Bonds'!CI24+'Real Estate'!CL28-'Real Estate'!$E$5","v":{"v":1584430.9706304015,"d":"1,584,431"}},{"$f":"Equities!CJ24+'T Bills'!CJ24+'T Bonds'!CJ24+'Real Estate'!CM28-'Real Estate'!$E$5","v":{"v":17019308.948191803,"d":"17,019,309"}},{"$f":"Equities!CK24+'T Bills'!CK24+'T Bonds'!CK24+'Real Estate'!CN28-'Real Estate'!$E$5","v":{"v":8558703.75757183,"d":"8,558,704"}},{"$f":"Equities!CL24+'T Bills'!CL24+'T Bonds'!CL24+'Real Estate'!CO28-'Real Estate'!$E$5","v":{"v":16000416.481109448,"d":"16,000,416"}},{"$f":"Equities!CM24+'T Bills'!CM24+'T Bonds'!CM24+'Real Estate'!CP28-'Real Estate'!$E$5","v":{"v":9776248.233888505,"d":"9,776,248"}},{"$f":"Equities!CN24+'T Bills'!CN24+'T Bonds'!CN24+'Real Estate'!CQ28-'Real Estate'!$E$5","v":{"v":25807690.220752098,"d":"25,807,690"}},{"$f":"Equities!CO24+'T Bills'!CO24+'T Bonds'!CO24+'Real Estate'!CR28-'Real Estate'!$E$5","v":{"v":7380256.315336408,"d":"7,380,256"}},{"$f":"Equities!CP24+'T Bills'!CP24+'T Bonds'!CP24+'Real Estate'!CS28-'Real Estate'!$E$5","v":{"v":-159658.5256353424,"d":"-159,659"}},{"$f":"Equities!CQ24+'T Bills'!CQ24+'T Bonds'!CQ24+'Real Estate'!CT28-'Real Estate'!$E$5","v":{"v":1965088.5350991422,"d":"1,965,089"}},{"$f":"Equities!CR24+'T Bills'!CR24+'T Bonds'!CR24+'Real Estate'!CU28-'Real Estate'!$E$5","v":{"v":21795801.30896956,"d":"21,795,801"}},{"$f":"Equities!CS24+'T Bills'!CS24+'T Bonds'!CS24+'Real Estate'!CV28-'Real Estate'!$E$5","v":{"v":7047870.983284379,"d":"7,047,871"}},{"$f":"Equities!CT24+'T Bills'!CT24+'T Bonds'!CT24+'Real Estate'!CW28-'Real Estate'!$E$5","v":{"v":5480401.076948843,"d":"5,480,401"}},{"$f":"Equities!CU24+'T Bills'!CU24+'T Bonds'!CU24+'Real Estate'!CX28-'Real Estate'!$E$5","v":{"v":26484509.83767679,"d":"26,484,510"}},{"$f":"Equities!CV24+'T Bills'!CV24+'T Bonds'!CV24+'Real Estate'!CY28-'Real Estate'!$E$5","v":{"v":13310431.06389454,"d":"13,310,431"}},{"$f":"Equities!CW24+'T Bills'!CW24+'T Bonds'!CW24+'Real Estate'!CZ28-'Real Estate'!$E$5","v":{"v":740927.9108337312,"d":"740,928"}},{"$f":"Equities!CX24+'T Bills'!CX24+'T Bonds'!CX24+'Real Estate'!DA28-'Real Estate'!$E$5","v":{"v":6308328.446305098,"d":"6,308,328"}}]
[{"$f":"Main!A31","v":"2046-12-30"},92,{"$f":"Equities!C25+'T Bills'!C25+'T Bonds'!C25+'Real Estate'!F29-'Real Estate'!$E$5","v":{"v":2621164.297042571,"d":"2,621,164"}},{"$f":"Equities!D25+'T Bills'!D25+'T Bonds'!D25+'Real Estate'!G29-'Real Estate'!$E$5","v":{"v":1986258.3686283065,"d":"1,986,258"}},{"$f":"Equities!E25+'T Bills'!E25+'T Bonds'!E25+'Real Estate'!H29-'Real Estate'!$E$5","v":{"v":4298056.6420687605,"d":"4,298,057"}},{"$f":"Equities!F25+'T Bills'!F25+'T Bonds'!F25+'Real Estate'!I29-'Real Estate'!$E$5","v":{"v":8002948.182895288,"d":"8,002,948"}},{"$f":"Equities!G25+'T Bills'!G25+'T Bonds'!G25+'Real Estate'!J29-'Real Estate'!$E$5","v":{"v":13658599.02804278,"d":"13,658,599"}},{"$f":"Equities!H25+'T Bills'!H25+'T Bonds'!H25+'Real Estate'!K29-'Real Estate'!$E$5","v":{"v":5526455.816135006,"d":"5,526,456"}},{"$f":"Equities!I25+'T Bills'!I25+'T Bonds'!I25+'Real Estate'!L29-'Real Estate'!$E$5","v":{"v":1911522.0194132568,"d":"1,911,522"}},{"$f":"Equities!J25+'T Bills'!J25+'T Bonds'!J25+'Real Estate'!M29-'Real Estate'!$E$5","v":{"v":3217739.2346918965,"d":"3,217,739"}},{"$f":"Equities!K25+'T Bills'!K25+'T Bonds'!K25+'Real Estate'!N29-'Real Estate'!$E$5","v":{"v":3495586.697667976,"d":"3,495,587"}},{"$f":"Equities!L25+'T Bills'!L25+'T Bonds'!L25+'Real Estate'!O29-'Real Estate'!$E$5","v":{"v":12417446.593003817,"d":"12,417,447"}},{"$f":"Equities!M25+'T Bills'!M25+'T Bonds'!M25+'Real Estate'!P29-'Real Estate'!$E$5","v":{"v":2587585.180043329,"d":"2,587,585"}},{"$f":"Equities!N25+'T Bills'!N25+'T Bonds'!N25+'Real Estate'!Q29-'Real Estate'!$E$5","v":{"v":-289896.61173942074,"d":"-289,897"}},{"$f":"Equities!O25+'T Bills'!O25+'T Bonds'!O25+'Real Estate'!R29-'Real Estate'!$E$5","v":{"v":2759259.5662200307,"d":"2,759,260"}},{"$f":"Equities!P25+'T Bills'!P25+'T Bonds'!P25+'Real Estate'!S29-'Real Estate'!$E$5","v":{"v":2121718.0030712904,"d":"2,121,718"}},{"$f":"Equities!Q25+'T Bills'!Q25+'T Bonds'!Q25+'Real Estate'!T29-'Real Estate'!$E$5","v":{"v":814629.6511031634,"d":"814,630"}},{"$f":"Equities!R25+'T Bills'!R25+'T Bonds'!R25+'Real Estate'!U29-'Real Estate'!$E$5","v":{"v":1673672.6396237449,"d":"1,673,673"}},{"$f":"Equities!S25+'T Bills'!S25+'T Bonds'!S25+'Real Estate'!V29-'Real Estate'!$E$5","v":{"v":228032.2440727764,"d":"228,032"}},{"$f":"Equities!T25+'T Bills'!T25+'T Bonds'!T25+'Real Estate'!W29-'Real Estate'!$E$5","v":{"v":-120730.3530575868,"d":"-120,730"}},{"$f":"Equities!U25+'T Bills'!U25+'T Bonds'!U25+'Real Estate'!X29-'Real Estate'!$E$5","v":{"v":1246782.4968594555,"d":"1,246,782"}},{"$f":"Equities!V25+'T Bills'!V25+'T Bonds'!V25+'Real Estate'!Y29-'Real Estate'!$E$5","v":{"v":8083671.663017847,"d":"8,083,672"}},{"$f":"Equities!W25+'T Bills'!W25+'T Bonds'!W25+'Real Estate'!Z29-'Real Estate'!$E$5","v":{"v":5034162.065572687,"d":"5,034,162"}},{"$f":"Equities!X25+'T Bills'!X25+'T Bonds'!X25+'Real Estate'!AA29-'Real Estate'!$E$5","v":{"v":2435020.3025382375,"d":"2,435,020"}},{"$f":"Equities!Y25+'T Bills'!Y25+'T Bonds'!Y25+'Real Estate'!AB29-'Real Estate'!$E$5","v":{"v":2060692.6337902776,"d":"2,060,693"}},{"$f":"Equities!Z25+'T Bills'!Z25+'T Bonds'!Z25+'Real Estate'!AC29-'Real Estate'!$E$5","v":{"v":1120543.4289397805,"d":"1,120,543"}},{"$f":"Equities!AA25+'T Bills'!AA25+'T Bonds'!AA25+'Real Estate'!AD29-'Real Estate'!$E$5","v":{"v":5580860.291275453,"d":"5,580,860"}},{"$f":"Equities!AB25+'T Bills'!AB25+'T Bonds'!AB25+'Real Estate'!AE29-'Real Estate'!$E$5","v":{"v":1929590.0634604918,"d":"1,929,590"}},{"$f":"Equities!AC25+'T Bills'!AC25+'T Bonds'!AC25+'Real Estate'!AF29-'Real Estate'!$E$5","v":{"v":1140865.1003640364,"d":"1,140,865"}},{"$f":"Equities!AD25+'T Bills'!AD25+'T Bonds'!AD25+'Real Estate'!AG29-'Real Estate'!$E$5","v":{"v":1491822.1125241118,"d":"1,491,822"}},{"$f":"Equities!AE25+'T Bills'!AE25+'T Bonds'!AE25+'Real Estate'!AH29-'Real Estate'!$E$5","v":{"v":898868.186115122,"d":"898,868"}},{"$f":"Equities!AF25+'T Bills'!AF25+'T Bonds'!AF25+'Real Estate'!AI29-'Real Estate'!$E$5","v":{"v":21845133.20922346,"d":"21,845,133"}},{"$f":"Equities!AG25+'T Bills'!AG25+'T Bonds'!AG25+'Real Estate'!AJ29-'Real Estate'!$E$5","v":{"v":27805540.06419472,"d":"27,805,540"}},{"$f":"Equities!AH25+'T Bills'!AH25+'T Bonds'!AH25+'Real Estate'!AK29-'Real Estate'!$E$5","v":{"v":3571289.6514677056,"d":"3,571,290"}},{"$f":"Equities!AI25+'T Bills'!AI25+'T Bonds'!AI25+'Real Estate'!AL29-'Real Estate'!$E$5","v":{"v":5081149.281215251,"d":"5,081,149"}},{"$f":"Equities!AJ25+'T Bills'!AJ25+'T Bonds'!AJ25+'Real Estate'!AM29-'Real Estate'!$E$5","v":{"v":9436696.083101885,"d":"9,436,696"}},{"$f":"Equities!AK25+'T Bills'!AK25+'T Bonds'!AK25+'Real Estate'!AN29-'Real Estate'!$E$5","v":{"v":996121.9939571556,"d":"996,122"}},{"$f":"Equities!AL25+'T Bills'!AL25+'T Bonds'!AL25+'Real Estate'!AO29-'Real Estate'!$E$5","v":{"v":5344922.115174575,"d":"5,344,922"}},{"$f":"Equities!AM25+'T Bills'!AM25+'T Bonds'!AM25+'Real Estate'!AP29-'Real Estate'!$E$5","v":{"v":-28335.332897182598,"d":"-28,335"}},{"$f":"Equities!AN25+'T Bills'!AN25+'T Bonds'!AN25+'Real Estate'!AQ29-'Real Estate'!$E$5","v":{"v":7650629.075788507,"d":"7,650,629"}},{"$f":"Equities!AO25+'T Bills'!AO25+'T Bonds'!AO25+'Real Estate'!AR29-'Real Estate'!$E$5","v":{"v":4099813.140597093,"d":"4,099,813"}},{"$f":"Equities!AP25+'T Bills'!AP25+'T Bonds'!AP25+'Real Estate'!AS29-'Real Estate'!$E$5","v":{"v":25830722.564787243,"d":"25,830,723"}},{"$f":"Equities!AQ25+'T Bills'!AQ25+'T Bonds'!AQ25+'Real Estate'!AT29-'Real Estate'!$E$5","v":{"v":446781.8566961586,"d":"446,782"}},{"$f":"Equities!AR25+'T Bills'!AR25+'T Bonds'!AR25+'Real Estate'!AU29-'Real Estate'!$E$5","v":{"v":5654433.585791804,"d":"5,654,434"}},{"$f":"Equities!AS25+'T Bills'!AS25+'T Bonds'!AS25+'Real Estate'!AV29-'Real Estate'!$E$5","v":{"v":2943325.700771301,"d":"2,943,326"}},{"$f":"Equities!AT25+'T Bills'!AT25+'T Bonds'!AT25+'Real Estate'!AW29-'Real Estate'!$E$5","v":{"v":600857.9889056783,"d":"600,858"}},{"$f":"Equities!AU25+'T Bills'!AU25+'T Bonds'!AU25+'Real Estate'!AX29-'Real Estate'!$E$5","v":{"v":6304019.163169189,"d":"6,304,019"}},{"$f":"Equities!AV25+'T Bills'!AV25+'T Bonds'!AV25+'Real Estate'!AY29-'Real Estate'!$E$5","v":{"v":7028992.838898406,"d":"7,028,993"}},{"$f":"Equities!AW25+'T Bills'!AW25+'T Bonds'!AW25+'Real Estate'!AZ29-'Real Estate'!$E$5","v":{"v":745879.4002294738,"d":"745,879"}},{"$f":"Equities!AX25+'T Bills'!AX25+'T Bonds'!AX25+'Real Estate'!BA29-'Real Estate'!$E$5","v":{"v":4231311.061982144,"d":"4,231,311"}},{"$f":"Equities!AY25+'T Bills'!AY25+'T Bonds'!AY25+'Real Estate'!BB29-'Real Estate'!$E$5","v":{"v":5718975.990558412,"d":"5,718,976"}},{"$f":"Equities!AZ25+'T Bills'!AZ25+'T Bonds'!AZ25+'Real Estate'!BC29-'Real Estate'!$E$5","v":{"v":1125.501338681337,"d":"1,126"}},{"$f":"Equities!BA25+'T Bills'!BA25+'T Bonds'!BA25+'Real Estate'!BD29-'Real Estate'!$E$5","v":{"v":-675100.2197009915,"d":"-675,100"}},{"$f":"Equities!BB25+'T Bills'!BB25+'T Bonds'!BB25+'Real Estate'!BE29-'Real Estate'!$E$5","v":{"v":457936.55911891855,"d":"457,937"}},{"$f":"Equities!BC25+'T Bills'!BC25+'T Bonds'!BC25+'Real Estate'!BF29-'Real Estate'!$E$5","v":{"v":2627241.217685151,"d":"2,627,241"}},{"$f":"Equities!BD25+'T Bills'!BD25+'T Bonds'!BD25+'Real Estate'!BG29-'Real Estate'!$E$5","v":{"v":6353021.669796047,"d":"6,353,022"}},{"$f":"Equities!BE25+'T Bills'!BE25+'T Bonds'!BE25+'Real Estate'!BH29-'Real Estate'!$E$5","v":{"v":3377602.4716986204,"d":"3,377,602"}},{"$f":"Equities!BF25+'T Bills'!BF25+'T Bonds'!BF25+'Real Estate'!BI29-'Real Estate'!$E$5","v":{"v":-347113.7663752193,"d":"-347,114"}},{"$f":"Equities!BG25+'T Bills'!BG25+'T Bonds'!BG25+'Real Estate'!BJ29-'Real Estate'!$E$5","v":{"v":297337.7467629682,"d":"297,338"}},{"$f":"Equities!BH25+'T Bills'!BH25+'T Bonds'!BH25+'Real Estate'!BK29-'Real Estate'!$E$5","v":{"v":1167569.1722485125,"d":"1,167,569"}},{"$f":"Equities!BI25+'T Bills'!BI25+'T Bonds'!BI25+'Real Estate'!BL29-'Real Estate'!$E$5","v":{"v":6022513.004987893,"d":"6,022,513"}},{"$f":"Equities!BJ25+'T Bills'!BJ25+'T Bonds'!BJ25+'Real Estate'!BM29-'Real Estate'!$E$5","v":{"v":1131337.9581754107,"d":"1,131,338"}},{"$f":"Equities!BK25+'T Bills'!BK25+'T Bonds'!BK25+'Real Estate'!BN29-'Real Estate'!$E$5","v":{"v":2384412.7272023982,"d":"2,384,413"}},{"$f":"Equities!BL25+'T Bills'!BL25+'T Bonds'!BL25+'Real Estate'!BO29-'Real Estate'!$E$5","v":{"v":4243565.699691112,"d":"4,243,566"}},{"$f":"Equities!BM25+'T Bills'!BM25+'T Bonds'!BM25+'Real Estate'!BP29-'Real Estate'!$E$5","v":{"v":507213.2159983088,"d":"507,213"}},{"$f":"Equities!BN25+'T Bills'!BN25+'T Bonds'!BN25+'Real Estate'!BQ29-'Real Estate'!$E$5","v":{"v":10933923.486917786,"d":"10,933,923"}},{"$f":"Equities!BO25+'T Bills'!BO25+'T Bonds'!BO25+'Real Estate'!BR29-'Real Estate'!$E$5","v":{"v":6460353.555064059,"d":"6,460,354"}},{"$f":"Equities!BP25+'T Bills'!BP25+'T Bonds'!BP25+'Real Estate'!BS29-'Real Estate'!$E$5","v":{"v":3895302.9711024375,"d":"3,895,303"}},{"$f":"Equities!BQ25+'T Bills'!BQ25+'T Bonds'!BQ25+'Real Estate'!BT29-'Real Estate'!$E$5","v":{"v":2528743.6792611666,"d":"2,528,744"}},{"$f":"Equities!BR25+'T Bills'!BR25+'T Bonds'!BR25+'Real Estate'!BU29-'Real Estate'!$E$5","v":{"v":8847503.074352814,"d":"8,847,503"}},{"$f":"Equities!BS25+'T Bills'!BS25+'T Bonds'!BS25+'Real Estate'!BV29-'Real Estate'!$E$5","v":{"v":10044383.497000601,"d":"10,044,383"}},{"$f":"Equities!BT25+'T Bills'!BT25+'T Bonds'!BT25+'Real Estate'!BW29-'Real Estate'!$E$5","v":{"v":116096.66863744952,"d":"116,097"}},{"$f":"Equities!BU25+'T Bills'!BU25+'T Bonds'!BU25+'Real Estate'!BX29-'Real Estate'!$E$5","v":{"v":612555.831922897,"d":"612,556"}},{"$f":"Equities!BV25+'T Bills'!BV25+'T Bonds'!BV25+'Real Estate'!BY29-'Real Estate'!$E$5","v":{"v":1117049.5275585686,"d":"1,117,050"}},{"$f":"Equities!BW25+'T Bills'!BW25+'T Bonds'!BW25+'Real Estate'!BZ29-'Real Estate'!$E$5","v":{"v":-340853.8126920419,"d":"-340,854"}},{"$f":"Equities!BX25+'T Bills'!BX25+'T Bonds'!BX25+'Real Estate'!CA29-'Real Estate'!$E$5","v":{"v":6041552.556278006,"d":"6,041,553"}},{"$f":"Equities!BY25+'T Bills'!BY25+'T Bonds'!BY25+'Real Estate'!CB29-'Real Estate'!$E$5","v":{"v":10790102.12778136,"d":"10,790,102"}},{"$f":"Equities!BZ25+'T Bills'!BZ25+'T Bonds'!BZ25+'Real Estate'!CC29-'Real Estate'!$E$5","v":{"v":554490.1953122317,"d":"554,490"}},{"$f":"Equities!CA25+'T Bills'!CA25+'T Bonds'!CA25+'Real Estate'!CD29-'Real Estate'!$E$5","v":{"v":1256385.8942190176,"d":"1,256,386"}},{"$f":"Equities!CB25+'T Bills'!CB25+'T Bonds'!CB25+'Real Estate'!CE29-'Real Estate'!$E$5","v":{"v":360976.2510947179,"d":"360,976"}},{"$f":"Equities!CC25+'T Bills'!CC25+'T Bonds'!CC25+'Real Estate'!CF29-'Real Estate'!$E$5","v":{"v":4770415.477743751,"d":"4,770,415"}},{"$f":"Equities!CD25+'T Bills'!CD25+'T Bonds'!CD25+'Real Estate'!CG29-'Real Estate'!$E$5","v":{"v":7848577.216506238,"d":"7,848,577"}},{"$f":"Equities!CE25+'T Bills'!CE25+'T Bonds'!CE25+'Real Estate'!CH29-'Real Estate'!$E$5","v":{"v":20289203.140240557,"d":"20,289,203"}},{"$f":"Equities!CF25+'T Bills'!CF25+'T Bonds'!CF25+'Real Estate'!CI29-'Real Estate'!$E$5","v":{"v":1030866.8235572877,"d":"1,030,867"}},{"$f":"Equities!CG25+'T Bills'!CG25+'T Bonds'!CG25+'Real Estate'!CJ29-'Real Estate'!$E$5","v":{"v":2185081.2267083265,"d":"2,185,081"}},{"$f":"Equities!CH25+'T Bills'!CH25+'T Bonds'!CH25+'Real Estate'!CK29-'Real Estate'!$E$5","v":{"v":5087564.888548381,"d":"5,087,565"}},{"$f":"Equities!CI25+'T Bills'!CI25+'T Bonds'!CI25+'Real Estate'!CL29-'Real Estate'!$E$5","v":{"v":1295781.6633900946,"d":"1,295,782"}},{"$f":"Equities!CJ25+'T Bills'!CJ25+'T Bonds'!CJ25+'Real Estate'!CM29-'Real Estate'!$E$5","v":{"v":15457213.117108874,"d":"15,457,213"}},{"$f":"Equities!CK25+'T Bills'!CK25+'T Bonds'!CK25+'Real Estate'!CN29-'Real Estate'!$E$5","v":{"v":9953480.868954318,"d":"9,953,481"}},{"$f":"Equities!CL25+'T Bills'!CL25+'T Bonds'!CL25+'Real Estate'!CO29-'Real Estate'!$E$5","v":{"v":17458985.225360926,"d":"17,458,985"}},{"$f":"Equities!CM25+'T Bills'!CM25+'T Bonds'!CM25+'Real Estate'!CP29-'Real Estate'!$E$5","v":{"v":14111899.531232437,"d":"14,111,900"}},{"$f":"Equities!CN25+'T Bills'!CN25+'T Bonds'!CN25+'Real Estate'!CQ29-'Real Estate'!$E$5","v":{"v":23110561.359600827,"d":"23,110,561"}},{"$f":"Equities!CO25+'T Bills'!CO25+'T Bonds'!CO25+'Real Estate'!CR29-'Real Estate'!$E$5","v":{"v":10052087.112064669,"d":"10,052,087"}},{"$f":"Equities!CP25+'T Bills'!CP25+'T Bonds'!CP25+'Real Estate'!CS29-'Real Estate'!$E$5","v":{"v":-607978.1598809034,"d":"-607,978"}},{"$f":"Equities!CQ25+'T Bills'!CQ25+'T Bonds'!CQ25+'Real Estate'!CT29-'Real Estate'!$E$5","v":{"v":1738864.3182653198,"d":"1,738,864"}},{"$f":"Equities!CR25+'T Bills'!CR25+'T Bonds'!CR25+'Real Estate'!CU29-'Real Estate'!$E$5","v":{"v":19327454.822406445,"d":"19,327,455"}},{"$f":"Equities!CS25+'T Bills'!CS25+'T Bonds'!CS25+'Real Estate'!CV29-'Real Estate'!$E$5","v":{"v":6198668.881297799,"d":"6,198,669"}},{"$f":"Equities!CT25+'T Bills'!CT25+'T Bonds'!CT25+'Real Estate'!CW29-'Real Estate'!$E$5","v":{"v":6079297.706160929,"d":"6,079,298"}},{"$f":"Equities!CU25+'T Bills'!CU25+'T Bonds'!CU25+'Real Estate'!CX29-'Real Estate'!$E$5","v":{"v":24104617.211659063,"d":"24,104,617"}},{"$f":"Equities!CV25+'T Bills'!CV25+'T Bonds'!CV25+'Real Estate'!CY29-'Real Estate'!$E$5","v":{"v":15705320.519289723,"d":"15,705,321"}},{"$f":"Equities!CW25+'T Bills'!CW25+'T Bonds'!CW25+'Real Estate'!CZ29-'Real Estate'!$E$5","v":{"v":448061.97668107896,"d":"448,062"}},{"$f":"Equities!CX25+'T Bills'!CX25+'T Bonds'!CX25+'Real Estate'!DA29-'Real Estate'!$E$5","v":{"v":5837166.526128178,"d":"5,837,167"}}]
[{"$f":"Main!A32","v":"2047-12-31"},93,{"$f":"Equities!C26+'T Bills'!C26+'T Bonds'!C26+'Real Estate'!F30-'Real Estate'!$E$5","v":{"v":2693942.7383847022,"d":"2,693,943"}},{"$f":"Equities!D26+'T Bills'!D26+'T Bonds'!D26+'Real Estate'!G30-'Real Estate'!$E$5","v":{"v":1939710.798288472,"d":"1,939,711"}},{"$f":"Equities!E26+'T Bills'!E26+'T Bonds'!E26+'Real Estate'!H30-'Real Estate'!$E$5","v":{"v":4822012.727400306,"d":"4,822,013"}},{"$f":"Equities!F26+'T Bills'!F26+'T Bonds'!F26+'Real Estate'!I30-'Real Estate'!$E$5","v":{"v":8835643.395911219,"d":"8,835,643"}},{"$f":"Equities!G26+'T Bills'!G26+'T Bonds'!G26+'Real Estate'!J30-'Real Estate'!$E$5","v":{"v":13327939.396877332,"d":"13,327,939"}},{"$f":"Equities!H26+'T Bills'!H26+'T Bonds'!H26+'Real Estate'!K30-'Real Estate'!$E$5","v":{"v":4887065.954138265,"d":"4,887,066"}},{"$f":"Equities!I26+'T Bills'!I26+'T Bonds'!I26+'Real Estate'!L30-'Real Estate'!$E$5","v":{"v":1904267.880473769,"d":"1,904,268"}},{"$f":"Equities!J26+'T Bills'!J26+'T Bonds'!J26+'Real Estate'!M30-'Real Estate'!$E$5","v":{"v":2202355.9812566163,"d":"2,202,356"}},{"$f":"Equities!K26+'T Bills'!K26+'T Bonds'!K26+'Real Estate'!N30-'Real Estate'!$E$5","v":{"v":3902714.550874533,"d":"3,902,715"}},{"$f":"Equities!L26+'T Bills'!L26+'T Bonds'!L26+'Real Estate'!O30-'Real Estate'!$E$5","v":{"v":9377297.247390456,"d":"9,377,297"}},{"$f":"Equities!M26+'T Bills'!M26+'T Bonds'!M26+'Real Estate'!P30-'Real Estate'!$E$5","v":{"v":2634670.862488164,"d":"2,634,671"}},{"$f":"Equities!N26+'T Bills'!N26+'T Bonds'!N26+'Real Estate'!Q30-'Real Estate'!$E$5","v":{"v":-580100.68382316,"d":"-580,101"}},{"$f":"Equities!O26+'T Bills'!O26+'T Bonds'!O26+'Real Estate'!R30-'Real Estate'!$E$5","v":{"v":2865075.3255772814,"d":"2,865,075"}},{"$f":"Equities!P26+'T Bills'!P26+'T Bonds'!P26+'Real Estate'!S30-'Real Estate'!$E$5","v":{"v":1838833.6468435659,"d":"1,838,834"}},{"$f":"Equities!Q26+'T Bills'!Q26+'T Bonds'!Q26+'Real Estate'!T30-'Real Estate'!$E$5","v":{"v":602223.4662480734,"d":"602,223"}},{"$f":"Equities!R26+'T Bills'!R26+'T Bonds'!R26+'Real Estate'!U30-'Real Estate'!$E$5","v":{"v":1353533.6867546556,"d":"1,353,534"}},{"$f":"Equities!S26+'T Bills'!S26+'T Bonds'!S26+'Real Estate'!V30-'Real Estate'!$E$5","v":{"v":-133316.80813786725,"d":"-133,317"}},{"$f":"Equities!T26+'T Bills'!T26+'T Bonds'!T26+'Real Estate'!W30-'Real Estate'!$E$5","v":{"v":-298057.9398677464,"d":"-298,058"}},{"$f":"Equities!U26+'T Bills'!U26+'T Bonds'!U26+'Real Estate'!X30-'Real Estate'!$E$5","v":{"v":1053044.189139315,"d":"1,053,044"}},{"$f":"Equities!V26+'T Bills'!V26+'T Bonds'!V26+'Real Estate'!Y30-'Real Estate'!$E$5","v":{"v":7186499.466440522,"d":"7,186,499"}},{"$f":"Equities!W26+'T Bills'!W26+'T Bonds'!W26+'Real Estate'!Z30-'Real Estate'!$E$5","v":{"v":5067509.869465102,"d":"5,067,510"}},{"$f":"Equities!X26+'T Bills'!X26+'T Bonds'!X26+'Real Estate'!AA30-'Real Estate'!$E$5","v":{"v":2253606.412710195,"d":"2,253,606"}},{"$f":"Equities!Y26+'T Bills'!Y26+'T Bonds'!Y26+'Real Estate'!AB30-'Real Estate'!$E$5","v":{"v":1649500.7573389674,"d":"1,649,501"}},{"$f":"Equities!Z26+'T Bills'!Z26+'T Bonds'!Z26+'Real Estate'!AC30-'Real Estate'!$E$5","v":{"v":807737.9286053589,"d":"807,738"}},{"$f":"Equities!AA26+'T Bills'!AA26+'T Bonds'!AA26+'Real Estate'!AD30-'Real Estate'!$E$5","v":{"v":5631113.044145313,"d":"5,631,113"}},{"$f":"Equities!AB26+'T Bills'!AB26+'T Bonds'!AB26+'Real Estate'!AE30-'Real Estate'!$E$5","v":{"v":1811487.3640670883,"d":"1,811,487"}},{"$f":"Equities!AC26+'T Bills'!AC26+'T Bonds'!AC26+'Real Estate'!AF30-'Real Estate'!$E$5","v":{"v":944907.8568112245,"d":"944,908"}},{"$f":"Equities!AD26+'T Bills'!AD26+'T Bonds'!AD26+'Real Estate'!AG30-'Real Estate'!$E$5","v":{"v":1270095.930910175,"d":"1,270,096"}},{"$f":"Equities!AE26+'T Bills'!AE26+'T Bonds'!AE26+'Real Estate'!AH30-'Real Estate'!$E$5","v":{"v":502022.7083139,"d":"502,023"}},{"$f":"Equities!AF26+'T Bills'!AF26+'T Bonds'!AF26+'Real Estate'!AI30-'Real Estate'!$E$5","v":{"v":24615994.7241666,"d":"24,615,995"}},{"$f":"Equities!AG26+'T Bills'!AG26+'T Bonds'!AG26+'Real Estate'!AJ30-'Real Estate'!$E$5","v":{"v":26764432.951016355,"d":"26,764,433"}},{"$f":"Equities!AH26+'T Bills'!AH26+'T Bonds'!AH26+'Real Estate'!AK30-'Real Estate'!$E$5","v":{"v":3832823.338409721,"d":"3,832,823"}},{"$f":"Equities!AI26+'T Bills'!AI26+'T Bonds'!AI26+'Real Estate'!AL30-'Real Estate'!$E$5","v":{"v":5417974.878697158,"d":"5,417,975"}},{"$f":"Equities!AJ26+'T Bills'!AJ26+'T Bonds'!AJ26+'Real Estate'!AM30-'Real Estate'!$E$5","v":{"v":10411782.190602342,"d":"10,411,782"}},{"$f":"Equities!AK26+'T Bills'!AK26+'T Bonds'!AK26+'Real Estate'!AN30-'Real Estate'!$E$5","v":{"v":689349.220204259,"d":"689,349"}},{"$f":"Equities!AL26+'T Bills'!AL26+'T Bonds'!AL26+'Real Estate'!AO30-'Real Estate'!$E$5","v":{"v":6038831.74712532,"d":"6,038,832"}},{"$f":"Equities!AM26+'T Bills'!AM26+'T Bonds'!AM26+'Real Estate'!AP30-'Real Estate'!$E$5","v":{"v":-382144.39183079003,"d":"-382,144"}},{"$f":"Equities!AN26+'T Bills'!AN26+'T Bonds'!AN26+'Real Estate'!AQ30-'Real Estate'!$E$5","v":{"v":8620484.536382739,"d":"8,620,485"}},{"$f":"Equities!AO26+'T Bills'!AO26+'T Bonds'!AO26+'Real Estate'!AR30-'Real Estate'!$E$5","v":{"v":3530473.503623559,"d":"3,530,474"}},{"$f":"Equities!AP26+'T Bills'!AP26+'T Bonds'!AP26+'Real Estate'!AS30-'Real Estate'!$E$5","v":{"v":36466269.69278988,"d":"36,466,270"}},{"$f":"Equities!AQ26+'T Bills'!AQ26+'T Bonds'!AQ26+'Real Estate'!AT30-'Real Estate'!$E$5","v":{"v":45648.696085365154,"d":"45,649"}},{"$f":"Equities!AR26+'T Bills'!AR26+'T Bonds'!AR26+'Real Estate'!AU30-'Real Estate'!$E$5","v":{"v":5390468.26033498,"d":"5,390,468"}},{"$f":"Equities!AS26+'T Bills'!AS26+'T Bonds'!AS26+'Real Estate'!AV30-'Real Estate'!$E$5","v":{"v":3460024.6379570942,"d":"3,460,025"}},{"$f":"Equities!AT26+'T Bills'!AT26+'T Bonds'!AT26+'Real Estate'!AW30-'Real Estate'!$E$5","v":{"v":-154721.2127737968,"d":"-154,721"}},{"$f":"Equities!AU26+'T Bills'!AU26+'T Bonds'!AU26+'Real Estate'!AX30-'Real Estate'!$E$5","v":{"v":5634693.020398366,"d":"5,634,693"}},{"$f":"Equities!AV26+'T Bills'!AV26+'T Bonds'!AV26+'Real Estate'!AY30-'Real Estate'!$E$5","v":{"v":8001052.83886768,"d":"8,001,053"}},{"$f":"Equities!AW26+'T Bills'!AW26+'T Bonds'!AW26+'Real Estate'!AZ30-'Real Estate'!$E$5","v":{"v":570212.5834339645,"d":"570,213"}},{"$f":"Equities!AX26+'T Bills'!AX26+'T Bonds'!AX26+'Real Estate'!BA30-'Real Estate'!$E$5","v":{"v":4848639.003244728,"d":"4,848,639"}},{"$f":"Equities!AY26+'T Bills'!AY26+'T Bonds'!AY26+'Real Estate'!BB30-'Real Estate'!$E$5","v":{"v":6219915.419608758,"d":"6,219,915"}},{"$f":"Equities!AZ26+'T Bills'!AZ26+'T Bonds'!AZ26+'Real Estate'!BC30-'Real Estate'!$E$5","v":{"v":-538113.7727397479,"d":"-538,114"}},{"$f":"Equities!BA26+'T Bills'!BA26+'T Bonds'!BA26+'Real Estate'!BD30-'Real Estate'!$E$5","v":{"v":-1535368.420099363,"d":"-1,535,368"}},{"$f":"Equities!BB26+'T Bills'!BB26+'T Bonds'!BB26+'Real Estate'!BE30-'Real Estate'!$E$5","v":{"v":253395.0867023166,"d":"253,395"}},{"$f":"Equities!BC26+'T Bills'!BC26+'T Bonds'!BC26+'Real Estate'!BF30-'Real Estate'!$E$5","v":{"v":1954040.2404793783,"d":"1,954,040"}},{"$f":"Equities!BD26+'T Bills'!BD26+'T Bonds'!BD26+'Real Estate'!BG30-'Real Estate'!$E$5","v":{"v":5633167.318412756,"d":"5,633,167"}},{"$f":"Equities!BE26+'T Bills'!BE26+'T Bonds'!BE26+'Real Estate'!BH30-'Real Estate'!$E$5","v":{"v":3601411.253066201,"d":"3,601,411"}},{"$f":"Equities!BF26+'T Bills'!BF26+'T Bonds'!BF26+'Real Estate'!BI30-'Real Estate'!$E$5","v":{"v":284686.2013188321,"d":"284,686"}},{"$f":"Equities!BG26+'T Bills'!BG26+'T Bonds'!BG26+'Real Estate'!BJ30-'Real Estate'!$E$5","v":{"v":-187033.46486158867,"d":"-187,033"}},{"$f":"Equities!BH26+'T Bills'!BH26+'T Bonds'!BH26+'Real Estate'!BK30-'Real Estate'!$E$5","v":{"v":915288.4856427574,"d":"915,288"}},{"$f":"Equities!BI26+'T Bills'!BI26+'T Bonds'!BI26+'Real Estate'!BL30-'Real Estate'!$E$5","v":{"v":7572444.481175218,"d":"7,572,444"}},{"$f":"Equities!BJ26+'T Bills'!BJ26+'T Bonds'!BJ26+'Real Estate'!BM30-'Real Estate'!$E$5","v":{"v":842458.2657689087,"d":"842,458"}},{"$f":"Equities!BK26+'T Bills'!BK26+'T Bonds'!BK26+'Real Estate'!BN30-'Real Estate'!$E$5","v":{"v":2589443.7770714667,"d":"2,589,444"}},{"$f":"Equities!BL26+'T Bills'!BL26+'T Bonds'!BL26+'Real Estate'!BO30-'Real Estate'!$E$5","v":{"v":4945066.357245932,"d":"4,945,066"}},{"$f":"Equities!BM26+'T Bills'!BM26+'T Bonds'!BM26+'Real Estate'!BP30-'Real Estate'!$E$5","v":{"v":681050.973775572,"d":"681,051"}},{"$f":"Equities!BN26+'T Bills'!BN26+'T Bonds'!BN26+'Real Estate'!BQ30-'Real Estate'!$E$5","v":{"v":12114010.451318888,"d":"12,114,010"}},{"$f":"Equities!BO26+'T Bills'!BO26+'T Bonds'!BO26+'Real Estate'!BR30-'Real Estate'!$E$5","v":{"v":9135603.215904936,"d":"9,135,603"}},{"$f":"Equities!BP26+'T Bills'!BP26+'T Bonds'!BP26+'Real Estate'!BS30-'Real Estate'!$E$5","v":{"v":4557874.216005389,"d":"4,557,874"}},{"$f":"Equities!BQ26+'T Bills'!BQ26+'T Bonds'!BQ26+'Real Estate'!BT30-'Real Estate'!$E$5","v":{"v":2788613.310300039,"d":"2,788,613"}},{"$f":"Equities!BR26+'T Bills'!BR26+'T Bonds'!BR26+'Real Estate'!BU30-'Real Estate'!$E$5","v":{"v":7786877.955505613,"d":"7,786,878"}},{"$f":"Equities!BS26+'T Bills'!BS26+'T Bonds'!BS26+'Real Estate'!BV30-'Real Estate'!$E$5","v":{"v":10271342.205277069,"d":"10,271,342"}},{"$f":"Equities!BT26+'T Bills'!BT26+'T Bonds'!BT26+'Real Estate'!BW30-'Real Estate'!$E$5","v":{"v":-222638.3417259099,"d":"-222,638"}},{"$f":"Equities!BU26+'T Bills'!BU26+'T Bonds'!BU26+'Real Estate'!BX30-'Real Estate'!$E$5","v":{"v":359051.09399102884,"d":"359,051"}},{"$f":"Equities!BV26+'T Bills'!BV26+'T Bonds'!BV26+'Real Estate'!BY30-'Real Estate'!$E$5","v":{"v":908738.1114784993,"d":"908,738"}},{"$f":"Equities!BW26+'T Bills'!BW26+'T Bonds'!BW26+'Real Estate'!BZ30-'Real Estate'!$E$5","v":{"v":-1222402.949386264,"d":"-1,222,403"}},{"$f":"Equities!BX26+'T Bills'!BX26+'T Bonds'!BX26+'Real Estate'!CA30-'Real Estate'!$E$5","v":{"v":5289629.730452943,"d":"5,289,630"}},{"$f":"Equities!BY26+'T Bills'!BY26+'T Bonds'!BY26+'Real Estate'!CB30-'Real Estate'!$E$5","v":{"v":11987970.897688834,"d":"11,987,971"}},{"$f":"Equities!BZ26+'T Bills'!BZ26+'T Bonds'!BZ26+'Real Estate'!CC30-'Real Estate'!$E$5","v":{"v":324444.21348567394,"d":"324,444"}},{"$f":"Equities!CA26+'T Bills'!CA26+'T Bonds'!CA26+'Real Estate'!CD30-'Real Estate'!$E$5","v":{"v":1085170.4991963787,"d":"1,085,170"}},{"$f":"Equities!CB26+'T Bills'!CB26+'T Bonds'!CB26+'Real Estate'!CE30-'Real Estate'!$E$5","v":{"v":140429.34679487953,"d":"140,429"}},{"$f":"Equities!CC26+'T Bills'!CC26+'T Bonds'!CC26+'Real Estate'!CF30-'Real Estate'!$E$5","v":{"v":3798397.458871156,"d":"3,798,397"}},{"$f":"Equities!CD26+'T Bills'!CD26+'T Bonds'!CD26+'Real Estate'!CG30-'Real Estate'!$E$5","v":{"v":9161959.934090935,"d":"9,161,960"}},{"$f":"Equities!CE26+'T Bills'!CE26+'T Bonds'!CE26+'Real Estate'!CH30-'Real Estate'!$E$5","v":{"v":22453364.73068836,"d":"22,453,365"}},{"$f":"Equities!CF26+'T Bills'!CF26+'T Bonds'!CF26+'Real Estate'!CI30-'Real Estate'!$E$5","v":{"v":676241.676937799,"d":"676,242"}},{"$f":"Equities!CG26+'T Bills'!CG26+'T Bonds'!CG26+'Real Estate'!CJ30-'Real Estate'!$E$5","v":{"v":2081747.0912882618,"d":"2,081,747"}},{"$f":"Equities!CH26+'T Bills'!CH26+'T Bonds'!CH26+'Real Estate'!CK30-'Real Estate'!$E$5","v":{"v":5941478.155239975,"d":"5,941,478"}},{"$f":"Equities!CI26+'T Bills'!CI26+'T Bonds'!CI26+'Real Estate'!CL30-'Real Estate'!$E$5","v":{"v":797079.1618667094,"d":"797,079"}},{"$f":"Equities!CJ26+'T Bills'!CJ26+'T Bonds'!CJ26+'Real Estate'!CM30-'Real Estate'!$E$5","v":{"v":16684664.883442525,"d":"16,684,665"}},{"$f":"Equities!CK26+'T Bills'!CK26+'T Bonds'!CK26+'Real Estate'!CN30-'Real Estate'!$E$5","v":{"v":10228044.924079064,"d":"10,228,045"}},{"$f":"Equities!CL26+'T Bills'!CL26+'T Bonds'!CL26+'Real Estate'!CO30-'Real Estate'!$E$5","v":{"v":20239602.642844938,"d":"20,239,603"}},{"$f":"Equities!CM26+'T Bills'!CM26+'T Bonds'!CM26+'Real Estate'!CP30-'Real Estate'!$E$5","v":{"v":12742119.818937704,"d":"12,742,120"}},{"$f":"Equities!CN26+'T Bills'!CN26+'T Bonds'!CN26+'Real Estate'!CQ30-'Real Estate'!$E$5","v":{"v":21016290.065158408,"d":"21,016,290"}},{"$f":"Equities!CO26+'T Bills'!CO26+'T Bonds'!CO26+'Real Estate'!CR30-'Real Estate'!$E$5","v":{"v":12623134.749316815,"d":"12,623,135"}},{"$f":"Equities!CP26+'T Bills'!CP26+'T Bonds'!CP26+'Real Estate'!CS30-'Real Estate'!$E$5","v":{"v":-1139180.641902489,"d":"-1,139,181"}},{"$f":"Equities!CQ26+'T Bills'!CQ26+'T Bonds'!CQ26+'Real Estate'!CT30-'Real Estate'!$E$5","v":{"v":1502545.6974833768,"d":"1,502,546"}},{"$f":"Equities!CR26+'T Bills'!CR26+'T Bonds'!CR26+'Real Estate'!CU30-'Real Estate'!$E$5","v":{"v":22150255.714339264,"d":"22,150,256"}},{"$f":"Equities!CS26+'T Bills'!CS26+'T Bonds'!CS26+'Real Estate'!CV30-'Real Estate'!$E$5","v":{"v":6892553.389115172,"d":"6,892,553"}},{"$f":"Equities!CT26+'T Bills'!CT26+'T Bonds'!CT26+'Real Estate'!CW30-'Real Estate'!$E$5","v":{"v":7102002.705453566,"d":"7,102,003"}},{"$f":"Equities!CU26+'T Bills'!CU26+'T Bonds'!CU26+'Real Estate'!CX30-'Real Estate'!$E$5","v":{"v":21684790.37257987,"d":"21,684,790"}},{"$f":"Equities!CV26+'T Bills'!CV26+'T Bonds'!CV26+'Real Estate'!CY30-'Real Estate'!$E$5","v":{"v":11706751.299953477,"d":"11,706,751"}},{"$f":"Equities!CW26+'T Bills'!CW26+'T Bonds'!CW26+'Real Estate'!CZ30-'Real Estate'!$E$5","v":{"v":-19827.338288026906,"d":"-19,827"}},{"$f":"Equities!CX26+'T Bills'!CX26+'T Bonds'!CX26+'Real Estate'!DA30-'Real Estate'!$E$5","v":{"v":8054432.671135533,"d":"8,054,433"}}]
[{"$f":"Main!A33","v":"2048-12-30"},94,{"$f":"Equities!C27+'T Bills'!C27+'T Bonds'!C27+'Real Estate'!F31-'Real Estate'!$E$5","v":{"v":2509012.323872571,"d":"2,509,012"}},{"$f":"Equities!D27+'T Bills'!D27+'T Bonds'!D27+'Real Estate'!G31-'Real Estate'!$E$5","v":{"v":1878869.2397186991,"d":"1,878,869"}},{"$f":"Equities!E27+'T Bills'!E27+'T Bonds'!E27+'Real Estate'!H31-'Real Estate'!$E$5","v":{"v":5236276.640889364,"d":"5,236,277"}},{"$f":"Equities!F27+'T Bills'!F27+'T Bonds'!F27+'Real Estate'!I31-'Real Estate'!$E$5","v":{"v":9724566.461142436,"d":"9,724,566"}},{"$f":"Equities!G27+'T Bills'!G27+'T Bonds'!G27+'Real Estate'!J31-'Real Estate'!$E$5","v":{"v":13651894.48554874,"d":"13,651,894"}},{"$f":"Equities!H27+'T Bills'!H27+'T Bonds'!H27+'Real Estate'!K31-'Real Estate'!$E$5","v":{"v":5529293.1876535695,"d":"5,529,293"}},{"$f":"Equities!I27+'T Bills'!I27+'T Bonds'!I27+'Real Estate'!L31-'Real Estate'!$E$5","v":{"v":1572171.4883234536,"d":"1,572,171"}},{"$f":"Equities!J27+'T Bills'!J27+'T Bonds'!J27+'Real Estate'!M31-'Real Estate'!$E$5","v":{"v":2045627.2467938818,"d":"2,045,627"}},{"$f":"Equities!K27+'T Bills'!K27+'T Bonds'!K27+'Real Estate'!N31-'Real Estate'!$E$5","v":{"v":4310006.357004965,"d":"4,310,006"}},{"$f":"Equities!L27+'T Bills'!L27+'T Bonds'!L27+'Real Estate'!O31-'Real Estate'!$E$5","v":{"v":8221140.772130218,"d":"8,221,141"}},{"$f":"Equities!M27+'T Bills'!M27+'T Bonds'!M27+'Real Estate'!P31-'Real Estate'!$E$5","v":{"v":2883277.2166352673,"d":"2,883,277"}},{"$f":"Equities!N27+'T Bills'!N27+'T Bonds'!N27+'Real Estate'!Q31-'Real Estate'!$E$5","v":{"v":-1293124.7535294157,"d":"-1,293,125"}},{"$f":"Equities!O27+'T Bills'!O27+'T Bonds'!O27+'Real Estate'!R31-'Real Estate'!$E$5","v":{"v":2752914.5470247404,"d":"2,752,915"}},{"$f":"Equities!P27+'T Bills'!P27+'T Bonds'!P27+'Real Estate'!S31-'Real Estate'!$E$5","v":{"v":1499771.8064554858,"d":"1,499,772"}},{"$f":"Equities!Q27+'T Bills'!Q27+'T Bonds'!Q27+'Real Estate'!T31-'Real Estate'!$E$5","v":{"v":259449.29026478727,"d":"259,449"}},{"$f":"Equities!R27+'T Bills'!R27+'T Bonds'!R27+'Real Estate'!U31-'Real Estate'!$E$5","v":{"v":1199920.2301689375,"d":"1,199,920"}},{"$f":"Equities!S27+'T Bills'!S27+'T Bonds'!S27+'Real Estate'!V31-'Real Estate'!$E$5","v":{"v":-594812.5946034157,"d":"-594,813"}},{"$f":"Equities!T27+'T Bills'!T27+'T Bonds'!T27+'Real Estate'!W31-'Real Estate'!$E$5","v":{"v":-1051116.5543072154,"d":"-1,051,117"}},{"$f":"Equities!U27+'T Bills'!U27+'T Bonds'!U27+'Real Estate'!X31-'Real Estate'!$E$5","v":{"v":730175.7989022852,"d":"730,176"}},{"$f":"Equities!V27+'T Bills'!V27+'T Bonds'!V27+'Real Estate'!Y31-'Real Estate'!$E$5","v":{"v":6857967.574805697,"d":"6,857,968"}},{"$f":"Equities!W27+'T Bills'!W27+'T Bonds'!W27+'Real Estate'!Z31-'Real Estate'!$E$5","v":{"v":4937397.317473851,"d":"4,937,397"}},{"$f":"Equities!X27+'T Bills'!X27+'T Bonds'!X27+'Real Estate'!AA31-'Real Estate'!$E$5","v":{"v":2097247.056289479,"d":"2,097,247"}},{"$f":"Equities!Y27+'T Bills'!Y27+'T Bonds'!Y27+'Real Estate'!AB31-'Real Estate'!$E$5","v":{"v":1633807.90960567,"d":"1,633,808"}},{"$f":"Equities!Z27+'T Bills'!Z27+'T Bonds'!Z27+'Real Estate'!AC31-'Real Estate'!$E$5","v":{"v":435105.057950081,"d":"435,105"}},{"$f":"Equities!AA27+'T Bills'!AA27+'T Bonds'!AA27+'Real Estate'!AD31-'Real Estate'!$E$5","v":{"v":6162192.842476056,"d":"6,162,193"}},{"$f":"Equities!AB27+'T Bills'!AB27+'T Bonds'!AB27+'Real Estate'!AE31-'Real Estate'!$E$5","v":{"v":1611817.6722155486,"d":"1,611,818"}},{"$f":"Equities!AC27+'T Bills'!AC27+'T Bonds'!AC27+'Real Estate'!AF31-'Real Estate'!$E$5","v":{"v":676725.664448763,"d":"676,726"}},{"$f":"Equities!AD27+'T Bills'!AD27+'T Bonds'!AD27+'Real Estate'!AG31-'Real Estate'!$E$5","v":{"v":1025342.7718938508,"d":"1,025,343"}},{"$f":"Equities!AE27+'T Bills'!AE27+'T Bonds'!AE27+'Real Estate'!AH31-'Real Estate'!$E$5","v":{"v":186382.40140537795,"d":"186,382"}},{"$f":"Equities!AF27+'T Bills'!AF27+'T Bonds'!AF27+'Real Estate'!AI31-'Real Estate'!$E$5","v":{"v":31303764.43771961,"d":"31,303,764"}},{"$f":"Equities!AG27+'T Bills'!AG27+'T Bonds'!AG27+'Real Estate'!AJ31-'Real Estate'!$E$5","v":{"v":27725705.074410483,"d":"27,725,705"}},{"$f":"Equities!AH27+'T Bills'!AH27+'T Bonds'!AH27+'Real Estate'!AK31-'Real Estate'!$E$5","v":{"v":3511637.9832344214,"d":"3,511,638"}},{"$f":"Equities!AI27+'T Bills'!AI27+'T Bonds'!AI27+'Real Estate'!AL31-'Real Estate'!$E$5","v":{"v":4760777.738574915,"d":"4,760,778"}},{"$f":"Equities!AJ27+'T Bills'!AJ27+'T Bonds'!AJ27+'Real Estate'!AM31-'Real Estate'!$E$5","v":{"v":7036220.307216389,"d":"7,036,220"}},{"$f":"Equities!AK27+'T Bills'!AK27+'T Bonds'!AK27+'Real Estate'!AN31-'Real Estate'!$E$5","v":{"v":364273.57402916654,"d":"364,274"}},{"$f":"Equities!AL27+'T Bills'!AL27+'T Bonds'!AL27+'Real Estate'!AO31-'Real Estate'!$E$5","v":{"v":5060709.017221243,"d":"5,060,709"}},{"$f":"Equities!AM27+'T Bills'!AM27+'T Bonds'!AM27+'Real Estate'!AP31-'Real Estate'!$E$5","v":{"v":-501228.32084368344,"d":"-501,228"}},{"$f":"Equities!AN27+'T Bills'!AN27+'T Bonds'!AN27+'Real Estate'!AQ31-'Real Estate'!$E$5","v":{"v":8568948.112831594,"d":"8,568,948"}},{"$f":"Equities!AO27+'T Bills'!AO27+'T Bonds'!AO27+'Real Estate'!AR31-'Real Estate'!$E$5","v":{"v":4542136.213807468,"d":"4,542,136"}},{"$f":"Equities!AP27+'T Bills'!AP27+'T Bonds'!AP27+'Real Estate'!AS31-'Real Estate'!$E$5","v":{"v":47020888.699685164,"d":"47,020,889"}},{"$f":"Equities!AQ27+'T Bills'!AQ27+'T Bonds'!AQ27+'Real Estate'!AT31-'Real Estate'!$E$5","v":{"v":-126256.1530797929,"d":"-126,256"}},{"$f":"Equities!AR27+'T Bills'!AR27+'T Bonds'!AR27+'Real Estate'!AU31-'Real Estate'!$E$5","v":{"v":5403519.477767062,"d":"5,403,519"}},{"$f":"Equities!AS27+'T Bills'!AS27+'T Bonds'!AS27+'Real Estate'!AV31-'Real Estate'!$E$5","v":{"v":3554507.642427336,"d":"3,554,508"}},{"$f":"Equities!AT27+'T Bills'!AT27+'T Bonds'!AT27+'Real Estate'!AW31-'Real Estate'!$E$5","v":{"v":-674877.0027345465,"d":"-674,877"}},{"$f":"Equities!AU27+'T Bills'!AU27+'T Bonds'!AU27+'Real Estate'!AX31-'Real Estate'!$E$5","v":{"v":5596327.802662629,"d":"5,596,328"}},{"$f":"Equities!AV27+'T Bills'!AV27+'T Bonds'!AV27+'Real Estate'!AY31-'Real Estate'!$E$5","v":{"v":8427966.960799474,"d":"8,427,967"}},{"$f":"Equities!AW27+'T Bills'!AW27+'T Bonds'!AW27+'Real Estate'!AZ31-'Real Estate'!$E$5","v":{"v":317978.0357035759,"d":"317,978"}},{"$f":"Equities!AX27+'T Bills'!AX27+'T Bonds'!AX27+'Real Estate'!BA31-'Real Estate'!$E$5","v":{"v":4210751.906834492,"d":"4,210,752"}},{"$f":"Equities!AY27+'T Bills'!AY27+'T Bonds'!AY27+'Real Estate'!BB31-'Real Estate'!$E$5","v":{"v":5503094.978380105,"d":"5,503,095"}},{"$f":"Equities!AZ27+'T Bills'!AZ27+'T Bonds'!AZ27+'Real Estate'!BC31-'Real Estate'!$E$5","v":{"v":-1325922.6729275521,"d":"-1,325,923"}},{"$f":"Equities!BA27+'T Bills'!BA27+'T Bonds'!BA27+'Real Estate'!BD31-'Real Estate'!$E$5","v":{"v":-929178.1821146628,"d":"-929,178"}},{"$f":"Equities!BB27+'T Bills'!BB27+'T Bonds'!BB27+'Real Estate'!BE31-'Real Estate'!$E$5","v":{"v":-101821.9264609349,"d":"-101,822"}},{"$f":"Equities!BC27+'T Bills'!BC27+'T Bonds'!BC27+'Real Estate'!BF31-'Real Estate'!$E$5","v":{"v":1568684.9546653635,"d":"1,568,685"}},{"$f":"Equities!BD27+'T Bills'!BD27+'T Bonds'!BD27+'Real Estate'!BG31-'Real Estate'!$E$5","v":{"v":6350662.183616544,"d":"6,350,662"}},{"$f":"Equities!BE27+'T Bills'!BE27+'T Bonds'!BE27+'Real Estate'!BH31-'Real Estate'!$E$5","v":{"v":3562517.6731190886,"d":"3,562,518"}},{"$f":"Equities!BF27+'T Bills'!BF27+'T Bonds'!BF27+'Real Estate'!BI31-'Real Estate'!$E$5","v":{"v":385265.46380839596,"d":"385,265"}},{"$f":"Equities!BG27+'T Bills'!BG27+'T Bonds'!BG27+'Real Estate'!BJ31-'Real Estate'!$E$5","v":{"v":-409090.9278323842,"d":"-409,091"}},{"$f":"Equities!BH27+'T Bills'!BH27+'T Bonds'!BH27+'Real Estate'!BK31-'Real Estate'!$E$5","v":{"v":624365.1537363089,"d":"624,365"}},{"$f":"Equities!BI27+'T Bills'!BI27+'T Bonds'!BI27+'Real Estate'!BL31-'Real Estate'!$E$5","v":{"v":7251149.992001996,"d":"7,251,150"}},{"$f":"Equities!BJ27+'T Bills'!BJ27+'T Bonds'!BJ27+'Real Estate'!BM31-'Real Estate'!$E$5","v":{"v":636054.4371972906,"d":"636,054"}},{"$f":"Equities!BK27+'T Bills'!BK27+'T Bonds'!BK27+'Real Estate'!BN31-'Real Estate'!$E$5","v":{"v":2780503.329406206,"d":"2,780,503"}},{"$f":"Equities!BL27+'T Bills'!BL27+'T Bonds'!BL27+'Real Estate'!BO31-'Real Estate'!$E$5","v":{"v":4249809.385693925,"d":"4,249,809"}},{"$f":"Equities!BM27+'T Bills'!BM27+'T Bonds'!BM27+'Real Estate'!BP31-'Real Estate'!$E$5","v":{"v":523326.30878938985,"d":"523,326"}},{"$f":"Equities!BN27+'T Bills'!BN27+'T Bonds'!BN27+'Real Estate'!BQ31-'Real Estate'!$E$5","v":{"v":16683463.502957497,"d":"16,683,464"}},{"$f":"Equities!BO27+'T Bills'!BO27+'T Bonds'!BO27+'Real Estate'!BR31-'Real Estate'!$E$5","v":{"v":10939983.917466583,"d":"10,939,984"}},{"$f":"Equities!BP27+'T Bills'!BP27+'T Bonds'!BP27+'Real Estate'!BS31-'Real Estate'!$E$5","v":{"v":5167460.570224823,"d":"5,167,461"}},{"$f":"Equities!BQ27+'T Bills'!BQ27+'T Bonds'!BQ27+'Real Estate'!BT31-'Real Estate'!$E$5","v":{"v":2381816.0078503406,"d":"2,381,816"}},{"$f":"Equities!BR27+'T Bills'!BR27+'T Bonds'!BR27+'Real Estate'!BU31-'Real Estate'!$E$5","v":{"v":9161172.524386583,"d":"9,161,173"}},{"$f":"Equities!BS27+'T Bills'!BS27+'T Bonds'!BS27+'Real Estate'!BV31-'Real Estate'!$E$5","v":{"v":11613616.83881465,"d":"11,613,617"}},{"$f":"Equities!BT27+'T Bills'!BT27+'T Bonds'!BT27+'Real Estate'!BW31-'Real Estate'!$E$5","v":{"v":-949974.0679973515,"d":"-949,974"}},{"$f":"Equities!BU27+'T Bills'!BU27+'T Bonds'!BU27+'Real Estate'!BX31-'Real Estate'!$E$5","v":{"v":-154177.24552890152,"d":"-154,177"}},{"$f":"Equities!BV27+'T Bills'!BV27+'T Bonds'!BV27+'Real Estate'!BY31-'Real Estate'!$E$5","v":{"v":646012.2109468402,"d":"646,012"}},{"$f":"Equities!BW27+'T Bills'!BW27+'T Bonds'!BW27+'Real Estate'!BZ31-'Real Estate'!$E$5","v":{"v":-1883749.3393182822,"d":"-1,883,749"}},{"$f":"Equities!BX27+'T Bills'!BX27+'T Bonds'!BX27+'Real Estate'!CA31-'Real Estate'!$E$5","v":{"v":3517545.8642445067,"d":"3,517,546"}},{"$f":"Equities!BY27+'T Bills'!BY27+'T Bonds'!BY27+'Real Estate'!CB31-'Real Estate'!$E$5","v":{"v":11551941.984469771,"d":"11,551,942"}},{"$f":"Equities!BZ27+'T Bills'!BZ27+'T Bonds'!BZ27+'Real Estate'!CC31-'Real Estate'!$E$5","v":{"v":-95214.81399620946,"d":"-95,215"}},{"$f":"Equities!CA27+'T Bills'!CA27+'T Bonds'!CA27+'Real Estate'!CD31-'Real Estate'!$E$5","v":{"v":797961.7903724418,"d":"797,962"}},{"$f":"Equities!CB27+'T Bills'!CB27+'T Bonds'!CB27+'Real Estate'!CE31-'Real Estate'!$E$5","v":{"v":-196345.81028150924,"d":"-196,346"}},{"$f":"Equities!CC27+'T Bills'!CC27+'T Bonds'!CC27+'Real Estate'!CF31-'Real Estate'!$E$5","v":{"v":3563631.3018115927,"d":"3,563,631"}},{"$f":"Equities!CD27+'T Bills'!CD27+'T Bonds'!CD27+'Real Estate'!CG31-'Real Estate'!$E$5","v":{"v":9105933.894960986,"d":"9,105,934"}},{"$f":"Equities!CE27+'T Bills'!CE27+'T Bonds'!CE27+'Real Estate'!CH31-'Real Estate'!$E$5","v":{"v":24471277.362186648,"d":"24,471,277"}},{"$f":"Equities!CF27+'T Bills'!CF27+'T Bonds'!CF27+'Real Estate'!CI31-'Real Estate'!$E$5","v":{"v":371775.2325123362,"d":"371,775"}},{"$f":"Equities!CG27+'T Bills'!CG27+'T Bonds'!CG27+'Real Estate'!CJ31-'Real Estate'!$E$5","v":{"v":1853513.1649422676,"d":"1,853,513"}},{"$f":"Equities!CH27+'T Bills'!CH27+'T Bonds'!CH27+'Real Estate'!CK31-'Real Estate'!$E$5","v":{"v":6051860.586952773,"d":"6,051,861"}},{"$f":"Equities!CI27+'T Bills'!CI27+'T Bonds'!CI27+'Real Estate'!CL31-'Real Estate'!$E$5","v":{"v":535773.1198366162,"d":"535,773"}},{"$f":"Equities!CJ27+'T Bills'!CJ27+'T Bonds'!CJ27+'Real Estate'!CM31-'Real Estate'!$E$5","v":{"v":16751545.15683652,"d":"16,751,545"}},{"$f":"Equities!CK27+'T Bills'!CK27+'T Bonds'!CK27+'Real Estate'!CN31-'Real Estate'!$E$5","v":{"v":11890124.299439393,"d":"11,890,124"}},{"$f":"Equities!CL27+'T Bills'!CL27+'T Bonds'!CL27+'Real Estate'!CO31-'Real Estate'!$E$5","v":{"v":18389033.747051887,"d":"18,389,034"}},{"$f":"Equities!CM27+'T Bills'!CM27+'T Bonds'!CM27+'Real Estate'!CP31-'Real Estate'!$E$5","v":{"v":12930318.956426596,"d":"12,930,319"}},{"$f":"Equities!CN27+'T Bills'!CN27+'T Bonds'!CN27+'Real Estate'!CQ31-'Real Estate'!$E$5","v":{"v":24401780.91711471,"d":"24,401,781"}},{"$f":"Equities!CO27+'T Bills'!CO27+'T Bonds'!CO27+'Real Estate'!CR31-'Real Estate'!$E$5","v":{"v":12411283.995088529,"d":"12,411,284"}},{"$f":"Equities!CP27+'T Bills'!CP27+'T Bonds'!CP27+'Real Estate'!CS31-'Real Estate'!$E$5","v":{"v":-1979078.0588777994,"d":"-1,979,078"}},{"$f":"Equities!CQ27+'T Bills'!CQ27+'T Bonds'!CQ27+'Real Estate'!CT31-'Real Estate'!$E$5","v":{"v":1179151.7790780244,"d":"1,179,152"}},{"$f":"Equities!CR27+'T Bills'!CR27+'T Bonds'!CR27+'Real Estate'!CU31-'Real Estate'!$E$5","v":{"v":28271019.4371442,"d":"28,271,019"}},{"$f":"Equities!CS27+'T Bills'!CS27+'T Bonds'!CS27+'Real Estate'!CV31-'Real Estate'!$E$5","v":{"v":7480087.027390621,"d":"7,480,087"}},{"$f":"Equities!CT27+'T Bills'!CT27+'T Bonds'!CT27+'Real Estate'!CW31-'Real Estate'!$E$5","v":{"v":7227190.795261938,"d":"7,227,191"}},{"$f":"Equities!CU27+'T Bills'!CU27+'T Bonds'!CU27+'Real Estate'!CX31-'Real Estate'!$E$5","v":{"v":21214350.613852497,"d":"21,214,351"}},{"$f":"Equities!CV27+'T Bills'!CV27+'T Bonds'!CV27+'Real Estate'!CY31-'Real Estate'!$E$5","v":{"v":12561362.362998703,"d":"12,561,362"}},{"$f":"Equities!CW27+'T Bills'!CW27+'T Bonds'!CW27+'Real Estate'!CZ31-'Real Estate'!$E$5","v":{"v":-628369.3638603047,"d":"-628,369"}},{"$f":"Equities!CX27+'T Bills'!CX27+'T Bonds'!CX27+'Real Estate'!DA31-'Real Estate'!$E$5","v":{"v":9357399.800174573,"d":"9,357,400"}}]
[{"$f":"Main!A34","v":"2049-12-30"},95,{"$f":"Equities!C28+'T Bills'!C28+'T Bonds'!C28+'Real Estate'!F32-'Real Estate'!$E$5","v":{"v":2130661.991187286,"d":"2,130,662"}},{"$f":"Equities!D28+'T Bills'!D28+'T Bonds'!D28+'Real Estate'!G32-'Real Estate'!$E$5","v":{"v":1560553.8730697173,"d":"1,560,554"}},{"$f":"Equities!E28+'T Bills'!E28+'T Bonds'!E28+'Real Estate'!H32-'Real Estate'!$E$5","v":{"v":6283996.365514563,"d":"6,283,996"}},{"$f":"Equities!F28+'T Bills'!F28+'T Bonds'!F28+'Real Estate'!I32-'Real Estate'!$E$5","v":{"v":10844639.221407445,"d":"10,844,639"}},{"$f":"Equities!G28+'T Bills'!G28+'T Bonds'!G28+'Real Estate'!J32-'Real Estate'!$E$5","v":{"v":15055825.730734902,"d":"15,055,826"}},{"$f":"Equities!H28+'T Bills'!H28+'T Bonds'!H28+'Real Estate'!K32-'Real Estate'!$E$5","v":{"v":5785233.902954324,"d":"5,785,234"}},{"$f":"Equities!I28+'T Bills'!I28+'T Bonds'!I28+'Real Estate'!L32-'Real Estate'!$E$5","v":{"v":1390867.6483639185,"d":"1,390,868"}},{"$f":"Equities!J28+'T Bills'!J28+'T Bonds'!J28+'Real Estate'!M32-'Real Estate'!$E$5","v":{"v":1855708.0885903707,"d":"1,855,708"}},{"$f":"Equities!K28+'T Bills'!K28+'T Bonds'!K28+'Real Estate'!N32-'Real Estate'!$E$5","v":{"v":3256022.999103443,"d":"3,256,023"}},{"$f":"Equities!L28+'T Bills'!L28+'T Bonds'!L28+'Real Estate'!O32-'Real Estate'!$E$5","v":{"v":9299729.099893922,"d":"9,299,729"}},{"$f":"Equities!M28+'T Bills'!M28+'T Bonds'!M28+'Real Estate'!P32-'Real Estate'!$E$5","v":{"v":2902123.7445078623,"d":"2,902,124"}},{"$f":"Equities!N28+'T Bills'!N28+'T Bonds'!N28+'Real Estate'!Q32-'Real Estate'!$E$5","v":{"v":-1238530.200444818,"d":"-1,238,530"}},{"$f":"Equities!O28+'T Bills'!O28+'T Bonds'!O28+'Real Estate'!R32-'Real Estate'!$E$5","v":{"v":2844960.2009366103,"d":"2,844,960"}},{"$f":"Equities!P28+'T Bills'!P28+'T Bonds'!P28+'Real Estate'!S32-'Real Estate'!$E$5","v":{"v":1148947.2100728604,"d":"1,148,947"}},{"$f":"Equities!Q28+'T Bills'!Q28+'T Bonds'!Q28+'Real Estate'!T32-'Real Estate'!$E$5","v":{"v":-157195.1964683492,"d":"-157,195"}},{"$f":"Equities!R28+'T Bills'!R28+'T Bonds'!R28+'Real Estate'!U32-'Real Estate'!$E$5","v":{"v":947343.7582360469,"d":"947,344"}},{"$f":"Equities!S28+'T Bills'!S28+'T Bonds'!S28+'Real Estate'!V32-'Real Estate'!$E$5","v":{"v":-1453287.4536221162,"d":"-1,453,287"}},{"$f":"Equities!T28+'T Bills'!T28+'T Bonds'!T28+'Real Estate'!W32-'Real Estate'!$E$5","v":{"v":-1700220.5765771372,"d":"-1,700,221"}},{"$f":"Equities!U28+'T Bills'!U28+'T Bonds'!U28+'Real Estate'!X32-'Real Estate'!$E$5","v":{"v":383034.89453615167,"d":"383,035"}},{"$f":"Equities!V28+'T Bills'!V28+'T Bonds'!V28+'Real Estate'!Y32-'Real Estate'!$E$5","v":{"v":5604824.983698984,"d":"5,604,825"}},{"$f":"Equities!W28+'T Bills'!W28+'T Bonds'!W28+'Real Estate'!Z32-'Real Estate'!$E$5","v":{"v":4617681.668877397,"d":"4,617,682"}},{"$f":"Equities!X28+'T Bills'!X28+'T Bonds'!X28+'Real Estate'!AA32-'Real Estate'!$E$5","v":{"v":1804130.618487858,"d":"1,804,131"}},{"$f":"Equities!Y28+'T Bills'!Y28+'T Bonds'!Y28+'Real Estate'!AB32-'Real Estate'!$E$5","v":{"v":1491894.4675791897,"d":"1,491,894"}},{"$f":"Equities!Z28+'T Bills'!Z28+'T Bonds'!Z28+'Real Estate'!AC32-'Real Estate'!$E$5","v":{"v":125978.02584630526,"d":"125,978"}},{"$f":"Equities!AA28+'T Bills'!AA28+'T Bonds'!AA28+'Real Estate'!AD32-'Real Estate'!$E$5","v":{"v":6256842.795293336,"d":"6,256,843"}},{"$f":"Equities!AB28+'T Bills'!AB28+'T Bonds'!AB28+'Real Estate'!AE32-'Real Estate'!$E$5","v":{"v":1220007.0855839376,"d":"1,220,007"}},{"$f":"Equities!AC28+'T Bills'!AC28+'T Bonds'!AC28+'Real Estate'!AF32-'Real Estate'!$E$5","v":{"v":465706.72366008064,"d":"465,707"}},{"$f":"Equities!AD28+'T Bills'!AD28+'T Bonds'!AD28+'Real Estate'!AG32-'Real Estate'!$E$5","v":{"v":679928.1243083235,"d":"679,928"}},{"$f":"Equities!AE28+'T Bills'!AE28+'T Bonds'!AE28+'Real Estate'!AH32-'Real Estate'!$E$5","v":{"v":43363.074519061265,"d":"43,363"}},{"$f":"Equities!AF28+'T Bills'!AF28+'T Bonds'!AF28+'Real Estate'!AI32-'Real Estate'!$E$5","v":{"v":37760939.90862918,"d":"37,760,940"}},{"$f":"Equities!AG28+'T Bills'!AG28+'T Bonds'!AG28+'Real Estate'!AJ32-'Real Estate'!$E$5","v":{"v":35809068.055596,"d":"35,809,068"}},{"$f":"Equities!AH28+'T Bills'!AH28+'T Bonds'!AH28+'Real Estate'!AK32-'Real Estate'!$E$5","v":{"v":2989415.7222808218,"d":"2,989,416"}},{"$f":"Equities!AI28+'T Bills'!AI28+'T Bonds'!AI28+'Real Estate'!AL32-'Real Estate'!$E$5","v":{"v":2805338.791820051,"d":"2,805,339"}},{"$f":"Equities!AJ28+'T Bills'!AJ28+'T Bonds'!AJ28+'Real Estate'!AM32-'Real Estate'!$E$5","v":{"v":8101160.793722582,"d":"8,101,161"}},{"$f":"Equities!AK28+'T Bills'!AK28+'T Bonds'!AK28+'Real Estate'!AN32-'Real Estate'!$E$5","v":{"v":118833.49717418653,"d":"118,833"}},{"$f":"Equities!AL28+'T Bills'!AL28+'T Bonds'!AL28+'Real Estate'!AO32-'Real Estate'!$E$5","v":{"v":5359742.395601614,"d":"5,359,742"}},{"$f":"Equities!AM28+'T Bills'!AM28+'T Bonds'!AM28+'Real Estate'!AP32-'Real Estate'!$E$5","v":{"v":-1109754.0908519605,"d":"-1,109,754"}},{"$f":"Equities!AN28+'T Bills'!AN28+'T Bonds'!AN28+'Real Estate'!AQ32-'Real Estate'!$E$5","v":{"v":6757712.596695862,"d":"6,757,713"}},{"$f":"Equities!AO28+'T Bills'!AO28+'T Bonds'!AO28+'Real Estate'!AR32-'Real Estate'!$E$5","v":{"v":4911990.160489264,"d":"4,911,990"}},{"$f":"Equities!AP28+'T Bills'!AP28+'T Bonds'!AP28+'Real Estate'!AS32-'Real Estate'!$E$5","v":{"v":49085502.02686132,"d":"49,085,502"}},{"$f":"Equities!AQ28+'T Bills'!AQ28+'T Bonds'!AQ28+'Real Estate'!AT32-'Real Estate'!$E$5","v":{"v":-345743.1976661477,"d":"-345,743"}},{"$f":"Equities!AR28+'T Bills'!AR28+'T Bonds'!AR28+'Real Estate'!AU32-'Real Estate'!$E$5","v":{"v":4782333.565215351,"d":"4,782,334"}},{"$f":"Equities!AS28+'T Bills'!AS28+'T Bonds'!AS28+'Real Estate'!AV32-'Real Estate'!$E$5","v":{"v":3341745.08547795,"d":"3,341,745"}},{"$f":"Equities!AT28+'T Bills'!AT28+'T Bonds'!AT28+'Real Estate'!AW32-'Real Estate'!$E$5","v":{"v":-32420.2129880422,"d":"-32,420"}},{"$f":"Equities!AU28+'T Bills'!AU28+'T Bonds'!AU28+'Real Estate'!AX32-'Real Estate'!$E$5","v":{"v":5564038.088568731,"d":"5,564,038"}},{"$f":"Equities!AV28+'T Bills'!AV28+'T Bonds'!AV28+'Real Estate'!AY32-'Real Estate'!$E$5","v":{"v":7506309.080987423,"d":"7,506,309"}},{"$f":"Equities!AW28+'T Bills'!AW28+'T Bonds'!AW28+'Real Estate'!AZ32-'Real Estate'!$E$5","v":{"v":-8057.095016411724,"d":"-8,057"}},{"$f":"Equities!AX28+'T Bills'!AX28+'T Bonds'!AX28+'Real Estate'!BA32-'Real Estate'!$E$5","v":{"v":3711751.3742348226,"d":"3,711,751"}},{"$f":"Equities!AY28+'T Bills'!AY28+'T Bonds'!AY28+'Real Estate'!BB32-'Real Estate'!$E$5","v":{"v":6493483.256425403,"d":"6,493,483"}},{"$f":"Equities!AZ28+'T Bills'!AZ28+'T Bonds'!AZ28+'Real Estate'!BC32-'Real Estate'!$E$5","v":{"v":-1850435.9832369953,"d":"-1,850,436"}},{"$f":"Equities!BA28+'T Bills'!BA28+'T Bonds'!BA28+'Real Estate'!BD32-'Real Estate'!$E$5","v":{"v":-1613829.0862527348,"d":"-1,613,829"}},{"$f":"Equities!BB28+'T Bills'!BB28+'T Bonds'!BB28+'Real Estate'!BE32-'Real Estate'!$E$5","v":{"v":-529769.1484390164,"d":"-529,769"}},{"$f":"Equities!BC28+'T Bills'!BC28+'T Bonds'!BC28+'Real Estate'!BF32-'Real Estate'!$E$5","v":{"v":1256669.3570469334,"d":"1,256,669"}},{"$f":"Equities!BD28+'T Bills'!BD28+'T Bonds'!BD28+'Real Estate'!BG32-'Real Estate'!$E$5","v":{"v":6116227.666387801,"d":"6,116,228"}},{"$f":"Equities!BE28+'T Bills'!BE28+'T Bonds'!BE28+'Real Estate'!BH32-'Real Estate'!$E$5","v":{"v":3885125.998679732,"d":"3,885,126"}},{"$f":"Equities!BF28+'T Bills'!BF28+'T Bonds'!BF28+'Real Estate'!BI32-'Real Estate'!$E$5","v":{"v":-92276.19614402995,"d":"-92,276"}},{"$f":"Equities!BG28+'T Bills'!BG28+'T Bonds'!BG28+'Real Estate'!BJ32-'Real Estate'!$E$5","v":{"v":-605672.1171711195,"d":"-605,672"}},{"$f":"Equities!BH28+'T Bills'!BH28+'T Bonds'!BH28+'Real Estate'!BK32-'Real Estate'!$E$5","v":{"v":416909.07064184634,"d":"416,909"}},{"$f":"Equities!BI28+'T Bills'!BI28+'T Bonds'!BI28+'Real Estate'!BL32-'Real Estate'!$E$5","v":{"v":7542126.4515858395,"d":"7,542,126"}},{"$f":"Equities!BJ28+'T Bills'!BJ28+'T Bonds'!BJ28+'Real Estate'!BM32-'Real Estate'!$E$5","v":{"v":316503.9200868624,"d":"316,504"}},{"$f":"Equities!BK28+'T Bills'!BK28+'T Bonds'!BK28+'Real Estate'!BN32-'Real Estate'!$E$5","v":{"v":2103975.482459476,"d":"2,103,975"}},{"$f":"Equities!BL28+'T Bills'!BL28+'T Bonds'!BL28+'Real Estate'!BO32-'Real Estate'!$E$5","v":{"v":3791531.64599159,"d":"3,791,532"}},{"$f":"Equities!BM28+'T Bills'!BM28+'T Bonds'!BM28+'Real Estate'!BP32-'Real Estate'!$E$5","v":{"v":41742.11068783498,"d":"41,742"}},{"$f":"Equities!BN28+'T Bills'!BN28+'T Bonds'!BN28+'Real Estate'!BQ32-'Real Estate'!$E$5","v":{"v":17316579.60780739,"d":"17,316,580"}},{"$f":"Equities!BO28+'T Bills'!BO28+'T Bonds'!BO28+'Real Estate'!BR32-'Real Estate'!$E$5","v":{"v":12856959.991189698,"d":"12,856,960"}},{"$f":"Equities!BP28+'T Bills'!BP28+'T Bonds'!BP28+'Real Estate'!BS32-'Real Estate'!$E$5","v":{"v":6596015.894283294,"d":"6,596,016"}},{"$f":"Equities!BQ28+'T Bills'!BQ28+'T Bonds'!BQ28+'Real Estate'!BT32-'Real Estate'!$E$5","v":{"v":2375579.9283576976,"d":"2,375,580"}},{"$f":"Equities!BR28+'T Bills'!BR28+'T Bonds'!BR28+'Real Estate'!BU32-'Real Estate'!$E$5","v":{"v":10901235.61135365,"d":"10,901,236"}},{"$f":"Equities!BS28+'T Bills'!BS28+'T Bonds'!BS28+'Real Estate'!BV32-'Real Estate'!$E$5","v":{"v":15327916.166500468,"d":"15,327,916"}},{"$f":"Equities!BT28+'T Bills'!BT28+'T Bonds'!BT28+'Real Estate'!BW32-'Real Estate'!$E$5","v":{"v":-1087618.222706297,"d":"-1,087,618"}},{"$f":"Equities!BU28+'T Bills'!BU28+'T Bonds'!BU28+'Real Estate'!BX32-'Real Estate'!$E$5","v":{"v":-812158.0944875565,"d":"-812,158"}},{"$f":"Equities!BV28+'T Bills'!BV28+'T Bonds'!BV28+'Real Estate'!BY32-'Real Estate'!$E$5","v":{"v":318228.11082356033,"d":"318,228"}},{"$f":"Equities!BW28+'T Bills'!BW28+'T Bonds'!BW28+'Real Estate'!BZ32-'Real Estate'!$E$5","v":{"v":-2696197.5451630885,"d":"-2,696,198"}},{"$f":"Equities!BX28+'T Bills'!BX28+'T Bonds'!BX28+'Real Estate'!CA32-'Real Estate'!$E$5","v":{"v":3699100.344875815,"d":"3,699,100"}},{"$f":"Equities!BY28+'T Bills'!BY28+'T Bonds'!BY28+'Real Estate'!CB32-'Real Estate'!$E$5","v":{"v":10226298.877071893,"d":"10,226,299"}},{"$f":"Equities!BZ28+'T Bills'!BZ28+'T Bonds'!BZ28+'Real Estate'!CC32-'Real Estate'!$E$5","v":{"v":-490611.4348868191,"d":"-490,611"}},{"$f":"Equities!CA28+'T Bills'!CA28+'T Bonds'!CA28+'Real Estate'!CD32-'Real Estate'!$E$5","v":{"v":134415.3465645517,"d":"134,415"}},{"$f":"Equities!CB28+'T Bills'!CB28+'T Bonds'!CB28+'Real Estate'!CE32-'Real Estate'!$E$5","v":{"v":-416648.42545656866,"d":"-416,648"}},{"$f":"Equities!CC28+'T Bills'!CC28+'T Bonds'!CC28+'Real Estate'!CF32-'Real Estate'!$E$5","v":{"v":3589985.4092275808,"d":"3,589,985"}},{"$f":"Equities!CD28+'T Bills'!CD28+'T Bonds'!CD28+'Real Estate'!CG32-'Real Estate'!$E$5","v":{"v":10813642.496466957,"d":"10,813,642"}},{"$f":"Equities!CE28+'T Bills'!CE28+'T Bonds'!CE28+'Real Estate'!CH32-'Real Estate'!$E$5","v":{"v":31609507.451067593,"d":"31,609,507"}},{"$f":"Equities!CF28+'T Bills'!CF28+'T Bonds'!CF28+'Real Estate'!CI32-'Real Estate'!$E$5","v":{"v":180624.72085315082,"d":"180,625"}},{"$f":"Equities!CG28+'T Bills'!CG28+'T Bonds'!CG28+'Real Estate'!CJ32-'Real Estate'!$E$5","v":{"v":1665269.9904356939,"d":"1,665,270"}},{"$f":"Equities!CH28+'T Bills'!CH28+'T Bonds'!CH28+'Real Estate'!CK32-'Real Estate'!$E$5","v":{"v":5056841.7643115185,"d":"5,056,842"}},{"$f":"Equities!CI28+'T Bills'!CI28+'T Bonds'!CI28+'Real Estate'!CL32-'Real Estate'!$E$5","v":{"v":175329.06805865333,"d":"175,329"}},{"$f":"Equities!CJ28+'T Bills'!CJ28+'T Bonds'!CJ28+'Real Estate'!CM32-'Real Estate'!$E$5","v":{"v":20161921.15053043,"d":"20,161,921"}},{"$f":"Equities!CK28+'T Bills'!CK28+'T Bonds'!CK28+'Real Estate'!CN32-'Real Estate'!$E$5","v":{"v":10529666.99001117,"d":"10,529,667"}},{"$f":"Equities!CL28+'T Bills'!CL28+'T Bonds'!CL28+'Real Estate'!CO32-'Real Estate'!$E$5","v":{"v":23561339.694697183,"d":"23,561,340"}},{"$f":"Equities!CM28+'T Bills'!CM28+'T Bonds'!CM28+'Real Estate'!CP32-'Real Estate'!$E$5","v":{"v":17066339.894575328,"d":"17,066,340"}},{"$f":"Equities!CN28+'T Bills'!CN28+'T Bonds'!CN28+'Real Estate'!CQ32-'Real Estate'!$E$5","v":{"v":29047390.708412416,"d":"29,047,391"}},{"$f":"Equities!CO28+'T Bills'!CO28+'T Bonds'!CO28+'Real Estate'!CR32-'Real Estate'!$E$5","v":{"v":15715045.09801942,"d":"15,715,045"}},{"$f":"Equities!CP28+'T Bills'!CP28+'T Bonds'!CP28+'Real Estate'!CS32-'Real Estate'!$E$5","v":{"v":-2454880.8816740024,"d":"-2,454,881"}},{"$f":"Equities!CQ28+'T Bills'!CQ28+'T Bonds'!CQ28+'Real Estate'!CT32-'Real Estate'!$E$5","v":{"v":899395.9330519601,"d":"899,396"}},{"$f":"Equities!CR28+'T Bills'!CR28+'T Bonds'!CR28+'Real Estate'!CU32-'Real Estate'!$E$5","v":{"v":36538703.274871595,"d":"36,538,703"}},{"$f":"Equities!CS28+'T Bills'!CS28+'T Bonds'!CS28+'Real Estate'!CV32-'Real Estate'!$E$5","v":{"v":5547481.481695797,"d":"5,547,481"}},{"$f":"Equities!CT28+'T Bills'!CT28+'T Bonds'!CT28+'Real Estate'!CW32-'Real Estate'!$E$5","v":{"v":8770816.16771244,"d":"8,770,816"}},{"$f":"Equities!CU28+'T Bills'!CU28+'T Bonds'!CU28+'Real Estate'!CX32-'Real Estate'!$E$5","v":{"v":25521872.953655835,"d":"25,521,873"}},{"$f":"Equities!CV28+'T Bills'!CV28+'T Bonds'!CV28+'Real Estate'!CY32-'Real Estate'!$E$5","v":{"v":11435475.048851404,"d":"11,435,475"}},{"$f":"Equities!CW28+'T Bills'!CW28+'T Bonds'!CW28+'Real Estate'!CZ32-'Real Estate'!$E$5","v":{"v":-1442458.1309402587,"d":"-1,442,458"}},{"$f":"Equities!CX28+'T Bills'!CX28+'T Bonds'!CX28+'Real Estate'!DA32-'Real Estate'!$E$5","v":{"v":10246366.213687595,"d":"10,246,366"}}]
[{"$f":"Main!A35","v":"2050-12-30"},96,{"$f":"Equities!C29+'T Bills'!C29+'T Bonds'!C29+'Real Estate'!F33-'Real Estate'!$E$5","v":{"v":2027323.100395492,"d":"2,027,323"}},{"$f":"Equities!D29+'T Bills'!D29+'T Bonds'!D29+'Real Estate'!G33-'Real Estate'!$E$5","v":{"v":1510075.3907466435,"d":"1,510,075"}},{"$f":"Equities!E29+'T Bills'!E29+'T Bonds'!E29+'Real Estate'!H33-'Real Estate'!$E$5","v":{"v":6802189.576807306,"d":"6,802,190"}},{"$f":"Equities!F29+'T Bills'!F29+'T Bonds'!F29+'Real Estate'!I33-'Real Estate'!$E$5","v":{"v":12708665.332839767,"d":"12,708,665"}},{"$f":"Equities!G29+'T Bills'!G29+'T Bonds'!G29+'Real Estate'!J33-'Real Estate'!$E$5","v":{"v":13076195.747829402,"d":"13,076,196"}},{"$f":"Equities!H29+'T Bills'!H29+'T Bonds'!H29+'Real Estate'!K33-'Real Estate'!$E$5","v":{"v":5484413.751079856,"d":"5,484,414"}},{"$f":"Equities!I29+'T Bills'!I29+'T Bonds'!I29+'Real Estate'!L33-'Real Estate'!$E$5","v":{"v":1057389.1019447118,"d":"1,057,389"}},{"$f":"Equities!J29+'T Bills'!J29+'T Bonds'!J29+'Real Estate'!M33-'Real Estate'!$E$5","v":{"v":1507338.01067126,"d":"1,507,338"}},{"$f":"Equities!K29+'T Bills'!K29+'T Bonds'!K29+'Real Estate'!N33-'Real Estate'!$E$5","v":{"v":3412706.983632869,"d":"3,412,707"}},{"$f":"Equities!L29+'T Bills'!L29+'T Bonds'!L29+'Real Estate'!O33-'Real Estate'!$E$5","v":{"v":10343205.402873196,"d":"10,343,205"}},{"$f":"Equities!M29+'T Bills'!M29+'T Bonds'!M29+'Real Estate'!P33-'Real Estate'!$E$5","v":{"v":2961092.1169686853,"d":"2,961,092"}},{"$f":"Equities!N29+'T Bills'!N29+'T Bonds'!N29+'Real Estate'!Q33-'Real Estate'!$E$5","v":{"v":-2317185.349010291,"d":"-2,317,185"}},{"$f":"Equities!O29+'T Bills'!O29+'T Bonds'!O29+'Real Estate'!R33-'Real Estate'!$E$5","v":{"v":2827064.563053064,"d":"2,827,065"}},{"$f":"Equities!P29+'T Bills'!P29+'T Bonds'!P29+'Real Estate'!S33-'Real Estate'!$E$5","v":{"v":932696.6684967491,"d":"932,697"}},{"$f":"Equities!Q29+'T Bills'!Q29+'T Bonds'!Q29+'Real Estate'!T33-'Real Estate'!$E$5","v":{"v":-722516.5531846203,"d":"-722,517"}},{"$f":"Equities!R29+'T Bills'!R29+'T Bonds'!R29+'Real Estate'!U33-'Real Estate'!$E$5","v":{"v":628986.2267036203,"d":"628,986"}},{"$f":"Equities!S29+'T Bills'!S29+'T Bonds'!S29+'Real Estate'!V33-'Real Estate'!$E$5","v":{"v":-1907140.8404102477,"d":"-1,907,141"}},{"$f":"Equities!T29+'T Bills'!T29+'T Bonds'!T29+'Real Estate'!W33-'Real Estate'!$E$5","v":{"v":-2052812.4735372502,"d":"-2,052,812"}},{"$f":"Equities!U29+'T Bills'!U29+'T Bonds'!U29+'Real Estate'!X33-'Real Estate'!$E$5","v":{"v":-141826.7752799031,"d":"-141,827"}},{"$f":"Equities!V29+'T Bills'!V29+'T Bonds'!V29+'Real Estate'!Y33-'Real Estate'!$E$5","v":{"v":5692700.499209492,"d":"5,692,700"}},{"$f":"Equities!W29+'T Bills'!W29+'T Bonds'!W29+'Real Estate'!Z33-'Real Estate'!$E$5","v":{"v":5343825.60699295,"d":"5,343,826"}},{"$f":"Equities!X29+'T Bills'!X29+'T Bonds'!X29+'Real Estate'!AA33-'Real Estate'!$E$5","v":{"v":1502935.8217185568,"d":"1,502,936"}},{"$f":"Equities!Y29+'T Bills'!Y29+'T Bonds'!Y29+'Real Estate'!AB33-'Real Estate'!$E$5","v":{"v":1399090.55990482,"d":"1,399,091"}},{"$f":"Equities!Z29+'T Bills'!Z29+'T Bonds'!Z29+'Real Estate'!AC33-'Real Estate'!$E$5","v":{"v":-285531.5987596224,"d":"-285,532"}},{"$f":"Equities!AA29+'T Bills'!AA29+'T Bonds'!AA29+'Real Estate'!AD33-'Real Estate'!$E$5","v":{"v":6881226.286118976,"d":"6,881,226"}},{"$f":"Equities!AB29+'T Bills'!AB29+'T Bonds'!AB29+'Real Estate'!AE33-'Real Estate'!$E$5","v":{"v":970335.8784053246,"d":"970,336"}},{"$f":"Equities!AC29+'T Bills'!AC29+'T Bonds'!AC29+'Real Estate'!AF33-'Real Estate'!$E$5","v":{"v":-157386.37284041318,"d":"-157,386"}},{"$f":"Equities!AD29+'T Bills'!AD29+'T Bonds'!AD29+'Real Estate'!AG33-'Real Estate'!$E$5","v":{"v":136826.45897538943,"d":"136,826"}},{"$f":"Equities!AE29+'T Bills'!AE29+'T Bonds'!AE29+'Real Estate'!AH33-'Real Estate'!$E$5","v":{"v":-691523.0449929071,"d":"-691,523"}},{"$f":"Equities!AF29+'T Bills'!AF29+'T Bonds'!AF29+'Real Estate'!AI33-'Real Estate'!$E$5","v":{"v":53548293.259389184,"d":"53,548,293"}},{"$f":"Equities!AG29+'T Bills'!AG29+'T Bonds'!AG29+'Real Estate'!AJ33-'Real Estate'!$E$5","v":{"v":46376824.06244298,"d":"46,376,824"}},{"$f":"Equities!AH29+'T Bills'!AH29+'T Bonds'!AH29+'Real Estate'!AK33-'Real Estate'!$E$5","v":{"v":3102720.3634987264,"d":"3,102,720"}},{"$f":"Equities!AI29+'T Bills'!AI29+'T Bonds'!AI29+'Real Estate'!AL33-'Real Estate'!$E$5","v":{"v":2857569.7803907464,"d":"2,857,570"}},{"$f":"Equities!AJ29+'T Bills'!AJ29+'T Bonds'!AJ29+'Real Estate'!AM33-'Real Estate'!$E$5","v":{"v":7635275.068634088,"d":"7,635,275"}},{"$f":"Equities!AK29+'T Bills'!AK29+'T Bonds'!AK29+'Real Estate'!AN33-'Real Estate'!$E$5","v":{"v":-287039.1223839958,"d":"-287,039"}},{"$f":"Equities!AL29+'T Bills'!AL29+'T Bonds'!AL29+'Real Estate'!AO33-'Real Estate'!$E$5","v":{"v":6883530.812858948,"d":"6,883,531"}},{"$f":"Equities!AM29+'T Bills'!AM29+'T Bonds'!AM29+'Real Estate'!AP33-'Real Estate'!$E$5","v":{"v":-1515995.3256126726,"d":"-1,515,995"}},{"$f":"Equities!AN29+'T Bills'!AN29+'T Bonds'!AN29+'Real Estate'!AQ33-'Real Estate'!$E$5","v":{"v":7454047.709067837,"d":"7,454,048"}},{"$f":"Equities!AO29+'T Bills'!AO29+'T Bonds'!AO29+'Real Estate'!AR33-'Real Estate'!$E$5","v":{"v":4202549.47323608,"d":"4,202,549"}},{"$f":"Equities!AP29+'T Bills'!AP29+'T Bonds'!AP29+'Real Estate'!AS33-'Real Estate'!$E$5","v":{"v":48942428.69356233,"d":"48,942,429"}},{"$f":"Equities!AQ29+'T Bills'!AQ29+'T Bonds'!AQ29+'Real Estate'!AT33-'Real Estate'!$E$5","v":{"v":-493517.9555526802,"d":"-493,518"}},{"$f":"Equities!AR29+'T Bills'!AR29+'T Bonds'!AR29+'Real Estate'!AU33-'Real Estate'!$E$5","v":{"v":4711381.655184395,"d":"4,711,382"}},{"$f":"Equities!AS29+'T Bills'!AS29+'T Bonds'!AS29+'Real Estate'!AV33-'Real Estate'!$E$5","v":{"v":2551296.7968471353,"d":"2,551,297"}},{"$f":"Equities!AT29+'T Bills'!AT29+'T Bonds'!AT29+'Real Estate'!AW33-'Real Estate'!$E$5","v":{"v":-211040.79239273712,"d":"-211,041"}},{"$f":"Equities!AU29+'T Bills'!AU29+'T Bonds'!AU29+'Real Estate'!AX33-'Real Estate'!$E$5","v":{"v":5596695.607248334,"d":"5,596,696"}},{"$f":"Equities!AV29+'T Bills'!AV29+'T Bonds'!AV29+'Real Estate'!AY33-'Real Estate'!$E$5","v":{"v":8883381.234511819,"d":"8,883,381"}},{"$f":"Equities!AW29+'T Bills'!AW29+'T Bonds'!AW29+'Real Estate'!AZ33-'Real Estate'!$E$5","v":{"v":-548696.6406706506,"d":"-548,697"}},{"$f":"Equities!AX29+'T Bills'!AX29+'T Bonds'!AX29+'Real Estate'!BA33-'Real Estate'!$E$5","v":{"v":3877514.233835535,"d":"3,877,514"}},{"$f":"Equities!AY29+'T Bills'!AY29+'T Bonds'!AY29+'Real Estate'!BB33-'Real Estate'!$E$5","v":{"v":7208763.22460461,"d":"7,208,763"}},{"$f":"Equities!AZ29+'T Bills'!AZ29+'T Bonds'!AZ29+'Real Estate'!BC33-'Real Estate'!$E$5","v":{"v":-1175497.1925880301,"d":"-1,175,497"}},{"$f":"Equities!BA29+'T Bills'!BA29+'T Bonds'!BA29+'Real Estate'!BD33-'Real Estate'!$E$5","v":{"v":-2083879.068194762,"d":"-2,083,879"}},{"$f":"Equities!BB29+'T Bills'!BB29+'T Bonds'!BB29+'Real Estate'!BE33-'Real Estate'!$E$5","v":{"v":-1115439.7679298895,"d":"-1,115,440"}},{"$f":"Equities!BC29+'T Bills'!BC29+'T Bonds'!BC29+'Real Estate'!BF33-'Real Estate'!$E$5","v":{"v":968344.3740135806,"d":"968,344"}},{"$f":"Equities!BD29+'T Bills'!BD29+'T Bonds'!BD29+'Real Estate'!BG33-'Real Estate'!$E$5","v":{"v":7807741.791295498,"d":"7,807,742"}},{"$f":"Equities!BE29+'T Bills'!BE29+'T Bonds'!BE29+'Real Estate'!BH33-'Real Estate'!$E$5","v":{"v":3606458.992695071,"d":"3,606,459"}},{"$f":"Equities!BF29+'T Bills'!BF29+'T Bonds'!BF29+'Real Estate'!BI33-'Real Estate'!$E$5","v":{"v":-930358.4147921727,"d":"-930,358"}},{"$f":"Equities!BG29+'T Bills'!BG29+'T Bonds'!BG29+'Real Estate'!BJ33-'Real Estate'!$E$5","v":{"v":-223464.06017678295,"d":"-223,464"}},{"$f":"Equities!BH29+'T Bills'!BH29+'T Bonds'!BH29+'Real Estate'!BK33-'Real Estate'!$E$5","v":{"v":-68200.38237888731,"d":"-68,200"}},{"$f":"Equities!BI29+'T Bills'!BI29+'T Bonds'!BI29+'Real Estate'!BL33-'Real Estate'!$E$5","v":{"v":8808602.108898178,"d":"8,808,602"}},{"$f":"Equities!BJ29+'T Bills'!BJ29+'T Bonds'!BJ29+'Real Estate'!BM33-'Real Estate'!$E$5","v":{"v":261146.93018551037,"d":"261,147"}},{"$f":"Equities!BK29+'T Bills'!BK29+'T Bonds'!BK29+'Real Estate'!BN33-'Real Estate'!$E$5","v":{"v":1801221.5643864556,"d":"1,801,222"}},{"$f":"Equities!BL29+'T Bills'!BL29+'T Bonds'!BL29+'Real Estate'!BO33-'Real Estate'!$E$5","v":{"v":3603622.277217796,"d":"3,603,622"}},{"$f":"Equities!BM29+'T Bills'!BM29+'T Bonds'!BM29+'Real Estate'!BP33-'Real Estate'!$E$5","v":{"v":-220192.48919920612,"d":"-220,192"}},{"$f":"Equities!BN29+'T Bills'!BN29+'T Bonds'!BN29+'Real Estate'!BQ33-'Real Estate'!$E$5","v":{"v":18700776.994724616,"d":"18,700,777"}},{"$f":"Equities!BO29+'T Bills'!BO29+'T Bonds'!BO29+'Real Estate'!BR33-'Real Estate'!$E$5","v":{"v":13107172.555595197,"d":"13,107,173"}},{"$f":"Equities!BP29+'T Bills'!BP29+'T Bonds'!BP29+'Real Estate'!BS33-'Real Estate'!$E$5","v":{"v":7480558.69073995,"d":"7,480,559"}},{"$f":"Equities!BQ29+'T Bills'!BQ29+'T Bonds'!BQ29+'Real Estate'!BT33-'Real Estate'!$E$5","v":{"v":2561229.0231679715,"d":"2,561,229"}},{"$f":"Equities!BR29+'T Bills'!BR29+'T Bonds'!BR29+'Real Estate'!BU33-'Real Estate'!$E$5","v":{"v":9171465.035661595,"d":"9,171,465"}},{"$f":"Equities!BS29+'T Bills'!BS29+'T Bonds'!BS29+'Real Estate'!BV33-'Real Estate'!$E$5","v":{"v":16939570.80805318,"d":"16,939,571"}},{"$f":"Equities!BT29+'T Bills'!BT29+'T Bonds'!BT29+'Real Estate'!BW33-'Real Estate'!$E$5","v":{"v":-1827426.4165029842,"d":"-1,827,426"}},{"$f":"Equities!BU29+'T Bills'!BU29+'T Bonds'!BU29+'Real Estate'!BX33-'Real Estate'!$E$5","v":{"v":-1786775.2340804252,"d":"-1,786,775"}},{"$f":"Equities!BV29+'T Bills'!BV29+'T Bonds'!BV29+'Real Estate'!BY33-'Real Estate'!$E$5","v":{"v":-31759.909309512223,"d":"-31,760"}},{"$f":"Equities!BW29+'T Bills'!BW29+'T Bonds'!BW29+'Real Estate'!BZ33-'Real Estate'!$E$5","v":{"v":-3288316.6521743857,"d":"-3,288,317"}},{"$f":"Equities!BX29+'T Bills'!BX29+'T Bonds'!BX29+'Real Estate'!CA33-'Real Estate'!$E$5","v":{"v":3392595.6452991734,"d":"3,392,596"}},{"$f":"Equities!BY29+'T Bills'!BY29+'T Bonds'!BY29+'Real Estate'!CB33-'Real Estate'!$E$5","v":{"v":9476467.94634697,"d":"9,476,468"}},{"$f":"Equities!BZ29+'T Bills'!BZ29+'T Bonds'!BZ29+'Real Estate'!CC33-'Real Estate'!$E$5","v":{"v":-1024362.0547967304,"d":"-1,024,362"}},{"$f":"Equities!CA29+'T Bills'!CA29+'T Bonds'!CA29+'Real Estate'!CD33-'Real Estate'!$E$5","v":{"v":-701091.314905528,"d":"-701,091"}},{"$f":"Equities!CB29+'T Bills'!CB29+'T Bonds'!CB29+'Real Estate'!CE33-'Real Estate'!$E$5","v":{"v":-967277.2983405569,"d":"-967,277"}},{"$f":"Equities!CC29+'T Bills'!CC29+'T Bonds'!CC29+'Real Estate'!CF33-'Real Estate'!$E$5","v":{"v":3157190.1664633243,"d":"3,157,190"}},{"$f":"Equities!CD29+'T Bills'!CD29+'T Bonds'!CD29+'Real Estate'!CG33-'Real Estate'!$E$5","v":{"v":11506788.993814196,"d":"11,506,789"}},{"$f":"Equities!CE29+'T Bills'!CE29+'T Bonds'!CE29+'Real Estate'!CH33-'Real Estate'!$E$5","v":{"v":40805941.3071619,"d":"40,805,941"}},{"$f":"Equities!CF29+'T Bills'!CF29+'T Bonds'!CF29+'Real Estate'!CI33-'Real Estate'!$E$5","v":{"v":-284265.04827523214,"d":"-284,265"}},{"$f":"Equities!CG29+'T Bills'!CG29+'T Bonds'!CG29+'Real Estate'!CJ33-'Real Estate'!$E$5","v":{"v":1377300.3695352809,"d":"1,377,300"}},{"$f":"Equities!CH29+'T Bills'!CH29+'T Bonds'!CH29+'Real Estate'!CK33-'Real Estate'!$E$5","v":{"v":5586708.372999305,"d":"5,586,708"}},{"$f":"Equities!CI29+'T Bills'!CI29+'T Bonds'!CI29+'Real Estate'!CL33-'Real Estate'!$E$5","v":{"v":-144732.9697991613,"d":"-144,733"}},{"$f":"Equities!CJ29+'T Bills'!CJ29+'T Bonds'!CJ29+'Real Estate'!CM33-'Real Estate'!$E$5","v":{"v":20926494.0353768,"d":"20,926,494"}},{"$f":"Equities!CK29+'T Bills'!CK29+'T Bonds'!CK29+'Real Estate'!CN33-'Real Estate'!$E$5","v":{"v":12706030.99577986,"d":"12,706,031"}},{"$f":"Equities!CL29+'T Bills'!CL29+'T Bonds'!CL29+'Real Estate'!CO33-'Real Estate'!$E$5","v":{"v":22283088.019277677,"d":"22,283,088"}},{"$f":"Equities!CM29+'T Bills'!CM29+'T Bonds'!CM29+'Real Estate'!CP33-'Real Estate'!$E$5","v":{"v":22660791.390455674,"d":"22,660,791"}},{"$f":"Equities!CN29+'T Bills'!CN29+'T Bonds'!CN29+'Real Estate'!CQ33-'Real Estate'!$E$5","v":{"v":18922062.346199512,"d":"18,922,062"}},{"$f":"Equities!CO29+'T Bills'!CO29+'T Bonds'!CO29+'Real Estate'!CR33-'Real Estate'!$E$5","v":{"v":15243817.361942122,"d":"15,243,817"}},{"$f":"Equities!CP29+'T Bills'!CP29+'T Bonds'!CP29+'Real Estate'!CS33-'Real Estate'!$E$5","v":{"v":-2727255.2514286824,"d":"-2,727,255"}},{"$f":"Equities!CQ29+'T Bills'!CQ29+'T Bonds'!CQ29+'Real Estate'!CT33-'Real Estate'!$E$5","v":{"v":531973.1322378847,"d":"531,973"}},{"$f":"Equities!CR29+'T Bills'!CR29+'T Bonds'!CR29+'Real Estate'!CU33-'Real Estate'!$E$5","v":{"v":40248832.27295654,"d":"40,248,832"}},{"$f":"Equities!CS29+'T Bills'!CS29+'T Bonds'!CS29+'Real Estate'!CV33-'Real Estate'!$E$5","v":{"v":4917605.952776489,"d":"4,917,606"}},{"$f":"Equities!CT29+'T Bills'!CT29+'T Bonds'!CT29+'Real Estate'!CW33-'Real Estate'!$E$5","v":{"v":9641484.654916998,"d":"9,641,485"}},{"$f":"Equities!CU29+'T Bills'!CU29+'T Bonds'!CU29+'Real Estate'!CX33-'Real Estate'!$E$5","v":{"v":23218968.55324736,"d":"23,218,969"}},{"$f":"Equities!CV29+'T Bills'!CV29+'T Bonds'!CV29+'Real Estate'!CY33-'Real Estate'!$E$5","v":{"v":11251386.761317195,"d":"11,251,387"}},{"$f":"Equities!CW29+'T Bills'!CW29+'T Bonds'!CW29+'Real Estate'!CZ33-'Real Estate'!$E$5","v":{"v":-2361060.479627642,"d":"-2,361,060"}},{"$f":"Equities!CX29+'T Bills'!CX29+'T Bonds'!CX29+'Real Estate'!DA33-'Real Estate'!$E$5","v":{"v":11653305.92636784,"d":"11,653,306"}}]
[{"$f":"Main!A36","v":"2051-12-31"},97,{"$f":"Equities!C30+'T Bills'!C30+'T Bonds'!C30+'Real Estate'!F34-'Real Estate'!$E$5","v":{"v":2004015.5713499186,"d":"2,004,016"}},{"$f":"Equities!D30+'T Bills'!D30+'T Bonds'!D30+'Real Estate'!G34-'Real Estate'!$E$5","v":{"v":1274397.3150701872,"d":"1,274,397"}},{"$f":"Equities!E30+'T Bills'!E30+'T Bonds'!E30+'Real Estate'!H34-'Real Estate'!$E$5","v":{"v":8116493.331215773,"d":"8,116,493"}},{"$f":"Equities!F30+'T Bills'!F30+'T Bonds'!F30+'Real Estate'!I34-'Real Estate'!$E$5","v":{"v":14984621.020689555,"d":"14,984,621"}},{"$f":"Equities!G30+'T Bills'!G30+'T Bonds'!G30+'Real Estate'!J34-'Real Estate'!$E$5","v":{"v":15123552.805669865,"d":"15,123,553"}},{"$f":"Equities!H30+'T Bills'!H30+'T Bonds'!H30+'Real Estate'!K34-'Real Estate'!$E$5","v":{"v":5943572.608829332,"d":"5,943,573"}},{"$f":"Equities!I30+'T Bills'!I30+'T Bonds'!I30+'Real Estate'!L34-'Real Estate'!$E$5","v":{"v":776318.426513999,"d":"776,318"}},{"$f":"Equities!J30+'T Bills'!J30+'T Bonds'!J30+'Real Estate'!M34-'Real Estate'!$E$5","v":{"v":1313833.6867140692,"d":"1,313,834"}},{"$f":"Equities!K30+'T Bills'!K30+'T Bonds'!K30+'Real Estate'!N34-'Real Estate'!$E$5","v":{"v":2867939.4925320405,"d":"2,867,939"}},{"$f":"Equities!L30+'T Bills'!L30+'T Bonds'!L30+'Real Estate'!O34-'Real Estate'!$E$5","v":{"v":9049096.1230271,"d":"9,049,096"}},{"$f":"Equities!M30+'T Bills'!M30+'T Bonds'!M30+'Real Estate'!P34-'Real Estate'!$E$5","v":{"v":2581126.4889126844,"d":"2,581,126"}},{"$f":"Equities!N30+'T Bills'!N30+'T Bonds'!N30+'Real Estate'!Q34-'Real Estate'!$E$5","v":{"v":-2422470.4411119055,"d":"-2,422,470"}},{"$f":"Equities!O30+'T Bills'!O30+'T Bonds'!O30+'Real Estate'!R34-'Real Estate'!$E$5","v":{"v":3061226.9302651486,"d":"3,061,227"}},{"$f":"Equities!P30+'T Bills'!P30+'T Bonds'!P30+'Real Estate'!S34-'Real Estate'!$E$5","v":{"v":526429.4135010913,"d":"526,429"}},{"$f":"Equities!Q30+'T Bills'!Q30+'T Bonds'!Q30+'Real Estate'!T34-'Real Estate'!$E$5","v":{"v":-1625943.2796815725,"d":"-1,625,943"}},{"$f":"Equities!R30+'T Bills'!R30+'T Bonds'!R30+'Real Estate'!U34-'Real Estate'!$E$5","v":{"v":170852.41275440983,"d":"170,852"}},{"$f":"Equities!S30+'T Bills'!S30+'T Bonds'!S30+'Real Estate'!V34-'Real Estate'!$E$5","v":{"v":-2807303.6891898843,"d":"-2,807,304"}},{"$f":"Equities!T30+'T Bills'!T30+'T Bonds'!T30+'Real Estate'!W34-'Real Estate'!$E$5","v":{"v":-3161203.1131172157,"d":"-3,161,203"}},{"$f":"Equities!U30+'T Bills'!U30+'T Bonds'!U30+'Real Estate'!X34-'Real Estate'!$E$5","v":{"v":-930684.7358739057,"d":"-930,685"}},{"$f":"Equities!V30+'T Bills'!V30+'T Bonds'!V30+'Real Estate'!Y34-'Real Estate'!$E$5","v":{"v":6565317.61717009,"d":"6,565,318"}},{"$f":"Equities!W30+'T Bills'!W30+'T Bonds'!W30+'Real Estate'!Z34-'Real Estate'!$E$5","v":{"v":6527892.298798068,"d":"6,527,892"}},{"$f":"Equities!X30+'T Bills'!X30+'T Bonds'!X30+'Real Estate'!AA34-'Real Estate'!$E$5","v":{"v":1241037.5215762344,"d":"1,241,038"}},{"$f":"Equities!Y30+'T Bills'!Y30+'T Bonds'!Y30+'Real Estate'!AB34-'Real Estate'!$E$5","v":{"v":870457.3094451962,"d":"870,457"}},{"$f":"Equities!Z30+'T Bills'!Z30+'T Bonds'!Z30+'Real Estate'!AC34-'Real Estate'!$E$5","v":{"v":-636780.4025385452,"d":"-636,780"}},{"$f":"Equities!AA30+'T Bills'!AA30+'T Bonds'!AA30+'Real Estate'!AD34-'Real Estate'!$E$5","v":{"v":6892158.520623619,"d":"6,892,159"}},{"$f":"Equities!AB30+'T Bills'!AB30+'T Bonds'!AB30+'Real Estate'!AE34-'Real Estate'!$E$5","v":{"v":475959.51026680967,"d":"475,960"}},{"$f":"Equities!AC30+'T Bills'!AC30+'T Bonds'!AC30+'Real Estate'!AF34-'Real Estate'!$E$5","v":{"v":-719203.1419465875,"d":"-719,203"}},{"$f":"Equities!AD30+'T Bills'!AD30+'T Bonds'!AD30+'Real Estate'!AG34-'Real Estate'!$E$5","v":{"v":-91908.53201244485,"d":"-91,909"}},{"$f":"Equities!AE30+'T Bills'!AE30+'T Bonds'!AE30+'Real Estate'!AH34-'Real Estate'!$E$5","v":{"v":-1759771.1163068009,"d":"-1,759,771"}},{"$f":"Equities!AF30+'T Bills'!AF30+'T Bonds'!AF30+'Real Estate'!AI34-'Real Estate'!$E$5","v":{"v":59505234.48922084,"d":"59,505,234"}},{"$f":"Equities!AG30+'T Bills'!AG30+'T Bonds'!AG30+'Real Estate'!AJ34-'Real Estate'!$E$5","v":{"v":60313322.80116334,"d":"60,313,323"}},{"$f":"Equities!AH30+'T Bills'!AH30+'T Bonds'!AH30+'Real Estate'!AK34-'Real Estate'!$E$5","v":{"v":3127017.490318589,"d":"3,127,017"}},{"$f":"Equities!AI30+'T Bills'!AI30+'T Bonds'!AI30+'Real Estate'!AL34-'Real Estate'!$E$5","v":{"v":2412968.23551863,"d":"2,412,968"}},{"$f":"Equities!AJ30+'T Bills'!AJ30+'T Bonds'!AJ30+'Real Estate'!AM34-'Real Estate'!$E$5","v":{"v":7656029.9196951,"d":"7,656,030"}},{"$f":"Equities!AK30+'T Bills'!AK30+'T Bonds'!AK30+'Real Estate'!AN34-'Real Estate'!$E$5","v":{"v":-1119028.3258188113,"d":"-1,119,028"}},{"$f":"Equities!AL30+'T Bills'!AL30+'T Bonds'!AL30+'Real Estate'!AO34-'Real Estate'!$E$5","v":{"v":8182012.750359832,"d":"8,182,013"}},{"$f":"Equities!AM30+'T Bills'!AM30+'T Bonds'!AM30+'Real Estate'!AP34-'Real Estate'!$E$5","v":{"v":-1781956.7028084404,"d":"-1,781,957"}},{"$f":"Equities!AN30+'T Bills'!AN30+'T Bonds'!AN30+'Real Estate'!AQ34-'Real Estate'!$E$5","v":{"v":6510835.613614013,"d":"6,510,836"}},{"$f":"Equities!AO30+'T Bills'!AO30+'T Bonds'!AO30+'Real Estate'!AR34-'Real Estate'!$E$5","v":{"v":4054605.110182436,"d":"4,054,605"}},{"$f":"Equities!AP30+'T Bills'!AP30+'T Bonds'!AP30+'Real Estate'!AS34-'Real Estate'!$E$5","v":{"v":59557664.03099339,"d":"59,557,664"}},{"$f":"Equities!AQ30+'T Bills'!AQ30+'T Bonds'!AQ30+'Real Estate'!AT34-'Real Estate'!$E$5","v":{"v":-1061913.7568742493,"d":"-1,061,914"}},{"$f":"Equities!AR30+'T Bills'!AR30+'T Bonds'!AR30+'Real Estate'!AU34-'Real Estate'!$E$5","v":{"v":4589371.873746473,"d":"4,589,372"}},{"$f":"Equities!AS30+'T Bills'!AS30+'T Bonds'!AS30+'Real Estate'!AV34-'Real Estate'!$E$5","v":{"v":2124173.0911892373,"d":"2,124,173"}},{"$f":"Equities!AT30+'T Bills'!AT30+'T Bonds'!AT30+'Real Estate'!AW34-'Real Estate'!$E$5","v":{"v":-474048.2121979887,"d":"-474,048"}},{"$f":"Equities!AU30+'T Bills'!AU30+'T Bonds'!AU30+'Real Estate'!AX34-'Real Estate'!$E$5","v":{"v":6300332.257568599,"d":"6,300,332"}},{"$f":"Equities!AV30+'T Bills'!AV30+'T Bonds'!AV30+'Real Estate'!AY34-'Real Estate'!$E$5","v":{"v":7959629.500407911,"d":"7,959,630"}},{"$f":"Equities!AW30+'T Bills'!AW30+'T Bonds'!AW30+'Real Estate'!AZ34-'Real Estate'!$E$5","v":{"v":-1280740.6635617558,"d":"-1,280,741"}},{"$f":"Equities!AX30+'T Bills'!AX30+'T Bonds'!AX30+'Real Estate'!BA34-'Real Estate'!$E$5","v":{"v":4428921.535727044,"d":"4,428,922"}},{"$f":"Equities!AY30+'T Bills'!AY30+'T Bonds'!AY30+'Real Estate'!BB34-'Real Estate'!$E$5","v":{"v":8380501.035099306,"d":"8,380,501"}},{"$f":"Equities!AZ30+'T Bills'!AZ30+'T Bonds'!AZ30+'Real Estate'!BC34-'Real Estate'!$E$5","v":{"v":-2218309.927898287,"d":"-2,218,310"}},{"$f":"Equities!BA30+'T Bills'!BA30+'T Bonds'!BA30+'Real Estate'!BD34-'Real Estate'!$E$5","v":{"v":-1969237.5934316614,"d":"-1,969,238"}},{"$f":"Equities!BB30+'T Bills'!BB30+'T Bonds'!BB30+'Real Estate'!BE34-'Real Estate'!$E$5","v":{"v":-1219536.063838015,"d":"-1,219,536"}},{"$f":"Equities!BC30+'T Bills'!BC30+'T Bonds'!BC30+'Real Estate'!BF34-'Real Estate'!$E$5","v":{"v":565633.7960595151,"d":"565,634"}},{"$f":"Equities!BD30+'T Bills'!BD30+'T Bonds'!BD30+'Real Estate'!BG34-'Real Estate'!$E$5","v":{"v":6933061.973171942,"d":"6,933,062"}},{"$f":"Equities!BE30+'T Bills'!BE30+'T Bonds'!BE30+'Real Estate'!BH34-'Real Estate'!$E$5","v":{"v":3911156.8855891214,"d":"3,911,157"}},{"$f":"Equities!BF30+'T Bills'!BF30+'T Bonds'!BF30+'Real Estate'!BI34-'Real Estate'!$E$5","v":{"v":-1846435.1827969851,"d":"-1,846,435"}},{"$f":"Equities!BG30+'T Bills'!BG30+'T Bonds'!BG30+'Real Estate'!BJ34-'Real Estate'!$E$5","v":{"v":-1051390.9260636976,"d":"-1,051,391"}},{"$f":"Equities!BH30+'T Bills'!BH30+'T Bonds'!BH30+'Real Estate'!BK34-'Real Estate'!$E$5","v":{"v":-900902.777908534,"d":"-900,903"}},{"$f":"Equities!BI30+'T Bills'!BI30+'T Bonds'!BI30+'Real Estate'!BL34-'Real Estate'!$E$5","v":{"v":10453115.438960448,"d":"10,453,115"}},{"$f":"Equities!BJ30+'T Bills'!BJ30+'T Bonds'!BJ30+'Real Estate'!BM34-'Real Estate'!$E$5","v":{"v":-157768.02908906434,"d":"-157,768"}},{"$f":"Equities!BK30+'T Bills'!BK30+'T Bonds'!BK30+'Real Estate'!BN34-'Real Estate'!$E$5","v":{"v":1630356.758671725,"d":"1,630,357"}},{"$f":"Equities!BL30+'T Bills'!BL30+'T Bonds'!BL30+'Real Estate'!BO34-'Real Estate'!$E$5","v":{"v":3408383.357330802,"d":"3,408,383"}},{"$f":"Equities!BM30+'T Bills'!BM30+'T Bonds'!BM30+'Real Estate'!BP34-'Real Estate'!$E$5","v":{"v":-1000625.432614536,"d":"-1,000,625"}},{"$f":"Equities!BN30+'T Bills'!BN30+'T Bonds'!BN30+'Real Estate'!BQ34-'Real Estate'!$E$5","v":{"v":18271867.48988151,"d":"18,271,867"}},{"$f":"Equities!BO30+'T Bills'!BO30+'T Bonds'!BO30+'Real Estate'!BR34-'Real Estate'!$E$5","v":{"v":9745210.629428666,"d":"9,745,211"}},{"$f":"Equities!BP30+'T Bills'!BP30+'T Bonds'!BP30+'Real Estate'!BS34-'Real Estate'!$E$5","v":{"v":6655105.907331423,"d":"6,655,106"}},{"$f":"Equities!BQ30+'T Bills'!BQ30+'T Bonds'!BQ30+'Real Estate'!BT34-'Real Estate'!$E$5","v":{"v":2706019.928216546,"d":"2,706,020"}},{"$f":"Equities!BR30+'T Bills'!BR30+'T Bonds'!BR30+'Real Estate'!BU34-'Real Estate'!$E$5","v":{"v":5954452.975246125,"d":"5,954,453"}},{"$f":"Equities!BS30+'T Bills'!BS30+'T Bonds'!BS30+'Real Estate'!BV34-'Real Estate'!$E$5","v":{"v":18308267.335111067,"d":"18,308,267"}},{"$f":"Equities!BT30+'T Bills'!BT30+'T Bonds'!BT30+'Real Estate'!BW34-'Real Estate'!$E$5","v":{"v":-2560934.3373041996,"d":"-2,560,934"}},{"$f":"Equities!BU30+'T Bills'!BU30+'T Bonds'!BU30+'Real Estate'!BX34-'Real Estate'!$E$5","v":{"v":-1910653.7827959445,"d":"-1,910,654"}},{"$f":"Equities!BV30+'T Bills'!BV30+'T Bonds'!BV30+'Real Estate'!BY34-'Real Estate'!$E$5","v":{"v":-565996.1515280447,"d":"-565,996"}},{"$f":"Equities!BW30+'T Bills'!BW30+'T Bonds'!BW30+'Real Estate'!BZ34-'Real Estate'!$E$5","v":{"v":-4404180.679641811,"d":"-4,404,181"}},{"$f":"Equities!BX30+'T Bills'!BX30+'T Bonds'!BX30+'Real Estate'!CA34-'Real Estate'!$E$5","v":{"v":3603445.880770888,"d":"3,603,446"}},{"$f":"Equities!BY30+'T Bills'!BY30+'T Bonds'!BY30+'Real Estate'!CB34-'Real Estate'!$E$5","v":{"v":11787149.629287474,"d":"11,787,150"}},{"$f":"Equities!BZ30+'T Bills'!BZ30+'T Bonds'!BZ30+'Real Estate'!CC34-'Real Estate'!$E$5","v":{"v":-2167056.3378352653,"d":"-2,167,056"}},{"$f":"Equities!CA30+'T Bills'!CA30+'T Bonds'!CA30+'Real Estate'!CD34-'Real Estate'!$E$5","v":{"v":-357624.87506721105,"d":"-357,625"}},{"$f":"Equities!CB30+'T Bills'!CB30+'T Bonds'!CB30+'Real Estate'!CE34-'Real Estate'!$E$5","v":{"v":-1441447.2682591963,"d":"-1,441,447"}},{"$f":"Equities!CC30+'T Bills'!CC30+'T Bonds'!CC30+'Real Estate'!CF34-'Real Estate'!$E$5","v":{"v":3150706.1228239005,"d":"3,150,706"}},{"$f":"Equities!CD30+'T Bills'!CD30+'T Bonds'!CD30+'Real Estate'!CG34-'Real Estate'!$E$5","v":{"v":14306889.754560528,"d":"14,306,890"}},{"$f":"Equities!CE30+'T Bills'!CE30+'T Bonds'!CE30+'Real Estate'!CH34-'Real Estate'!$E$5","v":{"v":59118211.47905089,"d":"59,118,211"}},{"$f":"Equities!CF30+'T Bills'!CF30+'T Bonds'!CF30+'Real Estate'!CI34-'Real Estate'!$E$5","v":{"v":-1073761.5564754282,"d":"-1,073,762"}},{"$f":"Equities!CG30+'T Bills'!CG30+'T Bonds'!CG30+'Real Estate'!CJ34-'Real Estate'!$E$5","v":{"v":1062198.7761700929,"d":"1,062,199"}},{"$f":"Equities!CH30+'T Bills'!CH30+'T Bonds'!CH30+'Real Estate'!CK34-'Real Estate'!$E$5","v":{"v":4931027.964084031,"d":"4,931,028"}},{"$f":"Equities!CI30+'T Bills'!CI30+'T Bonds'!CI30+'Real Estate'!CL34-'Real Estate'!$E$5","v":{"v":-920339.7471049428,"d":"-920,340"}},{"$f":"Equities!CJ30+'T Bills'!CJ30+'T Bonds'!CJ30+'Real Estate'!CM34-'Real Estate'!$E$5","v":{"v":25688474.455766518,"d":"25,688,474"}},{"$f":"Equities!CK30+'T Bills'!CK30+'T Bonds'!CK30+'Real Estate'!CN34-'Real Estate'!$E$5","v":{"v":16180403.709663898,"d":"16,180,404"}},{"$f":"Equities!CL30+'T Bills'!CL30+'T Bonds'!CL30+'Real Estate'!CO34-'Real Estate'!$E$5","v":{"v":29737858.29904752,"d":"29,737,858"}},{"$f":"Equities!CM30+'T Bills'!CM30+'T Bonds'!CM30+'Real Estate'!CP34-'Real Estate'!$E$5","v":{"v":27961784.377085414,"d":"27,961,784"}},{"$f":"Equities!CN30+'T Bills'!CN30+'T Bonds'!CN30+'Real Estate'!CQ34-'Real Estate'!$E$5","v":{"v":17896786.473063678,"d":"17,896,786"}},{"$f":"Equities!CO30+'T Bills'!CO30+'T Bonds'!CO30+'Real Estate'!CR34-'Real Estate'!$E$5","v":{"v":20164086.957892645,"d":"20,164,087"}},{"$f":"Equities!CP30+'T Bills'!CP30+'T Bonds'!CP30+'Real Estate'!CS34-'Real Estate'!$E$5","v":{"v":-3250942.2742015226,"d":"-3,250,942"}},{"$f":"Equities!CQ30+'T Bills'!CQ30+'T Bonds'!CQ30+'Real Estate'!CT34-'Real Estate'!$E$5","v":{"v":198565.45862449723,"d":"198,565"}},{"$f":"Equities!CR30+'T Bills'!CR30+'T Bonds'!CR30+'Real Estate'!CU34-'Real Estate'!$E$5","v":{"v":31469383.008952435,"d":"31,469,383"}},{"$f":"Equities!CS30+'T Bills'!CS30+'T Bonds'!CS30+'Real Estate'!CV34-'Real Estate'!$E$5","v":{"v":5317589.043000713,"d":"5,317,589"}},{"$f":"Equities!CT30+'T Bills'!CT30+'T Bonds'!CT30+'Real Estate'!CW34-'Real Estate'!$E$5","v":{"v":11012092.985450558,"d":"11,012,093"}},{"$f":"Equities!CU30+'T Bills'!CU30+'T Bonds'!CU30+'Real Estate'!CX34-'Real Estate'!$E$5","v":{"v":29178327.012001384,"d":"29,178,327"}},{"$f":"Equities!CV30+'T Bills'!CV30+'T Bonds'!CV30+'Real Estate'!CY34-'Real Estate'!$E$5","v":{"v":10110426.984388648,"d":"10,110,427"}},{"$f":"Equities!CW30+'T Bills'!CW30+'T Bonds'!CW30+'Real Estate'!CZ34-'Real Estate'!$E$5","v":{"v":-3647715.2155394587,"d":"-3,647,715"}},{"$f":"Equities!CX30+'T Bills'!CX30+'T Bonds'!CX30+'Real Estate'!DA34-'Real Estate'!$E$5","v":{"v":13736259.175271008,"d":"13,736,259"}}]
[{"$f":"Main!A37","v":"2052-12-30"},98,{"$f":"Equities!C31+'T Bills'!C31+'T Bonds'!C31+'Real Estate'!F35-'Real Estate'!$E$5","v":{"v":1579175.7840208712,"d":"1,579,176"}},{"$f":"Equities!D31+'T Bills'!D31+'T Bonds'!D31+'Real Estate'!G35-'Real Estate'!$E$5","v":{"v":884207.9733830872,"d":"884,208"}},{"$f":"Equities!E31+'T Bills'!E31+'T Bonds'!E31+'Real Estate'!H35-'Real Estate'!$E$5","v":{"v":8638657.967398487,"d":"8,638,658"}},{"$f":"Equities!F31+'T Bills'!F31+'T Bonds'!F31+'Real Estate'!I35-'Real Estate'!$E$5","v":{"v":9986259.209422687,"d":"9,986,259"}},{"$f":"Equities!G31+'T Bills'!G31+'T Bonds'!G31+'Real Estate'!J35-'Real Estate'!$E$5","v":{"v":13060644.09840215,"d":"13,060,644"}},{"$f":"Equities!H31+'T Bills'!H31+'T Bonds'!H31+'Real Estate'!K35-'Real Estate'!$E$5","v":{"v":7036932.695970476,"d":"7,036,933"}},{"$f":"Equities!I31+'T Bills'!I31+'T Bonds'!I31+'Real Estate'!L35-'Real Estate'!$E$5","v":{"v":122363.16675073079,"d":"122,363"}},{"$f":"Equities!J31+'T Bills'!J31+'T Bonds'!J31+'Real Estate'!M35-'Real Estate'!$E$5","v":{"v":891571.7423934637,"d":"891,572"}},{"$f":"Equities!K31+'T Bills'!K31+'T Bonds'!K31+'Real Estate'!N35-'Real Estate'!$E$5","v":{"v":2613961.9178742934,"d":"2,613,962"}},{"$f":"Equities!L31+'T Bills'!L31+'T Bonds'!L31+'Real Estate'!O35-'Real Estate'!$E$5","v":{"v":11541037.314394478,"d":"11,541,037"}},{"$f":"Equities!M31+'T Bills'!M31+'T Bonds'!M31+'Real Estate'!P35-'Real Estate'!$E$5","v":{"v":2446546.200062436,"d":"2,446,546"}},{"$f":"Equities!N31+'T Bills'!N31+'T Bonds'!N31+'Real Estate'!Q35-'Real Estate'!$E$5","v":{"v":-3984714.0859359587,"d":"-3,984,714"}},{"$f":"Equities!O31+'T Bills'!O31+'T Bonds'!O31+'Real Estate'!R35-'Real Estate'!$E$5","v":{"v":3024548.6704526437,"d":"3,024,549"}},{"$f":"Equities!P31+'T Bills'!P31+'T Bonds'!P31+'Real Estate'!S35-'Real Estate'!$E$5","v":{"v":87166.53386419972,"d":"87,167"}},{"$f":"Equities!Q31+'T Bills'!Q31+'T Bonds'!Q31+'Real Estate'!T35-'Real Estate'!$E$5","v":{"v":-2631228.658967049,"d":"-2,631,229"}},{"$f":"Equities!R31+'T Bills'!R31+'T Bonds'!R31+'Real Estate'!U35-'Real Estate'!$E$5","v":{"v":-105205.38677235965,"d":"-105,205"}},{"$f":"Equities!S31+'T Bills'!S31+'T Bonds'!S31+'Real Estate'!V35-'Real Estate'!$E$5","v":{"v":-3385513.406511938,"d":"-3,385,513"}},{"$f":"Equities!T31+'T Bills'!T31+'T Bonds'!T31+'Real Estate'!W35-'Real Estate'!$E$5","v":{"v":-4010146.0263652448,"d":"-4,010,146"}},{"$f":"Equities!U31+'T Bills'!U31+'T Bonds'!U31+'Real Estate'!X35-'Real Estate'!$E$5","v":{"v":-1072100.4391935405,"d":"-1,072,100"}},{"$f":"Equities!V31+'T Bills'!V31+'T Bonds'!V31+'Real Estate'!Y35-'Real Estate'!$E$5","v":{"v":7814877.779377311,"d":"7,814,878"}},{"$f":"Equities!W31+'T Bills'!W31+'T Bonds'!W31+'Real Estate'!Z35-'Real Estate'!$E$5","v":{"v":6139529.219861859,"d":"6,139,529"}},{"$f":"Equities!X31+'T Bills'!X31+'T Bonds'!X31+'Real Estate'!AA35-'Real Estate'!$E$5","v":{"v":880707.3556520173,"d":"880,707"}},{"$f":"Equities!Y31+'T Bills'!Y31+'T Bonds'!Y31+'Real Estate'!AB35-'Real Estate'!$E$5","v":{"v":569843.7521576815,"d":"569,844"}},{"$f":"Equities!Z31+'T Bills'!Z31+'T Bonds'!Z31+'Real Estate'!AC35-'Real Estate'!$E$5","v":{"v":-1129997.3647014976,"d":"-1,129,997"}},{"$f":"Equities!AA31+'T Bills'!AA31+'T Bonds'!AA31+'Real Estate'!AD35-'Real Estate'!$E$5","v":{"v":7792348.361754182,"d":"7,792,348"}},{"$f":"Equities!AB31+'T Bills'!AB31+'T Bonds'!AB31+'Real Estate'!AE35-'Real Estate'!$E$5","v":{"v":196829.5064223475,"d":"196,830"}},{"$f":"Equities!AC31+'T Bills'!AC31+'T Bonds'!AC31+'Real Estate'!AF35-'Real Estate'!$E$5","v":{"v":-1356683.776074316,"d":"-1,356,684"}},{"$f":"Equities!AD31+'T Bills'!AD31+'T Bonds'!AD31+'Real Estate'!AG35-'Real Estate'!$E$5","v":{"v":-664443.1245060272,"d":"-664,443"}},{"$f":"Equities!AE31+'T Bills'!AE31+'T Bonds'!AE31+'Real Estate'!AH35-'Real Estate'!$E$5","v":{"v":-3546225.0365828224,"d":"-3,546,225"}},{"$f":"Equities!AF31+'T Bills'!AF31+'T Bonds'!AF31+'Real Estate'!AI35-'Real Estate'!$E$5","v":{"v":73063264.60723798,"d":"73,063,265"}},{"$f":"Equities!AG31+'T Bills'!AG31+'T Bonds'!AG31+'Real Estate'!AJ35-'Real Estate'!$E$5","v":{"v":60702382.94335563,"d":"60,702,383"}},{"$f":"Equities!AH31+'T Bills'!AH31+'T Bonds'!AH31+'Real Estate'!AK35-'Real Estate'!$E$5","v":{"v":2827230.577571672,"d":"2,827,231"}},{"$f":"Equities!AI31+'T Bills'!AI31+'T Bonds'!AI31+'Real Estate'!AL35-'Real Estate'!$E$5","v":{"v":2338257.770004454,"d":"2,338,258"}},{"$f":"Equities!AJ31+'T Bills'!AJ31+'T Bonds'!AJ31+'Real Estate'!AM35-'Real Estate'!$E$5","v":{"v":8235752.4015869815,"d":"8,235,752"}},{"$f":"Equities!AK31+'T Bills'!AK31+'T Bonds'!AK31+'Real Estate'!AN35-'Real Estate'!$E$5","v":{"v":-2276312.3857851233,"d":"-2,276,312"}},{"$f":"Equities!AL31+'T Bills'!AL31+'T Bonds'!AL31+'Real Estate'!AO35-'Real Estate'!$E$5","v":{"v":10141646.391964061,"d":"10,141,646"}},{"$f":"Equities!AM31+'T Bills'!AM31+'T Bonds'!AM31+'Real Estate'!AP35-'Real Estate'!$E$5","v":{"v":-960294.1432494958,"d":"-960,294"}},{"$f":"Equities!AN31+'T Bills'!AN31+'T Bonds'!AN31+'Real Estate'!AQ35-'Real Estate'!$E$5","v":{"v":6457119.319698493,"d":"6,457,119"}},{"$f":"Equities!AO31+'T Bills'!AO31+'T Bonds'!AO31+'Real Estate'!AR35-'Real Estate'!$E$5","v":{"v":3984179.245667677,"d":"3,984,179"}},{"$f":"Equities!AP31+'T Bills'!AP31+'T Bonds'!AP31+'Real Estate'!AS35-'Real Estate'!$E$5","v":{"v":65959180.74915157,"d":"65,959,181"}},{"$f":"Equities!AQ31+'T Bills'!AQ31+'T Bonds'!AQ31+'Real Estate'!AT35-'Real Estate'!$E$5","v":{"v":-1388140.8727876071,"d":"-1,388,141"}},{"$f":"Equities!AR31+'T Bills'!AR31+'T Bonds'!AR31+'Real Estate'!AU35-'Real Estate'!$E$5","v":{"v":4861752.766364693,"d":"4,861,753"}},{"$f":"Equities!AS31+'T Bills'!AS31+'T Bonds'!AS31+'Real Estate'!AV35-'Real Estate'!$E$5","v":{"v":2038911.5704722463,"d":"2,038,912"}},{"$f":"Equities!AT31+'T Bills'!AT31+'T Bonds'!AT31+'Real Estate'!AW35-'Real Estate'!$E$5","v":{"v":-615769.0458727372,"d":"-615,769"}},{"$f":"Equities!AU31+'T Bills'!AU31+'T Bonds'!AU31+'Real Estate'!AX35-'Real Estate'!$E$5","v":{"v":8343027.2219522605,"d":"8,343,027"}},{"$f":"Equities!AV31+'T Bills'!AV31+'T Bonds'!AV31+'Real Estate'!AY35-'Real Estate'!$E$5","v":{"v":9354017.726693777,"d":"9,354,018"}},{"$f":"Equities!AW31+'T Bills'!AW31+'T Bonds'!AW31+'Real Estate'!AZ35-'Real Estate'!$E$5","v":{"v":-1024584.5815619868,"d":"-1,024,585"}},{"$f":"Equities!AX31+'T Bills'!AX31+'T Bonds'!AX31+'Real Estate'!BA35-'Real Estate'!$E$5","v":{"v":4978633.309440521,"d":"4,978,633"}},{"$f":"Equities!AY31+'T Bills'!AY31+'T Bonds'!AY31+'Real Estate'!BB35-'Real Estate'!$E$5","v":{"v":9729399.448978186,"d":"9,729,399"}},{"$f":"Equities!AZ31+'T Bills'!AZ31+'T Bonds'!AZ31+'Real Estate'!BC35-'Real Estate'!$E$5","v":{"v":-1300333.829884371,"d":"-1,300,334"}},{"$f":"Equities!BA31+'T Bills'!BA31+'T Bonds'!BA31+'Real Estate'!BD35-'Real Estate'!$E$5","v":{"v":-3620718.215914063,"d":"-3,620,718"}},{"$f":"Equities!BB31+'T Bills'!BB31+'T Bonds'!BB31+'Real Estate'!BE35-'Real Estate'!$E$5","v":{"v":-1714683.347923048,"d":"-1,714,683"}},{"$f":"Equities!BC31+'T Bills'!BC31+'T Bonds'!BC31+'Real Estate'!BF35-'Real Estate'!$E$5","v":{"v":329965.8143316725,"d":"329,966"}},{"$f":"Equities!BD31+'T Bills'!BD31+'T Bonds'!BD31+'Real Estate'!BG35-'Real Estate'!$E$5","v":{"v":7213057.899149833,"d":"7,213,058"}},{"$f":"Equities!BE31+'T Bills'!BE31+'T Bonds'!BE31+'Real Estate'!BH35-'Real Estate'!$E$5","v":{"v":4183245.4187077116,"d":"4,183,245"}},{"$f":"Equities!BF31+'T Bills'!BF31+'T Bonds'!BF31+'Real Estate'!BI35-'Real Estate'!$E$5","v":{"v":-3893315.855930221,"d":"-3,893,316"}},{"$f":"Equities!BG31+'T Bills'!BG31+'T Bonds'!BG31+'Real Estate'!BJ35-'Real Estate'!$E$5","v":{"v":-1446465.9312380166,"d":"-1,446,466"}},{"$f":"Equities!BH31+'T Bills'!BH31+'T Bonds'!BH31+'Real Estate'!BK35-'Real Estate'!$E$5","v":{"v":-1201682.9650345377,"d":"-1,201,683"}},{"$f":"Equities!BI31+'T Bills'!BI31+'T Bonds'!BI31+'Real Estate'!BL35-'Real Estate'!$E$5","v":{"v":11479130.08050458,"d":"11,479,130"}},{"$f":"Equities!BJ31+'T Bills'!BJ31+'T Bonds'!BJ31+'Real Estate'!BM35-'Real Estate'!$E$5","v":{"v":-452519.1437980061,"d":"-452,519"}},{"$f":"Equities!BK31+'T Bills'!BK31+'T Bonds'!BK31+'Real Estate'!BN35-'Real Estate'!$E$5","v":{"v":1219617.1246046876,"d":"1,219,617"}},{"$f":"Equities!BL31+'T Bills'!BL31+'T Bonds'!BL31+'Real Estate'!BO35-'Real Estate'!$E$5","v":{"v":3886530.7499284134,"d":"3,886,531"}},{"$f":"Equities!BM31+'T Bills'!BM31+'T Bonds'!BM31+'Real Estate'!BP35-'Real Estate'!$E$5","v":{"v":-1310798.5187684973,"d":"-1,310,799"}},{"$f":"Equities!BN31+'T Bills'!BN31+'T Bonds'!BN31+'Real Estate'!BQ35-'Real Estate'!$E$5","v":{"v":19107899.322591737,"d":"19,107,899"}},{"$f":"Equities!BO31+'T Bills'!BO31+'T Bonds'!BO31+'Real Estate'!BR35-'Real Estate'!$E$5","v":{"v":9992483.677080302,"d":"9,992,484"}},{"$f":"Equities!BP31+'T Bills'!BP31+'T Bonds'!BP31+'Real Estate'!BS35-'Real Estate'!$E$5","v":{"v":6352720.207377271,"d":"6,352,720"}},{"$f":"Equities!BQ31+'T Bills'!BQ31+'T Bonds'!BQ31+'Real Estate'!BT35-'Real Estate'!$E$5","v":{"v":2642516.8241422144,"d":"2,642,517"}},{"$f":"Equities!BR31+'T Bills'!BR31+'T Bonds'!BR31+'Real Estate'!BU35-'Real Estate'!$E$5","v":{"v":6520069.471372998,"d":"6,520,069"}},{"$f":"Equities!BS31+'T Bills'!BS31+'T Bonds'!BS31+'Real Estate'!BV35-'Real Estate'!$E$5","v":{"v":12105837.420174722,"d":"12,105,837"}},{"$f":"Equities!BT31+'T Bills'!BT31+'T Bonds'!BT31+'Real Estate'!BW35-'Real Estate'!$E$5","v":{"v":-2600156.8279216345,"d":"-2,600,157"}},{"$f":"Equities!BU31+'T Bills'!BU31+'T Bonds'!BU31+'Real Estate'!BX35-'Real Estate'!$E$5","v":{"v":-3176446.961005353,"d":"-3,176,447"}},{"$f":"Equities!BV31+'T Bills'!BV31+'T Bonds'!BV31+'Real Estate'!BY35-'Real Estate'!$E$5","v":{"v":-1113717.2861234439,"d":"-1,113,717"}},{"$f":"Equities!BW31+'T Bills'!BW31+'T Bonds'!BW31+'Real Estate'!BZ35-'Real Estate'!$E$5","v":{"v":-5979854.660025643,"d":"-5,979,855"}},{"$f":"Equities!BX31+'T Bills'!BX31+'T Bonds'!BX31+'Real Estate'!CA35-'Real Estate'!$E$5","v":{"v":4111375.9689990934,"d":"4,111,376"}},{"$f":"Equities!BY31+'T Bills'!BY31+'T Bonds'!BY31+'Real Estate'!CB35-'Real Estate'!$E$5","v":{"v":9896194.699183563,"d":"9,896,195"}},{"$f":"Equities!BZ31+'T Bills'!BZ31+'T Bonds'!BZ31+'Real Estate'!CC35-'Real Estate'!$E$5","v":{"v":-2271927.507508372,"d":"-2,271,928"}},{"$f":"Equities!CA31+'T Bills'!CA31+'T Bonds'!CA31+'Real Estate'!CD35-'Real Estate'!$E$5","v":{"v":-1832579.2633083381,"d":"-1,832,579"}},{"$f":"Equities!CB31+'T Bills'!CB31+'T Bonds'!CB31+'Real Estate'!CE35-'Real Estate'!$E$5","v":{"v":-1419308.389834115,"d":"-1,419,308"}},{"$f":"Equities!CC31+'T Bills'!CC31+'T Bonds'!CC31+'Real Estate'!CF35-'Real Estate'!$E$5","v":{"v":2947781.699927847,"d":"2,947,782"}},{"$f":"Equities!CD31+'T Bills'!CD31+'T Bonds'!CD31+'Real Estate'!CG35-'Real Estate'!$E$5","v":{"v":16360353.082467703,"d":"16,360,353"}},{"$f":"Equities!CE31+'T Bills'!CE31+'T Bonds'!CE31+'Real Estate'!CH35-'Real Estate'!$E$5","v":{"v":77564346.64709158,"d":"77,564,347"}},{"$f":"Equities!CF31+'T Bills'!CF31+'T Bonds'!CF31+'Real Estate'!CI35-'Real Estate'!$E$5","v":{"v":-1666157.0308808654,"d":"-1,666,157"}},{"$f":"Equities!CG31+'T Bills'!CG31+'T Bonds'!CG31+'Real Estate'!CJ35-'Real Estate'!$E$5","v":{"v":756142.4124078074,"d":"756,142"}},{"$f":"Equities!CH31+'T Bills'!CH31+'T Bonds'!CH31+'Real Estate'!CK35-'Real Estate'!$E$5","v":{"v":4802982.52124075,"d":"4,802,983"}},{"$f":"Equities!CI31+'T Bills'!CI31+'T Bonds'!CI31+'Real Estate'!CL35-'Real Estate'!$E$5","v":{"v":-2167574.4769152272,"d":"-2,167,574"}},{"$f":"Equities!CJ31+'T Bills'!CJ31+'T Bonds'!CJ31+'Real Estate'!CM35-'Real Estate'!$E$5","v":{"v":30477327.740675855,"d":"30,477,328"}},{"$f":"Equities!CK31+'T Bills'!CK31+'T Bonds'!CK31+'Real Estate'!CN35-'Real Estate'!$E$5","v":{"v":17631281.87482742,"d":"17,631,282"}},{"$f":"Equities!CL31+'T Bills'!CL31+'T Bonds'!CL31+'Real Estate'!CO35-'Real Estate'!$E$5","v":{"v":34597208.428786986,"d":"34,597,208"}},{"$f":"Equities!CM31+'T Bills'!CM31+'T Bonds'!CM31+'Real Estate'!CP35-'Real Estate'!$E$5","v":{"v":24721999.18959558,"d":"24,721,999"}},{"$f":"Equities!CN31+'T Bills'!CN31+'T Bonds'!CN31+'Real Estate'!CQ35-'Real Estate'!$E$5","v":{"v":21583213.065825354,"d":"21,583,213"}},{"$f":"Equities!CO31+'T Bills'!CO31+'T Bonds'!CO31+'Real Estate'!CR35-'Real Estate'!$E$5","v":{"v":24944647.327840045,"d":"24,944,647"}},{"$f":"Equities!CP31+'T Bills'!CP31+'T Bonds'!CP31+'Real Estate'!CS35-'Real Estate'!$E$5","v":{"v":-3124429.3090150026,"d":"-3,124,429"}},{"$f":"Equities!CQ31+'T Bills'!CQ31+'T Bonds'!CQ31+'Real Estate'!CT35-'Real Estate'!$E$5","v":{"v":-259943.6821191052,"d":"-259,944"}},{"$f":"Equities!CR31+'T Bills'!CR31+'T Bonds'!CR31+'Real Estate'!CU35-'Real Estate'!$E$5","v":{"v":32875319.09741387,"d":"32,875,319"}},{"$f":"Equities!CS31+'T Bills'!CS31+'T Bonds'!CS31+'Real Estate'!CV35-'Real Estate'!$E$5","v":{"v":7047697.618460782,"d":"7,047,698"}},{"$f":"Equities!CT31+'T Bills'!CT31+'T Bonds'!CT31+'Real Estate'!CW35-'Real Estate'!$E$5","v":{"v":9624710.094090985,"d":"9,624,710"}},{"$f":"Equities!CU31+'T Bills'!CU31+'T Bonds'!CU31+'Real Estate'!CX35-'Real Estate'!$E$5","v":{"v":41605813.37166034,"d":"41,605,813"}},{"$f":"Equities!CV31+'T Bills'!CV31+'T Bonds'!CV31+'Real Estate'!CY35-'Real Estate'!$E$5","v":{"v":11278255.854466127,"d":"11,278,256"}},{"$f":"Equities!CW31+'T Bills'!CW31+'T Bonds'!CW31+'Real Estate'!CZ35-'Real Estate'!$E$5","v":{"v":-3907448.390214723,"d":"-3,907,448"}},{"$f":"Equities!CX31+'T Bills'!CX31+'T Bonds'!CX31+'Real Estate'!DA35-'Real Estate'!$E$5","v":{"v":17413845.49127073,"d":"17,413,845"}}]
[]
[null,null,"The macro pastes as values from above and then sorts ascending by final value:"]
[{"$f":"A3","v":"2023-12-31"},69,{"v":1131161.3363025312,"d":"1,131,161"},{"v":960301.9423425496,"d":"960,302"},{"v":1162540.5251609737,"d":"1,162,541"},{"v":1372259.8836934094,"d":"1,372,260"},{"v":972953.2770448083,"d":"972,953"},{"v":1614294.7243518562,"d":"1,614,295"},{"v":1410822.4480921233,"d":"1,410,822"},{"v":1392941.943002159,"d":"1,392,942"},{"v":1369411.8344120954,"d":"1,369,412"},{"v":1516279.0939840751,"d":"1,516,279"},{"v":1303670.5714234745,"d":"1,303,671"},{"v":1598852.8794774802,"d":"1,598,853"},{"v":1429600.2197837809,"d":"1,429,600"},{"v":1276438.70194989,"d":"1,276,439"},{"v":1323762.0982092465,"d":"1,323,762"},{"v":1436725.339564753,"d":"1,436,725"},{"v":1410266.1425877153,"d":"1,410,266"},{"v":1408095.3388611027,"d":"1,408,095"},{"v":1331541.904637647,"d":"1,331,542"},{"v":1616699.3764701951,"d":"1,616,699"},{"v":1284316.440865501,"d":"1,284,316"},{"v":1503254.1236010103,"d":"1,503,254"},{"v":1236715.909342087,"d":"1,236,716"},{"v":1493070.9226196771,"d":"1,493,071"},{"v":1252927.1733604213,"d":"1,252,927"},{"v":1472810.3769290184,"d":"1,472,810"},{"v":1453444.2686650364,"d":"1,453,444"},{"v":1358148.5458478502,"d":"1,358,149"},{"v":1462213.9875110576,"d":"1,462,214"},{"v":1130258.9911710788,"d":"1,130,259"},{"v":1451894.0250357392,"d":"1,451,894"},{"v":1323475.4029053159,"d":"1,323,475"},{"v":1338194.3849682068,"d":"1,338,194"},{"v":1229574.840951517,"d":"1,229,575"},{"v":1455072.8635224036,"d":"1,455,073"},{"v":1425190.6463003878,"d":"1,425,191"},{"v":1454840.7448026969,"d":"1,454,841"},{"v":1339389.6737390384,"d":"1,339,390"},{"v":1471214.9743889344,"d":"1,471,215"},{"v":1573541.108804064,"d":"1,573,541"},{"v":1209657.2304170728,"d":"1,209,657"},{"v":1562913.2474697204,"d":"1,562,913"},{"v":1578639.1459808776,"d":"1,578,639"},{"v":1305031.5986855153,"d":"1,305,032"},{"v":1483103.4606131038,"d":"1,483,103"},{"v":1562388.6110386446,"d":"1,562,389"},{"v":1271944.1480353016,"d":"1,271,944"},{"v":1348864.8159079112,"d":"1,348,865"},{"v":1441272.6146995695,"d":"1,441,273"},{"v":1473040.2577120669,"d":"1,473,040"},{"v":1189097.8174844172,"d":"1,189,098"},{"v":1547751.5478899057,"d":"1,547,752"},{"v":1477785.5084052254,"d":"1,477,786"},{"v":1407692.3142567454,"d":"1,407,692"},{"v":1425642.93025606,"d":"1,425,643"},{"v":1213914.3146059844,"d":"1,213,914"},{"v":1615232.4166512385,"d":"1,615,232"},{"v":1416104.345931433,"d":"1,416,104"},{"v":1465554.6684306741,"d":"1,465,555"},{"v":1227246.4357496004,"d":"1,227,246"},{"v":1431168.2953554052,"d":"1,431,168"},{"v":1237923.7354152247,"d":"1,237,924"},{"v":1346969.3111873146,"d":"1,346,969"},{"v":1441997.8341914136,"d":"1,441,998"},{"v":1449876.422728427,"d":"1,449,876"},{"v":1209536.1190409244,"d":"1,209,536"},{"v":1091860.3095852744,"d":"1,091,860"},{"v":1430616.9296679443,"d":"1,430,617"},{"v":1596543.9192614714,"d":"1,596,544"},{"v":1359217.8134727648,"d":"1,359,218"},{"v":1585842.546699151,"d":"1,585,843"},{"v":1637166.0962730923,"d":"1,637,166"},{"v":1530523.4459829405,"d":"1,530,523"},{"v":1394492.3597898944,"d":"1,394,492"},{"v":1446129.278931977,"d":"1,446,129"},{"v":1491875.8085631304,"d":"1,491,876"},{"v":1334665.1656739768,"d":"1,334,665"},{"v":1430887.1265720779,"d":"1,430,887"},{"v":1389877.427175978,"d":"1,389,877"},{"v":1502048.5361354374,"d":"1,502,049"},{"v":1600422.5603884049,"d":"1,600,423"},{"v":1356437.0279445634,"d":"1,356,437"},{"v":1431775.6735198575,"d":"1,431,776"},{"v":1620507.5062662477,"d":"1,620,508"},{"v":1445729.0595179636,"d":"1,445,729"},{"v":1403005.5243867934,"d":"1,403,006"},{"v":1491792.2952808698,"d":"1,491,792"},{"v":1603652.4270021808,"d":"1,603,652"},{"v":1501650.661545058,"d":"1,501,651"},{"v":1505546.347892546,"d":"1,505,546"},{"v":1213914.3146059844,"d":"1,213,914"},{"v":1342538.6083321478,"d":"1,342,539"},{"v":1277141.5747843331,"d":"1,277,142"},{"v":1233971.1435728343,"d":"1,233,971"},{"v":1337412.6598504162,"d":"1,337,413"},{"v":1522657.0608853195,"d":"1,522,657"},{"v":1203100.449838593,"d":"1,203,100"},{"v":1356437.0279445634,"d":"1,356,437"},{"v":1580506.2017299517,"d":"1,580,506"},{"v":1527297.0974718176,"d":"1,527,297"}]
["2024-12-30",70,{"v":1136667.0646592667,"d":"1,136,667"},{"v":975569.4532669073,"d":"975,569"},{"v":1274830.849878411,"d":"1,274,831"},{"v":1495385.1298815862,"d":"1,495,385"},{"v":1036433.2232305228,"d":"1,036,433"},{"v":1754021.2179603928,"d":"1,754,021"},{"v":1529722.7776825617,"d":"1,529,723"},{"v":1299776.9472905325,"d":"1,299,777"},{"v":1352260.811428568,"d":"1,352,261"},{"v":1417091.9130148406,"d":"1,417,092"},{"v":1390808.0142753664,"d":"1,390,808"},{"v":1676183.4956252163,"d":"1,676,183"},{"v":1215126.4562650712,"d":"1,215,126"},{"v":1429428.860988038,"d":"1,429,429"},{"v":1115204.0016943903,"d":"1,115,204"},{"v":1506593.9036625335,"d":"1,506,594"},{"v":1260463.7170022177,"d":"1,260,464"},{"v":1633574.3588343572,"d":"1,633,574"},{"v":1526004.7852634804,"d":"1,526,005"},{"v":1358483.071681884,"d":"1,358,483"},{"v":1357366.7591399113,"d":"1,357,367"},{"v":1824154.6550533038,"d":"1,824,155"},{"v":1327603.1762847472,"d":"1,327,603"},{"v":1283075.8580916105,"d":"1,283,076"},{"v":1179518.814290348,"d":"1,179,519"},{"v":1618259.3684404346,"d":"1,618,259"},{"v":1220443.2554829156,"d":"1,220,443"},{"v":1281364.338102457,"d":"1,281,364"},{"v":1386329.0999854608,"d":"1,386,329"},{"v":1114680.2098908708,"d":"1,114,680"},{"v":1740493.1827506283,"d":"1,740,493"},{"v":1273511.015084835,"d":"1,273,511"},{"v":1270123.6940594038,"d":"1,270,124"},{"v":1357483.404524041,"d":"1,357,483"},{"v":1707235.9883355312,"d":"1,707,236"},{"v":1598549.2974732162,"d":"1,598,549"},{"v":1340006.3626529651,"d":"1,340,006"},{"v":1236940.5744422104,"d":"1,236,941"},{"v":1626019.6545211447,"d":"1,626,020"},{"v":1621368.87208398,"d":"1,621,369"},{"v":1223779.7942343696,"d":"1,223,780"},{"v":1601025.6344043014,"d":"1,601,026"},{"v":1761330.2522709914,"d":"1,761,330"},{"v":1379233.390666681,"d":"1,379,233"},{"v":1110836.232164752,"d":"1,110,836"},{"v":1941118.5158191812,"d":"1,941,119"},{"v":1461572.3705080373,"d":"1,461,572"},{"v":1515690.5277877564,"d":"1,515,691"},{"v":1572053.3068402286,"d":"1,572,053"},{"v":1393119.9234657355,"d":"1,393,120"},{"v":1382832.294760847,"d":"1,382,832"},{"v":1590004.6405844206,"d":"1,590,005"},{"v":1524662.4812343547,"d":"1,524,662"},{"v":1459797.6965543025,"d":"1,459,798"},{"v":1449867.7835860485,"d":"1,449,868"},{"v":1437961.7162359946,"d":"1,437,962"},{"v":1792437.0469072463,"d":"1,792,437"},{"v":1675819.2288944006,"d":"1,675,819"},{"v":1559388.67770791,"d":"1,559,389"},{"v":1153333.492701781,"d":"1,153,333"},{"v":1577067.8364922695,"d":"1,577,068"},{"v":1277695.8359871188,"d":"1,277,696"},{"v":1516660.375529322,"d":"1,516,660"},{"v":1903198.788904058,"d":"1,903,199"},{"v":1429558.1143888491,"d":"1,429,558"},{"v":1262147.4588886818,"d":"1,262,147"},{"v":1218286.395761158,"d":"1,218,286"},{"v":1589914.826423292,"d":"1,589,915"},{"v":1948218.3620493927,"d":"1,948,218"},{"v":1454343.5874974008,"d":"1,454,344"},{"v":1788611.2489297024,"d":"1,788,611"},{"v":1681678.2432528601,"d":"1,681,678"},{"v":1377419.4291005132,"d":"1,377,419"},{"v":1485690.8095360484,"d":"1,485,691"},{"v":1411867.6616213305,"d":"1,411,868"},{"v":1805326.7774274962,"d":"1,805,327"},{"v":1550512.6357309688,"d":"1,550,513"},{"v":1394182.2455261017,"d":"1,394,182"},{"v":1294820.8012261575,"d":"1,294,821"},{"v":1748480.703665205,"d":"1,748,481"},{"v":1610541.312077737,"d":"1,610,541"},{"v":1551305.5097840643,"d":"1,551,306"},{"v":1598722.5579116524,"d":"1,598,723"},{"v":1939790.9006010082,"d":"1,939,791"},{"v":1588456.436755058,"d":"1,588,456"},{"v":1656033.7477874432,"d":"1,656,034"},{"v":1611410.5891117402,"d":"1,611,411"},{"v":2069628.226938761,"d":"2,069,628"},{"v":1370434.8594854237,"d":"1,370,435"},{"v":1528490.3844122211,"d":"1,528,490"},{"v":926865.2527661636,"d":"926,865"},{"v":1672454.687552587,"d":"1,672,455"},{"v":1394051.0315229034,"d":"1,394,051"},{"v":1392586.337469992,"d":"1,392,586"},{"v":1576335.6135073204,"d":"1,576,336"},{"v":1641586.3042154803,"d":"1,641,586"},{"v":1138501.6467982566,"d":"1,138,502"},{"v":1426371.8167195434,"d":"1,426,372"},{"v":1733548.6415088403,"d":"1,733,549"},{"v":1636321.1827036126,"d":"1,636,321"}]
["2025-12-30",71,{"v":1084031.3770306127,"d":"1,084,031"},{"v":991532.0000921215,"d":"991,532"},{"v":1218681.082011502,"d":"1,218,681"},{"v":1484500.801586828,"d":"1,484,501"},{"v":1035892.2609726663,"d":"1,035,892"},{"v":1618983.5398766391,"d":"1,618,984"},{"v":1636694.1795814123,"d":"1,636,694"},{"v":1380294.126349618,"d":"1,380,294"},{"v":1561208.3656252176,"d":"1,561,208"},{"v":1502806.7223410972,"d":"1,502,807"},{"v":1208140.4235864615,"d":"1,208,140"},{"v":1590205.0011372056,"d":"1,590,205"},{"v":1228775.6367254376,"d":"1,228,776"},{"v":1615185.4437757747,"d":"1,615,185"},{"v":1173406.6579465584,"d":"1,173,407"},{"v":1410430.8936052725,"d":"1,410,431"},{"v":1196609.1687024657,"d":"1,196,609"},{"v":1630498.1575372352,"d":"1,630,498"},{"v":1329151.9544038028,"d":"1,329,152"},{"v":1567174.9506391578,"d":"1,567,175"},{"v":1379289.5294630262,"d":"1,379,290"},{"v":1692187.2801788854,"d":"1,692,187"},{"v":1480489.7707768532,"d":"1,480,490"},{"v":1306320.6972760065,"d":"1,306,321"},{"v":1173007.2843166234,"d":"1,173,007"},{"v":1934268.94667145,"d":"1,934,269"},{"v":1365837.4079159838,"d":"1,365,837"},{"v":1262230.872048091,"d":"1,262,231"},{"v":1578323.234149954,"d":"1,578,323"},{"v":1171988.4029024406,"d":"1,171,988"},{"v":1606474.842825968,"d":"1,606,475"},{"v":1468263.2395725055,"d":"1,468,263"},{"v":1352063.3321779328,"d":"1,352,063"},{"v":1354873.1345888705,"d":"1,354,873"},{"v":1775630.084263559,"d":"1,775,630"},{"v":1873379.1296182128,"d":"1,873,379"},{"v":1509722.0284717598,"d":"1,509,722"},{"v":1273000.999480573,"d":"1,273,001"},{"v":1425704.58979176,"d":"1,425,705"},{"v":1699823.536905182,"d":"1,699,824"},{"v":1320414.2363279227,"d":"1,320,414"},{"v":1650985.2065333626,"d":"1,650,985"},{"v":1965474.0218645595,"d":"1,965,474"},{"v":1216502.100743491,"d":"1,216,502"},{"v":1273428.0765877045,"d":"1,273,428"},{"v":1406156.6562649526,"d":"1,406,157"},{"v":1693611.4000696132,"d":"1,693,611"},{"v":1204834.204225607,"d":"1,204,834"},{"v":1629437.3023379075,"d":"1,629,437"},{"v":1561186.3176842972,"d":"1,561,186"},{"v":1526150.3579140087,"d":"1,526,150"},{"v":1569302.0950395027,"d":"1,569,302"},{"v":1458131.6040036464,"d":"1,458,132"},{"v":1383787.1420980901,"d":"1,383,787"},{"v":1541305.4468152479,"d":"1,541,305"},{"v":1495778.1826828967,"d":"1,495,778"},{"v":2325643.023565757,"d":"2,325,643"},{"v":1937416.1278074225,"d":"1,937,416"},{"v":1927937.9524689354,"d":"1,927,938"},{"v":1254960.2177895892,"d":"1,254,960"},{"v":1241475.7248263767,"d":"1,241,476"},{"v":1271720.3234499018,"d":"1,271,720"},{"v":1816353.8296958336,"d":"1,816,354"},{"v":2057185.2418567801,"d":"2,057,185"},{"v":1646290.8983332089,"d":"1,646,291"},{"v":1443777.4233213768,"d":"1,443,777"},{"v":1444538.068500342,"d":"1,444,538"},{"v":1459840.1085496892,"d":"1,459,840"},{"v":2367901.30356677,"d":"2,367,901"},{"v":1677597.1056476482,"d":"1,677,597"},{"v":1777106.3500157099,"d":"1,777,106"},{"v":2048244.8600430994,"d":"2,048,245"},{"v":1680603.8337911058,"d":"1,680,604"},{"v":1373129.6527306547,"d":"1,373,130"},{"v":1590350.1039382906,"d":"1,590,350"},{"v":1773723.7883842217,"d":"1,773,724"},{"v":1507658.3259489443,"d":"1,507,658"},{"v":1650259.7306989122,"d":"1,650,260"},{"v":1289278.1196047121,"d":"1,289,278"},{"v":1836078.119348492,"d":"1,836,078"},{"v":1725564.6467149688,"d":"1,725,565"},{"v":1541079.6805042985,"d":"1,541,080"},{"v":1612429.1435635244,"d":"1,612,429"},{"v":2114306.466637782,"d":"2,114,306"},{"v":1459936.826447327,"d":"1,459,937"},{"v":1676342.3830190504,"d":"1,676,342"},{"v":1847854.6848681995,"d":"1,847,855"},{"v":2610663.619828823,"d":"2,610,664"},{"v":1538115.485335508,"d":"1,538,115"},{"v":1538834.750753582,"d":"1,538,835"},{"v":942207.3557606773,"d":"942,207"},{"v":2013534.8312337354,"d":"2,013,535"},{"v":1637392.160543613,"d":"1,637,392"},{"v":1293476.6231872311,"d":"1,293,477"},{"v":1963748.5961938335,"d":"1,963,749"},{"v":1843085.8414693582,"d":"1,843,086"},{"v":1404375.8511060418,"d":"1,404,376"},{"v":1562191.9243126996,"d":"1,562,192"},{"v":2049806.8994376522,"d":"2,049,807"},{"v":1997860.496015678,"d":"1,997,860"}]
["2026-12-30",72,{"v":1104101.7666822232,"d":"1,104,102"},{"v":1207856.9526984997,"d":"1,207,857"},{"v":1029948.4620882377,"d":"1,029,948"},{"v":1602153.5072884099,"d":"1,602,154"},{"v":1089281.6603873146,"d":"1,089,282"},{"v":2134617.5167594124,"d":"2,134,618"},{"v":1622223.3470832163,"d":"1,622,223"},{"v":1471295.8669721165,"d":"1,471,296"},{"v":1809927.907296849,"d":"1,809,928"},{"v":1311596.4271167435,"d":"1,311,596"},{"v":1477693.6974816709,"d":"1,477,694"},{"v":1645072.6027764697,"d":"1,645,073"},{"v":1288233.8311866126,"d":"1,288,234"},{"v":1554262.0732770443,"d":"1,554,262"},{"v":1126713.490371294,"d":"1,126,713"},{"v":1720439.811394592,"d":"1,720,440"},{"v":1215036.3131298216,"d":"1,215,036"},{"v":1982342.5326219609,"d":"1,982,343"},{"v":1439935.7397167624,"d":"1,439,936"},{"v":1721664.6306381568,"d":"1,721,665"},{"v":1483019.9605270403,"d":"1,483,020"},{"v":2097589.1311296234,"d":"2,097,589"},{"v":1107975.0397127287,"d":"1,107,975"},{"v":1432218.0871784044,"d":"1,432,218"},{"v":1031067.3370497737,"d":"1,031,067"},{"v":2295979.7340335934,"d":"2,295,980"},{"v":1470516.4686444446,"d":"1,470,516"},{"v":1080629.6610213525,"d":"1,080,630"},{"v":1659213.745211398,"d":"1,659,214"},{"v":1077777.610503177,"d":"1,077,778"},{"v":1549756.544407132,"d":"1,549,757"},{"v":1700763.2682172759,"d":"1,700,763"},{"v":1602841.9191394344,"d":"1,602,842"},{"v":1389045.0396077486,"d":"1,389,045"},{"v":2141538.2813730887,"d":"2,141,538"},{"v":2005463.211889581,"d":"2,005,463"},{"v":1686321.1200480717,"d":"1,686,321"},{"v":1133087.7716028958,"d":"1,133,088"},{"v":1483057.716557977,"d":"1,483,058"},{"v":1832539.8334422142,"d":"1,832,540"},{"v":1452031.38344654,"d":"1,452,031"},{"v":1694227.3791863616,"d":"1,694,227"},{"v":1948586.5721651672,"d":"1,948,587"},{"v":1425595.357951862,"d":"1,425,595"},{"v":1369106.8214232873,"d":"1,369,107"},{"v":1435556.1440405939,"d":"1,435,556"},{"v":1797194.6079390533,"d":"1,797,195"},{"v":1526437.372106034,"d":"1,526,437"},{"v":2007405.811283474,"d":"2,007,406"},{"v":1577678.5066490711,"d":"1,577,679"},{"v":1579393.1838293911,"d":"1,579,393"},{"v":1595858.7919025274,"d":"1,595,859"},{"v":1549814.6651715096,"d":"1,549,815"},{"v":1681865.7776638975,"d":"1,681,866"},{"v":1839852.4675742532,"d":"1,839,852"},{"v":1301405.700135151,"d":"1,301,406"},{"v":2694063.9366179253,"d":"2,694,064"},{"v":1883981.6109679411,"d":"1,883,982"},{"v":1971908.456744334,"d":"1,971,908"},{"v":1351188.649974022,"d":"1,351,189"},{"v":1388930.7113580464,"d":"1,388,931"},{"v":1229200.795514072,"d":"1,229,201"},{"v":2068896.492375611,"d":"2,068,896"},{"v":2469297.402367416,"d":"2,469,297"},{"v":1858405.481889746,"d":"1,858,405"},{"v":1527035.6203797313,"d":"1,527,036"},{"v":1683044.8261605909,"d":"1,683,045"},{"v":1389538.0991783023,"d":"1,389,538"},{"v":2835099.9100819114,"d":"2,835,100"},{"v":1923276.6079151288,"d":"1,923,277"},{"v":1937134.337667938,"d":"1,937,134"},{"v":2703178.8597099604,"d":"2,703,179"},{"v":1935844.845481333,"d":"1,935,845"},{"v":1510743.2539950898,"d":"1,510,743"},{"v":1384180.7649787616,"d":"1,384,181"},{"v":1606668.169577748,"d":"1,606,668"},{"v":1748363.1947080872,"d":"1,748,363"},{"v":1539005.7146574238,"d":"1,539,006"},{"v":1605709.310797812,"d":"1,605,709"},{"v":1819996.3261881925,"d":"1,819,996"},{"v":1740567.1617348257,"d":"1,740,567"},{"v":1785580.4138359635,"d":"1,785,580"},{"v":1953205.6168801477,"d":"1,953,206"},{"v":2331783.8796103327,"d":"2,331,784"},{"v":1431316.3861790723,"d":"1,431,316"},{"v":1953588.7703446297,"d":"1,953,589"},{"v":1958763.1768258289,"d":"1,958,763"},{"v":3450207.265821657,"d":"3,450,207"},{"v":1924809.6399641556,"d":"1,924,810"},{"v":1626368.0276525852,"d":"1,626,368"},{"v":1159623.9569605403,"d":"1,159,624"},{"v":2077963.5082463522,"d":"2,077,964"},{"v":1769701.7525941338,"d":"1,769,702"},{"v":1113258.5783257484,"d":"1,113,259"},{"v":2239164.795720138,"d":"2,239,165"},{"v":1892085.606073708,"d":"1,892,086"},{"v":1647955.9145167908,"d":"1,647,956"},{"v":1847353.1226479092,"d":"1,847,353"},{"v":2519193.753200054,"d":"2,519,194"},{"v":2099767.7962230593,"d":"2,099,768"}]
["2027-12-31",73,{"v":996618.5999103074,"d":"996,619"},{"v":1218829.803820777,"d":"1,218,830"},{"v":1118275.5084671162,"d":"1,118,276"},{"v":1664478.1548955524,"d":"1,664,478"},{"v":1093680.100711217,"d":"1,093,680"},{"v":2437710.1836183704,"d":"2,437,710"},{"v":1863114.7131097496,"d":"1,863,115"},{"v":1422353.8070086043,"d":"1,422,354"},{"v":1967132.6456213763,"d":"1,967,133"},{"v":1073860.2690430165,"d":"1,073,860"},{"v":1352210.1079005713,"d":"1,352,210"},{"v":1618580.38038445,"d":"1,618,580"},{"v":1257743.339207544,"d":"1,257,743"},{"v":1505799.919091473,"d":"1,505,800"},{"v":1152560.3031467136,"d":"1,152,560"},{"v":1848953.5225371912,"d":"1,848,954"},{"v":1177754.4896231818,"d":"1,177,754"},{"v":2684480.316194448,"d":"2,684,480"},{"v":1773380.606555038,"d":"1,773,381"},{"v":1804173.2291623002,"d":"1,804,173"},{"v":1588770.526331583,"d":"1,588,771"},{"v":1741640.4540642865,"d":"1,741,640"},{"v":1289906.0232282798,"d":"1,289,906"},{"v":1567918.1913705894,"d":"1,567,918"},{"v":1206277.0523318122,"d":"1,206,277"},{"v":1653135.617400706,"d":"1,653,136"},{"v":1750758.5488907604,"d":"1,750,759"},{"v":1100001.5490842152,"d":"1,100,002"},{"v":1784443.6909081854,"d":"1,784,444"},{"v":1328911.9872272864,"d":"1,328,912"},{"v":1362471.037784161,"d":"1,362,471"},{"v":2047127.53443865,"d":"2,047,128"},{"v":1497339.346828751,"d":"1,497,339"},{"v":1509299.5350286835,"d":"1,509,300"},{"v":2290880.520434976,"d":"2,290,881"},{"v":1817618.3522284008,"d":"1,817,618"},{"v":1397003.8978696035,"d":"1,397,004"},{"v":1382702.944419893,"d":"1,382,703"},{"v":1494673.011085399,"d":"1,494,673"},{"v":2296187.499986024,"d":"2,296,187"},{"v":1687407.9572141622,"d":"1,687,408"},{"v":1904357.105328883,"d":"1,904,357"},{"v":2073858.244555197,"d":"2,073,858"},{"v":1373984.7854674223,"d":"1,373,985"},{"v":1434335.3017523328,"d":"1,434,335"},{"v":1344442.9456056694,"d":"1,344,443"},{"v":1836648.3725923083,"d":"1,836,648"},{"v":1536580.503481154,"d":"1,536,581"},{"v":2225380.6214055913,"d":"2,225,381"},{"v":1651664.3388900093,"d":"1,651,664"},{"v":1739398.9220986667,"d":"1,739,399"},{"v":1859590.799209647,"d":"1,859,591"},{"v":1689814.064793648,"d":"1,689,814"},{"v":1406085.2054330858,"d":"1,406,085"},{"v":2308146.664971401,"d":"2,308,147"},{"v":1508844.378821879,"d":"1,508,844"},{"v":2817518.4610278523,"d":"2,817,518"},{"v":1930838.9366213207,"d":"1,930,839"},{"v":1873347.2578551767,"d":"1,873,347"},{"v":1469170.383780434,"d":"1,469,170"},{"v":1589432.0640537739,"d":"1,589,432"},{"v":1377996.5740930326,"d":"1,377,997"},{"v":1403972.2006275428,"d":"1,403,972"},{"v":1829192.2961306174,"d":"1,829,192"},{"v":1437744.3396939887,"d":"1,437,744"},{"v":1757751.836483669,"d":"1,757,752"},{"v":1583343.3213083886,"d":"1,583,343"},{"v":1691287.1380295272,"d":"1,691,287"},{"v":3302458.7031458933,"d":"3,302,459"},{"v":2173970.2638743753,"d":"2,173,970"},{"v":2230158.56662522,"d":"2,230,159"},{"v":2700532.9191912836,"d":"2,700,533"},{"v":1760524.7614305543,"d":"1,760,525"},{"v":1960885.7000085919,"d":"1,960,886"},{"v":1506274.0439550176,"d":"1,506,274"},{"v":1744071.0760191258,"d":"1,744,071"},{"v":1753460.9383019314,"d":"1,753,461"},{"v":1577911.0643236486,"d":"1,577,911"},{"v":1892855.43224608,"d":"1,892,855"},{"v":1933566.101383695,"d":"1,933,566"},{"v":2024422.431093681,"d":"2,024,422"},{"v":1864998.890332534,"d":"1,864,999"},{"v":2063076.4083764649,"d":"2,063,076"},{"v":2254662.4514720934,"d":"2,254,662"},{"v":1627081.0810615001,"d":"1,627,081"},{"v":2299838.0407878924,"d":"2,299,838"},{"v":2207707.380024773,"d":"2,207,707"},{"v":3841550.628147585,"d":"3,841,551"},{"v":2160444.3375856234,"d":"2,160,444"},{"v":1845572.8526759385,"d":"1,845,573"},{"v":1237889.7199134214,"d":"1,237,890"},{"v":2399248.4980110135,"d":"2,399,248"},{"v":2198349.1073147804,"d":"2,198,349"},{"v":1158610.4414046572,"d":"1,158,610"},{"v":2220653.0199499913,"d":"2,220,653"},{"v":2405470.0653921044,"d":"2,405,470"},{"v":1831581.5020622206,"d":"1,831,582"},{"v":2104165.4578527017,"d":"2,104,165"},{"v":3087750.746349918,"d":"3,087,751"},{"v":2424147.38353273,"d":"2,424,147"}]
["2028-12-30",74,{"v":983087.6984745713,"d":"983,088"},{"v":1322129.3854146902,"d":"1,322,129"},{"v":907698.1438077929,"d":"907,698"},{"v":1526710.5704985617,"d":"1,526,711"},{"v":1243978.554836919,"d":"1,243,979"},{"v":2245588.764225674,"d":"2,245,589"},{"v":2272910.6267317343,"d":"2,272,911"},{"v":1462426.6357249615,"d":"1,462,427"},{"v":1836061.304621072,"d":"1,836,061"},{"v":1154142.058708303,"d":"1,154,142"},{"v":1515867.7564279607,"d":"1,515,868"},{"v":1449302.9559001352,"d":"1,449,303"},{"v":1425979.1659435525,"d":"1,425,979"},{"v":1532057.2283418907,"d":"1,532,057"},{"v":1299611.2176616816,"d":"1,299,611"},{"v":2068796.7013394625,"d":"2,068,797"},{"v":1301684.1470080016,"d":"1,301,684"},{"v":1804851.556549064,"d":"1,804,852"},{"v":2024625.4419929374,"d":"2,024,625"},{"v":2155975.3811617666,"d":"2,155,975"},{"v":1680831.8385310506,"d":"1,680,832"},{"v":1616985.1430791954,"d":"1,616,985"},{"v":1133665.1701741288,"d":"1,133,665"},{"v":1646514.4615646496,"d":"1,646,514"},{"v":1305500.1237747793,"d":"1,305,500"},{"v":1402040.0678555572,"d":"1,402,040"},{"v":1669817.9136588809,"d":"1,669,818"},{"v":1108746.683399001,"d":"1,108,747"},{"v":1467131.274519465,"d":"1,467,131"},{"v":1519632.4378611427,"d":"1,519,632"},{"v":1470796.899341578,"d":"1,470,797"},{"v":1892318.0083702009,"d":"1,892,318"},{"v":1736196.0192454965,"d":"1,736,196"},{"v":1801577.8747685007,"d":"1,801,578"},{"v":2206225.42942193,"d":"2,206,225"},{"v":1913301.3155682534,"d":"1,913,301"},{"v":1321702.343021639,"d":"1,321,702"},{"v":1616751.015807419,"d":"1,616,751"},{"v":1833996.1646304426,"d":"1,833,996"},{"v":2377565.576255704,"d":"2,377,566"},{"v":1902463.9842630276,"d":"1,902,464"},{"v":2435216.833009587,"d":"2,435,217"},{"v":2303356.53790648,"d":"2,303,357"},{"v":1497791.3778034572,"d":"1,497,791"},{"v":1488746.6945547767,"d":"1,488,747"},{"v":1442373.440558985,"d":"1,442,373"},{"v":2112670.2724669077,"d":"2,112,670"},{"v":1838917.6856958156,"d":"1,838,918"},{"v":2396680.632498649,"d":"2,396,681"},{"v":1644013.1469851765,"d":"1,644,013"},{"v":2263762.1443329486,"d":"2,263,762"},{"v":2099473.32546071,"d":"2,099,473"},{"v":2200809.3502616677,"d":"2,200,809"},{"v":1416909.2583602436,"d":"1,416,909"},{"v":2192824.512733223,"d":"2,192,825"},{"v":1588099.9628432842,"d":"1,588,100"},{"v":2934535.5774687654,"d":"2,934,536"},{"v":2271524.07711203,"d":"2,271,524"},{"v":1971906.8961664939,"d":"1,971,907"},{"v":1483190.0083275314,"d":"1,483,190"},{"v":1618633.7943553487,"d":"1,618,634"},{"v":1446944.0041168993,"d":"1,446,944"},{"v":1661265.4637391004,"d":"1,661,265"},{"v":1994363.9226064526,"d":"1,994,364"},{"v":1285197.6639714502,"d":"1,285,198"},{"v":2158731.8761942047,"d":"2,158,732"},{"v":1882418.621475333,"d":"1,882,419"},{"v":1818809.921801957,"d":"1,818,810"},{"v":3395182.647213967,"d":"3,395,183"},{"v":2326581.658161391,"d":"2,326,582"},{"v":2316170.3855834175,"d":"2,316,170"},{"v":2630442.8716523796,"d":"2,630,443"},{"v":1987596.332853102,"d":"1,987,596"},{"v":2078434.2966921378,"d":"2,078,434"},{"v":1606218.9714189565,"d":"1,606,219"},{"v":1932359.7345910335,"d":"1,932,360"},{"v":1907796.7839167912,"d":"1,907,797"},{"v":1772876.4015172448,"d":"1,772,876"},{"v":1927801.756669842,"d":"1,927,802"},{"v":2243192.1786457943,"d":"2,243,192"},{"v":2025213.1372172942,"d":"2,025,213"},{"v":2063757.9244594022,"d":"2,063,758"},{"v":2222123.3251826577,"d":"2,222,123"},{"v":2604072.036169023,"d":"2,604,072"},{"v":1861121.557429259,"d":"1,861,122"},{"v":2275941.380795209,"d":"2,275,941"},{"v":2270048.8002796136,"d":"2,270,049"},{"v":4870681.850358911,"d":"4,870,682"},{"v":2115373.3846390075,"d":"2,115,373"},{"v":2059656.7716600897,"d":"2,059,657"},{"v":1353153.2806199335,"d":"1,353,153"},{"v":2448665.7738825334,"d":"2,448,666"},{"v":2676626.3047891264,"d":"2,676,626"},{"v":1280604.305226251,"d":"1,280,604"},{"v":2936696.183341676,"d":"2,936,696"},{"v":2649445.216765492,"d":"2,649,445"},{"v":2091450.8820965716,"d":"2,091,451"},{"v":2793644.3004998066,"d":"2,793,644"},{"v":3575186.3269938356,"d":"3,575,186"},{"v":2718406.676027354,"d":"2,718,407"}]
["2029-12-30",75,{"v":1016421.6009089944,"d":"1,016,422"},{"v":1231936.4547445474,"d":"1,231,936"},{"v":983769.8318897414,"d":"983,770"},{"v":1726228.553443494,"d":"1,726,229"},{"v":1370940.5299672235,"d":"1,370,941"},{"v":2739788.717731321,"d":"2,739,789"},{"v":2340745.2421502112,"d":"2,340,745"},{"v":1621554.6266186365,"d":"1,621,555"},{"v":1657599.5669063583,"d":"1,657,600"},{"v":1238981.6769158382,"d":"1,238,982"},{"v":1540979.680237232,"d":"1,540,980"},{"v":1156514.5224892932,"d":"1,156,515"},{"v":1540946.6373888797,"d":"1,540,947"},{"v":1615408.8823575007,"d":"1,615,409"},{"v":1401884.51800353,"d":"1,401,885"},{"v":2029296.5817012282,"d":"2,029,297"},{"v":1374161.9859628193,"d":"1,374,162"},{"v":1954184.2706700426,"d":"1,954,184"},{"v":1893357.2140526387,"d":"1,893,357"},{"v":1955618.8468629578,"d":"1,955,619"},{"v":1771124.8764673108,"d":"1,771,125"},{"v":1812171.9981855836,"d":"1,812,172"},{"v":1179423.448903474,"d":"1,179,423"},{"v":1796847.3191827252,"d":"1,796,847"},{"v":1236971.8331960116,"d":"1,236,972"},{"v":1162902.479097276,"d":"1,162,902"},{"v":1809908.8313232213,"d":"1,809,909"},{"v":1100326.2272378907,"d":"1,100,326"},{"v":1417785.0728501827,"d":"1,417,785"},{"v":1631495.0770906948,"d":"1,631,495"},{"v":1569522.7341011108,"d":"1,569,523"},{"v":2288613.2707776437,"d":"2,288,613"},{"v":2014867.3369276195,"d":"2,014,867"},{"v":2343276.8550753826,"d":"2,343,277"},{"v":2211195.433364481,"d":"2,211,195"},{"v":2442319.0142599302,"d":"2,442,319"},{"v":1392306.5665026538,"d":"1,392,307"},{"v":1914709.8824574144,"d":"1,914,710"},{"v":1864472.4083253674,"d":"1,864,472"},{"v":2440234.8560980787,"d":"2,440,235"},{"v":2002157.9346036415,"d":"2,002,158"},{"v":2649199.2582757785,"d":"2,649,199"},{"v":1933011.5691604994,"d":"1,933,012"},{"v":1764896.070882709,"d":"1,764,896"},{"v":1415468.3031223638,"d":"1,415,468"},{"v":1266205.9223720327,"d":"1,266,206"},{"v":1590127.7949240517,"d":"1,590,128"},{"v":2067335.6250501222,"d":"2,067,336"},{"v":2757639.023128881,"d":"2,757,639"},{"v":1896898.6620897877,"d":"1,896,899"},{"v":2883076.9557986166,"d":"2,883,077"},{"v":2464652.5368687194,"d":"2,464,653"},{"v":2554149.7229993045,"d":"2,554,150"},{"v":1669512.321552919,"d":"1,669,512"},{"v":2506211.411187405,"d":"2,506,211"},{"v":1479528.2105201771,"d":"1,479,528"},{"v":3244714.411107659,"d":"3,244,714"},{"v":2423364.120688628,"d":"2,423,364"},{"v":2057226.1479508032,"d":"2,057,226"},{"v":1599068.5839304335,"d":"1,599,069"},{"v":1534167.495667294,"d":"1,534,167"},{"v":1402871.16156845,"d":"1,402,871"},{"v":1866927.2008884025,"d":"1,866,927"},{"v":1859946.0491737323,"d":"1,859,946"},{"v":1408533.1454213054,"d":"1,408,533"},{"v":2862453.743721731,"d":"2,862,454"},{"v":2132145.5163102886,"d":"2,132,146"},{"v":1965748.3984592475,"d":"1,965,748"},{"v":2432858.073118063,"d":"2,432,858"},{"v":2207998.7787056873,"d":"2,207,999"},{"v":2696516.363163962,"d":"2,696,516"},{"v":2736931.616241453,"d":"2,736,932"},{"v":2198137.7241820637,"d":"2,198,138"},{"v":1978263.5333441128,"d":"1,978,264"},{"v":1736106.8057259114,"d":"1,736,107"},{"v":2325237.2332015345,"d":"2,325,237"},{"v":2596149.2310340474,"d":"2,596,149"},{"v":1732270.1280572354,"d":"1,732,270"},{"v":2335529.0593488677,"d":"2,335,529"},{"v":2734740.5708073224,"d":"2,734,741"},{"v":2078478.7974998595,"d":"2,078,479"},{"v":2057768.0606144702,"d":"2,057,768"},{"v":2736794.9272830468,"d":"2,736,795"},{"v":2982001.1514087333,"d":"2,982,001"},{"v":2012072.1404194802,"d":"2,012,072"},{"v":2335543.7546925107,"d":"2,335,544"},{"v":2422456.738282758,"d":"2,422,457"},{"v":5151555.604436534,"d":"5,151,556"},{"v":2014378.2771295204,"d":"2,014,378"},{"v":2129946.734596395,"d":"2,129,947"},{"v":1456661.1834796763,"d":"1,456,661"},{"v":2513969.1479617134,"d":"2,513,969"},{"v":3503544.495618847,"d":"3,503,544"},{"v":1391806.5277180106,"d":"1,391,807"},{"v":3408857.5759660173,"d":"3,408,858"},{"v":3327784.879624003,"d":"3,327,785"},{"v":2573319.932554872,"d":"2,573,320"},{"v":3157883.479641749,"d":"3,157,883"},{"v":3746849.9625505134,"d":"3,746,850"},{"v":3508890.7422449184,"d":"3,508,891"}]
["2030-12-30",76,{"v":973137.0725595718,"d":"973,137"},{"v":1232783.182126614,"d":"1,232,783"},{"v":926735.8552770312,"d":"926,736"},{"v":1422361.3573062213,"d":"1,422,361"},{"v":1474653.7349450646,"d":"1,474,654"},{"v":2226380.7272616522,"d":"2,226,381"},{"v":1908221.2904924133,"d":"1,908,221"},{"v":1559142.7020006787,"d":"1,559,143"},{"v":1601760.861266836,"d":"1,601,761"},{"v":1259383.7132961692,"d":"1,259,384"},{"v":1859570.1228653567,"d":"1,859,570"},{"v":997697.369958556,"d":"997,697"},{"v":1645795.4487657868,"d":"1,645,795"},{"v":1583632.2477541177,"d":"1,583,632"},{"v":1268740.0400591386,"d":"1,268,740"},{"v":2065080.648973625,"d":"2,065,081"},{"v":1457248.0278011155,"d":"1,457,248"},{"v":1404907.0783968067,"d":"1,404,907"},{"v":1726811.0168712148,"d":"1,726,811"},{"v":2034464.7707247145,"d":"2,034,465"},{"v":1950250.650250806,"d":"1,950,251"},{"v":1902072.923641659,"d":"1,902,073"},{"v":1275095.1742448125,"d":"1,275,095"},{"v":1964635.640895546,"d":"1,964,636"},{"v":1163872.5818159685,"d":"1,163,873"},{"v":1089178.7446119713,"d":"1,089,179"},{"v":1719932.0553073948,"d":"1,719,932"},{"v":1285044.0427111655,"d":"1,285,044"},{"v":1509889.5527631228,"d":"1,509,890"},{"v":1564081.512137886,"d":"1,564,082"},{"v":1522547.9599640896,"d":"1,522,548"},{"v":2523076.9169429117,"d":"2,523,077"},{"v":1814243.4232208086,"d":"1,814,243"},{"v":2834133.499745094,"d":"2,834,133"},{"v":2608294.232126155,"d":"2,608,294"},{"v":2340638.2022143872,"d":"2,340,638"},{"v":1581109.274017984,"d":"1,581,109"},{"v":2081786.0123028106,"d":"2,081,786"},{"v":1663874.0704254305,"d":"1,663,874"},{"v":2647360.9842805085,"d":"2,647,361"},{"v":2266422.8898347067,"d":"2,266,423"},{"v":2403359.2361251162,"d":"2,403,359"},{"v":2246453.3576735477,"d":"2,246,453"},{"v":1934667.3876599371,"d":"1,934,667"},{"v":1322891.8395379488,"d":"1,322,892"},{"v":1485542.1839265402,"d":"1,485,542"},{"v":1605401.9913392717,"d":"1,605,402"},{"v":2498574.9001712236,"d":"2,498,575"},{"v":2983248.3924813913,"d":"2,983,248"},{"v":2132749.9719496607,"d":"2,132,750"},{"v":2995541.170145067,"d":"2,995,541"},{"v":2809106.1811098885,"d":"2,809,106"},{"v":3296386.829295797,"d":"3,296,387"},{"v":1821268.5493778677,"d":"1,821,269"},{"v":2824690.813673118,"d":"2,824,691"},{"v":1593974.123954098,"d":"1,593,974"},{"v":3698859.2264676094,"d":"3,698,859"},{"v":3130188.339883675,"d":"3,130,188"},{"v":2286757.3767464748,"d":"2,286,757"},{"v":1774350.3286272506,"d":"1,774,350"},{"v":1766771.1731504626,"d":"1,766,771"},{"v":1479675.4038972014,"d":"1,479,675"},{"v":1857738.5448282848,"d":"1,857,739"},{"v":1431021.0294710158,"d":"1,431,021"},{"v":1580150.5313232264,"d":"1,580,151"},{"v":3201360.056463024,"d":"3,201,360"},{"v":2002089.2241309367,"d":"2,002,089"},{"v":2253516.6235911106,"d":"2,253,517"},{"v":2468346.177196701,"d":"2,468,346"},{"v":2599399.2640401656,"d":"2,599,399"},{"v":3396829.0215549516,"d":"3,396,829"},{"v":3178511.7922205036,"d":"3,178,512"},{"v":2135134.9606114617,"d":"2,135,135"},{"v":2144747.4285865957,"d":"2,144,747"},{"v":1778083.9507020642,"d":"1,778,084"},{"v":2870880.118637534,"d":"2,870,880"},{"v":2613510.511624359,"d":"2,613,511"},{"v":1954770.140204937,"d":"1,954,770"},{"v":2495962.1372635835,"d":"2,495,962"},{"v":3350852.4574650615,"d":"3,350,852"},{"v":1962075.8810862622,"d":"1,962,076"},{"v":2391246.938899095,"d":"2,391,247"},{"v":3115447.9369479,"d":"3,115,448"},{"v":2800280.898168104,"d":"2,800,281"},{"v":2072081.200564104,"d":"2,072,081"},{"v":2523303.113236608,"d":"2,523,303"},{"v":2951162.2286175583,"d":"2,951,162"},{"v":5221370.307742381,"d":"5,221,370"},{"v":1551917.8171311175,"d":"1,551,918"},{"v":2162869.1531725726,"d":"2,162,869"},{"v":1713481.4338764576,"d":"1,713,481"},{"v":3090222.3062869906,"d":"3,090,222"},{"v":3769185.98583704,"d":"3,769,186"},{"v":1642651.5523660781,"d":"1,642,652"},{"v":3909919.0847586785,"d":"3,909,919"},{"v":3683342.2373543186,"d":"3,683,342"},{"v":3167642.555791471,"d":"3,167,643"},{"v":3421470.539431119,"d":"3,421,471"},{"v":3593153.8351072576,"d":"3,593,154"},{"v":4336248.501552763,"d":"4,336,249"}]
["2031-12-31",77,{"v":1013545.2486507529,"d":"1,013,545"},{"v":1286137.0577302878,"d":"1,286,137"},{"v":1001344.6311270918,"d":"1,001,345"},{"v":1534736.2822523671,"d":"1,534,736"},{"v":1608386.4282333874,"d":"1,608,386"},{"v":2260742.20834753,"d":"2,260,742"},{"v":1681714.187100652,"d":"1,681,714"},{"v":1980718.5222708753,"d":"1,980,719"},{"v":1659677.397450231,"d":"1,659,677"},{"v":1292116.4841125312,"d":"1,292,116"},{"v":2237561.646229907,"d":"2,237,562"},{"v":882303.717165123,"d":"882,304"},{"v":1760003.2701886885,"d":"1,760,003"},{"v":1494133.8073642785,"d":"1,494,134"},{"v":1569711.9668892876,"d":"1,569,712"},{"v":2647356.061834748,"d":"2,647,356"},{"v":1675614.101803783,"d":"1,675,614"},{"v":1554399.7818786418,"d":"1,554,400"},{"v":1722073.1089403224,"d":"1,722,073"},{"v":2055219.7909289387,"d":"2,055,220"},{"v":1854407.47692923,"d":"1,854,407"},{"v":2210461.9348424794,"d":"2,210,462"},{"v":1275511.360760092,"d":"1,275,511"},{"v":2360170.386775214,"d":"2,360,170"},{"v":1141298.263283918,"d":"1,141,298"},{"v":1139564.0587275992,"d":"1,139,564"},{"v":1921938.8998023872,"d":"1,921,939"},{"v":1272266.6114835518,"d":"1,272,267"},{"v":1557604.1723042275,"d":"1,557,604"},{"v":1645071.970905093,"d":"1,645,072"},{"v":1580023.6672027947,"d":"1,580,024"},{"v":2416914.1225110157,"d":"2,416,914"},{"v":1815096.4347181777,"d":"1,815,096"},{"v":2565804.4314040057,"d":"2,565,804"},{"v":3046069.5468603806,"d":"3,046,070"},{"v":2889565.7140518236,"d":"2,889,566"},{"v":1572194.670137512,"d":"1,572,195"},{"v":2601990.6292021954,"d":"2,601,991"},{"v":1843139.7339803353,"d":"1,843,140"},{"v":3008731.1409709645,"d":"3,008,731"},{"v":2048762.0477450325,"d":"2,048,762"},{"v":2736590.8389372877,"d":"2,736,591"},{"v":1692879.136375502,"d":"1,692,879"},{"v":2255314.6596724363,"d":"2,255,315"},{"v":1642437.9524563206,"d":"1,642,438"},{"v":1410732.7930675999,"d":"1,410,733"},{"v":1886929.1511916264,"d":"1,886,929"},{"v":2616587.543813643,"d":"2,616,588"},{"v":3887817.9270296176,"d":"3,887,818"},{"v":2382864.3924708823,"d":"2,382,864"},{"v":3886019.092090996,"d":"3,886,019"},{"v":2864643.9231898906,"d":"2,864,644"},{"v":3717895.2311465763,"d":"3,717,895"},{"v":2018951.8171217649,"d":"2,018,952"},{"v":3500636.4179430814,"d":"3,500,636"},{"v":1710588.8869259246,"d":"1,710,589"},{"v":4335707.604822494,"d":"4,335,708"},{"v":3573674.131607147,"d":"3,573,674"},{"v":2564050.165034795,"d":"2,564,050"},{"v":1511924.163017579,"d":"1,511,924"},{"v":2008616.266904942,"d":"2,008,616"},{"v":1580148.2143149644,"d":"1,580,148"},{"v":2014117.508988499,"d":"2,014,118"},{"v":1565309.5864554862,"d":"1,565,310"},{"v":1804247.5227281598,"d":"1,804,248"},{"v":4288086.62138443,"d":"4,288,087"},{"v":1939418.335287501,"d":"1,939,418"},{"v":2256538.5539107244,"d":"2,256,539"},{"v":3041552.5359872608,"d":"3,041,553"},{"v":1984349.6858469672,"d":"1,984,350"},{"v":4737267.447497642,"d":"4,737,267"},{"v":4090679.523424161,"d":"4,090,680"},{"v":2463363.8445545323,"d":"2,463,364"},{"v":1789371.6091574647,"d":"1,789,372"},{"v":1996612.7682286857,"d":"1,996,613"},{"v":2775145.2661184007,"d":"2,775,145"},{"v":2459878.608962017,"d":"2,459,879"},{"v":2529097.04721756,"d":"2,529,097"},{"v":2876793.0608558976,"d":"2,876,793"},{"v":4299409.518447978,"d":"4,299,410"},{"v":2319531.627372102,"d":"2,319,532"},{"v":2796305.584628711,"d":"2,796,306"},{"v":2920141.590007063,"d":"2,920,142"},{"v":2632789.88759674,"d":"2,632,790"},{"v":2605469.2562513063,"d":"2,605,469"},{"v":3091831.9557559574,"d":"3,091,832"},{"v":3565017.422872894,"d":"3,565,017"},{"v":5077956.423911222,"d":"5,077,956"},{"v":1533151.277765406,"d":"1,533,151"},{"v":2963162.5979565787,"d":"2,963,163"},{"v":1910786.7815659456,"d":"1,910,787"},{"v":4030943.9397582198,"d":"4,030,944"},{"v":3927106.7915086034,"d":"3,927,107"},{"v":1996646.3060124416,"d":"1,996,646"},{"v":4414958.05795862,"d":"4,414,958"},{"v":4076206.3568252143,"d":"4,076,206"},{"v":3624112.278027505,"d":"3,624,112"},{"v":3441812.588618472,"d":"3,441,813"},{"v":3589084.884887925,"d":"3,589,085"},{"v":5969232.840439145,"d":"5,969,233"}]
["2032-12-30",78,{"v":1081557.8518747515,"d":"1,081,558"},{"v":1362061.035855578,"d":"1,362,061"},{"v":995797.0613204583,"d":"995,797"},{"v":1446385.0752631142,"d":"1,446,385"},{"v":1586528.4519894936,"d":"1,586,528"},{"v":2214276.8232696643,"d":"2,214,277"},{"v":1980269.8128545203,"d":"1,980,270"},{"v":2216515.622310766,"d":"2,216,516"},{"v":1376529.0064802242,"d":"1,376,529"},{"v":1389226.0523474738,"d":"1,389,226"},{"v":1703155.103911457,"d":"1,703,155"},{"v":997843.3122573784,"d":"997,843"},{"v":1837566.9492953354,"d":"1,837,567"},{"v":1851438.357010734,"d":"1,851,438"},{"v":1810659.0678364655,"d":"1,810,659"},{"v":2972940.2543734,"d":"2,972,940"},{"v":1828550.8843920003,"d":"1,828,551"},{"v":1749635.466192087,"d":"1,749,635"},{"v":1986851.1585518979,"d":"1,986,851"},{"v":2027668.905553879,"d":"2,027,669"},{"v":2148310.8010983206,"d":"2,148,311"},{"v":1861125.9599726691,"d":"1,861,126"},{"v":1376925.166801631,"d":"1,376,925"},{"v":2425946.1859146687,"d":"2,425,946"},{"v":1320249.524641329,"d":"1,320,250"},{"v":1256595.1198941418,"d":"1,256,595"},{"v":1624704.4090848714,"d":"1,624,704"},{"v":1479713.8767537032,"d":"1,479,714"},{"v":1912970.3740166,"d":"1,912,970"},{"v":1700781.7519215094,"d":"1,700,782"},{"v":1550122.6825864993,"d":"1,550,123"},{"v":2346697.654465595,"d":"2,346,698"},{"v":2038789.0009095448,"d":"2,038,789"},{"v":3275219.687449864,"d":"3,275,220"},{"v":3455532.106678281,"d":"3,455,532"},{"v":2722971.110552741,"d":"2,722,971"},{"v":1669401.8317312906,"d":"1,669,402"},{"v":2568858.9860538486,"d":"2,568,859"},{"v":2108267.053637651,"d":"2,108,267"},{"v":3174342.4881734555,"d":"3,174,342"},{"v":2318440.871698054,"d":"2,318,441"},{"v":3262429.066496865,"d":"3,262,429"},{"v":1798106.232316107,"d":"1,798,106"},{"v":2642291.4278461235,"d":"2,642,291"},{"v":1672563.8799454554,"d":"1,672,564"},{"v":1600777.2967531092,"d":"1,600,777"},{"v":1873857.9203832755,"d":"1,873,858"},{"v":3402431.6294846884,"d":"3,402,432"},{"v":4489094.662847055,"d":"4,489,095"},{"v":2293072.6881501656,"d":"2,293,073"},{"v":3654357.149218434,"d":"3,654,357"},{"v":3073823.4968743045,"d":"3,073,823"},{"v":3456964.1389228757,"d":"3,456,964"},{"v":2068312.9098497478,"d":"2,068,313"},{"v":3593433.4712368995,"d":"3,593,433"},{"v":1374141.053796942,"d":"1,374,141"},{"v":4607849.987513514,"d":"4,607,850"},{"v":4009532.795774248,"d":"4,009,533"},{"v":2396109.7828839333,"d":"2,396,110"},{"v":1637003.0380061036,"d":"1,637,003"},{"v":2284405.6795054516,"d":"2,284,406"},{"v":1560980.3448454237,"d":"1,560,980"},{"v":2433808.68577825,"d":"2,433,809"},{"v":1933323.017587152,"d":"1,933,323"},{"v":2162671.8987420015,"d":"2,162,672"},{"v":5476717.901661124,"d":"5,476,718"},{"v":2353401.6613526754,"d":"2,353,402"},{"v":2820018.0000801133,"d":"2,820,018"},{"v":3281556.087312871,"d":"3,281,556"},{"v":2242028.957642951,"d":"2,242,029"},{"v":4947352.345129642,"d":"4,947,352"},{"v":4013123.526940653,"d":"4,013,124"},{"v":2885089.8140920065,"d":"2,885,090"},{"v":1872603.1703470561,"d":"1,872,603"},{"v":1893492.2214560637,"d":"1,893,492"},{"v":3155265.702773582,"d":"3,155,266"},{"v":2289135.8306459384,"d":"2,289,136"},{"v":2590589.164403889,"d":"2,590,589"},{"v":3166030.3512131115,"d":"3,166,030"},{"v":5236899.883399313,"d":"5,236,900"},{"v":2611954.9186659427,"d":"2,611,955"},{"v":3090995.1981015555,"d":"3,090,995"},{"v":3273539.6377252075,"d":"3,273,540"},{"v":3194921.3686661446,"d":"3,194,921"},{"v":2914931.579307631,"d":"2,914,932"},{"v":2989131.314362759,"d":"2,989,131"},{"v":4001993.400883978,"d":"4,001,993"},{"v":7088175.419191571,"d":"7,088,175"},{"v":1704306.2989162432,"d":"1,704,306"},{"v":3419616.86672582,"d":"3,419,617"},{"v":2170248.2946789893,"d":"2,170,248"},{"v":3385675.2623424777,"d":"3,385,675"},{"v":4124579.211302678,"d":"4,124,579"},{"v":2392160.3286107928,"d":"2,392,160"},{"v":5593470.794197031,"d":"5,593,471"},{"v":5149789.742383388,"d":"5,149,790"},{"v":4772179.34839618,"d":"4,772,179"},{"v":4035535.4384772307,"d":"4,035,535"},{"v":3813660.3537812,"d":"3,813,660"},{"v":7030067.297729265,"d":"7,030,067"}]
["2033-12-30",79,{"v":1166588.2303165107,"d":"1,166,588"},{"v":1427122.2885527725,"d":"1,427,122"},{"v":1066875.4346768016,"d":"1,066,875"},{"v":1658460.8316833472,"d":"1,658,461"},{"v":1753577.6580539015,"d":"1,753,578"},{"v":1702924.2388386503,"d":"1,702,924"},{"v":1593492.4654376658,"d":"1,593,492"},{"v":2274292.2528135465,"d":"2,274,292"},{"v":1462431.7906570002,"d":"1,462,432"},{"v":1413240.5228232013,"d":"1,413,241"},{"v":2006171.8545168068,"d":"2,006,172"},{"v":1015585.3523425856,"d":"1,015,585"},{"v":1805486.5930128181,"d":"1,805,487"},{"v":2000882.7389567962,"d":"2,000,883"},{"v":1919081.1113708687,"d":"1,919,081"},{"v":2758158.30888671,"d":"2,758,158"},{"v":2286951.0628140843,"d":"2,286,951"},{"v":1396095.3463712325,"d":"1,396,095"},{"v":2201741.7565018176,"d":"2,201,742"},{"v":2224912.7505688365,"d":"2,224,913"},{"v":2697220.5322999624,"d":"2,697,221"},{"v":1760330.1942968902,"d":"1,760,330"},{"v":1551396.5285729282,"d":"1,551,397"},{"v":2562691.3798682876,"d":"2,562,691"},{"v":1393935.036617736,"d":"1,393,935"},{"v":1399604.0427861684,"d":"1,399,604"},{"v":1641052.2012770951,"d":"1,641,052"},{"v":1545239.3497908663,"d":"1,545,239"},{"v":1942588.3022087645,"d":"1,942,588"},{"v":1730526.4527199161,"d":"1,730,526"},{"v":1707873.1933377865,"d":"1,707,873"},{"v":2270859.4942327435,"d":"2,270,859"},{"v":2100848.2957424344,"d":"2,100,848"},{"v":3399177.4921142887,"d":"3,399,177"},{"v":3824523.348232731,"d":"3,824,523"},{"v":2716447.3392478023,"d":"2,716,447"},{"v":2010207.3857710033,"d":"2,010,207"},{"v":2757293.2380336258,"d":"2,757,293"},{"v":2472814.8528302545,"d":"2,472,815"},{"v":3572978.6365825846,"d":"3,572,979"},{"v":2558594.892671552,"d":"2,558,595"},{"v":2454299.184602827,"d":"2,454,299"},{"v":1984963.8217718394,"d":"1,984,964"},{"v":3028193.396298168,"d":"3,028,193"},{"v":1822089.618909301,"d":"1,822,090"},{"v":1738606.791833644,"d":"1,738,607"},{"v":2128944.3722881367,"d":"2,128,944"},{"v":4250723.745698245,"d":"4,250,724"},{"v":5315214.883609173,"d":"5,315,215"},{"v":2597003.4508454814,"d":"2,597,003"},{"v":3678477.4280671855,"d":"3,678,477"},{"v":3784915.2742959075,"d":"3,784,915"},{"v":3813560.8414722094,"d":"3,813,561"},{"v":2462044.9265850815,"d":"2,462,045"},{"v":4083499.943830527,"d":"4,083,500"},{"v":1477162.409987108,"d":"1,477,162"},{"v":6107830.582812664,"d":"6,107,831"},{"v":4582984.421030477,"d":"4,582,984"},{"v":3123280.9026245456,"d":"3,123,281"},{"v":1916212.4020752797,"d":"1,916,212"},{"v":2678931.46151979,"d":"2,678,931"},{"v":1618550.656373004,"d":"1,618,551"},{"v":3047856.1347504877,"d":"3,047,856"},{"v":2253482.0364382984,"d":"2,253,482"},{"v":2198365.8140233327,"d":"2,198,366"},{"v":6016634.082990417,"d":"6,016,634"},{"v":2617812.143457129,"d":"2,617,812"},{"v":3202152.492878104,"d":"3,202,152"},{"v":3080760.2948443545,"d":"3,080,760"},{"v":2401548.624446932,"d":"2,401,549"},{"v":5285576.94589472,"d":"5,285,577"},{"v":5099759.451891911,"d":"5,099,759"},{"v":3427914.389527011,"d":"3,427,914"},{"v":2224030.0187693723,"d":"2,224,030"},{"v":1851014.9804920617,"d":"1,851,015"},{"v":3672926.2880774294,"d":"3,672,926"},{"v":2718076.2937548524,"d":"2,718,076"},{"v":2707320.047059228,"d":"2,707,320"},{"v":4235786.639754791,"d":"4,235,787"},{"v":6673104.449487234,"d":"6,673,104"},{"v":2583230.9418709655,"d":"2,583,231"},{"v":2893524.9582779077,"d":"2,893,525"},{"v":4031941.793162184,"d":"4,031,942"},{"v":3170617.950464745,"d":"3,170,618"},{"v":3014022.5206884365,"d":"3,014,023"},{"v":3127311.4068218134,"d":"3,127,311"},{"v":5007109.473479603,"d":"5,007,109"},{"v":8089871.927985781,"d":"8,089,872"},{"v":1770562.4646597349,"d":"1,770,562"},{"v":3495572.4901233525,"d":"3,495,572"},{"v":2267158.385565026,"d":"2,267,158"},{"v":4270628.291376731,"d":"4,270,628"},{"v":5575861.131030408,"d":"5,575,861"},{"v":1992810.3422774223,"d":"1,992,810"},{"v":6091176.97055498,"d":"6,091,177"},{"v":5976377.687059768,"d":"5,976,378"},{"v":5499948.239238518,"d":"5,499,948"},{"v":5290530.014940134,"d":"5,290,530"},{"v":4565454.966176773,"d":"4,565,455"},{"v":7811070.801920181,"d":"7,811,071"}]
["2034-12-30",80,{"v":1196678.1467239428,"d":"1,196,678"},{"v":1540764.0369325655,"d":"1,540,764"},{"v":1266373.0858222696,"d":"1,266,373"},{"v":1511662.216056749,"d":"1,511,662"},{"v":1274107.0130315085,"d":"1,274,107"},{"v":1748648.3223982707,"d":"1,748,648"},{"v":1695819.946737931,"d":"1,695,820"},{"v":1572403.6328278764,"d":"1,572,404"},{"v":1267811.635234495,"d":"1,267,812"},{"v":1509079.3890834288,"d":"1,509,079"},{"v":2310281.9032782563,"d":"2,310,282"},{"v":1135478.2699741276,"d":"1,135,478"},{"v":1900701.7853022,"d":"1,900,702"},{"v":1963756.8294468424,"d":"1,963,757"},{"v":1493108.7376602197,"d":"1,493,109"},{"v":2863499.398577742,"d":"2,863,499"},{"v":2400558.4553498155,"d":"2,400,558"},{"v":1554606.126071878,"d":"1,554,606"},{"v":2257932.608749888,"d":"2,257,933"},{"v":2252671.535986439,"d":"2,252,672"},{"v":1989048.4386035048,"d":"1,989,048"},{"v":1975944.148485925,"d":"1,975,944"},{"v":1835763.0209399473,"d":"1,835,763"},{"v":2698452.7152995137,"d":"2,698,453"},{"v":1395404.670698562,"d":"1,395,405"},{"v":1757942.7504478246,"d":"1,757,943"},{"v":1936923.553617602,"d":"1,936,924"},{"v":1857542.3826886371,"d":"1,857,542"},{"v":1853785.1829257489,"d":"1,853,785"},{"v":1965244.8869509746,"d":"1,965,245"},{"v":1922764.5329996021,"d":"1,922,765"},{"v":2112597.1260377876,"d":"2,112,597"},{"v":2196901.4899551193,"d":"2,196,901"},{"v":4231209.816141816,"d":"4,231,210"},{"v":3241087.1568415225,"d":"3,241,087"},{"v":2758128.242834055,"d":"2,758,128"},{"v":1904025.0204789734,"d":"1,904,025"},{"v":3194513.8166066227,"d":"3,194,514"},{"v":2622968.812239356,"d":"2,622,969"},{"v":3717086.151361754,"d":"3,717,086"},{"v":2074516.7788185452,"d":"2,074,517"},{"v":2302386.889093226,"d":"2,302,387"},{"v":2345389.698095021,"d":"2,345,390"},{"v":3284875.3458917276,"d":"3,284,875"},{"v":2068638.3547065586,"d":"2,068,638"},{"v":1708631.9573535745,"d":"1,708,632"},{"v":1854264.2196120734,"d":"1,854,264"},{"v":3978046.3904948197,"d":"3,978,046"},{"v":6205601.325218785,"d":"6,205,601"},{"v":3465537.382536935,"d":"3,465,537"},{"v":3850328.7279000445,"d":"3,850,329"},{"v":4062827.362340764,"d":"4,062,827"},{"v":3183326.4491251335,"d":"3,183,326"},{"v":2522393.943617263,"d":"2,522,394"},{"v":3944136.996327594,"d":"3,944,137"},{"v":1645903.774994568,"d":"1,645,904"},{"v":6481303.738744892,"d":"6,481,304"},{"v":2916119.36960611,"d":"2,916,119"},{"v":2949215.695912,"d":"2,949,216"},{"v":2031361.3247097011,"d":"2,031,361"},{"v":2665252.0179585926,"d":"2,665,252"},{"v":1896856.577076811,"d":"1,896,857"},{"v":3734775.1965476885,"d":"3,734,775"},{"v":2598220.705945069,"d":"2,598,221"},{"v":2124532.7455611,"d":"2,124,533"},{"v":7065561.554758572,"d":"7,065,562"},{"v":3112477.5135609307,"d":"3,112,478"},{"v":2588647.53307757,"d":"2,588,648"},{"v":3848313.177746071,"d":"3,848,313"},{"v":2779420.245005505,"d":"2,779,420"},{"v":6312719.740682171,"d":"6,312,720"},{"v":6351048.841058552,"d":"6,351,049"},{"v":3955678.6228480823,"d":"3,955,679"},{"v":2475495.8068308085,"d":"2,475,496"},{"v":2217768.104042983,"d":"2,217,768"},{"v":4310219.434958749,"d":"4,310,219"},{"v":3054980.9964615335,"d":"3,054,981"},{"v":3343045.6615385124,"d":"3,343,046"},{"v":4750215.291491903,"d":"4,750,215"},{"v":8051922.880808957,"d":"8,051,923"},{"v":2706261.2000428154,"d":"2,706,261"},{"v":3090621.756596337,"d":"3,090,622"},{"v":4385789.842579225,"d":"4,385,790"},{"v":3904956.7568083373,"d":"3,904,957"},{"v":3352227.2732962007,"d":"3,352,227"},{"v":3764188.078613389,"d":"3,764,188"},{"v":4617690.198813525,"d":"4,617,690"},{"v":9618672.788775139,"d":"9,618,673"},{"v":2136016.2762487414,"d":"2,136,016"},{"v":4237286.7198109785,"d":"4,237,287"},{"v":2271578.781008458,"d":"2,271,579"},{"v":4527383.859855714,"d":"4,527,384"},{"v":3824800.9166316255,"d":"3,824,801"},{"v":2422475.538064545,"d":"2,422,476"},{"v":7693266.610531019,"d":"7,693,267"},{"v":7832361.1362494305,"d":"7,832,361"},{"v":5977226.153279741,"d":"5,977,226"},{"v":7066835.704525258,"d":"7,066,836"},{"v":3589825.8325455924,"d":"3,589,826"},{"v":6820949.519785858,"d":"6,820,950"}]
["2035-12-31",81,{"v":1111897.6910472529,"d":"1,111,898"},{"v":1535372.9843815248,"d":"1,535,373"},{"v":1180258.5510107388,"d":"1,180,259"},{"v":1341738.6126083592,"d":"1,341,739"},{"v":1244679.7682096923,"d":"1,244,680"},{"v":1664110.9316063393,"d":"1,664,111"},{"v":1626662.8808683276,"d":"1,626,663"},{"v":1583724.0805031836,"d":"1,583,724"},{"v":1305535.8856489917,"d":"1,305,536"},{"v":1507955.3848190578,"d":"1,507,955"},{"v":2292396.0749351154,"d":"2,292,396"},{"v":1085742.4481624304,"d":"1,085,742"},{"v":2022724.590442295,"d":"2,022,725"},{"v":1577239.4572236836,"d":"1,577,239"},{"v":1426256.660034589,"d":"1,426,257"},{"v":2796873.6661916566,"d":"2,796,874"},{"v":2638400.446773144,"d":"2,638,400"},{"v":1718013.265504606,"d":"1,718,013"},{"v":2159802.758790898,"d":"2,159,803"},{"v":2433476.9524703827,"d":"2,433,477"},{"v":1767996.2335525516,"d":"1,767,996"},{"v":2215783.38558797,"d":"2,215,783"},{"v":2129482.1027710414,"d":"2,129,482"},{"v":2714505.2168707163,"d":"2,714,505"},{"v":1380542.907252822,"d":"1,380,543"},{"v":1529049.6980056008,"d":"1,529,050"},{"v":1799870.6641512814,"d":"1,799,871"},{"v":1795214.1730334514,"d":"1,795,214"},{"v":1739165.8102287024,"d":"1,739,166"},{"v":2206882.9098534216,"d":"2,206,883"},{"v":1865250.685962926,"d":"1,865,251"},{"v":1949716.9567908726,"d":"1,949,717"},{"v":2319634.3640308343,"d":"2,319,634"},{"v":3454443.992535396,"d":"3,454,444"},{"v":3109900.917421876,"d":"3,109,901"},{"v":2568737.374599071,"d":"2,568,737"},{"v":1707660.8466860568,"d":"1,707,661"},{"v":3765874.503039388,"d":"3,765,875"},{"v":3200261.4672722486,"d":"3,200,261"},{"v":3466836.0336572495,"d":"3,466,836"},{"v":2244564.1928763585,"d":"2,244,564"},{"v":2462354.6499924036,"d":"2,462,355"},{"v":2884694.8133894377,"d":"2,884,695"},{"v":2960350.0582280266,"d":"2,960,350"},{"v":2077303.3423495453,"d":"2,077,303"},{"v":1988528.8376360657,"d":"1,988,529"},{"v":1901396.2258067261,"d":"1,901,396"},{"v":3735218.0609333916,"d":"3,735,218"},{"v":6687881.056678229,"d":"6,687,881"},{"v":4234200.448186452,"d":"4,234,200"},{"v":4383274.850388173,"d":"4,383,275"},{"v":3935846.543924659,"d":"3,935,847"},{"v":3282562.073238686,"d":"3,282,562"},{"v":2817356.5621004496,"d":"2,817,357"},{"v":3834889.126703081,"d":"3,834,889"},{"v":1558598.2869180127,"d":"1,558,598"},{"v":7191864.893156003,"d":"7,191,865"},{"v":2661443.9752913215,"d":"2,661,444"},{"v":3212967.445788456,"d":"3,212,967"},{"v":2323903.0150345834,"d":"2,323,903"},{"v":3079780.378961792,"d":"3,079,780"},{"v":1722616.8248724893,"d":"1,722,617"},{"v":3382681.895098551,"d":"3,382,682"},{"v":2407522.8998109037,"d":"2,407,523"},{"v":2442428.2510599503,"d":"2,442,428"},{"v":5391778.077217614,"d":"5,391,778"},{"v":3713570.524133845,"d":"3,713,571"},{"v":2752867.782632526,"d":"2,752,868"},{"v":2809593.7749528787,"d":"2,809,594"},{"v":2806398.28140434,"d":"2,806,398"},{"v":7085030.595440071,"d":"7,085,031"},{"v":5703602.419310366,"d":"5,703,602"},{"v":4771374.175279031,"d":"4,771,374"},{"v":2763963.2474810034,"d":"2,763,963"},{"v":2602159.3936701687,"d":"2,602,159"},{"v":4949332.3195211515,"d":"4,949,332"},{"v":3594558.8068025094,"d":"3,594,559"},{"v":4494430.23298986,"d":"4,494,430"},{"v":4690784.979594634,"d":"4,690,785"},{"v":8964056.517620329,"d":"8,964,057"},{"v":3100924.0900288704,"d":"3,100,924"},{"v":2663210.309964814,"d":"2,663,210"},{"v":5528585.225696122,"d":"5,528,585"},{"v":4159073.4620827055,"d":"4,159,073"},{"v":3804052.6038821484,"d":"3,804,053"},{"v":5062026.429351959,"d":"5,062,026"},{"v":4296567.683567584,"d":"4,296,568"},{"v":8588129.759944946,"d":"8,588,130"},{"v":2487984.340255405,"d":"2,487,984"},{"v":3704127.109470265,"d":"3,704,127"},{"v":2491791.0257467614,"d":"2,491,791"},{"v":5623256.180402934,"d":"5,623,256"},{"v":3116978.4570556227,"d":"3,116,978"},{"v":2569243.1827752716,"d":"2,569,243"},{"v":8068413.844637432,"d":"8,068,414"},{"v":9018173.811762044,"d":"9,018,174"},{"v":6790297.315414886,"d":"6,790,297"},{"v":7357945.068235716,"d":"7,357,945"},{"v":4876263.072331625,"d":"4,876,263"},{"v":9347445.852895351,"d":"9,347,446"}]
["2036-12-30",82,{"v":1005278.0679279647,"d":"1,005,278"},{"v":1448730.6110407067,"d":"1,448,731"},{"v":1074097.6170753688,"d":"1,074,098"},{"v":1201581.8186434337,"d":"1,201,582"},{"v":1246179.7546677443,"d":"1,246,180"},{"v":1484724.4541448161,"d":"1,484,724"},{"v":1741901.7489305797,"d":"1,741,902"},{"v":1570662.245906109,"d":"1,570,662"},{"v":1222181.1239773335,"d":"1,222,181"},{"v":1511616.02995037,"d":"1,511,616"},{"v":2120832.8729837653,"d":"2,120,833"},{"v":954553.4799726743,"d":"954,553"},{"v":1849332.5782096216,"d":"1,849,333"},{"v":1408353.5251777822,"d":"1,408,354"},{"v":1482984.7545013593,"d":"1,482,985"},{"v":2785140.2621128806,"d":"2,785,140"},{"v":2287149.4145846837,"d":"2,287,149"},{"v":1633159.1381549377,"d":"1,633,159"},{"v":1698261.5735706657,"d":"1,698,262"},{"v":2554981.4868511804,"d":"2,554,981"},{"v":1848854.3957954631,"d":"1,848,854"},{"v":2267327.0182776516,"d":"2,267,327"},{"v":1554896.3074767292,"d":"1,554,896"},{"v":2542968.2749361685,"d":"2,542,968"},{"v":1297733.5185859837,"d":"1,297,734"},{"v":1303657.4493194416,"d":"1,303,657"},{"v":1427996.774669463,"d":"1,427,997"},{"v":1759384.152296164,"d":"1,759,384"},{"v":1782095.3084311332,"d":"1,782,095"},{"v":2075695.488119445,"d":"2,075,695"},{"v":2133745.6194595774,"d":"2,133,746"},{"v":1781911.1297828245,"d":"1,781,911"},{"v":1839449.8182178254,"d":"1,839,450"},{"v":3885405.2783829193,"d":"3,885,405"},{"v":3053441.277482881,"d":"3,053,441"},{"v":2898035.4092989485,"d":"2,898,035"},{"v":1461395.4852724685,"d":"1,461,395"},{"v":3913646.3549930416,"d":"3,913,646"},{"v":3365833.1224545827,"d":"3,365,833"},{"v":3217090.6882002475,"d":"3,217,091"},{"v":2554599.261403721,"d":"2,554,599"},{"v":2528386.1415467463,"d":"2,528,386"},{"v":2510365.2783887167,"d":"2,510,365"},{"v":3290744.4386288,"d":"3,290,744"},{"v":2301179.0439077537,"d":"2,301,179"},{"v":2104197.90859158,"d":"2,104,198"},{"v":2228499.595412306,"d":"2,228,500"},{"v":4085645.6355347726,"d":"4,085,646"},{"v":5912576.303180449,"d":"5,912,576"},{"v":4916533.900122478,"d":"4,916,534"},{"v":4862556.799666538,"d":"4,862,557"},{"v":2772484.6467189235,"d":"2,772,485"},{"v":2895164.10088582,"d":"2,895,164"},{"v":2444713.3717654655,"d":"2,444,713"},{"v":3789287.283371758,"d":"3,789,287"},{"v":1446044.7922482688,"d":"1,446,045"},{"v":6283036.525881066,"d":"6,283,037"},{"v":2728428.1471430873,"d":"2,728,428"},{"v":3154460.482264183,"d":"3,154,460"},{"v":2215918.324842209,"d":"2,215,918"},{"v":3303613.075683326,"d":"3,303,613"},{"v":1747001.8161627315,"d":"1,747,002"},{"v":4119850.377721224,"d":"4,119,850"},{"v":2643060.1132551515,"d":"2,643,060"},{"v":3203864.964105487,"d":"3,203,865"},{"v":5469124.23509305,"d":"5,469,124"},{"v":4103201.529541429,"d":"4,103,202"},{"v":3307418.467995996,"d":"3,307,418"},{"v":3209115.4127899967,"d":"3,209,115"},{"v":3165709.5212618546,"d":"3,165,710"},{"v":7360526.715597571,"d":"7,360,527"},{"v":6431470.687574652,"d":"6,431,471"},{"v":5063933.645473153,"d":"5,063,934"},{"v":2389337.9043131666,"d":"2,389,338"},{"v":3162497.004773956,"d":"3,162,497"},{"v":5515846.097945049,"d":"5,515,846"},{"v":3192735.289570292,"d":"3,192,735"},{"v":4601481.611369092,"d":"4,601,482"},{"v":4942178.243842068,"d":"4,942,178"},{"v":10439224.684330072,"d":"10,439,225"},{"v":3087494.5607969346,"d":"3,087,495"},{"v":2848348.690135374,"d":"2,848,349"},{"v":4953447.568384877,"d":"4,953,448"},{"v":5414008.634169456,"d":"5,414,009"},{"v":3864647.794969618,"d":"3,864,648"},{"v":4641801.3375729425,"d":"4,641,801"},{"v":3828232.4624067326,"d":"3,828,232"},{"v":9606629.88615792,"d":"9,606,630"},{"v":2699285.7686556913,"d":"2,699,286"},{"v":4632249.163171893,"d":"4,632,249"},{"v":2911933.240721923,"d":"2,911,933"},{"v":5755581.856162749,"d":"5,755,582"},{"v":4090161.930030407,"d":"4,090,162"},{"v":2699997.1894722343,"d":"2,699,997"},{"v":10051112.499589223,"d":"10,051,112"},{"v":10599257.31283353,"d":"10,599,257"},{"v":9149145.783386031,"d":"9,149,146"},{"v":9949326.409120359,"d":"9,949,326"},{"v":5930141.353334834,"d":"5,930,141"},{"v":11822901.857967792,"d":"11,822,902"}]
["2037-12-30",83,{"v":862814.6384987676,"d":"862,815"},{"v":1284105.6929102754,"d":"1,284,106"},{"v":977910.4222816972,"d":"977,910"},{"v":1152830.5768221836,"d":"1,152,831"},{"v":1134352.7336794934,"d":"1,134,353"},{"v":1533893.5513663278,"d":"1,533,894"},{"v":1621607.1000010015,"d":"1,621,607"},{"v":1453974.078265317,"d":"1,453,974"},{"v":1150743.4250168707,"d":"1,150,743"},{"v":1535781.6117652613,"d":"1,535,782"},{"v":2312327.6742580007,"d":"2,312,328"},{"v":780056.9583282892,"d":"780,057"},{"v":1886653.5659739398,"d":"1,886,654"},{"v":1551514.5418824353,"d":"1,551,515"},{"v":1398652.2756899593,"d":"1,398,652"},{"v":2472205.4725325373,"d":"2,472,205"},{"v":1837179.0317978489,"d":"1,837,179"},{"v":1754115.341956593,"d":"1,754,115"},{"v":1745284.0334971484,"d":"1,745,284"},{"v":2644792.6581094507,"d":"2,644,793"},{"v":1281194.524870205,"d":"1,281,195"},{"v":2069141.3102659087,"d":"2,069,141"},{"v":1578301.58076788,"d":"1,578,302"},{"v":2735844.6260137428,"d":"2,735,845"},{"v":1337818.2288735516,"d":"1,337,818"},{"v":1417898.1532942515,"d":"1,417,898"},{"v":1427568.9212716937,"d":"1,427,569"},{"v":1757254.8779524998,"d":"1,757,255"},{"v":1925574.346465937,"d":"1,925,574"},{"v":2195415.0692231255,"d":"2,195,415"},{"v":2116708.1576074413,"d":"2,116,708"},{"v":1658394.2128175187,"d":"1,658,394"},{"v":1877418.8562019675,"d":"1,877,419"},{"v":3676981.933741757,"d":"3,676,982"},{"v":2677714.824048184,"d":"2,677,715"},{"v":2693662.1177063645,"d":"2,693,662"},{"v":1425052.083595908,"d":"1,425,052"},{"v":3086590.9235143173,"d":"3,086,591"},{"v":3594972.7681491976,"d":"3,594,973"},{"v":3252568.7755193016,"d":"3,252,569"},{"v":2654739.495659709,"d":"2,654,739"},{"v":2174769.447450866,"d":"2,174,769"},{"v":2032025.6228738527,"d":"2,032,026"},{"v":4088639.038219351,"d":"4,088,639"},{"v":2181260.2064564815,"d":"2,181,260"},{"v":2005766.4302036928,"d":"2,005,766"},{"v":2296931.8137773015,"d":"2,296,932"},{"v":4099885.0037404047,"d":"4,099,885"},{"v":6922845.693482872,"d":"6,922,846"},{"v":5207834.193671522,"d":"5,207,834"},{"v":4955393.4034619285,"d":"4,955,393"},{"v":3136631.18155641,"d":"3,136,631"},{"v":2644008.189610784,"d":"2,644,008"},{"v":2142301.522498171,"d":"2,142,302"},{"v":3835215.7851864058,"d":"3,835,216"},{"v":1385040.7103207875,"d":"1,385,041"},{"v":7347325.853805522,"d":"7,347,326"},{"v":2901811.404506586,"d":"2,901,811"},{"v":3469281.312937962,"d":"3,469,281"},{"v":2553398.6289882706,"d":"2,553,399"},{"v":3916229.05255537,"d":"3,916,229"},{"v":1745478.5266918673,"d":"1,745,479"},{"v":3743401.1918122848,"d":"3,743,401"},{"v":2952739.8751858654,"d":"2,952,740"},{"v":3566544.864885707,"d":"3,566,545"},{"v":6034505.505588401,"d":"6,034,506"},{"v":4963224.499489415,"d":"4,963,224"},{"v":3762768.0427885065,"d":"3,762,768"},{"v":3404095.1488803495,"d":"3,404,095"},{"v":3322280.984050237,"d":"3,322,281"},{"v":7143424.578907829,"d":"7,143,425"},{"v":5191103.116989025,"d":"5,191,103"},{"v":6278498.374195814,"d":"6,278,498"},{"v":2627026.7797035147,"d":"2,627,027"},{"v":3099710.7932193647,"d":"3,099,711"},{"v":6213517.087398469,"d":"6,213,517"},{"v":3682324.0622313707,"d":"3,682,324"},{"v":5680614.4201608,"d":"5,680,614"},{"v":5476331.586092077,"d":"5,476,332"},{"v":10831123.654908836,"d":"10,831,124"},{"v":3202720.8703711377,"d":"3,202,721"},{"v":2064403.7554535002,"d":"2,064,404"},{"v":5753987.784921185,"d":"5,753,988"},{"v":6176816.4249703195,"d":"6,176,816"},{"v":4256123.09976564,"d":"4,256,123"},{"v":4194349.795926064,"d":"4,194,350"},{"v":4100355.2675695363,"d":"4,100,355"},{"v":9975858.913572408,"d":"9,975,859"},{"v":3009778.204443878,"d":"3,009,778"},{"v":4160819.5403351476,"d":"4,160,820"},{"v":3223026.737399058,"d":"3,223,027"},{"v":6572586.036296598,"d":"6,572,586"},{"v":4349639.318987266,"d":"4,349,639"},{"v":3092508.9270880236,"d":"3,092,509"},{"v":8925300.710662726,"d":"8,925,301"},{"v":11986699.463060793,"d":"11,986,699"},{"v":8327012.29094761,"d":"8,327,012"},{"v":12547128.47961658,"d":"12,547,128"},{"v":7184296.017345528,"d":"7,184,296"},{"v":13703697.302608134,"d":"13,703,697"}]
["2038-12-30",84,{"v":1068310.8541204901,"d":"1,068,311"},{"v":1233440.1853163624,"d":"1,233,440"},{"v":867776.0370404364,"d":"867,776"},{"v":1218375.047674544,"d":"1,218,375"},{"v":1016857.4534175547,"d":"1,016,857"},{"v":1439801.7562633073,"d":"1,439,802"},{"v":1519253.9218632595,"d":"1,519,254"},{"v":1232011.7504464246,"d":"1,232,012"},{"v":1177234.3062417053,"d":"1,177,234"},{"v":1354056.9760449375,"d":"1,354,057"},{"v":2322021.4150621127,"d":"2,322,021"},{"v":768337.2295971641,"d":"768,337"},{"v":1835265.906799483,"d":"1,835,266"},{"v":1606200.7864603938,"d":"1,606,201"},{"v":1551949.4475690098,"d":"1,551,949"},{"v":2620299.210495496,"d":"2,620,299"},{"v":1757520.24727351,"d":"1,757,520"},{"v":1729732.1259191434,"d":"1,729,732"},{"v":1882690.7182333076,"d":"1,882,691"},{"v":2642255.0776647376,"d":"2,642,255"},{"v":1209125.3966554832,"d":"1,209,125"},{"v":2198600.9307355303,"d":"2,198,601"},{"v":1821942.8329430849,"d":"1,821,943"},{"v":2911696.4973399863,"d":"2,911,696"},{"v":1624420.5817318477,"d":"1,624,421"},{"v":1579127.9636752075,"d":"1,579,128"},{"v":1368434.7536773593,"d":"1,368,435"},{"v":1871634.1145946307,"d":"1,871,634"},{"v":2370685.8693344225,"d":"2,370,686"},{"v":2119108.79525161,"d":"2,119,109"},{"v":2487098.9690493206,"d":"2,487,099"},{"v":1848317.4562637906,"d":"1,848,317"},{"v":2354240.6465164907,"d":"2,354,241"},{"v":3373145.633180133,"d":"3,373,146"},{"v":2198064.5794812865,"d":"2,198,065"},{"v":2450019.0753647005,"d":"2,450,019"},{"v":1520479.4021632227,"d":"1,520,479"},{"v":3317570.5534300026,"d":"3,317,571"},{"v":4092846.804108316,"d":"4,092,847"},{"v":3763244.83114354,"d":"3,763,245"},{"v":3184615.098523205,"d":"3,184,615"},{"v":2381664.5365835535,"d":"2,381,665"},{"v":2000436.670195116,"d":"2,000,437"},{"v":3871215.0348113086,"d":"3,871,215"},{"v":2047692.5250088444,"d":"2,047,693"},{"v":2310825.8150886637,"d":"2,310,826"},{"v":2258530.2965200767,"d":"2,258,530"},{"v":5146186.141777845,"d":"5,146,186"},{"v":8595000.998025563,"d":"8,595,001"},{"v":4738512.511966794,"d":"4,738,513"},{"v":3119142.9346060413,"d":"3,119,143"},{"v":3738871.3405305855,"d":"3,738,871"},{"v":2122047.88152938,"d":"2,122,048"},{"v":2263943.7656227914,"d":"2,263,944"},{"v":5370252.155031626,"d":"5,370,252"},{"v":1465412.7549418814,"d":"1,465,413"},{"v":8570018.534746584,"d":"8,570,019"},{"v":3219559.045979093,"d":"3,219,559"},{"v":4042348.0875872793,"d":"4,042,348"},{"v":2895250.1179242143,"d":"2,895,250"},{"v":3183109.405425542,"d":"3,183,109"},{"v":2240024.901624168,"d":"2,240,025"},{"v":4312374.3448257875,"d":"4,312,374"},{"v":2793039.4316052254,"d":"2,793,039"},{"v":3923220.601695711,"d":"3,923,221"},{"v":6468280.766763835,"d":"6,468,281"},{"v":6211550.1826991355,"d":"6,211,550"},{"v":3614951.55501164,"d":"3,614,952"},{"v":3415083.633699961,"d":"3,415,084"},{"v":3793587.6579965395,"d":"3,793,588"},{"v":8359116.415121489,"d":"8,359,116"},{"v":4734926.926206485,"d":"4,734,927"},{"v":8110351.713256783,"d":"8,110,352"},{"v":2966861.6539695417,"d":"2,966,862"},{"v":4070406.019450744,"d":"4,070,406"},{"v":7249401.5405637035,"d":"7,249,402"},{"v":3611251.839130814,"d":"3,611,252"},{"v":4396644.991856669,"d":"4,396,645"},{"v":5985682.956479185,"d":"5,985,683"},{"v":10941855.85828518,"d":"10,941,856"},{"v":3608379.666003765,"d":"3,608,380"},{"v":1987407.418047305,"d":"1,987,407"},{"v":6679746.119610953,"d":"6,679,746"},{"v":6919300.615471625,"d":"6,919,301"},{"v":5016033.121634264,"d":"5,016,033"},{"v":3953552.092596243,"d":"3,953,552"},{"v":5275333.893185129,"d":"5,275,334"},{"v":10962789.935879327,"d":"10,962,790"},{"v":2799206.5192978093,"d":"2,799,207"},{"v":5806507.309656044,"d":"5,806,507"},{"v":3985588.515866257,"d":"3,985,589"},{"v":6848527.580376162,"d":"6,848,528"},{"v":5093712.353040849,"d":"5,093,712"},{"v":3548391.956916558,"d":"3,548,392"},{"v":9844445.612657078,"d":"9,844,446"},{"v":13339381.01796875,"d":"13,339,381"},{"v":10148515.83011273,"d":"10,148,516"},{"v":11561990.056253666,"d":"11,561,990"},{"v":9227757.286590282,"d":"9,227,757"},{"v":15675000.413870558,"d":"15,675,000"}]
["2039-12-31",85,{"v":1038140.3863517873,"d":"1,038,140"},{"v":1047232.1865695848,"d":"1,047,232"},{"v":931084.6419304085,"d":"931,085"},{"v":1248292.6222125802,"d":"1,248,293"},{"v":1052671.3457794336,"d":"1,052,671"},{"v":1353564.245782323,"d":"1,353,564"},{"v":1604235.8793486266,"d":"1,604,236"},{"v":1410653.15993636,"d":"1,410,653"},{"v":1228913.8637193788,"d":"1,228,914"},{"v":1417228.7013264762,"d":"1,417,229"},{"v":2565376.6448301445,"d":"2,565,377"},{"v":748351.7616182335,"d":"748,352"},{"v":1799753.3354035236,"d":"1,799,753"},{"v":1505568.2129044423,"d":"1,505,568"},{"v":1627684.0412636318,"d":"1,627,684"},{"v":2949758.1051485916,"d":"2,949,758"},{"v":1904265.442866821,"d":"1,904,265"},{"v":1816396.4413443368,"d":"1,816,396"},{"v":2276331.2465131567,"d":"2,276,331"},{"v":2248517.7908573314,"d":"2,248,518"},{"v":1376731.4614472592,"d":"1,376,731"},{"v":2279828.3506466043,"d":"2,279,828"},{"v":1868296.0415500277,"d":"1,868,296"},{"v":2761550.5903152796,"d":"2,761,551"},{"v":1816261.6791132323,"d":"1,816,262"},{"v":1652436.8375608628,"d":"1,652,437"},{"v":1566447.842899067,"d":"1,566,448"},{"v":2045831.5461830574,"d":"2,045,832"},{"v":2216701.821379232,"d":"2,216,702"},{"v":1828409.5685864913,"d":"1,828,410"},{"v":2576349.728247634,"d":"2,576,350"},{"v":2062873.2106027238,"d":"2,062,873"},{"v":2184574.3057156573,"d":"2,184,574"},{"v":2781457.569696188,"d":"2,781,458"},{"v":2233928.084515018,"d":"2,233,928"},{"v":2317979.657279679,"d":"2,317,980"},{"v":1846816.643207568,"d":"1,846,817"},{"v":3765845.9441716596,"d":"3,765,846"},{"v":3772006.389513647,"d":"3,772,006"},{"v":4260586.243295944,"d":"4,260,586"},{"v":3850829.2295543132,"d":"3,850,829"},{"v":2378178.2890525074,"d":"2,378,178"},{"v":2138816.154865838,"d":"2,138,816"},{"v":4457513.896270171,"d":"4,457,514"},{"v":2484384.8511715974,"d":"2,484,385"},{"v":1994246.788418858,"d":"1,994,247"},{"v":2152364.5191964004,"d":"2,152,365"},{"v":5795061.467941845,"d":"5,795,061"},{"v":10541389.18186822,"d":"10,541,389"},{"v":4340339.990819167,"d":"4,340,340"},{"v":2931507.379235472,"d":"2,931,507"},{"v":4877349.039178496,"d":"4,877,349"},{"v":2617545.6969154733,"d":"2,617,546"},{"v":2628575.597953573,"d":"2,628,576"},{"v":5187507.798306848,"d":"5,187,508"},{"v":1665881.772693489,"d":"1,665,882"},{"v":9824900.18264471,"d":"9,824,900"},{"v":3348275.222388966,"d":"3,348,275"},{"v":4763870.338867089,"d":"4,763,870"},{"v":3265970.970526173,"d":"3,265,971"},{"v":3646005.1077313963,"d":"3,646,005"},{"v":2386815.0018718326,"d":"2,386,815"},{"v":4988152.090349895,"d":"4,988,152"},{"v":3108908.007153022,"d":"3,108,908"},{"v":4191606.266841852,"d":"4,191,606"},{"v":8187266.426834233,"d":"8,187,266"},{"v":6059857.161028591,"d":"6,059,857"},{"v":3040829.437997888,"d":"3,040,829"},{"v":3606745.12205469,"d":"3,606,745"},{"v":3641396.652206375,"d":"3,641,397"},{"v":8839381.478991006,"d":"8,839,381"},{"v":5927416.387741935,"d":"5,927,416"},{"v":7811338.937634951,"d":"7,811,339"},{"v":3367982.029427524,"d":"3,367,982"},{"v":3947245.493000204,"d":"3,947,245"},{"v":8509771.976505345,"d":"8,509,772"},{"v":4510419.415817293,"d":"4,510,419"},{"v":4359443.503205564,"d":"4,359,444"},{"v":7639234.954831991,"d":"7,639,235"},{"v":13871201.165196022,"d":"13,871,201"},{"v":3348574.9431478335,"d":"3,348,575"},{"v":2251442.6328074066,"d":"2,251,443"},{"v":8518622.825828873,"d":"8,518,623"},{"v":5743336.562665899,"d":"5,743,337"},{"v":5868602.676202506,"d":"5,868,603"},{"v":4703672.449416681,"d":"4,703,672"},{"v":4889010.426191657,"d":"4,889,010"},{"v":15484342.39582117,"d":"15,484,342"},{"v":2953894.60836699,"d":"2,953,895"},{"v":6845015.533150577,"d":"6,845,016"},{"v":4172902.295709173,"d":"4,172,902"},{"v":8843583.717831237,"d":"8,843,584"},{"v":5358279.26466043,"d":"5,358,279"},{"v":4093531.42370792,"d":"4,093,531"},{"v":12589130.394207947,"d":"12,589,130"},{"v":19621482.616771616,"d":"19,621,483"},{"v":9791956.751405753,"d":"9,791,957"},{"v":14080432.66390717,"d":"14,080,433"},{"v":9693497.471152233,"d":"9,693,497"},{"v":16070108.168974902,"d":"16,070,108"}]
["2040-12-30",86,{"v":1023831.150095816,"d":"1,023,831"},{"v":1027019.9515614191,"d":"1,027,020"},{"v":905758.8815299594,"d":"905,759"},{"v":1137325.6000720595,"d":"1,137,326"},{"v":1112635.9714569037,"d":"1,112,636"},{"v":1447864.441304006,"d":"1,447,864"},{"v":1827876.786919253,"d":"1,827,877"},{"v":1418248.1877290548,"d":"1,418,248"},{"v":1438067.931197713,"d":"1,438,068"},{"v":1542781.056394007,"d":"1,542,781"},{"v":3027295.2719898433,"d":"3,027,295"},{"v":760119.7575543358,"d":"760,120"},{"v":1907775.997480049,"d":"1,907,776"},{"v":1563803.956632207,"d":"1,563,804"},{"v":1363769.613298725,"d":"1,363,770"},{"v":2722889.9420500197,"d":"2,722,890"},{"v":2011913.1222499323,"d":"2,011,913"},{"v":1984467.4761186359,"d":"1,984,467"},{"v":2405972.1829150347,"d":"2,405,972"},{"v":2575404.09927712,"d":"2,575,404"},{"v":1555068.5605233547,"d":"1,555,069"},{"v":2343333.6350738234,"d":"2,343,334"},{"v":2040059.3704393574,"d":"2,040,059"},{"v":2935490.4246835643,"d":"2,935,490"},{"v":1874170.8040062014,"d":"1,874,171"},{"v":1547757.0624108713,"d":"1,547,757"},{"v":1755488.425964512,"d":"1,755,488"},{"v":2514474.980126861,"d":"2,514,475"},{"v":2474239.2628835873,"d":"2,474,239"},{"v":2111235.8015394015,"d":"2,111,236"},{"v":3003781.71420156,"d":"3,003,782"},{"v":2300497.9935431276,"d":"2,300,498"},{"v":2784173.313096446,"d":"2,784,173"},{"v":3304351.3915472263,"d":"3,304,351"},{"v":2527690.4935716325,"d":"2,527,690"},{"v":2367902.095573196,"d":"2,367,902"},{"v":2052638.5378245001,"d":"2,052,639"},{"v":4510970.89642697,"d":"4,510,971"},{"v":3760473.4999713353,"d":"3,760,473"},{"v":5151693.499299769,"d":"5,151,693"},{"v":4001817.440191717,"d":"4,001,817"},{"v":2366063.544024582,"d":"2,366,064"},{"v":2522548.122420823,"d":"2,522,548"},{"v":4655460.1896532215,"d":"4,655,460"},{"v":2905636.6069282726,"d":"2,905,637"},{"v":2257391.322359877,"d":"2,257,391"},{"v":2425267.636362649,"d":"2,425,268"},{"v":4019787.1488554366,"d":"4,019,787"},{"v":11675085.970971238,"d":"11,675,086"},{"v":3742546.5617372966,"d":"3,742,547"},{"v":2911493.5014503007,"d":"2,911,494"},{"v":5924061.4352502385,"d":"5,924,061"},{"v":2771717.6838741875,"d":"2,771,718"},{"v":2684581.1893994417,"d":"2,684,581"},{"v":4740089.527788029,"d":"4,740,090"},{"v":1894444.39843163,"d":"1,894,444"},{"v":11430261.359051626,"d":"11,430,261"},{"v":3773415.269209897,"d":"3,773,415"},{"v":5736511.415279403,"d":"5,736,511"},{"v":3442666.764046118,"d":"3,442,667"},{"v":3862486.3788181017,"d":"3,862,486"},{"v":2631832.2422786322,"d":"2,631,832"},{"v":5276068.713351992,"d":"5,276,069"},{"v":4103169.459112118,"d":"4,103,169"},{"v":3894122.36837309,"d":"3,894,122"},{"v":7442766.608799021,"d":"7,442,767"},{"v":6995332.461256982,"d":"6,995,332"},{"v":3616816.147463265,"d":"3,616,816"},{"v":4471660.608984577,"d":"4,471,661"},{"v":3480030.0676550483,"d":"3,480,030"},{"v":10366637.15421206,"d":"10,366,637"},{"v":4701053.664421439,"d":"4,701,054"},{"v":7932590.837003199,"d":"7,932,591"},{"v":3854500.9241658645,"d":"3,854,501"},{"v":4218240.578848389,"d":"4,218,241"},{"v":7655752.6680187965,"d":"7,655,753"},{"v":5363250.105889186,"d":"5,363,250"},{"v":5081380.518396457,"d":"5,081,381"},{"v":4578031.80102791,"d":"4,578,032"},{"v":12820509.899715899,"d":"12,820,510"},{"v":4308874.888210996,"d":"4,308,875"},{"v":2710149.6610386875,"d":"2,710,150"},{"v":6591470.240793466,"d":"6,591,470"},{"v":6861972.208271379,"d":"6,861,972"},{"v":5891433.077837549,"d":"5,891,433"},{"v":6795466.880797192,"d":"6,795,467"},{"v":5366599.463881857,"d":"5,366,599"},{"v":19171258.44999023,"d":"19,171,258"},{"v":3461308.13695936,"d":"3,461,308"},{"v":7711763.71206726,"d":"7,711,764"},{"v":4349431.137582871,"d":"4,349,431"},{"v":11410824.766728561,"d":"11,410,825"},{"v":7355205.7180463765,"d":"7,355,206"},{"v":5146196.354522555,"d":"5,146,196"},{"v":9548479.980812028,"d":"9,548,480"},{"v":18809093.10819724,"d":"18,809,093"},{"v":11373625.556425627,"d":"11,373,626"},{"v":18697242.19457551,"d":"18,697,242"},{"v":10697425.542553425,"d":"10,697,426"},{"v":20386177.895169202,"d":"20,386,178"}]
["2041-12-30",87,{"v":1017034.5436838381,"d":"1,017,035"},{"v":1022239.9587096749,"d":"1,022,240"},{"v":972082.5888610305,"d":"972,083"},{"v":1099067.5952769674,"d":"1,099,068"},{"v":1267103.0308649796,"d":"1,267,103"},{"v":1365513.3104890606,"d":"1,365,513"},{"v":1832455.1359504794,"d":"1,832,455"},{"v":1178498.0744797434,"d":"1,178,498"},{"v":1355237.3052989978,"d":"1,355,237"},{"v":1698385.6747648495,"d":"1,698,386"},{"v":2104756.4873030623,"d":"2,104,756"},{"v":762992.9164273984,"d":"762,993"},{"v":1891799.17052701,"d":"1,891,799"},{"v":1464171.3586714065,"d":"1,464,171"},{"v":1579589.6927448588,"d":"1,579,590"},{"v":2520814.0801850185,"d":"2,520,814"},{"v":2211684.6369270845,"d":"2,211,685"},{"v":1970278.652143277,"d":"1,970,279"},{"v":2656758.1540582655,"d":"2,656,758"},{"v":2836899.7245564503,"d":"2,836,900"},{"v":1696968.8204460216,"d":"1,696,969"},{"v":2255248.4455598593,"d":"2,255,248"},{"v":2359333.263202013,"d":"2,359,333"},{"v":2892310.5471188677,"d":"2,892,311"},{"v":2294617.1067184033,"d":"2,294,617"},{"v":1677642.493270859,"d":"1,677,642"},{"v":2130865.2563410234,"d":"2,130,865"},{"v":2527052.422884073,"d":"2,527,052"},{"v":2720729.7522573494,"d":"2,720,730"},{"v":1914196.0741877782,"d":"1,914,196"},{"v":3136126.208157185,"d":"3,136,126"},{"v":2438552.979057978,"d":"2,438,553"},{"v":2781428.4488857444,"d":"2,781,428"},{"v":4167488.4576503774,"d":"4,167,488"},{"v":2292552.3202488394,"d":"2,292,552"},{"v":2718481.699151821,"d":"2,718,482"},{"v":2188326.0204767603,"d":"2,188,326"},{"v":5253818.9070149865,"d":"5,253,819"},{"v":4198466.334269045,"d":"4,198,466"},{"v":4996532.3673270475,"d":"4,996,532"},{"v":3709898.3482167097,"d":"3,709,898"},{"v":2242605.7430577446,"d":"2,242,606"},{"v":2882880.5810882873,"d":"2,882,881"},{"v":5270575.357815504,"d":"5,270,575"},{"v":3020082.7819073508,"d":"3,020,083"},{"v":2562788.7614340126,"d":"2,562,789"},{"v":2847266.9435650976,"d":"2,847,267"},{"v":4112774.7527770055,"d":"4,112,775"},{"v":13484505.49031937,"d":"13,484,505"},{"v":3537267.4372291462,"d":"3,537,267"},{"v":3299952.7301467694,"d":"3,299,953"},{"v":7126546.148343561,"d":"7,126,546"},{"v":2035994.1254675451,"d":"2,035,994"},{"v":3187934.6901155817,"d":"3,187,935"},{"v":4308640.269463761,"d":"4,308,640"},{"v":2180096.060688461,"d":"2,180,096"},{"v":13210281.947170626,"d":"13,210,282"},{"v":5318322.331825235,"d":"5,318,322"},{"v":8288685.920176982,"d":"8,288,686"},{"v":3941909.804264745,"d":"3,941,910"},{"v":4319647.206413525,"d":"4,319,647"},{"v":2700639.564757906,"d":"2,700,640"},{"v":4315140.213777109,"d":"4,315,140"},{"v":4821413.329245266,"d":"4,821,413"},{"v":4372200.944618565,"d":"4,372,201"},{"v":8384993.646499147,"d":"8,384,994"},{"v":8406781.48988595,"d":"8,406,781"},{"v":4831231.812884512,"d":"4,831,232"},{"v":5198006.045205856,"d":"5,198,006"},{"v":3173134.228487292,"d":"3,173,134"},{"v":6116670.110305609,"d":"6,116,670"},{"v":6643306.971855745,"d":"6,643,307"},{"v":6235678.842201152,"d":"6,235,679"},{"v":3554376.2888525287,"d":"3,554,376"},{"v":4314415.423504237,"d":"4,314,415"},{"v":9925884.592730422,"d":"9,925,885"},{"v":5853776.388773782,"d":"5,853,776"},{"v":6655658.069848306,"d":"6,655,658"},{"v":4616251.306617355,"d":"4,616,251"},{"v":15573713.951759191,"d":"15,573,714"},{"v":4698369.537733712,"d":"4,698,370"},{"v":2734625.3552753683,"d":"2,734,625"},{"v":7636148.945394888,"d":"7,636,149"},{"v":7813108.935724204,"d":"7,813,109"},{"v":5852470.309724925,"d":"5,852,470"},{"v":9092915.591879567,"d":"9,092,916"},{"v":4977338.678464995,"d":"4,977,339"},{"v":18285831.069495235,"d":"18,285,831"},{"v":4289847.194517214,"d":"4,289,847"},{"v":8105794.107951001,"d":"8,105,794"},{"v":5990261.767757604,"d":"5,990,262"},{"v":16378921.462862013,"d":"16,378,921"},{"v":9933877.817797191,"d":"9,933,878"},{"v":6446552.849709338,"d":"6,446,553"},{"v":10573031.977560015,"d":"10,573,032"},{"v":17329383.478188246,"d":"17,329,383"},{"v":13901104.413459718,"d":"13,901,104"},{"v":25222379.653730683,"d":"25,222,380"},{"v":12864667.340747736,"d":"12,864,667"},{"v":21190187.06859996,"d":"21,190,187"}]
["2042-12-30",88,{"v":1094317.6115523207,"d":"1,094,318"},{"v":1070648.878277633,"d":"1,070,649"},{"v":986520.8469729619,"d":"986,521"},{"v":1009366.4335480868,"d":"1,009,366"},{"v":1428022.9329923028,"d":"1,428,023"},{"v":1612546.7148294703,"d":"1,612,547"},{"v":1486188.209010252,"d":"1,486,188"},{"v":1277130.9839307775,"d":"1,277,131"},{"v":1390935.7964387431,"d":"1,390,936"},{"v":1698119.7978720244,"d":"1,698,120"},{"v":2266978.177604584,"d":"2,266,978"},{"v":768760.8310164692,"d":"768,761"},{"v":1743335.9580800503,"d":"1,743,336"},{"v":1435733.2134457822,"d":"1,435,733"},{"v":1777495.2213249179,"d":"1,777,495"},{"v":3081810.880240387,"d":"3,081,811"},{"v":2186765.0699830325,"d":"2,186,765"},{"v":1903168.7874243301,"d":"1,903,169"},{"v":2225487.4919382986,"d":"2,225,487"},{"v":2719078.088942332,"d":"2,719,078"},{"v":1560525.0482152125,"d":"1,560,525"},{"v":2411471.062811737,"d":"2,411,471"},{"v":2720728.0342939324,"d":"2,720,728"},{"v":3291950.895052541,"d":"3,291,951"},{"v":2286213.3401507707,"d":"2,286,213"},{"v":1959042.1986925823,"d":"1,959,042"},{"v":2013924.3459596133,"d":"2,013,924"},{"v":2634858.0319874985,"d":"2,634,858"},{"v":3035761.4064474353,"d":"3,035,761"},{"v":1818229.7107301427,"d":"1,818,230"},{"v":3402526.9980419604,"d":"3,402,527"},{"v":2877982.7651126496,"d":"2,877,983"},{"v":2681610.348620661,"d":"2,681,610"},{"v":3874547.5163054834,"d":"3,874,548"},{"v":2611974.741664024,"d":"2,611,975"},{"v":2278090.7779498347,"d":"2,278,091"},{"v":2730328.9488997925,"d":"2,730,329"},{"v":5507967.176234921,"d":"5,507,967"},{"v":4020453.369145088,"d":"4,020,453"},{"v":5551531.48628591,"d":"5,551,531"},{"v":3869875.0851252256,"d":"3,869,875"},{"v":2603298.223894321,"d":"2,603,298"},{"v":3395858.504771651,"d":"3,395,859"},{"v":5881105.749947867,"d":"5,881,106"},{"v":3576157.3272305797,"d":"3,576,157"},{"v":2827440.8078495665,"d":"2,827,441"},{"v":3649496.459598791,"d":"3,649,496"},{"v":3862156.308471076,"d":"3,862,156"},{"v":13583747.194104698,"d":"13,583,747"},{"v":3362147.0301944967,"d":"3,362,147"},{"v":3402201.8595607146,"d":"3,402,202"},{"v":5640031.037703222,"d":"5,640,031"},{"v":2699141.543600745,"d":"2,699,142"},{"v":3728579.74937827,"d":"3,728,580"},{"v":5498856.300879196,"d":"5,498,856"},{"v":2441319.519907758,"d":"2,441,320"},{"v":14625029.558084793,"d":"14,625,030"},{"v":5780608.006301796,"d":"5,780,608"},{"v":9662659.380018054,"d":"9,662,659"},{"v":4670761.279311367,"d":"4,670,761"},{"v":4828434.953110086,"d":"4,828,435"},{"v":2967262.4814068032,"d":"2,967,262"},{"v":4980732.248385872,"d":"4,980,732"},{"v":4295063.60695386,"d":"4,295,064"},{"v":4337407.070869798,"d":"4,337,407"},{"v":9204409.002693728,"d":"9,204,409"},{"v":7632428.330958941,"d":"7,632,428"},{"v":5540982.361250263,"d":"5,540,982"},{"v":6846108.452098812,"d":"6,846,108"},{"v":3545935.493566497,"d":"3,545,935"},{"v":6431866.846502536,"d":"6,431,867"},{"v":7535795.45911295,"d":"7,535,795"},{"v":8259706.382417016,"d":"8,259,706"},{"v":4392552.265829568,"d":"4,392,552"},{"v":5060390.279747976,"d":"5,060,390"},{"v":6761948.878540325,"d":"6,761,949"},{"v":6579498.25794795,"d":"6,579,498"},{"v":6222500.504796617,"d":"6,222,501"},{"v":4315133.212414124,"d":"4,315,133"},{"v":14100763.65669359,"d":"14,100,764"},{"v":5532336.266703322,"d":"5,532,336"},{"v":3414814.314427498,"d":"3,414,814"},{"v":7970017.763251159,"d":"7,970,018"},{"v":10041948.133453112,"d":"10,041,948"},{"v":6688174.261762516,"d":"6,688,174"},{"v":9636561.934386421,"d":"9,636,562"},{"v":6299398.2708580475,"d":"6,299,398"},{"v":19600129.001463816,"d":"19,600,129"},{"v":6226795.332909933,"d":"6,226,795"},{"v":12025354.080694973,"d":"12,025,354"},{"v":7090315.696055424,"d":"7,090,316"},{"v":16951967.22145797,"d":"16,951,967"},{"v":12497510.397717075,"d":"12,497,510"},{"v":7224981.797490267,"d":"7,224,982"},{"v":12379636.699403366,"d":"12,379,637"},{"v":24487100.35468379,"d":"24,487,100"},{"v":18638530.456340473,"d":"18,638,530"},{"v":25470700.72612794,"d":"25,470,701"},{"v":16641286.984228218,"d":"16,641,287"},{"v":29976922.117269546,"d":"29,976,922"}]
["2043-12-31",89,{"v":1142347.6491300778,"d":"1,142,348"},{"v":1024923.7067926102,"d":"1,024,924"},{"v":949899.6621032243,"d":"949,900"},{"v":1083789.1189282467,"d":"1,083,789"},{"v":1532361.435804094,"d":"1,532,361"},{"v":1577706.5771554573,"d":"1,577,707"},{"v":1605912.7445863083,"d":"1,605,913"},{"v":1479263.9194765347,"d":"1,479,264"},{"v":1474469.7631456626,"d":"1,474,470"},{"v":1759701.0177791903,"d":"1,759,701"},{"v":1851774.0233337495,"d":"1,851,774"},{"v":783930.133750697,"d":"783,930"},{"v":1756891.5794819354,"d":"1,756,892"},{"v":1460630.9151435292,"d":"1,460,631"},{"v":1884906.1166150386,"d":"1,884,906"},{"v":2593286.0635980996,"d":"2,593,286"},{"v":2127386.0030269483,"d":"2,127,386"},{"v":2119483.6735807313,"d":"2,119,484"},{"v":2086402.5584284032,"d":"2,086,403"},{"v":2656239.3799711857,"d":"2,656,239"},{"v":1681709.4289435009,"d":"1,681,709"},{"v":2255221.661907305,"d":"2,255,222"},{"v":2661536.3039533542,"d":"2,661,536"},{"v":3181555.7161673685,"d":"3,181,556"},{"v":2539338.563649838,"d":"2,539,339"},{"v":2103247.0197486794,"d":"2,103,247"},{"v":1899520.1855185032,"d":"1,899,520"},{"v":2836717.627464288,"d":"2,836,718"},{"v":3428682.1360681,"d":"3,428,682"},{"v":2219379.6351389578,"d":"2,219,380"},{"v":3196970.5622750255,"d":"3,196,971"},{"v":3065053.450163729,"d":"3,065,053"},{"v":2628996.9756396846,"d":"2,628,997"},{"v":3738020.050847933,"d":"3,738,020"},{"v":2816136.9777374505,"d":"2,816,137"},{"v":2693480.133576094,"d":"2,693,480"},{"v":2987912.4457829897,"d":"2,987,912"},{"v":5952899.7330340175,"d":"5,952,900"},{"v":4318918.067701925,"d":"4,318,918"},{"v":5040867.182735674,"d":"5,040,867"},{"v":4408714.317131377,"d":"4,408,714"},{"v":2987044.930713741,"d":"2,987,045"},{"v":3220450.4768359903,"d":"3,220,450"},{"v":7188993.634579393,"d":"7,188,994"},{"v":4284587.206549157,"d":"4,284,587"},{"v":2821787.942031374,"d":"2,821,788"},{"v":5141628.44022801,"d":"5,141,628"},{"v":3970299.0548117594,"d":"3,970,299"},{"v":20312251.005527623,"d":"20,312,251"},{"v":3491727.9771254086,"d":"3,491,728"},{"v":4206565.967082149,"d":"4,206,566"},{"v":6320943.647056476,"d":"6,320,944"},{"v":3418438.982699964,"d":"3,418,439"},{"v":4717599.475601748,"d":"4,717,599"},{"v":4547793.65809112,"d":"4,547,794"},{"v":2817935.333922514,"d":"2,817,935"},{"v":19032061.620165493,"d":"19,032,062"},{"v":8368018.400704824,"d":"8,368,018"},{"v":10652043.367382064,"d":"10,652,043"},{"v":5775951.415782719,"d":"5,775,951"},{"v":4324866.0766194705,"d":"4,324,866"},{"v":3422504.7417271277,"d":"3,422,505"},{"v":5943756.096166849,"d":"5,943,756"},{"v":4849561.903961481,"d":"4,849,562"},{"v":5721994.742994423,"d":"5,721,995"},{"v":10573164.640587864,"d":"10,573,165"},{"v":7595274.156681144,"d":"7,595,274"},{"v":7036800.190884385,"d":"7,036,800"},{"v":8129505.188618035,"d":"8,129,505"},{"v":4177756.874319258,"d":"4,177,757"},{"v":8199427.9717407,"d":"8,199,428"},{"v":7565620.082563046,"d":"7,565,620"},{"v":8155435.363181187,"d":"8,155,435"},{"v":4482094.691947935,"d":"4,482,095"},{"v":6054257.943820132,"d":"6,054,258"},{"v":8477217.88461526,"d":"8,477,218"},{"v":7258641.364203266,"d":"7,258,641"},{"v":7316896.999116177,"d":"7,316,897"},{"v":5175609.770789264,"d":"5,175,610"},{"v":18450408.12097786,"d":"18,450,408"},{"v":6729914.774962741,"d":"6,729,915"},{"v":4342710.973779375,"d":"4,342,711"},{"v":9740514.184938958,"d":"9,740,514"},{"v":9095562.821498562,"d":"9,095,563"},{"v":6799542.912238768,"d":"6,799,543"},{"v":11882207.54277505,"d":"11,882,208"},{"v":7544509.71812084,"d":"7,544,510"},{"v":25420882.522941735,"d":"25,420,883"},{"v":8369395.979866481,"d":"8,369,396"},{"v":13193025.580925493,"d":"13,193,026"},{"v":6630677.462739796,"d":"6,630,677"},{"v":11249856.792153222,"d":"11,249,857"},{"v":14660882.668919731,"d":"14,660,883"},{"v":10589854.511146668,"d":"10,589,855"},{"v":15781972.755158622,"d":"15,781,973"},{"v":28913036.955311596,"d":"28,913,037"},{"v":20052743.547682676,"d":"20,052,744"},{"v":31798146.37898962,"d":"31,798,146"},{"v":21655799.81875223,"d":"21,655,800"},{"v":34422729.16402402,"d":"34,422,729"}]
["2044-12-30",90,{"v":1103089.443809991,"d":"1,103,089"},{"v":968123.2404507452,"d":"968,123"},{"v":961579.4939373429,"d":"961,579"},{"v":1079175.2911410038,"d":"1,079,175"},{"v":1593287.5229479654,"d":"1,593,288"},{"v":1578077.1752873661,"d":"1,578,077"},{"v":1675942.3063458276,"d":"1,675,942"},{"v":1297607.92723436,"d":"1,297,608"},{"v":1535606.750999214,"d":"1,535,607"},{"v":1726199.1570385413,"d":"1,726,199"},{"v":1870501.9431925996,"d":"1,870,502"},{"v":720821.9885430322,"d":"720,822"},{"v":1816615.1308987874,"d":"1,816,615"},{"v":1742048.7019045756,"d":"1,742,049"},{"v":2000952.8652855575,"d":"2,000,953"},{"v":2147786.318723159,"d":"2,147,786"},{"v":2329171.9341708925,"d":"2,329,172"},{"v":2241006.496844164,"d":"2,241,006"},{"v":2062008.94183413,"d":"2,062,009"},{"v":2967663.356231287,"d":"2,967,663"},{"v":1947457.7817332088,"d":"1,947,458"},{"v":2440159.640505363,"d":"2,440,160"},{"v":2632311.413155741,"d":"2,632,311"},{"v":3236616.7127659223,"d":"3,236,617"},{"v":2704853.299513716,"d":"2,704,853"},{"v":1946805.0692763429,"d":"1,946,805"},{"v":2024299.2065703014,"d":"2,024,299"},{"v":3352073.183843008,"d":"3,352,073"},{"v":3629511.284665305,"d":"3,629,511"},{"v":2245509.8486396023,"d":"2,245,510"},{"v":3332178.8458221667,"d":"3,332,179"},{"v":3474139.9839098384,"d":"3,474,140"},{"v":3068376.482468607,"d":"3,068,376"},{"v":4094235.6638926957,"d":"4,094,236"},{"v":2847435.810309907,"d":"2,847,436"},{"v":2911258.2981675137,"d":"2,911,258"},{"v":3698653.8830145104,"d":"3,698,654"},{"v":5317205.267382393,"d":"5,317,205"},{"v":4695509.608730037,"d":"4,695,510"},{"v":4768981.52271496,"d":"4,768,982"},{"v":2718415.062207386,"d":"2,718,415"},{"v":3068318.3350509475,"d":"3,068,318"},{"v":3167396.8936725343,"d":"3,167,397"},{"v":8196267.971676114,"d":"8,196,268"},{"v":4456791.99755324,"d":"4,456,792"},{"v":3078077.2480732086,"d":"3,078,077"},{"v":3189426.17316314,"d":"3,189,426"},{"v":4229536.8978182385,"d":"4,229,537"},{"v":13258045.489187306,"d":"13,258,045"},{"v":3933617.43444195,"d":"3,933,617"},{"v":4111158.045465924,"d":"4,111,158"},{"v":4711603.78077523,"d":"4,711,604"},{"v":3355040.0953741902,"d":"3,355,040"},{"v":4939947.016646858,"d":"4,939,947"},{"v":4784418.4027055055,"d":"4,784,418"},{"v":3355389.4677406736,"d":"3,355,389"},{"v":15136473.979124226,"d":"15,136,474"},{"v":9160568.667685274,"d":"9,160,569"},{"v":9779902.068246733,"d":"9,779,902"},{"v":6314881.354589039,"d":"6,314,881"},{"v":4695376.245631068,"d":"4,695,376"},{"v":3245840.4124673773,"d":"3,245,840"},{"v":5529566.368891229,"d":"5,529,566"},{"v":5279818.797825693,"d":"5,279,819"},{"v":5346429.548080183,"d":"5,346,430"},{"v":11087376.047800379,"d":"11,087,376"},{"v":7530841.582378338,"d":"7,530,842"},{"v":6557212.905668342,"d":"6,557,213"},{"v":11480521.56080797,"d":"11,480,522"},{"v":4613699.054707392,"d":"4,613,699"},{"v":7434335.2019019835,"d":"7,434,335"},{"v":8313334.100581071,"d":"8,313,334"},{"v":6762091.662487882,"d":"6,762,092"},{"v":5372191.092875206,"d":"5,372,191"},{"v":7462495.855168492,"d":"7,462,496"},{"v":10923595.775520615,"d":"10,923,596"},{"v":7732759.43918645,"d":"7,732,759"},{"v":7662000.613959395,"d":"7,662,001"},{"v":7377037.835650959,"d":"7,377,038"},{"v":18226984.79129176,"d":"18,226,985"},{"v":8186612.254058818,"d":"8,186,612"},{"v":5046330.310965533,"d":"5,046,330"},{"v":8680772.61644185,"d":"8,680,773"},{"v":10086442.893789569,"d":"10,086,443"},{"v":9030354.570418306,"d":"9,030,355"},{"v":13855737.113386141,"d":"13,855,737"},{"v":8266760.5587397935,"d":"8,266,761"},{"v":24291635.837890696,"d":"24,291,636"},{"v":9751671.581740735,"d":"9,751,672"},{"v":16279942.446216395,"d":"16,279,942"},{"v":9247149.623012869,"d":"9,247,150"},{"v":11739968.739904305,"d":"11,739,969"},{"v":14496311.572689494,"d":"14,496,312"},{"v":11170455.119186932,"d":"11,170,455"},{"v":15143583.590508075,"d":"15,143,584"},{"v":26060014.01092559,"d":"26,060,014"},{"v":26095848.30457812,"d":"26,095,848"},{"v":39070246.55384377,"d":"39,070,247"},{"v":27973484.9074353,"d":"27,973,485"},{"v":41373401.8195527,"d":"41,373,402"}]
["2045-12-30",91,{"v":763542.3515796433,"d":"763,542"},{"v":774460.8034452734,"d":"774,461"},{"v":752571.3355578284,"d":"752,571"},{"v":890262.162976834,"d":"890,262"},{"v":1360425.188743904,"d":"1,360,425"},{"v":1529762.2971540478,"d":"1,529,762"},{"v":1479569.038524394,"d":"1,479,569"},{"v":1023383.1436545977,"d":"1,023,383"},{"v":1307125.8353830774,"d":"1,307,126"},{"v":1470843.5284093583,"d":"1,470,844"},{"v":1690967.4884244911,"d":"1,690,967"},{"v":477444.3282048166,"d":"477,444"},{"v":1716583.9770981853,"d":"1,716,584"},{"v":1588719.60562061,"d":"1,588,720"},{"v":2013329.09508207,"d":"2,013,329"},{"v":1800093.3543366408,"d":"1,800,093"},{"v":2179283.0462604016,"d":"2,179,283"},{"v":2515394.256208215,"d":"2,515,394"},{"v":1972743.1081458742,"d":"1,972,743"},{"v":2973832.737606939,"d":"2,973,833"},{"v":1994402.847893324,"d":"1,994,403"},{"v":2284900.161125344,"d":"2,284,900"},{"v":2337615.054157927,"d":"2,337,615"},{"v":2558055.3561883844,"d":"2,558,055"},{"v":2944403.8420406794,"d":"2,944,404"},{"v":1788577.8574434577,"d":"1,788,578"},{"v":2101369.3951309067,"d":"2,101,369"},{"v":3239198.0785181476,"d":"3,239,198"},{"v":3817942.315803595,"d":"3,817,942"},{"v":2461205.0554014635,"d":"2,461,205"},{"v":3843061.855739573,"d":"3,843,062"},{"v":3395038.8302149978,"d":"3,395,039"},{"v":3607149.0162709015,"d":"3,607,149"},{"v":4062719.5511584464,"d":"4,062,720"},{"v":2996052.070051772,"d":"2,996,052"},{"v":2523011.998330057,"d":"2,523,012"},{"v":3954190.7258381112,"d":"3,954,191"},{"v":5728984.376205326,"d":"5,728,984"},{"v":4662942.4910159055,"d":"4,662,942"},{"v":5567906.791132817,"d":"5,567,907"},{"v":2057525.8291724587,"d":"2,057,526"},{"v":3196022.501062739,"d":"3,196,023"},{"v":3745295.8694600747,"d":"3,745,296"},{"v":7504201.051259377,"d":"7,504,201"},{"v":3416008.4939729576,"d":"3,416,008"},{"v":3565968.388095963,"d":"3,565,968"},{"v":3779759.884774977,"d":"3,779,760"},{"v":4210602.006730717,"d":"4,210,602"},{"v":13703934.508702697,"d":"13,703,935"},{"v":4885046.0529846335,"d":"4,885,046"},{"v":3496405.3453254015,"d":"3,496,405"},{"v":5339868.210617024,"d":"5,339,868"},{"v":3414780.8647229685,"d":"3,414,781"},{"v":5516489.691868186,"d":"5,516,490"},{"v":4284417.748281085,"d":"4,284,418"},{"v":3904108.006792195,"d":"3,904,108"},{"v":19391350.62184647,"d":"19,391,351"},{"v":6827993.450332314,"d":"6,827,993"},{"v":9475741.845096342,"d":"9,475,742"},{"v":5607006.146160527,"d":"5,607,006"},{"v":4153119.8427742524,"d":"4,153,120"},{"v":3465301.593146961,"d":"3,465,302"},{"v":5543624.452304083,"d":"5,543,624"},{"v":4985033.345864247,"d":"4,985,033"},{"v":5352611.486695367,"d":"5,352,611"},{"v":9442876.58412373,"d":"9,442,877"},{"v":6710324.572146673,"d":"6,710,325"},{"v":7302300.081792953,"d":"7,302,300"},{"v":12510277.389256148,"d":"12,510,277"},{"v":4716382.906341222,"d":"4,716,383"},{"v":6571448.172010792,"d":"6,571,448"},{"v":8649350.779909752,"d":"8,649,351"},{"v":7805600.157567784,"d":"7,805,600"},{"v":6118161.728960266,"d":"6,118,162"},{"v":9907880.685017543,"d":"9,907,881"},{"v":11364421.746986374,"d":"11,364,422"},{"v":6960468.93916472,"d":"6,960,469"},{"v":7369230.304717103,"d":"7,369,230"},{"v":8112945.951526184,"d":"8,112,946"},{"v":16007104.533869898,"d":"16,007,105"},{"v":8346535.4886000855,"d":"8,346,535"},{"v":5996084.597453677,"d":"5,996,085"},{"v":11421560.424563657,"d":"11,421,560"},{"v":12766920.516953815,"d":"12,766,921"},{"v":9206144.111575412,"d":"9,206,144"},{"v":14171960.871763343,"d":"14,171,961"},{"v":9420609.066537982,"d":"9,420,609"},{"v":35624184.13748299,"d":"35,624,184"},{"v":9637095.613228645,"d":"9,637,096"},{"v":17053806.314263426,"d":"17,053,806"},{"v":10635312.480535714,"d":"10,635,312"},{"v":11407044.383699456,"d":"11,407,044"},{"v":17502527.57428733,"d":"17,502,528"},{"v":12819162.520924143,"d":"12,819,163"},{"v":15479800.582228446,"d":"15,479,801"},{"v":25589871.574631114,"d":"25,589,872"},{"v":29717922.16580867,"d":"29,717,922"},{"v":47923077.53272276,"d":"47,923,078"},{"v":36360205.7270061,"d":"36,360,206"},{"v":49364394.25381521,"d":"49,364,394"}]
["2046-12-30",92,{"v":334193.3899133997,"d":"334,193"},{"v":534087.4787924484,"d":"534,087"},{"v":600075.9230768564,"d":"600,076"},{"v":659523.2805554176,"d":"659,523"},{"v":1368767.2535883489,"d":"1,368,767"},{"v":1304301.406151399,"d":"1,304,301"},{"v":1195463.6918311918,"d":"1,195,464"},{"v":794644.0587191063,"d":"794,644"},{"v":1066773.920869663,"d":"1,066,774"},{"v":1349711.95722239,"d":"1,349,712"},{"v":1259873.0095321205,"d":"1,259,873"},{"v":172163.99061323935,"d":"172,164"},{"v":1474996.0166098394,"d":"1,474,996"},{"v":1340905.6635776577,"d":"1,340,906"},{"v":1725943.7287669654,"d":"1,725,944"},{"v":1625369.3008629822,"d":"1,625,369"},{"v":2021684.384366935,"d":"2,021,684"},{"v":1830038.1946812628,"d":"1,830,038"},{"v":1886575.331834473,"d":"1,886,575"},{"v":2742322.8136147656,"d":"2,742,323"},{"v":2060705.1784390842,"d":"2,060,705"},{"v":2301088.809649977,"d":"2,301,089"},{"v":2352118.3802071926,"d":"2,352,118"},{"v":2315846.148802284,"d":"2,315,846"},{"v":3067786.5125680603,"d":"3,067,787"},{"v":1993398.5360875276,"d":"1,993,399"},{"v":2225552.7873444646,"d":"2,225,553"},{"v":3351573.0137137477,"d":"3,351,573"},{"v":3555861.1093418403,"d":"3,555,861"},{"v":2722996.898949162,"d":"2,722,997"},{"v":3446895.3771057734,"d":"3,446,895"},{"v":3130116.18847093,"d":"3,130,116"},{"v":4093309.9438239587,"d":"4,093,310"},{"v":3603354.274944229,"d":"3,603,354"},{"v":3023233.560926913,"d":"3,023,234"},{"v":2460473.2439896353,"d":"2,460,473"},{"v":4394686.407200836,"d":"4,394,686"},{"v":6332543.753434563,"d":"6,332,544"},{"v":4186310.625534433,"d":"4,186,311"},{"v":5072214.182414648,"d":"5,072,214"},{"v":2238425.9357695063,"d":"2,238,426"},{"v":3249075.4968909314,"d":"3,249,075"},{"v":3193701.5178501136,"d":"3,193,702"},{"v":5862737.658973491,"d":"5,862,738"},{"v":3036893.9956543464,"d":"3,036,894"},{"v":3806732.7488645576,"d":"3,806,733"},{"v":4386221.186452277,"d":"4,386,221"},{"v":4142623.226481037,"d":"4,142,623"},{"v":13582295.785246711,"d":"13,582,296"},{"v":3512210.7008299497,"d":"3,512,211"},{"v":4045390.570821259,"d":"4,045,391"},{"v":6865469.530484231,"d":"6,865,470"},{"v":3657626.7877285355,"d":"3,657,627"},{"v":5463211.35854349,"d":"5,463,211"},{"v":5186353.351129516,"d":"5,186,353"},{"v":3921177.6397283184,"d":"3,921,178"},{"v":17274620.59070025,"d":"17,274,621"},{"v":7902323.133631508,"d":"7,902,323"},{"v":11278371.1475003,"d":"11,278,371"},{"v":5438450.992137058,"d":"5,438,451"},{"v":4559549.14411663,"d":"4,559,549"},{"v":3838500.253595257,"d":"3,838,500"},{"v":5023992.485821583,"d":"5,023,992"},{"v":5395049.011970872,"d":"5,395,049"},{"v":7091137.296844397,"d":"7,091,137"},{"v":11254175.938785221,"d":"11,254,176"},{"v":7846620.249740854,"d":"7,846,620"},{"v":5015440.057388525,"d":"5,015,440"},{"v":12641547.89902426,"d":"12,641,548"},{"v":5523377.222556221,"d":"5,523,377"},{"v":6528436.117339787,"d":"6,528,436"},{"v":10216222.937404614,"d":"10,216,223"},{"v":7925515.398112281,"d":"7,925,515"},{"v":6846651.294178993,"d":"6,846,651"},{"v":12021494.790720362,"d":"12,021,495"},{"v":9776859.20136278,"d":"9,776,859"},{"v":7976887.798376546,"d":"7,976,888"},{"v":9100623.896417983,"d":"9,100,624"},{"v":8678664.88605159,"d":"8,678,665"},{"v":18271870.385931965,"d":"18,271,870"},{"v":10384312.995553538,"d":"10,384,313"},{"v":7322058.592315517,"d":"7,322,059"},{"v":11303772.942539923,"d":"11,303,773"},{"v":11576939.097077912,"d":"11,576,939"},{"v":10186965.541739348,"d":"10,186,966"},{"v":12445970.189214483,"d":"12,445,970"},{"v":9411250.512104569,"d":"9,411,251"},{"v":35481667.29808073,"d":"35,481,667"},{"v":13199195.589889102,"d":"13,199,196"},{"v":18769128.6666955,"d":"18,769,129"},{"v":12264568.403982902,"d":"12,264,568"},{"v":14551015.322269302,"d":"14,551,015"},{"v":24511406.09783642,"d":"24,511,406"},{"v":15356877.595387794,"d":"15,356,878"},{"v":19808028.2515081,"d":"19,808,028"},{"v":24336301.165141676,"d":"24,336,301"},{"v":26166720.268035308,"d":"26,166,720"},{"v":43745955.35990947,"d":"43,745,955"},{"v":39901792.023866005,"d":"39,901,792"},{"v":52667440.06376448,"d":"52,667,440"}]
["2047-12-31",93,{"v":-476151.8553418094,"d":"(476,152)"},{"v":149518.53298017097,"d":"149,519"},{"v":411817.39441971044,"d":"411,817"},{"v":325069.2684019772,"d":"325,069"},{"v":1288292.5733124216,"d":"1,288,293"},{"v":1114199.1090694095,"d":"1,114,199"},{"v":962408.298514687,"d":"962,408"},{"v":569022.157531391,"d":"569,022"},{"v":854952.2741533468,"d":"854,952"},{"v":1126657.1613225692,"d":"1,126,657"},{"v":1100849.8235313315,"d":"1,100,850"},{"v":182024.80330749793,"d":"182,025"},{"v":1220122.6508315403,"d":"1,220,123"},{"v":1138373.526112929,"d":"1,138,374"},{"v":1693493.4074355706,"d":"1,693,493"},{"v":1419380.6465508835,"d":"1,419,381"},{"v":1756835.9563080445,"d":"1,756,836"},{"v":1690448.9639578233,"d":"1,690,449"},{"v":2215160.017599943,"d":"2,215,160"},{"v":2801223.535390232,"d":"2,801,224"},{"v":2035038.8407267027,"d":"2,035,039"},{"v":2347909.3047393654,"d":"2,347,909"},{"v":2248773.630021079,"d":"2,248,774"},{"v":2099712.5126596913,"d":"2,099,713"},{"v":2677433.5123254946,"d":"2,677,434"},{"v":2052535.0775854082,"d":"2,052,535"},{"v":2338846.2648596196,"d":"2,338,846"},{"v":3092533.3302277443,"d":"3,092,533"},{"v":3641476.0635418724,"d":"3,641,476"},{"v":2747805.3716636417,"d":"2,747,805"},{"v":3785359.4257946834,"d":"3,785,359"},{"v":2720636.2126552192,"d":"2,720,636"},{"v":3519407.107380268,"d":"3,519,407"},{"v":3123319.7601997294,"d":"3,123,320"},{"v":3434871.795666096,"d":"3,434,872"},{"v":2474254.2100311955,"d":"2,474,254"},{"v":3787835.8976745424,"d":"3,787,836"},{"v":6672464.904619296,"d":"6,672,465"},{"v":3683041.1607016404,"d":"3,683,041"},{"v":5809650.2943155635,"d":"5,809,650"},{"v":2414863.0241956036,"d":"2,414,863"},{"v":3245054.099839615,"d":"3,245,054"},{"v":3469134.8187363595,"d":"3,469,135"},{"v":6434819.560515266,"d":"6,434,820"},{"v":3279369.3574683196,"d":"3,279,369"},{"v":4678490.233114,"d":"4,678,490"},{"v":3842198.1722763837,"d":"3,842,198"},{"v":5041752.363666159,"d":"5,041,752"},{"v":12535600.931380317,"d":"12,535,601"},{"v":3730609.5523572764,"d":"3,730,610"},{"v":4576840.854685178,"d":"4,576,841"},{"v":7179327.103124326,"d":"7,179,327"},{"v":4170721.158892208,"d":"4,170,721"},{"v":4680268.428486052,"d":"4,680,268"},{"v":6162453.670615373,"d":"6,162,454"},{"v":5091845.0194785595,"d":"5,091,845"},{"v":10131147.091812536,"d":"10,131,147"},{"v":6948383.7995625,"d":"6,948,384"},{"v":9666223.260942549,"d":"9,666,223"},{"v":5951049.22526835,"d":"5,951,049"},{"v":4884467.888083778,"d":"4,884,468"},{"v":4308842.694261158,"d":"4,308,843"},{"v":5234349.9587992765,"d":"5,234,350"},{"v":5477617.1569340695,"d":"5,477,617"},{"v":6310186.872622703,"d":"6,310,187"},{"v":6649146.477007139,"d":"6,649,146"},{"v":7316329.200553073,"d":"7,316,329"},{"v":4497931.885276641,"d":"4,497,932"},{"v":10247437.533098584,"d":"10,247,438"},{"v":7395314.577534304,"d":"7,395,315"},{"v":7298963.577030337,"d":"7,298,964"},{"v":12228092.073954796,"d":"12,228,092"},{"v":10127415.58748422,"d":"10,127,416"},{"v":7310054.577470346,"d":"7,310,055"},{"v":12347758.128682636,"d":"12,347,758"},{"v":9019981.89684024,"d":"9,019,982"},{"v":10424771.749857213,"d":"10,424,772"},{"v":11796303.752546286,"d":"11,796,304"},{"v":8270249.073521691,"d":"8,270,249"},{"v":19222218.26122939,"d":"19,222,218"},{"v":13077085.820385838,"d":"13,077,086"},{"v":7219279.294534593,"d":"7,219,279"},{"v":11696508.63538503,"d":"11,696,509"},{"v":13366365.869433114,"d":"13,366,366"},{"v":8684755.106105385,"d":"8,684,755"},{"v":11928010.169592053,"d":"11,928,010"},{"v":10744397.853358949,"d":"10,744,398"},{"v":20248982.737542804,"d":"20,248,983"},{"v":11969009.958867898,"d":"11,969,010"},{"v":17376897.1809481,"d":"17,376,897"},{"v":14343848.884334411,"d":"14,343,849"},{"v":13169906.04007552,"d":"13,169,906"},{"v":23245974.357541792,"d":"23,245,974"},{"v":17534275.846412025,"d":"17,534,276"},{"v":23760000.087401982,"d":"23,760,000"},{"v":30794035.47279908,"d":"30,794,035"},{"v":25730943.778538287,"d":"25,730,944"},{"v":35861319.90541326,"d":"35,861,320"},{"v":52053564.050510764,"d":"52,053,564"},{"v":60547366.4718195,"d":"60,547,366"}]
["2048-12-30",94,{"v":-1637641.1550263958,"d":"(1,637,641)"},{"v":-124233.3708264898,"d":"(124,233)"},{"v":228639.1048558578,"d":"228,639"},{"v":-201563.58581070078,"d":"(201,564)"},{"v":1042507.1296907684,"d":"1,042,507"},{"v":868165.5982637187,"d":"868,166"},{"v":747826.4384886192,"d":"747,826"},{"v":419795.72250583256,"d":"419,796"},{"v":780431.8353351487,"d":"780,432"},{"v":863054.1325821606,"d":"863,054"},{"v":908442.2637702199,"d":"908,442"},{"v":-91098.20273197685,"d":"(91,098)"},{"v":1013198.0192282777,"d":"1,013,198"},{"v":947582.9339242599,"d":"947,583"},{"v":1440631.5203742052,"d":"1,440,632"},{"v":1339801.429117515,"d":"1,339,801"},{"v":1523795.6755362533,"d":"1,523,796"},{"v":1470323.7566302088,"d":"1,470,324"},{"v":2581234.4495659196,"d":"2,581,234"},{"v":2920005.760674422,"d":"2,920,006"},{"v":1944212.9408157119,"d":"1,944,213"},{"v":2262964.905021435,"d":"2,262,965"},{"v":2176000.091412855,"d":"2,176,000"},{"v":2275569.604395489,"d":"2,275,570"},{"v":2074371.8740661948,"d":"2,074,372"},{"v":2227047.872762695,"d":"2,227,048"},{"v":1963136.616649366,"d":"1,963,137"},{"v":2853553.4764407086,"d":"2,853,553"},{"v":3995667.4514482245,"d":"3,995,667"},{"v":2519128.6920619993,"d":"2,519,129"},{"v":3139664.6208751015,"d":"3,139,665"},{"v":2553793.6736220624,"d":"2,553,794"},{"v":3250748.1474621757,"d":"3,250,748"},{"v":3359686.2764258003,"d":"3,359,686"},{"v":3388286.0598819614,"d":"3,388,286"},{"v":2582610.5182610946,"d":"2,582,611"},{"v":4086014.9219179084,"d":"4,086,015"},{"v":5961393.286232907,"d":"5,961,393"},{"v":3886858.675811207,"d":"3,886,859"},{"v":5411808.736193198,"d":"5,411,809"},{"v":2492853.835747684,"d":"2,492,854"},{"v":3308769.5265516182,"d":"3,308,770"},{"v":3857903.6049431316,"d":"3,857,904"},{"v":4516029.254913299,"d":"4,516,029"},{"v":3773474.3977207984,"d":"3,773,474"},{"v":4567812.7507217275,"d":"4,567,813"},{"v":4045158.231407404,"d":"4,045,158"},{"v":4270633.357647994,"d":"4,270,633"},{"v":11088936.401080595,"d":"11,088,936"},{"v":4344370.560850532,"d":"4,344,371"},{"v":5201969.617759075,"d":"5,201,970"},{"v":7450126.536789714,"d":"7,450,127"},{"v":4200451.113343968,"d":"4,200,451"},{"v":6324547.806219216,"d":"6,324,548"},{"v":6171661.485907657,"d":"6,171,661"},{"v":4769987.6999558555,"d":"4,769,988"},{"v":9047413.360223647,"d":"9,047,413"},{"v":6201124.463911931,"d":"6,201,124"},{"v":8605059.765712861,"d":"8,605,060"},{"v":6295966.092178053,"d":"6,295,966"},{"v":5291060.68154607,"d":"5,291,061"},{"v":5157277.432789182,"d":"5,157,277"},{"v":5274516.091818185,"d":"5,274,516"},{"v":6569755.129546652,"d":"6,569,755"},{"v":6136947.510110893,"d":"6,136,948"},{"v":5906970.034181957,"d":"5,906,970"},{"v":9336962.215089593,"d":"9,336,962"},{"v":5730733.775264273,"d":"5,730,734"},{"v":9308589.866817126,"d":"9,308,590"},{"v":8260849.0000191955,"d":"8,260,849"},{"v":8240392.868524615,"d":"8,240,393"},{"v":14813352.708246814,"d":"14,813,353"},{"v":9863330.245358435,"d":"9,863,330"},{"v":8872596.762026913,"d":"8,872,597"},{"v":12622432.775866337,"d":"12,622,433"},{"v":9590293.370881217,"d":"9,590,293"},{"v":10095984.952304823,"d":"10,095,985"},{"v":10655632.05276501,"d":"10,655,632"},{"v":8051030.784981448,"d":"8,051,031"},{"v":16899325.289906606,"d":"16,899,325"},{"v":11434160.23442636,"d":"11,434,160"},{"v":9470594.908494057,"d":"9,470,595"},{"v":13234973.422267027,"d":"13,234,973"},{"v":14571482.357715908,"d":"14,571,482"},{"v":11714878.340242295,"d":"11,714,878"},{"v":11609144.47554609,"d":"11,609,144"},{"v":10924444.967628172,"d":"10,924,445"},{"v":18332095.58305309,"d":"18,332,096"},{"v":14074452.151157241,"d":"14,074,452"},{"v":15708865.025497887,"d":"15,708,865"},{"v":14832249.18194575,"d":"14,832,249"},{"v":15971136.610495886,"d":"15,971,137"},{"v":23300014.598230474,"d":"23,300,015"},{"v":20670863.561280023,"d":"20,670,864"},{"v":22894750.446552455,"d":"22,894,750"},{"v":41145338.21622914,"d":"41,145,338"},{"v":33277638.042293694,"d":"33,277,638"},{"v":46136710.097045876,"d":"46,136,710"},{"v":54249294.71846379,"d":"54,249,295"},{"v":87994026.29504651,"d":"87,994,026"}]
["2049-12-30",95,{"v":-2213411.4444191135,"d":"(2,213,411)"},{"v":-537165.5164039502,"d":"(537,166)"},{"v":-8396.88295329547,"d":"(8,397)"},{"v":-778815.9796996653,"d":"(778,816)"},{"v":726238.2236671111,"d":"726,238"},{"v":553426.4627113584,"d":"553,426"},{"v":455632.4395689065,"d":"455,632"},{"v":174552.8890242607,"d":"174,553"},{"v":650040.8614209045,"d":"650,041"},{"v":561335.6636610199,"d":"561,336"},{"v":591868.6781239263,"d":"591,869"},{"v":-525814.9802250424,"d":"(525,815)"},{"v":767768.8122322015,"d":"767,769"},{"v":810544.3495848902,"d":"810,544"},{"v":1225002.8908605168,"d":"1,225,003"},{"v":1012162.6969311589,"d":"1,012,163"},{"v":1324562.3680575069,"d":"1,324,562"},{"v":1426361.3243078014,"d":"1,426,361"},{"v":2336595.685160562,"d":"2,336,596"},{"v":2578995.461850563,"d":"2,578,995"},{"v":1866660.5537370841,"d":"1,866,661"},{"v":2129136.1284237094,"d":"2,129,136"},{"v":2108536.2788461028,"d":"2,108,536"},{"v":2155560.1420563627,"d":"2,155,560"},{"v":2051726.9997834067,"d":"2,051,727"},{"v":2199749.655157132,"d":"2,199,750"},{"v":1964835.4046151375,"d":"1,964,835"},{"v":2448131.432390689,"d":"2,448,131"},{"v":3166714.9523118827,"d":"3,166,715"},{"v":2763956.3041040227,"d":"2,763,956"},{"v":2976315.9497753107,"d":"2,976,316"},{"v":2516010.1493143993,"d":"2,516,010"},{"v":2793969.7997535085,"d":"2,793,970"},{"v":3016500.21227022,"d":"3,016,500"},{"v":3365255.827833654,"d":"3,365,256"},{"v":2697040.5952046816,"d":"2,697,041"},{"v":3434513.378687551,"d":"3,434,513"},{"v":5193544.2973586265,"d":"5,193,544"},{"v":3440509.164711234,"d":"3,440,509"},{"v":4816594.7515849685,"d":"4,816,595"},{"v":2546560.7396445577,"d":"2,546,561"},{"v":3260221.1238988163,"d":"3,260,221"},{"v":3838293.997128743,"d":"3,838,294"},{"v":4463600.326812772,"d":"4,463,600"},{"v":4314149.08379159,"d":"4,314,149"},{"v":4312433.657469324,"d":"4,312,434"},{"v":3016550.9731438495,"d":"3,016,551"},{"v":4181553.674076598,"d":"4,181,554"},{"v":14374932.305446515,"d":"14,374,932"},{"v":4441071.199120464,"d":"4,441,071"},{"v":5976124.170660014,"d":"5,976,124"},{"v":7776168.2496255115,"d":"7,776,168"},{"v":3997535.372805775,"d":"3,997,535"},{"v":5807590.490061429,"d":"5,807,590"},{"v":5438722.417193957,"d":"5,438,722"},{"v":5441795.078978783,"d":"5,441,795"},{"v":8110177.663605335,"d":"8,110,178"},{"v":4217770.268730602,"d":"4,217,770"},{"v":8255170.308836138,"d":"8,255,170"},{"v":5435859.391409646,"d":"5,435,859"},{"v":5635115.904406416,"d":"5,635,116"},{"v":5738608.214691613,"d":"5,738,608"},{"v":6309884.952311967,"d":"6,309,885"},{"v":7965325.617227544,"d":"7,965,326"},{"v":6102057.404497027,"d":"6,102,057"},{"v":7264777.485129152,"d":"7,264,777"},{"v":9449906.67870218,"d":"9,449,907"},{"v":7312950.1638420345,"d":"7,312,950"},{"v":9541888.81164625,"d":"9,541,889"},{"v":9097728.701662615,"d":"9,097,729"},{"v":9723237.84072036,"d":"9,723,238"},{"v":9755845.580229554,"d":"9,755,846"},{"v":12233028.431883179,"d":"12,233,028"},{"v":10962687.919020673,"d":"10,962,688"},{"v":12343454.31539948,"d":"12,343,454"},{"v":8673316.071341,"d":"8,673,316"},{"v":12683806.411808355,"d":"12,683,806"},{"v":9135082.063221473,"d":"9,135,082"},{"v":8562002.68068459,"d":"8,562,003"},{"v":19975229.358178757,"d":"19,975,229"},{"v":12902074.605485044,"d":"12,902,075"},{"v":11859851.957297806,"d":"11,859,852"},{"v":18258913.753555015,"d":"18,258,914"},{"v":14122691.775018338,"d":"14,122,692"},{"v":11930263.402625844,"d":"11,930,263"},{"v":9894795.494094897,"d":"9,894,795"},{"v":13519835.550509863,"d":"13,519,836"},{"v":19467754.266288992,"d":"19,467,754"},{"v":18024043.91442378,"d":"18,024,044"},{"v":16317824.983776024,"d":"16,317,825"},{"v":17867773.27719092,"d":"17,867,773"},{"v":20103571.59816299,"d":"20,103,572"},{"v":31256241.519433398,"d":"31,256,242"},{"v":26733329.45283442,"d":"26,733,329"},{"v":29373900.4972212,"d":"29,373,900"},{"v":45136339.1092586,"d":"45,136,339"},{"v":38863456.9740128,"d":"38,863,457"},{"v":58579043.107370466,"d":"58,579,043"},{"v":66516500.437294476,"d":"66,516,500"},{"v":93358595.01150869,"d":"93,358,595"}]
["2050-12-30",96,{"v":-4463162.717733506,"d":"(4,463,163)"},{"v":-1182588.252932922,"d":"(1,182,588)"},{"v":-114830.54626406227,"d":"(114,831)"},{"v":-898857.8733545088,"d":"(898,858)"},{"v":272875.5426464224,"d":"272,876"},{"v":373029.9105897923,"d":"373,030"},{"v":106707.0744709549,"d":"106,707"},{"v":-16937.133879332847,"d":"(16,937)"},{"v":615726.3905469829,"d":"615,726"},{"v":217710.17601701187,"d":"217,710"},{"v":415596.0590080643,"d":"415,596"},{"v":-657328.3227638341,"d":"(657,328)"},{"v":624109.2824987425,"d":"624,109"},{"v":610668.8682481344,"d":"610,669"},{"v":917902.3319082794,"d":"917,902"},{"v":809591.2926931331,"d":"809,591"},{"v":1201859.7992509513,"d":"1,201,860"},{"v":1302299.1770995106,"d":"1,302,299"},{"v":1743619.2922668725,"d":"1,743,619"},{"v":1851116.3289895828,"d":"1,851,116"},{"v":1854392.3513839424,"d":"1,854,392"},{"v":1850568.070368618,"d":"1,850,568"},{"v":1825772.3730862436,"d":"1,825,772"},{"v":1985913.9653196307,"d":"1,985,914"},{"v":1988308.5907582405,"d":"1,988,309"},{"v":1781802.6365568007,"d":"1,781,803"},{"v":1802406.6139495156,"d":"1,802,407"},{"v":2720545.305870605,"d":"2,720,545"},{"v":2218055.803246994,"d":"2,218,056"},{"v":2329392.4564586203,"d":"2,329,392"},{"v":3026361.886463129,"d":"3,026,362"},{"v":2632113.18932154,"d":"2,632,113"},{"v":2311750.7986650104,"d":"2,311,751"},{"v":2542063.5659392835,"d":"2,542,064"},{"v":3634437.978553275,"d":"3,634,438"},{"v":3064018.5707041724,"d":"3,064,019"},{"v":3153540.990252436,"d":"3,153,541"},{"v":4062071.454116172,"d":"4,062,071"},{"v":3625931.978600853,"d":"3,625,932"},{"v":4749909.25375288,"d":"4,749,909"},{"v":2586620.1732734167,"d":"2,586,620"},{"v":3500530.6378796943,"d":"3,500,531"},{"v":3832235.6711372966,"d":"3,832,236"},{"v":4936043.518374614,"d":"4,936,044"},{"v":4935315.582252881,"d":"4,935,316"},{"v":3884456.9312593937,"d":"3,884,457"},{"v":3644345.5269673234,"d":"3,644,346"},{"v":4076610.8465954424,"d":"4,076,611"},{"v":9365461.127380759,"d":"9,365,461"},{"v":4124669.859645311,"d":"4,124,670"},{"v":6819678.844115501,"d":"6,819,679"},{"v":6214668.801788968,"d":"6,214,669"},{"v":4303503.166274495,"d":"4,303,503"},{"v":5181400.678231165,"d":"5,181,401"},{"v":6150101.220635327,"d":"6,150,101"},{"v":6667391.614083495,"d":"6,667,392"},{"v":8674999.424950711,"d":"8,674,999"},{"v":4857239.143239894,"d":"4,857,239"},{"v":7297849.492449905,"d":"7,297,849"},{"v":7247406.744977265,"d":"7,247,407"},{"v":5630179.050442153,"d":"5,630,179"},{"v":6441025.405449758,"d":"6,441,025"},{"v":6741411.985074655,"d":"6,741,412"},{"v":7652982.3011085065,"d":"7,652,982"},{"v":7546056.284070455,"d":"7,546,056"},{"v":9225875.887953276,"d":"9,225,876"},{"v":7151988.1276073605,"d":"7,151,988"},{"v":7802578.242409593,"d":"7,802,578"},{"v":9772199.413098676,"d":"9,772,199"},{"v":11526888.037848875,"d":"11,526,888"},{"v":10349094.18001993,"d":"10,349,094"},{"v":10016104.655052496,"d":"10,016,105"},{"v":13151977.713217752,"d":"13,151,978"},{"v":11760959.319490887,"d":"11,760,959"},{"v":11273078.804050075,"d":"11,273,079"},{"v":9796477.811044382,"d":"9,796,478"},{"v":13258822.348799102,"d":"13,258,822"},{"v":10826052.099090382,"d":"10,826,052"},{"v":9853591.356809454,"d":"9,853,591"},{"v":20739064.87367496,"d":"20,739,065"},{"v":15825559.686823891,"d":"15,825,560"},{"v":11547987.452253602,"d":"11,547,987"},{"v":19843984.53798477,"d":"19,843,985"},{"v":16318226.254538734,"d":"16,318,226"},{"v":15137013.701510763,"d":"15,137,014"},{"v":14154314.346538713,"d":"14,154,314"},{"v":15924321.164724765,"d":"15,924,321"},{"v":17292620.781751137,"d":"17,292,621"},{"v":23265917.52202294,"d":"23,265,918"},{"v":22832435.51090428,"d":"22,832,436"},{"v":21683391.72973023,"d":"21,683,392"},{"v":24323908.533301722,"d":"24,323,909"},{"v":23188359.72115979,"d":"23,188,360"},{"v":34775596.48684396,"d":"34,775,596"},{"v":32563675.786754202,"d":"32,563,676"},{"v":50900718.14748249,"d":"50,900,718"},{"v":42619581.732852645,"d":"42,619,582"},{"v":56557121.11234417,"d":"56,557,121"},{"v":74263457.14457975,"d":"74,263,457"},{"v":119136674.20815565,"d":"119,136,674"}]
["2051-12-31",97,{"v":-5328556.034116408,"d":"(5,328,556)"},{"v":-1856284.4632933596,"d":"(1,856,284)"},{"v":-780131.3313574134,"d":"(780,131)"},{"v":-610825.7126608286,"d":"(610,826)"},{"v":-198094.2864624145,"d":"(198,094)"},{"v":-83695.35133303607,"d":"(83,695)"},{"v":-302396.9877794979,"d":"(302,397)"},{"v":-203161.28880459792,"d":"(203,161)"},{"v":101848.27634025634,"d":"101,848"},{"v":31927.65266488884,"d":"31,928"},{"v":-153578.75552757614,"d":"(153,579)"},{"v":-565227.1402018729,"d":"(565,227)"},{"v":432266.66920395655,"d":"432,267"},{"v":374137.9011216884,"d":"374,138"},{"v":747425.8081561585,"d":"747,426"},{"v":509917.1006708154,"d":"509,917"},{"v":938652.4544928058,"d":"938,652"},{"v":1146055.1685040733,"d":"1,146,055"},{"v":1479403.9579045684,"d":"1,479,404"},{"v":1664132.6211765078,"d":"1,664,133"},{"v":1596392.871480834,"d":"1,596,393"},{"v":1753153.7619053284,"d":"1,753,154"},{"v":1580828.9242860775,"d":"1,580,829"},{"v":1744524.4620910937,"d":"1,744,524"},{"v":1735986.367410284,"d":"1,735,986"},{"v":1617510.40488774,"d":"1,617,510"},{"v":1722408.363781461,"d":"1,722,408"},{"v":2707279.3441550247,"d":"2,707,279"},{"v":2059623.1565200428,"d":"2,059,623"},{"v":2364076.018107053,"d":"2,364,076"},{"v":3567861.56801225,"d":"3,567,862"},{"v":2526077.962862302,"d":"2,526,078"},{"v":2233200.645001479,"d":"2,233,201"},{"v":3020045.8914461336,"d":"3,020,046"},{"v":3677015.9177464964,"d":"3,677,016"},{"v":3300412.22838638,"d":"3,300,412"},{"v":3232550.7494739536,"d":"3,232,551"},{"v":3455365.706687054,"d":"3,455,366"},{"v":3692378.478363224,"d":"3,692,378"},{"v":4152473.9036106924,"d":"4,152,474"},{"v":3183765.6939435382,"d":"3,183,766"},{"v":3284510.3068624367,"d":"3,284,510"},{"v":3943385.326345099,"d":"3,943,385"},{"v":3899090.243875884,"d":"3,899,090"},{"v":4384215.124387519,"d":"4,384,215"},{"v":4031832.5618125354,"d":"4,031,833"},{"v":4219041.725846131,"d":"4,219,042"},{"v":4200589.518869849,"d":"4,200,590"},{"v":7439198.993852883,"d":"7,439,199"},{"v":4702097.566581233,"d":"4,702,098"},{"v":7770286.505197264,"d":"7,770,287"},{"v":5968730.343148428,"d":"5,968,730"},{"v":4871879.687178619,"d":"4,871,880"},{"v":5126414.15937867,"d":"5,126,414"},{"v":6437303.212008762,"d":"6,437,303"},{"v":6705955.214204947,"d":"6,705,955"},{"v":5862322.921148533,"d":"5,862,323"},{"v":5424794.891548059,"d":"5,424,795"},{"v":8943884.183980629,"d":"8,943,884"},{"v":8055769.239589677,"d":"8,055,769"},{"v":6370313.710454366,"d":"6,370,314"},{"v":8345709.159475018,"d":"8,345,709"},{"v":7160559.524048655,"d":"7,160,560"},{"v":8809097.371984037,"d":"8,809,097"},{"v":8102536.6921635615,"d":"8,102,537"},{"v":11491594.418287817,"d":"11,491,594"},{"v":8088199.06767,"d":"8,088,199"},{"v":9533645.411327917,"d":"9,533,645"},{"v":9480999.328256639,"d":"9,480,999"},{"v":12140881.883591738,"d":"12,140,882"},{"v":14154368.631703574,"d":"14,154,369"},{"v":12358580.642150948,"d":"12,358,581"},{"v":12419310.99174976,"d":"12,419,311"},{"v":13463905.656506993,"d":"13,463,906"},{"v":12503463.871245544,"d":"12,503,464"},{"v":11655941.022575574,"d":"11,655,941"},{"v":17253459.651577935,"d":"17,253,460"},{"v":13527336.34636516,"d":"13,527,336"},{"v":12488356.827359645,"d":"12,488,357"},{"v":21544095.482696556,"d":"21,544,095"},{"v":16578526.77568445,"d":"16,578,527"},{"v":13728610.468422445,"d":"13,728,610"},{"v":20756707.5393625,"d":"20,756,708"},{"v":14816596.111981105,"d":"14,816,596"},{"v":16346345.627426026,"d":"16,346,346"},{"v":16804159.739003584,"d":"16,804,160"},{"v":19422813.372603983,"d":"19,422,813"},{"v":17746443.46309989,"d":"17,746,443"},{"v":27291740.27914048,"d":"27,291,740"},{"v":26782508.277583692,"d":"26,782,508"},{"v":26125892.579355497,"d":"26,125,893"},{"v":28982153.787024893,"d":"28,982,154"},{"v":27665857.06630761,"d":"27,665,857"},{"v":40223344.374183215,"d":"40,223,344"},{"v":42366625.73363069,"d":"42,366,626"},{"v":44355222.55219911,"d":"44,355,223"},{"v":54224418.03289254,"d":"54,224,418"},{"v":67959808.95119733,"d":"67,959,809"},{"v":84112758.80917647,"d":"84,112,759"},{"v":127897033.98878184,"d":"127,897,034"}]
["2052-12-30",98,{"v":-5898876.286012026,"d":"(5,898,876)"},{"v":-2228558.4064853354,"d":"(2,228,558)"},{"v":-1276288.1033392912,"d":"(1,276,288)"},{"v":-1010466.8075797319,"d":"(1,010,467)"},{"v":-835846.8504273919,"d":"(835,847)"},{"v":-463947.0438003318,"d":"(463,947)"},{"v":-437348.78824207856,"d":"(437,349)"},{"v":-363989.8102862884,"d":"(363,990)"},{"v":-314065.5109047236,"d":"(314,066)"},{"v":-306638.1645078766,"d":"(306,638)"},{"v":-240983.5476761622,"d":"(240,984)"},{"v":-191809.3195206409,"d":"(191,809)"},{"v":-9769.589714210291,"d":"(9,770)"},{"v":98706.42509523105,"d":"98,706"},{"v":197673.743632923,"d":"197,674"},{"v":215760.10040149803,"d":"215,760"},{"v":599132.387403277,"d":"599,132"},{"v":760943.7243737953,"d":"760,944"},{"v":1141975.473369544,"d":"1,141,975"},{"v":1386227.412504739,"d":"1,386,227"},{"v":1387216.126989677,"d":"1,387,216"},{"v":1410839.1654299404,"d":"1,410,839"},{"v":1499584.4260270533,"d":"1,499,584"},{"v":1513143.2155632647,"d":"1,513,143"},{"v":1547393.6288876848,"d":"1,547,394"},{"v":1555864.5150802683,"d":"1,555,865"},{"v":1701436.3457364533,"d":"1,701,436"},{"v":1871544.9849275898,"d":"1,871,545"},{"v":1873135.483201333,"d":"1,873,135"},{"v":2275386.2211319455,"d":"2,275,386"},{"v":2418072.161307356,"d":"2,418,072"},{"v":2594747.946278593,"d":"2,594,748"},{"v":2688369.815576396,"d":"2,688,370"},{"v":2780933.185444158,"d":"2,780,933"},{"v":3215580.1461546645,"d":"3,215,580"},{"v":3252020.189955742,"d":"3,252,020"},{"v":3284565.6280762474,"d":"3,284,566"},{"v":3292504.6983407876,"d":"3,292,505"},{"v":3521263.5017782557,"d":"3,521,264"},{"v":3595895.420790033,"d":"3,595,895"},{"v":3602102.9575516386,"d":"3,602,103"},{"v":3673202.839400999,"d":"3,673,203"},{"v":3738204.0037163254,"d":"3,738,204"},{"v":4013541.364746084,"d":"4,013,541"},{"v":4076570.7262197537,"d":"4,076,571"},{"v":4156111.917633828,"d":"4,156,112"},{"v":4201169.1587146595,"d":"4,201,169"},{"v":4706136.403129777,"d":"4,706,136"},{"v":5003206.162834978,"d":"5,003,206"},{"v":5130228.11843731,"d":"5,130,228"},{"v":5257166.3584842,"d":"5,257,166"},{"v":5257992.554653994,"d":"5,257,993"},{"v":5349306.529336156,"d":"5,349,307"},{"v":5578181.093023518,"d":"5,578,181"},{"v":5650798.782249851,"d":"5,650,799"},{"v":5880302.266290742,"d":"5,880,302"},{"v":6105690.585224993,"d":"6,105,691"},{"v":6482433.165965655,"d":"6,482,433"},{"v":7104142.167913678,"d":"7,104,142"},{"v":7147287.65261351,"d":"7,147,288"},{"v":7200322.842526023,"d":"7,200,323"},{"v":7919214.016677609,"d":"7,919,214"},{"v":8218578.644765144,"d":"8,218,579"},{"v":9100243.789953997,"d":"9,100,244"},{"v":10161591.250440234,"d":"10,161,591"},{"v":10328033.822009131,"d":"10,328,034"},{"v":10332013.679668674,"d":"10,332,014"},{"v":10827280.562218646,"d":"10,827,281"},{"v":11815466.029662432,"d":"11,815,466"},{"v":12431379.611093482,"d":"12,431,380"},{"v":12764966.104015201,"d":"12,764,966"},{"v":12966144.997834122,"d":"12,966,145"},{"v":13010933.598836403,"d":"13,010,934"},{"v":13822107.506437352,"d":"13,822,108"},{"v":13920757.894565418,"d":"13,920,758"},{"v":14374356.177630527,"d":"14,374,356"},{"v":15415952.876595436,"d":"15,415,953"},{"v":15538092.264759522,"d":"15,538,092"},{"v":15719173.356360096,"d":"15,719,173"},{"v":16037965.36121324,"d":"16,037,965"},{"v":16141142.284949366,"d":"16,141,142"},{"v":17431981.568686645,"d":"17,431,982"},{"v":18465474.710038412,"d":"18,465,475"},{"v":18472613.98084688,"d":"18,472,614"},{"v":18881709.557128828,"d":"18,881,710"},{"v":18929638.199934207,"d":"18,929,638"},{"v":20186637.479478955,"d":"20,186,637"},{"v":21484620.55126954,"d":"21,484,621"},{"v":25155399.863987975,"d":"25,155,400"},{"v":29550199.17083734,"d":"29,550,199"},{"v":30620828.52566478,"d":"30,620,829"},{"v":33771482.982101,"d":"33,771,483"},{"v":37134959.52363572,"d":"37,134,960"},{"v":45260015.40664155,"d":"45,260,015"},{"v":48212713.22381164,"d":"48,212,713"},{"v":48437059.727338016,"d":"48,437,060"},{"v":70570165.81553508,"d":"70,570,166"},{"v":83439840.64891098,"d":"83,439,841"},{"v":125083463.12992933,"d":"125,083,463"},{"v":141189108.6461872,"d":"141,189,109"}]
[]
[null,null,"Above in average for each quintile"]
[null,null,1,2,3,4,5,"Fixed @ Geometric Avg (Fixed Rate Proj, Col V)",{"$nulls":3},"5th Percentile","95th Percentile"]
[null,null,{"$f":"AVERAGE(C35:V35)","v":{"v":1351930.979067593,"d":"1,351,931"}},{"$f":"AVERAGE(W35:AP35)","v":{"v":1385477.4702665522,"d":"1,385,477"}},{"$f":"AVERAGE(AQ35:BJ35)","v":{"v":1411143.8715110535,"d":"1,411,144"}},{"$f":"AVERAGE(BK35:CD35)","v":{"v":1416960.924085191,"d":"1,416,961"}},{"$f":"AVERAGE(CE35:CX35)","v":{"v":1427774.7611380226,"d":"1,427,775"}},{"$f":"'Fixed Rate Proj'!V4","v":{"v":1334629.8015206195,"d":"1,334,630"}},{"$f":"AVERAGE(C35:G35)","v":{"v":1119843.3929088544,"d":"1,119,843"}},null,null,{"$f":"G35/1000","v":{"v":972.9532770448083,"d":"973"}},{"$f":"CS35/1000","v":{"v":1337.4126598504163,"d":"1,337"}}]
[null,null,{"$f":"AVERAGE(C36:V36)","v":{"v":1369181.5026793068,"d":"1,369,182"}},{"$f":"AVERAGE(W36:AP36)","v":{"v":1418226.3790345008,"d":"1,418,226"}},{"$f":"AVERAGE(AQ36:BJ36)","v":{"v":1499293.250366467,"d":"1,499,293"}},{"$f":"AVERAGE(BK36:CD36)","v":{"v":1535784.1068968964,"d":"1,535,784"}},{"$f":"AVERAGE(CE36:CX36)","v":{"v":1553171.8519814904,"d":"1,553,172"}},{"$f":"'Fixed Rate Proj'!V5","v":{"v":1369857.8631236448,"d":"1,369,858"}},{"$f":"AVERAGE(C36:G36)","v":{"v":1183777.1441833389,"d":"1,183,777"}},null,null,{"v":1036.4332232305228,"d":"1,036"},{"$f":"CS36/1000","v":{"v":1576.3356135073204,"d":"1,576"}}]
[null,null,{"v":1373210.1371763544,"d":"1,373,210"},{"v":1484143.9171697819,"d":"1,484,144"},{"v":1567122.083641226,"d":"1,567,122"},{"v":1647655.6456126035,"d":"1,647,656"},{"v":1718640.4133466794,"d":"1,718,640"},{"$f":"'Fixed Rate Proj'!V6","v":{"v":1425843.6577218333,"d":"1,425,844"}},{"v":1162927.5043387462,"d":"1,162,928"},null,null,{"v":1035.8922609726662,"d":"1,036"},{"v":1963.7485961938335,"d":"1,964"}]
[null,null,{"v":1477719.9068483703,"d":"1,477,720"},{"v":1563020.0740648475,"d":"1,563,020"},{"v":1684157.6598386199,"d":"1,684,158"},{"v":1808177.5362491452,"d":"1,808,178"},{"v":1926112.9561678816,"d":"1,926,113"},{"$f":"'Fixed Rate Proj'!V7","v":{"v":1481106.2023688655,"d":"1,481,106"}},{"v":1206668.4698289372,"d":"1,206,668"},null,null,{"v":1089.2816603873146,"d":"1,089"},{"v":2239.164795720138,"d":"2,239"}]
[null,null,{"v":1551584.50000045,"d":"1,551,585"},{"v":1605353.3660471123,"d":"1,605,353"},{"v":1783570.7625452918,"d":"1,783,571"},{"v":1860369.4670462976,"d":"1,860,369"},{"v":2162861.022167081,"d":"2,162,861"},{"$f":"'Fixed Rate Proj'!V8","v":{"v":1538903.7843471775,"d":"1,538,904"}},{"v":1218376.433560994,"d":"1,218,376"},null,null,{"v":1093.680100711217,"d":"1,094"},{"v":2220.653019949991,"d":"2,221"}]
[null,null,{"v":1576674.2647685367,"d":"1,576,674"},{"v":1636064.788042451,"d":"1,636,065"},{"v":1974263.2859404876,"d":"1,974,263"},{"v":1999550.9643588401,"d":"1,999,551"},{"v":2444593.470921653,"d":"2,444,593"},{"$f":"'Fixed Rate Proj'!V9","v":{"v":1593817.4932697187,"d":"1,593,817"}},{"v":1196720.870606507,"d":"1,196,721"},null,null,{"v":1243.978554836919,"d":"1,244"},{"v":2936.696183341676,"d":"2,937"}]
[null,null,{"v":1619515.9970501247,"d":"1,619,516"},{"v":1770023.7760712025,"d":"1,770,024"},{"v":2111222.2293107263,"d":"2,111,222"},{"v":2137176.5914070355,"d":"2,137,177"},{"v":2725528.2056861813,"d":"2,725,528"},{"$f":"'Fixed Rate Proj'!V10","v":{"v":1648420.3666991715,"d":"1,648,420"}},{"v":1265859.3941908001,"d":"1,265,859"},null,null,{"v":1370.9405299672235,"d":"1,371"},{"v":3408.8575759660175,"d":"3,409"}]
[null,null,{"v":1531425.3634351345,"d":"1,531,425"},{"v":1852055.8726810259,"d":"1,852,056"},{"v":2355521.75449901,"d":"2,355,522"},{"v":2327967.5273481584,"d":"2,327,968"},{"v":2953953.675396393,"d":"2,953,954"},{"$f":"'Fixed Rate Proj'!V11","v":{"v":1702777.0471219197,"d":"1,702,777"}},{"v":1205934.2404429005,"d":"1,205,934"},null,null,{"v":1474.6537349450646,"d":"1,475"},{"v":3909.9190847586783,"d":"3,910"}]
[null,null,{"v":1645874.7850249712,"d":"1,645,875"},{"v":1985891.2613426503,"d":"1,985,891"},{"v":2612250.3937830096,"d":"2,612,250"},{"v":2625000.176313664,"d":"2,625,000"},{"v":3324312.422486004,"d":"3,324,312"},{"$f":"'Fixed Rate Proj'!V12","v":{"v":1751960.4944901392,"d":"1,751,960"}},{"v":1288829.9295987773,"d":"1,288,830"},null,null,{"v":1608.3864282333875,"d":"1,608"},{"v":4414.95805795862,"d":"4,415"}]
[null,null,{"v":1720772.812647034,"d":"1,720,773"},{"v":2100876.2886169106,"d":"2,100,876"},{"v":2761229.674999895,"d":"2,761,230"},{"v":2929924.7122454634,"d":"2,929,925"},{"v":3837846.603722304,"d":"3,837,847"},{"$f":"'Fixed Rate Proj'!V13","v":{"v":1798666.494404524,"d":"1,798,666"}},{"v":1294465.895260679,"d":"1,294,466"},null,null,{"v":1586.5284519894935,"d":"1,587"},{"v":5593.470794197031,"d":"5,593"}]
[null,null,{"v":1756703.6294597976,"d":"1,756,704"},{"v":2252880.364828193,"d":"2,252,880"},{"v":3145430.1645654677,"d":"3,145,430"},{"v":3350580.1623215233,"d":"3,350,580"},{"v":4326239.137883723,"d":"4,326,239"},{"$f":"'Fixed Rate Proj'!V14","v":{"v":1845583.7896372774,"d":"1,845,584"}},{"v":1414524.8886566665,"d":"1,414,525"},null,null,{"v":1753.5776580539016,"d":"1,754"},{"v":6091.1769705549805,"d":"6,091"}]
[null,null,{"v":1735797.1537623224,"d":"1,735,797"},{"v":2358366.695807743,"d":"2,358,367"},{"v":3143740.286254966,"d":"3,143,740"},{"v":3861857.632398008,"d":"3,861,858"},{"v":4692020.747203095,"d":"4,692,021"},{"$f":"'Fixed Rate Proj'!V15","v":{"v":1892828.2402488962,"d":"1,892,828"}},{"v":1357916.899713407,"d":"1,357,917"},null,null,{"v":1274.1070130315086,"d":"1,274"},{"v":7693.266610531019,"d":"7,693"}]
[null,null,{"v":1712643.1545616135,"d":"1,712,643"},{"v":2334340.512165175,"d":"2,334,341"},{"v":3318959.9229310034,"d":"3,318,960"},{"v":4006426.568892701,"d":"4,006,427"},{"v":5132724.441275123,"d":"5,132,724"},{"$f":"'Fixed Rate Proj'!V16","v":{"v":1943011.688418449,"d":"1,943,012"}},{"v":1282789.5214515137,"d":"1,282,790"},null,null,{"v":1244.6797682096924,"d":"1,245"},{"v":8068.413844637432,"d":"8,068"}]
[null,null,{"v":1614085.127919199,"d":"1,614,085"},{"v":2270528.1435726485,"d":"2,270,528"},{"v":3251241.0990752326,"d":"3,251,241"},{"v":4368559.569919965,"d":"4,368,560"},{"v":5926785.264952027,"d":"5,926,785"},{"$f":"'Fixed Rate Proj'!V17","v":{"v":1990337.5549497167,"d":"1,990,338"}},{"v":1195173.5738710437,"d":"1,195,174"},null,null,{"v":1246.1797546677442,"d":"1,246"},{"v":10051.112499589224,"d":"10,051"}]
[null,null,{"v":1554539.76923167,"d":"1,554,540"},{"v":2189303.8145950376,"d":"2,189,304"},{"v":3401755.246920443,"d":"3,401,755"},{"v":4681747.107286756,"d":"4,681,747"},{"v":6340355.447067058,"d":"6,340,355"},{"$f":"'Fixed Rate Proj'!V18","v":{"v":2038675.6110173645,"d":"2,038,676"}},{"v":1082402.8128384836,"d":"1,082,403"},null,null,{"v":1134.3527336794934,"d":"1,134"},{"v":8925.300710662726,"d":"8,925"}]
[null,null,{"v":1542169.522675169,"d":"1,542,170"},{"v":2323990.284331999,"d":"2,323,990"},{"v":3667076.312350022,"d":"3,667,076"},{"v":5019086.119783407,"d":"5,019,086"},{"v":7114078.3657517675,"d":"7,114,078"},{"$f":"'Fixed Rate Proj'!V19","v":{"v":2087155.6759835943,"d":"2,087,156"}},{"v":1080951.9155138775,"d":"1,080,952"},null,null,{"v":1016.8574534175548,"d":"1,017"},{"v":9844.445612657077,"d":"9,844"}]
[null,null,{"v":1588701.0027853588,"d":"1,588,701"},{"v":2360745.6757963416,"d":"2,360,746"},{"v":4062225.418393459,"d":"4,062,225"},{"v":5582050.83082108,"d":"5,582,051"},{"v":8246070.991096398,"d":"8,246,071"},{"$f":"'Fixed Rate Proj'!V20","v":{"v":2138900.276111917,"d":"2,138,900"}},{"v":1063484.236568759,"d":"1,063,484"},null,null,{"v":1052.6713457794335,"d":"1,053"},{"v":12589.130394207947,"d":"12,589"}]
[null,null,{"v":1660241.0688913048,"d":"1,660,241"},{"v":2645774.588135365,"d":"2,645,775"},{"v":4294042.354364299,"d":"4,294,042"},{"v":5617311.6603896,"d":"5,617,312"},{"v":9332199.948723068,"d":"9,332,200"},{"$f":"'Fixed Rate Proj'!V21","v":{"v":2187372.096891093,"d":"2,187,372"}},{"v":1041314.3109432316,"d":"1,041,314"},null,null,{"v":1112.6359714569037,"d":"1,113"},{"v":9548.479980812028,"d":"9,548"}]
[null,null,{"v":1640368.1045961727,"d":"1,640,368"},{"v":2832036.896211302,"d":"2,832,037"},{"v":4828450.5112536745,"d":"4,828,451"},{"v":6000646.021411171,"d":"6,000,646"},{"v":10665840.877828682,"d":"10,665,841"},{"$f":"'Fixed Rate Proj'!V22","v":{"v":2235542.2337791035,"d":"2,235,542"}},{"v":1075505.543479298,"d":"1,075,506"},null,null,{"v":1267.1030308649797,"d":"1,267"},{"v":10573.031977560015,"d":"10,573"}]
[null,null,{"v":1658120.5962712378,"d":"1,658,121"},{"v":2963485.910130089,"d":"2,963,486"},{"v":5238023.54629671,"d":"5,238,024"},{"v":6191945.987264866,"d":"6,191,946"},{"v":12939724.090534244,"d":"12,939,724"},{"$f":"'Fixed Rate Proj'!V23","v":{"v":2283538.467226251,"d":"2,283,538"}},{"v":1117775.340668661,"d":"1,117,775"},null,null,{"v":1428.022932992303,"d":"1,428"},{"v":12379.636699403367,"d":"12,380"}]
[null,null,{"v":1647565.3020915862,"d":"1,647,565"},{"v":3062308.1929027205,"d":"3,062,308"},{"v":6384241.842701146,"d":"6,384,242"},{"v":7145539.7402757425,"d":"7,145,540"},{"v":14943698.353346309,"d":"14,943,698"},{"$f":"'Fixed Rate Proj'!V24","v":{"v":2334239.608527175,"d":"2,334,240"}},{"v":1146664.3145516505,"d":"1,146,664"},null,null,{"v":1532.3614358040938,"d":"1,532"},{"v":15781.972755158622,"d":"15,782"}]
[null,null,{"v":1670863.2993410272,"d":"1,670,863"},{"v":3218378.640354057,"d":"3,218,379"},{"v":5747263.819059885,"d":"5,747,264"},{"v":7631675.444644091,"d":"7,631,675"},{"v":16792336.22126425,"d":"16,792,336"},{"$f":"'Fixed Rate Proj'!V25","v":{"v":2381226.0424528862,"d":"2,381,226"}},{"v":1141050.9984574097,"d":"1,141,051"},null,null,{"v":1593.2875229479655,"d":"1,593"},{"v":15143.583590508075,"d":"15,144"}]
[null,null,{"v":1514016.83412086,"d":"1,514,017"},{"v":3293436.3834830564,"d":"3,293,436"},{"v":5866126.325862955,"d":"5,866,126"},{"v":7652423.262708803,"d":"7,652,423"},{"v":19522210.996904097,"d":"19,522,211"},{"$f":"'Fixed Rate Proj'!V26","v":{"v":2426999.5845632832,"d":"2,427,000"}},{"v":908252.3684606968,"d":"908,252"},null,null,{"v":1360.425188743904,"d":"1,360"},{"v":15479.800582228447,"d":"15,480"}]
[null,null,{"v":1264370.739759023,"d":"1,264,371"},{"v":3284503.246647463,"d":"3,284,503"},{"v":5902195.66777087,"d":"5,902,196"},{"v":8276630.8132870365,"d":"8,276,631"},{"v":20669568.2988456,"d":"20,669,568"},{"$f":"'Fixed Rate Proj'!V27","v":{"v":2472838.4002697174,"d":"2,472,838"}},{"v":699329.4651852943,"d":"699,329"},null,null,{"v":1368.767253588349,"d":"1,369"},{"v":19808.0282515081,"d":"19,808"}]
[null,null,{"v":1077184.9122694836,"d":"1,077,185"},{"v":3214645.233869443,"d":"3,214,645"},{"v":5661507.586320846,"d":"5,661,508"},{"v":8518371.646139394,"d":"8,518,372"},{"v":21167626.37605002,"d":"21,167,626"},{"$f":"'Fixed Rate Proj'!V28","v":{"v":2520973.2201381368,"d":"2,520,973"}},{"v":339709.18275449413,"d":"339,709"},null,null,{"v":1288.2925733124216,"d":"1,288"},{"v":23760.000087401982,"d":"23,760"}]
[null,null,{"v":852044.9728073912,"d":"852,045"},{"v":3095625.9220879045,"d":"3,095,626"},{"v":5526712.493179338,"d":"5,526,712"},{"v":8833901.677402267,"d":"8,833,902"},{"v":24577355.661680587,"d":"24,577,356"},{"$f":"'Fixed Rate Proj'!V29","v":{"v":2564897.701009955,"d":"2,564,898"}},{"v":-138458.37542339205,"d":"-138,458"},null,null,{"v":1042.5071296907684,"d":"1,043"},{"v":22894.750446552454,"d":"22,895"}]
[null,null,{"v":556574.2001730811,"d":"556,574"},{"v":2855263.0988959847,"d":"2,855,263"},{"v":5460314.02462202,"d":"5,460,314"},{"v":9423296.730330212,"d":"9,423,297"},{"v":28704340.03436818,"d":"28,704,340"},{"$f":"'Fixed Rate Proj'!V30","v":{"v":2607343.665695428,"d":"2,607,344"}},{"v":-562310.3199617827,"d":"-562,310"},null,null,{"v":726.2382236671111,"d":"726"},{"v":29373.900497221202,"d":"29,374"}]
[null,null,{"v":186455.33396531345,"d":"186,455"},{"v":2657967.891668398,"d":"2,657,968"},{"v":5415026.450275644,"d":"5,415,026"},{"v":10025820.394815639,"d":"10,025,820"},{"v":32607743.278112907,"d":"32,607,743"},{"$f":"'Fixed Rate Proj'!V31","v":{"v":2648170.1848345627,"d":"2,648,170"}},{"v":-1277312.7695277154,"d":"-1,277,313"},null,null,{"v":272.8755426464224,"d":"273"},{"v":32563.675786754204,"d":"32,564"}]
[null,null,{"v":-132809.18706506432,"d":"-132,809"},{"v":2586958.336310745,"d":"2,586,958"},{"v":5422753.370988036,"d":"5,422,753"},{"v":11544617.784559572,"d":"11,544,618"},{"v":36709378.37645286,"d":"36,709,378"},{"$f":"'Fixed Rate Proj'!V32","v":{"v":2689634.7388419313,"d":"2,689,635"}},{"v":-1754778.3655780847,"d":"-1,754,778"},null,null,{"v":-198.0942864624145,"d":"-198"},{"v":42366.62573363069,"d":"42,367"}]
[null,null,{"v":-458908.4480857542,"d":"-458,908"},{"v":2363974.840333872,"d":"2,363,975"},{"v":5105688.740407081,"d":"5,105,689"},{"v":12095228.719363132,"d":"12,095,229"},{"v":43420952.74984567,"d":"43,420,953"},{"$f":"'Fixed Rate Proj'!V33","v":{"v":2726160.9474270083,"d":"2,726,161"}},{"v":-2250007.290768755,"d":"-2,250,007"},null,null,{"v":-835.8468504273919,"d":"-836"},{"v":48212.71322381164,"d":"48,213"}]

{"sheet":"Random Years","index":8,"n_rows":47,"n_cols":100,"rows_kept":47}
[1,2,3,4,5,6,7,8,9,10,11,12,13,14,15,16,17,18,19,20,21,22,23,24,25,26,27,28,29,30,31,32,33,34,35,36,37,38,39,40,41,42,43,44,45,46,47,48,49,50,51,52,53,54,55,56,57,58,59,60,61,62,63,64,65,66,67,68,69,70,71,72,73,74,75,76,77,78,79,80,81,82,83,84,85,86,87,88,89,90,91,92,93,94,95,96,97,98,99,100]
[{"$f":"RANDBETWEEN(1928,2022)","v":1987},{"$f":"RANDBETWEEN(1928,2022)","v":2014},{"$f":"RANDBETWEEN(1928,2022)","v":1935},{"$f":"RANDBETWEEN(1928,2022)","v":2019},{"$f":"RANDBETWEEN(1928,2022)","v":1966},{"$f":"RANDBETWEEN(1928,2022)","v":2013},{"$f":"RANDBETWEEN(1928,2022)","v":1933},{"$f":"RANDBETWEEN(1928,2022)","v":1934},{"$f":"RANDBETWEEN(1928,2022)","v":2000},{"$f":"RANDBETWEEN(1928,2022)","v":2018},{"$f":"RANDBETWEEN(1928,2022)","v":1938},{"$f":"RANDBETWEEN(1928,2022)","v":1991},{"$f":"RANDBETWEEN(1928,2022)","v":1959},{"$f":"RANDBETWEEN(1928,2022)","v":2017},{"$f":"RANDBETWEEN(1928,2022)","v":2020},{"$f":"RANDBETWEEN(1928,2022)","v":2022},{"$f":"RANDBETWEEN(1928,2022)","v":2021},{"$f":"RANDBETWEEN(1928,2022)","v":1981},{"$f":"RANDBETWEEN(1928,2022)","v":1971},{"$f":"RANDBETWEEN(1928,2022)","v":1951},{"$f":"RANDBETWEEN(1928,2022)","v":1979},{"$f":"RANDBETWEEN(1928,2022)","v":1939},{"$f":"RANDBETWEEN(1928,2022)","v":1942},{"$f":"RANDBETWEEN(1928,2022)","v":1976},{"$f":"RANDBETWEEN(1928,2022)","v":2016},{"$f":"RANDBETWEEN(1928,2022)","v":1989},{"$f":"RANDBETWEEN(1928,2022)","v":1958},{"$f":"RANDBETWEEN(1928,2022)","v":1992},{"$f":"RANDBETWEEN(1928,2022)","v":1959},{"$f":"RANDBETWEEN(1928,2022)","v":2005},{"$f":"RANDBETWEEN(1928,2022)","v":1972},{"$f":"RANDBETWEEN(1928,2022)","v":1966},{"$f":"RANDBETWEEN(1928,2022)","v":1983},{"$f":"RANDBETWEEN(1928,2022)","v":1958},{"$f":"RANDBETWEEN(1928,2022)","v":1949},{"$f":"RANDBETWEEN(1928,2022)","v":2007},{"$f":"RANDBETWEEN(1928,2022)","v":1946},{"$f":"RANDBETWEEN(1928,2022)","v":1960},{"$f":"RANDBETWEEN(1928,2022)","v":1990},{"$f":"RANDBETWEEN(1928,2022)","v":1939},{"$f":"RANDBETWEEN(1928,2022)","v":1945},{"$f":"RANDBETWEEN(1928,2022)","v":1956},{"$f":"RANDBETWEEN(1928,2022)","v":2015},{"$f":"RANDBETWEEN(1928,2022)","v":2014},{"$f":"RANDBETWEEN(1928,2022)","v":1935},{"$f":"RANDBETWEEN(1928,2022)","v":1938},{"$f":"RANDBETWEEN(1928,2022)","v":1936},{"$f":"RANDBETWEEN(1928,2022)","v":2014},{"$f":"RANDBETWEEN(1928,2022)","v":2001},{"$f":"RANDBETWEEN(1928,2022)","v":2005},{"$f":"RANDBETWEEN(1928,2022)","v":1931},{"$f":"RANDBETWEEN(1928,2022)","v":2000},{"$f":"RANDBETWEEN(1928,2022)","v":1974},{"$f":"RANDBETWEEN(1928,2022)","v":2003},{"$f":"RANDBETWEEN(1928,2022)","v":2004},{"$f":"RANDBETWEEN(1928,2022)","v":2005},{"$f":"RANDBETWEEN(1928,2022)","v":1942},{"$f":"RANDBETWEEN(1928,2022)","v":1965},{"$f":"RANDBETWEEN(1928,2022)","v":2014},{"$f":"RANDBETWEEN(1928,2022)","v":1952},{"$f":"RANDBETWEEN(1928,2022)","v":1934},{"$f":"RANDBETWEEN(1928,2022)","v":1986},{"$f":"RANDBETWEEN(1928,2022)","v":2016},{"$f":"RANDBETWEEN(1928,2022)","v":1994},{"$f":"RANDBETWEEN(1928,2022)","v":1987},{"$f":"RANDBETWEEN(1928,2022)","v":2013},{"$f":"RANDBETWEEN(1928,2022)","v":2014},{"$f":"RANDBETWEEN(1928,2022)","v":1965},{"$f":"RANDBETWEEN(1928,2022)","v":2002},{"$f":"RANDBETWEEN(1928,2022)","v":1953},{"$f":"RANDBETWEEN(1928,2022)","v":1980},{"$f":"RANDBETWEEN(1928,2022)","v":1959},{"$f":"RANDBETWEEN(1928,2022)","v":1942},{"$f":"RANDBETWEEN(1928,2022)","v":1980},{"$f":"RANDBETWEEN(1928,2022)","v":2009},{"$f":"RANDBETWEEN(1928,2022)","v":1976},{"$f":"RANDBETWEEN(1928,2022)","v":2012},{"$f":"RANDBETWEEN(1928,2022)","v":2014},{"$f":"RANDBETWEEN(1928,2022)","v":1982},{"$f":"RANDBETWEEN(1928,2022)","v":2015},{"$f":"RANDBETWEEN(1928,2022)","v":1989},{"$f":"RANDBETWEEN(1928,2022)","v":1970},{"$f":"RANDBETWEEN(1928,2022)","v":1983},{"$f":"RANDBETWEEN(1928,2022)","v":2007},{"$f":"RANDBETWEEN(1928,2022)","v":1930},{"$f":"RANDBETWEEN(1928,2022)","v":1983},{"$f":"RANDBETWEEN(1928,2022)","v":1988},{"$f":"RANDBETWEEN(1928,2022)","v":1940},{"$f":"RANDBETWEEN(1928,2022)","v":1943},{"$f":"RANDBETWEEN(1928,2022)","v":2007},{"$f":"RANDBETWEEN(1928,2022)","v":1947},{"$f":"RANDBETWEEN(1928,2022)","v":1970},{"$f":"RANDBETWEEN(1928,2022)","v":1964},{"$f":"RANDBETWEEN(1928,2022)","v":1961},{"$f":"RANDBETWEEN(1928,2022)","v":1956},{"$f":"RANDBETWEEN(1928,2022)","v":1962},{"$f":"RANDBETWEEN(1928,2022)","v":1994},{"$f":"RANDBETWEEN(1928,2022)","v":1961},{"$f":"RANDBETWEEN(1928,2022)","v":1930},{"$f":"RANDBETWEEN(1928,2022)","v":2006}]
[{"$f":"RANDBETWEEN(1928,2022)","v":1969},{"$f":"RANDBETWEEN(1928,2022)","v":2010},{"$f":"RANDBETWEEN(1928,2022)","v":1999},{"$f":"RANDBETWEEN(1928,2022)","v":1936},{"$f":"RANDBETWEEN(1928,2022)","v":1928},{"$f":"RANDBETWEEN(1928,2022)","v":2000},{"$f":"RANDBETWEEN(1928,2022)","v":2003},{"$f":"RANDBETWEEN(1928,2022)","v":2002},{"$f":"RANDBETWEEN(1928,2022)","v":1985},{"$f":"RANDBETWEEN(1928,2022)","v":2013},{"$f":"RANDBETWEEN(1928,2022)","v":2021},{"$f":"RANDBETWEEN(1928,2022)","v":1974},{"$f":"RANDBETWEEN(1928,2022)","v":1981},{"$f":"RANDBETWEEN(1928,2022)","v":2001},{"$f":"RANDBETWEEN(1928,2022)","v":1994},{"$f":"RANDBETWEEN(1928,2022)","v":1983},{"$f":"RANDBETWEEN(1928,2022)","v":1930},{"$f":"RANDBETWEEN(1928,2022)","v":1974},{"$f":"RANDBETWEEN(1928,2022)","v":1962},{"$f":"RANDBETWEEN(1928,2022)","v":1978},{"$f":"RANDBETWEEN(1928,2022)","v":2009},{"$f":"RANDBETWEEN(1928,2022)","v":1943},{"$f":"RANDBETWEEN(1928,2022)","v":1962},{"$f":"RANDBETWEEN(1928,2022)","v":1938},{"$f":"RANDBETWEEN(1928,2022)","v":2010},{"$f":"RANDBETWEEN(1928,2022)","v":2006},{"$f":"RANDBETWEEN(1928,2022)","v":1928},{"$f":"RANDBETWEEN(1928,2022)","v":1978},{"$f":"RANDBETWEEN(1928,2022)","v":1979},{"$f":"RANDBETWEEN(1928,2022)","v":1942},{"$f":"RANDBETWEEN(1928,2022)","v":1964},{"$f":"RANDBETWEEN(1928,2022)","v":1944},{"$f":"RANDBETWEEN(1928,2022)","v":1991},{"$f":"RANDBETWEEN(1928,2022)","v":1960},{"$f":"RANDBETWEEN(1928,2022)","v":1971},{"$f":"RANDBETWEEN(1928,2022)","v":1974},{"$f":"RANDBETWEEN(1928,2022)","v":2018},{"$f":"RANDBETWEEN(1928,2022)","v":1975},{"$f":"RANDBETWEEN(1928,2022)","v":1996},{"$f":"RANDBETWEEN(1928,2022)","v":1961},{"$f":"RANDBETWEEN(1928,2022)","v":2001},{"$f":"RANDBETWEEN(1928,2022)","v":1952},{"$f":"RANDBETWEEN(1928,2022)","v":1993},{"$f":"RANDBETWEEN(1928,2022)","v":1953},{"$f":"RANDBETWEEN(1928,2022)","v":2021},{"$f":"RANDBETWEEN(1928,2022)","v":2002},{"$f":"RANDBETWEEN(1928,2022)","v":2001},{"$f":"RANDBETWEEN(1928,2022)","v":2006},{"$f":"RANDBETWEEN(1928,2022)","v":1992},{"$f":"RANDBETWEEN(1928,2022)","v":1999},{"$f":"RANDBETWEEN(1928,2022)","v":1969},{"$f":"RANDBETWEEN(1928,2022)","v":1969},{"$f":"RANDBETWEEN(1928,2022)","v":1998},{"$f":"RANDBETWEEN(1928,2022)","v":1951},{"$f":"RANDBETWEEN(1928,2022)","v":1993},{"$f":"RANDBETWEEN(1928,2022)","v":2001},{"$f":"RANDBETWEEN(1928,2022)","v":2022},{"$f":"RANDBETWEEN(1928,2022)","v":1944},{"$f":"RANDBETWEEN(1928,2022)","v":1948},{"$f":"RANDBETWEEN(1928,2022)","v":1966},{"$f":"RANDBETWEEN(1928,2022)","v":1939},{"$f":"RANDBETWEEN(1928,2022)","v":1978},{"$f":"RANDBETWEEN(1928,2022)","v":2022},{"$f":"RANDBETWEEN(1928,2022)","v":1968},{"$f":"RANDBETWEEN(1928,2022)","v":1946},{"$f":"RANDBETWEEN(1928,2022)","v":1960},{"$f":"RANDBETWEEN(1928,2022)","v":1928},{"$f":"RANDBETWEEN(1928,2022)","v":1999},{"$f":"RANDBETWEEN(1928,2022)","v":1928},{"$f":"RANDBETWEEN(1928,2022)","v":1974},{"$f":"RANDBETWEEN(1928,2022)","v":2002},{"$f":"RANDBETWEEN(1928,2022)","v":2012},{"$f":"RANDBETWEEN(1928,2022)","v":2008},{"$f":"RANDBETWEEN(1928,2022)","v":2001},{"$f":"RANDBETWEEN(1928,2022)","v":1958},{"$f":"RANDBETWEEN(1928,2022)","v":2006},{"$f":"RANDBETWEEN(1928,2022)","v":1975},{"$f":"RANDBETWEEN(1928,2022)","v":1992},{"$f":"RANDBETWEEN(1928,2022)","v":2021},{"$f":"RANDBETWEEN(1928,2022)","v":1995},{"$f":"RANDBETWEEN(1928,2022)","v":1958},{"$f":"RANDBETWEEN(1928,2022)","v":2019},{"$f":"RANDBETWEEN(1928,2022)","v":1934},{"$f":"RANDBETWEEN(1928,2022)","v":1936},{"$f":"RANDBETWEEN(1928,2022)","v":2014},{"$f":"RANDBETWEEN(1928,2022)","v":2004},{"$f":"RANDBETWEEN(1928,2022)","v":1937},{"$f":"RANDBETWEEN(1928,2022)","v":1935},{"$f":"RANDBETWEEN(1928,2022)","v":1952},{"$f":"RANDBETWEEN(1928,2022)","v":1949},{"$f":"RANDBETWEEN(1928,2022)","v":1950},{"$f":"RANDBETWEEN(1928,2022)","v":1972},{"$f":"RANDBETWEEN(1928,2022)","v":2005},{"$f":"RANDBETWEEN(1928,2022)","v":1967},{"$f":"RANDBETWEEN(1928,2022)","v":1928},{"$f":"RANDBETWEEN(1928,2022)","v":1978},{"$f":"RANDBETWEEN(1928,2022)","v":1985},{"$f":"RANDBETWEEN(1928,2022)","v":1936},{"$f":"RANDBETWEEN(1928,2022)","v":2012},{"$f":"RANDBETWEEN(1928,2022)","v":1994}]
[{"$f":"RANDBETWEEN(1928,2022)","v":1934},{"$f":"RANDBETWEEN(1928,2022)","v":1977},{"$f":"RANDBETWEEN(1928,2022)","v":1989},{"$f":"RANDBETWEEN(1928,2022)","v":1962},{"$f":"RANDBETWEEN(1928,2022)","v":1975},{"$f":"RANDBETWEEN(1928,2022)","v":1969},{"$f":"RANDBETWEEN(1928,2022)","v":1969},{"$f":"RANDBETWEEN(1928,2022)","v":1986},{"$f":"RANDBETWEEN(1928,2022)","v":1999},{"$f":"RANDBETWEEN(1928,2022)","v":1965},{"$f":"RANDBETWEEN(1928,2022)","v":2015},{"$f":"RANDBETWEEN(1928,2022)","v":1960},{"$f":"RANDBETWEEN(1928,2022)","v":1932},{"$f":"RANDBETWEEN(1928,2022)","v":1955},{"$f":"RANDBETWEEN(1928,2022)","v":1932},{"$f":"RANDBETWEEN(1928,2022)","v":1941},{"$f":"RANDBETWEEN(1928,2022)","v":1973},{"$f":"RANDBETWEEN(1928,2022)","v":1997},{"$f":"RANDBETWEEN(1928,2022)","v":1974},{"$f":"RANDBETWEEN(1928,2022)","v":1940},{"$f":"RANDBETWEEN(1928,2022)","v":1962},{"$f":"RANDBETWEEN(1928,2022)","v":1987},{"$f":"RANDBETWEEN(1928,2022)","v":1959},{"$f":"RANDBETWEEN(1928,2022)","v":2011},{"$f":"RANDBETWEEN(1928,2022)","v":1951},{"$f":"RANDBETWEEN(1928,2022)","v":1963},{"$f":"RANDBETWEEN(1928,2022)","v":1992},{"$f":"RANDBETWEEN(1928,2022)","v":1974},{"$f":"RANDBETWEEN(1928,2022)","v":1957},{"$f":"RANDBETWEEN(1928,2022)","v":1943},{"$f":"RANDBETWEEN(1928,2022)","v":1934},{"$f":"RANDBETWEEN(1928,2022)","v":1955},{"$f":"RANDBETWEEN(1928,2022)","v":1968},{"$f":"RANDBETWEEN(1928,2022)","v":1991},{"$f":"RANDBETWEEN(1928,2022)","v":1942},{"$f":"RANDBETWEEN(1928,2022)","v":1948},{"$f":"RANDBETWEEN(1928,2022)","v":1974},{"$f":"RANDBETWEEN(1928,2022)","v":1966},{"$f":"RANDBETWEEN(1928,2022)","v":1983},{"$f":"RANDBETWEEN(1928,2022)","v":1943},{"$f":"RANDBETWEEN(1928,2022)","v":1949},{"$f":"RANDBETWEEN(1928,2022)","v":1928},{"$f":"RANDBETWEEN(1928,2022)","v":2002},{"$f":"RANDBETWEEN(1928,2022)","v":1993},{"$f":"RANDBETWEEN(1928,2022)","v":2009},{"$f":"RANDBETWEEN(1928,2022)","v":1960},{"$f":"RANDBETWEEN(1928,2022)","v":1985},{"$f":"RANDBETWEEN(1928,2022)","v":2012},{"$f":"RANDBETWEEN(1928,2022)","v":2016},{"$f":"RANDBETWEEN(1928,2022)","v":1968},{"$f":"RANDBETWEEN(1928,2022)","v":1970},{"$f":"RANDBETWEEN(1928,2022)","v":1992},{"$f":"RANDBETWEEN(1928,2022)","v":1958},{"$f":"RANDBETWEEN(1928,2022)","v":1930},{"$f":"RANDBETWEEN(1928,2022)","v":1928},{"$f":"RANDBETWEEN(1928,2022)","v":1986},{"$f":"RANDBETWEEN(1928,2022)","v":1959},{"$f":"RANDBETWEEN(1928,2022)","v":1941},{"$f":"RANDBETWEEN(1928,2022)","v":1935},{"$f":"RANDBETWEEN(1928,2022)","v":1999},{"$f":"RANDBETWEEN(1928,2022)","v":1932},{"$f":"RANDBETWEEN(1928,2022)","v":1940},{"$f":"RANDBETWEEN(1928,2022)","v":2000},{"$f":"RANDBETWEEN(1928,2022)","v":2008},{"$f":"RANDBETWEEN(1928,2022)","v":2016},{"$f":"RANDBETWEEN(1928,2022)","v":2009},{"$f":"RANDBETWEEN(1928,2022)","v":1959},{"$f":"RANDBETWEEN(1928,2022)","v":1975},{"$f":"RANDBETWEEN(1928,2022)","v":1955},{"$f":"RANDBETWEEN(1928,2022)","v":2009},{"$f":"RANDBETWEEN(1928,2022)","v":1950},{"$f":"RANDBETWEEN(1928,2022)","v":1980},{"$f":"RANDBETWEEN(1928,2022)","v":2009},{"$f":"RANDBETWEEN(1928,2022)","v":1973},{"$f":"RANDBETWEEN(1928,2022)","v":2002},{"$f":"RANDBETWEEN(1928,2022)","v":1949},{"$f":"RANDBETWEEN(1928,2022)","v":1964},{"$f":"RANDBETWEEN(1928,2022)","v":1968},{"$f":"RANDBETWEEN(1928,2022)","v":1994},{"$f":"RANDBETWEEN(1928,2022)","v":1980},{"$f":"RANDBETWEEN(1928,2022)","v":1993},{"$f":"RANDBETWEEN(1928,2022)","v":1978},{"$f":"RANDBETWEEN(1928,2022)","v":1947},{"$f":"RANDBETWEEN(1928,2022)","v":2007},{"$f":"RANDBETWEEN(1928,2022)","v":1992},{"$f":"RANDBETWEEN(1928,2022)","v":1965},{"$f":"RANDBETWEEN(1928,2022)","v":1964},{"$f":"RANDBETWEEN(1928,2022)","v":1951},{"$f":"RANDBETWEEN(1928,2022)","v":1982},{"$f":"RANDBETWEEN(1928,2022)","v":1978},{"$f":"RANDBETWEEN(1928,2022)","v":2004},{"$f":"RANDBETWEEN(1928,2022)","v":1970},{"$f":"RANDBETWEEN(1928,2022)","v":1934},{"$f":"RANDBETWEEN(1928,2022)","v":2005},{"$f":"RANDBETWEEN(1928,2022)","v":2017},{"$f":"RANDBETWEEN(1928,2022)","v":1991},{"$f":"RANDBETWEEN(1928,2022)","v":1985},{"$f":"RANDBETWEEN(1928,2022)","v":1966},{"$f":"RANDBETWEEN(1928,2022)","v":1964},{"$f":"RANDBETWEEN(1928,2022)","v":1972}]
[{"$f":"RANDBETWEEN(1928,2022)","v":1951},{"$f":"RANDBETWEEN(1928,2022)","v":1976},{"$f":"RANDBETWEEN(1928,2022)","v":1944},{"$f":"RANDBETWEEN(1928,2022)","v":1995},{"$f":"RANDBETWEEN(1928,2022)","v":1946},{"$f":"RANDBETWEEN(1928,2022)","v":1989},{"$f":"RANDBETWEEN(1928,2022)","v":1962},{"$f":"RANDBETWEEN(1928,2022)","v":1985},{"$f":"RANDBETWEEN(1928,2022)","v":1989},{"$f":"RANDBETWEEN(1928,2022)","v":1961},{"$f":"RANDBETWEEN(1928,2022)","v":2022},{"$f":"RANDBETWEEN(1928,2022)","v":1931},{"$f":"RANDBETWEEN(1928,2022)","v":1993},{"$f":"RANDBETWEEN(1928,2022)","v":1931},{"$f":"RANDBETWEEN(1928,2022)","v":1959},{"$f":"RANDBETWEEN(1928,2022)","v":1954},{"$f":"RANDBETWEEN(1928,2022)","v":1938},{"$f":"RANDBETWEEN(1928,2022)","v":1965},{"$f":"RANDBETWEEN(1928,2022)","v":1989},{"$f":"RANDBETWEEN(1928,2022)","v":1997},{"$f":"RANDBETWEEN(1928,2022)","v":2003},{"$f":"RANDBETWEEN(1928,2022)","v":1992},{"$f":"RANDBETWEEN(1928,2022)","v":2022},{"$f":"RANDBETWEEN(1928,2022)","v":1976},{"$f":"RANDBETWEEN(1928,2022)","v":1985},{"$f":"RANDBETWEEN(1928,2022)","v":1932},{"$f":"RANDBETWEEN(1928,2022)","v":1980},{"$f":"RANDBETWEEN(1928,2022)","v":1998},{"$f":"RANDBETWEEN(1928,2022)","v":2001},{"$f":"RANDBETWEEN(1928,2022)","v":1952},{"$f":"RANDBETWEEN(1928,2022)","v":1979},{"$f":"RANDBETWEEN(1928,2022)","v":2014},{"$f":"RANDBETWEEN(1928,2022)","v":1997},{"$f":"RANDBETWEEN(1928,2022)","v":1941},{"$f":"RANDBETWEEN(1928,2022)","v":2014},{"$f":"RANDBETWEEN(1928,2022)","v":1933},{"$f":"RANDBETWEEN(1928,2022)","v":2017},{"$f":"RANDBETWEEN(1928,2022)","v":1951},{"$f":"RANDBETWEEN(1928,2022)","v":1945},{"$f":"RANDBETWEEN(1928,2022)","v":1935},{"$f":"RANDBETWEEN(1928,2022)","v":1946},{"$f":"RANDBETWEEN(1928,2022)","v":1965},{"$f":"RANDBETWEEN(1928,2022)","v":1973},{"$f":"RANDBETWEEN(1928,2022)","v":1962},{"$f":"RANDBETWEEN(1928,2022)","v":1970},{"$f":"RANDBETWEEN(1928,2022)","v":2022},{"$f":"RANDBETWEEN(1928,2022)","v":1952},{"$f":"RANDBETWEEN(1928,2022)","v":1972},{"$f":"RANDBETWEEN(1928,2022)","v":2021},{"$f":"RANDBETWEEN(1928,2022)","v":1973},{"$f":"RANDBETWEEN(1928,2022)","v":2015},{"$f":"RANDBETWEEN(1928,2022)","v":1999},{"$f":"RANDBETWEEN(1928,2022)","v":1978},{"$f":"RANDBETWEEN(1928,2022)","v":2012},{"$f":"RANDBETWEEN(1928,2022)","v":1978},{"$f":"RANDBETWEEN(1928,2022)","v":1989},{"$f":"RANDBETWEEN(1928,2022)","v":1972},{"$f":"RANDBETWEEN(1928,2022)","v":1984},{"$f":"RANDBETWEEN(1928,2022)","v":1991},{"$f":"RANDBETWEEN(1928,2022)","v":1970},{"$f":"RANDBETWEEN(1928,2022)","v":1972},{"$f":"RANDBETWEEN(1928,2022)","v":2021},{"$f":"RANDBETWEEN(1928,2022)","v":1994},{"$f":"RANDBETWEEN(1928,2022)","v":1983},{"$f":"RANDBETWEEN(1928,2022)","v":1980},{"$f":"RANDBETWEEN(1928,2022)","v":2020},{"$f":"RANDBETWEEN(1928,2022)","v":2007},{"$f":"RANDBETWEEN(1928,2022)","v":1933},{"$f":"RANDBETWEEN(1928,2022)","v":1964},{"$f":"RANDBETWEEN(1928,2022)","v":1999},{"$f":"RANDBETWEEN(1928,2022)","v":1984},{"$f":"RANDBETWEEN(1928,2022)","v":1959},{"$f":"RANDBETWEEN(1928,2022)","v":1993},{"$f":"RANDBETWEEN(1928,2022)","v":1934},{"$f":"RANDBETWEEN(1928,2022)","v":1996},{"$f":"RANDBETWEEN(1928,2022)","v":2016},{"$f":"RANDBETWEEN(1928,2022)","v":1986},{"$f":"RANDBETWEEN(1928,2022)","v":1967},{"$f":"RANDBETWEEN(1928,2022)","v":1974},{"$f":"RANDBETWEEN(1928,2022)","v":1995},{"$f":"RANDBETWEEN(1928,2022)","v":1951},{"$f":"RANDBETWEEN(1928,2022)","v":1989},{"$f":"RANDBETWEEN(1928,2022)","v":1930},{"$f":"RANDBETWEEN(1928,2022)","v":1965},{"$f":"RANDBETWEEN(1928,2022)","v":1963},{"$f":"RANDBETWEEN(1928,2022)","v":2020},{"$f":"RANDBETWEEN(1928,2022)","v":2018},{"$f":"RANDBETWEEN(1928,2022)","v":1960},{"$f":"RANDBETWEEN(1928,2022)","v":1959},{"$f":"RANDBETWEEN(1928,2022)","v":2003},{"$f":"RANDBETWEEN(1928,2022)","v":1954},{"$f":"RANDBETWEEN(1928,2022)","v":1979},{"$f":"RANDBETWEEN(1928,2022)","v":1946},{"$f":"RANDBETWEEN(1928,2022)","v":2021},{"$f":"RANDBETWEEN(1928,2022)","v":2012},{"$f":"RANDBETWEEN(1928,2022)","v":1978},{"$f":"RANDBETWEEN(1928,2022)","v":1986},{"$f":"RANDBETWEEN(1928,2022)","v":1978},{"$f":"RANDBETWEEN(1928,2022)","v":1929},{"$f":"RANDBETWEEN(1928,2022)","v":1939}]
[{"$f":"RANDBETWEEN(1928,2022)","v":2020},{"$f":"RANDBETWEEN(1928,2022)","v":2015},{"$f":"RANDBETWEEN(1928,2022)","v":1938},{"$f":"RANDBETWEEN(1928,2022)","v":1978},{"$f":"RANDBETWEEN(1928,2022)","v":2011},{"$f":"RANDBETWEEN(1928,2022)","v":1955},{"$f":"RANDBETWEEN(1928,2022)","v":1929},{"$f":"RANDBETWEEN(1928,2022)","v":1981},{"$f":"RANDBETWEEN(1928,2022)","v":1978},{"$f":"RANDBETWEEN(1928,2022)","v":2019},{"$f":"RANDBETWEEN(1928,2022)","v":1976},{"$f":"RANDBETWEEN(1928,2022)","v":1963},{"$f":"RANDBETWEEN(1928,2022)","v":1982},{"$f":"RANDBETWEEN(1928,2022)","v":1940},{"$f":"RANDBETWEEN(1928,2022)","v":2002},{"$f":"RANDBETWEEN(1928,2022)","v":2008},{"$f":"RANDBETWEEN(1928,2022)","v":1928},{"$f":"RANDBETWEEN(1928,2022)","v":1972},{"$f":"RANDBETWEEN(1928,2022)","v":1970},{"$f":"RANDBETWEEN(1928,2022)","v":1935},{"$f":"RANDBETWEEN(1928,2022)","v":1984},{"$f":"RANDBETWEEN(1928,2022)","v":2002},{"$f":"RANDBETWEEN(1928,2022)","v":1953},{"$f":"RANDBETWEEN(1928,2022)","v":2008},{"$f":"RANDBETWEEN(1928,2022)","v":1931},{"$f":"RANDBETWEEN(1928,2022)","v":1962},{"$f":"RANDBETWEEN(1928,2022)","v":1950},{"$f":"RANDBETWEEN(1928,2022)","v":1947},{"$f":"RANDBETWEEN(1928,2022)","v":1937},{"$f":"RANDBETWEEN(1928,2022)","v":1936},{"$f":"RANDBETWEEN(1928,2022)","v":2020},{"$f":"RANDBETWEEN(1928,2022)","v":1959},{"$f":"RANDBETWEEN(1928,2022)","v":2014},{"$f":"RANDBETWEEN(1928,2022)","v":1993},{"$f":"RANDBETWEEN(1928,2022)","v":1937},{"$f":"RANDBETWEEN(1928,2022)","v":1996},{"$f":"RANDBETWEEN(1928,2022)","v":1947},{"$f":"RANDBETWEEN(1928,2022)","v":1961},{"$f":"RANDBETWEEN(1928,2022)","v":1981},{"$f":"RANDBETWEEN(1928,2022)","v":1957},{"$f":"RANDBETWEEN(1928,2022)","v":2022},{"$f":"RANDBETWEEN(1928,2022)","v":1967},{"$f":"RANDBETWEEN(1928,2022)","v":1992},{"$f":"RANDBETWEEN(1928,2022)","v":1972},{"$f":"RANDBETWEEN(1928,2022)","v":1974},{"$f":"RANDBETWEEN(1928,2022)","v":2014},{"$f":"RANDBETWEEN(1928,2022)","v":1977},{"$f":"RANDBETWEEN(1928,2022)","v":1999},{"$f":"RANDBETWEEN(1928,2022)","v":1933},{"$f":"RANDBETWEEN(1928,2022)","v":2001},{"$f":"RANDBETWEEN(1928,2022)","v":1966},{"$f":"RANDBETWEEN(1928,2022)","v":1965},{"$f":"RANDBETWEEN(1928,2022)","v":1981},{"$f":"RANDBETWEEN(1928,2022)","v":1958},{"$f":"RANDBETWEEN(1928,2022)","v":1963},{"$f":"RANDBETWEEN(1928,2022)","v":2007},{"$f":"RANDBETWEEN(1928,2022)","v":1962},{"$f":"RANDBETWEEN(1928,2022)","v":1946},{"$f":"RANDBETWEEN(1928,2022)","v":1952},{"$f":"RANDBETWEEN(1928,2022)","v":1979},{"$f":"RANDBETWEEN(1928,2022)","v":1948},{"$f":"RANDBETWEEN(1928,2022)","v":1937},{"$f":"RANDBETWEEN(1928,2022)","v":1993},{"$f":"RANDBETWEEN(1928,2022)","v":1995},{"$f":"RANDBETWEEN(1928,2022)","v":1981},{"$f":"RANDBETWEEN(1928,2022)","v":1936},{"$f":"RANDBETWEEN(1928,2022)","v":1953},{"$f":"RANDBETWEEN(1928,2022)","v":1973},{"$f":"RANDBETWEEN(1928,2022)","v":1990},{"$f":"RANDBETWEEN(1928,2022)","v":1997},{"$f":"RANDBETWEEN(1928,2022)","v":2008},{"$f":"RANDBETWEEN(1928,2022)","v":2016},{"$f":"RANDBETWEEN(1928,2022)","v":2018},{"$f":"RANDBETWEEN(1928,2022)","v":1985},{"$f":"RANDBETWEEN(1928,2022)","v":1945},{"$f":"RANDBETWEEN(1928,2022)","v":1937},{"$f":"RANDBETWEEN(1928,2022)","v":1938},{"$f":"RANDBETWEEN(1928,2022)","v":1934},{"$f":"RANDBETWEEN(1928,2022)","v":2014},{"$f":"RANDBETWEEN(1928,2022)","v":2015},{"$f":"RANDBETWEEN(1928,2022)","v":2013},{"$f":"RANDBETWEEN(1928,2022)","v":1946},{"$f":"RANDBETWEEN(1928,2022)","v":1933},{"$f":"RANDBETWEEN(1928,2022)","v":1979},{"$f":"RANDBETWEEN(1928,2022)","v":1985},{"$f":"RANDBETWEEN(1928,2022)","v":2004},{"$f":"RANDBETWEEN(1928,2022)","v":2020},{"$f":"RANDBETWEEN(1928,2022)","v":2006},{"$f":"RANDBETWEEN(1928,2022)","v":1997},{"$f":"RANDBETWEEN(1928,2022)","v":1929},{"$f":"RANDBETWEEN(1928,2022)","v":1989},{"$f":"RANDBETWEEN(1928,2022)","v":1957},{"$f":"RANDBETWEEN(1928,2022)","v":1984},{"$f":"RANDBETWEEN(1928,2022)","v":1959},{"$f":"RANDBETWEEN(1928,2022)","v":1939},{"$f":"RANDBETWEEN(1928,2022)","v":1980},{"$f":"RANDBETWEEN(1928,2022)","v":1982},{"$f":"RANDBETWEEN(1928,2022)","v":2022},{"$f":"RANDBETWEEN(1928,2022)","v":1973},{"$f":"RANDBETWEEN(1928,2022)","v":1997}]
[{"$f":"RANDBETWEEN(1928,2022)","v":1930},{"$f":"RANDBETWEEN(1928,2022)","v":1973},{"$f":"RANDBETWEEN(1928,2022)","v":2022},{"$f":"RANDBETWEEN(1928,2022)","v":1982},{"$f":"RANDBETWEEN(1928,2022)","v":1950},{"$f":"RANDBETWEEN(1928,2022)","v":1976},{"$f":"RANDBETWEEN(1928,2022)","v":1984},{"$f":"RANDBETWEEN(1928,2022)","v":1975},{"$f":"RANDBETWEEN(1928,2022)","v":1983},{"$f":"RANDBETWEEN(1928,2022)","v":1939},{"$f":"RANDBETWEEN(1928,2022)","v":2020},{"$f":"RANDBETWEEN(1928,2022)","v":1969},{"$f":"RANDBETWEEN(1928,2022)","v":1943},{"$f":"RANDBETWEEN(1928,2022)","v":1960},{"$f":"RANDBETWEEN(1928,2022)","v":1995},{"$f":"RANDBETWEEN(1928,2022)","v":1968},{"$f":"RANDBETWEEN(1928,2022)","v":1944},{"$f":"RANDBETWEEN(1928,2022)","v":1986},{"$f":"RANDBETWEEN(1928,2022)","v":1939},{"$f":"RANDBETWEEN(1928,2022)","v":1976},{"$f":"RANDBETWEEN(1928,2022)","v":1981},{"$f":"RANDBETWEEN(1928,2022)","v":1980},{"$f":"RANDBETWEEN(1928,2022)","v":2009},{"$f":"RANDBETWEEN(1928,2022)","v":1967},{"$f":"RANDBETWEEN(1928,2022)","v":1955},{"$f":"RANDBETWEEN(1928,2022)","v":2014},{"$f":"RANDBETWEEN(1928,2022)","v":1963},{"$f":"RANDBETWEEN(1928,2022)","v":2004},{"$f":"RANDBETWEEN(1928,2022)","v":1964},{"$f":"RANDBETWEEN(1928,2022)","v":2019},{"$f":"RANDBETWEEN(1928,2022)","v":1954},{"$f":"RANDBETWEEN(1928,2022)","v":1966},{"$f":"RANDBETWEEN(1928,2022)","v":1999},{"$f":"RANDBETWEEN(1928,2022)","v":1964},{"$f":"RANDBETWEEN(1928,2022)","v":1982},{"$f":"RANDBETWEEN(1928,2022)","v":2021},{"$f":"RANDBETWEEN(1928,2022)","v":1970},{"$f":"RANDBETWEEN(1928,2022)","v":1999},{"$f":"RANDBETWEEN(1928,2022)","v":1969},{"$f":"RANDBETWEEN(1928,2022)","v":1939},{"$f":"RANDBETWEEN(1928,2022)","v":1980},{"$f":"RANDBETWEEN(1928,2022)","v":1947},{"$f":"RANDBETWEEN(1928,2022)","v":1971},{"$f":"RANDBETWEEN(1928,2022)","v":1962},{"$f":"RANDBETWEEN(1928,2022)","v":1987},{"$f":"RANDBETWEEN(1928,2022)","v":1951},{"$f":"RANDBETWEEN(1928,2022)","v":2008},{"$f":"RANDBETWEEN(1928,2022)","v":2016},{"$f":"RANDBETWEEN(1928,2022)","v":2021},{"$f":"RANDBETWEEN(1928,2022)","v":1963},{"$f":"RANDBETWEEN(1928,2022)","v":1978},{"$f":"RANDBETWEEN(1928,2022)","v":1984},{"$f":"RANDBETWEEN(1928,2022)","v":1982},{"$f":"RANDBETWEEN(1928,2022)","v":2004},{"$f":"RANDBETWEEN(1928,2022)","v":1971},{"$f":"RANDBETWEEN(1928,2022)","v":1930},{"$f":"RANDBETWEEN(1928,2022)","v":1940},{"$f":"RANDBETWEEN(1928,2022)","v":1936},{"$f":"RANDBETWEEN(1928,2022)","v":1929},{"$f":"RANDBETWEEN(1928,2022)","v":1956},{"$f":"RANDBETWEEN(1928,2022)","v":1979},{"$f":"RANDBETWEEN(1928,2022)","v":1975},{"$f":"RANDBETWEEN(1928,2022)","v":1987},{"$f":"RANDBETWEEN(1928,2022)","v":2021},{"$f":"RANDBETWEEN(1928,2022)","v":1950},{"$f":"RANDBETWEEN(1928,2022)","v":1983},{"$f":"RANDBETWEEN(1928,2022)","v":1952},{"$f":"RANDBETWEEN(1928,2022)","v":1999},{"$f":"RANDBETWEEN(1928,2022)","v":1934},{"$f":"RANDBETWEEN(1928,2022)","v":2022},{"$f":"RANDBETWEEN(1928,2022)","v":1970},{"$f":"RANDBETWEEN(1928,2022)","v":2015},{"$f":"RANDBETWEEN(1928,2022)","v":2005},{"$f":"RANDBETWEEN(1928,2022)","v":1972},{"$f":"RANDBETWEEN(1928,2022)","v":2006},{"$f":"RANDBETWEEN(1928,2022)","v":1951},{"$f":"RANDBETWEEN(1928,2022)","v":1986},{"$f":"RANDBETWEEN(1928,2022)","v":2001},{"$f":"RANDBETWEEN(1928,2022)","v":2004},{"$f":"RANDBETWEEN(1928,2022)","v":2010},{"$f":"RANDBETWEEN(1928,2022)","v":2000},{"$f":"RANDBETWEEN(1928,2022)","v":1952},{"$f":"RANDBETWEEN(1928,2022)","v":1951},{"$f":"RANDBETWEEN(1928,2022)","v":1991},{"$f":"RANDBETWEEN(1928,2022)","v":1973},{"$f":"RANDBETWEEN(1928,2022)","v":1998},{"$f":"RANDBETWEEN(1928,2022)","v":2014},{"$f":"RANDBETWEEN(1928,2022)","v":1938},{"$f":"RANDBETWEEN(1928,2022)","v":2013},{"$f":"RANDBETWEEN(1928,2022)","v":1943},{"$f":"RANDBETWEEN(1928,2022)","v":1986},{"$f":"RANDBETWEEN(1928,2022)","v":1980},{"$f":"RANDBETWEEN(1928,2022)","v":2017},{"$f":"RANDBETWEEN(1928,2022)","v":1943},{"$f":"RANDBETWEEN(1928,2022)","v":2006},{"$f":"RANDBETWEEN(1928,2022)","v":1969},{"$f":"RANDBETWEEN(1928,2022)","v":1943},{"$f":"RANDBETWEEN(1928,2022)","v":1958},{"$f":"RANDBETWEEN(1928,2022)","v":1939},{"$f":"RANDBETWEEN(1928,2022)","v":1958}]
[{"$f":"RANDBETWEEN(1928,2022)","v":2010},{"$f":"RANDBETWEEN(1928,2022)","v":2015},{"$f":"RANDBETWEEN(1928,2022)","v":2009},{"$f":"RANDBETWEEN(1928,2022)","v":1956},{"$f":"RANDBETWEEN(1928,2022)","v":1958},{"$f":"RANDBETWEEN(1928,2022)","v":1953},{"$f":"RANDBETWEEN(1928,2022)","v":2020},{"$f":"RANDBETWEEN(1928,2022)","v":1981},{"$f":"RANDBETWEEN(1928,2022)","v":2014},{"$f":"RANDBETWEEN(1928,2022)","v":1982},{"$f":"RANDBETWEEN(1928,2022)","v":1983},{"$f":"RANDBETWEEN(1928,2022)","v":1971},{"$f":"RANDBETWEEN(1928,2022)","v":1948},{"$f":"RANDBETWEEN(1928,2022)","v":1998},{"$f":"RANDBETWEEN(1928,2022)","v":1941},{"$f":"RANDBETWEEN(1928,2022)","v":1991},{"$f":"RANDBETWEEN(1928,2022)","v":1933},{"$f":"RANDBETWEEN(1928,2022)","v":1978},{"$f":"RANDBETWEEN(1928,2022)","v":2016},{"$f":"RANDBETWEEN(1928,2022)","v":1949},{"$f":"RANDBETWEEN(1928,2022)","v":1963},{"$f":"RANDBETWEEN(1928,2022)","v":1942},{"$f":"RANDBETWEEN(1928,2022)","v":1951},{"$f":"RANDBETWEEN(1928,2022)","v":1966},{"$f":"RANDBETWEEN(1928,2022)","v":1979},{"$f":"RANDBETWEEN(1928,2022)","v":2015},{"$f":"RANDBETWEEN(1928,2022)","v":1974},{"$f":"RANDBETWEEN(1928,2022)","v":1997},{"$f":"RANDBETWEEN(1928,2022)","v":1966},{"$f":"RANDBETWEEN(1928,2022)","v":1989},{"$f":"RANDBETWEEN(1928,2022)","v":1952},{"$f":"RANDBETWEEN(1928,2022)","v":2006},{"$f":"RANDBETWEEN(1928,2022)","v":1978},{"$f":"RANDBETWEEN(1928,2022)","v":1970},{"$f":"RANDBETWEEN(1928,2022)","v":1929},{"$f":"RANDBETWEEN(1928,2022)","v":1935},{"$f":"RANDBETWEEN(1928,2022)","v":1973},{"$f":"RANDBETWEEN(1928,2022)","v":1976},{"$f":"RANDBETWEEN(1928,2022)","v":1994},{"$f":"RANDBETWEEN(1928,2022)","v":1935},{"$f":"RANDBETWEEN(1928,2022)","v":1964},{"$f":"RANDBETWEEN(1928,2022)","v":2014},{"$f":"RANDBETWEEN(1928,2022)","v":1976},{"$f":"RANDBETWEEN(1928,2022)","v":1973},{"$f":"RANDBETWEEN(1928,2022)","v":1991},{"$f":"RANDBETWEEN(1928,2022)","v":2019},{"$f":"RANDBETWEEN(1928,2022)","v":1973},{"$f":"RANDBETWEEN(1928,2022)","v":1956},{"$f":"RANDBETWEEN(1928,2022)","v":1939},{"$f":"RANDBETWEEN(1928,2022)","v":1934},{"$f":"RANDBETWEEN(1928,2022)","v":1983},{"$f":"RANDBETWEEN(1928,2022)","v":1959},{"$f":"RANDBETWEEN(1928,2022)","v":1959},{"$f":"RANDBETWEEN(1928,2022)","v":2013},{"$f":"RANDBETWEEN(1928,2022)","v":1937},{"$f":"RANDBETWEEN(1928,2022)","v":1977},{"$f":"RANDBETWEEN(1928,2022)","v":1999},{"$f":"RANDBETWEEN(1928,2022)","v":1951},{"$f":"RANDBETWEEN(1928,2022)","v":1933},{"$f":"RANDBETWEEN(1928,2022)","v":2014},{"$f":"RANDBETWEEN(1928,2022)","v":1948},{"$f":"RANDBETWEEN(1928,2022)","v":2017},{"$f":"RANDBETWEEN(1928,2022)","v":1943},{"$f":"RANDBETWEEN(1928,2022)","v":1976},{"$f":"RANDBETWEEN(1928,2022)","v":2022},{"$f":"RANDBETWEEN(1928,2022)","v":1932},{"$f":"RANDBETWEEN(1928,2022)","v":1993},{"$f":"RANDBETWEEN(1928,2022)","v":1935},{"$f":"RANDBETWEEN(1928,2022)","v":1954},{"$f":"RANDBETWEEN(1928,2022)","v":1989},{"$f":"RANDBETWEEN(1928,2022)","v":1962},{"$f":"RANDBETWEEN(1928,2022)","v":2022},{"$f":"RANDBETWEEN(1928,2022)","v":1988},{"$f":"RANDBETWEEN(1928,2022)","v":1944},{"$f":"RANDBETWEEN(1928,2022)","v":1981},{"$f":"RANDBETWEEN(1928,2022)","v":2022},{"$f":"RANDBETWEEN(1928,2022)","v":1962},{"$f":"RANDBETWEEN(1928,2022)","v":1930},{"$f":"RANDBETWEEN(1928,2022)","v":1945},{"$f":"RANDBETWEEN(1928,2022)","v":2018},{"$f":"RANDBETWEEN(1928,2022)","v":1950},{"$f":"RANDBETWEEN(1928,2022)","v":1964},{"$f":"RANDBETWEEN(1928,2022)","v":1944},{"$f":"RANDBETWEEN(1928,2022)","v":1984},{"$f":"RANDBETWEEN(1928,2022)","v":1982},{"$f":"RANDBETWEEN(1928,2022)","v":1985},{"$f":"RANDBETWEEN(1928,2022)","v":2016},{"$f":"RANDBETWEEN(1928,2022)","v":1986},{"$f":"RANDBETWEEN(1928,2022)","v":1939},{"$f":"RANDBETWEEN(1928,2022)","v":2014},{"$f":"RANDBETWEEN(1928,2022)","v":1997},{"$f":"RANDBETWEEN(1928,2022)","v":2018},{"$f":"RANDBETWEEN(1928,2022)","v":1939},{"$f":"RANDBETWEEN(1928,2022)","v":1978},{"$f":"RANDBETWEEN(1928,2022)","v":1952},{"$f":"RANDBETWEEN(1928,2022)","v":2022},{"$f":"RANDBETWEEN(1928,2022)","v":2003},{"$f":"RANDBETWEEN(1928,2022)","v":2003},{"$f":"RANDBETWEEN(1928,2022)","v":1979},{"$f":"RANDBETWEEN(1928,2022)","v":1969}]
[{"$f":"RANDBETWEEN(1928,2022)","v":1982},{"$f":"RANDBETWEEN(1928,2022)","v":1949},{"$f":"RANDBETWEEN(1928,2022)","v":1959},{"$f":"RANDBETWEEN(1928,2022)","v":1933},{"$f":"RANDBETWEEN(1928,2022)","v":2010},{"$f":"RANDBETWEEN(1928,2022)","v":1941},{"$f":"RANDBETWEEN(1928,2022)","v":2018},{"$f":"RANDBETWEEN(1928,2022)","v":1941},{"$f":"RANDBETWEEN(1928,2022)","v":1989},{"$f":"RANDBETWEEN(1928,2022)","v":1940},{"$f":"RANDBETWEEN(1928,2022)","v":1956},{"$f":"RANDBETWEEN(1928,2022)","v":1963},{"$f":"RANDBETWEEN(1928,2022)","v":1996},{"$f":"RANDBETWEEN(1928,2022)","v":1933},{"$f":"RANDBETWEEN(1928,2022)","v":1952},{"$f":"RANDBETWEEN(1928,2022)","v":1939},{"$f":"RANDBETWEEN(1928,2022)","v":1953},{"$f":"RANDBETWEEN(1928,2022)","v":1977},{"$f":"RANDBETWEEN(1928,2022)","v":1999},{"$f":"RANDBETWEEN(1928,2022)","v":2016},{"$f":"RANDBETWEEN(1928,2022)","v":1986},{"$f":"RANDBETWEEN(1928,2022)","v":1974},{"$f":"RANDBETWEEN(1928,2022)","v":2004},{"$f":"RANDBETWEEN(1928,2022)","v":1940},{"$f":"RANDBETWEEN(1928,2022)","v":1946},{"$f":"RANDBETWEEN(1928,2022)","v":1994},{"$f":"RANDBETWEEN(1928,2022)","v":1931},{"$f":"RANDBETWEEN(1928,2022)","v":1987},{"$f":"RANDBETWEEN(1928,2022)","v":2005},{"$f":"RANDBETWEEN(1928,2022)","v":1967},{"$f":"RANDBETWEEN(1928,2022)","v":1986},{"$f":"RANDBETWEEN(1928,2022)","v":2007},{"$f":"RANDBETWEEN(1928,2022)","v":1994},{"$f":"RANDBETWEEN(1928,2022)","v":1994},{"$f":"RANDBETWEEN(1928,2022)","v":1935},{"$f":"RANDBETWEEN(1928,2022)","v":1971},{"$f":"RANDBETWEEN(1928,2022)","v":1979},{"$f":"RANDBETWEEN(1928,2022)","v":1984},{"$f":"RANDBETWEEN(1928,2022)","v":1981},{"$f":"RANDBETWEEN(1928,2022)","v":1973},{"$f":"RANDBETWEEN(1928,2022)","v":2021},{"$f":"RANDBETWEEN(1928,2022)","v":1977},{"$f":"RANDBETWEEN(1928,2022)","v":1949},{"$f":"RANDBETWEEN(1928,2022)","v":1938},{"$f":"RANDBETWEEN(1928,2022)","v":1972},{"$f":"RANDBETWEEN(1928,2022)","v":2020},{"$f":"RANDBETWEEN(1928,2022)","v":2006},{"$f":"RANDBETWEEN(1928,2022)","v":1985},{"$f":"RANDBETWEEN(1928,2022)","v":1992},{"$f":"RANDBETWEEN(1928,2022)","v":2004},{"$f":"RANDBETWEEN(1928,2022)","v":2013},{"$f":"RANDBETWEEN(1928,2022)","v":1928},{"$f":"RANDBETWEEN(1928,2022)","v":1951},{"$f":"RANDBETWEEN(1928,2022)","v":1928},{"$f":"RANDBETWEEN(1928,2022)","v":2002},{"$f":"RANDBETWEEN(1928,2022)","v":1969},{"$f":"RANDBETWEEN(1928,2022)","v":1993},{"$f":"RANDBETWEEN(1928,2022)","v":1930},{"$f":"RANDBETWEEN(1928,2022)","v":1970},{"$f":"RANDBETWEEN(1928,2022)","v":1977},{"$f":"RANDBETWEEN(1928,2022)","v":2012},{"$f":"RANDBETWEEN(1928,2022)","v":1975},{"$f":"RANDBETWEEN(1928,2022)","v":1957},{"$f":"RANDBETWEEN(1928,2022)","v":1938},{"$f":"RANDBETWEEN(1928,2022)","v":2005},{"$f":"RANDBETWEEN(1928,2022)","v":1929},{"$f":"RANDBETWEEN(1928,2022)","v":1944},{"$f":"RANDBETWEEN(1928,2022)","v":1993},{"$f":"RANDBETWEEN(1928,2022)","v":1966},{"$f":"RANDBETWEEN(1928,2022)","v":1948},{"$f":"RANDBETWEEN(1928,2022)","v":1979},{"$f":"RANDBETWEEN(1928,2022)","v":1944},{"$f":"RANDBETWEEN(1928,2022)","v":1953},{"$f":"RANDBETWEEN(1928,2022)","v":2016},{"$f":"RANDBETWEEN(1928,2022)","v":1967},{"$f":"RANDBETWEEN(1928,2022)","v":1951},{"$f":"RANDBETWEEN(1928,2022)","v":1932},{"$f":"RANDBETWEEN(1928,2022)","v":1930},{"$f":"RANDBETWEEN(1928,2022)","v":1993},{"$f":"RANDBETWEEN(1928,2022)","v":1939},{"$f":"RANDBETWEEN(1928,2022)","v":1946},{"$f":"RANDBETWEEN(1928,2022)","v":1974},{"$f":"RANDBETWEEN(1928,2022)","v":1991},{"$f":"RANDBETWEEN(1928,2022)","v":2005},{"$f":"RANDBETWEEN(1928,2022)","v":2008},{"$f":"RANDBETWEEN(1928,2022)","v":1968},{"$f":"RANDBETWEEN(1928,2022)","v":1991},{"$f":"RANDBETWEEN(1928,2022)","v":2016},{"$f":"RANDBETWEEN(1928,2022)","v":1955},{"$f":"RANDBETWEEN(1928,2022)","v":1995},{"$f":"RANDBETWEEN(1928,2022)","v":1940},{"$f":"RANDBETWEEN(1928,2022)","v":2008},{"$f":"RANDBETWEEN(1928,2022)","v":1978},{"$f":"RANDBETWEEN(1928,2022)","v":1954},{"$f":"RANDBETWEEN(1928,2022)","v":1930},{"$f":"RANDBETWEEN(1928,2022)","v":1964},{"$f":"RANDBETWEEN(1928,2022)","v":1932},{"$f":"RANDBETWEEN(1928,2022)","v":1956},{"$f":"RANDBETWEEN(1928,2022)","v":1928},{"$f":"RANDBETWEEN(1928,2022)","v":1932}]
[{"$f":"RANDBETWEEN(1928,2022)","v":1979},{"$f":"RANDBETWEEN(1928,2022)","v":1963},{"$f":"RANDBETWEEN(1928,2022)","v":1932},{"$f":"RANDBETWEEN(1928,2022)","v":1951},{"$f":"RANDBETWEEN(1928,2022)","v":1981},{"$f":"RANDBETWEEN(1928,2022)","v":1951},{"$f":"RANDBETWEEN(1928,2022)","v":1941},{"$f":"RANDBETWEEN(1928,2022)","v":1973},{"$f":"RANDBETWEEN(1928,2022)","v":1952},{"$f":"RANDBETWEEN(1928,2022)","v":1944},{"$f":"RANDBETWEEN(1928,2022)","v":1950},{"$f":"RANDBETWEEN(1928,2022)","v":1978},{"$f":"RANDBETWEEN(1928,2022)","v":1958},{"$f":"RANDBETWEEN(1928,2022)","v":1996},{"$f":"RANDBETWEEN(1928,2022)","v":1937},{"$f":"RANDBETWEEN(1928,2022)","v":1968},{"$f":"RANDBETWEEN(1928,2022)","v":2005},{"$f":"RANDBETWEEN(1928,2022)","v":1963},{"$f":"RANDBETWEEN(1928,2022)","v":1981},{"$f":"RANDBETWEEN(1928,2022)","v":1986},{"$f":"RANDBETWEEN(1928,2022)","v":1980},{"$f":"RANDBETWEEN(1928,2022)","v":2016},{"$f":"RANDBETWEEN(1928,2022)","v":1934},{"$f":"RANDBETWEEN(1928,2022)","v":1975},{"$f":"RANDBETWEEN(1928,2022)","v":2010},{"$f":"RANDBETWEEN(1928,2022)","v":2018},{"$f":"RANDBETWEEN(1928,2022)","v":1929},{"$f":"RANDBETWEEN(1928,2022)","v":1948},{"$f":"RANDBETWEEN(1928,2022)","v":1945},{"$f":"RANDBETWEEN(1928,2022)","v":1980},{"$f":"RANDBETWEEN(1928,2022)","v":2012},{"$f":"RANDBETWEEN(1928,2022)","v":2009},{"$f":"RANDBETWEEN(1928,2022)","v":1939},{"$f":"RANDBETWEEN(1928,2022)","v":2017},{"$f":"RANDBETWEEN(1928,2022)","v":1965},{"$f":"RANDBETWEEN(1928,2022)","v":2006},{"$f":"RANDBETWEEN(1928,2022)","v":1987},{"$f":"RANDBETWEEN(1928,2022)","v":1984},{"$f":"RANDBETWEEN(1928,2022)","v":1929},{"$f":"RANDBETWEEN(1928,2022)","v":1984},{"$f":"RANDBETWEEN(1928,2022)","v":1941},{"$f":"RANDBETWEEN(1928,2022)","v":2011},{"$f":"RANDBETWEEN(1928,2022)","v":1996},{"$f":"RANDBETWEEN(1928,2022)","v":2000},{"$f":"RANDBETWEEN(1928,2022)","v":1935},{"$f":"RANDBETWEEN(1928,2022)","v":1971},{"$f":"RANDBETWEEN(1928,2022)","v":1942},{"$f":"RANDBETWEEN(1928,2022)","v":1929},{"$f":"RANDBETWEEN(1928,2022)","v":1936},{"$f":"RANDBETWEEN(1928,2022)","v":1944},{"$f":"RANDBETWEEN(1928,2022)","v":2001},{"$f":"RANDBETWEEN(1928,2022)","v":1987},{"$f":"RANDBETWEEN(1928,2022)","v":1992},{"$f":"RANDBETWEEN(1928,2022)","v":1951},{"$f":"RANDBETWEEN(1928,2022)","v":1997},{"$f":"RANDBETWEEN(1928,2022)","v":2008},{"$f":"RANDBETWEEN(1928,2022)","v":1970},{"$f":"RANDBETWEEN(1928,2022)","v":2020},{"$f":"RANDBETWEEN(1928,2022)","v":1945},{"$f":"RANDBETWEEN(1928,2022)","v":1982},{"$f":"RANDBETWEEN(1928,2022)","v":1991},{"$f":"RANDBETWEEN(1928,2022)","v":1942},{"$f":"RANDBETWEEN(1928,2022)","v":2007},{"$f":"RANDBETWEEN(1928,2022)","v":1972},{"$f":"RANDBETWEEN(1928,2022)","v":1958},{"$f":"RANDBETWEEN(1928,2022)","v":2017},{"$f":"RANDBETWEEN(1928,2022)","v":1979},{"$f":"RANDBETWEEN(1928,2022)","v":1984},{"$f":"RANDBETWEEN(1928,2022)","v":1978},{"$f":"RANDBETWEEN(1928,2022)","v":1994},{"$f":"RANDBETWEEN(1928,2022)","v":1956},{"$f":"RANDBETWEEN(1928,2022)","v":1963},{"$f":"RANDBETWEEN(1928,2022)","v":1978},{"$f":"RANDBETWEEN(1928,2022)","v":1958},{"$f":"RANDBETWEEN(1928,2022)","v":1974},{"$f":"RANDBETWEEN(1928,2022)","v":1991},{"$f":"RANDBETWEEN(1928,2022)","v":2014},{"$f":"RANDBETWEEN(1928,2022)","v":1975},{"$f":"RANDBETWEEN(1928,2022)","v":1979},{"$f":"RANDBETWEEN(1928,2022)","v":1942},{"$f":"RANDBETWEEN(1928,2022)","v":1970},{"$f":"RANDBETWEEN(1928,2022)","v":1968},{"$f":"RANDBETWEEN(1928,2022)","v":1998},{"$f":"RANDBETWEEN(1928,2022)","v":2001},{"$f":"RANDBETWEEN(1928,2022)","v":1936},{"$f":"RANDBETWEEN(1928,2022)","v":1996},{"$f":"RANDBETWEEN(1928,2022)","v":1929},{"$f":"RANDBETWEEN(1928,2022)","v":1995},{"$f":"RANDBETWEEN(1928,2022)","v":1968},{"$f":"RANDBETWEEN(1928,2022)","v":1985},{"$f":"RANDBETWEEN(1928,2022)","v":2000},{"$f":"RANDBETWEEN(1928,2022)","v":1974},{"$f":"RANDBETWEEN(1928,2022)","v":1956},{"$f":"RANDBETWEEN(1928,2022)","v":1946},{"$f":"RANDBETWEEN(1928,2022)","v":1968},{"$f":"RANDBETWEEN(1928,2022)","v":1938},{"$f":"RANDBETWEEN(1928,2022)","v":2012},{"$f":"RANDBETWEEN(1928,2022)","v":1995},{"$f":"RANDBETWEEN(1928,2022)","v":2012},{"$f":"RANDBETWEEN(1928,2022)","v":1949}]
[{"$f":"RANDBETWEEN(1928,2022)","v":1994},{"$f":"RANDBETWEEN(1928,2022)","v":1996},{"$f":"RANDBETWEEN(1928,2022)","v":1969},{"$f":"RANDBETWEEN(1928,2022)","v":1965},{"$f":"RANDBETWEEN(1928,2022)","v":2011},{"$f":"RANDBETWEEN(1928,2022)","v":2010},{"$f":"RANDBETWEEN(1928,2022)","v":2021},{"$f":"RANDBETWEEN(1928,2022)","v":1939},{"$f":"RANDBETWEEN(1928,2022)","v":1981},{"$f":"RANDBETWEEN(1928,2022)","v":1945},{"$f":"RANDBETWEEN(1928,2022)","v":2008},{"$f":"RANDBETWEEN(1928,2022)","v":1946},{"$f":"RANDBETWEEN(1928,2022)","v":2008},{"$f":"RANDBETWEEN(1928,2022)","v":1948},{"$f":"RANDBETWEEN(1928,2022)","v":1998},{"$f":"RANDBETWEEN(1928,2022)","v":2003},{"$f":"RANDBETWEEN(1928,2022)","v":1931},{"$f":"RANDBETWEEN(1928,2022)","v":2022},{"$f":"RANDBETWEEN(1928,2022)","v":1998},{"$f":"RANDBETWEEN(1928,2022)","v":2007},{"$f":"RANDBETWEEN(1928,2022)","v":2014},{"$f":"RANDBETWEEN(1928,2022)","v":1943},{"$f":"RANDBETWEEN(1928,2022)","v":1929},{"$f":"RANDBETWEEN(1928,2022)","v":1999},{"$f":"RANDBETWEEN(1928,2022)","v":1951},{"$f":"RANDBETWEEN(1928,2022)","v":1963},{"$f":"RANDBETWEEN(1928,2022)","v":1971},{"$f":"RANDBETWEEN(1928,2022)","v":1939},{"$f":"RANDBETWEEN(1928,2022)","v":1998},{"$f":"RANDBETWEEN(1928,2022)","v":1952},{"$f":"RANDBETWEEN(1928,2022)","v":1994},{"$f":"RANDBETWEEN(1928,2022)","v":1975},{"$f":"RANDBETWEEN(1928,2022)","v":2000},{"$f":"RANDBETWEEN(1928,2022)","v":1971},{"$f":"RANDBETWEEN(1928,2022)","v":2013},{"$f":"RANDBETWEEN(1928,2022)","v":2015},{"$f":"RANDBETWEEN(1928,2022)","v":1934},{"$f":"RANDBETWEEN(1928,2022)","v":1975},{"$f":"RANDBETWEEN(1928,2022)","v":1986},{"$f":"RANDBETWEEN(1928,2022)","v":1938},{"$f":"RANDBETWEEN(1928,2022)","v":1937},{"$f":"RANDBETWEEN(1928,2022)","v":1980},{"$f":"RANDBETWEEN(1928,2022)","v":1933},{"$f":"RANDBETWEEN(1928,2022)","v":1981},{"$f":"RANDBETWEEN(1928,2022)","v":2006},{"$f":"RANDBETWEEN(1928,2022)","v":1944},{"$f":"RANDBETWEEN(1928,2022)","v":1963},{"$f":"RANDBETWEEN(1928,2022)","v":1979},{"$f":"RANDBETWEEN(1928,2022)","v":2013},{"$f":"RANDBETWEEN(1928,2022)","v":1930},{"$f":"RANDBETWEEN(1928,2022)","v":1986},{"$f":"RANDBETWEEN(1928,2022)","v":2005},{"$f":"RANDBETWEEN(1928,2022)","v":1951},{"$f":"RANDBETWEEN(1928,2022)","v":1931},{"$f":"RANDBETWEEN(1928,2022)","v":1960},{"$f":"RANDBETWEEN(1928,2022)","v":2008},{"$f":"RANDBETWEEN(1928,2022)","v":1986},{"$f":"RANDBETWEEN(1928,2022)","v":1940},{"$f":"RANDBETWEEN(1928,2022)","v":2008},{"$f":"RANDBETWEEN(1928,2022)","v":1957},{"$f":"RANDBETWEEN(1928,2022)","v":2011},{"$f":"RANDBETWEEN(1928,2022)","v":1983},{"$f":"RANDBETWEEN(1928,2022)","v":1998},{"$f":"RANDBETWEEN(1928,2022)","v":1967},{"$f":"RANDBETWEEN(1928,2022)","v":1936},{"$f":"RANDBETWEEN(1928,2022)","v":1983},{"$f":"RANDBETWEEN(1928,2022)","v":2004},{"$f":"RANDBETWEEN(1928,2022)","v":1992},{"$f":"RANDBETWEEN(1928,2022)","v":1996},{"$f":"RANDBETWEEN(1928,2022)","v":1941},{"$f":"RANDBETWEEN(1928,2022)","v":1978},{"$f":"RANDBETWEEN(1928,2022)","v":1953},{"$f":"RANDBETWEEN(1928,2022)","v":1934},{"$f":"RANDBETWEEN(1928,2022)","v":1983},{"$f":"RANDBETWEEN(1928,2022)","v":1947},{"$f":"RANDBETWEEN(1928,2022)","v":1930},{"$f":"RANDBETWEEN(1928,2022)","v":1962},{"$f":"RANDBETWEEN(1928,2022)","v":1979},{"$f":"RANDBETWEEN(1928,2022)","v":1971},{"$f":"RANDBETWEEN(1928,2022)","v":1928},{"$f":"RANDBETWEEN(1928,2022)","v":1950},{"$f":"RANDBETWEEN(1928,2022)","v":1939},{"$f":"RANDBETWEEN(1928,2022)","v":1954},{"$f":"RANDBETWEEN(1928,2022)","v":1954},{"$f":"RANDBETWEEN(1928,2022)","v":2017},{"$f":"RANDBETWEEN(1928,2022)","v":2016},{"$f":"RANDBETWEEN(1928,2022)","v":1954},{"$f":"RANDBETWEEN(1928,2022)","v":1935},{"$f":"RANDBETWEEN(1928,2022)","v":1945},{"$f":"RANDBETWEEN(1928,2022)","v":2006},{"$f":"RANDBETWEEN(1928,2022)","v":1968},{"$f":"RANDBETWEEN(1928,2022)","v":2022},{"$f":"RANDBETWEEN(1928,2022)","v":2012},{"$f":"RANDBETWEEN(1928,2022)","v":1971},{"$f":"RANDBETWEEN(1928,2022)","v":2016},{"$f":"RANDBETWEEN(1928,2022)","v":1952},{"$f":"RANDBETWEEN(1928,2022)","v":1953},{"$f":"RANDBETWEEN(1928,2022)","v":1976},{"$f":"RANDBETWEEN(1928,2022)","v":2004},{"$f":"RANDBETWEEN(1928,2022)","v":1996}]
[{"$f":"RANDBETWEEN(1928,2022)","v":1969},{"$f":"RANDBETWEEN(1928,2022)","v":2007},{"$f":"RANDBETWEEN(1928,2022)","v":1984},{"$f":"RANDBETWEEN(1928,2022)","v":1944},{"$f":"RANDBETWEEN(1928,2022)","v":1995},{"$f":"RANDBETWEEN(1928,2022)","v":1957},{"$f":"RANDBETWEEN(1928,2022)","v":1960},{"$f":"RANDBETWEEN(1928,2022)","v":1979},{"$f":"RANDBETWEEN(1928,2022)","v":1961},{"$f":"RANDBETWEEN(1928,2022)","v":1942},{"$f":"RANDBETWEEN(1928,2022)","v":2009},{"$f":"RANDBETWEEN(1928,2022)","v":1970},{"$f":"RANDBETWEEN(1928,2022)","v":1945},{"$f":"RANDBETWEEN(1928,2022)","v":1970},{"$f":"RANDBETWEEN(1928,2022)","v":1961},{"$f":"RANDBETWEEN(1928,2022)","v":1971},{"$f":"RANDBETWEEN(1928,2022)","v":2022},{"$f":"RANDBETWEEN(1928,2022)","v":1946},{"$f":"RANDBETWEEN(1928,2022)","v":2021},{"$f":"RANDBETWEEN(1928,2022)","v":1983},{"$f":"RANDBETWEEN(1928,2022)","v":2004},{"$f":"RANDBETWEEN(1928,2022)","v":1936},{"$f":"RANDBETWEEN(1928,2022)","v":1999},{"$f":"RANDBETWEEN(1928,2022)","v":1957},{"$f":"RANDBETWEEN(1928,2022)","v":1985},{"$f":"RANDBETWEEN(1928,2022)","v":1981},{"$f":"RANDBETWEEN(1928,2022)","v":1966},{"$f":"RANDBETWEEN(1928,2022)","v":1998},{"$f":"RANDBETWEEN(1928,2022)","v":2019},{"$f":"RANDBETWEEN(1928,2022)","v":1946},{"$f":"RANDBETWEEN(1928,2022)","v":1976},{"$f":"RANDBETWEEN(1928,2022)","v":1978},{"$f":"RANDBETWEEN(1928,2022)","v":1942},{"$f":"RANDBETWEEN(1928,2022)","v":1979},{"$f":"RANDBETWEEN(1928,2022)","v":2008},{"$f":"RANDBETWEEN(1928,2022)","v":1981},{"$f":"RANDBETWEEN(1928,2022)","v":2020},{"$f":"RANDBETWEEN(1928,2022)","v":2010},{"$f":"RANDBETWEEN(1928,2022)","v":2021},{"$f":"RANDBETWEEN(1928,2022)","v":1997},{"$f":"RANDBETWEEN(1928,2022)","v":1933},{"$f":"RANDBETWEEN(1928,2022)","v":2010},{"$f":"RANDBETWEEN(1928,2022)","v":1980},{"$f":"RANDBETWEEN(1928,2022)","v":1967},{"$f":"RANDBETWEEN(1928,2022)","v":1939},{"$f":"RANDBETWEEN(1928,2022)","v":1949},{"$f":"RANDBETWEEN(1928,2022)","v":1935},{"$f":"RANDBETWEEN(1928,2022)","v":1940},{"$f":"RANDBETWEEN(1928,2022)","v":1959},{"$f":"RANDBETWEEN(1928,2022)","v":1944},{"$f":"RANDBETWEEN(1928,2022)","v":1938},{"$f":"RANDBETWEEN(1928,2022)","v":1981},{"$f":"RANDBETWEEN(1928,2022)","v":2005},{"$f":"RANDBETWEEN(1928,2022)","v":2004},{"$f":"RANDBETWEEN(1928,2022)","v":1993},{"$f":"RANDBETWEEN(1928,2022)","v":1992},{"$f":"RANDBETWEEN(1928,2022)","v":1960},{"$f":"RANDBETWEEN(1928,2022)","v":2015},{"$f":"RANDBETWEEN(1928,2022)","v":1990},{"$f":"RANDBETWEEN(1928,2022)","v":1960},{"$f":"RANDBETWEEN(1928,2022)","v":1977},{"$f":"RANDBETWEEN(1928,2022)","v":2007},{"$f":"RANDBETWEEN(1928,2022)","v":1929},{"$f":"RANDBETWEEN(1928,2022)","v":1976},{"$f":"RANDBETWEEN(1928,2022)","v":1962},{"$f":"RANDBETWEEN(1928,2022)","v":1951},{"$f":"RANDBETWEEN(1928,2022)","v":2001},{"$f":"RANDBETWEEN(1928,2022)","v":1993},{"$f":"RANDBETWEEN(1928,2022)","v":1998},{"$f":"RANDBETWEEN(1928,2022)","v":1947},{"$f":"RANDBETWEEN(1928,2022)","v":1956},{"$f":"RANDBETWEEN(1928,2022)","v":1951},{"$f":"RANDBETWEEN(1928,2022)","v":1944},{"$f":"RANDBETWEEN(1928,2022)","v":1955},{"$f":"RANDBETWEEN(1928,2022)","v":1964},{"$f":"RANDBETWEEN(1928,2022)","v":1928},{"$f":"RANDBETWEEN(1928,2022)","v":1977},{"$f":"RANDBETWEEN(1928,2022)","v":2012},{"$f":"RANDBETWEEN(1928,2022)","v":2008},{"$f":"RANDBETWEEN(1928,2022)","v":1941},{"$f":"RANDBETWEEN(1928,2022)","v":1997},{"$f":"RANDBETWEEN(1928,2022)","v":1928},{"$f":"RANDBETWEEN(1928,2022)","v":1965},{"$f":"RANDBETWEEN(1928,2022)","v":2007},{"$f":"RANDBETWEEN(1928,2022)","v":1978},{"$f":"RANDBETWEEN(1928,2022)","v":2010},{"$f":"RANDBETWEEN(1928,2022)","v":1955},{"$f":"RANDBETWEEN(1928,2022)","v":1991},{"$f":"RANDBETWEEN(1928,2022)","v":1959},{"$f":"RANDBETWEEN(1928,2022)","v":1980},{"$f":"RANDBETWEEN(1928,2022)","v":2005},{"$f":"RANDBETWEEN(1928,2022)","v":1932},{"$f":"RANDBETWEEN(1928,2022)","v":1946},{"$f":"RANDBETWEEN(1928,2022)","v":1945},{"$f":"RANDBETWEEN(1928,2022)","v":1988},{"$f":"RANDBETWEEN(1928,2022)","v":1980},{"$f":"RANDBETWEEN(1928,2022)","v":1951},{"$f":"RANDBETWEEN(1928,2022)","v":2016},{"$f":"RANDBETWEEN(1928,2022)","v":2000},{"$f":"RANDBETWEEN(1928,2022)","v":1975}]
[{"$f":"RANDBETWEEN(1928,2022)","v":1997},{"$f":"RANDBETWEEN(1928,2022)","v":2013},{"$f":"RANDBETWEEN(1928,2022)","v":2014},{"$f":"RANDBETWEEN(1928,2022)","v":1958},{"$f":"RANDBETWEEN(1928,2022)","v":1991},{"$f":"RANDBETWEEN(1928,2022)","v":1948},{"$f":"RANDBETWEEN(1928,2022)","v":1979},{"$f":"RANDBETWEEN(1928,2022)","v":1945},{"$f":"RANDBETWEEN(1928,2022)","v":1961},{"$f":"RANDBETWEEN(1928,2022)","v":2003},{"$f":"RANDBETWEEN(1928,2022)","v":1948},{"$f":"RANDBETWEEN(1928,2022)","v":1942},{"$f":"RANDBETWEEN(1928,2022)","v":2001},{"$f":"RANDBETWEEN(1928,2022)","v":1999},{"$f":"RANDBETWEEN(1928,2022)","v":1942},{"$f":"RANDBETWEEN(1928,2022)","v":1976},{"$f":"RANDBETWEEN(1928,2022)","v":2018},{"$f":"RANDBETWEEN(1928,2022)","v":2011},{"$f":"RANDBETWEEN(1928,2022)","v":2018},{"$f":"RANDBETWEEN(1928,2022)","v":1984},{"$f":"RANDBETWEEN(1928,2022)","v":2019},{"$f":"RANDBETWEEN(1928,2022)","v":1949},{"$f":"RANDBETWEEN(1928,2022)","v":2006},{"$f":"RANDBETWEEN(1928,2022)","v":1982},{"$f":"RANDBETWEEN(1928,2022)","v":2013},{"$f":"RANDBETWEEN(1928,2022)","v":1948},{"$f":"RANDBETWEEN(1928,2022)","v":1976},{"$f":"RANDBETWEEN(1928,2022)","v":1957},{"$f":"RANDBETWEEN(1928,2022)","v":1960},{"$f":"RANDBETWEEN(1928,2022)","v":1939},{"$f":"RANDBETWEEN(1928,2022)","v":1970},{"$f":"RANDBETWEEN(1928,2022)","v":1956},{"$f":"RANDBETWEEN(1928,2022)","v":1957},{"$f":"RANDBETWEEN(1928,2022)","v":1959},{"$f":"RANDBETWEEN(1928,2022)","v":1960},{"$f":"RANDBETWEEN(1928,2022)","v":1999},{"$f":"RANDBETWEEN(1928,2022)","v":1984},{"$f":"RANDBETWEEN(1928,2022)","v":1976},{"$f":"RANDBETWEEN(1928,2022)","v":1955},{"$f":"RANDBETWEEN(1928,2022)","v":1961},{"$f":"RANDBETWEEN(1928,2022)","v":1930},{"$f":"RANDBETWEEN(1928,2022)","v":2010},{"$f":"RANDBETWEEN(1928,2022)","v":2016},{"$f":"RANDBETWEEN(1928,2022)","v":2015},{"$f":"RANDBETWEEN(1928,2022)","v":1962},{"$f":"RANDBETWEEN(1928,2022)","v":1945},{"$f":"RANDBETWEEN(1928,2022)","v":2013},{"$f":"RANDBETWEEN(1928,2022)","v":1955},{"$f":"RANDBETWEEN(1928,2022)","v":1941},{"$f":"RANDBETWEEN(1928,2022)","v":1977},{"$f":"RANDBETWEEN(1928,2022)","v":1980},{"$f":"RANDBETWEEN(1928,2022)","v":2022},{"$f":"RANDBETWEEN(1928,2022)","v":1968},{"$f":"RANDBETWEEN(1928,2022)","v":1999},{"$f":"RANDBETWEEN(1928,2022)","v":1990},{"$f":"RANDBETWEEN(1928,2022)","v":1942},{"$f":"RANDBETWEEN(1928,2022)","v":2022},{"$f":"RANDBETWEEN(1928,2022)","v":2003},{"$f":"RANDBETWEEN(1928,2022)","v":1984},{"$f":"RANDBETWEEN(1928,2022)","v":1939},{"$f":"RANDBETWEEN(1928,2022)","v":1966},{"$f":"RANDBETWEEN(1928,2022)","v":1959},{"$f":"RANDBETWEEN(1928,2022)","v":1991},{"$f":"RANDBETWEEN(1928,2022)","v":1945},{"$f":"RANDBETWEEN(1928,2022)","v":1949},{"$f":"RANDBETWEEN(1928,2022)","v":2011},{"$f":"RANDBETWEEN(1928,2022)","v":1978},{"$f":"RANDBETWEEN(1928,2022)","v":1954},{"$f":"RANDBETWEEN(1928,2022)","v":2015},{"$f":"RANDBETWEEN(1928,2022)","v":2000},{"$f":"RANDBETWEEN(1928,2022)","v":1966},{"$f":"RANDBETWEEN(1928,2022)","v":1973},{"$f":"RANDBETWEEN(1928,2022)","v":2000},{"$f":"RANDBETWEEN(1928,2022)","v":1939},{"$f":"RANDBETWEEN(1928,2022)","v":2019},{"$f":"RANDBETWEEN(1928,2022)","v":2021},{"$f":"RANDBETWEEN(1928,2022)","v":1969},{"$f":"RANDBETWEEN(1928,2022)","v":1932},{"$f":"RANDBETWEEN(1928,2022)","v":1946},{"$f":"RANDBETWEEN(1928,2022)","v":1961},{"$f":"RANDBETWEEN(1928,2022)","v":1980},{"$f":"RANDBETWEEN(1928,2022)","v":1985},{"$f":"RANDBETWEEN(1928,2022)","v":2015},{"$f":"RANDBETWEEN(1928,2022)","v":1929},{"$f":"RANDBETWEEN(1928,2022)","v":1971},{"$f":"RANDBETWEEN(1928,2022)","v":1975},{"$f":"RANDBETWEEN(1928,2022)","v":1961},{"$f":"RANDBETWEEN(1928,2022)","v":1962},{"$f":"RANDBETWEEN(1928,2022)","v":1974},{"$f":"RANDBETWEEN(1928,2022)","v":1968},{"$f":"RANDBETWEEN(1928,2022)","v":1988},{"$f":"RANDBETWEEN(1928,2022)","v":2013},{"$f":"RANDBETWEEN(1928,2022)","v":1943},{"$f":"RANDBETWEEN(1928,2022)","v":1997},{"$f":"RANDBETWEEN(1928,2022)","v":1928},{"$f":"RANDBETWEEN(1928,2022)","v":1938},{"$f":"RANDBETWEEN(1928,2022)","v":1933},{"$f":"RANDBETWEEN(1928,2022)","v":1952},{"$f":"RANDBETWEEN(1928,2022)","v":1990},{"$f":"RANDBETWEEN(1928,2022)","v":1932}]
[{"$f":"RANDBETWEEN(1928,2022)","v":1942},{"$f":"RANDBETWEEN(1928,2022)","v":2015},{"$f":"RANDBETWEEN(1928,2022)","v":2022},{"$f":"RANDBETWEEN(1928,2022)","v":1930},{"$f":"RANDBETWEEN(1928,2022)","v":1982},{"$f":"RANDBETWEEN(1928,2022)","v":1985},{"$f":"RANDBETWEEN(1928,2022)","v":1944},{"$f":"RANDBETWEEN(1928,2022)","v":2009},{"$f":"RANDBETWEEN(1928,2022)","v":2022},{"$f":"RANDBETWEEN(1928,2022)","v":1951},{"$f":"RANDBETWEEN(1928,2022)","v":2021},{"$f":"RANDBETWEEN(1928,2022)","v":1962},{"$f":"RANDBETWEEN(1928,2022)","v":2003},{"$f":"RANDBETWEEN(1928,2022)","v":1992},{"$f":"RANDBETWEEN(1928,2022)","v":2010},{"$f":"RANDBETWEEN(1928,2022)","v":1965},{"$f":"RANDBETWEEN(1928,2022)","v":1960},{"$f":"RANDBETWEEN(1928,2022)","v":1974},{"$f":"RANDBETWEEN(1928,2022)","v":1965},{"$f":"RANDBETWEEN(1928,2022)","v":1964},{"$f":"RANDBETWEEN(1928,2022)","v":1981},{"$f":"RANDBETWEEN(1928,2022)","v":1932},{"$f":"RANDBETWEEN(1928,2022)","v":1997},{"$f":"RANDBETWEEN(1928,2022)","v":1949},{"$f":"RANDBETWEEN(1928,2022)","v":2007},{"$f":"RANDBETWEEN(1928,2022)","v":2001},{"$f":"RANDBETWEEN(1928,2022)","v":2000},{"$f":"RANDBETWEEN(1928,2022)","v":1943},{"$f":"RANDBETWEEN(1928,2022)","v":1965},{"$f":"RANDBETWEEN(1928,2022)","v":1969},{"$f":"RANDBETWEEN(1928,2022)","v":1935},{"$f":"RANDBETWEEN(1928,2022)","v":1997},{"$f":"RANDBETWEEN(1928,2022)","v":1981},{"$f":"RANDBETWEEN(1928,2022)","v":2011},{"$f":"RANDBETWEEN(1928,2022)","v":1930},{"$f":"RANDBETWEEN(1928,2022)","v":1950},{"$f":"RANDBETWEEN(1928,2022)","v":1986},{"$f":"RANDBETWEEN(1928,2022)","v":1954},{"$f":"RANDBETWEEN(1928,2022)","v":1954},{"$f":"RANDBETWEEN(1928,2022)","v":1954},{"$f":"RANDBETWEEN(1928,2022)","v":2019},{"$f":"RANDBETWEEN(1928,2022)","v":1938},{"$f":"RANDBETWEEN(1928,2022)","v":2008},{"$f":"RANDBETWEEN(1928,2022)","v":1996},{"$f":"RANDBETWEEN(1928,2022)","v":2022},{"$f":"RANDBETWEEN(1928,2022)","v":2017},{"$f":"RANDBETWEEN(1928,2022)","v":1941},{"$f":"RANDBETWEEN(1928,2022)","v":2014},{"$f":"RANDBETWEEN(1928,2022)","v":1987},{"$f":"RANDBETWEEN(1928,2022)","v":2014},{"$f":"RANDBETWEEN(1928,2022)","v":1932},{"$f":"RANDBETWEEN(1928,2022)","v":1930},{"$f":"RANDBETWEEN(1928,2022)","v":1994},{"$f":"RANDBETWEEN(1928,2022)","v":1968},{"$f":"RANDBETWEEN(1928,2022)","v":1953},{"$f":"RANDBETWEEN(1928,2022)","v":1952},{"$f":"RANDBETWEEN(1928,2022)","v":2020},{"$f":"RANDBETWEEN(1928,2022)","v":1969},{"$f":"RANDBETWEEN(1928,2022)","v":1988},{"$f":"RANDBETWEEN(1928,2022)","v":1981},{"$f":"RANDBETWEEN(1928,2022)","v":1999},{"$f":"RANDBETWEEN(1928,2022)","v":1988},{"$f":"RANDBETWEEN(1928,2022)","v":1946},{"$f":"RANDBETWEEN(1928,2022)","v":1953},{"$f":"RANDBETWEEN(1928,2022)","v":2004},{"$f":"RANDBETWEEN(1928,2022)","v":2020},{"$f":"RANDBETWEEN(1928,2022)","v":1959},{"$f":"RANDBETWEEN(1928,2022)","v":1946},{"$f":"RANDBETWEEN(1928,2022)","v":1995},{"$f":"RANDBETWEEN(1928,2022)","v":1971},{"$f":"RANDBETWEEN(1928,2022)","v":1938},{"$f":"RANDBETWEEN(1928,2022)","v":2016},{"$f":"RANDBETWEEN(1928,2022)","v":1940},{"$f":"RANDBETWEEN(1928,2022)","v":1963},{"$f":"RANDBETWEEN(1928,2022)","v":1985},{"$f":"RANDBETWEEN(1928,2022)","v":1930},{"$f":"RANDBETWEEN(1928,2022)","v":1993},{"$f":"RANDBETWEEN(1928,2022)","v":1953},{"$f":"RANDBETWEEN(1928,2022)","v":1944},{"$f":"RANDBETWEEN(1928,2022)","v":1959},{"$f":"RANDBETWEEN(1928,2022)","v":1948},{"$f":"RANDBETWEEN(1928,2022)","v":2004},{"$f":"RANDBETWEEN(1928,2022)","v":1960},{"$f":"RANDBETWEEN(1928,2022)","v":1953},{"$f":"RANDBETWEEN(1928,2022)","v":1970},{"$f":"RANDBETWEEN(1928,2022)","v":1999},{"$f":"RANDBETWEEN(1928,2022)","v":2017},{"$f":"RANDBETWEEN(1928,2022)","v":1993},{"$f":"RANDBETWEEN(1928,2022)","v":1996},{"$f":"RANDBETWEEN(1928,2022)","v":1983},{"$f":"RANDBETWEEN(1928,2022)","v":1939},{"$f":"RANDBETWEEN(1928,2022)","v":2002},{"$f":"RANDBETWEEN(1928,2022)","v":1975},{"$f":"RANDBETWEEN(1928,2022)","v":2002},{"$f":"RANDBETWEEN(1928,2022)","v":1989},{"$f":"RANDBETWEEN(1928,2022)","v":1931},{"$f":"RANDBETWEEN(1928,2022)","v":1958},{"$f":"RANDBETWEEN(1928,2022)","v":1986},{"$f":"RANDBETWEEN(1928,2022)","v":1954},{"$f":"RANDBETWEEN(1928,2022)","v":1958}]
[{"$f":"RANDBETWEEN(1928,2022)","v":1998},{"$f":"RANDBETWEEN(1928,2022)","v":1939},{"$f":"RANDBETWEEN(1928,2022)","v":1979},{"$f":"RANDBETWEEN(1928,2022)","v":1961},{"$f":"RANDBETWEEN(1928,2022)","v":1933},{"$f":"RANDBETWEEN(1928,2022)","v":2005},{"$f":"RANDBETWEEN(1928,2022)","v":1971},{"$f":"RANDBETWEEN(1928,2022)","v":2012},{"$f":"RANDBETWEEN(1928,2022)","v":2003},{"$f":"RANDBETWEEN(1928,2022)","v":1989},{"$f":"RANDBETWEEN(1928,2022)","v":1987},{"$f":"RANDBETWEEN(1928,2022)","v":1937},{"$f":"RANDBETWEEN(1928,2022)","v":1996},{"$f":"RANDBETWEEN(1928,2022)","v":2009},{"$f":"RANDBETWEEN(1928,2022)","v":1996},{"$f":"RANDBETWEEN(1928,2022)","v":1975},{"$f":"RANDBETWEEN(1928,2022)","v":1961},{"$f":"RANDBETWEEN(1928,2022)","v":1931},{"$f":"RANDBETWEEN(1928,2022)","v":1963},{"$f":"RANDBETWEEN(1928,2022)","v":2006},{"$f":"RANDBETWEEN(1928,2022)","v":1964},{"$f":"RANDBETWEEN(1928,2022)","v":1990},{"$f":"RANDBETWEEN(1928,2022)","v":1964},{"$f":"RANDBETWEEN(1928,2022)","v":1942},{"$f":"RANDBETWEEN(1928,2022)","v":2000},{"$f":"RANDBETWEEN(1928,2022)","v":1961},{"$f":"RANDBETWEEN(1928,2022)","v":2018},{"$f":"RANDBETWEEN(1928,2022)","v":1936},{"$f":"RANDBETWEEN(1928,2022)","v":2011},{"$f":"RANDBETWEEN(1928,2022)","v":1958},{"$f":"RANDBETWEEN(1928,2022)","v":1947},{"$f":"RANDBETWEEN(1928,2022)","v":2018},{"$f":"RANDBETWEEN(1928,2022)","v":1992},{"$f":"RANDBETWEEN(1928,2022)","v":1989},{"$f":"RANDBETWEEN(1928,2022)","v":1968},{"$f":"RANDBETWEEN(1928,2022)","v":1992},{"$f":"RANDBETWEEN(1928,2022)","v":1978},{"$f":"RANDBETWEEN(1928,2022)","v":1929},{"$f":"RANDBETWEEN(1928,2022)","v":2005},{"$f":"RANDBETWEEN(1928,2022)","v":2006},{"$f":"RANDBETWEEN(1928,2022)","v":2005},{"$f":"RANDBETWEEN(1928,2022)","v":2005},{"$f":"RANDBETWEEN(1928,2022)","v":1934},{"$f":"RANDBETWEEN(1928,2022)","v":2008},{"$f":"RANDBETWEEN(1928,2022)","v":1953},{"$f":"RANDBETWEEN(1928,2022)","v":1991},{"$f":"RANDBETWEEN(1928,2022)","v":1971},{"$f":"RANDBETWEEN(1928,2022)","v":1960},{"$f":"RANDBETWEEN(1928,2022)","v":1956},{"$f":"RANDBETWEEN(1928,2022)","v":1937},{"$f":"RANDBETWEEN(1928,2022)","v":1975},{"$f":"RANDBETWEEN(1928,2022)","v":1946},{"$f":"RANDBETWEEN(1928,2022)","v":1977},{"$f":"RANDBETWEEN(1928,2022)","v":1928},{"$f":"RANDBETWEEN(1928,2022)","v":1991},{"$f":"RANDBETWEEN(1928,2022)","v":1938},{"$f":"RANDBETWEEN(1928,2022)","v":1996},{"$f":"RANDBETWEEN(1928,2022)","v":1952},{"$f":"RANDBETWEEN(1928,2022)","v":1985},{"$f":"RANDBETWEEN(1928,2022)","v":2010},{"$f":"RANDBETWEEN(1928,2022)","v":1995},{"$f":"RANDBETWEEN(1928,2022)","v":2003},{"$f":"RANDBETWEEN(1928,2022)","v":2021},{"$f":"RANDBETWEEN(1928,2022)","v":1943},{"$f":"RANDBETWEEN(1928,2022)","v":1969},{"$f":"RANDBETWEEN(1928,2022)","v":1947},{"$f":"RANDBETWEEN(1928,2022)","v":1931},{"$f":"RANDBETWEEN(1928,2022)","v":1978},{"$f":"RANDBETWEEN(1928,2022)","v":2005},{"$f":"RANDBETWEEN(1928,2022)","v":1959},{"$f":"RANDBETWEEN(1928,2022)","v":1975},{"$f":"RANDBETWEEN(1928,2022)","v":1980},{"$f":"RANDBETWEEN(1928,2022)","v":1974},{"$f":"RANDBETWEEN(1928,2022)","v":2002},{"$f":"RANDBETWEEN(1928,2022)","v":1941},{"$f":"RANDBETWEEN(1928,2022)","v":1928},{"$f":"RANDBETWEEN(1928,2022)","v":1940},{"$f":"RANDBETWEEN(1928,2022)","v":1961},{"$f":"RANDBETWEEN(1928,2022)","v":1967},{"$f":"RANDBETWEEN(1928,2022)","v":1989},{"$f":"RANDBETWEEN(1928,2022)","v":1981},{"$f":"RANDBETWEEN(1928,2022)","v":2001},{"$f":"RANDBETWEEN(1928,2022)","v":1966},{"$f":"RANDBETWEEN(1928,2022)","v":1972},{"$f":"RANDBETWEEN(1928,2022)","v":2020},{"$f":"RANDBETWEEN(1928,2022)","v":1964},{"$f":"RANDBETWEEN(1928,2022)","v":2005},{"$f":"RANDBETWEEN(1928,2022)","v":2004},{"$f":"RANDBETWEEN(1928,2022)","v":2002},{"$f":"RANDBETWEEN(1928,2022)","v":1967},{"$f":"RANDBETWEEN(1928,2022)","v":1956},{"$f":"RANDBETWEEN(1928,2022)","v":1976},{"$f":"RANDBETWEEN(1928,2022)","v":2009},{"$f":"RANDBETWEEN(1928,2022)","v":1982},{"$f":"RANDBETWEEN(1928,2022)","v":2007},{"$f":"RANDBETWEEN(1928,2022)","v":2013},{"$f":"RANDBETWEEN(1928,2022)","v":1936},{"$f":"RANDBETWEEN(1928,2022)","v":2013},{"$f":"RANDBETWEEN(1928,2022)","v":1937},{"$f":"RANDBETWEEN(1928,2022)","v":1965}]
[{"$f":"RANDBETWEEN(1928,2022)","v":1932},{"$f":"RANDBETWEEN(1928,2022)","v":1990},{"$f":"RANDBETWEEN(1928,2022)","v":1975},{"$f":"RANDBETWEEN(1928,2022)","v":1984},{"$f":"RANDBETWEEN(1928,2022)","v":1933},{"$f":"RANDBETWEEN(1928,2022)","v":1973},{"$f":"RANDBETWEEN(1928,2022)","v":2001},{"$f":"RANDBETWEEN(1928,2022)","v":1999},{"$f":"RANDBETWEEN(1928,2022)","v":1940},{"$f":"RANDBETWEEN(1928,2022)","v":1932},{"$f":"RANDBETWEEN(1928,2022)","v":1946},{"$f":"RANDBETWEEN(1928,2022)","v":1985},{"$f":"RANDBETWEEN(1928,2022)","v":1979},{"$f":"RANDBETWEEN(1928,2022)","v":1981},{"$f":"RANDBETWEEN(1928,2022)","v":2004},{"$f":"RANDBETWEEN(1928,2022)","v":1981},{"$f":"RANDBETWEEN(1928,2022)","v":2014},{"$f":"RANDBETWEEN(1928,2022)","v":1964},{"$f":"RANDBETWEEN(1928,2022)","v":2021},{"$f":"RANDBETWEEN(1928,2022)","v":2019},{"$f":"RANDBETWEEN(1928,2022)","v":1955},{"$f":"RANDBETWEEN(1928,2022)","v":1928},{"$f":"RANDBETWEEN(1928,2022)","v":1978},{"$f":"RANDBETWEEN(1928,2022)","v":1974},{"$f":"RANDBETWEEN(1928,2022)","v":1948},{"$f":"RANDBETWEEN(1928,2022)","v":1971},{"$f":"RANDBETWEEN(1928,2022)","v":1945},{"$f":"RANDBETWEEN(1928,2022)","v":1984},{"$f":"RANDBETWEEN(1928,2022)","v":1934},{"$f":"RANDBETWEEN(1928,2022)","v":1997},{"$f":"RANDBETWEEN(1928,2022)","v":1996},{"$f":"RANDBETWEEN(1928,2022)","v":1976},{"$f":"RANDBETWEEN(1928,2022)","v":1936},{"$f":"RANDBETWEEN(1928,2022)","v":2021},{"$f":"RANDBETWEEN(1928,2022)","v":1952},{"$f":"RANDBETWEEN(1928,2022)","v":1987},{"$f":"RANDBETWEEN(1928,2022)","v":1957},{"$f":"RANDBETWEEN(1928,2022)","v":2003},{"$f":"RANDBETWEEN(1928,2022)","v":1997},{"$f":"RANDBETWEEN(1928,2022)","v":1968},{"$f":"RANDBETWEEN(1928,2022)","v":1930},{"$f":"RANDBETWEEN(1928,2022)","v":2010},{"$f":"RANDBETWEEN(1928,2022)","v":1933},{"$f":"RANDBETWEEN(1928,2022)","v":2020},{"$f":"RANDBETWEEN(1928,2022)","v":2010},{"$f":"RANDBETWEEN(1928,2022)","v":1954},{"$f":"RANDBETWEEN(1928,2022)","v":2002},{"$f":"RANDBETWEEN(1928,2022)","v":1935},{"$f":"RANDBETWEEN(1928,2022)","v":2020},{"$f":"RANDBETWEEN(1928,2022)","v":2005},{"$f":"RANDBETWEEN(1928,2022)","v":1997},{"$f":"RANDBETWEEN(1928,2022)","v":1998},{"$f":"RANDBETWEEN(1928,2022)","v":2016},{"$f":"RANDBETWEEN(1928,2022)","v":1962},{"$f":"RANDBETWEEN(1928,2022)","v":1996},{"$f":"RANDBETWEEN(1928,2022)","v":1964},{"$f":"RANDBETWEEN(1928,2022)","v":1947},{"$f":"RANDBETWEEN(1928,2022)","v":1959},{"$f":"RANDBETWEEN(1928,2022)","v":1928},{"$f":"RANDBETWEEN(1928,2022)","v":1950},{"$f":"RANDBETWEEN(1928,2022)","v":1951},{"$f":"RANDBETWEEN(1928,2022)","v":1939},{"$f":"RANDBETWEEN(1928,2022)","v":1974},{"$f":"RANDBETWEEN(1928,2022)","v":1960},{"$f":"RANDBETWEEN(1928,2022)","v":1963},{"$f":"RANDBETWEEN(1928,2022)","v":1964},{"$f":"RANDBETWEEN(1928,2022)","v":1929},{"$f":"RANDBETWEEN(1928,2022)","v":1967},{"$f":"RANDBETWEEN(1928,2022)","v":1929},{"$f":"RANDBETWEEN(1928,2022)","v":1948},{"$f":"RANDBETWEEN(1928,2022)","v":1959},{"$f":"RANDBETWEEN(1928,2022)","v":2004},{"$f":"RANDBETWEEN(1928,2022)","v":1953},{"$f":"RANDBETWEEN(1928,2022)","v":1959},{"$f":"RANDBETWEEN(1928,2022)","v":1964},{"$f":"RANDBETWEEN(1928,2022)","v":1937},{"$f":"RANDBETWEEN(1928,2022)","v":1993},{"$f":"RANDBETWEEN(1928,2022)","v":2011},{"$f":"RANDBETWEEN(1928,2022)","v":1995},{"$f":"RANDBETWEEN(1928,2022)","v":1945},{"$f":"RANDBETWEEN(1928,2022)","v":1937},{"$f":"RANDBETWEEN(1928,2022)","v":1953},{"$f":"RANDBETWEEN(1928,2022)","v":1986},{"$f":"RANDBETWEEN(1928,2022)","v":1980},{"$f":"RANDBETWEEN(1928,2022)","v":1970},{"$f":"RANDBETWEEN(1928,2022)","v":2017},{"$f":"RANDBETWEEN(1928,2022)","v":1953},{"$f":"RANDBETWEEN(1928,2022)","v":1959},{"$f":"RANDBETWEEN(1928,2022)","v":1933},{"$f":"RANDBETWEEN(1928,2022)","v":1995},{"$f":"RANDBETWEEN(1928,2022)","v":2022},{"$f":"RANDBETWEEN(1928,2022)","v":1972},{"$f":"RANDBETWEEN(1928,2022)","v":1935},{"$f":"RANDBETWEEN(1928,2022)","v":1979},{"$f":"RANDBETWEEN(1928,2022)","v":1977},{"$f":"RANDBETWEEN(1928,2022)","v":1976},{"$f":"RANDBETWEEN(1928,2022)","v":1945},{"$f":"RANDBETWEEN(1928,2022)","v":1957},{"$f":"RANDBETWEEN(1928,2022)","v":1956},{"$f":"RANDBETWEEN(1928,2022)","v":1931}]
[{"$f":"RANDBETWEEN(1928,2022)","v":1950},{"$f":"RANDBETWEEN(1928,2022)","v":1934},{"$f":"RANDBETWEEN(1928,2022)","v":1982},{"$f":"RANDBETWEEN(1928,2022)","v":1932},{"$f":"RANDBETWEEN(1928,2022)","v":1971},{"$f":"RANDBETWEEN(1928,2022)","v":1991},{"$f":"RANDBETWEEN(1928,2022)","v":1999},{"$f":"RANDBETWEEN(1928,2022)","v":1975},{"$f":"RANDBETWEEN(1928,2022)","v":2001},{"$f":"RANDBETWEEN(1928,2022)","v":2016},{"$f":"RANDBETWEEN(1928,2022)","v":2001},{"$f":"RANDBETWEEN(1928,2022)","v":2003},{"$f":"RANDBETWEEN(1928,2022)","v":1958},{"$f":"RANDBETWEEN(1928,2022)","v":1953},{"$f":"RANDBETWEEN(1928,2022)","v":1959},{"$f":"RANDBETWEEN(1928,2022)","v":1955},{"$f":"RANDBETWEEN(1928,2022)","v":2007},{"$f":"RANDBETWEEN(1928,2022)","v":1972},{"$f":"RANDBETWEEN(1928,2022)","v":1956},{"$f":"RANDBETWEEN(1928,2022)","v":2019},{"$f":"RANDBETWEEN(1928,2022)","v":1989},{"$f":"RANDBETWEEN(1928,2022)","v":1977},{"$f":"RANDBETWEEN(1928,2022)","v":1963},{"$f":"RANDBETWEEN(1928,2022)","v":1981},{"$f":"RANDBETWEEN(1928,2022)","v":1987},{"$f":"RANDBETWEEN(1928,2022)","v":2018},{"$f":"RANDBETWEEN(1928,2022)","v":1974},{"$f":"RANDBETWEEN(1928,2022)","v":1960},{"$f":"RANDBETWEEN(1928,2022)","v":1976},{"$f":"RANDBETWEEN(1928,2022)","v":1996},{"$f":"RANDBETWEEN(1928,2022)","v":1991},{"$f":"RANDBETWEEN(1928,2022)","v":1962},{"$f":"RANDBETWEEN(1928,2022)","v":1957},{"$f":"RANDBETWEEN(1928,2022)","v":1969},{"$f":"RANDBETWEEN(1928,2022)","v":1936},{"$f":"RANDBETWEEN(1928,2022)","v":1972},{"$f":"RANDBETWEEN(1928,2022)","v":2004},{"$f":"RANDBETWEEN(1928,2022)","v":1999},{"$f":"RANDBETWEEN(1928,2022)","v":1940},{"$f":"RANDBETWEEN(1928,2022)","v":1975},{"$f":"RANDBETWEEN(1928,2022)","v":1971},{"$f":"RANDBETWEEN(1928,2022)","v":2005},{"$f":"RANDBETWEEN(1928,2022)","v":1963},{"$f":"RANDBETWEEN(1928,2022)","v":1986},{"$f":"RANDBETWEEN(1928,2022)","v":1973},{"$f":"RANDBETWEEN(1928,2022)","v":1951},{"$f":"RANDBETWEEN(1928,2022)","v":1965},{"$f":"RANDBETWEEN(1928,2022)","v":1998},{"$f":"RANDBETWEEN(1928,2022)","v":1938},{"$f":"RANDBETWEEN(1928,2022)","v":1964},{"$f":"RANDBETWEEN(1928,2022)","v":1951},{"$f":"RANDBETWEEN(1928,2022)","v":2019},{"$f":"RANDBETWEEN(1928,2022)","v":1953},{"$f":"RANDBETWEEN(1928,2022)","v":1932},{"$f":"RANDBETWEEN(1928,2022)","v":1945},{"$f":"RANDBETWEEN(1928,2022)","v":1972},{"$f":"RANDBETWEEN(1928,2022)","v":1941},{"$f":"RANDBETWEEN(1928,2022)","v":1929},{"$f":"RANDBETWEEN(1928,2022)","v":1946},{"$f":"RANDBETWEEN(1928,2022)","v":1990},{"$f":"RANDBETWEEN(1928,2022)","v":1932},{"$f":"RANDBETWEEN(1928,2022)","v":1936},{"$f":"RANDBETWEEN(1928,2022)","v":1960},{"$f":"RANDBETWEEN(1928,2022)","v":1936},{"$f":"RANDBETWEEN(1928,2022)","v":1978},{"$f":"RANDBETWEEN(1928,2022)","v":2011},{"$f":"RANDBETWEEN(1928,2022)","v":1966},{"$f":"RANDBETWEEN(1928,2022)","v":1968},{"$f":"RANDBETWEEN(1928,2022)","v":1980},{"$f":"RANDBETWEEN(1928,2022)","v":1973},{"$f":"RANDBETWEEN(1928,2022)","v":1933},{"$f":"RANDBETWEEN(1928,2022)","v":2012},{"$f":"RANDBETWEEN(1928,2022)","v":2018},{"$f":"RANDBETWEEN(1928,2022)","v":1969},{"$f":"RANDBETWEEN(1928,2022)","v":1983},{"$f":"RANDBETWEEN(1928,2022)","v":2018},{"$f":"RANDBETWEEN(1928,2022)","v":1931},{"$f":"RANDBETWEEN(1928,2022)","v":1947},{"$f":"RANDBETWEEN(1928,2022)","v":1982},{"$f":"RANDBETWEEN(1928,2022)","v":1976},{"$f":"RANDBETWEEN(1928,2022)","v":1967},{"$f":"RANDBETWEEN(1928,2022)","v":2008},{"$f":"RANDBETWEEN(1928,2022)","v":2021},{"$f":"RANDBETWEEN(1928,2022)","v":1934},{"$f":"RANDBETWEEN(1928,2022)","v":1939},{"$f":"RANDBETWEEN(1928,2022)","v":2009},{"$f":"RANDBETWEEN(1928,2022)","v":2003},{"$f":"RANDBETWEEN(1928,2022)","v":1951},{"$f":"RANDBETWEEN(1928,2022)","v":1944},{"$f":"RANDBETWEEN(1928,2022)","v":1967},{"$f":"RANDBETWEEN(1928,2022)","v":1989},{"$f":"RANDBETWEEN(1928,2022)","v":1948},{"$f":"RANDBETWEEN(1928,2022)","v":2020},{"$f":"RANDBETWEEN(1928,2022)","v":1994},{"$f":"RANDBETWEEN(1928,2022)","v":1949},{"$f":"RANDBETWEEN(1928,2022)","v":1950},{"$f":"RANDBETWEEN(1928,2022)","v":1993},{"$f":"RANDBETWEEN(1928,2022)","v":1972},{"$f":"RANDBETWEEN(1928,2022)","v":1970},{"$f":"RANDBETWEEN(1928,2022)","v":1991}]
[{"$f":"RANDBETWEEN(1928,2022)","v":1966},{"$f":"RANDBETWEEN(1928,2022)","v":1956},{"$f":"RANDBETWEEN(1928,2022)","v":1930},{"$f":"RANDBETWEEN(1928,2022)","v":1950},{"$f":"RANDBETWEEN(1928,2022)","v":1983},{"$f":"RANDBETWEEN(1928,2022)","v":2020},{"$f":"RANDBETWEEN(1928,2022)","v":1931},{"$f":"RANDBETWEEN(1928,2022)","v":2006},{"$f":"RANDBETWEEN(1928,2022)","v":2001},{"$f":"RANDBETWEEN(1928,2022)","v":1944},{"$f":"RANDBETWEEN(1928,2022)","v":1985},{"$f":"RANDBETWEEN(1928,2022)","v":1942},{"$f":"RANDBETWEEN(1928,2022)","v":2016},{"$f":"RANDBETWEEN(1928,2022)","v":1945},{"$f":"RANDBETWEEN(1928,2022)","v":2015},{"$f":"RANDBETWEEN(1928,2022)","v":1946},{"$f":"RANDBETWEEN(1928,2022)","v":2009},{"$f":"RANDBETWEEN(1928,2022)","v":1941},{"$f":"RANDBETWEEN(1928,2022)","v":1942},{"$f":"RANDBETWEEN(1928,2022)","v":1988},{"$f":"RANDBETWEEN(1928,2022)","v":1956},{"$f":"RANDBETWEEN(1928,2022)","v":1988},{"$f":"RANDBETWEEN(1928,2022)","v":1989},{"$f":"RANDBETWEEN(1928,2022)","v":1930},{"$f":"RANDBETWEEN(1928,2022)","v":1977},{"$f":"RANDBETWEEN(1928,2022)","v":1967},{"$f":"RANDBETWEEN(1928,2022)","v":1994},{"$f":"RANDBETWEEN(1928,2022)","v":2004},{"$f":"RANDBETWEEN(1928,2022)","v":1953},{"$f":"RANDBETWEEN(1928,2022)","v":1939},{"$f":"RANDBETWEEN(1928,2022)","v":1939},{"$f":"RANDBETWEEN(1928,2022)","v":2000},{"$f":"RANDBETWEEN(1928,2022)","v":1942},{"$f":"RANDBETWEEN(1928,2022)","v":1976},{"$f":"RANDBETWEEN(1928,2022)","v":1930},{"$f":"RANDBETWEEN(1928,2022)","v":1970},{"$f":"RANDBETWEEN(1928,2022)","v":1960},{"$f":"RANDBETWEEN(1928,2022)","v":1965},{"$f":"RANDBETWEEN(1928,2022)","v":1942},{"$f":"RANDBETWEEN(1928,2022)","v":1985},{"$f":"RANDBETWEEN(1928,2022)","v":2006},{"$f":"RANDBETWEEN(1928,2022)","v":2007},{"$f":"RANDBETWEEN(1928,2022)","v":2017},{"$f":"RANDBETWEEN(1928,2022)","v":1990},{"$f":"RANDBETWEEN(1928,2022)","v":1952},{"$f":"RANDBETWEEN(1928,2022)","v":2013},{"$f":"RANDBETWEEN(1928,2022)","v":1959},{"$f":"RANDBETWEEN(1928,2022)","v":2003},{"$f":"RANDBETWEEN(1928,2022)","v":1975},{"$f":"RANDBETWEEN(1928,2022)","v":1981},{"$f":"RANDBETWEEN(1928,2022)","v":1938},{"$f":"RANDBETWEEN(1928,2022)","v":1999},{"$f":"RANDBETWEEN(1928,2022)","v":2016},{"$f":"RANDBETWEEN(1928,2022)","v":1989},{"$f":"RANDBETWEEN(1928,2022)","v":1983},{"$f":"RANDBETWEEN(1928,2022)","v":1973},{"$f":"RANDBETWEEN(1928,2022)","v":1931},{"$f":"RANDBETWEEN(1928,2022)","v":1949},{"$f":"RANDBETWEEN(1928,2022)","v":1949},{"$f":"RANDBETWEEN(1928,2022)","v":2007},{"$f":"RANDBETWEEN(1928,2022)","v":1962},{"$f":"RANDBETWEEN(1928,2022)","v":1968},{"$f":"RANDBETWEEN(1928,2022)","v":1988},{"$f":"RANDBETWEEN(1928,2022)","v":1985},{"$f":"RANDBETWEEN(1928,2022)","v":1955},{"$f":"RANDBETWEEN(1928,2022)","v":1950},{"$f":"RANDBETWEEN(1928,2022)","v":1928},{"$f":"RANDBETWEEN(1928,2022)","v":1949},{"$f":"RANDBETWEEN(1928,2022)","v":2010},{"$f":"RANDBETWEEN(1928,2022)","v":2011},{"$f":"RANDBETWEEN(1928,2022)","v":1946},{"$f":"RANDBETWEEN(1928,2022)","v":1937},{"$f":"RANDBETWEEN(1928,2022)","v":1929},{"$f":"RANDBETWEEN(1928,2022)","v":1989},{"$f":"RANDBETWEEN(1928,2022)","v":2003},{"$f":"RANDBETWEEN(1928,2022)","v":2015},{"$f":"RANDBETWEEN(1928,2022)","v":1931},{"$f":"RANDBETWEEN(1928,2022)","v":1973},{"$f":"RANDBETWEEN(1928,2022)","v":1960},{"$f":"RANDBETWEEN(1928,2022)","v":2014},{"$f":"RANDBETWEEN(1928,2022)","v":1954},{"$f":"RANDBETWEEN(1928,2022)","v":1941},{"$f":"RANDBETWEEN(1928,2022)","v":1940},{"$f":"RANDBETWEEN(1928,2022)","v":1996},{"$f":"RANDBETWEEN(1928,2022)","v":1967},{"$f":"RANDBETWEEN(1928,2022)","v":2012},{"$f":"RANDBETWEEN(1928,2022)","v":2020},{"$f":"RANDBETWEEN(1928,2022)","v":1948},{"$f":"RANDBETWEEN(1928,2022)","v":1953},{"$f":"RANDBETWEEN(1928,2022)","v":2003},{"$f":"RANDBETWEEN(1928,2022)","v":2012},{"$f":"RANDBETWEEN(1928,2022)","v":1952},{"$f":"RANDBETWEEN(1928,2022)","v":1965},{"$f":"RANDBETWEEN(1928,2022)","v":1966},{"$f":"RANDBETWEEN(1928,2022)","v":2007},{"$f":"RANDBETWEEN(1928,2022)","v":1956},{"$f":"RANDBETWEEN(1928,2022)","v":1962},{"$f":"RANDBETWEEN(1928,2022)","v":1941},{"$f":"RANDBETWEEN(1928,2022)","v":2012},{"$f":"RANDBETWEEN(1928,2022)","v":1993}]
[{"$f":"RANDBETWEEN(1928,2022)","v":1945},{"$f":"RANDBETWEEN(1928,2022)","v":1956},{"$f":"RANDBETWEEN(1928,2022)","v":1946},{"$f":"RANDBETWEEN(1928,2022)","v":2004},{"$f":"RANDBETWEEN(1928,2022)","v":1948},{"$f":"RANDBETWEEN(1928,2022)","v":1984},{"$f":"RANDBETWEEN(1928,2022)","v":1954},{"$f":"RANDBETWEEN(1928,2022)","v":1976},{"$f":"RANDBETWEEN(1928,2022)","v":1949},{"$f":"RANDBETWEEN(1928,2022)","v":2016},{"$f":"RANDBETWEEN(1928,2022)","v":1965},{"$f":"RANDBETWEEN(1928,2022)","v":2000},{"$f":"RANDBETWEEN(1928,2022)","v":1957},{"$f":"RANDBETWEEN(1928,2022)","v":1944},{"$f":"RANDBETWEEN(1928,2022)","v":1952},{"$f":"RANDBETWEEN(1928,2022)","v":1935},{"$f":"RANDBETWEEN(1928,2022)","v":1935},{"$f":"RANDBETWEEN(1928,2022)","v":1930},{"$f":"RANDBETWEEN(1928,2022)","v":1974},{"$f":"RANDBETWEEN(1928,2022)","v":2008},{"$f":"RANDBETWEEN(1928,2022)","v":1959},{"$f":"RANDBETWEEN(1928,2022)","v":1936},{"$f":"RANDBETWEEN(1928,2022)","v":1939},{"$f":"RANDBETWEEN(1928,2022)","v":1941},{"$f":"RANDBETWEEN(1928,2022)","v":1935},{"$f":"RANDBETWEEN(1928,2022)","v":2021},{"$f":"RANDBETWEEN(1928,2022)","v":1952},{"$f":"RANDBETWEEN(1928,2022)","v":1973},{"$f":"RANDBETWEEN(1928,2022)","v":2015},{"$f":"RANDBETWEEN(1928,2022)","v":2021},{"$f":"RANDBETWEEN(1928,2022)","v":2013},{"$f":"RANDBETWEEN(1928,2022)","v":1953},{"$f":"RANDBETWEEN(1928,2022)","v":1968},{"$f":"RANDBETWEEN(1928,2022)","v":1994},{"$f":"RANDBETWEEN(1928,2022)","v":1980},{"$f":"RANDBETWEEN(1928,2022)","v":2002},{"$f":"RANDBETWEEN(1928,2022)","v":2005},{"$f":"RANDBETWEEN(1928,2022)","v":1959},{"$f":"RANDBETWEEN(1928,2022)","v":1972},{"$f":"RANDBETWEEN(1928,2022)","v":2007},{"$f":"RANDBETWEEN(1928,2022)","v":2020},{"$f":"RANDBETWEEN(1928,2022)","v":1934},{"$f":"RANDBETWEEN(1928,2022)","v":2004},{"$f":"RANDBETWEEN(1928,2022)","v":2018},{"$f":"RANDBETWEEN(1928,2022)","v":1995},{"$f":"RANDBETWEEN(1928,2022)","v":2005},{"$f":"RANDBETWEEN(1928,2022)","v":1931},{"$f":"RANDBETWEEN(1928,2022)","v":2005},{"$f":"RANDBETWEEN(1928,2022)","v":2001},{"$f":"RANDBETWEEN(1928,2022)","v":1992},{"$f":"RANDBETWEEN(1928,2022)","v":1990},{"$f":"RANDBETWEEN(1928,2022)","v":1964},{"$f":"RANDBETWEEN(1928,2022)","v":2007},{"$f":"RANDBETWEEN(1928,2022)","v":1991},{"$f":"RANDBETWEEN(1928,2022)","v":2001},{"$f":"RANDBETWEEN(1928,2022)","v":1940},{"$f":"RANDBETWEEN(1928,2022)","v":2007},{"$f":"RANDBETWEEN(1928,2022)","v":1928},{"$f":"RANDBETWEEN(1928,2022)","v":2007},{"$f":"RANDBETWEEN(1928,2022)","v":1957},{"$f":"RANDBETWEEN(1928,2022)","v":1998},{"$f":"RANDBETWEEN(1928,2022)","v":1968},{"$f":"RANDBETWEEN(1928,2022)","v":1973},{"$f":"RANDBETWEEN(1928,2022)","v":2010},{"$f":"RANDBETWEEN(1928,2022)","v":2020},{"$f":"RANDBETWEEN(1928,2022)","v":2004},{"$f":"RANDBETWEEN(1928,2022)","v":1933},{"$f":"RANDBETWEEN(1928,2022)","v":1956},{"$f":"RANDBETWEEN(1928,2022)","v":1975},{"$f":"RANDBETWEEN(1928,2022)","v":1988},{"$f":"RANDBETWEEN(1928,2022)","v":1970},{"$f":"RANDBETWEEN(1928,2022)","v":1969},{"$f":"RANDBETWEEN(1928,2022)","v":1966},{"$f":"RANDBETWEEN(1928,2022)","v":1975},{"$f":"RANDBETWEEN(1928,2022)","v":1936},{"$f":"RANDBETWEEN(1928,2022)","v":1950},{"$f":"RANDBETWEEN(1928,2022)","v":2017},{"$f":"RANDBETWEEN(1928,2022)","v":1946},{"$f":"RANDBETWEEN(1928,2022)","v":1953},{"$f":"RANDBETWEEN(1928,2022)","v":2015},{"$f":"RANDBETWEEN(1928,2022)","v":1972},{"$f":"RANDBETWEEN(1928,2022)","v":1957},{"$f":"RANDBETWEEN(1928,2022)","v":1973},{"$f":"RANDBETWEEN(1928,2022)","v":1937},{"$f":"RANDBETWEEN(1928,2022)","v":1930},{"$f":"RANDBETWEEN(1928,2022)","v":1938},{"$f":"RANDBETWEEN(1928,2022)","v":1947},{"$f":"RANDBETWEEN(1928,2022)","v":1956},{"$f":"RANDBETWEEN(1928,2022)","v":1943},{"$f":"RANDBETWEEN(1928,2022)","v":1957},{"$f":"RANDBETWEEN(1928,2022)","v":1949},{"$f":"RANDBETWEEN(1928,2022)","v":2019},{"$f":"RANDBETWEEN(1928,2022)","v":1932},{"$f":"RANDBETWEEN(1928,2022)","v":2013},{"$f":"RANDBETWEEN(1928,2022)","v":2009},{"$f":"RANDBETWEEN(1928,2022)","v":1988},{"$f":"RANDBETWEEN(1928,2022)","v":1967},{"$f":"RANDBETWEEN(1928,2022)","v":1982},{"$f":"RANDBETWEEN(1928,2022)","v":1947},{"$f":"RANDBETWEEN(1928,2022)","v":1942}]
[{"$f":"RANDBETWEEN(1928,2022)","v":2006},{"$f":"RANDBETWEEN(1928,2022)","v":2022},{"$f":"RANDBETWEEN(1928,2022)","v":1995},{"$f":"RANDBETWEEN(1928,2022)","v":1962},{"$f":"RANDBETWEEN(1928,2022)","v":1934},{"$f":"RANDBETWEEN(1928,2022)","v":1947},{"$f":"RANDBETWEEN(1928,2022)","v":1938},{"$f":"RANDBETWEEN(1928,2022)","v":2004},{"$f":"RANDBETWEEN(1928,2022)","v":2011},{"$f":"RANDBETWEEN(1928,2022)","v":1941},{"$f":"RANDBETWEEN(1928,2022)","v":2015},{"$f":"RANDBETWEEN(1928,2022)","v":1967},{"$f":"RANDBETWEEN(1928,2022)","v":1977},{"$f":"RANDBETWEEN(1928,2022)","v":1999},{"$f":"RANDBETWEEN(1928,2022)","v":1936},{"$f":"RANDBETWEEN(1928,2022)","v":1966},{"$f":"RANDBETWEEN(1928,2022)","v":1929},{"$f":"RANDBETWEEN(1928,2022)","v":1980},{"$f":"RANDBETWEEN(1928,2022)","v":1936},{"$f":"RANDBETWEEN(1928,2022)","v":1956},{"$f":"RANDBETWEEN(1928,2022)","v":1977},{"$f":"RANDBETWEEN(1928,2022)","v":1932},{"$f":"RANDBETWEEN(1928,2022)","v":1964},{"$f":"RANDBETWEEN(1928,2022)","v":2001},{"$f":"RANDBETWEEN(1928,2022)","v":2019},{"$f":"RANDBETWEEN(1928,2022)","v":1928},{"$f":"RANDBETWEEN(1928,2022)","v":1950},{"$f":"RANDBETWEEN(1928,2022)","v":1932},{"$f":"RANDBETWEEN(1928,2022)","v":2007},{"$f":"RANDBETWEEN(1928,2022)","v":1947},{"$f":"RANDBETWEEN(1928,2022)","v":2019},{"$f":"RANDBETWEEN(1928,2022)","v":2001},{"$f":"RANDBETWEEN(1928,2022)","v":2009},{"$f":"RANDBETWEEN(1928,2022)","v":1938},{"$f":"RANDBETWEEN(1928,2022)","v":2015},{"$f":"RANDBETWEEN(1928,2022)","v":1957},{"$f":"RANDBETWEEN(1928,2022)","v":1950},{"$f":"RANDBETWEEN(1928,2022)","v":1931},{"$f":"RANDBETWEEN(1928,2022)","v":1962},{"$f":"RANDBETWEEN(1928,2022)","v":1947},{"$f":"RANDBETWEEN(1928,2022)","v":1983},{"$f":"RANDBETWEEN(1928,2022)","v":1970},{"$f":"RANDBETWEEN(1928,2022)","v":2011},{"$f":"RANDBETWEEN(1928,2022)","v":1929},{"$f":"RANDBETWEEN(1928,2022)","v":2021},{"$f":"RANDBETWEEN(1928,2022)","v":2008},{"$f":"RANDBETWEEN(1928,2022)","v":1962},{"$f":"RANDBETWEEN(1928,2022)","v":2008},{"$f":"RANDBETWEEN(1928,2022)","v":1964},{"$f":"RANDBETWEEN(1928,2022)","v":1991},{"$f":"RANDBETWEEN(1928,2022)","v":2020},{"$f":"RANDBETWEEN(1928,2022)","v":1980},{"$f":"RANDBETWEEN(1928,2022)","v":2005},{"$f":"RANDBETWEEN(1928,2022)","v":1977},{"$f":"RANDBETWEEN(1928,2022)","v":1954},{"$f":"RANDBETWEEN(1928,2022)","v":2006},{"$f":"RANDBETWEEN(1928,2022)","v":1983},{"$f":"RANDBETWEEN(1928,2022)","v":1954},{"$f":"RANDBETWEEN(1928,2022)","v":1948},{"$f":"RANDBETWEEN(1928,2022)","v":1959},{"$f":"RANDBETWEEN(1928,2022)","v":2019},{"$f":"RANDBETWEEN(1928,2022)","v":1969},{"$f":"RANDBETWEEN(1928,2022)","v":1943},{"$f":"RANDBETWEEN(1928,2022)","v":2014},{"$f":"RANDBETWEEN(1928,2022)","v":1982},{"$f":"RANDBETWEEN(1928,2022)","v":1931},{"$f":"RANDBETWEEN(1928,2022)","v":2018},{"$f":"RANDBETWEEN(1928,2022)","v":1972},{"$f":"RANDBETWEEN(1928,2022)","v":1952},{"$f":"RANDBETWEEN(1928,2022)","v":1951},{"$f":"RANDBETWEEN(1928,2022)","v":1963},{"$f":"RANDBETWEEN(1928,2022)","v":1951},{"$f":"RANDBETWEEN(1928,2022)","v":1954},{"$f":"RANDBETWEEN(1928,2022)","v":1957},{"$f":"RANDBETWEEN(1928,2022)","v":2021},{"$f":"RANDBETWEEN(1928,2022)","v":2016},{"$f":"RANDBETWEEN(1928,2022)","v":1976},{"$f":"RANDBETWEEN(1928,2022)","v":1978},{"$f":"RANDBETWEEN(1928,2022)","v":1995},{"$f":"RANDBETWEEN(1928,2022)","v":1978},{"$f":"RANDBETWEEN(1928,2022)","v":2018},{"$f":"RANDBETWEEN(1928,2022)","v":1991},{"$f":"RANDBETWEEN(1928,2022)","v":2002},{"$f":"RANDBETWEEN(1928,2022)","v":2021},{"$f":"RANDBETWEEN(1928,2022)","v":1939},{"$f":"RANDBETWEEN(1928,2022)","v":2021},{"$f":"RANDBETWEEN(1928,2022)","v":2009},{"$f":"RANDBETWEEN(1928,2022)","v":1998},{"$f":"RANDBETWEEN(1928,2022)","v":1977},{"$f":"RANDBETWEEN(1928,2022)","v":1943},{"$f":"RANDBETWEEN(1928,2022)","v":2006},{"$f":"RANDBETWEEN(1928,2022)","v":1939},{"$f":"RANDBETWEEN(1928,2022)","v":2004},{"$f":"RANDBETWEEN(1928,2022)","v":1975},{"$f":"RANDBETWEEN(1928,2022)","v":1999},{"$f":"RANDBETWEEN(1928,2022)","v":2016},{"$f":"RANDBETWEEN(1928,2022)","v":2017},{"$f":"RANDBETWEEN(1928,2022)","v":1952},{"$f":"RANDBETWEEN(1928,2022)","v":1959},{"$f":"RANDBETWEEN(1928,2022)","v":1982}]
[{"$f":"RANDBETWEEN(1928,2022)","v":1955},{"$f":"RANDBETWEEN(1928,2022)","v":2014},{"$f":"RANDBETWEEN(1928,2022)","v":1949},{"$f":"RANDBETWEEN(1928,2022)","v":2003},{"$f":"RANDBETWEEN(1928,2022)","v":1935},{"$f":"RANDBETWEEN(1928,2022)","v":1943},{"$f":"RANDBETWEEN(1928,2022)","v":1997},{"$f":"RANDBETWEEN(1928,2022)","v":1986},{"$f":"RANDBETWEEN(1928,2022)","v":1981},{"$f":"RANDBETWEEN(1928,2022)","v":2003},{"$f":"RANDBETWEEN(1928,2022)","v":1975},{"$f":"RANDBETWEEN(1928,2022)","v":1968},{"$f":"RANDBETWEEN(1928,2022)","v":1929},{"$f":"RANDBETWEEN(1928,2022)","v":1967},{"$f":"RANDBETWEEN(1928,2022)","v":2022},{"$f":"RANDBETWEEN(1928,2022)","v":1951},{"$f":"RANDBETWEEN(1928,2022)","v":2009},{"$f":"RANDBETWEEN(1928,2022)","v":1981},{"$f":"RANDBETWEEN(1928,2022)","v":1938},{"$f":"RANDBETWEEN(1928,2022)","v":1949},{"$f":"RANDBETWEEN(1928,2022)","v":2008},{"$f":"RANDBETWEEN(1928,2022)","v":1984},{"$f":"RANDBETWEEN(1928,2022)","v":1944},{"$f":"RANDBETWEEN(1928,2022)","v":1953},{"$f":"RANDBETWEEN(1928,2022)","v":2015},{"$f":"RANDBETWEEN(1928,2022)","v":1981},{"$f":"RANDBETWEEN(1928,2022)","v":1941},{"$f":"RANDBETWEEN(1928,2022)","v":1949},{"$f":"RANDBETWEEN(1928,2022)","v":1997},{"$f":"RANDBETWEEN(1928,2022)","v":1960},{"$f":"RANDBETWEEN(1928,2022)","v":1943},{"$f":"RANDBETWEEN(1928,2022)","v":2001},{"$f":"RANDBETWEEN(1928,2022)","v":1944},{"$f":"RANDBETWEEN(1928,2022)","v":1985},{"$f":"RANDBETWEEN(1928,2022)","v":1939},{"$f":"RANDBETWEEN(1928,2022)","v":1985},{"$f":"RANDBETWEEN(1928,2022)","v":1966},{"$f":"RANDBETWEEN(1928,2022)","v":1944},{"$f":"RANDBETWEEN(1928,2022)","v":2012},{"$f":"RANDBETWEEN(1928,2022)","v":1935},{"$f":"RANDBETWEEN(1928,2022)","v":1984},{"$f":"RANDBETWEEN(1928,2022)","v":1941},{"$f":"RANDBETWEEN(1928,2022)","v":2020},{"$f":"RANDBETWEEN(1928,2022)","v":1974},{"$f":"RANDBETWEEN(1928,2022)","v":1962},{"$f":"RANDBETWEEN(1928,2022)","v":1957},{"$f":"RANDBETWEEN(1928,2022)","v":1987},{"$f":"RANDBETWEEN(1928,2022)","v":1981},{"$f":"RANDBETWEEN(1928,2022)","v":2022},{"$f":"RANDBETWEEN(1928,2022)","v":1939},{"$f":"RANDBETWEEN(1928,2022)","v":2016},{"$f":"RANDBETWEEN(1928,2022)","v":1959},{"$f":"RANDBETWEEN(1928,2022)","v":2022},{"$f":"RANDBETWEEN(1928,2022)","v":1982},{"$f":"RANDBETWEEN(1928,2022)","v":1941},{"$f":"RANDBETWEEN(1928,2022)","v":1946},{"$f":"RANDBETWEEN(1928,2022)","v":1989},{"$f":"RANDBETWEEN(1928,2022)","v":1960},{"$f":"RANDBETWEEN(1928,2022)","v":2000},{"$f":"RANDBETWEEN(1928,2022)","v":1934},{"$f":"RANDBETWEEN(1928,2022)","v":1983},{"$f":"RANDBETWEEN(1928,2022)","v":2004},{"$f":"RANDBETWEEN(1928,2022)","v":1990},{"$f":"RANDBETWEEN(1928,2022)","v":2000},{"$f":"RANDBETWEEN(1928,2022)","v":2019},{"$f":"RANDBETWEEN(1928,2022)","v":1957},{"$f":"RANDBETWEEN(1928,2022)","v":1940},{"$f":"RANDBETWEEN(1928,2022)","v":2007},{"$f":"RANDBETWEEN(1928,2022)","v":1979},{"$f":"RANDBETWEEN(1928,2022)","v":1931},{"$f":"RANDBETWEEN(1928,2022)","v":1943},{"$f":"RANDBETWEEN(1928,2022)","v":1958},{"$f":"RANDBETWEEN(1928,2022)","v":2018},{"$f":"RANDBETWEEN(1928,2022)","v":2010},{"$f":"RANDBETWEEN(1928,2022)","v":1962},{"$f":"RANDBETWEEN(1928,2022)","v":1967},{"$f":"RANDBETWEEN(1928,2022)","v":2017},{"$f":"RANDBETWEEN(1928,2022)","v":2004},{"$f":"RANDBETWEEN(1928,2022)","v":1976},{"$f":"RANDBETWEEN(1928,2022)","v":1973},{"$f":"RANDBETWEEN(1928,2022)","v":1995},{"$f":"RANDBETWEEN(1928,2022)","v":2001},{"$f":"RANDBETWEEN(1928,2022)","v":1981},{"$f":"RANDBETWEEN(1928,2022)","v":1983},{"$f":"RANDBETWEEN(1928,2022)","v":1937},{"$f":"RANDBETWEEN(1928,2022)","v":1949},{"$f":"RANDBETWEEN(1928,2022)","v":1991},{"$f":"RANDBETWEEN(1928,2022)","v":1994},{"$f":"RANDBETWEEN(1928,2022)","v":1956},{"$f":"RANDBETWEEN(1928,2022)","v":2019},{"$f":"RANDBETWEEN(1928,2022)","v":1941},{"$f":"RANDBETWEEN(1928,2022)","v":1995},{"$f":"RANDBETWEEN(1928,2022)","v":1947},{"$f":"RANDBETWEEN(1928,2022)","v":1976},{"$f":"RANDBETWEEN(1928,2022)","v":1995},{"$f":"RANDBETWEEN(1928,2022)","v":1998},{"$f":"RANDBETWEEN(1928,2022)","v":2020},{"$f":"RANDBETWEEN(1928,2022)","v":2016},{"$f":"RANDBETWEEN(1928,2022)","v":2007},{"$f":"RANDBETWEEN(1928,2022)","v":1975}]
[{"$f":"RANDBETWEEN(1928,2022)","v":1971},{"$f":"RANDBETWEEN(1928,2022)","v":2001},{"$f":"RANDBETWEEN(1928,2022)","v":1934},{"$f":"RANDBETWEEN(1928,2022)","v":1992},{"$f":"RANDBETWEEN(1928,2022)","v":1966},{"$f":"RANDBETWEEN(1928,2022)","v":1958},{"$f":"RANDBETWEEN(1928,2022)","v":2008},{"$f":"RANDBETWEEN(1928,2022)","v":1936},{"$f":"RANDBETWEEN(1928,2022)","v":1974},{"$f":"RANDBETWEEN(1928,2022)","v":1949},{"$f":"RANDBETWEEN(1928,2022)","v":1944},{"$f":"RANDBETWEEN(1928,2022)","v":1996},{"$f":"RANDBETWEEN(1928,2022)","v":1942},{"$f":"RANDBETWEEN(1928,2022)","v":1942},{"$f":"RANDBETWEEN(1928,2022)","v":1941},{"$f":"RANDBETWEEN(1928,2022)","v":1944},{"$f":"RANDBETWEEN(1928,2022)","v":1968},{"$f":"RANDBETWEEN(1928,2022)","v":1993},{"$f":"RANDBETWEEN(1928,2022)","v":1974},{"$f":"RANDBETWEEN(1928,2022)","v":1996},{"$f":"RANDBETWEEN(1928,2022)","v":2016},{"$f":"RANDBETWEEN(1928,2022)","v":1962},{"$f":"RANDBETWEEN(1928,2022)","v":2002},{"$f":"RANDBETWEEN(1928,2022)","v":2014},{"$f":"RANDBETWEEN(1928,2022)","v":1950},{"$f":"RANDBETWEEN(1928,2022)","v":2016},{"$f":"RANDBETWEEN(1928,2022)","v":1990},{"$f":"RANDBETWEEN(1928,2022)","v":1937},{"$f":"RANDBETWEEN(1928,2022)","v":1939},{"$f":"RANDBETWEEN(1928,2022)","v":1996},{"$f":"RANDBETWEEN(1928,2022)","v":1952},{"$f":"RANDBETWEEN(1928,2022)","v":1991},{"$f":"RANDBETWEEN(1928,2022)","v":1955},{"$f":"RANDBETWEEN(1928,2022)","v":2020},{"$f":"RANDBETWEEN(1928,2022)","v":1953},{"$f":"RANDBETWEEN(1928,2022)","v":1988},{"$f":"RANDBETWEEN(1928,2022)","v":2019},{"$f":"RANDBETWEEN(1928,2022)","v":2019},{"$f":"RANDBETWEEN(1928,2022)","v":1959},{"$f":"RANDBETWEEN(1928,2022)","v":2016},{"$f":"RANDBETWEEN(1928,2022)","v":1952},{"$f":"RANDBETWEEN(1928,2022)","v":2006},{"$f":"RANDBETWEEN(1928,2022)","v":2021},{"$f":"RANDBETWEEN(1928,2022)","v":1932},{"$f":"RANDBETWEEN(1928,2022)","v":1979},{"$f":"RANDBETWEEN(1928,2022)","v":1954},{"$f":"RANDBETWEEN(1928,2022)","v":1975},{"$f":"RANDBETWEEN(1928,2022)","v":1987},{"$f":"RANDBETWEEN(1928,2022)","v":1993},{"$f":"RANDBETWEEN(1928,2022)","v":2022},{"$f":"RANDBETWEEN(1928,2022)","v":1930},{"$f":"RANDBETWEEN(1928,2022)","v":2020},{"$f":"RANDBETWEEN(1928,2022)","v":1935},{"$f":"RANDBETWEEN(1928,2022)","v":1946},{"$f":"RANDBETWEEN(1928,2022)","v":1997},{"$f":"RANDBETWEEN(1928,2022)","v":1964},{"$f":"RANDBETWEEN(1928,2022)","v":1987},{"$f":"RANDBETWEEN(1928,2022)","v":1940},{"$f":"RANDBETWEEN(1928,2022)","v":1972},{"$f":"RANDBETWEEN(1928,2022)","v":2018},{"$f":"RANDBETWEEN(1928,2022)","v":1994},{"$f":"RANDBETWEEN(1928,2022)","v":1932},{"$f":"RANDBETWEEN(1928,2022)","v":1950},{"$f":"RANDBETWEEN(1928,2022)","v":1954},{"$f":"RANDBETWEEN(1928,2022)","v":1932},{"$f":"RANDBETWEEN(1928,2022)","v":1981},{"$f":"RANDBETWEEN(1928,2022)","v":1944},{"$f":"RANDBETWEEN(1928,2022)","v":1957},{"$f":"RANDBETWEEN(1928,2022)","v":1990},{"$f":"RANDBETWEEN(1928,2022)","v":1974},{"$f":"RANDBETWEEN(1928,2022)","v":2006},{"$f":"RANDBETWEEN(1928,2022)","v":1973},{"$f":"RANDBETWEEN(1928,2022)","v":2022},{"$f":"RANDBETWEEN(1928,2022)","v":1969},{"$f":"RANDBETWEEN(1928,2022)","v":1945},{"$f":"RANDBETWEEN(1928,2022)","v":1930},{"$f":"RANDBETWEEN(1928,2022)","v":1979},{"$f":"RANDBETWEEN(1928,2022)","v":1988},{"$f":"RANDBETWEEN(1928,2022)","v":1928},{"$f":"RANDBETWEEN(1928,2022)","v":1930},{"$f":"RANDBETWEEN(1928,2022)","v":1933},{"$f":"RANDBETWEEN(1928,2022)","v":2022},{"$f":"RANDBETWEEN(1928,2022)","v":2017},{"$f":"RANDBETWEEN(1928,2022)","v":2020},{"$f":"RANDBETWEEN(1928,2022)","v":2000},{"$f":"RANDBETWEEN(1928,2022)","v":1958},{"$f":"RANDBETWEEN(1928,2022)","v":1964},{"$f":"RANDBETWEEN(1928,2022)","v":1953},{"$f":"RANDBETWEEN(1928,2022)","v":1999},{"$f":"RANDBETWEEN(1928,2022)","v":1971},{"$f":"RANDBETWEEN(1928,2022)","v":1951},{"$f":"RANDBETWEEN(1928,2022)","v":1972},{"$f":"RANDBETWEEN(1928,2022)","v":1939},{"$f":"RANDBETWEEN(1928,2022)","v":1980},{"$f":"RANDBETWEEN(1928,2022)","v":2015},{"$f":"RANDBETWEEN(1928,2022)","v":1952},{"$f":"RANDBETWEEN(1928,2022)","v":1932},{"$f":"RANDBETWEEN(1928,2022)","v":1958},{"$f":"RANDBETWEEN(1928,2022)","v":1966},{"$f":"RANDBETWEEN(1928,2022)","v":1959}]
[{"$f":"RANDBETWEEN(1928,2022)","v":1956},{"$f":"RANDBETWEEN(1928,2022)","v":1938},{"$f":"RANDBETWEEN(1928,2022)","v":2016},{"$f":"RANDBETWEEN(1928,2022)","v":2008},{"$f":"RANDBETWEEN(1928,2022)","v":2020},{"$f":"RANDBETWEEN(1928,2022)","v":1947},{"$f":"RANDBETWEEN(1928,2022)","v":1982},{"$f":"RANDBETWEEN(1928,2022)","v":2014},{"$f":"RANDBETWEEN(1928,2022)","v":1979},{"$f":"RANDBETWEEN(1928,2022)","v":1935},{"$f":"RANDBETWEEN(1928,2022)","v":1969},{"$f":"RANDBETWEEN(1928,2022)","v":1932},{"$f":"RANDBETWEEN(1928,2022)","v":1954},{"$f":"RANDBETWEEN(1928,2022)","v":1984},{"$f":"RANDBETWEEN(1928,2022)","v":1990},{"$f":"RANDBETWEEN(1928,2022)","v":2008},{"$f":"RANDBETWEEN(1928,2022)","v":1930},{"$f":"RANDBETWEEN(1928,2022)","v":1994},{"$f":"RANDBETWEEN(1928,2022)","v":1962},{"$f":"RANDBETWEEN(1928,2022)","v":1941},{"$f":"RANDBETWEEN(1928,2022)","v":1940},{"$f":"RANDBETWEEN(1928,2022)","v":1935},{"$f":"RANDBETWEEN(1928,2022)","v":2015},{"$f":"RANDBETWEEN(1928,2022)","v":2010},{"$f":"RANDBETWEEN(1928,2022)","v":1981},{"$f":"RANDBETWEEN(1928,2022)","v":2015},{"$f":"RANDBETWEEN(1928,2022)","v":1986},{"$f":"RANDBETWEEN(1928,2022)","v":1980},{"$f":"RANDBETWEEN(1928,2022)","v":1945},{"$f":"RANDBETWEEN(1928,2022)","v":1938},{"$f":"RANDBETWEEN(1928,2022)","v":2001},{"$f":"RANDBETWEEN(1928,2022)","v":1987},{"$f":"RANDBETWEEN(1928,2022)","v":1943},{"$f":"RANDBETWEEN(1928,2022)","v":1948},{"$f":"RANDBETWEEN(1928,2022)","v":1991},{"$f":"RANDBETWEEN(1928,2022)","v":1947},{"$f":"RANDBETWEEN(1928,2022)","v":1932},{"$f":"RANDBETWEEN(1928,2022)","v":1939},{"$f":"RANDBETWEEN(1928,2022)","v":1940},{"$f":"RANDBETWEEN(1928,2022)","v":1987},{"$f":"RANDBETWEEN(1928,2022)","v":1939},{"$f":"RANDBETWEEN(1928,2022)","v":2007},{"$f":"RANDBETWEEN(1928,2022)","v":2018},{"$f":"RANDBETWEEN(1928,2022)","v":1936},{"$f":"RANDBETWEEN(1928,2022)","v":1933},{"$f":"RANDBETWEEN(1928,2022)","v":2007},{"$f":"RANDBETWEEN(1928,2022)","v":2013},{"$f":"RANDBETWEEN(1928,2022)","v":1952},{"$f":"RANDBETWEEN(1928,2022)","v":1972},{"$f":"RANDBETWEEN(1928,2022)","v":1944},{"$f":"RANDBETWEEN(1928,2022)","v":2016},{"$f":"RANDBETWEEN(1928,2022)","v":1930},{"$f":"RANDBETWEEN(1928,2022)","v":2011},{"$f":"RANDBETWEEN(1928,2022)","v":1960},{"$f":"RANDBETWEEN(1928,2022)","v":1951},{"$f":"RANDBETWEEN(1928,2022)","v":1996},{"$f":"RANDBETWEEN(1928,2022)","v":1992},{"$f":"RANDBETWEEN(1928,2022)","v":2003},{"$f":"RANDBETWEEN(1928,2022)","v":1970},{"$f":"RANDBETWEEN(1928,2022)","v":2011},{"$f":"RANDBETWEEN(1928,2022)","v":2006},{"$f":"RANDBETWEEN(1928,2022)","v":1973},{"$f":"RANDBETWEEN(1928,2022)","v":1981},{"$f":"RANDBETWEEN(1928,2022)","v":2010},{"$f":"RANDBETWEEN(1928,2022)","v":1943},{"$f":"RANDBETWEEN(1928,2022)","v":2004},{"$f":"RANDBETWEEN(1928,2022)","v":1970},{"$f":"RANDBETWEEN(1928,2022)","v":2001},{"$f":"RANDBETWEEN(1928,2022)","v":1991},{"$f":"RANDBETWEEN(1928,2022)","v":1938},{"$f":"RANDBETWEEN(1928,2022)","v":1988},{"$f":"RANDBETWEEN(1928,2022)","v":1930},{"$f":"RANDBETWEEN(1928,2022)","v":1978},{"$f":"RANDBETWEEN(1928,2022)","v":1959},{"$f":"RANDBETWEEN(1928,2022)","v":1939},{"$f":"RANDBETWEEN(1928,2022)","v":1948},{"$f":"RANDBETWEEN(1928,2022)","v":2020},{"$f":"RANDBETWEEN(1928,2022)","v":1992},{"$f":"RANDBETWEEN(1928,2022)","v":1964},{"$f":"RANDBETWEEN(1928,2022)","v":1960},{"$f":"RANDBETWEEN(1928,2022)","v":1992},{"$f":"RANDBETWEEN(1928,2022)","v":1940},{"$f":"RANDBETWEEN(1928,2022)","v":1978},{"$f":"RANDBETWEEN(1928,2022)","v":2021},{"$f":"RANDBETWEEN(1928,2022)","v":2022},{"$f":"RANDBETWEEN(1928,2022)","v":2001},{"$f":"RANDBETWEEN(1928,2022)","v":2020},{"$f":"RANDBETWEEN(1928,2022)","v":1976},{"$f":"RANDBETWEEN(1928,2022)","v":2006},{"$f":"RANDBETWEEN(1928,2022)","v":1938},{"$f":"RANDBETWEEN(1928,2022)","v":2021},{"$f":"RANDBETWEEN(1928,2022)","v":1957},{"$f":"RANDBETWEEN(1928,2022)","v":2000},{"$f":"RANDBETWEEN(1928,2022)","v":1979},{"$f":"RANDBETWEEN(1928,2022)","v":1994},{"$f":"RANDBETWEEN(1928,2022)","v":2009},{"$f":"RANDBETWEEN(1928,2022)","v":1988},{"$f":"RANDBETWEEN(1928,2022)","v":1976},{"$f":"RANDBETWEEN(1928,2022)","v":1935},{"$f":"RANDBETWEEN(1928,2022)","v":2006}]
[{"$f":"RANDBETWEEN(1928,2022)","v":1951},{"$f":"RANDBETWEEN(1928,2022)","v":1958},{"$f":"RANDBETWEEN(1928,2022)","v":1992},{"$f":"RANDBETWEEN(1928,2022)","v":2021},{"$f":"RANDBETWEEN(1928,2022)","v":2008},{"$f":"RANDBETWEEN(1928,2022)","v":1964},{"$f":"RANDBETWEEN(1928,2022)","v":2012},{"$f":"RANDBETWEEN(1928,2022)","v":1939},{"$f":"RANDBETWEEN(1928,2022)","v":2003},{"$f":"RANDBETWEEN(1928,2022)","v":1966},{"$f":"RANDBETWEEN(1928,2022)","v":1984},{"$f":"RANDBETWEEN(1928,2022)","v":2010},{"$f":"RANDBETWEEN(1928,2022)","v":1990},{"$f":"RANDBETWEEN(1928,2022)","v":1970},{"$f":"RANDBETWEEN(1928,2022)","v":1971},{"$f":"RANDBETWEEN(1928,2022)","v":2016},{"$f":"RANDBETWEEN(1928,2022)","v":1987},{"$f":"RANDBETWEEN(1928,2022)","v":2001},{"$f":"RANDBETWEEN(1928,2022)","v":1944},{"$f":"RANDBETWEEN(1928,2022)","v":2012},{"$f":"RANDBETWEEN(1928,2022)","v":1951},{"$f":"RANDBETWEEN(1928,2022)","v":1984},{"$f":"RANDBETWEEN(1928,2022)","v":1943},{"$f":"RANDBETWEEN(1928,2022)","v":1932},{"$f":"RANDBETWEEN(1928,2022)","v":2016},{"$f":"RANDBETWEEN(1928,2022)","v":1934},{"$f":"RANDBETWEEN(1928,2022)","v":1959},{"$f":"RANDBETWEEN(1928,2022)","v":2020},{"$f":"RANDBETWEEN(1928,2022)","v":1942},{"$f":"RANDBETWEEN(1928,2022)","v":1975},{"$f":"RANDBETWEEN(1928,2022)","v":1996},{"$f":"RANDBETWEEN(1928,2022)","v":1996},{"$f":"RANDBETWEEN(1928,2022)","v":1960},{"$f":"RANDBETWEEN(1928,2022)","v":1993},{"$f":"RANDBETWEEN(1928,2022)","v":1943},{"$f":"RANDBETWEEN(1928,2022)","v":1987},{"$f":"RANDBETWEEN(1928,2022)","v":1965},{"$f":"RANDBETWEEN(1928,2022)","v":1973},{"$f":"RANDBETWEEN(1928,2022)","v":2020},{"$f":"RANDBETWEEN(1928,2022)","v":1975},{"$f":"RANDBETWEEN(1928,2022)","v":2018},{"$f":"RANDBETWEEN(1928,2022)","v":1984},{"$f":"RANDBETWEEN(1928,2022)","v":1946},{"$f":"RANDBETWEEN(1928,2022)","v":1996},{"$f":"RANDBETWEEN(1928,2022)","v":1986},{"$f":"RANDBETWEEN(1928,2022)","v":1985},{"$f":"RANDBETWEEN(1928,2022)","v":2001},{"$f":"RANDBETWEEN(1928,2022)","v":1990},{"$f":"RANDBETWEEN(1928,2022)","v":2000},{"$f":"RANDBETWEEN(1928,2022)","v":1970},{"$f":"RANDBETWEEN(1928,2022)","v":2004},{"$f":"RANDBETWEEN(1928,2022)","v":1987},{"$f":"RANDBETWEEN(1928,2022)","v":1965},{"$f":"RANDBETWEEN(1928,2022)","v":1945},{"$f":"RANDBETWEEN(1928,2022)","v":2013},{"$f":"RANDBETWEEN(1928,2022)","v":1929},{"$f":"RANDBETWEEN(1928,2022)","v":1942},{"$f":"RANDBETWEEN(1928,2022)","v":1930},{"$f":"RANDBETWEEN(1928,2022)","v":1959},{"$f":"RANDBETWEEN(1928,2022)","v":2009},{"$f":"RANDBETWEEN(1928,2022)","v":1987},{"$f":"RANDBETWEEN(1928,2022)","v":1967},{"$f":"RANDBETWEEN(1928,2022)","v":2002},{"$f":"RANDBETWEEN(1928,2022)","v":1929},{"$f":"RANDBETWEEN(1928,2022)","v":1955},{"$f":"RANDBETWEEN(1928,2022)","v":1958},{"$f":"RANDBETWEEN(1928,2022)","v":2020},{"$f":"RANDBETWEEN(1928,2022)","v":1949},{"$f":"RANDBETWEEN(1928,2022)","v":1970},{"$f":"RANDBETWEEN(1928,2022)","v":1981},{"$f":"RANDBETWEEN(1928,2022)","v":1947},{"$f":"RANDBETWEEN(1928,2022)","v":2018},{"$f":"RANDBETWEEN(1928,2022)","v":1945},{"$f":"RANDBETWEEN(1928,2022)","v":1975},{"$f":"RANDBETWEEN(1928,2022)","v":1961},{"$f":"RANDBETWEEN(1928,2022)","v":2022},{"$f":"RANDBETWEEN(1928,2022)","v":1929},{"$f":"RANDBETWEEN(1928,2022)","v":1941},{"$f":"RANDBETWEEN(1928,2022)","v":1953},{"$f":"RANDBETWEEN(1928,2022)","v":1928},{"$f":"RANDBETWEEN(1928,2022)","v":1944},{"$f":"RANDBETWEEN(1928,2022)","v":2021},{"$f":"RANDBETWEEN(1928,2022)","v":1937},{"$f":"RANDBETWEEN(1928,2022)","v":1976},{"$f":"RANDBETWEEN(1928,2022)","v":2002},{"$f":"RANDBETWEEN(1928,2022)","v":2008},{"$f":"RANDBETWEEN(1928,2022)","v":1935},{"$f":"RANDBETWEEN(1928,2022)","v":1980},{"$f":"RANDBETWEEN(1928,2022)","v":1965},{"$f":"RANDBETWEEN(1928,2022)","v":1956},{"$f":"RANDBETWEEN(1928,2022)","v":1968},{"$f":"RANDBETWEEN(1928,2022)","v":2016},{"$f":"RANDBETWEEN(1928,2022)","v":2008},{"$f":"RANDBETWEEN(1928,2022)","v":1989},{"$f":"RANDBETWEEN(1928,2022)","v":1977},{"$f":"RANDBETWEEN(1928,2022)","v":2013},{"$f":"RANDBETWEEN(1928,2022)","v":2003},{"$f":"RANDBETWEEN(1928,2022)","v":2006},{"$f":"RANDBETWEEN(1928,2022)","v":1970},{"$f":"RANDBETWEEN(1928,2022)","v":2005}]
[{"$f":"RANDBETWEEN(1928,2022)","v":1932},{"$f":"RANDBETWEEN(1928,2022)","v":1980},{"$f":"RANDBETWEEN(1928,2022)","v":1984},{"$f":"RANDBETWEEN(1928,2022)","v":1939},{"$f":"RANDBETWEEN(1928,2022)","v":1947},{"$f":"RANDBETWEEN(1928,2022)","v":1944},{"$f":"RANDBETWEEN(1928,2022)","v":1989},{"$f":"RANDBETWEEN(1928,2022)","v":2004},{"$f":"RANDBETWEEN(1928,2022)","v":1959},{"$f":"RANDBETWEEN(1928,2022)","v":1984},{"$f":"RANDBETWEEN(1928,2022)","v":1941},{"$f":"RANDBETWEEN(1928,2022)","v":2011},{"$f":"RANDBETWEEN(1928,2022)","v":2022},{"$f":"RANDBETWEEN(1928,2022)","v":1968},{"$f":"RANDBETWEEN(1928,2022)","v":1995},{"$f":"RANDBETWEEN(1928,2022)","v":1962},{"$f":"RANDBETWEEN(1928,2022)","v":2016},{"$f":"RANDBETWEEN(1928,2022)","v":2020},{"$f":"RANDBETWEEN(1928,2022)","v":1932},{"$f":"RANDBETWEEN(1928,2022)","v":2000},{"$f":"RANDBETWEEN(1928,2022)","v":1959},{"$f":"RANDBETWEEN(1928,2022)","v":1949},{"$f":"RANDBETWEEN(1928,2022)","v":1934},{"$f":"RANDBETWEEN(1928,2022)","v":1980},{"$f":"RANDBETWEEN(1928,2022)","v":1980},{"$f":"RANDBETWEEN(1928,2022)","v":1960},{"$f":"RANDBETWEEN(1928,2022)","v":1953},{"$f":"RANDBETWEEN(1928,2022)","v":1992},{"$f":"RANDBETWEEN(1928,2022)","v":1957},{"$f":"RANDBETWEEN(1928,2022)","v":1969},{"$f":"RANDBETWEEN(1928,2022)","v":1991},{"$f":"RANDBETWEEN(1928,2022)","v":1958},{"$f":"RANDBETWEEN(1928,2022)","v":1957},{"$f":"RANDBETWEEN(1928,2022)","v":1965},{"$f":"RANDBETWEEN(1928,2022)","v":1962},{"$f":"RANDBETWEEN(1928,2022)","v":1950},{"$f":"RANDBETWEEN(1928,2022)","v":1989},{"$f":"RANDBETWEEN(1928,2022)","v":1972},{"$f":"RANDBETWEEN(1928,2022)","v":1939},{"$f":"RANDBETWEEN(1928,2022)","v":1990},{"$f":"RANDBETWEEN(1928,2022)","v":1969},{"$f":"RANDBETWEEN(1928,2022)","v":2010},{"$f":"RANDBETWEEN(1928,2022)","v":1935},{"$f":"RANDBETWEEN(1928,2022)","v":2019},{"$f":"RANDBETWEEN(1928,2022)","v":1960},{"$f":"RANDBETWEEN(1928,2022)","v":2000},{"$f":"RANDBETWEEN(1928,2022)","v":1931},{"$f":"RANDBETWEEN(1928,2022)","v":1957},{"$f":"RANDBETWEEN(1928,2022)","v":1944},{"$f":"RANDBETWEEN(1928,2022)","v":1999},{"$f":"RANDBETWEEN(1928,2022)","v":1950},{"$f":"RANDBETWEEN(1928,2022)","v":2007},{"$f":"RANDBETWEEN(1928,2022)","v":2020},{"$f":"RANDBETWEEN(1928,2022)","v":1986},{"$f":"RANDBETWEEN(1928,2022)","v":2000},{"$f":"RANDBETWEEN(1928,2022)","v":1961},{"$f":"RANDBETWEEN(1928,2022)","v":1960},{"$f":"RANDBETWEEN(1928,2022)","v":2017},{"$f":"RANDBETWEEN(1928,2022)","v":1939},{"$f":"RANDBETWEEN(1928,2022)","v":1946},{"$f":"RANDBETWEEN(1928,2022)","v":1996},{"$f":"RANDBETWEEN(1928,2022)","v":1950},{"$f":"RANDBETWEEN(1928,2022)","v":1985},{"$f":"RANDBETWEEN(1928,2022)","v":1953},{"$f":"RANDBETWEEN(1928,2022)","v":1980},{"$f":"RANDBETWEEN(1928,2022)","v":1953},{"$f":"RANDBETWEEN(1928,2022)","v":1935},{"$f":"RANDBETWEEN(1928,2022)","v":1977},{"$f":"RANDBETWEEN(1928,2022)","v":1942},{"$f":"RANDBETWEEN(1928,2022)","v":1993},{"$f":"RANDBETWEEN(1928,2022)","v":1945},{"$f":"RANDBETWEEN(1928,2022)","v":1990},{"$f":"RANDBETWEEN(1928,2022)","v":1985},{"$f":"RANDBETWEEN(1928,2022)","v":1950},{"$f":"RANDBETWEEN(1928,2022)","v":1979},{"$f":"RANDBETWEEN(1928,2022)","v":1953},{"$f":"RANDBETWEEN(1928,2022)","v":1932},{"$f":"RANDBETWEEN(1928,2022)","v":1945},{"$f":"RANDBETWEEN(1928,2022)","v":1951},{"$f":"RANDBETWEEN(1928,2022)","v":1948},{"$f":"RANDBETWEEN(1928,2022)","v":1999},{"$f":"RANDBETWEEN(1928,2022)","v":1996},{"$f":"RANDBETWEEN(1928,2022)","v":1957},{"$f":"RANDBETWEEN(1928,2022)","v":1941},{"$f":"RANDBETWEEN(1928,2022)","v":1965},{"$f":"RANDBETWEEN(1928,2022)","v":1946},{"$f":"RANDBETWEEN(1928,2022)","v":1983},{"$f":"RANDBETWEEN(1928,2022)","v":1959},{"$f":"RANDBETWEEN(1928,2022)","v":1954},{"$f":"RANDBETWEEN(1928,2022)","v":1966},{"$f":"RANDBETWEEN(1928,2022)","v":1935},{"$f":"RANDBETWEEN(1928,2022)","v":1959},{"$f":"RANDBETWEEN(1928,2022)","v":1956},{"$f":"RANDBETWEEN(1928,2022)","v":1940},{"$f":"RANDBETWEEN(1928,2022)","v":1966},{"$f":"RANDBETWEEN(1928,2022)","v":2020},{"$f":"RANDBETWEEN(1928,2022)","v":1946},{"$f":"RANDBETWEEN(1928,2022)","v":1982},{"$f":"RANDBETWEEN(1928,2022)","v":1968},{"$f":"RANDBETWEEN(1928,2022)","v":2018}]
[{"$f":"RANDBETWEEN(1928,2022)","v":2009},{"$f":"RANDBETWEEN(1928,2022)","v":1942},{"$f":"RANDBETWEEN(1928,2022)","v":1951},{"$f":"RANDBETWEEN(1928,2022)","v":1964},{"$f":"RANDBETWEEN(1928,2022)","v":1939},{"$f":"RANDBETWEEN(1928,2022)","v":1962},{"$f":"RANDBETWEEN(1928,2022)","v":1945},{"$f":"RANDBETWEEN(1928,2022)","v":1931},{"$f":"RANDBETWEEN(1928,2022)","v":2003},{"$f":"RANDBETWEEN(1928,2022)","v":1930},{"$f":"RANDBETWEEN(1928,2022)","v":1988},{"$f":"RANDBETWEEN(1928,2022)","v":2015},{"$f":"RANDBETWEEN(1928,2022)","v":2009},{"$f":"RANDBETWEEN(1928,2022)","v":1981},{"$f":"RANDBETWEEN(1928,2022)","v":1966},{"$f":"RANDBETWEEN(1928,2022)","v":1994},{"$f":"RANDBETWEEN(1928,2022)","v":1950},{"$f":"RANDBETWEEN(1928,2022)","v":1960},{"$f":"RANDBETWEEN(1928,2022)","v":2007},{"$f":"RANDBETWEEN(1928,2022)","v":1940},{"$f":"RANDBETWEEN(1928,2022)","v":1984},{"$f":"RANDBETWEEN(1928,2022)","v":1956},{"$f":"RANDBETWEEN(1928,2022)","v":1946},{"$f":"RANDBETWEEN(1928,2022)","v":2006},{"$f":"RANDBETWEEN(1928,2022)","v":2007},{"$f":"RANDBETWEEN(1928,2022)","v":1993},{"$f":"RANDBETWEEN(1928,2022)","v":1984},{"$f":"RANDBETWEEN(1928,2022)","v":2003},{"$f":"RANDBETWEEN(1928,2022)","v":1952},{"$f":"RANDBETWEEN(1928,2022)","v":1971},{"$f":"RANDBETWEEN(1928,2022)","v":1990},{"$f":"RANDBETWEEN(1928,2022)","v":2020},{"$f":"RANDBETWEEN(1928,2022)","v":2014},{"$f":"RANDBETWEEN(1928,2022)","v":1971},{"$f":"RANDBETWEEN(1928,2022)","v":1965},{"$f":"RANDBETWEEN(1928,2022)","v":1967},{"$f":"RANDBETWEEN(1928,2022)","v":1968},{"$f":"RANDBETWEEN(1928,2022)","v":1972},{"$f":"RANDBETWEEN(1928,2022)","v":1957},{"$f":"RANDBETWEEN(1928,2022)","v":1928},{"$f":"RANDBETWEEN(1928,2022)","v":1936},{"$f":"RANDBETWEEN(1928,2022)","v":1994},{"$f":"RANDBETWEEN(1928,2022)","v":1995},{"$f":"RANDBETWEEN(1928,2022)","v":2013},{"$f":"RANDBETWEEN(1928,2022)","v":1932},{"$f":"RANDBETWEEN(1928,2022)","v":2017},{"$f":"RANDBETWEEN(1928,2022)","v":1970},{"$f":"RANDBETWEEN(1928,2022)","v":1938},{"$f":"RANDBETWEEN(1928,2022)","v":2012},{"$f":"RANDBETWEEN(1928,2022)","v":1938},{"$f":"RANDBETWEEN(1928,2022)","v":1975},{"$f":"RANDBETWEEN(1928,2022)","v":1940},{"$f":"RANDBETWEEN(1928,2022)","v":1930},{"$f":"RANDBETWEEN(1928,2022)","v":1969},{"$f":"RANDBETWEEN(1928,2022)","v":1967},{"$f":"RANDBETWEEN(1928,2022)","v":2008},{"$f":"RANDBETWEEN(1928,2022)","v":1950},{"$f":"RANDBETWEEN(1928,2022)","v":1959},{"$f":"RANDBETWEEN(1928,2022)","v":1928},{"$f":"RANDBETWEEN(1928,2022)","v":1969},{"$f":"RANDBETWEEN(1928,2022)","v":1975},{"$f":"RANDBETWEEN(1928,2022)","v":1980},{"$f":"RANDBETWEEN(1928,2022)","v":2008},{"$f":"RANDBETWEEN(1928,2022)","v":1971},{"$f":"RANDBETWEEN(1928,2022)","v":1954},{"$f":"RANDBETWEEN(1928,2022)","v":1991},{"$f":"RANDBETWEEN(1928,2022)","v":1989},{"$f":"RANDBETWEEN(1928,2022)","v":1966},{"$f":"RANDBETWEEN(1928,2022)","v":1987},{"$f":"RANDBETWEEN(1928,2022)","v":1979},{"$f":"RANDBETWEEN(1928,2022)","v":1969},{"$f":"RANDBETWEEN(1928,2022)","v":1959},{"$f":"RANDBETWEEN(1928,2022)","v":1928},{"$f":"RANDBETWEEN(1928,2022)","v":1957},{"$f":"RANDBETWEEN(1928,2022)","v":1971},{"$f":"RANDBETWEEN(1928,2022)","v":1973},{"$f":"RANDBETWEEN(1928,2022)","v":1998},{"$f":"RANDBETWEEN(1928,2022)","v":1939},{"$f":"RANDBETWEEN(1928,2022)","v":2008},{"$f":"RANDBETWEEN(1928,2022)","v":1967},{"$f":"RANDBETWEEN(1928,2022)","v":1965},{"$f":"RANDBETWEEN(1928,2022)","v":1999},{"$f":"RANDBETWEEN(1928,2022)","v":2012},{"$f":"RANDBETWEEN(1928,2022)","v":2013},{"$f":"RANDBETWEEN(1928,2022)","v":1999},{"$f":"RANDBETWEEN(1928,2022)","v":1993},{"$f":"RANDBETWEEN(1928,2022)","v":1948},{"$f":"RANDBETWEEN(1928,2022)","v":2020},{"$f":"RANDBETWEEN(1928,2022)","v":1946},{"$f":"RANDBETWEEN(1928,2022)","v":1962},{"$f":"RANDBETWEEN(1928,2022)","v":2013},{"$f":"RANDBETWEEN(1928,2022)","v":1959},{"$f":"RANDBETWEEN(1928,2022)","v":1953},{"$f":"RANDBETWEEN(1928,2022)","v":1988},{"$f":"RANDBETWEEN(1928,2022)","v":2020},{"$f":"RANDBETWEEN(1928,2022)","v":1976},{"$f":"RANDBETWEEN(1928,2022)","v":1966},{"$f":"RANDBETWEEN(1928,2022)","v":1974},{"$f":"RANDBETWEEN(1928,2022)","v":1967},{"$f":"RANDBETWEEN(1928,2022)","v":1954}]
[{"$f":"RANDBETWEEN(1928,2022)","v":1956},{"$f":"RANDBETWEEN(1928,2022)","v":2021},{"$f":"RANDBETWEEN(1928,2022)","v":1979},{"$f":"RANDBETWEEN(1928,2022)","v":1971},{"$f":"RANDBETWEEN(1928,2022)","v":1970},{"$f":"RANDBETWEEN(1928,2022)","v":1943},{"$f":"RANDBETWEEN(1928,2022)","v":1940},{"$f":"RANDBETWEEN(1928,2022)","v":1955},{"$f":"RANDBETWEEN(1928,2022)","v":2021},{"$f":"RANDBETWEEN(1928,2022)","v":1940},{"$f":"RANDBETWEEN(1928,2022)","v":2013},{"$f":"RANDBETWEEN(1928,2022)","v":1963},{"$f":"RANDBETWEEN(1928,2022)","v":2016},{"$f":"RANDBETWEEN(1928,2022)","v":1957},{"$f":"RANDBETWEEN(1928,2022)","v":1947},{"$f":"RANDBETWEEN(1928,2022)","v":1976},{"$f":"RANDBETWEEN(1928,2022)","v":1976},{"$f":"RANDBETWEEN(1928,2022)","v":1980},{"$f":"RANDBETWEEN(1928,2022)","v":2016},{"$f":"RANDBETWEEN(1928,2022)","v":1939},{"$f":"RANDBETWEEN(1928,2022)","v":1987},{"$f":"RANDBETWEEN(1928,2022)","v":1965},{"$f":"RANDBETWEEN(1928,2022)","v":2019},{"$f":"RANDBETWEEN(1928,2022)","v":1968},{"$f":"RANDBETWEEN(1928,2022)","v":1952},{"$f":"RANDBETWEEN(1928,2022)","v":2004},{"$f":"RANDBETWEEN(1928,2022)","v":1981},{"$f":"RANDBETWEEN(1928,2022)","v":1929},{"$f":"RANDBETWEEN(1928,2022)","v":2004},{"$f":"RANDBETWEEN(1928,2022)","v":1938},{"$f":"RANDBETWEEN(1928,2022)","v":2005},{"$f":"RANDBETWEEN(1928,2022)","v":1990},{"$f":"RANDBETWEEN(1928,2022)","v":1969},{"$f":"RANDBETWEEN(1928,2022)","v":2008},{"$f":"RANDBETWEEN(1928,2022)","v":1953},{"$f":"RANDBETWEEN(1928,2022)","v":1973},{"$f":"RANDBETWEEN(1928,2022)","v":1981},{"$f":"RANDBETWEEN(1928,2022)","v":2011},{"$f":"RANDBETWEEN(1928,2022)","v":1954},{"$f":"RANDBETWEEN(1928,2022)","v":1950},{"$f":"RANDBETWEEN(1928,2022)","v":1932},{"$f":"RANDBETWEEN(1928,2022)","v":1956},{"$f":"RANDBETWEEN(1928,2022)","v":1944},{"$f":"RANDBETWEEN(1928,2022)","v":1959},{"$f":"RANDBETWEEN(1928,2022)","v":1970},{"$f":"RANDBETWEEN(1928,2022)","v":1968},{"$f":"RANDBETWEEN(1928,2022)","v":1940},{"$f":"RANDBETWEEN(1928,2022)","v":1957},{"$f":"RANDBETWEEN(1928,2022)","v":1929},{"$f":"RANDBETWEEN(1928,2022)","v":1980},{"$f":"RANDBETWEEN(1928,2022)","v":1937},{"$f":"RANDBETWEEN(1928,2022)","v":1965},{"$f":"RANDBETWEEN(1928,2022)","v":2002},{"$f":"RANDBETWEEN(1928,2022)","v":1983},{"$f":"RANDBETWEEN(1928,2022)","v":1992},{"$f":"RANDBETWEEN(1928,2022)","v":1974},{"$f":"RANDBETWEEN(1928,2022)","v":2011},{"$f":"RANDBETWEEN(1928,2022)","v":1937},{"$f":"RANDBETWEEN(1928,2022)","v":1953},{"$f":"RANDBETWEEN(1928,2022)","v":1940},{"$f":"RANDBETWEEN(1928,2022)","v":1945},{"$f":"RANDBETWEEN(1928,2022)","v":1957},{"$f":"RANDBETWEEN(1928,2022)","v":1957},{"$f":"RANDBETWEEN(1928,2022)","v":1935},{"$f":"RANDBETWEEN(1928,2022)","v":1943},{"$f":"RANDBETWEEN(1928,2022)","v":1976},{"$f":"RANDBETWEEN(1928,2022)","v":1946},{"$f":"RANDBETWEEN(1928,2022)","v":2009},{"$f":"RANDBETWEEN(1928,2022)","v":1949},{"$f":"RANDBETWEEN(1928,2022)","v":2013},{"$f":"RANDBETWEEN(1928,2022)","v":2003},{"$f":"RANDBETWEEN(1928,2022)","v":2006},{"$f":"RANDBETWEEN(1928,2022)","v":1964},{"$f":"RANDBETWEEN(1928,2022)","v":1937},{"$f":"RANDBETWEEN(1928,2022)","v":1953},{"$f":"RANDBETWEEN(1928,2022)","v":1979},{"$f":"RANDBETWEEN(1928,2022)","v":2018},{"$f":"RANDBETWEEN(1928,2022)","v":1992},{"$f":"RANDBETWEEN(1928,2022)","v":1953},{"$f":"RANDBETWEEN(1928,2022)","v":2011},{"$f":"RANDBETWEEN(1928,2022)","v":2004},{"$f":"RANDBETWEEN(1928,2022)","v":1969},{"$f":"RANDBETWEEN(1928,2022)","v":1959},{"$f":"RANDBETWEEN(1928,2022)","v":1956},{"$f":"RANDBETWEEN(1928,2022)","v":1993},{"$f":"RANDBETWEEN(1928,2022)","v":2011},{"$f":"RANDBETWEEN(1928,2022)","v":2017},{"$f":"RANDBETWEEN(1928,2022)","v":1929},{"$f":"RANDBETWEEN(1928,2022)","v":1970},{"$f":"RANDBETWEEN(1928,2022)","v":1972},{"$f":"RANDBETWEEN(1928,2022)","v":1994},{"$f":"RANDBETWEEN(1928,2022)","v":1999},{"$f":"RANDBETWEEN(1928,2022)","v":1929},{"$f":"RANDBETWEEN(1928,2022)","v":1991},{"$f":"RANDBETWEEN(1928,2022)","v":1971},{"$f":"RANDBETWEEN(1928,2022)","v":1978},{"$f":"RANDBETWEEN(1928,2022)","v":1939},{"$f":"RANDBETWEEN(1928,2022)","v":1968},{"$f":"RANDBETWEEN(1928,2022)","v":1938},{"$f":"RANDBETWEEN(1928,2022)","v":1983}]
[{"$f":"RANDBETWEEN(1928,2022)","v":2018},{"$f":"RANDBETWEEN(1928,2022)","v":1932},{"$f":"RANDBETWEEN(1928,2022)","v":2019},{"$f":"RANDBETWEEN(1928,2022)","v":1988},{"$f":"RANDBETWEEN(1928,2022)","v":2014},{"$f":"RANDBETWEEN(1928,2022)","v":1965},{"$f":"RANDBETWEEN(1928,2022)","v":1996},{"$f":"RANDBETWEEN(1928,2022)","v":1934},{"$f":"RANDBETWEEN(1928,2022)","v":1930},{"$f":"RANDBETWEEN(1928,2022)","v":1942},{"$f":"RANDBETWEEN(1928,2022)","v":1964},{"$f":"RANDBETWEEN(1928,2022)","v":2001},{"$f":"RANDBETWEEN(1928,2022)","v":1979},{"$f":"RANDBETWEEN(1928,2022)","v":1987},{"$f":"RANDBETWEEN(1928,2022)","v":1952},{"$f":"RANDBETWEEN(1928,2022)","v":1945},{"$f":"RANDBETWEEN(1928,2022)","v":1975},{"$f":"RANDBETWEEN(1928,2022)","v":1949},{"$f":"RANDBETWEEN(1928,2022)","v":1942},{"$f":"RANDBETWEEN(1928,2022)","v":2002},{"$f":"RANDBETWEEN(1928,2022)","v":1953},{"$f":"RANDBETWEEN(1928,2022)","v":2015},{"$f":"RANDBETWEEN(1928,2022)","v":1971},{"$f":"RANDBETWEEN(1928,2022)","v":2015},{"$f":"RANDBETWEEN(1928,2022)","v":1984},{"$f":"RANDBETWEEN(1928,2022)","v":2008},{"$f":"RANDBETWEEN(1928,2022)","v":1929},{"$f":"RANDBETWEEN(1928,2022)","v":1944},{"$f":"RANDBETWEEN(1928,2022)","v":1981},{"$f":"RANDBETWEEN(1928,2022)","v":1963},{"$f":"RANDBETWEEN(1928,2022)","v":1985},{"$f":"RANDBETWEEN(1928,2022)","v":1946},{"$f":"RANDBETWEEN(1928,2022)","v":1931},{"$f":"RANDBETWEEN(1928,2022)","v":1943},{"$f":"RANDBETWEEN(1928,2022)","v":1986},{"$f":"RANDBETWEEN(1928,2022)","v":2010},{"$f":"RANDBETWEEN(1928,2022)","v":2012},{"$f":"RANDBETWEEN(1928,2022)","v":2002},{"$f":"RANDBETWEEN(1928,2022)","v":1999},{"$f":"RANDBETWEEN(1928,2022)","v":1947},{"$f":"RANDBETWEEN(1928,2022)","v":2022},{"$f":"RANDBETWEEN(1928,2022)","v":1932},{"$f":"RANDBETWEEN(1928,2022)","v":1956},{"$f":"RANDBETWEEN(1928,2022)","v":1931},{"$f":"RANDBETWEEN(1928,2022)","v":2007},{"$f":"RANDBETWEEN(1928,2022)","v":1969},{"$f":"RANDBETWEEN(1928,2022)","v":1968},{"$f":"RANDBETWEEN(1928,2022)","v":1977},{"$f":"RANDBETWEEN(1928,2022)","v":1961},{"$f":"RANDBETWEEN(1928,2022)","v":2004},{"$f":"RANDBETWEEN(1928,2022)","v":2017},{"$f":"RANDBETWEEN(1928,2022)","v":1965},{"$f":"RANDBETWEEN(1928,2022)","v":1957},{"$f":"RANDBETWEEN(1928,2022)","v":1960},{"$f":"RANDBETWEEN(1928,2022)","v":1938},{"$f":"RANDBETWEEN(1928,2022)","v":1987},{"$f":"RANDBETWEEN(1928,2022)","v":1941},{"$f":"RANDBETWEEN(1928,2022)","v":1957},{"$f":"RANDBETWEEN(1928,2022)","v":2004},{"$f":"RANDBETWEEN(1928,2022)","v":2020},{"$f":"RANDBETWEEN(1928,2022)","v":1974},{"$f":"RANDBETWEEN(1928,2022)","v":1977},{"$f":"RANDBETWEEN(1928,2022)","v":1942},{"$f":"RANDBETWEEN(1928,2022)","v":2007},{"$f":"RANDBETWEEN(1928,2022)","v":1983},{"$f":"RANDBETWEEN(1928,2022)","v":1928},{"$f":"RANDBETWEEN(1928,2022)","v":2020},{"$f":"RANDBETWEEN(1928,2022)","v":1976},{"$f":"RANDBETWEEN(1928,2022)","v":1995},{"$f":"RANDBETWEEN(1928,2022)","v":1929},{"$f":"RANDBETWEEN(1928,2022)","v":1997},{"$f":"RANDBETWEEN(1928,2022)","v":1978},{"$f":"RANDBETWEEN(1928,2022)","v":1952},{"$f":"RANDBETWEEN(1928,2022)","v":1942},{"$f":"RANDBETWEEN(1928,2022)","v":1966},{"$f":"RANDBETWEEN(1928,2022)","v":1942},{"$f":"RANDBETWEEN(1928,2022)","v":1935},{"$f":"RANDBETWEEN(1928,2022)","v":1934},{"$f":"RANDBETWEEN(1928,2022)","v":1963},{"$f":"RANDBETWEEN(1928,2022)","v":1976},{"$f":"RANDBETWEEN(1928,2022)","v":1997},{"$f":"RANDBETWEEN(1928,2022)","v":1970},{"$f":"RANDBETWEEN(1928,2022)","v":2021},{"$f":"RANDBETWEEN(1928,2022)","v":1973},{"$f":"RANDBETWEEN(1928,2022)","v":1971},{"$f":"RANDBETWEEN(1928,2022)","v":1996},{"$f":"RANDBETWEEN(1928,2022)","v":1966},{"$f":"RANDBETWEEN(1928,2022)","v":1997},{"$f":"RANDBETWEEN(1928,2022)","v":1975},{"$f":"RANDBETWEEN(1928,2022)","v":1982},{"$f":"RANDBETWEEN(1928,2022)","v":2019},{"$f":"RANDBETWEEN(1928,2022)","v":1948},{"$f":"RANDBETWEEN(1928,2022)","v":1980},{"$f":"RANDBETWEEN(1928,2022)","v":2019},{"$f":"RANDBETWEEN(1928,2022)","v":1930},{"$f":"RANDBETWEEN(1928,2022)","v":1998},{"$f":"RANDBETWEEN(1928,2022)","v":1967},{"$f":"RANDBETWEEN(1928,2022)","v":1977},{"$f":"RANDBETWEEN(1928,2022)","v":2019},{"$f":"RANDBETWEEN(1928,2022)","v":2014}]
[{"$f":"RANDBETWEEN(1928,2022)","v":1964},{"$f":"RANDBETWEEN(1928,2022)","v":1985},{"$f":"RANDBETWEEN(1928,2022)","v":2012},{"$f":"RANDBETWEEN(1928,2022)","v":1951},{"$f":"RANDBETWEEN(1928,2022)","v":1941},{"$f":"RANDBETWEEN(1928,2022)","v":1934},{"$f":"RANDBETWEEN(1928,2022)","v":1942},{"$f":"RANDBETWEEN(1928,2022)","v":1994},{"$f":"RANDBETWEEN(1928,2022)","v":1951},{"$f":"RANDBETWEEN(1928,2022)","v":1964},{"$f":"RANDBETWEEN(1928,2022)","v":1979},{"$f":"RANDBETWEEN(1928,2022)","v":1997},{"$f":"RANDBETWEEN(1928,2022)","v":1952},{"$f":"RANDBETWEEN(1928,2022)","v":1942},{"$f":"RANDBETWEEN(1928,2022)","v":1998},{"$f":"RANDBETWEEN(1928,2022)","v":1946},{"$f":"RANDBETWEEN(1928,2022)","v":2005},{"$f":"RANDBETWEEN(1928,2022)","v":1970},{"$f":"RANDBETWEEN(1928,2022)","v":1936},{"$f":"RANDBETWEEN(1928,2022)","v":1968},{"$f":"RANDBETWEEN(1928,2022)","v":1938},{"$f":"RANDBETWEEN(1928,2022)","v":1981},{"$f":"RANDBETWEEN(1928,2022)","v":1989},{"$f":"RANDBETWEEN(1928,2022)","v":1971},{"$f":"RANDBETWEEN(1928,2022)","v":1944},{"$f":"RANDBETWEEN(1928,2022)","v":2014},{"$f":"RANDBETWEEN(1928,2022)","v":1958},{"$f":"RANDBETWEEN(1928,2022)","v":1975},{"$f":"RANDBETWEEN(1928,2022)","v":1999},{"$f":"RANDBETWEEN(1928,2022)","v":1928},{"$f":"RANDBETWEEN(1928,2022)","v":2013},{"$f":"RANDBETWEEN(1928,2022)","v":1983},{"$f":"RANDBETWEEN(1928,2022)","v":1942},{"$f":"RANDBETWEEN(1928,2022)","v":1990},{"$f":"RANDBETWEEN(1928,2022)","v":2014},{"$f":"RANDBETWEEN(1928,2022)","v":1928},{"$f":"RANDBETWEEN(1928,2022)","v":2005},{"$f":"RANDBETWEEN(1928,2022)","v":1949},{"$f":"RANDBETWEEN(1928,2022)","v":1940},{"$f":"RANDBETWEEN(1928,2022)","v":1960},{"$f":"RANDBETWEEN(1928,2022)","v":1941},{"$f":"RANDBETWEEN(1928,2022)","v":2007},{"$f":"RANDBETWEEN(1928,2022)","v":2022},{"$f":"RANDBETWEEN(1928,2022)","v":1946},{"$f":"RANDBETWEEN(1928,2022)","v":1984},{"$f":"RANDBETWEEN(1928,2022)","v":2021},{"$f":"RANDBETWEEN(1928,2022)","v":1942},{"$f":"RANDBETWEEN(1928,2022)","v":1944},{"$f":"RANDBETWEEN(1928,2022)","v":1949},{"$f":"RANDBETWEEN(1928,2022)","v":1937},{"$f":"RANDBETWEEN(1928,2022)","v":1948},{"$f":"RANDBETWEEN(1928,2022)","v":1979},{"$f":"RANDBETWEEN(1928,2022)","v":1934},{"$f":"RANDBETWEEN(1928,2022)","v":1995},{"$f":"RANDBETWEEN(1928,2022)","v":2015},{"$f":"RANDBETWEEN(1928,2022)","v":1936},{"$f":"RANDBETWEEN(1928,2022)","v":2008},{"$f":"RANDBETWEEN(1928,2022)","v":2019},{"$f":"RANDBETWEEN(1928,2022)","v":2003},{"$f":"RANDBETWEEN(1928,2022)","v":1930},{"$f":"RANDBETWEEN(1928,2022)","v":1990},{"$f":"RANDBETWEEN(1928,2022)","v":1970},{"$f":"RANDBETWEEN(1928,2022)","v":1990},{"$f":"RANDBETWEEN(1928,2022)","v":1993},{"$f":"RANDBETWEEN(1928,2022)","v":2005},{"$f":"RANDBETWEEN(1928,2022)","v":1983},{"$f":"RANDBETWEEN(1928,2022)","v":1985},{"$f":"RANDBETWEEN(1928,2022)","v":1973},{"$f":"RANDBETWEEN(1928,2022)","v":2014},{"$f":"RANDBETWEEN(1928,2022)","v":1951},{"$f":"RANDBETWEEN(1928,2022)","v":1980},{"$f":"RANDBETWEEN(1928,2022)","v":1970},{"$f":"RANDBETWEEN(1928,2022)","v":1992},{"$f":"RANDBETWEEN(1928,2022)","v":1994},{"$f":"RANDBETWEEN(1928,2022)","v":2018},{"$f":"RANDBETWEEN(1928,2022)","v":1964},{"$f":"RANDBETWEEN(1928,2022)","v":2021},{"$f":"RANDBETWEEN(1928,2022)","v":1959},{"$f":"RANDBETWEEN(1928,2022)","v":1946},{"$f":"RANDBETWEEN(1928,2022)","v":1993},{"$f":"RANDBETWEEN(1928,2022)","v":2019},{"$f":"RANDBETWEEN(1928,2022)","v":2020},{"$f":"RANDBETWEEN(1928,2022)","v":2005},{"$f":"RANDBETWEEN(1928,2022)","v":2017},{"$f":"RANDBETWEEN(1928,2022)","v":1986},{"$f":"RANDBETWEEN(1928,2022)","v":1948},{"$f":"RANDBETWEEN(1928,2022)","v":1961},{"$f":"RANDBETWEEN(1928,2022)","v":2018},{"$f":"RANDBETWEEN(1928,2022)","v":1975},{"$f":"RANDBETWEEN(1928,2022)","v":2008},{"$f":"RANDBETWEEN(1928,2022)","v":1934},{"$f":"RANDBETWEEN(1928,2022)","v":2011},{"$f":"RANDBETWEEN(1928,2022)","v":1989},{"$f":"RANDBETWEEN(1928,2022)","v":2016},{"$f":"RANDBETWEEN(1928,2022)","v":1932},{"$f":"RANDBETWEEN(1928,2022)","v":2010},{"$f":"RANDBETWEEN(1928,2022)","v":1946},{"$f":"RANDBETWEEN(1928,2022)","v":1960},{"$f":"RANDBETWEEN(1928,2022)","v":1999},{"$f":"RANDBETWEEN(1928,2022)","v":1942}]
[{"$f":"RANDBETWEEN(1928,2022)","v":1976},{"$f":"RANDBETWEEN(1928,2022)","v":2006},{"$f":"RANDBETWEEN(1928,2022)","v":2021},{"$f":"RANDBETWEEN(1928,2022)","v":1982},{"$f":"RANDBETWEEN(1928,2022)","v":2017},{"$f":"RANDBETWEEN(1928,2022)","v":1949},{"$f":"RANDBETWEEN(1928,2022)","v":1948},{"$f":"RANDBETWEEN(1928,2022)","v":2008},{"$f":"RANDBETWEEN(1928,2022)","v":1966},{"$f":"RANDBETWEEN(1928,2022)","v":1940},{"$f":"RANDBETWEEN(1928,2022)","v":1990},{"$f":"RANDBETWEEN(1928,2022)","v":1981},{"$f":"RANDBETWEEN(1928,2022)","v":2013},{"$f":"RANDBETWEEN(1928,2022)","v":1967},{"$f":"RANDBETWEEN(1928,2022)","v":2003},{"$f":"RANDBETWEEN(1928,2022)","v":1950},{"$f":"RANDBETWEEN(1928,2022)","v":1996},{"$f":"RANDBETWEEN(1928,2022)","v":1967},{"$f":"RANDBETWEEN(1928,2022)","v":1955},{"$f":"RANDBETWEEN(1928,2022)","v":1950},{"$f":"RANDBETWEEN(1928,2022)","v":1945},{"$f":"RANDBETWEEN(1928,2022)","v":2006},{"$f":"RANDBETWEEN(1928,2022)","v":1937},{"$f":"RANDBETWEEN(1928,2022)","v":2015},{"$f":"RANDBETWEEN(1928,2022)","v":1978},{"$f":"RANDBETWEEN(1928,2022)","v":2013},{"$f":"RANDBETWEEN(1928,2022)","v":1952},{"$f":"RANDBETWEEN(1928,2022)","v":1946},{"$f":"RANDBETWEEN(1928,2022)","v":1945},{"$f":"RANDBETWEEN(1928,2022)","v":2016},{"$f":"RANDBETWEEN(1928,2022)","v":2019},{"$f":"RANDBETWEEN(1928,2022)","v":2012},{"$f":"RANDBETWEEN(1928,2022)","v":1932},{"$f":"RANDBETWEEN(1928,2022)","v":1947},{"$f":"RANDBETWEEN(1928,2022)","v":1967},{"$f":"RANDBETWEEN(1928,2022)","v":2021},{"$f":"RANDBETWEEN(1928,2022)","v":1939},{"$f":"RANDBETWEEN(1928,2022)","v":1957},{"$f":"RANDBETWEEN(1928,2022)","v":1947},{"$f":"RANDBETWEEN(1928,2022)","v":1963},{"$f":"RANDBETWEEN(1928,2022)","v":1949},{"$f":"RANDBETWEEN(1928,2022)","v":1947},{"$f":"RANDBETWEEN(1928,2022)","v":1957},{"$f":"RANDBETWEEN(1928,2022)","v":2018},{"$f":"RANDBETWEEN(1928,2022)","v":1951},{"$f":"RANDBETWEEN(1928,2022)","v":1932},{"$f":"RANDBETWEEN(1928,2022)","v":1943},{"$f":"RANDBETWEEN(1928,2022)","v":2019},{"$f":"RANDBETWEEN(1928,2022)","v":1996},{"$f":"RANDBETWEEN(1928,2022)","v":1995},{"$f":"RANDBETWEEN(1928,2022)","v":1973},{"$f":"RANDBETWEEN(1928,2022)","v":1957},{"$f":"RANDBETWEEN(1928,2022)","v":1942},{"$f":"RANDBETWEEN(1928,2022)","v":1946},{"$f":"RANDBETWEEN(1928,2022)","v":1938},{"$f":"RANDBETWEEN(1928,2022)","v":1963},{"$f":"RANDBETWEEN(1928,2022)","v":1945},{"$f":"RANDBETWEEN(1928,2022)","v":1933},{"$f":"RANDBETWEEN(1928,2022)","v":2003},{"$f":"RANDBETWEEN(1928,2022)","v":1971},{"$f":"RANDBETWEEN(1928,2022)","v":2017},{"$f":"RANDBETWEEN(1928,2022)","v":2005},{"$f":"RANDBETWEEN(1928,2022)","v":1936},{"$f":"RANDBETWEEN(1928,2022)","v":1939},{"$f":"RANDBETWEEN(1928,2022)","v":1930},{"$f":"RANDBETWEEN(1928,2022)","v":2000},{"$f":"RANDBETWEEN(1928,2022)","v":2019},{"$f":"RANDBETWEEN(1928,2022)","v":2008},{"$f":"RANDBETWEEN(1928,2022)","v":1993},{"$f":"RANDBETWEEN(1928,2022)","v":2014},{"$f":"RANDBETWEEN(1928,2022)","v":1969},{"$f":"RANDBETWEEN(1928,2022)","v":1955},{"$f":"RANDBETWEEN(1928,2022)","v":1972},{"$f":"RANDBETWEEN(1928,2022)","v":2009},{"$f":"RANDBETWEEN(1928,2022)","v":1950},{"$f":"RANDBETWEEN(1928,2022)","v":1935},{"$f":"RANDBETWEEN(1928,2022)","v":2002},{"$f":"RANDBETWEEN(1928,2022)","v":1948},{"$f":"RANDBETWEEN(1928,2022)","v":1984},{"$f":"RANDBETWEEN(1928,2022)","v":1950},{"$f":"RANDBETWEEN(1928,2022)","v":1935},{"$f":"RANDBETWEEN(1928,2022)","v":1995},{"$f":"RANDBETWEEN(1928,2022)","v":1943},{"$f":"RANDBETWEEN(1928,2022)","v":1929},{"$f":"RANDBETWEEN(1928,2022)","v":1942},{"$f":"RANDBETWEEN(1928,2022)","v":2009},{"$f":"RANDBETWEEN(1928,2022)","v":1985},{"$f":"RANDBETWEEN(1928,2022)","v":1975},{"$f":"RANDBETWEEN(1928,2022)","v":2009},{"$f":"RANDBETWEEN(1928,2022)","v":2018},{"$f":"RANDBETWEEN(1928,2022)","v":1975},{"$f":"RANDBETWEEN(1928,2022)","v":2007},{"$f":"RANDBETWEEN(1928,2022)","v":1968},{"$f":"RANDBETWEEN(1928,2022)","v":2002},{"$f":"RANDBETWEEN(1928,2022)","v":1952},{"$f":"RANDBETWEEN(1928,2022)","v":1944},{"$f":"RANDBETWEEN(1928,2022)","v":1998},{"$f":"RANDBETWEEN(1928,2022)","v":1946},{"$f":"RANDBETWEEN(1928,2022)","v":1998},{"$f":"RANDBETWEEN(1928,2022)","v":1963}]
[{"$f":"RANDBETWEEN(1928,2022)","v":1994},{"$f":"RANDBETWEEN(1928,2022)","v":1973},{"$f":"RANDBETWEEN(1928,2022)","v":1965},{"$f":"RANDBETWEEN(1928,2022)","v":1937},{"$f":"RANDBETWEEN(1928,2022)","v":1941},{"$f":"RANDBETWEEN(1928,2022)","v":1936},{"$f":"RANDBETWEEN(1928,2022)","v":1935},{"$f":"RANDBETWEEN(1928,2022)","v":1959},{"$f":"RANDBETWEEN(1928,2022)","v":2005},{"$f":"RANDBETWEEN(1928,2022)","v":1945},{"$f":"RANDBETWEEN(1928,2022)","v":1965},{"$f":"RANDBETWEEN(1928,2022)","v":1936},{"$f":"RANDBETWEEN(1928,2022)","v":2012},{"$f":"RANDBETWEEN(1928,2022)","v":1995},{"$f":"RANDBETWEEN(1928,2022)","v":1999},{"$f":"RANDBETWEEN(1928,2022)","v":1969},{"$f":"RANDBETWEEN(1928,2022)","v":2007},{"$f":"RANDBETWEEN(1928,2022)","v":1959},{"$f":"RANDBETWEEN(1928,2022)","v":1962},{"$f":"RANDBETWEEN(1928,2022)","v":1991},{"$f":"RANDBETWEEN(1928,2022)","v":1994},{"$f":"RANDBETWEEN(1928,2022)","v":1942},{"$f":"RANDBETWEEN(1928,2022)","v":1992},{"$f":"RANDBETWEEN(1928,2022)","v":1948},{"$f":"RANDBETWEEN(1928,2022)","v":2017},{"$f":"RANDBETWEEN(1928,2022)","v":1939},{"$f":"RANDBETWEEN(1928,2022)","v":1988},{"$f":"RANDBETWEEN(1928,2022)","v":2006},{"$f":"RANDBETWEEN(1928,2022)","v":1935},{"$f":"RANDBETWEEN(1928,2022)","v":1996},{"$f":"RANDBETWEEN(1928,2022)","v":2015},{"$f":"RANDBETWEEN(1928,2022)","v":2011},{"$f":"RANDBETWEEN(1928,2022)","v":1942},{"$f":"RANDBETWEEN(1928,2022)","v":2012},{"$f":"RANDBETWEEN(1928,2022)","v":2009},{"$f":"RANDBETWEEN(1928,2022)","v":1997},{"$f":"RANDBETWEEN(1928,2022)","v":1937},{"$f":"RANDBETWEEN(1928,2022)","v":1970},{"$f":"RANDBETWEEN(1928,2022)","v":2004},{"$f":"RANDBETWEEN(1928,2022)","v":2016},{"$f":"RANDBETWEEN(1928,2022)","v":1953},{"$f":"RANDBETWEEN(1928,2022)","v":1944},{"$f":"RANDBETWEEN(1928,2022)","v":1938},{"$f":"RANDBETWEEN(1928,2022)","v":1966},{"$f":"RANDBETWEEN(1928,2022)","v":1935},{"$f":"RANDBETWEEN(1928,2022)","v":1961},{"$f":"RANDBETWEEN(1928,2022)","v":1930},{"$f":"RANDBETWEEN(1928,2022)","v":2003},{"$f":"RANDBETWEEN(1928,2022)","v":1963},{"$f":"RANDBETWEEN(1928,2022)","v":2008},{"$f":"RANDBETWEEN(1928,2022)","v":1958},{"$f":"RANDBETWEEN(1928,2022)","v":1992},{"$f":"RANDBETWEEN(1928,2022)","v":1981},{"$f":"RANDBETWEEN(1928,2022)","v":2004},{"$f":"RANDBETWEEN(1928,2022)","v":1996},{"$f":"RANDBETWEEN(1928,2022)","v":1933},{"$f":"RANDBETWEEN(1928,2022)","v":2005},{"$f":"RANDBETWEEN(1928,2022)","v":1934},{"$f":"RANDBETWEEN(1928,2022)","v":2010},{"$f":"RANDBETWEEN(1928,2022)","v":1969},{"$f":"RANDBETWEEN(1928,2022)","v":2015},{"$f":"RANDBETWEEN(1928,2022)","v":1945},{"$f":"RANDBETWEEN(1928,2022)","v":1970},{"$f":"RANDBETWEEN(1928,2022)","v":1984},{"$f":"RANDBETWEEN(1928,2022)","v":1978},{"$f":"RANDBETWEEN(1928,2022)","v":1994},{"$f":"RANDBETWEEN(1928,2022)","v":1996},{"$f":"RANDBETWEEN(1928,2022)","v":1949},{"$f":"RANDBETWEEN(1928,2022)","v":1937},{"$f":"RANDBETWEEN(1928,2022)","v":1929},{"$f":"RANDBETWEEN(1928,2022)","v":1936},{"$f":"RANDBETWEEN(1928,2022)","v":2012},{"$f":"RANDBETWEEN(1928,2022)","v":1963},{"$f":"RANDBETWEEN(1928,2022)","v":1991},{"$f":"RANDBETWEEN(1928,2022)","v":1973},{"$f":"RANDBETWEEN(1928,2022)","v":2000},{"$f":"RANDBETWEEN(1928,2022)","v":1954},{"$f":"RANDBETWEEN(1928,2022)","v":1973},{"$f":"RANDBETWEEN(1928,2022)","v":1950},{"$f":"RANDBETWEEN(1928,2022)","v":1942},{"$f":"RANDBETWEEN(1928,2022)","v":1955},{"$f":"RANDBETWEEN(1928,2022)","v":2004},{"$f":"RANDBETWEEN(1928,2022)","v":1997},{"$f":"RANDBETWEEN(1928,2022)","v":2005},{"$f":"RANDBETWEEN(1928,2022)","v":1961},{"$f":"RANDBETWEEN(1928,2022)","v":1982},{"$f":"RANDBETWEEN(1928,2022)","v":1965},{"$f":"RANDBETWEEN(1928,2022)","v":1979},{"$f":"RANDBETWEEN(1928,2022)","v":1940},{"$f":"RANDBETWEEN(1928,2022)","v":1943},{"$f":"RANDBETWEEN(1928,2022)","v":1961},{"$f":"RANDBETWEEN(1928,2022)","v":1966},{"$f":"RANDBETWEEN(1928,2022)","v":2010},{"$f":"RANDBETWEEN(1928,2022)","v":1948},{"$f":"RANDBETWEEN(1928,2022)","v":1933},{"$f":"RANDBETWEEN(1928,2022)","v":1940},{"$f":"RANDBETWEEN(1928,2022)","v":1935},{"$f":"RANDBETWEEN(1928,2022)","v":1988},{"$f":"RANDBETWEEN(1928,2022)","v":1934},{"$f":"RANDBETWEEN(1928,2022)","v":1989}]
[{"$f":"RANDBETWEEN(1928,2022)","v":1930},{"$f":"RANDBETWEEN(1928,2022)","v":1940},{"$f":"RANDBETWEEN(1928,2022)","v":2012},{"$f":"RANDBETWEEN(1928,2022)","v":1956},{"$f":"RANDBETWEEN(1928,2022)","v":2003},{"$f":"RANDBETWEEN(1928,2022)","v":1976},{"$f":"RANDBETWEEN(1928,2022)","v":1999},{"$f":"RANDBETWEEN(1928,2022)","v":2022},{"$f":"RANDBETWEEN(1928,2022)","v":1938},{"$f":"RANDBETWEEN(1928,2022)","v":1953},{"$f":"RANDBETWEEN(1928,2022)","v":1954},{"$f":"RANDBETWEEN(1928,2022)","v":1993},{"$f":"RANDBETWEEN(1928,2022)","v":1970},{"$f":"RANDBETWEEN(1928,2022)","v":1977},{"$f":"RANDBETWEEN(1928,2022)","v":1960},{"$f":"RANDBETWEEN(1928,2022)","v":1998},{"$f":"RANDBETWEEN(1928,2022)","v":1966},{"$f":"RANDBETWEEN(1928,2022)","v":1947},{"$f":"RANDBETWEEN(1928,2022)","v":1972},{"$f":"RANDBETWEEN(1928,2022)","v":1965},{"$f":"RANDBETWEEN(1928,2022)","v":1997},{"$f":"RANDBETWEEN(1928,2022)","v":2020},{"$f":"RANDBETWEEN(1928,2022)","v":1964},{"$f":"RANDBETWEEN(1928,2022)","v":1975},{"$f":"RANDBETWEEN(1928,2022)","v":1931},{"$f":"RANDBETWEEN(1928,2022)","v":1955},{"$f":"RANDBETWEEN(1928,2022)","v":2009},{"$f":"RANDBETWEEN(1928,2022)","v":1955},{"$f":"RANDBETWEEN(1928,2022)","v":2016},{"$f":"RANDBETWEEN(1928,2022)","v":1999},{"$f":"RANDBETWEEN(1928,2022)","v":2004},{"$f":"RANDBETWEEN(1928,2022)","v":1941},{"$f":"RANDBETWEEN(1928,2022)","v":1978},{"$f":"RANDBETWEEN(1928,2022)","v":2019},{"$f":"RANDBETWEEN(1928,2022)","v":1980},{"$f":"RANDBETWEEN(1928,2022)","v":1936},{"$f":"RANDBETWEEN(1928,2022)","v":2007},{"$f":"RANDBETWEEN(1928,2022)","v":2004},{"$f":"RANDBETWEEN(1928,2022)","v":1997},{"$f":"RANDBETWEEN(1928,2022)","v":2007},{"$f":"RANDBETWEEN(1928,2022)","v":2007},{"$f":"RANDBETWEEN(1928,2022)","v":1950},{"$f":"RANDBETWEEN(1928,2022)","v":1952},{"$f":"RANDBETWEEN(1928,2022)","v":2004},{"$f":"RANDBETWEEN(1928,2022)","v":2010},{"$f":"RANDBETWEEN(1928,2022)","v":1960},{"$f":"RANDBETWEEN(1928,2022)","v":1987},{"$f":"RANDBETWEEN(1928,2022)","v":1961},{"$f":"RANDBETWEEN(1928,2022)","v":1964},{"$f":"RANDBETWEEN(1928,2022)","v":1969},{"$f":"RANDBETWEEN(1928,2022)","v":1996},{"$f":"RANDBETWEEN(1928,2022)","v":1978},{"$f":"RANDBETWEEN(1928,2022)","v":2001},{"$f":"RANDBETWEEN(1928,2022)","v":1980},{"$f":"RANDBETWEEN(1928,2022)","v":1997},{"$f":"RANDBETWEEN(1928,2022)","v":1981},{"$f":"RANDBETWEEN(1928,2022)","v":1975},{"$f":"RANDBETWEEN(1928,2022)","v":1979},{"$f":"RANDBETWEEN(1928,2022)","v":1988},{"$f":"RANDBETWEEN(1928,2022)","v":1951},{"$f":"RANDBETWEEN(1928,2022)","v":1979},{"$f":"RANDBETWEEN(1928,2022)","v":1992},{"$f":"RANDBETWEEN(1928,2022)","v":1958},{"$f":"RANDBETWEEN(1928,2022)","v":1988},{"$f":"RANDBETWEEN(1928,2022)","v":2021},{"$f":"RANDBETWEEN(1928,2022)","v":1965},{"$f":"RANDBETWEEN(1928,2022)","v":1974},{"$f":"RANDBETWEEN(1928,2022)","v":1980},{"$f":"RANDBETWEEN(1928,2022)","v":1993},{"$f":"RANDBETWEEN(1928,2022)","v":1977},{"$f":"RANDBETWEEN(1928,2022)","v":1950},{"$f":"RANDBETWEEN(1928,2022)","v":1998},{"$f":"RANDBETWEEN(1928,2022)","v":1966},{"$f":"RANDBETWEEN(1928,2022)","v":1973},{"$f":"RANDBETWEEN(1928,2022)","v":1937},{"$f":"RANDBETWEEN(1928,2022)","v":2005},{"$f":"RANDBETWEEN(1928,2022)","v":1962},{"$f":"RANDBETWEEN(1928,2022)","v":1985},{"$f":"RANDBETWEEN(1928,2022)","v":2008},{"$f":"RANDBETWEEN(1928,2022)","v":1928},{"$f":"RANDBETWEEN(1928,2022)","v":2003},{"$f":"RANDBETWEEN(1928,2022)","v":1990},{"$f":"RANDBETWEEN(1928,2022)","v":1944},{"$f":"RANDBETWEEN(1928,2022)","v":1947},{"$f":"RANDBETWEEN(1928,2022)","v":1988},{"$f":"RANDBETWEEN(1928,2022)","v":1965},{"$f":"RANDBETWEEN(1928,2022)","v":2015},{"$f":"RANDBETWEEN(1928,2022)","v":1928},{"$f":"RANDBETWEEN(1928,2022)","v":2000},{"$f":"RANDBETWEEN(1928,2022)","v":1930},{"$f":"RANDBETWEEN(1928,2022)","v":1968},{"$f":"RANDBETWEEN(1928,2022)","v":1996},{"$f":"RANDBETWEEN(1928,2022)","v":2012},{"$f":"RANDBETWEEN(1928,2022)","v":2014},{"$f":"RANDBETWEEN(1928,2022)","v":1960},{"$f":"RANDBETWEEN(1928,2022)","v":2008},{"$f":"RANDBETWEEN(1928,2022)","v":1965},{"$f":"RANDBETWEEN(1928,2022)","v":1965},{"$f":"RANDBETWEEN(1928,2022)","v":1976},{"$f":"RANDBETWEEN(1928,2022)","v":1972}]
[{"$f":"RANDBETWEEN(1928,2022)","v":2004},{"$f":"RANDBETWEEN(1928,2022)","v":2004},{"$f":"RANDBETWEEN(1928,2022)","v":1945},{"$f":"RANDBETWEEN(1928,2022)","v":1963},{"$f":"RANDBETWEEN(1928,2022)","v":2011},{"$f":"RANDBETWEEN(1928,2022)","v":1936},{"$f":"RANDBETWEEN(1928,2022)","v":1973},{"$f":"RANDBETWEEN(1928,2022)","v":1931},{"$f":"RANDBETWEEN(1928,2022)","v":1954},{"$f":"RANDBETWEEN(1928,2022)","v":1962},{"$f":"RANDBETWEEN(1928,2022)","v":1976},{"$f":"RANDBETWEEN(1928,2022)","v":1996},{"$f":"RANDBETWEEN(1928,2022)","v":1940},{"$f":"RANDBETWEEN(1928,2022)","v":1937},{"$f":"RANDBETWEEN(1928,2022)","v":2015},{"$f":"RANDBETWEEN(1928,2022)","v":1934},{"$f":"RANDBETWEEN(1928,2022)","v":2001},{"$f":"RANDBETWEEN(1928,2022)","v":2008},{"$f":"RANDBETWEEN(1928,2022)","v":1975},{"$f":"RANDBETWEEN(1928,2022)","v":1952},{"$f":"RANDBETWEEN(1928,2022)","v":1976},{"$f":"RANDBETWEEN(1928,2022)","v":1966},{"$f":"RANDBETWEEN(1928,2022)","v":1935},{"$f":"RANDBETWEEN(1928,2022)","v":1946},{"$f":"RANDBETWEEN(1928,2022)","v":1940},{"$f":"RANDBETWEEN(1928,2022)","v":1973},{"$f":"RANDBETWEEN(1928,2022)","v":1974},{"$f":"RANDBETWEEN(1928,2022)","v":1970},{"$f":"RANDBETWEEN(1928,2022)","v":2006},{"$f":"RANDBETWEEN(1928,2022)","v":1999},{"$f":"RANDBETWEEN(1928,2022)","v":1978},{"$f":"RANDBETWEEN(1928,2022)","v":1985},{"$f":"RANDBETWEEN(1928,2022)","v":1943},{"$f":"RANDBETWEEN(1928,2022)","v":2004},{"$f":"RANDBETWEEN(1928,2022)","v":1935},{"$f":"RANDBETWEEN(1928,2022)","v":1934},{"$f":"RANDBETWEEN(1928,2022)","v":2008},{"$f":"RANDBETWEEN(1928,2022)","v":1955},{"$f":"RANDBETWEEN(1928,2022)","v":2021},{"$f":"RANDBETWEEN(1928,2022)","v":2013},{"$f":"RANDBETWEEN(1928,2022)","v":1939},{"$f":"RANDBETWEEN(1928,2022)","v":1961},{"$f":"RANDBETWEEN(1928,2022)","v":2018},{"$f":"RANDBETWEEN(1928,2022)","v":1998},{"$f":"RANDBETWEEN(1928,2022)","v":2009},{"$f":"RANDBETWEEN(1928,2022)","v":1975},{"$f":"RANDBETWEEN(1928,2022)","v":1965},{"$f":"RANDBETWEEN(1928,2022)","v":1952},{"$f":"RANDBETWEEN(1928,2022)","v":1969},{"$f":"RANDBETWEEN(1928,2022)","v":2000},{"$f":"RANDBETWEEN(1928,2022)","v":2008},{"$f":"RANDBETWEEN(1928,2022)","v":1962},{"$f":"RANDBETWEEN(1928,2022)","v":2020},{"$f":"RANDBETWEEN(1928,2022)","v":1974},{"$f":"RANDBETWEEN(1928,2022)","v":1977},{"$f":"RANDBETWEEN(1928,2022)","v":1982},{"$f":"RANDBETWEEN(1928,2022)","v":1960},{"$f":"RANDBETWEEN(1928,2022)","v":1936},{"$f":"RANDBETWEEN(1928,2022)","v":1961},{"$f":"RANDBETWEEN(1928,2022)","v":1982},{"$f":"RANDBETWEEN(1928,2022)","v":1970},{"$f":"RANDBETWEEN(1928,2022)","v":2003},{"$f":"RANDBETWEEN(1928,2022)","v":2011},{"$f":"RANDBETWEEN(1928,2022)","v":2016},{"$f":"RANDBETWEEN(1928,2022)","v":1934},{"$f":"RANDBETWEEN(1928,2022)","v":1933},{"$f":"RANDBETWEEN(1928,2022)","v":1958},{"$f":"RANDBETWEEN(1928,2022)","v":1977},{"$f":"RANDBETWEEN(1928,2022)","v":1982},{"$f":"RANDBETWEEN(1928,2022)","v":1978},{"$f":"RANDBETWEEN(1928,2022)","v":1977},{"$f":"RANDBETWEEN(1928,2022)","v":1999},{"$f":"RANDBETWEEN(1928,2022)","v":1976},{"$f":"RANDBETWEEN(1928,2022)","v":1999},{"$f":"RANDBETWEEN(1928,2022)","v":1938},{"$f":"RANDBETWEEN(1928,2022)","v":1955},{"$f":"RANDBETWEEN(1928,2022)","v":1969},{"$f":"RANDBETWEEN(1928,2022)","v":1946},{"$f":"RANDBETWEEN(1928,2022)","v":1966},{"$f":"RANDBETWEEN(1928,2022)","v":1976},{"$f":"RANDBETWEEN(1928,2022)","v":1935},{"$f":"RANDBETWEEN(1928,2022)","v":1952},{"$f":"RANDBETWEEN(1928,2022)","v":1968},{"$f":"RANDBETWEEN(1928,2022)","v":2021},{"$f":"RANDBETWEEN(1928,2022)","v":1950},{"$f":"RANDBETWEEN(1928,2022)","v":1972},{"$f":"RANDBETWEEN(1928,2022)","v":1975},{"$f":"RANDBETWEEN(1928,2022)","v":1936},{"$f":"RANDBETWEEN(1928,2022)","v":1995},{"$f":"RANDBETWEEN(1928,2022)","v":1961},{"$f":"RANDBETWEEN(1928,2022)","v":1997},{"$f":"RANDBETWEEN(1928,2022)","v":1974},{"$f":"RANDBETWEEN(1928,2022)","v":1931},{"$f":"RANDBETWEEN(1928,2022)","v":1966},{"$f":"RANDBETWEEN(1928,2022)","v":1929},{"$f":"RANDBETWEEN(1928,2022)","v":2001},{"$f":"RANDBETWEEN(1928,2022)","v":2010},{"$f":"RANDBETWEEN(1928,2022)","v":1943},{"$f":"RANDBETWEEN(1928,2022)","v":1987},{"$f":"RANDBETWEEN(1928,2022)","v":1957}]
[{"$f":"RANDBETWEEN(1928,2022)","v":1977},{"$f":"RANDBETWEEN(1928,2022)","v":1978},{"$f":"RANDBETWEEN(1928,2022)","v":1968},{"$f":"RANDBETWEEN(1928,2022)","v":1983},{"$f":"RANDBETWEEN(1928,2022)","v":1965},{"$f":"RANDBETWEEN(1928,2022)","v":1955},{"$f":"RANDBETWEEN(1928,2022)","v":2010},{"$f":"RANDBETWEEN(1928,2022)","v":1968},{"$f":"RANDBETWEEN(1928,2022)","v":1933},{"$f":"RANDBETWEEN(1928,2022)","v":2021},{"$f":"RANDBETWEEN(1928,2022)","v":1937},{"$f":"RANDBETWEEN(1928,2022)","v":1961},{"$f":"RANDBETWEEN(1928,2022)","v":2003},{"$f":"RANDBETWEEN(1928,2022)","v":1985},{"$f":"RANDBETWEEN(1928,2022)","v":1998},{"$f":"RANDBETWEEN(1928,2022)","v":1960},{"$f":"RANDBETWEEN(1928,2022)","v":1938},{"$f":"RANDBETWEEN(1928,2022)","v":1994},{"$f":"RANDBETWEEN(1928,2022)","v":1955},{"$f":"RANDBETWEEN(1928,2022)","v":1978},{"$f":"RANDBETWEEN(1928,2022)","v":1964},{"$f":"RANDBETWEEN(1928,2022)","v":1984},{"$f":"RANDBETWEEN(1928,2022)","v":2006},{"$f":"RANDBETWEEN(1928,2022)","v":1968},{"$f":"RANDBETWEEN(1928,2022)","v":2014},{"$f":"RANDBETWEEN(1928,2022)","v":1967},{"$f":"RANDBETWEEN(1928,2022)","v":1930},{"$f":"RANDBETWEEN(1928,2022)","v":1971},{"$f":"RANDBETWEEN(1928,2022)","v":2001},{"$f":"RANDBETWEEN(1928,2022)","v":2000},{"$f":"RANDBETWEEN(1928,2022)","v":1990},{"$f":"RANDBETWEEN(1928,2022)","v":1945},{"$f":"RANDBETWEEN(1928,2022)","v":2016},{"$f":"RANDBETWEEN(1928,2022)","v":1944},{"$f":"RANDBETWEEN(1928,2022)","v":1999},{"$f":"RANDBETWEEN(1928,2022)","v":1999},{"$f":"RANDBETWEEN(1928,2022)","v":1990},{"$f":"RANDBETWEEN(1928,2022)","v":1939},{"$f":"RANDBETWEEN(1928,2022)","v":1953},{"$f":"RANDBETWEEN(1928,2022)","v":1943},{"$f":"RANDBETWEEN(1928,2022)","v":1946},{"$f":"RANDBETWEEN(1928,2022)","v":2000},{"$f":"RANDBETWEEN(1928,2022)","v":1960},{"$f":"RANDBETWEEN(1928,2022)","v":1960},{"$f":"RANDBETWEEN(1928,2022)","v":2020},{"$f":"RANDBETWEEN(1928,2022)","v":1966},{"$f":"RANDBETWEEN(1928,2022)","v":1992},{"$f":"RANDBETWEEN(1928,2022)","v":2002},{"$f":"RANDBETWEEN(1928,2022)","v":2019},{"$f":"RANDBETWEEN(1928,2022)","v":1980},{"$f":"RANDBETWEEN(1928,2022)","v":1958},{"$f":"RANDBETWEEN(1928,2022)","v":1952},{"$f":"RANDBETWEEN(1928,2022)","v":1936},{"$f":"RANDBETWEEN(1928,2022)","v":1949},{"$f":"RANDBETWEEN(1928,2022)","v":1990},{"$f":"RANDBETWEEN(1928,2022)","v":1937},{"$f":"RANDBETWEEN(1928,2022)","v":1984},{"$f":"RANDBETWEEN(1928,2022)","v":2013},{"$f":"RANDBETWEEN(1928,2022)","v":1979},{"$f":"RANDBETWEEN(1928,2022)","v":2018},{"$f":"RANDBETWEEN(1928,2022)","v":2020},{"$f":"RANDBETWEEN(1928,2022)","v":2019},{"$f":"RANDBETWEEN(1928,2022)","v":1944},{"$f":"RANDBETWEEN(1928,2022)","v":1938},{"$f":"RANDBETWEEN(1928,2022)","v":2020},{"$f":"RANDBETWEEN(1928,2022)","v":1939},{"$f":"RANDBETWEEN(1928,2022)","v":1932},{"$f":"RANDBETWEEN(1928,2022)","v":1997},{"$f":"RANDBETWEEN(1928,2022)","v":1971},{"$f":"RANDBETWEEN(1928,2022)","v":1955},{"$f":"RANDBETWEEN(1928,2022)","v":1979},{"$f":"RANDBETWEEN(1928,2022)","v":1984},{"$f":"RANDBETWEEN(1928,2022)","v":1961},{"$f":"RANDBETWEEN(1928,2022)","v":1971},{"$f":"RANDBETWEEN(1928,2022)","v":1977},{"$f":"RANDBETWEEN(1928,2022)","v":1960},{"$f":"RANDBETWEEN(1928,2022)","v":1953},{"$f":"RANDBETWEEN(1928,2022)","v":1938},{"$f":"RANDBETWEEN(1928,2022)","v":1967},{"$f":"RANDBETWEEN(1928,2022)","v":1961},{"$f":"RANDBETWEEN(1928,2022)","v":1940},{"$f":"RANDBETWEEN(1928,2022)","v":2012},{"$f":"RANDBETWEEN(1928,2022)","v":1985},{"$f":"RANDBETWEEN(1928,2022)","v":1974},{"$f":"RANDBETWEEN(1928,2022)","v":2014},{"$f":"RANDBETWEEN(1928,2022)","v":1999},{"$f":"RANDBETWEEN(1928,2022)","v":1984},{"$f":"RANDBETWEEN(1928,2022)","v":1967},{"$f":"RANDBETWEEN(1928,2022)","v":1974},{"$f":"RANDBETWEEN(1928,2022)","v":1977},{"$f":"RANDBETWEEN(1928,2022)","v":1962},{"$f":"RANDBETWEEN(1928,2022)","v":2001},{"$f":"RANDBETWEEN(1928,2022)","v":1940},{"$f":"RANDBETWEEN(1928,2022)","v":1980},{"$f":"RANDBETWEEN(1928,2022)","v":1964},{"$f":"RANDBETWEEN(1928,2022)","v":1997},{"$f":"RANDBETWEEN(1928,2022)","v":1950},{"$f":"RANDBETWEEN(1928,2022)","v":2001},{"$f":"RANDBETWEEN(1928,2022)","v":2014},{"$f":"RANDBETWEEN(1928,2022)","v":1981}]
[{"$f":"RANDBETWEEN(1928,2022)","v":1931},{"$f":"RANDBETWEEN(1928,2022)","v":1954},{"$f":"RANDBETWEEN(1928,2022)","v":1982},{"$f":"RANDBETWEEN(1928,2022)","v":1946},{"$f":"RANDBETWEEN(1928,2022)","v":1984},{"$f":"RANDBETWEEN(1928,2022)","v":1948},{"$f":"RANDBETWEEN(1928,2022)","v":1944},{"$f":"RANDBETWEEN(1928,2022)","v":1971},{"$f":"RANDBETWEEN(1928,2022)","v":1987},{"$f":"RANDBETWEEN(1928,2022)","v":1939},{"$f":"RANDBETWEEN(1928,2022)","v":1939},{"$f":"RANDBETWEEN(1928,2022)","v":2016},{"$f":"RANDBETWEEN(1928,2022)","v":2020},{"$f":"RANDBETWEEN(1928,2022)","v":1948},{"$f":"RANDBETWEEN(1928,2022)","v":1937},{"$f":"RANDBETWEEN(1928,2022)","v":1955},{"$f":"RANDBETWEEN(1928,2022)","v":1939},{"$f":"RANDBETWEEN(1928,2022)","v":2001},{"$f":"RANDBETWEEN(1928,2022)","v":2007},{"$f":"RANDBETWEEN(1928,2022)","v":1981},{"$f":"RANDBETWEEN(1928,2022)","v":1993},{"$f":"RANDBETWEEN(1928,2022)","v":2016},{"$f":"RANDBETWEEN(1928,2022)","v":1995},{"$f":"RANDBETWEEN(1928,2022)","v":1990},{"$f":"RANDBETWEEN(1928,2022)","v":1954},{"$f":"RANDBETWEEN(1928,2022)","v":1974},{"$f":"RANDBETWEEN(1928,2022)","v":1990},{"$f":"RANDBETWEEN(1928,2022)","v":2007},{"$f":"RANDBETWEEN(1928,2022)","v":1962},{"$f":"RANDBETWEEN(1928,2022)","v":1958},{"$f":"RANDBETWEEN(1928,2022)","v":1950},{"$f":"RANDBETWEEN(1928,2022)","v":2014},{"$f":"RANDBETWEEN(1928,2022)","v":1966},{"$f":"RANDBETWEEN(1928,2022)","v":1990},{"$f":"RANDBETWEEN(1928,2022)","v":1988},{"$f":"RANDBETWEEN(1928,2022)","v":1963},{"$f":"RANDBETWEEN(1928,2022)","v":2020},{"$f":"RANDBETWEEN(1928,2022)","v":1984},{"$f":"RANDBETWEEN(1928,2022)","v":1930},{"$f":"RANDBETWEEN(1928,2022)","v":1943},{"$f":"RANDBETWEEN(1928,2022)","v":1935},{"$f":"RANDBETWEEN(1928,2022)","v":2005},{"$f":"RANDBETWEEN(1928,2022)","v":1944},{"$f":"RANDBETWEEN(1928,2022)","v":1949},{"$f":"RANDBETWEEN(1928,2022)","v":2012},{"$f":"RANDBETWEEN(1928,2022)","v":2022},{"$f":"RANDBETWEEN(1928,2022)","v":1979},{"$f":"RANDBETWEEN(1928,2022)","v":1932},{"$f":"RANDBETWEEN(1928,2022)","v":1965},{"$f":"RANDBETWEEN(1928,2022)","v":2010},{"$f":"RANDBETWEEN(1928,2022)","v":2004},{"$f":"RANDBETWEEN(1928,2022)","v":1960},{"$f":"RANDBETWEEN(1928,2022)","v":1962},{"$f":"RANDBETWEEN(1928,2022)","v":1999},{"$f":"RANDBETWEEN(1928,2022)","v":2010},{"$f":"RANDBETWEEN(1928,2022)","v":1969},{"$f":"RANDBETWEEN(1928,2022)","v":1978},{"$f":"RANDBETWEEN(1928,2022)","v":1964},{"$f":"RANDBETWEEN(1928,2022)","v":1993},{"$f":"RANDBETWEEN(1928,2022)","v":1962},{"$f":"RANDBETWEEN(1928,2022)","v":1997},{"$f":"RANDBETWEEN(1928,2022)","v":1974},{"$f":"RANDBETWEEN(1928,2022)","v":2014},{"$f":"RANDBETWEEN(1928,2022)","v":2022},{"$f":"RANDBETWEEN(1928,2022)","v":1983},{"$f":"RANDBETWEEN(1928,2022)","v":1996},{"$f":"RANDBETWEEN(1928,2022)","v":1971},{"$f":"RANDBETWEEN(1928,2022)","v":1940},{"$f":"RANDBETWEEN(1928,2022)","v":2001},{"$f":"RANDBETWEEN(1928,2022)","v":2016},{"$f":"RANDBETWEEN(1928,2022)","v":1938},{"$f":"RANDBETWEEN(1928,2022)","v":1970},{"$f":"RANDBETWEEN(1928,2022)","v":2021},{"$f":"RANDBETWEEN(1928,2022)","v":2018},{"$f":"RANDBETWEEN(1928,2022)","v":1961},{"$f":"RANDBETWEEN(1928,2022)","v":2000},{"$f":"RANDBETWEEN(1928,2022)","v":2003},{"$f":"RANDBETWEEN(1928,2022)","v":1988},{"$f":"RANDBETWEEN(1928,2022)","v":1955},{"$f":"RANDBETWEEN(1928,2022)","v":1998},{"$f":"RANDBETWEEN(1928,2022)","v":1952},{"$f":"RANDBETWEEN(1928,2022)","v":1933},{"$f":"RANDBETWEEN(1928,2022)","v":1939},{"$f":"RANDBETWEEN(1928,2022)","v":1946},{"$f":"RANDBETWEEN(1928,2022)","v":1938},{"$f":"RANDBETWEEN(1928,2022)","v":1930},{"$f":"RANDBETWEEN(1928,2022)","v":1984},{"$f":"RANDBETWEEN(1928,2022)","v":1981},{"$f":"RANDBETWEEN(1928,2022)","v":2004},{"$f":"RANDBETWEEN(1928,2022)","v":1981},{"$f":"RANDBETWEEN(1928,2022)","v":1984},{"$f":"RANDBETWEEN(1928,2022)","v":1967},{"$f":"RANDBETWEEN(1928,2022)","v":1977},{"$f":"RANDBETWEEN(1928,2022)","v":1930},{"$f":"RANDBETWEEN(1928,2022)","v":1949},{"$f":"RANDBETWEEN(1928,2022)","v":1985},{"$f":"RANDBETWEEN(1928,2022)","v":1931},{"$f":"RANDBETWEEN(1928,2022)","v":2011},{"$f":"RANDBETWEEN(1928,2022)","v":2004},{"$f":"RANDBETWEEN(1928,2022)","v":1975}]
[{"$f":"RANDBETWEEN(1928,2022)","v":2005},{"$f":"RANDBETWEEN(1928,2022)","v":1985},{"$f":"RANDBETWEEN(1928,2022)","v":1993},{"$f":"RANDBETWEEN(1928,2022)","v":1947},{"$f":"RANDBETWEEN(1928,2022)","v":2011},{"$f":"RANDBETWEEN(1928,2022)","v":1968},{"$f":"RANDBETWEEN(1928,2022)","v":1974},{"$f":"RANDBETWEEN(1928,2022)","v":1979},{"$f":"RANDBETWEEN(1928,2022)","v":1934},{"$f":"RANDBETWEEN(1928,2022)","v":1998},{"$f":"RANDBETWEEN(1928,2022)","v":1971},{"$f":"RANDBETWEEN(1928,2022)","v":1993},{"$f":"RANDBETWEEN(1928,2022)","v":1998},{"$f":"RANDBETWEEN(1928,2022)","v":1988},{"$f":"RANDBETWEEN(1928,2022)","v":1944},{"$f":"RANDBETWEEN(1928,2022)","v":1962},{"$f":"RANDBETWEEN(1928,2022)","v":1930},{"$f":"RANDBETWEEN(1928,2022)","v":1965},{"$f":"RANDBETWEEN(1928,2022)","v":1970},{"$f":"RANDBETWEEN(1928,2022)","v":1958},{"$f":"RANDBETWEEN(1928,2022)","v":1965},{"$f":"RANDBETWEEN(1928,2022)","v":1957},{"$f":"RANDBETWEEN(1928,2022)","v":1965},{"$f":"RANDBETWEEN(1928,2022)","v":1983},{"$f":"RANDBETWEEN(1928,2022)","v":1986},{"$f":"RANDBETWEEN(1928,2022)","v":1989},{"$f":"RANDBETWEEN(1928,2022)","v":1934},{"$f":"RANDBETWEEN(1928,2022)","v":1930},{"$f":"RANDBETWEEN(1928,2022)","v":1963},{"$f":"RANDBETWEEN(1928,2022)","v":1937},{"$f":"RANDBETWEEN(1928,2022)","v":2007},{"$f":"RANDBETWEEN(1928,2022)","v":1962},{"$f":"RANDBETWEEN(1928,2022)","v":2015},{"$f":"RANDBETWEEN(1928,2022)","v":1954},{"$f":"RANDBETWEEN(1928,2022)","v":2021},{"$f":"RANDBETWEEN(1928,2022)","v":1979},{"$f":"RANDBETWEEN(1928,2022)","v":1933},{"$f":"RANDBETWEEN(1928,2022)","v":1958},{"$f":"RANDBETWEEN(1928,2022)","v":1997},{"$f":"RANDBETWEEN(1928,2022)","v":1938},{"$f":"RANDBETWEEN(1928,2022)","v":1989},{"$f":"RANDBETWEEN(1928,2022)","v":1938},{"$f":"RANDBETWEEN(1928,2022)","v":1977},{"$f":"RANDBETWEEN(1928,2022)","v":1943},{"$f":"RANDBETWEEN(1928,2022)","v":1983},{"$f":"RANDBETWEEN(1928,2022)","v":1983},{"$f":"RANDBETWEEN(1928,2022)","v":1947},{"$f":"RANDBETWEEN(1928,2022)","v":2010},{"$f":"RANDBETWEEN(1928,2022)","v":1982},{"$f":"RANDBETWEEN(1928,2022)","v":1958},{"$f":"RANDBETWEEN(1928,2022)","v":1973},{"$f":"RANDBETWEEN(1928,2022)","v":2005},{"$f":"RANDBETWEEN(1928,2022)","v":1939},{"$f":"RANDBETWEEN(1928,2022)","v":1997},{"$f":"RANDBETWEEN(1928,2022)","v":1950},{"$f":"RANDBETWEEN(1928,2022)","v":2008},{"$f":"RANDBETWEEN(1928,2022)","v":1981},{"$f":"RANDBETWEEN(1928,2022)","v":1960},{"$f":"RANDBETWEEN(1928,2022)","v":2002},{"$f":"RANDBETWEEN(1928,2022)","v":1989},{"$f":"RANDBETWEEN(1928,2022)","v":1950},{"$f":"RANDBETWEEN(1928,2022)","v":2012},{"$f":"RANDBETWEEN(1928,2022)","v":1956},{"$f":"RANDBETWEEN(1928,2022)","v":1964},{"$f":"RANDBETWEEN(1928,2022)","v":1960},{"$f":"RANDBETWEEN(1928,2022)","v":1967},{"$f":"RANDBETWEEN(1928,2022)","v":1935},{"$f":"RANDBETWEEN(1928,2022)","v":1963},{"$f":"RANDBETWEEN(1928,2022)","v":1949},{"$f":"RANDBETWEEN(1928,2022)","v":1973},{"$f":"RANDBETWEEN(1928,2022)","v":1958},{"$f":"RANDBETWEEN(1928,2022)","v":1980},{"$f":"RANDBETWEEN(1928,2022)","v":1978},{"$f":"RANDBETWEEN(1928,2022)","v":1992},{"$f":"RANDBETWEEN(1928,2022)","v":2013},{"$f":"RANDBETWEEN(1928,2022)","v":1946},{"$f":"RANDBETWEEN(1928,2022)","v":1994},{"$f":"RANDBETWEEN(1928,2022)","v":2001},{"$f":"RANDBETWEEN(1928,2022)","v":2018},{"$f":"RANDBETWEEN(1928,2022)","v":1981},{"$f":"RANDBETWEEN(1928,2022)","v":1977},{"$f":"RANDBETWEEN(1928,2022)","v":1993},{"$f":"RANDBETWEEN(1928,2022)","v":1930},{"$f":"RANDBETWEEN(1928,2022)","v":1978},{"$f":"RANDBETWEEN(1928,2022)","v":1935},{"$f":"RANDBETWEEN(1928,2022)","v":2007},{"$f":"RANDBETWEEN(1928,2022)","v":2022},{"$f":"RANDBETWEEN(1928,2022)","v":1932},{"$f":"RANDBETWEEN(1928,2022)","v":1950},{"$f":"RANDBETWEEN(1928,2022)","v":1958},{"$f":"RANDBETWEEN(1928,2022)","v":1995},{"$f":"RANDBETWEEN(1928,2022)","v":1955},{"$f":"RANDBETWEEN(1928,2022)","v":1978},{"$f":"RANDBETWEEN(1928,2022)","v":1956},{"$f":"RANDBETWEEN(1928,2022)","v":1947},{"$f":"RANDBETWEEN(1928,2022)","v":2001},{"$f":"RANDBETWEEN(1928,2022)","v":1988},{"$f":"RANDBETWEEN(1928,2022)","v":2000},{"$f":"RANDBETWEEN(1928,2022)","v":1934},{"$f":"RANDBETWEEN(1928,2022)","v":2001}]
[{"$f":"RANDBETWEEN(1928,2022)","v":1932},{"$f":"RANDBETWEEN(1928,2022)","v":1983},{"$f":"RANDBETWEEN(1928,2022)","v":1987},{"$f":"RANDBETWEEN(1928,2022)","v":1985},{"$f":"RANDBETWEEN(1928,2022)","v":2017},{"$f":"RANDBETWEEN(1928,2022)","v":1942},{"$f":"RANDBETWEEN(1928,2022)","v":1999},{"$f":"RANDBETWEEN(1928,2022)","v":1931},{"$f":"RANDBETWEEN(1928,2022)","v":1964},{"$f":"RANDBETWEEN(1928,2022)","v":2022},{"$f":"RANDBETWEEN(1928,2022)","v":1954},{"$f":"RANDBETWEEN(1928,2022)","v":1937},{"$f":"RANDBETWEEN(1928,2022)","v":1980},{"$f":"RANDBETWEEN(1928,2022)","v":1945},{"$f":"RANDBETWEEN(1928,2022)","v":1985},{"$f":"RANDBETWEEN(1928,2022)","v":1929},{"$f":"RANDBETWEEN(1928,2022)","v":2013},{"$f":"RANDBETWEEN(1928,2022)","v":1939},{"$f":"RANDBETWEEN(1928,2022)","v":1954},{"$f":"RANDBETWEEN(1928,2022)","v":1982},{"$f":"RANDBETWEEN(1928,2022)","v":1958},{"$f":"RANDBETWEEN(1928,2022)","v":1950},{"$f":"RANDBETWEEN(1928,2022)","v":1958},{"$f":"RANDBETWEEN(1928,2022)","v":1994},{"$f":"RANDBETWEEN(1928,2022)","v":1985},{"$f":"RANDBETWEEN(1928,2022)","v":2014},{"$f":"RANDBETWEEN(1928,2022)","v":1966},{"$f":"RANDBETWEEN(1928,2022)","v":1971},{"$f":"RANDBETWEEN(1928,2022)","v":1987},{"$f":"RANDBETWEEN(1928,2022)","v":1943},{"$f":"RANDBETWEEN(1928,2022)","v":1966},{"$f":"RANDBETWEEN(1928,2022)","v":1998},{"$f":"RANDBETWEEN(1928,2022)","v":1939},{"$f":"RANDBETWEEN(1928,2022)","v":2002},{"$f":"RANDBETWEEN(1928,2022)","v":1980},{"$f":"RANDBETWEEN(1928,2022)","v":1977},{"$f":"RANDBETWEEN(1928,2022)","v":1957},{"$f":"RANDBETWEEN(1928,2022)","v":1986},{"$f":"RANDBETWEEN(1928,2022)","v":1948},{"$f":"RANDBETWEEN(1928,2022)","v":1978},{"$f":"RANDBETWEEN(1928,2022)","v":2010},{"$f":"RANDBETWEEN(1928,2022)","v":2019},{"$f":"RANDBETWEEN(1928,2022)","v":1931},{"$f":"RANDBETWEEN(1928,2022)","v":2005},{"$f":"RANDBETWEEN(1928,2022)","v":1940},{"$f":"RANDBETWEEN(1928,2022)","v":1965},{"$f":"RANDBETWEEN(1928,2022)","v":2003},{"$f":"RANDBETWEEN(1928,2022)","v":1986},{"$f":"RANDBETWEEN(1928,2022)","v":1995},{"$f":"RANDBETWEEN(1928,2022)","v":1957},{"$f":"RANDBETWEEN(1928,2022)","v":1952},{"$f":"RANDBETWEEN(1928,2022)","v":1973},{"$f":"RANDBETWEEN(1928,2022)","v":2021},{"$f":"RANDBETWEEN(1928,2022)","v":1976},{"$f":"RANDBETWEEN(1928,2022)","v":1980},{"$f":"RANDBETWEEN(1928,2022)","v":1975},{"$f":"RANDBETWEEN(1928,2022)","v":1940},{"$f":"RANDBETWEEN(1928,2022)","v":1948},{"$f":"RANDBETWEEN(1928,2022)","v":1998},{"$f":"RANDBETWEEN(1928,2022)","v":1968},{"$f":"RANDBETWEEN(1928,2022)","v":2004},{"$f":"RANDBETWEEN(1928,2022)","v":1982},{"$f":"RANDBETWEEN(1928,2022)","v":2018},{"$f":"RANDBETWEEN(1928,2022)","v":2008},{"$f":"RANDBETWEEN(1928,2022)","v":1961},{"$f":"RANDBETWEEN(1928,2022)","v":1943},{"$f":"RANDBETWEEN(1928,2022)","v":1971},{"$f":"RANDBETWEEN(1928,2022)","v":1944},{"$f":"RANDBETWEEN(1928,2022)","v":2015},{"$f":"RANDBETWEEN(1928,2022)","v":1935},{"$f":"RANDBETWEEN(1928,2022)","v":2000},{"$f":"RANDBETWEEN(1928,2022)","v":1982},{"$f":"RANDBETWEEN(1928,2022)","v":2007},{"$f":"RANDBETWEEN(1928,2022)","v":2006},{"$f":"RANDBETWEEN(1928,2022)","v":1989},{"$f":"RANDBETWEEN(1928,2022)","v":1962},{"$f":"RANDBETWEEN(1928,2022)","v":1945},{"$f":"RANDBETWEEN(1928,2022)","v":1961},{"$f":"RANDBETWEEN(1928,2022)","v":1943},{"$f":"RANDBETWEEN(1928,2022)","v":2022},{"$f":"RANDBETWEEN(1928,2022)","v":1940},{"$f":"RANDBETWEEN(1928,2022)","v":2022},{"$f":"RANDBETWEEN(1928,2022)","v":1999},{"$f":"RANDBETWEEN(1928,2022)","v":1994},{"$f":"RANDBETWEEN(1928,2022)","v":1965},{"$f":"RANDBETWEEN(1928,2022)","v":2016},{"$f":"RANDBETWEEN(1928,2022)","v":1931},{"$f":"RANDBETWEEN(1928,2022)","v":2015},{"$f":"RANDBETWEEN(1928,2022)","v":2020},{"$f":"RANDBETWEEN(1928,2022)","v":1961},{"$f":"RANDBETWEEN(1928,2022)","v":2018},{"$f":"RANDBETWEEN(1928,2022)","v":1975},{"$f":"RANDBETWEEN(1928,2022)","v":1986},{"$f":"RANDBETWEEN(1928,2022)","v":2007},{"$f":"RANDBETWEEN(1928,2022)","v":2002},{"$f":"RANDBETWEEN(1928,2022)","v":2010},{"$f":"RANDBETWEEN(1928,2022)","v":1983},{"$f":"RANDBETWEEN(1928,2022)","v":1988},{"$f":"RANDBETWEEN(1928,2022)","v":1928},{"$f":"RANDBETWEEN(1928,2022)","v":2003}]
[{"$f":"RANDBETWEEN(1928,2022)","v":1958},{"$f":"RANDBETWEEN(1928,2022)","v":1967},{"$f":"RANDBETWEEN(1928,2022)","v":1947},{"$f":"RANDBETWEEN(1928,2022)","v":2007},{"$f":"RANDBETWEEN(1928,2022)","v":1979},{"$f":"RANDBETWEEN(1928,2022)","v":1988},{"$f":"RANDBETWEEN(1928,2022)","v":2021},{"$f":"RANDBETWEEN(1928,2022)","v":1966},{"$f":"RANDBETWEEN(1928,2022)","v":1935},{"$f":"RANDBETWEEN(1928,2022)","v":1972},{"$f":"RANDBETWEEN(1928,2022)","v":1973},{"$f":"RANDBETWEEN(1928,2022)","v":2012},{"$f":"RANDBETWEEN(1928,2022)","v":2015},{"$f":"RANDBETWEEN(1928,2022)","v":2016},{"$f":"RANDBETWEEN(1928,2022)","v":1977},{"$f":"RANDBETWEEN(1928,2022)","v":1939},{"$f":"RANDBETWEEN(1928,2022)","v":1931},{"$f":"RANDBETWEEN(1928,2022)","v":1942},{"$f":"RANDBETWEEN(1928,2022)","v":1980},{"$f":"RANDBETWEEN(1928,2022)","v":1997},{"$f":"RANDBETWEEN(1928,2022)","v":1946},{"$f":"RANDBETWEEN(1928,2022)","v":1928},{"$f":"RANDBETWEEN(1928,2022)","v":2007},{"$f":"RANDBETWEEN(1928,2022)","v":1993},{"$f":"RANDBETWEEN(1928,2022)","v":1946},{"$f":"RANDBETWEEN(1928,2022)","v":2021},{"$f":"RANDBETWEEN(1928,2022)","v":1962},{"$f":"RANDBETWEEN(1928,2022)","v":1945},{"$f":"RANDBETWEEN(1928,2022)","v":2007},{"$f":"RANDBETWEEN(1928,2022)","v":1945},{"$f":"RANDBETWEEN(1928,2022)","v":1976},{"$f":"RANDBETWEEN(1928,2022)","v":1947},{"$f":"RANDBETWEEN(1928,2022)","v":1941},{"$f":"RANDBETWEEN(1928,2022)","v":1995},{"$f":"RANDBETWEEN(1928,2022)","v":1949},{"$f":"RANDBETWEEN(1928,2022)","v":1980},{"$f":"RANDBETWEEN(1928,2022)","v":1948},{"$f":"RANDBETWEEN(1928,2022)","v":2000},{"$f":"RANDBETWEEN(1928,2022)","v":1979},{"$f":"RANDBETWEEN(1928,2022)","v":1943},{"$f":"RANDBETWEEN(1928,2022)","v":1995},{"$f":"RANDBETWEEN(1928,2022)","v":1988},{"$f":"RANDBETWEEN(1928,2022)","v":1965},{"$f":"RANDBETWEEN(1928,2022)","v":1982},{"$f":"RANDBETWEEN(1928,2022)","v":1991},{"$f":"RANDBETWEEN(1928,2022)","v":1938},{"$f":"RANDBETWEEN(1928,2022)","v":1989},{"$f":"RANDBETWEEN(1928,2022)","v":1957},{"$f":"RANDBETWEEN(1928,2022)","v":1973},{"$f":"RANDBETWEEN(1928,2022)","v":1959},{"$f":"RANDBETWEEN(1928,2022)","v":1998},{"$f":"RANDBETWEEN(1928,2022)","v":1956},{"$f":"RANDBETWEEN(1928,2022)","v":1985},{"$f":"RANDBETWEEN(1928,2022)","v":1939},{"$f":"RANDBETWEEN(1928,2022)","v":2010},{"$f":"RANDBETWEEN(1928,2022)","v":1975},{"$f":"RANDBETWEEN(1928,2022)","v":1932},{"$f":"RANDBETWEEN(1928,2022)","v":2018},{"$f":"RANDBETWEEN(1928,2022)","v":1928},{"$f":"RANDBETWEEN(1928,2022)","v":1986},{"$f":"RANDBETWEEN(1928,2022)","v":1997},{"$f":"RANDBETWEEN(1928,2022)","v":1952},{"$f":"RANDBETWEEN(1928,2022)","v":1994},{"$f":"RANDBETWEEN(1928,2022)","v":2011},{"$f":"RANDBETWEEN(1928,2022)","v":1960},{"$f":"RANDBETWEEN(1928,2022)","v":1998},{"$f":"RANDBETWEEN(1928,2022)","v":1936},{"$f":"RANDBETWEEN(1928,2022)","v":2009},{"$f":"RANDBETWEEN(1928,2022)","v":1983},{"$f":"RANDBETWEEN(1928,2022)","v":1958},{"$f":"RANDBETWEEN(1928,2022)","v":2016},{"$f":"RANDBETWEEN(1928,2022)","v":1945},{"$f":"RANDBETWEEN(1928,2022)","v":2013},{"$f":"RANDBETWEEN(1928,2022)","v":2012},{"$f":"RANDBETWEEN(1928,2022)","v":1952},{"$f":"RANDBETWEEN(1928,2022)","v":1959},{"$f":"RANDBETWEEN(1928,2022)","v":1980},{"$f":"RANDBETWEEN(1928,2022)","v":1933},{"$f":"RANDBETWEEN(1928,2022)","v":1953},{"$f":"RANDBETWEEN(1928,2022)","v":1977},{"$f":"RANDBETWEEN(1928,2022)","v":2014},{"$f":"RANDBETWEEN(1928,2022)","v":1976},{"$f":"RANDBETWEEN(1928,2022)","v":2011},{"$f":"RANDBETWEEN(1928,2022)","v":1976},{"$f":"RANDBETWEEN(1928,2022)","v":1984},{"$f":"RANDBETWEEN(1928,2022)","v":1955},{"$f":"RANDBETWEEN(1928,2022)","v":2006},{"$f":"RANDBETWEEN(1928,2022)","v":1952},{"$f":"RANDBETWEEN(1928,2022)","v":1942},{"$f":"RANDBETWEEN(1928,2022)","v":1942},{"$f":"RANDBETWEEN(1928,2022)","v":2022},{"$f":"RANDBETWEEN(1928,2022)","v":1952},{"$f":"RANDBETWEEN(1928,2022)","v":1951},{"$f":"RANDBETWEEN(1928,2022)","v":1935},{"$f":"RANDBETWEEN(1928,2022)","v":1946},{"$f":"RANDBETWEEN(1928,2022)","v":1935},{"$f":"RANDBETWEEN(1928,2022)","v":2013},{"$f":"RANDBETWEEN(1928,2022)","v":1929},{"$f":"RANDBETWEEN(1928,2022)","v":2019},{"$f":"RANDBETWEEN(1928,2022)","v":2017}]
[{"$f":"RANDBETWEEN(1928,2022)","v":1980},{"$f":"RANDBETWEEN(1928,2022)","v":2019},{"$f":"RANDBETWEEN(1928,2022)","v":1994},{"$f":"RANDBETWEEN(1928,2022)","v":2012},{"$f":"RANDBETWEEN(1928,2022)","v":2018},{"$f":"RANDBETWEEN(1928,2022)","v":1929},{"$f":"RANDBETWEEN(1928,2022)","v":1972},{"$f":"RANDBETWEEN(1928,2022)","v":2000},{"$f":"RANDBETWEEN(1928,2022)","v":2002},{"$f":"RANDBETWEEN(1928,2022)","v":1962},{"$f":"RANDBETWEEN(1928,2022)","v":1992},{"$f":"RANDBETWEEN(1928,2022)","v":1986},{"$f":"RANDBETWEEN(1928,2022)","v":1986},{"$f":"RANDBETWEEN(1928,2022)","v":1931},{"$f":"RANDBETWEEN(1928,2022)","v":1961},{"$f":"RANDBETWEEN(1928,2022)","v":2019},{"$f":"RANDBETWEEN(1928,2022)","v":1988},{"$f":"RANDBETWEEN(1928,2022)","v":1973},{"$f":"RANDBETWEEN(1928,2022)","v":2004},{"$f":"RANDBETWEEN(1928,2022)","v":2002},{"$f":"RANDBETWEEN(1928,2022)","v":1961},{"$f":"RANDBETWEEN(1928,2022)","v":1935},{"$f":"RANDBETWEEN(1928,2022)","v":1957},{"$f":"RANDBETWEEN(1928,2022)","v":1933},{"$f":"RANDBETWEEN(1928,2022)","v":2008},{"$f":"RANDBETWEEN(1928,2022)","v":1999},{"$f":"RANDBETWEEN(1928,2022)","v":2006},{"$f":"RANDBETWEEN(1928,2022)","v":1948},{"$f":"RANDBETWEEN(1928,2022)","v":1949},{"$f":"RANDBETWEEN(1928,2022)","v":1941},{"$f":"RANDBETWEEN(1928,2022)","v":1972},{"$f":"RANDBETWEEN(1928,2022)","v":2011},{"$f":"RANDBETWEEN(1928,2022)","v":1977},{"$f":"RANDBETWEEN(1928,2022)","v":1937},{"$f":"RANDBETWEEN(1928,2022)","v":1939},{"$f":"RANDBETWEEN(1928,2022)","v":1933},{"$f":"RANDBETWEEN(1928,2022)","v":1947},{"$f":"RANDBETWEEN(1928,2022)","v":1983},{"$f":"RANDBETWEEN(1928,2022)","v":2014},{"$f":"RANDBETWEEN(1928,2022)","v":1984},{"$f":"RANDBETWEEN(1928,2022)","v":1988},{"$f":"RANDBETWEEN(1928,2022)","v":1936},{"$f":"RANDBETWEEN(1928,2022)","v":2002},{"$f":"RANDBETWEEN(1928,2022)","v":1967},{"$f":"RANDBETWEEN(1928,2022)","v":1970},{"$f":"RANDBETWEEN(1928,2022)","v":1986},{"$f":"RANDBETWEEN(1928,2022)","v":1995},{"$f":"RANDBETWEEN(1928,2022)","v":1969},{"$f":"RANDBETWEEN(1928,2022)","v":1944},{"$f":"RANDBETWEEN(1928,2022)","v":1931},{"$f":"RANDBETWEEN(1928,2022)","v":1940},{"$f":"RANDBETWEEN(1928,2022)","v":1947},{"$f":"RANDBETWEEN(1928,2022)","v":2019},{"$f":"RANDBETWEEN(1928,2022)","v":1935},{"$f":"RANDBETWEEN(1928,2022)","v":1989},{"$f":"RANDBETWEEN(1928,2022)","v":1985},{"$f":"RANDBETWEEN(1928,2022)","v":2009},{"$f":"RANDBETWEEN(1928,2022)","v":1946},{"$f":"RANDBETWEEN(1928,2022)","v":1996},{"$f":"RANDBETWEEN(1928,2022)","v":1968},{"$f":"RANDBETWEEN(1928,2022)","v":1996},{"$f":"RANDBETWEEN(1928,2022)","v":1972},{"$f":"RANDBETWEEN(1928,2022)","v":1970},{"$f":"RANDBETWEEN(1928,2022)","v":2022},{"$f":"RANDBETWEEN(1928,2022)","v":2019},{"$f":"RANDBETWEEN(1928,2022)","v":1962},{"$f":"RANDBETWEEN(1928,2022)","v":1933},{"$f":"RANDBETWEEN(1928,2022)","v":1991},{"$f":"RANDBETWEEN(1928,2022)","v":2000},{"$f":"RANDBETWEEN(1928,2022)","v":1942},{"$f":"RANDBETWEEN(1928,2022)","v":1979},{"$f":"RANDBETWEEN(1928,2022)","v":1954},{"$f":"RANDBETWEEN(1928,2022)","v":1968},{"$f":"RANDBETWEEN(1928,2022)","v":1986},{"$f":"RANDBETWEEN(1928,2022)","v":1957},{"$f":"RANDBETWEEN(1928,2022)","v":1952},{"$f":"RANDBETWEEN(1928,2022)","v":2016},{"$f":"RANDBETWEEN(1928,2022)","v":2019},{"$f":"RANDBETWEEN(1928,2022)","v":2001},{"$f":"RANDBETWEEN(1928,2022)","v":2005},{"$f":"RANDBETWEEN(1928,2022)","v":1994},{"$f":"RANDBETWEEN(1928,2022)","v":1964},{"$f":"RANDBETWEEN(1928,2022)","v":1972},{"$f":"RANDBETWEEN(1928,2022)","v":2015},{"$f":"RANDBETWEEN(1928,2022)","v":1985},{"$f":"RANDBETWEEN(1928,2022)","v":1940},{"$f":"RANDBETWEEN(1928,2022)","v":1928},{"$f":"RANDBETWEEN(1928,2022)","v":1942},{"$f":"RANDBETWEEN(1928,2022)","v":1943},{"$f":"RANDBETWEEN(1928,2022)","v":1976},{"$f":"RANDBETWEEN(1928,2022)","v":1928},{"$f":"RANDBETWEEN(1928,2022)","v":1960},{"$f":"RANDBETWEEN(1928,2022)","v":1975},{"$f":"RANDBETWEEN(1928,2022)","v":1968},{"$f":"RANDBETWEEN(1928,2022)","v":1953},{"$f":"RANDBETWEEN(1928,2022)","v":2015},{"$f":"RANDBETWEEN(1928,2022)","v":1945},{"$f":"RANDBETWEEN(1928,2022)","v":1985},{"$f":"RANDBETWEEN(1928,2022)","v":1998},{"$f":"RANDBETWEEN(1928,2022)","v":1994}]
[{"$f":"RANDBETWEEN(1928,2022)","v":1989},{"$f":"RANDBETWEEN(1928,2022)","v":1929},{"$f":"RANDBETWEEN(1928,2022)","v":2013},{"$f":"RANDBETWEEN(1928,2022)","v":1942},{"$f":"RANDBETWEEN(1928,2022)","v":1929},{"$f":"RANDBETWEEN(1928,2022)","v":1952},{"$f":"RANDBETWEEN(1928,2022)","v":1964},{"$f":"RANDBETWEEN(1928,2022)","v":2016},{"$f":"RANDBETWEEN(1928,2022)","v":1935},{"$f":"RANDBETWEEN(1928,2022)","v":1938},{"$f":"RANDBETWEEN(1928,2022)","v":1965},{"$f":"RANDBETWEEN(1928,2022)","v":1965},{"$f":"RANDBETWEEN(1928,2022)","v":1981},{"$f":"RANDBETWEEN(1928,2022)","v":1978},{"$f":"RANDBETWEEN(1928,2022)","v":1933},{"$f":"RANDBETWEEN(1928,2022)","v":2010},{"$f":"RANDBETWEEN(1928,2022)","v":1998},{"$f":"RANDBETWEEN(1928,2022)","v":1936},{"$f":"RANDBETWEEN(1928,2022)","v":2011},{"$f":"RANDBETWEEN(1928,2022)","v":1933},{"$f":"RANDBETWEEN(1928,2022)","v":1930},{"$f":"RANDBETWEEN(1928,2022)","v":1944},{"$f":"RANDBETWEEN(1928,2022)","v":1983},{"$f":"RANDBETWEEN(1928,2022)","v":1965},{"$f":"RANDBETWEEN(1928,2022)","v":1976},{"$f":"RANDBETWEEN(1928,2022)","v":1964},{"$f":"RANDBETWEEN(1928,2022)","v":1988},{"$f":"RANDBETWEEN(1928,2022)","v":1990},{"$f":"RANDBETWEEN(1928,2022)","v":1985},{"$f":"RANDBETWEEN(1928,2022)","v":1966},{"$f":"RANDBETWEEN(1928,2022)","v":1945},{"$f":"RANDBETWEEN(1928,2022)","v":1968},{"$f":"RANDBETWEEN(1928,2022)","v":1952},{"$f":"RANDBETWEEN(1928,2022)","v":1968},{"$f":"RANDBETWEEN(1928,2022)","v":2021},{"$f":"RANDBETWEEN(1928,2022)","v":2005},{"$f":"RANDBETWEEN(1928,2022)","v":2003},{"$f":"RANDBETWEEN(1928,2022)","v":1942},{"$f":"RANDBETWEEN(1928,2022)","v":1929},{"$f":"RANDBETWEEN(1928,2022)","v":1961},{"$f":"RANDBETWEEN(1928,2022)","v":1994},{"$f":"RANDBETWEEN(1928,2022)","v":2021},{"$f":"RANDBETWEEN(1928,2022)","v":2016},{"$f":"RANDBETWEEN(1928,2022)","v":1993},{"$f":"RANDBETWEEN(1928,2022)","v":1936},{"$f":"RANDBETWEEN(1928,2022)","v":1959},{"$f":"RANDBETWEEN(1928,2022)","v":1936},{"$f":"RANDBETWEEN(1928,2022)","v":1969},{"$f":"RANDBETWEEN(1928,2022)","v":2002},{"$f":"RANDBETWEEN(1928,2022)","v":1992},{"$f":"RANDBETWEEN(1928,2022)","v":1987},{"$f":"RANDBETWEEN(1928,2022)","v":1968},{"$f":"RANDBETWEEN(1928,2022)","v":1939},{"$f":"RANDBETWEEN(1928,2022)","v":1962},{"$f":"RANDBETWEEN(1928,2022)","v":1956},{"$f":"RANDBETWEEN(1928,2022)","v":1939},{"$f":"RANDBETWEEN(1928,2022)","v":2015},{"$f":"RANDBETWEEN(1928,2022)","v":1949},{"$f":"RANDBETWEEN(1928,2022)","v":2015},{"$f":"RANDBETWEEN(1928,2022)","v":1937},{"$f":"RANDBETWEEN(1928,2022)","v":1985},{"$f":"RANDBETWEEN(1928,2022)","v":2022},{"$f":"RANDBETWEEN(1928,2022)","v":1997},{"$f":"RANDBETWEEN(1928,2022)","v":1964},{"$f":"RANDBETWEEN(1928,2022)","v":2005},{"$f":"RANDBETWEEN(1928,2022)","v":1993},{"$f":"RANDBETWEEN(1928,2022)","v":1985},{"$f":"RANDBETWEEN(1928,2022)","v":2005},{"$f":"RANDBETWEEN(1928,2022)","v":1929},{"$f":"RANDBETWEEN(1928,2022)","v":1975},{"$f":"RANDBETWEEN(1928,2022)","v":2003},{"$f":"RANDBETWEEN(1928,2022)","v":1988},{"$f":"RANDBETWEEN(1928,2022)","v":2022},{"$f":"RANDBETWEEN(1928,2022)","v":1942},{"$f":"RANDBETWEEN(1928,2022)","v":2003},{"$f":"RANDBETWEEN(1928,2022)","v":1942},{"$f":"RANDBETWEEN(1928,2022)","v":1967},{"$f":"RANDBETWEEN(1928,2022)","v":2009},{"$f":"RANDBETWEEN(1928,2022)","v":1972},{"$f":"RANDBETWEEN(1928,2022)","v":1990},{"$f":"RANDBETWEEN(1928,2022)","v":1958},{"$f":"RANDBETWEEN(1928,2022)","v":1937},{"$f":"RANDBETWEEN(1928,2022)","v":1987},{"$f":"RANDBETWEEN(1928,2022)","v":1933},{"$f":"RANDBETWEEN(1928,2022)","v":1958},{"$f":"RANDBETWEEN(1928,2022)","v":1932},{"$f":"RANDBETWEEN(1928,2022)","v":1930},{"$f":"RANDBETWEEN(1928,2022)","v":2003},{"$f":"RANDBETWEEN(1928,2022)","v":1987},{"$f":"RANDBETWEEN(1928,2022)","v":1946},{"$f":"RANDBETWEEN(1928,2022)","v":1933},{"$f":"RANDBETWEEN(1928,2022)","v":1951},{"$f":"RANDBETWEEN(1928,2022)","v":1928},{"$f":"RANDBETWEEN(1928,2022)","v":2001},{"$f":"RANDBETWEEN(1928,2022)","v":2002},{"$f":"RANDBETWEEN(1928,2022)","v":1938},{"$f":"RANDBETWEEN(1928,2022)","v":1970},{"$f":"RANDBETWEEN(1928,2022)","v":1963},{"$f":"RANDBETWEEN(1928,2022)","v":1963},{"$f":"RANDBETWEEN(1928,2022)","v":1976}]
[{"$f":"RANDBETWEEN(1928,2022)","v":1984},{"$f":"RANDBETWEEN(1928,2022)","v":2022},{"$f":"RANDBETWEEN(1928,2022)","v":1961},{"$f":"RANDBETWEEN(1928,2022)","v":2012},{"$f":"RANDBETWEEN(1928,2022)","v":1938},{"$f":"RANDBETWEEN(1928,2022)","v":2006},{"$f":"RANDBETWEEN(1928,2022)","v":1974},{"$f":"RANDBETWEEN(1928,2022)","v":2007},{"$f":"RANDBETWEEN(1928,2022)","v":1969},{"$f":"RANDBETWEEN(1928,2022)","v":1989},{"$f":"RANDBETWEEN(1928,2022)","v":1930},{"$f":"RANDBETWEEN(1928,2022)","v":1939},{"$f":"RANDBETWEEN(1928,2022)","v":1999},{"$f":"RANDBETWEEN(1928,2022)","v":2015},{"$f":"RANDBETWEEN(1928,2022)","v":2005},{"$f":"RANDBETWEEN(1928,2022)","v":1934},{"$f":"RANDBETWEEN(1928,2022)","v":1973},{"$f":"RANDBETWEEN(1928,2022)","v":1935},{"$f":"RANDBETWEEN(1928,2022)","v":1991},{"$f":"RANDBETWEEN(1928,2022)","v":1965},{"$f":"RANDBETWEEN(1928,2022)","v":1933},{"$f":"RANDBETWEEN(1928,2022)","v":1959},{"$f":"RANDBETWEEN(1928,2022)","v":1934},{"$f":"RANDBETWEEN(1928,2022)","v":1935},{"$f":"RANDBETWEEN(1928,2022)","v":2014},{"$f":"RANDBETWEEN(1928,2022)","v":1945},{"$f":"RANDBETWEEN(1928,2022)","v":1968},{"$f":"RANDBETWEEN(1928,2022)","v":1967},{"$f":"RANDBETWEEN(1928,2022)","v":1934},{"$f":"RANDBETWEEN(1928,2022)","v":1964},{"$f":"RANDBETWEEN(1928,2022)","v":1993},{"$f":"RANDBETWEEN(1928,2022)","v":2013},{"$f":"RANDBETWEEN(1928,2022)","v":1992},{"$f":"RANDBETWEEN(1928,2022)","v":1960},{"$f":"RANDBETWEEN(1928,2022)","v":1943},{"$f":"RANDBETWEEN(1928,2022)","v":1979},{"$f":"RANDBETWEEN(1928,2022)","v":1987},{"$f":"RANDBETWEEN(1928,2022)","v":1988},{"$f":"RANDBETWEEN(1928,2022)","v":1963},{"$f":"RANDBETWEEN(1928,2022)","v":2002},{"$f":"RANDBETWEEN(1928,2022)","v":2000},{"$f":"RANDBETWEEN(1928,2022)","v":2000},{"$f":"RANDBETWEEN(1928,2022)","v":1962},{"$f":"RANDBETWEEN(1928,2022)","v":1984},{"$f":"RANDBETWEEN(1928,2022)","v":1999},{"$f":"RANDBETWEEN(1928,2022)","v":1988},{"$f":"RANDBETWEEN(1928,2022)","v":2016},{"$f":"RANDBETWEEN(1928,2022)","v":1945},{"$f":"RANDBETWEEN(1928,2022)","v":1978},{"$f":"RANDBETWEEN(1928,2022)","v":2002},{"$f":"RANDBETWEEN(1928,2022)","v":2012},{"$f":"RANDBETWEEN(1928,2022)","v":1979},{"$f":"RANDBETWEEN(1928,2022)","v":1937},{"$f":"RANDBETWEEN(1928,2022)","v":2016},{"$f":"RANDBETWEEN(1928,2022)","v":2007},{"$f":"RANDBETWEEN(1928,2022)","v":1952},{"$f":"RANDBETWEEN(1928,2022)","v":1989},{"$f":"RANDBETWEEN(1928,2022)","v":2020},{"$f":"RANDBETWEEN(1928,2022)","v":2022},{"$f":"RANDBETWEEN(1928,2022)","v":1933},{"$f":"RANDBETWEEN(1928,2022)","v":1953},{"$f":"RANDBETWEEN(1928,2022)","v":1929},{"$f":"RANDBETWEEN(1928,2022)","v":2012},{"$f":"RANDBETWEEN(1928,2022)","v":1952},{"$f":"RANDBETWEEN(1928,2022)","v":1972},{"$f":"RANDBETWEEN(1928,2022)","v":1932},{"$f":"RANDBETWEEN(1928,2022)","v":1973},{"$f":"RANDBETWEEN(1928,2022)","v":1934},{"$f":"RANDBETWEEN(1928,2022)","v":1929},{"$f":"RANDBETWEEN(1928,2022)","v":1936},{"$f":"RANDBETWEEN(1928,2022)","v":1974},{"$f":"RANDBETWEEN(1928,2022)","v":1998},{"$f":"RANDBETWEEN(1928,2022)","v":1981},{"$f":"RANDBETWEEN(1928,2022)","v":1972},{"$f":"RANDBETWEEN(1928,2022)","v":2012},{"$f":"RANDBETWEEN(1928,2022)","v":1944},{"$f":"RANDBETWEEN(1928,2022)","v":2017},{"$f":"RANDBETWEEN(1928,2022)","v":2009},{"$f":"RANDBETWEEN(1928,2022)","v":1974},{"$f":"RANDBETWEEN(1928,2022)","v":1992},{"$f":"RANDBETWEEN(1928,2022)","v":1950},{"$f":"RANDBETWEEN(1928,2022)","v":1980},{"$f":"RANDBETWEEN(1928,2022)","v":1947},{"$f":"RANDBETWEEN(1928,2022)","v":1991},{"$f":"RANDBETWEEN(1928,2022)","v":1961},{"$f":"RANDBETWEEN(1928,2022)","v":1985},{"$f":"RANDBETWEEN(1928,2022)","v":2001},{"$f":"RANDBETWEEN(1928,2022)","v":2008},{"$f":"RANDBETWEEN(1928,2022)","v":1932},{"$f":"RANDBETWEEN(1928,2022)","v":1976},{"$f":"RANDBETWEEN(1928,2022)","v":1953},{"$f":"RANDBETWEEN(1928,2022)","v":1979},{"$f":"RANDBETWEEN(1928,2022)","v":2012},{"$f":"RANDBETWEEN(1928,2022)","v":2000},{"$f":"RANDBETWEEN(1928,2022)","v":1999},{"$f":"RANDBETWEEN(1928,2022)","v":1977},{"$f":"RANDBETWEEN(1928,2022)","v":2022},{"$f":"RANDBETWEEN(1928,2022)","v":1977},{"$f":"RANDBETWEEN(1928,2022)","v":2012},{"$f":"RANDBETWEEN(1928,2022)","v":1976}]
[{"$f":"RANDBETWEEN(1928,2022)","v":2010},{"$f":"RANDBETWEEN(1928,2022)","v":1991},{"$f":"RANDBETWEEN(1928,2022)","v":2020},{"$f":"RANDBETWEEN(1928,2022)","v":1975},{"$f":"RANDBETWEEN(1928,2022)","v":1998},{"$f":"RANDBETWEEN(1928,2022)","v":1949},{"$f":"RANDBETWEEN(1928,2022)","v":2001},{"$f":"RANDBETWEEN(1928,2022)","v":1976},{"$f":"RANDBETWEEN(1928,2022)","v":1968},{"$f":"RANDBETWEEN(1928,2022)","v":1950},{"$f":"RANDBETWEEN(1928,2022)","v":1994},{"$f":"RANDBETWEEN(1928,2022)","v":2008},{"$f":"RANDBETWEEN(1928,2022)","v":1975},{"$f":"RANDBETWEEN(1928,2022)","v":1942},{"$f":"RANDBETWEEN(1928,2022)","v":1962},{"$f":"RANDBETWEEN(1928,2022)","v":1941},{"$f":"RANDBETWEEN(1928,2022)","v":2009},{"$f":"RANDBETWEEN(1928,2022)","v":1989},{"$f":"RANDBETWEEN(1928,2022)","v":2006},{"$f":"RANDBETWEEN(1928,2022)","v":1943},{"$f":"RANDBETWEEN(1928,2022)","v":1984},{"$f":"RANDBETWEEN(1928,2022)","v":2002},{"$f":"RANDBETWEEN(1928,2022)","v":2021},{"$f":"RANDBETWEEN(1928,2022)","v":1956},{"$f":"RANDBETWEEN(1928,2022)","v":2005},{"$f":"RANDBETWEEN(1928,2022)","v":1996},{"$f":"RANDBETWEEN(1928,2022)","v":1993},{"$f":"RANDBETWEEN(1928,2022)","v":1930},{"$f":"RANDBETWEEN(1928,2022)","v":1967},{"$f":"RANDBETWEEN(1928,2022)","v":1940},{"$f":"RANDBETWEEN(1928,2022)","v":1928},{"$f":"RANDBETWEEN(1928,2022)","v":1997},{"$f":"RANDBETWEEN(1928,2022)","v":2017},{"$f":"RANDBETWEEN(1928,2022)","v":1948},{"$f":"RANDBETWEEN(1928,2022)","v":1930},{"$f":"RANDBETWEEN(1928,2022)","v":1936},{"$f":"RANDBETWEEN(1928,2022)","v":1979},{"$f":"RANDBETWEEN(1928,2022)","v":1999},{"$f":"RANDBETWEEN(1928,2022)","v":1948},{"$f":"RANDBETWEEN(1928,2022)","v":2007},{"$f":"RANDBETWEEN(1928,2022)","v":2000},{"$f":"RANDBETWEEN(1928,2022)","v":2000},{"$f":"RANDBETWEEN(1928,2022)","v":1989},{"$f":"RANDBETWEEN(1928,2022)","v":1979},{"$f":"RANDBETWEEN(1928,2022)","v":1942},{"$f":"RANDBETWEEN(1928,2022)","v":1934},{"$f":"RANDBETWEEN(1928,2022)","v":2009},{"$f":"RANDBETWEEN(1928,2022)","v":1928},{"$f":"RANDBETWEEN(1928,2022)","v":2016},{"$f":"RANDBETWEEN(1928,2022)","v":2017},{"$f":"RANDBETWEEN(1928,2022)","v":1942},{"$f":"RANDBETWEEN(1928,2022)","v":1949},{"$f":"RANDBETWEEN(1928,2022)","v":1964},{"$f":"RANDBETWEEN(1928,2022)","v":1984},{"$f":"RANDBETWEEN(1928,2022)","v":1946},{"$f":"RANDBETWEEN(1928,2022)","v":2010},{"$f":"RANDBETWEEN(1928,2022)","v":1974},{"$f":"RANDBETWEEN(1928,2022)","v":1982},{"$f":"RANDBETWEEN(1928,2022)","v":2014},{"$f":"RANDBETWEEN(1928,2022)","v":1946},{"$f":"RANDBETWEEN(1928,2022)","v":1934},{"$f":"RANDBETWEEN(1928,2022)","v":1956},{"$f":"RANDBETWEEN(1928,2022)","v":1956},{"$f":"RANDBETWEEN(1928,2022)","v":1984},{"$f":"RANDBETWEEN(1928,2022)","v":1983},{"$f":"RANDBETWEEN(1928,2022)","v":1976},{"$f":"RANDBETWEEN(1928,2022)","v":1973},{"$f":"RANDBETWEEN(1928,2022)","v":1952},{"$f":"RANDBETWEEN(1928,2022)","v":1947},{"$f":"RANDBETWEEN(1928,2022)","v":1968},{"$f":"RANDBETWEEN(1928,2022)","v":1983},{"$f":"RANDBETWEEN(1928,2022)","v":1987},{"$f":"RANDBETWEEN(1928,2022)","v":1951},{"$f":"RANDBETWEEN(1928,2022)","v":1969},{"$f":"RANDBETWEEN(1928,2022)","v":1929},{"$f":"RANDBETWEEN(1928,2022)","v":1944},{"$f":"RANDBETWEEN(1928,2022)","v":2016},{"$f":"RANDBETWEEN(1928,2022)","v":2001},{"$f":"RANDBETWEEN(1928,2022)","v":1953},{"$f":"RANDBETWEEN(1928,2022)","v":1999},{"$f":"RANDBETWEEN(1928,2022)","v":1987},{"$f":"RANDBETWEEN(1928,2022)","v":1930},{"$f":"RANDBETWEEN(1928,2022)","v":2000},{"$f":"RANDBETWEEN(1928,2022)","v":1993},{"$f":"RANDBETWEEN(1928,2022)","v":1934},{"$f":"RANDBETWEEN(1928,2022)","v":1993},{"$f":"RANDBETWEEN(1928,2022)","v":1972},{"$f":"RANDBETWEEN(1928,2022)","v":1967},{"$f":"RANDBETWEEN(1928,2022)","v":1993},{"$f":"RANDBETWEEN(1928,2022)","v":1959},{"$f":"RANDBETWEEN(1928,2022)","v":1975},{"$f":"RANDBETWEEN(1928,2022)","v":1999},{"$f":"RANDBETWEEN(1928,2022)","v":1945},{"$f":"RANDBETWEEN(1928,2022)","v":2005},{"$f":"RANDBETWEEN(1928,2022)","v":1991},{"$f":"RANDBETWEEN(1928,2022)","v":1959},{"$f":"RANDBETWEEN(1928,2022)","v":1937},{"$f":"RANDBETWEEN(1928,2022)","v":1971},{"$f":"RANDBETWEEN(1928,2022)","v":1981},{"$f":"RANDBETWEEN(1928,2022)","v":1973}]
[]
["With each recalculation of the worksheet, a year is randomly selected for each cell between 1928-2016 in each of the 100 columns or tests. "]
["These values are then used in the corresponding cells of worksheets Inflation, Equities, T Bills and T Bonds to lookup from the worksheet Hist Returns the respective annual rates for that year. "]
["To change the range of years used in the random selection, do Edit, Replace (^H) and global replace of the year you want to change. "]
["Changing the years to 1943-2016 may give higher returns as three of the six years with less than -15% returns were prior to 1938. "]

{"sheet":"Hist Returns","index":9,"n_rows":139,"n_cols":15,"rows_kept":139,"merged":[[115,0,115,3]]}
["Customixed Geometric risk premium estimator"]
["What is your riskfree rate?",null,"LT",null,null,"Estimates of risk premiums from 1928, over the last 40 years and over the last 10 years"]
["Enter your starting year",null,1975,null,null,"are provided at the bottom of this table."]
[]
["Value of stocks in starting year:",{"$nulls":3},{"$f":"VLOOKUP(C3-1,A12:G89,5)","v":3023.5361494891954},null,null,"Data compiled by Damodaran Online, Distinguished professor at NYU.  "]
["Value of T.bills in starting year:",{"$nulls":3},{"$f":"VLOOKUP(C3-1,A12:G89,6)","v":293.4149612634377},null,null,"http://people.stern.nyu.edu/adamodar/New_Home_Page/datafile/histretSP.html"]
["Value of T.bonds in starting year:",{"$nulls":3},{"$f":"VLOOKUP(C3-1,A11:G89,7)","v":379.98011367377757},{"$nulls":4},"Go to Data"]
["Estimate of risk premium based on your inputs:",{"$nulls":3},{"$f":"IF(C2=\"ST\",(E89/E5)^(1/(A89-C3+1))-(F89/E6)^(1/(A89-C3+1)),(E89/E5)^(1/(A89-C3+1))-(G89/E7)^(1/(A89-C3+1)))","v":{"v":0.05059721585555654,"d":"5.06%"}},{"$nulls":4},"Go to Historical Returns on Stocks, Bonds and Bills - United States"]
[{"$nulls":9},"\"The raw data for treasury bond and bill returns is obtained from the Federal Reserve database in St. Louis (FRED). The treasury bill rate is a 6-month rate but the treasury bond return includes coupon and price appreciation.\""]
[null,"Annual Returns on Investments in",null,null,"Compounded Value of $ 100",null,null,"My Preferreds",null,"The bonds are \"long-term\".   I couldn't find just how long, but I presume 10 years."]
["Year","Stocks","T.Bills","T.Bonds","Stocks","T.Bills","T.Bonds","Div Yld","TWR","Year","Stocks","T.Bills","T.Bonds","DUPLICATE DATA FOR TESTING PURPOSES"]
[1928,{"v":0.43811155152887893,"d":"43.81%"},{"v":0.0308,"d":"3.08%"},{"v":8.354708589799302E-3,"d":"0.84%"},{"$f":"100*(1+B12)","v":{"v":143.8111551528879,"d":"$143.81"}},{"$f":"100*(1+C12)","v":{"v":103.08,"d":"$103.08"}},{"$f":"100*(1+D12)","v":{"v":100.83547085897993,"d":"$100.84"}},null,null,1928,{"v":0.43811155152887893,"d":"43.81%"},{"v":0.0308,"d":"3.08%"},{"v":8.354708589799302E-3,"d":"0.84%"},null,{"v":-0.4383754889178619,"d":"-43.84%"}]
[1929,{"v":-0.0829794661190966,"d":"-8.30%"},{"v":0.0316,"d":"3.16%"},{"v":0.04203804156320426,"d":"4.20%"},{"$f":"E12*(1+B13)","v":{"v":131.8777822763307,"d":"$131.88"}},{"v":106.337328,"d":"$106.34"},{"v":105.074396573995,"d":"$105.07"},null,null,1929,{"v":-0.0829794661190966,"d":"-8.30%"},{"v":0.0316,"d":"3.16%"},{"v":0.04203804156320426,"d":"4.20%"},null,{"v":-0.3533672875436554,"d":"-35.34%"}]
[1930,{"v":-0.25123636363636365,"d":"-25.12%"},{"v":0.0455,"d":"4.55%"},{"v":0.045409314348970366,"d":"4.54%"},{"v":98.74528781279727,"d":"$98.75"},{"v":111.17567642400002,"d":"$111.18"},{"v":109.84575287805193,"d":"$109.85"},null,null,1930,{"v":-0.25123636363636365,"d":"-25.12%"},{"v":0.0455,"d":"4.55%"},{"v":0.045409314348970366,"d":"4.54%"},null,{"v":-0.2590178575089697,"d":"-25.90%"}]
[1931,{"v":-0.4383754889178619,"d":"-43.84%"},{"v":0.0231,"d":"2.31%"},{"v":-0.02558855961942253,"d":"-2.56%"},{"v":55.457773989527276,"d":"$55.46"},{"v":113.7438345493944,"d":"$113.74"},{"v":107.03495828159154,"d":"$107.03"},null,null,1931,{"v":-0.4383754889178619,"d":"-43.84%"},{"v":0.0231,"d":"2.31%"},{"v":-0.02558855961942253,"d":"-2.56%"},null,{"v":-0.25123636363636365,"d":"-25.12%"}]
[1932,{"v":-0.08642364532019696,"d":"-8.64%"},{"v":0.0107,"d":"1.07%"},{"v":0.08790306990477326,"d":"8.79%"},{"v":50.66491100000872,"d":"$50.66"},{"v":114.96089357907292,"d":"$114.96"},{"v":116.44365970167279,"d":"$116.44"},null,null,1932,{"v":-0.08642364532019696,"d":"-8.64%"},{"v":0.0107,"d":"1.07%"},{"v":0.08790306990477326,"d":"8.79%"},null,{"v":-0.21976500100166352,"d":"-21.98%"}]
[1933,{"v":0.49982225433526023,"d":"49.98%"},{"v":0.0096,"d":"0.96%"},{"v":0.01855272089185736,"d":"1.86%"},{"v":75.9883610317284,"d":"$75.99"},{"v":116.06451815743202,"d":"$116.06"},{"v":118.60400641974435,"d":"$118.60"},null,null,1933,{"v":0.49982225433526023,"d":"49.98%"},{"v":0.0096,"d":"0.96%"},{"v":0.01855272089185736,"d":"1.86%"},null,{"v":-0.14308047437526472,"d":"-14.31%"}]
[1934,{"v":-0.011885656970912803,"d":"-1.19%"},{"v":0.0032,"d":"0.32%"},{"v":0.0796344261796561,"d":"7.96%"},{"v":75.0851894387234,"d":"$75.09"},{"v":116.43592461553581,"d":"$116.44"},{"v":128.04896841358894,"d":"$128.05"},null,null,1934,{"v":-0.011885656970912803,"d":"-1.19%"},{"v":0.003,"d":"0.30%"},{"v":0.0796344261796561,"d":"7.96%"},null,{"v":-0.1277145557655955,"d":"-12.77%"}]
[1935,{"v":0.4674042105263158,"d":"46.74%"},{"v":1.8E-3,"d":"0.18%"},{"v":0.04472047729656613,"d":"4.47%"},{"v":110.18032313054879,"d":"$110.18"},{"v":116.64550927984378,"d":"$116.65"},{"v":133.77537939837757,"d":"$133.78"},null,null,1935,{"v":0.4674042105263158,"d":"46.74%"},{"v":2.3E-3,"d":"0.23%"},{"v":0.04472047729656613,"d":"4.47%"},null,{"v":-0.11849759142000185,"d":"-11.85%"}]
[1936,{"v":0.3194341027550261,"d":"31.94%"},{"v":0.0017,"d":"0.17%"},{"v":0.0501787540454506,"d":"5.02%"},{"v":145.3756757910145,"d":"$145.38"},{"v":116.84380664561952,"d":"$116.84"},{"v":140.4880612585456,"d":"$140.49"},null,null,1936,{"v":0.3194341027550261,"d":"31.94%"},{"v":1.5E-3,"d":"0.15%"},{"v":0.0501787540454506,"d":"5.02%"},null,{"v":-0.10672873194221515,"d":"-10.67%"}]
[1937,{"v":-0.3533672875436554,"d":"-35.34%"},{"v":0.003,"d":"0.30%"},{"v":0.01379146059646038,"d":"1.38%"},{"v":94.00466756191786,"d":"$94.00"},{"v":117.19433806555637,"d":"$117.19"},{"v":142.42559681966594,"d":"$142.43"},null,null,1937,{"v":-0.3533672875436554,"d":"-35.34%"},{"v":0.0012,"d":"0.12%"},{"v":0.01379146059646038,"d":"1.38%"},null,{"v":-0.1045736018855796,"d":"-10.46%"}]
[1938,{"v":0.29282654028436017,"d":"29.28%"},{"v":0.0008,"d":"0.08%"},{"v":0.04213248532204607,"d":"4.21%"},{"v":121.53172913465568,"d":"$121.53"},{"v":117.2880935360088,"d":"$117.29"},{"v":148.42634118715418,"d":"$148.43"},null,null,1938,{"v":0.29282654028436017,"d":"29.28%"},{"v":0.0011,"d":"0.11%"},{"v":0.04213248532204607,"d":"4.21%"},null,{"v":-0.0997095423563779,"d":"-9.97%"}]
[1939,{"v":-0.010975646879756443,"d":"-1.10%"},{"v":0.0004,"d":"0.04%"},{"v":0.04412261394206067,"d":"4.41%"},{"v":120.19783979098749,"d":"$120.20"},{"v":117.3350087734232,"d":"$117.34"},{"v":154.97529933818757,"d":"$154.98"},null,null,1939,{"v":-0.010975646879756443,"d":"-1.10%"},{"v":0.0003,"d":"0.03%"},{"v":0.04412261394206067,"d":"4.41%"},null,{"v":-0.09031818955249278,"d":"-9.03%"}]
[1940,{"v":-0.10672873194221515,"d":"-10.67%"},{"v":0.0003,"d":"0.03%"},{"v":0.05402481596284551,"d":"5.40%"},{"v":107.36927676790187,"d":"$107.37"},{"v":117.37020927605522,"d":"$117.37"},{"v":163.34781136372007,"d":"$163.35"},null,null,1940,{"v":-0.10672873194221515,"d":"-10.67%"},{"v":0.0004,"d":"0.04%"},{"v":0.05402481596284551,"d":"5.40%"},null,{"v":-0.08811460517120888,"d":"-8.81%"}]
[1941,{"v":-0.1277145557655955,"d":"-12.77%"},{"v":0.0008,"d":"0.08%"},{"v":-0.020221975848580105,"d":"-2.02%"},{"v":93.656657282616,"d":"$93.66"},{"v":117.46410544347606,"d":"$117.46"},{"v":160.0445958674045,"d":"$160.04"},null,null,1941,{"v":-0.1277145557655955,"d":"-12.77%"},{"v":0.0002,"d":"0.02%"},{"v":-0.020221975848580105,"d":"-2.02%"},null,{"v":-0.08642364532019696,"d":"-8.64%"}]
[1942,{"v":0.19173762945914843,"d":"19.17%"},{"v":0.0034,"d":"0.34%"},{"v":0.022948682374484164,"d":"2.29%"},{"v":111.61416273305268,"d":"$111.61"},{"v":117.86348340198388,"d":"$117.86"},{"v":163.71740846371824,"d":"$163.72"},null,null,1942,{"v":0.19173762945914843,"d":"19.17%"},{"v":3.3E-3,"d":"0.33%"},{"v":0.022948682374484164,"d":"2.29%"},null,{"v":-0.08429147465437781,"d":"-8.43%"}]
[1943,{"v":0.25061310133060394,"d":"25.06%"},{"v":3.8E-3,"d":"0.38%"},{"v":0.0249,"d":"2.49%"},{"v":139.5861342080017,"d":"$139.59"},{"v":118.31136463891143,"d":"$118.31"},{"v":167.79397193446482,"d":"$167.79"},null,null,1943,{"v":0.25061310133060394,"d":"25.06%"},{"v":3.8E-3,"d":"0.38%"},{"v":0.0249,"d":"2.49%"},null,{"v":-0.0829794661190966,"d":"-8.30%"}]
[1944,{"v":0.1903067694944301,"d":"19.03%"},{"v":3.8E-3,"d":"0.38%"},{"v":0.025776111579070303,"d":"2.58%"},{"v":166.15032047534245,"d":"$166.15"},{"v":118.7609478245393,"d":"$118.76"},{"v":172.11904807734297,"d":"$172.12"},null,null,1944,{"v":0.1903067694944301,"d":"19.03%"},{"v":3.8E-3,"d":"0.38%"},{"v":0.025776111579070303,"d":"2.58%"},null,{"v":-0.08241371076449064,"d":"-8.24%"}]
[1945,{"v":0.358210843373494,"d":"35.82%"},{"v":3.8E-3,"d":"0.38%"},{"v":0.03804417341923723,"d":"3.80%"},{"v":225.6671668995912,"d":"$225.67"},{"v":119.21223942627255,"d":"$119.21"},{"v":178.66717499115143,"d":"$178.67"},null,null,1945,{"v":0.358210843373494,"d":"35.82%"},{"v":3.8E-3,"d":"0.38%"},{"v":0.03804417341923723,"d":"3.80%"},null,{"v":-0.06979704075935232,"d":"-6.98%"}]
[1946,{"v":-0.08429147465437781,"d":"-8.43%"},{"v":3.8E-3,"d":"0.38%"},{"v":0.031283745375695685,"d":"3.13%"},{"v":206.64534862054904,"d":"$206.65"},{"v":119.66524593609239,"d":"$119.67"},{"v":184.2565534005695,"d":"$184.26"},null,null,1946,{"v":-0.08429147465437781,"d":"-8.43%"},{"v":3.8E-3,"d":"0.38%"},{"v":0.031283745375695685,"d":"3.13%"},null,{"v":-0.04702390247495576,"d":"-4.70%"}]
[1947,{"v":0.052,"d":"5.20%"},{"v":0.0057,"d":"0.57%"},{"v":0.009196968062832236,"d":"0.92%"},{"v":217.3909067488176,"d":"$217.39"},{"v":120.34733783792812,"d":"$120.35"},{"v":185.95115503756207,"d":"$185.95"},null,null,1947,{"v":0.052,"d":"5.20%"},{"v":3.8E-3,"d":"0.38%"},{"v":0.009196968062832236,"d":"0.92%"},null,{"v":-0.03064451612903212,"d":"-3.06%"}]
[1948,{"v":0.057045751633986834,"d":"5.70%"},{"v":0.0102,"d":"1.02%"},{"v":0.019510369413175046,"d":"1.95%"},{"v":229.79213442269784,"d":"$229.79"},{"v":121.574880683875,"d":"$121.57"},{"v":189.5791307651515,"d":"$189.58"},null,null,1948,{"v":0.057045751633986834,"d":"5.70%"},{"v":0.0095,"d":"0.95%"},{"v":0.019510369413175046,"d":"1.95%"},null,{"v":-0.012082047421904465,"d":"-1.21%"}]
[1949,{"v":0.18303223684210526,"d":"18.30%"},{"v":0.011,"d":"1.10%"},{"v":0.04663485182797314,"d":"4.66%"},{"v":271.851502794806,"d":"$271.85"},{"v":122.9122043713976,"d":"$122.91"},{"v":198.42012543806027,"d":"$198.42"},null,null,1949,{"v":0.18303223684210526,"d":"18.30%"},{"v":0.0116,"d":"1.16%"},{"v":0.04663485182797314,"d":"4.66%"},null,{"v":-0.011885656970912803,"d":"-1.19%"}]
[1950,{"v":0.30805539011316263,"d":"30.81%"},{"v":0.0117,"d":"1.17%"},{"v":0.00429595741710961,"d":"0.43%"},{"v":355.5968235411095,"d":"$355.60"},{"v":124.35027716254297,"d":"$124.35"},{"v":199.2725298476397,"d":"$199.27"},null,null,1950,{"v":0.30805539011316263,"d":"30.81%"},{"v":0.011,"d":"1.10%"},{"v":0.00429595741710961,"d":"0.43%"},null,{"v":-0.010975646879756443,"d":"-1.10%"}]
[1951,{"v":0.2367846304454234,"d":"23.68%"},{"v":0.0148,"d":"1.48%"},{"v":-2.9531392208319886E-3,"d":"-0.30%"},{"v":439.7966859908575,"d":"$439.80"},{"v":126.1906612645486,"d":"$126.19"},{"v":198.68405032411223,"d":"$198.68"},null,null,1951,{"v":0.2367846304454234,"d":"23.68%"},{"v":0.0134,"d":"1.34%"},{"v":-2.9531392208319886E-3,"d":"-0.30%"},null,{"v":3.36535314743695E-3,"d":"0.34%"}]
[1952,{"v":0.18150988641144306,"d":"18.15%"},{"v":0.0167,"d":"1.67%"},{"v":0.022679961918305656,"d":"2.27%"},{"v":519.6241325091871,"d":"$519.62"},{"v":128.29804530766654,"d":"$128.30"},{"v":203.19019701923781,"d":"$203.19"},null,null,1952,{"v":0.18150988641144306,"d":"18.15%"},{"v":0.0173,"d":"1.73%"},{"v":0.022679961918305656,"d":"2.27%"},null,{"v":0.013259206774573897,"d":"1.33%"}]
[1953,{"v":-0.012082047421904465,"d":"-1.21%"},{"v":0.0189,"d":"1.89%"},{"v":0.04143840258908851,"d":"4.14%"},{"v":513.3460090986451,"d":"$513.35"},{"v":130.72287836398144,"d":"$130.72"},{"v":211.61007420547722,"d":"$211.61"},null,null,1953,{"v":-0.012082047421904465,"d":"-1.21%"},{"v":0.0209,"d":"2.09%"},{"v":0.04143840258908851,"d":"4.14%"},null,{"v":0.03561144905496419,"d":"3.56%"}]
[1954,{"v":0.525633212414349,"d":"52.56%"},{"v":0.0096,"d":"0.96%"},{"v":0.032898034558095555,"d":"3.29%"},{"v":783.1777209412517,"d":"$783.18"},{"v":131.97781799627566,"d":"$131.98"},{"v":218.57162973953018,"d":"$218.57"},null,null,1954,{"v":0.525633212414349,"d":"52.56%"},{"v":0.016,"d":"1.60%"},{"v":0.032898034558095555,"d":"3.29%"},null,{"v":0.04848009769621748,"d":"4.85%"}]
[1955,{"v":0.3259733185102835,"d":"32.60%"},{"v":0.0166,"d":"1.66%"},{"v":-0.013364391288618781,"d":"-1.34%"},{"v":1038.4727616197922,"d":"$1,038.47"},{"v":134.16864977501382,"d":"$134.17"},{"v":215.65055295509998,"d":"$215.65"},null,null,1955,{"v":0.3259733185102835,"d":"32.60%"},{"v":0.0115,"d":"1.15%"},{"v":-0.013364391288618781,"d":"-1.34%"},null,{"v":0.052,"d":"5.20%"}]
[1956,{"v":0.07439511873350935,"d":"7.44%"},{"v":0.0256,"d":"2.56%"},{"v":-0.022557738173154165,"d":"-2.26%"},{"v":1115.730066022012,"d":"$1,115.73"},{"v":137.60336720925417,"d":"$137.60"},{"v":210.7859642446429,"d":"$210.79"},null,null,1956,{"v":0.07439511873350935,"d":"7.44%"},{"v":0.0254,"d":"2.54%"},{"v":-0.022557738173154165,"d":"-2.26%"},null,{"v":0.057045751633986834,"d":"5.70%"}]
[1957,{"v":-0.1045736018855796,"d":"-10.46%"},{"v":0.0323,"d":"3.23%"},{"v":0.0679701284662499,"d":"6.80%"},{"v":999.0541542860545,"d":"$999.05"},{"v":142.0479559701131,"d":"$142.05"},{"v":225.11311331323367,"d":"$225.11"},null,null,1957,{"v":-0.1045736018855796,"d":"-10.46%"},{"v":0.0321,"d":"3.21%"},{"v":0.0679701284662499,"d":"6.80%"},null,{"v":0.05812721641821871,"d":"5.81%"}]
[1958,{"v":0.43719954988747184,"d":"43.72%"},{"v":0.0178,"d":"1.78%"},{"v":-0.020990181755274694,"d":"-2.10%"},{"v":1435.8401808531264,"d":"$1,435.84"},{"v":144.57640958638112,"d":"$144.58"},{"v":220.38794814929315,"d":"$220.39"},null,null,1958,{"v":0.43719954988747184,"d":"43.72%"},{"v":0.0304,"d":"3.04%"},{"v":-0.020990181755274694,"d":"-2.10%"},null,{"v":0.0614614199963621,"d":"6.15%"}]
[1959,{"v":0.12056457163557326,"d":"12.06%"},{"v":0.0326,"d":"3.26%"},{"v":-0.026466312591385065,"d":"-2.65%"},{"v":1608.9516371948275,"d":"$1,608.95"},{"v":149.28960053889713,"d":"$149.29"},{"v":214.55509182219998,"d":"$214.56"},null,null,1959,{"v":0.12056457163557326,"d":"12.06%"},{"v":0.0277,"d":"2.77%"},{"v":-0.026466312591385065,"d":"-2.65%"},null,{"v":0.0650928391167193,"d":"6.51%"}]
[1960,{"v":3.36535314743695E-3,"d":"0.34%"},{"v":0.0305,"d":"3.05%"},{"v":0.11639503690963365,"d":"11.64%"},{"v":1614.366327651135,"d":"$1,614.37"},{"v":153.84293335533349,"d":"$153.84"},{"v":239.52823965399477,"d":"$239.53"},null,null,1960,{"v":3.36535314743695E-3,"d":"0.34%"},{"v":0.0449,"d":"4.49%"},{"v":0.11639503690963365,"d":"11.64%"},null,{"v":0.07439511873350935,"d":"7.44%"}]
[1961,{"v":0.2663771295818275,"d":"26.64%"},{"v":0.0227,"d":"2.27%"},{"v":0.020609208076323167,"d":"2.06%"},{"$f":"E44*(1+B45)","v":{"v":2044.3965961044005,"d":"$2,044.40"}},{"v":157.33516794249954,"d":"$157.34"},{"v":244.46472698517934,"d":"$244.46"},null,null,1961,{"v":0.2663771295818275,"d":"26.64%"},{"v":0.0225,"d":"2.25%"},{"v":0.020609208076323167,"d":"2.06%"},null,{"v":0.07493727972380064,"d":"7.49%"}]
[1962,{"v":-0.08811460517120888,"d":"-8.81%"},{"v":0.0278,"d":"2.78%"},{"v":0.05693544054008462,"d":"5.69%"},{"v":1864.2553972252979,"d":"$1,864.26"},{"v":161.70908561130102,"d":"$161.71"},{"v":258.383433912592,"d":"$258.38"},null,null,1962,{"v":-0.08811460517120888,"d":"-8.81%"},{"v":0.026,"d":"2.60%"},{"v":0.05693544054008462,"d":"5.69%"},null,{"v":0.0996705147919488,"d":"9.97%"}]
[1963,{"v":0.22611927099841514,"d":"22.61%"},{"v":0.0311,"d":"3.11%"},{"v":0.016841620739546127,"d":"1.68%"},{"v":2285.7994686007432,"d":"$2,285.80"},{"v":166.73823817381248,"d":"$166.74"},{"v":262.7350297119295,"d":"$262.74"},null,null,1963,{"v":0.22611927099841514,"d":"22.61%"},{"v":0.0287,"d":"2.87%"},{"v":0.016841620739546127,"d":"1.68%"},null,{"v":0.10704103749404177,"d":"10.70%"}]
[1964,{"v":0.16415455878432425,"d":"16.42%"},{"v":0.0351,"d":"3.51%"},{"v":0.037280648911540815,"d":"3.73%"},{"v":2661.023871838341,"d":"$2,661.02"},{"v":172.5907503337133,"d":"$172.59"},{"v":272.5299621113832,"d":"$272.53"},null,null,1964,{"v":0.16415455878432425,"d":"16.42%"},{"v":0.0352,"d":"3.52%"},{"v":0.037280648911540815,"d":"3.73%"},null,{"v":0.10814862651601535,"d":"10.81%"}]
[1965,{"v":0.12399242477876114,"d":"12.40%"},{"v":0.039,"d":"3.90%"},{"v":0.007188550935926234,"d":"0.72%"},{"v":2990.9706741017444,"d":"$2,990.97"},{"v":179.32178959672808,"d":"$179.32"},{"v":274.48905762558695,"d":"$274.49"},null,null,1965,{"v":0.12399242477876114,"d":"12.40%"},{"v":0.0384,"d":"3.84%"},{"v":0.007188550935926234,"d":"0.72%"},null,{"v":0.12056457163557326,"d":"12.06%"}]
[1966,{"v":-0.0997095423563779,"d":"-9.97%"},{"v":0.0484,"d":"4.84%"},{"v":0.029079409324299622,"d":"2.91%"},{"v":2692.7423569857124,"d":"$2,692.74"},{"v":188.00096421320973,"d":"$188.00"},{"v":282.47103728732264,"d":"$282.47"},null,null,1966,{"v":-0.0997095423563779,"d":"-9.97%"},{"v":0.0438,"d":"4.38%"},{"v":0.029079409324299622,"d":"2.91%"},null,{"v":0.12399242477876114,"d":"12.40%"}]
[1967,{"v":0.23802966513133328,"d":"23.80%"},{"v":0.0433,"d":"4.33%"},{"v":-0.015806209932824666,"d":"-1.58%"},{"v":3333.6949185039784,"d":"$3,333.69"},{"v":196.1414059636417,"d":"$196.14"},{"v":278.0062407720165,"d":"$278.01"},null,null,1967,{"v":0.23802966513133328,"d":"23.80%"},{"v":0.0496,"d":"4.96%"},{"v":-0.015806209932824666,"d":"-1.58%"},null,{"v":0.14221150298426474,"d":"14.22%"}]
[1968,{"v":0.10814862651601535,"d":"10.81%"},{"v":0.0526,"d":"5.26%"},{"v":0.032746196950768365,"d":"3.27%"},{"v":3694.2294451636035,"d":"$3,694.23"},{"v":206.45844391732925,"d":"$206.46"},{"v":287.1098878858797,"d":"$287.11"},null,null,1968,{"v":0.10814862651601535,"d":"10.81%"},{"v":0.0497,"d":"4.97%"},{"v":0.032746196950768365,"d":"3.27%"},null,{"v":0.16415455878432425,"d":"16.42%"}]
[1969,{"v":-0.08241371076449064,"d":"-8.24%"},{"v":0.0656,"d":"6.56%"},{"v":-0.050140493209926106,"d":"-5.01%"},{"v":3389.7742881722256,"d":"$3,389.77"},{"v":220.00211783830608,"d":"$220.00"},{"v":272.7140565018351,"d":"$272.71"},null,null,1969,{"v":-0.08241371076449064,"d":"-8.24%"},{"v":0.0596,"d":"5.96%"},{"v":-0.050140493209926106,"d":"-5.01%"},null,{"v":0.16537192812044688,"d":"16.54%"}]
[1970,{"v":0.03561144905496419,"d":"3.56%"},{"v":0.0669,"d":"6.69%"},{"v":0.16754737183412338,"d":"16.75%"},{"v":3510.489062543298,"d":"$3,510.49"},{"v":234.72025952168875,"d":"$234.72"},{"v":318.4065799309402,"d":"$318.41"},null,null,1970,{"v":0.03561144905496419,"d":"3.56%"},{"v":0.0782,"d":"7.82%"},{"v":0.16754737183412338,"d":"16.75%"},null,{"v":0.18150988641144306,"d":"18.15%"}]
[1971,{"v":0.14221150298426474,"d":"14.22%"},{"v":0.0454,"d":"4.54%"},{"v":0.09786896619712297,"d":"9.79%"},{"v":4009.720988337403,"d":"$4,009.72"},{"v":245.37655930397344,"d":"$245.38"},{"v":349.56870273914296,"d":"$349.57"},null,null,1971,{"v":0.14221150298426474,"d":"14.22%"},{"v":0.0487,"d":"4.87%"},{"v":0.09786896619712297,"d":"9.79%"},null,{"v":0.18303223684210526,"d":"18.30%"}]
[1972,{"v":0.18755362915074925,"d":"18.76%"},{"v":0.0395,"d":"3.95%"},{"v":0.02818449050444969,"d":"2.82%"},{"v":4761.7587115820115,"d":"$4,761.76"},{"v":255.06893339648042,"d":"$255.07"},{"v":359.42111852214714,"d":"$359.42"},null,null,1972,{"v":0.18755362915074925,"d":"18.76%"},{"v":0.0401,"d":"4.01%"},{"v":0.02818449050444969,"d":"2.82%"},null,{"v":0.18494578758046187,"d":"18.49%"}]
[1973,{"v":-0.14308047437526472,"d":"-14.31%"},{"v":0.0673,"d":"6.73%"},{"v":0.036586646024150085,"d":"3.66%"},{"v":4080.444016268308,"d":"$4,080.44"},{"v":272.23507261406354,"d":"$272.24"},{"v":372.57113175912104,"d":"$372.57"},null,null,1973,{"v":-0.14308047437526472,"d":"-14.31%"},{"v":0.0507,"d":"5.07%"},{"v":0.036586646024150085,"d":"3.66%"},null,{"v":0.18519490167516386,"d":"18.52%"}]
[1974,{"v":-0.2590178575089697,"d":"-25.90%"},{"v":0.0778,"d":"7.78%"},{"v":0.019886086932378574,"d":"1.99%"},{"v":3023.5361494891954,"d":"$3,023.54"},{"v":293.4149612634377,"d":"$293.41"},{"v":379.98011367377757,"d":"$379.98"},null,null,1974,{"v":-0.2590178575089697,"d":"-25.90%"},{"v":0.0745,"d":"7.45%"},{"v":0.019886086932378574,"d":"1.99%"},null,{"v":0.18755362915074925,"d":"18.76%"}]
[1975,{"v":0.36995137106184356,"d":"37.00%"},{"v":0.0599,"d":"5.99%"},{"v":0.03605253602603384,"d":"3.61%"},{"v":4142.097493447771,"d":"$4,142.10"},{"v":310.99051744311765,"d":"$310.99"},{"v":393.6793604111778,"d":"$393.68"},null,null,1975,{"v":0.36995137106184356,"d":"37.00%"},{"v":0.0715,"d":"7.15%"},{"v":0.03605253602603384,"d":"3.61%"},null,{"v":0.1903067694944301,"d":"19.03%"}]
[1976,{"v":0.23830999002106662,"d":"23.83%"},{"v":0.0497,"d":"4.97%"},{"v":0.1598456074290921,"d":"15.98%"},{"v":5129.200705777594,"d":"$5,129.20"},{"v":326.4467461600406,"d":"$326.45"},{"v":456.607276908399,"d":"$456.61"},null,null,1976,{"v":0.23830999002106662,"d":"23.83%"},{"v":0.0544,"d":"5.44%"},{"v":0.1598456074290921,"d":"15.98%"},null,{"v":0.19173762945914843,"d":"19.17%"}]
[1977,{"v":-0.06979704075935232,"d":"-6.98%"},{"v":0.0513,"d":"5.13%"},{"v":0.012899606071070449,"d":"1.29%"},{"v":4771.197675053536,"d":"$4,771.20"},{"v":343.1934642380507,"d":"$343.19"},{"v":462.49733090970153,"d":"$462.50"},null,null,1977,{"v":-0.06979704075935232,"d":"-6.98%"},{"v":0.0435,"d":"4.35%"},{"v":0.012899606071070449,"d":"1.29%"},null,{"v":0.20419055079559353,"d":"20.42%"}]
[1978,{"v":0.0650928391167193,"d":"6.51%"},{"v":0.0693,"d":"6.93%"},{"v":-0.007775806907508648,"d":"-0.78%"},{"v":5081.768477709861,"d":"$5,081.77"},{"v":366.97677130974756,"d":"$366.98"},{"v":458.9010409693096,"d":"$458.90"},null,null,1978,{"v":0.0650928391167193,"d":"6.51%"},{"v":0.0607,"d":"6.07%"},{"v":-0.007775806907508648,"d":"-0.78%"},null,{"v":0.20885350992084475,"d":"20.89%"}]
[1979,{"v":0.18519490167516386,"d":"18.52%"},{"v":0.0994,"d":"9.94%"},{"v":0.006707203124723546,"d":"0.67%"},{"v":6022.886091275286,"d":"$6,022.89"},{"v":403.45426237793646,"d":"$403.45"},{"v":461.9789834652378,"d":"$461.98"},null,null,1979,{"v":0.18519490167516386,"d":"18.52%"},{"v":0.0908,"d":"9.08%"},{"v":0.006707203124723546,"d":"0.67%"},null,{"v":0.22337155858930619,"d":"22.34%"}]
[1980,{"v":0.3173524550676301,"d":"31.74%"},{"v":0.1122,"d":"11.22%"},{"v":-0.02989744251999403,"d":"-2.99%"},{"v":7934.263778934181,"d":"$7,934.26"},{"v":448.721830616741,"d":"$448.72"},{"v":448.16699336164055,"d":"$448.17"},null,null,1980,{"v":0.3173524550676301,"d":"31.74%"},{"v":0.1204,"d":"12.04%"},{"v":-0.02989744251999403,"d":"-2.99%"},null,{"v":0.22611927099841514,"d":"22.61%"}]
[1981,{"v":-0.04702390247495576,"d":"-4.70%"},{"v":0.143,"d":"14.30%"},{"v":0.08199215335892354,"d":"8.20%"},{"v":7561.163732783006,"d":"$7,561.16"},{"v":512.889052394935,"d":"$512.89"},{"v":484.91317021175587,"d":"$484.91"},null,null,1981,{"v":-0.04702390247495576,"d":"-4.70%"},{"v":0.1549,"d":"15.49%"},{"v":0.08199215335892354,"d":"8.20%"},null,{"v":0.2367846304454234,"d":"23.68%"}]
[1982,{"v":0.20419055079559353,"d":"20.42%"},{"v":0.1101,"d":"11.01%"},{"v":0.32814549486295586,"d":"32.81%"},{"v":9105.081920035633,"d":"$9,105.08"},{"v":569.3581370636174,"d":"$569.36"},{"v":644.0352424164572,"d":"$644.04"},null,null,1982,{"v":0.20419055079559353,"d":"20.42%"},{"v":0.1085,"d":"10.85%"},{"v":0.32814549486295586,"d":"32.81%"},null,{"v":0.23802966513133328,"d":"23.80%"}]
[1983,{"v":0.22337155858930619,"d":"22.34%"},{"v":0.0845,"d":"8.45%"},{"v":0.032002094451429264,"d":"3.20%"},{"v":11138.898259597305,"d":"$11,138.90"},{"v":617.468899645493,"d":"$617.47"},{"v":664.6457190743178,"d":"$664.65"},null,null,1983,{"v":0.22337155858930619,"d":"22.34%"},{"v":0.0794,"d":"7.94%"},{"v":0.032002094451429264,"d":"3.20%"},null,{"v":0.23817458802136615,"d":"23.82%"}]
[1984,{"v":0.0614614199963621,"d":"6.15%"},{"v":0.0961,"d":"9.61%"},{"v":0.13733364344102345,"d":"13.73%"},{"v":11823.510763827162,"d":"$11,823.51"},{"v":676.8076609014249,"d":"$676.81"},{"v":755.9239372722727,"d":"$755.92"},null,null,1984,{"v":0.0614614199963621,"d":"6.15%"},{"v":0.09,"d":"9.00%"},{"v":0.13733364344102345,"d":"13.73%"},null,{"v":0.23830999002106662,"d":"23.83%"}]
[1985,{"v":0.3123514948576895,"d":"31.24%"},{"v":0.0749,"d":"7.49%"},{"v":0.2571248821260641,"d":"25.71%"},{"v":15516.60202537456,"d":"$15,516.60"},{"v":727.5005547029416,"d":"$727.50"},{"v":950.2907905396761,"d":"$950.29"},null,null,1985,{"v":0.3123514948576895,"d":"31.24%"},{"v":0.0806,"d":"8.06%"},{"v":0.2571248821260641,"d":"25.71%"},null,{"v":0.25061310133060394,"d":"25.06%"}]
[1986,{"v":0.18494578758046187,"d":"18.49%"},{"v":0.0604,"d":"6.04%"},{"v":0.24284215141767618,"d":"24.28%"},{"v":18386.332207530046,"d":"$18,386.33"},{"v":771.4415882069993,"d":"$771.44"},{"v":1181.0614505867354,"d":"$1,181.06"},null,null,1986,{"v":0.18494578758046187,"d":"18.49%"},{"v":0.071,"d":"7.10%"},{"v":0.24284215141767618,"d":"24.28%"},null,{"v":0.2663771295818275,"d":"26.64%"}]
[1987,{"v":0.05812721641821871,"d":"5.81%"},{"v":0.0572,"d":"5.72%"},{"v":-0.04960508937926228,"d":"-4.96%"},{"v":19455.07851889441,"d":"$19,455.08"},{"v":815.5680470524396,"d":"$815.57"},{"v":1122.4747917679792,"d":"$1,122.47"},null,null,1987,{"v":0.05812721641821871,"d":"5.81%"},{"v":0.0553,"d":"5.53%"},{"v":-0.04960508937926228,"d":"-4.96%"},null,{"v":0.28337953278443584,"d":"28.34%"}]
[1988,{"v":0.16537192812044688,"d":"16.54%"},{"v":0.0645,"d":"6.45%"},{"v":0.08223595843484167,"d":"8.22%"},{"v":22672.402365298665,"d":"$22,672.40"},{"v":868.172186087322,"d":"$868.17"},{"v":1214.7825820879684,"d":"$1,214.78"},null,null,1988,{"v":0.16537192812044688,"d":"16.54%"},{"v":0.0577,"d":"5.77%"},{"v":0.08223595843484167,"d":"8.22%"},null,{"v":0.28411493259985,"d":"28.41%"}]
[1989,{"v":0.31475183638196724,"d":"31.48%"},{"v":0.0811,"d":"8.11%"},{"v":0.17693647159446219,"d":"17.69%"},{"v":29808.58264496728,"d":"$29,808.58"},{"v":938.5809503790038,"d":"$938.58"},{"v":1429.7219259170236,"d":"$1,429.72"},null,null,1989,{"v":0.31475183638196724,"d":"31.48%"},{"v":0.0807,"d":"8.07%"},{"v":0.17693647159446219,"d":"17.69%"},null,{"v":0.29282654028436017,"d":"29.28%"}]
[1990,{"v":-0.03064451612903212,"d":"-3.06%"},{"v":0.0755,"d":"7.55%"},{"v":0.06235375333553336,"d":"6.24%"},{"v":28895.113053319994,"d":"$28,895.11"},{"v":1009.4438121326184,"d":"$1,009.44"},{"v":1518.8704542240573,"d":"$1,518.87"},null,null,1990,{"v":-0.03064451612903212,"d":"-3.06%"},{"v":0.0763,"d":"7.63%"},{"v":0.06235375333553336,"d":"6.24%"},null,{"v":0.3023484313487976,"d":"30.23%"}]
[1991,{"v":0.3023484313487976,"d":"30.23%"},{"v":0.0561,"d":"5.61%"},{"v":0.15004510019517303,"d":"15.00%"},{"v":37631.50515863746,"d":"$37,631.51"},{"v":1066.0736099932583,"d":"$1,066.07"},{"v":1746.769523711594,"d":"$1,746.77"},null,null,1991,{"v":0.3023484313487976,"d":"30.23%"},{"v":0.0674,"d":"6.74%"},{"v":0.15004510019517303,"d":"15.00%"},null,{"v":0.30805539011316263,"d":"30.81%"}]
[1992,{"v":0.07493727972380064,"d":"7.49%"},{"v":0.0341,"d":"3.41%"},{"v":0.09361637316207942,"d":"9.36%"},{"v":40451.507787137925,"d":"$40,451.51"},{"v":1102.4267200940285,"d":"$1,102.43"},{"v":1910.2957512715263,"d":"$1,910.30"},null,null,1992,{"v":0.07493727972380064,"d":"7.49%"},{"v":0.0407,"d":"4.07%"},{"v":0.09361637316207942,"d":"9.36%"},null,{"v":0.3123514948576895,"d":"31.24%"}]
[1993,{"v":0.0996705147919488,"d":"9.97%"},{"v":0.0298,"d":"2.98%"},{"v":0.14210957589263107,"d":"14.21%"},{"$f":"E76*(1+B77)","v":{"v":44483.33039239249,"d":"$44,483.33"}},{"v":1135.2790363528306,"d":"$1,135.28"},{"v":2181.7670703142176,"d":"$2,181.77"},null,null,1993,{"v":0.0996705147919488,"d":"9.97%"},{"v":0.0322,"d":"3.22%"},{"v":0.14210957589263107,"d":"14.21%"},null,{"v":0.31475183638196724,"d":"31.48%"}]
[1994,{"v":0.013259206774573897,"d":"1.33%"},{"v":0.0399,"d":"3.99%"},{"v":-0.08036655550998592,"d":"-8.04%"},{"v":45073.144068086905,"d":"$45,073.14"},{"v":1180.5766699033086,"d":"$1,180.58"},{"v":2006.4259659479505,"d":"$2,006.43"},null,null,1994,{"v":0.013259206774573897,"d":"1.33%"},{"v":0.0306,"d":"3.06%"},{"v":-0.08036655550998592,"d":"-8.04%"},null,{"v":0.3173524550676301,"d":"31.74%"}]
[1995,{"v":0.3719519890260631,"d":"37.20%"},{"v":0.0552,"d":"5.52%"},{"v":0.23480780112538907,"d":"23.48%"},{"v":61838.18965587012,"d":"$61,838.19"},{"v":1245.7445020819712,"d":"$1,245.74"},{"v":2477.5504351330737,"d":"$2,477.55"},null,null,1995,{"v":0.3719519890260631,"d":"37.20%"},{"v":0.056,"d":"5.60%"},{"v":0.23480780112538907,"d":"23.48%"},null,{"v":0.31857597560649414,"d":"31.86%"}]
[1996,{"v":0.23817458802136615,"d":"23.82%"},{"v":0.0502,"d":"5.02%"},{"v":0.01428607793401844,"d":"1.43%"},{"v":76566.47500114409,"d":"$76,566.48"},{"v":1308.2808760864862,"d":"$1,308.28"},{"v":2512.944913734846,"d":"$2,512.94"},null,null,1996,{"v":0.23817458802136615,"d":"23.82%"},{"v":0.0514,"d":"5.14%"},{"v":0.01428607793401844,"d":"1.43%"},null,{"v":0.3194341027550261,"d":"31.94%"}]
[1997,{"v":0.31857597560649414,"d":"31.86%"},{"v":0.0505,"d":"5.05%"},{"v":0.09939130272977531,"d":"9.94%"},{"v":100958.7144733838,"d":"$100,958.71"},{"v":1374.3490603288537,"d":"$1,374.35"},{"v":2762.7097823991153,"d":"$2,762.71"},null,null,1997,{"v":0.31857597560649414,"d":"31.86%"},{"v":0.0491,"d":"4.91%"},{"v":0.09939130272977531,"d":"9.94%"},null,{"v":0.3259733185102835,"d":"32.60%"}]
[1998,{"v":0.28337953278443584,"d":"28.34%"},{"v":0.0473,"d":"4.73%"},{"v":0.14921431922606215,"d":"14.92%"},{"v":129568.34781136856,"d":"$129,568.35"},{"v":1439.3557708824085,"d":"$1,439.36"},{"v":3174.945641798982,"d":"$3,174.95"},null,null,1998,{"v":0.28337953278443584,"d":"28.34%"},{"v":0.0516,"d":"5.16%"},{"v":0.14921431922606215,"d":"14.92%"},null,{"v":0.358210843373494,"d":"35.82%"}]
[1999,{"v":0.20885350992084475,"d":"20.89%"},{"v":0.0451,"d":"4.51%"},{"v":-0.08254214796268576,"d":"-8.25%"},{"v":156629.1520264177,"d":"$156,629.15"},{"v":1504.2707161492049,"d":"$1,504.27"},{"v":2912.878808860126,"d":"$2,912.88"},null,null,1999,{"v":0.20885350992084475,"d":"20.89%"},{"v":0.0439,"d":"4.39%"},{"v":-0.08254214796268576,"d":"-8.25%"},null,{"v":0.36995137106184356,"d":"37.00%"}]
[2000,{"v":-0.09031818955249278,"d":"-9.03%"},{"v":0.0576,"d":"5.76%"},{"v":0.16655267125397488,"d":"16.66%"},{"v":142482.69058424947,"d":"$142,482.69"},{"v":1590.9167093993992,"d":"$1,590.92"},{"v":3398.0265555148762,"d":"$3,398.03"},null,null,2000,{"v":-0.09031818955249278,"d":"-9.03%"},{"v":0.0537,"d":"5.37%"},{"v":0.16655267125397488,"d":"16.66%"},null,{"v":0.3719519890260631,"d":"37.20%"}]
[2001,{"v":-0.11849759142000185,"d":"-11.85%"},{"v":0.0367,"d":"3.67%"},{"v":0.055721811892492555,"d":"5.57%"},{"v":125598.83493097454,"d":"$125,598.83"},{"v":1649.303352634357,"d":"$1,649.30"},{"v":3587.37075204697,"d":"$3,587.37"},null,null,2001,{"v":-0.11849759142000185,"d":"-11.85%"},{"v":0.0573,"d":"5.73%"},{"v":0.055721811892492555,"d":"5.57%"},null,{"v":0.43719954988747184,"d":"43.72%"}]
[2002,{"v":-0.219660479579127,"d":"-21.97%"},{"v":0.016575,"d":"1.66%"},{"v":0.15116400378109285,"d":"15.12%"},{"v":98027.81676541301,"d":"$98,027.82"},{"v":1675.9561196946024,"d":"$1,675.96"},{"v":4129.65207797358,"d":"$4,129.65"},null,null,2002,{"v":-0.21976500100166352,"d":"-21.98%"},{"v":0.018,"d":"1.80%"},{"v":0.15116400378109285,"d":"15.12%"},null,{"v":0.43811155152887893,"d":"43.81%"}]
[2003,{"v":0.2835580005001023,"d":"28.36%"},{"v":0.0103,"d":"1.03%"},{"v":0.003753185881775853,"d":"0.38%"},{"v":125824.38848080393,"d":"$125,824.39"},{"v":1693.2184677274568,"d":"$1,693.22"},{"v":4145.151429849277,"d":"$4,145.15"},null,null,2003,{"v":0.28411493259985,"d":"28.41%"},{"v":0.018,"d":"1.80%"},{"v":0.003753185881775853,"d":"0.38%"},null,{"v":0.4674042105263158,"d":"46.74%"}]
[2004,{"v":0.10742775944096193,"d":"10.74%"},{"v":0.012275000000000001,"d":"1.23%"},{"v":0.04490683702274547,"d":"4.49%"},{"v":139341.42061832585,"d":"$139,341.42"},{"v":1714.0027244188113,"d":"$1,714.00"},{"v":4331.297069544118,"d":"$4,331.30"},null,null,2004,{"v":0.10704103749404177,"d":"10.70%"},{"v":0.0218,"d":"2.18%"},{"v":0.04490683702274547,"d":"4.49%"},null,{"v":0.49982225433526023,"d":"49.98%"}]
[2005,{"v":0.048344775232688535,"d":"4.83%"},{"v":0.0301,"d":"3.01%"},{"v":0.028675329597779506,"d":"2.87%"},{"v":146077.8502787223,"d":"$146,077.85"},{"v":1765.5942064238177,"d":"$1,765.59"},{"v":4455.498440599193,"d":"$4,455.50"},null,null,2005,{"v":0.04848009769621748,"d":"4.85%"},{"v":0.0431,"d":"4.31%"},{"v":0.028675329597779506,"d":"2.87%"},null,{"v":0.525633212414349,"d":"52.56%"}]
[2006,{"v":0.15612557979315703,"d":"15.61%"},{"v":0.046775000000000004,"d":"4.68%"},{"v":0.019610012417568386,"d":"1.96%"},{"v":168884.33934842583,"d":"$168,884.34"},{"v":1848.1798754292918,"d":"$1,848.18"},{"v":4542.8708203458,"d":"$4,542.87"},null,null,{"$f":"A90","v":2006},{"$f":"B90","v":{"v":0.15612557979315703,"d":"15.61%"}},{"$f":"C90","v":{"v":0.046775000000000004,"d":"4.68%"}},{"$f":"D90","v":{"v":0.019610012417568386,"d":"1.96%"}}]
[2007,{"v":0.054847352464217694,"d":"5.48%"},{"v":0.046425,"d":"4.64%"},{"v":0.10209921930012807,"d":"10.21%"},{"v":178147.19823435548,"d":"$178,147.20"},{"v":1933.9816261460965,"d":"$1,933.98"},{"v":5006.694384484438,"d":"$5,006.69"},null,null,2007,{"v":0.0548,"d":"5.48%"},{"v":0.0488,"d":"4.88%"},{"v":0.1021,"d":"10.21%"}]
[2008,{"v":-0.3655234411179819,"d":"-36.55%"},{"v":0.01585,"d":"1.59%"},{"v":0.20101279926977011,"d":"20.10%"},{"v":113030.22131020659,"d":"$113,030.22"},{"v":1964.635234920512,"d":"$1,964.64"},{"v":6013.104037797893,"d":"$6,013.10"}]
[2009,{"v":0.2593523387766398,"d":"25.94%"},{"v":0.00135,"d":"0.14%"},{"v":-0.11116695313259162,"d":"-11.12%"},{"v":142344.87355944986,"d":"$142,344.87"},{"v":1967.2874924876546,"d":"$1,967.29"},{"v":5344.6455830466175,"d":"$5,344.65"},null,"TWR","Together"]
[2010,{"v":0.14821092278719414,"d":"14.82%"},{"v":0.0013,"d":"0.13%"},{"v":0.08462933880355772,"d":"8.46%"},{"v":163441.9386237224,"d":"$163,441.94"},{"v":1969.8449662278888,"d":"$1,969.84"},{"v":5796.959404879208,"d":"$5,796.96"}]
[2011,{"v":0.0209837473362805,"d":"2.10%"},{"v":0.0003,"d":"0.03%"},{"v":0.16035334999461354,"d":"16.04%"},{"v":166871.5629679545,"d":"$166,871.56"},{"v":1970.435919717757,"d":"$1,970.44"},{"v":6726.52126523437,"d":"$6,726.52"}]
[2012,{"v":0.15890585241730293,"d":"15.89%"},{"v":0.0005,"d":"0.05%"},{"v":0.02971571978018946,"d":"2.97%"},{"v":193388.43092558492,"d":"$193,388.43"},{"v":1971.421137677616,"d":"$1,971.42"},{"v":6926.40468624756,"d":"$6,926.40"}]
[2013,{"v":0.32145085858125483,"d":"32.15%"},{"v":6.6E-4,"d":"0.07%"},{"v":-0.09104568794347262,"d":"-9.10%"},{"v":255553.30808629587,"d":"$255,553.31"},{"v":1972.7222756284834,"d":"$1,972.72"},{"v":6295.785406613258,"d":"$6,295.79"}]
[2014,{"v":0.1352,"d":"13.52%"},{"v":0.0005,"d":"0.05%"},{"v":0.1075,"d":"10.75%"},{"v":290115.42,"d":"$290,115.42"},{"v":1973.77,"d":"$1,973.77"},{"v":6972.34,"d":"$6,972.34"}]
[2015,{"v":0.0138,"d":"1.38%"},{"v":0.0021,"d":"0.21%"},{"v":0.0128,"d":"1.28%"},{"v":294060.84,"d":"$294,060.84"},{"v":1977.91,"d":"$1,977.91"},{"v":7061.89,"d":"$7,061.89"},{"$nulls":3},"TWR"]
[2016,{"v":0.1174,"d":"11.74%"},{"v":0.0051,"d":"0.51%"},{"v":0.0069,"d":"0.69%"},{"v":328645.87,"d":"$328,645.87"},{"v":1988,"d":"$1,988.00"},{"v":7110.65,"d":"$7,110.65"},{"$nulls":3},"3y","5y","10y","240m","Observations 2/26/22"]
[2016,{"v":0.1177,"d":"11.77%"},{"v":0.0051,"d":"0.51%"},{"v":0.0069,"d":"0.69%"},{"v":328742.28,"d":"$328,742.28"},{"v":1988,"d":"$1,988.00"},{"v":7110.65,"d":"$7,110.65"},{"v":0.0604,"d":"6.04%"},{"v":0.094,"d":"9.40%"},{"$f":"H101+I101","v":{"v":0.1544,"d":"15.44%"}},5.4,5.9,5.7,8.2,"One year TWR is volatile. Returns are much more consistent over time. "]
[2017,{"v":0.2161,"d":"21.61%"},{"v":0.0139,"d":"1.39%"},{"v":0.028,"d":"2.80%"},{"v":399768.64,"d":"$399,768.64"},{"v":2015.63,"d":"$2,015.63"},{"v":7309.87,"d":"$7,309.87"},{"v":0.0633,"d":"6.33%"},{"v":0.109,"d":"10.90%"},{"$f":"H102+I102","v":{"v":0.1723,"d":"17.23%"}},{"$nulls":4},"Returns the ten years prior to 2017 were about 5.7%, but 8.2% if going back 20 years. "]
[2018,{"v":-0.0423210565490106,"d":"-4.23%"},{"v":0.0237,"d":"2.37%"},{"v":-1.6692385713402633E-4,"d":"-0.02%"},{"v":382850.00406044745,"d":"$382,850.00"},{"v":2063.4037958742415,"d":"$2,063.40"},{"v":7308.65367370163,"d":"$7,308.65"},{"v":0.063,"d":"6.30%"},{"v":-0.042,"d":"-4.20%"},{"v":0.020999999999999998,"d":"2.10%"},{"$nulls":4},"In general, TWR returns are about 7.7%, with dividends comprising about 5.8%.  "]
[2019,{"v":0.3122,"d":"31.22%"},{"v":0.0155,"d":"1.55%"},{"v":0.0964,"d":"9.64%"},"$      502,417.21","$         2,079.94","$          8,012.89",{"v":0.054,"d":"5.40%"},{"v":0.235,"d":"23.50%"},{"v":0.289,"d":"28.90%"},{"$nulls":4},"Preferreds are a whole different class than Treasury bonds.  "]
[2020,{"v":0.1801,"d":"18.01%"},{"v":0.0009,"d":"0.09%"},{"v":0.1133,"d":"11.33%"},{"v":592868.15,"d":"$592,868.15"},{"v":2081.82,"d":"$2,081.82"},{"v":8920.9,"d":"$8,920.90"},{"v":0.0499,"d":"4.99%"},{"v":0.039,"d":"3.90%"},{"v":0.0889,"d":"8.89%"},{"$nulls":4},"Don't know why the very strong negative correlation between T bonds and preferred stock dividends for the 6 year period. "]
[2021,{"v":0.2847,"d":"28.47%"},{"v":0.0006,"d":"0.06%"},{"v":-0.0442,"d":"-4.42%"},{"v":761710.83,"d":"$761,710.83"},{"v":2083.06,"d":"$2,083.06"},{"v":8526.95,"d":"$8,526.95"},{"v":0.0596,"d":"5.96%"},{"v":0.077,"d":"7.70%"},{"v":0.1366,"d":"13.66%"},11.4,{"v":8,"d":"8.0"},6.9,9.7,"Could replace T Bonds data with 8% all the way down to simulate preferreds. Alternative is to add the 3% to bond returns.  Either way is not very precise. "]
[2022,{"v":-0.1801,"d":"-18.01%"},{"v":0.0202,"d":"2.02%"},{"v":-0.1783,"d":"-17.83%"},{"v":624534.55,"d":"$624,534.55"},{"v":2140.51,"d":"$2,140.51"},{"v":7006.75,"d":"$7,006.75"}]
[{"$nulls":3},"Correlation to T Bonds",{"$nulls":3},{"$f":"CORREL($D101:$D106,H101:H106)","v":{"v":-0.7969749838284197,"d":"-0.80"}},{"$f":"CORREL($D101:$D106,I101:I106)","v":{"v":0.37424821460917823,"d":"0.37"}},{"$f":"CORREL($D101:$D106,J101:J106)","v":{"v":0.3328834223738014,"d":"0.33"}}]
[]
[]
["Getting meaningful average rates of return is quite complicated and to be avoided. "]
["The sequence doesn't matter in terms of the end results.  But arithmetic averages are meaninguless and geometric averages are complicated to calculate. "]
["https://corporatefinanceinstitute.com/resources/knowledge/other/what-is-geometric-mean/"]
[]
[null,"Includes Dividends",{"$nulls":3},"Risk Premium"]
["Arithmetic Average",{"$nulls":4},"Stocks - T.Bills","Stocks - T.Bonds","Stocks - T.Bills",null,"Stocks - T.Bonds"]
["1928-2022",{"$f":"AVERAGE(B$12:B$107)","v":{"v":0.11507707781289304,"d":"11.51%"}},{"$f":"AVERAGE(C12:C107)","v":{"v":0.03291677083333333,"d":"3.29%"}},{"$f":"AVERAGE(D12:D107)","v":{"v":0.048253861725076536,"d":"4.83%"}}]
["1969-2022",{"$f":"AVERAGE(B$53:B$107)","v":{"v":0.11390927065399806,"d":"11.39%"}},{"$f":"AVERAGE(C$53:C$107)","v":{"v":0.04407472727272728,"d":"4.41%"}},{"$f":"AVERAGE(D$53:D$107)","v":{"v":0.064450960836442,"d":"6.45%"}}]
["2009-2022",{"$f":"AVERAGE(B$93:B$107)","v":{"v":0.13757884422331076,"d":"13.76%"}},{"$f":"AVERAGE(C$93:C$107)","v":{"v":0.006114,"d":"0.61%"}},{"$f":"AVERAGE(D$93:D$107)","v":{"v":0.014774589576344165,"d":"1.48%"}}]
[{"$nulls":5},"Risk Premium"]
["Geometric Average",{"$nulls":4},"Stocks - T.Bills","Stocks - T.Bonds"]
["1928-2022",null,{"$f":"(F$107/100-1)/96","v":{"v":0.212553125,"d":"$0.21"}},{"$f":"(G$107/100-1)/96","v":{"v":0.7194531249999999,"d":"$0.72"}}]
["1969-2022",{"$f":"(E$107/100-1)/55","v":{"v":113.53355454545455,"d":"$113.53"}},{"$f":"(F$107/100-1)/55","v":{"v":0.3710018181818182,"d":"$0.37"}},{"$f":"(G$107/100-1)/55","v":{"v":1.2557727272727273,"d":"$1.26"}}]
["2009-2022",{"$f":"(E$107/E93-1)/14","v":{"v":0.24196248789647454,"d":"24.2%"}},{"$f":"(F$107/F93-1)/14","v":{"v":6.2893889673623716E-3,"d":"0.6%"}},{"$f":"(G$107/G93-1)/14","v":{"v":0.022213211750595367,"d":"2.2%"}}]
[]
["Stan Dev",{"$f":"STDEVP(B12:B107)","v":{"v":0.1938526044020782,"d":"0.194"}},{"$f":"STDEVP(C12:C105)","v":{"v":0.030146106710612006,"d":"0.030"}},{"v":0.07589046565299372,"d":"0.076"}]
["Coef, Arith",{"$f":"B126/B117","v":{"v":1.684545767813712,"d":"1.7"}},{"$f":"C126/C117","v":{"v":0.915828191752163,"d":"0.9"}},{"$f":"D126/D117","v":{"v":1.5727335168607866,"d":"1.6"}}]
["Sharpe",{"$f":"B126/(B122-C122)","v":{"v":-0.9120195452411165,"d":"-0.9"}},null,{"$f":"D126/(D122-E122)","v":{"v":0.10548354439768919,"d":"0.1"}},"St Dev in Sharpe is on different investments, not on different years.  Uses geometric rates of return divided by arithmetic SD. "]
["Correlations"]
["Stocks Bills",{"$f":"CORREL(B12:B117,C12:C117)","v":{"v":-0.03889296747269053,"d":"-0.039"}}]
["Stocks Bonds",{"$f":"CORREL(B12:B117,D12:D117)","v":{"v":0.023237718654281026,"d":"0.023"}}]
["Bills Bonds",{"$f":"CORREL(C12:C117,D12:D117)","v":{"v":0.2937931076089648,"d":"0.294"}}]
[]
["Count < -15%",{"$f":"COUNTIF(B12:B100,\"<-0.16\")","v":6},"three of which were before 1938, 1 in 2002, 1 in 1974, and 2008."]
[]
["This worksheet is the source of historical return rates used in the model. "]
["Except for the charts and correlation test, this worksheet is the work of NYU professor Damodaran.  It was downloaded from his website. "]
["He derived the computations from the next worksheet, Hist Data, which in the original download had formulas from that sheet to this. "]
["If you wanted to use the model but with another data source such as from Shiller's website (Yale, Irrational Exuberance), paste the replacement data into the corresponding cells on this worksheet. "]

{"sheet":"RE Appr","index":10,"n_rows":159,"n_cols":111,"rows_kept":159}
["Year","Qtr","Minnesota","Annual Percent Change in OFHEO State-Level House Price Indexes through 2010"]
[1975,1,{"v":0,"d":"0.00"},"http://www.fhfa.gov/Default.aspx?Page=215&Type=compare&Area1=MN&Area2=&Area3=",{"$nulls":9},"http://www.fhfa.gov/DataTools/Downloads/Pages/House-Price-Index-Datasets.aspx#qpo"]
[1975,2,{"v":0,"d":"0.00"},"These rates are used to project housing appreciation rates based on historical precedent.  This worksheet is referenced by formulas in worksheet Real Estate. "]
[1975,3,{"v":0,"d":"0.00"},"After a couple hours of internet searching, I was not able to locate earlier usable historical data, and felt lucky to find this at the end of my search."]
[1975,4,{"v":0,"d":"0.00"},"(Of course, we often find what we are looking for the last place we look.)"]
[1976,1,14.13,"Because I do not have data going back to 1928, the historical year selected at random for housing appreciation is different than the year selected for equities, interest and inflation. "]
[1976,2,14.66,"One could limit the years for equities, interest and inflation to 1976-2013 and then use the same year for all the change rates. "]
[1976,3,8.57]
[1976,4,3.61,null,"Reformated results of data in columns A, B, C. ",{"$nulls":6},"Random Years"]
[1977,1,3.12,null,"Annual % Chg","Qtr"]
[1977,2,6.89,null,"Year",1,2,3,4,"Avg",null,1,2,3,4,5,6,7,8,9,10,11,12,13,14,15,16,17,18,19,20,21,22,23,24,25,26,27,28,29,30,31,32,33,34,35,36,37,38,39,40,41,42,43,44,45,46,47,48,49,50,51,52,53,54,55,56,57,58,59,60,61,62,63,64,65,66,67,68,69,70,71,72,73,74,75,76,77,78,79,80,81,82,83,84,85,86,87,88,89,90,91,92,93,94,95,96,97,98,99,100]
[1977,3,13.6,null,1975,{"v":0,"d":"0.00"},{"v":0,"d":"0.00"},{"v":0,"d":"0.00"},{"v":0,"d":"0.00"}]
[1977,4,13.73,null,1976,14.13,14.66,8.57,3.61,{"$f":"AVERAGE(F13:I13)","v":{"v":10.2425,"d":"10.24"}},null,{"$f":"RANDBETWEEN(1976,2022)","v":1987},{"$f":"RANDBETWEEN(1976,2022)","v":2003},{"$f":"RANDBETWEEN(1976,2022)","v":1995},{"$f":"RANDBETWEEN(1976,2022)","v":2011},{"$f":"RANDBETWEEN(1976,2022)","v":1986},{"$f":"RANDBETWEEN(1976,2022)","v":1981},{"$f":"RANDBETWEEN(1976,2022)","v":1977},{"$f":"RANDBETWEEN(1976,2022)","v":1990},{"$f":"RANDBETWEEN(1976,2022)","v":2008},{"$f":"RANDBETWEEN(1976,2022)","v":1995},{"$f":"RANDBETWEEN(1976,2022)","v":1983},{"$f":"RANDBETWEEN(1976,2022)","v":2020},{"$f":"RANDBETWEEN(1976,2022)","v":2009},{"$f":"RANDBETWEEN(1976,2022)","v":2004},{"$f":"RANDBETWEEN(1976,2022)","v":2008},{"$f":"RANDBETWEEN(1976,2022)","v":2007},{"$f":"RANDBETWEEN(1976,2022)","v":1986},{"$f":"RANDBETWEEN(1976,2022)","v":2011},{"$f":"RANDBETWEEN(1976,2022)","v":1992},{"$f":"RANDBETWEEN(1976,2022)","v":1983},{"$f":"RANDBETWEEN(1976,2022)","v":2015},{"$f":"RANDBETWEEN(1976,2022)","v":1979},{"$f":"RANDBETWEEN(1976,2022)","v":2002},{"$f":"RANDBETWEEN(1976,2022)","v":2003},{"$f":"RANDBETWEEN(1976,2022)","v":1980},{"$f":"RANDBETWEEN(1976,2022)","v":2007},{"$f":"RANDBETWEEN(1976,2022)","v":2003},{"$f":"RANDBETWEEN(1976,2022)","v":1978},{"$f":"RANDBETWEEN(1976,2022)","v":1992},{"$f":"RANDBETWEEN(1976,2022)","v":2009},{"$f":"RANDBETWEEN(1976,2022)","v":2014},{"$f":"RANDBETWEEN(1976,2022)","v":2011},{"$f":"RANDBETWEEN(1976,2022)","v":1981},{"$f":"RANDBETWEEN(1976,2022)","v":1989},{"$f":"RANDBETWEEN(1976,2022)","v":1990},{"$f":"RANDBETWEEN(1976,2022)","v":2005},{"$f":"RANDBETWEEN(1976,2022)","v":2019},{"$f":"RANDBETWEEN(1976,2022)","v":2012},{"$f":"RANDBETWEEN(1976,2022)","v":2017},{"$f":"RANDBETWEEN(1976,2022)","v":1986},{"$f":"RANDBETWEEN(1976,2022)","v":1996},{"$f":"RANDBETWEEN(1976,2022)","v":2009},{"$f":"RANDBETWEEN(1976,2022)","v":2009},{"$f":"RANDBETWEEN(1976,2022)","v":2022},{"$f":"RANDBETWEEN(1976,2022)","v":2006},{"$f":"RANDBETWEEN(1976,2022)","v":2018},{"$f":"RANDBETWEEN(1976,2022)","v":1976},{"$f":"RANDBETWEEN(1976,2022)","v":2022},{"$f":"RANDBETWEEN(1976,2022)","v":2010},{"$f":"RANDBETWEEN(1976,2022)","v":1984},{"$f":"RANDBETWEEN(1976,2022)","v":1978},{"$f":"RANDBETWEEN(1976,2022)","v":1977},{"$f":"RANDBETWEEN(1976,2022)","v":2019},{"$f":"RANDBETWEEN(1976,2022)","v":1986},{"$f":"RANDBETWEEN(1976,2022)","v":2014},{"$f":"RANDBETWEEN(1976,2022)","v":2021},{"$f":"RANDBETWEEN(1976,2022)","v":1998},{"$f":"RANDBETWEEN(1976,2022)","v":1984},{"$f":"RANDBETWEEN(1976,2022)","v":2009},{"$f":"RANDBETWEEN(1976,2022)","v":1989},{"$f":"RANDBETWEEN(1976,2022)","v":1977},{"$f":"RANDBETWEEN(1976,2022)","v":2000},{"$f":"RANDBETWEEN(1976,2022)","v":1978},{"$f":"RANDBETWEEN(1976,2022)","v":2004},{"$f":"RANDBETWEEN(1976,2022)","v":1999},{"$f":"RANDBETWEEN(1976,2022)","v":2000},{"$f":"RANDBETWEEN(1976,2022)","v":1990},{"$f":"RANDBETWEEN(1976,2022)","v":1983},{"$f":"RANDBETWEEN(1976,2022)","v":1992},{"$f":"RANDBETWEEN(1976,2022)","v":1984},{"$f":"RANDBETWEEN(1976,2022)","v":1980},{"$f":"RANDBETWEEN(1976,2022)","v":1978},{"$f":"RANDBETWEEN(1976,2022)","v":1998},{"$f":"RANDBETWEEN(1976,2022)","v":1990},{"$f":"RANDBETWEEN(1976,2022)","v":2022},{"$f":"RANDBETWEEN(1976,2022)","v":2011},{"$f":"RANDBETWEEN(1976,2022)","v":1980},{"$f":"RANDBETWEEN(1976,2022)","v":1988},{"$f":"RANDBETWEEN(1976,2022)","v":1999},{"$f":"RANDBETWEEN(1976,2022)","v":1988},{"$f":"RANDBETWEEN(1976,2022)","v":1986},{"$f":"RANDBETWEEN(1976,2022)","v":2010},{"$f":"RANDBETWEEN(1976,2022)","v":1981},{"$f":"RANDBETWEEN(1976,2022)","v":2012},{"$f":"RANDBETWEEN(1976,2022)","v":2022},{"$f":"RANDBETWEEN(1976,2022)","v":1982},{"$f":"RANDBETWEEN(1976,2022)","v":2008},{"$f":"RANDBETWEEN(1976,2022)","v":1977},{"$f":"RANDBETWEEN(1976,2022)","v":2013},{"$f":"RANDBETWEEN(1976,2022)","v":1988},{"$f":"RANDBETWEEN(1976,2022)","v":1993},{"$f":"RANDBETWEEN(1976,2022)","v":1983},{"$f":"RANDBETWEEN(1976,2022)","v":2009},{"$f":"RANDBETWEEN(1976,2022)","v":2018},{"$f":"RANDBETWEEN(1976,2022)","v":1993},{"$f":"RANDBETWEEN(1976,2022)","v":1990},{"$f":"RANDBETWEEN(1976,2022)","v":2019},{"$f":"RANDBETWEEN(1976,2022)","v":2006},{"$f":"RANDBETWEEN(1976,2022)","v":1984},{"$f":"RANDBETWEEN(1976,2022)","v":2017}]
[1978,1,14.51,null,1977,3.12,6.89,{"v":13.6,"d":"13.60"},13.73,{"$f":"AVERAGE(F14:I14)","v":{"v":9.335,"d":"9.34"}},null,{"$f":"RANDBETWEEN(1976,2022)","v":2014},{"$f":"RANDBETWEEN(1976,2022)","v":1987},{"$f":"RANDBETWEEN(1976,2022)","v":1980},{"$f":"RANDBETWEEN(1976,2022)","v":1999},{"$f":"RANDBETWEEN(1976,2022)","v":2019},{"$f":"RANDBETWEEN(1976,2022)","v":1980},{"$f":"RANDBETWEEN(1976,2022)","v":1990},{"$f":"RANDBETWEEN(1976,2022)","v":2020},{"$f":"RANDBETWEEN(1976,2022)","v":2021},{"$f":"RANDBETWEEN(1976,2022)","v":1997},{"$f":"RANDBETWEEN(1976,2022)","v":2017},{"$f":"RANDBETWEEN(1976,2022)","v":2012},{"$f":"RANDBETWEEN(1976,2022)","v":1989},{"$f":"RANDBETWEEN(1976,2022)","v":2022},{"$f":"RANDBETWEEN(1976,2022)","v":1977},{"$f":"RANDBETWEEN(1976,2022)","v":1976},{"$f":"RANDBETWEEN(1976,2022)","v":1982},{"$f":"RANDBETWEEN(1976,2022)","v":2017},{"$f":"RANDBETWEEN(1976,2022)","v":1981},{"$f":"RANDBETWEEN(1976,2022)","v":2020},{"$f":"RANDBETWEEN(1976,2022)","v":1994},{"$f":"RANDBETWEEN(1976,2022)","v":2012},{"$f":"RANDBETWEEN(1976,2022)","v":2022},{"$f":"RANDBETWEEN(1976,2022)","v":1994},{"$f":"RANDBETWEEN(1976,2022)","v":2011},{"$f":"RANDBETWEEN(1976,2022)","v":2001},{"$f":"RANDBETWEEN(1976,2022)","v":2003},{"$f":"RANDBETWEEN(1976,2022)","v":2016},{"$f":"RANDBETWEEN(1976,2022)","v":1993},{"$f":"RANDBETWEEN(1976,2022)","v":2020},{"$f":"RANDBETWEEN(1976,2022)","v":1976},{"$f":"RANDBETWEEN(1976,2022)","v":1997},{"$f":"RANDBETWEEN(1976,2022)","v":1999},{"$f":"RANDBETWEEN(1976,2022)","v":1996},{"$f":"RANDBETWEEN(1976,2022)","v":1983},{"$f":"RANDBETWEEN(1976,2022)","v":2011},{"$f":"RANDBETWEEN(1976,2022)","v":2016},{"$f":"RANDBETWEEN(1976,2022)","v":2007},{"$f":"RANDBETWEEN(1976,2022)","v":1980},{"$f":"RANDBETWEEN(1976,2022)","v":1980},{"$f":"RANDBETWEEN(1976,2022)","v":2006},{"$f":"RANDBETWEEN(1976,2022)","v":2012},{"$f":"RANDBETWEEN(1976,2022)","v":2008},{"$f":"RANDBETWEEN(1976,2022)","v":1980},{"$f":"RANDBETWEEN(1976,2022)","v":1990},{"$f":"RANDBETWEEN(1976,2022)","v":2014},{"$f":"RANDBETWEEN(1976,2022)","v":1976},{"$f":"RANDBETWEEN(1976,2022)","v":1980},{"$f":"RANDBETWEEN(1976,2022)","v":1985},{"$f":"RANDBETWEEN(1976,2022)","v":2013},{"$f":"RANDBETWEEN(1976,2022)","v":2008},{"$f":"RANDBETWEEN(1976,2022)","v":1996},{"$f":"RANDBETWEEN(1976,2022)","v":1977},{"$f":"RANDBETWEEN(1976,2022)","v":1992},{"$f":"RANDBETWEEN(1976,2022)","v":2000},{"$f":"RANDBETWEEN(1976,2022)","v":2002},{"$f":"RANDBETWEEN(1976,2022)","v":2008},{"$f":"RANDBETWEEN(1976,2022)","v":1990},{"$f":"RANDBETWEEN(1976,2022)","v":1989},{"$f":"RANDBETWEEN(1976,2022)","v":1992},{"$f":"RANDBETWEEN(1976,2022)","v":2017},{"$f":"RANDBETWEEN(1976,2022)","v":2004},{"$f":"RANDBETWEEN(1976,2022)","v":2006},{"$f":"RANDBETWEEN(1976,2022)","v":2018},{"$f":"RANDBETWEEN(1976,2022)","v":1998},{"$f":"RANDBETWEEN(1976,2022)","v":2014},{"$f":"RANDBETWEEN(1976,2022)","v":2019},{"$f":"RANDBETWEEN(1976,2022)","v":2006},{"$f":"RANDBETWEEN(1976,2022)","v":2010},{"$f":"RANDBETWEEN(1976,2022)","v":1979},{"$f":"RANDBETWEEN(1976,2022)","v":2000},{"$f":"RANDBETWEEN(1976,2022)","v":2002},{"$f":"RANDBETWEEN(1976,2022)","v":1992},{"$f":"RANDBETWEEN(1976,2022)","v":1984},{"$f":"RANDBETWEEN(1976,2022)","v":2009},{"$f":"RANDBETWEEN(1976,2022)","v":1985},{"$f":"RANDBETWEEN(1976,2022)","v":1982},{"$f":"RANDBETWEEN(1976,2022)","v":2015},{"$f":"RANDBETWEEN(1976,2022)","v":2020},{"$f":"RANDBETWEEN(1976,2022)","v":2005},{"$f":"RANDBETWEEN(1976,2022)","v":1984},{"$f":"RANDBETWEEN(1976,2022)","v":1996},{"$f":"RANDBETWEEN(1976,2022)","v":1978},{"$f":"RANDBETWEEN(1976,2022)","v":2002},{"$f":"RANDBETWEEN(1976,2022)","v":2014},{"$f":"RANDBETWEEN(1976,2022)","v":2003},{"$f":"RANDBETWEEN(1976,2022)","v":1997},{"$f":"RANDBETWEEN(1976,2022)","v":2011},{"$f":"RANDBETWEEN(1976,2022)","v":1987},{"$f":"RANDBETWEEN(1976,2022)","v":1995},{"$f":"RANDBETWEEN(1976,2022)","v":2017},{"$f":"RANDBETWEEN(1976,2022)","v":2018},{"$f":"RANDBETWEEN(1976,2022)","v":2000},{"$f":"RANDBETWEEN(1976,2022)","v":1985},{"$f":"RANDBETWEEN(1976,2022)","v":2006},{"$f":"RANDBETWEEN(1976,2022)","v":1981},{"$f":"RANDBETWEEN(1976,2022)","v":2013},{"$f":"RANDBETWEEN(1976,2022)","v":2005},{"$f":"RANDBETWEEN(1976,2022)","v":1990},{"$f":"RANDBETWEEN(1976,2022)","v":2012}]
[1978,2,19.42,null,1978,14.51,19.42,19.88,17.01,{"v":17.705000000000002,"d":"17.71"},null,{"$f":"RANDBETWEEN(1976,2022)","v":2019},{"$f":"RANDBETWEEN(1976,2022)","v":1977},{"$f":"RANDBETWEEN(1976,2022)","v":2008},{"$f":"RANDBETWEEN(1976,2022)","v":2016},{"$f":"RANDBETWEEN(1976,2022)","v":1989},{"$f":"RANDBETWEEN(1976,2022)","v":1980},{"$f":"RANDBETWEEN(1976,2022)","v":1998},{"$f":"RANDBETWEEN(1976,2022)","v":1996},{"$f":"RANDBETWEEN(1976,2022)","v":2013},{"$f":"RANDBETWEEN(1976,2022)","v":2014},{"$f":"RANDBETWEEN(1976,2022)","v":2015},{"$f":"RANDBETWEEN(1976,2022)","v":2008},{"$f":"RANDBETWEEN(1976,2022)","v":2009},{"$f":"RANDBETWEEN(1976,2022)","v":2005},{"$f":"RANDBETWEEN(1976,2022)","v":2003},{"$f":"RANDBETWEEN(1976,2022)","v":1990},{"$f":"RANDBETWEEN(1976,2022)","v":2001},{"$f":"RANDBETWEEN(1976,2022)","v":2016},{"$f":"RANDBETWEEN(1976,2022)","v":2012},{"$f":"RANDBETWEEN(1976,2022)","v":2010},{"$f":"RANDBETWEEN(1976,2022)","v":2000},{"$f":"RANDBETWEEN(1976,2022)","v":2001},{"$f":"RANDBETWEEN(1976,2022)","v":1984},{"$f":"RANDBETWEEN(1976,2022)","v":1976},{"$f":"RANDBETWEEN(1976,2022)","v":1994},{"$f":"RANDBETWEEN(1976,2022)","v":2022},{"$f":"RANDBETWEEN(1976,2022)","v":1976},{"$f":"RANDBETWEEN(1976,2022)","v":2014},{"$f":"RANDBETWEEN(1976,2022)","v":1986},{"$f":"RANDBETWEEN(1976,2022)","v":1976},{"$f":"RANDBETWEEN(1976,2022)","v":1980},{"$f":"RANDBETWEEN(1976,2022)","v":1991},{"$f":"RANDBETWEEN(1976,2022)","v":2019},{"$f":"RANDBETWEEN(1976,2022)","v":2000},{"$f":"RANDBETWEEN(1976,2022)","v":1980},{"$f":"RANDBETWEEN(1976,2022)","v":2012},{"$f":"RANDBETWEEN(1976,2022)","v":1979},{"$f":"RANDBETWEEN(1976,2022)","v":1976},{"$f":"RANDBETWEEN(1976,2022)","v":2006},{"$f":"RANDBETWEEN(1976,2022)","v":1978},{"$f":"RANDBETWEEN(1976,2022)","v":1995},{"$f":"RANDBETWEEN(1976,2022)","v":2012},{"$f":"RANDBETWEEN(1976,2022)","v":2019},{"$f":"RANDBETWEEN(1976,2022)","v":2002},{"$f":"RANDBETWEEN(1976,2022)","v":2015},{"$f":"RANDBETWEEN(1976,2022)","v":2000},{"$f":"RANDBETWEEN(1976,2022)","v":1996},{"$f":"RANDBETWEEN(1976,2022)","v":2021},{"$f":"RANDBETWEEN(1976,2022)","v":2011},{"$f":"RANDBETWEEN(1976,2022)","v":1999},{"$f":"RANDBETWEEN(1976,2022)","v":2002},{"$f":"RANDBETWEEN(1976,2022)","v":2009},{"$f":"RANDBETWEEN(1976,2022)","v":2016},{"$f":"RANDBETWEEN(1976,2022)","v":1992},{"$f":"RANDBETWEEN(1976,2022)","v":2010},{"$f":"RANDBETWEEN(1976,2022)","v":2018},{"$f":"RANDBETWEEN(1976,2022)","v":2003},{"$f":"RANDBETWEEN(1976,2022)","v":2008},{"$f":"RANDBETWEEN(1976,2022)","v":1979},{"$f":"RANDBETWEEN(1976,2022)","v":1978},{"$f":"RANDBETWEEN(1976,2022)","v":1987},{"$f":"RANDBETWEEN(1976,2022)","v":1976},{"$f":"RANDBETWEEN(1976,2022)","v":1987},{"$f":"RANDBETWEEN(1976,2022)","v":2006},{"$f":"RANDBETWEEN(1976,2022)","v":2011},{"$f":"RANDBETWEEN(1976,2022)","v":2021},{"$f":"RANDBETWEEN(1976,2022)","v":1997},{"$f":"RANDBETWEEN(1976,2022)","v":1978},{"$f":"RANDBETWEEN(1976,2022)","v":1987},{"$f":"RANDBETWEEN(1976,2022)","v":1995},{"$f":"RANDBETWEEN(1976,2022)","v":1979},{"$f":"RANDBETWEEN(1976,2022)","v":1979},{"$f":"RANDBETWEEN(1976,2022)","v":1986},{"$f":"RANDBETWEEN(1976,2022)","v":1995},{"$f":"RANDBETWEEN(1976,2022)","v":2011},{"$f":"RANDBETWEEN(1976,2022)","v":1991},{"$f":"RANDBETWEEN(1976,2022)","v":2010},{"$f":"RANDBETWEEN(1976,2022)","v":2008},{"$f":"RANDBETWEEN(1976,2022)","v":1992},{"$f":"RANDBETWEEN(1976,2022)","v":2015},{"$f":"RANDBETWEEN(1976,2022)","v":1992},{"$f":"RANDBETWEEN(1976,2022)","v":2016},{"$f":"RANDBETWEEN(1976,2022)","v":1988},{"$f":"RANDBETWEEN(1976,2022)","v":1976},{"$f":"RANDBETWEEN(1976,2022)","v":2022},{"$f":"RANDBETWEEN(1976,2022)","v":1998},{"$f":"RANDBETWEEN(1976,2022)","v":2000},{"$f":"RANDBETWEEN(1976,2022)","v":2016},{"$f":"RANDBETWEEN(1976,2022)","v":1987},{"$f":"RANDBETWEEN(1976,2022)","v":1979},{"$f":"RANDBETWEEN(1976,2022)","v":1983},{"$f":"RANDBETWEEN(1976,2022)","v":2021},{"$f":"RANDBETWEEN(1976,2022)","v":2011},{"$f":"RANDBETWEEN(1976,2022)","v":2018},{"$f":"RANDBETWEEN(1976,2022)","v":2006},{"$f":"RANDBETWEEN(1976,2022)","v":1985},{"$f":"RANDBETWEEN(1976,2022)","v":1978},{"$f":"RANDBETWEEN(1976,2022)","v":1980},{"$f":"RANDBETWEEN(1976,2022)","v":2001},{"$f":"RANDBETWEEN(1976,2022)","v":2001}]
[1978,3,19.88,null,1979,{"v":17.6,"d":"17.60"},16.31,10.69,{"v":11.4,"d":"11.40"},{"v":13.999999999999998,"d":"14.00"},null,{"$f":"RANDBETWEEN(1976,2022)","v":1985},{"$f":"RANDBETWEEN(1976,2022)","v":2009},{"$f":"RANDBETWEEN(1976,2022)","v":2007},{"$f":"RANDBETWEEN(1976,2022)","v":1986},{"$f":"RANDBETWEEN(1976,2022)","v":2003},{"$f":"RANDBETWEEN(1976,2022)","v":2013},{"$f":"RANDBETWEEN(1976,2022)","v":2014},{"$f":"RANDBETWEEN(1976,2022)","v":1995},{"$f":"RANDBETWEEN(1976,2022)","v":2000},{"$f":"RANDBETWEEN(1976,2022)","v":1994},{"$f":"RANDBETWEEN(1976,2022)","v":1997},{"$f":"RANDBETWEEN(1976,2022)","v":2011},{"$f":"RANDBETWEEN(1976,2022)","v":2014},{"$f":"RANDBETWEEN(1976,2022)","v":2013},{"$f":"RANDBETWEEN(1976,2022)","v":1987},{"$f":"RANDBETWEEN(1976,2022)","v":1979},{"$f":"RANDBETWEEN(1976,2022)","v":1977},{"$f":"RANDBETWEEN(1976,2022)","v":1988},{"$f":"RANDBETWEEN(1976,2022)","v":2016},{"$f":"RANDBETWEEN(1976,2022)","v":1979},{"$f":"RANDBETWEEN(1976,2022)","v":2019},{"$f":"RANDBETWEEN(1976,2022)","v":1980},{"$f":"RANDBETWEEN(1976,2022)","v":2006},{"$f":"RANDBETWEEN(1976,2022)","v":1985},{"$f":"RANDBETWEEN(1976,2022)","v":2007},{"$f":"RANDBETWEEN(1976,2022)","v":1981},{"$f":"RANDBETWEEN(1976,2022)","v":2001},{"$f":"RANDBETWEEN(1976,2022)","v":2015},{"$f":"RANDBETWEEN(1976,2022)","v":2014},{"$f":"RANDBETWEEN(1976,2022)","v":2018},{"$f":"RANDBETWEEN(1976,2022)","v":2001},{"$f":"RANDBETWEEN(1976,2022)","v":2000},{"$f":"RANDBETWEEN(1976,2022)","v":2022},{"$f":"RANDBETWEEN(1976,2022)","v":1986},{"$f":"RANDBETWEEN(1976,2022)","v":2022},{"$f":"RANDBETWEEN(1976,2022)","v":1994},{"$f":"RANDBETWEEN(1976,2022)","v":1977},{"$f":"RANDBETWEEN(1976,2022)","v":2010},{"$f":"RANDBETWEEN(1976,2022)","v":1977},{"$f":"RANDBETWEEN(1976,2022)","v":2004},{"$f":"RANDBETWEEN(1976,2022)","v":1997},{"$f":"RANDBETWEEN(1976,2022)","v":1976},{"$f":"RANDBETWEEN(1976,2022)","v":1990},{"$f":"RANDBETWEEN(1976,2022)","v":1994},{"$f":"RANDBETWEEN(1976,2022)","v":2007},{"$f":"RANDBETWEEN(1976,2022)","v":1985},{"$f":"RANDBETWEEN(1976,2022)","v":1999},{"$f":"RANDBETWEEN(1976,2022)","v":2012},{"$f":"RANDBETWEEN(1976,2022)","v":1999},{"$f":"RANDBETWEEN(1976,2022)","v":1983},{"$f":"RANDBETWEEN(1976,2022)","v":2017},{"$f":"RANDBETWEEN(1976,2022)","v":2014},{"$f":"RANDBETWEEN(1976,2022)","v":2012},{"$f":"RANDBETWEEN(1976,2022)","v":1980},{"$f":"RANDBETWEEN(1976,2022)","v":1985},{"$f":"RANDBETWEEN(1976,2022)","v":1992},{"$f":"RANDBETWEEN(1976,2022)","v":2020},{"$f":"RANDBETWEEN(1976,2022)","v":2017},{"$f":"RANDBETWEEN(1976,2022)","v":1988},{"$f":"RANDBETWEEN(1976,2022)","v":1996},{"$f":"RANDBETWEEN(1976,2022)","v":2022},{"$f":"RANDBETWEEN(1976,2022)","v":1986},{"$f":"RANDBETWEEN(1976,2022)","v":1998},{"$f":"RANDBETWEEN(1976,2022)","v":1999},{"$f":"RANDBETWEEN(1976,2022)","v":1999},{"$f":"RANDBETWEEN(1976,2022)","v":1981},{"$f":"RANDBETWEEN(1976,2022)","v":2020},{"$f":"RANDBETWEEN(1976,2022)","v":2006},{"$f":"RANDBETWEEN(1976,2022)","v":1986},{"$f":"RANDBETWEEN(1976,2022)","v":2021},{"$f":"RANDBETWEEN(1976,2022)","v":1993},{"$f":"RANDBETWEEN(1976,2022)","v":2019},{"$f":"RANDBETWEEN(1976,2022)","v":1978},{"$f":"RANDBETWEEN(1976,2022)","v":2017},{"$f":"RANDBETWEEN(1976,2022)","v":1982},{"$f":"RANDBETWEEN(1976,2022)","v":1999},{"$f":"RANDBETWEEN(1976,2022)","v":1977},{"$f":"RANDBETWEEN(1976,2022)","v":1977},{"$f":"RANDBETWEEN(1976,2022)","v":1995},{"$f":"RANDBETWEEN(1976,2022)","v":2007},{"$f":"RANDBETWEEN(1976,2022)","v":1978},{"$f":"RANDBETWEEN(1976,2022)","v":1987},{"$f":"RANDBETWEEN(1976,2022)","v":1999},{"$f":"RANDBETWEEN(1976,2022)","v":2004},{"$f":"RANDBETWEEN(1976,2022)","v":2002},{"$f":"RANDBETWEEN(1976,2022)","v":2017},{"$f":"RANDBETWEEN(1976,2022)","v":2004},{"$f":"RANDBETWEEN(1976,2022)","v":2010},{"$f":"RANDBETWEEN(1976,2022)","v":1995},{"$f":"RANDBETWEEN(1976,2022)","v":2011},{"$f":"RANDBETWEEN(1976,2022)","v":1987},{"$f":"RANDBETWEEN(1976,2022)","v":2012},{"$f":"RANDBETWEEN(1976,2022)","v":2013},{"$f":"RANDBETWEEN(1976,2022)","v":1989},{"$f":"RANDBETWEEN(1976,2022)","v":2007},{"$f":"RANDBETWEEN(1976,2022)","v":2007},{"$f":"RANDBETWEEN(1976,2022)","v":2015},{"$f":"RANDBETWEEN(1976,2022)","v":1993},{"$f":"RANDBETWEEN(1976,2022)","v":2015},{"$f":"RANDBETWEEN(1976,2022)","v":2021}]
[1978,4,17.01,null,1980,10.76,8.74,8.87,7.11,8.87,null,{"$f":"RANDBETWEEN(1976,2022)","v":1984},{"$f":"RANDBETWEEN(1976,2022)","v":1976},{"$f":"RANDBETWEEN(1976,2022)","v":1985},{"$f":"RANDBETWEEN(1976,2022)","v":2020},{"$f":"RANDBETWEEN(1976,2022)","v":2010},{"$f":"RANDBETWEEN(1976,2022)","v":1983},{"$f":"RANDBETWEEN(1976,2022)","v":2002},{"$f":"RANDBETWEEN(1976,2022)","v":1987},{"$f":"RANDBETWEEN(1976,2022)","v":1976},{"$f":"RANDBETWEEN(1976,2022)","v":2012},{"$f":"RANDBETWEEN(1976,2022)","v":1991},{"$f":"RANDBETWEEN(1976,2022)","v":2007},{"$f":"RANDBETWEEN(1976,2022)","v":1976},{"$f":"RANDBETWEEN(1976,2022)","v":1987},{"$f":"RANDBETWEEN(1976,2022)","v":1991},{"$f":"RANDBETWEEN(1976,2022)","v":1998},{"$f":"RANDBETWEEN(1976,2022)","v":2002},{"$f":"RANDBETWEEN(1976,2022)","v":1985},{"$f":"RANDBETWEEN(1976,2022)","v":1981},{"$f":"RANDBETWEEN(1976,2022)","v":2001},{"$f":"RANDBETWEEN(1976,2022)","v":1978},{"$f":"RANDBETWEEN(1976,2022)","v":1988},{"$f":"RANDBETWEEN(1976,2022)","v":1994},{"$f":"RANDBETWEEN(1976,2022)","v":1981},{"$f":"RANDBETWEEN(1976,2022)","v":1986},{"$f":"RANDBETWEEN(1976,2022)","v":1978},{"$f":"RANDBETWEEN(1976,2022)","v":1988},{"$f":"RANDBETWEEN(1976,2022)","v":1997},{"$f":"RANDBETWEEN(1976,2022)","v":1990},{"$f":"RANDBETWEEN(1976,2022)","v":2005},{"$f":"RANDBETWEEN(1976,2022)","v":1982},{"$f":"RANDBETWEEN(1976,2022)","v":2020},{"$f":"RANDBETWEEN(1976,2022)","v":2017},{"$f":"RANDBETWEEN(1976,2022)","v":2011},{"$f":"RANDBETWEEN(1976,2022)","v":2009},{"$f":"RANDBETWEEN(1976,2022)","v":1985},{"$f":"RANDBETWEEN(1976,2022)","v":2009},{"$f":"RANDBETWEEN(1976,2022)","v":1976},{"$f":"RANDBETWEEN(1976,2022)","v":1982},{"$f":"RANDBETWEEN(1976,2022)","v":1981},{"$f":"RANDBETWEEN(1976,2022)","v":2008},{"$f":"RANDBETWEEN(1976,2022)","v":2013},{"$f":"RANDBETWEEN(1976,2022)","v":1999},{"$f":"RANDBETWEEN(1976,2022)","v":2006},{"$f":"RANDBETWEEN(1976,2022)","v":1997},{"$f":"RANDBETWEEN(1976,2022)","v":1999},{"$f":"RANDBETWEEN(1976,2022)","v":1991},{"$f":"RANDBETWEEN(1976,2022)","v":1981},{"$f":"RANDBETWEEN(1976,2022)","v":1979},{"$f":"RANDBETWEEN(1976,2022)","v":2020},{"$f":"RANDBETWEEN(1976,2022)","v":2003},{"$f":"RANDBETWEEN(1976,2022)","v":2021},{"$f":"RANDBETWEEN(1976,2022)","v":2014},{"$f":"RANDBETWEEN(1976,2022)","v":2005},{"$f":"RANDBETWEEN(1976,2022)","v":1982},{"$f":"RANDBETWEEN(1976,2022)","v":2006},{"$f":"RANDBETWEEN(1976,2022)","v":1985},{"$f":"RANDBETWEEN(1976,2022)","v":1995},{"$f":"RANDBETWEEN(1976,2022)","v":1976},{"$f":"RANDBETWEEN(1976,2022)","v":1977},{"$f":"RANDBETWEEN(1976,2022)","v":1991},{"$f":"RANDBETWEEN(1976,2022)","v":1992},{"$f":"RANDBETWEEN(1976,2022)","v":1989},{"$f":"RANDBETWEEN(1976,2022)","v":1976},{"$f":"RANDBETWEEN(1976,2022)","v":2022},{"$f":"RANDBETWEEN(1976,2022)","v":1995},{"$f":"RANDBETWEEN(1976,2022)","v":1993},{"$f":"RANDBETWEEN(1976,2022)","v":1981},{"$f":"RANDBETWEEN(1976,2022)","v":2009},{"$f":"RANDBETWEEN(1976,2022)","v":2011},{"$f":"RANDBETWEEN(1976,2022)","v":1985},{"$f":"RANDBETWEEN(1976,2022)","v":2011},{"$f":"RANDBETWEEN(1976,2022)","v":1980},{"$f":"RANDBETWEEN(1976,2022)","v":2005},{"$f":"RANDBETWEEN(1976,2022)","v":2008},{"$f":"RANDBETWEEN(1976,2022)","v":1982},{"$f":"RANDBETWEEN(1976,2022)","v":1994},{"$f":"RANDBETWEEN(1976,2022)","v":1983},{"$f":"RANDBETWEEN(1976,2022)","v":1994},{"$f":"RANDBETWEEN(1976,2022)","v":1989},{"$f":"RANDBETWEEN(1976,2022)","v":1991},{"$f":"RANDBETWEEN(1976,2022)","v":2008},{"$f":"RANDBETWEEN(1976,2022)","v":1995},{"$f":"RANDBETWEEN(1976,2022)","v":1998},{"$f":"RANDBETWEEN(1976,2022)","v":1990},{"$f":"RANDBETWEEN(1976,2022)","v":1979},{"$f":"RANDBETWEEN(1976,2022)","v":1978},{"$f":"RANDBETWEEN(1976,2022)","v":2007},{"$f":"RANDBETWEEN(1976,2022)","v":2005},{"$f":"RANDBETWEEN(1976,2022)","v":1984},{"$f":"RANDBETWEEN(1976,2022)","v":2017},{"$f":"RANDBETWEEN(1976,2022)","v":1997},{"$f":"RANDBETWEEN(1976,2022)","v":2009},{"$f":"RANDBETWEEN(1976,2022)","v":1976},{"$f":"RANDBETWEEN(1976,2022)","v":2000},{"$f":"RANDBETWEEN(1976,2022)","v":1976},{"$f":"RANDBETWEEN(1976,2022)","v":2015},{"$f":"RANDBETWEEN(1976,2022)","v":1995},{"$f":"RANDBETWEEN(1976,2022)","v":1995},{"$f":"RANDBETWEEN(1976,2022)","v":1991}]
[1979,1,17.6,null,1981,0.05,0.75,-0.52,1.38,{"v":0.415,"d":"0.42"},null,{"$f":"RANDBETWEEN(1976,2022)","v":2004},{"$f":"RANDBETWEEN(1976,2022)","v":1994},{"$f":"RANDBETWEEN(1976,2022)","v":2017},{"$f":"RANDBETWEEN(1976,2022)","v":2005},{"$f":"RANDBETWEEN(1976,2022)","v":1996},{"$f":"RANDBETWEEN(1976,2022)","v":2021},{"$f":"RANDBETWEEN(1976,2022)","v":1978},{"$f":"RANDBETWEEN(1976,2022)","v":2017},{"$f":"RANDBETWEEN(1976,2022)","v":2015},{"$f":"RANDBETWEEN(1976,2022)","v":2002},{"$f":"RANDBETWEEN(1976,2022)","v":2022},{"$f":"RANDBETWEEN(1976,2022)","v":1997},{"$f":"RANDBETWEEN(1976,2022)","v":2010},{"$f":"RANDBETWEEN(1976,2022)","v":2004},{"$f":"RANDBETWEEN(1976,2022)","v":2012},{"$f":"RANDBETWEEN(1976,2022)","v":1976},{"$f":"RANDBETWEEN(1976,2022)","v":1986},{"$f":"RANDBETWEEN(1976,2022)","v":2002},{"$f":"RANDBETWEEN(1976,2022)","v":1986},{"$f":"RANDBETWEEN(1976,2022)","v":2000},{"$f":"RANDBETWEEN(1976,2022)","v":1984},{"$f":"RANDBETWEEN(1976,2022)","v":2005},{"$f":"RANDBETWEEN(1976,2022)","v":1994},{"$f":"RANDBETWEEN(1976,2022)","v":2021},{"$f":"RANDBETWEEN(1976,2022)","v":2011},{"$f":"RANDBETWEEN(1976,2022)","v":2010},{"$f":"RANDBETWEEN(1976,2022)","v":1997},{"$f":"RANDBETWEEN(1976,2022)","v":2007},{"$f":"RANDBETWEEN(1976,2022)","v":1995},{"$f":"RANDBETWEEN(1976,2022)","v":1994},{"$f":"RANDBETWEEN(1976,2022)","v":1981},{"$f":"RANDBETWEEN(1976,2022)","v":1982},{"$f":"RANDBETWEEN(1976,2022)","v":1977},{"$f":"RANDBETWEEN(1976,2022)","v":2016},{"$f":"RANDBETWEEN(1976,2022)","v":2017},{"$f":"RANDBETWEEN(1976,2022)","v":1995},{"$f":"RANDBETWEEN(1976,2022)","v":2014},{"$f":"RANDBETWEEN(1976,2022)","v":2013},{"$f":"RANDBETWEEN(1976,2022)","v":1997},{"$f":"RANDBETWEEN(1976,2022)","v":2006},{"$f":"RANDBETWEEN(1976,2022)","v":1986},{"$f":"RANDBETWEEN(1976,2022)","v":1976},{"$f":"RANDBETWEEN(1976,2022)","v":2004},{"$f":"RANDBETWEEN(1976,2022)","v":1976},{"$f":"RANDBETWEEN(1976,2022)","v":1976},{"$f":"RANDBETWEEN(1976,2022)","v":2021},{"$f":"RANDBETWEEN(1976,2022)","v":2021},{"$f":"RANDBETWEEN(1976,2022)","v":2004},{"$f":"RANDBETWEEN(1976,2022)","v":2018},{"$f":"RANDBETWEEN(1976,2022)","v":2000},{"$f":"RANDBETWEEN(1976,2022)","v":1998},{"$f":"RANDBETWEEN(1976,2022)","v":2014},{"$f":"RANDBETWEEN(1976,2022)","v":1999},{"$f":"RANDBETWEEN(1976,2022)","v":1992},{"$f":"RANDBETWEEN(1976,2022)","v":2022},{"$f":"RANDBETWEEN(1976,2022)","v":2005},{"$f":"RANDBETWEEN(1976,2022)","v":1980},{"$f":"RANDBETWEEN(1976,2022)","v":1989},{"$f":"RANDBETWEEN(1976,2022)","v":1982},{"$f":"RANDBETWEEN(1976,2022)","v":2017},{"$f":"RANDBETWEEN(1976,2022)","v":1984},{"$f":"RANDBETWEEN(1976,2022)","v":1984},{"$f":"RANDBETWEEN(1976,2022)","v":2003},{"$f":"RANDBETWEEN(1976,2022)","v":2013},{"$f":"RANDBETWEEN(1976,2022)","v":2008},{"$f":"RANDBETWEEN(1976,2022)","v":2021},{"$f":"RANDBETWEEN(1976,2022)","v":2013},{"$f":"RANDBETWEEN(1976,2022)","v":1984},{"$f":"RANDBETWEEN(1976,2022)","v":2019},{"$f":"RANDBETWEEN(1976,2022)","v":2017},{"$f":"RANDBETWEEN(1976,2022)","v":1996},{"$f":"RANDBETWEEN(1976,2022)","v":2005},{"$f":"RANDBETWEEN(1976,2022)","v":2015},{"$f":"RANDBETWEEN(1976,2022)","v":2003},{"$f":"RANDBETWEEN(1976,2022)","v":2013},{"$f":"RANDBETWEEN(1976,2022)","v":1999},{"$f":"RANDBETWEEN(1976,2022)","v":2011},{"$f":"RANDBETWEEN(1976,2022)","v":1992},{"$f":"RANDBETWEEN(1976,2022)","v":1988},{"$f":"RANDBETWEEN(1976,2022)","v":1991},{"$f":"RANDBETWEEN(1976,2022)","v":1980},{"$f":"RANDBETWEEN(1976,2022)","v":2012},{"$f":"RANDBETWEEN(1976,2022)","v":2022},{"$f":"RANDBETWEEN(1976,2022)","v":1994},{"$f":"RANDBETWEEN(1976,2022)","v":2001},{"$f":"RANDBETWEEN(1976,2022)","v":2016},{"$f":"RANDBETWEEN(1976,2022)","v":2017},{"$f":"RANDBETWEEN(1976,2022)","v":2000},{"$f":"RANDBETWEEN(1976,2022)","v":2018},{"$f":"RANDBETWEEN(1976,2022)","v":1979},{"$f":"RANDBETWEEN(1976,2022)","v":2016},{"$f":"RANDBETWEEN(1976,2022)","v":1998},{"$f":"RANDBETWEEN(1976,2022)","v":1996},{"$f":"RANDBETWEEN(1976,2022)","v":2011},{"$f":"RANDBETWEEN(1976,2022)","v":2019},{"$f":"RANDBETWEEN(1976,2022)","v":2014},{"$f":"RANDBETWEEN(1976,2022)","v":2018},{"$f":"RANDBETWEEN(1976,2022)","v":2018},{"$f":"RANDBETWEEN(1976,2022)","v":1989},{"$f":"RANDBETWEEN(1976,2022)","v":1995}]
[1979,2,16.31,null,1982,6.56,4.08,2.13,2.56,{"v":3.8325,"d":"3.83"},null,{"$f":"RANDBETWEEN(1976,2022)","v":1979},{"$f":"RANDBETWEEN(1976,2022)","v":1983},{"$f":"RANDBETWEEN(1976,2022)","v":2001},{"$f":"RANDBETWEEN(1976,2022)","v":2015},{"$f":"RANDBETWEEN(1976,2022)","v":1989},{"$f":"RANDBETWEEN(1976,2022)","v":1976},{"$f":"RANDBETWEEN(1976,2022)","v":2003},{"$f":"RANDBETWEEN(1976,2022)","v":2022},{"$f":"RANDBETWEEN(1976,2022)","v":2004},{"$f":"RANDBETWEEN(1976,2022)","v":1989},{"$f":"RANDBETWEEN(1976,2022)","v":1995},{"$f":"RANDBETWEEN(1976,2022)","v":2008},{"$f":"RANDBETWEEN(1976,2022)","v":1991},{"$f":"RANDBETWEEN(1976,2022)","v":1984},{"$f":"RANDBETWEEN(1976,2022)","v":1985},{"$f":"RANDBETWEEN(1976,2022)","v":1991},{"$f":"RANDBETWEEN(1976,2022)","v":2020},{"$f":"RANDBETWEEN(1976,2022)","v":1991},{"$f":"RANDBETWEEN(1976,2022)","v":1976},{"$f":"RANDBETWEEN(1976,2022)","v":1985},{"$f":"RANDBETWEEN(1976,2022)","v":2014},{"$f":"RANDBETWEEN(1976,2022)","v":1997},{"$f":"RANDBETWEEN(1976,2022)","v":1991},{"$f":"RANDBETWEEN(1976,2022)","v":2004},{"$f":"RANDBETWEEN(1976,2022)","v":2021},{"$f":"RANDBETWEEN(1976,2022)","v":2003},{"$f":"RANDBETWEEN(1976,2022)","v":1985},{"$f":"RANDBETWEEN(1976,2022)","v":1998},{"$f":"RANDBETWEEN(1976,2022)","v":1996},{"$f":"RANDBETWEEN(1976,2022)","v":1988},{"$f":"RANDBETWEEN(1976,2022)","v":2002},{"$f":"RANDBETWEEN(1976,2022)","v":1988},{"$f":"RANDBETWEEN(1976,2022)","v":1986},{"$f":"RANDBETWEEN(1976,2022)","v":1995},{"$f":"RANDBETWEEN(1976,2022)","v":1976},{"$f":"RANDBETWEEN(1976,2022)","v":1992},{"$f":"RANDBETWEEN(1976,2022)","v":1991},{"$f":"RANDBETWEEN(1976,2022)","v":1999},{"$f":"RANDBETWEEN(1976,2022)","v":1983},{"$f":"RANDBETWEEN(1976,2022)","v":2006},{"$f":"RANDBETWEEN(1976,2022)","v":1987},{"$f":"RANDBETWEEN(1976,2022)","v":1993},{"$f":"RANDBETWEEN(1976,2022)","v":1983},{"$f":"RANDBETWEEN(1976,2022)","v":1981},{"$f":"RANDBETWEEN(1976,2022)","v":1985},{"$f":"RANDBETWEEN(1976,2022)","v":2006},{"$f":"RANDBETWEEN(1976,2022)","v":1988},{"$f":"RANDBETWEEN(1976,2022)","v":2001},{"$f":"RANDBETWEEN(1976,2022)","v":2001},{"$f":"RANDBETWEEN(1976,2022)","v":2006},{"$f":"RANDBETWEEN(1976,2022)","v":2011},{"$f":"RANDBETWEEN(1976,2022)","v":2014},{"$f":"RANDBETWEEN(1976,2022)","v":2001},{"$f":"RANDBETWEEN(1976,2022)","v":2018},{"$f":"RANDBETWEEN(1976,2022)","v":1984},{"$f":"RANDBETWEEN(1976,2022)","v":1984},{"$f":"RANDBETWEEN(1976,2022)","v":2002},{"$f":"RANDBETWEEN(1976,2022)","v":2000},{"$f":"RANDBETWEEN(1976,2022)","v":1976},{"$f":"RANDBETWEEN(1976,2022)","v":2021},{"$f":"RANDBETWEEN(1976,2022)","v":2003},{"$f":"RANDBETWEEN(1976,2022)","v":2013},{"$f":"RANDBETWEEN(1976,2022)","v":1984},{"$f":"RANDBETWEEN(1976,2022)","v":2021},{"$f":"RANDBETWEEN(1976,2022)","v":1987},{"$f":"RANDBETWEEN(1976,2022)","v":2000},{"$f":"RANDBETWEEN(1976,2022)","v":2005},{"$f":"RANDBETWEEN(1976,2022)","v":1992},{"$f":"RANDBETWEEN(1976,2022)","v":1977},{"$f":"RANDBETWEEN(1976,2022)","v":2004},{"$f":"RANDBETWEEN(1976,2022)","v":2021},{"$f":"RANDBETWEEN(1976,2022)","v":1991},{"$f":"RANDBETWEEN(1976,2022)","v":1978},{"$f":"RANDBETWEEN(1976,2022)","v":1977},{"$f":"RANDBETWEEN(1976,2022)","v":1997},{"$f":"RANDBETWEEN(1976,2022)","v":2015},{"$f":"RANDBETWEEN(1976,2022)","v":1989},{"$f":"RANDBETWEEN(1976,2022)","v":2022},{"$f":"RANDBETWEEN(1976,2022)","v":2010},{"$f":"RANDBETWEEN(1976,2022)","v":2008},{"$f":"RANDBETWEEN(1976,2022)","v":1986},{"$f":"RANDBETWEEN(1976,2022)","v":1978},{"$f":"RANDBETWEEN(1976,2022)","v":2022},{"$f":"RANDBETWEEN(1976,2022)","v":1994},{"$f":"RANDBETWEEN(1976,2022)","v":2004},{"$f":"RANDBETWEEN(1976,2022)","v":1978},{"$f":"RANDBETWEEN(1976,2022)","v":1985},{"$f":"RANDBETWEEN(1976,2022)","v":1998},{"$f":"RANDBETWEEN(1976,2022)","v":2005},{"$f":"RANDBETWEEN(1976,2022)","v":1995},{"$f":"RANDBETWEEN(1976,2022)","v":2005},{"$f":"RANDBETWEEN(1976,2022)","v":2010},{"$f":"RANDBETWEEN(1976,2022)","v":2010},{"$f":"RANDBETWEEN(1976,2022)","v":1980},{"$f":"RANDBETWEEN(1976,2022)","v":1998},{"$f":"RANDBETWEEN(1976,2022)","v":2020},{"$f":"RANDBETWEEN(1976,2022)","v":1987},{"$f":"RANDBETWEEN(1976,2022)","v":1983},{"$f":"RANDBETWEEN(1976,2022)","v":1996},{"$f":"RANDBETWEEN(1976,2022)","v":2009}]
[1979,3,10.69,null,1983,4.39,5.47,5.99,1.13,{"v":4.245,"d":"4.25"},null,{"$f":"RANDBETWEEN(1976,2022)","v":1981},{"$f":"RANDBETWEEN(1976,2022)","v":1992},{"$f":"RANDBETWEEN(1976,2022)","v":1996},{"$f":"RANDBETWEEN(1976,2022)","v":2003},{"$f":"RANDBETWEEN(1976,2022)","v":1996},{"$f":"RANDBETWEEN(1976,2022)","v":1984},{"$f":"RANDBETWEEN(1976,2022)","v":1979},{"$f":"RANDBETWEEN(1976,2022)","v":1996},{"$f":"RANDBETWEEN(1976,2022)","v":2018},{"$f":"RANDBETWEEN(1976,2022)","v":2012},{"$f":"RANDBETWEEN(1976,2022)","v":2005},{"$f":"RANDBETWEEN(1976,2022)","v":2006},{"$f":"RANDBETWEEN(1976,2022)","v":2006},{"$f":"RANDBETWEEN(1976,2022)","v":2006},{"$f":"RANDBETWEEN(1976,2022)","v":2016},{"$f":"RANDBETWEEN(1976,2022)","v":1985},{"$f":"RANDBETWEEN(1976,2022)","v":2010},{"$f":"RANDBETWEEN(1976,2022)","v":2018},{"$f":"RANDBETWEEN(1976,2022)","v":1994},{"$f":"RANDBETWEEN(1976,2022)","v":1990},{"$f":"RANDBETWEEN(1976,2022)","v":1985},{"$f":"RANDBETWEEN(1976,2022)","v":2008},{"$f":"RANDBETWEEN(1976,2022)","v":2020},{"$f":"RANDBETWEEN(1976,2022)","v":2007},{"$f":"RANDBETWEEN(1976,2022)","v":1993},{"$f":"RANDBETWEEN(1976,2022)","v":1987},{"$f":"RANDBETWEEN(1976,2022)","v":1991},{"$f":"RANDBETWEEN(1976,2022)","v":1999},{"$f":"RANDBETWEEN(1976,2022)","v":2004},{"$f":"RANDBETWEEN(1976,2022)","v":2015},{"$f":"RANDBETWEEN(1976,2022)","v":2015},{"$f":"RANDBETWEEN(1976,2022)","v":1999},{"$f":"RANDBETWEEN(1976,2022)","v":1983},{"$f":"RANDBETWEEN(1976,2022)","v":1984},{"$f":"RANDBETWEEN(1976,2022)","v":1985},{"$f":"RANDBETWEEN(1976,2022)","v":2001},{"$f":"RANDBETWEEN(1976,2022)","v":2018},{"$f":"RANDBETWEEN(1976,2022)","v":2013},{"$f":"RANDBETWEEN(1976,2022)","v":1983},{"$f":"RANDBETWEEN(1976,2022)","v":1994},{"$f":"RANDBETWEEN(1976,2022)","v":2008},{"$f":"RANDBETWEEN(1976,2022)","v":1995},{"$f":"RANDBETWEEN(1976,2022)","v":1981},{"$f":"RANDBETWEEN(1976,2022)","v":1998},{"$f":"RANDBETWEEN(1976,2022)","v":1996},{"$f":"RANDBETWEEN(1976,2022)","v":1996},{"$f":"RANDBETWEEN(1976,2022)","v":2010},{"$f":"RANDBETWEEN(1976,2022)","v":2018},{"$f":"RANDBETWEEN(1976,2022)","v":1998},{"$f":"RANDBETWEEN(1976,2022)","v":1985},{"$f":"RANDBETWEEN(1976,2022)","v":2022},{"$f":"RANDBETWEEN(1976,2022)","v":2008},{"$f":"RANDBETWEEN(1976,2022)","v":1989},{"$f":"RANDBETWEEN(1976,2022)","v":2008},{"$f":"RANDBETWEEN(1976,2022)","v":2017},{"$f":"RANDBETWEEN(1976,2022)","v":2013},{"$f":"RANDBETWEEN(1976,2022)","v":1979},{"$f":"RANDBETWEEN(1976,2022)","v":2015},{"$f":"RANDBETWEEN(1976,2022)","v":1996},{"$f":"RANDBETWEEN(1976,2022)","v":1999},{"$f":"RANDBETWEEN(1976,2022)","v":2000},{"$f":"RANDBETWEEN(1976,2022)","v":1983},{"$f":"RANDBETWEEN(1976,2022)","v":2021},{"$f":"RANDBETWEEN(1976,2022)","v":1982},{"$f":"RANDBETWEEN(1976,2022)","v":2014},{"$f":"RANDBETWEEN(1976,2022)","v":2020},{"$f":"RANDBETWEEN(1976,2022)","v":2016},{"$f":"RANDBETWEEN(1976,2022)","v":2003},{"$f":"RANDBETWEEN(1976,2022)","v":1997},{"$f":"RANDBETWEEN(1976,2022)","v":1997},{"$f":"RANDBETWEEN(1976,2022)","v":2016},{"$f":"RANDBETWEEN(1976,2022)","v":2013},{"$f":"RANDBETWEEN(1976,2022)","v":2022},{"$f":"RANDBETWEEN(1976,2022)","v":1976},{"$f":"RANDBETWEEN(1976,2022)","v":1985},{"$f":"RANDBETWEEN(1976,2022)","v":2021},{"$f":"RANDBETWEEN(1976,2022)","v":1980},{"$f":"RANDBETWEEN(1976,2022)","v":1991},{"$f":"RANDBETWEEN(1976,2022)","v":1988},{"$f":"RANDBETWEEN(1976,2022)","v":1979},{"$f":"RANDBETWEEN(1976,2022)","v":1992},{"$f":"RANDBETWEEN(1976,2022)","v":2003},{"$f":"RANDBETWEEN(1976,2022)","v":2004},{"$f":"RANDBETWEEN(1976,2022)","v":1977},{"$f":"RANDBETWEEN(1976,2022)","v":1988},{"$f":"RANDBETWEEN(1976,2022)","v":1985},{"$f":"RANDBETWEEN(1976,2022)","v":2006},{"$f":"RANDBETWEEN(1976,2022)","v":1980},{"$f":"RANDBETWEEN(1976,2022)","v":1995},{"$f":"RANDBETWEEN(1976,2022)","v":2011},{"$f":"RANDBETWEEN(1976,2022)","v":1981},{"$f":"RANDBETWEEN(1976,2022)","v":2010},{"$f":"RANDBETWEEN(1976,2022)","v":2007},{"$f":"RANDBETWEEN(1976,2022)","v":2008},{"$f":"RANDBETWEEN(1976,2022)","v":1995},{"$f":"RANDBETWEEN(1976,2022)","v":2010},{"$f":"RANDBETWEEN(1976,2022)","v":2014},{"$f":"RANDBETWEEN(1976,2022)","v":1991},{"$f":"RANDBETWEEN(1976,2022)","v":1993},{"$f":"RANDBETWEEN(1976,2022)","v":1992}]
[1979,4,11.4,null,1984,1.98,-0.33,2.13,5.77,{"v":2.3874999999999997,"d":"2.39"},null,{"$f":"RANDBETWEEN(1976,2022)","v":2001},{"$f":"RANDBETWEEN(1976,2022)","v":2002},{"$f":"RANDBETWEEN(1976,2022)","v":1982},{"$f":"RANDBETWEEN(1976,2022)","v":1978},{"$f":"RANDBETWEEN(1976,2022)","v":2003},{"$f":"RANDBETWEEN(1976,2022)","v":2003},{"$f":"RANDBETWEEN(1976,2022)","v":2020},{"$f":"RANDBETWEEN(1976,2022)","v":2006},{"$f":"RANDBETWEEN(1976,2022)","v":1998},{"$f":"RANDBETWEEN(1976,2022)","v":1989},{"$f":"RANDBETWEEN(1976,2022)","v":1978},{"$f":"RANDBETWEEN(1976,2022)","v":1980},{"$f":"RANDBETWEEN(1976,2022)","v":2001},{"$f":"RANDBETWEEN(1976,2022)","v":2006},{"$f":"RANDBETWEEN(1976,2022)","v":2000},{"$f":"RANDBETWEEN(1976,2022)","v":2013},{"$f":"RANDBETWEEN(1976,2022)","v":1984},{"$f":"RANDBETWEEN(1976,2022)","v":1982},{"$f":"RANDBETWEEN(1976,2022)","v":2013},{"$f":"RANDBETWEEN(1976,2022)","v":2009},{"$f":"RANDBETWEEN(1976,2022)","v":2007},{"$f":"RANDBETWEEN(1976,2022)","v":1986},{"$f":"RANDBETWEEN(1976,2022)","v":1987},{"$f":"RANDBETWEEN(1976,2022)","v":2020},{"$f":"RANDBETWEEN(1976,2022)","v":2010},{"$f":"RANDBETWEEN(1976,2022)","v":1983},{"$f":"RANDBETWEEN(1976,2022)","v":1977},{"$f":"RANDBETWEEN(1976,2022)","v":1990},{"$f":"RANDBETWEEN(1976,2022)","v":2021},{"$f":"RANDBETWEEN(1976,2022)","v":2004},{"$f":"RANDBETWEEN(1976,2022)","v":2013},{"$f":"RANDBETWEEN(1976,2022)","v":1982},{"$f":"RANDBETWEEN(1976,2022)","v":2014},{"$f":"RANDBETWEEN(1976,2022)","v":1977},{"$f":"RANDBETWEEN(1976,2022)","v":2017},{"$f":"RANDBETWEEN(1976,2022)","v":2021},{"$f":"RANDBETWEEN(1976,2022)","v":1987},{"$f":"RANDBETWEEN(1976,2022)","v":1999},{"$f":"RANDBETWEEN(1976,2022)","v":2011},{"$f":"RANDBETWEEN(1976,2022)","v":1994},{"$f":"RANDBETWEEN(1976,2022)","v":2005},{"$f":"RANDBETWEEN(1976,2022)","v":1997},{"$f":"RANDBETWEEN(1976,2022)","v":1984},{"$f":"RANDBETWEEN(1976,2022)","v":1995},{"$f":"RANDBETWEEN(1976,2022)","v":1988},{"$f":"RANDBETWEEN(1976,2022)","v":1992},{"$f":"RANDBETWEEN(1976,2022)","v":2005},{"$f":"RANDBETWEEN(1976,2022)","v":1997},{"$f":"RANDBETWEEN(1976,2022)","v":2022},{"$f":"RANDBETWEEN(1976,2022)","v":2003},{"$f":"RANDBETWEEN(1976,2022)","v":2006},{"$f":"RANDBETWEEN(1976,2022)","v":1988},{"$f":"RANDBETWEEN(1976,2022)","v":1984},{"$f":"RANDBETWEEN(1976,2022)","v":2015},{"$f":"RANDBETWEEN(1976,2022)","v":2009},{"$f":"RANDBETWEEN(1976,2022)","v":2001},{"$f":"RANDBETWEEN(1976,2022)","v":1980},{"$f":"RANDBETWEEN(1976,2022)","v":2004},{"$f":"RANDBETWEEN(1976,2022)","v":1998},{"$f":"RANDBETWEEN(1976,2022)","v":1993},{"$f":"RANDBETWEEN(1976,2022)","v":1991},{"$f":"RANDBETWEEN(1976,2022)","v":2006},{"$f":"RANDBETWEEN(1976,2022)","v":1997},{"$f":"RANDBETWEEN(1976,2022)","v":1977},{"$f":"RANDBETWEEN(1976,2022)","v":2008},{"$f":"RANDBETWEEN(1976,2022)","v":1978},{"$f":"RANDBETWEEN(1976,2022)","v":1985},{"$f":"RANDBETWEEN(1976,2022)","v":1988},{"$f":"RANDBETWEEN(1976,2022)","v":2006},{"$f":"RANDBETWEEN(1976,2022)","v":2001},{"$f":"RANDBETWEEN(1976,2022)","v":2005},{"$f":"RANDBETWEEN(1976,2022)","v":2008},{"$f":"RANDBETWEEN(1976,2022)","v":2014},{"$f":"RANDBETWEEN(1976,2022)","v":2006},{"$f":"RANDBETWEEN(1976,2022)","v":2022},{"$f":"RANDBETWEEN(1976,2022)","v":2008},{"$f":"RANDBETWEEN(1976,2022)","v":1996},{"$f":"RANDBETWEEN(1976,2022)","v":2004},{"$f":"RANDBETWEEN(1976,2022)","v":2007},{"$f":"RANDBETWEEN(1976,2022)","v":2003},{"$f":"RANDBETWEEN(1976,2022)","v":2015},{"$f":"RANDBETWEEN(1976,2022)","v":2021},{"$f":"RANDBETWEEN(1976,2022)","v":2013},{"$f":"RANDBETWEEN(1976,2022)","v":2016},{"$f":"RANDBETWEEN(1976,2022)","v":2003},{"$f":"RANDBETWEEN(1976,2022)","v":2009},{"$f":"RANDBETWEEN(1976,2022)","v":2022},{"$f":"RANDBETWEEN(1976,2022)","v":2016},{"$f":"RANDBETWEEN(1976,2022)","v":1980},{"$f":"RANDBETWEEN(1976,2022)","v":1986},{"$f":"RANDBETWEEN(1976,2022)","v":1976},{"$f":"RANDBETWEEN(1976,2022)","v":1999},{"$f":"RANDBETWEEN(1976,2022)","v":2014},{"$f":"RANDBETWEEN(1976,2022)","v":1994},{"$f":"RANDBETWEEN(1976,2022)","v":2010},{"$f":"RANDBETWEEN(1976,2022)","v":1994},{"$f":"RANDBETWEEN(1976,2022)","v":2019},{"$f":"RANDBETWEEN(1976,2022)","v":2001},{"$f":"RANDBETWEEN(1976,2022)","v":2013},{"$f":"RANDBETWEEN(1976,2022)","v":1987}]
[1980,1,10.76,null,1985,{"v":2,"d":"2.00"},{"v":4.3,"d":"4.30"},1.28,3.43,{"v":2.7525,"d":"2.75"},null,{"$f":"RANDBETWEEN(1976,2022)","v":1977},{"$f":"RANDBETWEEN(1976,2022)","v":2014},{"$f":"RANDBETWEEN(1976,2022)","v":2002},{"$f":"RANDBETWEEN(1976,2022)","v":2000},{"$f":"RANDBETWEEN(1976,2022)","v":2018},{"$f":"RANDBETWEEN(1976,2022)","v":1981},{"$f":"RANDBETWEEN(1976,2022)","v":2003},{"$f":"RANDBETWEEN(1976,2022)","v":2014},{"$f":"RANDBETWEEN(1976,2022)","v":2019},{"$f":"RANDBETWEEN(1976,2022)","v":2022},{"$f":"RANDBETWEEN(1976,2022)","v":2003},{"$f":"RANDBETWEEN(1976,2022)","v":2004},{"$f":"RANDBETWEEN(1976,2022)","v":2022},{"$f":"RANDBETWEEN(1976,2022)","v":1993},{"$f":"RANDBETWEEN(1976,2022)","v":1994},{"$f":"RANDBETWEEN(1976,2022)","v":2005},{"$f":"RANDBETWEEN(1976,2022)","v":1976},{"$f":"RANDBETWEEN(1976,2022)","v":2003},{"$f":"RANDBETWEEN(1976,2022)","v":2010},{"$f":"RANDBETWEEN(1976,2022)","v":2004},{"$f":"RANDBETWEEN(1976,2022)","v":1992},{"$f":"RANDBETWEEN(1976,2022)","v":2014},{"$f":"RANDBETWEEN(1976,2022)","v":1979},{"$f":"RANDBETWEEN(1976,2022)","v":1990},{"$f":"RANDBETWEEN(1976,2022)","v":1985},{"$f":"RANDBETWEEN(1976,2022)","v":2021},{"$f":"RANDBETWEEN(1976,2022)","v":1985},{"$f":"RANDBETWEEN(1976,2022)","v":1983},{"$f":"RANDBETWEEN(1976,2022)","v":2020},{"$f":"RANDBETWEEN(1976,2022)","v":2003},{"$f":"RANDBETWEEN(1976,2022)","v":1991},{"$f":"RANDBETWEEN(1976,2022)","v":1990},{"$f":"RANDBETWEEN(1976,2022)","v":2021},{"$f":"RANDBETWEEN(1976,2022)","v":2010},{"$f":"RANDBETWEEN(1976,2022)","v":2020},{"$f":"RANDBETWEEN(1976,2022)","v":2001},{"$f":"RANDBETWEEN(1976,2022)","v":1992},{"$f":"RANDBETWEEN(1976,2022)","v":1993},{"$f":"RANDBETWEEN(1976,2022)","v":1999},{"$f":"RANDBETWEEN(1976,2022)","v":2000},{"$f":"RANDBETWEEN(1976,2022)","v":2015},{"$f":"RANDBETWEEN(1976,2022)","v":1989},{"$f":"RANDBETWEEN(1976,2022)","v":1976},{"$f":"RANDBETWEEN(1976,2022)","v":1988},{"$f":"RANDBETWEEN(1976,2022)","v":1981},{"$f":"RANDBETWEEN(1976,2022)","v":1987},{"$f":"RANDBETWEEN(1976,2022)","v":2009},{"$f":"RANDBETWEEN(1976,2022)","v":2007},{"$f":"RANDBETWEEN(1976,2022)","v":2001},{"$f":"RANDBETWEEN(1976,2022)","v":2010},{"$f":"RANDBETWEEN(1976,2022)","v":2011},{"$f":"RANDBETWEEN(1976,2022)","v":2013},{"$f":"RANDBETWEEN(1976,2022)","v":2003},{"$f":"RANDBETWEEN(1976,2022)","v":1999},{"$f":"RANDBETWEEN(1976,2022)","v":1993},{"$f":"RANDBETWEEN(1976,2022)","v":1995},{"$f":"RANDBETWEEN(1976,2022)","v":1980},{"$f":"RANDBETWEEN(1976,2022)","v":2002},{"$f":"RANDBETWEEN(1976,2022)","v":2022},{"$f":"RANDBETWEEN(1976,2022)","v":1984},{"$f":"RANDBETWEEN(1976,2022)","v":1996},{"$f":"RANDBETWEEN(1976,2022)","v":1996},{"$f":"RANDBETWEEN(1976,2022)","v":1982},{"$f":"RANDBETWEEN(1976,2022)","v":2012},{"$f":"RANDBETWEEN(1976,2022)","v":2017},{"$f":"RANDBETWEEN(1976,2022)","v":1992},{"$f":"RANDBETWEEN(1976,2022)","v":1987},{"$f":"RANDBETWEEN(1976,2022)","v":1999},{"$f":"RANDBETWEEN(1976,2022)","v":1991},{"$f":"RANDBETWEEN(1976,2022)","v":1985},{"$f":"RANDBETWEEN(1976,2022)","v":2018},{"$f":"RANDBETWEEN(1976,2022)","v":1977},{"$f":"RANDBETWEEN(1976,2022)","v":1993},{"$f":"RANDBETWEEN(1976,2022)","v":1980},{"$f":"RANDBETWEEN(1976,2022)","v":2008},{"$f":"RANDBETWEEN(1976,2022)","v":2000},{"$f":"RANDBETWEEN(1976,2022)","v":1983},{"$f":"RANDBETWEEN(1976,2022)","v":1990},{"$f":"RANDBETWEEN(1976,2022)","v":2016},{"$f":"RANDBETWEEN(1976,2022)","v":2004},{"$f":"RANDBETWEEN(1976,2022)","v":1993},{"$f":"RANDBETWEEN(1976,2022)","v":2006},{"$f":"RANDBETWEEN(1976,2022)","v":1976},{"$f":"RANDBETWEEN(1976,2022)","v":1991},{"$f":"RANDBETWEEN(1976,2022)","v":1983},{"$f":"RANDBETWEEN(1976,2022)","v":1991},{"$f":"RANDBETWEEN(1976,2022)","v":1996},{"$f":"RANDBETWEEN(1976,2022)","v":1979},{"$f":"RANDBETWEEN(1976,2022)","v":2022},{"$f":"RANDBETWEEN(1976,2022)","v":2007},{"$f":"RANDBETWEEN(1976,2022)","v":2006},{"$f":"RANDBETWEEN(1976,2022)","v":2008},{"$f":"RANDBETWEEN(1976,2022)","v":1976},{"$f":"RANDBETWEEN(1976,2022)","v":1998},{"$f":"RANDBETWEEN(1976,2022)","v":1999},{"$f":"RANDBETWEEN(1976,2022)","v":1981},{"$f":"RANDBETWEEN(1976,2022)","v":1978},{"$f":"RANDBETWEEN(1976,2022)","v":2016},{"$f":"RANDBETWEEN(1976,2022)","v":1997},{"$f":"RANDBETWEEN(1976,2022)","v":1997}]
[1980,2,8.74,null,1986,3.43,2.62,6.25,3.27,{"v":3.8925,"d":"3.89"},null,{"$f":"RANDBETWEEN(1976,2022)","v":2011},{"$f":"RANDBETWEEN(1976,2022)","v":1996},{"$f":"RANDBETWEEN(1976,2022)","v":2016},{"$f":"RANDBETWEEN(1976,2022)","v":1985},{"$f":"RANDBETWEEN(1976,2022)","v":2010},{"$f":"RANDBETWEEN(1976,2022)","v":2012},{"$f":"RANDBETWEEN(1976,2022)","v":2015},{"$f":"RANDBETWEEN(1976,2022)","v":2012},{"$f":"RANDBETWEEN(1976,2022)","v":1990},{"$f":"RANDBETWEEN(1976,2022)","v":1994},{"$f":"RANDBETWEEN(1976,2022)","v":2012},{"$f":"RANDBETWEEN(1976,2022)","v":1997},{"$f":"RANDBETWEEN(1976,2022)","v":1997},{"$f":"RANDBETWEEN(1976,2022)","v":1987},{"$f":"RANDBETWEEN(1976,2022)","v":1977},{"$f":"RANDBETWEEN(1976,2022)","v":1997},{"$f":"RANDBETWEEN(1976,2022)","v":1979},{"$f":"RANDBETWEEN(1976,2022)","v":1977},{"$f":"RANDBETWEEN(1976,2022)","v":1988},{"$f":"RANDBETWEEN(1976,2022)","v":1981},{"$f":"RANDBETWEEN(1976,2022)","v":1980},{"$f":"RANDBETWEEN(1976,2022)","v":1978},{"$f":"RANDBETWEEN(1976,2022)","v":1988},{"$f":"RANDBETWEEN(1976,2022)","v":2009},{"$f":"RANDBETWEEN(1976,2022)","v":2012},{"$f":"RANDBETWEEN(1976,2022)","v":1980},{"$f":"RANDBETWEEN(1976,2022)","v":2020},{"$f":"RANDBETWEEN(1976,2022)","v":2013},{"$f":"RANDBETWEEN(1976,2022)","v":1976},{"$f":"RANDBETWEEN(1976,2022)","v":1996},{"$f":"RANDBETWEEN(1976,2022)","v":1987},{"$f":"RANDBETWEEN(1976,2022)","v":2001},{"$f":"RANDBETWEEN(1976,2022)","v":2003},{"$f":"RANDBETWEEN(1976,2022)","v":1993},{"$f":"RANDBETWEEN(1976,2022)","v":1977},{"$f":"RANDBETWEEN(1976,2022)","v":2000},{"$f":"RANDBETWEEN(1976,2022)","v":2018},{"$f":"RANDBETWEEN(1976,2022)","v":1997},{"$f":"RANDBETWEEN(1976,2022)","v":1984},{"$f":"RANDBETWEEN(1976,2022)","v":1994},{"$f":"RANDBETWEEN(1976,2022)","v":1976},{"$f":"RANDBETWEEN(1976,2022)","v":1978},{"$f":"RANDBETWEEN(1976,2022)","v":1999},{"$f":"RANDBETWEEN(1976,2022)","v":2020},{"$f":"RANDBETWEEN(1976,2022)","v":1981},{"$f":"RANDBETWEEN(1976,2022)","v":2004},{"$f":"RANDBETWEEN(1976,2022)","v":1984},{"$f":"RANDBETWEEN(1976,2022)","v":2017},{"$f":"RANDBETWEEN(1976,2022)","v":2001},{"$f":"RANDBETWEEN(1976,2022)","v":1984},{"$f":"RANDBETWEEN(1976,2022)","v":1982},{"$f":"RANDBETWEEN(1976,2022)","v":2017},{"$f":"RANDBETWEEN(1976,2022)","v":2002},{"$f":"RANDBETWEEN(1976,2022)","v":2009},{"$f":"RANDBETWEEN(1976,2022)","v":2006},{"$f":"RANDBETWEEN(1976,2022)","v":2019},{"$f":"RANDBETWEEN(1976,2022)","v":1990},{"$f":"RANDBETWEEN(1976,2022)","v":2021},{"$f":"RANDBETWEEN(1976,2022)","v":2001},{"$f":"RANDBETWEEN(1976,2022)","v":1997},{"$f":"RANDBETWEEN(1976,2022)","v":1998},{"$f":"RANDBETWEEN(1976,2022)","v":1984},{"$f":"RANDBETWEEN(1976,2022)","v":2019},{"$f":"RANDBETWEEN(1976,2022)","v":2017},{"$f":"RANDBETWEEN(1976,2022)","v":1977},{"$f":"RANDBETWEEN(1976,2022)","v":2003},{"$f":"RANDBETWEEN(1976,2022)","v":2016},{"$f":"RANDBETWEEN(1976,2022)","v":1991},{"$f":"RANDBETWEEN(1976,2022)","v":1978},{"$f":"RANDBETWEEN(1976,2022)","v":1999},{"$f":"RANDBETWEEN(1976,2022)","v":1986},{"$f":"RANDBETWEEN(1976,2022)","v":1985},{"$f":"RANDBETWEEN(1976,2022)","v":1991},{"$f":"RANDBETWEEN(1976,2022)","v":2016},{"$f":"RANDBETWEEN(1976,2022)","v":1979},{"$f":"RANDBETWEEN(1976,2022)","v":1982},{"$f":"RANDBETWEEN(1976,2022)","v":2011},{"$f":"RANDBETWEEN(1976,2022)","v":1995},{"$f":"RANDBETWEEN(1976,2022)","v":1992},{"$f":"RANDBETWEEN(1976,2022)","v":2003},{"$f":"RANDBETWEEN(1976,2022)","v":1987},{"$f":"RANDBETWEEN(1976,2022)","v":1997},{"$f":"RANDBETWEEN(1976,2022)","v":1984},{"$f":"RANDBETWEEN(1976,2022)","v":1996},{"$f":"RANDBETWEEN(1976,2022)","v":1997},{"$f":"RANDBETWEEN(1976,2022)","v":1985},{"$f":"RANDBETWEEN(1976,2022)","v":2006},{"$f":"RANDBETWEEN(1976,2022)","v":2011},{"$f":"RANDBETWEEN(1976,2022)","v":1990},{"$f":"RANDBETWEEN(1976,2022)","v":2009},{"$f":"RANDBETWEEN(1976,2022)","v":2015},{"$f":"RANDBETWEEN(1976,2022)","v":1977},{"$f":"RANDBETWEEN(1976,2022)","v":1998},{"$f":"RANDBETWEEN(1976,2022)","v":1992},{"$f":"RANDBETWEEN(1976,2022)","v":2016},{"$f":"RANDBETWEEN(1976,2022)","v":2007},{"$f":"RANDBETWEEN(1976,2022)","v":1981},{"$f":"RANDBETWEEN(1976,2022)","v":1986},{"$f":"RANDBETWEEN(1976,2022)","v":1979},{"$f":"RANDBETWEEN(1976,2022)","v":2013}]
[1980,3,8.87,null,1987,4.65,6.38,4.81,3.99,{"v":4.9575,"d":"4.96"},null,{"$f":"RANDBETWEEN(1976,2022)","v":2007},{"$f":"RANDBETWEEN(1976,2022)","v":1995},{"$f":"RANDBETWEEN(1976,2022)","v":1978},{"$f":"RANDBETWEEN(1976,2022)","v":2006},{"$f":"RANDBETWEEN(1976,2022)","v":1985},{"$f":"RANDBETWEEN(1976,2022)","v":2004},{"$f":"RANDBETWEEN(1976,2022)","v":2000},{"$f":"RANDBETWEEN(1976,2022)","v":1986},{"$f":"RANDBETWEEN(1976,2022)","v":1988},{"$f":"RANDBETWEEN(1976,2022)","v":1979},{"$f":"RANDBETWEEN(1976,2022)","v":1991},{"$f":"RANDBETWEEN(1976,2022)","v":2003},{"$f":"RANDBETWEEN(1976,2022)","v":1980},{"$f":"RANDBETWEEN(1976,2022)","v":2007},{"$f":"RANDBETWEEN(1976,2022)","v":2002},{"$f":"RANDBETWEEN(1976,2022)","v":1976},{"$f":"RANDBETWEEN(1976,2022)","v":2000},{"$f":"RANDBETWEEN(1976,2022)","v":2001},{"$f":"RANDBETWEEN(1976,2022)","v":1988},{"$f":"RANDBETWEEN(1976,2022)","v":1986},{"$f":"RANDBETWEEN(1976,2022)","v":1988},{"$f":"RANDBETWEEN(1976,2022)","v":2020},{"$f":"RANDBETWEEN(1976,2022)","v":1988},{"$f":"RANDBETWEEN(1976,2022)","v":2016},{"$f":"RANDBETWEEN(1976,2022)","v":1986},{"$f":"RANDBETWEEN(1976,2022)","v":1982},{"$f":"RANDBETWEEN(1976,2022)","v":1995},{"$f":"RANDBETWEEN(1976,2022)","v":2002},{"$f":"RANDBETWEEN(1976,2022)","v":1985},{"$f":"RANDBETWEEN(1976,2022)","v":1988},{"$f":"RANDBETWEEN(1976,2022)","v":2005},{"$f":"RANDBETWEEN(1976,2022)","v":2004},{"$f":"RANDBETWEEN(1976,2022)","v":2007},{"$f":"RANDBETWEEN(1976,2022)","v":2012},{"$f":"RANDBETWEEN(1976,2022)","v":1982},{"$f":"RANDBETWEEN(1976,2022)","v":1977},{"$f":"RANDBETWEEN(1976,2022)","v":1985},{"$f":"RANDBETWEEN(1976,2022)","v":2022},{"$f":"RANDBETWEEN(1976,2022)","v":2002},{"$f":"RANDBETWEEN(1976,2022)","v":2016},{"$f":"RANDBETWEEN(1976,2022)","v":2003},{"$f":"RANDBETWEEN(1976,2022)","v":1976},{"$f":"RANDBETWEEN(1976,2022)","v":1977},{"$f":"RANDBETWEEN(1976,2022)","v":1983},{"$f":"RANDBETWEEN(1976,2022)","v":1977},{"$f":"RANDBETWEEN(1976,2022)","v":1986},{"$f":"RANDBETWEEN(1976,2022)","v":1981},{"$f":"RANDBETWEEN(1976,2022)","v":2020},{"$f":"RANDBETWEEN(1976,2022)","v":1977},{"$f":"RANDBETWEEN(1976,2022)","v":1989},{"$f":"RANDBETWEEN(1976,2022)","v":1990},{"$f":"RANDBETWEEN(1976,2022)","v":2021},{"$f":"RANDBETWEEN(1976,2022)","v":2002},{"$f":"RANDBETWEEN(1976,2022)","v":2013},{"$f":"RANDBETWEEN(1976,2022)","v":1999},{"$f":"RANDBETWEEN(1976,2022)","v":2013},{"$f":"RANDBETWEEN(1976,2022)","v":1990},{"$f":"RANDBETWEEN(1976,2022)","v":1999},{"$f":"RANDBETWEEN(1976,2022)","v":1980},{"$f":"RANDBETWEEN(1976,2022)","v":1990},{"$f":"RANDBETWEEN(1976,2022)","v":1998},{"$f":"RANDBETWEEN(1976,2022)","v":1992},{"$f":"RANDBETWEEN(1976,2022)","v":2019},{"$f":"RANDBETWEEN(1976,2022)","v":2009},{"$f":"RANDBETWEEN(1976,2022)","v":2022},{"$f":"RANDBETWEEN(1976,2022)","v":1994},{"$f":"RANDBETWEEN(1976,2022)","v":1996},{"$f":"RANDBETWEEN(1976,2022)","v":2003},{"$f":"RANDBETWEEN(1976,2022)","v":1977},{"$f":"RANDBETWEEN(1976,2022)","v":1989},{"$f":"RANDBETWEEN(1976,2022)","v":2013},{"$f":"RANDBETWEEN(1976,2022)","v":2004},{"$f":"RANDBETWEEN(1976,2022)","v":1983},{"$f":"RANDBETWEEN(1976,2022)","v":1986},{"$f":"RANDBETWEEN(1976,2022)","v":2005},{"$f":"RANDBETWEEN(1976,2022)","v":1988},{"$f":"RANDBETWEEN(1976,2022)","v":2003},{"$f":"RANDBETWEEN(1976,2022)","v":1977},{"$f":"RANDBETWEEN(1976,2022)","v":1994},{"$f":"RANDBETWEEN(1976,2022)","v":1991},{"$f":"RANDBETWEEN(1976,2022)","v":2015},{"$f":"RANDBETWEEN(1976,2022)","v":1997},{"$f":"RANDBETWEEN(1976,2022)","v":1984},{"$f":"RANDBETWEEN(1976,2022)","v":1985},{"$f":"RANDBETWEEN(1976,2022)","v":1995},{"$f":"RANDBETWEEN(1976,2022)","v":1995},{"$f":"RANDBETWEEN(1976,2022)","v":2011},{"$f":"RANDBETWEEN(1976,2022)","v":1979},{"$f":"RANDBETWEEN(1976,2022)","v":2019},{"$f":"RANDBETWEEN(1976,2022)","v":2001},{"$f":"RANDBETWEEN(1976,2022)","v":1981},{"$f":"RANDBETWEEN(1976,2022)","v":1984},{"$f":"RANDBETWEEN(1976,2022)","v":2007},{"$f":"RANDBETWEEN(1976,2022)","v":1986},{"$f":"RANDBETWEEN(1976,2022)","v":1996},{"$f":"RANDBETWEEN(1976,2022)","v":1996},{"$f":"RANDBETWEEN(1976,2022)","v":1979},{"$f":"RANDBETWEEN(1976,2022)","v":1991},{"$f":"RANDBETWEEN(1976,2022)","v":1985},{"$f":"RANDBETWEEN(1976,2022)","v":2016}]
[1980,4,7.11,null,1988,3.44,3.28,2.21,3.87,{"v":3.2,"d":"3.20"},null,{"$f":"RANDBETWEEN(1976,2022)","v":1981},{"$f":"RANDBETWEEN(1976,2022)","v":1986},{"$f":"RANDBETWEEN(1976,2022)","v":1989},{"$f":"RANDBETWEEN(1976,2022)","v":2000},{"$f":"RANDBETWEEN(1976,2022)","v":2008},{"$f":"RANDBETWEEN(1976,2022)","v":2017},{"$f":"RANDBETWEEN(1976,2022)","v":2012},{"$f":"RANDBETWEEN(1976,2022)","v":1984},{"$f":"RANDBETWEEN(1976,2022)","v":2009},{"$f":"RANDBETWEEN(1976,2022)","v":2020},{"$f":"RANDBETWEEN(1976,2022)","v":2011},{"$f":"RANDBETWEEN(1976,2022)","v":1997},{"$f":"RANDBETWEEN(1976,2022)","v":1978},{"$f":"RANDBETWEEN(1976,2022)","v":2022},{"$f":"RANDBETWEEN(1976,2022)","v":1980},{"$f":"RANDBETWEEN(1976,2022)","v":1999},{"$f":"RANDBETWEEN(1976,2022)","v":1990},{"$f":"RANDBETWEEN(1976,2022)","v":1978},{"$f":"RANDBETWEEN(1976,2022)","v":2010},{"$f":"RANDBETWEEN(1976,2022)","v":2012},{"$f":"RANDBETWEEN(1976,2022)","v":1990},{"$f":"RANDBETWEEN(1976,2022)","v":1993},{"$f":"RANDBETWEEN(1976,2022)","v":1996},{"$f":"RANDBETWEEN(1976,2022)","v":2002},{"$f":"RANDBETWEEN(1976,2022)","v":1987},{"$f":"RANDBETWEEN(1976,2022)","v":1994},{"$f":"RANDBETWEEN(1976,2022)","v":2006},{"$f":"RANDBETWEEN(1976,2022)","v":2006},{"$f":"RANDBETWEEN(1976,2022)","v":2006},{"$f":"RANDBETWEEN(1976,2022)","v":1991},{"$f":"RANDBETWEEN(1976,2022)","v":2013},{"$f":"RANDBETWEEN(1976,2022)","v":2003},{"$f":"RANDBETWEEN(1976,2022)","v":2008},{"$f":"RANDBETWEEN(1976,2022)","v":2011},{"$f":"RANDBETWEEN(1976,2022)","v":1994},{"$f":"RANDBETWEEN(1976,2022)","v":1988},{"$f":"RANDBETWEEN(1976,2022)","v":1997},{"$f":"RANDBETWEEN(1976,2022)","v":1992},{"$f":"RANDBETWEEN(1976,2022)","v":1993},{"$f":"RANDBETWEEN(1976,2022)","v":1983},{"$f":"RANDBETWEEN(1976,2022)","v":1997},{"$f":"RANDBETWEEN(1976,2022)","v":2015},{"$f":"RANDBETWEEN(1976,2022)","v":1981},{"$f":"RANDBETWEEN(1976,2022)","v":2016},{"$f":"RANDBETWEEN(1976,2022)","v":2022},{"$f":"RANDBETWEEN(1976,2022)","v":1998},{"$f":"RANDBETWEEN(1976,2022)","v":1982},{"$f":"RANDBETWEEN(1976,2022)","v":1981},{"$f":"RANDBETWEEN(1976,2022)","v":1983},{"$f":"RANDBETWEEN(1976,2022)","v":2006},{"$f":"RANDBETWEEN(1976,2022)","v":1981},{"$f":"RANDBETWEEN(1976,2022)","v":2019},{"$f":"RANDBETWEEN(1976,2022)","v":2019},{"$f":"RANDBETWEEN(1976,2022)","v":2008},{"$f":"RANDBETWEEN(1976,2022)","v":2008},{"$f":"RANDBETWEEN(1976,2022)","v":1979},{"$f":"RANDBETWEEN(1976,2022)","v":1996},{"$f":"RANDBETWEEN(1976,2022)","v":1996},{"$f":"RANDBETWEEN(1976,2022)","v":1980},{"$f":"RANDBETWEEN(1976,2022)","v":2000},{"$f":"RANDBETWEEN(1976,2022)","v":2002},{"$f":"RANDBETWEEN(1976,2022)","v":1979},{"$f":"RANDBETWEEN(1976,2022)","v":2005},{"$f":"RANDBETWEEN(1976,2022)","v":2013},{"$f":"RANDBETWEEN(1976,2022)","v":2015},{"$f":"RANDBETWEEN(1976,2022)","v":1999},{"$f":"RANDBETWEEN(1976,2022)","v":2011},{"$f":"RANDBETWEEN(1976,2022)","v":1991},{"$f":"RANDBETWEEN(1976,2022)","v":1992},{"$f":"RANDBETWEEN(1976,2022)","v":1997},{"$f":"RANDBETWEEN(1976,2022)","v":1980},{"$f":"RANDBETWEEN(1976,2022)","v":2012},{"$f":"RANDBETWEEN(1976,2022)","v":1978},{"$f":"RANDBETWEEN(1976,2022)","v":1986},{"$f":"RANDBETWEEN(1976,2022)","v":2014},{"$f":"RANDBETWEEN(1976,2022)","v":1976},{"$f":"RANDBETWEEN(1976,2022)","v":2018},{"$f":"RANDBETWEEN(1976,2022)","v":1985},{"$f":"RANDBETWEEN(1976,2022)","v":2018},{"$f":"RANDBETWEEN(1976,2022)","v":1994},{"$f":"RANDBETWEEN(1976,2022)","v":2013},{"$f":"RANDBETWEEN(1976,2022)","v":2007},{"$f":"RANDBETWEEN(1976,2022)","v":1988},{"$f":"RANDBETWEEN(1976,2022)","v":2015},{"$f":"RANDBETWEEN(1976,2022)","v":1999},{"$f":"RANDBETWEEN(1976,2022)","v":1998},{"$f":"RANDBETWEEN(1976,2022)","v":1982},{"$f":"RANDBETWEEN(1976,2022)","v":2007},{"$f":"RANDBETWEEN(1976,2022)","v":2000},{"$f":"RANDBETWEEN(1976,2022)","v":2016},{"$f":"RANDBETWEEN(1976,2022)","v":1985},{"$f":"RANDBETWEEN(1976,2022)","v":1976},{"$f":"RANDBETWEEN(1976,2022)","v":1986},{"$f":"RANDBETWEEN(1976,2022)","v":1982},{"$f":"RANDBETWEEN(1976,2022)","v":1978},{"$f":"RANDBETWEEN(1976,2022)","v":2005},{"$f":"RANDBETWEEN(1976,2022)","v":1999},{"$f":"RANDBETWEEN(1976,2022)","v":2008},{"$f":"RANDBETWEEN(1976,2022)","v":1997},{"$f":"RANDBETWEEN(1976,2022)","v":2018}]
[1981,1,0.05,null,1989,2.38,2.46,4.06,3.66,{"v":3.1399999999999997,"d":"3.14"},null,{"$f":"RANDBETWEEN(1976,2022)","v":2010},{"$f":"RANDBETWEEN(1976,2022)","v":2000},{"$f":"RANDBETWEEN(1976,2022)","v":2012},{"$f":"RANDBETWEEN(1976,2022)","v":2004},{"$f":"RANDBETWEEN(1976,2022)","v":1992},{"$f":"RANDBETWEEN(1976,2022)","v":1992},{"$f":"RANDBETWEEN(1976,2022)","v":2010},{"$f":"RANDBETWEEN(1976,2022)","v":2001},{"$f":"RANDBETWEEN(1976,2022)","v":2020},{"$f":"RANDBETWEEN(1976,2022)","v":1988},{"$f":"RANDBETWEEN(1976,2022)","v":1992},{"$f":"RANDBETWEEN(1976,2022)","v":1985},{"$f":"RANDBETWEEN(1976,2022)","v":2013},{"$f":"RANDBETWEEN(1976,2022)","v":2011},{"$f":"RANDBETWEEN(1976,2022)","v":1976},{"$f":"RANDBETWEEN(1976,2022)","v":1991},{"$f":"RANDBETWEEN(1976,2022)","v":2015},{"$f":"RANDBETWEEN(1976,2022)","v":1992},{"$f":"RANDBETWEEN(1976,2022)","v":2015},{"$f":"RANDBETWEEN(1976,2022)","v":1990},{"$f":"RANDBETWEEN(1976,2022)","v":2002},{"$f":"RANDBETWEEN(1976,2022)","v":2014},{"$f":"RANDBETWEEN(1976,2022)","v":1983},{"$f":"RANDBETWEEN(1976,2022)","v":2018},{"$f":"RANDBETWEEN(1976,2022)","v":2008},{"$f":"RANDBETWEEN(1976,2022)","v":1998},{"$f":"RANDBETWEEN(1976,2022)","v":1986},{"$f":"RANDBETWEEN(1976,2022)","v":2004},{"$f":"RANDBETWEEN(1976,2022)","v":2019},{"$f":"RANDBETWEEN(1976,2022)","v":1981},{"$f":"RANDBETWEEN(1976,2022)","v":1988},{"$f":"RANDBETWEEN(1976,2022)","v":2002},{"$f":"RANDBETWEEN(1976,2022)","v":2000},{"$f":"RANDBETWEEN(1976,2022)","v":1986},{"$f":"RANDBETWEEN(1976,2022)","v":1998},{"$f":"RANDBETWEEN(1976,2022)","v":1987},{"$f":"RANDBETWEEN(1976,2022)","v":2007},{"$f":"RANDBETWEEN(1976,2022)","v":1981},{"$f":"RANDBETWEEN(1976,2022)","v":2021},{"$f":"RANDBETWEEN(1976,2022)","v":1994},{"$f":"RANDBETWEEN(1976,2022)","v":1989},{"$f":"RANDBETWEEN(1976,2022)","v":1996},{"$f":"RANDBETWEEN(1976,2022)","v":1977},{"$f":"RANDBETWEEN(1976,2022)","v":1999},{"$f":"RANDBETWEEN(1976,2022)","v":1987},{"$f":"RANDBETWEEN(1976,2022)","v":1992},{"$f":"RANDBETWEEN(1976,2022)","v":1989},{"$f":"RANDBETWEEN(1976,2022)","v":1991},{"$f":"RANDBETWEEN(1976,2022)","v":2019},{"$f":"RANDBETWEEN(1976,2022)","v":1995},{"$f":"RANDBETWEEN(1976,2022)","v":1986},{"$f":"RANDBETWEEN(1976,2022)","v":2010},{"$f":"RANDBETWEEN(1976,2022)","v":1991},{"$f":"RANDBETWEEN(1976,2022)","v":2003},{"$f":"RANDBETWEEN(1976,2022)","v":1997},{"$f":"RANDBETWEEN(1976,2022)","v":1984},{"$f":"RANDBETWEEN(1976,2022)","v":2012},{"$f":"RANDBETWEEN(1976,2022)","v":2009},{"$f":"RANDBETWEEN(1976,2022)","v":2008},{"$f":"RANDBETWEEN(1976,2022)","v":2022},{"$f":"RANDBETWEEN(1976,2022)","v":2008},{"$f":"RANDBETWEEN(1976,2022)","v":2013},{"$f":"RANDBETWEEN(1976,2022)","v":2004},{"$f":"RANDBETWEEN(1976,2022)","v":2012},{"$f":"RANDBETWEEN(1976,2022)","v":1986},{"$f":"RANDBETWEEN(1976,2022)","v":2011},{"$f":"RANDBETWEEN(1976,2022)","v":1980},{"$f":"RANDBETWEEN(1976,2022)","v":1994},{"$f":"RANDBETWEEN(1976,2022)","v":1993},{"$f":"RANDBETWEEN(1976,2022)","v":2000},{"$f":"RANDBETWEEN(1976,2022)","v":1977},{"$f":"RANDBETWEEN(1976,2022)","v":1999},{"$f":"RANDBETWEEN(1976,2022)","v":1983},{"$f":"RANDBETWEEN(1976,2022)","v":1987},{"$f":"RANDBETWEEN(1976,2022)","v":1981},{"$f":"RANDBETWEEN(1976,2022)","v":1983},{"$f":"RANDBETWEEN(1976,2022)","v":1987},{"$f":"RANDBETWEEN(1976,2022)","v":1980},{"$f":"RANDBETWEEN(1976,2022)","v":2006},{"$f":"RANDBETWEEN(1976,2022)","v":1999},{"$f":"RANDBETWEEN(1976,2022)","v":2006},{"$f":"RANDBETWEEN(1976,2022)","v":2008},{"$f":"RANDBETWEEN(1976,2022)","v":2001},{"$f":"RANDBETWEEN(1976,2022)","v":2015},{"$f":"RANDBETWEEN(1976,2022)","v":2009},{"$f":"RANDBETWEEN(1976,2022)","v":1979},{"$f":"RANDBETWEEN(1976,2022)","v":1977},{"$f":"RANDBETWEEN(1976,2022)","v":2003},{"$f":"RANDBETWEEN(1976,2022)","v":1979},{"$f":"RANDBETWEEN(1976,2022)","v":2017},{"$f":"RANDBETWEEN(1976,2022)","v":1996},{"$f":"RANDBETWEEN(1976,2022)","v":2017},{"$f":"RANDBETWEEN(1976,2022)","v":2018},{"$f":"RANDBETWEEN(1976,2022)","v":1994},{"$f":"RANDBETWEEN(1976,2022)","v":2020},{"$f":"RANDBETWEEN(1976,2022)","v":2009},{"$f":"RANDBETWEEN(1976,2022)","v":1978},{"$f":"RANDBETWEEN(1976,2022)","v":2007},{"$f":"RANDBETWEEN(1976,2022)","v":1982},{"$f":"RANDBETWEEN(1976,2022)","v":1978}]
[1981,2,0.75,null,1990,3.65,2.07,1.01,0.64,{"v":1.8424999999999998,"d":"1.84"},null,{"$f":"RANDBETWEEN(1976,2022)","v":2001},{"$f":"RANDBETWEEN(1976,2022)","v":2002},{"$f":"RANDBETWEEN(1976,2022)","v":2018},{"$f":"RANDBETWEEN(1976,2022)","v":2011},{"$f":"RANDBETWEEN(1976,2022)","v":2008},{"$f":"RANDBETWEEN(1976,2022)","v":1985},{"$f":"RANDBETWEEN(1976,2022)","v":1997},{"$f":"RANDBETWEEN(1976,2022)","v":1997},{"$f":"RANDBETWEEN(1976,2022)","v":1981},{"$f":"RANDBETWEEN(1976,2022)","v":1981},{"$f":"RANDBETWEEN(1976,2022)","v":2009},{"$f":"RANDBETWEEN(1976,2022)","v":1982},{"$f":"RANDBETWEEN(1976,2022)","v":2006},{"$f":"RANDBETWEEN(1976,2022)","v":2008},{"$f":"RANDBETWEEN(1976,2022)","v":1981},{"$f":"RANDBETWEEN(1976,2022)","v":1993},{"$f":"RANDBETWEEN(1976,2022)","v":2014},{"$f":"RANDBETWEEN(1976,2022)","v":2020},{"$f":"RANDBETWEEN(1976,2022)","v":1982},{"$f":"RANDBETWEEN(1976,2022)","v":2005},{"$f":"RANDBETWEEN(1976,2022)","v":1983},{"$f":"RANDBETWEEN(1976,2022)","v":1988},{"$f":"RANDBETWEEN(1976,2022)","v":1983},{"$f":"RANDBETWEEN(1976,2022)","v":1998},{"$f":"RANDBETWEEN(1976,2022)","v":2006},{"$f":"RANDBETWEEN(1976,2022)","v":2010},{"$f":"RANDBETWEEN(1976,2022)","v":1999},{"$f":"RANDBETWEEN(1976,2022)","v":2022},{"$f":"RANDBETWEEN(1976,2022)","v":1993},{"$f":"RANDBETWEEN(1976,2022)","v":2007},{"$f":"RANDBETWEEN(1976,2022)","v":2000},{"$f":"RANDBETWEEN(1976,2022)","v":2014},{"$f":"RANDBETWEEN(1976,2022)","v":1991},{"$f":"RANDBETWEEN(1976,2022)","v":1977},{"$f":"RANDBETWEEN(1976,2022)","v":2013},{"$f":"RANDBETWEEN(1976,2022)","v":1990},{"$f":"RANDBETWEEN(1976,2022)","v":2014},{"$f":"RANDBETWEEN(1976,2022)","v":2012},{"$f":"RANDBETWEEN(1976,2022)","v":1981},{"$f":"RANDBETWEEN(1976,2022)","v":2003},{"$f":"RANDBETWEEN(1976,2022)","v":1976},{"$f":"RANDBETWEEN(1976,2022)","v":2014},{"$f":"RANDBETWEEN(1976,2022)","v":1984},{"$f":"RANDBETWEEN(1976,2022)","v":2021},{"$f":"RANDBETWEEN(1976,2022)","v":1992},{"$f":"RANDBETWEEN(1976,2022)","v":1984},{"$f":"RANDBETWEEN(1976,2022)","v":2000},{"$f":"RANDBETWEEN(1976,2022)","v":1987},{"$f":"RANDBETWEEN(1976,2022)","v":1987},{"$f":"RANDBETWEEN(1976,2022)","v":2009},{"$f":"RANDBETWEEN(1976,2022)","v":2019},{"$f":"RANDBETWEEN(1976,2022)","v":2011},{"$f":"RANDBETWEEN(1976,2022)","v":1986},{"$f":"RANDBETWEEN(1976,2022)","v":2021},{"$f":"RANDBETWEEN(1976,2022)","v":2005},{"$f":"RANDBETWEEN(1976,2022)","v":2006},{"$f":"RANDBETWEEN(1976,2022)","v":1976},{"$f":"RANDBETWEEN(1976,2022)","v":2006},{"$f":"RANDBETWEEN(1976,2022)","v":1988},{"$f":"RANDBETWEEN(1976,2022)","v":1978},{"$f":"RANDBETWEEN(1976,2022)","v":2004},{"$f":"RANDBETWEEN(1976,2022)","v":2010},{"$f":"RANDBETWEEN(1976,2022)","v":1993},{"$f":"RANDBETWEEN(1976,2022)","v":2008},{"$f":"RANDBETWEEN(1976,2022)","v":2014},{"$f":"RANDBETWEEN(1976,2022)","v":2008},{"$f":"RANDBETWEEN(1976,2022)","v":2015},{"$f":"RANDBETWEEN(1976,2022)","v":1998},{"$f":"RANDBETWEEN(1976,2022)","v":2005},{"$f":"RANDBETWEEN(1976,2022)","v":1992},{"$f":"RANDBETWEEN(1976,2022)","v":2008},{"$f":"RANDBETWEEN(1976,2022)","v":1980},{"$f":"RANDBETWEEN(1976,2022)","v":2021},{"$f":"RANDBETWEEN(1976,2022)","v":2004},{"$f":"RANDBETWEEN(1976,2022)","v":2018},{"$f":"RANDBETWEEN(1976,2022)","v":2008},{"$f":"RANDBETWEEN(1976,2022)","v":1997},{"$f":"RANDBETWEEN(1976,2022)","v":2002},{"$f":"RANDBETWEEN(1976,2022)","v":2005},{"$f":"RANDBETWEEN(1976,2022)","v":1977},{"$f":"RANDBETWEEN(1976,2022)","v":1976},{"$f":"RANDBETWEEN(1976,2022)","v":2021},{"$f":"RANDBETWEEN(1976,2022)","v":2005},{"$f":"RANDBETWEEN(1976,2022)","v":1977},{"$f":"RANDBETWEEN(1976,2022)","v":2011},{"$f":"RANDBETWEEN(1976,2022)","v":2009},{"$f":"RANDBETWEEN(1976,2022)","v":1989},{"$f":"RANDBETWEEN(1976,2022)","v":1990},{"$f":"RANDBETWEEN(1976,2022)","v":2001},{"$f":"RANDBETWEEN(1976,2022)","v":2000},{"$f":"RANDBETWEEN(1976,2022)","v":2017},{"$f":"RANDBETWEEN(1976,2022)","v":2005},{"$f":"RANDBETWEEN(1976,2022)","v":1982},{"$f":"RANDBETWEEN(1976,2022)","v":1982},{"$f":"RANDBETWEEN(1976,2022)","v":2009},{"$f":"RANDBETWEEN(1976,2022)","v":2022},{"$f":"RANDBETWEEN(1976,2022)","v":2013},{"$f":"RANDBETWEEN(1976,2022)","v":1986},{"$f":"RANDBETWEEN(1976,2022)","v":1982},{"$f":"RANDBETWEEN(1976,2022)","v":1995}]
[1981,3,-0.52,null,1991,1.89,2.68,2.49,4.27,{"v":2.8325,"d":"2.83"},null,{"$f":"RANDBETWEEN(1976,2022)","v":1990},{"$f":"RANDBETWEEN(1976,2022)","v":2009},{"$f":"RANDBETWEEN(1976,2022)","v":1989},{"$f":"RANDBETWEEN(1976,2022)","v":2017},{"$f":"RANDBETWEEN(1976,2022)","v":2016},{"$f":"RANDBETWEEN(1976,2022)","v":1986},{"$f":"RANDBETWEEN(1976,2022)","v":2003},{"$f":"RANDBETWEEN(1976,2022)","v":1998},{"$f":"RANDBETWEEN(1976,2022)","v":2007},{"$f":"RANDBETWEEN(1976,2022)","v":1992},{"$f":"RANDBETWEEN(1976,2022)","v":2006},{"$f":"RANDBETWEEN(1976,2022)","v":1988},{"$f":"RANDBETWEEN(1976,2022)","v":2002},{"$f":"RANDBETWEEN(1976,2022)","v":2021},{"$f":"RANDBETWEEN(1976,2022)","v":1998},{"$f":"RANDBETWEEN(1976,2022)","v":1996},{"$f":"RANDBETWEEN(1976,2022)","v":2016},{"$f":"RANDBETWEEN(1976,2022)","v":2021},{"$f":"RANDBETWEEN(1976,2022)","v":1981},{"$f":"RANDBETWEEN(1976,2022)","v":1997},{"$f":"RANDBETWEEN(1976,2022)","v":2009},{"$f":"RANDBETWEEN(1976,2022)","v":1998},{"$f":"RANDBETWEEN(1976,2022)","v":1989},{"$f":"RANDBETWEEN(1976,2022)","v":2000},{"$f":"RANDBETWEEN(1976,2022)","v":1981},{"$f":"RANDBETWEEN(1976,2022)","v":1994},{"$f":"RANDBETWEEN(1976,2022)","v":1989},{"$f":"RANDBETWEEN(1976,2022)","v":1999},{"$f":"RANDBETWEEN(1976,2022)","v":2021},{"$f":"RANDBETWEEN(1976,2022)","v":1987},{"$f":"RANDBETWEEN(1976,2022)","v":2018},{"$f":"RANDBETWEEN(1976,2022)","v":2009},{"$f":"RANDBETWEEN(1976,2022)","v":1976},{"$f":"RANDBETWEEN(1976,2022)","v":1987},{"$f":"RANDBETWEEN(1976,2022)","v":2007},{"$f":"RANDBETWEEN(1976,2022)","v":1993},{"$f":"RANDBETWEEN(1976,2022)","v":1988},{"$f":"RANDBETWEEN(1976,2022)","v":1993},{"$f":"RANDBETWEEN(1976,2022)","v":1991},{"$f":"RANDBETWEEN(1976,2022)","v":1980},{"$f":"RANDBETWEEN(1976,2022)","v":1992},{"$f":"RANDBETWEEN(1976,2022)","v":1979},{"$f":"RANDBETWEEN(1976,2022)","v":1981},{"$f":"RANDBETWEEN(1976,2022)","v":1981},{"$f":"RANDBETWEEN(1976,2022)","v":1989},{"$f":"RANDBETWEEN(1976,2022)","v":1989},{"$f":"RANDBETWEEN(1976,2022)","v":2006},{"$f":"RANDBETWEEN(1976,2022)","v":1991},{"$f":"RANDBETWEEN(1976,2022)","v":2017},{"$f":"RANDBETWEEN(1976,2022)","v":1997},{"$f":"RANDBETWEEN(1976,2022)","v":1980},{"$f":"RANDBETWEEN(1976,2022)","v":1979},{"$f":"RANDBETWEEN(1976,2022)","v":1984},{"$f":"RANDBETWEEN(1976,2022)","v":2013},{"$f":"RANDBETWEEN(1976,2022)","v":1976},{"$f":"RANDBETWEEN(1976,2022)","v":1981},{"$f":"RANDBETWEEN(1976,2022)","v":2022},{"$f":"RANDBETWEEN(1976,2022)","v":2006},{"$f":"RANDBETWEEN(1976,2022)","v":2013},{"$f":"RANDBETWEEN(1976,2022)","v":2007},{"$f":"RANDBETWEEN(1976,2022)","v":2011},{"$f":"RANDBETWEEN(1976,2022)","v":2000},{"$f":"RANDBETWEEN(1976,2022)","v":1986},{"$f":"RANDBETWEEN(1976,2022)","v":2014},{"$f":"RANDBETWEEN(1976,2022)","v":1977},{"$f":"RANDBETWEEN(1976,2022)","v":1986},{"$f":"RANDBETWEEN(1976,2022)","v":2019},{"$f":"RANDBETWEEN(1976,2022)","v":2001},{"$f":"RANDBETWEEN(1976,2022)","v":1999},{"$f":"RANDBETWEEN(1976,2022)","v":2013},{"$f":"RANDBETWEEN(1976,2022)","v":1987},{"$f":"RANDBETWEEN(1976,2022)","v":1997},{"$f":"RANDBETWEEN(1976,2022)","v":1997},{"$f":"RANDBETWEEN(1976,2022)","v":2006},{"$f":"RANDBETWEEN(1976,2022)","v":2011},{"$f":"RANDBETWEEN(1976,2022)","v":2011},{"$f":"RANDBETWEEN(1976,2022)","v":1989},{"$f":"RANDBETWEEN(1976,2022)","v":2001},{"$f":"RANDBETWEEN(1976,2022)","v":2014},{"$f":"RANDBETWEEN(1976,2022)","v":2005},{"$f":"RANDBETWEEN(1976,2022)","v":2007},{"$f":"RANDBETWEEN(1976,2022)","v":1977},{"$f":"RANDBETWEEN(1976,2022)","v":1989},{"$f":"RANDBETWEEN(1976,2022)","v":2010},{"$f":"RANDBETWEEN(1976,2022)","v":2015},{"$f":"RANDBETWEEN(1976,2022)","v":2012},{"$f":"RANDBETWEEN(1976,2022)","v":1998},{"$f":"RANDBETWEEN(1976,2022)","v":2001},{"$f":"RANDBETWEEN(1976,2022)","v":2001},{"$f":"RANDBETWEEN(1976,2022)","v":2004},{"$f":"RANDBETWEEN(1976,2022)","v":1985},{"$f":"RANDBETWEEN(1976,2022)","v":2014},{"$f":"RANDBETWEEN(1976,2022)","v":1984},{"$f":"RANDBETWEEN(1976,2022)","v":1988},{"$f":"RANDBETWEEN(1976,2022)","v":1998},{"$f":"RANDBETWEEN(1976,2022)","v":1996},{"$f":"RANDBETWEEN(1976,2022)","v":2006},{"$f":"RANDBETWEEN(1976,2022)","v":2003},{"$f":"RANDBETWEEN(1976,2022)","v":1980},{"$f":"RANDBETWEEN(1976,2022)","v":1978}]
[1981,4,1.38,null,1992,3.26,3.08,4.05,2.87,{"v":3.3150000000000004,"d":"3.32"},null,{"$f":"RANDBETWEEN(1976,2022)","v":1989},{"$f":"RANDBETWEEN(1976,2022)","v":1981},{"$f":"RANDBETWEEN(1976,2022)","v":2002},{"$f":"RANDBETWEEN(1976,2022)","v":2018},{"$f":"RANDBETWEEN(1976,2022)","v":1993},{"$f":"RANDBETWEEN(1976,2022)","v":1986},{"$f":"RANDBETWEEN(1976,2022)","v":2013},{"$f":"RANDBETWEEN(1976,2022)","v":2009},{"$f":"RANDBETWEEN(1976,2022)","v":1986},{"$f":"RANDBETWEEN(1976,2022)","v":1995},{"$f":"RANDBETWEEN(1976,2022)","v":2005},{"$f":"RANDBETWEEN(1976,2022)","v":1986},{"$f":"RANDBETWEEN(1976,2022)","v":2013},{"$f":"RANDBETWEEN(1976,2022)","v":1983},{"$f":"RANDBETWEEN(1976,2022)","v":2006},{"$f":"RANDBETWEEN(1976,2022)","v":1978},{"$f":"RANDBETWEEN(1976,2022)","v":1978},{"$f":"RANDBETWEEN(1976,2022)","v":1976},{"$f":"RANDBETWEEN(1976,2022)","v":2002},{"$f":"RANDBETWEEN(1976,2022)","v":1986},{"$f":"RANDBETWEEN(1976,2022)","v":1976},{"$f":"RANDBETWEEN(1976,2022)","v":2015},{"$f":"RANDBETWEEN(1976,2022)","v":1981},{"$f":"RANDBETWEEN(1976,2022)","v":2015},{"$f":"RANDBETWEEN(1976,2022)","v":2005},{"$f":"RANDBETWEEN(1976,2022)","v":2019},{"$f":"RANDBETWEEN(1976,2022)","v":2002},{"$f":"RANDBETWEEN(1976,2022)","v":2002},{"$f":"RANDBETWEEN(1976,2022)","v":1993},{"$f":"RANDBETWEEN(1976,2022)","v":2002},{"$f":"RANDBETWEEN(1976,2022)","v":1992},{"$f":"RANDBETWEEN(1976,2022)","v":2014},{"$f":"RANDBETWEEN(1976,2022)","v":1982},{"$f":"RANDBETWEEN(1976,2022)","v":2011},{"$f":"RANDBETWEEN(1976,2022)","v":1979},{"$f":"RANDBETWEEN(1976,2022)","v":1994},{"$f":"RANDBETWEEN(1976,2022)","v":1977},{"$f":"RANDBETWEEN(1976,2022)","v":1991},{"$f":"RANDBETWEEN(1976,2022)","v":1989},{"$f":"RANDBETWEEN(1976,2022)","v":2008},{"$f":"RANDBETWEEN(1976,2022)","v":1989},{"$f":"RANDBETWEEN(1976,2022)","v":1985},{"$f":"RANDBETWEEN(1976,2022)","v":1997},{"$f":"RANDBETWEEN(1976,2022)","v":2004},{"$f":"RANDBETWEEN(1976,2022)","v":2002},{"$f":"RANDBETWEEN(1976,2022)","v":2005},{"$f":"RANDBETWEEN(1976,2022)","v":2009},{"$f":"RANDBETWEEN(1976,2022)","v":2018},{"$f":"RANDBETWEEN(1976,2022)","v":2009},{"$f":"RANDBETWEEN(1976,2022)","v":1981},{"$f":"RANDBETWEEN(1976,2022)","v":1980},{"$f":"RANDBETWEEN(1976,2022)","v":2022},{"$f":"RANDBETWEEN(1976,2022)","v":2001},{"$f":"RANDBETWEEN(1976,2022)","v":2004},{"$f":"RANDBETWEEN(1976,2022)","v":1979},{"$f":"RANDBETWEEN(1976,2022)","v":1997},{"$f":"RANDBETWEEN(1976,2022)","v":2008},{"$f":"RANDBETWEEN(1976,2022)","v":1999},{"$f":"RANDBETWEEN(1976,2022)","v":1984},{"$f":"RANDBETWEEN(1976,2022)","v":1977},{"$f":"RANDBETWEEN(1976,2022)","v":2021},{"$f":"RANDBETWEEN(1976,2022)","v":2019},{"$f":"RANDBETWEEN(1976,2022)","v":1984},{"$f":"RANDBETWEEN(1976,2022)","v":2016},{"$f":"RANDBETWEEN(1976,2022)","v":2014},{"$f":"RANDBETWEEN(1976,2022)","v":2009},{"$f":"RANDBETWEEN(1976,2022)","v":2001},{"$f":"RANDBETWEEN(1976,2022)","v":1990},{"$f":"RANDBETWEEN(1976,2022)","v":2010},{"$f":"RANDBETWEEN(1976,2022)","v":1995},{"$f":"RANDBETWEEN(1976,2022)","v":1984},{"$f":"RANDBETWEEN(1976,2022)","v":2021},{"$f":"RANDBETWEEN(1976,2022)","v":1998},{"$f":"RANDBETWEEN(1976,2022)","v":2020},{"$f":"RANDBETWEEN(1976,2022)","v":2004},{"$f":"RANDBETWEEN(1976,2022)","v":2013},{"$f":"RANDBETWEEN(1976,2022)","v":2021},{"$f":"RANDBETWEEN(1976,2022)","v":1991},{"$f":"RANDBETWEEN(1976,2022)","v":2013},{"$f":"RANDBETWEEN(1976,2022)","v":2017},{"$f":"RANDBETWEEN(1976,2022)","v":2001},{"$f":"RANDBETWEEN(1976,2022)","v":1999},{"$f":"RANDBETWEEN(1976,2022)","v":1995},{"$f":"RANDBETWEEN(1976,2022)","v":2017},{"$f":"RANDBETWEEN(1976,2022)","v":1996},{"$f":"RANDBETWEEN(1976,2022)","v":1982},{"$f":"RANDBETWEEN(1976,2022)","v":1977},{"$f":"RANDBETWEEN(1976,2022)","v":2003},{"$f":"RANDBETWEEN(1976,2022)","v":1995},{"$f":"RANDBETWEEN(1976,2022)","v":1994},{"$f":"RANDBETWEEN(1976,2022)","v":1990},{"$f":"RANDBETWEEN(1976,2022)","v":1979},{"$f":"RANDBETWEEN(1976,2022)","v":1982},{"$f":"RANDBETWEEN(1976,2022)","v":1989},{"$f":"RANDBETWEEN(1976,2022)","v":1998},{"$f":"RANDBETWEEN(1976,2022)","v":2016},{"$f":"RANDBETWEEN(1976,2022)","v":2012},{"$f":"RANDBETWEEN(1976,2022)","v":1978},{"$f":"RANDBETWEEN(1976,2022)","v":2008},{"$f":"RANDBETWEEN(1976,2022)","v":2018}]
[1982,1,6.56,null,1993,3.31,3.74,3.83,4.25,{"v":3.7825,"d":"3.78"},null,{"$f":"RANDBETWEEN(1976,2022)","v":1978},{"$f":"RANDBETWEEN(1976,2022)","v":2007},{"$f":"RANDBETWEEN(1976,2022)","v":2002},{"$f":"RANDBETWEEN(1976,2022)","v":1996},{"$f":"RANDBETWEEN(1976,2022)","v":1983},{"$f":"RANDBETWEEN(1976,2022)","v":2019},{"$f":"RANDBETWEEN(1976,2022)","v":1982},{"$f":"RANDBETWEEN(1976,2022)","v":1992},{"$f":"RANDBETWEEN(1976,2022)","v":1976},{"$f":"RANDBETWEEN(1976,2022)","v":1988},{"$f":"RANDBETWEEN(1976,2022)","v":2016},{"$f":"RANDBETWEEN(1976,2022)","v":2001},{"$f":"RANDBETWEEN(1976,2022)","v":2001},{"$f":"RANDBETWEEN(1976,2022)","v":2020},{"$f":"RANDBETWEEN(1976,2022)","v":2019},{"$f":"RANDBETWEEN(1976,2022)","v":2021},{"$f":"RANDBETWEEN(1976,2022)","v":2020},{"$f":"RANDBETWEEN(1976,2022)","v":1991},{"$f":"RANDBETWEEN(1976,2022)","v":2004},{"$f":"RANDBETWEEN(1976,2022)","v":1979},{"$f":"RANDBETWEEN(1976,2022)","v":2015},{"$f":"RANDBETWEEN(1976,2022)","v":1981},{"$f":"RANDBETWEEN(1976,2022)","v":1987},{"$f":"RANDBETWEEN(1976,2022)","v":2016},{"$f":"RANDBETWEEN(1976,2022)","v":2008},{"$f":"RANDBETWEEN(1976,2022)","v":1985},{"$f":"RANDBETWEEN(1976,2022)","v":2002},{"$f":"RANDBETWEEN(1976,2022)","v":2008},{"$f":"RANDBETWEEN(1976,2022)","v":1976},{"$f":"RANDBETWEEN(1976,2022)","v":1986},{"$f":"RANDBETWEEN(1976,2022)","v":2015},{"$f":"RANDBETWEEN(1976,2022)","v":1989},{"$f":"RANDBETWEEN(1976,2022)","v":1995},{"$f":"RANDBETWEEN(1976,2022)","v":1990},{"$f":"RANDBETWEEN(1976,2022)","v":1999},{"$f":"RANDBETWEEN(1976,2022)","v":1978},{"$f":"RANDBETWEEN(1976,2022)","v":1996},{"$f":"RANDBETWEEN(1976,2022)","v":2014},{"$f":"RANDBETWEEN(1976,2022)","v":2008},{"$f":"RANDBETWEEN(1976,2022)","v":1982},{"$f":"RANDBETWEEN(1976,2022)","v":2022},{"$f":"RANDBETWEEN(1976,2022)","v":1983},{"$f":"RANDBETWEEN(1976,2022)","v":1976},{"$f":"RANDBETWEEN(1976,2022)","v":2014},{"$f":"RANDBETWEEN(1976,2022)","v":2001},{"$f":"RANDBETWEEN(1976,2022)","v":2005},{"$f":"RANDBETWEEN(1976,2022)","v":2018},{"$f":"RANDBETWEEN(1976,2022)","v":1989},{"$f":"RANDBETWEEN(1976,2022)","v":2010},{"$f":"RANDBETWEEN(1976,2022)","v":1987},{"$f":"RANDBETWEEN(1976,2022)","v":1981},{"$f":"RANDBETWEEN(1976,2022)","v":2021},{"$f":"RANDBETWEEN(1976,2022)","v":1982},{"$f":"RANDBETWEEN(1976,2022)","v":2009},{"$f":"RANDBETWEEN(1976,2022)","v":1991},{"$f":"RANDBETWEEN(1976,2022)","v":1977},{"$f":"RANDBETWEEN(1976,2022)","v":1979},{"$f":"RANDBETWEEN(1976,2022)","v":1990},{"$f":"RANDBETWEEN(1976,2022)","v":2019},{"$f":"RANDBETWEEN(1976,2022)","v":1979},{"$f":"RANDBETWEEN(1976,2022)","v":2000},{"$f":"RANDBETWEEN(1976,2022)","v":2009},{"$f":"RANDBETWEEN(1976,2022)","v":1993},{"$f":"RANDBETWEEN(1976,2022)","v":2002},{"$f":"RANDBETWEEN(1976,2022)","v":2000},{"$f":"RANDBETWEEN(1976,2022)","v":1997},{"$f":"RANDBETWEEN(1976,2022)","v":2014},{"$f":"RANDBETWEEN(1976,2022)","v":2015},{"$f":"RANDBETWEEN(1976,2022)","v":1995},{"$f":"RANDBETWEEN(1976,2022)","v":2019},{"$f":"RANDBETWEEN(1976,2022)","v":2014},{"$f":"RANDBETWEEN(1976,2022)","v":1989},{"$f":"RANDBETWEEN(1976,2022)","v":1977},{"$f":"RANDBETWEEN(1976,2022)","v":2011},{"$f":"RANDBETWEEN(1976,2022)","v":2020},{"$f":"RANDBETWEEN(1976,2022)","v":1985},{"$f":"RANDBETWEEN(1976,2022)","v":2022},{"$f":"RANDBETWEEN(1976,2022)","v":1997},{"$f":"RANDBETWEEN(1976,2022)","v":1987},{"$f":"RANDBETWEEN(1976,2022)","v":1996},{"$f":"RANDBETWEEN(1976,2022)","v":2016},{"$f":"RANDBETWEEN(1976,2022)","v":1978},{"$f":"RANDBETWEEN(1976,2022)","v":2002},{"$f":"RANDBETWEEN(1976,2022)","v":2019},{"$f":"RANDBETWEEN(1976,2022)","v":1990},{"$f":"RANDBETWEEN(1976,2022)","v":2019},{"$f":"RANDBETWEEN(1976,2022)","v":1983},{"$f":"RANDBETWEEN(1976,2022)","v":2014},{"$f":"RANDBETWEEN(1976,2022)","v":1976},{"$f":"RANDBETWEEN(1976,2022)","v":1996},{"$f":"RANDBETWEEN(1976,2022)","v":2016},{"$f":"RANDBETWEEN(1976,2022)","v":1978},{"$f":"RANDBETWEEN(1976,2022)","v":1990},{"$f":"RANDBETWEEN(1976,2022)","v":2006},{"$f":"RANDBETWEEN(1976,2022)","v":1980},{"$f":"RANDBETWEEN(1976,2022)","v":1977},{"$f":"RANDBETWEEN(1976,2022)","v":2009},{"$f":"RANDBETWEEN(1976,2022)","v":2020},{"$f":"RANDBETWEEN(1976,2022)","v":2003},{"$f":"RANDBETWEEN(1976,2022)","v":1996}]
[1982,2,4.08,null,1994,3.95,4.85,4.24,3.48,4.13,null,{"$f":"RANDBETWEEN(1976,2022)","v":1990},{"$f":"RANDBETWEEN(1976,2022)","v":2022},{"$f":"RANDBETWEEN(1976,2022)","v":1983},{"$f":"RANDBETWEEN(1976,2022)","v":1978},{"$f":"RANDBETWEEN(1976,2022)","v":2022},{"$f":"RANDBETWEEN(1976,2022)","v":2022},{"$f":"RANDBETWEEN(1976,2022)","v":1983},{"$f":"RANDBETWEEN(1976,2022)","v":2011},{"$f":"RANDBETWEEN(1976,2022)","v":2021},{"$f":"RANDBETWEEN(1976,2022)","v":2011},{"$f":"RANDBETWEEN(1976,2022)","v":1986},{"$f":"RANDBETWEEN(1976,2022)","v":2006},{"$f":"RANDBETWEEN(1976,2022)","v":1986},{"$f":"RANDBETWEEN(1976,2022)","v":1996},{"$f":"RANDBETWEEN(1976,2022)","v":2022},{"$f":"RANDBETWEEN(1976,2022)","v":2000},{"$f":"RANDBETWEEN(1976,2022)","v":1994},{"$f":"RANDBETWEEN(1976,2022)","v":2003},{"$f":"RANDBETWEEN(1976,2022)","v":1980},{"$f":"RANDBETWEEN(1976,2022)","v":2020},{"$f":"RANDBETWEEN(1976,2022)","v":2008},{"$f":"RANDBETWEEN(1976,2022)","v":1992},{"$f":"RANDBETWEEN(1976,2022)","v":2022},{"$f":"RANDBETWEEN(1976,2022)","v":1986},{"$f":"RANDBETWEEN(1976,2022)","v":1989},{"$f":"RANDBETWEEN(1976,2022)","v":2007},{"$f":"RANDBETWEEN(1976,2022)","v":2013},{"$f":"RANDBETWEEN(1976,2022)","v":2003},{"$f":"RANDBETWEEN(1976,2022)","v":1985},{"$f":"RANDBETWEEN(1976,2022)","v":1987},{"$f":"RANDBETWEEN(1976,2022)","v":1991},{"$f":"RANDBETWEEN(1976,2022)","v":2019},{"$f":"RANDBETWEEN(1976,2022)","v":1989},{"$f":"RANDBETWEEN(1976,2022)","v":2003},{"$f":"RANDBETWEEN(1976,2022)","v":2002},{"$f":"RANDBETWEEN(1976,2022)","v":1981},{"$f":"RANDBETWEEN(1976,2022)","v":2013},{"$f":"RANDBETWEEN(1976,2022)","v":1982},{"$f":"RANDBETWEEN(1976,2022)","v":2002},{"$f":"RANDBETWEEN(1976,2022)","v":2016},{"$f":"RANDBETWEEN(1976,2022)","v":2020},{"$f":"RANDBETWEEN(1976,2022)","v":1981},{"$f":"RANDBETWEEN(1976,2022)","v":1993},{"$f":"RANDBETWEEN(1976,2022)","v":1978},{"$f":"RANDBETWEEN(1976,2022)","v":2019},{"$f":"RANDBETWEEN(1976,2022)","v":1981},{"$f":"RANDBETWEEN(1976,2022)","v":1998},{"$f":"RANDBETWEEN(1976,2022)","v":2016},{"$f":"RANDBETWEEN(1976,2022)","v":2010},{"$f":"RANDBETWEEN(1976,2022)","v":2017},{"$f":"RANDBETWEEN(1976,2022)","v":2013},{"$f":"RANDBETWEEN(1976,2022)","v":1981},{"$f":"RANDBETWEEN(1976,2022)","v":1977},{"$f":"RANDBETWEEN(1976,2022)","v":2010},{"$f":"RANDBETWEEN(1976,2022)","v":2004},{"$f":"RANDBETWEEN(1976,2022)","v":2000},{"$f":"RANDBETWEEN(1976,2022)","v":1990},{"$f":"RANDBETWEEN(1976,2022)","v":1979},{"$f":"RANDBETWEEN(1976,2022)","v":2004},{"$f":"RANDBETWEEN(1976,2022)","v":1993},{"$f":"RANDBETWEEN(1976,2022)","v":1988},{"$f":"RANDBETWEEN(1976,2022)","v":1998},{"$f":"RANDBETWEEN(1976,2022)","v":2004},{"$f":"RANDBETWEEN(1976,2022)","v":1976},{"$f":"RANDBETWEEN(1976,2022)","v":2020},{"$f":"RANDBETWEEN(1976,2022)","v":1990},{"$f":"RANDBETWEEN(1976,2022)","v":1977},{"$f":"RANDBETWEEN(1976,2022)","v":1985},{"$f":"RANDBETWEEN(1976,2022)","v":1982},{"$f":"RANDBETWEEN(1976,2022)","v":2004},{"$f":"RANDBETWEEN(1976,2022)","v":1988},{"$f":"RANDBETWEEN(1976,2022)","v":1983},{"$f":"RANDBETWEEN(1976,2022)","v":1994},{"$f":"RANDBETWEEN(1976,2022)","v":2022},{"$f":"RANDBETWEEN(1976,2022)","v":2012},{"$f":"RANDBETWEEN(1976,2022)","v":1988},{"$f":"RANDBETWEEN(1976,2022)","v":2010},{"$f":"RANDBETWEEN(1976,2022)","v":2013},{"$f":"RANDBETWEEN(1976,2022)","v":2008},{"$f":"RANDBETWEEN(1976,2022)","v":2000},{"$f":"RANDBETWEEN(1976,2022)","v":2005},{"$f":"RANDBETWEEN(1976,2022)","v":1988},{"$f":"RANDBETWEEN(1976,2022)","v":2018},{"$f":"RANDBETWEEN(1976,2022)","v":2000},{"$f":"RANDBETWEEN(1976,2022)","v":2019},{"$f":"RANDBETWEEN(1976,2022)","v":2015},{"$f":"RANDBETWEEN(1976,2022)","v":1983},{"$f":"RANDBETWEEN(1976,2022)","v":2003},{"$f":"RANDBETWEEN(1976,2022)","v":2015},{"$f":"RANDBETWEEN(1976,2022)","v":1987},{"$f":"RANDBETWEEN(1976,2022)","v":2020},{"$f":"RANDBETWEEN(1976,2022)","v":2020},{"$f":"RANDBETWEEN(1976,2022)","v":1997},{"$f":"RANDBETWEEN(1976,2022)","v":2001},{"$f":"RANDBETWEEN(1976,2022)","v":1987},{"$f":"RANDBETWEEN(1976,2022)","v":1977},{"$f":"RANDBETWEEN(1976,2022)","v":1977},{"$f":"RANDBETWEEN(1976,2022)","v":1992},{"$f":"RANDBETWEEN(1976,2022)","v":2004},{"$f":"RANDBETWEEN(1976,2022)","v":1993}]
[1982,3,2.13,null,1995,{"v":3.6,"d":"3.60"},3.83,4.94,6.09,{"v":4.615,"d":"4.62"},null,{"$f":"RANDBETWEEN(1976,2022)","v":2004},{"$f":"RANDBETWEEN(1976,2022)","v":1984},{"$f":"RANDBETWEEN(1976,2022)","v":1991},{"$f":"RANDBETWEEN(1976,2022)","v":2017},{"$f":"RANDBETWEEN(1976,2022)","v":2016},{"$f":"RANDBETWEEN(1976,2022)","v":1996},{"$f":"RANDBETWEEN(1976,2022)","v":2002},{"$f":"RANDBETWEEN(1976,2022)","v":2009},{"$f":"RANDBETWEEN(1976,2022)","v":2014},{"$f":"RANDBETWEEN(1976,2022)","v":2013},{"$f":"RANDBETWEEN(1976,2022)","v":2006},{"$f":"RANDBETWEEN(1976,2022)","v":1979},{"$f":"RANDBETWEEN(1976,2022)","v":2018},{"$f":"RANDBETWEEN(1976,2022)","v":2010},{"$f":"RANDBETWEEN(1976,2022)","v":1993},{"$f":"RANDBETWEEN(1976,2022)","v":1988},{"$f":"RANDBETWEEN(1976,2022)","v":1990},{"$f":"RANDBETWEEN(1976,2022)","v":2013},{"$f":"RANDBETWEEN(1976,2022)","v":2004},{"$f":"RANDBETWEEN(1976,2022)","v":2013},{"$f":"RANDBETWEEN(1976,2022)","v":2007},{"$f":"RANDBETWEEN(1976,2022)","v":2015},{"$f":"RANDBETWEEN(1976,2022)","v":2017},{"$f":"RANDBETWEEN(1976,2022)","v":1982},{"$f":"RANDBETWEEN(1976,2022)","v":1999},{"$f":"RANDBETWEEN(1976,2022)","v":1986},{"$f":"RANDBETWEEN(1976,2022)","v":2001},{"$f":"RANDBETWEEN(1976,2022)","v":2005},{"$f":"RANDBETWEEN(1976,2022)","v":2015},{"$f":"RANDBETWEEN(1976,2022)","v":1977},{"$f":"RANDBETWEEN(1976,2022)","v":2015},{"$f":"RANDBETWEEN(1976,2022)","v":2012},{"$f":"RANDBETWEEN(1976,2022)","v":1992},{"$f":"RANDBETWEEN(1976,2022)","v":2022},{"$f":"RANDBETWEEN(1976,2022)","v":1987},{"$f":"RANDBETWEEN(1976,2022)","v":1986},{"$f":"RANDBETWEEN(1976,2022)","v":2009},{"$f":"RANDBETWEEN(1976,2022)","v":2011},{"$f":"RANDBETWEEN(1976,2022)","v":1995},{"$f":"RANDBETWEEN(1976,2022)","v":2018},{"$f":"RANDBETWEEN(1976,2022)","v":2003},{"$f":"RANDBETWEEN(1976,2022)","v":1976},{"$f":"RANDBETWEEN(1976,2022)","v":1993},{"$f":"RANDBETWEEN(1976,2022)","v":2020},{"$f":"RANDBETWEEN(1976,2022)","v":1985},{"$f":"RANDBETWEEN(1976,2022)","v":1986},{"$f":"RANDBETWEEN(1976,2022)","v":1999},{"$f":"RANDBETWEEN(1976,2022)","v":2001},{"$f":"RANDBETWEEN(1976,2022)","v":2013},{"$f":"RANDBETWEEN(1976,2022)","v":2013},{"$f":"RANDBETWEEN(1976,2022)","v":1994},{"$f":"RANDBETWEEN(1976,2022)","v":2018},{"$f":"RANDBETWEEN(1976,2022)","v":1997},{"$f":"RANDBETWEEN(1976,2022)","v":1995},{"$f":"RANDBETWEEN(1976,2022)","v":2016},{"$f":"RANDBETWEEN(1976,2022)","v":2004},{"$f":"RANDBETWEEN(1976,2022)","v":1985},{"$f":"RANDBETWEEN(1976,2022)","v":2015},{"$f":"RANDBETWEEN(1976,2022)","v":1993},{"$f":"RANDBETWEEN(1976,2022)","v":1984},{"$f":"RANDBETWEEN(1976,2022)","v":1978},{"$f":"RANDBETWEEN(1976,2022)","v":2013},{"$f":"RANDBETWEEN(1976,2022)","v":1991},{"$f":"RANDBETWEEN(1976,2022)","v":1985},{"$f":"RANDBETWEEN(1976,2022)","v":1980},{"$f":"RANDBETWEEN(1976,2022)","v":2021},{"$f":"RANDBETWEEN(1976,2022)","v":1999},{"$f":"RANDBETWEEN(1976,2022)","v":2004},{"$f":"RANDBETWEEN(1976,2022)","v":1992},{"$f":"RANDBETWEEN(1976,2022)","v":1986},{"$f":"RANDBETWEEN(1976,2022)","v":2001},{"$f":"RANDBETWEEN(1976,2022)","v":1989},{"$f":"RANDBETWEEN(1976,2022)","v":1978},{"$f":"RANDBETWEEN(1976,2022)","v":1976},{"$f":"RANDBETWEEN(1976,2022)","v":1984},{"$f":"RANDBETWEEN(1976,2022)","v":1997},{"$f":"RANDBETWEEN(1976,2022)","v":1983},{"$f":"RANDBETWEEN(1976,2022)","v":1979},{"$f":"RANDBETWEEN(1976,2022)","v":2014},{"$f":"RANDBETWEEN(1976,2022)","v":2019},{"$f":"RANDBETWEEN(1976,2022)","v":2010},{"$f":"RANDBETWEEN(1976,2022)","v":1976},{"$f":"RANDBETWEEN(1976,2022)","v":2019},{"$f":"RANDBETWEEN(1976,2022)","v":1995},{"$f":"RANDBETWEEN(1976,2022)","v":2007},{"$f":"RANDBETWEEN(1976,2022)","v":2017},{"$f":"RANDBETWEEN(1976,2022)","v":1983},{"$f":"RANDBETWEEN(1976,2022)","v":2007},{"$f":"RANDBETWEEN(1976,2022)","v":2019},{"$f":"RANDBETWEEN(1976,2022)","v":1983},{"$f":"RANDBETWEEN(1976,2022)","v":1977},{"$f":"RANDBETWEEN(1976,2022)","v":1979},{"$f":"RANDBETWEEN(1976,2022)","v":1980},{"$f":"RANDBETWEEN(1976,2022)","v":1988},{"$f":"RANDBETWEEN(1976,2022)","v":2010},{"$f":"RANDBETWEEN(1976,2022)","v":2009},{"$f":"RANDBETWEEN(1976,2022)","v":1996},{"$f":"RANDBETWEEN(1976,2022)","v":2000},{"$f":"RANDBETWEEN(1976,2022)","v":1992},{"$f":"RANDBETWEEN(1976,2022)","v":2011}]
[1982,4,2.56,null,1996,{"v":6.8,"d":"6.80"},5.22,4.32,4.14,5.12,null,{"$f":"RANDBETWEEN(1976,2022)","v":2022},{"$f":"RANDBETWEEN(1976,2022)","v":2017},{"$f":"RANDBETWEEN(1976,2022)","v":1997},{"$f":"RANDBETWEEN(1976,2022)","v":2019},{"$f":"RANDBETWEEN(1976,2022)","v":1978},{"$f":"RANDBETWEEN(1976,2022)","v":2016},{"$f":"RANDBETWEEN(1976,2022)","v":1985},{"$f":"RANDBETWEEN(1976,2022)","v":2001},{"$f":"RANDBETWEEN(1976,2022)","v":2014},{"$f":"RANDBETWEEN(1976,2022)","v":1984},{"$f":"RANDBETWEEN(1976,2022)","v":1991},{"$f":"RANDBETWEEN(1976,2022)","v":2013},{"$f":"RANDBETWEEN(1976,2022)","v":2019},{"$f":"RANDBETWEEN(1976,2022)","v":1995},{"$f":"RANDBETWEEN(1976,2022)","v":1987},{"$f":"RANDBETWEEN(1976,2022)","v":1990},{"$f":"RANDBETWEEN(1976,2022)","v":1979},{"$f":"RANDBETWEEN(1976,2022)","v":2018},{"$f":"RANDBETWEEN(1976,2022)","v":2014},{"$f":"RANDBETWEEN(1976,2022)","v":1994},{"$f":"RANDBETWEEN(1976,2022)","v":2022},{"$f":"RANDBETWEEN(1976,2022)","v":1996},{"$f":"RANDBETWEEN(1976,2022)","v":1984},{"$f":"RANDBETWEEN(1976,2022)","v":2007},{"$f":"RANDBETWEEN(1976,2022)","v":1995},{"$f":"RANDBETWEEN(1976,2022)","v":2003},{"$f":"RANDBETWEEN(1976,2022)","v":1981},{"$f":"RANDBETWEEN(1976,2022)","v":2009},{"$f":"RANDBETWEEN(1976,2022)","v":1995},{"$f":"RANDBETWEEN(1976,2022)","v":2022},{"$f":"RANDBETWEEN(1976,2022)","v":1985},{"$f":"RANDBETWEEN(1976,2022)","v":2017},{"$f":"RANDBETWEEN(1976,2022)","v":2002},{"$f":"RANDBETWEEN(1976,2022)","v":1985},{"$f":"RANDBETWEEN(1976,2022)","v":1996},{"$f":"RANDBETWEEN(1976,2022)","v":1999},{"$f":"RANDBETWEEN(1976,2022)","v":1995},{"$f":"RANDBETWEEN(1976,2022)","v":2009},{"$f":"RANDBETWEEN(1976,2022)","v":2013},{"$f":"RANDBETWEEN(1976,2022)","v":2022},{"$f":"RANDBETWEEN(1976,2022)","v":2002},{"$f":"RANDBETWEEN(1976,2022)","v":1982},{"$f":"RANDBETWEEN(1976,2022)","v":1990},{"$f":"RANDBETWEEN(1976,2022)","v":1994},{"$f":"RANDBETWEEN(1976,2022)","v":2009},{"$f":"RANDBETWEEN(1976,2022)","v":1984},{"$f":"RANDBETWEEN(1976,2022)","v":2005},{"$f":"RANDBETWEEN(1976,2022)","v":2005},{"$f":"RANDBETWEEN(1976,2022)","v":2005},{"$f":"RANDBETWEEN(1976,2022)","v":1994},{"$f":"RANDBETWEEN(1976,2022)","v":1976},{"$f":"RANDBETWEEN(1976,2022)","v":2012},{"$f":"RANDBETWEEN(1976,2022)","v":2011},{"$f":"RANDBETWEEN(1976,2022)","v":1981},{"$f":"RANDBETWEEN(1976,2022)","v":1981},{"$f":"RANDBETWEEN(1976,2022)","v":2006},{"$f":"RANDBETWEEN(1976,2022)","v":1993},{"$f":"RANDBETWEEN(1976,2022)","v":1995},{"$f":"RANDBETWEEN(1976,2022)","v":2015},{"$f":"RANDBETWEEN(1976,2022)","v":2021},{"$f":"RANDBETWEEN(1976,2022)","v":1992},{"$f":"RANDBETWEEN(1976,2022)","v":1976},{"$f":"RANDBETWEEN(1976,2022)","v":2003},{"$f":"RANDBETWEEN(1976,2022)","v":1978},{"$f":"RANDBETWEEN(1976,2022)","v":1980},{"$f":"RANDBETWEEN(1976,2022)","v":1984},{"$f":"RANDBETWEEN(1976,2022)","v":1983},{"$f":"RANDBETWEEN(1976,2022)","v":1984},{"$f":"RANDBETWEEN(1976,2022)","v":1992},{"$f":"RANDBETWEEN(1976,2022)","v":1978},{"$f":"RANDBETWEEN(1976,2022)","v":2001},{"$f":"RANDBETWEEN(1976,2022)","v":1986},{"$f":"RANDBETWEEN(1976,2022)","v":1976},{"$f":"RANDBETWEEN(1976,2022)","v":1988},{"$f":"RANDBETWEEN(1976,2022)","v":1980},{"$f":"RANDBETWEEN(1976,2022)","v":2011},{"$f":"RANDBETWEEN(1976,2022)","v":1997},{"$f":"RANDBETWEEN(1976,2022)","v":2022},{"$f":"RANDBETWEEN(1976,2022)","v":2013},{"$f":"RANDBETWEEN(1976,2022)","v":1996},{"$f":"RANDBETWEEN(1976,2022)","v":2007},{"$f":"RANDBETWEEN(1976,2022)","v":2016},{"$f":"RANDBETWEEN(1976,2022)","v":1990},{"$f":"RANDBETWEEN(1976,2022)","v":2017},{"$f":"RANDBETWEEN(1976,2022)","v":2000},{"$f":"RANDBETWEEN(1976,2022)","v":1990},{"$f":"RANDBETWEEN(1976,2022)","v":1993},{"$f":"RANDBETWEEN(1976,2022)","v":1995},{"$f":"RANDBETWEEN(1976,2022)","v":2004},{"$f":"RANDBETWEEN(1976,2022)","v":1995},{"$f":"RANDBETWEEN(1976,2022)","v":1986},{"$f":"RANDBETWEEN(1976,2022)","v":1989},{"$f":"RANDBETWEEN(1976,2022)","v":1989},{"$f":"RANDBETWEEN(1976,2022)","v":1994},{"$f":"RANDBETWEEN(1976,2022)","v":2021},{"$f":"RANDBETWEEN(1976,2022)","v":2006},{"$f":"RANDBETWEEN(1976,2022)","v":2021},{"$f":"RANDBETWEEN(1976,2022)","v":2017},{"$f":"RANDBETWEEN(1976,2022)","v":2015},{"$f":"RANDBETWEEN(1976,2022)","v":1993}]
[1983,1,4.39,null,1997,3.93,4.46,5.54,{"v":5.7,"d":"5.70"},{"v":4.9075,"d":"4.91"},null,{"$f":"RANDBETWEEN(1976,2022)","v":2015},{"$f":"RANDBETWEEN(1976,2022)","v":1995},{"$f":"RANDBETWEEN(1976,2022)","v":1991},{"$f":"RANDBETWEEN(1976,2022)","v":1986},{"$f":"RANDBETWEEN(1976,2022)","v":2017},{"$f":"RANDBETWEEN(1976,2022)","v":1997},{"$f":"RANDBETWEEN(1976,2022)","v":1977},{"$f":"RANDBETWEEN(1976,2022)","v":2009},{"$f":"RANDBETWEEN(1976,2022)","v":1993},{"$f":"RANDBETWEEN(1976,2022)","v":2018},{"$f":"RANDBETWEEN(1976,2022)","v":2014},{"$f":"RANDBETWEEN(1976,2022)","v":1986},{"$f":"RANDBETWEEN(1976,2022)","v":2015},{"$f":"RANDBETWEEN(1976,2022)","v":2015},{"$f":"RANDBETWEEN(1976,2022)","v":1995},{"$f":"RANDBETWEEN(1976,2022)","v":2009},{"$f":"RANDBETWEEN(1976,2022)","v":2004},{"$f":"RANDBETWEEN(1976,2022)","v":2001},{"$f":"RANDBETWEEN(1976,2022)","v":2007},{"$f":"RANDBETWEEN(1976,2022)","v":1994},{"$f":"RANDBETWEEN(1976,2022)","v":2020},{"$f":"RANDBETWEEN(1976,2022)","v":2011},{"$f":"RANDBETWEEN(1976,2022)","v":2012},{"$f":"RANDBETWEEN(1976,2022)","v":1988},{"$f":"RANDBETWEEN(1976,2022)","v":2000},{"$f":"RANDBETWEEN(1976,2022)","v":2021},{"$f":"RANDBETWEEN(1976,2022)","v":1977},{"$f":"RANDBETWEEN(1976,2022)","v":2022},{"$f":"RANDBETWEEN(1976,2022)","v":2005},{"$f":"RANDBETWEEN(1976,2022)","v":1996},{"$f":"RANDBETWEEN(1976,2022)","v":1991},{"$f":"RANDBETWEEN(1976,2022)","v":2007},{"$f":"RANDBETWEEN(1976,2022)","v":2013},{"$f":"RANDBETWEEN(1976,2022)","v":2016},{"$f":"RANDBETWEEN(1976,2022)","v":1979},{"$f":"RANDBETWEEN(1976,2022)","v":1995},{"$f":"RANDBETWEEN(1976,2022)","v":1988},{"$f":"RANDBETWEEN(1976,2022)","v":1978},{"$f":"RANDBETWEEN(1976,2022)","v":1991},{"$f":"RANDBETWEEN(1976,2022)","v":2014},{"$f":"RANDBETWEEN(1976,2022)","v":2013},{"$f":"RANDBETWEEN(1976,2022)","v":2000},{"$f":"RANDBETWEEN(1976,2022)","v":1991},{"$f":"RANDBETWEEN(1976,2022)","v":1991},{"$f":"RANDBETWEEN(1976,2022)","v":2003},{"$f":"RANDBETWEEN(1976,2022)","v":2016},{"$f":"RANDBETWEEN(1976,2022)","v":1993},{"$f":"RANDBETWEEN(1976,2022)","v":2002},{"$f":"RANDBETWEEN(1976,2022)","v":1999},{"$f":"RANDBETWEEN(1976,2022)","v":2021},{"$f":"RANDBETWEEN(1976,2022)","v":1988},{"$f":"RANDBETWEEN(1976,2022)","v":2016},{"$f":"RANDBETWEEN(1976,2022)","v":2012},{"$f":"RANDBETWEEN(1976,2022)","v":1997},{"$f":"RANDBETWEEN(1976,2022)","v":2020},{"$f":"RANDBETWEEN(1976,2022)","v":1984},{"$f":"RANDBETWEEN(1976,2022)","v":2010},{"$f":"RANDBETWEEN(1976,2022)","v":2000},{"$f":"RANDBETWEEN(1976,2022)","v":2016},{"$f":"RANDBETWEEN(1976,2022)","v":1994},{"$f":"RANDBETWEEN(1976,2022)","v":2010},{"$f":"RANDBETWEEN(1976,2022)","v":2018},{"$f":"RANDBETWEEN(1976,2022)","v":2020},{"$f":"RANDBETWEEN(1976,2022)","v":1978},{"$f":"RANDBETWEEN(1976,2022)","v":1984},{"$f":"RANDBETWEEN(1976,2022)","v":1985},{"$f":"RANDBETWEEN(1976,2022)","v":1989},{"$f":"RANDBETWEEN(1976,2022)","v":2015},{"$f":"RANDBETWEEN(1976,2022)","v":1984},{"$f":"RANDBETWEEN(1976,2022)","v":2019},{"$f":"RANDBETWEEN(1976,2022)","v":2009},{"$f":"RANDBETWEEN(1976,2022)","v":1996},{"$f":"RANDBETWEEN(1976,2022)","v":2001},{"$f":"RANDBETWEEN(1976,2022)","v":2002},{"$f":"RANDBETWEEN(1976,2022)","v":1978},{"$f":"RANDBETWEEN(1976,2022)","v":1989},{"$f":"RANDBETWEEN(1976,2022)","v":2005},{"$f":"RANDBETWEEN(1976,2022)","v":2000},{"$f":"RANDBETWEEN(1976,2022)","v":1998},{"$f":"RANDBETWEEN(1976,2022)","v":2013},{"$f":"RANDBETWEEN(1976,2022)","v":1983},{"$f":"RANDBETWEEN(1976,2022)","v":1978},{"$f":"RANDBETWEEN(1976,2022)","v":1991},{"$f":"RANDBETWEEN(1976,2022)","v":1978},{"$f":"RANDBETWEEN(1976,2022)","v":2011},{"$f":"RANDBETWEEN(1976,2022)","v":1978},{"$f":"RANDBETWEEN(1976,2022)","v":1993},{"$f":"RANDBETWEEN(1976,2022)","v":1991},{"$f":"RANDBETWEEN(1976,2022)","v":2012},{"$f":"RANDBETWEEN(1976,2022)","v":1982},{"$f":"RANDBETWEEN(1976,2022)","v":2002},{"$f":"RANDBETWEEN(1976,2022)","v":1979},{"$f":"RANDBETWEEN(1976,2022)","v":1988},{"$f":"RANDBETWEEN(1976,2022)","v":1979},{"$f":"RANDBETWEEN(1976,2022)","v":1992},{"$f":"RANDBETWEEN(1976,2022)","v":2022},{"$f":"RANDBETWEEN(1976,2022)","v":1985},{"$f":"RANDBETWEEN(1976,2022)","v":1978},{"$f":"RANDBETWEEN(1976,2022)","v":1999},{"$f":"RANDBETWEEN(1976,2022)","v":2020}]
[1983,2,5.47,null,1998,{"v":6.3,"d":"6.30"},5.94,5.97,5.81,{"v":6.005,"d":"6.01"},null,{"$f":"RANDBETWEEN(1976,2022)","v":1992},{"$f":"RANDBETWEEN(1976,2022)","v":2021},{"$f":"RANDBETWEEN(1976,2022)","v":2019},{"$f":"RANDBETWEEN(1976,2022)","v":1976},{"$f":"RANDBETWEEN(1976,2022)","v":1976},{"$f":"RANDBETWEEN(1976,2022)","v":1991},{"$f":"RANDBETWEEN(1976,2022)","v":2019},{"$f":"RANDBETWEEN(1976,2022)","v":2015},{"$f":"RANDBETWEEN(1976,2022)","v":2015},{"$f":"RANDBETWEEN(1976,2022)","v":1993},{"$f":"RANDBETWEEN(1976,2022)","v":2004},{"$f":"RANDBETWEEN(1976,2022)","v":1977},{"$f":"RANDBETWEEN(1976,2022)","v":1976},{"$f":"RANDBETWEEN(1976,2022)","v":2002},{"$f":"RANDBETWEEN(1976,2022)","v":2001},{"$f":"RANDBETWEEN(1976,2022)","v":1981},{"$f":"RANDBETWEEN(1976,2022)","v":2008},{"$f":"RANDBETWEEN(1976,2022)","v":2003},{"$f":"RANDBETWEEN(1976,2022)","v":1999},{"$f":"RANDBETWEEN(1976,2022)","v":2007},{"$f":"RANDBETWEEN(1976,2022)","v":1997},{"$f":"RANDBETWEEN(1976,2022)","v":1985},{"$f":"RANDBETWEEN(1976,2022)","v":1991},{"$f":"RANDBETWEEN(1976,2022)","v":2003},{"$f":"RANDBETWEEN(1976,2022)","v":1983},{"$f":"RANDBETWEEN(1976,2022)","v":2015},{"$f":"RANDBETWEEN(1976,2022)","v":1977},{"$f":"RANDBETWEEN(1976,2022)","v":1987},{"$f":"RANDBETWEEN(1976,2022)","v":1977},{"$f":"RANDBETWEEN(1976,2022)","v":1988},{"$f":"RANDBETWEEN(1976,2022)","v":2009},{"$f":"RANDBETWEEN(1976,2022)","v":1980},{"$f":"RANDBETWEEN(1976,2022)","v":1993},{"$f":"RANDBETWEEN(1976,2022)","v":1976},{"$f":"RANDBETWEEN(1976,2022)","v":2019},{"$f":"RANDBETWEEN(1976,2022)","v":1989},{"$f":"RANDBETWEEN(1976,2022)","v":2020},{"$f":"RANDBETWEEN(1976,2022)","v":2000},{"$f":"RANDBETWEEN(1976,2022)","v":2001},{"$f":"RANDBETWEEN(1976,2022)","v":2010},{"$f":"RANDBETWEEN(1976,2022)","v":2005},{"$f":"RANDBETWEEN(1976,2022)","v":1991},{"$f":"RANDBETWEEN(1976,2022)","v":1985},{"$f":"RANDBETWEEN(1976,2022)","v":1994},{"$f":"RANDBETWEEN(1976,2022)","v":1998},{"$f":"RANDBETWEEN(1976,2022)","v":2015},{"$f":"RANDBETWEEN(1976,2022)","v":2005},{"$f":"RANDBETWEEN(1976,2022)","v":1991},{"$f":"RANDBETWEEN(1976,2022)","v":1998},{"$f":"RANDBETWEEN(1976,2022)","v":1983},{"$f":"RANDBETWEEN(1976,2022)","v":2019},{"$f":"RANDBETWEEN(1976,2022)","v":1996},{"$f":"RANDBETWEEN(1976,2022)","v":2006},{"$f":"RANDBETWEEN(1976,2022)","v":1977},{"$f":"RANDBETWEEN(1976,2022)","v":1988},{"$f":"RANDBETWEEN(1976,2022)","v":2016},{"$f":"RANDBETWEEN(1976,2022)","v":1988},{"$f":"RANDBETWEEN(1976,2022)","v":2003},{"$f":"RANDBETWEEN(1976,2022)","v":1978},{"$f":"RANDBETWEEN(1976,2022)","v":1987},{"$f":"RANDBETWEEN(1976,2022)","v":1988},{"$f":"RANDBETWEEN(1976,2022)","v":2017},{"$f":"RANDBETWEEN(1976,2022)","v":1988},{"$f":"RANDBETWEEN(1976,2022)","v":1998},{"$f":"RANDBETWEEN(1976,2022)","v":1988},{"$f":"RANDBETWEEN(1976,2022)","v":2003},{"$f":"RANDBETWEEN(1976,2022)","v":1977},{"$f":"RANDBETWEEN(1976,2022)","v":1984},{"$f":"RANDBETWEEN(1976,2022)","v":2015},{"$f":"RANDBETWEEN(1976,2022)","v":1999},{"$f":"RANDBETWEEN(1976,2022)","v":2009},{"$f":"RANDBETWEEN(1976,2022)","v":2001},{"$f":"RANDBETWEEN(1976,2022)","v":2019},{"$f":"RANDBETWEEN(1976,2022)","v":1998},{"$f":"RANDBETWEEN(1976,2022)","v":2002},{"$f":"RANDBETWEEN(1976,2022)","v":2005},{"$f":"RANDBETWEEN(1976,2022)","v":2013},{"$f":"RANDBETWEEN(1976,2022)","v":1994},{"$f":"RANDBETWEEN(1976,2022)","v":2004},{"$f":"RANDBETWEEN(1976,2022)","v":1989},{"$f":"RANDBETWEEN(1976,2022)","v":1990},{"$f":"RANDBETWEEN(1976,2022)","v":1984},{"$f":"RANDBETWEEN(1976,2022)","v":2000},{"$f":"RANDBETWEEN(1976,2022)","v":2000},{"$f":"RANDBETWEEN(1976,2022)","v":1992},{"$f":"RANDBETWEEN(1976,2022)","v":2018},{"$f":"RANDBETWEEN(1976,2022)","v":1987},{"$f":"RANDBETWEEN(1976,2022)","v":1986},{"$f":"RANDBETWEEN(1976,2022)","v":2021},{"$f":"RANDBETWEEN(1976,2022)","v":1990},{"$f":"RANDBETWEEN(1976,2022)","v":1985},{"$f":"RANDBETWEEN(1976,2022)","v":1994},{"$f":"RANDBETWEEN(1976,2022)","v":2015},{"$f":"RANDBETWEEN(1976,2022)","v":2017},{"$f":"RANDBETWEEN(1976,2022)","v":2017},{"$f":"RANDBETWEEN(1976,2022)","v":1984},{"$f":"RANDBETWEEN(1976,2022)","v":2000},{"$f":"RANDBETWEEN(1976,2022)","v":1985},{"$f":"RANDBETWEEN(1976,2022)","v":1995},{"$f":"RANDBETWEEN(1976,2022)","v":1986}]
[1983,3,5.99,null,1999,5.63,8.05,9.14,9.25,{"v":8.0175,"d":"8.02"},null,{"$f":"RANDBETWEEN(1976,2022)","v":2015},{"$f":"RANDBETWEEN(1976,2022)","v":1991},{"$f":"RANDBETWEEN(1976,2022)","v":1991},{"$f":"RANDBETWEEN(1976,2022)","v":1988},{"$f":"RANDBETWEEN(1976,2022)","v":1979},{"$f":"RANDBETWEEN(1976,2022)","v":2017},{"$f":"RANDBETWEEN(1976,2022)","v":1986},{"$f":"RANDBETWEEN(1976,2022)","v":2021},{"$f":"RANDBETWEEN(1976,2022)","v":1981},{"$f":"RANDBETWEEN(1976,2022)","v":2009},{"$f":"RANDBETWEEN(1976,2022)","v":1983},{"$f":"RANDBETWEEN(1976,2022)","v":1994},{"$f":"RANDBETWEEN(1976,2022)","v":1991},{"$f":"RANDBETWEEN(1976,2022)","v":1987},{"$f":"RANDBETWEEN(1976,2022)","v":2012},{"$f":"RANDBETWEEN(1976,2022)","v":1999},{"$f":"RANDBETWEEN(1976,2022)","v":2008},{"$f":"RANDBETWEEN(1976,2022)","v":2008},{"$f":"RANDBETWEEN(1976,2022)","v":2006},{"$f":"RANDBETWEEN(1976,2022)","v":2001},{"$f":"RANDBETWEEN(1976,2022)","v":1999},{"$f":"RANDBETWEEN(1976,2022)","v":2012},{"$f":"RANDBETWEEN(1976,2022)","v":1978},{"$f":"RANDBETWEEN(1976,2022)","v":1998},{"$f":"RANDBETWEEN(1976,2022)","v":2013},{"$f":"RANDBETWEEN(1976,2022)","v":1994},{"$f":"RANDBETWEEN(1976,2022)","v":2017},{"$f":"RANDBETWEEN(1976,2022)","v":1985},{"$f":"RANDBETWEEN(1976,2022)","v":1980},{"$f":"RANDBETWEEN(1976,2022)","v":2018},{"$f":"RANDBETWEEN(1976,2022)","v":1978},{"$f":"RANDBETWEEN(1976,2022)","v":1990},{"$f":"RANDBETWEEN(1976,2022)","v":2012},{"$f":"RANDBETWEEN(1976,2022)","v":1982},{"$f":"RANDBETWEEN(1976,2022)","v":2001},{"$f":"RANDBETWEEN(1976,2022)","v":1978},{"$f":"RANDBETWEEN(1976,2022)","v":2011},{"$f":"RANDBETWEEN(1976,2022)","v":2003},{"$f":"RANDBETWEEN(1976,2022)","v":1980},{"$f":"RANDBETWEEN(1976,2022)","v":2011},{"$f":"RANDBETWEEN(1976,2022)","v":2019},{"$f":"RANDBETWEEN(1976,2022)","v":1982},{"$f":"RANDBETWEEN(1976,2022)","v":2017},{"$f":"RANDBETWEEN(1976,2022)","v":2021},{"$f":"RANDBETWEEN(1976,2022)","v":2017},{"$f":"RANDBETWEEN(1976,2022)","v":2013},{"$f":"RANDBETWEEN(1976,2022)","v":1996},{"$f":"RANDBETWEEN(1976,2022)","v":2005},{"$f":"RANDBETWEEN(1976,2022)","v":1990},{"$f":"RANDBETWEEN(1976,2022)","v":1985},{"$f":"RANDBETWEEN(1976,2022)","v":1981},{"$f":"RANDBETWEEN(1976,2022)","v":1990},{"$f":"RANDBETWEEN(1976,2022)","v":2014},{"$f":"RANDBETWEEN(1976,2022)","v":1998},{"$f":"RANDBETWEEN(1976,2022)","v":1991},{"$f":"RANDBETWEEN(1976,2022)","v":1997},{"$f":"RANDBETWEEN(1976,2022)","v":2019},{"$f":"RANDBETWEEN(1976,2022)","v":1983},{"$f":"RANDBETWEEN(1976,2022)","v":1995},{"$f":"RANDBETWEEN(1976,2022)","v":1994},{"$f":"RANDBETWEEN(1976,2022)","v":1987},{"$f":"RANDBETWEEN(1976,2022)","v":1977},{"$f":"RANDBETWEEN(1976,2022)","v":1991},{"$f":"RANDBETWEEN(1976,2022)","v":1985},{"$f":"RANDBETWEEN(1976,2022)","v":1997},{"$f":"RANDBETWEEN(1976,2022)","v":1987},{"$f":"RANDBETWEEN(1976,2022)","v":2020},{"$f":"RANDBETWEEN(1976,2022)","v":1979},{"$f":"RANDBETWEEN(1976,2022)","v":2003},{"$f":"RANDBETWEEN(1976,2022)","v":2008},{"$f":"RANDBETWEEN(1976,2022)","v":1988},{"$f":"RANDBETWEEN(1976,2022)","v":1986},{"$f":"RANDBETWEEN(1976,2022)","v":1996},{"$f":"RANDBETWEEN(1976,2022)","v":1994},{"$f":"RANDBETWEEN(1976,2022)","v":2019},{"$f":"RANDBETWEEN(1976,2022)","v":1986},{"$f":"RANDBETWEEN(1976,2022)","v":1981},{"$f":"RANDBETWEEN(1976,2022)","v":2013},{"$f":"RANDBETWEEN(1976,2022)","v":1997},{"$f":"RANDBETWEEN(1976,2022)","v":2015},{"$f":"RANDBETWEEN(1976,2022)","v":1991},{"$f":"RANDBETWEEN(1976,2022)","v":1991},{"$f":"RANDBETWEEN(1976,2022)","v":1980},{"$f":"RANDBETWEEN(1976,2022)","v":2004},{"$f":"RANDBETWEEN(1976,2022)","v":1999},{"$f":"RANDBETWEEN(1976,2022)","v":1978},{"$f":"RANDBETWEEN(1976,2022)","v":2013},{"$f":"RANDBETWEEN(1976,2022)","v":2017},{"$f":"RANDBETWEEN(1976,2022)","v":2004},{"$f":"RANDBETWEEN(1976,2022)","v":1989},{"$f":"RANDBETWEEN(1976,2022)","v":2013},{"$f":"RANDBETWEEN(1976,2022)","v":1999},{"$f":"RANDBETWEEN(1976,2022)","v":2014},{"$f":"RANDBETWEEN(1976,2022)","v":2015},{"$f":"RANDBETWEEN(1976,2022)","v":1977},{"$f":"RANDBETWEEN(1976,2022)","v":2014},{"$f":"RANDBETWEEN(1976,2022)","v":1981},{"$f":"RANDBETWEEN(1976,2022)","v":2003},{"$f":"RANDBETWEEN(1976,2022)","v":2018},{"$f":"RANDBETWEEN(1976,2022)","v":2001}]
[1983,4,1.13,null,2000,10.51,10.44,9.86,{"v":10.6,"d":"10.60"},{"v":10.3525,"d":"10.35"},null,{"$f":"RANDBETWEEN(1976,2022)","v":2013},{"$f":"RANDBETWEEN(1976,2022)","v":1987},{"$f":"RANDBETWEEN(1976,2022)","v":2019},{"$f":"RANDBETWEEN(1976,2022)","v":2009},{"$f":"RANDBETWEEN(1976,2022)","v":1976},{"$f":"RANDBETWEEN(1976,2022)","v":2008},{"$f":"RANDBETWEEN(1976,2022)","v":1996},{"$f":"RANDBETWEEN(1976,2022)","v":1976},{"$f":"RANDBETWEEN(1976,2022)","v":2002},{"$f":"RANDBETWEEN(1976,2022)","v":2020},{"$f":"RANDBETWEEN(1976,2022)","v":1998},{"$f":"RANDBETWEEN(1976,2022)","v":1992},{"$f":"RANDBETWEEN(1976,2022)","v":2012},{"$f":"RANDBETWEEN(1976,2022)","v":1987},{"$f":"RANDBETWEEN(1976,2022)","v":2003},{"$f":"RANDBETWEEN(1976,2022)","v":1995},{"$f":"RANDBETWEEN(1976,2022)","v":1977},{"$f":"RANDBETWEEN(1976,2022)","v":1996},{"$f":"RANDBETWEEN(1976,2022)","v":1980},{"$f":"RANDBETWEEN(1976,2022)","v":1977},{"$f":"RANDBETWEEN(1976,2022)","v":1985},{"$f":"RANDBETWEEN(1976,2022)","v":1998},{"$f":"RANDBETWEEN(1976,2022)","v":2017},{"$f":"RANDBETWEEN(1976,2022)","v":2000},{"$f":"RANDBETWEEN(1976,2022)","v":1999},{"$f":"RANDBETWEEN(1976,2022)","v":1992},{"$f":"RANDBETWEEN(1976,2022)","v":2016},{"$f":"RANDBETWEEN(1976,2022)","v":1982},{"$f":"RANDBETWEEN(1976,2022)","v":2010},{"$f":"RANDBETWEEN(1976,2022)","v":2012},{"$f":"RANDBETWEEN(1976,2022)","v":1991},{"$f":"RANDBETWEEN(1976,2022)","v":1998},{"$f":"RANDBETWEEN(1976,2022)","v":1995},{"$f":"RANDBETWEEN(1976,2022)","v":1997},{"$f":"RANDBETWEEN(1976,2022)","v":2021},{"$f":"RANDBETWEEN(1976,2022)","v":1976},{"$f":"RANDBETWEEN(1976,2022)","v":1996},{"$f":"RANDBETWEEN(1976,2022)","v":1983},{"$f":"RANDBETWEEN(1976,2022)","v":2012},{"$f":"RANDBETWEEN(1976,2022)","v":1990},{"$f":"RANDBETWEEN(1976,2022)","v":1987},{"$f":"RANDBETWEEN(1976,2022)","v":1984},{"$f":"RANDBETWEEN(1976,2022)","v":1999},{"$f":"RANDBETWEEN(1976,2022)","v":1986},{"$f":"RANDBETWEEN(1976,2022)","v":2020},{"$f":"RANDBETWEEN(1976,2022)","v":1998},{"$f":"RANDBETWEEN(1976,2022)","v":1979},{"$f":"RANDBETWEEN(1976,2022)","v":2017},{"$f":"RANDBETWEEN(1976,2022)","v":2009},{"$f":"RANDBETWEEN(1976,2022)","v":1986},{"$f":"RANDBETWEEN(1976,2022)","v":2005},{"$f":"RANDBETWEEN(1976,2022)","v":1989},{"$f":"RANDBETWEEN(1976,2022)","v":2010},{"$f":"RANDBETWEEN(1976,2022)","v":1998},{"$f":"RANDBETWEEN(1976,2022)","v":1980},{"$f":"RANDBETWEEN(1976,2022)","v":1978},{"$f":"RANDBETWEEN(1976,2022)","v":2003},{"$f":"RANDBETWEEN(1976,2022)","v":2016},{"$f":"RANDBETWEEN(1976,2022)","v":1996},{"$f":"RANDBETWEEN(1976,2022)","v":2015},{"$f":"RANDBETWEEN(1976,2022)","v":1998},{"$f":"RANDBETWEEN(1976,2022)","v":2007},{"$f":"RANDBETWEEN(1976,2022)","v":2000},{"$f":"RANDBETWEEN(1976,2022)","v":2014},{"$f":"RANDBETWEEN(1976,2022)","v":2012},{"$f":"RANDBETWEEN(1976,2022)","v":2013},{"$f":"RANDBETWEEN(1976,2022)","v":1990},{"$f":"RANDBETWEEN(1976,2022)","v":1989},{"$f":"RANDBETWEEN(1976,2022)","v":2000},{"$f":"RANDBETWEEN(1976,2022)","v":2000},{"$f":"RANDBETWEEN(1976,2022)","v":1989},{"$f":"RANDBETWEEN(1976,2022)","v":2002},{"$f":"RANDBETWEEN(1976,2022)","v":2018},{"$f":"RANDBETWEEN(1976,2022)","v":1982},{"$f":"RANDBETWEEN(1976,2022)","v":1980},{"$f":"RANDBETWEEN(1976,2022)","v":2013},{"$f":"RANDBETWEEN(1976,2022)","v":1976},{"$f":"RANDBETWEEN(1976,2022)","v":1980},{"$f":"RANDBETWEEN(1976,2022)","v":1986},{"$f":"RANDBETWEEN(1976,2022)","v":1980},{"$f":"RANDBETWEEN(1976,2022)","v":1998},{"$f":"RANDBETWEEN(1976,2022)","v":2001},{"$f":"RANDBETWEEN(1976,2022)","v":2001},{"$f":"RANDBETWEEN(1976,2022)","v":2008},{"$f":"RANDBETWEEN(1976,2022)","v":2021},{"$f":"RANDBETWEEN(1976,2022)","v":1977},{"$f":"RANDBETWEEN(1976,2022)","v":1999},{"$f":"RANDBETWEEN(1976,2022)","v":1977},{"$f":"RANDBETWEEN(1976,2022)","v":1991},{"$f":"RANDBETWEEN(1976,2022)","v":1997},{"$f":"RANDBETWEEN(1976,2022)","v":2018},{"$f":"RANDBETWEEN(1976,2022)","v":1995},{"$f":"RANDBETWEEN(1976,2022)","v":1977},{"$f":"RANDBETWEEN(1976,2022)","v":1991},{"$f":"RANDBETWEEN(1976,2022)","v":1990},{"$f":"RANDBETWEEN(1976,2022)","v":1990},{"$f":"RANDBETWEEN(1976,2022)","v":1985},{"$f":"RANDBETWEEN(1976,2022)","v":1995},{"$f":"RANDBETWEEN(1976,2022)","v":1994},{"$f":"RANDBETWEEN(1976,2022)","v":2007}]
[1984,1,1.98,null,2001,10.58,10.25,10.84,10.16,{"v":10.4575,"d":"10.46"},null,{"$f":"RANDBETWEEN(1976,2022)","v":1992},{"$f":"RANDBETWEEN(1976,2022)","v":2011},{"$f":"RANDBETWEEN(1976,2022)","v":2016},{"$f":"RANDBETWEEN(1976,2022)","v":2003},{"$f":"RANDBETWEEN(1976,2022)","v":1999},{"$f":"RANDBETWEEN(1976,2022)","v":2010},{"$f":"RANDBETWEEN(1976,2022)","v":1990},{"$f":"RANDBETWEEN(1976,2022)","v":2011},{"$f":"RANDBETWEEN(1976,2022)","v":1996},{"$f":"RANDBETWEEN(1976,2022)","v":1989},{"$f":"RANDBETWEEN(1976,2022)","v":2005},{"$f":"RANDBETWEEN(1976,2022)","v":1987},{"$f":"RANDBETWEEN(1976,2022)","v":2011},{"$f":"RANDBETWEEN(1976,2022)","v":2022},{"$f":"RANDBETWEEN(1976,2022)","v":2007},{"$f":"RANDBETWEEN(1976,2022)","v":2012},{"$f":"RANDBETWEEN(1976,2022)","v":1979},{"$f":"RANDBETWEEN(1976,2022)","v":1985},{"$f":"RANDBETWEEN(1976,2022)","v":1991},{"$f":"RANDBETWEEN(1976,2022)","v":2006},{"$f":"RANDBETWEEN(1976,2022)","v":2009},{"$f":"RANDBETWEEN(1976,2022)","v":2018},{"$f":"RANDBETWEEN(1976,2022)","v":2013},{"$f":"RANDBETWEEN(1976,2022)","v":2014},{"$f":"RANDBETWEEN(1976,2022)","v":2002},{"$f":"RANDBETWEEN(1976,2022)","v":1990},{"$f":"RANDBETWEEN(1976,2022)","v":1981},{"$f":"RANDBETWEEN(1976,2022)","v":2016},{"$f":"RANDBETWEEN(1976,2022)","v":1997},{"$f":"RANDBETWEEN(1976,2022)","v":1978},{"$f":"RANDBETWEEN(1976,2022)","v":1999},{"$f":"RANDBETWEEN(1976,2022)","v":2021},{"$f":"RANDBETWEEN(1976,2022)","v":2005},{"$f":"RANDBETWEEN(1976,2022)","v":1998},{"$f":"RANDBETWEEN(1976,2022)","v":2011},{"$f":"RANDBETWEEN(1976,2022)","v":1976},{"$f":"RANDBETWEEN(1976,2022)","v":1977},{"$f":"RANDBETWEEN(1976,2022)","v":1987},{"$f":"RANDBETWEEN(1976,2022)","v":2016},{"$f":"RANDBETWEEN(1976,2022)","v":2020},{"$f":"RANDBETWEEN(1976,2022)","v":1977},{"$f":"RANDBETWEEN(1976,2022)","v":2006},{"$f":"RANDBETWEEN(1976,2022)","v":1976},{"$f":"RANDBETWEEN(1976,2022)","v":1994},{"$f":"RANDBETWEEN(1976,2022)","v":2002},{"$f":"RANDBETWEEN(1976,2022)","v":2017},{"$f":"RANDBETWEEN(1976,2022)","v":1989},{"$f":"RANDBETWEEN(1976,2022)","v":1981},{"$f":"RANDBETWEEN(1976,2022)","v":2007},{"$f":"RANDBETWEEN(1976,2022)","v":2006},{"$f":"RANDBETWEEN(1976,2022)","v":2007},{"$f":"RANDBETWEEN(1976,2022)","v":2018},{"$f":"RANDBETWEEN(1976,2022)","v":1998},{"$f":"RANDBETWEEN(1976,2022)","v":1985},{"$f":"RANDBETWEEN(1976,2022)","v":2021},{"$f":"RANDBETWEEN(1976,2022)","v":1978},{"$f":"RANDBETWEEN(1976,2022)","v":1979},{"$f":"RANDBETWEEN(1976,2022)","v":1981},{"$f":"RANDBETWEEN(1976,2022)","v":1990},{"$f":"RANDBETWEEN(1976,2022)","v":2020},{"$f":"RANDBETWEEN(1976,2022)","v":2009},{"$f":"RANDBETWEEN(1976,2022)","v":2009},{"$f":"RANDBETWEEN(1976,2022)","v":2001},{"$f":"RANDBETWEEN(1976,2022)","v":1976},{"$f":"RANDBETWEEN(1976,2022)","v":1976},{"$f":"RANDBETWEEN(1976,2022)","v":1996},{"$f":"RANDBETWEEN(1976,2022)","v":2012},{"$f":"RANDBETWEEN(1976,2022)","v":2010},{"$f":"RANDBETWEEN(1976,2022)","v":1992},{"$f":"RANDBETWEEN(1976,2022)","v":2007},{"$f":"RANDBETWEEN(1976,2022)","v":1988},{"$f":"RANDBETWEEN(1976,2022)","v":2002},{"$f":"RANDBETWEEN(1976,2022)","v":2012},{"$f":"RANDBETWEEN(1976,2022)","v":1982},{"$f":"RANDBETWEEN(1976,2022)","v":1989},{"$f":"RANDBETWEEN(1976,2022)","v":2011},{"$f":"RANDBETWEEN(1976,2022)","v":1983},{"$f":"RANDBETWEEN(1976,2022)","v":1988},{"$f":"RANDBETWEEN(1976,2022)","v":1997},{"$f":"RANDBETWEEN(1976,2022)","v":1981},{"$f":"RANDBETWEEN(1976,2022)","v":2002},{"$f":"RANDBETWEEN(1976,2022)","v":2012},{"$f":"RANDBETWEEN(1976,2022)","v":2002},{"$f":"RANDBETWEEN(1976,2022)","v":2003},{"$f":"RANDBETWEEN(1976,2022)","v":1988},{"$f":"RANDBETWEEN(1976,2022)","v":2010},{"$f":"RANDBETWEEN(1976,2022)","v":1986},{"$f":"RANDBETWEEN(1976,2022)","v":1994},{"$f":"RANDBETWEEN(1976,2022)","v":2013},{"$f":"RANDBETWEEN(1976,2022)","v":1989},{"$f":"RANDBETWEEN(1976,2022)","v":1981},{"$f":"RANDBETWEEN(1976,2022)","v":1988},{"$f":"RANDBETWEEN(1976,2022)","v":1992},{"$f":"RANDBETWEEN(1976,2022)","v":1981},{"$f":"RANDBETWEEN(1976,2022)","v":1991},{"$f":"RANDBETWEEN(1976,2022)","v":1987},{"$f":"RANDBETWEEN(1976,2022)","v":1992},{"$f":"RANDBETWEEN(1976,2022)","v":2014},{"$f":"RANDBETWEEN(1976,2022)","v":2015},{"$f":"RANDBETWEEN(1976,2022)","v":1987}]
[1984,2,-0.33,null,2002,9.44,9.38,8.52,8.73,{"v":9.0175,"d":"9.02"},null,{"$f":"RANDBETWEEN(1976,2022)","v":2007},{"$f":"RANDBETWEEN(1976,2022)","v":1997},{"$f":"RANDBETWEEN(1976,2022)","v":1988},{"$f":"RANDBETWEEN(1976,2022)","v":2019},{"$f":"RANDBETWEEN(1976,2022)","v":2016},{"$f":"RANDBETWEEN(1976,2022)","v":1983},{"$f":"RANDBETWEEN(1976,2022)","v":2021},{"$f":"RANDBETWEEN(1976,2022)","v":2019},{"$f":"RANDBETWEEN(1976,2022)","v":1982},{"$f":"RANDBETWEEN(1976,2022)","v":1998},{"$f":"RANDBETWEEN(1976,2022)","v":1988},{"$f":"RANDBETWEEN(1976,2022)","v":1989},{"$f":"RANDBETWEEN(1976,2022)","v":1976},{"$f":"RANDBETWEEN(1976,2022)","v":2008},{"$f":"RANDBETWEEN(1976,2022)","v":2014},{"$f":"RANDBETWEEN(1976,2022)","v":1989},{"$f":"RANDBETWEEN(1976,2022)","v":1989},{"$f":"RANDBETWEEN(1976,2022)","v":2016},{"$f":"RANDBETWEEN(1976,2022)","v":2016},{"$f":"RANDBETWEEN(1976,2022)","v":2000},{"$f":"RANDBETWEEN(1976,2022)","v":2010},{"$f":"RANDBETWEEN(1976,2022)","v":2012},{"$f":"RANDBETWEEN(1976,2022)","v":2001},{"$f":"RANDBETWEEN(1976,2022)","v":1985},{"$f":"RANDBETWEEN(1976,2022)","v":2021},{"$f":"RANDBETWEEN(1976,2022)","v":2009},{"$f":"RANDBETWEEN(1976,2022)","v":1980},{"$f":"RANDBETWEEN(1976,2022)","v":2020},{"$f":"RANDBETWEEN(1976,2022)","v":2021},{"$f":"RANDBETWEEN(1976,2022)","v":2007},{"$f":"RANDBETWEEN(1976,2022)","v":1984},{"$f":"RANDBETWEEN(1976,2022)","v":1994},{"$f":"RANDBETWEEN(1976,2022)","v":2010},{"$f":"RANDBETWEEN(1976,2022)","v":1994},{"$f":"RANDBETWEEN(1976,2022)","v":1982},{"$f":"RANDBETWEEN(1976,2022)","v":2017},{"$f":"RANDBETWEEN(1976,2022)","v":1997},{"$f":"RANDBETWEEN(1976,2022)","v":2000},{"$f":"RANDBETWEEN(1976,2022)","v":2022},{"$f":"RANDBETWEEN(1976,2022)","v":1999},{"$f":"RANDBETWEEN(1976,2022)","v":2010},{"$f":"RANDBETWEEN(1976,2022)","v":1993},{"$f":"RANDBETWEEN(1976,2022)","v":1984},{"$f":"RANDBETWEEN(1976,2022)","v":2018},{"$f":"RANDBETWEEN(1976,2022)","v":1990},{"$f":"RANDBETWEEN(1976,2022)","v":2022},{"$f":"RANDBETWEEN(1976,2022)","v":2021},{"$f":"RANDBETWEEN(1976,2022)","v":1981},{"$f":"RANDBETWEEN(1976,2022)","v":1976},{"$f":"RANDBETWEEN(1976,2022)","v":2022},{"$f":"RANDBETWEEN(1976,2022)","v":2016},{"$f":"RANDBETWEEN(1976,2022)","v":2013},{"$f":"RANDBETWEEN(1976,2022)","v":2020},{"$f":"RANDBETWEEN(1976,2022)","v":1981},{"$f":"RANDBETWEEN(1976,2022)","v":1997},{"$f":"RANDBETWEEN(1976,2022)","v":2016},{"$f":"RANDBETWEEN(1976,2022)","v":2011},{"$f":"RANDBETWEEN(1976,2022)","v":1977},{"$f":"RANDBETWEEN(1976,2022)","v":2008},{"$f":"RANDBETWEEN(1976,2022)","v":2001},{"$f":"RANDBETWEEN(1976,2022)","v":2015},{"$f":"RANDBETWEEN(1976,2022)","v":2021},{"$f":"RANDBETWEEN(1976,2022)","v":1997},{"$f":"RANDBETWEEN(1976,2022)","v":2001},{"$f":"RANDBETWEEN(1976,2022)","v":1994},{"$f":"RANDBETWEEN(1976,2022)","v":2015},{"$f":"RANDBETWEEN(1976,2022)","v":2022},{"$f":"RANDBETWEEN(1976,2022)","v":1982},{"$f":"RANDBETWEEN(1976,2022)","v":1977},{"$f":"RANDBETWEEN(1976,2022)","v":1981},{"$f":"RANDBETWEEN(1976,2022)","v":1985},{"$f":"RANDBETWEEN(1976,2022)","v":1986},{"$f":"RANDBETWEEN(1976,2022)","v":2013},{"$f":"RANDBETWEEN(1976,2022)","v":2014},{"$f":"RANDBETWEEN(1976,2022)","v":1999},{"$f":"RANDBETWEEN(1976,2022)","v":2003},{"$f":"RANDBETWEEN(1976,2022)","v":2003},{"$f":"RANDBETWEEN(1976,2022)","v":1996},{"$f":"RANDBETWEEN(1976,2022)","v":2021},{"$f":"RANDBETWEEN(1976,2022)","v":2001},{"$f":"RANDBETWEEN(1976,2022)","v":2017},{"$f":"RANDBETWEEN(1976,2022)","v":2021},{"$f":"RANDBETWEEN(1976,2022)","v":1997},{"$f":"RANDBETWEEN(1976,2022)","v":2019},{"$f":"RANDBETWEEN(1976,2022)","v":1996},{"$f":"RANDBETWEEN(1976,2022)","v":1981},{"$f":"RANDBETWEEN(1976,2022)","v":1987},{"$f":"RANDBETWEEN(1976,2022)","v":2017},{"$f":"RANDBETWEEN(1976,2022)","v":2005},{"$f":"RANDBETWEEN(1976,2022)","v":1993},{"$f":"RANDBETWEEN(1976,2022)","v":1989},{"$f":"RANDBETWEEN(1976,2022)","v":1981},{"$f":"RANDBETWEEN(1976,2022)","v":1980},{"$f":"RANDBETWEEN(1976,2022)","v":1978},{"$f":"RANDBETWEEN(1976,2022)","v":2010},{"$f":"RANDBETWEEN(1976,2022)","v":1994},{"$f":"RANDBETWEEN(1976,2022)","v":2003},{"$f":"RANDBETWEEN(1976,2022)","v":2009},{"$f":"RANDBETWEEN(1976,2022)","v":1990},{"$f":"RANDBETWEEN(1976,2022)","v":2001}]
[1984,3,2.13,null,2003,7.99,6.44,6.49,8.69,{"v":7.4025,"d":"7.40"},null,{"$f":"RANDBETWEEN(1976,2022)","v":2006},{"$f":"RANDBETWEEN(1976,2022)","v":1984},{"$f":"RANDBETWEEN(1976,2022)","v":1984},{"$f":"RANDBETWEEN(1976,2022)","v":2015},{"$f":"RANDBETWEEN(1976,2022)","v":1980},{"$f":"RANDBETWEEN(1976,2022)","v":2004},{"$f":"RANDBETWEEN(1976,2022)","v":2017},{"$f":"RANDBETWEEN(1976,2022)","v":1978},{"$f":"RANDBETWEEN(1976,2022)","v":2019},{"$f":"RANDBETWEEN(1976,2022)","v":1976},{"$f":"RANDBETWEEN(1976,2022)","v":2015},{"$f":"RANDBETWEEN(1976,2022)","v":1987},{"$f":"RANDBETWEEN(1976,2022)","v":1988},{"$f":"RANDBETWEEN(1976,2022)","v":1976},{"$f":"RANDBETWEEN(1976,2022)","v":1979},{"$f":"RANDBETWEEN(1976,2022)","v":2009},{"$f":"RANDBETWEEN(1976,2022)","v":2009},{"$f":"RANDBETWEEN(1976,2022)","v":2006},{"$f":"RANDBETWEEN(1976,2022)","v":2005},{"$f":"RANDBETWEEN(1976,2022)","v":1989},{"$f":"RANDBETWEEN(1976,2022)","v":2012},{"$f":"RANDBETWEEN(1976,2022)","v":2020},{"$f":"RANDBETWEEN(1976,2022)","v":2001},{"$f":"RANDBETWEEN(1976,2022)","v":2004},{"$f":"RANDBETWEEN(1976,2022)","v":1980},{"$f":"RANDBETWEEN(1976,2022)","v":2010},{"$f":"RANDBETWEEN(1976,2022)","v":2004},{"$f":"RANDBETWEEN(1976,2022)","v":2002},{"$f":"RANDBETWEEN(1976,2022)","v":2018},{"$f":"RANDBETWEEN(1976,2022)","v":2006},{"$f":"RANDBETWEEN(1976,2022)","v":1985},{"$f":"RANDBETWEEN(1976,2022)","v":2014},{"$f":"RANDBETWEEN(1976,2022)","v":2014},{"$f":"RANDBETWEEN(1976,2022)","v":2012},{"$f":"RANDBETWEEN(1976,2022)","v":2019},{"$f":"RANDBETWEEN(1976,2022)","v":1994},{"$f":"RANDBETWEEN(1976,2022)","v":2004},{"$f":"RANDBETWEEN(1976,2022)","v":2002},{"$f":"RANDBETWEEN(1976,2022)","v":1998},{"$f":"RANDBETWEEN(1976,2022)","v":1992},{"$f":"RANDBETWEEN(1976,2022)","v":1987},{"$f":"RANDBETWEEN(1976,2022)","v":1992},{"$f":"RANDBETWEEN(1976,2022)","v":2000},{"$f":"RANDBETWEEN(1976,2022)","v":1982},{"$f":"RANDBETWEEN(1976,2022)","v":2022},{"$f":"RANDBETWEEN(1976,2022)","v":2001},{"$f":"RANDBETWEEN(1976,2022)","v":2002},{"$f":"RANDBETWEEN(1976,2022)","v":1985},{"$f":"RANDBETWEEN(1976,2022)","v":2000},{"$f":"RANDBETWEEN(1976,2022)","v":1988},{"$f":"RANDBETWEEN(1976,2022)","v":1987},{"$f":"RANDBETWEEN(1976,2022)","v":1987},{"$f":"RANDBETWEEN(1976,2022)","v":1994},{"$f":"RANDBETWEEN(1976,2022)","v":2004},{"$f":"RANDBETWEEN(1976,2022)","v":2019},{"$f":"RANDBETWEEN(1976,2022)","v":1981},{"$f":"RANDBETWEEN(1976,2022)","v":1990},{"$f":"RANDBETWEEN(1976,2022)","v":1993},{"$f":"RANDBETWEEN(1976,2022)","v":2009},{"$f":"RANDBETWEEN(1976,2022)","v":1985},{"$f":"RANDBETWEEN(1976,2022)","v":2005},{"$f":"RANDBETWEEN(1976,2022)","v":1998},{"$f":"RANDBETWEEN(1976,2022)","v":2010},{"$f":"RANDBETWEEN(1976,2022)","v":1977},{"$f":"RANDBETWEEN(1976,2022)","v":1988},{"$f":"RANDBETWEEN(1976,2022)","v":1982},{"$f":"RANDBETWEEN(1976,2022)","v":1985},{"$f":"RANDBETWEEN(1976,2022)","v":1989},{"$f":"RANDBETWEEN(1976,2022)","v":1987},{"$f":"RANDBETWEEN(1976,2022)","v":2000},{"$f":"RANDBETWEEN(1976,2022)","v":1991},{"$f":"RANDBETWEEN(1976,2022)","v":2010},{"$f":"RANDBETWEEN(1976,2022)","v":2010},{"$f":"RANDBETWEEN(1976,2022)","v":2001},{"$f":"RANDBETWEEN(1976,2022)","v":1981},{"$f":"RANDBETWEEN(1976,2022)","v":2022},{"$f":"RANDBETWEEN(1976,2022)","v":2005},{"$f":"RANDBETWEEN(1976,2022)","v":2013},{"$f":"RANDBETWEEN(1976,2022)","v":2009},{"$f":"RANDBETWEEN(1976,2022)","v":1988},{"$f":"RANDBETWEEN(1976,2022)","v":1991},{"$f":"RANDBETWEEN(1976,2022)","v":1980},{"$f":"RANDBETWEEN(1976,2022)","v":2006},{"$f":"RANDBETWEEN(1976,2022)","v":2006},{"$f":"RANDBETWEEN(1976,2022)","v":2006},{"$f":"RANDBETWEEN(1976,2022)","v":1991},{"$f":"RANDBETWEEN(1976,2022)","v":1983},{"$f":"RANDBETWEEN(1976,2022)","v":1991},{"$f":"RANDBETWEEN(1976,2022)","v":1993},{"$f":"RANDBETWEEN(1976,2022)","v":1995},{"$f":"RANDBETWEEN(1976,2022)","v":1991},{"$f":"RANDBETWEEN(1976,2022)","v":1977},{"$f":"RANDBETWEEN(1976,2022)","v":2008},{"$f":"RANDBETWEEN(1976,2022)","v":2010},{"$f":"RANDBETWEEN(1976,2022)","v":1977},{"$f":"RANDBETWEEN(1976,2022)","v":1997},{"$f":"RANDBETWEEN(1976,2022)","v":1999},{"$f":"RANDBETWEEN(1976,2022)","v":1998},{"$f":"RANDBETWEEN(1976,2022)","v":1994},{"$f":"RANDBETWEEN(1976,2022)","v":1987}]
[1984,4,5.77,null,2004,8.45,9.44,10.71,8.54,{"v":9.285,"d":"9.29"},null,{"$f":"RANDBETWEEN(1976,2022)","v":2022},{"$f":"RANDBETWEEN(1976,2022)","v":2006},{"$f":"RANDBETWEEN(1976,2022)","v":1993},{"$f":"RANDBETWEEN(1976,2022)","v":1983},{"$f":"RANDBETWEEN(1976,2022)","v":2012},{"$f":"RANDBETWEEN(1976,2022)","v":1980},{"$f":"RANDBETWEEN(1976,2022)","v":1978},{"$f":"RANDBETWEEN(1976,2022)","v":1980},{"$f":"RANDBETWEEN(1976,2022)","v":1984},{"$f":"RANDBETWEEN(1976,2022)","v":1989},{"$f":"RANDBETWEEN(1976,2022)","v":2018},{"$f":"RANDBETWEEN(1976,2022)","v":1992},{"$f":"RANDBETWEEN(1976,2022)","v":1999},{"$f":"RANDBETWEEN(1976,2022)","v":1989},{"$f":"RANDBETWEEN(1976,2022)","v":2005},{"$f":"RANDBETWEEN(1976,2022)","v":1984},{"$f":"RANDBETWEEN(1976,2022)","v":1979},{"$f":"RANDBETWEEN(1976,2022)","v":1987},{"$f":"RANDBETWEEN(1976,2022)","v":1989},{"$f":"RANDBETWEEN(1976,2022)","v":2013},{"$f":"RANDBETWEEN(1976,2022)","v":2016},{"$f":"RANDBETWEEN(1976,2022)","v":2000},{"$f":"RANDBETWEEN(1976,2022)","v":2007},{"$f":"RANDBETWEEN(1976,2022)","v":1977},{"$f":"RANDBETWEEN(1976,2022)","v":1991},{"$f":"RANDBETWEEN(1976,2022)","v":2009},{"$f":"RANDBETWEEN(1976,2022)","v":1999},{"$f":"RANDBETWEEN(1976,2022)","v":2012},{"$f":"RANDBETWEEN(1976,2022)","v":2015},{"$f":"RANDBETWEEN(1976,2022)","v":1989},{"$f":"RANDBETWEEN(1976,2022)","v":2021},{"$f":"RANDBETWEEN(1976,2022)","v":1977},{"$f":"RANDBETWEEN(1976,2022)","v":1994},{"$f":"RANDBETWEEN(1976,2022)","v":2002},{"$f":"RANDBETWEEN(1976,2022)","v":1993},{"$f":"RANDBETWEEN(1976,2022)","v":2022},{"$f":"RANDBETWEEN(1976,2022)","v":1977},{"$f":"RANDBETWEEN(1976,2022)","v":1992},{"$f":"RANDBETWEEN(1976,2022)","v":1977},{"$f":"RANDBETWEEN(1976,2022)","v":2021},{"$f":"RANDBETWEEN(1976,2022)","v":2022},{"$f":"RANDBETWEEN(1976,2022)","v":1999},{"$f":"RANDBETWEEN(1976,2022)","v":1993},{"$f":"RANDBETWEEN(1976,2022)","v":2013},{"$f":"RANDBETWEEN(1976,2022)","v":1987},{"$f":"RANDBETWEEN(1976,2022)","v":1991},{"$f":"RANDBETWEEN(1976,2022)","v":1976},{"$f":"RANDBETWEEN(1976,2022)","v":2012},{"$f":"RANDBETWEEN(1976,2022)","v":1997},{"$f":"RANDBETWEEN(1976,2022)","v":2022},{"$f":"RANDBETWEEN(1976,2022)","v":1992},{"$f":"RANDBETWEEN(1976,2022)","v":2003},{"$f":"RANDBETWEEN(1976,2022)","v":2011},{"$f":"RANDBETWEEN(1976,2022)","v":1992},{"$f":"RANDBETWEEN(1976,2022)","v":2009},{"$f":"RANDBETWEEN(1976,2022)","v":2010},{"$f":"RANDBETWEEN(1976,2022)","v":2008},{"$f":"RANDBETWEEN(1976,2022)","v":1977},{"$f":"RANDBETWEEN(1976,2022)","v":1981},{"$f":"RANDBETWEEN(1976,2022)","v":1988},{"$f":"RANDBETWEEN(1976,2022)","v":1979},{"$f":"RANDBETWEEN(1976,2022)","v":1998},{"$f":"RANDBETWEEN(1976,2022)","v":1980},{"$f":"RANDBETWEEN(1976,2022)","v":1994},{"$f":"RANDBETWEEN(1976,2022)","v":1999},{"$f":"RANDBETWEEN(1976,2022)","v":2011},{"$f":"RANDBETWEEN(1976,2022)","v":1980},{"$f":"RANDBETWEEN(1976,2022)","v":1990},{"$f":"RANDBETWEEN(1976,2022)","v":1997},{"$f":"RANDBETWEEN(1976,2022)","v":2010},{"$f":"RANDBETWEEN(1976,2022)","v":1994},{"$f":"RANDBETWEEN(1976,2022)","v":2015},{"$f":"RANDBETWEEN(1976,2022)","v":1987},{"$f":"RANDBETWEEN(1976,2022)","v":1996},{"$f":"RANDBETWEEN(1976,2022)","v":1984},{"$f":"RANDBETWEEN(1976,2022)","v":2004},{"$f":"RANDBETWEEN(1976,2022)","v":1996},{"$f":"RANDBETWEEN(1976,2022)","v":2007},{"$f":"RANDBETWEEN(1976,2022)","v":1992},{"$f":"RANDBETWEEN(1976,2022)","v":1979},{"$f":"RANDBETWEEN(1976,2022)","v":1992},{"$f":"RANDBETWEEN(1976,2022)","v":2020},{"$f":"RANDBETWEEN(1976,2022)","v":2010},{"$f":"RANDBETWEEN(1976,2022)","v":1977},{"$f":"RANDBETWEEN(1976,2022)","v":2005},{"$f":"RANDBETWEEN(1976,2022)","v":1998},{"$f":"RANDBETWEEN(1976,2022)","v":1976},{"$f":"RANDBETWEEN(1976,2022)","v":2017},{"$f":"RANDBETWEEN(1976,2022)","v":2014},{"$f":"RANDBETWEEN(1976,2022)","v":2017},{"$f":"RANDBETWEEN(1976,2022)","v":2008},{"$f":"RANDBETWEEN(1976,2022)","v":1992},{"$f":"RANDBETWEEN(1976,2022)","v":2020},{"$f":"RANDBETWEEN(1976,2022)","v":2008},{"$f":"RANDBETWEEN(1976,2022)","v":1979},{"$f":"RANDBETWEEN(1976,2022)","v":1997},{"$f":"RANDBETWEEN(1976,2022)","v":1996},{"$f":"RANDBETWEEN(1976,2022)","v":2006},{"$f":"RANDBETWEEN(1976,2022)","v":2010},{"$f":"RANDBETWEEN(1976,2022)","v":2014}]
[1985,1,2,null,2005,{"v":9.2,"d":"9.20"},9.48,7.87,7.96,{"v":8.6275,"d":"8.63"},null,{"$f":"RANDBETWEEN(1976,2022)","v":2011},{"$f":"RANDBETWEEN(1976,2022)","v":1987},{"$f":"RANDBETWEEN(1976,2022)","v":1992},{"$f":"RANDBETWEEN(1976,2022)","v":1987},{"$f":"RANDBETWEEN(1976,2022)","v":2009},{"$f":"RANDBETWEEN(1976,2022)","v":2007},{"$f":"RANDBETWEEN(1976,2022)","v":1988},{"$f":"RANDBETWEEN(1976,2022)","v":2002},{"$f":"RANDBETWEEN(1976,2022)","v":1986},{"$f":"RANDBETWEEN(1976,2022)","v":2006},{"$f":"RANDBETWEEN(1976,2022)","v":1999},{"$f":"RANDBETWEEN(1976,2022)","v":1986},{"$f":"RANDBETWEEN(1976,2022)","v":1984},{"$f":"RANDBETWEEN(1976,2022)","v":1985},{"$f":"RANDBETWEEN(1976,2022)","v":1993},{"$f":"RANDBETWEEN(1976,2022)","v":1976},{"$f":"RANDBETWEEN(1976,2022)","v":1988},{"$f":"RANDBETWEEN(1976,2022)","v":2021},{"$f":"RANDBETWEEN(1976,2022)","v":2006},{"$f":"RANDBETWEEN(1976,2022)","v":1995},{"$f":"RANDBETWEEN(1976,2022)","v":2011},{"$f":"RANDBETWEEN(1976,2022)","v":1987},{"$f":"RANDBETWEEN(1976,2022)","v":2018},{"$f":"RANDBETWEEN(1976,2022)","v":1989},{"$f":"RANDBETWEEN(1976,2022)","v":2020},{"$f":"RANDBETWEEN(1976,2022)","v":2016},{"$f":"RANDBETWEEN(1976,2022)","v":1989},{"$f":"RANDBETWEEN(1976,2022)","v":2012},{"$f":"RANDBETWEEN(1976,2022)","v":1999},{"$f":"RANDBETWEEN(1976,2022)","v":2016},{"$f":"RANDBETWEEN(1976,2022)","v":1992},{"$f":"RANDBETWEEN(1976,2022)","v":2008},{"$f":"RANDBETWEEN(1976,2022)","v":2002},{"$f":"RANDBETWEEN(1976,2022)","v":2007},{"$f":"RANDBETWEEN(1976,2022)","v":1976},{"$f":"RANDBETWEEN(1976,2022)","v":2004},{"$f":"RANDBETWEEN(1976,2022)","v":1994},{"$f":"RANDBETWEEN(1976,2022)","v":1994},{"$f":"RANDBETWEEN(1976,2022)","v":2009},{"$f":"RANDBETWEEN(1976,2022)","v":1990},{"$f":"RANDBETWEEN(1976,2022)","v":2017},{"$f":"RANDBETWEEN(1976,2022)","v":1984},{"$f":"RANDBETWEEN(1976,2022)","v":2000},{"$f":"RANDBETWEEN(1976,2022)","v":1982},{"$f":"RANDBETWEEN(1976,2022)","v":2020},{"$f":"RANDBETWEEN(1976,2022)","v":1993},{"$f":"RANDBETWEEN(1976,2022)","v":2004},{"$f":"RANDBETWEEN(1976,2022)","v":2000},{"$f":"RANDBETWEEN(1976,2022)","v":2014},{"$f":"RANDBETWEEN(1976,2022)","v":1988},{"$f":"RANDBETWEEN(1976,2022)","v":2000},{"$f":"RANDBETWEEN(1976,2022)","v":2020},{"$f":"RANDBETWEEN(1976,2022)","v":2003},{"$f":"RANDBETWEEN(1976,2022)","v":1992},{"$f":"RANDBETWEEN(1976,2022)","v":1985},{"$f":"RANDBETWEEN(1976,2022)","v":2007},{"$f":"RANDBETWEEN(1976,2022)","v":2015},{"$f":"RANDBETWEEN(1976,2022)","v":1980},{"$f":"RANDBETWEEN(1976,2022)","v":1993},{"$f":"RANDBETWEEN(1976,2022)","v":2010},{"$f":"RANDBETWEEN(1976,2022)","v":2010},{"$f":"RANDBETWEEN(1976,2022)","v":1981},{"$f":"RANDBETWEEN(1976,2022)","v":2015},{"$f":"RANDBETWEEN(1976,2022)","v":1989},{"$f":"RANDBETWEEN(1976,2022)","v":1978},{"$f":"RANDBETWEEN(1976,2022)","v":1998},{"$f":"RANDBETWEEN(1976,2022)","v":2006},{"$f":"RANDBETWEEN(1976,2022)","v":1997},{"$f":"RANDBETWEEN(1976,2022)","v":2002},{"$f":"RANDBETWEEN(1976,2022)","v":1985},{"$f":"RANDBETWEEN(1976,2022)","v":1976},{"$f":"RANDBETWEEN(1976,2022)","v":2015},{"$f":"RANDBETWEEN(1976,2022)","v":2003},{"$f":"RANDBETWEEN(1976,2022)","v":2004},{"$f":"RANDBETWEEN(1976,2022)","v":1982},{"$f":"RANDBETWEEN(1976,2022)","v":2007},{"$f":"RANDBETWEEN(1976,2022)","v":2017},{"$f":"RANDBETWEEN(1976,2022)","v":2008},{"$f":"RANDBETWEEN(1976,2022)","v":2012},{"$f":"RANDBETWEEN(1976,2022)","v":1983},{"$f":"RANDBETWEEN(1976,2022)","v":1989},{"$f":"RANDBETWEEN(1976,2022)","v":2022},{"$f":"RANDBETWEEN(1976,2022)","v":2019},{"$f":"RANDBETWEEN(1976,2022)","v":1978},{"$f":"RANDBETWEEN(1976,2022)","v":1985},{"$f":"RANDBETWEEN(1976,2022)","v":1981},{"$f":"RANDBETWEEN(1976,2022)","v":1984},{"$f":"RANDBETWEEN(1976,2022)","v":2018},{"$f":"RANDBETWEEN(1976,2022)","v":2017},{"$f":"RANDBETWEEN(1976,2022)","v":2013},{"$f":"RANDBETWEEN(1976,2022)","v":2013},{"$f":"RANDBETWEEN(1976,2022)","v":1998},{"$f":"RANDBETWEEN(1976,2022)","v":1991},{"$f":"RANDBETWEEN(1976,2022)","v":1994},{"$f":"RANDBETWEEN(1976,2022)","v":1998},{"$f":"RANDBETWEEN(1976,2022)","v":1978},{"$f":"RANDBETWEEN(1976,2022)","v":2002},{"$f":"RANDBETWEEN(1976,2022)","v":1980},{"$f":"RANDBETWEEN(1976,2022)","v":2008},{"$f":"RANDBETWEEN(1976,2022)","v":2007}]
[1985,2,4.3,null,2006,7.17,4.96,3.34,2.47,{"v":4.484999999999999,"d":"4.49"},null,{"$f":"RANDBETWEEN(1976,2022)","v":2003},{"$f":"RANDBETWEEN(1976,2022)","v":1976},{"$f":"RANDBETWEEN(1976,2022)","v":1997},{"$f":"RANDBETWEEN(1976,2022)","v":2020},{"$f":"RANDBETWEEN(1976,2022)","v":2021},{"$f":"RANDBETWEEN(1976,2022)","v":2021},{"$f":"RANDBETWEEN(1976,2022)","v":1990},{"$f":"RANDBETWEEN(1976,2022)","v":1978},{"$f":"RANDBETWEEN(1976,2022)","v":1996},{"$f":"RANDBETWEEN(1976,2022)","v":1979},{"$f":"RANDBETWEEN(1976,2022)","v":2007},{"$f":"RANDBETWEEN(1976,2022)","v":2019},{"$f":"RANDBETWEEN(1976,2022)","v":1992},{"$f":"RANDBETWEEN(1976,2022)","v":1992},{"$f":"RANDBETWEEN(1976,2022)","v":1993},{"$f":"RANDBETWEEN(1976,2022)","v":1978},{"$f":"RANDBETWEEN(1976,2022)","v":1996},{"$f":"RANDBETWEEN(1976,2022)","v":2013},{"$f":"RANDBETWEEN(1976,2022)","v":2020},{"$f":"RANDBETWEEN(1976,2022)","v":2001},{"$f":"RANDBETWEEN(1976,2022)","v":2001},{"$f":"RANDBETWEEN(1976,2022)","v":2021},{"$f":"RANDBETWEEN(1976,2022)","v":1978},{"$f":"RANDBETWEEN(1976,2022)","v":1980},{"$f":"RANDBETWEEN(1976,2022)","v":2003},{"$f":"RANDBETWEEN(1976,2022)","v":2013},{"$f":"RANDBETWEEN(1976,2022)","v":2011},{"$f":"RANDBETWEEN(1976,2022)","v":1989},{"$f":"RANDBETWEEN(1976,2022)","v":1981},{"$f":"RANDBETWEEN(1976,2022)","v":1984},{"$f":"RANDBETWEEN(1976,2022)","v":1976},{"$f":"RANDBETWEEN(1976,2022)","v":1998},{"$f":"RANDBETWEEN(1976,2022)","v":1979},{"$f":"RANDBETWEEN(1976,2022)","v":1998},{"$f":"RANDBETWEEN(1976,2022)","v":1982},{"$f":"RANDBETWEEN(1976,2022)","v":2017},{"$f":"RANDBETWEEN(1976,2022)","v":1998},{"$f":"RANDBETWEEN(1976,2022)","v":2003},{"$f":"RANDBETWEEN(1976,2022)","v":1987},{"$f":"RANDBETWEEN(1976,2022)","v":1987},{"$f":"RANDBETWEEN(1976,2022)","v":2004},{"$f":"RANDBETWEEN(1976,2022)","v":1991},{"$f":"RANDBETWEEN(1976,2022)","v":1985},{"$f":"RANDBETWEEN(1976,2022)","v":2017},{"$f":"RANDBETWEEN(1976,2022)","v":1988},{"$f":"RANDBETWEEN(1976,2022)","v":1992},{"$f":"RANDBETWEEN(1976,2022)","v":1989},{"$f":"RANDBETWEEN(1976,2022)","v":2006},{"$f":"RANDBETWEEN(1976,2022)","v":1979},{"$f":"RANDBETWEEN(1976,2022)","v":2005},{"$f":"RANDBETWEEN(1976,2022)","v":2022},{"$f":"RANDBETWEEN(1976,2022)","v":1998},{"$f":"RANDBETWEEN(1976,2022)","v":2014},{"$f":"RANDBETWEEN(1976,2022)","v":2022},{"$f":"RANDBETWEEN(1976,2022)","v":2015},{"$f":"RANDBETWEEN(1976,2022)","v":2005},{"$f":"RANDBETWEEN(1976,2022)","v":1983},{"$f":"RANDBETWEEN(1976,2022)","v":1988},{"$f":"RANDBETWEEN(1976,2022)","v":2022},{"$f":"RANDBETWEEN(1976,2022)","v":1980},{"$f":"RANDBETWEEN(1976,2022)","v":2003},{"$f":"RANDBETWEEN(1976,2022)","v":1985},{"$f":"RANDBETWEEN(1976,2022)","v":2004},{"$f":"RANDBETWEEN(1976,2022)","v":2010},{"$f":"RANDBETWEEN(1976,2022)","v":2014},{"$f":"RANDBETWEEN(1976,2022)","v":2002},{"$f":"RANDBETWEEN(1976,2022)","v":1991},{"$f":"RANDBETWEEN(1976,2022)","v":2021},{"$f":"RANDBETWEEN(1976,2022)","v":1976},{"$f":"RANDBETWEEN(1976,2022)","v":2012},{"$f":"RANDBETWEEN(1976,2022)","v":2016},{"$f":"RANDBETWEEN(1976,2022)","v":2005},{"$f":"RANDBETWEEN(1976,2022)","v":1977},{"$f":"RANDBETWEEN(1976,2022)","v":2013},{"$f":"RANDBETWEEN(1976,2022)","v":1999},{"$f":"RANDBETWEEN(1976,2022)","v":1977},{"$f":"RANDBETWEEN(1976,2022)","v":2017},{"$f":"RANDBETWEEN(1976,2022)","v":1986},{"$f":"RANDBETWEEN(1976,2022)","v":1992},{"$f":"RANDBETWEEN(1976,2022)","v":1980},{"$f":"RANDBETWEEN(1976,2022)","v":1980},{"$f":"RANDBETWEEN(1976,2022)","v":2004},{"$f":"RANDBETWEEN(1976,2022)","v":1979},{"$f":"RANDBETWEEN(1976,2022)","v":1985},{"$f":"RANDBETWEEN(1976,2022)","v":2000},{"$f":"RANDBETWEEN(1976,2022)","v":2008},{"$f":"RANDBETWEEN(1976,2022)","v":2009},{"$f":"RANDBETWEEN(1976,2022)","v":1987},{"$f":"RANDBETWEEN(1976,2022)","v":2020},{"$f":"RANDBETWEEN(1976,2022)","v":2021},{"$f":"RANDBETWEEN(1976,2022)","v":1984},{"$f":"RANDBETWEEN(1976,2022)","v":2018},{"$f":"RANDBETWEEN(1976,2022)","v":1988},{"$f":"RANDBETWEEN(1976,2022)","v":2007},{"$f":"RANDBETWEEN(1976,2022)","v":1999},{"$f":"RANDBETWEEN(1976,2022)","v":2015},{"$f":"RANDBETWEEN(1976,2022)","v":1981},{"$f":"RANDBETWEEN(1976,2022)","v":2015},{"$f":"RANDBETWEEN(1976,2022)","v":2006},{"$f":"RANDBETWEEN(1976,2022)","v":1989}]
[1985,3,1.28,null,2007,2.57,1.65,-0.06,-4.56,{"v":-0.09999999999999987,"d":"-0.10"},null,{"$f":"RANDBETWEEN(1976,2022)","v":2006},{"$f":"RANDBETWEEN(1976,2022)","v":2012},{"$f":"RANDBETWEEN(1976,2022)","v":2017},{"$f":"RANDBETWEEN(1976,2022)","v":2013},{"$f":"RANDBETWEEN(1976,2022)","v":1986},{"$f":"RANDBETWEEN(1976,2022)","v":1980},{"$f":"RANDBETWEEN(1976,2022)","v":1982},{"$f":"RANDBETWEEN(1976,2022)","v":2012},{"$f":"RANDBETWEEN(1976,2022)","v":1995},{"$f":"RANDBETWEEN(1976,2022)","v":1988},{"$f":"RANDBETWEEN(1976,2022)","v":2019},{"$f":"RANDBETWEEN(1976,2022)","v":1998},{"$f":"RANDBETWEEN(1976,2022)","v":1991},{"$f":"RANDBETWEEN(1976,2022)","v":2014},{"$f":"RANDBETWEEN(1976,2022)","v":2000},{"$f":"RANDBETWEEN(1976,2022)","v":1982},{"$f":"RANDBETWEEN(1976,2022)","v":1998},{"$f":"RANDBETWEEN(1976,2022)","v":2010},{"$f":"RANDBETWEEN(1976,2022)","v":1998},{"$f":"RANDBETWEEN(1976,2022)","v":2003},{"$f":"RANDBETWEEN(1976,2022)","v":2016},{"$f":"RANDBETWEEN(1976,2022)","v":1981},{"$f":"RANDBETWEEN(1976,2022)","v":1995},{"$f":"RANDBETWEEN(1976,2022)","v":1979},{"$f":"RANDBETWEEN(1976,2022)","v":2015},{"$f":"RANDBETWEEN(1976,2022)","v":2015},{"$f":"RANDBETWEEN(1976,2022)","v":2015},{"$f":"RANDBETWEEN(1976,2022)","v":1994},{"$f":"RANDBETWEEN(1976,2022)","v":1981},{"$f":"RANDBETWEEN(1976,2022)","v":2000},{"$f":"RANDBETWEEN(1976,2022)","v":1980},{"$f":"RANDBETWEEN(1976,2022)","v":2008},{"$f":"RANDBETWEEN(1976,2022)","v":1978},{"$f":"RANDBETWEEN(1976,2022)","v":2011},{"$f":"RANDBETWEEN(1976,2022)","v":2016},{"$f":"RANDBETWEEN(1976,2022)","v":2007},{"$f":"RANDBETWEEN(1976,2022)","v":2007},{"$f":"RANDBETWEEN(1976,2022)","v":1984},{"$f":"RANDBETWEEN(1976,2022)","v":2000},{"$f":"RANDBETWEEN(1976,2022)","v":2017},{"$f":"RANDBETWEEN(1976,2022)","v":2006},{"$f":"RANDBETWEEN(1976,2022)","v":1986},{"$f":"RANDBETWEEN(1976,2022)","v":2010},{"$f":"RANDBETWEEN(1976,2022)","v":1981},{"$f":"RANDBETWEEN(1976,2022)","v":1990},{"$f":"RANDBETWEEN(1976,2022)","v":2017},{"$f":"RANDBETWEEN(1976,2022)","v":1978},{"$f":"RANDBETWEEN(1976,2022)","v":1980},{"$f":"RANDBETWEEN(1976,2022)","v":2006},{"$f":"RANDBETWEEN(1976,2022)","v":2020},{"$f":"RANDBETWEEN(1976,2022)","v":2013},{"$f":"RANDBETWEEN(1976,2022)","v":1994},{"$f":"RANDBETWEEN(1976,2022)","v":1996},{"$f":"RANDBETWEEN(1976,2022)","v":2007},{"$f":"RANDBETWEEN(1976,2022)","v":1998},{"$f":"RANDBETWEEN(1976,2022)","v":1978},{"$f":"RANDBETWEEN(1976,2022)","v":2004},{"$f":"RANDBETWEEN(1976,2022)","v":2006},{"$f":"RANDBETWEEN(1976,2022)","v":2011},{"$f":"RANDBETWEEN(1976,2022)","v":2004},{"$f":"RANDBETWEEN(1976,2022)","v":1994},{"$f":"RANDBETWEEN(1976,2022)","v":2004},{"$f":"RANDBETWEEN(1976,2022)","v":2007},{"$f":"RANDBETWEEN(1976,2022)","v":1981},{"$f":"RANDBETWEEN(1976,2022)","v":1983},{"$f":"RANDBETWEEN(1976,2022)","v":1986},{"$f":"RANDBETWEEN(1976,2022)","v":1996},{"$f":"RANDBETWEEN(1976,2022)","v":1989},{"$f":"RANDBETWEEN(1976,2022)","v":1995},{"$f":"RANDBETWEEN(1976,2022)","v":1993},{"$f":"RANDBETWEEN(1976,2022)","v":2010},{"$f":"RANDBETWEEN(1976,2022)","v":1993},{"$f":"RANDBETWEEN(1976,2022)","v":1982},{"$f":"RANDBETWEEN(1976,2022)","v":1988},{"$f":"RANDBETWEEN(1976,2022)","v":2018},{"$f":"RANDBETWEEN(1976,2022)","v":2012},{"$f":"RANDBETWEEN(1976,2022)","v":1990},{"$f":"RANDBETWEEN(1976,2022)","v":2002},{"$f":"RANDBETWEEN(1976,2022)","v":2007},{"$f":"RANDBETWEEN(1976,2022)","v":1983},{"$f":"RANDBETWEEN(1976,2022)","v":2000},{"$f":"RANDBETWEEN(1976,2022)","v":2014},{"$f":"RANDBETWEEN(1976,2022)","v":1984},{"$f":"RANDBETWEEN(1976,2022)","v":2003},{"$f":"RANDBETWEEN(1976,2022)","v":1985},{"$f":"RANDBETWEEN(1976,2022)","v":2004},{"$f":"RANDBETWEEN(1976,2022)","v":2015},{"$f":"RANDBETWEEN(1976,2022)","v":2006},{"$f":"RANDBETWEEN(1976,2022)","v":2008},{"$f":"RANDBETWEEN(1976,2022)","v":2001},{"$f":"RANDBETWEEN(1976,2022)","v":1976},{"$f":"RANDBETWEEN(1976,2022)","v":2013},{"$f":"RANDBETWEEN(1976,2022)","v":2022},{"$f":"RANDBETWEEN(1976,2022)","v":1981},{"$f":"RANDBETWEEN(1976,2022)","v":2006},{"$f":"RANDBETWEEN(1976,2022)","v":1992},{"$f":"RANDBETWEEN(1976,2022)","v":1978},{"$f":"RANDBETWEEN(1976,2022)","v":2011},{"$f":"RANDBETWEEN(1976,2022)","v":1996},{"$f":"RANDBETWEEN(1976,2022)","v":1983}]
[1985,4,3.43,null,2008,-5.69,-7.42,-7.28,-8.03,{"v":-7.105,"d":"-7.11"},null,{"$f":"RANDBETWEEN(1976,2022)","v":2021},{"$f":"RANDBETWEEN(1976,2022)","v":1977},{"$f":"RANDBETWEEN(1976,2022)","v":2007},{"$f":"RANDBETWEEN(1976,2022)","v":1977},{"$f":"RANDBETWEEN(1976,2022)","v":2011},{"$f":"RANDBETWEEN(1976,2022)","v":1980},{"$f":"RANDBETWEEN(1976,2022)","v":2019},{"$f":"RANDBETWEEN(1976,2022)","v":2017},{"$f":"RANDBETWEEN(1976,2022)","v":1991},{"$f":"RANDBETWEEN(1976,2022)","v":2008},{"$f":"RANDBETWEEN(1976,2022)","v":1980},{"$f":"RANDBETWEEN(1976,2022)","v":2009},{"$f":"RANDBETWEEN(1976,2022)","v":2017},{"$f":"RANDBETWEEN(1976,2022)","v":1985},{"$f":"RANDBETWEEN(1976,2022)","v":2005},{"$f":"RANDBETWEEN(1976,2022)","v":1990},{"$f":"RANDBETWEEN(1976,2022)","v":2018},{"$f":"RANDBETWEEN(1976,2022)","v":2014},{"$f":"RANDBETWEEN(1976,2022)","v":1995},{"$f":"RANDBETWEEN(1976,2022)","v":1976},{"$f":"RANDBETWEEN(1976,2022)","v":2012},{"$f":"RANDBETWEEN(1976,2022)","v":1994},{"$f":"RANDBETWEEN(1976,2022)","v":1984},{"$f":"RANDBETWEEN(1976,2022)","v":1978},{"$f":"RANDBETWEEN(1976,2022)","v":2014},{"$f":"RANDBETWEEN(1976,2022)","v":1998},{"$f":"RANDBETWEEN(1976,2022)","v":2003},{"$f":"RANDBETWEEN(1976,2022)","v":2012},{"$f":"RANDBETWEEN(1976,2022)","v":1978},{"$f":"RANDBETWEEN(1976,2022)","v":1984},{"$f":"RANDBETWEEN(1976,2022)","v":1998},{"$f":"RANDBETWEEN(1976,2022)","v":1992},{"$f":"RANDBETWEEN(1976,2022)","v":1978},{"$f":"RANDBETWEEN(1976,2022)","v":1978},{"$f":"RANDBETWEEN(1976,2022)","v":2007},{"$f":"RANDBETWEEN(1976,2022)","v":2015},{"$f":"RANDBETWEEN(1976,2022)","v":2014},{"$f":"RANDBETWEEN(1976,2022)","v":2013},{"$f":"RANDBETWEEN(1976,2022)","v":1987},{"$f":"RANDBETWEEN(1976,2022)","v":2006},{"$f":"RANDBETWEEN(1976,2022)","v":1978},{"$f":"RANDBETWEEN(1976,2022)","v":1985},{"$f":"RANDBETWEEN(1976,2022)","v":2001},{"$f":"RANDBETWEEN(1976,2022)","v":2000},{"$f":"RANDBETWEEN(1976,2022)","v":1999},{"$f":"RANDBETWEEN(1976,2022)","v":2018},{"$f":"RANDBETWEEN(1976,2022)","v":2013},{"$f":"RANDBETWEEN(1976,2022)","v":2019},{"$f":"RANDBETWEEN(1976,2022)","v":2007},{"$f":"RANDBETWEEN(1976,2022)","v":2014},{"$f":"RANDBETWEEN(1976,2022)","v":1989},{"$f":"RANDBETWEEN(1976,2022)","v":1983},{"$f":"RANDBETWEEN(1976,2022)","v":2000},{"$f":"RANDBETWEEN(1976,2022)","v":1986},{"$f":"RANDBETWEEN(1976,2022)","v":1982},{"$f":"RANDBETWEEN(1976,2022)","v":2016},{"$f":"RANDBETWEEN(1976,2022)","v":1984},{"$f":"RANDBETWEEN(1976,2022)","v":2006},{"$f":"RANDBETWEEN(1976,2022)","v":1992},{"$f":"RANDBETWEEN(1976,2022)","v":1989},{"$f":"RANDBETWEEN(1976,2022)","v":1999},{"$f":"RANDBETWEEN(1976,2022)","v":1982},{"$f":"RANDBETWEEN(1976,2022)","v":1988},{"$f":"RANDBETWEEN(1976,2022)","v":2020},{"$f":"RANDBETWEEN(1976,2022)","v":1984},{"$f":"RANDBETWEEN(1976,2022)","v":1990},{"$f":"RANDBETWEEN(1976,2022)","v":1995},{"$f":"RANDBETWEEN(1976,2022)","v":1976},{"$f":"RANDBETWEEN(1976,2022)","v":2018},{"$f":"RANDBETWEEN(1976,2022)","v":1991},{"$f":"RANDBETWEEN(1976,2022)","v":2003},{"$f":"RANDBETWEEN(1976,2022)","v":2011},{"$f":"RANDBETWEEN(1976,2022)","v":1981},{"$f":"RANDBETWEEN(1976,2022)","v":2019},{"$f":"RANDBETWEEN(1976,2022)","v":1990},{"$f":"RANDBETWEEN(1976,2022)","v":2015},{"$f":"RANDBETWEEN(1976,2022)","v":2000},{"$f":"RANDBETWEEN(1976,2022)","v":2006},{"$f":"RANDBETWEEN(1976,2022)","v":2001},{"$f":"RANDBETWEEN(1976,2022)","v":1978},{"$f":"RANDBETWEEN(1976,2022)","v":2015},{"$f":"RANDBETWEEN(1976,2022)","v":2001},{"$f":"RANDBETWEEN(1976,2022)","v":2021},{"$f":"RANDBETWEEN(1976,2022)","v":1992},{"$f":"RANDBETWEEN(1976,2022)","v":2002},{"$f":"RANDBETWEEN(1976,2022)","v":2004},{"$f":"RANDBETWEEN(1976,2022)","v":1998},{"$f":"RANDBETWEEN(1976,2022)","v":2002},{"$f":"RANDBETWEEN(1976,2022)","v":1985},{"$f":"RANDBETWEEN(1976,2022)","v":2005},{"$f":"RANDBETWEEN(1976,2022)","v":2004},{"$f":"RANDBETWEEN(1976,2022)","v":1978},{"$f":"RANDBETWEEN(1976,2022)","v":1980},{"$f":"RANDBETWEEN(1976,2022)","v":2009},{"$f":"RANDBETWEEN(1976,2022)","v":1976},{"$f":"RANDBETWEEN(1976,2022)","v":2018},{"$f":"RANDBETWEEN(1976,2022)","v":2010},{"$f":"RANDBETWEEN(1976,2022)","v":1999},{"$f":"RANDBETWEEN(1976,2022)","v":1995},{"$f":"RANDBETWEEN(1976,2022)","v":1983}]
[1986,1,3.43,null,2009,-6.05,-4.4,-4.45,-1.01,{"v":-3.9774999999999996,"d":"-3.98"},null,{"$f":"RANDBETWEEN(1976,2022)","v":1976},{"$f":"RANDBETWEEN(1976,2022)","v":2021},{"$f":"RANDBETWEEN(1976,2022)","v":2021},{"$f":"RANDBETWEEN(1976,2022)","v":1997},{"$f":"RANDBETWEEN(1976,2022)","v":2019},{"$f":"RANDBETWEEN(1976,2022)","v":2003},{"$f":"RANDBETWEEN(1976,2022)","v":1994},{"$f":"RANDBETWEEN(1976,2022)","v":1989},{"$f":"RANDBETWEEN(1976,2022)","v":1981},{"$f":"RANDBETWEEN(1976,2022)","v":1999},{"$f":"RANDBETWEEN(1976,2022)","v":1986},{"$f":"RANDBETWEEN(1976,2022)","v":2022},{"$f":"RANDBETWEEN(1976,2022)","v":1977},{"$f":"RANDBETWEEN(1976,2022)","v":1988},{"$f":"RANDBETWEEN(1976,2022)","v":2010},{"$f":"RANDBETWEEN(1976,2022)","v":2022},{"$f":"RANDBETWEEN(1976,2022)","v":2003},{"$f":"RANDBETWEEN(1976,2022)","v":2019},{"$f":"RANDBETWEEN(1976,2022)","v":2016},{"$f":"RANDBETWEEN(1976,2022)","v":2012},{"$f":"RANDBETWEEN(1976,2022)","v":1998},{"$f":"RANDBETWEEN(1976,2022)","v":2015},{"$f":"RANDBETWEEN(1976,2022)","v":2016},{"$f":"RANDBETWEEN(1976,2022)","v":1990},{"$f":"RANDBETWEEN(1976,2022)","v":1994},{"$f":"RANDBETWEEN(1976,2022)","v":2001},{"$f":"RANDBETWEEN(1976,2022)","v":2019},{"$f":"RANDBETWEEN(1976,2022)","v":1976},{"$f":"RANDBETWEEN(1976,2022)","v":2016},{"$f":"RANDBETWEEN(1976,2022)","v":2002},{"$f":"RANDBETWEEN(1976,2022)","v":1982},{"$f":"RANDBETWEEN(1976,2022)","v":1992},{"$f":"RANDBETWEEN(1976,2022)","v":1992},{"$f":"RANDBETWEEN(1976,2022)","v":1994},{"$f":"RANDBETWEEN(1976,2022)","v":2004},{"$f":"RANDBETWEEN(1976,2022)","v":1990},{"$f":"RANDBETWEEN(1976,2022)","v":1981},{"$f":"RANDBETWEEN(1976,2022)","v":1976},{"$f":"RANDBETWEEN(1976,2022)","v":2011},{"$f":"RANDBETWEEN(1976,2022)","v":2003},{"$f":"RANDBETWEEN(1976,2022)","v":2021},{"$f":"RANDBETWEEN(1976,2022)","v":2016},{"$f":"RANDBETWEEN(1976,2022)","v":2020},{"$f":"RANDBETWEEN(1976,2022)","v":1988},{"$f":"RANDBETWEEN(1976,2022)","v":1989},{"$f":"RANDBETWEEN(1976,2022)","v":1989},{"$f":"RANDBETWEEN(1976,2022)","v":1992},{"$f":"RANDBETWEEN(1976,2022)","v":1998},{"$f":"RANDBETWEEN(1976,2022)","v":2012},{"$f":"RANDBETWEEN(1976,2022)","v":1981},{"$f":"RANDBETWEEN(1976,2022)","v":2014},{"$f":"RANDBETWEEN(1976,2022)","v":1982},{"$f":"RANDBETWEEN(1976,2022)","v":2003},{"$f":"RANDBETWEEN(1976,2022)","v":1989},{"$f":"RANDBETWEEN(1976,2022)","v":1997},{"$f":"RANDBETWEEN(1976,2022)","v":1993},{"$f":"RANDBETWEEN(1976,2022)","v":2006},{"$f":"RANDBETWEEN(1976,2022)","v":2015},{"$f":"RANDBETWEEN(1976,2022)","v":1987},{"$f":"RANDBETWEEN(1976,2022)","v":1983},{"$f":"RANDBETWEEN(1976,2022)","v":2010},{"$f":"RANDBETWEEN(1976,2022)","v":1981},{"$f":"RANDBETWEEN(1976,2022)","v":1981},{"$f":"RANDBETWEEN(1976,2022)","v":1983},{"$f":"RANDBETWEEN(1976,2022)","v":1994},{"$f":"RANDBETWEEN(1976,2022)","v":2010},{"$f":"RANDBETWEEN(1976,2022)","v":2007},{"$f":"RANDBETWEEN(1976,2022)","v":1979},{"$f":"RANDBETWEEN(1976,2022)","v":1985},{"$f":"RANDBETWEEN(1976,2022)","v":2009},{"$f":"RANDBETWEEN(1976,2022)","v":1984},{"$f":"RANDBETWEEN(1976,2022)","v":2002},{"$f":"RANDBETWEEN(1976,2022)","v":1982},{"$f":"RANDBETWEEN(1976,2022)","v":1993},{"$f":"RANDBETWEEN(1976,2022)","v":2021},{"$f":"RANDBETWEEN(1976,2022)","v":1999},{"$f":"RANDBETWEEN(1976,2022)","v":2000},{"$f":"RANDBETWEEN(1976,2022)","v":2008},{"$f":"RANDBETWEEN(1976,2022)","v":2003},{"$f":"RANDBETWEEN(1976,2022)","v":1981},{"$f":"RANDBETWEEN(1976,2022)","v":1983},{"$f":"RANDBETWEEN(1976,2022)","v":1991},{"$f":"RANDBETWEEN(1976,2022)","v":1995},{"$f":"RANDBETWEEN(1976,2022)","v":1991},{"$f":"RANDBETWEEN(1976,2022)","v":2003},{"$f":"RANDBETWEEN(1976,2022)","v":1988},{"$f":"RANDBETWEEN(1976,2022)","v":2018},{"$f":"RANDBETWEEN(1976,2022)","v":2015},{"$f":"RANDBETWEEN(1976,2022)","v":1987},{"$f":"RANDBETWEEN(1976,2022)","v":2005},{"$f":"RANDBETWEEN(1976,2022)","v":2016},{"$f":"RANDBETWEEN(1976,2022)","v":1998},{"$f":"RANDBETWEEN(1976,2022)","v":2001},{"$f":"RANDBETWEEN(1976,2022)","v":1989},{"$f":"RANDBETWEEN(1976,2022)","v":1976},{"$f":"RANDBETWEEN(1976,2022)","v":2016},{"$f":"RANDBETWEEN(1976,2022)","v":1992},{"$f":"RANDBETWEEN(1976,2022)","v":2020},{"$f":"RANDBETWEEN(1976,2022)","v":2009},{"$f":"RANDBETWEEN(1976,2022)","v":1989}]
[1986,2,2.62,null,2010,-4.92,-2.63,-2.23,-3.28,{"v":-3.2649999999999997,"d":"-3.27"},null,{"$f":"RANDBETWEEN(1976,2022)","v":1992},{"$f":"RANDBETWEEN(1976,2022)","v":2007},{"$f":"RANDBETWEEN(1976,2022)","v":1984},{"$f":"RANDBETWEEN(1976,2022)","v":1983},{"$f":"RANDBETWEEN(1976,2022)","v":2014},{"$f":"RANDBETWEEN(1976,2022)","v":1998},{"$f":"RANDBETWEEN(1976,2022)","v":1991},{"$f":"RANDBETWEEN(1976,2022)","v":1993},{"$f":"RANDBETWEEN(1976,2022)","v":2011},{"$f":"RANDBETWEEN(1976,2022)","v":1993},{"$f":"RANDBETWEEN(1976,2022)","v":1998},{"$f":"RANDBETWEEN(1976,2022)","v":1997},{"$f":"RANDBETWEEN(1976,2022)","v":2009},{"$f":"RANDBETWEEN(1976,2022)","v":2011},{"$f":"RANDBETWEEN(1976,2022)","v":2007},{"$f":"RANDBETWEEN(1976,2022)","v":1977},{"$f":"RANDBETWEEN(1976,2022)","v":1990},{"$f":"RANDBETWEEN(1976,2022)","v":2006},{"$f":"RANDBETWEEN(1976,2022)","v":1994},{"$f":"RANDBETWEEN(1976,2022)","v":1980},{"$f":"RANDBETWEEN(1976,2022)","v":2012},{"$f":"RANDBETWEEN(1976,2022)","v":1989},{"$f":"RANDBETWEEN(1976,2022)","v":2019},{"$f":"RANDBETWEEN(1976,2022)","v":1997},{"$f":"RANDBETWEEN(1976,2022)","v":2018},{"$f":"RANDBETWEEN(1976,2022)","v":2020},{"$f":"RANDBETWEEN(1976,2022)","v":1998},{"$f":"RANDBETWEEN(1976,2022)","v":1984},{"$f":"RANDBETWEEN(1976,2022)","v":1980},{"$f":"RANDBETWEEN(1976,2022)","v":2014},{"$f":"RANDBETWEEN(1976,2022)","v":2009},{"$f":"RANDBETWEEN(1976,2022)","v":1992},{"$f":"RANDBETWEEN(1976,2022)","v":2010},{"$f":"RANDBETWEEN(1976,2022)","v":2005},{"$f":"RANDBETWEEN(1976,2022)","v":2013},{"$f":"RANDBETWEEN(1976,2022)","v":2006},{"$f":"RANDBETWEEN(1976,2022)","v":1985},{"$f":"RANDBETWEEN(1976,2022)","v":1996},{"$f":"RANDBETWEEN(1976,2022)","v":2004},{"$f":"RANDBETWEEN(1976,2022)","v":1999},{"$f":"RANDBETWEEN(1976,2022)","v":1996},{"$f":"RANDBETWEEN(1976,2022)","v":2021},{"$f":"RANDBETWEEN(1976,2022)","v":2011},{"$f":"RANDBETWEEN(1976,2022)","v":1976},{"$f":"RANDBETWEEN(1976,2022)","v":1991},{"$f":"RANDBETWEEN(1976,2022)","v":1977},{"$f":"RANDBETWEEN(1976,2022)","v":1983},{"$f":"RANDBETWEEN(1976,2022)","v":1992},{"$f":"RANDBETWEEN(1976,2022)","v":2018},{"$f":"RANDBETWEEN(1976,2022)","v":2009},{"$f":"RANDBETWEEN(1976,2022)","v":1993},{"$f":"RANDBETWEEN(1976,2022)","v":2019},{"$f":"RANDBETWEEN(1976,2022)","v":1982},{"$f":"RANDBETWEEN(1976,2022)","v":2004},{"$f":"RANDBETWEEN(1976,2022)","v":1984},{"$f":"RANDBETWEEN(1976,2022)","v":1983},{"$f":"RANDBETWEEN(1976,2022)","v":1990},{"$f":"RANDBETWEEN(1976,2022)","v":1984},{"$f":"RANDBETWEEN(1976,2022)","v":2020},{"$f":"RANDBETWEEN(1976,2022)","v":1997},{"$f":"RANDBETWEEN(1976,2022)","v":2018},{"$f":"RANDBETWEEN(1976,2022)","v":1995},{"$f":"RANDBETWEEN(1976,2022)","v":1996},{"$f":"RANDBETWEEN(1976,2022)","v":1997},{"$f":"RANDBETWEEN(1976,2022)","v":2009},{"$f":"RANDBETWEEN(1976,2022)","v":2020},{"$f":"RANDBETWEEN(1976,2022)","v":1998},{"$f":"RANDBETWEEN(1976,2022)","v":2020},{"$f":"RANDBETWEEN(1976,2022)","v":1984},{"$f":"RANDBETWEEN(1976,2022)","v":2022},{"$f":"RANDBETWEEN(1976,2022)","v":2003},{"$f":"RANDBETWEEN(1976,2022)","v":1994},{"$f":"RANDBETWEEN(1976,2022)","v":1979},{"$f":"RANDBETWEEN(1976,2022)","v":2019},{"$f":"RANDBETWEEN(1976,2022)","v":1995},{"$f":"RANDBETWEEN(1976,2022)","v":1992},{"$f":"RANDBETWEEN(1976,2022)","v":1983},{"$f":"RANDBETWEEN(1976,2022)","v":1979},{"$f":"RANDBETWEEN(1976,2022)","v":2010},{"$f":"RANDBETWEEN(1976,2022)","v":1986},{"$f":"RANDBETWEEN(1976,2022)","v":2005},{"$f":"RANDBETWEEN(1976,2022)","v":1981},{"$f":"RANDBETWEEN(1976,2022)","v":2005},{"$f":"RANDBETWEEN(1976,2022)","v":1991},{"$f":"RANDBETWEEN(1976,2022)","v":2013},{"$f":"RANDBETWEEN(1976,2022)","v":1991},{"$f":"RANDBETWEEN(1976,2022)","v":2020},{"$f":"RANDBETWEEN(1976,2022)","v":2000},{"$f":"RANDBETWEEN(1976,2022)","v":1993},{"$f":"RANDBETWEEN(1976,2022)","v":1992},{"$f":"RANDBETWEEN(1976,2022)","v":1985},{"$f":"RANDBETWEEN(1976,2022)","v":2014},{"$f":"RANDBETWEEN(1976,2022)","v":2008},{"$f":"RANDBETWEEN(1976,2022)","v":1999},{"$f":"RANDBETWEEN(1976,2022)","v":2009},{"$f":"RANDBETWEEN(1976,2022)","v":2014},{"$f":"RANDBETWEEN(1976,2022)","v":1979},{"$f":"RANDBETWEEN(1976,2022)","v":2022},{"$f":"RANDBETWEEN(1976,2022)","v":1984},{"$f":"RANDBETWEEN(1976,2022)","v":1997}]
[1986,3,6.25,null,2011,-6.08,-8.43,-5.33,{"v":-4.3,"d":"-4.30"},{"v":-6.035,"d":"-6.04"},null,{"$f":"RANDBETWEEN(1976,2022)","v":2005},{"$f":"RANDBETWEEN(1976,2022)","v":2006},{"$f":"RANDBETWEEN(1976,2022)","v":2000},{"$f":"RANDBETWEEN(1976,2022)","v":1996},{"$f":"RANDBETWEEN(1976,2022)","v":1982},{"$f":"RANDBETWEEN(1976,2022)","v":2016},{"$f":"RANDBETWEEN(1976,2022)","v":2002},{"$f":"RANDBETWEEN(1976,2022)","v":2016},{"$f":"RANDBETWEEN(1976,2022)","v":1984},{"$f":"RANDBETWEEN(1976,2022)","v":1979},{"$f":"RANDBETWEEN(1976,2022)","v":2003},{"$f":"RANDBETWEEN(1976,2022)","v":1999},{"$f":"RANDBETWEEN(1976,2022)","v":2020},{"$f":"RANDBETWEEN(1976,2022)","v":1978},{"$f":"RANDBETWEEN(1976,2022)","v":1999},{"$f":"RANDBETWEEN(1976,2022)","v":1977},{"$f":"RANDBETWEEN(1976,2022)","v":1981},{"$f":"RANDBETWEEN(1976,2022)","v":2013},{"$f":"RANDBETWEEN(1976,2022)","v":2005},{"$f":"RANDBETWEEN(1976,2022)","v":2018},{"$f":"RANDBETWEEN(1976,2022)","v":2018},{"$f":"RANDBETWEEN(1976,2022)","v":2006},{"$f":"RANDBETWEEN(1976,2022)","v":1997},{"$f":"RANDBETWEEN(1976,2022)","v":2004},{"$f":"RANDBETWEEN(1976,2022)","v":1981},{"$f":"RANDBETWEEN(1976,2022)","v":2014},{"$f":"RANDBETWEEN(1976,2022)","v":1977},{"$f":"RANDBETWEEN(1976,2022)","v":2015},{"$f":"RANDBETWEEN(1976,2022)","v":2008},{"$f":"RANDBETWEEN(1976,2022)","v":1985},{"$f":"RANDBETWEEN(1976,2022)","v":1976},{"$f":"RANDBETWEEN(1976,2022)","v":1985},{"$f":"RANDBETWEEN(1976,2022)","v":2021},{"$f":"RANDBETWEEN(1976,2022)","v":2016},{"$f":"RANDBETWEEN(1976,2022)","v":1986},{"$f":"RANDBETWEEN(1976,2022)","v":1991},{"$f":"RANDBETWEEN(1976,2022)","v":2018},{"$f":"RANDBETWEEN(1976,2022)","v":1993},{"$f":"RANDBETWEEN(1976,2022)","v":2003},{"$f":"RANDBETWEEN(1976,2022)","v":1991},{"$f":"RANDBETWEEN(1976,2022)","v":1988},{"$f":"RANDBETWEEN(1976,2022)","v":1983},{"$f":"RANDBETWEEN(1976,2022)","v":2016},{"$f":"RANDBETWEEN(1976,2022)","v":1994},{"$f":"RANDBETWEEN(1976,2022)","v":1993},{"$f":"RANDBETWEEN(1976,2022)","v":2009},{"$f":"RANDBETWEEN(1976,2022)","v":2011},{"$f":"RANDBETWEEN(1976,2022)","v":2011},{"$f":"RANDBETWEEN(1976,2022)","v":1997},{"$f":"RANDBETWEEN(1976,2022)","v":2020},{"$f":"RANDBETWEEN(1976,2022)","v":2000},{"$f":"RANDBETWEEN(1976,2022)","v":1997},{"$f":"RANDBETWEEN(1976,2022)","v":2005},{"$f":"RANDBETWEEN(1976,2022)","v":1991},{"$f":"RANDBETWEEN(1976,2022)","v":2005},{"$f":"RANDBETWEEN(1976,2022)","v":2017},{"$f":"RANDBETWEEN(1976,2022)","v":2003},{"$f":"RANDBETWEEN(1976,2022)","v":2008},{"$f":"RANDBETWEEN(1976,2022)","v":2001},{"$f":"RANDBETWEEN(1976,2022)","v":2008},{"$f":"RANDBETWEEN(1976,2022)","v":2000},{"$f":"RANDBETWEEN(1976,2022)","v":1987},{"$f":"RANDBETWEEN(1976,2022)","v":2012},{"$f":"RANDBETWEEN(1976,2022)","v":1976},{"$f":"RANDBETWEEN(1976,2022)","v":1976},{"$f":"RANDBETWEEN(1976,2022)","v":2016},{"$f":"RANDBETWEEN(1976,2022)","v":1986},{"$f":"RANDBETWEEN(1976,2022)","v":2016},{"$f":"RANDBETWEEN(1976,2022)","v":2003},{"$f":"RANDBETWEEN(1976,2022)","v":2019},{"$f":"RANDBETWEEN(1976,2022)","v":1986},{"$f":"RANDBETWEEN(1976,2022)","v":1980},{"$f":"RANDBETWEEN(1976,2022)","v":1980},{"$f":"RANDBETWEEN(1976,2022)","v":1989},{"$f":"RANDBETWEEN(1976,2022)","v":1985},{"$f":"RANDBETWEEN(1976,2022)","v":1999},{"$f":"RANDBETWEEN(1976,2022)","v":2008},{"$f":"RANDBETWEEN(1976,2022)","v":1986},{"$f":"RANDBETWEEN(1976,2022)","v":2018},{"$f":"RANDBETWEEN(1976,2022)","v":1989},{"$f":"RANDBETWEEN(1976,2022)","v":2015},{"$f":"RANDBETWEEN(1976,2022)","v":1980},{"$f":"RANDBETWEEN(1976,2022)","v":1976},{"$f":"RANDBETWEEN(1976,2022)","v":1987},{"$f":"RANDBETWEEN(1976,2022)","v":1995},{"$f":"RANDBETWEEN(1976,2022)","v":1983},{"$f":"RANDBETWEEN(1976,2022)","v":2010},{"$f":"RANDBETWEEN(1976,2022)","v":1998},{"$f":"RANDBETWEEN(1976,2022)","v":2020},{"$f":"RANDBETWEEN(1976,2022)","v":1978},{"$f":"RANDBETWEEN(1976,2022)","v":1998},{"$f":"RANDBETWEEN(1976,2022)","v":2021},{"$f":"RANDBETWEEN(1976,2022)","v":1987},{"$f":"RANDBETWEEN(1976,2022)","v":1990},{"$f":"RANDBETWEEN(1976,2022)","v":1993},{"$f":"RANDBETWEEN(1976,2022)","v":1979},{"$f":"RANDBETWEEN(1976,2022)","v":1989},{"$f":"RANDBETWEEN(1976,2022)","v":1993},{"$f":"RANDBETWEEN(1976,2022)","v":1979},{"$f":"RANDBETWEEN(1976,2022)","v":1978}]
[1986,4,3.27,null,2012,-0.36,3.61,4.67,{"v":5,"d":"5.00"},3.23,null,{"$f":"RANDBETWEEN(1976,2022)","v":2003},{"$f":"RANDBETWEEN(1976,2022)","v":2022},{"$f":"RANDBETWEEN(1976,2022)","v":2009},{"$f":"RANDBETWEEN(1976,2022)","v":2022},{"$f":"RANDBETWEEN(1976,2022)","v":1987},{"$f":"RANDBETWEEN(1976,2022)","v":1984},{"$f":"RANDBETWEEN(1976,2022)","v":1987},{"$f":"RANDBETWEEN(1976,2022)","v":1976},{"$f":"RANDBETWEEN(1976,2022)","v":1979},{"$f":"RANDBETWEEN(1976,2022)","v":1976},{"$f":"RANDBETWEEN(1976,2022)","v":2004},{"$f":"RANDBETWEEN(1976,2022)","v":1990},{"$f":"RANDBETWEEN(1976,2022)","v":2000},{"$f":"RANDBETWEEN(1976,2022)","v":2000},{"$f":"RANDBETWEEN(1976,2022)","v":1997},{"$f":"RANDBETWEEN(1976,2022)","v":2007},{"$f":"RANDBETWEEN(1976,2022)","v":2015},{"$f":"RANDBETWEEN(1976,2022)","v":1984},{"$f":"RANDBETWEEN(1976,2022)","v":1980},{"$f":"RANDBETWEEN(1976,2022)","v":2005},{"$f":"RANDBETWEEN(1976,2022)","v":2008},{"$f":"RANDBETWEEN(1976,2022)","v":2010},{"$f":"RANDBETWEEN(1976,2022)","v":1992},{"$f":"RANDBETWEEN(1976,2022)","v":1982},{"$f":"RANDBETWEEN(1976,2022)","v":1983},{"$f":"RANDBETWEEN(1976,2022)","v":2004},{"$f":"RANDBETWEEN(1976,2022)","v":2016},{"$f":"RANDBETWEEN(1976,2022)","v":2021},{"$f":"RANDBETWEEN(1976,2022)","v":2002},{"$f":"RANDBETWEEN(1976,2022)","v":1982},{"$f":"RANDBETWEEN(1976,2022)","v":1984},{"$f":"RANDBETWEEN(1976,2022)","v":2008},{"$f":"RANDBETWEEN(1976,2022)","v":2004},{"$f":"RANDBETWEEN(1976,2022)","v":2007},{"$f":"RANDBETWEEN(1976,2022)","v":2008},{"$f":"RANDBETWEEN(1976,2022)","v":2010},{"$f":"RANDBETWEEN(1976,2022)","v":2002},{"$f":"RANDBETWEEN(1976,2022)","v":1992},{"$f":"RANDBETWEEN(1976,2022)","v":2007},{"$f":"RANDBETWEEN(1976,2022)","v":2000},{"$f":"RANDBETWEEN(1976,2022)","v":1994},{"$f":"RANDBETWEEN(1976,2022)","v":2006},{"$f":"RANDBETWEEN(1976,2022)","v":2002},{"$f":"RANDBETWEEN(1976,2022)","v":1988},{"$f":"RANDBETWEEN(1976,2022)","v":1981},{"$f":"RANDBETWEEN(1976,2022)","v":2017},{"$f":"RANDBETWEEN(1976,2022)","v":1999},{"$f":"RANDBETWEEN(1976,2022)","v":2007},{"$f":"RANDBETWEEN(1976,2022)","v":2015},{"$f":"RANDBETWEEN(1976,2022)","v":1991},{"$f":"RANDBETWEEN(1976,2022)","v":1978},{"$f":"RANDBETWEEN(1976,2022)","v":2016},{"$f":"RANDBETWEEN(1976,2022)","v":2004},{"$f":"RANDBETWEEN(1976,2022)","v":1993},{"$f":"RANDBETWEEN(1976,2022)","v":2020},{"$f":"RANDBETWEEN(1976,2022)","v":2014},{"$f":"RANDBETWEEN(1976,2022)","v":1987},{"$f":"RANDBETWEEN(1976,2022)","v":1995},{"$f":"RANDBETWEEN(1976,2022)","v":1995},{"$f":"RANDBETWEEN(1976,2022)","v":1999},{"$f":"RANDBETWEEN(1976,2022)","v":1981},{"$f":"RANDBETWEEN(1976,2022)","v":2004},{"$f":"RANDBETWEEN(1976,2022)","v":2017},{"$f":"RANDBETWEEN(1976,2022)","v":1987},{"$f":"RANDBETWEEN(1976,2022)","v":1999},{"$f":"RANDBETWEEN(1976,2022)","v":1980},{"$f":"RANDBETWEEN(1976,2022)","v":1983},{"$f":"RANDBETWEEN(1976,2022)","v":1982},{"$f":"RANDBETWEEN(1976,2022)","v":2021},{"$f":"RANDBETWEEN(1976,2022)","v":2014},{"$f":"RANDBETWEEN(1976,2022)","v":1979},{"$f":"RANDBETWEEN(1976,2022)","v":1992},{"$f":"RANDBETWEEN(1976,2022)","v":2011},{"$f":"RANDBETWEEN(1976,2022)","v":2010},{"$f":"RANDBETWEEN(1976,2022)","v":2002},{"$f":"RANDBETWEEN(1976,2022)","v":1982},{"$f":"RANDBETWEEN(1976,2022)","v":2015},{"$f":"RANDBETWEEN(1976,2022)","v":2017},{"$f":"RANDBETWEEN(1976,2022)","v":1992},{"$f":"RANDBETWEEN(1976,2022)","v":2021},{"$f":"RANDBETWEEN(1976,2022)","v":1998},{"$f":"RANDBETWEEN(1976,2022)","v":2000},{"$f":"RANDBETWEEN(1976,2022)","v":1983},{"$f":"RANDBETWEEN(1976,2022)","v":1995},{"$f":"RANDBETWEEN(1976,2022)","v":2008},{"$f":"RANDBETWEEN(1976,2022)","v":1979},{"$f":"RANDBETWEEN(1976,2022)","v":2022},{"$f":"RANDBETWEEN(1976,2022)","v":2006},{"$f":"RANDBETWEEN(1976,2022)","v":2002},{"$f":"RANDBETWEEN(1976,2022)","v":2002},{"$f":"RANDBETWEEN(1976,2022)","v":2005},{"$f":"RANDBETWEEN(1976,2022)","v":2008},{"$f":"RANDBETWEEN(1976,2022)","v":2012},{"$f":"RANDBETWEEN(1976,2022)","v":1976},{"$f":"RANDBETWEEN(1976,2022)","v":1978},{"$f":"RANDBETWEEN(1976,2022)","v":1995},{"$f":"RANDBETWEEN(1976,2022)","v":1992},{"$f":"RANDBETWEEN(1976,2022)","v":1984},{"$f":"RANDBETWEEN(1976,2022)","v":1991},{"$f":"RANDBETWEEN(1976,2022)","v":2006}]
[1987,1,4.65,null,2013,{"$nulls":4},{"v":4.894259205984238,"d":"4.89"},null,{"$f":"RANDBETWEEN(1976,2022)","v":1989},{"$f":"RANDBETWEEN(1976,2022)","v":1990},{"$f":"RANDBETWEEN(1976,2022)","v":2003},{"$f":"RANDBETWEEN(1976,2022)","v":1994},{"$f":"RANDBETWEEN(1976,2022)","v":1988},{"$f":"RANDBETWEEN(1976,2022)","v":1997},{"$f":"RANDBETWEEN(1976,2022)","v":2019},{"$f":"RANDBETWEEN(1976,2022)","v":2011},{"$f":"RANDBETWEEN(1976,2022)","v":2006},{"$f":"RANDBETWEEN(1976,2022)","v":1981},{"$f":"RANDBETWEEN(1976,2022)","v":2016},{"$f":"RANDBETWEEN(1976,2022)","v":2007},{"$f":"RANDBETWEEN(1976,2022)","v":1977},{"$f":"RANDBETWEEN(1976,2022)","v":1990},{"$f":"RANDBETWEEN(1976,2022)","v":1991},{"$f":"RANDBETWEEN(1976,2022)","v":1976},{"$f":"RANDBETWEEN(1976,2022)","v":1980},{"$f":"RANDBETWEEN(1976,2022)","v":2002},{"$f":"RANDBETWEEN(1976,2022)","v":2012},{"$f":"RANDBETWEEN(1976,2022)","v":2007},{"$f":"RANDBETWEEN(1976,2022)","v":1999},{"$f":"RANDBETWEEN(1976,2022)","v":2011},{"$f":"RANDBETWEEN(1976,2022)","v":2008},{"$f":"RANDBETWEEN(1976,2022)","v":1994},{"$f":"RANDBETWEEN(1976,2022)","v":1986},{"$f":"RANDBETWEEN(1976,2022)","v":2017},{"$f":"RANDBETWEEN(1976,2022)","v":2020},{"$f":"RANDBETWEEN(1976,2022)","v":1982},{"$f":"RANDBETWEEN(1976,2022)","v":1979},{"$f":"RANDBETWEEN(1976,2022)","v":2008},{"$f":"RANDBETWEEN(1976,2022)","v":2012},{"$f":"RANDBETWEEN(1976,2022)","v":2022},{"$f":"RANDBETWEEN(1976,2022)","v":1985},{"$f":"RANDBETWEEN(1976,2022)","v":1992},{"$f":"RANDBETWEEN(1976,2022)","v":2002},{"$f":"RANDBETWEEN(1976,2022)","v":1987},{"$f":"RANDBETWEEN(1976,2022)","v":1980},{"$f":"RANDBETWEEN(1976,2022)","v":1979},{"$f":"RANDBETWEEN(1976,2022)","v":1976},{"$f":"RANDBETWEEN(1976,2022)","v":1995},{"$f":"RANDBETWEEN(1976,2022)","v":2021},{"$f":"RANDBETWEEN(1976,2022)","v":2007},{"$f":"RANDBETWEEN(1976,2022)","v":1999},{"$f":"RANDBETWEEN(1976,2022)","v":1984},{"$f":"RANDBETWEEN(1976,2022)","v":2012},{"$f":"RANDBETWEEN(1976,2022)","v":1997},{"$f":"RANDBETWEEN(1976,2022)","v":2007},{"$f":"RANDBETWEEN(1976,2022)","v":2010},{"$f":"RANDBETWEEN(1976,2022)","v":1979},{"$f":"RANDBETWEEN(1976,2022)","v":2005},{"$f":"RANDBETWEEN(1976,2022)","v":2013},{"$f":"RANDBETWEEN(1976,2022)","v":2019},{"$f":"RANDBETWEEN(1976,2022)","v":1997},{"$f":"RANDBETWEEN(1976,2022)","v":1978},{"$f":"RANDBETWEEN(1976,2022)","v":1993},{"$f":"RANDBETWEEN(1976,2022)","v":1980},{"$f":"RANDBETWEEN(1976,2022)","v":2007},{"$f":"RANDBETWEEN(1976,2022)","v":1992},{"$f":"RANDBETWEEN(1976,2022)","v":1997},{"$f":"RANDBETWEEN(1976,2022)","v":1993},{"$f":"RANDBETWEEN(1976,2022)","v":2002},{"$f":"RANDBETWEEN(1976,2022)","v":1979},{"$f":"RANDBETWEEN(1976,2022)","v":1999},{"$f":"RANDBETWEEN(1976,2022)","v":2014},{"$f":"RANDBETWEEN(1976,2022)","v":2001},{"$f":"RANDBETWEEN(1976,2022)","v":2019},{"$f":"RANDBETWEEN(1976,2022)","v":1992},{"$f":"RANDBETWEEN(1976,2022)","v":1987},{"$f":"RANDBETWEEN(1976,2022)","v":2018},{"$f":"RANDBETWEEN(1976,2022)","v":1992},{"$f":"RANDBETWEEN(1976,2022)","v":1985},{"$f":"RANDBETWEEN(1976,2022)","v":1983},{"$f":"RANDBETWEEN(1976,2022)","v":1987},{"$f":"RANDBETWEEN(1976,2022)","v":2004},{"$f":"RANDBETWEEN(1976,2022)","v":2007},{"$f":"RANDBETWEEN(1976,2022)","v":2012},{"$f":"RANDBETWEEN(1976,2022)","v":2021},{"$f":"RANDBETWEEN(1976,2022)","v":1977},{"$f":"RANDBETWEEN(1976,2022)","v":1976},{"$f":"RANDBETWEEN(1976,2022)","v":2004},{"$f":"RANDBETWEEN(1976,2022)","v":2006},{"$f":"RANDBETWEEN(1976,2022)","v":2015},{"$f":"RANDBETWEEN(1976,2022)","v":1993},{"$f":"RANDBETWEEN(1976,2022)","v":1992},{"$f":"RANDBETWEEN(1976,2022)","v":2016},{"$f":"RANDBETWEEN(1976,2022)","v":1986},{"$f":"RANDBETWEEN(1976,2022)","v":2010},{"$f":"RANDBETWEEN(1976,2022)","v":2022},{"$f":"RANDBETWEEN(1976,2022)","v":1984},{"$f":"RANDBETWEEN(1976,2022)","v":1988},{"$f":"RANDBETWEEN(1976,2022)","v":1983},{"$f":"RANDBETWEEN(1976,2022)","v":1991},{"$f":"RANDBETWEEN(1976,2022)","v":1983},{"$f":"RANDBETWEEN(1976,2022)","v":1990},{"$f":"RANDBETWEEN(1976,2022)","v":1983},{"$f":"RANDBETWEEN(1976,2022)","v":1989},{"$f":"RANDBETWEEN(1976,2022)","v":1998},{"$f":"RANDBETWEEN(1976,2022)","v":1982},{"$f":"RANDBETWEEN(1976,2022)","v":2006},{"$f":"RANDBETWEEN(1976,2022)","v":1999}]
[1987,2,6.38,null,2014,{"$nulls":4},{"v":4.550685276389507,"d":"4.55"},null,{"$f":"RANDBETWEEN(1976,2022)","v":2000},{"$f":"RANDBETWEEN(1976,2022)","v":2000},{"$f":"RANDBETWEEN(1976,2022)","v":2003},{"$f":"RANDBETWEEN(1976,2022)","v":1978},{"$f":"RANDBETWEEN(1976,2022)","v":2000},{"$f":"RANDBETWEEN(1976,2022)","v":1994},{"$f":"RANDBETWEEN(1976,2022)","v":2004},{"$f":"RANDBETWEEN(1976,2022)","v":1981},{"$f":"RANDBETWEEN(1976,2022)","v":2014},{"$f":"RANDBETWEEN(1976,2022)","v":1985},{"$f":"RANDBETWEEN(1976,2022)","v":2022},{"$f":"RANDBETWEEN(1976,2022)","v":2001},{"$f":"RANDBETWEEN(1976,2022)","v":1992},{"$f":"RANDBETWEEN(1976,2022)","v":1991},{"$f":"RANDBETWEEN(1976,2022)","v":2016},{"$f":"RANDBETWEEN(1976,2022)","v":2018},{"$f":"RANDBETWEEN(1976,2022)","v":1983},{"$f":"RANDBETWEEN(1976,2022)","v":2012},{"$f":"RANDBETWEEN(1976,2022)","v":1988},{"$f":"RANDBETWEEN(1976,2022)","v":1976},{"$f":"RANDBETWEEN(1976,2022)","v":1991},{"$f":"RANDBETWEEN(1976,2022)","v":1976},{"$f":"RANDBETWEEN(1976,2022)","v":1984},{"$f":"RANDBETWEEN(1976,2022)","v":2009},{"$f":"RANDBETWEEN(1976,2022)","v":1987},{"$f":"RANDBETWEEN(1976,2022)","v":2003},{"$f":"RANDBETWEEN(1976,2022)","v":1977},{"$f":"RANDBETWEEN(1976,2022)","v":1977},{"$f":"RANDBETWEEN(1976,2022)","v":1985},{"$f":"RANDBETWEEN(1976,2022)","v":1978},{"$f":"RANDBETWEEN(1976,2022)","v":1982},{"$f":"RANDBETWEEN(1976,2022)","v":1988},{"$f":"RANDBETWEEN(1976,2022)","v":2000},{"$f":"RANDBETWEEN(1976,2022)","v":1986},{"$f":"RANDBETWEEN(1976,2022)","v":1988},{"$f":"RANDBETWEEN(1976,2022)","v":2020},{"$f":"RANDBETWEEN(1976,2022)","v":1979},{"$f":"RANDBETWEEN(1976,2022)","v":2008},{"$f":"RANDBETWEEN(1976,2022)","v":1976},{"$f":"RANDBETWEEN(1976,2022)","v":1988},{"$f":"RANDBETWEEN(1976,2022)","v":2007},{"$f":"RANDBETWEEN(1976,2022)","v":2011},{"$f":"RANDBETWEEN(1976,2022)","v":1986},{"$f":"RANDBETWEEN(1976,2022)","v":1989},{"$f":"RANDBETWEEN(1976,2022)","v":1995},{"$f":"RANDBETWEEN(1976,2022)","v":1979},{"$f":"RANDBETWEEN(1976,2022)","v":1992},{"$f":"RANDBETWEEN(1976,2022)","v":1985},{"$f":"RANDBETWEEN(1976,2022)","v":1986},{"$f":"RANDBETWEEN(1976,2022)","v":1999},{"$f":"RANDBETWEEN(1976,2022)","v":1991},{"$f":"RANDBETWEEN(1976,2022)","v":1991},{"$f":"RANDBETWEEN(1976,2022)","v":1999},{"$f":"RANDBETWEEN(1976,2022)","v":2007},{"$f":"RANDBETWEEN(1976,2022)","v":1979},{"$f":"RANDBETWEEN(1976,2022)","v":2004},{"$f":"RANDBETWEEN(1976,2022)","v":1982},{"$f":"RANDBETWEEN(1976,2022)","v":1980},{"$f":"RANDBETWEEN(1976,2022)","v":1999},{"$f":"RANDBETWEEN(1976,2022)","v":2016},{"$f":"RANDBETWEEN(1976,2022)","v":1976},{"$f":"RANDBETWEEN(1976,2022)","v":2001},{"$f":"RANDBETWEEN(1976,2022)","v":1992},{"$f":"RANDBETWEEN(1976,2022)","v":1983},{"$f":"RANDBETWEEN(1976,2022)","v":1978},{"$f":"RANDBETWEEN(1976,2022)","v":2012},{"$f":"RANDBETWEEN(1976,2022)","v":2021},{"$f":"RANDBETWEEN(1976,2022)","v":2012},{"$f":"RANDBETWEEN(1976,2022)","v":2012},{"$f":"RANDBETWEEN(1976,2022)","v":2004},{"$f":"RANDBETWEEN(1976,2022)","v":1995},{"$f":"RANDBETWEEN(1976,2022)","v":1981},{"$f":"RANDBETWEEN(1976,2022)","v":2002},{"$f":"RANDBETWEEN(1976,2022)","v":2016},{"$f":"RANDBETWEEN(1976,2022)","v":1976},{"$f":"RANDBETWEEN(1976,2022)","v":1997},{"$f":"RANDBETWEEN(1976,2022)","v":2022},{"$f":"RANDBETWEEN(1976,2022)","v":1997},{"$f":"RANDBETWEEN(1976,2022)","v":1995},{"$f":"RANDBETWEEN(1976,2022)","v":2003},{"$f":"RANDBETWEEN(1976,2022)","v":2016},{"$f":"RANDBETWEEN(1976,2022)","v":1976},{"$f":"RANDBETWEEN(1976,2022)","v":2011},{"$f":"RANDBETWEEN(1976,2022)","v":1989},{"$f":"RANDBETWEEN(1976,2022)","v":1991},{"$f":"RANDBETWEEN(1976,2022)","v":1992},{"$f":"RANDBETWEEN(1976,2022)","v":1993},{"$f":"RANDBETWEEN(1976,2022)","v":1979},{"$f":"RANDBETWEEN(1976,2022)","v":2007},{"$f":"RANDBETWEEN(1976,2022)","v":1991},{"$f":"RANDBETWEEN(1976,2022)","v":1992},{"$f":"RANDBETWEEN(1976,2022)","v":1989},{"$f":"RANDBETWEEN(1976,2022)","v":1993},{"$f":"RANDBETWEEN(1976,2022)","v":1986},{"$f":"RANDBETWEEN(1976,2022)","v":2011},{"$f":"RANDBETWEEN(1976,2022)","v":1992},{"$f":"RANDBETWEEN(1976,2022)","v":2010},{"$f":"RANDBETWEEN(1976,2022)","v":2001},{"$f":"RANDBETWEEN(1976,2022)","v":1980},{"$f":"RANDBETWEEN(1976,2022)","v":2001}]
[1987,3,4.81,null,2015,{"$nulls":4},{"v":4.780183007182725,"d":"4.78"},null,{"$f":"RANDBETWEEN(1976,2022)","v":2015},{"$f":"RANDBETWEEN(1976,2022)","v":2004},{"$f":"RANDBETWEEN(1976,2022)","v":2017},{"$f":"RANDBETWEEN(1976,2022)","v":1993},{"$f":"RANDBETWEEN(1976,2022)","v":2021},{"$f":"RANDBETWEEN(1976,2022)","v":1978},{"$f":"RANDBETWEEN(1976,2022)","v":2017},{"$f":"RANDBETWEEN(1976,2022)","v":1979},{"$f":"RANDBETWEEN(1976,2022)","v":1978},{"$f":"RANDBETWEEN(1976,2022)","v":2012},{"$f":"RANDBETWEEN(1976,2022)","v":2013},{"$f":"RANDBETWEEN(1976,2022)","v":2000},{"$f":"RANDBETWEEN(1976,2022)","v":2012},{"$f":"RANDBETWEEN(1976,2022)","v":1997},{"$f":"RANDBETWEEN(1976,2022)","v":1986},{"$f":"RANDBETWEEN(1976,2022)","v":1993},{"$f":"RANDBETWEEN(1976,2022)","v":2019},{"$f":"RANDBETWEEN(1976,2022)","v":1997},{"$f":"RANDBETWEEN(1976,2022)","v":1985},{"$f":"RANDBETWEEN(1976,2022)","v":1978},{"$f":"RANDBETWEEN(1976,2022)","v":2004},{"$f":"RANDBETWEEN(1976,2022)","v":2005},{"$f":"RANDBETWEEN(1976,2022)","v":1996},{"$f":"RANDBETWEEN(1976,2022)","v":2008},{"$f":"RANDBETWEEN(1976,2022)","v":2000},{"$f":"RANDBETWEEN(1976,2022)","v":1980},{"$f":"RANDBETWEEN(1976,2022)","v":2015},{"$f":"RANDBETWEEN(1976,2022)","v":1982},{"$f":"RANDBETWEEN(1976,2022)","v":1977},{"$f":"RANDBETWEEN(1976,2022)","v":2022},{"$f":"RANDBETWEEN(1976,2022)","v":1976},{"$f":"RANDBETWEEN(1976,2022)","v":1977},{"$f":"RANDBETWEEN(1976,2022)","v":2021},{"$f":"RANDBETWEEN(1976,2022)","v":1981},{"$f":"RANDBETWEEN(1976,2022)","v":2009},{"$f":"RANDBETWEEN(1976,2022)","v":1980},{"$f":"RANDBETWEEN(1976,2022)","v":2007},{"$f":"RANDBETWEEN(1976,2022)","v":2010},{"$f":"RANDBETWEEN(1976,2022)","v":1997},{"$f":"RANDBETWEEN(1976,2022)","v":1984},{"$f":"RANDBETWEEN(1976,2022)","v":1985},{"$f":"RANDBETWEEN(1976,2022)","v":1985},{"$f":"RANDBETWEEN(1976,2022)","v":2007},{"$f":"RANDBETWEEN(1976,2022)","v":1989},{"$f":"RANDBETWEEN(1976,2022)","v":1988},{"$f":"RANDBETWEEN(1976,2022)","v":2001},{"$f":"RANDBETWEEN(1976,2022)","v":1976},{"$f":"RANDBETWEEN(1976,2022)","v":1997},{"$f":"RANDBETWEEN(1976,2022)","v":1990},{"$f":"RANDBETWEEN(1976,2022)","v":1983},{"$f":"RANDBETWEEN(1976,2022)","v":1981},{"$f":"RANDBETWEEN(1976,2022)","v":1992},{"$f":"RANDBETWEEN(1976,2022)","v":1984},{"$f":"RANDBETWEEN(1976,2022)","v":2003},{"$f":"RANDBETWEEN(1976,2022)","v":1996},{"$f":"RANDBETWEEN(1976,2022)","v":1999},{"$f":"RANDBETWEEN(1976,2022)","v":1983},{"$f":"RANDBETWEEN(1976,2022)","v":2014},{"$f":"RANDBETWEEN(1976,2022)","v":1976},{"$f":"RANDBETWEEN(1976,2022)","v":2021},{"$f":"RANDBETWEEN(1976,2022)","v":1976},{"$f":"RANDBETWEEN(1976,2022)","v":2012},{"$f":"RANDBETWEEN(1976,2022)","v":1992},{"$f":"RANDBETWEEN(1976,2022)","v":1979},{"$f":"RANDBETWEEN(1976,2022)","v":1999},{"$f":"RANDBETWEEN(1976,2022)","v":2006},{"$f":"RANDBETWEEN(1976,2022)","v":2016},{"$f":"RANDBETWEEN(1976,2022)","v":2002},{"$f":"RANDBETWEEN(1976,2022)","v":2017},{"$f":"RANDBETWEEN(1976,2022)","v":1983},{"$f":"RANDBETWEEN(1976,2022)","v":2011},{"$f":"RANDBETWEEN(1976,2022)","v":1997},{"$f":"RANDBETWEEN(1976,2022)","v":2001},{"$f":"RANDBETWEEN(1976,2022)","v":2015},{"$f":"RANDBETWEEN(1976,2022)","v":1981},{"$f":"RANDBETWEEN(1976,2022)","v":1984},{"$f":"RANDBETWEEN(1976,2022)","v":1976},{"$f":"RANDBETWEEN(1976,2022)","v":2014},{"$f":"RANDBETWEEN(1976,2022)","v":1979},{"$f":"RANDBETWEEN(1976,2022)","v":1997},{"$f":"RANDBETWEEN(1976,2022)","v":2001},{"$f":"RANDBETWEEN(1976,2022)","v":2010},{"$f":"RANDBETWEEN(1976,2022)","v":2010},{"$f":"RANDBETWEEN(1976,2022)","v":2001},{"$f":"RANDBETWEEN(1976,2022)","v":2019},{"$f":"RANDBETWEEN(1976,2022)","v":1985},{"$f":"RANDBETWEEN(1976,2022)","v":2010},{"$f":"RANDBETWEEN(1976,2022)","v":1998},{"$f":"RANDBETWEEN(1976,2022)","v":1989},{"$f":"RANDBETWEEN(1976,2022)","v":2005},{"$f":"RANDBETWEEN(1976,2022)","v":1990},{"$f":"RANDBETWEEN(1976,2022)","v":2010},{"$f":"RANDBETWEEN(1976,2022)","v":2019},{"$f":"RANDBETWEEN(1976,2022)","v":2003},{"$f":"RANDBETWEEN(1976,2022)","v":1984},{"$f":"RANDBETWEEN(1976,2022)","v":1995},{"$f":"RANDBETWEEN(1976,2022)","v":1984},{"$f":"RANDBETWEEN(1976,2022)","v":1978},{"$f":"RANDBETWEEN(1976,2022)","v":1983},{"$f":"RANDBETWEEN(1976,2022)","v":1983}]
[1987,4,3.99,null,2016,{"$nulls":4},6.01,null,{"$f":"RANDBETWEEN(1976,2022)","v":2000},{"$f":"RANDBETWEEN(1976,2022)","v":1978},{"$f":"RANDBETWEEN(1976,2022)","v":1989},{"$f":"RANDBETWEEN(1976,2022)","v":1994},{"$f":"RANDBETWEEN(1976,2022)","v":2016},{"$f":"RANDBETWEEN(1976,2022)","v":2002},{"$f":"RANDBETWEEN(1976,2022)","v":1990},{"$f":"RANDBETWEEN(1976,2022)","v":1997},{"$f":"RANDBETWEEN(1976,2022)","v":1997},{"$f":"RANDBETWEEN(1976,2022)","v":1999},{"$f":"RANDBETWEEN(1976,2022)","v":1996},{"$f":"RANDBETWEEN(1976,2022)","v":1976},{"$f":"RANDBETWEEN(1976,2022)","v":2004},{"$f":"RANDBETWEEN(1976,2022)","v":1999},{"$f":"RANDBETWEEN(1976,2022)","v":1999},{"$f":"RANDBETWEEN(1976,2022)","v":2013},{"$f":"RANDBETWEEN(1976,2022)","v":2002},{"$f":"RANDBETWEEN(1976,2022)","v":2022},{"$f":"RANDBETWEEN(1976,2022)","v":2019},{"$f":"RANDBETWEEN(1976,2022)","v":1984},{"$f":"RANDBETWEEN(1976,2022)","v":1985},{"$f":"RANDBETWEEN(1976,2022)","v":2020},{"$f":"RANDBETWEEN(1976,2022)","v":1999},{"$f":"RANDBETWEEN(1976,2022)","v":2001},{"$f":"RANDBETWEEN(1976,2022)","v":1989},{"$f":"RANDBETWEEN(1976,2022)","v":2004},{"$f":"RANDBETWEEN(1976,2022)","v":2009},{"$f":"RANDBETWEEN(1976,2022)","v":2018},{"$f":"RANDBETWEEN(1976,2022)","v":2018},{"$f":"RANDBETWEEN(1976,2022)","v":2016},{"$f":"RANDBETWEEN(1976,2022)","v":1998},{"$f":"RANDBETWEEN(1976,2022)","v":2015},{"$f":"RANDBETWEEN(1976,2022)","v":1987},{"$f":"RANDBETWEEN(1976,2022)","v":1987},{"$f":"RANDBETWEEN(1976,2022)","v":2008},{"$f":"RANDBETWEEN(1976,2022)","v":2022},{"$f":"RANDBETWEEN(1976,2022)","v":2015},{"$f":"RANDBETWEEN(1976,2022)","v":1978},{"$f":"RANDBETWEEN(1976,2022)","v":1984},{"$f":"RANDBETWEEN(1976,2022)","v":1983},{"$f":"RANDBETWEEN(1976,2022)","v":1999},{"$f":"RANDBETWEEN(1976,2022)","v":2015},{"$f":"RANDBETWEEN(1976,2022)","v":2004},{"$f":"RANDBETWEEN(1976,2022)","v":1990},{"$f":"RANDBETWEEN(1976,2022)","v":2002},{"$f":"RANDBETWEEN(1976,2022)","v":2013},{"$f":"RANDBETWEEN(1976,2022)","v":1995},{"$f":"RANDBETWEEN(1976,2022)","v":2009},{"$f":"RANDBETWEEN(1976,2022)","v":1980},{"$f":"RANDBETWEEN(1976,2022)","v":2015},{"$f":"RANDBETWEEN(1976,2022)","v":1985},{"$f":"RANDBETWEEN(1976,2022)","v":1980},{"$f":"RANDBETWEEN(1976,2022)","v":2015},{"$f":"RANDBETWEEN(1976,2022)","v":2018},{"$f":"RANDBETWEEN(1976,2022)","v":1995},{"$f":"RANDBETWEEN(1976,2022)","v":1983},{"$f":"RANDBETWEEN(1976,2022)","v":1978},{"$f":"RANDBETWEEN(1976,2022)","v":1996},{"$f":"RANDBETWEEN(1976,2022)","v":1995},{"$f":"RANDBETWEEN(1976,2022)","v":2011},{"$f":"RANDBETWEEN(1976,2022)","v":2019},{"$f":"RANDBETWEEN(1976,2022)","v":1998},{"$f":"RANDBETWEEN(1976,2022)","v":2014},{"$f":"RANDBETWEEN(1976,2022)","v":2018},{"$f":"RANDBETWEEN(1976,2022)","v":2019},{"$f":"RANDBETWEEN(1976,2022)","v":1977},{"$f":"RANDBETWEEN(1976,2022)","v":2008},{"$f":"RANDBETWEEN(1976,2022)","v":1997},{"$f":"RANDBETWEEN(1976,2022)","v":1977},{"$f":"RANDBETWEEN(1976,2022)","v":2011},{"$f":"RANDBETWEEN(1976,2022)","v":1996},{"$f":"RANDBETWEEN(1976,2022)","v":2010},{"$f":"RANDBETWEEN(1976,2022)","v":1979},{"$f":"RANDBETWEEN(1976,2022)","v":1984},{"$f":"RANDBETWEEN(1976,2022)","v":1996},{"$f":"RANDBETWEEN(1976,2022)","v":2015},{"$f":"RANDBETWEEN(1976,2022)","v":1986},{"$f":"RANDBETWEEN(1976,2022)","v":1988},{"$f":"RANDBETWEEN(1976,2022)","v":2016},{"$f":"RANDBETWEEN(1976,2022)","v":1993},{"$f":"RANDBETWEEN(1976,2022)","v":1982},{"$f":"RANDBETWEEN(1976,2022)","v":1977},{"$f":"RANDBETWEEN(1976,2022)","v":1989},{"$f":"RANDBETWEEN(1976,2022)","v":2009},{"$f":"RANDBETWEEN(1976,2022)","v":2012},{"$f":"RANDBETWEEN(1976,2022)","v":2007},{"$f":"RANDBETWEEN(1976,2022)","v":2015},{"$f":"RANDBETWEEN(1976,2022)","v":1988},{"$f":"RANDBETWEEN(1976,2022)","v":2002},{"$f":"RANDBETWEEN(1976,2022)","v":2014},{"$f":"RANDBETWEEN(1976,2022)","v":2004},{"$f":"RANDBETWEEN(1976,2022)","v":1981},{"$f":"RANDBETWEEN(1976,2022)","v":1989},{"$f":"RANDBETWEEN(1976,2022)","v":1999},{"$f":"RANDBETWEEN(1976,2022)","v":2000},{"$f":"RANDBETWEEN(1976,2022)","v":1979},{"$f":"RANDBETWEEN(1976,2022)","v":2004},{"$f":"RANDBETWEEN(1976,2022)","v":2013},{"$f":"RANDBETWEEN(1976,2022)","v":2016},{"$f":"RANDBETWEEN(1976,2022)","v":1996}]
[1988,1,3.44,null,2017,"From tax stmt",null,null,274.78,{"$f":"(301800-290100)/290100*100","v":{"v":4.033092037228542,"d":"4.03"}},null,{"$f":"RANDBETWEEN(1976,2022)","v":2007},{"$f":"RANDBETWEEN(1976,2022)","v":2017},{"$f":"RANDBETWEEN(1976,2022)","v":1988},{"$f":"RANDBETWEEN(1976,2022)","v":1984},{"$f":"RANDBETWEEN(1976,2022)","v":2013},{"$f":"RANDBETWEEN(1976,2022)","v":1985},{"$f":"RANDBETWEEN(1976,2022)","v":2021},{"$f":"RANDBETWEEN(1976,2022)","v":1981},{"$f":"RANDBETWEEN(1976,2022)","v":2016},{"$f":"RANDBETWEEN(1976,2022)","v":1979},{"$f":"RANDBETWEEN(1976,2022)","v":2015},{"$f":"RANDBETWEEN(1976,2022)","v":1994},{"$f":"RANDBETWEEN(1976,2022)","v":2018},{"$f":"RANDBETWEEN(1976,2022)","v":1989},{"$f":"RANDBETWEEN(1976,2022)","v":1979},{"$f":"RANDBETWEEN(1976,2022)","v":1989},{"$f":"RANDBETWEEN(1976,2022)","v":2017},{"$f":"RANDBETWEEN(1976,2022)","v":2009},{"$f":"RANDBETWEEN(1976,2022)","v":1991},{"$f":"RANDBETWEEN(1976,2022)","v":1991},{"$f":"RANDBETWEEN(1976,2022)","v":2003},{"$f":"RANDBETWEEN(1976,2022)","v":1999},{"$f":"RANDBETWEEN(1976,2022)","v":1983},{"$f":"RANDBETWEEN(1976,2022)","v":1983},{"$f":"RANDBETWEEN(1976,2022)","v":1981},{"$f":"RANDBETWEEN(1976,2022)","v":2015},{"$f":"RANDBETWEEN(1976,2022)","v":2017},{"$f":"RANDBETWEEN(1976,2022)","v":2009},{"$f":"RANDBETWEEN(1976,2022)","v":2015},{"$f":"RANDBETWEEN(1976,2022)","v":2011},{"$f":"RANDBETWEEN(1976,2022)","v":1993},{"$f":"RANDBETWEEN(1976,2022)","v":1998},{"$f":"RANDBETWEEN(1976,2022)","v":1997},{"$f":"RANDBETWEEN(1976,2022)","v":2005},{"$f":"RANDBETWEEN(1976,2022)","v":1985},{"$f":"RANDBETWEEN(1976,2022)","v":1994},{"$f":"RANDBETWEEN(1976,2022)","v":2008},{"$f":"RANDBETWEEN(1976,2022)","v":2009},{"$f":"RANDBETWEEN(1976,2022)","v":1987},{"$f":"RANDBETWEEN(1976,2022)","v":2003},{"$f":"RANDBETWEEN(1976,2022)","v":1985},{"$f":"RANDBETWEEN(1976,2022)","v":2000},{"$f":"RANDBETWEEN(1976,2022)","v":1977},{"$f":"RANDBETWEEN(1976,2022)","v":2006},{"$f":"RANDBETWEEN(1976,2022)","v":1981},{"$f":"RANDBETWEEN(1976,2022)","v":2018},{"$f":"RANDBETWEEN(1976,2022)","v":1987},{"$f":"RANDBETWEEN(1976,2022)","v":1988},{"$f":"RANDBETWEEN(1976,2022)","v":2022},{"$f":"RANDBETWEEN(1976,2022)","v":2005},{"$f":"RANDBETWEEN(1976,2022)","v":2011},{"$f":"RANDBETWEEN(1976,2022)","v":1989},{"$f":"RANDBETWEEN(1976,2022)","v":2021},{"$f":"RANDBETWEEN(1976,2022)","v":2014},{"$f":"RANDBETWEEN(1976,2022)","v":2008},{"$f":"RANDBETWEEN(1976,2022)","v":1982},{"$f":"RANDBETWEEN(1976,2022)","v":2021},{"$f":"RANDBETWEEN(1976,2022)","v":2012},{"$f":"RANDBETWEEN(1976,2022)","v":1996},{"$f":"RANDBETWEEN(1976,2022)","v":1976},{"$f":"RANDBETWEEN(1976,2022)","v":2014},{"$f":"RANDBETWEEN(1976,2022)","v":2009},{"$f":"RANDBETWEEN(1976,2022)","v":1995},{"$f":"RANDBETWEEN(1976,2022)","v":1992},{"$f":"RANDBETWEEN(1976,2022)","v":1979},{"$f":"RANDBETWEEN(1976,2022)","v":1979},{"$f":"RANDBETWEEN(1976,2022)","v":1985},{"$f":"RANDBETWEEN(1976,2022)","v":1998},{"$f":"RANDBETWEEN(1976,2022)","v":1991},{"$f":"RANDBETWEEN(1976,2022)","v":2000},{"$f":"RANDBETWEEN(1976,2022)","v":1994},{"$f":"RANDBETWEEN(1976,2022)","v":2016},{"$f":"RANDBETWEEN(1976,2022)","v":2006},{"$f":"RANDBETWEEN(1976,2022)","v":1989},{"$f":"RANDBETWEEN(1976,2022)","v":1986},{"$f":"RANDBETWEEN(1976,2022)","v":1993},{"$f":"RANDBETWEEN(1976,2022)","v":1979},{"$f":"RANDBETWEEN(1976,2022)","v":1989},{"$f":"RANDBETWEEN(1976,2022)","v":1983},{"$f":"RANDBETWEEN(1976,2022)","v":2019},{"$f":"RANDBETWEEN(1976,2022)","v":2001},{"$f":"RANDBETWEEN(1976,2022)","v":2016},{"$f":"RANDBETWEEN(1976,2022)","v":2022},{"$f":"RANDBETWEEN(1976,2022)","v":1996},{"$f":"RANDBETWEEN(1976,2022)","v":2008},{"$f":"RANDBETWEEN(1976,2022)","v":2003},{"$f":"RANDBETWEEN(1976,2022)","v":2003},{"$f":"RANDBETWEEN(1976,2022)","v":2012},{"$f":"RANDBETWEEN(1976,2022)","v":1979},{"$f":"RANDBETWEEN(1976,2022)","v":1979},{"$f":"RANDBETWEEN(1976,2022)","v":1988},{"$f":"RANDBETWEEN(1976,2022)","v":2003},{"$f":"RANDBETWEEN(1976,2022)","v":2003},{"$f":"RANDBETWEEN(1976,2022)","v":1999},{"$f":"RANDBETWEEN(1976,2022)","v":2016},{"$f":"RANDBETWEEN(1976,2022)","v":2014},{"$f":"RANDBETWEEN(1976,2022)","v":1980},{"$f":"RANDBETWEEN(1976,2022)","v":1999},{"$f":"RANDBETWEEN(1976,2022)","v":1979},{"$f":"RANDBETWEEN(1976,2022)","v":1990}]
[1988,2,3.28,null,2018,{"$nulls":3},292.87,{"$f":"(I55-I54)/I54*100","v":{"v":6.583448577043466,"d":"6.58"}},null,{"$f":"RANDBETWEEN(1976,2022)","v":1986},{"$f":"RANDBETWEEN(1976,2022)","v":1983},{"$f":"RANDBETWEEN(1976,2022)","v":1989},{"$f":"RANDBETWEEN(1976,2022)","v":1990},{"$f":"RANDBETWEEN(1976,2022)","v":1979},{"$f":"RANDBETWEEN(1976,2022)","v":1995},{"$f":"RANDBETWEEN(1976,2022)","v":2012},{"$f":"RANDBETWEEN(1976,2022)","v":1994},{"$f":"RANDBETWEEN(1976,2022)","v":2019},{"$f":"RANDBETWEEN(1976,2022)","v":2007},{"$f":"RANDBETWEEN(1976,2022)","v":2001},{"$f":"RANDBETWEEN(1976,2022)","v":2020},{"$f":"RANDBETWEEN(1976,2022)","v":1978},{"$f":"RANDBETWEEN(1976,2022)","v":1984},{"$f":"RANDBETWEEN(1976,2022)","v":2000},{"$f":"RANDBETWEEN(1976,2022)","v":1995},{"$f":"RANDBETWEEN(1976,2022)","v":2013},{"$f":"RANDBETWEEN(1976,2022)","v":2006},{"$f":"RANDBETWEEN(1976,2022)","v":1992},{"$f":"RANDBETWEEN(1976,2022)","v":1989},{"$f":"RANDBETWEEN(1976,2022)","v":1980},{"$f":"RANDBETWEEN(1976,2022)","v":2019},{"$f":"RANDBETWEEN(1976,2022)","v":2014},{"$f":"RANDBETWEEN(1976,2022)","v":1993},{"$f":"RANDBETWEEN(1976,2022)","v":1986},{"$f":"RANDBETWEEN(1976,2022)","v":1991},{"$f":"RANDBETWEEN(1976,2022)","v":2005},{"$f":"RANDBETWEEN(1976,2022)","v":1989},{"$f":"RANDBETWEEN(1976,2022)","v":1993},{"$f":"RANDBETWEEN(1976,2022)","v":1984},{"$f":"RANDBETWEEN(1976,2022)","v":1989},{"$f":"RANDBETWEEN(1976,2022)","v":2016},{"$f":"RANDBETWEEN(1976,2022)","v":2020},{"$f":"RANDBETWEEN(1976,2022)","v":1992},{"$f":"RANDBETWEEN(1976,2022)","v":2014},{"$f":"RANDBETWEEN(1976,2022)","v":2000},{"$f":"RANDBETWEEN(1976,2022)","v":1995},{"$f":"RANDBETWEEN(1976,2022)","v":2007},{"$f":"RANDBETWEEN(1976,2022)","v":2015},{"$f":"RANDBETWEEN(1976,2022)","v":2001},{"$f":"RANDBETWEEN(1976,2022)","v":2000},{"$f":"RANDBETWEEN(1976,2022)","v":2000},{"$f":"RANDBETWEEN(1976,2022)","v":2008},{"$f":"RANDBETWEEN(1976,2022)","v":1981},{"$f":"RANDBETWEEN(1976,2022)","v":1977},{"$f":"RANDBETWEEN(1976,2022)","v":2003},{"$f":"RANDBETWEEN(1976,2022)","v":2014},{"$f":"RANDBETWEEN(1976,2022)","v":1991},{"$f":"RANDBETWEEN(1976,2022)","v":1978},{"$f":"RANDBETWEEN(1976,2022)","v":1987},{"$f":"RANDBETWEEN(1976,2022)","v":1993},{"$f":"RANDBETWEEN(1976,2022)","v":2003},{"$f":"RANDBETWEEN(1976,2022)","v":1984},{"$f":"RANDBETWEEN(1976,2022)","v":2009},{"$f":"RANDBETWEEN(1976,2022)","v":1988},{"$f":"RANDBETWEEN(1976,2022)","v":2020},{"$f":"RANDBETWEEN(1976,2022)","v":1979},{"$f":"RANDBETWEEN(1976,2022)","v":2010},{"$f":"RANDBETWEEN(1976,2022)","v":1983},{"$f":"RANDBETWEEN(1976,2022)","v":1977},{"$f":"RANDBETWEEN(1976,2022)","v":2007},{"$f":"RANDBETWEEN(1976,2022)","v":2018},{"$f":"RANDBETWEEN(1976,2022)","v":2007},{"$f":"RANDBETWEEN(1976,2022)","v":1976},{"$f":"RANDBETWEEN(1976,2022)","v":2011},{"$f":"RANDBETWEEN(1976,2022)","v":1987},{"$f":"RANDBETWEEN(1976,2022)","v":2010},{"$f":"RANDBETWEEN(1976,2022)","v":1984},{"$f":"RANDBETWEEN(1976,2022)","v":2019},{"$f":"RANDBETWEEN(1976,2022)","v":1977},{"$f":"RANDBETWEEN(1976,2022)","v":2016},{"$f":"RANDBETWEEN(1976,2022)","v":2007},{"$f":"RANDBETWEEN(1976,2022)","v":1990},{"$f":"RANDBETWEEN(1976,2022)","v":1985},{"$f":"RANDBETWEEN(1976,2022)","v":2014},{"$f":"RANDBETWEEN(1976,2022)","v":2004},{"$f":"RANDBETWEEN(1976,2022)","v":2007},{"$f":"RANDBETWEEN(1976,2022)","v":2000},{"$f":"RANDBETWEEN(1976,2022)","v":2008},{"$f":"RANDBETWEEN(1976,2022)","v":2021},{"$f":"RANDBETWEEN(1976,2022)","v":1985},{"$f":"RANDBETWEEN(1976,2022)","v":1980},{"$f":"RANDBETWEEN(1976,2022)","v":2008},{"$f":"RANDBETWEEN(1976,2022)","v":2003},{"$f":"RANDBETWEEN(1976,2022)","v":2016},{"$f":"RANDBETWEEN(1976,2022)","v":2000},{"$f":"RANDBETWEEN(1976,2022)","v":2018},{"$f":"RANDBETWEEN(1976,2022)","v":1992},{"$f":"RANDBETWEEN(1976,2022)","v":2012},{"$f":"RANDBETWEEN(1976,2022)","v":1987},{"$f":"RANDBETWEEN(1976,2022)","v":1991},{"$f":"RANDBETWEEN(1976,2022)","v":1976},{"$f":"RANDBETWEEN(1976,2022)","v":1996},{"$f":"RANDBETWEEN(1976,2022)","v":2016},{"$f":"RANDBETWEEN(1976,2022)","v":2017},{"$f":"RANDBETWEEN(1976,2022)","v":1991},{"$f":"RANDBETWEEN(1976,2022)","v":2010},{"$f":"RANDBETWEEN(1976,2022)","v":1983},{"$f":"RANDBETWEEN(1976,2022)","v":2019},{"$f":"RANDBETWEEN(1976,2022)","v":1990}]
[1988,3,2.21,null,2019,0.06360676850427514,0.06430147445102097,0.04859123357588707,0.04304838271269372,{"v":5.48869648109692,"d":"5.49"},null,{"$f":"RANDBETWEEN(1976,2022)","v":2015},{"$f":"RANDBETWEEN(1976,2022)","v":2002},{"$f":"RANDBETWEEN(1976,2022)","v":1990},{"$f":"RANDBETWEEN(1976,2022)","v":1979},{"$f":"RANDBETWEEN(1976,2022)","v":1988},{"$f":"RANDBETWEEN(1976,2022)","v":2019},{"$f":"RANDBETWEEN(1976,2022)","v":2005},{"$f":"RANDBETWEEN(1976,2022)","v":2012},{"$f":"RANDBETWEEN(1976,2022)","v":2014},{"$f":"RANDBETWEEN(1976,2022)","v":1997},{"$f":"RANDBETWEEN(1976,2022)","v":1979},{"$f":"RANDBETWEEN(1976,2022)","v":2000},{"$f":"RANDBETWEEN(1976,2022)","v":2022},{"$f":"RANDBETWEEN(1976,2022)","v":2015},{"$f":"RANDBETWEEN(1976,2022)","v":2012},{"$f":"RANDBETWEEN(1976,2022)","v":1983},{"$f":"RANDBETWEEN(1976,2022)","v":1989},{"$f":"RANDBETWEEN(1976,2022)","v":1992},{"$f":"RANDBETWEEN(1976,2022)","v":1994},{"$f":"RANDBETWEEN(1976,2022)","v":2014},{"$f":"RANDBETWEEN(1976,2022)","v":1995},{"$f":"RANDBETWEEN(1976,2022)","v":1997},{"$f":"RANDBETWEEN(1976,2022)","v":2000},{"$f":"RANDBETWEEN(1976,2022)","v":2007},{"$f":"RANDBETWEEN(1976,2022)","v":1990},{"$f":"RANDBETWEEN(1976,2022)","v":2007},{"$f":"RANDBETWEEN(1976,2022)","v":2003},{"$f":"RANDBETWEEN(1976,2022)","v":2003},{"$f":"RANDBETWEEN(1976,2022)","v":1991},{"$f":"RANDBETWEEN(1976,2022)","v":1997},{"$f":"RANDBETWEEN(1976,2022)","v":1978},{"$f":"RANDBETWEEN(1976,2022)","v":1991},{"$f":"RANDBETWEEN(1976,2022)","v":2013},{"$f":"RANDBETWEEN(1976,2022)","v":1991},{"$f":"RANDBETWEEN(1976,2022)","v":2017},{"$f":"RANDBETWEEN(1976,2022)","v":1988},{"$f":"RANDBETWEEN(1976,2022)","v":2001},{"$f":"RANDBETWEEN(1976,2022)","v":2009},{"$f":"RANDBETWEEN(1976,2022)","v":1994},{"$f":"RANDBETWEEN(1976,2022)","v":1977},{"$f":"RANDBETWEEN(1976,2022)","v":1982},{"$f":"RANDBETWEEN(1976,2022)","v":1985},{"$f":"RANDBETWEEN(1976,2022)","v":1981},{"$f":"RANDBETWEEN(1976,2022)","v":2016},{"$f":"RANDBETWEEN(1976,2022)","v":2018},{"$f":"RANDBETWEEN(1976,2022)","v":2010},{"$f":"RANDBETWEEN(1976,2022)","v":2022},{"$f":"RANDBETWEEN(1976,2022)","v":1984},{"$f":"RANDBETWEEN(1976,2022)","v":1980},{"$f":"RANDBETWEEN(1976,2022)","v":1995},{"$f":"RANDBETWEEN(1976,2022)","v":1990},{"$f":"RANDBETWEEN(1976,2022)","v":1990},{"$f":"RANDBETWEEN(1976,2022)","v":1983},{"$f":"RANDBETWEEN(1976,2022)","v":2005},{"$f":"RANDBETWEEN(1976,2022)","v":2004},{"$f":"RANDBETWEEN(1976,2022)","v":1984},{"$f":"RANDBETWEEN(1976,2022)","v":2014},{"$f":"RANDBETWEEN(1976,2022)","v":2005},{"$f":"RANDBETWEEN(1976,2022)","v":1980},{"$f":"RANDBETWEEN(1976,2022)","v":2007},{"$f":"RANDBETWEEN(1976,2022)","v":2007},{"$f":"RANDBETWEEN(1976,2022)","v":2022},{"$f":"RANDBETWEEN(1976,2022)","v":2007},{"$f":"RANDBETWEEN(1976,2022)","v":2020},{"$f":"RANDBETWEEN(1976,2022)","v":2011},{"$f":"RANDBETWEEN(1976,2022)","v":2011},{"$f":"RANDBETWEEN(1976,2022)","v":2017},{"$f":"RANDBETWEEN(1976,2022)","v":1998},{"$f":"RANDBETWEEN(1976,2022)","v":1979},{"$f":"RANDBETWEEN(1976,2022)","v":2016},{"$f":"RANDBETWEEN(1976,2022)","v":2015},{"$f":"RANDBETWEEN(1976,2022)","v":1986},{"$f":"RANDBETWEEN(1976,2022)","v":2007},{"$f":"RANDBETWEEN(1976,2022)","v":1982},{"$f":"RANDBETWEEN(1976,2022)","v":1996},{"$f":"RANDBETWEEN(1976,2022)","v":1995},{"$f":"RANDBETWEEN(1976,2022)","v":2022},{"$f":"RANDBETWEEN(1976,2022)","v":2019},{"$f":"RANDBETWEEN(1976,2022)","v":1978},{"$f":"RANDBETWEEN(1976,2022)","v":1992},{"$f":"RANDBETWEEN(1976,2022)","v":2020},{"$f":"RANDBETWEEN(1976,2022)","v":2016},{"$f":"RANDBETWEEN(1976,2022)","v":1991},{"$f":"RANDBETWEEN(1976,2022)","v":2008},{"$f":"RANDBETWEEN(1976,2022)","v":1977},{"$f":"RANDBETWEEN(1976,2022)","v":2002},{"$f":"RANDBETWEEN(1976,2022)","v":2007},{"$f":"RANDBETWEEN(1976,2022)","v":2005},{"$f":"RANDBETWEEN(1976,2022)","v":2015},{"$f":"RANDBETWEEN(1976,2022)","v":2015},{"$f":"RANDBETWEEN(1976,2022)","v":1982},{"$f":"RANDBETWEEN(1976,2022)","v":2003},{"$f":"RANDBETWEEN(1976,2022)","v":1985},{"$f":"RANDBETWEEN(1976,2022)","v":2022},{"$f":"RANDBETWEEN(1976,2022)","v":2017},{"$f":"RANDBETWEEN(1976,2022)","v":2022},{"$f":"RANDBETWEEN(1976,2022)","v":2012},{"$f":"RANDBETWEEN(1976,2022)","v":1983},{"$f":"RANDBETWEEN(1976,2022)","v":2014},{"$f":"RANDBETWEEN(1976,2022)","v":2011}]
[1988,4,3.87,null,2020,{"$nulls":4},{"$f":"G63","v":{"v":5.7,"d":"5.70"}},null,{"$f":"RANDBETWEEN(1976,2022)","v":2020},{"$f":"RANDBETWEEN(1976,2022)","v":1995},{"$f":"RANDBETWEEN(1976,2022)","v":1996},{"$f":"RANDBETWEEN(1976,2022)","v":1994},{"$f":"RANDBETWEEN(1976,2022)","v":1984},{"$f":"RANDBETWEEN(1976,2022)","v":2003},{"$f":"RANDBETWEEN(1976,2022)","v":2016},{"$f":"RANDBETWEEN(1976,2022)","v":1991},{"$f":"RANDBETWEEN(1976,2022)","v":1996},{"$f":"RANDBETWEEN(1976,2022)","v":1978},{"$f":"RANDBETWEEN(1976,2022)","v":2014},{"$f":"RANDBETWEEN(1976,2022)","v":1991},{"$f":"RANDBETWEEN(1976,2022)","v":2021},{"$f":"RANDBETWEEN(1976,2022)","v":1988},{"$f":"RANDBETWEEN(1976,2022)","v":2019},{"$f":"RANDBETWEEN(1976,2022)","v":1979},{"$f":"RANDBETWEEN(1976,2022)","v":2021},{"$f":"RANDBETWEEN(1976,2022)","v":1979},{"$f":"RANDBETWEEN(1976,2022)","v":1996},{"$f":"RANDBETWEEN(1976,2022)","v":2004},{"$f":"RANDBETWEEN(1976,2022)","v":2005},{"$f":"RANDBETWEEN(1976,2022)","v":2009},{"$f":"RANDBETWEEN(1976,2022)","v":1979},{"$f":"RANDBETWEEN(1976,2022)","v":1993},{"$f":"RANDBETWEEN(1976,2022)","v":2005},{"$f":"RANDBETWEEN(1976,2022)","v":1996},{"$f":"RANDBETWEEN(1976,2022)","v":1982},{"$f":"RANDBETWEEN(1976,2022)","v":1993},{"$f":"RANDBETWEEN(1976,2022)","v":1995},{"$f":"RANDBETWEEN(1976,2022)","v":1988},{"$f":"RANDBETWEEN(1976,2022)","v":2021},{"$f":"RANDBETWEEN(1976,2022)","v":1996},{"$f":"RANDBETWEEN(1976,2022)","v":2015},{"$f":"RANDBETWEEN(1976,2022)","v":2021},{"$f":"RANDBETWEEN(1976,2022)","v":1992},{"$f":"RANDBETWEEN(1976,2022)","v":1978},{"$f":"RANDBETWEEN(1976,2022)","v":1988},{"$f":"RANDBETWEEN(1976,2022)","v":2013},{"$f":"RANDBETWEEN(1976,2022)","v":1997},{"$f":"RANDBETWEEN(1976,2022)","v":2018},{"$f":"RANDBETWEEN(1976,2022)","v":1976},{"$f":"RANDBETWEEN(1976,2022)","v":2014},{"$f":"RANDBETWEEN(1976,2022)","v":1994},{"$f":"RANDBETWEEN(1976,2022)","v":1993},{"$f":"RANDBETWEEN(1976,2022)","v":1984},{"$f":"RANDBETWEEN(1976,2022)","v":2011},{"$f":"RANDBETWEEN(1976,2022)","v":2000},{"$f":"RANDBETWEEN(1976,2022)","v":1977},{"$f":"RANDBETWEEN(1976,2022)","v":2009},{"$f":"RANDBETWEEN(1976,2022)","v":2003},{"$f":"RANDBETWEEN(1976,2022)","v":1992},{"$f":"RANDBETWEEN(1976,2022)","v":2013},{"$f":"RANDBETWEEN(1976,2022)","v":2000},{"$f":"RANDBETWEEN(1976,2022)","v":1977},{"$f":"RANDBETWEEN(1976,2022)","v":2004},{"$f":"RANDBETWEEN(1976,2022)","v":1977},{"$f":"RANDBETWEEN(1976,2022)","v":2014},{"$f":"RANDBETWEEN(1976,2022)","v":2019},{"$f":"RANDBETWEEN(1976,2022)","v":2011},{"$f":"RANDBETWEEN(1976,2022)","v":2005},{"$f":"RANDBETWEEN(1976,2022)","v":1993},{"$f":"RANDBETWEEN(1976,2022)","v":1980},{"$f":"RANDBETWEEN(1976,2022)","v":1989},{"$f":"RANDBETWEEN(1976,2022)","v":2003},{"$f":"RANDBETWEEN(1976,2022)","v":2009},{"$f":"RANDBETWEEN(1976,2022)","v":2021},{"$f":"RANDBETWEEN(1976,2022)","v":1992},{"$f":"RANDBETWEEN(1976,2022)","v":2004},{"$f":"RANDBETWEEN(1976,2022)","v":2021},{"$f":"RANDBETWEEN(1976,2022)","v":1998},{"$f":"RANDBETWEEN(1976,2022)","v":2021},{"$f":"RANDBETWEEN(1976,2022)","v":2015},{"$f":"RANDBETWEEN(1976,2022)","v":2005},{"$f":"RANDBETWEEN(1976,2022)","v":2010},{"$f":"RANDBETWEEN(1976,2022)","v":1986},{"$f":"RANDBETWEEN(1976,2022)","v":2002},{"$f":"RANDBETWEEN(1976,2022)","v":1987},{"$f":"RANDBETWEEN(1976,2022)","v":1980},{"$f":"RANDBETWEEN(1976,2022)","v":2003},{"$f":"RANDBETWEEN(1976,2022)","v":1987},{"$f":"RANDBETWEEN(1976,2022)","v":2013},{"$f":"RANDBETWEEN(1976,2022)","v":1990},{"$f":"RANDBETWEEN(1976,2022)","v":2003},{"$f":"RANDBETWEEN(1976,2022)","v":1984},{"$f":"RANDBETWEEN(1976,2022)","v":2007},{"$f":"RANDBETWEEN(1976,2022)","v":1996},{"$f":"RANDBETWEEN(1976,2022)","v":1976},{"$f":"RANDBETWEEN(1976,2022)","v":2002},{"$f":"RANDBETWEEN(1976,2022)","v":2017},{"$f":"RANDBETWEEN(1976,2022)","v":1990},{"$f":"RANDBETWEEN(1976,2022)","v":2012},{"$f":"RANDBETWEEN(1976,2022)","v":1994},{"$f":"RANDBETWEEN(1976,2022)","v":2001},{"$f":"RANDBETWEEN(1976,2022)","v":1990},{"$f":"RANDBETWEEN(1976,2022)","v":1976},{"$f":"RANDBETWEEN(1976,2022)","v":1983},{"$f":"RANDBETWEEN(1976,2022)","v":2016},{"$f":"RANDBETWEEN(1976,2022)","v":1994},{"$f":"RANDBETWEEN(1976,2022)","v":1986},{"$f":"RANDBETWEEN(1976,2022)","v":1977}]
[1989,1,2.38,null,2021,{"$nulls":4},{"v":12.832,"d":"12.83"},null,{"$f":"RANDBETWEEN(1976,2022)","v":1989},{"$f":"RANDBETWEEN(1976,2022)","v":1993},{"$f":"RANDBETWEEN(1976,2022)","v":2019},{"$f":"RANDBETWEEN(1976,2022)","v":1990},{"$f":"RANDBETWEEN(1976,2022)","v":1992},{"$f":"RANDBETWEEN(1976,2022)","v":2015},{"$f":"RANDBETWEEN(1976,2022)","v":2012},{"$f":"RANDBETWEEN(1976,2022)","v":2012},{"$f":"RANDBETWEEN(1976,2022)","v":2003},{"$f":"RANDBETWEEN(1976,2022)","v":1991},{"$f":"RANDBETWEEN(1976,2022)","v":1986},{"$f":"RANDBETWEEN(1976,2022)","v":1983},{"$f":"RANDBETWEEN(1976,2022)","v":1991},{"$f":"RANDBETWEEN(1976,2022)","v":1997},{"$f":"RANDBETWEEN(1976,2022)","v":2010},{"$f":"RANDBETWEEN(1976,2022)","v":1996},{"$f":"RANDBETWEEN(1976,2022)","v":2017},{"$f":"RANDBETWEEN(1976,2022)","v":2008},{"$f":"RANDBETWEEN(1976,2022)","v":2002},{"$f":"RANDBETWEEN(1976,2022)","v":1993},{"$f":"RANDBETWEEN(1976,2022)","v":1985},{"$f":"RANDBETWEEN(1976,2022)","v":1987},{"$f":"RANDBETWEEN(1976,2022)","v":1986},{"$f":"RANDBETWEEN(1976,2022)","v":1977},{"$f":"RANDBETWEEN(1976,2022)","v":1990},{"$f":"RANDBETWEEN(1976,2022)","v":1994},{"$f":"RANDBETWEEN(1976,2022)","v":2007},{"$f":"RANDBETWEEN(1976,2022)","v":2013},{"$f":"RANDBETWEEN(1976,2022)","v":2005},{"$f":"RANDBETWEEN(1976,2022)","v":2014},{"$f":"RANDBETWEEN(1976,2022)","v":1984},{"$f":"RANDBETWEEN(1976,2022)","v":2018},{"$f":"RANDBETWEEN(1976,2022)","v":1981},{"$f":"RANDBETWEEN(1976,2022)","v":2004},{"$f":"RANDBETWEEN(1976,2022)","v":2003},{"$f":"RANDBETWEEN(1976,2022)","v":2012},{"$f":"RANDBETWEEN(1976,2022)","v":2020},{"$f":"RANDBETWEEN(1976,2022)","v":1979},{"$f":"RANDBETWEEN(1976,2022)","v":2006},{"$f":"RANDBETWEEN(1976,2022)","v":2012},{"$f":"RANDBETWEEN(1976,2022)","v":2021},{"$f":"RANDBETWEEN(1976,2022)","v":2004},{"$f":"RANDBETWEEN(1976,2022)","v":1979},{"$f":"RANDBETWEEN(1976,2022)","v":2009},{"$f":"RANDBETWEEN(1976,2022)","v":2018},{"$f":"RANDBETWEEN(1976,2022)","v":1991},{"$f":"RANDBETWEEN(1976,2022)","v":1982},{"$f":"RANDBETWEEN(1976,2022)","v":2003},{"$f":"RANDBETWEEN(1976,2022)","v":2002},{"$f":"RANDBETWEEN(1976,2022)","v":2005},{"$f":"RANDBETWEEN(1976,2022)","v":1981},{"$f":"RANDBETWEEN(1976,2022)","v":1993},{"$f":"RANDBETWEEN(1976,2022)","v":2003},{"$f":"RANDBETWEEN(1976,2022)","v":1985},{"$f":"RANDBETWEEN(1976,2022)","v":1988},{"$f":"RANDBETWEEN(1976,2022)","v":1981},{"$f":"RANDBETWEEN(1976,2022)","v":1982},{"$f":"RANDBETWEEN(1976,2022)","v":2021},{"$f":"RANDBETWEEN(1976,2022)","v":1987},{"$f":"RANDBETWEEN(1976,2022)","v":1979},{"$f":"RANDBETWEEN(1976,2022)","v":1986},{"$f":"RANDBETWEEN(1976,2022)","v":1990},{"$f":"RANDBETWEEN(1976,2022)","v":2006},{"$f":"RANDBETWEEN(1976,2022)","v":1993},{"$f":"RANDBETWEEN(1976,2022)","v":2003},{"$f":"RANDBETWEEN(1976,2022)","v":2003},{"$f":"RANDBETWEEN(1976,2022)","v":2010},{"$f":"RANDBETWEEN(1976,2022)","v":1994},{"$f":"RANDBETWEEN(1976,2022)","v":1996},{"$f":"RANDBETWEEN(1976,2022)","v":2013},{"$f":"RANDBETWEEN(1976,2022)","v":1988},{"$f":"RANDBETWEEN(1976,2022)","v":2022},{"$f":"RANDBETWEEN(1976,2022)","v":1989},{"$f":"RANDBETWEEN(1976,2022)","v":2018},{"$f":"RANDBETWEEN(1976,2022)","v":2019},{"$f":"RANDBETWEEN(1976,2022)","v":2017},{"$f":"RANDBETWEEN(1976,2022)","v":2005},{"$f":"RANDBETWEEN(1976,2022)","v":2021},{"$f":"RANDBETWEEN(1976,2022)","v":1980},{"$f":"RANDBETWEEN(1976,2022)","v":1997},{"$f":"RANDBETWEEN(1976,2022)","v":2008},{"$f":"RANDBETWEEN(1976,2022)","v":2020},{"$f":"RANDBETWEEN(1976,2022)","v":1983},{"$f":"RANDBETWEEN(1976,2022)","v":2000},{"$f":"RANDBETWEEN(1976,2022)","v":1984},{"$f":"RANDBETWEEN(1976,2022)","v":2000},{"$f":"RANDBETWEEN(1976,2022)","v":2000},{"$f":"RANDBETWEEN(1976,2022)","v":1994},{"$f":"RANDBETWEEN(1976,2022)","v":2006},{"$f":"RANDBETWEEN(1976,2022)","v":1999},{"$f":"RANDBETWEEN(1976,2022)","v":1981},{"$f":"RANDBETWEEN(1976,2022)","v":1998},{"$f":"RANDBETWEEN(1976,2022)","v":2014},{"$f":"RANDBETWEEN(1976,2022)","v":2017},{"$f":"RANDBETWEEN(1976,2022)","v":2015},{"$f":"RANDBETWEEN(1976,2022)","v":2017},{"$f":"RANDBETWEEN(1976,2022)","v":1980},{"$f":"RANDBETWEEN(1976,2022)","v":1989},{"$f":"RANDBETWEEN(1976,2022)","v":1995},{"$f":"RANDBETWEEN(1976,2022)","v":2017}]
[1989,2,2.46,null,2022,{"$nulls":4},4.98,null,{"$f":"RANDBETWEEN(1976,2022)","v":1997},{"$f":"RANDBETWEEN(1976,2022)","v":1981},{"$f":"RANDBETWEEN(1976,2022)","v":2020},{"$f":"RANDBETWEEN(1976,2022)","v":2015},{"$f":"RANDBETWEEN(1976,2022)","v":1999},{"$f":"RANDBETWEEN(1976,2022)","v":1983},{"$f":"RANDBETWEEN(1976,2022)","v":2003},{"$f":"RANDBETWEEN(1976,2022)","v":1988},{"$f":"RANDBETWEEN(1976,2022)","v":1983},{"$f":"RANDBETWEEN(1976,2022)","v":2016},{"$f":"RANDBETWEEN(1976,2022)","v":2000},{"$f":"RANDBETWEEN(1976,2022)","v":2002},{"$f":"RANDBETWEEN(1976,2022)","v":2010},{"$f":"RANDBETWEEN(1976,2022)","v":2009},{"$f":"RANDBETWEEN(1976,2022)","v":2009},{"$f":"RANDBETWEEN(1976,2022)","v":1989},{"$f":"RANDBETWEEN(1976,2022)","v":1998},{"$f":"RANDBETWEEN(1976,2022)","v":2012},{"$f":"RANDBETWEEN(1976,2022)","v":1990},{"$f":"RANDBETWEEN(1976,2022)","v":1998},{"$f":"RANDBETWEEN(1976,2022)","v":1999},{"$f":"RANDBETWEEN(1976,2022)","v":2020},{"$f":"RANDBETWEEN(1976,2022)","v":1976},{"$f":"RANDBETWEEN(1976,2022)","v":2021},{"$f":"RANDBETWEEN(1976,2022)","v":2019},{"$f":"RANDBETWEEN(1976,2022)","v":1995},{"$f":"RANDBETWEEN(1976,2022)","v":2018},{"$f":"RANDBETWEEN(1976,2022)","v":1983},{"$f":"RANDBETWEEN(1976,2022)","v":1993},{"$f":"RANDBETWEEN(1976,2022)","v":1982},{"$f":"RANDBETWEEN(1976,2022)","v":1985},{"$f":"RANDBETWEEN(1976,2022)","v":1992},{"$f":"RANDBETWEEN(1976,2022)","v":2013},{"$f":"RANDBETWEEN(1976,2022)","v":1985},{"$f":"RANDBETWEEN(1976,2022)","v":1985},{"$f":"RANDBETWEEN(1976,2022)","v":1983},{"$f":"RANDBETWEEN(1976,2022)","v":1998},{"$f":"RANDBETWEEN(1976,2022)","v":2011},{"$f":"RANDBETWEEN(1976,2022)","v":1985},{"$f":"RANDBETWEEN(1976,2022)","v":2005},{"$f":"RANDBETWEEN(1976,2022)","v":1991},{"$f":"RANDBETWEEN(1976,2022)","v":2002},{"$f":"RANDBETWEEN(1976,2022)","v":2008},{"$f":"RANDBETWEEN(1976,2022)","v":2003},{"$f":"RANDBETWEEN(1976,2022)","v":2006},{"$f":"RANDBETWEEN(1976,2022)","v":1990},{"$f":"RANDBETWEEN(1976,2022)","v":2009},{"$f":"RANDBETWEEN(1976,2022)","v":1990},{"$f":"RANDBETWEEN(1976,2022)","v":2016},{"$f":"RANDBETWEEN(1976,2022)","v":2010},{"$f":"RANDBETWEEN(1976,2022)","v":1986},{"$f":"RANDBETWEEN(1976,2022)","v":1987},{"$f":"RANDBETWEEN(1976,2022)","v":1979},{"$f":"RANDBETWEEN(1976,2022)","v":2009},{"$f":"RANDBETWEEN(1976,2022)","v":1986},{"$f":"RANDBETWEEN(1976,2022)","v":1995},{"$f":"RANDBETWEEN(1976,2022)","v":2014},{"$f":"RANDBETWEEN(1976,2022)","v":1996},{"$f":"RANDBETWEEN(1976,2022)","v":2018},{"$f":"RANDBETWEEN(1976,2022)","v":1996},{"$f":"RANDBETWEEN(1976,2022)","v":1999},{"$f":"RANDBETWEEN(1976,2022)","v":2021},{"$f":"RANDBETWEEN(1976,2022)","v":1986},{"$f":"RANDBETWEEN(1976,2022)","v":2014},{"$f":"RANDBETWEEN(1976,2022)","v":2011},{"$f":"RANDBETWEEN(1976,2022)","v":1996},{"$f":"RANDBETWEEN(1976,2022)","v":1995},{"$f":"RANDBETWEEN(1976,2022)","v":2020},{"$f":"RANDBETWEEN(1976,2022)","v":1982},{"$f":"RANDBETWEEN(1976,2022)","v":1976},{"$f":"RANDBETWEEN(1976,2022)","v":2010},{"$f":"RANDBETWEEN(1976,2022)","v":1980},{"$f":"RANDBETWEEN(1976,2022)","v":1982},{"$f":"RANDBETWEEN(1976,2022)","v":1989},{"$f":"RANDBETWEEN(1976,2022)","v":2003},{"$f":"RANDBETWEEN(1976,2022)","v":2016},{"$f":"RANDBETWEEN(1976,2022)","v":1977},{"$f":"RANDBETWEEN(1976,2022)","v":1987},{"$f":"RANDBETWEEN(1976,2022)","v":1985},{"$f":"RANDBETWEEN(1976,2022)","v":1982},{"$f":"RANDBETWEEN(1976,2022)","v":2006},{"$f":"RANDBETWEEN(1976,2022)","v":1995},{"$f":"RANDBETWEEN(1976,2022)","v":1978},{"$f":"RANDBETWEEN(1976,2022)","v":1980},{"$f":"RANDBETWEEN(1976,2022)","v":1990},{"$f":"RANDBETWEEN(1976,2022)","v":2006},{"$f":"RANDBETWEEN(1976,2022)","v":1999},{"$f":"RANDBETWEEN(1976,2022)","v":1979},{"$f":"RANDBETWEEN(1976,2022)","v":2004},{"$f":"RANDBETWEEN(1976,2022)","v":2019},{"$f":"RANDBETWEEN(1976,2022)","v":2020},{"$f":"RANDBETWEEN(1976,2022)","v":2004},{"$f":"RANDBETWEEN(1976,2022)","v":1986},{"$f":"RANDBETWEEN(1976,2022)","v":2001},{"$f":"RANDBETWEEN(1976,2022)","v":1984},{"$f":"RANDBETWEEN(1976,2022)","v":1992},{"$f":"RANDBETWEEN(1976,2022)","v":1996},{"$f":"RANDBETWEEN(1976,2022)","v":2005},{"$f":"RANDBETWEEN(1976,2022)","v":1991},{"$f":"RANDBETWEEN(1976,2022)","v":1993}]
[1989,3,4.06]
[1989,4,3.66,null,"http://www.fhfa.gov/DataTools/Tools/Pages/House-Price-Index-(HPI).aspx"]
[1990,1,3.65,"Mpls Metro",null,"1 Qtr","1 Yr","5 Yrs","Since 1991Q1",{"$nulls":6},"Not","Seasonally Adjusted"]
[1990,2,2.07,null,2020,1.56,5.7,30.96,210.96,null,null,33460,"Minneapolis-St. Paul-Bloomington, MN-WI",2017,4,275.52,279.53]
[1990,3,1.01,{"$nulls":8},33460,"Minneapolis-St. Paul-Bloomington, MN-WI",2018,1,282.96,285.53]
[1990,4,0.64,{"$nulls":8},33460,"Minneapolis-St. Paul-Bloomington, MN-WI",2018,2,295.17,289.97]
[1991,1,1.89,{"$nulls":8},33460,"Minneapolis-St. Paul-Bloomington, MN-WI",2018,3,297.93,294.32]
[1991,2,2.68,{"$nulls":8},33460,"Minneapolis-St. Paul-Bloomington, MN-WI",2018,4,292.87,297.31,{"$f":"(Q67-Q63)/Q63","v":0.06360676850427514}]
[1991,3,2.49,{"$nulls":8},33460,"Minneapolis-St. Paul-Bloomington, MN-WI",2019,1,301.47,303.89,{"$f":"(Q68-Q64)/Q64","v":0.06430147445102097}]
[1991,4,4.27,{"$nulls":8},33460,"Minneapolis-St. Paul-Bloomington, MN-WI",2019,2,309.46,304.06,0.04859123357588707]
[1992,1,3.26,{"$nulls":8},33460,"Minneapolis-St. Paul-Bloomington, MN-WI",2019,3,310.7,306.99,0.04304838271269372]
[1992,2,3.08,{"$nulls":14},{"$f":"AVERAGE(R67:R70)","v":0.05488696481096923}]
[1992,3,4.05]
[1992,4,2.87]
[1993,1,3.31]
[1993,2,3.74]
[1993,3,3.83]
[1993,4,4.25]
[1994,1,3.95]
[1994,2,4.85]
[1994,3,4.24]
[1994,4,3.48]
[1995,1,3.6]
[1995,2,3.83]
[1995,3,4.94]
[1995,4,6.09]
[1996,1,6.8]
[1996,2,5.22]
[1996,3,4.32]
[1996,4,4.14]
[1997,1,3.93]
[1997,2,4.46]
[1997,3,5.54]
[1997,4,5.7]
[1998,1,6.3]
[1998,2,5.94]
[1998,3,5.97]
[1998,4,5.81]
[1999,1,5.63]
[1999,2,8.05]
[1999,3,9.14]
[1999,4,9.25]
[2000,1,10.51]
[2000,2,10.44]
[2000,3,9.86]
[2000,4,10.6]
[2001,1,10.58]
[2001,2,10.25]
[2001,3,10.84]
[2001,4,10.16]
[2002,1,9.44]
[2002,2,9.38]
[2002,3,8.52]
[2002,4,8.73]
[2003,1,7.99]
[2003,2,6.44]
[2003,3,6.49]
[2003,4,8.69]
[2004,1,8.45]
[2004,2,9.44]
[2004,3,10.71]
[2004,4,8.54]
[2005,1,9.2]
[2005,2,9.48]
[2005,3,7.87]
[2005,4,7.96]
[2006,1,7.17]
[2006,2,4.96]
[2006,3,3.34]
[2006,4,2.47]
[2007,1,2.57]
[2007,2,1.65]
[2007,3,-0.06]
[2007,4,-4.56,"Calculated to get annual average as posted of -.1%.  "]
[2008,1,-5.69]
[2008,2,-7.42]
[2008,3,-7.28]
[2008,4,-8.03,{"$f":"AVERAGE(C134:C137)","v":-7.105}]
[2009,1,-6.05]
[2009,2,-4.4]
[2009,3,-4.45]
[2009,4,-1.01,{"$f":"AVERAGE(C138:C141)","v":-3.9774999999999996}]
[2010,1,-4.92]
[2010,2,-2.63]
[2010,3,-2.23]
[2010,4,-3.28,{"$f":"AVERAGE(C142:C145)","v":-3.2649999999999997}]
[2011,1,-6.08]
[2011,2,-8.43,null,"Index from 1991 for MN"]
[2011,3,-5.33,null,"index_nsa","% Chg"]
[2011,4,-4.3,{"$f":"AVERAGE(C146:C149)","v":-6.035},188.99]
[2012,1,{"v":-0.014868511561458289,"d":"-1.49%"},null,186.18,{"$f":"(E150-E149)/E149","v":{"v":-0.014868511561458289,"d":"-1.49%"}}]
[2012,2,{"v":0.04893114190568259,"d":"4.89%"},null,195.29,{"$f":"(E151-E150)/E150","v":{"v":0.04893114190568259,"d":"4.89%"}}]
[2012,3,{"v":0.022223360131087118,"d":"2.22%"},null,199.63,{"v":0.022223360131087118,"d":"2.22%"}]
[2012,4,{"v":0,"d":"0.00%"},{"$f":"AVERAGE(C150:C153)","v":0.014071497618827854},199.63,{"v":0,"d":"0.00%"},{"$f":"(E153-E149)/E149","v":0.056299275093920235}]
[2013,1,{"v":1.9035215148023616E-3,"d":"0.19%"},null,200.01,{"v":1.9035215148023616E-3,"d":"0.19%"}]
[2013,2,{"v":0.05964701764911758,"d":"5.96%"},null,211.94,{"v":0.05964701764911758,"d":"5.96%"}]
[2013,3,{"v":0.023827498348589278,"d":"2.38%"},null,216.99,{"v":0.023827498348589278,"d":"2.38%"}]
[2013,4,{"v":-0.007880547490667808,"d":"-0.79%"},null,215.28,{"v":-0.007880547490667808,"d":"-0.79%"},{"$f":"(E157-E153)/E153","v":0.07839503080699296}]
[]
["For more recent data see table at E55 or so. "]

{"sheet":"Inflation","index":11,"n_rows":101,"n_cols":14,"rows_kept":101}
["YEAR","AVE","JAN","FEB","MAR","APR","MAY","JUN","JUL","AUG","SEP","OCT","NOV","DEC"]
[1923,{"v":0.018,"d":"1.80%"},"  -0.59%","  -0.59%","  0.60%","  1.20%","  1.20%","  1.80%","  2.38%","  3.01%","  3.61%","  3.59%","  2.98%","  2.37%"]
[1924,{"v":0.0045,"d":"0.45%"},"  2.98%","  2.38%","  1.79%","  0.59%","  0.59%","  0.00%","  -0.58%","  -0.58%","  -0.58%","  -0.58%","  -0.58%","  0.00%"]
[1925,{"v":0.0244,"d":"2.44%"},"  0.00%","  0.00%","  1.17%","  1.18%","  1.76%","  2.94%","  3.51%","  4.12%","  3.51%","  2.91%","  4.65%","  3.47%"]
[1926,{"v":0.0094,"d":"0.94%"},"  3.47%","  4.07%","  2.89%","  4.07%","  2.89%","  1.14%","  -1.13%","  -1.69%","  -1.13%","  -0.56%","  -1.67%","  -1.12%"]
[1927,{"v":-0.0192,"d":"-1.92%"},"  -2.23%","  -2.79%","  -2.81%","  -3.35%","  -2.25%","  -0.56%","  -1.14%","  -1.15%","  -1.14%","  -1.14%","  -2.26%","  -2.26%"]
[1928,{"v":-0.0115,"d":"-1.15%"},"  -1.14%","  -1.72%","  -1.16%","  -1.16%","  -1.15%","  -2.84%","  -1.16%","  -0.58%","  0.00%","  -1.15%","  -0.58%","  -1.16%"]
[1929,{"v":0,"d":"0.00%"},"  -1.16%","  0.00%","  -0.58%","  -1.17%","  -1.16%","  0.00%","  1.17%","  1.17%","  0.00%","  0.58%","  0.58%","  0.58%"]
[1930,{"v":-0.0266,"d":"-2.66%"},"  0.00%","  -0.58%","  -0.59%","  0.59%","  -0.59%","  -1.75%","  -4.05%","  -4.62%","  -4.05%","  -4.62%","  -5.20%","  -6.40%"]
[1931,{"v":-0.0894,"d":"-8.94%"},"  -7.02%","  -7.65%","  -7.69%","  -8.82%","  -9.47%","  -10.12%","  -9.04%","  -8.48%","  -9.64%","  -9.70%","  -10.37%","  -9.32%"]
[1932,{"v":-0.103,"d":"-10.30%"},"  -10.06%","  -10.19%","  -10.26%","  -10.32%","  -10.46%","  -9.93%","  -9.93%","  -10.60%","  -10.67%","  -10.74%","  -10.20%","  -10.27%"]
[1933,{"v":-0.0509,"d":"-5.09%"},"  -9.79%","  -9.93%","  -10.00%","  -9.35%","  -8.03%","  -6.62%","  -3.68%","  -2.22%","  -1.49%","  -0.75%","  0.00%","  0.76%"]
[1934,{"v":0.0351,"d":"3.51%"},"  2.33%","  4.72%","  5.56%","  5.56%","  5.56%","  5.51%","  2.29%","  1.52%","  3.03%","  2.27%","  2.27%","  1.52%"]
[1935,{"v":0.0256,"d":"2.56%"},"  3.03%","  3.01%","  3.01%","  3.76%","  3.76%","  2.24%","  2.24%","  2.24%","  0.74%","  1.48%","  2.22%","  2.99%"]
[1936,{"v":0.0104,"d":"1.04%"},"  1.47%","  0.73%","  0.00%","  -0.72%","  -0.72%","  0.73%","  1.46%","  2.19%","  2.19%","  2.19%","  1.45%","  1.45%"]
[1937,{"v":0.0373,"d":"3.73%"},"  2.17%","  2.17%","  3.65%","  4.38%","  5.11%","  4.35%","  4.32%","  3.57%","  4.29%","  4.29%","  3.57%","  2.86%"]
[1938,{"v":-0.0201,"d":"-2.01%"},"  0.71%","  0.00%","  -0.70%","  -0.70%","  -2.08%","  -2.08%","  -2.76%","  -2.76%","  -3.42%","  -4.11%","  -3.45%","  -2.78%"]
[1939,{"v":-0.013,"d":"-1.30%"},"  -1.41%","  -1.42%","  -1.42%","  -2.82%","  -2.13%","  -2.13%","  -2.13%","  -2.13%","  0.00%","  0.00%","  0.00%","  0.00%"]
[1940,{"v":0.0073,"d":"0.73%"},"  -0.71%","  0.72%","  0.72%","  1.45%","  1.45%","  2.17%","  1.45%","  1.45%","  -0.71%","  0.00%","  0.00%","  0.71%"]
[1941,{"v":0.0511,"d":"5.11%"},"  1.44%","  0.71%","  1.43%","  2.14%","  2.86%","  4.26%","  5.00%","  6.43%","  7.86%","  9.29%","  10.00%","  9.93%"]
[1942,{"v":0.1097,"d":"10.97%"},"  11.35%","  12.06%","  12.68%","  12.59%","  13.19%","  10.88%","  11.56%","  10.74%","  9.27%","  9.15%","  9.09%","  9.03%"]
[1943,{"v":0.06,"d":"6.00%"},"  7.64%","  6.96%","  7.50%","  8.07%","  7.36%","  7.36%","  6.10%","  4.85%","  5.45%","  4.19%","  3.57%","  2.96%"]
[1944,{"v":0.0164,"d":"1.64%"},"  2.96%","  2.96%","  1.16%","  0.57%","  0.00%","  0.57%","  1.72%","  2.31%","  1.72%","  1.72%","  1.72%","  2.30%"]
[1945,{"v":0.0227,"d":"2.27%"},"  2.30%","  2.30%","  2.30%","  1.71%","  2.29%","  2.84%","  2.26%","  2.26%","  2.26%","  2.26%","  2.26%","  2.25%"]
[1946,{"v":0.0843,"d":"8.43%"},"  2.25%","  1.69%","  2.81%","  3.37%","  3.35%","  3.31%","  9.39%","  11.60%","  12.71%","  14.92%","  17.68%","  18.13%"]
[1947,{"v":0.1465,"d":"14.65%"},"  18.13%","  18.78%","  19.67%","  19.02%","  18.38%","  17.65%","  12.12%","  11.39%","  12.75%","  10.58%","  8.45%","  8.84%"]
[1948,{"v":0.0774,"d":"7.74%"},"  10.23%","  9.30%","  6.85%","  8.68%","  9.13%","  9.55%","  9.91%","  8.89%","  6.52%","  6.09%","  4.76%","  2.99%"]
[1949,{"v":-0.0095,"d":"-0.95%"},"  1.27%","  1.28%","  1.71%","  0.42%","  -0.42%","  -0.83%","  -2.87%","  -2.86%","  -2.45%","  -2.87%","  -1.65%","  -2.07%"]
[1950,{"v":0.0109,"d":"1.09%"},"  -2.08%","  -1.26%","  -0.84%","  -1.26%","  -0.42%","  -0.42%","  1.69%","  2.10%","  2.09%","  3.80%","  3.78%","  5.93%"]
[1951,{"v":0.0788,"d":"7.88%"},"  8.09%","  9.36%","  9.32%","  9.32%","  9.28%","  8.82%","  7.47%","  6.58%","  6.97%","  6.50%","  6.88%","  6.00%"]
[1952,{"v":0.0229,"d":"2.29%"},"  4.33%","  2.33%","  1.94%","  2.33%","  1.93%","  2.32%","  3.09%","  3.09%","  2.30%","  1.91%","  1.14%","  0.75%"]
[1953,{"v":0.0082,"d":"0.82%"},"  0.38%","  0.76%","  1.14%","  0.76%","  1.14%","  1.13%","  0.37%","  0.75%","  0.75%","  1.12%","  0.75%","  0.75%"]
[1954,{"v":0.0032,"d":"0.32%"},"  1.13%","  1.51%","  1.13%","  0.75%","  0.75%","  0.37%","  0.37%","  0.00%","  -0.37%","  -0.74%","  -0.37%","  -0.74%"]
[1955,{"v":-2.8E-3,"d":"-0.28%"},"  -0.74%","  -0.74%","  -0.74%","  -0.37%","  -0.74%","  -0.74%","  -0.37%","  -0.37%","  0.37%","  0.37%","  0.37%","  0.37%"]
[1956,{"v":0.0152,"d":"1.52%"},"  0.37%","  0.37%","  0.37%","  0.75%","  1.12%","  1.87%","  2.24%","  1.87%","  1.86%","  2.23%","  2.23%","  2.99%"]
[1957,{"v":0.0334,"d":"3.34%"},"  2.99%","  3.36%","  3.73%","  3.72%","  3.70%","  3.31%","  3.28%","  3.66%","  3.28%","  2.91%","  3.27%","  2.90%"]
[1958,{"v":0.0273,"d":"2.73%"},"  3.62%","  3.25%","  3.60%","  3.58%","  3.21%","  2.85%","  2.47%","  2.12%","  2.12%","  2.12%","  2.11%","  1.76%"]
[1959,{"v":0.0101,"d":"1.01%"},"  1.40%","  1.05%","  0.35%","  0.35%","  0.35%","  0.69%","  0.69%","  1.04%","  1.38%","  1.73%","  1.38%","  1.73%"]
[1960,{"v":0.0146,"d":"1.46%"},"  1.03%","  1.73%","  1.73%","  1.72%","  1.72%","  1.72%","  1.37%","  1.37%","  1.02%","  1.36%","  1.36%","  1.36%"]
[1961,{"v":0.0107,"d":"1.07%"},"  1.71%","  1.36%","  1.36%","  1.02%","  1.02%","  0.68%","  1.35%","  1.01%","  1.35%","  0.67%","  0.67%","  0.67%"]
[1962,{"v":0.012,"d":"1.20%"},"  0.67%","  1.01%","  1.01%","  1.34%","  1.34%","  1.34%","  1.00%","  1.34%","  1.33%","  1.33%","  1.33%","  1.33%"]
[1963,{"v":0.0124,"d":"1.24%"},"  1.33%","  1.00%","  1.33%","  0.99%","  0.99%","  1.32%","  1.32%","  1.32%","  0.99%","  1.32%","  1.32%","  1.64%"]
[1964,{"v":0.0128,"d":"1.28%"},"  1.64%","  1.64%","  1.31%","  1.31%","  1.31%","  1.31%","  1.30%","  0.98%","  1.30%","  0.97%","  1.30%","  0.97%"]
[1965,{"v":0.0159,"d":"1.59%"},"  0.97%","  0.97%","  1.29%","  1.62%","  1.62%","  1.94%","  1.61%","  1.94%","  1.61%","  1.93%","  1.60%","  1.92%"]
[1966,{"v":0.0301,"d":"3.01%"},"  1.92%","  2.56%","  2.56%","  2.87%","  2.87%","  2.53%","  2.85%","  3.48%","  3.48%","  3.79%","  3.79%","  3.46%"]
[1967,{"v":0.0278,"d":"2.78%"},"  3.46%","  2.81%","  2.80%","  2.48%","  2.79%","  2.78%","  2.77%","  2.45%","  2.75%","  2.43%","  2.74%","  3.04%"]
[1968,{"v":0.0427,"d":"4.27%"},"  3.65%","  3.95%","  3.94%","  3.93%","  3.92%","  4.20%","  4.49%","  4.48%","  4.46%","  4.75%","  4.73%","  4.72%"]
[1969,{"v":0.0546,"d":"5.46%"},"  4.40%","  4.68%","  5.25%","  5.52%","  5.51%","  5.48%","  5.44%","  5.71%","  5.70%","  5.67%","  5.93%","  6.20%"]
[1970,{"v":0.0584,"d":"5.84%"},"  6.18%","  6.15%","  5.82%","  6.06%","  6.04%","  6.01%","  5.98%","  5.41%","  5.66%","  5.63%","  5.60%","  5.57%"]
[1971,{"v":0.043,"d":"4.30%"},"  5.29%","  5.00%","  4.71%","  4.16%","  4.40%","  4.64%","  4.36%","  4.62%","  4.08%","  3.81%","  3.28%","  3.27%"]
[1972,{"v":0.0327,"d":"3.27%"},"  3.27%","  3.51%","  3.50%","  3.49%","  3.23%","  2.71%","  2.95%","  2.94%","  3.19%","  3.42%","  3.67%","  3.41%"]
[1973,{"v":0.0616,"d":"6.16%"},"  3.65%","  3.87%","  4.59%","  5.06%","  5.53%","  6.00%","  5.73%","  7.38%","  7.36%","  7.80%","  8.25%","  8.71%"]
[1974,{"v":0.1103,"d":"11.03%"},"  9.39%","  10.02%","  10.39%","  10.09%","  10.71%","  10.86%","  11.51%","  10.86%","  11.95%","  12.06%","  12.20%","  12.34%"]
[1975,{"v":0.092,"d":"9.20%"},"  11.80%","  11.23%","  10.25%","  10.21%","  9.47%","  9.39%","  9.72%","  8.60%","  7.91%","  7.44%","  7.38%","  6.94%"]
[1976,{"v":0.0575,"d":"5.75%"},"  6.72%","  6.29%","  6.07%","  6.05%","  6.20%","  5.97%","  5.35%","  5.71%","  5.49%","  5.46%","  4.88%","  4.86%"]
[1977,{"v":0.065,"d":"6.50%"},"  5.22%","  5.91%","  6.44%","  6.95%","  6.73%","  6.87%","  6.83%","  6.62%","  6.60%","  6.39%","  6.72%","  6.70%"]
[1978,{"v":0.0762,"d":"7.62%"},"  6.84%","  6.43%","  6.55%","  6.50%","  6.97%","  7.41%","  7.70%","  7.84%","  8.31%","  8.93%","  8.89%","  9.02%"]
[1979,{"v":0.1122,"d":"11.22%"},"  9.28%","  9.86%","  10.09%","  10.49%","  10.85%","  10.89%","  11.26%","  11.82%","  12.18%","  12.07%","  12.61%","  13.29%"]
[1980,{"v":0.1358,"d":"13.58%"},"  13.91%","  14.18%","  14.76%","  14.73%","  14.41%","  14.38%","  13.13%","  12.87%","  12.60%","  12.77%","  12.65%","  12.52%"]
[1981,{"v":0.1035,"d":"10.35%"},"  11.83%","  11.41%","  10.49%","  10.00%","  9.78%","  9.55%","  10.76%","  10.80%","  10.95%","  10.14%","  9.59%","  8.92%"]
[1982,{"v":0.0616,"d":"6.16%"},"  8.39%","  7.62%","  6.78%","  6.51%","  6.68%","  7.06%","  6.44%","  5.85%","  5.04%","  5.14%","  4.59%","  3.83%"]
[1983,{"v":0.0322,"d":"3.22%"},"  3.71%","  3.49%","  3.60%","  3.90%","  3.55%","  2.58%","  2.46%","  2.56%","  2.86%","  2.85%","  3.27%","  3.79%"]
[1984,{"v":0.043,"d":"4.30%"},"  4.19%","  4.60%","  4.80%","  4.56%","  4.23%","  4.22%","  4.20%","  4.29%","  4.27%","  4.26%","  4.05%","  3.95%"]
[1985,{"v":0.0355,"d":"3.55%"},"  3.53%","  3.52%","  3.70%","  3.69%","  3.77%","  3.76%","  3.55%","  3.35%","  3.14%","  3.23%","  3.51%","  3.80%"]
[1986,{"v":0.0191,"d":"1.91%"},"  3.89%","  3.11%","  2.26%","  1.59%","  1.49%","  1.77%","  1.58%","  1.57%","  1.75%","  1.47%","  1.28%","  1.10%"]
[1987,{"v":0.0366,"d":"3.66%"},"  1.46%","  2.10%","  3.03%","  3.78%","  3.86%","  3.65%","  3.93%","  4.28%","  4.36%","  4.53%","  4.53%","  4.43%"]
[1988,{"v":0.0408,"d":"4.08%"},"  4.05%","  3.94%","  3.93%","  3.90%","  3.89%","  3.96%","  4.13%","  4.02%","  4.17%","  4.25%","  4.25%","  4.42%"]
[1989,{"v":0.0483,"d":"4.83%"},"  4.67%","  4.83%","  4.98%","  5.12%","  5.36%","  5.17%","  4.98%","  4.71%","  4.34%","  4.49%","  4.66%","  4.65%"]
[1990,{"v":0.0539,"d":"5.39%"},"  5.20%","  5.26%","  5.23%","  4.71%","  4.36%","  4.67%","  4.82%","  5.62%","  6.16%","  6.29%","  6.27%","  6.11%"]
[1991,{"v":0.0425,"d":"4.25%"},"  5.65%","  5.31%","  4.90%","  4.89%","  4.95%","  4.70%","  4.45%","  3.80%","  3.39%","  2.92%","  2.99%","  3.06%"]
[1992,{"v":0.0303,"d":"3.03%"},"  2.60%","  2.82%","  3.19%","  3.18%","  3.02%","  3.09%","  3.16%","  3.15%","  2.99%","  3.20%","  3.05%","  2.90%"]
[1993,{"v":0.0296,"d":"2.96%"},"  3.26%","  3.25%","  3.09%","  3.23%","  3.22%","  3.00%","  2.78%","  2.77%","  2.69%","  2.75%","  2.68%","  2.75%"]
[1994,{"v":0.0261,"d":"2.61%"},"  2.52%","  2.52%","  2.51%","  2.36%","  2.29%","  2.49%","  2.77%","  2.90%","  2.96%","  2.61%","  2.67%","  2.67%"]
[1995,{"v":0.0281,"d":"2.81%"},"  2.80%","  2.86%","  2.85%","  3.05%","  3.19%","  3.04%","  2.76%","  2.62%","  2.54%","  2.81%","  2.61%","  2.54%"]
[1996,{"v":0.0293,"d":"2.93%"},"  2.73%","  2.65%","  2.84%","  2.90%","  2.89%","  2.75%","  2.95%","  2.88%","  3.00%","  2.99%","  3.26%","  3.32%"]
[1997,{"v":0.0234,"d":"2.34%"},"  3.04%","  3.03%","  2.76%","  2.50%","  2.23%","  2.30%","  2.23%","  2.23%","  2.15%","  2.08%","  1.83%","  1.70%"]
[1998,{"v":0.0155,"d":"1.55%"},"  1.57%","  1.44%","  1.37%","  1.44%","  1.69%","  1.68%","  1.68%","  1.62%","  1.49%","  1.49%","  1.55%","  1.61%"]
[1999,{"v":0.0219,"d":"2.19%"},"  1.67%","  1.61%","  1.73%","  2.28%","  2.09%","  1.96%","  2.14%","  2.26%","  2.63%","  2.56%","  2.62%","  2.68%"]
[2000,{"v":0.0338,"d":"3.38%"},"  2.74%","  3.22%","  3.76%","  3.07%","  3.19%","  3.73%","  3.66%","  3.41%","  3.45%","  3.45%","  3.45%","  3.39%"]
[2001,{"v":0.0283,"d":"2.83%"},"  3.73%","  3.53%","  2.92%","  3.27%","  3.62%","  3.25%","  2.72%","  2.72%","  2.65%","  2.13%","  1.90%","  1.55%"]
[2002,{"v":0.0159,"d":"1.59%"},"  1.14%","  1.14%","  1.48%","  1.64%","  1.18%","  1.07%","  1.46%","  1.80%","  1.51%","  2.03%","  2.20%","  2.38%"]
[2003,{"v":0.0227,"d":"2.27%"},"  2.60%","  2.98%","  3.02%","  2.22%","  2.06%","  2.11%","  2.11%","  2.16%","  2.32%","  2.04%","  1.77%","  1.88%"]
[2004,{"v":0.0268,"d":"2.68%"},"  1.93%","  1.69%","  1.74%","  2.29%","  3.05%","  3.27%","  2.99%","  2.65%","  2.54%","  3.19%","  3.52%","  3.26%"]
[2005,{"v":0.0339,"d":"3.39%"},"  2.97%","  3.01%","  3.15%","  3.51%","  2.80%","  2.53%","  3.17%","  3.64%","  4.69%","  4.35%","  3.46%","  3.42%"]
[2006,{"v":0.0324,"d":"3.24%"},{"v":0.0399,"d":"3.99%"},"  3.60%","  3.36%","  3.55%","  4.17%","  4.32%","  4.15%","  3.82%","  2.06%","  1.31%","  1.97%","  2.54%"]
[2007,{"v":0.02854,"d":"2.85%"},{"v":0.0208,"d":"2.08%"},{"v":0.0242,"d":"2.42%"},{"v":0.0278,"d":"2.78%"},{"v":0.025699999999999997,"d":"2.57%"},{"v":0.0269,"d":"2.69%"},{"v":0.0269,"d":"2.69%"},{"v":0.0236,"d":"2.36%"},{"v":0.0197,"d":"1.97%"},{"v":0.0276,"d":"2.76%"},{"v":0.0354,"d":"3.54%"},{"v":0.0431,"d":"4.31%"},{"v":0.0408,"d":"4.08%"}]
[2008,{"v":0.0385,"d":"3.85%"},"  4.28%","  4.03%","  3.98%","  3.94%","  4.18%","  5.02%","  5.60%","  5.37%","  4.94%","  3.66%","  1.07%","  0.09%"]
[2009,{"v":-0.0034,"d":"-0.34%"},0.0003,"  0.24%","  -0.38%","  -0.74%","  -1.28%","  -1.43%","  -2.10%","  -1.48%","  -1.29%","  -0.18%","  1.84%","  2.72%"]
[2010,{"v":0.0164,"d":"1.64%"},0.0263,"  2.14%","  2.31%","  2.24%","  2.02%","  1.05%","  1.24%","  1.15%","  1.14%","  1.17%","  1.14%","  1.50%"]
[2011,{"v":0.0316,"d":"3.16%"},"  1.63%","  2.11%","  2.68%",{"v":0.0316,"d":"3.16%"},{"v":0.0357,"d":"3.57%"},{"v":0.0356,"d":"3.56%"},{"v":0.0363,"d":"3.63%"},{"v":0.0377,"d":"3.77%"},{"v":0.0387,"d":"3.87%"},{"v":0.0353,"d":"3.53%"},{"v":0.0339,"d":"3.39%"},{"v":0.0296,"d":"2.96%"}]
[2012,{"v":0.0207,"d":"2.07%"},{"v":0.0293,"d":"2.93%"},{"v":0.0287,"d":"2.87%"},{"v":0.0265,"d":"2.65%"},{"v":0.023,"d":"2.30%"},{"v":0.017,"d":"1.70%"},{"v":0.0166,"d":"1.66%"},{"v":0.0141,"d":"1.41%"},{"v":0.0169,"d":"1.69%"},{"v":0.0199,"d":"1.99%"},{"v":0.0216,"d":"2.16%"},{"v":0.0176,"d":"1.76%"},{"v":0.0174,"d":"1.74%"}]
[2013,{"v":0.0147,"d":"1.47%"},{"v":0.0159,"d":"1.59%"},{"v":0.0198,"d":"1.98%"},{"v":0.0147,"d":"1.47%"},{"v":0.0106,"d":"1.06%"},{"v":0.0136,"d":"1.36%"},{"v":0.0175,"d":"1.75%"},{"v":0.0196,"d":"1.96%"},{"v":0.0152,"d":"1.52%"},{"v":0.0118,"d":"1.18%"},{"v":0.0096,"d":"0.96%"},{"v":0.0124,"d":"1.24%"},{"v":0.015,"d":"1.50%"}]
[2014,{"v":0.0162,"d":"1.62%"},{"v":0.0158,"d":"1.58%"},{"v":0.0113,"d":"1.13%"},{"v":0.0151,"d":"1.51%"},{"v":0.0195,"d":"1.95%"},{"v":0.0213,"d":"2.13%"},{"v":0.0207,"d":"2.07%"},{"v":0.0199,"d":"1.99%"},{"v":0.017,"d":"1.70%"},{"v":0.0166,"d":"1.66%"},{"v":0.0166,"d":"1.66%"},{"v":0.0132,"d":"1.32%"},{"v":7.6E-3,"d":"0.76%"}]
[2015,{"$f":"AVERAGE(C94:N94)","v":{"v":1.1833333333333333E-3,"d":"0.12%"}},{"v":-0.0009,"d":"-0.09%"},{"v":-0.0003,"d":"-0.03%"},{"v":-0.0007,"d":"-0.07%"},{"v":-2E-3,"d":"-0.20%"},{"v":-0.0004,"d":"-0.04%"},{"v":0.0012,"d":"0.12%"},{"v":0.0017,"d":"0.17%"},{"v":2E-3,"d":"0.20%"},{"v":-0.0004,"d":"-0.04%"},{"v":0.0017,"d":"0.17%"},{"v":0.005,"d":"0.50%"},{"v":0.0073,"d":"0.73%"}]
[2016,{"v":0.0126,"d":"1.26%"},{"v":0.0137,"d":"1.37%"},{"v":0.0102,"d":"1.02%"},{"v":0.0085,"d":"0.85%"},{"v":0.0113,"d":"1.13%"},{"v":0.0102,"d":"1.02%"},{"v":0.0101,"d":"1.01%"},{"v":0.0084,"d":"0.84%"},{"v":0.0106,"d":"1.06%"},{"v":0.0146,"d":"1.46%"},{"v":0.0164,"d":"1.64%"},{"v":0.0169,"d":"1.69%"},{"v":0.0207,"d":"2.07%"}]
[2017,{"v":0.0213,"d":"2.13%"},{"v":0.025,"d":"2.50%"},{"v":0.0274,"d":"2.74%"},{"v":0.0238,"d":"2.38%"},{"v":0.022,"d":"2.20%"},{"v":0.0187,"d":"1.87%"},{"v":0.0163,"d":"1.63%"},{"v":0.0173,"d":"1.73%"},{"v":0.0194,"d":"1.94%"},{"v":0.0223,"d":"2.23%"},{"v":0.0204,"d":"2.04%"},{"v":0.022,"d":"2.20%"},{"v":0.0211,"d":"2.11%"}]
[2018,{"v":0.0244,"d":"2.44%"},{"v":0.0207,"d":"2.07%"},{"v":0.0221,"d":"2.21%"},{"v":0.0236,"d":"2.36%"},{"v":0.0246,"d":"2.46%"},{"v":0.028,"d":"2.80%"},{"v":0.0287,"d":"2.87%"},{"v":0.0295,"d":"2.95%"},{"v":0.027,"d":"2.70%"},{"v":0.0228,"d":"2.28%"},{"v":0.0252,"d":"2.52%"},{"v":0.0218,"d":"2.18%"},{"v":0.0191,"d":"1.91%"}]
[2019,{"v":0.0181,"d":"1.81%"},{"v":1.9E-3,"d":"0.19%"},{"v":0.0042,"d":"0.42%"},{"v":0.0056,"d":"0.56%"},{"v":5.3E-3,"d":"0.53%"},{"v":0.0021,"d":"0.21%"},{"v":0.0002,"d":"0.02%"},{"v":0.0017,"d":"0.17%"},{"v":-1E-4,"d":"-0.01%"},{"v":0.0008,"d":"0.08%"},{"v":2.3E-3,"d":"0.23%"},{"v":-0.0005,"d":"-0.05%"},{"v":-0.0009,"d":"-0.09%"}]
[2020,{"v":0.0124,"d":"1.24%"},{"v":0.0249,"d":"2.49%"},{"v":0.0233,"d":"2.33%"},{"v":0.0154,"d":"1.54%"},{"v":3.3E-3,"d":"0.33%"},{"v":0.0012,"d":"0.12%"},{"v":0.0065,"d":"0.65%"},{"v":0.0099,"d":"0.99%"},{"v":0.0131,"d":"1.31%"},{"v":0.0137,"d":"1.37%"},{"v":0.0118,"d":"1.18%"},{"v":0.0117,"d":"1.17%"},{"v":0.0136,"d":"1.36%"}]
[2021,{"v":0.047,"d":"4.70%"},{"v":0.014,"d":"1.40%"},{"v":0.0168,"d":"1.68%"},{"v":0.0262,"d":"2.62%"},{"v":0.0416,"d":"4.16%"},{"v":0.0499,"d":"4.99%"},{"v":0.0539,"d":"5.39%"},{"v":0.0537,"d":"5.37%"},{"v":0.0525,"d":"5.25%"},{"v":0.0539,"d":"5.39%"},{"v":0.0622,"d":"6.22%"},{"v":0.0681,"d":"6.81%"},{"v":0.0704,"d":"7.04%"}]
[2022,{"v":0.0801,"d":"8.01%"},{"v":0.0748,"d":"7.48%"},{"v":0.0787,"d":"7.87%"},{"v":0.0854,"d":"8.54%"},{"v":0.0826,"d":"8.26%"},{"v":0.0858,"d":"8.58%"},{"v":0.0906,"d":"9.06%"},{"v":0.0852,"d":"8.52%"},{"v":0.0826,"d":"8.26%"},{"v":0.082,"d":"8.20%"},{"v":0.0775,"d":"7.75%"},{"v":0.0711,"d":"7.11%"},{"v":0.0645,"d":"6.45%"}]

{"sheet":"Equities","index":12,"n_rows":37,"n_cols":102,"rows_kept":37}
[{"$f":"Main!A7","v":"2022-12-31"},{"$f":"Main!B7","v":68},1,2,3,4,5,6,7,8,9,10,11,12,13,14,15,16,17,18,19,20,21,22,23,24,25,26,27,28,29,30,31,32,33,34,35,36,37,38,39,40,41,42,43,44,45,46,47,48,49,50,51,52,53,54,55,56,57,58,59,60,61,62,63,64,65,66,67,68,69,70,71,72,73,74,75,76,77,78,79,80,81,82,83,84,85,86,87,88,89,90,91,92,93,94,95,96,97,98,99,100]
[{"$f":"Main!A8","v":"2023-12-31"},{"$f":"Main!B8","v":69},{"$f":"($A2-$A1)/365.25*(Main!$I$1+Main!$I8)*Main!$D$2*(1+Main!$I$2+VLOOKUP('Random Years'!A2,'Hist Returns'!$A$12:$D$107,2,FALSE))","v":{"v":728428.6374371414,"d":"728,429"}},{"$f":"($A2-$A1)/365.25*(Main!$I$1+Main!$I8)*Main!$D$2*(1+Main!$I$2+VLOOKUP('Random Years'!B2,'Hist Returns'!$A$12:$D$107,2,FALSE))","v":{"v":781486.5513220205,"d":"781,487"}},{"$f":"($A2-$A1)/365.25*(Main!$I$1+Main!$I8)*Main!$D$2*(1+Main!$I$2+VLOOKUP('Random Years'!C2,'Hist Returns'!$A$12:$D$107,2,FALSE))","v":{"v":1010180.2817826134,"d":"1,010,180"}},{"$f":"($A2-$A1)/365.25*(Main!$I$1+Main!$I8)*Main!$D$2*(1+Main!$I$2+VLOOKUP('Random Years'!D2,'Hist Returns'!$A$12:$D$107,2,FALSE))","v":{"v":903335.6700535194,"d":"903,336"}},{"$f":"($A2-$A1)/365.25*(Main!$I$1+Main!$I8)*Main!$D$2*(1+Main!$I$2+VLOOKUP('Random Years'!E2,'Hist Returns'!$A$12:$D$107,2,FALSE))","v":{"v":619771.7450070805,"d":"619,772"}},{"$f":"($A2-$A1)/365.25*(Main!$I$1+Main!$I8)*Main!$D$2*(1+Main!$I$2+VLOOKUP('Random Years'!F2,'Hist Returns'!$A$12:$D$107,2,FALSE))","v":{"v":909704.0822887489,"d":"909,704"}},{"$f":"($A2-$A1)/365.25*(Main!$I$1+Main!$I8)*Main!$D$2*(1+Main!$I$2+VLOOKUP('Random Years'!G2,'Hist Returns'!$A$12:$D$107,2,FALSE))","v":{"v":1032497.2878228336,"d":"1,032,497"}},{"$f":"($A2-$A1)/365.25*(Main!$I$1+Main!$I8)*Main!$D$2*(1+Main!$I$2+VLOOKUP('Random Years'!H2,'Hist Returns'!$A$12:$D$107,2,FALSE))","v":{"v":680230.8582149624,"d":"680,231"}},{"$f":"($A2-$A1)/365.25*(Main!$I$1+Main!$I8)*Main!$D$2*(1+Main!$I$2+VLOOKUP('Random Years'!I2,'Hist Returns'!$A$12:$D$107,2,FALSE))","v":{"v":626236.875305668,"d":"626,237"}},{"$f":"($A2-$A1)/365.25*(Main!$I$1+Main!$I8)*Main!$D$2*(1+Main!$I$2+VLOOKUP('Random Years'!J2,'Hist Returns'!$A$12:$D$107,2,FALSE))","v":{"v":659278.730436249,"d":"659,279"}},{"$f":"($A2-$A1)/365.25*(Main!$I$1+Main!$I8)*Main!$D$2*(1+Main!$I$2+VLOOKUP('Random Years'!K2,'Hist Returns'!$A$12:$D$107,2,FALSE))","v":{"v":889998.726589503,"d":"889,999"}},{"$f":"($A2-$A1)/365.25*(Main!$I$1+Main!$I8)*Main!$D$2*(1+Main!$I$2+VLOOKUP('Random Years'!L2,'Hist Returns'!$A$12:$D$107,2,FALSE))","v":{"v":896553.7211367292,"d":"896,554"}},{"$f":"($A2-$A1)/365.25*(Main!$I$1+Main!$I8)*Main!$D$2*(1+Main!$I$2+VLOOKUP('Random Years'!M2,'Hist Returns'!$A$12:$D$107,2,FALSE))","v":{"v":771411.330709233,"d":"771,411"}},{"$f":"($A2-$A1)/365.25*(Main!$I$1+Main!$I8)*Main!$D$2*(1+Main!$I$2+VLOOKUP('Random Years'!N2,'Hist Returns'!$A$12:$D$107,2,FALSE))","v":{"v":837179.1711264175,"d":"837,179"}},{"$f":"($A2-$A1)/365.25*(Main!$I$1+Main!$I8)*Main!$D$2*(1+Main!$I$2+VLOOKUP('Random Years'!O2,'Hist Returns'!$A$12:$D$107,2,FALSE))","v":{"v":812396.2995200108,"d":"812,396"}},{"$f":"($A2-$A1)/365.25*(Main!$I$1+Main!$I8)*Main!$D$2*(1+Main!$I$2+VLOOKUP('Random Years'!P2,'Hist Returns'!$A$12:$D$107,2,FALSE))","v":{"v":564429.9008359095,"d":"564,430"}},{"$f":"($A2-$A1)/365.25*(Main!$I$1+Main!$I8)*Main!$D$2*(1+Main!$I$2+VLOOKUP('Random Years'!Q2,'Hist Returns'!$A$12:$D$107,2,FALSE))","v":{"v":884404.3097986255,"d":"884,404"}},{"$f":"($A2-$A1)/365.25*(Main!$I$1+Main!$I8)*Main!$D$2*(1+Main!$I$2+VLOOKUP('Random Years'!R2,'Hist Returns'!$A$12:$D$107,2,FALSE))","v":{"v":656041.2296927099,"d":"656,041"}},{"$f":"($A2-$A1)/365.25*(Main!$I$1+Main!$I8)*Main!$D$2*(1+Main!$I$2+VLOOKUP('Random Years'!S2,'Hist Returns'!$A$12:$D$107,2,FALSE))","v":{"v":786313.3618283252,"d":"786,313"}},{"$f":"($A2-$A1)/365.25*(Main!$I$1+Main!$I8)*Main!$D$2*(1+Main!$I$2+VLOOKUP('Random Years'!T2,'Hist Returns'!$A$12:$D$107,2,FALSE))","v":{"v":851418.7416973867,"d":"851,419"}},{"$f":"($A2-$A1)/365.25*(Main!$I$1+Main!$I8)*Main!$D$2*(1+Main!$I$2+VLOOKUP('Random Years'!U2,'Hist Returns'!$A$12:$D$107,2,FALSE))","v":{"v":815903.6965773124,"d":"815,904"}},{"$f":"($A2-$A1)/365.25*(Main!$I$1+Main!$I8)*Main!$D$2*(1+Main!$I$2+VLOOKUP('Random Years'!V2,'Hist Returns'!$A$12:$D$107,2,FALSE))","v":{"v":680857.3210830085,"d":"680,857"}},{"$f":"($A2-$A1)/365.25*(Main!$I$1+Main!$I8)*Main!$D$2*(1+Main!$I$2+VLOOKUP('Random Years'!W2,'Hist Returns'!$A$12:$D$107,2,FALSE))","v":{"v":820407.7960947056,"d":"820,408"}},{"$f":"($A2-$A1)/365.25*(Main!$I$1+Main!$I8)*Main!$D$2*(1+Main!$I$2+VLOOKUP('Random Years'!X2,'Hist Returns'!$A$12:$D$107,2,FALSE))","v":{"v":852468.8192117414,"d":"852,469"}},{"$f":"($A2-$A1)/365.25*(Main!$I$1+Main!$I8)*Main!$D$2*(1+Main!$I$2+VLOOKUP('Random Years'!Y2,'Hist Returns'!$A$12:$D$107,2,FALSE))","v":{"v":769232.7981388527,"d":"769,233"}},{"$f":"($A2-$A1)/365.25*(Main!$I$1+Main!$I8)*Main!$D$2*(1+Main!$I$2+VLOOKUP('Random Years'!Z2,'Hist Returns'!$A$12:$D$107,2,FALSE))","v":{"v":905092.3876483764,"d":"905,092"}},{"$f":"($A2-$A1)/365.25*(Main!$I$1+Main!$I8)*Main!$D$2*(1+Main!$I$2+VLOOKUP('Random Years'!AA2,'Hist Returns'!$A$12:$D$107,2,FALSE))","v":{"v":989386.9977124035,"d":"989,387"}},{"$f":"($A2-$A1)/365.25*(Main!$I$1+Main!$I8)*Main!$D$2*(1+Main!$I$2+VLOOKUP('Random Years'!AB2,'Hist Returns'!$A$12:$D$107,2,FALSE))","v":{"v":740000.9052315248,"d":"740,001"}},{"$f":"($A2-$A1)/365.25*(Main!$I$1+Main!$I8)*Main!$D$2*(1+Main!$I$2+VLOOKUP('Random Years'!AC2,'Hist Returns'!$A$12:$D$107,2,FALSE))","v":{"v":771411.330709233,"d":"771,411"}},{"$f":"($A2-$A1)/365.25*(Main!$I$1+Main!$I8)*Main!$D$2*(1+Main!$I$2+VLOOKUP('Random Years'!AD2,'Hist Returns'!$A$12:$D$107,2,FALSE))","v":{"v":721694.276773302,"d":"721,694"}},{"$f":"($A2-$A1)/365.25*(Main!$I$1+Main!$I8)*Main!$D$2*(1+Main!$I$2+VLOOKUP('Random Years'!AE2,'Hist Returns'!$A$12:$D$107,2,FALSE))","v":{"v":817527.4754712549,"d":"817,527"}},{"$f":"($A2-$A1)/365.25*(Main!$I$1+Main!$I8)*Main!$D$2*(1+Main!$I$2+VLOOKUP('Random Years'!AF2,'Hist Returns'!$A$12:$D$107,2,FALSE))","v":{"v":619771.7450070805,"d":"619,772"}},{"$f":"($A2-$A1)/365.25*(Main!$I$1+Main!$I8)*Main!$D$2*(1+Main!$I$2+VLOOKUP('Random Years'!AG2,'Hist Returns'!$A$12:$D$107,2,FALSE))","v":{"v":842185.0073180074,"d":"842,185"}},{"$f":"($A2-$A1)/365.25*(Main!$I$1+Main!$I8)*Main!$D$2*(1+Main!$I$2+VLOOKUP('Random Years'!AH2,'Hist Returns'!$A$12:$D$107,2,FALSE))","v":{"v":989386.9977124035,"d":"989,387"}},{"$f":"($A2-$A1)/365.25*(Main!$I$1+Main!$I8)*Main!$D$2*(1+Main!$I$2+VLOOKUP('Random Years'!AI2,'Hist Returns'!$A$12:$D$107,2,FALSE))","v":{"v":814414.8897749407,"d":"814,415"}},{"$f":"($A2-$A1)/365.25*(Main!$I$1+Main!$I8)*Main!$D$2*(1+Main!$I$2+VLOOKUP('Random Years'!AJ2,'Hist Returns'!$A$12:$D$107,2,FALSE))","v":{"v":726170.7361244056,"d":"726,171"}},{"$f":"($A2-$A1)/365.25*(Main!$I$1+Main!$I8)*Main!$D$2*(1+Main!$I$2+VLOOKUP('Random Years'!AK2,'Hist Returns'!$A$12:$D$107,2,FALSE))","v":{"v":630385.744792568,"d":"630,386"}},{"$f":"($A2-$A1)/365.25*(Main!$I$1+Main!$I8)*Main!$D$2*(1+Main!$I$2+VLOOKUP('Random Years'!AL2,'Hist Returns'!$A$12:$D$107,2,FALSE))","v":{"v":690729.853371381,"d":"690,730"}},{"$f":"($A2-$A1)/365.25*(Main!$I$1+Main!$I8)*Main!$D$2*(1+Main!$I$2+VLOOKUP('Random Years'!AM2,'Hist Returns'!$A$12:$D$107,2,FALSE))","v":{"v":667317.0138261197,"d":"667,317"}},{"$f":"($A2-$A1)/365.25*(Main!$I$1+Main!$I8)*Main!$D$2*(1+Main!$I$2+VLOOKUP('Random Years'!AN2,'Hist Returns'!$A$12:$D$107,2,FALSE))","v":{"v":680857.3210830085,"d":"680,857"}},{"$f":"($A2-$A1)/365.25*(Main!$I$1+Main!$I8)*Main!$D$2*(1+Main!$I$2+VLOOKUP('Random Years'!AO2,'Hist Returns'!$A$12:$D$107,2,FALSE))","v":{"v":935010.137382069,"d":"935,010"}},{"$f":"($A2-$A1)/365.25*(Main!$I$1+Main!$I8)*Main!$D$2*(1+Main!$I$2+VLOOKUP('Random Years'!AP2,'Hist Returns'!$A$12:$D$107,2,FALSE))","v":{"v":739627.6745034028,"d":"739,628"}},{"$f":"($A2-$A1)/365.25*(Main!$I$1+Main!$I8)*Main!$D$2*(1+Main!$I$2+VLOOKUP('Random Years'!AQ2,'Hist Returns'!$A$12:$D$107,2,FALSE))","v":{"v":697913.2009604161,"d":"697,913"}},{"$f":"($A2-$A1)/365.25*(Main!$I$1+Main!$I8)*Main!$D$2*(1+Main!$I$2+VLOOKUP('Random Years'!AR2,'Hist Returns'!$A$12:$D$107,2,FALSE))","v":{"v":781486.5513220205,"d":"781,487"}},{"$f":"($A2-$A1)/365.25*(Main!$I$1+Main!$I8)*Main!$D$2*(1+Main!$I$2+VLOOKUP('Random Years'!AS2,'Hist Returns'!$A$12:$D$107,2,FALSE))","v":{"v":1010180.2817826134,"d":"1,010,180"}},{"$f":"($A2-$A1)/365.25*(Main!$I$1+Main!$I8)*Main!$D$2*(1+Main!$I$2+VLOOKUP('Random Years'!AT2,'Hist Returns'!$A$12:$D$107,2,FALSE))","v":{"v":889998.726589503,"d":"889,999"}},{"$f":"($A2-$A1)/365.25*(Main!$I$1+Main!$I8)*Main!$D$2*(1+Main!$I$2+VLOOKUP('Random Years'!AU2,'Hist Returns'!$A$12:$D$107,2,FALSE))","v":{"v":908315.7211581129,"d":"908,316"}},{"$f":"($A2-$A1)/365.25*(Main!$I$1+Main!$I8)*Main!$D$2*(1+Main!$I$2+VLOOKUP('Random Years'!AV2,'Hist Returns'!$A$12:$D$107,2,FALSE))","v":{"v":781486.5513220205,"d":"781,487"}},{"$f":"($A2-$A1)/365.25*(Main!$I$1+Main!$I8)*Main!$D$2*(1+Main!$I$2+VLOOKUP('Random Years'!AW2,'Hist Returns'!$A$12:$D$107,2,FALSE))","v":{"v":606837.8059048955,"d":"606,838"}},{"$f":"($A2-$A1)/365.25*(Main!$I$1+Main!$I8)*Main!$D$2*(1+Main!$I$2+VLOOKUP('Random Years'!AX2,'Hist Returns'!$A$12:$D$107,2,FALSE))","v":{"v":721694.276773302,"d":"721,694"}},{"$f":"($A2-$A1)/365.25*(Main!$I$1+Main!$I8)*Main!$D$2*(1+Main!$I$2+VLOOKUP('Random Years'!AY2,'Hist Returns'!$A$12:$D$107,2,FALSE))","v":{"v":386629.67080998584,"d":"386,630"}},{"$f":"($A2-$A1)/365.25*(Main!$I$1+Main!$I8)*Main!$D$2*(1+Main!$I$2+VLOOKUP('Random Years'!AZ2,'Hist Returns'!$A$12:$D$107,2,FALSE))","v":{"v":626236.875305668,"d":"626,237"}},{"$f":"($A2-$A1)/365.25*(Main!$I$1+Main!$I8)*Main!$D$2*(1+Main!$I$2+VLOOKUP('Random Years'!BA2,'Hist Returns'!$A$12:$D$107,2,FALSE))","v":{"v":510101.81388875726,"d":"510,102"}},{"$f":"($A2-$A1)/365.25*(Main!$I$1+Main!$I8)*Main!$D$2*(1+Main!$I$2+VLOOKUP('Random Years'!BB2,'Hist Returns'!$A$12:$D$107,2,FALSE))","v":{"v":883618.1423824993,"d":"883,618"}},{"$f":"($A2-$A1)/365.25*(Main!$I$1+Main!$I8)*Main!$D$2*(1+Main!$I$2+VLOOKUP('Random Years'!BC2,'Hist Returns'!$A$12:$D$107,2,FALSE))","v":{"v":762367.7770998849,"d":"762,368"}},{"$f":"($A2-$A1)/365.25*(Main!$I$1+Main!$I8)*Main!$D$2*(1+Main!$I$2+VLOOKUP('Random Years'!BD2,'Hist Returns'!$A$12:$D$107,2,FALSE))","v":{"v":721694.276773302,"d":"721,694"}},{"$f":"($A2-$A1)/365.25*(Main!$I$1+Main!$I8)*Main!$D$2*(1+Main!$I$2+VLOOKUP('Random Years'!BE2,'Hist Returns'!$A$12:$D$107,2,FALSE))","v":{"v":820407.7960947056,"d":"820,408"}},{"$f":"($A2-$A1)/365.25*(Main!$I$1+Main!$I8)*Main!$D$2*(1+Main!$I$2+VLOOKUP('Random Years'!BF2,'Hist Returns'!$A$12:$D$107,2,FALSE))","v":{"v":773771.1097184897,"d":"773,771"}},{"$f":"($A2-$A1)/365.25*(Main!$I$1+Main!$I8)*Main!$D$2*(1+Main!$I$2+VLOOKUP('Random Years'!BG2,'Hist Returns'!$A$12:$D$107,2,FALSE))","v":{"v":781486.5513220205,"d":"781,487"}},{"$f":"($A2-$A1)/365.25*(Main!$I$1+Main!$I8)*Main!$D$2*(1+Main!$I$2+VLOOKUP('Random Years'!BH2,'Hist Returns'!$A$12:$D$107,2,FALSE))","v":{"v":813366.8837954112,"d":"813,367"}},{"$f":"($A2-$A1)/365.25*(Main!$I$1+Main!$I8)*Main!$D$2*(1+Main!$I$2+VLOOKUP('Random Years'!BI2,'Hist Returns'!$A$12:$D$107,2,FALSE))","v":{"v":680230.8582149624,"d":"680,231"}},{"$f":"($A2-$A1)/365.25*(Main!$I$1+Main!$I8)*Main!$D$2*(1+Main!$I$2+VLOOKUP('Random Years'!BJ2,'Hist Returns'!$A$12:$D$107,2,FALSE))","v":{"v":815732.2031710804,"d":"815,732"}},{"$f":"($A2-$A1)/365.25*(Main!$I$1+Main!$I8)*Main!$D$2*(1+Main!$I$2+VLOOKUP('Random Years'!BK2,'Hist Returns'!$A$12:$D$107,2,FALSE))","v":{"v":769232.7981388527,"d":"769,233"}},{"$f":"($A2-$A1)/365.25*(Main!$I$1+Main!$I8)*Main!$D$2*(1+Main!$I$2+VLOOKUP('Random Years'!BL2,'Hist Returns'!$A$12:$D$107,2,FALSE))","v":{"v":697540.9118195452,"d":"697,541"}},{"$f":"($A2-$A1)/365.25*(Main!$I$1+Main!$I8)*Main!$D$2*(1+Main!$I$2+VLOOKUP('Random Years'!BM2,'Hist Returns'!$A$12:$D$107,2,FALSE))","v":{"v":728428.6374371414,"d":"728,429"}},{"$f":"($A2-$A1)/365.25*(Main!$I$1+Main!$I8)*Main!$D$2*(1+Main!$I$2+VLOOKUP('Random Years'!BN2,'Hist Returns'!$A$12:$D$107,2,FALSE))","v":{"v":909704.0822887489,"d":"909,704"}},{"$f":"($A2-$A1)/365.25*(Main!$I$1+Main!$I8)*Main!$D$2*(1+Main!$I$2+VLOOKUP('Random Years'!BO2,'Hist Returns'!$A$12:$D$107,2,FALSE))","v":{"v":781486.5513220205,"d":"781,487"}},{"$f":"($A2-$A1)/365.25*(Main!$I$1+Main!$I8)*Main!$D$2*(1+Main!$I$2+VLOOKUP('Random Years'!BP2,'Hist Returns'!$A$12:$D$107,2,FALSE))","v":{"v":773771.1097184897,"d":"773,771"}},{"$f":"($A2-$A1)/365.25*(Main!$I$1+Main!$I8)*Main!$D$2*(1+Main!$I$2+VLOOKUP('Random Years'!BQ2,'Hist Returns'!$A$12:$D$107,2,FALSE))","v":{"v":537195.9484443158,"d":"537,196"}},{"$f":"($A2-$A1)/365.25*(Main!$I$1+Main!$I8)*Main!$D$2*(1+Main!$I$2+VLOOKUP('Random Years'!BR2,'Hist Returns'!$A$12:$D$107,2,FALSE))","v":{"v":680095.6604557498,"d":"680,096"}},{"$f":"($A2-$A1)/365.25*(Main!$I$1+Main!$I8)*Main!$D$2*(1+Main!$I$2+VLOOKUP('Random Years'!BS2,'Hist Returns'!$A$12:$D$107,2,FALSE))","v":{"v":906882.6876201543,"d":"906,883"}},{"$f":"($A2-$A1)/365.25*(Main!$I$1+Main!$I8)*Main!$D$2*(1+Main!$I$2+VLOOKUP('Random Years'!BT2,'Hist Returns'!$A$12:$D$107,2,FALSE))","v":{"v":771411.330709233,"d":"771,411"}},{"$f":"($A2-$A1)/365.25*(Main!$I$1+Main!$I8)*Main!$D$2*(1+Main!$I$2+VLOOKUP('Random Years'!BU2,'Hist Returns'!$A$12:$D$107,2,FALSE))","v":{"v":820407.7960947056,"d":"820,408"}},{"$f":"($A2-$A1)/365.25*(Main!$I$1+Main!$I8)*Main!$D$2*(1+Main!$I$2+VLOOKUP('Random Years'!BV2,'Hist Returns'!$A$12:$D$107,2,FALSE))","v":{"v":906882.6876201543,"d":"906,883"}},{"$f":"($A2-$A1)/365.25*(Main!$I$1+Main!$I8)*Main!$D$2*(1+Main!$I$2+VLOOKUP('Random Years'!BW2,'Hist Returns'!$A$12:$D$107,2,FALSE))","v":{"v":866954.6477535915,"d":"866,955"}},{"$f":"($A2-$A1)/365.25*(Main!$I$1+Main!$I8)*Main!$D$2*(1+Main!$I$2+VLOOKUP('Random Years'!BX2,'Hist Returns'!$A$12:$D$107,2,FALSE))","v":{"v":852468.8192117414,"d":"852,469"}},{"$f":"($A2-$A1)/365.25*(Main!$I$1+Main!$I8)*Main!$D$2*(1+Main!$I$2+VLOOKUP('Random Years'!BY2,'Hist Returns'!$A$12:$D$107,2,FALSE))","v":{"v":797805.9706769771,"d":"797,806"}},{"$f":"($A2-$A1)/365.25*(Main!$I$1+Main!$I8)*Main!$D$2*(1+Main!$I$2+VLOOKUP('Random Years'!BZ2,'Hist Returns'!$A$12:$D$107,2,FALSE))","v":{"v":781486.5513220205,"d":"781,487"}},{"$f":"($A2-$A1)/365.25*(Main!$I$1+Main!$I8)*Main!$D$2*(1+Main!$I$2+VLOOKUP('Random Years'!CA2,'Hist Returns'!$A$12:$D$107,2,FALSE))","v":{"v":828980.5502782,"d":"828,981"}},{"$f":"($A2-$A1)/365.25*(Main!$I$1+Main!$I8)*Main!$D$2*(1+Main!$I$2+VLOOKUP('Random Years'!CB2,'Hist Returns'!$A$12:$D$107,2,FALSE))","v":{"v":697913.2009604161,"d":"697,913"}},{"$f":"($A2-$A1)/365.25*(Main!$I$1+Main!$I8)*Main!$D$2*(1+Main!$I$2+VLOOKUP('Random Years'!CC2,'Hist Returns'!$A$12:$D$107,2,FALSE))","v":{"v":905092.3876483764,"d":"905,092"}},{"$f":"($A2-$A1)/365.25*(Main!$I$1+Main!$I8)*Main!$D$2*(1+Main!$I$2+VLOOKUP('Random Years'!CD2,'Hist Returns'!$A$12:$D$107,2,FALSE))","v":{"v":712928.4882237177,"d":"712,928"}},{"$f":"($A2-$A1)/365.25*(Main!$I$1+Main!$I8)*Main!$D$2*(1+Main!$I$2+VLOOKUP('Random Years'!CE2,'Hist Returns'!$A$12:$D$107,2,FALSE))","v":{"v":842185.0073180074,"d":"842,185"}},{"$f":"($A2-$A1)/365.25*(Main!$I$1+Main!$I8)*Main!$D$2*(1+Main!$I$2+VLOOKUP('Random Years'!CF2,'Hist Returns'!$A$12:$D$107,2,FALSE))","v":{"v":726170.7361244056,"d":"726,171"}},{"$f":"($A2-$A1)/365.25*(Main!$I$1+Main!$I8)*Main!$D$2*(1+Main!$I$2+VLOOKUP('Random Years'!CG2,'Hist Returns'!$A$12:$D$107,2,FALSE))","v":{"v":515458.69620961376,"d":"515,459"}},{"$f":"($A2-$A1)/365.25*(Main!$I$1+Main!$I8)*Main!$D$2*(1+Main!$I$2+VLOOKUP('Random Years'!CH2,'Hist Returns'!$A$12:$D$107,2,FALSE))","v":{"v":842185.0073180074,"d":"842,185"}},{"$f":"($A2-$A1)/365.25*(Main!$I$1+Main!$I8)*Main!$D$2*(1+Main!$I$2+VLOOKUP('Random Years'!CI2,'Hist Returns'!$A$12:$D$107,2,FALSE))","v":{"v":802257.3018977639,"d":"802,257"}},{"$f":"($A2-$A1)/365.25*(Main!$I$1+Main!$I8)*Main!$D$2*(1+Main!$I$2+VLOOKUP('Random Years'!CJ2,'Hist Returns'!$A$12:$D$107,2,FALSE))","v":{"v":614939.6429435575,"d":"614,940"}},{"$f":"($A2-$A1)/365.25*(Main!$I$1+Main!$I8)*Main!$D$2*(1+Main!$I$2+VLOOKUP('Random Years'!CK2,'Hist Returns'!$A$12:$D$107,2,FALSE))","v":{"v":860938.4422101745,"d":"860,938"}},{"$f":"($A2-$A1)/365.25*(Main!$I$1+Main!$I8)*Main!$D$2*(1+Main!$I$2+VLOOKUP('Random Years'!CL2,'Hist Returns'!$A$12:$D$107,2,FALSE))","v":{"v":726170.7361244056,"d":"726,171"}},{"$f":"($A2-$A1)/365.25*(Main!$I$1+Main!$I8)*Main!$D$2*(1+Main!$I$2+VLOOKUP('Random Years'!CM2,'Hist Returns'!$A$12:$D$107,2,FALSE))","v":{"v":724210.5813872142,"d":"724,211"}},{"$f":"($A2-$A1)/365.25*(Main!$I$1+Main!$I8)*Main!$D$2*(1+Main!$I$2+VLOOKUP('Random Years'!CN2,'Hist Returns'!$A$12:$D$107,2,FALSE))","v":{"v":712928.4882237177,"d":"712,928"}},{"$f":"($A2-$A1)/365.25*(Main!$I$1+Main!$I8)*Main!$D$2*(1+Main!$I$2+VLOOKUP('Random Years'!CO2,'Hist Returns'!$A$12:$D$107,2,FALSE))","v":{"v":801419.2488990221,"d":"801,419"}},{"$f":"($A2-$A1)/365.25*(Main!$I$1+Main!$I8)*Main!$D$2*(1+Main!$I$2+VLOOKUP('Random Years'!CP2,'Hist Returns'!$A$12:$D$107,2,FALSE))","v":{"v":871790.6057698925,"d":"871,791"}},{"$f":"($A2-$A1)/365.25*(Main!$I$1+Main!$I8)*Main!$D$2*(1+Main!$I$2+VLOOKUP('Random Years'!CQ2,'Hist Returns'!$A$12:$D$107,2,FALSE))","v":{"v":739627.6745034028,"d":"739,628"}},{"$f":"($A2-$A1)/365.25*(Main!$I$1+Main!$I8)*Main!$D$2*(1+Main!$I$2+VLOOKUP('Random Years'!CR2,'Hist Returns'!$A$12:$D$107,2,FALSE))","v":{"v":627753.8516610914,"d":"627,754"}},{"$f":"($A2-$A1)/365.25*(Main!$I$1+Main!$I8)*Main!$D$2*(1+Main!$I$2+VLOOKUP('Random Years'!CS2,'Hist Returns'!$A$12:$D$107,2,FALSE))","v":{"v":697540.9118195452,"d":"697,541"}},{"$f":"($A2-$A1)/365.25*(Main!$I$1+Main!$I8)*Main!$D$2*(1+Main!$I$2+VLOOKUP('Random Years'!CT2,'Hist Returns'!$A$12:$D$107,2,FALSE))","v":{"v":871790.6057698925,"d":"871,791"}},{"$f":"($A2-$A1)/365.25*(Main!$I$1+Main!$I8)*Main!$D$2*(1+Main!$I$2+VLOOKUP('Random Years'!CU2,'Hist Returns'!$A$12:$D$107,2,FALSE))","v":{"v":515458.69620961376,"d":"515,459"}},{"$f":"($A2-$A1)/365.25*(Main!$I$1+Main!$I8)*Main!$D$2*(1+Main!$I$2+VLOOKUP('Random Years'!CV2,'Hist Returns'!$A$12:$D$107,2,FALSE))","v":{"v":795891.9945804491,"d":"795,892"}}]
[{"$f":"Main!A9","v":"2024-12-30"},{"$f":"Main!B9","v":70},{"$f":"($A3-$A2)/365.25*(C2+Main!$I9)*(1+Main!$I$2+VLOOKUP('Random Years'!A3,'Hist Returns'!$A$12:$D$107,2,FALSE))","v":{"v":654180.4691872933,"d":"654,180"}},{"$f":"($A3-$A2)/365.25*(D2+Main!$I9)*(1+Main!$I$2+VLOOKUP('Random Years'!B3,'Hist Returns'!$A$12:$D$107,2,FALSE))","v":{"v":879481.0934305821,"d":"879,481"}},{"$f":"($A3-$A2)/365.25*(E2+Main!$I9)*(1+Main!$I$2+VLOOKUP('Random Years'!C3,'Hist Returns'!$A$12:$D$107,2,FALSE))","v":{"v":1202198.7491690202,"d":"1,202,199"}},{"$f":"($A3-$A2)/365.25*(F2+Main!$I9)*(1+Main!$I$2+VLOOKUP('Random Years'!D3,'Hist Returns'!$A$12:$D$107,2,FALSE))","v":{"v":1171292.6611344707,"d":"1,171,293"}},{"$f":"($A3-$A2)/365.25*(G2+Main!$I9)*(1+Main!$I$2+VLOOKUP('Random Years'!E3,'Hist Returns'!$A$12:$D$107,2,FALSE))","v":{"v":869127.9867830037,"d":"869,128"}},{"$f":"($A3-$A2)/365.25*(H2+Main!$I9)*(1+Main!$I$2+VLOOKUP('Random Years'!F3,'Hist Returns'!$A$12:$D$107,2,FALSE))","v":{"v":813335.1851568667,"d":"813,335"}},{"$f":"($A3-$A2)/365.25*(I2+Main!$I9)*(1+Main!$I$2+VLOOKUP('Random Years'!G3,'Hist Returns'!$A$12:$D$107,2,FALSE))","v":{"v":1305117.555255678,"d":"1,305,118"}},{"$f":"($A3-$A2)/365.25*(J2+Main!$I9)*(1+Main!$I$2+VLOOKUP('Random Years'!H3,'Hist Returns'!$A$12:$D$107,2,FALSE))","v":{"v":518747.3924665758,"d":"518,747"}},{"$f":"($A3-$A2)/365.25*(K2+Main!$I9)*(1+Main!$I$2+VLOOKUP('Random Years'!I3,'Hist Returns'!$A$12:$D$107,2,FALSE))","v":{"v":801603.1517006372,"d":"801,603"}},{"$f":"($A3-$A2)/365.25*(L2+Main!$I9)*(1+Main!$I$2+VLOOKUP('Random Years'!J3,'Hist Returns'!$A$12:$D$107,2,FALSE))","v":{"v":850794.4758300222,"d":"850,794"}},{"$f":"($A3-$A2)/365.25*(M2+Main!$I9)*(1+Main!$I$2+VLOOKUP('Random Years'!K3,'Hist Returns'!$A$12:$D$107,2,FALSE))","v":{"v":1123336.1381260648,"d":"1,123,336"}},{"$f":"($A3-$A2)/365.25*(N2+Main!$I9)*(1+Main!$I$2+VLOOKUP('Random Years'!L3,'Hist Returns'!$A$12:$D$107,2,FALSE))","v":{"v":652765.398359488,"d":"652,765"}},{"$f":"($A3-$A2)/365.25*(O2+Main!$I9)*(1+Main!$I$2+VLOOKUP('Random Years'!M3,'Hist Returns'!$A$12:$D$107,2,FALSE))","v":{"v":720344.5868162964,"d":"720,345"}},{"$f":"($A3-$A2)/365.25*(P2+Main!$I9)*(1+Main!$I$2+VLOOKUP('Random Years'!N3,'Hist Returns'!$A$12:$D$107,2,FALSE))","v":{"v":724253.2070911046,"d":"724,253"}},{"$f":"($A3-$A2)/365.25*(Q2+Main!$I9)*(1+Main!$I$2+VLOOKUP('Random Years'!O3,'Hist Returns'!$A$12:$D$107,2,FALSE))","v":{"v":807411.9260032047,"d":"807,412"}},{"$f":"($A3-$A2)/365.25*(R2+Main!$I9)*(1+Main!$I$2+VLOOKUP('Random Years'!P3,'Hist Returns'!$A$12:$D$107,2,FALSE))","v":{"v":671691.7874930673,"d":"671,692"}},{"$f":"($A3-$A2)/365.25*(S2+Main!$I9)*(1+Main!$I$2+VLOOKUP('Random Years'!Q3,'Hist Returns'!$A$12:$D$107,2,FALSE))","v":{"v":650529.6649409147,"d":"650,530"}},{"$f":"($A3-$A2)/365.25*(T2+Main!$I9)*(1+Main!$I$2+VLOOKUP('Random Years'!R3,'Hist Returns'!$A$12:$D$107,2,FALSE))","v":{"v":474671.91898862843,"d":"474,672"}},{"$f":"($A3-$A2)/365.25*(U2+Main!$I9)*(1+Main!$I$2+VLOOKUP('Random Years'!S3,'Hist Returns'!$A$12:$D$107,2,FALSE))","v":{"v":702864.2011896772,"d":"702,864"}},{"$f":"($A3-$A2)/365.25*(V2+Main!$I9)*(1+Main!$I$2+VLOOKUP('Random Years'!T3,'Hist Returns'!$A$12:$D$107,2,FALSE))","v":{"v":890249.4437766677,"d":"890,249"}},{"$f":"($A3-$A2)/365.25*(W2+Main!$I9)*(1+Main!$I$2+VLOOKUP('Random Years'!U3,'Hist Returns'!$A$12:$D$107,2,FALSE))","v":{"v":1007924.3715698343,"d":"1,007,924"}},{"$f":"($A3-$A2)/365.25*(X2+Main!$I9)*(1+Main!$I$2+VLOOKUP('Random Years'!V3,'Hist Returns'!$A$12:$D$107,2,FALSE))","v":{"v":832154.7438429378,"d":"832,155"}},{"$f":"($A3-$A2)/365.25*(Y2+Main!$I9)*(1+Main!$I$2+VLOOKUP('Random Years'!W3,'Hist Returns'!$A$12:$D$107,2,FALSE))","v":{"v":733933.1377486063,"d":"733,933"}},{"$f":"($A3-$A2)/365.25*(Z2+Main!$I9)*(1+Main!$I$2+VLOOKUP('Random Years'!X3,'Hist Returns'!$A$12:$D$107,2,FALSE))","v":{"v":1081955.499480011,"d":"1,081,955"}},{"$f":"($A3-$A2)/365.25*(AA2+Main!$I9)*(1+Main!$I$2+VLOOKUP('Random Years'!Y3,'Hist Returns'!$A$12:$D$107,2,FALSE))","v":{"v":865420.8304976079,"d":"865,421"}},{"$f":"($A3-$A2)/365.25*(AB2+Main!$I9)*(1+Main!$I$2+VLOOKUP('Random Years'!Z3,'Hist Returns'!$A$12:$D$107,2,FALSE))","v":{"v":1028349.4433891247,"d":"1,028,349"}},{"$f":"($A3-$A2)/365.25*(AC2+Main!$I9)*(1+Main!$I$2+VLOOKUP('Random Years'!AA3,'Hist Returns'!$A$12:$D$107,2,FALSE))","v":{"v":1400312.126566518,"d":"1,400,312"}},{"$f":"($A3-$A2)/365.25*(AD2+Main!$I9)*(1+Main!$I$2+VLOOKUP('Random Years'!AB3,'Hist Returns'!$A$12:$D$107,2,FALSE))","v":{"v":771660.3294277875,"d":"771,660"}},{"$f":"($A3-$A2)/365.25*(AE2+Main!$I9)*(1+Main!$I$2+VLOOKUP('Random Years'!AC3,'Hist Returns'!$A$12:$D$107,2,FALSE))","v":{"v":895876.3330593825,"d":"895,876"}},{"$f":"($A3-$A2)/365.25*(AF2+Main!$I9)*(1+Main!$I$2+VLOOKUP('Random Years'!AD3,'Hist Returns'!$A$12:$D$107,2,FALSE))","v":{"v":841612.7822217235,"d":"841,613"}},{"$f":"($A3-$A2)/365.25*(AG2+Main!$I9)*(1+Main!$I$2+VLOOKUP('Random Years'!AE3,'Hist Returns'!$A$12:$D$107,2,FALSE))","v":{"v":933621.73352884,"d":"933,622"}},{"$f":"($A3-$A2)/365.25*(AH2+Main!$I9)*(1+Main!$I$2+VLOOKUP('Random Years'!AF3,'Hist Returns'!$A$12:$D$107,2,FALSE))","v":{"v":719366.2585666953,"d":"719,366"}},{"$f":"($A3-$A2)/365.25*(AI2+Main!$I9)*(1+Main!$I$2+VLOOKUP('Random Years'!AG3,'Hist Returns'!$A$12:$D$107,2,FALSE))","v":{"v":1076540.34965219,"d":"1,076,540"}},{"$f":"($A3-$A2)/365.25*(AJ2+Main!$I9)*(1+Main!$I$2+VLOOKUP('Random Years'!AH3,'Hist Returns'!$A$12:$D$107,2,FALSE))","v":{"v":976992.8277784495,"d":"976,993"}},{"$f":"($A3-$A2)/365.25*(AK2+Main!$I9)*(1+Main!$I$2+VLOOKUP('Random Years'!AI3,'Hist Returns'!$A$12:$D$107,2,FALSE))","v":{"v":912471.1746776291,"d":"912,471"}},{"$f":"($A3-$A2)/365.25*(AL2+Main!$I9)*(1+Main!$I$2+VLOOKUP('Random Years'!AJ3,'Hist Returns'!$A$12:$D$107,2,FALSE))","v":{"v":526601.0630093613,"d":"526,601"}},{"$f":"($A3-$A2)/365.25*(AM2+Main!$I9)*(1+Main!$I$2+VLOOKUP('Random Years'!AK3,'Hist Returns'!$A$12:$D$107,2,FALSE))","v":{"v":588934.6259975666,"d":"588,935"}},{"$f":"($A3-$A2)/365.25*(AN2+Main!$I9)*(1+Main!$I$2+VLOOKUP('Random Years'!AL3,'Hist Returns'!$A$12:$D$107,2,FALSE))","v":{"v":925077.7537129426,"d":"925,078"}},{"$f":"($A3-$A2)/365.25*(AO2+Main!$I9)*(1+Main!$I$2+VLOOKUP('Random Years'!AM3,'Hist Returns'!$A$12:$D$107,2,FALSE))","v":{"v":807124.3998896085,"d":"807,124"}},{"$f":"($A3-$A2)/365.25*(AP2+Main!$I9)*(1+Main!$I$2+VLOOKUP('Random Years'!AN3,'Hist Returns'!$A$12:$D$107,2,FALSE))","v":{"v":842644.0877314454,"d":"842,644"}},{"$f":"($A3-$A2)/365.25*(AQ2+Main!$I9)*(1+Main!$I$2+VLOOKUP('Random Years'!AO3,'Hist Returns'!$A$12:$D$107,2,FALSE))","v":{"v":810432.4126260638,"d":"810,432"}},{"$f":"($A3-$A2)/365.25*(AR2+Main!$I9)*(1+Main!$I$2+VLOOKUP('Random Years'!AP3,'Hist Returns'!$A$12:$D$107,2,FALSE))","v":{"v":855563.8682567949,"d":"855,564"}},{"$f":"($A3-$A2)/365.25*(AS2+Main!$I9)*(1+Main!$I$2+VLOOKUP('Random Years'!AQ3,'Hist Returns'!$A$12:$D$107,2,FALSE))","v":{"v":750460.9451737489,"d":"750,461"}},{"$f":"($A3-$A2)/365.25*(AT2+Main!$I9)*(1+Main!$I$2+VLOOKUP('Random Years'!AR3,'Hist Returns'!$A$12:$D$107,2,FALSE))","v":{"v":756703.4452555163,"d":"756,703"}},{"$f":"($A3-$A2)/365.25*(AU2+Main!$I9)*(1+Main!$I$2+VLOOKUP('Random Years'!AS3,'Hist Returns'!$A$12:$D$107,2,FALSE))","v":{"v":1277627.7029286793,"d":"1,277,628"}},{"$f":"($A3-$A2)/365.25*(AV2+Main!$I9)*(1+Main!$I$2+VLOOKUP('Random Years'!AT3,'Hist Returns'!$A$12:$D$107,2,FALSE))","v":{"v":682325.510466824,"d":"682,326"}},{"$f":"($A3-$A2)/365.25*(AW2+Main!$I9)*(1+Main!$I$2+VLOOKUP('Random Years'!AU3,'Hist Returns'!$A$12:$D$107,2,FALSE))","v":{"v":786917.3266522792,"d":"786,917"}},{"$f":"($A3-$A2)/365.25*(AX2+Main!$I9)*(1+Main!$I$2+VLOOKUP('Random Years'!AV3,'Hist Returns'!$A$12:$D$107,2,FALSE))","v":{"v":885543.386568184,"d":"885,543"}},{"$f":"($A3-$A2)/365.25*(AY2+Main!$I9)*(1+Main!$I$2+VLOOKUP('Random Years'!AW3,'Hist Returns'!$A$12:$D$107,2,FALSE))","v":{"v":635748.6274885187,"d":"635,749"}},{"$f":"($A3-$A2)/365.25*(AZ2+Main!$I9)*(1+Main!$I$2+VLOOKUP('Random Years'!AX3,'Hist Returns'!$A$12:$D$107,2,FALSE))","v":{"v":853700.1271367953,"d":"853,700"}},{"$f":"($A3-$A2)/365.25*(BA2+Main!$I9)*(1+Main!$I$2+VLOOKUP('Random Years'!AY3,'Hist Returns'!$A$12:$D$107,2,FALSE))","v":{"v":340765.09180205216,"d":"340,765"}},{"$f":"($A3-$A2)/365.25*(BB2+Main!$I9)*(1+Main!$I$2+VLOOKUP('Random Years'!AZ3,'Hist Returns'!$A$12:$D$107,2,FALSE))","v":{"v":560474.8912853093,"d":"560,475"}},{"$f":"($A3-$A2)/365.25*(BC2+Main!$I9)*(1+Main!$I$2+VLOOKUP('Random Years'!BA3,'Hist Returns'!$A$12:$D$107,2,FALSE))","v":{"v":634963.3160643859,"d":"634,963"}},{"$f":"($A3-$A2)/365.25*(BD2+Main!$I9)*(1+Main!$I$2+VLOOKUP('Random Years'!BB3,'Hist Returns'!$A$12:$D$107,2,FALSE))","v":{"v":1073553.1385766875,"d":"1,073,553"}},{"$f":"($A3-$A2)/365.25*(BE2+Main!$I9)*(1+Main!$I$2+VLOOKUP('Random Years'!BC3,'Hist Returns'!$A$12:$D$107,2,FALSE))","v":{"v":821291.2282052481,"d":"821,291"}},{"$f":"($A3-$A2)/365.25*(BF2+Main!$I9)*(1+Main!$I$2+VLOOKUP('Random Years'!BD3,'Hist Returns'!$A$12:$D$107,2,FALSE))","v":{"v":622522.673012226,"d":"622,523"}},{"$f":"($A3-$A2)/365.25*(BG2+Main!$I9)*(1+Main!$I$2+VLOOKUP('Random Years'!BE3,'Hist Returns'!$A$12:$D$107,2,FALSE))","v":{"v":659898.4730455768,"d":"659,898"}},{"$f":"($A3-$A2)/365.25*(BH2+Main!$I9)*(1+Main!$I$2+VLOOKUP('Random Years'!BF3,'Hist Returns'!$A$12:$D$107,2,FALSE))","v":{"v":902547.2784285671,"d":"902,547"}},{"$f":"($A3-$A2)/365.25*(BI2+Main!$I9)*(1+Main!$I$2+VLOOKUP('Random Years'!BG3,'Hist Returns'!$A$12:$D$107,2,FALSE))","v":{"v":809652.4209999255,"d":"809,652"}},{"$f":"($A3-$A2)/365.25*(BJ2+Main!$I9)*(1+Main!$I$2+VLOOKUP('Random Years'!BH3,'Hist Returns'!$A$12:$D$107,2,FALSE))","v":{"v":718266.3974259176,"d":"718,266"}},{"$f":"($A3-$A2)/365.25*(BK2+Main!$I9)*(1+Main!$I$2+VLOOKUP('Random Years'!BI3,'Hist Returns'!$A$12:$D$107,2,FALSE))","v":{"v":657475.1000569017,"d":"657,475"}},{"$f":"($A3-$A2)/365.25*(BL2+Main!$I9)*(1+Main!$I$2+VLOOKUP('Random Years'!BJ3,'Hist Returns'!$A$12:$D$107,2,FALSE))","v":{"v":852265.9832083184,"d":"852,266"}},{"$f":"($A3-$A2)/365.25*(BM2+Main!$I9)*(1+Main!$I$2+VLOOKUP('Random Years'!BK3,'Hist Returns'!$A$12:$D$107,2,FALSE))","v":{"v":617968.8111680646,"d":"617,969"}},{"$f":"($A3-$A2)/365.25*(BN2+Main!$I9)*(1+Main!$I$2+VLOOKUP('Random Years'!BL3,'Hist Returns'!$A$12:$D$107,2,FALSE))","v":{"v":755834.4922850239,"d":"755,834"}},{"$f":"($A3-$A2)/365.25*(BO2+Main!$I9)*(1+Main!$I$2+VLOOKUP('Random Years'!BM3,'Hist Returns'!$A$12:$D$107,2,FALSE))","v":{"v":652841.7433618096,"d":"652,842"}},{"$f":"($A3-$A2)/365.25*(BP2+Main!$I9)*(1+Main!$I$2+VLOOKUP('Random Years'!BN3,'Hist Returns'!$A$12:$D$107,2,FALSE))","v":{"v":897096.4747340593,"d":"897,096"}},{"$f":"($A3-$A2)/365.25*(BQ2+Main!$I9)*(1+Main!$I$2+VLOOKUP('Random Years'!BO3,'Hist Returns'!$A$12:$D$107,2,FALSE))","v":{"v":1101532.7364623772,"d":"1,101,533"}},{"$f":"($A3-$A2)/365.25*(BR2+Main!$I9)*(1+Main!$I$2+VLOOKUP('Random Years'!BP3,'Hist Returns'!$A$12:$D$107,2,FALSE))","v":{"v":916610.3002684677,"d":"916,610"}},{"$f":"($A3-$A2)/365.25*(BS2+Main!$I9)*(1+Main!$I$2+VLOOKUP('Random Years'!BQ3,'Hist Returns'!$A$12:$D$107,2,FALSE))","v":{"v":750456.0620096488,"d":"750,456"}},{"$f":"($A3-$A2)/365.25*(BT2+Main!$I9)*(1+Main!$I$2+VLOOKUP('Random Years'!BR3,'Hist Returns'!$A$12:$D$107,2,FALSE))","v":{"v":492483.62283467315,"d":"492,484"}},{"$f":"($A3-$A2)/365.25*(BU2+Main!$I9)*(1+Main!$I$2+VLOOKUP('Random Years'!BS3,'Hist Returns'!$A$12:$D$107,2,FALSE))","v":{"v":695491.7145722698,"d":"695,492"}},{"$f":"($A3-$A2)/365.25*(BV2+Main!$I9)*(1+Main!$I$2+VLOOKUP('Random Years'!BT3,'Hist Returns'!$A$12:$D$107,2,FALSE))","v":{"v":876004.7178377325,"d":"876,005"}},{"$f":"($A3-$A2)/365.25*(BW2+Main!$I9)*(1+Main!$I$2+VLOOKUP('Random Years'!BU3,'Hist Returns'!$A$12:$D$107,2,FALSE))","v":{"v":510659.9736424634,"d":"510,660"}},{"$f":"($A3-$A2)/365.25*(BX2+Main!$I9)*(1+Main!$I$2+VLOOKUP('Random Years'!BV3,'Hist Returns'!$A$12:$D$107,2,FALSE))","v":{"v":785654.9687656824,"d":"785,655"}},{"$f":"($A3-$A2)/365.25*(BY2+Main!$I9)*(1+Main!$I$2+VLOOKUP('Random Years'!BW3,'Hist Returns'!$A$12:$D$107,2,FALSE))","v":{"v":1223584.8156510778,"d":"1,223,585"}},{"$f":"($A3-$A2)/365.25*(BZ2+Main!$I9)*(1+Main!$I$2+VLOOKUP('Random Years'!BX3,'Hist Returns'!$A$12:$D$107,2,FALSE))","v":{"v":967551.6321559963,"d":"967,552"}},{"$f":"($A3-$A2)/365.25*(CA2+Main!$I9)*(1+Main!$I$2+VLOOKUP('Random Years'!BY3,'Hist Returns'!$A$12:$D$107,2,FALSE))","v":{"v":1071666.4242247422,"d":"1,071,666"}},{"$f":"($A3-$A2)/365.25*(CB2+Main!$I9)*(1+Main!$I$2+VLOOKUP('Random Years'!BZ3,'Hist Returns'!$A$12:$D$107,2,FALSE))","v":{"v":823356.5761993702,"d":"823,357"}},{"$f":"($A3-$A2)/365.25*(CC2+Main!$I9)*(1+Main!$I$2+VLOOKUP('Random Years'!CA3,'Hist Returns'!$A$12:$D$107,2,FALSE))","v":{"v":1044999.7420847154,"d":"1,045,000"}},{"$f":"($A3-$A2)/365.25*(CD2+Main!$I9)*(1+Main!$I$2+VLOOKUP('Random Years'!CB3,'Hist Returns'!$A$12:$D$107,2,FALSE))","v":{"v":936277.1599021163,"d":"936,277"}},{"$f":"($A3-$A2)/365.25*(CE2+Main!$I9)*(1+Main!$I$2+VLOOKUP('Random Years'!CC3,'Hist Returns'!$A$12:$D$107,2,FALSE))","v":{"v":1278358.8418053181,"d":"1,278,359"}},{"$f":"($A3-$A2)/365.25*(CF2+Main!$I9)*(1+Main!$I$2+VLOOKUP('Random Years'!CD3,'Hist Returns'!$A$12:$D$107,2,FALSE))","v":{"v":915189.4886943735,"d":"915,189"}},{"$f":"($A3-$A2)/365.25*(CG2+Main!$I9)*(1+Main!$I$2+VLOOKUP('Random Years'!CE3,'Hist Returns'!$A$12:$D$107,2,FALSE))","v":{"v":816789.8349900058,"d":"816,790"}},{"$f":"($A3-$A2)/365.25*(CH2+Main!$I9)*(1+Main!$I$2+VLOOKUP('Random Years'!CF3,'Hist Returns'!$A$12:$D$107,2,FALSE))","v":{"v":937695.2037545363,"d":"937,695"}},{"$f":"($A3-$A2)/365.25*(CI2+Main!$I9)*(1+Main!$I$2+VLOOKUP('Random Years'!CG3,'Hist Returns'!$A$12:$D$107,2,FALSE))","v":{"v":567727.1589170403,"d":"567,727"}},{"$f":"($A3-$A2)/365.25*(CJ2+Main!$I9)*(1+Main!$I$2+VLOOKUP('Random Years'!CH3,'Hist Returns'!$A$12:$D$107,2,FALSE))","v":{"v":915416.0581499708,"d":"915,416"}},{"$f":"($A3-$A2)/365.25*(CK2+Main!$I9)*(1+Main!$I$2+VLOOKUP('Random Years'!CI3,'Hist Returns'!$A$12:$D$107,2,FALSE))","v":{"v":508715.21291809605,"d":"508,715"}},{"$f":"($A3-$A2)/365.25*(CL2+Main!$I9)*(1+Main!$I$2+VLOOKUP('Random Years'!CJ3,'Hist Returns'!$A$12:$D$107,2,FALSE))","v":{"v":879745.3189740326,"d":"879,745"}},{"$f":"($A3-$A2)/365.25*(CM2+Main!$I9)*(1+Main!$I$2+VLOOKUP('Random Years'!CK3,'Hist Returns'!$A$12:$D$107,2,FALSE))","v":{"v":998795.6356802178,"d":"998,796"}},{"$f":"($A3-$A2)/365.25*(CN2+Main!$I9)*(1+Main!$I$2+VLOOKUP('Random Years'!CL3,'Hist Returns'!$A$12:$D$107,2,FALSE))","v":{"v":840757.148884916,"d":"840,757"}},{"$f":"($A3-$A2)/365.25*(CO2+Main!$I9)*(1+Main!$I$2+VLOOKUP('Random Years'!CM3,'Hist Returns'!$A$12:$D$107,2,FALSE))","v":{"v":927046.346176088,"d":"927,046"}},{"$f":"($A3-$A2)/365.25*(CP2+Main!$I9)*(1+Main!$I$2+VLOOKUP('Random Years'!CN3,'Hist Returns'!$A$12:$D$107,2,FALSE))","v":{"v":828255.295427238,"d":"828,255"}},{"$f":"($A3-$A2)/365.25*(CQ2+Main!$I9)*(1+Main!$I$2+VLOOKUP('Random Years'!CO3,'Hist Returns'!$A$12:$D$107,2,FALSE))","v":{"v":823869.8769974853,"d":"823,870"}},{"$f":"($A3-$A2)/365.25*(CR2+Main!$I9)*(1+Main!$I$2+VLOOKUP('Random Years'!CP3,'Hist Returns'!$A$12:$D$107,2,FALSE))","v":{"v":1060001.034210767,"d":"1,060,001"}},{"$f":"($A3-$A2)/365.25*(CS2+Main!$I9)*(1+Main!$I$2+VLOOKUP('Random Years'!CQ3,'Hist Returns'!$A$12:$D$107,2,FALSE))","v":{"v":1041376.2052790489,"d":"1,041,376"}},{"$f":"($A3-$A2)/365.25*(CT2+Main!$I9)*(1+Main!$I$2+VLOOKUP('Random Years'!CR3,'Hist Returns'!$A$12:$D$107,2,FALSE))","v":{"v":652188.6263915545,"d":"652,189"}},{"$f":"($A3-$A2)/365.25*(CU2+Main!$I9)*(1+Main!$I$2+VLOOKUP('Random Years'!CS3,'Hist Returns'!$A$12:$D$107,2,FALSE))","v":{"v":895115.0613558228,"d":"895,115"}},{"$f":"($A3-$A2)/365.25*(CV2+Main!$I9)*(1+Main!$I$2+VLOOKUP('Random Years'!CT3,'Hist Returns'!$A$12:$D$107,2,FALSE))","v":{"v":1129699.516000625,"d":"1,129,700"}},{"$f":"($A3-$A2)/365.25*(CW2+Main!$I9)*(1+Main!$I$2+VLOOKUP('Random Years'!CU3,'Hist Returns'!$A$12:$D$107,2,FALSE))","v":{"v":579582.7405260801,"d":"579,583"}},{"$f":"($A3-$A2)/365.25*(CX2+Main!$I9)*(1+Main!$I$2+VLOOKUP('Random Years'!CV3,'Hist Returns'!$A$12:$D$107,2,FALSE))","v":{"v":790700.2334365504,"d":"790,700"}}]
[{"$f":"Main!A10","v":"2025-12-30"},{"$f":"Main!B10","v":71},{"$f":"($A4-$A3)/365.25*(C3+Main!$I10)*(1+Main!$I$2+VLOOKUP('Random Years'!A4,'Hist Returns'!$A$12:$D$107,2,FALSE))","v":{"v":625488.208923395,"d":"625,488"}},{"$f":"($A4-$A3)/365.25*(D3+Main!$I10)*(1+Main!$I$2+VLOOKUP('Random Years'!B4,'Hist Returns'!$A$12:$D$107,2,FALSE))","v":{"v":798261.470575272,"d":"798,261"}},{"$f":"($A4-$A3)/365.25*(E3+Main!$I10)*(1+Main!$I$2+VLOOKUP('Random Years'!C4,'Hist Returns'!$A$12:$D$107,2,FALSE))","v":{"v":1552268.5318474032,"d":"1,552,269"}},{"$f":"($A4-$A3)/365.25*(F3+Main!$I10)*(1+Main!$I$2+VLOOKUP('Random Years'!D4,'Hist Returns'!$A$12:$D$107,2,FALSE))","v":{"v":1048458.6710487717,"d":"1,048,459"}},{"$f":"($A4-$A3)/365.25*(G3+Main!$I10)*(1+Main!$I$2+VLOOKUP('Random Years'!E4,'Hist Returns'!$A$12:$D$107,2,FALSE))","v":{"v":1161461.7133695444,"d":"1,161,462"}},{"$f":"($A4-$A3)/365.25*(H3+Main!$I10)*(1+Main!$I$2+VLOOKUP('Random Years'!F4,'Hist Returns'!$A$12:$D$107,2,FALSE))","v":{"v":726781.3340551628,"d":"726,781"}},{"$f":"($A4-$A3)/365.25*(I3+Main!$I10)*(1+Main!$I$2+VLOOKUP('Random Years'!G4,'Hist Returns'!$A$12:$D$107,2,FALSE))","v":{"v":1177725.2284644728,"d":"1,177,725"}},{"$f":"($A4-$A3)/365.25*(J3+Main!$I10)*(1+Main!$I$2+VLOOKUP('Random Years'!H4,'Hist Returns'!$A$12:$D$107,2,FALSE))","v":{"v":589713.8592052882,"d":"589,714"}},{"$f":"($A4-$A3)/365.25*(K3+Main!$I10)*(1+Main!$I$2+VLOOKUP('Random Years'!I4,'Hist Returns'!$A$12:$D$107,2,FALSE))","v":{"v":943309.1917129755,"d":"943,309"}},{"$f":"($A4-$A3)/365.25*(L3+Main!$I10)*(1+Main!$I$2+VLOOKUP('Random Years'!J4,'Hist Returns'!$A$12:$D$107,2,FALSE))","v":{"v":932342.0542583342,"d":"932,342"}},{"$f":"($A4-$A3)/365.25*(M3+Main!$I10)*(1+Main!$I$2+VLOOKUP('Random Years'!K4,'Hist Returns'!$A$12:$D$107,2,FALSE))","v":{"v":1117052.0034626785,"d":"1,117,052"}},{"$f":"($A4-$A3)/365.25*(N3+Main!$I10)*(1+Main!$I$2+VLOOKUP('Random Years'!L4,'Hist Returns'!$A$12:$D$107,2,FALSE))","v":{"v":633723.4196965373,"d":"633,723"}},{"$f":"($A4-$A3)/365.25*(O3+Main!$I10)*(1+Main!$I$2+VLOOKUP('Random Years'!M4,'Hist Returns'!$A$12:$D$107,2,FALSE))","v":{"v":638709.3703035376,"d":"638,709"}},{"$f":"($A4-$A3)/365.25*(P3+Main!$I10)*(1+Main!$I$2+VLOOKUP('Random Years'!N4,'Hist Returns'!$A$12:$D$107,2,FALSE))","v":{"v":932207.9695292283,"d":"932,208"}},{"$f":"($A4-$A3)/365.25*(Q3+Main!$I10)*(1+Main!$I$2+VLOOKUP('Random Years'!O4,'Hist Returns'!$A$12:$D$107,2,FALSE))","v":{"v":718197.5886644045,"d":"718,198"}},{"$f":"($A4-$A3)/365.25*(R3+Main!$I10)*(1+Main!$I$2+VLOOKUP('Random Years'!P4,'Hist Returns'!$A$12:$D$107,2,FALSE))","v":{"v":567431.5422633732,"d":"567,432"}},{"$f":"($A4-$A3)/365.25*(S3+Main!$I10)*(1+Main!$I$2+VLOOKUP('Random Years'!Q4,'Hist Returns'!$A$12:$D$107,2,FALSE))","v":{"v":539314.0146925717,"d":"539,314"}},{"$f":"($A4-$A3)/365.25*(T3+Main!$I10)*(1+Main!$I$2+VLOOKUP('Random Years'!R4,'Hist Returns'!$A$12:$D$107,2,FALSE))","v":{"v":598140.7263016884,"d":"598,141"}},{"$f":"($A4-$A3)/365.25*(U3+Main!$I10)*(1+Main!$I$2+VLOOKUP('Random Years'!S4,'Hist Returns'!$A$12:$D$107,2,FALSE))","v":{"v":505099.65218537627,"d":"505,100"}},{"$f":"($A4-$A3)/365.25*(V3+Main!$I10)*(1+Main!$I$2+VLOOKUP('Random Years'!T4,'Hist Returns'!$A$12:$D$107,2,FALSE))","v":{"v":776180.7041430061,"d":"776,181"}},{"$f":"($A4-$A3)/365.25*(W3+Main!$I10)*(1+Main!$I$2+VLOOKUP('Random Years'!U4,'Hist Returns'!$A$12:$D$107,2,FALSE))","v":{"v":899587.4803855662,"d":"899,587"}},{"$f":"($A4-$A3)/365.25*(X3+Main!$I10)*(1+Main!$I$2+VLOOKUP('Random Years'!V4,'Hist Returns'!$A$12:$D$107,2,FALSE))","v":{"v":857997.7221933131,"d":"857,998"}},{"$f":"($A4-$A3)/365.25*(Y3+Main!$I10)*(1+Main!$I$2+VLOOKUP('Random Years'!W4,'Hist Returns'!$A$12:$D$107,2,FALSE))","v":{"v":798637.6351470324,"d":"798,638"}},{"$f":"($A4-$A3)/365.25*(Z3+Main!$I10)*(1+Main!$I$2+VLOOKUP('Random Years'!X4,'Hist Returns'!$A$12:$D$107,2,FALSE))","v":{"v":1082747.3488010007,"d":"1,082,747"}},{"$f":"($A4-$A3)/365.25*(AA3+Main!$I10)*(1+Main!$I$2+VLOOKUP('Random Years'!Y4,'Hist Returns'!$A$12:$D$107,2,FALSE))","v":{"v":1043979.4882325087,"d":"1,043,979"}},{"$f":"($A4-$A3)/365.25*(AB3+Main!$I10)*(1+Main!$I$2+VLOOKUP('Random Years'!Z4,'Hist Returns'!$A$12:$D$107,2,FALSE))","v":{"v":1234609.9527067193,"d":"1,234,610"}},{"$f":"($A4-$A3)/365.25*(AC3+Main!$I10)*(1+Main!$I$2+VLOOKUP('Random Years'!AA4,'Hist Returns'!$A$12:$D$107,2,FALSE))","v":{"v":1481943.9316998625,"d":"1,481,944"}},{"$f":"($A4-$A3)/365.25*(AD3+Main!$I10)*(1+Main!$I$2+VLOOKUP('Random Years'!AB4,'Hist Returns'!$A$12:$D$107,2,FALSE))","v":{"v":556041.4630310747,"d":"556,041"}},{"$f":"($A4-$A3)/365.25*(AE3+Main!$I10)*(1+Main!$I$2+VLOOKUP('Random Years'!AC4,'Hist Returns'!$A$12:$D$107,2,FALSE))","v":{"v":783088.3549475647,"d":"783,088"}},{"$f":"($A4-$A3)/365.25*(AF3+Main!$I10)*(1+Main!$I$2+VLOOKUP('Random Years'!AD4,'Hist Returns'!$A$12:$D$107,2,FALSE))","v":{"v":1025897.9301903971,"d":"1,025,898"}},{"$f":"($A4-$A3)/365.25*(AG3+Main!$I10)*(1+Main!$I$2+VLOOKUP('Random Years'!AE4,'Hist Returns'!$A$12:$D$107,2,FALSE))","v":{"v":901419.1364674708,"d":"901,419"}},{"$f":"($A4-$A3)/365.25*(AH3+Main!$I10)*(1+Main!$I$2+VLOOKUP('Random Years'!AF4,'Hist Returns'!$A$12:$D$107,2,FALSE))","v":{"v":925732.4414701194,"d":"925,732"}},{"$f":"($A4-$A3)/365.25*(AI3+Main!$I10)*(1+Main!$I$2+VLOOKUP('Random Years'!AG4,'Hist Returns'!$A$12:$D$107,2,FALSE))","v":{"v":1169188.5146394386,"d":"1,169,189"}},{"$f":"($A4-$A3)/365.25*(AJ3+Main!$I10)*(1+Main!$I$2+VLOOKUP('Random Years'!AH4,'Hist Returns'!$A$12:$D$107,2,FALSE))","v":{"v":1244528.5598814916,"d":"1,244,529"}},{"$f":"($A4-$A3)/365.25*(AK3+Main!$I10)*(1+Main!$I$2+VLOOKUP('Random Years'!AI4,'Hist Returns'!$A$12:$D$107,2,FALSE))","v":{"v":1061988.252384701,"d":"1,061,988"}},{"$f":"($A4-$A3)/365.25*(AL3+Main!$I10)*(1+Main!$I$2+VLOOKUP('Random Years'!AJ4,'Hist Returns'!$A$12:$D$107,2,FALSE))","v":{"v":534357.651296629,"d":"534,358"}},{"$f":"($A4-$A3)/365.25*(AM3+Main!$I10)*(1+Main!$I$2+VLOOKUP('Random Years'!AK4,'Hist Returns'!$A$12:$D$107,2,FALSE))","v":{"v":420737.65365720587,"d":"420,738"}},{"$f":"($A4-$A3)/365.25*(AN3+Main!$I10)*(1+Main!$I$2+VLOOKUP('Random Years'!AL4,'Hist Returns'!$A$12:$D$107,2,FALSE))","v":{"v":813613.9472659291,"d":"813,614"}},{"$f":"($A4-$A3)/365.25*(AO3+Main!$I10)*(1+Main!$I$2+VLOOKUP('Random Years'!AM4,'Hist Returns'!$A$12:$D$107,2,FALSE))","v":{"v":961388.0298355027,"d":"961,388"}},{"$f":"($A4-$A3)/365.25*(AP3+Main!$I10)*(1+Main!$I$2+VLOOKUP('Random Years'!AN4,'Hist Returns'!$A$12:$D$107,2,FALSE))","v":{"v":1027186.8115768596,"d":"1,027,187"}},{"$f":"($A4-$A3)/365.25*(AQ3+Main!$I10)*(1+Main!$I$2+VLOOKUP('Random Years'!AO4,'Hist Returns'!$A$12:$D$107,2,FALSE))","v":{"v":933598.1317644122,"d":"933,598"}},{"$f":"($A4-$A3)/365.25*(AR3+Main!$I10)*(1+Main!$I$2+VLOOKUP('Random Years'!AP4,'Hist Returns'!$A$12:$D$107,2,FALSE))","v":{"v":1199755.3933267563,"d":"1,199,755"}},{"$f":"($A4-$A3)/365.25*(AS3+Main!$I10)*(1+Main!$I$2+VLOOKUP('Random Years'!AQ4,'Hist Returns'!$A$12:$D$107,2,FALSE))","v":{"v":569044.2944902988,"d":"569,044"}},{"$f":"($A4-$A3)/365.25*(AT3+Main!$I10)*(1+Main!$I$2+VLOOKUP('Random Years'!AR4,'Hist Returns'!$A$12:$D$107,2,FALSE))","v":{"v":808768.9277329383,"d":"808,769"}},{"$f":"($A4-$A3)/365.25*(AU3+Main!$I10)*(1+Main!$I$2+VLOOKUP('Random Years'!AS4,'Hist Returns'!$A$12:$D$107,2,FALSE))","v":{"v":1581787.4405729163,"d":"1,581,787"}},{"$f":"($A4-$A3)/365.25*(AV3+Main!$I10)*(1+Main!$I$2+VLOOKUP('Random Years'!AT4,'Hist Returns'!$A$12:$D$107,2,FALSE))","v":{"v":663362.711135645,"d":"663,363"}},{"$f":"($A4-$A3)/365.25*(AW3+Main!$I10)*(1+Main!$I$2+VLOOKUP('Random Years'!AU4,'Hist Returns'!$A$12:$D$107,2,FALSE))","v":{"v":1004812.3895102781,"d":"1,004,812"}},{"$f":"($A4-$A3)/365.25*(AX3+Main!$I10)*(1+Main!$I$2+VLOOKUP('Random Years'!AV4,'Hist Returns'!$A$12:$D$107,2,FALSE))","v":{"v":1001545.594577399,"d":"1,001,546"}},{"$f":"($A4-$A3)/365.25*(AY3+Main!$I10)*(1+Main!$I$2+VLOOKUP('Random Years'!AW4,'Hist Returns'!$A$12:$D$107,2,FALSE))","v":{"v":686745.9347059482,"d":"686,746"}},{"$f":"($A4-$A3)/365.25*(AZ3+Main!$I10)*(1+Main!$I$2+VLOOKUP('Random Years'!AX4,'Hist Returns'!$A$12:$D$107,2,FALSE))","v":{"v":922417.4494040393,"d":"922,417"}},{"$f":"($A4-$A3)/365.25*(BA3+Main!$I10)*(1+Main!$I$2+VLOOKUP('Random Years'!AY4,'Hist Returns'!$A$12:$D$107,2,FALSE))","v":{"v":331200.053089855,"d":"331,200"}},{"$f":"($A4-$A3)/365.25*(BB3+Main!$I10)*(1+Main!$I$2+VLOOKUP('Random Years'!AZ4,'Hist Returns'!$A$12:$D$107,2,FALSE))","v":{"v":579789.4925953092,"d":"579,789"}},{"$f":"($A4-$A3)/365.25*(BC3+Main!$I10)*(1+Main!$I$2+VLOOKUP('Random Years'!BA4,'Hist Returns'!$A$12:$D$107,2,FALSE))","v":{"v":882164.5416270327,"d":"882,165"}},{"$f":"($A4-$A3)/365.25*(BD3+Main!$I10)*(1+Main!$I$2+VLOOKUP('Random Years'!BB4,'Hist Returns'!$A$12:$D$107,2,FALSE))","v":{"v":787772.4221821455,"d":"787,772"}},{"$f":"($A4-$A3)/365.25*(BE3+Main!$I10)*(1+Main!$I$2+VLOOKUP('Random Years'!BC4,'Hist Returns'!$A$12:$D$107,2,FALSE))","v":{"v":1150501.2494821977,"d":"1,150,501"}},{"$f":"($A4-$A3)/365.25*(BF3+Main!$I10)*(1+Main!$I$2+VLOOKUP('Random Years'!BD4,'Hist Returns'!$A$12:$D$107,2,FALSE))","v":{"v":712597.7736781298,"d":"712,598"}},{"$f":"($A4-$A3)/365.25*(BG3+Main!$I10)*(1+Main!$I$2+VLOOKUP('Random Years'!BE4,'Hist Returns'!$A$12:$D$107,2,FALSE))","v":{"v":715733.796259192,"d":"715,734"}},{"$f":"($A4-$A3)/365.25*(BH3+Main!$I10)*(1+Main!$I$2+VLOOKUP('Random Years'!BF4,'Hist Returns'!$A$12:$D$107,2,FALSE))","v":{"v":768665.5951849001,"d":"768,666"}},{"$f":"($A4-$A3)/365.25*(BI3+Main!$I10)*(1+Main!$I$2+VLOOKUP('Random Years'!BG4,'Hist Returns'!$A$12:$D$107,2,FALSE))","v":{"v":1156868.4764010739,"d":"1,156,868"}},{"$f":"($A4-$A3)/365.25*(BJ3+Main!$I10)*(1+Main!$I$2+VLOOKUP('Random Years'!BH4,'Hist Returns'!$A$12:$D$107,2,FALSE))","v":{"v":842636.2178942264,"d":"842,636"}},{"$f":"($A4-$A3)/365.25*(BK3+Main!$I10)*(1+Main!$I$2+VLOOKUP('Random Years'!BI4,'Hist Returns'!$A$12:$D$107,2,FALSE))","v":{"v":581312.6066211368,"d":"581,313"}},{"$f":"($A4-$A3)/365.25*(BL3+Main!$I10)*(1+Main!$I$2+VLOOKUP('Random Years'!BJ4,'Hist Returns'!$A$12:$D$107,2,FALSE))","v":{"v":742274.3936562273,"d":"742,274"}},{"$f":"($A4-$A3)/365.25*(BM3+Main!$I10)*(1+Main!$I$2+VLOOKUP('Random Years'!BK4,'Hist Returns'!$A$12:$D$107,2,FALSE))","v":{"v":542920.937117289,"d":"542,921"}},{"$f":"($A4-$A3)/365.25*(BN3+Main!$I10)*(1+Main!$I$2+VLOOKUP('Random Years'!BL4,'Hist Returns'!$A$12:$D$107,2,FALSE))","v":{"v":466084.2066938741,"d":"466,084"}},{"$f":"($A4-$A3)/365.25*(BO3+Main!$I10)*(1+Main!$I$2+VLOOKUP('Random Years'!BM4,'Hist Returns'!$A$12:$D$107,2,FALSE))","v":{"v":705832.7092495144,"d":"705,833"}},{"$f":"($A4-$A3)/365.25*(BP3+Main!$I10)*(1+Main!$I$2+VLOOKUP('Random Years'!BN4,'Hist Returns'!$A$12:$D$107,2,FALSE))","v":{"v":1102892.5585616326,"d":"1,102,893"}},{"$f":"($A4-$A3)/365.25*(BQ3+Main!$I10)*(1+Main!$I$2+VLOOKUP('Random Years'!BO4,'Hist Returns'!$A$12:$D$107,2,FALSE))","v":{"v":1210274.778764085,"d":"1,210,275"}},{"$f":"($A4-$A3)/365.25*(BR3+Main!$I10)*(1+Main!$I$2+VLOOKUP('Random Years'!BP4,'Hist Returns'!$A$12:$D$107,2,FALSE))","v":{"v":1226465.6505854756,"d":"1,226,466"}},{"$f":"($A4-$A3)/365.25*(BS3+Main!$I10)*(1+Main!$I$2+VLOOKUP('Random Years'!BQ4,'Hist Returns'!$A$12:$D$107,2,FALSE))","v":{"v":966928.4748519845,"d":"966,928"}},{"$f":"($A4-$A3)/365.25*(BT3+Main!$I10)*(1+Main!$I$2+VLOOKUP('Random Years'!BR4,'Hist Returns'!$A$12:$D$107,2,FALSE))","v":{"v":593691.1852869412,"d":"593,691"}},{"$f":"($A4-$A3)/365.25*(BU3+Main!$I10)*(1+Main!$I$2+VLOOKUP('Random Years'!BS4,'Hist Returns'!$A$12:$D$107,2,FALSE))","v":{"v":882015.1327035719,"d":"882,015"}},{"$f":"($A4-$A3)/365.25*(BV3+Main!$I10)*(1+Main!$I$2+VLOOKUP('Random Years'!BT4,'Hist Returns'!$A$12:$D$107,2,FALSE))","v":{"v":1125920.5798815934,"d":"1,125,921"}},{"$f":"($A4-$A3)/365.25*(BW3+Main!$I10)*(1+Main!$I$2+VLOOKUP('Random Years'!BU4,'Hist Returns'!$A$12:$D$107,2,FALSE))","v":{"v":616565.9475417765,"d":"616,566"}},{"$f":"($A4-$A3)/365.25*(BX3+Main!$I10)*(1+Main!$I$2+VLOOKUP('Random Years'!BV4,'Hist Returns'!$A$12:$D$107,2,FALSE))","v":{"v":655026.2709759327,"d":"655,026"}},{"$f":"($A4-$A3)/365.25*(BY3+Main!$I10)*(1+Main!$I$2+VLOOKUP('Random Years'!BW4,'Hist Returns'!$A$12:$D$107,2,FALSE))","v":{"v":937988.8469299985,"d":"937,989"}},{"$f":"($A4-$A3)/365.25*(BZ3+Main!$I10)*(1+Main!$I$2+VLOOKUP('Random Years'!BX4,'Hist Returns'!$A$12:$D$107,2,FALSE))","v":{"v":1119348.0075534726,"d":"1,119,348"}},{"$f":"($A4-$A3)/365.25*(CA3+Main!$I10)*(1+Main!$I$2+VLOOKUP('Random Years'!BY4,'Hist Returns'!$A$12:$D$107,2,FALSE))","v":{"v":1222609.2895369872,"d":"1,222,609"}},{"$f":"($A4-$A3)/365.25*(CB3+Main!$I10)*(1+Main!$I$2+VLOOKUP('Random Years'!BZ4,'Hist Returns'!$A$12:$D$107,2,FALSE))","v":{"v":888815.300279746,"d":"888,815"}},{"$f":"($A4-$A3)/365.25*(CC3+Main!$I10)*(1+Main!$I$2+VLOOKUP('Random Years'!CA4,'Hist Returns'!$A$12:$D$107,2,FALSE))","v":{"v":1037135.387091533,"d":"1,037,135"}},{"$f":"($A4-$A3)/365.25*(CD3+Main!$I10)*(1+Main!$I$2+VLOOKUP('Random Years'!CB4,'Hist Returns'!$A$12:$D$107,2,FALSE))","v":{"v":1205266.2830360073,"d":"1,205,266"}},{"$f":"($A4-$A3)/365.25*(CE3+Main!$I10)*(1+Main!$I$2+VLOOKUP('Random Years'!CC4,'Hist Returns'!$A$12:$D$107,2,FALSE))","v":{"v":1382025.344819291,"d":"1,382,025"}},{"$f":"($A4-$A3)/365.25*(CF3+Main!$I10)*(1+Main!$I$2+VLOOKUP('Random Years'!CD4,'Hist Returns'!$A$12:$D$107,2,FALSE))","v":{"v":952025.0763275028,"d":"952,025"}},{"$f":"($A4-$A3)/365.25*(CG3+Main!$I10)*(1+Main!$I$2+VLOOKUP('Random Years'!CE4,'Hist Returns'!$A$12:$D$107,2,FALSE))","v":{"v":836876.5598073815,"d":"836,877"}},{"$f":"($A4-$A3)/365.25*(CH3+Main!$I10)*(1+Main!$I$2+VLOOKUP('Random Years'!CF4,'Hist Returns'!$A$12:$D$107,2,FALSE))","v":{"v":966591.0712947168,"d":"966,591"}},{"$f":"($A4-$A3)/365.25*(CI3+Main!$I10)*(1+Main!$I$2+VLOOKUP('Random Years'!CG4,'Hist Returns'!$A$12:$D$107,2,FALSE))","v":{"v":587579.889546868,"d":"587,580"}},{"$f":"($A4-$A3)/365.25*(CJ3+Main!$I10)*(1+Main!$I$2+VLOOKUP('Random Years'!CH4,'Hist Returns'!$A$12:$D$107,2,FALSE))","v":{"v":1004926.507883978,"d":"1,004,927"}},{"$f":"($A4-$A3)/365.25*(CK3+Main!$I10)*(1+Main!$I$2+VLOOKUP('Random Years'!CI4,'Hist Returns'!$A$12:$D$107,2,FALSE))","v":{"v":567695.6415129947,"d":"567,696"}},{"$f":"($A4-$A3)/365.25*(CL3+Main!$I10)*(1+Main!$I$2+VLOOKUP('Random Years'!CJ4,'Hist Returns'!$A$12:$D$107,2,FALSE))","v":{"v":1061683.6692677494,"d":"1,061,684"}},{"$f":"($A4-$A3)/365.25*(CM3+Main!$I10)*(1+Main!$I$2+VLOOKUP('Random Years'!CK4,'Hist Returns'!$A$12:$D$107,2,FALSE))","v":{"v":1176965.3225505506,"d":"1,176,965"}},{"$f":"($A4-$A3)/365.25*(CN3+Main!$I10)*(1+Main!$I$2+VLOOKUP('Random Years'!CL4,'Hist Returns'!$A$12:$D$107,2,FALSE))","v":{"v":872801.9865879798,"d":"872,802"}},{"$f":"($A4-$A3)/365.25*(CO3+Main!$I10)*(1+Main!$I$2+VLOOKUP('Random Years'!CM4,'Hist Returns'!$A$12:$D$107,2,FALSE))","v":{"v":1002987.4463015517,"d":"1,002,987"}},{"$f":"($A4-$A3)/365.25*(CP3+Main!$I10)*(1+Main!$I$2+VLOOKUP('Random Years'!CN4,'Hist Returns'!$A$12:$D$107,2,FALSE))","v":{"v":835704.937975216,"d":"835,705"}},{"$f":"($A4-$A3)/365.25*(CQ3+Main!$I10)*(1+Main!$I$2+VLOOKUP('Random Years'!CO4,'Hist Returns'!$A$12:$D$107,2,FALSE))","v":{"v":793045.9810434151,"d":"793,046"}},{"$f":"($A4-$A3)/365.25*(CR3+Main!$I10)*(1+Main!$I$2+VLOOKUP('Random Years'!CP4,'Hist Returns'!$A$12:$D$107,2,FALSE))","v":{"v":1088763.464896215,"d":"1,088,763"}},{"$f":"($A4-$A3)/365.25*(CS3+Main!$I10)*(1+Main!$I$2+VLOOKUP('Random Years'!CQ4,'Hist Returns'!$A$12:$D$107,2,FALSE))","v":{"v":1240352.3018261995,"d":"1,240,352"}},{"$f":"($A4-$A3)/365.25*(CT3+Main!$I10)*(1+Main!$I$2+VLOOKUP('Random Years'!CR4,'Hist Returns'!$A$12:$D$107,2,FALSE))","v":{"v":821809.8510719683,"d":"821,810"}},{"$f":"($A4-$A3)/365.25*(CU3+Main!$I10)*(1+Main!$I$2+VLOOKUP('Random Years'!CS4,'Hist Returns'!$A$12:$D$107,2,FALSE))","v":{"v":1146708.6591629,"d":"1,146,709"}},{"$f":"($A4-$A3)/365.25*(CV3+Main!$I10)*(1+Main!$I$2+VLOOKUP('Random Years'!CT4,'Hist Returns'!$A$12:$D$107,2,FALSE))","v":{"v":997706.8762325136,"d":"997,707"}},{"$f":"($A4-$A3)/365.25*(CW3+Main!$I10)*(1+Main!$I$2+VLOOKUP('Random Years'!CU4,'Hist Returns'!$A$12:$D$107,2,FALSE))","v":{"v":650139.9281581204,"d":"650,140"}},{"$f":"($A4-$A3)/365.25*(CX3+Main!$I10)*(1+Main!$I$2+VLOOKUP('Random Years'!CV4,'Hist Returns'!$A$12:$D$107,2,FALSE))","v":{"v":913749.2380260334,"d":"913,749"}}]
[{"$f":"Main!A11","v":"2026-12-30"},{"$f":"Main!B11","v":72},{"$f":"($A5-$A4)/365.25*(C4+Main!$I11)*(1+Main!$I$2+VLOOKUP('Random Years'!A5,'Hist Returns'!$A$12:$D$107,2,FALSE))","v":{"v":742752.6899747017,"d":"742,753"}},{"$f":"($A5-$A4)/365.25*(D4+Main!$I11)*(1+Main!$I$2+VLOOKUP('Random Years'!B5,'Hist Returns'!$A$12:$D$107,2,FALSE))","v":{"v":957469.1640101185,"d":"957,469"}},{"$f":"($A5-$A4)/365.25*(E4+Main!$I11)*(1+Main!$I$2+VLOOKUP('Random Years'!C5,'Hist Returns'!$A$12:$D$107,2,FALSE))","v":{"v":1817238.1726479447,"d":"1,817,238"}},{"$f":"($A5-$A4)/365.25*(F4+Main!$I11)*(1+Main!$I$2+VLOOKUP('Random Years'!D5,'Hist Returns'!$A$12:$D$107,2,FALSE))","v":{"v":1403825.6072113127,"d":"1,403,826"}},{"$f":"($A5-$A4)/365.25*(G4+Main!$I11)*(1+Main!$I$2+VLOOKUP('Random Years'!E5,'Hist Returns'!$A$12:$D$107,2,FALSE))","v":{"v":1040389.5750421974,"d":"1,040,390"}},{"$f":"($A5-$A4)/365.25*(H4+Main!$I11)*(1+Main!$I$2+VLOOKUP('Random Years'!F5,'Hist Returns'!$A$12:$D$107,2,FALSE))","v":{"v":922660.1701572628,"d":"922,660"}},{"$f":"($A5-$A4)/365.25*(I4+Main!$I11)*(1+Main!$I$2+VLOOKUP('Random Years'!G5,'Hist Returns'!$A$12:$D$107,2,FALSE))","v":{"v":1050866.2056714995,"d":"1,050,866"}},{"$f":"($A5-$A4)/365.25*(J4+Main!$I11)*(1+Main!$I$2+VLOOKUP('Random Years'!H5,'Hist Returns'!$A$12:$D$107,2,FALSE))","v":{"v":741218.0862357887,"d":"741,218"}},{"$f":"($A5-$A4)/365.25*(K4+Main!$I11)*(1+Main!$I$2+VLOOKUP('Random Years'!I5,'Hist Returns'!$A$12:$D$107,2,FALSE))","v":{"v":1207145.715527458,"d":"1,207,146"}},{"$f":"($A5-$A4)/365.25*(L4+Main!$I11)*(1+Main!$I$2+VLOOKUP('Random Years'!J5,'Hist Returns'!$A$12:$D$107,2,FALSE))","v":{"v":1148851.220186799,"d":"1,148,851"}},{"$f":"($A5-$A4)/365.25*(M4+Main!$I11)*(1+Main!$I$2+VLOOKUP('Random Years'!K5,'Hist Returns'!$A$12:$D$107,2,FALSE))","v":{"v":895149.35280921,"d":"895,149"}},{"$f":"($A5-$A4)/365.25*(N4+Main!$I11)*(1+Main!$I$2+VLOOKUP('Random Years'!L5,'Hist Returns'!$A$12:$D$107,2,FALSE))","v":{"v":341906.2936104723,"d":"341,906"}},{"$f":"($A5-$A4)/365.25*(O4+Main!$I11)*(1+Main!$I$2+VLOOKUP('Random Years'!M5,'Hist Returns'!$A$12:$D$107,2,FALSE))","v":{"v":674937.5915424646,"d":"674,938"}},{"$f":"($A5-$A4)/365.25*(P4+Main!$I11)*(1+Main!$I$2+VLOOKUP('Random Years'!N5,'Hist Returns'!$A$12:$D$107,2,FALSE))","v":{"v":509427.7922233549,"d":"509,428"}},{"$f":"($A5-$A4)/365.25*(Q4+Main!$I11)*(1+Main!$I$2+VLOOKUP('Random Years'!O5,'Hist Returns'!$A$12:$D$107,2,FALSE))","v":{"v":776772.3154975899,"d":"776,772"}},{"$f":"($A5-$A4)/365.25*(R4+Main!$I11)*(1+Main!$I$2+VLOOKUP('Random Years'!P5,'Hist Returns'!$A$12:$D$107,2,FALSE))","v":{"v":827708.5444525847,"d":"827,709"}},{"$f":"($A5-$A4)/365.25*(S4+Main!$I11)*(1+Main!$I$2+VLOOKUP('Random Years'!Q5,'Hist Returns'!$A$12:$D$107,2,FALSE))","v":{"v":665076.7044871352,"d":"665,077"}},{"$f":"($A5-$A4)/365.25*(T4+Main!$I11)*(1+Main!$I$2+VLOOKUP('Random Years'!R5,'Hist Returns'!$A$12:$D$107,2,FALSE))","v":{"v":644297.8535938738,"d":"644,298"}},{"$f":"($A5-$A4)/365.25*(U4+Main!$I11)*(1+Main!$I$2+VLOOKUP('Random Years'!S5,'Hist Returns'!$A$12:$D$107,2,FALSE))","v":{"v":631403.2628591139,"d":"631,403"}},{"$f":"($A5-$A4)/365.25*(V4+Main!$I11)*(1+Main!$I$2+VLOOKUP('Random Years'!T5,'Hist Returns'!$A$12:$D$107,2,FALSE))","v":{"v":990436.0949264696,"d":"990,436"}},{"$f":"($A5-$A4)/365.25*(W4+Main!$I11)*(1+Main!$I$2+VLOOKUP('Random Years'!U5,'Hist Returns'!$A$12:$D$107,2,FALSE))","v":{"v":1122424.0044697386,"d":"1,122,424"}},{"$f":"($A5-$A4)/365.25*(X4+Main!$I11)*(1+Main!$I$2+VLOOKUP('Random Years'!V5,'Hist Returns'!$A$12:$D$107,2,FALSE))","v":{"v":895317.1174213886,"d":"895,317"}},{"$f":"($A5-$A4)/365.25*(Y4+Main!$I11)*(1+Main!$I$2+VLOOKUP('Random Years'!W5,'Hist Returns'!$A$12:$D$107,2,FALSE))","v":{"v":634260.1034938662,"d":"634,260"}},{"$f":"($A5-$A4)/365.25*(Z4+Main!$I11)*(1+Main!$I$2+VLOOKUP('Random Years'!X5,'Hist Returns'!$A$12:$D$107,2,FALSE))","v":{"v":1309509.745351105,"d":"1,309,510"}},{"$f":"($A5-$A4)/365.25*(AA4+Main!$I11)*(1+Main!$I$2+VLOOKUP('Random Years'!Y5,'Hist Returns'!$A$12:$D$107,2,FALSE))","v":{"v":1336966.2168873001,"d":"1,336,966"}},{"$f":"($A5-$A4)/365.25*(AB4+Main!$I11)*(1+Main!$I$2+VLOOKUP('Random Years'!Z5,'Hist Returns'!$A$12:$D$107,2,FALSE))","v":{"v":1104747.8538607624,"d":"1,104,748"}},{"$f":"($A5-$A4)/365.25*(AC4+Main!$I11)*(1+Main!$I$2+VLOOKUP('Random Years'!AA5,'Hist Returns'!$A$12:$D$107,2,FALSE))","v":{"v":1918619.6077494544,"d":"1,918,620"}},{"$f":"($A5-$A4)/365.25*(AD4+Main!$I11)*(1+Main!$I$2+VLOOKUP('Random Years'!AB5,'Hist Returns'!$A$12:$D$107,2,FALSE))","v":{"v":681669.7933631132,"d":"681,670"}},{"$f":"($A5-$A4)/365.25*(AE4+Main!$I11)*(1+Main!$I$2+VLOOKUP('Random Years'!AC5,'Hist Returns'!$A$12:$D$107,2,FALSE))","v":{"v":668217.2883812154,"d":"668,217"}},{"$f":"($A5-$A4)/365.25*(AF4+Main!$I11)*(1+Main!$I$2+VLOOKUP('Random Years'!AD5,'Hist Returns'!$A$12:$D$107,2,FALSE))","v":{"v":1182321.6005284577,"d":"1,182,322"}},{"$f":"($A5-$A4)/365.25*(AG4+Main!$I11)*(1+Main!$I$2+VLOOKUP('Random Years'!AE5,'Hist Returns'!$A$12:$D$107,2,FALSE))","v":{"v":1038578.4956615391,"d":"1,038,578"}},{"$f":"($A5-$A4)/365.25*(AH4+Main!$I11)*(1+Main!$I$2+VLOOKUP('Random Years'!AF5,'Hist Returns'!$A$12:$D$107,2,FALSE))","v":{"v":1022349.8645607384,"d":"1,022,350"}},{"$f":"($A5-$A4)/365.25*(AI4+Main!$I11)*(1+Main!$I$2+VLOOKUP('Random Years'!AG5,'Hist Returns'!$A$12:$D$107,2,FALSE))","v":{"v":1508292.0562088832,"d":"1,508,292"}},{"$f":"($A5-$A4)/365.25*(AJ4+Main!$I11)*(1+Main!$I$2+VLOOKUP('Random Years'!AH5,'Hist Returns'!$A$12:$D$107,2,FALSE))","v":{"v":1063462.4999713104,"d":"1,063,462"}},{"$f":"($A5-$A4)/365.25*(AK4+Main!$I11)*(1+Main!$I$2+VLOOKUP('Random Years'!AI5,'Hist Returns'!$A$12:$D$107,2,FALSE))","v":{"v":1176921.590066105,"d":"1,176,922"}},{"$f":"($A5-$A4)/365.25*(AL4+Main!$I11)*(1+Main!$I$2+VLOOKUP('Random Years'!AJ5,'Hist Returns'!$A$12:$D$107,2,FALSE))","v":{"v":764134.206071244,"d":"764,134"}},{"$f":"($A5-$A4)/365.25*(AM4+Main!$I11)*(1+Main!$I$2+VLOOKUP('Random Years'!AK5,'Hist Returns'!$A$12:$D$107,2,FALSE))","v":{"v":481503.786062565,"d":"481,504"}},{"$f":"($A5-$A4)/365.25*(AN4+Main!$I11)*(1+Main!$I$2+VLOOKUP('Random Years'!AL5,'Hist Returns'!$A$12:$D$107,2,FALSE))","v":{"v":975264.457112919,"d":"975,264"}},{"$f":"($A5-$A4)/365.25*(AO4+Main!$I11)*(1+Main!$I$2+VLOOKUP('Random Years'!AM5,'Hist Returns'!$A$12:$D$107,2,FALSE))","v":{"v":1271585.8786814206,"d":"1,271,586"}},{"$f":"($A5-$A4)/365.25*(AP4+Main!$I11)*(1+Main!$I$2+VLOOKUP('Random Years'!AN5,'Hist Returns'!$A$12:$D$107,2,FALSE))","v":{"v":1470302.3535574563,"d":"1,470,302"}},{"$f":"($A5-$A4)/365.25*(AQ4+Main!$I11)*(1+Main!$I$2+VLOOKUP('Random Years'!AO5,'Hist Returns'!$A$12:$D$107,2,FALSE))","v":{"v":831875.7684263543,"d":"831,876"}},{"$f":"($A5-$A4)/365.25*(AR4+Main!$I11)*(1+Main!$I$2+VLOOKUP('Random Years'!AP5,'Hist Returns'!$A$12:$D$107,2,FALSE))","v":{"v":1320045.341220897,"d":"1,320,045"}},{"$f":"($A5-$A4)/365.25*(AS4+Main!$I11)*(1+Main!$I$2+VLOOKUP('Random Years'!AQ5,'Hist Returns'!$A$12:$D$107,2,FALSE))","v":{"v":466289.39886898256,"d":"466,289"}},{"$f":"($A5-$A4)/365.25*(AT4+Main!$I11)*(1+Main!$I$2+VLOOKUP('Random Years'!AR5,'Hist Returns'!$A$12:$D$107,2,FALSE))","v":{"v":714650.6283463576,"d":"714,651"}},{"$f":"($A5-$A4)/365.25*(AU4+Main!$I11)*(1+Main!$I$2+VLOOKUP('Random Years'!AS5,'Hist Returns'!$A$12:$D$107,2,FALSE))","v":{"v":1611614.434951434,"d":"1,611,614"}},{"$f":"($A5-$A4)/365.25*(AV4+Main!$I11)*(1+Main!$I$2+VLOOKUP('Random Years'!AT5,'Hist Returns'!$A$12:$D$107,2,FALSE))","v":{"v":523424.1083620884,"d":"523,424"}},{"$f":"($A5-$A4)/365.25*(AW4+Main!$I11)*(1+Main!$I$2+VLOOKUP('Random Years'!AU5,'Hist Returns'!$A$12:$D$107,2,FALSE))","v":{"v":1157425.8776195724,"d":"1,157,426"}},{"$f":"($A5-$A4)/365.25*(AX4+Main!$I11)*(1+Main!$I$2+VLOOKUP('Random Years'!AV5,'Hist Returns'!$A$12:$D$107,2,FALSE))","v":{"v":1159469.585328534,"d":"1,159,470"}},{"$f":"($A5-$A4)/365.25*(AY4+Main!$I11)*(1+Main!$I$2+VLOOKUP('Random Years'!AW5,'Hist Returns'!$A$12:$D$107,2,FALSE))","v":{"v":850172.2648575108,"d":"850,172"}},{"$f":"($A5-$A4)/365.25*(AZ4+Main!$I11)*(1+Main!$I$2+VLOOKUP('Random Years'!AX5,'Hist Returns'!$A$12:$D$107,2,FALSE))","v":{"v":768894.4913841843,"d":"768,894"}},{"$f":"($A5-$A4)/365.25*(BA4+Main!$I11)*(1+Main!$I$2+VLOOKUP('Random Years'!AY5,'Hist Returns'!$A$12:$D$107,2,FALSE))","v":{"v":310693.84384268895,"d":"310,694"}},{"$f":"($A5-$A4)/365.25*(BB4+Main!$I11)*(1+Main!$I$2+VLOOKUP('Random Years'!AZ5,'Hist Returns'!$A$12:$D$107,2,FALSE))","v":{"v":670773.3757768762,"d":"670,773"}},{"$f":"($A5-$A4)/365.25*(BC4+Main!$I11)*(1+Main!$I$2+VLOOKUP('Random Years'!BA5,'Hist Returns'!$A$12:$D$107,2,FALSE))","v":{"v":912839.9541491673,"d":"912,840"}},{"$f":"($A5-$A4)/365.25*(BD4+Main!$I11)*(1+Main!$I$2+VLOOKUP('Random Years'!BB5,'Hist Returns'!$A$12:$D$107,2,FALSE))","v":{"v":883925.8801792788,"d":"883,926"}},{"$f":"($A5-$A4)/365.25*(BE4+Main!$I11)*(1+Main!$I$2+VLOOKUP('Random Years'!BC5,'Hist Returns'!$A$12:$D$107,2,FALSE))","v":{"v":1198447.838319386,"d":"1,198,448"}},{"$f":"($A5-$A4)/365.25*(BF4+Main!$I11)*(1+Main!$I$2+VLOOKUP('Random Years'!BD5,'Hist Returns'!$A$12:$D$107,2,FALSE))","v":{"v":904025.0718710735,"d":"904,025"}},{"$f":"($A5-$A4)/365.25*(BG4+Main!$I11)*(1+Main!$I$2+VLOOKUP('Random Years'!BE5,'Hist Returns'!$A$12:$D$107,2,FALSE))","v":{"v":820285.0651461538,"d":"820,285"}},{"$f":"($A5-$A4)/365.25*(BH4+Main!$I11)*(1+Main!$I$2+VLOOKUP('Random Years'!BF5,'Hist Returns'!$A$12:$D$107,2,FALSE))","v":{"v":789335.346723772,"d":"789,335"}},{"$f":"($A5-$A4)/365.25*(BI4+Main!$I11)*(1+Main!$I$2+VLOOKUP('Random Years'!BG5,'Hist Returns'!$A$12:$D$107,2,FALSE))","v":{"v":1473695.7003642507,"d":"1,473,696"}},{"$f":"($A5-$A4)/365.25*(BJ4+Main!$I11)*(1+Main!$I$2+VLOOKUP('Random Years'!BH5,'Hist Returns'!$A$12:$D$107,2,FALSE))","v":{"v":846664.9041971705,"d":"846,665"}},{"$f":"($A5-$A4)/365.25*(BK4+Main!$I11)*(1+Main!$I$2+VLOOKUP('Random Years'!BI5,'Hist Returns'!$A$12:$D$107,2,FALSE))","v":{"v":660761.9559602721,"d":"660,762"}},{"$f":"($A5-$A4)/365.25*(BL4+Main!$I11)*(1+Main!$I$2+VLOOKUP('Random Years'!BJ5,'Hist Returns'!$A$12:$D$107,2,FALSE))","v":{"v":921460.8482740736,"d":"921,461"}},{"$f":"($A5-$A4)/365.25*(BM4+Main!$I11)*(1+Main!$I$2+VLOOKUP('Random Years'!BK5,'Hist Returns'!$A$12:$D$107,2,FALSE))","v":{"v":524909.4083473391,"d":"524,909"}},{"$f":"($A5-$A4)/365.25*(BN4+Main!$I11)*(1+Main!$I$2+VLOOKUP('Random Years'!BL5,'Hist Returns'!$A$12:$D$107,2,FALSE))","v":{"v":539820.6060884154,"d":"539,821"}},{"$f":"($A5-$A4)/365.25*(BO4+Main!$I11)*(1+Main!$I$2+VLOOKUP('Random Years'!BM5,'Hist Returns'!$A$12:$D$107,2,FALSE))","v":{"v":896907.3863403251,"d":"896,907"}},{"$f":"($A5-$A4)/365.25*(BP4+Main!$I11)*(1+Main!$I$2+VLOOKUP('Random Years'!BN5,'Hist Returns'!$A$12:$D$107,2,FALSE))","v":{"v":1271709.9152337248,"d":"1,271,710"}},{"$f":"($A5-$A4)/365.25*(BQ4+Main!$I11)*(1+Main!$I$2+VLOOKUP('Random Years'!BO5,'Hist Returns'!$A$12:$D$107,2,FALSE))","v":{"v":1249928.357430203,"d":"1,249,928"}},{"$f":"($A5-$A4)/365.25*(BR4+Main!$I11)*(1+Main!$I$2+VLOOKUP('Random Years'!BP5,'Hist Returns'!$A$12:$D$107,2,FALSE))","v":{"v":1801462.6868486719,"d":"1,801,463"}},{"$f":"($A5-$A4)/365.25*(BS4+Main!$I11)*(1+Main!$I$2+VLOOKUP('Random Years'!BQ5,'Hist Returns'!$A$12:$D$107,2,FALSE))","v":{"v":1096351.7773460217,"d":"1,096,352"}},{"$f":"($A5-$A4)/365.25*(BT4+Main!$I11)*(1+Main!$I$2+VLOOKUP('Random Years'!BR5,'Hist Returns'!$A$12:$D$107,2,FALSE))","v":{"v":687566.9833100834,"d":"687,567"}},{"$f":"($A5-$A4)/365.25*(BU4+Main!$I11)*(1+Main!$I$2+VLOOKUP('Random Years'!BS5,'Hist Returns'!$A$12:$D$107,2,FALSE))","v":{"v":909569.155850213,"d":"909,569"}},{"$f":"($A5-$A4)/365.25*(BV4+Main!$I11)*(1+Main!$I$2+VLOOKUP('Random Years'!BT5,'Hist Returns'!$A$12:$D$107,2,FALSE))","v":{"v":1233339.5372217002,"d":"1,233,340"}},{"$f":"($A5-$A4)/365.25*(BW4+Main!$I11)*(1+Main!$I$2+VLOOKUP('Random Years'!BU5,'Hist Returns'!$A$12:$D$107,2,FALSE))","v":{"v":650603.7894225363,"d":"650,604"}},{"$f":"($A5-$A4)/365.25*(BX4+Main!$I11)*(1+Main!$I$2+VLOOKUP('Random Years'!BV5,'Hist Returns'!$A$12:$D$107,2,FALSE))","v":{"v":622580.4164289427,"d":"622,580"}},{"$f":"($A5-$A4)/365.25*(BY4+Main!$I11)*(1+Main!$I$2+VLOOKUP('Random Years'!BW5,'Hist Returns'!$A$12:$D$107,2,FALSE))","v":{"v":1130252.940215467,"d":"1,130,253"}},{"$f":"($A5-$A4)/365.25*(BZ4+Main!$I11)*(1+Main!$I$2+VLOOKUP('Random Years'!BX5,'Hist Returns'!$A$12:$D$107,2,FALSE))","v":{"v":1222517.3137986434,"d":"1,222,517"}},{"$f":"($A5-$A4)/365.25*(CA4+Main!$I11)*(1+Main!$I$2+VLOOKUP('Random Years'!BY5,'Hist Returns'!$A$12:$D$107,2,FALSE))","v":{"v":1418692.6158555276,"d":"1,418,693"}},{"$f":"($A5-$A4)/365.25*(CB4+Main!$I11)*(1+Main!$I$2+VLOOKUP('Random Years'!BZ5,'Hist Returns'!$A$12:$D$107,2,FALSE))","v":{"v":1069284.0085188288,"d":"1,069,284"}},{"$f":"($A5-$A4)/365.25*(CC4+Main!$I11)*(1+Main!$I$2+VLOOKUP('Random Years'!CA5,'Hist Returns'!$A$12:$D$107,2,FALSE))","v":{"v":749812.2633123727,"d":"749,812"}},{"$f":"($A5-$A4)/365.25*(CD4+Main!$I11)*(1+Main!$I$2+VLOOKUP('Random Years'!CB5,'Hist Returns'!$A$12:$D$107,2,FALSE))","v":{"v":1618810.8721901355,"d":"1,618,811"}},{"$f":"($A5-$A4)/365.25*(CE4+Main!$I11)*(1+Main!$I$2+VLOOKUP('Random Years'!CC5,'Hist Returns'!$A$12:$D$107,2,FALSE))","v":{"v":1677785.7584034335,"d":"1,677,786"}},{"$f":"($A5-$A4)/365.25*(CF4+Main!$I11)*(1+Main!$I$2+VLOOKUP('Random Years'!CD5,'Hist Returns'!$A$12:$D$107,2,FALSE))","v":{"v":1218597.0974178475,"d":"1,218,597"}},{"$f":"($A5-$A4)/365.25*(CG4+Main!$I11)*(1+Main!$I$2+VLOOKUP('Random Years'!CE5,'Hist Returns'!$A$12:$D$107,2,FALSE))","v":{"v":607842.5926053509,"d":"607,843"}},{"$f":"($A5-$A4)/365.25*(CH4+Main!$I11)*(1+Main!$I$2+VLOOKUP('Random Years'!CF5,'Hist Returns'!$A$12:$D$107,2,FALSE))","v":{"v":1058149.7900427144,"d":"1,058,150"}},{"$f":"($A5-$A4)/365.25*(CI4+Main!$I11)*(1+Main!$I$2+VLOOKUP('Random Years'!CG5,'Hist Returns'!$A$12:$D$107,2,FALSE))","v":{"v":689899.2868601955,"d":"689,899"}},{"$f":"($A5-$A4)/365.25*(CJ4+Main!$I11)*(1+Main!$I$2+VLOOKUP('Random Years'!CH5,'Hist Returns'!$A$12:$D$107,2,FALSE))","v":{"v":1156179.3093809783,"d":"1,156,179"}},{"$f":"($A5-$A4)/365.25*(CK4+Main!$I11)*(1+Main!$I$2+VLOOKUP('Random Years'!CI5,'Hist Returns'!$A$12:$D$107,2,FALSE))","v":{"v":519826.54835931887,"d":"519,827"}},{"$f":"($A5-$A4)/365.25*(CL4+Main!$I11)*(1+Main!$I$2+VLOOKUP('Random Years'!CJ5,'Hist Returns'!$A$12:$D$107,2,FALSE))","v":{"v":1039936.273725811,"d":"1,039,936"}},{"$f":"($A5-$A4)/365.25*(CM4+Main!$I11)*(1+Main!$I$2+VLOOKUP('Random Years'!CK5,'Hist Returns'!$A$12:$D$107,2,FALSE))","v":{"v":1290499.3168907685,"d":"1,290,499"}},{"$f":"($A5-$A4)/365.25*(CN4+Main!$I11)*(1+Main!$I$2+VLOOKUP('Random Years'!CL5,'Hist Returns'!$A$12:$D$107,2,FALSE))","v":{"v":1088066.8019390013,"d":"1,088,067"}},{"$f":"($A5-$A4)/365.25*(CO4+Main!$I11)*(1+Main!$I$2+VLOOKUP('Random Years'!CM5,'Hist Returns'!$A$12:$D$107,2,FALSE))","v":{"v":1491752.2730447485,"d":"1,491,752"}},{"$f":"($A5-$A4)/365.25*(CP4+Main!$I11)*(1+Main!$I$2+VLOOKUP('Random Years'!CN5,'Hist Returns'!$A$12:$D$107,2,FALSE))","v":{"v":960747.6714245728,"d":"960,748"}},{"$f":"($A5-$A4)/365.25*(CQ4+Main!$I11)*(1+Main!$I$2+VLOOKUP('Random Years'!CO5,'Hist Returns'!$A$12:$D$107,2,FALSE))","v":{"v":703259.0593917995,"d":"703,259"}},{"$f":"($A5-$A4)/365.25*(CR4+Main!$I11)*(1+Main!$I$2+VLOOKUP('Random Years'!CP5,'Hist Returns'!$A$12:$D$107,2,FALSE))","v":{"v":1366290.6801290617,"d":"1,366,291"}},{"$f":"($A5-$A4)/365.25*(CS4+Main!$I11)*(1+Main!$I$2+VLOOKUP('Random Years'!CQ5,'Hist Returns'!$A$12:$D$107,2,FALSE))","v":{"v":1408064.3524314938,"d":"1,408,064"}},{"$f":"($A5-$A4)/365.25*(CT4+Main!$I11)*(1+Main!$I$2+VLOOKUP('Random Years'!CR5,'Hist Returns'!$A$12:$D$107,2,FALSE))","v":{"v":848600.604986084,"d":"848,601"}},{"$f":"($A5-$A4)/365.25*(CU4+Main!$I11)*(1+Main!$I$2+VLOOKUP('Random Years'!CS5,'Hist Returns'!$A$12:$D$107,2,FALSE))","v":{"v":1328816.0429155855,"d":"1,328,816"}},{"$f":"($A5-$A4)/365.25*(CV4+Main!$I11)*(1+Main!$I$2+VLOOKUP('Random Years'!CT5,'Hist Returns'!$A$12:$D$107,2,FALSE))","v":{"v":1035819.0351050628,"d":"1,035,819"}},{"$f":"($A5-$A4)/365.25*(CW4+Main!$I11)*(1+Main!$I$2+VLOOKUP('Random Years'!CU5,'Hist Returns'!$A$12:$D$107,2,FALSE))","v":{"v":573308.5870653896,"d":"573,309"}},{"$f":"($A5-$A4)/365.25*(CX4+Main!$I11)*(1+Main!$I$2+VLOOKUP('Random Years'!CV5,'Hist Returns'!$A$12:$D$107,2,FALSE))","v":{"v":878861.9583017998,"d":"878,862"}}]
[{"$f":"Main!A12","v":"2027-12-31"},{"$f":"Main!B12","v":73},{"$f":"($A6-$A5)/365.25*(C5+Main!$I12)*(1+Main!$I$2+VLOOKUP('Random Years'!A6,'Hist Returns'!$A$12:$D$107,2,FALSE))","v":{"v":845772.1728840157,"d":"845,772"}},{"$f":"($A6-$A5)/365.25*(D5+Main!$I12)*(1+Main!$I$2+VLOOKUP('Random Years'!B6,'Hist Returns'!$A$12:$D$107,2,FALSE))","v":{"v":944712.2795349846,"d":"944,712"}},{"$f":"($A6-$A5)/365.25*(E5+Main!$I12)*(1+Main!$I$2+VLOOKUP('Random Years'!C6,'Hist Returns'!$A$12:$D$107,2,FALSE))","v":{"v":2318538.517696905,"d":"2,318,539"}},{"$f":"($A6-$A5)/365.25*(F5+Main!$I12)*(1+Main!$I$2+VLOOKUP('Random Years'!D6,'Hist Returns'!$A$12:$D$107,2,FALSE))","v":{"v":1468896.905515671,"d":"1,468,897"}},{"$f":"($A6-$A5)/365.25*(G5+Main!$I12)*(1+Main!$I$2+VLOOKUP('Random Years'!E6,'Hist Returns'!$A$12:$D$107,2,FALSE))","v":{"v":1036240.7066002209,"d":"1,036,241"}},{"$f":"($A6-$A5)/365.25*(H5+Main!$I12)*(1+Main!$I$2+VLOOKUP('Random Years'!F6,'Hist Returns'!$A$12:$D$107,2,FALSE))","v":{"v":1189361.2601793876,"d":"1,189,361"}},{"$f":"($A6-$A5)/365.25*(I5+Main!$I12)*(1+Main!$I$2+VLOOKUP('Random Years'!G6,'Hist Returns'!$A$12:$D$107,2,FALSE))","v":{"v":940350.9431028229,"d":"940,351"}},{"$f":"($A6-$A5)/365.25*(J5+Main!$I12)*(1+Main!$I$2+VLOOKUP('Random Years'!H6,'Hist Returns'!$A$12:$D$107,2,FALSE))","v":{"v":681528.0863231684,"d":"681,528"}},{"$f":"($A6-$A5)/365.25*(K5+Main!$I12)*(1+Main!$I$2+VLOOKUP('Random Years'!I6,'Hist Returns'!$A$12:$D$107,2,FALSE))","v":{"v":1258984.4127341635,"d":"1,258,984"}},{"$f":"($A6-$A5)/365.25*(L5+Main!$I12)*(1+Main!$I$2+VLOOKUP('Random Years'!J6,'Hist Returns'!$A$12:$D$107,2,FALSE))","v":{"v":1474424.3334442838,"d":"1,474,424"}},{"$f":"($A6-$A5)/365.25*(M5+Main!$I12)*(1+Main!$I$2+VLOOKUP('Random Years'!K6,'Hist Returns'!$A$12:$D$107,2,FALSE))","v":{"v":1076592.8153301587,"d":"1,076,593"}},{"$f":"($A6-$A5)/365.25*(N5+Main!$I12)*(1+Main!$I$2+VLOOKUP('Random Years'!L6,'Hist Returns'!$A$12:$D$107,2,FALSE))","v":{"v":386259.26829576923,"d":"386,259"}},{"$f":"($A6-$A5)/365.25*(O5+Main!$I12)*(1+Main!$I$2+VLOOKUP('Random Years'!M6,'Hist Returns'!$A$12:$D$107,2,FALSE))","v":{"v":781207.7732920117,"d":"781,208"}},{"$f":"($A6-$A5)/365.25*(P5+Main!$I12)*(1+Main!$I$2+VLOOKUP('Random Years'!N6,'Hist Returns'!$A$12:$D$107,2,FALSE))","v":{"v":431352.9573866051,"d":"431,353"}},{"$f":"($A6-$A5)/365.25*(Q5+Main!$I12)*(1+Main!$I$2+VLOOKUP('Random Years'!O6,'Hist Returns'!$A$12:$D$107,2,FALSE))","v":{"v":585867.0685931962,"d":"585,867"}},{"$f":"($A6-$A5)/365.25*(R5+Main!$I12)*(1+Main!$I$2+VLOOKUP('Random Years'!P6,'Hist Returns'!$A$12:$D$107,2,FALSE))","v":{"v":508739.5751997912,"d":"508,740"}},{"$f":"($A6-$A5)/365.25*(S5+Main!$I12)*(1+Main!$I$2+VLOOKUP('Random Years'!Q6,'Hist Returns'!$A$12:$D$107,2,FALSE))","v":{"v":918751.7407218305,"d":"918,752"}},{"$f":"($A6-$A5)/365.25*(T5+Main!$I12)*(1+Main!$I$2+VLOOKUP('Random Years'!R6,'Hist Returns'!$A$12:$D$107,2,FALSE))","v":{"v":733953.6729712416,"d":"733,954"}},{"$f":"($A6-$A5)/365.25*(U5+Main!$I12)*(1+Main!$I$2+VLOOKUP('Random Years'!S6,'Hist Returns'!$A$12:$D$107,2,FALSE))","v":{"v":626666.3739915247,"d":"626,666"}},{"$f":"($A6-$A5)/365.25*(V5+Main!$I12)*(1+Main!$I$2+VLOOKUP('Random Years'!T6,'Hist Returns'!$A$12:$D$107,2,FALSE))","v":{"v":1415879.740891034,"d":"1,415,880"}},{"$f":"($A6-$A5)/365.25*(W5+Main!$I12)*(1+Main!$I$2+VLOOKUP('Random Years'!U6,'Hist Returns'!$A$12:$D$107,2,FALSE))","v":{"v":1164578.4365009668,"d":"1,164,578"}},{"$f":"($A6-$A5)/365.25*(X5+Main!$I12)*(1+Main!$I$2+VLOOKUP('Random Years'!V6,'Hist Returns'!$A$12:$D$107,2,FALSE))","v":{"v":678562.2115382126,"d":"678,562"}},{"$f":"($A6-$A5)/365.25*(Y5+Main!$I12)*(1+Main!$I$2+VLOOKUP('Random Years'!W6,'Hist Returns'!$A$12:$D$107,2,FALSE))","v":{"v":600634.3350308526,"d":"600,634"}},{"$f":"($A6-$A5)/365.25*(Z5+Main!$I12)*(1+Main!$I$2+VLOOKUP('Random Years'!X6,'Hist Returns'!$A$12:$D$107,2,FALSE))","v":{"v":815058.8466361827,"d":"815,059"}},{"$f":"($A6-$A5)/365.25*(AA5+Main!$I12)*(1+Main!$I$2+VLOOKUP('Random Years'!Y6,'Hist Returns'!$A$12:$D$107,2,FALSE))","v":{"v":736923.8191734356,"d":"736,924"}},{"$f":"($A6-$A5)/365.25*(AB5+Main!$I12)*(1+Main!$I$2+VLOOKUP('Random Years'!Z6,'Hist Returns'!$A$12:$D$107,2,FALSE))","v":{"v":984319.9372088024,"d":"984,320"}},{"$f":"($A6-$A5)/365.25*(AC5+Main!$I12)*(1+Main!$I$2+VLOOKUP('Random Years'!AA6,'Hist Returns'!$A$12:$D$107,2,FALSE))","v":{"v":2478734.579081414,"d":"2,478,735"}},{"$f":"($A6-$A5)/365.25*(AD5+Main!$I12)*(1+Main!$I$2+VLOOKUP('Random Years'!AB6,'Hist Returns'!$A$12:$D$107,2,FALSE))","v":{"v":689572.3432704078,"d":"689,572"}},{"$f":"($A6-$A5)/365.25*(AE5+Main!$I12)*(1+Main!$I$2+VLOOKUP('Random Years'!AC6,'Hist Returns'!$A$12:$D$107,2,FALSE))","v":{"v":415142.656775552,"d":"415,143"}},{"$f":"($A6-$A5)/365.25*(AF5+Main!$I12)*(1+Main!$I$2+VLOOKUP('Random Years'!AD6,'Hist Returns'!$A$12:$D$107,2,FALSE))","v":{"v":1526805.414945853,"d":"1,526,805"}},{"$f":"($A6-$A5)/365.25*(AG5+Main!$I12)*(1+Main!$I$2+VLOOKUP('Random Years'!AE6,'Hist Returns'!$A$12:$D$107,2,FALSE))","v":{"v":1195593.052239305,"d":"1,195,593"}},{"$f":"($A6-$A5)/365.25*(AH5+Main!$I12)*(1+Main!$I$2+VLOOKUP('Random Years'!AF6,'Hist Returns'!$A$12:$D$107,2,FALSE))","v":{"v":1117053.437094495,"d":"1,117,053"}},{"$f":"($A6-$A5)/365.25*(AI5+Main!$I12)*(1+Main!$I$2+VLOOKUP('Random Years'!AG6,'Hist Returns'!$A$12:$D$107,2,FALSE))","v":{"v":1684417.3175637957,"d":"1,684,417"}},{"$f":"($A6-$A5)/365.25*(AJ5+Main!$I12)*(1+Main!$I$2+VLOOKUP('Random Years'!AH6,'Hist Returns'!$A$12:$D$107,2,FALSE))","v":{"v":1141528.0362430564,"d":"1,141,528"}},{"$f":"($A6-$A5)/365.25*(AK5+Main!$I12)*(1+Main!$I$2+VLOOKUP('Random Years'!AI6,'Hist Returns'!$A$12:$D$107,2,FALSE))","v":{"v":744762.9506341041,"d":"744,763"}},{"$f":"($A6-$A5)/365.25*(AL5+Main!$I12)*(1+Main!$I$2+VLOOKUP('Random Years'!AJ6,'Hist Returns'!$A$12:$D$107,2,FALSE))","v":{"v":913922.3709799981,"d":"913,922"}},{"$f":"($A6-$A5)/365.25*(AM5+Main!$I12)*(1+Main!$I$2+VLOOKUP('Random Years'!AK6,'Hist Returns'!$A$12:$D$107,2,FALSE))","v":{"v":478565.31213298225,"d":"478,565"}},{"$f":"($A6-$A5)/365.25*(AN5+Main!$I12)*(1+Main!$I$2+VLOOKUP('Random Years'!AL6,'Hist Returns'!$A$12:$D$107,2,FALSE))","v":{"v":1202658.7891863259,"d":"1,202,659"}},{"$f":"($A6-$A5)/365.25*(AO5+Main!$I12)*(1+Main!$I$2+VLOOKUP('Random Years'!AM6,'Hist Returns'!$A$12:$D$107,2,FALSE))","v":{"v":1187993.7549057798,"d":"1,187,994"}},{"$f":"($A6-$A5)/365.25*(AP5+Main!$I12)*(1+Main!$I$2+VLOOKUP('Random Years'!AN6,'Hist Returns'!$A$12:$D$107,2,FALSE))","v":{"v":1294552.8181220305,"d":"1,294,553"}},{"$f":"($A6-$A5)/365.25*(AQ5+Main!$I12)*(1+Main!$I$2+VLOOKUP('Random Years'!AO6,'Hist Returns'!$A$12:$D$107,2,FALSE))","v":{"v":660840.5679815047,"d":"660,841"}},{"$f":"($A6-$A5)/365.25*(AR5+Main!$I12)*(1+Main!$I$2+VLOOKUP('Random Years'!AP6,'Hist Returns'!$A$12:$D$107,2,FALSE))","v":{"v":1603463.0893554084,"d":"1,603,463"}},{"$f":"($A6-$A5)/365.25*(AS5+Main!$I12)*(1+Main!$I$2+VLOOKUP('Random Years'!AQ6,'Hist Returns'!$A$12:$D$107,2,FALSE))","v":{"v":472611.6157379453,"d":"472,612"}},{"$f":"($A6-$A5)/365.25*(AT5+Main!$I12)*(1+Main!$I$2+VLOOKUP('Random Years'!AR6,'Hist Returns'!$A$12:$D$107,2,FALSE))","v":{"v":817672.9217871164,"d":"817,673"}},{"$f":"($A6-$A5)/365.25*(AU5+Main!$I12)*(1+Main!$I$2+VLOOKUP('Random Years'!AS6,'Hist Returns'!$A$12:$D$107,2,FALSE))","v":{"v":1176191.4811343527,"d":"1,176,191"}},{"$f":"($A6-$A5)/365.25*(AV5+Main!$I12)*(1+Main!$I$2+VLOOKUP('Random Years'!AT6,'Hist Returns'!$A$12:$D$107,2,FALSE))","v":{"v":564099.489914735,"d":"564,099"}},{"$f":"($A6-$A5)/365.25*(AW5+Main!$I12)*(1+Main!$I$2+VLOOKUP('Random Years'!AU6,'Hist Returns'!$A$12:$D$107,2,FALSE))","v":{"v":1053194.4079544237,"d":"1,053,194"}},{"$f":"($A6-$A5)/365.25*(AX5+Main!$I12)*(1+Main!$I$2+VLOOKUP('Random Years'!AV6,'Hist Returns'!$A$12:$D$107,2,FALSE))","v":{"v":1371163.7546938101,"d":"1,371,164"}},{"$f":"($A6-$A5)/365.25*(AY5+Main!$I12)*(1+Main!$I$2+VLOOKUP('Random Years'!AW6,'Hist Returns'!$A$12:$D$107,2,FALSE))","v":{"v":1236356.7141108776,"d":"1,236,357"}},{"$f":"($A6-$A5)/365.25*(AZ5+Main!$I12)*(1+Main!$I$2+VLOOKUP('Random Years'!AX6,'Hist Returns'!$A$12:$D$107,2,FALSE))","v":{"v":654860.0493413624,"d":"654,860"}},{"$f":"($A6-$A5)/365.25*(BA5+Main!$I12)*(1+Main!$I$2+VLOOKUP('Random Years'!AY6,'Hist Returns'!$A$12:$D$107,2,FALSE))","v":{"v":255456.7972371232,"d":"255,457"}},{"$f":"($A6-$A5)/365.25*(BB5+Main!$I12)*(1+Main!$I$2+VLOOKUP('Random Years'!AZ6,'Hist Returns'!$A$12:$D$107,2,FALSE))","v":{"v":724489.8034541606,"d":"724,490"}},{"$f":"($A6-$A5)/365.25*(BC5+Main!$I12)*(1+Main!$I$2+VLOOKUP('Random Years'!BA6,'Hist Returns'!$A$12:$D$107,2,FALSE))","v":{"v":845415.4590373705,"d":"845,415"}},{"$f":"($A6-$A5)/365.25*(BD5+Main!$I12)*(1+Main!$I$2+VLOOKUP('Random Years'!BB6,'Hist Returns'!$A$12:$D$107,2,FALSE))","v":{"v":1233344.8883075332,"d":"1,233,345"}},{"$f":"($A6-$A5)/365.25*(BE5+Main!$I12)*(1+Main!$I$2+VLOOKUP('Random Years'!BC6,'Hist Returns'!$A$12:$D$107,2,FALSE))","v":{"v":1438637.8762149366,"d":"1,438,638"}},{"$f":"($A6-$A5)/365.25*(BF5+Main!$I12)*(1+Main!$I$2+VLOOKUP('Random Years'!BD6,'Hist Returns'!$A$12:$D$107,2,FALSE))","v":{"v":926471.2466649287,"d":"926,471"}},{"$f":"($A6-$A5)/365.25*(BG5+Main!$I12)*(1+Main!$I$2+VLOOKUP('Random Years'!BE6,'Hist Returns'!$A$12:$D$107,2,FALSE))","v":{"v":724389.8311477214,"d":"724,390"}},{"$f":"($A6-$A5)/365.25*(BH5+Main!$I12)*(1+Main!$I$2+VLOOKUP('Random Years'!BF6,'Hist Returns'!$A$12:$D$107,2,FALSE))","v":{"v":699027.7601016497,"d":"699,028"}},{"$f":"($A6-$A5)/365.25*(BI5+Main!$I12)*(1+Main!$I$2+VLOOKUP('Random Years'!BG6,'Hist Returns'!$A$12:$D$107,2,FALSE))","v":{"v":1712172.3647025723,"d":"1,712,172"}},{"$f":"($A6-$A5)/365.25*(BJ5+Main!$I12)*(1+Main!$I$2+VLOOKUP('Random Years'!BH6,'Hist Returns'!$A$12:$D$107,2,FALSE))","v":{"v":972832.7792286787,"d":"972,833"}},{"$f":"($A6-$A5)/365.25*(BK5+Main!$I12)*(1+Main!$I$2+VLOOKUP('Random Years'!BI6,'Hist Returns'!$A$12:$D$107,2,FALSE))","v":{"v":670733.8462745461,"d":"670,734"}},{"$f":"($A6-$A5)/365.25*(BL5+Main!$I12)*(1+Main!$I$2+VLOOKUP('Random Years'!BJ6,'Hist Returns'!$A$12:$D$107,2,FALSE))","v":{"v":579234.4805584317,"d":"579,234"}},{"$f":"($A6-$A5)/365.25*(BM5+Main!$I12)*(1+Main!$I$2+VLOOKUP('Random Years'!BK6,'Hist Returns'!$A$12:$D$107,2,FALSE))","v":{"v":548081.0007433505,"d":"548,081"}},{"$f":"($A6-$A5)/365.25*(BN5+Main!$I12)*(1+Main!$I$2+VLOOKUP('Random Years'!BL6,'Hist Returns'!$A$12:$D$107,2,FALSE))","v":{"v":704286.8335185531,"d":"704,287"}},{"$f":"($A6-$A5)/365.25*(BO5+Main!$I12)*(1+Main!$I$2+VLOOKUP('Random Years'!BM6,'Hist Returns'!$A$12:$D$107,2,FALSE))","v":{"v":830200.9254203613,"d":"830,201"}},{"$f":"($A6-$A5)/365.25*(BP5+Main!$I12)*(1+Main!$I$2+VLOOKUP('Random Years'!BN6,'Hist Returns'!$A$12:$D$107,2,FALSE))","v":{"v":1644989.586435062,"d":"1,644,990"}},{"$f":"($A6-$A5)/365.25*(BQ5+Main!$I12)*(1+Main!$I$2+VLOOKUP('Random Years'!BO6,'Hist Returns'!$A$12:$D$107,2,FALSE))","v":{"v":1210112.9875920538,"d":"1,210,113"}},{"$f":"($A6-$A5)/365.25*(BR5+Main!$I12)*(1+Main!$I$2+VLOOKUP('Random Years'!BP6,'Hist Returns'!$A$12:$D$107,2,FALSE))","v":{"v":1523242.3944016153,"d":"1,523,242"}},{"$f":"($A6-$A5)/365.25*(BS5+Main!$I12)*(1+Main!$I$2+VLOOKUP('Random Years'!BQ6,'Hist Returns'!$A$12:$D$107,2,FALSE))","v":{"v":1038199.6001973193,"d":"1,038,200"}},{"$f":"($A6-$A5)/365.25*(BT5+Main!$I12)*(1+Main!$I$2+VLOOKUP('Random Years'!BR6,'Hist Returns'!$A$12:$D$107,2,FALSE))","v":{"v":872101.2945896037,"d":"872,101"}},{"$f":"($A6-$A5)/365.25*(BU5+Main!$I12)*(1+Main!$I$2+VLOOKUP('Random Years'!BS6,'Hist Returns'!$A$12:$D$107,2,FALSE))","v":{"v":560784.8644101446,"d":"560,785"}},{"$f":"($A6-$A5)/365.25*(BV5+Main!$I12)*(1+Main!$I$2+VLOOKUP('Random Years'!BT6,'Hist Returns'!$A$12:$D$107,2,FALSE))","v":{"v":1350142.7479282357,"d":"1,350,143"}},{"$f":"($A6-$A5)/365.25*(BW5+Main!$I12)*(1+Main!$I$2+VLOOKUP('Random Years'!BU6,'Hist Returns'!$A$12:$D$107,2,FALSE))","v":{"v":597933.7664389455,"d":"597,934"}},{"$f":"($A6-$A5)/365.25*(BX5+Main!$I12)*(1+Main!$I$2+VLOOKUP('Random Years'!BV6,'Hist Returns'!$A$12:$D$107,2,FALSE))","v":{"v":782524.1041006388,"d":"782,524"}},{"$f":"($A6-$A5)/365.25*(BY5+Main!$I12)*(1+Main!$I$2+VLOOKUP('Random Years'!BW6,'Hist Returns'!$A$12:$D$107,2,FALSE))","v":{"v":1500811.1389559843,"d":"1,500,811"}},{"$f":"($A6-$A5)/365.25*(BZ5+Main!$I12)*(1+Main!$I$2+VLOOKUP('Random Years'!BX6,'Hist Returns'!$A$12:$D$107,2,FALSE))","v":{"v":774307.1785984321,"d":"774,307"}},{"$f":"($A6-$A5)/365.25*(CA5+Main!$I12)*(1+Main!$I$2+VLOOKUP('Random Years'!BY6,'Hist Returns'!$A$12:$D$107,2,FALSE))","v":{"v":1802230.235588448,"d":"1,802,230"}},{"$f":"($A6-$A5)/365.25*(CB5+Main!$I12)*(1+Main!$I$2+VLOOKUP('Random Years'!BZ6,'Hist Returns'!$A$12:$D$107,2,FALSE))","v":{"v":1031489.7523788642,"d":"1,031,490"}},{"$f":"($A6-$A5)/365.25*(CC5+Main!$I12)*(1+Main!$I$2+VLOOKUP('Random Years'!CA6,'Hist Returns'!$A$12:$D$107,2,FALSE))","v":{"v":821623.0355980751,"d":"821,623"}},{"$f":"($A6-$A5)/365.25*(CD5+Main!$I12)*(1+Main!$I$2+VLOOKUP('Random Years'!CB6,'Hist Returns'!$A$12:$D$107,2,FALSE))","v":{"v":1616557.2347534976,"d":"1,616,557"}},{"$f":"($A6-$A5)/365.25*(CE5+Main!$I12)*(1+Main!$I$2+VLOOKUP('Random Years'!CC6,'Hist Returns'!$A$12:$D$107,2,FALSE))","v":{"v":2185215.092708733,"d":"2,185,215"}},{"$f":"($A6-$A5)/365.25*(CF5+Main!$I12)*(1+Main!$I$2+VLOOKUP('Random Years'!CD6,'Hist Returns'!$A$12:$D$107,2,FALSE))","v":{"v":1092913.5478246307,"d":"1,092,914"}},{"$f":"($A6-$A5)/365.25*(CG5+Main!$I12)*(1+Main!$I$2+VLOOKUP('Random Years'!CE6,'Hist Returns'!$A$12:$D$107,2,FALSE))","v":{"v":872158.9719325923,"d":"872,159"}},{"$f":"($A6-$A5)/365.25*(CH5+Main!$I12)*(1+Main!$I$2+VLOOKUP('Random Years'!CF6,'Hist Returns'!$A$12:$D$107,2,FALSE))","v":{"v":1223998.2710991518,"d":"1,223,998"}},{"$f":"($A6-$A5)/365.25*(CI5+Main!$I12)*(1+Main!$I$2+VLOOKUP('Random Years'!CG6,'Hist Returns'!$A$12:$D$107,2,FALSE))","v":{"v":871051.5330090203,"d":"871,052"}},{"$f":"($A6-$A5)/365.25*(CJ5+Main!$I12)*(1+Main!$I$2+VLOOKUP('Random Years'!CH6,'Hist Returns'!$A$12:$D$107,2,FALSE))","v":{"v":1252468.5548569974,"d":"1,252,469"}},{"$f":"($A6-$A5)/365.25*(CK5+Main!$I12)*(1+Main!$I$2+VLOOKUP('Random Years'!CI6,'Hist Returns'!$A$12:$D$107,2,FALSE))","v":{"v":582156.8378049339,"d":"582,157"}},{"$f":"($A6-$A5)/365.25*(CL5+Main!$I12)*(1+Main!$I$2+VLOOKUP('Random Years'!CJ6,'Hist Returns'!$A$12:$D$107,2,FALSE))","v":{"v":1172876.8669167524,"d":"1,172,877"}},{"$f":"($A6-$A5)/365.25*(CM5+Main!$I12)*(1+Main!$I$2+VLOOKUP('Random Years'!CK6,'Hist Returns'!$A$12:$D$107,2,FALSE))","v":{"v":1668745.8529226955,"d":"1,668,746"}},{"$f":"($A6-$A5)/365.25*(CN5+Main!$I12)*(1+Main!$I$2+VLOOKUP('Random Years'!CL6,'Hist Returns'!$A$12:$D$107,2,FALSE))","v":{"v":974534.7024399014,"d":"974,535"}},{"$f":"($A6-$A5)/365.25*(CO5+Main!$I12)*(1+Main!$I$2+VLOOKUP('Random Years'!CM6,'Hist Returns'!$A$12:$D$107,2,FALSE))","v":{"v":1929047.1650780041,"d":"1,929,047"}},{"$f":"($A6-$A5)/365.25*(CP5+Main!$I12)*(1+Main!$I$2+VLOOKUP('Random Years'!CN6,'Hist Returns'!$A$12:$D$107,2,FALSE))","v":{"v":837347.2077148065,"d":"837,347"}},{"$f":"($A6-$A5)/365.25*(CQ5+Main!$I12)*(1+Main!$I$2+VLOOKUP('Random Years'!CO6,'Hist Returns'!$A$12:$D$107,2,FALSE))","v":{"v":718737.4100250291,"d":"718,737"}},{"$f":"($A6-$A5)/365.25*(CR5+Main!$I12)*(1+Main!$I$2+VLOOKUP('Random Years'!CP6,'Hist Returns'!$A$12:$D$107,2,FALSE))","v":{"v":1503252.7217365282,"d":"1,503,253"}},{"$f":"($A6-$A5)/365.25*(CS5+Main!$I12)*(1+Main!$I$2+VLOOKUP('Random Years'!CQ6,'Hist Returns'!$A$12:$D$107,2,FALSE))","v":{"v":1368189.7321547924,"d":"1,368,190"}},{"$f":"($A6-$A5)/365.25*(CT5+Main!$I12)*(1+Main!$I$2+VLOOKUP('Random Years'!CR6,'Hist Returns'!$A$12:$D$107,2,FALSE))","v":{"v":1083865.701192549,"d":"1,083,866"}},{"$f":"($A6-$A5)/365.25*(CU5+Main!$I12)*(1+Main!$I$2+VLOOKUP('Random Years'!CS6,'Hist Returns'!$A$12:$D$107,2,FALSE))","v":{"v":1570218.8517848982,"d":"1,570,219"}},{"$f":"($A6-$A5)/365.25*(CV5+Main!$I12)*(1+Main!$I$2+VLOOKUP('Random Years'!CT6,'Hist Returns'!$A$12:$D$107,2,FALSE))","v":{"v":828397.0056873324,"d":"828,397"}},{"$f":"($A6-$A5)/365.25*(CW5+Main!$I12)*(1+Main!$I$2+VLOOKUP('Random Years'!CU6,'Hist Returns'!$A$12:$D$107,2,FALSE))","v":{"v":468652.120177349,"d":"468,652"}},{"$f":"($A6-$A5)/365.25*(CX5+Main!$I12)*(1+Main!$I$2+VLOOKUP('Random Years'!CV6,'Hist Returns'!$A$12:$D$107,2,FALSE))","v":{"v":1124856.1932340006,"d":"1,124,856"}}]
[{"$f":"Main!A13","v":"2028-12-30"},{"$f":"Main!B13","v":74},{"$f":"($A7-$A6)/365.25*(C6+Main!$I13)*(1+Main!$I$2+VLOOKUP('Random Years'!A7,'Hist Returns'!$A$12:$D$107,2,FALSE))","v":{"v":609916.4157665798,"d":"609,916"}},{"$f":"($A7-$A6)/365.25*(D6+Main!$I13)*(1+Main!$I$2+VLOOKUP('Random Years'!B7,'Hist Returns'!$A$12:$D$107,2,FALSE))","v":{"v":782742.0616286981,"d":"782,742"}},{"$f":"($A7-$A6)/365.25*(E6+Main!$I13)*(1+Main!$I$2+VLOOKUP('Random Years'!C7,'Hist Returns'!$A$12:$D$107,2,FALSE))","v":{"v":1874556.2083661624,"d":"1,874,556"}},{"$f":"($A7-$A6)/365.25*(F6+Main!$I13)*(1+Main!$I$2+VLOOKUP('Random Years'!D7,'Hist Returns'!$A$12:$D$107,2,FALSE))","v":{"v":1730738.4179129656,"d":"1,730,738"}},{"$f":"($A7-$A6)/365.25*(G6+Main!$I13)*(1+Main!$I$2+VLOOKUP('Random Years'!E7,'Hist Returns'!$A$12:$D$107,2,FALSE))","v":{"v":1314468.589927909,"d":"1,314,469"}},{"$f":"($A7-$A6)/365.25*(H6+Main!$I13)*(1+Main!$I$2+VLOOKUP('Random Years'!F7,'Hist Returns'!$A$12:$D$107,2,FALSE))","v":{"v":1433862.1682931548,"d":"1,433,862"}},{"$f":"($A7-$A6)/365.25*(I6+Main!$I13)*(1+Main!$I$2+VLOOKUP('Random Years'!G7,'Hist Returns'!$A$12:$D$107,2,FALSE))","v":{"v":964951.9888171179,"d":"964,952"}},{"$f":"($A7-$A6)/365.25*(J6+Main!$I13)*(1+Main!$I$2+VLOOKUP('Random Years'!H7,'Hist Returns'!$A$12:$D$107,2,FALSE))","v":{"v":891061.6042724897,"d":"891,062"}},{"$f":"($A7-$A6)/365.25*(K6+Main!$I13)*(1+Main!$I$2+VLOOKUP('Random Years'!I7,'Hist Returns'!$A$12:$D$107,2,FALSE))","v":{"v":1501681.3662593625,"d":"1,501,681"}},{"$f":"($A7-$A6)/365.25*(L6+Main!$I13)*(1+Main!$I$2+VLOOKUP('Random Years'!J7,'Hist Returns'!$A$12:$D$107,2,FALSE))","v":{"v":1426951.0410668897,"d":"1,426,951"}},{"$f":"($A7-$A6)/365.25*(M6+Main!$I13)*(1+Main!$I$2+VLOOKUP('Random Years'!K7,'Hist Returns'!$A$12:$D$107,2,FALSE))","v":{"v":1233472.7834114842,"d":"1,233,473"}},{"$f":"($A7-$A6)/365.25*(N6+Main!$I13)*(1+Main!$I$2+VLOOKUP('Random Years'!L7,'Hist Returns'!$A$12:$D$107,2,FALSE))","v":{"v":326079.244613541,"d":"326,079"}},{"$f":"($A7-$A6)/365.25*(O6+Main!$I13)*(1+Main!$I$2+VLOOKUP('Random Years'!M7,'Hist Returns'!$A$12:$D$107,2,FALSE))","v":{"v":938015.4502191342,"d":"938,015"}},{"$f":"($A7-$A6)/365.25*(P6+Main!$I13)*(1+Main!$I$2+VLOOKUP('Random Years'!N7,'Hist Returns'!$A$12:$D$107,2,FALSE))","v":{"v":401776.70964045625,"d":"401,777"}},{"$f":"($A7-$A6)/365.25*(Q6+Main!$I13)*(1+Main!$I$2+VLOOKUP('Random Years'!O7,'Hist Returns'!$A$12:$D$107,2,FALSE))","v":{"v":761210.379179876,"d":"761,210"}},{"$f":"($A7-$A6)/365.25*(R6+Main!$I13)*(1+Main!$I$2+VLOOKUP('Random Years'!P7,'Hist Returns'!$A$12:$D$107,2,FALSE))","v":{"v":529432.1615725198,"d":"529,432"}},{"$f":"($A7-$A6)/365.25*(S6+Main!$I13)*(1+Main!$I$2+VLOOKUP('Random Years'!Q7,'Hist Returns'!$A$12:$D$107,2,FALSE))","v":{"v":1056390.474697134,"d":"1,056,390"}},{"$f":"($A7-$A6)/365.25*(T6+Main!$I13)*(1+Main!$I$2+VLOOKUP('Random Years'!R7,'Hist Returns'!$A$12:$D$107,2,FALSE))","v":{"v":832806.8225578028,"d":"832,807"}},{"$f":"($A7-$A6)/365.25*(U6+Main!$I13)*(1+Main!$I$2+VLOOKUP('Random Years'!S7,'Hist Returns'!$A$12:$D$107,2,FALSE))","v":{"v":589071.6636011526,"d":"589,072"}},{"$f":"($A7-$A6)/365.25*(V6+Main!$I13)*(1+Main!$I$2+VLOOKUP('Random Years'!T7,'Hist Returns'!$A$12:$D$107,2,FALSE))","v":{"v":1714170.2740295366,"d":"1,714,170"}},{"$f":"($A7-$A6)/365.25*(W6+Main!$I13)*(1+Main!$I$2+VLOOKUP('Random Years'!U7,'Hist Returns'!$A$12:$D$107,2,FALSE))","v":{"v":1079867.474018486,"d":"1,079,867"}},{"$f":"($A7-$A6)/365.25*(X6+Main!$I13)*(1+Main!$I$2+VLOOKUP('Random Years'!V7,'Hist Returns'!$A$12:$D$107,2,FALSE))","v":{"v":852945.1044553102,"d":"852,945"}},{"$f":"($A7-$A6)/365.25*(Y6+Main!$I13)*(1+Main!$I$2+VLOOKUP('Random Years'!W7,'Hist Returns'!$A$12:$D$107,2,FALSE))","v":{"v":717320.3358462816,"d":"717,320"}},{"$f":"($A7-$A6)/365.25*(Z6+Main!$I13)*(1+Main!$I$2+VLOOKUP('Random Years'!X7,'Hist Returns'!$A$12:$D$107,2,FALSE))","v":{"v":970457.2614897841,"d":"970,457"}},{"$f":"($A7-$A6)/365.25*(AA6+Main!$I13)*(1+Main!$I$2+VLOOKUP('Random Years'!Y7,'Hist Returns'!$A$12:$D$107,2,FALSE))","v":{"v":935859.8145421305,"d":"935,860"}},{"$f":"($A7-$A6)/365.25*(AB6+Main!$I13)*(1+Main!$I$2+VLOOKUP('Random Years'!Z7,'Hist Returns'!$A$12:$D$107,2,FALSE))","v":{"v":1081865.6008377734,"d":"1,081,866"}},{"$f":"($A7-$A6)/365.25*(AC6+Main!$I13)*(1+Main!$I$2+VLOOKUP('Random Years'!AA7,'Hist Returns'!$A$12:$D$107,2,FALSE))","v":{"v":2999589.697310105,"d":"2,999,590"}},{"$f":"($A7-$A6)/365.25*(AD6+Main!$I13)*(1+Main!$I$2+VLOOKUP('Random Years'!AB7,'Hist Returns'!$A$12:$D$107,2,FALSE))","v":{"v":729209.9153264707,"d":"729,210"}},{"$f":"($A7-$A6)/365.25*(AE6+Main!$I13)*(1+Main!$I$2+VLOOKUP('Random Years'!AC7,'Hist Returns'!$A$12:$D$107,2,FALSE))","v":{"v":447303.0117808654,"d":"447,303"}},{"$f":"($A7-$A6)/365.25*(AF6+Main!$I13)*(1+Main!$I$2+VLOOKUP('Random Years'!AD7,'Hist Returns'!$A$12:$D$107,2,FALSE))","v":{"v":1961911.9288581251,"d":"1,961,912"}},{"$f":"($A7-$A6)/365.25*(AG6+Main!$I13)*(1+Main!$I$2+VLOOKUP('Random Years'!AE7,'Hist Returns'!$A$12:$D$107,2,FALSE))","v":{"v":1776059.9927746549,"d":"1,776,060"}},{"$f":"($A7-$A6)/365.25*(AH6+Main!$I13)*(1+Main!$I$2+VLOOKUP('Random Years'!AF7,'Hist Returns'!$A$12:$D$107,2,FALSE))","v":{"v":977409.5791048321,"d":"977,410"}},{"$f":"($A7-$A6)/365.25*(AI6+Main!$I13)*(1+Main!$I$2+VLOOKUP('Random Years'!AG7,'Hist Returns'!$A$12:$D$107,2,FALSE))","v":{"v":1997794.5978383943,"d":"1,997,795"}},{"$f":"($A7-$A6)/365.25*(AJ6+Main!$I13)*(1+Main!$I$2+VLOOKUP('Random Years'!AH7,'Hist Returns'!$A$12:$D$107,2,FALSE))","v":{"v":1292349.0640562999,"d":"1,292,349"}},{"$f":"($A7-$A6)/365.25*(AK6+Main!$I13)*(1+Main!$I$2+VLOOKUP('Random Years'!AI7,'Hist Returns'!$A$12:$D$107,2,FALSE))","v":{"v":859340.0001656739,"d":"859,340"}},{"$f":"($A7-$A6)/365.25*(AL6+Main!$I13)*(1+Main!$I$2+VLOOKUP('Random Years'!AJ7,'Hist Returns'!$A$12:$D$107,2,FALSE))","v":{"v":1133963.884148533,"d":"1,133,964"}},{"$f":"($A7-$A6)/365.25*(AM6+Main!$I13)*(1+Main!$I$2+VLOOKUP('Random Years'!AK7,'Hist Returns'!$A$12:$D$107,2,FALSE))","v":{"v":463549.17481360346,"d":"463,549"}},{"$f":"($A7-$A6)/365.25*(AN6+Main!$I13)*(1+Main!$I$2+VLOOKUP('Random Years'!AL7,'Hist Returns'!$A$12:$D$107,2,FALSE))","v":{"v":1415817.7241720208,"d":"1,415,818"}},{"$f":"($A7-$A6)/365.25*(AO6+Main!$I13)*(1+Main!$I$2+VLOOKUP('Random Years'!AM7,'Hist Returns'!$A$12:$D$107,2,FALSE))","v":{"v":1061236.2849147723,"d":"1,061,236"}},{"$f":"($A7-$A6)/365.25*(AP6+Main!$I13)*(1+Main!$I$2+VLOOKUP('Random Years'!AN7,'Hist Returns'!$A$12:$D$107,2,FALSE))","v":{"v":1249175.4960524677,"d":"1,249,175"}},{"$f":"($A7-$A6)/365.25*(AQ6+Main!$I13)*(1+Main!$I$2+VLOOKUP('Random Years'!AO7,'Hist Returns'!$A$12:$D$107,2,FALSE))","v":{"v":829615.4330350478,"d":"829,615"}},{"$f":"($A7-$A6)/365.25*(AR6+Main!$I13)*(1+Main!$I$2+VLOOKUP('Random Years'!AP7,'Hist Returns'!$A$12:$D$107,2,FALSE))","v":{"v":1653467.3140416238,"d":"1,653,467"}},{"$f":"($A7-$A6)/365.25*(AS6+Main!$I13)*(1+Main!$I$2+VLOOKUP('Random Years'!AQ7,'Hist Returns'!$A$12:$D$107,2,FALSE))","v":{"v":504468.6099213033,"d":"504,469"}},{"$f":"($A7-$A6)/365.25*(AT6+Main!$I13)*(1+Main!$I$2+VLOOKUP('Random Years'!AR7,'Hist Returns'!$A$12:$D$107,2,FALSE))","v":{"v":717183.8811148495,"d":"717,184"}},{"$f":"($A7-$A6)/365.25*(AU6+Main!$I13)*(1+Main!$I$2+VLOOKUP('Random Years'!AS7,'Hist Returns'!$A$12:$D$107,2,FALSE))","v":{"v":1211299.4201411936,"d":"1,211,299"}},{"$f":"($A7-$A6)/365.25*(AV6+Main!$I13)*(1+Main!$I$2+VLOOKUP('Random Years'!AT7,'Hist Returns'!$A$12:$D$107,2,FALSE))","v":{"v":659311.0832893628,"d":"659,311"}},{"$f":"($A7-$A6)/365.25*(AW6+Main!$I13)*(1+Main!$I$2+VLOOKUP('Random Years'!AU7,'Hist Returns'!$A$12:$D$107,2,FALSE))","v":{"v":648336.6660125176,"d":"648,337"}},{"$f":"($A7-$A6)/365.25*(AX6+Main!$I13)*(1+Main!$I$2+VLOOKUP('Random Years'!AV7,'Hist Returns'!$A$12:$D$107,2,FALSE))","v":{"v":1496865.3035276239,"d":"1,496,865"}},{"$f":"($A7-$A6)/365.25*(AY6+Main!$I13)*(1+Main!$I$2+VLOOKUP('Random Years'!AW7,'Hist Returns'!$A$12:$D$107,2,FALSE))","v":{"v":1547911.758827213,"d":"1,547,912"}},{"$f":"($A7-$A6)/365.25*(AZ6+Main!$I13)*(1+Main!$I$2+VLOOKUP('Random Years'!AX7,'Hist Returns'!$A$12:$D$107,2,FALSE))","v":{"v":764832.6440286015,"d":"764,833"}},{"$f":"($A7-$A6)/365.25*(BA6+Main!$I13)*(1+Main!$I$2+VLOOKUP('Random Years'!AY7,'Hist Returns'!$A$12:$D$107,2,FALSE))","v":{"v":239276.68335536853,"d":"239,277"}},{"$f":"($A7-$A6)/365.25*(BB6+Main!$I13)*(1+Main!$I$2+VLOOKUP('Random Years'!AZ7,'Hist Returns'!$A$12:$D$107,2,FALSE))","v":{"v":735980.5467584505,"d":"735,981"}},{"$f":"($A7-$A6)/365.25*(BC6+Main!$I13)*(1+Main!$I$2+VLOOKUP('Random Years'!BA7,'Hist Returns'!$A$12:$D$107,2,FALSE))","v":{"v":980461.8395348099,"d":"980,462"}},{"$f":"($A7-$A6)/365.25*(BD6+Main!$I13)*(1+Main!$I$2+VLOOKUP('Random Years'!BB7,'Hist Returns'!$A$12:$D$107,2,FALSE))","v":{"v":1330986.55074476,"d":"1,330,987"}},{"$f":"($A7-$A6)/365.25*(BE6+Main!$I13)*(1+Main!$I$2+VLOOKUP('Random Years'!BC7,'Hist Returns'!$A$12:$D$107,2,FALSE))","v":{"v":1607119.6763665269,"d":"1,607,120"}},{"$f":"($A7-$A6)/365.25*(BF6+Main!$I13)*(1+Main!$I$2+VLOOKUP('Random Years'!BD7,'Hist Returns'!$A$12:$D$107,2,FALSE))","v":{"v":670299.5893638732,"d":"670,300"}},{"$f":"($A7-$A6)/365.25*(BG6+Main!$I13)*(1+Main!$I$2+VLOOKUP('Random Years'!BE7,'Hist Returns'!$A$12:$D$107,2,FALSE))","v":{"v":619274.0854504065,"d":"619,274"}},{"$f":"($A7-$A6)/365.25*(BH6+Main!$I13)*(1+Main!$I$2+VLOOKUP('Random Years'!BF7,'Hist Returns'!$A$12:$D$107,2,FALSE))","v":{"v":881277.3673608686,"d":"881,277"}},{"$f":"($A7-$A6)/365.25*(BI6+Main!$I13)*(1+Main!$I$2+VLOOKUP('Random Years'!BG7,'Hist Returns'!$A$12:$D$107,2,FALSE))","v":{"v":1540935.49874258,"d":"1,540,935"}},{"$f":"($A7-$A6)/365.25*(BJ6+Main!$I13)*(1+Main!$I$2+VLOOKUP('Random Years'!BH7,'Hist Returns'!$A$12:$D$107,2,FALSE))","v":{"v":1011584.1786861512,"d":"1,011,584"}},{"$f":"($A7-$A6)/365.25*(BK6+Main!$I13)*(1+Main!$I$2+VLOOKUP('Random Years'!BI7,'Hist Returns'!$A$12:$D$107,2,FALSE))","v":{"v":758105.3746131463,"d":"758,105"}},{"$f":"($A7-$A6)/365.25*(BL6+Main!$I13)*(1+Main!$I$2+VLOOKUP('Random Years'!BJ7,'Hist Returns'!$A$12:$D$107,2,FALSE))","v":{"v":751020.2575348712,"d":"751,020"}},{"$f":"($A7-$A6)/365.25*(BM6+Main!$I13)*(1+Main!$I$2+VLOOKUP('Random Years'!BK7,'Hist Returns'!$A$12:$D$107,2,FALSE))","v":{"v":547133.5340631014,"d":"547,134"}},{"$f":"($A7-$A6)/365.25*(BN6+Main!$I13)*(1+Main!$I$2+VLOOKUP('Random Years'!BL7,'Hist Returns'!$A$12:$D$107,2,FALSE))","v":{"v":864829.4478268294,"d":"864,829"}},{"$f":"($A7-$A6)/365.25*(BO6+Main!$I13)*(1+Main!$I$2+VLOOKUP('Random Years'!BM7,'Hist Returns'!$A$12:$D$107,2,FALSE))","v":{"v":1045141.6141092397,"d":"1,045,142"}},{"$f":"($A7-$A6)/365.25*(BP6+Main!$I13)*(1+Main!$I$2+VLOOKUP('Random Years'!BN7,'Hist Returns'!$A$12:$D$107,2,FALSE))","v":{"v":1973585.8949534392,"d":"1,973,586"}},{"$f":"($A7-$A6)/365.25*(BQ6+Main!$I13)*(1+Main!$I$2+VLOOKUP('Random Years'!BO7,'Hist Returns'!$A$12:$D$107,2,FALSE))","v":{"v":1392593.861108228,"d":"1,392,594"}},{"$f":"($A7-$A6)/365.25*(BR6+Main!$I13)*(1+Main!$I$2+VLOOKUP('Random Years'!BP7,'Hist Returns'!$A$12:$D$107,2,FALSE))","v":{"v":1803091.0848331216,"d":"1,803,091"}},{"$f":"($A7-$A6)/365.25*(BS6+Main!$I13)*(1+Main!$I$2+VLOOKUP('Random Years'!BQ7,'Hist Returns'!$A$12:$D$107,2,FALSE))","v":{"v":994893.2057785445,"d":"994,893"}},{"$f":"($A7-$A6)/365.25*(BT6+Main!$I13)*(1+Main!$I$2+VLOOKUP('Random Years'!BR7,'Hist Returns'!$A$12:$D$107,2,FALSE))","v":{"v":689434.0566416673,"d":"689,434"}},{"$f":"($A7-$A6)/365.25*(BU6+Main!$I13)*(1+Main!$I$2+VLOOKUP('Random Years'!BS7,'Hist Returns'!$A$12:$D$107,2,FALSE))","v":{"v":548638.40419391,"d":"548,638"}},{"$f":"($A7-$A6)/365.25*(BV6+Main!$I13)*(1+Main!$I$2+VLOOKUP('Random Years'!BT7,'Hist Returns'!$A$12:$D$107,2,FALSE))","v":{"v":1336786.5799472777,"d":"1,336,787"}},{"$f":"($A7-$A6)/365.25*(BW6+Main!$I13)*(1+Main!$I$2+VLOOKUP('Random Years'!BU7,'Hist Returns'!$A$12:$D$107,2,FALSE))","v":{"v":594302.370517052,"d":"594,302"}},{"$f":"($A7-$A6)/365.25*(BX6+Main!$I13)*(1+Main!$I$2+VLOOKUP('Random Years'!BV7,'Hist Returns'!$A$12:$D$107,2,FALSE))","v":{"v":892280.1848203571,"d":"892,280"}},{"$f":"($A7-$A6)/365.25*(BY6+Main!$I13)*(1+Main!$I$2+VLOOKUP('Random Years'!BW7,'Hist Returns'!$A$12:$D$107,2,FALSE))","v":{"v":1698528.0248283027,"d":"1,698,528"}},{"$f":"($A7-$A6)/365.25*(BZ6+Main!$I13)*(1+Main!$I$2+VLOOKUP('Random Years'!BX7,'Hist Returns'!$A$12:$D$107,2,FALSE))","v":{"v":919114.7741213692,"d":"919,115"}},{"$f":"($A7-$A6)/365.25*(CA6+Main!$I13)*(1+Main!$I$2+VLOOKUP('Random Years'!BY7,'Hist Returns'!$A$12:$D$107,2,FALSE))","v":{"v":2097790.208425375,"d":"2,097,790"}},{"$f":"($A7-$A6)/365.25*(CB6+Main!$I13)*(1+Main!$I$2+VLOOKUP('Random Years'!BZ7,'Hist Returns'!$A$12:$D$107,2,FALSE))","v":{"v":881639.1718892693,"d":"881,639"}},{"$f":"($A7-$A6)/365.25*(CC6+Main!$I13)*(1+Main!$I$2+VLOOKUP('Random Years'!CA7,'Hist Returns'!$A$12:$D$107,2,FALSE))","v":{"v":875346.4241643231,"d":"875,346"}},{"$f":"($A7-$A6)/365.25*(CD6+Main!$I13)*(1+Main!$I$2+VLOOKUP('Random Years'!CB7,'Hist Returns'!$A$12:$D$107,2,FALSE))","v":{"v":1819710.1302626443,"d":"1,819,710"}},{"$f":"($A7-$A6)/365.25*(CE6+Main!$I13)*(1+Main!$I$2+VLOOKUP('Random Years'!CC7,'Hist Returns'!$A$12:$D$107,2,FALSE))","v":{"v":1958627.5427711771,"d":"1,958,628"}},{"$f":"($A7-$A6)/365.25*(CF6+Main!$I13)*(1+Main!$I$2+VLOOKUP('Random Years'!CD7,'Hist Returns'!$A$12:$D$107,2,FALSE))","v":{"v":1254216.34346281,"d":"1,254,216"}},{"$f":"($A7-$A6)/365.25*(CG6+Main!$I13)*(1+Main!$I$2+VLOOKUP('Random Years'!CE7,'Hist Returns'!$A$12:$D$107,2,FALSE))","v":{"v":1040053.5334119432,"d":"1,040,054"}},{"$f":"($A7-$A6)/365.25*(CH6+Main!$I13)*(1+Main!$I$2+VLOOKUP('Random Years'!CF7,'Hist Returns'!$A$12:$D$107,2,FALSE))","v":{"v":1553092.0516301836,"d":"1,553,092"}},{"$f":"($A7-$A6)/365.25*(CI6+Main!$I13)*(1+Main!$I$2+VLOOKUP('Random Years'!CG7,'Hist Returns'!$A$12:$D$107,2,FALSE))","v":{"v":719663.9338556099,"d":"719,664"}},{"$f":"($A7-$A6)/365.25*(CJ6+Main!$I13)*(1+Main!$I$2+VLOOKUP('Random Years'!CH7,'Hist Returns'!$A$12:$D$107,2,FALSE))","v":{"v":1566984.2053968855,"d":"1,566,984"}},{"$f":"($A7-$A6)/365.25*(CK6+Main!$I13)*(1+Main!$I$2+VLOOKUP('Random Years'!CI7,'Hist Returns'!$A$12:$D$107,2,FALSE))","v":{"v":625642.5319485355,"d":"625,643"}},{"$f":"($A7-$A6)/365.25*(CL6+Main!$I13)*(1+Main!$I$2+VLOOKUP('Random Years'!CJ7,'Hist Returns'!$A$12:$D$107,2,FALSE))","v":{"v":1475691.0215649446,"d":"1,475,691"}},{"$f":"($A7-$A6)/365.25*(CM6+Main!$I13)*(1+Main!$I$2+VLOOKUP('Random Years'!CK7,'Hist Returns'!$A$12:$D$107,2,FALSE))","v":{"v":2163182.1123681767,"d":"2,163,182"}},{"$f":"($A7-$A6)/365.25*(CN6+Main!$I13)*(1+Main!$I$2+VLOOKUP('Random Years'!CL7,'Hist Returns'!$A$12:$D$107,2,FALSE))","v":{"v":1179627.1531837145,"d":"1,179,627"}},{"$f":"($A7-$A6)/365.25*(CO6+Main!$I13)*(1+Main!$I$2+VLOOKUP('Random Years'!CM7,'Hist Returns'!$A$12:$D$107,2,FALSE))","v":{"v":2247958.5397964264,"d":"2,247,959"}},{"$f":"($A7-$A6)/365.25*(CP6+Main!$I13)*(1+Main!$I$2+VLOOKUP('Random Years'!CN7,'Hist Returns'!$A$12:$D$107,2,FALSE))","v":{"v":1061977.7359611725,"d":"1,061,978"}},{"$f":"($A7-$A6)/365.25*(CQ6+Main!$I13)*(1+Main!$I$2+VLOOKUP('Random Years'!CO7,'Hist Returns'!$A$12:$D$107,2,FALSE))","v":{"v":836210.8791675844,"d":"836,211"}},{"$f":"($A7-$A6)/365.25*(CR6+Main!$I13)*(1+Main!$I$2+VLOOKUP('Random Years'!CP7,'Hist Returns'!$A$12:$D$107,2,FALSE))","v":{"v":1840396.253450118,"d":"1,840,396"}},{"$f":"($A7-$A6)/365.25*(CS6+Main!$I13)*(1+Main!$I$2+VLOOKUP('Random Years'!CQ7,'Hist Returns'!$A$12:$D$107,2,FALSE))","v":{"v":1545305.9706097692,"d":"1,545,306"}},{"$f":"($A7-$A6)/365.25*(CT6+Main!$I13)*(1+Main!$I$2+VLOOKUP('Random Years'!CR7,'Hist Returns'!$A$12:$D$107,2,FALSE))","v":{"v":965755.2085002771,"d":"965,755"}},{"$f":"($A7-$A6)/365.25*(CU6+Main!$I13)*(1+Main!$I$2+VLOOKUP('Random Years'!CS7,'Hist Returns'!$A$12:$D$107,2,FALSE))","v":{"v":1924087.6501595601,"d":"1,924,088"}},{"$f":"($A7-$A6)/365.25*(CV6+Main!$I13)*(1+Main!$I$2+VLOOKUP('Random Years'!CT7,'Hist Returns'!$A$12:$D$107,2,FALSE))","v":{"v":1145737.5086098758,"d":"1,145,738"}},{"$f":"($A7-$A6)/365.25*(CW6+Main!$I13)*(1+Main!$I$2+VLOOKUP('Random Years'!CU7,'Hist Returns'!$A$12:$D$107,2,FALSE))","v":{"v":432898.6862315284,"d":"432,899"}},{"$f":"($A7-$A6)/365.25*(CX6+Main!$I13)*(1+Main!$I$2+VLOOKUP('Random Years'!CV7,'Hist Returns'!$A$12:$D$107,2,FALSE))","v":{"v":1571516.8897988095,"d":"1,571,517"}}]
[{"$f":"Main!A14","v":"2029-12-30"},{"$f":"Main!B14","v":75},{"$f":"($A8-$A7)/365.25*(C7+Main!$I14)*(1+Main!$I$2+VLOOKUP('Random Years'!A8,'Hist Returns'!$A$12:$D$107,2,FALSE))","v":{"v":661945.5641313171,"d":"661,946"}},{"$f":"($A8-$A7)/365.25*(D7+Main!$I14)*(1+Main!$I$2+VLOOKUP('Random Years'!B8,'Hist Returns'!$A$12:$D$107,2,FALSE))","v":{"v":759548.1514962581,"d":"759,548"}},{"$f":"($A8-$A7)/365.25*(E7+Main!$I14)*(1+Main!$I$2+VLOOKUP('Random Years'!C8,'Hist Returns'!$A$12:$D$107,2,FALSE))","v":{"v":2317555.7675533528,"d":"2,317,556"}},{"$f":"($A8-$A7)/365.25*(F7+Main!$I14)*(1+Main!$I$2+VLOOKUP('Random Years'!D8,'Hist Returns'!$A$12:$D$107,2,FALSE))","v":{"v":1822772.080833687,"d":"1,822,772"}},{"$f":"($A8-$A7)/365.25*(G7+Main!$I14)*(1+Main!$I$2+VLOOKUP('Random Years'!E8,'Hist Returns'!$A$12:$D$107,2,FALSE))","v":{"v":1840436.995681594,"d":"1,840,437"}},{"$f":"($A8-$A7)/365.25*(H7+Main!$I14)*(1+Main!$I$2+VLOOKUP('Random Years'!F8,'Hist Returns'!$A$12:$D$107,2,FALSE))","v":{"v":1382970.0467204815,"d":"1,382,970"}},{"$f":"($A8-$A7)/365.25*(I7+Main!$I14)*(1+Main!$I$2+VLOOKUP('Random Years'!G8,'Hist Returns'!$A$12:$D$107,2,FALSE))","v":{"v":1099020.3770789413,"d":"1,099,020"}},{"$f":"($A8-$A7)/365.25*(J7+Main!$I14)*(1+Main!$I$2+VLOOKUP('Random Years'!H8,'Hist Returns'!$A$12:$D$107,2,FALSE))","v":{"v":817133.6130419018,"d":"817,134"}},{"$f":"($A8-$A7)/365.25*(K7+Main!$I14)*(1+Main!$I$2+VLOOKUP('Random Years'!I8,'Hist Returns'!$A$12:$D$107,2,FALSE))","v":{"v":1666083.4134555864,"d":"1,666,083"}},{"$f":"($A8-$A7)/365.25*(L7+Main!$I14)*(1+Main!$I$2+VLOOKUP('Random Years'!J8,'Hist Returns'!$A$12:$D$107,2,FALSE))","v":{"v":1677409.8718951915,"d":"1,677,410"}},{"$f":"($A8-$A7)/365.25*(M7+Main!$I14)*(1+Main!$I$2+VLOOKUP('Random Years'!K8,'Hist Returns'!$A$12:$D$107,2,FALSE))","v":{"v":1467594.7884985262,"d":"1,467,595"}},{"$f":"($A8-$A7)/365.25*(N7+Main!$I14)*(1+Main!$I$2+VLOOKUP('Random Years'!L8,'Hist Returns'!$A$12:$D$107,2,FALSE))","v":{"v":334506.71070230973,"d":"334,507"}},{"$f":"($A8-$A7)/365.25*(O7+Main!$I14)*(1+Main!$I$2+VLOOKUP('Random Years'!M8,'Hist Returns'!$A$12:$D$107,2,FALSE))","v":{"v":955966.9948554668,"d":"955,967"}},{"$f":"($A8-$A7)/365.25*(P7+Main!$I14)*(1+Main!$I$2+VLOOKUP('Random Years'!N8,'Hist Returns'!$A$12:$D$107,2,FALSE))","v":{"v":472931.0957749747,"d":"472,931"}},{"$f":"($A8-$A7)/365.25*(Q7+Main!$I14)*(1+Main!$I$2+VLOOKUP('Random Years'!O8,'Hist Returns'!$A$12:$D$107,2,FALSE))","v":{"v":634755.2455250489,"d":"634,755"}},{"$f":"($A8-$A7)/365.25*(R7+Main!$I14)*(1+Main!$I$2+VLOOKUP('Random Years'!P8,'Hist Returns'!$A$12:$D$107,2,FALSE))","v":{"v":646059.3040735812,"d":"646,059"}},{"$f":"($A8-$A7)/365.25*(S7+Main!$I14)*(1+Main!$I$2+VLOOKUP('Random Years'!Q8,'Hist Returns'!$A$12:$D$107,2,FALSE))","v":{"v":1533823.4907863247,"d":"1,533,823"}},{"$f":"($A8-$A7)/365.25*(T7+Main!$I14)*(1+Main!$I$2+VLOOKUP('Random Years'!R8,'Hist Returns'!$A$12:$D$107,2,FALSE))","v":{"v":851264.3319329423,"d":"851,264"}},{"$f":"($A8-$A7)/365.25*(U7+Main!$I14)*(1+Main!$I$2+VLOOKUP('Random Years'!S8,'Hist Returns'!$A$12:$D$107,2,FALSE))","v":{"v":620907.0307433164,"d":"620,907"}},{"$f":"($A8-$A7)/365.25*(V7+Main!$I14)*(1+Main!$I$2+VLOOKUP('Random Years'!T8,'Hist Returns'!$A$12:$D$107,2,FALSE))","v":{"v":1987493.8632190693,"d":"1,987,494"}},{"$f":"($A8-$A7)/365.25*(W7+Main!$I14)*(1+Main!$I$2+VLOOKUP('Random Years'!U8,'Hist Returns'!$A$12:$D$107,2,FALSE))","v":{"v":1282681.510907641,"d":"1,282,682"}},{"$f":"($A8-$A7)/365.25*(X7+Main!$I14)*(1+Main!$I$2+VLOOKUP('Random Years'!V8,'Hist Returns'!$A$12:$D$107,2,FALSE))","v":{"v":976466.9799576161,"d":"976,467"}},{"$f":"($A8-$A7)/365.25*(Y7+Main!$I14)*(1+Main!$I$2+VLOOKUP('Random Years'!W8,'Hist Returns'!$A$12:$D$107,2,FALSE))","v":{"v":845753.0549905972,"d":"845,753"}},{"$f":"($A8-$A7)/365.25*(Z7+Main!$I14)*(1+Main!$I$2+VLOOKUP('Random Years'!X8,'Hist Returns'!$A$12:$D$107,2,FALSE))","v":{"v":843388.3034658856,"d":"843,388"}},{"$f":"($A8-$A7)/365.25*(AA7+Main!$I14)*(1+Main!$I$2+VLOOKUP('Random Years'!Y8,'Hist Returns'!$A$12:$D$107,2,FALSE))","v":{"v":1069308.9334279867,"d":"1,069,309"}},{"$f":"($A8-$A7)/365.25*(AB7+Main!$I14)*(1+Main!$I$2+VLOOKUP('Random Years'!Z8,'Hist Returns'!$A$12:$D$107,2,FALSE))","v":{"v":1062592.0312452207,"d":"1,062,592"}},{"$f":"($A8-$A7)/365.25*(AC7+Main!$I14)*(1+Main!$I$2+VLOOKUP('Random Years'!AA8,'Hist Returns'!$A$12:$D$107,2,FALSE))","v":{"v":2196670.720951873,"d":"2,196,671"}},{"$f":"($A8-$A7)/365.25*(AD7+Main!$I14)*(1+Main!$I$2+VLOOKUP('Random Years'!AB8,'Hist Returns'!$A$12:$D$107,2,FALSE))","v":{"v":917351.1872209501,"d":"917,351"}},{"$f":"($A8-$A7)/365.25*(AE7+Main!$I14)*(1+Main!$I$2+VLOOKUP('Random Years'!AC8,'Hist Returns'!$A$12:$D$107,2,FALSE))","v":{"v":372719.9001959154,"d":"372,720"}},{"$f":"($A8-$A7)/365.25*(AF7+Main!$I14)*(1+Main!$I$2+VLOOKUP('Random Years'!AD8,'Hist Returns'!$A$12:$D$107,2,FALSE))","v":{"v":2534278.6109055933,"d":"2,534,279"}},{"$f":"($A8-$A7)/365.25*(AG7+Main!$I14)*(1+Main!$I$2+VLOOKUP('Random Years'!AE8,'Hist Returns'!$A$12:$D$107,2,FALSE))","v":{"v":2058009.5792582477,"d":"2,058,010"}},{"$f":"($A8-$A7)/365.25*(AH7+Main!$I14)*(1+Main!$I$2+VLOOKUP('Random Years'!AF8,'Hist Returns'!$A$12:$D$107,2,FALSE))","v":{"v":1091085.8175235067,"d":"1,091,086"}},{"$f":"($A8-$A7)/365.25*(AI7+Main!$I14)*(1+Main!$I$2+VLOOKUP('Random Years'!AG8,'Hist Returns'!$A$12:$D$107,2,FALSE))","v":{"v":2091235.1739455492,"d":"2,091,235"}},{"$f":"($A8-$A7)/365.25*(AJ7+Main!$I14)*(1+Main!$I$2+VLOOKUP('Random Years'!AH8,'Hist Returns'!$A$12:$D$107,2,FALSE))","v":{"v":1303283.10460644,"d":"1,303,283"}},{"$f":"($A8-$A7)/365.25*(AK7+Main!$I14)*(1+Main!$I$2+VLOOKUP('Random Years'!AI8,'Hist Returns'!$A$12:$D$107,2,FALSE))","v":{"v":757233.9025834315,"d":"757,234"}},{"$f":"($A8-$A7)/365.25*(AL7+Main!$I14)*(1+Main!$I$2+VLOOKUP('Random Years'!AJ8,'Hist Returns'!$A$12:$D$107,2,FALSE))","v":{"v":1614424.158381712,"d":"1,614,424"}},{"$f":"($A8-$A7)/365.25*(AM7+Main!$I14)*(1+Main!$I$2+VLOOKUP('Random Years'!AK8,'Hist Returns'!$A$12:$D$107,2,FALSE))","v":{"v":368676.4766320678,"d":"368,676"}},{"$f":"($A8-$A7)/365.25*(AN7+Main!$I14)*(1+Main!$I$2+VLOOKUP('Random Years'!AL8,'Hist Returns'!$A$12:$D$107,2,FALSE))","v":{"v":1711160.4085117665,"d":"1,711,160"}},{"$f":"($A8-$A7)/365.25*(AO7+Main!$I14)*(1+Main!$I$2+VLOOKUP('Random Years'!AM8,'Hist Returns'!$A$12:$D$107,2,FALSE))","v":{"v":1041136.6737242669,"d":"1,041,137"}},{"$f":"($A8-$A7)/365.25*(AP7+Main!$I14)*(1+Main!$I$2+VLOOKUP('Random Years'!AN8,'Hist Returns'!$A$12:$D$107,2,FALSE))","v":{"v":1783370.446155608,"d":"1,783,370"}},{"$f":"($A8-$A7)/365.25*(AQ7+Main!$I14)*(1+Main!$I$2+VLOOKUP('Random Years'!AO8,'Hist Returns'!$A$12:$D$107,2,FALSE))","v":{"v":926725.6494602732,"d":"926,726"}},{"$f":"($A8-$A7)/365.25*(AR7+Main!$I14)*(1+Main!$I$2+VLOOKUP('Random Years'!AP8,'Hist Returns'!$A$12:$D$107,2,FALSE))","v":{"v":1838272.8833849072,"d":"1,838,273"}},{"$f":"($A8-$A7)/365.25*(AS7+Main!$I14)*(1+Main!$I$2+VLOOKUP('Random Years'!AQ8,'Hist Returns'!$A$12:$D$107,2,FALSE))","v":{"v":583400.1344821085,"d":"583,400"}},{"$f":"($A8-$A7)/365.25*(AT7+Main!$I14)*(1+Main!$I$2+VLOOKUP('Random Years'!AR8,'Hist Returns'!$A$12:$D$107,2,FALSE))","v":{"v":585872.2446130561,"d":"585,872"}},{"$f":"($A8-$A7)/365.25*(AU7+Main!$I14)*(1+Main!$I$2+VLOOKUP('Random Years'!AS8,'Hist Returns'!$A$12:$D$107,2,FALSE))","v":{"v":1533480.2361024143,"d":"1,533,480"}},{"$f":"($A8-$A7)/365.25*(AV7+Main!$I14)*(1+Main!$I$2+VLOOKUP('Random Years'!AT8,'Hist Returns'!$A$12:$D$107,2,FALSE))","v":{"v":821256.8669012119,"d":"821,257"}},{"$f":"($A8-$A7)/365.25*(AW7+Main!$I14)*(1+Main!$I$2+VLOOKUP('Random Years'!AU8,'Hist Returns'!$A$12:$D$107,2,FALSE))","v":{"v":526916.1026261508,"d":"526,916"}},{"$f":"($A8-$A7)/365.25*(AX7+Main!$I14)*(1+Main!$I$2+VLOOKUP('Random Years'!AV8,'Hist Returns'!$A$12:$D$107,2,FALSE))","v":{"v":1571671.9347365089,"d":"1,571,672"}},{"$f":"($A8-$A7)/365.25*(AY7+Main!$I14)*(1+Main!$I$2+VLOOKUP('Random Years'!AW8,'Hist Returns'!$A$12:$D$107,2,FALSE))","v":{"v":1497239.4951898388,"d":"1,497,239"}},{"$f":"($A8-$A7)/365.25*(AZ7+Main!$I14)*(1+Main!$I$2+VLOOKUP('Random Years'!AX8,'Hist Returns'!$A$12:$D$107,2,FALSE))","v":{"v":722619.7846417485,"d":"722,620"}},{"$f":"($A8-$A7)/365.25*(BA7+Main!$I14)*(1+Main!$I$2+VLOOKUP('Random Years'!AY8,'Hist Returns'!$A$12:$D$107,2,FALSE))","v":{"v":252156.04831726162,"d":"252,156"}},{"$f":"($A8-$A7)/365.25*(BB7+Main!$I14)*(1+Main!$I$2+VLOOKUP('Random Years'!AZ8,'Hist Returns'!$A$12:$D$107,2,FALSE))","v":{"v":787173.7050182711,"d":"787,174"}},{"$f":"($A8-$A7)/365.25*(BC7+Main!$I14)*(1+Main!$I$2+VLOOKUP('Random Years'!BA8,'Hist Returns'!$A$12:$D$107,2,FALSE))","v":{"v":1060943.266732689,"d":"1,060,943"}},{"$f":"($A8-$A7)/365.25*(BD7+Main!$I14)*(1+Main!$I$2+VLOOKUP('Random Years'!BB8,'Hist Returns'!$A$12:$D$107,2,FALSE))","v":{"v":1714025.2366109572,"d":"1,714,025"}},{"$f":"($A8-$A7)/365.25*(BE7+Main!$I14)*(1+Main!$I$2+VLOOKUP('Random Years'!BC8,'Hist Returns'!$A$12:$D$107,2,FALSE))","v":{"v":1017167.7576863326,"d":"1,017,168"}},{"$f":"($A8-$A7)/365.25*(BF7+Main!$I14)*(1+Main!$I$2+VLOOKUP('Random Years'!BD8,'Hist Returns'!$A$12:$D$107,2,FALSE))","v":{"v":592393.7611023607,"d":"592,394"}},{"$f":"($A8-$A7)/365.25*(BG7+Main!$I14)*(1+Main!$I$2+VLOOKUP('Random Years'!BE8,'Hist Returns'!$A$12:$D$107,2,FALSE))","v":{"v":708210.4286727714,"d":"708,210"}},{"$f":"($A8-$A7)/365.25*(BH7+Main!$I14)*(1+Main!$I$2+VLOOKUP('Random Years'!BF8,'Hist Returns'!$A$12:$D$107,2,FALSE))","v":{"v":1048393.7965927997,"d":"1,048,394"}},{"$f":"($A8-$A7)/365.25*(BI7+Main!$I14)*(1+Main!$I$2+VLOOKUP('Random Years'!BG8,'Hist Returns'!$A$12:$D$107,2,FALSE))","v":{"v":2260057.4805361736,"d":"2,260,057"}},{"$f":"($A8-$A7)/365.25*(BJ7+Main!$I14)*(1+Main!$I$2+VLOOKUP('Random Years'!BH8,'Hist Returns'!$A$12:$D$107,2,FALSE))","v":{"v":1110105.8926435811,"d":"1,110,106"}},{"$f":"($A8-$A7)/365.25*(BK7+Main!$I14)*(1+Main!$I$2+VLOOKUP('Random Years'!BI8,'Hist Returns'!$A$12:$D$107,2,FALSE))","v":{"v":765923.9802083963,"d":"765,924"}},{"$f":"($A8-$A7)/365.25*(BL7+Main!$I14)*(1+Main!$I$2+VLOOKUP('Random Years'!BJ8,'Hist Returns'!$A$12:$D$107,2,FALSE))","v":{"v":872562.6641058684,"d":"872,563"}},{"$f":"($A8-$A7)/365.25*(BM7+Main!$I14)*(1+Main!$I$2+VLOOKUP('Random Years'!BK8,'Hist Returns'!$A$12:$D$107,2,FALSE))","v":{"v":642517.2431241557,"d":"642,517"}},{"$f":"($A8-$A7)/365.25*(BN7+Main!$I14)*(1+Main!$I$2+VLOOKUP('Random Years'!BL8,'Hist Returns'!$A$12:$D$107,2,FALSE))","v":{"v":1029333.1265166956,"d":"1,029,333"}},{"$f":"($A8-$A7)/365.25*(BO7+Main!$I14)*(1+Main!$I$2+VLOOKUP('Random Years'!BM8,'Hist Returns'!$A$12:$D$107,2,FALSE))","v":{"v":829270.6503458347,"d":"829,271"}},{"$f":"($A8-$A7)/365.25*(BP7+Main!$I14)*(1+Main!$I$2+VLOOKUP('Random Years'!BN8,'Hist Returns'!$A$12:$D$107,2,FALSE))","v":{"v":1771641.8107087386,"d":"1,771,642"}},{"$f":"($A8-$A7)/365.25*(BQ7+Main!$I14)*(1+Main!$I$2+VLOOKUP('Random Years'!BO8,'Hist Returns'!$A$12:$D$107,2,FALSE))","v":{"v":1494060.136639514,"d":"1,494,060"}},{"$f":"($A8-$A7)/365.25*(BR7+Main!$I14)*(1+Main!$I$2+VLOOKUP('Random Years'!BP8,'Hist Returns'!$A$12:$D$107,2,FALSE))","v":{"v":2595632.169762197,"d":"2,595,632"}},{"$f":"($A8-$A7)/365.25*(BS7+Main!$I14)*(1+Main!$I$2+VLOOKUP('Random Years'!BQ8,'Hist Returns'!$A$12:$D$107,2,FALSE))","v":{"v":1466461.5297748386,"d":"1,466,462"}},{"$f":"($A8-$A7)/365.25*(BT7+Main!$I14)*(1+Main!$I$2+VLOOKUP('Random Years'!BR8,'Hist Returns'!$A$12:$D$107,2,FALSE))","v":{"v":862431.0926934583,"d":"862,431"}},{"$f":"($A8-$A7)/365.25*(BU7+Main!$I14)*(1+Main!$I$2+VLOOKUP('Random Years'!BS8,'Hist Returns'!$A$12:$D$107,2,FALSE))","v":{"v":469863.2153721315,"d":"469,863"}},{"$f":"($A8-$A7)/365.25*(BV7+Main!$I14)*(1+Main!$I$2+VLOOKUP('Random Years'!BT8,'Hist Returns'!$A$12:$D$107,2,FALSE))","v":{"v":1068226.6893165992,"d":"1,068,227"}},{"$f":"($A8-$A7)/365.25*(BW7+Main!$I14)*(1+Main!$I$2+VLOOKUP('Random Years'!BU8,'Hist Returns'!$A$12:$D$107,2,FALSE))","v":{"v":653655.197688013,"d":"653,655"}},{"$f":"($A8-$A7)/365.25*(BX7+Main!$I14)*(1+Main!$I$2+VLOOKUP('Random Years'!BV8,'Hist Returns'!$A$12:$D$107,2,FALSE))","v":{"v":1022083.3500682963,"d":"1,022,083"}},{"$f":"($A8-$A7)/365.25*(BY7+Main!$I14)*(1+Main!$I$2+VLOOKUP('Random Years'!BW8,'Hist Returns'!$A$12:$D$107,2,FALSE))","v":{"v":1586103.1199426139,"d":"1,586,103"}},{"$f":"($A8-$A7)/365.25*(BZ7+Main!$I14)*(1+Main!$I$2+VLOOKUP('Random Years'!BX8,'Hist Returns'!$A$12:$D$107,2,FALSE))","v":{"v":726011.9693637401,"d":"726,012"}},{"$f":"($A8-$A7)/365.25*(CA7+Main!$I14)*(1+Main!$I$2+VLOOKUP('Random Years'!BY8,'Hist Returns'!$A$12:$D$107,2,FALSE))","v":{"v":1881545.21454459,"d":"1,881,545"}},{"$f":"($A8-$A7)/365.25*(CB7+Main!$I14)*(1+Main!$I$2+VLOOKUP('Random Years'!BZ8,'Hist Returns'!$A$12:$D$107,2,FALSE))","v":{"v":634980.3799980821,"d":"634,980"}},{"$f":"($A8-$A7)/365.25*(CC7+Main!$I14)*(1+Main!$I$2+VLOOKUP('Random Years'!CA8,'Hist Returns'!$A$12:$D$107,2,FALSE))","v":{"v":1143274.0381000964,"d":"1,143,274"}},{"$f":"($A8-$A7)/365.25*(CD7+Main!$I14)*(1+Main!$I$2+VLOOKUP('Random Years'!CB8,'Hist Returns'!$A$12:$D$107,2,FALSE))","v":{"v":1709904.503561299,"d":"1,709,905"}},{"$f":"($A8-$A7)/365.25*(CE7+Main!$I14)*(1+Main!$I$2+VLOOKUP('Random Years'!CC8,'Hist Returns'!$A$12:$D$107,2,FALSE))","v":{"v":2517077.5113140256,"d":"2,517,078"}},{"$f":"($A8-$A7)/365.25*(CF7+Main!$I14)*(1+Main!$I$2+VLOOKUP('Random Years'!CD8,'Hist Returns'!$A$12:$D$107,2,FALSE))","v":{"v":1420688.4043446966,"d":"1,420,688"}},{"$f":"($A8-$A7)/365.25*(CG7+Main!$I14)*(1+Main!$I$2+VLOOKUP('Random Years'!CE8,'Hist Returns'!$A$12:$D$107,2,FALSE))","v":{"v":1197858.5732592344,"d":"1,197,859"}},{"$f":"($A8-$A7)/365.25*(CH7+Main!$I14)*(1+Main!$I$2+VLOOKUP('Random Years'!CF8,'Hist Returns'!$A$12:$D$107,2,FALSE))","v":{"v":1612393.6308022833,"d":"1,612,394"}},{"$f":"($A8-$A7)/365.25*(CI7+Main!$I14)*(1+Main!$I$2+VLOOKUP('Random Years'!CG8,'Hist Returns'!$A$12:$D$107,2,FALSE))","v":{"v":826284.383355202,"d":"826,284"}},{"$f":"($A8-$A7)/365.25*(CJ7+Main!$I14)*(1+Main!$I$2+VLOOKUP('Random Years'!CH8,'Hist Returns'!$A$12:$D$107,2,FALSE))","v":{"v":2011722.5379982323,"d":"2,011,723"}},{"$f":"($A8-$A7)/365.25*(CK7+Main!$I14)*(1+Main!$I$2+VLOOKUP('Random Years'!CI8,'Hist Returns'!$A$12:$D$107,2,FALSE))","v":{"v":661743.3489537159,"d":"661,743"}},{"$f":"($A8-$A7)/365.25*(CL7+Main!$I14)*(1+Main!$I$2+VLOOKUP('Random Years'!CJ8,'Hist Returns'!$A$12:$D$107,2,FALSE))","v":{"v":1708317.0612309524,"d":"1,708,317"}},{"$f":"($A8-$A7)/365.25*(CM7+Main!$I14)*(1+Main!$I$2+VLOOKUP('Random Years'!CK8,'Hist Returns'!$A$12:$D$107,2,FALSE))","v":{"v":2105340.3511591586,"d":"2,105,340"}},{"$f":"($A8-$A7)/365.25*(CN7+Main!$I14)*(1+Main!$I$2+VLOOKUP('Random Years'!CL8,'Hist Returns'!$A$12:$D$107,2,FALSE))","v":{"v":1300737.707556973,"d":"1,300,738"}},{"$f":"($A8-$A7)/365.25*(CO7+Main!$I14)*(1+Main!$I$2+VLOOKUP('Random Years'!CM8,'Hist Returns'!$A$12:$D$107,2,FALSE))","v":{"v":2918565.941395337,"d":"2,918,566"}},{"$f":"($A8-$A7)/365.25*(CP7+Main!$I14)*(1+Main!$I$2+VLOOKUP('Random Years'!CN8,'Hist Returns'!$A$12:$D$107,2,FALSE))","v":{"v":984736.834952056,"d":"984,737"}},{"$f":"($A8-$A7)/365.25*(CQ7+Main!$I14)*(1+Main!$I$2+VLOOKUP('Random Years'!CO8,'Hist Returns'!$A$12:$D$107,2,FALSE))","v":{"v":793831.7791762251,"d":"793,832"}},{"$f":"($A8-$A7)/365.25*(CR7+Main!$I14)*(1+Main!$I$2+VLOOKUP('Random Years'!CP8,'Hist Returns'!$A$12:$D$107,2,FALSE))","v":{"v":1923706.0704100947,"d":"1,923,706"}},{"$f":"($A8-$A7)/365.25*(CS7+Main!$I14)*(1+Main!$I$2+VLOOKUP('Random Years'!CQ8,'Hist Returns'!$A$12:$D$107,2,FALSE))","v":{"v":1785558.0313904544,"d":"1,785,558"}},{"$f":"($A8-$A7)/365.25*(CT7+Main!$I14)*(1+Main!$I$2+VLOOKUP('Random Years'!CR8,'Hist Returns'!$A$12:$D$107,2,FALSE))","v":{"v":764226.2873206253,"d":"764,226"}},{"$f":"($A8-$A7)/365.25*(CU7+Main!$I14)*(1+Main!$I$2+VLOOKUP('Random Years'!CS8,'Hist Returns'!$A$12:$D$107,2,FALSE))","v":{"v":2425633.8262999137,"d":"2,425,634"}},{"$f":"($A8-$A7)/365.25*(CV7+Main!$I14)*(1+Main!$I$2+VLOOKUP('Random Years'!CT8,'Hist Returns'!$A$12:$D$107,2,FALSE))","v":{"v":1427260.0925492859,"d":"1,427,260"}},{"$f":"($A8-$A7)/365.25*(CW7+Main!$I14)*(1+Main!$I$2+VLOOKUP('Random Years'!CU8,'Hist Returns'!$A$12:$D$107,2,FALSE))","v":{"v":473609.9813943182,"d":"473,610"}},{"$f":"($A8-$A7)/365.25*(CX7+Main!$I14)*(1+Main!$I$2+VLOOKUP('Random Years'!CV8,'Hist Returns'!$A$12:$D$107,2,FALSE))","v":{"v":1410737.5418449803,"d":"1,410,738"}}]
[{"$f":"Main!A15","v":"2030-12-30"},{"$f":"Main!B15","v":76},{"$f":"($A9-$A8)/365.25*(C8+Main!$I15)*(1+Main!$I$2+VLOOKUP('Random Years'!A9,'Hist Returns'!$A$12:$D$107,2,FALSE))","v":{"v":763088.1203068066,"d":"763,088"}},{"$f":"($A9-$A8)/365.25*(D8+Main!$I15)*(1+Main!$I$2+VLOOKUP('Random Years'!B9,'Hist Returns'!$A$12:$D$107,2,FALSE))","v":{"v":865068.2017270025,"d":"865,068"}},{"$f":"($A9-$A8)/365.25*(E8+Main!$I15)*(1+Main!$I$2+VLOOKUP('Random Years'!C9,'Hist Returns'!$A$12:$D$107,2,FALSE))","v":{"v":2564043.1641986924,"d":"2,564,043"}},{"$f":"($A9-$A8)/365.25*(F8+Main!$I15)*(1+Main!$I$2+VLOOKUP('Random Years'!D9,'Hist Returns'!$A$12:$D$107,2,FALSE))","v":{"v":2690269.8770585502,"d":"2,690,270"}},{"$f":"($A9-$A8)/365.25*(G8+Main!$I15)*(1+Main!$I$2+VLOOKUP('Random Years'!E9,'Hist Returns'!$A$12:$D$107,2,FALSE))","v":{"v":2079844.724329171,"d":"2,079,845"}},{"$f":"($A9-$A8)/365.25*(H8+Main!$I15)*(1+Main!$I$2+VLOOKUP('Random Years'!F9,'Hist Returns'!$A$12:$D$107,2,FALSE))","v":{"v":1181270.5783555966,"d":"1,181,271"}},{"$f":"($A9-$A8)/365.25*(I8+Main!$I15)*(1+Main!$I$2+VLOOKUP('Random Years'!G9,'Hist Returns'!$A$12:$D$107,2,FALSE))","v":{"v":1025166.0805876217,"d":"1,025,166"}},{"$f":"($A9-$A8)/365.25*(J8+Main!$I15)*(1+Main!$I$2+VLOOKUP('Random Years'!H9,'Hist Returns'!$A$12:$D$107,2,FALSE))","v":{"v":688037.5242992083,"d":"688,038"}},{"$f":"($A9-$A8)/365.25*(K8+Main!$I15)*(1+Main!$I$2+VLOOKUP('Random Years'!I9,'Hist Returns'!$A$12:$D$107,2,FALSE))","v":{"v":2152438.583794886,"d":"2,152,439"}},{"$f":"($A9-$A8)/365.25*(L8+Main!$I15)*(1+Main!$I$2+VLOOKUP('Random Years'!J9,'Hist Returns'!$A$12:$D$107,2,FALSE))","v":{"v":1472524.7136492194,"d":"1,472,525"}},{"$f":"($A9-$A8)/365.25*(M8+Main!$I15)*(1+Main!$I$2+VLOOKUP('Random Years'!K9,'Hist Returns'!$A$12:$D$107,2,FALSE))","v":{"v":1545830.6890707111,"d":"1,545,831"}},{"$f":"($A9-$A8)/365.25*(N8+Main!$I15)*(1+Main!$I$2+VLOOKUP('Random Years'!L9,'Hist Returns'!$A$12:$D$107,2,FALSE))","v":{"v":375779.9241614797,"d":"375,780"}},{"$f":"($A9-$A8)/365.25*(O8+Main!$I15)*(1+Main!$I$2+VLOOKUP('Random Years'!M9,'Hist Returns'!$A$12:$D$107,2,FALSE))","v":{"v":1148424.2802670551,"d":"1,148,424"}},{"$f":"($A9-$A8)/365.25*(P8+Main!$I15)*(1+Main!$I$2+VLOOKUP('Random Years'!N9,'Hist Returns'!$A$12:$D$107,2,FALSE))","v":{"v":667134.0373329282,"d":"667,134"}},{"$f":"($A9-$A8)/365.25*(Q8+Main!$I15)*(1+Main!$I$2+VLOOKUP('Random Years'!O9,'Hist Returns'!$A$12:$D$107,2,FALSE))","v":{"v":716611.881809149,"d":"716,612"}},{"$f":"($A9-$A8)/365.25*(R8+Main!$I15)*(1+Main!$I$2+VLOOKUP('Random Years'!P9,'Hist Returns'!$A$12:$D$107,2,FALSE))","v":{"v":611037.4848817287,"d":"611,037"}},{"$f":"($A9-$A8)/365.25*(S8+Main!$I15)*(1+Main!$I$2+VLOOKUP('Random Years'!Q9,'Hist Returns'!$A$12:$D$107,2,FALSE))","v":{"v":1486791.8080157368,"d":"1,486,792"}},{"$f":"($A9-$A8)/365.25*(T8+Main!$I15)*(1+Main!$I$2+VLOOKUP('Random Years'!R9,'Hist Returns'!$A$12:$D$107,2,FALSE))","v":{"v":765448.2152979904,"d":"765,448"}},{"$f":"($A9-$A8)/365.25*(U8+Main!$I15)*(1+Main!$I$2+VLOOKUP('Random Years'!S9,'Hist Returns'!$A$12:$D$107,2,FALSE))","v":{"v":716467.3895022438,"d":"716,467"}},{"$f":"($A9-$A8)/365.25*(V8+Main!$I15)*(1+Main!$I$2+VLOOKUP('Random Years'!T9,'Hist Returns'!$A$12:$D$107,2,FALSE))","v":{"v":2188243.3492838643,"d":"2,188,243"}},{"$f":"($A9-$A8)/365.25*(W8+Main!$I15)*(1+Main!$I$2+VLOOKUP('Random Years'!U9,'Hist Returns'!$A$12:$D$107,2,FALSE))","v":{"v":1485927.829332054,"d":"1,485,928"}},{"$f":"($A9-$A8)/365.25*(X8+Main!$I15)*(1+Main!$I$2+VLOOKUP('Random Years'!V9,'Hist Returns'!$A$12:$D$107,2,FALSE))","v":{"v":702451.0459558174,"d":"702,451"}},{"$f":"($A9-$A8)/365.25*(Y8+Main!$I15)*(1+Main!$I$2+VLOOKUP('Random Years'!W9,'Hist Returns'!$A$12:$D$107,2,FALSE))","v":{"v":905184.3295836432,"d":"905,184"}},{"$f":"($A9-$A8)/365.25*(Z8+Main!$I15)*(1+Main!$I$2+VLOOKUP('Random Years'!X9,'Hist Returns'!$A$12:$D$107,2,FALSE))","v":{"v":728027.1394761543,"d":"728,027"}},{"$f":"($A9-$A8)/365.25*(AA8+Main!$I15)*(1+Main!$I$2+VLOOKUP('Random Years'!Y9,'Hist Returns'!$A$12:$D$107,2,FALSE))","v":{"v":953049.6288839739,"d":"953,050"}},{"$f":"($A9-$A8)/365.25*(AB8+Main!$I15)*(1+Main!$I$2+VLOOKUP('Random Years'!Z9,'Hist Returns'!$A$12:$D$107,2,FALSE))","v":{"v":1047776.9638082278,"d":"1,047,777"}},{"$f":"($A9-$A8)/365.25*(AC8+Main!$I15)*(1+Main!$I$2+VLOOKUP('Random Years'!AA9,'Hist Returns'!$A$12:$D$107,2,FALSE))","v":{"v":1217247.2871446968,"d":"1,217,247"}},{"$f":"($A9-$A8)/365.25*(AD8+Main!$I15)*(1+Main!$I$2+VLOOKUP('Random Years'!AB9,'Hist Returns'!$A$12:$D$107,2,FALSE))","v":{"v":940595.3506006423,"d":"940,595"}},{"$f":"($A9-$A8)/365.25*(AE8+Main!$I15)*(1+Main!$I$2+VLOOKUP('Random Years'!AC9,'Hist Returns'!$A$12:$D$107,2,FALSE))","v":{"v":361328.93520562374,"d":"361,329"}},{"$f":"($A9-$A8)/365.25*(AF8+Main!$I15)*(1+Main!$I$2+VLOOKUP('Random Years'!AD9,'Hist Returns'!$A$12:$D$107,2,FALSE))","v":{"v":3100949.0259638927,"d":"3,100,949"}},{"$f":"($A9-$A8)/365.25*(AG8+Main!$I15)*(1+Main!$I$2+VLOOKUP('Random Years'!AE9,'Hist Returns'!$A$12:$D$107,2,FALSE))","v":{"v":2404020.7271650615,"d":"2,404,021"}},{"$f":"($A9-$A8)/365.25*(AH8+Main!$I15)*(1+Main!$I$2+VLOOKUP('Random Years'!AF9,'Hist Returns'!$A$12:$D$107,2,FALSE))","v":{"v":1120817.876495934,"d":"1,120,818"}},{"$f":"($A9-$A8)/365.25*(AI8+Main!$I15)*(1+Main!$I$2+VLOOKUP('Random Years'!AG9,'Hist Returns'!$A$12:$D$107,2,FALSE))","v":{"v":2089345.6953940552,"d":"2,089,346"}},{"$f":"($A9-$A8)/365.25*(AJ8+Main!$I15)*(1+Main!$I$2+VLOOKUP('Random Years'!AH9,'Hist Returns'!$A$12:$D$107,2,FALSE))","v":{"v":1291492.4814432014,"d":"1,291,492"}},{"$f":"($A9-$A8)/365.25*(AK8+Main!$I15)*(1+Main!$I$2+VLOOKUP('Random Years'!AI9,'Hist Returns'!$A$12:$D$107,2,FALSE))","v":{"v":1069615.7950688987,"d":"1,069,616"}},{"$f":"($A9-$A8)/365.25*(AL8+Main!$I15)*(1+Main!$I$2+VLOOKUP('Random Years'!AJ9,'Hist Returns'!$A$12:$D$107,2,FALSE))","v":{"v":1810999.7380399453,"d":"1,811,000"}},{"$f":"($A9-$A8)/365.25*(AM8+Main!$I15)*(1+Main!$I$2+VLOOKUP('Random Years'!AK9,'Hist Returns'!$A$12:$D$107,2,FALSE))","v":{"v":403707.57361622376,"d":"403,708"}},{"$f":"($A9-$A8)/365.25*(AN8+Main!$I15)*(1+Main!$I$2+VLOOKUP('Random Years'!AL9,'Hist Returns'!$A$12:$D$107,2,FALSE))","v":{"v":1785580.3427341734,"d":"1,785,580"}},{"$f":"($A9-$A8)/365.25*(AO8+Main!$I15)*(1+Main!$I$2+VLOOKUP('Random Years'!AM9,'Hist Returns'!$A$12:$D$107,2,FALSE))","v":{"v":965007.7980062176,"d":"965,008"}},{"$f":"($A9-$A8)/365.25*(AP8+Main!$I15)*(1+Main!$I$2+VLOOKUP('Random Years'!AN9,'Hist Returns'!$A$12:$D$107,2,FALSE))","v":{"v":1503337.744068855,"d":"1,503,338"}},{"$f":"($A9-$A8)/365.25*(AQ8+Main!$I15)*(1+Main!$I$2+VLOOKUP('Random Years'!AO9,'Hist Returns'!$A$12:$D$107,2,FALSE))","v":{"v":1154036.608153338,"d":"1,154,037"}},{"$f":"($A9-$A8)/365.25*(AR8+Main!$I15)*(1+Main!$I$2+VLOOKUP('Random Years'!AP9,'Hist Returns'!$A$12:$D$107,2,FALSE))","v":{"v":1682938.072943717,"d":"1,682,938"}},{"$f":"($A9-$A8)/365.25*(AS8+Main!$I15)*(1+Main!$I$2+VLOOKUP('Random Years'!AQ9,'Hist Returns'!$A$12:$D$107,2,FALSE))","v":{"v":656822.0534915584,"d":"656,822"}},{"$f":"($A9-$A8)/365.25*(AT8+Main!$I15)*(1+Main!$I$2+VLOOKUP('Random Years'!AR9,'Hist Returns'!$A$12:$D$107,2,FALSE))","v":{"v":720973.9099797882,"d":"720,974"}},{"$f":"($A9-$A8)/365.25*(AU8+Main!$I15)*(1+Main!$I$2+VLOOKUP('Random Years'!AS9,'Hist Returns'!$A$12:$D$107,2,FALSE))","v":{"v":1786831.1534704792,"d":"1,786,831"}},{"$f":"($A9-$A8)/365.25*(AV8+Main!$I15)*(1+Main!$I$2+VLOOKUP('Random Years'!AT9,'Hist Returns'!$A$12:$D$107,2,FALSE))","v":{"v":935696.674118542,"d":"935,697"}},{"$f":"($A9-$A8)/365.25*(AW8+Main!$I15)*(1+Main!$I$2+VLOOKUP('Random Years'!AU9,'Hist Returns'!$A$12:$D$107,2,FALSE))","v":{"v":576625.4825124854,"d":"576,625"}},{"$f":"($A9-$A8)/365.25*(AX8+Main!$I15)*(1+Main!$I$2+VLOOKUP('Random Years'!AV9,'Hist Returns'!$A$12:$D$107,2,FALSE))","v":{"v":2024692.6385663007,"d":"2,024,693"}},{"$f":"($A9-$A8)/365.25*(AY8+Main!$I15)*(1+Main!$I$2+VLOOKUP('Random Years'!AW9,'Hist Returns'!$A$12:$D$107,2,FALSE))","v":{"v":1578455.1349015762,"d":"1,578,455"}},{"$f":"($A9-$A8)/365.25*(AZ8+Main!$I15)*(1+Main!$I$2+VLOOKUP('Random Years'!AX9,'Hist Returns'!$A$12:$D$107,2,FALSE))","v":{"v":768916.4620444283,"d":"768,916"}},{"$f":"($A9-$A8)/365.25*(BA8+Main!$I15)*(1+Main!$I$2+VLOOKUP('Random Years'!AY9,'Hist Returns'!$A$12:$D$107,2,FALSE))","v":{"v":296249.194147633,"d":"296,249"}},{"$f":"($A9-$A8)/365.25*(BB8+Main!$I15)*(1+Main!$I$2+VLOOKUP('Random Years'!AZ9,'Hist Returns'!$A$12:$D$107,2,FALSE))","v":{"v":1091291.184519757,"d":"1,091,291"}},{"$f":"($A9-$A8)/365.25*(BC8+Main!$I15)*(1+Main!$I$2+VLOOKUP('Random Years'!BA9,'Hist Returns'!$A$12:$D$107,2,FALSE))","v":{"v":1276879.2488854164,"d":"1,276,879"}},{"$f":"($A9-$A8)/365.25*(BD8+Main!$I15)*(1+Main!$I$2+VLOOKUP('Random Years'!BB9,'Hist Returns'!$A$12:$D$107,2,FALSE))","v":{"v":2423294.7474479475,"d":"2,423,295"}},{"$f":"($A9-$A8)/365.25*(BE8+Main!$I15)*(1+Main!$I$2+VLOOKUP('Random Years'!BC9,'Hist Returns'!$A$12:$D$107,2,FALSE))","v":{"v":771500.525445935,"d":"771,501"}},{"$f":"($A9-$A8)/365.25*(BF8+Main!$I15)*(1+Main!$I$2+VLOOKUP('Random Years'!BD9,'Hist Returns'!$A$12:$D$107,2,FALSE))","v":{"v":517692.66995946196,"d":"517,693"}},{"$f":"($A9-$A8)/365.25*(BG8+Main!$I15)*(1+Main!$I$2+VLOOKUP('Random Years'!BE9,'Hist Returns'!$A$12:$D$107,2,FALSE))","v":{"v":747695.703152211,"d":"747,696"}},{"$f":"($A9-$A8)/365.25*(BH8+Main!$I15)*(1+Main!$I$2+VLOOKUP('Random Years'!BF9,'Hist Returns'!$A$12:$D$107,2,FALSE))","v":{"v":763647.2241095386,"d":"763,647"}},{"$f":"($A9-$A8)/365.25*(BI8+Main!$I15)*(1+Main!$I$2+VLOOKUP('Random Years'!BG9,'Hist Returns'!$A$12:$D$107,2,FALSE))","v":{"v":2310150.779925481,"d":"2,310,151"}},{"$f":"($A9-$A8)/365.25*(BJ8+Main!$I15)*(1+Main!$I$2+VLOOKUP('Random Years'!BH9,'Hist Returns'!$A$12:$D$107,2,FALSE))","v":{"v":1006058.5994125394,"d":"1,006,059"}},{"$f":"($A9-$A8)/365.25*(BK8+Main!$I15)*(1+Main!$I$2+VLOOKUP('Random Years'!BI9,'Hist Returns'!$A$12:$D$107,2,FALSE))","v":{"v":854810.2027656168,"d":"854,810"}},{"$f":"($A9-$A8)/365.25*(BL8+Main!$I15)*(1+Main!$I$2+VLOOKUP('Random Years'!BJ9,'Hist Returns'!$A$12:$D$107,2,FALSE))","v":{"v":1156467.4224153864,"d":"1,156,467"}},{"$f":"($A9-$A8)/365.25*(BM8+Main!$I15)*(1+Main!$I$2+VLOOKUP('Random Years'!BK9,'Hist Returns'!$A$12:$D$107,2,FALSE))","v":{"v":550041.4581532195,"d":"550,041"}},{"$f":"($A9-$A8)/365.25*(BN8+Main!$I15)*(1+Main!$I$2+VLOOKUP('Random Years'!BL9,'Hist Returns'!$A$12:$D$107,2,FALSE))","v":{"v":1293899.4928998996,"d":"1,293,899"}},{"$f":"($A9-$A8)/365.25*(BO8+Main!$I15)*(1+Main!$I$2+VLOOKUP('Random Years'!BM9,'Hist Returns'!$A$12:$D$107,2,FALSE))","v":{"v":839623.9294427347,"d":"839,624"}},{"$f":"($A9-$A8)/365.25*(BP8+Main!$I15)*(1+Main!$I$2+VLOOKUP('Random Years'!BN9,'Hist Returns'!$A$12:$D$107,2,FALSE))","v":{"v":1598027.978366509,"d":"1,598,028"}},{"$f":"($A9-$A8)/365.25*(BQ8+Main!$I15)*(1+Main!$I$2+VLOOKUP('Random Years'!BO9,'Hist Returns'!$A$12:$D$107,2,FALSE))","v":{"v":1744083.7215639534,"d":"1,744,084"}},{"$f":"($A9-$A8)/365.25*(BR8+Main!$I15)*(1+Main!$I$2+VLOOKUP('Random Years'!BP9,'Hist Returns'!$A$12:$D$107,2,FALSE))","v":{"v":2821817.1097051576,"d":"2,821,817"}},{"$f":"($A9-$A8)/365.25*(BS8+Main!$I15)*(1+Main!$I$2+VLOOKUP('Random Years'!BQ9,'Hist Returns'!$A$12:$D$107,2,FALSE))","v":{"v":1294310.7987099455,"d":"1,294,311"}},{"$f":"($A9-$A8)/365.25*(BT8+Main!$I15)*(1+Main!$I$2+VLOOKUP('Random Years'!BR9,'Hist Returns'!$A$12:$D$107,2,FALSE))","v":{"v":881620.6924603865,"d":"881,621"}},{"$f":"($A9-$A8)/365.25*(BU8+Main!$I15)*(1+Main!$I$2+VLOOKUP('Random Years'!BS9,'Hist Returns'!$A$12:$D$107,2,FALSE))","v":{"v":523551.49561000604,"d":"523,551"}},{"$f":"($A9-$A8)/365.25*(BV8+Main!$I15)*(1+Main!$I$2+VLOOKUP('Random Years'!BT9,'Hist Returns'!$A$12:$D$107,2,FALSE))","v":{"v":1237558.2218121404,"d":"1,237,558"}},{"$f":"($A9-$A8)/365.25*(BW8+Main!$I15)*(1+Main!$I$2+VLOOKUP('Random Years'!BU9,'Hist Returns'!$A$12:$D$107,2,FALSE))","v":{"v":617852.9136002072,"d":"617,853"}},{"$f":"($A9-$A8)/365.25*(BX8+Main!$I15)*(1+Main!$I$2+VLOOKUP('Random Years'!BV9,'Hist Returns'!$A$12:$D$107,2,FALSE))","v":{"v":1110232.0058230676,"d":"1,110,232"}},{"$f":"($A9-$A8)/365.25*(BY8+Main!$I15)*(1+Main!$I$2+VLOOKUP('Random Years'!BW9,'Hist Returns'!$A$12:$D$107,2,FALSE))","v":{"v":1927883.110206571,"d":"1,927,883"}},{"$f":"($A9-$A8)/365.25*(BZ8+Main!$I15)*(1+Main!$I$2+VLOOKUP('Random Years'!BX9,'Hist Returns'!$A$12:$D$107,2,FALSE))","v":{"v":862924.898421385,"d":"862,925"}},{"$f":"($A9-$A8)/365.25*(CA8+Main!$I15)*(1+Main!$I$2+VLOOKUP('Random Years'!BY9,'Hist Returns'!$A$12:$D$107,2,FALSE))","v":{"v":1692362.4740049816,"d":"1,692,362"}},{"$f":"($A9-$A8)/365.25*(CB8+Main!$I15)*(1+Main!$I$2+VLOOKUP('Random Years'!BZ9,'Hist Returns'!$A$12:$D$107,2,FALSE))","v":{"v":454310.16567612014,"d":"454,310"}},{"$f":"($A9-$A8)/365.25*(CC8+Main!$I15)*(1+Main!$I$2+VLOOKUP('Random Years'!CA9,'Hist Returns'!$A$12:$D$107,2,FALSE))","v":{"v":1225794.8613215727,"d":"1,225,795"}},{"$f":"($A9-$A8)/365.25*(CD8+Main!$I15)*(1+Main!$I$2+VLOOKUP('Random Years'!CB9,'Hist Returns'!$A$12:$D$107,2,FALSE))","v":{"v":1662486.1248238152,"d":"1,662,486"}},{"$f":"($A9-$A8)/365.25*(CE8+Main!$I15)*(1+Main!$I$2+VLOOKUP('Random Years'!CC9,'Hist Returns'!$A$12:$D$107,2,FALSE))","v":{"v":2277876.24289268,"d":"2,277,876"}},{"$f":"($A9-$A8)/365.25*(CF8+Main!$I15)*(1+Main!$I$2+VLOOKUP('Random Years'!CD9,'Hist Returns'!$A$12:$D$107,2,FALSE))","v":{"v":1031385.8908995711,"d":"1,031,386"}},{"$f":"($A9-$A8)/365.25*(CG8+Main!$I15)*(1+Main!$I$2+VLOOKUP('Random Years'!CE9,'Hist Returns'!$A$12:$D$107,2,FALSE))","v":{"v":1522757.912567035,"d":"1,522,758"}},{"$f":"($A9-$A8)/365.25*(CH8+Main!$I15)*(1+Main!$I$2+VLOOKUP('Random Years'!CF9,'Hist Returns'!$A$12:$D$107,2,FALSE))","v":{"v":1660044.8822094745,"d":"1,660,045"}},{"$f":"($A9-$A8)/365.25*(CI8+Main!$I15)*(1+Main!$I$2+VLOOKUP('Random Years'!CG9,'Hist Returns'!$A$12:$D$107,2,FALSE))","v":{"v":506261.63983738306,"d":"506,262"}},{"$f":"($A9-$A8)/365.25*(CJ8+Main!$I15)*(1+Main!$I$2+VLOOKUP('Random Years'!CH9,'Hist Returns'!$A$12:$D$107,2,FALSE))","v":{"v":2196956.6578386296,"d":"2,196,957"}},{"$f":"($A9-$A8)/365.25*(CK8+Main!$I15)*(1+Main!$I$2+VLOOKUP('Random Years'!CI9,'Hist Returns'!$A$12:$D$107,2,FALSE))","v":{"v":825026.9890633449,"d":"825,027"}},{"$f":"($A9-$A8)/365.25*(CL8+Main!$I15)*(1+Main!$I$2+VLOOKUP('Random Years'!CJ9,'Hist Returns'!$A$12:$D$107,2,FALSE))","v":{"v":1876504.710358045,"d":"1,876,505"}},{"$f":"($A9-$A8)/365.25*(CM8+Main!$I15)*(1+Main!$I$2+VLOOKUP('Random Years'!CK9,'Hist Returns'!$A$12:$D$107,2,FALSE))","v":{"v":2752854.0891017765,"d":"2,752,854"}},{"$f":"($A9-$A8)/365.25*(CN8+Main!$I15)*(1+Main!$I$2+VLOOKUP('Random Years'!CL9,'Hist Returns'!$A$12:$D$107,2,FALSE))","v":{"v":1745189.8023753613,"d":"1,745,190"}},{"$f":"($A9-$A8)/365.25*(CO8+Main!$I15)*(1+Main!$I$2+VLOOKUP('Random Years'!CM9,'Hist Returns'!$A$12:$D$107,2,FALSE))","v":{"v":2580454.913408026,"d":"2,580,455"}},{"$f":"($A9-$A8)/365.25*(CP8+Main!$I15)*(1+Main!$I$2+VLOOKUP('Random Years'!CN9,'Hist Returns'!$A$12:$D$107,2,FALSE))","v":{"v":606727.1940495414,"d":"606,727"}},{"$f":"($A9-$A8)/365.25*(CQ8+Main!$I15)*(1+Main!$I$2+VLOOKUP('Random Years'!CO9,'Hist Returns'!$A$12:$D$107,2,FALSE))","v":{"v":815317.6748853471,"d":"815,318"}},{"$f":"($A9-$A8)/365.25*(CR8+Main!$I15)*(1+Main!$I$2+VLOOKUP('Random Years'!CP9,'Hist Returns'!$A$12:$D$107,2,FALSE))","v":{"v":2890450.5061059133,"d":"2,890,451"}},{"$f":"($A9-$A8)/365.25*(CS8+Main!$I15)*(1+Main!$I$2+VLOOKUP('Random Years'!CQ9,'Hist Returns'!$A$12:$D$107,2,FALSE))","v":{"v":1315231.1999101492,"d":"1,315,231"}},{"$f":"($A9-$A8)/365.25*(CT8+Main!$I15)*(1+Main!$I$2+VLOOKUP('Random Years'!CR9,'Hist Returns'!$A$12:$D$107,2,FALSE))","v":{"v":856706.6300667501,"d":"856,707"}},{"$f":"($A9-$A8)/365.25*(CU8+Main!$I15)*(1+Main!$I$2+VLOOKUP('Random Years'!CS9,'Hist Returns'!$A$12:$D$107,2,FALSE))","v":{"v":2189088.7410846027,"d":"2,189,089"}},{"$f":"($A9-$A8)/365.25*(CV8+Main!$I15)*(1+Main!$I$2+VLOOKUP('Random Years'!CT9,'Hist Returns'!$A$12:$D$107,2,FALSE))","v":{"v":1502524.9500923008,"d":"1,502,525"}},{"$f":"($A9-$A8)/365.25*(CW8+Main!$I15)*(1+Main!$I$2+VLOOKUP('Random Years'!CU9,'Hist Returns'!$A$12:$D$107,2,FALSE))","v":{"v":640660.2227793995,"d":"640,660"}},{"$f":"($A9-$A8)/365.25*(CX8+Main!$I15)*(1+Main!$I$2+VLOOKUP('Random Years'!CV9,'Hist Returns'!$A$12:$D$107,2,FALSE))","v":{"v":1262538.1168694037,"d":"1,262,538"}}]
[{"$f":"Main!A16","v":"2031-12-31"},{"$f":"Main!B16","v":77},{"$f":"($A10-$A9)/365.25*(C9+Main!$I16)*(1+Main!$I$2+VLOOKUP('Random Years'!A10,'Hist Returns'!$A$12:$D$107,2,FALSE))","v":{"v":871979.59991764,"d":"871,980"}},{"$f":"($A10-$A9)/365.25*(D9+Main!$I16)*(1+Main!$I$2+VLOOKUP('Random Years'!B10,'Hist Returns'!$A$12:$D$107,2,FALSE))","v":{"v":1027385.2515967124,"d":"1,027,385"}},{"$f":"($A10-$A9)/365.25*(E9+Main!$I16)*(1+Main!$I$2+VLOOKUP('Random Years'!C10,'Hist Returns'!$A$12:$D$107,2,FALSE))","v":{"v":2320830.9713253216,"d":"2,320,831"}},{"$f":"($A10-$A9)/365.25*(F9+Main!$I16)*(1+Main!$I$2+VLOOKUP('Random Years'!D10,'Hist Returns'!$A$12:$D$107,2,FALSE))","v":{"v":3298338.589055735,"d":"3,298,339"}},{"$f":"($A10-$A9)/365.25*(G9+Main!$I16)*(1+Main!$I$2+VLOOKUP('Random Years'!E10,'Hist Returns'!$A$12:$D$107,2,FALSE))","v":{"v":1958544.2509335873,"d":"1,958,544"}},{"$f":"($A10-$A9)/365.25*(H9+Main!$I16)*(1+Main!$I$2+VLOOKUP('Random Years'!F10,'Hist Returns'!$A$12:$D$107,2,FALSE))","v":{"v":1428199.1962128133,"d":"1,428,199"}},{"$f":"($A10-$A9)/365.25*(I9+Main!$I16)*(1+Main!$I$2+VLOOKUP('Random Years'!G10,'Hist Returns'!$A$12:$D$107,2,FALSE))","v":{"v":870839.9484249725,"d":"870,840"}},{"$f":"($A10-$A9)/365.25*(J9+Main!$I16)*(1+Main!$I$2+VLOOKUP('Random Years'!H10,'Hist Returns'!$A$12:$D$107,2,FALSE))","v":{"v":566014.2432269386,"d":"566,014"}},{"$f":"($A10-$A9)/365.25*(K9+Main!$I16)*(1+Main!$I$2+VLOOKUP('Random Years'!I10,'Hist Returns'!$A$12:$D$107,2,FALSE))","v":{"v":2514170.4447327335,"d":"2,514,170"}},{"$f":"($A10-$A9)/365.25*(L9+Main!$I16)*(1+Main!$I$2+VLOOKUP('Random Years'!J10,'Hist Returns'!$A$12:$D$107,2,FALSE))","v":{"v":1721921.695208056,"d":"1,721,922"}},{"$f":"($A10-$A9)/365.25*(M9+Main!$I16)*(1+Main!$I$2+VLOOKUP('Random Years'!K10,'Hist Returns'!$A$12:$D$107,2,FALSE))","v":{"v":1988344.3883965388,"d":"1,988,344"}},{"$f":"($A10-$A9)/365.25*(N9+Main!$I16)*(1+Main!$I$2+VLOOKUP('Random Years'!L10,'Hist Returns'!$A$12:$D$107,2,FALSE))","v":{"v":370251.05084531126,"d":"370,251"}},{"$f":"($A10-$A9)/365.25*(O9+Main!$I16)*(1+Main!$I$2+VLOOKUP('Random Years'!M10,'Hist Returns'!$A$12:$D$107,2,FALSE))","v":{"v":1612328.2943263985,"d":"1,612,328"}},{"$f":"($A10-$A9)/365.25*(P9+Main!$I16)*(1+Main!$I$2+VLOOKUP('Random Years'!N10,'Hist Returns'!$A$12:$D$107,2,FALSE))","v":{"v":791906.3067760022,"d":"791,906"}},{"$f":"($A10-$A9)/365.25*(Q9+Main!$I16)*(1+Main!$I$2+VLOOKUP('Random Years'!O10,'Hist Returns'!$A$12:$D$107,2,FALSE))","v":{"v":445630.22093251883,"d":"445,630"}},{"$f":"($A10-$A9)/365.25*(R9+Main!$I16)*(1+Main!$I$2+VLOOKUP('Random Years'!P10,'Hist Returns'!$A$12:$D$107,2,FALSE))","v":{"v":646453.9060304717,"d":"646,454"}},{"$f":"($A10-$A9)/365.25*(S9+Main!$I16)*(1+Main!$I$2+VLOOKUP('Random Years'!Q10,'Hist Returns'!$A$12:$D$107,2,FALSE))","v":{"v":1531544.1672173436,"d":"1,531,544"}},{"$f":"($A10-$A9)/365.25*(T9+Main!$I16)*(1+Main!$I$2+VLOOKUP('Random Years'!R10,'Hist Returns'!$A$12:$D$107,2,FALSE))","v":{"v":904988.4533483352,"d":"904,988"}},{"$f":"($A10-$A9)/365.25*(U9+Main!$I16)*(1+Main!$I$2+VLOOKUP('Random Years'!S10,'Hist Returns'!$A$12:$D$107,2,FALSE))","v":{"v":656610.341580896,"d":"656,610"}},{"$f":"($A10-$A9)/365.25*(V9+Main!$I16)*(1+Main!$I$2+VLOOKUP('Random Years'!T10,'Hist Returns'!$A$12:$D$107,2,FALSE))","v":{"v":2563995.6267678062,"d":"2,563,996"}},{"$f":"($A10-$A9)/365.25*(W9+Main!$I16)*(1+Main!$I$2+VLOOKUP('Random Years'!U10,'Hist Returns'!$A$12:$D$107,2,FALSE))","v":{"v":1923401.4205460772,"d":"1,923,401"}},{"$f":"($A10-$A9)/365.25*(X9+Main!$I16)*(1+Main!$I$2+VLOOKUP('Random Years'!V10,'Hist Returns'!$A$12:$D$107,2,FALSE))","v":{"v":754206.0808832148,"d":"754,206"}},{"$f":"($A10-$A9)/365.25*(Y9+Main!$I16)*(1+Main!$I$2+VLOOKUP('Random Years'!W10,'Hist Returns'!$A$12:$D$107,2,FALSE))","v":{"v":867677.773046642,"d":"867,678"}},{"$f":"($A10-$A9)/365.25*(Z9+Main!$I16)*(1+Main!$I$2+VLOOKUP('Random Years'!X10,'Hist Returns'!$A$12:$D$107,2,FALSE))","v":{"v":959779.4109743069,"d":"959,779"}},{"$f":"($A10-$A9)/365.25*(AA9+Main!$I16)*(1+Main!$I$2+VLOOKUP('Random Years'!Y10,'Hist Returns'!$A$12:$D$107,2,FALSE))","v":{"v":1063333.252722203,"d":"1,063,333"}},{"$f":"($A10-$A9)/365.25*(AB9+Main!$I16)*(1+Main!$I$2+VLOOKUP('Random Years'!Z10,'Hist Returns'!$A$12:$D$107,2,FALSE))","v":{"v":977790.3697311473,"d":"977,790"}},{"$f":"($A10-$A9)/365.25*(AC9+Main!$I16)*(1+Main!$I$2+VLOOKUP('Random Years'!AA10,'Hist Returns'!$A$12:$D$107,2,FALSE))","v":{"v":1092005.005247384,"d":"1,092,005"}},{"$f":"($A10-$A9)/365.25*(AD9+Main!$I16)*(1+Main!$I$2+VLOOKUP('Random Years'!AB10,'Hist Returns'!$A$12:$D$107,2,FALSE))","v":{"v":965715.3890836214,"d":"965,715"}},{"$f":"($A10-$A9)/365.25*(AE9+Main!$I16)*(1+Main!$I$2+VLOOKUP('Random Years'!AC10,'Hist Returns'!$A$12:$D$107,2,FALSE))","v":{"v":452477.8959245869,"d":"452,478"}},{"$f":"($A10-$A9)/365.25*(AF9+Main!$I16)*(1+Main!$I$2+VLOOKUP('Random Years'!AD10,'Hist Returns'!$A$12:$D$107,2,FALSE))","v":{"v":4055322.2491378156,"d":"4,055,322"}},{"$f":"($A10-$A9)/365.25*(AG9+Main!$I16)*(1+Main!$I$2+VLOOKUP('Random Years'!AE10,'Hist Returns'!$A$12:$D$107,2,FALSE))","v":{"v":2758229.344714771,"d":"2,758,229"}},{"$f":"($A10-$A9)/365.25*(AH9+Main!$I16)*(1+Main!$I$2+VLOOKUP('Random Years'!AF10,'Hist Returns'!$A$12:$D$107,2,FALSE))","v":{"v":1377972.0829979782,"d":"1,377,972"}},{"$f":"($A10-$A9)/365.25*(AI9+Main!$I16)*(1+Main!$I$2+VLOOKUP('Random Years'!AG10,'Hist Returns'!$A$12:$D$107,2,FALSE))","v":{"v":2042046.1502251627,"d":"2,042,046"}},{"$f":"($A10-$A9)/365.25*(AJ9+Main!$I16)*(1+Main!$I$2+VLOOKUP('Random Years'!AH10,'Hist Returns'!$A$12:$D$107,2,FALSE))","v":{"v":1538629.3430975995,"d":"1,538,629"}},{"$f":"($A10-$A9)/365.25*(AK9+Main!$I16)*(1+Main!$I$2+VLOOKUP('Random Years'!AI10,'Hist Returns'!$A$12:$D$107,2,FALSE))","v":{"v":1172193.5481886603,"d":"1,172,194"}},{"$f":"($A10-$A9)/365.25*(AL9+Main!$I16)*(1+Main!$I$2+VLOOKUP('Random Years'!AJ10,'Hist Returns'!$A$12:$D$107,2,FALSE))","v":{"v":2064597.6641168988,"d":"2,064,598"}},{"$f":"($A10-$A9)/365.25*(AM9+Main!$I16)*(1+Main!$I$2+VLOOKUP('Random Years'!AK10,'Hist Returns'!$A$12:$D$107,2,FALSE))","v":{"v":397441.32399867126,"d":"397,441"}},{"$f":"($A10-$A9)/365.25*(AN9+Main!$I16)*(1+Main!$I$2+VLOOKUP('Random Years'!AL10,'Hist Returns'!$A$12:$D$107,2,FALSE))","v":{"v":1868510.229331469,"d":"1,868,510"}},{"$f":"($A10-$A9)/365.25*(AO9+Main!$I16)*(1+Main!$I$2+VLOOKUP('Random Years'!AM10,'Hist Returns'!$A$12:$D$107,2,FALSE))","v":{"v":860221.2475351461,"d":"860,221"}},{"$f":"($A10-$A9)/365.25*(AP9+Main!$I16)*(1+Main!$I$2+VLOOKUP('Random Years'!AN10,'Hist Returns'!$A$12:$D$107,2,FALSE))","v":{"v":1568305.4259913804,"d":"1,568,305"}},{"$f":"($A10-$A9)/365.25*(AQ9+Main!$I16)*(1+Main!$I$2+VLOOKUP('Random Years'!AO10,'Hist Returns'!$A$12:$D$107,2,FALSE))","v":{"v":983482.6590380216,"d":"983,483"}},{"$f":"($A10-$A9)/365.25*(AR9+Main!$I16)*(1+Main!$I$2+VLOOKUP('Random Years'!AP10,'Hist Returns'!$A$12:$D$107,2,FALSE))","v":{"v":1692245.3549386547,"d":"1,692,245"}},{"$f":"($A10-$A9)/365.25*(AS9+Main!$I16)*(1+Main!$I$2+VLOOKUP('Random Years'!AQ10,'Hist Returns'!$A$12:$D$107,2,FALSE))","v":{"v":779112.0526977644,"d":"779,112"}},{"$f":"($A10-$A9)/365.25*(AT9+Main!$I16)*(1+Main!$I$2+VLOOKUP('Random Years'!AR10,'Hist Returns'!$A$12:$D$107,2,FALSE))","v":{"v":630888.0496633351,"d":"630,888"}},{"$f":"($A10-$A9)/365.25*(AU9+Main!$I16)*(1+Main!$I$2+VLOOKUP('Random Years'!AS10,'Hist Returns'!$A$12:$D$107,2,FALSE))","v":{"v":2584938.0681747883,"d":"2,584,938"}},{"$f":"($A10-$A9)/365.25*(AV9+Main!$I16)*(1+Main!$I$2+VLOOKUP('Random Years'!AT10,'Hist Returns'!$A$12:$D$107,2,FALSE))","v":{"v":1037915.8758314652,"d":"1,037,916"}},{"$f":"($A10-$A9)/365.25*(AW9+Main!$I16)*(1+Main!$I$2+VLOOKUP('Random Years'!AU10,'Hist Returns'!$A$12:$D$107,2,FALSE))","v":{"v":654122.4251621359,"d":"654,122"}},{"$f":"($A10-$A9)/365.25*(AX9+Main!$I16)*(1+Main!$I$2+VLOOKUP('Random Years'!AV10,'Hist Returns'!$A$12:$D$107,2,FALSE))","v":{"v":1833969.3913115792,"d":"1,833,969"}},{"$f":"($A10-$A9)/365.25*(AY9+Main!$I16)*(1+Main!$I$2+VLOOKUP('Random Years'!AW10,'Hist Returns'!$A$12:$D$107,2,FALSE))","v":{"v":2048775.099366436,"d":"2,048,775"}},{"$f":"($A10-$A9)/365.25*(AZ9+Main!$I16)*(1+Main!$I$2+VLOOKUP('Random Years'!AX10,'Hist Returns'!$A$12:$D$107,2,FALSE))","v":{"v":882692.2978791572,"d":"882,692"}},{"$f":"($A10-$A9)/365.25*(BA9+Main!$I16)*(1+Main!$I$2+VLOOKUP('Random Years'!AY10,'Hist Returns'!$A$12:$D$107,2,FALSE))","v":{"v":236180.25988159407,"d":"236,180"}},{"$f":"($A10-$A9)/365.25*(BB9+Main!$I16)*(1+Main!$I$2+VLOOKUP('Random Years'!AZ10,'Hist Returns'!$A$12:$D$107,2,FALSE))","v":{"v":1126486.2006782398,"d":"1,126,486"}},{"$f":"($A10-$A9)/365.25*(BC9+Main!$I16)*(1+Main!$I$2+VLOOKUP('Random Years'!BA10,'Hist Returns'!$A$12:$D$107,2,FALSE))","v":{"v":1344287.4278828262,"d":"1,344,287"}},{"$f":"($A10-$A9)/365.25*(BD9+Main!$I16)*(1+Main!$I$2+VLOOKUP('Random Years'!BB10,'Hist Returns'!$A$12:$D$107,2,FALSE))","v":{"v":2967469.8423152394,"d":"2,967,470"}},{"$f":"($A10-$A9)/365.25*(BE9+Main!$I16)*(1+Main!$I$2+VLOOKUP('Random Years'!BC10,'Hist Returns'!$A$12:$D$107,2,FALSE))","v":{"v":981226.7970229232,"d":"981,227"}},{"$f":"($A10-$A9)/365.25*(BF9+Main!$I16)*(1+Main!$I$2+VLOOKUP('Random Years'!BD10,'Hist Returns'!$A$12:$D$107,2,FALSE))","v":{"v":310784.0116289574,"d":"310,784"}},{"$f":"($A10-$A9)/365.25*(BG9+Main!$I16)*(1+Main!$I$2+VLOOKUP('Random Years'!BE10,'Hist Returns'!$A$12:$D$107,2,FALSE))","v":{"v":745953.7560133954,"d":"745,954"}},{"$f":"($A10-$A9)/365.25*(BH9+Main!$I16)*(1+Main!$I$2+VLOOKUP('Random Years'!BF10,'Hist Returns'!$A$12:$D$107,2,FALSE))","v":{"v":868892.2976571821,"d":"868,892"}},{"$f":"($A10-$A9)/365.25*(BI9+Main!$I16)*(1+Main!$I$2+VLOOKUP('Random Years'!BG10,'Hist Returns'!$A$12:$D$107,2,FALSE))","v":{"v":3104823.992670384,"d":"3,104,824"}},{"$f":"($A10-$A9)/365.25*(BJ9+Main!$I16)*(1+Main!$I$2+VLOOKUP('Random Years'!BH10,'Hist Returns'!$A$12:$D$107,2,FALSE))","v":{"v":1179138.7482240922,"d":"1,179,139"}},{"$f":"($A10-$A9)/365.25*(BK9+Main!$I16)*(1+Main!$I$2+VLOOKUP('Random Years'!BI10,'Hist Returns'!$A$12:$D$107,2,FALSE))","v":{"v":1077871.9820843094,"d":"1,077,872"}},{"$f":"($A10-$A9)/365.25*(BL9+Main!$I16)*(1+Main!$I$2+VLOOKUP('Random Years'!BJ10,'Hist Returns'!$A$12:$D$107,2,FALSE))","v":{"v":1346560.8152101606,"d":"1,346,561"}},{"$f":"($A10-$A9)/365.25*(BM9+Main!$I16)*(1+Main!$I$2+VLOOKUP('Random Years'!BK10,'Hist Returns'!$A$12:$D$107,2,FALSE))","v":{"v":550886.2514834625,"d":"550,886"}},{"$f":"($A10-$A9)/365.25*(BN9+Main!$I16)*(1+Main!$I$2+VLOOKUP('Random Years'!BL10,'Hist Returns'!$A$12:$D$107,2,FALSE))","v":{"v":1505376.338781007,"d":"1,505,376"}},{"$f":"($A10-$A9)/365.25*(BO9+Main!$I16)*(1+Main!$I$2+VLOOKUP('Random Years'!BM10,'Hist Returns'!$A$12:$D$107,2,FALSE))","v":{"v":1167609.2596192409,"d":"1,167,609"}},{"$f":"($A10-$A9)/365.25*(BP9+Main!$I16)*(1+Main!$I$2+VLOOKUP('Random Years'!BN10,'Hist Returns'!$A$12:$D$107,2,FALSE))","v":{"v":1912172.6184374678,"d":"1,912,173"}},{"$f":"($A10-$A9)/365.25*(BQ9+Main!$I16)*(1+Main!$I$2+VLOOKUP('Random Years'!BO10,'Hist Returns'!$A$12:$D$107,2,FALSE))","v":{"v":2037037.999847327,"d":"2,037,038"}},{"$f":"($A10-$A9)/365.25*(BR9+Main!$I16)*(1+Main!$I$2+VLOOKUP('Random Years'!BP10,'Hist Returns'!$A$12:$D$107,2,FALSE))","v":{"v":2970694.1530671413,"d":"2,970,694"}},{"$f":"($A10-$A9)/365.25*(BS9+Main!$I16)*(1+Main!$I$2+VLOOKUP('Random Years'!BQ10,'Hist Returns'!$A$12:$D$107,2,FALSE))","v":{"v":1350580.5798201042,"d":"1,350,581"}},{"$f":"($A10-$A9)/365.25*(BT9+Main!$I16)*(1+Main!$I$2+VLOOKUP('Random Years'!BR10,'Hist Returns'!$A$12:$D$107,2,FALSE))","v":{"v":865832.7495264942,"d":"865,833"}},{"$f":"($A10-$A9)/365.25*(BU9+Main!$I16)*(1+Main!$I$2+VLOOKUP('Random Years'!BS10,'Hist Returns'!$A$12:$D$107,2,FALSE))","v":{"v":532575.8009878222,"d":"532,576"}},{"$f":"($A10-$A9)/365.25*(BV9+Main!$I16)*(1+Main!$I$2+VLOOKUP('Random Years'!BT10,'Hist Returns'!$A$12:$D$107,2,FALSE))","v":{"v":1485040.261120153,"d":"1,485,040"}},{"$f":"($A10-$A9)/365.25*(BW9+Main!$I16)*(1+Main!$I$2+VLOOKUP('Random Years'!BU10,'Hist Returns'!$A$12:$D$107,2,FALSE))","v":{"v":628610.6839176845,"d":"628,611"}},{"$f":"($A10-$A9)/365.25*(BX9+Main!$I16)*(1+Main!$I$2+VLOOKUP('Random Years'!BV10,'Hist Returns'!$A$12:$D$107,2,FALSE))","v":{"v":1557325.6643790517,"d":"1,557,326"}},{"$f":"($A10-$A9)/365.25*(BY9+Main!$I16)*(1+Main!$I$2+VLOOKUP('Random Years'!BW10,'Hist Returns'!$A$12:$D$107,2,FALSE))","v":{"v":1410024.938351173,"d":"1,410,025"}},{"$f":"($A10-$A9)/365.25*(BZ9+Main!$I16)*(1+Main!$I$2+VLOOKUP('Random Years'!BX10,'Hist Returns'!$A$12:$D$107,2,FALSE))","v":{"v":1088461.843778731,"d":"1,088,462"}},{"$f":"($A10-$A9)/365.25*(CA9+Main!$I16)*(1+Main!$I$2+VLOOKUP('Random Years'!BY10,'Hist Returns'!$A$12:$D$107,2,FALSE))","v":{"v":1892275.403666234,"d":"1,892,275"}},{"$f":"($A10-$A9)/365.25*(CB9+Main!$I16)*(1+Main!$I$2+VLOOKUP('Random Years'!BZ10,'Hist Returns'!$A$12:$D$107,2,FALSE))","v":{"v":584030.4901372541,"d":"584,030"}},{"$f":"($A10-$A9)/365.25*(CC9+Main!$I16)*(1+Main!$I$2+VLOOKUP('Random Years'!CA10,'Hist Returns'!$A$12:$D$107,2,FALSE))","v":{"v":1421503.3435842898,"d":"1,421,503"}},{"$f":"($A10-$A9)/365.25*(CD9+Main!$I16)*(1+Main!$I$2+VLOOKUP('Random Years'!CB10,'Hist Returns'!$A$12:$D$107,2,FALSE))","v":{"v":1950840.6223737437,"d":"1,950,841"}},{"$f":"($A10-$A9)/365.25*(CE9+Main!$I16)*(1+Main!$I$2+VLOOKUP('Random Years'!CC10,'Hist Returns'!$A$12:$D$107,2,FALSE))","v":{"v":2333880.1896997425,"d":"2,333,880"}},{"$f":"($A10-$A9)/365.25*(CF9+Main!$I16)*(1+Main!$I$2+VLOOKUP('Random Years'!CD10,'Hist Returns'!$A$12:$D$107,2,FALSE))","v":{"v":1113218.9004616665,"d":"1,113,219"}},{"$f":"($A10-$A9)/365.25*(CG9+Main!$I16)*(1+Main!$I$2+VLOOKUP('Random Years'!CE10,'Hist Returns'!$A$12:$D$107,2,FALSE))","v":{"v":1921163.2628475085,"d":"1,921,163"}},{"$f":"($A10-$A9)/365.25*(CH9+Main!$I16)*(1+Main!$I$2+VLOOKUP('Random Years'!CF10,'Hist Returns'!$A$12:$D$107,2,FALSE))","v":{"v":1440838.0046715615,"d":"1,440,838"}},{"$f":"($A10-$A9)/365.25*(CI9+Main!$I16)*(1+Main!$I$2+VLOOKUP('Random Years'!CG10,'Hist Returns'!$A$12:$D$107,2,FALSE))","v":{"v":631181.5323762473,"d":"631,182"}},{"$f":"($A10-$A9)/365.25*(CJ9+Main!$I16)*(1+Main!$I$2+VLOOKUP('Random Years'!CH10,'Hist Returns'!$A$12:$D$107,2,FALSE))","v":{"v":2689983.301705205,"d":"2,689,983"}},{"$f":"($A10-$A9)/365.25*(CK9+Main!$I16)*(1+Main!$I$2+VLOOKUP('Random Years'!CI10,'Hist Returns'!$A$12:$D$107,2,FALSE))","v":{"v":731592.3876560117,"d":"731,592"}},{"$f":"($A10-$A9)/365.25*(CL9+Main!$I16)*(1+Main!$I$2+VLOOKUP('Random Years'!CJ10,'Hist Returns'!$A$12:$D$107,2,FALSE))","v":{"v":2540072.552646642,"d":"2,540,073"}},{"$f":"($A10-$A9)/365.25*(CM9+Main!$I16)*(1+Main!$I$2+VLOOKUP('Random Years'!CK10,'Hist Returns'!$A$12:$D$107,2,FALSE))","v":{"v":3024778.650525817,"d":"3,024,779"}},{"$f":"($A10-$A9)/365.25*(CN9+Main!$I16)*(1+Main!$I$2+VLOOKUP('Random Years'!CL10,'Hist Returns'!$A$12:$D$107,2,FALSE))","v":{"v":2257041.253389095,"d":"2,257,041"}},{"$f":"($A10-$A9)/365.25*(CO9+Main!$I16)*(1+Main!$I$2+VLOOKUP('Random Years'!CM10,'Hist Returns'!$A$12:$D$107,2,FALSE))","v":{"v":2325897.4753253004,"d":"2,325,897"}},{"$f":"($A10-$A9)/365.25*(CP9+Main!$I16)*(1+Main!$I$2+VLOOKUP('Random Years'!CN10,'Hist Returns'!$A$12:$D$107,2,FALSE))","v":{"v":429061.826721721,"d":"429,062"}},{"$f":"($A10-$A9)/365.25*(CQ9+Main!$I16)*(1+Main!$I$2+VLOOKUP('Random Years'!CO10,'Hist Returns'!$A$12:$D$107,2,FALSE))","v":{"v":846691.6398103618,"d":"846,692"}},{"$f":"($A10-$A9)/365.25*(CR9+Main!$I16)*(1+Main!$I$2+VLOOKUP('Random Years'!CP10,'Hist Returns'!$A$12:$D$107,2,FALSE))","v":{"v":2625755.2258116747,"d":"2,625,755"}},{"$f":"($A10-$A9)/365.25*(CS9+Main!$I16)*(1+Main!$I$2+VLOOKUP('Random Years'!CQ10,'Hist Returns'!$A$12:$D$107,2,FALSE))","v":{"v":1428407.568202254,"d":"1,428,408"}},{"$f":"($A10-$A9)/365.25*(CT9+Main!$I16)*(1+Main!$I$2+VLOOKUP('Random Years'!CR10,'Hist Returns'!$A$12:$D$107,2,FALSE))","v":{"v":1072448.096966941,"d":"1,072,448"}},{"$f":"($A10-$A9)/365.25*(CU9+Main!$I16)*(1+Main!$I$2+VLOOKUP('Random Years'!CS10,'Hist Returns'!$A$12:$D$107,2,FALSE))","v":{"v":2508631.9380788878,"d":"2,508,632"}},{"$f":"($A10-$A9)/365.25*(CV9+Main!$I16)*(1+Main!$I$2+VLOOKUP('Random Years'!CT10,'Hist Returns'!$A$12:$D$107,2,FALSE))","v":{"v":2025936.7196597552,"d":"2,025,937"}},{"$f":"($A10-$A9)/365.25*(CW9+Main!$I16)*(1+Main!$I$2+VLOOKUP('Random Years'!CU10,'Hist Returns'!$A$12:$D$107,2,FALSE))","v":{"v":710464.2964076119,"d":"710,464"}},{"$f":"($A10-$A9)/365.25*(CX9+Main!$I16)*(1+Main!$I$2+VLOOKUP('Random Years'!CV10,'Hist Returns'!$A$12:$D$107,2,FALSE))","v":{"v":1462467.1922316097,"d":"1,462,467"}}]
[{"$f":"Main!A17","v":"2032-12-30"},{"$f":"Main!B17","v":78},{"$f":"($A11-$A10)/365.25*(C10+Main!$I17)*(1+Main!$I$2+VLOOKUP('Random Years'!A11,'Hist Returns'!$A$12:$D$107,2,FALSE))","v":{"v":852342.9501964727,"d":"852,343"}},{"$f":"($A11-$A10)/365.25*(D10+Main!$I17)*(1+Main!$I$2+VLOOKUP('Random Years'!B11,'Hist Returns'!$A$12:$D$107,2,FALSE))","v":{"v":1233827.0199013918,"d":"1,233,827"}},{"$f":"($A11-$A10)/365.25*(E10+Main!$I17)*(1+Main!$I$2+VLOOKUP('Random Years'!C11,'Hist Returns'!$A$12:$D$107,2,FALSE))","v":{"v":2100400.0989959436,"d":"2,100,400"}},{"$f":"($A11-$A10)/365.25*(F10+Main!$I17)*(1+Main!$I$2+VLOOKUP('Random Years'!D11,'Hist Returns'!$A$12:$D$107,2,FALSE))","v":{"v":3670833.015110786,"d":"3,670,833"}},{"$f":"($A11-$A10)/365.25*(G10+Main!$I17)*(1+Main!$I$2+VLOOKUP('Random Years'!E11,'Hist Returns'!$A$12:$D$107,2,FALSE))","v":{"v":1967446.2824486266,"d":"1,967,446"}},{"$f":"($A11-$A10)/365.25*(H10+Main!$I17)*(1+Main!$I$2+VLOOKUP('Random Years'!F11,'Hist Returns'!$A$12:$D$107,2,FALSE))","v":{"v":1604083.1881025205,"d":"1,604,083"}},{"$f":"($A11-$A10)/365.25*(I10+Main!$I17)*(1+Main!$I$2+VLOOKUP('Random Years'!G11,'Hist Returns'!$A$12:$D$107,2,FALSE))","v":{"v":1079212.9723658313,"d":"1,079,213"}},{"$f":"($A11-$A10)/365.25*(J10+Main!$I17)*(1+Main!$I$2+VLOOKUP('Random Years'!H11,'Hist Returns'!$A$12:$D$107,2,FALSE))","v":{"v":529556.7814459654,"d":"529,557"}},{"$f":"($A11-$A10)/365.25*(K10+Main!$I17)*(1+Main!$I$2+VLOOKUP('Random Years'!I11,'Hist Returns'!$A$12:$D$107,2,FALSE))","v":{"v":2365530.8949990557,"d":"2,365,531"}},{"$f":"($A11-$A10)/365.25*(L10+Main!$I17)*(1+Main!$I$2+VLOOKUP('Random Years'!J11,'Hist Returns'!$A$12:$D$107,2,FALSE))","v":{"v":2296123.0520137497,"d":"2,296,123"}},{"$f":"($A11-$A10)/365.25*(M10+Main!$I17)*(1+Main!$I$2+VLOOKUP('Random Years'!K11,'Hist Returns'!$A$12:$D$107,2,FALSE))","v":{"v":1241537.464221002,"d":"1,241,537"}},{"$f":"($A11-$A10)/365.25*(N10+Main!$I17)*(1+Main!$I$2+VLOOKUP('Random Years'!L11,'Hist Returns'!$A$12:$D$107,2,FALSE))","v":{"v":311161.70435489225,"d":"311,162"}},{"$f":"($A11-$A10)/365.25*(O10+Main!$I17)*(1+Main!$I$2+VLOOKUP('Random Years'!M11,'Hist Returns'!$A$12:$D$107,2,FALSE))","v":{"v":1003127.3613621215,"d":"1,003,127"}},{"$f":"($A11-$A10)/365.25*(P10+Main!$I17)*(1+Main!$I$2+VLOOKUP('Random Years'!N11,'Hist Returns'!$A$12:$D$107,2,FALSE))","v":{"v":804592.5289472427,"d":"804,593"}},{"$f":"($A11-$A10)/365.25*(Q10+Main!$I17)*(1+Main!$I$2+VLOOKUP('Random Years'!O11,'Hist Returns'!$A$12:$D$107,2,FALSE))","v":{"v":532771.7667506017,"d":"532,772"}},{"$f":"($A11-$A10)/365.25*(R10+Main!$I17)*(1+Main!$I$2+VLOOKUP('Random Years'!P11,'Hist Returns'!$A$12:$D$107,2,FALSE))","v":{"v":790438.2689268639,"d":"790,438"}},{"$f":"($A11-$A10)/365.25*(S10+Main!$I17)*(1+Main!$I$2+VLOOKUP('Random Years'!Q11,'Hist Returns'!$A$12:$D$107,2,FALSE))","v":{"v":842606.6947458957,"d":"842,607"}},{"$f":"($A11-$A10)/365.25*(T10+Main!$I17)*(1+Main!$I$2+VLOOKUP('Random Years'!R11,'Hist Returns'!$A$12:$D$107,2,FALSE))","v":{"v":716736.6609436641,"d":"716,737"}},{"$f":"($A11-$A10)/365.25*(U10+Main!$I17)*(1+Main!$I$2+VLOOKUP('Random Years'!S11,'Hist Returns'!$A$12:$D$107,2,FALSE))","v":{"v":803354.0051148705,"d":"803,354"}},{"$f":"($A11-$A10)/365.25*(V10+Main!$I17)*(1+Main!$I$2+VLOOKUP('Random Years'!T11,'Hist Returns'!$A$12:$D$107,2,FALSE))","v":{"v":2670923.4438842256,"d":"2,670,923"}},{"$f":"($A11-$A10)/365.25*(W10+Main!$I17)*(1+Main!$I$2+VLOOKUP('Random Years'!U11,'Hist Returns'!$A$12:$D$107,2,FALSE))","v":{"v":2147675.3522856017,"d":"2,147,675"}},{"$f":"($A11-$A10)/365.25*(X10+Main!$I17)*(1+Main!$I$2+VLOOKUP('Random Years'!V11,'Hist Returns'!$A$12:$D$107,2,FALSE))","v":{"v":904814.2491267344,"d":"904,814"}},{"$f":"($A11-$A10)/365.25*(Y10+Main!$I17)*(1+Main!$I$2+VLOOKUP('Random Years'!W11,'Hist Returns'!$A$12:$D$107,2,FALSE))","v":{"v":767445.8308567526,"d":"767,446"}},{"$f":"($A11-$A10)/365.25*(Z10+Main!$I17)*(1+Main!$I$2+VLOOKUP('Random Years'!X11,'Hist Returns'!$A$12:$D$107,2,FALSE))","v":{"v":1122939.2764579852,"d":"1,122,939"}},{"$f":"($A11-$A10)/365.25*(AA10+Main!$I17)*(1+Main!$I$2+VLOOKUP('Random Years'!Y11,'Hist Returns'!$A$12:$D$107,2,FALSE))","v":{"v":1276871.4469650046,"d":"1,276,871"}},{"$f":"($A11-$A10)/365.25*(AB10+Main!$I17)*(1+Main!$I$2+VLOOKUP('Random Years'!Z11,'Hist Returns'!$A$12:$D$107,2,FALSE))","v":{"v":1161046.4136374528,"d":"1,161,046"}},{"$f":"($A11-$A10)/365.25*(AC10+Main!$I17)*(1+Main!$I$2+VLOOKUP('Random Years'!AA11,'Hist Returns'!$A$12:$D$107,2,FALSE))","v":{"v":1211959.7935266367,"d":"1,211,960"}},{"$f":"($A11-$A10)/365.25*(AD10+Main!$I17)*(1+Main!$I$2+VLOOKUP('Random Years'!AB11,'Hist Returns'!$A$12:$D$107,2,FALSE))","v":{"v":924600.3708673177,"d":"924,600"}},{"$f":"($A11-$A10)/365.25*(AE10+Main!$I17)*(1+Main!$I$2+VLOOKUP('Random Years'!AC11,'Hist Returns'!$A$12:$D$107,2,FALSE))","v":{"v":541553.9175108281,"d":"541,554"}},{"$f":"($A11-$A10)/365.25*(AF10+Main!$I17)*(1+Main!$I$2+VLOOKUP('Random Years'!AD11,'Hist Returns'!$A$12:$D$107,2,FALSE))","v":{"v":4752450.090550055,"d":"4,752,450"}},{"$f":"($A11-$A10)/365.25*(AG10+Main!$I17)*(1+Main!$I$2+VLOOKUP('Random Years'!AE11,'Hist Returns'!$A$12:$D$107,2,FALSE))","v":{"v":2762294.6842691284,"d":"2,762,295"}},{"$f":"($A11-$A10)/365.25*(AH10+Main!$I17)*(1+Main!$I$2+VLOOKUP('Random Years'!AF11,'Hist Returns'!$A$12:$D$107,2,FALSE))","v":{"v":1845099.2706557345,"d":"1,845,099"}},{"$f":"($A11-$A10)/365.25*(AI10+Main!$I17)*(1+Main!$I$2+VLOOKUP('Random Years'!AG11,'Hist Returns'!$A$12:$D$107,2,FALSE))","v":{"v":1828874.461394231,"d":"1,828,874"}},{"$f":"($A11-$A10)/365.25*(AJ10+Main!$I17)*(1+Main!$I$2+VLOOKUP('Random Years'!AH11,'Hist Returns'!$A$12:$D$107,2,FALSE))","v":{"v":1721750.0783039534,"d":"1,721,750"}},{"$f":"($A11-$A10)/365.25*(AK10+Main!$I17)*(1+Main!$I$2+VLOOKUP('Random Years'!AI11,'Hist Returns'!$A$12:$D$107,2,FALSE))","v":{"v":1508036.9559002158,"d":"1,508,037"}},{"$f":"($A11-$A10)/365.25*(AL10+Main!$I17)*(1+Main!$I$2+VLOOKUP('Random Years'!AJ11,'Hist Returns'!$A$12:$D$107,2,FALSE))","v":{"v":2061046.4856830463,"d":"2,061,046"}},{"$f":"($A11-$A10)/365.25*(AM10+Main!$I17)*(1+Main!$I$2+VLOOKUP('Random Years'!AK11,'Hist Returns'!$A$12:$D$107,2,FALSE))","v":{"v":362614.2226979681,"d":"362,614"}},{"$f":"($A11-$A10)/365.25*(AN10+Main!$I17)*(1+Main!$I$2+VLOOKUP('Random Years'!AL11,'Hist Returns'!$A$12:$D$107,2,FALSE))","v":{"v":2516652.708675203,"d":"2,516,653"}},{"$f":"($A11-$A10)/365.25*(AO10+Main!$I17)*(1+Main!$I$2+VLOOKUP('Random Years'!AM11,'Hist Returns'!$A$12:$D$107,2,FALSE))","v":{"v":982840.4163889246,"d":"982,840"}},{"$f":"($A11-$A10)/365.25*(AP10+Main!$I17)*(1+Main!$I$2+VLOOKUP('Random Years'!AN11,'Hist Returns'!$A$12:$D$107,2,FALSE))","v":{"v":1987124.3762252666,"d":"1,987,124"}},{"$f":"($A11-$A10)/365.25*(AQ10+Main!$I17)*(1+Main!$I$2+VLOOKUP('Random Years'!AO11,'Hist Returns'!$A$12:$D$107,2,FALSE))","v":{"v":615992.7875323335,"d":"615,993"}},{"$f":"($A11-$A10)/365.25*(AR10+Main!$I17)*(1+Main!$I$2+VLOOKUP('Random Years'!AP11,'Hist Returns'!$A$12:$D$107,2,FALSE))","v":{"v":2187982.471174721,"d":"2,187,982"}},{"$f":"($A11-$A10)/365.25*(AS10+Main!$I17)*(1+Main!$I$2+VLOOKUP('Random Years'!AQ11,'Hist Returns'!$A$12:$D$107,2,FALSE))","v":{"v":1122445.1715613059,"d":"1,122,445"}},{"$f":"($A11-$A10)/365.25*(AT10+Main!$I17)*(1+Main!$I$2+VLOOKUP('Random Years'!AR11,'Hist Returns'!$A$12:$D$107,2,FALSE))","v":{"v":572036.2086262658,"d":"572,036"}},{"$f":"($A11-$A10)/365.25*(AU10+Main!$I17)*(1+Main!$I$2+VLOOKUP('Random Years'!AS11,'Hist Returns'!$A$12:$D$107,2,FALSE))","v":{"v":2951560.230985747,"d":"2,951,560"}},{"$f":"($A11-$A10)/365.25*(AV10+Main!$I17)*(1+Main!$I$2+VLOOKUP('Random Years'!AT11,'Hist Returns'!$A$12:$D$107,2,FALSE))","v":{"v":1198653.3721165173,"d":"1,198,653"}},{"$f":"($A11-$A10)/365.25*(AW10+Main!$I17)*(1+Main!$I$2+VLOOKUP('Random Years'!AU11,'Hist Returns'!$A$12:$D$107,2,FALSE))","v":{"v":764462.5421856067,"d":"764,463"}},{"$f":"($A11-$A10)/365.25*(AX10+Main!$I17)*(1+Main!$I$2+VLOOKUP('Random Years'!AV11,'Hist Returns'!$A$12:$D$107,2,FALSE))","v":{"v":2136338.4512659553,"d":"2,136,338"}},{"$f":"($A11-$A10)/365.25*(AY10+Main!$I17)*(1+Main!$I$2+VLOOKUP('Random Years'!AW11,'Hist Returns'!$A$12:$D$107,2,FALSE))","v":{"v":2665603.545492088,"d":"2,665,604"}},{"$f":"($A11-$A10)/365.25*(AZ10+Main!$I17)*(1+Main!$I$2+VLOOKUP('Random Years'!AX11,'Hist Returns'!$A$12:$D$107,2,FALSE))","v":{"v":637867.8564257649,"d":"637,868"}},{"$f":"($A11-$A10)/365.25*(BA10+Main!$I17)*(1+Main!$I$2+VLOOKUP('Random Years'!AY11,'Hist Returns'!$A$12:$D$107,2,FALSE))","v":{"v":243891.80597651112,"d":"243,892"}},{"$f":"($A11-$A10)/365.25*(BB10+Main!$I17)*(1+Main!$I$2+VLOOKUP('Random Years'!AZ11,'Hist Returns'!$A$12:$D$107,2,FALSE))","v":{"v":1148484.603291607,"d":"1,148,485"}},{"$f":"($A11-$A10)/365.25*(BC10+Main!$I17)*(1+Main!$I$2+VLOOKUP('Random Years'!BA11,'Hist Returns'!$A$12:$D$107,2,FALSE))","v":{"v":1624113.4156982484,"d":"1,624,113"}},{"$f":"($A11-$A10)/365.25*(BD10+Main!$I17)*(1+Main!$I$2+VLOOKUP('Random Years'!BB11,'Hist Returns'!$A$12:$D$107,2,FALSE))","v":{"v":1648505.764308956,"d":"1,648,506"}},{"$f":"($A11-$A10)/365.25*(BE10+Main!$I17)*(1+Main!$I$2+VLOOKUP('Random Years'!BC11,'Hist Returns'!$A$12:$D$107,2,FALSE))","v":{"v":953560.170177318,"d":"953,560"}},{"$f":"($A11-$A10)/365.25*(BF10+Main!$I17)*(1+Main!$I$2+VLOOKUP('Random Years'!BD11,'Hist Returns'!$A$12:$D$107,2,FALSE))","v":{"v":177893.25248538094,"d":"177,893"}},{"$f":"($A11-$A10)/365.25*(BG10+Main!$I17)*(1+Main!$I$2+VLOOKUP('Random Years'!BE11,'Hist Returns'!$A$12:$D$107,2,FALSE))","v":{"v":847532.3104377381,"d":"847,532"}},{"$f":"($A11-$A10)/365.25*(BH10+Main!$I17)*(1+Main!$I$2+VLOOKUP('Random Years'!BF11,'Hist Returns'!$A$12:$D$107,2,FALSE))","v":{"v":748654.4517772708,"d":"748,654"}},{"$f":"($A11-$A10)/365.25*(BI10+Main!$I17)*(1+Main!$I$2+VLOOKUP('Random Years'!BG11,'Hist Returns'!$A$12:$D$107,2,FALSE))","v":{"v":1949432.7418234486,"d":"1,949,433"}},{"$f":"($A11-$A10)/365.25*(BJ10+Main!$I17)*(1+Main!$I$2+VLOOKUP('Random Years'!BH11,'Hist Returns'!$A$12:$D$107,2,FALSE))","v":{"v":1028073.3915135652,"d":"1,028,073"}},{"$f":"($A11-$A10)/365.25*(BK10+Main!$I17)*(1+Main!$I$2+VLOOKUP('Random Years'!BI11,'Hist Returns'!$A$12:$D$107,2,FALSE))","v":{"v":1068909.6452766042,"d":"1,068,910"}},{"$f":"($A11-$A10)/365.25*(BL10+Main!$I17)*(1+Main!$I$2+VLOOKUP('Random Years'!BJ11,'Hist Returns'!$A$12:$D$107,2,FALSE))","v":{"v":1609279.0122986233,"d":"1,609,279"}},{"$f":"($A11-$A10)/365.25*(BM10+Main!$I17)*(1+Main!$I$2+VLOOKUP('Random Years'!BK11,'Hist Returns'!$A$12:$D$107,2,FALSE))","v":{"v":667762.7424893923,"d":"667,763"}},{"$f":"($A11-$A10)/365.25*(BN10+Main!$I17)*(1+Main!$I$2+VLOOKUP('Random Years'!BL11,'Hist Returns'!$A$12:$D$107,2,FALSE))","v":{"v":1825044.7089412743,"d":"1,825,045"}},{"$f":"($A11-$A10)/365.25*(BO10+Main!$I17)*(1+Main!$I$2+VLOOKUP('Random Years'!BM11,'Hist Returns'!$A$12:$D$107,2,FALSE))","v":{"v":1499690.9117808607,"d":"1,499,691"}},{"$f":"($A11-$A10)/365.25*(BP10+Main!$I17)*(1+Main!$I$2+VLOOKUP('Random Years'!BN11,'Hist Returns'!$A$12:$D$107,2,FALSE))","v":{"v":2300758.7892837157,"d":"2,300,759"}},{"$f":"($A11-$A10)/365.25*(BQ10+Main!$I17)*(1+Main!$I$2+VLOOKUP('Random Years'!BO11,'Hist Returns'!$A$12:$D$107,2,FALSE))","v":{"v":2220891.450139421,"d":"2,220,891"}},{"$f":"($A11-$A10)/365.25*(BR10+Main!$I17)*(1+Main!$I$2+VLOOKUP('Random Years'!BP11,'Hist Returns'!$A$12:$D$107,2,FALSE))","v":{"v":3158668.268241078,"d":"3,158,668"}},{"$f":"($A11-$A10)/365.25*(BS10+Main!$I17)*(1+Main!$I$2+VLOOKUP('Random Years'!BQ11,'Hist Returns'!$A$12:$D$107,2,FALSE))","v":{"v":1633725.3593026274,"d":"1,633,725"}},{"$f":"($A11-$A10)/365.25*(BT10+Main!$I17)*(1+Main!$I$2+VLOOKUP('Random Years'!BR11,'Hist Returns'!$A$12:$D$107,2,FALSE))","v":{"v":728399.170902459,"d":"728,399"}},{"$f":"($A11-$A10)/365.25*(BU10+Main!$I17)*(1+Main!$I$2+VLOOKUP('Random Years'!BS11,'Hist Returns'!$A$12:$D$107,2,FALSE))","v":{"v":534695.7297379068,"d":"534,696"}},{"$f":"($A11-$A10)/365.25*(BV10+Main!$I17)*(1+Main!$I$2+VLOOKUP('Random Years'!BT11,'Hist Returns'!$A$12:$D$107,2,FALSE))","v":{"v":1436265.2405353626,"d":"1,436,265"}},{"$f":"($A11-$A10)/365.25*(BW10+Main!$I17)*(1+Main!$I$2+VLOOKUP('Random Years'!BU11,'Hist Returns'!$A$12:$D$107,2,FALSE))","v":{"v":590879.6367288048,"d":"590,880"}},{"$f":"($A11-$A10)/365.25*(BX10+Main!$I17)*(1+Main!$I$2+VLOOKUP('Random Years'!BV11,'Hist Returns'!$A$12:$D$107,2,FALSE))","v":{"v":1866946.2499128846,"d":"1,866,946"}},{"$f":"($A11-$A10)/365.25*(BY10+Main!$I17)*(1+Main!$I$2+VLOOKUP('Random Years'!BW11,'Hist Returns'!$A$12:$D$107,2,FALSE))","v":{"v":1450567.5704908997,"d":"1,450,568"}},{"$f":"($A11-$A10)/365.25*(BZ10+Main!$I17)*(1+Main!$I$2+VLOOKUP('Random Years'!BX11,'Hist Returns'!$A$12:$D$107,2,FALSE))","v":{"v":791835.1528141032,"d":"791,835"}},{"$f":"($A11-$A10)/365.25*(CA10+Main!$I17)*(1+Main!$I$2+VLOOKUP('Random Years'!BY11,'Hist Returns'!$A$12:$D$107,2,FALSE))","v":{"v":1696824.392197233,"d":"1,696,824"}},{"$f":"($A11-$A10)/365.25*(CB10+Main!$I17)*(1+Main!$I$2+VLOOKUP('Random Years'!BZ11,'Hist Returns'!$A$12:$D$107,2,FALSE))","v":{"v":655931.2157472629,"d":"655,931"}},{"$f":"($A11-$A10)/365.25*(CC10+Main!$I17)*(1+Main!$I$2+VLOOKUP('Random Years'!CA11,'Hist Returns'!$A$12:$D$107,2,FALSE))","v":{"v":1588058.9836042665,"d":"1,588,059"}},{"$f":"($A11-$A10)/365.25*(CD10+Main!$I17)*(1+Main!$I$2+VLOOKUP('Random Years'!CB11,'Hist Returns'!$A$12:$D$107,2,FALSE))","v":{"v":2760184.7980733016,"d":"2,760,185"}},{"$f":"($A11-$A10)/365.25*(CE10+Main!$I17)*(1+Main!$I$2+VLOOKUP('Random Years'!CC11,'Hist Returns'!$A$12:$D$107,2,FALSE))","v":{"v":3011260.472738393,"d":"3,011,260"}},{"$f":"($A11-$A10)/365.25*(CF10+Main!$I17)*(1+Main!$I$2+VLOOKUP('Random Years'!CD11,'Hist Returns'!$A$12:$D$107,2,FALSE))","v":{"v":1070385.0832482267,"d":"1,070,385"}},{"$f":"($A11-$A10)/365.25*(CG10+Main!$I17)*(1+Main!$I$2+VLOOKUP('Random Years'!CE11,'Hist Returns'!$A$12:$D$107,2,FALSE))","v":{"v":2882920.399405012,"d":"2,882,920"}},{"$f":"($A11-$A10)/365.25*(CH10+Main!$I17)*(1+Main!$I$2+VLOOKUP('Random Years'!CF11,'Hist Returns'!$A$12:$D$107,2,FALSE))","v":{"v":2150621.8071485483,"d":"2,150,622"}},{"$f":"($A11-$A10)/365.25*(CI10+Main!$I17)*(1+Main!$I$2+VLOOKUP('Random Years'!CG11,'Hist Returns'!$A$12:$D$107,2,FALSE))","v":{"v":730336.3889299149,"d":"730,336"}},{"$f":"($A11-$A10)/365.25*(CJ10+Main!$I17)*(1+Main!$I$2+VLOOKUP('Random Years'!CH11,'Hist Returns'!$A$12:$D$107,2,FALSE))","v":{"v":2969991.979593449,"d":"2,969,992"}},{"$f":"($A11-$A10)/365.25*(CK10+Main!$I17)*(1+Main!$I$2+VLOOKUP('Random Years'!CI11,'Hist Returns'!$A$12:$D$107,2,FALSE))","v":{"v":1069313.7600204055,"d":"1,069,314"}},{"$f":"($A11-$A10)/365.25*(CL10+Main!$I17)*(1+Main!$I$2+VLOOKUP('Random Years'!CJ11,'Hist Returns'!$A$12:$D$107,2,FALSE))","v":{"v":3680456.1514754314,"d":"3,680,456"}},{"$f":"($A11-$A10)/365.25*(CM10+Main!$I17)*(1+Main!$I$2+VLOOKUP('Random Years'!CK11,'Hist Returns'!$A$12:$D$107,2,FALSE))","v":{"v":4064466.3020840115,"d":"4,064,466"}},{"$f":"($A11-$A10)/365.25*(CN10+Main!$I17)*(1+Main!$I$2+VLOOKUP('Random Years'!CL11,'Hist Returns'!$A$12:$D$107,2,FALSE))","v":{"v":2572729.8087712363,"d":"2,572,730"}},{"$f":"($A11-$A10)/365.25*(CO10+Main!$I17)*(1+Main!$I$2+VLOOKUP('Random Years'!CM11,'Hist Returns'!$A$12:$D$107,2,FALSE))","v":{"v":2542217.2483321484,"d":"2,542,217"}},{"$f":"($A11-$A10)/365.25*(CP10+Main!$I17)*(1+Main!$I$2+VLOOKUP('Random Years'!CN11,'Hist Returns'!$A$12:$D$107,2,FALSE))","v":{"v":326791.5054954129,"d":"326,792"}},{"$f":"($A11-$A10)/365.25*(CQ10+Main!$I17)*(1+Main!$I$2+VLOOKUP('Random Years'!CO11,'Hist Returns'!$A$12:$D$107,2,FALSE))","v":{"v":945573.0654191043,"d":"945,573"}},{"$f":"($A11-$A10)/365.25*(CR10+Main!$I17)*(1+Main!$I$2+VLOOKUP('Random Years'!CP11,'Hist Returns'!$A$12:$D$107,2,FALSE))","v":{"v":2962627.850449601,"d":"2,962,628"}},{"$f":"($A11-$A10)/365.25*(CS10+Main!$I17)*(1+Main!$I$2+VLOOKUP('Random Years'!CQ11,'Hist Returns'!$A$12:$D$107,2,FALSE))","v":{"v":1561272.1315854762,"d":"1,561,272"}},{"$f":"($A11-$A10)/365.25*(CT10+Main!$I17)*(1+Main!$I$2+VLOOKUP('Random Years'!CR11,'Hist Returns'!$A$12:$D$107,2,FALSE))","v":{"v":1230567.0385047994,"d":"1,230,567"}},{"$f":"($A11-$A10)/365.25*(CU10+Main!$I17)*(1+Main!$I$2+VLOOKUP('Random Years'!CS11,'Hist Returns'!$A$12:$D$107,2,FALSE))","v":{"v":2446797.688799905,"d":"2,446,798"}},{"$f":"($A11-$A10)/365.25*(CV10+Main!$I17)*(1+Main!$I$2+VLOOKUP('Random Years'!CT11,'Hist Returns'!$A$12:$D$107,2,FALSE))","v":{"v":2469631.8556675944,"d":"2,469,632"}},{"$f":"($A11-$A10)/365.25*(CW10+Main!$I17)*(1+Main!$I$2+VLOOKUP('Random Years'!CU11,'Hist Returns'!$A$12:$D$107,2,FALSE))","v":{"v":752812.4395747585,"d":"752,812"}},{"$f":"($A11-$A10)/365.25*(CX10+Main!$I17)*(1+Main!$I$2+VLOOKUP('Random Years'!CV11,'Hist Returns'!$A$12:$D$107,2,FALSE))","v":{"v":1772165.6973809807,"d":"1,772,166"}}]
[{"$f":"Main!A18","v":"2033-12-30"},{"$f":"Main!B18","v":79},{"$f":"($A12-$A11)/365.25*(C11+Main!$I18)*(1+Main!$I$2+VLOOKUP('Random Years'!A12,'Hist Returns'!$A$12:$D$107,2,FALSE))","v":{"v":754216.0653113956,"d":"754,216"}},{"$f":"($A12-$A11)/365.25*(D11+Main!$I18)*(1+Main!$I$2+VLOOKUP('Random Years'!B12,'Hist Returns'!$A$12:$D$107,2,FALSE))","v":{"v":1269170.7240324754,"d":"1,269,171"}},{"$f":"($A12-$A11)/365.25*(E11+Main!$I18)*(1+Main!$I$2+VLOOKUP('Random Years'!C12,'Hist Returns'!$A$12:$D$107,2,FALSE))","v":{"v":2196332.933666688,"d":"2,196,333"}},{"$f":"($A12-$A11)/365.25*(F11+Main!$I18)*(1+Main!$I$2+VLOOKUP('Random Years'!D12,'Hist Returns'!$A$12:$D$107,2,FALSE))","v":{"v":4330951.973927351,"d":"4,330,952"}},{"$f":"($A12-$A11)/365.25*(G11+Main!$I18)*(1+Main!$I$2+VLOOKUP('Random Years'!E12,'Hist Returns'!$A$12:$D$107,2,FALSE))","v":{"v":2656506.0275843306,"d":"2,656,506"}},{"$f":"($A12-$A11)/365.25*(H11+Main!$I18)*(1+Main!$I$2+VLOOKUP('Random Years'!F12,'Hist Returns'!$A$12:$D$107,2,FALSE))","v":{"v":1408668.9200470878,"d":"1,408,669"}},{"$f":"($A12-$A11)/365.25*(I11+Main!$I18)*(1+Main!$I$2+VLOOKUP('Random Years'!G12,'Hist Returns'!$A$12:$D$107,2,FALSE))","v":{"v":1052200.4424441638,"d":"1,052,200"}},{"$f":"($A12-$A11)/365.25*(J11+Main!$I18)*(1+Main!$I$2+VLOOKUP('Random Years'!H12,'Hist Returns'!$A$12:$D$107,2,FALSE))","v":{"v":591876.0481184062,"d":"591,876"}},{"$f":"($A12-$A11)/365.25*(K11+Main!$I18)*(1+Main!$I$2+VLOOKUP('Random Years'!I12,'Hist Returns'!$A$12:$D$107,2,FALSE))","v":{"v":2955861.9759425386,"d":"2,955,862"}},{"$f":"($A12-$A11)/365.25*(L11+Main!$I18)*(1+Main!$I$2+VLOOKUP('Random Years'!J12,'Hist Returns'!$A$12:$D$107,2,FALSE))","v":{"v":2698985.941139643,"d":"2,698,986"}},{"$f":"($A12-$A11)/365.25*(M11+Main!$I18)*(1+Main!$I$2+VLOOKUP('Random Years'!K12,'Hist Returns'!$A$12:$D$107,2,FALSE))","v":{"v":1524930.4537501591,"d":"1,524,930"}},{"$f":"($A12-$A11)/365.25*(N11+Main!$I18)*(1+Main!$I$2+VLOOKUP('Random Years'!L12,'Hist Returns'!$A$12:$D$107,2,FALSE))","v":{"v":291157.7343949822,"d":"291,158"}},{"$f":"($A12-$A11)/365.25*(O11+Main!$I18)*(1+Main!$I$2+VLOOKUP('Random Years'!M12,'Hist Returns'!$A$12:$D$107,2,FALSE))","v":{"v":1321047.1522599568,"d":"1,321,047"}},{"$f":"($A12-$A11)/365.25*(P11+Main!$I18)*(1+Main!$I$2+VLOOKUP('Random Years'!N12,'Hist Returns'!$A$12:$D$107,2,FALSE))","v":{"v":801810.5834340829,"d":"801,811"}},{"$f":"($A12-$A11)/365.25*(Q11+Main!$I18)*(1+Main!$I$2+VLOOKUP('Random Years'!O12,'Hist Returns'!$A$12:$D$107,2,FALSE))","v":{"v":636486.3453419859,"d":"636,486"}},{"$f":"($A12-$A11)/365.25*(R11+Main!$I18)*(1+Main!$I$2+VLOOKUP('Random Years'!P12,'Hist Returns'!$A$12:$D$107,2,FALSE))","v":{"v":868188.3903112498,"d":"868,188"}},{"$f":"($A12-$A11)/365.25*(S11+Main!$I18)*(1+Main!$I$2+VLOOKUP('Random Years'!Q12,'Hist Returns'!$A$12:$D$107,2,FALSE))","v":{"v":665944.887585072,"d":"665,945"}},{"$f":"($A12-$A11)/365.25*(T11+Main!$I18)*(1+Main!$I$2+VLOOKUP('Random Years'!R12,'Hist Returns'!$A$12:$D$107,2,FALSE))","v":{"v":628581.783540891,"d":"628,582"}},{"$f":"($A12-$A11)/365.25*(U11+Main!$I18)*(1+Main!$I$2+VLOOKUP('Random Years'!S12,'Hist Returns'!$A$12:$D$107,2,FALSE))","v":{"v":993074.5660079623,"d":"993,075"}},{"$f":"($A12-$A11)/365.25*(V11+Main!$I18)*(1+Main!$I$2+VLOOKUP('Random Years'!T12,'Hist Returns'!$A$12:$D$107,2,FALSE))","v":{"v":3228835.1325238426,"d":"3,228,835"}},{"$f":"($A12-$A11)/365.25*(W11+Main!$I18)*(1+Main!$I$2+VLOOKUP('Random Years'!U12,'Hist Returns'!$A$12:$D$107,2,FALSE))","v":{"v":2343762.7130729035,"d":"2,343,763"}},{"$f":"($A12-$A11)/365.25*(X11+Main!$I18)*(1+Main!$I$2+VLOOKUP('Random Years'!V12,'Hist Returns'!$A$12:$D$107,2,FALSE))","v":{"v":1153702.5440029893,"d":"1,153,703"}},{"$f":"($A12-$A11)/365.25*(Y11+Main!$I18)*(1+Main!$I$2+VLOOKUP('Random Years'!W12,'Hist Returns'!$A$12:$D$107,2,FALSE))","v":{"v":891067.1311061927,"d":"891,067"}},{"$f":"($A12-$A11)/365.25*(Z11+Main!$I18)*(1+Main!$I$2+VLOOKUP('Random Years'!X12,'Hist Returns'!$A$12:$D$107,2,FALSE))","v":{"v":978134.8466202009,"d":"978,135"}},{"$f":"($A12-$A11)/365.25*(AA11+Main!$I18)*(1+Main!$I$2+VLOOKUP('Random Years'!Y12,'Hist Returns'!$A$12:$D$107,2,FALSE))","v":{"v":1635445.1860257399,"d":"1,635,445"}},{"$f":"($A12-$A11)/365.25*(AB11+Main!$I18)*(1+Main!$I$2+VLOOKUP('Random Years'!Z12,'Hist Returns'!$A$12:$D$107,2,FALSE))","v":{"v":1077290.6120589743,"d":"1,077,291"}},{"$f":"($A12-$A11)/365.25*(AC11+Main!$I18)*(1+Main!$I$2+VLOOKUP('Random Years'!AA12,'Hist Returns'!$A$12:$D$107,2,FALSE))","v":{"v":1063537.6542390713,"d":"1,063,538"}},{"$f":"($A12-$A11)/365.25*(AD11+Main!$I18)*(1+Main!$I$2+VLOOKUP('Random Years'!AB12,'Hist Returns'!$A$12:$D$107,2,FALSE))","v":{"v":1147552.4416854193,"d":"1,147,552"}},{"$f":"($A12-$A11)/365.25*(AE11+Main!$I18)*(1+Main!$I$2+VLOOKUP('Random Years'!AC12,'Hist Returns'!$A$12:$D$107,2,FALSE))","v":{"v":671033.1586943553,"d":"671,033"}},{"$f":"($A12-$A11)/365.25*(AF11+Main!$I18)*(1+Main!$I$2+VLOOKUP('Random Years'!AD12,'Hist Returns'!$A$12:$D$107,2,FALSE))","v":{"v":4321589.519529865,"d":"4,321,590"}},{"$f":"($A12-$A11)/365.25*(AG11+Main!$I18)*(1+Main!$I$2+VLOOKUP('Random Years'!AE12,'Hist Returns'!$A$12:$D$107,2,FALSE))","v":{"v":3381330.49515799,"d":"3,381,330"}},{"$f":"($A12-$A11)/365.25*(AH11+Main!$I18)*(1+Main!$I$2+VLOOKUP('Random Years'!AF12,'Hist Returns'!$A$12:$D$107,2,FALSE))","v":{"v":1932113.953259763,"d":"1,932,114"}},{"$f":"($A12-$A11)/365.25*(AI11+Main!$I18)*(1+Main!$I$2+VLOOKUP('Random Years'!AG12,'Hist Returns'!$A$12:$D$107,2,FALSE))","v":{"v":2142529.3480394175,"d":"2,142,529"}},{"$f":"($A12-$A11)/365.25*(AJ11+Main!$I18)*(1+Main!$I$2+VLOOKUP('Random Years'!AH12,'Hist Returns'!$A$12:$D$107,2,FALSE))","v":{"v":2003890.3322944455,"d":"2,003,890"}},{"$f":"($A12-$A11)/365.25*(AK11+Main!$I18)*(1+Main!$I$2+VLOOKUP('Random Years'!AI12,'Hist Returns'!$A$12:$D$107,2,FALSE))","v":{"v":937249.8911857428,"d":"937,250"}},{"$f":"($A12-$A11)/365.25*(AL11+Main!$I18)*(1+Main!$I$2+VLOOKUP('Random Years'!AJ12,'Hist Returns'!$A$12:$D$107,2,FALSE))","v":{"v":1934382.1195115354,"d":"1,934,382"}},{"$f":"($A12-$A11)/365.25*(AM11+Main!$I18)*(1+Main!$I$2+VLOOKUP('Random Years'!AK12,'Hist Returns'!$A$12:$D$107,2,FALSE))","v":{"v":392457.6301119762,"d":"392,458"}},{"$f":"($A12-$A11)/365.25*(AN11+Main!$I18)*(1+Main!$I$2+VLOOKUP('Random Years'!AL12,'Hist Returns'!$A$12:$D$107,2,FALSE))","v":{"v":2853450.1446185512,"d":"2,853,450"}},{"$f":"($A12-$A11)/365.25*(AO11+Main!$I18)*(1+Main!$I$2+VLOOKUP('Random Years'!AM12,'Hist Returns'!$A$12:$D$107,2,FALSE))","v":{"v":1223502.9309245364,"d":"1,223,503"}},{"$f":"($A12-$A11)/365.25*(AP11+Main!$I18)*(1+Main!$I$2+VLOOKUP('Random Years'!AN12,'Hist Returns'!$A$12:$D$107,2,FALSE))","v":{"v":2579083.5340086217,"d":"2,579,084"}},{"$f":"($A12-$A11)/365.25*(AQ11+Main!$I18)*(1+Main!$I$2+VLOOKUP('Random Years'!AO12,'Hist Returns'!$A$12:$D$107,2,FALSE))","v":{"v":878548.1302136149,"d":"878,548"}},{"$f":"($A12-$A11)/365.25*(AR11+Main!$I18)*(1+Main!$I$2+VLOOKUP('Random Years'!AP12,'Hist Returns'!$A$12:$D$107,2,FALSE))","v":{"v":2476325.692344802,"d":"2,476,326"}},{"$f":"($A12-$A11)/365.25*(AS11+Main!$I18)*(1+Main!$I$2+VLOOKUP('Random Years'!AQ12,'Hist Returns'!$A$12:$D$107,2,FALSE))","v":{"v":1438382.7648637933,"d":"1,438,383"}},{"$f":"($A12-$A11)/365.25*(AT11+Main!$I18)*(1+Main!$I$2+VLOOKUP('Random Years'!AR12,'Hist Returns'!$A$12:$D$107,2,FALSE))","v":{"v":670816.0650314193,"d":"670,816"}},{"$f":"($A12-$A11)/365.25*(AU11+Main!$I18)*(1+Main!$I$2+VLOOKUP('Random Years'!AS12,'Hist Returns'!$A$12:$D$107,2,FALSE))","v":{"v":2887690.9976794473,"d":"2,887,691"}},{"$f":"($A12-$A11)/365.25*(AV11+Main!$I18)*(1+Main!$I$2+VLOOKUP('Random Years'!AT12,'Hist Returns'!$A$12:$D$107,2,FALSE))","v":{"v":1381817.0731603664,"d":"1,381,817"}},{"$f":"($A12-$A11)/365.25*(AW11+Main!$I18)*(1+Main!$I$2+VLOOKUP('Random Years'!AU12,'Hist Returns'!$A$12:$D$107,2,FALSE))","v":{"v":1077274.69471933,"d":"1,077,275"}},{"$f":"($A12-$A11)/365.25*(AX11+Main!$I18)*(1+Main!$I$2+VLOOKUP('Random Years'!AV12,'Hist Returns'!$A$12:$D$107,2,FALSE))","v":{"v":1880401.4148927317,"d":"1,880,401"}},{"$f":"($A12-$A11)/365.25*(AY11+Main!$I18)*(1+Main!$I$2+VLOOKUP('Random Years'!AW12,'Hist Returns'!$A$12:$D$107,2,FALSE))","v":{"v":2951540.2342645912,"d":"2,951,540"}},{"$f":"($A12-$A11)/365.25*(AZ11+Main!$I18)*(1+Main!$I$2+VLOOKUP('Random Years'!AX12,'Hist Returns'!$A$12:$D$107,2,FALSE))","v":{"v":723264.0330414153,"d":"723,264"}},{"$f":"($A12-$A11)/365.25*(BA11+Main!$I18)*(1+Main!$I$2+VLOOKUP('Random Years'!AY12,'Hist Returns'!$A$12:$D$107,2,FALSE))","v":{"v":276563.8749563748,"d":"276,564"}},{"$f":"($A12-$A11)/365.25*(BB11+Main!$I18)*(1+Main!$I$2+VLOOKUP('Random Years'!AZ12,'Hist Returns'!$A$12:$D$107,2,FALSE))","v":{"v":1065327.7008325532,"d":"1,065,328"}},{"$f":"($A12-$A11)/365.25*(BC11+Main!$I18)*(1+Main!$I$2+VLOOKUP('Random Years'!BA12,'Hist Returns'!$A$12:$D$107,2,FALSE))","v":{"v":1670221.6090705476,"d":"1,670,222"}},{"$f":"($A12-$A11)/365.25*(BD11+Main!$I18)*(1+Main!$I$2+VLOOKUP('Random Years'!BB12,'Hist Returns'!$A$12:$D$107,2,FALSE))","v":{"v":1791346.8217277254,"d":"1,791,347"}},{"$f":"($A12-$A11)/365.25*(BE11+Main!$I18)*(1+Main!$I$2+VLOOKUP('Random Years'!BC12,'Hist Returns'!$A$12:$D$107,2,FALSE))","v":{"v":1015110.7959648914,"d":"1,015,111"}},{"$f":"($A12-$A11)/365.25*(BF11+Main!$I18)*(1+Main!$I$2+VLOOKUP('Random Years'!BD12,'Hist Returns'!$A$12:$D$107,2,FALSE))","v":{"v":159056.84940681985,"d":"159,057"}},{"$f":"($A12-$A11)/365.25*(BG11+Main!$I18)*(1+Main!$I$2+VLOOKUP('Random Years'!BE12,'Hist Returns'!$A$12:$D$107,2,FALSE))","v":{"v":819899.2037087408,"d":"819,899"}},{"$f":"($A12-$A11)/365.25*(BH11+Main!$I18)*(1+Main!$I$2+VLOOKUP('Random Years'!BF12,'Hist Returns'!$A$12:$D$107,2,FALSE))","v":{"v":728252.106175638,"d":"728,252"}},{"$f":"($A12-$A11)/365.25*(BI11+Main!$I18)*(1+Main!$I$2+VLOOKUP('Random Years'!BG12,'Hist Returns'!$A$12:$D$107,2,FALSE))","v":{"v":1859510.1944588462,"d":"1,859,510"}},{"$f":"($A12-$A11)/365.25*(BJ11+Main!$I18)*(1+Main!$I$2+VLOOKUP('Random Years'!BH12,'Hist Returns'!$A$12:$D$107,2,FALSE))","v":{"v":1000923.8797758525,"d":"1,000,924"}},{"$f":"($A12-$A11)/365.25*(BK11+Main!$I18)*(1+Main!$I$2+VLOOKUP('Random Years'!BI12,'Hist Returns'!$A$12:$D$107,2,FALSE))","v":{"v":965899.5148807422,"d":"965,900"}},{"$f":"($A12-$A11)/365.25*(BL11+Main!$I18)*(1+Main!$I$2+VLOOKUP('Random Years'!BJ12,'Hist Returns'!$A$12:$D$107,2,FALSE))","v":{"v":1664944.1864761082,"d":"1,664,944"}},{"$f":"($A12-$A11)/365.25*(BM11+Main!$I18)*(1+Main!$I$2+VLOOKUP('Random Years'!BK12,'Hist Returns'!$A$12:$D$107,2,FALSE))","v":{"v":584603.0531585122,"d":"584,603"}},{"$f":"($A12-$A11)/365.25*(BN11+Main!$I18)*(1+Main!$I$2+VLOOKUP('Random Years'!BL12,'Hist Returns'!$A$12:$D$107,2,FALSE))","v":{"v":2221518.879080372,"d":"2,221,519"}},{"$f":"($A12-$A11)/365.25*(BO11+Main!$I18)*(1+Main!$I$2+VLOOKUP('Random Years'!BM12,'Hist Returns'!$A$12:$D$107,2,FALSE))","v":{"v":1339433.2860999522,"d":"1,339,433"}},{"$f":"($A12-$A11)/365.25*(BP11+Main!$I18)*(1+Main!$I$2+VLOOKUP('Random Years'!BN12,'Hist Returns'!$A$12:$D$107,2,FALSE))","v":{"v":2806735.5508006033,"d":"2,806,736"}},{"$f":"($A12-$A11)/365.25*(BQ11+Main!$I18)*(1+Main!$I$2+VLOOKUP('Random Years'!BO12,'Hist Returns'!$A$12:$D$107,2,FALSE))","v":{"v":1930109.7607451552,"d":"1,930,110"}},{"$f":"($A12-$A11)/365.25*(BR11+Main!$I18)*(1+Main!$I$2+VLOOKUP('Random Years'!BP12,'Hist Returns'!$A$12:$D$107,2,FALSE))","v":{"v":3438343.4049722278,"d":"3,438,343"}},{"$f":"($A12-$A11)/365.25*(BS11+Main!$I18)*(1+Main!$I$2+VLOOKUP('Random Years'!BQ12,'Hist Returns'!$A$12:$D$107,2,FALSE))","v":{"v":2057006.024616329,"d":"2,057,006"}},{"$f":"($A12-$A11)/365.25*(BT11+Main!$I18)*(1+Main!$I$2+VLOOKUP('Random Years'!BR12,'Hist Returns'!$A$12:$D$107,2,FALSE))","v":{"v":734398.6864608071,"d":"734,399"}},{"$f":"($A12-$A11)/365.25*(BU11+Main!$I18)*(1+Main!$I$2+VLOOKUP('Random Years'!BS12,'Hist Returns'!$A$12:$D$107,2,FALSE))","v":{"v":542061.0799623828,"d":"542,061"}},{"$f":"($A12-$A11)/365.25*(BV11+Main!$I18)*(1+Main!$I$2+VLOOKUP('Random Years'!BT12,'Hist Returns'!$A$12:$D$107,2,FALSE))","v":{"v":1738275.0388578726,"d":"1,738,275"}},{"$f":"($A12-$A11)/365.25*(BW11+Main!$I18)*(1+Main!$I$2+VLOOKUP('Random Years'!BU12,'Hist Returns'!$A$12:$D$107,2,FALSE))","v":{"v":667371.9193193049,"d":"667,372"}},{"$f":"($A12-$A11)/365.25*(BX11+Main!$I18)*(1+Main!$I$2+VLOOKUP('Random Years'!BV12,'Hist Returns'!$A$12:$D$107,2,FALSE))","v":{"v":2434308.532414421,"d":"2,434,309"}},{"$f":"($A12-$A11)/365.25*(BY11+Main!$I18)*(1+Main!$I$2+VLOOKUP('Random Years'!BW12,'Hist Returns'!$A$12:$D$107,2,FALSE))","v":{"v":1652833.7120781094,"d":"1,652,834"}},{"$f":"($A12-$A11)/365.25*(BZ11+Main!$I18)*(1+Main!$I$2+VLOOKUP('Random Years'!BX12,'Hist Returns'!$A$12:$D$107,2,FALSE))","v":{"v":1095107.814242642,"d":"1,095,108"}},{"$f":"($A12-$A11)/365.25*(CA11+Main!$I18)*(1+Main!$I$2+VLOOKUP('Random Years'!BY12,'Hist Returns'!$A$12:$D$107,2,FALSE))","v":{"v":1549587.884062919,"d":"1,549,588"}},{"$f":"($A12-$A11)/365.25*(CB11+Main!$I18)*(1+Main!$I$2+VLOOKUP('Random Years'!BZ12,'Hist Returns'!$A$12:$D$107,2,FALSE))","v":{"v":725103.3528600041,"d":"725,103"}},{"$f":"($A12-$A11)/365.25*(CC11+Main!$I18)*(1+Main!$I$2+VLOOKUP('Random Years'!CA12,'Hist Returns'!$A$12:$D$107,2,FALSE))","v":{"v":987987.2403491545,"d":"987,987"}},{"$f":"($A12-$A11)/365.25*(CD11+Main!$I18)*(1+Main!$I$2+VLOOKUP('Random Years'!CB12,'Hist Returns'!$A$12:$D$107,2,FALSE))","v":{"v":2380024.3416543268,"d":"2,380,024"}},{"$f":"($A12-$A11)/365.25*(CE11+Main!$I18)*(1+Main!$I$2+VLOOKUP('Random Years'!CC12,'Hist Returns'!$A$12:$D$107,2,FALSE))","v":{"v":3928560.487339141,"d":"3,928,560"}},{"$f":"($A12-$A11)/365.25*(CF11+Main!$I18)*(1+Main!$I$2+VLOOKUP('Random Years'!CD12,'Hist Returns'!$A$12:$D$107,2,FALSE))","v":{"v":1495419.5007908437,"d":"1,495,420"}},{"$f":"($A12-$A11)/365.25*(CG11+Main!$I18)*(1+Main!$I$2+VLOOKUP('Random Years'!CE12,'Hist Returns'!$A$12:$D$107,2,FALSE))","v":{"v":3204664.4263234404,"d":"3,204,664"}},{"$f":"($A12-$A11)/365.25*(CH11+Main!$I18)*(1+Main!$I$2+VLOOKUP('Random Years'!CF12,'Hist Returns'!$A$12:$D$107,2,FALSE))","v":{"v":2235587.3489180068,"d":"2,235,587"}},{"$f":"($A12-$A11)/365.25*(CI11+Main!$I18)*(1+Main!$I$2+VLOOKUP('Random Years'!CG12,'Hist Returns'!$A$12:$D$107,2,FALSE))","v":{"v":745600.6709508228,"d":"745,601"}},{"$f":"($A12-$A11)/365.25*(CJ11+Main!$I18)*(1+Main!$I$2+VLOOKUP('Random Years'!CH12,'Hist Returns'!$A$12:$D$107,2,FALSE))","v":{"v":3373622.964461947,"d":"3,373,623"}},{"$f":"($A12-$A11)/365.25*(CK11+Main!$I18)*(1+Main!$I$2+VLOOKUP('Random Years'!CI12,'Hist Returns'!$A$12:$D$107,2,FALSE))","v":{"v":1377393.0475557272,"d":"1,377,393"}},{"$f":"($A12-$A11)/365.25*(CL11+Main!$I18)*(1+Main!$I$2+VLOOKUP('Random Years'!CJ12,'Hist Returns'!$A$12:$D$107,2,FALSE))","v":{"v":4751141.616207151,"d":"4,751,142"}},{"$f":"($A12-$A11)/365.25*(CM11+Main!$I18)*(1+Main!$I$2+VLOOKUP('Random Years'!CK12,'Hist Returns'!$A$12:$D$107,2,FALSE))","v":{"v":4517983.373622143,"d":"4,517,983"}},{"$f":"($A12-$A11)/365.25*(CN11+Main!$I18)*(1+Main!$I$2+VLOOKUP('Random Years'!CL12,'Hist Returns'!$A$12:$D$107,2,FALSE))","v":{"v":3347611.101597564,"d":"3,347,611"}},{"$f":"($A12-$A11)/365.25*(CO11+Main!$I18)*(1+Main!$I$2+VLOOKUP('Random Years'!CM12,'Hist Returns'!$A$12:$D$107,2,FALSE))","v":{"v":2632052.1770731276,"d":"2,632,052"}},{"$f":"($A12-$A11)/365.25*(CP11+Main!$I18)*(1+Main!$I$2+VLOOKUP('Random Years'!CN12,'Hist Returns'!$A$12:$D$107,2,FALSE))","v":{"v":271117.33228549897,"d":"271,117"}},{"$f":"($A12-$A11)/365.25*(CQ11+Main!$I18)*(1+Main!$I$2+VLOOKUP('Random Years'!CO12,'Hist Returns'!$A$12:$D$107,2,FALSE))","v":{"v":837985.8026181638,"d":"837,986"}},{"$f":"($A12-$A11)/365.25*(CR11+Main!$I18)*(1+Main!$I$2+VLOOKUP('Random Years'!CP12,'Hist Returns'!$A$12:$D$107,2,FALSE))","v":{"v":3980640.324974843,"d":"3,980,640"}},{"$f":"($A12-$A11)/365.25*(CS11+Main!$I18)*(1+Main!$I$2+VLOOKUP('Random Years'!CQ12,'Hist Returns'!$A$12:$D$107,2,FALSE))","v":{"v":1783485.7825471817,"d":"1,783,486"}},{"$f":"($A12-$A11)/365.25*(CT11+Main!$I18)*(1+Main!$I$2+VLOOKUP('Random Years'!CR12,'Hist Returns'!$A$12:$D$107,2,FALSE))","v":{"v":1580719.8805531703,"d":"1,580,720"}},{"$f":"($A12-$A11)/365.25*(CU11+Main!$I18)*(1+Main!$I$2+VLOOKUP('Random Years'!CS12,'Hist Returns'!$A$12:$D$107,2,FALSE))","v":{"v":2987230.5904299174,"d":"2,987,231"}},{"$f":"($A12-$A11)/365.25*(CV11+Main!$I18)*(1+Main!$I$2+VLOOKUP('Random Years'!CT12,'Hist Returns'!$A$12:$D$107,2,FALSE))","v":{"v":2724375.9449829147,"d":"2,724,376"}},{"$f":"($A12-$A11)/365.25*(CW11+Main!$I18)*(1+Main!$I$2+VLOOKUP('Random Years'!CU12,'Hist Returns'!$A$12:$D$107,2,FALSE))","v":{"v":657239.8040619047,"d":"657,240"}},{"$f":"($A12-$A11)/365.25*(CX11+Main!$I18)*(1+Main!$I$2+VLOOKUP('Random Years'!CV12,'Hist Returns'!$A$12:$D$107,2,FALSE))","v":{"v":2385290.44330377,"d":"2,385,290"}}]
[{"$f":"Main!A19","v":"2034-12-30"},{"$f":"Main!B19","v":80},{"$f":"($A13-$A12)/365.25*(C12+Main!$I19)*(1+Main!$I$2+VLOOKUP('Random Years'!A13,'Hist Returns'!$A$12:$D$107,2,FALSE))","v":{"v":951190.5155198205,"d":"951,191"}},{"$f":"($A13-$A12)/365.25*(D12+Main!$I19)*(1+Main!$I$2+VLOOKUP('Random Years'!B13,'Hist Returns'!$A$12:$D$107,2,FALSE))","v":{"v":1633285.8980089878,"d":"1,633,286"}},{"$f":"($A13-$A12)/365.25*(E12+Main!$I19)*(1+Main!$I$2+VLOOKUP('Random Years'!C13,'Hist Returns'!$A$12:$D$107,2,FALSE))","v":{"v":2454877.8269230854,"d":"2,454,878"}},{"$f":"($A13-$A12)/365.25*(F12+Main!$I19)*(1+Main!$I$2+VLOOKUP('Random Years'!D13,'Hist Returns'!$A$12:$D$107,2,FALSE))","v":{"v":6173727.614625241,"d":"6,173,728"}},{"$f":"($A13-$A12)/365.25*(G12+Main!$I19)*(1+Main!$I$2+VLOOKUP('Random Years'!E13,'Hist Returns'!$A$12:$D$107,2,FALSE))","v":{"v":3415232.9667740776,"d":"3,415,233"}},{"$f":"($A13-$A12)/365.25*(H12+Main!$I19)*(1+Main!$I$2+VLOOKUP('Random Years'!F13,'Hist Returns'!$A$12:$D$107,2,FALSE))","v":{"v":1453841.7081848423,"d":"1,453,842"}},{"$f":"($A13-$A12)/365.25*(I12+Main!$I19)*(1+Main!$I$2+VLOOKUP('Random Years'!G13,'Hist Returns'!$A$12:$D$107,2,FALSE))","v":{"v":1207900.2961632318,"d":"1,207,900"}},{"$f":"($A13-$A12)/365.25*(J12+Main!$I19)*(1+Main!$I$2+VLOOKUP('Random Years'!H13,'Hist Returns'!$A$12:$D$107,2,FALSE))","v":{"v":759441.1484163877,"d":"759,441"}},{"$f":"($A13-$A12)/365.25*(K12+Main!$I19)*(1+Main!$I$2+VLOOKUP('Random Years'!I13,'Hist Returns'!$A$12:$D$107,2,FALSE))","v":{"v":3699741.1318814247,"d":"3,699,741"}},{"$f":"($A13-$A12)/365.25*(L12+Main!$I19)*(1+Main!$I$2+VLOOKUP('Random Years'!J13,'Hist Returns'!$A$12:$D$107,2,FALSE))","v":{"v":3420445.710535087,"d":"3,420,446"}},{"$f":"($A13-$A12)/365.25*(M12+Main!$I19)*(1+Main!$I$2+VLOOKUP('Random Years'!K13,'Hist Returns'!$A$12:$D$107,2,FALSE))","v":{"v":1576651.3522695468,"d":"1,576,651"}},{"$f":"($A13-$A12)/365.25*(N12+Main!$I19)*(1+Main!$I$2+VLOOKUP('Random Years'!L13,'Hist Returns'!$A$12:$D$107,2,FALSE))","v":{"v":308225.91607509396,"d":"308,226"}},{"$f":"($A13-$A12)/365.25*(O12+Main!$I19)*(1+Main!$I$2+VLOOKUP('Random Years'!M13,'Hist Returns'!$A$12:$D$107,2,FALSE))","v":{"v":1135216.6202934696,"d":"1,135,217"}},{"$f":"($A13-$A12)/365.25*(P12+Main!$I19)*(1+Main!$I$2+VLOOKUP('Random Years'!N13,'Hist Returns'!$A$12:$D$107,2,FALSE))","v":{"v":929534.6611043559,"d":"929,535"}},{"$f":"($A13-$A12)/365.25*(Q12+Main!$I19)*(1+Main!$I$2+VLOOKUP('Random Years'!O13,'Hist Returns'!$A$12:$D$107,2,FALSE))","v":{"v":719485.3317382205,"d":"719,485"}},{"$f":"($A13-$A12)/365.25*(R12+Main!$I19)*(1+Main!$I$2+VLOOKUP('Random Years'!P13,'Hist Returns'!$A$12:$D$107,2,FALSE))","v":{"v":1034324.93979378,"d":"1,034,325"}},{"$f":"($A13-$A12)/365.25*(S12+Main!$I19)*(1+Main!$I$2+VLOOKUP('Random Years'!Q13,'Hist Returns'!$A$12:$D$107,2,FALSE))","v":{"v":606370.0736268917,"d":"606,370"}},{"$f":"($A13-$A12)/365.25*(T12+Main!$I19)*(1+Main!$I$2+VLOOKUP('Random Years'!R13,'Hist Returns'!$A$12:$D$107,2,FALSE))","v":{"v":608331.5330494755,"d":"608,332"}},{"$f":"($A13-$A12)/365.25*(U12+Main!$I19)*(1+Main!$I$2+VLOOKUP('Random Years'!S13,'Hist Returns'!$A$12:$D$107,2,FALSE))","v":{"v":919440.8463942452,"d":"919,441"}},{"$f":"($A13-$A12)/365.25*(V12+Main!$I19)*(1+Main!$I$2+VLOOKUP('Random Years'!T13,'Hist Returns'!$A$12:$D$107,2,FALSE))","v":{"v":3390628.744811392,"d":"3,390,629"}},{"$f":"($A13-$A12)/365.25*(W12+Main!$I19)*(1+Main!$I$2+VLOOKUP('Random Years'!U13,'Hist Returns'!$A$12:$D$107,2,FALSE))","v":{"v":3030966.4894871535,"d":"3,030,966"}},{"$f":"($A13-$A12)/365.25*(X12+Main!$I19)*(1+Main!$I$2+VLOOKUP('Random Years'!V13,'Hist Returns'!$A$12:$D$107,2,FALSE))","v":{"v":1325694.2678302934,"d":"1,325,694"}},{"$f":"($A13-$A12)/365.25*(Y12+Main!$I19)*(1+Main!$I$2+VLOOKUP('Random Years'!W13,'Hist Returns'!$A$12:$D$107,2,FALSE))","v":{"v":992111.2439751908,"d":"992,111"}},{"$f":"($A13-$A12)/365.25*(Z12+Main!$I19)*(1+Main!$I$2+VLOOKUP('Random Years'!X13,'Hist Returns'!$A$12:$D$107,2,FALSE))","v":{"v":1138131.810778104,"d":"1,138,132"}},{"$f":"($A13-$A12)/365.25*(AA12+Main!$I19)*(1+Main!$I$2+VLOOKUP('Random Years'!Y13,'Hist Returns'!$A$12:$D$107,2,FALSE))","v":{"v":2116968.3109624335,"d":"2,116,968"}},{"$f":"($A13-$A12)/365.25*(AB12+Main!$I19)*(1+Main!$I$2+VLOOKUP('Random Years'!Z13,'Hist Returns'!$A$12:$D$107,2,FALSE))","v":{"v":1103799.430527045,"d":"1,103,799"}},{"$f":"($A13-$A12)/365.25*(AC12+Main!$I19)*(1+Main!$I$2+VLOOKUP('Random Years'!AA13,'Hist Returns'!$A$12:$D$107,2,FALSE))","v":{"v":1276062.3113167244,"d":"1,276,062"}},{"$f":"($A13-$A12)/365.25*(AD12+Main!$I19)*(1+Main!$I$2+VLOOKUP('Random Years'!AB13,'Hist Returns'!$A$12:$D$107,2,FALSE))","v":{"v":997902.8041646449,"d":"997,903"}},{"$f":"($A13-$A12)/365.25*(AE12+Main!$I19)*(1+Main!$I$2+VLOOKUP('Random Years'!AC13,'Hist Returns'!$A$12:$D$107,2,FALSE))","v":{"v":640399.0710287335,"d":"640,399"}},{"$f":"($A13-$A12)/365.25*(AF12+Main!$I19)*(1+Main!$I$2+VLOOKUP('Random Years'!AD13,'Hist Returns'!$A$12:$D$107,2,FALSE))","v":{"v":4239263.809716363,"d":"4,239,264"}},{"$f":"($A13-$A12)/365.25*(AG12+Main!$I19)*(1+Main!$I$2+VLOOKUP('Random Years'!AE13,'Hist Returns'!$A$12:$D$107,2,FALSE))","v":{"v":3465873.9700519345,"d":"3,465,874"}},{"$f":"($A13-$A12)/365.25*(AH12+Main!$I19)*(1+Main!$I$2+VLOOKUP('Random Years'!AF13,'Hist Returns'!$A$12:$D$107,2,FALSE))","v":{"v":2039705.5713707164,"d":"2,039,706"}},{"$f":"($A13-$A12)/365.25*(AI12+Main!$I19)*(1+Main!$I$2+VLOOKUP('Random Years'!AG13,'Hist Returns'!$A$12:$D$107,2,FALSE))","v":{"v":1888221.5842446182,"d":"1,888,222"}},{"$f":"($A13-$A12)/365.25*(AJ12+Main!$I19)*(1+Main!$I$2+VLOOKUP('Random Years'!AH13,'Hist Returns'!$A$12:$D$107,2,FALSE))","v":{"v":2207731.8515272266,"d":"2,207,732"}},{"$f":"($A13-$A12)/365.25*(AK12+Main!$I19)*(1+Main!$I$2+VLOOKUP('Random Years'!AI13,'Hist Returns'!$A$12:$D$107,2,FALSE))","v":{"v":907328.8881968153,"d":"907,329"}},{"$f":"($A13-$A12)/365.25*(AL12+Main!$I19)*(1+Main!$I$2+VLOOKUP('Random Years'!AJ13,'Hist Returns'!$A$12:$D$107,2,FALSE))","v":{"v":2297710.6308994005,"d":"2,297,711"}},{"$f":"($A13-$A12)/365.25*(AM12+Main!$I19)*(1+Main!$I$2+VLOOKUP('Random Years'!AK13,'Hist Returns'!$A$12:$D$107,2,FALSE))","v":{"v":381984.1689184974,"d":"381,984"}},{"$f":"($A13-$A12)/365.25*(AN12+Main!$I19)*(1+Main!$I$2+VLOOKUP('Random Years'!AL13,'Hist Returns'!$A$12:$D$107,2,FALSE))","v":{"v":3491011.740766812,"d":"3,491,012"}},{"$f":"($A13-$A12)/365.25*(AO12+Main!$I19)*(1+Main!$I$2+VLOOKUP('Random Years'!AM13,'Hist Returns'!$A$12:$D$107,2,FALSE))","v":{"v":1578362.7368010965,"d":"1,578,363"}},{"$f":"($A13-$A12)/365.25*(AP12+Main!$I19)*(1+Main!$I$2+VLOOKUP('Random Years'!AN13,'Hist Returns'!$A$12:$D$107,2,FALSE))","v":{"v":3222924.117093268,"d":"3,222,924"}},{"$f":"($A13-$A12)/365.25*(AQ12+Main!$I19)*(1+Main!$I$2+VLOOKUP('Random Years'!AO13,'Hist Returns'!$A$12:$D$107,2,FALSE))","v":{"v":633172.5505348265,"d":"633,173"}},{"$f":"($A13-$A12)/365.25*(AR12+Main!$I19)*(1+Main!$I$2+VLOOKUP('Random Years'!AP13,'Hist Returns'!$A$12:$D$107,2,FALSE))","v":{"v":2804284.732551513,"d":"2,804,285"}},{"$f":"($A13-$A12)/365.25*(AS12+Main!$I19)*(1+Main!$I$2+VLOOKUP('Random Years'!AQ13,'Hist Returns'!$A$12:$D$107,2,FALSE))","v":{"v":1570031.3799762863,"d":"1,570,031"}},{"$f":"($A13-$A12)/365.25*(AT12+Main!$I19)*(1+Main!$I$2+VLOOKUP('Random Years'!AR13,'Hist Returns'!$A$12:$D$107,2,FALSE))","v":{"v":646839.057267166,"d":"646,839"}},{"$f":"($A13-$A12)/365.25*(AU12+Main!$I19)*(1+Main!$I$2+VLOOKUP('Random Years'!AS13,'Hist Returns'!$A$12:$D$107,2,FALSE))","v":{"v":2601966.262513822,"d":"2,601,966"}},{"$f":"($A13-$A12)/365.25*(AV12+Main!$I19)*(1+Main!$I$2+VLOOKUP('Random Years'!AT13,'Hist Returns'!$A$12:$D$107,2,FALSE))","v":{"v":1831613.2498009477,"d":"1,831,613"}},{"$f":"($A13-$A12)/365.25*(AW12+Main!$I19)*(1+Main!$I$2+VLOOKUP('Random Years'!AU13,'Hist Returns'!$A$12:$D$107,2,FALSE))","v":{"v":1379878.2921681136,"d":"1,379,878"}},{"$f":"($A13-$A12)/365.25*(AX12+Main!$I19)*(1+Main!$I$2+VLOOKUP('Random Years'!AV13,'Hist Returns'!$A$12:$D$107,2,FALSE))","v":{"v":2448796.4120639684,"d":"2,448,796"}},{"$f":"($A13-$A12)/365.25*(AY12+Main!$I19)*(1+Main!$I$2+VLOOKUP('Random Years'!AW13,'Hist Returns'!$A$12:$D$107,2,FALSE))","v":{"v":2544628.7289022407,"d":"2,544,629"}},{"$f":"($A13-$A12)/365.25*(AZ12+Main!$I19)*(1+Main!$I$2+VLOOKUP('Random Years'!AX13,'Hist Returns'!$A$12:$D$107,2,FALSE))","v":{"v":642255.1494483607,"d":"642,255"}},{"$f":"($A13-$A12)/365.25*(BA12+Main!$I19)*(1+Main!$I$2+VLOOKUP('Random Years'!AY13,'Hist Returns'!$A$12:$D$107,2,FALSE))","v":{"v":321502.2989521094,"d":"321,502"}},{"$f":"($A13-$A12)/365.25*(BB12+Main!$I19)*(1+Main!$I$2+VLOOKUP('Random Years'!AZ13,'Hist Returns'!$A$12:$D$107,2,FALSE))","v":{"v":846362.9225250405,"d":"846,363"}},{"$f":"($A13-$A12)/365.25*(BC12+Main!$I19)*(1+Main!$I$2+VLOOKUP('Random Years'!BA13,'Hist Returns'!$A$12:$D$107,2,FALSE))","v":{"v":1813768.5517889017,"d":"1,813,769"}},{"$f":"($A13-$A12)/365.25*(BD12+Main!$I19)*(1+Main!$I$2+VLOOKUP('Random Years'!BB13,'Hist Returns'!$A$12:$D$107,2,FALSE))","v":{"v":2124920.2587008676,"d":"2,124,920"}},{"$f":"($A13-$A12)/365.25*(BE12+Main!$I19)*(1+Main!$I$2+VLOOKUP('Random Years'!BC13,'Hist Returns'!$A$12:$D$107,2,FALSE))","v":{"v":951997.4868084101,"d":"951,997"}},{"$f":"($A13-$A12)/365.25*(BF12+Main!$I19)*(1+Main!$I$2+VLOOKUP('Random Years'!BD13,'Hist Returns'!$A$12:$D$107,2,FALSE))","v":{"v":150904.0752353524,"d":"150,904"}},{"$f":"($A13-$A12)/365.25*(BG12+Main!$I19)*(1+Main!$I$2+VLOOKUP('Random Years'!BE13,'Hist Returns'!$A$12:$D$107,2,FALSE))","v":{"v":645273.8299883887,"d":"645,274"}},{"$f":"($A13-$A12)/365.25*(BH12+Main!$I19)*(1+Main!$I$2+VLOOKUP('Random Years'!BF13,'Hist Returns'!$A$12:$D$107,2,FALSE))","v":{"v":892625.9132335993,"d":"892,626"}},{"$f":"($A13-$A12)/365.25*(BI12+Main!$I19)*(1+Main!$I$2+VLOOKUP('Random Years'!BG13,'Hist Returns'!$A$12:$D$107,2,FALSE))","v":{"v":1938138.0082853436,"d":"1,938,138"}},{"$f":"($A13-$A12)/365.25*(BJ12+Main!$I19)*(1+Main!$I$2+VLOOKUP('Random Years'!BH13,'Hist Returns'!$A$12:$D$107,2,FALSE))","v":{"v":957292.5489511028,"d":"957,293"}},{"$f":"($A13-$A12)/365.25*(BK12+Main!$I19)*(1+Main!$I$2+VLOOKUP('Random Years'!BI13,'Hist Returns'!$A$12:$D$107,2,FALSE))","v":{"v":839895.0680531749,"d":"839,895"}},{"$f":"($A13-$A12)/365.25*(BL12+Main!$I19)*(1+Main!$I$2+VLOOKUP('Random Years'!BJ13,'Hist Returns'!$A$12:$D$107,2,FALSE))","v":{"v":1828180.7753213248,"d":"1,828,181"}},{"$f":"($A13-$A12)/365.25*(BM12+Main!$I19)*(1+Main!$I$2+VLOOKUP('Random Years'!BK13,'Hist Returns'!$A$12:$D$107,2,FALSE))","v":{"v":718740.2909153888,"d":"718,740"}},{"$f":"($A13-$A12)/365.25*(BN12+Main!$I19)*(1+Main!$I$2+VLOOKUP('Random Years'!BL13,'Hist Returns'!$A$12:$D$107,2,FALSE))","v":{"v":2971324.723504747,"d":"2,971,325"}},{"$f":"($A13-$A12)/365.25*(BO12+Main!$I19)*(1+Main!$I$2+VLOOKUP('Random Years'!BM13,'Hist Returns'!$A$12:$D$107,2,FALSE))","v":{"v":1545269.3292259395,"d":"1,545,269"}},{"$f":"($A13-$A12)/365.25*(BP12+Main!$I19)*(1+Main!$I$2+VLOOKUP('Random Years'!BN13,'Hist Returns'!$A$12:$D$107,2,FALSE))","v":{"v":2830668.979684882,"d":"2,830,669"}},{"$f":"($A13-$A12)/365.25*(BQ12+Main!$I19)*(1+Main!$I$2+VLOOKUP('Random Years'!BO13,'Hist Returns'!$A$12:$D$107,2,FALSE))","v":{"v":2019912.2940928282,"d":"2,019,912"}},{"$f":"($A13-$A12)/365.25*(BR12+Main!$I19)*(1+Main!$I$2+VLOOKUP('Random Years'!BP13,'Hist Returns'!$A$12:$D$107,2,FALSE))","v":{"v":5192747.810098677,"d":"5,192,748"}},{"$f":"($A13-$A12)/365.25*(BS12+Main!$I19)*(1+Main!$I$2+VLOOKUP('Random Years'!BQ13,'Hist Returns'!$A$12:$D$107,2,FALSE))","v":{"v":2051196.5496009681,"d":"2,051,197"}},{"$f":"($A13-$A12)/365.25*(BT12+Main!$I19)*(1+Main!$I$2+VLOOKUP('Random Years'!BR13,'Hist Returns'!$A$12:$D$107,2,FALSE))","v":{"v":638208.457883428,"d":"638,208"}},{"$f":"($A13-$A12)/365.25*(BU12+Main!$I19)*(1+Main!$I$2+VLOOKUP('Random Years'!BS13,'Hist Returns'!$A$12:$D$107,2,FALSE))","v":{"v":458578.5452141433,"d":"458,579"}},{"$f":"($A13-$A12)/365.25*(BV12+Main!$I19)*(1+Main!$I$2+VLOOKUP('Random Years'!BT13,'Hist Returns'!$A$12:$D$107,2,FALSE))","v":{"v":1460844.292928184,"d":"1,460,844"}},{"$f":"($A13-$A12)/365.25*(BW12+Main!$I19)*(1+Main!$I$2+VLOOKUP('Random Years'!BU13,'Hist Returns'!$A$12:$D$107,2,FALSE))","v":{"v":577277.160766851,"d":"577,277"}},{"$f":"($A13-$A12)/365.25*(BX12+Main!$I19)*(1+Main!$I$2+VLOOKUP('Random Years'!BV13,'Hist Returns'!$A$12:$D$107,2,FALSE))","v":{"v":2373974.5476633436,"d":"2,373,975"}},{"$f":"($A13-$A12)/365.25*(BY12+Main!$I19)*(1+Main!$I$2+VLOOKUP('Random Years'!BW13,'Hist Returns'!$A$12:$D$107,2,FALSE))","v":{"v":2124950.0136118364,"d":"2,124,950"}},{"$f":"($A13-$A12)/365.25*(BZ12+Main!$I19)*(1+Main!$I$2+VLOOKUP('Random Years'!BX13,'Hist Returns'!$A$12:$D$107,2,FALSE))","v":{"v":1364397.0361970467,"d":"1,364,397"}},{"$f":"($A13-$A12)/365.25*(CA12+Main!$I19)*(1+Main!$I$2+VLOOKUP('Random Years'!BY13,'Hist Returns'!$A$12:$D$107,2,FALSE))","v":{"v":1391248.4774025022,"d":"1,391,248"}},{"$f":"($A13-$A12)/365.25*(CB12+Main!$I19)*(1+Main!$I$2+VLOOKUP('Random Years'!BZ13,'Hist Returns'!$A$12:$D$107,2,FALSE))","v":{"v":632454.5815504664,"d":"632,455"}},{"$f":"($A13-$A12)/365.25*(CC12+Main!$I19)*(1+Main!$I$2+VLOOKUP('Random Years'!CA13,'Hist Returns'!$A$12:$D$107,2,FALSE))","v":{"v":874490.8995163647,"d":"874,491"}},{"$f":"($A13-$A12)/365.25*(CD12+Main!$I19)*(1+Main!$I$2+VLOOKUP('Random Years'!CB13,'Hist Returns'!$A$12:$D$107,2,FALSE))","v":{"v":2971012.6505631222,"d":"2,971,013"}},{"$f":"($A13-$A12)/365.25*(CE12+Main!$I19)*(1+Main!$I$2+VLOOKUP('Random Years'!CC13,'Hist Returns'!$A$12:$D$107,2,FALSE))","v":{"v":5129176.074929395,"d":"5,129,176"}},{"$f":"($A13-$A12)/365.25*(CF12+Main!$I19)*(1+Main!$I$2+VLOOKUP('Random Years'!CD13,'Hist Returns'!$A$12:$D$107,2,FALSE))","v":{"v":1918753.9640146531,"d":"1,918,754"}},{"$f":"($A13-$A12)/365.25*(CG12+Main!$I19)*(1+Main!$I$2+VLOOKUP('Random Years'!CE13,'Hist Returns'!$A$12:$D$107,2,FALSE))","v":{"v":3213896.267581788,"d":"3,213,896"}},{"$f":"($A13-$A12)/365.25*(CH12+Main!$I19)*(1+Main!$I$2+VLOOKUP('Random Years'!CF13,'Hist Returns'!$A$12:$D$107,2,FALSE))","v":{"v":2019035.6933026083,"d":"2,019,036"}},{"$f":"($A13-$A12)/365.25*(CI12+Main!$I19)*(1+Main!$I$2+VLOOKUP('Random Years'!CG13,'Hist Returns'!$A$12:$D$107,2,FALSE))","v":{"v":814131.3564186912,"d":"814,131"}},{"$f":"($A13-$A12)/365.25*(CJ12+Main!$I19)*(1+Main!$I$2+VLOOKUP('Random Years'!CH13,'Hist Returns'!$A$12:$D$107,2,FALSE))","v":{"v":4574255.455188236,"d":"4,574,255"}},{"$f":"($A13-$A12)/365.25*(CK12+Main!$I19)*(1+Main!$I$2+VLOOKUP('Random Years'!CI13,'Hist Returns'!$A$12:$D$107,2,FALSE))","v":{"v":1702172.378992782,"d":"1,702,172"}},{"$f":"($A13-$A12)/365.25*(CL12+Main!$I19)*(1+Main!$I$2+VLOOKUP('Random Years'!CJ13,'Hist Returns'!$A$12:$D$107,2,FALSE))","v":{"v":4300056.589967163,"d":"4,300,057"}},{"$f":"($A13-$A12)/365.25*(CM12+Main!$I19)*(1+Main!$I$2+VLOOKUP('Random Years'!CK13,'Hist Returns'!$A$12:$D$107,2,FALSE))","v":{"v":3321503.026923116,"d":"3,321,503"}},{"$f":"($A13-$A12)/365.25*(CN12+Main!$I19)*(1+Main!$I$2+VLOOKUP('Random Years'!CL13,'Hist Returns'!$A$12:$D$107,2,FALSE))","v":{"v":3671293.1369519853,"d":"3,671,293"}},{"$f":"($A13-$A12)/365.25*(CO12+Main!$I19)*(1+Main!$I$2+VLOOKUP('Random Years'!CM13,'Hist Returns'!$A$12:$D$107,2,FALSE))","v":{"v":3027552.251290659,"d":"3,027,552"}},{"$f":"($A13-$A12)/365.25*(CP12+Main!$I19)*(1+Main!$I$2+VLOOKUP('Random Years'!CN13,'Hist Returns'!$A$12:$D$107,2,FALSE))","v":{"v":315310.1097176775,"d":"315,310"}},{"$f":"($A13-$A12)/365.25*(CQ12+Main!$I19)*(1+Main!$I$2+VLOOKUP('Random Years'!CO13,'Hist Returns'!$A$12:$D$107,2,FALSE))","v":{"v":1006855.4785003413,"d":"1,006,855"}},{"$f":"($A13-$A12)/365.25*(CR12+Main!$I19)*(1+Main!$I$2+VLOOKUP('Random Years'!CP13,'Hist Returns'!$A$12:$D$107,2,FALSE))","v":{"v":5202564.131688909,"d":"5,202,564"}},{"$f":"($A13-$A12)/365.25*(CS12+Main!$I19)*(1+Main!$I$2+VLOOKUP('Random Years'!CQ13,'Hist Returns'!$A$12:$D$107,2,FALSE))","v":{"v":2516612.267931994,"d":"2,516,612"}},{"$f":"($A13-$A12)/365.25*(CT12+Main!$I19)*(1+Main!$I$2+VLOOKUP('Random Years'!CR13,'Hist Returns'!$A$12:$D$107,2,FALSE))","v":{"v":2000410.164256121,"d":"2,000,410"}},{"$f":"($A13-$A12)/365.25*(CU12+Main!$I19)*(1+Main!$I$2+VLOOKUP('Random Years'!CS13,'Hist Returns'!$A$12:$D$107,2,FALSE))","v":{"v":4428769.958724689,"d":"4,428,770"}},{"$f":"($A13-$A12)/365.25*(CV12+Main!$I19)*(1+Main!$I$2+VLOOKUP('Random Years'!CT13,'Hist Returns'!$A$12:$D$107,2,FALSE))","v":{"v":3178484.28581443,"d":"3,178,484"}},{"$f":"($A13-$A12)/365.25*(CW12+Main!$I19)*(1+Main!$I$2+VLOOKUP('Random Years'!CU13,'Hist Returns'!$A$12:$D$107,2,FALSE))","v":{"v":605330.7212789957,"d":"605,331"}},{"$f":"($A13-$A12)/365.25*(CX12+Main!$I19)*(1+Main!$I$2+VLOOKUP('Random Years'!CV13,'Hist Returns'!$A$12:$D$107,2,FALSE))","v":{"v":2148124.121902392,"d":"2,148,124"}}]
[{"$f":"Main!A20","v":"2035-12-31"},{"$f":"Main!B20","v":81},{"$f":"($A14-$A13)/365.25*(C13+Main!$I20)*(1+Main!$I$2+VLOOKUP('Random Years'!A14,'Hist Returns'!$A$12:$D$107,2,FALSE))","v":{"v":964005.1208656225,"d":"964,005"}},{"$f":"($A14-$A13)/365.25*(D13+Main!$I20)*(1+Main!$I$2+VLOOKUP('Random Years'!B14,'Hist Returns'!$A$12:$D$107,2,FALSE))","v":{"v":1512998.3291155759,"d":"1,512,998"}},{"$f":"($A14-$A13)/365.25*(E13+Main!$I20)*(1+Main!$I$2+VLOOKUP('Random Years'!C14,'Hist Returns'!$A$12:$D$107,2,FALSE))","v":{"v":1898627.7877573604,"d":"1,898,628"}},{"$f":"($A14-$A13)/365.25*(F13+Main!$I20)*(1+Main!$I$2+VLOOKUP('Random Years'!D14,'Hist Returns'!$A$12:$D$107,2,FALSE))","v":{"v":4524155.8112346,"d":"4,524,156"}},{"$f":"($A14-$A13)/365.25*(G13+Main!$I20)*(1+Main!$I$2+VLOOKUP('Random Years'!E14,'Hist Returns'!$A$12:$D$107,2,FALSE))","v":{"v":3947347.7800289853,"d":"3,947,348"}},{"$f":"($A14-$A13)/365.25*(H13+Main!$I20)*(1+Main!$I$2+VLOOKUP('Random Years'!F14,'Hist Returns'!$A$12:$D$107,2,FALSE))","v":{"v":1722580.1140580846,"d":"1,722,580"}},{"$f":"($A14-$A13)/365.25*(I13+Main!$I20)*(1+Main!$I$2+VLOOKUP('Random Years'!G14,'Hist Returns'!$A$12:$D$107,2,FALSE))","v":{"v":1269038.517892256,"d":"1,269,039"}},{"$f":"($A14-$A13)/365.25*(J13+Main!$I20)*(1+Main!$I$2+VLOOKUP('Random Years'!H14,'Hist Returns'!$A$12:$D$107,2,FALSE))","v":{"v":776723.2783580291,"d":"776,723"}},{"$f":"($A14-$A13)/365.25*(K13+Main!$I20)*(1+Main!$I$2+VLOOKUP('Random Years'!I14,'Hist Returns'!$A$12:$D$107,2,FALSE))","v":{"v":2921387.0296112555,"d":"2,921,387"}},{"$f":"($A14-$A13)/365.25*(L13+Main!$I20)*(1+Main!$I$2+VLOOKUP('Random Years'!J14,'Hist Returns'!$A$12:$D$107,2,FALSE))","v":{"v":4060651.7546869274,"d":"4,060,652"}},{"$f":"($A14-$A13)/365.25*(M13+Main!$I20)*(1+Main!$I$2+VLOOKUP('Random Years'!K14,'Hist Returns'!$A$12:$D$107,2,FALSE))","v":{"v":1844382.5444859047,"d":"1,844,383"}},{"$f":"($A14-$A13)/365.25*(N13+Main!$I20)*(1+Main!$I$2+VLOOKUP('Random Years'!L14,'Hist Returns'!$A$12:$D$107,2,FALSE))","v":{"v":150116.69028558765,"d":"150,117"}},{"$f":"($A14-$A13)/365.25*(O13+Main!$I20)*(1+Main!$I$2+VLOOKUP('Random Years'!M14,'Hist Returns'!$A$12:$D$107,2,FALSE))","v":{"v":1274972.484086006,"d":"1,274,972"}},{"$f":"($A14-$A13)/365.25*(P13+Main!$I20)*(1+Main!$I$2+VLOOKUP('Random Years'!N14,'Hist Returns'!$A$12:$D$107,2,FALSE))","v":{"v":846197.9943471953,"d":"846,198"}},{"$f":"($A14-$A13)/365.25*(Q13+Main!$I20)*(1+Main!$I$2+VLOOKUP('Random Years'!O14,'Hist Returns'!$A$12:$D$107,2,FALSE))","v":{"v":662203.3360325705,"d":"662,203"}},{"$f":"($A14-$A13)/365.25*(R13+Main!$I20)*(1+Main!$I$2+VLOOKUP('Random Years'!P14,'Hist Returns'!$A$12:$D$107,2,FALSE))","v":{"v":1002839.8753955731,"d":"1,002,840"}},{"$f":"($A14-$A13)/365.25*(S13+Main!$I20)*(1+Main!$I$2+VLOOKUP('Random Years'!Q14,'Hist Returns'!$A$12:$D$107,2,FALSE))","v":{"v":464938.11724068754,"d":"464,938"}},{"$f":"($A14-$A13)/365.25*(T13+Main!$I20)*(1+Main!$I$2+VLOOKUP('Random Years'!R14,'Hist Returns'!$A$12:$D$107,2,FALSE))","v":{"v":344811.721110004,"d":"344,812"}},{"$f":"($A14-$A13)/365.25*(U13+Main!$I20)*(1+Main!$I$2+VLOOKUP('Random Years'!S14,'Hist Returns'!$A$12:$D$107,2,FALSE))","v":{"v":873445.8730427547,"d":"873,446"}},{"$f":"($A14-$A13)/365.25*(V13+Main!$I20)*(1+Main!$I$2+VLOOKUP('Random Years'!T14,'Hist Returns'!$A$12:$D$107,2,FALSE))","v":{"v":3787407.4947603396,"d":"3,787,407"}},{"$f":"($A14-$A13)/365.25*(W13+Main!$I20)*(1+Main!$I$2+VLOOKUP('Random Years'!U14,'Hist Returns'!$A$12:$D$107,2,FALSE))","v":{"v":2756915.763170367,"d":"2,756,916"}},{"$f":"($A14-$A13)/365.25*(X13+Main!$I20)*(1+Main!$I$2+VLOOKUP('Random Years'!V14,'Hist Returns'!$A$12:$D$107,2,FALSE))","v":{"v":1081838.7839753965,"d":"1,081,839"}},{"$f":"($A14-$A13)/365.25*(Y13+Main!$I20)*(1+Main!$I$2+VLOOKUP('Random Years'!W14,'Hist Returns'!$A$12:$D$107,2,FALSE))","v":{"v":1120673.4535984283,"d":"1,120,673"}},{"$f":"($A14-$A13)/365.25*(Z13+Main!$I20)*(1+Main!$I$2+VLOOKUP('Random Years'!X14,'Hist Returns'!$A$12:$D$107,2,FALSE))","v":{"v":1178574.9673299775,"d":"1,178,575"}},{"$f":"($A14-$A13)/365.25*(AA13+Main!$I20)*(1+Main!$I$2+VLOOKUP('Random Years'!Y14,'Hist Returns'!$A$12:$D$107,2,FALSE))","v":{"v":2085516.3020257074,"d":"2,085,516"}},{"$f":"($A14-$A13)/365.25*(AB13+Main!$I20)*(1+Main!$I$2+VLOOKUP('Random Years'!Z14,'Hist Returns'!$A$12:$D$107,2,FALSE))","v":{"v":847854.9827633222,"d":"847,855"}},{"$f":"($A14-$A13)/365.25*(AC13+Main!$I20)*(1+Main!$I$2+VLOOKUP('Random Years'!AA14,'Hist Returns'!$A$12:$D$107,2,FALSE))","v":{"v":1031984.9457902868,"d":"1,031,985"}},{"$f":"($A14-$A13)/365.25*(AD13+Main!$I20)*(1+Main!$I$2+VLOOKUP('Random Years'!AB14,'Hist Returns'!$A$12:$D$107,2,FALSE))","v":{"v":1070168.869628441,"d":"1,070,169"}},{"$f":"($A14-$A13)/365.25*(AE13+Main!$I20)*(1+Main!$I$2+VLOOKUP('Random Years'!AC14,'Hist Returns'!$A$12:$D$107,2,FALSE))","v":{"v":559161.0049660933,"d":"559,161"}},{"$f":"($A14-$A13)/365.25*(AF13+Main!$I20)*(1+Main!$I$2+VLOOKUP('Random Years'!AD14,'Hist Returns'!$A$12:$D$107,2,FALSE))","v":{"v":3765528.365763838,"d":"3,765,528"}},{"$f":"($A14-$A13)/365.25*(AG13+Main!$I20)*(1+Main!$I$2+VLOOKUP('Random Years'!AE14,'Hist Returns'!$A$12:$D$107,2,FALSE))","v":{"v":4884628.00518807,"d":"4,884,628"}},{"$f":"($A14-$A13)/365.25*(AH13+Main!$I20)*(1+Main!$I$2+VLOOKUP('Random Years'!AF14,'Hist Returns'!$A$12:$D$107,2,FALSE))","v":{"v":2504842.5780240293,"d":"2,504,843"}},{"$f":"($A14-$A13)/365.25*(AI13+Main!$I20)*(1+Main!$I$2+VLOOKUP('Random Years'!AG14,'Hist Returns'!$A$12:$D$107,2,FALSE))","v":{"v":1665671.0256567057,"d":"1,665,671"}},{"$f":"($A14-$A13)/365.25*(AJ13+Main!$I20)*(1+Main!$I$2+VLOOKUP('Random Years'!AH14,'Hist Returns'!$A$12:$D$107,2,FALSE))","v":{"v":2111423.6707236967,"d":"2,111,424"}},{"$f":"($A14-$A13)/365.25*(AK13+Main!$I20)*(1+Main!$I$2+VLOOKUP('Random Years'!AI14,'Hist Returns'!$A$12:$D$107,2,FALSE))","v":{"v":572770.8499627542,"d":"572,771"}},{"$f":"($A14-$A13)/365.25*(AL13+Main!$I20)*(1+Main!$I$2+VLOOKUP('Random Years'!AJ14,'Hist Returns'!$A$12:$D$107,2,FALSE))","v":{"v":2823034.9664759627,"d":"2,823,035"}},{"$f":"($A14-$A13)/365.25*(AM13+Main!$I20)*(1+Main!$I$2+VLOOKUP('Random Years'!AK14,'Hist Returns'!$A$12:$D$107,2,FALSE))","v":{"v":282647.522106499,"d":"282,648"}},{"$f":"($A14-$A13)/365.25*(AN13+Main!$I20)*(1+Main!$I$2+VLOOKUP('Random Years'!AL14,'Hist Returns'!$A$12:$D$107,2,FALSE))","v":{"v":5116887.8102244735,"d":"5,116,888"}},{"$f":"($A14-$A13)/365.25*(AO13+Main!$I20)*(1+Main!$I$2+VLOOKUP('Random Years'!AM14,'Hist Returns'!$A$12:$D$107,2,FALSE))","v":{"v":2192895.177902166,"d":"2,192,895"}},{"$f":"($A14-$A13)/365.25*(AP13+Main!$I20)*(1+Main!$I$2+VLOOKUP('Random Years'!AN14,'Hist Returns'!$A$12:$D$107,2,FALSE))","v":{"v":4707044.5850363085,"d":"4,707,045"}},{"$f":"($A14-$A13)/365.25*(AQ13+Main!$I20)*(1+Main!$I$2+VLOOKUP('Random Years'!AO14,'Hist Returns'!$A$12:$D$107,2,FALSE))","v":{"v":643287.9378631499,"d":"643,288"}},{"$f":"($A14-$A13)/365.25*(AR13+Main!$I20)*(1+Main!$I$2+VLOOKUP('Random Years'!AP14,'Hist Returns'!$A$12:$D$107,2,FALSE))","v":{"v":3446425.4139012317,"d":"3,446,425"}},{"$f":"($A14-$A13)/365.25*(AS13+Main!$I20)*(1+Main!$I$2+VLOOKUP('Random Years'!AQ14,'Hist Returns'!$A$12:$D$107,2,FALSE))","v":{"v":906678.9062639107,"d":"906,679"}},{"$f":"($A14-$A13)/365.25*(AT13+Main!$I20)*(1+Main!$I$2+VLOOKUP('Random Years'!AR14,'Hist Returns'!$A$12:$D$107,2,FALSE))","v":{"v":623954.2691977762,"d":"623,954"}},{"$f":"($A14-$A13)/365.25*(AU13+Main!$I20)*(1+Main!$I$2+VLOOKUP('Random Years'!AS14,'Hist Returns'!$A$12:$D$107,2,FALSE))","v":{"v":2019473.2302015747,"d":"2,019,473"}},{"$f":"($A14-$A13)/365.25*(AV13+Main!$I20)*(1+Main!$I$2+VLOOKUP('Random Years'!AT14,'Hist Returns'!$A$12:$D$107,2,FALSE))","v":{"v":2056592.6302360436,"d":"2,056,593"}},{"$f":"($A14-$A13)/365.25*(AW13+Main!$I20)*(1+Main!$I$2+VLOOKUP('Random Years'!AU14,'Hist Returns'!$A$12:$D$107,2,FALSE))","v":{"v":1080303.90346631,"d":"1,080,304"}},{"$f":"($A14-$A13)/365.25*(AX13+Main!$I20)*(1+Main!$I$2+VLOOKUP('Random Years'!AV14,'Hist Returns'!$A$12:$D$107,2,FALSE))","v":{"v":2621844.568986249,"d":"2,621,845"}},{"$f":"($A14-$A13)/365.25*(AY13+Main!$I20)*(1+Main!$I$2+VLOOKUP('Random Years'!AW14,'Hist Returns'!$A$12:$D$107,2,FALSE))","v":{"v":2545449.1763990177,"d":"2,545,449"}},{"$f":"($A14-$A13)/365.25*(AZ13+Main!$I20)*(1+Main!$I$2+VLOOKUP('Random Years'!AX14,'Hist Returns'!$A$12:$D$107,2,FALSE))","v":{"v":566847.8688532634,"d":"566,848"}},{"$f":"($A14-$A13)/365.25*(BA13+Main!$I20)*(1+Main!$I$2+VLOOKUP('Random Years'!AY14,'Hist Returns'!$A$12:$D$107,2,FALSE))","v":{"v":162548.95501581696,"d":"162,549"}},{"$f":"($A14-$A13)/365.25*(BB13+Main!$I20)*(1+Main!$I$2+VLOOKUP('Random Years'!AZ14,'Hist Returns'!$A$12:$D$107,2,FALSE))","v":{"v":527028.0164974574,"d":"527,028"}},{"$f":"($A14-$A13)/365.25*(BC13+Main!$I20)*(1+Main!$I$2+VLOOKUP('Random Years'!BA14,'Hist Returns'!$A$12:$D$107,2,FALSE))","v":{"v":1695442.4730058827,"d":"1,695,442"}},{"$f":"($A14-$A13)/365.25*(BD13+Main!$I20)*(1+Main!$I$2+VLOOKUP('Random Years'!BB14,'Hist Returns'!$A$12:$D$107,2,FALSE))","v":{"v":2199727.1534562334,"d":"2,199,727"}},{"$f":"($A14-$A13)/365.25*(BE13+Main!$I20)*(1+Main!$I$2+VLOOKUP('Random Years'!BC14,'Hist Returns'!$A$12:$D$107,2,FALSE))","v":{"v":799932.779971455,"d":"799,933"}},{"$f":"($A14-$A13)/365.25*(BF13+Main!$I20)*(1+Main!$I$2+VLOOKUP('Random Years'!BD14,'Hist Returns'!$A$12:$D$107,2,FALSE))","v":{"v":8243.911362945817,"d":"8,244"}},{"$f":"($A14-$A13)/365.25*(BG13+Main!$I20)*(1+Main!$I$2+VLOOKUP('Random Years'!BE14,'Hist Returns'!$A$12:$D$107,2,FALSE))","v":{"v":592837.7799666462,"d":"592,838"}},{"$f":"($A14-$A13)/365.25*(BH13+Main!$I20)*(1+Main!$I$2+VLOOKUP('Random Years'!BF14,'Hist Returns'!$A$12:$D$107,2,FALSE))","v":{"v":688393.7131188846,"d":"688,394"}},{"$f":"($A14-$A13)/365.25*(BI13+Main!$I20)*(1+Main!$I$2+VLOOKUP('Random Years'!BG14,'Hist Returns'!$A$12:$D$107,2,FALSE))","v":{"v":2095200.3451388802,"d":"2,095,200"}},{"$f":"($A14-$A13)/365.25*(BJ13+Main!$I20)*(1+Main!$I$2+VLOOKUP('Random Years'!BH14,'Hist Returns'!$A$12:$D$107,2,FALSE))","v":{"v":776696.2368808065,"d":"776,696"}},{"$f":"($A14-$A13)/365.25*(BK13+Main!$I20)*(1+Main!$I$2+VLOOKUP('Random Years'!BI14,'Hist Returns'!$A$12:$D$107,2,FALSE))","v":{"v":843034.1244808316,"d":"843,034"}},{"$f":"($A14-$A13)/365.25*(BL13+Main!$I20)*(1+Main!$I$2+VLOOKUP('Random Years'!BJ14,'Hist Returns'!$A$12:$D$107,2,FALSE))","v":{"v":1966796.149196471,"d":"1,966,796"}},{"$f":"($A14-$A13)/365.25*(BM13+Main!$I20)*(1+Main!$I$2+VLOOKUP('Random Years'!BK14,'Hist Returns'!$A$12:$D$107,2,FALSE))","v":{"v":527429.467946818,"d":"527,429"}},{"$f":"($A14-$A13)/365.25*(BN13+Main!$I20)*(1+Main!$I$2+VLOOKUP('Random Years'!BL14,'Hist Returns'!$A$12:$D$107,2,FALSE))","v":{"v":2798958.773975495,"d":"2,798,959"}},{"$f":"($A14-$A13)/365.25*(BO13+Main!$I20)*(1+Main!$I$2+VLOOKUP('Random Years'!BM14,'Hist Returns'!$A$12:$D$107,2,FALSE))","v":{"v":1555056.5542899235,"d":"1,555,057"}},{"$f":"($A14-$A13)/365.25*(BP13+Main!$I20)*(1+Main!$I$2+VLOOKUP('Random Years'!BN14,'Hist Returns'!$A$12:$D$107,2,FALSE))","v":{"v":3177118.252830165,"d":"3,177,118"}},{"$f":"($A14-$A13)/365.25*(BQ13+Main!$I20)*(1+Main!$I$2+VLOOKUP('Random Years'!BO14,'Hist Returns'!$A$12:$D$107,2,FALSE))","v":{"v":2106463.5652229,"d":"2,106,464"}},{"$f":"($A14-$A13)/365.25*(BR13+Main!$I20)*(1+Main!$I$2+VLOOKUP('Random Years'!BP14,'Hist Returns'!$A$12:$D$107,2,FALSE))","v":{"v":4632728.794343037,"d":"4,632,729"}},{"$f":"($A14-$A13)/365.25*(BS13+Main!$I20)*(1+Main!$I$2+VLOOKUP('Random Years'!BQ14,'Hist Returns'!$A$12:$D$107,2,FALSE))","v":{"v":2622036.15787066,"d":"2,622,036"}},{"$f":"($A14-$A13)/365.25*(BT13+Main!$I20)*(1+Main!$I$2+VLOOKUP('Random Years'!BR14,'Hist Returns'!$A$12:$D$107,2,FALSE))","v":{"v":565717.3060679564,"d":"565,717"}},{"$f":"($A14-$A13)/365.25*(BU13+Main!$I20)*(1+Main!$I$2+VLOOKUP('Random Years'!BS14,'Hist Returns'!$A$12:$D$107,2,FALSE))","v":{"v":407607.112519083,"d":"407,607"}},{"$f":"($A14-$A13)/365.25*(BV13+Main!$I20)*(1+Main!$I$2+VLOOKUP('Random Years'!BT14,'Hist Returns'!$A$12:$D$107,2,FALSE))","v":{"v":1474529.3878871705,"d":"1,474,529"}},{"$f":"($A14-$A13)/365.25*(BW13+Main!$I20)*(1+Main!$I$2+VLOOKUP('Random Years'!BU14,'Hist Returns'!$A$12:$D$107,2,FALSE))","v":{"v":387881.6386089736,"d":"387,882"}},{"$f":"($A14-$A13)/365.25*(BX13+Main!$I20)*(1+Main!$I$2+VLOOKUP('Random Years'!BV14,'Hist Returns'!$A$12:$D$107,2,FALSE))","v":{"v":2739901.739243526,"d":"2,739,902"}},{"$f":"($A14-$A13)/365.25*(BY13+Main!$I20)*(1+Main!$I$2+VLOOKUP('Random Years'!BW14,'Hist Returns'!$A$12:$D$107,2,FALSE))","v":{"v":2605118.5823644516,"d":"2,605,119"}},{"$f":"($A14-$A13)/365.25*(BZ13+Main!$I20)*(1+Main!$I$2+VLOOKUP('Random Years'!BX14,'Hist Returns'!$A$12:$D$107,2,FALSE))","v":{"v":915709.6018694713,"d":"915,710"}},{"$f":"($A14-$A13)/365.25*(CA13+Main!$I20)*(1+Main!$I$2+VLOOKUP('Random Years'!BY14,'Hist Returns'!$A$12:$D$107,2,FALSE))","v":{"v":1374443.8096116567,"d":"1,374,444"}},{"$f":"($A14-$A13)/365.25*(CB13+Main!$I20)*(1+Main!$I$2+VLOOKUP('Random Years'!BZ14,'Hist Returns'!$A$12:$D$107,2,FALSE))","v":{"v":483602.38923436526,"d":"483,602"}},{"$f":"($A14-$A13)/365.25*(CC13+Main!$I20)*(1+Main!$I$2+VLOOKUP('Random Years'!CA14,'Hist Returns'!$A$12:$D$107,2,FALSE))","v":{"v":871364.1495579481,"d":"871,364"}},{"$f":"($A14-$A13)/365.25*(CD13+Main!$I20)*(1+Main!$I$2+VLOOKUP('Random Years'!CB14,'Hist Returns'!$A$12:$D$107,2,FALSE))","v":{"v":3174421.3668716084,"d":"3,174,421"}},{"$f":"($A14-$A13)/365.25*(CE13+Main!$I20)*(1+Main!$I$2+VLOOKUP('Random Years'!CC14,'Hist Returns'!$A$12:$D$107,2,FALSE))","v":{"v":5280442.203014723,"d":"5,280,442"}},{"$f":"($A14-$A13)/365.25*(CF13+Main!$I20)*(1+Main!$I$2+VLOOKUP('Random Years'!CD14,'Hist Returns'!$A$12:$D$107,2,FALSE))","v":{"v":1969513.102785548,"d":"1,969,513"}},{"$f":"($A14-$A13)/365.25*(CG13+Main!$I20)*(1+Main!$I$2+VLOOKUP('Random Years'!CE14,'Hist Returns'!$A$12:$D$107,2,FALSE))","v":{"v":3086611.839897994,"d":"3,086,612"}},{"$f":"($A14-$A13)/365.25*(CH13+Main!$I20)*(1+Main!$I$2+VLOOKUP('Random Years'!CF14,'Hist Returns'!$A$12:$D$107,2,FALSE))","v":{"v":1856243.551506953,"d":"1,856,244"}},{"$f":"($A14-$A13)/365.25*(CI13+Main!$I20)*(1+Main!$I$2+VLOOKUP('Random Years'!CG14,'Hist Returns'!$A$12:$D$107,2,FALSE))","v":{"v":695482.0407723414,"d":"695,482"}},{"$f":"($A14-$A13)/365.25*(CJ13+Main!$I20)*(1+Main!$I$2+VLOOKUP('Random Years'!CH14,'Hist Returns'!$A$12:$D$107,2,FALSE))","v":{"v":5366598.384672251,"d":"5,366,598"}},{"$f":"($A14-$A13)/365.25*(CK13+Main!$I20)*(1+Main!$I$2+VLOOKUP('Random Years'!CI14,'Hist Returns'!$A$12:$D$107,2,FALSE))","v":{"v":1898856.357178492,"d":"1,898,856"}},{"$f":"($A14-$A13)/365.25*(CL13+Main!$I20)*(1+Main!$I$2+VLOOKUP('Random Years'!CJ14,'Hist Returns'!$A$12:$D$107,2,FALSE))","v":{"v":4579742.559329499,"d":"4,579,743"}},{"$f":"($A14-$A13)/365.25*(CM13+Main!$I20)*(1+Main!$I$2+VLOOKUP('Random Years'!CK14,'Hist Returns'!$A$12:$D$107,2,FALSE))","v":{"v":3942455.4352295655,"d":"3,942,455"}},{"$f":"($A14-$A13)/365.25*(CN13+Main!$I20)*(1+Main!$I$2+VLOOKUP('Random Years'!CL14,'Hist Returns'!$A$12:$D$107,2,FALSE))","v":{"v":4324123.268372839,"d":"4,324,123"}},{"$f":"($A14-$A13)/365.25*(CO13+Main!$I20)*(1+Main!$I$2+VLOOKUP('Random Years'!CM14,'Hist Returns'!$A$12:$D$107,2,FALSE))","v":{"v":2857818.000395996,"d":"2,857,818"}},{"$f":"($A14-$A13)/365.25*(CP13+Main!$I20)*(1+Main!$I$2+VLOOKUP('Random Years'!CN14,'Hist Returns'!$A$12:$D$107,2,FALSE))","v":{"v":134000.73066333868,"d":"134,001"}},{"$f":"($A14-$A13)/365.25*(CQ13+Main!$I20)*(1+Main!$I$2+VLOOKUP('Random Years'!CO14,'Hist Returns'!$A$12:$D$107,2,FALSE))","v":{"v":1184578.3756072463,"d":"1,184,578"}},{"$f":"($A14-$A13)/365.25*(CR13+Main!$I20)*(1+Main!$I$2+VLOOKUP('Random Years'!CP14,'Hist Returns'!$A$12:$D$107,2,FALSE))","v":{"v":3955549.232355015,"d":"3,955,549"}},{"$f":"($A14-$A13)/365.25*(CS13+Main!$I20)*(1+Main!$I$2+VLOOKUP('Random Years'!CQ14,'Hist Returns'!$A$12:$D$107,2,FALSE))","v":{"v":3125879.481813535,"d":"3,125,879"}},{"$f":"($A14-$A13)/365.25*(CT13+Main!$I20)*(1+Main!$I$2+VLOOKUP('Random Years'!CR14,'Hist Returns'!$A$12:$D$107,2,FALSE))","v":{"v":1044779.5645101102,"d":"1,044,780"}},{"$f":"($A14-$A13)/365.25*(CU13+Main!$I20)*(1+Main!$I$2+VLOOKUP('Random Years'!CS14,'Hist Returns'!$A$12:$D$107,2,FALSE))","v":{"v":6170799.423901479,"d":"6,170,799"}},{"$f":"($A14-$A13)/365.25*(CV13+Main!$I20)*(1+Main!$I$2+VLOOKUP('Random Years'!CT14,'Hist Returns'!$A$12:$D$107,2,FALSE))","v":{"v":3603152.869827737,"d":"3,603,153"}},{"$f":"($A14-$A13)/365.25*(CW13+Main!$I20)*(1+Main!$I$2+VLOOKUP('Random Years'!CU14,'Hist Returns'!$A$12:$D$107,2,FALSE))","v":{"v":705356.9842758415,"d":"705,357"}},{"$f":"($A14-$A13)/365.25*(CX13+Main!$I20)*(1+Main!$I$2+VLOOKUP('Random Years'!CV14,'Hist Returns'!$A$12:$D$107,2,FALSE))","v":{"v":2886325.774978961,"d":"2,886,326"}}]
[{"$f":"Main!A21","v":"2036-12-30"},{"$f":"Main!B21","v":82},{"$f":"($A15-$A14)/365.25*(C14+Main!$I21)*(1+Main!$I$2+VLOOKUP('Random Years'!A15,'Hist Returns'!$A$12:$D$107,2,FALSE))","v":{"v":1057898.866909447,"d":"1,057,899"}},{"$f":"($A15-$A14)/365.25*(D14+Main!$I21)*(1+Main!$I$2+VLOOKUP('Random Years'!B15,'Hist Returns'!$A$12:$D$107,2,FALSE))","v":{"v":1357855.8125580335,"d":"1,357,856"}},{"$f":"($A15-$A14)/365.25*(E14+Main!$I21)*(1+Main!$I$2+VLOOKUP('Random Years'!C15,'Hist Returns'!$A$12:$D$107,2,FALSE))","v":{"v":2083916.4115157956,"d":"2,083,916"}},{"$f":"($A15-$A14)/365.25*(F14+Main!$I21)*(1+Main!$I$2+VLOOKUP('Random Years'!D15,'Hist Returns'!$A$12:$D$107,2,FALSE))","v":{"v":5549291.181741367,"d":"5,549,291"}},{"$f":"($A15-$A14)/365.25*(G14+Main!$I21)*(1+Main!$I$2+VLOOKUP('Random Years'!E15,'Hist Returns'!$A$12:$D$107,2,FALSE))","v":{"v":5707735.235378218,"d":"5,707,735"}},{"$f":"($A15-$A14)/365.25*(H14+Main!$I21)*(1+Main!$I$2+VLOOKUP('Random Years'!F15,'Hist Returns'!$A$12:$D$107,2,FALSE))","v":{"v":1658861.8594618265,"d":"1,658,862"}},{"$f":"($A15-$A14)/365.25*(I14+Main!$I21)*(1+Main!$I$2+VLOOKUP('Random Years'!G15,'Hist Returns'!$A$12:$D$107,2,FALSE))","v":{"v":1289707.2364005465,"d":"1,289,707"}},{"$f":"($A15-$A14)/365.25*(J14+Main!$I21)*(1+Main!$I$2+VLOOKUP('Random Years'!H15,'Hist Returns'!$A$12:$D$107,2,FALSE))","v":{"v":738400.861668882,"d":"738,401"}},{"$f":"($A15-$A14)/365.25*(K14+Main!$I21)*(1+Main!$I$2+VLOOKUP('Random Years'!I15,'Hist Returns'!$A$12:$D$107,2,FALSE))","v":{"v":3568739.5349995815,"d":"3,568,740"}},{"$f":"($A15-$A14)/365.25*(L14+Main!$I21)*(1+Main!$I$2+VLOOKUP('Random Years'!J15,'Hist Returns'!$A$12:$D$107,2,FALSE))","v":{"v":5152294.46016665,"d":"5,152,294"}},{"$f":"($A15-$A14)/365.25*(M14+Main!$I21)*(1+Main!$I$2+VLOOKUP('Random Years'!K15,'Hist Returns'!$A$12:$D$107,2,FALSE))","v":{"v":1803135.4827062425,"d":"1,803,135"}},{"$f":"($A15-$A14)/365.25*(N14+Main!$I21)*(1+Main!$I$2+VLOOKUP('Random Years'!L15,'Hist Returns'!$A$12:$D$107,2,FALSE))","v":{"v":7097.279250323963,"d":"7,097"}},{"$f":"($A15-$A14)/365.25*(O14+Main!$I21)*(1+Main!$I$2+VLOOKUP('Random Years'!M15,'Hist Returns'!$A$12:$D$107,2,FALSE))","v":{"v":1405404.4566532446,"d":"1,405,404"}},{"$f":"($A15-$A14)/365.25*(P14+Main!$I21)*(1+Main!$I$2+VLOOKUP('Random Years'!N15,'Hist Returns'!$A$12:$D$107,2,FALSE))","v":{"v":889833.9472284548,"d":"889,834"}},{"$f":"($A15-$A14)/365.25*(Q14+Main!$I21)*(1+Main!$I$2+VLOOKUP('Random Years'!O15,'Hist Returns'!$A$12:$D$107,2,FALSE))","v":{"v":647208.5814532662,"d":"647,209"}},{"$f":"($A15-$A14)/365.25*(R14+Main!$I21)*(1+Main!$I$2+VLOOKUP('Random Years'!P15,'Hist Returns'!$A$12:$D$107,2,FALSE))","v":{"v":1182425.9588858814,"d":"1,182,426"}},{"$f":"($A15-$A14)/365.25*(S14+Main!$I21)*(1+Main!$I$2+VLOOKUP('Random Years'!Q15,'Hist Returns'!$A$12:$D$107,2,FALSE))","v":{"v":412309.2108755547,"d":"412,309"}},{"$f":"($A15-$A14)/365.25*(T14+Main!$I21)*(1+Main!$I$2+VLOOKUP('Random Years'!R15,'Hist Returns'!$A$12:$D$107,2,FALSE))","v":{"v":115434.90903040908,"d":"115,435"}},{"$f":"($A15-$A14)/365.25*(U14+Main!$I21)*(1+Main!$I$2+VLOOKUP('Random Years'!S15,'Hist Returns'!$A$12:$D$107,2,FALSE))","v":{"v":899738.3876795481,"d":"899,738"}},{"$f":"($A15-$A14)/365.25*(V14+Main!$I21)*(1+Main!$I$2+VLOOKUP('Random Years'!T15,'Hist Returns'!$A$12:$D$107,2,FALSE))","v":{"v":4214976.007455465,"d":"4,214,976"}},{"$f":"($A15-$A14)/365.25*(W14+Main!$I21)*(1+Main!$I$2+VLOOKUP('Random Years'!U15,'Hist Returns'!$A$12:$D$107,2,FALSE))","v":{"v":3045417.343795489,"d":"3,045,417"}},{"$f":"($A15-$A14)/365.25*(X14+Main!$I21)*(1+Main!$I$2+VLOOKUP('Random Years'!V15,'Hist Returns'!$A$12:$D$107,2,FALSE))","v":{"v":913191.1386789342,"d":"913,191"}},{"$f":"($A15-$A14)/365.25*(Y14+Main!$I21)*(1+Main!$I$2+VLOOKUP('Random Years'!W15,'Hist Returns'!$A$12:$D$107,2,FALSE))","v":{"v":1141882.191032048,"d":"1,141,882"}},{"$f":"($A15-$A14)/365.25*(Z14+Main!$I21)*(1+Main!$I$2+VLOOKUP('Random Years'!X15,'Hist Returns'!$A$12:$D$107,2,FALSE))","v":{"v":1237893.730475006,"d":"1,237,894"}},{"$f":"($A15-$A14)/365.25*(AA14+Main!$I21)*(1+Main!$I$2+VLOOKUP('Random Years'!Y15,'Hist Returns'!$A$12:$D$107,2,FALSE))","v":{"v":1769377.199705424,"d":"1,769,377"}},{"$f":"($A15-$A14)/365.25*(AB14+Main!$I21)*(1+Main!$I$2+VLOOKUP('Random Years'!Z15,'Hist Returns'!$A$12:$D$107,2,FALSE))","v":{"v":896894.4641968252,"d":"896,894"}},{"$f":"($A15-$A14)/365.25*(AC14+Main!$I21)*(1+Main!$I$2+VLOOKUP('Random Years'!AA15,'Hist Returns'!$A$12:$D$107,2,FALSE))","v":{"v":854479.8435543812,"d":"854,480"}},{"$f":"($A15-$A14)/365.25*(AD14+Main!$I21)*(1+Main!$I$2+VLOOKUP('Random Years'!AB15,'Hist Returns'!$A$12:$D$107,2,FALSE))","v":{"v":1227599.0988422972,"d":"1,227,599"}},{"$f":"($A15-$A14)/365.25*(AE14+Main!$I21)*(1+Main!$I$2+VLOOKUP('Random Years'!AC15,'Hist Returns'!$A$12:$D$107,2,FALSE))","v":{"v":428547.80948760145,"d":"428,548"}},{"$f":"($A15-$A14)/365.25*(AF14+Main!$I21)*(1+Main!$I$2+VLOOKUP('Random Years'!AD15,'Hist Returns'!$A$12:$D$107,2,FALSE))","v":{"v":5208285.861446905,"d":"5,208,286"}},{"$f":"($A15-$A14)/365.25*(AG14+Main!$I21)*(1+Main!$I$2+VLOOKUP('Random Years'!AE15,'Hist Returns'!$A$12:$D$107,2,FALSE))","v":{"v":4988843.285300401,"d":"4,988,843"}},{"$f":"($A15-$A14)/365.25*(AH14+Main!$I21)*(1+Main!$I$2+VLOOKUP('Random Years'!AF15,'Hist Returns'!$A$12:$D$107,2,FALSE))","v":{"v":2264039.1330775507,"d":"2,264,039"}},{"$f":"($A15-$A14)/365.25*(AI14+Main!$I21)*(1+Main!$I$2+VLOOKUP('Random Years'!AG15,'Hist Returns'!$A$12:$D$107,2,FALSE))","v":{"v":1639809.0219361058,"d":"1,639,809"}},{"$f":"($A15-$A14)/365.25*(AJ14+Main!$I21)*(1+Main!$I$2+VLOOKUP('Random Years'!AH15,'Hist Returns'!$A$12:$D$107,2,FALSE))","v":{"v":2591297.3648482226,"d":"2,591,297"}},{"$f":"($A15-$A14)/365.25*(AK14+Main!$I21)*(1+Main!$I$2+VLOOKUP('Random Years'!AI15,'Hist Returns'!$A$12:$D$107,2,FALSE))","v":{"v":480205.81183382985,"d":"480,206"}},{"$f":"($A15-$A14)/365.25*(AL14+Main!$I21)*(1+Main!$I$2+VLOOKUP('Random Years'!AJ15,'Hist Returns'!$A$12:$D$107,2,FALSE))","v":{"v":2883051.132438651,"d":"2,883,051"}},{"$f":"($A15-$A14)/365.25*(AM14+Main!$I21)*(1+Main!$I$2+VLOOKUP('Random Years'!AK15,'Hist Returns'!$A$12:$D$107,2,FALSE))","v":{"v":152751.2159472936,"d":"152,751"}},{"$f":"($A15-$A14)/365.25*(AN14+Main!$I21)*(1+Main!$I$2+VLOOKUP('Random Years'!AL15,'Hist Returns'!$A$12:$D$107,2,FALSE))","v":{"v":4561578.617470879,"d":"4,561,579"}},{"$f":"($A15-$A14)/365.25*(AO14+Main!$I21)*(1+Main!$I$2+VLOOKUP('Random Years'!AM15,'Hist Returns'!$A$12:$D$107,2,FALSE))","v":{"v":2151576.7234217785,"d":"2,151,577"}},{"$f":"($A15-$A14)/365.25*(AP14+Main!$I21)*(1+Main!$I$2+VLOOKUP('Random Years'!AN15,'Hist Returns'!$A$12:$D$107,2,FALSE))","v":{"v":5277464.239983946,"d":"5,277,464"}},{"$f":"($A15-$A14)/365.25*(AQ14+Main!$I21)*(1+Main!$I$2+VLOOKUP('Random Years'!AO15,'Hist Returns'!$A$12:$D$107,2,FALSE))","v":{"v":528165.9948207057,"d":"528,166"}},{"$f":"($A15-$A14)/365.25*(AR14+Main!$I21)*(1+Main!$I$2+VLOOKUP('Random Years'!AP15,'Hist Returns'!$A$12:$D$107,2,FALSE))","v":{"v":3464809.1226815297,"d":"3,464,809"}},{"$f":"($A15-$A14)/365.25*(AS14+Main!$I21)*(1+Main!$I$2+VLOOKUP('Random Years'!AQ15,'Hist Returns'!$A$12:$D$107,2,FALSE))","v":{"v":757903.5896321394,"d":"757,904"}},{"$f":"($A15-$A14)/365.25*(AT14+Main!$I21)*(1+Main!$I$2+VLOOKUP('Random Years'!AR15,'Hist Returns'!$A$12:$D$107,2,FALSE))","v":{"v":307396.9168112852,"d":"307,397"}},{"$f":"($A15-$A14)/365.25*(AU14+Main!$I21)*(1+Main!$I$2+VLOOKUP('Random Years'!AS15,'Hist Returns'!$A$12:$D$107,2,FALSE))","v":{"v":1856349.9806316202,"d":"1,856,350"}},{"$f":"($A15-$A14)/365.25*(AV14+Main!$I21)*(1+Main!$I$2+VLOOKUP('Random Years'!AT15,'Hist Returns'!$A$12:$D$107,2,FALSE))","v":{"v":2495490.751453213,"d":"2,495,491"}},{"$f":"($A15-$A14)/365.25*(AW14+Main!$I21)*(1+Main!$I$2+VLOOKUP('Random Years'!AU15,'Hist Returns'!$A$12:$D$107,2,FALSE))","v":{"v":1074279.941733484,"d":"1,074,280"}},{"$f":"($A15-$A14)/365.25*(AX14+Main!$I21)*(1+Main!$I$2+VLOOKUP('Random Years'!AV15,'Hist Returns'!$A$12:$D$107,2,FALSE))","v":{"v":2489361.3045171606,"d":"2,489,361"}},{"$f":"($A15-$A14)/365.25*(AY14+Main!$I21)*(1+Main!$I$2+VLOOKUP('Random Years'!AW15,'Hist Returns'!$A$12:$D$107,2,FALSE))","v":{"v":2583564.335774056,"d":"2,583,564"}},{"$f":"($A15-$A14)/365.25*(AZ14+Main!$I21)*(1+Main!$I$2+VLOOKUP('Random Years'!AX15,'Hist Returns'!$A$12:$D$107,2,FALSE))","v":{"v":276384.8480723804,"d":"276,385"}},{"$f":"($A15-$A14)/365.25*(BA14+Main!$I21)*(1+Main!$I$2+VLOOKUP('Random Years'!AY15,'Hist Returns'!$A$12:$D$107,2,FALSE))","v":{"v":32056.184923529952,"d":"32,056"}},{"$f":"($A15-$A14)/365.25*(BB14+Main!$I21)*(1+Main!$I$2+VLOOKUP('Random Years'!AZ15,'Hist Returns'!$A$12:$D$107,2,FALSE))","v":{"v":354955.2668406921,"d":"354,955"}},{"$f":"($A15-$A14)/365.25*(BC14+Main!$I21)*(1+Main!$I$2+VLOOKUP('Random Years'!BA15,'Hist Returns'!$A$12:$D$107,2,FALSE))","v":{"v":1446692.3992996989,"d":"1,446,692"}},{"$f":"($A15-$A14)/365.25*(BD14+Main!$I21)*(1+Main!$I$2+VLOOKUP('Random Years'!BB15,'Hist Returns'!$A$12:$D$107,2,FALSE))","v":{"v":2961335.335979514,"d":"2,961,335"}},{"$f":"($A15-$A14)/365.25*(BE14+Main!$I21)*(1+Main!$I$2+VLOOKUP('Random Years'!BC15,'Hist Returns'!$A$12:$D$107,2,FALSE))","v":{"v":860001.9645213797,"d":"860,002"}},{"$f":"($A15-$A14)/365.25*(BF14+Main!$I21)*(1+Main!$I$2+VLOOKUP('Random Years'!BD15,'Hist Returns'!$A$12:$D$107,2,FALSE))","v":{"v":-169101.61050071416,"d":"(169,102)"}},{"$f":"($A15-$A14)/365.25*(BG14+Main!$I21)*(1+Main!$I$2+VLOOKUP('Random Years'!BE15,'Hist Returns'!$A$12:$D$107,2,FALSE))","v":{"v":561380.6988694153,"d":"561,381"}},{"$f":"($A15-$A14)/365.25*(BH14+Main!$I21)*(1+Main!$I$2+VLOOKUP('Random Years'!BF15,'Hist Returns'!$A$12:$D$107,2,FALSE))","v":{"v":648512.2773816427,"d":"648,512"}},{"$f":"($A15-$A14)/365.25*(BI14+Main!$I21)*(1+Main!$I$2+VLOOKUP('Random Years'!BG15,'Hist Returns'!$A$12:$D$107,2,FALSE))","v":{"v":2565290.302140739,"d":"2,565,290"}},{"$f":"($A15-$A14)/365.25*(BJ14+Main!$I21)*(1+Main!$I$2+VLOOKUP('Random Years'!BH15,'Hist Returns'!$A$12:$D$107,2,FALSE))","v":{"v":731555.5222940495,"d":"731,556"}},{"$f":"($A15-$A14)/365.25*(BK14+Main!$I21)*(1+Main!$I$2+VLOOKUP('Random Years'!BI15,'Hist Returns'!$A$12:$D$107,2,FALSE))","v":{"v":965056.9705752762,"d":"965,057"}},{"$f":"($A15-$A14)/365.25*(BL14+Main!$I21)*(1+Main!$I$2+VLOOKUP('Random Years'!BJ15,'Hist Returns'!$A$12:$D$107,2,FALSE))","v":{"v":2344305.426737558,"d":"2,344,305"}},{"$f":"($A15-$A14)/365.25*(BM14+Main!$I21)*(1+Main!$I$2+VLOOKUP('Random Years'!BK15,'Hist Returns'!$A$12:$D$107,2,FALSE))","v":{"v":498502.4898431954,"d":"498,502"}},{"$f":"($A15-$A14)/365.25*(BN14+Main!$I21)*(1+Main!$I$2+VLOOKUP('Random Years'!BL15,'Hist Returns'!$A$12:$D$107,2,FALSE))","v":{"v":3324135.6268933676,"d":"3,324,136"}},{"$f":"($A15-$A14)/365.25*(BO14+Main!$I21)*(1+Main!$I$2+VLOOKUP('Random Years'!BM15,'Hist Returns'!$A$12:$D$107,2,FALSE))","v":{"v":1298342.3769691624,"d":"1,298,342"}},{"$f":"($A15-$A14)/365.25*(BP14+Main!$I21)*(1+Main!$I$2+VLOOKUP('Random Years'!BN15,'Hist Returns'!$A$12:$D$107,2,FALSE))","v":{"v":3193772.5263397205,"d":"3,193,773"}},{"$f":"($A15-$A14)/365.25*(BQ14+Main!$I21)*(1+Main!$I$2+VLOOKUP('Random Years'!BO15,'Hist Returns'!$A$12:$D$107,2,FALSE))","v":{"v":1104144.5662818835,"d":"1,104,145"}},{"$f":"($A15-$A14)/365.25*(BR14+Main!$I21)*(1+Main!$I$2+VLOOKUP('Random Years'!BP15,'Hist Returns'!$A$12:$D$107,2,FALSE))","v":{"v":4782820.348354503,"d":"4,782,820"}},{"$f":"($A15-$A14)/365.25*(BS14+Main!$I21)*(1+Main!$I$2+VLOOKUP('Random Years'!BQ15,'Hist Returns'!$A$12:$D$107,2,FALSE))","v":{"v":2601156.496258727,"d":"2,601,156"}},{"$f":"($A15-$A14)/365.25*(BT14+Main!$I21)*(1+Main!$I$2+VLOOKUP('Random Years'!BR15,'Hist Returns'!$A$12:$D$107,2,FALSE))","v":{"v":477687.60374515253,"d":"477,688"}},{"$f":"($A15-$A14)/365.25*(BU14+Main!$I21)*(1+Main!$I$2+VLOOKUP('Random Years'!BS15,'Hist Returns'!$A$12:$D$107,2,FALSE))","v":{"v":367544.1575024302,"d":"367,544"}},{"$f":"($A15-$A14)/365.25*(BV14+Main!$I21)*(1+Main!$I$2+VLOOKUP('Random Years'!BT15,'Hist Returns'!$A$12:$D$107,2,FALSE))","v":{"v":1757983.0558340668,"d":"1,757,983"}},{"$f":"($A15-$A14)/365.25*(BW14+Main!$I21)*(1+Main!$I$2+VLOOKUP('Random Years'!BU15,'Hist Returns'!$A$12:$D$107,2,FALSE))","v":{"v":184191.82751139152,"d":"184,192"}},{"$f":"($A15-$A14)/365.25*(BX14+Main!$I21)*(1+Main!$I$2+VLOOKUP('Random Years'!BV15,'Hist Returns'!$A$12:$D$107,2,FALSE))","v":{"v":2028093.1962783744,"d":"2,028,093"}},{"$f":"($A15-$A14)/365.25*(BY14+Main!$I21)*(1+Main!$I$2+VLOOKUP('Random Years'!BW15,'Hist Returns'!$A$12:$D$107,2,FALSE))","v":{"v":2149570.6521986565,"d":"2,149,571"}},{"$f":"($A15-$A14)/365.25*(BZ14+Main!$I21)*(1+Main!$I$2+VLOOKUP('Random Years'!BX15,'Hist Returns'!$A$12:$D$107,2,FALSE))","v":{"v":1116038.7644380927,"d":"1,116,039"}},{"$f":"($A15-$A14)/365.25*(CA14+Main!$I21)*(1+Main!$I$2+VLOOKUP('Random Years'!BY15,'Hist Returns'!$A$12:$D$107,2,FALSE))","v":{"v":1102711.9939744768,"d":"1,102,712"}},{"$f":"($A15-$A14)/365.25*(CB14+Main!$I21)*(1+Main!$I$2+VLOOKUP('Random Years'!BZ15,'Hist Returns'!$A$12:$D$107,2,FALSE))","v":{"v":435929.0401034182,"d":"435,929"}},{"$f":"($A15-$A14)/365.25*(CC14+Main!$I21)*(1+Main!$I$2+VLOOKUP('Random Years'!CA15,'Hist Returns'!$A$12:$D$107,2,FALSE))","v":{"v":905902.8807008952,"d":"905,903"}},{"$f":"($A15-$A14)/365.25*(CD14+Main!$I21)*(1+Main!$I$2+VLOOKUP('Random Years'!CB15,'Hist Returns'!$A$12:$D$107,2,FALSE))","v":{"v":3987918.9478031783,"d":"3,987,919"}},{"$f":"($A15-$A14)/365.25*(CE14+Main!$I21)*(1+Main!$I$2+VLOOKUP('Random Years'!CC15,'Hist Returns'!$A$12:$D$107,2,FALSE))","v":{"v":4896190.82270493,"d":"4,896,191"}},{"$f":"($A15-$A14)/365.25*(CF14+Main!$I21)*(1+Main!$I$2+VLOOKUP('Random Years'!CD15,'Hist Returns'!$A$12:$D$107,2,FALSE))","v":{"v":1612379.7273303675,"d":"1,612,380"}},{"$f":"($A15-$A14)/365.25*(CG14+Main!$I21)*(1+Main!$I$2+VLOOKUP('Random Years'!CE15,'Hist Returns'!$A$12:$D$107,2,FALSE))","v":{"v":2651770.412413238,"d":"2,651,770"}},{"$f":"($A15-$A14)/365.25*(CH14+Main!$I21)*(1+Main!$I$2+VLOOKUP('Random Years'!CF15,'Hist Returns'!$A$12:$D$107,2,FALSE))","v":{"v":2037764.63644574,"d":"2,037,765"}},{"$f":"($A15-$A14)/365.25*(CI14+Main!$I21)*(1+Main!$I$2+VLOOKUP('Random Years'!CG15,'Hist Returns'!$A$12:$D$107,2,FALSE))","v":{"v":656097.6227829922,"d":"656,098"}},{"$f":"($A15-$A14)/365.25*(CJ14+Main!$I21)*(1+Main!$I$2+VLOOKUP('Random Years'!CH15,'Hist Returns'!$A$12:$D$107,2,FALSE))","v":{"v":6081411.816328275,"d":"6,081,412"}},{"$f":"($A15-$A14)/365.25*(CK14+Main!$I21)*(1+Main!$I$2+VLOOKUP('Random Years'!CI15,'Hist Returns'!$A$12:$D$107,2,FALSE))","v":{"v":1843533.6504067082,"d":"1,843,534"}},{"$f":"($A15-$A14)/365.25*(CL14+Main!$I21)*(1+Main!$I$2+VLOOKUP('Random Years'!CJ15,'Hist Returns'!$A$12:$D$107,2,FALSE))","v":{"v":4914287.876626885,"d":"4,914,288"}},{"$f":"($A15-$A14)/365.25*(CM14+Main!$I21)*(1+Main!$I$2+VLOOKUP('Random Years'!CK15,'Hist Returns'!$A$12:$D$107,2,FALSE))","v":{"v":2965851.070770433,"d":"2,965,851"}},{"$f":"($A15-$A14)/365.25*(CN14+Main!$I21)*(1+Main!$I$2+VLOOKUP('Random Years'!CL15,'Hist Returns'!$A$12:$D$107,2,FALSE))","v":{"v":5177595.279634853,"d":"5,177,595"}},{"$f":"($A15-$A14)/365.25*(CO14+Main!$I21)*(1+Main!$I$2+VLOOKUP('Random Years'!CM15,'Hist Returns'!$A$12:$D$107,2,FALSE))","v":{"v":2918942.1646792204,"d":"2,918,942"}},{"$f":"($A15-$A14)/365.25*(CP14+Main!$I21)*(1+Main!$I$2+VLOOKUP('Random Years'!CN15,'Hist Returns'!$A$12:$D$107,2,FALSE))","v":{"v":-6351.512918045176,"d":"(6,352)"}},{"$f":"($A15-$A14)/365.25*(CQ14+Main!$I21)*(1+Main!$I$2+VLOOKUP('Random Years'!CO15,'Hist Returns'!$A$12:$D$107,2,FALSE))","v":{"v":1315682.3947455839,"d":"1,315,682"}},{"$f":"($A15-$A14)/365.25*(CR14+Main!$I21)*(1+Main!$I$2+VLOOKUP('Random Years'!CP15,'Hist Returns'!$A$12:$D$107,2,FALSE))","v":{"v":4592546.276791884,"d":"4,592,546"}},{"$f":"($A15-$A14)/365.25*(CS14+Main!$I21)*(1+Main!$I$2+VLOOKUP('Random Years'!CQ15,'Hist Returns'!$A$12:$D$107,2,FALSE))","v":{"v":3148404.7318147784,"d":"3,148,405"}},{"$f":"($A15-$A14)/365.25*(CT14+Main!$I21)*(1+Main!$I$2+VLOOKUP('Random Years'!CR15,'Hist Returns'!$A$12:$D$107,2,FALSE))","v":{"v":1195947.7299775907,"d":"1,195,948"}},{"$f":"($A15-$A14)/365.25*(CU14+Main!$I21)*(1+Main!$I$2+VLOOKUP('Random Years'!CS15,'Hist Returns'!$A$12:$D$107,2,FALSE))","v":{"v":7952938.600785275,"d":"7,952,939"}},{"$f":"($A15-$A14)/365.25*(CV14+Main!$I21)*(1+Main!$I$2+VLOOKUP('Random Years'!CT15,'Hist Returns'!$A$12:$D$107,2,FALSE))","v":{"v":4574398.323605022,"d":"4,574,398"}},{"$f":"($A15-$A14)/365.25*(CW14+Main!$I21)*(1+Main!$I$2+VLOOKUP('Random Years'!CU15,'Hist Returns'!$A$12:$D$107,2,FALSE))","v":{"v":365888.0695016895,"d":"365,888"}},{"$f":"($A15-$A14)/365.25*(CX14+Main!$I21)*(1+Main!$I$2+VLOOKUP('Random Years'!CV15,'Hist Returns'!$A$12:$D$107,2,FALSE))","v":{"v":3085709.893948409,"d":"3,085,710"}}]
[{"$f":"Main!A22","v":"2037-12-30"},{"$f":"Main!B22","v":83},{"$f":"($A16-$A15)/365.25*(C15+Main!$I22)*(1+Main!$I$2+VLOOKUP('Random Years'!A16,'Hist Returns'!$A$12:$D$107,2,FALSE))","v":{"v":832770.555732165,"d":"832,771"}},{"$f":"($A16-$A15)/365.25*(D15+Main!$I22)*(1+Main!$I$2+VLOOKUP('Random Years'!B16,'Hist Returns'!$A$12:$D$107,2,FALSE))","v":{"v":1174181.9152101604,"d":"1,174,182"}},{"$f":"($A16-$A15)/365.25*(E15+Main!$I22)*(1+Main!$I$2+VLOOKUP('Random Years'!C16,'Hist Returns'!$A$12:$D$107,2,FALSE))","v":{"v":2653411.2819236927,"d":"2,653,411"}},{"$f":"($A16-$A15)/365.25*(F15+Main!$I22)*(1+Main!$I$2+VLOOKUP('Random Years'!D16,'Hist Returns'!$A$12:$D$107,2,FALSE))","v":{"v":5731751.721469709,"d":"5,731,752"}},{"$f":"($A16-$A15)/365.25*(G15+Main!$I22)*(1+Main!$I$2+VLOOKUP('Random Years'!E16,'Hist Returns'!$A$12:$D$107,2,FALSE))","v":{"v":8336317.695409561,"d":"8,336,318"}},{"$f":"($A16-$A15)/365.25*(H15+Main!$I22)*(1+Main!$I$2+VLOOKUP('Random Years'!F16,'Hist Returns'!$A$12:$D$107,2,FALSE))","v":{"v":1295749.4613727073,"d":"1,295,749"}},{"$f":"($A16-$A15)/365.25*(I15+Main!$I22)*(1+Main!$I$2+VLOOKUP('Random Years'!G16,'Hist Returns'!$A$12:$D$107,2,FALSE))","v":{"v":1007733.3223019183,"d":"1,007,733"}},{"$f":"($A16-$A15)/365.25*(J15+Main!$I22)*(1+Main!$I$2+VLOOKUP('Random Years'!H16,'Hist Returns'!$A$12:$D$107,2,FALSE))","v":{"v":715968.5286037135,"d":"715,969"}},{"$f":"($A16-$A15)/365.25*(K15+Main!$I22)*(1+Main!$I$2+VLOOKUP('Random Years'!I16,'Hist Returns'!$A$12:$D$107,2,FALSE))","v":{"v":3055588.1255844324,"d":"3,055,588"}},{"$f":"($A16-$A15)/365.25*(L15+Main!$I22)*(1+Main!$I$2+VLOOKUP('Random Years'!J16,'Hist Returns'!$A$12:$D$107,2,FALSE))","v":{"v":4570753.294287434,"d":"4,570,753"}},{"$f":"($A16-$A15)/365.25*(M15+Main!$I22)*(1+Main!$I$2+VLOOKUP('Random Years'!K16,'Hist Returns'!$A$12:$D$107,2,FALSE))","v":{"v":1516666.5677498789,"d":"1,516,667"}},{"$f":"($A16-$A15)/365.25*(N15+Main!$I22)*(1+Main!$I$2+VLOOKUP('Random Years'!L16,'Hist Returns'!$A$12:$D$107,2,FALSE))","v":{"v":-181803.09821511118,"d":"(181,803)"}},{"$f":"($A16-$A15)/365.25*(O15+Main!$I22)*(1+Main!$I$2+VLOOKUP('Random Years'!M16,'Hist Returns'!$A$12:$D$107,2,FALSE))","v":{"v":1491944.4002465182,"d":"1,491,944"}},{"$f":"($A16-$A15)/365.25*(P15+Main!$I22)*(1+Main!$I$2+VLOOKUP('Random Years'!N16,'Hist Returns'!$A$12:$D$107,2,FALSE))","v":{"v":708633.1661245305,"d":"708,633"}},{"$f":"($A16-$A15)/365.25*(Q15+Main!$I22)*(1+Main!$I$2+VLOOKUP('Random Years'!O16,'Hist Returns'!$A$12:$D$107,2,FALSE))","v":{"v":554977.2877388847,"d":"554,977"}},{"$f":"($A16-$A15)/365.25*(R15+Main!$I22)*(1+Main!$I$2+VLOOKUP('Random Years'!P16,'Hist Returns'!$A$12:$D$107,2,FALSE))","v":{"v":987275.508641295,"d":"987,276"}},{"$f":"($A16-$A15)/365.25*(S15+Main!$I22)*(1+Main!$I$2+VLOOKUP('Random Years'!Q16,'Hist Returns'!$A$12:$D$107,2,FALSE))","v":{"v":302419.84376890847,"d":"302,420"}},{"$f":"($A16-$A15)/365.25*(T15+Main!$I22)*(1+Main!$I$2+VLOOKUP('Random Years'!R16,'Hist Returns'!$A$12:$D$107,2,FALSE))","v":{"v":-35237.61276738735,"d":"(35,238)"}},{"$f":"($A16-$A15)/365.25*(U15+Main!$I22)*(1+Main!$I$2+VLOOKUP('Random Years'!S16,'Hist Returns'!$A$12:$D$107,2,FALSE))","v":{"v":968018.6341231343,"d":"968,019"}},{"$f":"($A16-$A15)/365.25*(V15+Main!$I22)*(1+Main!$I$2+VLOOKUP('Random Years'!T16,'Hist Returns'!$A$12:$D$107,2,FALSE))","v":{"v":5336017.041381766,"d":"5,336,017"}},{"$f":"($A16-$A15)/365.25*(W15+Main!$I22)*(1+Main!$I$2+VLOOKUP('Random Years'!U16,'Hist Returns'!$A$12:$D$107,2,FALSE))","v":{"v":3842283.661306166,"d":"3,842,284"}},{"$f":"($A16-$A15)/365.25*(X15+Main!$I22)*(1+Main!$I$2+VLOOKUP('Random Years'!V16,'Hist Returns'!$A$12:$D$107,2,FALSE))","v":{"v":1102947.216559926,"d":"1,102,947"}},{"$f":"($A16-$A15)/365.25*(Y15+Main!$I22)*(1+Main!$I$2+VLOOKUP('Random Years'!W16,'Hist Returns'!$A$12:$D$107,2,FALSE))","v":{"v":1060274.2239482976,"d":"1,060,274"}},{"$f":"($A16-$A15)/365.25*(Z15+Main!$I22)*(1+Main!$I$2+VLOOKUP('Random Years'!X16,'Hist Returns'!$A$12:$D$107,2,FALSE))","v":{"v":808723.9868277832,"d":"808,724"}},{"$f":"($A16-$A15)/365.25*(AA15+Main!$I22)*(1+Main!$I$2+VLOOKUP('Random Years'!Y16,'Hist Returns'!$A$12:$D$107,2,FALSE))","v":{"v":1715100.4776994518,"d":"1,715,100"}},{"$f":"($A16-$A15)/365.25*(AB15+Main!$I22)*(1+Main!$I$2+VLOOKUP('Random Years'!Z16,'Hist Returns'!$A$12:$D$107,2,FALSE))","v":{"v":857407.7252031061,"d":"857,408"}},{"$f":"($A16-$A15)/365.25*(AC15+Main!$I22)*(1+Main!$I$2+VLOOKUP('Random Years'!AA16,'Hist Returns'!$A$12:$D$107,2,FALSE))","v":{"v":961980.3224575242,"d":"961,980"}},{"$f":"($A16-$A15)/365.25*(AD15+Main!$I22)*(1+Main!$I$2+VLOOKUP('Random Years'!AB16,'Hist Returns'!$A$12:$D$107,2,FALSE))","v":{"v":1147582.1485418642,"d":"1,147,582"}},{"$f":"($A16-$A15)/365.25*(AE15+Main!$I22)*(1+Main!$I$2+VLOOKUP('Random Years'!AC16,'Hist Returns'!$A$12:$D$107,2,FALSE))","v":{"v":279270.50215925166,"d":"279,271"}},{"$f":"($A16-$A15)/365.25*(AF15+Main!$I22)*(1+Main!$I$2+VLOOKUP('Random Years'!AD16,'Hist Returns'!$A$12:$D$107,2,FALSE))","v":{"v":6670802.762835491,"d":"6,670,803"}},{"$f":"($A16-$A15)/365.25*(AG15+Main!$I22)*(1+Main!$I$2+VLOOKUP('Random Years'!AE16,'Hist Returns'!$A$12:$D$107,2,FALSE))","v":{"v":5992522.1578882905,"d":"5,992,522"}},{"$f":"($A16-$A15)/365.25*(AH15+Main!$I22)*(1+Main!$I$2+VLOOKUP('Random Years'!AF16,'Hist Returns'!$A$12:$D$107,2,FALSE))","v":{"v":2621334.755777379,"d":"2,621,335"}},{"$f":"($A16-$A15)/365.25*(AI15+Main!$I22)*(1+Main!$I$2+VLOOKUP('Random Years'!AG16,'Hist Returns'!$A$12:$D$107,2,FALSE))","v":{"v":1969996.7773786075,"d":"1,969,997"}},{"$f":"($A16-$A15)/365.25*(AJ15+Main!$I22)*(1+Main!$I$2+VLOOKUP('Random Years'!AH16,'Hist Returns'!$A$12:$D$107,2,FALSE))","v":{"v":3139677.0148446606,"d":"3,139,677"}},{"$f":"($A16-$A15)/365.25*(AK15+Main!$I22)*(1+Main!$I$2+VLOOKUP('Random Years'!AI16,'Hist Returns'!$A$12:$D$107,2,FALSE))","v":{"v":394922.4994390694,"d":"394,922"}},{"$f":"($A16-$A15)/365.25*(AL15+Main!$I22)*(1+Main!$I$2+VLOOKUP('Random Years'!AJ16,'Hist Returns'!$A$12:$D$107,2,FALSE))","v":{"v":2894457.3207130115,"d":"2,894,457"}},{"$f":"($A16-$A15)/365.25*(AM15+Main!$I22)*(1+Main!$I$2+VLOOKUP('Random Years'!AK16,'Hist Returns'!$A$12:$D$107,2,FALSE))","v":{"v":6287.613667227677,"d":"6,288"}},{"$f":"($A16-$A15)/365.25*(AN15+Main!$I22)*(1+Main!$I$2+VLOOKUP('Random Years'!AL16,'Hist Returns'!$A$12:$D$107,2,FALSE))","v":{"v":5664125.362667414,"d":"5,664,125"}},{"$f":"($A16-$A15)/365.25*(AO15+Main!$I22)*(1+Main!$I$2+VLOOKUP('Random Years'!AM16,'Hist Returns'!$A$12:$D$107,2,FALSE))","v":{"v":2643058.2581315357,"d":"2,643,058"}},{"$f":"($A16-$A15)/365.25*(AP15+Main!$I22)*(1+Main!$I$2+VLOOKUP('Random Years'!AN16,'Hist Returns'!$A$12:$D$107,2,FALSE))","v":{"v":5682838.006162574,"d":"5,682,838"}},{"$f":"($A16-$A15)/365.25*(AQ15+Main!$I22)*(1+Main!$I$2+VLOOKUP('Random Years'!AO16,'Hist Returns'!$A$12:$D$107,2,FALSE))","v":{"v":286162.29390926845,"d":"286,162"}},{"$f":"($A16-$A15)/365.25*(AR15+Main!$I22)*(1+Main!$I$2+VLOOKUP('Random Years'!AP16,'Hist Returns'!$A$12:$D$107,2,FALSE))","v":{"v":3808400.7408153894,"d":"3,808,401"}},{"$f":"($A16-$A15)/365.25*(AS15+Main!$I22)*(1+Main!$I$2+VLOOKUP('Random Years'!AQ16,'Hist Returns'!$A$12:$D$107,2,FALSE))","v":{"v":917531.3983840812,"d":"917,531"}},{"$f":"($A16-$A15)/365.25*(AT15+Main!$I22)*(1+Main!$I$2+VLOOKUP('Random Years'!AR16,'Hist Returns'!$A$12:$D$107,2,FALSE))","v":{"v":190659.04821902417,"d":"190,659"}},{"$f":"($A16-$A15)/365.25*(AU15+Main!$I22)*(1+Main!$I$2+VLOOKUP('Random Years'!AS16,'Hist Returns'!$A$12:$D$107,2,FALSE))","v":{"v":1962814.4852318217,"d":"1,962,814"}},{"$f":"($A16-$A15)/365.25*(AV15+Main!$I22)*(1+Main!$I$2+VLOOKUP('Random Years'!AT16,'Hist Returns'!$A$12:$D$107,2,FALSE))","v":{"v":3582427.7396592563,"d":"3,582,428"}},{"$f":"($A16-$A15)/365.25*(AW15+Main!$I22)*(1+Main!$I$2+VLOOKUP('Random Years'!AU16,'Hist Returns'!$A$12:$D$107,2,FALSE))","v":{"v":724092.5658654335,"d":"724,093"}},{"$f":"($A16-$A15)/365.25*(AX15+Main!$I22)*(1+Main!$I$2+VLOOKUP('Random Years'!AV16,'Hist Returns'!$A$12:$D$107,2,FALSE))","v":{"v":3436708.6266714907,"d":"3,436,709"}},{"$f":"($A16-$A15)/365.25*(AY15+Main!$I22)*(1+Main!$I$2+VLOOKUP('Random Years'!AW16,'Hist Returns'!$A$12:$D$107,2,FALSE))","v":{"v":2874925.6805477235,"d":"2,874,926"}},{"$f":"($A16-$A15)/365.25*(AZ15+Main!$I22)*(1+Main!$I$2+VLOOKUP('Random Years'!AX16,'Hist Returns'!$A$12:$D$107,2,FALSE))","v":{"v":136883.3530825992,"d":"136,883"}},{"$f":"($A16-$A15)/365.25*(BA15+Main!$I22)*(1+Main!$I$2+VLOOKUP('Random Years'!AY16,'Hist Returns'!$A$12:$D$107,2,FALSE))","v":{"v":-149777.70239396853,"d":"(149,778)"}},{"$f":"($A16-$A15)/365.25*(BB15+Main!$I22)*(1+Main!$I$2+VLOOKUP('Random Years'!AZ16,'Hist Returns'!$A$12:$D$107,2,FALSE))","v":{"v":268338.7092190181,"d":"268,339"}},{"$f":"($A16-$A15)/365.25*(BC15+Main!$I22)*(1+Main!$I$2+VLOOKUP('Random Years'!BA16,'Hist Returns'!$A$12:$D$107,2,FALSE))","v":{"v":1452706.542793989,"d":"1,452,707"}},{"$f":"($A16-$A15)/365.25*(BD15+Main!$I22)*(1+Main!$I$2+VLOOKUP('Random Years'!BB16,'Hist Returns'!$A$12:$D$107,2,FALSE))","v":{"v":2565757.044557818,"d":"2,565,757"}},{"$f":"($A16-$A15)/365.25*(BE15+Main!$I22)*(1+Main!$I$2+VLOOKUP('Random Years'!BC16,'Hist Returns'!$A$12:$D$107,2,FALSE))","v":{"v":883794.8847963741,"d":"883,795"}},{"$f":"($A16-$A15)/365.25*(BF15+Main!$I22)*(1+Main!$I$2+VLOOKUP('Random Years'!BD16,'Hist Returns'!$A$12:$D$107,2,FALSE))","v":{"v":-366255.3746257458,"d":"(366,255)"}},{"$f":"($A16-$A15)/365.25*(BG15+Main!$I22)*(1+Main!$I$2+VLOOKUP('Random Years'!BE16,'Hist Returns'!$A$12:$D$107,2,FALSE))","v":{"v":436971.0416030691,"d":"436,971"}},{"$f":"($A16-$A15)/365.25*(BH15+Main!$I22)*(1+Main!$I$2+VLOOKUP('Random Years'!BF16,'Hist Returns'!$A$12:$D$107,2,FALSE))","v":{"v":563020.5565119813,"d":"563,021"}},{"$f":"($A16-$A15)/365.25*(BI15+Main!$I22)*(1+Main!$I$2+VLOOKUP('Random Years'!BG16,'Hist Returns'!$A$12:$D$107,2,FALSE))","v":{"v":3477223.8909053076,"d":"3,477,224"}},{"$f":"($A16-$A15)/365.25*(BJ15+Main!$I22)*(1+Main!$I$2+VLOOKUP('Random Years'!BH16,'Hist Returns'!$A$12:$D$107,2,FALSE))","v":{"v":765774.942451863,"d":"765,775"}},{"$f":"($A16-$A15)/365.25*(BK15+Main!$I22)*(1+Main!$I$2+VLOOKUP('Random Years'!BI16,'Hist Returns'!$A$12:$D$107,2,FALSE))","v":{"v":1012644.2332629992,"d":"1,012,644"}},{"$f":"($A16-$A15)/365.25*(BL15+Main!$I22)*(1+Main!$I$2+VLOOKUP('Random Years'!BJ16,'Hist Returns'!$A$12:$D$107,2,FALSE))","v":{"v":2172961.7635650523,"d":"2,172,962"}},{"$f":"($A16-$A15)/365.25*(BM15+Main!$I22)*(1+Main!$I$2+VLOOKUP('Random Years'!BK16,'Hist Returns'!$A$12:$D$107,2,FALSE))","v":{"v":261223.28168829542,"d":"261,223"}},{"$f":"($A16-$A15)/365.25*(BN15+Main!$I22)*(1+Main!$I$2+VLOOKUP('Random Years'!BL16,'Hist Returns'!$A$12:$D$107,2,FALSE))","v":{"v":3186924.7924867724,"d":"3,186,925"}},{"$f":"($A16-$A15)/365.25*(BO15+Main!$I22)*(1+Main!$I$2+VLOOKUP('Random Years'!BM16,'Hist Returns'!$A$12:$D$107,2,FALSE))","v":{"v":1412279.694402779,"d":"1,412,280"}},{"$f":"($A16-$A15)/365.25*(BP15+Main!$I22)*(1+Main!$I$2+VLOOKUP('Random Years'!BN16,'Hist Returns'!$A$12:$D$107,2,FALSE))","v":{"v":3545970.275785075,"d":"3,545,970"}},{"$f":"($A16-$A15)/365.25*(BQ15+Main!$I22)*(1+Main!$I$2+VLOOKUP('Random Years'!BO16,'Hist Returns'!$A$12:$D$107,2,FALSE))","v":{"v":878289.3264535987,"d":"878,289"}},{"$f":"($A16-$A15)/365.25*(BR15+Main!$I22)*(1+Main!$I$2+VLOOKUP('Random Years'!BP16,'Hist Returns'!$A$12:$D$107,2,FALSE))","v":{"v":5736932.832660159,"d":"5,736,933"}},{"$f":"($A16-$A15)/365.25*(BS15+Main!$I22)*(1+Main!$I$2+VLOOKUP('Random Years'!BQ16,'Hist Returns'!$A$12:$D$107,2,FALSE))","v":{"v":2250140.3816966047,"d":"2,250,140"}},{"$f":"($A16-$A15)/365.25*(BT15+Main!$I22)*(1+Main!$I$2+VLOOKUP('Random Years'!BR16,'Hist Returns'!$A$12:$D$107,2,FALSE))","v":{"v":350660.02611433616,"d":"350,660"}},{"$f":"($A16-$A15)/365.25*(BU15+Main!$I22)*(1+Main!$I$2+VLOOKUP('Random Years'!BS16,'Hist Returns'!$A$12:$D$107,2,FALSE))","v":{"v":248393.13385097845,"d":"248,393"}},{"$f":"($A16-$A15)/365.25*(BV15+Main!$I22)*(1+Main!$I$2+VLOOKUP('Random Years'!BT16,'Hist Returns'!$A$12:$D$107,2,FALSE))","v":{"v":1784237.8158807764,"d":"1,784,238"}},{"$f":"($A16-$A15)/365.25*(BW15+Main!$I22)*(1+Main!$I$2+VLOOKUP('Random Years'!BU16,'Hist Returns'!$A$12:$D$107,2,FALSE))","v":{"v":37976.56676365008,"d":"37,977"}},{"$f":"($A16-$A15)/365.25*(BX15+Main!$I22)*(1+Main!$I$2+VLOOKUP('Random Years'!BV16,'Hist Returns'!$A$12:$D$107,2,FALSE))","v":{"v":2107871.9405457834,"d":"2,107,872"}},{"$f":"($A16-$A15)/365.25*(BY15+Main!$I22)*(1+Main!$I$2+VLOOKUP('Random Years'!BW16,'Hist Returns'!$A$12:$D$107,2,FALSE))","v":{"v":2331189.945035052,"d":"2,331,190"}},{"$f":"($A16-$A15)/365.25*(BZ15+Main!$I22)*(1+Main!$I$2+VLOOKUP('Random Years'!BX16,'Hist Returns'!$A$12:$D$107,2,FALSE))","v":{"v":627007.4971639375,"d":"627,007"}},{"$f":"($A16-$A15)/365.25*(CA15+Main!$I22)*(1+Main!$I$2+VLOOKUP('Random Years'!BY16,'Hist Returns'!$A$12:$D$107,2,FALSE))","v":{"v":1051650.6378268416,"d":"1,051,651"}},{"$f":"($A16-$A15)/365.25*(CB15+Main!$I22)*(1+Main!$I$2+VLOOKUP('Random Years'!BZ16,'Hist Returns'!$A$12:$D$107,2,FALSE))","v":{"v":296091.3317324845,"d":"296,091"}},{"$f":"($A16-$A15)/365.25*(CC15+Main!$I22)*(1+Main!$I$2+VLOOKUP('Random Years'!CA16,'Hist Returns'!$A$12:$D$107,2,FALSE))","v":{"v":1042214.4163055735,"d":"1,042,214"}},{"$f":"($A16-$A15)/365.25*(CD15+Main!$I22)*(1+Main!$I$2+VLOOKUP('Random Years'!CB16,'Hist Returns'!$A$12:$D$107,2,FALSE))","v":{"v":5214938.305978549,"d":"5,214,938"}},{"$f":"($A16-$A15)/365.25*(CE15+Main!$I22)*(1+Main!$I$2+VLOOKUP('Random Years'!CC16,'Hist Returns'!$A$12:$D$107,2,FALSE))","v":{"v":3069704.3960307394,"d":"3,069,704"}},{"$f":"($A16-$A15)/365.25*(CF15+Main!$I22)*(1+Main!$I$2+VLOOKUP('Random Years'!CD16,'Hist Returns'!$A$12:$D$107,2,FALSE))","v":{"v":1447943.302009044,"d":"1,447,943"}},{"$f":"($A16-$A15)/365.25*(CG15+Main!$I22)*(1+Main!$I$2+VLOOKUP('Random Years'!CE16,'Hist Returns'!$A$12:$D$107,2,FALSE))","v":{"v":2967496.033468725,"d":"2,967,496"}},{"$f":"($A16-$A15)/365.25*(CH15+Main!$I22)*(1+Main!$I$2+VLOOKUP('Random Years'!CF16,'Hist Returns'!$A$12:$D$107,2,FALSE))","v":{"v":2490777.7262599827,"d":"2,490,778"}},{"$f":"($A16-$A15)/365.25*(CI15+Main!$I22)*(1+Main!$I$2+VLOOKUP('Random Years'!CG16,'Hist Returns'!$A$12:$D$107,2,FALSE))","v":{"v":528186.4930563984,"d":"528,186"}},{"$f":"($A16-$A15)/365.25*(CJ15+Main!$I22)*(1+Main!$I$2+VLOOKUP('Random Years'!CH16,'Hist Returns'!$A$12:$D$107,2,FALSE))","v":{"v":7213448.645200639,"d":"7,213,449"}},{"$f":"($A16-$A15)/365.25*(CK15+Main!$I22)*(1+Main!$I$2+VLOOKUP('Random Years'!CI16,'Hist Returns'!$A$12:$D$107,2,FALSE))","v":{"v":1676148.1077635416,"d":"1,676,148"}},{"$f":"($A16-$A15)/365.25*(CL15+Main!$I22)*(1+Main!$I$2+VLOOKUP('Random Years'!CJ16,'Hist Returns'!$A$12:$D$107,2,FALSE))","v":{"v":5339825.779174622,"d":"5,339,826"}},{"$f":"($A16-$A15)/365.25*(CM15+Main!$I22)*(1+Main!$I$2+VLOOKUP('Random Years'!CK16,'Hist Returns'!$A$12:$D$107,2,FALSE))","v":{"v":4226793.549087335,"d":"4,226,794"}},{"$f":"($A16-$A15)/365.25*(CN15+Main!$I22)*(1+Main!$I$2+VLOOKUP('Random Years'!CL16,'Hist Returns'!$A$12:$D$107,2,FALSE))","v":{"v":6898759.96696159,"d":"6,898,760"}},{"$f":"($A16-$A15)/365.25*(CO15+Main!$I22)*(1+Main!$I$2+VLOOKUP('Random Years'!CM16,'Hist Returns'!$A$12:$D$107,2,FALSE))","v":{"v":2272204.8707433073,"d":"2,272,205"}},{"$f":"($A16-$A15)/365.25*(CP15+Main!$I22)*(1+Main!$I$2+VLOOKUP('Random Years'!CN16,'Hist Returns'!$A$12:$D$107,2,FALSE))","v":{"v":-180474.7905374357,"d":"(180,475)"}},{"$f":"($A16-$A15)/365.25*(CQ15+Main!$I22)*(1+Main!$I$2+VLOOKUP('Random Years'!CO16,'Hist Returns'!$A$12:$D$107,2,FALSE))","v":{"v":1715626.0763313598,"d":"1,715,626"}},{"$f":"($A16-$A15)/365.25*(CR15+Main!$I22)*(1+Main!$I$2+VLOOKUP('Random Years'!CP16,'Hist Returns'!$A$12:$D$107,2,FALSE))","v":{"v":5266743.157789479,"d":"5,266,743"}},{"$f":"($A16-$A15)/365.25*(CS15+Main!$I22)*(1+Main!$I$2+VLOOKUP('Random Years'!CQ16,'Hist Returns'!$A$12:$D$107,2,FALSE))","v":{"v":2791190.2769424557,"d":"2,791,190"}},{"$f":"($A16-$A15)/365.25*(CT15+Main!$I22)*(1+Main!$I$2+VLOOKUP('Random Years'!CR16,'Hist Returns'!$A$12:$D$107,2,FALSE))","v":{"v":1299611.7907651444,"d":"1,299,612"}},{"$f":"($A16-$A15)/365.25*(CU15+Main!$I22)*(1+Main!$I$2+VLOOKUP('Random Years'!CS16,'Hist Returns'!$A$12:$D$107,2,FALSE))","v":{"v":10596584.933513913,"d":"10,596,585"}},{"$f":"($A16-$A15)/365.25*(CV15+Main!$I22)*(1+Main!$I$2+VLOOKUP('Random Years'!CT16,'Hist Returns'!$A$12:$D$107,2,FALSE))","v":{"v":3962837.1915459316,"d":"3,962,837"}},{"$f":"($A16-$A15)/365.25*(CW15+Main!$I22)*(1+Main!$I$2+VLOOKUP('Random Years'!CU16,'Hist Returns'!$A$12:$D$107,2,FALSE))","v":{"v":236380.77571373733,"d":"236,381"}},{"$f":"($A16-$A15)/365.25*(CX15+Main!$I22)*(1+Main!$I$2+VLOOKUP('Random Years'!CV16,'Hist Returns'!$A$12:$D$107,2,FALSE))","v":{"v":1650037.7049956375,"d":"1,650,038"}}]
[{"$f":"Main!A23","v":"2038-12-30"},{"$f":"Main!B23","v":84},{"$f":"($A17-$A16)/365.25*(C16+Main!$I23)*(1+Main!$I$2+VLOOKUP('Random Years'!A17,'Hist Returns'!$A$12:$D$107,2,FALSE))","v":{"v":1048202.9809487155,"d":"1,048,203"}},{"$f":"($A17-$A16)/365.25*(D16+Main!$I23)*(1+Main!$I$2+VLOOKUP('Random Years'!B17,'Hist Returns'!$A$12:$D$107,2,FALSE))","v":{"v":1128942.540697772,"d":"1,128,943"}},{"$f":"($A17-$A16)/365.25*(E16+Main!$I23)*(1+Main!$I$2+VLOOKUP('Random Years'!C17,'Hist Returns'!$A$12:$D$107,2,FALSE))","v":{"v":3155869.2081207098,"d":"3,155,869"}},{"$f":"($A17-$A16)/365.25*(F16+Main!$I23)*(1+Main!$I$2+VLOOKUP('Random Years'!D17,'Hist Returns'!$A$12:$D$107,2,FALSE))","v":{"v":5204619.357383368,"d":"5,204,619"}},{"$f":"($A17-$A16)/365.25*(G16+Main!$I23)*(1+Main!$I$2+VLOOKUP('Random Years'!E17,'Hist Returns'!$A$12:$D$107,2,FALSE))","v":{"v":9480076.469835874,"d":"9,480,076"}},{"$f":"($A17-$A16)/365.25*(H16+Main!$I23)*(1+Main!$I$2+VLOOKUP('Random Years'!F17,'Hist Returns'!$A$12:$D$107,2,FALSE))","v":{"v":1646176.888964363,"d":"1,646,177"}},{"$f":"($A17-$A16)/365.25*(I16+Main!$I23)*(1+Main!$I$2+VLOOKUP('Random Years'!G17,'Hist Returns'!$A$12:$D$107,2,FALSE))","v":{"v":1180067.6883801892,"d":"1,180,068"}},{"$f":"($A17-$A16)/365.25*(J16+Main!$I23)*(1+Main!$I$2+VLOOKUP('Random Years'!H17,'Hist Returns'!$A$12:$D$107,2,FALSE))","v":{"v":937899.4100931007,"d":"937,899"}},{"$f":"($A17-$A16)/365.25*(K16+Main!$I23)*(1+Main!$I$2+VLOOKUP('Random Years'!I17,'Hist Returns'!$A$12:$D$107,2,FALSE))","v":{"v":2664464.991443076,"d":"2,664,465"}},{"$f":"($A17-$A16)/365.25*(L16+Main!$I23)*(1+Main!$I$2+VLOOKUP('Random Years'!J17,'Hist Returns'!$A$12:$D$107,2,FALSE))","v":{"v":5069385.367650694,"d":"5,069,385"}},{"$f":"($A17-$A16)/365.25*(M16+Main!$I23)*(1+Main!$I$2+VLOOKUP('Random Years'!K17,'Hist Returns'!$A$12:$D$107,2,FALSE))","v":{"v":1308830.4484065329,"d":"1,308,830"}},{"$f":"($A17-$A16)/365.25*(N16+Main!$I23)*(1+Main!$I$2+VLOOKUP('Random Years'!L17,'Hist Returns'!$A$12:$D$107,2,FALSE))","v":{"v":-272800.64666644286,"d":"(272,801)"}},{"$f":"($A17-$A16)/365.25*(O16+Main!$I23)*(1+Main!$I$2+VLOOKUP('Random Years'!M17,'Hist Returns'!$A$12:$D$107,2,FALSE))","v":{"v":2098407.859018331,"d":"2,098,408"}},{"$f":"($A17-$A16)/365.25*(P16+Main!$I23)*(1+Main!$I$2+VLOOKUP('Random Years'!N17,'Hist Returns'!$A$12:$D$107,2,FALSE))","v":{"v":669108.9940308899,"d":"669,109"}},{"$f":"($A17-$A16)/365.25*(Q16+Main!$I23)*(1+Main!$I$2+VLOOKUP('Random Years'!O17,'Hist Returns'!$A$12:$D$107,2,FALSE))","v":{"v":586886.0152457792,"d":"586,886"}},{"$f":"($A17-$A16)/365.25*(R16+Main!$I23)*(1+Main!$I$2+VLOOKUP('Random Years'!P17,'Hist Returns'!$A$12:$D$107,2,FALSE))","v":{"v":1267290.633804343,"d":"1,267,291"}},{"$f":"($A17-$A16)/365.25*(S16+Main!$I23)*(1+Main!$I$2+VLOOKUP('Random Years'!Q17,'Hist Returns'!$A$12:$D$107,2,FALSE))","v":{"v":286239.985636153,"d":"286,240"}},{"$f":"($A17-$A16)/365.25*(T16+Main!$I23)*(1+Main!$I$2+VLOOKUP('Random Years'!R17,'Hist Returns'!$A$12:$D$107,2,FALSE))","v":{"v":-78461.14357689967,"d":"(78,461)"}},{"$f":"($A17-$A16)/365.25*(U16+Main!$I23)*(1+Main!$I$2+VLOOKUP('Random Years'!S17,'Hist Returns'!$A$12:$D$107,2,FALSE))","v":{"v":1006171.0257369882,"d":"1,006,171"}},{"$f":"($A17-$A16)/365.25*(V16+Main!$I23)*(1+Main!$I$2+VLOOKUP('Random Years'!T17,'Hist Returns'!$A$12:$D$107,2,FALSE))","v":{"v":6956639.6801031325,"d":"6,956,640"}},{"$f":"($A17-$A16)/365.25*(W16+Main!$I23)*(1+Main!$I$2+VLOOKUP('Random Years'!U17,'Hist Returns'!$A$12:$D$107,2,FALSE))","v":{"v":5007623.766852467,"d":"5,007,624"}},{"$f":"($A17-$A16)/365.25*(X16+Main!$I23)*(1+Main!$I$2+VLOOKUP('Random Years'!V17,'Hist Returns'!$A$12:$D$107,2,FALSE))","v":{"v":996560.1278628953,"d":"996,560"}},{"$f":"($A17-$A16)/365.25*(Y16+Main!$I23)*(1+Main!$I$2+VLOOKUP('Random Years'!W17,'Hist Returns'!$A$12:$D$107,2,FALSE))","v":{"v":1261299.6265310075,"d":"1,261,300"}},{"$f":"($A17-$A16)/365.25*(Z16+Main!$I23)*(1+Main!$I$2+VLOOKUP('Random Years'!X17,'Hist Returns'!$A$12:$D$107,2,FALSE))","v":{"v":740762.0255425696,"d":"740,762"}},{"$f":"($A17-$A16)/365.25*(AA16+Main!$I23)*(1+Main!$I$2+VLOOKUP('Random Years'!Y17,'Hist Returns'!$A$12:$D$107,2,FALSE))","v":{"v":1780902.693858152,"d":"1,780,903"}},{"$f":"($A17-$A16)/365.25*(AB16+Main!$I23)*(1+Main!$I$2+VLOOKUP('Random Years'!Z17,'Hist Returns'!$A$12:$D$107,2,FALSE))","v":{"v":791009.0944718546,"d":"791,009"}},{"$f":"($A17-$A16)/365.25*(AC16+Main!$I23)*(1+Main!$I$2+VLOOKUP('Random Years'!AA17,'Hist Returns'!$A$12:$D$107,2,FALSE))","v":{"v":689458.5557670295,"d":"689,459"}},{"$f":"($A17-$A16)/365.25*(AD16+Main!$I23)*(1+Main!$I$2+VLOOKUP('Random Years'!AB17,'Hist Returns'!$A$12:$D$107,2,FALSE))","v":{"v":1119696.141373802,"d":"1,119,696"}},{"$f":"($A17-$A16)/365.25*(AE16+Main!$I23)*(1+Main!$I$2+VLOOKUP('Random Years'!AC17,'Hist Returns'!$A$12:$D$107,2,FALSE))","v":{"v":307377.3768995918,"d":"307,377"}},{"$f":"($A17-$A16)/365.25*(AF16+Main!$I23)*(1+Main!$I$2+VLOOKUP('Random Years'!AD17,'Hist Returns'!$A$12:$D$107,2,FALSE))","v":{"v":8215759.867301749,"d":"8,215,760"}},{"$f":"($A17-$A16)/365.25*(AG16+Main!$I23)*(1+Main!$I$2+VLOOKUP('Random Years'!AE17,'Hist Returns'!$A$12:$D$107,2,FALSE))","v":{"v":7758824.697598888,"d":"7,758,825"}},{"$f":"($A17-$A16)/365.25*(AH16+Main!$I23)*(1+Main!$I$2+VLOOKUP('Random Years'!AF17,'Hist Returns'!$A$12:$D$107,2,FALSE))","v":{"v":2360583.5743213114,"d":"2,360,584"}},{"$f":"($A17-$A16)/365.25*(AI16+Main!$I23)*(1+Main!$I$2+VLOOKUP('Random Years'!AG17,'Hist Returns'!$A$12:$D$107,2,FALSE))","v":{"v":1735150.4008309245,"d":"1,735,150"}},{"$f":"($A17-$A16)/365.25*(AJ16+Main!$I23)*(1+Main!$I$2+VLOOKUP('Random Years'!AH17,'Hist Returns'!$A$12:$D$107,2,FALSE))","v":{"v":2850639.594563428,"d":"2,850,640"}},{"$f":"($A17-$A16)/365.25*(AK16+Main!$I23)*(1+Main!$I$2+VLOOKUP('Random Years'!AI17,'Hist Returns'!$A$12:$D$107,2,FALSE))","v":{"v":480005.0144211297,"d":"480,005"}},{"$f":"($A17-$A16)/365.25*(AL16+Main!$I23)*(1+Main!$I$2+VLOOKUP('Random Years'!AJ17,'Hist Returns'!$A$12:$D$107,2,FALSE))","v":{"v":3398327.3450038307,"d":"3,398,327"}},{"$f":"($A17-$A16)/365.25*(AM16+Main!$I23)*(1+Main!$I$2+VLOOKUP('Random Years'!AK17,'Hist Returns'!$A$12:$D$107,2,FALSE))","v":{"v":-27212.550127286326,"d":"(27,213)"}},{"$f":"($A17-$A16)/365.25*(AN16+Main!$I23)*(1+Main!$I$2+VLOOKUP('Random Years'!AL17,'Hist Returns'!$A$12:$D$107,2,FALSE))","v":{"v":6805110.780702188,"d":"6,805,111"}},{"$f":"($A17-$A16)/365.25*(AO16+Main!$I23)*(1+Main!$I$2+VLOOKUP('Random Years'!AM17,'Hist Returns'!$A$12:$D$107,2,FALSE))","v":{"v":2331789.171643799,"d":"2,331,789"}},{"$f":"($A17-$A16)/365.25*(AP16+Main!$I23)*(1+Main!$I$2+VLOOKUP('Random Years'!AN17,'Hist Returns'!$A$12:$D$107,2,FALSE))","v":{"v":7737611.72355908,"d":"7,737,612"}},{"$f":"($A17-$A16)/365.25*(AQ16+Main!$I23)*(1+Main!$I$2+VLOOKUP('Random Years'!AO17,'Hist Returns'!$A$12:$D$107,2,FALSE))","v":{"v":291389.9903077178,"d":"291,390"}},{"$f":"($A17-$A16)/365.25*(AR16+Main!$I23)*(1+Main!$I$2+VLOOKUP('Random Years'!AP17,'Hist Returns'!$A$12:$D$107,2,FALSE))","v":{"v":3957436.495940325,"d":"3,957,436"}},{"$f":"($A17-$A16)/365.25*(AS16+Main!$I23)*(1+Main!$I$2+VLOOKUP('Random Years'!AQ17,'Hist Returns'!$A$12:$D$107,2,FALSE))","v":{"v":1086399.6917858094,"d":"1,086,400"}},{"$f":"($A17-$A16)/365.25*(AT16+Main!$I23)*(1+Main!$I$2+VLOOKUP('Random Years'!AR17,'Hist Returns'!$A$12:$D$107,2,FALSE))","v":{"v":189203.23847220323,"d":"189,203"}},{"$f":"($A17-$A16)/365.25*(AU16+Main!$I23)*(1+Main!$I$2+VLOOKUP('Random Years'!AS17,'Hist Returns'!$A$12:$D$107,2,FALSE))","v":{"v":1654381.6451518163,"d":"1,654,382"}},{"$f":"($A17-$A16)/365.25*(AV16+Main!$I23)*(1+Main!$I$2+VLOOKUP('Random Years'!AT17,'Hist Returns'!$A$12:$D$107,2,FALSE))","v":{"v":4389496.618996303,"d":"4,389,497"}},{"$f":"($A17-$A16)/365.25*(AW16+Main!$I23)*(1+Main!$I$2+VLOOKUP('Random Years'!AU17,'Hist Returns'!$A$12:$D$107,2,FALSE))","v":{"v":778635.5096424092,"d":"778,636"}},{"$f":"($A17-$A16)/365.25*(AX16+Main!$I23)*(1+Main!$I$2+VLOOKUP('Random Years'!AV17,'Hist Returns'!$A$12:$D$107,2,FALSE))","v":{"v":4367982.578113144,"d":"4,367,983"}},{"$f":"($A17-$A16)/365.25*(AY16+Main!$I23)*(1+Main!$I$2+VLOOKUP('Random Years'!AW17,'Hist Returns'!$A$12:$D$107,2,FALSE))","v":{"v":3674344.684977767,"d":"3,674,345"}},{"$f":"($A17-$A16)/365.25*(AZ16+Main!$I23)*(1+Main!$I$2+VLOOKUP('Random Years'!AX17,'Hist Returns'!$A$12:$D$107,2,FALSE))","v":{"v":123323.08022885448,"d":"123,323"}},{"$f":"($A17-$A16)/365.25*(BA16+Main!$I23)*(1+Main!$I$2+VLOOKUP('Random Years'!AY17,'Hist Returns'!$A$12:$D$107,2,FALSE))","v":{"v":-223278.27454130564,"d":"(223,278)"}},{"$f":"($A17-$A16)/365.25*(BB16+Main!$I23)*(1+Main!$I$2+VLOOKUP('Random Years'!AZ17,'Hist Returns'!$A$12:$D$107,2,FALSE))","v":{"v":311383.7178188217,"d":"311,384"}},{"$f":"($A17-$A16)/365.25*(BC16+Main!$I23)*(1+Main!$I$2+VLOOKUP('Random Years'!BA17,'Hist Returns'!$A$12:$D$107,2,FALSE))","v":{"v":1403689.303679662,"d":"1,403,689"}},{"$f":"($A17-$A16)/365.25*(BD16+Main!$I23)*(1+Main!$I$2+VLOOKUP('Random Years'!BB17,'Hist Returns'!$A$12:$D$107,2,FALSE))","v":{"v":2314221.206275576,"d":"2,314,221"}},{"$f":"($A17-$A16)/365.25*(BE16+Main!$I23)*(1+Main!$I$2+VLOOKUP('Random Years'!BC17,'Hist Returns'!$A$12:$D$107,2,FALSE))","v":{"v":1157649.1396345666,"d":"1,157,649"}},{"$f":"($A17-$A16)/365.25*(BF16+Main!$I23)*(1+Main!$I$2+VLOOKUP('Random Years'!BD17,'Hist Returns'!$A$12:$D$107,2,FALSE))","v":{"v":-471293.42477884906,"d":"(471,293)"}},{"$f":"($A17-$A16)/365.25*(BG16+Main!$I23)*(1+Main!$I$2+VLOOKUP('Random Years'!BE17,'Hist Returns'!$A$12:$D$107,2,FALSE))","v":{"v":353987.2912648453,"d":"353,987"}},{"$f":"($A17-$A16)/365.25*(BH16+Main!$I23)*(1+Main!$I$2+VLOOKUP('Random Years'!BF17,'Hist Returns'!$A$12:$D$107,2,FALSE))","v":{"v":487652.3777680985,"d":"487,652"}},{"$f":"($A17-$A16)/365.25*(BI16+Main!$I23)*(1+Main!$I$2+VLOOKUP('Random Years'!BG17,'Hist Returns'!$A$12:$D$107,2,FALSE))","v":{"v":3153688.986563252,"d":"3,153,689"}},{"$f":"($A17-$A16)/365.25*(BJ16+Main!$I23)*(1+Main!$I$2+VLOOKUP('Random Years'!BH17,'Hist Returns'!$A$12:$D$107,2,FALSE))","v":{"v":711889.562572934,"d":"711,890"}},{"$f":"($A17-$A16)/365.25*(BK16+Main!$I23)*(1+Main!$I$2+VLOOKUP('Random Years'!BI17,'Hist Returns'!$A$12:$D$107,2,FALSE))","v":{"v":896305.2410450049,"d":"896,305"}},{"$f":"($A17-$A16)/365.25*(BL16+Main!$I23)*(1+Main!$I$2+VLOOKUP('Random Years'!BJ17,'Hist Returns'!$A$12:$D$107,2,FALSE))","v":{"v":2824404.9021986104,"d":"2,824,405"}},{"$f":"($A17-$A16)/365.25*(BM16+Main!$I23)*(1+Main!$I$2+VLOOKUP('Random Years'!BK17,'Hist Returns'!$A$12:$D$107,2,FALSE))","v":{"v":230963.0851892683,"d":"230,963"}},{"$f":"($A17-$A16)/365.25*(BN16+Main!$I23)*(1+Main!$I$2+VLOOKUP('Random Years'!BL17,'Hist Returns'!$A$12:$D$107,2,FALSE))","v":{"v":4161346.588007278,"d":"4,161,347"}},{"$f":"($A17-$A16)/365.25*(BO16+Main!$I23)*(1+Main!$I$2+VLOOKUP('Random Years'!BM17,'Hist Returns'!$A$12:$D$107,2,FALSE))","v":{"v":1470314.8413417712,"d":"1,470,315"}},{"$f":"($A17-$A16)/365.25*(BP16+Main!$I23)*(1+Main!$I$2+VLOOKUP('Random Years'!BN17,'Hist Returns'!$A$12:$D$107,2,FALSE))","v":{"v":3586396.4663250055,"d":"3,586,396"}},{"$f":"($A17-$A16)/365.25*(BQ16+Main!$I23)*(1+Main!$I$2+VLOOKUP('Random Years'!BO17,'Hist Returns'!$A$12:$D$107,2,FALSE))","v":{"v":762394.8642059964,"d":"762,395"}},{"$f":"($A17-$A16)/365.25*(BR16+Main!$I23)*(1+Main!$I$2+VLOOKUP('Random Years'!BP17,'Hist Returns'!$A$12:$D$107,2,FALSE))","v":{"v":6318829.748214258,"d":"6,318,830"}},{"$f":"($A17-$A16)/365.25*(BS16+Main!$I23)*(1+Main!$I$2+VLOOKUP('Random Years'!BQ17,'Hist Returns'!$A$12:$D$107,2,FALSE))","v":{"v":2921550.7406463954,"d":"2,921,551"}},{"$f":"($A17-$A16)/365.25*(BT16+Main!$I23)*(1+Main!$I$2+VLOOKUP('Random Years'!BR17,'Hist Returns'!$A$12:$D$107,2,FALSE))","v":{"v":273840.58687836945,"d":"273,841"}},{"$f":"($A17-$A16)/365.25*(BU16+Main!$I23)*(1+Main!$I$2+VLOOKUP('Random Years'!BS17,'Hist Returns'!$A$12:$D$107,2,FALSE))","v":{"v":326011.94462789333,"d":"326,012"}},{"$f":"($A17-$A16)/365.25*(BV16+Main!$I23)*(1+Main!$I$2+VLOOKUP('Random Years'!BT17,'Hist Returns'!$A$12:$D$107,2,FALSE))","v":{"v":2030589.066427144,"d":"2,030,589"}},{"$f":"($A17-$A16)/365.25*(BW16+Main!$I23)*(1+Main!$I$2+VLOOKUP('Random Years'!BU17,'Hist Returns'!$A$12:$D$107,2,FALSE))","v":{"v":6794.261873721079,"d":"6,794"}},{"$f":"($A17-$A16)/365.25*(BX16+Main!$I23)*(1+Main!$I$2+VLOOKUP('Random Years'!BV17,'Hist Returns'!$A$12:$D$107,2,FALSE))","v":{"v":1904517.4341001816,"d":"1,904,517"}},{"$f":"($A17-$A16)/365.25*(BY16+Main!$I23)*(1+Main!$I$2+VLOOKUP('Random Years'!BW17,'Hist Returns'!$A$12:$D$107,2,FALSE))","v":{"v":2812211.0180155365,"d":"2,812,211"}},{"$f":"($A17-$A16)/365.25*(BZ16+Main!$I23)*(1+Main!$I$2+VLOOKUP('Random Years'!BX17,'Hist Returns'!$A$12:$D$107,2,FALSE))","v":{"v":570510.6738279462,"d":"570,511"}},{"$f":"($A17-$A16)/365.25*(CA16+Main!$I23)*(1+Main!$I$2+VLOOKUP('Random Years'!BY17,'Hist Returns'!$A$12:$D$107,2,FALSE))","v":{"v":572898.9872091669,"d":"572,899"}},{"$f":"($A17-$A16)/365.25*(CB16+Main!$I23)*(1+Main!$I$2+VLOOKUP('Random Years'!BZ17,'Hist Returns'!$A$12:$D$107,2,FALSE))","v":{"v":278814.29944018397,"d":"278,814"}},{"$f":"($A17-$A16)/365.25*(CC16+Main!$I23)*(1+Main!$I$2+VLOOKUP('Random Years'!CA17,'Hist Returns'!$A$12:$D$107,2,FALSE))","v":{"v":1217009.153410735,"d":"1,217,009"}},{"$f":"($A17-$A16)/365.25*(CD16+Main!$I23)*(1+Main!$I$2+VLOOKUP('Random Years'!CB17,'Hist Returns'!$A$12:$D$107,2,FALSE))","v":{"v":6415080.7673077835,"d":"6,415,081"}},{"$f":"($A17-$A16)/365.25*(CE16+Main!$I23)*(1+Main!$I$2+VLOOKUP('Random Years'!CC17,'Hist Returns'!$A$12:$D$107,2,FALSE))","v":{"v":3759583.160765482,"d":"3,759,583"}},{"$f":"($A17-$A16)/365.25*(CF16+Main!$I23)*(1+Main!$I$2+VLOOKUP('Random Years'!CD17,'Hist Returns'!$A$12:$D$107,2,FALSE))","v":{"v":898479.8279070109,"d":"898,480"}},{"$f":"($A17-$A16)/365.25*(CG16+Main!$I23)*(1+Main!$I$2+VLOOKUP('Random Years'!CE17,'Hist Returns'!$A$12:$D$107,2,FALSE))","v":{"v":3770091.962488453,"d":"3,770,092"}},{"$f":"($A17-$A16)/365.25*(CH16+Main!$I23)*(1+Main!$I$2+VLOOKUP('Random Years'!CF17,'Hist Returns'!$A$12:$D$107,2,FALSE))","v":{"v":2428999.295735898,"d":"2,428,999"}},{"$f":"($A17-$A16)/365.25*(CI16+Main!$I23)*(1+Main!$I$2+VLOOKUP('Random Years'!CG17,'Hist Returns'!$A$12:$D$107,2,FALSE))","v":{"v":491514.34966435534,"d":"491,514"}},{"$f":"($A17-$A16)/365.25*(CJ16+Main!$I23)*(1+Main!$I$2+VLOOKUP('Random Years'!CH17,'Hist Returns'!$A$12:$D$107,2,FALSE))","v":{"v":9039196.91903979,"d":"9,039,197"}},{"$f":"($A17-$A16)/365.25*(CK16+Main!$I23)*(1+Main!$I$2+VLOOKUP('Random Years'!CI17,'Hist Returns'!$A$12:$D$107,2,FALSE))","v":{"v":2110355.189788151,"d":"2,110,355"}},{"$f":"($A17-$A16)/365.25*(CL16+Main!$I23)*(1+Main!$I$2+VLOOKUP('Random Years'!CJ17,'Hist Returns'!$A$12:$D$107,2,FALSE))","v":{"v":6561531.808508543,"d":"6,561,532"}},{"$f":"($A17-$A16)/365.25*(CM16+Main!$I23)*(1+Main!$I$2+VLOOKUP('Random Years'!CK17,'Hist Returns'!$A$12:$D$107,2,FALSE))","v":{"v":4991009.136902577,"d":"4,991,009"}},{"$f":"($A17-$A16)/365.25*(CN16+Main!$I23)*(1+Main!$I$2+VLOOKUP('Random Years'!CL17,'Hist Returns'!$A$12:$D$107,2,FALSE))","v":{"v":8496822.8622872,"d":"8,496,823"}},{"$f":"($A17-$A16)/365.25*(CO16+Main!$I23)*(1+Main!$I$2+VLOOKUP('Random Years'!CM17,'Hist Returns'!$A$12:$D$107,2,FALSE))","v":{"v":2944772.705381509,"d":"2,944,773"}},{"$f":"($A17-$A16)/365.25*(CP16+Main!$I23)*(1+Main!$I$2+VLOOKUP('Random Years'!CN17,'Hist Returns'!$A$12:$D$107,2,FALSE))","v":{"v":-223255.80719722714,"d":"(223,256)"}},{"$f":"($A17-$A16)/365.25*(CQ16+Main!$I23)*(1+Main!$I$2+VLOOKUP('Random Years'!CO17,'Hist Returns'!$A$12:$D$107,2,FALSE))","v":{"v":1986811.3210320086,"d":"1,986,811"}},{"$f":"($A17-$A16)/365.25*(CR16+Main!$I23)*(1+Main!$I$2+VLOOKUP('Random Years'!CP17,'Hist Returns'!$A$12:$D$107,2,FALSE))","v":{"v":5301658.115984142,"d":"5,301,658"}},{"$f":"($A17-$A16)/365.25*(CS16+Main!$I23)*(1+Main!$I$2+VLOOKUP('Random Years'!CQ17,'Hist Returns'!$A$12:$D$107,2,FALSE))","v":{"v":3263304.2156756446,"d":"3,263,304"}},{"$f":"($A17-$A16)/365.25*(CT16+Main!$I23)*(1+Main!$I$2+VLOOKUP('Random Years'!CR17,'Hist Returns'!$A$12:$D$107,2,FALSE))","v":{"v":1658439.2047443916,"d":"1,658,439"}},{"$f":"($A17-$A16)/365.25*(CU16+Main!$I23)*(1+Main!$I$2+VLOOKUP('Random Years'!CS17,'Hist Returns'!$A$12:$D$107,2,FALSE))","v":{"v":11610844.63077213,"d":"11,610,845"}},{"$f":"($A17-$A16)/365.25*(CV16+Main!$I23)*(1+Main!$I$2+VLOOKUP('Random Years'!CT17,'Hist Returns'!$A$12:$D$107,2,FALSE))","v":{"v":4666217.3201318905,"d":"4,666,217"}},{"$f":"($A17-$A16)/365.25*(CW16+Main!$I23)*(1+Main!$I$2+VLOOKUP('Random Years'!CU17,'Hist Returns'!$A$12:$D$107,2,FALSE))","v":{"v":212676.18874007446,"d":"212,676"}},{"$f":"($A17-$A16)/365.25*(CX16+Main!$I23)*(1+Main!$I$2+VLOOKUP('Random Years'!CV17,'Hist Returns'!$A$12:$D$107,2,FALSE))","v":{"v":2107267.8115915773,"d":"2,107,268"}}]
[{"$f":"Main!A24","v":"2039-12-31"},{"$f":"Main!B24","v":85},{"$f":"($A18-$A17)/365.25*(C17+Main!$I24)*(1+Main!$I$2+VLOOKUP('Random Years'!A18,'Hist Returns'!$A$12:$D$107,2,FALSE))","v":{"v":916622.0665014165,"d":"916,622"}},{"$f":"($A18-$A17)/365.25*(D17+Main!$I24)*(1+Main!$I$2+VLOOKUP('Random Years'!B18,'Hist Returns'!$A$12:$D$107,2,FALSE))","v":{"v":1180809.3643608585,"d":"1,180,809"}},{"$f":"($A18-$A17)/365.25*(E17+Main!$I24)*(1+Main!$I$2+VLOOKUP('Random Years'!C18,'Hist Returns'!$A$12:$D$107,2,FALSE))","v":{"v":2343730.8617062205,"d":"2,343,731"}},{"$f":"($A18-$A17)/365.25*(F17+Main!$I24)*(1+Main!$I$2+VLOOKUP('Random Years'!D18,'Hist Returns'!$A$12:$D$107,2,FALSE))","v":{"v":6779770.760849633,"d":"6,779,771"}},{"$f":"($A18-$A17)/365.25*(G17+Main!$I24)*(1+Main!$I$2+VLOOKUP('Random Years'!E18,'Hist Returns'!$A$12:$D$107,2,FALSE))","v":{"v":11582059.53589471,"d":"11,582,060"}},{"$f":"($A18-$A17)/365.25*(H17+Main!$I24)*(1+Main!$I$2+VLOOKUP('Random Years'!F18,'Hist Returns'!$A$12:$D$107,2,FALSE))","v":{"v":1908625.4808019958,"d":"1,908,625"}},{"$f":"($A18-$A17)/365.25*(I17+Main!$I24)*(1+Main!$I$2+VLOOKUP('Random Years'!G18,'Hist Returns'!$A$12:$D$107,2,FALSE))","v":{"v":646023.1143698037,"d":"646,023"}},{"$f":"($A18-$A17)/365.25*(J17+Main!$I24)*(1+Main!$I$2+VLOOKUP('Random Years'!H18,'Hist Returns'!$A$12:$D$107,2,FALSE))","v":{"v":1049311.4966991358,"d":"1,049,311"}},{"$f":"($A18-$A17)/365.25*(K17+Main!$I24)*(1+Main!$I$2+VLOOKUP('Random Years'!I18,'Hist Returns'!$A$12:$D$107,2,FALSE))","v":{"v":2325157.5920774224,"d":"2,325,158"}},{"$f":"($A18-$A17)/365.25*(L17+Main!$I24)*(1+Main!$I$2+VLOOKUP('Random Years'!J18,'Hist Returns'!$A$12:$D$107,2,FALSE))","v":{"v":6008168.420181171,"d":"6,008,168"}},{"$f":"($A18-$A17)/365.25*(M17+Main!$I24)*(1+Main!$I$2+VLOOKUP('Random Years'!K18,'Hist Returns'!$A$12:$D$107,2,FALSE))","v":{"v":1678895.2233273203,"d":"1,678,895"}},{"$f":"($A18-$A17)/365.25*(N17+Main!$I24)*(1+Main!$I$2+VLOOKUP('Random Years'!L18,'Hist Returns'!$A$12:$D$107,2,FALSE))","v":{"v":-364166.1594005966,"d":"(364,166)"}},{"$f":"($A18-$A17)/365.25*(O17+Main!$I24)*(1+Main!$I$2+VLOOKUP('Random Years'!M18,'Hist Returns'!$A$12:$D$107,2,FALSE))","v":{"v":2313578.637421699,"d":"2,313,579"}},{"$f":"($A18-$A17)/365.25*(P17+Main!$I24)*(1+Main!$I$2+VLOOKUP('Random Years'!N18,'Hist Returns'!$A$12:$D$107,2,FALSE))","v":{"v":866902.4691550478,"d":"866,902"}},{"$f":"($A18-$A17)/365.25*(Q17+Main!$I24)*(1+Main!$I$2+VLOOKUP('Random Years'!O18,'Hist Returns'!$A$12:$D$107,2,FALSE))","v":{"v":563547.239999137,"d":"563,547"}},{"$f":"($A18-$A17)/365.25*(R17+Main!$I24)*(1+Main!$I$2+VLOOKUP('Random Years'!P18,'Hist Returns'!$A$12:$D$107,2,FALSE))","v":{"v":1133352.2068961237,"d":"1,133,352"}},{"$f":"($A18-$A17)/365.25*(S17+Main!$I24)*(1+Main!$I$2+VLOOKUP('Random Years'!Q18,'Hist Returns'!$A$12:$D$107,2,FALSE))","v":{"v":320647.19563664356,"d":"320,647"}},{"$f":"($A18-$A17)/365.25*(T17+Main!$I24)*(1+Main!$I$2+VLOOKUP('Random Years'!R18,'Hist Returns'!$A$12:$D$107,2,FALSE))","v":{"v":-96681.69858203449,"d":"(96,682)"}},{"$f":"($A18-$A17)/365.25*(U17+Main!$I24)*(1+Main!$I$2+VLOOKUP('Random Years'!S18,'Hist Returns'!$A$12:$D$107,2,FALSE))","v":{"v":1163162.2810091532,"d":"1,163,162"}},{"$f":"($A18-$A17)/365.25*(V17+Main!$I24)*(1+Main!$I$2+VLOOKUP('Random Years'!T18,'Hist Returns'!$A$12:$D$107,2,FALSE))","v":{"v":8086177.140855602,"d":"8,086,177"}},{"$f":"($A18-$A17)/365.25*(W17+Main!$I24)*(1+Main!$I$2+VLOOKUP('Random Years'!U18,'Hist Returns'!$A$12:$D$107,2,FALSE))","v":{"v":5356602.49399927,"d":"5,356,602"}},{"$f":"($A18-$A17)/365.25*(X17+Main!$I24)*(1+Main!$I$2+VLOOKUP('Random Years'!V18,'Hist Returns'!$A$12:$D$107,2,FALSE))","v":{"v":1126205.504350095,"d":"1,126,206"}},{"$f":"($A18-$A17)/365.25*(Y17+Main!$I24)*(1+Main!$I$2+VLOOKUP('Random Years'!W18,'Hist Returns'!$A$12:$D$107,2,FALSE))","v":{"v":1619346.4333709236,"d":"1,619,346"}},{"$f":"($A18-$A17)/365.25*(Z17+Main!$I24)*(1+Main!$I$2+VLOOKUP('Random Years'!X18,'Hist Returns'!$A$12:$D$107,2,FALSE))","v":{"v":531673.1925424617,"d":"531,673"}},{"$f":"($A18-$A17)/365.25*(AA17+Main!$I24)*(1+Main!$I$2+VLOOKUP('Random Years'!Y18,'Hist Returns'!$A$12:$D$107,2,FALSE))","v":{"v":1630036.1393951087,"d":"1,630,036"}},{"$f":"($A18-$A17)/365.25*(AB17+Main!$I24)*(1+Main!$I$2+VLOOKUP('Random Years'!Z18,'Hist Returns'!$A$12:$D$107,2,FALSE))","v":{"v":941420.5027773221,"d":"941,421"}},{"$f":"($A18-$A17)/365.25*(AC17+Main!$I24)*(1+Main!$I$2+VLOOKUP('Random Years'!AA18,'Hist Returns'!$A$12:$D$107,2,FALSE))","v":{"v":667392.6108925045,"d":"667,393"}},{"$f":"($A18-$A17)/365.25*(AD17+Main!$I24)*(1+Main!$I$2+VLOOKUP('Random Years'!AB18,'Hist Returns'!$A$12:$D$107,2,FALSE))","v":{"v":1206853.0015782586,"d":"1,206,853"}},{"$f":"($A18-$A17)/365.25*(AE17+Main!$I24)*(1+Main!$I$2+VLOOKUP('Random Years'!AC18,'Hist Returns'!$A$12:$D$107,2,FALSE))","v":{"v":272461.4200811608,"d":"272,461"}},{"$f":"($A18-$A17)/365.25*(AF17+Main!$I24)*(1+Main!$I$2+VLOOKUP('Random Years'!AD18,'Hist Returns'!$A$12:$D$107,2,FALSE))","v":{"v":8110410.180162078,"d":"8,110,410"}},{"$f":"($A18-$A17)/365.25*(AG17+Main!$I24)*(1+Main!$I$2+VLOOKUP('Random Years'!AE18,'Hist Returns'!$A$12:$D$107,2,FALSE))","v":{"v":7657562.202361193,"d":"7,657,562"}},{"$f":"($A18-$A17)/365.25*(AH17+Main!$I24)*(1+Main!$I$2+VLOOKUP('Random Years'!AF18,'Hist Returns'!$A$12:$D$107,2,FALSE))","v":{"v":2122483.970980265,"d":"2,122,484"}},{"$f":"($A18-$A17)/365.25*(AI17+Main!$I24)*(1+Main!$I$2+VLOOKUP('Random Years'!AG18,'Hist Returns'!$A$12:$D$107,2,FALSE))","v":{"v":2033698.3187314137,"d":"2,033,698"}},{"$f":"($A18-$A17)/365.25*(AJ17+Main!$I24)*(1+Main!$I$2+VLOOKUP('Random Years'!AH18,'Hist Returns'!$A$12:$D$107,2,FALSE))","v":{"v":3497331.777280772,"d":"3,497,332"}},{"$f":"($A18-$A17)/365.25*(AK17+Main!$I24)*(1+Main!$I$2+VLOOKUP('Random Years'!AI18,'Hist Returns'!$A$12:$D$107,2,FALSE))","v":{"v":336026.9101748108,"d":"336,027"}},{"$f":"($A18-$A17)/365.25*(AL17+Main!$I24)*(1+Main!$I$2+VLOOKUP('Random Years'!AJ18,'Hist Returns'!$A$12:$D$107,2,FALSE))","v":{"v":3493211.0980822532,"d":"3,493,211"}},{"$f":"($A18-$A17)/365.25*(AM17+Main!$I24)*(1+Main!$I$2+VLOOKUP('Random Years'!AK18,'Hist Returns'!$A$12:$D$107,2,FALSE))","v":{"v":-59683.58155626212,"d":"(59,684)"}},{"$f":"($A18-$A17)/365.25*(AN17+Main!$I24)*(1+Main!$I$2+VLOOKUP('Random Years'!AL18,'Hist Returns'!$A$12:$D$107,2,FALSE))","v":{"v":7628389.72980307,"d":"7,628,390"}},{"$f":"($A18-$A17)/365.25*(AO17+Main!$I24)*(1+Main!$I$2+VLOOKUP('Random Years'!AM18,'Hist Returns'!$A$12:$D$107,2,FALSE))","v":{"v":2746195.2277530036,"d":"2,746,195"}},{"$f":"($A18-$A17)/365.25*(AP17+Main!$I24)*(1+Main!$I$2+VLOOKUP('Random Years'!AN18,'Hist Returns'!$A$12:$D$107,2,FALSE))","v":{"v":10133040.007066682,"d":"10,133,040"}},{"$f":"($A18-$A17)/365.25*(AQ17+Main!$I24)*(1+Main!$I$2+VLOOKUP('Random Years'!AO18,'Hist Returns'!$A$12:$D$107,2,FALSE))","v":{"v":300330.62203370803,"d":"300,331"}},{"$f":"($A18-$A17)/365.25*(AR17+Main!$I24)*(1+Main!$I$2+VLOOKUP('Random Years'!AP18,'Hist Returns'!$A$12:$D$107,2,FALSE))","v":{"v":4149081.3845128645,"d":"4,149,081"}},{"$f":"($A18-$A17)/365.25*(AS17+Main!$I24)*(1+Main!$I$2+VLOOKUP('Random Years'!AQ18,'Hist Returns'!$A$12:$D$107,2,FALSE))","v":{"v":1284706.9152284323,"d":"1,284,707"}},{"$f":"($A18-$A17)/365.25*(AT17+Main!$I24)*(1+Main!$I$2+VLOOKUP('Random Years'!AR18,'Hist Returns'!$A$12:$D$107,2,FALSE))","v":{"v":152554.04016114667,"d":"152,554"}},{"$f":"($A18-$A17)/365.25*(AU17+Main!$I24)*(1+Main!$I$2+VLOOKUP('Random Years'!AS18,'Hist Returns'!$A$12:$D$107,2,FALSE))","v":{"v":1920619.6556297396,"d":"1,920,620"}},{"$f":"($A18-$A17)/365.25*(AV17+Main!$I24)*(1+Main!$I$2+VLOOKUP('Random Years'!AT18,'Hist Returns'!$A$12:$D$107,2,FALSE))","v":{"v":5769844.260999033,"d":"5,769,844"}},{"$f":"($A18-$A17)/365.25*(AW17+Main!$I24)*(1+Main!$I$2+VLOOKUP('Random Years'!AU18,'Hist Returns'!$A$12:$D$107,2,FALSE))","v":{"v":838204.0157502536,"d":"838,204"}},{"$f":"($A18-$A17)/365.25*(AX17+Main!$I24)*(1+Main!$I$2+VLOOKUP('Random Years'!AV18,'Hist Returns'!$A$12:$D$107,2,FALSE))","v":{"v":5576721.642046348,"d":"5,576,722"}},{"$f":"($A18-$A17)/365.25*(AY17+Main!$I24)*(1+Main!$I$2+VLOOKUP('Random Years'!AW18,'Hist Returns'!$A$12:$D$107,2,FALSE))","v":{"v":4999876.680737805,"d":"4,999,877"}},{"$f":"($A18-$A17)/365.25*(AZ17+Main!$I24)*(1+Main!$I$2+VLOOKUP('Random Years'!AX18,'Hist Returns'!$A$12:$D$107,2,FALSE))","v":{"v":87065.17279487972,"d":"87,065"}},{"$f":"($A18-$A17)/365.25*(BA17+Main!$I24)*(1+Main!$I$2+VLOOKUP('Random Years'!AY18,'Hist Returns'!$A$12:$D$107,2,FALSE))","v":{"v":-330901.17968553276,"d":"(330,901)"}},{"$f":"($A18-$A17)/365.25*(BB17+Main!$I24)*(1+Main!$I$2+VLOOKUP('Random Years'!AZ18,'Hist Returns'!$A$12:$D$107,2,FALSE))","v":{"v":338247.0504239905,"d":"338,247"}},{"$f":"($A18-$A17)/365.25*(BC17+Main!$I24)*(1+Main!$I$2+VLOOKUP('Random Years'!BA18,'Hist Returns'!$A$12:$D$107,2,FALSE))","v":{"v":1535706.122631372,"d":"1,535,706"}},{"$f":"($A18-$A17)/365.25*(BD17+Main!$I24)*(1+Main!$I$2+VLOOKUP('Random Years'!BB18,'Hist Returns'!$A$12:$D$107,2,FALSE))","v":{"v":3006519.581833474,"d":"3,006,520"}},{"$f":"($A18-$A17)/365.25*(BE17+Main!$I24)*(1+Main!$I$2+VLOOKUP('Random Years'!BC18,'Hist Returns'!$A$12:$D$107,2,FALSE))","v":{"v":1379732.233293131,"d":"1,379,732"}},{"$f":"($A18-$A17)/365.25*(BF17+Main!$I24)*(1+Main!$I$2+VLOOKUP('Random Years'!BD18,'Hist Returns'!$A$12:$D$107,2,FALSE))","v":{"v":-432295.4579568332,"d":"(432,295)"}},{"$f":"($A18-$A17)/365.25*(BG17+Main!$I24)*(1+Main!$I$2+VLOOKUP('Random Years'!BE18,'Hist Returns'!$A$12:$D$107,2,FALSE))","v":{"v":181123.45198276386,"d":"181,123"}},{"$f":"($A18-$A17)/365.25*(BH17+Main!$I24)*(1+Main!$I$2+VLOOKUP('Random Years'!BF18,'Hist Returns'!$A$12:$D$107,2,FALSE))","v":{"v":539981.7512461466,"d":"539,982"}},{"$f":"($A18-$A17)/365.25*(BI17+Main!$I24)*(1+Main!$I$2+VLOOKUP('Random Years'!BG18,'Hist Returns'!$A$12:$D$107,2,FALSE))","v":{"v":3700465.404981804,"d":"3,700,465"}},{"$f":"($A18-$A17)/365.25*(BJ17+Main!$I24)*(1+Main!$I$2+VLOOKUP('Random Years'!BH18,'Hist Returns'!$A$12:$D$107,2,FALSE))","v":{"v":718494.9042234494,"d":"718,495"}},{"$f":"($A18-$A17)/365.25*(BK17+Main!$I24)*(1+Main!$I$2+VLOOKUP('Random Years'!BI18,'Hist Returns'!$A$12:$D$107,2,FALSE))","v":{"v":789629.5880765038,"d":"789,630"}},{"$f":"($A18-$A17)/365.25*(BL17+Main!$I24)*(1+Main!$I$2+VLOOKUP('Random Years'!BJ18,'Hist Returns'!$A$12:$D$107,2,FALSE))","v":{"v":3100588.255482671,"d":"3,100,588"}},{"$f":"($A18-$A17)/365.25*(BM17+Main!$I24)*(1+Main!$I$2+VLOOKUP('Random Years'!BK18,'Hist Returns'!$A$12:$D$107,2,FALSE))","v":{"v":232168.15882538914,"d":"232,168"}},{"$f":"($A18-$A17)/365.25*(BN17+Main!$I24)*(1+Main!$I$2+VLOOKUP('Random Years'!BL18,'Hist Returns'!$A$12:$D$107,2,FALSE))","v":{"v":5430085.909398024,"d":"5,430,086"}},{"$f":"($A18-$A17)/365.25*(BO17+Main!$I24)*(1+Main!$I$2+VLOOKUP('Random Years'!BM18,'Hist Returns'!$A$12:$D$107,2,FALSE))","v":{"v":1910885.339439743,"d":"1,910,885"}},{"$f":"($A18-$A17)/365.25*(BP17+Main!$I24)*(1+Main!$I$2+VLOOKUP('Random Years'!BN18,'Hist Returns'!$A$12:$D$107,2,FALSE))","v":{"v":4658699.127531242,"d":"4,658,699"}},{"$f":"($A18-$A17)/365.25*(BQ17+Main!$I24)*(1+Main!$I$2+VLOOKUP('Random Years'!BO18,'Hist Returns'!$A$12:$D$107,2,FALSE))","v":{"v":1052331.492214019,"d":"1,052,331"}},{"$f":"($A18-$A17)/365.25*(BR17+Main!$I24)*(1+Main!$I$2+VLOOKUP('Random Years'!BP18,'Hist Returns'!$A$12:$D$107,2,FALSE))","v":{"v":7452617.797026862,"d":"7,452,618"}},{"$f":"($A18-$A17)/365.25*(BS17+Main!$I24)*(1+Main!$I$2+VLOOKUP('Random Years'!BQ18,'Hist Returns'!$A$12:$D$107,2,FALSE))","v":{"v":3324455.0967775406,"d":"3,324,455"}},{"$f":"($A18-$A17)/365.25*(BT17+Main!$I24)*(1+Main!$I$2+VLOOKUP('Random Years'!BR18,'Hist Returns'!$A$12:$D$107,2,FALSE))","v":{"v":247269.92707786543,"d":"247,270"}},{"$f":"($A18-$A17)/365.25*(BU17+Main!$I24)*(1+Main!$I$2+VLOOKUP('Random Years'!BS18,'Hist Returns'!$A$12:$D$107,2,FALSE))","v":{"v":269645.39548410487,"d":"269,645"}},{"$f":"($A18-$A17)/365.25*(BV17+Main!$I24)*(1+Main!$I$2+VLOOKUP('Random Years'!BT18,'Hist Returns'!$A$12:$D$107,2,FALSE))","v":{"v":1294910.2535335713,"d":"1,294,910"}},{"$f":"($A18-$A17)/365.25*(BW17+Main!$I24)*(1+Main!$I$2+VLOOKUP('Random Years'!BU18,'Hist Returns'!$A$12:$D$107,2,FALSE))","v":{"v":-23298.51853660169,"d":"(23,299)"}},{"$f":"($A18-$A17)/365.25*(BX17+Main!$I24)*(1+Main!$I$2+VLOOKUP('Random Years'!BV18,'Hist Returns'!$A$12:$D$107,2,FALSE))","v":{"v":2466754.7194555956,"d":"2,466,755"}},{"$f":"($A18-$A17)/365.25*(BY17+Main!$I24)*(1+Main!$I$2+VLOOKUP('Random Years'!BW18,'Hist Returns'!$A$12:$D$107,2,FALSE))","v":{"v":3575698.151159409,"d":"3,575,698"}},{"$f":"($A18-$A17)/365.25*(BZ17+Main!$I24)*(1+Main!$I$2+VLOOKUP('Random Years'!BX18,'Hist Returns'!$A$12:$D$107,2,FALSE))","v":{"v":546911.8299146467,"d":"546,912"}},{"$f":"($A18-$A17)/365.25*(CA17+Main!$I24)*(1+Main!$I$2+VLOOKUP('Random Years'!BY18,'Hist Returns'!$A$12:$D$107,2,FALSE))","v":{"v":304322.0823975214,"d":"304,322"}},{"$f":"($A18-$A17)/365.25*(CB17+Main!$I24)*(1+Main!$I$2+VLOOKUP('Random Years'!BZ18,'Hist Returns'!$A$12:$D$107,2,FALSE))","v":{"v":211806.37805990002,"d":"211,806"}},{"$f":"($A18-$A17)/365.25*(CC17+Main!$I24)*(1+Main!$I$2+VLOOKUP('Random Years'!CA18,'Hist Returns'!$A$12:$D$107,2,FALSE))","v":{"v":1191288.8354755586,"d":"1,191,289"}},{"$f":"($A18-$A17)/365.25*(CD17+Main!$I24)*(1+Main!$I$2+VLOOKUP('Random Years'!CB18,'Hist Returns'!$A$12:$D$107,2,FALSE))","v":{"v":7260782.844915333,"d":"7,260,783"}},{"$f":"($A18-$A17)/365.25*(CE17+Main!$I24)*(1+Main!$I$2+VLOOKUP('Random Years'!CC18,'Hist Returns'!$A$12:$D$107,2,FALSE))","v":{"v":5698374.415756856,"d":"5,698,374"}},{"$f":"($A18-$A17)/365.25*(CF17+Main!$I24)*(1+Main!$I$2+VLOOKUP('Random Years'!CD18,'Hist Returns'!$A$12:$D$107,2,FALSE))","v":{"v":757239.5293013273,"d":"757,240"}},{"$f":"($A18-$A17)/365.25*(CG17+Main!$I24)*(1+Main!$I$2+VLOOKUP('Random Years'!CE18,'Hist Returns'!$A$12:$D$107,2,FALSE))","v":{"v":3345853.345676523,"d":"3,345,853"}},{"$f":"($A18-$A17)/365.25*(CH17+Main!$I24)*(1+Main!$I$2+VLOOKUP('Random Years'!CF18,'Hist Returns'!$A$12:$D$107,2,FALSE))","v":{"v":2973813.0604624944,"d":"2,973,813"}},{"$f":"($A18-$A17)/365.25*(CI17+Main!$I24)*(1+Main!$I$2+VLOOKUP('Random Years'!CG18,'Hist Returns'!$A$12:$D$107,2,FALSE))","v":{"v":569875.7619809367,"d":"569,876"}},{"$f":"($A18-$A17)/365.25*(CJ17+Main!$I24)*(1+Main!$I$2+VLOOKUP('Random Years'!CH18,'Hist Returns'!$A$12:$D$107,2,FALSE))","v":{"v":10459754.51990107,"d":"10,459,755"}},{"$f":"($A18-$A17)/365.25*(CK17+Main!$I24)*(1+Main!$I$2+VLOOKUP('Random Years'!CI18,'Hist Returns'!$A$12:$D$107,2,FALSE))","v":{"v":2457527.0919877253,"d":"2,457,527"}},{"$f":"($A18-$A17)/365.25*(CL17+Main!$I24)*(1+Main!$I$2+VLOOKUP('Random Years'!CJ18,'Hist Returns'!$A$12:$D$107,2,FALSE))","v":{"v":6916028.594171008,"d":"6,916,029"}},{"$f":"($A18-$A17)/365.25*(CM17+Main!$I24)*(1+Main!$I$2+VLOOKUP('Random Years'!CK18,'Hist Returns'!$A$12:$D$107,2,FALSE))","v":{"v":4909006.435888723,"d":"4,909,006"}},{"$f":"($A18-$A17)/365.25*(CN17+Main!$I24)*(1+Main!$I$2+VLOOKUP('Random Years'!CL18,'Hist Returns'!$A$12:$D$107,2,FALSE))","v":{"v":10887209.769387,"d":"10,887,210"}},{"$f":"($A18-$A17)/365.25*(CO17+Main!$I24)*(1+Main!$I$2+VLOOKUP('Random Years'!CM18,'Hist Returns'!$A$12:$D$107,2,FALSE))","v":{"v":3382387.8309867345,"d":"3,382,388"}},{"$f":"($A18-$A17)/365.25*(CP17+Main!$I24)*(1+Main!$I$2+VLOOKUP('Random Years'!CN18,'Hist Returns'!$A$12:$D$107,2,FALSE))","v":{"v":-302382.8905033883,"d":"(302,383)"}},{"$f":"($A18-$A17)/365.25*(CQ17+Main!$I24)*(1+Main!$I$2+VLOOKUP('Random Years'!CO18,'Hist Returns'!$A$12:$D$107,2,FALSE))","v":{"v":2201537.0370379356,"d":"2,201,537"}},{"$f":"($A18-$A17)/365.25*(CR17+Main!$I24)*(1+Main!$I$2+VLOOKUP('Random Years'!CP18,'Hist Returns'!$A$12:$D$107,2,FALSE))","v":{"v":4753830.2681498295,"d":"4,753,830"}},{"$f":"($A18-$A17)/365.25*(CS17+Main!$I24)*(1+Main!$I$2+VLOOKUP('Random Years'!CQ18,'Hist Returns'!$A$12:$D$107,2,FALSE))","v":{"v":3415374.2882676725,"d":"3,415,374"}},{"$f":"($A18-$A17)/365.25*(CT17+Main!$I24)*(1+Main!$I$2+VLOOKUP('Random Years'!CR18,'Hist Returns'!$A$12:$D$107,2,FALSE))","v":{"v":1750866.1447383412,"d":"1,750,866"}},{"$f":"($A18-$A17)/365.25*(CU17+Main!$I24)*(1+Main!$I$2+VLOOKUP('Random Years'!CS18,'Hist Returns'!$A$12:$D$107,2,FALSE))","v":{"v":10580124.058555473,"d":"10,580,124"}},{"$f":"($A18-$A17)/365.25*(CV17+Main!$I24)*(1+Main!$I$2+VLOOKUP('Random Years'!CT18,'Hist Returns'!$A$12:$D$107,2,FALSE))","v":{"v":4050530.6488414337,"d":"4,050,531"}},{"$f":"($A18-$A17)/365.25*(CW17+Main!$I24)*(1+Main!$I$2+VLOOKUP('Random Years'!CU18,'Hist Returns'!$A$12:$D$107,2,FALSE))","v":{"v":209643.66354877444,"d":"209,644"}},{"$f":"($A18-$A17)/365.25*(CX17+Main!$I24)*(1+Main!$I$2+VLOOKUP('Random Years'!CV18,'Hist Returns'!$A$12:$D$107,2,FALSE))","v":{"v":2286632.74238404,"d":"2,286,633"}}]
[{"$f":"Main!A25","v":"2040-12-30"},{"$f":"Main!B25","v":86},{"$f":"($A19-$A18)/365.25*(C18+Main!$I25)*(1+Main!$I$2+VLOOKUP('Random Years'!A19,'Hist Returns'!$A$12:$D$107,2,FALSE))","v":{"v":1192206.5327776659,"d":"1,192,207"}},{"$f":"($A19-$A18)/365.25*(D18+Main!$I25)*(1+Main!$I$2+VLOOKUP('Random Years'!B19,'Hist Returns'!$A$12:$D$107,2,FALSE))","v":{"v":1226726.820462066,"d":"1,226,727"}},{"$f":"($A19-$A18)/365.25*(E18+Main!$I25)*(1+Main!$I$2+VLOOKUP('Random Years'!C19,'Hist Returns'!$A$12:$D$107,2,FALSE))","v":{"v":2109709.303778208,"d":"2,109,709"}},{"$f":"($A19-$A18)/365.25*(F18+Main!$I25)*(1+Main!$I$2+VLOOKUP('Random Years'!D19,'Hist Returns'!$A$12:$D$107,2,FALSE))","v":{"v":7460644.251791888,"d":"7,460,644"}},{"$f":"($A19-$A18)/365.25*(G18+Main!$I25)*(1+Main!$I$2+VLOOKUP('Random Years'!E19,'Hist Returns'!$A$12:$D$107,2,FALSE))","v":{"v":12193989.509900356,"d":"12,193,990"}},{"$f":"($A19-$A18)/365.25*(H18+Main!$I25)*(1+Main!$I$2+VLOOKUP('Random Years'!F19,'Hist Returns'!$A$12:$D$107,2,FALSE))","v":{"v":1983979.2818931767,"d":"1,983,979"}},{"$f":"($A19-$A18)/365.25*(I18+Main!$I25)*(1+Main!$I$2+VLOOKUP('Random Years'!G19,'Hist Returns'!$A$12:$D$107,2,FALSE))","v":{"v":926613.8951319638,"d":"926,614"}},{"$f":"($A19-$A18)/365.25*(J18+Main!$I25)*(1+Main!$I$2+VLOOKUP('Random Years'!H19,'Hist Returns'!$A$12:$D$107,2,FALSE))","v":{"v":1251158.4780067147,"d":"1,251,158"}},{"$f":"($A19-$A18)/365.25*(K18+Main!$I25)*(1+Main!$I$2+VLOOKUP('Random Years'!I19,'Hist Returns'!$A$12:$D$107,2,FALSE))","v":{"v":2703641.1271572164,"d":"2,703,641"}},{"$f":"($A19-$A18)/365.25*(L18+Main!$I25)*(1+Main!$I$2+VLOOKUP('Random Years'!J19,'Hist Returns'!$A$12:$D$107,2,FALSE))","v":{"v":6666228.047268441,"d":"6,666,228"}},{"$f":"($A19-$A18)/365.25*(M18+Main!$I25)*(1+Main!$I$2+VLOOKUP('Random Years'!K19,'Hist Returns'!$A$12:$D$107,2,FALSE))","v":{"v":1842817.7549791788,"d":"1,842,818"}},{"$f":"($A19-$A18)/365.25*(N18+Main!$I25)*(1+Main!$I$2+VLOOKUP('Random Years'!L19,'Hist Returns'!$A$12:$D$107,2,FALSE))","v":{"v":-365814.31099495094,"d":"(365,814)"}},{"$f":"($A19-$A18)/365.25*(O18+Main!$I25)*(1+Main!$I$2+VLOOKUP('Random Years'!M19,'Hist Returns'!$A$12:$D$107,2,FALSE))","v":{"v":2036000.5063726858,"d":"2,036,001"}},{"$f":"($A19-$A18)/365.25*(P18+Main!$I25)*(1+Main!$I$2+VLOOKUP('Random Years'!N19,'Hist Returns'!$A$12:$D$107,2,FALSE))","v":{"v":985683.0965417661,"d":"985,683"}},{"$f":"($A19-$A18)/365.25*(Q18+Main!$I25)*(1+Main!$I$2+VLOOKUP('Random Years'!O19,'Hist Returns'!$A$12:$D$107,2,FALSE))","v":{"v":620226.591978879,"d":"620,227"}},{"$f":"($A19-$A18)/365.25*(R18+Main!$I25)*(1+Main!$I$2+VLOOKUP('Random Years'!P19,'Hist Returns'!$A$12:$D$107,2,FALSE))","v":{"v":1605867.0229964296,"d":"1,605,867"}},{"$f":"($A19-$A18)/365.25*(S18+Main!$I25)*(1+Main!$I$2+VLOOKUP('Random Years'!Q19,'Hist Returns'!$A$12:$D$107,2,FALSE))","v":{"v":414116.5350159526,"d":"414,117"}},{"$f":"($A19-$A18)/365.25*(T18+Main!$I25)*(1+Main!$I$2+VLOOKUP('Random Years'!R19,'Hist Returns'!$A$12:$D$107,2,FALSE))","v":{"v":-100958.03278071756,"d":"(100,958)"}},{"$f":"($A19-$A18)/365.25*(U18+Main!$I25)*(1+Main!$I$2+VLOOKUP('Random Years'!S19,'Hist Returns'!$A$12:$D$107,2,FALSE))","v":{"v":832974.0995216122,"d":"832,974"}},{"$f":"($A19-$A18)/365.25*(V18+Main!$I25)*(1+Main!$I$2+VLOOKUP('Random Years'!T19,'Hist Returns'!$A$12:$D$107,2,FALSE))","v":{"v":5102730.137359516,"d":"5,102,730"}},{"$f":"($A19-$A18)/365.25*(W18+Main!$I25)*(1+Main!$I$2+VLOOKUP('Random Years'!U19,'Hist Returns'!$A$12:$D$107,2,FALSE))","v":{"v":5955485.4189706175,"d":"5,955,485"}},{"$f":"($A19-$A18)/365.25*(X18+Main!$I25)*(1+Main!$I$2+VLOOKUP('Random Years'!V19,'Hist Returns'!$A$12:$D$107,2,FALSE))","v":{"v":1434511.4531035465,"d":"1,434,511"}},{"$f":"($A19-$A18)/365.25*(Y18+Main!$I25)*(1+Main!$I$2+VLOOKUP('Random Years'!W19,'Hist Returns'!$A$12:$D$107,2,FALSE))","v":{"v":1562678.8461054908,"d":"1,562,679"}},{"$f":"($A19-$A18)/365.25*(Z18+Main!$I25)*(1+Main!$I$2+VLOOKUP('Random Years'!X19,'Hist Returns'!$A$12:$D$107,2,FALSE))","v":{"v":430116.821741872,"d":"430,117"}},{"$f":"($A19-$A18)/365.25*(AA18+Main!$I25)*(1+Main!$I$2+VLOOKUP('Random Years'!Y19,'Hist Returns'!$A$12:$D$107,2,FALSE))","v":{"v":2334204.2557278993,"d":"2,334,204"}},{"$f":"($A19-$A18)/365.25*(AB18+Main!$I25)*(1+Main!$I$2+VLOOKUP('Random Years'!Z19,'Hist Returns'!$A$12:$D$107,2,FALSE))","v":{"v":1159517.1344325666,"d":"1,159,517"}},{"$f":"($A19-$A18)/365.25*(AC18+Main!$I25)*(1+Main!$I$2+VLOOKUP('Random Years'!AA19,'Hist Returns'!$A$12:$D$107,2,FALSE))","v":{"v":742836.9446538426,"d":"742,837"}},{"$f":"($A19-$A18)/365.25*(AD18+Main!$I25)*(1+Main!$I$2+VLOOKUP('Random Years'!AB19,'Hist Returns'!$A$12:$D$107,2,FALSE))","v":{"v":1000718.761718346,"d":"1,000,719"}},{"$f":"($A19-$A18)/365.25*(AE18+Main!$I25)*(1+Main!$I$2+VLOOKUP('Random Years'!AC19,'Hist Returns'!$A$12:$D$107,2,FALSE))","v":{"v":237287.46660284812,"d":"237,287"}},{"$f":"($A19-$A18)/365.25*(AF18+Main!$I25)*(1+Main!$I$2+VLOOKUP('Random Years'!AD19,'Hist Returns'!$A$12:$D$107,2,FALSE))","v":{"v":10363214.27082055,"d":"10,363,214"}},{"$f":"($A19-$A18)/365.25*(AG18+Main!$I25)*(1+Main!$I$2+VLOOKUP('Random Years'!AE19,'Hist Returns'!$A$12:$D$107,2,FALSE))","v":{"v":10061663.514571669,"d":"10,061,664"}},{"$f":"($A19-$A18)/365.25*(AH18+Main!$I25)*(1+Main!$I$2+VLOOKUP('Random Years'!AF19,'Hist Returns'!$A$12:$D$107,2,FALSE))","v":{"v":2057649.0984097212,"d":"2,057,649"}},{"$f":"($A19-$A18)/365.25*(AI18+Main!$I25)*(1+Main!$I$2+VLOOKUP('Random Years'!AG19,'Hist Returns'!$A$12:$D$107,2,FALSE))","v":{"v":2209746.8437289367,"d":"2,209,747"}},{"$f":"($A19-$A18)/365.25*(AJ18+Main!$I25)*(1+Main!$I$2+VLOOKUP('Random Years'!AH19,'Hist Returns'!$A$12:$D$107,2,FALSE))","v":{"v":3502553.899439276,"d":"3,502,554"}},{"$f":"($A19-$A18)/365.25*(AK18+Main!$I25)*(1+Main!$I$2+VLOOKUP('Random Years'!AI19,'Hist Returns'!$A$12:$D$107,2,FALSE))","v":{"v":392017.02609072305,"d":"392,017"}},{"$f":"($A19-$A18)/365.25*(AL18+Main!$I25)*(1+Main!$I$2+VLOOKUP('Random Years'!AJ19,'Hist Returns'!$A$12:$D$107,2,FALSE))","v":{"v":2694202.3105097474,"d":"2,694,202"}},{"$f":"($A19-$A18)/365.25*(AM18+Main!$I25)*(1+Main!$I$2+VLOOKUP('Random Years'!AK19,'Hist Returns'!$A$12:$D$107,2,FALSE))","v":{"v":-102591.21606438726,"d":"(102,591)"}},{"$f":"($A19-$A18)/365.25*(AN18+Main!$I25)*(1+Main!$I$2+VLOOKUP('Random Years'!AL19,'Hist Returns'!$A$12:$D$107,2,FALSE))","v":{"v":8499427.28377147,"d":"8,499,427"}},{"$f":"($A19-$A18)/365.25*(AO18+Main!$I25)*(1+Main!$I$2+VLOOKUP('Random Years'!AM19,'Hist Returns'!$A$12:$D$107,2,FALSE))","v":{"v":3213636.622613478,"d":"3,213,637"}},{"$f":"($A19-$A18)/365.25*(AP18+Main!$I25)*(1+Main!$I$2+VLOOKUP('Random Years'!AN19,'Hist Returns'!$A$12:$D$107,2,FALSE))","v":{"v":10641180.748595601,"d":"10,641,181"}},{"$f":"($A19-$A18)/365.25*(AQ18+Main!$I25)*(1+Main!$I$2+VLOOKUP('Random Years'!AO19,'Hist Returns'!$A$12:$D$107,2,FALSE))","v":{"v":309077.1587510287,"d":"309,077"}},{"$f":"($A19-$A18)/365.25*(AR18+Main!$I25)*(1+Main!$I$2+VLOOKUP('Random Years'!AP19,'Hist Returns'!$A$12:$D$107,2,FALSE))","v":{"v":4059197.471623533,"d":"4,059,197"}},{"$f":"($A19-$A18)/365.25*(AS18+Main!$I25)*(1+Main!$I$2+VLOOKUP('Random Years'!AQ19,'Hist Returns'!$A$12:$D$107,2,FALSE))","v":{"v":1379423.2291291016,"d":"1,379,423"}},{"$f":"($A19-$A18)/365.25*(AT18+Main!$I25)*(1+Main!$I$2+VLOOKUP('Random Years'!AR19,'Hist Returns'!$A$12:$D$107,2,FALSE))","v":{"v":109397.73973422925,"d":"109,398"}},{"$f":"($A19-$A18)/365.25*(AU18+Main!$I25)*(1+Main!$I$2+VLOOKUP('Random Years'!AS19,'Hist Returns'!$A$12:$D$107,2,FALSE))","v":{"v":2580761.882840429,"d":"2,580,762"}},{"$f":"($A19-$A18)/365.25*(AV18+Main!$I25)*(1+Main!$I$2+VLOOKUP('Random Years'!AT19,'Hist Returns'!$A$12:$D$107,2,FALSE))","v":{"v":6004580.845189441,"d":"6,004,581"}},{"$f":"($A19-$A18)/365.25*(AW18+Main!$I25)*(1+Main!$I$2+VLOOKUP('Random Years'!AU19,'Hist Returns'!$A$12:$D$107,2,FALSE))","v":{"v":448969.8451006635,"d":"448,970"}},{"$f":"($A19-$A18)/365.25*(AX18+Main!$I25)*(1+Main!$I$2+VLOOKUP('Random Years'!AV19,'Hist Returns'!$A$12:$D$107,2,FALSE))","v":{"v":5802260.332324883,"d":"5,802,260"}},{"$f":"($A19-$A18)/365.25*(AY18+Main!$I25)*(1+Main!$I$2+VLOOKUP('Random Years'!AW19,'Hist Returns'!$A$12:$D$107,2,FALSE))","v":{"v":4370697.853162741,"d":"4,370,698"}},{"$f":"($A19-$A18)/365.25*(AZ18+Main!$I25)*(1+Main!$I$2+VLOOKUP('Random Years'!AX19,'Hist Returns'!$A$12:$D$107,2,FALSE))","v":{"v":52444.17221839294,"d":"52,444"}},{"$f":"($A19-$A18)/365.25*(BA18+Main!$I25)*(1+Main!$I$2+VLOOKUP('Random Years'!AY19,'Hist Returns'!$A$12:$D$107,2,FALSE))","v":{"v":-357587.6257536939,"d":"(357,588)"}},{"$f":"($A19-$A18)/365.25*(BB18+Main!$I25)*(1+Main!$I$2+VLOOKUP('Random Years'!AZ19,'Hist Returns'!$A$12:$D$107,2,FALSE))","v":{"v":349011.2968923253,"d":"349,011"}},{"$f":"($A19-$A18)/365.25*(BC18+Main!$I25)*(1+Main!$I$2+VLOOKUP('Random Years'!BA19,'Hist Returns'!$A$12:$D$107,2,FALSE))","v":{"v":1578513.168909535,"d":"1,578,513"}},{"$f":"($A19-$A18)/365.25*(BD18+Main!$I25)*(1+Main!$I$2+VLOOKUP('Random Years'!BB19,'Hist Returns'!$A$12:$D$107,2,FALSE))","v":{"v":3863083.5777605446,"d":"3,863,084"}},{"$f":"($A19-$A18)/365.25*(BE18+Main!$I25)*(1+Main!$I$2+VLOOKUP('Random Years'!BC19,'Hist Returns'!$A$12:$D$107,2,FALSE))","v":{"v":1181716.0374531036,"d":"1,181,716"}},{"$f":"($A19-$A18)/365.25*(BF18+Main!$I25)*(1+Main!$I$2+VLOOKUP('Random Years'!BD19,'Hist Returns'!$A$12:$D$107,2,FALSE))","v":{"v":-420031.3579837479,"d":"(420,031)"}},{"$f":"($A19-$A18)/365.25*(BG18+Main!$I25)*(1+Main!$I$2+VLOOKUP('Random Years'!BE19,'Hist Returns'!$A$12:$D$107,2,FALSE))","v":{"v":150613.2387327476,"d":"150,613"}},{"$f":"($A19-$A18)/365.25*(BH18+Main!$I25)*(1+Main!$I$2+VLOOKUP('Random Years'!BF19,'Hist Returns'!$A$12:$D$107,2,FALSE))","v":{"v":721061.5055542969,"d":"721,062"}},{"$f":"($A19-$A18)/365.25*(BI18+Main!$I25)*(1+Main!$I$2+VLOOKUP('Random Years'!BG19,'Hist Returns'!$A$12:$D$107,2,FALSE))","v":{"v":3860440.802486642,"d":"3,860,441"}},{"$f":"($A19-$A18)/365.25*(BJ18+Main!$I25)*(1+Main!$I$2+VLOOKUP('Random Years'!BH19,'Hist Returns'!$A$12:$D$107,2,FALSE))","v":{"v":608698.0289006989,"d":"608,698"}},{"$f":"($A19-$A18)/365.25*(BK18+Main!$I25)*(1+Main!$I$2+VLOOKUP('Random Years'!BI19,'Hist Returns'!$A$12:$D$107,2,FALSE))","v":{"v":963653.3190950499,"d":"963,653"}},{"$f":"($A19-$A18)/365.25*(BL18+Main!$I25)*(1+Main!$I$2+VLOOKUP('Random Years'!BJ19,'Hist Returns'!$A$12:$D$107,2,FALSE))","v":{"v":3391210.240279115,"d":"3,391,210"}},{"$f":"($A19-$A18)/365.25*(BM18+Main!$I25)*(1+Main!$I$2+VLOOKUP('Random Years'!BK19,'Hist Returns'!$A$12:$D$107,2,FALSE))","v":{"v":166063.96999713007,"d":"166,064"}},{"$f":"($A19-$A18)/365.25*(BN18+Main!$I25)*(1+Main!$I$2+VLOOKUP('Random Years'!BL19,'Hist Returns'!$A$12:$D$107,2,FALSE))","v":{"v":6186734.705866585,"d":"6,186,735"}},{"$f":"($A19-$A18)/365.25*(BO18+Main!$I25)*(1+Main!$I$2+VLOOKUP('Random Years'!BM19,'Hist Returns'!$A$12:$D$107,2,FALSE))","v":{"v":2208391.8802677006,"d":"2,208,392"}},{"$f":"($A19-$A18)/365.25*(BP18+Main!$I25)*(1+Main!$I$2+VLOOKUP('Random Years'!BN19,'Hist Returns'!$A$12:$D$107,2,FALSE))","v":{"v":5113318.4027231885,"d":"5,113,318"}},{"$f":"($A19-$A18)/365.25*(BQ18+Main!$I25)*(1+Main!$I$2+VLOOKUP('Random Years'!BO19,'Hist Returns'!$A$12:$D$107,2,FALSE))","v":{"v":1519910.5040973008,"d":"1,519,911"}},{"$f":"($A19-$A18)/365.25*(BR18+Main!$I25)*(1+Main!$I$2+VLOOKUP('Random Years'!BP19,'Hist Returns'!$A$12:$D$107,2,FALSE))","v":{"v":7960515.002463779,"d":"7,960,515"}},{"$f":"($A19-$A18)/365.25*(BS18+Main!$I25)*(1+Main!$I$2+VLOOKUP('Random Years'!BQ19,'Hist Returns'!$A$12:$D$107,2,FALSE))","v":{"v":4498868.483256207,"d":"4,498,868"}},{"$f":"($A19-$A18)/365.25*(BT18+Main!$I25)*(1+Main!$I$2+VLOOKUP('Random Years'!BR19,'Hist Returns'!$A$12:$D$107,2,FALSE))","v":{"v":243426.64445946086,"d":"243,427"}},{"$f":"($A19-$A18)/365.25*(BU18+Main!$I25)*(1+Main!$I$2+VLOOKUP('Random Years'!BS19,'Hist Returns'!$A$12:$D$107,2,FALSE))","v":{"v":239478.28805138727,"d":"239,478"}},{"$f":"($A19-$A18)/365.25*(BV18+Main!$I25)*(1+Main!$I$2+VLOOKUP('Random Years'!BT19,'Hist Returns'!$A$12:$D$107,2,FALSE))","v":{"v":1152310.8069125952,"d":"1,152,311"}},{"$f":"($A19-$A18)/365.25*(BW18+Main!$I25)*(1+Main!$I$2+VLOOKUP('Random Years'!BU19,'Hist Returns'!$A$12:$D$107,2,FALSE))","v":{"v":-55367.888806601455,"d":"(55,368)"}},{"$f":"($A19-$A18)/365.25*(BX18+Main!$I25)*(1+Main!$I$2+VLOOKUP('Random Years'!BV19,'Hist Returns'!$A$12:$D$107,2,FALSE))","v":{"v":3324664.9243966653,"d":"3,324,665"}},{"$f":"($A19-$A18)/365.25*(BY18+Main!$I25)*(1+Main!$I$2+VLOOKUP('Random Years'!BW19,'Hist Returns'!$A$12:$D$107,2,FALSE))","v":{"v":4664243.440554543,"d":"4,664,243"}},{"$f":"($A19-$A18)/365.25*(BZ18+Main!$I25)*(1+Main!$I$2+VLOOKUP('Random Years'!BX19,'Hist Returns'!$A$12:$D$107,2,FALSE))","v":{"v":664910.7580672455,"d":"664,911"}},{"$f":"($A19-$A18)/365.25*(CA18+Main!$I25)*(1+Main!$I$2+VLOOKUP('Random Years'!BY19,'Hist Returns'!$A$12:$D$107,2,FALSE))","v":{"v":323356.5249070267,"d":"323,357"}},{"$f":"($A19-$A18)/365.25*(CB18+Main!$I25)*(1+Main!$I$2+VLOOKUP('Random Years'!BZ19,'Hist Returns'!$A$12:$D$107,2,FALSE))","v":{"v":158824.101451528,"d":"158,824"}},{"$f":"($A19-$A18)/365.25*(CC18+Main!$I25)*(1+Main!$I$2+VLOOKUP('Random Years'!CA19,'Hist Returns'!$A$12:$D$107,2,FALSE))","v":{"v":1138334.3743104753,"d":"1,138,334"}},{"$f":"($A19-$A18)/365.25*(CD18+Main!$I25)*(1+Main!$I$2+VLOOKUP('Random Years'!CB19,'Hist Returns'!$A$12:$D$107,2,FALSE))","v":{"v":7317198.4729857715,"d":"7,317,198"}},{"$f":"($A19-$A18)/365.25*(CE18+Main!$I25)*(1+Main!$I$2+VLOOKUP('Random Years'!CC19,'Hist Returns'!$A$12:$D$107,2,FALSE))","v":{"v":6717108.093237187,"d":"6,717,108"}},{"$f":"($A19-$A18)/365.25*(CF18+Main!$I25)*(1+Main!$I$2+VLOOKUP('Random Years'!CD19,'Hist Returns'!$A$12:$D$107,2,FALSE))","v":{"v":643367.2429434612,"d":"643,367"}},{"$f":"($A19-$A18)/365.25*(CG18+Main!$I25)*(1+Main!$I$2+VLOOKUP('Random Years'!CE19,'Hist Returns'!$A$12:$D$107,2,FALSE))","v":{"v":2832415.335200011,"d":"2,832,415"}},{"$f":"($A19-$A18)/365.25*(CH18+Main!$I25)*(1+Main!$I$2+VLOOKUP('Random Years'!CF19,'Hist Returns'!$A$12:$D$107,2,FALSE))","v":{"v":1896935.9501079859,"d":"1,896,936"}},{"$f":"($A19-$A18)/365.25*(CI18+Main!$I25)*(1+Main!$I$2+VLOOKUP('Random Years'!CG19,'Hist Returns'!$A$12:$D$107,2,FALSE))","v":{"v":397794.34401873796,"d":"397,794"}},{"$f":"($A19-$A18)/365.25*(CJ18+Main!$I25)*(1+Main!$I$2+VLOOKUP('Random Years'!CH19,'Hist Returns'!$A$12:$D$107,2,FALSE))","v":{"v":13463983.957273573,"d":"13,463,984"}},{"$f":"($A19-$A18)/365.25*(CK18+Main!$I25)*(1+Main!$I$2+VLOOKUP('Random Years'!CI19,'Hist Returns'!$A$12:$D$107,2,FALSE))","v":{"v":2543344.182003621,"d":"2,543,344"}},{"$f":"($A19-$A18)/365.25*(CL18+Main!$I25)*(1+Main!$I$2+VLOOKUP('Random Years'!CJ19,'Hist Returns'!$A$12:$D$107,2,FALSE))","v":{"v":7384400.780932216,"d":"7,384,401"}},{"$f":"($A19-$A18)/365.25*(CM18+Main!$I25)*(1+Main!$I$2+VLOOKUP('Random Years'!CK19,'Hist Returns'!$A$12:$D$107,2,FALSE))","v":{"v":6087270.411128209,"d":"6,087,270"}},{"$f":"($A19-$A18)/365.25*(CN18+Main!$I25)*(1+Main!$I$2+VLOOKUP('Random Years'!CL19,'Hist Returns'!$A$12:$D$107,2,FALSE))","v":{"v":9707801.491421098,"d":"9,707,801"}},{"$f":"($A19-$A18)/365.25*(CO18+Main!$I25)*(1+Main!$I$2+VLOOKUP('Random Years'!CM19,'Hist Returns'!$A$12:$D$107,2,FALSE))","v":{"v":3953522.4984202115,"d":"3,953,522"}},{"$f":"($A19-$A18)/365.25*(CP18+Main!$I25)*(1+Main!$I$2+VLOOKUP('Random Years'!CN19,'Hist Returns'!$A$12:$D$107,2,FALSE))","v":{"v":-446664.1901241437,"d":"(446,664)"}},{"$f":"($A19-$A18)/365.25*(CQ18+Main!$I25)*(1+Main!$I$2+VLOOKUP('Random Years'!CO19,'Hist Returns'!$A$12:$D$107,2,FALSE))","v":{"v":1974980.9752179894,"d":"1,974,981"}},{"$f":"($A19-$A18)/365.25*(CR18+Main!$I25)*(1+Main!$I$2+VLOOKUP('Random Years'!CP19,'Hist Returns'!$A$12:$D$107,2,FALSE))","v":{"v":6227150.8355655195,"d":"6,227,151"}},{"$f":"($A19-$A18)/365.25*(CS18+Main!$I25)*(1+Main!$I$2+VLOOKUP('Random Years'!CQ19,'Hist Returns'!$A$12:$D$107,2,FALSE))","v":{"v":4250086.370658231,"d":"4,250,086"}},{"$f":"($A19-$A18)/365.25*(CT18+Main!$I25)*(1+Main!$I$2+VLOOKUP('Random Years'!CR19,'Hist Returns'!$A$12:$D$107,2,FALSE))","v":{"v":1994476.118794037,"d":"1,994,476"}},{"$f":"($A19-$A18)/365.25*(CU18+Main!$I25)*(1+Main!$I$2+VLOOKUP('Random Years'!CS19,'Hist Returns'!$A$12:$D$107,2,FALSE))","v":{"v":13042227.660121622,"d":"13,042,228"}},{"$f":"($A19-$A18)/365.25*(CV18+Main!$I25)*(1+Main!$I$2+VLOOKUP('Random Years'!CT19,'Hist Returns'!$A$12:$D$107,2,FALSE))","v":{"v":4828251.089931451,"d":"4,828,251"}},{"$f":"($A19-$A18)/365.25*(CW18+Main!$I25)*(1+Main!$I$2+VLOOKUP('Random Years'!CU19,'Hist Returns'!$A$12:$D$107,2,FALSE))","v":{"v":180189.41444170874,"d":"180,189"}},{"$f":"($A19-$A18)/365.25*(CX18+Main!$I25)*(1+Main!$I$2+VLOOKUP('Random Years'!CV19,'Hist Returns'!$A$12:$D$107,2,FALSE))","v":{"v":2677655.8961045938,"d":"2,677,656"}}]
[{"$f":"Main!A26","v":"2041-12-30"},{"$f":"Main!B26","v":87},{"$f":"($A20-$A19)/365.25*(C19+Main!$I26)*(1+Main!$I$2+VLOOKUP('Random Years'!A20,'Hist Returns'!$A$12:$D$107,2,FALSE))","v":{"v":1331275.7490439094,"d":"1,331,276"}},{"$f":"($A20-$A19)/365.25*(D19+Main!$I26)*(1+Main!$I$2+VLOOKUP('Random Years'!B20,'Hist Returns'!$A$12:$D$107,2,FALSE))","v":{"v":972396.6359212667,"d":"972,397"}},{"$f":"($A20-$A19)/365.25*(E19+Main!$I26)*(1+Main!$I$2+VLOOKUP('Random Years'!C20,'Hist Returns'!$A$12:$D$107,2,FALSE))","v":{"v":2837707.4967712215,"d":"2,837,707"}},{"$f":"($A20-$A19)/365.25*(F19+Main!$I26)*(1+Main!$I$2+VLOOKUP('Random Years'!D20,'Hist Returns'!$A$12:$D$107,2,FALSE))","v":{"v":6762218.128756581,"d":"6,762,218"}},{"$f":"($A20-$A19)/365.25*(G19+Main!$I26)*(1+Main!$I$2+VLOOKUP('Random Years'!E20,'Hist Returns'!$A$12:$D$107,2,FALSE))","v":{"v":12001389.976188686,"d":"12,001,390"}},{"$f":"($A20-$A19)/365.25*(H19+Main!$I26)*(1+Main!$I$2+VLOOKUP('Random Years'!F20,'Hist Returns'!$A$12:$D$107,2,FALSE))","v":{"v":2043750.2134785373,"d":"2,043,750"}},{"$f":"($A20-$A19)/365.25*(I19+Main!$I26)*(1+Main!$I$2+VLOOKUP('Random Years'!G20,'Hist Returns'!$A$12:$D$107,2,FALSE))","v":{"v":1145556.3771697457,"d":"1,145,556"}},{"$f":"($A20-$A19)/365.25*(J19+Main!$I26)*(1+Main!$I$2+VLOOKUP('Random Years'!H20,'Hist Returns'!$A$12:$D$107,2,FALSE))","v":{"v":1340440.664669672,"d":"1,340,441"}},{"$f":"($A20-$A19)/365.25*(K19+Main!$I26)*(1+Main!$I$2+VLOOKUP('Random Years'!I20,'Hist Returns'!$A$12:$D$107,2,FALSE))","v":{"v":2717754.1901296386,"d":"2,717,754"}},{"$f":"($A20-$A19)/365.25*(L19+Main!$I26)*(1+Main!$I$2+VLOOKUP('Random Years'!J20,'Hist Returns'!$A$12:$D$107,2,FALSE))","v":{"v":5776075.575373278,"d":"5,776,076"}},{"$f":"($A20-$A19)/365.25*(M19+Main!$I26)*(1+Main!$I$2+VLOOKUP('Random Years'!K20,'Hist Returns'!$A$12:$D$107,2,FALSE))","v":{"v":1826526.3880650667,"d":"1,826,526"}},{"$f":"($A20-$A19)/365.25*(N19+Main!$I26)*(1+Main!$I$2+VLOOKUP('Random Years'!L20,'Hist Returns'!$A$12:$D$107,2,FALSE))","v":{"v":-501967.67882335547,"d":"(501,968)"}},{"$f":"($A20-$A19)/365.25*(O19+Main!$I26)*(1+Main!$I$2+VLOOKUP('Random Years'!M20,'Hist Returns'!$A$12:$D$107,2,FALSE))","v":{"v":1855488.826291543,"d":"1,855,489"}},{"$f":"($A20-$A19)/365.25*(P19+Main!$I26)*(1+Main!$I$2+VLOOKUP('Random Years'!N20,'Hist Returns'!$A$12:$D$107,2,FALSE))","v":{"v":1142506.1301689437,"d":"1,142,506"}},{"$f":"($A20-$A19)/365.25*(Q19+Main!$I26)*(1+Main!$I$2+VLOOKUP('Random Years'!O20,'Hist Returns'!$A$12:$D$107,2,FALSE))","v":{"v":765151.8268591814,"d":"765,152"}},{"$f":"($A20-$A19)/365.25*(R19+Main!$I26)*(1+Main!$I$2+VLOOKUP('Random Years'!P20,'Hist Returns'!$A$12:$D$107,2,FALSE))","v":{"v":1408841.9260549021,"d":"1,408,842"}},{"$f":"($A20-$A19)/365.25*(S19+Main!$I26)*(1+Main!$I$2+VLOOKUP('Random Years'!Q20,'Hist Returns'!$A$12:$D$107,2,FALSE))","v":{"v":342910.7551122598,"d":"342,911"}},{"$f":"($A20-$A19)/365.25*(T19+Main!$I26)*(1+Main!$I$2+VLOOKUP('Random Years'!R20,'Hist Returns'!$A$12:$D$107,2,FALSE))","v":{"v":-185459.39878339262,"d":"(185,459)"}},{"$f":"($A20-$A19)/365.25*(U19+Main!$I26)*(1+Main!$I$2+VLOOKUP('Random Years'!S20,'Hist Returns'!$A$12:$D$107,2,FALSE))","v":{"v":1045666.0105846437,"d":"1,045,666"}},{"$f":"($A20-$A19)/365.25*(V19+Main!$I26)*(1+Main!$I$2+VLOOKUP('Random Years'!T20,'Hist Returns'!$A$12:$D$107,2,FALSE))","v":{"v":5435735.063427839,"d":"5,435,735"}},{"$f":"($A20-$A19)/365.25*(W19+Main!$I26)*(1+Main!$I$2+VLOOKUP('Random Years'!U20,'Hist Returns'!$A$12:$D$107,2,FALSE))","v":{"v":5498909.796873743,"d":"5,498,910"}},{"$f":"($A20-$A19)/365.25*(X19+Main!$I26)*(1+Main!$I$2+VLOOKUP('Random Years'!V20,'Hist Returns'!$A$12:$D$107,2,FALSE))","v":{"v":1273193.4459190143,"d":"1,273,193"}},{"$f":"($A20-$A19)/365.25*(Y19+Main!$I26)*(1+Main!$I$2+VLOOKUP('Random Years'!W20,'Hist Returns'!$A$12:$D$107,2,FALSE))","v":{"v":1771512.9310961154,"d":"1,771,513"}},{"$f":"($A20-$A19)/365.25*(Z19+Main!$I26)*(1+Main!$I$2+VLOOKUP('Random Years'!X20,'Hist Returns'!$A$12:$D$107,2,FALSE))","v":{"v":343723.7410185161,"d":"343,724"}},{"$f":"($A20-$A19)/365.25*(AA19+Main!$I26)*(1+Main!$I$2+VLOOKUP('Random Years'!Y20,'Hist Returns'!$A$12:$D$107,2,FALSE))","v":{"v":3008498.782919191,"d":"3,008,499"}},{"$f":"($A20-$A19)/365.25*(AB19+Main!$I26)*(1+Main!$I$2+VLOOKUP('Random Years'!Z20,'Hist Returns'!$A$12:$D$107,2,FALSE))","v":{"v":1609003.0747847615,"d":"1,609,003"}},{"$f":"($A20-$A19)/365.25*(AC19+Main!$I26)*(1+Main!$I$2+VLOOKUP('Random Years'!AA20,'Hist Returns'!$A$12:$D$107,2,FALSE))","v":{"v":918824.5657889656,"d":"918,825"}},{"$f":"($A20-$A19)/365.25*(AD19+Main!$I26)*(1+Main!$I$2+VLOOKUP('Random Years'!AB20,'Hist Returns'!$A$12:$D$107,2,FALSE))","v":{"v":877161.9546826342,"d":"877,162"}},{"$f":"($A20-$A19)/365.25*(AE19+Main!$I26)*(1+Main!$I$2+VLOOKUP('Random Years'!AC20,'Hist Returns'!$A$12:$D$107,2,FALSE))","v":{"v":208049.72676402848,"d":"208,050"}},{"$f":"($A20-$A19)/365.25*(AF19+Main!$I26)*(1+Main!$I$2+VLOOKUP('Random Years'!AD20,'Hist Returns'!$A$12:$D$107,2,FALSE))","v":{"v":10852671.913816206,"d":"10,852,672"}},{"$f":"($A20-$A19)/365.25*(AG19+Main!$I26)*(1+Main!$I$2+VLOOKUP('Random Years'!AE20,'Hist Returns'!$A$12:$D$107,2,FALSE))","v":{"v":13141530.389766555,"d":"13,141,530"}},{"$f":"($A20-$A19)/365.25*(AH19+Main!$I26)*(1+Main!$I$2+VLOOKUP('Random Years'!AF20,'Hist Returns'!$A$12:$D$107,2,FALSE))","v":{"v":1777415.3823666475,"d":"1,777,415"}},{"$f":"($A20-$A19)/365.25*(AI19+Main!$I26)*(1+Main!$I$2+VLOOKUP('Random Years'!AG20,'Hist Returns'!$A$12:$D$107,2,FALSE))","v":{"v":2730705.7783084824,"d":"2,730,706"}},{"$f":"($A20-$A19)/365.25*(AJ19+Main!$I26)*(1+Main!$I$2+VLOOKUP('Random Years'!AH20,'Hist Returns'!$A$12:$D$107,2,FALSE))","v":{"v":4473520.553400482,"d":"4,473,521"}},{"$f":"($A20-$A19)/365.25*(AK19+Main!$I26)*(1+Main!$I$2+VLOOKUP('Random Years'!AI20,'Hist Returns'!$A$12:$D$107,2,FALSE))","v":{"v":356711.33175925567,"d":"356,711"}},{"$f":"($A20-$A19)/365.25*(AL19+Main!$I26)*(1+Main!$I$2+VLOOKUP('Random Years'!AJ20,'Hist Returns'!$A$12:$D$107,2,FALSE))","v":{"v":2375087.402473741,"d":"2,375,087"}},{"$f":"($A20-$A19)/365.25*(AM19+Main!$I26)*(1+Main!$I$2+VLOOKUP('Random Years'!AK20,'Hist Returns'!$A$12:$D$107,2,FALSE))","v":{"v":-186285.37217692717,"d":"(186,285)"}},{"$f":"($A20-$A19)/365.25*(AN19+Main!$I26)*(1+Main!$I$2+VLOOKUP('Random Years'!AL20,'Hist Returns'!$A$12:$D$107,2,FALSE))","v":{"v":4747814.54248575,"d":"4,747,815"}},{"$f":"($A20-$A19)/365.25*(AO19+Main!$I26)*(1+Main!$I$2+VLOOKUP('Random Years'!AM20,'Hist Returns'!$A$12:$D$107,2,FALSE))","v":{"v":2892084.676319624,"d":"2,892,085"}},{"$f":"($A20-$A19)/365.25*(AP19+Main!$I26)*(1+Main!$I$2+VLOOKUP('Random Years'!AN20,'Hist Returns'!$A$12:$D$107,2,FALSE))","v":{"v":11144892.497350944,"d":"11,144,892"}},{"$f":"($A20-$A19)/365.25*(AQ19+Main!$I26)*(1+Main!$I$2+VLOOKUP('Random Years'!AO20,'Hist Returns'!$A$12:$D$107,2,FALSE))","v":{"v":329053.45908535225,"d":"329,053"}},{"$f":"($A20-$A19)/365.25*(AR19+Main!$I26)*(1+Main!$I$2+VLOOKUP('Random Years'!AP20,'Hist Returns'!$A$12:$D$107,2,FALSE))","v":{"v":4159560.43540418,"d":"4,159,560"}},{"$f":"($A20-$A19)/365.25*(AS19+Main!$I26)*(1+Main!$I$2+VLOOKUP('Random Years'!AQ20,'Hist Returns'!$A$12:$D$107,2,FALSE))","v":{"v":1366674.635266507,"d":"1,366,675"}},{"$f":"($A20-$A19)/365.25*(AT19+Main!$I26)*(1+Main!$I$2+VLOOKUP('Random Years'!AR20,'Hist Returns'!$A$12:$D$107,2,FALSE))","v":{"v":63668.6245127555,"d":"63,669"}},{"$f":"($A20-$A19)/365.25*(AU19+Main!$I26)*(1+Main!$I$2+VLOOKUP('Random Years'!AS20,'Hist Returns'!$A$12:$D$107,2,FALSE))","v":{"v":3261984.9372059954,"d":"3,261,985"}},{"$f":"($A20-$A19)/365.25*(AV19+Main!$I26)*(1+Main!$I$2+VLOOKUP('Random Years'!AT20,'Hist Returns'!$A$12:$D$107,2,FALSE))","v":{"v":3781846.98749904,"d":"3,781,847"}},{"$f":"($A20-$A19)/365.25*(AW19+Main!$I26)*(1+Main!$I$2+VLOOKUP('Random Years'!AU20,'Hist Returns'!$A$12:$D$107,2,FALSE))","v":{"v":372750.99135440896,"d":"372,751"}},{"$f":"($A20-$A19)/365.25*(AX19+Main!$I26)*(1+Main!$I$2+VLOOKUP('Random Years'!AV20,'Hist Returns'!$A$12:$D$107,2,FALSE))","v":{"v":3653567.227554767,"d":"3,653,567"}},{"$f":"($A20-$A19)/365.25*(AY19+Main!$I26)*(1+Main!$I$2+VLOOKUP('Random Years'!AW20,'Hist Returns'!$A$12:$D$107,2,FALSE))","v":{"v":5038243.572574107,"d":"5,038,244"}},{"$f":"($A20-$A19)/365.25*(AZ19+Main!$I26)*(1+Main!$I$2+VLOOKUP('Random Years'!AX20,'Hist Returns'!$A$12:$D$107,2,FALSE))","v":{"v":16299.273331403132,"d":"16,299"}},{"$f":"($A20-$A19)/365.25*(BA19+Main!$I26)*(1+Main!$I$2+VLOOKUP('Random Years'!AY20,'Hist Returns'!$A$12:$D$107,2,FALSE))","v":{"v":-468778.0296981856,"d":"(468,778)"}},{"$f":"($A20-$A19)/365.25*(BB19+Main!$I26)*(1+Main!$I$2+VLOOKUP('Random Years'!AZ20,'Hist Returns'!$A$12:$D$107,2,FALSE))","v":{"v":406903.0746449999,"d":"406,903"}},{"$f":"($A20-$A19)/365.25*(BC19+Main!$I26)*(1+Main!$I$2+VLOOKUP('Random Years'!BA20,'Hist Returns'!$A$12:$D$107,2,FALSE))","v":{"v":1611871.7670363886,"d":"1,611,872"}},{"$f":"($A20-$A19)/365.25*(BD19+Main!$I26)*(1+Main!$I$2+VLOOKUP('Random Years'!BB20,'Hist Returns'!$A$12:$D$107,2,FALSE))","v":{"v":3553883.6219683927,"d":"3,553,884"}},{"$f":"($A20-$A19)/365.25*(BE19+Main!$I26)*(1+Main!$I$2+VLOOKUP('Random Years'!BC20,'Hist Returns'!$A$12:$D$107,2,FALSE))","v":{"v":1740769.1816798225,"d":"1,740,769"}},{"$f":"($A20-$A19)/365.25*(BF19+Main!$I26)*(1+Main!$I$2+VLOOKUP('Random Years'!BD20,'Hist Returns'!$A$12:$D$107,2,FALSE))","v":{"v":-531397.9132988101,"d":"(531,398)"}},{"$f":"($A20-$A19)/365.25*(BG19+Main!$I26)*(1+Main!$I$2+VLOOKUP('Random Years'!BE20,'Hist Returns'!$A$12:$D$107,2,FALSE))","v":{"v":135325.89638385587,"d":"135,326"}},{"$f":"($A20-$A19)/365.25*(BH19+Main!$I26)*(1+Main!$I$2+VLOOKUP('Random Years'!BF20,'Hist Returns'!$A$12:$D$107,2,FALSE))","v":{"v":1038460.3618040886,"d":"1,038,460"}},{"$f":"($A20-$A19)/365.25*(BI19+Main!$I26)*(1+Main!$I$2+VLOOKUP('Random Years'!BG20,'Hist Returns'!$A$12:$D$107,2,FALSE))","v":{"v":4035700.7809757367,"d":"4,035,701"}},{"$f":"($A20-$A19)/365.25*(BJ19+Main!$I26)*(1+Main!$I$2+VLOOKUP('Random Years'!BH20,'Hist Returns'!$A$12:$D$107,2,FALSE))","v":{"v":636915.9213724263,"d":"636,916"}},{"$f":"($A20-$A19)/365.25*(BK19+Main!$I26)*(1+Main!$I$2+VLOOKUP('Random Years'!BI20,'Hist Returns'!$A$12:$D$107,2,FALSE))","v":{"v":1211292.8068668616,"d":"1,211,293"}},{"$f":"($A20-$A19)/365.25*(BL19+Main!$I26)*(1+Main!$I$2+VLOOKUP('Random Years'!BJ20,'Hist Returns'!$A$12:$D$107,2,FALSE))","v":{"v":3072992.9050703906,"d":"3,072,993"}},{"$f":"($A20-$A19)/365.25*(BM19+Main!$I26)*(1+Main!$I$2+VLOOKUP('Random Years'!BK20,'Hist Returns'!$A$12:$D$107,2,FALSE))","v":{"v":157648.93982423333,"d":"157,649"}},{"$f":"($A20-$A19)/365.25*(BN19+Main!$I26)*(1+Main!$I$2+VLOOKUP('Random Years'!BL20,'Hist Returns'!$A$12:$D$107,2,FALSE))","v":{"v":6973087.619050901,"d":"6,973,088"}},{"$f":"($A20-$A19)/365.25*(BO19+Main!$I26)*(1+Main!$I$2+VLOOKUP('Random Years'!BM20,'Hist Returns'!$A$12:$D$107,2,FALSE))","v":{"v":2609465.673862356,"d":"2,609,466"}},{"$f":"($A20-$A19)/365.25*(BP19+Main!$I26)*(1+Main!$I$2+VLOOKUP('Random Years'!BN20,'Hist Returns'!$A$12:$D$107,2,FALSE))","v":{"v":2847394.455290093,"d":"2,847,394"}},{"$f":"($A20-$A19)/365.25*(BQ19+Main!$I26)*(1+Main!$I$2+VLOOKUP('Random Years'!BO20,'Hist Returns'!$A$12:$D$107,2,FALSE))","v":{"v":1416385.3220731858,"d":"1,416,385"}},{"$f":"($A20-$A19)/365.25*(BR19+Main!$I26)*(1+Main!$I$2+VLOOKUP('Random Years'!BP20,'Hist Returns'!$A$12:$D$107,2,FALSE))","v":{"v":9399692.830763577,"d":"9,399,693"}},{"$f":"($A20-$A19)/365.25*(BS19+Main!$I26)*(1+Main!$I$2+VLOOKUP('Random Years'!BQ20,'Hist Returns'!$A$12:$D$107,2,FALSE))","v":{"v":5264685.405238551,"d":"5,264,685"}},{"$f":"($A20-$A19)/365.25*(BT19+Main!$I26)*(1+Main!$I$2+VLOOKUP('Random Years'!BR20,'Hist Returns'!$A$12:$D$107,2,FALSE))","v":{"v":251521.23649410944,"d":"251,521"}},{"$f":"($A20-$A19)/365.25*(BU19+Main!$I26)*(1+Main!$I$2+VLOOKUP('Random Years'!BS20,'Hist Returns'!$A$12:$D$107,2,FALSE))","v":{"v":244514.4115616566,"d":"244,514"}},{"$f":"($A20-$A19)/365.25*(BV19+Main!$I26)*(1+Main!$I$2+VLOOKUP('Random Years'!BT20,'Hist Returns'!$A$12:$D$107,2,FALSE))","v":{"v":1374845.7990860704,"d":"1,374,846"}},{"$f":"($A20-$A19)/365.25*(BW19+Main!$I26)*(1+Main!$I$2+VLOOKUP('Random Years'!BU20,'Hist Returns'!$A$12:$D$107,2,FALSE))","v":{"v":-145275.33145556046,"d":"(145,275)"}},{"$f":"($A20-$A19)/365.25*(BX19+Main!$I26)*(1+Main!$I$2+VLOOKUP('Random Years'!BV20,'Hist Returns'!$A$12:$D$107,2,FALSE))","v":{"v":2939233.8682833957,"d":"2,939,234"}},{"$f":"($A20-$A19)/365.25*(BY19+Main!$I26)*(1+Main!$I$2+VLOOKUP('Random Years'!BW20,'Hist Returns'!$A$12:$D$107,2,FALSE))","v":{"v":5936801.628174626,"d":"5,936,802"}},{"$f":"($A20-$A19)/365.25*(BZ19+Main!$I26)*(1+Main!$I$2+VLOOKUP('Random Years'!BX20,'Hist Returns'!$A$12:$D$107,2,FALSE))","v":{"v":697886.3265435462,"d":"697,886"}},{"$f":"($A20-$A19)/365.25*(CA19+Main!$I26)*(1+Main!$I$2+VLOOKUP('Random Years'!BY20,'Hist Returns'!$A$12:$D$107,2,FALSE))","v":{"v":350741.6670961912,"d":"350,742"}},{"$f":"($A20-$A19)/365.25*(CB19+Main!$I26)*(1+Main!$I$2+VLOOKUP('Random Years'!BZ20,'Hist Returns'!$A$12:$D$107,2,FALSE))","v":{"v":126556.89802153096,"d":"126,557"}},{"$f":"($A20-$A19)/365.25*(CC19+Main!$I26)*(1+Main!$I$2+VLOOKUP('Random Years'!CA20,'Hist Returns'!$A$12:$D$107,2,FALSE))","v":{"v":1505939.8997848914,"d":"1,505,940"}},{"$f":"($A20-$A19)/365.25*(CD19+Main!$I26)*(1+Main!$I$2+VLOOKUP('Random Years'!CB20,'Hist Returns'!$A$12:$D$107,2,FALSE))","v":{"v":7745671.609139356,"d":"7,745,672"}},{"$f":"($A20-$A19)/365.25*(CE19+Main!$I26)*(1+Main!$I$2+VLOOKUP('Random Years'!CC20,'Hist Returns'!$A$12:$D$107,2,FALSE))","v":{"v":6390225.278450551,"d":"6,390,225"}},{"$f":"($A20-$A19)/365.25*(CF19+Main!$I26)*(1+Main!$I$2+VLOOKUP('Random Years'!CD20,'Hist Returns'!$A$12:$D$107,2,FALSE))","v":{"v":785360.2534420441,"d":"785,360"}},{"$f":"($A20-$A19)/365.25*(CG19+Main!$I26)*(1+Main!$I$2+VLOOKUP('Random Years'!CE20,'Hist Returns'!$A$12:$D$107,2,FALSE))","v":{"v":2177602.7229654803,"d":"2,177,603"}},{"$f":"($A20-$A19)/365.25*(CH19+Main!$I26)*(1+Main!$I$2+VLOOKUP('Random Years'!CF20,'Hist Returns'!$A$12:$D$107,2,FALSE))","v":{"v":2384075.069553155,"d":"2,384,075"}},{"$f":"($A20-$A19)/365.25*(CI19+Main!$I26)*(1+Main!$I$2+VLOOKUP('Random Years'!CG20,'Hist Returns'!$A$12:$D$107,2,FALSE))","v":{"v":353703.87578847684,"d":"353,704"}},{"$f":"($A20-$A19)/365.25*(CJ19+Main!$I26)*(1+Main!$I$2+VLOOKUP('Random Years'!CH20,'Hist Returns'!$A$12:$D$107,2,FALSE))","v":{"v":17234090.400981095,"d":"17,234,090"}},{"$f":"($A20-$A19)/365.25*(CK19+Main!$I26)*(1+Main!$I$2+VLOOKUP('Random Years'!CI20,'Hist Returns'!$A$12:$D$107,2,FALSE))","v":{"v":3150534.812341469,"d":"3,150,535"}},{"$f":"($A20-$A19)/365.25*(CL19+Main!$I26)*(1+Main!$I$2+VLOOKUP('Random Years'!CJ20,'Hist Returns'!$A$12:$D$107,2,FALSE))","v":{"v":9419304.341844354,"d":"9,419,304"}},{"$f":"($A20-$A19)/365.25*(CM19+Main!$I26)*(1+Main!$I$2+VLOOKUP('Random Years'!CK20,'Hist Returns'!$A$12:$D$107,2,FALSE))","v":{"v":5621412.68047758,"d":"5,621,413"}},{"$f":"($A20-$A19)/365.25*(CN19+Main!$I26)*(1+Main!$I$2+VLOOKUP('Random Years'!CL20,'Hist Returns'!$A$12:$D$107,2,FALSE))","v":{"v":12082503.185187615,"d":"12,082,503"}},{"$f":"($A20-$A19)/365.25*(CO19+Main!$I26)*(1+Main!$I$2+VLOOKUP('Random Years'!CM20,'Hist Returns'!$A$12:$D$107,2,FALSE))","v":{"v":4521518.672921432,"d":"4,521,519"}},{"$f":"($A20-$A19)/365.25*(CP19+Main!$I26)*(1+Main!$I$2+VLOOKUP('Random Years'!CN20,'Hist Returns'!$A$12:$D$107,2,FALSE))","v":{"v":-480914.52324136405,"d":"(480,915)"}},{"$f":"($A20-$A19)/365.25*(CQ19+Main!$I26)*(1+Main!$I$2+VLOOKUP('Random Years'!CO20,'Hist Returns'!$A$12:$D$107,2,FALSE))","v":{"v":2141473.1386099043,"d":"2,141,473"}},{"$f":"($A20-$A19)/365.25*(CR19+Main!$I26)*(1+Main!$I$2+VLOOKUP('Random Years'!CP20,'Hist Returns'!$A$12:$D$107,2,FALSE))","v":{"v":8470403.300635034,"d":"8,470,403"}},{"$f":"($A20-$A19)/365.25*(CS19+Main!$I26)*(1+Main!$I$2+VLOOKUP('Random Years'!CQ20,'Hist Returns'!$A$12:$D$107,2,FALSE))","v":{"v":5085990.469211153,"d":"5,085,990"}},{"$f":"($A20-$A19)/365.25*(CT19+Main!$I26)*(1+Main!$I$2+VLOOKUP('Random Years'!CR20,'Hist Returns'!$A$12:$D$107,2,FALSE))","v":{"v":2182525.7842787486,"d":"2,182,526"}},{"$f":"($A20-$A19)/365.25*(CU19+Main!$I26)*(1+Main!$I$2+VLOOKUP('Random Years'!CS20,'Hist Returns'!$A$12:$D$107,2,FALSE))","v":{"v":15801283.176364776,"d":"15,801,283"}},{"$f":"($A20-$A19)/365.25*(CV19+Main!$I26)*(1+Main!$I$2+VLOOKUP('Random Years'!CT20,'Hist Returns'!$A$12:$D$107,2,FALSE))","v":{"v":5653587.839906729,"d":"5,653,588"}},{"$f":"($A20-$A19)/365.25*(CW19+Main!$I26)*(1+Main!$I$2+VLOOKUP('Random Years'!CU20,'Hist Returns'!$A$12:$D$107,2,FALSE))","v":{"v":157073.0088981271,"d":"157,073"}},{"$f":"($A20-$A19)/365.25*(CX19+Main!$I26)*(1+Main!$I$2+VLOOKUP('Random Years'!CV20,'Hist Returns'!$A$12:$D$107,2,FALSE))","v":{"v":3174162.1891264245,"d":"3,174,162"}}]
[{"$f":"Main!A27","v":"2042-12-30"},{"$f":"Main!B27","v":88},{"$f":"($A21-$A20)/365.25*(C20+Main!$I27)*(1+Main!$I$2+VLOOKUP('Random Years'!A21,'Hist Returns'!$A$12:$D$107,2,FALSE))","v":{"v":1707265.9677250728,"d":"1,707,266"}},{"$f":"($A21-$A20)/365.25*(D20+Main!$I27)*(1+Main!$I$2+VLOOKUP('Random Years'!B21,'Hist Returns'!$A$12:$D$107,2,FALSE))","v":{"v":1054513.764110556,"d":"1,054,514"}},{"$f":"($A21-$A20)/365.25*(E20+Main!$I27)*(1+Main!$I$2+VLOOKUP('Random Years'!C21,'Hist Returns'!$A$12:$D$107,2,FALSE))","v":{"v":3304158.705458448,"d":"3,304,159"}},{"$f":"($A21-$A20)/365.25*(F20+Main!$I27)*(1+Main!$I$2+VLOOKUP('Random Years'!D21,'Hist Returns'!$A$12:$D$107,2,FALSE))","v":{"v":8618812.036943529,"d":"8,618,812"}},{"$f":"($A21-$A20)/365.25*(G20+Main!$I27)*(1+Main!$I$2+VLOOKUP('Random Years'!E21,'Hist Returns'!$A$12:$D$107,2,FALSE))","v":{"v":17536019.932630725,"d":"17,536,020"}},{"$f":"($A21-$A20)/365.25*(H20+Main!$I27)*(1+Main!$I$2+VLOOKUP('Random Years'!F21,'Hist Returns'!$A$12:$D$107,2,FALSE))","v":{"v":2500655.4302272336,"d":"2,500,655"}},{"$f":"($A21-$A20)/365.25*(I20+Main!$I27)*(1+Main!$I$2+VLOOKUP('Random Years'!G21,'Hist Returns'!$A$12:$D$107,2,FALSE))","v":{"v":1453023.9812995496,"d":"1,453,024"}},{"$f":"($A21-$A20)/365.25*(J20+Main!$I27)*(1+Main!$I$2+VLOOKUP('Random Years'!H21,'Hist Returns'!$A$12:$D$107,2,FALSE))","v":{"v":1536537.5057209816,"d":"1,536,538"}},{"$f":"($A21-$A20)/365.25*(K20+Main!$I27)*(1+Main!$I$2+VLOOKUP('Random Years'!I21,'Hist Returns'!$A$12:$D$107,2,FALSE))","v":{"v":2547387.3047569664,"d":"2,547,387"}},{"$f":"($A21-$A20)/365.25*(L20+Main!$I27)*(1+Main!$I$2+VLOOKUP('Random Years'!J21,'Hist Returns'!$A$12:$D$107,2,FALSE))","v":{"v":7353907.246059231,"d":"7,353,907"}},{"$f":"($A21-$A20)/365.25*(M20+Main!$I27)*(1+Main!$I$2+VLOOKUP('Random Years'!K21,'Hist Returns'!$A$12:$D$107,2,FALSE))","v":{"v":2441895.113524773,"d":"2,441,895"}},{"$f":"($A21-$A20)/365.25*(N20+Main!$I27)*(1+Main!$I$2+VLOOKUP('Random Years'!L21,'Hist Returns'!$A$12:$D$107,2,FALSE))","v":{"v":-603311.3929157676,"d":"(603,311)"}},{"$f":"($A21-$A20)/365.25*(O20+Main!$I27)*(1+Main!$I$2+VLOOKUP('Random Years'!M21,'Hist Returns'!$A$12:$D$107,2,FALSE))","v":{"v":1661101.1525555092,"d":"1,661,101"}},{"$f":"($A21-$A20)/365.25*(P20+Main!$I27)*(1+Main!$I$2+VLOOKUP('Random Years'!N21,'Hist Returns'!$A$12:$D$107,2,FALSE))","v":{"v":1360491.091001943,"d":"1,360,491"}},{"$f":"($A21-$A20)/365.25*(Q20+Main!$I27)*(1+Main!$I$2+VLOOKUP('Random Years'!O21,'Hist Returns'!$A$12:$D$107,2,FALSE))","v":{"v":591820.5231552471,"d":"591,821"}},{"$f":"($A21-$A20)/365.25*(R20+Main!$I27)*(1+Main!$I$2+VLOOKUP('Random Years'!P21,'Hist Returns'!$A$12:$D$107,2,FALSE))","v":{"v":1688297.458842745,"d":"1,688,297"}},{"$f":"($A21-$A20)/365.25*(S20+Main!$I27)*(1+Main!$I$2+VLOOKUP('Random Years'!Q21,'Hist Returns'!$A$12:$D$107,2,FALSE))","v":{"v":377639.8558884469,"d":"377,640"}},{"$f":"($A21-$A20)/365.25*(T20+Main!$I27)*(1+Main!$I$2+VLOOKUP('Random Years'!R21,'Hist Returns'!$A$12:$D$107,2,FALSE))","v":{"v":-217412.15322815796,"d":"(217,412)"}},{"$f":"($A21-$A20)/365.25*(U20+Main!$I27)*(1+Main!$I$2+VLOOKUP('Random Years'!S21,'Hist Returns'!$A$12:$D$107,2,FALSE))","v":{"v":1295596.491498296,"d":"1,295,596"}},{"$f":"($A21-$A20)/365.25*(V20+Main!$I27)*(1+Main!$I$2+VLOOKUP('Random Years'!T21,'Hist Returns'!$A$12:$D$107,2,FALSE))","v":{"v":6375605.338447138,"d":"6,375,605"}},{"$f":"($A21-$A20)/365.25*(W20+Main!$I27)*(1+Main!$I$2+VLOOKUP('Random Years'!U21,'Hist Returns'!$A$12:$D$107,2,FALSE))","v":{"v":3459380.8179883654,"d":"3,459,381"}},{"$f":"($A21-$A20)/365.25*(X20+Main!$I27)*(1+Main!$I$2+VLOOKUP('Random Years'!V21,'Hist Returns'!$A$12:$D$107,2,FALSE))","v":{"v":1305081.947770759,"d":"1,305,082"}},{"$f":"($A21-$A20)/365.25*(Y20+Main!$I27)*(1+Main!$I$2+VLOOKUP('Random Years'!W21,'Hist Returns'!$A$12:$D$107,2,FALSE))","v":{"v":2056246.2071970284,"d":"2,056,246"}},{"$f":"($A21-$A20)/365.25*(Z20+Main!$I27)*(1+Main!$I$2+VLOOKUP('Random Years'!X21,'Hist Returns'!$A$12:$D$107,2,FALSE))","v":{"v":297047.89921222883,"d":"297,048"}},{"$f":"($A21-$A20)/365.25*(AA20+Main!$I27)*(1+Main!$I$2+VLOOKUP('Random Years'!Y21,'Hist Returns'!$A$12:$D$107,2,FALSE))","v":{"v":3004529.960343531,"d":"3,004,530"}},{"$f":"($A21-$A20)/365.25*(AB20+Main!$I27)*(1+Main!$I$2+VLOOKUP('Random Years'!Z21,'Hist Returns'!$A$12:$D$107,2,FALSE))","v":{"v":1491497.2061253884,"d":"1,491,497"}},{"$f":"($A21-$A20)/365.25*(AC20+Main!$I27)*(1+Main!$I$2+VLOOKUP('Random Years'!AA21,'Hist Returns'!$A$12:$D$107,2,FALSE))","v":{"v":763588.1475294062,"d":"763,588"}},{"$f":"($A21-$A20)/365.25*(AD20+Main!$I27)*(1+Main!$I$2+VLOOKUP('Random Years'!AB21,'Hist Returns'!$A$12:$D$107,2,FALSE))","v":{"v":986357.662331614,"d":"986,358"}},{"$f":"($A21-$A20)/365.25*(AE20+Main!$I27)*(1+Main!$I$2+VLOOKUP('Random Years'!AC21,'Hist Returns'!$A$12:$D$107,2,FALSE))","v":{"v":217696.34991926834,"d":"217,696"}},{"$f":"($A21-$A20)/365.25*(AF20+Main!$I27)*(1+Main!$I$2+VLOOKUP('Random Years'!AD21,'Hist Returns'!$A$12:$D$107,2,FALSE))","v":{"v":10838789.939690467,"d":"10,838,790"}},{"$f":"($A21-$A20)/365.25*(AG20+Main!$I27)*(1+Main!$I$2+VLOOKUP('Random Years'!AE21,'Hist Returns'!$A$12:$D$107,2,FALSE))","v":{"v":16370185.036567526,"d":"16,370,185"}},{"$f":"($A21-$A20)/365.25*(AH20+Main!$I27)*(1+Main!$I$2+VLOOKUP('Random Years'!AF21,'Hist Returns'!$A$12:$D$107,2,FALSE))","v":{"v":1527988.4041419395,"d":"1,527,988"}},{"$f":"($A21-$A20)/365.25*(AI20+Main!$I27)*(1+Main!$I$2+VLOOKUP('Random Years'!AG21,'Hist Returns'!$A$12:$D$107,2,FALSE))","v":{"v":3197198.472330345,"d":"3,197,198"}},{"$f":"($A21-$A20)/365.25*(AJ20+Main!$I27)*(1+Main!$I$2+VLOOKUP('Random Years'!AH21,'Hist Returns'!$A$12:$D$107,2,FALSE))","v":{"v":5810634.223080882,"d":"5,810,634"}},{"$f":"($A21-$A20)/365.25*(AK20+Main!$I27)*(1+Main!$I$2+VLOOKUP('Random Years'!AI21,'Hist Returns'!$A$12:$D$107,2,FALSE))","v":{"v":310216.82412174565,"d":"310,217"}},{"$f":"($A21-$A20)/365.25*(AL20+Main!$I27)*(1+Main!$I$2+VLOOKUP('Random Years'!AJ21,'Hist Returns'!$A$12:$D$107,2,FALSE))","v":{"v":3058637.270023145,"d":"3,058,637"}},{"$f":"($A21-$A20)/365.25*(AM20+Main!$I27)*(1+Main!$I$2+VLOOKUP('Random Years'!AK21,'Hist Returns'!$A$12:$D$107,2,FALSE))","v":{"v":-206135.54803087868,"d":"(206,136)"}},{"$f":"($A21-$A20)/365.25*(AN20+Main!$I27)*(1+Main!$I$2+VLOOKUP('Random Years'!AL21,'Hist Returns'!$A$12:$D$107,2,FALSE))","v":{"v":5596533.309111897,"d":"5,596,533"}},{"$f":"($A21-$A20)/365.25*(AO20+Main!$I27)*(1+Main!$I$2+VLOOKUP('Random Years'!AM21,'Hist Returns'!$A$12:$D$107,2,FALSE))","v":{"v":3299749.6383403987,"d":"3,299,750"}},{"$f":"($A21-$A20)/365.25*(AP20+Main!$I27)*(1+Main!$I$2+VLOOKUP('Random Years'!AN21,'Hist Returns'!$A$12:$D$107,2,FALSE))","v":{"v":16280052.177765941,"d":"16,280,052"}},{"$f":"($A21-$A20)/365.25*(AQ20+Main!$I27)*(1+Main!$I$2+VLOOKUP('Random Years'!AO21,'Hist Returns'!$A$12:$D$107,2,FALSE))","v":{"v":303599.7233999745,"d":"303,600"}},{"$f":"($A21-$A20)/365.25*(AR20+Main!$I27)*(1+Main!$I$2+VLOOKUP('Random Years'!AP21,'Hist Returns'!$A$12:$D$107,2,FALSE))","v":{"v":3588500.0040684673,"d":"3,588,500"}},{"$f":"($A21-$A20)/365.25*(AS20+Main!$I27)*(1+Main!$I$2+VLOOKUP('Random Years'!AQ21,'Hist Returns'!$A$12:$D$107,2,FALSE))","v":{"v":1561191.4167362426,"d":"1,561,191"}},{"$f":"($A21-$A20)/365.25*(AT20+Main!$I27)*(1+Main!$I$2+VLOOKUP('Random Years'!AR21,'Hist Returns'!$A$12:$D$107,2,FALSE))","v":{"v":15425.254167354207,"d":"15,425"}},{"$f":"($A21-$A20)/365.25*(AU20+Main!$I27)*(1+Main!$I$2+VLOOKUP('Random Years'!AS21,'Hist Returns'!$A$12:$D$107,2,FALSE))","v":{"v":2933484.6995142275,"d":"2,933,485"}},{"$f":"($A21-$A20)/365.25*(AV20+Main!$I27)*(1+Main!$I$2+VLOOKUP('Random Years'!AT21,'Hist Returns'!$A$12:$D$107,2,FALSE))","v":{"v":3345716.6077216635,"d":"3,345,717"}},{"$f":"($A21-$A20)/365.25*(AW20+Main!$I27)*(1+Main!$I$2+VLOOKUP('Random Years'!AU21,'Hist Returns'!$A$12:$D$107,2,FALSE))","v":{"v":348851.9731411439,"d":"348,852"}},{"$f":"($A21-$A20)/365.25*(AX20+Main!$I27)*(1+Main!$I$2+VLOOKUP('Random Years'!AV21,'Hist Returns'!$A$12:$D$107,2,FALSE))","v":{"v":3438584.3522387925,"d":"3,438,584"}},{"$f":"($A21-$A20)/365.25*(AY20+Main!$I27)*(1+Main!$I$2+VLOOKUP('Random Years'!AW21,'Hist Returns'!$A$12:$D$107,2,FALSE))","v":{"v":4092930.4249862083,"d":"4,092,930"}},{"$f":"($A21-$A20)/365.25*(AZ20+Main!$I27)*(1+Main!$I$2+VLOOKUP('Random Years'!AX21,'Hist Returns'!$A$12:$D$107,2,FALSE))","v":{"v":-26228.54972231224,"d":"(26,229)"}},{"$f":"($A21-$A20)/365.25*(BA20+Main!$I27)*(1+Main!$I$2+VLOOKUP('Random Years'!AY21,'Hist Returns'!$A$12:$D$107,2,FALSE))","v":{"v":-571287.4053097967,"d":"(571,287)"}},{"$f":"($A21-$A20)/365.25*(BB20+Main!$I27)*(1+Main!$I$2+VLOOKUP('Random Years'!AZ21,'Hist Returns'!$A$12:$D$107,2,FALSE))","v":{"v":407680.247885834,"d":"407,680"}},{"$f":"($A21-$A20)/365.25*(BC20+Main!$I27)*(1+Main!$I$2+VLOOKUP('Random Years'!BA21,'Hist Returns'!$A$12:$D$107,2,FALSE))","v":{"v":1285571.0305261484,"d":"1,285,571"}},{"$f":"($A21-$A20)/365.25*(BD20+Main!$I27)*(1+Main!$I$2+VLOOKUP('Random Years'!BB21,'Hist Returns'!$A$12:$D$107,2,FALSE))","v":{"v":4225075.2096180655,"d":"4,225,075"}},{"$f":"($A21-$A20)/365.25*(BE20+Main!$I27)*(1+Main!$I$2+VLOOKUP('Random Years'!BC21,'Hist Returns'!$A$12:$D$107,2,FALSE))","v":{"v":1480067.7324960814,"d":"1,480,068"}},{"$f":"($A21-$A20)/365.25*(BF20+Main!$I27)*(1+Main!$I$2+VLOOKUP('Random Years'!BD21,'Hist Returns'!$A$12:$D$107,2,FALSE))","v":{"v":-525471.9457073595,"d":"(525,472)"}},{"$f":"($A21-$A20)/365.25*(BG20+Main!$I27)*(1+Main!$I$2+VLOOKUP('Random Years'!BE21,'Hist Returns'!$A$12:$D$107,2,FALSE))","v":{"v":121516.64064118086,"d":"121,517"}},{"$f":"($A21-$A20)/365.25*(BH20+Main!$I27)*(1+Main!$I$2+VLOOKUP('Random Years'!BF21,'Hist Returns'!$A$12:$D$107,2,FALSE))","v":{"v":998290.1682787569,"d":"998,290"}},{"$f":"($A21-$A20)/365.25*(BI20+Main!$I27)*(1+Main!$I$2+VLOOKUP('Random Years'!BG21,'Hist Returns'!$A$12:$D$107,2,FALSE))","v":{"v":3629749.371446177,"d":"3,629,749"}},{"$f":"($A21-$A20)/365.25*(BJ20+Main!$I27)*(1+Main!$I$2+VLOOKUP('Random Years'!BH21,'Hist Returns'!$A$12:$D$107,2,FALSE))","v":{"v":586616.0548022953,"d":"586,616"}},{"$f":"($A21-$A20)/365.25*(BK20+Main!$I27)*(1+Main!$I$2+VLOOKUP('Random Years'!BI21,'Hist Returns'!$A$12:$D$107,2,FALSE))","v":{"v":1428477.1226757688,"d":"1,428,477"}},{"$f":"($A21-$A20)/365.25*(BL20+Main!$I27)*(1+Main!$I$2+VLOOKUP('Random Years'!BJ21,'Hist Returns'!$A$12:$D$107,2,FALSE))","v":{"v":3353381.864516984,"d":"3,353,382"}},{"$f":"($A21-$A20)/365.25*(BM20+Main!$I27)*(1+Main!$I$2+VLOOKUP('Random Years'!BK21,'Hist Returns'!$A$12:$D$107,2,FALSE))","v":{"v":111217.35180765182,"d":"111,217"}},{"$f":"($A21-$A20)/365.25*(BN20+Main!$I27)*(1+Main!$I$2+VLOOKUP('Random Years'!BL21,'Hist Returns'!$A$12:$D$107,2,FALSE))","v":{"v":6300007.804159076,"d":"6,300,008"}},{"$f":"($A21-$A20)/365.25*(BO20+Main!$I27)*(1+Main!$I$2+VLOOKUP('Random Years'!BM21,'Hist Returns'!$A$12:$D$107,2,FALSE))","v":{"v":3365624.8483405253,"d":"3,365,625"}},{"$f":"($A21-$A20)/365.25*(BP20+Main!$I27)*(1+Main!$I$2+VLOOKUP('Random Years'!BN21,'Hist Returns'!$A$12:$D$107,2,FALSE))","v":{"v":2509555.8554409347,"d":"2,509,556"}},{"$f":"($A21-$A20)/365.25*(BQ20+Main!$I27)*(1+Main!$I$2+VLOOKUP('Random Years'!BO21,'Hist Returns'!$A$12:$D$107,2,FALSE))","v":{"v":1226111.3980119065,"d":"1,226,111"}},{"$f":"($A21-$A20)/365.25*(BR20+Main!$I27)*(1+Main!$I$2+VLOOKUP('Random Years'!BP21,'Hist Returns'!$A$12:$D$107,2,FALSE))","v":{"v":9863298.856029352,"d":"9,863,299"}},{"$f":"($A21-$A20)/365.25*(BS20+Main!$I27)*(1+Main!$I$2+VLOOKUP('Random Years'!BQ21,'Hist Returns'!$A$12:$D$107,2,FALSE))","v":{"v":6184671.96277905,"d":"6,184,672"}},{"$f":"($A21-$A20)/365.25*(BT20+Main!$I27)*(1+Main!$I$2+VLOOKUP('Random Years'!BR21,'Hist Returns'!$A$12:$D$107,2,FALSE))","v":{"v":117121.92969040267,"d":"117,122"}},{"$f":"($A21-$A20)/365.25*(BU20+Main!$I27)*(1+Main!$I$2+VLOOKUP('Random Years'!BS21,'Hist Returns'!$A$12:$D$107,2,FALSE))","v":{"v":252047.70624360823,"d":"252,048"}},{"$f":"($A21-$A20)/365.25*(BV20+Main!$I27)*(1+Main!$I$2+VLOOKUP('Random Years'!BT21,'Hist Returns'!$A$12:$D$107,2,FALSE))","v":{"v":1913052.0547186066,"d":"1,913,052"}},{"$f":"($A21-$A20)/365.25*(BW20+Main!$I27)*(1+Main!$I$2+VLOOKUP('Random Years'!BU21,'Hist Returns'!$A$12:$D$107,2,FALSE))","v":{"v":-180027.9667509843,"d":"(180,028)"}},{"$f":"($A21-$A20)/365.25*(BX20+Main!$I27)*(1+Main!$I$2+VLOOKUP('Random Years'!BV21,'Hist Returns'!$A$12:$D$107,2,FALSE))","v":{"v":3323398.1551538478,"d":"3,323,398"}},{"$f":"($A21-$A20)/365.25*(BY20+Main!$I27)*(1+Main!$I$2+VLOOKUP('Random Years'!BW21,'Hist Returns'!$A$12:$D$107,2,FALSE))","v":{"v":5370941.48290527,"d":"5,370,941"}},{"$f":"($A21-$A20)/365.25*(BZ20+Main!$I27)*(1+Main!$I$2+VLOOKUP('Random Years'!BX21,'Hist Returns'!$A$12:$D$107,2,FALSE))","v":{"v":810415.3486159467,"d":"810,415"}},{"$f":"($A21-$A20)/365.25*(CA20+Main!$I27)*(1+Main!$I$2+VLOOKUP('Random Years'!BY21,'Hist Returns'!$A$12:$D$107,2,FALSE))","v":{"v":374186.50401973043,"d":"374,187"}},{"$f":"($A21-$A20)/365.25*(CB20+Main!$I27)*(1+Main!$I$2+VLOOKUP('Random Years'!BZ21,'Hist Returns'!$A$12:$D$107,2,FALSE))","v":{"v":92650.216735638,"d":"92,650"}},{"$f":"($A21-$A20)/365.25*(CC20+Main!$I27)*(1+Main!$I$2+VLOOKUP('Random Years'!CA21,'Hist Returns'!$A$12:$D$107,2,FALSE))","v":{"v":1810534.7741419796,"d":"1,810,535"}},{"$f":"($A21-$A20)/365.25*(CD20+Main!$I27)*(1+Main!$I$2+VLOOKUP('Random Years'!CB21,'Hist Returns'!$A$12:$D$107,2,FALSE))","v":{"v":6596191.390940776,"d":"6,596,191"}},{"$f":"($A21-$A20)/365.25*(CE20+Main!$I27)*(1+Main!$I$2+VLOOKUP('Random Years'!CC21,'Hist Returns'!$A$12:$D$107,2,FALSE))","v":{"v":8702351.38067855,"d":"8,702,351"}},{"$f":"($A21-$A20)/365.25*(CF20+Main!$I27)*(1+Main!$I$2+VLOOKUP('Random Years'!CD21,'Hist Returns'!$A$12:$D$107,2,FALSE))","v":{"v":654087.9804847726,"d":"654,088"}},{"$f":"($A21-$A20)/365.25*(CG20+Main!$I27)*(1+Main!$I$2+VLOOKUP('Random Years'!CE21,'Hist Returns'!$A$12:$D$107,2,FALSE))","v":{"v":2032988.1956633534,"d":"2,032,988"}},{"$f":"($A21-$A20)/365.25*(CH20+Main!$I27)*(1+Main!$I$2+VLOOKUP('Random Years'!CF21,'Hist Returns'!$A$12:$D$107,2,FALSE))","v":{"v":2862243.555460915,"d":"2,862,244"}},{"$f":"($A21-$A20)/365.25*(CI20+Main!$I27)*(1+Main!$I$2+VLOOKUP('Random Years'!CG21,'Hist Returns'!$A$12:$D$107,2,FALSE))","v":{"v":200879.06574247283,"d":"200,879"}},{"$f":"($A21-$A20)/365.25*(CJ20+Main!$I27)*(1+Main!$I$2+VLOOKUP('Random Years'!CH21,'Hist Returns'!$A$12:$D$107,2,FALSE))","v":{"v":20323886.427306607,"d":"20,323,886"}},{"$f":"($A21-$A20)/365.25*(CK20+Main!$I27)*(1+Main!$I$2+VLOOKUP('Random Years'!CI21,'Hist Returns'!$A$12:$D$107,2,FALSE))","v":{"v":4044535.067071309,"d":"4,044,535"}},{"$f":"($A21-$A20)/365.25*(CL20+Main!$I27)*(1+Main!$I$2+VLOOKUP('Random Years'!CJ21,'Hist Returns'!$A$12:$D$107,2,FALSE))","v":{"v":9494288.865649773,"d":"9,494,289"}},{"$f":"($A21-$A20)/365.25*(CM20+Main!$I27)*(1+Main!$I$2+VLOOKUP('Random Years'!CK21,'Hist Returns'!$A$12:$D$107,2,FALSE))","v":{"v":5989492.0273806695,"d":"5,989,492"}},{"$f":"($A21-$A20)/365.25*(CN20+Main!$I27)*(1+Main!$I$2+VLOOKUP('Random Years'!CL21,'Hist Returns'!$A$12:$D$107,2,FALSE))","v":{"v":15787636.443581503,"d":"15,787,636"}},{"$f":"($A21-$A20)/365.25*(CO20+Main!$I27)*(1+Main!$I$2+VLOOKUP('Random Years'!CM21,'Hist Returns'!$A$12:$D$107,2,FALSE))","v":{"v":3904014.8000508593,"d":"3,904,015"}},{"$f":"($A21-$A20)/365.25*(CP20+Main!$I27)*(1+Main!$I$2+VLOOKUP('Random Years'!CN21,'Hist Returns'!$A$12:$D$107,2,FALSE))","v":{"v":-718070.1935848069,"d":"(718,070)"}},{"$f":"($A21-$A20)/365.25*(CQ20+Main!$I27)*(1+Main!$I$2+VLOOKUP('Random Years'!CO21,'Hist Returns'!$A$12:$D$107,2,FALSE))","v":{"v":2206254.024793655,"d":"2,206,254"}},{"$f":"($A21-$A20)/365.25*(CR20+Main!$I27)*(1+Main!$I$2+VLOOKUP('Random Years'!CP21,'Hist Returns'!$A$12:$D$107,2,FALSE))","v":{"v":10428796.45958817,"d":"10,428,796"}},{"$f":"($A21-$A20)/365.25*(CS20+Main!$I27)*(1+Main!$I$2+VLOOKUP('Random Years'!CQ21,'Hist Returns'!$A$12:$D$107,2,FALSE))","v":{"v":6914228.581628712,"d":"6,914,229"}},{"$f":"($A21-$A20)/365.25*(CT20+Main!$I27)*(1+Main!$I$2+VLOOKUP('Random Years'!CR21,'Hist Returns'!$A$12:$D$107,2,FALSE))","v":{"v":2744153.1619560397,"d":"2,744,153"}},{"$f":"($A21-$A20)/365.25*(CU20+Main!$I27)*(1+Main!$I$2+VLOOKUP('Random Years'!CS21,'Hist Returns'!$A$12:$D$107,2,FALSE))","v":{"v":18583813.625806123,"d":"18,583,814"}},{"$f":"($A21-$A20)/365.25*(CV20+Main!$I27)*(1+Main!$I$2+VLOOKUP('Random Years'!CT21,'Hist Returns'!$A$12:$D$107,2,FALSE))","v":{"v":6265161.717987215,"d":"6,265,162"}},{"$f":"($A21-$A20)/365.25*(CW20+Main!$I27)*(1+Main!$I$2+VLOOKUP('Random Years'!CU21,'Hist Returns'!$A$12:$D$107,2,FALSE))","v":{"v":120419.01247358178,"d":"120,419"}},{"$f":"($A21-$A20)/365.25*(CX20+Main!$I27)*(1+Main!$I$2+VLOOKUP('Random Years'!CV21,'Hist Returns'!$A$12:$D$107,2,FALSE))","v":{"v":4286826.974920945,"d":"4,286,827"}}]
[{"$f":"Main!A28","v":"2043-12-31"},{"$f":"Main!B28","v":89},{"$f":"($A22-$A21)/365.25*(C21+Main!$I28)*(1+Main!$I$2+VLOOKUP('Random Years'!A22,'Hist Returns'!$A$12:$D$107,2,FALSE))","v":{"v":1904307.1725022001,"d":"1,904,307"}},{"$f":"($A22-$A21)/365.25*(D21+Main!$I28)*(1+Main!$I$2+VLOOKUP('Random Years'!B22,'Hist Returns'!$A$12:$D$107,2,FALSE))","v":{"v":893066.0313826585,"d":"893,066"}},{"$f":"($A22-$A21)/365.25*(E21+Main!$I28)*(1+Main!$I$2+VLOOKUP('Random Years'!C22,'Hist Returns'!$A$12:$D$107,2,FALSE))","v":{"v":3228547.4330274053,"d":"3,228,547"}},{"$f":"($A22-$A21)/365.25*(F21+Main!$I28)*(1+Main!$I$2+VLOOKUP('Random Years'!D22,'Hist Returns'!$A$12:$D$107,2,FALSE))","v":{"v":9236881.004653692,"d":"9,236,881"}},{"$f":"($A22-$A21)/365.25*(G21+Main!$I28)*(1+Main!$I$2+VLOOKUP('Random Years'!E22,'Hist Returns'!$A$12:$D$107,2,FALSE))","v":{"v":15780711.740335694,"d":"15,780,712"}},{"$f":"($A22-$A21)/365.25*(H21+Main!$I28)*(1+Main!$I$2+VLOOKUP('Random Years'!F22,'Hist Returns'!$A$12:$D$107,2,FALSE))","v":{"v":3538714.7559840605,"d":"3,538,715"}},{"$f":"($A22-$A21)/365.25*(I21+Main!$I28)*(1+Main!$I$2+VLOOKUP('Random Years'!G22,'Hist Returns'!$A$12:$D$107,2,FALSE))","v":{"v":896164.256789689,"d":"896,164"}},{"$f":"($A22-$A21)/365.25*(J21+Main!$I28)*(1+Main!$I$2+VLOOKUP('Random Years'!H22,'Hist Returns'!$A$12:$D$107,2,FALSE))","v":{"v":1974047.0652811287,"d":"1,974,047"}},{"$f":"($A22-$A21)/365.25*(K21+Main!$I28)*(1+Main!$I$2+VLOOKUP('Random Years'!I22,'Hist Returns'!$A$12:$D$107,2,FALSE))","v":{"v":1859166.4860117158,"d":"1,859,166"}},{"$f":"($A22-$A21)/365.25*(L21+Main!$I28)*(1+Main!$I$2+VLOOKUP('Random Years'!J22,'Hist Returns'!$A$12:$D$107,2,FALSE))","v":{"v":8666239.554770784,"d":"8,666,240"}},{"$f":"($A22-$A21)/365.25*(M21+Main!$I28)*(1+Main!$I$2+VLOOKUP('Random Years'!K22,'Hist Returns'!$A$12:$D$107,2,FALSE))","v":{"v":2860721.7103965413,"d":"2,860,722"}},{"$f":"($A22-$A21)/365.25*(N21+Main!$I28)*(1+Main!$I$2+VLOOKUP('Random Years'!L22,'Hist Returns'!$A$12:$D$107,2,FALSE))","v":{"v":-802474.8567788333,"d":"(802,475)"}},{"$f":"($A22-$A21)/365.25*(O21+Main!$I28)*(1+Main!$I$2+VLOOKUP('Random Years'!M22,'Hist Returns'!$A$12:$D$107,2,FALSE))","v":{"v":1931748.3402812234,"d":"1,931,748"}},{"$f":"($A22-$A21)/365.25*(P21+Main!$I28)*(1+Main!$I$2+VLOOKUP('Random Years'!N22,'Hist Returns'!$A$12:$D$107,2,FALSE))","v":{"v":1572764.3952957229,"d":"1,572,764"}},{"$f":"($A22-$A21)/365.25*(Q21+Main!$I28)*(1+Main!$I$2+VLOOKUP('Random Years'!O22,'Hist Returns'!$A$12:$D$107,2,FALSE))","v":{"v":479298.830269265,"d":"479,299"}},{"$f":"($A22-$A21)/365.25*(R21+Main!$I28)*(1+Main!$I$2+VLOOKUP('Random Years'!P22,'Hist Returns'!$A$12:$D$107,2,FALSE))","v":{"v":1961867.4059951976,"d":"1,961,867"}},{"$f":"($A22-$A21)/365.25*(S21+Main!$I28)*(1+Main!$I$2+VLOOKUP('Random Years'!Q22,'Hist Returns'!$A$12:$D$107,2,FALSE))","v":{"v":371068.32280799886,"d":"371,068"}},{"$f":"($A22-$A21)/365.25*(T21+Main!$I28)*(1+Main!$I$2+VLOOKUP('Random Years'!R22,'Hist Returns'!$A$12:$D$107,2,FALSE))","v":{"v":-287475.4158673363,"d":"(287,475)"}},{"$f":"($A22-$A21)/365.25*(U21+Main!$I28)*(1+Main!$I$2+VLOOKUP('Random Years'!S22,'Hist Returns'!$A$12:$D$107,2,FALSE))","v":{"v":929707.2176043409,"d":"929,707"}},{"$f":"($A22-$A21)/365.25*(V21+Main!$I28)*(1+Main!$I$2+VLOOKUP('Random Years'!T22,'Hist Returns'!$A$12:$D$107,2,FALSE))","v":{"v":7856386.059362961,"d":"7,856,386"}},{"$f":"($A22-$A21)/365.25*(W21+Main!$I28)*(1+Main!$I$2+VLOOKUP('Random Years'!U22,'Hist Returns'!$A$12:$D$107,2,FALSE))","v":{"v":3824774.454553803,"d":"3,824,774"}},{"$f":"($A22-$A21)/365.25*(X21+Main!$I28)*(1+Main!$I$2+VLOOKUP('Random Years'!V22,'Hist Returns'!$A$12:$D$107,2,FALSE))","v":{"v":1152806.22884178,"d":"1,152,806"}},{"$f":"($A22-$A21)/365.25*(Y21+Main!$I28)*(1+Main!$I$2+VLOOKUP('Random Years'!W22,'Hist Returns'!$A$12:$D$107,2,FALSE))","v":{"v":1573872.6100089678,"d":"1,573,873"}},{"$f":"($A22-$A21)/365.25*(Z21+Main!$I28)*(1+Main!$I$2+VLOOKUP('Random Years'!X22,'Hist Returns'!$A$12:$D$107,2,FALSE))","v":{"v":288450.74173398357,"d":"288,451"}},{"$f":"($A22-$A21)/365.25*(AA21+Main!$I28)*(1+Main!$I$2+VLOOKUP('Random Years'!Y22,'Hist Returns'!$A$12:$D$107,2,FALSE))","v":{"v":3881181.4040796678,"d":"3,881,181"}},{"$f":"($A22-$A21)/365.25*(AB21+Main!$I28)*(1+Main!$I$2+VLOOKUP('Random Years'!Z22,'Hist Returns'!$A$12:$D$107,2,FALSE))","v":{"v":1621346.0845885114,"d":"1,621,346"}},{"$f":"($A22-$A21)/365.25*(AC21+Main!$I28)*(1+Main!$I$2+VLOOKUP('Random Years'!AA22,'Hist Returns'!$A$12:$D$107,2,FALSE))","v":{"v":699482.1522022176,"d":"699,482"}},{"$f":"($A22-$A21)/365.25*(AD21+Main!$I28)*(1+Main!$I$2+VLOOKUP('Random Years'!AB22,'Hist Returns'!$A$12:$D$107,2,FALSE))","v":{"v":610952.8330016386,"d":"610,953"}},{"$f":"($A22-$A21)/365.25*(AE21+Main!$I28)*(1+Main!$I$2+VLOOKUP('Random Years'!AC22,'Hist Returns'!$A$12:$D$107,2,FALSE))","v":{"v":172666.20475423877,"d":"172,666"}},{"$f":"($A22-$A21)/365.25*(AF21+Main!$I28)*(1+Main!$I$2+VLOOKUP('Random Years'!AD22,'Hist Returns'!$A$12:$D$107,2,FALSE))","v":{"v":13393935.25113912,"d":"13,393,935"}},{"$f":"($A22-$A21)/365.25*(AG21+Main!$I28)*(1+Main!$I$2+VLOOKUP('Random Years'!AE22,'Hist Returns'!$A$12:$D$107,2,FALSE))","v":{"v":19329783.3824868,"d":"19,329,783"}},{"$f":"($A22-$A21)/365.25*(AH21+Main!$I28)*(1+Main!$I$2+VLOOKUP('Random Years'!AF22,'Hist Returns'!$A$12:$D$107,2,FALSE))","v":{"v":1937327.8809860412,"d":"1,937,328"}},{"$f":"($A22-$A21)/365.25*(AI21+Main!$I28)*(1+Main!$I$2+VLOOKUP('Random Years'!AG22,'Hist Returns'!$A$12:$D$107,2,FALSE))","v":{"v":4190344.2698975834,"d":"4,190,344"}},{"$f":"($A22-$A21)/365.25*(AJ21+Main!$I28)*(1+Main!$I$2+VLOOKUP('Random Years'!AH22,'Hist Returns'!$A$12:$D$107,2,FALSE))","v":{"v":6819803.451496458,"d":"6,819,803"}},{"$f":"($A22-$A21)/365.25*(AK21+Main!$I28)*(1+Main!$I$2+VLOOKUP('Random Years'!AI22,'Hist Returns'!$A$12:$D$107,2,FALSE))","v":{"v":264063.3692703277,"d":"264,063"}},{"$f":"($A22-$A21)/365.25*(AL21+Main!$I28)*(1+Main!$I$2+VLOOKUP('Random Years'!AJ22,'Hist Returns'!$A$12:$D$107,2,FALSE))","v":{"v":3521004.4385183174,"d":"3,521,004"}},{"$f":"($A22-$A21)/365.25*(AM21+Main!$I28)*(1+Main!$I$2+VLOOKUP('Random Years'!AK22,'Hist Returns'!$A$12:$D$107,2,FALSE))","v":{"v":-328207.2412445812,"d":"(328,207)"}},{"$f":"($A22-$A21)/365.25*(AN21+Main!$I28)*(1+Main!$I$2+VLOOKUP('Random Years'!AL22,'Hist Returns'!$A$12:$D$107,2,FALSE))","v":{"v":7301689.868158421,"d":"7,301,690"}},{"$f":"($A22-$A21)/365.25*(AO21+Main!$I28)*(1+Main!$I$2+VLOOKUP('Random Years'!AM22,'Hist Returns'!$A$12:$D$107,2,FALSE))","v":{"v":3656362.1919893906,"d":"3,656,362"}},{"$f":"($A22-$A21)/365.25*(AP21+Main!$I28)*(1+Main!$I$2+VLOOKUP('Random Years'!AN22,'Hist Returns'!$A$12:$D$107,2,FALSE))","v":{"v":18180009.096399277,"d":"18,180,009"}},{"$f":"($A22-$A21)/365.25*(AQ21+Main!$I28)*(1+Main!$I$2+VLOOKUP('Random Years'!AO22,'Hist Returns'!$A$12:$D$107,2,FALSE))","v":{"v":307974.87831922027,"d":"307,975"}},{"$f":"($A22-$A21)/365.25*(AR21+Main!$I28)*(1+Main!$I$2+VLOOKUP('Random Years'!AP22,'Hist Returns'!$A$12:$D$107,2,FALSE))","v":{"v":4106913.6620415566,"d":"4,106,914"}},{"$f":"($A22-$A21)/365.25*(AS21+Main!$I28)*(1+Main!$I$2+VLOOKUP('Random Years'!AQ22,'Hist Returns'!$A$12:$D$107,2,FALSE))","v":{"v":1953818.1924824228,"d":"1,953,818"}},{"$f":"($A22-$A21)/365.25*(AT21+Main!$I28)*(1+Main!$I$2+VLOOKUP('Random Years'!AR22,'Hist Returns'!$A$12:$D$107,2,FALSE))","v":{"v":-25675.220886064955,"d":"(25,675)"}},{"$f":"($A22-$A21)/365.25*(AU21+Main!$I28)*(1+Main!$I$2+VLOOKUP('Random Years'!AS22,'Hist Returns'!$A$12:$D$107,2,FALSE))","v":{"v":3432261.947185621,"d":"3,432,262"}},{"$f":"($A22-$A21)/365.25*(AV21+Main!$I28)*(1+Main!$I$2+VLOOKUP('Random Years'!AT22,'Hist Returns'!$A$12:$D$107,2,FALSE))","v":{"v":5048359.442173266,"d":"5,048,359"}},{"$f":"($A22-$A21)/365.25*(AW21+Main!$I28)*(1+Main!$I$2+VLOOKUP('Random Years'!AU22,'Hist Returns'!$A$12:$D$107,2,FALSE))","v":{"v":419215.1142929848,"d":"419,215"}},{"$f":"($A22-$A21)/365.25*(AX21+Main!$I28)*(1+Main!$I$2+VLOOKUP('Random Years'!AV22,'Hist Returns'!$A$12:$D$107,2,FALSE))","v":{"v":3599837.7728945757,"d":"3,599,838"}},{"$f":"($A22-$A21)/365.25*(AY21+Main!$I28)*(1+Main!$I$2+VLOOKUP('Random Years'!AW22,'Hist Returns'!$A$12:$D$107,2,FALSE))","v":{"v":4462214.196564591,"d":"4,462,214"}},{"$f":"($A22-$A21)/365.25*(AZ21+Main!$I28)*(1+Main!$I$2+VLOOKUP('Random Years'!AX22,'Hist Returns'!$A$12:$D$107,2,FALSE))","v":{"v":-57264.614356841994,"d":"(57,265)"}},{"$f":"($A22-$A21)/365.25*(BA21+Main!$I28)*(1+Main!$I$2+VLOOKUP('Random Years'!AY22,'Hist Returns'!$A$12:$D$107,2,FALSE))","v":{"v":-461254.48793295055,"d":"(461,254)"}},{"$f":"($A22-$A21)/365.25*(BB21+Main!$I28)*(1+Main!$I$2+VLOOKUP('Random Years'!AZ22,'Hist Returns'!$A$12:$D$107,2,FALSE))","v":{"v":430685.0095451118,"d":"430,685"}},{"$f":"($A22-$A21)/365.25*(BC21+Main!$I28)*(1+Main!$I$2+VLOOKUP('Random Years'!BA22,'Hist Returns'!$A$12:$D$107,2,FALSE))","v":{"v":1826404.358378877,"d":"1,826,404"}},{"$f":"($A22-$A21)/365.25*(BD21+Main!$I28)*(1+Main!$I$2+VLOOKUP('Random Years'!BB22,'Hist Returns'!$A$12:$D$107,2,FALSE))","v":{"v":3836992.6351268706,"d":"3,836,993"}},{"$f":"($A22-$A21)/365.25*(BE21+Main!$I28)*(1+Main!$I$2+VLOOKUP('Random Years'!BC22,'Hist Returns'!$A$12:$D$107,2,FALSE))","v":{"v":1898150.6131754622,"d":"1,898,151"}},{"$f":"($A22-$A21)/365.25*(BF21+Main!$I28)*(1+Main!$I$2+VLOOKUP('Random Years'!BD22,'Hist Returns'!$A$12:$D$107,2,FALSE))","v":{"v":-663698.4249988196,"d":"(663,698)"}},{"$f":"($A22-$A21)/365.25*(BG21+Main!$I28)*(1+Main!$I$2+VLOOKUP('Random Years'!BE22,'Hist Returns'!$A$12:$D$107,2,FALSE))","v":{"v":82751.00353185821,"d":"82,751"}},{"$f":"($A22-$A21)/365.25*(BH21+Main!$I28)*(1+Main!$I$2+VLOOKUP('Random Years'!BF22,'Hist Returns'!$A$12:$D$107,2,FALSE))","v":{"v":854663.225854941,"d":"854,663"}},{"$f":"($A22-$A21)/365.25*(BI21+Main!$I28)*(1+Main!$I$2+VLOOKUP('Random Years'!BG22,'Hist Returns'!$A$12:$D$107,2,FALSE))","v":{"v":4267642.1829018695,"d":"4,267,642"}},{"$f":"($A22-$A21)/365.25*(BJ21+Main!$I28)*(1+Main!$I$2+VLOOKUP('Random Years'!BH22,'Hist Returns'!$A$12:$D$107,2,FALSE))","v":{"v":521225.95801134803,"d":"521,226"}},{"$f":"($A22-$A21)/365.25*(BK21+Main!$I28)*(1+Main!$I$2+VLOOKUP('Random Years'!BI22,'Hist Returns'!$A$12:$D$107,2,FALSE))","v":{"v":1406251.1159543614,"d":"1,406,251"}},{"$f":"($A22-$A21)/365.25*(BL21+Main!$I28)*(1+Main!$I$2+VLOOKUP('Random Years'!BJ22,'Hist Returns'!$A$12:$D$107,2,FALSE))","v":{"v":3030064.773560203,"d":"3,030,065"}},{"$f":"($A22-$A21)/365.25*(BM21+Main!$I28)*(1+Main!$I$2+VLOOKUP('Random Years'!BK22,'Hist Returns'!$A$12:$D$107,2,FALSE))","v":{"v":88796.97162723866,"d":"88,797"}},{"$f":"($A22-$A21)/365.25*(BN21+Main!$I28)*(1+Main!$I$2+VLOOKUP('Random Years'!BL22,'Hist Returns'!$A$12:$D$107,2,FALSE))","v":{"v":9564779.169058237,"d":"9,564,779"}},{"$f":"($A22-$A21)/365.25*(BO21+Main!$I28)*(1+Main!$I$2+VLOOKUP('Random Years'!BM22,'Hist Returns'!$A$12:$D$107,2,FALSE))","v":{"v":3041272.6410336616,"d":"3,041,273"}},{"$f":"($A22-$A21)/365.25*(BP21+Main!$I28)*(1+Main!$I$2+VLOOKUP('Random Years'!BN22,'Hist Returns'!$A$12:$D$107,2,FALSE))","v":{"v":2354944.9218063382,"d":"2,354,945"}},{"$f":"($A22-$A21)/365.25*(BQ21+Main!$I28)*(1+Main!$I$2+VLOOKUP('Random Years'!BO22,'Hist Returns'!$A$12:$D$107,2,FALSE))","v":{"v":1410594.5515336355,"d":"1,410,595"}},{"$f":"($A22-$A21)/365.25*(BR21+Main!$I28)*(1+Main!$I$2+VLOOKUP('Random Years'!BP22,'Hist Returns'!$A$12:$D$107,2,FALSE))","v":{"v":8810987.725918189,"d":"8,810,988"}},{"$f":"($A22-$A21)/365.25*(BS21+Main!$I28)*(1+Main!$I$2+VLOOKUP('Random Years'!BQ22,'Hist Returns'!$A$12:$D$107,2,FALSE))","v":{"v":5965229.94382472,"d":"5,965,230"}},{"$f":"($A22-$A21)/365.25*(BT21+Main!$I28)*(1+Main!$I$2+VLOOKUP('Random Years'!BR22,'Hist Returns'!$A$12:$D$107,2,FALSE))","v":{"v":54685.53470569543,"d":"54,686"}},{"$f":"($A22-$A21)/365.25*(BU21+Main!$I28)*(1+Main!$I$2+VLOOKUP('Random Years'!BS22,'Hist Returns'!$A$12:$D$107,2,FALSE))","v":{"v":241635.16210277082,"d":"241,635"}},{"$f":"($A22-$A21)/365.25*(BV21+Main!$I28)*(1+Main!$I$2+VLOOKUP('Random Years'!BT22,'Hist Returns'!$A$12:$D$107,2,FALSE))","v":{"v":1605369.5667905943,"d":"1,605,370"}},{"$f":"($A22-$A21)/365.25*(BW21+Main!$I28)*(1+Main!$I$2+VLOOKUP('Random Years'!BU22,'Hist Returns'!$A$12:$D$107,2,FALSE))","v":{"v":-183623.68890846914,"d":"(183,624)"}},{"$f":"($A22-$A21)/365.25*(BX21+Main!$I28)*(1+Main!$I$2+VLOOKUP('Random Years'!BV22,'Hist Returns'!$A$12:$D$107,2,FALSE))","v":{"v":3015795.415438475,"d":"3,015,795"}},{"$f":"($A22-$A21)/365.25*(BY21+Main!$I28)*(1+Main!$I$2+VLOOKUP('Random Years'!BW22,'Hist Returns'!$A$12:$D$107,2,FALSE))","v":{"v":7250685.131752936,"d":"7,250,685"}},{"$f":"($A22-$A21)/365.25*(BZ21+Main!$I28)*(1+Main!$I$2+VLOOKUP('Random Years'!BX22,'Hist Returns'!$A$12:$D$107,2,FALSE))","v":{"v":575438.6616783595,"d":"575,439"}},{"$f":"($A22-$A21)/365.25*(CA21+Main!$I28)*(1+Main!$I$2+VLOOKUP('Random Years'!BY22,'Hist Returns'!$A$12:$D$107,2,FALSE))","v":{"v":392766.29933086905,"d":"392,766"}},{"$f":"($A22-$A21)/365.25*(CB21+Main!$I28)*(1+Main!$I$2+VLOOKUP('Random Years'!BZ22,'Hist Returns'!$A$12:$D$107,2,FALSE))","v":{"v":57428.89658375277,"d":"57,429"}},{"$f":"($A22-$A21)/365.25*(CC21+Main!$I28)*(1+Main!$I$2+VLOOKUP('Random Years'!CA22,'Hist Returns'!$A$12:$D$107,2,FALSE))","v":{"v":2546451.898548925,"d":"2,546,452"}},{"$f":"($A22-$A21)/365.25*(CD21+Main!$I28)*(1+Main!$I$2+VLOOKUP('Random Years'!CB22,'Hist Returns'!$A$12:$D$107,2,FALSE))","v":{"v":4916513.014480685,"d":"4,916,513"}},{"$f":"($A22-$A21)/365.25*(CE21+Main!$I28)*(1+Main!$I$2+VLOOKUP('Random Years'!CC22,'Hist Returns'!$A$12:$D$107,2,FALSE))","v":{"v":13013447.28050119,"d":"13,013,447"}},{"$f":"($A22-$A21)/365.25*(CF21+Main!$I28)*(1+Main!$I$2+VLOOKUP('Random Years'!CD22,'Hist Returns'!$A$12:$D$107,2,FALSE))","v":{"v":501672.2712304125,"d":"501,672"}},{"$f":"($A22-$A21)/365.25*(CG21+Main!$I28)*(1+Main!$I$2+VLOOKUP('Random Years'!CE22,'Hist Returns'!$A$12:$D$107,2,FALSE))","v":{"v":2424419.031601502,"d":"2,424,419"}},{"$f":"($A22-$A21)/365.25*(CH21+Main!$I28)*(1+Main!$I$2+VLOOKUP('Random Years'!CF22,'Hist Returns'!$A$12:$D$107,2,FALSE))","v":{"v":3333263.074685654,"d":"3,333,263"}},{"$f":"($A22-$A21)/365.25*(CI21+Main!$I28)*(1+Main!$I$2+VLOOKUP('Random Years'!CG22,'Hist Returns'!$A$12:$D$107,2,FALSE))","v":{"v":143484.60545616015,"d":"143,485"}},{"$f":"($A22-$A21)/365.25*(CJ21+Main!$I28)*(1+Main!$I$2+VLOOKUP('Random Years'!CH22,'Hist Returns'!$A$12:$D$107,2,FALSE))","v":{"v":29206852.96640078,"d":"29,206,853"}},{"$f":"($A22-$A21)/365.25*(CK21+Main!$I28)*(1+Main!$I$2+VLOOKUP('Random Years'!CI22,'Hist Returns'!$A$12:$D$107,2,FALSE))","v":{"v":4667420.496623517,"d":"4,667,420"}},{"$f":"($A22-$A21)/365.25*(CL21+Main!$I28)*(1+Main!$I$2+VLOOKUP('Random Years'!CJ22,'Hist Returns'!$A$12:$D$107,2,FALSE))","v":{"v":9355803.632159231,"d":"9,355,804"}},{"$f":"($A22-$A21)/365.25*(CM21+Main!$I28)*(1+Main!$I$2+VLOOKUP('Random Years'!CK22,'Hist Returns'!$A$12:$D$107,2,FALSE))","v":{"v":7202626.9740595445,"d":"7,202,627"}},{"$f":"($A22-$A21)/365.25*(CN21+Main!$I28)*(1+Main!$I$2+VLOOKUP('Random Years'!CL22,'Hist Returns'!$A$12:$D$107,2,FALSE))","v":{"v":18020092.446456987,"d":"18,020,092"}},{"$f":"($A22-$A21)/365.25*(CO21+Main!$I28)*(1+Main!$I$2+VLOOKUP('Random Years'!CM22,'Hist Returns'!$A$12:$D$107,2,FALSE))","v":{"v":4784464.550530606,"d":"4,784,465"}},{"$f":"($A22-$A21)/365.25*(CP21+Main!$I28)*(1+Main!$I$2+VLOOKUP('Random Years'!CN22,'Hist Returns'!$A$12:$D$107,2,FALSE))","v":{"v":-906228.9153167059,"d":"(906,229)"}},{"$f":"($A22-$A21)/365.25*(CQ21+Main!$I28)*(1+Main!$I$2+VLOOKUP('Random Years'!CO22,'Hist Returns'!$A$12:$D$107,2,FALSE))","v":{"v":2143436.6367892465,"d":"2,143,437"}},{"$f":"($A22-$A21)/365.25*(CR21+Main!$I28)*(1+Main!$I$2+VLOOKUP('Random Years'!CP22,'Hist Returns'!$A$12:$D$107,2,FALSE))","v":{"v":13709225.689540984,"d":"13,709,226"}},{"$f":"($A22-$A21)/365.25*(CS21+Main!$I28)*(1+Main!$I$2+VLOOKUP('Random Years'!CQ22,'Hist Returns'!$A$12:$D$107,2,FALSE))","v":{"v":6979876.309670009,"d":"6,979,876"}},{"$f":"($A22-$A21)/365.25*(CT21+Main!$I28)*(1+Main!$I$2+VLOOKUP('Random Years'!CR22,'Hist Returns'!$A$12:$D$107,2,FALSE))","v":{"v":3197433.9169087145,"d":"3,197,434"}},{"$f":"($A22-$A21)/365.25*(CU21+Main!$I28)*(1+Main!$I$2+VLOOKUP('Random Years'!CS22,'Hist Returns'!$A$12:$D$107,2,FALSE))","v":{"v":16972798.27745112,"d":"16,972,798"}},{"$f":"($A22-$A21)/365.25*(CV21+Main!$I28)*(1+Main!$I$2+VLOOKUP('Random Years'!CT22,'Hist Returns'!$A$12:$D$107,2,FALSE))","v":{"v":8960171.039866595,"d":"8,960,171"}},{"$f":"($A22-$A21)/365.25*(CW21+Main!$I28)*(1+Main!$I$2+VLOOKUP('Random Years'!CU22,'Hist Returns'!$A$12:$D$107,2,FALSE))","v":{"v":69417.14197241265,"d":"69,417"}},{"$f":"($A22-$A21)/365.25*(CX21+Main!$I28)*(1+Main!$I$2+VLOOKUP('Random Years'!CV22,'Hist Returns'!$A$12:$D$107,2,FALSE))","v":{"v":4764717.30431843,"d":"4,764,717"}}]
[{"$f":"Main!A29","v":"2044-12-30"},{"$f":"Main!B29","v":90},{"$f":"($A23-$A22)/365.25*(C22+Main!$I29)*(1+Main!$I$2+VLOOKUP('Random Years'!A23,'Hist Returns'!$A$12:$D$107,2,FALSE))","v":{"v":1997455.1808208977,"d":"1,997,455"}},{"$f":"($A23-$A22)/365.25*(D22+Main!$I29)*(1+Main!$I$2+VLOOKUP('Random Years'!B23,'Hist Returns'!$A$12:$D$107,2,FALSE))","v":{"v":1097086.0887212867,"d":"1,097,086"}},{"$f":"($A23-$A22)/365.25*(E22+Main!$I29)*(1+Main!$I$2+VLOOKUP('Random Years'!C23,'Hist Returns'!$A$12:$D$107,2,FALSE))","v":{"v":3556100.7089902936,"d":"3,556,101"}},{"$f":"($A23-$A22)/365.25*(F22+Main!$I29)*(1+Main!$I$2+VLOOKUP('Random Years'!D23,'Hist Returns'!$A$12:$D$107,2,FALSE))","v":{"v":5828745.108788352,"d":"5,828,745"}},{"$f":"($A23-$A22)/365.25*(G22+Main!$I29)*(1+Main!$I$2+VLOOKUP('Random Years'!E23,'Hist Returns'!$A$12:$D$107,2,FALSE))","v":{"v":18558312.351698786,"d":"18,558,312"}},{"$f":"($A23-$A22)/365.25*(H22+Main!$I29)*(1+Main!$I$2+VLOOKUP('Random Years'!F23,'Hist Returns'!$A$12:$D$107,2,FALSE))","v":{"v":3674039.346270579,"d":"3,674,039"}},{"$f":"($A23-$A22)/365.25*(I22+Main!$I29)*(1+Main!$I$2+VLOOKUP('Random Years'!G23,'Hist Returns'!$A$12:$D$107,2,FALSE))","v":{"v":1025598.3347255138,"d":"1,025,598"}},{"$f":"($A23-$A22)/365.25*(J22+Main!$I29)*(1+Main!$I$2+VLOOKUP('Random Years'!H23,'Hist Returns'!$A$12:$D$107,2,FALSE))","v":{"v":2189614.745969689,"d":"2,189,615"}},{"$f":"($A23-$A22)/365.25*(K22+Main!$I29)*(1+Main!$I$2+VLOOKUP('Random Years'!I23,'Hist Returns'!$A$12:$D$107,2,FALSE))","v":{"v":2149984.03413495,"d":"2,149,984"}},{"$f":"($A23-$A22)/365.25*(L22+Main!$I29)*(1+Main!$I$2+VLOOKUP('Random Years'!J23,'Hist Returns'!$A$12:$D$107,2,FALSE))","v":{"v":12643812.130735619,"d":"12,643,812"}},{"$f":"($A23-$A22)/365.25*(M22+Main!$I29)*(1+Main!$I$2+VLOOKUP('Random Years'!K23,'Hist Returns'!$A$12:$D$107,2,FALSE))","v":{"v":2582917.1819659634,"d":"2,582,917"}},{"$f":"($A23-$A22)/365.25*(N22+Main!$I29)*(1+Main!$I$2+VLOOKUP('Random Years'!L23,'Hist Returns'!$A$12:$D$107,2,FALSE))","v":{"v":-772689.5350391808,"d":"(772,690)"}},{"$f":"($A23-$A22)/365.25*(O22+Main!$I29)*(1+Main!$I$2+VLOOKUP('Random Years'!M23,'Hist Returns'!$A$12:$D$107,2,FALSE))","v":{"v":2878208.2527956227,"d":"2,878,208"}},{"$f":"($A23-$A22)/365.25*(P22+Main!$I29)*(1+Main!$I$2+VLOOKUP('Random Years'!N23,'Hist Returns'!$A$12:$D$107,2,FALSE))","v":{"v":1621730.5820498983,"d":"1,621,731"}},{"$f":"($A23-$A22)/365.25*(Q22+Main!$I29)*(1+Main!$I$2+VLOOKUP('Random Years'!O23,'Hist Returns'!$A$12:$D$107,2,FALSE))","v":{"v":421777.2039124767,"d":"421,777"}},{"$f":"($A23-$A22)/365.25*(R22+Main!$I29)*(1+Main!$I$2+VLOOKUP('Random Years'!P23,'Hist Returns'!$A$12:$D$107,2,FALSE))","v":{"v":1216078.8753255026,"d":"1,216,079"}},{"$f":"($A23-$A22)/365.25*(S22+Main!$I29)*(1+Main!$I$2+VLOOKUP('Random Years'!Q23,'Hist Returns'!$A$12:$D$107,2,FALSE))","v":{"v":244811.67127260534,"d":"244,812"}},{"$f":"($A23-$A22)/365.25*(T22+Main!$I29)*(1+Main!$I$2+VLOOKUP('Random Years'!R23,'Hist Returns'!$A$12:$D$107,2,FALSE))","v":{"v":-335529.08191067894,"d":"(335,529)"}},{"$f":"($A23-$A22)/365.25*(U22+Main!$I29)*(1+Main!$I$2+VLOOKUP('Random Years'!S23,'Hist Returns'!$A$12:$D$107,2,FALSE))","v":{"v":807211.0448118745,"d":"807,211"}},{"$f":"($A23-$A22)/365.25*(V22+Main!$I29)*(1+Main!$I$2+VLOOKUP('Random Years'!T23,'Hist Returns'!$A$12:$D$107,2,FALSE))","v":{"v":6810062.309015246,"d":"6,810,062"}},{"$f":"($A23-$A22)/365.25*(W22+Main!$I29)*(1+Main!$I$2+VLOOKUP('Random Years'!U23,'Hist Returns'!$A$12:$D$107,2,FALSE))","v":{"v":3375043.9200716815,"d":"3,375,044"}},{"$f":"($A23-$A22)/365.25*(X22+Main!$I29)*(1+Main!$I$2+VLOOKUP('Random Years'!V23,'Hist Returns'!$A$12:$D$107,2,FALSE))","v":{"v":1626114.8007928643,"d":"1,626,115"}},{"$f":"($A23-$A22)/365.25*(Y22+Main!$I29)*(1+Main!$I$2+VLOOKUP('Random Years'!W23,'Hist Returns'!$A$12:$D$107,2,FALSE))","v":{"v":1550034.8644821201,"d":"1,550,035"}},{"$f":"($A23-$A22)/365.25*(Z22+Main!$I29)*(1+Main!$I$2+VLOOKUP('Random Years'!X23,'Hist Returns'!$A$12:$D$107,2,FALSE))","v":{"v":280615.2963573122,"d":"280,615"}},{"$f":"($A23-$A22)/365.25*(AA22+Main!$I29)*(1+Main!$I$2+VLOOKUP('Random Years'!Y23,'Hist Returns'!$A$12:$D$107,2,FALSE))","v":{"v":3654344.164312088,"d":"3,654,344"}},{"$f":"($A23-$A22)/365.25*(AB22+Main!$I29)*(1+Main!$I$2+VLOOKUP('Random Years'!Z23,'Hist Returns'!$A$12:$D$107,2,FALSE))","v":{"v":1598130.5307736753,"d":"1,598,131"}},{"$f":"($A23-$A22)/365.25*(AC22+Main!$I29)*(1+Main!$I$2+VLOOKUP('Random Years'!AA23,'Hist Returns'!$A$12:$D$107,2,FALSE))","v":{"v":776309.6297457535,"d":"776,310"}},{"$f":"($A23-$A22)/365.25*(AD22+Main!$I29)*(1+Main!$I$2+VLOOKUP('Random Years'!AB23,'Hist Returns'!$A$12:$D$107,2,FALSE))","v":{"v":746510.5173863318,"d":"746,511"}},{"$f":"($A23-$A22)/365.25*(AE22+Main!$I29)*(1+Main!$I$2+VLOOKUP('Random Years'!AC23,'Hist Returns'!$A$12:$D$107,2,FALSE))","v":{"v":174785.73866972723,"d":"174,786"}},{"$f":"($A23-$A22)/365.25*(AF22+Main!$I29)*(1+Main!$I$2+VLOOKUP('Random Years'!AD23,'Hist Returns'!$A$12:$D$107,2,FALSE))","v":{"v":17247479.679228127,"d":"17,247,480"}},{"$f":"($A23-$A22)/365.25*(AG22+Main!$I29)*(1+Main!$I$2+VLOOKUP('Random Years'!AE23,'Hist Returns'!$A$12:$D$107,2,FALSE))","v":{"v":16988925.35904096,"d":"16,988,925"}},{"$f":"($A23-$A22)/365.25*(AH22+Main!$I29)*(1+Main!$I$2+VLOOKUP('Random Years'!AF23,'Hist Returns'!$A$12:$D$107,2,FALSE))","v":{"v":2002127.003864049,"d":"2,002,127"}},{"$f":"($A23-$A22)/365.25*(AI22+Main!$I29)*(1+Main!$I$2+VLOOKUP('Random Years'!AG23,'Hist Returns'!$A$12:$D$107,2,FALSE))","v":{"v":5182060.877288623,"d":"5,182,061"}},{"$f":"($A23-$A22)/365.25*(AJ22+Main!$I29)*(1+Main!$I$2+VLOOKUP('Random Years'!AH23,'Hist Returns'!$A$12:$D$107,2,FALSE))","v":{"v":7157548.2661128035,"d":"7,157,548"}},{"$f":"($A23-$A22)/365.25*(AK22+Main!$I29)*(1+Main!$I$2+VLOOKUP('Random Years'!AI23,'Hist Returns'!$A$12:$D$107,2,FALSE))","v":{"v":286546.3857736827,"d":"286,546"}},{"$f":"($A23-$A22)/365.25*(AL22+Main!$I29)*(1+Main!$I$2+VLOOKUP('Random Years'!AJ23,'Hist Returns'!$A$12:$D$107,2,FALSE))","v":{"v":3655420.8446949567,"d":"3,655,421"}},{"$f":"($A23-$A22)/365.25*(AM22+Main!$I29)*(1+Main!$I$2+VLOOKUP('Random Years'!AK23,'Hist Returns'!$A$12:$D$107,2,FALSE))","v":{"v":-339706.4194745004,"d":"(339,706)"}},{"$f":"($A23-$A22)/365.25*(AN22+Main!$I29)*(1+Main!$I$2+VLOOKUP('Random Years'!AL23,'Hist Returns'!$A$12:$D$107,2,FALSE))","v":{"v":7173227.808157197,"d":"7,173,228"}},{"$f":"($A23-$A22)/365.25*(AO22+Main!$I29)*(1+Main!$I$2+VLOOKUP('Random Years'!AM23,'Hist Returns'!$A$12:$D$107,2,FALSE))","v":{"v":3224709.053820762,"d":"3,224,709"}},{"$f":"($A23-$A22)/365.25*(AP22+Main!$I29)*(1+Main!$I$2+VLOOKUP('Random Years'!AN23,'Hist Returns'!$A$12:$D$107,2,FALSE))","v":{"v":19177186.326235846,"d":"19,177,186"}},{"$f":"($A23-$A22)/365.25*(AQ22+Main!$I29)*(1+Main!$I$2+VLOOKUP('Random Years'!AO23,'Hist Returns'!$A$12:$D$107,2,FALSE))","v":{"v":261007.7617162152,"d":"261,008"}},{"$f":"($A23-$A22)/365.25*(AR22+Main!$I29)*(1+Main!$I$2+VLOOKUP('Random Years'!AP23,'Hist Returns'!$A$12:$D$107,2,FALSE))","v":{"v":4282936.403555861,"d":"4,282,936"}},{"$f":"($A23-$A22)/365.25*(AS22+Main!$I29)*(1+Main!$I$2+VLOOKUP('Random Years'!AQ23,'Hist Returns'!$A$12:$D$107,2,FALSE))","v":{"v":1827846.2171731454,"d":"1,827,846"}},{"$f":"($A23-$A22)/365.25*(AT22+Main!$I29)*(1+Main!$I$2+VLOOKUP('Random Years'!AR23,'Hist Returns'!$A$12:$D$107,2,FALSE))","v":{"v":-91723.68929747974,"d":"(91,724)"}},{"$f":"($A23-$A22)/365.25*(AU22+Main!$I29)*(1+Main!$I$2+VLOOKUP('Random Years'!AS23,'Hist Returns'!$A$12:$D$107,2,FALSE))","v":{"v":5078477.483035313,"d":"5,078,477"}},{"$f":"($A23-$A22)/365.25*(AV22+Main!$I29)*(1+Main!$I$2+VLOOKUP('Random Years'!AT23,'Hist Returns'!$A$12:$D$107,2,FALSE))","v":{"v":5275338.264914104,"d":"5,275,338"}},{"$f":"($A23-$A22)/365.25*(AW22+Main!$I29)*(1+Main!$I$2+VLOOKUP('Random Years'!AU23,'Hist Returns'!$A$12:$D$107,2,FALSE))","v":{"v":495634.4302755598,"d":"495,634"}},{"$f":"($A23-$A22)/365.25*(AX22+Main!$I29)*(1+Main!$I$2+VLOOKUP('Random Years'!AV23,'Hist Returns'!$A$12:$D$107,2,FALSE))","v":{"v":4198511.94512239,"d":"4,198,512"}},{"$f":"($A23-$A22)/365.25*(AY22+Main!$I29)*(1+Main!$I$2+VLOOKUP('Random Years'!AW23,'Hist Returns'!$A$12:$D$107,2,FALSE))","v":{"v":5243405.750557664,"d":"5,243,406"}},{"$f":"($A23-$A22)/365.25*(AZ22+Main!$I29)*(1+Main!$I$2+VLOOKUP('Random Years'!AX23,'Hist Returns'!$A$12:$D$107,2,FALSE))","v":{"v":-120322.4192136791,"d":"(120,322)"}},{"$f":"($A23-$A22)/365.25*(BA22+Main!$I29)*(1+Main!$I$2+VLOOKUP('Random Years'!AY23,'Hist Returns'!$A$12:$D$107,2,FALSE))","v":{"v":-564061.9282871934,"d":"(564,062)"}},{"$f":"($A23-$A22)/365.25*(BB22+Main!$I29)*(1+Main!$I$2+VLOOKUP('Random Years'!AZ23,'Hist Returns'!$A$12:$D$107,2,FALSE))","v":{"v":289419.92482351523,"d":"289,420"}},{"$f":"($A23-$A22)/365.25*(BC22+Main!$I29)*(1+Main!$I$2+VLOOKUP('Random Years'!BA23,'Hist Returns'!$A$12:$D$107,2,FALSE))","v":{"v":1818672.6863943944,"d":"1,818,673"}},{"$f":"($A23-$A22)/365.25*(BD22+Main!$I29)*(1+Main!$I$2+VLOOKUP('Random Years'!BB23,'Hist Returns'!$A$12:$D$107,2,FALSE))","v":{"v":3803262.9508959153,"d":"3,803,263"}},{"$f":"($A23-$A22)/365.25*(BE22+Main!$I29)*(1+Main!$I$2+VLOOKUP('Random Years'!BC23,'Hist Returns'!$A$12:$D$107,2,FALSE))","v":{"v":2291751.532225131,"d":"2,291,752"}},{"$f":"($A23-$A22)/365.25*(BF22+Main!$I29)*(1+Main!$I$2+VLOOKUP('Random Years'!BD23,'Hist Returns'!$A$12:$D$107,2,FALSE))","v":{"v":-875518.1385916158,"d":"(875,518)"}},{"$f":"($A23-$A22)/365.25*(BG22+Main!$I29)*(1+Main!$I$2+VLOOKUP('Random Years'!BE23,'Hist Returns'!$A$12:$D$107,2,FALSE))","v":{"v":41744.72109927314,"d":"41,745"}},{"$f":"($A23-$A22)/365.25*(BH22+Main!$I29)*(1+Main!$I$2+VLOOKUP('Random Years'!BF23,'Hist Returns'!$A$12:$D$107,2,FALSE))","v":{"v":1039962.3629707593,"d":"1,039,962"}},{"$f":"($A23-$A22)/365.25*(BI22+Main!$I29)*(1+Main!$I$2+VLOOKUP('Random Years'!BG23,'Hist Returns'!$A$12:$D$107,2,FALSE))","v":{"v":4371172.330592433,"d":"4,371,172"}},{"$f":"($A23-$A22)/365.25*(BJ22+Main!$I29)*(1+Main!$I$2+VLOOKUP('Random Years'!BH23,'Hist Returns'!$A$12:$D$107,2,FALSE))","v":{"v":487018.84391771146,"d":"487,019"}},{"$f":"($A23-$A22)/365.25*(BK22+Main!$I29)*(1+Main!$I$2+VLOOKUP('Random Years'!BI23,'Hist Returns'!$A$12:$D$107,2,FALSE))","v":{"v":1573982.6496996204,"d":"1,573,983"}},{"$f":"($A23-$A22)/365.25*(BL22+Main!$I29)*(1+Main!$I$2+VLOOKUP('Random Years'!BJ23,'Hist Returns'!$A$12:$D$107,2,FALSE))","v":{"v":2557160.1279274495,"d":"2,557,160"}},{"$f":"($A23-$A22)/365.25*(BM22+Main!$I29)*(1+Main!$I$2+VLOOKUP('Random Years'!BK23,'Hist Returns'!$A$12:$D$107,2,FALSE))","v":{"v":42766.13114320466,"d":"42,766"}},{"$f":"($A23-$A22)/365.25*(BN22+Main!$I29)*(1+Main!$I$2+VLOOKUP('Random Years'!BL23,'Hist Returns'!$A$12:$D$107,2,FALSE))","v":{"v":10924506.583474351,"d":"10,924,507"}},{"$f":"($A23-$A22)/365.25*(BO22+Main!$I29)*(1+Main!$I$2+VLOOKUP('Random Years'!BM23,'Hist Returns'!$A$12:$D$107,2,FALSE))","v":{"v":3746000.446898618,"d":"3,746,000"}},{"$f":"($A23-$A22)/365.25*(BP22+Main!$I29)*(1+Main!$I$2+VLOOKUP('Random Years'!BN23,'Hist Returns'!$A$12:$D$107,2,FALSE))","v":{"v":2557574.787595252,"d":"2,557,575"}},{"$f":"($A23-$A22)/365.25*(BQ22+Main!$I29)*(1+Main!$I$2+VLOOKUP('Random Years'!BO23,'Hist Returns'!$A$12:$D$107,2,FALSE))","v":{"v":1414406.275281788,"d":"1,414,406"}},{"$f":"($A23-$A22)/365.25*(BR22+Main!$I29)*(1+Main!$I$2+VLOOKUP('Random Years'!BP23,'Hist Returns'!$A$12:$D$107,2,FALSE))","v":{"v":7722928.225793842,"d":"7,722,928"}},{"$f":"($A23-$A22)/365.25*(BS22+Main!$I29)*(1+Main!$I$2+VLOOKUP('Random Years'!BQ23,'Hist Returns'!$A$12:$D$107,2,FALSE))","v":{"v":7706369.660266839,"d":"7,706,370"}},{"$f":"($A23-$A22)/365.25*(BT22+Main!$I29)*(1+Main!$I$2+VLOOKUP('Random Years'!BR23,'Hist Returns'!$A$12:$D$107,2,FALSE))","v":{"v":13947.407569533108,"d":"13,947"}},{"$f":"($A23-$A22)/365.25*(BU22+Main!$I29)*(1+Main!$I$2+VLOOKUP('Random Years'!BS23,'Hist Returns'!$A$12:$D$107,2,FALSE))","v":{"v":230289.11498197884,"d":"230,289"}},{"$f":"($A23-$A22)/365.25*(BV22+Main!$I29)*(1+Main!$I$2+VLOOKUP('Random Years'!BT23,'Hist Returns'!$A$12:$D$107,2,FALSE))","v":{"v":1168378.9787375946,"d":"1,168,379"}},{"$f":"($A23-$A22)/365.25*(BW22+Main!$I29)*(1+Main!$I$2+VLOOKUP('Random Years'!BU23,'Hist Returns'!$A$12:$D$107,2,FALSE))","v":{"v":-242157.1694071227,"d":"(242,157)"}},{"$f":"($A23-$A22)/365.25*(BX22+Main!$I29)*(1+Main!$I$2+VLOOKUP('Random Years'!BV23,'Hist Returns'!$A$12:$D$107,2,FALSE))","v":{"v":3327932.6920875725,"d":"3,327,933"}},{"$f":"($A23-$A22)/365.25*(BY22+Main!$I29)*(1+Main!$I$2+VLOOKUP('Random Years'!BW23,'Hist Returns'!$A$12:$D$107,2,FALSE))","v":{"v":7122817.409398078,"d":"7,122,817"}},{"$f":"($A23-$A22)/365.25*(BZ22+Main!$I29)*(1+Main!$I$2+VLOOKUP('Random Years'!BX23,'Hist Returns'!$A$12:$D$107,2,FALSE))","v":{"v":561486.8436720734,"d":"561,487"}},{"$f":"($A23-$A22)/365.25*(CA22+Main!$I29)*(1+Main!$I$2+VLOOKUP('Random Years'!BY23,'Hist Returns'!$A$12:$D$107,2,FALSE))","v":{"v":411427.3100851667,"d":"411,427"}},{"$f":"($A23-$A22)/365.25*(CB22+Main!$I29)*(1+Main!$I$2+VLOOKUP('Random Years'!BZ23,'Hist Returns'!$A$12:$D$107,2,FALSE))","v":{"v":14543.67519296202,"d":"14,544"}},{"$f":"($A23-$A22)/365.25*(CC22+Main!$I29)*(1+Main!$I$2+VLOOKUP('Random Years'!CA23,'Hist Returns'!$A$12:$D$107,2,FALSE))","v":{"v":2911374.9366349163,"d":"2,911,375"}},{"$f":"($A23-$A22)/365.25*(CD22+Main!$I29)*(1+Main!$I$2+VLOOKUP('Random Years'!CB23,'Hist Returns'!$A$12:$D$107,2,FALSE))","v":{"v":4885674.919495425,"d":"4,885,675"}},{"$f":"($A23-$A22)/365.25*(CE22+Main!$I29)*(1+Main!$I$2+VLOOKUP('Random Years'!CC23,'Hist Returns'!$A$12:$D$107,2,FALSE))","v":{"v":13931918.384421745,"d":"13,931,918"}},{"$f":"($A23-$A22)/365.25*(CF22+Main!$I29)*(1+Main!$I$2+VLOOKUP('Random Years'!CD23,'Hist Returns'!$A$12:$D$107,2,FALSE))","v":{"v":408643.9996562109,"d":"408,644"}},{"$f":"($A23-$A22)/365.25*(CG22+Main!$I29)*(1+Main!$I$2+VLOOKUP('Random Years'!CE23,'Hist Returns'!$A$12:$D$107,2,FALSE))","v":{"v":2533749.1506198863,"d":"2,533,749"}},{"$f":"($A23-$A22)/365.25*(CH22+Main!$I29)*(1+Main!$I$2+VLOOKUP('Random Years'!CF23,'Hist Returns'!$A$12:$D$107,2,FALSE))","v":{"v":4222965.352530765,"d":"4,222,965"}},{"$f":"($A23-$A22)/365.25*(CI22+Main!$I29)*(1+Main!$I$2+VLOOKUP('Random Years'!CG23,'Hist Returns'!$A$12:$D$107,2,FALSE))","v":{"v":81601.85648459531,"d":"81,602"}},{"$f":"($A23-$A22)/365.25*(CJ22+Main!$I29)*(1+Main!$I$2+VLOOKUP('Random Years'!CH23,'Hist Returns'!$A$12:$D$107,2,FALSE))","v":{"v":25689626.602560002,"d":"25,689,627"}},{"$f":"($A23-$A22)/365.25*(CK22+Main!$I29)*(1+Main!$I$2+VLOOKUP('Random Years'!CI23,'Hist Returns'!$A$12:$D$107,2,FALSE))","v":{"v":5452493.9429452475,"d":"5,452,494"}},{"$f":"($A23-$A22)/365.25*(CL22+Main!$I29)*(1+Main!$I$2+VLOOKUP('Random Years'!CJ23,'Hist Returns'!$A$12:$D$107,2,FALSE))","v":{"v":11523143.311088134,"d":"11,523,143"}},{"$f":"($A23-$A22)/365.25*(CM22+Main!$I29)*(1+Main!$I$2+VLOOKUP('Random Years'!CK23,'Hist Returns'!$A$12:$D$107,2,FALSE))","v":{"v":8270734.2331974525,"d":"8,270,734"}},{"$f":"($A23-$A22)/365.25*(CN22+Main!$I29)*(1+Main!$I$2+VLOOKUP('Random Years'!CL23,'Hist Returns'!$A$12:$D$107,2,FALSE))","v":{"v":23224204.833496585,"d":"23,224,205"}},{"$f":"($A23-$A22)/365.25*(CO22+Main!$I29)*(1+Main!$I$2+VLOOKUP('Random Years'!CM23,'Hist Returns'!$A$12:$D$107,2,FALSE))","v":{"v":6086047.804677442,"d":"6,086,048"}},{"$f":"($A23-$A22)/365.25*(CP22+Main!$I29)*(1+Main!$I$2+VLOOKUP('Random Years'!CN23,'Hist Returns'!$A$12:$D$107,2,FALSE))","v":{"v":-850179.1004350274,"d":"(850,179)"}},{"$f":"($A23-$A22)/365.25*(CQ22+Main!$I29)*(1+Main!$I$2+VLOOKUP('Random Years'!CO23,'Hist Returns'!$A$12:$D$107,2,FALSE))","v":{"v":1908612.2625158362,"d":"1,908,612"}},{"$f":"($A23-$A22)/365.25*(CR22+Main!$I29)*(1+Main!$I$2+VLOOKUP('Random Years'!CP23,'Hist Returns'!$A$12:$D$107,2,FALSE))","v":{"v":16185000.76155093,"d":"16,185,001"}},{"$f":"($A23-$A22)/365.25*(CS22+Main!$I29)*(1+Main!$I$2+VLOOKUP('Random Years'!CQ23,'Hist Returns'!$A$12:$D$107,2,FALSE))","v":{"v":7023141.777339088,"d":"7,023,142"}},{"$f":"($A23-$A22)/365.25*(CT22+Main!$I29)*(1+Main!$I$2+VLOOKUP('Random Years'!CR23,'Hist Returns'!$A$12:$D$107,2,FALSE))","v":{"v":3968704.817672528,"d":"3,968,705"}},{"$f":"($A23-$A22)/365.25*(CU22+Main!$I29)*(1+Main!$I$2+VLOOKUP('Random Years'!CS23,'Hist Returns'!$A$12:$D$107,2,FALSE))","v":{"v":19714971.261709947,"d":"19,714,971"}},{"$f":"($A23-$A22)/365.25*(CV22+Main!$I29)*(1+Main!$I$2+VLOOKUP('Random Years'!CT23,'Hist Returns'!$A$12:$D$107,2,FALSE))","v":{"v":11033562.848758018,"d":"11,033,563"}},{"$f":"($A23-$A22)/365.25*(CW22+Main!$I29)*(1+Main!$I$2+VLOOKUP('Random Years'!CU23,'Hist Returns'!$A$12:$D$107,2,FALSE))","v":{"v":37433.23114389726,"d":"37,433"}},{"$f":"($A23-$A22)/365.25*(CX22+Main!$I29)*(1+Main!$I$2+VLOOKUP('Random Years'!CV23,'Hist Returns'!$A$12:$D$107,2,FALSE))","v":{"v":5454133.681244903,"d":"5,454,134"}}]
[{"$f":"Main!A30","v":"2045-12-30"},{"$f":"Main!B30","v":91},{"$f":"($A24-$A23)/365.25*(C23+Main!$I30)*(1+Main!$I$2+VLOOKUP('Random Years'!A24,'Hist Returns'!$A$12:$D$107,2,FALSE))","v":{"v":2190219.1107200617,"d":"2,190,219"}},{"$f":"($A24-$A23)/365.25*(D23+Main!$I30)*(1+Main!$I$2+VLOOKUP('Random Years'!B24,'Hist Returns'!$A$12:$D$107,2,FALSE))","v":{"v":1252009.0869506414,"d":"1,252,009"}},{"$f":"($A24-$A23)/365.25*(E23+Main!$I30)*(1+Main!$I$2+VLOOKUP('Random Years'!C24,'Hist Returns'!$A$12:$D$107,2,FALSE))","v":{"v":3577903.4062957936,"d":"3,577,903"}},{"$f":"($A24-$A23)/365.25*(F23+Main!$I30)*(1+Main!$I$2+VLOOKUP('Random Years'!D24,'Hist Returns'!$A$12:$D$107,2,FALSE))","v":{"v":7193761.535773363,"d":"7,193,762"}},{"$f":"($A24-$A23)/365.25*(G23+Main!$I30)*(1+Main!$I$2+VLOOKUP('Random Years'!E24,'Hist Returns'!$A$12:$D$107,2,FALSE))","v":{"v":11623876.800937075,"d":"11,623,877"}},{"$f":"($A24-$A23)/365.25*(H23+Main!$I30)*(1+Main!$I$2+VLOOKUP('Random Years'!F24,'Hist Returns'!$A$12:$D$107,2,FALSE))","v":{"v":4012065.843717232,"d":"4,012,066"}},{"$f":"($A24-$A23)/365.25*(I23+Main!$I30)*(1+Main!$I$2+VLOOKUP('Random Years'!G24,'Hist Returns'!$A$12:$D$107,2,FALSE))","v":{"v":926784.0757175147,"d":"926,784"}},{"$f":"($A24-$A23)/365.25*(J23+Main!$I30)*(1+Main!$I$2+VLOOKUP('Random Years'!H24,'Hist Returns'!$A$12:$D$107,2,FALSE))","v":{"v":1941381.401928886,"d":"1,941,381"}},{"$f":"($A24-$A23)/365.25*(K23+Main!$I30)*(1+Main!$I$2+VLOOKUP('Random Years'!I24,'Hist Returns'!$A$12:$D$107,2,FALSE))","v":{"v":2468695.592310542,"d":"2,468,696"}},{"$f":"($A24-$A23)/365.25*(L23+Main!$I30)*(1+Main!$I$2+VLOOKUP('Random Years'!J24,'Hist Returns'!$A$12:$D$107,2,FALSE))","v":{"v":11172575.462880317,"d":"11,172,575"}},{"$f":"($A24-$A23)/365.25*(M23+Main!$I30)*(1+Main!$I$2+VLOOKUP('Random Years'!K24,'Hist Returns'!$A$12:$D$107,2,FALSE))","v":{"v":2500759.6039728182,"d":"2,500,760"}},{"$f":"($A24-$A23)/365.25*(N23+Main!$I30)*(1+Main!$I$2+VLOOKUP('Random Years'!L24,'Hist Returns'!$A$12:$D$107,2,FALSE))","v":{"v":-1145169.211086983,"d":"(1,145,169)"}},{"$f":"($A24-$A23)/365.25*(O23+Main!$I30)*(1+Main!$I$2+VLOOKUP('Random Years'!M24,'Hist Returns'!$A$12:$D$107,2,FALSE))","v":{"v":2569807.89007263,"d":"2,569,808"}},{"$f":"($A24-$A23)/365.25*(P23+Main!$I30)*(1+Main!$I$2+VLOOKUP('Random Years'!N24,'Hist Returns'!$A$12:$D$107,2,FALSE))","v":{"v":1445123.6093002367,"d":"1,445,124"}},{"$f":"($A24-$A23)/365.25*(Q23+Main!$I30)*(1+Main!$I$2+VLOOKUP('Random Years'!O24,'Hist Returns'!$A$12:$D$107,2,FALSE))","v":{"v":224214.12939920914,"d":"224,214"}},{"$f":"($A24-$A23)/365.25*(R23+Main!$I30)*(1+Main!$I$2+VLOOKUP('Random Years'!P24,'Hist Returns'!$A$12:$D$107,2,FALSE))","v":{"v":1106288.86549203,"d":"1,106,289"}},{"$f":"($A24-$A23)/365.25*(S23+Main!$I30)*(1+Main!$I$2+VLOOKUP('Random Years'!Q24,'Hist Returns'!$A$12:$D$107,2,FALSE))","v":{"v":20584.650926950788,"d":"20,585"}},{"$f":"($A24-$A23)/365.25*(T23+Main!$I30)*(1+Main!$I$2+VLOOKUP('Random Years'!R24,'Hist Returns'!$A$12:$D$107,2,FALSE))","v":{"v":-494073.0019884147,"d":"(494,073)"}},{"$f":"($A24-$A23)/365.25*(U23+Main!$I30)*(1+Main!$I$2+VLOOKUP('Random Years'!S24,'Hist Returns'!$A$12:$D$107,2,FALSE))","v":{"v":692125.6356111681,"d":"692,126"}},{"$f":"($A24-$A23)/365.25*(V23+Main!$I30)*(1+Main!$I$2+VLOOKUP('Random Years'!T24,'Hist Returns'!$A$12:$D$107,2,FALSE))","v":{"v":7625844.830841455,"d":"7,625,845"}},{"$f":"($A24-$A23)/365.25*(W23+Main!$I30)*(1+Main!$I$2+VLOOKUP('Random Years'!U24,'Hist Returns'!$A$12:$D$107,2,FALSE))","v":{"v":3892833.516249756,"d":"3,892,834"}},{"$f":"($A24-$A23)/365.25*(X23+Main!$I30)*(1+Main!$I$2+VLOOKUP('Random Years'!V24,'Hist Returns'!$A$12:$D$107,2,FALSE))","v":{"v":1485845.9361447478,"d":"1,485,846"}},{"$f":"($A24-$A23)/365.25*(Y23+Main!$I30)*(1+Main!$I$2+VLOOKUP('Random Years'!W24,'Hist Returns'!$A$12:$D$107,2,FALSE))","v":{"v":1655541.2000890756,"d":"1,655,541"}},{"$f":"($A24-$A23)/365.25*(Z23+Main!$I30)*(1+Main!$I$2+VLOOKUP('Random Years'!X24,'Hist Returns'!$A$12:$D$107,2,FALSE))","v":{"v":50459.53672836302,"d":"50,460"}},{"$f":"($A24-$A23)/365.25*(AA23+Main!$I30)*(1+Main!$I$2+VLOOKUP('Random Years'!Y24,'Hist Returns'!$A$12:$D$107,2,FALSE))","v":{"v":3828941.6687184996,"d":"3,828,942"}},{"$f":"($A24-$A23)/365.25*(AB23+Main!$I30)*(1+Main!$I$2+VLOOKUP('Random Years'!Z24,'Hist Returns'!$A$12:$D$107,2,FALSE))","v":{"v":1355541.1199345533,"d":"1,355,541"}},{"$f":"($A24-$A23)/365.25*(AC23+Main!$I30)*(1+Main!$I$2+VLOOKUP('Random Years'!AA24,'Hist Returns'!$A$12:$D$107,2,FALSE))","v":{"v":616969.4294203812,"d":"616,969"}},{"$f":"($A24-$A23)/365.25*(AD23+Main!$I30)*(1+Main!$I$2+VLOOKUP('Random Years'!AB24,'Hist Returns'!$A$12:$D$107,2,FALSE))","v":{"v":614607.0603511175,"d":"614,607"}},{"$f":"($A24-$A23)/365.25*(AE23+Main!$I30)*(1+Main!$I$2+VLOOKUP('Random Years'!AC24,'Hist Returns'!$A$12:$D$107,2,FALSE))","v":{"v":-60211.53055953102,"d":"(60,212)"}},{"$f":"($A24-$A23)/365.25*(AF23+Main!$I30)*(1+Main!$I$2+VLOOKUP('Random Years'!AD24,'Hist Returns'!$A$12:$D$107,2,FALSE))","v":{"v":23303536.10917679,"d":"23,303,536"}},{"$f":"($A24-$A23)/365.25*(AG23+Main!$I30)*(1+Main!$I$2+VLOOKUP('Random Years'!AE24,'Hist Returns'!$A$12:$D$107,2,FALSE))","v":{"v":20742032.959332597,"d":"20,742,033"}},{"$f":"($A24-$A23)/365.25*(AH23+Main!$I30)*(1+Main!$I$2+VLOOKUP('Random Years'!AF24,'Hist Returns'!$A$12:$D$107,2,FALSE))","v":{"v":2198461.156729262,"d":"2,198,461"}},{"$f":"($A24-$A23)/365.25*(AI23+Main!$I30)*(1+Main!$I$2+VLOOKUP('Random Years'!AG24,'Hist Returns'!$A$12:$D$107,2,FALSE))","v":{"v":4969993.37922473,"d":"4,969,993"}},{"$f":"($A24-$A23)/365.25*(AJ23+Main!$I30)*(1+Main!$I$2+VLOOKUP('Random Years'!AH24,'Hist Returns'!$A$12:$D$107,2,FALSE))","v":{"v":7617922.335597768,"d":"7,617,922"}},{"$f":"($A24-$A23)/365.25*(AK23+Main!$I30)*(1+Main!$I$2+VLOOKUP('Random Years'!AI24,'Hist Returns'!$A$12:$D$107,2,FALSE))","v":{"v":76487.49886700409,"d":"76,487"}},{"$f":"($A24-$A23)/365.25*(AL23+Main!$I30)*(1+Main!$I$2+VLOOKUP('Random Years'!AJ24,'Hist Returns'!$A$12:$D$107,2,FALSE))","v":{"v":3626972.912944198,"d":"3,626,973"}},{"$f":"($A24-$A23)/365.25*(AM23+Main!$I30)*(1+Main!$I$2+VLOOKUP('Random Years'!AK24,'Hist Returns'!$A$12:$D$107,2,FALSE))","v":{"v":-634678.2353415935,"d":"(634,678)"}},{"$f":"($A24-$A23)/365.25*(AN23+Main!$I30)*(1+Main!$I$2+VLOOKUP('Random Years'!AL24,'Hist Returns'!$A$12:$D$107,2,FALSE))","v":{"v":5949701.735410871,"d":"5,949,702"}},{"$f":"($A24-$A23)/365.25*(AO23+Main!$I30)*(1+Main!$I$2+VLOOKUP('Random Years'!AM24,'Hist Returns'!$A$12:$D$107,2,FALSE))","v":{"v":3537127.4269189173,"d":"3,537,127"}},{"$f":"($A24-$A23)/365.25*(AP23+Main!$I30)*(1+Main!$I$2+VLOOKUP('Random Years'!AN24,'Hist Returns'!$A$12:$D$107,2,FALSE))","v":{"v":25945330.92748647,"d":"25,945,331"}},{"$f":"($A24-$A23)/365.25*(AQ23+Main!$I30)*(1+Main!$I$2+VLOOKUP('Random Years'!AO24,'Hist Returns'!$A$12:$D$107,2,FALSE))","v":{"v":34130.583347657455,"d":"34,131"}},{"$f":"($A24-$A23)/365.25*(AR23+Main!$I30)*(1+Main!$I$2+VLOOKUP('Random Years'!AP24,'Hist Returns'!$A$12:$D$107,2,FALSE))","v":{"v":4304029.30470936,"d":"4,304,029"}},{"$f":"($A24-$A23)/365.25*(AS23+Main!$I30)*(1+Main!$I$2+VLOOKUP('Random Years'!AQ24,'Hist Returns'!$A$12:$D$107,2,FALSE))","v":{"v":1466420.0923840234,"d":"1,466,420"}},{"$f":"($A24-$A23)/365.25*(AT23+Main!$I30)*(1+Main!$I$2+VLOOKUP('Random Years'!AR24,'Hist Returns'!$A$12:$D$107,2,FALSE))","v":{"v":-392317.0570284048,"d":"(392,317)"}},{"$f":"($A24-$A23)/365.25*(AU23+Main!$I30)*(1+Main!$I$2+VLOOKUP('Random Years'!AS24,'Hist Returns'!$A$12:$D$107,2,FALSE))","v":{"v":5746763.352535046,"d":"5,746,763"}},{"$f":"($A24-$A23)/365.25*(AV23+Main!$I30)*(1+Main!$I$2+VLOOKUP('Random Years'!AT24,'Hist Returns'!$A$12:$D$107,2,FALSE))","v":{"v":6622830.688758754,"d":"6,622,831"}},{"$f":"($A24-$A23)/365.25*(AW23+Main!$I30)*(1+Main!$I$2+VLOOKUP('Random Years'!AU24,'Hist Returns'!$A$12:$D$107,2,FALSE))","v":{"v":238098.1488379583,"d":"238,098"}},{"$f":"($A24-$A23)/365.25*(AX23+Main!$I30)*(1+Main!$I$2+VLOOKUP('Random Years'!AV24,'Hist Returns'!$A$12:$D$107,2,FALSE))","v":{"v":3848775.509385961,"d":"3,848,776"}},{"$f":"($A24-$A23)/365.25*(AY23+Main!$I30)*(1+Main!$I$2+VLOOKUP('Random Years'!AW24,'Hist Returns'!$A$12:$D$107,2,FALSE))","v":{"v":4561714.586673624,"d":"4,561,715"}},{"$f":"($A24-$A23)/365.25*(AZ23+Main!$I30)*(1+Main!$I$2+VLOOKUP('Random Years'!AX24,'Hist Returns'!$A$12:$D$107,2,FALSE))","v":{"v":-357731.59133968066,"d":"(357,732)"}},{"$f":"($A24-$A23)/365.25*(BA23+Main!$I30)*(1+Main!$I$2+VLOOKUP('Random Years'!AY24,'Hist Returns'!$A$12:$D$107,2,FALSE))","v":{"v":-873612.2210873502,"d":"(873,612)"}},{"$f":"($A24-$A23)/365.25*(BB23+Main!$I30)*(1+Main!$I$2+VLOOKUP('Random Years'!AZ24,'Hist Returns'!$A$12:$D$107,2,FALSE))","v":{"v":67753.55062050966,"d":"67,754"}},{"$f":"($A24-$A23)/365.25*(BC23+Main!$I30)*(1+Main!$I$2+VLOOKUP('Random Years'!BA24,'Hist Returns'!$A$12:$D$107,2,FALSE))","v":{"v":1789663.0217454664,"d":"1,789,663"}},{"$f":"($A24-$A23)/365.25*(BD23+Main!$I30)*(1+Main!$I$2+VLOOKUP('Random Years'!BB24,'Hist Returns'!$A$12:$D$107,2,FALSE))","v":{"v":4856241.451963579,"d":"4,856,241"}},{"$f":"($A24-$A23)/365.25*(BE23+Main!$I30)*(1+Main!$I$2+VLOOKUP('Random Years'!BC24,'Hist Returns'!$A$12:$D$107,2,FALSE))","v":{"v":2728786.3229929125,"d":"2,728,786"}},{"$f":"($A24-$A23)/365.25*(BF23+Main!$I30)*(1+Main!$I$2+VLOOKUP('Random Years'!BD24,'Hist Returns'!$A$12:$D$107,2,FALSE))","v":{"v":-1008822.6647240517,"d":"(1,008,823)"}},{"$f":"($A24-$A23)/365.25*(BG23+Main!$I30)*(1+Main!$I$2+VLOOKUP('Random Years'!BE24,'Hist Returns'!$A$12:$D$107,2,FALSE))","v":{"v":-218652.99590816826,"d":"(218,653)"}},{"$f":"($A24-$A23)/365.25*(BH23+Main!$I30)*(1+Main!$I$2+VLOOKUP('Random Years'!BF24,'Hist Returns'!$A$12:$D$107,2,FALSE))","v":{"v":609538.7454579617,"d":"609,539"}},{"$f":"($A24-$A23)/365.25*(BI23+Main!$I30)*(1+Main!$I$2+VLOOKUP('Random Years'!BG24,'Hist Returns'!$A$12:$D$107,2,FALSE))","v":{"v":4642488.007377891,"d":"4,642,488"}},{"$f":"($A24-$A23)/365.25*(BJ23+Main!$I30)*(1+Main!$I$2+VLOOKUP('Random Years'!BH24,'Hist Returns'!$A$12:$D$107,2,FALSE))","v":{"v":329314.64647536847,"d":"329,315"}},{"$f":"($A24-$A23)/365.25*(BK23+Main!$I30)*(1+Main!$I$2+VLOOKUP('Random Years'!BI24,'Hist Returns'!$A$12:$D$107,2,FALSE))","v":{"v":1426053.9882427703,"d":"1,426,054"}},{"$f":"($A24-$A23)/365.25*(BL23+Main!$I30)*(1+Main!$I$2+VLOOKUP('Random Years'!BJ24,'Hist Returns'!$A$12:$D$107,2,FALSE))","v":{"v":2884880.9824284473,"d":"2,884,881"}},{"$f":"($A24-$A23)/365.25*(BM23+Main!$I30)*(1+Main!$I$2+VLOOKUP('Random Years'!BK24,'Hist Returns'!$A$12:$D$107,2,FALSE))","v":{"v":-142375.5946511538,"d":"(142,376)"}},{"$f":"($A24-$A23)/365.25*(BN23+Main!$I30)*(1+Main!$I$2+VLOOKUP('Random Years'!BL24,'Hist Returns'!$A$12:$D$107,2,FALSE))","v":{"v":9804635.82729355,"d":"9,804,636"}},{"$f":"($A24-$A23)/365.25*(BO23+Main!$I30)*(1+Main!$I$2+VLOOKUP('Random Years'!BM24,'Hist Returns'!$A$12:$D$107,2,FALSE))","v":{"v":4665100.5827058805,"d":"4,665,101"}},{"$f":"($A24-$A23)/365.25*(BP23+Main!$I30)*(1+Main!$I$2+VLOOKUP('Random Years'!BN24,'Hist Returns'!$A$12:$D$107,2,FALSE))","v":{"v":3349586.0910099205,"d":"3,349,586"}},{"$f":"($A24-$A23)/365.25*(BQ23+Main!$I30)*(1+Main!$I$2+VLOOKUP('Random Years'!BO24,'Hist Returns'!$A$12:$D$107,2,FALSE))","v":{"v":1402251.3618452617,"d":"1,402,251"}},{"$f":"($A24-$A23)/365.25*(BR23+Main!$I30)*(1+Main!$I$2+VLOOKUP('Random Years'!BP24,'Hist Returns'!$A$12:$D$107,2,FALSE))","v":{"v":8863812.148816139,"d":"8,863,812"}},{"$f":"($A24-$A23)/365.25*(BS23+Main!$I30)*(1+Main!$I$2+VLOOKUP('Random Years'!BQ24,'Hist Returns'!$A$12:$D$107,2,FALSE))","v":{"v":7742132.482292922,"d":"7,742,132"}},{"$f":"($A24-$A23)/365.25*(BT23+Main!$I30)*(1+Main!$I$2+VLOOKUP('Random Years'!BR24,'Hist Returns'!$A$12:$D$107,2,FALSE))","v":{"v":-201318.4811705145,"d":"(201,318)"}},{"$f":"($A24-$A23)/365.25*(BU23+Main!$I30)*(1+Main!$I$2+VLOOKUP('Random Years'!BS24,'Hist Returns'!$A$12:$D$107,2,FALSE))","v":{"v":5198.180779749858,"d":"5,198"}},{"$f":"($A24-$A23)/365.25*(BV23+Main!$I30)*(1+Main!$I$2+VLOOKUP('Random Years'!BT24,'Hist Returns'!$A$12:$D$107,2,FALSE))","v":{"v":902506.1140217948,"d":"902,506"}},{"$f":"($A24-$A23)/365.25*(BW23+Main!$I30)*(1+Main!$I$2+VLOOKUP('Random Years'!BU24,'Hist Returns'!$A$12:$D$107,2,FALSE))","v":{"v":-634531.2182345457,"d":"(634,531)"}},{"$f":"($A24-$A23)/365.25*(BX23+Main!$I30)*(1+Main!$I$2+VLOOKUP('Random Years'!BV24,'Hist Returns'!$A$12:$D$107,2,FALSE))","v":{"v":4247485.718892243,"d":"4,247,486"}},{"$f":"($A24-$A23)/365.25*(BY23+Main!$I30)*(1+Main!$I$2+VLOOKUP('Random Years'!BW24,'Hist Returns'!$A$12:$D$107,2,FALSE))","v":{"v":8728823.305755427,"d":"8,728,823"}},{"$f":"($A24-$A23)/365.25*(BZ23+Main!$I30)*(1+Main!$I$2+VLOOKUP('Random Years'!BX24,'Hist Returns'!$A$12:$D$107,2,FALSE))","v":{"v":275414.47237213486,"d":"275,414"}},{"$f":"($A24-$A23)/365.25*(CA23+Main!$I30)*(1+Main!$I$2+VLOOKUP('Random Years'!BY24,'Hist Returns'!$A$12:$D$107,2,FALSE))","v":{"v":170524.965347766,"d":"170,525"}},{"$f":"($A24-$A23)/365.25*(CB23+Main!$I30)*(1+Main!$I$2+VLOOKUP('Random Years'!BZ24,'Hist Returns'!$A$12:$D$107,2,FALSE))","v":{"v":-183752.6279928782,"d":"(183,753)"}},{"$f":"($A24-$A23)/365.25*(CC23+Main!$I30)*(1+Main!$I$2+VLOOKUP('Random Years'!CA24,'Hist Returns'!$A$12:$D$107,2,FALSE))","v":{"v":2651761.420415152,"d":"2,651,761"}},{"$f":"($A24-$A23)/365.25*(CD23+Main!$I30)*(1+Main!$I$2+VLOOKUP('Random Years'!CB24,'Hist Returns'!$A$12:$D$107,2,FALSE))","v":{"v":6697487.698374567,"d":"6,697,488"}},{"$f":"($A24-$A23)/365.25*(CE23+Main!$I30)*(1+Main!$I$2+VLOOKUP('Random Years'!CC24,'Hist Returns'!$A$12:$D$107,2,FALSE))","v":{"v":16303860.660386978,"d":"16,303,861"}},{"$f":"($A24-$A23)/365.25*(CF23+Main!$I30)*(1+Main!$I$2+VLOOKUP('Random Years'!CD24,'Hist Returns'!$A$12:$D$107,2,FALSE))","v":{"v":235323.6941874556,"d":"235,324"}},{"$f":"($A24-$A23)/365.25*(CG23+Main!$I30)*(1+Main!$I$2+VLOOKUP('Random Years'!CE24,'Hist Returns'!$A$12:$D$107,2,FALSE))","v":{"v":1491668.2738997128,"d":"1,491,668"}},{"$f":"($A24-$A23)/365.25*(CH23+Main!$I30)*(1+Main!$I$2+VLOOKUP('Random Years'!CF24,'Hist Returns'!$A$12:$D$107,2,FALSE))","v":{"v":4946905.553847591,"d":"4,946,906"}},{"$f":"($A24-$A23)/365.25*(CI23+Main!$I30)*(1+Main!$I$2+VLOOKUP('Random Years'!CG24,'Hist Returns'!$A$12:$D$107,2,FALSE))","v":{"v":-112091.28604018707,"d":"(112,091)"}},{"$f":"($A24-$A23)/365.25*(CJ23+Main!$I30)*(1+Main!$I$2+VLOOKUP('Random Years'!CH24,'Hist Returns'!$A$12:$D$107,2,FALSE))","v":{"v":16145431.571807284,"d":"16,145,432"}},{"$f":"($A24-$A23)/365.25*(CK23+Main!$I30)*(1+Main!$I$2+VLOOKUP('Random Years'!CI24,'Hist Returns'!$A$12:$D$107,2,FALSE))","v":{"v":7665091.04793776,"d":"7,665,091"}},{"$f":"($A24-$A23)/365.25*(CL23+Main!$I30)*(1+Main!$I$2+VLOOKUP('Random Years'!CJ24,'Hist Returns'!$A$12:$D$107,2,FALSE))","v":{"v":14872996.024852967,"d":"14,872,996"}},{"$f":"($A24-$A23)/365.25*(CM23+Main!$I30)*(1+Main!$I$2+VLOOKUP('Random Years'!CK24,'Hist Returns'!$A$12:$D$107,2,FALSE))","v":{"v":9036767.554330643,"d":"9,036,768"}},{"$f":"($A24-$A23)/365.25*(CN23+Main!$I30)*(1+Main!$I$2+VLOOKUP('Random Years'!CL24,'Hist Returns'!$A$12:$D$107,2,FALSE))","v":{"v":24692950.305430047,"d":"24,692,950"}},{"$f":"($A24-$A23)/365.25*(CO23+Main!$I30)*(1+Main!$I$2+VLOOKUP('Random Years'!CM24,'Hist Returns'!$A$12:$D$107,2,FALSE))","v":{"v":6490085.060304543,"d":"6,490,085"}},{"$f":"($A24-$A23)/365.25*(CP23+Main!$I30)*(1+Main!$I$2+VLOOKUP('Random Years'!CN24,'Hist Returns'!$A$12:$D$107,2,FALSE))","v":{"v":-1200967.4840546034,"d":"(1,200,967)"}},{"$f":"($A24-$A23)/365.25*(CQ23+Main!$I30)*(1+Main!$I$2+VLOOKUP('Random Years'!CO24,'Hist Returns'!$A$12:$D$107,2,FALSE))","v":{"v":1067262.939374075,"d":"1,067,263"}},{"$f":"($A24-$A23)/365.25*(CR23+Main!$I30)*(1+Main!$I$2+VLOOKUP('Random Years'!CP24,'Hist Returns'!$A$12:$D$107,2,FALSE))","v":{"v":20968625.31353565,"d":"20,968,625"}},{"$f":"($A24-$A23)/365.25*(CS23+Main!$I30)*(1+Main!$I$2+VLOOKUP('Random Years'!CQ24,'Hist Returns'!$A$12:$D$107,2,FALSE))","v":{"v":6319003.064904584,"d":"6,319,003"}},{"$f":"($A24-$A23)/365.25*(CT23+Main!$I30)*(1+Main!$I$2+VLOOKUP('Random Years'!CR24,'Hist Returns'!$A$12:$D$107,2,FALSE))","v":{"v":4943280.904737246,"d":"4,943,281"}},{"$f":"($A24-$A23)/365.25*(CU23+Main!$I30)*(1+Main!$I$2+VLOOKUP('Random Years'!CS24,'Hist Returns'!$A$12:$D$107,2,FALSE))","v":{"v":24998943.8000919,"d":"24,998,944"}},{"$f":"($A24-$A23)/365.25*(CV23+Main!$I30)*(1+Main!$I$2+VLOOKUP('Random Years'!CT24,'Hist Returns'!$A$12:$D$107,2,FALSE))","v":{"v":12487104.900245195,"d":"12,487,105"}},{"$f":"($A24-$A23)/365.25*(CW23+Main!$I30)*(1+Main!$I$2+VLOOKUP('Random Years'!CU24,'Hist Returns'!$A$12:$D$107,2,FALSE))","v":{"v":-194469.85678212412,"d":"(194,470)"}},{"$f":"($A24-$A23)/365.25*(CX23+Main!$I30)*(1+Main!$I$2+VLOOKUP('Random Years'!CV24,'Hist Returns'!$A$12:$D$107,2,FALSE))","v":{"v":5477821.89234323,"d":"5,477,822"}}]
[{"$f":"Main!A31","v":"2046-12-30"},{"$f":"Main!B31","v":92},{"$f":"($A25-$A24)/365.25*(C24+Main!$I31)*(1+Main!$I$2+VLOOKUP('Random Years'!A25,'Hist Returns'!$A$12:$D$107,2,FALSE))","v":{"v":1773408.3747788356,"d":"1,773,408"}},{"$f":"($A25-$A24)/365.25*(D24+Main!$I31)*(1+Main!$I$2+VLOOKUP('Random Years'!B25,'Hist Returns'!$A$12:$D$107,2,FALSE))","v":{"v":1322099.7154294425,"d":"1,322,100"}},{"$f":"($A25-$A24)/365.25*(E24+Main!$I31)*(1+Main!$I$2+VLOOKUP('Random Years'!C25,'Hist Returns'!$A$12:$D$107,2,FALSE))","v":{"v":3532443.795133967,"d":"3,532,444"}},{"$f":"($A25-$A24)/365.25*(F24+Main!$I31)*(1+Main!$I$2+VLOOKUP('Random Years'!D25,'Hist Returns'!$A$12:$D$107,2,FALSE))","v":{"v":6865104.039245637,"d":"6,865,104"}},{"$f":"($A25-$A24)/365.25*(G24+Main!$I31)*(1+Main!$I$2+VLOOKUP('Random Years'!E25,'Hist Returns'!$A$12:$D$107,2,FALSE))","v":{"v":11959527.548800841,"d":"11,959,528"}},{"$f":"($A25-$A24)/365.25*(H24+Main!$I31)*(1+Main!$I$2+VLOOKUP('Random Years'!F25,'Hist Returns'!$A$12:$D$107,2,FALSE))","v":{"v":4477661.770015279,"d":"4,477,662"}},{"$f":"($A25-$A24)/365.25*(I24+Main!$I31)*(1+Main!$I$2+VLOOKUP('Random Years'!G25,'Hist Returns'!$A$12:$D$107,2,FALSE))","v":{"v":892192.2138295829,"d":"892,192"}},{"$f":"($A25-$A24)/365.25*(J24+Main!$I31)*(1+Main!$I$2+VLOOKUP('Random Years'!H25,'Hist Returns'!$A$12:$D$107,2,FALSE))","v":{"v":1874326.0261668095,"d":"1,874,326"}},{"$f":"($A25-$A24)/365.25*(K24+Main!$I31)*(1+Main!$I$2+VLOOKUP('Random Years'!I25,'Hist Returns'!$A$12:$D$107,2,FALSE))","v":{"v":2487045.2926743915,"d":"2,487,045"}},{"$f":"($A25-$A24)/365.25*(L24+Main!$I31)*(1+Main!$I$2+VLOOKUP('Random Years'!J25,'Hist Returns'!$A$12:$D$107,2,FALSE))","v":{"v":11588377.417967504,"d":"11,588,377"}},{"$f":"($A25-$A24)/365.25*(M24+Main!$I31)*(1+Main!$I$2+VLOOKUP('Random Years'!K25,'Hist Returns'!$A$12:$D$107,2,FALSE))","v":{"v":1963950.1814619547,"d":"1,963,950"}},{"$f":"($A25-$A24)/365.25*(N24+Main!$I31)*(1+Main!$I$2+VLOOKUP('Random Years'!L25,'Hist Returns'!$A$12:$D$107,2,FALSE))","v":{"v":-1421141.870559651,"d":"(1,421,142)"}},{"$f":"($A25-$A24)/365.25*(O24+Main!$I31)*(1+Main!$I$2+VLOOKUP('Random Years'!M25,'Hist Returns'!$A$12:$D$107,2,FALSE))","v":{"v":1902578.32406851,"d":"1,902,578"}},{"$f":"($A25-$A24)/365.25*(P24+Main!$I31)*(1+Main!$I$2+VLOOKUP('Random Years'!N25,'Hist Returns'!$A$12:$D$107,2,FALSE))","v":{"v":1325995.1101347296,"d":"1,325,995"}},{"$f":"($A25-$A24)/365.25*(Q24+Main!$I31)*(1+Main!$I$2+VLOOKUP('Random Years'!O25,'Hist Returns'!$A$12:$D$107,2,FALSE))","v":{"v":-32224.17921006046,"d":"(32,224)"}},{"$f":"($A25-$A24)/365.25*(R24+Main!$I31)*(1+Main!$I$2+VLOOKUP('Random Years'!P25,'Hist Returns'!$A$12:$D$107,2,FALSE))","v":{"v":782382.3088146012,"d":"782,382"}},{"$f":"($A25-$A24)/365.25*(S24+Main!$I31)*(1+Main!$I$2+VLOOKUP('Random Years'!Q25,'Hist Returns'!$A$12:$D$107,2,FALSE))","v":{"v":-253625.14422926895,"d":"(253,625)"}},{"$f":"($A25-$A24)/365.25*(T24+Main!$I31)*(1+Main!$I$2+VLOOKUP('Random Years'!R25,'Hist Returns'!$A$12:$D$107,2,FALSE))","v":{"v":-874788.4502349914,"d":"(874,788)"}},{"$f":"($A25-$A24)/365.25*(U24+Main!$I31)*(1+Main!$I$2+VLOOKUP('Random Years'!S25,'Hist Returns'!$A$12:$D$107,2,FALSE))","v":{"v":405722.3700553664,"d":"405,722"}},{"$f":"($A25-$A24)/365.25*(V24+Main!$I31)*(1+Main!$I$2+VLOOKUP('Random Years'!T25,'Hist Returns'!$A$12:$D$107,2,FALSE))","v":{"v":6707153.786792033,"d":"6,707,154"}},{"$f":"($A25-$A24)/365.25*(W24+Main!$I31)*(1+Main!$I$2+VLOOKUP('Random Years'!U25,'Hist Returns'!$A$12:$D$107,2,FALSE))","v":{"v":4081791.503438131,"d":"4,081,792"}},{"$f":"($A25-$A24)/365.25*(X24+Main!$I31)*(1+Main!$I$2+VLOOKUP('Random Years'!V25,'Hist Returns'!$A$12:$D$107,2,FALSE))","v":{"v":1463742.6392361317,"d":"1,463,743"}},{"$f":"($A25-$A24)/365.25*(Y24+Main!$I31)*(1+Main!$I$2+VLOOKUP('Random Years'!W25,'Hist Returns'!$A$12:$D$107,2,FALSE))","v":{"v":1390138.0977072145,"d":"1,390,138"}},{"$f":"($A25-$A24)/365.25*(Z24+Main!$I31)*(1+Main!$I$2+VLOOKUP('Random Years'!X25,'Hist Returns'!$A$12:$D$107,2,FALSE))","v":{"v":-259681.12290817458,"d":"(259,681)"}},{"$f":"($A25-$A24)/365.25*(AA24+Main!$I31)*(1+Main!$I$2+VLOOKUP('Random Years'!Y25,'Hist Returns'!$A$12:$D$107,2,FALSE))","v":{"v":4714504.613566373,"d":"4,714,505"}},{"$f":"($A25-$A24)/365.25*(AB24+Main!$I31)*(1+Main!$I$2+VLOOKUP('Random Years'!Z25,'Hist Returns'!$A$12:$D$107,2,FALSE))","v":{"v":1110790.4704374322,"d":"1,110,790"}},{"$f":"($A25-$A24)/365.25*(AC24+Main!$I31)*(1+Main!$I$2+VLOOKUP('Random Years'!AA25,'Hist Returns'!$A$12:$D$107,2,FALSE))","v":{"v":364540.38158854295,"d":"364,540"}},{"$f":"($A25-$A24)/365.25*(AD24+Main!$I31)*(1+Main!$I$2+VLOOKUP('Random Years'!AB25,'Hist Returns'!$A$12:$D$107,2,FALSE))","v":{"v":394112.7345593574,"d":"394,113"}},{"$f":"($A25-$A24)/365.25*(AE24+Main!$I31)*(1+Main!$I$2+VLOOKUP('Random Years'!AC25,'Hist Returns'!$A$12:$D$107,2,FALSE))","v":{"v":-275539.54944025725,"d":"(275,540)"}},{"$f":"($A25-$A24)/365.25*(AF24+Main!$I31)*(1+Main!$I$2+VLOOKUP('Random Years'!AD25,'Hist Returns'!$A$12:$D$107,2,FALSE))","v":{"v":21141222.24903251,"d":"21,141,222"}},{"$f":"($A25-$A24)/365.25*(AG24+Main!$I31)*(1+Main!$I$2+VLOOKUP('Random Years'!AE25,'Hist Returns'!$A$12:$D$107,2,FALSE))","v":{"v":26672470.05867872,"d":"26,672,470"}},{"$f":"($A25-$A24)/365.25*(AH24+Main!$I31)*(1+Main!$I$2+VLOOKUP('Random Years'!AF25,'Hist Returns'!$A$12:$D$107,2,FALSE))","v":{"v":2801688.1505057137,"d":"2,801,688"}},{"$f":"($A25-$A24)/365.25*(AI24+Main!$I31)*(1+Main!$I$2+VLOOKUP('Random Years'!AG25,'Hist Returns'!$A$12:$D$107,2,FALSE))","v":{"v":4225555.772703867,"d":"4,225,556"}},{"$f":"($A25-$A24)/365.25*(AJ24+Main!$I31)*(1+Main!$I$2+VLOOKUP('Random Years'!AH25,'Hist Returns'!$A$12:$D$107,2,FALSE))","v":{"v":8278383.660332101,"d":"8,278,384"}},{"$f":"($A25-$A24)/365.25*(AK24+Main!$I31)*(1+Main!$I$2+VLOOKUP('Random Years'!AI25,'Hist Returns'!$A$12:$D$107,2,FALSE))","v":{"v":-156035.76488021892,"d":"(156,036)"}},{"$f":"($A25-$A24)/365.25*(AL24+Main!$I31)*(1+Main!$I$2+VLOOKUP('Random Years'!AJ25,'Hist Returns'!$A$12:$D$107,2,FALSE))","v":{"v":4417227.040117629,"d":"4,417,227"}},{"$f":"($A25-$A24)/365.25*(AM24+Main!$I31)*(1+Main!$I$2+VLOOKUP('Random Years'!AK25,'Hist Returns'!$A$12:$D$107,2,FALSE))","v":{"v":-1159338.069348406,"d":"(1,159,338)"}},{"$f":"($A25-$A24)/365.25*(AN24+Main!$I31)*(1+Main!$I$2+VLOOKUP('Random Years'!AL25,'Hist Returns'!$A$12:$D$107,2,FALSE))","v":{"v":6766776.6404925855,"d":"6,766,777"}},{"$f":"($A25-$A24)/365.25*(AO24+Main!$I31)*(1+Main!$I$2+VLOOKUP('Random Years'!AM25,'Hist Returns'!$A$12:$D$107,2,FALSE))","v":{"v":3251079.2146073817,"d":"3,251,079"}},{"$f":"($A25-$A24)/365.25*(AP24+Main!$I31)*(1+Main!$I$2+VLOOKUP('Random Years'!AN25,'Hist Returns'!$A$12:$D$107,2,FALSE))","v":{"v":24893071.915964287,"d":"24,893,072"}},{"$f":"($A25-$A24)/365.25*(AQ24+Main!$I31)*(1+Main!$I$2+VLOOKUP('Random Years'!AO25,'Hist Returns'!$A$12:$D$107,2,FALSE))","v":{"v":-195850.7865432905,"d":"(195,851)"}},{"$f":"($A25-$A24)/365.25*(AR24+Main!$I31)*(1+Main!$I$2+VLOOKUP('Random Years'!AP25,'Hist Returns'!$A$12:$D$107,2,FALSE))","v":{"v":4654313.003307135,"d":"4,654,313"}},{"$f":"($A25-$A24)/365.25*(AS24+Main!$I31)*(1+Main!$I$2+VLOOKUP('Random Years'!AQ25,'Hist Returns'!$A$12:$D$107,2,FALSE))","v":{"v":1787104.464273858,"d":"1,787,104"}},{"$f":"($A25-$A24)/365.25*(AT24+Main!$I31)*(1+Main!$I$2+VLOOKUP('Random Years'!AR25,'Hist Returns'!$A$12:$D$107,2,FALSE))","v":{"v":-839279.2186126049,"d":"(839,279)"}},{"$f":"($A25-$A24)/365.25*(AU24+Main!$I31)*(1+Main!$I$2+VLOOKUP('Random Years'!AS25,'Hist Returns'!$A$12:$D$107,2,FALSE))","v":{"v":5513774.973788987,"d":"5,513,775"}},{"$f":"($A25-$A24)/365.25*(AV24+Main!$I31)*(1+Main!$I$2+VLOOKUP('Random Years'!AT25,'Hist Returns'!$A$12:$D$107,2,FALSE))","v":{"v":5795354.58611825,"d":"5,795,355"}},{"$f":"($A25-$A24)/365.25*(AW24+Main!$I31)*(1+Main!$I$2+VLOOKUP('Random Years'!AU25,'Hist Returns'!$A$12:$D$107,2,FALSE))","v":{"v":-5399.07426923128,"d":"(5,399)"}},{"$f":"($A25-$A24)/365.25*(AX24+Main!$I31)*(1+Main!$I$2+VLOOKUP('Random Years'!AV25,'Hist Returns'!$A$12:$D$107,2,FALSE))","v":{"v":3222274.872711241,"d":"3,222,275"}},{"$f":"($A25-$A24)/365.25*(AY24+Main!$I31)*(1+Main!$I$2+VLOOKUP('Random Years'!AW25,'Hist Returns'!$A$12:$D$107,2,FALSE))","v":{"v":5131464.579456923,"d":"5,131,465"}},{"$f":"($A25-$A24)/365.25*(AZ24+Main!$I31)*(1+Main!$I$2+VLOOKUP('Random Years'!AX25,'Hist Returns'!$A$12:$D$107,2,FALSE))","v":{"v":-731398.9657718127,"d":"(731,399)"}},{"$f":"($A25-$A24)/365.25*(BA24+Main!$I31)*(1+Main!$I$2+VLOOKUP('Random Years'!AY25,'Hist Returns'!$A$12:$D$107,2,FALSE))","v":{"v":-1465758.1611967995,"d":"(1,465,758)"}},{"$f":"($A25-$A24)/365.25*(BB24+Main!$I31)*(1+Main!$I$2+VLOOKUP('Random Years'!AZ25,'Hist Returns'!$A$12:$D$107,2,FALSE))","v":{"v":-189705.1406398167,"d":"(189,705)"}},{"$f":"($A25-$A24)/365.25*(BC24+Main!$I31)*(1+Main!$I$2+VLOOKUP('Random Years'!BA25,'Hist Returns'!$A$12:$D$107,2,FALSE))","v":{"v":1818403.7791614463,"d":"1,818,404"}},{"$f":"($A25-$A24)/365.25*(BD24+Main!$I31)*(1+Main!$I$2+VLOOKUP('Random Years'!BB25,'Hist Returns'!$A$12:$D$107,2,FALSE))","v":{"v":5457112.6437818995,"d":"5,457,113"}},{"$f":"($A25-$A24)/365.25*(BE24+Main!$I31)*(1+Main!$I$2+VLOOKUP('Random Years'!BC25,'Hist Returns'!$A$12:$D$107,2,FALSE))","v":{"v":2255437.8580041733,"d":"2,255,438"}},{"$f":"($A25-$A24)/365.25*(BF24+Main!$I31)*(1+Main!$I$2+VLOOKUP('Random Years'!BD25,'Hist Returns'!$A$12:$D$107,2,FALSE))","v":{"v":-1590165.2691725453,"d":"(1,590,165)"}},{"$f":"($A25-$A24)/365.25*(BG24+Main!$I31)*(1+Main!$I$2+VLOOKUP('Random Years'!BE25,'Hist Returns'!$A$12:$D$107,2,FALSE))","v":{"v":-467620.26128681016,"d":"(467,620)"}},{"$f":"($A25-$A24)/365.25*(BH24+Main!$I31)*(1+Main!$I$2+VLOOKUP('Random Years'!BF25,'Hist Returns'!$A$12:$D$107,2,FALSE))","v":{"v":439708.97726057697,"d":"439,709"}},{"$f":"($A25-$A24)/365.25*(BI24+Main!$I31)*(1+Main!$I$2+VLOOKUP('Random Years'!BG25,'Hist Returns'!$A$12:$D$107,2,FALSE))","v":{"v":4343559.473510501,"d":"4,343,559"}},{"$f":"($A25-$A24)/365.25*(BJ24+Main!$I31)*(1+Main!$I$2+VLOOKUP('Random Years'!BH25,'Hist Returns'!$A$12:$D$107,2,FALSE))","v":{"v":74667.55690444715,"d":"74,668"}},{"$f":"($A25-$A24)/365.25*(BK24+Main!$I31)*(1+Main!$I$2+VLOOKUP('Random Years'!BI25,'Hist Returns'!$A$12:$D$107,2,FALSE))","v":{"v":1457986.993703313,"d":"1,457,987"}},{"$f":"($A25-$A24)/365.25*(BL24+Main!$I31)*(1+Main!$I$2+VLOOKUP('Random Years'!BJ25,'Hist Returns'!$A$12:$D$107,2,FALSE))","v":{"v":3447194.0965727344,"d":"3,447,194"}},{"$f":"($A25-$A24)/365.25*(BM24+Main!$I31)*(1+Main!$I$2+VLOOKUP('Random Years'!BK25,'Hist Returns'!$A$12:$D$107,2,FALSE))","v":{"v":-511589.57382453606,"d":"(511,590)"}},{"$f":"($A25-$A24)/365.25*(BN24+Main!$I31)*(1+Main!$I$2+VLOOKUP('Random Years'!BL25,'Hist Returns'!$A$12:$D$107,2,FALSE))","v":{"v":9434988.322769819,"d":"9,434,988"}},{"$f":"($A25-$A24)/365.25*(BO24+Main!$I31)*(1+Main!$I$2+VLOOKUP('Random Years'!BM25,'Hist Returns'!$A$12:$D$107,2,FALSE))","v":{"v":5815266.665123677,"d":"5,815,267"}},{"$f":"($A25-$A24)/365.25*(BP24+Main!$I31)*(1+Main!$I$2+VLOOKUP('Random Years'!BN25,'Hist Returns'!$A$12:$D$107,2,FALSE))","v":{"v":3062293.6628668173,"d":"3,062,294"}},{"$f":"($A25-$A24)/365.25*(BQ24+Main!$I31)*(1+Main!$I$2+VLOOKUP('Random Years'!BO25,'Hist Returns'!$A$12:$D$107,2,FALSE))","v":{"v":1693007.448907675,"d":"1,693,007"}},{"$f":"($A25-$A24)/365.25*(BR24+Main!$I31)*(1+Main!$I$2+VLOOKUP('Random Years'!BP25,'Hist Returns'!$A$12:$D$107,2,FALSE))","v":{"v":8009230.453566972,"d":"8,009,230"}},{"$f":"($A25-$A24)/365.25*(BS24+Main!$I31)*(1+Main!$I$2+VLOOKUP('Random Years'!BQ25,'Hist Returns'!$A$12:$D$107,2,FALSE))","v":{"v":8925262.496280182,"d":"8,925,262"}},{"$f":"($A25-$A24)/365.25*(BT24+Main!$I31)*(1+Main!$I$2+VLOOKUP('Random Years'!BR25,'Hist Returns'!$A$12:$D$107,2,FALSE))","v":{"v":-493454.25098691473,"d":"(493,454)"}},{"$f":"($A25-$A24)/365.25*(BU24+Main!$I31)*(1+Main!$I$2+VLOOKUP('Random Years'!BS25,'Hist Returns'!$A$12:$D$107,2,FALSE))","v":{"v":-329167.65875599143,"d":"(329,168)"}},{"$f":"($A25-$A24)/365.25*(BV24+Main!$I31)*(1+Main!$I$2+VLOOKUP('Random Years'!BT25,'Hist Returns'!$A$12:$D$107,2,FALSE))","v":{"v":634287.9568637913,"d":"634,288"}},{"$f":"($A25-$A24)/365.25*(BW24+Main!$I31)*(1+Main!$I$2+VLOOKUP('Random Years'!BU25,'Hist Returns'!$A$12:$D$107,2,FALSE))","v":{"v":-1157028.6605705544,"d":"(1,157,029)"}},{"$f":"($A25-$A24)/365.25*(BX24+Main!$I31)*(1+Main!$I$2+VLOOKUP('Random Years'!BV25,'Hist Returns'!$A$12:$D$107,2,FALSE))","v":{"v":5228336.60607498,"d":"5,228,337"}},{"$f":"($A25-$A24)/365.25*(BY24+Main!$I31)*(1+Main!$I$2+VLOOKUP('Random Years'!BW25,'Hist Returns'!$A$12:$D$107,2,FALSE))","v":{"v":10044882.65312538,"d":"10,044,883"}},{"$f":"($A25-$A24)/365.25*(BZ24+Main!$I31)*(1+Main!$I$2+VLOOKUP('Random Years'!BX25,'Hist Returns'!$A$12:$D$107,2,FALSE))","v":{"v":27343.06479483709,"d":"27,343"}},{"$f":"($A25-$A24)/365.25*(CA24+Main!$I31)*(1+Main!$I$2+VLOOKUP('Random Years'!BY25,'Hist Returns'!$A$12:$D$107,2,FALSE))","v":{"v":-70473.50732256654,"d":"(70,474)"}},{"$f":"($A25-$A24)/365.25*(CB24+Main!$I31)*(1+Main!$I$2+VLOOKUP('Random Years'!BZ25,'Hist Returns'!$A$12:$D$107,2,FALSE))","v":{"v":-585627.0389854201,"d":"(585,627)"}},{"$f":"($A25-$A24)/365.25*(CC24+Main!$I31)*(1+Main!$I$2+VLOOKUP('Random Years'!CA25,'Hist Returns'!$A$12:$D$107,2,FALSE))","v":{"v":2971248.789590306,"d":"2,971,249"}},{"$f":"($A25-$A24)/365.25*(CD24+Main!$I31)*(1+Main!$I$2+VLOOKUP('Random Years'!CB25,'Hist Returns'!$A$12:$D$107,2,FALSE))","v":{"v":6813035.143445588,"d":"6,813,035"}},{"$f":"($A25-$A24)/365.25*(CE24+Main!$I31)*(1+Main!$I$2+VLOOKUP('Random Years'!CC25,'Hist Returns'!$A$12:$D$107,2,FALSE))","v":{"v":19396239.255022027,"d":"19,396,239"}},{"$f":"($A25-$A24)/365.25*(CF24+Main!$I31)*(1+Main!$I$2+VLOOKUP('Random Years'!CD25,'Hist Returns'!$A$12:$D$107,2,FALSE))","v":{"v":-15335.872332477402,"d":"(15,336)"}},{"$f":"($A25-$A24)/365.25*(CG24+Main!$I31)*(1+Main!$I$2+VLOOKUP('Random Years'!CE25,'Hist Returns'!$A$12:$D$107,2,FALSE))","v":{"v":1113103.468818223,"d":"1,113,103"}},{"$f":"($A25-$A24)/365.25*(CH24+Main!$I31)*(1+Main!$I$2+VLOOKUP('Random Years'!CF25,'Hist Returns'!$A$12:$D$107,2,FALSE))","v":{"v":4096227.2242827015,"d":"4,096,227"}},{"$f":"($A25-$A24)/365.25*(CI24+Main!$I31)*(1+Main!$I$2+VLOOKUP('Random Years'!CG25,'Hist Returns'!$A$12:$D$107,2,FALSE))","v":{"v":-404146.15559551,"d":"(404,146)"}},{"$f":"($A25-$A24)/365.25*(CJ24+Main!$I31)*(1+Main!$I$2+VLOOKUP('Random Years'!CH25,'Hist Returns'!$A$12:$D$107,2,FALSE))","v":{"v":14547707.62215349,"d":"14,547,708"}},{"$f":"($A25-$A24)/365.25*(CK24+Main!$I31)*(1+Main!$I$2+VLOOKUP('Random Years'!CI25,'Hist Returns'!$A$12:$D$107,2,FALSE))","v":{"v":9067992.21160256,"d":"9,067,992"}},{"$f":"($A25-$A24)/365.25*(CL24+Main!$I31)*(1+Main!$I$2+VLOOKUP('Random Years'!CJ25,'Hist Returns'!$A$12:$D$107,2,FALSE))","v":{"v":16377350.985296607,"d":"16,377,351"}},{"$f":"($A25-$A24)/365.25*(CM24+Main!$I31)*(1+Main!$I$2+VLOOKUP('Random Years'!CK25,'Hist Returns'!$A$12:$D$107,2,FALSE))","v":{"v":13399687.960952656,"d":"13,399,688"}},{"$f":"($A25-$A24)/365.25*(CN24+Main!$I31)*(1+Main!$I$2+VLOOKUP('Random Years'!CL25,'Hist Returns'!$A$12:$D$107,2,FALSE))","v":{"v":21992745.809952825,"d":"21,992,746"}},{"$f":"($A25-$A24)/365.25*(CO24+Main!$I31)*(1+Main!$I$2+VLOOKUP('Random Years'!CM25,'Hist Returns'!$A$12:$D$107,2,FALSE))","v":{"v":9153805.904555976,"d":"9,153,806"}},{"$f":"($A25-$A24)/365.25*(CP24+Main!$I31)*(1+Main!$I$2+VLOOKUP('Random Years'!CN25,'Hist Returns'!$A$12:$D$107,2,FALSE))","v":{"v":-1622234.5652944124,"d":"(1,622,235)"}},{"$f":"($A25-$A24)/365.25*(CQ24+Main!$I31)*(1+Main!$I$2+VLOOKUP('Random Years'!CO25,'Hist Returns'!$A$12:$D$107,2,FALSE))","v":{"v":879912.3490764512,"d":"879,912"}},{"$f":"($A25-$A24)/365.25*(CR24+Main!$I31)*(1+Main!$I$2+VLOOKUP('Random Years'!CP25,'Hist Returns'!$A$12:$D$107,2,FALSE))","v":{"v":18496722.118887763,"d":"18,496,722"}},{"$f":"($A25-$A24)/365.25*(CS24+Main!$I31)*(1+Main!$I$2+VLOOKUP('Random Years'!CQ25,'Hist Returns'!$A$12:$D$107,2,FALSE))","v":{"v":5462178.746268391,"d":"5,462,179"}},{"$f":"($A25-$A24)/365.25*(CT24+Main!$I31)*(1+Main!$I$2+VLOOKUP('Random Years'!CR25,'Hist Returns'!$A$12:$D$107,2,FALSE))","v":{"v":5537440.957141702,"d":"5,537,441"}},{"$f":"($A25-$A24)/365.25*(CU24+Main!$I31)*(1+Main!$I$2+VLOOKUP('Random Years'!CS25,'Hist Returns'!$A$12:$D$107,2,FALSE))","v":{"v":22649395.147800468,"d":"22,649,395"}},{"$f":"($A25-$A24)/365.25*(CV24+Main!$I31)*(1+Main!$I$2+VLOOKUP('Random Years'!CT25,'Hist Returns'!$A$12:$D$107,2,FALSE))","v":{"v":14728466.002230685,"d":"14,728,466"}},{"$f":"($A25-$A24)/365.25*(CW24+Main!$I31)*(1+Main!$I$2+VLOOKUP('Random Years'!CU25,'Hist Returns'!$A$12:$D$107,2,FALSE))","v":{"v":-489674.52800787805,"d":"(489,675)"}},{"$f":"($A25-$A24)/365.25*(CX24+Main!$I31)*(1+Main!$I$2+VLOOKUP('Random Years'!CV25,'Hist Returns'!$A$12:$D$107,2,FALSE))","v":{"v":5005332.012313384,"d":"5,005,332"}}]
[{"$f":"Main!A32","v":"2047-12-31"},{"$f":"Main!B32","v":93},{"$f":"($A26-$A25)/365.25*(C25+Main!$I32)*(1+Main!$I$2+VLOOKUP('Random Years'!A26,'Hist Returns'!$A$12:$D$107,2,FALSE))","v":{"v":1924386.4801774332,"d":"1,924,386"}},{"$f":"($A26-$A25)/365.25*(D25+Main!$I32)*(1+Main!$I$2+VLOOKUP('Random Years'!B26,'Hist Returns'!$A$12:$D$107,2,FALSE))","v":{"v":1282120.1351722544,"d":"1,282,120"}},{"$f":"($A26-$A25)/365.25*(E25+Main!$I32)*(1+Main!$I$2+VLOOKUP('Random Years'!C26,'Hist Returns'!$A$12:$D$107,2,FALSE))","v":{"v":4069916.5162102864,"d":"4,069,917"}},{"$f":"($A26-$A25)/365.25*(F25+Main!$I32)*(1+Main!$I$2+VLOOKUP('Random Years'!D26,'Hist Returns'!$A$12:$D$107,2,FALSE))","v":{"v":7718609.227584781,"d":"7,718,609"}},{"$f":"($A26-$A25)/365.25*(G25+Main!$I32)*(1+Main!$I$2+VLOOKUP('Random Years'!E26,'Hist Returns'!$A$12:$D$107,2,FALSE))","v":{"v":11606311.103666585,"d":"11,606,311"}},{"$f":"($A26-$A25)/365.25*(H25+Main!$I32)*(1+Main!$I$2+VLOOKUP('Random Years'!F26,'Hist Returns'!$A$12:$D$107,2,FALSE))","v":{"v":3864463.2399140433,"d":"3,864,463"}},{"$f":"($A26-$A25)/365.25*(I25+Main!$I32)*(1+Main!$I$2+VLOOKUP('Random Years'!G26,'Hist Returns'!$A$12:$D$107,2,FALSE))","v":{"v":876114.8206704733,"d":"876,115"}},{"$f":"($A26-$A25)/365.25*(J25+Main!$I32)*(1+Main!$I$2+VLOOKUP('Random Years'!H26,'Hist Returns'!$A$12:$D$107,2,FALSE))","v":{"v":914999.321080238,"d":"914,999"}},{"$f":"($A26-$A25)/365.25*(K25+Main!$I32)*(1+Main!$I$2+VLOOKUP('Random Years'!I26,'Hist Returns'!$A$12:$D$107,2,FALSE))","v":{"v":2879249.845886139,"d":"2,879,250"}},{"$f":"($A26-$A25)/365.25*(L25+Main!$I32)*(1+Main!$I$2+VLOOKUP('Random Years'!J26,'Hist Returns'!$A$12:$D$107,2,FALSE))","v":{"v":8508350.427078066,"d":"8,508,350"}},{"$f":"($A26-$A25)/365.25*(M25+Main!$I32)*(1+Main!$I$2+VLOOKUP('Random Years'!K26,'Hist Returns'!$A$12:$D$107,2,FALSE))","v":{"v":2003285.2723736623,"d":"2,003,285"}},{"$f":"($A26-$A25)/365.25*(N25+Main!$I32)*(1+Main!$I$2+VLOOKUP('Random Years'!L26,'Hist Returns'!$A$12:$D$107,2,FALSE))","v":{"v":-1696121.4459570171,"d":"(1,696,121)"}},{"$f":"($A26-$A25)/365.25*(O25+Main!$I32)*(1+Main!$I$2+VLOOKUP('Random Years'!M26,'Hist Returns'!$A$12:$D$107,2,FALSE))","v":{"v":2087390.9835366823,"d":"2,087,391"}},{"$f":"($A26-$A25)/365.25*(P25+Main!$I32)*(1+Main!$I$2+VLOOKUP('Random Years'!N26,'Hist Returns'!$A$12:$D$107,2,FALSE))","v":{"v":1028970.544155731,"d":"1,028,971"}},{"$f":"($A26-$A25)/365.25*(Q25+Main!$I32)*(1+Main!$I$2+VLOOKUP('Random Years'!O26,'Hist Returns'!$A$12:$D$107,2,FALSE))","v":{"v":-253219.20896133158,"d":"(253,219)"}},{"$f":"($A26-$A25)/365.25*(R25+Main!$I32)*(1+Main!$I$2+VLOOKUP('Random Years'!P26,'Hist Returns'!$A$12:$D$107,2,FALSE))","v":{"v":542109.1654827584,"d":"542,109"}},{"$f":"($A26-$A25)/365.25*(S25+Main!$I32)*(1+Main!$I$2+VLOOKUP('Random Years'!Q26,'Hist Returns'!$A$12:$D$107,2,FALSE))","v":{"v":-658108.1623963075,"d":"(658,108)"}},{"$f":"($A26-$A25)/365.25*(T25+Main!$I32)*(1+Main!$I$2+VLOOKUP('Random Years'!R26,'Hist Returns'!$A$12:$D$107,2,FALSE))","v":{"v":-1129346.1877095792,"d":"(1,129,346)"}},{"$f":"($A26-$A25)/365.25*(U25+Main!$I32)*(1+Main!$I$2+VLOOKUP('Random Years'!S26,'Hist Returns'!$A$12:$D$107,2,FALSE))","v":{"v":166224.87044485114,"d":"166,225"}},{"$f":"($A26-$A25)/365.25*(V25+Main!$I32)*(1+Main!$I$2+VLOOKUP('Random Years'!T26,'Hist Returns'!$A$12:$D$107,2,FALSE))","v":{"v":5781209.323973031,"d":"5,781,209"}},{"$f":"($A26-$A25)/365.25*(W25+Main!$I32)*(1+Main!$I$2+VLOOKUP('Random Years'!U26,'Hist Returns'!$A$12:$D$107,2,FALSE))","v":{"v":4077285.0219768365,"d":"4,077,285"}},{"$f":"($A26-$A25)/365.25*(X25+Main!$I32)*(1+Main!$I$2+VLOOKUP('Random Years'!V26,'Hist Returns'!$A$12:$D$107,2,FALSE))","v":{"v":1308371.2092680903,"d":"1,308,371"}},{"$f":"($A26-$A25)/365.25*(Y25+Main!$I32)*(1+Main!$I$2+VLOOKUP('Random Years'!W26,'Hist Returns'!$A$12:$D$107,2,FALSE))","v":{"v":1047587.9830988357,"d":"1,047,588"}},{"$f":"($A26-$A25)/365.25*(Z25+Main!$I32)*(1+Main!$I$2+VLOOKUP('Random Years'!X26,'Hist Returns'!$A$12:$D$107,2,FALSE))","v":{"v":-588685.1621231905,"d":"(588,685)"}},{"$f":"($A26-$A25)/365.25*(AA25+Main!$I32)*(1+Main!$I$2+VLOOKUP('Random Years'!Y26,'Hist Returns'!$A$12:$D$107,2,FALSE))","v":{"v":4720665.282053187,"d":"4,720,665"}},{"$f":"($A26-$A25)/365.25*(AB25+Main!$I32)*(1+Main!$I$2+VLOOKUP('Random Years'!Z26,'Hist Returns'!$A$12:$D$107,2,FALSE))","v":{"v":950222.8705699156,"d":"950,223"}},{"$f":"($A26-$A25)/365.25*(AC25+Main!$I32)*(1+Main!$I$2+VLOOKUP('Random Years'!AA26,'Hist Returns'!$A$12:$D$107,2,FALSE))","v":{"v":123464.27600273307,"d":"123,464"}},{"$f":"($A26-$A25)/365.25*(AD25+Main!$I32)*(1+Main!$I$2+VLOOKUP('Random Years'!AB26,'Hist Returns'!$A$12:$D$107,2,FALSE))","v":{"v":187333.29396798695,"d":"187,333"}},{"$f":"($A26-$A25)/365.25*(AE25+Main!$I32)*(1+Main!$I$2+VLOOKUP('Random Years'!AC26,'Hist Returns'!$A$12:$D$107,2,FALSE))","v":{"v":-620385.9058678153,"d":"(620,386)"}},{"$f":"($A26-$A25)/365.25*(AF25+Main!$I32)*(1+Main!$I$2+VLOOKUP('Random Years'!AD26,'Hist Returns'!$A$12:$D$107,2,FALSE))","v":{"v":23912951.476790413,"d":"23,912,951"}},{"$f":"($A26-$A25)/365.25*(AG25+Main!$I32)*(1+Main!$I$2+VLOOKUP('Random Years'!AE26,'Hist Returns'!$A$12:$D$107,2,FALSE))","v":{"v":25666851.802682813,"d":"25,666,852"}},{"$f":"($A26-$A25)/365.25*(AH25+Main!$I32)*(1+Main!$I$2+VLOOKUP('Random Years'!AF26,'Hist Returns'!$A$12:$D$107,2,FALSE))","v":{"v":3019247.5527102514,"d":"3,019,248"}},{"$f":"($A26-$A25)/365.25*(AI25+Main!$I32)*(1+Main!$I$2+VLOOKUP('Random Years'!AG26,'Hist Returns'!$A$12:$D$107,2,FALSE))","v":{"v":4524065.9287490435,"d":"4,524,066"}},{"$f":"($A26-$A25)/365.25*(AJ25+Main!$I32)*(1+Main!$I$2+VLOOKUP('Random Years'!AH26,'Hist Returns'!$A$12:$D$107,2,FALSE))","v":{"v":9190700.733141085,"d":"9,190,701"}},{"$f":"($A26-$A25)/365.25*(AK25+Main!$I32)*(1+Main!$I$2+VLOOKUP('Random Years'!AI26,'Hist Returns'!$A$12:$D$107,2,FALSE))","v":{"v":-455587.5382215985,"d":"(455,588)"}},{"$f":"($A26-$A25)/365.25*(AL25+Main!$I32)*(1+Main!$I$2+VLOOKUP('Random Years'!AJ26,'Hist Returns'!$A$12:$D$107,2,FALSE))","v":{"v":5171650.742358033,"d":"5,171,651"}},{"$f":"($A26-$A25)/365.25*(AM25+Main!$I32)*(1+Main!$I$2+VLOOKUP('Random Years'!AK26,'Hist Returns'!$A$12:$D$107,2,FALSE))","v":{"v":-1563256.6199878983,"d":"(1,563,257)"}},{"$f":"($A26-$A25)/365.25*(AN25+Main!$I32)*(1+Main!$I$2+VLOOKUP('Random Years'!AL26,'Hist Returns'!$A$12:$D$107,2,FALSE))","v":{"v":7756741.549092543,"d":"7,756,742"}},{"$f":"($A26-$A25)/365.25*(AO25+Main!$I32)*(1+Main!$I$2+VLOOKUP('Random Years'!AM26,'Hist Returns'!$A$12:$D$107,2,FALSE))","v":{"v":2694142.278983172,"d":"2,694,142"}},{"$f":"($A26-$A25)/365.25*(AP25+Main!$I32)*(1+Main!$I$2+VLOOKUP('Random Years'!AN26,'Hist Returns'!$A$12:$D$107,2,FALSE))","v":{"v":35514471.79779782,"d":"35,514,472"}},{"$f":"($A26-$A25)/365.25*(AQ25+Main!$I32)*(1+Main!$I$2+VLOOKUP('Random Years'!AO26,'Hist Returns'!$A$12:$D$107,2,FALSE))","v":{"v":-587447.0280553065,"d":"(587,447)"}},{"$f":"($A26-$A25)/365.25*(AR25+Main!$I32)*(1+Main!$I$2+VLOOKUP('Random Years'!AP26,'Hist Returns'!$A$12:$D$107,2,FALSE))","v":{"v":4473434.584381246,"d":"4,473,435"}},{"$f":"($A26-$A25)/365.25*(AS25+Main!$I32)*(1+Main!$I$2+VLOOKUP('Random Years'!AQ26,'Hist Returns'!$A$12:$D$107,2,FALSE))","v":{"v":2115276.2998775686,"d":"2,115,276"}},{"$f":"($A26-$A25)/365.25*(AT25+Main!$I32)*(1+Main!$I$2+VLOOKUP('Random Years'!AR26,'Hist Returns'!$A$12:$D$107,2,FALSE))","v":{"v":-1440349.9070027128,"d":"(1,440,350)"}},{"$f":"($A26-$A25)/365.25*(AU25+Main!$I32)*(1+Main!$I$2+VLOOKUP('Random Years'!AS26,'Hist Returns'!$A$12:$D$107,2,FALSE))","v":{"v":4820141.525501606,"d":"4,820,142"}},{"$f":"($A26-$A25)/365.25*(AV25+Main!$I32)*(1+Main!$I$2+VLOOKUP('Random Years'!AT26,'Hist Returns'!$A$12:$D$107,2,FALSE))","v":{"v":6759425.696832199,"d":"6,759,426"}},{"$f":"($A26-$A25)/365.25*(AW25+Main!$I32)*(1+Main!$I$2+VLOOKUP('Random Years'!AU26,'Hist Returns'!$A$12:$D$107,2,FALSE))","v":{"v":-263442.68960328295,"d":"(263,443)"}},{"$f":"($A26-$A25)/365.25*(AX25+Main!$I32)*(1+Main!$I$2+VLOOKUP('Random Years'!AV26,'Hist Returns'!$A$12:$D$107,2,FALSE))","v":{"v":3852516.9456164683,"d":"3,852,517"}},{"$f":"($A26-$A25)/365.25*(AY25+Main!$I32)*(1+Main!$I$2+VLOOKUP('Random Years'!AW26,'Hist Returns'!$A$12:$D$107,2,FALSE))","v":{"v":5670558.682728995,"d":"5,670,559"}},{"$f":"($A26-$A25)/365.25*(AZ25+Main!$I32)*(1+Main!$I$2+VLOOKUP('Random Years'!AX26,'Hist Returns'!$A$12:$D$107,2,FALSE))","v":{"v":-1269393.2419999386,"d":"(1,269,393)"}},{"$f":"($A26-$A25)/365.25*(BA25+Main!$I32)*(1+Main!$I$2+VLOOKUP('Random Years'!AY26,'Hist Returns'!$A$12:$D$107,2,FALSE))","v":{"v":-2353222.306225309,"d":"(2,353,222)"}},{"$f":"($A26-$A25)/365.25*(BB25+Main!$I32)*(1+Main!$I$2+VLOOKUP('Random Years'!AZ26,'Hist Returns'!$A$12:$D$107,2,FALSE))","v":{"v":-392207.0391166593,"d":"(392,207)"}},{"$f":"($A26-$A25)/365.25*(BC25+Main!$I32)*(1+Main!$I$2+VLOOKUP('Random Years'!BA26,'Hist Returns'!$A$12:$D$107,2,FALSE))","v":{"v":1177928.080841897,"d":"1,177,928"}},{"$f":"($A26-$A25)/365.25*(BD25+Main!$I32)*(1+Main!$I$2+VLOOKUP('Random Years'!BB26,'Hist Returns'!$A$12:$D$107,2,FALSE))","v":{"v":4789199.096723452,"d":"4,789,199"}},{"$f":"($A26-$A25)/365.25*(BE25+Main!$I32)*(1+Main!$I$2+VLOOKUP('Random Years'!BC26,'Hist Returns'!$A$12:$D$107,2,FALSE))","v":{"v":2489796.0011637155,"d":"2,489,796"}},{"$f":"($A26-$A25)/365.25*(BF25+Main!$I32)*(1+Main!$I$2+VLOOKUP('Random Years'!BD26,'Hist Returns'!$A$12:$D$107,2,FALSE))","v":{"v":-1168962.1828340567,"d":"(1,168,962)"}},{"$f":"($A26-$A25)/365.25*(BG25+Main!$I32)*(1+Main!$I$2+VLOOKUP('Random Years'!BE26,'Hist Returns'!$A$12:$D$107,2,FALSE))","v":{"v":-938600.4079129539,"d":"(938,600)"}},{"$f":"($A26-$A25)/365.25*(BH25+Main!$I32)*(1+Main!$I$2+VLOOKUP('Random Years'!BF26,'Hist Returns'!$A$12:$D$107,2,FALSE))","v":{"v":214743.10553981422,"d":"214,743"}},{"$f":"($A26-$A25)/365.25*(BI25+Main!$I32)*(1+Main!$I$2+VLOOKUP('Random Years'!BG26,'Hist Returns'!$A$12:$D$107,2,FALSE))","v":{"v":5901297.842503658,"d":"5,901,298"}},{"$f":"($A26-$A25)/365.25*(BJ25+Main!$I32)*(1+Main!$I$2+VLOOKUP('Random Years'!BH26,'Hist Returns'!$A$12:$D$107,2,FALSE))","v":{"v":-159800.1093741025,"d":"(159,800)"}},{"$f":"($A26-$A25)/365.25*(BK25+Main!$I32)*(1+Main!$I$2+VLOOKUP('Random Years'!BI26,'Hist Returns'!$A$12:$D$107,2,FALSE))","v":{"v":1660390.994785627,"d":"1,660,391"}},{"$f":"($A26-$A25)/365.25*(BL25+Main!$I32)*(1+Main!$I$2+VLOOKUP('Random Years'!BJ26,'Hist Returns'!$A$12:$D$107,2,FALSE))","v":{"v":4222508.46433699,"d":"4,222,508"}},{"$f":"($A26-$A25)/365.25*(BM25+Main!$I32)*(1+Main!$I$2+VLOOKUP('Random Years'!BK26,'Hist Returns'!$A$12:$D$107,2,FALSE))","v":{"v":-483225.99003948976,"d":"(483,226)"}},{"$f":"($A26-$A25)/365.25*(BN25+Main!$I32)*(1+Main!$I$2+VLOOKUP('Random Years'!BL26,'Hist Returns'!$A$12:$D$107,2,FALSE))","v":{"v":10514500.587602476,"d":"10,514,501"}},{"$f":"($A26-$A25)/365.25*(BO25+Main!$I32)*(1+Main!$I$2+VLOOKUP('Random Years'!BM26,'Hist Returns'!$A$12:$D$107,2,FALSE))","v":{"v":8510339.222197933,"d":"8,510,339"}},{"$f":"($A26-$A25)/365.25*(BP25+Main!$I32)*(1+Main!$I$2+VLOOKUP('Random Years'!BN26,'Hist Returns'!$A$12:$D$107,2,FALSE))","v":{"v":3672112.2954980223,"d":"3,672,112"}},{"$f":"($A26-$A25)/365.25*(BQ25+Main!$I32)*(1+Main!$I$2+VLOOKUP('Random Years'!BO26,'Hist Returns'!$A$12:$D$107,2,FALSE))","v":{"v":1903116.8173145722,"d":"1,903,117"}},{"$f":"($A26-$A25)/365.25*(BR25+Main!$I32)*(1+Main!$I$2+VLOOKUP('Random Years'!BP26,'Hist Returns'!$A$12:$D$107,2,FALSE))","v":{"v":7001291.463059348,"d":"7,001,291"}},{"$f":"($A26-$A25)/365.25*(BS25+Main!$I32)*(1+Main!$I$2+VLOOKUP('Random Years'!BQ26,'Hist Returns'!$A$12:$D$107,2,FALSE))","v":{"v":9200009.791861515,"d":"9,200,010"}},{"$f":"($A26-$A25)/365.25*(BT25+Main!$I32)*(1+Main!$I$2+VLOOKUP('Random Years'!BR26,'Hist Returns'!$A$12:$D$107,2,FALSE))","v":{"v":-881122.5542876075,"d":"(881,123)"}},{"$f":"($A26-$A25)/365.25*(BU25+Main!$I32)*(1+Main!$I$2+VLOOKUP('Random Years'!BS26,'Hist Returns'!$A$12:$D$107,2,FALSE))","v":{"v":-531114.656840706,"d":"(531,115)"}},{"$f":"($A26-$A25)/365.25*(BV25+Main!$I32)*(1+Main!$I$2+VLOOKUP('Random Years'!BT26,'Hist Returns'!$A$12:$D$107,2,FALSE))","v":{"v":433229.13373907714,"d":"433,229"}},{"$f":"($A26-$A25)/365.25*(BW25+Main!$I32)*(1+Main!$I$2+VLOOKUP('Random Years'!BU26,'Hist Returns'!$A$12:$D$107,2,FALSE))","v":{"v":-2025404.736310362,"d":"(2,025,405)"}},{"$f":"($A26-$A25)/365.25*(BX25+Main!$I32)*(1+Main!$I$2+VLOOKUP('Random Years'!BV26,'Hist Returns'!$A$12:$D$107,2,FALSE))","v":{"v":4468266.243096581,"d":"4,468,266"}},{"$f":"($A26-$A25)/365.25*(BY25+Main!$I32)*(1+Main!$I$2+VLOOKUP('Random Years'!BW26,'Hist Returns'!$A$12:$D$107,2,FALSE))","v":{"v":11212559.35563463,"d":"11,212,559"}},{"$f":"($A26-$A25)/365.25*(BZ25+Main!$I32)*(1+Main!$I$2+VLOOKUP('Random Years'!BX26,'Hist Returns'!$A$12:$D$107,2,FALSE))","v":{"v":-189871.38299231432,"d":"(189,871)"}},{"$f":"($A26-$A25)/365.25*(CA25+Main!$I32)*(1+Main!$I$2+VLOOKUP('Random Years'!BY26,'Hist Returns'!$A$12:$D$107,2,FALSE))","v":{"v":-410157.5402504469,"d":"(410,158)"}},{"$f":"($A26-$A25)/365.25*(CB25+Main!$I32)*(1+Main!$I$2+VLOOKUP('Random Years'!BZ26,'Hist Returns'!$A$12:$D$107,2,FALSE))","v":{"v":-826629.6348911878,"d":"(826,630)"}},{"$f":"($A26-$A25)/365.25*(CC25+Main!$I32)*(1+Main!$I$2+VLOOKUP('Random Years'!CA26,'Hist Returns'!$A$12:$D$107,2,FALSE))","v":{"v":1731090.84441908,"d":"1,731,091"}},{"$f":"($A26-$A25)/365.25*(CD25+Main!$I32)*(1+Main!$I$2+VLOOKUP('Random Years'!CB26,'Hist Returns'!$A$12:$D$107,2,FALSE))","v":{"v":8143822.762675156,"d":"8,143,823"}},{"$f":"($A26-$A25)/365.25*(CE25+Main!$I32)*(1+Main!$I$2+VLOOKUP('Random Years'!CC26,'Hist Returns'!$A$12:$D$107,2,FALSE))","v":{"v":21566147.97854602,"d":"21,566,148"}},{"$f":"($A26-$A25)/365.25*(CF25+Main!$I32)*(1+Main!$I$2+VLOOKUP('Random Years'!CD26,'Hist Returns'!$A$12:$D$107,2,FALSE))","v":{"v":-319549.44774521387,"d":"(319,549)"}},{"$f":"($A26-$A25)/365.25*(CG25+Main!$I32)*(1+Main!$I$2+VLOOKUP('Random Years'!CE26,'Hist Returns'!$A$12:$D$107,2,FALSE))","v":{"v":1004094.0469513815,"d":"1,004,094"}},{"$f":"($A26-$A25)/365.25*(CH25+Main!$I32)*(1+Main!$I$2+VLOOKUP('Random Years'!CF26,'Hist Returns'!$A$12:$D$107,2,FALSE))","v":{"v":5095071.576633202,"d":"5,095,072"}},{"$f":"($A26-$A25)/365.25*(CI25+Main!$I32)*(1+Main!$I$2+VLOOKUP('Random Years'!CG26,'Hist Returns'!$A$12:$D$107,2,FALSE))","v":{"v":-790529.2458982476,"d":"(790,529)"}},{"$f":"($A26-$A25)/365.25*(CJ25+Main!$I32)*(1+Main!$I$2+VLOOKUP('Random Years'!CH26,'Hist Returns'!$A$12:$D$107,2,FALSE))","v":{"v":15756745.707335522,"d":"15,756,746"}},{"$f":"($A26-$A25)/365.25*(CK25+Main!$I32)*(1+Main!$I$2+VLOOKUP('Random Years'!CI26,'Hist Returns'!$A$12:$D$107,2,FALSE))","v":{"v":9341788.50853115,"d":"9,341,789"}},{"$f":"($A26-$A25)/365.25*(CL25+Main!$I32)*(1+Main!$I$2+VLOOKUP('Random Years'!CJ26,'Hist Returns'!$A$12:$D$107,2,FALSE))","v":{"v":19072783.854830015,"d":"19,072,784"}},{"$f":"($A26-$A25)/365.25*(CM25+Main!$I32)*(1+Main!$I$2+VLOOKUP('Random Years'!CK26,'Hist Returns'!$A$12:$D$107,2,FALSE))","v":{"v":12067416.794853568,"d":"12,067,417"}},{"$f":"($A26-$A25)/365.25*(CN25+Main!$I32)*(1+Main!$I$2+VLOOKUP('Random Years'!CL26,'Hist Returns'!$A$12:$D$107,2,FALSE))","v":{"v":19869008.764978394,"d":"19,869,009"}},{"$f":"($A26-$A25)/365.25*(CO25+Main!$I32)*(1+Main!$I$2+VLOOKUP('Random Years'!CM26,'Hist Returns'!$A$12:$D$107,2,FALSE))","v":{"v":11792136.760251295,"d":"11,792,137"}},{"$f":"($A26-$A25)/365.25*(CP25+Main!$I32)*(1+Main!$I$2+VLOOKUP('Random Years'!CN26,'Hist Returns'!$A$12:$D$107,2,FALSE))","v":{"v":-2100542.2140904437,"d":"(2,100,542)"}},{"$f":"($A26-$A25)/365.25*(CQ25+Main!$I32)*(1+Main!$I$2+VLOOKUP('Random Years'!CO26,'Hist Returns'!$A$12:$D$107,2,FALSE))","v":{"v":625100.732169567,"d":"625,101"}},{"$f":"($A26-$A25)/365.25*(CR25+Main!$I32)*(1+Main!$I$2+VLOOKUP('Random Years'!CP26,'Hist Returns'!$A$12:$D$107,2,FALSE))","v":{"v":21309675.85805753,"d":"21,309,676"}},{"$f":"($A26-$A25)/365.25*(CS25+Main!$I32)*(1+Main!$I$2+VLOOKUP('Random Years'!CQ26,'Hist Returns'!$A$12:$D$107,2,FALSE))","v":{"v":6165339.414322271,"d":"6,165,339"}},{"$f":"($A26-$A25)/365.25*(CT25+Main!$I32)*(1+Main!$I$2+VLOOKUP('Random Years'!CR26,'Hist Returns'!$A$12:$D$107,2,FALSE))","v":{"v":6562842.23723087,"d":"6,562,842"}},{"$f":"($A26-$A25)/365.25*(CU25+Main!$I32)*(1+Main!$I$2+VLOOKUP('Random Years'!CS26,'Hist Returns'!$A$12:$D$107,2,FALSE))","v":{"v":20208756.51317052,"d":"20,208,757"}},{"$f":"($A26-$A25)/365.25*(CV25+Main!$I32)*(1+Main!$I$2+VLOOKUP('Random Years'!CT26,'Hist Returns'!$A$12:$D$107,2,FALSE))","v":{"v":10751455.047996264,"d":"10,751,455"}},{"$f":"($A26-$A25)/365.25*(CW25+Main!$I32)*(1+Main!$I$2+VLOOKUP('Random Years'!CU26,'Hist Returns'!$A$12:$D$107,2,FALSE))","v":{"v":-915713.0690316829,"d":"(915,713)"}},{"$f":"($A26-$A25)/365.25*(CX25+Main!$I32)*(1+Main!$I$2+VLOOKUP('Random Years'!CV26,'Hist Returns'!$A$12:$D$107,2,FALSE))","v":{"v":7272138.719873944,"d":"7,272,139"}}]
[{"$f":"Main!A33","v":"2048-12-30"},{"$f":"Main!B33","v":94},{"$f":"($A27-$A26)/365.25*(C26+Main!$I33)*(1+Main!$I$2+VLOOKUP('Random Years'!A27,'Hist Returns'!$A$12:$D$107,2,FALSE))","v":{"v":1783554.6355255304,"d":"1,783,555"}},{"$f":"($A27-$A26)/365.25*(D26+Main!$I33)*(1+Main!$I$2+VLOOKUP('Random Years'!B27,'Hist Returns'!$A$12:$D$107,2,FALSE))","v":{"v":1308117.4261800523,"d":"1,308,117"}},{"$f":"($A27-$A26)/365.25*(E26+Main!$I33)*(1+Main!$I$2+VLOOKUP('Random Years'!C27,'Hist Returns'!$A$12:$D$107,2,FALSE))","v":{"v":4508619.092338197,"d":"4,508,619"}},{"$f":"($A27-$A26)/365.25*(F26+Main!$I33)*(1+Main!$I$2+VLOOKUP('Random Years'!D27,'Hist Returns'!$A$12:$D$107,2,FALSE))","v":{"v":8509831.483826132,"d":"8,509,831"}},{"$f":"($A27-$A26)/365.25*(G26+Main!$I33)*(1+Main!$I$2+VLOOKUP('Random Years'!E27,'Hist Returns'!$A$12:$D$107,2,FALSE))","v":{"v":11739020.702155618,"d":"11,739,021"}},{"$f":"($A27-$A26)/365.25*(H26+Main!$I33)*(1+Main!$I$2+VLOOKUP('Random Years'!F27,'Hist Returns'!$A$12:$D$107,2,FALSE))","v":{"v":4500710.832134774,"d":"4,500,711"}},{"$f":"($A27-$A26)/365.25*(I26+Main!$I33)*(1+Main!$I$2+VLOOKUP('Random Years'!G27,'Hist Returns'!$A$12:$D$107,2,FALSE))","v":{"v":547129.1112739078,"d":"547,129"}},{"$f":"($A27-$A26)/365.25*(J26+Main!$I33)*(1+Main!$I$2+VLOOKUP('Random Years'!H27,'Hist Returns'!$A$12:$D$107,2,FALSE))","v":{"v":863683.8590818048,"d":"863,684"}},{"$f":"($A27-$A26)/365.25*(K26+Main!$I33)*(1+Main!$I$2+VLOOKUP('Random Years'!I27,'Hist Returns'!$A$12:$D$107,2,FALSE))","v":{"v":3358545.562700947,"d":"3,358,546"}},{"$f":"($A27-$A26)/365.25*(L26+Main!$I33)*(1+Main!$I$2+VLOOKUP('Random Years'!J27,'Hist Returns'!$A$12:$D$107,2,FALSE))","v":{"v":7360119.4577812115,"d":"7,360,119"}},{"$f":"($A27-$A26)/365.25*(M26+Main!$I33)*(1+Main!$I$2+VLOOKUP('Random Years'!K27,'Hist Returns'!$A$12:$D$107,2,FALSE))","v":{"v":2297870.184504681,"d":"2,297,870"}},{"$f":"($A27-$A26)/365.25*(N26+Main!$I33)*(1+Main!$I$2+VLOOKUP('Random Years'!L27,'Hist Returns'!$A$12:$D$107,2,FALSE))","v":{"v":-2400711.0664387327,"d":"(2,400,711)"}},{"$f":"($A27-$A26)/365.25*(O26+Main!$I33)*(1+Main!$I$2+VLOOKUP('Random Years'!M27,'Hist Returns'!$A$12:$D$107,2,FALSE))","v":{"v":2036961.652729406,"d":"2,036,962"}},{"$f":"($A27-$A26)/365.25*(P26+Main!$I33)*(1+Main!$I$2+VLOOKUP('Random Years'!N27,'Hist Returns'!$A$12:$D$107,2,FALSE))","v":{"v":685226.4963260568,"d":"685,226"}},{"$f":"($A27-$A26)/365.25*(Q26+Main!$I33)*(1+Main!$I$2+VLOOKUP('Random Years'!O27,'Hist Returns'!$A$12:$D$107,2,FALSE))","v":{"v":-542895.6755778359,"d":"(542,896)"}},{"$f":"($A27-$A26)/365.25*(R26+Main!$I33)*(1+Main!$I$2+VLOOKUP('Random Years'!P27,'Hist Returns'!$A$12:$D$107,2,FALSE))","v":{"v":345146.0619661457,"d":"345,146"}},{"$f":"($A27-$A26)/365.25*(S26+Main!$I33)*(1+Main!$I$2+VLOOKUP('Random Years'!Q27,'Hist Returns'!$A$12:$D$107,2,FALSE))","v":{"v":-1140077.768746513,"d":"(1,140,078)"}},{"$f":"($A27-$A26)/365.25*(T26+Main!$I33)*(1+Main!$I$2+VLOOKUP('Random Years'!R27,'Hist Returns'!$A$12:$D$107,2,FALSE))","v":{"v":-1833211.64512196,"d":"(1,833,212)"}},{"$f":"($A27-$A26)/365.25*(U26+Main!$I33)*(1+Main!$I$2+VLOOKUP('Random Years'!S27,'Hist Returns'!$A$12:$D$107,2,FALSE))","v":{"v":-108280.01842902339,"d":"(108,280)"}},{"$f":"($A27-$A26)/365.25*(V26+Main!$I33)*(1+Main!$I$2+VLOOKUP('Random Years'!T27,'Hist Returns'!$A$12:$D$107,2,FALSE))","v":{"v":5453715.338184719,"d":"5,453,715"}},{"$f":"($A27-$A26)/365.25*(W26+Main!$I33)*(1+Main!$I$2+VLOOKUP('Random Years'!U27,'Hist Returns'!$A$12:$D$107,2,FALSE))","v":{"v":4033030.33578984,"d":"4,033,030"}},{"$f":"($A27-$A26)/365.25*(X26+Main!$I33)*(1+Main!$I$2+VLOOKUP('Random Years'!V27,'Hist Returns'!$A$12:$D$107,2,FALSE))","v":{"v":1173966.2966270852,"d":"1,173,966"}},{"$f":"($A27-$A26)/365.25*(Y26+Main!$I33)*(1+Main!$I$2+VLOOKUP('Random Years'!W27,'Hist Returns'!$A$12:$D$107,2,FALSE))","v":{"v":1028576.2499107233,"d":"1,028,576"}},{"$f":"($A27-$A26)/365.25*(Z26+Main!$I33)*(1+Main!$I$2+VLOOKUP('Random Years'!X27,'Hist Returns'!$A$12:$D$107,2,FALSE))","v":{"v":-943363.4543076237,"d":"(943,363)"}},{"$f":"($A27-$A26)/365.25*(AA26+Main!$I33)*(1+Main!$I$2+VLOOKUP('Random Years'!Y27,'Hist Returns'!$A$12:$D$107,2,FALSE))","v":{"v":5262940.706428586,"d":"5,262,941"}},{"$f":"($A27-$A26)/365.25*(AB26+Main!$I33)*(1+Main!$I$2+VLOOKUP('Random Years'!Z27,'Hist Returns'!$A$12:$D$107,2,FALSE))","v":{"v":760313.2107040246,"d":"760,313"}},{"$f":"($A27-$A26)/365.25*(AC26+Main!$I33)*(1+Main!$I$2+VLOOKUP('Random Years'!AA27,'Hist Returns'!$A$12:$D$107,2,FALSE))","v":{"v":-133068.69248629516,"d":"(133,069)"}},{"$f":"($A27-$A26)/365.25*(AD26+Main!$I33)*(1+Main!$I$2+VLOOKUP('Random Years'!AB27,'Hist Returns'!$A$12:$D$107,2,FALSE))","v":{"v":-69518.92954926331,"d":"(69,519)"}},{"$f":"($A27-$A26)/365.25*(AE26+Main!$I33)*(1+Main!$I$2+VLOOKUP('Random Years'!AC27,'Hist Returns'!$A$12:$D$107,2,FALSE))","v":{"v":-977832.0371010201,"d":"(977,832)"}},{"$f":"($A27-$A26)/365.25*(AF26+Main!$I33)*(1+Main!$I$2+VLOOKUP('Random Years'!AD27,'Hist Returns'!$A$12:$D$107,2,FALSE))","v":{"v":30554105.65244075,"d":"30,554,106"}},{"$f":"($A27-$A26)/365.25*(AG26+Main!$I33)*(1+Main!$I$2+VLOOKUP('Random Years'!AE27,'Hist Returns'!$A$12:$D$107,2,FALSE))","v":{"v":26613562.638447754,"d":"26,613,563"}},{"$f":"($A27-$A26)/365.25*(AH26+Main!$I33)*(1+Main!$I$2+VLOOKUP('Random Years'!AF27,'Hist Returns'!$A$12:$D$107,2,FALSE))","v":{"v":2669766.256931029,"d":"2,669,766"}},{"$f":"($A27-$A26)/365.25*(AI26+Main!$I33)*(1+Main!$I$2+VLOOKUP('Random Years'!AG27,'Hist Returns'!$A$12:$D$107,2,FALSE))","v":{"v":3907040.886054529,"d":"3,907,041"}},{"$f":"($A27-$A26)/365.25*(AJ26+Main!$I33)*(1+Main!$I$2+VLOOKUP('Random Years'!AH27,'Hist Returns'!$A$12:$D$107,2,FALSE))","v":{"v":5660416.255768771,"d":"5,660,416"}},{"$f":"($A27-$A26)/365.25*(AK26+Main!$I33)*(1+Main!$I$2+VLOOKUP('Random Years'!AI27,'Hist Returns'!$A$12:$D$107,2,FALSE))","v":{"v":-709611.9258071593,"d":"(709,612)"}},{"$f":"($A27-$A26)/365.25*(AL26+Main!$I33)*(1+Main!$I$2+VLOOKUP('Random Years'!AJ27,'Hist Returns'!$A$12:$D$107,2,FALSE))","v":{"v":4203272.796328012,"d":"4,203,273"}},{"$f":"($A27-$A26)/365.25*(AM26+Main!$I33)*(1+Main!$I$2+VLOOKUP('Random Years'!AK27,'Hist Returns'!$A$12:$D$107,2,FALSE))","v":{"v":-1739373.1810076113,"d":"(1,739,373)"}},{"$f":"($A27-$A26)/365.25*(AN26+Main!$I33)*(1+Main!$I$2+VLOOKUP('Random Years'!AL27,'Hist Returns'!$A$12:$D$107,2,FALSE))","v":{"v":7645552.775784163,"d":"7,645,553"}},{"$f":"($A27-$A26)/365.25*(AO26+Main!$I33)*(1+Main!$I$2+VLOOKUP('Random Years'!AM27,'Hist Returns'!$A$12:$D$107,2,FALSE))","v":{"v":3706195.743809317,"d":"3,706,196"}},{"$f":"($A27-$A26)/365.25*(AP26+Main!$I33)*(1+Main!$I$2+VLOOKUP('Random Years'!AN27,'Hist Returns'!$A$12:$D$107,2,FALSE))","v":{"v":46079061.90330609,"d":"46,079,062"}},{"$f":"($A27-$A26)/365.25*(AQ26+Main!$I33)*(1+Main!$I$2+VLOOKUP('Random Years'!AO27,'Hist Returns'!$A$12:$D$107,2,FALSE))","v":{"v":-776594.3330288808,"d":"(776,594)"}},{"$f":"($A27-$A26)/365.25*(AR26+Main!$I33)*(1+Main!$I$2+VLOOKUP('Random Years'!AP27,'Hist Returns'!$A$12:$D$107,2,FALSE))","v":{"v":4520364.948487394,"d":"4,520,365"}},{"$f":"($A27-$A26)/365.25*(AS26+Main!$I33)*(1+Main!$I$2+VLOOKUP('Random Years'!AQ27,'Hist Returns'!$A$12:$D$107,2,FALSE))","v":{"v":2203036.2355648577,"d":"2,203,036"}},{"$f":"($A27-$A26)/365.25*(AT26+Main!$I33)*(1+Main!$I$2+VLOOKUP('Random Years'!AR27,'Hist Returns'!$A$12:$D$107,2,FALSE))","v":{"v":-1907625.2357309991,"d":"(1,907,625)"}},{"$f":"($A27-$A26)/365.25*(AU26+Main!$I33)*(1+Main!$I$2+VLOOKUP('Random Years'!AS27,'Hist Returns'!$A$12:$D$107,2,FALSE))","v":{"v":4715996.082614771,"d":"4,715,996"}},{"$f":"($A27-$A26)/365.25*(AV26+Main!$I33)*(1+Main!$I$2+VLOOKUP('Random Years'!AT27,'Hist Returns'!$A$12:$D$107,2,FALSE))","v":{"v":7193862.059398534,"d":"7,193,862"}},{"$f":"($A27-$A26)/365.25*(AW26+Main!$I33)*(1+Main!$I$2+VLOOKUP('Random Years'!AU27,'Hist Returns'!$A$12:$D$107,2,FALSE))","v":{"v":-470108.1331144804,"d":"(470,108)"}},{"$f":"($A27-$A26)/365.25*(AX26+Main!$I33)*(1+Main!$I$2+VLOOKUP('Random Years'!AV27,'Hist Returns'!$A$12:$D$107,2,FALSE))","v":{"v":3211773.9685277166,"d":"3,211,774"}},{"$f":"($A27-$A26)/365.25*(AY26+Main!$I33)*(1+Main!$I$2+VLOOKUP('Random Years'!AW27,'Hist Returns'!$A$12:$D$107,2,FALSE))","v":{"v":4955269.707788709,"d":"4,955,270"}},{"$f":"($A27-$A26)/365.25*(AZ26+Main!$I33)*(1+Main!$I$2+VLOOKUP('Random Years'!AX27,'Hist Returns'!$A$12:$D$107,2,FALSE))","v":{"v":-2017576.698482546,"d":"(2,017,577)"}},{"$f":"($A27-$A26)/365.25*(BA26+Main!$I33)*(1+Main!$I$2+VLOOKUP('Random Years'!AY27,'Hist Returns'!$A$12:$D$107,2,FALSE))","v":{"v":-1690702.8651294648,"d":"(1,690,703)"}},{"$f":"($A27-$A26)/365.25*(BB26+Main!$I33)*(1+Main!$I$2+VLOOKUP('Random Years'!AZ27,'Hist Returns'!$A$12:$D$107,2,FALSE))","v":{"v":-736162.4649299785,"d":"(736,162)"}},{"$f":"($A27-$A26)/365.25*(BC26+Main!$I33)*(1+Main!$I$2+VLOOKUP('Random Years'!BA27,'Hist Returns'!$A$12:$D$107,2,FALSE))","v":{"v":713313.9699675611,"d":"713,314"}},{"$f":"($A27-$A26)/365.25*(BD26+Main!$I33)*(1+Main!$I$2+VLOOKUP('Random Years'!BB27,'Hist Returns'!$A$12:$D$107,2,FALSE))","v":{"v":5533195.089035157,"d":"5,533,195"}},{"$f":"($A27-$A26)/365.25*(BE26+Main!$I33)*(1+Main!$I$2+VLOOKUP('Random Years'!BC27,'Hist Returns'!$A$12:$D$107,2,FALSE))","v":{"v":2391818.422246836,"d":"2,391,818"}},{"$f":"($A27-$A26)/365.25*(BF26+Main!$I33)*(1+Main!$I$2+VLOOKUP('Random Years'!BD27,'Hist Returns'!$A$12:$D$107,2,FALSE))","v":{"v":-1060476.384920626,"d":"(1,060,476)"}},{"$f":"($A27-$A26)/365.25*(BG26+Main!$I33)*(1+Main!$I$2+VLOOKUP('Random Years'!BE27,'Hist Returns'!$A$12:$D$107,2,FALSE))","v":{"v":-1226173.5149930008,"d":"(1,226,174)"}},{"$f":"($A27-$A26)/365.25*(BH26+Main!$I33)*(1+Main!$I$2+VLOOKUP('Random Years'!BF27,'Hist Returns'!$A$12:$D$107,2,FALSE))","v":{"v":-31308.996568559098,"d":"(31,309)"}},{"$f":"($A27-$A26)/365.25*(BI26+Main!$I33)*(1+Main!$I$2+VLOOKUP('Random Years'!BG27,'Hist Returns'!$A$12:$D$107,2,FALSE))","v":{"v":5566170.78298517,"d":"5,566,171"}},{"$f":"($A27-$A26)/365.25*(BJ26+Main!$I33)*(1+Main!$I$2+VLOOKUP('Random Years'!BH27,'Hist Returns'!$A$12:$D$107,2,FALSE))","v":{"v":-377590.56224760355,"d":"(377,591)"}},{"$f":"($A27-$A26)/365.25*(BK26+Main!$I33)*(1+Main!$I$2+VLOOKUP('Random Years'!BI27,'Hist Returns'!$A$12:$D$107,2,FALSE))","v":{"v":1896388.146094496,"d":"1,896,388"}},{"$f":"($A27-$A26)/365.25*(BL26+Main!$I33)*(1+Main!$I$2+VLOOKUP('Random Years'!BJ27,'Hist Returns'!$A$12:$D$107,2,FALSE))","v":{"v":3542847.378858702,"d":"3,542,847"}},{"$f":"($A27-$A26)/365.25*(BM26+Main!$I33)*(1+Main!$I$2+VLOOKUP('Random Years'!BK27,'Hist Returns'!$A$12:$D$107,2,FALSE))","v":{"v":-667907.3954939866,"d":"(667,907)"}},{"$f":"($A27-$A26)/365.25*(BN26+Main!$I33)*(1+Main!$I$2+VLOOKUP('Random Years'!BL27,'Hist Returns'!$A$12:$D$107,2,FALSE))","v":{"v":15032513.05591695,"d":"15,032,513"}},{"$f":"($A27-$A26)/365.25*(BO26+Main!$I33)*(1+Main!$I$2+VLOOKUP('Random Years'!BM27,'Hist Returns'!$A$12:$D$107,2,FALSE))","v":{"v":10306927.342112923,"d":"10,306,927"}},{"$f":"($A27-$A26)/365.25*(BP26+Main!$I33)*(1+Main!$I$2+VLOOKUP('Random Years'!BN27,'Hist Returns'!$A$12:$D$107,2,FALSE))","v":{"v":4218407.288013277,"d":"4,218,407"}},{"$f":"($A27-$A26)/365.25*(BQ26+Main!$I33)*(1+Main!$I$2+VLOOKUP('Random Years'!BO27,'Hist Returns'!$A$12:$D$107,2,FALSE))","v":{"v":1500662.7344576856,"d":"1,500,663"}},{"$f":"($A27-$A26)/365.25*(BR26+Main!$I33)*(1+Main!$I$2+VLOOKUP('Random Years'!BP27,'Hist Returns'!$A$12:$D$107,2,FALSE))","v":{"v":8479829.707538178,"d":"8,479,830"}},{"$f":"($A27-$A26)/365.25*(BS26+Main!$I33)*(1+Main!$I$2+VLOOKUP('Random Years'!BQ27,'Hist Returns'!$A$12:$D$107,2,FALSE))","v":{"v":10565303.738082847,"d":"10,565,304"}},{"$f":"($A27-$A26)/365.25*(BT26+Main!$I33)*(1+Main!$I$2+VLOOKUP('Random Years'!BR27,'Hist Returns'!$A$12:$D$107,2,FALSE))","v":{"v":-1511124.1143306638,"d":"(1,511,124)"}},{"$f":"($A27-$A26)/365.25*(BU26+Main!$I33)*(1+Main!$I$2+VLOOKUP('Random Years'!BS27,'Hist Returns'!$A$12:$D$107,2,FALSE))","v":{"v":-1018844.4006629034,"d":"(1,018,844)"}},{"$f":"($A27-$A26)/365.25*(BV26+Main!$I33)*(1+Main!$I$2+VLOOKUP('Random Years'!BT27,'Hist Returns'!$A$12:$D$107,2,FALSE))","v":{"v":196446.50730672665,"d":"196,447"}},{"$f":"($A27-$A26)/365.25*(BW26+Main!$I33)*(1+Main!$I$2+VLOOKUP('Random Years'!BU27,'Hist Returns'!$A$12:$D$107,2,FALSE))","v":{"v":-2662459.963564201,"d":"(2,662,460)"}},{"$f":"($A27-$A26)/365.25*(BX26+Main!$I33)*(1+Main!$I$2+VLOOKUP('Random Years'!BV27,'Hist Returns'!$A$12:$D$107,2,FALSE))","v":{"v":2717275.615165776,"d":"2,717,276"}},{"$f":"($A27-$A26)/365.25*(BY26+Main!$I33)*(1+Main!$I$2+VLOOKUP('Random Years'!BW27,'Hist Returns'!$A$12:$D$107,2,FALSE))","v":{"v":10809669.944862252,"d":"10,809,670"}},{"$f":"($A27-$A26)/365.25*(BZ26+Main!$I33)*(1+Main!$I$2+VLOOKUP('Random Years'!BX27,'Hist Returns'!$A$12:$D$107,2,FALSE))","v":{"v":-536604.1756389561,"d":"(536,604)"}},{"$f":"($A27-$A26)/365.25*(CA26+Main!$I33)*(1+Main!$I$2+VLOOKUP('Random Years'!BY27,'Hist Returns'!$A$12:$D$107,2,FALSE))","v":{"v":-644413.9642467675,"d":"(644,414)"}},{"$f":"($A27-$A26)/365.25*(CB26+Main!$I33)*(1+Main!$I$2+VLOOKUP('Random Years'!BZ27,'Hist Returns'!$A$12:$D$107,2,FALSE))","v":{"v":-1170691.0543962948,"d":"(1,170,691)"}},{"$f":"($A27-$A26)/365.25*(CC26+Main!$I33)*(1+Main!$I$2+VLOOKUP('Random Years'!CA27,'Hist Returns'!$A$12:$D$107,2,FALSE))","v":{"v":1449168.2883329736,"d":"1,449,168"}},{"$f":"($A27-$A26)/365.25*(CD26+Main!$I33)*(1+Main!$I$2+VLOOKUP('Random Years'!CB27,'Hist Returns'!$A$12:$D$107,2,FALSE))","v":{"v":8040485.901610237,"d":"8,040,486"}},{"$f":"($A27-$A26)/365.25*(CE26+Main!$I33)*(1+Main!$I$2+VLOOKUP('Random Years'!CC27,'Hist Returns'!$A$12:$D$107,2,FALSE))","v":{"v":23575334.23510363,"d":"23,575,334"}},{"$f":"($A27-$A26)/365.25*(CF26+Main!$I33)*(1+Main!$I$2+VLOOKUP('Random Years'!CD27,'Hist Returns'!$A$12:$D$107,2,FALSE))","v":{"v":-534352.1237401819,"d":"(534,352)"}},{"$f":"($A27-$A26)/365.25*(CG26+Main!$I33)*(1+Main!$I$2+VLOOKUP('Random Years'!CE27,'Hist Returns'!$A$12:$D$107,2,FALSE))","v":{"v":829657.2054316399,"d":"829,657"}},{"$f":"($A27-$A26)/365.25*(CH26+Main!$I33)*(1+Main!$I$2+VLOOKUP('Random Years'!CF27,'Hist Returns'!$A$12:$D$107,2,FALSE))","v":{"v":5187791.557074346,"d":"5,187,792"}},{"$f":"($A27-$A26)/365.25*(CI26+Main!$I33)*(1+Main!$I$2+VLOOKUP('Random Years'!CG27,'Hist Returns'!$A$12:$D$107,2,FALSE))","v":{"v":-1157956.1271679804,"d":"(1,157,956)"}},{"$f":"($A27-$A26)/365.25*(CJ26+Main!$I33)*(1+Main!$I$2+VLOOKUP('Random Years'!CH27,'Hist Returns'!$A$12:$D$107,2,FALSE))","v":{"v":15807836.394754434,"d":"15,807,836"}},{"$f":"($A27-$A26)/365.25*(CK26+Main!$I33)*(1+Main!$I$2+VLOOKUP('Random Years'!CI27,'Hist Returns'!$A$12:$D$107,2,FALSE))","v":{"v":11032921.031631188,"d":"11,032,921"}},{"$f":"($A27-$A26)/365.25*(CL26+Main!$I33)*(1+Main!$I$2+VLOOKUP('Random Years'!CJ27,'Hist Returns'!$A$12:$D$107,2,FALSE))","v":{"v":17236973.264577046,"d":"17,236,973"}},{"$f":"($A27-$A26)/365.25*(CM26+Main!$I33)*(1+Main!$I$2+VLOOKUP('Random Years'!CK27,'Hist Returns'!$A$12:$D$107,2,FALSE))","v":{"v":12216220.186211579,"d":"12,216,220"}},{"$f":"($A27-$A26)/365.25*(CN26+Main!$I33)*(1+Main!$I$2+VLOOKUP('Random Years'!CL27,'Hist Returns'!$A$12:$D$107,2,FALSE))","v":{"v":23267019.229516868,"d":"23,267,019"}},{"$f":"($A27-$A26)/365.25*(CO26+Main!$I33)*(1+Main!$I$2+VLOOKUP('Random Years'!CM27,'Hist Returns'!$A$12:$D$107,2,FALSE))","v":{"v":11673810.83967092,"d":"11,673,811"}},{"$f":"($A27-$A26)/365.25*(CP26+Main!$I33)*(1+Main!$I$2+VLOOKUP('Random Years'!CN27,'Hist Returns'!$A$12:$D$107,2,FALSE))","v":{"v":-2855455.9764415044,"d":"(2,855,456)"}},{"$f":"($A27-$A26)/365.25*(CQ26+Main!$I33)*(1+Main!$I$2+VLOOKUP('Random Years'!CO27,'Hist Returns'!$A$12:$D$107,2,FALSE))","v":{"v":331648.02845697966,"d":"331,648"}},{"$f":"($A27-$A26)/365.25*(CR26+Main!$I33)*(1+Main!$I$2+VLOOKUP('Random Years'!CP27,'Hist Returns'!$A$12:$D$107,2,FALSE))","v":{"v":27391090.589605696,"d":"27,391,091"}},{"$f":"($A27-$A26)/365.25*(CS26+Main!$I33)*(1+Main!$I$2+VLOOKUP('Random Years'!CQ27,'Hist Returns'!$A$12:$D$107,2,FALSE))","v":{"v":6736883.184030018,"d":"6,736,883"}},{"$f":"($A27-$A26)/365.25*(CT26+Main!$I33)*(1+Main!$I$2+VLOOKUP('Random Years'!CR27,'Hist Returns'!$A$12:$D$107,2,FALSE))","v":{"v":6705116.844260064,"d":"6,705,117"}},{"$f":"($A27-$A26)/365.25*(CU26+Main!$I33)*(1+Main!$I$2+VLOOKUP('Random Years'!CS27,'Hist Returns'!$A$12:$D$107,2,FALSE))","v":{"v":19713144.13204197,"d":"19,713,144"}},{"$f":"($A27-$A26)/365.25*(CV26+Main!$I33)*(1+Main!$I$2+VLOOKUP('Random Years'!CT27,'Hist Returns'!$A$12:$D$107,2,FALSE))","v":{"v":11614596.001941966,"d":"11,614,596"}},{"$f":"($A27-$A26)/365.25*(CW26+Main!$I33)*(1+Main!$I$2+VLOOKUP('Random Years'!CU27,'Hist Returns'!$A$12:$D$107,2,FALSE))","v":{"v":-1523080.157003436,"d":"(1,523,080)"}},{"$f":"($A27-$A26)/365.25*(CX26+Main!$I33)*(1+Main!$I$2+VLOOKUP('Random Years'!CV27,'Hist Returns'!$A$12:$D$107,2,FALSE))","v":{"v":8568673.710745541,"d":"8,568,674"}}]
[{"$f":"Main!A34","v":"2049-12-30"},{"$f":"Main!B34","v":95},{"$f":"($A28-$A27)/365.25*(C27+Main!$I34)*(1+Main!$I$2+VLOOKUP('Random Years'!A28,'Hist Returns'!$A$12:$D$107,2,FALSE))","v":{"v":1446896.3798737067,"d":"1,446,896"}},{"$f":"($A28-$A27)/365.25*(D27+Main!$I34)*(1+Main!$I$2+VLOOKUP('Random Years'!B28,'Hist Returns'!$A$12:$D$107,2,FALSE))","v":{"v":946213.6780179937,"d":"946,214"}},{"$f":"($A28-$A27)/365.25*(E27+Main!$I34)*(1+Main!$I$2+VLOOKUP('Random Years'!C28,'Hist Returns'!$A$12:$D$107,2,FALSE))","v":{"v":5555901.818838615,"d":"5,555,902"}},{"$f":"($A28-$A27)/365.25*(F27+Main!$I34)*(1+Main!$I$2+VLOOKUP('Random Years'!D28,'Hist Returns'!$A$12:$D$107,2,FALSE))","v":{"v":9593935.519315807,"d":"9,593,936"}},{"$f":"($A28-$A27)/365.25*(G27+Main!$I34)*(1+Main!$I$2+VLOOKUP('Random Years'!E28,'Hist Returns'!$A$12:$D$107,2,FALSE))","v":{"v":13008811.347129805,"d":"13,008,811"}},{"$f":"($A28-$A27)/365.25*(H27+Main!$I34)*(1+Main!$I$2+VLOOKUP('Random Years'!F28,'Hist Returns'!$A$12:$D$107,2,FALSE))","v":{"v":4750141.460992406,"d":"4,750,141"}},{"$f":"($A28-$A27)/365.25*(I27+Main!$I34)*(1+Main!$I$2+VLOOKUP('Random Years'!G28,'Hist Returns'!$A$12:$D$107,2,FALSE))","v":{"v":340816.6474157977,"d":"340,817"}},{"$f":"($A28-$A27)/365.25*(J27+Main!$I34)*(1+Main!$I$2+VLOOKUP('Random Years'!H28,'Hist Returns'!$A$12:$D$107,2,FALSE))","v":{"v":584563.920770499,"d":"584,564"}},{"$f":"($A28-$A27)/365.25*(K27+Main!$I34)*(1+Main!$I$2+VLOOKUP('Random Years'!I28,'Hist Returns'!$A$12:$D$107,2,FALSE))","v":{"v":2309748.241554306,"d":"2,309,748"}},{"$f":"($A28-$A27)/365.25*(L27+Main!$I34)*(1+Main!$I$2+VLOOKUP('Random Years'!J28,'Hist Returns'!$A$12:$D$107,2,FALSE))","v":{"v":8441774.142757429,"d":"8,441,774"}},{"$f":"($A28-$A27)/365.25*(M27+Main!$I34)*(1+Main!$I$2+VLOOKUP('Random Years'!K28,'Hist Returns'!$A$12:$D$107,2,FALSE))","v":{"v":2357180.266335403,"d":"2,357,180"}},{"$f":"($A28-$A27)/365.25*(N27+Main!$I34)*(1+Main!$I$2+VLOOKUP('Random Years'!L28,'Hist Returns'!$A$12:$D$107,2,FALSE))","v":{"v":-2354109.6101932446,"d":"(2,354,110)"}},{"$f":"($A28-$A27)/365.25*(O27+Main!$I34)*(1+Main!$I$2+VLOOKUP('Random Years'!M28,'Hist Returns'!$A$12:$D$107,2,FALSE))","v":{"v":2090766.9477107609,"d":"2,090,767"}},{"$f":"($A28-$A27)/365.25*(P27+Main!$I34)*(1+Main!$I$2+VLOOKUP('Random Years'!N28,'Hist Returns'!$A$12:$D$107,2,FALSE))","v":{"v":437281.8710737785,"d":"437,282"}},{"$f":"($A28-$A27)/365.25*(Q27+Main!$I34)*(1+Main!$I$2+VLOOKUP('Random Years'!O28,'Hist Returns'!$A$12:$D$107,2,FALSE))","v":{"v":-961774.2874586985,"d":"(961,774)"}},{"$f":"($A28-$A27)/365.25*(R27+Main!$I34)*(1+Main!$I$2+VLOOKUP('Random Years'!P28,'Hist Returns'!$A$12:$D$107,2,FALSE))","v":{"v":99709.71285701523,"d":"99,710"}},{"$f":"($A28-$A27)/365.25*(S27+Main!$I34)*(1+Main!$I$2+VLOOKUP('Random Years'!Q28,'Hist Returns'!$A$12:$D$107,2,FALSE))","v":{"v":-1932720.1427724252,"d":"(1,932,720)"}},{"$f":"($A28-$A27)/365.25*(T27+Main!$I34)*(1+Main!$I$2+VLOOKUP('Random Years'!R28,'Hist Returns'!$A$12:$D$107,2,FALSE))","v":{"v":-2488454.078608181,"d":"(2,488,454)"}},{"$f":"($A28-$A27)/365.25*(U27+Main!$I34)*(1+Main!$I$2+VLOOKUP('Random Years'!S28,'Hist Returns'!$A$12:$D$107,2,FALSE))","v":{"v":-452506.57178315043,"d":"(452,507)"}},{"$f":"($A28-$A27)/365.25*(V27+Main!$I34)*(1+Main!$I$2+VLOOKUP('Random Years'!T28,'Hist Returns'!$A$12:$D$107,2,FALSE))","v":{"v":4040976.6534079253,"d":"4,040,977"}},{"$f":"($A28-$A27)/365.25*(W27+Main!$I34)*(1+Main!$I$2+VLOOKUP('Random Years'!U28,'Hist Returns'!$A$12:$D$107,2,FALSE))","v":{"v":3713358.929501142,"d":"3,713,359"}},{"$f":"($A28-$A27)/365.25*(X27+Main!$I34)*(1+Main!$I$2+VLOOKUP('Random Years'!V28,'Hist Returns'!$A$12:$D$107,2,FALSE))","v":{"v":914108.4654503634,"d":"914,108"}},{"$f":"($A28-$A27)/365.25*(Y27+Main!$I34)*(1+Main!$I$2+VLOOKUP('Random Years'!W28,'Hist Returns'!$A$12:$D$107,2,FALSE))","v":{"v":863940.1674866711,"d":"863,940"}},{"$f":"($A28-$A27)/365.25*(Z27+Main!$I34)*(1+Main!$I$2+VLOOKUP('Random Years'!X28,'Hist Returns'!$A$12:$D$107,2,FALSE))","v":{"v":-1230971.2033973488,"d":"(1,230,971)"}},{"$f":"($A28-$A27)/365.25*(AA27+Main!$I34)*(1+Main!$I$2+VLOOKUP('Random Years'!Y28,'Hist Returns'!$A$12:$D$107,2,FALSE))","v":{"v":5294400.940402833,"d":"5,294,401"}},{"$f":"($A28-$A27)/365.25*(AB27+Main!$I34)*(1+Main!$I$2+VLOOKUP('Random Years'!Z28,'Hist Returns'!$A$12:$D$107,2,FALSE))","v":{"v":309812.06504455284,"d":"309,812"}},{"$f":"($A28-$A27)/365.25*(AC27+Main!$I34)*(1+Main!$I$2+VLOOKUP('Random Years'!AA28,'Hist Returns'!$A$12:$D$107,2,FALSE))","v":{"v":-370911.78013634135,"d":"(370,912)"}},{"$f":"($A28-$A27)/365.25*(AD27+Main!$I34)*(1+Main!$I$2+VLOOKUP('Random Years'!AB28,'Hist Returns'!$A$12:$D$107,2,FALSE))","v":{"v":-405857.2626697433,"d":"(405,857)"}},{"$f":"($A28-$A27)/365.25*(AE27+Main!$I34)*(1+Main!$I$2+VLOOKUP('Random Years'!AC28,'Hist Returns'!$A$12:$D$107,2,FALSE))","v":{"v":-1189943.1589380607,"d":"(1,189,943)"}},{"$f":"($A28-$A27)/365.25*(AF27+Main!$I34)*(1+Main!$I$2+VLOOKUP('Random Years'!AD28,'Hist Returns'!$A$12:$D$107,2,FALSE))","v":{"v":37104447.69237659,"d":"37,104,448"}},{"$f":"($A28-$A27)/365.25*(AG27+Main!$I34)*(1+Main!$I$2+VLOOKUP('Random Years'!AE28,'Hist Returns'!$A$12:$D$107,2,FALSE))","v":{"v":34546143.06969109,"d":"34,546,143"}},{"$f":"($A28-$A27)/365.25*(AH27+Main!$I34)*(1+Main!$I$2+VLOOKUP('Random Years'!AF28,'Hist Returns'!$A$12:$D$107,2,FALSE))","v":{"v":2194442.024519233,"d":"2,194,442"}},{"$f":"($A28-$A27)/365.25*(AI27+Main!$I34)*(1+Main!$I$2+VLOOKUP('Random Years'!AG28,'Hist Returns'!$A$12:$D$107,2,FALSE))","v":{"v":2040308.491403635,"d":"2,040,308"}},{"$f":"($A28-$A27)/365.25*(AJ27+Main!$I34)*(1+Main!$I$2+VLOOKUP('Random Years'!AH28,'Hist Returns'!$A$12:$D$107,2,FALSE))","v":{"v":6734607.369661506,"d":"6,734,607"}},{"$f":"($A28-$A27)/365.25*(AK27+Main!$I34)*(1+Main!$I$2+VLOOKUP('Random Years'!AI28,'Hist Returns'!$A$12:$D$107,2,FALSE))","v":{"v":-1161985.6874268923,"d":"(1,161,986)"}},{"$f":"($A28-$A27)/365.25*(AL27+Main!$I34)*(1+Main!$I$2+VLOOKUP('Random Years'!AJ28,'Hist Returns'!$A$12:$D$107,2,FALSE))","v":{"v":4511204.211498226,"d":"4,511,204"}},{"$f":"($A28-$A27)/365.25*(AM27+Main!$I34)*(1+Main!$I$2+VLOOKUP('Random Years'!AK28,'Hist Returns'!$A$12:$D$107,2,FALSE))","v":{"v":-2329029.8249892746,"d":"(2,329,030)"}},{"$f":"($A28-$A27)/365.25*(AN27+Main!$I34)*(1+Main!$I$2+VLOOKUP('Random Years'!AL28,'Hist Returns'!$A$12:$D$107,2,FALSE))","v":{"v":5750183.338794251,"d":"5,750,183"}},{"$f":"($A28-$A27)/365.25*(AO27+Main!$I34)*(1+Main!$I$2+VLOOKUP('Random Years'!AM28,'Hist Returns'!$A$12:$D$107,2,FALSE))","v":{"v":4148980.732635497,"d":"4,148,981"}},{"$f":"($A28-$A27)/365.25*(AP27+Main!$I34)*(1+Main!$I$2+VLOOKUP('Random Years'!AN28,'Hist Returns'!$A$12:$D$107,2,FALSE))","v":{"v":48156378.537375666,"d":"48,156,379"}},{"$f":"($A28-$A27)/365.25*(AQ27+Main!$I34)*(1+Main!$I$2+VLOOKUP('Random Years'!AO28,'Hist Returns'!$A$12:$D$107,2,FALSE))","v":{"v":-858894.4947236466,"d":"(858,894)"}},{"$f":"($A28-$A27)/365.25*(AR27+Main!$I34)*(1+Main!$I$2+VLOOKUP('Random Years'!AP28,'Hist Returns'!$A$12:$D$107,2,FALSE))","v":{"v":3878838.412698216,"d":"3,878,838"}},{"$f":"($A28-$A27)/365.25*(AS27+Main!$I34)*(1+Main!$I$2+VLOOKUP('Random Years'!AQ28,'Hist Returns'!$A$12:$D$107,2,FALSE))","v":{"v":2073615.950677823,"d":"2,073,616"}},{"$f":"($A28-$A27)/365.25*(AT27+Main!$I34)*(1+Main!$I$2+VLOOKUP('Random Years'!AR28,'Hist Returns'!$A$12:$D$107,2,FALSE))","v":{"v":-1223115.3045719685,"d":"(1,223,115)"}},{"$f":"($A28-$A27)/365.25*(AU27+Main!$I34)*(1+Main!$I$2+VLOOKUP('Random Years'!AS28,'Hist Returns'!$A$12:$D$107,2,FALSE))","v":{"v":4684862.829903269,"d":"4,684,863"}},{"$f":"($A28-$A27)/365.25*(AV27+Main!$I34)*(1+Main!$I$2+VLOOKUP('Random Years'!AT28,'Hist Returns'!$A$12:$D$107,2,FALSE))","v":{"v":6347348.881002484,"d":"6,347,349"}},{"$f":"($A28-$A27)/365.25*(AW27+Main!$I34)*(1+Main!$I$2+VLOOKUP('Random Years'!AU28,'Hist Returns'!$A$12:$D$107,2,FALSE))","v":{"v":-821452.4478818048,"d":"(821,452)"}},{"$f":"($A28-$A27)/365.25*(AX27+Main!$I34)*(1+Main!$I$2+VLOOKUP('Random Years'!AV28,'Hist Returns'!$A$12:$D$107,2,FALSE))","v":{"v":2733009.1759927287,"d":"2,733,009"}},{"$f":"($A28-$A27)/365.25*(AY27+Main!$I34)*(1+Main!$I$2+VLOOKUP('Random Years'!AW28,'Hist Returns'!$A$12:$D$107,2,FALSE))","v":{"v":5927127.116528726,"d":"5,927,127"}},{"$f":"($A28-$A27)/365.25*(AZ27+Main!$I34)*(1+Main!$I$2+VLOOKUP('Random Years'!AX28,'Hist Returns'!$A$12:$D$107,2,FALSE))","v":{"v":-2533454.75673719,"d":"(2,533,455)"}},{"$f":"($A28-$A27)/365.25*(BA27+Main!$I34)*(1+Main!$I$2+VLOOKUP('Random Years'!AY28,'Hist Returns'!$A$12:$D$107,2,FALSE))","v":{"v":-2384824.295954721,"d":"(2,384,824)"}},{"$f":"($A28-$A27)/365.25*(BB27+Main!$I34)*(1+Main!$I$2+VLOOKUP('Random Years'!AZ28,'Hist Returns'!$A$12:$D$107,2,FALSE))","v":{"v":-1132035.5660598574,"d":"(1,132,036)"}},{"$f":"($A28-$A27)/365.25*(BC27+Main!$I34)*(1+Main!$I$2+VLOOKUP('Random Years'!BA28,'Hist Returns'!$A$12:$D$107,2,FALSE))","v":{"v":395177.1483766366,"d":"395,177"}},{"$f":"($A28-$A27)/365.25*(BD27+Main!$I34)*(1+Main!$I$2+VLOOKUP('Random Years'!BB28,'Hist Returns'!$A$12:$D$107,2,FALSE))","v":{"v":5275605.270515025,"d":"5,275,605"}},{"$f":"($A28-$A27)/365.25*(BE27+Main!$I34)*(1+Main!$I$2+VLOOKUP('Random Years'!BC28,'Hist Returns'!$A$12:$D$107,2,FALSE))","v":{"v":2739090.9484309847,"d":"2,739,091"}},{"$f":"($A28-$A27)/365.25*(BF27+Main!$I34)*(1+Main!$I$2+VLOOKUP('Random Years'!BD28,'Hist Returns'!$A$12:$D$107,2,FALSE))","v":{"v":-1408629.536471158,"d":"(1,408,630)"}},{"$f":"($A28-$A27)/365.25*(BG27+Main!$I34)*(1+Main!$I$2+VLOOKUP('Random Years'!BE28,'Hist Returns'!$A$12:$D$107,2,FALSE))","v":{"v":-1305664.3505515067,"d":"(1,305,664)"}},{"$f":"($A28-$A27)/365.25*(BH27+Main!$I34)*(1+Main!$I$2+VLOOKUP('Random Years'!BF28,'Hist Returns'!$A$12:$D$107,2,FALSE))","v":{"v":-271121.5435350133,"d":"(271,122)"}},{"$f":"($A28-$A27)/365.25*(BI27+Main!$I34)*(1+Main!$I$2+VLOOKUP('Random Years'!BG28,'Hist Returns'!$A$12:$D$107,2,FALSE))","v":{"v":5859249.297396302,"d":"5,859,249"}},{"$f":"($A28-$A27)/365.25*(BJ27+Main!$I34)*(1+Main!$I$2+VLOOKUP('Random Years'!BH28,'Hist Returns'!$A$12:$D$107,2,FALSE))","v":{"v":-765683.5681914194,"d":"(765,684)"}},{"$f":"($A28-$A27)/365.25*(BK27+Main!$I34)*(1+Main!$I$2+VLOOKUP('Random Years'!BI28,'Hist Returns'!$A$12:$D$107,2,FALSE))","v":{"v":1203053.3162779855,"d":"1,203,053"}},{"$f":"($A28-$A27)/365.25*(BL27+Main!$I34)*(1+Main!$I$2+VLOOKUP('Random Years'!BJ28,'Hist Returns'!$A$12:$D$107,2,FALSE))","v":{"v":3040763.85113512,"d":"3,040,764"}},{"$f":"($A28-$A27)/365.25*(BM27+Main!$I34)*(1+Main!$I$2+VLOOKUP('Random Years'!BK28,'Hist Returns'!$A$12:$D$107,2,FALSE))","v":{"v":-1118979.087482539,"d":"(1,118,979)"}},{"$f":"($A28-$A27)/365.25*(BN27+Main!$I34)*(1+Main!$I$2+VLOOKUP('Random Years'!BL28,'Hist Returns'!$A$12:$D$107,2,FALSE))","v":{"v":15559764.882793313,"d":"15,559,765"}},{"$f":"($A28-$A27)/365.25*(BO27+Main!$I34)*(1+Main!$I$2+VLOOKUP('Random Years'!BM28,'Hist Returns'!$A$12:$D$107,2,FALSE))","v":{"v":12268429.189560233,"d":"12,268,429"}},{"$f":"($A28-$A27)/365.25*(BP27+Main!$I34)*(1+Main!$I$2+VLOOKUP('Random Years'!BN28,'Hist Returns'!$A$12:$D$107,2,FALSE))","v":{"v":5671944.55675564,"d":"5,671,945"}},{"$f":"($A28-$A27)/365.25*(BQ27+Main!$I34)*(1+Main!$I$2+VLOOKUP('Random Years'!BO28,'Hist Returns'!$A$12:$D$107,2,FALSE))","v":{"v":1449326.0173973492,"d":"1,449,326"}},{"$f":"($A28-$A27)/365.25*(BR27+Main!$I34)*(1+Main!$I$2+VLOOKUP('Random Years'!BP28,'Hist Returns'!$A$12:$D$107,2,FALSE))","v":{"v":10157272.739475219,"d":"10,157,273"}},{"$f":"($A28-$A27)/365.25*(BS27+Main!$I34)*(1+Main!$I$2+VLOOKUP('Random Years'!BQ28,'Hist Returns'!$A$12:$D$107,2,FALSE))","v":{"v":14112686.898581428,"d":"14,112,687"}},{"$f":"($A28-$A27)/365.25*(BT27+Main!$I34)*(1+Main!$I$2+VLOOKUP('Random Years'!BR28,'Hist Returns'!$A$12:$D$107,2,FALSE))","v":{"v":-1633751.9397800833,"d":"(1,633,752)"}},{"$f":"($A28-$A27)/365.25*(BU27+Main!$I34)*(1+Main!$I$2+VLOOKUP('Random Years'!BS28,'Hist Returns'!$A$12:$D$107,2,FALSE))","v":{"v":-1700494.015273613,"d":"(1,700,494)"}},{"$f":"($A28-$A27)/365.25*(BV27+Main!$I34)*(1+Main!$I$2+VLOOKUP('Random Years'!BT28,'Hist Returns'!$A$12:$D$107,2,FALSE))","v":{"v":-80079.2518778996,"d":"(80,079)"}},{"$f":"($A28-$A27)/365.25*(BW27+Main!$I34)*(1+Main!$I$2+VLOOKUP('Random Years'!BU28,'Hist Returns'!$A$12:$D$107,2,FALSE))","v":{"v":-3464346.358139849,"d":"(3,464,346)"}},{"$f":"($A28-$A27)/365.25*(BX27+Main!$I34)*(1+Main!$I$2+VLOOKUP('Random Years'!BV28,'Hist Returns'!$A$12:$D$107,2,FALSE))","v":{"v":2912509.59530816,"d":"2,912,510"}},{"$f":"($A28-$A27)/365.25*(BY27+Main!$I34)*(1+Main!$I$2+VLOOKUP('Random Years'!BW28,'Hist Returns'!$A$12:$D$107,2,FALSE))","v":{"v":9480755.209057063,"d":"9,480,755"}},{"$f":"($A28-$A27)/365.25*(BZ27+Main!$I34)*(1+Main!$I$2+VLOOKUP('Random Years'!BX28,'Hist Returns'!$A$12:$D$107,2,FALSE))","v":{"v":-962607.2035422478,"d":"(962,607)"}},{"$f":"($A28-$A27)/365.25*(CA27+Main!$I34)*(1+Main!$I$2+VLOOKUP('Random Years'!BY28,'Hist Returns'!$A$12:$D$107,2,FALSE))","v":{"v":-1343364.7756349908,"d":"(1,343,365)"}},{"$f":"($A28-$A27)/365.25*(CB27+Main!$I34)*(1+Main!$I$2+VLOOKUP('Random Years'!BZ28,'Hist Returns'!$A$12:$D$107,2,FALSE))","v":{"v":-1424255.2068237187,"d":"(1,424,255)"}},{"$f":"($A28-$A27)/365.25*(CC27+Main!$I34)*(1+Main!$I$2+VLOOKUP('Random Years'!CA28,'Hist Returns'!$A$12:$D$107,2,FALSE))","v":{"v":1442748.930112272,"d":"1,442,749"}},{"$f":"($A28-$A27)/365.25*(CD27+Main!$I34)*(1+Main!$I$2+VLOOKUP('Random Years'!CB28,'Hist Returns'!$A$12:$D$107,2,FALSE))","v":{"v":9613601.29324367,"d":"9,613,601"}},{"$f":"($A28-$A27)/365.25*(CE27+Main!$I34)*(1+Main!$I$2+VLOOKUP('Random Years'!CC28,'Hist Returns'!$A$12:$D$107,2,FALSE))","v":{"v":30706602.432220247,"d":"30,706,602"}},{"$f":"($A28-$A27)/365.25*(CF27+Main!$I34)*(1+Main!$I$2+VLOOKUP('Random Years'!CD28,'Hist Returns'!$A$12:$D$107,2,FALSE))","v":{"v":-834168.0985961204,"d":"(834,168)"}},{"$f":"($A28-$A27)/365.25*(CG27+Main!$I34)*(1+Main!$I$2+VLOOKUP('Random Years'!CE28,'Hist Returns'!$A$12:$D$107,2,FALSE))","v":{"v":716338.5160584593,"d":"716,339"}},{"$f":"($A28-$A27)/365.25*(CH27+Main!$I34)*(1+Main!$I$2+VLOOKUP('Random Years'!CF28,'Hist Returns'!$A$12:$D$107,2,FALSE))","v":{"v":4209825.768340449,"d":"4,209,826"}},{"$f":"($A28-$A27)/365.25*(CI27+Main!$I34)*(1+Main!$I$2+VLOOKUP('Random Years'!CG28,'Hist Returns'!$A$12:$D$107,2,FALSE))","v":{"v":-1631832.8316990663,"d":"(1,631,833)"}},{"$f":"($A28-$A27)/365.25*(CJ27+Main!$I34)*(1+Main!$I$2+VLOOKUP('Random Years'!CH28,'Hist Returns'!$A$12:$D$107,2,FALSE))","v":{"v":19223303.390955646,"d":"19,223,303"}},{"$f":"($A28-$A27)/365.25*(CK27+Main!$I34)*(1+Main!$I$2+VLOOKUP('Random Years'!CI28,'Hist Returns'!$A$12:$D$107,2,FALSE))","v":{"v":9681608.461412912,"d":"9,681,608"}},{"$f":"($A28-$A27)/365.25*(CL27+Main!$I34)*(1+Main!$I$2+VLOOKUP('Random Years'!CJ28,'Hist Returns'!$A$12:$D$107,2,FALSE))","v":{"v":22354712.40438384,"d":"22,354,712"}},{"$f":"($A28-$A27)/365.25*(CM27+Main!$I34)*(1+Main!$I$2+VLOOKUP('Random Years'!CK28,'Hist Returns'!$A$12:$D$107,2,FALSE))","v":{"v":16352234.611320518,"d":"16,352,235"}},{"$f":"($A28-$A27)/365.25*(CN27+Main!$I34)*(1+Main!$I$2+VLOOKUP('Random Years'!CL28,'Hist Returns'!$A$12:$D$107,2,FALSE))","v":{"v":27671813.0195011,"d":"27,671,813"}},{"$f":"($A28-$A27)/365.25*(CO27+Main!$I34)*(1+Main!$I$2+VLOOKUP('Random Years'!CM28,'Hist Returns'!$A$12:$D$107,2,FALSE))","v":{"v":14951630.998743476,"d":"14,951,631"}},{"$f":"($A28-$A27)/365.25*(CP27+Main!$I34)*(1+Main!$I$2+VLOOKUP('Random Years'!CN28,'Hist Returns'!$A$12:$D$107,2,FALSE))","v":{"v":-3303266.707548785,"d":"(3,303,267)"}},{"$f":"($A28-$A27)/365.25*(CQ27+Main!$I34)*(1+Main!$I$2+VLOOKUP('Random Years'!CO28,'Hist Returns'!$A$12:$D$107,2,FALSE))","v":{"v":78940.69794734243,"d":"78,941"}},{"$f":"($A28-$A27)/365.25*(CR27+Main!$I34)*(1+Main!$I$2+VLOOKUP('Random Years'!CP28,'Hist Returns'!$A$12:$D$107,2,FALSE))","v":{"v":35561728.981140494,"d":"35,561,729"}},{"$f":"($A28-$A27)/365.25*(CS27+Main!$I34)*(1+Main!$I$2+VLOOKUP('Random Years'!CQ28,'Hist Returns'!$A$12:$D$107,2,FALSE))","v":{"v":4837593.203106142,"d":"4,837,593"}},{"$f":"($A28-$A27)/365.25*(CT27+Main!$I34)*(1+Main!$I$2+VLOOKUP('Random Years'!CR28,'Hist Returns'!$A$12:$D$107,2,FALSE))","v":{"v":8250885.727123058,"d":"8,250,886"}},{"$f":"($A28-$A27)/365.25*(CU27+Main!$I34)*(1+Main!$I$2+VLOOKUP('Random Years'!CS28,'Hist Returns'!$A$12:$D$107,2,FALSE))","v":{"v":24052630.9183883,"d":"24,052,631"}},{"$f":"($A28-$A27)/365.25*(CV27+Main!$I34)*(1+Main!$I$2+VLOOKUP('Random Years'!CT28,'Hist Returns'!$A$12:$D$107,2,FALSE))","v":{"v":10543989.111190196,"d":"10,543,989"}},{"$f":"($A28-$A27)/365.25*(CW27+Main!$I34)*(1+Main!$I$2+VLOOKUP('Random Years'!CU28,'Hist Returns'!$A$12:$D$107,2,FALSE))","v":{"v":-2353476.553700531,"d":"(2,353,477)"}},{"$f":"($A28-$A27)/365.25*(CX27+Main!$I34)*(1+Main!$I$2+VLOOKUP('Random Years'!CV28,'Hist Returns'!$A$12:$D$107,2,FALSE))","v":{"v":9412296.808603363,"d":"9,412,297"}}]
[{"$f":"Main!A35","v":"2050-12-30"},{"$f":"Main!B35","v":96},{"$f":"($A29-$A28)/365.25*(C28+Main!$I35)*(1+Main!$I$2+VLOOKUP('Random Years'!A29,'Hist Returns'!$A$12:$D$107,2,FALSE))","v":{"v":1341439.3344164023,"d":"1,341,439"}},{"$f":"($A29-$A28)/365.25*(D28+Main!$I35)*(1+Main!$I$2+VLOOKUP('Random Years'!B29,'Hist Returns'!$A$12:$D$107,2,FALSE))","v":{"v":855582.6805103302,"d":"855,583"}},{"$f":"($A29-$A28)/365.25*(E28+Main!$I35)*(1+Main!$I$2+VLOOKUP('Random Years'!C29,'Hist Returns'!$A$12:$D$107,2,FALSE))","v":{"v":6094082.395426916,"d":"6,094,082"}},{"$f":"($A29-$A28)/365.25*(F28+Main!$I35)*(1+Main!$I$2+VLOOKUP('Random Years'!D29,'Hist Returns'!$A$12:$D$107,2,FALSE))","v":{"v":11494366.024314884,"d":"11,494,366"}},{"$f":"($A29-$A28)/365.25*(G28+Main!$I35)*(1+Main!$I$2+VLOOKUP('Random Years'!E29,'Hist Returns'!$A$12:$D$107,2,FALSE))","v":{"v":11083509.684557093,"d":"11,083,510"}},{"$f":"($A29-$A28)/365.25*(H28+Main!$I35)*(1+Main!$I$2+VLOOKUP('Random Years'!F29,'Hist Returns'!$A$12:$D$107,2,FALSE))","v":{"v":4400340.375793654,"d":"4,400,340"}},{"$f":"($A29-$A28)/365.25*(I28+Main!$I35)*(1+Main!$I$2+VLOOKUP('Random Years'!G29,'Hist Returns'!$A$12:$D$107,2,FALSE))","v":{"v":55968.319349538106,"d":"55,968"}},{"$f":"($A29-$A28)/365.25*(J28+Main!$I35)*(1+Main!$I$2+VLOOKUP('Random Years'!H29,'Hist Returns'!$A$12:$D$107,2,FALSE))","v":{"v":294396.4464277438,"d":"294,396"}},{"$f":"($A29-$A28)/365.25*(K28+Main!$I35)*(1+Main!$I$2+VLOOKUP('Random Years'!I29,'Hist Returns'!$A$12:$D$107,2,FALSE))","v":{"v":2491561.4583905824,"d":"2,491,561"}},{"$f":"($A29-$A28)/365.25*(L28+Main!$I35)*(1+Main!$I$2+VLOOKUP('Random Years'!J29,'Hist Returns'!$A$12:$D$107,2,FALSE))","v":{"v":9478984.509138007,"d":"9,478,985"}},{"$f":"($A29-$A28)/365.25*(M28+Main!$I35)*(1+Main!$I$2+VLOOKUP('Random Years'!K29,'Hist Returns'!$A$12:$D$107,2,FALSE))","v":{"v":2443809.2122810353,"d":"2,443,809"}},{"$f":"($A29-$A28)/365.25*(N28+Main!$I35)*(1+Main!$I$2+VLOOKUP('Random Years'!L29,'Hist Returns'!$A$12:$D$107,2,FALSE))","v":{"v":-3489107.6971671884,"d":"(3,489,108)"}},{"$f":"($A29-$A28)/365.25*(O28+Main!$I35)*(1+Main!$I$2+VLOOKUP('Random Years'!M29,'Hist Returns'!$A$12:$D$107,2,FALSE))","v":{"v":2121656.384152371,"d":"2,121,656"}},{"$f":"($A29-$A28)/365.25*(P28+Main!$I35)*(1+Main!$I$2+VLOOKUP('Random Years'!N29,'Hist Returns'!$A$12:$D$107,2,FALSE))","v":{"v":170850.86963866648,"d":"170,851"}},{"$f":"($A29-$A28)/365.25*(Q28+Main!$I35)*(1+Main!$I$2+VLOOKUP('Random Years'!O29,'Hist Returns'!$A$12:$D$107,2,FALSE))","v":{"v":-1610302.1610760149,"d":"(1,610,302)"}},{"$f":"($A29-$A28)/365.25*(R28+Main!$I35)*(1+Main!$I$2+VLOOKUP('Random Years'!P29,'Hist Returns'!$A$12:$D$107,2,FALSE))","v":{"v":-177627.56534186736,"d":"(177,628)"}},{"$f":"($A29-$A28)/365.25*(S28+Main!$I35)*(1+Main!$I$2+VLOOKUP('Random Years'!Q29,'Hist Returns'!$A$12:$D$107,2,FALSE))","v":{"v":-2332584.9613048723,"d":"(2,332,585)"}},{"$f":"($A29-$A28)/365.25*(T28+Main!$I35)*(1+Main!$I$2+VLOOKUP('Random Years'!R29,'Hist Returns'!$A$12:$D$107,2,FALSE))","v":{"v":-2879383.5954949567,"d":"(2,879,384)"}},{"$f":"($A29-$A28)/365.25*(U28+Main!$I35)*(1+Main!$I$2+VLOOKUP('Random Years'!S29,'Hist Returns'!$A$12:$D$107,2,FALSE))","v":{"v":-984055.8483438042,"d":"(984,056)"}},{"$f":"($A29-$A28)/365.25*(V28+Main!$I35)*(1+Main!$I$2+VLOOKUP('Random Years'!T29,'Hist Returns'!$A$12:$D$107,2,FALSE))","v":{"v":4149563.3842428112,"d":"4,149,563"}},{"$f":"($A29-$A28)/365.25*(W28+Main!$I35)*(1+Main!$I$2+VLOOKUP('Random Years'!U29,'Hist Returns'!$A$12:$D$107,2,FALSE))","v":{"v":4417843.657444569,"d":"4,417,844"}},{"$f":"($A29-$A28)/365.25*(X28+Main!$I35)*(1+Main!$I$2+VLOOKUP('Random Years'!V29,'Hist Returns'!$A$12:$D$107,2,FALSE))","v":{"v":590714.6669166947,"d":"590,715"}},{"$f":"($A29-$A28)/365.25*(Y28+Main!$I35)*(1+Main!$I$2+VLOOKUP('Random Years'!W29,'Hist Returns'!$A$12:$D$107,2,FALSE))","v":{"v":749052.3630069337,"d":"749,052"}},{"$f":"($A29-$A28)/365.25*(Z28+Main!$I35)*(1+Main!$I$2+VLOOKUP('Random Years'!X29,'Hist Returns'!$A$12:$D$107,2,FALSE))","v":{"v":-1740442.9449669288,"d":"(1,740,443)"}},{"$f":"($A29-$A28)/365.25*(AA28+Main!$I35)*(1+Main!$I$2+VLOOKUP('Random Years'!Y29,'Hist Returns'!$A$12:$D$107,2,FALSE))","v":{"v":5948150.25110678,"d":"5,948,150"}},{"$f":"($A29-$A28)/365.25*(AB28+Main!$I35)*(1+Main!$I$2+VLOOKUP('Random Years'!Z29,'Hist Returns'!$A$12:$D$107,2,FALSE))","v":{"v":18140.796027064014,"d":"18,141"}},{"$f":"($A29-$A28)/365.25*(AC28+Main!$I35)*(1+Main!$I$2+VLOOKUP('Random Years'!AA29,'Hist Returns'!$A$12:$D$107,2,FALSE))","v":{"v":-954699.5407409946,"d":"(954,700)"}},{"$f":"($A29-$A28)/365.25*(AD28+Main!$I35)*(1+Main!$I$2+VLOOKUP('Random Years'!AB29,'Hist Returns'!$A$12:$D$107,2,FALSE))","v":{"v":-957868.9224972933,"d":"(957,869)"}},{"$f":"($A29-$A28)/365.25*(AE28+Main!$I35)*(1+Main!$I$2+VLOOKUP('Random Years'!AC29,'Hist Returns'!$A$12:$D$107,2,FALSE))","v":{"v":-1792425.647782949,"d":"(1,792,426)"}},{"$f":"($A29-$A28)/365.25*(AF28+Main!$I35)*(1+Main!$I$2+VLOOKUP('Random Years'!AD29,'Hist Returns'!$A$12:$D$107,2,FALSE))","v":{"v":52901553.732414745,"d":"52,901,554"}},{"$f":"($A29-$A28)/365.25*(AG28+Main!$I35)*(1+Main!$I$2+VLOOKUP('Random Years'!AE29,'Hist Returns'!$A$12:$D$107,2,FALSE))","v":{"v":45231779.92734175,"d":"45,231,780"}},{"$f":"($A29-$A28)/365.25*(AH28+Main!$I35)*(1+Main!$I$2+VLOOKUP('Random Years'!AF29,'Hist Returns'!$A$12:$D$107,2,FALSE))","v":{"v":2323574.3926877007,"d":"2,323,574"}},{"$f":"($A29-$A28)/365.25*(AI28+Main!$I35)*(1+Main!$I$2+VLOOKUP('Random Years'!AG29,'Hist Returns'!$A$12:$D$107,2,FALSE))","v":{"v":2079930.425373675,"d":"2,079,930"}},{"$f":"($A29-$A28)/365.25*(AJ28+Main!$I35)*(1+Main!$I$2+VLOOKUP('Random Years'!AH29,'Hist Returns'!$A$12:$D$107,2,FALSE))","v":{"v":6239138.345648329,"d":"6,239,138"}},{"$f":"($A29-$A28)/365.25*(AK28+Main!$I35)*(1+Main!$I$2+VLOOKUP('Random Years'!AI29,'Hist Returns'!$A$12:$D$107,2,FALSE))","v":{"v":-1651500.4227026785,"d":"(1,651,500)"}},{"$f":"($A29-$A28)/365.25*(AL28+Main!$I35)*(1+Main!$I$2+VLOOKUP('Random Years'!AJ29,'Hist Returns'!$A$12:$D$107,2,FALSE))","v":{"v":6060916.409073887,"d":"6,060,916"}},{"$f":"($A29-$A28)/365.25*(AM28+Main!$I35)*(1+Main!$I$2+VLOOKUP('Random Years'!AK29,'Hist Returns'!$A$12:$D$107,2,FALSE))","v":{"v":-2747769.7728724256,"d":"(2,747,770)"}},{"$f":"($A29-$A28)/365.25*(AN28+Main!$I35)*(1+Main!$I$2+VLOOKUP('Random Years'!AL29,'Hist Returns'!$A$12:$D$107,2,FALSE))","v":{"v":6450634.471005953,"d":"6,450,634"}},{"$f":"($A29-$A28)/365.25*(AO28+Main!$I35)*(1+Main!$I$2+VLOOKUP('Random Years'!AM29,'Hist Returns'!$A$12:$D$107,2,FALSE))","v":{"v":3441346.4655159493,"d":"3,441,346"}},{"$f":"($A29-$A28)/365.25*(AP28+Main!$I35)*(1+Main!$I$2+VLOOKUP('Random Years'!AN29,'Hist Returns'!$A$12:$D$107,2,FALSE))","v":{"v":47990761.70642119,"d":"47,990,762"}},{"$f":"($A29-$A28)/365.25*(AQ28+Main!$I35)*(1+Main!$I$2+VLOOKUP('Random Years'!AO29,'Hist Returns'!$A$12:$D$107,2,FALSE))","v":{"v":-1004808.5961608037,"d":"(1,004,809)"}},{"$f":"($A29-$A28)/365.25*(AR28+Main!$I35)*(1+Main!$I$2+VLOOKUP('Random Years'!AP29,'Hist Returns'!$A$12:$D$107,2,FALSE))","v":{"v":3779057.883081831,"d":"3,779,058"}},{"$f":"($A29-$A28)/365.25*(AS28+Main!$I35)*(1+Main!$I$2+VLOOKUP('Random Years'!AQ29,'Hist Returns'!$A$12:$D$107,2,FALSE))","v":{"v":1458255.1937209286,"d":"1,458,255"}},{"$f":"($A29-$A28)/365.25*(AT28+Main!$I35)*(1+Main!$I$2+VLOOKUP('Random Years'!AR29,'Hist Returns'!$A$12:$D$107,2,FALSE))","v":{"v":-1388120.6065193347,"d":"(1,388,121)"}},{"$f":"($A29-$A28)/365.25*(AU28+Main!$I35)*(1+Main!$I$2+VLOOKUP('Random Years'!AS29,'Hist Returns'!$A$12:$D$107,2,FALSE))","v":{"v":4657731.42255676,"d":"4,657,731"}},{"$f":"($A29-$A28)/365.25*(AV28+Main!$I35)*(1+Main!$I$2+VLOOKUP('Random Years'!AT29,'Hist Returns'!$A$12:$D$107,2,FALSE))","v":{"v":7771644.410421551,"d":"7,771,644"}},{"$f":"($A29-$A28)/365.25*(AW28+Main!$I35)*(1+Main!$I$2+VLOOKUP('Random Years'!AU29,'Hist Returns'!$A$12:$D$107,2,FALSE))","v":{"v":-1328203.434229139,"d":"(1,328,203)"}},{"$f":"($A29-$A28)/365.25*(AX28+Main!$I35)*(1+Main!$I$2+VLOOKUP('Random Years'!AV29,'Hist Returns'!$A$12:$D$107,2,FALSE))","v":{"v":2901395.113189765,"d":"2,901,395"}},{"$f":"($A29-$A28)/365.25*(AY28+Main!$I35)*(1+Main!$I$2+VLOOKUP('Random Years'!AW29,'Hist Returns'!$A$12:$D$107,2,FALSE))","v":{"v":6659821.3854659265,"d":"6,659,821"}},{"$f":"($A29-$A28)/365.25*(AZ28+Main!$I35)*(1+Main!$I$2+VLOOKUP('Random Years'!AX29,'Hist Returns'!$A$12:$D$107,2,FALSE))","v":{"v":-1826957.557121854,"d":"(1,826,958)"}},{"$f":"($A29-$A28)/365.25*(BA28+Main!$I35)*(1+Main!$I$2+VLOOKUP('Random Years'!AY29,'Hist Returns'!$A$12:$D$107,2,FALSE))","v":{"v":-2829512.45510648,"d":"(2,829,512)"}},{"$f":"($A29-$A28)/365.25*(BB28+Main!$I35)*(1+Main!$I$2+VLOOKUP('Random Years'!AZ29,'Hist Returns'!$A$12:$D$107,2,FALSE))","v":{"v":-1688761.0755237038,"d":"(1,688,761)"}},{"$f":"($A29-$A28)/365.25*(BC28+Main!$I35)*(1+Main!$I$2+VLOOKUP('Random Years'!BA29,'Hist Returns'!$A$12:$D$107,2,FALSE))","v":{"v":100083.05684351044,"d":"100,083"}},{"$f":"($A29-$A28)/365.25*(BD28+Main!$I35)*(1+Main!$I$2+VLOOKUP('Random Years'!BB29,'Hist Returns'!$A$12:$D$107,2,FALSE))","v":{"v":6830090.892818908,"d":"6,830,091"}},{"$f":"($A29-$A28)/365.25*(BE28+Main!$I35)*(1+Main!$I$2+VLOOKUP('Random Years'!BC29,'Hist Returns'!$A$12:$D$107,2,FALSE))","v":{"v":2477318.027182416,"d":"2,477,318"}},{"$f":"($A29-$A28)/365.25*(BF28+Main!$I35)*(1+Main!$I$2+VLOOKUP('Random Years'!BD29,'Hist Returns'!$A$12:$D$107,2,FALSE))","v":{"v":-2244733.6164570358,"d":"(2,244,734)"}},{"$f":"($A29-$A28)/365.25*(BG28+Main!$I35)*(1+Main!$I$2+VLOOKUP('Random Years'!BE29,'Hist Returns'!$A$12:$D$107,2,FALSE))","v":{"v":-1014141.2521357271,"d":"(1,014,141)"}},{"$f":"($A29-$A28)/365.25*(BH28+Main!$I35)*(1+Main!$I$2+VLOOKUP('Random Years'!BF29,'Hist Returns'!$A$12:$D$107,2,FALSE))","v":{"v":-740810.0117171406,"d":"(740,810)"}},{"$f":"($A29-$A28)/365.25*(BI28+Main!$I35)*(1+Main!$I$2+VLOOKUP('Random Years'!BG29,'Hist Returns'!$A$12:$D$107,2,FALSE))","v":{"v":7138660.709345362,"d":"7,138,661"}},{"$f":"($A29-$A28)/365.25*(BJ28+Main!$I35)*(1+Main!$I$2+VLOOKUP('Random Years'!BH29,'Hist Returns'!$A$12:$D$107,2,FALSE))","v":{"v":-792775.3880832588,"d":"(792,775)"}},{"$f":"($A29-$A28)/365.25*(BK28+Main!$I35)*(1+Main!$I$2+VLOOKUP('Random Years'!BI29,'Hist Returns'!$A$12:$D$107,2,FALSE))","v":{"v":880766.2075751226,"d":"880,766"}},{"$f":"($A29-$A28)/365.25*(BL28+Main!$I35)*(1+Main!$I$2+VLOOKUP('Random Years'!BJ29,'Hist Returns'!$A$12:$D$107,2,FALSE))","v":{"v":2842818.4803768685,"d":"2,842,818"}},{"$f":"($A29-$A28)/365.25*(BM28+Main!$I35)*(1+Main!$I$2+VLOOKUP('Random Years'!BK29,'Hist Returns'!$A$12:$D$107,2,FALSE))","v":{"v":-1368567.996870169,"d":"(1,368,568)"}},{"$f":"($A29-$A28)/365.25*(BN28+Main!$I35)*(1+Main!$I$2+VLOOKUP('Random Years'!BL29,'Hist Returns'!$A$12:$D$107,2,FALSE))","v":{"v":16776018.104069762,"d":"16,776,018"}},{"$f":"($A29-$A28)/365.25*(BO28+Main!$I35)*(1+Main!$I$2+VLOOKUP('Random Years'!BM29,'Hist Returns'!$A$12:$D$107,2,FALSE))","v":{"v":12544925.667771911,"d":"12,544,926"}},{"$f":"($A29-$A28)/365.25*(BP28+Main!$I35)*(1+Main!$I$2+VLOOKUP('Random Years'!BN29,'Hist Returns'!$A$12:$D$107,2,FALSE))","v":{"v":6574940.191165494,"d":"6,574,940"}},{"$f":"($A29-$A28)/365.25*(BQ28+Main!$I35)*(1+Main!$I$2+VLOOKUP('Random Years'!BO29,'Hist Returns'!$A$12:$D$107,2,FALSE))","v":{"v":1515390.9876781164,"d":"1,515,391"}},{"$f":"($A29-$A28)/365.25*(BR28+Main!$I35)*(1+Main!$I$2+VLOOKUP('Random Years'!BP29,'Hist Returns'!$A$12:$D$107,2,FALSE))","v":{"v":8446399.304552214,"d":"8,446,399"}},{"$f":"($A29-$A28)/365.25*(BS28+Main!$I35)*(1+Main!$I$2+VLOOKUP('Random Years'!BQ29,'Hist Returns'!$A$12:$D$107,2,FALSE))","v":{"v":15676439.444969807,"d":"15,676,439"}},{"$f":"($A29-$A28)/365.25*(BT28+Main!$I35)*(1+Main!$I$2+VLOOKUP('Random Years'!BR29,'Hist Returns'!$A$12:$D$107,2,FALSE))","v":{"v":-2382360.653226354,"d":"(2,382,361)"}},{"$f":"($A29-$A28)/365.25*(BU28+Main!$I35)*(1+Main!$I$2+VLOOKUP('Random Years'!BS29,'Hist Returns'!$A$12:$D$107,2,FALSE))","v":{"v":-2625417.359943356,"d":"(2,625,417)"}},{"$f":"($A29-$A28)/365.25*(BV28+Main!$I35)*(1+Main!$I$2+VLOOKUP('Random Years'!BT29,'Hist Returns'!$A$12:$D$107,2,FALSE))","v":{"v":-386950.19748033583,"d":"(386,950)"}},{"$f":"($A29-$A28)/365.25*(BW28+Main!$I35)*(1+Main!$I$2+VLOOKUP('Random Years'!BU29,'Hist Returns'!$A$12:$D$107,2,FALSE))","v":{"v":-4037028.95290666,"d":"(4,037,029)"}},{"$f":"($A29-$A28)/365.25*(BX28+Main!$I35)*(1+Main!$I$2+VLOOKUP('Random Years'!BV29,'Hist Returns'!$A$12:$D$107,2,FALSE))","v":{"v":2651594.314936055,"d":"2,651,594"}},{"$f":"($A29-$A28)/365.25*(BY28+Main!$I35)*(1+Main!$I$2+VLOOKUP('Random Years'!BW29,'Hist Returns'!$A$12:$D$107,2,FALSE))","v":{"v":8792111.591158237,"d":"8,792,112"}},{"$f":"($A29-$A28)/365.25*(BZ28+Main!$I35)*(1+Main!$I$2+VLOOKUP('Random Years'!BX29,'Hist Returns'!$A$12:$D$107,2,FALSE))","v":{"v":-1461675.3050905375,"d":"(1,461,675)"}},{"$f":"($A29-$A28)/365.25*(CA28+Main!$I35)*(1+Main!$I$2+VLOOKUP('Random Years'!BY29,'Hist Returns'!$A$12:$D$107,2,FALSE))","v":{"v":-2101852.7549692476,"d":"(2,101,853)"}},{"$f":"($A29-$A28)/365.25*(CB28+Main!$I35)*(1+Main!$I$2+VLOOKUP('Random Years'!BZ29,'Hist Returns'!$A$12:$D$107,2,FALSE))","v":{"v":-1923897.4286973996,"d":"(1,923,897)"}},{"$f":"($A29-$A28)/365.25*(CC28+Main!$I35)*(1+Main!$I$2+VLOOKUP('Random Years'!CA29,'Hist Returns'!$A$12:$D$107,2,FALSE))","v":{"v":1051363.121329357,"d":"1,051,363"}},{"$f":"($A29-$A28)/365.25*(CD28+Main!$I35)*(1+Main!$I$2+VLOOKUP('Random Years'!CB29,'Hist Returns'!$A$12:$D$107,2,FALSE))","v":{"v":10241672.907414382,"d":"10,241,673"}},{"$f":"($A29-$A28)/365.25*(CE28+Main!$I35)*(1+Main!$I$2+VLOOKUP('Random Years'!CC29,'Hist Returns'!$A$12:$D$107,2,FALSE))","v":{"v":39880336.686051264,"d":"39,880,337"}},{"$f":"($A29-$A28)/365.25*(CF28+Main!$I35)*(1+Main!$I$2+VLOOKUP('Random Years'!CD29,'Hist Returns'!$A$12:$D$107,2,FALSE))","v":{"v":-1330228.64905481,"d":"(1,330,229)"}},{"$f":"($A29-$A28)/365.25*(CG28+Main!$I35)*(1+Main!$I$2+VLOOKUP('Random Years'!CE29,'Hist Returns'!$A$12:$D$107,2,FALSE))","v":{"v":442641.00326363917,"d":"442,641"}},{"$f":"($A29-$A28)/365.25*(CH28+Main!$I35)*(1+Main!$I$2+VLOOKUP('Random Years'!CF29,'Hist Returns'!$A$12:$D$107,2,FALSE))","v":{"v":4758993.9897466665,"d":"4,758,994"}},{"$f":"($A29-$A28)/365.25*(CI28+Main!$I35)*(1+Main!$I$2+VLOOKUP('Random Years'!CG29,'Hist Returns'!$A$12:$D$107,2,FALSE))","v":{"v":-2280233.4211105974,"d":"(2,280,233)"}},{"$f":"($A29-$A28)/365.25*(CJ28+Main!$I35)*(1+Main!$I$2+VLOOKUP('Random Years'!CH29,'Hist Returns'!$A$12:$D$107,2,FALSE))","v":{"v":19995633.45552423,"d":"19,995,633"}},{"$f":"($A29-$A28)/365.25*(CK28+Main!$I35)*(1+Main!$I$2+VLOOKUP('Random Years'!CI29,'Hist Returns'!$A$12:$D$107,2,FALSE))","v":{"v":11880342.300918534,"d":"11,880,342"}},{"$f":"($A29-$A28)/365.25*(CL28+Main!$I35)*(1+Main!$I$2+VLOOKUP('Random Years'!CJ29,'Hist Returns'!$A$12:$D$107,2,FALSE))","v":{"v":21112790.494845137,"d":"21,112,790"}},{"$f":"($A29-$A28)/365.25*(CM28+Main!$I35)*(1+Main!$I$2+VLOOKUP('Random Years'!CK29,'Hist Returns'!$A$12:$D$107,2,FALSE))","v":{"v":21984188.278846864,"d":"21,984,188"}},{"$f":"($A29-$A28)/365.25*(CN28+Main!$I35)*(1+Main!$I$2+VLOOKUP('Random Years'!CL29,'Hist Returns'!$A$12:$D$107,2,FALSE))","v":{"v":17358804.665164404,"d":"17,358,805"}},{"$f":"($A29-$A28)/365.25*(CO28+Main!$I35)*(1+Main!$I$2+VLOOKUP('Random Years'!CM29,'Hist Returns'!$A$12:$D$107,2,FALSE))","v":{"v":14473678.961330263,"d":"14,473,679"}},{"$f":"($A29-$A28)/365.25*(CP28+Main!$I35)*(1+Main!$I$2+VLOOKUP('Random Years'!CN29,'Hist Returns'!$A$12:$D$107,2,FALSE))","v":{"v":-3670054.203723037,"d":"(3,670,054)"}},{"$f":"($A29-$A28)/365.25*(CQ28+Main!$I35)*(1+Main!$I$2+VLOOKUP('Random Years'!CO29,'Hist Returns'!$A$12:$D$107,2,FALSE))","v":{"v":-282320.7112149183,"d":"(282,321)"}},{"$f":"($A29-$A28)/365.25*(CR28+Main!$I35)*(1+Main!$I$2+VLOOKUP('Random Years'!CP29,'Hist Returns'!$A$12:$D$107,2,FALSE))","v":{"v":39381386.987012275,"d":"39,381,387"}},{"$f":"($A29-$A28)/365.25*(CS28+Main!$I35)*(1+Main!$I$2+VLOOKUP('Random Years'!CQ29,'Hist Returns'!$A$12:$D$107,2,FALSE))","v":{"v":4148241.7164958706,"d":"4,148,242"}},{"$f":"($A29-$A28)/365.25*(CT28+Main!$I35)*(1+Main!$I$2+VLOOKUP('Random Years'!CR29,'Hist Returns'!$A$12:$D$107,2,FALSE))","v":{"v":9130135.281764222,"d":"9,130,135"}},{"$f":"($A29-$A28)/365.25*(CU28+Main!$I35)*(1+Main!$I$2+VLOOKUP('Random Years'!CS29,'Hist Returns'!$A$12:$D$107,2,FALSE))","v":{"v":21741253.657150894,"d":"21,741,254"}},{"$f":"($A29-$A28)/365.25*(CV28+Main!$I35)*(1+Main!$I$2+VLOOKUP('Random Years'!CT29,'Hist Returns'!$A$12:$D$107,2,FALSE))","v":{"v":10277624.223182088,"d":"10,277,624"}},{"$f":"($A29-$A28)/365.25*(CW28+Main!$I35)*(1+Main!$I$2+VLOOKUP('Random Years'!CU29,'Hist Returns'!$A$12:$D$107,2,FALSE))","v":{"v":-3198004.3508126154,"d":"(3,198,004)"}},{"$f":"($A29-$A28)/365.25*(CX28+Main!$I35)*(1+Main!$I$2+VLOOKUP('Random Years'!CV29,'Hist Returns'!$A$12:$D$107,2,FALSE))","v":{"v":10859392.976399414,"d":"10,859,393"}}]
[{"$f":"Main!A36","v":"2051-12-31"},{"$f":"Main!B36","v":97},{"$f":"($A30-$A29)/365.25*(C29+Main!$I36)*(1+Main!$I$2+VLOOKUP('Random Years'!A30,'Hist Returns'!$A$12:$D$107,2,FALSE))","v":{"v":1284379.9937947728,"d":"1,284,380"}},{"$f":"($A30-$A29)/365.25*(D29+Main!$I36)*(1+Main!$I$2+VLOOKUP('Random Years'!B30,'Hist Returns'!$A$12:$D$107,2,FALSE))","v":{"v":636273.28315203,"d":"636,273"}},{"$f":"($A30-$A29)/365.25*(E29+Main!$I36)*(1+Main!$I$2+VLOOKUP('Random Years'!C30,'Hist Returns'!$A$12:$D$107,2,FALSE))","v":{"v":7450753.848987979,"d":"7,450,754"}},{"$f":"($A30-$A29)/365.25*(F29+Main!$I36)*(1+Main!$I$2+VLOOKUP('Random Years'!D30,'Hist Returns'!$A$12:$D$107,2,FALSE))","v":{"v":13500154.40275827,"d":"13,500,154"}},{"$f":"($A30-$A29)/365.25*(G29+Main!$I36)*(1+Main!$I$2+VLOOKUP('Random Years'!E30,'Hist Returns'!$A$12:$D$107,2,FALSE))","v":{"v":13133002.62748918,"d":"13,133,003"}},{"$f":"($A30-$A29)/365.25*(H29+Main!$I36)*(1+Main!$I$2+VLOOKUP('Random Years'!F30,'Hist Returns'!$A$12:$D$107,2,FALSE))","v":{"v":4853254.9887240045,"d":"4,853,255"}},{"$f":"($A30-$A29)/365.25*(I29+Main!$I36)*(1+Main!$I$2+VLOOKUP('Random Years'!G30,'Hist Returns'!$A$12:$D$107,2,FALSE))","v":{"v":-265219.8099488568,"d":"(265,220)"}},{"$f":"($A30-$A29)/365.25*(J29+Main!$I36)*(1+Main!$I$2+VLOOKUP('Random Years'!H30,'Hist Returns'!$A$12:$D$107,2,FALSE))","v":{"v":-7606.700681052977,"d":"(7,607)"}},{"$f":"($A30-$A29)/365.25*(K29+Main!$I36)*(1+Main!$I$2+VLOOKUP('Random Years'!I30,'Hist Returns'!$A$12:$D$107,2,FALSE))","v":{"v":1971354.9465329896,"d":"1,971,355"}},{"$f":"($A30-$A29)/365.25*(L29+Main!$I36)*(1+Main!$I$2+VLOOKUP('Random Years'!J30,'Hist Returns'!$A$12:$D$107,2,FALSE))","v":{"v":8210465.921424101,"d":"8,210,466"}},{"$f":"($A30-$A29)/365.25*(M29+Main!$I36)*(1+Main!$I$2+VLOOKUP('Random Years'!K30,'Hist Returns'!$A$12:$D$107,2,FALSE))","v":{"v":2076201.8346342412,"d":"2,076,202"}},{"$f":"($A30-$A29)/365.25*(N29+Main!$I36)*(1+Main!$I$2+VLOOKUP('Random Years'!L30,'Hist Returns'!$A$12:$D$107,2,FALSE))","v":{"v":-3624417.859453481,"d":"(3,624,418)"}},{"$f":"($A30-$A29)/365.25*(O29+Main!$I36)*(1+Main!$I$2+VLOOKUP('Random Years'!M30,'Hist Returns'!$A$12:$D$107,2,FALSE))","v":{"v":2403749.6011262503,"d":"2,403,750"}},{"$f":"($A30-$A29)/365.25*(P29+Main!$I36)*(1+Main!$I$2+VLOOKUP('Random Years'!N30,'Hist Returns'!$A$12:$D$107,2,FALSE))","v":{"v":-168109.82309083547,"d":"(168,110)"}},{"$f":"($A30-$A29)/365.25*(Q29+Main!$I36)*(1+Main!$I$2+VLOOKUP('Random Years'!O30,'Hist Returns'!$A$12:$D$107,2,FALSE))","v":{"v":-2465199.739613806,"d":"(2,465,200)"}},{"$f":"($A30-$A29)/365.25*(R29+Main!$I36)*(1+Main!$I$2+VLOOKUP('Random Years'!P30,'Hist Returns'!$A$12:$D$107,2,FALSE))","v":{"v":-634383.579677211,"d":"(634,384)"}},{"$f":"($A30-$A29)/365.25*(S29+Main!$I36)*(1+Main!$I$2+VLOOKUP('Random Years'!Q30,'Hist Returns'!$A$12:$D$107,2,FALSE))","v":{"v":-3274184.9983466105,"d":"(3,274,185)"}},{"$f":"($A30-$A29)/365.25*(T29+Main!$I36)*(1+Main!$I$2+VLOOKUP('Random Years'!R30,'Hist Returns'!$A$12:$D$107,2,FALSE))","v":{"v":-3952144.7464571977,"d":"(3,952,145)"}},{"$f":"($A30-$A29)/365.25*(U29+Main!$I36)*(1+Main!$I$2+VLOOKUP('Random Years'!S30,'Hist Returns'!$A$12:$D$107,2,FALSE))","v":{"v":-1714571.5353332069,"d":"(1,714,572)"}},{"$f":"($A30-$A29)/365.25*(V29+Main!$I36)*(1+Main!$I$2+VLOOKUP('Random Years'!T30,'Hist Returns'!$A$12:$D$107,2,FALSE))","v":{"v":5037444.464426955,"d":"5,037,444"}},{"$f":"($A30-$A29)/365.25*(W29+Main!$I36)*(1+Main!$I$2+VLOOKUP('Random Years'!U30,'Hist Returns'!$A$12:$D$107,2,FALSE))","v":{"v":5595727.229302993,"d":"5,595,727"}},{"$f":"($A30-$A29)/365.25*(X29+Main!$I36)*(1+Main!$I$2+VLOOKUP('Random Years'!V30,'Hist Returns'!$A$12:$D$107,2,FALSE))","v":{"v":329423.80745821766,"d":"329,424"}},{"$f":"($A30-$A29)/365.25*(Y29+Main!$I36)*(1+Main!$I$2+VLOOKUP('Random Years'!W30,'Hist Returns'!$A$12:$D$107,2,FALSE))","v":{"v":286846.6351382468,"d":"286,847"}},{"$f":"($A30-$A29)/365.25*(Z29+Main!$I36)*(1+Main!$I$2+VLOOKUP('Random Years'!X30,'Hist Returns'!$A$12:$D$107,2,FALSE))","v":{"v":-2079310.5369444676,"d":"(2,079,311)"}},{"$f":"($A30-$A29)/365.25*(AA29+Main!$I36)*(1+Main!$I$2+VLOOKUP('Random Years'!Y30,'Hist Returns'!$A$12:$D$107,2,FALSE))","v":{"v":6021368.394877363,"d":"6,021,368"}},{"$f":"($A30-$A29)/365.25*(AB29+Main!$I36)*(1+Main!$I$2+VLOOKUP('Random Years'!Z30,'Hist Returns'!$A$12:$D$107,2,FALSE))","v":{"v":-381650.666274187,"d":"(381,651)"}},{"$f":"($A30-$A29)/365.25*(AC29+Main!$I36)*(1+Main!$I$2+VLOOKUP('Random Years'!AA30,'Hist Returns'!$A$12:$D$107,2,FALSE))","v":{"v":-1493014.737410965,"d":"(1,493,015)"}},{"$f":"($A30-$A29)/365.25*(AD29+Main!$I36)*(1+Main!$I$2+VLOOKUP('Random Years'!AB30,'Hist Returns'!$A$12:$D$107,2,FALSE))","v":{"v":-1160043.088665665,"d":"(1,160,043)"}},{"$f":"($A30-$A29)/365.25*(AE29+Main!$I36)*(1+Main!$I$2+VLOOKUP('Random Years'!AC30,'Hist Returns'!$A$12:$D$107,2,FALSE))","v":{"v":-2856447.9123545843,"d":"(2,856,448)"}},{"$f":"($A30-$A29)/365.25*(AF29+Main!$I36)*(1+Main!$I$2+VLOOKUP('Random Years'!AD30,'Hist Returns'!$A$12:$D$107,2,FALSE))","v":{"v":58890545.91096484,"d":"58,890,546"}},{"$f":"($A30-$A29)/365.25*(AG29+Main!$I36)*(1+Main!$I$2+VLOOKUP('Random Years'!AE30,'Hist Returns'!$A$12:$D$107,2,FALSE))","v":{"v":59072184.51396639,"d":"59,072,185"}},{"$f":"($A30-$A29)/365.25*(AH29+Main!$I36)*(1+Main!$I$2+VLOOKUP('Random Years'!AF30,'Hist Returns'!$A$12:$D$107,2,FALSE))","v":{"v":2342560.947319044,"d":"2,342,561"}},{"$f":"($A30-$A29)/365.25*(AI29+Main!$I36)*(1+Main!$I$2+VLOOKUP('Random Years'!AG30,'Hist Returns'!$A$12:$D$107,2,FALSE))","v":{"v":1623618.343624599,"d":"1,623,618"}},{"$f":"($A30-$A29)/365.25*(AJ29+Main!$I36)*(1+Main!$I$2+VLOOKUP('Random Years'!AH30,'Hist Returns'!$A$12:$D$107,2,FALSE))","v":{"v":6254097.733336514,"d":"6,254,098"}},{"$f":"($A30-$A29)/365.25*(AK29+Main!$I36)*(1+Main!$I$2+VLOOKUP('Random Years'!AI30,'Hist Returns'!$A$12:$D$107,2,FALSE))","v":{"v":-2428867.4834234756,"d":"(2,428,867)"}},{"$f":"($A30-$A29)/365.25*(AL29+Main!$I36)*(1+Main!$I$2+VLOOKUP('Random Years'!AJ30,'Hist Returns'!$A$12:$D$107,2,FALSE))","v":{"v":7408058.01485686,"d":"7,408,058"}},{"$f":"($A30-$A29)/365.25*(AM29+Main!$I36)*(1+Main!$I$2+VLOOKUP('Random Years'!AK30,'Hist Returns'!$A$12:$D$107,2,FALSE))","v":{"v":-3026812.0154261435,"d":"(3,026,812)"}},{"$f":"($A30-$A29)/365.25*(AN29+Main!$I36)*(1+Main!$I$2+VLOOKUP('Random Years'!AL30,'Hist Returns'!$A$12:$D$107,2,FALSE))","v":{"v":5513042.043618928,"d":"5,513,042"}},{"$f":"($A30-$A29)/365.25*(AO29+Main!$I36)*(1+Main!$I$2+VLOOKUP('Random Years'!AM30,'Hist Returns'!$A$12:$D$107,2,FALSE))","v":{"v":3304776.9853799627,"d":"3,304,777"}},{"$f":"($A30-$A29)/365.25*(AP29+Main!$I36)*(1+Main!$I$2+VLOOKUP('Random Years'!AN30,'Hist Returns'!$A$12:$D$107,2,FALSE))","v":{"v":58586817.81007699,"d":"58,586,818"}},{"$f":"($A30-$A29)/365.25*(AQ29+Main!$I36)*(1+Main!$I$2+VLOOKUP('Random Years'!AO30,'Hist Returns'!$A$12:$D$107,2,FALSE))","v":{"v":-1554340.8092903085,"d":"(1,554,341)"}},{"$f":"($A30-$A29)/365.25*(AR29+Main!$I36)*(1+Main!$I$2+VLOOKUP('Random Years'!AP30,'Hist Returns'!$A$12:$D$107,2,FALSE))","v":{"v":3660778.9087974206,"d":"3,660,779"}},{"$f":"($A30-$A29)/365.25*(AS29+Main!$I36)*(1+Main!$I$2+VLOOKUP('Random Years'!AQ30,'Hist Returns'!$A$12:$D$107,2,FALSE))","v":{"v":1033554.5717322006,"d":"1,033,555"}},{"$f":"($A30-$A29)/365.25*(AT29+Main!$I36)*(1+Main!$I$2+VLOOKUP('Random Years'!AR30,'Hist Returns'!$A$12:$D$107,2,FALSE))","v":{"v":-1626101.355050682,"d":"(1,626,101)"}},{"$f":"($A30-$A29)/365.25*(AU29+Main!$I36)*(1+Main!$I$2+VLOOKUP('Random Years'!AS30,'Hist Returns'!$A$12:$D$107,2,FALSE))","v":{"v":5392759.021029706,"d":"5,392,759"}},{"$f":"($A30-$A29)/365.25*(AV29+Main!$I36)*(1+Main!$I$2+VLOOKUP('Random Years'!AT30,'Hist Returns'!$A$12:$D$107,2,FALSE))","v":{"v":6834110.896803173,"d":"6,834,111"}},{"$f":"($A30-$A29)/365.25*(AW29+Main!$I36)*(1+Main!$I$2+VLOOKUP('Random Years'!AU30,'Hist Returns'!$A$12:$D$107,2,FALSE))","v":{"v":-2048405.0198287813,"d":"(2,048,405)"}},{"$f":"($A30-$A29)/365.25*(AX29+Main!$I36)*(1+Main!$I$2+VLOOKUP('Random Years'!AV30,'Hist Returns'!$A$12:$D$107,2,FALSE))","v":{"v":3412196.2077496457,"d":"3,412,196"}},{"$f":"($A30-$A29)/365.25*(AY29+Main!$I36)*(1+Main!$I$2+VLOOKUP('Random Years'!AW30,'Hist Returns'!$A$12:$D$107,2,FALSE))","v":{"v":7882846.79545631,"d":"7,882,847"}},{"$f":"($A30-$A29)/365.25*(AZ29+Main!$I36)*(1+Main!$I$2+VLOOKUP('Random Years'!AX30,'Hist Returns'!$A$12:$D$107,2,FALSE))","v":{"v":-2932820.2652974697,"d":"(2,932,820)"}},{"$f":"($A30-$A29)/365.25*(BA29+Main!$I36)*(1+Main!$I$2+VLOOKUP('Random Years'!AY30,'Hist Returns'!$A$12:$D$107,2,FALSE))","v":{"v":-2692708.8835140555,"d":"(2,692,709)"}},{"$f":"($A30-$A29)/365.25*(BB29+Main!$I36)*(1+Main!$I$2+VLOOKUP('Random Years'!AZ30,'Hist Returns'!$A$12:$D$107,2,FALSE))","v":{"v":-1790153.1573751396,"d":"(1,790,153)"}},{"$f":"($A30-$A29)/365.25*(BC29+Main!$I36)*(1+Main!$I$2+VLOOKUP('Random Years'!BA30,'Hist Returns'!$A$12:$D$107,2,FALSE))","v":{"v":-246333.75213552956,"d":"(246,334)"}},{"$f":"($A30-$A29)/365.25*(BD29+Main!$I36)*(1+Main!$I$2+VLOOKUP('Random Years'!BB30,'Hist Returns'!$A$12:$D$107,2,FALSE))","v":{"v":5986101.848894645,"d":"5,986,102"}},{"$f":"($A30-$A29)/365.25*(BE29+Main!$I36)*(1+Main!$I$2+VLOOKUP('Random Years'!BC30,'Hist Returns'!$A$12:$D$107,2,FALSE))","v":{"v":2812434.283113151,"d":"2,812,434"}},{"$f":"($A30-$A29)/365.25*(BF29+Main!$I36)*(1+Main!$I$2+VLOOKUP('Random Years'!BD30,'Hist Returns'!$A$12:$D$107,2,FALSE))","v":{"v":-3134368.93514579,"d":"(3,134,369)"}},{"$f":"($A30-$A29)/365.25*(BG29+Main!$I36)*(1+Main!$I$2+VLOOKUP('Random Years'!BE30,'Hist Returns'!$A$12:$D$107,2,FALSE))","v":{"v":-1797203.0231688258,"d":"(1,797,203)"}},{"$f":"($A30-$A29)/365.25*(BH29+Main!$I36)*(1+Main!$I$2+VLOOKUP('Random Years'!BF30,'Hist Returns'!$A$12:$D$107,2,FALSE))","v":{"v":-1573795.1041732952,"d":"(1,573,795)"}},{"$f":"($A30-$A29)/365.25*(BI29+Main!$I36)*(1+Main!$I$2+VLOOKUP('Random Years'!BG30,'Hist Returns'!$A$12:$D$107,2,FALSE))","v":{"v":8787660.689016497,"d":"8,787,661"}},{"$f":"($A30-$A29)/365.25*(BJ29+Main!$I36)*(1+Main!$I$2+VLOOKUP('Random Years'!BH30,'Hist Returns'!$A$12:$D$107,2,FALSE))","v":{"v":-1258023.9356111456,"d":"(1,258,024)"}},{"$f":"($A30-$A29)/365.25*(BK29+Main!$I36)*(1+Main!$I$2+VLOOKUP('Random Years'!BI30,'Hist Returns'!$A$12:$D$107,2,FALSE))","v":{"v":699968.7567076746,"d":"699,969"}},{"$f":"($A30-$A29)/365.25*(BL29+Main!$I36)*(1+Main!$I$2+VLOOKUP('Random Years'!BJ30,'Hist Returns'!$A$12:$D$107,2,FALSE))","v":{"v":2664542.265751492,"d":"2,664,542"}},{"$f":"($A30-$A29)/365.25*(BM29+Main!$I36)*(1+Main!$I$2+VLOOKUP('Random Years'!BK30,'Hist Returns'!$A$12:$D$107,2,FALSE))","v":{"v":-2214496.0996109173,"d":"(2,214,496)"}},{"$f":"($A30-$A29)/365.25*(BN29+Main!$I36)*(1+Main!$I$2+VLOOKUP('Random Years'!BL30,'Hist Returns'!$A$12:$D$107,2,FALSE))","v":{"v":16322339.560794398,"d":"16,322,340"}},{"$f":"($A30-$A29)/365.25*(BO29+Main!$I36)*(1+Main!$I$2+VLOOKUP('Random Years'!BM30,'Hist Returns'!$A$12:$D$107,2,FALSE))","v":{"v":9182609.14294879,"d":"9,182,609"}},{"$f":"($A30-$A29)/365.25*(BP29+Main!$I36)*(1+Main!$I$2+VLOOKUP('Random Years'!BN30,'Hist Returns'!$A$12:$D$107,2,FALSE))","v":{"v":5714121.899481326,"d":"5,714,122"}},{"$f":"($A30-$A29)/365.25*(BQ29+Main!$I36)*(1+Main!$I$2+VLOOKUP('Random Years'!BO30,'Hist Returns'!$A$12:$D$107,2,FALSE))","v":{"v":1589747.067326163,"d":"1,589,747"}},{"$f":"($A30-$A29)/365.25*(BR29+Main!$I36)*(1+Main!$I$2+VLOOKUP('Random Years'!BP30,'Hist Returns'!$A$12:$D$107,2,FALSE))","v":{"v":5175268.66698335,"d":"5,175,269"}},{"$f":"($A30-$A29)/365.25*(BS29+Main!$I36)*(1+Main!$I$2+VLOOKUP('Random Years'!BQ30,'Hist Returns'!$A$12:$D$107,2,FALSE))","v":{"v":16936728.68757376,"d":"16,936,729"}},{"$f":"($A30-$A29)/365.25*(BT29+Main!$I36)*(1+Main!$I$2+VLOOKUP('Random Years'!BR30,'Hist Returns'!$A$12:$D$107,2,FALSE))","v":{"v":-3058504.040224993,"d":"(3,058,504)"}},{"$f":"($A30-$A29)/365.25*(BU29+Main!$I36)*(1+Main!$I$2+VLOOKUP('Random Years'!BS30,'Hist Returns'!$A$12:$D$107,2,FALSE))","v":{"v":-2695683.400374564,"d":"(2,695,683)"}},{"$f":"($A30-$A29)/365.25*(BV29+Main!$I36)*(1+Main!$I$2+VLOOKUP('Random Years'!BT30,'Hist Returns'!$A$12:$D$107,2,FALSE))","v":{"v":-921199.6118181804,"d":"(921,200)"}},{"$f":"($A30-$A29)/365.25*(BW29+Main!$I36)*(1+Main!$I$2+VLOOKUP('Random Years'!BU30,'Hist Returns'!$A$12:$D$107,2,FALSE))","v":{"v":-5168599.677805443,"d":"(5,168,600)"}},{"$f":"($A30-$A29)/365.25*(BX29+Main!$I36)*(1+Main!$I$2+VLOOKUP('Random Years'!BV30,'Hist Returns'!$A$12:$D$107,2,FALSE))","v":{"v":2959539.9205760253,"d":"2,959,540"}},{"$f":"($A30-$A29)/365.25*(BY29+Main!$I36)*(1+Main!$I$2+VLOOKUP('Random Years'!BW30,'Hist Returns'!$A$12:$D$107,2,FALSE))","v":{"v":11122624.301155847,"d":"11,122,624"}},{"$f":"($A30-$A29)/365.25*(BZ29+Main!$I36)*(1+Main!$I$2+VLOOKUP('Random Years'!BX30,'Hist Returns'!$A$12:$D$107,2,FALSE))","v":{"v":-2599751.0097237728,"d":"(2,599,751)"}},{"$f":"($A30-$A29)/365.25*(CA29+Main!$I36)*(1+Main!$I$2+VLOOKUP('Random Years'!BY30,'Hist Returns'!$A$12:$D$107,2,FALSE))","v":{"v":-1883083.001090078,"d":"(1,883,083)"}},{"$f":"($A30-$A29)/365.25*(CB29+Main!$I36)*(1+Main!$I$2+VLOOKUP('Random Years'!BZ30,'Hist Returns'!$A$12:$D$107,2,FALSE))","v":{"v":-2362325.8361418475,"d":"(2,362,326)"}},{"$f":"($A30-$A29)/365.25*(CC29+Main!$I36)*(1+Main!$I$2+VLOOKUP('Random Years'!CA30,'Hist Returns'!$A$12:$D$107,2,FALSE))","v":{"v":792415.0042393439,"d":"792,415"}},{"$f":"($A30-$A29)/365.25*(CD29+Main!$I36)*(1+Main!$I$2+VLOOKUP('Random Years'!CB30,'Hist Returns'!$A$12:$D$107,2,FALSE))","v":{"v":13022624.236675045,"d":"13,022,624"}},{"$f":"($A30-$A29)/365.25*(CE29+Main!$I36)*(1+Main!$I$2+VLOOKUP('Random Years'!CC30,'Hist Returns'!$A$12:$D$107,2,FALSE))","v":{"v":58190261.154765524,"d":"58,190,261"}},{"$f":"($A30-$A29)/365.25*(CF29+Main!$I36)*(1+Main!$I$2+VLOOKUP('Random Years'!CD30,'Hist Returns'!$A$12:$D$107,2,FALSE))","v":{"v":-2249932.692086975,"d":"(2,249,933)"}},{"$f":"($A30-$A29)/365.25*(CG29+Main!$I36)*(1+Main!$I$2+VLOOKUP('Random Years'!CE30,'Hist Returns'!$A$12:$D$107,2,FALSE))","v":{"v":170783.75209336117,"d":"170,784"}},{"$f":"($A30-$A29)/365.25*(CH29+Main!$I36)*(1+Main!$I$2+VLOOKUP('Random Years'!CF30,'Hist Returns'!$A$12:$D$107,2,FALSE))","v":{"v":4091540.3525122195,"d":"4,091,540"}},{"$f":"($A30-$A29)/365.25*(CI29+Main!$I36)*(1+Main!$I$2+VLOOKUP('Random Years'!CG30,'Hist Returns'!$A$12:$D$107,2,FALSE))","v":{"v":-3088871.3410435254,"d":"(3,088,871)"}},{"$f":"($A30-$A29)/365.25*(CJ29+Main!$I36)*(1+Main!$I$2+VLOOKUP('Random Years'!CH30,'Hist Returns'!$A$12:$D$107,2,FALSE))","v":{"v":24846646.804970793,"d":"24,846,647"}},{"$f":"($A30-$A29)/365.25*(CK29+Main!$I36)*(1+Main!$I$2+VLOOKUP('Random Years'!CI30,'Hist Returns'!$A$12:$D$107,2,FALSE))","v":{"v":15220321.083369158,"d":"15,220,321"}},{"$f":"($A30-$A29)/365.25*(CL29+Main!$I36)*(1+Main!$I$2+VLOOKUP('Random Years'!CJ30,'Hist Returns'!$A$12:$D$107,2,FALSE))","v":{"v":28562326.219973207,"d":"28,562,326"}},{"$f":"($A30-$A29)/365.25*(CM29+Main!$I36)*(1+Main!$I$2+VLOOKUP('Random Years'!CK30,'Hist Returns'!$A$12:$D$107,2,FALSE))","v":{"v":27356080.254165906,"d":"27,356,080"}},{"$f":"($A30-$A29)/365.25*(CN29+Main!$I36)*(1+Main!$I$2+VLOOKUP('Random Years'!CL30,'Hist Returns'!$A$12:$D$107,2,FALSE))","v":{"v":16364299.808244346,"d":"16,364,300"}},{"$f":"($A30-$A29)/365.25*(CO29+Main!$I36)*(1+Main!$I$2+VLOOKUP('Random Years'!CM30,'Hist Returns'!$A$12:$D$107,2,FALSE))","v":{"v":19448390.17354621,"d":"19,448,390"}},{"$f":"($A30-$A29)/365.25*(CP29+Main!$I36)*(1+Main!$I$2+VLOOKUP('Random Years'!CN30,'Hist Returns'!$A$12:$D$107,2,FALSE))","v":{"v":-4203123.816396337,"d":"(4,203,124)"}},{"$f":"($A30-$A29)/365.25*(CQ29+Main!$I36)*(1+Main!$I$2+VLOOKUP('Random Years'!CO30,'Hist Returns'!$A$12:$D$107,2,FALSE))","v":{"v":-653686.148633455,"d":"(653,686)"}},{"$f":"($A30-$A29)/365.25*(CR29+Main!$I36)*(1+Main!$I$2+VLOOKUP('Random Years'!CP30,'Hist Returns'!$A$12:$D$107,2,FALSE))","v":{"v":30554398.653965026,"d":"30,554,399"}},{"$f":"($A30-$A29)/365.25*(CS29+Main!$I36)*(1+Main!$I$2+VLOOKUP('Random Years'!CQ30,'Hist Returns'!$A$12:$D$107,2,FALSE))","v":{"v":4548541.045050372,"d":"4,548,541"}},{"$f":"($A30-$A29)/365.25*(CT29+Main!$I36)*(1+Main!$I$2+VLOOKUP('Random Years'!CR30,'Hist Returns'!$A$12:$D$107,2,FALSE))","v":{"v":10524565.20893008,"d":"10,524,565"}},{"$f":"($A30-$A29)/365.25*(CU29+Main!$I36)*(1+Main!$I$2+VLOOKUP('Random Years'!CS30,'Hist Returns'!$A$12:$D$107,2,FALSE))","v":{"v":27565589.621424474,"d":"27,565,590"}},{"$f":"($A30-$A29)/365.25*(CV29+Main!$I36)*(1+Main!$I$2+VLOOKUP('Random Years'!CT30,'Hist Returns'!$A$12:$D$107,2,FALSE))","v":{"v":9149519.925011799,"d":"9,149,520"}},{"$f":"($A30-$A29)/365.25*(CW29+Main!$I36)*(1+Main!$I$2+VLOOKUP('Random Years'!CU30,'Hist Returns'!$A$12:$D$107,2,FALSE))","v":{"v":-4506665.503097795,"d":"(4,506,666)"}},{"$f":"($A30-$A29)/365.25*(CX29+Main!$I36)*(1+Main!$I$2+VLOOKUP('Random Years'!CV30,'Hist Returns'!$A$12:$D$107,2,FALSE))","v":{"v":12965845.452556057,"d":"12,965,845"}}]
[{"$f":"Main!A37","v":"2052-12-30"},{"$f":"Main!B37","v":98},{"$f":"($A31-$A30)/365.25*(C30+Main!$I37)*(1+Main!$I$2+VLOOKUP('Random Years'!A31,'Hist Returns'!$A$12:$D$107,2,FALSE))","v":{"v":975579.60839784,"d":"975,580"}},{"$f":"($A31-$A30)/365.25*(D30+Main!$I37)*(1+Main!$I$2+VLOOKUP('Random Years'!B31,'Hist Returns'!$A$12:$D$107,2,FALSE))","v":{"v":270058.49681745074,"d":"270,058"}},{"$f":"($A31-$A30)/365.25*(E30+Main!$I37)*(1+Main!$I$2+VLOOKUP('Random Years'!C31,'Hist Returns'!$A$12:$D$107,2,FALSE))","v":{"v":8008408.561506586,"d":"8,008,409"}},{"$f":"($A31-$A30)/365.25*(F30+Main!$I37)*(1+Main!$I$2+VLOOKUP('Random Years'!D31,'Hist Returns'!$A$12:$D$107,2,FALSE))","v":{"v":8516299.371129256,"d":"8,516,299"}},{"$f":"($A31-$A30)/365.25*(G30+Main!$I37)*(1+Main!$I$2+VLOOKUP('Random Years'!E31,'Hist Returns'!$A$12:$D$107,2,FALSE))","v":{"v":11168155.04633873,"d":"11,168,155"}},{"$f":"($A31-$A30)/365.25*(H30+Main!$I37)*(1+Main!$I$2+VLOOKUP('Random Years'!F31,'Hist Returns'!$A$12:$D$107,2,FALSE))","v":{"v":5976041.23461891,"d":"5,976,041"}},{"$f":"($A31-$A30)/365.25*(I30+Main!$I37)*(1+Main!$I$2+VLOOKUP('Random Years'!G31,'Hist Returns'!$A$12:$D$107,2,FALSE))","v":{"v":-859496.3509251993,"d":"(859,496)"}},{"$f":"($A31-$A30)/365.25*(J30+Main!$I37)*(1+Main!$I$2+VLOOKUP('Random Years'!H31,'Hist Returns'!$A$12:$D$107,2,FALSE))","v":{"v":-367868.9242791008,"d":"(367,869)"}},{"$f":"($A31-$A30)/365.25*(K30+Main!$I37)*(1+Main!$I$2+VLOOKUP('Random Years'!I31,'Hist Returns'!$A$12:$D$107,2,FALSE))","v":{"v":1729054.1277113317,"d":"1,729,054"}},{"$f":"($A31-$A30)/365.25*(L30+Main!$I37)*(1+Main!$I$2+VLOOKUP('Random Years'!J31,'Hist Returns'!$A$12:$D$107,2,FALSE))","v":{"v":10708349.899355106,"d":"10,708,350"}},{"$f":"($A31-$A30)/365.25*(M30+Main!$I37)*(1+Main!$I$2+VLOOKUP('Random Years'!K31,'Hist Returns'!$A$12:$D$107,2,FALSE))","v":{"v":1971587.6196578324,"d":"1,971,588"}},{"$f":"($A31-$A30)/365.25*(N30+Main!$I37)*(1+Main!$I$2+VLOOKUP('Random Years'!L31,'Hist Returns'!$A$12:$D$107,2,FALSE))","v":{"v":-5202033.217888368,"d":"(5,202,033)"}},{"$f":"($A31-$A30)/365.25*(O30+Main!$I37)*(1+Main!$I$2+VLOOKUP('Random Years'!M31,'Hist Returns'!$A$12:$D$107,2,FALSE))","v":{"v":2412166.233873564,"d":"2,412,166"}},{"$f":"($A31-$A30)/365.25*(P30+Main!$I37)*(1+Main!$I$2+VLOOKUP('Random Years'!N31,'Hist Returns'!$A$12:$D$107,2,FALSE))","v":{"v":-670448.4836611567,"d":"(670,448)"}},{"$f":"($A31-$A30)/365.25*(Q30+Main!$I37)*(1+Main!$I$2+VLOOKUP('Random Years'!O31,'Hist Returns'!$A$12:$D$107,2,FALSE))","v":{"v":-3365689.72518732,"d":"(3,365,690)"}},{"$f":"($A31-$A30)/365.25*(R30+Main!$I37)*(1+Main!$I$2+VLOOKUP('Random Years'!P31,'Hist Returns'!$A$12:$D$107,2,FALSE))","v":{"v":-875961.6258586763,"d":"(875,962)"}},{"$f":"($A31-$A30)/365.25*(S30+Main!$I37)*(1+Main!$I$2+VLOOKUP('Random Years'!Q31,'Hist Returns'!$A$12:$D$107,2,FALSE))","v":{"v":-3789677.677295475,"d":"(3,789,678)"}},{"$f":"($A31-$A30)/365.25*(T30+Main!$I37)*(1+Main!$I$2+VLOOKUP('Random Years'!R31,'Hist Returns'!$A$12:$D$107,2,FALSE))","v":{"v":-4784953.109717455,"d":"(4,784,953)"}},{"$f":"($A31-$A30)/365.25*(U30+Main!$I37)*(1+Main!$I$2+VLOOKUP('Random Years'!S31,'Hist Returns'!$A$12:$D$107,2,FALSE))","v":{"v":-1854852.7618064466,"d":"(1,854,853)"}},{"$f":"($A31-$A30)/365.25*(V30+Main!$I37)*(1+Main!$I$2+VLOOKUP('Random Years'!T31,'Hist Returns'!$A$12:$D$107,2,FALSE))","v":{"v":6138370.717504059,"d":"6,138,371"}},{"$f":"($A31-$A30)/365.25*(W30+Main!$I37)*(1+Main!$I$2+VLOOKUP('Random Years'!U31,'Hist Returns'!$A$12:$D$107,2,FALSE))","v":{"v":5341101.804682566,"d":"5,341,102"}},{"$f":"($A31-$A30)/365.25*(X30+Main!$I37)*(1+Main!$I$2+VLOOKUP('Random Years'!V31,'Hist Returns'!$A$12:$D$107,2,FALSE))","v":{"v":10142.773045695538,"d":"10,143"}},{"$f":"($A31-$A30)/365.25*(Y30+Main!$I37)*(1+Main!$I$2+VLOOKUP('Random Years'!W31,'Hist Returns'!$A$12:$D$107,2,FALSE))","v":{"v":-36587.767797116016,"d":"(36,588)"}},{"$f":"($A31-$A30)/365.25*(Z30+Main!$I37)*(1+Main!$I$2+VLOOKUP('Random Years'!X31,'Hist Returns'!$A$12:$D$107,2,FALSE))","v":{"v":-2535403.243623828,"d":"(2,535,403)"}},{"$f":"($A31-$A30)/365.25*(AA30+Main!$I37)*(1+Main!$I$2+VLOOKUP('Random Years'!Y31,'Hist Returns'!$A$12:$D$107,2,FALSE))","v":{"v":6927586.098913582,"d":"6,927,586"}},{"$f":"($A31-$A30)/365.25*(AB30+Main!$I37)*(1+Main!$I$2+VLOOKUP('Random Years'!Z31,'Hist Returns'!$A$12:$D$107,2,FALSE))","v":{"v":-694371.1109748965,"d":"(694,371)"}},{"$f":"($A31-$A30)/365.25*(AC30+Main!$I37)*(1+Main!$I$2+VLOOKUP('Random Years'!AA31,'Hist Returns'!$A$12:$D$107,2,FALSE))","v":{"v":-2112446.6693211063,"d":"(2,112,447)"}},{"$f":"($A31-$A30)/365.25*(AD30+Main!$I37)*(1+Main!$I$2+VLOOKUP('Random Years'!AB31,'Hist Returns'!$A$12:$D$107,2,FALSE))","v":{"v":-1710992.4446662497,"d":"(1,710,992)"}},{"$f":"($A31-$A30)/365.25*(AE30+Main!$I37)*(1+Main!$I$2+VLOOKUP('Random Years'!AC31,'Hist Returns'!$A$12:$D$107,2,FALSE))","v":{"v":-4659272.792225849,"d":"(4,659,273)"}},{"$f":"($A31-$A30)/365.25*(AF30+Main!$I37)*(1+Main!$I$2+VLOOKUP('Random Years'!AD31,'Hist Returns'!$A$12:$D$107,2,FALSE))","v":{"v":72469801.59584695,"d":"72,469,802"}},{"$f":"($A31-$A30)/365.25*(AG30+Main!$I37)*(1+Main!$I$2+VLOOKUP('Random Years'!AE31,'Hist Returns'!$A$12:$D$107,2,FALSE))","v":{"v":59521277.077792294,"d":"59,521,277"}},{"$f":"($A31-$A30)/365.25*(AH30+Main!$I37)*(1+Main!$I$2+VLOOKUP('Random Years'!AF31,'Hist Returns'!$A$12:$D$107,2,FALSE))","v":{"v":2062662.9717443625,"d":"2,062,663"}},{"$f":"($A31-$A30)/365.25*(AI30+Main!$I37)*(1+Main!$I$2+VLOOKUP('Random Years'!AG31,'Hist Returns'!$A$12:$D$107,2,FALSE))","v":{"v":1551427.427214937,"d":"1,551,427"}},{"$f":"($A31-$A30)/365.25*(AJ30+Main!$I37)*(1+Main!$I$2+VLOOKUP('Random Years'!AH31,'Hist Returns'!$A$12:$D$107,2,FALSE))","v":{"v":6871303.01486142,"d":"6,871,303"}},{"$f":"($A31-$A30)/365.25*(AK30+Main!$I37)*(1+Main!$I$2+VLOOKUP('Random Years'!AI31,'Hist Returns'!$A$12:$D$107,2,FALSE))","v":{"v":-3460564.7612779182,"d":"(3,460,565)"}},{"$f":"($A31-$A30)/365.25*(AL30+Main!$I37)*(1+Main!$I$2+VLOOKUP('Random Years'!AJ31,'Hist Returns'!$A$12:$D$107,2,FALSE))","v":{"v":9338550.707805926,"d":"9,338,551"}},{"$f":"($A31-$A30)/365.25*(AM30+Main!$I37)*(1+Main!$I$2+VLOOKUP('Random Years'!AK31,'Hist Returns'!$A$12:$D$107,2,FALSE))","v":{"v":-2163262.9837999973,"d":"(2,163,263)"}},{"$f":"($A31-$A30)/365.25*(AN30+Main!$I37)*(1+Main!$I$2+VLOOKUP('Random Years'!AL31,'Hist Returns'!$A$12:$D$107,2,FALSE))","v":{"v":5373354.047398235,"d":"5,373,354"}},{"$f":"($A31-$A30)/365.25*(AO30+Main!$I37)*(1+Main!$I$2+VLOOKUP('Random Years'!AM31,'Hist Returns'!$A$12:$D$107,2,FALSE))","v":{"v":3302158.625752863,"d":"3,302,159"}},{"$f":"($A31-$A30)/365.25*(AP30+Main!$I37)*(1+Main!$I$2+VLOOKUP('Random Years'!AN31,'Hist Returns'!$A$12:$D$107,2,FALSE))","v":{"v":65061765.81108097,"d":"65,061,766"}},{"$f":"($A31-$A30)/365.25*(AQ30+Main!$I37)*(1+Main!$I$2+VLOOKUP('Random Years'!AO31,'Hist Returns'!$A$12:$D$107,2,FALSE))","v":{"v":-1851323.013005364,"d":"(1,851,323)"}},{"$f":"($A31-$A30)/365.25*(AR30+Main!$I37)*(1+Main!$I$2+VLOOKUP('Random Years'!AP31,'Hist Returns'!$A$12:$D$107,2,FALSE))","v":{"v":3972751.0002723928,"d":"3,972,751"}},{"$f":"($A31-$A30)/365.25*(AS30+Main!$I37)*(1+Main!$I$2+VLOOKUP('Random Years'!AQ31,'Hist Returns'!$A$12:$D$107,2,FALSE))","v":{"v":920698.9923087918,"d":"920,699"}},{"$f":"($A31-$A30)/365.25*(AT30+Main!$I37)*(1+Main!$I$2+VLOOKUP('Random Years'!AR31,'Hist Returns'!$A$12:$D$107,2,FALSE))","v":{"v":-1751673.3270226552,"d":"(1,751,673)"}},{"$f":"($A31-$A30)/365.25*(AU30+Main!$I37)*(1+Main!$I$2+VLOOKUP('Random Years'!AS31,'Hist Returns'!$A$12:$D$107,2,FALSE))","v":{"v":7437362.828461654,"d":"7,437,363"}},{"$f":"($A31-$A30)/365.25*(AV30+Main!$I37)*(1+Main!$I$2+VLOOKUP('Random Years'!AT31,'Hist Returns'!$A$12:$D$107,2,FALSE))","v":{"v":8242526.804133575,"d":"8,242,527"}},{"$f":"($A31-$A30)/365.25*(AW30+Main!$I37)*(1+Main!$I$2+VLOOKUP('Random Years'!AU31,'Hist Returns'!$A$12:$D$107,2,FALSE))","v":{"v":-1772840.459485368,"d":"(1,772,840)"}},{"$f":"($A31-$A30)/365.25*(AX30+Main!$I37)*(1+Main!$I$2+VLOOKUP('Random Years'!AV31,'Hist Returns'!$A$12:$D$107,2,FALSE))","v":{"v":3965133.063975149,"d":"3,965,133"}},{"$f":"($A31-$A30)/365.25*(AY30+Main!$I37)*(1+Main!$I$2+VLOOKUP('Random Years'!AW31,'Hist Returns'!$A$12:$D$107,2,FALSE))","v":{"v":9265493.798627643,"d":"9,265,494"}},{"$f":"($A31-$A30)/365.25*(AZ30+Main!$I37)*(1+Main!$I$2+VLOOKUP('Random Years'!AX31,'Hist Returns'!$A$12:$D$107,2,FALSE))","v":{"v":-2063000.7071183037,"d":"(2,063,001)"}},{"$f":"($A31-$A30)/365.25*(BA30+Main!$I37)*(1+Main!$I$2+VLOOKUP('Random Years'!AY31,'Hist Returns'!$A$12:$D$107,2,FALSE))","v":{"v":-4328202.964954024,"d":"(4,328,203)"}},{"$f":"($A31-$A30)/365.25*(BB30+Main!$I37)*(1+Main!$I$2+VLOOKUP('Random Years'!AZ31,'Hist Returns'!$A$12:$D$107,2,FALSE))","v":{"v":-2267704.1128681684,"d":"(2,267,704)"}},{"$f":"($A31-$A30)/365.25*(BC30+Main!$I37)*(1+Main!$I$2+VLOOKUP('Random Years'!BA31,'Hist Returns'!$A$12:$D$107,2,FALSE))","v":{"v":-540196.9442168105,"d":"(540,197)"}},{"$f":"($A31-$A30)/365.25*(BD30+Main!$I37)*(1+Main!$I$2+VLOOKUP('Random Years'!BB31,'Hist Returns'!$A$12:$D$107,2,FALSE))","v":{"v":6269499.786235886,"d":"6,269,500"}},{"$f":"($A31-$A30)/365.25*(BE30+Main!$I37)*(1+Main!$I$2+VLOOKUP('Random Years'!BC31,'Hist Returns'!$A$12:$D$107,2,FALSE))","v":{"v":3082834.1541810352,"d":"3,082,834"}},{"$f":"($A31-$A30)/365.25*(BF30+Main!$I37)*(1+Main!$I$2+VLOOKUP('Random Years'!BD31,'Hist Returns'!$A$12:$D$107,2,FALSE))","v":{"v":-5178752.7518796595,"d":"(5,178,753)"}},{"$f":"($A31-$A30)/365.25*(BG30+Main!$I37)*(1+Main!$I$2+VLOOKUP('Random Years'!BE31,'Hist Returns'!$A$12:$D$107,2,FALSE))","v":{"v":-2218989.790317192,"d":"(2,218,990)"}},{"$f":"($A31-$A30)/365.25*(BH30+Main!$I37)*(1+Main!$I$2+VLOOKUP('Random Years'!BF31,'Hist Returns'!$A$12:$D$107,2,FALSE))","v":{"v":-1870900.9520416101,"d":"(1,870,901)"}},{"$f":"($A31-$A30)/365.25*(BI30+Main!$I37)*(1+Main!$I$2+VLOOKUP('Random Years'!BG31,'Hist Returns'!$A$12:$D$107,2,FALSE))","v":{"v":9714964.9038605,"d":"9,714,965"}},{"$f":"($A31-$A30)/365.25*(BJ30+Main!$I37)*(1+Main!$I$2+VLOOKUP('Random Years'!BH31,'Hist Returns'!$A$12:$D$107,2,FALSE))","v":{"v":-1447813.7863156507,"d":"(1,447,814)"}},{"$f":"($A31-$A30)/365.25*(BK30+Main!$I37)*(1+Main!$I$2+VLOOKUP('Random Years'!BI31,'Hist Returns'!$A$12:$D$107,2,FALSE))","v":{"v":384029.7070359784,"d":"384,030"}},{"$f":"($A31-$A30)/365.25*(BL30+Main!$I37)*(1+Main!$I$2+VLOOKUP('Random Years'!BJ31,'Hist Returns'!$A$12:$D$107,2,FALSE))","v":{"v":3180971.9919917136,"d":"3,180,972"}},{"$f":"($A31-$A30)/365.25*(BM30+Main!$I37)*(1+Main!$I$2+VLOOKUP('Random Years'!BK31,'Hist Returns'!$A$12:$D$107,2,FALSE))","v":{"v":-2623895.358653196,"d":"(2,623,895)"}},{"$f":"($A31-$A30)/365.25*(BN30+Main!$I37)*(1+Main!$I$2+VLOOKUP('Random Years'!BL31,'Hist Returns'!$A$12:$D$107,2,FALSE))","v":{"v":16973277.724210013,"d":"16,973,278"}},{"$f":"($A31-$A30)/365.25*(BO30+Main!$I37)*(1+Main!$I$2+VLOOKUP('Random Years'!BM31,'Hist Returns'!$A$12:$D$107,2,FALSE))","v":{"v":9432075.098128242,"d":"9,432,075"}},{"$f":"($A31-$A30)/365.25*(BP30+Main!$I37)*(1+Main!$I$2+VLOOKUP('Random Years'!BN31,'Hist Returns'!$A$12:$D$107,2,FALSE))","v":{"v":5460984.183055738,"d":"5,460,984"}},{"$f":"($A31-$A30)/365.25*(BQ30+Main!$I37)*(1+Main!$I$2+VLOOKUP('Random Years'!BO31,'Hist Returns'!$A$12:$D$107,2,FALSE))","v":{"v":1569970.1227357062,"d":"1,569,970"}},{"$f":"($A31-$A30)/365.25*(BR30+Main!$I37)*(1+Main!$I$2+VLOOKUP('Random Years'!BP31,'Hist Returns'!$A$12:$D$107,2,FALSE))","v":{"v":5738935.484405322,"d":"5,738,935"}},{"$f":"($A31-$A30)/365.25*(BS30+Main!$I37)*(1+Main!$I$2+VLOOKUP('Random Years'!BQ31,'Hist Returns'!$A$12:$D$107,2,FALSE))","v":{"v":10736979.70854748,"d":"10,736,980"}},{"$f":"($A31-$A30)/365.25*(BT30+Main!$I37)*(1+Main!$I$2+VLOOKUP('Random Years'!BR31,'Hist Returns'!$A$12:$D$107,2,FALSE))","v":{"v":-3096868.2350728735,"d":"(3,096,868)"}},{"$f":"($A31-$A30)/365.25*(BU30+Main!$I37)*(1+Main!$I$2+VLOOKUP('Random Years'!BS31,'Hist Returns'!$A$12:$D$107,2,FALSE))","v":{"v":-3977468.0434460687,"d":"(3,977,468)"}},{"$f":"($A31-$A30)/365.25*(BV30+Main!$I37)*(1+Main!$I$2+VLOOKUP('Random Years'!BT31,'Hist Returns'!$A$12:$D$107,2,FALSE))","v":{"v":-1438499.4257654126,"d":"(1,438,499)"}},{"$f":"($A31-$A30)/365.25*(BW30+Main!$I37)*(1+Main!$I$2+VLOOKUP('Random Years'!BU31,'Hist Returns'!$A$12:$D$107,2,FALSE))","v":{"v":-6726183.033333334,"d":"(6,726,183)"}},{"$f":"($A31-$A30)/365.25*(BX30+Main!$I37)*(1+Main!$I$2+VLOOKUP('Random Years'!BV31,'Hist Returns'!$A$12:$D$107,2,FALSE))","v":{"v":3434067.256971462,"d":"3,434,067"}},{"$f":"($A31-$A30)/365.25*(BY30+Main!$I37)*(1+Main!$I$2+VLOOKUP('Random Years'!BW31,'Hist Returns'!$A$12:$D$107,2,FALSE))","v":{"v":9249866.883010568,"d":"9,249,867"}},{"$f":"($A31-$A30)/365.25*(BZ30+Main!$I37)*(1+Main!$I$2+VLOOKUP('Random Years'!BX31,'Hist Returns'!$A$12:$D$107,2,FALSE))","v":{"v":-2655050.9988003704,"d":"(2,655,051)"}},{"$f":"($A31-$A30)/365.25*(CA30+Main!$I37)*(1+Main!$I$2+VLOOKUP('Random Years'!BY31,'Hist Returns'!$A$12:$D$107,2,FALSE))","v":{"v":-3360178.9551898707,"d":"(3,360,179)"}},{"$f":"($A31-$A30)/365.25*(CB30+Main!$I37)*(1+Main!$I$2+VLOOKUP('Random Years'!BZ31,'Hist Returns'!$A$12:$D$107,2,FALSE))","v":{"v":-2297740.871336092,"d":"(2,297,741)"}},{"$f":"($A31-$A30)/365.25*(CC30+Main!$I37)*(1+Main!$I$2+VLOOKUP('Random Years'!CA31,'Hist Returns'!$A$12:$D$107,2,FALSE))","v":{"v":616336.3506742497,"d":"616,336"}},{"$f":"($A31-$A30)/365.25*(CD30+Main!$I37)*(1+Main!$I$2+VLOOKUP('Random Years'!CB31,'Hist Returns'!$A$12:$D$107,2,FALSE))","v":{"v":15126753.51983315,"d":"15,126,754"}},{"$f":"($A31-$A30)/365.25*(CE30+Main!$I37)*(1+Main!$I$2+VLOOKUP('Random Years'!CC31,'Hist Returns'!$A$12:$D$107,2,FALSE))","v":{"v":76680698.45353663,"d":"76,680,698"}},{"$f":"($A31-$A30)/365.25*(CF30+Main!$I37)*(1+Main!$I$2+VLOOKUP('Random Years'!CD31,'Hist Returns'!$A$12:$D$107,2,FALSE))","v":{"v":-2845070.6357083744,"d":"(2,845,071)"}},{"$f":"($A31-$A30)/365.25*(CG30+Main!$I37)*(1+Main!$I$2+VLOOKUP('Random Years'!CE31,'Hist Returns'!$A$12:$D$107,2,FALSE))","v":{"v":-197813.50763727698,"d":"(197,814)"}},{"$f":"($A31-$A30)/365.25*(CH30+Main!$I37)*(1+Main!$I$2+VLOOKUP('Random Years'!CF31,'Hist Returns'!$A$12:$D$107,2,FALSE))","v":{"v":3950218.0754245864,"d":"3,950,218"}},{"$f":"($A31-$A30)/365.25*(CI30+Main!$I37)*(1+Main!$I$2+VLOOKUP('Random Years'!CG31,'Hist Returns'!$A$12:$D$107,2,FALSE))","v":{"v":-4315109.838134332,"d":"(4,315,110)"}},{"$f":"($A31-$A30)/365.25*(CJ30+Main!$I37)*(1+Main!$I$2+VLOOKUP('Random Years'!CH31,'Hist Returns'!$A$12:$D$107,2,FALSE))","v":{"v":29513449.352465935,"d":"29,513,449"}},{"$f":"($A31-$A30)/365.25*(CK30+Main!$I37)*(1+Main!$I$2+VLOOKUP('Random Years'!CI31,'Hist Returns'!$A$12:$D$107,2,FALSE))","v":{"v":16735365.908714266,"d":"16,735,366"}},{"$f":"($A31-$A30)/365.25*(CL30+Main!$I37)*(1+Main!$I$2+VLOOKUP('Random Years'!CJ31,'Hist Returns'!$A$12:$D$107,2,FALSE))","v":{"v":33448675.944224343,"d":"33,448,676"}},{"$f":"($A31-$A30)/365.25*(CM30+Main!$I37)*(1+Main!$I$2+VLOOKUP('Random Years'!CK31,'Hist Returns'!$A$12:$D$107,2,FALSE))","v":{"v":24133213.836592868,"d":"24,133,214"}},{"$f":"($A31-$A30)/365.25*(CN30+Main!$I37)*(1+Main!$I$2+VLOOKUP('Random Years'!CL31,'Hist Returns'!$A$12:$D$107,2,FALSE))","v":{"v":20050344.039705917,"d":"20,050,344"}},{"$f":"($A31-$A30)/365.25*(CO30+Main!$I37)*(1+Main!$I$2+VLOOKUP('Random Years'!CM31,'Hist Returns'!$A$12:$D$107,2,FALSE))","v":{"v":24206027.68164833,"d":"24,206,028"}},{"$f":"($A31-$A30)/365.25*(CP30+Main!$I37)*(1+Main!$I$2+VLOOKUP('Random Years'!CN31,'Hist Returns'!$A$12:$D$107,2,FALSE))","v":{"v":-4070154.057605029,"d":"(4,070,154)"}},{"$f":"($A31-$A30)/365.25*(CQ30+Main!$I37)*(1+Main!$I$2+VLOOKUP('Random Years'!CO31,'Hist Returns'!$A$12:$D$107,2,FALSE))","v":{"v":-1118272.6352397942,"d":"(1,118,273)"}},{"$f":"($A31-$A30)/365.25*(CR30+Main!$I37)*(1+Main!$I$2+VLOOKUP('Random Years'!CP31,'Hist Returns'!$A$12:$D$107,2,FALSE))","v":{"v":31936309.6544271,"d":"31,936,310"}},{"$f":"($A31-$A30)/365.25*(CS30+Main!$I37)*(1+Main!$I$2+VLOOKUP('Random Years'!CQ31,'Hist Returns'!$A$12:$D$107,2,FALSE))","v":{"v":6336359.551251696,"d":"6,336,360"}},{"$f":"($A31-$A30)/365.25*(CT30+Main!$I37)*(1+Main!$I$2+VLOOKUP('Random Years'!CR31,'Hist Returns'!$A$12:$D$107,2,FALSE))","v":{"v":9108396.019908693,"d":"9,108,396"}},{"$f":"($A31-$A30)/365.25*(CU30+Main!$I37)*(1+Main!$I$2+VLOOKUP('Random Years'!CS31,'Hist Returns'!$A$12:$D$107,2,FALSE))","v":{"v":39951597.78682359,"d":"39,951,598"}},{"$f":"($A31-$A30)/365.25*(CV30+Main!$I37)*(1+Main!$I$2+VLOOKUP('Random Years'!CT31,'Hist Returns'!$A$12:$D$107,2,FALSE))","v":{"v":10281575.41409368,"d":"10,281,575"}},{"$f":"($A31-$A30)/365.25*(CW30+Main!$I37)*(1+Main!$I$2+VLOOKUP('Random Years'!CU31,'Hist Returns'!$A$12:$D$107,2,FALSE))","v":{"v":-4766928.678829563,"d":"(4,766,929)"}},{"$f":"($A31-$A30)/365.25*(CX30+Main!$I37)*(1+Main!$I$2+VLOOKUP('Random Years'!CV31,'Hist Returns'!$A$12:$D$107,2,FALSE))","v":{"v":16613576.801226985,"d":"16,613,577"}}]
[]
["This worksheet calculatates 100 scenarios of annually compounded valuation for equities (S&P 500) using the randomly selected years of worksheet Random Years. "]
["The values in row 2 use the allocation percentage times the initial investment.  The values after row 2 are taken from the row above.  (See early part of formula)"]
["The results are added to the similar numbers for Treasury Bills and Treasury Bonds as part of the Random Yr Returns worksheet and then summarized on the Main worksheet. "]
["Pressing F9 or Ctrl r for a recalculation will give a new set of numbers. "]
["If there are no numbers, the allocation on Main is set to 0%.  "]

{"sheet":"T Bills","index":13,"n_rows":37,"n_cols":102,"rows_kept":37}
[{"$f":"'Fixed Rate Proj'!A3","v":"2022-12-31"},{"$f":"Main!B7","v":68},1,2,3,4,5,6,7,8,9,10,11,12,13,14,15,16,17,18,19,20,21,22,23,24,25,26,27,28,29,30,31,32,33,34,35,36,37,38,39,40,41,42,43,44,45,46,47,48,49,50,51,52,53,54,55,56,57,58,59,60,61,62,63,64,65,66,67,68,69,70,71,72,73,74,75,76,77,78,79,80,81,82,83,84,85,86,87,88,89,90,91,92,93,94,95,96,97,98,99,100]
[{"$f":"Main!A8","v":"2023-12-31"},{"$f":"Main!B8","v":69},{"$f":"($A2-$A1)/365.25*(Main!$I$1+Main!$I8)*Main!$D$3*(1+VLOOKUP('Random Years'!A2,'Hist Returns'!$A$12:$D$107,3,FALSE))","v":{"v":51985.02353629569,"d":"51,985"}},{"$f":"($A2-$A1)/365.25*(Main!$I$1+Main!$I8)*Main!$D$3*(1+VLOOKUP('Random Years'!B2,'Hist Returns'!$A$12:$D$107,3,FALSE))","v":{"v":49196.950480574946,"d":"49,197"}},{"$f":"($A2-$A1)/365.25*(Main!$I$1+Main!$I8)*Main!$D$3*(1+VLOOKUP('Random Years'!C2,'Hist Returns'!$A$12:$D$107,3,FALSE))","v":{"v":49260.8745541629,"d":"49,261"}},{"$f":"($A2-$A1)/365.25*(Main!$I$1+Main!$I8)*Main!$D$3*(1+VLOOKUP('Random Years'!D2,'Hist Returns'!$A$12:$D$107,3,FALSE))","v":{"v":49934.53594505134,"d":"49,935"}},{"$f":"($A2-$A1)/365.25*(Main!$I$1+Main!$I8)*Main!$D$3*(1+VLOOKUP('Random Years'!E2,'Hist Returns'!$A$12:$D$107,3,FALSE))","v":{"v":51552.30673046954,"d":"51,552"}},{"$f":"($A2-$A1)/365.25*(Main!$I$1+Main!$I8)*Main!$D$3*(1+VLOOKUP('Random Years'!F2,'Hist Returns'!$A$12:$D$107,3,FALSE))","v":{"v":49204.81805886271,"d":"49,205"}},{"$f":"($A2-$A1)/365.25*(Main!$I$1+Main!$I8)*Main!$D$3*(1+VLOOKUP('Random Years'!G2,'Hist Returns'!$A$12:$D$107,3,FALSE))","v":{"v":49644.41899569063,"d":"49,644"}},{"$f":"($A2-$A1)/365.25*(Main!$I$1+Main!$I8)*Main!$D$3*(1+VLOOKUP('Random Years'!H2,'Hist Returns'!$A$12:$D$107,3,FALSE))","v":{"v":49329.715864180704,"d":"49,330"}},{"$f":"($A2-$A1)/365.25*(Main!$I$1+Main!$I8)*Main!$D$3*(1+VLOOKUP('Random Years'!I2,'Hist Returns'!$A$12:$D$107,3,FALSE))","v":{"v":52004.69248201507,"d":"52,005"}},{"$f":"($A2-$A1)/365.25*(Main!$I$1+Main!$I8)*Main!$D$3*(1+VLOOKUP('Random Years'!J2,'Hist Returns'!$A$12:$D$107,3,FALSE))","v":{"v":50337.74933229843,"d":"50,338"}},{"$f":"($A2-$A1)/365.25*(Main!$I$1+Main!$I8)*Main!$D$3*(1+VLOOKUP('Random Years'!K2,'Hist Returns'!$A$12:$D$107,3,FALSE))","v":{"v":49211.702189864474,"d":"49,212"}},{"$f":"($A2-$A1)/365.25*(Main!$I$1+Main!$I8)*Main!$D$3*(1+VLOOKUP('Random Years'!L2,'Hist Returns'!$A$12:$D$107,3,FALSE))","v":{"v":51930.933935567424,"d":"51,931"}},{"$f":"($A2-$A1)/365.25*(Main!$I$1+Main!$I8)*Main!$D$3*(1+VLOOKUP('Random Years'!M2,'Hist Returns'!$A$12:$D$107,3,FALSE))","v":{"v":50775.38337455442,"d":"50,775"}},{"$f":"($A2-$A1)/365.25*(Main!$I$1+Main!$I8)*Main!$D$3*(1+VLOOKUP('Random Years'!N2,'Hist Returns'!$A$12:$D$107,3,FALSE))","v":{"v":49855.860162173856,"d":"49,856"}},{"$f":"($A2-$A1)/365.25*(Main!$I$1+Main!$I8)*Main!$D$3*(1+VLOOKUP('Random Years'!O2,'Hist Returns'!$A$12:$D$107,3,FALSE))","v":{"v":49216.61942629432,"d":"49,217"}},{"$f":"($A2-$A1)/365.25*(Main!$I$1+Main!$I8)*Main!$D$3*(1+VLOOKUP('Random Years'!P2,'Hist Returns'!$A$12:$D$107,3,FALSE))","v":{"v":50165.646057253936,"d":"50,166"}},{"$f":"($A2-$A1)/365.25*(Main!$I$1+Main!$I8)*Main!$D$3*(1+VLOOKUP('Random Years'!Q2,'Hist Returns'!$A$12:$D$107,3,FALSE))","v":{"v":49201.86771700479,"d":"49,202"}},{"$f":"($A2-$A1)/365.25*(Main!$I$1+Main!$I8)*Main!$D$3*(1+VLOOKUP('Random Years'!R2,'Hist Returns'!$A$12:$D$107,3,FALSE))","v":{"v":56204.01239310062,"d":"56,204"}},{"$f":"($A2-$A1)/365.25*(Main!$I$1+Main!$I8)*Main!$D$3*(1+VLOOKUP('Random Years'!S2,'Hist Returns'!$A$12:$D$107,3,FALSE))","v":{"v":51404.78963757427,"d":"51,405"}},{"$f":"($A2-$A1)/365.25*(Main!$I$1+Main!$I8)*Main!$D$3*(1+VLOOKUP('Random Years'!T2,'Hist Returns'!$A$12:$D$107,3,FALSE))","v":{"v":49900.115290042435,"d":"49,900"}},{"$f":"($A2-$A1)/365.25*(Main!$I$1+Main!$I8)*Main!$D$3*(1+VLOOKUP('Random Years'!U2,'Hist Returns'!$A$12:$D$107,3,FALSE))","v":{"v":54060.097309689256,"d":"54,060"}},{"$f":"($A2-$A1)/365.25*(Main!$I$1+Main!$I8)*Main!$D$3*(1+VLOOKUP('Random Years'!V2,'Hist Returns'!$A$12:$D$107,3,FALSE))","v":{"v":49192.03324414511,"d":"49,192"}},{"$f":"($A2-$A1)/365.25*(Main!$I$1+Main!$I8)*Main!$D$3*(1+VLOOKUP('Random Years'!W2,'Hist Returns'!$A$12:$D$107,3,FALSE))","v":{"v":49339.55033704039,"d":"49,340"}},{"$f":"($A2-$A1)/365.25*(Main!$I$1+Main!$I8)*Main!$D$3*(1+VLOOKUP('Random Years'!X2,'Hist Returns'!$A$12:$D$107,3,FALSE))","v":{"v":51616.2308040575,"d":"51,616"}},{"$f":"($A2-$A1)/365.25*(Main!$I$1+Main!$I8)*Main!$D$3*(1+VLOOKUP('Random Years'!Y2,'Hist Returns'!$A$12:$D$107,3,FALSE))","v":{"v":49423.14335634772,"d":"49,423"}},{"$f":"($A2-$A1)/365.25*(Main!$I$1+Main!$I8)*Main!$D$3*(1+VLOOKUP('Random Years'!Z2,'Hist Returns'!$A$12:$D$107,3,FALSE))","v":{"v":53160.243043028066,"d":"53,160"}},{"$f":"($A2-$A1)/365.25*(Main!$I$1+Main!$I8)*Main!$D$3*(1+VLOOKUP('Random Years'!AA2,'Hist Returns'!$A$12:$D$107,3,FALSE))","v":{"v":50047.63238293772,"d":"50,048"}},{"$f":"($A2-$A1)/365.25*(Main!$I$1+Main!$I8)*Main!$D$3*(1+VLOOKUP('Random Years'!AB2,'Hist Returns'!$A$12:$D$107,3,FALSE))","v":{"v":50849.141921002054,"d":"50,849"}},{"$f":"($A2-$A1)/365.25*(Main!$I$1+Main!$I8)*Main!$D$3*(1+VLOOKUP('Random Years'!AC2,'Hist Returns'!$A$12:$D$107,3,FALSE))","v":{"v":50775.38337455442,"d":"50,775"}},{"$f":"($A2-$A1)/365.25*(Main!$I$1+Main!$I8)*Main!$D$3*(1+VLOOKUP('Random Years'!AD2,'Hist Returns'!$A$12:$D$107,3,FALSE))","v":{"v":50652.45246380835,"d":"50,652"}},{"$f":"($A2-$A1)/365.25*(Main!$I$1+Main!$I8)*Main!$D$3*(1+VLOOKUP('Random Years'!AE2,'Hist Returns'!$A$12:$D$107,3,FALSE))","v":{"v":51114.67268821356,"d":"51,115"}},{"$f":"($A2-$A1)/365.25*(Main!$I$1+Main!$I8)*Main!$D$3*(1+VLOOKUP('Random Years'!AF2,'Hist Returns'!$A$12:$D$107,3,FALSE))","v":{"v":51552.30673046954,"d":"51,552"}},{"$f":"($A2-$A1)/365.25*(Main!$I$1+Main!$I8)*Main!$D$3*(1+VLOOKUP('Random Years'!AG2,'Hist Returns'!$A$12:$D$107,3,FALSE))","v":{"v":53327.42908164272,"d":"53,327"}},{"$f":"($A2-$A1)/365.25*(Main!$I$1+Main!$I8)*Main!$D$3*(1+VLOOKUP('Random Years'!AH2,'Hist Returns'!$A$12:$D$107,3,FALSE))","v":{"v":50047.63238293772,"d":"50,048"}},{"$f":"($A2-$A1)/365.25*(Main!$I$1+Main!$I8)*Main!$D$3*(1+VLOOKUP('Random Years'!AI2,'Hist Returns'!$A$12:$D$107,3,FALSE))","v":{"v":49713.26030570842,"d":"49,713"}},{"$f":"($A2-$A1)/365.25*(Main!$I$1+Main!$I8)*Main!$D$3*(1+VLOOKUP('Random Years'!AJ2,'Hist Returns'!$A$12:$D$107,3,FALSE))","v":{"v":51455.19131098015,"d":"51,455"}},{"$f":"($A2-$A1)/365.25*(Main!$I$1+Main!$I8)*Main!$D$3*(1+VLOOKUP('Random Years'!AK2,'Hist Returns'!$A$12:$D$107,3,FALSE))","v":{"v":49359.21928275976,"d":"49,359"}},{"$f":"($A2-$A1)/365.25*(Main!$I$1+Main!$I8)*Main!$D$3*(1+VLOOKUP('Random Years'!AL2,'Hist Returns'!$A$12:$D$107,3,FALSE))","v":{"v":50672.121409527725,"d":"50,672"}},{"$f":"($A2-$A1)/365.25*(Main!$I$1+Main!$I8)*Main!$D$3*(1+VLOOKUP('Random Years'!AM2,'Hist Returns'!$A$12:$D$107,3,FALSE))","v":{"v":52884.87780295688,"d":"52,885"}},{"$f":"($A2-$A1)/365.25*(Main!$I$1+Main!$I8)*Main!$D$3*(1+VLOOKUP('Random Years'!AN2,'Hist Returns'!$A$12:$D$107,3,FALSE))","v":{"v":49192.03324414511,"d":"49,192"}},{"$f":"($A2-$A1)/365.25*(Main!$I$1+Main!$I8)*Main!$D$3*(1+VLOOKUP('Random Years'!AO2,'Hist Returns'!$A$12:$D$107,3,FALSE))","v":{"v":49359.21928275976,"d":"49,359"}},{"$f":"($A2-$A1)/365.25*(Main!$I$1+Main!$I8)*Main!$D$3*(1+VLOOKUP('Random Years'!AP2,'Hist Returns'!$A$12:$D$107,3,FALSE))","v":{"v":50431.17682446544,"d":"50,431"}},{"$f":"($A2-$A1)/365.25*(Main!$I$1+Main!$I8)*Main!$D$3*(1+VLOOKUP('Random Years'!AQ2,'Hist Returns'!$A$12:$D$107,3,FALSE))","v":{"v":49275.62626345243,"d":"49,276"}},{"$f":"($A2-$A1)/365.25*(Main!$I$1+Main!$I8)*Main!$D$3*(1+VLOOKUP('Random Years'!AR2,'Hist Returns'!$A$12:$D$107,3,FALSE))","v":{"v":49196.950480574946,"d":"49,197"}},{"$f":"($A2-$A1)/365.25*(Main!$I$1+Main!$I8)*Main!$D$3*(1+VLOOKUP('Random Years'!AS2,'Hist Returns'!$A$12:$D$107,3,FALSE))","v":{"v":49260.8745541629,"d":"49,261"}},{"$f":"($A2-$A1)/365.25*(Main!$I$1+Main!$I8)*Main!$D$3*(1+VLOOKUP('Random Years'!AT2,'Hist Returns'!$A$12:$D$107,3,FALSE))","v":{"v":49211.702189864474,"d":"49,212"}},{"$f":"($A2-$A1)/365.25*(Main!$I$1+Main!$I8)*Main!$D$3*(1+VLOOKUP('Random Years'!AU2,'Hist Returns'!$A$12:$D$107,3,FALSE))","v":{"v":49255.95731773307,"d":"49,256"}},{"$f":"($A2-$A1)/365.25*(Main!$I$1+Main!$I8)*Main!$D$3*(1+VLOOKUP('Random Years'!AV2,'Hist Returns'!$A$12:$D$107,3,FALSE))","v":{"v":49196.950480574946,"d":"49,197"}},{"$f":"($A2-$A1)/365.25*(Main!$I$1+Main!$I8)*Main!$D$3*(1+VLOOKUP('Random Years'!AW2,'Hist Returns'!$A$12:$D$107,3,FALSE))","v":{"v":50976.99006817796,"d":"50,977"}},{"$f":"($A2-$A1)/365.25*(Main!$I$1+Main!$I8)*Main!$D$3*(1+VLOOKUP('Random Years'!AX2,'Hist Returns'!$A$12:$D$107,3,FALSE))","v":{"v":50652.45246380835,"d":"50,652"}},{"$f":"($A2-$A1)/365.25*(Main!$I$1+Main!$I8)*Main!$D$3*(1+VLOOKUP('Random Years'!AY2,'Hist Returns'!$A$12:$D$107,3,FALSE))","v":{"v":50308.245913719365,"d":"50,308"}},{"$f":"($A2-$A1)/365.25*(Main!$I$1+Main!$I8)*Main!$D$3*(1+VLOOKUP('Random Years'!AZ2,'Hist Returns'!$A$12:$D$107,3,FALSE))","v":{"v":52004.69248201507,"d":"52,005"}},{"$f":"($A2-$A1)/365.25*(Main!$I$1+Main!$I8)*Main!$D$3*(1+VLOOKUP('Random Years'!BA2,'Hist Returns'!$A$12:$D$107,3,FALSE))","v":{"v":52997.974240843265,"d":"52,998"}},{"$f":"($A2-$A1)/365.25*(Main!$I$1+Main!$I8)*Main!$D$3*(1+VLOOKUP('Random Years'!BB2,'Hist Returns'!$A$12:$D$107,3,FALSE))","v":{"v":49678.83965069952,"d":"49,679"}},{"$f":"($A2-$A1)/365.25*(Main!$I$1+Main!$I8)*Main!$D$3*(1+VLOOKUP('Random Years'!BC2,'Hist Returns'!$A$12:$D$107,3,FALSE))","v":{"v":49775.95507018892,"d":"49,776"}},{"$f":"($A2-$A1)/365.25*(Main!$I$1+Main!$I8)*Main!$D$3*(1+VLOOKUP('Random Years'!BD2,'Hist Returns'!$A$12:$D$107,3,FALSE))","v":{"v":50652.45246380835,"d":"50,652"}},{"$f":"($A2-$A1)/365.25*(Main!$I$1+Main!$I8)*Main!$D$3*(1+VLOOKUP('Random Years'!BE2,'Hist Returns'!$A$12:$D$107,3,FALSE))","v":{"v":49339.55033704039,"d":"49,340"}},{"$f":"($A2-$A1)/365.25*(Main!$I$1+Main!$I8)*Main!$D$3*(1+VLOOKUP('Random Years'!BF2,'Hist Returns'!$A$12:$D$107,3,FALSE))","v":{"v":51090.08650606434,"d":"51,090"}},{"$f":"($A2-$A1)/365.25*(Main!$I$1+Main!$I8)*Main!$D$3*(1+VLOOKUP('Random Years'!BG2,'Hist Returns'!$A$12:$D$107,3,FALSE))","v":{"v":49196.950480574946,"d":"49,197"}},{"$f":"($A2-$A1)/365.25*(Main!$I$1+Main!$I8)*Main!$D$3*(1+VLOOKUP('Random Years'!BH2,'Hist Returns'!$A$12:$D$107,3,FALSE))","v":{"v":49993.54278220944,"d":"49,994"}},{"$f":"($A2-$A1)/365.25*(Main!$I$1+Main!$I8)*Main!$D$3*(1+VLOOKUP('Random Years'!BI2,'Hist Returns'!$A$12:$D$107,3,FALSE))","v":{"v":49329.715864180704,"d":"49,330"}},{"$f":"($A2-$A1)/365.25*(Main!$I$1+Main!$I8)*Main!$D$3*(1+VLOOKUP('Random Years'!BJ2,'Hist Returns'!$A$12:$D$107,3,FALSE))","v":{"v":52142.37510205065,"d":"52,142"}},{"$f":"($A2-$A1)/365.25*(Main!$I$1+Main!$I8)*Main!$D$3*(1+VLOOKUP('Random Years'!BK2,'Hist Returns'!$A$12:$D$107,3,FALSE))","v":{"v":49423.14335634772,"d":"49,423"}},{"$f":"($A2-$A1)/365.25*(Main!$I$1+Main!$I8)*Main!$D$3*(1+VLOOKUP('Random Years'!BL2,'Hist Returns'!$A$12:$D$107,3,FALSE))","v":{"v":51134.34163393293,"d":"51,134"}},{"$f":"($A2-$A1)/365.25*(Main!$I$1+Main!$I8)*Main!$D$3*(1+VLOOKUP('Random Years'!BM2,'Hist Returns'!$A$12:$D$107,3,FALSE))","v":{"v":51985.02353629569,"d":"51,985"}},{"$f":"($A2-$A1)/365.25*(Main!$I$1+Main!$I8)*Main!$D$3*(1+VLOOKUP('Random Years'!BN2,'Hist Returns'!$A$12:$D$107,3,FALSE))","v":{"v":49204.81805886271,"d":"49,205"}},{"$f":"($A2-$A1)/365.25*(Main!$I$1+Main!$I8)*Main!$D$3*(1+VLOOKUP('Random Years'!BO2,'Hist Returns'!$A$12:$D$107,3,FALSE))","v":{"v":49196.950480574946,"d":"49,197"}},{"$f":"($A2-$A1)/365.25*(Main!$I$1+Main!$I8)*Main!$D$3*(1+VLOOKUP('Random Years'!BP2,'Hist Returns'!$A$12:$D$107,3,FALSE))","v":{"v":51090.08650606434,"d":"51,090"}},{"$f":"($A2-$A1)/365.25*(Main!$I$1+Main!$I8)*Main!$D$3*(1+VLOOKUP('Random Years'!BQ2,'Hist Returns'!$A$12:$D$107,3,FALSE))","v":{"v":49987.396236672146,"d":"49,987"}},{"$f":"($A2-$A1)/365.25*(Main!$I$1+Main!$I8)*Main!$D$3*(1+VLOOKUP('Random Years'!BR2,'Hist Returns'!$A$12:$D$107,3,FALSE))","v":{"v":50101.72198366598,"d":"50,102"}},{"$f":"($A2-$A1)/365.25*(Main!$I$1+Main!$I8)*Main!$D$3*(1+VLOOKUP('Random Years'!BS2,'Hist Returns'!$A$12:$D$107,3,FALSE))","v":{"v":54689.50357270911,"d":"54,690"}},{"$f":"($A2-$A1)/365.25*(Main!$I$1+Main!$I8)*Main!$D$3*(1+VLOOKUP('Random Years'!BT2,'Hist Returns'!$A$12:$D$107,3,FALSE))","v":{"v":50775.38337455442,"d":"50,775"}},{"$f":"($A2-$A1)/365.25*(Main!$I$1+Main!$I8)*Main!$D$3*(1+VLOOKUP('Random Years'!BU2,'Hist Returns'!$A$12:$D$107,3,FALSE))","v":{"v":49339.55033704039,"d":"49,340"}},{"$f":"($A2-$A1)/365.25*(Main!$I$1+Main!$I8)*Main!$D$3*(1+VLOOKUP('Random Years'!BV2,'Hist Returns'!$A$12:$D$107,3,FALSE))","v":{"v":54689.50357270911,"d":"54,690"}},{"$f":"($A2-$A1)/365.25*(Main!$I$1+Main!$I8)*Main!$D$3*(1+VLOOKUP('Random Years'!BW2,'Hist Returns'!$A$12:$D$107,3,FALSE))","v":{"v":49238.74699022861,"d":"49,239"}},{"$f":"($A2-$A1)/365.25*(Main!$I$1+Main!$I8)*Main!$D$3*(1+VLOOKUP('Random Years'!BX2,'Hist Returns'!$A$12:$D$107,3,FALSE))","v":{"v":51616.2308040575,"d":"51,616"}},{"$f":"($A2-$A1)/365.25*(Main!$I$1+Main!$I8)*Main!$D$3*(1+VLOOKUP('Random Years'!BY2,'Hist Returns'!$A$12:$D$107,3,FALSE))","v":{"v":49196.950480574946,"d":"49,197"}},{"$f":"($A2-$A1)/365.25*(Main!$I$1+Main!$I8)*Main!$D$3*(1+VLOOKUP('Random Years'!BZ2,'Hist Returns'!$A$12:$D$107,3,FALSE))","v":{"v":49196.950480574946,"d":"49,197"}},{"$f":"($A2-$A1)/365.25*(Main!$I$1+Main!$I8)*Main!$D$3*(1+VLOOKUP('Random Years'!CA2,'Hist Returns'!$A$12:$D$107,3,FALSE))","v":{"v":54586.241607682416,"d":"54,586"}},{"$f":"($A2-$A1)/365.25*(Main!$I$1+Main!$I8)*Main!$D$3*(1+VLOOKUP('Random Years'!CB2,'Hist Returns'!$A$12:$D$107,3,FALSE))","v":{"v":49275.62626345243,"d":"49,276"}},{"$f":"($A2-$A1)/365.25*(Main!$I$1+Main!$I8)*Main!$D$3*(1+VLOOKUP('Random Years'!CC2,'Hist Returns'!$A$12:$D$107,3,FALSE))","v":{"v":53160.243043028066,"d":"53,160"}},{"$f":"($A2-$A1)/365.25*(Main!$I$1+Main!$I8)*Main!$D$3*(1+VLOOKUP('Random Years'!CD2,'Hist Returns'!$A$12:$D$107,3,FALSE))","v":{"v":52461.99546999042,"d":"52,462"}},{"$f":"($A2-$A1)/365.25*(Main!$I$1+Main!$I8)*Main!$D$3*(1+VLOOKUP('Random Years'!CE2,'Hist Returns'!$A$12:$D$107,3,FALSE))","v":{"v":53327.42908164272,"d":"53,327"}},{"$f":"($A2-$A1)/365.25*(Main!$I$1+Main!$I8)*Main!$D$3*(1+VLOOKUP('Random Years'!CF2,'Hist Returns'!$A$12:$D$107,3,FALSE))","v":{"v":51455.19131098015,"d":"51,455"}},{"$f":"($A2-$A1)/365.25*(Main!$I$1+Main!$I8)*Main!$D$3*(1+VLOOKUP('Random Years'!CG2,'Hist Returns'!$A$12:$D$107,3,FALSE))","v":{"v":51409.706874004114,"d":"51,410"}},{"$f":"($A2-$A1)/365.25*(Main!$I$1+Main!$I8)*Main!$D$3*(1+VLOOKUP('Random Years'!CH2,'Hist Returns'!$A$12:$D$107,3,FALSE))","v":{"v":53327.42908164272,"d":"53,327"}},{"$f":"($A2-$A1)/365.25*(Main!$I$1+Main!$I8)*Main!$D$3*(1+VLOOKUP('Random Years'!CI2,'Hist Returns'!$A$12:$D$107,3,FALSE))","v":{"v":52343.9817956742,"d":"52,344"}},{"$f":"($A2-$A1)/365.25*(Main!$I$1+Main!$I8)*Main!$D$3*(1+VLOOKUP('Random Years'!CJ2,'Hist Returns'!$A$12:$D$107,3,FALSE))","v":{"v":49187.11600771527,"d":"49,187"}},{"$f":"($A2-$A1)/365.25*(Main!$I$1+Main!$I8)*Main!$D$3*(1+VLOOKUP('Random Years'!CK2,'Hist Returns'!$A$12:$D$107,3,FALSE))","v":{"v":49359.21928275976,"d":"49,359"}},{"$f":"($A2-$A1)/365.25*(Main!$I$1+Main!$I8)*Main!$D$3*(1+VLOOKUP('Random Years'!CL2,'Hist Returns'!$A$12:$D$107,3,FALSE))","v":{"v":51455.19131098015,"d":"51,455"}},{"$f":"($A2-$A1)/365.25*(Main!$I$1+Main!$I8)*Main!$D$3*(1+VLOOKUP('Random Years'!CM2,'Hist Returns'!$A$12:$D$107,3,FALSE))","v":{"v":49452.64677492677,"d":"49,453"}},{"$f":"($A2-$A1)/365.25*(Main!$I$1+Main!$I8)*Main!$D$3*(1+VLOOKUP('Random Years'!CN2,'Hist Returns'!$A$12:$D$107,3,FALSE))","v":{"v":52461.99546999042,"d":"52,462"}},{"$f":"($A2-$A1)/365.25*(Main!$I$1+Main!$I8)*Main!$D$3*(1+VLOOKUP('Random Years'!CO2,'Hist Returns'!$A$12:$D$107,3,FALSE))","v":{"v":50898.314285300476,"d":"50,898"}},{"$f":"($A2-$A1)/365.25*(Main!$I$1+Main!$I8)*Main!$D$3*(1+VLOOKUP('Random Years'!CP2,'Hist Returns'!$A$12:$D$107,3,FALSE))","v":{"v":50288.576968,"d":"50,289"}},{"$f":"($A2-$A1)/365.25*(Main!$I$1+Main!$I8)*Main!$D$3*(1+VLOOKUP('Random Years'!CQ2,'Hist Returns'!$A$12:$D$107,3,FALSE))","v":{"v":50431.17682446544,"d":"50,431"}},{"$f":"($A2-$A1)/365.25*(Main!$I$1+Main!$I8)*Main!$D$3*(1+VLOOKUP('Random Years'!CR2,'Hist Returns'!$A$12:$D$107,3,FALSE))","v":{"v":50539.356025921974,"d":"50,539"}},{"$f":"($A2-$A1)/365.25*(Main!$I$1+Main!$I8)*Main!$D$3*(1+VLOOKUP('Random Years'!CS2,'Hist Returns'!$A$12:$D$107,3,FALSE))","v":{"v":51134.34163393293,"d":"51,134"}},{"$f":"($A2-$A1)/365.25*(Main!$I$1+Main!$I8)*Main!$D$3*(1+VLOOKUP('Random Years'!CT2,'Hist Returns'!$A$12:$D$107,3,FALSE))","v":{"v":50288.576968,"d":"50,289"}},{"$f":"($A2-$A1)/365.25*(Main!$I$1+Main!$I8)*Main!$D$3*(1+VLOOKUP('Random Years'!CU2,'Hist Returns'!$A$12:$D$107,3,FALSE))","v":{"v":51409.706874004114,"d":"51,410"}},{"$f":"($A2-$A1)/365.25*(Main!$I$1+Main!$I8)*Main!$D$3*(1+VLOOKUP('Random Years'!CV2,'Hist Returns'!$A$12:$D$107,3,FALSE))","v":{"v":51472.4016384846,"d":"51,472"}}]
[{"$f":"Main!A9","v":"2024-12-30"},{"$f":"Main!B9","v":70},{"$f":"($A3-$A2)/365.25*(C2+(Main!$I9*Main!$D$3))*(1+VLOOKUP('Random Years'!A3,'Hist Returns'!$A$12:$D$107,3,FALSE))","v":{"v":54558.45174199017,"d":"54,558"}},{"$f":"($A3-$A2)/365.25*(D2+(Main!$I9*Main!$D$3))*(1+VLOOKUP('Random Years'!B3,'Hist Returns'!$A$12:$D$107,3,FALSE))","v":{"v":48476.52119124641,"d":"48,477"}},{"$f":"($A3-$A2)/365.25*(E2+(Main!$I9*Main!$D$3))*(1+VLOOKUP('Random Years'!C3,'Hist Returns'!$A$12:$D$107,3,FALSE))","v":{"v":50663.797472350285,"d":"50,664"}},{"$f":"($A3-$A2)/365.25*(F2+(Main!$I9*Main!$D$3))*(1+VLOOKUP('Random Years'!D3,'Hist Returns'!$A$12:$D$107,3,FALSE))","v":{"v":49234.2202764448,"d":"49,234"}},{"$f":"($A3-$A2)/365.25*(G2+(Main!$I9*Main!$D$3))*(1+VLOOKUP('Random Years'!E3,'Hist Returns'!$A$12:$D$107,3,FALSE))","v":{"v":52330.961320032846,"d":"52,331"}},{"$f":"($A3-$A2)/365.25*(H2+(Main!$I9*Main!$D$3))*(1+VLOOKUP('Random Years'!F3,'Hist Returns'!$A$12:$D$107,3,FALSE))","v":{"v":51210.52099968844,"d":"51,211"}},{"$f":"($A3-$A2)/365.25*(I2+(Main!$I9*Main!$D$3))*(1+VLOOKUP('Random Years'!G3,'Hist Returns'!$A$12:$D$107,3,FALSE))","v":{"v":49364.01145371736,"d":"49,364"}},{"$f":"($A3-$A2)/365.25*(J2+(Main!$I9*Main!$D$3))*(1+VLOOKUP('Random Years'!H3,'Hist Returns'!$A$12:$D$107,3,FALSE))","v":{"v":49350.912270375025,"d":"49,351"}},{"$f":"($A3-$A2)/365.25*(K2+(Main!$I9*Main!$D$3))*(1+VLOOKUP('Random Years'!I3,'Hist Returns'!$A$12:$D$107,3,FALSE))","v":{"v":55055.73707951534,"d":"55,056"}},{"$f":"($A3-$A2)/365.25*(L2+(Main!$I9*Main!$D$3))*(1+VLOOKUP('Random Years'!J3,'Hist Returns'!$A$12:$D$107,3,FALSE))","v":{"v":49586.30692714199,"d":"49,586"}},{"$f":"($A3-$A2)/365.25*(M2+(Main!$I9*Main!$D$3))*(1+VLOOKUP('Random Years'!K3,'Hist Returns'!$A$12:$D$107,3,FALSE))","v":{"v":48457.38214003573,"d":"48,457"}},{"$f":"($A3-$A2)/365.25*(N2+(Main!$I9*Main!$D$3))*(1+VLOOKUP('Random Years'!L3,'Hist Returns'!$A$12:$D$107,3,FALSE))","v":{"v":55124.83080170299,"d":"55,125"}},{"$f":"($A3-$A2)/365.25*(O2+(Main!$I9*Main!$D$3))*(1+VLOOKUP('Random Years'!M3,'Hist Returns'!$A$12:$D$107,3,FALSE))","v":{"v":57139.63990309045,"d":"57,140"}},{"$f":"($A3-$A2)/365.25*(P2+(Main!$I9*Main!$D$3))*(1+VLOOKUP('Random Years'!N3,'Hist Returns'!$A$12:$D$107,3,FALSE))","v":{"v":50872.98616445146,"d":"50,873"}},{"$f":"($A3-$A2)/365.25*(Q2+(Main!$I9*Main!$D$3))*(1+VLOOKUP('Random Years'!O3,'Hist Returns'!$A$12:$D$107,3,FALSE))","v":{"v":50365.72525244068,"d":"50,366"}},{"$f":"($A3-$A2)/365.25*(R2+(Main!$I9*Main!$D$3))*(1+VLOOKUP('Random Years'!P3,'Hist Returns'!$A$12:$D$107,3,FALSE))","v":{"v":53554.36263154392,"d":"53,554"}},{"$f":"($A3-$A2)/365.25*(S2+(Main!$I9*Main!$D$3))*(1+VLOOKUP('Random Years'!Q3,'Hist Returns'!$A$12:$D$107,3,FALSE))","v":{"v":50621.53903527445,"d":"50,622"}},{"$f":"($A3-$A2)/365.25*(T2+(Main!$I9*Main!$D$3))*(1+VLOOKUP('Random Years'!R3,'Hist Returns'!$A$12:$D$107,3,FALSE))","v":{"v":59727.202453881466,"d":"59,727"}},{"$f":"($A3-$A2)/365.25*(U2+(Main!$I9*Main!$D$3))*(1+VLOOKUP('Random Years'!S3,'Hist Returns'!$A$12:$D$107,3,FALSE))","v":{"v":52027.14504597967,"d":"52,027"}},{"$f":"($A3-$A2)/365.25*(V2+(Main!$I9*Main!$D$3))*(1+VLOOKUP('Random Years'!T3,'Hist Returns'!$A$12:$D$107,3,FALSE))","v":{"v":52520.02435874601,"d":"52,520"}},{"$f":"($A3-$A2)/365.25*(W2+(Main!$I9*Main!$D$3))*(1+VLOOKUP('Random Years'!U3,'Hist Returns'!$A$12:$D$107,3,FALSE))","v":{"v":53345.320811495636,"d":"53,345"}},{"$f":"($A3-$A2)/365.25*(X2+(Main!$I9*Main!$D$3))*(1+VLOOKUP('Random Years'!V3,'Hist Returns'!$A$12:$D$107,3,FALSE))","v":{"v":48592.62260660421,"d":"48,593"}},{"$f":"($A3-$A2)/365.25*(Y2+(Main!$I9*Main!$D$3))*(1+VLOOKUP('Random Years'!W3,'Hist Returns'!$A$12:$D$107,3,FALSE))","v":{"v":49905.94496965555,"d":"49,906"}},{"$f":"($A3-$A2)/365.25*(Z2+(Main!$I9*Main!$D$3))*(1+VLOOKUP('Random Years'!X3,'Hist Returns'!$A$12:$D$107,3,FALSE))","v":{"v":50871.87291536122,"d":"50,872"}},{"$f":"($A3-$A2)/365.25*(AA2+(Main!$I9*Main!$D$3))*(1+VLOOKUP('Random Years'!Y3,'Hist Returns'!$A$12:$D$107,3,FALSE))","v":{"v":48702.85309590518,"d":"48,703"}},{"$f":"($A3-$A2)/365.25*(AB2+(Main!$I9*Main!$D$3))*(1+VLOOKUP('Random Years'!Z3,'Hist Returns'!$A$12:$D$107,3,FALSE))","v":{"v":54823.96486078558,"d":"54,824"}},{"$f":"($A3-$A2)/365.25*(AC2+(Main!$I9*Main!$D$3))*(1+VLOOKUP('Random Years'!AA3,'Hist Returns'!$A$12:$D$107,3,FALSE))","v":{"v":50781.00461677735,"d":"50,781"}},{"$f":"($A3-$A2)/365.25*(AD2+(Main!$I9*Main!$D$3))*(1+VLOOKUP('Random Years'!AB3,'Hist Returns'!$A$12:$D$107,3,FALSE))","v":{"v":53534.12394647242,"d":"53,534"}},{"$f":"($A3-$A2)/365.25*(AE2+(Main!$I9*Main!$D$3))*(1+VLOOKUP('Random Years'!AC3,'Hist Returns'!$A$12:$D$107,3,FALSE))","v":{"v":54960.03509138901,"d":"54,960"}},{"$f":"($A3-$A2)/365.25*(AF2+(Main!$I9*Main!$D$3))*(1+VLOOKUP('Random Years'!AD3,'Hist Returns'!$A$12:$D$107,3,FALSE))","v":{"v":50037.6407826236,"d":"50,038"}},{"$f":"($A3-$A2)/365.25*(AG2+(Main!$I9*Main!$D$3))*(1+VLOOKUP('Random Years'!AE3,'Hist Returns'!$A$12:$D$107,3,FALSE))","v":{"v":52096.575889875996,"d":"52,097"}},{"$f":"($A3-$A2)/365.25*(AH2+(Main!$I9*Main!$D$3))*(1+VLOOKUP('Random Years'!AF3,'Hist Returns'!$A$12:$D$107,3,FALSE))","v":{"v":50960.243474048286,"d":"50,960"}},{"$f":"($A3-$A2)/365.25*(AI2+(Main!$I9*Main!$D$3))*(1+VLOOKUP('Random Years'!AG3,'Hist Returns'!$A$12:$D$107,3,FALSE))","v":{"v":55488.798257308124,"d":"55,489"}},{"$f":"($A3-$A2)/365.25*(AJ2+(Main!$I9*Main!$D$3))*(1+VLOOKUP('Random Years'!AH3,'Hist Returns'!$A$12:$D$107,3,FALSE))","v":{"v":50766.22551182486,"d":"50,766"}},{"$f":"($A3-$A2)/365.25*(AK2+(Main!$I9*Main!$D$3))*(1+VLOOKUP('Random Years'!AI3,'Hist Returns'!$A$12:$D$107,3,FALSE))","v":{"v":51150.941077291085,"d":"51,151"}},{"$f":"($A3-$A2)/365.25*(AL2+(Main!$I9*Main!$D$3))*(1+VLOOKUP('Random Years'!AJ3,'Hist Returns'!$A$12:$D$107,3,FALSE))","v":{"v":54612.42636286725,"d":"54,612"}},{"$f":"($A3-$A2)/365.25*(AM2+(Main!$I9*Main!$D$3))*(1+VLOOKUP('Random Years'!AK3,'Hist Returns'!$A$12:$D$107,3,FALSE))","v":{"v":49726.986335945985,"d":"49,727"}},{"$f":"($A3-$A2)/365.25*(AN2+(Main!$I9*Main!$D$3))*(1+VLOOKUP('Random Years'!AL3,'Hist Returns'!$A$12:$D$107,3,FALSE))","v":{"v":52876.020673386345,"d":"52,876"}},{"$f":"($A3-$A2)/365.25*(AO2+(Main!$I9*Main!$D$3))*(1+VLOOKUP('Random Years'!AM3,'Hist Returns'!$A$12:$D$107,3,FALSE))","v":{"v":54714.35573399431,"d":"54,714"}},{"$f":"($A3-$A2)/365.25*(AP2+(Main!$I9*Main!$D$3))*(1+VLOOKUP('Random Years'!AN3,'Hist Returns'!$A$12:$D$107,3,FALSE))","v":{"v":49507.546463213905,"d":"49,508"}},{"$f":"($A3-$A2)/365.25*(AQ2+(Main!$I9*Main!$D$3))*(1+VLOOKUP('Random Years'!AO3,'Hist Returns'!$A$12:$D$107,3,FALSE))","v":{"v":50358.47097242864,"d":"50,358"}},{"$f":"($A3-$A2)/365.25*(AR2+(Main!$I9*Main!$D$3))*(1+VLOOKUP('Random Years'!AP3,'Hist Returns'!$A$12:$D$107,3,FALSE))","v":{"v":50476.06941173336,"d":"50,476"}},{"$f":"($A3-$A2)/365.25*(AS2+(Main!$I9*Main!$D$3))*(1+VLOOKUP('Random Years'!AQ3,'Hist Returns'!$A$12:$D$107,3,FALSE))","v":{"v":49937.27318774673,"d":"49,937"}},{"$f":"($A3-$A2)/365.25*(AT2+(Main!$I9*Main!$D$3))*(1+VLOOKUP('Random Years'!AR3,'Hist Returns'!$A$12:$D$107,3,FALSE))","v":{"v":49328.60026142111,"d":"49,329"}},{"$f":"($A3-$A2)/365.25*(AU2+(Main!$I9*Main!$D$3))*(1+VLOOKUP('Random Years'!AS3,'Hist Returns'!$A$12:$D$107,3,FALSE))","v":{"v":48506.55033090967,"d":"48,507"}},{"$f":"($A3-$A2)/365.25*(AV2+(Main!$I9*Main!$D$3))*(1+VLOOKUP('Random Years'!AT3,'Hist Returns'!$A$12:$D$107,3,FALSE))","v":{"v":49231.02463422628,"d":"49,231"}},{"$f":"($A3-$A2)/365.25*(AW2+(Main!$I9*Main!$D$3))*(1+VLOOKUP('Random Years'!AU3,'Hist Returns'!$A$12:$D$107,3,FALSE))","v":{"v":50251.49256616647,"d":"50,251"}},{"$f":"($A3-$A2)/365.25*(AX2+(Main!$I9*Main!$D$3))*(1+VLOOKUP('Random Years'!AV3,'Hist Returns'!$A$12:$D$107,3,FALSE))","v":{"v":50678.128902393844,"d":"50,678"}},{"$f":"($A3-$A2)/365.25*(AY2+(Main!$I9*Main!$D$3))*(1+VLOOKUP('Random Years'!AW3,'Hist Returns'!$A$12:$D$107,3,FALSE))","v":{"v":51903.965751520474,"d":"51,904"}},{"$f":"($A3-$A2)/365.25*(AZ2+(Main!$I9*Main!$D$3))*(1+VLOOKUP('Random Years'!AX3,'Hist Returns'!$A$12:$D$107,3,FALSE))","v":{"v":52117.14010556101,"d":"52,117"}},{"$f":"($A3-$A2)/365.25*(BA2+(Main!$I9*Main!$D$3))*(1+VLOOKUP('Random Years'!AY3,'Hist Returns'!$A$12:$D$107,3,FALSE))","v":{"v":52772.900487684004,"d":"52,773"}},{"$f":"($A3-$A2)/365.25*(BB2+(Main!$I9*Main!$D$3))*(1+VLOOKUP('Random Years'!AZ3,'Hist Returns'!$A$12:$D$107,3,FALSE))","v":{"v":54579.396624738634,"d":"54,579"}},{"$f":"($A3-$A2)/365.25*(BC2+(Main!$I9*Main!$D$3))*(1+VLOOKUP('Random Years'!BA3,'Hist Returns'!$A$12:$D$107,3,FALSE))","v":{"v":54681.63350043456,"d":"54,682"}},{"$f":"($A3-$A2)/365.25*(BD2+(Main!$I9*Main!$D$3))*(1+VLOOKUP('Random Years'!BB3,'Hist Returns'!$A$12:$D$107,3,FALSE))","v":{"v":49618.79098205833,"d":"49,619"}},{"$f":"($A3-$A2)/365.25*(BE2+(Main!$I9*Main!$D$3))*(1+VLOOKUP('Random Years'!BC3,'Hist Returns'!$A$12:$D$107,3,FALSE))","v":{"v":50452.159131318775,"d":"50,452"}},{"$f":"($A3-$A2)/365.25*(BF2+(Main!$I9*Main!$D$3))*(1+VLOOKUP('Random Years'!BD3,'Hist Returns'!$A$12:$D$107,3,FALSE))","v":{"v":51698.248155616784,"d":"51,698"}},{"$f":"($A3-$A2)/365.25*(BG2+(Main!$I9*Main!$D$3))*(1+VLOOKUP('Random Years'!BE3,'Hist Returns'!$A$12:$D$107,3,FALSE))","v":{"v":49536.91871769079,"d":"49,537"}},{"$f":"($A3-$A2)/365.25*(BH2+(Main!$I9*Main!$D$3))*(1+VLOOKUP('Random Years'!BF3,'Hist Returns'!$A$12:$D$107,3,FALSE))","v":{"v":50496.58438750715,"d":"50,497"}},{"$f":"($A3-$A2)/365.25*(BI2+(Main!$I9*Main!$D$3))*(1+VLOOKUP('Random Years'!BG3,'Hist Returns'!$A$12:$D$107,3,FALSE))","v":{"v":48907.40208468702,"d":"48,907"}},{"$f":"($A3-$A2)/365.25*(BJ2+(Main!$I9*Main!$D$3))*(1+VLOOKUP('Random Years'!BH3,'Hist Returns'!$A$12:$D$107,3,FALSE))","v":{"v":51591.37671744759,"d":"51,591"}},{"$f":"($A3-$A2)/365.25*(BK2+(Main!$I9*Main!$D$3))*(1+VLOOKUP('Random Years'!BI3,'Hist Returns'!$A$12:$D$107,3,FALSE))","v":{"v":48565.676546524526,"d":"48,566"}},{"$f":"($A3-$A2)/365.25*(BL2+(Main!$I9*Main!$D$3))*(1+VLOOKUP('Random Years'!BJ3,'Hist Returns'!$A$12:$D$107,3,FALSE))","v":{"v":54916.03167482498,"d":"54,916"}},{"$f":"($A3-$A2)/365.25*(BM2+(Main!$I9*Main!$D$3))*(1+VLOOKUP('Random Years'!BK3,'Hist Returns'!$A$12:$D$107,3,FALSE))","v":{"v":49622.14194391537,"d":"49,622"}},{"$f":"($A3-$A2)/365.25*(BN2+(Main!$I9*Main!$D$3))*(1+VLOOKUP('Random Years'!BL3,'Hist Returns'!$A$12:$D$107,3,FALSE))","v":{"v":52998.040131136804,"d":"52,998"}},{"$f":"($A3-$A2)/365.25*(BO2+(Main!$I9*Main!$D$3))*(1+VLOOKUP('Random Years'!BM3,'Hist Returns'!$A$12:$D$107,3,FALSE))","v":{"v":51394.30729974637,"d":"51,394"}},{"$f":"($A3-$A2)/365.25*(BP2+(Main!$I9*Main!$D$3))*(1+VLOOKUP('Random Years'!BN3,'Hist Returns'!$A$12:$D$107,3,FALSE))","v":{"v":49898.29982051714,"d":"49,898"}},{"$f":"($A3-$A2)/365.25*(BQ2+(Main!$I9*Main!$D$3))*(1+VLOOKUP('Random Years'!BO3,'Hist Returns'!$A$12:$D$107,3,FALSE))","v":{"v":49904.72190545969,"d":"49,905"}},{"$f":"($A3-$A2)/365.25*(BR2+(Main!$I9*Main!$D$3))*(1+VLOOKUP('Random Years'!BP3,'Hist Returns'!$A$12:$D$107,3,FALSE))","v":{"v":52574.1983895036,"d":"52,574"}},{"$f":"($A3-$A2)/365.25*(BS2+(Main!$I9*Main!$D$3))*(1+VLOOKUP('Random Years'!BQ3,'Hist Returns'!$A$12:$D$107,3,FALSE))","v":{"v":50718.95569646728,"d":"50,719"}},{"$f":"($A3-$A2)/365.25*(BT2+(Main!$I9*Main!$D$3))*(1+VLOOKUP('Random Years'!BR3,'Hist Returns'!$A$12:$D$107,3,FALSE))","v":{"v":53154.65559501669,"d":"53,155"}},{"$f":"($A3-$A2)/365.25*(BU2+(Main!$I9*Main!$D$3))*(1+VLOOKUP('Random Years'!BS3,'Hist Returns'!$A$12:$D$107,3,FALSE))","v":{"v":54795.80907879666,"d":"54,796"}},{"$f":"($A3-$A2)/365.25*(BV2+(Main!$I9*Main!$D$3))*(1+VLOOKUP('Random Years'!BT3,'Hist Returns'!$A$12:$D$107,3,FALSE))","v":{"v":50015.93151622222,"d":"50,016"}},{"$f":"($A3-$A2)/365.25*(BW2+(Main!$I9*Main!$D$3))*(1+VLOOKUP('Random Years'!BU3,'Hist Returns'!$A$12:$D$107,3,FALSE))","v":{"v":49325.69974452674,"d":"49,326"}},{"$f":"($A3-$A2)/365.25*(BX2+(Main!$I9*Main!$D$3))*(1+VLOOKUP('Random Years'!BV3,'Hist Returns'!$A$12:$D$107,3,FALSE))","v":{"v":55880.59441948552,"d":"55,881"}},{"$f":"($A3-$A2)/365.25*(BY2+(Main!$I9*Main!$D$3))*(1+VLOOKUP('Random Years'!BW3,'Hist Returns'!$A$12:$D$107,3,FALSE))","v":{"v":49317.85668968388,"d":"49,318"}},{"$f":"($A3-$A2)/365.25*(BZ2+(Main!$I9*Main!$D$3))*(1+VLOOKUP('Random Years'!BX3,'Hist Returns'!$A$12:$D$107,3,FALSE))","v":{"v":53208.8377008166,"d":"53,209"}},{"$f":"($A3-$A2)/365.25*(CA2+(Main!$I9*Main!$D$3))*(1+VLOOKUP('Random Years'!BY3,'Hist Returns'!$A$12:$D$107,3,FALSE))","v":{"v":51313.557186259924,"d":"51,314"}},{"$f":"($A3-$A2)/365.25*(CB2+(Main!$I9*Main!$D$3))*(1+VLOOKUP('Random Years'!BZ3,'Hist Returns'!$A$12:$D$107,3,FALSE))","v":{"v":50064.48673111745,"d":"50,064"}},{"$f":"($A3-$A2)/365.25*(CC2+(Main!$I9*Main!$D$3))*(1+VLOOKUP('Random Years'!CA3,'Hist Returns'!$A$12:$D$107,3,FALSE))","v":{"v":53831.46540255742,"d":"53,831"}},{"$f":"($A3-$A2)/365.25*(CD2+(Main!$I9*Main!$D$3))*(1+VLOOKUP('Random Years'!CB3,'Hist Returns'!$A$12:$D$107,3,FALSE))","v":{"v":51168.975206555006,"d":"51,169"}},{"$f":"($A3-$A2)/365.25*(CE2+(Main!$I9*Main!$D$3))*(1+VLOOKUP('Random Years'!CC3,'Hist Returns'!$A$12:$D$107,3,FALSE))","v":{"v":53306.42347716325,"d":"53,306"}},{"$f":"($A3-$A2)/365.25*(CF2+(Main!$I9*Main!$D$3))*(1+VLOOKUP('Random Years'!CD3,'Hist Returns'!$A$12:$D$107,3,FALSE))","v":{"v":52477.37782323971,"d":"52,477"}},{"$f":"($A3-$A2)/365.25*(CG2+(Main!$I9*Main!$D$3))*(1+VLOOKUP('Random Years'!CE3,'Hist Returns'!$A$12:$D$107,3,FALSE))","v":{"v":52709.36692712008,"d":"52,709"}},{"$f":"($A3-$A2)/365.25*(CH2+(Main!$I9*Main!$D$3))*(1+VLOOKUP('Random Years'!CF3,'Hist Returns'!$A$12:$D$107,3,FALSE))","v":{"v":50756.41815520887,"d":"50,756"}},{"$f":"($A3-$A2)/365.25*(CI2+(Main!$I9*Main!$D$3))*(1+VLOOKUP('Random Years'!CG3,'Hist Returns'!$A$12:$D$107,3,FALSE))","v":{"v":50650.13778956319,"d":"50,650"}},{"$f":"($A3-$A2)/365.25*(CJ2+(Main!$I9*Main!$D$3))*(1+VLOOKUP('Random Years'!CH3,'Hist Returns'!$A$12:$D$107,3,FALSE))","v":{"v":53186.17863452001,"d":"53,186"}},{"$f":"($A3-$A2)/365.25*(CK2+(Main!$I9*Main!$D$3))*(1+VLOOKUP('Random Years'!CI3,'Hist Returns'!$A$12:$D$107,3,FALSE))","v":{"v":51713.13620467904,"d":"51,713"}},{"$f":"($A3-$A2)/365.25*(CL2+(Main!$I9*Main!$D$3))*(1+VLOOKUP('Random Years'!CJ3,'Hist Returns'!$A$12:$D$107,3,FALSE))","v":{"v":48490.882551548115,"d":"48,491"}},{"$f":"($A3-$A2)/365.25*(CM2+(Main!$I9*Main!$D$3))*(1+VLOOKUP('Random Years'!CK3,'Hist Returns'!$A$12:$D$107,3,FALSE))","v":{"v":49386.9561470707,"d":"49,387"}},{"$f":"($A3-$A2)/365.25*(CN2+(Main!$I9*Main!$D$3))*(1+VLOOKUP('Random Years'!CL3,'Hist Returns'!$A$12:$D$107,3,FALSE))","v":{"v":51227.65174694635,"d":"51,228"}},{"$f":"($A3-$A2)/365.25*(CO2+(Main!$I9*Main!$D$3))*(1+VLOOKUP('Random Years'!CM3,'Hist Returns'!$A$12:$D$107,3,FALSE))","v":{"v":49238.53333873603,"d":"49,239"}},{"$f":"($A3-$A2)/365.25*(CP2+(Main!$I9*Main!$D$3))*(1+VLOOKUP('Random Years'!CN3,'Hist Returns'!$A$12:$D$107,3,FALSE))","v":{"v":53717.61127253341,"d":"53,718"}},{"$f":"($A3-$A2)/365.25*(CQ2+(Main!$I9*Main!$D$3))*(1+VLOOKUP('Random Years'!CO3,'Hist Returns'!$A$12:$D$107,3,FALSE))","v":{"v":51622.207680122876,"d":"51,622"}},{"$f":"($A3-$A2)/365.25*(CR2+(Main!$I9*Main!$D$3))*(1+VLOOKUP('Random Years'!CP3,'Hist Returns'!$A$12:$D$107,3,FALSE))","v":{"v":51648.00608354848,"d":"51,648"}},{"$f":"($A3-$A2)/365.25*(CS2+(Main!$I9*Main!$D$3))*(1+VLOOKUP('Random Years'!CQ3,'Hist Returns'!$A$12:$D$107,3,FALSE))","v":{"v":51176.09161956797,"d":"51,176"}},{"$f":"($A3-$A2)/365.25*(CT2+(Main!$I9*Main!$D$3))*(1+VLOOKUP('Random Years'!CR3,'Hist Returns'!$A$12:$D$107,3,FALSE))","v":{"v":53203.09661990888,"d":"53,203"}},{"$f":"($A3-$A2)/365.25*(CU2+(Main!$I9*Main!$D$3))*(1+VLOOKUP('Random Years'!CS3,'Hist Returns'!$A$12:$D$107,3,FALSE))","v":{"v":54120.83729522986,"d":"54,121"}},{"$f":"($A3-$A2)/365.25*(CV2+(Main!$I9*Main!$D$3))*(1+VLOOKUP('Random Years'!CT3,'Hist Returns'!$A$12:$D$107,3,FALSE))","v":{"v":49588.62042930175,"d":"49,589"}},{"$f":"($A3-$A2)/365.25*(CW2+(Main!$I9*Main!$D$3))*(1+VLOOKUP('Random Years'!CU3,'Hist Returns'!$A$12:$D$107,3,FALSE))","v":{"v":50650.13778956319,"d":"50,650"}},{"$f":"($A3-$A2)/365.25*(CX2+(Main!$I9*Main!$D$3))*(1+VLOOKUP('Random Years'!CV3,'Hist Returns'!$A$12:$D$107,3,FALSE))","v":{"v":52709.90757056986,"d":"52,710"}}]
[{"$f":"Main!A10","v":"2025-12-30"},{"$f":"Main!B10","v":71},{"$f":"($A4-$A3)/365.25*(C3+(Main!$I10*Main!$D$3))*(1+VLOOKUP('Random Years'!A4,'Hist Returns'!$A$12:$D$107,3,FALSE))","v":{"v":53656.22399778016,"d":"53,656"}},{"$f":"($A4-$A3)/365.25*(D3+(Main!$I10*Main!$D$3))*(1+VLOOKUP('Random Years'!B4,'Hist Returns'!$A$12:$D$107,3,FALSE))","v":{"v":49839.2987708566,"d":"49,839"}},{"$f":"($A4-$A3)/365.25*(E3+(Main!$I10*Main!$D$3))*(1+VLOOKUP('Random Years'!C4,'Hist Returns'!$A$12:$D$107,3,FALSE))","v":{"v":53615.082295138905,"d":"53,615"}},{"$f":"($A4-$A3)/365.25*(F3+(Main!$I10*Main!$D$3))*(1+VLOOKUP('Random Years'!D4,'Hist Returns'!$A$12:$D$107,3,FALSE))","v":{"v":49503.45721062724,"d":"49,503"}},{"$f":"($A4-$A3)/365.25*(G3+(Main!$I10*Main!$D$3))*(1+VLOOKUP('Random Years'!E4,'Hist Returns'!$A$12:$D$107,3,FALSE))","v":{"v":54329.52642848405,"d":"54,330"}},{"$f":"($A4-$A3)/365.25*(H3+(Main!$I10*Main!$D$3))*(1+VLOOKUP('Random Years'!F4,'Hist Returns'!$A$12:$D$107,3,FALSE))","v":{"v":53428.57933542979,"d":"53,429"}},{"$f":"($A4-$A3)/365.25*(I3+(Main!$I10*Main!$D$3))*(1+VLOOKUP('Random Years'!G4,'Hist Returns'!$A$12:$D$107,3,FALSE))","v":{"v":51462.285539815355,"d":"51,462"}},{"$f":"($A4-$A3)/365.25*(J3+(Main!$I10*Main!$D$3))*(1+VLOOKUP('Random Years'!H4,'Hist Returns'!$A$12:$D$107,3,FALSE))","v":{"v":51197.27490146362,"d":"51,197"}},{"$f":"($A4-$A3)/365.25*(K3+(Main!$I10*Main!$D$3))*(1+VLOOKUP('Random Years'!I4,'Hist Returns'!$A$12:$D$107,3,FALSE))","v":{"v":56416.605687014664,"d":"56,417"}},{"$f":"($A4-$A3)/365.25*(L3+(Main!$I10*Main!$D$3))*(1+VLOOKUP('Random Years'!J4,'Hist Returns'!$A$12:$D$107,3,FALSE))","v":{"v":50408.46707875874,"d":"50,408"}},{"$f":"($A4-$A3)/365.25*(M3+(Main!$I10*Main!$D$3))*(1+VLOOKUP('Random Years'!K4,'Hist Returns'!$A$12:$D$107,3,FALSE))","v":{"v":47487.69329477425,"d":"47,488"}},{"$f":"($A4-$A3)/365.25*(N3+(Main!$I10*Main!$D$3))*(1+VLOOKUP('Random Years'!L4,'Hist Returns'!$A$12:$D$107,3,FALSE))","v":{"v":55699.620588952515,"d":"55,700"}},{"$f":"($A4-$A3)/365.25*(O3+(Main!$I10*Main!$D$3))*(1+VLOOKUP('Random Years'!M4,'Hist Returns'!$A$12:$D$107,3,FALSE))","v":{"v":56664.38327947647,"d":"56,664"}},{"$f":"($A4-$A3)/365.25*(P3+(Main!$I10*Main!$D$3))*(1+VLOOKUP('Random Years'!N4,'Hist Returns'!$A$12:$D$107,3,FALSE))","v":{"v":50628.844091612795,"d":"50,629"}},{"$f":"($A4-$A3)/365.25*(Q3+(Main!$I10*Main!$D$3))*(1+VLOOKUP('Random Years'!O4,'Hist Returns'!$A$12:$D$107,3,FALSE))","v":{"v":49822.67384441753,"d":"49,823"}},{"$f":"($A4-$A3)/365.25*(R3+(Main!$I10*Main!$D$3))*(1+VLOOKUP('Random Years'!P4,'Hist Returns'!$A$12:$D$107,3,FALSE))","v":{"v":52523.65525515163,"d":"52,524"}},{"$f":"($A4-$A3)/365.25*(S3+(Main!$I10*Main!$D$3))*(1+VLOOKUP('Random Years'!Q4,'Hist Returns'!$A$12:$D$107,3,FALSE))","v":{"v":52885.62618741082,"d":"52,886"}},{"$f":"($A4-$A3)/365.25*(T3+(Main!$I10*Main!$D$3))*(1+VLOOKUP('Random Years'!R4,'Hist Returns'!$A$12:$D$107,3,FALSE))","v":{"v":61612.12403844179,"d":"61,612"}},{"$f":"($A4-$A3)/365.25*(U3+(Main!$I10*Main!$D$3))*(1+VLOOKUP('Random Years'!S4,'Hist Returns'!$A$12:$D$107,3,FALSE))","v":{"v":54919.83537484308,"d":"54,920"}},{"$f":"($A4-$A3)/365.25*(V3+(Main!$I10*Main!$D$3))*(1+VLOOKUP('Random Years'!T4,'Hist Returns'!$A$12:$D$107,3,FALSE))","v":{"v":51463.474024265655,"d":"51,463"}},{"$f":"($A4-$A3)/365.25*(W3+(Main!$I10*Main!$D$3))*(1+VLOOKUP('Random Years'!U4,'Hist Returns'!$A$12:$D$107,3,FALSE))","v":{"v":53725.95421931365,"d":"53,726"}},{"$f":"($A4-$A3)/365.25*(X3+(Main!$I10*Main!$D$3))*(1+VLOOKUP('Random Years'!V4,'Hist Returns'!$A$12:$D$107,3,FALSE))","v":{"v":50241.66026859218,"d":"50,242"}},{"$f":"($A4-$A3)/365.25*(Y3+(Main!$I10*Main!$D$3))*(1+VLOOKUP('Random Years'!W4,'Hist Returns'!$A$12:$D$107,3,FALSE))","v":{"v":50427.794895617444,"d":"50,428"}},{"$f":"($A4-$A3)/365.25*(Z3+(Main!$I10*Main!$D$3))*(1+VLOOKUP('Random Years'!X4,'Hist Returns'!$A$12:$D$107,3,FALSE))","v":{"v":49815.95657205895,"d":"49,816"}},{"$f":"($A4-$A3)/365.25*(AA3+(Main!$I10*Main!$D$3))*(1+VLOOKUP('Random Years'!Y4,'Hist Returns'!$A$12:$D$107,3,FALSE))","v":{"v":48338.45658057874,"d":"48,338"}},{"$f":"($A4-$A3)/365.25*(AB3+(Main!$I10*Main!$D$3))*(1+VLOOKUP('Random Years'!Z4,'Hist Returns'!$A$12:$D$107,3,FALSE))","v":{"v":55422.040691153416,"d":"55,422"}},{"$f":"($A4-$A3)/365.25*(AC3+(Main!$I10*Main!$D$3))*(1+VLOOKUP('Random Years'!AA4,'Hist Returns'!$A$12:$D$107,3,FALSE))","v":{"v":51405.32833116697,"d":"51,405"}},{"$f":"($A4-$A3)/365.25*(AD3+(Main!$I10*Main!$D$3))*(1+VLOOKUP('Random Years'!AB4,'Hist Returns'!$A$12:$D$107,3,FALSE))","v":{"v":56542.94551452042,"d":"56,543"}},{"$f":"($A4-$A3)/365.25*(AE3+(Main!$I10*Main!$D$3))*(1+VLOOKUP('Random Years'!AC4,'Hist Returns'!$A$12:$D$107,3,FALSE))","v":{"v":55626.910330731655,"d":"55,627"}},{"$f":"($A4-$A3)/365.25*(AF3+(Main!$I10*Main!$D$3))*(1+VLOOKUP('Random Years'!AD4,'Hist Returns'!$A$12:$D$107,3,FALSE))","v":{"v":49153.43108473032,"d":"49,153"}},{"$f":"($A4-$A3)/365.25*(AG3+(Main!$I10*Main!$D$3))*(1+VLOOKUP('Random Years'!AE4,'Hist Returns'!$A$12:$D$107,3,FALSE))","v":{"v":51188.1605973231,"d":"51,188"}},{"$f":"($A4-$A3)/365.25*(AH3+(Main!$I10*Main!$D$3))*(1+VLOOKUP('Random Years'!AF4,'Hist Returns'!$A$12:$D$107,3,FALSE))","v":{"v":50717.4891567509,"d":"50,717"}},{"$f":"($A4-$A3)/365.25*(AI3+(Main!$I10*Main!$D$3))*(1+VLOOKUP('Random Years'!AG4,'Hist Returns'!$A$12:$D$107,3,FALSE))","v":{"v":57276.99900264256,"d":"57,277"}},{"$f":"($A4-$A3)/365.25*(AJ3+(Main!$I10*Main!$D$3))*(1+VLOOKUP('Random Years'!AH4,'Hist Returns'!$A$12:$D$107,3,FALSE))","v":{"v":52483.35542528626,"d":"52,483"}},{"$f":"($A4-$A3)/365.25*(AK3+(Main!$I10*Main!$D$3))*(1+VLOOKUP('Random Years'!AI4,'Hist Returns'!$A$12:$D$107,3,FALSE))","v":{"v":50250.16505498099,"d":"50,250"}},{"$f":"($A4-$A3)/365.25*(AL3+(Main!$I10*Main!$D$3))*(1+VLOOKUP('Random Years'!AJ4,'Hist Returns'!$A$12:$D$107,3,FALSE))","v":{"v":54085.107341727606,"d":"54,085"}},{"$f":"($A4-$A3)/365.25*(AM3+(Main!$I10*Main!$D$3))*(1+VLOOKUP('Random Years'!AK4,'Hist Returns'!$A$12:$D$107,3,FALSE))","v":{"v":52442.42117620893,"d":"52,442"}},{"$f":"($A4-$A3)/365.25*(AN3+(Main!$I10*Main!$D$3))*(1+VLOOKUP('Random Years'!AL4,'Hist Returns'!$A$12:$D$107,3,FALSE))","v":{"v":54311.095806248624,"d":"54,311"}},{"$f":"($A4-$A3)/365.25*(AO3+(Main!$I10*Main!$D$3))*(1+VLOOKUP('Random Years'!AM4,'Hist Returns'!$A$12:$D$107,3,FALSE))","v":{"v":58173.52248435573,"d":"58,174"}},{"$f":"($A4-$A3)/365.25*(AP3+(Main!$I10*Main!$D$3))*(1+VLOOKUP('Random Years'!AN4,'Hist Returns'!$A$12:$D$107,3,FALSE))","v":{"v":48621.68661544746,"d":"48,622"}},{"$f":"($A4-$A3)/365.25*(AQ3+(Main!$I10*Main!$D$3))*(1+VLOOKUP('Random Years'!AO4,'Hist Returns'!$A$12:$D$107,3,FALSE))","v":{"v":49830.13335174057,"d":"49,830"}},{"$f":"($A4-$A3)/365.25*(AR3+(Main!$I10*Main!$D$3))*(1+VLOOKUP('Random Years'!AP4,'Hist Returns'!$A$12:$D$107,3,FALSE))","v":{"v":50927.172573513984,"d":"50,927"}},{"$f":"($A4-$A3)/365.25*(AS3+(Main!$I10*Main!$D$3))*(1+VLOOKUP('Random Years'!AQ4,'Hist Returns'!$A$12:$D$107,3,FALSE))","v":{"v":49677.02769536268,"d":"49,677"}},{"$f":"($A4-$A3)/365.25*(AT3+(Main!$I10*Main!$D$3))*(1+VLOOKUP('Random Years'!AR4,'Hist Returns'!$A$12:$D$107,3,FALSE))","v":{"v":49696.912163590154,"d":"49,697"}},{"$f":"($A4-$A3)/365.25*(AU3+(Main!$I10*Main!$D$3))*(1+VLOOKUP('Random Years'!AS4,'Hist Returns'!$A$12:$D$107,3,FALSE))","v":{"v":47501.35302989018,"d":"47,501"}},{"$f":"($A4-$A3)/365.25*(AV3+(Main!$I10*Main!$D$3))*(1+VLOOKUP('Random Years'!AT4,'Hist Returns'!$A$12:$D$107,3,FALSE))","v":{"v":49630.210463590614,"d":"49,630"}},{"$f":"($A4-$A3)/365.25*(AW3+(Main!$I10*Main!$D$3))*(1+VLOOKUP('Random Years'!AU4,'Hist Returns'!$A$12:$D$107,3,FALSE))","v":{"v":52864.72198002568,"d":"52,865"}},{"$f":"($A4-$A3)/365.25*(AX3+(Main!$I10*Main!$D$3))*(1+VLOOKUP('Random Years'!AV4,'Hist Returns'!$A$12:$D$107,3,FALSE))","v":{"v":49632.2085671934,"d":"49,632"}},{"$f":"($A4-$A3)/365.25*(AY3+(Main!$I10*Main!$D$3))*(1+VLOOKUP('Random Years'!AW4,'Hist Returns'!$A$12:$D$107,3,FALSE))","v":{"v":51091.64792793098,"d":"51,092"}},{"$f":"($A4-$A3)/365.25*(AZ3+(Main!$I10*Main!$D$3))*(1+VLOOKUP('Random Years'!AX4,'Hist Returns'!$A$12:$D$107,3,FALSE))","v":{"v":53730.420795269274,"d":"53,730"}},{"$f":"($A4-$A3)/365.25*(BA3+(Main!$I10*Main!$D$3))*(1+VLOOKUP('Random Years'!AY4,'Hist Returns'!$A$12:$D$107,3,FALSE))","v":{"v":55159.52234079893,"d":"55,160"}},{"$f":"($A4-$A3)/365.25*(BB3+(Main!$I10*Main!$D$3))*(1+VLOOKUP('Random Years'!AZ4,'Hist Returns'!$A$12:$D$107,3,FALSE))","v":{"v":55330.5569938171,"d":"55,331"}},{"$f":"($A4-$A3)/365.25*(BC3+(Main!$I10*Main!$D$3))*(1+VLOOKUP('Random Years'!BA4,'Hist Returns'!$A$12:$D$107,3,FALSE))","v":{"v":54562.394625243796,"d":"54,562"}},{"$f":"($A4-$A3)/365.25*(BD3+(Main!$I10*Main!$D$3))*(1+VLOOKUP('Random Years'!BB4,'Hist Returns'!$A$12:$D$107,3,FALSE))","v":{"v":50757.762058703316,"d":"50,758"}},{"$f":"($A4-$A3)/365.25*(BE3+(Main!$I10*Main!$D$3))*(1+VLOOKUP('Random Years'!BC4,'Hist Returns'!$A$12:$D$107,3,FALSE))","v":{"v":50902.54272622104,"d":"50,903"}},{"$f":"($A4-$A3)/365.25*(BF3+(Main!$I10*Main!$D$3))*(1+VLOOKUP('Random Years'!BD4,'Hist Returns'!$A$12:$D$107,3,FALSE))","v":{"v":53684.68616782715,"d":"53,685"}},{"$f":"($A4-$A3)/365.25*(BG3+(Main!$I10*Main!$D$3))*(1+VLOOKUP('Random Years'!BE4,'Hist Returns'!$A$12:$D$107,3,FALSE))","v":{"v":50046.99920680357,"d":"50,047"}},{"$f":"($A4-$A3)/365.25*(BH3+(Main!$I10*Main!$D$3))*(1+VLOOKUP('Random Years'!BF4,'Hist Returns'!$A$12:$D$107,3,FALSE))","v":{"v":49465.525398010825,"d":"49,466"}},{"$f":"($A4-$A3)/365.25*(BI3+(Main!$I10*Main!$D$3))*(1+VLOOKUP('Random Years'!BG4,'Hist Returns'!$A$12:$D$107,3,FALSE))","v":{"v":47923.998245585426,"d":"47,924"}},{"$f":"($A4-$A3)/365.25*(BJ3+(Main!$I10*Main!$D$3))*(1+VLOOKUP('Random Years'!BH4,'Hist Returns'!$A$12:$D$107,3,FALSE))","v":{"v":52798.48084032087,"d":"52,798"}},{"$f":"($A4-$A3)/365.25*(BK3+(Main!$I10*Main!$D$3))*(1+VLOOKUP('Random Years'!BI4,'Hist Returns'!$A$12:$D$107,3,FALSE))","v":{"v":48004.60986664791,"d":"48,005"}},{"$f":"($A4-$A3)/365.25*(BL3+(Main!$I10*Main!$D$3))*(1+VLOOKUP('Random Years'!BJ4,'Hist Returns'!$A$12:$D$107,3,FALSE))","v":{"v":53858.55967291709,"d":"53,859"}},{"$f":"($A4-$A3)/365.25*(BM3+(Main!$I10*Main!$D$3))*(1+VLOOKUP('Random Years'!BK4,'Hist Returns'!$A$12:$D$107,3,FALSE))","v":{"v":51348.74399370584,"d":"51,349"}},{"$f":"($A4-$A3)/365.25*(BN3+(Main!$I10*Main!$D$3))*(1+VLOOKUP('Random Years'!BL4,'Hist Returns'!$A$12:$D$107,3,FALSE))","v":{"v":52748.75099279086,"d":"52,749"}},{"$f":"($A4-$A3)/365.25*(BO3+(Main!$I10*Main!$D$3))*(1+VLOOKUP('Random Years'!BM4,'Hist Returns'!$A$12:$D$107,3,FALSE))","v":{"v":50579.74083934637,"d":"50,580"}},{"$f":"($A4-$A3)/365.25*(BP3+(Main!$I10*Main!$D$3))*(1+VLOOKUP('Random Years'!BN4,'Hist Returns'!$A$12:$D$107,3,FALSE))","v":{"v":48894.027494688904,"d":"48,894"}},{"$f":"($A4-$A3)/365.25*(BQ3+(Main!$I10*Main!$D$3))*(1+VLOOKUP('Random Years'!BO4,'Hist Returns'!$A$12:$D$107,3,FALSE))","v":{"v":50426.53282396145,"d":"50,427"}},{"$f":"($A4-$A3)/365.25*(BR3+(Main!$I10*Main!$D$3))*(1+VLOOKUP('Random Years'!BP4,'Hist Returns'!$A$12:$D$107,3,FALSE))","v":{"v":54587.156939162225,"d":"54,587"}},{"$f":"($A4-$A3)/365.25*(BS3+(Main!$I10*Main!$D$3))*(1+VLOOKUP('Random Years'!BQ4,'Hist Returns'!$A$12:$D$107,3,FALSE))","v":{"v":50472.363896076204,"d":"50,472"}},{"$f":"($A4-$A3)/365.25*(BT3+(Main!$I10*Main!$D$3))*(1+VLOOKUP('Random Years'!BR4,'Hist Returns'!$A$12:$D$107,3,FALSE))","v":{"v":52152.54748647595,"d":"52,153"}},{"$f":"($A4-$A3)/365.25*(BU3+(Main!$I10*Main!$D$3))*(1+VLOOKUP('Random Years'!BS4,'Hist Returns'!$A$12:$D$107,3,FALSE))","v":{"v":54350.817162405234,"d":"54,351"}},{"$f":"($A4-$A3)/365.25*(BV3+(Main!$I10*Main!$D$3))*(1+VLOOKUP('Random Years'!BT4,'Hist Returns'!$A$12:$D$107,3,FALSE))","v":{"v":54437.363861679536,"d":"54,437"}},{"$f":"($A4-$A3)/365.25*(BW3+(Main!$I10*Main!$D$3))*(1+VLOOKUP('Random Years'!BU4,'Hist Returns'!$A$12:$D$107,3,FALSE))","v":{"v":48321.04686108469,"d":"48,321"}},{"$f":"($A4-$A3)/365.25*(BX3+(Main!$I10*Main!$D$3))*(1+VLOOKUP('Random Years'!BV4,'Hist Returns'!$A$12:$D$107,3,FALSE))","v":{"v":58494.77411683584,"d":"58,495"}},{"$f":"($A4-$A3)/365.25*(BY3+(Main!$I10*Main!$D$3))*(1+VLOOKUP('Random Years'!BW4,'Hist Returns'!$A$12:$D$107,3,FALSE))","v":{"v":49047.775363592234,"d":"49,048"}},{"$f":"($A4-$A3)/365.25*(BZ3+(Main!$I10*Main!$D$3))*(1+VLOOKUP('Random Years'!BX4,'Hist Returns'!$A$12:$D$107,3,FALSE))","v":{"v":52709.881683776395,"d":"52,710"}},{"$f":"($A4-$A3)/365.25*(CA3+(Main!$I10*Main!$D$3))*(1+VLOOKUP('Random Years'!BY4,'Hist Returns'!$A$12:$D$107,3,FALSE))","v":{"v":52005.90639925094,"d":"52,006"}},{"$f":"($A4-$A3)/365.25*(CB3+(Main!$I10*Main!$D$3))*(1+VLOOKUP('Random Years'!BZ4,'Hist Returns'!$A$12:$D$107,3,FALSE))","v":{"v":51571.27671913555,"d":"51,571"}},{"$f":"($A4-$A3)/365.25*(CC3+(Main!$I10*Main!$D$3))*(1+VLOOKUP('Random Years'!CA4,'Hist Returns'!$A$12:$D$107,3,FALSE))","v":{"v":54863.650486366256,"d":"54,864"}},{"$f":"($A4-$A3)/365.25*(CD3+(Main!$I10*Main!$D$3))*(1+VLOOKUP('Random Years'!CB4,'Hist Returns'!$A$12:$D$107,3,FALSE))","v":{"v":55718.901288706686,"d":"55,719"}},{"$f":"($A4-$A3)/365.25*(CE3+(Main!$I10*Main!$D$3))*(1+VLOOKUP('Random Years'!CC4,'Hist Returns'!$A$12:$D$107,3,FALSE))","v":{"v":53790.47070394199,"d":"53,790"}},{"$f":"($A4-$A3)/365.25*(CF3+(Main!$I10*Main!$D$3))*(1+VLOOKUP('Random Years'!CD4,'Hist Returns'!$A$12:$D$107,3,FALSE))","v":{"v":54967.81802993023,"d":"54,968"}},{"$f":"($A4-$A3)/365.25*(CG3+(Main!$I10*Main!$D$3))*(1+VLOOKUP('Random Years'!CE4,'Hist Returns'!$A$12:$D$107,3,FALSE))","v":{"v":51931.58492255318,"d":"51,932"}},{"$f":"($A4-$A3)/365.25*(CH3+(Main!$I10*Main!$D$3))*(1+VLOOKUP('Random Years'!CF4,'Hist Returns'!$A$12:$D$107,3,FALSE))","v":{"v":51992.29639317795,"d":"51,992"}},{"$f":"($A4-$A3)/365.25*(CI3+(Main!$I10*Main!$D$3))*(1+VLOOKUP('Random Years'!CG4,'Hist Returns'!$A$12:$D$107,3,FALSE))","v":{"v":51270.09157306132,"d":"51,270"}},{"$f":"($A4-$A3)/365.25*(CJ3+(Main!$I10*Main!$D$3))*(1+VLOOKUP('Random Years'!CH4,'Hist Returns'!$A$12:$D$107,3,FALSE))","v":{"v":54146.17370968962,"d":"54,146"}},{"$f":"($A4-$A3)/365.25*(CK3+(Main!$I10*Main!$D$3))*(1+VLOOKUP('Random Years'!CI4,'Hist Returns'!$A$12:$D$107,3,FALSE))","v":{"v":52419.2275445417,"d":"52,419"}},{"$f":"($A4-$A3)/365.25*(CL3+(Main!$I10*Main!$D$3))*(1+VLOOKUP('Random Years'!CJ4,'Hist Returns'!$A$12:$D$107,3,FALSE))","v":{"v":48123.4961053674,"d":"48,123"}},{"$f":"($A4-$A3)/365.25*(CM3+(Main!$I10*Main!$D$3))*(1+VLOOKUP('Random Years'!CK4,'Hist Returns'!$A$12:$D$107,3,FALSE))","v":{"v":53636.83032620354,"d":"53,637"}},{"$f":"($A4-$A3)/365.25*(CN3+(Main!$I10*Main!$D$3))*(1+VLOOKUP('Random Years'!CL4,'Hist Returns'!$A$12:$D$107,3,FALSE))","v":{"v":53632.40060601818,"d":"53,632"}},{"$f":"($A4-$A3)/365.25*(CO3+(Main!$I10*Main!$D$3))*(1+VLOOKUP('Random Years'!CM4,'Hist Returns'!$A$12:$D$107,3,FALSE))","v":{"v":48760.06660490067,"d":"48,760"}},{"$f":"($A4-$A3)/365.25*(CP3+(Main!$I10*Main!$D$3))*(1+VLOOKUP('Random Years'!CN4,'Hist Returns'!$A$12:$D$107,3,FALSE))","v":{"v":56166.74439903268,"d":"56,167"}},{"$f":"($A4-$A3)/365.25*(CQ3+(Main!$I10*Main!$D$3))*(1+VLOOKUP('Random Years'!CO4,'Hist Returns'!$A$12:$D$107,3,FALSE))","v":{"v":50712.60013564238,"d":"50,713"}},{"$f":"($A4-$A3)/365.25*(CR3+(Main!$I10*Main!$D$3))*(1+VLOOKUP('Random Years'!CP4,'Hist Returns'!$A$12:$D$107,3,FALSE))","v":{"v":52098.97440901975,"d":"52,099"}},{"$f":"($A4-$A3)/365.25*(CS3+(Main!$I10*Main!$D$3))*(1+VLOOKUP('Random Years'!CQ4,'Hist Returns'!$A$12:$D$107,3,FALSE))","v":{"v":50801.48661678677,"d":"50,801"}},{"$f":"($A4-$A3)/365.25*(CT3+(Main!$I10*Main!$D$3))*(1+VLOOKUP('Random Years'!CR4,'Hist Returns'!$A$12:$D$107,3,FALSE))","v":{"v":55055.17348331596,"d":"55,055"}},{"$f":"($A4-$A3)/365.25*(CU3+(Main!$I10*Main!$D$3))*(1+VLOOKUP('Random Years'!CS4,'Hist Returns'!$A$12:$D$107,3,FALSE))","v":{"v":57021.03384035049,"d":"57,021"}},{"$f":"($A4-$A3)/365.25*(CV3+(Main!$I10*Main!$D$3))*(1+VLOOKUP('Random Years'!CT4,'Hist Returns'!$A$12:$D$107,3,FALSE))","v":{"v":50866.944398164094,"d":"50,867"}},{"$f":"($A4-$A3)/365.25*(CW3+(Main!$I10*Main!$D$3))*(1+VLOOKUP('Random Years'!CU4,'Hist Returns'!$A$12:$D$107,3,FALSE))","v":{"v":51319.67100597212,"d":"51,320"}},{"$f":"($A4-$A3)/365.25*(CX3+(Main!$I10*Main!$D$3))*(1+VLOOKUP('Random Years'!CV4,'Hist Returns'!$A$12:$D$107,3,FALSE))","v":{"v":53677.48567405166,"d":"53,677"}}]
[{"$f":"Main!A11","v":"2026-12-30"},{"$f":"Main!B11","v":72},{"$f":"($A5-$A4)/365.25*(C4+(Main!$I11*Main!$D$3))*(1+VLOOKUP('Random Years'!A5,'Hist Returns'!$A$12:$D$107,3,FALSE))","v":{"v":53169.49407669795,"d":"53,169"}},{"$f":"($A5-$A4)/365.25*(D4+(Main!$I11*Main!$D$3))*(1+VLOOKUP('Random Years'!B5,'Hist Returns'!$A$12:$D$107,3,FALSE))","v":{"v":50994.1628147077,"d":"50,994"}},{"$f":"($A5-$A4)/365.25*(E4+(Main!$I11*Main!$D$3))*(1+VLOOKUP('Random Years'!C5,'Hist Returns'!$A$12:$D$107,3,FALSE))","v":{"v":52551.88962099862,"d":"52,552"}},{"$f":"($A5-$A4)/365.25*(F4+(Main!$I11*Main!$D$3))*(1+VLOOKUP('Random Years'!D5,'Hist Returns'!$A$12:$D$107,3,FALSE))","v":{"v":50907.21398127037,"d":"50,907"}},{"$f":"($A5-$A4)/365.25*(G4+(Main!$I11*Main!$D$3))*(1+VLOOKUP('Random Years'!E5,'Hist Returns'!$A$12:$D$107,3,FALSE))","v":{"v":53268.5577734529,"d":"53,269"}},{"$f":"($A5-$A4)/365.25*(H4+(Main!$I11*Main!$D$3))*(1+VLOOKUP('Random Years'!F5,'Hist Returns'!$A$12:$D$107,3,FALSE))","v":{"v":56397.28219097628,"d":"56,397"}},{"$f":"($A5-$A4)/365.25*(I4+(Main!$I11*Main!$D$3))*(1+VLOOKUP('Random Years'!G5,'Hist Returns'!$A$12:$D$107,3,FALSE))","v":{"v":51597.2303505104,"d":"51,597"}},{"$f":"($A5-$A4)/365.25*(J4+(Main!$I11*Main!$D$3))*(1+VLOOKUP('Random Years'!H5,'Hist Returns'!$A$12:$D$107,3,FALSE))","v":{"v":53677.061936888495,"d":"53,677"}},{"$f":"($A5-$A4)/365.25*(K4+(Main!$I11*Main!$D$3))*(1+VLOOKUP('Random Years'!I5,'Hist Returns'!$A$12:$D$107,3,FALSE))","v":{"v":59625.426421982214,"d":"59,625"}},{"$f":"($A5-$A4)/365.25*(L4+(Main!$I11*Main!$D$3))*(1+VLOOKUP('Random Years'!J5,'Hist Returns'!$A$12:$D$107,3,FALSE))","v":{"v":50264.199594939644,"d":"50,264"}},{"$f":"($A5-$A4)/365.25*(M4+(Main!$I11*Main!$D$3))*(1+VLOOKUP('Random Years'!K5,'Hist Returns'!$A$12:$D$107,3,FALSE))","v":{"v":47163.59440424288,"d":"47,164"}},{"$f":"($A5-$A4)/365.25*(N4+(Main!$I11*Main!$D$3))*(1+VLOOKUP('Random Years'!L5,'Hist Returns'!$A$12:$D$107,3,FALSE))","v":{"v":55693.53290632653,"d":"55,694"}},{"$f":"($A5-$A4)/365.25*(O4+(Main!$I11*Main!$D$3))*(1+VLOOKUP('Random Years'!M5,'Hist Returns'!$A$12:$D$107,3,FALSE))","v":{"v":57051.087104180064,"d":"57,051"}},{"$f":"($A5-$A4)/365.25*(P4+(Main!$I11*Main!$D$3))*(1+VLOOKUP('Random Years'!N5,'Hist Returns'!$A$12:$D$107,3,FALSE))","v":{"v":50509.17240374934,"d":"50,509"}},{"$f":"($A5-$A4)/365.25*(Q4+(Main!$I11*Main!$D$3))*(1+VLOOKUP('Random Years'!O5,'Hist Returns'!$A$12:$D$107,3,FALSE))","v":{"v":50146.29395315417,"d":"50,146"}},{"$f":"($A5-$A4)/365.25*(R4+(Main!$I11*Main!$D$3))*(1+VLOOKUP('Random Years'!P5,'Hist Returns'!$A$12:$D$107,3,FALSE))","v":{"v":51754.38619493579,"d":"51,754"}},{"$f":"($A5-$A4)/365.25*(S4+(Main!$I11*Main!$D$3))*(1+VLOOKUP('Random Years'!Q5,'Hist Returns'!$A$12:$D$107,3,FALSE))","v":{"v":51665.29078805637,"d":"51,665"}},{"$f":"($A5-$A4)/365.25*(T4+(Main!$I11*Main!$D$3))*(1+VLOOKUP('Random Years'!R5,'Hist Returns'!$A$12:$D$107,3,FALSE))","v":{"v":62697.95262641773,"d":"62,698"}},{"$f":"($A5-$A4)/365.25*(U4+(Main!$I11*Main!$D$3))*(1+VLOOKUP('Random Years'!S5,'Hist Returns'!$A$12:$D$107,3,FALSE))","v":{"v":58008.37560654518,"d":"58,008"}},{"$f":"($A5-$A4)/365.25*(V4+(Main!$I11*Main!$D$3))*(1+VLOOKUP('Random Years'!T5,'Hist Returns'!$A$12:$D$107,3,FALSE))","v":{"v":52738.054890248095,"d":"52,738"}},{"$f":"($A5-$A4)/365.25*(W4+(Main!$I11*Main!$D$3))*(1+VLOOKUP('Random Years'!U5,'Hist Returns'!$A$12:$D$107,3,FALSE))","v":{"v":53004.121021363455,"d":"53,004"}},{"$f":"($A5-$A4)/365.25*(X4+(Main!$I11*Main!$D$3))*(1+VLOOKUP('Random Years'!V5,'Hist Returns'!$A$12:$D$107,3,FALSE))","v":{"v":50652.11595819028,"d":"50,652"}},{"$f":"($A5-$A4)/365.25*(Y4+(Main!$I11*Main!$D$3))*(1+VLOOKUP('Random Years'!W5,'Hist Returns'!$A$12:$D$107,3,FALSE))","v":{"v":50161.033017277194,"d":"50,161"}},{"$f":"($A5-$A4)/365.25*(Z4+(Main!$I11*Main!$D$3))*(1+VLOOKUP('Random Years'!X5,'Hist Returns'!$A$12:$D$107,3,FALSE))","v":{"v":50969.67727954431,"d":"50,970"}},{"$f":"($A5-$A4)/365.25*(AA4+(Main!$I11*Main!$D$3))*(1+VLOOKUP('Random Years'!Y5,'Hist Returns'!$A$12:$D$107,3,FALSE))","v":{"v":50606.22143917873,"d":"50,606"}},{"$f":"($A5-$A4)/365.25*(AB4+(Main!$I11*Main!$D$3))*(1+VLOOKUP('Random Years'!Z5,'Hist Returns'!$A$12:$D$107,3,FALSE))","v":{"v":54738.16778659806,"d":"54,738"}},{"$f":"($A5-$A4)/365.25*(AC4+(Main!$I11*Main!$D$3))*(1+VLOOKUP('Random Years'!AA5,'Hist Returns'!$A$12:$D$107,3,FALSE))","v":{"v":55770.943066675216,"d":"55,771"}},{"$f":"($A5-$A4)/365.25*(AD4+(Main!$I11*Main!$D$3))*(1+VLOOKUP('Random Years'!AB5,'Hist Returns'!$A$12:$D$107,3,FALSE))","v":{"v":57893.495223819795,"d":"57,893"}},{"$f":"($A5-$A4)/365.25*(AE4+(Main!$I11*Main!$D$3))*(1+VLOOKUP('Random Years'!AC5,'Hist Returns'!$A$12:$D$107,3,FALSE))","v":{"v":56358.53619049506,"d":"56,359"}},{"$f":"($A5-$A4)/365.25*(AF4+(Main!$I11*Main!$D$3))*(1+VLOOKUP('Random Years'!AD5,'Hist Returns'!$A$12:$D$107,3,FALSE))","v":{"v":48694.18670280005,"d":"48,694"}},{"$f":"($A5-$A4)/365.25*(AG4+(Main!$I11*Main!$D$3))*(1+VLOOKUP('Random Years'!AE5,'Hist Returns'!$A$12:$D$107,3,FALSE))","v":{"v":54890.50002951121,"d":"54,891"}},{"$f":"($A5-$A4)/365.25*(AH4+(Main!$I11*Main!$D$3))*(1+VLOOKUP('Random Years'!AF5,'Hist Returns'!$A$12:$D$107,3,FALSE))","v":{"v":49482.06724232615,"d":"49,482"}},{"$f":"($A5-$A4)/365.25*(AI4+(Main!$I11*Main!$D$3))*(1+VLOOKUP('Random Years'!AG5,'Hist Returns'!$A$12:$D$107,3,FALSE))","v":{"v":58840.9827924288,"d":"58,841"}},{"$f":"($A5-$A4)/365.25*(AJ4+(Main!$I11*Main!$D$3))*(1+VLOOKUP('Random Years'!AH5,'Hist Returns'!$A$12:$D$107,3,FALSE))","v":{"v":51262.97376892426,"d":"51,263"}},{"$f":"($A5-$A4)/365.25*(AK4+(Main!$I11*Main!$D$3))*(1+VLOOKUP('Random Years'!AI5,'Hist Returns'!$A$12:$D$107,3,FALSE))","v":{"v":49014.82950435329,"d":"49,015"}},{"$f":"($A5-$A4)/365.25*(AL4+(Main!$I11*Main!$D$3))*(1+VLOOKUP('Random Years'!AJ5,'Hist Returns'!$A$12:$D$107,3,FALSE))","v":{"v":53329.74920578204,"d":"53,330"}},{"$f":"($A5-$A4)/365.25*(AM4+(Main!$I11*Main!$D$3))*(1+VLOOKUP('Random Years'!AK5,'Hist Returns'!$A$12:$D$107,3,FALSE))","v":{"v":51892.50709105404,"d":"51,893"}},{"$f":"($A5-$A4)/365.25*(AN4+(Main!$I11*Main!$D$3))*(1+VLOOKUP('Random Years'!AL5,'Hist Returns'!$A$12:$D$107,3,FALSE))","v":{"v":53833.603118724874,"d":"53,834"}},{"$f":"($A5-$A4)/365.25*(AO4+(Main!$I11*Main!$D$3))*(1+VLOOKUP('Random Years'!AM5,'Hist Returns'!$A$12:$D$107,3,FALSE))","v":{"v":57124.51994435682,"d":"57,125"}},{"$f":"($A5-$A4)/365.25*(AP4+(Main!$I11*Main!$D$3))*(1+VLOOKUP('Random Years'!AN5,'Hist Returns'!$A$12:$D$107,3,FALSE))","v":{"v":47448.223877350254,"d":"47,448"}},{"$f":"($A5-$A4)/365.25*(AQ4+(Main!$I11*Main!$D$3))*(1+VLOOKUP('Random Years'!AO5,'Hist Returns'!$A$12:$D$107,3,FALSE))","v":{"v":48755.15837247053,"d":"48,755"}},{"$f":"($A5-$A4)/365.25*(AR4+(Main!$I11*Main!$D$3))*(1+VLOOKUP('Random Years'!AP5,'Hist Returns'!$A$12:$D$107,3,FALSE))","v":{"v":51603.886729629514,"d":"51,604"}},{"$f":"($A5-$A4)/365.25*(AS4+(Main!$I11*Main!$D$3))*(1+VLOOKUP('Random Years'!AQ5,'Hist Returns'!$A$12:$D$107,3,FALSE))","v":{"v":51676.0930264933,"d":"51,676"}},{"$f":"($A5-$A4)/365.25*(AT4+(Main!$I11*Main!$D$3))*(1+VLOOKUP('Random Years'!AR5,'Hist Returns'!$A$12:$D$107,3,FALSE))","v":{"v":49784.02151828384,"d":"49,784"}},{"$f":"($A5-$A4)/365.25*(AU4+(Main!$I11*Main!$D$3))*(1+VLOOKUP('Random Years'!AS5,'Hist Returns'!$A$12:$D$107,3,FALSE))","v":{"v":49337.08748369122,"d":"49,337"}},{"$f":"($A5-$A4)/365.25*(AV4+(Main!$I11*Main!$D$3))*(1+VLOOKUP('Random Years'!AT5,'Hist Returns'!$A$12:$D$107,3,FALSE))","v":{"v":49347.894324033856,"d":"49,348"}},{"$f":"($A5-$A4)/365.25*(AW4+(Main!$I11*Main!$D$3))*(1+VLOOKUP('Random Years'!AU5,'Hist Returns'!$A$12:$D$107,3,FALSE))","v":{"v":52464.87349386119,"d":"52,465"}},{"$f":"($A5-$A4)/365.25*(AX4+(Main!$I11*Main!$D$3))*(1+VLOOKUP('Random Years'!AV5,'Hist Returns'!$A$12:$D$107,3,FALSE))","v":{"v":50283.5264498549,"d":"50,284"}},{"$f":"($A5-$A4)/365.25*(AY4+(Main!$I11*Main!$D$3))*(1+VLOOKUP('Random Years'!AW5,'Hist Returns'!$A$12:$D$107,3,FALSE))","v":{"v":49861.13999124606,"d":"49,861"}},{"$f":"($A5-$A4)/365.25*(AZ4+(Main!$I11*Main!$D$3))*(1+VLOOKUP('Random Years'!AX5,'Hist Returns'!$A$12:$D$107,3,FALSE))","v":{"v":55999.31836877547,"d":"55,999"}},{"$f":"($A5-$A4)/365.25*(BA4+(Main!$I11*Main!$D$3))*(1+VLOOKUP('Random Years'!AY5,'Hist Returns'!$A$12:$D$107,3,FALSE))","v":{"v":54009.51364691257,"d":"54,010"}},{"$f":"($A5-$A4)/365.25*(BB4+(Main!$I11*Main!$D$3))*(1+VLOOKUP('Random Years'!AZ5,'Hist Returns'!$A$12:$D$107,3,FALSE))","v":{"v":56505.68186432377,"d":"56,506"}},{"$f":"($A5-$A4)/365.25*(BC4+(Main!$I11*Main!$D$3))*(1+VLOOKUP('Random Years'!BA5,'Hist Returns'!$A$12:$D$107,3,FALSE))","v":{"v":56993.27548282534,"d":"56,993"}},{"$f":"($A5-$A4)/365.25*(BD4+(Main!$I11*Main!$D$3))*(1+VLOOKUP('Random Years'!BB5,'Hist Returns'!$A$12:$D$107,3,FALSE))","v":{"v":49522.33270164782,"d":"49,522"}},{"$f":"($A5-$A4)/365.25*(BE4+(Main!$I11*Main!$D$3))*(1+VLOOKUP('Random Years'!BC5,'Hist Returns'!$A$12:$D$107,3,FALSE))","v":{"v":53082.47447802551,"d":"53,082"}},{"$f":"($A5-$A4)/365.25*(BF4+(Main!$I11*Main!$D$3))*(1+VLOOKUP('Random Years'!BD5,'Hist Returns'!$A$12:$D$107,3,FALSE))","v":{"v":56673.96977543691,"d":"56,674"}},{"$f":"($A5-$A4)/365.25*(BG4+(Main!$I11*Main!$D$3))*(1+VLOOKUP('Random Years'!BE5,'Hist Returns'!$A$12:$D$107,3,FALSE))","v":{"v":50714.40619661546,"d":"50,714"}},{"$f":"($A5-$A4)/365.25*(BH4+(Main!$I11*Main!$D$3))*(1+VLOOKUP('Random Years'!BF5,'Hist Returns'!$A$12:$D$107,3,FALSE))","v":{"v":52838.850606695676,"d":"52,839"}},{"$f":"($A5-$A4)/365.25*(BI4+(Main!$I11*Main!$D$3))*(1+VLOOKUP('Random Years'!BG5,'Hist Returns'!$A$12:$D$107,3,FALSE))","v":{"v":49283.70882148989,"d":"49,284"}},{"$f":"($A5-$A4)/365.25*(BJ4+(Main!$I11*Main!$D$3))*(1+VLOOKUP('Random Years'!BH5,'Hist Returns'!$A$12:$D$107,3,FALSE))","v":{"v":54984.724899834146,"d":"54,985"}},{"$f":"($A5-$A4)/365.25*(BK4+(Main!$I11*Main!$D$3))*(1+VLOOKUP('Random Years'!BI5,'Hist Returns'!$A$12:$D$107,3,FALSE))","v":{"v":48592.79563544226,"d":"48,593"}},{"$f":"($A5-$A4)/365.25*(BL4+(Main!$I11*Main!$D$3))*(1+VLOOKUP('Random Years'!BJ5,'Hist Returns'!$A$12:$D$107,3,FALSE))","v":{"v":52627.8168990957,"d":"52,628"}},{"$f":"($A5-$A4)/365.25*(BM4+(Main!$I11*Main!$D$3))*(1+VLOOKUP('Random Years'!BK5,'Hist Returns'!$A$12:$D$107,3,FALSE))","v":{"v":52086.678977056814,"d":"52,087"}},{"$f":"($A5-$A4)/365.25*(BN4+(Main!$I11*Main!$D$3))*(1+VLOOKUP('Random Years'!BL5,'Hist Returns'!$A$12:$D$107,3,FALSE))","v":{"v":55837.87933840303,"d":"55,838"}},{"$f":"($A5-$A4)/365.25*(BO4+(Main!$I11*Main!$D$3))*(1+VLOOKUP('Random Years'!BM5,'Hist Returns'!$A$12:$D$107,3,FALSE))","v":{"v":54853.3531445204,"d":"54,853"}},{"$f":"($A5-$A4)/365.25*(BP4+(Main!$I11*Main!$D$3))*(1+VLOOKUP('Random Years'!BN5,'Hist Returns'!$A$12:$D$107,3,FALSE))","v":{"v":47677.99661496655,"d":"47,678"}},{"$f":"($A5-$A4)/365.25*(BQ4+(Main!$I11*Main!$D$3))*(1+VLOOKUP('Random Years'!BO5,'Hist Returns'!$A$12:$D$107,3,FALSE))","v":{"v":51449.13992999099,"d":"51,449"}},{"$f":"($A5-$A4)/365.25*(BR4+(Main!$I11*Main!$D$3))*(1+VLOOKUP('Random Years'!BP5,'Hist Returns'!$A$12:$D$107,3,FALSE))","v":{"v":53836.271546242126,"d":"53,836"}},{"$f":"($A5-$A4)/365.25*(BS4+(Main!$I11*Main!$D$3))*(1+VLOOKUP('Random Years'!BQ5,'Hist Returns'!$A$12:$D$107,3,FALSE))","v":{"v":50939.73566777222,"d":"50,940"}},{"$f":"($A5-$A4)/365.25*(BT4+(Main!$I11*Main!$D$3))*(1+VLOOKUP('Random Years'!BR5,'Hist Returns'!$A$12:$D$107,3,FALSE))","v":{"v":53186.61745998533,"d":"53,187"}},{"$f":"($A5-$A4)/365.25*(BU4+(Main!$I11*Main!$D$3))*(1+VLOOKUP('Random Years'!BS5,'Hist Returns'!$A$12:$D$107,3,FALSE))","v":{"v":58189.95377049511,"d":"58,190"}},{"$f":"($A5-$A4)/365.25*(BV4+(Main!$I11*Main!$D$3))*(1+VLOOKUP('Random Years'!BT5,'Hist Returns'!$A$12:$D$107,3,FALSE))","v":{"v":54908.16131199341,"d":"54,908"}},{"$f":"($A5-$A4)/365.25*(BW4+(Main!$I11*Main!$D$3))*(1+VLOOKUP('Random Years'!BU5,'Hist Returns'!$A$12:$D$107,3,FALSE))","v":{"v":48465.00014200115,"d":"48,465"}},{"$f":"($A5-$A4)/365.25*(BX4+(Main!$I11*Main!$D$3))*(1+VLOOKUP('Random Years'!BV5,'Hist Returns'!$A$12:$D$107,3,FALSE))","v":{"v":57412.43403255655,"d":"57,412"}},{"$f":"($A5-$A4)/365.25*(BY4+(Main!$I11*Main!$D$3))*(1+VLOOKUP('Random Years'!BW5,'Hist Returns'!$A$12:$D$107,3,FALSE))","v":{"v":50187.76377204837,"d":"50,188"}},{"$f":"($A5-$A4)/365.25*(BZ4+(Main!$I11*Main!$D$3))*(1+VLOOKUP('Random Years'!BX5,'Hist Returns'!$A$12:$D$107,3,FALSE))","v":{"v":51710.754055349724,"d":"51,711"}},{"$f":"($A5-$A4)/365.25*(CA4+(Main!$I11*Main!$D$3))*(1+VLOOKUP('Random Years'!BY5,'Hist Returns'!$A$12:$D$107,3,FALSE))","v":{"v":53809.86432809605,"d":"53,810"}},{"$f":"($A5-$A4)/365.25*(CB4+(Main!$I11*Main!$D$3))*(1+VLOOKUP('Random Years'!BZ5,'Hist Returns'!$A$12:$D$107,3,FALSE))","v":{"v":52488.988207448296,"d":"52,489"}},{"$f":"($A5-$A4)/365.25*(CC4+(Main!$I11*Main!$D$3))*(1+VLOOKUP('Random Years'!CA5,'Hist Returns'!$A$12:$D$107,3,FALSE))","v":{"v":57770.79351425947,"d":"57,771"}},{"$f":"($A5-$A4)/365.25*(CD4+(Main!$I11*Main!$D$3))*(1+VLOOKUP('Random Years'!CB5,'Hist Returns'!$A$12:$D$107,3,FALSE))","v":{"v":57461.26149881764,"d":"57,461"}},{"$f":"($A5-$A4)/365.25*(CE4+(Main!$I11*Main!$D$3))*(1+VLOOKUP('Random Years'!CC5,'Hist Returns'!$A$12:$D$107,3,FALSE))","v":{"v":53305.63438732287,"d":"53,306"}},{"$f":"($A5-$A4)/365.25*(CF4+(Main!$I11*Main!$D$3))*(1+VLOOKUP('Random Years'!CD5,'Hist Returns'!$A$12:$D$107,3,FALSE))","v":{"v":58060.21414910883,"d":"58,060"}},{"$f":"($A5-$A4)/365.25*(CG4+(Main!$I11*Main!$D$3))*(1+VLOOKUP('Random Years'!CE5,'Hist Returns'!$A$12:$D$107,3,FALSE))","v":{"v":52976.11578734879,"d":"52,976"}},{"$f":"($A5-$A4)/365.25*(CH4+(Main!$I11*Main!$D$3))*(1+VLOOKUP('Random Years'!CF5,'Hist Returns'!$A$12:$D$107,3,FALSE))","v":{"v":52709.792908275005,"d":"52,710"}},{"$f":"($A5-$A4)/365.25*(CI4+(Main!$I11*Main!$D$3))*(1+VLOOKUP('Random Years'!CG5,'Hist Returns'!$A$12:$D$107,3,FALSE))","v":{"v":51564.8601552472,"d":"51,565"}},{"$f":"($A5-$A4)/365.25*(CJ4+(Main!$I11*Main!$D$3))*(1+VLOOKUP('Random Years'!CH5,'Hist Returns'!$A$12:$D$107,3,FALSE))","v":{"v":52931.2716279902,"d":"52,931"}},{"$f":"($A5-$A4)/365.25*(CK4+(Main!$I11*Main!$D$3))*(1+VLOOKUP('Random Years'!CI5,'Hist Returns'!$A$12:$D$107,3,FALSE))","v":{"v":52370.35470315422,"d":"52,370"}},{"$f":"($A5-$A4)/365.25*(CL4+(Main!$I11*Main!$D$3))*(1+VLOOKUP('Random Years'!CJ5,'Hist Returns'!$A$12:$D$107,3,FALSE))","v":{"v":48294.50720403615,"d":"48,295"}},{"$f":"($A5-$A4)/365.25*(CM4+(Main!$I11*Main!$D$3))*(1+VLOOKUP('Random Years'!CK5,'Hist Returns'!$A$12:$D$107,3,FALSE))","v":{"v":54082.09618129562,"d":"54,082"}},{"$f":"($A5-$A4)/365.25*(CN4+(Main!$I11*Main!$D$3))*(1+VLOOKUP('Random Years'!CL5,'Hist Returns'!$A$12:$D$107,3,FALSE))","v":{"v":52909.668499359264,"d":"52,910"}},{"$f":"($A5-$A4)/365.25*(CO4+(Main!$I11*Main!$D$3))*(1+VLOOKUP('Random Years'!CM5,'Hist Returns'!$A$12:$D$107,3,FALSE))","v":{"v":47957.26785962551,"d":"47,957"}},{"$f":"($A5-$A4)/365.25*(CP4+(Main!$I11*Main!$D$3))*(1+VLOOKUP('Random Years'!CN5,'Hist Returns'!$A$12:$D$107,3,FALSE))","v":{"v":60360.20868531908,"d":"60,360"}},{"$f":"($A5-$A4)/365.25*(CQ4+(Main!$I11*Main!$D$3))*(1+VLOOKUP('Random Years'!CO5,'Hist Returns'!$A$12:$D$107,3,FALSE))","v":{"v":49640.37221929716,"d":"49,640"}},{"$f":"($A5-$A4)/365.25*(CR4+(Main!$I11*Main!$D$3))*(1+VLOOKUP('Random Years'!CP5,'Hist Returns'!$A$12:$D$107,3,FALSE))","v":{"v":50868.38097713726,"d":"50,868"}},{"$f":"($A5-$A4)/365.25*(CS4+(Main!$I11*Main!$D$3))*(1+VLOOKUP('Random Years'!CQ5,'Hist Returns'!$A$12:$D$107,3,FALSE))","v":{"v":49566.04917921746,"d":"49,566"}},{"$f":"($A5-$A4)/365.25*(CT4+(Main!$I11*Main!$D$3))*(1+VLOOKUP('Random Years'!CR5,'Hist Returns'!$A$12:$D$107,3,FALSE))","v":{"v":57519.84325290568,"d":"57,520"}},{"$f":"($A5-$A4)/365.25*(CU4+(Main!$I11*Main!$D$3))*(1+VLOOKUP('Random Years'!CS5,'Hist Returns'!$A$12:$D$107,3,FALSE))","v":{"v":59124.26546585872,"d":"59,124"}},{"$f":"($A5-$A4)/365.25*(CV4+(Main!$I11*Main!$D$3))*(1+VLOOKUP('Random Years'!CT5,'Hist Returns'!$A$12:$D$107,3,FALSE))","v":{"v":53044.435240106766,"d":"53,044"}},{"$f":"($A5-$A4)/365.25*(CW4+(Main!$I11*Main!$D$3))*(1+VLOOKUP('Random Years'!CU5,'Hist Returns'!$A$12:$D$107,3,FALSE))","v":{"v":51640.97607198784,"d":"51,641"}},{"$f":"($A5-$A4)/365.25*(CX4+(Main!$I11*Main!$D$3))*(1+VLOOKUP('Random Years'!CV5,'Hist Returns'!$A$12:$D$107,3,FALSE))","v":{"v":52436.27520677495,"d":"52,436"}}]
[{"$f":"Main!A12","v":"2027-12-31"},{"$f":"Main!B12","v":73},{"$f":"($A6-$A5)/365.25*(C5+(Main!$I12*Main!$D$3))*(1+VLOOKUP('Random Years'!A6,'Hist Returns'!$A$12:$D$107,3,FALSE))","v":{"v":51946.25589024976,"d":"51,946"}},{"$f":"($A6-$A5)/365.25*(D5+(Main!$I12*Main!$D$3))*(1+VLOOKUP('Random Years'!B6,'Hist Returns'!$A$12:$D$107,3,FALSE))","v":{"v":49824.15970858315,"d":"49,824"}},{"$f":"($A6-$A5)/365.25*(E5+(Main!$I12*Main!$D$3))*(1+VLOOKUP('Random Years'!C6,'Hist Returns'!$A$12:$D$107,3,FALSE))","v":{"v":51321.69820017683,"d":"51,322"}},{"$f":"($A6-$A5)/365.25*(F5+(Main!$I12*Main!$D$3))*(1+VLOOKUP('Random Years'!D6,'Hist Returns'!$A$12:$D$107,3,FALSE))","v":{"v":53072.16149003396,"d":"53,072"}},{"$f":"($A6-$A5)/365.25*(G5+(Main!$I12*Main!$D$3))*(1+VLOOKUP('Random Years'!E6,'Hist Returns'!$A$12:$D$107,3,FALSE))","v":{"v":52014.41305557456,"d":"52,014"}},{"$f":"($A6-$A5)/365.25*(H5+(Main!$I12*Main!$D$3))*(1+VLOOKUP('Random Years'!F6,'Hist Returns'!$A$12:$D$107,3,FALSE))","v":{"v":56049.18608895262,"d":"56,049"}},{"$f":"($A6-$A5)/365.25*(I5+(Main!$I12*Main!$D$3))*(1+VLOOKUP('Random Years'!G6,'Hist Returns'!$A$12:$D$107,3,FALSE))","v":{"v":51914.29421449441,"d":"51,914"}},{"$f":"($A6-$A5)/365.25*(J5+(Main!$I12*Main!$D$3))*(1+VLOOKUP('Random Years'!H6,'Hist Returns'!$A$12:$D$107,3,FALSE))","v":{"v":59902.522756708364,"d":"59,903"}},{"$f":"($A6-$A5)/365.25*(K5+(Main!$I12*Main!$D$3))*(1+VLOOKUP('Random Years'!I6,'Hist Returns'!$A$12:$D$107,3,FALSE))","v":{"v":62413.688526322156,"d":"62,414"}},{"$f":"($A6-$A5)/365.25*(L5+(Main!$I12*Main!$D$3))*(1+VLOOKUP('Random Years'!J6,'Hist Returns'!$A$12:$D$107,3,FALSE))","v":{"v":49747.60455459083,"d":"49,748"}},{"$f":"($A6-$A5)/365.25*(M5+(Main!$I12*Main!$D$3))*(1+VLOOKUP('Random Years'!K6,'Hist Returns'!$A$12:$D$107,3,FALSE))","v":{"v":48161.61549817508,"d":"48,162"}},{"$f":"($A6-$A5)/365.25*(N5+(Main!$I12*Main!$D$3))*(1+VLOOKUP('Random Years'!L6,'Hist Returns'!$A$12:$D$107,3,FALSE))","v":{"v":56121.50264302185,"d":"56,122"}},{"$f":"($A6-$A5)/365.25*(O5+(Main!$I12*Main!$D$3))*(1+VLOOKUP('Random Years'!M6,'Hist Returns'!$A$12:$D$107,3,FALSE))","v":{"v":61931.490725656986,"d":"61,931"}},{"$f":"($A6-$A5)/365.25*(P5+(Main!$I12*Main!$D$3))*(1+VLOOKUP('Random Years'!N6,'Hist Returns'!$A$12:$D$107,3,FALSE))","v":{"v":49248.53208137854,"d":"49,249"}},{"$f":"($A6-$A5)/365.25*(Q5+(Main!$I12*Main!$D$3))*(1+VLOOKUP('Random Years'!O6,'Hist Returns'!$A$12:$D$107,3,FALSE))","v":{"v":49680.16091542322,"d":"49,680"}},{"$f":"($A6-$A5)/365.25*(R5+(Main!$I12*Main!$D$3))*(1+VLOOKUP('Random Years'!P6,'Hist Returns'!$A$12:$D$107,3,FALSE))","v":{"v":51281.664943668606,"d":"51,282"}},{"$f":"($A6-$A5)/365.25*(S5+(Main!$I12*Main!$D$3))*(1+VLOOKUP('Random Years'!Q6,'Hist Returns'!$A$12:$D$107,3,FALSE))","v":{"v":51944.33572916319,"d":"51,944"}},{"$f":"($A6-$A5)/365.25*(T5+(Main!$I12*Main!$D$3))*(1+VLOOKUP('Random Years'!R6,'Hist Returns'!$A$12:$D$107,3,FALSE))","v":{"v":63874.74950523466,"d":"63,875"}},{"$f":"($A6-$A5)/365.25*(U5+(Main!$I12*Main!$D$3))*(1+VLOOKUP('Random Years'!S6,'Hist Returns'!$A$12:$D$107,3,FALSE))","v":{"v":60544.82947705811,"d":"60,545"}},{"$f":"($A6-$A5)/365.25*(V5+(Main!$I12*Main!$D$3))*(1+VLOOKUP('Random Years'!T6,'Hist Returns'!$A$12:$D$107,3,FALSE))","v":{"v":51559.8621982041,"d":"51,560"}},{"$f":"($A6-$A5)/365.25*(W5+(Main!$I12*Main!$D$3))*(1+VLOOKUP('Random Years'!U6,'Hist Returns'!$A$12:$D$107,3,FALSE))","v":{"v":56705.45508369677,"d":"56,705"}},{"$f":"($A6-$A5)/365.25*(X5+(Main!$I12*Main!$D$3))*(1+VLOOKUP('Random Years'!V6,'Hist Returns'!$A$12:$D$107,3,FALSE))","v":{"v":50195.422784678995,"d":"50,195"}},{"$f":"($A6-$A5)/365.25*(Y5+(Main!$I12*Main!$D$3))*(1+VLOOKUP('Random Years'!W6,'Hist Returns'!$A$12:$D$107,3,FALSE))","v":{"v":49808.832456600445,"d":"49,809"}},{"$f":"($A6-$A5)/365.25*(Z5+(Main!$I12*Main!$D$3))*(1+VLOOKUP('Random Years'!X6,'Hist Returns'!$A$12:$D$107,3,FALSE))","v":{"v":50482.88154073265,"d":"50,483"}},{"$f":"($A6-$A5)/365.25*(AA5+(Main!$I12*Main!$D$3))*(1+VLOOKUP('Random Years'!Y6,'Hist Returns'!$A$12:$D$107,3,FALSE))","v":{"v":50470.55660473615,"d":"50,471"}},{"$f":"($A6-$A5)/365.25*(AB5+(Main!$I12*Main!$D$3))*(1+VLOOKUP('Random Years'!Z6,'Hist Returns'!$A$12:$D$107,3,FALSE))","v":{"v":54957.94716709688,"d":"54,958"}},{"$f":"($A6-$A5)/365.25*(AC5+(Main!$I12*Main!$D$3))*(1+VLOOKUP('Random Years'!AA6,'Hist Returns'!$A$12:$D$107,3,FALSE))","v":{"v":55144.06121668529,"d":"55,144"}},{"$f":"($A6-$A5)/365.25*(AD5+(Main!$I12*Main!$D$3))*(1+VLOOKUP('Random Years'!AB6,'Hist Returns'!$A$12:$D$107,3,FALSE))","v":{"v":56956.05716502155,"d":"56,956"}},{"$f":"($A6-$A5)/365.25*(AE5+(Main!$I12*Main!$D$3))*(1+VLOOKUP('Random Years'!AC6,'Hist Returns'!$A$12:$D$107,3,FALSE))","v":{"v":55260.42216373466,"d":"55,260"}},{"$f":"($A6-$A5)/365.25*(AF5+(Main!$I12*Main!$D$3))*(1+VLOOKUP('Random Years'!AD6,'Hist Returns'!$A$12:$D$107,3,FALSE))","v":{"v":47495.65496577002,"d":"47,496"}},{"$f":"($A6-$A5)/365.25*(AG5+(Main!$I12*Main!$D$3))*(1+VLOOKUP('Random Years'!AE6,'Hist Returns'!$A$12:$D$107,3,FALSE))","v":{"v":53672.34782205129,"d":"53,672"}},{"$f":"($A6-$A5)/365.25*(AH5+(Main!$I12*Main!$D$3))*(1+VLOOKUP('Random Years'!AF6,'Hist Returns'!$A$12:$D$107,3,FALSE))","v":{"v":49776.01600237865,"d":"49,776"}},{"$f":"($A6-$A5)/365.25*(AI5+(Main!$I12*Main!$D$3))*(1+VLOOKUP('Random Years'!AG6,'Hist Returns'!$A$12:$D$107,3,FALSE))","v":{"v":57611.47212208617,"d":"57,611"}},{"$f":"($A6-$A5)/365.25*(AJ5+(Main!$I12*Main!$D$3))*(1+VLOOKUP('Random Years'!AH6,'Hist Returns'!$A$12:$D$107,3,FALSE))","v":{"v":51478.78667742183,"d":"51,479"}},{"$f":"($A6-$A5)/365.25*(AK5+(Main!$I12*Main!$D$3))*(1+VLOOKUP('Random Years'!AI6,'Hist Returns'!$A$12:$D$107,3,FALSE))","v":{"v":47879.55963924658,"d":"47,880"}},{"$f":"($A6-$A5)/365.25*(AL5+(Main!$I12*Main!$D$3))*(1+VLOOKUP('Random Years'!AJ6,'Hist Returns'!$A$12:$D$107,3,FALSE))","v":{"v":54673.54904441928,"d":"54,674"}},{"$f":"($A6-$A5)/365.25*(AM5+(Main!$I12*Main!$D$3))*(1+VLOOKUP('Random Years'!AK6,'Hist Returns'!$A$12:$D$107,3,FALSE))","v":{"v":50908.470804898774,"d":"50,908"}},{"$f":"($A6-$A5)/365.25*(AN5+(Main!$I12*Main!$D$3))*(1+VLOOKUP('Random Years'!AL6,'Hist Returns'!$A$12:$D$107,3,FALSE))","v":{"v":53758.244945828024,"d":"53,758"}},{"$f":"($A6-$A5)/365.25*(AO5+(Main!$I12*Main!$D$3))*(1+VLOOKUP('Random Years'!AM6,'Hist Returns'!$A$12:$D$107,3,FALSE))","v":{"v":63851.058521056846,"d":"63,851"}},{"$f":"($A6-$A5)/365.25*(AP5+(Main!$I12*Main!$D$3))*(1+VLOOKUP('Random Years'!AN6,'Hist Returns'!$A$12:$D$107,3,FALSE))","v":{"v":47657.7069691343,"d":"47,658"}},{"$f":"($A6-$A5)/365.25*(AQ5+(Main!$I12*Main!$D$3))*(1+VLOOKUP('Random Years'!AO6,'Hist Returns'!$A$12:$D$107,3,FALSE))","v":{"v":48435.16440424159,"d":"48,435"}},{"$f":"($A6-$A5)/365.25*(AR5+(Main!$I12*Main!$D$3))*(1+VLOOKUP('Random Years'!AP6,'Hist Returns'!$A$12:$D$107,3,FALSE))","v":{"v":52510.04450781495,"d":"52,510"}},{"$f":"($A6-$A5)/365.25*(AS5+(Main!$I12*Main!$D$3))*(1+VLOOKUP('Random Years'!AQ6,'Hist Returns'!$A$12:$D$107,3,FALSE))","v":{"v":52121.82370067659,"d":"52,122"}},{"$f":"($A6-$A5)/365.25*(AT5+(Main!$I12*Main!$D$3))*(1+VLOOKUP('Random Years'!AR6,'Hist Returns'!$A$12:$D$107,3,FALSE))","v":{"v":50423.15337215513,"d":"50,423"}},{"$f":"($A6-$A5)/365.25*(AU5+(Main!$I12*Main!$D$3))*(1+VLOOKUP('Random Years'!AS6,'Hist Returns'!$A$12:$D$107,3,FALSE))","v":{"v":51798.28151588783,"d":"51,798"}},{"$f":"($A6-$A5)/365.25*(AV5+(Main!$I12*Main!$D$3))*(1+VLOOKUP('Random Years'!AT6,'Hist Returns'!$A$12:$D$107,3,FALSE))","v":{"v":48094.13436815799,"d":"48,094"}},{"$f":"($A6-$A5)/365.25*(AW5+(Main!$I12*Main!$D$3))*(1+VLOOKUP('Random Years'!AU6,'Hist Returns'!$A$12:$D$107,3,FALSE))","v":{"v":53819.704321555924,"d":"53,820"}},{"$f":"($A6-$A5)/365.25*(AX5+(Main!$I12*Main!$D$3))*(1+VLOOKUP('Random Years'!AV6,'Hist Returns'!$A$12:$D$107,3,FALSE))","v":{"v":51217.89779515819,"d":"51,218"}},{"$f":"($A6-$A5)/365.25*(AY5+(Main!$I12*Main!$D$3))*(1+VLOOKUP('Random Years'!AW6,'Hist Returns'!$A$12:$D$107,3,FALSE))","v":{"v":49050.809107482644,"d":"49,051"}},{"$f":"($A6-$A5)/365.25*(AZ5+(Main!$I12*Main!$D$3))*(1+VLOOKUP('Random Years'!AX6,'Hist Returns'!$A$12:$D$107,3,FALSE))","v":{"v":56743.96247253408,"d":"56,744"}},{"$f":"($A6-$A5)/365.25*(BA5+(Main!$I12*Main!$D$3))*(1+VLOOKUP('Random Years'!AY6,'Hist Returns'!$A$12:$D$107,3,FALSE))","v":{"v":55293.969227517686,"d":"55,294"}},{"$f":"($A6-$A5)/365.25*(BB5+(Main!$I12*Main!$D$3))*(1+VLOOKUP('Random Years'!AZ6,'Hist Returns'!$A$12:$D$107,3,FALSE))","v":{"v":57397.045372881745,"d":"57,397"}},{"$f":"($A6-$A5)/365.25*(BC5+(Main!$I12*Main!$D$3))*(1+VLOOKUP('Random Years'!BA6,'Hist Returns'!$A$12:$D$107,3,FALSE))","v":{"v":63700.73806781069,"d":"63,701"}},{"$f":"($A6-$A5)/365.25*(BD5+(Main!$I12*Main!$D$3))*(1+VLOOKUP('Random Years'!BB6,'Hist Returns'!$A$12:$D$107,3,FALSE))","v":{"v":49103.65503256705,"d":"49,104"}},{"$f":"($A6-$A5)/365.25*(BE5+(Main!$I12*Main!$D$3))*(1+VLOOKUP('Random Years'!BC6,'Hist Returns'!$A$12:$D$107,3,FALSE))","v":{"v":53423.712038164485,"d":"53,424"}},{"$f":"($A6-$A5)/365.25*(BF5+(Main!$I12*Main!$D$3))*(1+VLOOKUP('Random Years'!BD6,'Hist Returns'!$A$12:$D$107,3,FALSE))","v":{"v":57983.68384376746,"d":"57,984"}},{"$f":"($A6-$A5)/365.25*(BG5+(Main!$I12*Main!$D$3))*(1+VLOOKUP('Random Years'!BE6,'Hist Returns'!$A$12:$D$107,3,FALSE))","v":{"v":50813.83296761876,"d":"50,814"}},{"$f":"($A6-$A5)/365.25*(BH5+(Main!$I12*Main!$D$3))*(1+VLOOKUP('Random Years'!BF6,'Hist Returns'!$A$12:$D$107,3,FALSE))","v":{"v":51764.18313999433,"d":"51,764"}},{"$f":"($A6-$A5)/365.25*(BI5+(Main!$I12*Main!$D$3))*(1+VLOOKUP('Random Years'!BG6,'Hist Returns'!$A$12:$D$107,3,FALSE))","v":{"v":48807.47857791236,"d":"48,807"}},{"$f":"($A6-$A5)/365.25*(BJ5+(Main!$I12*Main!$D$3))*(1+VLOOKUP('Random Years'!BH6,'Hist Returns'!$A$12:$D$107,3,FALSE))","v":{"v":59058.123841880726,"d":"59,058"}},{"$f":"($A6-$A5)/365.25*(BK5+(Main!$I12*Main!$D$3))*(1+VLOOKUP('Random Years'!BI6,'Hist Returns'!$A$12:$D$107,3,FALSE))","v":{"v":47796.04731046934,"d":"47,796"}},{"$f":"($A6-$A5)/365.25*(BL5+(Main!$I12*Main!$D$3))*(1+VLOOKUP('Random Years'!BJ6,'Hist Returns'!$A$12:$D$107,3,FALSE))","v":{"v":51510.827118056026,"d":"51,511"}},{"$f":"($A6-$A5)/365.25*(BM5+(Main!$I12*Main!$D$3))*(1+VLOOKUP('Random Years'!BK6,'Hist Returns'!$A$12:$D$107,3,FALSE))","v":{"v":52328.7800905377,"d":"52,329"}},{"$f":"($A6-$A5)/365.25*(BN5+(Main!$I12*Main!$D$3))*(1+VLOOKUP('Random Years'!BL6,'Hist Returns'!$A$12:$D$107,3,FALSE))","v":{"v":57585.86306645529,"d":"57,586"}},{"$f":"($A6-$A5)/365.25*(BO5+(Main!$I12*Main!$D$3))*(1+VLOOKUP('Random Years'!BM6,'Hist Returns'!$A$12:$D$107,3,FALSE))","v":{"v":61249.78438906515,"d":"61,250"}},{"$f":"($A6-$A5)/365.25*(BP5+(Main!$I12*Main!$D$3))*(1+VLOOKUP('Random Years'!BN6,'Hist Returns'!$A$12:$D$107,3,FALSE))","v":{"v":46475.64717488786,"d":"46,476"}},{"$f":"($A6-$A5)/365.25*(BQ5+(Main!$I12*Main!$D$3))*(1+VLOOKUP('Random Years'!BO6,'Hist Returns'!$A$12:$D$107,3,FALSE))","v":{"v":51123.97956354434,"d":"51,124"}},{"$f":"($A6-$A5)/365.25*(BR5+(Main!$I12*Main!$D$3))*(1+VLOOKUP('Random Years'!BP6,'Hist Returns'!$A$12:$D$107,3,FALSE))","v":{"v":56105.498654626084,"d":"56,105"}},{"$f":"($A6-$A5)/365.25*(BS5+(Main!$I12*Main!$D$3))*(1+VLOOKUP('Random Years'!BQ6,'Hist Returns'!$A$12:$D$107,3,FALSE))","v":{"v":53414.93263473127,"d":"53,415"}},{"$f":"($A6-$A5)/365.25*(BT5+(Main!$I12*Main!$D$3))*(1+VLOOKUP('Random Years'!BR6,'Hist Returns'!$A$12:$D$107,3,FALSE))","v":{"v":54538.498437382135,"d":"54,538"}},{"$f":"($A6-$A5)/365.25*(BU5+(Main!$I12*Main!$D$3))*(1+VLOOKUP('Random Years'!BS6,'Hist Returns'!$A$12:$D$107,3,FALSE))","v":{"v":57832.66043639218,"d":"57,833"}},{"$f":"($A6-$A5)/365.25*(BV5+(Main!$I12*Main!$D$3))*(1+VLOOKUP('Random Years'!BT6,'Hist Returns'!$A$12:$D$107,3,FALSE))","v":{"v":53915.356789302146,"d":"53,915"}},{"$f":"($A6-$A5)/365.25*(BW5+(Main!$I12*Main!$D$3))*(1+VLOOKUP('Random Years'!BU6,'Hist Returns'!$A$12:$D$107,3,FALSE))","v":{"v":48303.68600749362,"d":"48,304"}},{"$f":"($A6-$A5)/365.25*(BX5+(Main!$I12*Main!$D$3))*(1+VLOOKUP('Random Years'!BV6,'Hist Returns'!$A$12:$D$107,3,FALSE))","v":{"v":60356.923436208366,"d":"60,357"}},{"$f":"($A6-$A5)/365.25*(BY5+(Main!$I12*Main!$D$3))*(1+VLOOKUP('Random Years'!BW6,'Hist Returns'!$A$12:$D$107,3,FALSE))","v":{"v":49097.55777914412,"d":"49,098"}},{"$f":"($A6-$A5)/365.25*(BZ5+(Main!$I12*Main!$D$3))*(1+VLOOKUP('Random Years'!BX6,'Hist Returns'!$A$12:$D$107,3,FALSE))","v":{"v":50589.124350599595,"d":"50,589"}},{"$f":"($A6-$A5)/365.25*(CA5+(Main!$I12*Main!$D$3))*(1+VLOOKUP('Random Years'!BY6,'Hist Returns'!$A$12:$D$107,3,FALSE))","v":{"v":52583.264463809675,"d":"52,583"}},{"$f":"($A6-$A5)/365.25*(CB5+(Main!$I12*Main!$D$3))*(1+VLOOKUP('Random Years'!BZ6,'Hist Returns'!$A$12:$D$107,3,FALSE))","v":{"v":51381.539544561456,"d":"51,382"}},{"$f":"($A6-$A5)/365.25*(CC5+(Main!$I12*Main!$D$3))*(1+VLOOKUP('Random Years'!CA6,'Hist Returns'!$A$12:$D$107,3,FALSE))","v":{"v":56538.54913660258,"d":"56,539"}},{"$f":"($A6-$A5)/365.25*(CD5+(Main!$I12*Main!$D$3))*(1+VLOOKUP('Random Years'!CB6,'Hist Returns'!$A$12:$D$107,3,FALSE))","v":{"v":56318.14665021997,"d":"56,318"}},{"$f":"($A6-$A5)/365.25*(CE5+(Main!$I12*Main!$D$3))*(1+VLOOKUP('Random Years'!CC6,'Hist Returns'!$A$12:$D$107,3,FALSE))","v":{"v":52070.309895762766,"d":"52,070"}},{"$f":"($A6-$A5)/365.25*(CF5+(Main!$I12*Main!$D$3))*(1+VLOOKUP('Random Years'!CD6,'Hist Returns'!$A$12:$D$107,3,FALSE))","v":{"v":57016.15009122775,"d":"57,016"}},{"$f":"($A6-$A5)/365.25*(CG5+(Main!$I12*Main!$D$3))*(1+VLOOKUP('Random Years'!CE6,'Hist Returns'!$A$12:$D$107,3,FALSE))","v":{"v":52202.14632946973,"d":"52,202"}},{"$f":"($A6-$A5)/365.25*(CH5+(Main!$I12*Main!$D$3))*(1+VLOOKUP('Random Years'!CF6,'Hist Returns'!$A$12:$D$107,3,FALSE))","v":{"v":56551.92796306795,"d":"56,552"}},{"$f":"($A6-$A5)/365.25*(CI5+(Main!$I12*Main!$D$3))*(1+VLOOKUP('Random Years'!CG6,'Hist Returns'!$A$12:$D$107,3,FALSE))","v":{"v":54058.459587273515,"d":"54,058"}},{"$f":"($A6-$A5)/365.25*(CJ5+(Main!$I12*Main!$D$3))*(1+VLOOKUP('Random Years'!CH6,'Hist Returns'!$A$12:$D$107,3,FALSE))","v":{"v":52294.97143251393,"d":"52,295"}},{"$f":"($A6-$A5)/365.25*(CK5+(Main!$I12*Main!$D$3))*(1+VLOOKUP('Random Years'!CI6,'Hist Returns'!$A$12:$D$107,3,FALSE))","v":{"v":51144.754871148725,"d":"51,145"}},{"$f":"($A6-$A5)/365.25*(CL5+(Main!$I12*Main!$D$3))*(1+VLOOKUP('Random Years'!CJ6,'Hist Returns'!$A$12:$D$107,3,FALSE))","v":{"v":49213.65472410639,"d":"49,214"}},{"$f":"($A6-$A5)/365.25*(CM5+(Main!$I12*Main!$D$3))*(1+VLOOKUP('Random Years'!CK6,'Hist Returns'!$A$12:$D$107,3,FALSE))","v":{"v":55481.13045710984,"d":"55,481"}},{"$f":"($A6-$A5)/365.25*(CN5+(Main!$I12*Main!$D$3))*(1+VLOOKUP('Random Years'!CL6,'Hist Returns'!$A$12:$D$107,3,FALSE))","v":{"v":53270.985513968764,"d":"53,271"}},{"$f":"($A6-$A5)/365.25*(CO5+(Main!$I12*Main!$D$3))*(1+VLOOKUP('Random Years'!CM6,'Hist Returns'!$A$12:$D$107,3,FALSE))","v":{"v":50462.09102602597,"d":"50,462"}},{"$f":"($A6-$A5)/365.25*(CP5+(Main!$I12*Main!$D$3))*(1+VLOOKUP('Random Years'!CN6,'Hist Returns'!$A$12:$D$107,3,FALSE))","v":{"v":61014.118582329196,"d":"61,014"}},{"$f":"($A6-$A5)/365.25*(CQ5+(Main!$I12*Main!$D$3))*(1+VLOOKUP('Random Years'!CO6,'Hist Returns'!$A$12:$D$107,3,FALSE))","v":{"v":53010.87916946865,"d":"53,011"}},{"$f":"($A6-$A5)/365.25*(CR5+(Main!$I12*Main!$D$3))*(1+VLOOKUP('Random Years'!CP6,'Hist Returns'!$A$12:$D$107,3,FALSE))","v":{"v":51210.46300552483,"d":"51,210"}},{"$f":"($A6-$A5)/365.25*(CS5+(Main!$I12*Main!$D$3))*(1+VLOOKUP('Random Years'!CQ6,'Hist Returns'!$A$12:$D$107,3,FALSE))","v":{"v":48308.01761111594,"d":"48,308"}},{"$f":"($A6-$A5)/365.25*(CT5+(Main!$I12*Main!$D$3))*(1+VLOOKUP('Random Years'!CR6,'Hist Returns'!$A$12:$D$107,3,FALSE))","v":{"v":62571.06897981937,"d":"62,571"}},{"$f":"($A6-$A5)/365.25*(CU5+(Main!$I12*Main!$D$3))*(1+VLOOKUP('Random Years'!CS6,'Hist Returns'!$A$12:$D$107,3,FALSE))","v":{"v":64237.651764790746,"d":"64,238"}},{"$f":"($A6-$A5)/365.25*(CV5+(Main!$I12*Main!$D$3))*(1+VLOOKUP('Random Years'!CT6,'Hist Returns'!$A$12:$D$107,3,FALSE))","v":{"v":52820.070127151026,"d":"52,820"}},{"$f":"($A6-$A5)/365.25*(CW5+(Main!$I12*Main!$D$3))*(1+VLOOKUP('Random Years'!CU6,'Hist Returns'!$A$12:$D$107,3,FALSE))","v":{"v":53757.648626864815,"d":"53,758"}},{"$f":"($A6-$A5)/365.25*(CX5+(Main!$I12*Main!$D$3))*(1+VLOOKUP('Random Years'!CV6,'Hist Returns'!$A$12:$D$107,3,FALSE))","v":{"v":53748.64534897395,"d":"53,749"}}]
[{"$f":"Main!A13","v":"2028-12-30"},{"$f":"Main!B13","v":74},{"$f":"($A7-$A6)/365.25*(C6+(Main!$I13*Main!$D$3))*(1+VLOOKUP('Random Years'!A7,'Hist Returns'!$A$12:$D$107,3,FALSE))","v":{"v":52671.52804827209,"d":"52,672"}},{"$f":"($A7-$A6)/365.25*(D6+(Main!$I13*Main!$D$3))*(1+VLOOKUP('Random Years'!B7,'Hist Returns'!$A$12:$D$107,3,FALSE))","v":{"v":51506.43315455443,"d":"51,506"}},{"$f":"($A7-$A6)/365.25*(E6+(Main!$I13*Main!$D$3))*(1+VLOOKUP('Random Years'!C7,'Hist Returns'!$A$12:$D$107,3,FALSE))","v":{"v":50760.194852956774,"d":"50,760"}},{"$f":"($A7-$A6)/365.25*(F6+(Main!$I13*Main!$D$3))*(1+VLOOKUP('Random Years'!D7,'Hist Returns'!$A$12:$D$107,3,FALSE))","v":{"v":57175.04128675904,"d":"57,175"}},{"$f":"($A7-$A6)/365.25*(G6+(Main!$I13*Main!$D$3))*(1+VLOOKUP('Random Years'!E7,'Hist Returns'!$A$12:$D$107,3,FALSE))","v":{"v":51037.61608873652,"d":"51,038"}},{"$f":"($A7-$A6)/365.25*(H6+(Main!$I13*Main!$D$3))*(1+VLOOKUP('Random Years'!F7,'Hist Returns'!$A$12:$D$107,3,FALSE))","v":{"v":57187.01894161419,"d":"57,187"}},{"$f":"($A7-$A6)/365.25*(I6+(Main!$I13*Main!$D$3))*(1+VLOOKUP('Random Years'!G7,'Hist Returns'!$A$12:$D$107,3,FALSE))","v":{"v":55185.70995752999,"d":"55,186"}},{"$f":"($A7-$A6)/365.25*(J6+(Main!$I13*Main!$D$3))*(1+VLOOKUP('Random Years'!H7,'Hist Returns'!$A$12:$D$107,3,FALSE))","v":{"v":61824.064836059515,"d":"61,824"}},{"$f":"($A7-$A6)/365.25*(K6+(Main!$I13*Main!$D$3))*(1+VLOOKUP('Random Years'!I7,'Hist Returns'!$A$12:$D$107,3,FALSE))","v":{"v":65980.48034611972,"d":"65,980"}},{"$f":"($A7-$A6)/365.25*(L6+(Main!$I13*Main!$D$3))*(1+VLOOKUP('Random Years'!J7,'Hist Returns'!$A$12:$D$107,3,FALSE))","v":{"v":48201.39761736522,"d":"48,201"}},{"$f":"($A7-$A6)/365.25*(M6+(Main!$I13*Main!$D$3))*(1+VLOOKUP('Random Years'!K7,'Hist Returns'!$A$12:$D$107,3,FALSE))","v":{"v":46639.15876052436,"d":"46,639"}},{"$f":"($A7-$A6)/365.25*(N6+(Main!$I13*Main!$D$3))*(1+VLOOKUP('Random Years'!L7,'Hist Returns'!$A$12:$D$107,3,FALSE))","v":{"v":58130.24906693784,"d":"58,130"}},{"$f":"($A7-$A6)/365.25*(O6+(Main!$I13*Main!$D$3))*(1+VLOOKUP('Random Years'!M7,'Hist Returns'!$A$12:$D$107,3,FALSE))","v":{"v":60587.030674725625,"d":"60,587"}},{"$f":"($A7-$A6)/365.25*(P6+(Main!$I13*Main!$D$3))*(1+VLOOKUP('Random Years'!N7,'Hist Returns'!$A$12:$D$107,3,FALSE))","v":{"v":49137.73740440433,"d":"49,138"}},{"$f":"($A7-$A6)/365.25*(Q6+(Main!$I13*Main!$D$3))*(1+VLOOKUP('Random Years'!O7,'Hist Returns'!$A$12:$D$107,3,FALSE))","v":{"v":50770.66023740599,"d":"50,771"}},{"$f":"($A7-$A6)/365.25*(R6+(Main!$I13*Main!$D$3))*(1+VLOOKUP('Random Years'!P7,'Hist Returns'!$A$12:$D$107,3,FALSE))","v":{"v":52330.151258284845,"d":"52,330"}},{"$f":"($A7-$A6)/365.25*(S6+(Main!$I13*Main!$D$3))*(1+VLOOKUP('Random Years'!Q7,'Hist Returns'!$A$12:$D$107,3,FALSE))","v":{"v":50568.7863004604,"d":"50,569"}},{"$f":"($A7-$A6)/365.25*(T6+(Main!$I13*Main!$D$3))*(1+VLOOKUP('Random Years'!R7,'Hist Returns'!$A$12:$D$107,3,FALSE))","v":{"v":66062.49606731933,"d":"66,062"}},{"$f":"($A7-$A6)/365.25*(U6+(Main!$I13*Main!$D$3))*(1+VLOOKUP('Random Years'!S7,'Hist Returns'!$A$12:$D$107,3,FALSE))","v":{"v":58995.54817599422,"d":"58,996"}},{"$f":"($A7-$A6)/365.25*(V6+(Main!$I13*Main!$D$3))*(1+VLOOKUP('Random Years'!T7,'Hist Returns'!$A$12:$D$107,3,FALSE))","v":{"v":52477.80114513689,"d":"52,478"}},{"$f":"($A7-$A6)/365.25*(W6+(Main!$I13*Main!$D$3))*(1+VLOOKUP('Random Years'!U7,'Hist Returns'!$A$12:$D$107,3,FALSE))","v":{"v":63019.54835318931,"d":"63,020"}},{"$f":"($A7-$A6)/365.25*(X6+(Main!$I13*Main!$D$3))*(1+VLOOKUP('Random Years'!V7,'Hist Returns'!$A$12:$D$107,3,FALSE))","v":{"v":54085.88169602889,"d":"54,086"}},{"$f":"($A7-$A6)/365.25*(Y6+(Main!$I13*Main!$D$3))*(1+VLOOKUP('Random Years'!W7,'Hist Returns'!$A$12:$D$107,3,FALSE))","v":{"v":48308.43923078062,"d":"48,308"}},{"$f":"($A7-$A6)/365.25*(Z6+(Main!$I13*Main!$D$3))*(1+VLOOKUP('Random Years'!X7,'Hist Returns'!$A$12:$D$107,3,FALSE))","v":{"v":51035.00018828546,"d":"51,035"}},{"$f":"($A7-$A6)/365.25*(AA6+(Main!$I13*Main!$D$3))*(1+VLOOKUP('Random Years'!Y7,'Hist Returns'!$A$12:$D$107,3,FALSE))","v":{"v":49716.3980448263,"d":"49,716"}},{"$f":"($A7-$A6)/365.25*(AB6+(Main!$I13*Main!$D$3))*(1+VLOOKUP('Random Years'!Z7,'Hist Returns'!$A$12:$D$107,3,FALSE))","v":{"v":53415.59554535597,"d":"53,416"}},{"$f":"($A7-$A6)/365.25*(AC6+(Main!$I13*Main!$D$3))*(1+VLOOKUP('Random Years'!AA7,'Hist Returns'!$A$12:$D$107,3,FALSE))","v":{"v":55241.06676549277,"d":"55,241"}},{"$f":"($A7-$A6)/365.25*(AD6+(Main!$I13*Main!$D$3))*(1+VLOOKUP('Random Years'!AB7,'Hist Returns'!$A$12:$D$107,3,FALSE))","v":{"v":56065.502234459076,"d":"56,066"}},{"$f":"($A7-$A6)/365.25*(AE6+(Main!$I13*Main!$D$3))*(1+VLOOKUP('Random Years'!AC7,'Hist Returns'!$A$12:$D$107,3,FALSE))","v":{"v":55575.72909255111,"d":"55,576"}},{"$f":"($A7-$A6)/365.25*(AF6+(Main!$I13*Main!$D$3))*(1+VLOOKUP('Random Years'!AD7,'Hist Returns'!$A$12:$D$107,3,FALSE))","v":{"v":46643.65816071498,"d":"46,644"}},{"$f":"($A7-$A6)/365.25*(AG6+(Main!$I13*Main!$D$3))*(1+VLOOKUP('Random Years'!AE7,'Hist Returns'!$A$12:$D$107,3,FALSE))","v":{"v":52604.38183882544,"d":"52,604"}},{"$f":"($A7-$A6)/365.25*(AH6+(Main!$I13*Main!$D$3))*(1+VLOOKUP('Random Years'!AF7,'Hist Returns'!$A$12:$D$107,3,FALSE))","v":{"v":50543.90578027351,"d":"50,544"}},{"$f":"($A7-$A6)/365.25*(AI6+(Main!$I13*Main!$D$3))*(1+VLOOKUP('Random Years'!AG7,'Hist Returns'!$A$12:$D$107,3,FALSE))","v":{"v":58568.041313425085,"d":"58,568"}},{"$f":"($A7-$A6)/365.25*(AJ6+(Main!$I13*Main!$D$3))*(1+VLOOKUP('Random Years'!AH7,'Hist Returns'!$A$12:$D$107,3,FALSE))","v":{"v":51664.03744152556,"d":"51,664"}},{"$f":"($A7-$A6)/365.25*(AK6+(Main!$I13*Main!$D$3))*(1+VLOOKUP('Random Years'!AI7,'Hist Returns'!$A$12:$D$107,3,FALSE))","v":{"v":51414.679425529575,"d":"51,415"}},{"$f":"($A7-$A6)/365.25*(AL6+(Main!$I13*Main!$D$3))*(1+VLOOKUP('Random Years'!AJ7,'Hist Returns'!$A$12:$D$107,3,FALSE))","v":{"v":53136.5604506162,"d":"53,137"}},{"$f":"($A7-$A6)/365.25*(AM6+(Main!$I13*Main!$D$3))*(1+VLOOKUP('Random Years'!AK7,'Hist Returns'!$A$12:$D$107,3,FALSE))","v":{"v":52643.18939050125,"d":"52,643"}},{"$f":"($A7-$A6)/365.25*(AN6+(Main!$I13*Main!$D$3))*(1+VLOOKUP('Random Years'!AL7,'Hist Returns'!$A$12:$D$107,3,FALSE))","v":{"v":54543.789928083,"d":"54,544"}},{"$f":"($A7-$A6)/365.25*(AO6+(Main!$I13*Main!$D$3))*(1+VLOOKUP('Random Years'!AM7,'Hist Returns'!$A$12:$D$107,3,FALSE))","v":{"v":66361.22615503214,"d":"66,361"}},{"$f":"($A7-$A6)/365.25*(AP6+(Main!$I13*Main!$D$3))*(1+VLOOKUP('Random Years'!AN7,'Hist Returns'!$A$12:$D$107,3,FALSE))","v":{"v":46112.09510199463,"d":"46,112"}},{"$f":"($A7-$A6)/365.25*(AQ6+(Main!$I13*Main!$D$3))*(1+VLOOKUP('Random Years'!AO7,'Hist Returns'!$A$12:$D$107,3,FALSE))","v":{"v":52129.46233856494,"d":"52,129"}},{"$f":"($A7-$A6)/365.25*(AR6+(Main!$I13*Main!$D$3))*(1+VLOOKUP('Random Years'!AP7,'Hist Returns'!$A$12:$D$107,3,FALSE))","v":{"v":51233.047175003696,"d":"51,233"}},{"$f":"($A7-$A6)/365.25*(AS6+(Main!$I13*Main!$D$3))*(1+VLOOKUP('Random Years'!AQ7,'Hist Returns'!$A$12:$D$107,3,FALSE))","v":{"v":52849.903084853875,"d":"52,850"}},{"$f":"($A7-$A6)/365.25*(AT6+(Main!$I13*Main!$D$3))*(1+VLOOKUP('Random Years'!AR7,'Hist Returns'!$A$12:$D$107,3,FALSE))","v":{"v":50215.44166833526,"d":"50,215"}},{"$f":"($A7-$A6)/365.25*(AU6+(Main!$I13*Main!$D$3))*(1+VLOOKUP('Random Years'!AS7,'Hist Returns'!$A$12:$D$107,3,FALSE))","v":{"v":53104.63408915717,"d":"53,105"}},{"$f":"($A7-$A6)/365.25*(AV6+(Main!$I13*Main!$D$3))*(1+VLOOKUP('Random Years'!AT7,'Hist Returns'!$A$12:$D$107,3,FALSE))","v":{"v":47218.427157219645,"d":"47,218"}},{"$f":"($A7-$A6)/365.25*(AW6+(Main!$I13*Main!$D$3))*(1+VLOOKUP('Random Years'!AU7,'Hist Returns'!$A$12:$D$107,3,FALSE))","v":{"v":53079.62261577972,"d":"53,080"}},{"$f":"($A7-$A6)/365.25*(AX6+(Main!$I13*Main!$D$3))*(1+VLOOKUP('Random Years'!AV7,'Hist Returns'!$A$12:$D$107,3,FALSE))","v":{"v":49904.63384654957,"d":"49,905"}},{"$f":"($A7-$A6)/365.25*(AY6+(Main!$I13*Main!$D$3))*(1+VLOOKUP('Random Years'!AW7,'Hist Returns'!$A$12:$D$107,3,FALSE))","v":{"v":47514.29773459139,"d":"47,514"}},{"$f":"($A7-$A6)/365.25*(AZ6+(Main!$I13*Main!$D$3))*(1+VLOOKUP('Random Years'!AX7,'Hist Returns'!$A$12:$D$107,3,FALSE))","v":{"v":56889.59582090844,"d":"56,890"}},{"$f":"($A7-$A6)/365.25*(BA6+(Main!$I13*Main!$D$3))*(1+VLOOKUP('Random Years'!AY7,'Hist Returns'!$A$12:$D$107,3,FALSE))","v":{"v":57447.814396697715,"d":"57,448"}},{"$f":"($A7-$A6)/365.25*(BB6+(Main!$I13*Main!$D$3))*(1+VLOOKUP('Random Years'!AZ7,'Hist Returns'!$A$12:$D$107,3,FALSE))","v":{"v":61191.24012541102,"d":"61,191"}},{"$f":"($A7-$A6)/365.25*(BC6+(Main!$I13*Main!$D$3))*(1+VLOOKUP('Random Years'!BA7,'Hist Returns'!$A$12:$D$107,3,FALSE))","v":{"v":68965.74831901457,"d":"68,966"}},{"$f":"($A7-$A6)/365.25*(BD6+(Main!$I13*Main!$D$3))*(1+VLOOKUP('Random Years'!BB7,'Hist Returns'!$A$12:$D$107,3,FALSE))","v":{"v":48122.152516320566,"d":"48,122"}},{"$f":"($A7-$A6)/365.25*(BE6+(Main!$I13*Main!$D$3))*(1+VLOOKUP('Random Years'!BC7,'Hist Returns'!$A$12:$D$107,3,FALSE))","v":{"v":54209.96560319362,"d":"54,210"}},{"$f":"($A7-$A6)/365.25*(BF6+(Main!$I13*Main!$D$3))*(1+VLOOKUP('Random Years'!BD7,'Hist Returns'!$A$12:$D$107,3,FALSE))","v":{"v":58979.33855551921,"d":"58,979"}},{"$f":"($A7-$A6)/365.25*(BG6+(Main!$I13*Main!$D$3))*(1+VLOOKUP('Random Years'!BE7,'Hist Returns'!$A$12:$D$107,3,FALSE))","v":{"v":49262.39767392728,"d":"49,262"}},{"$f":"($A7-$A6)/365.25*(BH6+(Main!$I13*Main!$D$3))*(1+VLOOKUP('Random Years'!BF7,'Hist Returns'!$A$12:$D$107,3,FALSE))","v":{"v":50282.65852928099,"d":"50,283"}},{"$f":"($A7-$A6)/365.25*(BI6+(Main!$I13*Main!$D$3))*(1+VLOOKUP('Random Years'!BG7,'Hist Returns'!$A$12:$D$107,3,FALSE))","v":{"v":48735.50976773443,"d":"48,736"}},{"$f":"($A7-$A6)/365.25*(BJ6+(Main!$I13*Main!$D$3))*(1+VLOOKUP('Random Years'!BH7,'Hist Returns'!$A$12:$D$107,3,FALSE))","v":{"v":58957.91989820949,"d":"58,958"}},{"$f":"($A7-$A6)/365.25*(BK6+(Main!$I13*Main!$D$3))*(1+VLOOKUP('Random Years'!BI7,'Hist Returns'!$A$12:$D$107,3,FALSE))","v":{"v":50827.3544786432,"d":"50,827"}},{"$f":"($A7-$A6)/365.25*(BL6+(Main!$I13*Main!$D$3))*(1+VLOOKUP('Random Years'!BJ7,'Hist Returns'!$A$12:$D$107,3,FALSE))","v":{"v":52935.7944850567,"d":"52,936"}},{"$f":"($A7-$A6)/365.25*(BM6+(Main!$I13*Main!$D$3))*(1+VLOOKUP('Random Years'!BK7,'Hist Returns'!$A$12:$D$107,3,FALSE))","v":{"v":53665.093306101015,"d":"53,665"}},{"$f":"($A7-$A6)/365.25*(BN6+(Main!$I13*Main!$D$3))*(1+VLOOKUP('Random Years'!BL7,'Hist Returns'!$A$12:$D$107,3,FALSE))","v":{"v":56048.62729473385,"d":"56,049"}},{"$f":"($A7-$A6)/365.25*(BO6+(Main!$I13*Main!$D$3))*(1+VLOOKUP('Random Years'!BM7,'Hist Returns'!$A$12:$D$107,3,FALSE))","v":{"v":60374.646040834356,"d":"60,375"}},{"$f":"($A7-$A6)/365.25*(BP6+(Main!$I13*Main!$D$3))*(1+VLOOKUP('Random Years'!BN7,'Hist Returns'!$A$12:$D$107,3,FALSE))","v":{"v":48707.505305311686,"d":"48,708"}},{"$f":"($A7-$A6)/365.25*(BQ6+(Main!$I13*Main!$D$3))*(1+VLOOKUP('Random Years'!BO7,'Hist Returns'!$A$12:$D$107,3,FALSE))","v":{"v":50385.168912635665,"d":"50,385"}},{"$f":"($A7-$A6)/365.25*(BR6+(Main!$I13*Main!$D$3))*(1+VLOOKUP('Random Years'!BP7,'Hist Returns'!$A$12:$D$107,3,FALSE))","v":{"v":56995.225713541375,"d":"56,995"}},{"$f":"($A7-$A6)/365.25*(BS6+(Main!$I13*Main!$D$3))*(1+VLOOKUP('Random Years'!BQ7,'Hist Returns'!$A$12:$D$107,3,FALSE))","v":{"v":52012.852914965624,"d":"52,013"}},{"$f":"($A7-$A6)/365.25*(BT6+(Main!$I13*Main!$D$3))*(1+VLOOKUP('Random Years'!BR7,'Hist Returns'!$A$12:$D$107,3,FALSE))","v":{"v":54039.728199237004,"d":"54,040"}},{"$f":"($A7-$A6)/365.25*(BU6+(Main!$I13*Main!$D$3))*(1+VLOOKUP('Random Years'!BS7,'Hist Returns'!$A$12:$D$107,3,FALSE))","v":{"v":60025.550896351255,"d":"60,026"}},{"$f":"($A7-$A6)/365.25*(BV6+(Main!$I13*Main!$D$3))*(1+VLOOKUP('Random Years'!BT7,'Hist Returns'!$A$12:$D$107,3,FALSE))","v":{"v":52456.953082331056,"d":"52,457"}},{"$f":"($A7-$A6)/365.25*(BW6+(Main!$I13*Main!$D$3))*(1+VLOOKUP('Random Years'!BU7,'Hist Returns'!$A$12:$D$107,3,FALSE))","v":{"v":48146.044284058895,"d":"48,146"}},{"$f":"($A7-$A6)/365.25*(BX6+(Main!$I13*Main!$D$3))*(1+VLOOKUP('Random Years'!BV7,'Hist Returns'!$A$12:$D$107,3,FALSE))","v":{"v":61106.15715372253,"d":"61,106"}},{"$f":"($A7-$A6)/365.25*(BY6+(Main!$I13*Main!$D$3))*(1+VLOOKUP('Random Years'!BW7,'Hist Returns'!$A$12:$D$107,3,FALSE))","v":{"v":49755.856684587096,"d":"49,756"}},{"$f":"($A7-$A6)/365.25*(BZ6+(Main!$I13*Main!$D$3))*(1+VLOOKUP('Random Years'!BX7,'Hist Returns'!$A$12:$D$107,3,FALSE))","v":{"v":49748.60998946149,"d":"49,749"}},{"$f":"($A7-$A6)/365.25*(CA6+(Main!$I13*Main!$D$3))*(1+VLOOKUP('Random Years'!BY7,'Hist Returns'!$A$12:$D$107,3,FALSE))","v":{"v":54097.20073715268,"d":"54,097"}},{"$f":"($A7-$A6)/365.25*(CB6+(Main!$I13*Main!$D$3))*(1+VLOOKUP('Random Years'!BZ7,'Hist Returns'!$A$12:$D$107,3,FALSE))","v":{"v":51643.14973888783,"d":"51,643"}},{"$f":"($A7-$A6)/365.25*(CC6+(Main!$I13*Main!$D$3))*(1+VLOOKUP('Random Years'!CA7,'Hist Returns'!$A$12:$D$107,3,FALSE))","v":{"v":55643.158571472755,"d":"55,643"}},{"$f":"($A7-$A6)/365.25*(CD6+(Main!$I13*Main!$D$3))*(1+VLOOKUP('Random Years'!CB7,'Hist Returns'!$A$12:$D$107,3,FALSE))","v":{"v":54819.34219256905,"d":"54,819"}},{"$f":"($A7-$A6)/365.25*(CE6+(Main!$I13*Main!$D$3))*(1+VLOOKUP('Random Years'!CC7,'Hist Returns'!$A$12:$D$107,3,FALSE))","v":{"v":53412.22694494832,"d":"53,412"}},{"$f":"($A7-$A6)/365.25*(CF6+(Main!$I13*Main!$D$3))*(1+VLOOKUP('Random Years'!CD7,'Hist Returns'!$A$12:$D$107,3,FALSE))","v":{"v":56371.638366587584,"d":"56,372"}},{"$f":"($A7-$A6)/365.25*(CG6+(Main!$I13*Main!$D$3))*(1+VLOOKUP('Random Years'!CE7,'Hist Returns'!$A$12:$D$107,3,FALSE))","v":{"v":51384.38430025535,"d":"51,384"}},{"$f":"($A7-$A6)/365.25*(CH6+(Main!$I13*Main!$D$3))*(1+VLOOKUP('Random Years'!CF7,'Hist Returns'!$A$12:$D$107,3,FALSE))","v":{"v":58066.26933821404,"d":"58,066"}},{"$f":"($A7-$A6)/365.25*(CI6+(Main!$I13*Main!$D$3))*(1+VLOOKUP('Random Years'!CG7,'Hist Returns'!$A$12:$D$107,3,FALSE))","v":{"v":56022.60814453957,"d":"56,023"}},{"$f":"($A7-$A6)/365.25*(CJ6+(Main!$I13*Main!$D$3))*(1+VLOOKUP('Random Years'!CH7,'Hist Returns'!$A$12:$D$107,3,FALSE))","v":{"v":53127.1705513843,"d":"53,127"}},{"$f":"($A7-$A6)/365.25*(CK6+(Main!$I13*Main!$D$3))*(1+VLOOKUP('Random Years'!CI7,'Hist Returns'!$A$12:$D$107,3,FALSE))","v":{"v":49603.10794613602,"d":"49,603"}},{"$f":"($A7-$A6)/365.25*(CL6+(Main!$I13*Main!$D$3))*(1+VLOOKUP('Random Years'!CJ7,'Hist Returns'!$A$12:$D$107,3,FALSE))","v":{"v":47686.65923803929,"d":"47,687"}},{"$f":"($A7-$A6)/365.25*(CM6+(Main!$I13*Main!$D$3))*(1+VLOOKUP('Random Years'!CK7,'Hist Returns'!$A$12:$D$107,3,FALSE))","v":{"v":53947.30802472429,"d":"53,947"}},{"$f":"($A7-$A6)/365.25*(CN6+(Main!$I13*Main!$D$3))*(1+VLOOKUP('Random Years'!CL7,'Hist Returns'!$A$12:$D$107,3,FALSE))","v":{"v":51899.56586159814,"d":"51,900"}},{"$f":"($A7-$A6)/365.25*(CO6+(Main!$I13*Main!$D$3))*(1+VLOOKUP('Random Years'!CM7,'Hist Returns'!$A$12:$D$107,3,FALSE))","v":{"v":51849.44798040953,"d":"51,849"}},{"$f":"($A7-$A6)/365.25*(CP6+(Main!$I13*Main!$D$3))*(1+VLOOKUP('Random Years'!CN7,'Hist Returns'!$A$12:$D$107,3,FALSE))","v":{"v":66110.19932818081,"d":"66,110"}},{"$f":"($A7-$A6)/365.25*(CQ6+(Main!$I13*Main!$D$3))*(1+VLOOKUP('Random Years'!CO7,'Hist Returns'!$A$12:$D$107,3,FALSE))","v":{"v":52158.225797109866,"d":"52,158"}},{"$f":"($A7-$A6)/365.25*(CR6+(Main!$I13*Main!$D$3))*(1+VLOOKUP('Random Years'!CP7,'Hist Returns'!$A$12:$D$107,3,FALSE))","v":{"v":49832.62907774804,"d":"49,833"}},{"$f":"($A7-$A6)/365.25*(CS6+(Main!$I13*Main!$D$3))*(1+VLOOKUP('Random Years'!CQ7,'Hist Returns'!$A$12:$D$107,3,FALSE))","v":{"v":48929.95146370686,"d":"48,930"}},{"$f":"($A7-$A6)/365.25*(CT6+(Main!$I13*Main!$D$3))*(1+VLOOKUP('Random Years'!CR7,'Hist Returns'!$A$12:$D$107,3,FALSE))","v":{"v":64998.202877476855,"d":"64,998"}},{"$f":"($A7-$A6)/365.25*(CU6+(Main!$I13*Main!$D$3))*(1+VLOOKUP('Random Years'!CS7,'Hist Returns'!$A$12:$D$107,3,FALSE))","v":{"v":62900.37064637545,"d":"62,900"}},{"$f":"($A7-$A6)/365.25*(CV6+(Main!$I13*Main!$D$3))*(1+VLOOKUP('Random Years'!CT7,'Hist Returns'!$A$12:$D$107,3,FALSE))","v":{"v":52164.78162681153,"d":"52,165"}},{"$f":"($A7-$A6)/365.25*(CW6+(Main!$I13*Main!$D$3))*(1+VLOOKUP('Random Years'!CU7,'Hist Returns'!$A$12:$D$107,3,FALSE))","v":{"v":52210.29988379796,"d":"52,210"}},{"$f":"($A7-$A6)/365.25*(CX6+(Main!$I13*Main!$D$3))*(1+VLOOKUP('Random Years'!CV7,'Hist Returns'!$A$12:$D$107,3,FALSE))","v":{"v":53109.23859924562,"d":"53,109"}}]
[{"$f":"Main!A14","v":"2029-12-30"},{"$f":"Main!B14","v":75},{"$f":"($A8-$A7)/365.25*(C7+(Main!$I14*Main!$D$3))*(1+VLOOKUP('Random Years'!A8,'Hist Returns'!$A$12:$D$107,3,FALSE))","v":{"v":51051.89577565543,"d":"51,052"}},{"$f":"($A8-$A7)/365.25*(D7+(Main!$I14*Main!$D$3))*(1+VLOOKUP('Random Years'!B8,'Hist Returns'!$A$12:$D$107,3,FALSE))","v":{"v":49925.94181290976,"d":"49,926"}},{"$f":"($A8-$A7)/365.25*(E7+(Main!$I14*Main!$D$3))*(1+VLOOKUP('Random Years'!C8,'Hist Returns'!$A$12:$D$107,3,FALSE))","v":{"v":49141.84156364255,"d":"49,142"}},{"$f":"($A8-$A7)/365.25*(F7+(Main!$I14*Main!$D$3))*(1+VLOOKUP('Random Years'!D8,'Hist Returns'!$A$12:$D$107,3,FALSE))","v":{"v":56906.487986356035,"d":"56,906"}},{"$f":"($A8-$A7)/365.25*(G7+(Main!$I14*Main!$D$3))*(1+VLOOKUP('Random Years'!E8,'Hist Returns'!$A$12:$D$107,3,FALSE))","v":{"v":50231.30108055583,"d":"50,231"}},{"$f":"($A8-$A7)/365.25*(H7+(Main!$I14*Main!$D$3))*(1+VLOOKUP('Random Years'!F8,'Hist Returns'!$A$12:$D$107,3,FALSE))","v":{"v":56546.927162651926,"d":"56,547"}},{"$f":"($A8-$A7)/365.25*(I7+(Main!$I14*Main!$D$3))*(1+VLOOKUP('Random Years'!G8,'Hist Returns'!$A$12:$D$107,3,FALSE))","v":{"v":53546.22379033374,"d":"53,546"}},{"$f":"($A8-$A7)/365.25*(J7+(Main!$I14*Main!$D$3))*(1+VLOOKUP('Random Years'!H8,'Hist Returns'!$A$12:$D$107,3,FALSE))","v":{"v":68730.74649194012,"d":"68,731"}},{"$f":"($A8-$A7)/365.25*(K7+(Main!$I14*Main!$D$3))*(1+VLOOKUP('Random Years'!I8,'Hist Returns'!$A$12:$D$107,3,FALSE))","v":{"v":64317.60002194867,"d":"64,318"}},{"$f":"($A8-$A7)/365.25*(L7+(Main!$I14*Main!$D$3))*(1+VLOOKUP('Random Years'!J8,'Hist Returns'!$A$12:$D$107,3,FALSE))","v":{"v":51640.235343007145,"d":"51,640"}},{"$f":"($A8-$A7)/365.25*(M7+(Main!$I14*Main!$D$3))*(1+VLOOKUP('Random Years'!K8,'Hist Returns'!$A$12:$D$107,3,FALSE))","v":{"v":48756.27223404934,"d":"48,756"}},{"$f":"($A8-$A7)/365.25*(N7+(Main!$I14*Main!$D$3))*(1+VLOOKUP('Random Years'!L8,'Hist Returns'!$A$12:$D$107,3,FALSE))","v":{"v":59003.00240848034,"d":"59,003"}},{"$f":"($A8-$A7)/365.25*(O7+(Main!$I14*Main!$D$3))*(1+VLOOKUP('Random Years'!M8,'Hist Returns'!$A$12:$D$107,3,FALSE))","v":{"v":59496.435369232524,"d":"59,496"}},{"$f":"($A8-$A7)/365.25*(P7+(Main!$I14*Main!$D$3))*(1+VLOOKUP('Random Years'!N8,'Hist Returns'!$A$12:$D$107,3,FALSE))","v":{"v":49698.828254915556,"d":"49,699"}},{"$f":"($A8-$A7)/365.25*(Q7+(Main!$I14*Main!$D$3))*(1+VLOOKUP('Random Years'!O8,'Hist Returns'!$A$12:$D$107,3,FALSE))","v":{"v":49125.31657726874,"d":"49,125"}},{"$f":"($A8-$A7)/365.25*(R7+(Main!$I14*Main!$D$3))*(1+VLOOKUP('Random Years'!P8,'Hist Returns'!$A$12:$D$107,3,FALSE))","v":{"v":53485.62618906672,"d":"53,486"}},{"$f":"($A8-$A7)/365.25*(S7+(Main!$I14*Main!$D$3))*(1+VLOOKUP('Random Years'!Q8,'Hist Returns'!$A$12:$D$107,3,FALSE))","v":{"v":49353.60137229338,"d":"49,354"}},{"$f":"($A8-$A7)/365.25*(T7+(Main!$I14*Main!$D$3))*(1+VLOOKUP('Random Years'!R8,'Hist Returns'!$A$12:$D$107,3,FALSE))","v":{"v":68828.07886743144,"d":"68,828"}},{"$f":"($A8-$A7)/365.25*(U7+(Main!$I14*Main!$D$3))*(1+VLOOKUP('Random Years'!S8,'Hist Returns'!$A$12:$D$107,3,FALSE))","v":{"v":57597.563109534836,"d":"57,598"}},{"$f":"($A8-$A7)/365.25*(V7+(Main!$I14*Main!$D$3))*(1+VLOOKUP('Random Years'!T8,'Hist Returns'!$A$12:$D$107,3,FALSE))","v":{"v":51350.73239443681,"d":"51,351"}},{"$f":"($A8-$A7)/365.25*(W7+(Main!$I14*Main!$D$3))*(1+VLOOKUP('Random Years'!U8,'Hist Returns'!$A$12:$D$107,3,FALSE))","v":{"v":63233.80771344719,"d":"63,234"}},{"$f":"($A8-$A7)/365.25*(X7+(Main!$I14*Main!$D$3))*(1+VLOOKUP('Random Years'!V8,'Hist Returns'!$A$12:$D$107,3,FALSE))","v":{"v":52577.156652458136,"d":"52,577"}},{"$f":"($A8-$A7)/365.25*(Y7+(Main!$I14*Main!$D$3))*(1+VLOOKUP('Random Years'!W8,'Hist Returns'!$A$12:$D$107,3,FALSE))","v":{"v":47315.56960893945,"d":"47,316"}},{"$f":"($A8-$A7)/365.25*(Z7+(Main!$I14*Main!$D$3))*(1+VLOOKUP('Random Years'!X8,'Hist Returns'!$A$12:$D$107,3,FALSE))","v":{"v":51738.756766262784,"d":"51,739"}},{"$f":"($A8-$A7)/365.25*(AA7+(Main!$I14*Main!$D$3))*(1+VLOOKUP('Random Years'!Y8,'Hist Returns'!$A$12:$D$107,3,FALSE))","v":{"v":52806.93836031559,"d":"52,807"}},{"$f":"($A8-$A7)/365.25*(AB7+(Main!$I14*Main!$D$3))*(1+VLOOKUP('Random Years'!Z8,'Hist Returns'!$A$12:$D$107,3,FALSE))","v":{"v":51837.803950117464,"d":"51,838"}},{"$f":"($A8-$A7)/365.25*(AC7+(Main!$I14*Main!$D$3))*(1+VLOOKUP('Random Years'!AA8,'Hist Returns'!$A$12:$D$107,3,FALSE))","v":{"v":57719.8485281394,"d":"57,720"}},{"$f":"($A8-$A7)/365.25*(AD7+(Main!$I14*Main!$D$3))*(1+VLOOKUP('Random Years'!AB8,'Hist Returns'!$A$12:$D$107,3,FALSE))","v":{"v":57123.31752782029,"d":"57,123"}},{"$f":"($A8-$A7)/365.25*(AE7+(Main!$I14*Main!$D$3))*(1+VLOOKUP('Random Years'!AC8,'Hist Returns'!$A$12:$D$107,3,FALSE))","v":{"v":56495.99856470144,"d":"56,496"}},{"$f":"($A8-$A7)/365.25*(AF7+(Main!$I14*Main!$D$3))*(1+VLOOKUP('Random Years'!AD8,'Hist Returns'!$A$12:$D$107,3,FALSE))","v":{"v":48608.27813415161,"d":"48,608"}},{"$f":"($A8-$A7)/365.25*(AG7+(Main!$I14*Main!$D$3))*(1+VLOOKUP('Random Years'!AE8,'Hist Returns'!$A$12:$D$107,3,FALSE))","v":{"v":51768.853414046425,"d":"51,769"}},{"$f":"($A8-$A7)/365.25*(AH7+(Main!$I14*Main!$D$3))*(1+VLOOKUP('Random Years'!AF8,'Hist Returns'!$A$12:$D$107,3,FALSE))","v":{"v":51144.849189887565,"d":"51,145"}},{"$f":"($A8-$A7)/365.25*(AI7+(Main!$I14*Main!$D$3))*(1+VLOOKUP('Random Years'!AG8,'Hist Returns'!$A$12:$D$107,3,FALSE))","v":{"v":60819.74356026163,"d":"60,820"}},{"$f":"($A8-$A7)/365.25*(AJ7+(Main!$I14*Main!$D$3))*(1+VLOOKUP('Random Years'!AH8,'Hist Returns'!$A$12:$D$107,3,FALSE))","v":{"v":53322.39608028908,"d":"53,322"}},{"$f":"($A8-$A7)/365.25*(AK7+(Main!$I14*Main!$D$3))*(1+VLOOKUP('Random Years'!AI8,'Hist Returns'!$A$12:$D$107,3,FALSE))","v":{"v":51301.08230548566,"d":"51,301"}},{"$f":"($A8-$A7)/365.25*(AL7+(Main!$I14*Main!$D$3))*(1+VLOOKUP('Random Years'!AJ8,'Hist Returns'!$A$12:$D$107,3,FALSE))","v":{"v":51542.93917329477,"d":"51,543"}},{"$f":"($A8-$A7)/365.25*(AM7+(Main!$I14*Main!$D$3))*(1+VLOOKUP('Random Years'!AK8,'Hist Returns'!$A$12:$D$107,3,FALSE))","v":{"v":54386.721183843416,"d":"54,387"}},{"$f":"($A8-$A7)/365.25*(AN7+(Main!$I14*Main!$D$3))*(1+VLOOKUP('Random Years'!AL8,'Hist Returns'!$A$12:$D$107,3,FALSE))","v":{"v":55483.56762793369,"d":"55,484"}},{"$f":"($A8-$A7)/365.25*(AO7+(Main!$I14*Main!$D$3))*(1+VLOOKUP('Random Years'!AM8,'Hist Returns'!$A$12:$D$107,3,FALSE))","v":{"v":67246.11360149815,"d":"67,246"}},{"$f":"($A8-$A7)/365.25*(AP7+(Main!$I14*Main!$D$3))*(1+VLOOKUP('Random Years'!AN8,'Hist Returns'!$A$12:$D$107,3,FALSE))","v":{"v":44510.64642591375,"d":"44,511"}},{"$f":"($A8-$A7)/365.25*(AQ7+(Main!$I14*Main!$D$3))*(1+VLOOKUP('Random Years'!AO8,'Hist Returns'!$A$12:$D$107,3,FALSE))","v":{"v":52214.50137554597,"d":"52,215"}},{"$f":"($A8-$A7)/365.25*(AR7+(Main!$I14*Main!$D$3))*(1+VLOOKUP('Random Years'!AP8,'Hist Returns'!$A$12:$D$107,3,FALSE))","v":{"v":49572.89224915995,"d":"49,573"}},{"$f":"($A8-$A7)/365.25*(AS7+(Main!$I14*Main!$D$3))*(1+VLOOKUP('Random Years'!AQ8,'Hist Returns'!$A$12:$D$107,3,FALSE))","v":{"v":53706.71163324998,"d":"53,707"}},{"$f":"($A8-$A7)/365.25*(AT7+(Main!$I14*Main!$D$3))*(1+VLOOKUP('Random Years'!AR8,'Hist Returns'!$A$12:$D$107,3,FALSE))","v":{"v":51797.35957532396,"d":"51,797"}},{"$f":"($A8-$A7)/365.25*(AU7+(Main!$I14*Main!$D$3))*(1+VLOOKUP('Random Years'!AS8,'Hist Returns'!$A$12:$D$107,3,FALSE))","v":{"v":54302.9976632755,"d":"54,303"}},{"$f":"($A8-$A7)/365.25*(AV7+(Main!$I14*Main!$D$3))*(1+VLOOKUP('Random Years'!AT8,'Hist Returns'!$A$12:$D$107,3,FALSE))","v":{"v":46242.05784338864,"d":"46,242"}},{"$f":"($A8-$A7)/365.25*(AW7+(Main!$I14*Main!$D$3))*(1+VLOOKUP('Random Years'!AU8,'Hist Returns'!$A$12:$D$107,3,FALSE))","v":{"v":54852.20753891253,"d":"54,852"}},{"$f":"($A8-$A7)/365.25*(AX7+(Main!$I14*Main!$D$3))*(1+VLOOKUP('Random Years'!AV8,'Hist Returns'!$A$12:$D$107,3,FALSE))","v":{"v":49455.06183222113,"d":"49,455"}},{"$f":"($A8-$A7)/365.25*(AY7+(Main!$I14*Main!$D$3))*(1+VLOOKUP('Random Years'!AW8,'Hist Returns'!$A$12:$D$107,3,FALSE))","v":{"v":45850.24686056124,"d":"45,850"}},{"$f":"($A8-$A7)/365.25*(AZ7+(Main!$I14*Main!$D$3))*(1+VLOOKUP('Random Years'!AX8,'Hist Returns'!$A$12:$D$107,3,FALSE))","v":{"v":55377.43768387519,"d":"55,377"}},{"$f":"($A8-$A7)/365.25*(BA7+(Main!$I14*Main!$D$3))*(1+VLOOKUP('Random Years'!AY8,'Hist Returns'!$A$12:$D$107,3,FALSE))","v":{"v":60470.23600862005,"d":"60,470"}},{"$f":"($A8-$A7)/365.25*(BB7+(Main!$I14*Main!$D$3))*(1+VLOOKUP('Random Years'!AZ8,'Hist Returns'!$A$12:$D$107,3,FALSE))","v":{"v":61439.1786700715,"d":"61,439"}},{"$f":"($A8-$A7)/365.25*(BC7+(Main!$I14*Main!$D$3))*(1+VLOOKUP('Random Years'!BA8,'Hist Returns'!$A$12:$D$107,3,FALSE))","v":{"v":69461.64099357865,"d":"69,462"}},{"$f":"($A8-$A7)/365.25*(BD7+(Main!$I14*Main!$D$3))*(1+VLOOKUP('Random Years'!BB8,'Hist Returns'!$A$12:$D$107,3,FALSE))","v":{"v":46470.00279559229,"d":"46,470"}},{"$f":"($A8-$A7)/365.25*(BE7+(Main!$I14*Main!$D$3))*(1+VLOOKUP('Random Years'!BC8,'Hist Returns'!$A$12:$D$107,3,FALSE))","v":{"v":52680.5680257253,"d":"52,681"}},{"$f":"($A8-$A7)/365.25*(BF7+(Main!$I14*Main!$D$3))*(1+VLOOKUP('Random Years'!BD8,'Hist Returns'!$A$12:$D$107,3,FALSE))","v":{"v":60228.03873902668,"d":"60,228"}},{"$f":"($A8-$A7)/365.25*(BG7+(Main!$I14*Main!$D$3))*(1+VLOOKUP('Random Years'!BE8,'Hist Returns'!$A$12:$D$107,3,FALSE))","v":{"v":49724.62219544065,"d":"49,725"}},{"$f":"($A8-$A7)/365.25*(BH7+(Main!$I14*Main!$D$3))*(1+VLOOKUP('Random Years'!BF8,'Hist Returns'!$A$12:$D$107,3,FALSE))","v":{"v":49317.636074656446,"d":"49,318"}},{"$f":"($A8-$A7)/365.25*(BI7+(Main!$I14*Main!$D$3))*(1+VLOOKUP('Random Years'!BG8,'Hist Returns'!$A$12:$D$107,3,FALSE))","v":{"v":47503.99224042301,"d":"47,504"}},{"$f":"($A8-$A7)/365.25*(BJ7+(Main!$I14*Main!$D$3))*(1+VLOOKUP('Random Years'!BH8,'Hist Returns'!$A$12:$D$107,3,FALSE))","v":{"v":57296.33737781731,"d":"57,296"}},{"$f":"($A8-$A7)/365.25*(BK7+(Main!$I14*Main!$D$3))*(1+VLOOKUP('Random Years'!BI8,'Hist Returns'!$A$12:$D$107,3,FALSE))","v":{"v":49643.95874760871,"d":"49,644"}},{"$f":"($A8-$A7)/365.25*(BL7+(Main!$I14*Main!$D$3))*(1+VLOOKUP('Random Years'!BJ8,'Hist Returns'!$A$12:$D$107,3,FALSE))","v":{"v":51962.07086356228,"d":"51,962"}},{"$f":"($A8-$A7)/365.25*(BM7+(Main!$I14*Main!$D$3))*(1+VLOOKUP('Random Years'!BK8,'Hist Returns'!$A$12:$D$107,3,FALSE))","v":{"v":52176.01797507863,"d":"52,176"}},{"$f":"($A8-$A7)/365.25*(BN7+(Main!$I14*Main!$D$3))*(1+VLOOKUP('Random Years'!BL8,'Hist Returns'!$A$12:$D$107,3,FALSE))","v":{"v":57062.1142154143,"d":"57,062"}},{"$f":"($A8-$A7)/365.25*(BO7+(Main!$I14*Main!$D$3))*(1+VLOOKUP('Random Years'!BM8,'Hist Returns'!$A$12:$D$107,3,FALSE))","v":{"v":59868.86586392713,"d":"59,869"}},{"$f":"($A8-$A7)/365.25*(BP7+(Main!$I14*Main!$D$3))*(1+VLOOKUP('Random Years'!BN8,'Hist Returns'!$A$12:$D$107,3,FALSE))","v":{"v":47527.4650226393,"d":"47,527"}},{"$f":"($A8-$A7)/365.25*(BQ7+(Main!$I14*Main!$D$3))*(1+VLOOKUP('Random Years'!BO8,'Hist Returns'!$A$12:$D$107,3,FALSE))","v":{"v":50152.10471274732,"d":"50,152"}},{"$f":"($A8-$A7)/365.25*(BR7+(Main!$I14*Main!$D$3))*(1+VLOOKUP('Random Years'!BP8,'Hist Returns'!$A$12:$D$107,3,FALSE))","v":{"v":55405.90416725899,"d":"55,406"}},{"$f":"($A8-$A7)/365.25*(BS7+(Main!$I14*Main!$D$3))*(1+VLOOKUP('Random Years'!BQ8,'Hist Returns'!$A$12:$D$107,3,FALSE))","v":{"v":50810.53312783516,"d":"50,811"}},{"$f":"($A8-$A7)/365.25*(BT7+(Main!$I14*Main!$D$3))*(1+VLOOKUP('Random Years'!BR8,'Hist Returns'!$A$12:$D$107,3,FALSE))","v":{"v":56598.696563462625,"d":"56,599"}},{"$f":"($A8-$A7)/365.25*(BU7+(Main!$I14*Main!$D$3))*(1+VLOOKUP('Random Years'!BS8,'Hist Returns'!$A$12:$D$107,3,FALSE))","v":{"v":59956.30575542669,"d":"59,956"}},{"$f":"($A8-$A7)/365.25*(BV7+(Main!$I14*Main!$D$3))*(1+VLOOKUP('Random Years'!BT8,'Hist Returns'!$A$12:$D$107,3,FALSE))","v":{"v":51796.76434431932,"d":"51,797"}},{"$f":"($A8-$A7)/365.25*(BW7+(Main!$I14*Main!$D$3))*(1+VLOOKUP('Random Years'!BU8,'Hist Returns'!$A$12:$D$107,3,FALSE))","v":{"v":49460.106458758964,"d":"49,460"}},{"$f":"($A8-$A7)/365.25*(BX7+(Main!$I14*Main!$D$3))*(1+VLOOKUP('Random Years'!BV8,'Hist Returns'!$A$12:$D$107,3,FALSE))","v":{"v":59640.245380796645,"d":"59,640"}},{"$f":"($A8-$A7)/365.25*(BY7+(Main!$I14*Main!$D$3))*(1+VLOOKUP('Random Years'!BW8,'Hist Returns'!$A$12:$D$107,3,FALSE))","v":{"v":54946.22602718028,"d":"54,946"}},{"$f":"($A8-$A7)/365.25*(BZ7+(Main!$I14*Main!$D$3))*(1+VLOOKUP('Random Years'!BX8,'Hist Returns'!$A$12:$D$107,3,FALSE))","v":{"v":49035.603926739255,"d":"49,036"}},{"$f":"($A8-$A7)/365.25*(CA7+(Main!$I14*Main!$D$3))*(1+VLOOKUP('Random Years'!BY8,'Hist Returns'!$A$12:$D$107,3,FALSE))","v":{"v":53867.31800135997,"d":"53,867"}},{"$f":"($A8-$A7)/365.25*(CB7+(Main!$I14*Main!$D$3))*(1+VLOOKUP('Random Years'!BZ8,'Hist Returns'!$A$12:$D$107,3,FALSE))","v":{"v":52231.026326501145,"d":"52,231"}},{"$f":"($A8-$A7)/365.25*(CC7+(Main!$I14*Main!$D$3))*(1+VLOOKUP('Random Years'!CA8,'Hist Returns'!$A$12:$D$107,3,FALSE))","v":{"v":54160.24083170766,"d":"54,160"}},{"$f":"($A8-$A7)/365.25*(CD7+(Main!$I14*Main!$D$3))*(1+VLOOKUP('Random Years'!CB8,'Hist Returns'!$A$12:$D$107,3,FALSE))","v":{"v":54391.185939453666,"d":"54,391"}},{"$f":"($A8-$A7)/365.25*(CE7+(Main!$I14*Main!$D$3))*(1+VLOOKUP('Random Years'!CC8,'Hist Returns'!$A$12:$D$107,3,FALSE))","v":{"v":52330.99832754259,"d":"52,331"}},{"$f":"($A8-$A7)/365.25*(CF7+(Main!$I14*Main!$D$3))*(1+VLOOKUP('Random Years'!CD8,'Hist Returns'!$A$12:$D$107,3,FALSE))","v":{"v":56602.572254153165,"d":"56,603"}},{"$f":"($A8-$A7)/365.25*(CG7+(Main!$I14*Main!$D$3))*(1+VLOOKUP('Random Years'!CE8,'Hist Returns'!$A$12:$D$107,3,FALSE))","v":{"v":49888.20926727637,"d":"49,888"}},{"$f":"($A8-$A7)/365.25*(CH7+(Main!$I14*Main!$D$3))*(1+VLOOKUP('Random Years'!CF8,'Hist Returns'!$A$12:$D$107,3,FALSE))","v":{"v":61794.46060762264,"d":"61,794"}},{"$f":"($A8-$A7)/365.25*(CI7+(Main!$I14*Main!$D$3))*(1+VLOOKUP('Random Years'!CG8,'Hist Returns'!$A$12:$D$107,3,FALSE))","v":{"v":60316.61842108772,"d":"60,317"}},{"$f":"($A8-$A7)/365.25*(CJ7+(Main!$I14*Main!$D$3))*(1+VLOOKUP('Random Years'!CH8,'Hist Returns'!$A$12:$D$107,3,FALSE))","v":{"v":55293.871898364174,"d":"55,294"}},{"$f":"($A8-$A7)/365.25*(CK7+(Main!$I14*Main!$D$3))*(1+VLOOKUP('Random Years'!CI8,'Hist Returns'!$A$12:$D$107,3,FALSE))","v":{"v":48163.682996225805,"d":"48,164"}},{"$f":"($A8-$A7)/365.25*(CL7+(Main!$I14*Main!$D$3))*(1+VLOOKUP('Random Years'!CJ8,'Hist Returns'!$A$12:$D$107,3,FALSE))","v":{"v":48782.80874380214,"d":"48,783"}},{"$f":"($A8-$A7)/365.25*(CM7+(Main!$I14*Main!$D$3))*(1+VLOOKUP('Random Years'!CK8,'Hist Returns'!$A$12:$D$107,3,FALSE))","v":{"v":52281.42543797634,"d":"52,281"}},{"$f":"($A8-$A7)/365.25*(CN7+(Main!$I14*Main!$D$3))*(1+VLOOKUP('Random Years'!CL8,'Hist Returns'!$A$12:$D$107,3,FALSE))","v":{"v":50239.28775981642,"d":"50,239"}},{"$f":"($A8-$A7)/365.25*(CO7+(Main!$I14*Main!$D$3))*(1+VLOOKUP('Random Years'!CM8,'Hist Returns'!$A$12:$D$107,3,FALSE))","v":{"v":52697.383995264914,"d":"52,697"}},{"$f":"($A8-$A7)/365.25*(CP7+(Main!$I14*Main!$D$3))*(1+VLOOKUP('Random Years'!CN8,'Hist Returns'!$A$12:$D$107,3,FALSE))","v":{"v":65941.72506101397,"d":"65,942"}},{"$f":"($A8-$A7)/365.25*(CQ7+(Main!$I14*Main!$D$3))*(1+VLOOKUP('Random Years'!CO8,'Hist Returns'!$A$12:$D$107,3,FALSE))","v":{"v":50492.85262734117,"d":"50,493"}},{"$f":"($A8-$A7)/365.25*(CR7+(Main!$I14*Main!$D$3))*(1+VLOOKUP('Random Years'!CP8,'Hist Returns'!$A$12:$D$107,3,FALSE))","v":{"v":51485.36066959098,"d":"51,485"}},{"$f":"($A8-$A7)/365.25*(CS7+(Main!$I14*Main!$D$3))*(1+VLOOKUP('Random Years'!CQ8,'Hist Returns'!$A$12:$D$107,3,FALSE))","v":{"v":48035.61706286281,"d":"48,036"}},{"$f":"($A8-$A7)/365.25*(CT7+(Main!$I14*Main!$D$3))*(1+VLOOKUP('Random Years'!CR8,'Hist Returns'!$A$12:$D$107,3,FALSE))","v":{"v":64582.58997051461,"d":"64,583"}},{"$f":"($A8-$A7)/365.25*(CU7+(Main!$I14*Main!$D$3))*(1+VLOOKUP('Random Years'!CS8,'Hist Returns'!$A$12:$D$107,3,FALSE))","v":{"v":61837.89260863084,"d":"61,838"}},{"$f":"($A8-$A7)/365.25*(CV7+(Main!$I14*Main!$D$3))*(1+VLOOKUP('Random Years'!CT8,'Hist Returns'!$A$12:$D$107,3,FALSE))","v":{"v":50999.15081791248,"d":"50,999"}},{"$f":"($A8-$A7)/365.25*(CW7+(Main!$I14*Main!$D$3))*(1+VLOOKUP('Random Years'!CU8,'Hist Returns'!$A$12:$D$107,3,FALSE))","v":{"v":55546.85738521465,"d":"55,547"}},{"$f":"($A8-$A7)/365.25*(CX7+(Main!$I14*Main!$D$3))*(1+VLOOKUP('Random Years'!CV8,'Hist Returns'!$A$12:$D$107,3,FALSE))","v":{"v":54796.37589955592,"d":"54,796"}}]
[{"$f":"Main!A15","v":"2030-12-30"},{"$f":"Main!B15","v":76},{"$f":"($A9-$A8)/365.25*(C8+(Main!$I15*Main!$D$3))*(1+VLOOKUP('Random Years'!A9,'Hist Returns'!$A$12:$D$107,3,FALSE))","v":{"v":55090.9545969516,"d":"55,091"}},{"$f":"($A9-$A8)/365.25*(D8+(Main!$I15*Main!$D$3))*(1+VLOOKUP('Random Years'!B9,'Hist Returns'!$A$12:$D$107,3,FALSE))","v":{"v":49035.356636741904,"d":"49,035"}},{"$f":"($A9-$A8)/365.25*(E8+(Main!$I15*Main!$D$3))*(1+VLOOKUP('Random Years'!C9,'Hist Returns'!$A$12:$D$107,3,FALSE))","v":{"v":49273.88856974449,"d":"49,274"}},{"$f":"($A9-$A8)/365.25*(F8+(Main!$I15*Main!$D$3))*(1+VLOOKUP('Random Years'!D9,'Hist Returns'!$A$12:$D$107,3,FALSE))","v":{"v":56010.18969091885,"d":"56,010"}},{"$f":"($A9-$A8)/365.25*(G8+(Main!$I15*Main!$D$3))*(1+VLOOKUP('Random Years'!E9,'Hist Returns'!$A$12:$D$107,3,FALSE))","v":{"v":48870.43577927029,"d":"48,870"}},{"$f":"($A9-$A8)/365.25*(H8+(Main!$I15*Main!$D$3))*(1+VLOOKUP('Random Years'!F9,'Hist Returns'!$A$12:$D$107,3,FALSE))","v":{"v":55162.38460017538,"d":"55,162"}},{"$f":"($A9-$A8)/365.25*(I8+(Main!$I15*Main!$D$3))*(1+VLOOKUP('Random Years'!G9,'Hist Returns'!$A$12:$D$107,3,FALSE))","v":{"v":53354.875944435196,"d":"53,355"}},{"$f":"($A9-$A8)/365.25*(J8+(Main!$I15*Main!$D$3))*(1+VLOOKUP('Random Years'!H9,'Hist Returns'!$A$12:$D$107,3,FALSE))","v":{"v":67347.60494359591,"d":"67,348"}},{"$f":"($A9-$A8)/365.25*(K8+(Main!$I15*Main!$D$3))*(1+VLOOKUP('Random Years'!I9,'Hist Returns'!$A$12:$D$107,3,FALSE))","v":{"v":67983.50762764116,"d":"67,984"}},{"$f":"($A9-$A8)/365.25*(L8+(Main!$I15*Main!$D$3))*(1+VLOOKUP('Random Years'!J9,'Hist Returns'!$A$12:$D$107,3,FALSE))","v":{"v":50230.02108305002,"d":"50,230"}},{"$f":"($A9-$A8)/365.25*(M8+(Main!$I15*Main!$D$3))*(1+VLOOKUP('Random Years'!K9,'Hist Returns'!$A$12:$D$107,3,FALSE))","v":{"v":48544.691419058756,"d":"48,545"}},{"$f":"($A9-$A8)/365.25*(N8+(Main!$I15*Main!$D$3))*(1+VLOOKUP('Random Years'!L9,'Hist Returns'!$A$12:$D$107,3,FALSE))","v":{"v":59363.194598341615,"d":"59,363"}},{"$f":"($A9-$A8)/365.25*(O8+(Main!$I15*Main!$D$3))*(1+VLOOKUP('Random Years'!M9,'Hist Returns'!$A$12:$D$107,3,FALSE))","v":{"v":60980.68146963146,"d":"60,981"}},{"$f":"($A9-$A8)/365.25*(P8+(Main!$I15*Main!$D$3))*(1+VLOOKUP('Random Years'!N9,'Hist Returns'!$A$12:$D$107,3,FALSE))","v":{"v":48738.3171606663,"d":"48,738"}},{"$f":"($A9-$A8)/365.25*(Q8+(Main!$I15*Main!$D$3))*(1+VLOOKUP('Random Years'!O9,'Hist Returns'!$A$12:$D$107,3,FALSE))","v":{"v":48498.37857702688,"d":"48,498"}},{"$f":"($A9-$A8)/365.25*(R8+(Main!$I15*Main!$D$3))*(1+VLOOKUP('Random Years'!P9,'Hist Returns'!$A$12:$D$107,3,FALSE))","v":{"v":52079.90797467203,"d":"52,080"}},{"$f":"($A9-$A8)/365.25*(S8+(Main!$I15*Main!$D$3))*(1+VLOOKUP('Random Years'!Q9,'Hist Returns'!$A$12:$D$107,3,FALSE))","v":{"v":48835.762619316694,"d":"48,836"}},{"$f":"($A9-$A8)/365.25*(T8+(Main!$I15*Main!$D$3))*(1+VLOOKUP('Random Years'!R9,'Hist Returns'!$A$12:$D$107,3,FALSE))","v":{"v":70848.19581329072,"d":"70,848"}},{"$f":"($A9-$A8)/365.25*(U8+(Main!$I15*Main!$D$3))*(1+VLOOKUP('Random Years'!S9,'Hist Returns'!$A$12:$D$107,3,FALSE))","v":{"v":58701.39292037824,"d":"58,701"}},{"$f":"($A9-$A8)/365.25*(V8+(Main!$I15*Main!$D$3))*(1+VLOOKUP('Random Years'!T9,'Hist Returns'!$A$12:$D$107,3,FALSE))","v":{"v":50180.272625657264,"d":"50,180"}},{"$f":"($A9-$A8)/365.25*(W8+(Main!$I15*Main!$D$3))*(1+VLOOKUP('Random Years'!U9,'Hist Returns'!$A$12:$D$107,3,FALSE))","v":{"v":65533.34945206277,"d":"65,533"}},{"$f":"($A9-$A8)/365.25*(X8+(Main!$I15*Main!$D$3))*(1+VLOOKUP('Random Years'!V9,'Hist Returns'!$A$12:$D$107,3,FALSE))","v":{"v":55130.80282670369,"d":"55,131"}},{"$f":"($A9-$A8)/365.25*(Y8+(Main!$I15*Main!$D$3))*(1+VLOOKUP('Random Years'!W9,'Hist Returns'!$A$12:$D$107,3,FALSE))","v":{"v":46456.59058959397,"d":"46,457"}},{"$f":"($A9-$A8)/365.25*(Z8+(Main!$I15*Main!$D$3))*(1+VLOOKUP('Random Years'!X9,'Hist Returns'!$A$12:$D$107,3,FALSE))","v":{"v":50328.504608263305,"d":"50,329"}},{"$f":"($A9-$A8)/365.25*(AA8+(Main!$I15*Main!$D$3))*(1+VLOOKUP('Random Years'!Y9,'Hist Returns'!$A$12:$D$107,3,FALSE))","v":{"v":51576.108320671075,"d":"51,576"}},{"$f":"($A9-$A8)/365.25*(AB8+(Main!$I15*Main!$D$3))*(1+VLOOKUP('Random Years'!Z9,'Hist Returns'!$A$12:$D$107,3,FALSE))","v":{"v":52423.844334836,"d":"52,424"}},{"$f":"($A9-$A8)/365.25*(AC8+(Main!$I15*Main!$D$3))*(1+VLOOKUP('Random Years'!AA9,'Hist Returns'!$A$12:$D$107,3,FALSE))","v":{"v":57590.71694941228,"d":"57,591"}},{"$f":"($A9-$A8)/365.25*(AD8+(Main!$I15*Main!$D$3))*(1+VLOOKUP('Random Years'!AB9,'Hist Returns'!$A$12:$D$107,3,FALSE))","v":{"v":58879.9989643215,"d":"58,880"}},{"$f":"($A9-$A8)/365.25*(AE8+(Main!$I15*Main!$D$3))*(1+VLOOKUP('Random Years'!AC9,'Hist Returns'!$A$12:$D$107,3,FALSE))","v":{"v":56724.924855468,"d":"56,725"}},{"$f":"($A9-$A8)/365.25*(AF8+(Main!$I15*Main!$D$3))*(1+VLOOKUP('Random Years'!AD9,'Hist Returns'!$A$12:$D$107,3,FALSE))","v":{"v":49228.18838111741,"d":"49,228"}},{"$f":"($A9-$A8)/365.25*(AG8+(Main!$I15*Main!$D$3))*(1+VLOOKUP('Random Years'!AE9,'Hist Returns'!$A$12:$D$107,3,FALSE))","v":{"v":53384.23322546218,"d":"53,384"}},{"$f":"($A9-$A8)/365.25*(AH8+(Main!$I15*Main!$D$3))*(1+VLOOKUP('Random Years'!AF9,'Hist Returns'!$A$12:$D$107,3,FALSE))","v":{"v":52028.15631558787,"d":"52,028"}},{"$f":"($A9-$A8)/365.25*(AI8+(Main!$I15*Main!$D$3))*(1+VLOOKUP('Random Years'!AG9,'Hist Returns'!$A$12:$D$107,3,FALSE))","v":{"v":61757.77023549297,"d":"61,758"}},{"$f":"($A9-$A8)/365.25*(AJ8+(Main!$I15*Main!$D$3))*(1+VLOOKUP('Random Years'!AH9,'Hist Returns'!$A$12:$D$107,3,FALSE))","v":{"v":53966.61499876591,"d":"53,967"}},{"$f":"($A9-$A8)/365.25*(AK8+(Main!$I15*Main!$D$3))*(1+VLOOKUP('Random Years'!AI9,'Hist Returns'!$A$12:$D$107,3,FALSE))","v":{"v":49965.81256040547,"d":"49,966"}},{"$f":"($A9-$A8)/365.25*(AL8+(Main!$I15*Main!$D$3))*(1+VLOOKUP('Random Years'!AJ9,'Hist Returns'!$A$12:$D$107,3,FALSE))","v":{"v":52393.07182875441,"d":"52,393"}},{"$f":"($A9-$A8)/365.25*(AM8+(Main!$I15*Main!$D$3))*(1+VLOOKUP('Random Years'!AK9,'Hist Returns'!$A$12:$D$107,3,FALSE))","v":{"v":58223.74308924051,"d":"58,224"}},{"$f":"($A9-$A8)/365.25*(AN8+(Main!$I15*Main!$D$3))*(1+VLOOKUP('Random Years'!AL9,'Hist Returns'!$A$12:$D$107,3,FALSE))","v":{"v":59250.407022531785,"d":"59,250"}},{"$f":"($A9-$A8)/365.25*(AO8+(Main!$I15*Main!$D$3))*(1+VLOOKUP('Random Years'!AM9,'Hist Returns'!$A$12:$D$107,3,FALSE))","v":{"v":75221.00512250898,"d":"75,221"}},{"$f":"($A9-$A8)/365.25*(AP8+(Main!$I15*Main!$D$3))*(1+VLOOKUP('Random Years'!AN9,'Hist Returns'!$A$12:$D$107,3,FALSE))","v":{"v":45990.22128123448,"d":"45,990"}},{"$f":"($A9-$A8)/365.25*(AQ8+(Main!$I15*Main!$D$3))*(1+VLOOKUP('Random Years'!AO9,'Hist Returns'!$A$12:$D$107,3,FALSE))","v":{"v":50819.30286267168,"d":"50,819"}},{"$f":"($A9-$A8)/365.25*(AR8+(Main!$I15*Main!$D$3))*(1+VLOOKUP('Random Years'!AP9,'Hist Returns'!$A$12:$D$107,3,FALSE))","v":{"v":50619.07368460373,"d":"50,619"}},{"$f":"($A9-$A8)/365.25*(AS8+(Main!$I15*Main!$D$3))*(1+VLOOKUP('Random Years'!AQ9,'Hist Returns'!$A$12:$D$107,3,FALSE))","v":{"v":52855.09866344374,"d":"52,855"}},{"$f":"($A9-$A8)/365.25*(AT8+(Main!$I15*Main!$D$3))*(1+VLOOKUP('Random Years'!AR9,'Hist Returns'!$A$12:$D$107,3,FALSE))","v":{"v":50412.270861338395,"d":"50,412"}},{"$f":"($A9-$A8)/365.25*(AU8+(Main!$I15*Main!$D$3))*(1+VLOOKUP('Random Years'!AS9,'Hist Returns'!$A$12:$D$107,3,FALSE))","v":{"v":54964.49426087794,"d":"54,964"}},{"$f":"($A9-$A8)/365.25*(AV8+(Main!$I15*Main!$D$3))*(1+VLOOKUP('Random Years'!AT9,'Hist Returns'!$A$12:$D$107,3,FALSE))","v":{"v":44860.81237413461,"d":"44,861"}},{"$f":"($A9-$A8)/365.25*(AW8+(Main!$I15*Main!$D$3))*(1+VLOOKUP('Random Years'!AU9,'Hist Returns'!$A$12:$D$107,3,FALSE))","v":{"v":55923.672077394884,"d":"55,924"}},{"$f":"($A9-$A8)/365.25*(AX8+(Main!$I15*Main!$D$3))*(1+VLOOKUP('Random Years'!AV9,'Hist Returns'!$A$12:$D$107,3,FALSE))","v":{"v":51628.82153379176,"d":"51,629"}},{"$f":"($A9-$A8)/365.25*(AY8+(Main!$I15*Main!$D$3))*(1+VLOOKUP('Random Years'!AW9,'Hist Returns'!$A$12:$D$107,3,FALSE))","v":{"v":45943.95769679252,"d":"45,944"}},{"$f":"($A9-$A8)/365.25*(AZ8+(Main!$I15*Main!$D$3))*(1+VLOOKUP('Random Years'!AX9,'Hist Returns'!$A$12:$D$107,3,FALSE))","v":{"v":54611.83231314712,"d":"54,612"}},{"$f":"($A9-$A8)/365.25*(BA8+(Main!$I15*Main!$D$3))*(1+VLOOKUP('Random Years'!AY9,'Hist Returns'!$A$12:$D$107,3,FALSE))","v":{"v":59077.87913849663,"d":"59,078"}},{"$f":"($A9-$A8)/365.25*(BB8+(Main!$I15*Main!$D$3))*(1+VLOOKUP('Random Years'!AZ9,'Hist Returns'!$A$12:$D$107,3,FALSE))","v":{"v":61855.41445364866,"d":"61,855"}},{"$f":"($A9-$A8)/365.25*(BC8+(Main!$I15*Main!$D$3))*(1+VLOOKUP('Random Years'!BA9,'Hist Returns'!$A$12:$D$107,3,FALSE))","v":{"v":69030.92178882787,"d":"69,031"}},{"$f":"($A9-$A8)/365.25*(BD8+(Main!$I15*Main!$D$3))*(1+VLOOKUP('Random Years'!BB9,'Hist Returns'!$A$12:$D$107,3,FALSE))","v":{"v":46435.74937667178,"d":"46,436"}},{"$f":"($A9-$A8)/365.25*(BE8+(Main!$I15*Main!$D$3))*(1+VLOOKUP('Random Years'!BC9,'Hist Returns'!$A$12:$D$107,3,FALSE))","v":{"v":52104.12182712947,"d":"52,104"}},{"$f":"($A9-$A8)/365.25*(BF8+(Main!$I15*Main!$D$3))*(1+VLOOKUP('Random Years'!BD9,'Hist Returns'!$A$12:$D$107,3,FALSE))","v":{"v":62653.95741766169,"d":"62,654"}},{"$f":"($A9-$A8)/365.25*(BG8+(Main!$I15*Main!$D$3))*(1+VLOOKUP('Random Years'!BE9,'Hist Returns'!$A$12:$D$107,3,FALSE))","v":{"v":49740.0141217502,"d":"49,740"}},{"$f":"($A9-$A8)/365.25*(BH8+(Main!$I15*Main!$D$3))*(1+VLOOKUP('Random Years'!BF9,'Hist Returns'!$A$12:$D$107,3,FALSE))","v":{"v":50073.12165152197,"d":"50,073"}},{"$f":"($A9-$A8)/365.25*(BI8+(Main!$I15*Main!$D$3))*(1+VLOOKUP('Random Years'!BG9,'Hist Returns'!$A$12:$D$107,3,FALSE))","v":{"v":49164.39993117475,"d":"49,164"}},{"$f":"($A9-$A8)/365.25*(BJ8+(Main!$I15*Main!$D$3))*(1+VLOOKUP('Random Years'!BH9,'Hist Returns'!$A$12:$D$107,3,FALSE))","v":{"v":58733.17394544284,"d":"58,733"}},{"$f":"($A9-$A8)/365.25*(BK8+(Main!$I15*Main!$D$3))*(1+VLOOKUP('Random Years'!BI9,'Hist Returns'!$A$12:$D$107,3,FALSE))","v":{"v":48244.156400723536,"d":"48,244"}},{"$f":"($A9-$A8)/365.25*(BL8+(Main!$I15*Main!$D$3))*(1+VLOOKUP('Random Years'!BJ9,'Hist Returns'!$A$12:$D$107,3,FALSE))","v":{"v":53563.71248496787,"d":"53,564"}},{"$f":"($A9-$A8)/365.25*(BM8+(Main!$I15*Main!$D$3))*(1+VLOOKUP('Random Years'!BK9,'Hist Returns'!$A$12:$D$107,3,FALSE))","v":{"v":52389.60953682627,"d":"52,390"}},{"$f":"($A9-$A8)/365.25*(BN8+(Main!$I15*Main!$D$3))*(1+VLOOKUP('Random Years'!BL9,'Hist Returns'!$A$12:$D$107,3,FALSE))","v":{"v":55677.630894159425,"d":"55,678"}},{"$f":"($A9-$A8)/365.25*(BO8+(Main!$I15*Main!$D$3))*(1+VLOOKUP('Random Years'!BM9,'Hist Returns'!$A$12:$D$107,3,FALSE))","v":{"v":60196.93736963726,"d":"60,197"}},{"$f":"($A9-$A8)/365.25*(BP8+(Main!$I15*Main!$D$3))*(1+VLOOKUP('Random Years'!BN9,'Hist Returns'!$A$12:$D$107,3,FALSE))","v":{"v":47561.91935507683,"d":"47,562"}},{"$f":"($A9-$A8)/365.25*(BQ8+(Main!$I15*Main!$D$3))*(1+VLOOKUP('Random Years'!BO9,'Hist Returns'!$A$12:$D$107,3,FALSE))","v":{"v":48913.01034495144,"d":"48,913"}},{"$f":"($A9-$A8)/365.25*(BR8+(Main!$I15*Main!$D$3))*(1+VLOOKUP('Random Years'!BP9,'Hist Returns'!$A$12:$D$107,3,FALSE))","v":{"v":55586.593789706836,"d":"55,587"}},{"$f":"($A9-$A8)/365.25*(BS8+(Main!$I15*Main!$D$3))*(1+VLOOKUP('Random Years'!BQ9,'Hist Returns'!$A$12:$D$107,3,FALSE))","v":{"v":51776.096079520896,"d":"51,776"}},{"$f":"($A9-$A8)/365.25*(BT8+(Main!$I15*Main!$D$3))*(1+VLOOKUP('Random Years'!BR9,'Hist Returns'!$A$12:$D$107,3,FALSE))","v":{"v":55732.75817892267,"d":"55,733"}},{"$f":"($A9-$A8)/365.25*(BU8+(Main!$I15*Main!$D$3))*(1+VLOOKUP('Random Years'!BS9,'Hist Returns'!$A$12:$D$107,3,FALSE))","v":{"v":64342.75326437947,"d":"64,343"}},{"$f":"($A9-$A8)/365.25*(BV8+(Main!$I15*Main!$D$3))*(1+VLOOKUP('Random Years'!BT9,'Hist Returns'!$A$12:$D$107,3,FALSE))","v":{"v":50562.789697265674,"d":"50,563"}},{"$f":"($A9-$A8)/365.25*(BW8+(Main!$I15*Main!$D$3))*(1+VLOOKUP('Random Years'!BU9,'Hist Returns'!$A$12:$D$107,3,FALSE))","v":{"v":48944.206375371235,"d":"48,944"}},{"$f":"($A9-$A8)/365.25*(BX8+(Main!$I15*Main!$D$3))*(1+VLOOKUP('Random Years'!BV9,'Hist Returns'!$A$12:$D$107,3,FALSE))","v":{"v":58506.35932913557,"d":"58,506"}},{"$f":"($A9-$A8)/365.25*(BY8+(Main!$I15*Main!$D$3))*(1+VLOOKUP('Random Years'!BW9,'Hist Returns'!$A$12:$D$107,3,FALSE))","v":{"v":55836.04348975762,"d":"55,836"}},{"$f":"($A9-$A8)/365.25*(BZ8+(Main!$I15*Main!$D$3))*(1+VLOOKUP('Random Years'!BX9,'Hist Returns'!$A$12:$D$107,3,FALSE))","v":{"v":48316.76715054874,"d":"48,317"}},{"$f":"($A9-$A8)/365.25*(CA8+(Main!$I15*Main!$D$3))*(1+VLOOKUP('Random Years'!BY9,'Hist Returns'!$A$12:$D$107,3,FALSE))","v":{"v":53001.62840884553,"d":"53,002"}},{"$f":"($A9-$A8)/365.25*(CB8+(Main!$I15*Main!$D$3))*(1+VLOOKUP('Random Years'!BZ9,'Hist Returns'!$A$12:$D$107,3,FALSE))","v":{"v":53116.98632101088,"d":"53,117"}},{"$f":"($A9-$A8)/365.25*(CC8+(Main!$I15*Main!$D$3))*(1+VLOOKUP('Random Years'!CA9,'Hist Returns'!$A$12:$D$107,3,FALSE))","v":{"v":54304.68770462258,"d":"54,305"}},{"$f":"($A9-$A8)/365.25*(CD8+(Main!$I15*Main!$D$3))*(1+VLOOKUP('Random Years'!CB9,'Hist Returns'!$A$12:$D$107,3,FALSE))","v":{"v":52985.209879161535,"d":"52,985"}},{"$f":"($A9-$A8)/365.25*(CE8+(Main!$I15*Main!$D$3))*(1+VLOOKUP('Random Years'!CC9,'Hist Returns'!$A$12:$D$107,3,FALSE))","v":{"v":51098.686716872035,"d":"51,099"}},{"$f":"($A9-$A8)/365.25*(CF8+(Main!$I15*Main!$D$3))*(1+VLOOKUP('Random Years'!CD9,'Hist Returns'!$A$12:$D$107,3,FALSE))","v":{"v":59466.426157189715,"d":"59,466"}},{"$f":"($A9-$A8)/365.25*(CG8+(Main!$I15*Main!$D$3))*(1+VLOOKUP('Random Years'!CE9,'Hist Returns'!$A$12:$D$107,3,FALSE))","v":{"v":51182.96739394739,"d":"51,183"}},{"$f":"($A9-$A8)/365.25*(CH8+(Main!$I15*Main!$D$3))*(1+VLOOKUP('Random Years'!CF9,'Hist Returns'!$A$12:$D$107,3,FALSE))","v":{"v":62179.13484561391,"d":"62,179"}},{"$f":"($A9-$A8)/365.25*(CI8+(Main!$I15*Main!$D$3))*(1+VLOOKUP('Random Years'!CG9,'Hist Returns'!$A$12:$D$107,3,FALSE))","v":{"v":59818.73461965725,"d":"59,819"}},{"$f":"($A9-$A8)/365.25*(CJ8+(Main!$I15*Main!$D$3))*(1+VLOOKUP('Random Years'!CH9,'Hist Returns'!$A$12:$D$107,3,FALSE))","v":{"v":56699.448832344504,"d":"56,699"}},{"$f":"($A9-$A8)/365.25*(CK8+(Main!$I15*Main!$D$3))*(1+VLOOKUP('Random Years'!CI9,'Hist Returns'!$A$12:$D$107,3,FALSE))","v":{"v":49362.94179196895,"d":"49,363"}},{"$f":"($A9-$A8)/365.25*(CL8+(Main!$I15*Main!$D$3))*(1+VLOOKUP('Random Years'!CJ9,'Hist Returns'!$A$12:$D$107,3,FALSE))","v":{"v":47601.01917635594,"d":"47,601"}},{"$f":"($A9-$A8)/365.25*(CM8+(Main!$I15*Main!$D$3))*(1+VLOOKUP('Random Years'!CK9,'Hist Returns'!$A$12:$D$107,3,FALSE))","v":{"v":51699.91257015646,"d":"51,700"}},{"$f":"($A9-$A8)/365.25*(CN8+(Main!$I15*Main!$D$3))*(1+VLOOKUP('Random Years'!CL9,'Hist Returns'!$A$12:$D$107,3,FALSE))","v":{"v":51509.55413783143,"d":"51,510"}},{"$f":"($A9-$A8)/365.25*(CO8+(Main!$I15*Main!$D$3))*(1+VLOOKUP('Random Years'!CM9,'Hist Returns'!$A$12:$D$107,3,FALSE))","v":{"v":51286.76308401239,"d":"51,287"}},{"$f":"($A9-$A8)/365.25*(CP8+(Main!$I15*Main!$D$3))*(1+VLOOKUP('Random Years'!CN9,'Hist Returns'!$A$12:$D$107,3,FALSE))","v":{"v":65529.08799888167,"d":"65,529"}},{"$f":"($A9-$A8)/365.25*(CQ8+(Main!$I15*Main!$D$3))*(1+VLOOKUP('Random Years'!CO9,'Hist Returns'!$A$12:$D$107,3,FALSE))","v":{"v":52468.79651509338,"d":"52,469"}},{"$f":"($A9-$A8)/365.25*(CR8+(Main!$I15*Main!$D$3))*(1+VLOOKUP('Random Years'!CP9,'Hist Returns'!$A$12:$D$107,3,FALSE))","v":{"v":50540.76573270614,"d":"50,541"}},{"$f":"($A9-$A8)/365.25*(CS8+(Main!$I15*Main!$D$3))*(1+VLOOKUP('Random Years'!CQ9,'Hist Returns'!$A$12:$D$107,3,FALSE))","v":{"v":48733.688194867515,"d":"48,734"}},{"$f":"($A9-$A8)/365.25*(CT8+(Main!$I15*Main!$D$3))*(1+VLOOKUP('Random Years'!CR9,'Hist Returns'!$A$12:$D$107,3,FALSE))","v":{"v":65364.96335315602,"d":"65,365"}},{"$f":"($A9-$A8)/365.25*(CU8+(Main!$I15*Main!$D$3))*(1+VLOOKUP('Random Years'!CS9,'Hist Returns'!$A$12:$D$107,3,FALSE))","v":{"v":61051.974228921,"d":"61,052"}},{"$f":"($A9-$A8)/365.25*(CV8+(Main!$I15*Main!$D$3))*(1+VLOOKUP('Random Years'!CT9,'Hist Returns'!$A$12:$D$107,3,FALSE))","v":{"v":50843.41322767659,"d":"50,843"}},{"$f":"($A9-$A8)/365.25*(CW8+(Main!$I15*Main!$D$3))*(1+VLOOKUP('Random Years'!CU9,'Hist Returns'!$A$12:$D$107,3,FALSE))","v":{"v":55785.76696601797,"d":"55,786"}},{"$f":"($A9-$A8)/365.25*(CX8+(Main!$I15*Main!$D$3))*(1+VLOOKUP('Random Years'!CV9,'Hist Returns'!$A$12:$D$107,3,FALSE))","v":{"v":53939.98451688914,"d":"53,940"}}]
[{"$f":"Main!A16","v":"2031-12-31"},{"$f":"Main!B16","v":77},{"$f":"($A10-$A9)/365.25*(C9+(Main!$I16*Main!$D$3))*(1+VLOOKUP('Random Years'!A10,'Hist Returns'!$A$12:$D$107,3,FALSE))","v":{"v":59101.17544460143,"d":"59,101"}},{"$f":"($A10-$A9)/365.25*(D9+(Main!$I16*Main!$D$3))*(1+VLOOKUP('Random Years'!B10,'Hist Returns'!$A$12:$D$107,3,FALSE))","v":{"v":49172.77875335229,"d":"49,173"}},{"$f":"($A10-$A9)/365.25*(E9+(Main!$I16*Main!$D$3))*(1+VLOOKUP('Random Years'!C10,'Hist Returns'!$A$12:$D$107,3,FALSE))","v":{"v":48441.48954057806,"d":"48,441"}},{"$f":"($A10-$A9)/365.25*(F9+(Main!$I16*Main!$D$3))*(1+VLOOKUP('Random Years'!D10,'Hist Returns'!$A$12:$D$107,3,FALSE))","v":{"v":55488.03235311164,"d":"55,488"}},{"$f":"($A10-$A9)/365.25*(G9+(Main!$I16*Main!$D$3))*(1+VLOOKUP('Random Years'!E10,'Hist Returns'!$A$12:$D$107,3,FALSE))","v":{"v":54320.356874064215,"d":"54,320"}},{"$f":"($A10-$A9)/365.25*(H9+(Main!$I16*Main!$D$3))*(1+VLOOKUP('Random Years'!F10,'Hist Returns'!$A$12:$D$107,3,FALSE))","v":{"v":54625.91310923032,"d":"54,626"}},{"$f":"($A10-$A9)/365.25*(I9+(Main!$I16*Main!$D$3))*(1+VLOOKUP('Random Years'!G10,'Hist Returns'!$A$12:$D$107,3,FALSE))","v":{"v":52059.634595676966,"d":"52,060"}},{"$f":"($A10-$A9)/365.25*(J9+(Main!$I16*Main!$D$3))*(1+VLOOKUP('Random Years'!H10,'Hist Returns'!$A$12:$D$107,3,FALSE))","v":{"v":70483.9387989557,"d":"70,484"}},{"$f":"($A10-$A9)/365.25*(K9+(Main!$I16*Main!$D$3))*(1+VLOOKUP('Random Years'!I10,'Hist Returns'!$A$12:$D$107,3,FALSE))","v":{"v":67790.1908458333,"d":"67,790"}},{"$f":"($A10-$A9)/365.25*(L9+(Main!$I16*Main!$D$3))*(1+VLOOKUP('Random Years'!J10,'Hist Returns'!$A$12:$D$107,3,FALSE))","v":{"v":49072.51842374962,"d":"49,073"}},{"$f":"($A10-$A9)/365.25*(M9+(Main!$I16*Main!$D$3))*(1+VLOOKUP('Random Years'!K10,'Hist Returns'!$A$12:$D$107,3,FALSE))","v":{"v":47750.17459273903,"d":"47,750"}},{"$f":"($A10-$A9)/365.25*(N9+(Main!$I16*Main!$D$3))*(1+VLOOKUP('Random Years'!L10,'Hist Returns'!$A$12:$D$107,3,FALSE))","v":{"v":62060.756507074795,"d":"62,061"}},{"$f":"($A10-$A9)/365.25*(O9+(Main!$I16*Main!$D$3))*(1+VLOOKUP('Random Years'!M10,'Hist Returns'!$A$12:$D$107,3,FALSE))","v":{"v":60721.423266059304,"d":"60,721"}},{"$f":"($A10-$A9)/365.25*(P9+(Main!$I16*Main!$D$3))*(1+VLOOKUP('Random Years'!N10,'Hist Returns'!$A$12:$D$107,3,FALSE))","v":{"v":49771.05929574822,"d":"49,771"}},{"$f":"($A10-$A9)/365.25*(Q9+(Main!$I16*Main!$D$3))*(1+VLOOKUP('Random Years'!O10,'Hist Returns'!$A$12:$D$107,3,FALSE))","v":{"v":47293.00518988478,"d":"47,293"}},{"$f":"($A10-$A9)/365.25*(R9+(Main!$I16*Main!$D$3))*(1+VLOOKUP('Random Years'!P10,'Hist Returns'!$A$12:$D$107,3,FALSE))","v":{"v":53409.38104494665,"d":"53,409"}},{"$f":"($A10-$A9)/365.25*(S9+(Main!$I16*Main!$D$3))*(1+VLOOKUP('Random Years'!Q10,'Hist Returns'!$A$12:$D$107,3,FALSE))","v":{"v":48919.06514449822,"d":"48,919"}},{"$f":"($A10-$A9)/365.25*(T9+(Main!$I16*Main!$D$3))*(1+VLOOKUP('Random Years'!R10,'Hist Returns'!$A$12:$D$107,3,FALSE))","v":{"v":71710.18042844566,"d":"71,710"}},{"$f":"($A10-$A9)/365.25*(U9+(Main!$I16*Main!$D$3))*(1+VLOOKUP('Random Years'!S10,'Hist Returns'!$A$12:$D$107,3,FALSE))","v":{"v":65580.21436481526,"d":"65,580"}},{"$f":"($A10-$A9)/365.25*(V9+(Main!$I16*Main!$D$3))*(1+VLOOKUP('Random Years'!T10,'Hist Returns'!$A$12:$D$107,3,FALSE))","v":{"v":51786.64681746284,"d":"51,787"}},{"$f":"($A10-$A9)/365.25*(W9+(Main!$I16*Main!$D$3))*(1+VLOOKUP('Random Years'!U10,'Hist Returns'!$A$12:$D$107,3,FALSE))","v":{"v":71427.15321158149,"d":"71,427"}},{"$f":"($A10-$A9)/365.25*(X9+(Main!$I16*Main!$D$3))*(1+VLOOKUP('Random Years'!V10,'Hist Returns'!$A$12:$D$107,3,FALSE))","v":{"v":54071.96145692867,"d":"54,072"}},{"$f":"($A10-$A9)/365.25*(Y9+(Main!$I16*Main!$D$3))*(1+VLOOKUP('Random Years'!W10,'Hist Returns'!$A$12:$D$107,3,FALSE))","v":{"v":45249.9077915973,"d":"45,250"}},{"$f":"($A10-$A9)/365.25*(Z9+(Main!$I16*Main!$D$3))*(1+VLOOKUP('Random Years'!X10,'Hist Returns'!$A$12:$D$107,3,FALSE))","v":{"v":51919.6620567601,"d":"51,920"}},{"$f":"($A10-$A9)/365.25*(AA9+(Main!$I16*Main!$D$3))*(1+VLOOKUP('Random Years'!Y10,'Hist Returns'!$A$12:$D$107,3,FALSE))","v":{"v":50300.90633558726,"d":"50,301"}},{"$f":"($A10-$A9)/365.25*(AB9+(Main!$I16*Main!$D$3))*(1+VLOOKUP('Random Years'!Z10,'Hist Returns'!$A$12:$D$107,3,FALSE))","v":{"v":52295.79312089221,"d":"52,296"}},{"$f":"($A10-$A9)/365.25*(AC9+(Main!$I16*Main!$D$3))*(1+VLOOKUP('Random Years'!AA10,'Hist Returns'!$A$12:$D$107,3,FALSE))","v":{"v":58040.45587469811,"d":"58,040"}},{"$f":"($A10-$A9)/365.25*(AD9+(Main!$I16*Main!$D$3))*(1+VLOOKUP('Random Years'!AB10,'Hist Returns'!$A$12:$D$107,3,FALSE))","v":{"v":58141.5442031229,"d":"58,142"}},{"$f":"($A10-$A9)/365.25*(AE9+(Main!$I16*Main!$D$3))*(1+VLOOKUP('Random Years'!AC10,'Hist Returns'!$A$12:$D$107,3,FALSE))","v":{"v":55605.49006747764,"d":"55,605"}},{"$f":"($A10-$A9)/365.25*(AF9+(Main!$I16*Main!$D$3))*(1+VLOOKUP('Random Years'!AD10,'Hist Returns'!$A$12:$D$107,3,FALSE))","v":{"v":53255.31569651896,"d":"53,255"}},{"$f":"($A10-$A9)/365.25*(AG9+(Main!$I16*Main!$D$3))*(1+VLOOKUP('Random Years'!AE10,'Hist Returns'!$A$12:$D$107,3,FALSE))","v":{"v":52073.46146132277,"d":"52,073"}},{"$f":"($A10-$A9)/365.25*(AH9+(Main!$I16*Main!$D$3))*(1+VLOOKUP('Random Years'!AF10,'Hist Returns'!$A$12:$D$107,3,FALSE))","v":{"v":50757.005858379445,"d":"50,757"}},{"$f":"($A10-$A9)/365.25*(AI9+(Main!$I16*Main!$D$3))*(1+VLOOKUP('Random Years'!AG10,'Hist Returns'!$A$12:$D$107,3,FALSE))","v":{"v":60462.344141202295,"d":"60,462"}},{"$f":"($A10-$A9)/365.25*(AJ9+(Main!$I16*Main!$D$3))*(1+VLOOKUP('Random Years'!AH10,'Hist Returns'!$A$12:$D$107,3,FALSE))","v":{"v":53362.5864852172,"d":"53,363"}},{"$f":"($A10-$A9)/365.25*(AK9+(Main!$I16*Main!$D$3))*(1+VLOOKUP('Random Years'!AI10,'Hist Returns'!$A$12:$D$107,3,FALSE))","v":{"v":50518.255644704834,"d":"50,518"}},{"$f":"($A10-$A9)/365.25*(AL9+(Main!$I16*Main!$D$3))*(1+VLOOKUP('Random Years'!AJ10,'Hist Returns'!$A$12:$D$107,3,FALSE))","v":{"v":53442.30323450375,"d":"53,442"}},{"$f":"($A10-$A9)/365.25*(AM9+(Main!$I16*Main!$D$3))*(1+VLOOKUP('Random Years'!AK10,'Hist Returns'!$A$12:$D$107,3,FALSE))","v":{"v":60151.386820041305,"d":"60,151"}},{"$f":"($A10-$A9)/365.25*(AN9+(Main!$I16*Main!$D$3))*(1+VLOOKUP('Random Years'!AL10,'Hist Returns'!$A$12:$D$107,3,FALSE))","v":{"v":63492.31271544855,"d":"63,492"}},{"$f":"($A10-$A9)/365.25*(AO9+(Main!$I16*Main!$D$3))*(1+VLOOKUP('Random Years'!AM10,'Hist Returns'!$A$12:$D$107,3,FALSE))","v":{"v":76265.20695545967,"d":"76,265"}},{"$f":"($A10-$A9)/365.25*(AP9+(Main!$I16*Main!$D$3))*(1+VLOOKUP('Random Years'!AN10,'Hist Returns'!$A$12:$D$107,3,FALSE))","v":{"v":48927.97817658703,"d":"48,928"}},{"$f":"($A10-$A9)/365.25*(AQ9+(Main!$I16*Main!$D$3))*(1+VLOOKUP('Random Years'!AO10,'Hist Returns'!$A$12:$D$107,3,FALSE))","v":{"v":49516.82237466728,"d":"49,517"}},{"$f":"($A10-$A9)/365.25*(AR9+(Main!$I16*Main!$D$3))*(1+VLOOKUP('Random Years'!AP10,'Hist Returns'!$A$12:$D$107,3,FALSE))","v":{"v":49291.383236000765,"d":"49,291"}},{"$f":"($A10-$A9)/365.25*(AS9+(Main!$I16*Main!$D$3))*(1+VLOOKUP('Random Years'!AQ10,'Hist Returns'!$A$12:$D$107,3,FALSE))","v":{"v":54103.380938248905,"d":"54,103"}},{"$f":"($A10-$A9)/365.25*(AT9+(Main!$I16*Main!$D$3))*(1+VLOOKUP('Random Years'!AR10,'Hist Returns'!$A$12:$D$107,3,FALSE))","v":{"v":51895.76865868968,"d":"51,896"}},{"$f":"($A10-$A9)/365.25*(AU9+(Main!$I16*Main!$D$3))*(1+VLOOKUP('Random Years'!AS10,'Hist Returns'!$A$12:$D$107,3,FALSE))","v":{"v":53727.479365657775,"d":"53,727"}},{"$f":"($A10-$A9)/365.25*(AV9+(Main!$I16*Main!$D$3))*(1+VLOOKUP('Random Years'!AT10,'Hist Returns'!$A$12:$D$107,3,FALSE))","v":{"v":45481.71078127059,"d":"45,482"}},{"$f":"($A10-$A9)/365.25*(AW9+(Main!$I16*Main!$D$3))*(1+VLOOKUP('Random Years'!AU10,'Hist Returns'!$A$12:$D$107,3,FALSE))","v":{"v":54777.704157441774,"d":"54,778"}},{"$f":"($A10-$A9)/365.25*(AX9+(Main!$I16*Main!$D$3))*(1+VLOOKUP('Random Years'!AV10,'Hist Returns'!$A$12:$D$107,3,FALSE))","v":{"v":51877.5356290143,"d":"51,878"}},{"$f":"($A10-$A9)/365.25*(AY9+(Main!$I16*Main!$D$3))*(1+VLOOKUP('Random Years'!AW10,'Hist Returns'!$A$12:$D$107,3,FALSE))","v":{"v":44667.69064417146,"d":"44,668"}},{"$f":"($A10-$A9)/365.25*(AZ9+(Main!$I16*Main!$D$3))*(1+VLOOKUP('Random Years'!AX10,'Hist Returns'!$A$12:$D$107,3,FALSE))","v":{"v":53480.012286239304,"d":"53,480"}},{"$f":"($A10-$A9)/365.25*(BA9+(Main!$I16*Main!$D$3))*(1+VLOOKUP('Random Years'!AY10,'Hist Returns'!$A$12:$D$107,3,FALSE))","v":{"v":59872.30175976562,"d":"59,872"}},{"$f":"($A10-$A9)/365.25*(BB9+(Main!$I16*Main!$D$3))*(1+VLOOKUP('Random Years'!AZ10,'Hist Returns'!$A$12:$D$107,3,FALSE))","v":{"v":63998.673570818966,"d":"63,999"}},{"$f":"($A10-$A9)/365.25*(BC9+(Main!$I16*Main!$D$3))*(1+VLOOKUP('Random Years'!BA10,'Hist Returns'!$A$12:$D$107,3,FALSE))","v":{"v":70035.72032628169,"d":"70,036"}},{"$f":"($A10-$A9)/365.25*(BD9+(Main!$I16*Main!$D$3))*(1+VLOOKUP('Random Years'!BB10,'Hist Returns'!$A$12:$D$107,3,FALSE))","v":{"v":45751.939311883325,"d":"45,752"}},{"$f":"($A10-$A9)/365.25*(BE9+(Main!$I16*Main!$D$3))*(1+VLOOKUP('Random Years'!BC10,'Hist Returns'!$A$12:$D$107,3,FALSE))","v":{"v":53328.315016439454,"d":"53,328"}},{"$f":"($A10-$A9)/365.25*(BF9+(Main!$I16*Main!$D$3))*(1+VLOOKUP('Random Years'!BD10,'Hist Returns'!$A$12:$D$107,3,FALSE))","v":{"v":62308.37498688128,"d":"62,308"}},{"$f":"($A10-$A9)/365.25*(BG9+(Main!$I16*Main!$D$3))*(1+VLOOKUP('Random Years'!BE10,'Hist Returns'!$A$12:$D$107,3,FALSE))","v":{"v":51633.410357125555,"d":"51,633"}},{"$f":"($A10-$A9)/365.25*(BH9+(Main!$I16*Main!$D$3))*(1+VLOOKUP('Random Years'!BF10,'Hist Returns'!$A$12:$D$107,3,FALSE))","v":{"v":48773.38374589389,"d":"48,773"}},{"$f":"($A10-$A9)/365.25*(BI9+(Main!$I16*Main!$D$3))*(1+VLOOKUP('Random Years'!BG10,'Hist Returns'!$A$12:$D$107,3,FALSE))","v":{"v":48000.65146280676,"d":"48,001"}},{"$f":"($A10-$A9)/365.25*(BJ9+(Main!$I16*Main!$D$3))*(1+VLOOKUP('Random Years'!BH10,'Hist Returns'!$A$12:$D$107,3,FALSE))","v":{"v":63727.91246029025,"d":"63,728"}},{"$f":"($A10-$A9)/365.25*(BK9+(Main!$I16*Main!$D$3))*(1+VLOOKUP('Random Years'!BI10,'Hist Returns'!$A$12:$D$107,3,FALSE))","v":{"v":49527.71718114197,"d":"49,528"}},{"$f":"($A10-$A9)/365.25*(BL9+(Main!$I16*Main!$D$3))*(1+VLOOKUP('Random Years'!BJ10,'Hist Returns'!$A$12:$D$107,3,FALSE))","v":{"v":52404.858313375786,"d":"52,405"}},{"$f":"($A10-$A9)/365.25*(BM9+(Main!$I16*Main!$D$3))*(1+VLOOKUP('Random Years'!BK10,'Hist Returns'!$A$12:$D$107,3,FALSE))","v":{"v":53420.80378180124,"d":"53,421"}},{"$f":"($A10-$A9)/365.25*(BN9+(Main!$I16*Main!$D$3))*(1+VLOOKUP('Random Years'!BL10,'Hist Returns'!$A$12:$D$107,3,FALSE))","v":{"v":56492.19366014916,"d":"56,492"}},{"$f":"($A10-$A9)/365.25*(BO9+(Main!$I16*Main!$D$3))*(1+VLOOKUP('Random Years'!BM10,'Hist Returns'!$A$12:$D$107,3,FALSE))","v":{"v":59922.090544196144,"d":"59,922"}},{"$f":"($A10-$A9)/365.25*(BP9+(Main!$I16*Main!$D$3))*(1+VLOOKUP('Random Years'!BN10,'Hist Returns'!$A$12:$D$107,3,FALSE))","v":{"v":46855.53144289576,"d":"46,856"}},{"$f":"($A10-$A9)/365.25*(BQ9+(Main!$I16*Main!$D$3))*(1+VLOOKUP('Random Years'!BO10,'Hist Returns'!$A$12:$D$107,3,FALSE))","v":{"v":52295.19685651786,"d":"52,295"}},{"$f":"($A10-$A9)/365.25*(BR9+(Main!$I16*Main!$D$3))*(1+VLOOKUP('Random Years'!BP10,'Hist Returns'!$A$12:$D$107,3,FALSE))","v":{"v":59468.1608180446,"d":"59,468"}},{"$f":"($A10-$A9)/365.25*(BS9+(Main!$I16*Main!$D$3))*(1+VLOOKUP('Random Years'!BQ10,'Hist Returns'!$A$12:$D$107,3,FALSE))","v":{"v":53931.21316059965,"d":"53,931"}},{"$f":"($A10-$A9)/365.25*(BT9+(Main!$I16*Main!$D$3))*(1+VLOOKUP('Random Years'!BR10,'Hist Returns'!$A$12:$D$107,3,FALSE))","v":{"v":56571.37645573171,"d":"56,571"}},{"$f":"($A10-$A9)/365.25*(BU9+(Main!$I16*Main!$D$3))*(1+VLOOKUP('Random Years'!BS10,'Hist Returns'!$A$12:$D$107,3,FALSE))","v":{"v":64641.98844872777,"d":"64,642"}},{"$f":"($A10-$A9)/365.25*(BV9+(Main!$I16*Main!$D$3))*(1+VLOOKUP('Random Years'!BT10,'Hist Returns'!$A$12:$D$107,3,FALSE))","v":{"v":50750.94893735344,"d":"50,751"}},{"$f":"($A10-$A9)/365.25*(BW9+(Main!$I16*Main!$D$3))*(1+VLOOKUP('Random Years'!BU10,'Hist Returns'!$A$12:$D$107,3,FALSE))","v":{"v":50896.85555403733,"d":"50,897"}},{"$f":"($A10-$A9)/365.25*(BX9+(Main!$I16*Main!$D$3))*(1+VLOOKUP('Random Years'!BV10,'Hist Returns'!$A$12:$D$107,3,FALSE))","v":{"v":58197.887010611266,"d":"58,198"}},{"$f":"($A10-$A9)/365.25*(BY9+(Main!$I16*Main!$D$3))*(1+VLOOKUP('Random Years'!BW10,'Hist Returns'!$A$12:$D$107,3,FALSE))","v":{"v":58744.715705168535,"d":"58,745"}},{"$f":"($A10-$A9)/365.25*(BZ9+(Main!$I16*Main!$D$3))*(1+VLOOKUP('Random Years'!BX10,'Hist Returns'!$A$12:$D$107,3,FALSE))","v":{"v":49604.55885648183,"d":"49,605"}},{"$f":"($A10-$A9)/365.25*(CA9+(Main!$I16*Main!$D$3))*(1+VLOOKUP('Random Years'!BY10,'Hist Returns'!$A$12:$D$107,3,FALSE))","v":{"v":51689.87931330597,"d":"51,690"}},{"$f":"($A10-$A9)/365.25*(CB9+(Main!$I16*Main!$D$3))*(1+VLOOKUP('Random Years'!BZ10,'Hist Returns'!$A$12:$D$107,3,FALSE))","v":{"v":54881.2426367652,"d":"54,881"}},{"$f":"($A10-$A9)/365.25*(CC9+(Main!$I16*Main!$D$3))*(1+VLOOKUP('Random Years'!CA10,'Hist Returns'!$A$12:$D$107,3,FALSE))","v":{"v":58234.97862970175,"d":"58,235"}},{"$f":"($A10-$A9)/365.25*(CD9+(Main!$I16*Main!$D$3))*(1+VLOOKUP('Random Years'!CB10,'Hist Returns'!$A$12:$D$107,3,FALSE))","v":{"v":51823.19686952148,"d":"51,823"}},{"$f":"($A10-$A9)/365.25*(CE9+(Main!$I16*Main!$D$3))*(1+VLOOKUP('Random Years'!CC10,'Hist Returns'!$A$12:$D$107,3,FALSE))","v":{"v":53085.95467410074,"d":"53,086"}},{"$f":"($A10-$A9)/365.25*(CF9+(Main!$I16*Main!$D$3))*(1+VLOOKUP('Random Years'!CD10,'Hist Returns'!$A$12:$D$107,3,FALSE))","v":{"v":61200.39527696316,"d":"61,200"}},{"$f":"($A10-$A9)/365.25*(CG9+(Main!$I16*Main!$D$3))*(1+VLOOKUP('Random Years'!CE10,'Hist Returns'!$A$12:$D$107,3,FALSE))","v":{"v":52199.16199077304,"d":"52,199"}},{"$f":"($A10-$A9)/365.25*(CH9+(Main!$I16*Main!$D$3))*(1+VLOOKUP('Random Years'!CF10,'Hist Returns'!$A$12:$D$107,3,FALSE))","v":{"v":63093.97534146053,"d":"63,094"}},{"$f":"($A10-$A9)/365.25*(CI9+(Main!$I16*Main!$D$3))*(1+VLOOKUP('Random Years'!CG10,'Hist Returns'!$A$12:$D$107,3,FALSE))","v":{"v":58594.5934230076,"d":"58,595"}},{"$f":"($A10-$A9)/365.25*(CJ9+(Main!$I16*Main!$D$3))*(1+VLOOKUP('Random Years'!CH10,'Hist Returns'!$A$12:$D$107,3,FALSE))","v":{"v":58149.007704411604,"d":"58,149"}},{"$f":"($A10-$A9)/365.25*(CK9+(Main!$I16*Main!$D$3))*(1+VLOOKUP('Random Years'!CI10,'Hist Returns'!$A$12:$D$107,3,FALSE))","v":{"v":49535.254330590826,"d":"49,535"}},{"$f":"($A10-$A9)/365.25*(CL9+(Main!$I16*Main!$D$3))*(1+VLOOKUP('Random Years'!CJ10,'Hist Returns'!$A$12:$D$107,3,FALSE))","v":{"v":48805.478148272145,"d":"48,805"}},{"$f":"($A10-$A9)/365.25*(CM9+(Main!$I16*Main!$D$3))*(1+VLOOKUP('Random Years'!CK10,'Hist Returns'!$A$12:$D$107,3,FALSE))","v":{"v":53008.57656149074,"d":"53,009"}},{"$f":"($A10-$A9)/365.25*(CN9+(Main!$I16*Main!$D$3))*(1+VLOOKUP('Random Years'!CL10,'Hist Returns'!$A$12:$D$107,3,FALSE))","v":{"v":53926.5605110211,"d":"53,927"}},{"$f":"($A10-$A9)/365.25*(CO9+(Main!$I16*Main!$D$3))*(1+VLOOKUP('Random Years'!CM10,'Hist Returns'!$A$12:$D$107,3,FALSE))","v":{"v":52822.53073600715,"d":"52,823"}},{"$f":"($A10-$A9)/365.25*(CP9+(Main!$I16*Main!$D$3))*(1+VLOOKUP('Random Years'!CN10,'Hist Returns'!$A$12:$D$107,3,FALSE))","v":{"v":69213.3311579483,"d":"69,213"}},{"$f":"($A10-$A9)/365.25*(CQ9+(Main!$I16*Main!$D$3))*(1+VLOOKUP('Random Years'!CO10,'Hist Returns'!$A$12:$D$107,3,FALSE))","v":{"v":52439.05239014647,"d":"52,439"}},{"$f":"($A10-$A9)/365.25*(CR9+(Main!$I16*Main!$D$3))*(1+VLOOKUP('Random Years'!CP10,'Hist Returns'!$A$12:$D$107,3,FALSE))","v":{"v":49385.08440713875,"d":"49,385"}},{"$f":"($A10-$A9)/365.25*(CS9+(Main!$I16*Main!$D$3))*(1+VLOOKUP('Random Years'!CQ10,'Hist Returns'!$A$12:$D$107,3,FALSE))","v":{"v":49879.9175976603,"d":"49,880"}},{"$f":"($A10-$A9)/365.25*(CT9+(Main!$I16*Main!$D$3))*(1+VLOOKUP('Random Years'!CR10,'Hist Returns'!$A$12:$D$107,3,FALSE))","v":{"v":64104.01117387024,"d":"64,104"}},{"$f":"($A10-$A9)/365.25*(CU9+(Main!$I16*Main!$D$3))*(1+VLOOKUP('Random Years'!CS10,'Hist Returns'!$A$12:$D$107,3,FALSE))","v":{"v":59760.78905576373,"d":"59,761"}},{"$f":"($A10-$A9)/365.25*(CV9+(Main!$I16*Main!$D$3))*(1+VLOOKUP('Random Years'!CT10,'Hist Returns'!$A$12:$D$107,3,FALSE))","v":{"v":52233.87776026667,"d":"52,234"}},{"$f":"($A10-$A9)/365.25*(CW9+(Main!$I16*Main!$D$3))*(1+VLOOKUP('Random Years'!CU10,'Hist Returns'!$A$12:$D$107,3,FALSE))","v":{"v":54481.12971517066,"d":"54,481"}},{"$f":"($A10-$A9)/365.25*(CX9+(Main!$I16*Main!$D$3))*(1+VLOOKUP('Random Years'!CV10,'Hist Returns'!$A$12:$D$107,3,FALSE))","v":{"v":53182.9778392381,"d":"53,183"}}]
[{"$f":"Main!A17","v":"2032-12-30"},{"$f":"Main!B17","v":78},{"$f":"($A11-$A10)/365.25*(C10+(Main!$I17*Main!$D$3))*(1+VLOOKUP('Random Years'!A11,'Hist Returns'!$A$12:$D$107,3,FALSE))","v":{"v":59847.344220451414,"d":"59,847"}},{"$f":"($A11-$A10)/365.25*(D10+(Main!$I17*Main!$D$3))*(1+VLOOKUP('Random Years'!B11,'Hist Returns'!$A$12:$D$107,3,FALSE))","v":{"v":50020.454660014846,"d":"50,020"}},{"$f":"($A11-$A10)/365.25*(E10+(Main!$I17*Main!$D$3))*(1+VLOOKUP('Random Years'!C11,'Hist Returns'!$A$12:$D$107,3,FALSE))","v":{"v":49975.21987244828,"d":"49,975"}},{"$f":"($A11-$A10)/365.25*(F10+(Main!$I17*Main!$D$3))*(1+VLOOKUP('Random Years'!D11,'Hist Returns'!$A$12:$D$107,3,FALSE))","v":{"v":56044.06210812274,"d":"56,044"}},{"$f":"($A11-$A10)/365.25*(G10+(Main!$I17*Main!$D$3))*(1+VLOOKUP('Random Years'!E11,'Hist Returns'!$A$12:$D$107,3,FALSE))","v":{"v":52789.34281904477,"d":"52,789"}},{"$f":"($A11-$A10)/365.25*(H10+(Main!$I17*Main!$D$3))*(1+VLOOKUP('Random Years'!F11,'Hist Returns'!$A$12:$D$107,3,FALSE))","v":{"v":53147.860374353266,"d":"53,148"}},{"$f":"($A11-$A10)/365.25*(I10+(Main!$I17*Main!$D$3))*(1+VLOOKUP('Random Years'!G11,'Hist Returns'!$A$12:$D$107,3,FALSE))","v":{"v":50544.64446901561,"d":"50,545"}},{"$f":"($A11-$A10)/365.25*(J10+(Main!$I17*Main!$D$3))*(1+VLOOKUP('Random Years'!H11,'Hist Returns'!$A$12:$D$107,3,FALSE))","v":{"v":68953.59973356125,"d":"68,954"}},{"$f":"($A11-$A10)/365.25*(K10+(Main!$I17*Main!$D$3))*(1+VLOOKUP('Random Years'!I11,'Hist Returns'!$A$12:$D$107,3,FALSE))","v":{"v":75705.60503353248,"d":"75,706"}},{"$f":"($A11-$A10)/365.25*(L10+(Main!$I17*Main!$D$3))*(1+VLOOKUP('Random Years'!J11,'Hist Returns'!$A$12:$D$107,3,FALSE))","v":{"v":47709.875469366016,"d":"47,710"}},{"$f":"($A11-$A10)/365.25*(M10+(Main!$I17*Main!$D$3))*(1+VLOOKUP('Random Years'!K11,'Hist Returns'!$A$12:$D$107,3,FALSE))","v":{"v":46940.21956380985,"d":"46,940"}},{"$f":"($A11-$A10)/365.25*(N10+(Main!$I17*Main!$D$3))*(1+VLOOKUP('Random Years'!L11,'Hist Returns'!$A$12:$D$107,3,FALSE))","v":{"v":60738.54511107788,"d":"60,739"}},{"$f":"($A11-$A10)/365.25*(O10+(Main!$I17*Main!$D$3))*(1+VLOOKUP('Random Years'!M11,'Hist Returns'!$A$12:$D$107,3,FALSE))","v":{"v":60108.04347113148,"d":"60,108"}},{"$f":"($A11-$A10)/365.25*(P10+(Main!$I17*Main!$D$3))*(1+VLOOKUP('Random Years'!N11,'Hist Returns'!$A$12:$D$107,3,FALSE))","v":{"v":48719.24574751023,"d":"48,719"}},{"$f":"($A11-$A10)/365.25*(Q10+(Main!$I17*Main!$D$3))*(1+VLOOKUP('Random Years'!O11,'Hist Returns'!$A$12:$D$107,3,FALSE))","v":{"v":47914.989877393964,"d":"47,915"}},{"$f":"($A11-$A10)/365.25*(R10+(Main!$I17*Main!$D$3))*(1+VLOOKUP('Random Years'!P11,'Hist Returns'!$A$12:$D$107,3,FALSE))","v":{"v":52397.34899786655,"d":"52,397"}},{"$f":"($A11-$A10)/365.25*(S10+(Main!$I17*Main!$D$3))*(1+VLOOKUP('Random Years'!Q11,'Hist Returns'!$A$12:$D$107,3,FALSE))","v":{"v":48470.29967899016,"d":"48,470"}},{"$f":"($A11-$A10)/365.25*(T10+(Main!$I17*Main!$D$3))*(1+VLOOKUP('Random Years'!R11,'Hist Returns'!$A$12:$D$107,3,FALSE))","v":{"v":71568.4905536902,"d":"71,568"}},{"$f":"($A11-$A10)/365.25*(U10+(Main!$I17*Main!$D$3))*(1+VLOOKUP('Random Years'!S11,'Hist Returns'!$A$12:$D$107,3,FALSE))","v":{"v":67054.07508382849,"d":"67,054"}},{"$f":"($A11-$A10)/365.25*(V10+(Main!$I17*Main!$D$3))*(1+VLOOKUP('Random Years'!T11,'Hist Returns'!$A$12:$D$107,3,FALSE))","v":{"v":52573.99819878569,"d":"52,574"}},{"$f":"($A11-$A10)/365.25*(W10+(Main!$I17*Main!$D$3))*(1+VLOOKUP('Random Years'!U11,'Hist Returns'!$A$12:$D$107,3,FALSE))","v":{"v":69903.5324384475,"d":"69,904"}},{"$f":"($A11-$A10)/365.25*(X10+(Main!$I17*Main!$D$3))*(1+VLOOKUP('Random Years'!V11,'Hist Returns'!$A$12:$D$107,3,FALSE))","v":{"v":52724.881450467656,"d":"52,725"}},{"$f":"($A11-$A10)/365.25*(Y10+(Main!$I17*Main!$D$3))*(1+VLOOKUP('Random Years'!W11,'Hist Returns'!$A$12:$D$107,3,FALSE))","v":{"v":45090.4830015176,"d":"45,090"}},{"$f":"($A11-$A10)/365.25*(Z10+(Main!$I17*Main!$D$3))*(1+VLOOKUP('Random Years'!X11,'Hist Returns'!$A$12:$D$107,3,FALSE))","v":{"v":52646.34724152835,"d":"52,646"}},{"$f":"($A11-$A10)/365.25*(AA10+(Main!$I17*Main!$D$3))*(1+VLOOKUP('Random Years'!Y11,'Hist Returns'!$A$12:$D$107,3,FALSE))","v":{"v":49478.412199884355,"d":"49,478"}},{"$f":"($A11-$A10)/365.25*(AB10+(Main!$I17*Main!$D$3))*(1+VLOOKUP('Random Years'!Z11,'Hist Returns'!$A$12:$D$107,3,FALSE))","v":{"v":52328.66809956571,"d":"52,329"}},{"$f":"($A11-$A10)/365.25*(AC10+(Main!$I17*Main!$D$3))*(1+VLOOKUP('Random Years'!AA11,'Hist Returns'!$A$12:$D$107,3,FALSE))","v":{"v":59055.757780239095,"d":"59,056"}},{"$f":"($A11-$A10)/365.25*(AD10+(Main!$I17*Main!$D$3))*(1+VLOOKUP('Random Years'!AB11,'Hist Returns'!$A$12:$D$107,3,FALSE))","v":{"v":56614.71946774342,"d":"56,615"}},{"$f":"($A11-$A10)/365.25*(AE10+(Main!$I17*Main!$D$3))*(1+VLOOKUP('Random Years'!AC11,'Hist Returns'!$A$12:$D$107,3,FALSE))","v":{"v":56614.69658647157,"d":"56,615"}},{"$f":"($A11-$A10)/365.25*(AF10+(Main!$I17*Main!$D$3))*(1+VLOOKUP('Random Years'!AD11,'Hist Returns'!$A$12:$D$107,3,FALSE))","v":{"v":52572.74218533242,"d":"52,573"}},{"$f":"($A11-$A10)/365.25*(AG10+(Main!$I17*Main!$D$3))*(1+VLOOKUP('Random Years'!AE11,'Hist Returns'!$A$12:$D$107,3,FALSE))","v":{"v":52544.22658460694,"d":"52,544"}},{"$f":"($A11-$A10)/365.25*(AH10+(Main!$I17*Main!$D$3))*(1+VLOOKUP('Random Years'!AF11,'Hist Returns'!$A$12:$D$107,3,FALSE))","v":{"v":52160.433394961496,"d":"52,160"}},{"$f":"($A11-$A10)/365.25*(AI10+(Main!$I17*Main!$D$3))*(1+VLOOKUP('Random Years'!AG11,'Hist Returns'!$A$12:$D$107,3,FALSE))","v":{"v":62304.58461031943,"d":"62,305"}},{"$f":"($A11-$A10)/365.25*(AJ10+(Main!$I17*Main!$D$3))*(1+VLOOKUP('Random Years'!AH11,'Hist Returns'!$A$12:$D$107,3,FALSE))","v":{"v":54168.8603105235,"d":"54,169"}},{"$f":"($A11-$A10)/365.25*(AK10+(Main!$I17*Main!$D$3))*(1+VLOOKUP('Random Years'!AI11,'Hist Returns'!$A$12:$D$107,3,FALSE))","v":{"v":49006.33478079226,"d":"49,006"}},{"$f":"($A11-$A10)/365.25*(AL10+(Main!$I17*Main!$D$3))*(1+VLOOKUP('Random Years'!AJ11,'Hist Returns'!$A$12:$D$107,3,FALSE))","v":{"v":52005.03984327116,"d":"52,005"}},{"$f":"($A11-$A10)/365.25*(AM10+(Main!$I17*Main!$D$3))*(1+VLOOKUP('Random Years'!AK11,'Hist Returns'!$A$12:$D$107,3,FALSE))","v":{"v":58788.07134799606,"d":"58,788"}},{"$f":"($A11-$A10)/365.25*(AN10+(Main!$I17*Main!$D$3))*(1+VLOOKUP('Random Years'!AL11,'Hist Returns'!$A$12:$D$107,3,FALSE))","v":{"v":65649.346151429,"d":"65,649"}},{"$f":"($A11-$A10)/365.25*(AO10+(Main!$I17*Main!$D$3))*(1+VLOOKUP('Random Years'!AM11,'Hist Returns'!$A$12:$D$107,3,FALSE))","v":{"v":79215.42217706624,"d":"79,215"}},{"$f":"($A11-$A10)/365.25*(AP10+(Main!$I17*Main!$D$3))*(1+VLOOKUP('Random Years'!AN11,'Hist Returns'!$A$12:$D$107,3,FALSE))","v":{"v":47422.7308087635,"d":"47,423"}},{"$f":"($A11-$A10)/365.25*(AQ10+(Main!$I17*Main!$D$3))*(1+VLOOKUP('Random Years'!AO11,'Hist Returns'!$A$12:$D$107,3,FALSE))","v":{"v":48117.18389891541,"d":"48,117"}},{"$f":"($A11-$A10)/365.25*(AR10+(Main!$I17*Main!$D$3))*(1+VLOOKUP('Random Years'!AP11,'Hist Returns'!$A$12:$D$107,3,FALSE))","v":{"v":53105.30254699677,"d":"53,105"}},{"$f":"($A11-$A10)/365.25*(AS10+(Main!$I17*Main!$D$3))*(1+VLOOKUP('Random Years'!AQ11,'Hist Returns'!$A$12:$D$107,3,FALSE))","v":{"v":53061.227502016445,"d":"53,061"}},{"$f":"($A11-$A10)/365.25*(AT10+(Main!$I17*Main!$D$3))*(1+VLOOKUP('Random Years'!AR11,'Hist Returns'!$A$12:$D$107,3,FALSE))","v":{"v":57550.715329588915,"d":"57,551"}},{"$f":"($A11-$A10)/365.25*(AU10+(Main!$I17*Main!$D$3))*(1+VLOOKUP('Random Years'!AS11,'Hist Returns'!$A$12:$D$107,3,FALSE))","v":{"v":54621.807161975856,"d":"54,622"}},{"$f":"($A11-$A10)/365.25*(AV10+(Main!$I17*Main!$D$3))*(1+VLOOKUP('Random Years'!AT11,'Hist Returns'!$A$12:$D$107,3,FALSE))","v":{"v":44107.88987126892,"d":"44,108"}},{"$f":"($A11-$A10)/365.25*(AW10+(Main!$I17*Main!$D$3))*(1+VLOOKUP('Random Years'!AU11,'Hist Returns'!$A$12:$D$107,3,FALSE))","v":{"v":54886.014961912,"d":"54,886"}},{"$f":"($A11-$A10)/365.25*(AX10+(Main!$I17*Main!$D$3))*(1+VLOOKUP('Random Years'!AV11,'Hist Returns'!$A$12:$D$107,3,FALSE))","v":{"v":55335.39827793601,"d":"55,335"}},{"$f":"($A11-$A10)/365.25*(AY10+(Main!$I17*Main!$D$3))*(1+VLOOKUP('Random Years'!AW11,'Hist Returns'!$A$12:$D$107,3,FALSE))","v":{"v":43155.91554382221,"d":"43,156"}},{"$f":"($A11-$A10)/365.25*(AZ10+(Main!$I17*Main!$D$3))*(1+VLOOKUP('Random Years'!AX11,'Hist Returns'!$A$12:$D$107,3,FALSE))","v":{"v":54296.726594507265,"d":"54,297"}},{"$f":"($A11-$A10)/365.25*(BA10+(Main!$I17*Main!$D$3))*(1+VLOOKUP('Random Years'!AY11,'Hist Returns'!$A$12:$D$107,3,FALSE))","v":{"v":61844.28354770936,"d":"61,844"}},{"$f":"($A11-$A10)/365.25*(BB10+(Main!$I17*Main!$D$3))*(1+VLOOKUP('Random Years'!AZ11,'Hist Returns'!$A$12:$D$107,3,FALSE))","v":{"v":64324.803626599474,"d":"64,325"}},{"$f":"($A11-$A10)/365.25*(BC10+(Main!$I17*Main!$D$3))*(1+VLOOKUP('Random Years'!BA11,'Hist Returns'!$A$12:$D$107,3,FALSE))","v":{"v":69491.5937790252,"d":"69,492"}},{"$f":"($A11-$A10)/365.25*(BD10+(Main!$I17*Main!$D$3))*(1+VLOOKUP('Random Years'!BB11,'Hist Returns'!$A$12:$D$107,3,FALSE))","v":{"v":45232.231094836476,"d":"45,232"}},{"$f":"($A11-$A10)/365.25*(BE10+(Main!$I17*Main!$D$3))*(1+VLOOKUP('Random Years'!BC11,'Hist Returns'!$A$12:$D$107,3,FALSE))","v":{"v":53361.50343551243,"d":"53,362"}},{"$f":"($A11-$A10)/365.25*(BF10+(Main!$I17*Main!$D$3))*(1+VLOOKUP('Random Years'!BD11,'Hist Returns'!$A$12:$D$107,3,FALSE))","v":{"v":61719.0449510573,"d":"61,719"}},{"$f":"($A11-$A10)/365.25*(BG10+(Main!$I17*Main!$D$3))*(1+VLOOKUP('Random Years'!BE11,'Hist Returns'!$A$12:$D$107,3,FALSE))","v":{"v":53113.742926693,"d":"53,114"}},{"$f":"($A11-$A10)/365.25*(BH10+(Main!$I17*Main!$D$3))*(1+VLOOKUP('Random Years'!BF11,'Hist Returns'!$A$12:$D$107,3,FALSE))","v":{"v":47244.50343413113,"d":"47,245"}},{"$f":"($A11-$A10)/365.25*(BI10+(Main!$I17*Main!$D$3))*(1+VLOOKUP('Random Years'!BG11,'Hist Returns'!$A$12:$D$107,3,FALSE))","v":{"v":47194.49233283731,"d":"47,194"}},{"$f":"($A11-$A10)/365.25*(BJ10+(Main!$I17*Main!$D$3))*(1+VLOOKUP('Random Years'!BH11,'Hist Returns'!$A$12:$D$107,3,FALSE))","v":{"v":64182.8676907413,"d":"64,183"}},{"$f":"($A11-$A10)/365.25*(BK10+(Main!$I17*Main!$D$3))*(1+VLOOKUP('Random Years'!BI11,'Hist Returns'!$A$12:$D$107,3,FALSE))","v":{"v":47998.54670141849,"d":"47,999"}},{"$f":"($A11-$A10)/365.25*(BL10+(Main!$I17*Main!$D$3))*(1+VLOOKUP('Random Years'!BJ11,'Hist Returns'!$A$12:$D$107,3,FALSE))","v":{"v":55156.936110648065,"d":"55,157"}},{"$f":"($A11-$A10)/365.25*(BM10+(Main!$I17*Main!$D$3))*(1+VLOOKUP('Random Years'!BK11,'Hist Returns'!$A$12:$D$107,3,FALSE))","v":{"v":54328.24070515481,"d":"54,328"}},{"$f":"($A11-$A10)/365.25*(BN10+(Main!$I17*Main!$D$3))*(1+VLOOKUP('Random Years'!BL11,'Hist Returns'!$A$12:$D$107,3,FALSE))","v":{"v":57322.93019239694,"d":"57,323"}},{"$f":"($A11-$A10)/365.25*(BO10+(Main!$I17*Main!$D$3))*(1+VLOOKUP('Random Years'!BM11,'Hist Returns'!$A$12:$D$107,3,FALSE))","v":{"v":58470.641655651394,"d":"58,471"}},{"$f":"($A11-$A10)/365.25*(BP10+(Main!$I17*Main!$D$3))*(1+VLOOKUP('Random Years'!BN11,'Hist Returns'!$A$12:$D$107,3,FALSE))","v":{"v":49142.81038380894,"d":"49,143"}},{"$f":"($A11-$A10)/365.25*(BQ10+(Main!$I17*Main!$D$3))*(1+VLOOKUP('Random Years'!BO11,'Hist Returns'!$A$12:$D$107,3,FALSE))","v":{"v":51372.68991513883,"d":"51,373"}},{"$f":"($A11-$A10)/365.25*(BR10+(Main!$I17*Main!$D$3))*(1+VLOOKUP('Random Years'!BP11,'Hist Returns'!$A$12:$D$107,3,FALSE))","v":{"v":59892.787910969266,"d":"59,893"}},{"$f":"($A11-$A10)/365.25*(BS10+(Main!$I17*Main!$D$3))*(1+VLOOKUP('Random Years'!BQ11,'Hist Returns'!$A$12:$D$107,3,FALSE))","v":{"v":55014.34200372265,"d":"55,014"}},{"$f":"($A11-$A10)/365.25*(BT10+(Main!$I17*Main!$D$3))*(1+VLOOKUP('Random Years'!BR11,'Hist Returns'!$A$12:$D$107,3,FALSE))","v":{"v":55067.008000235975,"d":"55,067"}},{"$f":"($A11-$A10)/365.25*(BU10+(Main!$I17*Main!$D$3))*(1+VLOOKUP('Random Years'!BS11,'Hist Returns'!$A$12:$D$107,3,FALSE))","v":{"v":67460.0813442064,"d":"67,460"}},{"$f":"($A11-$A10)/365.25*(BV10+(Main!$I17*Main!$D$3))*(1+VLOOKUP('Random Years'!BT11,'Hist Returns'!$A$12:$D$107,3,FALSE))","v":{"v":50136.54967424899,"d":"50,137"}},{"$f":"($A11-$A10)/365.25*(BW10+(Main!$I17*Main!$D$3))*(1+VLOOKUP('Random Years'!BU11,'Hist Returns'!$A$12:$D$107,3,FALSE))","v":{"v":49510.28023338924,"d":"49,510"}},{"$f":"($A11-$A10)/365.25*(BX10+(Main!$I17*Main!$D$3))*(1+VLOOKUP('Random Years'!BV11,'Hist Returns'!$A$12:$D$107,3,FALSE))","v":{"v":61435.17556878752,"d":"61,435"}},{"$f":"($A11-$A10)/365.25*(BY10+(Main!$I17*Main!$D$3))*(1+VLOOKUP('Random Years'!BW11,'Hist Returns'!$A$12:$D$107,3,FALSE))","v":{"v":57520.85188368583,"d":"57,521"}},{"$f":"($A11-$A10)/365.25*(BZ10+(Main!$I17*Main!$D$3))*(1+VLOOKUP('Random Years'!BX11,'Hist Returns'!$A$12:$D$107,3,FALSE))","v":{"v":50247.713330452025,"d":"50,248"}},{"$f":"($A11-$A10)/365.25*(CA10+(Main!$I17*Main!$D$3))*(1+VLOOKUP('Random Years'!BY11,'Hist Returns'!$A$12:$D$107,3,FALSE))","v":{"v":51538.86004481509,"d":"51,539"}},{"$f":"($A11-$A10)/365.25*(CB10+(Main!$I17*Main!$D$3))*(1+VLOOKUP('Random Years'!BZ11,'Hist Returns'!$A$12:$D$107,3,FALSE))","v":{"v":58635.41347787382,"d":"58,635"}},{"$f":"($A11-$A10)/365.25*(CC10+(Main!$I17*Main!$D$3))*(1+VLOOKUP('Random Years'!CA11,'Hist Returns'!$A$12:$D$107,3,FALSE))","v":{"v":59258.97268003236,"d":"59,259"}},{"$f":"($A11-$A10)/365.25*(CD10+(Main!$I17*Main!$D$3))*(1+VLOOKUP('Random Years'!CB11,'Hist Returns'!$A$12:$D$107,3,FALSE))","v":{"v":51826.62422134691,"d":"51,827"}},{"$f":"($A11-$A10)/365.25*(CE10+(Main!$I17*Main!$D$3))*(1+VLOOKUP('Random Years'!CC11,'Hist Returns'!$A$12:$D$107,3,FALSE))","v":{"v":52142.97092368714,"d":"52,143"}},{"$f":"($A11-$A10)/365.25*(CF10+(Main!$I17*Main!$D$3))*(1+VLOOKUP('Random Years'!CD11,'Hist Returns'!$A$12:$D$107,3,FALSE))","v":{"v":59672.69957509037,"d":"59,673"}},{"$f":"($A11-$A10)/365.25*(CG10+(Main!$I17*Main!$D$3))*(1+VLOOKUP('Random Years'!CE11,'Hist Returns'!$A$12:$D$107,3,FALSE))","v":{"v":51140.043931802495,"d":"51,140"}},{"$f":"($A11-$A10)/365.25*(CH10+(Main!$I17*Main!$D$3))*(1+VLOOKUP('Random Years'!CF11,'Hist Returns'!$A$12:$D$107,3,FALSE))","v":{"v":62131.918809233684,"d":"62,132"}},{"$f":"($A11-$A10)/365.25*(CI10+(Main!$I17*Main!$D$3))*(1+VLOOKUP('Random Years'!CG11,'Hist Returns'!$A$12:$D$107,3,FALSE))","v":{"v":57837.74478173748,"d":"57,838"}},{"$f":"($A11-$A10)/365.25*(CJ10+(Main!$I17*Main!$D$3))*(1+VLOOKUP('Random Years'!CH11,'Hist Returns'!$A$12:$D$107,3,FALSE))","v":{"v":56888.19868673023,"d":"56,888"}},{"$f":"($A11-$A10)/365.25*(CK10+(Main!$I17*Main!$D$3))*(1+VLOOKUP('Random Years'!CI11,'Hist Returns'!$A$12:$D$107,3,FALSE))","v":{"v":48452.40360761964,"d":"48,452"}},{"$f":"($A11-$A10)/365.25*(CL10+(Main!$I17*Main!$D$3))*(1+VLOOKUP('Random Years'!CJ11,'Hist Returns'!$A$12:$D$107,3,FALSE))","v":{"v":47347.47910097186,"d":"47,347"}},{"$f":"($A11-$A10)/365.25*(CM10+(Main!$I17*Main!$D$3))*(1+VLOOKUP('Random Years'!CK11,'Hist Returns'!$A$12:$D$107,3,FALSE))","v":{"v":51658.18630554002,"d":"51,658"}},{"$f":"($A11-$A10)/365.25*(CN10+(Main!$I17*Main!$D$3))*(1+VLOOKUP('Random Years'!CL11,'Hist Returns'!$A$12:$D$107,3,FALSE))","v":{"v":54830.057690565205,"d":"54,830"}},{"$f":"($A11-$A10)/365.25*(CO10+(Main!$I17*Main!$D$3))*(1+VLOOKUP('Random Years'!CM11,'Hist Returns'!$A$12:$D$107,3,FALSE))","v":{"v":53973.86477113759,"d":"53,974"}},{"$f":"($A11-$A10)/365.25*(CP10+(Main!$I17*Main!$D$3))*(1+VLOOKUP('Random Years'!CN11,'Hist Returns'!$A$12:$D$107,3,FALSE))","v":{"v":69022.94844991768,"d":"69,023"}},{"$f":"($A11-$A10)/365.25*(CQ10+(Main!$I17*Main!$D$3))*(1+VLOOKUP('Random Years'!CO11,'Hist Returns'!$A$12:$D$107,3,FALSE))","v":{"v":50918.940711620126,"d":"50,919"}},{"$f":"($A11-$A10)/365.25*(CR10+(Main!$I17*Main!$D$3))*(1+VLOOKUP('Random Years'!CP11,'Hist Returns'!$A$12:$D$107,3,FALSE))","v":{"v":50013.62568921077,"d":"50,014"}},{"$f":"($A11-$A10)/365.25*(CS10+(Main!$I17*Main!$D$3))*(1+VLOOKUP('Random Years'!CQ11,'Hist Returns'!$A$12:$D$107,3,FALSE))","v":{"v":48582.62496955585,"d":"48,583"}},{"$f":"($A11-$A10)/365.25*(CT10+(Main!$I17*Main!$D$3))*(1+VLOOKUP('Random Years'!CR11,'Hist Returns'!$A$12:$D$107,3,FALSE))","v":{"v":63595.06134348549,"d":"63,595"}},{"$f":"($A11-$A10)/365.25*(CU10+(Main!$I17*Main!$D$3))*(1+VLOOKUP('Random Years'!CS11,'Hist Returns'!$A$12:$D$107,3,FALSE))","v":{"v":59310.39231703232,"d":"59,310"}},{"$f":"($A11-$A10)/365.25*(CV10+(Main!$I17*Main!$D$3))*(1+VLOOKUP('Random Years'!CT11,'Hist Returns'!$A$12:$D$107,3,FALSE))","v":{"v":53207.676219664674,"d":"53,208"}},{"$f":"($A11-$A10)/365.25*(CW10+(Main!$I17*Main!$D$3))*(1+VLOOKUP('Random Years'!CU11,'Hist Returns'!$A$12:$D$107,3,FALSE))","v":{"v":53583.94054440606,"d":"53,584"}},{"$f":"($A11-$A10)/365.25*(CX10+(Main!$I17*Main!$D$3))*(1+VLOOKUP('Random Years'!CV11,'Hist Returns'!$A$12:$D$107,3,FALSE))","v":{"v":54229.08311778077,"d":"54,229"}}]
[{"$f":"Main!A18","v":"2033-12-30"},{"$f":"Main!B18","v":79},{"$f":"($A12-$A11)/365.25*(C11+(Main!$I18*Main!$D$3))*(1+VLOOKUP('Random Years'!A12,'Hist Returns'!$A$12:$D$107,3,FALSE))","v":{"v":62141.77579511579,"d":"62,142"}},{"$f":"($A12-$A11)/365.25*(D11+(Main!$I18*Main!$D$3))*(1+VLOOKUP('Random Years'!B12,'Hist Returns'!$A$12:$D$107,3,FALSE))","v":{"v":50747.49755701179,"d":"50,747"}},{"$f":"($A12-$A11)/365.25*(E11+(Main!$I18*Main!$D$3))*(1+VLOOKUP('Random Years'!C12,'Hist Returns'!$A$12:$D$107,3,FALSE))","v":{"v":53106.99180220414,"d":"53,107"}},{"$f":"($A12-$A11)/365.25*(F11+(Main!$I18*Main!$D$3))*(1+VLOOKUP('Random Years'!D12,'Hist Returns'!$A$12:$D$107,3,FALSE))","v":{"v":54722.71122946175,"d":"54,723"}},{"$f":"($A12-$A11)/365.25*(G11+(Main!$I18*Main!$D$3))*(1+VLOOKUP('Random Years'!E12,'Hist Returns'!$A$12:$D$107,3,FALSE))","v":{"v":54092.781520034165,"d":"54,093"}},{"$f":"($A12-$A11)/365.25*(H11+(Main!$I18*Main!$D$3))*(1+VLOOKUP('Random Years'!F12,'Hist Returns'!$A$12:$D$107,3,FALSE))","v":{"v":53288.70178713266,"d":"53,289"}},{"$f":"($A12-$A11)/365.25*(I11+(Main!$I18*Main!$D$3))*(1+VLOOKUP('Random Years'!G12,'Hist Returns'!$A$12:$D$107,3,FALSE))","v":{"v":50515.00554695719,"d":"50,515"}},{"$f":"($A12-$A11)/365.25*(J11+(Main!$I18*Main!$D$3))*(1+VLOOKUP('Random Years'!H12,'Hist Returns'!$A$12:$D$107,3,FALSE))","v":{"v":74117.42927365421,"d":"74,117"}},{"$f":"($A12-$A11)/365.25*(K11+(Main!$I18*Main!$D$3))*(1+VLOOKUP('Random Years'!I12,'Hist Returns'!$A$12:$D$107,3,FALSE))","v":{"v":75847.15203451326,"d":"75,847"}},{"$f":"($A12-$A11)/365.25*(L11+(Main!$I18*Main!$D$3))*(1+VLOOKUP('Random Years'!J12,'Hist Returns'!$A$12:$D$107,3,FALSE))","v":{"v":46344.1059702385,"d":"46,344"}},{"$f":"($A12-$A11)/365.25*(M11+(Main!$I18*Main!$D$3))*(1+VLOOKUP('Random Years'!K12,'Hist Returns'!$A$12:$D$107,3,FALSE))","v":{"v":45479.255047786,"d":"45,479"}},{"$f":"($A12-$A11)/365.25*(N11+(Main!$I18*Main!$D$3))*(1+VLOOKUP('Random Years'!L12,'Hist Returns'!$A$12:$D$107,3,FALSE))","v":{"v":63167.758323327966,"d":"63,168"}},{"$f":"($A12-$A11)/365.25*(O11+(Main!$I18*Main!$D$3))*(1+VLOOKUP('Random Years'!M12,'Hist Returns'!$A$12:$D$107,3,FALSE))","v":{"v":58799.34350776068,"d":"58,799"}},{"$f":"($A12-$A11)/365.25*(P11+(Main!$I18*Main!$D$3))*(1+VLOOKUP('Random Years'!N12,'Hist Returns'!$A$12:$D$107,3,FALSE))","v":{"v":50353.144964775,"d":"50,353"}},{"$f":"($A12-$A11)/365.25*(Q11+(Main!$I18*Main!$D$3))*(1+VLOOKUP('Random Years'!O12,'Hist Returns'!$A$12:$D$107,3,FALSE))","v":{"v":47445.143344939686,"d":"47,445"}},{"$f":"($A12-$A11)/365.25*(R11+(Main!$I18*Main!$D$3))*(1+VLOOKUP('Random Years'!P12,'Hist Returns'!$A$12:$D$107,3,FALSE))","v":{"v":53180.89367192914,"d":"53,181"}},{"$f":"($A12-$A11)/365.25*(S11+(Main!$I18*Main!$D$3))*(1+VLOOKUP('Random Years'!Q12,'Hist Returns'!$A$12:$D$107,3,FALSE))","v":{"v":47895.30252802078,"d":"47,895"}},{"$f":"($A12-$A11)/365.25*(T11+(Main!$I18*Main!$D$3))*(1+VLOOKUP('Random Years'!R12,'Hist Returns'!$A$12:$D$107,3,FALSE))","v":{"v":70295.46623257229,"d":"70,295"}},{"$f":"($A12-$A11)/365.25*(U11+(Main!$I18*Main!$D$3))*(1+VLOOKUP('Random Years'!S12,'Hist Returns'!$A$12:$D$107,3,FALSE))","v":{"v":65557.33998139368,"d":"65,557"}},{"$f":"($A12-$A11)/365.25*(V11+(Main!$I18*Main!$D$3))*(1+VLOOKUP('Random Years'!T12,'Hist Returns'!$A$12:$D$107,3,FALSE))","v":{"v":55361.407804514034,"d":"55,361"}},{"$f":"($A12-$A11)/365.25*(W11+(Main!$I18*Main!$D$3))*(1+VLOOKUP('Random Years'!U12,'Hist Returns'!$A$12:$D$107,3,FALSE))","v":{"v":69204.72312775115,"d":"69,205"}},{"$f":"($A12-$A11)/365.25*(X11+(Main!$I18*Main!$D$3))*(1+VLOOKUP('Random Years'!V12,'Hist Returns'!$A$12:$D$107,3,FALSE))","v":{"v":51285.68102271092,"d":"51,286"}},{"$f":"($A12-$A11)/365.25*(Y11+(Main!$I18*Main!$D$3))*(1+VLOOKUP('Random Years'!W12,'Hist Returns'!$A$12:$D$107,3,FALSE))","v":{"v":45534.45345343361,"d":"45,534"}},{"$f":"($A12-$A11)/365.25*(Z11+(Main!$I18*Main!$D$3))*(1+VLOOKUP('Random Years'!X12,'Hist Returns'!$A$12:$D$107,3,FALSE))","v":{"v":52771.34413467398,"d":"52,771"}},{"$f":"($A12-$A11)/365.25*(AA11+(Main!$I18*Main!$D$3))*(1+VLOOKUP('Random Years'!Y12,'Hist Returns'!$A$12:$D$107,3,FALSE))","v":{"v":51546.18043836744,"d":"51,546"}},{"$f":"($A12-$A11)/365.25*(AB11+(Main!$I18*Main!$D$3))*(1+VLOOKUP('Random Years'!Z12,'Hist Returns'!$A$12:$D$107,3,FALSE))","v":{"v":58067.48743891963,"d":"58,067"}},{"$f":"($A12-$A11)/365.25*(AC11+(Main!$I18*Main!$D$3))*(1+VLOOKUP('Random Years'!AA12,'Hist Returns'!$A$12:$D$107,3,FALSE))","v":{"v":60309.405432387946,"d":"60,309"}},{"$f":"($A12-$A11)/365.25*(AD11+(Main!$I18*Main!$D$3))*(1+VLOOKUP('Random Years'!AB12,'Hist Returns'!$A$12:$D$107,3,FALSE))","v":{"v":57691.3781311506,"d":"57,691"}},{"$f":"($A12-$A11)/365.25*(AE11+(Main!$I18*Main!$D$3))*(1+VLOOKUP('Random Years'!AC12,'Hist Returns'!$A$12:$D$107,3,FALSE))","v":{"v":55939.625870188785,"d":"55,940"}},{"$f":"($A12-$A11)/365.25*(AF11+(Main!$I18*Main!$D$3))*(1+VLOOKUP('Random Years'!AD12,'Hist Returns'!$A$12:$D$107,3,FALSE))","v":{"v":51240.58530871876,"d":"51,241"}},{"$f":"($A12-$A11)/365.25*(AG11+(Main!$I18*Main!$D$3))*(1+VLOOKUP('Random Years'!AE12,'Hist Returns'!$A$12:$D$107,3,FALSE))","v":{"v":53553.71228680846,"d":"53,554"}},{"$f":"($A12-$A11)/365.25*(AH11+(Main!$I18*Main!$D$3))*(1+VLOOKUP('Random Years'!AF12,'Hist Returns'!$A$12:$D$107,3,FALSE))","v":{"v":54143.558123254465,"d":"54,144"}},{"$f":"($A12-$A11)/365.25*(AI11+(Main!$I18*Main!$D$3))*(1+VLOOKUP('Random Years'!AG12,'Hist Returns'!$A$12:$D$107,3,FALSE))","v":{"v":60978.413623878245,"d":"60,978"}},{"$f":"($A12-$A11)/365.25*(AJ11+(Main!$I18*Main!$D$3))*(1+VLOOKUP('Random Years'!AH12,'Hist Returns'!$A$12:$D$107,3,FALSE))","v":{"v":57874.21224308333,"d":"57,874"}},{"$f":"($A12-$A11)/365.25*(AK11+(Main!$I18*Main!$D$3))*(1+VLOOKUP('Random Years'!AI12,'Hist Returns'!$A$12:$D$107,3,FALSE))","v":{"v":48235.24173943162,"d":"48,235"}},{"$f":"($A12-$A11)/365.25*(AL11+(Main!$I18*Main!$D$3))*(1+VLOOKUP('Random Years'!AJ12,'Hist Returns'!$A$12:$D$107,3,FALSE))","v":{"v":57697.83352958409,"d":"57,698"}},{"$f":"($A12-$A11)/365.25*(AM11+(Main!$I18*Main!$D$3))*(1+VLOOKUP('Random Years'!AK12,'Hist Returns'!$A$12:$D$107,3,FALSE))","v":{"v":57309.21511415091,"d":"57,309"}},{"$f":"($A12-$A11)/365.25*(AN11+(Main!$I18*Main!$D$3))*(1+VLOOKUP('Random Years'!AL12,'Hist Returns'!$A$12:$D$107,3,FALSE))","v":{"v":64197.61025628005,"d":"64,198"}},{"$f":"($A12-$A11)/365.25*(AO11+(Main!$I18*Main!$D$3))*(1+VLOOKUP('Random Years'!AM12,'Hist Returns'!$A$12:$D$107,3,FALSE))","v":{"v":77717.65490006638,"d":"77,718"}},{"$f":"($A12-$A11)/365.25*(AP11+(Main!$I18*Main!$D$3))*(1+VLOOKUP('Random Years'!AN12,'Hist Returns'!$A$12:$D$107,3,FALSE))","v":{"v":48218.07796316391,"d":"48,218"}},{"$f":"($A12-$A11)/365.25*(AQ11+(Main!$I18*Main!$D$3))*(1+VLOOKUP('Random Years'!AO12,'Hist Returns'!$A$12:$D$107,3,FALSE))","v":{"v":47041.40293050747,"d":"47,041"}},{"$f":"($A12-$A11)/365.25*(AR11+(Main!$I18*Main!$D$3))*(1+VLOOKUP('Random Years'!AP12,'Hist Returns'!$A$12:$D$107,3,FALSE))","v":{"v":51645.856486785,"d":"51,646"}},{"$f":"($A12-$A11)/365.25*(AS11+(Main!$I18*Main!$D$3))*(1+VLOOKUP('Random Years'!AQ12,'Hist Returns'!$A$12:$D$107,3,FALSE))","v":{"v":57316.95914250647,"d":"57,317"}},{"$f":"($A12-$A11)/365.25*(AT11+(Main!$I18*Main!$D$3))*(1+VLOOKUP('Random Years'!AR12,'Hist Returns'!$A$12:$D$107,3,FALSE))","v":{"v":58446.8909436439,"d":"58,447"}},{"$f":"($A12-$A11)/365.25*(AU11+(Main!$I18*Main!$D$3))*(1+VLOOKUP('Random Years'!AS12,'Hist Returns'!$A$12:$D$107,3,FALSE))","v":{"v":53115.508373937904,"d":"53,116"}},{"$f":"($A12-$A11)/365.25*(AV11+(Main!$I18*Main!$D$3))*(1+VLOOKUP('Random Years'!AT12,'Hist Returns'!$A$12:$D$107,3,FALSE))","v":{"v":43056.01280649787,"d":"43,056"}},{"$f":"($A12-$A11)/365.25*(AW11+(Main!$I18*Main!$D$3))*(1+VLOOKUP('Random Years'!AU12,'Hist Returns'!$A$12:$D$107,3,FALSE))","v":{"v":53454.34256094993,"d":"53,454"}},{"$f":"($A12-$A11)/365.25*(AX11+(Main!$I18*Main!$D$3))*(1+VLOOKUP('Random Years'!AV12,'Hist Returns'!$A$12:$D$107,3,FALSE))","v":{"v":53823.515567138704,"d":"53,824"}},{"$f":"($A12-$A11)/365.25*(AY11+(Main!$I18*Main!$D$3))*(1+VLOOKUP('Random Years'!AW12,'Hist Returns'!$A$12:$D$107,3,FALSE))","v":{"v":42993.568023553256,"d":"42,994"}},{"$f":"($A12-$A11)/365.25*(AZ11+(Main!$I18*Main!$D$3))*(1+VLOOKUP('Random Years'!AX12,'Hist Returns'!$A$12:$D$107,3,FALSE))","v":{"v":52969.936371619086,"d":"52,970"}},{"$f":"($A12-$A11)/365.25*(BA11+(Main!$I18*Main!$D$3))*(1+VLOOKUP('Random Years'!AY12,'Hist Returns'!$A$12:$D$107,3,FALSE))","v":{"v":60360.0529785693,"d":"60,360"}},{"$f":"($A12-$A11)/365.25*(BB11+(Main!$I18*Main!$D$3))*(1+VLOOKUP('Random Years'!AZ12,'Hist Returns'!$A$12:$D$107,3,FALSE))","v":{"v":71769.68527930525,"d":"71,770"}},{"$f":"($A12-$A11)/365.25*(BC11+(Main!$I18*Main!$D$3))*(1+VLOOKUP('Random Years'!BA12,'Hist Returns'!$A$12:$D$107,3,FALSE))","v":{"v":69999.29124047353,"d":"69,999"}},{"$f":"($A12-$A11)/365.25*(BD11+(Main!$I18*Main!$D$3))*(1+VLOOKUP('Random Years'!BB12,'Hist Returns'!$A$12:$D$107,3,FALSE))","v":{"v":44247.675428434486,"d":"44,248"}},{"$f":"($A12-$A11)/365.25*(BE11+(Main!$I18*Main!$D$3))*(1+VLOOKUP('Random Years'!BC12,'Hist Returns'!$A$12:$D$107,3,FALSE))","v":{"v":53379.50749128444,"d":"53,380"}},{"$f":"($A12-$A11)/365.25*(BF11+(Main!$I18*Main!$D$3))*(1+VLOOKUP('Random Years'!BD12,'Hist Returns'!$A$12:$D$107,3,FALSE))","v":{"v":62239.01544775032,"d":"62,239"}},{"$f":"($A12-$A11)/365.25*(BG11+(Main!$I18*Main!$D$3))*(1+VLOOKUP('Random Years'!BE12,'Hist Returns'!$A$12:$D$107,3,FALSE))","v":{"v":53160.649422747294,"d":"53,161"}},{"$f":"($A12-$A11)/365.25*(BH11+(Main!$I18*Main!$D$3))*(1+VLOOKUP('Random Years'!BF12,'Hist Returns'!$A$12:$D$107,3,FALSE))","v":{"v":45818.03266152823,"d":"45,818"}},{"$f":"($A12-$A11)/365.25*(BI11+(Main!$I18*Main!$D$3))*(1+VLOOKUP('Random Years'!BG12,'Hist Returns'!$A$12:$D$107,3,FALSE))","v":{"v":49120.27854298445,"d":"49,120"}},{"$f":"($A12-$A11)/365.25*(BJ11+(Main!$I18*Main!$D$3))*(1+VLOOKUP('Random Years'!BH12,'Hist Returns'!$A$12:$D$107,3,FALSE))","v":{"v":64559.575008820946,"d":"64,560"}},{"$f":"($A12-$A11)/365.25*(BK11+(Main!$I18*Main!$D$3))*(1+VLOOKUP('Random Years'!BI12,'Hist Returns'!$A$12:$D$107,3,FALSE))","v":{"v":48859.7389654759,"d":"48,860"}},{"$f":"($A12-$A11)/365.25*(BL11+(Main!$I18*Main!$D$3))*(1+VLOOKUP('Random Years'!BJ12,'Hist Returns'!$A$12:$D$107,3,FALSE))","v":{"v":56118.76121128225,"d":"56,119"}},{"$f":"($A12-$A11)/365.25*(BM11+(Main!$I18*Main!$D$3))*(1+VLOOKUP('Random Years'!BK12,'Hist Returns'!$A$12:$D$107,3,FALSE))","v":{"v":54469.41374669412,"d":"54,469"}},{"$f":"($A12-$A11)/365.25*(BN11+(Main!$I18*Main!$D$3))*(1+VLOOKUP('Random Years'!BL12,'Hist Returns'!$A$12:$D$107,3,FALSE))","v":{"v":58566.48405858249,"d":"58,566"}},{"$f":"($A12-$A11)/365.25*(BO11+(Main!$I18*Main!$D$3))*(1+VLOOKUP('Random Years'!BM12,'Hist Returns'!$A$12:$D$107,3,FALSE))","v":{"v":58523.41586327491,"d":"58,523"}},{"$f":"($A12-$A11)/365.25*(BP11+(Main!$I18*Main!$D$3))*(1+VLOOKUP('Random Years'!BN12,'Hist Returns'!$A$12:$D$107,3,FALSE))","v":{"v":48323.78561245011,"d":"48,324"}},{"$f":"($A12-$A11)/365.25*(BQ11+(Main!$I18*Main!$D$3))*(1+VLOOKUP('Random Years'!BO12,'Hist Returns'!$A$12:$D$107,3,FALSE))","v":{"v":51676.776065972364,"d":"51,677"}},{"$f":"($A12-$A11)/365.25*(BR11+(Main!$I18*Main!$D$3))*(1+VLOOKUP('Random Years'!BP12,'Hist Returns'!$A$12:$D$107,3,FALSE))","v":{"v":60100.82060499091,"d":"60,101"}},{"$f":"($A12-$A11)/365.25*(BS11+(Main!$I18*Main!$D$3))*(1+VLOOKUP('Random Years'!BQ12,'Hist Returns'!$A$12:$D$107,3,FALSE))","v":{"v":56016.450024113874,"d":"56,016"}},{"$f":"($A12-$A11)/365.25*(BT11+(Main!$I18*Main!$D$3))*(1+VLOOKUP('Random Years'!BR12,'Hist Returns'!$A$12:$D$107,3,FALSE))","v":{"v":53844.34003121462,"d":"53,844"}},{"$f":"($A12-$A11)/365.25*(BU11+(Main!$I18*Main!$D$3))*(1+VLOOKUP('Random Years'!BS12,'Hist Returns'!$A$12:$D$107,3,FALSE))","v":{"v":67611.4057208536,"d":"67,611"}},{"$f":"($A12-$A11)/365.25*(BV11+(Main!$I18*Main!$D$3))*(1+VLOOKUP('Random Years'!BT12,'Hist Returns'!$A$12:$D$107,3,FALSE))","v":{"v":49331.542000287416,"d":"49,332"}},{"$f":"($A12-$A11)/365.25*(BW11+(Main!$I18*Main!$D$3))*(1+VLOOKUP('Random Years'!BU12,'Hist Returns'!$A$12:$D$107,3,FALSE))","v":{"v":48168.59010766029,"d":"48,169"}},{"$f":"($A12-$A11)/365.25*(BX11+(Main!$I18*Main!$D$3))*(1+VLOOKUP('Random Years'!BV12,'Hist Returns'!$A$12:$D$107,3,FALSE))","v":{"v":60897.36497053049,"d":"60,897"}},{"$f":"($A12-$A11)/365.25*(BY11+(Main!$I18*Main!$D$3))*(1+VLOOKUP('Random Years'!BW12,'Hist Returns'!$A$12:$D$107,3,FALSE))","v":{"v":57956.62682100269,"d":"57,957"}},{"$f":"($A12-$A11)/365.25*(BZ11+(Main!$I18*Main!$D$3))*(1+VLOOKUP('Random Years'!BX12,'Hist Returns'!$A$12:$D$107,3,FALSE))","v":{"v":50223.84439694451,"d":"50,224"}},{"$f":"($A12-$A11)/365.25*(CA11+(Main!$I18*Main!$D$3))*(1+VLOOKUP('Random Years'!BY12,'Hist Returns'!$A$12:$D$107,3,FALSE))","v":{"v":52579.1228601732,"d":"52,579"}},{"$f":"($A12-$A11)/365.25*(CB11+(Main!$I18*Main!$D$3))*(1+VLOOKUP('Random Years'!BZ12,'Hist Returns'!$A$12:$D$107,3,FALSE))","v":{"v":57133.68238267568,"d":"57,134"}},{"$f":"($A12-$A11)/365.25*(CC11+(Main!$I18*Main!$D$3))*(1+VLOOKUP('Random Years'!CA12,'Hist Returns'!$A$12:$D$107,3,FALSE))","v":{"v":58643.25517305028,"d":"58,643"}},{"$f":"($A12-$A11)/365.25*(CD11+(Main!$I18*Main!$D$3))*(1+VLOOKUP('Random Years'!CB12,'Hist Returns'!$A$12:$D$107,3,FALSE))","v":{"v":50341.24172423503,"d":"50,341"}},{"$f":"($A12-$A11)/365.25*(CE11+(Main!$I18*Main!$D$3))*(1+VLOOKUP('Random Years'!CC12,'Hist Returns'!$A$12:$D$107,3,FALSE))","v":{"v":53173.2962187846,"d":"53,173"}},{"$f":"($A12-$A11)/365.25*(CF11+(Main!$I18*Main!$D$3))*(1+VLOOKUP('Random Years'!CD12,'Hist Returns'!$A$12:$D$107,3,FALSE))","v":{"v":59932.47047402931,"d":"59,932"}},{"$f":"($A12-$A11)/365.25*(CG11+(Main!$I18*Main!$D$3))*(1+VLOOKUP('Random Years'!CE12,'Hist Returns'!$A$12:$D$107,3,FALSE))","v":{"v":51549.87130487774,"d":"51,550"}},{"$f":"($A12-$A11)/365.25*(CH11+(Main!$I18*Main!$D$3))*(1+VLOOKUP('Random Years'!CF12,'Hist Returns'!$A$12:$D$107,3,FALSE))","v":{"v":63412.56172787122,"d":"63,413"}},{"$f":"($A12-$A11)/365.25*(CI11+(Main!$I18*Main!$D$3))*(1+VLOOKUP('Random Years'!CG12,'Hist Returns'!$A$12:$D$107,3,FALSE))","v":{"v":60210.151987856894,"d":"60,210"}},{"$f":"($A12-$A11)/365.25*(CJ11+(Main!$I18*Main!$D$3))*(1+VLOOKUP('Random Years'!CH12,'Hist Returns'!$A$12:$D$107,3,FALSE))","v":{"v":55431.07777417998,"d":"55,431"}},{"$f":"($A12-$A11)/365.25*(CK11+(Main!$I18*Main!$D$3))*(1+VLOOKUP('Random Years'!CI12,'Hist Returns'!$A$12:$D$107,3,FALSE))","v":{"v":47708.11272921909,"d":"47,708"}},{"$f":"($A12-$A11)/365.25*(CL11+(Main!$I18*Main!$D$3))*(1+VLOOKUP('Random Years'!CJ12,'Hist Returns'!$A$12:$D$107,3,FALSE))","v":{"v":48395.699713239344,"d":"48,396"}},{"$f":"($A12-$A11)/365.25*(CM11+(Main!$I18*Main!$D$3))*(1+VLOOKUP('Random Years'!CK12,'Hist Returns'!$A$12:$D$107,3,FALSE))","v":{"v":51767.00360964683,"d":"51,767"}},{"$f":"($A12-$A11)/365.25*(CN11+(Main!$I18*Main!$D$3))*(1+VLOOKUP('Random Years'!CL12,'Hist Returns'!$A$12:$D$107,3,FALSE))","v":{"v":59282.905539582265,"d":"59,283"}},{"$f":"($A12-$A11)/365.25*(CO11+(Main!$I18*Main!$D$3))*(1+VLOOKUP('Random Years'!CM12,'Hist Returns'!$A$12:$D$107,3,FALSE))","v":{"v":54025.41959742317,"d":"54,025"}},{"$f":"($A12-$A11)/365.25*(CP11+(Main!$I18*Main!$D$3))*(1+VLOOKUP('Random Years'!CN12,'Hist Returns'!$A$12:$D$107,3,FALSE))","v":{"v":68207.6503471436,"d":"68,208"}},{"$f":"($A12-$A11)/365.25*(CQ11+(Main!$I18*Main!$D$3))*(1+VLOOKUP('Random Years'!CO12,'Hist Returns'!$A$12:$D$107,3,FALSE))","v":{"v":49581.63565629158,"d":"49,582"}},{"$f":"($A12-$A11)/365.25*(CR11+(Main!$I18*Main!$D$3))*(1+VLOOKUP('Random Years'!CP12,'Hist Returns'!$A$12:$D$107,3,FALSE))","v":{"v":48673.502445845326,"d":"48,674"}},{"$f":"($A12-$A11)/365.25*(CS11+(Main!$I18*Main!$D$3))*(1+VLOOKUP('Random Years'!CQ12,'Hist Returns'!$A$12:$D$107,3,FALSE))","v":{"v":50094.54189157912,"d":"50,095"}},{"$f":"($A12-$A11)/365.25*(CT11+(Main!$I18*Main!$D$3))*(1+VLOOKUP('Random Years'!CR12,'Hist Returns'!$A$12:$D$107,3,FALSE))","v":{"v":69024.6701608388,"d":"69,025"}},{"$f":"($A12-$A11)/365.25*(CU11+(Main!$I18*Main!$D$3))*(1+VLOOKUP('Random Years'!CS12,'Hist Returns'!$A$12:$D$107,3,FALSE))","v":{"v":58634.785429643285,"d":"58,635"}},{"$f":"($A12-$A11)/365.25*(CV11+(Main!$I18*Main!$D$3))*(1+VLOOKUP('Random Years'!CT12,'Hist Returns'!$A$12:$D$107,3,FALSE))","v":{"v":51944.68129221936,"d":"51,945"}},{"$f":"($A12-$A11)/365.25*(CW11+(Main!$I18*Main!$D$3))*(1+VLOOKUP('Random Years'!CU12,'Hist Returns'!$A$12:$D$107,3,FALSE))","v":{"v":55055.60422020115,"d":"55,056"}},{"$f":"($A12-$A11)/365.25*(CX11+(Main!$I18*Main!$D$3))*(1+VLOOKUP('Random Years'!CV12,'Hist Returns'!$A$12:$D$107,3,FALSE))","v":{"v":55858.65417047839,"d":"55,859"}}]
[{"$f":"Main!A19","v":"2034-12-30"},{"$f":"Main!B19","v":80},{"$f":"($A13-$A12)/365.25*(C12+(Main!$I19*Main!$D$3))*(1+VLOOKUP('Random Years'!A13,'Hist Returns'!$A$12:$D$107,3,FALSE))","v":{"v":63537.50234887074,"d":"63,538"}},{"$f":"($A13-$A12)/365.25*(D12+(Main!$I19*Main!$D$3))*(1+VLOOKUP('Random Years'!B13,'Hist Returns'!$A$12:$D$107,3,FALSE))","v":{"v":49129.03001373084,"d":"49,129"}},{"$f":"($A13-$A12)/365.25*(E12+(Main!$I19*Main!$D$3))*(1+VLOOKUP('Random Years'!C13,'Hist Returns'!$A$12:$D$107,3,FALSE))","v":{"v":51480.232752560296,"d":"51,480"}},{"$f":"($A13-$A12)/365.25*(F12+(Main!$I19*Main!$D$3))*(1+VLOOKUP('Random Years'!D13,'Hist Returns'!$A$12:$D$107,3,FALSE))","v":{"v":54013.74934607915,"d":"54,014"}},{"$f":"($A13-$A12)/365.25*(G12+(Main!$I19*Main!$D$3))*(1+VLOOKUP('Random Years'!E13,'Hist Returns'!$A$12:$D$107,3,FALSE))","v":{"v":55381.48319035553,"d":"55,381"}},{"$f":"($A13-$A12)/365.25*(H12+(Main!$I19*Main!$D$3))*(1+VLOOKUP('Random Years'!F13,'Hist Returns'!$A$12:$D$107,3,FALSE))","v":{"v":52162.77924036514,"d":"52,163"}},{"$f":"($A13-$A12)/365.25*(I12+(Main!$I19*Main!$D$3))*(1+VLOOKUP('Random Years'!G13,'Hist Returns'!$A$12:$D$107,3,FALSE))","v":{"v":53721.40412269483,"d":"53,721"}},{"$f":"($A13-$A12)/365.25*(J12+(Main!$I19*Main!$D$3))*(1+VLOOKUP('Random Years'!H13,'Hist Returns'!$A$12:$D$107,3,FALSE))","v":{"v":72725.87424658833,"d":"72,726"}},{"$f":"($A13-$A12)/365.25*(K12+(Main!$I19*Main!$D$3))*(1+VLOOKUP('Random Years'!I13,'Hist Returns'!$A$12:$D$107,3,FALSE))","v":{"v":75862.966532076,"d":"75,863"}},{"$f":"($A13-$A12)/365.25*(L12+(Main!$I19*Main!$D$3))*(1+VLOOKUP('Random Years'!J13,'Hist Returns'!$A$12:$D$107,3,FALSE))","v":{"v":45156.619971611806,"d":"45,157"}},{"$f":"($A13-$A12)/365.25*(M12+(Main!$I19*Main!$D$3))*(1+VLOOKUP('Random Years'!K13,'Hist Returns'!$A$12:$D$107,3,FALSE))","v":{"v":44279.07594105748,"d":"44,279"}},{"$f":"($A13-$A12)/365.25*(N12+(Main!$I19*Main!$D$3))*(1+VLOOKUP('Random Years'!L13,'Hist Returns'!$A$12:$D$107,3,FALSE))","v":{"v":61717.51431327474,"d":"61,718"}},{"$f":"($A13-$A12)/365.25*(O12+(Main!$I19*Main!$D$3))*(1+VLOOKUP('Random Years'!M13,'Hist Returns'!$A$12:$D$107,3,FALSE))","v":{"v":59240.107671776415,"d":"59,240"}},{"$f":"($A13-$A12)/365.25*(P12+(Main!$I19*Main!$D$3))*(1+VLOOKUP('Random Years'!N13,'Hist Returns'!$A$12:$D$107,3,FALSE))","v":{"v":50899.028282722546,"d":"50,899"}},{"$f":"($A13-$A12)/365.25*(Q12+(Main!$I19*Main!$D$3))*(1+VLOOKUP('Random Years'!O13,'Hist Returns'!$A$12:$D$107,3,FALSE))","v":{"v":45952.24057665626,"d":"45,952"}},{"$f":"($A13-$A12)/365.25*(R12+(Main!$I19*Main!$D$3))*(1+VLOOKUP('Random Years'!P13,'Hist Returns'!$A$12:$D$107,3,FALSE))","v":{"v":54089.31611874953,"d":"54,089"}},{"$f":"($A13-$A12)/365.25*(S12+(Main!$I19*Main!$D$3))*(1+VLOOKUP('Random Years'!Q13,'Hist Returns'!$A$12:$D$107,3,FALSE))","v":{"v":47342.42271987322,"d":"47,342"}},{"$f":"($A13-$A12)/365.25*(T12+(Main!$I19*Main!$D$3))*(1+VLOOKUP('Random Years'!R13,'Hist Returns'!$A$12:$D$107,3,FALSE))","v":{"v":68651.80442513453,"d":"68,652"}},{"$f":"($A13-$A12)/365.25*(U12+(Main!$I19*Main!$D$3))*(1+VLOOKUP('Random Years'!S13,'Hist Returns'!$A$12:$D$107,3,FALSE))","v":{"v":65410.674945667924,"d":"65,411"}},{"$f":"($A13-$A12)/365.25*(V12+(Main!$I19*Main!$D$3))*(1+VLOOKUP('Random Years'!T13,'Hist Returns'!$A$12:$D$107,3,FALSE))","v":{"v":58868.65750640004,"d":"58,869"}},{"$f":"($A13-$A12)/365.25*(W12+(Main!$I19*Main!$D$3))*(1+VLOOKUP('Random Years'!U13,'Hist Returns'!$A$12:$D$107,3,FALSE))","v":{"v":68588.10741595805,"d":"68,588"}},{"$f":"($A13-$A12)/365.25*(X12+(Main!$I19*Main!$D$3))*(1+VLOOKUP('Random Years'!V13,'Hist Returns'!$A$12:$D$107,3,FALSE))","v":{"v":50180.420194340644,"d":"50,180"}},{"$f":"($A13-$A12)/365.25*(Y12+(Main!$I19*Main!$D$3))*(1+VLOOKUP('Random Years'!W13,'Hist Returns'!$A$12:$D$107,3,FALSE))","v":{"v":45939.97172498837,"d":"45,940"}},{"$f":"($A13-$A12)/365.25*(Z12+(Main!$I19*Main!$D$3))*(1+VLOOKUP('Random Years'!X13,'Hist Returns'!$A$12:$D$107,3,FALSE))","v":{"v":56747.29911210966,"d":"56,747"}},{"$f":"($A13-$A12)/365.25*(AA12+(Main!$I19*Main!$D$3))*(1+VLOOKUP('Random Years'!Y13,'Hist Returns'!$A$12:$D$107,3,FALSE))","v":{"v":49927.69299634802,"d":"49,928"}},{"$f":"($A13-$A12)/365.25*(AB12+(Main!$I19*Main!$D$3))*(1+VLOOKUP('Random Years'!Z13,'Hist Returns'!$A$12:$D$107,3,FALSE))","v":{"v":56987.004242100506,"d":"56,987"}},{"$f":"($A13-$A12)/365.25*(AC12+(Main!$I19*Main!$D$3))*(1+VLOOKUP('Random Years'!AA13,'Hist Returns'!$A$12:$D$107,3,FALSE))","v":{"v":61566.993217060466,"d":"61,567"}},{"$f":"($A13-$A12)/365.25*(AD12+(Main!$I19*Main!$D$3))*(1+VLOOKUP('Random Years'!AB13,'Hist Returns'!$A$12:$D$107,3,FALSE))","v":{"v":57845.708841117725,"d":"57,846"}},{"$f":"($A13-$A12)/365.25*(AE12+(Main!$I19*Main!$D$3))*(1+VLOOKUP('Random Years'!AC13,'Hist Returns'!$A$12:$D$107,3,FALSE))","v":{"v":55940.89935787285,"d":"55,941"}},{"$f":"($A13-$A12)/365.25*(AF12+(Main!$I19*Main!$D$3))*(1+VLOOKUP('Random Years'!AD13,'Hist Returns'!$A$12:$D$107,3,FALSE))","v":{"v":49609.21224254362,"d":"49,609"}},{"$f":"($A13-$A12)/365.25*(AG12+(Main!$I19*Main!$D$3))*(1+VLOOKUP('Random Years'!AE13,'Hist Returns'!$A$12:$D$107,3,FALSE))","v":{"v":55373.091783685806,"d":"55,373"}},{"$f":"($A13-$A12)/365.25*(AH12+(Main!$I19*Main!$D$3))*(1+VLOOKUP('Random Years'!AF13,'Hist Returns'!$A$12:$D$107,3,FALSE))","v":{"v":53834.11560552619,"d":"53,834"}},{"$f":"($A13-$A12)/365.25*(AI12+(Main!$I19*Main!$D$3))*(1+VLOOKUP('Random Years'!AG13,'Hist Returns'!$A$12:$D$107,3,FALSE))","v":{"v":61236.59305682505,"d":"61,237"}},{"$f":"($A13-$A12)/365.25*(AJ12+(Main!$I19*Main!$D$3))*(1+VLOOKUP('Random Years'!AH13,'Hist Returns'!$A$12:$D$107,3,FALSE))","v":{"v":58051.18484850032,"d":"58,051"}},{"$f":"($A13-$A12)/365.25*(AK12+(Main!$I19*Main!$D$3))*(1+VLOOKUP('Random Years'!AI13,'Hist Returns'!$A$12:$D$107,3,FALSE))","v":{"v":48006.96571225472,"d":"48,007"}},{"$f":"($A13-$A12)/365.25*(AL12+(Main!$I19*Main!$D$3))*(1+VLOOKUP('Random Years'!AJ13,'Hist Returns'!$A$12:$D$107,3,FALSE))","v":{"v":58569.708411305495,"d":"58,570"}},{"$f":"($A13-$A12)/365.25*(AM12+(Main!$I19*Main!$D$3))*(1+VLOOKUP('Random Years'!AK13,'Hist Returns'!$A$12:$D$107,3,FALSE))","v":{"v":61002.187776390296,"d":"61,002"}},{"$f":"($A13-$A12)/365.25*(AN12+(Main!$I19*Main!$D$3))*(1+VLOOKUP('Random Years'!AL13,'Hist Returns'!$A$12:$D$107,3,FALSE))","v":{"v":65645.64822138198,"d":"65,646"}},{"$f":"($A13-$A12)/365.25*(AO12+(Main!$I19*Main!$D$3))*(1+VLOOKUP('Random Years'!AM13,'Hist Returns'!$A$12:$D$107,3,FALSE))","v":{"v":77310.72568721858,"d":"77,311"}},{"$f":"($A13-$A12)/365.25*(AP12+(Main!$I19*Main!$D$3))*(1+VLOOKUP('Random Years'!AN13,'Hist Returns'!$A$12:$D$107,3,FALSE))","v":{"v":47626.05283115697,"d":"47,626"}},{"$f":"($A13-$A12)/365.25*(AQ12+(Main!$I19*Main!$D$3))*(1+VLOOKUP('Random Years'!AO13,'Hist Returns'!$A$12:$D$107,3,FALSE))","v":{"v":47458.45290496352,"d":"47,458"}},{"$f":"($A13-$A12)/365.25*(AR12+(Main!$I19*Main!$D$3))*(1+VLOOKUP('Random Years'!AP13,'Hist Returns'!$A$12:$D$107,3,FALSE))","v":{"v":50059.36295836973,"d":"50,059"}},{"$f":"($A13-$A12)/365.25*(AS12+(Main!$I19*Main!$D$3))*(1+VLOOKUP('Random Years'!AQ13,'Hist Returns'!$A$12:$D$107,3,FALSE))","v":{"v":55945.46539001364,"d":"55,945"}},{"$f":"($A13-$A12)/365.25*(AT12+(Main!$I19*Main!$D$3))*(1+VLOOKUP('Random Years'!AR13,'Hist Returns'!$A$12:$D$107,3,FALSE))","v":{"v":56910.01025381017,"d":"56,910"}},{"$f":"($A13-$A12)/365.25*(AU12+(Main!$I19*Main!$D$3))*(1+VLOOKUP('Random Years'!AS13,'Hist Returns'!$A$12:$D$107,3,FALSE))","v":{"v":52893.68809380357,"d":"52,894"}},{"$f":"($A13-$A12)/365.25*(AV12+(Main!$I19*Main!$D$3))*(1+VLOOKUP('Random Years'!AT13,'Hist Returns'!$A$12:$D$107,3,FALSE))","v":{"v":41567.76556718515,"d":"41,568"}},{"$f":"($A13-$A12)/365.25*(AW12+(Main!$I19*Main!$D$3))*(1+VLOOKUP('Random Years'!AU13,'Hist Returns'!$A$12:$D$107,3,FALSE))","v":{"v":51835.80757813568,"d":"51,836"}},{"$f":"($A13-$A12)/365.25*(AX12+(Main!$I19*Main!$D$3))*(1+VLOOKUP('Random Years'!AV13,'Hist Returns'!$A$12:$D$107,3,FALSE))","v":{"v":53036.56977555038,"d":"53,037"}},{"$f":"($A13-$A12)/365.25*(AY12+(Main!$I19*Main!$D$3))*(1+VLOOKUP('Random Years'!AW13,'Hist Returns'!$A$12:$D$107,3,FALSE))","v":{"v":41381.08238565873,"d":"41,381"}},{"$f":"($A13-$A12)/365.25*(AZ12+(Main!$I19*Main!$D$3))*(1+VLOOKUP('Random Years'!AX13,'Hist Returns'!$A$12:$D$107,3,FALSE))","v":{"v":53950.13387952484,"d":"53,950"}},{"$f":"($A13-$A12)/365.25*(BA12+(Main!$I19*Main!$D$3))*(1+VLOOKUP('Random Years'!AY13,'Hist Returns'!$A$12:$D$107,3,FALSE))","v":{"v":65289.03419616076,"d":"65,289"}},{"$f":"($A13-$A12)/365.25*(BB12+(Main!$I19*Main!$D$3))*(1+VLOOKUP('Random Years'!AZ13,'Hist Returns'!$A$12:$D$107,3,FALSE))","v":{"v":71520.53444560492,"d":"71,521"}},{"$f":"($A13-$A12)/365.25*(BC12+(Main!$I19*Main!$D$3))*(1+VLOOKUP('Random Years'!BA13,'Hist Returns'!$A$12:$D$107,3,FALSE))","v":{"v":71929.67655996601,"d":"71,930"}},{"$f":"($A13-$A12)/365.25*(BD12+(Main!$I19*Main!$D$3))*(1+VLOOKUP('Random Years'!BB13,'Hist Returns'!$A$12:$D$107,3,FALSE))","v":{"v":44522.569507810134,"d":"44,523"}},{"$f":"($A13-$A12)/365.25*(BE12+(Main!$I19*Main!$D$3))*(1+VLOOKUP('Random Years'!BC13,'Hist Returns'!$A$12:$D$107,3,FALSE))","v":{"v":55632.21067905331,"d":"55,632"}},{"$f":"($A13-$A12)/365.25*(BF12+(Main!$I19*Main!$D$3))*(1+VLOOKUP('Random Years'!BD13,'Hist Returns'!$A$12:$D$107,3,FALSE))","v":{"v":60786.25156311887,"d":"60,786"}},{"$f":"($A13-$A12)/365.25*(BG12+(Main!$I19*Main!$D$3))*(1+VLOOKUP('Random Years'!BE13,'Hist Returns'!$A$12:$D$107,3,FALSE))","v":{"v":52548.590546866915,"d":"52,549"}},{"$f":"($A13-$A12)/365.25*(BH12+(Main!$I19*Main!$D$3))*(1+VLOOKUP('Random Years'!BF13,'Hist Returns'!$A$12:$D$107,3,FALSE))","v":{"v":44625.49189417624,"d":"44,625"}},{"$f":"($A13-$A12)/365.25*(BI12+(Main!$I19*Main!$D$3))*(1+VLOOKUP('Random Years'!BG13,'Hist Returns'!$A$12:$D$107,3,FALSE))","v":{"v":52032.43806492067,"d":"52,032"}},{"$f":"($A13-$A12)/365.25*(BJ12+(Main!$I19*Main!$D$3))*(1+VLOOKUP('Random Years'!BH13,'Hist Returns'!$A$12:$D$107,3,FALSE))","v":{"v":62924.40954037664,"d":"62,924"}},{"$f":"($A13-$A12)/365.25*(BK12+(Main!$I19*Main!$D$3))*(1+VLOOKUP('Random Years'!BI13,'Hist Returns'!$A$12:$D$107,3,FALSE))","v":{"v":49495.1314810746,"d":"49,495"}},{"$f":"($A13-$A12)/365.25*(BL12+(Main!$I19*Main!$D$3))*(1+VLOOKUP('Random Years'!BJ13,'Hist Returns'!$A$12:$D$107,3,FALSE))","v":{"v":56239.74682403818,"d":"56,240"}},{"$f":"($A13-$A12)/365.25*(BM12+(Main!$I19*Main!$D$3))*(1+VLOOKUP('Random Years'!BK13,'Hist Returns'!$A$12:$D$107,3,FALSE))","v":{"v":55778.97223216274,"d":"55,779"}},{"$f":"($A13-$A12)/365.25*(BN12+(Main!$I19*Main!$D$3))*(1+VLOOKUP('Random Years'!BL13,'Hist Returns'!$A$12:$D$107,3,FALSE))","v":{"v":57126.51992895799,"d":"57,127"}},{"$f":"($A13-$A12)/365.25*(BO12+(Main!$I19*Main!$D$3))*(1+VLOOKUP('Random Years'!BM13,'Hist Returns'!$A$12:$D$107,3,FALSE))","v":{"v":57492.76166508868,"d":"57,493"}},{"$f":"($A13-$A12)/365.25*(BP12+(Main!$I19*Main!$D$3))*(1+VLOOKUP('Random Years'!BN13,'Hist Returns'!$A$12:$D$107,3,FALSE))","v":{"v":46688.57560823516,"d":"46,689"}},{"$f":"($A13-$A12)/365.25*(BQ12+(Main!$I19*Main!$D$3))*(1+VLOOKUP('Random Years'!BO13,'Hist Returns'!$A$12:$D$107,3,FALSE))","v":{"v":53492.019813316285,"d":"53,492"}},{"$f":"($A13-$A12)/365.25*(BR12+(Main!$I19*Main!$D$3))*(1+VLOOKUP('Random Years'!BP13,'Hist Returns'!$A$12:$D$107,3,FALSE))","v":{"v":59004.60534163565,"d":"59,005"}},{"$f":"($A13-$A12)/365.25*(BS12+(Main!$I19*Main!$D$3))*(1+VLOOKUP('Random Years'!BQ13,'Hist Returns'!$A$12:$D$107,3,FALSE))","v":{"v":54476.1324479422,"d":"54,476"}},{"$f":"($A13-$A12)/365.25*(BT12+(Main!$I19*Main!$D$3))*(1+VLOOKUP('Random Years'!BR13,'Hist Returns'!$A$12:$D$107,3,FALSE))","v":{"v":55197.57074625189,"d":"55,198"}},{"$f":"($A13-$A12)/365.25*(BU12+(Main!$I19*Main!$D$3))*(1+VLOOKUP('Random Years'!BS13,'Hist Returns'!$A$12:$D$107,3,FALSE))","v":{"v":69140.9228859024,"d":"69,141"}},{"$f":"($A13-$A12)/365.25*(BV12+(Main!$I19*Main!$D$3))*(1+VLOOKUP('Random Years'!BT13,'Hist Returns'!$A$12:$D$107,3,FALSE))","v":{"v":50890.61421451632,"d":"50,891"}},{"$f":"($A13-$A12)/365.25*(BW12+(Main!$I19*Main!$D$3))*(1+VLOOKUP('Random Years'!BU13,'Hist Returns'!$A$12:$D$107,3,FALSE))","v":{"v":49199.00623293187,"d":"49,199"}},{"$f":"($A13-$A12)/365.25*(BX12+(Main!$I19*Main!$D$3))*(1+VLOOKUP('Random Years'!BV13,'Hist Returns'!$A$12:$D$107,3,FALSE))","v":{"v":59263.24226688833,"d":"59,263"}},{"$f":"($A13-$A12)/365.25*(BY12+(Main!$I19*Main!$D$3))*(1+VLOOKUP('Random Years'!BW13,'Hist Returns'!$A$12:$D$107,3,FALSE))","v":{"v":57173.48385177293,"d":"57,173"}},{"$f":"($A13-$A12)/365.25*(BZ12+(Main!$I19*Main!$D$3))*(1+VLOOKUP('Random Years'!BX13,'Hist Returns'!$A$12:$D$107,3,FALSE))","v":{"v":48602.47550029983,"d":"48,602"}},{"$f":"($A13-$A12)/365.25*(CA12+(Main!$I19*Main!$D$3))*(1+VLOOKUP('Random Years'!BY13,'Hist Returns'!$A$12:$D$107,3,FALSE))","v":{"v":54267.80892428234,"d":"54,268"}},{"$f":"($A13-$A12)/365.25*(CB12+(Main!$I19*Main!$D$3))*(1+VLOOKUP('Random Years'!BZ13,'Hist Returns'!$A$12:$D$107,3,FALSE))","v":{"v":56072.059268368546,"d":"56,072"}},{"$f":"($A13-$A12)/365.25*(CC12+(Main!$I19*Main!$D$3))*(1+VLOOKUP('Random Years'!CA13,'Hist Returns'!$A$12:$D$107,3,FALSE))","v":{"v":57203.53002701825,"d":"57,204"}},{"$f":"($A13-$A12)/365.25*(CD12+(Main!$I19*Main!$D$3))*(1+VLOOKUP('Random Years'!CB13,'Hist Returns'!$A$12:$D$107,3,FALSE))","v":{"v":49795.92619497166,"d":"49,796"}},{"$f":"($A13-$A12)/365.25*(CE12+(Main!$I19*Main!$D$3))*(1+VLOOKUP('Random Years'!CC13,'Hist Returns'!$A$12:$D$107,3,FALSE))","v":{"v":57301.39431414878,"d":"57,301"}},{"$f":"($A13-$A12)/365.25*(CF12+(Main!$I19*Main!$D$3))*(1+VLOOKUP('Random Years'!CD13,'Hist Returns'!$A$12:$D$107,3,FALSE))","v":{"v":62640.13328381568,"d":"62,640"}},{"$f":"($A13-$A12)/365.25*(CG12+(Main!$I19*Main!$D$3))*(1+VLOOKUP('Random Years'!CE13,'Hist Returns'!$A$12:$D$107,3,FALSE))","v":{"v":50003.23754004492,"d":"50,003"}},{"$f":"($A13-$A12)/365.25*(CH12+(Main!$I19*Main!$D$3))*(1+VLOOKUP('Random Years'!CF13,'Hist Returns'!$A$12:$D$107,3,FALSE))","v":{"v":63704.417131348775,"d":"63,704"}},{"$f":"($A13-$A12)/365.25*(CI12+(Main!$I19*Main!$D$3))*(1+VLOOKUP('Random Years'!CG13,'Hist Returns'!$A$12:$D$107,3,FALSE))","v":{"v":61211.10113149962,"d":"61,211"}},{"$f":"($A13-$A12)/365.25*(CJ12+(Main!$I19*Main!$D$3))*(1+VLOOKUP('Random Years'!CH13,'Hist Returns'!$A$12:$D$107,3,FALSE))","v":{"v":56998.24306486021,"d":"56,998"}},{"$f":"($A13-$A12)/365.25*(CK12+(Main!$I19*Main!$D$3))*(1+VLOOKUP('Random Years'!CI13,'Hist Returns'!$A$12:$D$107,3,FALSE))","v":{"v":47104.86836206537,"d":"47,105"}},{"$f":"($A13-$A12)/365.25*(CL12+(Main!$I19*Main!$D$3))*(1+VLOOKUP('Random Years'!CJ13,'Hist Returns'!$A$12:$D$107,3,FALSE))","v":{"v":48045.989094118195,"d":"48,046"}},{"$f":"($A13-$A12)/365.25*(CM12+(Main!$I19*Main!$D$3))*(1+VLOOKUP('Random Years'!CK13,'Hist Returns'!$A$12:$D$107,3,FALSE))","v":{"v":54014.41528166562,"d":"54,014"}},{"$f":"($A13-$A12)/365.25*(CN12+(Main!$I19*Main!$D$3))*(1+VLOOKUP('Random Years'!CL13,'Hist Returns'!$A$12:$D$107,3,FALSE))","v":{"v":60657.32975668958,"d":"60,657"}},{"$f":"($A13-$A12)/365.25*(CO12+(Main!$I19*Main!$D$3))*(1+VLOOKUP('Random Years'!CM13,'Hist Returns'!$A$12:$D$107,3,FALSE))","v":{"v":55750.318316386336,"d":"55,750"}},{"$f":"($A13-$A12)/365.25*(CP12+(Main!$I19*Main!$D$3))*(1+VLOOKUP('Random Years'!CN13,'Hist Returns'!$A$12:$D$107,3,FALSE))","v":{"v":66588.7477938958,"d":"66,589"}},{"$f":"($A13-$A12)/365.25*(CQ12+(Main!$I19*Main!$D$3))*(1+VLOOKUP('Random Years'!CO13,'Hist Returns'!$A$12:$D$107,3,FALSE))","v":{"v":48113.70226552155,"d":"48,114"}},{"$f":"($A13-$A12)/365.25*(CR12+(Main!$I19*Main!$D$3))*(1+VLOOKUP('Random Years'!CP13,'Hist Returns'!$A$12:$D$107,3,FALSE))","v":{"v":49398.76526196,"d":"49,399"}},{"$f":"($A13-$A12)/365.25*(CS12+(Main!$I19*Main!$D$3))*(1+VLOOKUP('Random Years'!CQ13,'Hist Returns'!$A$12:$D$107,3,FALSE))","v":{"v":49936.1963177374,"d":"49,936"}},{"$f":"($A13-$A12)/365.25*(CT12+(Main!$I19*Main!$D$3))*(1+VLOOKUP('Random Years'!CR13,'Hist Returns'!$A$12:$D$107,3,FALSE))","v":{"v":67415.17783243027,"d":"67,415"}},{"$f":"($A13-$A12)/365.25*(CU12+(Main!$I19*Main!$D$3))*(1+VLOOKUP('Random Years'!CS13,'Hist Returns'!$A$12:$D$107,3,FALSE))","v":{"v":57525.50930807972,"d":"57,526"}},{"$f":"($A13-$A12)/365.25*(CV12+(Main!$I19*Main!$D$3))*(1+VLOOKUP('Random Years'!CT13,'Hist Returns'!$A$12:$D$107,3,FALSE))","v":{"v":51132.88349016358,"d":"51,133"}},{"$f":"($A13-$A12)/365.25*(CW12+(Main!$I19*Main!$D$3))*(1+VLOOKUP('Random Years'!CU13,'Hist Returns'!$A$12:$D$107,3,FALSE))","v":{"v":57433.61886977671,"d":"57,434"}},{"$f":"($A13-$A12)/365.25*(CX12+(Main!$I19*Main!$D$3))*(1+VLOOKUP('Random Years'!CV13,'Hist Returns'!$A$12:$D$107,3,FALSE))","v":{"v":54784.2703015383,"d":"54,784"}}]
[{"$f":"Main!A20","v":"2035-12-31"},{"$f":"Main!B20","v":81},{"$f":"($A14-$A13)/365.25*(C13+(Main!$I20*Main!$D$3))*(1+VLOOKUP('Random Years'!A14,'Hist Returns'!$A$12:$D$107,3,FALSE))","v":{"v":56648.095271002385,"d":"56,648"}},{"$f":"($A14-$A13)/365.25*(D13+(Main!$I20*Main!$D$3))*(1+VLOOKUP('Random Years'!B14,'Hist Returns'!$A$12:$D$107,3,FALSE))","v":{"v":42106.32383978191,"d":"42,106"}},{"$f":"($A14-$A13)/365.25*(E13+(Main!$I20*Main!$D$3))*(1+VLOOKUP('Random Years'!C14,'Hist Returns'!$A$12:$D$107,3,FALSE))","v":{"v":45270.47368391454,"d":"45,270"}},{"$f":"($A14-$A13)/365.25*(F13+(Main!$I20*Main!$D$3))*(1+VLOOKUP('Random Years'!D14,'Hist Returns'!$A$12:$D$107,3,FALSE))","v":{"v":49047.36942776995,"d":"49,047"}},{"$f":"($A14-$A13)/365.25*(G13+(Main!$I20*Main!$D$3))*(1+VLOOKUP('Random Years'!E14,'Hist Returns'!$A$12:$D$107,3,FALSE))","v":{"v":53599.377639153856,"d":"53,599"}},{"$f":"($A14-$A13)/365.25*(H13+(Main!$I20*Main!$D$3))*(1+VLOOKUP('Random Years'!F14,'Hist Returns'!$A$12:$D$107,3,FALSE))","v":{"v":48432.913585485505,"d":"48,433"}},{"$f":"($A14-$A13)/365.25*(I13+(Main!$I20*Main!$D$3))*(1+VLOOKUP('Random Years'!G14,'Hist Returns'!$A$12:$D$107,3,FALSE))","v":{"v":46797.0454763428,"d":"46,797"}},{"$f":"($A14-$A13)/365.25*(J13+(Main!$I20*Main!$D$3))*(1+VLOOKUP('Random Years'!H14,'Hist Returns'!$A$12:$D$107,3,FALSE))","v":{"v":65752.02913907326,"d":"65,752"}},{"$f":"($A14-$A13)/365.25*(K13+(Main!$I20*Main!$D$3))*(1+VLOOKUP('Random Years'!I14,'Hist Returns'!$A$12:$D$107,3,FALSE))","v":{"v":70196.81725867557,"d":"70,197"}},{"$f":"($A14-$A13)/365.25*(L13+(Main!$I20*Main!$D$3))*(1+VLOOKUP('Random Years'!J14,'Hist Returns'!$A$12:$D$107,3,FALSE))","v":{"v":38600.47419787224,"d":"38,600"}},{"$f":"($A14-$A13)/365.25*(M13+(Main!$I20*Main!$D$3))*(1+VLOOKUP('Random Years'!K14,'Hist Returns'!$A$12:$D$107,3,FALSE))","v":{"v":37180.467852641406,"d":"37,180"}},{"$f":"($A14-$A13)/365.25*(N13+(Main!$I20*Main!$D$3))*(1+VLOOKUP('Random Years'!L14,'Hist Returns'!$A$12:$D$107,3,FALSE))","v":{"v":56151.20045659379,"d":"56,151"}},{"$f":"($A14-$A13)/365.25*(O13+(Main!$I20*Main!$D$3))*(1+VLOOKUP('Random Years'!M14,'Hist Returns'!$A$12:$D$107,3,FALSE))","v":{"v":52687.069716451064,"d":"52,687"}},{"$f":"($A14-$A13)/365.25*(P13+(Main!$I20*Main!$D$3))*(1+VLOOKUP('Random Years'!N14,'Hist Returns'!$A$12:$D$107,3,FALSE))","v":{"v":45285.01622683875,"d":"45,285"}},{"$f":"($A14-$A13)/365.25*(Q13+(Main!$I20*Main!$D$3))*(1+VLOOKUP('Random Years'!O14,'Hist Returns'!$A$12:$D$107,3,FALSE))","v":{"v":38885.25844601984,"d":"38,885"}},{"$f":"($A14-$A13)/365.25*(R13+(Main!$I20*Main!$D$3))*(1+VLOOKUP('Random Years'!P14,'Hist Returns'!$A$12:$D$107,3,FALSE))","v":{"v":48821.111093827894,"d":"48,821"}},{"$f":"($A14-$A13)/365.25*(S13+(Main!$I20*Main!$D$3))*(1+VLOOKUP('Random Years'!Q14,'Hist Returns'!$A$12:$D$107,3,FALSE))","v":{"v":41454.75817148819,"d":"41,455"}},{"$f":"($A14-$A13)/365.25*(T13+(Main!$I20*Main!$D$3))*(1+VLOOKUP('Random Years'!R14,'Hist Returns'!$A$12:$D$107,3,FALSE))","v":{"v":66371.9458657881,"d":"66,372"}},{"$f":"($A14-$A13)/365.25*(U13+(Main!$I20*Main!$D$3))*(1+VLOOKUP('Random Years'!S14,'Hist Returns'!$A$12:$D$107,3,FALSE))","v":{"v":60608.15669696976,"d":"60,608"}},{"$f":"($A14-$A13)/365.25*(V13+(Main!$I20*Main!$D$3))*(1+VLOOKUP('Random Years'!T14,'Hist Returns'!$A$12:$D$107,3,FALSE))","v":{"v":53595.11029905636,"d":"53,595"}},{"$f":"($A14-$A13)/365.25*(W13+(Main!$I20*Main!$D$3))*(1+VLOOKUP('Random Years'!U14,'Hist Returns'!$A$12:$D$107,3,FALSE))","v":{"v":70314.06850231836,"d":"70,314"}},{"$f":"($A14-$A13)/365.25*(X13+(Main!$I20*Main!$D$3))*(1+VLOOKUP('Random Years'!V14,'Hist Returns'!$A$12:$D$107,3,FALSE))","v":{"v":43532.50144615011,"d":"43,533"}},{"$f":"($A14-$A13)/365.25*(Y13+(Main!$I20*Main!$D$3))*(1+VLOOKUP('Random Years'!W14,'Hist Returns'!$A$12:$D$107,3,FALSE))","v":{"v":40783.01439584447,"d":"40,783"}},{"$f":"($A14-$A13)/365.25*(Z13+(Main!$I20*Main!$D$3))*(1+VLOOKUP('Random Years'!X14,'Hist Returns'!$A$12:$D$107,3,FALSE))","v":{"v":50198.170201321314,"d":"50,198"}},{"$f":"($A14-$A13)/365.25*(AA13+(Main!$I20*Main!$D$3))*(1+VLOOKUP('Random Years'!Y14,'Hist Returns'!$A$12:$D$107,3,FALSE))","v":{"v":44806.23250752288,"d":"44,806"}},{"$f":"($A14-$A13)/365.25*(AB13+(Main!$I20*Main!$D$3))*(1+VLOOKUP('Random Years'!Z14,'Hist Returns'!$A$12:$D$107,3,FALSE))","v":{"v":51723.239135539945,"d":"51,723"}},{"$f":"($A14-$A13)/365.25*(AC13+(Main!$I20*Main!$D$3))*(1+VLOOKUP('Random Years'!AA14,'Hist Returns'!$A$12:$D$107,3,FALSE))","v":{"v":57619.72855634759,"d":"57,620"}},{"$f":"($A14-$A13)/365.25*(AD13+(Main!$I20*Main!$D$3))*(1+VLOOKUP('Random Years'!AB14,'Hist Returns'!$A$12:$D$107,3,FALSE))","v":{"v":50945.5235323186,"d":"50,946"}},{"$f":"($A14-$A13)/365.25*(AE13+(Main!$I20*Main!$D$3))*(1+VLOOKUP('Random Years'!AC14,'Hist Returns'!$A$12:$D$107,3,FALSE))","v":{"v":50748.85637698842,"d":"50,749"}},{"$f":"($A14-$A13)/365.25*(AF13+(Main!$I20*Main!$D$3))*(1+VLOOKUP('Random Years'!AD14,'Hist Returns'!$A$12:$D$107,3,FALSE))","v":{"v":45287.205156982265,"d":"45,287"}},{"$f":"($A14-$A13)/365.25*(AG13+(Main!$I20*Main!$D$3))*(1+VLOOKUP('Random Years'!AE14,'Hist Returns'!$A$12:$D$107,3,FALSE))","v":{"v":48361.86405590652,"d":"48,362"}},{"$f":"($A14-$A13)/365.25*(AH13+(Main!$I20*Main!$D$3))*(1+VLOOKUP('Random Years'!AF14,'Hist Returns'!$A$12:$D$107,3,FALSE))","v":{"v":49092.84087529915,"d":"49,093"}},{"$f":"($A14-$A13)/365.25*(AI13+(Main!$I20*Main!$D$3))*(1+VLOOKUP('Random Years'!AG14,'Hist Returns'!$A$12:$D$107,3,FALSE))","v":{"v":61894.03341957783,"d":"61,894"}},{"$f":"($A14-$A13)/365.25*(AJ13+(Main!$I20*Main!$D$3))*(1+VLOOKUP('Random Years'!AH14,'Hist Returns'!$A$12:$D$107,3,FALSE))","v":{"v":50973.848909126675,"d":"50,974"}},{"$f":"($A14-$A13)/365.25*(AK13+(Main!$I20*Main!$D$3))*(1+VLOOKUP('Random Years'!AI14,'Hist Returns'!$A$12:$D$107,3,FALSE))","v":{"v":42754.38167189365,"d":"42,754"}},{"$f":"($A14-$A13)/365.25*(AL13+(Main!$I20*Main!$D$3))*(1+VLOOKUP('Random Years'!AJ14,'Hist Returns'!$A$12:$D$107,3,FALSE))","v":{"v":52080.44398435162,"d":"52,080"}},{"$f":"($A14-$A13)/365.25*(AM13+(Main!$I20*Main!$D$3))*(1+VLOOKUP('Random Years'!AK14,'Hist Returns'!$A$12:$D$107,3,FALSE))","v":{"v":57172.12750178317,"d":"57,172"}},{"$f":"($A14-$A13)/365.25*(AN13+(Main!$I20*Main!$D$3))*(1+VLOOKUP('Random Years'!AL14,'Hist Returns'!$A$12:$D$107,3,FALSE))","v":{"v":59130.87783755337,"d":"59,131"}},{"$f":"($A14-$A13)/365.25*(AO13+(Main!$I20*Main!$D$3))*(1+VLOOKUP('Random Years'!AM14,'Hist Returns'!$A$12:$D$107,3,FALSE))","v":{"v":70932.12292634232,"d":"70,932"}},{"$f":"($A14-$A13)/365.25*(AP13+(Main!$I20*Main!$D$3))*(1+VLOOKUP('Random Years'!AN14,'Hist Returns'!$A$12:$D$107,3,FALSE))","v":{"v":40900.93789727836,"d":"40,901"}},{"$f":"($A14-$A13)/365.25*(AQ13+(Main!$I20*Main!$D$3))*(1+VLOOKUP('Random Years'!AO14,'Hist Returns'!$A$12:$D$107,3,FALSE))","v":{"v":40969.41162288788,"d":"40,969"}},{"$f":"($A14-$A13)/365.25*(AR13+(Main!$I20*Main!$D$3))*(1+VLOOKUP('Random Years'!AP14,'Hist Returns'!$A$12:$D$107,3,FALSE))","v":{"v":42984.68940201544,"d":"42,985"}},{"$f":"($A14-$A13)/365.25*(AS13+(Main!$I20*Main!$D$3))*(1+VLOOKUP('Random Years'!AQ14,'Hist Returns'!$A$12:$D$107,3,FALSE))","v":{"v":49622.76703364433,"d":"49,623"}},{"$f":"($A14-$A13)/365.25*(AT13+(Main!$I20*Main!$D$3))*(1+VLOOKUP('Random Years'!AR14,'Hist Returns'!$A$12:$D$107,3,FALSE))","v":{"v":52315.75865399253,"d":"52,316"}},{"$f":"($A14-$A13)/365.25*(AU13+(Main!$I20*Main!$D$3))*(1+VLOOKUP('Random Years'!AS14,'Hist Returns'!$A$12:$D$107,3,FALSE))","v":{"v":46715.44182333663,"d":"46,715"}},{"$f":"($A14-$A13)/365.25*(AV13+(Main!$I20*Main!$D$3))*(1+VLOOKUP('Random Years'!AT14,'Hist Returns'!$A$12:$D$107,3,FALSE))","v":{"v":34920.029205884515,"d":"34,920"}},{"$f":"($A14-$A13)/365.25*(AW13+(Main!$I20*Main!$D$3))*(1+VLOOKUP('Random Years'!AU14,'Hist Returns'!$A$12:$D$107,3,FALSE))","v":{"v":44766.20582588678,"d":"44,766"}},{"$f":"($A14-$A13)/365.25*(AX13+(Main!$I20*Main!$D$3))*(1+VLOOKUP('Random Years'!AV14,'Hist Returns'!$A$12:$D$107,3,FALSE))","v":{"v":45956.61614156448,"d":"45,957"}},{"$f":"($A14-$A13)/365.25*(AY13+(Main!$I20*Main!$D$3))*(1+VLOOKUP('Random Years'!AW14,'Hist Returns'!$A$12:$D$107,3,FALSE))","v":{"v":36213.570568975556,"d":"36,214"}},{"$f":"($A14-$A13)/365.25*(AZ13+(Main!$I20*Main!$D$3))*(1+VLOOKUP('Random Years'!AX14,'Hist Returns'!$A$12:$D$107,3,FALSE))","v":{"v":46872.513867192625,"d":"46,873"}},{"$f":"($A14-$A13)/365.25*(BA13+(Main!$I20*Main!$D$3))*(1+VLOOKUP('Random Years'!AY14,'Hist Returns'!$A$12:$D$107,3,FALSE))","v":{"v":58834.1334210169,"d":"58,834"}},{"$f":"($A14-$A13)/365.25*(BB13+(Main!$I20*Main!$D$3))*(1+VLOOKUP('Random Years'!AZ14,'Hist Returns'!$A$12:$D$107,3,FALSE))","v":{"v":67388.29711754089,"d":"67,388"}},{"$f":"($A14-$A13)/365.25*(BC13+(Main!$I20*Main!$D$3))*(1+VLOOKUP('Random Years'!BA14,'Hist Returns'!$A$12:$D$107,3,FALSE))","v":{"v":67453.6864659556,"d":"67,454"}},{"$f":"($A14-$A13)/365.25*(BD13+(Main!$I20*Main!$D$3))*(1+VLOOKUP('Random Years'!BB14,'Hist Returns'!$A$12:$D$107,3,FALSE))","v":{"v":39369.520460441796,"d":"39,370"}},{"$f":"($A14-$A13)/365.25*(BE13+(Main!$I20*Main!$D$3))*(1+VLOOKUP('Random Years'!BC14,'Hist Returns'!$A$12:$D$107,3,FALSE))","v":{"v":49451.9243980112,"d":"49,452"}},{"$f":"($A14-$A13)/365.25*(BF13+(Main!$I20*Main!$D$3))*(1+VLOOKUP('Random Years'!BD14,'Hist Returns'!$A$12:$D$107,3,FALSE))","v":{"v":54596.02158704742,"d":"54,596"}},{"$f":"($A14-$A13)/365.25*(BG13+(Main!$I20*Main!$D$3))*(1+VLOOKUP('Random Years'!BE14,'Hist Returns'!$A$12:$D$107,3,FALSE))","v":{"v":45485.56827875578,"d":"45,486"}},{"$f":"($A14-$A13)/365.25*(BH13+(Main!$I20*Main!$D$3))*(1+VLOOKUP('Random Years'!BF14,'Hist Returns'!$A$12:$D$107,3,FALSE))","v":{"v":39965.64792336523,"d":"39,966"}},{"$f":"($A14-$A13)/365.25*(BI13+(Main!$I20*Main!$D$3))*(1+VLOOKUP('Random Years'!BG14,'Hist Returns'!$A$12:$D$107,3,FALSE))","v":{"v":47825.27662903522,"d":"47,825"}},{"$f":"($A14-$A13)/365.25*(BJ13+(Main!$I20*Main!$D$3))*(1+VLOOKUP('Random Years'!BH14,'Hist Returns'!$A$12:$D$107,3,FALSE))","v":{"v":63827.16900368736,"d":"63,827"}},{"$f":"($A14-$A13)/365.25*(BK13+(Main!$I20*Main!$D$3))*(1+VLOOKUP('Random Years'!BI14,'Hist Returns'!$A$12:$D$107,3,FALSE))","v":{"v":44296.4998275058,"d":"44,296"}},{"$f":"($A14-$A13)/365.25*(BL13+(Main!$I20*Main!$D$3))*(1+VLOOKUP('Random Years'!BJ14,'Hist Returns'!$A$12:$D$107,3,FALSE))","v":{"v":52313.15327164575,"d":"52,313"}},{"$f":"($A14-$A13)/365.25*(BM13+(Main!$I20*Main!$D$3))*(1+VLOOKUP('Random Years'!BK14,'Hist Returns'!$A$12:$D$107,3,FALSE))","v":{"v":48866.67338542398,"d":"48,867"}},{"$f":"($A14-$A13)/365.25*(BN13+(Main!$I20*Main!$D$3))*(1+VLOOKUP('Random Years'!BL14,'Hist Returns'!$A$12:$D$107,3,FALSE))","v":{"v":50977.60248225597,"d":"50,978"}},{"$f":"($A14-$A13)/365.25*(BO13+(Main!$I20*Main!$D$3))*(1+VLOOKUP('Random Years'!BM14,'Hist Returns'!$A$12:$D$107,3,FALSE))","v":{"v":51017.6391184341,"d":"51,018"}},{"$f":"($A14-$A13)/365.25*(BP13+(Main!$I20*Main!$D$3))*(1+VLOOKUP('Random Years'!BN14,'Hist Returns'!$A$12:$D$107,3,FALSE))","v":{"v":39608.235612198616,"d":"39,608"}},{"$f":"($A14-$A13)/365.25*(BQ13+(Main!$I20*Main!$D$3))*(1+VLOOKUP('Random Years'!BO14,'Hist Returns'!$A$12:$D$107,3,FALSE))","v":{"v":47902.349697348815,"d":"47,902"}},{"$f":"($A14-$A13)/365.25*(BR13+(Main!$I20*Main!$D$3))*(1+VLOOKUP('Random Years'!BP14,'Hist Returns'!$A$12:$D$107,3,FALSE))","v":{"v":52111.21254653484,"d":"52,111"}},{"$f":"($A14-$A13)/365.25*(BS13+(Main!$I20*Main!$D$3))*(1+VLOOKUP('Random Years'!BQ14,'Hist Returns'!$A$12:$D$107,3,FALSE))","v":{"v":49991.33244209664,"d":"49,991"}},{"$f":"($A14-$A13)/365.25*(BT13+(Main!$I20*Main!$D$3))*(1+VLOOKUP('Random Years'!BR14,'Hist Returns'!$A$12:$D$107,3,FALSE))","v":{"v":50282.786241085414,"d":"50,283"}},{"$f":"($A14-$A13)/365.25*(BU13+(Main!$I20*Main!$D$3))*(1+VLOOKUP('Random Years'!BS14,'Hist Returns'!$A$12:$D$107,3,FALSE))","v":{"v":62120.727770868936,"d":"62,121"}},{"$f":"($A14-$A13)/365.25*(BV13+(Main!$I20*Main!$D$3))*(1+VLOOKUP('Random Years'!BT14,'Hist Returns'!$A$12:$D$107,3,FALSE))","v":{"v":44006.58204138956,"d":"44,007"}},{"$f":"($A14-$A13)/365.25*(BW13+(Main!$I20*Main!$D$3))*(1+VLOOKUP('Random Years'!BU14,'Hist Returns'!$A$12:$D$107,3,FALSE))","v":{"v":42100.83222874326,"d":"42,101"}},{"$f":"($A14-$A13)/365.25*(BX13+(Main!$I20*Main!$D$3))*(1+VLOOKUP('Random Years'!BV14,'Hist Returns'!$A$12:$D$107,3,FALSE))","v":{"v":53795.691229223325,"d":"53,796"}},{"$f":"($A14-$A13)/365.25*(BY13+(Main!$I20*Main!$D$3))*(1+VLOOKUP('Random Years'!BW14,'Hist Returns'!$A$12:$D$107,3,FALSE))","v":{"v":53829.97953365694,"d":"53,830"}},{"$f":"($A14-$A13)/365.25*(BZ13+(Main!$I20*Main!$D$3))*(1+VLOOKUP('Random Years'!BX14,'Hist Returns'!$A$12:$D$107,3,FALSE))","v":{"v":43378.2656059794,"d":"43,378"}},{"$f":"($A14-$A13)/365.25*(CA13+(Main!$I20*Main!$D$3))*(1+VLOOKUP('Random Years'!BY14,'Hist Returns'!$A$12:$D$107,3,FALSE))","v":{"v":48573.005694430154,"d":"48,573"}},{"$f":"($A14-$A13)/365.25*(CB13+(Main!$I20*Main!$D$3))*(1+VLOOKUP('Random Years'!BZ14,'Hist Returns'!$A$12:$D$107,3,FALSE))","v":{"v":49901.00637561861,"d":"49,901"}},{"$f":"($A14-$A13)/365.25*(CC13+(Main!$I20*Main!$D$3))*(1+VLOOKUP('Random Years'!CA14,'Hist Returns'!$A$12:$D$107,3,FALSE))","v":{"v":50299.58078555595,"d":"50,300"}},{"$f":"($A14-$A13)/365.25*(CD13+(Main!$I20*Main!$D$3))*(1+VLOOKUP('Random Years'!CB14,'Hist Returns'!$A$12:$D$107,3,FALSE))","v":{"v":44077.926494252926,"d":"44,078"}},{"$f":"($A14-$A13)/365.25*(CE13+(Main!$I20*Main!$D$3))*(1+VLOOKUP('Random Years'!CC14,'Hist Returns'!$A$12:$D$107,3,FALSE))","v":{"v":50719.3449536127,"d":"50,719"}},{"$f":"($A14-$A13)/365.25*(CF13+(Main!$I20*Main!$D$3))*(1+VLOOKUP('Random Years'!CD14,'Hist Returns'!$A$12:$D$107,3,FALSE))","v":{"v":56238.8940166051,"d":"56,239"}},{"$f":"($A14-$A13)/365.25*(CG13+(Main!$I20*Main!$D$3))*(1+VLOOKUP('Random Years'!CE14,'Hist Returns'!$A$12:$D$107,3,FALSE))","v":{"v":44202.35817154409,"d":"44,202"}},{"$f":"($A14-$A13)/365.25*(CH13+(Main!$I20*Main!$D$3))*(1+VLOOKUP('Random Years'!CF14,'Hist Returns'!$A$12:$D$107,3,FALSE))","v":{"v":57693.58419938901,"d":"57,694"}},{"$f":"($A14-$A13)/365.25*(CI13+(Main!$I20*Main!$D$3))*(1+VLOOKUP('Random Years'!CG14,'Hist Returns'!$A$12:$D$107,3,FALSE))","v":{"v":57745.92639416839,"d":"57,746"}},{"$f":"($A14-$A13)/365.25*(CJ13+(Main!$I20*Main!$D$3))*(1+VLOOKUP('Random Years'!CH14,'Hist Returns'!$A$12:$D$107,3,FALSE))","v":{"v":52154.10339036535,"d":"52,154"}},{"$f":"($A14-$A13)/365.25*(CK13+(Main!$I20*Main!$D$3))*(1+VLOOKUP('Random Years'!CI14,'Hist Returns'!$A$12:$D$107,3,FALSE))","v":{"v":40545.62559105859,"d":"40,546"}},{"$f":"($A14-$A13)/365.25*(CL13+(Main!$I20*Main!$D$3))*(1+VLOOKUP('Random Years'!CJ14,'Hist Returns'!$A$12:$D$107,3,FALSE))","v":{"v":42152.619103427525,"d":"42,153"}},{"$f":"($A14-$A13)/365.25*(CM13+(Main!$I20*Main!$D$3))*(1+VLOOKUP('Random Years'!CK14,'Hist Returns'!$A$12:$D$107,3,FALSE))","v":{"v":49268.56055584849,"d":"49,269"}},{"$f":"($A14-$A13)/365.25*(CN13+(Main!$I20*Main!$D$3))*(1+VLOOKUP('Random Years'!CL14,'Hist Returns'!$A$12:$D$107,3,FALSE))","v":{"v":58096.72754943754,"d":"58,097"}},{"$f":"($A14-$A13)/365.25*(CO13+(Main!$I20*Main!$D$3))*(1+VLOOKUP('Random Years'!CM14,'Hist Returns'!$A$12:$D$107,3,FALSE))","v":{"v":48672.43142477061,"d":"48,672"}},{"$f":"($A14-$A13)/365.25*(CP13+(Main!$I20*Main!$D$3))*(1+VLOOKUP('Random Years'!CN14,'Hist Returns'!$A$12:$D$107,3,FALSE))","v":{"v":60500.094051401014,"d":"60,500"}},{"$f":"($A14-$A13)/365.25*(CQ13+(Main!$I20*Main!$D$3))*(1+VLOOKUP('Random Years'!CO14,'Hist Returns'!$A$12:$D$107,3,FALSE))","v":{"v":43456.61357699852,"d":"43,457"}},{"$f":"($A14-$A13)/365.25*(CR13+(Main!$I20*Main!$D$3))*(1+VLOOKUP('Random Years'!CP14,'Hist Returns'!$A$12:$D$107,3,FALSE))","v":{"v":42989.30479412691,"d":"42,989"}},{"$f":"($A14-$A13)/365.25*(CS13+(Main!$I20*Main!$D$3))*(1+VLOOKUP('Random Years'!CQ14,'Hist Returns'!$A$12:$D$107,3,FALSE))","v":{"v":46300.17195683995,"d":"46,300"}},{"$f":"($A14-$A13)/365.25*(CT13+(Main!$I20*Main!$D$3))*(1+VLOOKUP('Random Years'!CR14,'Hist Returns'!$A$12:$D$107,3,FALSE))","v":{"v":61735.67740598484,"d":"61,736"}},{"$f":"($A14-$A13)/365.25*(CU13+(Main!$I20*Main!$D$3))*(1+VLOOKUP('Random Years'!CS14,'Hist Returns'!$A$12:$D$107,3,FALSE))","v":{"v":51329.49253805227,"d":"51,329"}},{"$f":"($A14-$A13)/365.25*(CV13+(Main!$I20*Main!$D$3))*(1+VLOOKUP('Random Years'!CT14,'Hist Returns'!$A$12:$D$107,3,FALSE))","v":{"v":46685.22768786935,"d":"46,685"}},{"$f":"($A14-$A13)/365.25*(CW13+(Main!$I20*Main!$D$3))*(1+VLOOKUP('Random Years'!CU14,'Hist Returns'!$A$12:$D$107,3,FALSE))","v":{"v":50822.98864106513,"d":"50,823"}},{"$f":"($A14-$A13)/365.25*(CX13+(Main!$I20*Main!$D$3))*(1+VLOOKUP('Random Years'!CV14,'Hist Returns'!$A$12:$D$107,3,FALSE))","v":{"v":48533.73045653556,"d":"48,534"}}]
[{"$f":"Main!A21","v":"2036-12-30"},{"$f":"Main!B21","v":82},{"$f":"($A15-$A14)/365.25*(C14+(Main!$I21*Main!$D$3))*(1+VLOOKUP('Random Years'!A15,'Hist Returns'!$A$12:$D$107,3,FALSE))","v":{"v":52006.20783082415,"d":"52,006"}},{"$f":"($A15-$A14)/365.25*(D14+(Main!$I21*Main!$D$3))*(1+VLOOKUP('Random Years'!B15,'Hist Returns'!$A$12:$D$107,3,FALSE))","v":{"v":35139.644338749014,"d":"35,140"}},{"$f":"($A15-$A14)/365.25*(E14+(Main!$I21*Main!$D$3))*(1+VLOOKUP('Random Years'!C15,'Hist Returns'!$A$12:$D$107,3,FALSE))","v":{"v":42093.36347605483,"d":"42,093"}},{"$f":"($A15-$A14)/365.25*(F14+(Main!$I21*Main!$D$3))*(1+VLOOKUP('Random Years'!D15,'Hist Returns'!$A$12:$D$107,3,FALSE))","v":{"v":43016.693678127514,"d":"43,017"}},{"$f":"($A15-$A14)/365.25*(G14+(Main!$I21*Main!$D$3))*(1+VLOOKUP('Random Years'!E15,'Hist Returns'!$A$12:$D$107,3,FALSE))","v":{"v":47058.24483468801,"d":"47,058"}},{"$f":"($A15-$A14)/365.25*(H14+(Main!$I21*Main!$D$3))*(1+VLOOKUP('Random Years'!F15,'Hist Returns'!$A$12:$D$107,3,FALSE))","v":{"v":42695.433923450604,"d":"42,695"}},{"$f":"($A15-$A14)/365.25*(I14+(Main!$I21*Main!$D$3))*(1+VLOOKUP('Random Years'!G15,'Hist Returns'!$A$12:$D$107,3,FALSE))","v":{"v":41620.6200858497,"d":"41,621"}},{"$f":"($A15-$A14)/365.25*(J14+(Main!$I21*Main!$D$3))*(1+VLOOKUP('Random Years'!H15,'Hist Returns'!$A$12:$D$107,3,FALSE))","v":{"v":58784.49235458203,"d":"58,784"}},{"$f":"($A15-$A14)/365.25*(K14+(Main!$I21*Main!$D$3))*(1+VLOOKUP('Random Years'!I15,'Hist Returns'!$A$12:$D$107,3,FALSE))","v":{"v":63847.78828956154,"d":"63,848"}},{"$f":"($A15-$A14)/365.25*(L14+(Main!$I21*Main!$D$3))*(1+VLOOKUP('Random Years'!J15,'Hist Returns'!$A$12:$D$107,3,FALSE))","v":{"v":34186.699967590015,"d":"34,187"}},{"$f":"($A15-$A14)/365.25*(M14+(Main!$I21*Main!$D$3))*(1+VLOOKUP('Random Years'!K15,'Hist Returns'!$A$12:$D$107,3,FALSE))","v":{"v":31930.72755225926,"d":"31,931"}},{"$f":"($A15-$A14)/365.25*(N14+(Main!$I21*Main!$D$3))*(1+VLOOKUP('Random Years'!L15,'Hist Returns'!$A$12:$D$107,3,FALSE))","v":{"v":49308.340096366715,"d":"49,308"}},{"$f":"($A15-$A14)/365.25*(O14+(Main!$I21*Main!$D$3))*(1+VLOOKUP('Random Years'!M15,'Hist Returns'!$A$12:$D$107,3,FALSE))","v":{"v":47993.19256408745,"d":"47,993"}},{"$f":"($A15-$A14)/365.25*(P14+(Main!$I21*Main!$D$3))*(1+VLOOKUP('Random Years'!N15,'Hist Returns'!$A$12:$D$107,3,FALSE))","v":{"v":38353.81864137087,"d":"38,354"}},{"$f":"($A15-$A14)/365.25*(Q14+(Main!$I21*Main!$D$3))*(1+VLOOKUP('Random Years'!O15,'Hist Returns'!$A$12:$D$107,3,FALSE))","v":{"v":33508.451423456354,"d":"33,508"}},{"$f":"($A15-$A14)/365.25*(R14+(Main!$I21*Main!$D$3))*(1+VLOOKUP('Random Years'!P15,'Hist Returns'!$A$12:$D$107,3,FALSE))","v":{"v":44341.74887525471,"d":"44,342"}},{"$f":"($A15-$A14)/365.25*(S14+(Main!$I21*Main!$D$3))*(1+VLOOKUP('Random Years'!Q15,'Hist Returns'!$A$12:$D$107,3,FALSE))","v":{"v":35257.04497420756,"d":"35,257"}},{"$f":"($A15-$A14)/365.25*(T14+(Main!$I21*Main!$D$3))*(1+VLOOKUP('Random Years'!R15,'Hist Returns'!$A$12:$D$107,3,FALSE))","v":{"v":60746.16064066768,"d":"60,746"}},{"$f":"($A15-$A14)/365.25*(U14+(Main!$I21*Main!$D$3))*(1+VLOOKUP('Random Years'!S15,'Hist Returns'!$A$12:$D$107,3,FALSE))","v":{"v":55282.18227765834,"d":"55,282"}},{"$f":"($A15-$A14)/365.25*(V14+(Main!$I21*Main!$D$3))*(1+VLOOKUP('Random Years'!T15,'Hist Returns'!$A$12:$D$107,3,FALSE))","v":{"v":48786.536743301716,"d":"48,787"}},{"$f":"($A15-$A14)/365.25*(W14+(Main!$I21*Main!$D$3))*(1+VLOOKUP('Random Years'!U15,'Hist Returns'!$A$12:$D$107,3,FALSE))","v":{"v":65536.35412433781,"d":"65,536"}},{"$f":"($A15-$A14)/365.25*(X14+(Main!$I21*Main!$D$3))*(1+VLOOKUP('Random Years'!V15,'Hist Returns'!$A$12:$D$107,3,FALSE))","v":{"v":39310.380605535254,"d":"39,310"}},{"$f":"($A15-$A14)/365.25*(Y14+(Main!$I21*Main!$D$3))*(1+VLOOKUP('Random Years'!W15,'Hist Returns'!$A$12:$D$107,3,FALSE))","v":{"v":34989.68239662238,"d":"34,990"}},{"$f":"($A15-$A14)/365.25*(Z14+(Main!$I21*Main!$D$3))*(1+VLOOKUP('Random Years'!X15,'Hist Returns'!$A$12:$D$107,3,FALSE))","v":{"v":43358.82236211067,"d":"43,359"}},{"$f":"($A15-$A14)/365.25*(AA14+(Main!$I21*Main!$D$3))*(1+VLOOKUP('Random Years'!Y15,'Hist Returns'!$A$12:$D$107,3,FALSE))","v":{"v":40002.29729752967,"d":"40,002"}},{"$f":"($A15-$A14)/365.25*(AB14+(Main!$I21*Main!$D$3))*(1+VLOOKUP('Random Years'!Z15,'Hist Returns'!$A$12:$D$107,3,FALSE))","v":{"v":45751.43251946845,"d":"45,751"}},{"$f":"($A15-$A14)/365.25*(AC14+(Main!$I21*Main!$D$3))*(1+VLOOKUP('Random Years'!AA15,'Hist Returns'!$A$12:$D$107,3,FALSE))","v":{"v":51828.27308800472,"d":"51,828"}},{"$f":"($A15-$A14)/365.25*(AD14+(Main!$I21*Main!$D$3))*(1+VLOOKUP('Random Years'!AB15,'Hist Returns'!$A$12:$D$107,3,FALSE))","v":{"v":44033.47355546133,"d":"44,033"}},{"$f":"($A15-$A14)/365.25*(AE14+(Main!$I21*Main!$D$3))*(1+VLOOKUP('Random Years'!AC15,'Hist Returns'!$A$12:$D$107,3,FALSE))","v":{"v":43775.3398105318,"d":"43,775"}},{"$f":"($A15-$A14)/365.25*(AF14+(Main!$I21*Main!$D$3))*(1+VLOOKUP('Random Years'!AD15,'Hist Returns'!$A$12:$D$107,3,FALSE))","v":{"v":38986.11473208636,"d":"38,986"}},{"$f":"($A15-$A14)/365.25*(AG14+(Main!$I21*Main!$D$3))*(1+VLOOKUP('Random Years'!AE15,'Hist Returns'!$A$12:$D$107,3,FALSE))","v":{"v":41612.700693316874,"d":"41,613"}},{"$f":"($A15-$A14)/365.25*(AH14+(Main!$I21*Main!$D$3))*(1+VLOOKUP('Random Years'!AF15,'Hist Returns'!$A$12:$D$107,3,FALSE))","v":{"v":43105.27282662871,"d":"43,105"}},{"$f":"($A15-$A14)/365.25*(AI14+(Main!$I21*Main!$D$3))*(1+VLOOKUP('Random Years'!AG15,'Hist Returns'!$A$12:$D$107,3,FALSE))","v":{"v":56771.84153869817,"d":"56,772"}},{"$f":"($A15-$A14)/365.25*(AJ14+(Main!$I21*Main!$D$3))*(1+VLOOKUP('Random Years'!AH15,'Hist Returns'!$A$12:$D$107,3,FALSE))","v":{"v":47554.39940940539,"d":"47,554"}},{"$f":"($A15-$A14)/365.25*(AK14+(Main!$I21*Main!$D$3))*(1+VLOOKUP('Random Years'!AI15,'Hist Returns'!$A$12:$D$107,3,FALSE))","v":{"v":37654.87912164003,"d":"37,655"}},{"$f":"($A15-$A14)/365.25*(AL14+(Main!$I21*Main!$D$3))*(1+VLOOKUP('Random Years'!AJ15,'Hist Returns'!$A$12:$D$107,3,FALSE))","v":{"v":46630.55479054456,"d":"46,631"}},{"$f":"($A15-$A14)/365.25*(AM14+(Main!$I21*Main!$D$3))*(1+VLOOKUP('Random Years'!AK15,'Hist Returns'!$A$12:$D$107,3,FALSE))","v":{"v":53658.63502723382,"d":"53,659"}},{"$f":"($A15-$A14)/365.25*(AN14+(Main!$I21*Main!$D$3))*(1+VLOOKUP('Random Years'!AL15,'Hist Returns'!$A$12:$D$107,3,FALSE))","v":{"v":53786.07188222416,"d":"53,786"}},{"$f":"($A15-$A14)/365.25*(AO14+(Main!$I21*Main!$D$3))*(1+VLOOKUP('Random Years'!AM15,'Hist Returns'!$A$12:$D$107,3,FALSE))","v":{"v":65856.0060598943,"d":"65,856"}},{"$f":"($A15-$A14)/365.25*(AP14+(Main!$I21*Main!$D$3))*(1+VLOOKUP('Random Years'!AN15,'Hist Returns'!$A$12:$D$107,3,FALSE))","v":{"v":35507.68952826277,"d":"35,508"}},{"$f":"($A15-$A14)/365.25*(AQ14+(Main!$I21*Main!$D$3))*(1+VLOOKUP('Random Years'!AO15,'Hist Returns'!$A$12:$D$107,3,FALSE))","v":{"v":35012.54280596885,"d":"35,013"}},{"$f":"($A15-$A14)/365.25*(AR14+(Main!$I21*Main!$D$3))*(1+VLOOKUP('Random Years'!AP15,'Hist Returns'!$A$12:$D$107,3,FALSE))","v":{"v":37087.05954437253,"d":"37,087"}},{"$f":"($A15-$A14)/365.25*(AS14+(Main!$I21*Main!$D$3))*(1+VLOOKUP('Random Years'!AQ15,'Hist Returns'!$A$12:$D$107,3,FALSE))","v":{"v":42773.330626216295,"d":"42,773"}},{"$f":"($A15-$A14)/365.25*(AT14+(Main!$I21*Main!$D$3))*(1+VLOOKUP('Random Years'!AR15,'Hist Returns'!$A$12:$D$107,3,FALSE))","v":{"v":46046.49038690147,"d":"46,046"}},{"$f":"($A15-$A14)/365.25*(AU14+(Main!$I21*Main!$D$3))*(1+VLOOKUP('Random Years'!AS15,'Hist Returns'!$A$12:$D$107,3,FALSE))","v":{"v":40482.48374859837,"d":"40,482"}},{"$f":"($A15-$A14)/365.25*(AV14+(Main!$I21*Main!$D$3))*(1+VLOOKUP('Random Years'!AT15,'Hist Returns'!$A$12:$D$107,3,FALSE))","v":{"v":29511.888859835668,"d":"29,512"}},{"$f":"($A15-$A14)/365.25*(AW14+(Main!$I21*Main!$D$3))*(1+VLOOKUP('Random Years'!AU15,'Hist Returns'!$A$12:$D$107,3,FALSE))","v":{"v":39499.03345678972,"d":"39,499"}},{"$f":"($A15-$A14)/365.25*(AX14+(Main!$I21*Main!$D$3))*(1+VLOOKUP('Random Years'!AV15,'Hist Returns'!$A$12:$D$107,3,FALSE))","v":{"v":40161.93517759275,"d":"40,162"}},{"$f":"($A15-$A14)/365.25*(AY14+(Main!$I21*Main!$D$3))*(1+VLOOKUP('Random Years'!AW15,'Hist Returns'!$A$12:$D$107,3,FALSE))","v":{"v":29985.338179619936,"d":"29,985"}},{"$f":"($A15-$A14)/365.25*(AZ14+(Main!$I21*Main!$D$3))*(1+VLOOKUP('Random Years'!AX15,'Hist Returns'!$A$12:$D$107,3,FALSE))","v":{"v":40008.18741478747,"d":"40,008"}},{"$f":"($A15-$A14)/365.25*(BA14+(Main!$I21*Main!$D$3))*(1+VLOOKUP('Random Years'!AY15,'Hist Returns'!$A$12:$D$107,3,FALSE))","v":{"v":54947.28717251543,"d":"54,947"}},{"$f":"($A15-$A14)/365.25*(BB14+(Main!$I21*Main!$D$3))*(1+VLOOKUP('Random Years'!AZ15,'Hist Returns'!$A$12:$D$107,3,FALSE))","v":{"v":60619.74580994065,"d":"60,620"}},{"$f":"($A15-$A14)/365.25*(BC14+(Main!$I21*Main!$D$3))*(1+VLOOKUP('Random Years'!BA15,'Hist Returns'!$A$12:$D$107,3,FALSE))","v":{"v":63556.980062881994,"d":"63,557"}},{"$f":"($A15-$A14)/365.25*(BD14+(Main!$I21*Main!$D$3))*(1+VLOOKUP('Random Years'!BB15,'Hist Returns'!$A$12:$D$107,3,FALSE))","v":{"v":33388.29641160702,"d":"33,388"}},{"$f":"($A15-$A14)/365.25*(BE14+(Main!$I21*Main!$D$3))*(1+VLOOKUP('Random Years'!BC15,'Hist Returns'!$A$12:$D$107,3,FALSE))","v":{"v":44848.51883116441,"d":"44,849"}},{"$f":"($A15-$A14)/365.25*(BF14+(Main!$I21*Main!$D$3))*(1+VLOOKUP('Random Years'!BD15,'Hist Returns'!$A$12:$D$107,3,FALSE))","v":{"v":47644.82851066493,"d":"47,645"}},{"$f":"($A15-$A14)/365.25*(BG14+(Main!$I21*Main!$D$3))*(1+VLOOKUP('Random Years'!BE15,'Hist Returns'!$A$12:$D$107,3,FALSE))","v":{"v":40435.352357101365,"d":"40,435"}},{"$f":"($A15-$A14)/365.25*(BH14+(Main!$I21*Main!$D$3))*(1+VLOOKUP('Random Years'!BF15,'Hist Returns'!$A$12:$D$107,3,FALSE))","v":{"v":33537.25600024088,"d":"33,537"}},{"$f":"($A15-$A14)/365.25*(BI14+(Main!$I21*Main!$D$3))*(1+VLOOKUP('Random Years'!BG15,'Hist Returns'!$A$12:$D$107,3,FALSE))","v":{"v":43899.595853303406,"d":"43,900"}},{"$f":"($A15-$A14)/365.25*(BJ14+(Main!$I21*Main!$D$3))*(1+VLOOKUP('Random Years'!BH15,'Hist Returns'!$A$12:$D$107,3,FALSE))","v":{"v":56905.45320056053,"d":"56,905"}},{"$f":"($A15-$A14)/365.25*(BK14+(Main!$I21*Main!$D$3))*(1+VLOOKUP('Random Years'!BI15,'Hist Returns'!$A$12:$D$107,3,FALSE))","v":{"v":39374.01875399732,"d":"39,374"}},{"$f":"($A15-$A14)/365.25*(BL14+(Main!$I21*Main!$D$3))*(1+VLOOKUP('Random Years'!BJ15,'Hist Returns'!$A$12:$D$107,3,FALSE))","v":{"v":45792.28934356531,"d":"45,792"}},{"$f":"($A15-$A14)/365.25*(BM14+(Main!$I21*Main!$D$3))*(1+VLOOKUP('Random Years'!BK15,'Hist Returns'!$A$12:$D$107,3,FALSE))","v":{"v":41906.44522953324,"d":"41,906"}},{"$f":"($A15-$A14)/365.25*(BN14+(Main!$I21*Main!$D$3))*(1+VLOOKUP('Random Years'!BL15,'Hist Returns'!$A$12:$D$107,3,FALSE))","v":{"v":44157.96572687936,"d":"44,158"}},{"$f":"($A15-$A14)/365.25*(BO14+(Main!$I21*Main!$D$3))*(1+VLOOKUP('Random Years'!BM15,'Hist Returns'!$A$12:$D$107,3,FALSE))","v":{"v":46919.23104742015,"d":"46,919"}},{"$f":"($A15-$A14)/365.25*(BP14+(Main!$I21*Main!$D$3))*(1+VLOOKUP('Random Years'!BN15,'Hist Returns'!$A$12:$D$107,3,FALSE))","v":{"v":32815.202251344206,"d":"32,815"}},{"$f":"($A15-$A14)/365.25*(BQ14+(Main!$I21*Main!$D$3))*(1+VLOOKUP('Random Years'!BO15,'Hist Returns'!$A$12:$D$107,3,FALSE))","v":{"v":41862.85057475519,"d":"41,863"}},{"$f":"($A15-$A14)/365.25*(BR14+(Main!$I21*Main!$D$3))*(1+VLOOKUP('Random Years'!BP15,'Hist Returns'!$A$12:$D$107,3,FALSE))","v":{"v":48250.70272880488,"d":"48,251"}},{"$f":"($A15-$A14)/365.25*(BS14+(Main!$I21*Main!$D$3))*(1+VLOOKUP('Random Years'!BQ15,'Hist Returns'!$A$12:$D$107,3,FALSE))","v":{"v":44299.66240101727,"d":"44,300"}},{"$f":"($A15-$A14)/365.25*(BT14+(Main!$I21*Main!$D$3))*(1+VLOOKUP('Random Years'!BR15,'Hist Returns'!$A$12:$D$107,3,FALSE))","v":{"v":44707.9246155231,"d":"44,708"}},{"$f":"($A15-$A14)/365.25*(BU14+(Main!$I21*Main!$D$3))*(1+VLOOKUP('Random Years'!BS15,'Hist Returns'!$A$12:$D$107,3,FALSE))","v":{"v":58428.364224572884,"d":"58,428"}},{"$f":"($A15-$A14)/365.25*(BV14+(Main!$I21*Main!$D$3))*(1+VLOOKUP('Random Years'!BT15,'Hist Returns'!$A$12:$D$107,3,FALSE))","v":{"v":41178.70634164101,"d":"41,179"}},{"$f":"($A15-$A14)/365.25*(BW14+(Main!$I21*Main!$D$3))*(1+VLOOKUP('Random Years'!BU15,'Hist Returns'!$A$12:$D$107,3,FALSE))","v":{"v":37852.45051503514,"d":"37,852"}},{"$f":"($A15-$A14)/365.25*(BX14+(Main!$I21*Main!$D$3))*(1+VLOOKUP('Random Years'!BV15,'Hist Returns'!$A$12:$D$107,3,FALSE))","v":{"v":47582.785925815806,"d":"47,583"}},{"$f":"($A15-$A14)/365.25*(BY14+(Main!$I21*Main!$D$3))*(1+VLOOKUP('Random Years'!BW15,'Hist Returns'!$A$12:$D$107,3,FALSE))","v":{"v":46878.69837030321,"d":"46,879"}},{"$f":"($A15-$A14)/365.25*(BZ14+(Main!$I21*Main!$D$3))*(1+VLOOKUP('Random Years'!BX15,'Hist Returns'!$A$12:$D$107,3,FALSE))","v":{"v":37517.68256094956,"d":"37,518"}},{"$f":"($A15-$A14)/365.25*(CA14+(Main!$I21*Main!$D$3))*(1+VLOOKUP('Random Years'!BY15,'Hist Returns'!$A$12:$D$107,3,FALSE))","v":{"v":41600.326108181325,"d":"41,600"}},{"$f":"($A15-$A14)/365.25*(CB14+(Main!$I21*Main!$D$3))*(1+VLOOKUP('Random Years'!BZ15,'Hist Returns'!$A$12:$D$107,3,FALSE))","v":{"v":43889.11063882884,"d":"43,889"}},{"$f":"($A15-$A14)/365.25*(CC14+(Main!$I21*Main!$D$3))*(1+VLOOKUP('Random Years'!CA15,'Hist Returns'!$A$12:$D$107,3,FALSE))","v":{"v":45188.706492988444,"d":"45,189"}},{"$f":"($A15-$A14)/365.25*(CD14+(Main!$I21*Main!$D$3))*(1+VLOOKUP('Random Years'!CB15,'Hist Returns'!$A$12:$D$107,3,FALSE))","v":{"v":40104.32048047233,"d":"40,104"}},{"$f":"($A15-$A14)/365.25*(CE14+(Main!$I21*Main!$D$3))*(1+VLOOKUP('Random Years'!CC15,'Hist Returns'!$A$12:$D$107,3,FALSE))","v":{"v":49986.498872309436,"d":"49,986"}},{"$f":"($A15-$A14)/365.25*(CF14+(Main!$I21*Main!$D$3))*(1+VLOOKUP('Random Years'!CD15,'Hist Returns'!$A$12:$D$107,3,FALSE))","v":{"v":51055.91068276875,"d":"51,056"}},{"$f":"($A15-$A14)/365.25*(CG14+(Main!$I21*Main!$D$3))*(1+VLOOKUP('Random Years'!CE15,'Hist Returns'!$A$12:$D$107,3,FALSE))","v":{"v":39021.651154296575,"d":"39,022"}},{"$f":"($A15-$A14)/365.25*(CH14+(Main!$I21*Main!$D$3))*(1+VLOOKUP('Random Years'!CF15,'Hist Returns'!$A$12:$D$107,3,FALSE))","v":{"v":52704.92189217144,"d":"52,705"}},{"$f":"($A15-$A14)/365.25*(CI14+(Main!$I21*Main!$D$3))*(1+VLOOKUP('Random Years'!CG15,'Hist Returns'!$A$12:$D$107,3,FALSE))","v":{"v":50800.17097369192,"d":"50,800"}},{"$f":"($A15-$A14)/365.25*(CJ14+(Main!$I21*Main!$D$3))*(1+VLOOKUP('Random Years'!CH15,'Hist Returns'!$A$12:$D$107,3,FALSE))","v":{"v":46751.84034228543,"d":"46,752"}},{"$f":"($A15-$A14)/365.25*(CK14+(Main!$I21*Main!$D$3))*(1+VLOOKUP('Random Years'!CI15,'Hist Returns'!$A$12:$D$107,3,FALSE))","v":{"v":34576.29961129018,"d":"34,576"}},{"$f":"($A15-$A14)/365.25*(CL14+(Main!$I21*Main!$D$3))*(1+VLOOKUP('Random Years'!CJ15,'Hist Returns'!$A$12:$D$107,3,FALSE))","v":{"v":35603.59223036295,"d":"35,604"}},{"$f":"($A15-$A14)/365.25*(CM14+(Main!$I21*Main!$D$3))*(1+VLOOKUP('Random Years'!CK15,'Hist Returns'!$A$12:$D$107,3,FALSE))","v":{"v":42983.76807375722,"d":"42,984"}},{"$f":"($A15-$A14)/365.25*(CN14+(Main!$I21*Main!$D$3))*(1+VLOOKUP('Random Years'!CL15,'Hist Returns'!$A$12:$D$107,3,FALSE))","v":{"v":53317.901769775715,"d":"53,318"}},{"$f":"($A15-$A14)/365.25*(CO14+(Main!$I21*Main!$D$3))*(1+VLOOKUP('Random Years'!CM15,'Hist Returns'!$A$12:$D$107,3,FALSE))","v":{"v":42754.39994061034,"d":"42,754"}},{"$f":"($A15-$A14)/365.25*(CP14+(Main!$I21*Main!$D$3))*(1+VLOOKUP('Random Years'!CN15,'Hist Returns'!$A$12:$D$107,3,FALSE))","v":{"v":56166.06115398392,"d":"56,166"}},{"$f":"($A15-$A14)/365.25*(CQ14+(Main!$I21*Main!$D$3))*(1+VLOOKUP('Random Years'!CO15,'Hist Returns'!$A$12:$D$107,3,FALSE))","v":{"v":36524.20081085096,"d":"36,524"}},{"$f":"($A15-$A14)/365.25*(CR14+(Main!$I21*Main!$D$3))*(1+VLOOKUP('Random Years'!CP15,'Hist Returns'!$A$12:$D$107,3,FALSE))","v":{"v":39972.448260669276,"d":"39,972"}},{"$f":"($A15-$A14)/365.25*(CS14+(Main!$I21*Main!$D$3))*(1+VLOOKUP('Random Years'!CQ15,'Hist Returns'!$A$12:$D$107,3,FALSE))","v":{"v":41141.84352607731,"d":"41,142"}},{"$f":"($A15-$A14)/365.25*(CT14+(Main!$I21*Main!$D$3))*(1+VLOOKUP('Random Years'!CR15,'Hist Returns'!$A$12:$D$107,3,FALSE))","v":{"v":54777.64150502413,"d":"54,778"}},{"$f":"($A15-$A14)/365.25*(CU14+(Main!$I21*Main!$D$3))*(1+VLOOKUP('Random Years'!CS15,'Hist Returns'!$A$12:$D$107,3,FALSE))","v":{"v":44417.83204926242,"d":"44,418"}},{"$f":"($A15-$A14)/365.25*(CV14+(Main!$I21*Main!$D$3))*(1+VLOOKUP('Random Years'!CT15,'Hist Returns'!$A$12:$D$107,3,FALSE))","v":{"v":39727.566760467664,"d":"39,728"}},{"$f":"($A15-$A14)/365.25*(CW14+(Main!$I21*Main!$D$3))*(1+VLOOKUP('Random Years'!CU15,'Hist Returns'!$A$12:$D$107,3,FALSE))","v":{"v":43967.80154850644,"d":"43,968"}},{"$f":"($A15-$A14)/365.25*(CX14+(Main!$I21*Main!$D$3))*(1+VLOOKUP('Random Years'!CV15,'Hist Returns'!$A$12:$D$107,3,FALSE))","v":{"v":43168.99685231005,"d":"43,169"}}]
[{"$f":"Main!A22","v":"2037-12-30"},{"$f":"Main!B22","v":83},{"$f":"($A16-$A15)/365.25*(C15+(Main!$I22*Main!$D$3))*(1+VLOOKUP('Random Years'!A16,'Hist Returns'!$A$12:$D$107,3,FALSE))","v":{"v":45167.55071918659,"d":"45,168"}},{"$f":"($A16-$A15)/365.25*(D15+(Main!$I22*Main!$D$3))*(1+VLOOKUP('Random Years'!B16,'Hist Returns'!$A$12:$D$107,3,FALSE))","v":{"v":29935.849291235114,"d":"29,936"}},{"$f":"($A16-$A15)/365.25*(E15+(Main!$I22*Main!$D$3))*(1+VLOOKUP('Random Years'!C16,'Hist Returns'!$A$12:$D$107,3,FALSE))","v":{"v":36866.83560069805,"d":"36,867"}},{"$f":"($A16-$A15)/365.25*(F15+(Main!$I22*Main!$D$3))*(1+VLOOKUP('Random Years'!D16,'Hist Returns'!$A$12:$D$107,3,FALSE))","v":{"v":39137.36112044328,"d":"39,137"}},{"$f":"($A16-$A15)/365.25*(G15+(Main!$I22*Main!$D$3))*(1+VLOOKUP('Random Years'!E16,'Hist Returns'!$A$12:$D$107,3,FALSE))","v":{"v":40126.348174811734,"d":"40,126"}},{"$f":"($A16-$A15)/365.25*(H15+(Main!$I22*Main!$D$3))*(1+VLOOKUP('Random Years'!F16,'Hist Returns'!$A$12:$D$107,3,FALSE))","v":{"v":37766.382091688785,"d":"37,766"}},{"$f":"($A16-$A15)/365.25*(I15+(Main!$I22*Main!$D$3))*(1+VLOOKUP('Random Years'!G16,'Hist Returns'!$A$12:$D$107,3,FALSE))","v":{"v":35570.105069793775,"d":"35,570"}},{"$f":"($A16-$A15)/365.25*(J15+(Main!$I22*Main!$D$3))*(1+VLOOKUP('Random Years'!H16,'Hist Returns'!$A$12:$D$107,3,FALSE))","v":{"v":53784.00163118835,"d":"53,784"}},{"$f":"($A16-$A15)/365.25*(K15+(Main!$I22*Main!$D$3))*(1+VLOOKUP('Random Years'!I16,'Hist Returns'!$A$12:$D$107,3,FALSE))","v":{"v":56539.806606535756,"d":"56,540"}},{"$f":"($A16-$A15)/365.25*(L15+(Main!$I22*Main!$D$3))*(1+VLOOKUP('Random Years'!J16,'Hist Returns'!$A$12:$D$107,3,FALSE))","v":{"v":27169.701415859232,"d":"27,170"}},{"$f":"($A16-$A15)/365.25*(M15+(Main!$I22*Main!$D$3))*(1+VLOOKUP('Random Years'!K16,'Hist Returns'!$A$12:$D$107,3,FALSE))","v":{"v":24721.220064970377,"d":"24,721"}},{"$f":"($A16-$A15)/365.25*(N15+(Main!$I22*Main!$D$3))*(1+VLOOKUP('Random Years'!L16,'Hist Returns'!$A$12:$D$107,3,FALSE))","v":{"v":45138.655428133825,"d":"45,139"}},{"$f":"($A16-$A15)/365.25*(O15+(Main!$I22*Main!$D$3))*(1+VLOOKUP('Random Years'!M16,'Hist Returns'!$A$12:$D$107,3,FALSE))","v":{"v":44722.60903248784,"d":"44,723"}},{"$f":"($A16-$A15)/365.25*(P15+(Main!$I22*Main!$D$3))*(1+VLOOKUP('Random Years'!N16,'Hist Returns'!$A$12:$D$107,3,FALSE))","v":{"v":35485.95493240975,"d":"35,486"}},{"$f":"($A16-$A15)/365.25*(Q15+(Main!$I22*Main!$D$3))*(1+VLOOKUP('Random Years'!O16,'Hist Returns'!$A$12:$D$107,3,FALSE))","v":{"v":26525.936554926295,"d":"26,526"}},{"$f":"($A16-$A15)/365.25*(R15+(Main!$I22*Main!$D$3))*(1+VLOOKUP('Random Years'!P16,'Hist Returns'!$A$12:$D$107,3,FALSE))","v":{"v":42325.47458723568,"d":"42,325"}},{"$f":"($A16-$A15)/365.25*(S15+(Main!$I22*Main!$D$3))*(1+VLOOKUP('Random Years'!Q16,'Hist Returns'!$A$12:$D$107,3,FALSE))","v":{"v":27965.65157139571,"d":"27,966"}},{"$f":"($A16-$A15)/365.25*(T15+(Main!$I22*Main!$D$3))*(1+VLOOKUP('Random Years'!R16,'Hist Returns'!$A$12:$D$107,3,FALSE))","v":{"v":55298.504462436445,"d":"55,299"}},{"$f":"($A16-$A15)/365.25*(U15+(Main!$I22*Main!$D$3))*(1+VLOOKUP('Random Years'!S16,'Hist Returns'!$A$12:$D$107,3,FALSE))","v":{"v":47991.88444144406,"d":"47,992"}},{"$f":"($A16-$A15)/365.25*(V15+(Main!$I22*Main!$D$3))*(1+VLOOKUP('Random Years'!T16,'Hist Returns'!$A$12:$D$107,3,FALSE))","v":{"v":42114.721629788844,"d":"42,115"}},{"$f":"($A16-$A15)/365.25*(W15+(Main!$I22*Main!$D$3))*(1+VLOOKUP('Random Years'!U16,'Hist Returns'!$A$12:$D$107,3,FALSE))","v":{"v":59176.5501391742,"d":"59,177"}},{"$f":"($A16-$A15)/365.25*(X15+(Main!$I22*Main!$D$3))*(1+VLOOKUP('Random Years'!V16,'Hist Returns'!$A$12:$D$107,3,FALSE))","v":{"v":32987.90590766029,"d":"32,988"}},{"$f":"($A16-$A15)/365.25*(Y15+(Main!$I22*Main!$D$3))*(1+VLOOKUP('Random Years'!W16,'Hist Returns'!$A$12:$D$107,3,FALSE))","v":{"v":29603.03173924151,"d":"29,603"}},{"$f":"($A16-$A15)/365.25*(Z15+(Main!$I22*Main!$D$3))*(1+VLOOKUP('Random Years'!X16,'Hist Returns'!$A$12:$D$107,3,FALSE))","v":{"v":38852.434980529535,"d":"38,852"}},{"$f":"($A16-$A15)/365.25*(AA15+(Main!$I22*Main!$D$3))*(1+VLOOKUP('Random Years'!Y16,'Hist Returns'!$A$12:$D$107,3,FALSE))","v":{"v":33027.15564575714,"d":"33,027"}},{"$f":"($A16-$A15)/365.25*(AB15+(Main!$I22*Main!$D$3))*(1+VLOOKUP('Random Years'!Z16,'Hist Returns'!$A$12:$D$107,3,FALSE))","v":{"v":40184.00542588386,"d":"40,184"}},{"$f":"($A16-$A15)/365.25*(AC15+(Main!$I22*Main!$D$3))*(1+VLOOKUP('Random Years'!AA16,'Hist Returns'!$A$12:$D$107,3,FALSE))","v":{"v":44680.70539338973,"d":"44,681"}},{"$f":"($A16-$A15)/365.25*(AD15+(Main!$I22*Main!$D$3))*(1+VLOOKUP('Random Years'!AB16,'Hist Returns'!$A$12:$D$107,3,FALSE))","v":{"v":40251.090715499115,"d":"40,251"}},{"$f":"($A16-$A15)/365.25*(AE15+(Main!$I22*Main!$D$3))*(1+VLOOKUP('Random Years'!AC16,'Hist Returns'!$A$12:$D$107,3,FALSE))","v":{"v":36580.825363164884,"d":"36,581"}},{"$f":"($A16-$A15)/365.25*(AF15+(Main!$I22*Main!$D$3))*(1+VLOOKUP('Random Years'!AD16,'Hist Returns'!$A$12:$D$107,3,FALSE))","v":{"v":33277.941832919154,"d":"33,278"}},{"$f":"($A16-$A15)/365.25*(AG15+(Main!$I22*Main!$D$3))*(1+VLOOKUP('Random Years'!AE16,'Hist Returns'!$A$12:$D$107,3,FALSE))","v":{"v":36024.99090180286,"d":"36,025"}},{"$f":"($A16-$A15)/365.25*(AH15+(Main!$I22*Main!$D$3))*(1+VLOOKUP('Random Years'!AF16,'Hist Returns'!$A$12:$D$107,3,FALSE))","v":{"v":37573.51999555671,"d":"37,574"}},{"$f":"($A16-$A15)/365.25*(AI15+(Main!$I22*Main!$D$3))*(1+VLOOKUP('Random Years'!AG16,'Hist Returns'!$A$12:$D$107,3,FALSE))","v":{"v":49535.814190920275,"d":"49,536"}},{"$f":"($A16-$A15)/365.25*(AJ15+(Main!$I22*Main!$D$3))*(1+VLOOKUP('Random Years'!AH16,'Hist Returns'!$A$12:$D$107,3,FALSE))","v":{"v":40264.757456199775,"d":"40,265"}},{"$f":"($A16-$A15)/365.25*(AK15+(Main!$I22*Main!$D$3))*(1+VLOOKUP('Random Years'!AI16,'Hist Returns'!$A$12:$D$107,3,FALSE))","v":{"v":30854.67805943843,"d":"30,855"}},{"$f":"($A16-$A15)/365.25*(AL15+(Main!$I22*Main!$D$3))*(1+VLOOKUP('Random Years'!AJ16,'Hist Returns'!$A$12:$D$107,3,FALSE))","v":{"v":41566.35613280641,"d":"41,566"}},{"$f":"($A16-$A15)/365.25*(AM15+(Main!$I22*Main!$D$3))*(1+VLOOKUP('Random Years'!AK16,'Hist Returns'!$A$12:$D$107,3,FALSE))","v":{"v":47837.47424448508,"d":"47,837"}},{"$f":"($A16-$A15)/365.25*(AN15+(Main!$I22*Main!$D$3))*(1+VLOOKUP('Random Years'!AL16,'Hist Returns'!$A$12:$D$107,3,FALSE))","v":{"v":46946.64082202166,"d":"46,947"}},{"$f":"($A16-$A15)/365.25*(AO15+(Main!$I22*Main!$D$3))*(1+VLOOKUP('Random Years'!AM16,'Hist Returns'!$A$12:$D$107,3,FALSE))","v":{"v":61485.442466867724,"d":"61,485"}},{"$f":"($A16-$A15)/365.25*(AP15+(Main!$I22*Main!$D$3))*(1+VLOOKUP('Random Years'!AN16,'Hist Returns'!$A$12:$D$107,3,FALSE))","v":{"v":29685.581753973507,"d":"29,686"}},{"$f":"($A16-$A15)/365.25*(AQ15+(Main!$I22*Main!$D$3))*(1+VLOOKUP('Random Years'!AO16,'Hist Returns'!$A$12:$D$107,3,FALSE))","v":{"v":28968.024929668303,"d":"28,968"}},{"$f":"($A16-$A15)/365.25*(AR15+(Main!$I22*Main!$D$3))*(1+VLOOKUP('Random Years'!AP16,'Hist Returns'!$A$12:$D$107,3,FALSE))","v":{"v":29819.15229603116,"d":"29,819"}},{"$f":"($A16-$A15)/365.25*(AS15+(Main!$I22*Main!$D$3))*(1+VLOOKUP('Random Years'!AQ16,'Hist Returns'!$A$12:$D$107,3,FALSE))","v":{"v":35803.25980936707,"d":"35,803"}},{"$f":"($A16-$A15)/365.25*(AT15+(Main!$I22*Main!$D$3))*(1+VLOOKUP('Random Years'!AR16,'Hist Returns'!$A$12:$D$107,3,FALSE))","v":{"v":38768.59653587488,"d":"38,769"}},{"$f":"($A16-$A15)/365.25*(AU15+(Main!$I22*Main!$D$3))*(1+VLOOKUP('Random Years'!AS16,'Hist Returns'!$A$12:$D$107,3,FALSE))","v":{"v":33216.66348926138,"d":"33,217"}},{"$f":"($A16-$A15)/365.25*(AV15+(Main!$I22*Main!$D$3))*(1+VLOOKUP('Random Years'!AT16,'Hist Returns'!$A$12:$D$107,3,FALSE))","v":{"v":22423.672303060903,"d":"22,424"}},{"$f":"($A16-$A15)/365.25*(AW15+(Main!$I22*Main!$D$3))*(1+VLOOKUP('Random Years'!AU16,'Hist Returns'!$A$12:$D$107,3,FALSE))","v":{"v":32724.322592387965,"d":"32,724"}},{"$f":"($A16-$A15)/365.25*(AX15+(Main!$I22*Main!$D$3))*(1+VLOOKUP('Random Years'!AV16,'Hist Returns'!$A$12:$D$107,3,FALSE))","v":{"v":32912.34449823867,"d":"32,912"}},{"$f":"($A16-$A15)/365.25*(AY15+(Main!$I22*Main!$D$3))*(1+VLOOKUP('Random Years'!AW16,'Hist Returns'!$A$12:$D$107,3,FALSE))","v":{"v":22703.992445093623,"d":"22,704"}},{"$f":"($A16-$A15)/365.25*(AZ15+(Main!$I22*Main!$D$3))*(1+VLOOKUP('Random Years'!AX16,'Hist Returns'!$A$12:$D$107,3,FALSE))","v":{"v":33683.82313679085,"d":"33,684"}},{"$f":"($A16-$A15)/365.25*(BA15+(Main!$I22*Main!$D$3))*(1+VLOOKUP('Random Years'!AY16,'Hist Returns'!$A$12:$D$107,3,FALSE))","v":{"v":50033.67695068732,"d":"50,034"}},{"$f":"($A16-$A15)/365.25*(BB15+(Main!$I22*Main!$D$3))*(1+VLOOKUP('Random Years'!AZ16,'Hist Returns'!$A$12:$D$107,3,FALSE))","v":{"v":55817.965638766866,"d":"55,818"}},{"$f":"($A16-$A15)/365.25*(BC15+(Main!$I22*Main!$D$3))*(1+VLOOKUP('Random Years'!BA16,'Hist Returns'!$A$12:$D$107,3,FALSE))","v":{"v":56519.02499923261,"d":"56,519"}},{"$f":"($A16-$A15)/365.25*(BD15+(Main!$I22*Main!$D$3))*(1+VLOOKUP('Random Years'!BB16,'Hist Returns'!$A$12:$D$107,3,FALSE))","v":{"v":26809.347193626316,"d":"26,809"}},{"$f":"($A16-$A15)/365.25*(BE15+(Main!$I22*Main!$D$3))*(1+VLOOKUP('Random Years'!BC16,'Hist Returns'!$A$12:$D$107,3,FALSE))","v":{"v":39420.921130561605,"d":"39,421"}},{"$f":"($A16-$A15)/365.25*(BF15+(Main!$I22*Main!$D$3))*(1+VLOOKUP('Random Years'!BD16,'Hist Returns'!$A$12:$D$107,3,FALSE))","v":{"v":41746.597702588304,"d":"41,747"}},{"$f":"($A16-$A15)/365.25*(BG15+(Main!$I22*Main!$D$3))*(1+VLOOKUP('Random Years'!BE16,'Hist Returns'!$A$12:$D$107,3,FALSE))","v":{"v":33315.259459108354,"d":"33,315"}},{"$f":"($A16-$A15)/365.25*(BH15+(Main!$I22*Main!$D$3))*(1+VLOOKUP('Random Years'!BF16,'Hist Returns'!$A$12:$D$107,3,FALSE))","v":{"v":27088.261773806626,"d":"27,088"}},{"$f":"($A16-$A15)/365.25*(BI15+(Main!$I22*Main!$D$3))*(1+VLOOKUP('Random Years'!BG16,'Hist Returns'!$A$12:$D$107,3,FALSE))","v":{"v":37715.23109109845,"d":"37,715"}},{"$f":"($A16-$A15)/365.25*(BJ15+(Main!$I22*Main!$D$3))*(1+VLOOKUP('Random Years'!BH16,'Hist Returns'!$A$12:$D$107,3,FALSE))","v":{"v":50165.41404926072,"d":"50,165"}},{"$f":"($A16-$A15)/365.25*(BK15+(Main!$I22*Main!$D$3))*(1+VLOOKUP('Random Years'!BI16,'Hist Returns'!$A$12:$D$107,3,FALSE))","v":{"v":32540.405905998283,"d":"32,540"}},{"$f":"($A16-$A15)/365.25*(BL15+(Main!$I22*Main!$D$3))*(1+VLOOKUP('Random Years'!BJ16,'Hist Returns'!$A$12:$D$107,3,FALSE))","v":{"v":38495.10100476283,"d":"38,495"}},{"$f":"($A16-$A15)/365.25*(BM15+(Main!$I22*Main!$D$3))*(1+VLOOKUP('Random Years'!BK16,'Hist Returns'!$A$12:$D$107,3,FALSE))","v":{"v":37288.13434582846,"d":"37,288"}},{"$f":"($A16-$A15)/365.25*(BN15+(Main!$I22*Main!$D$3))*(1+VLOOKUP('Random Years'!BL16,'Hist Returns'!$A$12:$D$107,3,FALSE))","v":{"v":37970.32251418687,"d":"37,970"}},{"$f":"($A16-$A15)/365.25*(BO15+(Main!$I22*Main!$D$3))*(1+VLOOKUP('Random Years'!BM16,'Hist Returns'!$A$12:$D$107,3,FALSE))","v":{"v":40837.62232709678,"d":"40,838"}},{"$f":"($A16-$A15)/365.25*(BP15+(Main!$I22*Main!$D$3))*(1+VLOOKUP('Random Years'!BN16,'Hist Returns'!$A$12:$D$107,3,FALSE))","v":{"v":26406.958163989126,"d":"26,407"}},{"$f":"($A16-$A15)/365.25*(BQ15+(Main!$I22*Main!$D$3))*(1+VLOOKUP('Random Years'!BO16,'Hist Returns'!$A$12:$D$107,3,FALSE))","v":{"v":35644.833439608126,"d":"35,645"}},{"$f":"($A16-$A15)/365.25*(BR15+(Main!$I22*Main!$D$3))*(1+VLOOKUP('Random Years'!BP16,'Hist Returns'!$A$12:$D$107,3,FALSE))","v":{"v":42708.987658048936,"d":"42,709"}},{"$f":"($A16-$A15)/365.25*(BS15+(Main!$I22*Main!$D$3))*(1+VLOOKUP('Random Years'!BQ16,'Hist Returns'!$A$12:$D$107,3,FALSE))","v":{"v":38156.92790693123,"d":"38,157"}},{"$f":"($A16-$A15)/365.25*(BT15+(Main!$I22*Main!$D$3))*(1+VLOOKUP('Random Years'!BR16,'Hist Returns'!$A$12:$D$107,3,FALSE))","v":{"v":37777.52668360106,"d":"37,778"}},{"$f":"($A16-$A15)/365.25*(BU15+(Main!$I22*Main!$D$3))*(1+VLOOKUP('Random Years'!BS16,'Hist Returns'!$A$12:$D$107,3,FALSE))","v":{"v":52773.22768384771,"d":"52,773"}},{"$f":"($A16-$A15)/365.25*(BV15+(Main!$I22*Main!$D$3))*(1+VLOOKUP('Random Years'!BT16,'Hist Returns'!$A$12:$D$107,3,FALSE))","v":{"v":34285.029405074034,"d":"34,285"}},{"$f":"($A16-$A15)/365.25*(BW15+(Main!$I22*Main!$D$3))*(1+VLOOKUP('Random Years'!BU16,'Hist Returns'!$A$12:$D$107,3,FALSE))","v":{"v":31122.611077104735,"d":"31,123"}},{"$f":"($A16-$A15)/365.25*(BX15+(Main!$I22*Main!$D$3))*(1+VLOOKUP('Random Years'!BV16,'Hist Returns'!$A$12:$D$107,3,FALSE))","v":{"v":41581.748928958616,"d":"41,582"}},{"$f":"($A16-$A15)/365.25*(BY15+(Main!$I22*Main!$D$3))*(1+VLOOKUP('Random Years'!BW16,'Hist Returns'!$A$12:$D$107,3,FALSE))","v":{"v":40954.11918780317,"d":"40,954"}},{"$f":"($A16-$A15)/365.25*(BZ15+(Main!$I22*Main!$D$3))*(1+VLOOKUP('Random Years'!BX16,'Hist Returns'!$A$12:$D$107,3,FALSE))","v":{"v":30301.39829616639,"d":"30,301"}},{"$f":"($A16-$A15)/365.25*(CA15+(Main!$I22*Main!$D$3))*(1+VLOOKUP('Random Years'!BY16,'Hist Returns'!$A$12:$D$107,3,FALSE))","v":{"v":35312.47545901141,"d":"35,312"}},{"$f":"($A16-$A15)/365.25*(CB15+(Main!$I22*Main!$D$3))*(1+VLOOKUP('Random Years'!BZ16,'Hist Returns'!$A$12:$D$107,3,FALSE))","v":{"v":36588.80642112798,"d":"36,589"}},{"$f":"($A16-$A15)/365.25*(CC15+(Main!$I22*Main!$D$3))*(1+VLOOKUP('Random Years'!CA16,'Hist Returns'!$A$12:$D$107,3,FALSE))","v":{"v":39967.32437538982,"d":"39,967"}},{"$f":"($A16-$A15)/365.25*(CD15+(Main!$I22*Main!$D$3))*(1+VLOOKUP('Random Years'!CB16,'Hist Returns'!$A$12:$D$107,3,FALSE))","v":{"v":32920.25686767866,"d":"32,920"}},{"$f":"($A16-$A15)/365.25*(CE15+(Main!$I22*Main!$D$3))*(1+VLOOKUP('Random Years'!CC16,'Hist Returns'!$A$12:$D$107,3,FALSE))","v":{"v":42799.06101350327,"d":"42,799"}},{"$f":"($A16-$A15)/365.25*(CF15+(Main!$I22*Main!$D$3))*(1+VLOOKUP('Random Years'!CD16,'Hist Returns'!$A$12:$D$107,3,FALSE))","v":{"v":44566.40856153971,"d":"44,566"}},{"$f":"($A16-$A15)/365.25*(CG15+(Main!$I22*Main!$D$3))*(1+VLOOKUP('Random Years'!CE16,'Hist Returns'!$A$12:$D$107,3,FALSE))","v":{"v":33629.21297405924,"d":"33,629"}},{"$f":"($A16-$A15)/365.25*(CH15+(Main!$I22*Main!$D$3))*(1+VLOOKUP('Random Years'!CF16,'Hist Returns'!$A$12:$D$107,3,FALSE))","v":{"v":50480.100098478244,"d":"50,480"}},{"$f":"($A16-$A15)/365.25*(CI15+(Main!$I22*Main!$D$3))*(1+VLOOKUP('Random Years'!CG16,'Hist Returns'!$A$12:$D$107,3,FALSE))","v":{"v":46393.253550657006,"d":"46,393"}},{"$f":"($A16-$A15)/365.25*(CJ15+(Main!$I22*Main!$D$3))*(1+VLOOKUP('Random Years'!CH16,'Hist Returns'!$A$12:$D$107,3,FALSE))","v":{"v":39986.79992943751,"d":"39,987"}},{"$f":"($A16-$A15)/365.25*(CK15+(Main!$I22*Main!$D$3))*(1+VLOOKUP('Random Years'!CI16,'Hist Returns'!$A$12:$D$107,3,FALSE))","v":{"v":27786.825705779906,"d":"27,787"}},{"$f":"($A16-$A15)/365.25*(CL15+(Main!$I22*Main!$D$3))*(1+VLOOKUP('Random Years'!CJ16,'Hist Returns'!$A$12:$D$107,3,FALSE))","v":{"v":29220.500127801908,"d":"29,221"}},{"$f":"($A16-$A15)/365.25*(CM15+(Main!$I22*Main!$D$3))*(1+VLOOKUP('Random Years'!CK16,'Hist Returns'!$A$12:$D$107,3,FALSE))","v":{"v":36015.57203707035,"d":"36,016"}},{"$f":"($A16-$A15)/365.25*(CN15+(Main!$I22*Main!$D$3))*(1+VLOOKUP('Random Years'!CL16,'Hist Returns'!$A$12:$D$107,3,FALSE))","v":{"v":48539.37996050704,"d":"48,539"}},{"$f":"($A16-$A15)/365.25*(CO15+(Main!$I22*Main!$D$3))*(1+VLOOKUP('Random Years'!CM16,'Hist Returns'!$A$12:$D$107,3,FALSE))","v":{"v":36159.86580074337,"d":"36,160"}},{"$f":"($A16-$A15)/365.25*(CP15+(Main!$I22*Main!$D$3))*(1+VLOOKUP('Random Years'!CN16,'Hist Returns'!$A$12:$D$107,3,FALSE))","v":{"v":50775.81250033613,"d":"50,776"}},{"$f":"($A16-$A15)/365.25*(CQ15+(Main!$I22*Main!$D$3))*(1+VLOOKUP('Random Years'!CO16,'Hist Returns'!$A$12:$D$107,3,FALSE))","v":{"v":29270.55658491985,"d":"29,271"}},{"$f":"($A16-$A15)/365.25*(CR15+(Main!$I22*Main!$D$3))*(1+VLOOKUP('Random Years'!CP16,'Hist Returns'!$A$12:$D$107,3,FALSE))","v":{"v":35910.63834167347,"d":"35,911"}},{"$f":"($A16-$A15)/365.25*(CS15+(Main!$I22*Main!$D$3))*(1+VLOOKUP('Random Years'!CQ16,'Hist Returns'!$A$12:$D$107,3,FALSE))","v":{"v":35568.05085859586,"d":"35,568"}},{"$f":"($A16-$A15)/365.25*(CT15+(Main!$I22*Main!$D$3))*(1+VLOOKUP('Random Years'!CR16,'Hist Returns'!$A$12:$D$107,3,FALSE))","v":{"v":49817.619028068024,"d":"49,818"}},{"$f":"($A16-$A15)/365.25*(CU15+(Main!$I22*Main!$D$3))*(1+VLOOKUP('Random Years'!CS16,'Hist Returns'!$A$12:$D$107,3,FALSE))","v":{"v":37247.19612340568,"d":"37,247"}},{"$f":"($A16-$A15)/365.25*(CV15+(Main!$I22*Main!$D$3))*(1+VLOOKUP('Random Years'!CT16,'Hist Returns'!$A$12:$D$107,3,FALSE))","v":{"v":33466.27575933604,"d":"33,466"}},{"$f":"($A16-$A15)/365.25*(CW15+(Main!$I22*Main!$D$3))*(1+VLOOKUP('Random Years'!CU16,'Hist Returns'!$A$12:$D$107,3,FALSE))","v":{"v":37594.8757549612,"d":"37,595"}},{"$f":"($A16-$A15)/365.25*(CX15+(Main!$I22*Main!$D$3))*(1+VLOOKUP('Random Years'!CV16,'Hist Returns'!$A$12:$D$107,3,FALSE))","v":{"v":36686.536876971084,"d":"36,687"}}]
[{"$f":"Main!A23","v":"2038-12-30"},{"$f":"Main!B23","v":84},{"$f":"($A17-$A16)/365.25*(C16+(Main!$I23*Main!$D$3))*(1+VLOOKUP('Random Years'!A17,'Hist Returns'!$A$12:$D$107,3,FALSE))","v":{"v":44103.87983853813,"d":"44,104"}},{"$f":"($A17-$A16)/365.25*(D16+(Main!$I23*Main!$D$3))*(1+VLOOKUP('Random Years'!B17,'Hist Returns'!$A$12:$D$107,3,FALSE))","v":{"v":28463.348287119003,"d":"28,463"}},{"$f":"($A17-$A16)/365.25*(E16+(Main!$I23*Main!$D$3))*(1+VLOOKUP('Random Years'!C17,'Hist Returns'!$A$12:$D$107,3,FALSE))","v":{"v":39185.196120998764,"d":"39,185"}},{"$f":"($A17-$A16)/365.25*(F16+(Main!$I23*Main!$D$3))*(1+VLOOKUP('Random Years'!D17,'Hist Returns'!$A$12:$D$107,3,FALSE))","v":{"v":37969.74498252527,"d":"37,970"}},{"$f":"($A17-$A16)/365.25*(G16+(Main!$I23*Main!$D$3))*(1+VLOOKUP('Random Years'!E17,'Hist Returns'!$A$12:$D$107,3,FALSE))","v":{"v":40306.52600566007,"d":"40,307"}},{"$f":"($A17-$A16)/365.25*(H16+(Main!$I23*Main!$D$3))*(1+VLOOKUP('Random Years'!F17,'Hist Returns'!$A$12:$D$107,3,FALSE))","v":{"v":38228.42180857474,"d":"38,228"}},{"$f":"($A17-$A16)/365.25*(I16+(Main!$I23*Main!$D$3))*(1+VLOOKUP('Random Years'!G17,'Hist Returns'!$A$12:$D$107,3,FALSE))","v":{"v":35536.488738943975,"d":"35,536"}},{"$f":"($A17-$A16)/365.25*(J16+(Main!$I23*Main!$D$3))*(1+VLOOKUP('Random Years'!H17,'Hist Returns'!$A$12:$D$107,3,FALSE))","v":{"v":55331.42795494827,"d":"55,331"}},{"$f":"($A17-$A16)/365.25*(K16+(Main!$I23*Main!$D$3))*(1+VLOOKUP('Random Years'!I17,'Hist Returns'!$A$12:$D$107,3,FALSE))","v":{"v":56975.27376354505,"d":"56,975"}},{"$f":"($A17-$A16)/365.25*(L16+(Main!$I23*Main!$D$3))*(1+VLOOKUP('Random Years'!J17,'Hist Returns'!$A$12:$D$107,3,FALSE))","v":{"v":25738.90389517525,"d":"25,739"}},{"$f":"($A17-$A16)/365.25*(M16+(Main!$I23*Main!$D$3))*(1+VLOOKUP('Random Years'!K17,'Hist Returns'!$A$12:$D$107,3,FALSE))","v":{"v":24011.52300738105,"d":"24,012"}},{"$f":"($A17-$A16)/365.25*(N16+(Main!$I23*Main!$D$3))*(1+VLOOKUP('Random Years'!L17,'Hist Returns'!$A$12:$D$107,3,FALSE))","v":{"v":44013.67554264144,"d":"44,014"}},{"$f":"($A17-$A16)/365.25*(O16+(Main!$I23*Main!$D$3))*(1+VLOOKUP('Random Years'!M17,'Hist Returns'!$A$12:$D$107,3,FALSE))","v":{"v":43917.25053194644,"d":"43,917"}},{"$f":"($A17-$A16)/365.25*(P16+(Main!$I23*Main!$D$3))*(1+VLOOKUP('Random Years'!N17,'Hist Returns'!$A$12:$D$107,3,FALSE))","v":{"v":34559.92941744498,"d":"34,560"}},{"$f":"($A17-$A16)/365.25*(Q16+(Main!$I23*Main!$D$3))*(1+VLOOKUP('Random Years'!O17,'Hist Returns'!$A$12:$D$107,3,FALSE))","v":{"v":25778.835590269497,"d":"25,779"}},{"$f":"($A17-$A16)/365.25*(R16+(Main!$I23*Main!$D$3))*(1+VLOOKUP('Random Years'!P17,'Hist Returns'!$A$12:$D$107,3,FALSE))","v":{"v":41430.21260660916,"d":"41,430"}},{"$f":"($A17-$A16)/365.25*(S16+(Main!$I23*Main!$D$3))*(1+VLOOKUP('Random Years'!Q17,'Hist Returns'!$A$12:$D$107,3,FALSE))","v":{"v":27629.499008089242,"d":"27,629"}},{"$f":"($A17-$A16)/365.25*(T16+(Main!$I23*Main!$D$3))*(1+VLOOKUP('Random Years'!R17,'Hist Returns'!$A$12:$D$107,3,FALSE))","v":{"v":55839.70662117313,"d":"55,840"}},{"$f":"($A17-$A16)/365.25*(U16+(Main!$I23*Main!$D$3))*(1+VLOOKUP('Random Years'!S17,'Hist Returns'!$A$12:$D$107,3,FALSE))","v":{"v":47604.48812919854,"d":"47,604"}},{"$f":"($A17-$A16)/365.25*(V16+(Main!$I23*Main!$D$3))*(1+VLOOKUP('Random Years'!T17,'Hist Returns'!$A$12:$D$107,3,FALSE))","v":{"v":41171.51039548989,"d":"41,172"}},{"$f":"($A17-$A16)/365.25*(W16+(Main!$I23*Main!$D$3))*(1+VLOOKUP('Random Years'!U17,'Hist Returns'!$A$12:$D$107,3,FALSE))","v":{"v":62264.0547765453,"d":"62,264"}},{"$f":"($A17-$A16)/365.25*(X16+(Main!$I23*Main!$D$3))*(1+VLOOKUP('Random Years'!V17,'Hist Returns'!$A$12:$D$107,3,FALSE))","v":{"v":33034.49917116903,"d":"33,034"}},{"$f":"($A17-$A16)/365.25*(Y16+(Main!$I23*Main!$D$3))*(1+VLOOKUP('Random Years'!W17,'Hist Returns'!$A$12:$D$107,3,FALSE))","v":{"v":28912.009310476198,"d":"28,912"}},{"$f":"($A17-$A16)/365.25*(Z16+(Main!$I23*Main!$D$3))*(1+VLOOKUP('Random Years'!X17,'Hist Returns'!$A$12:$D$107,3,FALSE))","v":{"v":42614.51326448344,"d":"42,615"}},{"$f":"($A17-$A16)/365.25*(AA16+(Main!$I23*Main!$D$3))*(1+VLOOKUP('Random Years'!Y17,'Hist Returns'!$A$12:$D$107,3,FALSE))","v":{"v":33261.35848248656,"d":"33,261"}},{"$f":"($A17-$A16)/365.25*(AB16+(Main!$I23*Main!$D$3))*(1+VLOOKUP('Random Years'!Z17,'Hist Returns'!$A$12:$D$107,3,FALSE))","v":{"v":39528.84239858936,"d":"39,529"}},{"$f":"($A17-$A16)/365.25*(AC16+(Main!$I23*Main!$D$3))*(1+VLOOKUP('Random Years'!AA17,'Hist Returns'!$A$12:$D$107,3,FALSE))","v":{"v":46461.069394426,"d":"46,461"}},{"$f":"($A17-$A16)/365.25*(AD16+(Main!$I23*Main!$D$3))*(1+VLOOKUP('Random Years'!AB17,'Hist Returns'!$A$12:$D$107,3,FALSE))","v":{"v":39860.49961645874,"d":"39,860"}},{"$f":"($A17-$A16)/365.25*(AE16+(Main!$I23*Main!$D$3))*(1+VLOOKUP('Random Years'!AC17,'Hist Returns'!$A$12:$D$107,3,FALSE))","v":{"v":36753.12924314301,"d":"36,753"}},{"$f":"($A17-$A16)/365.25*(AF16+(Main!$I23*Main!$D$3))*(1+VLOOKUP('Random Years'!AD17,'Hist Returns'!$A$12:$D$107,3,FALSE))","v":{"v":33304.32163938638,"d":"33,304"}},{"$f":"($A17-$A16)/365.25*(AG16+(Main!$I23*Main!$D$3))*(1+VLOOKUP('Random Years'!AE17,'Hist Returns'!$A$12:$D$107,3,FALSE))","v":{"v":36390.597356807295,"d":"36,391"}},{"$f":"($A17-$A16)/365.25*(AH16+(Main!$I23*Main!$D$3))*(1+VLOOKUP('Random Years'!AF17,'Hist Returns'!$A$12:$D$107,3,FALSE))","v":{"v":37005.938086500544,"d":"37,006"}},{"$f":"($A17-$A16)/365.25*(AI16+(Main!$I23*Main!$D$3))*(1+VLOOKUP('Random Years'!AG17,'Hist Returns'!$A$12:$D$107,3,FALSE))","v":{"v":49508.18467209425,"d":"49,508"}},{"$f":"($A17-$A16)/365.25*(AJ16+(Main!$I23*Main!$D$3))*(1+VLOOKUP('Random Years'!AH17,'Hist Returns'!$A$12:$D$107,3,FALSE))","v":{"v":41232.74680072726,"d":"41,233"}},{"$f":"($A17-$A16)/365.25*(AK16+(Main!$I23*Main!$D$3))*(1+VLOOKUP('Random Years'!AI17,'Hist Returns'!$A$12:$D$107,3,FALSE))","v":{"v":29340.550256913506,"d":"29,341"}},{"$f":"($A17-$A16)/365.25*(AL16+(Main!$I23*Main!$D$3))*(1+VLOOKUP('Random Years'!AJ17,'Hist Returns'!$A$12:$D$107,3,FALSE))","v":{"v":41574.908841960525,"d":"41,575"}},{"$f":"($A17-$A16)/365.25*(AM16+(Main!$I23*Main!$D$3))*(1+VLOOKUP('Random Years'!AK17,'Hist Returns'!$A$12:$D$107,3,FALSE))","v":{"v":46829.79323334666,"d":"46,830"}},{"$f":"($A17-$A16)/365.25*(AN16+(Main!$I23*Main!$D$3))*(1+VLOOKUP('Random Years'!AL17,'Hist Returns'!$A$12:$D$107,3,FALSE))","v":{"v":47417.968253929546,"d":"47,418"}},{"$f":"($A17-$A16)/365.25*(AO16+(Main!$I23*Main!$D$3))*(1+VLOOKUP('Random Years'!AM17,'Hist Returns'!$A$12:$D$107,3,FALSE))","v":{"v":59918.524930009036,"d":"59,919"}},{"$f":"($A17-$A16)/365.25*(AP16+(Main!$I23*Main!$D$3))*(1+VLOOKUP('Random Years'!AN17,'Hist Returns'!$A$12:$D$107,3,FALSE))","v":{"v":29806.995215266117,"d":"29,807"}},{"$f":"($A17-$A16)/365.25*(AQ16+(Main!$I23*Main!$D$3))*(1+VLOOKUP('Random Years'!AO17,'Hist Returns'!$A$12:$D$107,3,FALSE))","v":{"v":28649.599081710378,"d":"28,650"}},{"$f":"($A17-$A16)/365.25*(AR16+(Main!$I23*Main!$D$3))*(1+VLOOKUP('Random Years'!AP17,'Hist Returns'!$A$12:$D$107,3,FALSE))","v":{"v":29106.44275062289,"d":"29,106"}},{"$f":"($A17-$A16)/365.25*(AS16+(Main!$I23*Main!$D$3))*(1+VLOOKUP('Random Years'!AQ17,'Hist Returns'!$A$12:$D$107,3,FALSE))","v":{"v":35300.688665805035,"d":"35,301"}},{"$f":"($A17-$A16)/365.25*(AT16+(Main!$I23*Main!$D$3))*(1+VLOOKUP('Random Years'!AR17,'Hist Returns'!$A$12:$D$107,3,FALSE))","v":{"v":39446.09282925487,"d":"39,446"}},{"$f":"($A17-$A16)/365.25*(AU16+(Main!$I23*Main!$D$3))*(1+VLOOKUP('Random Years'!AS17,'Hist Returns'!$A$12:$D$107,3,FALSE))","v":{"v":33781.24540369531,"d":"33,781"}},{"$f":"($A17-$A16)/365.25*(AV16+(Main!$I23*Main!$D$3))*(1+VLOOKUP('Random Years'!AT17,'Hist Returns'!$A$12:$D$107,3,FALSE))","v":{"v":21174.33063400053,"d":"21,174"}},{"$f":"($A17-$A16)/365.25*(AW16+(Main!$I23*Main!$D$3))*(1+VLOOKUP('Random Years'!AU17,'Hist Returns'!$A$12:$D$107,3,FALSE))","v":{"v":32374.326514080105,"d":"32,374"}},{"$f":"($A17-$A16)/365.25*(AX16+(Main!$I23*Main!$D$3))*(1+VLOOKUP('Random Years'!AV17,'Hist Returns'!$A$12:$D$107,3,FALSE))","v":{"v":32829.727777534536,"d":"32,830"}},{"$f":"($A17-$A16)/365.25*(AY16+(Main!$I23*Main!$D$3))*(1+VLOOKUP('Random Years'!AW17,'Hist Returns'!$A$12:$D$107,3,FALSE))","v":{"v":21162.565717031066,"d":"21,163"}},{"$f":"($A17-$A16)/365.25*(AZ16+(Main!$I23*Main!$D$3))*(1+VLOOKUP('Random Years'!AX17,'Hist Returns'!$A$12:$D$107,3,FALSE))","v":{"v":33245.305162474746,"d":"33,245"}},{"$f":"($A17-$A16)/365.25*(BA16+(Main!$I23*Main!$D$3))*(1+VLOOKUP('Random Years'!AY17,'Hist Returns'!$A$12:$D$107,3,FALSE))","v":{"v":49173.78564150257,"d":"49,174"}},{"$f":"($A17-$A16)/365.25*(BB16+(Main!$I23*Main!$D$3))*(1+VLOOKUP('Random Years'!AZ17,'Hist Returns'!$A$12:$D$107,3,FALSE))","v":{"v":55077.6299471881,"d":"55,078"}},{"$f":"($A17-$A16)/365.25*(BC16+(Main!$I23*Main!$D$3))*(1+VLOOKUP('Random Years'!BA17,'Hist Returns'!$A$12:$D$107,3,FALSE))","v":{"v":55975.85606562108,"d":"55,976"}},{"$f":"($A17-$A16)/365.25*(BD16+(Main!$I23*Main!$D$3))*(1+VLOOKUP('Random Years'!BB17,'Hist Returns'!$A$12:$D$107,3,FALSE))","v":{"v":25518.349659652235,"d":"25,518"}},{"$f":"($A17-$A16)/365.25*(BE16+(Main!$I23*Main!$D$3))*(1+VLOOKUP('Random Years'!BC17,'Hist Returns'!$A$12:$D$107,3,FALSE))","v":{"v":37994.97008497332,"d":"37,995"}},{"$f":"($A17-$A16)/365.25*(BF16+(Main!$I23*Main!$D$3))*(1+VLOOKUP('Random Years'!BD17,'Hist Returns'!$A$12:$D$107,3,FALSE))","v":{"v":41762.14171205695,"d":"41,762"}},{"$f":"($A17-$A16)/365.25*(BG16+(Main!$I23*Main!$D$3))*(1+VLOOKUP('Random Years'!BE17,'Hist Returns'!$A$12:$D$107,3,FALSE))","v":{"v":31775.052917807163,"d":"31,775"}},{"$f":"($A17-$A16)/365.25*(BH16+(Main!$I23*Main!$D$3))*(1+VLOOKUP('Random Years'!BF17,'Hist Returns'!$A$12:$D$107,3,FALSE))","v":{"v":26333.56825555724,"d":"26,334"}},{"$f":"($A17-$A16)/365.25*(BI16+(Main!$I23*Main!$D$3))*(1+VLOOKUP('Random Years'!BG17,'Hist Returns'!$A$12:$D$107,3,FALSE))","v":{"v":36283.970340993066,"d":"36,284"}},{"$f":"($A17-$A16)/365.25*(BJ16+(Main!$I23*Main!$D$3))*(1+VLOOKUP('Random Years'!BH17,'Hist Returns'!$A$12:$D$107,3,FALSE))","v":{"v":52256.689206629264,"d":"52,257"}},{"$f":"($A17-$A16)/365.25*(BK16+(Main!$I23*Main!$D$3))*(1+VLOOKUP('Random Years'!BI17,'Hist Returns'!$A$12:$D$107,3,FALSE))","v":{"v":31306.76603149874,"d":"31,307"}},{"$f":"($A17-$A16)/365.25*(BL16+(Main!$I23*Main!$D$3))*(1+VLOOKUP('Random Years'!BJ17,'Hist Returns'!$A$12:$D$107,3,FALSE))","v":{"v":36988.723446457596,"d":"36,989"}},{"$f":"($A17-$A16)/365.25*(BM16+(Main!$I23*Main!$D$3))*(1+VLOOKUP('Random Years'!BK17,'Hist Returns'!$A$12:$D$107,3,FALSE))","v":{"v":36809.26296563014,"d":"36,809"}},{"$f":"($A17-$A16)/365.25*(BN16+(Main!$I23*Main!$D$3))*(1+VLOOKUP('Random Years'!BL17,'Hist Returns'!$A$12:$D$107,3,FALSE))","v":{"v":36463.41263437374,"d":"36,463"}},{"$f":"($A17-$A16)/365.25*(BO16+(Main!$I23*Main!$D$3))*(1+VLOOKUP('Random Years'!BM17,'Hist Returns'!$A$12:$D$107,3,FALSE))","v":{"v":41988.06118941658,"d":"41,988"}},{"$f":"($A17-$A16)/365.25*(BP16+(Main!$I23*Main!$D$3))*(1+VLOOKUP('Random Years'!BN17,'Hist Returns'!$A$12:$D$107,3,FALSE))","v":{"v":24853.53419877878,"d":"24,854"}},{"$f":"($A17-$A16)/365.25*(BQ16+(Main!$I23*Main!$D$3))*(1+VLOOKUP('Random Years'!BO17,'Hist Returns'!$A$12:$D$107,3,FALSE))","v":{"v":35726.99009045395,"d":"35,727"}},{"$f":"($A17-$A16)/365.25*(BR16+(Main!$I23*Main!$D$3))*(1+VLOOKUP('Random Years'!BP17,'Hist Returns'!$A$12:$D$107,3,FALSE))","v":{"v":43300.75539905633,"d":"43,301"}},{"$f":"($A17-$A16)/365.25*(BS16+(Main!$I23*Main!$D$3))*(1+VLOOKUP('Random Years'!BQ17,'Hist Returns'!$A$12:$D$107,3,FALSE))","v":{"v":40693.18216575412,"d":"40,693"}},{"$f":"($A17-$A16)/365.25*(BT16+(Main!$I23*Main!$D$3))*(1+VLOOKUP('Random Years'!BR17,'Hist Returns'!$A$12:$D$107,3,FALSE))","v":{"v":38645.72285714183,"d":"38,646"}},{"$f":"($A17-$A16)/365.25*(BU16+(Main!$I23*Main!$D$3))*(1+VLOOKUP('Random Years'!BS17,'Hist Returns'!$A$12:$D$107,3,FALSE))","v":{"v":51685.76847698452,"d":"51,686"}},{"$f":"($A17-$A16)/365.25*(BV16+(Main!$I23*Main!$D$3))*(1+VLOOKUP('Random Years'!BT17,'Hist Returns'!$A$12:$D$107,3,FALSE))","v":{"v":32735.1187495491,"d":"32,735"}},{"$f":"($A17-$A16)/365.25*(BW16+(Main!$I23*Main!$D$3))*(1+VLOOKUP('Random Years'!BU17,'Hist Returns'!$A$12:$D$107,3,FALSE))","v":{"v":30259.042181974735,"d":"30,259"}},{"$f":"($A17-$A16)/365.25*(BX16+(Main!$I23*Main!$D$3))*(1+VLOOKUP('Random Years'!BV17,'Hist Returns'!$A$12:$D$107,3,FALSE))","v":{"v":42635.172348655295,"d":"42,635"}},{"$f":"($A17-$A16)/365.25*(BY16+(Main!$I23*Main!$D$3))*(1+VLOOKUP('Random Years'!BW17,'Hist Returns'!$A$12:$D$107,3,FALSE))","v":{"v":42711.17194201113,"d":"42,711"}},{"$f":"($A17-$A16)/365.25*(BZ16+(Main!$I23*Main!$D$3))*(1+VLOOKUP('Random Years'!BX17,'Hist Returns'!$A$12:$D$107,3,FALSE))","v":{"v":29418.94206916432,"d":"29,419"}},{"$f":"($A17-$A16)/365.25*(CA16+(Main!$I23*Main!$D$3))*(1+VLOOKUP('Random Years'!BY17,'Hist Returns'!$A$12:$D$107,3,FALSE))","v":{"v":34525.023275554195,"d":"34,525"}},{"$f":"($A17-$A16)/365.25*(CB16+(Main!$I23*Main!$D$3))*(1+VLOOKUP('Random Years'!BZ17,'Hist Returns'!$A$12:$D$107,3,FALSE))","v":{"v":35220.57900584691,"d":"35,221"}},{"$f":"($A17-$A16)/365.25*(CC16+(Main!$I23*Main!$D$3))*(1+VLOOKUP('Random Years'!CA17,'Hist Returns'!$A$12:$D$107,3,FALSE))","v":{"v":42624.692890079255,"d":"42,625"}},{"$f":"($A17-$A16)/365.25*(CD16+(Main!$I23*Main!$D$3))*(1+VLOOKUP('Random Years'!CB17,'Hist Returns'!$A$12:$D$107,3,FALSE))","v":{"v":32913.26054048775,"d":"32,913"}},{"$f":"($A17-$A16)/365.25*(CE16+(Main!$I23*Main!$D$3))*(1+VLOOKUP('Random Years'!CC17,'Hist Returns'!$A$12:$D$107,3,FALSE))","v":{"v":43012.09095826468,"d":"43,012"}},{"$f":"($A17-$A16)/365.25*(CF16+(Main!$I23*Main!$D$3))*(1+VLOOKUP('Random Years'!CD17,'Hist Returns'!$A$12:$D$107,3,FALSE))","v":{"v":43674.54196152309,"d":"43,675"}},{"$f":"($A17-$A16)/365.25*(CG16+(Main!$I23*Main!$D$3))*(1+VLOOKUP('Random Years'!CE17,'Hist Returns'!$A$12:$D$107,3,FALSE))","v":{"v":32082.62985582478,"d":"32,083"}},{"$f":"($A17-$A16)/365.25*(CH16+(Main!$I23*Main!$D$3))*(1+VLOOKUP('Random Years'!CF17,'Hist Returns'!$A$12:$D$107,3,FALSE))","v":{"v":49059.2339259598,"d":"49,059"}},{"$f":"($A17-$A16)/365.25*(CI16+(Main!$I23*Main!$D$3))*(1+VLOOKUP('Random Years'!CG17,'Hist Returns'!$A$12:$D$107,3,FALSE))","v":{"v":44836.62336605028,"d":"44,837"}},{"$f":"($A17-$A16)/365.25*(CJ16+(Main!$I23*Main!$D$3))*(1+VLOOKUP('Random Years'!CH17,'Hist Returns'!$A$12:$D$107,3,FALSE))","v":{"v":38468.48969177884,"d":"38,468"}},{"$f":"($A17-$A16)/365.25*(CK16+(Main!$I23*Main!$D$3))*(1+VLOOKUP('Random Years'!CI17,'Hist Returns'!$A$12:$D$107,3,FALSE))","v":{"v":26495.12098411887,"d":"26,495"}},{"$f":"($A17-$A16)/365.25*(CL16+(Main!$I23*Main!$D$3))*(1+VLOOKUP('Random Years'!CJ17,'Hist Returns'!$A$12:$D$107,3,FALSE))","v":{"v":28067.030483253693,"d":"28,067"}},{"$f":"($A17-$A16)/365.25*(CM16+(Main!$I23*Main!$D$3))*(1+VLOOKUP('Random Years'!CK17,'Hist Returns'!$A$12:$D$107,3,FALSE))","v":{"v":34579.02035652162,"d":"34,579"}},{"$f":"($A17-$A16)/365.25*(CN16+(Main!$I23*Main!$D$3))*(1+VLOOKUP('Random Years'!CL17,'Hist Returns'!$A$12:$D$107,3,FALSE))","v":{"v":48996.86655430656,"d":"48,997"}},{"$f":"($A17-$A16)/365.25*(CO16+(Main!$I23*Main!$D$3))*(1+VLOOKUP('Random Years'!CM17,'Hist Returns'!$A$12:$D$107,3,FALSE))","v":{"v":37397.74905451569,"d":"37,398"}},{"$f":"($A17-$A16)/365.25*(CP16+(Main!$I23*Main!$D$3))*(1+VLOOKUP('Random Years'!CN17,'Hist Returns'!$A$12:$D$107,3,FALSE))","v":{"v":49700.077341677235,"d":"49,700"}},{"$f":"($A17-$A16)/365.25*(CQ16+(Main!$I23*Main!$D$3))*(1+VLOOKUP('Random Years'!CO17,'Hist Returns'!$A$12:$D$107,3,FALSE))","v":{"v":27732.655716191777,"d":"27,733"}},{"$f":"($A17-$A16)/365.25*(CR16+(Main!$I23*Main!$D$3))*(1+VLOOKUP('Random Years'!CP17,'Hist Returns'!$A$12:$D$107,3,FALSE))","v":{"v":35713.55153773464,"d":"35,714"}},{"$f":"($A17-$A16)/365.25*(CS16+(Main!$I23*Main!$D$3))*(1+VLOOKUP('Random Years'!CQ17,'Hist Returns'!$A$12:$D$107,3,FALSE))","v":{"v":34374.91257213556,"d":"34,375"}},{"$f":"($A17-$A16)/365.25*(CT16+(Main!$I23*Main!$D$3))*(1+VLOOKUP('Random Years'!CR17,'Hist Returns'!$A$12:$D$107,3,FALSE))","v":{"v":48805.133909598495,"d":"48,805"}},{"$f":"($A17-$A16)/365.25*(CU16+(Main!$I23*Main!$D$3))*(1+VLOOKUP('Random Years'!CS17,'Hist Returns'!$A$12:$D$107,3,FALSE))","v":{"v":36742.12977372361,"d":"36,742"}},{"$f":"($A17-$A16)/365.25*(CV16+(Main!$I23*Main!$D$3))*(1+VLOOKUP('Random Years'!CT17,'Hist Returns'!$A$12:$D$107,3,FALSE))","v":{"v":33160.63849260749,"d":"33,161"}},{"$f":"($A17-$A16)/365.25*(CW16+(Main!$I23*Main!$D$3))*(1+VLOOKUP('Random Years'!CU17,'Hist Returns'!$A$12:$D$107,3,FALSE))","v":{"v":38436.50241634472,"d":"38,437"}},{"$f":"($A17-$A16)/365.25*(CX16+(Main!$I23*Main!$D$3))*(1+VLOOKUP('Random Years'!CV17,'Hist Returns'!$A$12:$D$107,3,FALSE))","v":{"v":37088.77785536152,"d":"37,089"}}]
[{"$f":"Main!A24","v":"2039-12-31"},{"$f":"Main!B24","v":85},{"$f":"($A18-$A17)/365.25*(C17+(Main!$I24*Main!$D$3))*(1+VLOOKUP('Random Years'!A18,'Hist Returns'!$A$12:$D$107,3,FALSE))","v":{"v":44644.74445116859,"d":"44,645"}},{"$f":"($A18-$A17)/365.25*(D17+(Main!$I24*Main!$D$3))*(1+VLOOKUP('Random Years'!B18,'Hist Returns'!$A$12:$D$107,3,FALSE))","v":{"v":27599.968823299645,"d":"27,600"}},{"$f":"($A18-$A17)/365.25*(E17+(Main!$I24*Main!$D$3))*(1+VLOOKUP('Random Years'!C18,'Hist Returns'!$A$12:$D$107,3,FALSE))","v":{"v":39368.20839777279,"d":"39,368"}},{"$f":"($A18-$A17)/365.25*(F17+(Main!$I24*Main!$D$3))*(1+VLOOKUP('Random Years'!D18,'Hist Returns'!$A$12:$D$107,3,FALSE))","v":{"v":36863.27552954382,"d":"36,863"}},{"$f":"($A18-$A17)/365.25*(G17+(Main!$I24*Main!$D$3))*(1+VLOOKUP('Random Years'!E18,'Hist Returns'!$A$12:$D$107,3,FALSE))","v":{"v":42055.32923624777,"d":"42,055"}},{"$f":"($A18-$A17)/365.25*(H17+(Main!$I24*Main!$D$3))*(1+VLOOKUP('Random Years'!F18,'Hist Returns'!$A$12:$D$107,3,FALSE))","v":{"v":36729.19760563152,"d":"36,729"}},{"$f":"($A18-$A17)/365.25*(I17+(Main!$I24*Main!$D$3))*(1+VLOOKUP('Random Years'!G18,'Hist Returns'!$A$12:$D$107,3,FALSE))","v":{"v":34784.08060896015,"d":"34,784"}},{"$f":"($A18-$A17)/365.25*(J17+(Main!$I24*Main!$D$3))*(1+VLOOKUP('Random Years'!H18,'Hist Returns'!$A$12:$D$107,3,FALSE))","v":{"v":56352.39551695741,"d":"56,352"}},{"$f":"($A18-$A17)/365.25*(K17+(Main!$I24*Main!$D$3))*(1+VLOOKUP('Random Years'!I18,'Hist Returns'!$A$12:$D$107,3,FALSE))","v":{"v":57517.6892639805,"d":"57,518"}},{"$f":"($A18-$A17)/365.25*(L17+(Main!$I24*Main!$D$3))*(1+VLOOKUP('Random Years'!J18,'Hist Returns'!$A$12:$D$107,3,FALSE))","v":{"v":24272.895138729553,"d":"24,273"}},{"$f":"($A18-$A17)/365.25*(M17+(Main!$I24*Main!$D$3))*(1+VLOOKUP('Random Years'!K18,'Hist Returns'!$A$12:$D$107,3,FALSE))","v":{"v":24131.590389853114,"d":"24,132"}},{"$f":"($A18-$A17)/365.25*(N17+(Main!$I24*Main!$D$3))*(1+VLOOKUP('Random Years'!L18,'Hist Returns'!$A$12:$D$107,3,FALSE))","v":{"v":42637.781391002245,"d":"42,638"}},{"$f":"($A18-$A17)/365.25*(O17+(Main!$I24*Main!$D$3))*(1+VLOOKUP('Random Years'!M18,'Hist Returns'!$A$12:$D$107,3,FALSE))","v":{"v":42612.90422206117,"d":"42,613"}},{"$f":"($A18-$A17)/365.25*(P17+(Main!$I24*Main!$D$3))*(1+VLOOKUP('Random Years'!N18,'Hist Returns'!$A$12:$D$107,3,FALSE))","v":{"v":33145.622376093255,"d":"33,146"}},{"$f":"($A18-$A17)/365.25*(Q17+(Main!$I24*Main!$D$3))*(1+VLOOKUP('Random Years'!O18,'Hist Returns'!$A$12:$D$107,3,FALSE))","v":{"v":24271.885145412078,"d":"24,272"}},{"$f":"($A18-$A17)/365.25*(R17+(Main!$I24*Main!$D$3))*(1+VLOOKUP('Random Years'!P18,'Hist Returns'!$A$12:$D$107,3,FALSE))","v":{"v":40056.173607013385,"d":"40,056"}},{"$f":"($A18-$A17)/365.25*(S17+(Main!$I24*Main!$D$3))*(1+VLOOKUP('Random Years'!Q18,'Hist Returns'!$A$12:$D$107,3,FALSE))","v":{"v":26110.68645349209,"d":"26,111"}},{"$f":"($A18-$A17)/365.25*(T17+(Main!$I24*Main!$D$3))*(1+VLOOKUP('Random Years'!R18,'Hist Returns'!$A$12:$D$107,3,FALSE))","v":{"v":54387.09356170675,"d":"54,387"}},{"$f":"($A18-$A17)/365.25*(U17+(Main!$I24*Main!$D$3))*(1+VLOOKUP('Random Years'!S18,'Hist Returns'!$A$12:$D$107,3,FALSE))","v":{"v":46248.201141481666,"d":"46,248"}},{"$f":"($A18-$A17)/365.25*(V17+(Main!$I24*Main!$D$3))*(1+VLOOKUP('Random Years'!T18,'Hist Returns'!$A$12:$D$107,3,FALSE))","v":{"v":42202.42498139001,"d":"42,202"}},{"$f":"($A18-$A17)/365.25*(W17+(Main!$I24*Main!$D$3))*(1+VLOOKUP('Random Years'!U18,'Hist Returns'!$A$12:$D$107,3,FALSE))","v":{"v":62337.156159790684,"d":"62,337"}},{"$f":"($A18-$A17)/365.25*(X17+(Main!$I24*Main!$D$3))*(1+VLOOKUP('Random Years'!V18,'Hist Returns'!$A$12:$D$107,3,FALSE))","v":{"v":33522.79039665634,"d":"33,523"}},{"$f":"($A18-$A17)/365.25*(Y17+(Main!$I24*Main!$D$3))*(1+VLOOKUP('Random Years'!W18,'Hist Returns'!$A$12:$D$107,3,FALSE))","v":{"v":29579.57530174497,"d":"29,580"}},{"$f":"($A18-$A17)/365.25*(Z17+(Main!$I24*Main!$D$3))*(1+VLOOKUP('Random Years'!X18,'Hist Returns'!$A$12:$D$107,3,FALSE))","v":{"v":42960.921588480094,"d":"42,961"}},{"$f":"($A18-$A17)/365.25*(AA17+(Main!$I24*Main!$D$3))*(1+VLOOKUP('Random Years'!Y18,'Hist Returns'!$A$12:$D$107,3,FALSE))","v":{"v":33346.088418706975,"d":"33,346"}},{"$f":"($A18-$A17)/365.25*(AB17+(Main!$I24*Main!$D$3))*(1+VLOOKUP('Random Years'!Z18,'Hist Returns'!$A$12:$D$107,3,FALSE))","v":{"v":39644.62995054818,"d":"39,645"}},{"$f":"($A18-$A17)/365.25*(AC17+(Main!$I24*Main!$D$3))*(1+VLOOKUP('Random Years'!AA18,'Hist Returns'!$A$12:$D$107,3,FALSE))","v":{"v":46739.057824016934,"d":"46,739"}},{"$f":"($A18-$A17)/365.25*(AD17+(Main!$I24*Main!$D$3))*(1+VLOOKUP('Random Years'!AB18,'Hist Returns'!$A$12:$D$107,3,FALSE))","v":{"v":38802.12054052757,"d":"38,802"}},{"$f":"($A18-$A17)/365.25*(AE17+(Main!$I24*Main!$D$3))*(1+VLOOKUP('Random Years'!AC18,'Hist Returns'!$A$12:$D$107,3,FALSE))","v":{"v":35883.46648677916,"d":"35,883"}},{"$f":"($A18-$A17)/365.25*(AF17+(Main!$I24*Main!$D$3))*(1+VLOOKUP('Random Years'!AD18,'Hist Returns'!$A$12:$D$107,3,FALSE))","v":{"v":31774.66457777109,"d":"31,775"}},{"$f":"($A18-$A17)/365.25*(AG17+(Main!$I24*Main!$D$3))*(1+VLOOKUP('Random Years'!AE18,'Hist Returns'!$A$12:$D$107,3,FALSE))","v":{"v":34868.514662209374,"d":"34,869"}},{"$f":"($A18-$A17)/365.25*(AH17+(Main!$I24*Main!$D$3))*(1+VLOOKUP('Random Years'!AF18,'Hist Returns'!$A$12:$D$107,3,FALSE))","v":{"v":37514.31689683034,"d":"37,514"}},{"$f":"($A18-$A17)/365.25*(AI17+(Main!$I24*Main!$D$3))*(1+VLOOKUP('Random Years'!AG18,'Hist Returns'!$A$12:$D$107,3,FALSE))","v":{"v":48162.29257112659,"d":"48,162"}},{"$f":"($A18-$A17)/365.25*(AJ17+(Main!$I24*Main!$D$3))*(1+VLOOKUP('Random Years'!AH18,'Hist Returns'!$A$12:$D$107,3,FALSE))","v":{"v":41680.08634391906,"d":"41,680"}},{"$f":"($A18-$A17)/365.25*(AK17+(Main!$I24*Main!$D$3))*(1+VLOOKUP('Random Years'!AI18,'Hist Returns'!$A$12:$D$107,3,FALSE))","v":{"v":29054.49649132566,"d":"29,054"}},{"$f":"($A18-$A17)/365.25*(AL17+(Main!$I24*Main!$D$3))*(1+VLOOKUP('Random Years'!AJ18,'Hist Returns'!$A$12:$D$107,3,FALSE))","v":{"v":42728.843260070695,"d":"42,729"}},{"$f":"($A18-$A17)/365.25*(AM17+(Main!$I24*Main!$D$3))*(1+VLOOKUP('Random Years'!AK18,'Hist Returns'!$A$12:$D$107,3,FALSE))","v":{"v":46697.31816521931,"d":"46,697"}},{"$f":"($A18-$A17)/365.25*(AN17+(Main!$I24*Main!$D$3))*(1+VLOOKUP('Random Years'!AL18,'Hist Returns'!$A$12:$D$107,3,FALSE))","v":{"v":47694.866103154796,"d":"47,695"}},{"$f":"($A18-$A17)/365.25*(AO17+(Main!$I24*Main!$D$3))*(1+VLOOKUP('Random Years'!AM18,'Hist Returns'!$A$12:$D$107,3,FALSE))","v":{"v":58629.47713461396,"d":"58,629"}},{"$f":"($A18-$A17)/365.25*(AP17+(Main!$I24*Main!$D$3))*(1+VLOOKUP('Random Years'!AN18,'Hist Returns'!$A$12:$D$107,3,FALSE))","v":{"v":30373.935156203755,"d":"30,374"}},{"$f":"($A18-$A17)/365.25*(AQ17+(Main!$I24*Main!$D$3))*(1+VLOOKUP('Random Years'!AO18,'Hist Returns'!$A$12:$D$107,3,FALSE))","v":{"v":28365.173232837515,"d":"28,365"}},{"$f":"($A18-$A17)/365.25*(AR17+(Main!$I24*Main!$D$3))*(1+VLOOKUP('Random Years'!AP18,'Hist Returns'!$A$12:$D$107,3,FALSE))","v":{"v":28834.723308919598,"d":"28,835"}},{"$f":"($A18-$A17)/365.25*(AS17+(Main!$I24*Main!$D$3))*(1+VLOOKUP('Random Years'!AQ18,'Hist Returns'!$A$12:$D$107,3,FALSE))","v":{"v":34231.723859846235,"d":"34,232"}},{"$f":"($A18-$A17)/365.25*(AT17+(Main!$I24*Main!$D$3))*(1+VLOOKUP('Random Years'!AR18,'Hist Returns'!$A$12:$D$107,3,FALSE))","v":{"v":40779.02627651401,"d":"40,779"}},{"$f":"($A18-$A17)/365.25*(AU17+(Main!$I24*Main!$D$3))*(1+VLOOKUP('Random Years'!AS18,'Hist Returns'!$A$12:$D$107,3,FALSE))","v":{"v":32778.26857763138,"d":"32,778"}},{"$f":"($A18-$A17)/365.25*(AV17+(Main!$I24*Main!$D$3))*(1+VLOOKUP('Random Years'!AT18,'Hist Returns'!$A$12:$D$107,3,FALSE))","v":{"v":19620.00186979941,"d":"19,620"}},{"$f":"($A18-$A17)/365.25*(AW17+(Main!$I24*Main!$D$3))*(1+VLOOKUP('Random Years'!AU18,'Hist Returns'!$A$12:$D$107,3,FALSE))","v":{"v":31835.114821533723,"d":"31,835"}},{"$f":"($A18-$A17)/365.25*(AX17+(Main!$I24*Main!$D$3))*(1+VLOOKUP('Random Years'!AV18,'Hist Returns'!$A$12:$D$107,3,FALSE))","v":{"v":31608.641238106193,"d":"31,609"}},{"$f":"($A18-$A17)/365.25*(AY17+(Main!$I24*Main!$D$3))*(1+VLOOKUP('Random Years'!AW18,'Hist Returns'!$A$12:$D$107,3,FALSE))","v":{"v":20769.028935347385,"d":"20,769"}},{"$f":"($A18-$A17)/365.25*(AZ17+(Main!$I24*Main!$D$3))*(1+VLOOKUP('Random Years'!AX18,'Hist Returns'!$A$12:$D$107,3,FALSE))","v":{"v":36236.32569826028,"d":"36,236"}},{"$f":"($A18-$A17)/365.25*(BA17+(Main!$I24*Main!$D$3))*(1+VLOOKUP('Random Years'!AY18,'Hist Returns'!$A$12:$D$107,3,FALSE))","v":{"v":47702.14117232338,"d":"47,702"}},{"$f":"($A18-$A17)/365.25*(BB17+(Main!$I24*Main!$D$3))*(1+VLOOKUP('Random Years'!AZ18,'Hist Returns'!$A$12:$D$107,3,FALSE))","v":{"v":55996.43412325036,"d":"55,996"}},{"$f":"($A18-$A17)/365.25*(BC17+(Main!$I24*Main!$D$3))*(1+VLOOKUP('Random Years'!BA18,'Hist Returns'!$A$12:$D$107,3,FALSE))","v":{"v":54757.89592203126,"d":"54,758"}},{"$f":"($A18-$A17)/365.25*(BD17+(Main!$I24*Main!$D$3))*(1+VLOOKUP('Random Years'!BB18,'Hist Returns'!$A$12:$D$107,3,FALSE))","v":{"v":25903.15620755437,"d":"25,903"}},{"$f":"($A18-$A17)/365.25*(BE17+(Main!$I24*Main!$D$3))*(1+VLOOKUP('Random Years'!BC18,'Hist Returns'!$A$12:$D$107,3,FALSE))","v":{"v":39543.29923780717,"d":"39,543"}},{"$f":"($A18-$A17)/365.25*(BF17+(Main!$I24*Main!$D$3))*(1+VLOOKUP('Random Years'!BD18,'Hist Returns'!$A$12:$D$107,3,FALSE))","v":{"v":42945.10705023434,"d":"42,945"}},{"$f":"($A18-$A17)/365.25*(BG17+(Main!$I24*Main!$D$3))*(1+VLOOKUP('Random Years'!BE18,'Hist Returns'!$A$12:$D$107,3,FALSE))","v":{"v":30927.853515655683,"d":"30,928"}},{"$f":"($A18-$A17)/365.25*(BH17+(Main!$I24*Main!$D$3))*(1+VLOOKUP('Random Years'!BF18,'Hist Returns'!$A$12:$D$107,3,FALSE))","v":{"v":25049.438568273796,"d":"25,049"}},{"$f":"($A18-$A17)/365.25*(BI17+(Main!$I24*Main!$D$3))*(1+VLOOKUP('Random Years'!BG18,'Hist Returns'!$A$12:$D$107,3,FALSE))","v":{"v":35129.95186619433,"d":"35,130"}},{"$f":"($A18-$A17)/365.25*(BJ17+(Main!$I24*Main!$D$3))*(1+VLOOKUP('Random Years'!BH18,'Hist Returns'!$A$12:$D$107,3,FALSE))","v":{"v":53109.463276251256,"d":"53,109"}},{"$f":"($A18-$A17)/365.25*(BK17+(Main!$I24*Main!$D$3))*(1+VLOOKUP('Random Years'!BI18,'Hist Returns'!$A$12:$D$107,3,FALSE))","v":{"v":30587.63883659904,"d":"30,588"}},{"$f":"($A18-$A17)/365.25*(BL17+(Main!$I24*Main!$D$3))*(1+VLOOKUP('Random Years'!BJ18,'Hist Returns'!$A$12:$D$107,3,FALSE))","v":{"v":37318.8036735813,"d":"37,319"}},{"$f":"($A18-$A17)/365.25*(BM17+(Main!$I24*Main!$D$3))*(1+VLOOKUP('Random Years'!BK18,'Hist Returns'!$A$12:$D$107,3,FALSE))","v":{"v":37549.277453928364,"d":"37,549"}},{"$f":"($A18-$A17)/365.25*(BN17+(Main!$I24*Main!$D$3))*(1+VLOOKUP('Random Years'!BL18,'Hist Returns'!$A$12:$D$107,3,FALSE))","v":{"v":37543.61019705345,"d":"37,544"}},{"$f":"($A18-$A17)/365.25*(BO17+(Main!$I24*Main!$D$3))*(1+VLOOKUP('Random Years'!BM18,'Hist Returns'!$A$12:$D$107,3,FALSE))","v":{"v":41135.22503641431,"d":"41,135"}},{"$f":"($A18-$A17)/365.25*(BP17+(Main!$I24*Main!$D$3))*(1+VLOOKUP('Random Years'!BN18,'Hist Returns'!$A$12:$D$107,3,FALSE))","v":{"v":23566.35729636279,"d":"23,566"}},{"$f":"($A18-$A17)/365.25*(BQ17+(Main!$I24*Main!$D$3))*(1+VLOOKUP('Random Years'!BO18,'Hist Returns'!$A$12:$D$107,3,FALSE))","v":{"v":35242.64269350815,"d":"35,243"}},{"$f":"($A18-$A17)/365.25*(BR17+(Main!$I24*Main!$D$3))*(1+VLOOKUP('Random Years'!BP18,'Hist Returns'!$A$12:$D$107,3,FALSE))","v":{"v":42238.48823277864,"d":"42,238"}},{"$f":"($A18-$A17)/365.25*(BS17+(Main!$I24*Main!$D$3))*(1+VLOOKUP('Random Years'!BQ18,'Hist Returns'!$A$12:$D$107,3,FALSE))","v":{"v":39216.90830870135,"d":"39,217"}},{"$f":"($A18-$A17)/365.25*(BT17+(Main!$I24*Main!$D$3))*(1+VLOOKUP('Random Years'!BR18,'Hist Returns'!$A$12:$D$107,3,FALSE))","v":{"v":37125.4632799497,"d":"37,125"}},{"$f":"($A18-$A17)/365.25*(BU17+(Main!$I24*Main!$D$3))*(1+VLOOKUP('Random Years'!BS18,'Hist Returns'!$A$12:$D$107,3,FALSE))","v":{"v":50371.83924879819,"d":"50,372"}},{"$f":"($A18-$A17)/365.25*(BV17+(Main!$I24*Main!$D$3))*(1+VLOOKUP('Random Years'!BT18,'Hist Returns'!$A$12:$D$107,3,FALSE))","v":{"v":31285.16287391003,"d":"31,285"}},{"$f":"($A18-$A17)/365.25*(BW17+(Main!$I24*Main!$D$3))*(1+VLOOKUP('Random Years'!BU18,'Hist Returns'!$A$12:$D$107,3,FALSE))","v":{"v":29617.67669526184,"d":"29,618"}},{"$f":"($A18-$A17)/365.25*(BX17+(Main!$I24*Main!$D$3))*(1+VLOOKUP('Random Years'!BV18,'Hist Returns'!$A$12:$D$107,3,FALSE))","v":{"v":44446.15115710597,"d":"44,446"}},{"$f":"($A18-$A17)/365.25*(BY17+(Main!$I24*Main!$D$3))*(1+VLOOKUP('Random Years'!BW18,'Hist Returns'!$A$12:$D$107,3,FALSE))","v":{"v":41612.36370876923,"d":"41,612"}},{"$f":"($A18-$A17)/365.25*(BZ17+(Main!$I24*Main!$D$3))*(1+VLOOKUP('Random Years'!BX18,'Hist Returns'!$A$12:$D$107,3,FALSE))","v":{"v":27927.126095761658,"d":"27,927"}},{"$f":"($A18-$A17)/365.25*(CA17+(Main!$I24*Main!$D$3))*(1+VLOOKUP('Random Years'!BY18,'Hist Returns'!$A$12:$D$107,3,FALSE))","v":{"v":33747.12538512049,"d":"33,747"}},{"$f":"($A18-$A17)/365.25*(CB17+(Main!$I24*Main!$D$3))*(1+VLOOKUP('Random Years'!BZ18,'Hist Returns'!$A$12:$D$107,3,FALSE))","v":{"v":35948.96080864721,"d":"35,949"}},{"$f":"($A18-$A17)/365.25*(CC17+(Main!$I24*Main!$D$3))*(1+VLOOKUP('Random Years'!CA18,'Hist Returns'!$A$12:$D$107,3,FALSE))","v":{"v":42355.06420007827,"d":"42,355"}},{"$f":"($A18-$A17)/365.25*(CD17+(Main!$I24*Main!$D$3))*(1+VLOOKUP('Random Years'!CB18,'Hist Returns'!$A$12:$D$107,3,FALSE))","v":{"v":31385.780742599218,"d":"31,386"}},{"$f":"($A18-$A17)/365.25*(CE17+(Main!$I24*Main!$D$3))*(1+VLOOKUP('Random Years'!CC18,'Hist Returns'!$A$12:$D$107,3,FALSE))","v":{"v":41887.96369476918,"d":"41,888"}},{"$f":"($A18-$A17)/365.25*(CF17+(Main!$I24*Main!$D$3))*(1+VLOOKUP('Random Years'!CD18,'Hist Returns'!$A$12:$D$107,3,FALSE))","v":{"v":42187.19698225635,"d":"42,187"}},{"$f":"($A18-$A17)/365.25*(CG17+(Main!$I24*Main!$D$3))*(1+VLOOKUP('Random Years'!CE18,'Hist Returns'!$A$12:$D$107,3,FALSE))","v":{"v":30546.92073075439,"d":"30,547"}},{"$f":"($A18-$A17)/365.25*(CH17+(Main!$I24*Main!$D$3))*(1+VLOOKUP('Random Years'!CF18,'Hist Returns'!$A$12:$D$107,3,FALSE))","v":{"v":49936.19402577069,"d":"49,936"}},{"$f":"($A18-$A17)/365.25*(CI17+(Main!$I24*Main!$D$3))*(1+VLOOKUP('Random Years'!CG18,'Hist Returns'!$A$12:$D$107,3,FALSE))","v":{"v":45193.60869197685,"d":"45,194"}},{"$f":"($A18-$A17)/365.25*(CJ17+(Main!$I24*Main!$D$3))*(1+VLOOKUP('Random Years'!CH18,'Hist Returns'!$A$12:$D$107,3,FALSE))","v":{"v":36955.20025336507,"d":"36,955"}},{"$f":"($A18-$A17)/365.25*(CK17+(Main!$I24*Main!$D$3))*(1+VLOOKUP('Random Years'!CI18,'Hist Returns'!$A$12:$D$107,3,FALSE))","v":{"v":24961.222106542067,"d":"24,961"}},{"$f":"($A18-$A17)/365.25*(CL17+(Main!$I24*Main!$D$3))*(1+VLOOKUP('Random Years'!CJ18,'Hist Returns'!$A$12:$D$107,3,FALSE))","v":{"v":26784.35637378881,"d":"26,784"}},{"$f":"($A18-$A17)/365.25*(CM17+(Main!$I24*Main!$D$3))*(1+VLOOKUP('Random Years'!CK18,'Hist Returns'!$A$12:$D$107,3,FALSE))","v":{"v":33663.71827783804,"d":"33,664"}},{"$f":"($A18-$A17)/365.25*(CN17+(Main!$I24*Main!$D$3))*(1+VLOOKUP('Random Years'!CL18,'Hist Returns'!$A$12:$D$107,3,FALSE))","v":{"v":47975.84088782347,"d":"47,976"}},{"$f":"($A18-$A17)/365.25*(CO17+(Main!$I24*Main!$D$3))*(1+VLOOKUP('Random Years'!CM18,'Hist Returns'!$A$12:$D$107,3,FALSE))","v":{"v":35881.724500387834,"d":"35,882"}},{"$f":"($A18-$A17)/365.25*(CP17+(Main!$I24*Main!$D$3))*(1+VLOOKUP('Random Years'!CN18,'Hist Returns'!$A$12:$D$107,3,FALSE))","v":{"v":48996.17843080788,"d":"48,996"}},{"$f":"($A18-$A17)/365.25*(CQ17+(Main!$I24*Main!$D$3))*(1+VLOOKUP('Random Years'!CO18,'Hist Returns'!$A$12:$D$107,3,FALSE))","v":{"v":27199.828348259005,"d":"27,200"}},{"$f":"($A18-$A17)/365.25*(CR17+(Main!$I24*Main!$D$3))*(1+VLOOKUP('Random Years'!CP18,'Hist Returns'!$A$12:$D$107,3,FALSE))","v":{"v":35830.2617961492,"d":"35,830"}},{"$f":"($A18-$A17)/365.25*(CS17+(Main!$I24*Main!$D$3))*(1+VLOOKUP('Random Years'!CQ18,'Hist Returns'!$A$12:$D$107,3,FALSE))","v":{"v":34359.102290629,"d":"34,359"}},{"$f":"($A18-$A17)/365.25*(CT17+(Main!$I24*Main!$D$3))*(1+VLOOKUP('Random Years'!CR18,'Hist Returns'!$A$12:$D$107,3,FALSE))","v":{"v":48505.34303930478,"d":"48,505"}},{"$f":"($A18-$A17)/365.25*(CU17+(Main!$I24*Main!$D$3))*(1+VLOOKUP('Random Years'!CS18,'Hist Returns'!$A$12:$D$107,3,FALSE))","v":{"v":36185.576875363426,"d":"36,186"}},{"$f":"($A18-$A17)/365.25*(CV17+(Main!$I24*Main!$D$3))*(1+VLOOKUP('Random Years'!CT18,'Hist Returns'!$A$12:$D$107,3,FALSE))","v":{"v":31643.27599510013,"d":"31,643"}},{"$f":"($A18-$A17)/365.25*(CW17+(Main!$I24*Main!$D$3))*(1+VLOOKUP('Random Years'!CU18,'Hist Returns'!$A$12:$D$107,3,FALSE))","v":{"v":36923.13126916167,"d":"36,923"}},{"$f":"($A18-$A17)/365.25*(CX17+(Main!$I24*Main!$D$3))*(1+VLOOKUP('Random Years'!CV18,'Hist Returns'!$A$12:$D$107,3,FALSE))","v":{"v":36613.70173877212,"d":"36,614"}}]
[{"$f":"Main!A25","v":"2040-12-30"},{"$f":"Main!B25","v":86},{"$f":"($A19-$A18)/365.25*(C18+(Main!$I25*Main!$D$3))*(1+VLOOKUP('Random Years'!A19,'Hist Returns'!$A$12:$D$107,3,FALSE))","v":{"v":42865.586535273746,"d":"42,866"}},{"$f":"($A19-$A18)/365.25*(D18+(Main!$I25*Main!$D$3))*(1+VLOOKUP('Random Years'!B19,'Hist Returns'!$A$12:$D$107,3,FALSE))","v":{"v":26327.36207110082,"d":"26,327"}},{"$f":"($A19-$A18)/365.25*(E18+(Main!$I25*Main!$D$3))*(1+VLOOKUP('Random Years'!C19,'Hist Returns'!$A$12:$D$107,3,FALSE))","v":{"v":37572.624961021786,"d":"37,573"}},{"$f":"($A19-$A18)/365.25*(F18+(Main!$I25*Main!$D$3))*(1+VLOOKUP('Random Years'!D19,'Hist Returns'!$A$12:$D$107,3,FALSE))","v":{"v":35355.90217168686,"d":"35,356"}},{"$f":"($A19-$A18)/365.25*(G18+(Main!$I25*Main!$D$3))*(1+VLOOKUP('Random Years'!E19,'Hist Returns'!$A$12:$D$107,3,FALSE))","v":{"v":40524.85093056534,"d":"40,525"}},{"$f":"($A19-$A18)/365.25*(H18+(Main!$I25*Main!$D$3))*(1+VLOOKUP('Random Years'!F19,'Hist Returns'!$A$12:$D$107,3,FALSE))","v":{"v":38136.81007115215,"d":"38,137"}},{"$f":"($A19-$A18)/365.25*(I18+(Main!$I25*Main!$D$3))*(1+VLOOKUP('Random Years'!G19,'Hist Returns'!$A$12:$D$107,3,FALSE))","v":{"v":33164.753590473934,"d":"33,165"}},{"$f":"($A19-$A18)/365.25*(J18+(Main!$I25*Main!$D$3))*(1+VLOOKUP('Random Years'!H19,'Hist Returns'!$A$12:$D$107,3,FALSE))","v":{"v":57106.77825007609,"d":"57,107"}},{"$f":"($A19-$A18)/365.25*(K18+(Main!$I25*Main!$D$3))*(1+VLOOKUP('Random Years'!I19,'Hist Returns'!$A$12:$D$107,3,FALSE))","v":{"v":56178.68962933323,"d":"56,179"}},{"$f":"($A19-$A18)/365.25*(L18+(Main!$I25*Main!$D$3))*(1+VLOOKUP('Random Years'!J19,'Hist Returns'!$A$12:$D$107,3,FALSE))","v":{"v":22459.369983616787,"d":"22,459"}},{"$f":"($A19-$A18)/365.25*(M18+(Main!$I25*Main!$D$3))*(1+VLOOKUP('Random Years'!K19,'Hist Returns'!$A$12:$D$107,3,FALSE))","v":{"v":23070.164184145196,"d":"23,070"}},{"$f":"($A19-$A18)/365.25*(N18+(Main!$I25*Main!$D$3))*(1+VLOOKUP('Random Years'!L19,'Hist Returns'!$A$12:$D$107,3,FALSE))","v":{"v":43041.91350890737,"d":"43,042"}},{"$f":"($A19-$A18)/365.25*(O18+(Main!$I25*Main!$D$3))*(1+VLOOKUP('Random Years'!M19,'Hist Returns'!$A$12:$D$107,3,FALSE))","v":{"v":41986.59795318277,"d":"41,987"}},{"$f":"($A19-$A18)/365.25*(P18+(Main!$I25*Main!$D$3))*(1+VLOOKUP('Random Years'!N19,'Hist Returns'!$A$12:$D$107,3,FALSE))","v":{"v":31330.66842515567,"d":"31,331"}},{"$f":"($A19-$A18)/365.25*(Q18+(Main!$I25*Main!$D$3))*(1+VLOOKUP('Random Years'!O19,'Hist Returns'!$A$12:$D$107,3,FALSE))","v":{"v":22717.550563707377,"d":"22,718"}},{"$f":"($A19-$A18)/365.25*(R18+(Main!$I25*Main!$D$3))*(1+VLOOKUP('Random Years'!P19,'Hist Returns'!$A$12:$D$107,3,FALSE))","v":{"v":38186.49599455888,"d":"38,186"}},{"$f":"($A19-$A18)/365.25*(S18+(Main!$I25*Main!$D$3))*(1+VLOOKUP('Random Years'!Q19,'Hist Returns'!$A$12:$D$107,3,FALSE))","v":{"v":24225.469311204637,"d":"24,225"}},{"$f":"($A19-$A18)/365.25*(T18+(Main!$I25*Main!$D$3))*(1+VLOOKUP('Random Years'!R19,'Hist Returns'!$A$12:$D$107,3,FALSE))","v":{"v":54824.96904069801,"d":"54,825"}},{"$f":"($A19-$A18)/365.25*(U18+(Main!$I25*Main!$D$3))*(1+VLOOKUP('Random Years'!S19,'Hist Returns'!$A$12:$D$107,3,FALSE))","v":{"v":47752.65449554305,"d":"47,753"}},{"$f":"($A19-$A18)/365.25*(V18+(Main!$I25*Main!$D$3))*(1+VLOOKUP('Random Years'!T19,'Hist Returns'!$A$12:$D$107,3,FALSE))","v":{"v":40900.82940754814,"d":"40,901"}},{"$f":"($A19-$A18)/365.25*(W18+(Main!$I25*Main!$D$3))*(1+VLOOKUP('Random Years'!U19,'Hist Returns'!$A$12:$D$107,3,FALSE))","v":{"v":62352.1217319602,"d":"62,352"}},{"$f":"($A19-$A18)/365.25*(X18+(Main!$I25*Main!$D$3))*(1+VLOOKUP('Random Years'!V19,'Hist Returns'!$A$12:$D$107,3,FALSE))","v":{"v":31642.67370361219,"d":"31,643"}},{"$f":"($A19-$A18)/365.25*(Y18+(Main!$I25*Main!$D$3))*(1+VLOOKUP('Random Years'!W19,'Hist Returns'!$A$12:$D$107,3,FALSE))","v":{"v":27659.515721708587,"d":"27,660"}},{"$f":"($A19-$A18)/365.25*(Z18+(Main!$I25*Main!$D$3))*(1+VLOOKUP('Random Years'!X19,'Hist Returns'!$A$12:$D$107,3,FALSE))","v":{"v":41053.46010841687,"d":"41,053"}},{"$f":"($A19-$A18)/365.25*(AA18+(Main!$I25*Main!$D$3))*(1+VLOOKUP('Random Years'!Y19,'Hist Returns'!$A$12:$D$107,3,FALSE))","v":{"v":31468.933722962556,"d":"31,469"}},{"$f":"($A19-$A18)/365.25*(AB18+(Main!$I25*Main!$D$3))*(1+VLOOKUP('Random Years'!Z19,'Hist Returns'!$A$12:$D$107,3,FALSE))","v":{"v":37729.24580662805,"d":"37,729"}},{"$f":"($A19-$A18)/365.25*(AC18+(Main!$I25*Main!$D$3))*(1+VLOOKUP('Random Years'!AA19,'Hist Returns'!$A$12:$D$107,3,FALSE))","v":{"v":45544.29027281951,"d":"45,544"}},{"$f":"($A19-$A18)/365.25*(AD18+(Main!$I25*Main!$D$3))*(1+VLOOKUP('Random Years'!AB19,'Hist Returns'!$A$12:$D$107,3,FALSE))","v":{"v":39345.682665511704,"d":"39,346"}},{"$f":"($A19-$A18)/365.25*(AE18+(Main!$I25*Main!$D$3))*(1+VLOOKUP('Random Years'!AC19,'Hist Returns'!$A$12:$D$107,3,FALSE))","v":{"v":34019.32361461265,"d":"34,019"}},{"$f":"($A19-$A18)/365.25*(AF18+(Main!$I25*Main!$D$3))*(1+VLOOKUP('Random Years'!AD19,'Hist Returns'!$A$12:$D$107,3,FALSE))","v":{"v":29859.948384368574,"d":"29,860"}},{"$f":"($A19-$A18)/365.25*(AG18+(Main!$I25*Main!$D$3))*(1+VLOOKUP('Random Years'!AE19,'Hist Returns'!$A$12:$D$107,3,FALSE))","v":{"v":32955.51190984738,"d":"32,956"}},{"$f":"($A19-$A18)/365.25*(AH18+(Main!$I25*Main!$D$3))*(1+VLOOKUP('Random Years'!AF19,'Hist Returns'!$A$12:$D$107,3,FALSE))","v":{"v":36250.18669403081,"d":"36,250"}},{"$f":"($A19-$A18)/365.25*(AI18+(Main!$I25*Main!$D$3))*(1+VLOOKUP('Random Years'!AG19,'Hist Returns'!$A$12:$D$107,3,FALSE))","v":{"v":48649.545134890344,"d":"48,650"}},{"$f":"($A19-$A18)/365.25*(AJ18+(Main!$I25*Main!$D$3))*(1+VLOOKUP('Random Years'!AH19,'Hist Returns'!$A$12:$D$107,3,FALSE))","v":{"v":41326.3383657404,"d":"41,326"}},{"$f":"($A19-$A18)/365.25*(AK18+(Main!$I25*Main!$D$3))*(1+VLOOKUP('Random Years'!AI19,'Hist Returns'!$A$12:$D$107,3,FALSE))","v":{"v":30167.020208665905,"d":"30,167"}},{"$f":"($A19-$A18)/365.25*(AL18+(Main!$I25*Main!$D$3))*(1+VLOOKUP('Random Years'!AJ19,'Hist Returns'!$A$12:$D$107,3,FALSE))","v":{"v":41464.797216282226,"d":"41,465"}},{"$f":"($A19-$A18)/365.25*(AM18+(Main!$I25*Main!$D$3))*(1+VLOOKUP('Random Years'!AK19,'Hist Returns'!$A$12:$D$107,3,FALSE))","v":{"v":46101.59267686483,"d":"46,102"}},{"$f":"($A19-$A18)/365.25*(AN18+(Main!$I25*Main!$D$3))*(1+VLOOKUP('Random Years'!AL19,'Hist Returns'!$A$12:$D$107,3,FALSE))","v":{"v":47242.841841320886,"d":"47,243"}},{"$f":"($A19-$A18)/365.25*(AO18+(Main!$I25*Main!$D$3))*(1+VLOOKUP('Random Years'!AM19,'Hist Returns'!$A$12:$D$107,3,FALSE))","v":{"v":58917.27434450884,"d":"58,917"}},{"$f":"($A19-$A18)/365.25*(AP18+(Main!$I25*Main!$D$3))*(1+VLOOKUP('Random Years'!AN19,'Hist Returns'!$A$12:$D$107,3,FALSE))","v":{"v":29762.70498401058,"d":"29,763"}},{"$f":"($A19-$A18)/365.25*(AQ18+(Main!$I25*Main!$D$3))*(1+VLOOKUP('Random Years'!AO19,'Hist Returns'!$A$12:$D$107,3,FALSE))","v":{"v":26458.676880115385,"d":"26,459"}},{"$f":"($A19-$A18)/365.25*(AR18+(Main!$I25*Main!$D$3))*(1+VLOOKUP('Random Years'!AP19,'Hist Returns'!$A$12:$D$107,3,FALSE))","v":{"v":26990.207335094463,"d":"26,990"}},{"$f":"($A19-$A18)/365.25*(AS18+(Main!$I25*Main!$D$3))*(1+VLOOKUP('Random Years'!AQ19,'Hist Returns'!$A$12:$D$107,3,FALSE))","v":{"v":32693.871513913444,"d":"32,694"}},{"$f":"($A19-$A18)/365.25*(AT18+(Main!$I25*Main!$D$3))*(1+VLOOKUP('Random Years'!AR19,'Hist Returns'!$A$12:$D$107,3,FALSE))","v":{"v":39760.755435993626,"d":"39,761"}},{"$f":"($A19-$A18)/365.25*(AU18+(Main!$I25*Main!$D$3))*(1+VLOOKUP('Random Years'!AS19,'Hist Returns'!$A$12:$D$107,3,FALSE))","v":{"v":32547.60203346514,"d":"32,548"}},{"$f":"($A19-$A18)/365.25*(AV18+(Main!$I25*Main!$D$3))*(1+VLOOKUP('Random Years'!AT19,'Hist Returns'!$A$12:$D$107,3,FALSE))","v":{"v":18228.34042961529,"d":"18,228"}},{"$f":"($A19-$A18)/365.25*(AW18+(Main!$I25*Main!$D$3))*(1+VLOOKUP('Random Years'!AU19,'Hist Returns'!$A$12:$D$107,3,FALSE))","v":{"v":30593.198668106765,"d":"30,593"}},{"$f":"($A19-$A18)/365.25*(AX18+(Main!$I25*Main!$D$3))*(1+VLOOKUP('Random Years'!AV19,'Hist Returns'!$A$12:$D$107,3,FALSE))","v":{"v":30569.38507260469,"d":"30,569"}},{"$f":"($A19-$A18)/365.25*(AY18+(Main!$I25*Main!$D$3))*(1+VLOOKUP('Random Years'!AW19,'Hist Returns'!$A$12:$D$107,3,FALSE))","v":{"v":19535.51307809723,"d":"19,536"}},{"$f":"($A19-$A18)/365.25*(AZ18+(Main!$I25*Main!$D$3))*(1+VLOOKUP('Random Years'!AX19,'Hist Returns'!$A$12:$D$107,3,FALSE))","v":{"v":35470.302618308095,"d":"35,470"}},{"$f":"($A19-$A18)/365.25*(BA18+(Main!$I25*Main!$D$3))*(1+VLOOKUP('Random Years'!AY19,'Hist Returns'!$A$12:$D$107,3,FALSE))","v":{"v":49213.39364764587,"d":"49,213"}},{"$f":"($A19-$A18)/365.25*(BB18+(Main!$I25*Main!$D$3))*(1+VLOOKUP('Random Years'!AZ19,'Hist Returns'!$A$12:$D$107,3,FALSE))","v":{"v":55944.29171284813,"d":"55,944"}},{"$f":"($A19-$A18)/365.25*(BC18+(Main!$I25*Main!$D$3))*(1+VLOOKUP('Random Years'!BA19,'Hist Returns'!$A$12:$D$107,3,FALSE))","v":{"v":55261.22638770416,"d":"55,261"}},{"$f":"($A19-$A18)/365.25*(BD18+(Main!$I25*Main!$D$3))*(1+VLOOKUP('Random Years'!BB19,'Hist Returns'!$A$12:$D$107,3,FALSE))","v":{"v":25319.526074607467,"d":"25,320"}},{"$f":"($A19-$A18)/365.25*(BE18+(Main!$I25*Main!$D$3))*(1+VLOOKUP('Random Years'!BC19,'Hist Returns'!$A$12:$D$107,3,FALSE))","v":{"v":38985.47720741803,"d":"38,985"}},{"$f":"($A19-$A18)/365.25*(BF18+(Main!$I25*Main!$D$3))*(1+VLOOKUP('Random Years'!BD19,'Hist Returns'!$A$12:$D$107,3,FALSE))","v":{"v":41017.14133172171,"d":"41,017"}},{"$f":"($A19-$A18)/365.25*(BG18+(Main!$I25*Main!$D$3))*(1+VLOOKUP('Random Years'!BE19,'Hist Returns'!$A$12:$D$107,3,FALSE))","v":{"v":30341.94226543607,"d":"30,342"}},{"$f":"($A19-$A18)/365.25*(BH18+(Main!$I25*Main!$D$3))*(1+VLOOKUP('Random Years'!BF19,'Hist Returns'!$A$12:$D$107,3,FALSE))","v":{"v":23833.56006101859,"d":"23,834"}},{"$f":"($A19-$A18)/365.25*(BI18+(Main!$I25*Main!$D$3))*(1+VLOOKUP('Random Years'!BG19,'Hist Returns'!$A$12:$D$107,3,FALSE))","v":{"v":34736.11332569282,"d":"34,736"}},{"$f":"($A19-$A18)/365.25*(BJ18+(Main!$I25*Main!$D$3))*(1+VLOOKUP('Random Years'!BH19,'Hist Returns'!$A$12:$D$107,3,FALSE))","v":{"v":52814.77930225534,"d":"52,815"}},{"$f":"($A19-$A18)/365.25*(BK18+(Main!$I25*Main!$D$3))*(1+VLOOKUP('Random Years'!BI19,'Hist Returns'!$A$12:$D$107,3,FALSE))","v":{"v":30011.250646039676,"d":"30,011"}},{"$f":"($A19-$A18)/365.25*(BL18+(Main!$I25*Main!$D$3))*(1+VLOOKUP('Random Years'!BJ19,'Hist Returns'!$A$12:$D$107,3,FALSE))","v":{"v":37243.50108027569,"d":"37,244"}},{"$f":"($A19-$A18)/365.25*(BM18+(Main!$I25*Main!$D$3))*(1+VLOOKUP('Random Years'!BK19,'Hist Returns'!$A$12:$D$107,3,FALSE))","v":{"v":38009.43847493135,"d":"38,009"}},{"$f":"($A19-$A18)/365.25*(BN18+(Main!$I25*Main!$D$3))*(1+VLOOKUP('Random Years'!BL19,'Hist Returns'!$A$12:$D$107,3,FALSE))","v":{"v":35653.32930187427,"d":"35,653"}},{"$f":"($A19-$A18)/365.25*(BO18+(Main!$I25*Main!$D$3))*(1+VLOOKUP('Random Years'!BM19,'Hist Returns'!$A$12:$D$107,3,FALSE))","v":{"v":39231.47323965818,"d":"39,231"}},{"$f":"($A19-$A18)/365.25*(BP18+(Main!$I25*Main!$D$3))*(1+VLOOKUP('Random Years'!BN19,'Hist Returns'!$A$12:$D$107,3,FALSE))","v":{"v":21904.977229482713,"d":"21,905"}},{"$f":"($A19-$A18)/365.25*(BQ18+(Main!$I25*Main!$D$3))*(1+VLOOKUP('Random Years'!BO19,'Hist Returns'!$A$12:$D$107,3,FALSE))","v":{"v":33627.40098925361,"d":"33,627"}},{"$f":"($A19-$A18)/365.25*(BR18+(Main!$I25*Main!$D$3))*(1+VLOOKUP('Random Years'!BP19,'Hist Returns'!$A$12:$D$107,3,FALSE))","v":{"v":41330.35155726647,"d":"41,330"}},{"$f":"($A19-$A18)/365.25*(BS18+(Main!$I25*Main!$D$3))*(1+VLOOKUP('Random Years'!BQ19,'Hist Returns'!$A$12:$D$107,3,FALSE))","v":{"v":39512.21660896581,"d":"39,512"}},{"$f":"($A19-$A18)/365.25*(BT18+(Main!$I25*Main!$D$3))*(1+VLOOKUP('Random Years'!BR19,'Hist Returns'!$A$12:$D$107,3,FALSE))","v":{"v":37458.881512328444,"d":"37,459"}},{"$f":"($A19-$A18)/365.25*(BU18+(Main!$I25*Main!$D$3))*(1+VLOOKUP('Random Years'!BS19,'Hist Returns'!$A$12:$D$107,3,FALSE))","v":{"v":51666.22085502757,"d":"51,666"}},{"$f":"($A19-$A18)/365.25*(BV18+(Main!$I25*Main!$D$3))*(1+VLOOKUP('Random Years'!BT19,'Hist Returns'!$A$12:$D$107,3,FALSE))","v":{"v":31278.425198686367,"d":"31,278"}},{"$f":"($A19-$A18)/365.25*(BW18+(Main!$I25*Main!$D$3))*(1+VLOOKUP('Random Years'!BU19,'Hist Returns'!$A$12:$D$107,3,FALSE))","v":{"v":29026.559785746664,"d":"29,027"}},{"$f":"($A19-$A18)/365.25*(BX18+(Main!$I25*Main!$D$3))*(1+VLOOKUP('Random Years'!BV19,'Hist Returns'!$A$12:$D$107,3,FALSE))","v":{"v":45050.89748695016,"d":"45,051"}},{"$f":"($A19-$A18)/365.25*(BY18+(Main!$I25*Main!$D$3))*(1+VLOOKUP('Random Years'!BW19,'Hist Returns'!$A$12:$D$107,3,FALSE))","v":{"v":39740.45286627166,"d":"39,740"}},{"$f":"($A19-$A18)/365.25*(BZ18+(Main!$I25*Main!$D$3))*(1+VLOOKUP('Random Years'!BX19,'Hist Returns'!$A$12:$D$107,3,FALSE))","v":{"v":26301.304689653876,"d":"26,301"}},{"$f":"($A19-$A18)/365.25*(CA18+(Main!$I25*Main!$D$3))*(1+VLOOKUP('Random Years'!BY19,'Hist Returns'!$A$12:$D$107,3,FALSE))","v":{"v":32255.356729050105,"d":"32,255"}},{"$f":"($A19-$A18)/365.25*(CB18+(Main!$I25*Main!$D$3))*(1+VLOOKUP('Random Years'!BZ19,'Hist Returns'!$A$12:$D$107,3,FALSE))","v":{"v":34142.73347180357,"d":"34,143"}},{"$f":"($A19-$A18)/365.25*(CC18+(Main!$I25*Main!$D$3))*(1+VLOOKUP('Random Years'!CA19,'Hist Returns'!$A$12:$D$107,3,FALSE))","v":{"v":41179.04818877947,"d":"41,179"}},{"$f":"($A19-$A18)/365.25*(CD18+(Main!$I25*Main!$D$3))*(1+VLOOKUP('Random Years'!CB19,'Hist Returns'!$A$12:$D$107,3,FALSE))","v":{"v":29515.27769332971,"d":"29,515"}},{"$f":"($A19-$A18)/365.25*(CE18+(Main!$I25*Main!$D$3))*(1+VLOOKUP('Random Years'!CC19,'Hist Returns'!$A$12:$D$107,3,FALSE))","v":{"v":41526.382693414234,"d":"41,526"}},{"$f":"($A19-$A18)/365.25*(CF18+(Main!$I25*Main!$D$3))*(1+VLOOKUP('Random Years'!CD19,'Hist Returns'!$A$12:$D$107,3,FALSE))","v":{"v":41547.44116185508,"d":"41,547"}},{"$f":"($A19-$A18)/365.25*(CG18+(Main!$I25*Main!$D$3))*(1+VLOOKUP('Random Years'!CE19,'Hist Returns'!$A$12:$D$107,3,FALSE))","v":{"v":30540.938555191697,"d":"30,541"}},{"$f":"($A19-$A18)/365.25*(CH18+(Main!$I25*Main!$D$3))*(1+VLOOKUP('Random Years'!CF19,'Hist Returns'!$A$12:$D$107,3,FALSE))","v":{"v":48135.11514220054,"d":"48,135"}},{"$f":"($A19-$A18)/365.25*(CI18+(Main!$I25*Main!$D$3))*(1+VLOOKUP('Random Years'!CG19,'Hist Returns'!$A$12:$D$107,3,FALSE))","v":{"v":45219.759520026,"d":"45,220"}},{"$f":"($A19-$A18)/365.25*(CJ18+(Main!$I25*Main!$D$3))*(1+VLOOKUP('Random Years'!CH19,'Hist Returns'!$A$12:$D$107,3,FALSE))","v":{"v":35047.04817700868,"d":"35,047"}},{"$f":"($A19-$A18)/365.25*(CK18+(Main!$I25*Main!$D$3))*(1+VLOOKUP('Random Years'!CI19,'Hist Returns'!$A$12:$D$107,3,FALSE))","v":{"v":23164.553840589084,"d":"23,165"}},{"$f":"($A19-$A18)/365.25*(CL18+(Main!$I25*Main!$D$3))*(1+VLOOKUP('Random Years'!CJ19,'Hist Returns'!$A$12:$D$107,3,FALSE))","v":{"v":25491.442490540427,"d":"25,491"}},{"$f":"($A19-$A18)/365.25*(CM18+(Main!$I25*Main!$D$3))*(1+VLOOKUP('Random Years'!CK19,'Hist Returns'!$A$12:$D$107,3,FALSE))","v":{"v":31850.377126463176,"d":"31,850"}},{"$f":"($A19-$A18)/365.25*(CN18+(Main!$I25*Main!$D$3))*(1+VLOOKUP('Random Years'!CL19,'Hist Returns'!$A$12:$D$107,3,FALSE))","v":{"v":47518.968178574265,"d":"47,519"}},{"$f":"($A19-$A18)/365.25*(CO18+(Main!$I25*Main!$D$3))*(1+VLOOKUP('Random Years'!CM19,'Hist Returns'!$A$12:$D$107,3,FALSE))","v":{"v":34319.70116324932,"d":"34,320"}},{"$f":"($A19-$A18)/365.25*(CP18+(Main!$I25*Main!$D$3))*(1+VLOOKUP('Random Years'!CN19,'Hist Returns'!$A$12:$D$107,3,FALSE))","v":{"v":47781.07195537503,"d":"47,781"}},{"$f":"($A19-$A18)/365.25*(CQ18+(Main!$I25*Main!$D$3))*(1+VLOOKUP('Random Years'!CO19,'Hist Returns'!$A$12:$D$107,3,FALSE))","v":{"v":25540.730852805034,"d":"25,541"}},{"$f":"($A19-$A18)/365.25*(CR18+(Main!$I25*Main!$D$3))*(1+VLOOKUP('Random Years'!CP19,'Hist Returns'!$A$12:$D$107,3,FALSE))","v":{"v":33917.23508239386,"d":"33,917"}},{"$f":"($A19-$A18)/365.25*(CS18+(Main!$I25*Main!$D$3))*(1+VLOOKUP('Random Years'!CQ19,'Hist Returns'!$A$12:$D$107,3,FALSE))","v":{"v":32468.48528121696,"d":"32,468"}},{"$f":"($A19-$A18)/365.25*(CT18+(Main!$I25*Main!$D$3))*(1+VLOOKUP('Random Years'!CR19,'Hist Returns'!$A$12:$D$107,3,FALSE))","v":{"v":49564.47201581708,"d":"49,564"}},{"$f":"($A19-$A18)/365.25*(CU18+(Main!$I25*Main!$D$3))*(1+VLOOKUP('Random Years'!CS19,'Hist Returns'!$A$12:$D$107,3,FALSE))","v":{"v":35732.95859514367,"d":"35,733"}},{"$f":"($A19-$A18)/365.25*(CV18+(Main!$I25*Main!$D$3))*(1+VLOOKUP('Random Years'!CT19,'Hist Returns'!$A$12:$D$107,3,FALSE))","v":{"v":32981.89747653927,"d":"32,982"}},{"$f":"($A19-$A18)/365.25*(CW18+(Main!$I25*Main!$D$3))*(1+VLOOKUP('Random Years'!CU19,'Hist Returns'!$A$12:$D$107,3,FALSE))","v":{"v":35186.41173619205,"d":"35,186"}},{"$f":"($A19-$A18)/365.25*(CX18+(Main!$I25*Main!$D$3))*(1+VLOOKUP('Random Years'!CV19,'Hist Returns'!$A$12:$D$107,3,FALSE))","v":{"v":34795.67259085824,"d":"34,796"}}]
[{"$f":"Main!A26","v":"2041-12-30"},{"$f":"Main!B26","v":87},{"$f":"($A20-$A19)/365.25*(C19+(Main!$I26*Main!$D$3))*(1+VLOOKUP('Random Years'!A20,'Hist Returns'!$A$12:$D$107,3,FALSE))","v":{"v":42751.963250867855,"d":"42,752"}},{"$f":"($A20-$A19)/365.25*(D19+(Main!$I26*Main!$D$3))*(1+VLOOKUP('Random Years'!B20,'Hist Returns'!$A$12:$D$107,3,FALSE))","v":{"v":24805.84965588085,"d":"24,806"}},{"$f":"($A20-$A19)/365.25*(E19+(Main!$I26*Main!$D$3))*(1+VLOOKUP('Random Years'!C20,'Hist Returns'!$A$12:$D$107,3,FALSE))","v":{"v":37514.74347210993,"d":"37,515"}},{"$f":"($A20-$A19)/365.25*(F19+(Main!$I26*Main!$D$3))*(1+VLOOKUP('Random Years'!D20,'Hist Returns'!$A$12:$D$107,3,FALSE))","v":{"v":34263.82334246517,"d":"34,264"}},{"$f":"($A20-$A19)/365.25*(G19+(Main!$I26*Main!$D$3))*(1+VLOOKUP('Random Years'!E20,'Hist Returns'!$A$12:$D$107,3,FALSE))","v":{"v":38625.671953076715,"d":"38,626"}},{"$f":"($A20-$A19)/365.25*(H19+(Main!$I26*Main!$D$3))*(1+VLOOKUP('Random Years'!F20,'Hist Returns'!$A$12:$D$107,3,FALSE))","v":{"v":36321.91926261353,"d":"36,322"}},{"$f":"($A20-$A19)/365.25*(I19+(Main!$I26*Main!$D$3))*(1+VLOOKUP('Random Years'!G20,'Hist Returns'!$A$12:$D$107,3,FALSE))","v":{"v":31172.322363593532,"d":"31,172"}},{"$f":"($A20-$A19)/365.25*(J19+(Main!$I26*Main!$D$3))*(1+VLOOKUP('Random Years'!H20,'Hist Returns'!$A$12:$D$107,3,FALSE))","v":{"v":55749.06326346238,"d":"55,749"}},{"$f":"($A20-$A19)/365.25*(K19+(Main!$I26*Main!$D$3))*(1+VLOOKUP('Random Years'!I20,'Hist Returns'!$A$12:$D$107,3,FALSE))","v":{"v":54161.8319746655,"d":"54,162"}},{"$f":"($A20-$A19)/365.25*(L19+(Main!$I26*Main!$D$3))*(1+VLOOKUP('Random Years'!J20,'Hist Returns'!$A$12:$D$107,3,FALSE))","v":{"v":20465.707747533135,"d":"20,466"}},{"$f":"($A20-$A19)/365.25*(M19+(Main!$I26*Main!$D$3))*(1+VLOOKUP('Random Years'!K20,'Hist Returns'!$A$12:$D$107,3,FALSE))","v":{"v":21103.949824848296,"d":"21,104"}},{"$f":"($A20-$A19)/365.25*(N19+(Main!$I26*Main!$D$3))*(1+VLOOKUP('Random Years'!L20,'Hist Returns'!$A$12:$D$107,3,FALSE))","v":{"v":42793.874715975195,"d":"42,794"}},{"$f":"($A20-$A19)/365.25*(O19+(Main!$I26*Main!$D$3))*(1+VLOOKUP('Random Years'!M20,'Hist Returns'!$A$12:$D$107,3,FALSE))","v":{"v":42013.32328208877,"d":"42,013"}},{"$f":"($A20-$A19)/365.25*(P19+(Main!$I26*Main!$D$3))*(1+VLOOKUP('Random Years'!N20,'Hist Returns'!$A$12:$D$107,3,FALSE))","v":{"v":30636.661953757448,"d":"30,637"}},{"$f":"($A20-$A19)/365.25*(Q19+(Main!$I26*Main!$D$3))*(1+VLOOKUP('Random Years'!O20,'Hist Returns'!$A$12:$D$107,3,FALSE))","v":{"v":20742.55463266034,"d":"20,743"}},{"$f":"($A20-$A19)/365.25*(R19+(Main!$I26*Main!$D$3))*(1+VLOOKUP('Random Years'!P20,'Hist Returns'!$A$12:$D$107,3,FALSE))","v":{"v":37916.12999577885,"d":"37,916"}},{"$f":"($A20-$A19)/365.25*(S19+(Main!$I26*Main!$D$3))*(1+VLOOKUP('Random Years'!Q20,'Hist Returns'!$A$12:$D$107,3,FALSE))","v":{"v":22916.20871244706,"d":"22,916"}},{"$f":"($A20-$A19)/365.25*(T19+(Main!$I26*Main!$D$3))*(1+VLOOKUP('Random Years'!R20,'Hist Returns'!$A$12:$D$107,3,FALSE))","v":{"v":58716.14579908977,"d":"58,716"}},{"$f":"($A20-$A19)/365.25*(U19+(Main!$I26*Main!$D$3))*(1+VLOOKUP('Random Years'!S20,'Hist Returns'!$A$12:$D$107,3,FALSE))","v":{"v":45803.053515917636,"d":"45,803"}},{"$f":"($A20-$A19)/365.25*(V19+(Main!$I26*Main!$D$3))*(1+VLOOKUP('Random Years'!T20,'Hist Returns'!$A$12:$D$107,3,FALSE))","v":{"v":39873.4667429655,"d":"39,873"}},{"$f":"($A20-$A19)/365.25*(W19+(Main!$I26*Main!$D$3))*(1+VLOOKUP('Random Years'!U20,'Hist Returns'!$A$12:$D$107,3,FALSE))","v":{"v":63408.94389605039,"d":"63,409"}},{"$f":"($A20-$A19)/365.25*(X19+(Main!$I26*Main!$D$3))*(1+VLOOKUP('Random Years'!V20,'Hist Returns'!$A$12:$D$107,3,FALSE))","v":{"v":29943.36848013673,"d":"29,943"}},{"$f":"($A20-$A19)/365.25*(Y19+(Main!$I26*Main!$D$3))*(1+VLOOKUP('Random Years'!W20,'Hist Returns'!$A$12:$D$107,3,FALSE))","v":{"v":26546.10700924756,"d":"26,546"}},{"$f":"($A20-$A19)/365.25*(Z19+(Main!$I26*Main!$D$3))*(1+VLOOKUP('Random Years'!X20,'Hist Returns'!$A$12:$D$107,3,FALSE))","v":{"v":40463.13854222518,"d":"40,463"}},{"$f":"($A20-$A19)/365.25*(AA19+(Main!$I26*Main!$D$3))*(1+VLOOKUP('Random Years'!Y20,'Hist Returns'!$A$12:$D$107,3,FALSE))","v":{"v":29909.26285008843,"d":"29,909"}},{"$f":"($A20-$A19)/365.25*(AB19+(Main!$I26*Main!$D$3))*(1+VLOOKUP('Random Years'!Z20,'Hist Returns'!$A$12:$D$107,3,FALSE))","v":{"v":36808.60262243546,"d":"36,809"}},{"$f":"($A20-$A19)/365.25*(AC19+(Main!$I26*Main!$D$3))*(1+VLOOKUP('Random Years'!AA20,'Hist Returns'!$A$12:$D$107,3,FALSE))","v":{"v":44027.633864483054,"d":"44,028"}},{"$f":"($A20-$A19)/365.25*(AD19+(Main!$I26*Main!$D$3))*(1+VLOOKUP('Random Years'!AB20,'Hist Returns'!$A$12:$D$107,3,FALSE))","v":{"v":37723.47080072269,"d":"37,723"}},{"$f":"($A20-$A19)/365.25*(AE19+(Main!$I26*Main!$D$3))*(1+VLOOKUP('Random Years'!AC20,'Hist Returns'!$A$12:$D$107,3,FALSE))","v":{"v":33487.054052404965,"d":"33,487"}},{"$f":"($A20-$A19)/365.25*(AF19+(Main!$I26*Main!$D$3))*(1+VLOOKUP('Random Years'!AD20,'Hist Returns'!$A$12:$D$107,3,FALSE))","v":{"v":28003.576958943828,"d":"28,004"}},{"$f":"($A20-$A19)/365.25*(AG19+(Main!$I26*Main!$D$3))*(1+VLOOKUP('Random Years'!AE20,'Hist Returns'!$A$12:$D$107,3,FALSE))","v":{"v":31417.84972019182,"d":"31,418"}},{"$f":"($A20-$A19)/365.25*(AH19+(Main!$I26*Main!$D$3))*(1+VLOOKUP('Random Years'!AF20,'Hist Returns'!$A$12:$D$107,3,FALSE))","v":{"v":35486.99331218187,"d":"35,487"}},{"$f":"($A20-$A19)/365.25*(AI19+(Main!$I26*Main!$D$3))*(1+VLOOKUP('Random Years'!AG20,'Hist Returns'!$A$12:$D$107,3,FALSE))","v":{"v":46684.53637852837,"d":"46,685"}},{"$f":"($A20-$A19)/365.25*(AJ19+(Main!$I26*Main!$D$3))*(1+VLOOKUP('Random Years'!AH20,'Hist Returns'!$A$12:$D$107,3,FALSE))","v":{"v":39334.84563731464,"d":"39,335"}},{"$f":"($A20-$A19)/365.25*(AK19+(Main!$I26*Main!$D$3))*(1+VLOOKUP('Random Years'!AI20,'Hist Returns'!$A$12:$D$107,3,FALSE))","v":{"v":28210.84151298753,"d":"28,211"}},{"$f":"($A20-$A19)/365.25*(AL19+(Main!$I26*Main!$D$3))*(1+VLOOKUP('Random Years'!AJ20,'Hist Returns'!$A$12:$D$107,3,FALSE))","v":{"v":40715.73606956434,"d":"40,716"}},{"$f":"($A20-$A19)/365.25*(AM19+(Main!$I26*Main!$D$3))*(1+VLOOKUP('Random Years'!AK20,'Hist Returns'!$A$12:$D$107,3,FALSE))","v":{"v":44591.07079095264,"d":"44,591"}},{"$f":"($A20-$A19)/365.25*(AN19+(Main!$I26*Main!$D$3))*(1+VLOOKUP('Random Years'!AL20,'Hist Returns'!$A$12:$D$107,3,FALSE))","v":{"v":46260.34305590188,"d":"46,260"}},{"$f":"($A20-$A19)/365.25*(AO19+(Main!$I26*Main!$D$3))*(1+VLOOKUP('Random Years'!AM20,'Hist Returns'!$A$12:$D$107,3,FALSE))","v":{"v":58463.62645408091,"d":"58,464"}},{"$f":"($A20-$A19)/365.25*(AP19+(Main!$I26*Main!$D$3))*(1+VLOOKUP('Random Years'!AN20,'Hist Returns'!$A$12:$D$107,3,FALSE))","v":{"v":27905.846210072883,"d":"27,906"}},{"$f":"($A20-$A19)/365.25*(AQ19+(Main!$I26*Main!$D$3))*(1+VLOOKUP('Random Years'!AO20,'Hist Returns'!$A$12:$D$107,3,FALSE))","v":{"v":26511.597842206244,"d":"26,512"}},{"$f":"($A20-$A19)/365.25*(AR19+(Main!$I26*Main!$D$3))*(1+VLOOKUP('Random Years'!AP20,'Hist Returns'!$A$12:$D$107,3,FALSE))","v":{"v":26648.05137969358,"d":"26,648"}},{"$f":"($A20-$A19)/365.25*(AS19+(Main!$I26*Main!$D$3))*(1+VLOOKUP('Random Years'!AQ20,'Hist Returns'!$A$12:$D$107,3,FALSE))","v":{"v":30686.047718096408,"d":"30,686"}},{"$f":"($A20-$A19)/365.25*(AT19+(Main!$I26*Main!$D$3))*(1+VLOOKUP('Random Years'!AR20,'Hist Returns'!$A$12:$D$107,3,FALSE))","v":{"v":38931.440541909884,"d":"38,931"}},{"$f":"($A20-$A19)/365.25*(AU19+(Main!$I26*Main!$D$3))*(1+VLOOKUP('Random Years'!AS20,'Hist Returns'!$A$12:$D$107,3,FALSE))","v":{"v":30548.993705431887,"d":"30,549"}},{"$f":"($A20-$A19)/365.25*(AV19+(Main!$I26*Main!$D$3))*(1+VLOOKUP('Random Years'!AT20,'Hist Returns'!$A$12:$D$107,3,FALSE))","v":{"v":16478.320949759724,"d":"16,478"}},{"$f":"($A20-$A19)/365.25*(AW19+(Main!$I26*Main!$D$3))*(1+VLOOKUP('Random Years'!AU20,'Hist Returns'!$A$12:$D$107,3,FALSE))","v":{"v":29372.067199391764,"d":"29,372"}},{"$f":"($A20-$A19)/365.25*(AX19+(Main!$I26*Main!$D$3))*(1+VLOOKUP('Random Years'!AV20,'Hist Returns'!$A$12:$D$107,3,FALSE))","v":{"v":29006.39028093559,"d":"29,006"}},{"$f":"($A20-$A19)/365.25*(AY19+(Main!$I26*Main!$D$3))*(1+VLOOKUP('Random Years'!AW20,'Hist Returns'!$A$12:$D$107,3,FALSE))","v":{"v":18142.707625847772,"d":"18,143"}},{"$f":"($A20-$A19)/365.25*(AZ19+(Main!$I26*Main!$D$3))*(1+VLOOKUP('Random Years'!AX20,'Hist Returns'!$A$12:$D$107,3,FALSE))","v":{"v":35327.99756582301,"d":"35,328"}},{"$f":"($A20-$A19)/365.25*(BA19+(Main!$I26*Main!$D$3))*(1+VLOOKUP('Random Years'!AY20,'Hist Returns'!$A$12:$D$107,3,FALSE))","v":{"v":47227.52635558178,"d":"47,228"}},{"$f":"($A20-$A19)/365.25*(BB19+(Main!$I26*Main!$D$3))*(1+VLOOKUP('Random Years'!AZ20,'Hist Returns'!$A$12:$D$107,3,FALSE))","v":{"v":59960.2043801366,"d":"59,960"}},{"$f":"($A20-$A19)/365.25*(BC19+(Main!$I26*Main!$D$3))*(1+VLOOKUP('Random Years'!BA20,'Hist Returns'!$A$12:$D$107,3,FALSE))","v":{"v":54830.93849199148,"d":"54,831"}},{"$f":"($A20-$A19)/365.25*(BD19+(Main!$I26*Main!$D$3))*(1+VLOOKUP('Random Years'!BB20,'Hist Returns'!$A$12:$D$107,3,FALSE))","v":{"v":24503.223834941975,"d":"24,503"}},{"$f":"($A20-$A19)/365.25*(BE19+(Main!$I26*Main!$D$3))*(1+VLOOKUP('Random Years'!BC20,'Hist Returns'!$A$12:$D$107,3,FALSE))","v":{"v":37318.999771094015,"d":"37,319"}},{"$f":"($A20-$A19)/365.25*(BF19+(Main!$I26*Main!$D$3))*(1+VLOOKUP('Random Years'!BD20,'Hist Returns'!$A$12:$D$107,3,FALSE))","v":{"v":40818.38139405447,"d":"40,818"}},{"$f":"($A20-$A19)/365.25*(BG19+(Main!$I26*Main!$D$3))*(1+VLOOKUP('Random Years'!BE20,'Hist Returns'!$A$12:$D$107,3,FALSE))","v":{"v":30720.11660548839,"d":"30,720"}},{"$f":"($A20-$A19)/365.25*(BH19+(Main!$I26*Main!$D$3))*(1+VLOOKUP('Random Years'!BF20,'Hist Returns'!$A$12:$D$107,3,FALSE))","v":{"v":22032.09470301248,"d":"22,032"}},{"$f":"($A20-$A19)/365.25*(BI19+(Main!$I26*Main!$D$3))*(1+VLOOKUP('Random Years'!BG20,'Hist Returns'!$A$12:$D$107,3,FALSE))","v":{"v":33051.40906224742,"d":"33,051"}},{"$f":"($A20-$A19)/365.25*(BJ19+(Main!$I26*Main!$D$3))*(1+VLOOKUP('Random Years'!BH20,'Hist Returns'!$A$12:$D$107,3,FALSE))","v":{"v":52439.538204649136,"d":"52,440"}},{"$f":"($A20-$A19)/365.25*(BK19+(Main!$I26*Main!$D$3))*(1+VLOOKUP('Random Years'!BI20,'Hist Returns'!$A$12:$D$107,3,FALSE))","v":{"v":28429.99887997333,"d":"28,430"}},{"$f":"($A20-$A19)/365.25*(BL19+(Main!$I26*Main!$D$3))*(1+VLOOKUP('Random Years'!BJ20,'Hist Returns'!$A$12:$D$107,3,FALSE))","v":{"v":37534.01260710139,"d":"37,534"}},{"$f":"($A20-$A19)/365.25*(BM19+(Main!$I26*Main!$D$3))*(1+VLOOKUP('Random Years'!BK20,'Hist Returns'!$A$12:$D$107,3,FALSE))","v":{"v":36125.530657027826,"d":"36,126"}},{"$f":"($A20-$A19)/365.25*(BN19+(Main!$I26*Main!$D$3))*(1+VLOOKUP('Random Years'!BL20,'Hist Returns'!$A$12:$D$107,3,FALSE))","v":{"v":33651.09395260636,"d":"33,651"}},{"$f":"($A20-$A19)/365.25*(BO19+(Main!$I26*Main!$D$3))*(1+VLOOKUP('Random Years'!BM20,'Hist Returns'!$A$12:$D$107,3,FALSE))","v":{"v":41306.78952415138,"d":"41,307"}},{"$f":"($A20-$A19)/365.25*(BP19+(Main!$I26*Main!$D$3))*(1+VLOOKUP('Random Years'!BN20,'Hist Returns'!$A$12:$D$107,3,FALSE))","v":{"v":20354.91721388779,"d":"20,355"}},{"$f":"($A20-$A19)/365.25*(BQ19+(Main!$I26*Main!$D$3))*(1+VLOOKUP('Random Years'!BO20,'Hist Returns'!$A$12:$D$107,3,FALSE))","v":{"v":32358.88589755721,"d":"32,359"}},{"$f":"($A20-$A19)/365.25*(BR19+(Main!$I26*Main!$D$3))*(1+VLOOKUP('Random Years'!BP20,'Hist Returns'!$A$12:$D$107,3,FALSE))","v":{"v":40860.05618733418,"d":"40,860"}},{"$f":"($A20-$A19)/365.25*(BS19+(Main!$I26*Main!$D$3))*(1+VLOOKUP('Random Years'!BQ20,'Hist Returns'!$A$12:$D$107,3,FALSE))","v":{"v":38116.61458858787,"d":"38,117"}},{"$f":"($A20-$A19)/365.25*(BT19+(Main!$I26*Main!$D$3))*(1+VLOOKUP('Random Years'!BR20,'Hist Returns'!$A$12:$D$107,3,FALSE))","v":{"v":35963.08437075275,"d":"35,963"}},{"$f":"($A20-$A19)/365.25*(BU19+(Main!$I26*Main!$D$3))*(1+VLOOKUP('Random Years'!BS20,'Hist Returns'!$A$12:$D$107,3,FALSE))","v":{"v":51179.89421358376,"d":"51,180"}},{"$f":"($A20-$A19)/365.25*(BV19+(Main!$I26*Main!$D$3))*(1+VLOOKUP('Random Years'!BT20,'Hist Returns'!$A$12:$D$107,3,FALSE))","v":{"v":29695.45020378314,"d":"29,695"}},{"$f":"($A20-$A19)/365.25*(BW19+(Main!$I26*Main!$D$3))*(1+VLOOKUP('Random Years'!BU20,'Hist Returns'!$A$12:$D$107,3,FALSE))","v":{"v":27271.358688121843,"d":"27,271"}},{"$f":"($A20-$A19)/365.25*(BX19+(Main!$I26*Main!$D$3))*(1+VLOOKUP('Random Years'!BV20,'Hist Returns'!$A$12:$D$107,3,FALSE))","v":{"v":44415.1335450875,"d":"44,415"}},{"$f":"($A20-$A19)/365.25*(BY19+(Main!$I26*Main!$D$3))*(1+VLOOKUP('Random Years'!BW20,'Hist Returns'!$A$12:$D$107,3,FALSE))","v":{"v":37741.23405671667,"d":"37,741"}},{"$f":"($A20-$A19)/365.25*(BZ19+(Main!$I26*Main!$D$3))*(1+VLOOKUP('Random Years'!BX20,'Hist Returns'!$A$12:$D$107,3,FALSE))","v":{"v":24412.525445866555,"d":"24,413"}},{"$f":"($A20-$A19)/365.25*(CA19+(Main!$I26*Main!$D$3))*(1+VLOOKUP('Random Years'!BY20,'Hist Returns'!$A$12:$D$107,3,FALSE))","v":{"v":31741.48993918013,"d":"31,741"}},{"$f":"($A20-$A19)/365.25*(CB19+(Main!$I26*Main!$D$3))*(1+VLOOKUP('Random Years'!BZ20,'Hist Returns'!$A$12:$D$107,3,FALSE))","v":{"v":34350.957675316415,"d":"34,351"}},{"$f":"($A20-$A19)/365.25*(CC19+(Main!$I26*Main!$D$3))*(1+VLOOKUP('Random Years'!CA20,'Hist Returns'!$A$12:$D$107,3,FALSE))","v":{"v":41317.63654075993,"d":"41,318"}},{"$f":"($A20-$A19)/365.25*(CD19+(Main!$I26*Main!$D$3))*(1+VLOOKUP('Random Years'!CB20,'Hist Returns'!$A$12:$D$107,3,FALSE))","v":{"v":29406.20602759139,"d":"29,406"}},{"$f":"($A20-$A19)/365.25*(CE19+(Main!$I26*Main!$D$3))*(1+VLOOKUP('Random Years'!CC20,'Hist Returns'!$A$12:$D$107,3,FALSE))","v":{"v":40439.538774355206,"d":"40,440"}},{"$f":"($A20-$A19)/365.25*(CF19+(Main!$I26*Main!$D$3))*(1+VLOOKUP('Random Years'!CD20,'Hist Returns'!$A$12:$D$107,3,FALSE))","v":{"v":41741.67065488965,"d":"41,742"}},{"$f":"($A20-$A19)/365.25*(CG19+(Main!$I26*Main!$D$3))*(1+VLOOKUP('Random Years'!CE20,'Hist Returns'!$A$12:$D$107,3,FALSE))","v":{"v":28998.19356975882,"d":"28,998"}},{"$f":"($A20-$A19)/365.25*(CH19+(Main!$I26*Main!$D$3))*(1+VLOOKUP('Random Years'!CF20,'Hist Returns'!$A$12:$D$107,3,FALSE))","v":{"v":46135.18384933123,"d":"46,135"}},{"$f":"($A20-$A19)/365.25*(CI19+(Main!$I26*Main!$D$3))*(1+VLOOKUP('Random Years'!CG20,'Hist Returns'!$A$12:$D$107,3,FALSE))","v":{"v":43211.43683139238,"d":"43,211"}},{"$f":"($A20-$A19)/365.25*(CJ19+(Main!$I26*Main!$D$3))*(1+VLOOKUP('Random Years'!CH20,'Hist Returns'!$A$12:$D$107,3,FALSE))","v":{"v":33048.227712547094,"d":"33,048"}},{"$f":"($A20-$A19)/365.25*(CK19+(Main!$I26*Main!$D$3))*(1+VLOOKUP('Random Years'!CI20,'Hist Returns'!$A$12:$D$107,3,FALSE))","v":{"v":21182.607420608518,"d":"21,183"}},{"$f":"($A20-$A19)/365.25*(CL19+(Main!$I26*Main!$D$3))*(1+VLOOKUP('Random Years'!CJ20,'Hist Returns'!$A$12:$D$107,3,FALSE))","v":{"v":24589.91847440719,"d":"24,590"}},{"$f":"($A20-$A19)/365.25*(CM19+(Main!$I26*Main!$D$3))*(1+VLOOKUP('Random Years'!CK20,'Hist Returns'!$A$12:$D$107,3,FALSE))","v":{"v":31364.408104477377,"d":"31,364"}},{"$f":"($A20-$A19)/365.25*(CN19+(Main!$I26*Main!$D$3))*(1+VLOOKUP('Random Years'!CL20,'Hist Returns'!$A$12:$D$107,3,FALSE))","v":{"v":45664.66292130877,"d":"45,665"}},{"$f":"($A20-$A19)/365.25*(CO19+(Main!$I26*Main!$D$3))*(1+VLOOKUP('Random Years'!CM20,'Hist Returns'!$A$12:$D$107,3,FALSE))","v":{"v":33812.46703318184,"d":"33,812"}},{"$f":"($A20-$A19)/365.25*(CP19+(Main!$I26*Main!$D$3))*(1+VLOOKUP('Random Years'!CN20,'Hist Returns'!$A$12:$D$107,3,FALSE))","v":{"v":45772.01996764962,"d":"45,772"}},{"$f":"($A20-$A19)/365.25*(CQ19+(Main!$I26*Main!$D$3))*(1+VLOOKUP('Random Years'!CO20,'Hist Returns'!$A$12:$D$107,3,FALSE))","v":{"v":23817.413627291317,"d":"23,817"}},{"$f":"($A20-$A19)/365.25*(CR19+(Main!$I26*Main!$D$3))*(1+VLOOKUP('Random Years'!CP20,'Hist Returns'!$A$12:$D$107,3,FALSE))","v":{"v":33810.143202548556,"d":"33,810"}},{"$f":"($A20-$A19)/365.25*(CS19+(Main!$I26*Main!$D$3))*(1+VLOOKUP('Random Years'!CQ20,'Hist Returns'!$A$12:$D$107,3,FALSE))","v":{"v":31824.980433260323,"d":"31,825"}},{"$f":"($A20-$A19)/365.25*(CT19+(Main!$I26*Main!$D$3))*(1+VLOOKUP('Random Years'!CR20,'Hist Returns'!$A$12:$D$107,3,FALSE))","v":{"v":47778.330949021176,"d":"47,778"}},{"$f":"($A20-$A19)/365.25*(CU19+(Main!$I26*Main!$D$3))*(1+VLOOKUP('Random Years'!CS20,'Hist Returns'!$A$12:$D$107,3,FALSE))","v":{"v":34182.47414148606,"d":"34,182"}},{"$f":"($A20-$A19)/365.25*(CV19+(Main!$I26*Main!$D$3))*(1+VLOOKUP('Random Years'!CT20,'Hist Returns'!$A$12:$D$107,3,FALSE))","v":{"v":31481.78353148344,"d":"31,482"}},{"$f":"($A20-$A19)/365.25*(CW19+(Main!$I26*Main!$D$3))*(1+VLOOKUP('Random Years'!CU20,'Hist Returns'!$A$12:$D$107,3,FALSE))","v":{"v":34248.94516623247,"d":"34,249"}},{"$f":"($A20-$A19)/365.25*(CX19+(Main!$I26*Main!$D$3))*(1+VLOOKUP('Random Years'!CV20,'Hist Returns'!$A$12:$D$107,3,FALSE))","v":{"v":36385.977643015234,"d":"36,386"}}]
[{"$f":"Main!A27","v":"2042-12-30"},{"$f":"Main!B27","v":88},{"$f":"($A21-$A20)/365.25*(C20+(Main!$I27*Main!$D$3))*(1+VLOOKUP('Random Years'!A21,'Hist Returns'!$A$12:$D$107,3,FALSE))","v":{"v":41255.980704458045,"d":"41,256"}},{"$f":"($A21-$A20)/365.25*(D20+(Main!$I27*Main!$D$3))*(1+VLOOKUP('Random Years'!B21,'Hist Returns'!$A$12:$D$107,3,FALSE))","v":{"v":22659.80837967884,"d":"22,660"}},{"$f":"($A21-$A20)/365.25*(E20+(Main!$I27*Main!$D$3))*(1+VLOOKUP('Random Years'!C21,'Hist Returns'!$A$12:$D$107,3,FALSE))","v":{"v":35737.51466119567,"d":"35,738"}},{"$f":"($A21-$A20)/365.25*(F20+(Main!$I27*Main!$D$3))*(1+VLOOKUP('Random Years'!D21,'Hist Returns'!$A$12:$D$107,3,FALSE))","v":{"v":32430.614031217126,"d":"32,431"}},{"$f":"($A21-$A20)/365.25*(G20+(Main!$I27*Main!$D$3))*(1+VLOOKUP('Random Years'!E21,'Hist Returns'!$A$12:$D$107,3,FALSE))","v":{"v":36524.473207074836,"d":"36,524"}},{"$f":"($A21-$A20)/365.25*(H20+(Main!$I27*Main!$D$3))*(1+VLOOKUP('Random Years'!F21,'Hist Returns'!$A$12:$D$107,3,FALSE))","v":{"v":34286.466775695626,"d":"34,286"}},{"$f":"($A21-$A20)/365.25*(I20+(Main!$I27*Main!$D$3))*(1+VLOOKUP('Random Years'!G21,'Hist Returns'!$A$12:$D$107,3,FALSE))","v":{"v":30475.634493472535,"d":"30,476"}},{"$f":"($A21-$A20)/365.25*(J20+(Main!$I27*Main!$D$3))*(1+VLOOKUP('Random Years'!H21,'Hist Returns'!$A$12:$D$107,3,FALSE))","v":{"v":56806.17757325201,"d":"56,806"}},{"$f":"($A21-$A20)/365.25*(K20+(Main!$I27*Main!$D$3))*(1+VLOOKUP('Random Years'!I21,'Hist Returns'!$A$12:$D$107,3,FALSE))","v":{"v":59418.13877513458,"d":"59,418"}},{"$f":"($A21-$A20)/365.25*(L20+(Main!$I27*Main!$D$3))*(1+VLOOKUP('Random Years'!J21,'Hist Returns'!$A$12:$D$107,3,FALSE))","v":{"v":18499.91941731065,"d":"18,500"}},{"$f":"($A21-$A20)/365.25*(M20+(Main!$I27*Main!$D$3))*(1+VLOOKUP('Random Years'!K21,'Hist Returns'!$A$12:$D$107,3,FALSE))","v":{"v":20084.170294242303,"d":"20,084"}},{"$f":"($A21-$A20)/365.25*(N20+(Main!$I27*Main!$D$3))*(1+VLOOKUP('Random Years'!L21,'Hist Returns'!$A$12:$D$107,3,FALSE))","v":{"v":42761.02983121051,"d":"42,761"}},{"$f":"($A21-$A20)/365.25*(O20+(Main!$I27*Main!$D$3))*(1+VLOOKUP('Random Years'!M21,'Hist Returns'!$A$12:$D$107,3,FALSE))","v":{"v":41103.25597453942,"d":"41,103"}},{"$f":"($A21-$A20)/365.25*(P20+(Main!$I27*Main!$D$3))*(1+VLOOKUP('Random Years'!N21,'Hist Returns'!$A$12:$D$107,3,FALSE))","v":{"v":29708.286188480386,"d":"29,708"}},{"$f":"($A21-$A20)/365.25*(Q20+(Main!$I27*Main!$D$3))*(1+VLOOKUP('Random Years'!O21,'Hist Returns'!$A$12:$D$107,3,FALSE))","v":{"v":18963.447288081774,"d":"18,963"}},{"$f":"($A21-$A20)/365.25*(R20+(Main!$I27*Main!$D$3))*(1+VLOOKUP('Random Years'!P21,'Hist Returns'!$A$12:$D$107,3,FALSE))","v":{"v":36278.88788617014,"d":"36,279"}},{"$f":"($A21-$A20)/365.25*(S20+(Main!$I27*Main!$D$3))*(1+VLOOKUP('Random Years'!Q21,'Hist Returns'!$A$12:$D$107,3,FALSE))","v":{"v":20788.16276729927,"d":"20,788"}},{"$f":"($A21-$A20)/365.25*(T20+(Main!$I27*Main!$D$3))*(1+VLOOKUP('Random Years'!R21,'Hist Returns'!$A$12:$D$107,3,FALSE))","v":{"v":64620.15645064637,"d":"64,620"}},{"$f":"($A21-$A20)/365.25*(U20+(Main!$I27*Main!$D$3))*(1+VLOOKUP('Random Years'!S21,'Hist Returns'!$A$12:$D$107,3,FALSE))","v":{"v":43666.22124782376,"d":"43,666"}},{"$f":"($A21-$A20)/365.25*(V20+(Main!$I27*Main!$D$3))*(1+VLOOKUP('Random Years'!T21,'Hist Returns'!$A$12:$D$107,3,FALSE))","v":{"v":38120.55167090072,"d":"38,121"}},{"$f":"($A21-$A20)/365.25*(W20+(Main!$I27*Main!$D$3))*(1+VLOOKUP('Random Years'!U21,'Hist Returns'!$A$12:$D$107,3,FALSE))","v":{"v":62195.574722388475,"d":"62,196"}},{"$f":"($A21-$A20)/365.25*(X20+(Main!$I27*Main!$D$3))*(1+VLOOKUP('Random Years'!V21,'Hist Returns'!$A$12:$D$107,3,FALSE))","v":{"v":30452.383476629046,"d":"30,452"}},{"$f":"($A21-$A20)/365.25*(Y20+(Main!$I27*Main!$D$3))*(1+VLOOKUP('Random Years'!W21,'Hist Returns'!$A$12:$D$107,3,FALSE))","v":{"v":24480.22304106456,"d":"24,480"}},{"$f":"($A21-$A20)/365.25*(Z20+(Main!$I27*Main!$D$3))*(1+VLOOKUP('Random Years'!X21,'Hist Returns'!$A$12:$D$107,3,FALSE))","v":{"v":39018.83275584132,"d":"39,019"}},{"$f":"($A21-$A20)/365.25*(AA20+(Main!$I27*Main!$D$3))*(1+VLOOKUP('Random Years'!Y21,'Hist Returns'!$A$12:$D$107,3,FALSE))","v":{"v":27806.675884755216,"d":"27,807"}},{"$f":"($A21-$A20)/365.25*(AB20+(Main!$I27*Main!$D$3))*(1+VLOOKUP('Random Years'!Z21,'Hist Returns'!$A$12:$D$107,3,FALSE))","v":{"v":39596.973765952884,"d":"39,597"}},{"$f":"($A21-$A20)/365.25*(AC20+(Main!$I27*Main!$D$3))*(1+VLOOKUP('Random Years'!AA21,'Hist Returns'!$A$12:$D$107,3,FALSE))","v":{"v":41890.5974413574,"d":"41,891"}},{"$f":"($A21-$A20)/365.25*(AD20+(Main!$I27*Main!$D$3))*(1+VLOOKUP('Random Years'!AB21,'Hist Returns'!$A$12:$D$107,3,FALSE))","v":{"v":35948.393552826165,"d":"35,948"}},{"$f":"($A21-$A20)/365.25*(AE20+(Main!$I27*Main!$D$3))*(1+VLOOKUP('Random Years'!AC21,'Hist Returns'!$A$12:$D$107,3,FALSE))","v":{"v":32905.59577552644,"d":"32,906"}},{"$f":"($A21-$A20)/365.25*(AF20+(Main!$I27*Main!$D$3))*(1+VLOOKUP('Random Years'!AD21,'Hist Returns'!$A$12:$D$107,3,FALSE))","v":{"v":26632.26540844598,"d":"26,632"}},{"$f":"($A21-$A20)/365.25*(AG20+(Main!$I27*Main!$D$3))*(1+VLOOKUP('Random Years'!AE21,'Hist Returns'!$A$12:$D$107,3,FALSE))","v":{"v":29367.13117695706,"d":"29,367"}},{"$f":"($A21-$A20)/365.25*(AH20+(Main!$I27*Main!$D$3))*(1+VLOOKUP('Random Years'!AF21,'Hist Returns'!$A$12:$D$107,3,FALSE))","v":{"v":34545.245981566695,"d":"34,545"}},{"$f":"($A21-$A20)/365.25*(AI20+(Main!$I27*Main!$D$3))*(1+VLOOKUP('Random Years'!AG21,'Hist Returns'!$A$12:$D$107,3,FALSE))","v":{"v":44681.3420590596,"d":"44,681"}},{"$f":"($A21-$A20)/365.25*(AJ20+(Main!$I27*Main!$D$3))*(1+VLOOKUP('Random Years'!AH21,'Hist Returns'!$A$12:$D$107,3,FALSE))","v":{"v":39951.38397696196,"d":"39,951"}},{"$f":"($A21-$A20)/365.25*(AK20+(Main!$I27*Main!$D$3))*(1+VLOOKUP('Random Years'!AI21,'Hist Returns'!$A$12:$D$107,3,FALSE))","v":{"v":26061.565862969597,"d":"26,062"}},{"$f":"($A21-$A20)/365.25*(AL20+(Main!$I27*Main!$D$3))*(1+VLOOKUP('Random Years'!AJ21,'Hist Returns'!$A$12:$D$107,3,FALSE))","v":{"v":41434.68714151554,"d":"41,435"}},{"$f":"($A21-$A20)/365.25*(AM20+(Main!$I27*Main!$D$3))*(1+VLOOKUP('Random Years'!AK21,'Hist Returns'!$A$12:$D$107,3,FALSE))","v":{"v":44473.29891736764,"d":"44,473"}},{"$f":"($A21-$A20)/365.25*(AN20+(Main!$I27*Main!$D$3))*(1+VLOOKUP('Random Years'!AL21,'Hist Returns'!$A$12:$D$107,3,FALSE))","v":{"v":44255.828249621816,"d":"44,256"}},{"$f":"($A21-$A20)/365.25*(AO20+(Main!$I27*Main!$D$3))*(1+VLOOKUP('Random Years'!AM21,'Hist Returns'!$A$12:$D$107,3,FALSE))","v":{"v":56311.365054856644,"d":"56,311"}},{"$f":"($A21-$A20)/365.25*(AP20+(Main!$I27*Main!$D$3))*(1+VLOOKUP('Random Years'!AN21,'Hist Returns'!$A$12:$D$107,3,FALSE))","v":{"v":25792.70230574821,"d":"25,793"}},{"$f":"($A21-$A20)/365.25*(AQ20+(Main!$I27*Main!$D$3))*(1+VLOOKUP('Random Years'!AO21,'Hist Returns'!$A$12:$D$107,3,FALSE))","v":{"v":26693.39433049353,"d":"26,693"}},{"$f":"($A21-$A20)/365.25*(AR20+(Main!$I27*Main!$D$3))*(1+VLOOKUP('Random Years'!AP21,'Hist Returns'!$A$12:$D$107,3,FALSE))","v":{"v":24509.016483017316,"d":"24,509"}},{"$f":"($A21-$A20)/365.25*(AS20+(Main!$I27*Main!$D$3))*(1+VLOOKUP('Random Years'!AQ21,'Hist Returns'!$A$12:$D$107,3,FALSE))","v":{"v":28550.32961528355,"d":"28,550"}},{"$f":"($A21-$A20)/365.25*(AT20+(Main!$I27*Main!$D$3))*(1+VLOOKUP('Random Years'!AR21,'Hist Returns'!$A$12:$D$107,3,FALSE))","v":{"v":39624.67741581224,"d":"39,625"}},{"$f":"($A21-$A20)/365.25*(AU20+(Main!$I27*Main!$D$3))*(1+VLOOKUP('Random Years'!AS21,'Hist Returns'!$A$12:$D$107,3,FALSE))","v":{"v":29176.87520199336,"d":"29,177"}},{"$f":"($A21-$A20)/365.25*(AV20+(Main!$I27*Main!$D$3))*(1+VLOOKUP('Random Years'!AT21,'Hist Returns'!$A$12:$D$107,3,FALSE))","v":{"v":14789.40628089474,"d":"14,789"}},{"$f":"($A21-$A20)/365.25*(AW20+(Main!$I27*Main!$D$3))*(1+VLOOKUP('Random Years'!AU21,'Hist Returns'!$A$12:$D$107,3,FALSE))","v":{"v":28768.078438508306,"d":"28,768"}},{"$f":"($A21-$A20)/365.25*(AX20+(Main!$I27*Main!$D$3))*(1+VLOOKUP('Random Years'!AV21,'Hist Returns'!$A$12:$D$107,3,FALSE))","v":{"v":30685.149049150594,"d":"30,685"}},{"$f":"($A21-$A20)/365.25*(AY20+(Main!$I27*Main!$D$3))*(1+VLOOKUP('Random Years'!AW21,'Hist Returns'!$A$12:$D$107,3,FALSE))","v":{"v":16312.898815890629,"d":"16,313"}},{"$f":"($A21-$A20)/365.25*(AZ20+(Main!$I27*Main!$D$3))*(1+VLOOKUP('Random Years'!AX21,'Hist Returns'!$A$12:$D$107,3,FALSE))","v":{"v":33176.69540182973,"d":"33,177"}},{"$f":"($A21-$A20)/365.25*(BA20+(Main!$I27*Main!$D$3))*(1+VLOOKUP('Random Years'!AY21,'Hist Returns'!$A$12:$D$107,3,FALSE))","v":{"v":45284.593587594354,"d":"45,285"}},{"$f":"($A21-$A20)/365.25*(BB20+(Main!$I27*Main!$D$3))*(1+VLOOKUP('Random Years'!AZ21,'Hist Returns'!$A$12:$D$107,3,FALSE))","v":{"v":59662.36514819569,"d":"59,662"}},{"$f":"($A21-$A20)/365.25*(BC20+(Main!$I27*Main!$D$3))*(1+VLOOKUP('Random Years'!BA21,'Hist Returns'!$A$12:$D$107,3,FALSE))","v":{"v":53716.61296323774,"d":"53,717"}},{"$f":"($A21-$A20)/365.25*(BD20+(Main!$I27*Main!$D$3))*(1+VLOOKUP('Random Years'!BB21,'Hist Returns'!$A$12:$D$107,3,FALSE))","v":{"v":24806.367259105187,"d":"24,806"}},{"$f":"($A21-$A20)/365.25*(BE20+(Main!$I27*Main!$D$3))*(1+VLOOKUP('Random Years'!BC21,'Hist Returns'!$A$12:$D$107,3,FALSE))","v":{"v":35181.191923924765,"d":"35,181"}},{"$f":"($A21-$A20)/365.25*(BF20+(Main!$I27*Main!$D$3))*(1+VLOOKUP('Random Years'!BD21,'Hist Returns'!$A$12:$D$107,3,FALSE))","v":{"v":38796.92610752931,"d":"38,797"}},{"$f":"($A21-$A20)/365.25*(BG20+(Main!$I27*Main!$D$3))*(1+VLOOKUP('Random Years'!BE21,'Hist Returns'!$A$12:$D$107,3,FALSE))","v":{"v":30874.813804772017,"d":"30,875"}},{"$f":"($A21-$A20)/365.25*(BH20+(Main!$I27*Main!$D$3))*(1+VLOOKUP('Random Years'!BF21,'Hist Returns'!$A$12:$D$107,3,FALSE))","v":{"v":20482.864861891296,"d":"20,483"}},{"$f":"($A21-$A20)/365.25*(BI20+(Main!$I27*Main!$D$3))*(1+VLOOKUP('Random Years'!BG21,'Hist Returns'!$A$12:$D$107,3,FALSE))","v":{"v":32667.571592679014,"d":"32,668"}},{"$f":"($A21-$A20)/365.25*(BJ20+(Main!$I27*Main!$D$3))*(1+VLOOKUP('Random Years'!BH21,'Hist Returns'!$A$12:$D$107,3,FALSE))","v":{"v":50424.10088445583,"d":"50,424"}},{"$f":"($A21-$A20)/365.25*(BK20+(Main!$I27*Main!$D$3))*(1+VLOOKUP('Random Years'!BI21,'Hist Returns'!$A$12:$D$107,3,FALSE))","v":{"v":28489.980675541512,"d":"28,490"}},{"$f":"($A21-$A20)/365.25*(BL20+(Main!$I27*Main!$D$3))*(1+VLOOKUP('Random Years'!BJ21,'Hist Returns'!$A$12:$D$107,3,FALSE))","v":{"v":35802.07653988742,"d":"35,802"}},{"$f":"($A21-$A20)/365.25*(BM20+(Main!$I27*Main!$D$3))*(1+VLOOKUP('Random Years'!BK21,'Hist Returns'!$A$12:$D$107,3,FALSE))","v":{"v":36524.42874094485,"d":"36,524"}},{"$f":"($A21-$A20)/365.25*(BN20+(Main!$I27*Main!$D$3))*(1+VLOOKUP('Random Years'!BL21,'Hist Returns'!$A$12:$D$107,3,FALSE))","v":{"v":33301.364228177765,"d":"33,301"}},{"$f":"($A21-$A20)/365.25*(BO20+(Main!$I27*Main!$D$3))*(1+VLOOKUP('Random Years'!BM21,'Hist Returns'!$A$12:$D$107,3,FALSE))","v":{"v":39744.77073886411,"d":"39,745"}},{"$f":"($A21-$A20)/365.25*(BP20+(Main!$I27*Main!$D$3))*(1+VLOOKUP('Random Years'!BN21,'Hist Returns'!$A$12:$D$107,3,FALSE))","v":{"v":18788.477514468133,"d":"18,788"}},{"$f":"($A21-$A20)/365.25*(BQ20+(Main!$I27*Main!$D$3))*(1+VLOOKUP('Random Years'!BO21,'Hist Returns'!$A$12:$D$107,3,FALSE))","v":{"v":30205.40951291384,"d":"30,205"}},{"$f":"($A21-$A20)/365.25*(BR20+(Main!$I27*Main!$D$3))*(1+VLOOKUP('Random Years'!BP21,'Hist Returns'!$A$12:$D$107,3,FALSE))","v":{"v":40487.96443650969,"d":"40,488"}},{"$f":"($A21-$A20)/365.25*(BS20+(Main!$I27*Main!$D$3))*(1+VLOOKUP('Random Years'!BQ21,'Hist Returns'!$A$12:$D$107,3,FALSE))","v":{"v":39523.582100071515,"d":"39,524"}},{"$f":"($A21-$A20)/365.25*(BT20+(Main!$I27*Main!$D$3))*(1+VLOOKUP('Random Years'!BR21,'Hist Returns'!$A$12:$D$107,3,FALSE))","v":{"v":34578.81783898947,"d":"34,579"}},{"$f":"($A21-$A20)/365.25*(BU20+(Main!$I27*Main!$D$3))*(1+VLOOKUP('Random Years'!BS21,'Hist Returns'!$A$12:$D$107,3,FALSE))","v":{"v":49190.69365690338,"d":"49,191"}},{"$f":"($A21-$A20)/365.25*(BV20+(Main!$I27*Main!$D$3))*(1+VLOOKUP('Random Years'!BT21,'Hist Returns'!$A$12:$D$107,3,FALSE))","v":{"v":28024.856271601882,"d":"28,025"}},{"$f":"($A21-$A20)/365.25*(BW20+(Main!$I27*Main!$D$3))*(1+VLOOKUP('Random Years'!BU21,'Hist Returns'!$A$12:$D$107,3,FALSE))","v":{"v":25707.46726410497,"d":"25,707"}},{"$f":"($A21-$A20)/365.25*(BX20+(Main!$I27*Main!$D$3))*(1+VLOOKUP('Random Years'!BV21,'Hist Returns'!$A$12:$D$107,3,FALSE))","v":{"v":42299.26385354843,"d":"42,299"}},{"$f":"($A21-$A20)/365.25*(BY20+(Main!$I27*Main!$D$3))*(1+VLOOKUP('Random Years'!BW21,'Hist Returns'!$A$12:$D$107,3,FALSE))","v":{"v":36564.0001604148,"d":"36,564"}},{"$f":"($A21-$A20)/365.25*(BZ20+(Main!$I27*Main!$D$3))*(1+VLOOKUP('Random Years'!BX21,'Hist Returns'!$A$12:$D$107,3,FALSE))","v":{"v":23219.089225252086,"d":"23,219"}},{"$f":"($A21-$A20)/365.25*(CA20+(Main!$I27*Main!$D$3))*(1+VLOOKUP('Random Years'!BY21,'Hist Returns'!$A$12:$D$107,3,FALSE))","v":{"v":29990.530577407706,"d":"29,991"}},{"$f":"($A21-$A20)/365.25*(CB20+(Main!$I27*Main!$D$3))*(1+VLOOKUP('Random Years'!BZ21,'Hist Returns'!$A$12:$D$107,3,FALSE))","v":{"v":32582.1550345034,"d":"32,582"}},{"$f":"($A21-$A20)/365.25*(CC20+(Main!$I27*Main!$D$3))*(1+VLOOKUP('Random Years'!CA21,'Hist Returns'!$A$12:$D$107,3,FALSE))","v":{"v":41094.67309552856,"d":"41,095"}},{"$f":"($A21-$A20)/365.25*(CD20+(Main!$I27*Main!$D$3))*(1+VLOOKUP('Random Years'!CB21,'Hist Returns'!$A$12:$D$107,3,FALSE))","v":{"v":29079.32679089181,"d":"29,079"}},{"$f":"($A21-$A20)/365.25*(CE20+(Main!$I27*Main!$D$3))*(1+VLOOKUP('Random Years'!CC21,'Hist Returns'!$A$12:$D$107,3,FALSE))","v":{"v":40384.05786543433,"d":"40,384"}},{"$f":"($A21-$A20)/365.25*(CF20+(Main!$I27*Main!$D$3))*(1+VLOOKUP('Random Years'!CD21,'Hist Returns'!$A$12:$D$107,3,FALSE))","v":{"v":41025.03177330545,"d":"41,025"}},{"$f":"($A21-$A20)/365.25*(CG20+(Main!$I27*Main!$D$3))*(1+VLOOKUP('Random Years'!CE21,'Hist Returns'!$A$12:$D$107,3,FALSE))","v":{"v":30675.786620897634,"d":"30,676"}},{"$f":"($A21-$A20)/365.25*(CH20+(Main!$I27*Main!$D$3))*(1+VLOOKUP('Random Years'!CF21,'Hist Returns'!$A$12:$D$107,3,FALSE))","v":{"v":47678.11121964296,"d":"47,678"}},{"$f":"($A21-$A20)/365.25*(CI20+(Main!$I27*Main!$D$3))*(1+VLOOKUP('Random Years'!CG21,'Hist Returns'!$A$12:$D$107,3,FALSE))","v":{"v":41164.5977954134,"d":"41,165"}},{"$f":"($A21-$A20)/365.25*(CJ20+(Main!$I27*Main!$D$3))*(1+VLOOKUP('Random Years'!CH21,'Hist Returns'!$A$12:$D$107,3,FALSE))","v":{"v":31224.958020497306,"d":"31,225"}},{"$f":"($A21-$A20)/365.25*(CK20+(Main!$I27*Main!$D$3))*(1+VLOOKUP('Random Years'!CI21,'Hist Returns'!$A$12:$D$107,3,FALSE))","v":{"v":20095.1770737602,"d":"20,095"}},{"$f":"($A21-$A20)/365.25*(CL20+(Main!$I27*Main!$D$3))*(1+VLOOKUP('Random Years'!CJ21,'Hist Returns'!$A$12:$D$107,3,FALSE))","v":{"v":23327.76551301888,"d":"23,328"}},{"$f":"($A21-$A20)/365.25*(CM20+(Main!$I27*Main!$D$3))*(1+VLOOKUP('Random Years'!CK21,'Hist Returns'!$A$12:$D$107,3,FALSE))","v":{"v":29950.13886714249,"d":"29,950"}},{"$f":"($A21-$A20)/365.25*(CN20+(Main!$I27*Main!$D$3))*(1+VLOOKUP('Random Years'!CL21,'Hist Returns'!$A$12:$D$107,3,FALSE))","v":{"v":44167.16213847222,"d":"44,167"}},{"$f":"($A21-$A20)/365.25*(CO20+(Main!$I27*Main!$D$3))*(1+VLOOKUP('Random Years'!CM21,'Hist Returns'!$A$12:$D$107,3,FALSE))","v":{"v":31674.2559707491,"d":"31,674"}},{"$f":"($A21-$A20)/365.25*(CP20+(Main!$I27*Main!$D$3))*(1+VLOOKUP('Random Years'!CN21,'Hist Returns'!$A$12:$D$107,3,FALSE))","v":{"v":46007.04066251841,"d":"46,007"}},{"$f":"($A21-$A20)/365.25*(CQ20+(Main!$I27*Main!$D$3))*(1+VLOOKUP('Random Years'!CO21,'Hist Returns'!$A$12:$D$107,3,FALSE))","v":{"v":21784.190787152907,"d":"21,784"}},{"$f":"($A21-$A20)/365.25*(CR20+(Main!$I27*Main!$D$3))*(1+VLOOKUP('Random Years'!CP21,'Hist Returns'!$A$12:$D$107,3,FALSE))","v":{"v":33219.4513259215,"d":"33,219"}},{"$f":"($A21-$A20)/365.25*(CS20+(Main!$I27*Main!$D$3))*(1+VLOOKUP('Random Years'!CQ21,'Hist Returns'!$A$12:$D$107,3,FALSE))","v":{"v":31300.197725924383,"d":"31,300"}},{"$f":"($A21-$A20)/365.25*(CT20+(Main!$I27*Main!$D$3))*(1+VLOOKUP('Random Years'!CR21,'Hist Returns'!$A$12:$D$107,3,FALSE))","v":{"v":47762.36955307981,"d":"47,762"}},{"$f":"($A21-$A20)/365.25*(CU20+(Main!$I27*Main!$D$3))*(1+VLOOKUP('Random Years'!CS21,'Hist Returns'!$A$12:$D$107,3,FALSE))","v":{"v":32047.507495139285,"d":"32,048"}},{"$f":"($A21-$A20)/365.25*(CV20+(Main!$I27*Main!$D$3))*(1+VLOOKUP('Random Years'!CT21,'Hist Returns'!$A$12:$D$107,3,FALSE))","v":{"v":29469.379813294683,"d":"29,469"}},{"$f":"($A21-$A20)/365.25*(CW20+(Main!$I27*Main!$D$3))*(1+VLOOKUP('Random Years'!CU21,'Hist Returns'!$A$12:$D$107,3,FALSE))","v":{"v":33574.66772098999,"d":"33,575"}},{"$f":"($A21-$A20)/365.25*(CX20+(Main!$I27*Main!$D$3))*(1+VLOOKUP('Random Years'!CV21,'Hist Returns'!$A$12:$D$107,3,FALSE))","v":{"v":36270.50504806414,"d":"36,271"}}]
[{"$f":"Main!A28","v":"2043-12-31"},{"$f":"Main!B28","v":89},{"$f":"($A22-$A21)/365.25*(C21+(Main!$I28*Main!$D$3))*(1+VLOOKUP('Random Years'!A22,'Hist Returns'!$A$12:$D$107,3,FALSE))","v":{"v":40940.62902786895,"d":"40,941"}},{"$f":"($A22-$A21)/365.25*(D21+(Main!$I28*Main!$D$3))*(1+VLOOKUP('Random Years'!B22,'Hist Returns'!$A$12:$D$107,3,FALSE))","v":{"v":21281.675613624226,"d":"21,282"}},{"$f":"($A22-$A21)/365.25*(E21+(Main!$I28*Main!$D$3))*(1+VLOOKUP('Random Years'!C22,'Hist Returns'!$A$12:$D$107,3,FALSE))","v":{"v":33740.47246307555,"d":"33,740"}},{"$f":"($A22-$A21)/365.25*(F21+(Main!$I28*Main!$D$3))*(1+VLOOKUP('Random Years'!D22,'Hist Returns'!$A$12:$D$107,3,FALSE))","v":{"v":31353.039603460482,"d":"31,353"}},{"$f":"($A22-$A21)/365.25*(G21+(Main!$I28*Main!$D$3))*(1+VLOOKUP('Random Years'!E22,'Hist Returns'!$A$12:$D$107,3,FALSE))","v":{"v":36087.41864524625,"d":"36,087"}},{"$f":"($A22-$A21)/365.25*(H21+(Main!$I28*Main!$D$3))*(1+VLOOKUP('Random Years'!F22,'Hist Returns'!$A$12:$D$107,3,FALSE))","v":{"v":32751.60289585248,"d":"32,752"}},{"$f":"($A22-$A21)/365.25*(I21+(Main!$I28*Main!$D$3))*(1+VLOOKUP('Random Years'!G22,'Hist Returns'!$A$12:$D$107,3,FALSE))","v":{"v":28809.67107741107,"d":"28,810"}},{"$f":"($A22-$A21)/365.25*(J21+(Main!$I28*Main!$D$3))*(1+VLOOKUP('Random Years'!H22,'Hist Returns'!$A$12:$D$107,3,FALSE))","v":{"v":54837.83851819881,"d":"54,838"}},{"$f":"($A22-$A21)/365.25*(K21+(Main!$I28*Main!$D$3))*(1+VLOOKUP('Random Years'!I22,'Hist Returns'!$A$12:$D$107,3,FALSE))","v":{"v":61824.86812182904,"d":"61,825"}},{"$f":"($A22-$A21)/365.25*(L21+(Main!$I28*Main!$D$3))*(1+VLOOKUP('Random Years'!J22,'Hist Returns'!$A$12:$D$107,3,FALSE))","v":{"v":16539.81505786926,"d":"16,540"}},{"$f":"($A22-$A21)/365.25*(M21+(Main!$I28*Main!$D$3))*(1+VLOOKUP('Random Years'!K22,'Hist Returns'!$A$12:$D$107,3,FALSE))","v":{"v":18015.560563956045,"d":"18,016"}},{"$f":"($A22-$A21)/365.25*(N21+(Main!$I28*Main!$D$3))*(1+VLOOKUP('Random Years'!L22,'Hist Returns'!$A$12:$D$107,3,FALSE))","v":{"v":42712.45790707111,"d":"42,712"}},{"$f":"($A22-$A21)/365.25*(O21+(Main!$I28*Main!$D$3))*(1+VLOOKUP('Random Years'!M22,'Hist Returns'!$A$12:$D$107,3,FALSE))","v":{"v":39142.23927669134,"d":"39,142"}},{"$f":"($A22-$A21)/365.25*(P21+(Main!$I28*Main!$D$3))*(1+VLOOKUP('Random Years'!N22,'Hist Returns'!$A$12:$D$107,3,FALSE))","v":{"v":27685.04874390728,"d":"27,685"}},{"$f":"($A22-$A21)/365.25*(Q21+(Main!$I28*Main!$D$3))*(1+VLOOKUP('Random Years'!O22,'Hist Returns'!$A$12:$D$107,3,FALSE))","v":{"v":16837.795777312636,"d":"16,838"}},{"$f":"($A22-$A21)/365.25*(R21+(Main!$I28*Main!$D$3))*(1+VLOOKUP('Random Years'!P22,'Hist Returns'!$A$12:$D$107,3,FALSE))","v":{"v":34305.19848831591,"d":"34,305"}},{"$f":"($A22-$A21)/365.25*(S21+(Main!$I28*Main!$D$3))*(1+VLOOKUP('Random Years'!Q22,'Hist Returns'!$A$12:$D$107,3,FALSE))","v":{"v":19633.935844797605,"d":"19,634"}},{"$f":"($A22-$A21)/365.25*(T21+(Main!$I28*Main!$D$3))*(1+VLOOKUP('Random Years'!R22,'Hist Returns'!$A$12:$D$107,3,FALSE))","v":{"v":64439.52534679692,"d":"64,440"}},{"$f":"($A22-$A21)/365.25*(U21+(Main!$I28*Main!$D$3))*(1+VLOOKUP('Random Years'!S22,'Hist Returns'!$A$12:$D$107,3,FALSE))","v":{"v":44812.590185614295,"d":"44,813"}},{"$f":"($A22-$A21)/365.25*(V21+(Main!$I28*Main!$D$3))*(1+VLOOKUP('Random Years'!T22,'Hist Returns'!$A$12:$D$107,3,FALSE))","v":{"v":37829.02069965596,"d":"37,829"}},{"$f":"($A22-$A21)/365.25*(W21+(Main!$I28*Main!$D$3))*(1+VLOOKUP('Random Years'!U22,'Hist Returns'!$A$12:$D$107,3,FALSE))","v":{"v":60451.976782165446,"d":"60,452"}},{"$f":"($A22-$A21)/365.25*(X21+(Main!$I28*Main!$D$3))*(1+VLOOKUP('Random Years'!V22,'Hist Returns'!$A$12:$D$107,3,FALSE))","v":{"v":29124.628553568833,"d":"29,125"}},{"$f":"($A22-$A21)/365.25*(Y21+(Main!$I28*Main!$D$3))*(1+VLOOKUP('Random Years'!W22,'Hist Returns'!$A$12:$D$107,3,FALSE))","v":{"v":22722.931838245302,"d":"22,723"}},{"$f":"($A22-$A21)/365.25*(Z21+(Main!$I28*Main!$D$3))*(1+VLOOKUP('Random Years'!X22,'Hist Returns'!$A$12:$D$107,3,FALSE))","v":{"v":36939.36371732528,"d":"36,939"}},{"$f":"($A22-$A21)/365.25*(AA21+(Main!$I28*Main!$D$3))*(1+VLOOKUP('Random Years'!Y22,'Hist Returns'!$A$12:$D$107,3,FALSE))","v":{"v":25986.246449997187,"d":"25,986"}},{"$f":"($A22-$A21)/365.25*(AB21+(Main!$I28*Main!$D$3))*(1+VLOOKUP('Random Years'!Z22,'Hist Returns'!$A$12:$D$107,3,FALSE))","v":{"v":37691.48260392941,"d":"37,691"}},{"$f":"($A22-$A21)/365.25*(AC21+(Main!$I28*Main!$D$3))*(1+VLOOKUP('Random Years'!AA22,'Hist Returns'!$A$12:$D$107,3,FALSE))","v":{"v":42803.35644090724,"d":"42,803"}},{"$f":"($A22-$A21)/365.25*(AD21+(Main!$I28*Main!$D$3))*(1+VLOOKUP('Random Years'!AB22,'Hist Returns'!$A$12:$D$107,3,FALSE))","v":{"v":33945.69173716381,"d":"33,946"}},{"$f":"($A22-$A21)/365.25*(AE21+(Main!$I28*Main!$D$3))*(1+VLOOKUP('Random Years'!AC22,'Hist Returns'!$A$12:$D$107,3,FALSE))","v":{"v":30807.431482743632,"d":"30,807"}},{"$f":"($A22-$A21)/365.25*(AF21+(Main!$I28*Main!$D$3))*(1+VLOOKUP('Random Years'!AD22,'Hist Returns'!$A$12:$D$107,3,FALSE))","v":{"v":25739.248343144605,"d":"25,739"}},{"$f":"($A22-$A21)/365.25*(AG21+(Main!$I28*Main!$D$3))*(1+VLOOKUP('Random Years'!AE22,'Hist Returns'!$A$12:$D$107,3,FALSE))","v":{"v":27704.447693796646,"d":"27,704"}},{"$f":"($A22-$A21)/365.25*(AH21+(Main!$I28*Main!$D$3))*(1+VLOOKUP('Random Years'!AF22,'Hist Returns'!$A$12:$D$107,3,FALSE))","v":{"v":34257.90960163293,"d":"34,258"}},{"$f":"($A22-$A21)/365.25*(AI21+(Main!$I28*Main!$D$3))*(1+VLOOKUP('Random Years'!AG22,'Hist Returns'!$A$12:$D$107,3,FALSE))","v":{"v":43302.117560383485,"d":"43,302"}},{"$f":"($A22-$A21)/365.25*(AJ21+(Main!$I28*Main!$D$3))*(1+VLOOKUP('Random Years'!AH22,'Hist Returns'!$A$12:$D$107,3,FALSE))","v":{"v":37889.4392088229,"d":"37,889"}},{"$f":"($A22-$A21)/365.25*(AK21+(Main!$I28*Main!$D$3))*(1+VLOOKUP('Random Years'!AI22,'Hist Returns'!$A$12:$D$107,3,FALSE))","v":{"v":24389.439943722566,"d":"24,389"}},{"$f":"($A22-$A21)/365.25*(AL21+(Main!$I28*Main!$D$3))*(1+VLOOKUP('Random Years'!AJ22,'Hist Returns'!$A$12:$D$107,3,FALSE))","v":{"v":41879.25917079058,"d":"41,879"}},{"$f":"($A22-$A21)/365.25*(AM21+(Main!$I28*Main!$D$3))*(1+VLOOKUP('Random Years'!AK22,'Hist Returns'!$A$12:$D$107,3,FALSE))","v":{"v":43043.561391301686,"d":"43,044"}},{"$f":"($A22-$A21)/365.25*(AN21+(Main!$I28*Main!$D$3))*(1+VLOOKUP('Random Years'!AL22,'Hist Returns'!$A$12:$D$107,3,FALSE))","v":{"v":42822.26645497563,"d":"42,822"}},{"$f":"($A22-$A21)/365.25*(AO21+(Main!$I28*Main!$D$3))*(1+VLOOKUP('Random Years'!AM22,'Hist Returns'!$A$12:$D$107,3,FALSE))","v":{"v":56017.459413915916,"d":"56,017"}},{"$f":"($A22-$A21)/365.25*(AP21+(Main!$I28*Main!$D$3))*(1+VLOOKUP('Random Years'!AN22,'Hist Returns'!$A$12:$D$107,3,FALSE))","v":{"v":23788.319270479642,"d":"23,788"}},{"$f":"($A22-$A21)/365.25*(AQ21+(Main!$I28*Main!$D$3))*(1+VLOOKUP('Random Years'!AO22,'Hist Returns'!$A$12:$D$107,3,FALSE))","v":{"v":24980.47753593599,"d":"24,980"}},{"$f":"($A22-$A21)/365.25*(AR21+(Main!$I28*Main!$D$3))*(1+VLOOKUP('Random Years'!AP22,'Hist Returns'!$A$12:$D$107,3,FALSE))","v":{"v":23428.177675401355,"d":"23,428"}},{"$f":"($A22-$A21)/365.25*(AS21+(Main!$I28*Main!$D$3))*(1+VLOOKUP('Random Years'!AQ22,'Hist Returns'!$A$12:$D$107,3,FALSE))","v":{"v":26446.76276799733,"d":"26,447"}},{"$f":"($A22-$A21)/365.25*(AT21+(Main!$I28*Main!$D$3))*(1+VLOOKUP('Random Years'!AR22,'Hist Returns'!$A$12:$D$107,3,FALSE))","v":{"v":37929.541473843376,"d":"37,930"}},{"$f":"($A22-$A21)/365.25*(AU21+(Main!$I28*Main!$D$3))*(1+VLOOKUP('Random Years'!AS22,'Hist Returns'!$A$12:$D$107,3,FALSE))","v":{"v":29748.374746947393,"d":"29,748"}},{"$f":"($A22-$A21)/365.25*(AV21+(Main!$I28*Main!$D$3))*(1+VLOOKUP('Random Years'!AT22,'Hist Returns'!$A$12:$D$107,3,FALSE))","v":{"v":12763.084928986074,"d":"12,763"}},{"$f":"($A22-$A21)/365.25*(AW21+(Main!$I28*Main!$D$3))*(1+VLOOKUP('Random Years'!AU22,'Hist Returns'!$A$12:$D$107,3,FALSE))","v":{"v":28245.381271801583,"d":"28,245"}},{"$f":"($A22-$A21)/365.25*(AX21+(Main!$I28*Main!$D$3))*(1+VLOOKUP('Random Years'!AV22,'Hist Returns'!$A$12:$D$107,3,FALSE))","v":{"v":30204.31740809546,"d":"30,204"}},{"$f":"($A22-$A21)/365.25*(AY21+(Main!$I28*Main!$D$3))*(1+VLOOKUP('Random Years'!AW22,'Hist Returns'!$A$12:$D$107,3,FALSE))","v":{"v":14590.561919305184,"d":"14,591"}},{"$f":"($A22-$A21)/365.25*(AZ21+(Main!$I28*Main!$D$3))*(1+VLOOKUP('Random Years'!AX22,'Hist Returns'!$A$12:$D$107,3,FALSE))","v":{"v":31694.31848509153,"d":"31,694"}},{"$f":"($A22-$A21)/365.25*(BA21+(Main!$I28*Main!$D$3))*(1+VLOOKUP('Random Years'!AY22,'Hist Returns'!$A$12:$D$107,3,FALSE))","v":{"v":45165.10875730757,"d":"45,165"}},{"$f":"($A22-$A21)/365.25*(BB21+(Main!$I28*Main!$D$3))*(1+VLOOKUP('Random Years'!AZ22,'Hist Returns'!$A$12:$D$107,3,FALSE))","v":{"v":57658.67098396144,"d":"57,659"}},{"$f":"($A22-$A21)/365.25*(BC21+(Main!$I28*Main!$D$3))*(1+VLOOKUP('Random Years'!BA22,'Hist Returns'!$A$12:$D$107,3,FALSE))","v":{"v":51741.83167461715,"d":"51,742"}},{"$f":"($A22-$A21)/365.25*(BD21+(Main!$I28*Main!$D$3))*(1+VLOOKUP('Random Years'!BB22,'Hist Returns'!$A$12:$D$107,3,FALSE))","v":{"v":22765.435227004768,"d":"22,765"}},{"$f":"($A22-$A21)/365.25*(BE21+(Main!$I28*Main!$D$3))*(1+VLOOKUP('Random Years'!BC22,'Hist Returns'!$A$12:$D$107,3,FALSE))","v":{"v":34745.68907232031,"d":"34,746"}},{"$f":"($A22-$A21)/365.25*(BF21+(Main!$I28*Main!$D$3))*(1+VLOOKUP('Random Years'!BD22,'Hist Returns'!$A$12:$D$107,3,FALSE))","v":{"v":37986.6597444992,"d":"37,987"}},{"$f":"($A22-$A21)/365.25*(BG21+(Main!$I28*Main!$D$3))*(1+VLOOKUP('Random Years'!BE22,'Hist Returns'!$A$12:$D$107,3,FALSE))","v":{"v":30405.24271993482,"d":"30,405"}},{"$f":"($A22-$A21)/365.25*(BH21+(Main!$I28*Main!$D$3))*(1+VLOOKUP('Random Years'!BF22,'Hist Returns'!$A$12:$D$107,3,FALSE))","v":{"v":18352.37789817668,"d":"18,352"}},{"$f":"($A22-$A21)/365.25*(BI21+(Main!$I28*Main!$D$3))*(1+VLOOKUP('Random Years'!BG22,'Hist Returns'!$A$12:$D$107,3,FALSE))","v":{"v":31763.586218189703,"d":"31,764"}},{"$f":"($A22-$A21)/365.25*(BJ21+(Main!$I28*Main!$D$3))*(1+VLOOKUP('Random Years'!BH22,'Hist Returns'!$A$12:$D$107,3,FALSE))","v":{"v":49495.47613886386,"d":"49,495"}},{"$f":"($A22-$A21)/365.25*(BK21+(Main!$I28*Main!$D$3))*(1+VLOOKUP('Random Years'!BI22,'Hist Returns'!$A$12:$D$107,3,FALSE))","v":{"v":27422.611577426327,"d":"27,423"}},{"$f":"($A22-$A21)/365.25*(BL21+(Main!$I28*Main!$D$3))*(1+VLOOKUP('Random Years'!BJ22,'Hist Returns'!$A$12:$D$107,3,FALSE))","v":{"v":34058.105498104065,"d":"34,058"}},{"$f":"($A22-$A21)/365.25*(BM21+(Main!$I28*Main!$D$3))*(1+VLOOKUP('Random Years'!BK22,'Hist Returns'!$A$12:$D$107,3,FALSE))","v":{"v":34824.10738537346,"d":"34,824"}},{"$f":"($A22-$A21)/365.25*(BN21+(Main!$I28*Main!$D$3))*(1+VLOOKUP('Random Years'!BL22,'Hist Returns'!$A$12:$D$107,3,FALSE))","v":{"v":31491.134823987195,"d":"31,491"}},{"$f":"($A22-$A21)/365.25*(BO21+(Main!$I28*Main!$D$3))*(1+VLOOKUP('Random Years'!BM22,'Hist Returns'!$A$12:$D$107,3,FALSE))","v":{"v":38051.169032251906,"d":"38,051"}},{"$f":"($A22-$A21)/365.25*(BP21+(Main!$I28*Main!$D$3))*(1+VLOOKUP('Random Years'!BN22,'Hist Returns'!$A$12:$D$107,3,FALSE))","v":{"v":19029.815291096915,"d":"19,030"}},{"$f":"($A22-$A21)/365.25*(BQ21+(Main!$I28*Main!$D$3))*(1+VLOOKUP('Random Years'!BO22,'Hist Returns'!$A$12:$D$107,3,FALSE))","v":{"v":28196.1222984916,"d":"28,196"}},{"$f":"($A22-$A21)/365.25*(BR21+(Main!$I28*Main!$D$3))*(1+VLOOKUP('Random Years'!BP22,'Hist Returns'!$A$12:$D$107,3,FALSE))","v":{"v":39633.14721195363,"d":"39,633"}},{"$f":"($A22-$A21)/365.25*(BS21+(Main!$I28*Main!$D$3))*(1+VLOOKUP('Random Years'!BQ22,'Hist Returns'!$A$12:$D$107,3,FALSE))","v":{"v":40252.404079958884,"d":"40,252"}},{"$f":"($A22-$A21)/365.25*(BT21+(Main!$I28*Main!$D$3))*(1+VLOOKUP('Random Years'!BR22,'Hist Returns'!$A$12:$D$107,3,FALSE))","v":{"v":34998.075080291295,"d":"34,998"}},{"$f":"($A22-$A21)/365.25*(BU21+(Main!$I28*Main!$D$3))*(1+VLOOKUP('Random Years'!BS22,'Hist Returns'!$A$12:$D$107,3,FALSE))","v":{"v":49317.39196772776,"d":"49,317"}},{"$f":"($A22-$A21)/365.25*(BV21+(Main!$I28*Main!$D$3))*(1+VLOOKUP('Random Years'!BT22,'Hist Returns'!$A$12:$D$107,3,FALSE))","v":{"v":27647.714762671,"d":"27,648"}},{"$f":"($A22-$A21)/365.25*(BW21+(Main!$I28*Main!$D$3))*(1+VLOOKUP('Random Years'!BU22,'Hist Returns'!$A$12:$D$107,3,FALSE))","v":{"v":24058.56490295576,"d":"24,059"}},{"$f":"($A22-$A21)/365.25*(BX21+(Main!$I28*Main!$D$3))*(1+VLOOKUP('Random Years'!BV22,'Hist Returns'!$A$12:$D$107,3,FALSE))","v":{"v":42845.71977726426,"d":"42,846"}},{"$f":"($A22-$A21)/365.25*(BY21+(Main!$I28*Main!$D$3))*(1+VLOOKUP('Random Years'!BW22,'Hist Returns'!$A$12:$D$107,3,FALSE))","v":{"v":34591.98186004641,"d":"34,592"}},{"$f":"($A22-$A21)/365.25*(BZ21+(Main!$I28*Main!$D$3))*(1+VLOOKUP('Random Years'!BX22,'Hist Returns'!$A$12:$D$107,3,FALSE))","v":{"v":22048.253341117677,"d":"22,048"}},{"$f":"($A22-$A21)/365.25*(CA21+(Main!$I28*Main!$D$3))*(1+VLOOKUP('Random Years'!BY22,'Hist Returns'!$A$12:$D$107,3,FALSE))","v":{"v":30644.744289511043,"d":"30,645"}},{"$f":"($A22-$A21)/365.25*(CB21+(Main!$I28*Main!$D$3))*(1+VLOOKUP('Random Years'!BZ22,'Hist Returns'!$A$12:$D$107,3,FALSE))","v":{"v":32436.388598260313,"d":"32,436"}},{"$f":"($A22-$A21)/365.25*(CC21+(Main!$I28*Main!$D$3))*(1+VLOOKUP('Random Years'!CA22,'Hist Returns'!$A$12:$D$107,3,FALSE))","v":{"v":40202.23709943594,"d":"40,202"}},{"$f":"($A22-$A21)/365.25*(CD21+(Main!$I28*Main!$D$3))*(1+VLOOKUP('Random Years'!CB22,'Hist Returns'!$A$12:$D$107,3,FALSE))","v":{"v":28187.712575079997,"d":"28,188"}},{"$f":"($A22-$A21)/365.25*(CE21+(Main!$I28*Main!$D$3))*(1+VLOOKUP('Random Years'!CC22,'Hist Returns'!$A$12:$D$107,3,FALSE))","v":{"v":38656.50545670389,"d":"38,657"}},{"$f":"($A22-$A21)/365.25*(CF21+(Main!$I28*Main!$D$3))*(1+VLOOKUP('Random Years'!CD22,'Hist Returns'!$A$12:$D$107,3,FALSE))","v":{"v":39717.632468450065,"d":"39,718"}},{"$f":"($A22-$A21)/365.25*(CG21+(Main!$I28*Main!$D$3))*(1+VLOOKUP('Random Years'!CE22,'Hist Returns'!$A$12:$D$107,3,FALSE))","v":{"v":28957.719705284588,"d":"28,958"}},{"$f":"($A22-$A21)/365.25*(CH21+(Main!$I28*Main!$D$3))*(1+VLOOKUP('Random Years'!CF22,'Hist Returns'!$A$12:$D$107,3,FALSE))","v":{"v":45639.000755092544,"d":"45,639"}},{"$f":"($A22-$A21)/365.25*(CI21+(Main!$I28*Main!$D$3))*(1+VLOOKUP('Random Years'!CG22,'Hist Returns'!$A$12:$D$107,3,FALSE))","v":{"v":41321.56827871521,"d":"41,322"}},{"$f":"($A22-$A21)/365.25*(CJ21+(Main!$I28*Main!$D$3))*(1+VLOOKUP('Random Years'!CH22,'Hist Returns'!$A$12:$D$107,3,FALSE))","v":{"v":29629.200920107232,"d":"29,629"}},{"$f":"($A22-$A21)/365.25*(CK21+(Main!$I28*Main!$D$3))*(1+VLOOKUP('Random Years'!CI22,'Hist Returns'!$A$12:$D$107,3,FALSE))","v":{"v":18588.72946250957,"d":"18,589"}},{"$f":"($A22-$A21)/365.25*(CL21+(Main!$I28*Main!$D$3))*(1+VLOOKUP('Random Years'!CJ22,'Hist Returns'!$A$12:$D$107,3,FALSE))","v":{"v":21598.25111792459,"d":"21,598"}},{"$f":"($A22-$A21)/365.25*(CM21+(Main!$I28*Main!$D$3))*(1+VLOOKUP('Random Years'!CK22,'Hist Returns'!$A$12:$D$107,3,FALSE))","v":{"v":29088.88264005396,"d":"29,089"}},{"$f":"($A22-$A21)/365.25*(CN21+(Main!$I28*Main!$D$3))*(1+VLOOKUP('Random Years'!CL22,'Hist Returns'!$A$12:$D$107,3,FALSE))","v":{"v":43990.22727572478,"d":"43,990"}},{"$f":"($A22-$A21)/365.25*(CO21+(Main!$I28*Main!$D$3))*(1+VLOOKUP('Random Years'!CM22,'Hist Returns'!$A$12:$D$107,3,FALSE))","v":{"v":29998.751643269738,"d":"29,999"}},{"$f":"($A22-$A21)/365.25*(CP21+(Main!$I28*Main!$D$3))*(1+VLOOKUP('Random Years'!CN22,'Hist Returns'!$A$12:$D$107,3,FALSE))","v":{"v":45658.437371930675,"d":"45,658"}},{"$f":"($A22-$A21)/365.25*(CQ21+(Main!$I28*Main!$D$3))*(1+VLOOKUP('Random Years'!CO22,'Hist Returns'!$A$12:$D$107,3,FALSE))","v":{"v":19658.732237199456,"d":"19,659"}},{"$f":"($A22-$A21)/365.25*(CR21+(Main!$I28*Main!$D$3))*(1+VLOOKUP('Random Years'!CP22,'Hist Returns'!$A$12:$D$107,3,FALSE))","v":{"v":34600.11208466548,"d":"34,600"}},{"$f":"($A22-$A21)/365.25*(CS21+(Main!$I28*Main!$D$3))*(1+VLOOKUP('Random Years'!CQ22,'Hist Returns'!$A$12:$D$107,3,FALSE))","v":{"v":29247.71036218462,"d":"29,248"}},{"$f":"($A22-$A21)/365.25*(CT21+(Main!$I28*Main!$D$3))*(1+VLOOKUP('Random Years'!CR22,'Hist Returns'!$A$12:$D$107,3,FALSE))","v":{"v":46445.2899160101,"d":"46,445"}},{"$f":"($A22-$A21)/365.25*(CU21+(Main!$I28*Main!$D$3))*(1+VLOOKUP('Random Years'!CS22,'Hist Returns'!$A$12:$D$107,3,FALSE))","v":{"v":30255.570484631484,"d":"30,256"}},{"$f":"($A22-$A21)/365.25*(CV21+(Main!$I28*Main!$D$3))*(1+VLOOKUP('Random Years'!CT22,'Hist Returns'!$A$12:$D$107,3,FALSE))","v":{"v":27838.704370509855,"d":"27,839"}},{"$f":"($A22-$A21)/365.25*(CW21+(Main!$I28*Main!$D$3))*(1+VLOOKUP('Random Years'!CU22,'Hist Returns'!$A$12:$D$107,3,FALSE))","v":{"v":32988.49231476096,"d":"32,988"}},{"$f":"($A22-$A21)/365.25*(CX21+(Main!$I28*Main!$D$3))*(1+VLOOKUP('Random Years'!CV22,'Hist Returns'!$A$12:$D$107,3,FALSE))","v":{"v":35280.774163421454,"d":"35,281"}}]
[{"$f":"Main!A29","v":"2044-12-30"},{"$f":"Main!B29","v":90},{"$f":"($A23-$A22)/365.25*(C22+(Main!$I29*Main!$D$3))*(1+VLOOKUP('Random Years'!A23,'Hist Returns'!$A$12:$D$107,3,FALSE))","v":{"v":39710.8389291359,"d":"39,711"}},{"$f":"($A23-$A22)/365.25*(D22+(Main!$I29*Main!$D$3))*(1+VLOOKUP('Random Years'!B23,'Hist Returns'!$A$12:$D$107,3,FALSE))","v":{"v":19089.378441919525,"d":"19,089"}},{"$f":"($A23-$A22)/365.25*(E22+(Main!$I29*Main!$D$3))*(1+VLOOKUP('Random Years'!C23,'Hist Returns'!$A$12:$D$107,3,FALSE))","v":{"v":31685.16279527658,"d":"31,685"}},{"$f":"($A23-$A22)/365.25*(F22+(Main!$I29*Main!$D$3))*(1+VLOOKUP('Random Years'!D23,'Hist Returns'!$A$12:$D$107,3,FALSE))","v":{"v":29600.43630964792,"d":"29,600"}},{"$f":"($A23-$A22)/365.25*(G22+(Main!$I29*Main!$D$3))*(1+VLOOKUP('Random Years'!E23,'Hist Returns'!$A$12:$D$107,3,FALSE))","v":{"v":33900.210954800445,"d":"33,900"}},{"$f":"($A23-$A22)/365.25*(H22+(Main!$I29*Main!$D$3))*(1+VLOOKUP('Random Years'!F23,'Hist Returns'!$A$12:$D$107,3,FALSE))","v":{"v":30710.25200691239,"d":"30,710"}},{"$f":"($A23-$A22)/365.25*(I22+(Main!$I29*Main!$D$3))*(1+VLOOKUP('Random Years'!G23,'Hist Returns'!$A$12:$D$107,3,FALSE))","v":{"v":29525.287492124797,"d":"29,525"}},{"$f":"($A23-$A22)/365.25*(J22+(Main!$I29*Main!$D$3))*(1+VLOOKUP('Random Years'!H23,'Hist Returns'!$A$12:$D$107,3,FALSE))","v":{"v":52633.61776647618,"d":"52,634"}},{"$f":"($A23-$A22)/365.25*(K22+(Main!$I29*Main!$D$3))*(1+VLOOKUP('Random Years'!I23,'Hist Returns'!$A$12:$D$107,3,FALSE))","v":{"v":65512.76375030821,"d":"65,513"}},{"$f":"($A23-$A22)/365.25*(L22+(Main!$I29*Main!$D$3))*(1+VLOOKUP('Random Years'!J23,'Hist Returns'!$A$12:$D$107,3,FALSE))","v":{"v":14361.30812510256,"d":"14,361"}},{"$f":"($A23-$A22)/365.25*(M22+(Main!$I29*Main!$D$3))*(1+VLOOKUP('Random Years'!K23,'Hist Returns'!$A$12:$D$107,3,FALSE))","v":{"v":16847.39135063266,"d":"16,847"}},{"$f":"($A23-$A22)/365.25*(N22+(Main!$I29*Main!$D$3))*(1+VLOOKUP('Random Years'!L23,'Hist Returns'!$A$12:$D$107,3,FALSE))","v":{"v":40923.47836070475,"d":"40,923"}},{"$f":"($A23-$A22)/365.25*(O22+(Main!$I29*Main!$D$3))*(1+VLOOKUP('Random Years'!M23,'Hist Returns'!$A$12:$D$107,3,FALSE))","v":{"v":37276.91351613142,"d":"37,277"}},{"$f":"($A23-$A22)/365.25*(P22+(Main!$I29*Main!$D$3))*(1+VLOOKUP('Random Years'!N23,'Hist Returns'!$A$12:$D$107,3,FALSE))","v":{"v":27921.075220841754,"d":"27,921"}},{"$f":"($A23-$A22)/365.25*(Q22+(Main!$I29*Main!$D$3))*(1+VLOOKUP('Random Years'!O23,'Hist Returns'!$A$12:$D$107,3,FALSE))","v":{"v":15738.0936942778,"d":"15,738"}},{"$f":"($A23-$A22)/365.25*(R22+(Main!$I29*Main!$D$3))*(1+VLOOKUP('Random Years'!P23,'Hist Returns'!$A$12:$D$107,3,FALSE))","v":{"v":32597.334243010937,"d":"32,597"}},{"$f":"($A23-$A22)/365.25*(S22+(Main!$I29*Main!$D$3))*(1+VLOOKUP('Random Years'!Q23,'Hist Returns'!$A$12:$D$107,3,FALSE))","v":{"v":18220.45877151665,"d":"18,220"}},{"$f":"($A23-$A22)/365.25*(T22+(Main!$I29*Main!$D$3))*(1+VLOOKUP('Random Years'!R23,'Hist Returns'!$A$12:$D$107,3,FALSE))","v":{"v":64684.30585632744,"d":"64,684"}},{"$f":"($A23-$A22)/365.25*(U22+(Main!$I29*Main!$D$3))*(1+VLOOKUP('Random Years'!S23,'Hist Returns'!$A$12:$D$107,3,FALSE))","v":{"v":43772.89987499924,"d":"43,773"}},{"$f":"($A23-$A22)/365.25*(V22+(Main!$I29*Main!$D$3))*(1+VLOOKUP('Random Years'!T23,'Hist Returns'!$A$12:$D$107,3,FALSE))","v":{"v":35638.62630274554,"d":"35,639"}},{"$f":"($A23-$A22)/365.25*(W22+(Main!$I29*Main!$D$3))*(1+VLOOKUP('Random Years'!U23,'Hist Returns'!$A$12:$D$107,3,FALSE))","v":{"v":58235.07498808339,"d":"58,235"}},{"$f":"($A23-$A22)/365.25*(X22+(Main!$I29*Main!$D$3))*(1+VLOOKUP('Random Years'!V23,'Hist Returns'!$A$12:$D$107,3,FALSE))","v":{"v":26960.14494480693,"d":"26,960"}},{"$f":"($A23-$A22)/365.25*(Y22+(Main!$I29*Main!$D$3))*(1+VLOOKUP('Random Years'!W23,'Hist Returns'!$A$12:$D$107,3,FALSE))","v":{"v":20557.469101759776,"d":"20,557"}},{"$f":"($A23-$A22)/365.25*(Z22+(Main!$I29*Main!$D$3))*(1+VLOOKUP('Random Years'!X23,'Hist Returns'!$A$12:$D$107,3,FALSE))","v":{"v":34766.2275640694,"d":"34,766"}},{"$f":"($A23-$A22)/365.25*(AA22+(Main!$I29*Main!$D$3))*(1+VLOOKUP('Random Years'!Y23,'Hist Returns'!$A$12:$D$107,3,FALSE))","v":{"v":27175.362072535205,"d":"27,175"}},{"$f":"($A23-$A22)/365.25*(AB22+(Main!$I29*Main!$D$3))*(1+VLOOKUP('Random Years'!Z23,'Hist Returns'!$A$12:$D$107,3,FALSE))","v":{"v":35547.18689405709,"d":"35,547"}},{"$f":"($A23-$A22)/365.25*(AC22+(Main!$I29*Main!$D$3))*(1+VLOOKUP('Random Years'!AA23,'Hist Returns'!$A$12:$D$107,3,FALSE))","v":{"v":43032.1657650326,"d":"43,032"}},{"$f":"($A23-$A22)/365.25*(AD22+(Main!$I29*Main!$D$3))*(1+VLOOKUP('Random Years'!AB23,'Hist Returns'!$A$12:$D$107,3,FALSE))","v":{"v":35289.51344599207,"d":"35,290"}},{"$f":"($A23-$A22)/365.25*(AE22+(Main!$I29*Main!$D$3))*(1+VLOOKUP('Random Years'!AC23,'Hist Returns'!$A$12:$D$107,3,FALSE))","v":{"v":28702.00974013703,"d":"28,702"}},{"$f":"($A23-$A22)/365.25*(AF22+(Main!$I29*Main!$D$3))*(1+VLOOKUP('Random Years'!AD23,'Hist Returns'!$A$12:$D$107,3,FALSE))","v":{"v":23547.46374653817,"d":"23,547"}},{"$f":"($A23-$A22)/365.25*(AG22+(Main!$I29*Main!$D$3))*(1+VLOOKUP('Random Years'!AE23,'Hist Returns'!$A$12:$D$107,3,FALSE))","v":{"v":26428.069648270593,"d":"26,428"}},{"$f":"($A23-$A22)/365.25*(AH22+(Main!$I29*Main!$D$3))*(1+VLOOKUP('Random Years'!AF23,'Hist Returns'!$A$12:$D$107,3,FALSE))","v":{"v":33874.24354980931,"d":"33,874"}},{"$f":"($A23-$A22)/365.25*(AI22+(Main!$I29*Main!$D$3))*(1+VLOOKUP('Random Years'!AG23,'Hist Returns'!$A$12:$D$107,3,FALSE))","v":{"v":41235.59098018695,"d":"41,236"}},{"$f":"($A23-$A22)/365.25*(AJ22+(Main!$I29*Main!$D$3))*(1+VLOOKUP('Random Years'!AH23,'Hist Returns'!$A$12:$D$107,3,FALSE))","v":{"v":36034.354603683874,"d":"36,034"}},{"$f":"($A23-$A22)/365.25*(AK22+(Main!$I29*Main!$D$3))*(1+VLOOKUP('Random Years'!AI23,'Hist Returns'!$A$12:$D$107,3,FALSE))","v":{"v":23424.04065794403,"d":"23,424"}},{"$f":"($A23-$A22)/365.25*(AL22+(Main!$I29*Main!$D$3))*(1+VLOOKUP('Random Years'!AJ23,'Hist Returns'!$A$12:$D$107,3,FALSE))","v":{"v":39883.65277140907,"d":"39,884"}},{"$f":"($A23-$A22)/365.25*(AM22+(Main!$I29*Main!$D$3))*(1+VLOOKUP('Random Years'!AK23,'Hist Returns'!$A$12:$D$107,3,FALSE))","v":{"v":41257.895599313444,"d":"41,258"}},{"$f":"($A23-$A22)/365.25*(AN22+(Main!$I29*Main!$D$3))*(1+VLOOKUP('Random Years'!AL23,'Hist Returns'!$A$12:$D$107,3,FALSE))","v":{"v":40616.206243558896,"d":"40,616"}},{"$f":"($A23-$A22)/365.25*(AO22+(Main!$I29*Main!$D$3))*(1+VLOOKUP('Random Years'!AM23,'Hist Returns'!$A$12:$D$107,3,FALSE))","v":{"v":53802.26343691871,"d":"53,802"}},{"$f":"($A23-$A22)/365.25*(AP22+(Main!$I29*Main!$D$3))*(1+VLOOKUP('Random Years'!AN23,'Hist Returns'!$A$12:$D$107,3,FALSE))","v":{"v":22813.368593464977,"d":"22,813"}},{"$f":"($A23-$A22)/365.25*(AQ22+(Main!$I29*Main!$D$3))*(1+VLOOKUP('Random Years'!AO23,'Hist Returns'!$A$12:$D$107,3,FALSE))","v":{"v":22779.49753272619,"d":"22,779"}},{"$f":"($A23-$A22)/365.25*(AR22+(Main!$I29*Main!$D$3))*(1+VLOOKUP('Random Years'!AP23,'Hist Returns'!$A$12:$D$107,3,FALSE))","v":{"v":22204.251139751148,"d":"22,204"}},{"$f":"($A23-$A22)/365.25*(AS22+(Main!$I29*Main!$D$3))*(1+VLOOKUP('Random Years'!AQ23,'Hist Returns'!$A$12:$D$107,3,FALSE))","v":{"v":24810.056393990926,"d":"24,810"}},{"$f":"($A23-$A22)/365.25*(AT22+(Main!$I29*Main!$D$3))*(1+VLOOKUP('Random Years'!AR23,'Hist Returns'!$A$12:$D$107,3,FALSE))","v":{"v":35771.29816693725,"d":"35,771"}},{"$f":"($A23-$A22)/365.25*(AU22+(Main!$I29*Main!$D$3))*(1+VLOOKUP('Random Years'!AS23,'Hist Returns'!$A$12:$D$107,3,FALSE))","v":{"v":27799.35936234973,"d":"27,799"}},{"$f":"($A23-$A22)/365.25*(AV22+(Main!$I29*Main!$D$3))*(1+VLOOKUP('Random Years'!AT23,'Hist Returns'!$A$12:$D$107,3,FALSE))","v":{"v":11051.670216640465,"d":"11,052"}},{"$f":"($A23-$A22)/365.25*(AW22+(Main!$I29*Main!$D$3))*(1+VLOOKUP('Random Years'!AU23,'Hist Returns'!$A$12:$D$107,3,FALSE))","v":{"v":26050.240226574508,"d":"26,050"}},{"$f":"($A23-$A22)/365.25*(AX22+(Main!$I29*Main!$D$3))*(1+VLOOKUP('Random Years'!AV23,'Hist Returns'!$A$12:$D$107,3,FALSE))","v":{"v":28458.097642826066,"d":"28,458"}},{"$f":"($A23-$A22)/365.25*(AY22+(Main!$I29*Main!$D$3))*(1+VLOOKUP('Random Years'!AW23,'Hist Returns'!$A$12:$D$107,3,FALSE))","v":{"v":12876.894888172175,"d":"12,877"}},{"$f":"($A23-$A22)/365.25*(AZ22+(Main!$I29*Main!$D$3))*(1+VLOOKUP('Random Years'!AX23,'Hist Returns'!$A$12:$D$107,3,FALSE))","v":{"v":29591.65756526842,"d":"29,592"}},{"$f":"($A23-$A22)/365.25*(BA22+(Main!$I29*Main!$D$3))*(1+VLOOKUP('Random Years'!AY23,'Hist Returns'!$A$12:$D$107,3,FALSE))","v":{"v":43160.205116580895,"d":"43,160"}},{"$f":"($A23-$A22)/365.25*(BB22+(Main!$I29*Main!$D$3))*(1+VLOOKUP('Random Years'!AZ23,'Hist Returns'!$A$12:$D$107,3,FALSE))","v":{"v":57948.10864042415,"d":"57,948"}},{"$f":"($A23-$A22)/365.25*(BC22+(Main!$I29*Main!$D$3))*(1+VLOOKUP('Random Years'!BA23,'Hist Returns'!$A$12:$D$107,3,FALSE))","v":{"v":49528.28039494334,"d":"49,528"}},{"$f":"($A23-$A22)/365.25*(BD22+(Main!$I29*Main!$D$3))*(1+VLOOKUP('Random Years'!BB23,'Hist Returns'!$A$12:$D$107,3,FALSE))","v":{"v":21183.847508923667,"d":"21,184"}},{"$f":"($A23-$A22)/365.25*(BE22+(Main!$I29*Main!$D$3))*(1+VLOOKUP('Random Years'!BC23,'Hist Returns'!$A$12:$D$107,3,FALSE))","v":{"v":33010.34496179385,"d":"33,010"}},{"$f":"($A23-$A22)/365.25*(BF22+(Main!$I29*Main!$D$3))*(1+VLOOKUP('Random Years'!BD23,'Hist Returns'!$A$12:$D$107,3,FALSE))","v":{"v":37563.206339806544,"d":"37,563"}},{"$f":"($A23-$A22)/365.25*(BG22+(Main!$I29*Main!$D$3))*(1+VLOOKUP('Random Years'!BE23,'Hist Returns'!$A$12:$D$107,3,FALSE))","v":{"v":29152.76966711141,"d":"29,153"}},{"$f":"($A23-$A22)/365.25*(BH22+(Main!$I29*Main!$D$3))*(1+VLOOKUP('Random Years'!BF23,'Hist Returns'!$A$12:$D$107,3,FALSE))","v":{"v":16313.138738358233,"d":"16,313"}},{"$f":"($A23-$A22)/365.25*(BI22+(Main!$I29*Main!$D$3))*(1+VLOOKUP('Random Years'!BG23,'Hist Returns'!$A$12:$D$107,3,FALSE))","v":{"v":31525.673692223096,"d":"31,526"}},{"$f":"($A23-$A22)/365.25*(BJ22+(Main!$I29*Main!$D$3))*(1+VLOOKUP('Random Years'!BH23,'Hist Returns'!$A$12:$D$107,3,FALSE))","v":{"v":47282.78896036123,"d":"47,283"}},{"$f":"($A23-$A22)/365.25*(BK22+(Main!$I29*Main!$D$3))*(1+VLOOKUP('Random Years'!BI23,'Hist Returns'!$A$12:$D$107,3,FALSE))","v":{"v":26390.089464977562,"d":"26,390"}},{"$f":"($A23-$A22)/365.25*(BL22+(Main!$I29*Main!$D$3))*(1+VLOOKUP('Random Years'!BJ23,'Hist Returns'!$A$12:$D$107,3,FALSE))","v":{"v":33984.757453416205,"d":"33,985"}},{"$f":"($A23-$A22)/365.25*(BM22+(Main!$I29*Main!$D$3))*(1+VLOOKUP('Random Years'!BK23,'Hist Returns'!$A$12:$D$107,3,FALSE))","v":{"v":37270.12290192414,"d":"37,270"}},{"$f":"($A23-$A22)/365.25*(BN22+(Main!$I29*Main!$D$3))*(1+VLOOKUP('Random Years'!BL23,'Hist Returns'!$A$12:$D$107,3,FALSE))","v":{"v":29314.649930453274,"d":"29,315"}},{"$f":"($A23-$A22)/365.25*(BO22+(Main!$I29*Main!$D$3))*(1+VLOOKUP('Random Years'!BM23,'Hist Returns'!$A$12:$D$107,3,FALSE))","v":{"v":35968.29658353658,"d":"35,968"}},{"$f":"($A23-$A22)/365.25*(BP22+(Main!$I29*Main!$D$3))*(1+VLOOKUP('Random Years'!BN23,'Hist Returns'!$A$12:$D$107,3,FALSE))","v":{"v":17030.31228516372,"d":"17,030"}},{"$f":"($A23-$A22)/365.25*(BQ22+(Main!$I29*Main!$D$3))*(1+VLOOKUP('Random Years'!BO23,'Hist Returns'!$A$12:$D$107,3,FALSE))","v":{"v":27722.15158842308,"d":"27,722"}},{"$f":"($A23-$A22)/365.25*(BR22+(Main!$I29*Main!$D$3))*(1+VLOOKUP('Random Years'!BP23,'Hist Returns'!$A$12:$D$107,3,FALSE))","v":{"v":38786.08804258344,"d":"38,786"}},{"$f":"($A23-$A22)/365.25*(BS22+(Main!$I29*Main!$D$3))*(1+VLOOKUP('Random Years'!BQ23,'Hist Returns'!$A$12:$D$107,3,FALSE))","v":{"v":40165.450363246964,"d":"40,165"}},{"$f":"($A23-$A22)/365.25*(BT22+(Main!$I29*Main!$D$3))*(1+VLOOKUP('Random Years'!BR23,'Hist Returns'!$A$12:$D$107,3,FALSE))","v":{"v":32807.355153699806,"d":"32,807"}},{"$f":"($A23-$A22)/365.25*(BU22+(Main!$I29*Main!$D$3))*(1+VLOOKUP('Random Years'!BS23,'Hist Returns'!$A$12:$D$107,3,FALSE))","v":{"v":50127.992772048914,"d":"50,128"}},{"$f":"($A23-$A22)/365.25*(BV22+(Main!$I29*Main!$D$3))*(1+VLOOKUP('Random Years'!BT23,'Hist Returns'!$A$12:$D$107,3,FALSE))","v":{"v":26593.12992388454,"d":"26,593"}},{"$f":"($A23-$A22)/365.25*(BW22+(Main!$I29*Main!$D$3))*(1+VLOOKUP('Random Years'!BU23,'Hist Returns'!$A$12:$D$107,3,FALSE))","v":{"v":23363.250926487126,"d":"23,363"}},{"$f":"($A23-$A22)/365.25*(BX22+(Main!$I29*Main!$D$3))*(1+VLOOKUP('Random Years'!BV23,'Hist Returns'!$A$12:$D$107,3,FALSE))","v":{"v":41947.7264813818,"d":"41,948"}},{"$f":"($A23-$A22)/365.25*(BY22+(Main!$I29*Main!$D$3))*(1+VLOOKUP('Random Years'!BW23,'Hist Returns'!$A$12:$D$107,3,FALSE))","v":{"v":32388.265110909964,"d":"32,388"}},{"$f":"($A23-$A22)/365.25*(BZ22+(Main!$I29*Main!$D$3))*(1+VLOOKUP('Random Years'!BX23,'Hist Returns'!$A$12:$D$107,3,FALSE))","v":{"v":20042.541936475463,"d":"20,043"}},{"$f":"($A23-$A22)/365.25*(CA22+(Main!$I29*Main!$D$3))*(1+VLOOKUP('Random Years'!BY23,'Hist Returns'!$A$12:$D$107,3,FALSE))","v":{"v":28456.36685248913,"d":"28,456"}},{"$f":"($A23-$A22)/365.25*(CB22+(Main!$I29*Main!$D$3))*(1+VLOOKUP('Random Years'!BZ23,'Hist Returns'!$A$12:$D$107,3,FALSE))","v":{"v":31251.7399689961,"d":"31,252"}},{"$f":"($A23-$A22)/365.25*(CC22+(Main!$I29*Main!$D$3))*(1+VLOOKUP('Random Years'!CA23,'Hist Returns'!$A$12:$D$107,3,FALSE))","v":{"v":39314.888944381724,"d":"39,315"}},{"$f":"($A23-$A22)/365.25*(CD22+(Main!$I29*Main!$D$3))*(1+VLOOKUP('Random Years'!CB23,'Hist Returns'!$A$12:$D$107,3,FALSE))","v":{"v":26767.679773468244,"d":"26,768"}},{"$f":"($A23-$A22)/365.25*(CE22+(Main!$I29*Main!$D$3))*(1+VLOOKUP('Random Years'!CC23,'Hist Returns'!$A$12:$D$107,3,FALSE))","v":{"v":37679.56019571896,"d":"37,680"}},{"$f":"($A23-$A22)/365.25*(CF22+(Main!$I29*Main!$D$3))*(1+VLOOKUP('Random Years'!CD23,'Hist Returns'!$A$12:$D$107,3,FALSE))","v":{"v":37508.706513864454,"d":"37,509"}},{"$f":"($A23-$A22)/365.25*(CG22+(Main!$I29*Main!$D$3))*(1+VLOOKUP('Random Years'!CE23,'Hist Returns'!$A$12:$D$107,3,FALSE))","v":{"v":28598.33148500192,"d":"28,598"}},{"$f":"($A23-$A22)/365.25*(CH22+(Main!$I29*Main!$D$3))*(1+VLOOKUP('Random Years'!CF23,'Hist Returns'!$A$12:$D$107,3,FALSE))","v":{"v":43440.82147118238,"d":"43,441"}},{"$f":"($A23-$A22)/365.25*(CI22+(Main!$I29*Main!$D$3))*(1+VLOOKUP('Random Years'!CG23,'Hist Returns'!$A$12:$D$107,3,FALSE))","v":{"v":39890.12121682131,"d":"39,890"}},{"$f":"($A23-$A22)/365.25*(CJ22+(Main!$I29*Main!$D$3))*(1+VLOOKUP('Random Years'!CH23,'Hist Returns'!$A$12:$D$107,3,FALSE))","v":{"v":28422.095546823384,"d":"28,422"}},{"$f":"($A23-$A22)/365.25*(CK22+(Main!$I29*Main!$D$3))*(1+VLOOKUP('Random Years'!CI23,'Hist Returns'!$A$12:$D$107,3,FALSE))","v":{"v":16397.76093126748,"d":"16,398"}},{"$f":"($A23-$A22)/365.25*(CL22+(Main!$I29*Main!$D$3))*(1+VLOOKUP('Random Years'!CJ23,'Hist Returns'!$A$12:$D$107,3,FALSE))","v":{"v":20354.184721728132,"d":"20,354"}},{"$f":"($A23-$A22)/365.25*(CM22+(Main!$I29*Main!$D$3))*(1+VLOOKUP('Random Years'!CK23,'Hist Returns'!$A$12:$D$107,3,FALSE))","v":{"v":28133.106509268986,"d":"28,133"}},{"$f":"($A23-$A22)/365.25*(CN22+(Main!$I29*Main!$D$3))*(1+VLOOKUP('Random Years'!CL23,'Hist Returns'!$A$12:$D$107,3,FALSE))","v":{"v":41800.541354313864,"d":"41,801"}},{"$f":"($A23-$A22)/365.25*(CO22+(Main!$I29*Main!$D$3))*(1+VLOOKUP('Random Years'!CM23,'Hist Returns'!$A$12:$D$107,3,FALSE))","v":{"v":27801.899800078172,"d":"27,802"}},{"$f":"($A23-$A22)/365.25*(CP22+(Main!$I29*Main!$D$3))*(1+VLOOKUP('Random Years'!CN23,'Hist Returns'!$A$12:$D$107,3,FALSE))","v":{"v":44837.12044905915,"d":"44,837"}},{"$f":"($A23-$A22)/365.25*(CQ22+(Main!$I29*Main!$D$3))*(1+VLOOKUP('Random Years'!CO23,'Hist Returns'!$A$12:$D$107,3,FALSE))","v":{"v":18457.53832336579,"d":"18,458"}},{"$f":"($A23-$A22)/365.25*(CR22+(Main!$I29*Main!$D$3))*(1+VLOOKUP('Random Years'!CP23,'Hist Returns'!$A$12:$D$107,3,FALSE))","v":{"v":35602.35354538274,"d":"35,602"}},{"$f":"($A23-$A22)/365.25*(CS22+(Main!$I29*Main!$D$3))*(1+VLOOKUP('Random Years'!CQ23,'Hist Returns'!$A$12:$D$107,3,FALSE))","v":{"v":28113.386029053265,"d":"28,113"}},{"$f":"($A23-$A22)/365.25*(CT22+(Main!$I29*Main!$D$3))*(1+VLOOKUP('Random Years'!CR23,'Hist Returns'!$A$12:$D$107,3,FALSE))","v":{"v":44280.20758203837,"d":"44,280"}},{"$f":"($A23-$A22)/365.25*(CU22+(Main!$I29*Main!$D$3))*(1+VLOOKUP('Random Years'!CS23,'Hist Returns'!$A$12:$D$107,3,FALSE))","v":{"v":29850.57244735094,"d":"29,851"}},{"$f":"($A23-$A22)/365.25*(CV22+(Main!$I29*Main!$D$3))*(1+VLOOKUP('Random Years'!CT23,'Hist Returns'!$A$12:$D$107,3,FALSE))","v":{"v":26900.30485703859,"d":"26,900"}},{"$f":"($A23-$A22)/365.25*(CW22+(Main!$I29*Main!$D$3))*(1+VLOOKUP('Random Years'!CU23,'Hist Returns'!$A$12:$D$107,3,FALSE))","v":{"v":30828.314229752115,"d":"30,828"}},{"$f":"($A23-$A22)/365.25*(CX22+(Main!$I29*Main!$D$3))*(1+VLOOKUP('Random Years'!CV23,'Hist Returns'!$A$12:$D$107,3,FALSE))","v":{"v":34610.18740186624,"d":"34,610"}}]
[{"$f":"Main!A30","v":"2045-12-30"},{"$f":"Main!B30","v":91},{"$f":"($A24-$A23)/365.25*(C23+(Main!$I30*Main!$D$3))*(1+VLOOKUP('Random Years'!A24,'Hist Returns'!$A$12:$D$107,3,FALSE))","v":{"v":28844.822987047755,"d":"28,845"}},{"$f":"($A24-$A23)/365.25*(D23+(Main!$I30*Main!$D$3))*(1+VLOOKUP('Random Years'!B24,'Hist Returns'!$A$12:$D$107,3,FALSE))","v":{"v":7955.938800754842,"d":"7,956"}},{"$f":"($A24-$A23)/365.25*(E23+(Main!$I30*Main!$D$3))*(1+VLOOKUP('Random Years'!C24,'Hist Returns'!$A$12:$D$107,3,FALSE))","v":{"v":21099.737904354926,"d":"21,100"}},{"$f":"($A24-$A23)/365.25*(F23+(Main!$I30*Main!$D$3))*(1+VLOOKUP('Random Years'!D24,'Hist Returns'!$A$12:$D$107,3,FALSE))","v":{"v":18331.655603576528,"d":"18,332"}},{"$f":"($A24-$A23)/365.25*(G23+(Main!$I30*Main!$D$3))*(1+VLOOKUP('Random Years'!E24,'Hist Returns'!$A$12:$D$107,3,FALSE))","v":{"v":22975.982108281463,"d":"22,976"}},{"$f":"($A24-$A23)/365.25*(H23+(Main!$I30*Main!$D$3))*(1+VLOOKUP('Random Years'!F24,'Hist Returns'!$A$12:$D$107,3,FALSE))","v":{"v":20111.702422041606,"d":"20,112"}},{"$f":"($A24-$A23)/365.25*(I23+(Main!$I30*Main!$D$3))*(1+VLOOKUP('Random Years'!G24,'Hist Returns'!$A$12:$D$107,3,FALSE))","v":{"v":18254.68860760466,"d":"18,255"}},{"$f":"($A24-$A23)/365.25*(J23+(Main!$I30*Main!$D$3))*(1+VLOOKUP('Random Years'!H24,'Hist Returns'!$A$12:$D$107,3,FALSE))","v":{"v":41354.614540709554,"d":"41,355"}},{"$f":"($A24-$A23)/365.25*(K23+(Main!$I30*Main!$D$3))*(1+VLOOKUP('Random Years'!I24,'Hist Returns'!$A$12:$D$107,3,FALSE))","v":{"v":54766.75662080324,"d":"54,767"}},{"$f":"($A24-$A23)/365.25*(L23+(Main!$I30*Main!$D$3))*(1+VLOOKUP('Random Years'!J24,'Hist Returns'!$A$12:$D$107,3,FALSE))","v":{"v":3241.6167726582603,"d":"3,242"}},{"$f":"($A24-$A23)/365.25*(M23+(Main!$I30*Main!$D$3))*(1+VLOOKUP('Random Years'!K24,'Hist Returns'!$A$12:$D$107,3,FALSE))","v":{"v":6112.234199003278,"d":"6,112"}},{"$f":"($A24-$A23)/365.25*(N23+(Main!$I30*Main!$D$3))*(1+VLOOKUP('Random Years'!L24,'Hist Returns'!$A$12:$D$107,3,FALSE))","v":{"v":29674.48179838577,"d":"29,674"}},{"$f":"($A24-$A23)/365.25*(O23+(Main!$I30*Main!$D$3))*(1+VLOOKUP('Random Years'!M24,'Hist Returns'!$A$12:$D$107,3,FALSE))","v":{"v":27954.273554159467,"d":"27,954"}},{"$f":"($A24-$A23)/365.25*(P23+(Main!$I30*Main!$D$3))*(1+VLOOKUP('Random Years'!N24,'Hist Returns'!$A$12:$D$107,3,FALSE))","v":{"v":17755.831587359065,"d":"17,756"}},{"$f":"($A24-$A23)/365.25*(Q23+(Main!$I30*Main!$D$3))*(1+VLOOKUP('Random Years'!O24,'Hist Returns'!$A$12:$D$107,3,FALSE))","v":{"v":4670.647368333138,"d":"4,671"}},{"$f":"($A24-$A23)/365.25*(R23+(Main!$I30*Main!$D$3))*(1+VLOOKUP('Random Years'!P24,'Hist Returns'!$A$12:$D$107,3,FALSE))","v":{"v":21424.218974532992,"d":"21,424"}},{"$f":"($A24-$A23)/365.25*(S23+(Main!$I30*Main!$D$3))*(1+VLOOKUP('Random Years'!Q24,'Hist Returns'!$A$12:$D$107,3,FALSE))","v":{"v":7345.927598349777,"d":"7,346"}},{"$f":"($A24-$A23)/365.25*(T23+(Main!$I30*Main!$D$3))*(1+VLOOKUP('Random Years'!R24,'Hist Returns'!$A$12:$D$107,3,FALSE))","v":{"v":55339.5842052611,"d":"55,340"}},{"$f":"($A24-$A23)/365.25*(U23+(Main!$I30*Main!$D$3))*(1+VLOOKUP('Random Years'!S24,'Hist Returns'!$A$12:$D$107,3,FALSE))","v":{"v":32606.86326811627,"d":"32,607"}},{"$f":"($A24-$A23)/365.25*(V23+(Main!$I30*Main!$D$3))*(1+VLOOKUP('Random Years'!T24,'Hist Returns'!$A$12:$D$107,3,FALSE))","v":{"v":24366.897643085867,"d":"24,367"}},{"$f":"($A24-$A23)/365.25*(W23+(Main!$I30*Main!$D$3))*(1+VLOOKUP('Random Years'!U24,'Hist Returns'!$A$12:$D$107,3,FALSE))","v":{"v":47630.350939700096,"d":"47,630"}},{"$f":"($A24-$A23)/365.25*(X23+(Main!$I30*Main!$D$3))*(1+VLOOKUP('Random Years'!V24,'Hist Returns'!$A$12:$D$107,3,FALSE))","v":{"v":17189.236425751154,"d":"17,189"}},{"$f":"($A24-$A23)/365.25*(Y23+(Main!$I30*Main!$D$3))*(1+VLOOKUP('Random Years'!W24,'Hist Returns'!$A$12:$D$107,3,FALSE))","v":{"v":9319.164336658676,"d":"9,319"}},{"$f":"($A24-$A23)/365.25*(Z23+(Main!$I30*Main!$D$3))*(1+VLOOKUP('Random Years'!X24,'Hist Returns'!$A$12:$D$107,3,FALSE))","v":{"v":23734.18589841627,"d":"23,734"}},{"$f":"($A24-$A23)/365.25*(AA23+(Main!$I30*Main!$D$3))*(1+VLOOKUP('Random Years'!Y24,'Hist Returns'!$A$12:$D$107,3,FALSE))","v":{"v":15978.324810483757,"d":"15,978"}},{"$f":"($A24-$A23)/365.25*(AB23+(Main!$I30*Main!$D$3))*(1+VLOOKUP('Random Years'!Z24,'Hist Returns'!$A$12:$D$107,3,FALSE))","v":{"v":24340.986160195793,"d":"24,341"}},{"$f":"($A24-$A23)/365.25*(AC23+(Main!$I30*Main!$D$3))*(1+VLOOKUP('Random Years'!AA24,'Hist Returns'!$A$12:$D$107,3,FALSE))","v":{"v":32778.027435343,"d":"32,778"}},{"$f":"($A24-$A23)/365.25*(AD23+(Main!$I30*Main!$D$3))*(1+VLOOKUP('Random Years'!AB24,'Hist Returns'!$A$12:$D$107,3,FALSE))","v":{"v":24027.45164266116,"d":"24,027"}},{"$f":"($A24-$A23)/365.25*(AE23+(Main!$I30*Main!$D$3))*(1+VLOOKUP('Random Years'!AC24,'Hist Returns'!$A$12:$D$107,3,FALSE))","v":{"v":17482.089270971966,"d":"17,482"}},{"$f":"($A24-$A23)/365.25*(AF23+(Main!$I30*Main!$D$3))*(1+VLOOKUP('Random Years'!AD24,'Hist Returns'!$A$12:$D$107,3,FALSE))","v":{"v":13006.91651368789,"d":"13,007"}},{"$f":"($A24-$A23)/365.25*(AG23+(Main!$I30*Main!$D$3))*(1+VLOOKUP('Random Years'!AE24,'Hist Returns'!$A$12:$D$107,3,FALSE))","v":{"v":15911.021400044026,"d":"15,911"}},{"$f":"($A24-$A23)/365.25*(AH23+(Main!$I30*Main!$D$3))*(1+VLOOKUP('Random Years'!AF24,'Hist Returns'!$A$12:$D$107,3,FALSE))","v":{"v":23725.6407524315,"d":"23,726"}},{"$f":"($A24-$A23)/365.25*(AI23+(Main!$I30*Main!$D$3))*(1+VLOOKUP('Random Years'!AG24,'Hist Returns'!$A$12:$D$107,3,FALSE))","v":{"v":30861.263595277767,"d":"30,861"}},{"$f":"($A24-$A23)/365.25*(AJ23+(Main!$I30*Main!$D$3))*(1+VLOOKUP('Random Years'!AH24,'Hist Returns'!$A$12:$D$107,3,FALSE))","v":{"v":25487.73301875683,"d":"25,488"}},{"$f":"($A24-$A23)/365.25*(AK23+(Main!$I30*Main!$D$3))*(1+VLOOKUP('Random Years'!AI24,'Hist Returns'!$A$12:$D$107,3,FALSE))","v":{"v":12194.65934762563,"d":"12,195"}},{"$f":"($A24-$A23)/365.25*(AL23+(Main!$I30*Main!$D$3))*(1+VLOOKUP('Random Years'!AJ24,'Hist Returns'!$A$12:$D$107,3,FALSE))","v":{"v":30232.580505373695,"d":"30,233"}},{"$f":"($A24-$A23)/365.25*(AM23+(Main!$I30*Main!$D$3))*(1+VLOOKUP('Random Years'!AK24,'Hist Returns'!$A$12:$D$107,3,FALSE))","v":{"v":31138.97899186814,"d":"31,139"}},{"$f":"($A24-$A23)/365.25*(AN23+(Main!$I30*Main!$D$3))*(1+VLOOKUP('Random Years'!AL24,'Hist Returns'!$A$12:$D$107,3,FALSE))","v":{"v":31302.72777209465,"d":"31,303"}},{"$f":"($A24-$A23)/365.25*(AO23+(Main!$I30*Main!$D$3))*(1+VLOOKUP('Random Years'!AM24,'Hist Returns'!$A$12:$D$107,3,FALSE))","v":{"v":42544.180417637865,"d":"42,544"}},{"$f":"($A24-$A23)/365.25*(AP23+(Main!$I30*Main!$D$3))*(1+VLOOKUP('Random Years'!AN24,'Hist Returns'!$A$12:$D$107,3,FALSE))","v":{"v":12229.381619092594,"d":"12,229"}},{"$f":"($A24-$A23)/365.25*(AQ23+(Main!$I30*Main!$D$3))*(1+VLOOKUP('Random Years'!AO24,'Hist Returns'!$A$12:$D$107,3,FALSE))","v":{"v":11777.047223514335,"d":"11,777"}},{"$f":"($A24-$A23)/365.25*(AR23+(Main!$I30*Main!$D$3))*(1+VLOOKUP('Random Years'!AP24,'Hist Returns'!$A$12:$D$107,3,FALSE))","v":{"v":11979.86928571447,"d":"11,980"}},{"$f":"($A24-$A23)/365.25*(AS23+(Main!$I30*Main!$D$3))*(1+VLOOKUP('Random Years'!AQ24,'Hist Returns'!$A$12:$D$107,3,FALSE))","v":{"v":13584.989662431964,"d":"13,585"}},{"$f":"($A24-$A23)/365.25*(AT23+(Main!$I30*Main!$D$3))*(1+VLOOKUP('Random Years'!AR24,'Hist Returns'!$A$12:$D$107,3,FALSE))","v":{"v":25716.5638653715,"d":"25,717"}},{"$f":"($A24-$A23)/365.25*(AU23+(Main!$I30*Main!$D$3))*(1+VLOOKUP('Random Years'!AS24,'Hist Returns'!$A$12:$D$107,3,FALSE))","v":{"v":17518.676497651108,"d":"17,519"}},{"$f":"($A24-$A23)/365.25*(AV23+(Main!$I30*Main!$D$3))*(1+VLOOKUP('Random Years'!AT24,'Hist Returns'!$A$12:$D$107,3,FALSE))","v":{"v":-231.54092936433562,"d":"(232)"}},{"$f":"($A24-$A23)/365.25*(AW23+(Main!$I30*Main!$D$3))*(1+VLOOKUP('Random Years'!AU24,'Hist Returns'!$A$12:$D$107,3,FALSE))","v":{"v":15315.062422911542,"d":"15,315"}},{"$f":"($A24-$A23)/365.25*(AX23+(Main!$I30*Main!$D$3))*(1+VLOOKUP('Random Years'!AV24,'Hist Returns'!$A$12:$D$107,3,FALSE))","v":{"v":18476.128962277016,"d":"18,476"}},{"$f":"($A24-$A23)/365.25*(AY23+(Main!$I30*Main!$D$3))*(1+VLOOKUP('Random Years'!AW24,'Hist Returns'!$A$12:$D$107,3,FALSE))","v":{"v":1701.2219656861544,"d":"1,701"}},{"$f":"($A24-$A23)/365.25*(AZ23+(Main!$I30*Main!$D$3))*(1+VLOOKUP('Random Years'!AX24,'Hist Returns'!$A$12:$D$107,3,FALSE))","v":{"v":19536.955942439465,"d":"19,537"}},{"$f":"($A24-$A23)/365.25*(BA23+(Main!$I30*Main!$D$3))*(1+VLOOKUP('Random Years'!AY24,'Hist Returns'!$A$12:$D$107,3,FALSE))","v":{"v":32262.369233426274,"d":"32,262"}},{"$f":"($A24-$A23)/365.25*(BB23+(Main!$I30*Main!$D$3))*(1+VLOOKUP('Random Years'!AZ24,'Hist Returns'!$A$12:$D$107,3,FALSE))","v":{"v":49317.25155759492,"d":"49,317"}},{"$f":"($A24-$A23)/365.25*(BC23+(Main!$I30*Main!$D$3))*(1+VLOOKUP('Random Years'!BA24,'Hist Returns'!$A$12:$D$107,3,FALSE))","v":{"v":39726.02725462161,"d":"39,726"}},{"$f":"($A24-$A23)/365.25*(BD23+(Main!$I30*Main!$D$3))*(1+VLOOKUP('Random Years'!BB24,'Hist Returns'!$A$12:$D$107,3,FALSE))","v":{"v":9947.49261993193,"d":"9,947"}},{"$f":"($A24-$A23)/365.25*(BE23+(Main!$I30*Main!$D$3))*(1+VLOOKUP('Random Years'!BC24,'Hist Returns'!$A$12:$D$107,3,FALSE))","v":{"v":21742.57853954291,"d":"21,743"}},{"$f":"($A24-$A23)/365.25*(BF23+(Main!$I30*Main!$D$3))*(1+VLOOKUP('Random Years'!BD24,'Hist Returns'!$A$12:$D$107,3,FALSE))","v":{"v":27108.367280092767,"d":"27,108"}},{"$f":"($A24-$A23)/365.25*(BG23+(Main!$I30*Main!$D$3))*(1+VLOOKUP('Random Years'!BE24,'Hist Returns'!$A$12:$D$107,3,FALSE))","v":{"v":17934.072204346434,"d":"17,934"}},{"$f":"($A24-$A23)/365.25*(BH23+(Main!$I30*Main!$D$3))*(1+VLOOKUP('Random Years'!BF24,'Hist Returns'!$A$12:$D$107,3,FALSE))","v":{"v":5271.892237264141,"d":"5,272"}},{"$f":"($A24-$A23)/365.25*(BI23+(Main!$I30*Main!$D$3))*(1+VLOOKUP('Random Years'!BG24,'Hist Returns'!$A$12:$D$107,3,FALSE))","v":{"v":20904.55623548036,"d":"20,905"}},{"$f":"($A24-$A23)/365.25*(BJ23+(Main!$I30*Main!$D$3))*(1+VLOOKUP('Random Years'!BH24,'Hist Returns'!$A$12:$D$107,3,FALSE))","v":{"v":36039.500678062206,"d":"36,040"}},{"$f":"($A24-$A23)/365.25*(BK23+(Main!$I30*Main!$D$3))*(1+VLOOKUP('Random Years'!BI24,'Hist Returns'!$A$12:$D$107,3,FALSE))","v":{"v":15976.949508633994,"d":"15,977"}},{"$f":"($A24-$A23)/365.25*(BL23+(Main!$I30*Main!$D$3))*(1+VLOOKUP('Random Years'!BJ24,'Hist Returns'!$A$12:$D$107,3,FALSE))","v":{"v":23684.97932832269,"d":"23,685"}},{"$f":"($A24-$A23)/365.25*(BM23+(Main!$I30*Main!$D$3))*(1+VLOOKUP('Random Years'!BK24,'Hist Returns'!$A$12:$D$107,3,FALSE))","v":{"v":26415.803219103444,"d":"26,416"}},{"$f":"($A24-$A23)/365.25*(BN23+(Main!$I30*Main!$D$3))*(1+VLOOKUP('Random Years'!BL24,'Hist Returns'!$A$12:$D$107,3,FALSE))","v":{"v":18604.980725570047,"d":"18,605"}},{"$f":"($A24-$A23)/365.25*(BO23+(Main!$I30*Main!$D$3))*(1+VLOOKUP('Random Years'!BM24,'Hist Returns'!$A$12:$D$107,3,FALSE))","v":{"v":25093.922054343646,"d":"25,094"}},{"$f":"($A24-$A23)/365.25*(BP23+(Main!$I30*Main!$D$3))*(1+VLOOKUP('Random Years'!BN24,'Hist Returns'!$A$12:$D$107,3,FALSE))","v":{"v":5861.655706884037,"d":"5,862"}},{"$f":"($A24-$A23)/365.25*(BQ23+(Main!$I30*Main!$D$3))*(1+VLOOKUP('Random Years'!BO24,'Hist Returns'!$A$12:$D$107,3,FALSE))","v":{"v":16458.46339794414,"d":"16,458"}},{"$f":"($A24-$A23)/365.25*(BR23+(Main!$I30*Main!$D$3))*(1+VLOOKUP('Random Years'!BP24,'Hist Returns'!$A$12:$D$107,3,FALSE))","v":{"v":27802.52800736077,"d":"27,803"}},{"$f":"($A24-$A23)/365.25*(BS23+(Main!$I30*Main!$D$3))*(1+VLOOKUP('Random Years'!BQ24,'Hist Returns'!$A$12:$D$107,3,FALSE))","v":{"v":30810.413932034557,"d":"30,810"}},{"$f":"($A24-$A23)/365.25*(BT23+(Main!$I30*Main!$D$3))*(1+VLOOKUP('Random Years'!BR24,'Hist Returns'!$A$12:$D$107,3,FALSE))","v":{"v":24603.517379158664,"d":"24,604"}},{"$f":"($A24-$A23)/365.25*(BU23+(Main!$I30*Main!$D$3))*(1+VLOOKUP('Random Years'!BS24,'Hist Returns'!$A$12:$D$107,3,FALSE))","v":{"v":39055.52408653149,"d":"39,056"}},{"$f":"($A24-$A23)/365.25*(BV23+(Main!$I30*Main!$D$3))*(1+VLOOKUP('Random Years'!BT24,'Hist Returns'!$A$12:$D$107,3,FALSE))","v":{"v":15678.390549380216,"d":"15,678"}},{"$f":"($A24-$A23)/365.25*(BW23+(Main!$I30*Main!$D$3))*(1+VLOOKUP('Random Years'!BU24,'Hist Returns'!$A$12:$D$107,3,FALSE))","v":{"v":12133.680381604272,"d":"12,134"}},{"$f":"($A24-$A23)/365.25*(BX23+(Main!$I30*Main!$D$3))*(1+VLOOKUP('Random Years'!BV24,'Hist Returns'!$A$12:$D$107,3,FALSE))","v":{"v":32496.00629471781,"d":"32,496"}},{"$f":"($A24-$A23)/365.25*(BY23+(Main!$I30*Main!$D$3))*(1+VLOOKUP('Random Years'!BW24,'Hist Returns'!$A$12:$D$107,3,FALSE))","v":{"v":21585.70329531127,"d":"21,586"}},{"$f":"($A24-$A23)/365.25*(BZ23+(Main!$I30*Main!$D$3))*(1+VLOOKUP('Random Years'!BX24,'Hist Returns'!$A$12:$D$107,3,FALSE))","v":{"v":8946.450933902614,"d":"8,946"}},{"$f":"($A24-$A23)/365.25*(CA23+(Main!$I30*Main!$D$3))*(1+VLOOKUP('Random Years'!BY24,'Hist Returns'!$A$12:$D$107,3,FALSE))","v":{"v":17720.181928915288,"d":"17,720"}},{"$f":"($A24-$A23)/365.25*(CB23+(Main!$I30*Main!$D$3))*(1+VLOOKUP('Random Years'!BZ24,'Hist Returns'!$A$12:$D$107,3,FALSE))","v":{"v":19986.813278532827,"d":"19,987"}},{"$f":"($A24-$A23)/365.25*(CC23+(Main!$I30*Main!$D$3))*(1+VLOOKUP('Random Years'!CA24,'Hist Returns'!$A$12:$D$107,3,FALSE))","v":{"v":28558.204679811643,"d":"28,558"}},{"$f":"($A24-$A23)/365.25*(CD23+(Main!$I30*Main!$D$3))*(1+VLOOKUP('Random Years'!CB24,'Hist Returns'!$A$12:$D$107,3,FALSE))","v":{"v":15966.93282968961,"d":"15,967"}},{"$f":"($A24-$A23)/365.25*(CE23+(Main!$I30*Main!$D$3))*(1+VLOOKUP('Random Years'!CC24,'Hist Returns'!$A$12:$D$107,3,FALSE))","v":{"v":26494.555410286113,"d":"26,495"}},{"$f":"($A24-$A23)/365.25*(CF23+(Main!$I30*Main!$D$3))*(1+VLOOKUP('Random Years'!CD24,'Hist Returns'!$A$12:$D$107,3,FALSE))","v":{"v":26239.254606215152,"d":"26,239"}},{"$f":"($A24-$A23)/365.25*(CG23+(Main!$I30*Main!$D$3))*(1+VLOOKUP('Random Years'!CE24,'Hist Returns'!$A$12:$D$107,3,FALSE))","v":{"v":17371.202017231004,"d":"17,371"}},{"$f":"($A24-$A23)/365.25*(CH23+(Main!$I30*Main!$D$3))*(1+VLOOKUP('Random Years'!CF24,'Hist Returns'!$A$12:$D$107,3,FALSE))","v":{"v":33749.50842428524,"d":"33,750"}},{"$f":"($A24-$A23)/365.25*(CI23+(Main!$I30*Main!$D$3))*(1+VLOOKUP('Random Years'!CG24,'Hist Returns'!$A$12:$D$107,3,FALSE))","v":{"v":29077.404991157673,"d":"29,077"}},{"$f":"($A24-$A23)/365.25*(CJ23+(Main!$I30*Main!$D$3))*(1+VLOOKUP('Random Years'!CH24,'Hist Returns'!$A$12:$D$107,3,FALSE))","v":{"v":17414.84756734888,"d":"17,415"}},{"$f":"($A24-$A23)/365.25*(CK23+(Main!$I30*Main!$D$3))*(1+VLOOKUP('Random Years'!CI24,'Hist Returns'!$A$12:$D$107,3,FALSE))","v":{"v":5136.253210285853,"d":"5,136"}},{"$f":"($A24-$A23)/365.25*(CL23+(Main!$I30*Main!$D$3))*(1+VLOOKUP('Random Years'!CJ24,'Hist Returns'!$A$12:$D$107,3,FALSE))","v":{"v":10099.599397284155,"d":"10,100"}},{"$f":"($A24-$A23)/365.25*(CM23+(Main!$I30*Main!$D$3))*(1+VLOOKUP('Random Years'!CK24,'Hist Returns'!$A$12:$D$107,3,FALSE))","v":{"v":17511.656909560108,"d":"17,512"}},{"$f":"($A24-$A23)/365.25*(CN23+(Main!$I30*Main!$D$3))*(1+VLOOKUP('Random Years'!CL24,'Hist Returns'!$A$12:$D$107,3,FALSE))","v":{"v":31293.535627497262,"d":"31,294"}},{"$f":"($A24-$A23)/365.25*(CO23+(Main!$I30*Main!$D$3))*(1+VLOOKUP('Random Years'!CM24,'Hist Returns'!$A$12:$D$107,3,FALSE))","v":{"v":17392.486343685443,"d":"17,392"}},{"$f":"($A24-$A23)/365.25*(CP23+(Main!$I30*Main!$D$3))*(1+VLOOKUP('Random Years'!CN24,'Hist Returns'!$A$12:$D$107,3,FALSE))","v":{"v":33718.007687004334,"d":"33,718"}},{"$f":"($A24-$A23)/365.25*(CQ23+(Main!$I30*Main!$D$3))*(1+VLOOKUP('Random Years'!CO24,'Hist Returns'!$A$12:$D$107,3,FALSE))","v":{"v":7299.280582437093,"d":"7,299"}},{"$f":"($A24-$A23)/365.25*(CR23+(Main!$I30*Main!$D$3))*(1+VLOOKUP('Random Years'!CP24,'Hist Returns'!$A$12:$D$107,3,FALSE))","v":{"v":26290.700460753615,"d":"26,291"}},{"$f":"($A24-$A23)/365.25*(CS23+(Main!$I30*Main!$D$3))*(1+VLOOKUP('Random Years'!CQ24,'Hist Returns'!$A$12:$D$107,3,FALSE))","v":{"v":17698.24731326113,"d":"17,698"}},{"$f":"($A24-$A23)/365.25*(CT23+(Main!$I30*Main!$D$3))*(1+VLOOKUP('Random Years'!CR24,'Hist Returns'!$A$12:$D$107,3,FALSE))","v":{"v":33012.16037744699,"d":"33,012"}},{"$f":"($A24-$A23)/365.25*(CU23+(Main!$I30*Main!$D$3))*(1+VLOOKUP('Random Years'!CS24,'Hist Returns'!$A$12:$D$107,3,FALSE))","v":{"v":18761.905604286138,"d":"18,762"}},{"$f":"($A24-$A23)/365.25*(CV23+(Main!$I30*Main!$D$3))*(1+VLOOKUP('Random Years'!CT24,'Hist Returns'!$A$12:$D$107,3,FALSE))","v":{"v":16353.116711761839,"d":"16,353"}},{"$f":"($A24-$A23)/365.25*(CW23+(Main!$I30*Main!$D$3))*(1+VLOOKUP('Random Years'!CU24,'Hist Returns'!$A$12:$D$107,3,FALSE))","v":{"v":20855.441865227265,"d":"20,855"}},{"$f":"($A24-$A23)/365.25*(CX23+(Main!$I30*Main!$D$3))*(1+VLOOKUP('Random Years'!CV24,'Hist Returns'!$A$12:$D$107,3,FALSE))","v":{"v":24029.12756796354,"d":"24,029"}}]
[{"$f":"Main!A31","v":"2046-12-30"},{"$f":"Main!B31","v":92},{"$f":"($A25-$A24)/365.25*(C24+(Main!$I31*Main!$D$3))*(1+VLOOKUP('Random Years'!A25,'Hist Returns'!$A$12:$D$107,3,FALSE))","v":{"v":16623.64488005528,"d":"16,624"}},{"$f":"($A25-$A24)/365.25*(D24+(Main!$I31*Main!$D$3))*(1+VLOOKUP('Random Years'!B25,'Hist Returns'!$A$12:$D$107,3,FALSE))","v":{"v":-4923.633272616606,"d":"(4,924)"}},{"$f":"($A25-$A24)/365.25*(E24+(Main!$I31*Main!$D$3))*(1+VLOOKUP('Random Years'!C25,'Hist Returns'!$A$12:$D$107,3,FALSE))","v":{"v":9544.697524751864,"d":"9,545"}},{"$f":"($A25-$A24)/365.25*(F24+(Main!$I31*Main!$D$3))*(1+VLOOKUP('Random Years'!D25,'Hist Returns'!$A$12:$D$107,3,FALSE))","v":{"v":5944.060132667923,"d":"5,944"}},{"$f":"($A25-$A24)/365.25*(G24+(Main!$I31*Main!$D$3))*(1+VLOOKUP('Random Years'!E25,'Hist Returns'!$A$12:$D$107,3,FALSE))","v":{"v":10643.15323299074,"d":"10,643"}},{"$f":"($A25-$A24)/365.25*(H24+(Main!$I31*Main!$D$3))*(1+VLOOKUP('Random Years'!F25,'Hist Returns'!$A$12:$D$107,3,FALSE))","v":{"v":7749.849847331514,"d":"7,750"}},{"$f":"($A25-$A24)/365.25*(I24+(Main!$I31*Main!$D$3))*(1+VLOOKUP('Random Years'!G25,'Hist Returns'!$A$12:$D$107,3,FALSE))","v":{"v":6340.401921956751,"d":"6,340"}},{"$f":"($A25-$A24)/365.25*(J24+(Main!$I31*Main!$D$3))*(1+VLOOKUP('Random Years'!H25,'Hist Returns'!$A$12:$D$107,3,FALSE))","v":{"v":29304.231591444426,"d":"29,304"}},{"$f":"($A25-$A24)/365.25*(K24+(Main!$I31*Main!$D$3))*(1+VLOOKUP('Random Years'!I25,'Hist Returns'!$A$12:$D$107,3,FALSE))","v":{"v":43732.51618890486,"d":"43,733"}},{"$f":"($A25-$A24)/365.25*(L24+(Main!$I31*Main!$D$3))*(1+VLOOKUP('Random Years'!J25,'Hist Returns'!$A$12:$D$107,3,FALSE))","v":{"v":-10016.191178725867,"d":"(10,016)"}},{"$f":"($A25-$A24)/365.25*(M24+(Main!$I31*Main!$D$3))*(1+VLOOKUP('Random Years'!K25,'Hist Returns'!$A$12:$D$107,3,FALSE))","v":{"v":-6274.389706527067,"d":"(6,274)"}},{"$f":"($A25-$A24)/365.25*(N24+(Main!$I31*Main!$D$3))*(1+VLOOKUP('Random Years'!L25,'Hist Returns'!$A$12:$D$107,3,FALSE))","v":{"v":17281.928936460816,"d":"17,282"}},{"$f":"($A25-$A24)/365.25*(O24+(Main!$I31*Main!$D$3))*(1+VLOOKUP('Random Years'!M25,'Hist Returns'!$A$12:$D$107,3,FALSE))","v":{"v":15871.980931588638,"d":"15,872"}},{"$f":"($A25-$A24)/365.25*(P24+(Main!$I31*Main!$D$3))*(1+VLOOKUP('Random Years'!N25,'Hist Returns'!$A$12:$D$107,3,FALSE))","v":{"v":5648.518511072174,"d":"5,649"}},{"$f":"($A25-$A24)/365.25*(Q24+(Main!$I31*Main!$D$3))*(1+VLOOKUP('Random Years'!O25,'Hist Returns'!$A$12:$D$107,3,FALSE))","v":{"v":-8135.564908184989,"d":"(8,136)"}},{"$f":"($A25-$A24)/365.25*(R24+(Main!$I31*Main!$D$3))*(1+VLOOKUP('Random Years'!P25,'Hist Returns'!$A$12:$D$107,3,FALSE))","v":{"v":9283.223302365946,"d":"9,283"}},{"$f":"($A25-$A24)/365.25*(S24+(Main!$I31*Main!$D$3))*(1+VLOOKUP('Random Years'!Q25,'Hist Returns'!$A$12:$D$107,3,FALSE))","v":{"v":-5062.211503573081,"d":"(5,062)"}},{"$f":"($A25-$A24)/365.25*(T24+(Main!$I31*Main!$D$3))*(1+VLOOKUP('Random Years'!R25,'Hist Returns'!$A$12:$D$107,3,FALSE))","v":{"v":42962.91336771863,"d":"42,963"}},{"$f":"($A25-$A24)/365.25*(U24+(Main!$I31*Main!$D$3))*(1+VLOOKUP('Random Years'!S25,'Hist Returns'!$A$12:$D$107,3,FALSE))","v":{"v":20423.336463649313,"d":"20,423"}},{"$f":"($A25-$A24)/365.25*(V24+(Main!$I31*Main!$D$3))*(1+VLOOKUP('Random Years'!T25,'Hist Returns'!$A$12:$D$107,3,FALSE))","v":{"v":12662.427569754735,"d":"12,662"}},{"$f":"($A25-$A24)/365.25*(W24+(Main!$I31*Main!$D$3))*(1+VLOOKUP('Random Years'!U25,'Hist Returns'!$A$12:$D$107,3,FALSE))","v":{"v":36368.50752414896,"d":"36,369"}},{"$f":"($A25-$A24)/365.25*(X24+(Main!$I31*Main!$D$3))*(1+VLOOKUP('Random Years'!V25,'Hist Returns'!$A$12:$D$107,3,FALSE))","v":{"v":4852.846733242618,"d":"4,853"}},{"$f":"($A25-$A24)/365.25*(Y24+(Main!$I31*Main!$D$3))*(1+VLOOKUP('Random Years'!W25,'Hist Returns'!$A$12:$D$107,3,FALSE))","v":{"v":-3074.445938655735,"d":"(3,074)"}},{"$f":"($A25-$A24)/365.25*(Z24+(Main!$I31*Main!$D$3))*(1+VLOOKUP('Random Years'!X25,'Hist Returns'!$A$12:$D$107,3,FALSE))","v":{"v":12612.921810304548,"d":"12,613"}},{"$f":"($A25-$A24)/365.25*(AA24+(Main!$I31*Main!$D$3))*(1+VLOOKUP('Random Years'!Y25,'Hist Returns'!$A$12:$D$107,3,FALSE))","v":{"v":3992.757330552408,"d":"3,993"}},{"$f":"($A25-$A24)/365.25*(AB24+(Main!$I31*Main!$D$3))*(1+VLOOKUP('Random Years'!Z25,'Hist Returns'!$A$12:$D$107,3,FALSE))","v":{"v":12311.281329330628,"d":"12,311"}},{"$f":"($A25-$A24)/365.25*(AC24+(Main!$I31*Main!$D$3))*(1+VLOOKUP('Random Years'!AA25,'Hist Returns'!$A$12:$D$107,3,FALSE))","v":{"v":20763.314650179265,"d":"20,763"}},{"$f":"($A25-$A24)/365.25*(AD24+(Main!$I31*Main!$D$3))*(1+VLOOKUP('Random Years'!AB25,'Hist Returns'!$A$12:$D$107,3,FALSE))","v":{"v":12030.286048452803,"d":"12,030"}},{"$f":"($A25-$A24)/365.25*(AE24+(Main!$I31*Main!$D$3))*(1+VLOOKUP('Random Years'!AC25,'Hist Returns'!$A$12:$D$107,3,FALSE))","v":{"v":5257.192788670271,"d":"5,257"}},{"$f":"($A25-$A24)/365.25*(AF24+(Main!$I31*Main!$D$3))*(1+VLOOKUP('Random Years'!AD25,'Hist Returns'!$A$12:$D$107,3,FALSE))","v":{"v":661.2995900992313,"d":"661"}},{"$f":"($A25-$A24)/365.25*(AG24+(Main!$I31*Main!$D$3))*(1+VLOOKUP('Random Years'!AE25,'Hist Returns'!$A$12:$D$107,3,FALSE))","v":{"v":3720.3299011912686,"d":"3,720"}},{"$f":"($A25-$A24)/365.25*(AH24+(Main!$I31*Main!$D$3))*(1+VLOOKUP('Random Years'!AF25,'Hist Returns'!$A$12:$D$107,3,FALSE))","v":{"v":11533.685810469806,"d":"11,534"}},{"$f":"($A25-$A24)/365.25*(AI24+(Main!$I31*Main!$D$3))*(1+VLOOKUP('Random Years'!AG25,'Hist Returns'!$A$12:$D$107,3,FALSE))","v":{"v":19059.06110918504,"d":"19,059"}},{"$f":"($A25-$A24)/365.25*(AJ24+(Main!$I31*Main!$D$3))*(1+VLOOKUP('Random Years'!AH25,'Hist Returns'!$A$12:$D$107,3,FALSE))","v":{"v":13603.484455868851,"d":"13,603"}},{"$f":"($A25-$A24)/365.25*(AK24+(Main!$I31*Main!$D$3))*(1+VLOOKUP('Random Years'!AI25,'Hist Returns'!$A$12:$D$107,3,FALSE))","v":{"v":-196.42517225531907,"d":"(196)"}},{"$f":"($A25-$A24)/365.25*(AL24+(Main!$I31*Main!$D$3))*(1+VLOOKUP('Random Years'!AJ25,'Hist Returns'!$A$12:$D$107,3,FALSE))","v":{"v":18043.12583460545,"d":"18,043"}},{"$f":"($A25-$A24)/365.25*(AM24+(Main!$I31*Main!$D$3))*(1+VLOOKUP('Random Years'!AK25,'Hist Returns'!$A$12:$D$107,3,FALSE))","v":{"v":20260.074234252294,"d":"20,260"}},{"$f":"($A25-$A24)/365.25*(AN24+(Main!$I31*Main!$D$3))*(1+VLOOKUP('Random Years'!AL25,'Hist Returns'!$A$12:$D$107,3,FALSE))","v":{"v":19650.58057056995,"d":"19,651"}},{"$f":"($A25-$A24)/365.25*(AO24+(Main!$I31*Main!$D$3))*(1+VLOOKUP('Random Years'!AM25,'Hist Returns'!$A$12:$D$107,3,FALSE))","v":{"v":30149.690757596713,"d":"30,150"}},{"$f":"($A25-$A24)/365.25*(AP24+(Main!$I31*Main!$D$3))*(1+VLOOKUP('Random Years'!AN25,'Hist Returns'!$A$12:$D$107,3,FALSE))","v":{"v":-168.2229841368265,"d":"(168)"}},{"$f":"($A25-$A24)/365.25*(AQ24+(Main!$I31*Main!$D$3))*(1+VLOOKUP('Random Years'!AO25,'Hist Returns'!$A$12:$D$107,3,FALSE))","v":{"v":-648.3521038015566,"d":"(648)"}},{"$f":"($A25-$A24)/365.25*(AR24+(Main!$I31*Main!$D$3))*(1+VLOOKUP('Random Years'!AP25,'Hist Returns'!$A$12:$D$107,3,FALSE))","v":{"v":-406.2827796724553,"d":"(406)"}},{"$f":"($A25-$A24)/365.25*(AS24+(Main!$I31*Main!$D$3))*(1+VLOOKUP('Random Years'!AQ25,'Hist Returns'!$A$12:$D$107,3,FALSE))","v":{"v":1200.423313491489,"d":"1,200"}},{"$f":"($A25-$A24)/365.25*(AT24+(Main!$I31*Main!$D$3))*(1+VLOOKUP('Random Years'!AR25,'Hist Returns'!$A$12:$D$107,3,FALSE))","v":{"v":13528.020850771069,"d":"13,528"}},{"$f":"($A25-$A24)/365.25*(AU24+(Main!$I31*Main!$D$3))*(1+VLOOKUP('Random Years'!AS25,'Hist Returns'!$A$12:$D$107,3,FALSE))","v":{"v":5285.7032618505755,"d":"5,286"}},{"$f":"($A25-$A24)/365.25*(AV24+(Main!$I31*Main!$D$3))*(1+VLOOKUP('Random Years'!AT25,'Hist Returns'!$A$12:$D$107,3,FALSE))","v":{"v":-13335.074556163181,"d":"(13,335)"}},{"$f":"($A25-$A24)/365.25*(AW24+(Main!$I31*Main!$D$3))*(1+VLOOKUP('Random Years'!AU25,'Hist Returns'!$A$12:$D$107,3,FALSE))","v":{"v":2994.772305179994,"d":"2,995"}},{"$f":"($A25-$A24)/365.25*(AX24+(Main!$I31*Main!$D$3))*(1+VLOOKUP('Random Years'!AV25,'Hist Returns'!$A$12:$D$107,3,FALSE))","v":{"v":6282.637602542916,"d":"6,283"}},{"$f":"($A25-$A24)/365.25*(AY24+(Main!$I31*Main!$D$3))*(1+VLOOKUP('Random Years'!AW25,'Hist Returns'!$A$12:$D$107,3,FALSE))","v":{"v":-10717.94126276487,"d":"(10,718)"}},{"$f":"($A25-$A24)/365.25*(AZ24+(Main!$I31*Main!$D$3))*(1+VLOOKUP('Random Years'!AX25,'Hist Returns'!$A$12:$D$107,3,FALSE))","v":{"v":7468.450577584481,"d":"7,468"}},{"$f":"($A25-$A24)/365.25*(BA24+(Main!$I31*Main!$D$3))*(1+VLOOKUP('Random Years'!AY25,'Hist Returns'!$A$12:$D$107,3,FALSE))","v":{"v":20095.25752112794,"d":"20,095"}},{"$f":"($A25-$A24)/365.25*(BB24+(Main!$I31*Main!$D$3))*(1+VLOOKUP('Random Years'!AZ25,'Hist Returns'!$A$12:$D$107,3,FALSE))","v":{"v":38619.43527160098,"d":"38,619"}},{"$f":"($A25-$A24)/365.25*(BC24+(Main!$I31*Main!$D$3))*(1+VLOOKUP('Random Years'!BA25,'Hist Returns'!$A$12:$D$107,3,FALSE))","v":{"v":27346.000731327946,"d":"27,346"}},{"$f":"($A25-$A24)/365.25*(BD24+(Main!$I31*Main!$D$3))*(1+VLOOKUP('Random Years'!BB25,'Hist Returns'!$A$12:$D$107,3,FALSE))","v":{"v":-2583.920026558616,"d":"(2,584)"}},{"$f":"($A25-$A24)/365.25*(BE24+(Main!$I31*Main!$D$3))*(1+VLOOKUP('Random Years'!BC25,'Hist Returns'!$A$12:$D$107,3,FALSE))","v":{"v":9888.847398293905,"d":"9,889"}},{"$f":"($A25-$A24)/365.25*(BF24+(Main!$I31*Main!$D$3))*(1+VLOOKUP('Random Years'!BD25,'Hist Returns'!$A$12:$D$107,3,FALSE))","v":{"v":15046.359007209556,"d":"15,046"}},{"$f":"($A25-$A24)/365.25*(BG24+(Main!$I31*Main!$D$3))*(1+VLOOKUP('Random Years'!BE25,'Hist Returns'!$A$12:$D$107,3,FALSE))","v":{"v":5713.475542887071,"d":"5,713"}},{"$f":"($A25-$A24)/365.25*(BH24+(Main!$I31*Main!$D$3))*(1+VLOOKUP('Random Years'!BF25,'Hist Returns'!$A$12:$D$107,3,FALSE))","v":{"v":-7207.958045882958,"d":"(7,208)"}},{"$f":"($A25-$A24)/365.25*(BI24+(Main!$I31*Main!$D$3))*(1+VLOOKUP('Random Years'!BG25,'Hist Returns'!$A$12:$D$107,3,FALSE))","v":{"v":8516.228165897644,"d":"8,516"}},{"$f":"($A25-$A24)/365.25*(BJ24+(Main!$I31*Main!$D$3))*(1+VLOOKUP('Random Years'!BH25,'Hist Returns'!$A$12:$D$107,3,FALSE))","v":{"v":23727.230325438617,"d":"23,727"}},{"$f":"($A25-$A24)/365.25*(BK24+(Main!$I31*Main!$D$3))*(1+VLOOKUP('Random Years'!BI25,'Hist Returns'!$A$12:$D$107,3,FALSE))","v":{"v":3768.736244281394,"d":"3,769"}},{"$f":"($A25-$A24)/365.25*(BL24+(Main!$I31*Main!$D$3))*(1+VLOOKUP('Random Years'!BJ25,'Hist Returns'!$A$12:$D$107,3,FALSE))","v":{"v":11423.451747130533,"d":"11,423"}},{"$f":"($A25-$A24)/365.25*(BM24+(Main!$I31*Main!$D$3))*(1+VLOOKUP('Random Years'!BK25,'Hist Returns'!$A$12:$D$107,3,FALSE))","v":{"v":15070.418080855252,"d":"15,070"}},{"$f":"($A25-$A24)/365.25*(BN24+(Main!$I31*Main!$D$3))*(1+VLOOKUP('Random Years'!BL25,'Hist Returns'!$A$12:$D$107,3,FALSE))","v":{"v":6332.281626785712,"d":"6,332"}},{"$f":"($A25-$A24)/365.25*(BO24+(Main!$I31*Main!$D$3))*(1+VLOOKUP('Random Years'!BM25,'Hist Returns'!$A$12:$D$107,3,FALSE))","v":{"v":14124.185250981302,"d":"14,124"}},{"$f":"($A25-$A24)/365.25*(BP24+(Main!$I31*Main!$D$3))*(1+VLOOKUP('Random Years'!BN25,'Hist Returns'!$A$12:$D$107,3,FALSE))","v":{"v":-6643.005052096693,"d":"(6,643)"}},{"$f":"($A25-$A24)/365.25*(BQ24+(Main!$I31*Main!$D$3))*(1+VLOOKUP('Random Years'!BO25,'Hist Returns'!$A$12:$D$107,3,FALSE))","v":{"v":4077.0989759313934,"d":"4,077"}},{"$f":"($A25-$A24)/365.25*(BR24+(Main!$I31*Main!$D$3))*(1+VLOOKUP('Random Years'!BP25,'Hist Returns'!$A$12:$D$107,3,FALSE))","v":{"v":16196.404969837633,"d":"16,196"}},{"$f":"($A25-$A24)/365.25*(BS24+(Main!$I31*Main!$D$3))*(1+VLOOKUP('Random Years'!BQ25,'Hist Returns'!$A$12:$D$107,3,FALSE))","v":{"v":18474.501005011,"d":"18,475"}},{"$f":"($A25-$A24)/365.25*(BT24+(Main!$I31*Main!$D$3))*(1+VLOOKUP('Random Years'!BR25,'Hist Returns'!$A$12:$D$107,3,FALSE))","v":{"v":12573.088100348941,"d":"12,573"}},{"$f":"($A25-$A24)/365.25*(BU24+(Main!$I31*Main!$D$3))*(1+VLOOKUP('Random Years'!BS25,'Hist Returns'!$A$12:$D$107,3,FALSE))","v":{"v":26752.642422793404,"d":"26,753"}},{"$f":"($A25-$A24)/365.25*(BV24+(Main!$I31*Main!$D$3))*(1+VLOOKUP('Random Years'!BT25,'Hist Returns'!$A$12:$D$107,3,FALSE))","v":{"v":3538.6471682283563,"d":"3,539"}},{"$f":"($A25-$A24)/365.25*(BW24+(Main!$I31*Main!$D$3))*(1+VLOOKUP('Random Years'!BU25,'Hist Returns'!$A$12:$D$107,3,FALSE))","v":{"v":-270.927985894012,"d":"(271)"}},{"$f":"($A25-$A24)/365.25*(BX24+(Main!$I31*Main!$D$3))*(1+VLOOKUP('Random Years'!BV25,'Hist Returns'!$A$12:$D$107,3,FALSE))","v":{"v":20331.466349168062,"d":"20,331"}},{"$f":"($A25-$A24)/365.25*(BY24+(Main!$I31*Main!$D$3))*(1+VLOOKUP('Random Years'!BW25,'Hist Returns'!$A$12:$D$107,3,FALSE))","v":{"v":10107.338162110389,"d":"10,107"}},{"$f":"($A25-$A24)/365.25*(BZ24+(Main!$I31*Main!$D$3))*(1+VLOOKUP('Random Years'!BX25,'Hist Returns'!$A$12:$D$107,3,FALSE))","v":{"v":-3502.058528522791,"d":"(3,502)"}},{"$f":"($A25-$A24)/365.25*(CA24+(Main!$I31*Main!$D$3))*(1+VLOOKUP('Random Years'!BY25,'Hist Returns'!$A$12:$D$107,3,FALSE))","v":{"v":5387.666038519654,"d":"5,388"}},{"$f":"($A25-$A24)/365.25*(CB24+(Main!$I31*Main!$D$3))*(1+VLOOKUP('Random Years'!BZ25,'Hist Returns'!$A$12:$D$107,3,FALSE))","v":{"v":7624.571931868815,"d":"7,625"}},{"$f":"($A25-$A24)/365.25*(CC24+(Main!$I31*Main!$D$3))*(1+VLOOKUP('Random Years'!CA25,'Hist Returns'!$A$12:$D$107,3,FALSE))","v":{"v":16400.419090253385,"d":"16,400"}},{"$f":"($A25-$A24)/365.25*(CD24+(Main!$I31*Main!$D$3))*(1+VLOOKUP('Random Years'!CB25,'Hist Returns'!$A$12:$D$107,3,FALSE))","v":{"v":3615.080758273477,"d":"3,615"}},{"$f":"($A25-$A24)/365.25*(CE24+(Main!$I31*Main!$D$3))*(1+VLOOKUP('Random Years'!CC25,'Hist Returns'!$A$12:$D$107,3,FALSE))","v":{"v":14734.860788136115,"d":"14,735"}},{"$f":"($A25-$A24)/365.25*(CF24+(Main!$I31*Main!$D$3))*(1+VLOOKUP('Random Years'!CD25,'Hist Returns'!$A$12:$D$107,3,FALSE))","v":{"v":14538.832279654707,"d":"14,539"}},{"$f":"($A25-$A24)/365.25*(CG24+(Main!$I31*Main!$D$3))*(1+VLOOKUP('Random Years'!CE25,'Hist Returns'!$A$12:$D$107,3,FALSE))","v":{"v":5142.802226333704,"d":"5,143"}},{"$f":"($A25-$A24)/365.25*(CH24+(Main!$I31*Main!$D$3))*(1+VLOOKUP('Random Years'!CF25,'Hist Returns'!$A$12:$D$107,3,FALSE))","v":{"v":21366.06252154055,"d":"21,366"}},{"$f":"($A25-$A24)/365.25*(CI24+(Main!$I31*Main!$D$3))*(1+VLOOKUP('Random Years'!CG25,'Hist Returns'!$A$12:$D$107,3,FALSE))","v":{"v":17330.60081576874,"d":"17,331"}},{"$f":"($A25-$A24)/365.25*(CJ24+(Main!$I31*Main!$D$3))*(1+VLOOKUP('Random Years'!CH25,'Hist Returns'!$A$12:$D$107,3,FALSE))","v":{"v":5044.599855144508,"d":"5,045"}},{"$f":"($A25-$A24)/365.25*(CK24+(Main!$I31*Main!$D$3))*(1+VLOOKUP('Random Years'!CI25,'Hist Returns'!$A$12:$D$107,3,FALSE))","v":{"v":-7856.863239443001,"d":"(7,857)"}},{"$f":"($A25-$A24)/365.25*(CL24+(Main!$I31*Main!$D$3))*(1+VLOOKUP('Random Years'!CJ25,'Hist Returns'!$A$12:$D$107,3,FALSE))","v":{"v":-2359.220677315853,"d":"(2,359)"}},{"$f":"($A25-$A24)/365.25*(CM24+(Main!$I31*Main!$D$3))*(1+VLOOKUP('Random Years'!CK25,'Hist Returns'!$A$12:$D$107,3,FALSE))","v":{"v":5171.419585613593,"d":"5,171"}},{"$f":"($A25-$A24)/365.25*(CN24+(Main!$I31*Main!$D$3))*(1+VLOOKUP('Random Years'!CL25,'Hist Returns'!$A$12:$D$107,3,FALSE))","v":{"v":19809.194631345057,"d":"19,809"}},{"$f":"($A25-$A24)/365.25*(CO24+(Main!$I31*Main!$D$3))*(1+VLOOKUP('Random Years'!CM25,'Hist Returns'!$A$12:$D$107,3,FALSE))","v":{"v":5012.162708363777,"d":"5,012"}},{"$f":"($A25-$A24)/365.25*(CP24+(Main!$I31*Main!$D$3))*(1+VLOOKUP('Random Years'!CN25,'Hist Returns'!$A$12:$D$107,3,FALSE))","v":{"v":22012.454794244026,"d":"22,012"}},{"$f":"($A25-$A24)/365.25*(CQ24+(Main!$I31*Main!$D$3))*(1+VLOOKUP('Random Years'!CO25,'Hist Returns'!$A$12:$D$107,3,FALSE))","v":{"v":-5213.2687047013615,"d":"(5,213)"}},{"$f":"($A25-$A24)/365.25*(CR24+(Main!$I31*Main!$D$3))*(1+VLOOKUP('Random Years'!CP25,'Hist Returns'!$A$12:$D$107,3,FALSE))","v":{"v":13899.44923134868,"d":"13,899"}},{"$f":"($A25-$A24)/365.25*(CS24+(Main!$I31*Main!$D$3))*(1+VLOOKUP('Random Years'!CQ25,'Hist Returns'!$A$12:$D$107,3,FALSE))","v":{"v":5565.65021503983,"d":"5,566"}},{"$f":"($A25-$A24)/365.25*(CT24+(Main!$I31*Main!$D$3))*(1+VLOOKUP('Random Years'!CR25,'Hist Returns'!$A$12:$D$107,3,FALSE))","v":{"v":20630.690901244754,"d":"20,631"}},{"$f":"($A25-$A24)/365.25*(CU24+(Main!$I31*Main!$D$3))*(1+VLOOKUP('Random Years'!CS25,'Hist Returns'!$A$12:$D$107,3,FALSE))","v":{"v":6395.851198003731,"d":"6,396"}},{"$f":"($A25-$A24)/365.25*(CV24+(Main!$I31*Main!$D$3))*(1+VLOOKUP('Random Years'!CT25,'Hist Returns'!$A$12:$D$107,3,FALSE))","v":{"v":4400.990121804317,"d":"4,401"}},{"$f":"($A25-$A24)/365.25*(CW24+(Main!$I31*Main!$D$3))*(1+VLOOKUP('Random Years'!CU25,'Hist Returns'!$A$12:$D$107,3,FALSE))","v":{"v":8908.935127490202,"d":"8,909"}},{"$f":"($A25-$A24)/365.25*(CX24+(Main!$I31*Main!$D$3))*(1+VLOOKUP('Random Years'!CV25,'Hist Returns'!$A$12:$D$107,3,FALSE))","v":{"v":11911.011277130134,"d":"11,911"}}]
[{"$f":"Main!A32","v":"2047-12-31"},{"$f":"Main!B32","v":93},{"$f":"($A26-$A25)/365.25*(C25+(Main!$I32*Main!$D$3))*(1+VLOOKUP('Random Years'!A26,'Hist Returns'!$A$12:$D$107,3,FALSE))","v":{"v":4214.784153643911,"d":"4,215"}},{"$f":"($A26-$A25)/365.25*(D25+(Main!$I32*Main!$D$3))*(1+VLOOKUP('Random Years'!B26,'Hist Returns'!$A$12:$D$107,3,FALSE))","v":{"v":-17441.521443002388,"d":"(17,442)"}},{"$f":"($A26-$A25)/365.25*(E25+(Main!$I32*Main!$D$3))*(1+VLOOKUP('Random Years'!C26,'Hist Returns'!$A$12:$D$107,3,FALSE))","v":{"v":-2927.070158837842,"d":"(2,927)"}},{"$f":"($A26-$A25)/365.25*(F25+(Main!$I32*Main!$D$3))*(1+VLOOKUP('Random Years'!D26,'Hist Returns'!$A$12:$D$107,3,FALSE))","v":{"v":-6720.295882082962,"d":"(6,720)"}},{"$f":"($A26-$A25)/365.25*(G25+(Main!$I32*Main!$D$3))*(1+VLOOKUP('Random Years'!E26,'Hist Returns'!$A$12:$D$107,3,FALSE))","v":{"v":-1784.3835192829156,"d":"(1,784)"}},{"$f":"($A26-$A25)/365.25*(H25+(Main!$I32*Main!$D$3))*(1+VLOOKUP('Random Years'!F26,'Hist Returns'!$A$12:$D$107,3,FALSE))","v":{"v":-4813.099535058985,"d":"(4,813)"}},{"$f":"($A26-$A25)/365.25*(I25+(Main!$I32*Main!$D$3))*(1+VLOOKUP('Random Years'!G26,'Hist Returns'!$A$12:$D$107,3,FALSE))","v":{"v":-6118.4185556004695,"d":"(6,118)"}},{"$f":"($A26-$A25)/365.25*(J25+(Main!$I32*Main!$D$3))*(1+VLOOKUP('Random Years'!H26,'Hist Returns'!$A$12:$D$107,3,FALSE))","v":{"v":17306.480031014566,"d":"17,306"}},{"$f":"($A26-$A25)/365.25*(K25+(Main!$I32*Main!$D$3))*(1+VLOOKUP('Random Years'!I26,'Hist Returns'!$A$12:$D$107,3,FALSE))","v":{"v":31696.786682009784,"d":"31,697"}},{"$f":"($A26-$A25)/365.25*(L25+(Main!$I32*Main!$D$3))*(1+VLOOKUP('Random Years'!J26,'Hist Returns'!$A$12:$D$107,3,FALSE))","v":{"v":-23508.523457969513,"d":"(23,509)"}},{"$f":"($A26-$A25)/365.25*(M25+(Main!$I32*Main!$D$3))*(1+VLOOKUP('Random Years'!K26,'Hist Returns'!$A$12:$D$107,3,FALSE))","v":{"v":-19944.42012901227,"d":"(19,944)"}},{"$f":"($A26-$A25)/365.25*(N25+(Main!$I32*Main!$D$3))*(1+VLOOKUP('Random Years'!L26,'Hist Returns'!$A$12:$D$107,3,FALSE))","v":{"v":4878.961984205529,"d":"4,879"}},{"$f":"($A26-$A25)/365.25*(O25+(Main!$I32*Main!$D$3))*(1+VLOOKUP('Random Years'!M26,'Hist Returns'!$A$12:$D$107,3,FALSE))","v":{"v":3460.5599173790833,"d":"3,461"}},{"$f":"($A26-$A25)/365.25*(P25+(Main!$I32*Main!$D$3))*(1+VLOOKUP('Random Years'!N26,'Hist Returns'!$A$12:$D$107,3,FALSE))","v":{"v":-7759.324876253358,"d":"(7,759)"}},{"$f":"($A26-$A25)/365.25*(Q25+(Main!$I32*Main!$D$3))*(1+VLOOKUP('Random Years'!O26,'Hist Returns'!$A$12:$D$107,3,FALSE))","v":{"v":-21598.03408095052,"d":"(21,598)"}},{"$f":"($A26-$A25)/365.25*(R25+(Main!$I32*Main!$D$3))*(1+VLOOKUP('Random Years'!P26,'Hist Returns'!$A$12:$D$107,3,FALSE))","v":{"v":-3271.9335043982965,"d":"(3,272)"}},{"$f":"($A26-$A25)/365.25*(S25+(Main!$I32*Main!$D$3))*(1+VLOOKUP('Random Years'!Q26,'Hist Returns'!$A$12:$D$107,3,FALSE))","v":{"v":-17726.283019492636,"d":"(17,726)"}},{"$f":"($A26-$A25)/365.25*(T25+(Main!$I32*Main!$D$3))*(1+VLOOKUP('Random Years'!R26,'Hist Returns'!$A$12:$D$107,3,FALSE))","v":{"v":31535.829974376345,"d":"31,536"}},{"$f":"($A26-$A25)/365.25*(U25+(Main!$I32*Main!$D$3))*(1+VLOOKUP('Random Years'!S26,'Hist Returns'!$A$12:$D$107,3,FALSE))","v":{"v":8388.76614612569,"d":"8,389"}},{"$f":"($A26-$A25)/365.25*(V25+(Main!$I32*Main!$D$3))*(1+VLOOKUP('Random Years'!T26,'Hist Returns'!$A$12:$D$107,3,FALSE))","v":{"v":239.822564567655,"d":"240"}},{"$f":"($A26-$A25)/365.25*(W25+(Main!$I32*Main!$D$3))*(1+VLOOKUP('Random Years'!U26,'Hist Returns'!$A$12:$D$107,3,FALSE))","v":{"v":26300.38063095255,"d":"26,300"}},{"$f":"($A26-$A25)/365.25*(X25+(Main!$I32*Main!$D$3))*(1+VLOOKUP('Random Years'!V26,'Hist Returns'!$A$12:$D$107,3,FALSE))","v":{"v":-7780.0644746304515,"d":"(7,780)"}},{"$f":"($A26-$A25)/365.25*(Y25+(Main!$I32*Main!$D$3))*(1+VLOOKUP('Random Years'!W26,'Hist Returns'!$A$12:$D$107,3,FALSE))","v":{"v":-15588.448637431298,"d":"(15,588)"}},{"$f":"($A26-$A25)/365.25*(Z25+(Main!$I32*Main!$D$3))*(1+VLOOKUP('Random Years'!X26,'Hist Returns'!$A$12:$D$107,3,FALSE))","v":{"v":199.0371747563577,"d":"199"}},{"$f":"($A26-$A25)/365.25*(AA25+(Main!$I32*Main!$D$3))*(1+VLOOKUP('Random Years'!Y26,'Hist Returns'!$A$12:$D$107,3,FALSE))","v":{"v":-8839.907281889204,"d":"(8,840)"}},{"$f":"($A26-$A25)/365.25*(AB25+(Main!$I32*Main!$D$3))*(1+VLOOKUP('Random Years'!Z26,'Hist Returns'!$A$12:$D$107,3,FALSE))","v":{"v":-115.45771644490036,"d":"(115)"}},{"$f":"($A26-$A25)/365.25*(AC25+(Main!$I32*Main!$D$3))*(1+VLOOKUP('Random Years'!AA26,'Hist Returns'!$A$12:$D$107,3,FALSE))","v":{"v":9160.405822596913,"d":"9,160"}},{"$f":"($A26-$A25)/365.25*(AD25+(Main!$I32*Main!$D$3))*(1+VLOOKUP('Random Years'!AB26,'Hist Returns'!$A$12:$D$107,3,FALSE))","v":{"v":-397.74390960945874,"d":"(398)"}},{"$f":"($A26-$A25)/365.25*(AE25+(Main!$I32*Main!$D$3))*(1+VLOOKUP('Random Years'!AC26,'Hist Returns'!$A$12:$D$107,3,FALSE))","v":{"v":-7300.607484989999,"d":"(7,301)"}},{"$f":"($A26-$A25)/365.25*(AF25+(Main!$I32*Main!$D$3))*(1+VLOOKUP('Random Years'!AD26,'Hist Returns'!$A$12:$D$107,3,FALSE))","v":{"v":-12321.105635778733,"d":"(12,321)"}},{"$f":"($A26-$A25)/365.25*(AG25+(Main!$I32*Main!$D$3))*(1+VLOOKUP('Random Years'!AE26,'Hist Returns'!$A$12:$D$107,3,FALSE))","v":{"v":-9379.122127309236,"d":"(9,379)"}},{"$f":"($A26-$A25)/365.25*(AH25+(Main!$I32*Main!$D$3))*(1+VLOOKUP('Random Years'!AF26,'Hist Returns'!$A$12:$D$107,3,FALSE))","v":{"v":-892.1110427729969,"d":"(892)"}},{"$f":"($A26-$A25)/365.25*(AI25+(Main!$I32*Main!$D$3))*(1+VLOOKUP('Random Years'!AG26,'Hist Returns'!$A$12:$D$107,3,FALSE))","v":{"v":6652.843709409308,"d":"6,653"}},{"$f":"($A26-$A25)/365.25*(AJ25+(Main!$I32*Main!$D$3))*(1+VLOOKUP('Random Years'!AH26,'Hist Returns'!$A$12:$D$107,3,FALSE))","v":{"v":1236.4362710665944,"d":"1,236"}},{"$f":"($A26-$A25)/365.25*(AK25+(Main!$I32*Main!$D$3))*(1+VLOOKUP('Random Years'!AI26,'Hist Returns'!$A$12:$D$107,3,FALSE))","v":{"v":-13138.681064100905,"d":"(13,139)"}},{"$f":"($A26-$A25)/365.25*(AL25+(Main!$I32*Main!$D$3))*(1+VLOOKUP('Random Years'!AJ26,'Hist Returns'!$A$12:$D$107,3,FALSE))","v":{"v":5875.341410567489,"d":"5,875"}},{"$f":"($A26-$A25)/365.25*(AM25+(Main!$I32*Main!$D$3))*(1+VLOOKUP('Random Years'!AK26,'Hist Returns'!$A$12:$D$107,3,FALSE))","v":{"v":8266.065927476136,"d":"8,266"}},{"$f":"($A26-$A25)/365.25*(AN25+(Main!$I32*Main!$D$3))*(1+VLOOKUP('Random Years'!AL26,'Hist Returns'!$A$12:$D$107,3,FALSE))","v":{"v":7528.3220250347595,"d":"7,528"}},{"$f":"($A26-$A25)/365.25*(AO25+(Main!$I32*Main!$D$3))*(1+VLOOKUP('Random Years'!AM26,'Hist Returns'!$A$12:$D$107,3,FALSE))","v":{"v":18336.664344655866,"d":"18,337"}},{"$f":"($A26-$A25)/365.25*(AP25+(Main!$I32*Main!$D$3))*(1+VLOOKUP('Random Years'!AN26,'Hist Returns'!$A$12:$D$107,3,FALSE))","v":{"v":-13005.857403116788,"d":"(13,006)"}},{"$f":"($A26-$A25)/365.25*(AQ25+(Main!$I32*Main!$D$3))*(1+VLOOKUP('Random Years'!AO26,'Hist Returns'!$A$12:$D$107,3,FALSE))","v":{"v":-13120.62844472747,"d":"(13,121)"}},{"$f":"($A26-$A25)/365.25*(AR25+(Main!$I32*Main!$D$3))*(1+VLOOKUP('Random Years'!AP26,'Hist Returns'!$A$12:$D$107,3,FALSE))","v":{"v":-13368.741058524225,"d":"(13,369)"}},{"$f":"($A26-$A25)/365.25*(AS25+(Main!$I32*Main!$D$3))*(1+VLOOKUP('Random Years'!AQ26,'Hist Returns'!$A$12:$D$107,3,FALSE))","v":{"v":-11866.557143626258,"d":"(11,867)"}},{"$f":"($A26-$A25)/365.25*(AT25+(Main!$I32*Main!$D$3))*(1+VLOOKUP('Random Years'!AR26,'Hist Returns'!$A$12:$D$107,3,FALSE))","v":{"v":1107.852019397257,"d":"1,108"}},{"$f":"($A26-$A25)/365.25*(AU25+(Main!$I32*Main!$D$3))*(1+VLOOKUP('Random Years'!AS26,'Hist Returns'!$A$12:$D$107,3,FALSE))","v":{"v":-7228.6486404940915,"d":"(7,229)"}},{"$f":"($A26-$A25)/365.25*(AV25+(Main!$I32*Main!$D$3))*(1+VLOOKUP('Random Years'!AT26,'Hist Returns'!$A$12:$D$107,3,FALSE))","v":{"v":-26169.90921661049,"d":"(26,170)"}},{"$f":"($A26-$A25)/365.25*(AW25+(Main!$I32*Main!$D$3))*(1+VLOOKUP('Random Years'!AU26,'Hist Returns'!$A$12:$D$107,3,FALSE))","v":{"v":-10079.810954689949,"d":"(10,080)"}},{"$f":"($A26-$A25)/365.25*(AX25+(Main!$I32*Main!$D$3))*(1+VLOOKUP('Random Years'!AV26,'Hist Returns'!$A$12:$D$107,3,FALSE))","v":{"v":-6158.062024183635,"d":"(6,158)"}},{"$f":"($A26-$A25)/365.25*(AY25+(Main!$I32*Main!$D$3))*(1+VLOOKUP('Random Years'!AW26,'Hist Returns'!$A$12:$D$107,3,FALSE))","v":{"v":-23200.22147763445,"d":"(23,200)"}},{"$f":"($A26-$A25)/365.25*(AZ25+(Main!$I32*Main!$D$3))*(1+VLOOKUP('Random Years'!AX26,'Hist Returns'!$A$12:$D$107,3,FALSE))","v":{"v":-4968.8635165743135,"d":"(4,969)"}},{"$f":"($A26-$A25)/365.25*(BA25+(Main!$I32*Main!$D$3))*(1+VLOOKUP('Random Years'!AY26,'Hist Returns'!$A$12:$D$107,3,FALSE))","v":{"v":8148.3448754561905,"d":"8,148"}},{"$f":"($A26-$A25)/365.25*(BB25+(Main!$I32*Main!$D$3))*(1+VLOOKUP('Random Years'!AZ26,'Hist Returns'!$A$12:$D$107,3,FALSE))","v":{"v":26257.933169143667,"d":"26,258"}},{"$f":"($A26-$A25)/365.25*(BC25+(Main!$I32*Main!$D$3))*(1+VLOOKUP('Random Years'!BA26,'Hist Returns'!$A$12:$D$107,3,FALSE))","v":{"v":15633.857982024527,"d":"15,634"}},{"$f":"($A26-$A25)/365.25*(BD25+(Main!$I32*Main!$D$3))*(1+VLOOKUP('Random Years'!BB26,'Hist Returns'!$A$12:$D$107,3,FALSE))","v":{"v":-16024.390103346761,"d":"(16,024)"}},{"$f":"($A26-$A25)/365.25*(BE25+(Main!$I32*Main!$D$3))*(1+VLOOKUP('Random Years'!BC26,'Hist Returns'!$A$12:$D$107,3,FALSE))","v":{"v":-2649.486191056064,"d":"(2,649)"}},{"$f":"($A26-$A25)/365.25*(BF25+(Main!$I32*Main!$D$3))*(1+VLOOKUP('Random Years'!BD26,'Hist Returns'!$A$12:$D$107,3,FALSE))","v":{"v":2670.2401620825945,"d":"2,670"}},{"$f":"($A26-$A25)/365.25*(BG25+(Main!$I32*Main!$D$3))*(1+VLOOKUP('Random Years'!BE26,'Hist Returns'!$A$12:$D$107,3,FALSE))","v":{"v":-6802.134885133241,"d":"(6,802)"}},{"$f":"($A26-$A25)/365.25*(BH25+(Main!$I32*Main!$D$3))*(1+VLOOKUP('Random Years'!BF26,'Hist Returns'!$A$12:$D$107,3,FALSE))","v":{"v":-20312.725422251246,"d":"(20,313)"}},{"$f":"($A26-$A25)/365.25*(BI25+(Main!$I32*Main!$D$3))*(1+VLOOKUP('Random Years'!BG26,'Hist Returns'!$A$12:$D$107,3,FALSE))","v":{"v":-4035.543366602826,"d":"(4,036)"}},{"$f":"($A26-$A25)/365.25*(BJ25+(Main!$I32*Main!$D$3))*(1+VLOOKUP('Random Years'!BH26,'Hist Returns'!$A$12:$D$107,3,FALSE))","v":{"v":12070.342885899785,"d":"12,070"}},{"$f":"($A26-$A25)/365.25*(BK25+(Main!$I32*Main!$D$3))*(1+VLOOKUP('Random Years'!BI26,'Hist Returns'!$A$12:$D$107,3,FALSE))","v":{"v":-9191.66783881254,"d":"(9,192)"}},{"$f":"($A26-$A25)/365.25*(BL25+(Main!$I32*Main!$D$3))*(1+VLOOKUP('Random Years'!BJ26,'Hist Returns'!$A$12:$D$107,3,FALSE))","v":{"v":-1114.167794825093,"d":"(1,114)"}},{"$f":"($A26-$A25)/365.25*(BM25+(Main!$I32*Main!$D$3))*(1+VLOOKUP('Random Years'!BK26,'Hist Returns'!$A$12:$D$107,3,FALSE))","v":{"v":2694.7307576923163,"d":"2,695"}},{"$f":"($A26-$A25)/365.25*(BN25+(Main!$I32*Main!$D$3))*(1+VLOOKUP('Random Years'!BL26,'Hist Returns'!$A$12:$D$107,3,FALSE))","v":{"v":-6380.487617047317,"d":"(6,380)"}},{"$f":"($A26-$A25)/365.25*(BO25+(Main!$I32*Main!$D$3))*(1+VLOOKUP('Random Years'!BM26,'Hist Returns'!$A$12:$D$107,3,FALSE))","v":{"v":1720.87317122961,"d":"1,721"}},{"$f":"($A26-$A25)/365.25*(BP25+(Main!$I32*Main!$D$3))*(1+VLOOKUP('Random Years'!BN26,'Hist Returns'!$A$12:$D$107,3,FALSE))","v":{"v":-20177.13217781554,"d":"(20,177)"}},{"$f":"($A26-$A25)/365.25*(BQ25+(Main!$I32*Main!$D$3))*(1+VLOOKUP('Random Years'!BO26,'Hist Returns'!$A$12:$D$107,3,FALSE))","v":{"v":-9041.46305087102,"d":"(9,041)"}},{"$f":"($A26-$A25)/365.25*(BR25+(Main!$I32*Main!$D$3))*(1+VLOOKUP('Random Years'!BP26,'Hist Returns'!$A$12:$D$107,3,FALSE))","v":{"v":3963.9843244253134,"d":"3,964"}},{"$f":"($A26-$A25)/365.25*(BS25+(Main!$I32*Main!$D$3))*(1+VLOOKUP('Random Years'!BQ26,'Hist Returns'!$A$12:$D$107,3,FALSE))","v":{"v":6410.605504176942,"d":"6,411"}},{"$f":"($A26-$A25)/365.25*(BT25+(Main!$I32*Main!$D$3))*(1+VLOOKUP('Random Years'!BR26,'Hist Returns'!$A$12:$D$107,3,FALSE))","v":{"v":165.1603568715097,"d":"165"}},{"$f":"($A26-$A25)/365.25*(BU25+(Main!$I32*Main!$D$3))*(1+VLOOKUP('Random Years'!BS26,'Hist Returns'!$A$12:$D$107,3,FALSE))","v":{"v":15300.841891853244,"d":"15,301"}},{"$f":"($A26-$A25)/365.25*(BV25+(Main!$I32*Main!$D$3))*(1+VLOOKUP('Random Years'!BT26,'Hist Returns'!$A$12:$D$107,3,FALSE))","v":{"v":-9192.994544393801,"d":"(9,193)"}},{"$f":"($A26-$A25)/365.25*(BW25+(Main!$I32*Main!$D$3))*(1+VLOOKUP('Random Years'!BU26,'Hist Returns'!$A$12:$D$107,3,FALSE))","v":{"v":-13111.943107666928,"d":"(13,112)"}},{"$f":"($A26-$A25)/365.25*(BX25+(Main!$I32*Main!$D$3))*(1+VLOOKUP('Random Years'!BV26,'Hist Returns'!$A$12:$D$107,3,FALSE))","v":{"v":8180.499474576611,"d":"8,180"}},{"$f":"($A26-$A25)/365.25*(BY25+(Main!$I32*Main!$D$3))*(1+VLOOKUP('Random Years'!BW26,'Hist Returns'!$A$12:$D$107,3,FALSE))","v":{"v":-2425.9399337005657,"d":"(2,426)"}},{"$f":"($A26-$A25)/365.25*(BZ25+(Main!$I32*Main!$D$3))*(1+VLOOKUP('Random Years'!BX26,'Hist Returns'!$A$12:$D$107,3,FALSE))","v":{"v":-17031.89593765269,"d":"(17,032)"}},{"$f":"($A26-$A25)/365.25*(CA25+(Main!$I32*Main!$D$3))*(1+VLOOKUP('Random Years'!BY26,'Hist Returns'!$A$12:$D$107,3,FALSE))","v":{"v":-7383.411378813507,"d":"(7,383)"}},{"$f":"($A26-$A25)/365.25*(CB25+(Main!$I32*Main!$D$3))*(1+VLOOKUP('Random Years'!BZ26,'Hist Returns'!$A$12:$D$107,3,FALSE))","v":{"v":-4810.373051146321,"d":"(4,810)"}},{"$f":"($A26-$A25)/365.25*(CC25+(Main!$I32*Main!$D$3))*(1+VLOOKUP('Random Years'!CA26,'Hist Returns'!$A$12:$D$107,3,FALSE))","v":{"v":4048.58657780275,"d":"4,049"}},{"$f":"($A26-$A25)/365.25*(CD25+(Main!$I32*Main!$D$3))*(1+VLOOKUP('Random Years'!CB26,'Hist Returns'!$A$12:$D$107,3,FALSE))","v":{"v":-9208.347215574042,"d":"(9,208)"}},{"$f":"($A26-$A25)/365.25*(CE25+(Main!$I32*Main!$D$3))*(1+VLOOKUP('Random Years'!CC26,'Hist Returns'!$A$12:$D$107,3,FALSE))","v":{"v":2406.78050277628,"d":"2,407"}},{"$f":"($A26-$A25)/365.25*(CF25+(Main!$I32*Main!$D$3))*(1+VLOOKUP('Random Years'!CD26,'Hist Returns'!$A$12:$D$107,3,FALSE))","v":{"v":2215.620712329625,"d":"2,216"}},{"$f":"($A26-$A25)/365.25*(CG25+(Main!$I32*Main!$D$3))*(1+VLOOKUP('Random Years'!CE26,'Hist Returns'!$A$12:$D$107,3,FALSE))","v":{"v":-7298.96307087584,"d":"(7,299)"}},{"$f":"($A26-$A25)/365.25*(CH25+(Main!$I32*Main!$D$3))*(1+VLOOKUP('Random Years'!CF26,'Hist Returns'!$A$12:$D$107,3,FALSE))","v":{"v":8967.171961485199,"d":"8,967"}},{"$f":"($A26-$A25)/365.25*(CI25+(Main!$I32*Main!$D$3))*(1+VLOOKUP('Random Years'!CG26,'Hist Returns'!$A$12:$D$107,3,FALSE))","v":{"v":5139.289133235731,"d":"5,139"}},{"$f":"($A26-$A25)/365.25*(CJ25+(Main!$I32*Main!$D$3))*(1+VLOOKUP('Random Years'!CH26,'Hist Returns'!$A$12:$D$107,3,FALSE))","v":{"v":-7614.052271009646,"d":"(7,614)"}},{"$f":"($A26-$A25)/365.25*(CK25+(Main!$I32*Main!$D$3))*(1+VLOOKUP('Random Years'!CI26,'Hist Returns'!$A$12:$D$107,3,FALSE))","v":{"v":-20528.955314411265,"d":"(20,529)"}},{"$f":"($A26-$A25)/365.25*(CL25+(Main!$I32*Main!$D$3))*(1+VLOOKUP('Random Years'!CJ26,'Hist Returns'!$A$12:$D$107,3,FALSE))","v":{"v":-14826.074349895865,"d":"(14,826)"}},{"$f":"($A26-$A25)/365.25*(CM25+(Main!$I32*Main!$D$3))*(1+VLOOKUP('Random Years'!CK26,'Hist Returns'!$A$12:$D$107,3,FALSE))","v":{"v":-7294.252520651754,"d":"(7,294)"}},{"$f":"($A26-$A25)/365.25*(CN25+(Main!$I32*Main!$D$3))*(1+VLOOKUP('Random Years'!CL26,'Hist Returns'!$A$12:$D$107,3,FALSE))","v":{"v":7606.945946822845,"d":"7,607"}},{"$f":"($A26-$A25)/365.25*(CO25+(Main!$I32*Main!$D$3))*(1+VLOOKUP('Random Years'!CM26,'Hist Returns'!$A$12:$D$107,3,FALSE))","v":{"v":-7431.12449207146,"d":"(7,431)"}},{"$f":"($A26-$A25)/365.25*(CP25+(Main!$I32*Main!$D$3))*(1+VLOOKUP('Random Years'!CN26,'Hist Returns'!$A$12:$D$107,3,FALSE))","v":{"v":9922.229751820581,"d":"9,922"}},{"$f":"($A26-$A25)/365.25*(CQ25+(Main!$I32*Main!$D$3))*(1+VLOOKUP('Random Years'!CO26,'Hist Returns'!$A$12:$D$107,3,FALSE))","v":{"v":-18006.664487940645,"d":"(18,007)"}},{"$f":"($A26-$A25)/365.25*(CR25+(Main!$I32*Main!$D$3))*(1+VLOOKUP('Random Years'!CP26,'Hist Returns'!$A$12:$D$107,3,FALSE))","v":{"v":1574.7280354475693,"d":"1,575"}},{"$f":"($A26-$A25)/365.25*(CS25+(Main!$I32*Main!$D$3))*(1+VLOOKUP('Random Years'!CQ26,'Hist Returns'!$A$12:$D$107,3,FALSE))","v":{"v":-6877.783592677187,"d":"(6,878)"}},{"$f":"($A26-$A25)/365.25*(CT25+(Main!$I32*Main!$D$3))*(1+VLOOKUP('Random Years'!CR26,'Hist Returns'!$A$12:$D$107,3,FALSE))","v":{"v":8633.127390513717,"d":"8,633"}},{"$f":"($A26-$A25)/365.25*(CU25+(Main!$I32*Main!$D$3))*(1+VLOOKUP('Random Years'!CS26,'Hist Returns'!$A$12:$D$107,3,FALSE))","v":{"v":-6332.014608434323,"d":"(6,332)"}},{"$f":"($A26-$A25)/365.25*(CV25+(Main!$I32*Main!$D$3))*(1+VLOOKUP('Random Years'!CT26,'Hist Returns'!$A$12:$D$107,3,FALSE))","v":{"v":-8664.057773865663,"d":"(8,664)"}},{"$f":"($A26-$A25)/365.25*(CW25+(Main!$I32*Main!$D$3))*(1+VLOOKUP('Random Years'!CU26,'Hist Returns'!$A$12:$D$107,3,FALSE))","v":{"v":-3673.927929042096,"d":"(3,674)"}},{"$f":"($A26-$A25)/365.25*(CX25+(Main!$I32*Main!$D$3))*(1+VLOOKUP('Random Years'!CV26,'Hist Returns'!$A$12:$D$107,3,FALSE))","v":{"v":-518.1354050990716,"d":"(518)"}}]
[{"$f":"Main!A33","v":"2048-12-30"},{"$f":"Main!B33","v":94},{"$f":"($A27-$A26)/365.25*(C26+(Main!$I33*Main!$D$3))*(1+VLOOKUP('Random Years'!A27,'Hist Returns'!$A$12:$D$107,3,FALSE))","v":{"v":-9167.666736857052,"d":"(9,168)"}},{"$f":"($A27-$A26)/365.25*(D26+(Main!$I33*Main!$D$3))*(1+VLOOKUP('Random Years'!B27,'Hist Returns'!$A$12:$D$107,3,FALSE))","v":{"v":-30598.66347422679,"d":"(30,599)"}},{"$f":"($A27-$A26)/365.25*(E26+(Main!$I33*Main!$D$3))*(1+VLOOKUP('Random Years'!C27,'Hist Returns'!$A$12:$D$107,3,FALSE))","v":{"v":-17673.73298233463,"d":"(17,674)"}},{"$f":"($A27-$A26)/365.25*(F26+(Main!$I33*Main!$D$3))*(1+VLOOKUP('Random Years'!D27,'Hist Returns'!$A$12:$D$107,3,FALSE))","v":{"v":-20768.363834437165,"d":"(20,768)"}},{"$f":"($A27-$A26)/365.25*(G26+(Main!$I33*Main!$D$3))*(1+VLOOKUP('Random Years'!E27,'Hist Returns'!$A$12:$D$107,3,FALSE))","v":{"v":-15932.97160268293,"d":"(15,933)"}},{"$f":"($A27-$A26)/365.25*(H26+(Main!$I33*Main!$D$3))*(1+VLOOKUP('Random Years'!F27,'Hist Returns'!$A$12:$D$107,3,FALSE))","v":{"v":-18028.787101658723,"d":"(18,029)"}},{"$f":"($A27-$A26)/365.25*(I26+(Main!$I33*Main!$D$3))*(1+VLOOKUP('Random Years'!G27,'Hist Returns'!$A$12:$D$107,3,FALSE))","v":{"v":-19270.742127983856,"d":"(19,271)"}},{"$f":"($A27-$A26)/365.25*(J26+(Main!$I33*Main!$D$3))*(1+VLOOKUP('Random Years'!H27,'Hist Returns'!$A$12:$D$107,3,FALSE))","v":{"v":4212.691259302001,"d":"4,213"}},{"$f":"($A27-$A26)/365.25*(K26+(Main!$I33*Main!$D$3))*(1+VLOOKUP('Random Years'!I27,'Hist Returns'!$A$12:$D$107,3,FALSE))","v":{"v":18535.474116762452,"d":"18,535"}},{"$f":"($A27-$A26)/365.25*(L26+(Main!$I33*Main!$D$3))*(1+VLOOKUP('Random Years'!J27,'Hist Returns'!$A$12:$D$107,3,FALSE))","v":{"v":-36654.15761286136,"d":"(36,654)"}},{"$f":"($A27-$A26)/365.25*(M26+(Main!$I33*Main!$D$3))*(1+VLOOKUP('Random Years'!K27,'Hist Returns'!$A$12:$D$107,3,FALSE))","v":{"v":-33103.33462082923,"d":"(33,103)"}},{"$f":"($A27-$A26)/365.25*(N26+(Main!$I33*Main!$D$3))*(1+VLOOKUP('Random Years'!L27,'Hist Returns'!$A$12:$D$107,3,FALSE))","v":{"v":-8532.465298347506,"d":"(8,532)"}},{"$f":"($A27-$A26)/365.25*(O26+(Main!$I33*Main!$D$3))*(1+VLOOKUP('Random Years'!M27,'Hist Returns'!$A$12:$D$107,3,FALSE))","v":{"v":-9741.97257681081,"d":"(9,742)"}},{"$f":"($A27-$A26)/365.25*(P26+(Main!$I33*Main!$D$3))*(1+VLOOKUP('Random Years'!N27,'Hist Returns'!$A$12:$D$107,3,FALSE))","v":{"v":-21579.96911068754,"d":"(21,580)"}},{"$f":"($A27-$A26)/365.25*(Q26+(Main!$I33*Main!$D$3))*(1+VLOOKUP('Random Years'!O27,'Hist Returns'!$A$12:$D$107,3,FALSE))","v":{"v":-34931.96664794189,"d":"(34,932)"}},{"$f":"($A27-$A26)/365.25*(R26+(Main!$I33*Main!$D$3))*(1+VLOOKUP('Random Years'!P27,'Hist Returns'!$A$12:$D$107,3,FALSE))","v":{"v":-17236.5210680954,"d":"(17,237)"}},{"$f":"($A27-$A26)/365.25*(S26+(Main!$I33*Main!$D$3))*(1+VLOOKUP('Random Years'!Q27,'Hist Returns'!$A$12:$D$107,3,FALSE))","v":{"v":-32398.866585927033,"d":"(32,399)"}},{"$f":"($A27-$A26)/365.25*(T26+(Main!$I33*Main!$D$3))*(1+VLOOKUP('Random Years'!R27,'Hist Returns'!$A$12:$D$107,3,FALSE))","v":{"v":20423.899116659548,"d":"20,424"}},{"$f":"($A27-$A26)/365.25*(U26+(Main!$I33*Main!$D$3))*(1+VLOOKUP('Random Years'!S27,'Hist Returns'!$A$12:$D$107,3,FALSE))","v":{"v":-4792.022872807186,"d":"(4,792)"}},{"$f":"($A27-$A26)/365.25*(V26+(Main!$I33*Main!$D$3))*(1+VLOOKUP('Random Years'!T27,'Hist Returns'!$A$12:$D$107,3,FALSE))","v":{"v":-12916.237927287037,"d":"(12,916)"}},{"$f":"($A27-$A26)/365.25*(W26+(Main!$I33*Main!$D$3))*(1+VLOOKUP('Random Years'!U27,'Hist Returns'!$A$12:$D$107,3,FALSE))","v":{"v":13882.777302113613,"d":"13,883"}},{"$f":"($A27-$A26)/365.25*(X26+(Main!$I33*Main!$D$3))*(1+VLOOKUP('Random Years'!V27,'Hist Returns'!$A$12:$D$107,3,FALSE))","v":{"v":-21741.56460129468,"d":"(21,742)"}},{"$f":"($A27-$A26)/365.25*(Y26+(Main!$I33*Main!$D$3))*(1+VLOOKUP('Random Years'!W27,'Hist Returns'!$A$12:$D$107,3,FALSE))","v":{"v":-29173.80275669427,"d":"(29,174)"}},{"$f":"($A27-$A26)/365.25*(Z26+(Main!$I33*Main!$D$3))*(1+VLOOKUP('Random Years'!X27,'Hist Returns'!$A$12:$D$107,3,FALSE))","v":{"v":-13633.09728072856,"d":"(13,633)"}},{"$f":"($A27-$A26)/365.25*(AA26+(Main!$I33*Main!$D$3))*(1+VLOOKUP('Random Years'!Y27,'Hist Returns'!$A$12:$D$107,3,FALSE))","v":{"v":-22351.731237721036,"d":"(22,352)"}},{"$f":"($A27-$A26)/365.25*(AB26+(Main!$I33*Main!$D$3))*(1+VLOOKUP('Random Years'!Z27,'Hist Returns'!$A$12:$D$107,3,FALSE))","v":{"v":-13428.95211045057,"d":"(13,429)"}},{"$f":"($A27-$A26)/365.25*(AC26+(Main!$I33*Main!$D$3))*(1+VLOOKUP('Random Years'!AA27,'Hist Returns'!$A$12:$D$107,3,FALSE))","v":{"v":-4568.109280957812,"d":"(4,568)"}},{"$f":"($A27-$A26)/365.25*(AD26+(Main!$I33*Main!$D$3))*(1+VLOOKUP('Random Years'!AB27,'Hist Returns'!$A$12:$D$107,3,FALSE))","v":{"v":-13976.326814775162,"d":"(13,976)"}},{"$f":"($A27-$A26)/365.25*(AE26+(Main!$I33*Main!$D$3))*(1+VLOOKUP('Random Years'!AC27,'Hist Returns'!$A$12:$D$107,3,FALSE))","v":{"v":-20697.32125737242,"d":"(20,697)"}},{"$f":"($A27-$A26)/365.25*(AF26+(Main!$I33*Main!$D$3))*(1+VLOOKUP('Random Years'!AD27,'Hist Returns'!$A$12:$D$107,3,FALSE))","v":{"v":-25483.774934813315,"d":"(25,484)"}},{"$f":"($A27-$A26)/365.25*(AG26+(Main!$I33*Main!$D$3))*(1+VLOOKUP('Random Years'!AE27,'Hist Returns'!$A$12:$D$107,3,FALSE))","v":{"v":-23201.389755807086,"d":"(23,201)"}},{"$f":"($A27-$A26)/365.25*(AH26+(Main!$I33*Main!$D$3))*(1+VLOOKUP('Random Years'!AF27,'Hist Returns'!$A$12:$D$107,3,FALSE))","v":{"v":-15102.420880485954,"d":"(15,102)"}},{"$f":"($A27-$A26)/365.25*(AI26+(Main!$I33*Main!$D$3))*(1+VLOOKUP('Random Years'!AG27,'Hist Returns'!$A$12:$D$107,3,FALSE))","v":{"v":-6929.002010631214,"d":"(6,929)"}},{"$f":"($A27-$A26)/365.25*(AJ26+(Main!$I33*Main!$D$3))*(1+VLOOKUP('Random Years'!AH27,'Hist Returns'!$A$12:$D$107,3,FALSE))","v":{"v":-12103.996935984409,"d":"(12,104)"}},{"$f":"($A27-$A26)/365.25*(AK26+(Main!$I33*Main!$D$3))*(1+VLOOKUP('Random Years'!AI27,'Hist Returns'!$A$12:$D$107,3,FALSE))","v":{"v":-26777.11997863765,"d":"(26,777)"}},{"$f":"($A27-$A26)/365.25*(AL26+(Main!$I33*Main!$D$3))*(1+VLOOKUP('Random Years'!AJ27,'Hist Returns'!$A$12:$D$107,3,FALSE))","v":{"v":-7769.316378840564,"d":"(7,769)"}},{"$f":"($A27-$A26)/365.25*(AM26+(Main!$I33*Main!$D$3))*(1+VLOOKUP('Random Years'!AK27,'Hist Returns'!$A$12:$D$107,3,FALSE))","v":{"v":-5589.640102436012,"d":"(5,590)"}},{"$f":"($A27-$A26)/365.25*(AN26+(Main!$I33*Main!$D$3))*(1+VLOOKUP('Random Years'!AL27,'Hist Returns'!$A$12:$D$107,3,FALSE))","v":{"v":-5629.251012240018,"d":"(5,629)"}},{"$f":"($A27-$A26)/365.25*(AO26+(Main!$I33*Main!$D$3))*(1+VLOOKUP('Random Years'!AM27,'Hist Returns'!$A$12:$D$107,3,FALSE))","v":{"v":5223.046133095367,"d":"5,223"}},{"$f":"($A27-$A26)/365.25*(AP26+(Main!$I33*Main!$D$3))*(1+VLOOKUP('Random Years'!AN27,'Hist Returns'!$A$12:$D$107,3,FALSE))","v":{"v":-26453.61523305429,"d":"(26,454)"}},{"$f":"($A27-$A26)/365.25*(AQ26+(Main!$I33*Main!$D$3))*(1+VLOOKUP('Random Years'!AO27,'Hist Returns'!$A$12:$D$107,3,FALSE))","v":{"v":-26543.387240467295,"d":"(26,543)"}},{"$f":"($A27-$A26)/365.25*(AR26+(Main!$I33*Main!$D$3))*(1+VLOOKUP('Random Years'!AP27,'Hist Returns'!$A$12:$D$107,3,FALSE))","v":{"v":-27188.98682453363,"d":"(27,189)"}},{"$f":"($A27-$A26)/365.25*(AS26+(Main!$I33*Main!$D$3))*(1+VLOOKUP('Random Years'!AQ27,'Hist Returns'!$A$12:$D$107,3,FALSE))","v":{"v":-25104.20167477341,"d":"(25,104)"}},{"$f":"($A27-$A26)/365.25*(AT26+(Main!$I33*Main!$D$3))*(1+VLOOKUP('Random Years'!AR27,'Hist Returns'!$A$12:$D$107,3,FALSE))","v":{"v":-12436.2607814048,"d":"(12,436)"}},{"$f":"($A27-$A26)/365.25*(AU26+(Main!$I33*Main!$D$3))*(1+VLOOKUP('Random Years'!AS27,'Hist Returns'!$A$12:$D$107,3,FALSE))","v":{"v":-21737.482368197987,"d":"(21,737)"}},{"$f":"($A27-$A26)/365.25*(AV26+(Main!$I33*Main!$D$3))*(1+VLOOKUP('Random Years'!AT27,'Hist Returns'!$A$12:$D$107,3,FALSE))","v":{"v":-41370.052337858615,"d":"(41,370)"}},{"$f":"($A27-$A26)/365.25*(AW26+(Main!$I33*Main!$D$3))*(1+VLOOKUP('Random Years'!AU27,'Hist Returns'!$A$12:$D$107,3,FALSE))","v":{"v":-23230.610706040974,"d":"(23,231)"}},{"$f":"($A27-$A26)/365.25*(AX26+(Main!$I33*Main!$D$3))*(1+VLOOKUP('Random Years'!AV27,'Hist Returns'!$A$12:$D$107,3,FALSE))","v":{"v":-19928.11687413744,"d":"(19,928)"}},{"$f":"($A27-$A26)/365.25*(AY26+(Main!$I33*Main!$D$3))*(1+VLOOKUP('Random Years'!AW27,'Hist Returns'!$A$12:$D$107,3,FALSE))","v":{"v":-37483.26203338905,"d":"(37,483)"}},{"$f":"($A27-$A26)/365.25*(AZ26+(Main!$I33*Main!$D$3))*(1+VLOOKUP('Random Years'!AX27,'Hist Returns'!$A$12:$D$107,3,FALSE))","v":{"v":-20148.831442496903,"d":"(20,149)"}},{"$f":"($A27-$A26)/365.25*(BA26+(Main!$I33*Main!$D$3))*(1+VLOOKUP('Random Years'!AY27,'Hist Returns'!$A$12:$D$107,3,FALSE))","v":{"v":-5022.988168334351,"d":"(5,023)"}},{"$f":"($A27-$A26)/365.25*(BB26+(Main!$I33*Main!$D$3))*(1+VLOOKUP('Random Years'!AZ27,'Hist Returns'!$A$12:$D$107,3,FALSE))","v":{"v":13599.708599079522,"d":"13,600"}},{"$f":"($A27-$A26)/365.25*(BC26+(Main!$I33*Main!$D$3))*(1+VLOOKUP('Random Years'!BA27,'Hist Returns'!$A$12:$D$107,3,FALSE))","v":{"v":2513.405725531976,"d":"2,513"}},{"$f":"($A27-$A26)/365.25*(BD26+(Main!$I33*Main!$D$3))*(1+VLOOKUP('Random Years'!BB27,'Hist Returns'!$A$12:$D$107,3,FALSE))","v":{"v":-31628.524925088877,"d":"(31,629)"}},{"$f":"($A27-$A26)/365.25*(BE26+(Main!$I33*Main!$D$3))*(1+VLOOKUP('Random Years'!BC27,'Hist Returns'!$A$12:$D$107,3,FALSE))","v":{"v":-16337.130227313099,"d":"(16,337)"}},{"$f":"($A27-$A26)/365.25*(BF26+(Main!$I33*Main!$D$3))*(1+VLOOKUP('Random Years'!BD27,'Hist Returns'!$A$12:$D$107,3,FALSE))","v":{"v":-11297.84388225331,"d":"(11,298)"}},{"$f":"($A27-$A26)/365.25*(BG26+(Main!$I33*Main!$D$3))*(1+VLOOKUP('Random Years'!BE27,'Hist Returns'!$A$12:$D$107,3,FALSE))","v":{"v":-19954.19545369925,"d":"(19,954)"}},{"$f":"($A27-$A26)/365.25*(BH26+(Main!$I33*Main!$D$3))*(1+VLOOKUP('Random Years'!BF27,'Hist Returns'!$A$12:$D$107,3,FALSE))","v":{"v":-33549.902694382814,"d":"(33,550)"}},{"$f":"($A27-$A26)/365.25*(BI26+(Main!$I33*Main!$D$3))*(1+VLOOKUP('Random Years'!BG27,'Hist Returns'!$A$12:$D$107,3,FALSE))","v":{"v":-17508.281498164026,"d":"(17,508)"}},{"$f":"($A27-$A26)/365.25*(BJ26+(Main!$I33*Main!$D$3))*(1+VLOOKUP('Random Years'!BH27,'Hist Returns'!$A$12:$D$107,3,FALSE))","v":{"v":-1088.977321617159,"d":"(1,089)"}},{"$f":"($A27-$A26)/365.25*(BK26+(Main!$I33*Main!$D$3))*(1+VLOOKUP('Random Years'!BI27,'Hist Returns'!$A$12:$D$107,3,FALSE))","v":{"v":-22420.985609823965,"d":"(22,421)"}},{"$f":"($A27-$A26)/365.25*(BL26+(Main!$I33*Main!$D$3))*(1+VLOOKUP('Random Years'!BJ27,'Hist Returns'!$A$12:$D$107,3,FALSE))","v":{"v":-14724.86872976265,"d":"(14,725)"}},{"$f":"($A27-$A26)/365.25*(BM26+(Main!$I33*Main!$D$3))*(1+VLOOKUP('Random Years'!BK27,'Hist Returns'!$A$12:$D$107,3,FALSE))","v":{"v":-10795.634010655851,"d":"(10,796)"}},{"$f":"($A27-$A26)/365.25*(BN26+(Main!$I33*Main!$D$3))*(1+VLOOKUP('Random Years'!BL27,'Hist Returns'!$A$12:$D$107,3,FALSE))","v":{"v":-19562.000658325866,"d":"(19,562)"}},{"$f":"($A27-$A26)/365.25*(BO26+(Main!$I33*Main!$D$3))*(1+VLOOKUP('Random Years'!BM27,'Hist Returns'!$A$12:$D$107,3,FALSE))","v":{"v":-11474.474554255687,"d":"(11,474)"}},{"$f":"($A27-$A26)/365.25*(BP26+(Main!$I33*Main!$D$3))*(1+VLOOKUP('Random Years'!BN27,'Hist Returns'!$A$12:$D$107,3,FALSE))","v":{"v":-34969.7620601075,"d":"(34,970)"}},{"$f":"($A27-$A26)/365.25*(BQ26+(Main!$I33*Main!$D$3))*(1+VLOOKUP('Random Years'!BO27,'Hist Returns'!$A$12:$D$107,3,FALSE))","v":{"v":-22270.31324393887,"d":"(22,270)"}},{"$f":"($A27-$A26)/365.25*(BR26+(Main!$I33*Main!$D$3))*(1+VLOOKUP('Random Years'!BP27,'Hist Returns'!$A$12:$D$107,3,FALSE))","v":{"v":-9201.866559895207,"d":"(9,202)"}},{"$f":"($A27-$A26)/365.25*(BS26+(Main!$I33*Main!$D$3))*(1+VLOOKUP('Random Years'!BQ27,'Hist Returns'!$A$12:$D$107,3,FALSE))","v":{"v":-6818.7038855298215,"d":"(6,819)"}},{"$f":"($A27-$A26)/365.25*(BT26+(Main!$I33*Main!$D$3))*(1+VLOOKUP('Random Years'!BR27,'Hist Returns'!$A$12:$D$107,3,FALSE))","v":{"v":-12994.255153925382,"d":"(12,994)"}},{"$f":"($A27-$A26)/365.25*(BU26+(Main!$I33*Main!$D$3))*(1+VLOOKUP('Random Years'!BS27,'Hist Returns'!$A$12:$D$107,3,FALSE))","v":{"v":2161.6753858646243,"d":"2,162"}},{"$f":"($A27-$A26)/365.25*(BV26+(Main!$I33*Main!$D$3))*(1+VLOOKUP('Random Years'!BT27,'Hist Returns'!$A$12:$D$107,3,FALSE))","v":{"v":-23382.267679903107,"d":"(23,382)"}},{"$f":"($A27-$A26)/365.25*(BW26+(Main!$I33*Main!$D$3))*(1+VLOOKUP('Random Years'!BU27,'Hist Returns'!$A$12:$D$107,3,FALSE))","v":{"v":-27175.205268082518,"d":"(27,175)"}},{"$f":"($A27-$A26)/365.25*(BX26+(Main!$I33*Main!$D$3))*(1+VLOOKUP('Random Years'!BV27,'Hist Returns'!$A$12:$D$107,3,FALSE))","v":{"v":-4990.759180066068,"d":"(4,991)"}},{"$f":"($A27-$A26)/365.25*(BY26+(Main!$I33*Main!$D$3))*(1+VLOOKUP('Random Years'!BW27,'Hist Returns'!$A$12:$D$107,3,FALSE))","v":{"v":-15869.379096271621,"d":"(15,869)"}},{"$f":"($A27-$A26)/365.25*(BZ26+(Main!$I33*Main!$D$3))*(1+VLOOKUP('Random Years'!BX27,'Hist Returns'!$A$12:$D$107,3,FALSE))","v":{"v":-33169.96458630068,"d":"(33,170)"}},{"$f":"($A27-$A26)/365.25*(CA26+(Main!$I33*Main!$D$3))*(1+VLOOKUP('Random Years'!BY27,'Hist Returns'!$A$12:$D$107,3,FALSE))","v":{"v":-21015.629046047492,"d":"(21,016)"}},{"$f":"($A27-$A26)/365.25*(CB26+(Main!$I33*Main!$D$3))*(1+VLOOKUP('Random Years'!BZ27,'Hist Returns'!$A$12:$D$107,3,FALSE))","v":{"v":-18570.173847400867,"d":"(18,570)"}},{"$f":"($A27-$A26)/365.25*(CC26+(Main!$I33*Main!$D$3))*(1+VLOOKUP('Random Years'!CA27,'Hist Returns'!$A$12:$D$107,3,FALSE))","v":{"v":-9276.999362285816,"d":"(9,277)"}},{"$f":"($A27-$A26)/365.25*(CD26+(Main!$I33*Main!$D$3))*(1+VLOOKUP('Random Years'!CB27,'Hist Returns'!$A$12:$D$107,3,FALSE))","v":{"v":-22359.48219116968,"d":"(22,359)"}},{"$f":"($A27-$A26)/365.25*(CE26+(Main!$I33*Main!$D$3))*(1+VLOOKUP('Random Years'!CC27,'Hist Returns'!$A$12:$D$107,3,FALSE))","v":{"v":-10877.500986351528,"d":"(10,878)"}},{"$f":"($A27-$A26)/365.25*(CF26+(Main!$I33*Main!$D$3))*(1+VLOOKUP('Random Years'!CD27,'Hist Returns'!$A$12:$D$107,3,FALSE))","v":{"v":-11654.070488047122,"d":"(11,654)"}},{"$f":"($A27-$A26)/365.25*(CG26+(Main!$I33*Main!$D$3))*(1+VLOOKUP('Random Years'!CE27,'Hist Returns'!$A$12:$D$107,3,FALSE))","v":{"v":-21111.19630695946,"d":"(21,111)"}},{"$f":"($A27-$A26)/365.25*(CH26+(Main!$I33*Main!$D$3))*(1+VLOOKUP('Random Years'!CF27,'Hist Returns'!$A$12:$D$107,3,FALSE))","v":{"v":-4296.953905813824,"d":"(4,297)"}},{"$f":"($A27-$A26)/365.25*(CI26+(Main!$I33*Main!$D$3))*(1+VLOOKUP('Random Years'!CG27,'Hist Returns'!$A$12:$D$107,3,FALSE))","v":{"v":-8253.80625217354,"d":"(8,254)"}},{"$f":"($A27-$A26)/365.25*(CJ26+(Main!$I33*Main!$D$3))*(1+VLOOKUP('Random Years'!CH27,'Hist Returns'!$A$12:$D$107,3,FALSE))","v":{"v":-20765.80052090976,"d":"(20,766)"}},{"$f":"($A27-$A26)/365.25*(CK26+(Main!$I33*Main!$D$3))*(1+VLOOKUP('Random Years'!CI27,'Hist Returns'!$A$12:$D$107,3,FALSE))","v":{"v":-34133.58826248267,"d":"(34,134)"}},{"$f":"($A27-$A26)/365.25*(CL26+(Main!$I33*Main!$D$3))*(1+VLOOKUP('Random Years'!CJ27,'Hist Returns'!$A$12:$D$107,3,FALSE))","v":{"v":-28850.404772346148,"d":"(28,850)"}},{"$f":"($A27-$A26)/365.25*(CM26+(Main!$I33*Main!$D$3))*(1+VLOOKUP('Random Years'!CK27,'Hist Returns'!$A$12:$D$107,3,FALSE))","v":{"v":-21807.42724049142,"d":"(21,807)"}},{"$f":"($A27-$A26)/365.25*(CN26+(Main!$I33*Main!$D$3))*(1+VLOOKUP('Random Years'!CL27,'Hist Returns'!$A$12:$D$107,3,FALSE))","v":{"v":-5768.177845922879,"d":"(5,768)"}},{"$f":"($A27-$A26)/365.25*(CO26+(Main!$I33*Main!$D$3))*(1+VLOOKUP('Random Years'!CM27,'Hist Returns'!$A$12:$D$107,3,FALSE))","v":{"v":-21397.7832035067,"d":"(21,398)"}},{"$f":"($A27-$A26)/365.25*(CP26+(Main!$I33*Main!$D$3))*(1+VLOOKUP('Random Years'!CN27,'Hist Returns'!$A$12:$D$107,3,FALSE))","v":{"v":-3381.2052965980492,"d":"(3,381)"}},{"$f":"($A27-$A26)/365.25*(CQ26+(Main!$I33*Main!$D$3))*(1+VLOOKUP('Random Years'!CO27,'Hist Returns'!$A$12:$D$107,3,FALSE))","v":{"v":-32129.25577039831,"d":"(32,129)"}},{"$f":"($A27-$A26)/365.25*(CR26+(Main!$I33*Main!$D$3))*(1+VLOOKUP('Random Years'!CP27,'Hist Returns'!$A$12:$D$107,3,FALSE))","v":{"v":-12226.556004498883,"d":"(12,227)"}},{"$f":"($A27-$A26)/365.25*(CS26+(Main!$I33*Main!$D$3))*(1+VLOOKUP('Random Years'!CQ27,'Hist Returns'!$A$12:$D$107,3,FALSE))","v":{"v":-20932.88879876064,"d":"(20,933)"}},{"$f":"($A27-$A26)/365.25*(CT26+(Main!$I33*Main!$D$3))*(1+VLOOKUP('Random Years'!CR27,'Hist Returns'!$A$12:$D$107,3,FALSE))","v":{"v":-4836.993066814566,"d":"(4,837)"}},{"$f":"($A27-$A26)/365.25*(CU26+(Main!$I33*Main!$D$3))*(1+VLOOKUP('Random Years'!CS27,'Hist Returns'!$A$12:$D$107,3,FALSE))","v":{"v":-19486.203858493005,"d":"(19,486)"}},{"$f":"($A27-$A26)/365.25*(CV26+(Main!$I33*Main!$D$3))*(1+VLOOKUP('Random Years'!CT27,'Hist Returns'!$A$12:$D$107,3,FALSE))","v":{"v":-22956.00547009374,"d":"(22,956)"}},{"$f":"($A27-$A26)/365.25*(CW26+(Main!$I33*Main!$D$3))*(1+VLOOKUP('Random Years'!CU27,'Hist Returns'!$A$12:$D$107,3,FALSE))","v":{"v":-16835.602891420465,"d":"(16,836)"}},{"$f":"($A27-$A26)/365.25*(CX26+(Main!$I33*Main!$D$3))*(1+VLOOKUP('Random Years'!CV27,'Hist Returns'!$A$12:$D$107,3,FALSE))","v":{"v":-14823.50199451773,"d":"(14,824)"}}]
[{"$f":"Main!A34","v":"2049-12-30"},{"$f":"Main!B34","v":95},{"$f":"($A28-$A27)/365.25*(C27+(Main!$I34*Main!$D$3))*(1+VLOOKUP('Random Years'!A28,'Hist Returns'!$A$12:$D$107,3,FALSE))","v":{"v":-23275.1050065375,"d":"(23,275)"}},{"$f":"($A28-$A27)/365.25*(D27+(Main!$I34*Main!$D$3))*(1+VLOOKUP('Random Years'!B28,'Hist Returns'!$A$12:$D$107,3,FALSE))","v":{"v":-44625.01641120495,"d":"(44,625)"}},{"$f":"($A28-$A27)/365.25*(E27+(Main!$I34*Main!$D$3))*(1+VLOOKUP('Random Years'!C28,'Hist Returns'!$A$12:$D$107,3,FALSE))","v":{"v":-31720.66565434839,"d":"(31,721)"}},{"$f":"($A28-$A27)/365.25*(F27+(Main!$I34*Main!$D$3))*(1+VLOOKUP('Random Years'!D28,'Hist Returns'!$A$12:$D$107,3,FALSE))","v":{"v":-36543.23391113765,"d":"(36,543)"}},{"$f":"($A28-$A27)/365.25*(G27+(Main!$I34*Main!$D$3))*(1+VLOOKUP('Random Years'!E28,'Hist Returns'!$A$12:$D$107,3,FALSE))","v":{"v":-29511.678477391226,"d":"(29,512)"}},{"$f":"($A28-$A27)/365.25*(H27+(Main!$I34*Main!$D$3))*(1+VLOOKUP('Random Years'!F28,'Hist Returns'!$A$12:$D$107,3,FALSE))","v":{"v":-32823.372132981895,"d":"(32,823)"}},{"$f":"($A28-$A27)/365.25*(I27+(Main!$I34*Main!$D$3))*(1+VLOOKUP('Random Years'!G28,'Hist Returns'!$A$12:$D$107,3,FALSE))","v":{"v":-34480.60323937617,"d":"(34,481)"}},{"$f":"($A28-$A27)/365.25*(J27+(Main!$I34*Main!$D$3))*(1+VLOOKUP('Random Years'!H28,'Hist Returns'!$A$12:$D$107,3,FALSE))","v":{"v":-9395.024284667517,"d":"(9,395)"}},{"$f":"($A28-$A27)/365.25*(K27+(Main!$I34*Main!$D$3))*(1+VLOOKUP('Random Years'!I28,'Hist Returns'!$A$12:$D$107,3,FALSE))","v":{"v":5173.053853798893,"d":"5,173"}},{"$f":"($A28-$A27)/365.25*(L27+(Main!$I34*Main!$D$3))*(1+VLOOKUP('Random Years'!J28,'Hist Returns'!$A$12:$D$107,3,FALSE))","v":{"v":-50374.626516394994,"d":"(50,375)"}},{"$f":"($A28-$A27)/365.25*(M27+(Main!$I34*Main!$D$3))*(1+VLOOKUP('Random Years'!K28,'Hist Returns'!$A$12:$D$107,3,FALSE))","v":{"v":-48293.15003112537,"d":"(48,293)"}},{"$f":"($A28-$A27)/365.25*(N27+(Main!$I34*Main!$D$3))*(1+VLOOKUP('Random Years'!L28,'Hist Returns'!$A$12:$D$107,3,FALSE))","v":{"v":-22912.613727735104,"d":"(22,913)"}},{"$f":"($A28-$A27)/365.25*(O27+(Main!$I34*Main!$D$3))*(1+VLOOKUP('Random Years'!M28,'Hist Returns'!$A$12:$D$107,3,FALSE))","v":{"v":-25627.19924274549,"d":"(25,627)"}},{"$f":"($A28-$A27)/365.25*(P27+(Main!$I34*Main!$D$3))*(1+VLOOKUP('Random Years'!N28,'Hist Returns'!$A$12:$D$107,3,FALSE))","v":{"v":-37150.07392830989,"d":"(37,150)"}},{"$f":"($A28-$A27)/365.25*(Q27+(Main!$I34*Main!$D$3))*(1+VLOOKUP('Random Years'!O28,'Hist Returns'!$A$12:$D$107,3,FALSE))","v":{"v":-49292.585734195265,"d":"(49,293)"}},{"$f":"($A28-$A27)/365.25*(R27+(Main!$I34*Main!$D$3))*(1+VLOOKUP('Random Years'!P28,'Hist Returns'!$A$12:$D$107,3,FALSE))","v":{"v":-30916.625678352917,"d":"(30,917)"}},{"$f":"($A28-$A27)/365.25*(S27+(Main!$I34*Main!$D$3))*(1+VLOOKUP('Random Years'!Q28,'Hist Returns'!$A$12:$D$107,3,FALSE))","v":{"v":-48704.05283155812,"d":"(48,704)"}},{"$f":"($A28-$A27)/365.25*(T27+(Main!$I34*Main!$D$3))*(1+VLOOKUP('Random Years'!R28,'Hist Returns'!$A$12:$D$107,3,FALSE))","v":{"v":6910.241398815254,"d":"6,910"}},{"$f":"($A28-$A27)/365.25*(U27+(Main!$I34*Main!$D$3))*(1+VLOOKUP('Random Years'!S28,'Hist Returns'!$A$12:$D$107,3,FALSE))","v":{"v":-18426.043109599155,"d":"(18,426)"}},{"$f":"($A28-$A27)/365.25*(V27+(Main!$I34*Main!$D$3))*(1+VLOOKUP('Random Years'!T28,'Hist Returns'!$A$12:$D$107,3,FALSE))","v":{"v":-26921.204657692302,"d":"(26,921)"}},{"$f":"($A28-$A27)/365.25*(W27+(Main!$I34*Main!$D$3))*(1+VLOOKUP('Random Years'!U28,'Hist Returns'!$A$12:$D$107,3,FALSE))","v":{"v":304.051094762758,"d":"304"}},{"$f":"($A28-$A27)/365.25*(X27+(Main!$I34*Main!$D$3))*(1+VLOOKUP('Random Years'!V28,'Hist Returns'!$A$12:$D$107,3,FALSE))","v":{"v":-35375.680494984554,"d":"(35,376)"}},{"$f":"($A28-$A27)/365.25*(Y27+(Main!$I34*Main!$D$3))*(1+VLOOKUP('Random Years'!W28,'Hist Returns'!$A$12:$D$107,3,FALSE))","v":{"v":-44668.58121473448,"d":"(44,669)"}},{"$f":"($A28-$A27)/365.25*(Z27+(Main!$I34*Main!$D$3))*(1+VLOOKUP('Random Years'!X28,'Hist Returns'!$A$12:$D$107,3,FALSE))","v":{"v":-27255.746991335414,"d":"(27,256)"}},{"$f":"($A28-$A27)/365.25*(AA27+(Main!$I34*Main!$D$3))*(1+VLOOKUP('Random Years'!Y28,'Hist Returns'!$A$12:$D$107,3,FALSE))","v":{"v":-39362.37181512369,"d":"(39,362)"}},{"$f":"($A28-$A27)/365.25*(AB27+(Main!$I34*Main!$D$3))*(1+VLOOKUP('Random Years'!Z28,'Hist Returns'!$A$12:$D$107,3,FALSE))","v":{"v":-27422.4892252723,"d":"(27,422)"}},{"$f":"($A28-$A27)/365.25*(AC27+(Main!$I34*Main!$D$3))*(1+VLOOKUP('Random Years'!AA28,'Hist Returns'!$A$12:$D$107,3,FALSE))","v":{"v":-18713.065664846366,"d":"(18,713)"}},{"$f":"($A28-$A27)/365.25*(AD27+(Main!$I34*Main!$D$3))*(1+VLOOKUP('Random Years'!AB28,'Hist Returns'!$A$12:$D$107,3,FALSE))","v":{"v":-27646.282647849857,"d":"(27,646)"}},{"$f":"($A28-$A27)/365.25*(AE27+(Main!$I34*Main!$D$3))*(1+VLOOKUP('Random Years'!AC28,'Hist Returns'!$A$12:$D$107,3,FALSE))","v":{"v":-39156.91531404845,"d":"(39,157)"}},{"$f":"($A28-$A27)/365.25*(AF27+(Main!$I34*Main!$D$3))*(1+VLOOKUP('Random Years'!AD28,'Hist Returns'!$A$12:$D$107,3,FALSE))","v":{"v":-40255.37737698107,"d":"(40,255)"}},{"$f":"($A28-$A27)/365.25*(AG27+(Main!$I34*Main!$D$3))*(1+VLOOKUP('Random Years'!AE28,'Hist Returns'!$A$12:$D$107,3,FALSE))","v":{"v":-39513.72515742972,"d":"(39,514)"}},{"$f":"($A28-$A27)/365.25*(AH27+(Main!$I34*Main!$D$3))*(1+VLOOKUP('Random Years'!AF28,'Hist Returns'!$A$12:$D$107,3,FALSE))","v":{"v":-28775.882172705653,"d":"(28,776)"}},{"$f":"($A28-$A27)/365.25*(AI27+(Main!$I34*Main!$D$3))*(1+VLOOKUP('Random Years'!AG28,'Hist Returns'!$A$12:$D$107,3,FALSE))","v":{"v":-20972.653049909975,"d":"(20,973)"}},{"$f":"($A28-$A27)/365.25*(AJ27+(Main!$I34*Main!$D$3))*(1+VLOOKUP('Random Years'!AH28,'Hist Returns'!$A$12:$D$107,3,FALSE))","v":{"v":-25768.124325329645,"d":"(25,768)"}},{"$f":"($A28-$A27)/365.25*(AK27+(Main!$I34*Main!$D$3))*(1+VLOOKUP('Random Years'!AI28,'Hist Returns'!$A$12:$D$107,3,FALSE))","v":{"v":-42769.808794085235,"d":"(42,770)"}},{"$f":"($A28-$A27)/365.25*(AL27+(Main!$I34*Main!$D$3))*(1+VLOOKUP('Random Years'!AJ28,'Hist Returns'!$A$12:$D$107,3,FALSE))","v":{"v":-21366.603027270605,"d":"(21,367)"}},{"$f":"($A28-$A27)/365.25*(AM27+(Main!$I34*Main!$D$3))*(1+VLOOKUP('Random Years'!AK28,'Hist Returns'!$A$12:$D$107,3,FALSE))","v":{"v":-19170.258475778846,"d":"(19,170)"}},{"$f":"($A28-$A27)/365.25*(AN27+(Main!$I34*Main!$D$3))*(1+VLOOKUP('Random Years'!AL28,'Hist Returns'!$A$12:$D$107,3,FALSE))","v":{"v":-19518.50627588578,"d":"(19,519)"}},{"$f":"($A28-$A27)/365.25*(AO27+(Main!$I34*Main!$D$3))*(1+VLOOKUP('Random Years'!AM28,'Hist Returns'!$A$12:$D$107,3,FALSE))","v":{"v":-8732.22099600768,"d":"(8,732)"}},{"$f":"($A28-$A27)/365.25*(AP27+(Main!$I34*Main!$D$3))*(1+VLOOKUP('Random Years'!AN28,'Hist Returns'!$A$12:$D$107,3,FALSE))","v":{"v":-40238.43177877673,"d":"(40,238)"}},{"$f":"($A28-$A27)/365.25*(AQ27+(Main!$I34*Main!$D$3))*(1+VLOOKUP('Random Years'!AO28,'Hist Returns'!$A$12:$D$107,3,FALSE))","v":{"v":-40910.10489744062,"d":"(40,910)"}},{"$f":"($A28-$A27)/365.25*(AR27+(Main!$I34*Main!$D$3))*(1+VLOOKUP('Random Years'!AP28,'Hist Returns'!$A$12:$D$107,3,FALSE))","v":{"v":-41181.21498945716,"d":"(41,181)"}},{"$f":"($A28-$A27)/365.25*(AS27+(Main!$I34*Main!$D$3))*(1+VLOOKUP('Random Years'!AQ28,'Hist Returns'!$A$12:$D$107,3,FALSE))","v":{"v":-39651.62691722951,"d":"(39,652)"}},{"$f":"($A28-$A27)/365.25*(AT27+(Main!$I34*Main!$D$3))*(1+VLOOKUP('Random Years'!AR28,'Hist Returns'!$A$12:$D$107,3,FALSE))","v":{"v":-26603.27290934361,"d":"(26,603)"}},{"$f":"($A28-$A27)/365.25*(AU27+(Main!$I34*Main!$D$3))*(1+VLOOKUP('Random Years'!AS28,'Hist Returns'!$A$12:$D$107,3,FALSE))","v":{"v":-36936.15274973908,"d":"(36,936)"}},{"$f":"($A28-$A27)/365.25*(AV27+(Main!$I34*Main!$D$3))*(1+VLOOKUP('Random Years'!AT28,'Hist Returns'!$A$12:$D$107,3,FALSE))","v":{"v":-58519.1289756456,"d":"(58,519)"}},{"$f":"($A28-$A27)/365.25*(AW27+(Main!$I34*Main!$D$3))*(1+VLOOKUP('Random Years'!AU28,'Hist Returns'!$A$12:$D$107,3,FALSE))","v":{"v":-38724.70575450276,"d":"(38,725)"}},{"$f":"($A28-$A27)/365.25*(AX27+(Main!$I34*Main!$D$3))*(1+VLOOKUP('Random Years'!AV28,'Hist Returns'!$A$12:$D$107,3,FALSE))","v":{"v":-35207.34393671236,"d":"(35,207)"}},{"$f":"($A28-$A27)/365.25*(AY27+(Main!$I34*Main!$D$3))*(1+VLOOKUP('Random Years'!AW28,'Hist Returns'!$A$12:$D$107,3,FALSE))","v":{"v":-52190.90714384783,"d":"(52,191)"}},{"$f":"($A28-$A27)/365.25*(AZ27+(Main!$I34*Main!$D$3))*(1+VLOOKUP('Random Years'!AX28,'Hist Returns'!$A$12:$D$107,3,FALSE))","v":{"v":-34123.69332811432,"d":"(34,124)"}},{"$f":"($A28-$A27)/365.25*(BA27+(Main!$I34*Main!$D$3))*(1+VLOOKUP('Random Years'!AY28,'Hist Returns'!$A$12:$D$107,3,FALSE))","v":{"v":-18852.876410080393,"d":"(18,853)"}},{"$f":"($A28-$A27)/365.25*(BB27+(Main!$I34*Main!$D$3))*(1+VLOOKUP('Random Years'!AZ28,'Hist Returns'!$A$12:$D$107,3,FALSE))","v":{"v":16.142082129579407,"d":"16"}},{"$f":"($A28-$A27)/365.25*(BC27+(Main!$I34*Main!$D$3))*(1+VLOOKUP('Random Years'!BA28,'Hist Returns'!$A$12:$D$107,3,FALSE))","v":{"v":-11420.519208227422,"d":"(11,421)"}},{"$f":"($A28-$A27)/365.25*(BD27+(Main!$I34*Main!$D$3))*(1+VLOOKUP('Random Years'!BB28,'Hist Returns'!$A$12:$D$107,3,FALSE))","v":{"v":-46559.78339361453,"d":"(46,560)"}},{"$f":"($A28-$A27)/365.25*(BE27+(Main!$I34*Main!$D$3))*(1+VLOOKUP('Random Years'!BC28,'Hist Returns'!$A$12:$D$107,3,FALSE))","v":{"v":-29924.732655117466,"d":"(29,925)"}},{"$f":"($A28-$A27)/365.25*(BF27+(Main!$I34*Main!$D$3))*(1+VLOOKUP('Random Years'!BD28,'Hist Returns'!$A$12:$D$107,3,FALSE))","v":{"v":-26287.251426194234,"d":"(26,287)"}},{"$f":"($A28-$A27)/365.25*(BG27+(Main!$I34*Main!$D$3))*(1+VLOOKUP('Random Years'!BE28,'Hist Returns'!$A$12:$D$107,3,FALSE))","v":{"v":-33542.21380686845,"d":"(33,542)"}},{"$f":"($A28-$A27)/365.25*(BH27+(Main!$I34*Main!$D$3))*(1+VLOOKUP('Random Years'!BF28,'Hist Returns'!$A$12:$D$107,3,FALSE))","v":{"v":-48623.19120791389,"d":"(48,623)"}},{"$f":"($A28-$A27)/365.25*(BI27+(Main!$I34*Main!$D$3))*(1+VLOOKUP('Random Years'!BG28,'Hist Returns'!$A$12:$D$107,3,FALSE))","v":{"v":-31452.560176469306,"d":"(31,453)"}},{"$f":"($A28-$A27)/365.25*(BJ27+(Main!$I34*Main!$D$3))*(1+VLOOKUP('Random Years'!BH28,'Hist Returns'!$A$12:$D$107,3,FALSE))","v":{"v":-14676.29267797842,"d":"(14,676)"}},{"$f":"($A28-$A27)/365.25*(BK27+(Main!$I34*Main!$D$3))*(1+VLOOKUP('Random Years'!BI28,'Hist Returns'!$A$12:$D$107,3,FALSE))","v":{"v":-38779.78636616382,"d":"(38,780)"}},{"$f":"($A28-$A27)/365.25*(BL27+(Main!$I34*Main!$D$3))*(1+VLOOKUP('Random Years'!BJ28,'Hist Returns'!$A$12:$D$107,3,FALSE))","v":{"v":-29740.91329310896,"d":"(29,741)"}},{"$f":"($A28-$A27)/365.25*(BM27+(Main!$I34*Main!$D$3))*(1+VLOOKUP('Random Years'!BK28,'Hist Returns'!$A$12:$D$107,3,FALSE))","v":{"v":-24445.9433060039,"d":"(24,446)"}},{"$f":"($A28-$A27)/365.25*(BN27+(Main!$I34*Main!$D$3))*(1+VLOOKUP('Random Years'!BL28,'Hist Returns'!$A$12:$D$107,3,FALSE))","v":{"v":-34661.232466064,"d":"(34,661)"}},{"$f":"($A28-$A27)/365.25*(BO27+(Main!$I34*Main!$D$3))*(1+VLOOKUP('Random Years'!BM28,'Hist Returns'!$A$12:$D$107,3,FALSE))","v":{"v":-27157.49009085577,"d":"(27,157)"}},{"$f":"($A28-$A27)/365.25*(BP27+(Main!$I34*Main!$D$3))*(1+VLOOKUP('Random Years'!BN28,'Hist Returns'!$A$12:$D$107,3,FALSE))","v":{"v":-50015.127764178775,"d":"(50,015)"}},{"$f":"($A28-$A27)/365.25*(BQ27+(Main!$I34*Main!$D$3))*(1+VLOOKUP('Random Years'!BO28,'Hist Returns'!$A$12:$D$107,3,FALSE))","v":{"v":-35862.18092027248,"d":"(35,862)"}},{"$f":"($A28-$A27)/365.25*(BR27+(Main!$I34*Main!$D$3))*(1+VLOOKUP('Random Years'!BP28,'Hist Returns'!$A$12:$D$107,3,FALSE))","v":{"v":-23902.122638254616,"d":"(23,902)"}},{"$f":"($A28-$A27)/365.25*(BS27+(Main!$I34*Main!$D$3))*(1+VLOOKUP('Random Years'!BQ28,'Hist Returns'!$A$12:$D$107,3,FALSE))","v":{"v":-21514.36798855921,"d":"(21,514)"}},{"$f":"($A28-$A27)/365.25*(BT27+(Main!$I34*Main!$D$3))*(1+VLOOKUP('Random Years'!BR28,'Hist Returns'!$A$12:$D$107,3,FALSE))","v":{"v":-27399.528115584137,"d":"(27,400)"}},{"$f":"($A28-$A27)/365.25*(BU27+(Main!$I34*Main!$D$3))*(1+VLOOKUP('Random Years'!BS28,'Hist Returns'!$A$12:$D$107,3,FALSE))","v":{"v":-11991.108875515582,"d":"(11,991)"}},{"$f":"($A28-$A27)/365.25*(BV27+(Main!$I34*Main!$D$3))*(1+VLOOKUP('Random Years'!BT28,'Hist Returns'!$A$12:$D$107,3,FALSE))","v":{"v":-39501.14744789865,"d":"(39,501)"}},{"$f":"($A28-$A27)/365.25*(BW27+(Main!$I34*Main!$D$3))*(1+VLOOKUP('Random Years'!BU28,'Hist Returns'!$A$12:$D$107,3,FALSE))","v":{"v":-41411.684316975276,"d":"(41,412)"}},{"$f":"($A28-$A27)/365.25*(BX27+(Main!$I34*Main!$D$3))*(1+VLOOKUP('Random Years'!BV28,'Hist Returns'!$A$12:$D$107,3,FALSE))","v":{"v":-18625.318630220103,"d":"(18,625)"}},{"$f":"($A28-$A27)/365.25*(BY27+(Main!$I34*Main!$D$3))*(1+VLOOKUP('Random Years'!BW28,'Hist Returns'!$A$12:$D$107,3,FALSE))","v":{"v":-30857.95667465349,"d":"(30,858)"}},{"$f":"($A28-$A27)/365.25*(BZ27+(Main!$I34*Main!$D$3))*(1+VLOOKUP('Random Years'!BX28,'Hist Returns'!$A$12:$D$107,3,FALSE))","v":{"v":-46880.98014201961,"d":"(46,881)"}},{"$f":"($A28-$A27)/365.25*(CA27+(Main!$I34*Main!$D$3))*(1+VLOOKUP('Random Years'!BY28,'Hist Returns'!$A$12:$D$107,3,FALSE))","v":{"v":-34638.34556174847,"d":"(34,638)"}},{"$f":"($A28-$A27)/365.25*(CB27+(Main!$I34*Main!$D$3))*(1+VLOOKUP('Random Years'!BZ28,'Hist Returns'!$A$12:$D$107,3,FALSE))","v":{"v":-32235.150637552324,"d":"(32,235)"}},{"$f":"($A28-$A27)/365.25*(CC27+(Main!$I34*Main!$D$3))*(1+VLOOKUP('Random Years'!CA28,'Hist Returns'!$A$12:$D$107,3,FALSE))","v":{"v":-23556.00900768858,"d":"(23,556)"}},{"$f":"($A28-$A27)/365.25*(CD27+(Main!$I34*Main!$D$3))*(1+VLOOKUP('Random Years'!CB28,'Hist Returns'!$A$12:$D$107,3,FALSE))","v":{"v":-37704.21827624043,"d":"(37,704)"}},{"$f":"($A28-$A27)/365.25*(CE27+(Main!$I34*Main!$D$3))*(1+VLOOKUP('Random Years'!CC28,'Hist Returns'!$A$12:$D$107,3,FALSE))","v":{"v":-25679.388120799,"d":"(25,679)"}},{"$f":"($A28-$A27)/365.25*(CF27+(Main!$I34*Main!$D$3))*(1+VLOOKUP('Random Years'!CD28,'Hist Returns'!$A$12:$D$107,3,FALSE))","v":{"v":-26908.239712459163,"d":"(26,908)"}},{"$f":"($A28-$A27)/365.25*(CG27+(Main!$I34*Main!$D$3))*(1+VLOOKUP('Random Years'!CE28,'Hist Returns'!$A$12:$D$107,3,FALSE))","v":{"v":-34692.41338126494,"d":"(34,692)"}},{"$f":"($A28-$A27)/365.25*(CH27+(Main!$I34*Main!$D$3))*(1+VLOOKUP('Random Years'!CF28,'Hist Returns'!$A$12:$D$107,3,FALSE))","v":{"v":-19071.4521398723,"d":"(19,071)"}},{"$f":"($A28-$A27)/365.25*(CI27+(Main!$I34*Main!$D$3))*(1+VLOOKUP('Random Years'!CG28,'Hist Returns'!$A$12:$D$107,3,FALSE))","v":{"v":-22813.785906790657,"d":"(22,814)"}},{"$f":"($A28-$A27)/365.25*(CJ27+(Main!$I34*Main!$D$3))*(1+VLOOKUP('Random Years'!CH28,'Hist Returns'!$A$12:$D$107,3,FALSE))","v":{"v":-36049.63888168017,"d":"(36,050)"}},{"$f":"($A28-$A27)/365.25*(CK27+(Main!$I34*Main!$D$3))*(1+VLOOKUP('Random Years'!CI28,'Hist Returns'!$A$12:$D$107,3,FALSE))","v":{"v":-49993.04733802738,"d":"(49,993)"}},{"$f":"($A28-$A27)/365.25*(CL27+(Main!$I34*Main!$D$3))*(1+VLOOKUP('Random Years'!CJ28,'Hist Returns'!$A$12:$D$107,3,FALSE))","v":{"v":-44547.00052579115,"d":"(44,547)"}},{"$f":"($A28-$A27)/365.25*(CM27+(Main!$I34*Main!$D$3))*(1+VLOOKUP('Random Years'!CK28,'Hist Returns'!$A$12:$D$107,3,FALSE))","v":{"v":-37485.86995623182,"d":"(37,486)"}},{"$f":"($A28-$A27)/365.25*(CN27+(Main!$I34*Main!$D$3))*(1+VLOOKUP('Random Years'!CL28,'Hist Returns'!$A$12:$D$107,3,FALSE))","v":{"v":-21468.327891694673,"d":"(21,468)"}},{"$f":"($A28-$A27)/365.25*(CO27+(Main!$I34*Main!$D$3))*(1+VLOOKUP('Random Years'!CM28,'Hist Returns'!$A$12:$D$107,3,FALSE))","v":{"v":-35499.85017140271,"d":"(35,500)"}},{"$f":"($A28-$A27)/365.25*(CP27+(Main!$I34*Main!$D$3))*(1+VLOOKUP('Random Years'!CN28,'Hist Returns'!$A$12:$D$107,3,FALSE))","v":{"v":-17126.683222320982,"d":"(17,127)"}},{"$f":"($A28-$A27)/365.25*(CQ27+(Main!$I34*Main!$D$3))*(1+VLOOKUP('Random Years'!CO28,'Hist Returns'!$A$12:$D$107,3,FALSE))","v":{"v":-50807.66323735591,"d":"(50,808)"}},{"$f":"($A28-$A27)/365.25*(CR27+(Main!$I34*Main!$D$3))*(1+VLOOKUP('Random Years'!CP28,'Hist Returns'!$A$12:$D$107,3,FALSE))","v":{"v":-26192.843612836677,"d":"(26,193)"}},{"$f":"($A28-$A27)/365.25*(CS27+(Main!$I34*Main!$D$3))*(1+VLOOKUP('Random Years'!CQ28,'Hist Returns'!$A$12:$D$107,3,FALSE))","v":{"v":-36062.87578695533,"d":"(36,063)"}},{"$f":"($A28-$A27)/365.25*(CT27+(Main!$I34*Main!$D$3))*(1+VLOOKUP('Random Years'!CR28,'Hist Returns'!$A$12:$D$107,3,FALSE))","v":{"v":-19279.27049800246,"d":"(19,279)"}},{"$f":"($A28-$A27)/365.25*(CU27+(Main!$I34*Main!$D$3))*(1+VLOOKUP('Random Years'!CS28,'Hist Returns'!$A$12:$D$107,3,FALSE))","v":{"v":-34478.69693149728,"d":"(34,479)"}},{"$f":"($A28-$A27)/365.25*(CV27+(Main!$I34*Main!$D$3))*(1+VLOOKUP('Random Years'!CT28,'Hist Returns'!$A$12:$D$107,3,FALSE))","v":{"v":-38388.38442278774,"d":"(38,388)"}},{"$f":"($A28-$A27)/365.25*(CW27+(Main!$I34*Main!$D$3))*(1+VLOOKUP('Random Years'!CU28,'Hist Returns'!$A$12:$D$107,3,FALSE))","v":{"v":-30870.127107673467,"d":"(30,870)"}},{"$f":"($A28-$A27)/365.25*(CX27+(Main!$I34*Main!$D$3))*(1+VLOOKUP('Random Years'!CV28,'Hist Returns'!$A$12:$D$107,3,FALSE))","v":{"v":-28402.413904677225,"d":"(28,402)"}}]
[{"$f":"Main!A35","v":"2050-12-30"},{"$f":"Main!B35","v":96},{"$f":"($A29-$A28)/365.25*(C28+(Main!$I35*Main!$D$3))*(1+VLOOKUP('Random Years'!A29,'Hist Returns'!$A$12:$D$107,3,FALSE))","v":{"v":-39271.86102666011,"d":"(39,272)"}},{"$f":"($A29-$A28)/365.25*(D28+(Main!$I35*Main!$D$3))*(1+VLOOKUP('Random Years'!B29,'Hist Returns'!$A$12:$D$107,3,FALSE))","v":{"v":-63715.19146981805,"d":"(63,715)"}},{"$f":"($A29-$A28)/365.25*(E28+(Main!$I35*Main!$D$3))*(1+VLOOKUP('Random Years'!C29,'Hist Returns'!$A$12:$D$107,3,FALSE))","v":{"v":-46403.131310088706,"d":"(46,403)"}},{"$f":"($A29-$A28)/365.25*(F28+(Main!$I35*Main!$D$3))*(1+VLOOKUP('Random Years'!D29,'Hist Returns'!$A$12:$D$107,3,FALSE))","v":{"v":-51956.957017310175,"d":"(51,957)"}},{"$f":"($A29-$A28)/365.25*(G28+(Main!$I35*Main!$D$3))*(1+VLOOKUP('Random Years'!E29,'Hist Returns'!$A$12:$D$107,3,FALSE))","v":{"v":-44207.80410468755,"d":"(44,208)"}},{"$f":"($A29-$A28)/365.25*(H28+(Main!$I35*Main!$D$3))*(1+VLOOKUP('Random Years'!F29,'Hist Returns'!$A$12:$D$107,3,FALSE))","v":{"v":-47633.83511438351,"d":"(47,634)"}},{"$f":"($A29-$A28)/365.25*(I28+(Main!$I35*Main!$D$3))*(1+VLOOKUP('Random Years'!G29,'Hist Returns'!$A$12:$D$107,3,FALSE))","v":{"v":-49305.0590156148,"d":"(49,305)"}},{"$f":"($A29-$A28)/365.25*(J28+(Main!$I35*Main!$D$3))*(1+VLOOKUP('Random Years'!H29,'Hist Returns'!$A$12:$D$107,3,FALSE))","v":{"v":-25029.95732187108,"d":"(25,030)"}},{"$f":"($A29-$A28)/365.25*(K28+(Main!$I35*Main!$D$3))*(1+VLOOKUP('Random Years'!I29,'Hist Returns'!$A$12:$D$107,3,FALSE))","v":{"v":-9652.244024269721,"d":"(9,652)"}},{"$f":"($A29-$A28)/365.25*(L28+(Main!$I35*Main!$D$3))*(1+VLOOKUP('Random Years'!J29,'Hist Returns'!$A$12:$D$107,3,FALSE))","v":{"v":-67303.37607367318,"d":"(67,303)"}},{"$f":"($A29-$A28)/365.25*(M28+(Main!$I35*Main!$D$3))*(1+VLOOKUP('Random Years'!K29,'Hist Returns'!$A$12:$D$107,3,FALSE))","v":{"v":-69197.42606625045,"d":"(69,197)"}},{"$f":"($A29-$A28)/365.25*(N28+(Main!$I35*Main!$D$3))*(1+VLOOKUP('Random Years'!L29,'Hist Returns'!$A$12:$D$107,3,FALSE))","v":{"v":-39475.60306466774,"d":"(39,476)"}},{"$f":"($A29-$A28)/365.25*(O28+(Main!$I35*Main!$D$3))*(1+VLOOKUP('Random Years'!M29,'Hist Returns'!$A$12:$D$107,3,FALSE))","v":{"v":-40963.49946109602,"d":"(40,963)"}},{"$f":"($A29-$A28)/365.25*(P28+(Main!$I35*Main!$D$3))*(1+VLOOKUP('Random Years'!N29,'Hist Returns'!$A$12:$D$107,3,FALSE))","v":{"v":-51981.7725394636,"d":"(51,982)"}},{"$f":"($A29-$A28)/365.25*(Q28+(Main!$I35*Main!$D$3))*(1+VLOOKUP('Random Years'!O29,'Hist Returns'!$A$12:$D$107,3,FALSE))","v":{"v":-66964.18824817563,"d":"(66,964)"}},{"$f":"($A29-$A28)/365.25*(R28+(Main!$I35*Main!$D$3))*(1+VLOOKUP('Random Years'!P29,'Hist Returns'!$A$12:$D$107,3,FALSE))","v":{"v":-45749.64221524923,"d":"(45,750)"}},{"$f":"($A29-$A28)/365.25*(S28+(Main!$I35*Main!$D$3))*(1+VLOOKUP('Random Years'!Q29,'Hist Returns'!$A$12:$D$107,3,FALSE))","v":{"v":-65258.59031269229,"d":"(65,259)"}},{"$f":"($A29-$A28)/365.25*(T28+(Main!$I35*Main!$D$3))*(1+VLOOKUP('Random Years'!R29,'Hist Returns'!$A$12:$D$107,3,FALSE))","v":{"v":-8295.655025478129,"d":"(8,296)"}},{"$f":"($A29-$A28)/365.25*(U28+(Main!$I35*Main!$D$3))*(1+VLOOKUP('Random Years'!S29,'Hist Returns'!$A$12:$D$107,3,FALSE))","v":{"v":-33150.678979264834,"d":"(33,151)"}},{"$f":"($A29-$A28)/365.25*(V28+(Main!$I35*Main!$D$3))*(1+VLOOKUP('Random Years'!T29,'Hist Returns'!$A$12:$D$107,3,FALSE))","v":{"v":-43771.0714545452,"d":"(43,771)"}},{"$f":"($A29-$A28)/365.25*(W28+(Main!$I35*Main!$D$3))*(1+VLOOKUP('Random Years'!U29,'Hist Returns'!$A$12:$D$107,3,FALSE))","v":{"v":-14388.646029749096,"d":"(14,389)"}},{"$f":"($A29-$A28)/365.25*(X28+(Main!$I35*Main!$D$3))*(1+VLOOKUP('Random Years'!V29,'Hist Returns'!$A$12:$D$107,3,FALSE))","v":{"v":-57187.095446340456,"d":"(57,187)"}},{"$f":"($A29-$A28)/365.25*(Y28+(Main!$I35*Main!$D$3))*(1+VLOOKUP('Random Years'!W29,'Hist Returns'!$A$12:$D$107,3,FALSE))","v":{"v":-64129.76499135919,"d":"(64,130)"}},{"$f":"($A29-$A28)/365.25*(Z28+(Main!$I35*Main!$D$3))*(1+VLOOKUP('Random Years'!X29,'Hist Returns'!$A$12:$D$107,3,FALSE))","v":{"v":-43821.15952177407,"d":"(43,821)"}},{"$f":"($A29-$A28)/365.25*(AA28+(Main!$I35*Main!$D$3))*(1+VLOOKUP('Random Years'!Y29,'Hist Returns'!$A$12:$D$107,3,FALSE))","v":{"v":-54221.67942212954,"d":"(54,222)"}},{"$f":"($A29-$A28)/365.25*(AB28+(Main!$I35*Main!$D$3))*(1+VLOOKUP('Random Years'!Z29,'Hist Returns'!$A$12:$D$107,3,FALSE))","v":{"v":-42105.74920519868,"d":"(42,106)"}},{"$f":"($A29-$A28)/365.25*(AC28+(Main!$I35*Main!$D$3))*(1+VLOOKUP('Random Years'!AA29,'Hist Returns'!$A$12:$D$107,3,FALSE))","v":{"v":-33975.43072017501,"d":"(33,975)"}},{"$f":"($A29-$A28)/365.25*(AD28+(Main!$I35*Main!$D$3))*(1+VLOOKUP('Random Years'!AB29,'Hist Returns'!$A$12:$D$107,3,FALSE))","v":{"v":-44842.61708715726,"d":"(44,843)"}},{"$f":"($A29-$A28)/365.25*(AE28+(Main!$I35*Main!$D$3))*(1+VLOOKUP('Random Years'!AC29,'Hist Returns'!$A$12:$D$107,3,FALSE))","v":{"v":-56237.98182610242,"d":"(56,238)"}},{"$f":"($A29-$A28)/365.25*(AF28+(Main!$I35*Main!$D$3))*(1+VLOOKUP('Random Years'!AD29,'Hist Returns'!$A$12:$D$107,3,FALSE))","v":{"v":-56600.002760453426,"d":"(56,600)"}},{"$f":"($A29-$A28)/365.25*(AG28+(Main!$I35*Main!$D$3))*(1+VLOOKUP('Random Years'!AE29,'Hist Returns'!$A$12:$D$107,3,FALSE))","v":{"v":-54203.41744405408,"d":"(54,203)"}},{"$f":"($A29-$A28)/365.25*(AH28+(Main!$I35*Main!$D$3))*(1+VLOOKUP('Random Years'!AF29,'Hist Returns'!$A$12:$D$107,3,FALSE))","v":{"v":-47107.6146089321,"d":"(47,108)"}},{"$f":"($A29-$A28)/365.25*(AI28+(Main!$I35*Main!$D$3))*(1+VLOOKUP('Random Years'!AG29,'Hist Returns'!$A$12:$D$107,3,FALSE))","v":{"v":-35760.45891885836,"d":"(35,760)"}},{"$f":"($A29-$A28)/365.25*(AJ28+(Main!$I35*Main!$D$3))*(1+VLOOKUP('Random Years'!AH29,'Hist Returns'!$A$12:$D$107,3,FALSE))","v":{"v":-43484.05061275929,"d":"(43,484)"}},{"$f":"($A29-$A28)/365.25*(AK28+(Main!$I35*Main!$D$3))*(1+VLOOKUP('Random Years'!AI29,'Hist Returns'!$A$12:$D$107,3,FALSE))","v":{"v":-57450.23251372169,"d":"(57,450)"}},{"$f":"($A29-$A28)/365.25*(AL28+(Main!$I35*Main!$D$3))*(1+VLOOKUP('Random Years'!AJ29,'Hist Returns'!$A$12:$D$107,3,FALSE))","v":{"v":-37142.78102497426,"d":"(37,143)"}},{"$f":"($A29-$A28)/365.25*(AM28+(Main!$I35*Main!$D$3))*(1+VLOOKUP('Random Years'!AK29,'Hist Returns'!$A$12:$D$107,3,FALSE))","v":{"v":-34856.651992229046,"d":"(34,857)"}},{"$f":"($A29-$A28)/365.25*(AN28+(Main!$I35*Main!$D$3))*(1+VLOOKUP('Random Years'!AL29,'Hist Returns'!$A$12:$D$107,3,FALSE))","v":{"v":-34562.18135659373,"d":"(34,562)"}},{"$f":"($A29-$A28)/365.25*(AO28+(Main!$I35*Main!$D$3))*(1+VLOOKUP('Random Years'!AM29,'Hist Returns'!$A$12:$D$107,3,FALSE))","v":{"v":-23414.25358332815,"d":"(23,414)"}},{"$f":"($A29-$A28)/365.25*(AP28+(Main!$I35*Main!$D$3))*(1+VLOOKUP('Random Years'!AN29,'Hist Returns'!$A$12:$D$107,3,FALSE))","v":{"v":-56566.07963048083,"d":"(56,566)"}},{"$f":"($A29-$A28)/365.25*(AQ28+(Main!$I35*Main!$D$3))*(1+VLOOKUP('Random Years'!AO29,'Hist Returns'!$A$12:$D$107,3,FALSE))","v":{"v":-55607.54122674829,"d":"(55,608)"}},{"$f":"($A29-$A28)/365.25*(AR28+(Main!$I35*Main!$D$3))*(1+VLOOKUP('Random Years'!AP29,'Hist Returns'!$A$12:$D$107,3,FALSE))","v":{"v":-58426.109440856584,"d":"(58,426)"}},{"$f":"($A29-$A28)/365.25*(AS28+(Main!$I35*Main!$D$3))*(1+VLOOKUP('Random Years'!AQ29,'Hist Returns'!$A$12:$D$107,3,FALSE))","v":{"v":-55402.4447331004,"d":"(55,402)"}},{"$f":"($A29-$A28)/365.25*(AT28+(Main!$I35*Main!$D$3))*(1+VLOOKUP('Random Years'!AR29,'Hist Returns'!$A$12:$D$107,3,FALSE))","v":{"v":-41422.8622536366,"d":"(41,423)"}},{"$f":"($A29-$A28)/365.25*(AU28+(Main!$I35*Main!$D$3))*(1+VLOOKUP('Random Years'!AS29,'Hist Returns'!$A$12:$D$107,3,FALSE))","v":{"v":-56549.836242641126,"d":"(56,550)"}},{"$f":"($A29-$A28)/365.25*(AV28+(Main!$I35*Main!$D$3))*(1+VLOOKUP('Random Years'!AT29,'Hist Returns'!$A$12:$D$107,3,FALSE))","v":{"v":-73203.95814950902,"d":"(73,204)"}},{"$f":"($A29-$A28)/365.25*(AW28+(Main!$I35*Main!$D$3))*(1+VLOOKUP('Random Years'!AU29,'Hist Returns'!$A$12:$D$107,3,FALSE))","v":{"v":-53560.67667267839,"d":"(53,561)"}},{"$f":"($A29-$A28)/365.25*(AX28+(Main!$I35*Main!$D$3))*(1+VLOOKUP('Random Years'!AV29,'Hist Returns'!$A$12:$D$107,3,FALSE))","v":{"v":-50053.71720642114,"d":"(50,054)"}},{"$f":"($A29-$A28)/365.25*(AY28+(Main!$I35*Main!$D$3))*(1+VLOOKUP('Random Years'!AW29,'Hist Returns'!$A$12:$D$107,3,FALSE))","v":{"v":-67571.3696010592,"d":"(67,571)"}},{"$f":"($A29-$A28)/365.25*(AZ28+(Main!$I35*Main!$D$3))*(1+VLOOKUP('Random Years'!AX29,'Hist Returns'!$A$12:$D$107,3,FALSE))","v":{"v":-48927.66820307404,"d":"(48,928)"}},{"$f":"($A29-$A28)/365.25*(BA28+(Main!$I35*Main!$D$3))*(1+VLOOKUP('Random Years'!AY29,'Hist Returns'!$A$12:$D$107,3,FALSE))","v":{"v":-33862.87340497093,"d":"(33,863)"}},{"$f":"($A29-$A28)/365.25*(BB28+(Main!$I35*Main!$D$3))*(1+VLOOKUP('Random Years'!AZ29,'Hist Returns'!$A$12:$D$107,3,FALSE))","v":{"v":-16122.542976588411,"d":"(16,123)"}},{"$f":"($A29-$A28)/365.25*(BC28+(Main!$I35*Main!$D$3))*(1+VLOOKUP('Random Years'!BA29,'Hist Returns'!$A$12:$D$107,3,FALSE))","v":{"v":-26177.189392955726,"d":"(26,177)"}},{"$f":"($A29-$A28)/365.25*(BD28+(Main!$I35*Main!$D$3))*(1+VLOOKUP('Random Years'!BB29,'Hist Returns'!$A$12:$D$107,3,FALSE))","v":{"v":-64587.63366067833,"d":"(64,588)"}},{"$f":"($A29-$A28)/365.25*(BE28+(Main!$I35*Main!$D$3))*(1+VLOOKUP('Random Years'!BC29,'Hist Returns'!$A$12:$D$107,3,FALSE))","v":{"v":-44678.866588269564,"d":"(44,679)"}},{"$f":"($A29-$A28)/365.25*(BF28+(Main!$I35*Main!$D$3))*(1+VLOOKUP('Random Years'!BD29,'Hist Returns'!$A$12:$D$107,3,FALSE))","v":{"v":-41019.86149895723,"d":"(41,020)"}},{"$f":"($A29-$A28)/365.25*(BG28+(Main!$I35*Main!$D$3))*(1+VLOOKUP('Random Years'!BE29,'Hist Returns'!$A$12:$D$107,3,FALSE))","v":{"v":-48964.21655713458,"d":"(48,964)"}},{"$f":"($A29-$A28)/365.25*(BH28+(Main!$I35*Main!$D$3))*(1+VLOOKUP('Random Years'!BF29,'Hist Returns'!$A$12:$D$107,3,FALSE))","v":{"v":-64251.59665980547,"d":"(64,252)"}},{"$f":"($A29-$A28)/365.25*(BI28+(Main!$I35*Main!$D$3))*(1+VLOOKUP('Random Years'!BG29,'Hist Returns'!$A$12:$D$107,3,FALSE))","v":{"v":-46586.97316924662,"d":"(46,587)"}},{"$f":"($A29-$A28)/365.25*(BJ28+(Main!$I35*Main!$D$3))*(1+VLOOKUP('Random Years'!BH29,'Hist Returns'!$A$12:$D$107,3,FALSE))","v":{"v":-30682.533774866046,"d":"(30,683)"}},{"$f":"($A29-$A28)/365.25*(BK28+(Main!$I35*Main!$D$3))*(1+VLOOKUP('Random Years'!BI29,'Hist Returns'!$A$12:$D$107,3,FALSE))","v":{"v":-57468.514737590944,"d":"(57,469)"}},{"$f":"($A29-$A28)/365.25*(BL28+(Main!$I35*Main!$D$3))*(1+VLOOKUP('Random Years'!BJ29,'Hist Returns'!$A$12:$D$107,3,FALSE))","v":{"v":-47372.00734141814,"d":"(47,372)"}},{"$f":"($A29-$A28)/365.25*(BM28+(Main!$I35*Main!$D$3))*(1+VLOOKUP('Random Years'!BK29,'Hist Returns'!$A$12:$D$107,3,FALSE))","v":{"v":-42063.018236321324,"d":"(42,063)"}},{"$f":"($A29-$A28)/365.25*(BN28+(Main!$I35*Main!$D$3))*(1+VLOOKUP('Random Years'!BL29,'Hist Returns'!$A$12:$D$107,3,FALSE))","v":{"v":-50788.18660704136,"d":"(50,788)"}},{"$f":"($A29-$A28)/365.25*(BO28+(Main!$I35*Main!$D$3))*(1+VLOOKUP('Random Years'!BM29,'Hist Returns'!$A$12:$D$107,3,FALSE))","v":{"v":-43078.66776126975,"d":"(43,079)"}},{"$f":"($A29-$A28)/365.25*(BP28+(Main!$I35*Main!$D$3))*(1+VLOOKUP('Random Years'!BN29,'Hist Returns'!$A$12:$D$107,3,FALSE))","v":{"v":-70125.81056524339,"d":"(70,126)"}},{"$f":"($A29-$A28)/365.25*(BQ28+(Main!$I35*Main!$D$3))*(1+VLOOKUP('Random Years'!BO29,'Hist Returns'!$A$12:$D$107,3,FALSE))","v":{"v":-54302.46667239379,"d":"(54,302)"}},{"$f":"($A29-$A28)/365.25*(BR28+(Main!$I35*Main!$D$3))*(1+VLOOKUP('Random Years'!BP29,'Hist Returns'!$A$12:$D$107,3,FALSE))","v":{"v":-41162.292087542555,"d":"(41,162)"}},{"$f":"($A29-$A28)/365.25*(BS28+(Main!$I35*Main!$D$3))*(1+VLOOKUP('Random Years'!BQ29,'Hist Returns'!$A$12:$D$107,3,FALSE))","v":{"v":-36198.71981840614,"d":"(36,199)"}},{"$f":"($A29-$A28)/365.25*(BT28+(Main!$I35*Main!$D$3))*(1+VLOOKUP('Random Years'!BR29,'Hist Returns'!$A$12:$D$107,3,FALSE))","v":{"v":-42684.275527687685,"d":"(42,684)"}},{"$f":"($A29-$A28)/365.25*(BU28+(Main!$I35*Main!$D$3))*(1+VLOOKUP('Random Years'!BS29,'Hist Returns'!$A$12:$D$107,3,FALSE))","v":{"v":-29655.57701906385,"d":"(29,656)"}},{"$f":"($A29-$A28)/365.25*(BV28+(Main!$I35*Main!$D$3))*(1+VLOOKUP('Random Years'!BT29,'Hist Returns'!$A$12:$D$107,3,FALSE))","v":{"v":-57778.07371843927,"d":"(57,778)"}},{"$f":"($A29-$A28)/365.25*(BW28+(Main!$I35*Main!$D$3))*(1+VLOOKUP('Random Years'!BU29,'Hist Returns'!$A$12:$D$107,3,FALSE))","v":{"v":-57976.12040724705,"d":"(57,976)"}},{"$f":"($A29-$A28)/365.25*(BX28+(Main!$I35*Main!$D$3))*(1+VLOOKUP('Random Years'!BV29,'Hist Returns'!$A$12:$D$107,3,FALSE))","v":{"v":-34621.97053974418,"d":"(34,622)"}},{"$f":"($A29-$A28)/365.25*(BY28+(Main!$I35*Main!$D$3))*(1+VLOOKUP('Random Years'!BW29,'Hist Returns'!$A$12:$D$107,3,FALSE))","v":{"v":-46596.59525342746,"d":"(46,597)"}},{"$f":"($A29-$A28)/365.25*(BZ28+(Main!$I35*Main!$D$3))*(1+VLOOKUP('Random Years'!BX29,'Hist Returns'!$A$12:$D$107,3,FALSE))","v":{"v":-63689.57791577495,"d":"(63,690)"}},{"$f":"($A29-$A28)/365.25*(CA28+(Main!$I35*Main!$D$3))*(1+VLOOKUP('Random Years'!BY29,'Hist Returns'!$A$12:$D$107,3,FALSE))","v":{"v":-49325.201578283566,"d":"(49,325)"}},{"$f":"($A29-$A28)/365.25*(CB28+(Main!$I35*Main!$D$3))*(1+VLOOKUP('Random Years'!BZ29,'Hist Returns'!$A$12:$D$107,3,FALSE))","v":{"v":-48422.82099500897,"d":"(48,423)"}},{"$f":"($A29-$A28)/365.25*(CC28+(Main!$I35*Main!$D$3))*(1+VLOOKUP('Random Years'!CA29,'Hist Returns'!$A$12:$D$107,3,FALSE))","v":{"v":-38366.1124134294,"d":"(38,366)"}},{"$f":"($A29-$A28)/365.25*(CD28+(Main!$I35*Main!$D$3))*(1+VLOOKUP('Random Years'!CB29,'Hist Returns'!$A$12:$D$107,3,FALSE))","v":{"v":-53919.70851634098,"d":"(53,920)"}},{"$f":"($A29-$A28)/365.25*(CE28+(Main!$I35*Main!$D$3))*(1+VLOOKUP('Random Years'!CC29,'Hist Returns'!$A$12:$D$107,3,FALSE))","v":{"v":-40968.11221692447,"d":"(40,968)"}},{"$f":"($A29-$A28)/365.25*(CF28+(Main!$I35*Main!$D$3))*(1+VLOOKUP('Random Years'!CD29,'Hist Returns'!$A$12:$D$107,3,FALSE))","v":{"v":-41608.223051959234,"d":"(41,608)"}},{"$f":"($A29-$A28)/365.25*(CG28+(Main!$I35*Main!$D$3))*(1+VLOOKUP('Random Years'!CE29,'Hist Returns'!$A$12:$D$107,3,FALSE))","v":{"v":-50835.07963184997,"d":"(50,835)"}},{"$f":"($A29-$A28)/365.25*(CH28+(Main!$I35*Main!$D$3))*(1+VLOOKUP('Random Years'!CF29,'Hist Returns'!$A$12:$D$107,3,FALSE))","v":{"v":-34208.363201519554,"d":"(34,208)"}},{"$f":"($A29-$A28)/365.25*(CI28+(Main!$I35*Main!$D$3))*(1+VLOOKUP('Random Years'!CG29,'Hist Returns'!$A$12:$D$107,3,FALSE))","v":{"v":-39742.899163128306,"d":"(39,743)"}},{"$f":"($A29-$A28)/365.25*(CJ28+(Main!$I35*Main!$D$3))*(1+VLOOKUP('Random Years'!CH29,'Hist Returns'!$A$12:$D$107,3,FALSE))","v":{"v":-51223.15225183112,"d":"(51,223)"}},{"$f":"($A29-$A28)/365.25*(CK28+(Main!$I35*Main!$D$3))*(1+VLOOKUP('Random Years'!CI29,'Hist Returns'!$A$12:$D$107,3,FALSE))","v":{"v":-66107.14008854373,"d":"(66,107)"}},{"$f":"($A29-$A28)/365.25*(CL28+(Main!$I35*Main!$D$3))*(1+VLOOKUP('Random Years'!CJ29,'Hist Returns'!$A$12:$D$107,3,FALSE))","v":{"v":-60600.47774350141,"d":"(60,600)"}},{"$f":"($A29-$A28)/365.25*(CM28+(Main!$I35*Main!$D$3))*(1+VLOOKUP('Random Years'!CK29,'Hist Returns'!$A$12:$D$107,3,FALSE))","v":{"v":-55264.457428502166,"d":"(55,264)"}},{"$f":"($A29-$A28)/365.25*(CN28+(Main!$I35*Main!$D$3))*(1+VLOOKUP('Random Years'!CL29,'Hist Returns'!$A$12:$D$107,3,FALSE))","v":{"v":-36707.354661093,"d":"(36,707)"}},{"$f":"($A29-$A28)/365.25*(CO28+(Main!$I35*Main!$D$3))*(1+VLOOKUP('Random Years'!CM29,'Hist Returns'!$A$12:$D$107,3,FALSE))","v":{"v":-50317.0400709132,"d":"(50,317)"}},{"$f":"($A29-$A28)/365.25*(CP28+(Main!$I35*Main!$D$3))*(1+VLOOKUP('Random Years'!CN29,'Hist Returns'!$A$12:$D$107,3,FALSE))","v":{"v":-31805.48672834701,"d":"(31,805)"}},{"$f":"($A29-$A28)/365.25*(CQ28+(Main!$I35*Main!$D$3))*(1+VLOOKUP('Random Years'!CO29,'Hist Returns'!$A$12:$D$107,3,FALSE))","v":{"v":-70762.1838133974,"d":"(70,762)"}},{"$f":"($A29-$A28)/365.25*(CR28+(Main!$I35*Main!$D$3))*(1+VLOOKUP('Random Years'!CP29,'Hist Returns'!$A$12:$D$107,3,FALSE))","v":{"v":-41064.26799060719,"d":"(41,064)"}},{"$f":"($A29-$A28)/365.25*(CS28+(Main!$I35*Main!$D$3))*(1+VLOOKUP('Random Years'!CQ29,'Hist Returns'!$A$12:$D$107,3,FALSE))","v":{"v":-51261.87461065408,"d":"(51,262)"}},{"$f":"($A29-$A28)/365.25*(CT28+(Main!$I35*Main!$D$3))*(1+VLOOKUP('Random Years'!CR29,'Hist Returns'!$A$12:$D$107,3,FALSE))","v":{"v":-33991.19303436367,"d":"(33,991)"}},{"$f":"($A29-$A28)/365.25*(CU28+(Main!$I35*Main!$D$3))*(1+VLOOKUP('Random Years'!CS29,'Hist Returns'!$A$12:$D$107,3,FALSE))","v":{"v":-49322.80196946088,"d":"(49,323)"}},{"$f":"($A29-$A28)/365.25*(CV28+(Main!$I35*Main!$D$3))*(1+VLOOKUP('Random Years'!CT29,'Hist Returns'!$A$12:$D$107,3,FALSE))","v":{"v":-54660.91074033291,"d":"(54,661)"}},{"$f":"($A29-$A28)/365.25*(CW28+(Main!$I35*Main!$D$3))*(1+VLOOKUP('Random Years'!CU29,'Hist Returns'!$A$12:$D$107,3,FALSE))","v":{"v":-47583.38727610623,"d":"(47,583)"}},{"$f":"($A29-$A28)/365.25*(CX28+(Main!$I35*Main!$D$3))*(1+VLOOKUP('Random Years'!CV29,'Hist Returns'!$A$12:$D$107,3,FALSE))","v":{"v":-43210.378276040596,"d":"(43,210)"}}]
[{"$f":"Main!A36","v":"2051-12-31"},{"$f":"Main!B36","v":97},{"$f":"($A30-$A29)/365.25*(C29+(Main!$I36*Main!$D$3))*(1+VLOOKUP('Random Years'!A30,'Hist Returns'!$A$12:$D$107,3,FALSE))","v":{"v":-57420.68538099575,"d":"(57,421)"}},{"$f":"($A30-$A29)/365.25*(D29+(Main!$I36*Main!$D$3))*(1+VLOOKUP('Random Years'!B30,'Hist Returns'!$A$12:$D$107,3,FALSE))","v":{"v":-82899.88862458216,"d":"(82,900)"}},{"$f":"($A30-$A29)/365.25*(E29+(Main!$I36*Main!$D$3))*(1+VLOOKUP('Random Years'!C30,'Hist Returns'!$A$12:$D$107,3,FALSE))","v":{"v":-61885.01846601272,"d":"(61,885)"}},{"$f":"($A30-$A29)/365.25*(F29+(Main!$I36*Main!$D$3))*(1+VLOOKUP('Random Years'!D30,'Hist Returns'!$A$12:$D$107,3,FALSE))","v":{"v":-74835.32625549004,"d":"(74,835)"}},{"$f":"($A30-$A29)/365.25*(G29+(Main!$I36*Main!$D$3))*(1+VLOOKUP('Random Years'!E30,'Hist Returns'!$A$12:$D$107,3,FALSE))","v":{"v":-60477.18289376046,"d":"(60,477)"}},{"$f":"($A30-$A29)/365.25*(H29+(Main!$I36*Main!$D$3))*(1+VLOOKUP('Random Years'!F30,'Hist Returns'!$A$12:$D$107,3,FALSE))","v":{"v":-63775.03318401702,"d":"(63,775)"}},{"$f":"($A30-$A29)/365.25*(I29+(Main!$I36*Main!$D$3))*(1+VLOOKUP('Random Years'!G30,'Hist Returns'!$A$12:$D$107,3,FALSE))","v":{"v":-65416.30533083316,"d":"(65,416)"}},{"$f":"($A30-$A29)/365.25*(J29+(Main!$I36*Main!$D$3))*(1+VLOOKUP('Random Years'!H30,'Hist Returns'!$A$12:$D$107,3,FALSE))","v":{"v":-41071.67725677265,"d":"(41,072)"}},{"$f":"($A30-$A29)/365.25*(K29+(Main!$I36*Main!$D$3))*(1+VLOOKUP('Random Years'!I30,'Hist Returns'!$A$12:$D$107,3,FALSE))","v":{"v":-26232.60203634397,"d":"(26,233)"}},{"$f":"($A30-$A29)/365.25*(L29+(Main!$I36*Main!$D$3))*(1+VLOOKUP('Random Years'!J30,'Hist Returns'!$A$12:$D$107,3,FALSE))","v":{"v":-82815.90811868725,"d":"(82,816)"}},{"$f":"($A30-$A29)/365.25*(M29+(Main!$I36*Main!$D$3))*(1+VLOOKUP('Random Years'!K30,'Hist Returns'!$A$12:$D$107,3,FALSE))","v":{"v":-91083.0302654566,"d":"(91,083)"}},{"$f":"($A30-$A29)/365.25*(N29+(Main!$I36*Main!$D$3))*(1+VLOOKUP('Random Years'!L30,'Hist Returns'!$A$12:$D$107,3,FALSE))","v":{"v":-62757.73696038433,"d":"(62,758)"}},{"$f":"($A30-$A29)/365.25*(O29+(Main!$I36*Main!$D$3))*(1+VLOOKUP('Random Years'!M30,'Hist Returns'!$A$12:$D$107,3,FALSE))","v":{"v":-56434.33028734265,"d":"(56,434)"}},{"$f":"($A30-$A29)/365.25*(P29+(Main!$I36*Main!$D$3))*(1+VLOOKUP('Random Years'!N30,'Hist Returns'!$A$12:$D$107,3,FALSE))","v":{"v":-70358.07172763144,"d":"(70,358)"}},{"$f":"($A30-$A29)/365.25*(Q29+(Main!$I36*Main!$D$3))*(1+VLOOKUP('Random Years'!O30,'Hist Returns'!$A$12:$D$107,3,FALSE))","v":{"v":-83300.4337085326,"d":"(83,300)"}},{"$f":"($A30-$A29)/365.25*(R29+(Main!$I36*Main!$D$3))*(1+VLOOKUP('Random Years'!P30,'Hist Returns'!$A$12:$D$107,3,FALSE))","v":{"v":-61909.03778009243,"d":"(61,909)"}},{"$f":"($A30-$A29)/365.25*(S29+(Main!$I36*Main!$D$3))*(1+VLOOKUP('Random Years'!Q30,'Hist Returns'!$A$12:$D$107,3,FALSE))","v":{"v":-84795.33902988466,"d":"(84,795)"}},{"$f":"($A30-$A29)/365.25*(T29+(Main!$I36*Main!$D$3))*(1+VLOOKUP('Random Years'!R30,'Hist Returns'!$A$12:$D$107,3,FALSE))","v":{"v":-24686.756564710642,"d":"(24,687)"}},{"$f":"($A30-$A29)/365.25*(U29+(Main!$I36*Main!$D$3))*(1+VLOOKUP('Random Years'!S30,'Hist Returns'!$A$12:$D$107,3,FALSE))","v":{"v":-49374.47782793481,"d":"(49,374)"}},{"$f":"($A30-$A29)/365.25*(V29+(Main!$I36*Main!$D$3))*(1+VLOOKUP('Random Years'!T30,'Hist Returns'!$A$12:$D$107,3,FALSE))","v":{"v":-59903.2074334007,"d":"(59,903)"}},{"$f":"($A30-$A29)/365.25*(W29+(Main!$I36*Main!$D$3))*(1+VLOOKUP('Random Years'!U30,'Hist Returns'!$A$12:$D$107,3,FALSE))","v":{"v":-29880.803484900483,"d":"(29,881)"}},{"$f":"($A30-$A29)/365.25*(X29+(Main!$I36*Main!$D$3))*(1+VLOOKUP('Random Years'!V30,'Hist Returns'!$A$12:$D$107,3,FALSE))","v":{"v":-76052.40918945246,"d":"(76,052)"}},{"$f":"($A30-$A29)/365.25*(Y29+(Main!$I36*Main!$D$3))*(1+VLOOKUP('Random Years'!W30,'Hist Returns'!$A$12:$D$107,3,FALSE))","v":{"v":-79849.775889114,"d":"(79,850)"}},{"$f":"($A30-$A29)/365.25*(Z29+(Main!$I36*Main!$D$3))*(1+VLOOKUP('Random Years'!X30,'Hist Returns'!$A$12:$D$107,3,FALSE))","v":{"v":-59385.0834776439,"d":"(59,385)"}},{"$f":"($A30-$A29)/365.25*(AA29+(Main!$I36*Main!$D$3))*(1+VLOOKUP('Random Years'!Y30,'Hist Returns'!$A$12:$D$107,3,FALSE))","v":{"v":-74511.51045136237,"d":"(74,512)"}},{"$f":"($A30-$A29)/365.25*(AB29+(Main!$I36*Main!$D$3))*(1+VLOOKUP('Random Years'!Z30,'Hist Returns'!$A$12:$D$107,3,FALSE))","v":{"v":-57579.68094631528,"d":"(57,580)"}},{"$f":"($A30-$A29)/365.25*(AC29+(Main!$I36*Main!$D$3))*(1+VLOOKUP('Random Years'!AA30,'Hist Returns'!$A$12:$D$107,3,FALSE))","v":{"v":-50219.58156485785,"d":"(50,220)"}},{"$f":"($A30-$A29)/365.25*(AD29+(Main!$I36*Main!$D$3))*(1+VLOOKUP('Random Years'!AB30,'Hist Returns'!$A$12:$D$107,3,FALSE))","v":{"v":-60513.27108232152,"d":"(60,513)"}},{"$f":"($A30-$A29)/365.25*(AE29+(Main!$I36*Main!$D$3))*(1+VLOOKUP('Random Years'!AC30,'Hist Returns'!$A$12:$D$107,3,FALSE))","v":{"v":-71975.42623011851,"d":"(71,975)"}},{"$f":"($A30-$A29)/365.25*(AF29+(Main!$I36*Main!$D$3))*(1+VLOOKUP('Random Years'!AD30,'Hist Returns'!$A$12:$D$107,3,FALSE))","v":{"v":-72433.25447339553,"d":"(72,433)"}},{"$f":"($A30-$A29)/365.25*(AG29+(Main!$I36*Main!$D$3))*(1+VLOOKUP('Random Years'!AE30,'Hist Returns'!$A$12:$D$107,3,FALSE))","v":{"v":-70744.0081682611,"d":"(70,744)"}},{"$f":"($A30-$A29)/365.25*(AH29+(Main!$I36*Main!$D$3))*(1+VLOOKUP('Random Years'!AF30,'Hist Returns'!$A$12:$D$107,3,FALSE))","v":{"v":-62585.116516438015,"d":"(62,585)"}},{"$f":"($A30-$A29)/365.25*(AI29+(Main!$I36*Main!$D$3))*(1+VLOOKUP('Random Years'!AG30,'Hist Returns'!$A$12:$D$107,3,FALSE))","v":{"v":-51731.045998789305,"d":"(51,731)"}},{"$f":"($A30-$A29)/365.25*(AJ29+(Main!$I36*Main!$D$3))*(1+VLOOKUP('Random Years'!AH30,'Hist Returns'!$A$12:$D$107,3,FALSE))","v":{"v":-59258.69517691122,"d":"(59,259)"}},{"$f":"($A30-$A29)/365.25*(AK29+(Main!$I36*Main!$D$3))*(1+VLOOKUP('Random Years'!AI30,'Hist Returns'!$A$12:$D$107,3,FALSE))","v":{"v":-76075.03109945486,"d":"(76,075)"}},{"$f":"($A30-$A29)/365.25*(AL29+(Main!$I36*Main!$D$3))*(1+VLOOKUP('Random Years'!AJ30,'Hist Returns'!$A$12:$D$107,3,FALSE))","v":{"v":-52600.0854686835,"d":"(52,600)"}},{"$f":"($A30-$A29)/365.25*(AM29+(Main!$I36*Main!$D$3))*(1+VLOOKUP('Random Years'!AK30,'Hist Returns'!$A$12:$D$107,3,FALSE))","v":{"v":-50297.83208760388,"d":"(50,298)"}},{"$f":"($A30-$A29)/365.25*(AN29+(Main!$I36*Main!$D$3))*(1+VLOOKUP('Random Years'!AL30,'Hist Returns'!$A$12:$D$107,3,FALSE))","v":{"v":-51597.08515721736,"d":"(51,597)"}},{"$f":"($A30-$A29)/365.25*(AO29+(Main!$I36*Main!$D$3))*(1+VLOOKUP('Random Years'!AM30,'Hist Returns'!$A$12:$D$107,3,FALSE))","v":{"v":-39033.05431904786,"d":"(39,033)"}},{"$f":"($A30-$A29)/365.25*(AP29+(Main!$I36*Main!$D$3))*(1+VLOOKUP('Random Years'!AN30,'Hist Returns'!$A$12:$D$107,3,FALSE))","v":{"v":-74271.91321231454,"d":"(74,272)"}},{"$f":"($A30-$A29)/365.25*(AQ29+(Main!$I36*Main!$D$3))*(1+VLOOKUP('Random Years'!AO30,'Hist Returns'!$A$12:$D$107,3,FALSE))","v":{"v":-71853.0032810297,"d":"(71,853)"}},{"$f":"($A30-$A29)/365.25*(AR29+(Main!$I36*Main!$D$3))*(1+VLOOKUP('Random Years'!AP30,'Hist Returns'!$A$12:$D$107,3,FALSE))","v":{"v":-74316.78047249175,"d":"(74,317)"}},{"$f":"($A30-$A29)/365.25*(AS29+(Main!$I36*Main!$D$3))*(1+VLOOKUP('Random Years'!AQ30,'Hist Returns'!$A$12:$D$107,3,FALSE))","v":{"v":-73154.66440810259,"d":"(73,155)"}},{"$f":"($A30-$A29)/365.25*(AT29+(Main!$I36*Main!$D$3))*(1+VLOOKUP('Random Years'!AR30,'Hist Returns'!$A$12:$D$107,3,FALSE))","v":{"v":-58204.93495601516,"d":"(58,205)"}},{"$f":"($A30-$A29)/365.25*(AU29+(Main!$I36*Main!$D$3))*(1+VLOOKUP('Random Years'!AS30,'Hist Returns'!$A$12:$D$107,3,FALSE))","v":{"v":-73081.27843247962,"d":"(73,081)"}},{"$f":"($A30-$A29)/365.25*(AV29+(Main!$I36*Main!$D$3))*(1+VLOOKUP('Random Years'!AT30,'Hist Returns'!$A$12:$D$107,3,FALSE))","v":{"v":-89652.89938716772,"d":"(89,653)"}},{"$f":"($A30-$A29)/365.25*(AW29+(Main!$I36*Main!$D$3))*(1+VLOOKUP('Random Years'!AU30,'Hist Returns'!$A$12:$D$107,3,FALSE))","v":{"v":-69282.42887991844,"d":"(69,282)"}},{"$f":"($A30-$A29)/365.25*(AX29+(Main!$I36*Main!$D$3))*(1+VLOOKUP('Random Years'!AV30,'Hist Returns'!$A$12:$D$107,3,FALSE))","v":{"v":-66521.33455725017,"d":"(66,521)"}},{"$f":"($A30-$A29)/365.25*(AY29+(Main!$I36*Main!$D$3))*(1+VLOOKUP('Random Years'!AW30,'Hist Returns'!$A$12:$D$107,3,FALSE))","v":{"v":-87229.20727345295,"d":"(87,229)"}},{"$f":"($A30-$A29)/365.25*(AZ29+(Main!$I36*Main!$D$3))*(1+VLOOKUP('Random Years'!AX30,'Hist Returns'!$A$12:$D$107,3,FALSE))","v":{"v":-67931.27566894265,"d":"(67,931)"}},{"$f":"($A30-$A29)/365.25*(BA29+(Main!$I36*Main!$D$3))*(1+VLOOKUP('Random Years'!AY30,'Hist Returns'!$A$12:$D$107,3,FALSE))","v":{"v":-52598.57378989186,"d":"(52,599)"}},{"$f":"($A30-$A29)/365.25*(BB29+(Main!$I36*Main!$D$3))*(1+VLOOKUP('Random Years'!AZ30,'Hist Returns'!$A$12:$D$107,3,FALSE))","v":{"v":-32522.759725095002,"d":"(32,523)"}},{"$f":"($A30-$A29)/365.25*(BC29+(Main!$I36*Main!$D$3))*(1+VLOOKUP('Random Years'!BA30,'Hist Returns'!$A$12:$D$107,3,FALSE))","v":{"v":-41721.80957752122,"d":"(41,722)"}},{"$f":"($A30-$A29)/365.25*(BD29+(Main!$I36*Main!$D$3))*(1+VLOOKUP('Random Years'!BB30,'Hist Returns'!$A$12:$D$107,3,FALSE))","v":{"v":-80374.0169685889,"d":"(80,374)"}},{"$f":"($A30-$A29)/365.25*(BE29+(Main!$I36*Main!$D$3))*(1+VLOOKUP('Random Years'!BC30,'Hist Returns'!$A$12:$D$107,3,FALSE))","v":{"v":-60168.20049724805,"d":"(60,168)"}},{"$f":"($A30-$A29)/365.25*(BF29+(Main!$I36*Main!$D$3))*(1+VLOOKUP('Random Years'!BD30,'Hist Returns'!$A$12:$D$107,3,FALSE))","v":{"v":-58209.29249050341,"d":"(58,209)"}},{"$f":"($A30-$A29)/365.25*(BG29+(Main!$I36*Main!$D$3))*(1+VLOOKUP('Random Years'!BE30,'Hist Returns'!$A$12:$D$107,3,FALSE))","v":{"v":-64659.028033874,"d":"(64,659)"}},{"$f":"($A30-$A29)/365.25*(BH29+(Main!$I36*Main!$D$3))*(1+VLOOKUP('Random Years'!BF30,'Hist Returns'!$A$12:$D$107,3,FALSE))","v":{"v":-80498.46193507986,"d":"(80,498)"}},{"$f":"($A30-$A29)/365.25*(BI29+(Main!$I36*Main!$D$3))*(1+VLOOKUP('Random Years'!BG30,'Hist Returns'!$A$12:$D$107,3,FALSE))","v":{"v":-62671.06000752627,"d":"(62,671)"}},{"$f":"($A30-$A29)/365.25*(BJ29+(Main!$I36*Main!$D$3))*(1+VLOOKUP('Random Years'!BH30,'Hist Returns'!$A$12:$D$107,3,FALSE))","v":{"v":-48187.74613625912,"d":"(48,188)"}},{"$f":"($A30-$A29)/365.25*(BK29+(Main!$I36*Main!$D$3))*(1+VLOOKUP('Random Years'!BI30,'Hist Returns'!$A$12:$D$107,3,FALSE))","v":{"v":-73949.8252781998,"d":"(73,950)"}},{"$f":"($A30-$A29)/365.25*(BL29+(Main!$I36*Main!$D$3))*(1+VLOOKUP('Random Years'!BJ30,'Hist Returns'!$A$12:$D$107,3,FALSE))","v":{"v":-64709.62036443722,"d":"(64,710)"}},{"$f":"($A30-$A29)/365.25*(BM29+(Main!$I36*Main!$D$3))*(1+VLOOKUP('Random Years'!BK30,'Hist Returns'!$A$12:$D$107,3,FALSE))","v":{"v":-57596.63281392365,"d":"(57,597)"}},{"$f":"($A30-$A29)/365.25*(BN29+(Main!$I36*Main!$D$3))*(1+VLOOKUP('Random Years'!BL30,'Hist Returns'!$A$12:$D$107,3,FALSE))","v":{"v":-66268.46602515054,"d":"(66,268)"}},{"$f":"($A30-$A29)/365.25*(BO29+(Main!$I36*Main!$D$3))*(1+VLOOKUP('Random Years'!BM30,'Hist Returns'!$A$12:$D$107,3,FALSE))","v":{"v":-61179.12595647014,"d":"(61,179)"}},{"$f":"($A30-$A29)/365.25*(BP29+(Main!$I36*Main!$D$3))*(1+VLOOKUP('Random Years'!BN30,'Hist Returns'!$A$12:$D$107,3,FALSE))","v":{"v":-90550.97257091061,"d":"(90,551)"}},{"$f":"($A30-$A29)/365.25*(BQ29+(Main!$I36*Main!$D$3))*(1+VLOOKUP('Random Years'!BO30,'Hist Returns'!$A$12:$D$107,3,FALSE))","v":{"v":-70844.79919863677,"d":"(70,845)"}},{"$f":"($A30-$A29)/365.25*(BR29+(Main!$I36*Main!$D$3))*(1+VLOOKUP('Random Years'!BP30,'Hist Returns'!$A$12:$D$107,3,FALSE))","v":{"v":-57493.360518771,"d":"(57,493)"}},{"$f":"($A30-$A29)/365.25*(BS29+(Main!$I36*Main!$D$3))*(1+VLOOKUP('Random Years'!BQ30,'Hist Returns'!$A$12:$D$107,3,FALSE))","v":{"v":-53160.89644089388,"d":"(53,161)"}},{"$f":"($A30-$A29)/365.25*(BT29+(Main!$I36*Main!$D$3))*(1+VLOOKUP('Random Years'!BR30,'Hist Returns'!$A$12:$D$107,3,FALSE))","v":{"v":-58150.47839244808,"d":"(58,150)"}},{"$f":"($A30-$A29)/365.25*(BU29+(Main!$I36*Main!$D$3))*(1+VLOOKUP('Random Years'!BS30,'Hist Returns'!$A$12:$D$107,3,FALSE))","v":{"v":-48022.29358339357,"d":"(48,022)"}},{"$f":"($A30-$A29)/365.25*(BV29+(Main!$I36*Main!$D$3))*(1+VLOOKUP('Random Years'!BT30,'Hist Returns'!$A$12:$D$107,3,FALSE))","v":{"v":-74462.09637417759,"d":"(74,462)"}},{"$f":"($A30-$A29)/365.25*(BW29+(Main!$I36*Main!$D$3))*(1+VLOOKUP('Random Years'!BU30,'Hist Returns'!$A$12:$D$107,3,FALSE))","v":{"v":-76345.72683020598,"d":"(76,346)"}},{"$f":"($A30-$A29)/365.25*(BX29+(Main!$I36*Main!$D$3))*(1+VLOOKUP('Random Years'!BV30,'Hist Returns'!$A$12:$D$107,3,FALSE))","v":{"v":-50110.11510745352,"d":"(50,110)"}},{"$f":"($A30-$A29)/365.25*(BY29+(Main!$I36*Main!$D$3))*(1+VLOOKUP('Random Years'!BW30,'Hist Returns'!$A$12:$D$107,3,FALSE))","v":{"v":-62767.65963984143,"d":"(62,768)"}},{"$f":"($A30-$A29)/365.25*(BZ29+(Main!$I36*Main!$D$3))*(1+VLOOKUP('Random Years'!BX30,'Hist Returns'!$A$12:$D$107,3,FALSE))","v":{"v":-79312.35784324845,"d":"(79,312)"}},{"$f":"($A30-$A29)/365.25*(CA29+(Main!$I36*Main!$D$3))*(1+VLOOKUP('Random Years'!BY30,'Hist Returns'!$A$12:$D$107,3,FALSE))","v":{"v":-65849.64200336224,"d":"(65,850)"}},{"$f":"($A30-$A29)/365.25*(CB29+(Main!$I36*Main!$D$3))*(1+VLOOKUP('Random Years'!BZ30,'Hist Returns'!$A$12:$D$107,3,FALSE))","v":{"v":-64523.23842728693,"d":"(64,523)"}},{"$f":"($A30-$A29)/365.25*(CC29+(Main!$I36*Main!$D$3))*(1+VLOOKUP('Random Years'!CA30,'Hist Returns'!$A$12:$D$107,3,FALSE))","v":{"v":-58964.028363052625,"d":"(58,964)"}},{"$f":"($A30-$A29)/365.25*(CD29+(Main!$I36*Main!$D$3))*(1+VLOOKUP('Random Years'!CB30,'Hist Returns'!$A$12:$D$107,3,FALSE))","v":{"v":-70191.66645665401,"d":"(70,192)"}},{"$f":"($A30-$A29)/365.25*(CE29+(Main!$I36*Main!$D$3))*(1+VLOOKUP('Random Years'!CC30,'Hist Returns'!$A$12:$D$107,3,FALSE))","v":{"v":-56503.25353830203,"d":"(56,503)"}},{"$f":"($A30-$A29)/365.25*(CF29+(Main!$I36*Main!$D$3))*(1+VLOOKUP('Random Years'!CD30,'Hist Returns'!$A$12:$D$107,3,FALSE))","v":{"v":-60191.93784667017,"d":"(60,192)"}},{"$f":"($A30-$A29)/365.25*(CG29+(Main!$I36*Main!$D$3))*(1+VLOOKUP('Random Years'!CE30,'Hist Returns'!$A$12:$D$107,3,FALSE))","v":{"v":-66540.85659433984,"d":"(66,541)"}},{"$f":"($A30-$A29)/365.25*(CH29+(Main!$I36*Main!$D$3))*(1+VLOOKUP('Random Years'!CF30,'Hist Returns'!$A$12:$D$107,3,FALSE))","v":{"v":-51196.34901224517,"d":"(51,196)"}},{"$f":"($A30-$A29)/365.25*(CI29+(Main!$I36*Main!$D$3))*(1+VLOOKUP('Random Years'!CG30,'Hist Returns'!$A$12:$D$107,3,FALSE))","v":{"v":-55361.59313705899,"d":"(55,362)"}},{"$f":"($A30-$A29)/365.25*(CJ29+(Main!$I36*Main!$D$3))*(1+VLOOKUP('Random Years'!CH30,'Hist Returns'!$A$12:$D$107,3,FALSE))","v":{"v":-66767.843103368,"d":"(66,768)"}},{"$f":"($A30-$A29)/365.25*(CK29+(Main!$I36*Main!$D$3))*(1+VLOOKUP('Random Years'!CI30,'Hist Returns'!$A$12:$D$107,3,FALSE))","v":{"v":-87703.6476234154,"d":"(87,704)"}},{"$f":"($A30-$A29)/365.25*(CL29+(Main!$I36*Main!$D$3))*(1+VLOOKUP('Random Years'!CJ30,'Hist Returns'!$A$12:$D$107,3,FALSE))","v":{"v":-80631.26590373315,"d":"(80,631)"}},{"$f":"($A30-$A29)/365.25*(CM29+(Main!$I36*Main!$D$3))*(1+VLOOKUP('Random Years'!CK30,'Hist Returns'!$A$12:$D$107,3,FALSE))","v":{"v":-70822.91361274346,"d":"(70,823)"}},{"$f":"($A30-$A29)/365.25*(CN29+(Main!$I36*Main!$D$3))*(1+VLOOKUP('Random Years'!CL30,'Hist Returns'!$A$12:$D$107,3,FALSE))","v":{"v":-53367.75758481681,"d":"(53,368)"}},{"$f":"($A30-$A29)/365.25*(CO29+(Main!$I36*Main!$D$3))*(1+VLOOKUP('Random Years'!CM30,'Hist Returns'!$A$12:$D$107,3,FALSE))","v":{"v":-69709.46958439433,"d":"(69,709)"}},{"$f":"($A30-$A29)/365.25*(CP29+(Main!$I36*Main!$D$3))*(1+VLOOKUP('Random Years'!CN30,'Hist Returns'!$A$12:$D$107,3,FALSE))","v":{"v":-49412.492495783656,"d":"(49,412)"}},{"$f":"($A30-$A29)/365.25*(CQ29+(Main!$I36*Main!$D$3))*(1+VLOOKUP('Random Years'!CO30,'Hist Returns'!$A$12:$D$107,3,FALSE))","v":{"v":-90794.09800249203,"d":"(90,794)"}},{"$f":"($A30-$A29)/365.25*(CR29+(Main!$I36*Main!$D$3))*(1+VLOOKUP('Random Years'!CP30,'Hist Returns'!$A$12:$D$107,3,FALSE))","v":{"v":-57434.53937871472,"d":"(57,435)"}},{"$f":"($A30-$A29)/365.25*(CS29+(Main!$I36*Main!$D$3))*(1+VLOOKUP('Random Years'!CQ30,'Hist Returns'!$A$12:$D$107,3,FALSE))","v":{"v":-67830.79762580986,"d":"(67,831)"}},{"$f":"($A30-$A29)/365.25*(CT29+(Main!$I36*Main!$D$3))*(1+VLOOKUP('Random Years'!CR30,'Hist Returns'!$A$12:$D$107,3,FALSE))","v":{"v":-49598.24476091131,"d":"(49,598)"}},{"$f":"($A30-$A29)/365.25*(CU29+(Main!$I36*Main!$D$3))*(1+VLOOKUP('Random Years'!CS30,'Hist Returns'!$A$12:$D$107,3,FALSE))","v":{"v":-67837.36572222752,"d":"(67,837)"}},{"$f":"($A30-$A29)/365.25*(CV29+(Main!$I36*Main!$D$3))*(1+VLOOKUP('Random Years'!CT30,'Hist Returns'!$A$12:$D$107,3,FALSE))","v":{"v":-70389.11162954979,"d":"(70,389)"}},{"$f":"($A30-$A29)/365.25*(CW29+(Main!$I36*Main!$D$3))*(1+VLOOKUP('Random Years'!CU30,'Hist Returns'!$A$12:$D$107,3,FALSE))","v":{"v":-66011.93607936313,"d":"(66,012)"}},{"$f":"($A30-$A29)/365.25*(CX29+(Main!$I36*Main!$D$3))*(1+VLOOKUP('Random Years'!CV30,'Hist Returns'!$A$12:$D$107,3,FALSE))","v":{"v":-60472.57220762686,"d":"(60,473)"}}]
[{"$f":"Main!A37","v":"2052-12-30"},{"$f":"Main!B37","v":98},{"$f":"($A31-$A30)/365.25*(C30+(Main!$I37*Main!$D$3))*(1+VLOOKUP('Random Years'!A31,'Hist Returns'!$A$12:$D$107,3,FALSE))","v":{"v":-76345.04254844422,"d":"(76,345)"}},{"$f":"($A31-$A30)/365.25*(D30+(Main!$I37*Main!$D$3))*(1+VLOOKUP('Random Years'!B31,'Hist Returns'!$A$12:$D$107,3,FALSE))","v":{"v":-105531.97458213913,"d":"(105,532)"}},{"$f":"($A31-$A30)/365.25*(E30+(Main!$I37*Main!$D$3))*(1+VLOOKUP('Random Years'!C31,'Hist Returns'!$A$12:$D$107,3,FALSE))","v":{"v":-80914.23560463641,"d":"(80,914)"}},{"$f":"($A31-$A30)/365.25*(F30+(Main!$I37*Main!$D$3))*(1+VLOOKUP('Random Years'!D31,'Hist Returns'!$A$12:$D$107,3,FALSE))","v":{"v":-91090.93059317232,"d":"(91,091)"}},{"$f":"($A31-$A30)/365.25*(G30+(Main!$I37*Main!$D$3))*(1+VLOOKUP('Random Years'!E31,'Hist Returns'!$A$12:$D$107,3,FALSE))","v":{"v":-76531.33554700148,"d":"(76,531)"}},{"$f":"($A31-$A30)/365.25*(H30+(Main!$I37*Main!$D$3))*(1+VLOOKUP('Random Years'!F31,'Hist Returns'!$A$12:$D$107,3,FALSE))","v":{"v":-79901.35423339141,"d":"(79,901)"}},{"$f":"($A31-$A30)/365.25*(I30+(Main!$I37*Main!$D$3))*(1+VLOOKUP('Random Years'!G31,'Hist Returns'!$A$12:$D$107,3,FALSE))","v":{"v":-81552.43183365624,"d":"(81,552)"}},{"$f":"($A31-$A30)/365.25*(J30+(Main!$I37*Main!$D$3))*(1+VLOOKUP('Random Years'!H31,'Hist Returns'!$A$12:$D$107,3,FALSE))","v":{"v":-58938.67684494552,"d":"(58,939)"}},{"$f":"($A31-$A30)/365.25*(K30+(Main!$I37*Main!$D$3))*(1+VLOOKUP('Random Years'!I31,'Hist Returns'!$A$12:$D$107,3,FALSE))","v":{"v":-43520.713132989724,"d":"(43,521)"}},{"$f":"($A31-$A30)/365.25*(L30+(Main!$I37*Main!$D$3))*(1+VLOOKUP('Random Years'!J31,'Hist Returns'!$A$12:$D$107,3,FALSE))","v":{"v":-99169.01027983964,"d":"(99,169)"}},{"$f":"($A31-$A30)/365.25*(M30+(Main!$I37*Main!$D$3))*(1+VLOOKUP('Random Years'!K31,'Hist Returns'!$A$12:$D$107,3,FALSE))","v":{"v":-111230.20550131566,"d":"(111,230)"}},{"$f":"($A31-$A30)/365.25*(N30+(Main!$I37*Main!$D$3))*(1+VLOOKUP('Random Years'!L31,'Hist Returns'!$A$12:$D$107,3,FALSE))","v":{"v":-78883.02609120742,"d":"(78,883)"}},{"$f":"($A31-$A30)/365.25*(O30+(Main!$I37*Main!$D$3))*(1+VLOOKUP('Random Years'!M31,'Hist Returns'!$A$12:$D$107,3,FALSE))","v":{"v":-72466.28903184323,"d":"(72,466)"}},{"$f":"($A31-$A30)/365.25*(P30+(Main!$I37*Main!$D$3))*(1+VLOOKUP('Random Years'!N31,'Hist Returns'!$A$12:$D$107,3,FALSE))","v":{"v":-91110.4896939933,"d":"(91,110)"}},{"$f":"($A31-$A30)/365.25*(Q30+(Main!$I37*Main!$D$3))*(1+VLOOKUP('Random Years'!O31,'Hist Returns'!$A$12:$D$107,3,FALSE))","v":{"v":-103755.21683496267,"d":"(103,755)"}},{"$f":"($A31-$A30)/365.25*(R30+(Main!$I37*Main!$D$3))*(1+VLOOKUP('Random Years'!P31,'Hist Returns'!$A$12:$D$107,3,FALSE))","v":{"v":-83011.34210163889,"d":"(83,011)"}},{"$f":"($A31-$A30)/365.25*(S30+(Main!$I37*Main!$D$3))*(1+VLOOKUP('Random Years'!Q31,'Hist Returns'!$A$12:$D$107,3,FALSE))","v":{"v":-105449.99549640503,"d":"(105,450)"}},{"$f":"($A31-$A30)/365.25*(T30+(Main!$I37*Main!$D$3))*(1+VLOOKUP('Random Years'!R31,'Hist Returns'!$A$12:$D$107,3,FALSE))","v":{"v":-42031.18820999006,"d":"(42,031)"}},{"$f":"($A31-$A30)/365.25*(U30+(Main!$I37*Main!$D$3))*(1+VLOOKUP('Random Years'!S31,'Hist Returns'!$A$12:$D$107,3,FALSE))","v":{"v":-67192.48023509355,"d":"(67,192)"}},{"$f":"($A31-$A30)/365.25*(V30+(Main!$I37*Main!$D$3))*(1+VLOOKUP('Random Years'!T31,'Hist Returns'!$A$12:$D$107,3,FALSE))","v":{"v":-80154.3747837183,"d":"(80,154)"}},{"$f":"($A31-$A30)/365.25*(W30+(Main!$I37*Main!$D$3))*(1+VLOOKUP('Random Years'!U31,'Hist Returns'!$A$12:$D$107,3,FALSE))","v":{"v":-47725.92150239755,"d":"(47,726)"}},{"$f":"($A31-$A30)/365.25*(X30+(Main!$I37*Main!$D$3))*(1+VLOOKUP('Random Years'!V31,'Hist Returns'!$A$12:$D$107,3,FALSE))","v":{"v":-92347.64311894737,"d":"(92,348)"}},{"$f":"($A31-$A30)/365.25*(Y30+(Main!$I37*Main!$D$3))*(1+VLOOKUP('Random Years'!W31,'Hist Returns'!$A$12:$D$107,3,FALSE))","v":{"v":-99097.27829515147,"d":"(99,097)"}},{"$f":"($A31-$A30)/365.25*(Z30+(Main!$I37*Main!$D$3))*(1+VLOOKUP('Random Years'!X31,'Hist Returns'!$A$12:$D$107,3,FALSE))","v":{"v":-76147.6713412084,"d":"(76,148)"}},{"$f":"($A31-$A30)/365.25*(AA30+(Main!$I37*Main!$D$3))*(1+VLOOKUP('Random Years'!Y31,'Hist Returns'!$A$12:$D$107,3,FALSE))","v":{"v":-91752.75984932721,"d":"(91,753)"}},{"$f":"($A31-$A30)/365.25*(AB30+(Main!$I37*Main!$D$3))*(1+VLOOKUP('Random Years'!Z31,'Hist Returns'!$A$12:$D$107,3,FALSE))","v":{"v":-73604.07056029922,"d":"(73,604)"}},{"$f":"($A31-$A30)/365.25*(AC30+(Main!$I37*Main!$D$3))*(1+VLOOKUP('Random Years'!AA31,'Hist Returns'!$A$12:$D$107,3,FALSE))","v":{"v":-70490.74188385544,"d":"(70,491)"}},{"$f":"($A31-$A30)/365.25*(AD30+(Main!$I37*Main!$D$3))*(1+VLOOKUP('Random Years'!AB31,'Hist Returns'!$A$12:$D$107,3,FALSE))","v":{"v":-80084.80148348342,"d":"(80,085)"}},{"$f":"($A31-$A30)/365.25*(AE30+(Main!$I37*Main!$D$3))*(1+VLOOKUP('Random Years'!AC31,'Hist Returns'!$A$12:$D$107,3,FALSE))","v":{"v":-88118.86159592863,"d":"(88,119)"}},{"$f":"($A31-$A30)/365.25*(AF30+(Main!$I37*Main!$D$3))*(1+VLOOKUP('Random Years'!AD31,'Hist Returns'!$A$12:$D$107,3,FALSE))","v":{"v":-92856.63349931272,"d":"(92,857)"}},{"$f":"($A31-$A30)/365.25*(AG30+(Main!$I37*Main!$D$3))*(1+VLOOKUP('Random Years'!AE31,'Hist Returns'!$A$12:$D$107,3,FALSE))","v":{"v":-86912.09034566539,"d":"(86,912)"}},{"$f":"($A31-$A30)/365.25*(AH30+(Main!$I37*Main!$D$3))*(1+VLOOKUP('Random Years'!AF31,'Hist Returns'!$A$12:$D$107,3,FALSE))","v":{"v":-78600.22323528351,"d":"(78,600)"}},{"$f":"($A31-$A30)/365.25*(AI30+(Main!$I37*Main!$D$3))*(1+VLOOKUP('Random Years'!AG31,'Hist Returns'!$A$12:$D$107,3,FALSE))","v":{"v":-67960.29095929874,"d":"(67,960)"}},{"$f":"($A31-$A30)/365.25*(AJ30+(Main!$I37*Main!$D$3))*(1+VLOOKUP('Random Years'!AH31,'Hist Returns'!$A$12:$D$107,3,FALSE))","v":{"v":-75290.13196486136,"d":"(75,290)"}},{"$f":"($A31-$A30)/365.25*(AK30+(Main!$I37*Main!$D$3))*(1+VLOOKUP('Random Years'!AI31,'Hist Returns'!$A$12:$D$107,3,FALSE))","v":{"v":-92181.60887741132,"d":"(92,182)"}},{"$f":"($A31-$A30)/365.25*(AL30+(Main!$I37*Main!$D$3))*(1+VLOOKUP('Random Years'!AJ31,'Hist Returns'!$A$12:$D$107,3,FALSE))","v":{"v":-72062.67547920899,"d":"(72,063)"}},{"$f":"($A31-$A30)/365.25*(AM30+(Main!$I37*Main!$D$3))*(1+VLOOKUP('Random Years'!AK31,'Hist Returns'!$A$12:$D$107,3,FALSE))","v":{"v":-66496.66932721125,"d":"(66,497)"}},{"$f":"($A31-$A30)/365.25*(AN30+(Main!$I37*Main!$D$3))*(1+VLOOKUP('Random Years'!AL31,'Hist Returns'!$A$12:$D$107,3,FALSE))","v":{"v":-72118.32152975342,"d":"(72,118)"}},{"$f":"($A31-$A30)/365.25*(AO30+(Main!$I37*Main!$D$3))*(1+VLOOKUP('Random Years'!AM31,'Hist Returns'!$A$12:$D$107,3,FALSE))","v":{"v":-55716.333248289135,"d":"(55,716)"}},{"$f":"($A31-$A30)/365.25*(AP30+(Main!$I37*Main!$D$3))*(1+VLOOKUP('Random Years'!AN31,'Hist Returns'!$A$12:$D$107,3,FALSE))","v":{"v":-90715.75054327927,"d":"(90,716)"}},{"$f":"($A31-$A30)/365.25*(AQ30+(Main!$I37*Main!$D$3))*(1+VLOOKUP('Random Years'!AO31,'Hist Returns'!$A$12:$D$107,3,FALSE))","v":{"v":-89498.33533884522,"d":"(89,498)"}},{"$f":"($A31-$A30)/365.25*(AR30+(Main!$I37*Main!$D$3))*(1+VLOOKUP('Random Years'!AP31,'Hist Returns'!$A$12:$D$107,3,FALSE))","v":{"v":-90643.42539029376,"d":"(90,643)"}},{"$f":"($A31-$A30)/365.25*(AS30+(Main!$I37*Main!$D$3))*(1+VLOOKUP('Random Years'!AQ31,'Hist Returns'!$A$12:$D$107,3,FALSE))","v":{"v":-89210.27484155881,"d":"(89,210)"}},{"$f":"($A31-$A30)/365.25*(AT30+(Main!$I37*Main!$D$3))*(1+VLOOKUP('Random Years'!AR31,'Hist Returns'!$A$12:$D$107,3,FALSE))","v":{"v":-77790.72094140436,"d":"(77,791)"}},{"$f":"($A31-$A30)/365.25*(AU30+(Main!$I37*Main!$D$3))*(1+VLOOKUP('Random Years'!AS31,'Hist Returns'!$A$12:$D$107,3,FALSE))","v":{"v":-89225.94605522708,"d":"(89,226)"}},{"$f":"($A31-$A30)/365.25*(AV30+(Main!$I37*Main!$D$3))*(1+VLOOKUP('Random Years'!AT31,'Hist Returns'!$A$12:$D$107,3,FALSE))","v":{"v":-108023.61429455,"d":"(108,024)"}},{"$f":"($A31-$A30)/365.25*(AW30+(Main!$I37*Main!$D$3))*(1+VLOOKUP('Random Years'!AU31,'Hist Returns'!$A$12:$D$107,3,FALSE))","v":{"v":-89149.13526692646,"d":"(89,149)"}},{"$f":"($A31-$A30)/365.25*(AX30+(Main!$I37*Main!$D$3))*(1+VLOOKUP('Random Years'!AV31,'Hist Returns'!$A$12:$D$107,3,FALSE))","v":{"v":-83360.02887970033,"d":"(83,360)"}},{"$f":"($A31-$A30)/365.25*(AY30+(Main!$I37*Main!$D$3))*(1+VLOOKUP('Random Years'!AW31,'Hist Returns'!$A$12:$D$107,3,FALSE))","v":{"v":-106413.51348783933,"d":"(106,414)"}},{"$f":"($A31-$A30)/365.25*(AZ30+(Main!$I37*Main!$D$3))*(1+VLOOKUP('Random Years'!AX31,'Hist Returns'!$A$12:$D$107,3,FALSE))","v":{"v":-85249.26867602249,"d":"(85,249)"}},{"$f":"($A31-$A30)/365.25*(BA30+(Main!$I37*Main!$D$3))*(1+VLOOKUP('Random Years'!AY31,'Hist Returns'!$A$12:$D$107,3,FALSE))","v":{"v":-69817.96851377889,"d":"(69,818)"}},{"$f":"($A31-$A30)/365.25*(BB30+(Main!$I37*Main!$D$3))*(1+VLOOKUP('Random Years'!AZ31,'Hist Returns'!$A$12:$D$107,3,FALSE))","v":{"v":-50189.909078033335,"d":"(50,190)"}},{"$f":"($A31-$A30)/365.25*(BC30+(Main!$I37*Main!$D$3))*(1+VLOOKUP('Random Years'!BA31,'Hist Returns'!$A$12:$D$107,3,FALSE))","v":{"v":-65982.67361092339,"d":"(65,983)"}},{"$f":"($A31-$A30)/365.25*(BD30+(Main!$I37*Main!$D$3))*(1+VLOOKUP('Random Years'!BB31,'Hist Returns'!$A$12:$D$107,3,FALSE))","v":{"v":-97536.11252991382,"d":"(97,536)"}},{"$f":"($A31-$A30)/365.25*(BE30+(Main!$I37*Main!$D$3))*(1+VLOOKUP('Random Years'!BC31,'Hist Returns'!$A$12:$D$107,3,FALSE))","v":{"v":-79984.69021307376,"d":"(79,985)"}},{"$f":"($A31-$A30)/365.25*(BF30+(Main!$I37*Main!$D$3))*(1+VLOOKUP('Random Years'!BD31,'Hist Returns'!$A$12:$D$107,3,FALSE))","v":{"v":-74916.17798709516,"d":"(74,916)"}},{"$f":"($A31-$A30)/365.25*(BG30+(Main!$I37*Main!$D$3))*(1+VLOOKUP('Random Years'!BE31,'Hist Returns'!$A$12:$D$107,3,FALSE))","v":{"v":-83076.6814240789,"d":"(83,077)"}},{"$f":"($A31-$A30)/365.25*(BH30+(Main!$I37*Main!$D$3))*(1+VLOOKUP('Random Years'!BF31,'Hist Returns'!$A$12:$D$107,3,FALSE))","v":{"v":-96786.46339299451,"d":"(96,786)"}},{"$f":"($A31-$A30)/365.25*(BI30+(Main!$I37*Main!$D$3))*(1+VLOOKUP('Random Years'!BG31,'Hist Returns'!$A$12:$D$107,3,FALSE))","v":{"v":-78764.79620156408,"d":"(78,765)"}},{"$f":"($A31-$A30)/365.25*(BJ30+(Main!$I37*Main!$D$3))*(1+VLOOKUP('Random Years'!BH31,'Hist Returns'!$A$12:$D$107,3,FALSE))","v":{"v":-68399.94153457768,"d":"(68,400)"}},{"$f":"($A31-$A30)/365.25*(BK30+(Main!$I37*Main!$D$3))*(1+VLOOKUP('Random Years'!BI31,'Hist Returns'!$A$12:$D$107,3,FALSE))","v":{"v":-90122.44080135981,"d":"(90,122)"}},{"$f":"($A31-$A30)/365.25*(BL30+(Main!$I37*Main!$D$3))*(1+VLOOKUP('Random Years'!BJ31,'Hist Returns'!$A$12:$D$107,3,FALSE))","v":{"v":-81006.35880436694,"d":"(81,006)"}},{"$f":"($A31-$A30)/365.25*(BM30+(Main!$I37*Main!$D$3))*(1+VLOOKUP('Random Years'!BK31,'Hist Returns'!$A$12:$D$107,3,FALSE))","v":{"v":-78514.85773551132,"d":"(78,515)"}},{"$f":"($A31-$A30)/365.25*(BN30+(Main!$I37*Main!$D$3))*(1+VLOOKUP('Random Years'!BL31,'Hist Returns'!$A$12:$D$107,3,FALSE))","v":{"v":-90162.42233027368,"d":"(90,162)"}},{"$f":"($A31-$A30)/365.25*(BO30+(Main!$I37*Main!$D$3))*(1+VLOOKUP('Random Years'!BM31,'Hist Returns'!$A$12:$D$107,3,FALSE))","v":{"v":-82519.61543489744,"d":"(82,520)"}},{"$f":"($A31-$A30)/365.25*(BP30+(Main!$I37*Main!$D$3))*(1+VLOOKUP('Random Years'!BN31,'Hist Returns'!$A$12:$D$107,3,FALSE))","v":{"v":-110773.64696133746,"d":"(110,774)"}},{"$f":"($A31-$A30)/365.25*(BQ30+(Main!$I37*Main!$D$3))*(1+VLOOKUP('Random Years'!BO31,'Hist Returns'!$A$12:$D$107,3,FALSE))","v":{"v":-91189.57958750888,"d":"(91,190)"}},{"$f":"($A31-$A30)/365.25*(BR30+(Main!$I37*Main!$D$3))*(1+VLOOKUP('Random Years'!BP31,'Hist Returns'!$A$12:$D$107,3,FALSE))","v":{"v":-74296.7515325414,"d":"(74,297)"}},{"$f":"($A31-$A30)/365.25*(BS30+(Main!$I37*Main!$D$3))*(1+VLOOKUP('Random Years'!BQ31,'Hist Returns'!$A$12:$D$107,3,FALSE))","v":{"v":-69366.35733383056,"d":"(69,366)"}},{"$f":"($A31-$A30)/365.25*(BT30+(Main!$I37*Main!$D$3))*(1+VLOOKUP('Random Years'!BR31,'Hist Returns'!$A$12:$D$107,3,FALSE))","v":{"v":-76488.0309603458,"d":"(76,488)"}},{"$f":"($A31-$A30)/365.25*(BU30+(Main!$I37*Main!$D$3))*(1+VLOOKUP('Random Years'!BS31,'Hist Returns'!$A$12:$D$107,3,FALSE))","v":{"v":-64132.635467752116,"d":"(64,133)"}},{"$f":"($A31-$A30)/365.25*(BV30+(Main!$I37*Main!$D$3))*(1+VLOOKUP('Random Years'!BT31,'Hist Returns'!$A$12:$D$107,3,FALSE))","v":{"v":-90490.7234986621,"d":"(90,491)"}},{"$f":"($A31-$A30)/365.25*(BW30+(Main!$I37*Main!$D$3))*(1+VLOOKUP('Random Years'!BU31,'Hist Returns'!$A$12:$D$107,3,FALSE))","v":{"v":-95199.23781354321,"d":"(95,199)"}},{"$f":"($A31-$A30)/365.25*(BX30+(Main!$I37*Main!$D$3))*(1+VLOOKUP('Random Years'!BV31,'Hist Returns'!$A$12:$D$107,3,FALSE))","v":{"v":-69818.96902332685,"d":"(69,819)"}},{"$f":"($A31-$A30)/365.25*(BY30+(Main!$I37*Main!$D$3))*(1+VLOOKUP('Random Years'!BW31,'Hist Returns'!$A$12:$D$107,3,FALSE))","v":{"v":-84059.55372429921,"d":"(84,060)"}},{"$f":"($A31-$A30)/365.25*(BZ30+(Main!$I37*Main!$D$3))*(1+VLOOKUP('Random Years'!BX31,'Hist Returns'!$A$12:$D$107,3,FALSE))","v":{"v":-100781.28707622607,"d":"(100,781)"}},{"$f":"($A31-$A30)/365.25*(CA30+(Main!$I37*Main!$D$3))*(1+VLOOKUP('Random Years'!BY31,'Hist Returns'!$A$12:$D$107,3,FALSE))","v":{"v":-82624.59511751687,"d":"(82,625)"}},{"$f":"($A31-$A30)/365.25*(CB30+(Main!$I37*Main!$D$3))*(1+VLOOKUP('Random Years'!BZ31,'Hist Returns'!$A$12:$D$107,3,FALSE))","v":{"v":-85932.00046637126,"d":"(85,932)"}},{"$f":"($A31-$A30)/365.25*(CC30+(Main!$I37*Main!$D$3))*(1+VLOOKUP('Random Years'!CA31,'Hist Returns'!$A$12:$D$107,3,FALSE))","v":{"v":-75835.0496614519,"d":"(75,835)"}},{"$f":"($A31-$A30)/365.25*(CD30+(Main!$I37*Main!$D$3))*(1+VLOOKUP('Random Years'!CB31,'Hist Returns'!$A$12:$D$107,3,FALSE))","v":{"v":-86470.99895959668,"d":"(86,471)"}},{"$f":"($A31-$A30)/365.25*(CE30+(Main!$I37*Main!$D$3))*(1+VLOOKUP('Random Years'!CC31,'Hist Returns'!$A$12:$D$107,3,FALSE))","v":{"v":-73702.43264157977,"d":"(73,702)"}},{"$f":"($A31-$A30)/365.25*(CF30+(Main!$I37*Main!$D$3))*(1+VLOOKUP('Random Years'!CD31,'Hist Returns'!$A$12:$D$107,3,FALSE))","v":{"v":-77120.28183245672,"d":"(77,120)"}},{"$f":"($A31-$A30)/365.25*(CG30+(Main!$I37*Main!$D$3))*(1+VLOOKUP('Random Years'!CE31,'Hist Returns'!$A$12:$D$107,3,FALSE))","v":{"v":-86697.43174105218,"d":"(86,697)"}},{"$f":"($A31-$A30)/365.25*(CH30+(Main!$I37*Main!$D$3))*(1+VLOOKUP('Random Years'!CF31,'Hist Returns'!$A$12:$D$107,3,FALSE))","v":{"v":-69218.26782800593,"d":"(69,218)"}},{"$f":"($A31-$A30)/365.25*(CI30+(Main!$I37*Main!$D$3))*(1+VLOOKUP('Random Years'!CG31,'Hist Returns'!$A$12:$D$107,3,FALSE))","v":{"v":-72977.89930693888,"d":"(72,978)"}},{"$f":"($A31-$A30)/365.25*(CJ30+(Main!$I37*Main!$D$3))*(1+VLOOKUP('Random Years'!CH31,'Hist Returns'!$A$12:$D$107,3,FALSE))","v":{"v":-91868.00608796293,"d":"(91,868)"}},{"$f":"($A31-$A30)/365.25*(CK30+(Main!$I37*Main!$D$3))*(1+VLOOKUP('Random Years'!CI31,'Hist Returns'!$A$12:$D$107,3,FALSE))","v":{"v":-107721.43020698438,"d":"(107,721)"}},{"$f":"($A31-$A30)/365.25*(CL30+(Main!$I37*Main!$D$3))*(1+VLOOKUP('Random Years'!CJ31,'Hist Returns'!$A$12:$D$107,3,FALSE))","v":{"v":-106213.52621394658,"d":"(106,214)"}},{"$f":"($A31-$A30)/365.25*(CM30+(Main!$I37*Main!$D$3))*(1+VLOOKUP('Random Years'!CK31,'Hist Returns'!$A$12:$D$107,3,FALSE))","v":{"v":-86834.85151436231,"d":"(86,835)"}},{"$f":"($A31-$A30)/365.25*(CN30+(Main!$I37*Main!$D$3))*(1+VLOOKUP('Random Years'!CL31,'Hist Returns'!$A$12:$D$107,3,FALSE))","v":{"v":-69629.18952788018,"d":"(69,629)"}},{"$f":"($A31-$A30)/365.25*(CO30+(Main!$I37*Main!$D$3))*(1+VLOOKUP('Random Years'!CM31,'Hist Returns'!$A$12:$D$107,3,FALSE))","v":{"v":-87641.4290361156,"d":"(87,641)"}},{"$f":"($A31-$A30)/365.25*(CP30+(Main!$I37*Main!$D$3))*(1+VLOOKUP('Random Years'!CN31,'Hist Returns'!$A$12:$D$107,3,FALSE))","v":{"v":-68579.03364096097,"d":"(68,579)"}},{"$f":"($A31-$A30)/365.25*(CQ30+(Main!$I37*Main!$D$3))*(1+VLOOKUP('Random Years'!CO31,'Hist Returns'!$A$12:$D$107,3,FALSE))","v":{"v":-106905.11995157397,"d":"(106,905)"}},{"$f":"($A31-$A30)/365.25*(CR30+(Main!$I37*Main!$D$3))*(1+VLOOKUP('Random Years'!CP31,'Hist Returns'!$A$12:$D$107,3,FALSE))","v":{"v":-74178.58038490597,"d":"(74,179)"}},{"$f":"($A31-$A30)/365.25*(CS30+(Main!$I37*Main!$D$3))*(1+VLOOKUP('Random Years'!CQ31,'Hist Returns'!$A$12:$D$107,3,FALSE))","v":{"v":-84623.40078895955,"d":"(84,623)"}},{"$f":"($A31-$A30)/365.25*(CT30+(Main!$I37*Main!$D$3))*(1+VLOOKUP('Random Years'!CR31,'Hist Returns'!$A$12:$D$107,3,FALSE))","v":{"v":-65618.34711420348,"d":"(65,618)"}},{"$f":"($A31-$A30)/365.25*(CU30+(Main!$I37*Main!$D$3))*(1+VLOOKUP('Random Years'!CS31,'Hist Returns'!$A$12:$D$107,3,FALSE))","v":{"v":-83976.1900254046,"d":"(83,976)"}},{"$f":"($A31-$A30)/365.25*(CV30+(Main!$I37*Main!$D$3))*(1+VLOOKUP('Random Years'!CT31,'Hist Returns'!$A$12:$D$107,3,FALSE))","v":{"v":-91946.5109055134,"d":"(91,947)"}},{"$f":"($A31-$A30)/365.25*(CW30+(Main!$I37*Main!$D$3))*(1+VLOOKUP('Random Years'!CU31,'Hist Returns'!$A$12:$D$107,3,FALSE))","v":{"v":-82263.52787065068,"d":"(82,264)"}},{"$f":"($A31-$A30)/365.25*(CX30+(Main!$I37*Main!$D$3))*(1+VLOOKUP('Random Years'!CV31,'Hist Returns'!$A$12:$D$107,3,FALSE))","v":{"v":-82666.90814738708,"d":"(82,667)"}}]
[]
["This worksheet calculatates 100 scenarios of annually compounded valuation for Treasury Bills using the randomly selected years of worksheet Random Years. "]
["The values in row 2 use the allocation percentage times the initial investment.  The values after row 2 are taken from the row above. "]
["The results are added to the similar numbers for equities and Treasury Bonds as part of the RandomYr Returns worksheet and summarized on Main. "]
["Pressing F9 or Ctrl r for a recalculation will give a new set of numbers. "]
["If there are no numbers, the allocation on Main is set to 0%.  "]

{"sheet":"T Bonds","index":14,"n_rows":37,"n_cols":102,"rows_kept":37}
[{"$f":"Main!A7","v":"2022-12-31"},{"$f":"Main!B7","v":68},1,2,3,4,5,6,7,8,9,10,11,12,13,14,15,16,17,18,19,20,21,22,23,24,25,26,27,28,29,30,31,32,33,34,35,36,37,38,39,40,41,42,43,44,45,46,47,48,49,50,51,52,53,54,55,56,57,58,59,60,61,62,63,64,65,66,67,68,69,70,71,72,73,74,75,76,77,78,79,80,81,82,83,84,85,86,87,88,89,90,91,92,93,94,95,96,97,98,99,100]
[{"$f":"Main!A8","v":"2023-12-31"},{"$f":"Main!B8","v":69},{"$f":"($A2-$A1)/365.25*(Main!$I$1+Main!$I8)*Main!$D$4*(1+Main!$I$4+VLOOKUP('Random Years'!A2,'Hist Returns'!$A$12:$D$107,4,FALSE))","v":{"v":233665.8238620634,"d":"233,666"}},{"$f":"($A2-$A1)/365.25*(Main!$I$1+Main!$I8)*Main!$D$4*(1+Main!$I$4+VLOOKUP('Random Years'!B2,'Hist Returns'!$A$12:$D$107,4,FALSE))","v":{"v":272291.9673025325,"d":"272,292"}},{"$f":"($A2-$A1)/365.25*(Main!$I$1+Main!$I8)*Main!$D$4*(1+Main!$I$4+VLOOKUP('Random Years'!C2,'Hist Returns'!$A$12:$D$107,4,FALSE))","v":{"v":256856.87949825983,"d":"256,857"}},{"$f":"($A2-$A1)/365.25*(Main!$I$1+Main!$I8)*Main!$D$4*(1+Main!$I$4+VLOOKUP('Random Years'!D2,'Hist Returns'!$A$12:$D$107,4,FALSE))","v":{"v":269562.9010839699,"d":"269,563"}},{"$f":"($A2-$A1)/365.25*(Main!$I$1+Main!$I8)*Main!$D$4*(1+Main!$I$4+VLOOKUP('Random Years'!E2,'Hist Returns'!$A$12:$D$107,4,FALSE))","v":{"v":253011.3380365162,"d":"253,011"}},{"$f":"($A2-$A1)/365.25*(Main!$I$1+Main!$I8)*Main!$D$4*(1+Main!$I$4+VLOOKUP('Random Years'!F2,'Hist Returns'!$A$12:$D$107,4,FALSE))","v":{"v":223477.16281534254,"d":"223,477"}},{"$f":"($A2-$A1)/365.25*(Main!$I$1+Main!$I8)*Main!$D$4*(1+Main!$I$4+VLOOKUP('Random Years'!G2,'Hist Returns'!$A$12:$D$107,4,FALSE))","v":{"v":250423.22724423584,"d":"250,423"}},{"$f":"($A2-$A1)/365.25*(Main!$I$1+Main!$I8)*Main!$D$4*(1+Main!$I$4+VLOOKUP('Random Years'!H2,'Hist Returns'!$A$12:$D$107,4,FALSE))","v":{"v":265440.88656613935,"d":"265,441"}},{"$f":"($A2-$A1)/365.25*(Main!$I$1+Main!$I8)*Main!$D$4*(1+Main!$I$4+VLOOKUP('Random Years'!I2,'Hist Returns'!$A$12:$D$107,4,FALSE))","v":{"v":286810.76462101063,"d":"286,811"}},{"$f":"($A2-$A1)/365.25*(Main!$I$1+Main!$I8)*Main!$D$4*(1+Main!$I$4+VLOOKUP('Random Years'!J2,'Hist Returns'!$A$12:$D$107,4,FALSE))","v":{"v":245820.78128856322,"d":"245,821"}},{"$f":"($A2-$A1)/365.25*(Main!$I$1+Main!$I8)*Main!$D$4*(1+Main!$I$4+VLOOKUP('Random Years'!K2,'Hist Returns'!$A$12:$D$107,4,FALSE))","v":{"v":256220.59107739734,"d":"256,221"}},{"$f":"($A2-$A1)/365.25*(Main!$I$1+Main!$I8)*Main!$D$4*(1+Main!$I$4+VLOOKUP('Random Years'!L2,'Hist Returns'!$A$12:$D$107,4,FALSE))","v":{"v":282752.18313208286,"d":"282,752"}},{"$f":"($A2-$A1)/365.25*(Main!$I$1+Main!$I8)*Main!$D$4*(1+Main!$I$4+VLOOKUP('Random Years'!M2,'Hist Returns'!$A$12:$D$107,4,FALSE))","v":{"v":239354.76567023067,"d":"239,355"}},{"$f":"($A2-$A1)/365.25*(Main!$I$1+Main!$I8)*Main!$D$4*(1+Main!$I$4+VLOOKUP('Random Years'!N2,'Hist Returns'!$A$12:$D$107,4,FALSE))","v":{"v":252745.9524939083,"d":"252,746"}},{"$f":"($A2-$A1)/365.25*(Main!$I$1+Main!$I8)*Main!$D$4*(1+Main!$I$4+VLOOKUP('Random Years'!O2,'Hist Returns'!$A$12:$D$107,4,FALSE))","v":{"v":273717.96586718684,"d":"273,718"}},{"$f":"($A2-$A1)/365.25*(Main!$I$1+Main!$I8)*Main!$D$4*(1+Main!$I$4+VLOOKUP('Random Years'!P2,'Hist Returns'!$A$12:$D$107,4,FALSE))","v":{"v":202024.65872008214,"d":"202,025"}},{"$f":"($A2-$A1)/365.25*(Main!$I$1+Main!$I8)*Main!$D$4*(1+Main!$I$4+VLOOKUP('Random Years'!Q2,'Hist Returns'!$A$12:$D$107,4,FALSE))","v":{"v":234994.7289821766,"d":"234,995"}},{"$f":"($A2-$A1)/365.25*(Main!$I$1+Main!$I8)*Main!$D$4*(1+Main!$I$4+VLOOKUP('Random Years'!R2,'Hist Returns'!$A$12:$D$107,4,FALSE))","v":{"v":266020.5616650156,"d":"266,021"}},{"$f":"($A2-$A1)/365.25*(Main!$I$1+Main!$I8)*Main!$D$4*(1+Main!$I$4+VLOOKUP('Random Years'!S2,'Hist Returns'!$A$12:$D$107,4,FALSE))","v":{"v":269924.0637889049,"d":"269,924"}},{"$f":"($A2-$A1)/365.25*(Main!$I$1+Main!$I8)*Main!$D$4*(1+Main!$I$4+VLOOKUP('Random Years'!T2,'Hist Returns'!$A$12:$D$107,4,FALSE))","v":{"v":245135.7573041751,"d":"245,136"}},{"$f":"($A2-$A1)/365.25*(Main!$I$1+Main!$I8)*Main!$D$4*(1+Main!$I$4+VLOOKUP('Random Years'!U2,'Hist Returns'!$A$12:$D$107,4,FALSE))","v":{"v":247510.8666694909,"d":"247,511"}},{"$f":"($A2-$A1)/365.25*(Main!$I$1+Main!$I8)*Main!$D$4*(1+Main!$I$4+VLOOKUP('Random Years'!V2,'Hist Returns'!$A$12:$D$107,4,FALSE))","v":{"v":256709.88772491773,"d":"256,710"}},{"$f":"($A2-$A1)/365.25*(Main!$I$1+Main!$I8)*Main!$D$4*(1+Main!$I$4+VLOOKUP('Random Years'!W2,'Hist Returns'!$A$12:$D$107,4,FALSE))","v":{"v":251504.02634156367,"d":"251,504"}},{"$f":"($A2-$A1)/365.25*(Main!$I$1+Main!$I8)*Main!$D$4*(1+Main!$I$4+VLOOKUP('Random Years'!X2,'Hist Returns'!$A$12:$D$107,4,FALSE))","v":{"v":285161.753692161,"d":"285,162"}},{"$f":"($A2-$A1)/365.25*(Main!$I$1+Main!$I8)*Main!$D$4*(1+Main!$I$4+VLOOKUP('Random Years'!Y2,'Hist Returns'!$A$12:$D$107,4,FALSE))","v":{"v":247558.26806042434,"d":"247,558"}},{"$f":"($A2-$A1)/365.25*(Main!$I$1+Main!$I8)*Main!$D$4*(1+Main!$I$4+VLOOKUP('Random Years'!Z2,'Hist Returns'!$A$12:$D$107,4,FALSE))","v":{"v":289363.7446867334,"d":"289,364"}},{"$f":"($A2-$A1)/365.25*(Main!$I$1+Main!$I8)*Main!$D$4*(1+Main!$I$4+VLOOKUP('Random Years'!AA2,'Hist Returns'!$A$12:$D$107,4,FALSE))","v":{"v":240701.137172326,"d":"240,701"}},{"$f":"($A2-$A1)/365.25*(Main!$I$1+Main!$I8)*Main!$D$4*(1+Main!$I$4+VLOOKUP('Random Years'!AB2,'Hist Returns'!$A$12:$D$107,4,FALSE))","v":{"v":268878.5135192443,"d":"268,879"}},{"$f":"($A2-$A1)/365.25*(Main!$I$1+Main!$I8)*Main!$D$4*(1+Main!$I$4+VLOOKUP('Random Years'!AC2,'Hist Returns'!$A$12:$D$107,4,FALSE))","v":{"v":239354.76567023067,"d":"239,355"}},{"$f":"($A2-$A1)/365.25*(Main!$I$1+Main!$I8)*Main!$D$4*(1+Main!$I$4+VLOOKUP('Random Years'!AD2,'Hist Returns'!$A$12:$D$107,4,FALSE))","v":{"v":252911.9902589259,"d":"252,912"}},{"$f":"($A2-$A1)/365.25*(Main!$I$1+Main!$I8)*Main!$D$4*(1+Main!$I$4+VLOOKUP('Random Years'!AE2,'Hist Returns'!$A$12:$D$107,4,FALSE))","v":{"v":252791.3116653803,"d":"252,791"}},{"$f":"($A2-$A1)/365.25*(Main!$I$1+Main!$I8)*Main!$D$4*(1+Main!$I$4+VLOOKUP('Random Years'!AF2,'Hist Returns'!$A$12:$D$107,4,FALSE))","v":{"v":253011.3380365162,"d":"253,011"}},{"$f":"($A2-$A1)/365.25*(Main!$I$1+Main!$I8)*Main!$D$4*(1+Main!$I$4+VLOOKUP('Random Years'!AG2,'Hist Returns'!$A$12:$D$107,4,FALSE))","v":{"v":253729.9147255202,"d":"253,730"}},{"$f":"($A2-$A1)/365.25*(Main!$I$1+Main!$I8)*Main!$D$4*(1+Main!$I$4+VLOOKUP('Random Years'!AH2,'Hist Returns'!$A$12:$D$107,4,FALSE))","v":{"v":240701.137172326,"d":"240,701"}},{"$f":"($A2-$A1)/365.25*(Main!$I$1+Main!$I8)*Main!$D$4*(1+Main!$I$4+VLOOKUP('Random Years'!AI2,'Hist Returns'!$A$12:$D$107,4,FALSE))","v":{"v":257327.55110756968,"d":"257,328"}},{"$f":"($A2-$A1)/365.25*(Main!$I$1+Main!$I8)*Main!$D$4*(1+Main!$I$4+VLOOKUP('Random Years'!AJ2,'Hist Returns'!$A$12:$D$107,4,FALSE))","v":{"v":270964.1215221825,"d":"270,964"}},{"$f":"($A2-$A1)/365.25*(Main!$I$1+Main!$I8)*Main!$D$4*(1+Main!$I$4+VLOOKUP('Random Years'!AK2,'Hist Returns'!$A$12:$D$107,4,FALSE))","v":{"v":253553.3001132932,"d":"253,553"}},{"$f":"($A2-$A1)/365.25*(Main!$I$1+Main!$I8)*Main!$D$4*(1+Main!$I$4+VLOOKUP('Random Years'!AL2,'Hist Returns'!$A$12:$D$107,4,FALSE))","v":{"v":274478.9172793747,"d":"274,479"}},{"$f":"($A2-$A1)/365.25*(Main!$I$1+Main!$I8)*Main!$D$4*(1+Main!$I$4+VLOOKUP('Random Years'!AM2,'Hist Returns'!$A$12:$D$107,4,FALSE))","v":{"v":261192.2288640738,"d":"261,192"}},{"$f":"($A2-$A1)/365.25*(Main!$I$1+Main!$I8)*Main!$D$4*(1+Main!$I$4+VLOOKUP('Random Years'!AN2,'Hist Returns'!$A$12:$D$107,4,FALSE))","v":{"v":256709.88772491773,"d":"256,710"}},{"$f":"($A2-$A1)/365.25*(Main!$I$1+Main!$I8)*Main!$D$4*(1+Main!$I$4+VLOOKUP('Random Years'!AO2,'Hist Returns'!$A$12:$D$107,4,FALSE))","v":{"v":255215.43126614476,"d":"255,215"}},{"$f":"($A2-$A1)/365.25*(Main!$I$1+Main!$I8)*Main!$D$4*(1+Main!$I$4+VLOOKUP('Random Years'!AP2,'Hist Returns'!$A$12:$D$107,4,FALSE))","v":{"v":240315.73489613447,"d":"240,316"}},{"$f":"($A2-$A1)/365.25*(Main!$I$1+Main!$I8)*Main!$D$4*(1+Main!$I$4+VLOOKUP('Random Years'!AQ2,'Hist Returns'!$A$12:$D$107,4,FALSE))","v":{"v":249008.8528072279,"d":"249,009"}},{"$f":"($A2-$A1)/365.25*(Main!$I$1+Main!$I8)*Main!$D$4*(1+Main!$I$4+VLOOKUP('Random Years'!AR2,'Hist Returns'!$A$12:$D$107,4,FALSE))","v":{"v":272291.9673025325,"d":"272,292"}},{"$f":"($A2-$A1)/365.25*(Main!$I$1+Main!$I8)*Main!$D$4*(1+Main!$I$4+VLOOKUP('Random Years'!AS2,'Hist Returns'!$A$12:$D$107,4,FALSE))","v":{"v":256856.87949825983,"d":"256,857"}},{"$f":"($A2-$A1)/365.25*(Main!$I$1+Main!$I8)*Main!$D$4*(1+Main!$I$4+VLOOKUP('Random Years'!AT2,'Hist Returns'!$A$12:$D$107,4,FALSE))","v":{"v":256220.59107739734,"d":"256,221"}},{"$f":"($A2-$A1)/365.25*(Main!$I$1+Main!$I8)*Main!$D$4*(1+Main!$I$4+VLOOKUP('Random Years'!AU2,'Hist Returns'!$A$12:$D$107,4,FALSE))","v":{"v":258198.8613619487,"d":"258,199"}},{"$f":"($A2-$A1)/365.25*(Main!$I$1+Main!$I8)*Main!$D$4*(1+Main!$I$4+VLOOKUP('Random Years'!AV2,'Hist Returns'!$A$12:$D$107,4,FALSE))","v":{"v":272291.9673025325,"d":"272,292"}},{"$f":"($A2-$A1)/365.25*(Main!$I$1+Main!$I8)*Main!$D$4*(1+Main!$I$4+VLOOKUP('Random Years'!AW2,'Hist Returns'!$A$12:$D$107,4,FALSE))","v":{"v":259561.68766085865,"d":"259,562"}},{"$f":"($A2-$A1)/365.25*(Main!$I$1+Main!$I8)*Main!$D$4*(1+Main!$I$4+VLOOKUP('Random Years'!AX2,'Hist Returns'!$A$12:$D$107,4,FALSE))","v":{"v":252911.9902589259,"d":"252,912"}},{"$f":"($A2-$A1)/365.25*(Main!$I$1+Main!$I8)*Main!$D$4*(1+Main!$I$4+VLOOKUP('Random Years'!AY2,'Hist Returns'!$A$12:$D$107,4,FALSE))","v":{"v":239570.57161473754,"d":"239,571"}},{"$f":"($A2-$A1)/365.25*(Main!$I$1+Main!$I8)*Main!$D$4*(1+Main!$I$4+VLOOKUP('Random Years'!AZ2,'Hist Returns'!$A$12:$D$107,4,FALSE))","v":{"v":286810.76462101063,"d":"286,811"}},{"$f":"($A2-$A1)/365.25*(Main!$I$1+Main!$I8)*Main!$D$4*(1+Main!$I$4+VLOOKUP('Random Years'!BA2,'Hist Returns'!$A$12:$D$107,4,FALSE))","v":{"v":250751.0510476741,"d":"250,751"}},{"$f":"($A2-$A1)/365.25*(Main!$I$1+Main!$I8)*Main!$D$4*(1+Main!$I$4+VLOOKUP('Random Years'!BB2,'Hist Returns'!$A$12:$D$107,4,FALSE))","v":{"v":246784.58660942063,"d":"246,785"}},{"$f":"($A2-$A1)/365.25*(Main!$I$1+Main!$I8)*Main!$D$4*(1+Main!$I$4+VLOOKUP('Random Years'!BC2,'Hist Returns'!$A$12:$D$107,4,FALSE))","v":{"v":256902.69823999103,"d":"256,903"}},{"$f":"($A2-$A1)/365.25*(Main!$I$1+Main!$I8)*Main!$D$4*(1+Main!$I$4+VLOOKUP('Random Years'!BD2,'Hist Returns'!$A$12:$D$107,4,FALSE))","v":{"v":252911.9902589259,"d":"252,912"}},{"$f":"($A2-$A1)/365.25*(Main!$I$1+Main!$I8)*Main!$D$4*(1+Main!$I$4+VLOOKUP('Random Years'!BE2,'Hist Returns'!$A$12:$D$107,4,FALSE))","v":{"v":251504.02634156367,"d":"251,504"}},{"$f":"($A2-$A1)/365.25*(Main!$I$1+Main!$I8)*Main!$D$4*(1+Main!$I$4+VLOOKUP('Random Years'!BF2,'Hist Returns'!$A$12:$D$107,4,FALSE))","v":{"v":247629.21171912443,"d":"247,629"}},{"$f":"($A2-$A1)/365.25*(Main!$I$1+Main!$I8)*Main!$D$4*(1+Main!$I$4+VLOOKUP('Random Years'!BG2,'Hist Returns'!$A$12:$D$107,4,FALSE))","v":{"v":272291.9673025325,"d":"272,292"}},{"$f":"($A2-$A1)/365.25*(Main!$I$1+Main!$I8)*Main!$D$4*(1+Main!$I$4+VLOOKUP('Random Years'!BH2,'Hist Returns'!$A$12:$D$107,4,FALSE))","v":{"v":251437.9582407354,"d":"251,438"}},{"$f":"($A2-$A1)/365.25*(Main!$I$1+Main!$I8)*Main!$D$4*(1+Main!$I$4+VLOOKUP('Random Years'!BI2,'Hist Returns'!$A$12:$D$107,4,FALSE))","v":{"v":265440.88656613935,"d":"265,441"}},{"$f":"($A2-$A1)/365.25*(Main!$I$1+Main!$I8)*Main!$D$4*(1+Main!$I$4+VLOOKUP('Random Years'!BJ2,'Hist Returns'!$A$12:$D$107,4,FALSE))","v":{"v":305567.43517474586,"d":"305,567"}},{"$f":"($A2-$A1)/365.25*(Main!$I$1+Main!$I8)*Main!$D$4*(1+Main!$I$4+VLOOKUP('Random Years'!BK2,'Hist Returns'!$A$12:$D$107,4,FALSE))","v":{"v":247558.26806042434,"d":"247,558"}},{"$f":"($A2-$A1)/365.25*(Main!$I$1+Main!$I8)*Main!$D$4*(1+Main!$I$4+VLOOKUP('Random Years'!BL2,'Hist Returns'!$A$12:$D$107,4,FALSE))","v":{"v":226102.75376739528,"d":"226,103"}},{"$f":"($A2-$A1)/365.25*(Main!$I$1+Main!$I8)*Main!$D$4*(1+Main!$I$4+VLOOKUP('Random Years'!BM2,'Hist Returns'!$A$12:$D$107,4,FALSE))","v":{"v":233665.8238620634,"d":"233,666"}},{"$f":"($A2-$A1)/365.25*(Main!$I$1+Main!$I8)*Main!$D$4*(1+Main!$I$4+VLOOKUP('Random Years'!BN2,'Hist Returns'!$A$12:$D$107,4,FALSE))","v":{"v":223477.16281534254,"d":"223,477"}},{"$f":"($A2-$A1)/365.25*(Main!$I$1+Main!$I8)*Main!$D$4*(1+Main!$I$4+VLOOKUP('Random Years'!BO2,'Hist Returns'!$A$12:$D$107,4,FALSE))","v":{"v":272291.9673025325,"d":"272,292"}},{"$f":"($A2-$A1)/365.25*(Main!$I$1+Main!$I8)*Main!$D$4*(1+Main!$I$4+VLOOKUP('Random Years'!BP2,'Hist Returns'!$A$12:$D$107,4,FALSE))","v":{"v":247629.21171912443,"d":"247,629"}},{"$f":"($A2-$A1)/365.25*(Main!$I$1+Main!$I8)*Main!$D$4*(1+Main!$I$4+VLOOKUP('Random Years'!BQ2,'Hist Returns'!$A$12:$D$107,4,FALSE))","v":{"v":283027.2788057912,"d":"283,027"}},{"$f":"($A2-$A1)/365.25*(Main!$I$1+Main!$I8)*Main!$D$4*(1+Main!$I$4+VLOOKUP('Random Years'!BR2,'Hist Returns'!$A$12:$D$107,4,FALSE))","v":{"v":256049.94263240614,"d":"256,050"}},{"$f":"($A2-$A1)/365.25*(Main!$I$1+Main!$I8)*Main!$D$4*(1+Main!$I$4+VLOOKUP('Random Years'!BS2,'Hist Returns'!$A$12:$D$107,4,FALSE))","v":{"v":238511.18181620672,"d":"238,511"}},{"$f":"($A2-$A1)/365.25*(Main!$I$1+Main!$I8)*Main!$D$4*(1+Main!$I$4+VLOOKUP('Random Years'!BT2,'Hist Returns'!$A$12:$D$107,4,FALSE))","v":{"v":239354.76567023067,"d":"239,355"}},{"$f":"($A2-$A1)/365.25*(Main!$I$1+Main!$I8)*Main!$D$4*(1+Main!$I$4+VLOOKUP('Random Years'!BU2,'Hist Returns'!$A$12:$D$107,4,FALSE))","v":{"v":251504.02634156367,"d":"251,504"}},{"$f":"($A2-$A1)/365.25*(Main!$I$1+Main!$I8)*Main!$D$4*(1+Main!$I$4+VLOOKUP('Random Years'!BV2,'Hist Returns'!$A$12:$D$107,4,FALSE))","v":{"v":238511.18181620672,"d":"238,511"}},{"$f":"($A2-$A1)/365.25*(Main!$I$1+Main!$I8)*Main!$D$4*(1+Main!$I$4+VLOOKUP('Random Years'!BW2,'Hist Returns'!$A$12:$D$107,4,FALSE))","v":{"v":218530.11190521962,"d":"218,530"}},{"$f":"($A2-$A1)/365.25*(Main!$I$1+Main!$I8)*Main!$D$4*(1+Main!$I$4+VLOOKUP('Random Years'!BX2,'Hist Returns'!$A$12:$D$107,4,FALSE))","v":{"v":285161.753692161,"d":"285,162"}},{"$f":"($A2-$A1)/365.25*(Main!$I$1+Main!$I8)*Main!$D$4*(1+Main!$I$4+VLOOKUP('Random Years'!BY2,'Hist Returns'!$A$12:$D$107,4,FALSE))","v":{"v":253167.78248423574,"d":"253,168"}},{"$f":"($A2-$A1)/365.25*(Main!$I$1+Main!$I8)*Main!$D$4*(1+Main!$I$4+VLOOKUP('Random Years'!BZ2,'Hist Returns'!$A$12:$D$107,4,FALSE))","v":{"v":272291.9673025325,"d":"272,292"}},{"$f":"($A2-$A1)/365.25*(Main!$I$1+Main!$I8)*Main!$D$4*(1+Main!$I$4+VLOOKUP('Random Years'!CA2,'Hist Returns'!$A$12:$D$107,4,FALSE))","v":{"v":326540.270573571,"d":"326,540"}},{"$f":"($A2-$A1)/365.25*(Main!$I$1+Main!$I8)*Main!$D$4*(1+Main!$I$4+VLOOKUP('Random Years'!CB2,'Hist Returns'!$A$12:$D$107,4,FALSE))","v":{"v":249008.8528072279,"d":"249,009"}},{"$f":"($A2-$A1)/365.25*(Main!$I$1+Main!$I8)*Main!$D$4*(1+Main!$I$4+VLOOKUP('Random Years'!CC2,'Hist Returns'!$A$12:$D$107,4,FALSE))","v":{"v":289363.7446867334,"d":"289,364"}},{"$f":"($A2-$A1)/365.25*(Main!$I$1+Main!$I8)*Main!$D$4*(1+Main!$I$4+VLOOKUP('Random Years'!CD2,'Hist Returns'!$A$12:$D$107,4,FALSE))","v":{"v":287055.32351748523,"d":"287,055"}},{"$f":"($A2-$A1)/365.25*(Main!$I$1+Main!$I8)*Main!$D$4*(1+Main!$I$4+VLOOKUP('Random Years'!CE2,'Hist Returns'!$A$12:$D$107,4,FALSE))","v":{"v":253729.9147255202,"d":"253,730"}},{"$f":"($A2-$A1)/365.25*(Main!$I$1+Main!$I8)*Main!$D$4*(1+Main!$I$4+VLOOKUP('Random Years'!CF2,'Hist Returns'!$A$12:$D$107,4,FALSE))","v":{"v":270964.1215221825,"d":"270,964"}},{"$f":"($A2-$A1)/365.25*(Main!$I$1+Main!$I8)*Main!$D$4*(1+Main!$I$4+VLOOKUP('Random Years'!CG2,'Hist Returns'!$A$12:$D$107,4,FALSE))","v":{"v":257026.23823067523,"d":"257,026"}},{"$f":"($A2-$A1)/365.25*(Main!$I$1+Main!$I8)*Main!$D$4*(1+Main!$I$4+VLOOKUP('Random Years'!CH2,'Hist Returns'!$A$12:$D$107,4,FALSE))","v":{"v":253729.9147255202,"d":"253,730"}},{"$f":"($A2-$A1)/365.25*(Main!$I$1+Main!$I8)*Main!$D$4*(1+Main!$I$4+VLOOKUP('Random Years'!CI2,'Hist Returns'!$A$12:$D$107,4,FALSE))","v":{"v":266080.5040250699,"d":"266,081"}},{"$f":"($A2-$A1)/365.25*(Main!$I$1+Main!$I8)*Main!$D$4*(1+Main!$I$4+VLOOKUP('Random Years'!CJ2,'Hist Returns'!$A$12:$D$107,4,FALSE))","v":{"v":259144.46115053093,"d":"259,144"}},{"$f":"($A2-$A1)/365.25*(Main!$I$1+Main!$I8)*Main!$D$4*(1+Main!$I$4+VLOOKUP('Random Years'!CK2,'Hist Returns'!$A$12:$D$107,4,FALSE))","v":{"v":251983.78084728267,"d":"251,984"}},{"$f":"($A2-$A1)/365.25*(Main!$I$1+Main!$I8)*Main!$D$4*(1+Main!$I$4+VLOOKUP('Random Years'!CL2,'Hist Returns'!$A$12:$D$107,4,FALSE))","v":{"v":270964.1215221825,"d":"270,964"}},{"$f":"($A2-$A1)/365.25*(Main!$I$1+Main!$I8)*Main!$D$4*(1+Main!$I$4+VLOOKUP('Random Years'!CM2,'Hist Returns'!$A$12:$D$107,4,FALSE))","v":{"v":248123.00481226158,"d":"248,123"}},{"$f":"($A2-$A1)/365.25*(Main!$I$1+Main!$I8)*Main!$D$4*(1+Main!$I$4+VLOOKUP('Random Years'!CN2,'Hist Returns'!$A$12:$D$107,4,FALSE))","v":{"v":287055.32351748523,"d":"287,055"}},{"$f":"($A2-$A1)/365.25*(Main!$I$1+Main!$I8)*Main!$D$4*(1+Main!$I$4+VLOOKUP('Random Years'!CO2,'Hist Returns'!$A$12:$D$107,4,FALSE))","v":{"v":255027.7097399287,"d":"255,028"}},{"$f":"($A2-$A1)/365.25*(Main!$I$1+Main!$I8)*Main!$D$4*(1+Main!$I$4+VLOOKUP('Random Years'!CP2,'Hist Returns'!$A$12:$D$107,4,FALSE))","v":{"v":250928.83892928378,"d":"250,929"}},{"$f":"($A2-$A1)/365.25*(Main!$I$1+Main!$I8)*Main!$D$4*(1+Main!$I$4+VLOOKUP('Random Years'!CQ2,'Hist Returns'!$A$12:$D$107,4,FALSE))","v":{"v":240315.73489613447,"d":"240,316"}},{"$f":"($A2-$A1)/365.25*(Main!$I$1+Main!$I8)*Main!$D$4*(1+Main!$I$4+VLOOKUP('Random Years'!CR2,'Hist Returns'!$A$12:$D$107,4,FALSE))","v":{"v":259860.07261077067,"d":"259,860"}},{"$f":"($A2-$A1)/365.25*(Main!$I$1+Main!$I8)*Main!$D$4*(1+Main!$I$4+VLOOKUP('Random Years'!CS2,'Hist Returns'!$A$12:$D$107,4,FALSE))","v":{"v":226102.75376739528,"d":"226,103"}},{"$f":"($A2-$A1)/365.25*(Main!$I$1+Main!$I8)*Main!$D$4*(1+Main!$I$4+VLOOKUP('Random Years'!CT2,'Hist Returns'!$A$12:$D$107,4,FALSE))","v":{"v":250928.83892928378,"d":"250,929"}},{"$f":"($A2-$A1)/365.25*(Main!$I$1+Main!$I8)*Main!$D$4*(1+Main!$I$4+VLOOKUP('Random Years'!CU2,'Hist Returns'!$A$12:$D$107,4,FALSE))","v":{"v":257026.23823067523,"d":"257,026"}},{"$f":"($A2-$A1)/365.25*(Main!$I$1+Main!$I8)*Main!$D$4*(1+Main!$I$4+VLOOKUP('Random Years'!CV2,'Hist Returns'!$A$12:$D$107,4,FALSE))","v":{"v":250683.17486459532,"d":"250,683"}}]
[{"$f":"Main!A9","v":"2024-12-30"},{"$f":"Main!B9","v":70},{"$f":"($A3-$A2)/365.25*(C2+(Main!$I9*Main!$D$3))*(1+Main!$I$4+VLOOKUP('Random Years'!A3,'Hist Returns'!$A$12:$D$107,4,FALSE))","v":{"v":221085.68444407053,"d":"221,086"}},{"$f":"($A3-$A2)/365.25*(D2+(Main!$I9*Main!$D$3))*(1+VLOOKUP('Random Years'!B3,'Hist Returns'!$A$12:$D$107,4,FALSE))","v":{"v":294320.5705468615,"d":"294,321"}},{"$f":"($A3-$A2)/365.25*(E2+(Main!$I9*Main!$D$3))*(1+VLOOKUP('Random Years'!C3,'Hist Returns'!$A$12:$D$107,4,FALSE))","v":{"v":234806.2514804655,"d":"234,806"}},{"$f":"($A3-$A2)/365.25*(F2+(Main!$I9*Main!$D$3))*(1+VLOOKUP('Random Years'!D3,'Hist Returns'!$A$12:$D$107,4,FALSE))","v":{"v":282108.155423563,"d":"282,108"}},{"$f":"($A3-$A2)/365.25*(G2+(Main!$I9*Main!$D$3))*(1+VLOOKUP('Random Years'!E3,'Hist Returns'!$A$12:$D$107,4,FALSE))","v":{"v":254194.5934300893,"d":"254,195"}},{"$f":"($A3-$A2)/365.25*(H2+(Main!$I9*Main!$D$3))*(1+VLOOKUP('Random Years'!F3,'Hist Returns'!$A$12:$D$107,4,FALSE))","v":{"v":259644.88635099513,"d":"259,645"}},{"$f":"($A3-$A2)/365.25*(I2+(Main!$I9*Main!$D$3))*(1+VLOOKUP('Random Years'!G3,'Hist Returns'!$A$12:$D$107,4,FALSE))","v":{"v":250438.5562821025,"d":"250,439"}},{"$f":"($A3-$A2)/365.25*(J2+(Main!$I9*Main!$D$3))*(1+VLOOKUP('Random Years'!H3,'Hist Returns'!$A$12:$D$107,4,FALSE))","v":{"v":304493.8250854207,"d":"304,494"}},{"$f":"($A3-$A2)/365.25*(K2+(Main!$I9*Main!$D$3))*(1+VLOOKUP('Random Years'!I3,'Hist Returns'!$A$12:$D$107,4,FALSE))","v":{"v":359367.70256948593,"d":"359,368"}},{"$f":"($A3-$A2)/365.25*(L2+(Main!$I9*Main!$D$3))*(1+VLOOKUP('Random Years'!J3,'Hist Returns'!$A$12:$D$107,4,FALSE))","v":{"v":222605.4857840334,"d":"222,605"}},{"$f":"($A3-$A2)/365.25*(M2+(Main!$I9*Main!$D$3))*(1+VLOOKUP('Random Years'!K3,'Hist Returns'!$A$12:$D$107,4,FALSE))","v":{"v":244011.4620018156,"d":"244,011"}},{"$f":"($A3-$A2)/365.25*(N2+(Main!$I9*Main!$D$3))*(1+VLOOKUP('Random Years'!L3,'Hist Returns'!$A$12:$D$107,4,FALSE))","v":{"v":287413.033743869,"d":"287,413"}},{"$f":"($A3-$A2)/365.25*(O2+(Main!$I9*Main!$D$3))*(1+VLOOKUP('Random Years'!M3,'Hist Returns'!$A$12:$D$107,4,FALSE))","v":{"v":257991.55373734806,"d":"257,992"}},{"$f":"($A3-$A2)/365.25*(P2+(Main!$I9*Main!$D$3))*(1+VLOOKUP('Random Years'!N3,'Hist Returns'!$A$12:$D$107,4,FALSE))","v":{"v":265855.3123853857,"d":"265,855"}},{"$f":"($A3-$A2)/365.25*(Q2+(Main!$I9*Main!$D$3))*(1+VLOOKUP('Random Years'!O3,'Hist Returns'!$A$12:$D$107,4,FALSE))","v":{"v":250858.4594966028,"d":"250,858"}},{"$f":"($A3-$A2)/365.25*(R2+(Main!$I9*Main!$D$3))*(1+VLOOKUP('Random Years'!P3,'Hist Returns'!$A$12:$D$107,4,FALSE))","v":{"v":207573.48215887646,"d":"207,573"}},{"$f":"($A3-$A2)/365.25*(S2+(Main!$I9*Main!$D$3))*(1+VLOOKUP('Random Years'!Q3,'Hist Returns'!$A$12:$D$107,4,FALSE))","v":{"v":244713.79297107577,"d":"244,714"}},{"$f":"($A3-$A2)/365.25*(T2+(Main!$I9*Main!$D$3))*(1+VLOOKUP('Random Years'!R3,'Hist Returns'!$A$12:$D$107,4,FALSE))","v":{"v":270360.36570740206,"d":"270,360"}},{"$f":"($A3-$A2)/365.25*(U2+(Main!$I9*Main!$D$3))*(1+VLOOKUP('Random Years'!S3,'Hist Returns'!$A$12:$D$107,4,FALSE))","v":{"v":284304.6597311839,"d":"284,305"}},{"$f":"($A3-$A2)/365.25*(V2+(Main!$I9*Main!$D$3))*(1+VLOOKUP('Random Years'!T3,'Hist Returns'!$A$12:$D$107,4,FALSE))","v":{"v":242319.28338260142,"d":"242,319"}},{"$f":"($A3-$A2)/365.25*(W2+(Main!$I9*Main!$D$3))*(1+VLOOKUP('Random Years'!U3,'Hist Returns'!$A$12:$D$107,4,FALSE))","v":{"v":219178.9064786256,"d":"219,179"}},{"$f":"($A3-$A2)/365.25*(X2+(Main!$I9*Main!$D$3))*(1+VLOOKUP('Random Years'!V3,'Hist Returns'!$A$12:$D$107,4,FALSE))","v":{"v":262153.51961157063,"d":"262,154"}},{"$f":"($A3-$A2)/365.25*(Y2+(Main!$I9*Main!$D$3))*(1+VLOOKUP('Random Years'!W3,'Hist Returns'!$A$12:$D$107,4,FALSE))","v":{"v":264849.1949977897,"d":"264,849"}},{"$f":"($A3-$A2)/365.25*(Z2+(Main!$I9*Main!$D$3))*(1+VLOOKUP('Random Years'!X3,'Hist Returns'!$A$12:$D$107,4,FALSE))","v":{"v":296191.6410640778,"d":"296,192"}},{"$f":"($A3-$A2)/365.25*(AA2+(Main!$I9*Main!$D$3))*(1+VLOOKUP('Random Years'!Y3,'Hist Returns'!$A$12:$D$107,4,FALSE))","v":{"v":267512.03670121095,"d":"267,512"}},{"$f":"($A3-$A2)/365.25*(AB2+(Main!$I9*Main!$D$3))*(1+VLOOKUP('Random Years'!Z3,'Hist Returns'!$A$12:$D$107,4,FALSE))","v":{"v":294071.83372205554,"d":"294,072"}},{"$f":"($A3-$A2)/365.25*(AC2+(Main!$I9*Main!$D$3))*(1+VLOOKUP('Random Years'!AA3,'Hist Returns'!$A$12:$D$107,4,FALSE))","v":{"v":241790.04069399423,"d":"241,790"}},{"$f":"($A3-$A2)/365.25*(AD2+(Main!$I9*Main!$D$3))*(1+VLOOKUP('Random Years'!AB3,'Hist Returns'!$A$12:$D$107,4,FALSE))","v":{"v":265861.29584382096,"d":"265,861"}},{"$f":"($A3-$A2)/365.25*(AE2+(Main!$I9*Main!$D$3))*(1+VLOOKUP('Random Years'!AC3,'Hist Returns'!$A$12:$D$107,4,FALSE))","v":{"v":240040.51664002342,"d":"240,041"}},{"$f":"($A3-$A2)/365.25*(AF2+(Main!$I9*Main!$D$3))*(1+VLOOKUP('Random Years'!AD3,'Hist Returns'!$A$12:$D$107,4,FALSE))","v":{"v":257772.00780192748,"d":"257,772"}},{"$f":"($A3-$A2)/365.25*(AG2+(Main!$I9*Main!$D$3))*(1+VLOOKUP('Random Years'!AE3,'Hist Returns'!$A$12:$D$107,4,FALSE))","v":{"v":261258.41652110344,"d":"261,258"}},{"$f":"($A3-$A2)/365.25*(AH2+(Main!$I9*Main!$D$3))*(1+VLOOKUP('Random Years'!AF3,'Hist Returns'!$A$12:$D$107,4,FALSE))","v":{"v":258586.32821559222,"d":"258,586"}},{"$f":"($A3-$A2)/365.25*(AI2+(Main!$I9*Main!$D$3))*(1+VLOOKUP('Random Years'!AG3,'Hist Returns'!$A$12:$D$107,4,FALSE))","v":{"v":290738.93710717076,"d":"290,739"}},{"$f":"($A3-$A2)/365.25*(AJ2+(Main!$I9*Main!$D$3))*(1+VLOOKUP('Random Years'!AH3,'Hist Returns'!$A$12:$D$107,4,FALSE))","v":{"v":267696.67370568396,"d":"267,697"}},{"$f":"($A3-$A2)/365.25*(AK2+(Main!$I9*Main!$D$3))*(1+VLOOKUP('Random Years'!AI3,'Hist Returns'!$A$12:$D$107,4,FALSE))","v":{"v":281495.4984338605,"d":"281,495"}},{"$f":"($A3-$A2)/365.25*(AL2+(Main!$I9*Main!$D$3))*(1+VLOOKUP('Random Years'!AJ3,'Hist Returns'!$A$12:$D$107,4,FALSE))","v":{"v":275398.7826551318,"d":"275,399"}},{"$f":"($A3-$A2)/365.25*(AM2+(Main!$I9*Main!$D$3))*(1+VLOOKUP('Random Years'!AK3,'Hist Returns'!$A$12:$D$107,4,FALSE))","v":{"v":252587.88888334375,"d":"252,588"}},{"$f":"($A3-$A2)/365.25*(AN2+(Main!$I9*Main!$D$3))*(1+VLOOKUP('Random Years'!AL3,'Hist Returns'!$A$12:$D$107,4,FALSE))","v":{"v":283403.21272081777,"d":"283,403"}},{"$f":"($A3-$A2)/365.25*(AO2+(Main!$I9*Main!$D$3))*(1+VLOOKUP('Random Years'!AM3,'Hist Returns'!$A$12:$D$107,4,FALSE))","v":{"v":263981.9074014827,"d":"263,982"}},{"$f":"($A3-$A2)/365.25*(AP2+(Main!$I9*Main!$D$3))*(1+VLOOKUP('Random Years'!AN3,'Hist Returns'!$A$12:$D$107,4,FALSE))","v":{"v":261056.00160521612,"d":"261,056"}},{"$f":"($A3-$A2)/365.25*(AQ2+(Main!$I9*Main!$D$3))*(1+VLOOKUP('Random Years'!AO3,'Hist Returns'!$A$12:$D$107,4,FALSE))","v":{"v":268460.61053845147,"d":"268,461"}},{"$f":"($A3-$A2)/365.25*(AR2+(Main!$I9*Main!$D$3))*(1+VLOOKUP('Random Years'!AP3,'Hist Returns'!$A$12:$D$107,4,FALSE))","v":{"v":244831.1724036448,"d":"244,831"}},{"$f":"($A3-$A2)/365.25*(AS2+(Main!$I9*Main!$D$3))*(1+VLOOKUP('Random Years'!AQ3,'Hist Returns'!$A$12:$D$107,4,FALSE))","v":{"v":283344.5051423054,"d":"283,345"}},{"$f":"($A3-$A2)/365.25*(AT2+(Main!$I9*Main!$D$3))*(1+VLOOKUP('Random Years'!AR3,'Hist Returns'!$A$12:$D$107,4,FALSE))","v":{"v":282600.4551725917,"d":"282,600"}},{"$f":"($A3-$A2)/365.25*(AU2+(Main!$I9*Main!$D$3))*(1+VLOOKUP('Random Years'!AS3,'Hist Returns'!$A$12:$D$107,4,FALSE))","v":{"v":244619.21020858095,"d":"244,619"}},{"$f":"($A3-$A2)/365.25*(AV2+(Main!$I9*Main!$D$3))*(1+VLOOKUP('Random Years'!AT3,'Hist Returns'!$A$12:$D$107,4,FALSE))","v":{"v":293887.0177510861,"d":"293,887"}},{"$f":"($A3-$A2)/365.25*(AW2+(Main!$I9*Main!$D$3))*(1+VLOOKUP('Random Years'!AU3,'Hist Returns'!$A$12:$D$107,4,FALSE))","v":{"v":271608.1269317021,"d":"271,608"}},{"$f":"($A3-$A2)/365.25*(AX2+(Main!$I9*Main!$D$3))*(1+VLOOKUP('Random Years'!AV3,'Hist Returns'!$A$12:$D$107,4,FALSE))","v":{"v":276677.19270904065,"d":"276,677"}},{"$f":"($A3-$A2)/365.25*(AY2+(Main!$I9*Main!$D$3))*(1+VLOOKUP('Random Years'!AW3,'Hist Returns'!$A$12:$D$107,4,FALSE))","v":{"v":282846.74221230455,"d":"282,847"}},{"$f":"($A3-$A2)/365.25*(AZ2+(Main!$I9*Main!$D$3))*(1+VLOOKUP('Random Years'!AX3,'Hist Returns'!$A$12:$D$107,4,FALSE))","v":{"v":231189.45912745738,"d":"231,189"}},{"$f":"($A3-$A2)/365.25*(BA2+(Main!$I9*Main!$D$3))*(1+VLOOKUP('Random Years'!AY3,'Hist Returns'!$A$12:$D$107,4,FALSE))","v":{"v":226690.52629936778,"d":"226,691"}},{"$f":"($A3-$A2)/365.25*(BB2+(Main!$I9*Main!$D$3))*(1+VLOOKUP('Random Years'!AZ3,'Hist Returns'!$A$12:$D$107,4,FALSE))","v":{"v":271531.35982929624,"d":"271,531"}},{"$f":"($A3-$A2)/365.25*(BC2+(Main!$I9*Main!$D$3))*(1+VLOOKUP('Random Years'!BA3,'Hist Returns'!$A$12:$D$107,4,FALSE))","v":{"v":287107.90059809166,"d":"287,108"}},{"$f":"($A3-$A2)/365.25*(BD2+(Main!$I9*Main!$D$3))*(1+VLOOKUP('Random Years'!BB3,'Hist Returns'!$A$12:$D$107,4,FALSE))","v":{"v":245139.90183165207,"d":"245,140"}},{"$f":"($A3-$A2)/365.25*(BE2+(Main!$I9*Main!$D$3))*(1+VLOOKUP('Random Years'!BC3,'Hist Returns'!$A$12:$D$107,4,FALSE))","v":{"v":292353.9707348363,"d":"292,354"}},{"$f":"($A3-$A2)/365.25*(BF2+(Main!$I9*Main!$D$3))*(1+VLOOKUP('Random Years'!BD3,'Hist Returns'!$A$12:$D$107,4,FALSE))","v":{"v":266030.48209625867,"d":"266,030"}},{"$f":"($A3-$A2)/365.25*(BG2+(Main!$I9*Main!$D$3))*(1+VLOOKUP('Random Years'!BE3,'Hist Returns'!$A$12:$D$107,4,FALSE))","v":{"v":205903.38367164464,"d":"205,903"}},{"$f":"($A3-$A2)/365.25*(BH2+(Main!$I9*Main!$D$3))*(1+VLOOKUP('Random Years'!BF3,'Hist Returns'!$A$12:$D$107,4,FALSE))","v":{"v":253069.25043011174,"d":"253,069"}},{"$f":"($A3-$A2)/365.25*(BI2+(Main!$I9*Main!$D$3))*(1+VLOOKUP('Random Years'!BG3,'Hist Returns'!$A$12:$D$107,4,FALSE))","v":{"v":276650.1539918911,"d":"276,650"}},{"$f":"($A3-$A2)/365.25*(BJ2+(Main!$I9*Main!$D$3))*(1+VLOOKUP('Random Years'!BH3,'Hist Returns'!$A$12:$D$107,4,FALSE))","v":{"v":257801.02696777106,"d":"257,801"}},{"$f":"($A3-$A2)/365.25*(BK2+(Main!$I9*Main!$D$3))*(1+VLOOKUP('Random Years'!BI3,'Hist Returns'!$A$12:$D$107,4,FALSE))","v":{"v":276180.35964740254,"d":"276,180"}},{"$f":"($A3-$A2)/365.25*(BL2+(Main!$I9*Main!$D$3))*(1+VLOOKUP('Random Years'!BJ3,'Hist Returns'!$A$12:$D$107,4,FALSE))","v":{"v":302240.0145982309,"d":"302,240"}},{"$f":"($A3-$A2)/365.25*(BM2+(Main!$I9*Main!$D$3))*(1+VLOOKUP('Random Years'!BK3,'Hist Returns'!$A$12:$D$107,4,FALSE))","v":{"v":202663.3732772341,"d":"202,663"}},{"$f":"($A3-$A2)/365.25*(BN2+(Main!$I9*Main!$D$3))*(1+VLOOKUP('Random Years'!BL3,'Hist Returns'!$A$12:$D$107,4,FALSE))","v":{"v":232572.68932678108,"d":"232,573"}},{"$f":"($A3-$A2)/365.25*(BO2+(Main!$I9*Main!$D$3))*(1+VLOOKUP('Random Years'!BM3,'Hist Returns'!$A$12:$D$107,4,FALSE))","v":{"v":240037.6803859483,"d":"240,038"}},{"$f":"($A3-$A2)/365.25*(BP2+(Main!$I9*Main!$D$3))*(1+VLOOKUP('Random Years'!BN3,'Hist Returns'!$A$12:$D$107,4,FALSE))","v":{"v":248481.07558626376,"d":"248,481"}},{"$f":"($A3-$A2)/365.25*(BQ2+(Main!$I9*Main!$D$3))*(1+VLOOKUP('Random Years'!BO3,'Hist Returns'!$A$12:$D$107,4,FALSE))","v":{"v":273622.9996075324,"d":"273,623"}},{"$f":"($A3-$A2)/365.25*(BR2+(Main!$I9*Main!$D$3))*(1+VLOOKUP('Random Years'!BP3,'Hist Returns'!$A$12:$D$107,4,FALSE))","v":{"v":226346.04987913705,"d":"226,346"}},{"$f":"($A3-$A2)/365.25*(BS2+(Main!$I9*Main!$D$3))*(1+VLOOKUP('Random Years'!BQ3,'Hist Returns'!$A$12:$D$107,4,FALSE))","v":{"v":284440.5922000267,"d":"284,441"}},{"$f":"($A3-$A2)/365.25*(BT2+(Main!$I9*Main!$D$3))*(1+VLOOKUP('Random Years'!BR3,'Hist Returns'!$A$12:$D$107,4,FALSE))","v":{"v":260198.4303076663,"d":"260,198"}},{"$f":"($A3-$A2)/365.25*(BU2+(Main!$I9*Main!$D$3))*(1+VLOOKUP('Random Years'!BS3,'Hist Returns'!$A$12:$D$107,4,FALSE))","v":{"v":273514.5370352908,"d":"273,515"}},{"$f":"($A3-$A2)/365.25*(BV2+(Main!$I9*Main!$D$3))*(1+VLOOKUP('Random Years'!BT3,'Hist Returns'!$A$12:$D$107,4,FALSE))","v":{"v":245526.69594613728,"d":"245,527"}},{"$f":"($A3-$A2)/365.25*(BW2+(Main!$I9*Main!$D$3))*(1+VLOOKUP('Random Years'!BU3,'Hist Returns'!$A$12:$D$107,4,FALSE))","v":{"v":300952.41475307214,"d":"300,952"}},{"$f":"($A3-$A2)/365.25*(BX2+(Main!$I9*Main!$D$3))*(1+VLOOKUP('Random Years'!BV3,'Hist Returns'!$A$12:$D$107,4,FALSE))","v":{"v":250837.6405702342,"d":"250,838"}},{"$f":"($A3-$A2)/365.25*(BY2+(Main!$I9*Main!$D$3))*(1+VLOOKUP('Random Years'!BW3,'Hist Returns'!$A$12:$D$107,4,FALSE))","v":{"v":213062.73178062428,"d":"213,063"}},{"$f":"($A3-$A2)/365.25*(BZ2+(Main!$I9*Main!$D$3))*(1+VLOOKUP('Random Years'!BX3,'Hist Returns'!$A$12:$D$107,4,FALSE))","v":{"v":289790.37413846515,"d":"289,790"}},{"$f":"($A3-$A2)/365.25*(CA2+(Main!$I9*Main!$D$3))*(1+VLOOKUP('Random Years'!BY3,'Hist Returns'!$A$12:$D$107,4,FALSE))","v":{"v":261338.87003420538,"d":"261,339"}},{"$f":"($A3-$A2)/365.25*(CB2+(Main!$I9*Main!$D$3))*(1+VLOOKUP('Random Years'!BZ3,'Hist Returns'!$A$12:$D$107,4,FALSE))","v":{"v":296759.25534478715,"d":"296,759"}},{"$f":"($A3-$A2)/365.25*(CC2+(Main!$I9*Main!$D$3))*(1+VLOOKUP('Random Years'!CA3,'Hist Returns'!$A$12:$D$107,4,FALSE))","v":{"v":311177.0078657215,"d":"311,177"}},{"$f":"($A3-$A2)/365.25*(CD2+(Main!$I9*Main!$D$3))*(1+VLOOKUP('Random Years'!CB3,'Hist Returns'!$A$12:$D$107,4,FALSE))","v":{"v":306341.8893780673,"d":"306,342"}},{"$f":"($A3-$A2)/365.25*(CE2+(Main!$I9*Main!$D$3))*(1+VLOOKUP('Random Years'!CC3,'Hist Returns'!$A$12:$D$107,4,FALSE))","v":{"v":282362.0884228991,"d":"282,362"}},{"$f":"($A3-$A2)/365.25*(CF2+(Main!$I9*Main!$D$3))*(1+VLOOKUP('Random Years'!CD3,'Hist Returns'!$A$12:$D$107,4,FALSE))","v":{"v":313690.07357972336,"d":"313,690"}},{"$f":"($A3-$A2)/365.25*(CG2+(Main!$I9*Main!$D$3))*(1+VLOOKUP('Random Years'!CE3,'Hist Returns'!$A$12:$D$107,4,FALSE))","v":{"v":272938.65734353644,"d":"272,939"}},{"$f":"($A3-$A2)/365.25*(CH2+(Main!$I9*Main!$D$3))*(1+VLOOKUP('Random Years'!CF3,'Hist Returns'!$A$12:$D$107,4,FALSE))","v":{"v":283578.68014879216,"d":"283,579"}},{"$f":"($A3-$A2)/365.25*(CI2+(Main!$I9*Main!$D$3))*(1+VLOOKUP('Random Years'!CG3,'Hist Returns'!$A$12:$D$107,4,FALSE))","v":{"v":283631.4365259492,"d":"283,631"}},{"$f":"($A3-$A2)/365.25*(CJ2+(Main!$I9*Main!$D$3))*(1+VLOOKUP('Random Years'!CH3,'Hist Returns'!$A$12:$D$107,4,FALSE))","v":{"v":264159.29524890106,"d":"264,159"}},{"$f":"($A3-$A2)/365.25*(CK2+(Main!$I9*Main!$D$3))*(1+VLOOKUP('Random Years'!CI3,'Hist Returns'!$A$12:$D$107,4,FALSE))","v":{"v":268805.4760631317,"d":"268,805"}},{"$f":"($A3-$A2)/365.25*(CL2+(Main!$I9*Main!$D$3))*(1+VLOOKUP('Random Years'!CJ3,'Hist Returns'!$A$12:$D$107,4,FALSE))","v":{"v":269764.9980228665,"d":"269,765"}},{"$f":"($A3-$A2)/365.25*(CM2+(Main!$I9*Main!$D$3))*(1+VLOOKUP('Random Years'!CK3,'Hist Returns'!$A$12:$D$107,4,FALSE))","v":{"v":256755.68172049124,"d":"256,756"}},{"$f":"($A3-$A2)/365.25*(CN2+(Main!$I9*Main!$D$3))*(1+VLOOKUP('Random Years'!CL3,'Hist Returns'!$A$12:$D$107,4,FALSE))","v":{"v":282621.72390725964,"d":"282,622"}},{"$f":"($A3-$A2)/365.25*(CO2+(Main!$I9*Main!$D$3))*(1+VLOOKUP('Random Years'!CM3,'Hist Returns'!$A$12:$D$107,4,FALSE))","v":{"v":248265.45602589514,"d":"248,265"}},{"$f":"($A3-$A2)/365.25*(CP2+(Main!$I9*Main!$D$3))*(1+VLOOKUP('Random Years'!CN3,'Hist Returns'!$A$12:$D$107,4,FALSE))","v":{"v":294172.9920465808,"d":"294,173"}},{"$f":"($A3-$A2)/365.25*(CQ2+(Main!$I9*Main!$D$3))*(1+VLOOKUP('Random Years'!CO3,'Hist Returns'!$A$12:$D$107,4,FALSE))","v":{"v":261389.95976325046,"d":"261,390"}},{"$f":"($A3-$A2)/365.25*(CR2+(Main!$I9*Main!$D$3))*(1+VLOOKUP('Random Years'!CP3,'Hist Returns'!$A$12:$D$107,4,FALSE))","v":{"v":246055.72467418778,"d":"246,056"}},{"$f":"($A3-$A2)/365.25*(CS2+(Main!$I9*Main!$D$3))*(1+VLOOKUP('Random Years'!CQ3,'Hist Returns'!$A$12:$D$107,4,FALSE))","v":{"v":241401.68449149423,"d":"241,402"}},{"$f":"($A3-$A2)/365.25*(CT2+(Main!$I9*Main!$D$3))*(1+VLOOKUP('Random Years'!CR3,'Hist Returns'!$A$12:$D$107,4,FALSE))","v":{"v":256919.1053784483,"d":"256,919"}},{"$f":"($A3-$A2)/365.25*(CU2+(Main!$I9*Main!$D$3))*(1+VLOOKUP('Random Years'!CS3,'Hist Returns'!$A$12:$D$107,4,FALSE))","v":{"v":283102.3880977884,"d":"283,102"}},{"$f":"($A3-$A2)/365.25*(CV2+(Main!$I9*Main!$D$3))*(1+VLOOKUP('Random Years'!CT3,'Hist Returns'!$A$12:$D$107,4,FALSE))","v":{"v":262552.4535634917,"d":"262,552"}},{"$f":"($A3-$A2)/365.25*(CW2+(Main!$I9*Main!$D$3))*(1+VLOOKUP('Random Years'!CU3,'Hist Returns'!$A$12:$D$107,4,FALSE))","v":{"v":263710.83414411463,"d":"263,711"}},{"$f":"($A3-$A2)/365.25*(CX2+(Main!$I9*Main!$D$3))*(1+VLOOKUP('Random Years'!CV3,'Hist Returns'!$A$12:$D$107,4,FALSE))","v":{"v":229689.39466325683,"d":"229,689"}}]
[{"$f":"Main!A10","v":"2025-12-30"},{"$f":"Main!B10","v":71},{"$f":"($A4-$A3)/365.25*(C3+(Main!$I10*Main!$D$3))*(1+Main!$I$4+VLOOKUP('Random Years'!A4,'Hist Returns'!$A$12:$D$107,4,FALSE))","v":{"v":237409.7995447829,"d":"237,410"}},{"$f":"($A4-$A3)/365.25*(D3+(Main!$I10*Main!$D$3))*(1+Main!$I$4+VLOOKUP('Random Years'!B4,'Hist Returns'!$A$12:$D$107,4,FALSE))","v":{"v":296863.73865493573,"d":"296,864"}},{"$f":"($A4-$A3)/365.25*(E3+(Main!$I10*Main!$D$3))*(1+Main!$I$4+VLOOKUP('Random Years'!C4,'Hist Returns'!$A$12:$D$107,4,FALSE))","v":{"v":274943.5390267694,"d":"274,944"}},{"$f":"($A4-$A3)/365.25*(F3+(Main!$I10*Main!$D$3))*(1+Main!$I$4+VLOOKUP('Random Years'!D4,'Hist Returns'!$A$12:$D$107,4,FALSE))","v":{"v":296870.99725908414,"d":"296,871"}},{"$f":"($A4-$A3)/365.25*(G3+(Main!$I10*Main!$D$3))*(1+Main!$I$4+VLOOKUP('Random Years'!E4,'Hist Returns'!$A$12:$D$107,4,FALSE))","v":{"v":262105.3052869749,"d":"262,105"}},{"$f":"($A4-$A3)/365.25*(H3+(Main!$I10*Main!$D$3))*(1+Main!$I$4+VLOOKUP('Random Years'!F4,'Hist Returns'!$A$12:$D$107,4,FALSE))","v":{"v":245473.2679255395,"d":"245,473"}},{"$f":"($A4-$A3)/365.25*(I3+(Main!$I10*Main!$D$3))*(1+Main!$I$4+VLOOKUP('Random Years'!G4,'Hist Returns'!$A$12:$D$107,4,FALSE))","v":{"v":236734.53322168314,"d":"236,735"}},{"$f":"($A4-$A3)/365.25*(J3+(Main!$I10*Main!$D$3))*(1+Main!$I$4+VLOOKUP('Random Years'!H4,'Hist Returns'!$A$12:$D$107,4,FALSE))","v":{"v":376891.10399043775,"d":"376,891"}},{"$f":"($A4-$A3)/365.25*(K3+(Main!$I10*Main!$D$3))*(1+Main!$I$4+VLOOKUP('Random Years'!I4,'Hist Returns'!$A$12:$D$107,4,FALSE))","v":{"v":328528.5298586181,"d":"328,529"}},{"$f":"($A4-$A3)/365.25*(L3+(Main!$I10*Main!$D$3))*(1+Main!$I$4+VLOOKUP('Random Years'!J4,'Hist Returns'!$A$12:$D$107,4,FALSE))","v":{"v":223008.7518696434,"d":"223,009"}},{"$f":"($A4-$A3)/365.25*(M3+(Main!$I10*Main!$D$3))*(1+Main!$I$4+VLOOKUP('Random Years'!K4,'Hist Returns'!$A$12:$D$107,4,FALSE))","v":{"v":245916.35613855478,"d":"245,916"}},{"$f":"($A4-$A3)/365.25*(N3+(Main!$I10*Main!$D$3))*(1+Main!$I$4+VLOOKUP('Random Years'!L4,'Hist Returns'!$A$12:$D$107,4,FALSE))","v":{"v":319490.23699108727,"d":"319,490"}},{"$f":"($A4-$A3)/365.25*(O3+(Main!$I10*Main!$D$3))*(1+Main!$I$4+VLOOKUP('Random Years'!M4,'Hist Returns'!$A$12:$D$107,4,FALSE))","v":{"v":279350.58775026206,"d":"279,351"}},{"$f":"($A4-$A3)/365.25*(P3+(Main!$I10*Main!$D$3))*(1+Main!$I$4+VLOOKUP('Random Years'!N4,'Hist Returns'!$A$12:$D$107,4,FALSE))","v":{"v":261100.5910642277,"d":"261,101"}},{"$f":"($A4-$A3)/365.25*(Q3+(Main!$I10*Main!$D$3))*(1+Main!$I$4+VLOOKUP('Random Years'!O4,'Hist Returns'!$A$12:$D$107,4,FALSE))","v":{"v":271595.7841371593,"d":"271,596"}},{"$f":"($A4-$A3)/365.25*(R3+(Main!$I10*Main!$D$3))*(1+Main!$I$4+VLOOKUP('Random Years'!P4,'Hist Returns'!$A$12:$D$107,4,FALSE))","v":{"v":202221.64693534817,"d":"202,222"}},{"$f":"($A4-$A3)/365.25*(S3+(Main!$I10*Main!$D$3))*(1+Main!$I$4+VLOOKUP('Random Years'!Q4,'Hist Returns'!$A$12:$D$107,4,FALSE))","v":{"v":252419.48240002702,"d":"252,419"}},{"$f":"($A4-$A3)/365.25*(T3+(Main!$I10*Main!$D$3))*(1+Main!$I$4+VLOOKUP('Random Years'!R4,'Hist Returns'!$A$12:$D$107,4,FALSE))","v":{"v":295889.3807674358,"d":"295,889"}},{"$f":"($A4-$A3)/365.25*(U3+(Main!$I10*Main!$D$3))*(1+Main!$I$4+VLOOKUP('Random Years'!S4,'Hist Returns'!$A$12:$D$107,4,FALSE))","v":{"v":288703.2617583993,"d":"288,703"}},{"$f":"($A4-$A3)/365.25*(V3+(Main!$I10*Main!$D$3))*(1+Main!$I$4+VLOOKUP('Random Years'!T4,'Hist Returns'!$A$12:$D$107,4,FALSE))","v":{"v":254143.71064237575,"d":"254,144"}},{"$f":"($A4-$A3)/365.25*(W3+(Main!$I10*Main!$D$3))*(1+Main!$I$4+VLOOKUP('Random Years'!U4,'Hist Returns'!$A$12:$D$107,4,FALSE))","v":{"v":230404.3688905338,"d":"230,404"}},{"$f":"($A4-$A3)/365.25*(X3+(Main!$I10*Main!$D$3))*(1+Main!$I$4+VLOOKUP('Random Years'!V4,'Hist Returns'!$A$12:$D$107,4,FALSE))","v":{"v":247994.1933365543,"d":"247,994"}},{"$f":"($A4-$A3)/365.25*(Y3+(Main!$I10*Main!$D$3))*(1+Main!$I$4+VLOOKUP('Random Years'!W4,'Hist Returns'!$A$12:$D$107,4,FALSE))","v":{"v":256654.51513986205,"d":"256,655"}},{"$f":"($A4-$A3)/365.25*(Z3+(Main!$I10*Main!$D$3))*(1+Main!$I$4+VLOOKUP('Random Years'!X4,'Hist Returns'!$A$12:$D$107,4,FALSE))","v":{"v":342249.5533313424,"d":"342,250"}},{"$f":"($A4-$A3)/365.25*(AA3+(Main!$I10*Main!$D$3))*(1+Main!$I$4+VLOOKUP('Random Years'!Y4,'Hist Returns'!$A$12:$D$107,4,FALSE))","v":{"v":265506.4979411497,"d":"265,506"}},{"$f":"($A4-$A3)/365.25*(AB3+(Main!$I10*Main!$D$3))*(1+Main!$I$4+VLOOKUP('Random Years'!Z4,'Hist Returns'!$A$12:$D$107,4,FALSE))","v":{"v":297766.32362693665,"d":"297,766"}},{"$f":"($A4-$A3)/365.25*(AC3+(Main!$I10*Main!$D$3))*(1+Main!$I$4+VLOOKUP('Random Years'!AA4,'Hist Returns'!$A$12:$D$107,4,FALSE))","v":{"v":263111.5311954791,"d":"263,112"}},{"$f":"($A4-$A3)/365.25*(AD3+(Main!$I10*Main!$D$3))*(1+Main!$I$4+VLOOKUP('Random Years'!AB4,'Hist Returns'!$A$12:$D$107,4,FALSE))","v":{"v":269906.0063659073,"d":"269,906"}},{"$f":"($A4-$A3)/365.25*(AE3+(Main!$I10*Main!$D$3))*(1+Main!$I$4+VLOOKUP('Random Years'!AC4,'Hist Returns'!$A$12:$D$107,4,FALSE))","v":{"v":255074.1789048826,"d":"255,074"}},{"$f":"($A4-$A3)/365.25*(AF3+(Main!$I10*Main!$D$3))*(1+Main!$I$4+VLOOKUP('Random Years'!AD4,'Hist Returns'!$A$12:$D$107,4,FALSE))","v":{"v":262947.86816911923,"d":"262,948"}},{"$f":"($A4-$A3)/365.25*(AG3+(Main!$I10*Main!$D$3))*(1+Main!$I$4+VLOOKUP('Random Years'!AE4,'Hist Returns'!$A$12:$D$107,4,FALSE))","v":{"v":280751.97766546905,"d":"280,752"}},{"$f":"($A4-$A3)/365.25*(AH3+(Main!$I10*Main!$D$3))*(1+Main!$I$4+VLOOKUP('Random Years'!AF4,'Hist Returns'!$A$12:$D$107,4,FALSE))","v":{"v":253933.66129915364,"d":"253,934"}},{"$f":"($A4-$A3)/365.25*(AI3+(Main!$I10*Main!$D$3))*(1+Main!$I$4+VLOOKUP('Random Years'!AG4,'Hist Returns'!$A$12:$D$107,4,FALSE))","v":{"v":298984.0521419208,"d":"298,984"}},{"$f":"($A4-$A3)/365.25*(AJ3+(Main!$I10*Main!$D$3))*(1+Main!$I$4+VLOOKUP('Random Years'!AH4,'Hist Returns'!$A$12:$D$107,4,FALSE))","v":{"v":306461.03803820227,"d":"306,461"}},{"$f":"($A4-$A3)/365.25*(AK3+(Main!$I10*Main!$D$3))*(1+Main!$I$4+VLOOKUP('Random Years'!AI4,'Hist Returns'!$A$12:$D$107,4,FALSE))","v":{"v":286698.54202680744,"d":"286,699"}},{"$f":"($A4-$A3)/365.25*(AL3+(Main!$I10*Main!$D$3))*(1+Main!$I$4+VLOOKUP('Random Years'!AJ4,'Hist Returns'!$A$12:$D$107,4,FALSE))","v":{"v":279523.4865302441,"d":"279,523"}},{"$f":"($A4-$A3)/365.25*(AM3+(Main!$I10*Main!$D$3))*(1+Main!$I$4+VLOOKUP('Random Years'!AK4,'Hist Returns'!$A$12:$D$107,4,FALSE))","v":{"v":256377.9091007699,"d":"256,378"}},{"$f":"($A4-$A3)/365.25*(AN3+(Main!$I10*Main!$D$3))*(1+Main!$I$4+VLOOKUP('Random Years'!AL4,'Hist Returns'!$A$12:$D$107,4,FALSE))","v":{"v":290378.6269419147,"d":"290,379"}},{"$f":"($A4-$A3)/365.25*(AO3+(Main!$I10*Main!$D$3))*(1+Main!$I$4+VLOOKUP('Random Years'!AM4,'Hist Returns'!$A$12:$D$107,4,FALSE))","v":{"v":271174.2211496017,"d":"271,174"}},{"$f":"($A4-$A3)/365.25*(AP3+(Main!$I10*Main!$D$3))*(1+Main!$I$4+VLOOKUP('Random Years'!AN4,'Hist Returns'!$A$12:$D$107,4,FALSE))","v":{"v":266311.32967735076,"d":"266,311"}},{"$f":"($A4-$A3)/365.25*(AQ3+(Main!$I10*Main!$D$3))*(1+Main!$I$4+VLOOKUP('Random Years'!AO4,'Hist Returns'!$A$12:$D$107,4,FALSE))","v":{"v":279703.5586765511,"d":"279,704"}},{"$f":"($A4-$A3)/365.25*(AR3+(Main!$I10*Main!$D$3))*(1+Main!$I$4+VLOOKUP('Random Years'!AP4,'Hist Returns'!$A$12:$D$107,4,FALSE))","v":{"v":245662.99510055195,"d":"245,663"}},{"$f":"($A4-$A3)/365.25*(AS3+(Main!$I10*Main!$D$3))*(1+Main!$I$4+VLOOKUP('Random Years'!AQ4,'Hist Returns'!$A$12:$D$107,4,FALSE))","v":{"v":324760.0914759548,"d":"324,760"}},{"$f":"($A4-$A3)/365.25*(AT3+(Main!$I10*Main!$D$3))*(1+Main!$I$4+VLOOKUP('Random Years'!AR4,'Hist Returns'!$A$12:$D$107,4,FALSE))","v":{"v":321356.5008628296,"d":"321,357"}},{"$f":"($A4-$A3)/365.25*(AU3+(Main!$I10*Main!$D$3))*(1+Main!$I$4+VLOOKUP('Random Years'!AS4,'Hist Returns'!$A$12:$D$107,4,FALSE))","v":{"v":216355.95449335076,"d":"216,356"}},{"$f":"($A4-$A3)/365.25*(AV3+(Main!$I10*Main!$D$3))*(1+Main!$I$4+VLOOKUP('Random Years'!AT4,'Hist Returns'!$A$12:$D$107,4,FALSE))","v":{"v":326712.81363547244,"d":"326,713"}},{"$f":"($A4-$A3)/365.25*(AW3+(Main!$I10*Main!$D$3))*(1+Main!$I$4+VLOOKUP('Random Years'!AU4,'Hist Returns'!$A$12:$D$107,4,FALSE))","v":{"v":339909.2003832202,"d":"339,909"}},{"$f":"($A4-$A3)/365.25*(AX3+(Main!$I10*Main!$D$3))*(1+Main!$I$4+VLOOKUP('Random Years'!AV4,'Hist Returns'!$A$12:$D$107,4,FALSE))","v":{"v":283637.0286722292,"d":"283,637"}},{"$f":"($A4-$A3)/365.25*(AY3+(Main!$I10*Main!$D$3))*(1+Main!$I$4+VLOOKUP('Random Years'!AW4,'Hist Returns'!$A$12:$D$107,4,FALSE))","v":{"v":283560.2654606917,"d":"283,560"}},{"$f":"($A4-$A3)/365.25*(AZ3+(Main!$I10*Main!$D$3))*(1+Main!$I$4+VLOOKUP('Random Years'!AX4,'Hist Returns'!$A$12:$D$107,4,FALSE))","v":{"v":237526.64933947683,"d":"237,527"}},{"$f":"($A4-$A3)/365.25*(BA3+(Main!$I10*Main!$D$3))*(1+Main!$I$4+VLOOKUP('Random Years'!AY4,'Hist Returns'!$A$12:$D$107,4,FALSE))","v":{"v":263281.1481555314,"d":"263,281"}},{"$f":"($A4-$A3)/365.25*(BB3+(Main!$I10*Main!$D$3))*(1+Main!$I$4+VLOOKUP('Random Years'!AZ4,'Hist Returns'!$A$12:$D$107,4,FALSE))","v":{"v":295614.86220579746,"d":"295,615"}},{"$f":"($A4-$A3)/365.25*(BC3+(Main!$I10*Main!$D$3))*(1+Main!$I$4+VLOOKUP('Random Years'!BA4,'Hist Returns'!$A$12:$D$107,4,FALSE))","v":{"v":279874.77366223576,"d":"279,875"}},{"$f":"($A4-$A3)/365.25*(BD3+(Main!$I10*Main!$D$3))*(1+Main!$I$4+VLOOKUP('Random Years'!BB4,'Hist Returns'!$A$12:$D$107,4,FALSE))","v":{"v":255013.04591902514,"d":"255,013"}},{"$f":"($A4-$A3)/365.25*(BE3+(Main!$I10*Main!$D$3))*(1+Main!$I$4+VLOOKUP('Random Years'!BC4,'Hist Returns'!$A$12:$D$107,4,FALSE))","v":{"v":293550.03322199325,"d":"293,550"}},{"$f":"($A4-$A3)/365.25*(BF3+(Main!$I10*Main!$D$3))*(1+Main!$I$4+VLOOKUP('Random Years'!BD4,'Hist Returns'!$A$12:$D$107,4,FALSE))","v":{"v":329119.96000070847,"d":"329,120"}},{"$f":"($A4-$A3)/365.25*(BG3+(Main!$I10*Main!$D$3))*(1+Main!$I$4+VLOOKUP('Random Years'!BE4,'Hist Returns'!$A$12:$D$107,4,FALSE))","v":{"v":199308.0604758331,"d":"199,308"}},{"$f":"($A4-$A3)/365.25*(BH3+(Main!$I10*Main!$D$3))*(1+Main!$I$4+VLOOKUP('Random Years'!BF4,'Hist Returns'!$A$12:$D$107,4,FALSE))","v":{"v":246766.89043863426,"d":"246,767"}},{"$f":"($A4-$A3)/365.25*(BI3+(Main!$I10*Main!$D$3))*(1+Main!$I$4+VLOOKUP('Random Years'!BG4,'Hist Returns'!$A$12:$D$107,4,FALSE))","v":{"v":287741.8872828768,"d":"287,742"}},{"$f":"($A4-$A3)/365.25*(BJ3+(Main!$I10*Main!$D$3))*(1+Main!$I$4+VLOOKUP('Random Years'!BH4,'Hist Returns'!$A$12:$D$107,4,FALSE))","v":{"v":235409.16620855982,"d":"235,409"}},{"$f":"($A4-$A3)/365.25*(BK3+(Main!$I10*Main!$D$3))*(1+Main!$I$4+VLOOKUP('Random Years'!BI4,'Hist Returns'!$A$12:$D$107,4,FALSE))","v":{"v":299124.70162410015,"d":"299,125"}},{"$f":"($A4-$A3)/365.25*(BL3+(Main!$I10*Main!$D$3))*(1+Main!$I$4+VLOOKUP('Random Years'!BJ4,'Hist Returns'!$A$12:$D$107,4,FALSE))","v":{"v":317258.4190819328,"d":"317,258"}},{"$f":"($A4-$A3)/365.25*(BM3+(Main!$I10*Main!$D$3))*(1+Main!$I$4+VLOOKUP('Random Years'!BK4,'Hist Returns'!$A$12:$D$107,4,FALSE))","v":{"v":235047.0890657548,"d":"235,047"}},{"$f":"($A4-$A3)/365.25*(BN3+(Main!$I10*Main!$D$3))*(1+Main!$I$4+VLOOKUP('Random Years'!BL4,'Hist Returns'!$A$12:$D$107,4,FALSE))","v":{"v":277887.29722519225,"d":"277,887"}},{"$f":"($A4-$A3)/365.25*(BO3+(Main!$I10*Main!$D$3))*(1+Main!$I$4+VLOOKUP('Random Years'!BM4,'Hist Returns'!$A$12:$D$107,4,FALSE))","v":{"v":240485.3244919588,"d":"240,485"}},{"$f":"($A4-$A3)/365.25*(BP3+(Main!$I10*Main!$D$3))*(1+Main!$I$4+VLOOKUP('Random Years'!BN4,'Hist Returns'!$A$12:$D$107,4,FALSE))","v":{"v":219786.1586087148,"d":"219,786"}},{"$f":"($A4-$A3)/365.25*(BQ3+(Main!$I10*Main!$D$3))*(1+Main!$I$4+VLOOKUP('Random Years'!BO4,'Hist Returns'!$A$12:$D$107,4,FALSE))","v":{"v":265190.263091481,"d":"265,190"}},{"$f":"($A4-$A3)/365.25*(BR3+(Main!$I10*Main!$D$3))*(1+Main!$I$4+VLOOKUP('Random Years'!BP4,'Hist Returns'!$A$12:$D$107,4,FALSE))","v":{"v":233272.4996134161,"d":"233,272"}},{"$f":"($A4-$A3)/365.25*(BS3+(Main!$I10*Main!$D$3))*(1+Main!$I$4+VLOOKUP('Random Years'!BQ4,'Hist Returns'!$A$12:$D$107,4,FALSE))","v":{"v":279424.93900397094,"d":"279,425"}},{"$f":"($A4-$A3)/365.25*(BT3+(Main!$I10*Main!$D$3))*(1+Main!$I$4+VLOOKUP('Random Years'!BR4,'Hist Returns'!$A$12:$D$107,4,FALSE))","v":{"v":230193.80218396845,"d":"230,194"}},{"$f":"($A4-$A3)/365.25*(BU3+(Main!$I10*Main!$D$3))*(1+Main!$I$4+VLOOKUP('Random Years'!BS4,'Hist Returns'!$A$12:$D$107,4,FALSE))","v":{"v":273461.0415747884,"d":"273,461"}},{"$f":"($A4-$A3)/365.25*(BV3+(Main!$I10*Main!$D$3))*(1+Main!$I$4+VLOOKUP('Random Years'!BT4,'Hist Returns'!$A$12:$D$107,4,FALSE))","v":{"v":237017.98428356758,"d":"237,018"}},{"$f":"($A4-$A3)/365.25*(BW3+(Main!$I10*Main!$D$3))*(1+Main!$I$4+VLOOKUP('Random Years'!BU4,'Hist Returns'!$A$12:$D$107,4,FALSE))","v":{"v":266392.4967241681,"d":"266,392"}},{"$f":"($A4-$A3)/365.25*(BX3+(Main!$I10*Main!$D$3))*(1+Main!$I$4+VLOOKUP('Random Years'!BV4,'Hist Returns'!$A$12:$D$107,4,FALSE))","v":{"v":258763.0361437772,"d":"258,763"}},{"$f":"($A4-$A3)/365.25*(BY3+(Main!$I10*Main!$D$3))*(1+Main!$I$4+VLOOKUP('Random Years'!BW4,'Hist Returns'!$A$12:$D$107,4,FALSE))","v":{"v":243909.6208947313,"d":"243,910"}},{"$f":"($A4-$A3)/365.25*(BZ3+(Main!$I10*Main!$D$3))*(1+Main!$I$4+VLOOKUP('Random Years'!BX4,'Hist Returns'!$A$12:$D$107,4,FALSE))","v":{"v":302012.7523719228,"d":"302,013"}},{"$f":"($A4-$A3)/365.25*(CA3+(Main!$I10*Main!$D$3))*(1+Main!$I$4+VLOOKUP('Random Years'!BY4,'Hist Returns'!$A$12:$D$107,4,FALSE))","v":{"v":269821.54647624126,"d":"269,822"}},{"$f":"($A4-$A3)/365.25*(CB3+(Main!$I10*Main!$D$3))*(1+Main!$I$4+VLOOKUP('Random Years'!BZ4,'Hist Returns'!$A$12:$D$107,4,FALSE))","v":{"v":305197.2572862905,"d":"305,197"}},{"$f":"($A4-$A3)/365.25*(CC3+(Main!$I10*Main!$D$3))*(1+Main!$I$4+VLOOKUP('Random Years'!CA4,'Hist Returns'!$A$12:$D$107,4,FALSE))","v":{"v":285020.1376883297,"d":"285,020"}},{"$f":"($A4-$A3)/365.25*(CD3+(Main!$I10*Main!$D$3))*(1+Main!$I$4+VLOOKUP('Random Years'!CB4,'Hist Returns'!$A$12:$D$107,4,FALSE))","v":{"v":295974.5777371313,"d":"295,975"}},{"$f":"($A4-$A3)/365.25*(CE3+(Main!$I10*Main!$D$3))*(1+Main!$I$4+VLOOKUP('Random Years'!CC4,'Hist Returns'!$A$12:$D$107,4,FALSE))","v":{"v":321084.4462542043,"d":"321,084"}},{"$f":"($A4-$A3)/365.25*(CF3+(Main!$I10*Main!$D$3))*(1+Main!$I$4+VLOOKUP('Random Years'!CD4,'Hist Returns'!$A$12:$D$107,4,FALSE))","v":{"v":310009.8597948212,"d":"310,010"}},{"$f":"($A4-$A3)/365.25*(CG3+(Main!$I10*Main!$D$3))*(1+Main!$I$4+VLOOKUP('Random Years'!CE4,'Hist Returns'!$A$12:$D$107,4,FALSE))","v":{"v":274214.7658392124,"d":"274,215"}},{"$f":"($A4-$A3)/365.25*(CH3+(Main!$I10*Main!$D$3))*(1+Main!$I$4+VLOOKUP('Random Years'!CF4,'Hist Returns'!$A$12:$D$107,4,FALSE))","v":{"v":311176.1103226563,"d":"311,176"}},{"$f":"($A4-$A3)/365.25*(CI3+(Main!$I10*Main!$D$3))*(1+Main!$I$4+VLOOKUP('Random Years'!CG4,'Hist Returns'!$A$12:$D$107,4,FALSE))","v":{"v":308838.64681105816,"d":"308,839"}},{"$f":"($A4-$A3)/365.25*(CJ3+(Main!$I10*Main!$D$3))*(1+Main!$I$4+VLOOKUP('Random Years'!CH4,'Hist Returns'!$A$12:$D$107,4,FALSE))","v":{"v":264832.6265209438,"d":"264,833"}},{"$f":"($A4-$A3)/365.25*(CK3+(Main!$I10*Main!$D$3))*(1+Main!$I$4+VLOOKUP('Random Years'!CI4,'Hist Returns'!$A$12:$D$107,4,FALSE))","v":{"v":277561.21128281427,"d":"277,561"}},{"$f":"($A4-$A3)/365.25*(CL3+(Main!$I10*Main!$D$3))*(1+Main!$I$4+VLOOKUP('Random Years'!CJ4,'Hist Returns'!$A$12:$D$107,4,FALSE))","v":{"v":267751.2684403227,"d":"267,751"}},{"$f":"($A4-$A3)/365.25*(CM3+(Main!$I10*Main!$D$3))*(1+Main!$I$4+VLOOKUP('Random Years'!CK4,'Hist Returns'!$A$12:$D$107,4,FALSE))","v":{"v":339399.4865443705,"d":"339,399"}},{"$f":"($A4-$A3)/365.25*(CN3+(Main!$I10*Main!$D$3))*(1+Main!$I$4+VLOOKUP('Random Years'!CL4,'Hist Returns'!$A$12:$D$107,4,FALSE))","v":{"v":279204.19138323015,"d":"279,204"}},{"$f":"($A4-$A3)/365.25*(CO3+(Main!$I10*Main!$D$3))*(1+Main!$I$4+VLOOKUP('Random Years'!CM4,'Hist Returns'!$A$12:$D$107,4,FALSE))","v":{"v":258154.1511232712,"d":"258,154"}},{"$f":"($A4-$A3)/365.25*(CP3+(Main!$I10*Main!$D$3))*(1+Main!$I$4+VLOOKUP('Random Years'!CN4,'Hist Returns'!$A$12:$D$107,4,FALSE))","v":{"v":342016.19556890946,"d":"342,016"}},{"$f":"($A4-$A3)/365.25*(CQ3+(Main!$I10*Main!$D$3))*(1+Main!$I$4+VLOOKUP('Random Years'!CO4,'Hist Returns'!$A$12:$D$107,4,FALSE))","v":{"v":280893.8990717796,"d":"280,894"}},{"$f":"($A4-$A3)/365.25*(CR3+(Main!$I10*Main!$D$3))*(1+Main!$I$4+VLOOKUP('Random Years'!CP4,'Hist Returns'!$A$12:$D$107,4,FALSE))","v":{"v":251872.4628863638,"d":"251,872"}},{"$f":"($A4-$A3)/365.25*(CS3+(Main!$I10*Main!$D$3))*(1+Main!$I$4+VLOOKUP('Random Years'!CQ4,'Hist Returns'!$A$12:$D$107,4,FALSE))","v":{"v":246926.0289789134,"d":"246,926"}},{"$f":"($A4-$A3)/365.25*(CT3+(Main!$I10*Main!$D$3))*(1+Main!$I$4+VLOOKUP('Random Years'!CR4,'Hist Returns'!$A$12:$D$107,4,FALSE))","v":{"v":294074.8320941477,"d":"294,075"}},{"$f":"($A4-$A3)/365.25*(CU3+(Main!$I10*Main!$D$3))*(1+Main!$I$4+VLOOKUP('Random Years'!CS4,'Hist Returns'!$A$12:$D$107,4,FALSE))","v":{"v":354349.03180127084,"d":"354,349"}},{"$f":"($A4-$A3)/365.25*(CV3+(Main!$I10*Main!$D$3))*(1+Main!$I$4+VLOOKUP('Random Years'!CT4,'Hist Returns'!$A$12:$D$107,4,FALSE))","v":{"v":268936.22659990715,"d":"268,936"}},{"$f":"($A4-$A3)/365.25*(CW3+(Main!$I10*Main!$D$3))*(1+Main!$I$4+VLOOKUP('Random Years'!CU4,'Hist Returns'!$A$12:$D$107,4,FALSE))","v":{"v":272280.25490049686,"d":"272,280"}},{"$f":"($A4-$A3)/365.25*(CX3+(Main!$I10*Main!$D$3))*(1+Main!$I$4+VLOOKUP('Random Years'!CV4,'Hist Returns'!$A$12:$D$107,4,FALSE))","v":{"v":234936.1914953685,"d":"234,936"}}]
[{"$f":"Main!A11","v":"2026-12-30"},{"$f":"Main!B11","v":72},{"$f":"($A5-$A4)/365.25*(C4+(Main!$I11*Main!$D$3))*(1+Main!$I$4+VLOOKUP('Random Years'!A5,'Hist Returns'!$A$12:$D$107,4,FALSE))","v":{"v":235324.8596122147,"d":"235,325"}},{"$f":"($A5-$A4)/365.25*(D4+(Main!$I11*Main!$D$3))*(1+Main!$I$4+VLOOKUP('Random Years'!B5,'Hist Returns'!$A$12:$D$107,4,FALSE))","v":{"v":342659.1147825765,"d":"342,659"}},{"$f":"($A5-$A4)/365.25*(E4+(Main!$I11*Main!$D$3))*(1+Main!$I$4+VLOOKUP('Random Years'!C5,'Hist Returns'!$A$12:$D$107,4,FALSE))","v":{"v":280580.4516617187,"d":"280,580"}},{"$f":"($A5-$A4)/365.25*(F4+(Main!$I11*Main!$D$3))*(1+Main!$I$4+VLOOKUP('Random Years'!D5,'Hist Returns'!$A$12:$D$107,4,FALSE))","v":{"v":364814.5355801911,"d":"364,815"}},{"$f":"($A5-$A4)/365.25*(G4+(Main!$I11*Main!$D$3))*(1+Main!$I$4+VLOOKUP('Random Years'!E5,'Hist Returns'!$A$12:$D$107,4,FALSE))","v":{"v":268856.15467718506,"d":"268,856"}},{"$f":"($A5-$A4)/365.25*(H4+(Main!$I11*Main!$D$3))*(1+Main!$I$4+VLOOKUP('Random Years'!F5,'Hist Returns'!$A$12:$D$107,4,FALSE))","v":{"v":287266.43540175434,"d":"287,266"}},{"$f":"($A5-$A4)/365.25*(I4+(Main!$I11*Main!$D$3))*(1+Main!$I$4+VLOOKUP('Random Years'!G5,'Hist Returns'!$A$12:$D$107,4,FALSE))","v":{"v":248746.64950308815,"d":"248,747"}},{"$f":"($A5-$A4)/365.25*(J4+(Main!$I11*Main!$D$3))*(1+Main!$I$4+VLOOKUP('Random Years'!H5,'Hist Returns'!$A$12:$D$107,4,FALSE))","v":{"v":471934.3602781991,"d":"471,934"}},{"$f":"($A5-$A4)/365.25*(K4+(Main!$I11*Main!$D$3))*(1+Main!$I$4+VLOOKUP('Random Years'!I5,'Hist Returns'!$A$12:$D$107,4,FALSE))","v":{"v":384950.29557508236,"d":"384,950"}},{"$f":"($A5-$A4)/365.25*(L4+(Main!$I11*Main!$D$3))*(1+Main!$I$4+VLOOKUP('Random Years'!J5,'Hist Returns'!$A$12:$D$107,4,FALSE))","v":{"v":226198.3070272671,"d":"226,198"}},{"$f":"($A5-$A4)/365.25*(M4+(Main!$I11*Main!$D$3))*(1+Main!$I$4+VLOOKUP('Random Years'!K5,'Hist Returns'!$A$12:$D$107,4,FALSE))","v":{"v":200924.21977245124,"d":"200,924"}},{"$f":"($A5-$A4)/365.25*(N4+(Main!$I11*Main!$D$3))*(1+Main!$I$4+VLOOKUP('Random Years'!L5,'Hist Returns'!$A$12:$D$107,4,FALSE))","v":{"v":309907.77934616077,"d":"309,908"}},{"$f":"($A5-$A4)/365.25*(O4+(Main!$I11*Main!$D$3))*(1+Main!$I$4+VLOOKUP('Random Years'!M5,'Hist Returns'!$A$12:$D$107,4,FALSE))","v":{"v":317431.02157975873,"d":"317,431"}},{"$f":"($A5-$A4)/365.25*(P4+(Main!$I11*Main!$D$3))*(1+Main!$I$4+VLOOKUP('Random Years'!N5,'Hist Returns'!$A$12:$D$107,4,FALSE))","v":{"v":253051.18322931018,"d":"253,051"}},{"$f":"($A5-$A4)/365.25*(Q4+(Main!$I11*Main!$D$3))*(1+Main!$I$4+VLOOKUP('Random Years'!O5,'Hist Returns'!$A$12:$D$107,4,FALSE))","v":{"v":263033.6644730936,"d":"263,034"}},{"$f":"($A5-$A4)/365.25*(R4+(Main!$I11*Main!$D$3))*(1+Main!$I$4+VLOOKUP('Random Years'!P5,'Hist Returns'!$A$12:$D$107,4,FALSE))","v":{"v":207465.62416759593,"d":"207,466"}},{"$f":"($A5-$A4)/365.25*(S4+(Main!$I11*Main!$D$3))*(1+Main!$I$4+VLOOKUP('Random Years'!Q5,'Hist Returns'!$A$12:$D$107,4,FALSE))","v":{"v":261597.4244821386,"d":"261,597"}},{"$f":"($A5-$A4)/365.25*(T4+(Main!$I11*Main!$D$3))*(1+Main!$I$4+VLOOKUP('Random Years'!R5,'Hist Returns'!$A$12:$D$107,4,FALSE))","v":{"v":296578.17007998325,"d":"296,578"}},{"$f":"($A5-$A4)/365.25*(U4+(Main!$I11*Main!$D$3))*(1+Main!$I$4+VLOOKUP('Random Years'!S5,'Hist Returns'!$A$12:$D$107,4,FALSE))","v":{"v":338110.5670627377,"d":"338,111"}},{"$f":"($A5-$A4)/365.25*(V4+(Main!$I11*Main!$D$3))*(1+Main!$I$4+VLOOKUP('Random Years'!T5,'Hist Returns'!$A$12:$D$107,4,FALSE))","v":{"v":277864.9098592523,"d":"277,865"}},{"$f":"($A5-$A4)/365.25*(W4+(Main!$I11*Main!$D$3))*(1+Main!$I$4+VLOOKUP('Random Years'!U5,'Hist Returns'!$A$12:$D$107,4,FALSE))","v":{"v":229880.78858513132,"d":"229,881"}},{"$f":"($A5-$A4)/365.25*(X4+(Main!$I11*Main!$D$3))*(1+Main!$I$4+VLOOKUP('Random Years'!V5,'Hist Returns'!$A$12:$D$107,4,FALSE))","v":{"v":269684.7195433742,"d":"269,685"}},{"$f":"($A5-$A4)/365.25*(Y4+(Main!$I11*Main!$D$3))*(1+Main!$I$4+VLOOKUP('Random Years'!W5,'Hist Returns'!$A$12:$D$107,4,FALSE))","v":{"v":209741.7256362475,"d":"209,742"}},{"$f":"($A5-$A4)/365.25*(Z4+(Main!$I11*Main!$D$3))*(1+Main!$I$4+VLOOKUP('Random Years'!X5,'Hist Returns'!$A$12:$D$107,4,FALSE))","v":{"v":395263.62209014036,"d":"395,264"}},{"$f":"($A5-$A4)/365.25*(AA4+(Main!$I11*Main!$D$3))*(1+Main!$I$4+VLOOKUP('Random Years'!Y5,'Hist Returns'!$A$12:$D$107,4,FALSE))","v":{"v":332005.84197871975,"d":"332,006"}},{"$f":"($A5-$A4)/365.25*(AB4+(Main!$I11*Main!$D$3))*(1+Main!$I$4+VLOOKUP('Random Years'!Z5,'Hist Returns'!$A$12:$D$107,4,FALSE))","v":{"v":322386.01615581557,"d":"322,386"}},{"$f":"($A5-$A4)/365.25*(AC4+(Main!$I11*Main!$D$3))*(1+Main!$I$4+VLOOKUP('Random Years'!AA5,'Hist Returns'!$A$12:$D$107,4,FALSE))","v":{"v":253881.6645769402,"d":"253,882"}},{"$f":"($A5-$A4)/365.25*(AD4+(Main!$I11*Main!$D$3))*(1+Main!$I$4+VLOOKUP('Random Years'!AB5,'Hist Returns'!$A$12:$D$107,4,FALSE))","v":{"v":308559.251820337,"d":"308,559"}},{"$f":"($A5-$A4)/365.25*(AE4+(Main!$I11*Main!$D$3))*(1+Main!$I$4+VLOOKUP('Random Years'!AC5,'Hist Returns'!$A$12:$D$107,4,FALSE))","v":{"v":267809.33726968546,"d":"267,809"}},{"$f":"($A5-$A4)/365.25*(AF4+(Main!$I11*Main!$D$3))*(1+Main!$I$4+VLOOKUP('Random Years'!AD5,'Hist Returns'!$A$12:$D$107,4,FALSE))","v":{"v":267474.22670023213,"d":"267,474"}},{"$f":"($A5-$A4)/365.25*(AG4+(Main!$I11*Main!$D$3))*(1+Main!$I$4+VLOOKUP('Random Years'!AE5,'Hist Returns'!$A$12:$D$107,4,FALSE))","v":{"v":281207.92946202867,"d":"281,208"}},{"$f":"($A5-$A4)/365.25*(AH4+(Main!$I11*Main!$D$3))*(1+Main!$I$4+VLOOKUP('Random Years'!AF5,'Hist Returns'!$A$12:$D$107,4,FALSE))","v":{"v":279681.86663504736,"d":"279,682"}},{"$f":"($A5-$A4)/365.25*(AI4+(Main!$I11*Main!$D$3))*(1+Main!$I$4+VLOOKUP('Random Years'!AG5,'Hist Returns'!$A$12:$D$107,4,FALSE))","v":{"v":327128.2493019682,"d":"327,128"}},{"$f":"($A5-$A4)/365.25*(AJ4+(Main!$I11*Main!$D$3))*(1+Main!$I$4+VLOOKUP('Random Years'!AH5,'Hist Returns'!$A$12:$D$107,4,FALSE))","v":{"v":298857.6153548403,"d":"298,858"}},{"$f":"($A5-$A4)/365.25*(AK4+(Main!$I11*Main!$D$3))*(1+Main!$I$4+VLOOKUP('Random Years'!AI5,'Hist Returns'!$A$12:$D$107,4,FALSE))","v":{"v":315944.1348708994,"d":"315,944"}},{"$f":"($A5-$A4)/365.25*(AL4+(Main!$I11*Main!$D$3))*(1+Main!$I$4+VLOOKUP('Random Years'!AJ5,'Hist Returns'!$A$12:$D$107,4,FALSE))","v":{"v":283266.36325656355,"d":"283,266"}},{"$f":"($A5-$A4)/365.25*(AM4+(Main!$I11*Main!$D$3))*(1+Main!$I$4+VLOOKUP('Random Years'!AK5,'Hist Returns'!$A$12:$D$107,4,FALSE))","v":{"v":262116.34739708152,"d":"262,116"}},{"$f":"($A5-$A4)/365.25*(AN4+(Main!$I11*Main!$D$3))*(1+Main!$I$4+VLOOKUP('Random Years'!AL5,'Hist Returns'!$A$12:$D$107,4,FALSE))","v":{"v":288101.114567846,"d":"288,101"}},{"$f":"($A5-$A4)/365.25*(AO4+(Main!$I11*Main!$D$3))*(1+Main!$I$4+VLOOKUP('Random Years'!AM5,'Hist Returns'!$A$12:$D$107,4,FALSE))","v":{"v":280026.09321241203,"d":"280,026"}},{"$f":"($A5-$A4)/365.25*(AP4+(Main!$I11*Main!$D$3))*(1+Main!$I$4+VLOOKUP('Random Years'!AN5,'Hist Returns'!$A$12:$D$107,4,FALSE))","v":{"v":276750.22916989593,"d":"276,750"}},{"$f":"($A5-$A4)/365.25*(AQ4+(Main!$I11*Main!$D$3))*(1+Main!$I$4+VLOOKUP('Random Years'!AO5,'Hist Returns'!$A$12:$D$107,4,FALSE))","v":{"v":286992.52517328504,"d":"286,993"}},{"$f":"($A5-$A4)/365.25*(AR4+(Main!$I11*Main!$D$3))*(1+Main!$I$4+VLOOKUP('Random Years'!AP5,'Hist Returns'!$A$12:$D$107,4,FALSE))","v":{"v":246025.35469742096,"d":"246,025"}},{"$f":"($A5-$A4)/365.25*(AS4+(Main!$I11*Main!$D$3))*(1+Main!$I$4+VLOOKUP('Random Years'!AQ5,'Hist Returns'!$A$12:$D$107,4,FALSE))","v":{"v":335141.2841517625,"d":"335,141"}},{"$f":"($A5-$A4)/365.25*(AT4+(Main!$I11*Main!$D$3))*(1+Main!$I$4+VLOOKUP('Random Years'!AR5,'Hist Returns'!$A$12:$D$107,4,FALSE))","v":{"v":338125.38783732447,"d":"338,125"}},{"$f":"($A5-$A4)/365.25*(AU4+(Main!$I11*Main!$D$3))*(1+Main!$I$4+VLOOKUP('Random Years'!AS5,'Hist Returns'!$A$12:$D$107,4,FALSE))","v":{"v":251002.1717896306,"d":"251,002"}},{"$f":"($A5-$A4)/365.25*(AV4+(Main!$I11*Main!$D$3))*(1+Main!$I$4+VLOOKUP('Random Years'!AT5,'Hist Returns'!$A$12:$D$107,4,FALSE))","v":{"v":267269.2271118196,"d":"267,269"}},{"$f":"($A5-$A4)/365.25*(AW4+(Main!$I11*Main!$D$3))*(1+Main!$I$4+VLOOKUP('Random Years'!AU5,'Hist Returns'!$A$12:$D$107,4,FALSE))","v":{"v":346127.1671211304,"d":"346,127"}},{"$f":"($A5-$A4)/365.25*(AX4+(Main!$I11*Main!$D$3))*(1+Main!$I$4+VLOOKUP('Random Years'!AV5,'Hist Returns'!$A$12:$D$107,4,FALSE))","v":{"v":290171.6084865675,"d":"290,172"}},{"$f":"($A5-$A4)/365.25*(AY4+(Main!$I11*Main!$D$3))*(1+Main!$I$4+VLOOKUP('Random Years'!AW5,'Hist Returns'!$A$12:$D$107,4,FALSE))","v":{"v":269670.1218558236,"d":"269,670"}},{"$f":"($A5-$A4)/365.25*(AZ4+(Main!$I11*Main!$D$3))*(1+Main!$I$4+VLOOKUP('Random Years'!AX5,'Hist Returns'!$A$12:$D$107,4,FALSE))","v":{"v":244778.15550023993,"d":"244,778"}},{"$f":"($A5-$A4)/365.25*(BA4+(Main!$I11*Main!$D$3))*(1+Main!$I$4+VLOOKUP('Random Years'!AY5,'Hist Returns'!$A$12:$D$107,4,FALSE))","v":{"v":265227.5121492035,"d":"265,228"}},{"$f":"($A5-$A4)/365.25*(BB4+(Main!$I11*Main!$D$3))*(1+Main!$I$4+VLOOKUP('Random Years'!AZ5,'Hist Returns'!$A$12:$D$107,4,FALSE))","v":{"v":269904.2543175453,"d":"269,904"}},{"$f":"($A5-$A4)/365.25*(BC4+(Main!$I11*Main!$D$3))*(1+Main!$I$4+VLOOKUP('Random Years'!BA5,'Hist Returns'!$A$12:$D$107,4,FALSE))","v":{"v":276292.5395872213,"d":"276,293"}},{"$f":"($A5-$A4)/365.25*(BD4+(Main!$I11*Main!$D$3))*(1+Main!$I$4+VLOOKUP('Random Years'!BB5,'Hist Returns'!$A$12:$D$107,4,FALSE))","v":{"v":261149.35734982305,"d":"261,149"}},{"$f":"($A5-$A4)/365.25*(BE4+(Main!$I11*Main!$D$3))*(1+Main!$I$4+VLOOKUP('Random Years'!BC5,'Hist Returns'!$A$12:$D$107,4,FALSE))","v":{"v":289852.17554734147,"d":"289,852"}},{"$f":"($A5-$A4)/365.25*(BF4+(Main!$I11*Main!$D$3))*(1+Main!$I$4+VLOOKUP('Random Years'!BD5,'Hist Returns'!$A$12:$D$107,4,FALSE))","v":{"v":385645.8948418548,"d":"385,646"}},{"$f":"($A5-$A4)/365.25*(BG4+(Main!$I11*Main!$D$3))*(1+Main!$I$4+VLOOKUP('Random Years'!BE5,'Hist Returns'!$A$12:$D$107,4,FALSE))","v":{"v":203525.21812950037,"d":"203,525"}},{"$f":"($A5-$A4)/365.25*(BH4+(Main!$I11*Main!$D$3))*(1+Main!$I$4+VLOOKUP('Random Years'!BF5,'Hist Returns'!$A$12:$D$107,4,FALSE))","v":{"v":279070.45783074864,"d":"279,070"}},{"$f":"($A5-$A4)/365.25*(BI4+(Main!$I11*Main!$D$3))*(1+Main!$I$4+VLOOKUP('Random Years'!BG5,'Hist Returns'!$A$12:$D$107,4,FALSE))","v":{"v":329280.34075692133,"d":"329,280"}},{"$f":"($A5-$A4)/365.25*(BJ4+(Main!$I11*Main!$D$3))*(1+Main!$I$4+VLOOKUP('Random Years'!BH5,'Hist Returns'!$A$12:$D$107,4,FALSE))","v":{"v":273232.47281914024,"d":"273,232"}},{"$f":"($A5-$A4)/365.25*(BK4+(Main!$I11*Main!$D$3))*(1+Main!$I$4+VLOOKUP('Random Years'!BI5,'Hist Returns'!$A$12:$D$107,4,FALSE))","v":{"v":306084.89409899304,"d":"306,085"}},{"$f":"($A5-$A4)/365.25*(BL4+(Main!$I11*Main!$D$3))*(1+Main!$I$4+VLOOKUP('Random Years'!BJ5,'Hist Returns'!$A$12:$D$107,4,FALSE))","v":{"v":301856.77143660805,"d":"301,857"}},{"$f":"($A5-$A4)/365.25*(BM4+(Main!$I11*Main!$D$3))*(1+Main!$I$4+VLOOKUP('Random Years'!BK5,'Hist Returns'!$A$12:$D$107,4,FALSE))","v":{"v":214882.26036388203,"d":"214,882"}},{"$f":"($A5-$A4)/365.25*(BN4+(Main!$I11*Main!$D$3))*(1+Main!$I$4+VLOOKUP('Random Years'!BL5,'Hist Returns'!$A$12:$D$107,4,FALSE))","v":{"v":285319.32947470545,"d":"285,319"}},{"$f":"($A5-$A4)/365.25*(BO4+(Main!$I11*Main!$D$3))*(1+Main!$I$4+VLOOKUP('Random Years'!BM5,'Hist Returns'!$A$12:$D$107,4,FALSE))","v":{"v":231946.94736669507,"d":"231,947"}},{"$f":"($A5-$A4)/365.25*(BP4+(Main!$I11*Main!$D$3))*(1+Main!$I$4+VLOOKUP('Random Years'!BN5,'Hist Returns'!$A$12:$D$107,4,FALSE))","v":{"v":243156.17232513247,"d":"243,156"}},{"$f":"($A5-$A4)/365.25*(BQ4+(Main!$I11*Main!$D$3))*(1+Main!$I$4+VLOOKUP('Random Years'!BO5,'Hist Returns'!$A$12:$D$107,4,FALSE))","v":{"v":290715.38430756854,"d":"290,715"}},{"$f":"($A5-$A4)/365.25*(BR4+(Main!$I11*Main!$D$3))*(1+Main!$I$4+VLOOKUP('Random Years'!BP5,'Hist Returns'!$A$12:$D$107,4,FALSE))","v":{"v":236189.53908860963,"d":"236,190"}},{"$f":"($A5-$A4)/365.25*(BS4+(Main!$I11*Main!$D$3))*(1+Main!$I$4+VLOOKUP('Random Years'!BQ5,'Hist Returns'!$A$12:$D$107,4,FALSE))","v":{"v":288372.57454218675,"d":"288,373"}},{"$f":"($A5-$A4)/365.25*(BT4+(Main!$I11*Main!$D$3))*(1+Main!$I$4+VLOOKUP('Random Years'!BR5,'Hist Returns'!$A$12:$D$107,4,FALSE))","v":{"v":209924.27129206824,"d":"209,924"}},{"$f":"($A5-$A4)/365.25*(BU4+(Main!$I11*Main!$D$3))*(1+Main!$I$4+VLOOKUP('Random Years'!BS5,'Hist Returns'!$A$12:$D$107,4,FALSE))","v":{"v":309409.8336066291,"d":"309,410"}},{"$f":"($A5-$A4)/365.25*(BV4+(Main!$I11*Main!$D$3))*(1+Main!$I$4+VLOOKUP('Random Years'!BT5,'Hist Returns'!$A$12:$D$107,4,FALSE))","v":{"v":229394.05230939845,"d":"229,394"}},{"$f":"($A5-$A4)/365.25*(BW4+(Main!$I11*Main!$D$3))*(1+Main!$I$4+VLOOKUP('Random Years'!BU5,'Hist Returns'!$A$12:$D$107,4,FALSE))","v":{"v":302641.591480212,"d":"302,642"}},{"$f":"($A5-$A4)/365.25*(BX4+(Main!$I11*Main!$D$3))*(1+Main!$I$4+VLOOKUP('Random Years'!BV5,'Hist Returns'!$A$12:$D$107,4,FALSE))","v":{"v":277855.24077931,"d":"277,855"}},{"$f":"($A5-$A4)/365.25*(BY4+(Main!$I11*Main!$D$3))*(1+Main!$I$4+VLOOKUP('Random Years'!BW5,'Hist Returns'!$A$12:$D$107,4,FALSE))","v":{"v":245981.85765885175,"d":"245,982"}},{"$f":"($A5-$A4)/365.25*(BZ4+(Main!$I11*Main!$D$3))*(1+Main!$I$4+VLOOKUP('Random Years'!BX5,'Hist Returns'!$A$12:$D$107,4,FALSE))","v":{"v":302654.60569158965,"d":"302,655"}},{"$f":"($A5-$A4)/365.25*(CA4+(Main!$I11*Main!$D$3))*(1+Main!$I$4+VLOOKUP('Random Years'!BY5,'Hist Returns'!$A$12:$D$107,4,FALSE))","v":{"v":333593.0358185713,"d":"333,593"}},{"$f":"($A5-$A4)/365.25*(CB4+(Main!$I11*Main!$D$3))*(1+Main!$I$4+VLOOKUP('Random Years'!BZ5,'Hist Returns'!$A$12:$D$107,4,FALSE))","v":{"v":298961.5842351025,"d":"298,962"}},{"$f":"($A5-$A4)/365.25*(CC4+(Main!$I11*Main!$D$3))*(1+Main!$I$4+VLOOKUP('Random Years'!CA5,'Hist Returns'!$A$12:$D$107,4,FALSE))","v":{"v":289239.3022933813,"d":"289,239"}},{"$f":"($A5-$A4)/365.25*(CD4+(Main!$I11*Main!$D$3))*(1+Main!$I$4+VLOOKUP('Random Years'!CB5,'Hist Returns'!$A$12:$D$107,4,FALSE))","v":{"v":363708.38739714446,"d":"363,708"}},{"$f":"($A5-$A4)/365.25*(CE4+(Main!$I11*Main!$D$3))*(1+Main!$I$4+VLOOKUP('Random Years'!CC5,'Hist Returns'!$A$12:$D$107,4,FALSE))","v":{"v":318695.3003990145,"d":"318,695"}},{"$f":"($A5-$A4)/365.25*(CF4+(Main!$I11*Main!$D$3))*(1+Main!$I$4+VLOOKUP('Random Years'!CD5,'Hist Returns'!$A$12:$D$107,4,FALSE))","v":{"v":363169.91544016084,"d":"363,170"}},{"$f":"($A5-$A4)/365.25*(CG4+(Main!$I11*Main!$D$3))*(1+Main!$I$4+VLOOKUP('Random Years'!CE5,'Hist Returns'!$A$12:$D$107,4,FALSE))","v":{"v":285189.3751191391,"d":"285,189"}},{"$f":"($A5-$A4)/365.25*(CH4+(Main!$I11*Main!$D$3))*(1+Main!$I$4+VLOOKUP('Random Years'!CF5,'Hist Returns'!$A$12:$D$107,4,FALSE))","v":{"v":311964.25065790035,"d":"311,964"}},{"$f":"($A5-$A4)/365.25*(CI4+(Main!$I11*Main!$D$3))*(1+Main!$I$4+VLOOKUP('Random Years'!CG5,'Hist Returns'!$A$12:$D$107,4,FALSE))","v":{"v":312578.96682316624,"d":"312,579"}},{"$f":"($A5-$A4)/365.25*(CJ4+(Main!$I11*Main!$D$3))*(1+Main!$I$4+VLOOKUP('Random Years'!CH5,'Hist Returns'!$A$12:$D$107,4,FALSE))","v":{"v":293272.0790882807,"d":"293,272"}},{"$f":"($A5-$A4)/365.25*(CK4+(Main!$I11*Main!$D$3))*(1+Main!$I$4+VLOOKUP('Random Years'!CI5,'Hist Returns'!$A$12:$D$107,4,FALSE))","v":{"v":276099.6993121368,"d":"276,100"}},{"$f":"($A5-$A4)/365.25*(CL4+(Main!$I11*Main!$D$3))*(1+Main!$I$4+VLOOKUP('Random Years'!CJ5,'Hist Returns'!$A$12:$D$107,4,FALSE))","v":{"v":297343.5191694242,"d":"297,344"}},{"$f":"($A5-$A4)/365.25*(CM4+(Main!$I11*Main!$D$3))*(1+Main!$I$4+VLOOKUP('Random Years'!CK5,'Hist Returns'!$A$12:$D$107,4,FALSE))","v":{"v":328997.67207042075,"d":"328,998"}},{"$f":"($A5-$A4)/365.25*(CN4+(Main!$I11*Main!$D$3))*(1+Main!$I$4+VLOOKUP('Random Years'!CL5,'Hist Returns'!$A$12:$D$107,4,FALSE))","v":{"v":278830.2388619029,"d":"278,830"}},{"$f":"($A5-$A4)/365.25*(CO4+(Main!$I11*Main!$D$3))*(1+Main!$I$4+VLOOKUP('Random Years'!CM5,'Hist Returns'!$A$12:$D$107,4,FALSE))","v":{"v":265198.6546396579,"d":"265,199"}},{"$f":"($A5-$A4)/365.25*(CP4+(Main!$I11*Main!$D$3))*(1+Main!$I$4+VLOOKUP('Random Years'!CN5,'Hist Returns'!$A$12:$D$107,4,FALSE))","v":{"v":342840.84459379205,"d":"342,841"}},{"$f":"($A5-$A4)/365.25*(CQ4+(Main!$I11*Main!$D$3))*(1+Main!$I$4+VLOOKUP('Random Years'!CO5,'Hist Returns'!$A$12:$D$107,4,FALSE))","v":{"v":288219.26364252006,"d":"288,219"}},{"$f":"($A5-$A4)/365.25*(CR4+(Main!$I11*Main!$D$3))*(1+Main!$I$4+VLOOKUP('Random Years'!CP5,'Hist Returns'!$A$12:$D$107,4,FALSE))","v":{"v":239403.65061503495,"d":"239,404"}},{"$f":"($A5-$A4)/365.25*(CS4+(Main!$I11*Main!$D$3))*(1+Main!$I$4+VLOOKUP('Random Years'!CQ5,'Hist Returns'!$A$12:$D$107,4,FALSE))","v":{"v":252827.72862616245,"d":"252,828"}},{"$f":"($A5-$A4)/365.25*(CT4+(Main!$I11*Main!$D$3))*(1+Main!$I$4+VLOOKUP('Random Years'!CR5,'Hist Returns'!$A$12:$D$107,4,FALSE))","v":{"v":290372.5372726602,"d":"290,373"}},{"$f":"($A5-$A4)/365.25*(CU4+(Main!$I11*Main!$D$3))*(1+Main!$I$4+VLOOKUP('Random Years'!CS5,'Hist Returns'!$A$12:$D$107,4,FALSE))","v":{"v":438575.45176950714,"d":"438,575"}},{"$f":"($A5-$A4)/365.25*(CV4+(Main!$I11*Main!$D$3))*(1+Main!$I$4+VLOOKUP('Random Years'!CT5,'Hist Returns'!$A$12:$D$107,4,FALSE))","v":{"v":265446.47736443963,"d":"265,446"}},{"$f":"($A5-$A4)/365.25*(CW4+(Main!$I11*Main!$D$3))*(1+Main!$I$4+VLOOKUP('Random Years'!CU5,'Hist Returns'!$A$12:$D$107,4,FALSE))","v":{"v":282255.23214849056,"d":"282,255"}},{"$f":"($A5-$A4)/365.25*(CX4+(Main!$I11*Main!$D$3))*(1+Main!$I$4+VLOOKUP('Random Years'!CV5,'Hist Returns'!$A$12:$D$107,4,FALSE))","v":{"v":243854.784365506,"d":"243,855"}}]
[{"$f":"Main!A12","v":"2027-12-31"},{"$f":"Main!B12","v":73},{"$f":"($A6-$A5)/365.25*(C5+(Main!$I12*Main!$D$3))*(1+Main!$I$4+VLOOKUP('Random Years'!A6,'Hist Returns'!$A$12:$D$107,4,FALSE))","v":{"v":260989.74724315712,"d":"260,990"}},{"$f":"($A6-$A5)/365.25*(D5+(Main!$I12*Main!$D$3))*(1+Main!$I$4+VLOOKUP('Random Years'!B6,'Hist Returns'!$A$12:$D$107,4,FALSE))","v":{"v":346360.99164365855,"d":"346,361"}},{"$f":"($A6-$A5)/365.25*(E5+(Main!$I12*Main!$D$3))*(1+Main!$I$4+VLOOKUP('Random Years'!C6,'Hist Returns'!$A$12:$D$107,4,FALSE))","v":{"v":291565.1868504086,"d":"291,565"}},{"$f":"($A6-$A5)/365.25*(F5+(Main!$I12*Main!$D$3))*(1+Main!$I$4+VLOOKUP('Random Years'!D6,'Hist Returns'!$A$12:$D$107,4,FALSE))","v":{"v":361352.6875434478,"d":"361,353"}},{"$f":"($A6-$A5)/365.25*(G5+(Main!$I12*Main!$D$3))*(1+Main!$I$4+VLOOKUP('Random Years'!E6,'Hist Returns'!$A$12:$D$107,4,FALSE))","v":{"v":311008.4586496504,"d":"311,008"}},{"$f":"($A6-$A5)/365.25*(H5+(Main!$I12*Main!$D$3))*(1+Main!$I$4+VLOOKUP('Random Years'!F6,'Hist Returns'!$A$12:$D$107,4,FALSE))","v":{"v":282648.5863729112,"d":"282,649"}},{"$f":"($A6-$A5)/365.25*(I5+(Main!$I12*Main!$D$3))*(1+Main!$I$4+VLOOKUP('Random Years'!G6,'Hist Returns'!$A$12:$D$107,4,FALSE))","v":{"v":258298.61570071054,"d":"258,299"}},{"$f":"($A6-$A5)/365.25*(J5+(Main!$I12*Main!$D$3))*(1+Main!$I$4+VLOOKUP('Random Years'!H6,'Hist Returns'!$A$12:$D$107,4,FALSE))","v":{"v":510185.59194875933,"d":"510,186"}},{"$f":"($A6-$A5)/365.25*(K5+(Main!$I12*Main!$D$3))*(1+Main!$I$4+VLOOKUP('Random Years'!I6,'Hist Returns'!$A$12:$D$107,4,FALSE))","v":{"v":381372.9007838147,"d":"381,373"}},{"$f":"($A6-$A5)/365.25*(L5+(Main!$I12*Main!$D$3))*(1+Main!$I$4+VLOOKUP('Random Years'!J6,'Hist Returns'!$A$12:$D$107,4,FALSE))","v":{"v":247000.99885185453,"d":"247,001"}},{"$f":"($A6-$A5)/365.25*(M5+(Main!$I12*Main!$D$3))*(1+Main!$I$4+VLOOKUP('Random Years'!K6,'Hist Returns'!$A$12:$D$107,4,FALSE))","v":{"v":231920.02497579873,"d":"231,920"}},{"$f":"($A6-$A5)/365.25*(N5+(Main!$I12*Main!$D$3))*(1+Main!$I$4+VLOOKUP('Random Years'!L6,'Hist Returns'!$A$12:$D$107,4,FALSE))","v":{"v":314371.85483232484,"d":"314,372"}},{"$f":"($A6-$A5)/365.25*(O5+(Main!$I12*Main!$D$3))*(1+Main!$I$4+VLOOKUP('Random Years'!M6,'Hist Returns'!$A$12:$D$107,4,FALSE))","v":{"v":420628.59936733556,"d":"420,629"}},{"$f":"($A6-$A5)/365.25*(P5+(Main!$I12*Main!$D$3))*(1+Main!$I$4+VLOOKUP('Random Years'!N6,'Hist Returns'!$A$12:$D$107,4,FALSE))","v":{"v":265816.27869737765,"d":"265,816"}},{"$f":"($A6-$A5)/365.25*(Q5+(Main!$I12*Main!$D$3))*(1+Main!$I$4+VLOOKUP('Random Years'!O6,'Hist Returns'!$A$12:$D$107,4,FALSE))","v":{"v":301829.0422386664,"d":"301,829"}},{"$f":"($A6-$A5)/365.25*(R5+(Main!$I12*Main!$D$3))*(1+Main!$I$4+VLOOKUP('Random Years'!P6,'Hist Returns'!$A$12:$D$107,4,FALSE))","v":{"v":248024.16318597703,"d":"248,024"}},{"$f":"($A6-$A5)/365.25*(S5+(Main!$I12*Main!$D$3))*(1+Main!$I$4+VLOOKUP('Random Years'!Q6,'Hist Returns'!$A$12:$D$107,4,FALSE))","v":{"v":262933.996016631,"d":"262,934"}},{"$f":"($A6-$A5)/365.25*(T5+(Main!$I12*Main!$D$3))*(1+Main!$I$4+VLOOKUP('Random Years'!R6,'Hist Returns'!$A$12:$D$107,4,FALSE))","v":{"v":304145.23352560686,"d":"304,145"}},{"$f":"($A6-$A5)/365.25*(U5+(Main!$I12*Main!$D$3))*(1+Main!$I$4+VLOOKUP('Random Years'!S6,'Hist Returns'!$A$12:$D$107,4,FALSE))","v":{"v":393960.5054419212,"d":"393,961"}},{"$f":"($A6-$A5)/365.25*(V5+(Main!$I12*Main!$D$3))*(1+Main!$I$4+VLOOKUP('Random Years'!T6,'Hist Returns'!$A$12:$D$107,4,FALSE))","v":{"v":289446.4411359248,"d":"289,446"}},{"$f":"($A6-$A5)/365.25*(W5+(Main!$I12*Main!$D$3))*(1+Main!$I$4+VLOOKUP('Random Years'!U6,'Hist Returns'!$A$12:$D$107,4,FALSE))","v":{"v":260419.48982840282,"d":"260,419"}},{"$f":"($A6-$A5)/365.25*(X5+(Main!$I12*Main!$D$3))*(1+Main!$I$4+VLOOKUP('Random Years'!V6,'Hist Returns'!$A$12:$D$107,4,FALSE))","v":{"v":309501.21909662837,"d":"309,501"}},{"$f":"($A6-$A5)/365.25*(Y5+(Main!$I12*Main!$D$3))*(1+Main!$I$4+VLOOKUP('Random Years'!W6,'Hist Returns'!$A$12:$D$107,4,FALSE))","v":{"v":217445.3414668119,"d":"217,445"}},{"$f":"($A6-$A5)/365.25*(Z5+(Main!$I12*Main!$D$3))*(1+Main!$I$4+VLOOKUP('Random Years'!X6,'Hist Returns'!$A$12:$D$107,4,FALSE))","v":{"v":474035.09953283577,"d":"474,035"}},{"$f":"($A6-$A5)/365.25*(AA5+(Main!$I12*Main!$D$3))*(1+Main!$I$4+VLOOKUP('Random Years'!Y6,'Hist Returns'!$A$12:$D$107,4,FALSE))","v":{"v":322830.74732336163,"d":"322,831"}},{"$f":"($A6-$A5)/365.25*(AB5+(Main!$I12*Main!$D$3))*(1+Main!$I$4+VLOOKUP('Random Years'!Z6,'Hist Returns'!$A$12:$D$107,4,FALSE))","v":{"v":339983.2334485977,"d":"339,983"}},{"$f":"($A6-$A5)/365.25*(AC5+(Main!$I12*Main!$D$3))*(1+Main!$I$4+VLOOKUP('Random Years'!AA6,'Hist Returns'!$A$12:$D$107,4,FALSE))","v":{"v":254110.8364935534,"d":"254,111"}},{"$f":"($A6-$A5)/365.25*(AD5+(Main!$I12*Main!$D$3))*(1+Main!$I$4+VLOOKUP('Random Years'!AB6,'Hist Returns'!$A$12:$D$107,4,FALSE))","v":{"v":310644.6712659431,"d":"310,645"}},{"$f":"($A6-$A5)/365.25*(AE5+(Main!$I12*Main!$D$3))*(1+Main!$I$4+VLOOKUP('Random Years'!AC6,'Hist Returns'!$A$12:$D$107,4,FALSE))","v":{"v":270662.17431001435,"d":"270,662"}},{"$f":"($A6-$A5)/365.25*(AF5+(Main!$I12*Main!$D$3))*(1+Main!$I$4+VLOOKUP('Random Years'!AD6,'Hist Returns'!$A$12:$D$107,4,FALSE))","v":{"v":280024.209945811,"d":"280,024"}},{"$f":"($A6-$A5)/365.25*(AG5+(Main!$I12*Main!$D$3))*(1+Main!$I$4+VLOOKUP('Random Years'!AE6,'Hist Returns'!$A$12:$D$107,4,FALSE))","v":{"v":312176.2593005151,"d":"312,176"}},{"$f":"($A6-$A5)/365.25*(AH5+(Main!$I12*Main!$D$3))*(1+Main!$I$4+VLOOKUP('Random Years'!AF6,'Hist Returns'!$A$12:$D$107,4,FALSE))","v":{"v":271496.1898381219,"d":"271,496"}},{"$f":"($A6-$A5)/365.25*(AI5+(Main!$I12*Main!$D$3))*(1+Main!$I$4+VLOOKUP('Random Years'!AG6,'Hist Returns'!$A$12:$D$107,4,FALSE))","v":{"v":361511.0860247535,"d":"361,511"}},{"$f":"($A6-$A5)/365.25*(AJ5+(Main!$I12*Main!$D$3))*(1+Main!$I$4+VLOOKUP('Random Years'!AH6,'Hist Returns'!$A$12:$D$107,4,FALSE))","v":{"v":340453.9111642077,"d":"340,454"}},{"$f":"($A6-$A5)/365.25*(AK5+(Main!$I12*Main!$D$3))*(1+Main!$I$4+VLOOKUP('Random Years'!AI6,'Hist Returns'!$A$12:$D$107,4,FALSE))","v":{"v":319561.0236357577,"d":"319,561"}},{"$f":"($A6-$A5)/365.25*(AL5+(Main!$I12*Main!$D$3))*(1+Main!$I$4+VLOOKUP('Random Years'!AJ6,'Hist Returns'!$A$12:$D$107,4,FALSE))","v":{"v":286504.26627785625,"d":"286,504"}},{"$f":"($A6-$A5)/365.25*(AM5+(Main!$I12*Main!$D$3))*(1+Main!$I$4+VLOOKUP('Random Years'!AK6,'Hist Returns'!$A$12:$D$107,4,FALSE))","v":{"v":263678.39055545663,"d":"263,678"}},{"$f":"($A6-$A5)/365.25*(AN5+(Main!$I12*Main!$D$3))*(1+Main!$I$4+VLOOKUP('Random Years'!AL6,'Hist Returns'!$A$12:$D$107,4,FALSE))","v":{"v":293234.87778177165,"d":"293,235"}},{"$f":"($A6-$A5)/365.25*(AO5+(Main!$I12*Main!$D$3))*(1+Main!$I$4+VLOOKUP('Random Years'!AM6,'Hist Returns'!$A$12:$D$107,4,FALSE))","v":{"v":302115.98066459823,"d":"302,116"}},{"$f":"($A6-$A5)/365.25*(AP5+(Main!$I12*Main!$D$3))*(1+Main!$I$4+VLOOKUP('Random Years'!AN6,'Hist Returns'!$A$12:$D$107,4,FALSE))","v":{"v":294695.0144778765,"d":"294,695"}},{"$f":"($A6-$A5)/365.25*(AQ5+(Main!$I12*Main!$D$3))*(1+Main!$I$4+VLOOKUP('Random Years'!AO6,'Hist Returns'!$A$12:$D$107,4,FALSE))","v":{"v":235172.76419602457,"d":"235,173"}},{"$f":"($A6-$A5)/365.25*(AR5+(Main!$I12*Main!$D$3))*(1+Main!$I$4+VLOOKUP('Random Years'!AP6,'Hist Returns'!$A$12:$D$107,4,FALSE))","v":{"v":241276.50011826144,"d":"241,277"}},{"$f":"($A6-$A5)/365.25*(AS5+(Main!$I12*Main!$D$3))*(1+Main!$I$4+VLOOKUP('Random Years'!AQ6,'Hist Returns'!$A$12:$D$107,4,FALSE))","v":{"v":365760.3611507535,"d":"365,760"}},{"$f":"($A6-$A5)/365.25*(AT5+(Main!$I12*Main!$D$3))*(1+Main!$I$4+VLOOKUP('Random Years'!AR6,'Hist Returns'!$A$12:$D$107,4,FALSE))","v":{"v":346951.1555005435,"d":"346,951"}},{"$f":"($A6-$A5)/365.25*(AU5+(Main!$I12*Main!$D$3))*(1+Main!$I$4+VLOOKUP('Random Years'!AS6,'Hist Returns'!$A$12:$D$107,4,FALSE))","v":{"v":255112.7262630126,"d":"255,113"}},{"$f":"($A6-$A5)/365.25*(AV5+(Main!$I12*Main!$D$3))*(1+Main!$I$4+VLOOKUP('Random Years'!AT6,'Hist Returns'!$A$12:$D$107,4,FALSE))","v":{"v":295081.09191204776,"d":"295,081"}},{"$f":"($A6-$A5)/365.25*(AW5+(Main!$I12*Main!$D$3))*(1+Main!$I$4+VLOOKUP('Random Years'!AU6,'Hist Returns'!$A$12:$D$107,4,FALSE))","v":{"v":349915.05725291744,"d":"349,915"}},{"$f":"($A6-$A5)/365.25*(AX5+(Main!$I12*Main!$D$3))*(1+Main!$I$4+VLOOKUP('Random Years'!AV6,'Hist Returns'!$A$12:$D$107,4,FALSE))","v":{"v":265501.5846622631,"d":"265,502"}},{"$f":"($A6-$A5)/365.25*(AY5+(Main!$I12*Main!$D$3))*(1+Main!$I$4+VLOOKUP('Random Years'!AW6,'Hist Returns'!$A$12:$D$107,4,FALSE))","v":{"v":273832.53519941756,"d":"273,833"}},{"$f":"($A6-$A5)/365.25*(AZ5+(Main!$I12*Main!$D$3))*(1+Main!$I$4+VLOOKUP('Random Years'!AX6,'Hist Returns'!$A$12:$D$107,4,FALSE))","v":{"v":257492.29678703638,"d":"257,492"}},{"$f":"($A6-$A5)/365.25*(BA5+(Main!$I12*Main!$D$3))*(1+Main!$I$4+VLOOKUP('Random Years'!AY6,'Hist Returns'!$A$12:$D$107,4,FALSE))","v":{"v":272081.39410109655,"d":"272,081"}},{"$f":"($A6-$A5)/365.25*(BB5+(Main!$I12*Main!$D$3))*(1+Main!$I$4+VLOOKUP('Random Years'!AZ6,'Hist Returns'!$A$12:$D$107,4,FALSE))","v":{"v":271013.6377074126,"d":"271,014"}},{"$f":"($A6-$A5)/365.25*(BC5+(Main!$I12*Main!$D$3))*(1+Main!$I$4+VLOOKUP('Random Years'!BA6,'Hist Returns'!$A$12:$D$107,4,FALSE))","v":{"v":298068.00991597114,"d":"298,068"}},{"$f":"($A6-$A5)/365.25*(BD5+(Main!$I12*Main!$D$3))*(1+Main!$I$4+VLOOKUP('Random Years'!BB6,'Hist Returns'!$A$12:$D$107,4,FALSE))","v":{"v":254842.59276677293,"d":"254,843"}},{"$f":"($A6-$A5)/365.25*(BE5+(Main!$I12*Main!$D$3))*(1+Main!$I$4+VLOOKUP('Random Years'!BC6,'Hist Returns'!$A$12:$D$107,4,FALSE))","v":{"v":293936.60665205715,"d":"293,937"}},{"$f":"($A6-$A5)/365.25*(BF5+(Main!$I12*Main!$D$3))*(1+Main!$I$4+VLOOKUP('Random Years'!BD6,'Hist Returns'!$A$12:$D$107,4,FALSE))","v":{"v":424372.83770999673,"d":"424,373"}},{"$f":"($A6-$A5)/365.25*(BG5+(Main!$I12*Main!$D$3))*(1+Main!$I$4+VLOOKUP('Random Years'!BE6,'Hist Returns'!$A$12:$D$107,4,FALSE))","v":{"v":214097.0800947044,"d":"214,097"}},{"$f":"($A6-$A5)/365.25*(BH5+(Main!$I12*Main!$D$3))*(1+Main!$I$4+VLOOKUP('Random Years'!BF6,'Hist Returns'!$A$12:$D$107,4,FALSE))","v":{"v":286969.52417452965,"d":"286,970"}},{"$f":"($A6-$A5)/365.25*(BI5+(Main!$I12*Main!$D$3))*(1+Main!$I$4+VLOOKUP('Random Years'!BG6,'Hist Returns'!$A$12:$D$107,4,FALSE))","v":{"v":336029.4776175552,"d":"336,029"}},{"$f":"($A6-$A5)/365.25*(BJ5+(Main!$I12*Main!$D$3))*(1+Main!$I$4+VLOOKUP('Random Years'!BH6,'Hist Returns'!$A$12:$D$107,4,FALSE))","v":{"v":274241.53845386027,"d":"274,242"}},{"$f":"($A6-$A5)/365.25*(BK5+(Main!$I12*Main!$D$3))*(1+Main!$I$4+VLOOKUP('Random Years'!BI6,'Hist Returns'!$A$12:$D$107,4,FALSE))","v":{"v":311291.4643843788,"d":"311,291"}},{"$f":"($A6-$A5)/365.25*(BL5+(Main!$I12*Main!$D$3))*(1+Main!$I$4+VLOOKUP('Random Years'!BJ6,'Hist Returns'!$A$12:$D$107,4,FALSE))","v":{"v":305250.0491162964,"d":"305,250"}},{"$f":"($A6-$A5)/365.25*(BM5+(Main!$I12*Main!$D$3))*(1+Main!$I$4+VLOOKUP('Random Years'!BK6,'Hist Returns'!$A$12:$D$107,4,FALSE))","v":{"v":244347.91557449856,"d":"244,348"}},{"$f":"($A6-$A5)/365.25*(BN5+(Main!$I12*Main!$D$3))*(1+Main!$I$4+VLOOKUP('Random Years'!BL6,'Hist Returns'!$A$12:$D$107,4,FALSE))","v":{"v":351335.0175321675,"d":"351,335"}},{"$f":"($A6-$A5)/365.25*(BO5+(Main!$I12*Main!$D$3))*(1+Main!$I$4+VLOOKUP('Random Years'!BM6,'Hist Returns'!$A$12:$D$107,4,FALSE))","v":{"v":249987.9022865914,"d":"249,988"}},{"$f":"($A6-$A5)/365.25*(BP5+(Main!$I12*Main!$D$3))*(1+Main!$I$4+VLOOKUP('Random Years'!BN6,'Hist Returns'!$A$12:$D$107,4,FALSE))","v":{"v":254433.46585198678,"d":"254,433"}},{"$f":"($A6-$A5)/365.25*(BQ5+(Main!$I12*Main!$D$3))*(1+Main!$I$4+VLOOKUP('Random Years'!BO6,'Hist Returns'!$A$12:$D$107,4,FALSE))","v":{"v":301947.57952916477,"d":"301,948"}},{"$f":"($A6-$A5)/365.25*(BR5+(Main!$I12*Main!$D$3))*(1+Main!$I$4+VLOOKUP('Random Years'!BP6,'Hist Returns'!$A$12:$D$107,4,FALSE))","v":{"v":243904.07209327136,"d":"243,904"}},{"$f":"($A6-$A5)/365.25*(BS5+(Main!$I12*Main!$D$3))*(1+Main!$I$4+VLOOKUP('Random Years'!BQ6,'Hist Returns'!$A$12:$D$107,4,FALSE))","v":{"v":305517.630908049,"d":"305,518"}},{"$f":"($A6-$A5)/365.25*(BT5+(Main!$I12*Main!$D$3))*(1+Main!$I$4+VLOOKUP('Random Years'!BR6,'Hist Returns'!$A$12:$D$107,4,FALSE))","v":{"v":229746.61885360727,"d":"229,747"}},{"$f":"($A6-$A5)/365.25*(BU5+(Main!$I12*Main!$D$3))*(1+Main!$I$4+VLOOKUP('Random Years'!BS6,'Hist Returns'!$A$12:$D$107,4,FALSE))","v":{"v":370711.87277465436,"d":"370,712"}},{"$f":"($A6-$A5)/365.25*(BV5+(Main!$I12*Main!$D$3))*(1+Main!$I$4+VLOOKUP('Random Years'!BT6,'Hist Returns'!$A$12:$D$107,4,FALSE))","v":{"v":230062.51507777223,"d":"230,063"}},{"$f":"($A6-$A5)/365.25*(BW5+(Main!$I12*Main!$D$3))*(1+Main!$I$4+VLOOKUP('Random Years'!BU6,'Hist Returns'!$A$12:$D$107,4,FALSE))","v":{"v":301833.5151096588,"d":"301,834"}},{"$f":"($A6-$A5)/365.25*(BX5+(Main!$I12*Main!$D$3))*(1+Main!$I$4+VLOOKUP('Random Years'!BV6,'Hist Returns'!$A$12:$D$107,4,FALSE))","v":{"v":348282.2498431165,"d":"348,282"}},{"$f":"($A6-$A5)/365.25*(BY5+(Main!$I12*Main!$D$3))*(1+Main!$I$4+VLOOKUP('Random Years'!BW6,'Hist Returns'!$A$12:$D$107,4,FALSE))","v":{"v":254432.75322534065,"d":"254,433"}},{"$f":"($A6-$A5)/365.25*(BZ5+(Main!$I12*Main!$D$3))*(1+Main!$I$4+VLOOKUP('Random Years'!BX6,'Hist Returns'!$A$12:$D$107,4,FALSE))","v":{"v":306060.5475283699,"d":"306,061"}},{"$f":"($A6-$A5)/365.25*(CA5+(Main!$I12*Main!$D$3))*(1+Main!$I$4+VLOOKUP('Random Years'!BY6,'Hist Returns'!$A$12:$D$107,4,FALSE))","v":{"v":346924.76468899945,"d":"346,925"}},{"$f":"($A6-$A5)/365.25*(CB5+(Main!$I12*Main!$D$3))*(1+Main!$I$4+VLOOKUP('Random Years'!BZ6,'Hist Returns'!$A$12:$D$107,4,FALSE))","v":{"v":321943.03767190245,"d":"321,943"}},{"$f":"($A6-$A5)/365.25*(CC5+(Main!$I12*Main!$D$3))*(1+Main!$I$4+VLOOKUP('Random Years'!CA6,'Hist Returns'!$A$12:$D$107,4,FALSE))","v":{"v":319462.9129236018,"d":"319,463"}},{"$f":"($A6-$A5)/365.25*(CD5+(Main!$I12*Main!$D$3))*(1+Main!$I$4+VLOOKUP('Random Years'!CB6,'Hist Returns'!$A$12:$D$107,4,FALSE))","v":{"v":367723.47051915916,"d":"367,723"}},{"$f":"($A6-$A5)/365.25*(CE5+(Main!$I12*Main!$D$3))*(1+Main!$I$4+VLOOKUP('Random Years'!CC6,'Hist Returns'!$A$12:$D$107,4,FALSE))","v":{"v":289020.7299338038,"d":"289,021"}},{"$f":"($A6-$A5)/365.25*(CF5+(Main!$I12*Main!$D$3))*(1+Main!$I$4+VLOOKUP('Random Years'!CD6,'Hist Returns'!$A$12:$D$107,4,FALSE))","v":{"v":373878.0189799087,"d":"373,878"}},{"$f":"($A6-$A5)/365.25*(CG5+(Main!$I12*Main!$D$3))*(1+Main!$I$4+VLOOKUP('Random Years'!CE6,'Hist Returns'!$A$12:$D$107,4,FALSE))","v":{"v":289672.17110728036,"d":"289,672"}},{"$f":"($A6-$A5)/365.25*(CH5+(Main!$I12*Main!$D$3))*(1+Main!$I$4+VLOOKUP('Random Years'!CF6,'Hist Returns'!$A$12:$D$107,4,FALSE))","v":{"v":313313.16299836105,"d":"313,313"}},{"$f":"($A6-$A5)/365.25*(CI5+(Main!$I12*Main!$D$3))*(1+Main!$I$4+VLOOKUP('Random Years'!CG6,'Hist Returns'!$A$12:$D$107,4,FALSE))","v":{"v":392023.94447312044,"d":"392,024"}},{"$f":"($A6-$A5)/365.25*(CJ5+(Main!$I12*Main!$D$3))*(1+Main!$I$4+VLOOKUP('Random Years'!CH6,'Hist Returns'!$A$12:$D$107,4,FALSE))","v":{"v":305630.187358648,"d":"305,630"}},{"$f":"($A6-$A5)/365.25*(CK5+(Main!$I12*Main!$D$3))*(1+Main!$I$4+VLOOKUP('Random Years'!CI6,'Hist Returns'!$A$12:$D$107,4,FALSE))","v":{"v":306477.58907171263,"d":"306,478"}},{"$f":"($A6-$A5)/365.25*(CL5+(Main!$I12*Main!$D$3))*(1+Main!$I$4+VLOOKUP('Random Years'!CJ6,'Hist Returns'!$A$12:$D$107,4,FALSE))","v":{"v":302390.79398505687,"d":"302,391"}},{"$f":"($A6-$A5)/365.25*(CM5+(Main!$I12*Main!$D$3))*(1+Main!$I$4+VLOOKUP('Random Years'!CK6,'Hist Returns'!$A$12:$D$107,4,FALSE))","v":{"v":360923.6855202657,"d":"360,924"}},{"$f":"($A6-$A5)/365.25*(CN5+(Main!$I12*Main!$D$3))*(1+Main!$I$4+VLOOKUP('Random Years'!CL6,'Hist Returns'!$A$12:$D$107,4,FALSE))","v":{"v":289711.2303513505,"d":"289,711"}},{"$f":"($A6-$A5)/365.25*(CO5+(Main!$I12*Main!$D$3))*(1+Main!$I$4+VLOOKUP('Random Years'!CM6,'Hist Returns'!$A$12:$D$107,4,FALSE))","v":{"v":311139.7334334378,"d":"311,140"}},{"$f":"($A6-$A5)/365.25*(CP5+(Main!$I12*Main!$D$3))*(1+Main!$I$4+VLOOKUP('Random Years'!CN6,'Hist Returns'!$A$12:$D$107,4,FALSE))","v":{"v":365422.75140970375,"d":"365,423"}},{"$f":"($A6-$A5)/365.25*(CQ5+(Main!$I12*Main!$D$3))*(1+Main!$I$4+VLOOKUP('Random Years'!CO6,'Hist Returns'!$A$12:$D$107,4,FALSE))","v":{"v":326906.0431553614,"d":"326,906"}},{"$f":"($A6-$A5)/365.25*(CR5+(Main!$I12*Main!$D$3))*(1+Main!$I$4+VLOOKUP('Random Years'!CP6,'Hist Returns'!$A$12:$D$107,4,FALSE))","v":{"v":232203.47180910487,"d":"232,203"}},{"$f":"($A6-$A5)/365.25*(CS5+(Main!$I12*Main!$D$3))*(1+Main!$I$4+VLOOKUP('Random Years'!CQ6,'Hist Returns'!$A$12:$D$107,4,FALSE))","v":{"v":263085.2327432458,"d":"263,085"}},{"$f":"($A6-$A5)/365.25*(CT5+(Main!$I12*Main!$D$3))*(1+Main!$I$4+VLOOKUP('Random Years'!CR6,'Hist Returns'!$A$12:$D$107,4,FALSE))","v":{"v":280931.669202187,"d":"280,932"}},{"$f":"($A6-$A5)/365.25*(CU5+(Main!$I12*Main!$D$3))*(1+Main!$I$4+VLOOKUP('Random Years'!CS6,'Hist Returns'!$A$12:$D$107,4,FALSE))","v":{"v":581856.4134164444,"d":"581,856"}},{"$f":"($A6-$A5)/365.25*(CV5+(Main!$I12*Main!$D$3))*(1+Main!$I$4+VLOOKUP('Random Years'!CT6,'Hist Returns'!$A$12:$D$107,4,FALSE))","v":{"v":217432.02273308864,"d":"217,432"}},{"$f":"($A6-$A5)/365.25*(CW5+(Main!$I12*Main!$D$3))*(1+Main!$I$4+VLOOKUP('Random Years'!CU6,'Hist Returns'!$A$12:$D$107,4,FALSE))","v":{"v":291753.20586261695,"d":"291,753"}},{"$f":"($A6-$A5)/365.25*(CX5+(Main!$I12*Main!$D$3))*(1+Main!$I$4+VLOOKUP('Random Years'!CV6,'Hist Returns'!$A$12:$D$107,4,FALSE))","v":{"v":267126.127176825,"d":"267,126"}}]
[{"$f":"Main!A13","v":"2028-12-30"},{"$f":"Main!B13","v":74},{"$f":"($A7-$A6)/365.25*(C6+(Main!$I13*Main!$D$3))*(1+Main!$I$4+VLOOKUP('Random Years'!A7,'Hist Returns'!$A$12:$D$107,4,FALSE))","v":{"v":271053.3925868442,"d":"271,053"}},{"$f":"($A7-$A6)/365.25*(D6+(Main!$I13*Main!$D$3))*(1+Main!$I$4+VLOOKUP('Random Years'!B7,'Hist Returns'!$A$12:$D$107,4,FALSE))","v":{"v":357199.97455060517,"d":"357,200"}},{"$f":"($A7-$A6)/365.25*(E6+(Main!$I13*Main!$D$3))*(1+Main!$I$4+VLOOKUP('Random Years'!C7,'Hist Returns'!$A$12:$D$107,4,FALSE))","v":{"v":238156.7555243029,"d":"238,157"}},{"$f":"($A7-$A6)/365.25*(F6+(Main!$I13*Main!$D$3))*(1+Main!$I$4+VLOOKUP('Random Years'!D7,'Hist Returns'!$A$12:$D$107,4,FALSE))","v":{"v":477566.48948981287,"d":"477,566"}},{"$f":"($A7-$A6)/365.25*(G6+(Main!$I13*Main!$D$3))*(1+Main!$I$4+VLOOKUP('Random Years'!E7,'Hist Returns'!$A$12:$D$107,4,FALSE))","v":{"v":310592.74119665736,"d":"310,593"}},{"$f":"($A7-$A6)/365.25*(H6+(Main!$I13*Main!$D$3))*(1+Main!$I$4+VLOOKUP('Random Years'!F7,'Hist Returns'!$A$12:$D$107,4,FALSE))","v":{"v":325828.1131485178,"d":"325,828"}},{"$f":"($A7-$A6)/365.25*(I6+(Main!$I13*Main!$D$3))*(1+Main!$I$4+VLOOKUP('Random Years'!G7,'Hist Returns'!$A$12:$D$107,4,FALSE))","v":{"v":291828.88372897264,"d":"291,829"}},{"$f":"($A7-$A6)/365.25*(J6+(Main!$I13*Main!$D$3))*(1+Main!$I$4+VLOOKUP('Random Years'!H7,'Hist Returns'!$A$12:$D$107,4,FALSE))","v":{"v":526630.6424009234,"d":"526,631"}},{"$f":"($A7-$A6)/365.25*(K6+(Main!$I13*Main!$D$3))*(1+Main!$I$4+VLOOKUP('Random Years'!I7,'Hist Returns'!$A$12:$D$107,4,FALSE))","v":{"v":391727.80481215724,"d":"391,728"}},{"$f":"($A7-$A6)/365.25*(L6+(Main!$I13*Main!$D$3))*(1+Main!$I$4+VLOOKUP('Random Years'!J7,'Hist Returns'!$A$12:$D$107,4,FALSE))","v":{"v":256123.8060214785,"d":"256,124"}},{"$f":"($A7-$A6)/365.25*(M6+(Main!$I13*Main!$D$3))*(1+Main!$I$4+VLOOKUP('Random Years'!K7,'Hist Returns'!$A$12:$D$107,4,FALSE))","v":{"v":256314.897529757,"d":"256,315"}},{"$f":"($A7-$A6)/365.25*(N6+(Main!$I13*Main!$D$3))*(1+Main!$I$4+VLOOKUP('Random Years'!L7,'Hist Returns'!$A$12:$D$107,4,FALSE))","v":{"v":296950.0654115297,"d":"296,950"}},{"$f":"($A7-$A6)/365.25*(O6+(Main!$I13*Main!$D$3))*(1+Main!$I$4+VLOOKUP('Random Years'!M7,'Hist Returns'!$A$12:$D$107,4,FALSE))","v":{"v":429237.6160821281,"d":"429,238"}},{"$f":"($A7-$A6)/365.25*(P6+(Main!$I13*Main!$D$3))*(1+Main!$I$4+VLOOKUP('Random Years'!N7,'Hist Returns'!$A$12:$D$107,4,FALSE))","v":{"v":294843.17568312853,"d":"294,843"}},{"$f":"($A7-$A6)/365.25*(Q6+(Main!$I13*Main!$D$3))*(1+Main!$I$4+VLOOKUP('Random Years'!O7,'Hist Returns'!$A$12:$D$107,4,FALSE))","v":{"v":370554.7351502157,"d":"370,555"}},{"$f":"($A7-$A6)/365.25*(R6+(Main!$I13*Main!$D$3))*(1+Main!$I$4+VLOOKUP('Random Years'!P7,'Hist Returns'!$A$12:$D$107,4,FALSE))","v":{"v":254389.11099600527,"d":"254,389"}},{"$f":"($A7-$A6)/365.25*(S6+(Main!$I13*Main!$D$3))*(1+Main!$I$4+VLOOKUP('Random Years'!Q7,'Hist Returns'!$A$12:$D$107,4,FALSE))","v":{"v":267955.90093260584,"d":"267,956"}},{"$f":"($A7-$A6)/365.25*(T6+(Main!$I13*Main!$D$3))*(1+Main!$I$4+VLOOKUP('Random Years'!R7,'Hist Returns'!$A$12:$D$107,4,FALSE))","v":{"v":375842.46136808326,"d":"375,842"}},{"$f":"($A7-$A6)/365.25*(U6+(Main!$I13*Main!$D$3))*(1+Main!$I$4+VLOOKUP('Random Years'!S7,'Hist Returns'!$A$12:$D$107,4,FALSE))","v":{"v":409462.52366699907,"d":"409,463"}},{"$f":"($A7-$A6)/365.25*(V6+(Main!$I13*Main!$D$3))*(1+Main!$I$4+VLOOKUP('Random Years'!T7,'Hist Returns'!$A$12:$D$107,4,FALSE))","v":{"v":333707.1785152258,"d":"333,707"}},{"$f":"($A7-$A6)/365.25*(W6+(Main!$I13*Main!$D$3))*(1+Main!$I$4+VLOOKUP('Random Years'!U7,'Hist Returns'!$A$12:$D$107,4,FALSE))","v":{"v":279921.98765704606,"d":"279,922"}},{"$f":"($A7-$A6)/365.25*(X6+(Main!$I13*Main!$D$3))*(1+Main!$I$4+VLOOKUP('Random Years'!V7,'Hist Returns'!$A$12:$D$107,4,FALSE))","v":{"v":298556.77210005035,"d":"298,557"}},{"$f":"($A7-$A6)/365.25*(Y6+(Main!$I13*Main!$D$3))*(1+Main!$I$4+VLOOKUP('Random Years'!W7,'Hist Returns'!$A$12:$D$107,4,FALSE))","v":{"v":191779.1324279912,"d":"191,779"}},{"$f":"($A7-$A6)/365.25*(Z6+(Main!$I13*Main!$D$3))*(1+Main!$I$4+VLOOKUP('Random Years'!X7,'Hist Returns'!$A$12:$D$107,4,FALSE))","v":{"v":464715.8470511325,"d":"464,716"}},{"$f":"($A7-$A6)/365.25*(AA6+(Main!$I13*Main!$D$3))*(1+Main!$I$4+VLOOKUP('Random Years'!Y7,'Hist Returns'!$A$12:$D$107,4,FALSE))","v":{"v":316787.33557728253,"d":"316,787"}},{"$f":"($A7-$A6)/365.25*(AB6+(Main!$I13*Main!$D$3))*(1+Main!$I$4+VLOOKUP('Random Years'!Z7,'Hist Returns'!$A$12:$D$107,4,FALSE))","v":{"v":374577.6512567323,"d":"374,578"}},{"$f":"($A7-$A6)/365.25*(AC6+(Main!$I13*Main!$D$3))*(1+Main!$I$4+VLOOKUP('Random Years'!AA7,'Hist Returns'!$A$12:$D$107,4,FALSE))","v":{"v":256656.39502553092,"d":"256,656"}},{"$f":"($A7-$A6)/365.25*(AD6+(Main!$I13*Main!$D$3))*(1+Main!$I$4+VLOOKUP('Random Years'!AB7,'Hist Returns'!$A$12:$D$107,4,FALSE))","v":{"v":322772.36684037786,"d":"322,772"}},{"$f":"($A7-$A6)/365.25*(AE6+(Main!$I13*Main!$D$3))*(1+Main!$I$4+VLOOKUP('Random Years'!AC7,'Hist Returns'!$A$12:$D$107,4,FALSE))","v":{"v":278971.9490082321,"d":"278,972"}},{"$f":"($A7-$A6)/365.25*(AF6+(Main!$I13*Main!$D$3))*(1+Main!$I$4+VLOOKUP('Random Years'!AD7,'Hist Returns'!$A$12:$D$107,4,FALSE))","v":{"v":305129.3418416965,"d":"305,129"}},{"$f":"($A7-$A6)/365.25*(AG6+(Main!$I13*Main!$D$3))*(1+Main!$I$4+VLOOKUP('Random Years'!AE7,'Hist Returns'!$A$12:$D$107,4,FALSE))","v":{"v":320643.7318158741,"d":"320,644"}},{"$f":"($A7-$A6)/365.25*(AH6+(Main!$I13*Main!$D$3))*(1+Main!$I$4+VLOOKUP('Random Years'!AF7,'Hist Returns'!$A$12:$D$107,4,FALSE))","v":{"v":277623.943390025,"d":"277,624"}},{"$f":"($A7-$A6)/365.25*(AI6+(Main!$I13*Main!$D$3))*(1+Main!$I$4+VLOOKUP('Random Years'!AG7,'Hist Returns'!$A$12:$D$107,4,FALSE))","v":{"v":330039.14598377084,"d":"330,039"}},{"$f":"($A7-$A6)/365.25*(AJ6+(Main!$I13*Main!$D$3))*(1+Main!$I$4+VLOOKUP('Random Years'!AH7,'Hist Returns'!$A$12:$D$107,4,FALSE))","v":{"v":351316.0163699436,"d":"351,316"}},{"$f":"($A7-$A6)/365.25*(AK6+(Main!$I13*Main!$D$3))*(1+Main!$I$4+VLOOKUP('Random Years'!AI7,'Hist Returns'!$A$12:$D$107,4,FALSE))","v":{"v":422099.07073069905,"d":"422,099"}},{"$f":"($A7-$A6)/365.25*(AL6+(Main!$I13*Main!$D$3))*(1+Main!$I$4+VLOOKUP('Random Years'!AJ7,'Hist Returns'!$A$12:$D$107,4,FALSE))","v":{"v":272189.60368342913,"d":"272,190"}},{"$f":"($A7-$A6)/365.25*(AM6+(Main!$I13*Main!$D$3))*(1+Main!$I$4+VLOOKUP('Random Years'!AK7,'Hist Returns'!$A$12:$D$107,4,FALSE))","v":{"v":305858.2788819376,"d":"305,858"}},{"$f":"($A7-$A6)/365.25*(AN6+(Main!$I13*Main!$D$3))*(1+Main!$I$4+VLOOKUP('Random Years'!AL7,'Hist Returns'!$A$12:$D$107,4,FALSE))","v":{"v":267441.47773914837,"d":"267,441"}},{"$f":"($A7-$A6)/365.25*(AO6+(Main!$I13*Main!$D$3))*(1+Main!$I$4+VLOOKUP('Random Years'!AM7,'Hist Returns'!$A$12:$D$107,4,FALSE))","v":{"v":285316.6748949879,"d":"285,317"}},{"$f":"($A7-$A6)/365.25*(AP6+(Main!$I13*Main!$D$3))*(1+Main!$I$4+VLOOKUP('Random Years'!AN7,'Hist Returns'!$A$12:$D$107,4,FALSE))","v":{"v":305888.1211389733,"d":"305,888"}},{"$f":"($A7-$A6)/365.25*(AQ6+(Main!$I13*Main!$D$3))*(1+Main!$I$4+VLOOKUP('Random Years'!AO7,'Hist Returns'!$A$12:$D$107,4,FALSE))","v":{"v":226499.90192810306,"d":"226,500"}},{"$f":"($A7-$A6)/365.25*(AR6+(Main!$I13*Main!$D$3))*(1+Main!$I$4+VLOOKUP('Random Years'!AP7,'Hist Returns'!$A$12:$D$107,4,FALSE))","v":{"v":241783.33487418754,"d":"241,783"}},{"$f":"($A7-$A6)/365.25*(AS6+(Main!$I13*Main!$D$3))*(1+Main!$I$4+VLOOKUP('Random Years'!AQ7,'Hist Returns'!$A$12:$D$107,4,FALSE))","v":{"v":399600.7899993653,"d":"399,601"}},{"$f":"($A7-$A6)/365.25*(AT6+(Main!$I13*Main!$D$3))*(1+Main!$I$4+VLOOKUP('Random Years'!AR7,'Hist Returns'!$A$12:$D$107,4,FALSE))","v":{"v":364835.3544949998,"d":"364,835"}},{"$f":"($A7-$A6)/365.25*(AU6+(Main!$I13*Main!$D$3))*(1+Main!$I$4+VLOOKUP('Random Years'!AS7,'Hist Returns'!$A$12:$D$107,4,FALSE))","v":{"v":240836.4206152813,"d":"240,836"}},{"$f":"($A7-$A6)/365.25*(AV6+(Main!$I13*Main!$D$3))*(1+Main!$I$4+VLOOKUP('Random Years'!AT7,'Hist Returns'!$A$12:$D$107,4,FALSE))","v":{"v":292481.3939343778,"d":"292,481"}},{"$f":"($A7-$A6)/365.25*(AW6+(Main!$I13*Main!$D$3))*(1+Main!$I$4+VLOOKUP('Random Years'!AU7,'Hist Returns'!$A$12:$D$107,4,FALSE))","v":{"v":418125.5489645534,"d":"418,126"}},{"$f":"($A7-$A6)/365.25*(AX6+(Main!$I13*Main!$D$3))*(1+Main!$I$4+VLOOKUP('Random Years'!AV7,'Hist Returns'!$A$12:$D$107,4,FALSE))","v":{"v":265608.56948640035,"d":"265,609"}},{"$f":"($A7-$A6)/365.25*(AY6+(Main!$I13*Main!$D$3))*(1+Main!$I$4+VLOOKUP('Random Years'!AW7,'Hist Returns'!$A$12:$D$107,4,FALSE))","v":{"v":260086.2530848208,"d":"260,086"}},{"$f":"($A7-$A6)/365.25*(AZ6+(Main!$I13*Main!$D$3))*(1+Main!$I$4+VLOOKUP('Random Years'!AX7,'Hist Returns'!$A$12:$D$107,4,FALSE))","v":{"v":260092.45112773887,"d":"260,092"}},{"$f":"($A7-$A6)/365.25*(BA6+(Main!$I13*Main!$D$3))*(1+Main!$I$4+VLOOKUP('Random Years'!AY7,'Hist Returns'!$A$12:$D$107,4,FALSE))","v":{"v":268261.43892963073,"d":"268,261"}},{"$f":"($A7-$A6)/365.25*(BB6+(Main!$I13*Main!$D$3))*(1+Main!$I$4+VLOOKUP('Random Years'!AZ7,'Hist Returns'!$A$12:$D$107,4,FALSE))","v":{"v":306280.20786707,"d":"306,280"}},{"$f":"($A7-$A6)/365.25*(BC6+(Main!$I13*Main!$D$3))*(1+Main!$I$4+VLOOKUP('Random Years'!BA7,'Hist Returns'!$A$12:$D$107,4,FALSE))","v":{"v":393572.7599567601,"d":"393,573"}},{"$f":"($A7-$A6)/365.25*(BD6+(Main!$I13*Main!$D$3))*(1+Main!$I$4+VLOOKUP('Random Years'!BB7,'Hist Returns'!$A$12:$D$107,4,FALSE))","v":{"v":264504.3031291939,"d":"264,504"}},{"$f":"($A7-$A6)/365.25*(BE6+(Main!$I13*Main!$D$3))*(1+Main!$I$4+VLOOKUP('Random Years'!BC7,'Hist Returns'!$A$12:$D$107,4,FALSE))","v":{"v":320801.6908851802,"d":"320,802"}},{"$f":"($A7-$A6)/365.25*(BF6+(Main!$I13*Main!$D$3))*(1+Main!$I$4+VLOOKUP('Random Years'!BD7,'Hist Returns'!$A$12:$D$107,4,FALSE))","v":{"v":441738.6894304347,"d":"441,739"}},{"$f":"($A7-$A6)/365.25*(BG6+(Main!$I13*Main!$D$3))*(1+Main!$I$4+VLOOKUP('Random Years'!BE7,'Hist Returns'!$A$12:$D$107,4,FALSE))","v":{"v":223895.0125050567,"d":"223,895"}},{"$f":"($A7-$A6)/365.25*(BH6+(Main!$I13*Main!$D$3))*(1+Main!$I$4+VLOOKUP('Random Years'!BF7,'Hist Returns'!$A$12:$D$107,4,FALSE))","v":{"v":299554.74667749327,"d":"299,555"}},{"$f":"($A7-$A6)/365.25*(BI6+(Main!$I13*Main!$D$3))*(1+Main!$I$4+VLOOKUP('Random Years'!BG7,'Hist Returns'!$A$12:$D$107,4,FALSE))","v":{"v":348320.0226864795,"d":"348,320"}},{"$f":"($A7-$A6)/365.25*(BJ6+(Main!$I13*Main!$D$3))*(1+Main!$I$4+VLOOKUP('Random Years'!BH7,'Hist Returns'!$A$12:$D$107,4,FALSE))","v":{"v":266374.9119765208,"d":"266,375"}},{"$f":"($A7-$A6)/365.25*(BK6+(Main!$I13*Main!$D$3))*(1+Main!$I$4+VLOOKUP('Random Years'!BI7,'Hist Returns'!$A$12:$D$107,4,FALSE))","v":{"v":311623.1619698322,"d":"311,623"}},{"$f":"($A7-$A6)/365.25*(BL6+(Main!$I13*Main!$D$3))*(1+Main!$I$4+VLOOKUP('Random Years'!BJ7,'Hist Returns'!$A$12:$D$107,4,FALSE))","v":{"v":314451.9813774944,"d":"314,452"}},{"$f":"($A7-$A6)/365.25*(BM6+(Main!$I13*Main!$D$3))*(1+Main!$I$4+VLOOKUP('Random Years'!BK7,'Hist Returns'!$A$12:$D$107,4,FALSE))","v":{"v":230612.60193865377,"d":"230,613"}},{"$f":"($A7-$A6)/365.25*(BN6+(Main!$I13*Main!$D$3))*(1+Main!$I$4+VLOOKUP('Random Years'!BL7,'Hist Returns'!$A$12:$D$107,4,FALSE))","v":{"v":334112.4228424648,"d":"334,112"}},{"$f":"($A7-$A6)/365.25*(BO6+(Main!$I13*Main!$D$3))*(1+Main!$I$4+VLOOKUP('Random Years'!BM7,'Hist Returns'!$A$12:$D$107,4,FALSE))","v":{"v":249351.98884268472,"d":"249,352"}},{"$f":"($A7-$A6)/365.25*(BP6+(Main!$I13*Main!$D$3))*(1+Main!$I$4+VLOOKUP('Random Years'!BN7,'Hist Returns'!$A$12:$D$107,4,FALSE))","v":{"v":260815.70791382334,"d":"260,816"}},{"$f":"($A7-$A6)/365.25*(BQ6+(Main!$I13*Main!$D$3))*(1+Main!$I$4+VLOOKUP('Random Years'!BO7,'Hist Returns'!$A$12:$D$107,4,FALSE))","v":{"v":307018.2178016432,"d":"307,018"}},{"$f":"($A7-$A6)/365.25*(BR6+(Main!$I13*Main!$D$3))*(1+Main!$I$4+VLOOKUP('Random Years'!BP7,'Hist Returns'!$A$12:$D$107,4,FALSE))","v":{"v":222213.52076562837,"d":"222,214"}},{"$f":"($A7-$A6)/365.25*(BS6+(Main!$I13*Main!$D$3))*(1+Main!$I$4+VLOOKUP('Random Years'!BQ7,'Hist Returns'!$A$12:$D$107,4,FALSE))","v":{"v":327968.2000153452,"d":"327,968"}},{"$f":"($A7-$A6)/365.25*(BT6+(Main!$I13*Main!$D$3))*(1+Main!$I$4+VLOOKUP('Random Years'!BR7,'Hist Returns'!$A$12:$D$107,4,FALSE))","v":{"v":187395.20638567276,"d":"187,395"}},{"$f":"($A7-$A6)/365.25*(BU6+(Main!$I13*Main!$D$3))*(1+Main!$I$4+VLOOKUP('Random Years'!BS7,'Hist Returns'!$A$12:$D$107,4,FALSE))","v":{"v":430739.4047275139,"d":"430,739"}},{"$f":"($A7-$A6)/365.25*(BV6+(Main!$I13*Main!$D$3))*(1+Main!$I$4+VLOOKUP('Random Years'!BT7,'Hist Returns'!$A$12:$D$107,4,FALSE))","v":{"v":231296.79875140986,"d":"231,297"}},{"$f":"($A7-$A6)/365.25*(BW6+(Main!$I13*Main!$D$3))*(1+Main!$I$4+VLOOKUP('Random Years'!BU7,'Hist Returns'!$A$12:$D$107,4,FALSE))","v":{"v":308700.829061991,"d":"308,701"}},{"$f":"($A7-$A6)/365.25*(BX6+(Main!$I13*Main!$D$3))*(1+Main!$I$4+VLOOKUP('Random Years'!BV7,'Hist Returns'!$A$12:$D$107,4,FALSE))","v":{"v":356278.71063974773,"d":"356,279"}},{"$f":"($A7-$A6)/365.25*(BY6+(Main!$I13*Main!$D$3))*(1+Main!$I$4+VLOOKUP('Random Years'!BW7,'Hist Returns'!$A$12:$D$107,4,FALSE))","v":{"v":257683.15711150673,"d":"257,683"}},{"$f":"($A7-$A6)/365.25*(BZ6+(Main!$I13*Main!$D$3))*(1+Main!$I$4+VLOOKUP('Random Years'!BX7,'Hist Returns'!$A$12:$D$107,4,FALSE))","v":{"v":303420.932854819,"d":"303,421"}},{"$f":"($A7-$A6)/365.25*(CA6+(Main!$I13*Main!$D$3))*(1+Main!$I$4+VLOOKUP('Random Years'!BY7,'Hist Returns'!$A$12:$D$107,4,FALSE))","v":{"v":428974.2742631658,"d":"428,974"}},{"$f":"($A7-$A6)/365.25*(CB6+(Main!$I13*Main!$D$3))*(1+Main!$I$4+VLOOKUP('Random Years'!BZ7,'Hist Returns'!$A$12:$D$107,4,FALSE))","v":{"v":338032.88688143046,"d":"338,033"}},{"$f":"($A7-$A6)/365.25*(CC6+(Main!$I13*Main!$D$3))*(1+Main!$I$4+VLOOKUP('Random Years'!CA7,'Hist Returns'!$A$12:$D$107,4,FALSE))","v":{"v":331980.30103474145,"d":"331,980"}},{"$f":"($A7-$A6)/365.25*(CD6+(Main!$I13*Main!$D$3))*(1+Main!$I$4+VLOOKUP('Random Years'!CB7,'Hist Returns'!$A$12:$D$107,4,FALSE))","v":{"v":396909.6378156686,"d":"396,910"}},{"$f":"($A7-$A6)/365.25*(CE6+(Main!$I13*Main!$D$3))*(1+Main!$I$4+VLOOKUP('Random Years'!CC7,'Hist Returns'!$A$12:$D$107,4,FALSE))","v":{"v":335140.6394772343,"d":"335,141"}},{"$f":"($A7-$A6)/365.25*(CF6+(Main!$I13*Main!$D$3))*(1+Main!$I$4+VLOOKUP('Random Years'!CD7,'Hist Returns'!$A$12:$D$107,4,FALSE))","v":{"v":380529.6865588304,"d":"380,530"}},{"$f":"($A7-$A6)/365.25*(CG6+(Main!$I13*Main!$D$3))*(1+Main!$I$4+VLOOKUP('Random Years'!CE7,'Hist Returns'!$A$12:$D$107,4,FALSE))","v":{"v":287092.1376971767,"d":"287,092"}},{"$f":"($A7-$A6)/365.25*(CH6+(Main!$I13*Main!$D$3))*(1+Main!$I$4+VLOOKUP('Random Years'!CF7,'Hist Returns'!$A$12:$D$107,4,FALSE))","v":{"v":358316.4265263111,"d":"358,316"}},{"$f":"($A7-$A6)/365.25*(CI6+(Main!$I13*Main!$D$3))*(1+Main!$I$4+VLOOKUP('Random Years'!CG7,'Hist Returns'!$A$12:$D$107,4,FALSE))","v":{"v":404501.18358327745,"d":"404,501"}},{"$f":"($A7-$A6)/365.25*(CJ6+(Main!$I13*Main!$D$3))*(1+Main!$I$4+VLOOKUP('Random Years'!CH7,'Hist Returns'!$A$12:$D$107,4,FALSE))","v":{"v":349234.24012314907,"d":"349,234"}},{"$f":"($A7-$A6)/365.25*(CK6+(Main!$I13*Main!$D$3))*(1+Main!$I$4+VLOOKUP('Random Years'!CI7,'Hist Returns'!$A$12:$D$107,4,FALSE))","v":{"v":337495.54880963836,"d":"337,496"}},{"$f":"($A7-$A6)/365.25*(CL6+(Main!$I13*Main!$D$3))*(1+Main!$I$4+VLOOKUP('Random Years'!CJ7,'Hist Returns'!$A$12:$D$107,4,FALSE))","v":{"v":313319.6217408759,"d":"313,320"}},{"$f":"($A7-$A6)/365.25*(CM6+(Main!$I13*Main!$D$3))*(1+Main!$I$4+VLOOKUP('Random Years'!CK7,'Hist Returns'!$A$12:$D$107,4,FALSE))","v":{"v":326446.593931658,"d":"326,447"}},{"$f":"($A7-$A6)/365.25*(CN6+(Main!$I13*Main!$D$3))*(1+Main!$I$4+VLOOKUP('Random Years'!CL7,'Hist Returns'!$A$12:$D$107,4,FALSE))","v":{"v":295152.2438736782,"d":"295,152"}},{"$f":"($A7-$A6)/365.25*(CO6+(Main!$I13*Main!$D$3))*(1+Main!$I$4+VLOOKUP('Random Years'!CM7,'Hist Returns'!$A$12:$D$107,4,FALSE))","v":{"v":384529.57060680154,"d":"384,530"}},{"$f":"($A7-$A6)/365.25*(CP6+(Main!$I13*Main!$D$3))*(1+Main!$I$4+VLOOKUP('Random Years'!CN7,'Hist Returns'!$A$12:$D$107,4,FALSE))","v":{"v":352769.26177292387,"d":"352,769"}},{"$f":"($A7-$A6)/365.25*(CQ6+(Main!$I13*Main!$D$3))*(1+Main!$I$4+VLOOKUP('Random Years'!CO7,'Hist Returns'!$A$12:$D$107,4,FALSE))","v":{"v":334255.0828010733,"d":"334,255"}},{"$f":"($A7-$A6)/365.25*(CR6+(Main!$I13*Main!$D$3))*(1+Main!$I$4+VLOOKUP('Random Years'!CP7,'Hist Returns'!$A$12:$D$107,4,FALSE))","v":{"v":236252.88417092437,"d":"236,253"}},{"$f":"($A7-$A6)/365.25*(CS6+(Main!$I13*Main!$D$3))*(1+Main!$I$4+VLOOKUP('Random Years'!CQ7,'Hist Returns'!$A$12:$D$107,4,FALSE))","v":{"v":266499.27342437004,"d":"266,499"}},{"$f":"($A7-$A6)/365.25*(CT6+(Main!$I13*Main!$D$3))*(1+Main!$I$4+VLOOKUP('Random Years'!CR7,'Hist Returns'!$A$12:$D$107,4,FALSE))","v":{"v":265208.32809788664,"d":"265,208"}},{"$f":"($A7-$A6)/365.25*(CU6+(Main!$I13*Main!$D$3))*(1+Main!$I$4+VLOOKUP('Random Years'!CS7,'Hist Returns'!$A$12:$D$107,4,FALSE))","v":{"v":594366.9004514917,"d":"594,367"}},{"$f":"($A7-$A6)/365.25*(CV6+(Main!$I13*Main!$D$3))*(1+Main!$I$4+VLOOKUP('Random Years'!CT7,'Hist Returns'!$A$12:$D$107,4,FALSE))","v":{"v":211223.10036699672,"d":"211,223"}},{"$f":"($A7-$A6)/365.25*(CW6+(Main!$I13*Main!$D$3))*(1+Main!$I$4+VLOOKUP('Random Years'!CU7,'Hist Returns'!$A$12:$D$107,4,FALSE))","v":{"v":302818.61463960307,"d":"302,819"}},{"$f":"($A7-$A6)/365.25*(CX6+(Main!$I13*Main!$D$3))*(1+Main!$I$4+VLOOKUP('Random Years'!CV7,'Hist Returns'!$A$12:$D$107,4,FALSE))","v":{"v":259840.8167205718,"d":"259,841"}}]
[{"$f":"Main!A14","v":"2029-12-30"},{"$f":"Main!B14","v":75},{"$f":"($A8-$A7)/365.25*(C7+(Main!$I14*Main!$D$3))*(1+Main!$I$4+VLOOKUP('Random Years'!A8,'Hist Returns'!$A$12:$D$107,4,FALSE))","v":{"v":292001.7465136387,"d":"292,002"}},{"$f":"($A8-$A7)/365.25*(D7+(Main!$I14*Main!$D$3))*(1+Main!$I$4+VLOOKUP('Random Years'!B8,'Hist Returns'!$A$12:$D$107,4,FALSE))","v":{"v":359853.5345869315,"d":"359,854"}},{"$f":"($A8-$A7)/365.25*(E7+(Main!$I14*Main!$D$3))*(1+Main!$I$4+VLOOKUP('Random Years'!C8,'Hist Returns'!$A$12:$D$107,4,FALSE))","v":{"v":210070.25473205507,"d":"210,070"}},{"$f":"($A8-$A7)/365.25*(F7+(Main!$I14*Main!$D$3))*(1+Main!$I$4+VLOOKUP('Random Years'!D8,'Hist Returns'!$A$12:$D$107,4,FALSE))","v":{"v":464861.52208255284,"d":"464,862"}},{"$f":"($A8-$A7)/365.25*(G7+(Main!$I14*Main!$D$3))*(1+Main!$I$4+VLOOKUP('Random Years'!E8,'Hist Returns'!$A$12:$D$107,4,FALSE))","v":{"v":302249.9852719564,"d":"302,250"}},{"$f":"($A8-$A7)/365.25*(H7+(Main!$I14*Main!$D$3))*(1+Main!$I$4+VLOOKUP('Random Years'!F8,'Hist Returns'!$A$12:$D$107,4,FALSE))","v":{"v":337379.42149502295,"d":"337,379"}},{"$f":"($A8-$A7)/365.25*(I7+(Main!$I14*Main!$D$3))*(1+Main!$I$4+VLOOKUP('Random Years'!G8,'Hist Returns'!$A$12:$D$107,4,FALSE))","v":{"v":322833.927824859,"d":"322,834"}},{"$f":"($A8-$A7)/365.25*(J7+(Main!$I14*Main!$D$3))*(1+Main!$I$4+VLOOKUP('Random Years'!H8,'Hist Returns'!$A$12:$D$107,4,FALSE))","v":{"v":567635.0713512128,"d":"567,635"}},{"$f":"($A8-$A7)/365.25*(K7+(Main!$I14*Main!$D$3))*(1+Main!$I$4+VLOOKUP('Random Years'!I8,'Hist Returns'!$A$12:$D$107,4,FALSE))","v":{"v":431714.3755028859,"d":"431,714"}},{"$f":"($A8-$A7)/365.25*(L7+(Main!$I14*Main!$D$3))*(1+Main!$I$4+VLOOKUP('Random Years'!J8,'Hist Returns'!$A$12:$D$107,4,FALSE))","v":{"v":337745.58902183094,"d":"337,746"}},{"$f":"($A8-$A7)/365.25*(M7+(Main!$I14*Main!$D$3))*(1+Main!$I$4+VLOOKUP('Random Years'!K8,'Hist Returns'!$A$12:$D$107,4,FALSE))","v":{"v":262633.79780995555,"d":"262,634"}},{"$f":"($A8-$A7)/365.25*(N7+(Main!$I14*Main!$D$3))*(1+Main!$I$4+VLOOKUP('Random Years'!L8,'Hist Returns'!$A$12:$D$107,4,FALSE))","v":{"v":323977.7859425439,"d":"323,978"}},{"$f":"($A8-$A7)/365.25*(O7+(Main!$I14*Main!$D$3))*(1+Main!$I$4+VLOOKUP('Random Years'!M8,'Hist Returns'!$A$12:$D$107,4,FALSE))","v":{"v":435630.6200210228,"d":"435,631"}},{"$f":"($A8-$A7)/365.25*(P7+(Main!$I14*Main!$D$3))*(1+Main!$I$4+VLOOKUP('Random Years'!N8,'Hist Returns'!$A$12:$D$107,4,FALSE))","v":{"v":336710.0325584349,"d":"336,710"}},{"$f":"($A8-$A7)/365.25*(Q7+(Main!$I14*Main!$D$3))*(1+Main!$I$4+VLOOKUP('Random Years'!O8,'Hist Returns'!$A$12:$D$107,4,FALSE))","v":{"v":361196.38586159464,"d":"361,196"}},{"$f":"($A8-$A7)/365.25*(R7+(Main!$I14*Main!$D$3))*(1+Main!$I$4+VLOOKUP('Random Years'!P8,'Hist Returns'!$A$12:$D$107,4,FALSE))","v":{"v":290461.28938994283,"d":"290,461"}},{"$f":"($A8-$A7)/365.25*(S7+(Main!$I14*Main!$D$3))*(1+Main!$I$4+VLOOKUP('Random Years'!Q8,'Hist Returns'!$A$12:$D$107,4,FALSE))","v":{"v":271059.9321762139,"d":"271,060"}},{"$f":"($A8-$A7)/365.25*(T7+(Main!$I14*Main!$D$3))*(1+Main!$I$4+VLOOKUP('Random Years'!R8,'Hist Returns'!$A$12:$D$107,4,FALSE))","v":{"v":371027.7002756821,"d":"371,028"}},{"$f":"($A8-$A7)/365.25*(U7+(Main!$I14*Main!$D$3))*(1+Main!$I$4+VLOOKUP('Random Years'!S8,'Hist Returns'!$A$12:$D$107,4,FALSE))","v":{"v":410344.3735282961,"d":"410,344"}},{"$f":"($A8-$A7)/365.25*(V7+(Main!$I14*Main!$D$3))*(1+Main!$I$4+VLOOKUP('Random Years'!T8,'Hist Returns'!$A$12:$D$107,4,FALSE))","v":{"v":347303.69841259054,"d":"347,304"}},{"$f":"($A8-$A7)/365.25*(W7+(Main!$I14*Main!$D$3))*(1+Main!$I$4+VLOOKUP('Random Years'!U8,'Hist Returns'!$A$12:$D$107,4,FALSE))","v":{"v":282763.8564381462,"d":"282,764"}},{"$f":"($A8-$A7)/365.25*(X7+(Main!$I14*Main!$D$3))*(1+Main!$I$4+VLOOKUP('Random Years'!V8,'Hist Returns'!$A$12:$D$107,4,FALSE))","v":{"v":303511.49204332725,"d":"303,511"}},{"$f":"($A8-$A7)/365.25*(Y7+(Main!$I14*Main!$D$3))*(1+Main!$I$4+VLOOKUP('Random Years'!W8,'Hist Returns'!$A$12:$D$107,4,FALSE))","v":{"v":189436.91433039584,"d":"189,437"}},{"$f":"($A8-$A7)/365.25*(Z7+(Main!$I14*Main!$D$3))*(1+Main!$I$4+VLOOKUP('Random Years'!X8,'Hist Returns'!$A$12:$D$107,4,FALSE))","v":{"v":476204.3402432393,"d":"476,204"}},{"$f":"($A8-$A7)/365.25*(AA7+(Main!$I14*Main!$D$3))*(1+Main!$I$4+VLOOKUP('Random Years'!Y8,'Hist Returns'!$A$12:$D$107,4,FALSE))","v":{"v":317032.88131938194,"d":"317,033"}},{"$f":"($A8-$A7)/365.25*(AB7+(Main!$I14*Main!$D$3))*(1+Main!$I$4+VLOOKUP('Random Years'!Z8,'Hist Returns'!$A$12:$D$107,4,FALSE))","v":{"v":377441.5989354803,"d":"377,442"}},{"$f":"($A8-$A7)/365.25*(AC7+(Main!$I14*Main!$D$3))*(1+Main!$I$4+VLOOKUP('Random Years'!AA8,'Hist Returns'!$A$12:$D$107,4,FALSE))","v":{"v":259898.45008522976,"d":"259,898"}},{"$f":"($A8-$A7)/365.25*(AD7+(Main!$I14*Main!$D$3))*(1+Main!$I$4+VLOOKUP('Random Years'!AB8,'Hist Returns'!$A$12:$D$107,4,FALSE))","v":{"v":352796.405337117,"d":"352,796"}},{"$f":"($A8-$A7)/365.25*(AE7+(Main!$I14*Main!$D$3))*(1+Main!$I$4+VLOOKUP('Random Years'!AC8,'Hist Returns'!$A$12:$D$107,4,FALSE))","v":{"v":285189.9511330215,"d":"285,190"}},{"$f":"($A8-$A7)/365.25*(AF7+(Main!$I14*Main!$D$3))*(1+Main!$I$4+VLOOKUP('Random Years'!AD8,'Hist Returns'!$A$12:$D$107,4,FALSE))","v":{"v":356930.26558023127,"d":"356,930"}},{"$f":"($A8-$A7)/365.25*(AG7+(Main!$I14*Main!$D$3))*(1+Main!$I$4+VLOOKUP('Random Years'!AE8,'Hist Returns'!$A$12:$D$107,4,FALSE))","v":{"v":326004.1925484543,"d":"326,004"}},{"$f":"($A8-$A7)/365.25*(AH7+(Main!$I14*Main!$D$3))*(1+Main!$I$4+VLOOKUP('Random Years'!AF8,'Hist Returns'!$A$12:$D$107,4,FALSE))","v":{"v":281192.187089208,"d":"281,192"}},{"$f":"($A8-$A7)/365.25*(AI7+(Main!$I14*Main!$D$3))*(1+Main!$I$4+VLOOKUP('Random Years'!AG8,'Hist Returns'!$A$12:$D$107,4,FALSE))","v":{"v":325611.6495116068,"d":"325,612"}},{"$f":"($A8-$A7)/365.25*(AJ7+(Main!$I14*Main!$D$3))*(1+Main!$I$4+VLOOKUP('Random Years'!AH8,'Hist Returns'!$A$12:$D$107,4,FALSE))","v":{"v":407971.04809682484,"d":"407,971"}},{"$f":"($A8-$A7)/365.25*(AK7+(Main!$I14*Main!$D$3))*(1+Main!$I$4+VLOOKUP('Random Years'!AI8,'Hist Returns'!$A$12:$D$107,4,FALSE))","v":{"v":437823.01384871587,"d":"437,823"}},{"$f":"($A8-$A7)/365.25*(AL7+(Main!$I14*Main!$D$3))*(1+Main!$I$4+VLOOKUP('Random Years'!AJ8,'Hist Returns'!$A$12:$D$107,4,FALSE))","v":{"v":282443.7729720363,"d":"282,444"}},{"$f":"($A8-$A7)/365.25*(AM7+(Main!$I14*Main!$D$3))*(1+Main!$I$4+VLOOKUP('Random Years'!AK8,'Hist Returns'!$A$12:$D$107,4,FALSE))","v":{"v":315121.3747323446,"d":"315,121"}},{"$f":"($A8-$A7)/365.25*(AN7+(Main!$I14*Main!$D$3))*(1+Main!$I$4+VLOOKUP('Random Years'!AL8,'Hist Returns'!$A$12:$D$107,4,FALSE))","v":{"v":308064.9241037945,"d":"308,065"}},{"$f":"($A8-$A7)/365.25*(AO7+(Main!$I14*Main!$D$3))*(1+Main!$I$4+VLOOKUP('Random Years'!AM8,'Hist Returns'!$A$12:$D$107,4,FALSE))","v":{"v":260689.89439783883,"d":"260,690"}},{"$f":"($A8-$A7)/365.25*(AP7+(Main!$I14*Main!$D$3))*(1+Main!$I$4+VLOOKUP('Random Years'!AN8,'Hist Returns'!$A$12:$D$107,4,FALSE))","v":{"v":317625.20733952464,"d":"317,625"}},{"$f":"($A8-$A7)/365.25*(AQ7+(Main!$I14*Main!$D$3))*(1+Main!$I$4+VLOOKUP('Random Years'!AO8,'Hist Returns'!$A$12:$D$107,4,FALSE))","v":{"v":233071.7850737042,"d":"233,072"}},{"$f":"($A8-$A7)/365.25*(AR7+(Main!$I14*Main!$D$3))*(1+Main!$I$4+VLOOKUP('Random Years'!AP8,'Hist Returns'!$A$12:$D$107,4,FALSE))","v":{"v":265764.539317944,"d":"265,765"}},{"$f":"($A8-$A7)/365.25*(AS7+(Main!$I14*Main!$D$3))*(1+Main!$I$4+VLOOKUP('Random Years'!AQ8,'Hist Returns'!$A$12:$D$107,4,FALSE))","v":{"v":461244.40445735987,"d":"461,244"}},{"$f":"($A8-$A7)/365.25*(AT7+(Main!$I14*Main!$D$3))*(1+Main!$I$4+VLOOKUP('Random Years'!AR8,'Hist Returns'!$A$12:$D$107,4,FALSE))","v":{"v":376214.3792107861,"d":"376,214"}},{"$f":"($A8-$A7)/365.25*(AU7+(Main!$I14*Main!$D$3))*(1+Main!$I$4+VLOOKUP('Random Years'!AS8,'Hist Returns'!$A$12:$D$107,4,FALSE))","v":{"v":274885.75239915005,"d":"274,886"}},{"$f":"($A8-$A7)/365.25*(AV7+(Main!$I14*Main!$D$3))*(1+Main!$I$4+VLOOKUP('Random Years'!AT8,'Hist Returns'!$A$12:$D$107,4,FALSE))","v":{"v":318648.2005789243,"d":"318,648"}},{"$f":"($A8-$A7)/365.25*(AW7+(Main!$I14*Main!$D$3))*(1+Main!$I$4+VLOOKUP('Random Years'!AU8,'Hist Returns'!$A$12:$D$107,4,FALSE))","v":{"v":431416.4735083269,"d":"431,416"}},{"$f":"($A8-$A7)/365.25*(AX7+(Main!$I14*Main!$D$3))*(1+Main!$I$4+VLOOKUP('Random Years'!AV8,'Hist Returns'!$A$12:$D$107,4,FALSE))","v":{"v":257826.69801632164,"d":"257,827"}},{"$f":"($A8-$A7)/365.25*(AY7+(Main!$I14*Main!$D$3))*(1+Main!$I$4+VLOOKUP('Random Years'!AW8,'Hist Returns'!$A$12:$D$107,4,FALSE))","v":{"v":269653.4063107172,"d":"269,653"}},{"$f":"($A8-$A7)/365.25*(AZ7+(Main!$I14*Main!$D$3))*(1+Main!$I$4+VLOOKUP('Random Years'!AX8,'Hist Returns'!$A$12:$D$107,4,FALSE))","v":{"v":278831.3161617437,"d":"278,831"}},{"$f":"($A8-$A7)/365.25*(BA7+(Main!$I14*Main!$D$3))*(1+Main!$I$4+VLOOKUP('Random Years'!AY8,'Hist Returns'!$A$12:$D$107,4,FALSE))","v":{"v":274954.2149142237,"d":"274,954"}},{"$f":"($A8-$A7)/365.25*(BB7+(Main!$I14*Main!$D$3))*(1+Main!$I$4+VLOOKUP('Random Years'!AZ8,'Hist Returns'!$A$12:$D$107,4,FALSE))","v":{"v":296363.814981229,"d":"296,364"}},{"$f":"($A8-$A7)/365.25*(BC7+(Main!$I14*Main!$D$3))*(1+Main!$I$4+VLOOKUP('Random Years'!BA8,'Hist Returns'!$A$12:$D$107,4,FALSE))","v":{"v":381287.8879271629,"d":"381,288"}},{"$f":"($A8-$A7)/365.25*(BD7+(Main!$I14*Main!$D$3))*(1+Main!$I$4+VLOOKUP('Random Years'!BB8,'Hist Returns'!$A$12:$D$107,4,FALSE))","v":{"v":238758.1177067037,"d":"238,758"}},{"$f":"($A8-$A7)/365.25*(BE7+(Main!$I14*Main!$D$3))*(1+Main!$I$4+VLOOKUP('Random Years'!BC8,'Hist Returns'!$A$12:$D$107,4,FALSE))","v":{"v":323330.7938088237,"d":"323,331"}},{"$f":"($A8-$A7)/365.25*(BF7+(Main!$I14*Main!$D$3))*(1+Main!$I$4+VLOOKUP('Random Years'!BD8,'Hist Returns'!$A$12:$D$107,4,FALSE))","v":{"v":445459.5461691902,"d":"445,460"}},{"$f":"($A8-$A7)/365.25*(BG7+(Main!$I14*Main!$D$3))*(1+Main!$I$4+VLOOKUP('Random Years'!BE8,'Hist Returns'!$A$12:$D$107,4,FALSE))","v":{"v":203759.96013969232,"d":"203,760"}},{"$f":"($A8-$A7)/365.25*(BH7+(Main!$I14*Main!$D$3))*(1+Main!$I$4+VLOOKUP('Random Years'!BF8,'Hist Returns'!$A$12:$D$107,4,FALSE))","v":{"v":296820.7016471504,"d":"296,821"}},{"$f":"($A8-$A7)/365.25*(BI7+(Main!$I14*Main!$D$3))*(1+Main!$I$4+VLOOKUP('Random Years'!BG8,'Hist Returns'!$A$12:$D$107,4,FALSE))","v":{"v":352859.0002917232,"d":"352,859"}},{"$f":"($A8-$A7)/365.25*(BJ7+(Main!$I14*Main!$D$3))*(1+Main!$I$4+VLOOKUP('Random Years'!BH8,'Hist Returns'!$A$12:$D$107,4,FALSE))","v":{"v":292981.06949974946,"d":"292,981"}},{"$f":"($A8-$A7)/365.25*(BK7+(Main!$I14*Main!$D$3))*(1+Main!$I$4+VLOOKUP('Random Years'!BI8,'Hist Returns'!$A$12:$D$107,4,FALSE))","v":{"v":315803.5378046509,"d":"315,804"}},{"$f":"($A8-$A7)/365.25*(BL7+(Main!$I14*Main!$D$3))*(1+Main!$I$4+VLOOKUP('Random Years'!BJ8,'Hist Returns'!$A$12:$D$107,4,FALSE))","v":{"v":321339.32173883525,"d":"321,339"}},{"$f":"($A8-$A7)/365.25*(BM7+(Main!$I14*Main!$D$3))*(1+Main!$I$4+VLOOKUP('Random Years'!BK8,'Hist Returns'!$A$12:$D$107,4,FALSE))","v":{"v":234502.13620897755,"d":"234,502"}},{"$f":"($A8-$A7)/365.25*(BN7+(Main!$I14*Main!$D$3))*(1+Main!$I$4+VLOOKUP('Random Years'!BL8,'Hist Returns'!$A$12:$D$107,4,FALSE))","v":{"v":385339.9987916743,"d":"385,340"}},{"$f":"($A8-$A7)/365.25*(BO7+(Main!$I14*Main!$D$3))*(1+Main!$I$4+VLOOKUP('Random Years'!BM8,'Hist Returns'!$A$12:$D$107,4,FALSE))","v":{"v":203396.5964359871,"d":"203,397"}},{"$f":"($A8-$A7)/365.25*(BP7+(Main!$I14*Main!$D$3))*(1+Main!$I$4+VLOOKUP('Random Years'!BN8,'Hist Returns'!$A$12:$D$107,4,FALSE))","v":{"v":281753.10856199043,"d":"281,753"}},{"$f":"($A8-$A7)/365.25*(BQ7+(Main!$I14*Main!$D$3))*(1+Main!$I$4+VLOOKUP('Random Years'!BO8,'Hist Returns'!$A$12:$D$107,4,FALSE))","v":{"v":348524.117696729,"d":"348,524"}},{"$f":"($A8-$A7)/365.25*(BR7+(Main!$I14*Main!$D$3))*(1+Main!$I$4+VLOOKUP('Random Years'!BP8,'Hist Returns'!$A$12:$D$107,4,FALSE))","v":{"v":230268.47228006204,"d":"230,268"}},{"$f":"($A8-$A7)/365.25*(BS7+(Main!$I14*Main!$D$3))*(1+Main!$I$4+VLOOKUP('Random Years'!BQ8,'Hist Returns'!$A$12:$D$107,4,FALSE))","v":{"v":336821.70308992104,"d":"336,822"}},{"$f":"($A8-$A7)/365.25*(BT7+(Main!$I14*Main!$D$3))*(1+Main!$I$4+VLOOKUP('Random Years'!BR8,'Hist Returns'!$A$12:$D$107,4,FALSE))","v":{"v":218459.51059326198,"d":"218,460"}},{"$f":"($A8-$A7)/365.25*(BU7+(Main!$I14*Main!$D$3))*(1+Main!$I$4+VLOOKUP('Random Years'!BS8,'Hist Returns'!$A$12:$D$107,4,FALSE))","v":{"v":453208.33395670826,"d":"453,208"}},{"$f":"($A8-$A7)/365.25*(BV7+(Main!$I14*Main!$D$3))*(1+Main!$I$4+VLOOKUP('Random Years'!BT8,'Hist Returns'!$A$12:$D$107,4,FALSE))","v":{"v":188570.80139212616,"d":"188,571"}},{"$f":"($A8-$A7)/365.25*(BW7+(Main!$I14*Main!$D$3))*(1+Main!$I$4+VLOOKUP('Random Years'!BU8,'Hist Returns'!$A$12:$D$107,4,FALSE))","v":{"v":332072.9275784596,"d":"332,073"}},{"$f":"($A8-$A7)/365.25*(BX7+(Main!$I14*Main!$D$3))*(1+Main!$I$4+VLOOKUP('Random Years'!BV8,'Hist Returns'!$A$12:$D$107,4,FALSE))","v":{"v":363519.6563029125,"d":"363,520"}},{"$f":"($A8-$A7)/365.25*(BY7+(Main!$I14*Main!$D$3))*(1+Main!$I$4+VLOOKUP('Random Years'!BW8,'Hist Returns'!$A$12:$D$107,4,FALSE))","v":{"v":276835.1806098065,"d":"276,835"}},{"$f":"($A8-$A7)/365.25*(BZ7+(Main!$I14*Main!$D$3))*(1+Main!$I$4+VLOOKUP('Random Years'!BX8,'Hist Returns'!$A$12:$D$107,4,FALSE))","v":{"v":247794.63811317072,"d":"247,795"}},{"$f":"($A8-$A7)/365.25*(CA7+(Main!$I14*Main!$D$3))*(1+Main!$I$4+VLOOKUP('Random Years'!BY8,'Hist Returns'!$A$12:$D$107,4,FALSE))","v":{"v":451343.98196518054,"d":"451,344"}},{"$f":"($A8-$A7)/365.25*(CB7+(Main!$I14*Main!$D$3))*(1+Main!$I$4+VLOOKUP('Random Years'!BZ8,'Hist Returns'!$A$12:$D$107,4,FALSE))","v":{"v":351416.07023493916,"d":"351,416"}},{"$f":"($A8-$A7)/365.25*(CC7+(Main!$I14*Main!$D$3))*(1+Main!$I$4+VLOOKUP('Random Years'!CA8,'Hist Returns'!$A$12:$D$107,4,FALSE))","v":{"v":342661.7148338815,"d":"342,662"}},{"$f":"($A8-$A7)/365.25*(CD7+(Main!$I14*Main!$D$3))*(1+Main!$I$4+VLOOKUP('Random Years'!CB8,'Hist Returns'!$A$12:$D$107,4,FALSE))","v":{"v":394922.173161093,"d":"394,922"}},{"$f":"($A8-$A7)/365.25*(CE7+(Main!$I14*Main!$D$3))*(1+Main!$I$4+VLOOKUP('Random Years'!CC8,'Hist Returns'!$A$12:$D$107,4,FALSE))","v":{"v":334693.06306049763,"d":"334,693"}},{"$f":"($A8-$A7)/365.25*(CF7+(Main!$I14*Main!$D$3))*(1+Main!$I$4+VLOOKUP('Random Years'!CD8,'Hist Returns'!$A$12:$D$107,4,FALSE))","v":{"v":392734.54197449813,"d":"392,735"}},{"$f":"($A8-$A7)/365.25*(CG7+(Main!$I14*Main!$D$3))*(1+Main!$I$4+VLOOKUP('Random Years'!CE8,'Hist Returns'!$A$12:$D$107,4,FALSE))","v":{"v":292598.2988086567,"d":"292,598"}},{"$f":"($A8-$A7)/365.25*(CH7+(Main!$I14*Main!$D$3))*(1+Main!$I$4+VLOOKUP('Random Years'!CF8,'Hist Returns'!$A$12:$D$107,4,FALSE))","v":{"v":405369.9475838744,"d":"405,370"}},{"$f":"($A8-$A7)/365.25*(CI7+(Main!$I14*Main!$D$3))*(1+Main!$I$4+VLOOKUP('Random Years'!CG8,'Hist Returns'!$A$12:$D$107,4,FALSE))","v":{"v":534677.4497340098,"d":"534,677"}},{"$f":"($A8-$A7)/365.25*(CJ7+(Main!$I14*Main!$D$3))*(1+Main!$I$4+VLOOKUP('Random Years'!CH8,'Hist Returns'!$A$12:$D$107,4,FALSE))","v":{"v":436656.4701552092,"d":"436,656"}},{"$f":"($A8-$A7)/365.25*(CK7+(Main!$I14*Main!$D$3))*(1+Main!$I$4+VLOOKUP('Random Years'!CI8,'Hist Returns'!$A$12:$D$107,4,FALSE))","v":{"v":337930.4251392067,"d":"337,930"}},{"$f":"($A8-$A7)/365.25*(CL7+(Main!$I14*Main!$D$3))*(1+Main!$I$4+VLOOKUP('Random Years'!CJ8,'Hist Returns'!$A$12:$D$107,4,FALSE))","v":{"v":387089.78043225606,"d":"387,090"}},{"$f":"($A8-$A7)/365.25*(CM7+(Main!$I14*Main!$D$3))*(1+Main!$I$4+VLOOKUP('Random Years'!CK8,'Hist Returns'!$A$12:$D$107,4,FALSE))","v":{"v":338894.3135788522,"d":"338,894"}},{"$f":"($A8-$A7)/365.25*(CN7+(Main!$I14*Main!$D$3))*(1+Main!$I$4+VLOOKUP('Random Years'!CL8,'Hist Returns'!$A$12:$D$107,4,FALSE))","v":{"v":324830.15013705863,"d":"324,830"}},{"$f":"($A8-$A7)/365.25*(CO7+(Main!$I14*Main!$D$3))*(1+Main!$I$4+VLOOKUP('Random Years'!CM8,'Hist Returns'!$A$12:$D$107,4,FALSE))","v":{"v":420645.2662163137,"d":"420,645"}},{"$f":"($A8-$A7)/365.25*(CP7+(Main!$I14*Main!$D$3))*(1+Main!$I$4+VLOOKUP('Random Years'!CN8,'Hist Returns'!$A$12:$D$107,4,FALSE))","v":{"v":350819.3725978187,"d":"350,819"}},{"$f":"($A8-$A7)/365.25*(CQ7+(Main!$I14*Main!$D$3))*(1+Main!$I$4+VLOOKUP('Random Years'!CO8,'Hist Returns'!$A$12:$D$107,4,FALSE))","v":{"v":347041.7529501981,"d":"347,042"}},{"$f":"($A8-$A7)/365.25*(CR7+(Main!$I14*Main!$D$3))*(1+Main!$I$4+VLOOKUP('Random Years'!CP8,'Hist Returns'!$A$12:$D$107,4,FALSE))","v":{"v":232618.34560496573,"d":"232,618"}},{"$f":"($A8-$A7)/365.25*(CS7+(Main!$I14*Main!$D$3))*(1+Main!$I$4+VLOOKUP('Random Years'!CQ8,'Hist Returns'!$A$12:$D$107,4,FALSE))","v":{"v":270669.64028080914,"d":"270,670"}},{"$f":"($A8-$A7)/365.25*(CT7+(Main!$I14*Main!$D$3))*(1+Main!$I$4+VLOOKUP('Random Years'!CR8,'Hist Returns'!$A$12:$D$107,4,FALSE))","v":{"v":216416.83243212613,"d":"216,417"}},{"$f":"($A8-$A7)/365.25*(CU7+(Main!$I14*Main!$D$3))*(1+Main!$I$4+VLOOKUP('Random Years'!CS8,'Hist Returns'!$A$12:$D$107,4,FALSE))","v":{"v":594533.2669472173,"d":"594,533"}},{"$f":"($A8-$A7)/365.25*(CV7+(Main!$I14*Main!$D$3))*(1+Main!$I$4+VLOOKUP('Random Years'!CT8,'Hist Returns'!$A$12:$D$107,4,FALSE))","v":{"v":210214.68886435163,"d":"210,215"}},{"$f":"($A8-$A7)/365.25*(CW7+(Main!$I14*Main!$D$3))*(1+Main!$I$4+VLOOKUP('Random Years'!CU8,'Hist Returns'!$A$12:$D$107,4,FALSE))","v":{"v":302980.0945294124,"d":"302,980"}},{"$f":"($A8-$A7)/365.25*(CX7+(Main!$I14*Main!$D$3))*(1+Main!$I$4+VLOOKUP('Random Years'!CV8,'Hist Returns'!$A$12:$D$107,4,FALSE))","v":{"v":245076.19923505042,"d":"245,076"}}]
[{"$f":"Main!A15","v":"2030-12-30"},{"$f":"Main!B15","v":76},{"$f":"($A9-$A8)/365.25*(C8+(Main!$I15*Main!$D$3))*(1+Main!$I$4+VLOOKUP('Random Years'!A9,'Hist Returns'!$A$12:$D$107,4,FALSE))","v":{"v":385709.32208869414,"d":"385,709"}},{"$f":"($A9-$A8)/365.25*(D8+(Main!$I15*Main!$D$3))*(1+Main!$I$4+VLOOKUP('Random Years'!B9,'Hist Returns'!$A$12:$D$107,4,FALSE))","v":{"v":374922.7058241296,"d":"374,923"}},{"$f":"($A9-$A8)/365.25*(E8+(Main!$I15*Main!$D$3))*(1+Main!$I$4+VLOOKUP('Random Years'!C9,'Hist Returns'!$A$12:$D$107,4,FALSE))","v":{"v":203017.3433838244,"d":"203,017"}},{"$f":"($A9-$A8)/365.25*(F8+(Main!$I15*Main!$D$3))*(1+Main!$I$4+VLOOKUP('Random Years'!D9,'Hist Returns'!$A$12:$D$107,4,FALSE))","v":{"v":471746.1647025222,"d":"471,746"}},{"$f":"($A9-$A8)/365.25*(G8+(Main!$I15*Main!$D$3))*(1+Main!$I$4+VLOOKUP('Random Years'!E9,'Hist Returns'!$A$12:$D$107,4,FALSE))","v":{"v":326097.2527822186,"d":"326,097"}},{"$f":"($A9-$A8)/365.25*(H8+(Main!$I15*Main!$D$3))*(1+Main!$I$4+VLOOKUP('Random Years'!F9,'Hist Returns'!$A$12:$D$107,4,FALSE))","v":{"v":328968.8633431044,"d":"328,969"}},{"$f":"($A9-$A8)/365.25*(I8+(Main!$I15*Main!$D$3))*(1+Main!$I$4+VLOOKUP('Random Years'!G9,'Hist Returns'!$A$12:$D$107,4,FALSE))","v":{"v":321169.40732513065,"d":"321,169"}},{"$f":"($A9-$A8)/365.25*(J8+(Main!$I15*Main!$D$3))*(1+Main!$I$4+VLOOKUP('Random Years'!H9,'Hist Returns'!$A$12:$D$107,4,FALSE))","v":{"v":554413.8746176193,"d":"554,414"}},{"$f":"($A9-$A8)/365.25*(K8+(Main!$I15*Main!$D$3))*(1+Main!$I$4+VLOOKUP('Random Years'!I9,'Hist Returns'!$A$12:$D$107,4,FALSE))","v":{"v":506116.755314203,"d":"506,117"}},{"$f":"($A9-$A8)/365.25*(L8+(Main!$I15*Main!$D$3))*(1+Main!$I$4+VLOOKUP('Random Years'!J9,'Hist Returns'!$A$12:$D$107,4,FALSE))","v":{"v":354283.545104584,"d":"354,284"}},{"$f":"($A9-$A8)/365.25*(M8+(Main!$I15*Main!$D$3))*(1+Main!$I$4+VLOOKUP('Random Years'!K9,'Hist Returns'!$A$12:$D$107,4,FALSE))","v":{"v":255175.0861845276,"d":"255,175"}},{"$f":"($A9-$A8)/365.25*(N8+(Main!$I15*Main!$D$3))*(1+Main!$I$4+VLOOKUP('Random Years'!L9,'Hist Returns'!$A$12:$D$107,4,FALSE))","v":{"v":327795.26993553335,"d":"327,795"}},{"$f":"($A9-$A8)/365.25*(O8+(Main!$I15*Main!$D$3))*(1+Main!$I$4+VLOOKUP('Random Years'!M9,'Hist Returns'!$A$12:$D$107,4,FALSE))","v":{"v":440141.85075630865,"d":"440,142"}},{"$f":"($A9-$A8)/365.25*(P8+(Main!$I15*Main!$D$3))*(1+Main!$I$4+VLOOKUP('Random Years'!N9,'Hist Returns'!$A$12:$D$107,4,FALSE))","v":{"v":341306.45862582355,"d":"341,306"}},{"$f":"($A9-$A8)/365.25*(Q8+(Main!$I15*Main!$D$3))*(1+Main!$I$4+VLOOKUP('Random Years'!O9,'Hist Returns'!$A$12:$D$107,4,FALSE))","v":{"v":367714.0170636242,"d":"367,714"}},{"$f":"($A9-$A8)/365.25*(R8+(Main!$I15*Main!$D$3))*(1+Main!$I$4+VLOOKUP('Random Years'!P9,'Hist Returns'!$A$12:$D$107,4,FALSE))","v":{"v":301618.3583897632,"d":"301,618"}},{"$f":"($A9-$A8)/365.25*(S8+(Main!$I15*Main!$D$3))*(1+Main!$I$4+VLOOKUP('Random Years'!Q9,'Hist Returns'!$A$12:$D$107,4,FALSE))","v":{"v":280651.4747428173,"d":"280,651"}},{"$f":"($A9-$A8)/365.25*(T8+(Main!$I15*Main!$D$3))*(1+Main!$I$4+VLOOKUP('Random Years'!R9,'Hist Returns'!$A$12:$D$107,4,FALSE))","v":{"v":374148.7183963387,"d":"374,149"}},{"$f":"($A9-$A8)/365.25*(U8+(Main!$I15*Main!$D$3))*(1+Main!$I$4+VLOOKUP('Random Years'!S9,'Hist Returns'!$A$12:$D$107,4,FALSE))","v":{"v":374940.7804686771,"d":"374,941"}},{"$f":"($A9-$A8)/365.25*(V8+(Main!$I15*Main!$D$3))*(1+Main!$I$4+VLOOKUP('Random Years'!T9,'Hist Returns'!$A$12:$D$107,4,FALSE))","v":{"v":348061.213792857,"d":"348,061"}},{"$f":"($A9-$A8)/365.25*(W8+(Main!$I15*Main!$D$3))*(1+Main!$I$4+VLOOKUP('Random Years'!U9,'Hist Returns'!$A$12:$D$107,4,FALSE))","v":{"v":349462.8311427153,"d":"349,463"}},{"$f":"($A9-$A8)/365.25*(X8+(Main!$I15*Main!$D$3))*(1+Main!$I$4+VLOOKUP('Random Years'!V9,'Hist Returns'!$A$12:$D$107,4,FALSE))","v":{"v":307917.70122409286,"d":"307,918"}},{"$f":"($A9-$A8)/365.25*(Y8+(Main!$I15*Main!$D$3))*(1+Main!$I$4+VLOOKUP('Random Years'!W9,'Hist Returns'!$A$12:$D$107,4,FALSE))","v":{"v":196356.09131040916,"d":"196,356"}},{"$f":"($A9-$A8)/365.25*(Z8+(Main!$I15*Main!$D$3))*(1+Main!$I$4+VLOOKUP('Random Years'!X9,'Hist Returns'!$A$12:$D$107,4,FALSE))","v":{"v":500122.6151052013,"d":"500,123"}},{"$f":"($A9-$A8)/365.25*(AA8+(Main!$I15*Main!$D$3))*(1+Main!$I$4+VLOOKUP('Random Years'!Y9,'Hist Returns'!$A$12:$D$107,4,FALSE))","v":{"v":325293.65634869837,"d":"325,294"}},{"$f":"($A9-$A8)/365.25*(AB8+(Main!$I15*Main!$D$3))*(1+Main!$I$4+VLOOKUP('Random Years'!Z9,'Hist Returns'!$A$12:$D$107,4,FALSE))","v":{"v":345592.1064913743,"d":"345,592"}},{"$f":"($A9-$A8)/365.25*(AC8+(Main!$I15*Main!$D$3))*(1+Main!$I$4+VLOOKUP('Random Years'!AA9,'Hist Returns'!$A$12:$D$107,4,FALSE))","v":{"v":251720.317724894,"d":"251,720"}},{"$f":"($A9-$A8)/365.25*(AD8+(Main!$I15*Main!$D$3))*(1+Main!$I$4+VLOOKUP('Random Years'!AB9,'Hist Returns'!$A$12:$D$107,4,FALSE))","v":{"v":333745.4253913382,"d":"333,745"}},{"$f":"($A9-$A8)/365.25*(AE8+(Main!$I15*Main!$D$3))*(1+Main!$I$4+VLOOKUP('Random Years'!AC9,'Hist Returns'!$A$12:$D$107,4,FALSE))","v":{"v":291737.27790121315,"d":"291,737"}},{"$f":"($A9-$A8)/365.25*(AF8+(Main!$I15*Main!$D$3))*(1+Main!$I$4+VLOOKUP('Random Years'!AD9,'Hist Returns'!$A$12:$D$107,4,FALSE))","v":{"v":349680.14360174123,"d":"349,680"}},{"$f":"($A9-$A8)/365.25*(AG8+(Main!$I15*Main!$D$3))*(1+Main!$I$4+VLOOKUP('Random Years'!AE9,'Hist Returns'!$A$12:$D$107,4,FALSE))","v":{"v":403166.95985227294,"d":"403,167"}},{"$f":"($A9-$A8)/365.25*(AH8+(Main!$I15*Main!$D$3))*(1+Main!$I$4+VLOOKUP('Random Years'!AF9,'Hist Returns'!$A$12:$D$107,4,FALSE))","v":{"v":308157.72971848276,"d":"308,158"}},{"$f":"($A9-$A8)/365.25*(AI8+(Main!$I15*Main!$D$3))*(1+Main!$I$4+VLOOKUP('Random Years'!AG9,'Hist Returns'!$A$12:$D$107,4,FALSE))","v":{"v":297960.17618475336,"d":"297,960"}},{"$f":"($A9-$A8)/365.25*(AJ8+(Main!$I15*Main!$D$3))*(1+Main!$I$4+VLOOKUP('Random Years'!AH9,'Hist Returns'!$A$12:$D$107,4,FALSE))","v":{"v":373648.79207407107,"d":"373,649"}},{"$f":"($A9-$A8)/365.25*(AK8+(Main!$I15*Main!$D$3))*(1+Main!$I$4+VLOOKUP('Random Years'!AI9,'Hist Returns'!$A$12:$D$107,4,FALSE))","v":{"v":455637.50153946853,"d":"455,638"}},{"$f":"($A9-$A8)/365.25*(AL8+(Main!$I15*Main!$D$3))*(1+Main!$I$4+VLOOKUP('Random Years'!AJ9,'Hist Returns'!$A$12:$D$107,4,FALSE))","v":{"v":308348.04633728485,"d":"308,348"}},{"$f":"($A9-$A8)/365.25*(AM8+(Main!$I15*Main!$D$3))*(1+Main!$I$4+VLOOKUP('Random Years'!AK9,'Hist Returns'!$A$12:$D$107,4,FALSE))","v":{"v":315618.5668121893,"d":"315,619"}},{"$f":"($A9-$A8)/365.25*(AN8+(Main!$I15*Main!$D$3))*(1+Main!$I$4+VLOOKUP('Random Years'!AL9,'Hist Returns'!$A$12:$D$107,4,FALSE))","v":{"v":348551.9680850256,"d":"348,552"}},{"$f":"($A9-$A8)/365.25*(AO8+(Main!$I15*Main!$D$3))*(1+Main!$I$4+VLOOKUP('Random Years'!AM9,'Hist Returns'!$A$12:$D$107,4,FALSE))","v":{"v":280367.46109838714,"d":"280,367"}},{"$f":"($A9-$A8)/365.25*(AP8+(Main!$I15*Main!$D$3))*(1+Main!$I$4+VLOOKUP('Random Years'!AN9,'Hist Returns'!$A$12:$D$107,4,FALSE))","v":{"v":327579.90581425355,"d":"327,580"}},{"$f":"($A9-$A8)/365.25*(AQ8+(Main!$I15*Main!$D$3))*(1+Main!$I$4+VLOOKUP('Random Years'!AO9,'Hist Returns'!$A$12:$D$107,4,FALSE))","v":{"v":221289.03651356412,"d":"221,289"}},{"$f":"($A9-$A8)/365.25*(AR8+(Main!$I15*Main!$D$3))*(1+Main!$I$4+VLOOKUP('Random Years'!AP9,'Hist Returns'!$A$12:$D$107,4,FALSE))","v":{"v":267600.6822354097,"d":"267,601"}},{"$f":"($A9-$A8)/365.25*(AS8+(Main!$I15*Main!$D$3))*(1+Main!$I$4+VLOOKUP('Random Years'!AQ9,'Hist Returns'!$A$12:$D$107,4,FALSE))","v":{"v":480969.2892414984,"d":"480,969"}},{"$f":"($A9-$A8)/365.25*(AT8+(Main!$I15*Main!$D$3))*(1+Main!$I$4+VLOOKUP('Random Years'!AR9,'Hist Returns'!$A$12:$D$107,4,FALSE))","v":{"v":390348.3777378555,"d":"390,348"}},{"$f":"($A9-$A8)/365.25*(AU8+(Main!$I15*Main!$D$3))*(1+Main!$I$4+VLOOKUP('Random Years'!AS9,'Hist Returns'!$A$12:$D$107,4,FALSE))","v":{"v":281010.70786541136,"d":"281,011"}},{"$f":"($A9-$A8)/365.25*(AV8+(Main!$I15*Main!$D$3))*(1+Main!$I$4+VLOOKUP('Random Years'!AT9,'Hist Returns'!$A$12:$D$107,4,FALSE))","v":{"v":352960.81551641703,"d":"352,961"}},{"$f":"($A9-$A8)/365.25*(AW8+(Main!$I15*Main!$D$3))*(1+Main!$I$4+VLOOKUP('Random Years'!AU9,'Hist Returns'!$A$12:$D$107,4,FALSE))","v":{"v":438158.287283008,"d":"438,158"}},{"$f":"($A9-$A8)/365.25*(AX8+(Main!$I15*Main!$D$3))*(1+Main!$I$4+VLOOKUP('Random Years'!AV9,'Hist Returns'!$A$12:$D$107,4,FALSE))","v":{"v":322151.18978530157,"d":"322,151"}},{"$f":"($A9-$A8)/365.25*(AY8+(Main!$I15*Main!$D$3))*(1+Main!$I$4+VLOOKUP('Random Years'!AW9,'Hist Returns'!$A$12:$D$107,4,FALSE))","v":{"v":293175.4805519465,"d":"293,175"}},{"$f":"($A9-$A8)/365.25*(AZ8+(Main!$I15*Main!$D$3))*(1+Main!$I$4+VLOOKUP('Random Years'!AX9,'Hist Returns'!$A$12:$D$107,4,FALSE))","v":{"v":289700.9781215629,"d":"289,701"}},{"$f":"($A9-$A8)/365.25*(BA8+(Main!$I15*Main!$D$3))*(1+Main!$I$4+VLOOKUP('Random Years'!AY9,'Hist Returns'!$A$12:$D$107,4,FALSE))","v":{"v":248486.37225428084,"d":"248,486"}},{"$f":"($A9-$A8)/365.25*(BB8+(Main!$I15*Main!$D$3))*(1+Main!$I$4+VLOOKUP('Random Years'!AZ9,'Hist Returns'!$A$12:$D$107,4,FALSE))","v":{"v":297233.75814669183,"d":"297,234"}},{"$f":"($A9-$A8)/365.25*(BC8+(Main!$I15*Main!$D$3))*(1+Main!$I$4+VLOOKUP('Random Years'!BA9,'Hist Returns'!$A$12:$D$107,4,FALSE))","v":{"v":378515.8568105483,"d":"378,516"}},{"$f":"($A9-$A8)/365.25*(BD8+(Main!$I15*Main!$D$3))*(1+Main!$I$4+VLOOKUP('Random Years'!BB9,'Hist Returns'!$A$12:$D$107,4,FALSE))","v":{"v":239186.5404266271,"d":"239,187"}},{"$f":"($A9-$A8)/365.25*(BE8+(Main!$I15*Main!$D$3))*(1+Main!$I$4+VLOOKUP('Random Years'!BC9,'Hist Returns'!$A$12:$D$107,4,FALSE))","v":{"v":370351.9687371368,"d":"370,352"}},{"$f":"($A9-$A8)/365.25*(BF8+(Main!$I15*Main!$D$3))*(1+Main!$I$4+VLOOKUP('Random Years'!BD9,'Hist Returns'!$A$12:$D$107,4,FALSE))","v":{"v":421514.13122603245,"d":"421,514"}},{"$f":"($A9-$A8)/365.25*(BG8+(Main!$I15*Main!$D$3))*(1+Main!$I$4+VLOOKUP('Random Years'!BE9,'Hist Returns'!$A$12:$D$107,4,FALSE))","v":{"v":230969.46038836738,"d":"230,969"}},{"$f":"($A9-$A8)/365.25*(BH8+(Main!$I15*Main!$D$3))*(1+Main!$I$4+VLOOKUP('Random Years'!BF9,'Hist Returns'!$A$12:$D$107,4,FALSE))","v":{"v":308633.6891831716,"d":"308,634"}},{"$f":"($A9-$A8)/365.25*(BI8+(Main!$I15*Main!$D$3))*(1+Main!$I$4+VLOOKUP('Random Years'!BG9,'Hist Returns'!$A$12:$D$107,4,FALSE))","v":{"v":410074.8012096596,"d":"410,075"}},{"$f":"($A9-$A8)/365.25*(BJ8+(Main!$I15*Main!$D$3))*(1+Main!$I$4+VLOOKUP('Random Years'!BH9,'Hist Returns'!$A$12:$D$107,4,FALSE))","v":{"v":295149.42593264946,"d":"295,149"}},{"$f":"($A9-$A8)/365.25*(BK8+(Main!$I15*Main!$D$3))*(1+Main!$I$4+VLOOKUP('Random Years'!BI9,'Hist Returns'!$A$12:$D$107,4,FALSE))","v":{"v":323534.05248535756,"d":"323,534"}},{"$f":"($A9-$A8)/365.25*(BL8+(Main!$I15*Main!$D$3))*(1+Main!$I$4+VLOOKUP('Random Years'!BJ9,'Hist Returns'!$A$12:$D$107,4,FALSE))","v":{"v":331256.5013273047,"d":"331,257"}},{"$f":"($A9-$A8)/365.25*(BM8+(Main!$I15*Main!$D$3))*(1+Main!$I$4+VLOOKUP('Random Years'!BK9,'Hist Returns'!$A$12:$D$107,4,FALSE))","v":{"v":248785.45196903942,"d":"248,785"}},{"$f":"($A9-$A8)/365.25*(BN8+(Main!$I15*Main!$D$3))*(1+Main!$I$4+VLOOKUP('Random Years'!BL9,'Hist Returns'!$A$12:$D$107,4,FALSE))","v":{"v":399851.97303993936,"d":"399,852"}},{"$f":"($A9-$A8)/365.25*(BO8+(Main!$I15*Main!$D$3))*(1+Main!$I$4+VLOOKUP('Random Years'!BM9,'Hist Returns'!$A$12:$D$107,4,FALSE))","v":{"v":207656.0616734618,"d":"207,656"}},{"$f":"($A9-$A8)/365.25*(BP8+(Main!$I15*Main!$D$3))*(1+Main!$I$4+VLOOKUP('Random Years'!BN9,'Hist Returns'!$A$12:$D$107,4,FALSE))","v":{"v":291948.1379522223,"d":"291,948"}},{"$f":"($A9-$A8)/365.25*(BQ8+(Main!$I15*Main!$D$3))*(1+Main!$I$4+VLOOKUP('Random Years'!BO9,'Hist Returns'!$A$12:$D$107,4,FALSE))","v":{"v":355837.25354972767,"d":"355,837"}},{"$f":"($A9-$A8)/365.25*(BR8+(Main!$I15*Main!$D$3))*(1+Main!$I$4+VLOOKUP('Random Years'!BP9,'Hist Returns'!$A$12:$D$107,4,FALSE))","v":{"v":261224.36341023335,"d":"261,224"}},{"$f":"($A9-$A8)/365.25*(BS8+(Main!$I15*Main!$D$3))*(1+Main!$I$4+VLOOKUP('Random Years'!BQ9,'Hist Returns'!$A$12:$D$107,4,FALSE))","v":{"v":344948.681989268,"d":"344,949"}},{"$f":"($A9-$A8)/365.25*(BT8+(Main!$I15*Main!$D$3))*(1+Main!$I$4+VLOOKUP('Random Years'!BR9,'Hist Returns'!$A$12:$D$107,4,FALSE))","v":{"v":221152.24058930873,"d":"221,152"}},{"$f":"($A9-$A8)/365.25*(BU8+(Main!$I15*Main!$D$3))*(1+Main!$I$4+VLOOKUP('Random Years'!BS9,'Hist Returns'!$A$12:$D$107,4,FALSE))","v":{"v":454536.55401464313,"d":"454,537"}},{"$f":"($A9-$A8)/365.25*(BV8+(Main!$I15*Main!$D$3))*(1+Main!$I$4+VLOOKUP('Random Years'!BT9,'Hist Returns'!$A$12:$D$107,4,FALSE))","v":{"v":191873.26681711682,"d":"191,873"}},{"$f":"($A9-$A8)/365.25*(BW8+(Main!$I15*Main!$D$3))*(1+Main!$I$4+VLOOKUP('Random Years'!BU9,'Hist Returns'!$A$12:$D$107,4,FALSE))","v":{"v":344149.2595782586,"d":"344,149"}},{"$f":"($A9-$A8)/365.25*(BX8+(Main!$I15*Main!$D$3))*(1+Main!$I$4+VLOOKUP('Random Years'!BV9,'Hist Returns'!$A$12:$D$107,4,FALSE))","v":{"v":364377.8859897476,"d":"364,378"}},{"$f":"($A9-$A8)/365.25*(BY8+(Main!$I15*Main!$D$3))*(1+Main!$I$4+VLOOKUP('Random Years'!BW9,'Hist Returns'!$A$12:$D$107,4,FALSE))","v":{"v":270905.0139272167,"d":"270,905"}},{"$f":"($A9-$A8)/365.25*(BZ8+(Main!$I15*Main!$D$3))*(1+Main!$I$4+VLOOKUP('Random Years'!BX9,'Hist Returns'!$A$12:$D$107,4,FALSE))","v":{"v":245507.93246634208,"d":"245,508"}},{"$f":"($A9-$A8)/365.25*(CA8+(Main!$I15*Main!$D$3))*(1+Main!$I$4+VLOOKUP('Random Years'!BY9,'Hist Returns'!$A$12:$D$107,4,FALSE))","v":{"v":489170.3074099537,"d":"489,170"}},{"$f":"($A9-$A8)/365.25*(CB8+(Main!$I15*Main!$D$3))*(1+Main!$I$4+VLOOKUP('Random Years'!BZ9,'Hist Returns'!$A$12:$D$107,4,FALSE))","v":{"v":365669.13065429055,"d":"365,669"}},{"$f":"($A9-$A8)/365.25*(CC8+(Main!$I15*Main!$D$3))*(1+Main!$I$4+VLOOKUP('Random Years'!CA9,'Hist Returns'!$A$12:$D$107,4,FALSE))","v":{"v":389501.90066968364,"d":"389,502"}},{"$f":"($A9-$A8)/365.25*(CD8+(Main!$I15*Main!$D$3))*(1+Main!$I$4+VLOOKUP('Random Years'!CB9,'Hist Returns'!$A$12:$D$107,4,FALSE))","v":{"v":410613.6750810934,"d":"410,614"}},{"$f":"($A9-$A8)/365.25*(CE8+(Main!$I15*Main!$D$3))*(1+Main!$I$4+VLOOKUP('Random Years'!CC9,'Hist Returns'!$A$12:$D$107,4,FALSE))","v":{"v":343493.8488334281,"d":"343,494"}},{"$f":"($A9-$A8)/365.25*(CF8+(Main!$I15*Main!$D$3))*(1+Main!$I$4+VLOOKUP('Random Years'!CD9,'Hist Returns'!$A$12:$D$107,4,FALSE))","v":{"v":398852.7641928623,"d":"398,853"}},{"$f":"($A9-$A8)/365.25*(CG8+(Main!$I15*Main!$D$3))*(1+Main!$I$4+VLOOKUP('Random Years'!CE9,'Hist Returns'!$A$12:$D$107,4,FALSE))","v":{"v":334672.4317659606,"d":"334,672"}},{"$f":"($A9-$A8)/365.25*(CH8+(Main!$I15*Main!$D$3))*(1+Main!$I$4+VLOOKUP('Random Years'!CF9,'Hist Returns'!$A$12:$D$107,4,FALSE))","v":{"v":415278.85784084763,"d":"415,279"}},{"$f":"($A9-$A8)/365.25*(CI8+(Main!$I15*Main!$D$3))*(1+Main!$I$4+VLOOKUP('Random Years'!CG9,'Hist Returns'!$A$12:$D$107,4,FALSE))","v":{"v":640045.6025959161,"d":"640,046"}},{"$f":"($A9-$A8)/365.25*(CJ8+(Main!$I15*Main!$D$3))*(1+Main!$I$4+VLOOKUP('Random Years'!CH9,'Hist Returns'!$A$12:$D$107,4,FALSE))","v":{"v":449211.1988901259,"d":"449,211"}},{"$f":"($A9-$A8)/365.25*(CK8+(Main!$I15*Main!$D$3))*(1+Main!$I$4+VLOOKUP('Random Years'!CI9,'Hist Returns'!$A$12:$D$107,4,FALSE))","v":{"v":386770.7377626077,"d":"386,771"}},{"$f":"($A9-$A8)/365.25*(CL8+(Main!$I15*Main!$D$3))*(1+Main!$I$4+VLOOKUP('Random Years'!CJ9,'Hist Returns'!$A$12:$D$107,4,FALSE))","v":{"v":388094.39978805056,"d":"388,094"}},{"$f":"($A9-$A8)/365.25*(CM8+(Main!$I15*Main!$D$3))*(1+Main!$I$4+VLOOKUP('Random Years'!CK9,'Hist Returns'!$A$12:$D$107,4,FALSE))","v":{"v":332764.9795373768,"d":"332,765"}},{"$f":"($A9-$A8)/365.25*(CN8+(Main!$I15*Main!$D$3))*(1+Main!$I$4+VLOOKUP('Random Years'!CL9,'Hist Returns'!$A$12:$D$107,4,FALSE))","v":{"v":399111.96349573846,"d":"399,112"}},{"$f":"($A9-$A8)/365.25*(CO8+(Main!$I15*Main!$D$3))*(1+Main!$I$4+VLOOKUP('Random Years'!CM9,'Hist Returns'!$A$12:$D$107,4,FALSE))","v":{"v":441602.05490438495,"d":"441,602"}},{"$f":"($A9-$A8)/365.25*(CP8+(Main!$I15*Main!$D$3))*(1+Main!$I$4+VLOOKUP('Random Years'!CN9,'Hist Returns'!$A$12:$D$107,4,FALSE))","v":{"v":419380.8389552909,"d":"419,381"}},{"$f":"($A9-$A8)/365.25*(CQ8+(Main!$I15*Main!$D$3))*(1+Main!$I$4+VLOOKUP('Random Years'!CO9,'Hist Returns'!$A$12:$D$107,4,FALSE))","v":{"v":342728.4081170863,"d":"342,728"}},{"$f":"($A9-$A8)/365.25*(CR8+(Main!$I15*Main!$D$3))*(1+Main!$I$4+VLOOKUP('Random Years'!CP9,'Hist Returns'!$A$12:$D$107,4,FALSE))","v":{"v":238670.91642519154,"d":"238,671"}},{"$f":"($A9-$A8)/365.25*(CS8+(Main!$I15*Main!$D$3))*(1+Main!$I$4+VLOOKUP('Random Years'!CQ9,'Hist Returns'!$A$12:$D$107,4,FALSE))","v":{"v":281313.83827733475,"d":"281,314"}},{"$f":"($A9-$A8)/365.25*(CT8+(Main!$I15*Main!$D$3))*(1+Main!$I$4+VLOOKUP('Random Years'!CR9,'Hist Returns'!$A$12:$D$107,4,FALSE))","v":{"v":222889.59024345773,"d":"222,890"}},{"$f":"($A9-$A8)/365.25*(CU8+(Main!$I15*Main!$D$3))*(1+Main!$I$4+VLOOKUP('Random Years'!CS9,'Hist Returns'!$A$12:$D$107,4,FALSE))","v":{"v":644839.7472154046,"d":"644,840"}},{"$f":"($A9-$A8)/365.25*(CV8+(Main!$I15*Main!$D$3))*(1+Main!$I$4+VLOOKUP('Random Years'!CT9,'Hist Returns'!$A$12:$D$107,4,FALSE))","v":{"v":203973.50335107185,"d":"203,974"}},{"$f":"($A9-$A8)/365.25*(CW8+(Main!$I15*Main!$D$3))*(1+Main!$I$4+VLOOKUP('Random Years'!CU9,'Hist Returns'!$A$12:$D$107,4,FALSE))","v":{"v":303900.7483508023,"d":"303,901"}},{"$f":"($A9-$A8)/365.25*(CX8+(Main!$I15*Main!$D$3))*(1+Main!$I$4+VLOOKUP('Random Years'!CV9,'Hist Returns'!$A$12:$D$107,4,FALSE))","v":{"v":264924.54634242685,"d":"264,925"}}]
[{"$f":"Main!A16","v":"2031-12-31"},{"$f":"Main!B16","v":77},{"$f":"($A10-$A9)/365.25*(C9+(Main!$I16*Main!$D$3))*(1+Main!$I$4+VLOOKUP('Random Years'!A10,'Hist Returns'!$A$12:$D$107,4,FALSE))","v":{"v":387637.56054108765,"d":"387,638"}},{"$f":"($A10-$A9)/365.25*(D9+(Main!$I16*Main!$D$3))*(1+Main!$I$4+VLOOKUP('Random Years'!B10,'Hist Returns'!$A$12:$D$107,4,FALSE))","v":{"v":380549.0653936982,"d":"380,549"}},{"$f":"($A10-$A9)/365.25*(E9+(Main!$I16*Main!$D$3))*(1+Main!$I$4+VLOOKUP('Random Years'!C10,'Hist Returns'!$A$12:$D$107,4,FALSE))","v":{"v":219743.15069192782,"d":"219,743"}},{"$f":"($A10-$A9)/365.25*(F9+(Main!$I16*Main!$D$3))*(1+Main!$I$4+VLOOKUP('Random Years'!D10,'Hist Returns'!$A$12:$D$107,4,FALSE))","v":{"v":469876.70734694356,"d":"469,877"}},{"$f":"($A10-$A9)/365.25*(G9+(Main!$I16*Main!$D$3))*(1+Main!$I$4+VLOOKUP('Random Years'!E10,'Hist Returns'!$A$12:$D$107,4,FALSE))","v":{"v":351994.16661608143,"d":"351,994"}},{"$f":"($A10-$A9)/365.25*(H9+(Main!$I16*Main!$D$3))*(1+Main!$I$4+VLOOKUP('Random Years'!F10,'Hist Returns'!$A$12:$D$107,4,FALSE))","v":{"v":327228.7358189493,"d":"327,229"}},{"$f":"($A10-$A9)/365.25*(I9+(Main!$I16*Main!$D$3))*(1+Main!$I$4+VLOOKUP('Random Years'!G10,'Hist Returns'!$A$12:$D$107,4,FALSE))","v":{"v":313903.7119822144,"d":"313,904"}},{"$f":"($A10-$A9)/365.25*(J9+(Main!$I16*Main!$D$3))*(1+Main!$I$4+VLOOKUP('Random Years'!H10,'Hist Returns'!$A$12:$D$107,4,FALSE))","v":{"v":574378.7633965696,"d":"574,379"}},{"$f":"($A10-$A9)/365.25*(K9+(Main!$I16*Main!$D$3))*(1+Main!$I$4+VLOOKUP('Random Years'!I10,'Hist Returns'!$A$12:$D$107,4,FALSE))","v":{"v":517179.06976556045,"d":"517,179"}},{"$f":"($A10-$A9)/365.25*(L9+(Main!$I16*Main!$D$3))*(1+Main!$I$4+VLOOKUP('Random Years'!J10,'Hist Returns'!$A$12:$D$107,4,FALSE))","v":{"v":362678.133591959,"d":"362,678"}},{"$f":"($A10-$A9)/365.25*(M9+(Main!$I16*Main!$D$3))*(1+Main!$I$4+VLOOKUP('Random Years'!K10,'Hist Returns'!$A$12:$D$107,4,FALSE))","v":{"v":255344.904174563,"d":"255,345"}},{"$f":"($A10-$A9)/365.25*(N9+(Main!$I16*Main!$D$3))*(1+Main!$I$4+VLOOKUP('Random Years'!L10,'Hist Returns'!$A$12:$D$107,4,FALSE))","v":{"v":324479.0872942735,"d":"324,479"}},{"$f":"($A10-$A9)/365.25*(O9+(Main!$I16*Main!$D$3))*(1+Main!$I$4+VLOOKUP('Random Years'!M10,'Hist Returns'!$A$12:$D$107,4,FALSE))","v":{"v":430371.9512577597,"d":"430,372"}},{"$f":"($A10-$A9)/365.25*(P9+(Main!$I16*Main!$D$3))*(1+Main!$I$4+VLOOKUP('Random Years'!N10,'Hist Returns'!$A$12:$D$107,4,FALSE))","v":{"v":345426.15847308864,"d":"345,426"}},{"$f":"($A10-$A9)/365.25*(Q9+(Main!$I16*Main!$D$3))*(1+Main!$I$4+VLOOKUP('Random Years'!O10,'Hist Returns'!$A$12:$D$107,4,FALSE))","v":{"v":372084.4412046542,"d":"372,084"}},{"$f":"($A10-$A9)/365.25*(R9+(Main!$I16*Main!$D$3))*(1+Main!$I$4+VLOOKUP('Random Years'!P10,'Hist Returns'!$A$12:$D$107,4,FALSE))","v":{"v":310641.05452674476,"d":"310,641"}},{"$f":"($A10-$A9)/365.25*(S9+(Main!$I16*Main!$D$3))*(1+Main!$I$4+VLOOKUP('Random Years'!Q10,'Hist Returns'!$A$12:$D$107,4,FALSE))","v":{"v":287804.16945046495,"d":"287,804"}},{"$f":"($A10-$A9)/365.25*(T9+(Main!$I16*Main!$D$3))*(1+Main!$I$4+VLOOKUP('Random Years'!R10,'Hist Returns'!$A$12:$D$107,4,FALSE))","v":{"v":379760.42670029495,"d":"379,760"}},{"$f":"($A10-$A9)/365.25*(U9+(Main!$I16*Main!$D$3))*(1+Main!$I$4+VLOOKUP('Random Years'!S10,'Hist Returns'!$A$12:$D$107,4,FALSE))","v":{"v":404950.9984131436,"d":"404,951"}},{"$f":"($A10-$A9)/365.25*(V9+(Main!$I16*Main!$D$3))*(1+Main!$I$4+VLOOKUP('Random Years'!T10,'Hist Returns'!$A$12:$D$107,4,FALSE))","v":{"v":431675.7486388322,"d":"431,676"}},{"$f":"($A10-$A9)/365.25*(W9+(Main!$I16*Main!$D$3))*(1+Main!$I$4+VLOOKUP('Random Years'!U10,'Hist Returns'!$A$12:$D$107,4,FALSE))","v":{"v":338307.74520890584,"d":"338,308"}},{"$f":"($A10-$A9)/365.25*(X9+(Main!$I16*Main!$D$3))*(1+Main!$I$4+VLOOKUP('Random Years'!V10,'Hist Returns'!$A$12:$D$107,4,FALSE))","v":{"v":309222.5763088226,"d":"309,223"}},{"$f":"($A10-$A9)/365.25*(Y9+(Main!$I16*Main!$D$3))*(1+Main!$I$4+VLOOKUP('Random Years'!W10,'Hist Returns'!$A$12:$D$107,4,FALSE))","v":{"v":210866.50106811273,"d":"210,867"}},{"$f":"($A10-$A9)/365.25*(Z9+(Main!$I16*Main!$D$3))*(1+Main!$I$4+VLOOKUP('Random Years'!X10,'Hist Returns'!$A$12:$D$107,4,FALSE))","v":{"v":517718.7126008004,"d":"517,719"}},{"$f":"($A10-$A9)/365.25*(AA9+(Main!$I16*Main!$D$3))*(1+Main!$I$4+VLOOKUP('Random Years'!Y10,'Hist Returns'!$A$12:$D$107,4,FALSE))","v":{"v":351978.70294293424,"d":"351,979"}},{"$f":"($A10-$A9)/365.25*(AB9+(Main!$I16*Main!$D$3))*(1+Main!$I$4+VLOOKUP('Random Years'!Z10,'Hist Returns'!$A$12:$D$107,4,FALSE))","v":{"v":344797.7625938688,"d":"344,798"}},{"$f":"($A10-$A9)/365.25*(AC9+(Main!$I16*Main!$D$3))*(1+Main!$I$4+VLOOKUP('Random Years'!AA10,'Hist Returns'!$A$12:$D$107,4,FALSE))","v":{"v":261333.53656332954,"d":"261,334"}},{"$f":"($A10-$A9)/365.25*(AD9+(Main!$I16*Main!$D$3))*(1+Main!$I$4+VLOOKUP('Random Years'!AB10,'Hist Returns'!$A$12:$D$107,4,FALSE))","v":{"v":339480.9673380201,"d":"339,481"}},{"$f":"($A10-$A9)/365.25*(AE9+(Main!$I16*Main!$D$3))*(1+Main!$I$4+VLOOKUP('Random Years'!AC10,'Hist Returns'!$A$12:$D$107,4,FALSE))","v":{"v":301956.58004496346,"d":"301,957"}},{"$f":"($A10-$A9)/365.25*(AF9+(Main!$I16*Main!$D$3))*(1+Main!$I$4+VLOOKUP('Random Years'!AD10,'Hist Returns'!$A$12:$D$107,4,FALSE))","v":{"v":338518.9934669538,"d":"338,519"}},{"$f":"($A10-$A9)/365.25*(AG9+(Main!$I16*Main!$D$3))*(1+Main!$I$4+VLOOKUP('Random Years'!AE10,'Hist Returns'!$A$12:$D$107,4,FALSE))","v":{"v":414510.4196271685,"d":"414,510"}},{"$f":"($A10-$A9)/365.25*(AH9+(Main!$I16*Main!$D$3))*(1+Main!$I$4+VLOOKUP('Random Years'!AF10,'Hist Returns'!$A$12:$D$107,4,FALSE))","v":{"v":273177.5778174719,"d":"273,178"}},{"$f":"($A10-$A9)/365.25*(AI9+(Main!$I16*Main!$D$3))*(1+Main!$I$4+VLOOKUP('Random Years'!AG10,'Hist Returns'!$A$12:$D$107,4,FALSE))","v":{"v":310235.5477314108,"d":"310,236"}},{"$f":"($A10-$A9)/365.25*(AJ9+(Main!$I16*Main!$D$3))*(1+Main!$I$4+VLOOKUP('Random Years'!AH10,'Hist Returns'!$A$12:$D$107,4,FALSE))","v":{"v":383412.773494576,"d":"383,413"}},{"$f":"($A10-$A9)/365.25*(AK9+(Main!$I16*Main!$D$3))*(1+Main!$I$4+VLOOKUP('Random Years'!AI10,'Hist Returns'!$A$12:$D$107,4,FALSE))","v":{"v":458398.3895068176,"d":"458,398"}},{"$f":"($A10-$A9)/365.25*(AL9+(Main!$I16*Main!$D$3))*(1+Main!$I$4+VLOOKUP('Random Years'!AJ10,'Hist Returns'!$A$12:$D$107,4,FALSE))","v":{"v":313565.55157235457,"d":"313,566"}},{"$f":"($A10-$A9)/365.25*(AM9+(Main!$I16*Main!$D$3))*(1+Main!$I$4+VLOOKUP('Random Years'!AK10,'Hist Returns'!$A$12:$D$107,4,FALSE))","v":{"v":299203.5540337869,"d":"299,204"}},{"$f":"($A10-$A9)/365.25*(AN9+(Main!$I16*Main!$D$3))*(1+Main!$I$4+VLOOKUP('Random Years'!AL10,'Hist Returns'!$A$12:$D$107,4,FALSE))","v":{"v":395588.82830999163,"d":"395,589"}},{"$f":"($A10-$A9)/365.25*(AO9+(Main!$I16*Main!$D$3))*(1+Main!$I$4+VLOOKUP('Random Years'!AM10,'Hist Returns'!$A$12:$D$107,4,FALSE))","v":{"v":291246.246276923,"d":"291,246"}},{"$f":"($A10-$A9)/365.25*(AP9+(Main!$I16*Main!$D$3))*(1+Main!$I$4+VLOOKUP('Random Years'!AN10,'Hist Returns'!$A$12:$D$107,4,FALSE))","v":{"v":371687.618428,"d":"371,688"}},{"$f":"($A10-$A9)/365.25*(AQ9+(Main!$I16*Main!$D$3))*(1+Main!$I$4+VLOOKUP('Random Years'!AO10,'Hist Returns'!$A$12:$D$107,4,FALSE))","v":{"v":215842.17384206926,"d":"215,842"}},{"$f":"($A10-$A9)/365.25*(AR9+(Main!$I16*Main!$D$3))*(1+Main!$I$4+VLOOKUP('Random Years'!AP10,'Hist Returns'!$A$12:$D$107,4,FALSE))","v":{"v":309470.59702959843,"d":"309,471"}},{"$f":"($A10-$A9)/365.25*(AS9+(Main!$I16*Main!$D$3))*(1+Main!$I$4+VLOOKUP('Random Years'!AQ10,'Hist Returns'!$A$12:$D$107,4,FALSE))","v":{"v":487375.10215437814,"d":"487,375"}},{"$f":"($A10-$A9)/365.25*(AT9+(Main!$I16*Main!$D$3))*(1+Main!$I$4+VLOOKUP('Random Years'!AR10,'Hist Returns'!$A$12:$D$107,4,FALSE))","v":{"v":454609.6594073808,"d":"454,610"}},{"$f":"($A10-$A9)/365.25*(AU9+(Main!$I16*Main!$D$3))*(1+Main!$I$4+VLOOKUP('Random Years'!AS10,'Hist Returns'!$A$12:$D$107,4,FALSE))","v":{"v":292669.3713203101,"d":"292,669"}},{"$f":"($A10-$A9)/365.25*(AV9+(Main!$I16*Main!$D$3))*(1+Main!$I$4+VLOOKUP('Random Years'!AT10,'Hist Returns'!$A$12:$D$107,4,FALSE))","v":{"v":386712.4501499771,"d":"386,712"}},{"$f":"($A10-$A9)/365.25*(AW9+(Main!$I16*Main!$D$3))*(1+Main!$I$4+VLOOKUP('Random Years'!AU10,'Hist Returns'!$A$12:$D$107,4,FALSE))","v":{"v":447654.1914647564,"d":"447,654"}},{"$f":"($A10-$A9)/365.25*(AX9+(Main!$I16*Main!$D$3))*(1+Main!$I$4+VLOOKUP('Random Years'!AV10,'Hist Returns'!$A$12:$D$107,4,FALSE))","v":{"v":334875.8860866537,"d":"334,876"}},{"$f":"($A10-$A9)/365.25*(AY9+(Main!$I16*Main!$D$3))*(1+Main!$I$4+VLOOKUP('Random Years'!AW10,'Hist Returns'!$A$12:$D$107,4,FALSE))","v":{"v":306999.87839967915,"d":"307,000"}},{"$f":"($A10-$A9)/365.25*(AZ9+(Main!$I16*Main!$D$3))*(1+Main!$I$4+VLOOKUP('Random Years'!AX10,'Hist Returns'!$A$12:$D$107,4,FALSE))","v":{"v":296294.8478330443,"d":"296,295"}},{"$f":"($A10-$A9)/365.25*(BA9+(Main!$I16*Main!$D$3))*(1+Main!$I$4+VLOOKUP('Random Years'!AY10,'Hist Returns'!$A$12:$D$107,4,FALSE))","v":{"v":261344.14270116438,"d":"261,344"}},{"$f":"($A10-$A9)/365.25*(BB9+(Main!$I16*Main!$D$3))*(1+Main!$I$4+VLOOKUP('Random Years'!AZ10,'Hist Returns'!$A$12:$D$107,4,FALSE))","v":{"v":281694.84694723383,"d":"281,695"}},{"$f":"($A10-$A9)/365.25*(BC9+(Main!$I16*Main!$D$3))*(1+Main!$I$4+VLOOKUP('Random Years'!BA10,'Hist Returns'!$A$12:$D$107,4,FALSE))","v":{"v":413219.3187798212,"d":"413,219"}},{"$f":"($A10-$A9)/365.25*(BD9+(Main!$I16*Main!$D$3))*(1+Main!$I$4+VLOOKUP('Random Years'!BB10,'Hist Returns'!$A$12:$D$107,4,FALSE))","v":{"v":237527.73908371394,"d":"237,528"}},{"$f":"($A10-$A9)/365.25*(BE9+(Main!$I16*Main!$D$3))*(1+Main!$I$4+VLOOKUP('Random Years'!BC10,'Hist Returns'!$A$12:$D$107,4,FALSE))","v":{"v":406407.6194259947,"d":"406,408"}},{"$f":"($A10-$A9)/365.25*(BF9+(Main!$I16*Main!$D$3))*(1+Main!$I$4+VLOOKUP('Random Years'!BD10,'Hist Returns'!$A$12:$D$107,4,FALSE))","v":{"v":505546.2200370373,"d":"505,546"}},{"$f":"($A10-$A9)/365.25*(BG9+(Main!$I16*Main!$D$3))*(1+Main!$I$4+VLOOKUP('Random Years'!BE10,'Hist Returns'!$A$12:$D$107,4,FALSE))","v":{"v":268532.7621701037,"d":"268,533"}},{"$f":"($A10-$A9)/365.25*(BH9+(Main!$I16*Main!$D$3))*(1+Main!$I$4+VLOOKUP('Random Years'!BF10,'Hist Returns'!$A$12:$D$107,4,FALSE))","v":{"v":342697.14144698,"d":"342,697"}},{"$f":"($A10-$A9)/365.25*(BI9+(Main!$I16*Main!$D$3))*(1+Main!$I$4+VLOOKUP('Random Years'!BG10,'Hist Returns'!$A$12:$D$107,4,FALSE))","v":{"v":425048.3939357061,"d":"425,048"}},{"$f":"($A10-$A9)/365.25*(BJ9+(Main!$I16*Main!$D$3))*(1+Main!$I$4+VLOOKUP('Random Years'!BH10,'Hist Returns'!$A$12:$D$107,4,FALSE))","v":{"v":390885.26304972917,"d":"390,885"}},{"$f":"($A10-$A9)/365.25*(BK9+(Main!$I16*Main!$D$3))*(1+Main!$I$4+VLOOKUP('Random Years'!BI10,'Hist Returns'!$A$12:$D$107,4,FALSE))","v":{"v":371179.33251466346,"d":"371,179"}},{"$f":"($A10-$A9)/365.25*(BL9+(Main!$I16*Main!$D$3))*(1+Main!$I$4+VLOOKUP('Random Years'!BJ10,'Hist Returns'!$A$12:$D$107,4,FALSE))","v":{"v":338074.6020389031,"d":"338,075"}},{"$f":"($A10-$A9)/365.25*(BM9+(Main!$I16*Main!$D$3))*(1+Main!$I$4+VLOOKUP('Random Years'!BK10,'Hist Returns'!$A$12:$D$107,4,FALSE))","v":{"v":273155.171398347,"d":"273,155"}},{"$f":"($A10-$A9)/365.25*(BN9+(Main!$I16*Main!$D$3))*(1+Main!$I$4+VLOOKUP('Random Years'!BL10,'Hist Returns'!$A$12:$D$107,4,FALSE))","v":{"v":410478.60889432713,"d":"410,479"}},{"$f":"($A10-$A9)/365.25*(BO9+(Main!$I16*Main!$D$3))*(1+Main!$I$4+VLOOKUP('Random Years'!BM10,'Hist Returns'!$A$12:$D$107,4,FALSE))","v":{"v":202298.7179602937,"d":"202,299"}},{"$f":"($A10-$A9)/365.25*(BP9+(Main!$I16*Main!$D$3))*(1+Main!$I$4+VLOOKUP('Random Years'!BN10,'Hist Returns'!$A$12:$D$107,4,FALSE))","v":{"v":299252.0405389638,"d":"299,252"}},{"$f":"($A10-$A9)/365.25*(BQ9+(Main!$I16*Main!$D$3))*(1+Main!$I$4+VLOOKUP('Random Years'!BO10,'Hist Returns'!$A$12:$D$107,4,FALSE))","v":{"v":357503.3836081071,"d":"357,503"}},{"$f":"($A10-$A9)/365.25*(BR9+(Main!$I16*Main!$D$3))*(1+Main!$I$4+VLOOKUP('Random Years'!BP10,'Hist Returns'!$A$12:$D$107,4,FALSE))","v":{"v":296064.26172825386,"d":"296,064"}},{"$f":"($A10-$A9)/365.25*(BS9+(Main!$I16*Main!$D$3))*(1+Main!$I$4+VLOOKUP('Random Years'!BQ10,'Hist Returns'!$A$12:$D$107,4,FALSE))","v":{"v":341534.0664558635,"d":"341,534"}},{"$f":"($A10-$A9)/365.25*(BT9+(Main!$I16*Main!$D$3))*(1+Main!$I$4+VLOOKUP('Random Years'!BR10,'Hist Returns'!$A$12:$D$107,4,FALSE))","v":{"v":202466.44206146768,"d":"202,466"}},{"$f":"($A10-$A9)/365.25*(BU9+(Main!$I16*Main!$D$3))*(1+Main!$I$4+VLOOKUP('Random Years'!BS10,'Hist Returns'!$A$12:$D$107,4,FALSE))","v":{"v":443781.73714484164,"d":"443,782"}},{"$f":"($A10-$A9)/365.25*(BV9+(Main!$I16*Main!$D$3))*(1+Main!$I$4+VLOOKUP('Random Years'!BT10,'Hist Returns'!$A$12:$D$107,4,FALSE))","v":{"v":194034.57533445078,"d":"194,035"}},{"$f":"($A10-$A9)/365.25*(BW9+(Main!$I16*Main!$D$3))*(1+Main!$I$4+VLOOKUP('Random Years'!BU10,'Hist Returns'!$A$12:$D$107,4,FALSE))","v":{"v":340739.23143887887,"d":"340,739"}},{"$f":"($A10-$A9)/365.25*(BX9+(Main!$I16*Main!$D$3))*(1+Main!$I$4+VLOOKUP('Random Years'!BV10,'Hist Returns'!$A$12:$D$107,4,FALSE))","v":{"v":356045.9785610492,"d":"356,046"}},{"$f":"($A10-$A9)/365.25*(BY9+(Main!$I16*Main!$D$3))*(1+Main!$I$4+VLOOKUP('Random Years'!BW10,'Hist Returns'!$A$12:$D$107,4,FALSE))","v":{"v":275384.41226270684,"d":"275,384"}},{"$f":"($A10-$A9)/365.25*(BZ9+(Main!$I16*Main!$D$3))*(1+Main!$I$4+VLOOKUP('Random Years'!BX10,'Hist Returns'!$A$12:$D$107,4,FALSE))","v":{"v":281261.5176822747,"d":"281,262"}},{"$f":"($A10-$A9)/365.25*(CA9+(Main!$I16*Main!$D$3))*(1+Main!$I$4+VLOOKUP('Random Years'!BY10,'Hist Returns'!$A$12:$D$107,4,FALSE))","v":{"v":541266.6474717369,"d":"541,267"}},{"$f":"($A10-$A9)/365.25*(CB9+(Main!$I16*Main!$D$3))*(1+Main!$I$4+VLOOKUP('Random Years'!BZ10,'Hist Returns'!$A$12:$D$107,4,FALSE))","v":{"v":378131.8003031892,"d":"378,132"}},{"$f":"($A10-$A9)/365.25*(CC9+(Main!$I16*Main!$D$3))*(1+Main!$I$4+VLOOKUP('Random Years'!CA10,'Hist Returns'!$A$12:$D$107,4,FALSE))","v":{"v":391463.41658593074,"d":"391,463"}},{"$f":"($A10-$A9)/365.25*(CD9+(Main!$I16*Main!$D$3))*(1+Main!$I$4+VLOOKUP('Random Years'!CB10,'Hist Returns'!$A$12:$D$107,4,FALSE))","v":{"v":419419.60895524756,"d":"419,420"}},{"$f":"($A10-$A9)/365.25*(CE9+(Main!$I16*Main!$D$3))*(1+Main!$I$4+VLOOKUP('Random Years'!CC10,'Hist Returns'!$A$12:$D$107,4,FALSE))","v":{"v":400180.08527109155,"d":"400,180"}},{"$f":"($A10-$A9)/365.25*(CF9+(Main!$I16*Main!$D$3))*(1+Main!$I$4+VLOOKUP('Random Years'!CD10,'Hist Returns'!$A$12:$D$107,4,FALSE))","v":{"v":411265.71540823986,"d":"411,266"}},{"$f":"($A10-$A9)/365.25*(CG9+(Main!$I16*Main!$D$3))*(1+Main!$I$4+VLOOKUP('Random Years'!CE10,'Hist Returns'!$A$12:$D$107,4,FALSE))","v":{"v":383737.8654326885,"d":"383,738"}},{"$f":"($A10-$A9)/365.25*(CH9+(Main!$I16*Main!$D$3))*(1+Main!$I$4+VLOOKUP('Random Years'!CF10,'Hist Returns'!$A$12:$D$107,4,FALSE))","v":{"v":437792.1816449618,"d":"437,792"}},{"$f":"($A10-$A9)/365.25*(CI9+(Main!$I16*Main!$D$3))*(1+Main!$I$4+VLOOKUP('Random Years'!CG10,'Hist Returns'!$A$12:$D$107,4,FALSE))","v":{"v":672023.5102289603,"d":"672,024"}},{"$f":"($A10-$A9)/365.25*(CJ9+(Main!$I16*Main!$D$3))*(1+Main!$I$4+VLOOKUP('Random Years'!CH10,'Hist Returns'!$A$12:$D$107,4,FALSE))","v":{"v":455097.1699455036,"d":"455,097"}},{"$f":"($A10-$A9)/365.25*(CK9+(Main!$I16*Main!$D$3))*(1+Main!$I$4+VLOOKUP('Random Years'!CI10,'Hist Returns'!$A$12:$D$107,4,FALSE))","v":{"v":402350.1803039723,"d":"402,350"}},{"$f":"($A10-$A9)/365.25*(CL9+(Main!$I16*Main!$D$3))*(1+Main!$I$4+VLOOKUP('Random Years'!CJ10,'Hist Returns'!$A$12:$D$107,4,FALSE))","v":{"v":478419.97783321707,"d":"478,420"}},{"$f":"($A10-$A9)/365.25*(CM9+(Main!$I16*Main!$D$3))*(1+Main!$I$4+VLOOKUP('Random Years'!CK10,'Hist Returns'!$A$12:$D$107,4,FALSE))","v":{"v":342873.659484805,"d":"342,874"}},{"$f":"($A10-$A9)/365.25*(CN9+(Main!$I16*Main!$D$3))*(1+Main!$I$4+VLOOKUP('Random Years'!CL10,'Hist Returns'!$A$12:$D$107,4,FALSE))","v":{"v":500945.51075337344,"d":"500,946"}},{"$f":"($A10-$A9)/365.25*(CO9+(Main!$I16*Main!$D$3))*(1+Main!$I$4+VLOOKUP('Random Years'!CM10,'Hist Returns'!$A$12:$D$107,4,FALSE))","v":{"v":514522.5457256138,"d":"514,523"}},{"$f":"($A10-$A9)/365.25*(CP9+(Main!$I16*Main!$D$3))*(1+Main!$I$4+VLOOKUP('Random Years'!CN10,'Hist Returns'!$A$12:$D$107,4,FALSE))","v":{"v":427123.78178563557,"d":"427,124"}},{"$f":"($A10-$A9)/365.25*(CQ9+(Main!$I16*Main!$D$3))*(1+Main!$I$4+VLOOKUP('Random Years'!CO10,'Hist Returns'!$A$12:$D$107,4,FALSE))","v":{"v":334271.32354281767,"d":"334,271"}},{"$f":"($A10-$A9)/365.25*(CR9+(Main!$I16*Main!$D$3))*(1+Main!$I$4+VLOOKUP('Random Years'!CP10,'Hist Returns'!$A$12:$D$107,4,FALSE))","v":{"v":245151.18900412665,"d":"245,151"}},{"$f":"($A10-$A9)/365.25*(CS9+(Main!$I16*Main!$D$3))*(1+Main!$I$4+VLOOKUP('Random Years'!CQ10,'Hist Returns'!$A$12:$D$107,4,FALSE))","v":{"v":289628.58025079774,"d":"289,629"}},{"$f":"($A10-$A9)/365.25*(CT9+(Main!$I16*Main!$D$3))*(1+Main!$I$4+VLOOKUP('Random Years'!CR10,'Hist Returns'!$A$12:$D$107,4,FALSE))","v":{"v":231250.08955979627,"d":"231,250"}},{"$f":"($A10-$A9)/365.25*(CU9+(Main!$I16*Main!$D$3))*(1+Main!$I$4+VLOOKUP('Random Years'!CS10,'Hist Returns'!$A$12:$D$107,4,FALSE))","v":{"v":663875.6822086159,"d":"663,876"}},{"$f":"($A10-$A9)/365.25*(CV9+(Main!$I16*Main!$D$3))*(1+Main!$I$4+VLOOKUP('Random Years'!CT10,'Hist Returns'!$A$12:$D$107,4,FALSE))","v":{"v":250599.2127325115,"d":"250,599"}},{"$f":"($A10-$A9)/365.25*(CW9+(Main!$I16*Main!$D$3))*(1+Main!$I$4+VLOOKUP('Random Years'!CU10,'Hist Returns'!$A$12:$D$107,4,FALSE))","v":{"v":312084.5521283356,"d":"312,085"}},{"$f":"($A10-$A9)/365.25*(CX9+(Main!$I16*Main!$D$3))*(1+Main!$I$4+VLOOKUP('Random Years'!CV10,'Hist Returns'!$A$12:$D$107,4,FALSE))","v":{"v":276334.75790789386,"d":"276,335"}}]
[{"$f":"Main!A17","v":"2032-12-30"},{"$f":"Main!B17","v":78},{"$f":"($A11-$A10)/365.25*(C10+(Main!$I17*Main!$D$3))*(1+Main!$I$4+VLOOKUP('Random Years'!A11,'Hist Returns'!$A$12:$D$107,4,FALSE))","v":{"v":354852.12548988813,"d":"354,852"}},{"$f":"($A11-$A10)/365.25*(D10+(Main!$I17*Main!$D$3))*(1+Main!$I$4+VLOOKUP('Random Years'!B11,'Hist Returns'!$A$12:$D$107,4,FALSE))","v":{"v":384190.19318764587,"d":"384,190"}},{"$f":"($A11-$A10)/365.25*(E10+(Main!$I17*Main!$D$3))*(1+Main!$I$4+VLOOKUP('Random Years'!C11,'Hist Returns'!$A$12:$D$107,4,FALSE))","v":{"v":207148.28571772855,"d":"207,148"}},{"$f":"($A11-$A10)/365.25*(F10+(Main!$I17*Main!$D$3))*(1+Main!$I$4+VLOOKUP('Random Years'!D11,'Hist Returns'!$A$12:$D$107,4,FALSE))","v":{"v":471409.9968208973,"d":"471,410"}},{"$f":"($A11-$A10)/365.25*(G10+(Main!$I17*Main!$D$3))*(1+Main!$I$4+VLOOKUP('Random Years'!E11,'Hist Returns'!$A$12:$D$107,4,FALSE))","v":{"v":406406.30427648243,"d":"406,406"}},{"$f":"($A11-$A10)/365.25*(H10+(Main!$I17*Main!$D$3))*(1+Main!$I$4+VLOOKUP('Random Years'!F11,'Hist Returns'!$A$12:$D$107,4,FALSE))","v":{"v":353041.52870363765,"d":"353,042"}},{"$f":"($A11-$A10)/365.25*(I10+(Main!$I17*Main!$D$3))*(1+Main!$I$4+VLOOKUP('Random Years'!G11,'Hist Returns'!$A$12:$D$107,4,FALSE))","v":{"v":298380.8705195075,"d":"298,381"}},{"$f":"($A11-$A10)/365.25*(J10+(Main!$I17*Main!$D$3))*(1+Main!$I$4+VLOOKUP('Random Years'!H11,'Hist Returns'!$A$12:$D$107,4,FALSE))","v":{"v":597735.0923378863,"d":"597,735"}},{"$f":"($A11-$A10)/365.25*(K10+(Main!$I17*Main!$D$3))*(1+Main!$I$4+VLOOKUP('Random Years'!I11,'Hist Returns'!$A$12:$D$107,4,FALSE))","v":{"v":557567.2345983855,"d":"557,567"}},{"$f":"($A11-$A10)/365.25*(L10+(Main!$I17*Main!$D$3))*(1+Main!$I$4+VLOOKUP('Random Years'!J11,'Hist Returns'!$A$12:$D$107,4,FALSE))","v":{"v":374651.13983618474,"d":"374,651"}},{"$f":"($A11-$A10)/365.25*(M10+(Main!$I17*Main!$D$3))*(1+Main!$I$4+VLOOKUP('Random Years'!K11,'Hist Returns'!$A$12:$D$107,4,FALSE))","v":{"v":304649.4642480334,"d":"304,649"}},{"$f":"($A11-$A10)/365.25*(N10+(Main!$I17*Main!$D$3))*(1+Main!$I$4+VLOOKUP('Random Years'!L11,'Hist Returns'!$A$12:$D$107,4,FALSE))","v":{"v":332844.0728305678,"d":"332,844"}},{"$f":"($A11-$A10)/365.25*(O10+(Main!$I17*Main!$D$3))*(1+Main!$I$4+VLOOKUP('Random Years'!M11,'Hist Returns'!$A$12:$D$107,4,FALSE))","v":{"v":514715.3072989268,"d":"514,715"}},{"$f":"($A11-$A10)/365.25*(P10+(Main!$I17*Main!$D$3))*(1+Main!$I$4+VLOOKUP('Random Years'!N11,'Hist Returns'!$A$12:$D$107,4,FALSE))","v":{"v":350385.38625878864,"d":"350,385"}},{"$f":"($A11-$A10)/365.25*(Q10+(Main!$I17*Main!$D$3))*(1+Main!$I$4+VLOOKUP('Random Years'!O11,'Hist Returns'!$A$12:$D$107,4,FALSE))","v":{"v":425577.15866869193,"d":"425,577"}},{"$f":"($A11-$A10)/365.25*(R10+(Main!$I17*Main!$D$3))*(1+Main!$I$4+VLOOKUP('Random Years'!P11,'Hist Returns'!$A$12:$D$107,4,FALSE))","v":{"v":310078.19601544173,"d":"310,078"}},{"$f":"($A11-$A10)/365.25*(S10+(Main!$I17*Main!$D$3))*(1+Main!$I$4+VLOOKUP('Random Years'!Q11,'Hist Returns'!$A$12:$D$107,4,FALSE))","v":{"v":278776.689129644,"d":"278,777"}},{"$f":"($A11-$A10)/365.25*(T10+(Main!$I17*Main!$D$3))*(1+Main!$I$4+VLOOKUP('Random Years'!R11,'Hist Returns'!$A$12:$D$107,4,FALSE))","v":{"v":310595.0641927604,"d":"310,595"}},{"$f":"($A11-$A10)/365.25*(U10+(Main!$I17*Main!$D$3))*(1+Main!$I$4+VLOOKUP('Random Years'!S11,'Hist Returns'!$A$12:$D$107,4,FALSE))","v":{"v":463322.024188734,"d":"463,322"}},{"$f":"($A11-$A10)/365.25*(V10+(Main!$I17*Main!$D$3))*(1+Main!$I$4+VLOOKUP('Random Years'!T11,'Hist Returns'!$A$12:$D$107,4,FALSE))","v":{"v":473760.0712210706,"d":"473,760"}},{"$f":"($A11-$A10)/365.25*(W10+(Main!$I17*Main!$D$3))*(1+Main!$I$4+VLOOKUP('Random Years'!U11,'Hist Returns'!$A$12:$D$107,4,FALSE))","v":{"v":372747.4212621354,"d":"372,747"}},{"$f":"($A11-$A10)/365.25*(X10+(Main!$I17*Main!$D$3))*(1+Main!$I$4+VLOOKUP('Random Years'!V11,'Hist Returns'!$A$12:$D$107,4,FALSE))","v":{"v":315158.04049263016,"d":"315,158"}},{"$f":"($A11-$A10)/365.25*(Y10+(Main!$I17*Main!$D$3))*(1+Main!$I$4+VLOOKUP('Random Years'!W11,'Hist Returns'!$A$12:$D$107,4,FALSE))","v":{"v":218007.3889430494,"d":"218,007"}},{"$f":"($A11-$A10)/365.25*(Z10+(Main!$I17*Main!$D$3))*(1+Main!$I$4+VLOOKUP('Random Years'!X11,'Hist Returns'!$A$12:$D$107,4,FALSE))","v":{"v":473274.933652826,"d":"473,275"}},{"$f":"($A11-$A10)/365.25*(AA10+(Main!$I17*Main!$D$3))*(1+Main!$I$4+VLOOKUP('Random Years'!Y11,'Hist Returns'!$A$12:$D$107,4,FALSE))","v":{"v":349193.84840064077,"d":"349,194"}},{"$f":"($A11-$A10)/365.25*(AB10+(Main!$I17*Main!$D$3))*(1+Main!$I$4+VLOOKUP('Random Years'!Z11,'Hist Returns'!$A$12:$D$107,4,FALSE))","v":{"v":348829.6488240892,"d":"348,830"}},{"$f":"($A11-$A10)/365.25*(AC10+(Main!$I17*Main!$D$3))*(1+Main!$I$4+VLOOKUP('Random Years'!AA11,'Hist Returns'!$A$12:$D$107,4,FALSE))","v":{"v":285056.1851546722,"d":"285,056"}},{"$f":"($A11-$A10)/365.25*(AD10+(Main!$I17*Main!$D$3))*(1+Main!$I$4+VLOOKUP('Random Years'!AB11,'Hist Returns'!$A$12:$D$107,4,FALSE))","v":{"v":352640.8642669572,"d":"352,641"}},{"$f":"($A11-$A10)/365.25*(AE10+(Main!$I17*Main!$D$3))*(1+Main!$I$4+VLOOKUP('Random Years'!AC11,'Hist Returns'!$A$12:$D$107,4,FALSE))","v":{"v":345040.37862538995,"d":"345,040"}},{"$f":"($A11-$A10)/365.25*(AF10+(Main!$I17*Main!$D$3))*(1+Main!$I$4+VLOOKUP('Random Years'!AD11,'Hist Returns'!$A$12:$D$107,4,FALSE))","v":{"v":344415.7276805897,"d":"344,416"}},{"$f":"($A11-$A10)/365.25*(AG10+(Main!$I17*Main!$D$3))*(1+Main!$I$4+VLOOKUP('Random Years'!AE11,'Hist Returns'!$A$12:$D$107,4,FALSE))","v":{"v":379548.3902047107,"d":"379,548"}},{"$f":"($A11-$A10)/365.25*(AH10+(Main!$I17*Main!$D$3))*(1+Main!$I$4+VLOOKUP('Random Years'!AF11,'Hist Returns'!$A$12:$D$107,4,FALSE))","v":{"v":281268.5081906824,"d":"281,269"}},{"$f":"($A11-$A10)/365.25*(AI10+(Main!$I17*Main!$D$3))*(1+Main!$I$4+VLOOKUP('Random Years'!AG11,'Hist Returns'!$A$12:$D$107,4,FALSE))","v":{"v":359897.29096372967,"d":"359,897"}},{"$f":"($A11-$A10)/365.25*(AJ10+(Main!$I17*Main!$D$3))*(1+Main!$I$4+VLOOKUP('Random Years'!AH11,'Hist Returns'!$A$12:$D$107,4,FALSE))","v":{"v":418991.4543127886,"d":"418,991"}},{"$f":"($A11-$A10)/365.25*(AK10+(Main!$I17*Main!$D$3))*(1+Main!$I$4+VLOOKUP('Random Years'!AI11,'Hist Returns'!$A$12:$D$107,4,FALSE))","v":{"v":415005.7850850194,"d":"415,006"}},{"$f":"($A11-$A10)/365.25*(AL10+(Main!$I17*Main!$D$3))*(1+Main!$I$4+VLOOKUP('Random Years'!AJ11,'Hist Returns'!$A$12:$D$107,4,FALSE))","v":{"v":315832.8299500415,"d":"315,833"}},{"$f":"($A11-$A10)/365.25*(AM10+(Main!$I17*Main!$D$3))*(1+Main!$I$4+VLOOKUP('Random Years'!AK11,'Hist Returns'!$A$12:$D$107,4,FALSE))","v":{"v":321179.4678481824,"d":"321,179"}},{"$f":"($A11-$A10)/365.25*(AN10+(Main!$I17*Main!$D$3))*(1+Main!$I$4+VLOOKUP('Random Years'!AL11,'Hist Returns'!$A$12:$D$107,4,FALSE))","v":{"v":408006.1880715202,"d":"408,006"}},{"$f":"($A11-$A10)/365.25*(AO10+(Main!$I17*Main!$D$3))*(1+Main!$I$4+VLOOKUP('Random Years'!AM11,'Hist Returns'!$A$12:$D$107,4,FALSE))","v":{"v":359849.0778698997,"d":"359,849"}},{"$f":"($A11-$A10)/365.25*(AP10+(Main!$I17*Main!$D$3))*(1+Main!$I$4+VLOOKUP('Random Years'!AN11,'Hist Returns'!$A$12:$D$107,4,FALSE))","v":{"v":385509.34465145424,"d":"385,509"}},{"$f":"($A11-$A10)/365.25*(AQ10+(Main!$I17*Main!$D$3))*(1+Main!$I$4+VLOOKUP('Random Years'!AO11,'Hist Returns'!$A$12:$D$107,4,FALSE))","v":{"v":217138.69291982843,"d":"217,139"}},{"$f":"($A11-$A10)/365.25*(AR10+(Main!$I17*Main!$D$3))*(1+Main!$I$4+VLOOKUP('Random Years'!AP11,'Hist Returns'!$A$12:$D$107,4,FALSE))","v":{"v":298548.1987700968,"d":"298,548"}},{"$f":"($A11-$A10)/365.25*(AS10+(Main!$I17*Main!$D$3))*(1+Main!$I$4+VLOOKUP('Random Years'!AQ11,'Hist Returns'!$A$12:$D$107,4,FALSE))","v":{"v":494539.7830544834,"d":"494,540"}},{"$f":"($A11-$A10)/365.25*(AT10+(Main!$I17*Main!$D$3))*(1+Main!$I$4+VLOOKUP('Random Years'!AR11,'Hist Returns'!$A$12:$D$107,4,FALSE))","v":{"v":489913.9614088896,"d":"489,914"}},{"$f":"($A11-$A10)/365.25*(AU10+(Main!$I17*Main!$D$3))*(1+Main!$I$4+VLOOKUP('Random Years'!AS11,'Hist Returns'!$A$12:$D$107,4,FALSE))","v":{"v":296665.1013400835,"d":"296,665"}},{"$f":"($A11-$A10)/365.25*(AV10+(Main!$I17*Main!$D$3))*(1+Main!$I$4+VLOOKUP('Random Years'!AT11,'Hist Returns'!$A$12:$D$107,4,FALSE))","v":{"v":394860.30131652416,"d":"394,860"}},{"$f":"($A11-$A10)/365.25*(AW10+(Main!$I17*Main!$D$3))*(1+Main!$I$4+VLOOKUP('Random Years'!AU11,'Hist Returns'!$A$12:$D$107,4,FALSE))","v":{"v":453346.7595984701,"d":"453,347"}},{"$f":"($A11-$A10)/365.25*(AX10+(Main!$I17*Main!$D$3))*(1+Main!$I$4+VLOOKUP('Random Years'!AV11,'Hist Returns'!$A$12:$D$107,4,FALSE))","v":{"v":335371.4277799513,"d":"335,371"}},{"$f":"($A11-$A10)/365.25*(AY10+(Main!$I17*Main!$D$3))*(1+Main!$I$4+VLOOKUP('Random Years'!AW11,'Hist Returns'!$A$12:$D$107,4,FALSE))","v":{"v":277485.6474503401,"d":"277,486"}},{"$f":"($A11-$A10)/365.25*(AZ10+(Main!$I17*Main!$D$3))*(1+Main!$I$4+VLOOKUP('Random Years'!AX11,'Hist Returns'!$A$12:$D$107,4,FALSE))","v":{"v":307959.1630714732,"d":"307,959"}},{"$f":"($A11-$A10)/365.25*(BA10+(Main!$I17*Main!$D$3))*(1+Main!$I$4+VLOOKUP('Random Years'!AY11,'Hist Returns'!$A$12:$D$107,4,FALSE))","v":{"v":322710.92022416764,"d":"322,711"}},{"$f":"($A11-$A10)/365.25*(BB10+(Main!$I17*Main!$D$3))*(1+Main!$I$4+VLOOKUP('Random Years'!AZ11,'Hist Returns'!$A$12:$D$107,4,FALSE))","v":{"v":288021.2450194492,"d":"288,021"}},{"$f":"($A11-$A10)/365.25*(BC10+(Main!$I17*Main!$D$3))*(1+Main!$I$4+VLOOKUP('Random Years'!BA11,'Hist Returns'!$A$12:$D$107,4,FALSE))","v":{"v":410211.8190424154,"d":"410,212"}},{"$f":"($A11-$A10)/365.25*(BD10+(Main!$I17*Main!$D$3))*(1+Main!$I$4+VLOOKUP('Random Years'!BB11,'Hist Returns'!$A$12:$D$107,4,FALSE))","v":{"v":229820.2919776556,"d":"229,820"}},{"$f":"($A11-$A10)/365.25*(BE10+(Main!$I17*Main!$D$3))*(1+Main!$I$4+VLOOKUP('Random Years'!BC11,'Hist Returns'!$A$12:$D$107,4,FALSE))","v":{"v":451715.5172646387,"d":"451,716"}},{"$f":"($A11-$A10)/365.25*(BF10+(Main!$I17*Main!$D$3))*(1+Main!$I$4+VLOOKUP('Random Years'!BD11,'Hist Returns'!$A$12:$D$107,4,FALSE))","v":{"v":604938.7693867441,"d":"604,939"}},{"$f":"($A11-$A10)/365.25*(BG10+(Main!$I17*Main!$D$3))*(1+Main!$I$4+VLOOKUP('Random Years'!BE11,'Hist Returns'!$A$12:$D$107,4,FALSE))","v":{"v":331639.12430239446,"d":"331,639"}},{"$f":"($A11-$A10)/365.25*(BH10+(Main!$I17*Main!$D$3))*(1+Main!$I$4+VLOOKUP('Random Years'!BF11,'Hist Returns'!$A$12:$D$107,4,FALSE))","v":{"v":359372.8305199752,"d":"359,373"}},{"$f":"($A11-$A10)/365.25*(BI10+(Main!$I17*Main!$D$3))*(1+Main!$I$4+VLOOKUP('Random Years'!BG11,'Hist Returns'!$A$12:$D$107,4,FALSE))","v":{"v":508326.02303958964,"d":"508,326"}},{"$f":"($A11-$A10)/365.25*(BJ10+(Main!$I17*Main!$D$3))*(1+Main!$I$4+VLOOKUP('Random Years'!BH11,'Hist Returns'!$A$12:$D$107,4,FALSE))","v":{"v":415555.7750195187,"d":"415,556"}},{"$f":"($A11-$A10)/365.25*(BK10+(Main!$I17*Main!$D$3))*(1+Main!$I$4+VLOOKUP('Random Years'!BI11,'Hist Returns'!$A$12:$D$107,4,FALSE))","v":{"v":428652.6385818269,"d":"428,653"}},{"$f":"($A11-$A10)/365.25*(BL10+(Main!$I17*Main!$D$3))*(1+Main!$I$4+VLOOKUP('Random Years'!BJ11,'Hist Returns'!$A$12:$D$107,4,FALSE))","v":{"v":347096.91434455453,"d":"347,097"}},{"$f":"($A11-$A10)/365.25*(BM10+(Main!$I17*Main!$D$3))*(1+Main!$I$4+VLOOKUP('Random Years'!BK11,'Hist Returns'!$A$12:$D$107,4,FALSE))","v":{"v":311964.0424196155,"d":"311,964"}},{"$f":"($A11-$A10)/365.25*(BN10+(Main!$I17*Main!$D$3))*(1+Main!$I$4+VLOOKUP('Random Years'!BL11,'Hist Returns'!$A$12:$D$107,4,FALSE))","v":{"v":402228.17764865584,"d":"402,228"}},{"$f":"($A11-$A10)/365.25*(BO10+(Main!$I17*Main!$D$3))*(1+Main!$I$4+VLOOKUP('Random Years'!BM11,'Hist Returns'!$A$12:$D$107,4,FALSE))","v":{"v":210718.9825971498,"d":"210,719"}},{"$f":"($A11-$A10)/365.25*(BP10+(Main!$I17*Main!$D$3))*(1+Main!$I$4+VLOOKUP('Random Years'!BN11,'Hist Returns'!$A$12:$D$107,4,FALSE))","v":{"v":307059.3725384876,"d":"307,059"}},{"$f":"($A11-$A10)/365.25*(BQ10+(Main!$I17*Main!$D$3))*(1+Main!$I$4+VLOOKUP('Random Years'!BO11,'Hist Returns'!$A$12:$D$107,4,FALSE))","v":{"v":371724.5832911487,"d":"371,725"}},{"$f":"($A11-$A10)/365.25*(BR10+(Main!$I17*Main!$D$3))*(1+Main!$I$4+VLOOKUP('Random Years'!BP11,'Hist Returns'!$A$12:$D$107,4,FALSE))","v":{"v":321908.1130146703,"d":"321,908"}},{"$f":"($A11-$A10)/365.25*(BS10+(Main!$I17*Main!$D$3))*(1+Main!$I$4+VLOOKUP('Random Years'!BQ11,'Hist Returns'!$A$12:$D$107,4,FALSE))","v":{"v":344644.90874565125,"d":"344,645"}},{"$f":"($A11-$A10)/365.25*(BT10+(Main!$I17*Main!$D$3))*(1+Main!$I$4+VLOOKUP('Random Years'!BR11,'Hist Returns'!$A$12:$D$107,4,FALSE))","v":{"v":196757.25478519566,"d":"196,757"}},{"$f":"($A11-$A10)/365.25*(BU10+(Main!$I17*Main!$D$3))*(1+Main!$I$4+VLOOKUP('Random Years'!BS11,'Hist Returns'!$A$12:$D$107,4,FALSE))","v":{"v":438531.6589402356,"d":"438,532"}},{"$f":"($A11-$A10)/365.25*(BV10+(Main!$I17*Main!$D$3))*(1+Main!$I$4+VLOOKUP('Random Years'!BT11,'Hist Returns'!$A$12:$D$107,4,FALSE))","v":{"v":200364.52135251343,"d":"200,365"}},{"$f":"($A11-$A10)/365.25*(BW10+(Main!$I17*Main!$D$3))*(1+Main!$I$4+VLOOKUP('Random Years'!BU11,'Hist Returns'!$A$12:$D$107,4,FALSE))","v":{"v":365992.1214910268,"d":"365,992"}},{"$f":"($A11-$A10)/365.25*(BX10+(Main!$I17*Main!$D$3))*(1+Main!$I$4+VLOOKUP('Random Years'!BV11,'Hist Returns'!$A$12:$D$107,4,FALSE))","v":{"v":365630.71816940315,"d":"365,631"}},{"$f":"($A11-$A10)/365.25*(BY10+(Main!$I17*Main!$D$3))*(1+Main!$I$4+VLOOKUP('Random Years'!BW11,'Hist Returns'!$A$12:$D$107,4,FALSE))","v":{"v":276203.339811118,"d":"276,203"}},{"$f":"($A11-$A10)/365.25*(BZ10+(Main!$I17*Main!$D$3))*(1+Main!$I$4+VLOOKUP('Random Years'!BX11,'Hist Returns'!$A$12:$D$107,4,FALSE))","v":{"v":292253.9367105323,"d":"292,254"}},{"$f":"($A11-$A10)/365.25*(CA10+(Main!$I17*Main!$D$3))*(1+Main!$I$4+VLOOKUP('Random Years'!BY11,'Hist Returns'!$A$12:$D$107,4,FALSE))","v":{"v":570096.7130639591,"d":"570,097"}},{"$f":"($A11-$A10)/365.25*(CB10+(Main!$I17*Main!$D$3))*(1+Main!$I$4+VLOOKUP('Random Years'!BZ11,'Hist Returns'!$A$12:$D$107,4,FALSE))","v":{"v":378887.66255922295,"d":"378,888"}},{"$f":"($A11-$A10)/365.25*(CC10+(Main!$I17*Main!$D$3))*(1+Main!$I$4+VLOOKUP('Random Years'!CA11,'Hist Returns'!$A$12:$D$107,4,FALSE))","v":{"v":427823.9558621208,"d":"427,824"}},{"$f":"($A11-$A10)/365.25*(CD10+(Main!$I17*Main!$D$3))*(1+Main!$I$4+VLOOKUP('Random Years'!CB11,'Hist Returns'!$A$12:$D$107,4,FALSE))","v":{"v":421111.9833744288,"d":"421,112"}},{"$f":"($A11-$A10)/365.25*(CE10+(Main!$I17*Main!$D$3))*(1+Main!$I$4+VLOOKUP('Random Years'!CC11,'Hist Returns'!$A$12:$D$107,4,FALSE))","v":{"v":400108.00552716164,"d":"400,108"}},{"$f":"($A11-$A10)/365.25*(CF10+(Main!$I17*Main!$D$3))*(1+Main!$I$4+VLOOKUP('Random Years'!CD11,'Hist Returns'!$A$12:$D$107,4,FALSE))","v":{"v":427541.641161225,"d":"427,542"}},{"$f":"($A11-$A10)/365.25*(CG10+(Main!$I17*Main!$D$3))*(1+Main!$I$4+VLOOKUP('Random Years'!CE11,'Hist Returns'!$A$12:$D$107,4,FALSE))","v":{"v":394531.4610383715,"d":"394,531"}},{"$f":"($A11-$A10)/365.25*(CH10+(Main!$I17*Main!$D$3))*(1+Main!$I$4+VLOOKUP('Random Years'!CF11,'Hist Returns'!$A$12:$D$107,4,FALSE))","v":{"v":450325.84268351644,"d":"450,326"}},{"$f":"($A11-$A10)/365.25*(CI10+(Main!$I17*Main!$D$3))*(1+Main!$I$4+VLOOKUP('Random Years'!CG11,'Hist Returns'!$A$12:$D$107,4,FALSE))","v":{"v":688815.377696482,"d":"688,815"}},{"$f":"($A11-$A10)/365.25*(CJ10+(Main!$I17*Main!$D$3))*(1+Main!$I$4+VLOOKUP('Random Years'!CH11,'Hist Returns'!$A$12:$D$107,4,FALSE))","v":{"v":456403.61150767823,"d":"456,404"}},{"$f":"($A11-$A10)/365.25*(CK10+(Main!$I17*Main!$D$3))*(1+Main!$I$4+VLOOKUP('Random Years'!CI11,'Hist Returns'!$A$12:$D$107,4,FALSE))","v":{"v":413742.9259498862,"d":"413,743"}},{"$f":"($A11-$A10)/365.25*(CL10+(Main!$I17*Main!$D$3))*(1+Main!$I$4+VLOOKUP('Random Years'!CJ11,'Hist Returns'!$A$12:$D$107,4,FALSE))","v":{"v":497895.8639386422,"d":"497,896"}},{"$f":"($A11-$A10)/365.25*(CM10+(Main!$I17*Main!$D$3))*(1+Main!$I$4+VLOOKUP('Random Years'!CK11,'Hist Returns'!$A$12:$D$107,4,FALSE))","v":{"v":354107.2920102693,"d":"354,107"}},{"$f":"($A11-$A10)/365.25*(CN10+(Main!$I17*Main!$D$3))*(1+Main!$I$4+VLOOKUP('Random Years'!CL11,'Hist Returns'!$A$12:$D$107,4,FALSE))","v":{"v":508880.1856562356,"d":"508,880"}},{"$f":"($A11-$A10)/365.25*(CO10+(Main!$I17*Main!$D$3))*(1+Main!$I$4+VLOOKUP('Random Years'!CM11,'Hist Returns'!$A$12:$D$107,4,FALSE))","v":{"v":529448.39691185,"d":"529,448"}},{"$f":"($A11-$A10)/365.25*(CP10+(Main!$I17*Main!$D$3))*(1+Main!$I$4+VLOOKUP('Random Years'!CN11,'Hist Returns'!$A$12:$D$107,4,FALSE))","v":{"v":349486.89482622483,"d":"349,487"}},{"$f":"($A11-$A10)/365.25*(CQ10+(Main!$I17*Main!$D$3))*(1+Main!$I$4+VLOOKUP('Random Years'!CO11,'Hist Returns'!$A$12:$D$107,4,FALSE))","v":{"v":342414.31476923934,"d":"342,414"}},{"$f":"($A11-$A10)/365.25*(CR10+(Main!$I17*Main!$D$3))*(1+Main!$I$4+VLOOKUP('Random Years'!CP11,'Hist Returns'!$A$12:$D$107,4,FALSE))","v":{"v":267302.2481999984,"d":"267,302"}},{"$f":"($A11-$A10)/365.25*(CS10+(Main!$I17*Main!$D$3))*(1+Main!$I$4+VLOOKUP('Random Years'!CQ11,'Hist Returns'!$A$12:$D$107,4,FALSE))","v":{"v":289907.3270950465,"d":"289,907"}},{"$f":"($A11-$A10)/365.25*(CT10+(Main!$I17*Main!$D$3))*(1+Main!$I$4+VLOOKUP('Random Years'!CR11,'Hist Returns'!$A$12:$D$107,4,FALSE))","v":{"v":234789.05587930724,"d":"234,789"}},{"$f":"($A11-$A10)/365.25*(CU10+(Main!$I17*Main!$D$3))*(1+Main!$I$4+VLOOKUP('Random Years'!CS11,'Hist Returns'!$A$12:$D$107,4,FALSE))","v":{"v":689340.1783326853,"d":"689,340"}},{"$f":"($A11-$A10)/365.25*(CV10+(Main!$I17*Main!$D$3))*(1+Main!$I$4+VLOOKUP('Random Years'!CT11,'Hist Returns'!$A$12:$D$107,4,FALSE))","v":{"v":288706.47334712336,"d":"288,706"}},{"$f":"($A11-$A10)/365.25*(CW10+(Main!$I17*Main!$D$3))*(1+Main!$I$4+VLOOKUP('Random Years'!CU11,'Hist Returns'!$A$12:$D$107,4,FALSE))","v":{"v":324298.6192853418,"d":"324,299"}},{"$f":"($A11-$A10)/365.25*(CX10+(Main!$I17*Main!$D$3))*(1+Main!$I$4+VLOOKUP('Random Years'!CV11,'Hist Returns'!$A$12:$D$107,4,FALSE))","v":{"v":278559.42182665755,"d":"278,559"}}]
[{"$f":"Main!A18","v":"2033-12-30"},{"$f":"Main!B18","v":79},{"$f":"($A12-$A11)/365.25*(C11+(Main!$I18*Main!$D$3))*(1+Main!$I$4+VLOOKUP('Random Years'!A12,'Hist Returns'!$A$12:$D$107,4,FALSE))","v":{"v":335413.52707843576,"d":"335,414"}},{"$f":"($A12-$A11)/365.25*(D11+(Main!$I18*Main!$D$3))*(1+Main!$I$4+VLOOKUP('Random Years'!B12,'Hist Returns'!$A$12:$D$107,4,FALSE))","v":{"v":421483.6066657886,"d":"421,484"}},{"$f":"($A12-$A11)/365.25*(E11+(Main!$I18*Main!$D$3))*(1+Main!$I$4+VLOOKUP('Random Years'!C12,'Hist Returns'!$A$12:$D$107,4,FALSE))","v":{"v":233740.6597424725,"d":"233,741"}},{"$f":"($A12-$A11)/365.25*(F11+(Main!$I18*Main!$D$3))*(1+Main!$I$4+VLOOKUP('Random Years'!D12,'Hist Returns'!$A$12:$D$107,4,FALSE))","v":{"v":481701.5737774973,"d":"481,702"}},{"$f":"($A12-$A11)/365.25*(G11+(Main!$I18*Main!$D$3))*(1+Main!$I$4+VLOOKUP('Random Years'!E12,'Hist Returns'!$A$12:$D$107,4,FALSE))","v":{"v":499650.1397867977,"d":"499,650"}},{"$f":"($A12-$A11)/365.25*(H11+(Main!$I18*Main!$D$3))*(1+Main!$I$4+VLOOKUP('Random Years'!F12,'Hist Returns'!$A$12:$D$107,4,FALSE))","v":{"v":375188.3028620637,"d":"375,188"}},{"$f":"($A12-$A11)/365.25*(I11+(Main!$I18*Main!$D$3))*(1+Main!$I$4+VLOOKUP('Random Years'!G12,'Hist Returns'!$A$12:$D$107,4,FALSE))","v":{"v":331219.3249958172,"d":"331,219"}},{"$f":"($A12-$A11)/365.25*(J11+(Main!$I18*Main!$D$3))*(1+Main!$I$4+VLOOKUP('Random Years'!H12,'Hist Returns'!$A$12:$D$107,4,FALSE))","v":{"v":599832.2068983294,"d":"599,832"}},{"$f":"($A12-$A11)/365.25*(K11+(Main!$I18*Main!$D$3))*(1+Main!$I$4+VLOOKUP('Random Years'!I12,'Hist Returns'!$A$12:$D$107,4,FALSE))","v":{"v":567147.8938894069,"d":"567,148"}},{"$f":"($A12-$A11)/365.25*(L11+(Main!$I18*Main!$D$3))*(1+Main!$I$4+VLOOKUP('Random Years'!J12,'Hist Returns'!$A$12:$D$107,4,FALSE))","v":{"v":381462.2233930669,"d":"381,462"}},{"$f":"($A12-$A11)/365.25*(M11+(Main!$I18*Main!$D$3))*(1+Main!$I$4+VLOOKUP('Random Years'!K12,'Hist Returns'!$A$12:$D$107,4,FALSE))","v":{"v":269272.6765240035,"d":"269,273"}},{"$f":"($A12-$A11)/365.25*(N11+(Main!$I18*Main!$D$3))*(1+Main!$I$4+VLOOKUP('Random Years'!L12,'Hist Returns'!$A$12:$D$107,4,FALSE))","v":{"v":386605.4119711611,"d":"386,605"}},{"$f":"($A12-$A11)/365.25*(O11+(Main!$I18*Main!$D$3))*(1+Main!$I$4+VLOOKUP('Random Years'!M12,'Hist Returns'!$A$12:$D$107,4,FALSE))","v":{"v":532384.6777630005,"d":"532,385"}},{"$f":"($A12-$A11)/365.25*(P11+(Main!$I18*Main!$D$3))*(1+Main!$I$4+VLOOKUP('Random Years'!N12,'Hist Returns'!$A$12:$D$107,4,FALSE))","v":{"v":407071.70835157955,"d":"407,072"}},{"$f":"($A12-$A11)/365.25*(Q11+(Main!$I18*Main!$D$3))*(1+Main!$I$4+VLOOKUP('Random Years'!O12,'Hist Returns'!$A$12:$D$107,4,FALSE))","v":{"v":432529.81118710304,"d":"432,530"}},{"$f":"($A12-$A11)/365.25*(R11+(Main!$I18*Main!$D$3))*(1+Main!$I$4+VLOOKUP('Random Years'!P12,'Hist Returns'!$A$12:$D$107,4,FALSE))","v":{"v":338556.2307920548,"d":"338,556"}},{"$f":"($A12-$A11)/365.25*(S11+(Main!$I18*Main!$D$3))*(1+Main!$I$4+VLOOKUP('Random Years'!Q12,'Hist Returns'!$A$12:$D$107,4,FALSE))","v":{"v":227689.55885809468,"d":"227,690"}},{"$f":"($A12-$A11)/365.25*(T11+(Main!$I18*Main!$D$3))*(1+Main!$I$4+VLOOKUP('Random Years'!R12,'Hist Returns'!$A$12:$D$107,4,FALSE))","v":{"v":318555.63234911,"d":"318,556"}},{"$f":"($A12-$A11)/365.25*(U11+(Main!$I18*Main!$D$3))*(1+Main!$I$4+VLOOKUP('Random Years'!S12,'Hist Returns'!$A$12:$D$107,4,FALSE))","v":{"v":441115.79579403275,"d":"441,116"}},{"$f":"($A12-$A11)/365.25*(V11+(Main!$I18*Main!$D$3))*(1+Main!$I$4+VLOOKUP('Random Years'!T12,'Hist Returns'!$A$12:$D$107,4,FALSE))","v":{"v":487048.89949244825,"d":"487,049"}},{"$f":"($A12-$A11)/365.25*(W11+(Main!$I18*Main!$D$3))*(1+Main!$I$4+VLOOKUP('Random Years'!U12,'Hist Returns'!$A$12:$D$107,4,FALSE))","v":{"v":387662.67227044475,"d":"387,663"}},{"$f":"($A12-$A11)/365.25*(X11+(Main!$I18*Main!$D$3))*(1+Main!$I$4+VLOOKUP('Random Years'!V12,'Hist Returns'!$A$12:$D$107,4,FALSE))","v":{"v":329180.81634125713,"d":"329,181"}},{"$f":"($A12-$A11)/365.25*(Y11+(Main!$I18*Main!$D$3))*(1+Main!$I$4+VLOOKUP('Random Years'!W12,'Hist Returns'!$A$12:$D$107,4,FALSE))","v":{"v":198508.5398979007,"d":"198,509"}},{"$f":"($A12-$A11)/365.25*(Z11+(Main!$I18*Main!$D$3))*(1+Main!$I$4+VLOOKUP('Random Years'!X12,'Hist Returns'!$A$12:$D$107,4,FALSE))","v":{"v":503506.0988901939,"d":"503,506"}},{"$f":"($A12-$A11)/365.25*(AA11+(Main!$I18*Main!$D$3))*(1+Main!$I$4+VLOOKUP('Random Years'!Y12,'Hist Returns'!$A$12:$D$107,4,FALSE))","v":{"v":436806.5053605669,"d":"436,807"}},{"$f":"($A12-$A11)/365.25*(AB11+(Main!$I18*Main!$D$3))*(1+Main!$I$4+VLOOKUP('Random Years'!Z12,'Hist Returns'!$A$12:$D$107,4,FALSE))","v":{"v":375560.2749790329,"d":"375,560"}},{"$f":"($A12-$A11)/365.25*(AC11+(Main!$I18*Main!$D$3))*(1+Main!$I$4+VLOOKUP('Random Years'!AA12,'Hist Returns'!$A$12:$D$107,4,FALSE))","v":{"v":291611.18403900455,"d":"291,611"}},{"$f":"($A12-$A11)/365.25*(AD11+(Main!$I18*Main!$D$3))*(1+Main!$I$4+VLOOKUP('Random Years'!AB12,'Hist Returns'!$A$12:$D$107,4,FALSE))","v":{"v":403270.0438439659,"d":"403,270"}},{"$f":"($A12-$A11)/365.25*(AE11+(Main!$I18*Main!$D$3))*(1+Main!$I$4+VLOOKUP('Random Years'!AC12,'Hist Returns'!$A$12:$D$107,4,FALSE))","v":{"v":376409.5369742909,"d":"376,410"}},{"$f":"($A12-$A11)/365.25*(AF11+(Main!$I18*Main!$D$3))*(1+Main!$I$4+VLOOKUP('Random Years'!AD12,'Hist Returns'!$A$12:$D$107,4,FALSE))","v":{"v":353410.4596925163,"d":"353,410"}},{"$f":"($A12-$A11)/365.25*(AG11+(Main!$I18*Main!$D$3))*(1+Main!$I$4+VLOOKUP('Random Years'!AE12,'Hist Returns'!$A$12:$D$107,4,FALSE))","v":{"v":438187.8768818861,"d":"438,188"}},{"$f":"($A12-$A11)/365.25*(AH11+(Main!$I18*Main!$D$3))*(1+Main!$I$4+VLOOKUP('Random Years'!AF12,'Hist Returns'!$A$12:$D$107,4,FALSE))","v":{"v":277411.83497251215,"d":"277,412"}},{"$f":"($A12-$A11)/365.25*(AI11+(Main!$I18*Main!$D$3))*(1+Main!$I$4+VLOOKUP('Random Years'!AG12,'Hist Returns'!$A$12:$D$107,4,FALSE))","v":{"v":366380.1233345563,"d":"366,380"}},{"$f":"($A12-$A11)/365.25*(AJ11+(Main!$I18*Main!$D$3))*(1+Main!$I$4+VLOOKUP('Random Years'!AH12,'Hist Returns'!$A$12:$D$107,4,FALSE))","v":{"v":420012.8629199771,"d":"420,013"}},{"$f":"($A12-$A11)/365.25*(AK11+(Main!$I18*Main!$D$3))*(1+Main!$I$4+VLOOKUP('Random Years'!AI12,'Hist Returns'!$A$12:$D$107,4,FALSE))","v":{"v":496296.4156808293,"d":"496,296"}},{"$f":"($A12-$A11)/365.25*(AL11+(Main!$I18*Main!$D$3))*(1+Main!$I$4+VLOOKUP('Random Years'!AJ12,'Hist Returns'!$A$12:$D$107,4,FALSE))","v":{"v":339882.4127634362,"d":"339,882"}},{"$f":"($A12-$A11)/365.25*(AM11+(Main!$I18*Main!$D$3))*(1+Main!$I$4+VLOOKUP('Random Years'!AK12,'Hist Returns'!$A$12:$D$107,4,FALSE))","v":{"v":355665.37495252513,"d":"355,665"}},{"$f":"($A12-$A11)/365.25*(AN11+(Main!$I18*Main!$D$3))*(1+Main!$I$4+VLOOKUP('Random Years'!AL12,'Hist Returns'!$A$12:$D$107,4,FALSE))","v":{"v":440616.3226581363,"d":"440,616"}},{"$f":"($A12-$A11)/365.25*(AO11+(Main!$I18*Main!$D$3))*(1+Main!$I$4+VLOOKUP('Random Years'!AM12,'Hist Returns'!$A$12:$D$107,4,FALSE))","v":{"v":342284.0466813352,"d":"342,284"}},{"$f":"($A12-$A11)/365.25*(AP11+(Main!$I18*Main!$D$3))*(1+Main!$I$4+VLOOKUP('Random Years'!AN12,'Hist Returns'!$A$12:$D$107,4,FALSE))","v":{"v":421897.26995622396,"d":"421,897"}},{"$f":"($A12-$A11)/365.25*(AQ11+(Main!$I18*Main!$D$3))*(1+Main!$I$4+VLOOKUP('Random Years'!AO12,'Hist Returns'!$A$12:$D$107,4,FALSE))","v":{"v":219498.0295396223,"d":"219,498"}},{"$f":"($A12-$A11)/365.25*(AR11+(Main!$I18*Main!$D$3))*(1+Main!$I$4+VLOOKUP('Random Years'!AP12,'Hist Returns'!$A$12:$D$107,4,FALSE))","v":{"v":321976.2364284007,"d":"321,976"}},{"$f":"($A12-$A11)/365.25*(AS11+(Main!$I18*Main!$D$3))*(1+Main!$I$4+VLOOKUP('Random Years'!AQ12,'Hist Returns'!$A$12:$D$107,4,FALSE))","v":{"v":477980.33615341375,"d":"477,980"}},{"$f":"($A12-$A11)/365.25*(AT11+(Main!$I18*Main!$D$3))*(1+Main!$I$4+VLOOKUP('Random Years'!AR12,'Hist Returns'!$A$12:$D$107,4,FALSE))","v":{"v":480373.6546321063,"d":"480,374"}},{"$f":"($A12-$A11)/365.25*(AU11+(Main!$I18*Main!$D$3))*(1+Main!$I$4+VLOOKUP('Random Years'!AS12,'Hist Returns'!$A$12:$D$107,4,FALSE))","v":{"v":307986.82629524806,"d":"307,987"}},{"$f":"($A12-$A11)/365.25*(AV11+(Main!$I18*Main!$D$3))*(1+Main!$I$4+VLOOKUP('Random Years'!AT12,'Hist Returns'!$A$12:$D$107,4,FALSE))","v":{"v":411432.0391191581,"d":"411,432"}},{"$f":"($A12-$A11)/365.25*(AW11+(Main!$I18*Main!$D$3))*(1+Main!$I$4+VLOOKUP('Random Years'!AU12,'Hist Returns'!$A$12:$D$107,4,FALSE))","v":{"v":471739.6772840088,"d":"471,740"}},{"$f":"($A12-$A11)/365.25*(AX11+(Main!$I18*Main!$D$3))*(1+Main!$I$4+VLOOKUP('Random Years'!AV12,'Hist Returns'!$A$12:$D$107,4,FALSE))","v":{"v":351677.2018767241,"d":"351,677"}},{"$f":"($A12-$A11)/365.25*(AY11+(Main!$I18*Main!$D$3))*(1+Main!$I$4+VLOOKUP('Random Years'!AW12,'Hist Returns'!$A$12:$D$107,4,FALSE))","v":{"v":268506.01256612106,"d":"268,506"}},{"$f":"($A12-$A11)/365.25*(AZ11+(Main!$I18*Main!$D$3))*(1+Main!$I$4+VLOOKUP('Random Years'!AX12,'Hist Returns'!$A$12:$D$107,4,FALSE))","v":{"v":314152.37282633485,"d":"314,152"}},{"$f":"($A12-$A11)/365.25*(BA11+(Main!$I18*Main!$D$3))*(1+Main!$I$4+VLOOKUP('Random Years'!AY12,'Hist Returns'!$A$12:$D$107,4,FALSE))","v":{"v":334524.4097466124,"d":"334,524"}},{"$f":"($A12-$A11)/365.25*(BB11+(Main!$I18*Main!$D$3))*(1+Main!$I$4+VLOOKUP('Random Years'!AZ12,'Hist Returns'!$A$12:$D$107,4,FALSE))","v":{"v":309811.0928904935,"d":"309,811"}},{"$f":"($A12-$A11)/365.25*(BC11+(Main!$I18*Main!$D$3))*(1+Main!$I$4+VLOOKUP('Random Years'!BA12,'Hist Returns'!$A$12:$D$107,4,FALSE))","v":{"v":420153.07171712804,"d":"420,153"}},{"$f":"($A12-$A11)/365.25*(BD11+(Main!$I18*Main!$D$3))*(1+Main!$I$4+VLOOKUP('Random Years'!BB12,'Hist Returns'!$A$12:$D$107,4,FALSE))","v":{"v":238419.35913241282,"d":"238,419"}},{"$f":"($A12-$A11)/365.25*(BE11+(Main!$I18*Main!$D$3))*(1+Main!$I$4+VLOOKUP('Random Years'!BC12,'Hist Returns'!$A$12:$D$107,4,FALSE))","v":{"v":513853.5831652187,"d":"513,854"}},{"$f":"($A12-$A11)/365.25*(BF11+(Main!$I18*Main!$D$3))*(1+Main!$I$4+VLOOKUP('Random Years'!BD12,'Hist Returns'!$A$12:$D$107,4,FALSE))","v":{"v":659488.4699935097,"d":"659,488"}},{"$f":"($A12-$A11)/365.25*(BG11+(Main!$I18*Main!$D$3))*(1+Main!$I$4+VLOOKUP('Random Years'!BE12,'Hist Returns'!$A$12:$D$107,4,FALSE))","v":{"v":368323.2608006524,"d":"368,323"}},{"$f":"($A12-$A11)/365.25*(BH11+(Main!$I18*Main!$D$3))*(1+Main!$I$4+VLOOKUP('Random Years'!BF12,'Hist Returns'!$A$12:$D$107,4,FALSE))","v":{"v":362214.4531188256,"d":"362,214"}},{"$f":"($A12-$A11)/365.25*(BI11+(Main!$I18*Main!$D$3))*(1+Main!$I$4+VLOOKUP('Random Years'!BG12,'Hist Returns'!$A$12:$D$107,4,FALSE))","v":{"v":538069.3671931566,"d":"538,069"}},{"$f":"($A12-$A11)/365.25*(BJ11+(Main!$I18*Main!$D$3))*(1+Main!$I$4+VLOOKUP('Random Years'!BH12,'Hist Returns'!$A$12:$D$107,4,FALSE))","v":{"v":461943.26988143823,"d":"461,943"}},{"$f":"($A12-$A11)/365.25*(BK11+(Main!$I18*Main!$D$3))*(1+Main!$I$4+VLOOKUP('Random Years'!BI12,'Hist Returns'!$A$12:$D$107,4,FALSE))","v":{"v":432375.53506383277,"d":"432,376"}},{"$f":"($A12-$A11)/365.25*(BL11+(Main!$I18*Main!$D$3))*(1+Main!$I$4+VLOOKUP('Random Years'!BJ12,'Hist Returns'!$A$12:$D$107,4,FALSE))","v":{"v":380631.11417077883,"d":"380,631"}},{"$f":"($A12-$A11)/365.25*(BM11+(Main!$I18*Main!$D$3))*(1+Main!$I$4+VLOOKUP('Random Years'!BK12,'Hist Returns'!$A$12:$D$107,4,FALSE))","v":{"v":323303.10287229135,"d":"323,303"}},{"$f":"($A12-$A11)/365.25*(BN11+(Main!$I18*Main!$D$3))*(1+Main!$I$4+VLOOKUP('Random Years'!BL12,'Hist Returns'!$A$12:$D$107,4,FALSE))","v":{"v":464474.923899447,"d":"464,475"}},{"$f":"($A12-$A11)/365.25*(BO11+(Main!$I18*Main!$D$3))*(1+Main!$I$4+VLOOKUP('Random Years'!BM12,'Hist Returns'!$A$12:$D$107,4,FALSE))","v":{"v":220988.92741232406,"d":"220,989"}},{"$f":"($A12-$A11)/365.25*(BP11+(Main!$I18*Main!$D$3))*(1+Main!$I$4+VLOOKUP('Random Years'!BN12,'Hist Returns'!$A$12:$D$107,4,FALSE))","v":{"v":304457.28415268037,"d":"304,457"}},{"$f":"($A12-$A11)/365.25*(BQ11+(Main!$I18*Main!$D$3))*(1+Main!$I$4+VLOOKUP('Random Years'!BO12,'Hist Returns'!$A$12:$D$107,4,FALSE))","v":{"v":390595.9578363468,"d":"390,596"}},{"$f":"($A12-$A11)/365.25*(BR11+(Main!$I18*Main!$D$3))*(1+Main!$I$4+VLOOKUP('Random Years'!BP12,'Hist Returns'!$A$12:$D$107,4,FALSE))","v":{"v":365700.77827346255,"d":"365,701"}},{"$f":"($A12-$A11)/365.25*(BS11+(Main!$I18*Main!$D$3))*(1+Main!$I$4+VLOOKUP('Random Years'!BQ12,'Hist Returns'!$A$12:$D$107,4,FALSE))","v":{"v":394087.26683627936,"d":"394,087"}},{"$f":"($A12-$A11)/365.25*(BT11+(Main!$I18*Main!$D$3))*(1+Main!$I$4+VLOOKUP('Random Years'!BR12,'Hist Returns'!$A$12:$D$107,4,FALSE))","v":{"v":196927.0586210993,"d":"196,927"}},{"$f":"($A12-$A11)/365.25*(BU11+(Main!$I18*Main!$D$3))*(1+Main!$I$4+VLOOKUP('Random Years'!BS12,'Hist Returns'!$A$12:$D$107,4,FALSE))","v":{"v":426889.45343813667,"d":"426,889"}},{"$f":"($A12-$A11)/365.25*(BV11+(Main!$I18*Main!$D$3))*(1+Main!$I$4+VLOOKUP('Random Years'!BT12,'Hist Returns'!$A$12:$D$107,4,FALSE))","v":{"v":198150.33069822242,"d":"198,150"}},{"$f":"($A12-$A11)/365.25*(BW11+(Main!$I18*Main!$D$3))*(1+Main!$I$4+VLOOKUP('Random Years'!BU12,'Hist Returns'!$A$12:$D$107,4,FALSE))","v":{"v":373640.44999903697,"d":"373,640"}},{"$f":"($A12-$A11)/365.25*(BX11+(Main!$I18*Main!$D$3))*(1+Main!$I$4+VLOOKUP('Random Years'!BV12,'Hist Returns'!$A$12:$D$107,4,FALSE))","v":{"v":359027.1352172407,"d":"359,027"}},{"$f":"($A12-$A11)/365.25*(BY11+(Main!$I18*Main!$D$3))*(1+Main!$I$4+VLOOKUP('Random Years'!BW12,'Hist Returns'!$A$12:$D$107,4,FALSE))","v":{"v":284758.57706602005,"d":"284,759"}},{"$f":"($A12-$A11)/365.25*(BZ11+(Main!$I18*Main!$D$3))*(1+Main!$I$4+VLOOKUP('Random Years'!BX12,'Hist Returns'!$A$12:$D$107,4,FALSE))","v":{"v":292991.32534305175,"d":"292,991"}},{"$f":"($A12-$A11)/365.25*(CA11+(Main!$I18*Main!$D$3))*(1+Main!$I$4+VLOOKUP('Random Years'!BY12,'Hist Returns'!$A$12:$D$107,4,FALSE))","v":{"v":575546.1203431599,"d":"575,546"}},{"$f":"($A12-$A11)/365.25*(CB11+(Main!$I18*Main!$D$3))*(1+Main!$I$4+VLOOKUP('Random Years'!BZ12,'Hist Returns'!$A$12:$D$107,4,FALSE))","v":{"v":388345.1106022984,"d":"388,345"}},{"$f":"($A12-$A11)/365.25*(CC11+(Main!$I18*Main!$D$3))*(1+Main!$I$4+VLOOKUP('Random Years'!CA12,'Hist Returns'!$A$12:$D$107,4,FALSE))","v":{"v":511680.66568981344,"d":"511,681"}},{"$f":"($A12-$A11)/365.25*(CD11+(Main!$I18*Main!$D$3))*(1+Main!$I$4+VLOOKUP('Random Years'!CB12,'Hist Returns'!$A$12:$D$107,4,FALSE))","v":{"v":410853.84413203486,"d":"410,854"}},{"$f":"($A12-$A11)/365.25*(CE11+(Main!$I18*Main!$D$3))*(1+Main!$I$4+VLOOKUP('Random Years'!CC12,'Hist Returns'!$A$12:$D$107,4,FALSE))","v":{"v":437935.92537405493,"d":"437,936"}},{"$f":"($A12-$A11)/365.25*(CF11+(Main!$I18*Main!$D$3))*(1+Main!$I$4+VLOOKUP('Random Years'!CD12,'Hist Returns'!$A$12:$D$107,4,FALSE))","v":{"v":429315.94611228874,"d":"429,316"}},{"$f":"($A12-$A11)/365.25*(CG11+(Main!$I18*Main!$D$3))*(1+Main!$I$4+VLOOKUP('Random Years'!CE12,'Hist Returns'!$A$12:$D$107,4,FALSE))","v":{"v":395594.72533754533,"d":"395,595"}},{"$f":"($A12-$A11)/365.25*(CH11+(Main!$I18*Main!$D$3))*(1+Main!$I$4+VLOOKUP('Random Years'!CF12,'Hist Returns'!$A$12:$D$107,4,FALSE))","v":{"v":494321.76519341796,"d":"494,322"}},{"$f":"($A12-$A11)/365.25*(CI11+(Main!$I18*Main!$D$3))*(1+Main!$I$4+VLOOKUP('Random Years'!CG12,'Hist Returns'!$A$12:$D$107,4,FALSE))","v":{"v":681512.9171521384,"d":"681,513"}},{"$f":"($A12-$A11)/365.25*(CJ11+(Main!$I18*Main!$D$3))*(1+Main!$I$4+VLOOKUP('Random Years'!CH12,'Hist Returns'!$A$12:$D$107,4,FALSE))","v":{"v":493073.6583575064,"d":"493,074"}},{"$f":"($A12-$A11)/365.25*(CK11+(Main!$I18*Main!$D$3))*(1+Main!$I$4+VLOOKUP('Random Years'!CI12,'Hist Returns'!$A$12:$D$107,4,FALSE))","v":{"v":406463.86171862343,"d":"406,464"}},{"$f":"($A12-$A11)/365.25*(CL11+(Main!$I18*Main!$D$3))*(1+Main!$I$4+VLOOKUP('Random Years'!CJ12,'Hist Returns'!$A$12:$D$107,4,FALSE))","v":{"v":570497.0339437667,"d":"570,497"}},{"$f":"($A12-$A11)/365.25*(CM11+(Main!$I18*Main!$D$3))*(1+Main!$I$4+VLOOKUP('Random Years'!CK12,'Hist Returns'!$A$12:$D$107,4,FALSE))","v":{"v":343048.708089092,"d":"343,049"}},{"$f":"($A12-$A11)/365.25*(CN11+(Main!$I18*Main!$D$3))*(1+Main!$I$4+VLOOKUP('Random Years'!CL12,'Hist Returns'!$A$12:$D$107,4,FALSE))","v":{"v":491882.4753794979,"d":"491,882"}},{"$f":"($A12-$A11)/365.25*(CO11+(Main!$I18*Main!$D$3))*(1+Main!$I$4+VLOOKUP('Random Years'!CM12,'Hist Returns'!$A$12:$D$107,4,FALSE))","v":{"v":542724.8444880588,"d":"542,725"}},{"$f":"($A12-$A11)/365.25*(CP11+(Main!$I18*Main!$D$3))*(1+Main!$I$4+VLOOKUP('Random Years'!CN12,'Hist Returns'!$A$12:$D$107,4,FALSE))","v":{"v":378326.48901348835,"d":"378,326"}},{"$f":"($A12-$A11)/365.25*(CQ11+(Main!$I18*Main!$D$3))*(1+Main!$I$4+VLOOKUP('Random Years'!CO12,'Hist Returns'!$A$12:$D$107,4,FALSE))","v":{"v":351347.8478371018,"d":"351,348"}},{"$f":"($A12-$A11)/365.25*(CR11+(Main!$I18*Main!$D$3))*(1+Main!$I$4+VLOOKUP('Random Years'!CP12,'Hist Returns'!$A$12:$D$107,4,FALSE))","v":{"v":275734.7809380934,"d":"275,735"}},{"$f":"($A12-$A11)/365.25*(CS11+(Main!$I18*Main!$D$3))*(1+Main!$I$4+VLOOKUP('Random Years'!CQ12,'Hist Returns'!$A$12:$D$107,4,FALSE))","v":{"v":311920.69128941116,"d":"311,921"}},{"$f":"($A12-$A11)/365.25*(CT11+(Main!$I18*Main!$D$3))*(1+Main!$I$4+VLOOKUP('Random Years'!CR12,'Hist Returns'!$A$12:$D$107,4,FALSE))","v":{"v":226167.96563986325,"d":"226,168"}},{"$f":"($A12-$A11)/365.25*(CU11+(Main!$I18*Main!$D$3))*(1+Main!$I$4+VLOOKUP('Random Years'!CS12,'Hist Returns'!$A$12:$D$107,4,FALSE))","v":{"v":685348.2772640588,"d":"685,348"}},{"$f":"($A12-$A11)/365.25*(CV11+(Main!$I18*Main!$D$3))*(1+Main!$I$4+VLOOKUP('Random Years'!CT12,'Hist Returns'!$A$12:$D$107,4,FALSE))","v":{"v":288999.14375986607,"d":"288,999"}},{"$f":"($A12-$A11)/365.25*(CW11+(Main!$I18*Main!$D$3))*(1+Main!$I$4+VLOOKUP('Random Years'!CU12,'Hist Returns'!$A$12:$D$107,4,FALSE))","v":{"v":376314.1422016867,"d":"376,314"}},{"$f":"($A12-$A11)/365.25*(CX11+(Main!$I18*Main!$D$3))*(1+Main!$I$4+VLOOKUP('Random Years'!CV12,'Hist Returns'!$A$12:$D$107,4,FALSE))","v":{"v":286860.78439040866,"d":"286,861"}}]
[{"$f":"Main!A19","v":"2034-12-30"},{"$f":"Main!B19","v":80},{"$f":"($A13-$A12)/365.25*(C12+(Main!$I19*Main!$D$3))*(1+Main!$I$4+VLOOKUP('Random Years'!A13,'Hist Returns'!$A$12:$D$107,4,FALSE))","v":{"v":366721.5519150525,"d":"366,722"}},{"$f":"($A13-$A12)/365.25*(D12+(Main!$I19*Main!$D$3))*(1+Main!$I$4+VLOOKUP('Random Years'!B13,'Hist Returns'!$A$12:$D$107,4,FALSE))","v":{"v":381378.12340301275,"d":"381,378"}},{"$f":"($A13-$A12)/365.25*(E12+(Main!$I19*Main!$D$3))*(1+Main!$I$4+VLOOKUP('Random Years'!C13,'Hist Returns'!$A$12:$D$107,4,FALSE))","v":{"v":256900.72409909402,"d":"256,901"}},{"$f":"($A13-$A12)/365.25*(F12+(Main!$I19*Main!$D$3))*(1+Main!$I$4+VLOOKUP('Random Years'!D13,'Hist Returns'!$A$12:$D$107,4,FALSE))","v":{"v":469685.5704909626,"d":"469,686"}},{"$f":"($A13-$A12)/365.25*(G12+(Main!$I19*Main!$D$3))*(1+Main!$I$4+VLOOKUP('Random Years'!E13,'Hist Returns'!$A$12:$D$107,4,FALSE))","v":{"v":572368.2590675183,"d":"572,368"}},{"$f":"($A13-$A12)/365.25*(H12+(Main!$I19*Main!$D$3))*(1+Main!$I$4+VLOOKUP('Random Years'!F13,'Hist Returns'!$A$12:$D$107,4,FALSE))","v":{"v":380598.8845745514,"d":"380,599"}},{"$f":"($A13-$A12)/365.25*(I12+(Main!$I19*Main!$D$3))*(1+Main!$I$4+VLOOKUP('Random Years'!G13,'Hist Returns'!$A$12:$D$107,4,FALSE))","v":{"v":331585.6761395901,"d":"331,586"}},{"$f":"($A13-$A12)/365.25*(J12+(Main!$I19*Main!$D$3))*(1+Main!$I$4+VLOOKUP('Random Years'!H13,'Hist Returns'!$A$12:$D$107,4,FALSE))","v":{"v":620548.5239821912,"d":"620,549"}},{"$f":"($A13-$A12)/365.25*(K12+(Main!$I19*Main!$D$3))*(1+Main!$I$4+VLOOKUP('Random Years'!I13,'Hist Returns'!$A$12:$D$107,4,FALSE))","v":{"v":576790.7271047581,"d":"576,791"}},{"$f":"($A13-$A12)/365.25*(L12+(Main!$I19*Main!$D$3))*(1+Main!$I$4+VLOOKUP('Random Years'!J13,'Hist Returns'!$A$12:$D$107,4,FALSE))","v":{"v":381009.6432094458,"d":"381,010"}},{"$f":"($A13-$A12)/365.25*(M12+(Main!$I19*Main!$D$3))*(1+Main!$I$4+VLOOKUP('Random Years'!K13,'Hist Returns'!$A$12:$D$107,4,FALSE))","v":{"v":272690.7149452335,"d":"272,691"}},{"$f":"($A13-$A12)/365.25*(N12+(Main!$I19*Main!$D$3))*(1+Main!$I$4+VLOOKUP('Random Years'!L13,'Hist Returns'!$A$12:$D$107,4,FALSE))","v":{"v":393553.58242891374,"d":"393,554"}},{"$f":"($A13-$A12)/365.25*(O12+(Main!$I19*Main!$D$3))*(1+Main!$I$4+VLOOKUP('Random Years'!M13,'Hist Returns'!$A$12:$D$107,4,FALSE))","v":{"v":559959.2236889357,"d":"559,959"}},{"$f":"($A13-$A12)/365.25*(P12+(Main!$I19*Main!$D$3))*(1+Main!$I$4+VLOOKUP('Random Years'!N13,'Hist Returns'!$A$12:$D$107,4,FALSE))","v":{"v":371732.77094352193,"d":"371,733"}},{"$f":"($A13-$A12)/365.25*(Q12+(Main!$I19*Main!$D$3))*(1+Main!$I$4+VLOOKUP('Random Years'!O13,'Hist Returns'!$A$12:$D$107,4,FALSE))","v":{"v":440499.73119928327,"d":"440,500"}},{"$f":"($A13-$A12)/365.25*(R12+(Main!$I19*Main!$D$3))*(1+Main!$I$4+VLOOKUP('Random Years'!P13,'Hist Returns'!$A$12:$D$107,4,FALSE))","v":{"v":390529.7182850078,"d":"390,530"}},{"$f":"($A13-$A12)/365.25*(S12+(Main!$I19*Main!$D$3))*(1+Main!$I$4+VLOOKUP('Random Years'!Q13,'Hist Returns'!$A$12:$D$107,4,FALSE))","v":{"v":225879.8662676451,"d":"225,880"}},{"$f":"($A13-$A12)/365.25*(T12+(Main!$I19*Main!$D$3))*(1+Main!$I$4+VLOOKUP('Random Years'!R13,'Hist Returns'!$A$12:$D$107,4,FALSE))","v":{"v":367508.8028959429,"d":"367,509"}},{"$f":"($A13-$A12)/365.25*(U12+(Main!$I19*Main!$D$3))*(1+Main!$I$4+VLOOKUP('Random Years'!S13,'Hist Returns'!$A$12:$D$107,4,FALSE))","v":{"v":439124.4193598234,"d":"439,124"}},{"$f":"($A13-$A12)/365.25*(V12+(Main!$I19*Main!$D$3))*(1+Main!$I$4+VLOOKUP('Random Years'!T13,'Hist Returns'!$A$12:$D$107,4,FALSE))","v":{"v":551719.8636448456,"d":"551,720"}},{"$f":"($A13-$A12)/365.25*(W12+(Main!$I19*Main!$D$3))*(1+Main!$I$4+VLOOKUP('Random Years'!U13,'Hist Returns'!$A$12:$D$107,4,FALSE))","v":{"v":422970.5022909458,"d":"422,971"}},{"$f":"($A13-$A12)/365.25*(X12+(Main!$I19*Main!$D$3))*(1+Main!$I$4+VLOOKUP('Random Years'!V13,'Hist Returns'!$A$12:$D$107,4,FALSE))","v":{"v":342604.79071942915,"d":"342,605"}},{"$f":"($A13-$A12)/365.25*(Y12+(Main!$I19*Main!$D$3))*(1+Main!$I$4+VLOOKUP('Random Years'!W13,'Hist Returns'!$A$12:$D$107,4,FALSE))","v":{"v":200614.92968886695,"d":"200,615"}},{"$f":"($A13-$A12)/365.25*(Z12+(Main!$I19*Main!$D$3))*(1+Main!$I$4+VLOOKUP('Random Years'!X13,'Hist Returns'!$A$12:$D$107,4,FALSE))","v":{"v":666125.1721032728,"d":"666,125"}},{"$f":"($A13-$A12)/365.25*(AA12+(Main!$I19*Main!$D$3))*(1+Main!$I$4+VLOOKUP('Random Years'!Y13,'Hist Returns'!$A$12:$D$107,4,FALSE))","v":{"v":395296.4051751298,"d":"395,296"}},{"$f":"($A13-$A12)/365.25*(AB12+(Main!$I19*Main!$D$3))*(1+Main!$I$4+VLOOKUP('Random Years'!Z13,'Hist Returns'!$A$12:$D$107,4,FALSE))","v":{"v":380977.8544365355,"d":"380,978"}},{"$f":"($A13-$A12)/365.25*(AC12+(Main!$I19*Main!$D$3))*(1+Main!$I$4+VLOOKUP('Random Years'!AA13,'Hist Returns'!$A$12:$D$107,4,FALSE))","v":{"v":336117.9803315958,"d":"336,118"}},{"$f":"($A13-$A12)/365.25*(AD12+(Main!$I19*Main!$D$3))*(1+Main!$I$4+VLOOKUP('Random Years'!AB13,'Hist Returns'!$A$12:$D$107,4,FALSE))","v":{"v":428659.5903332864,"d":"428,660"}},{"$f":"($A13-$A12)/365.25*(AE12+(Main!$I19*Main!$D$3))*(1+Main!$I$4+VLOOKUP('Random Years'!AC13,'Hist Returns'!$A$12:$D$107,4,FALSE))","v":{"v":418129.86599820934,"d":"418,130"}},{"$f":"($A13-$A12)/365.25*(AF12+(Main!$I19*Main!$D$3))*(1+Main!$I$4+VLOOKUP('Random Years'!AD13,'Hist Returns'!$A$12:$D$107,4,FALSE))","v":{"v":367063.83887975645,"d":"367,064"}},{"$f":"($A13-$A12)/365.25*(AG12+(Main!$I19*Main!$D$3))*(1+Main!$I$4+VLOOKUP('Random Years'!AE13,'Hist Returns'!$A$12:$D$107,4,FALSE))","v":{"v":509368.0134351963,"d":"509,368"}},{"$f":"($A13-$A12)/365.25*(AH12+(Main!$I19*Main!$D$3))*(1+Main!$I$4+VLOOKUP('Random Years'!AF13,'Hist Returns'!$A$12:$D$107,4,FALSE))","v":{"v":269388.7764373057,"d":"269,389"}},{"$f":"($A13-$A12)/365.25*(AI12+(Main!$I19*Main!$D$3))*(1+Main!$I$4+VLOOKUP('Random Years'!AG13,'Hist Returns'!$A$12:$D$107,4,FALSE))","v":{"v":389289.2231926333,"d":"389,289"}},{"$f":"($A13-$A12)/365.25*(AJ12+(Main!$I19*Main!$D$3))*(1+Main!$I$4+VLOOKUP('Random Years'!AH13,'Hist Returns'!$A$12:$D$107,4,FALSE))","v":{"v":407043.4333067524,"d":"407,043"}},{"$f":"($A13-$A12)/365.25*(AK12+(Main!$I19*Main!$D$3))*(1+Main!$I$4+VLOOKUP('Random Years'!AI13,'Hist Returns'!$A$12:$D$107,4,FALSE))","v":{"v":551879.3731253191,"d":"551,879"}},{"$f":"($A13-$A12)/365.25*(AL12+(Main!$I19*Main!$D$3))*(1+Main!$I$4+VLOOKUP('Random Years'!AJ13,'Hist Returns'!$A$12:$D$107,4,FALSE))","v":{"v":310131.6167047202,"d":"310,132"}},{"$f":"($A13-$A12)/365.25*(AM12+(Main!$I19*Main!$D$3))*(1+Main!$I$4+VLOOKUP('Random Years'!AK13,'Hist Returns'!$A$12:$D$107,4,FALSE))","v":{"v":402395.2381324935,"d":"402,395"}},{"$f":"($A13-$A12)/365.25*(AN12+(Main!$I19*Main!$D$3))*(1+Main!$I$4+VLOOKUP('Random Years'!AL13,'Hist Returns'!$A$12:$D$107,4,FALSE))","v":{"v":508822.64497716323,"d":"508,823"}},{"$f":"($A13-$A12)/365.25*(AO12+(Main!$I19*Main!$D$3))*(1+Main!$I$4+VLOOKUP('Random Years'!AM13,'Hist Returns'!$A$12:$D$107,4,FALSE))","v":{"v":335883.94124004117,"d":"335,884"}},{"$f":"($A13-$A12)/365.25*(AP12+(Main!$I19*Main!$D$3))*(1+Main!$I$4+VLOOKUP('Random Years'!AN13,'Hist Returns'!$A$12:$D$107,4,FALSE))","v":{"v":428648.0704127971,"d":"428,648"}},{"$f":"($A13-$A12)/365.25*(AQ12+(Main!$I19*Main!$D$3))*(1+Main!$I$4+VLOOKUP('Random Years'!AO13,'Hist Returns'!$A$12:$D$107,4,FALSE))","v":{"v":227618.6999343912,"d":"227,619"}},{"$f":"($A13-$A12)/365.25*(AR12+(Main!$I19*Main!$D$3))*(1+Main!$I$4+VLOOKUP('Random Years'!AP13,'Hist Returns'!$A$12:$D$107,4,FALSE))","v":{"v":347232.93191482493,"d":"347,233"}},{"$f":"($A13-$A12)/365.25*(AS12+(Main!$I19*Main!$D$3))*(1+Main!$I$4+VLOOKUP('Random Years'!AQ13,'Hist Returns'!$A$12:$D$107,4,FALSE))","v":{"v":479321.6954712362,"d":"479,322"}},{"$f":"($A13-$A12)/365.25*(AT12+(Main!$I19*Main!$D$3))*(1+Main!$I$4+VLOOKUP('Random Years'!AR13,'Hist Returns'!$A$12:$D$107,4,FALSE))","v":{"v":484552.60785646556,"d":"484,553"}},{"$f":"($A13-$A12)/365.25*(AU12+(Main!$I19*Main!$D$3))*(1+Main!$I$4+VLOOKUP('Random Years'!AS13,'Hist Returns'!$A$12:$D$107,4,FALSE))","v":{"v":323591.2321396833,"d":"323,591"}},{"$f":"($A13-$A12)/365.25*(AV12+(Main!$I19*Main!$D$3))*(1+Main!$I$4+VLOOKUP('Random Years'!AT13,'Hist Returns'!$A$12:$D$107,4,FALSE))","v":{"v":425114.6863407208,"d":"425,115"}},{"$f":"($A13-$A12)/365.25*(AW12+(Main!$I19*Main!$D$3))*(1+Main!$I$4+VLOOKUP('Random Years'!AU13,'Hist Returns'!$A$12:$D$107,4,FALSE))","v":{"v":427027.32891934057,"d":"427,027"}},{"$f":"($A13-$A12)/365.25*(AX12+(Main!$I19*Main!$D$3))*(1+Main!$I$4+VLOOKUP('Random Years'!AV13,'Hist Returns'!$A$12:$D$107,4,FALSE))","v":{"v":345145.2192928321,"d":"345,145"}},{"$f":"($A13-$A12)/365.25*(AY12+(Main!$I19*Main!$D$3))*(1+Main!$I$4+VLOOKUP('Random Years'!AW13,'Hist Returns'!$A$12:$D$107,4,FALSE))","v":{"v":261312.76948424533,"d":"261,313"}},{"$f":"($A13-$A12)/365.25*(AZ12+(Main!$I19*Main!$D$3))*(1+Main!$I$4+VLOOKUP('Random Years'!AX13,'Hist Returns'!$A$12:$D$107,4,FALSE))","v":{"v":316350.03128411254,"d":"316,350"}},{"$f":"($A13-$A12)/365.25*(BA12+(Main!$I19*Main!$D$3))*(1+Main!$I$4+VLOOKUP('Random Years'!AY13,'Hist Returns'!$A$12:$D$107,4,FALSE))","v":{"v":322733.043358868,"d":"322,733"}},{"$f":"($A13-$A12)/365.25*(BB12+(Main!$I19*Main!$D$3))*(1+Main!$I$4+VLOOKUP('Random Years'!AZ13,'Hist Returns'!$A$12:$D$107,4,FALSE))","v":{"v":253069.5507433223,"d":"253,070"}},{"$f":"($A13-$A12)/365.25*(BC12+(Main!$I19*Main!$D$3))*(1+Main!$I$4+VLOOKUP('Random Years'!BA13,'Hist Returns'!$A$12:$D$107,4,FALSE))","v":{"v":431945.43185326963,"d":"431,945"}},{"$f":"($A13-$A12)/365.25*(BD12+(Main!$I19*Main!$D$3))*(1+Main!$I$4+VLOOKUP('Random Years'!BB13,'Hist Returns'!$A$12:$D$107,4,FALSE))","v":{"v":217107.2567742755,"d":"217,107"}},{"$f":"($A13-$A12)/365.25*(BE12+(Main!$I19*Main!$D$3))*(1+Main!$I$4+VLOOKUP('Random Years'!BC13,'Hist Returns'!$A$12:$D$107,4,FALSE))","v":{"v":543803.7297403495,"d":"543,804"}},{"$f":"($A13-$A12)/365.25*(BF12+(Main!$I19*Main!$D$3))*(1+Main!$I$4+VLOOKUP('Random Years'!BD13,'Hist Returns'!$A$12:$D$107,4,FALSE))","v":{"v":672507.8824861149,"d":"672,508"}},{"$f":"($A13-$A12)/365.25*(BG12+(Main!$I19*Main!$D$3))*(1+Main!$I$4+VLOOKUP('Random Years'!BE13,'Hist Returns'!$A$12:$D$107,4,FALSE))","v":{"v":301116.09052620747,"d":"301,116"}},{"$f":"($A13-$A12)/365.25*(BH12+(Main!$I19*Main!$D$3))*(1+Main!$I$4+VLOOKUP('Random Years'!BF13,'Hist Returns'!$A$12:$D$107,4,FALSE))","v":{"v":361702.8563022044,"d":"361,703"}},{"$f":"($A13-$A12)/365.25*(BI12+(Main!$I19*Main!$D$3))*(1+Main!$I$4+VLOOKUP('Random Years'!BG13,'Hist Returns'!$A$12:$D$107,4,FALSE))","v":{"v":609707.4405465315,"d":"609,707"}},{"$f":"($A13-$A12)/365.25*(BJ12+(Main!$I19*Main!$D$3))*(1+Main!$I$4+VLOOKUP('Random Years'!BH13,'Hist Returns'!$A$12:$D$107,4,FALSE))","v":{"v":480307.83597112173,"d":"480,308"}},{"$f":"($A13-$A12)/365.25*(BK12+(Main!$I19*Main!$D$3))*(1+Main!$I$4+VLOOKUP('Random Years'!BI13,'Hist Returns'!$A$12:$D$107,4,FALSE))","v":{"v":442981.07655765244,"d":"442,981"}},{"$f":"($A13-$A12)/365.25*(BL12+(Main!$I19*Main!$D$3))*(1+Main!$I$4+VLOOKUP('Random Years'!BJ13,'Hist Returns'!$A$12:$D$107,4,FALSE))","v":{"v":368730.2161598985,"d":"368,730"}},{"$f":"($A13-$A12)/365.25*(BM12+(Main!$I19*Main!$D$3))*(1+Main!$I$4+VLOOKUP('Random Years'!BK13,'Hist Returns'!$A$12:$D$107,4,FALSE))","v":{"v":369700.0271875051,"d":"369,700"}},{"$f":"($A13-$A12)/365.25*(BN12+(Main!$I19*Main!$D$3))*(1+Main!$I$4+VLOOKUP('Random Years'!BL13,'Hist Returns'!$A$12:$D$107,4,FALSE))","v":{"v":480137.85672524455,"d":"480,138"}},{"$f":"($A13-$A12)/365.25*(BO12+(Main!$I19*Main!$D$3))*(1+Main!$I$4+VLOOKUP('Random Years'!BM13,'Hist Returns'!$A$12:$D$107,4,FALSE))","v":{"v":229444.8958586087,"d":"229,445"}},{"$f":"($A13-$A12)/365.25*(BP12+(Main!$I19*Main!$D$3))*(1+Main!$I$4+VLOOKUP('Random Years'!BN13,'Hist Returns'!$A$12:$D$107,4,FALSE))","v":{"v":351160.93450695474,"d":"351,161"}},{"$f":"($A13-$A12)/365.25*(BQ12+(Main!$I19*Main!$D$3))*(1+Main!$I$4+VLOOKUP('Random Years'!BO13,'Hist Returns'!$A$12:$D$107,4,FALSE))","v":{"v":385689.919794113,"d":"385,690"}},{"$f":"($A13-$A12)/365.25*(BR12+(Main!$I19*Main!$D$3))*(1+Main!$I$4+VLOOKUP('Random Years'!BP13,'Hist Returns'!$A$12:$D$107,4,FALSE))","v":{"v":375803.7676515243,"d":"375,804"}},{"$f":"($A13-$A12)/365.25*(BS12+(Main!$I19*Main!$D$3))*(1+Main!$I$4+VLOOKUP('Random Years'!BQ13,'Hist Returns'!$A$12:$D$107,4,FALSE))","v":{"v":397221.5700761536,"d":"397,222"}},{"$f":"($A13-$A12)/365.25*(BT12+(Main!$I19*Main!$D$3))*(1+Main!$I$4+VLOOKUP('Random Years'!BR13,'Hist Returns'!$A$12:$D$107,4,FALSE))","v":{"v":227683.2391387608,"d":"227,683"}},{"$f":"($A13-$A12)/365.25*(BU12+(Main!$I19*Main!$D$3))*(1+Main!$I$4+VLOOKUP('Random Years'!BS13,'Hist Returns'!$A$12:$D$107,4,FALSE))","v":{"v":437339.32713071245,"d":"437,339"}},{"$f":"($A13-$A12)/365.25*(BV12+(Main!$I19*Main!$D$3))*(1+Main!$I$4+VLOOKUP('Random Years'!BT13,'Hist Returns'!$A$12:$D$107,4,FALSE))","v":{"v":203584.1325148666,"d":"203,584"}},{"$f":"($A13-$A12)/365.25*(BW12+(Main!$I19*Main!$D$3))*(1+Main!$I$4+VLOOKUP('Random Years'!BU13,'Hist Returns'!$A$12:$D$107,4,FALSE))","v":{"v":433687.6190067225,"d":"433,688"}},{"$f":"($A13-$A12)/365.25*(BX12+(Main!$I19*Main!$D$3))*(1+Main!$I$4+VLOOKUP('Random Years'!BV13,'Hist Returns'!$A$12:$D$107,4,FALSE))","v":{"v":372924.3227802273,"d":"372,924"}},{"$f":"($A13-$A12)/365.25*(BY12+(Main!$I19*Main!$D$3))*(1+Main!$I$4+VLOOKUP('Random Years'!BW13,'Hist Returns'!$A$12:$D$107,4,FALSE))","v":{"v":310223.67616232735,"d":"310,224"}},{"$f":"($A13-$A12)/365.25*(BZ12+(Main!$I19*Main!$D$3))*(1+Main!$I$4+VLOOKUP('Random Years'!BX13,'Hist Returns'!$A$12:$D$107,4,FALSE))","v":{"v":278304.7277582106,"d":"278,305"}},{"$f":"($A13-$A12)/365.25*(CA12+(Main!$I19*Main!$D$3))*(1+Main!$I$4+VLOOKUP('Random Years'!BY13,'Hist Returns'!$A$12:$D$107,4,FALSE))","v":{"v":544778.6638288207,"d":"544,779"}},{"$f":"($A13-$A12)/365.25*(CB12+(Main!$I19*Main!$D$3))*(1+Main!$I$4+VLOOKUP('Random Years'!BZ13,'Hist Returns'!$A$12:$D$107,4,FALSE))","v":{"v":420434.465037082,"d":"420,434"}},{"$f":"($A13-$A12)/365.25*(CC12+(Main!$I19*Main!$D$3))*(1+Main!$I$4+VLOOKUP('Random Years'!CA13,'Hist Returns'!$A$12:$D$107,4,FALSE))","v":{"v":525660.0752774978,"d":"525,660"}},{"$f":"($A13-$A12)/365.25*(CD12+(Main!$I19*Main!$D$3))*(1+Main!$I$4+VLOOKUP('Random Years'!CB13,'Hist Returns'!$A$12:$D$107,4,FALSE))","v":{"v":417384.76292209356,"d":"417,385"}},{"$f":"($A13-$A12)/365.25*(CE12+(Main!$I19*Main!$D$3))*(1+Main!$I$4+VLOOKUP('Random Years'!CC13,'Hist Returns'!$A$12:$D$107,4,FALSE))","v":{"v":422984.15399766044,"d":"422,984"}},{"$f":"($A13-$A12)/365.25*(CF12+(Main!$I19*Main!$D$3))*(1+Main!$I$4+VLOOKUP('Random Years'!CD13,'Hist Returns'!$A$12:$D$107,4,FALSE))","v":{"v":537302.6655946231,"d":"537,303"}},{"$f":"($A13-$A12)/365.25*(CG12+(Main!$I19*Main!$D$3))*(1+Main!$I$4+VLOOKUP('Random Years'!CE13,'Hist Returns'!$A$12:$D$107,4,FALSE))","v":{"v":398747.27904009604,"d":"398,747"}},{"$f":"($A13-$A12)/365.25*(CH12+(Main!$I19*Main!$D$3))*(1+Main!$I$4+VLOOKUP('Random Years'!CF13,'Hist Returns'!$A$12:$D$107,4,FALSE))","v":{"v":513065.44017968565,"d":"513,065"}},{"$f":"($A13-$A12)/365.25*(CI12+(Main!$I19*Main!$D$3))*(1+Main!$I$4+VLOOKUP('Random Years'!CG13,'Hist Returns'!$A$12:$D$107,4,FALSE))","v":{"v":745925.4525207087,"d":"745,925"}},{"$f":"($A13-$A12)/365.25*(CJ12+(Main!$I19*Main!$D$3))*(1+Main!$I$4+VLOOKUP('Random Years'!CH13,'Hist Returns'!$A$12:$D$107,4,FALSE))","v":{"v":508826.15390500176,"d":"508,826"}},{"$f":"($A13-$A12)/365.25*(CK12+(Main!$I19*Main!$D$3))*(1+Main!$I$4+VLOOKUP('Random Years'!CI13,'Hist Returns'!$A$12:$D$107,4,FALSE))","v":{"v":412907.373152994,"d":"412,907"}},{"$f":"($A13-$A12)/365.25*(CL12+(Main!$I19*Main!$D$3))*(1+Main!$I$4+VLOOKUP('Random Years'!CJ13,'Hist Returns'!$A$12:$D$107,4,FALSE))","v":{"v":600857.6655908771,"d":"600,858"}},{"$f":"($A13-$A12)/365.25*(CM12+(Main!$I19*Main!$D$3))*(1+Main!$I$4+VLOOKUP('Random Years'!CK13,'Hist Returns'!$A$12:$D$107,4,FALSE))","v":{"v":347982.8559632505,"d":"347,983"}},{"$f":"($A13-$A12)/365.25*(CN12+(Main!$I19*Main!$D$3))*(1+Main!$I$4+VLOOKUP('Random Years'!CL13,'Hist Returns'!$A$12:$D$107,4,FALSE))","v":{"v":505972.99688346416,"d":"505,973"}},{"$f":"($A13-$A12)/365.25*(CO12+(Main!$I19*Main!$D$3))*(1+Main!$I$4+VLOOKUP('Random Years'!CM13,'Hist Returns'!$A$12:$D$107,4,FALSE))","v":{"v":585205.2776494344,"d":"585,205"}},{"$f":"($A13-$A12)/365.25*(CP12+(Main!$I19*Main!$D$3))*(1+Main!$I$4+VLOOKUP('Random Years'!CN13,'Hist Returns'!$A$12:$D$107,4,FALSE))","v":{"v":342177.1252157819,"d":"342,177"}},{"$f":"($A13-$A12)/365.25*(CQ12+(Main!$I19*Main!$D$3))*(1+Main!$I$4+VLOOKUP('Random Years'!CO13,'Hist Returns'!$A$12:$D$107,4,FALSE))","v":{"v":358193.55834126845,"d":"358,194"}},{"$f":"($A13-$A12)/365.25*(CR12+(Main!$I19*Main!$D$3))*(1+Main!$I$4+VLOOKUP('Random Years'!CP13,'Hist Returns'!$A$12:$D$107,4,FALSE))","v":{"v":301156.16524962784,"d":"301,156"}},{"$f":"($A13-$A12)/365.25*(CS12+(Main!$I19*Main!$D$3))*(1+Main!$I$4+VLOOKUP('Random Years'!CQ13,'Hist Returns'!$A$12:$D$107,4,FALSE))","v":{"v":312681.7770790352,"d":"312,682"}},{"$f":"($A13-$A12)/365.25*(CT12+(Main!$I19*Main!$D$3))*(1+Main!$I$4+VLOOKUP('Random Years'!CR13,'Hist Returns'!$A$12:$D$107,4,FALSE))","v":{"v":233851.4299421833,"d":"233,851"}},{"$f":"($A13-$A12)/365.25*(CU12+(Main!$I19*Main!$D$3))*(1+Main!$I$4+VLOOKUP('Random Years'!CS13,'Hist Returns'!$A$12:$D$107,4,FALSE))","v":{"v":695939.4339631747,"d":"695,939"}},{"$f":"($A13-$A12)/365.25*(CV12+(Main!$I19*Main!$D$3))*(1+Main!$I$4+VLOOKUP('Random Years'!CT13,'Hist Returns'!$A$12:$D$107,4,FALSE))","v":{"v":293698.54743492603,"d":"293,699"}},{"$f":"($A13-$A12)/365.25*(CW12+(Main!$I19*Main!$D$3))*(1+Main!$I$4+VLOOKUP('Random Years'!CU13,'Hist Returns'!$A$12:$D$107,4,FALSE))","v":{"v":397788.1990385372,"d":"397,788"}},{"$f":"($A13-$A12)/365.25*(CX12+(Main!$I19*Main!$D$3))*(1+Main!$I$4+VLOOKUP('Random Years'!CV13,'Hist Returns'!$A$12:$D$107,4,FALSE))","v":{"v":310104.92318330164,"d":"310,105"}}]
[{"$f":"Main!A20","v":"2035-12-31"},{"$f":"Main!B20","v":81},{"$f":"($A14-$A13)/365.25*(C13+(Main!$I20*Main!$D$3))*(1+Main!$I$4+VLOOKUP('Random Years'!A14,'Hist Returns'!$A$12:$D$107,4,FALSE))","v":{"v":368530.30384868756,"d":"368,530"}},{"$f":"($A14-$A13)/365.25*(D13+(Main!$I20*Main!$D$3))*(1+Main!$I$4+VLOOKUP('Random Years'!B14,'Hist Returns'!$A$12:$D$107,4,FALSE))","v":{"v":379748.7680995796,"d":"379,749"}},{"$f":"($A14-$A13)/365.25*(E13+(Main!$I20*Main!$D$3))*(1+Main!$I$4+VLOOKUP('Random Years'!C14,'Hist Returns'!$A$12:$D$107,4,FALSE))","v":{"v":205602.82891790298,"d":"205,603"}},{"$f":"($A14-$A13)/365.25*(F13+(Main!$I20*Main!$D$3))*(1+Main!$I$4+VLOOKUP('Random Years'!D14,'Hist Returns'!$A$12:$D$107,4,FALSE))","v":{"v":484482.6026759131,"d":"484,483"}},{"$f":"($A14-$A13)/365.25*(G13+(Main!$I20*Main!$D$3))*(1+Main!$I$4+VLOOKUP('Random Years'!E14,'Hist Returns'!$A$12:$D$107,4,FALSE))","v":{"v":752170.9332933676,"d":"752,171"}},{"$f":"($A14-$A13)/365.25*(H13+(Main!$I20*Main!$D$3))*(1+Main!$I$4+VLOOKUP('Random Years'!F14,'Hist Returns'!$A$12:$D$107,4,FALSE))","v":{"v":470376.6278440181,"d":"470,377"}},{"$f":"($A14-$A13)/365.25*(I13+(Main!$I20*Main!$D$3))*(1+Main!$I$4+VLOOKUP('Random Years'!G14,'Hist Returns'!$A$12:$D$107,4,FALSE))","v":{"v":333433.3719619747,"d":"333,433"}},{"$f":"($A14-$A13)/365.25*(J13+(Main!$I20*Main!$D$3))*(1+Main!$I$4+VLOOKUP('Random Years'!H14,'Hist Returns'!$A$12:$D$107,4,FALSE))","v":{"v":546286.5018269857,"d":"546,287"}},{"$f":"($A14-$A13)/365.25*(K13+(Main!$I20*Main!$D$3))*(1+Main!$I$4+VLOOKUP('Random Years'!I14,'Hist Returns'!$A$12:$D$107,4,FALSE))","v":{"v":468996.18487116793,"d":"468,996"}},{"$f":"($A14-$A13)/365.25*(L13+(Main!$I20*Main!$D$3))*(1+Main!$I$4+VLOOKUP('Random Years'!J14,'Hist Returns'!$A$12:$D$107,4,FALSE))","v":{"v":373473.9913365219,"d":"373,474"}},{"$f":"($A14-$A13)/365.25*(M13+(Main!$I20*Main!$D$3))*(1+Main!$I$4+VLOOKUP('Random Years'!K14,'Hist Returns'!$A$12:$D$107,4,FALSE))","v":{"v":254279.91341987776,"d":"254,280"}},{"$f":"($A14-$A13)/365.25*(N13+(Main!$I20*Main!$D$3))*(1+Main!$I$4+VLOOKUP('Random Years'!L14,'Hist Returns'!$A$12:$D$107,4,FALSE))","v":{"v":409192.4242680123,"d":"409,192"}},{"$f":"($A14-$A13)/365.25*(O13+(Main!$I20*Main!$D$3))*(1+Main!$I$4+VLOOKUP('Random Years'!M14,'Hist Returns'!$A$12:$D$107,4,FALSE))","v":{"v":555976.0913672389,"d":"555,976"}},{"$f":"($A14-$A13)/365.25*(P13+(Main!$I20*Main!$D$3))*(1+Main!$I$4+VLOOKUP('Random Years'!N14,'Hist Returns'!$A$12:$D$107,4,FALSE))","v":{"v":399480.8448262272,"d":"399,481"}},{"$f":"($A14-$A13)/365.25*(Q13+(Main!$I20*Main!$D$3))*(1+Main!$I$4+VLOOKUP('Random Years'!O14,'Hist Returns'!$A$12:$D$107,4,FALSE))","v":{"v":470937.840652216,"d":"470,938"}},{"$f":"($A14-$A13)/365.25*(R13+(Main!$I20*Main!$D$3))*(1+Main!$I$4+VLOOKUP('Random Years'!P14,'Hist Returns'!$A$12:$D$107,4,FALSE))","v":{"v":386881.0670019736,"d":"386,881"}},{"$f":"($A14-$A13)/365.25*(S13+(Main!$I20*Main!$D$3))*(1+Main!$I$4+VLOOKUP('Random Years'!Q14,'Hist Returns'!$A$12:$D$107,4,FALSE))","v":{"v":244637.72112871992,"d":"244,638"}},{"$f":"($A14-$A13)/365.25*(T13+(Main!$I20*Main!$D$3))*(1+Main!$I$4+VLOOKUP('Random Years'!R14,'Hist Returns'!$A$12:$D$107,4,FALSE))","v":{"v":368231.5197978986,"d":"368,232"}},{"$f":"($A14-$A13)/365.25*(U13+(Main!$I20*Main!$D$3))*(1+Main!$I$4+VLOOKUP('Random Years'!S14,'Hist Returns'!$A$12:$D$107,4,FALSE))","v":{"v":435925.594641911,"d":"435,926"}},{"$f":"($A14-$A13)/365.25*(V13+(Main!$I20*Main!$D$3))*(1+Main!$I$4+VLOOKUP('Random Years'!T14,'Hist Returns'!$A$12:$D$107,4,FALSE))","v":{"v":565982.7815971132,"d":"565,983"}},{"$f":"($A14-$A13)/365.25*(W13+(Main!$I20*Main!$D$3))*(1+Main!$I$4+VLOOKUP('Random Years'!U14,'Hist Returns'!$A$12:$D$107,4,FALSE))","v":{"v":450787.36102005607,"d":"450,787"}},{"$f":"($A14-$A13)/365.25*(X13+(Main!$I20*Main!$D$3))*(1+Main!$I$4+VLOOKUP('Random Years'!V14,'Hist Returns'!$A$12:$D$107,4,FALSE))","v":{"v":365640.377359878,"d":"365,640"}},{"$f":"($A14-$A13)/365.25*(Y13+(Main!$I20*Main!$D$3))*(1+Main!$I$4+VLOOKUP('Random Years'!W14,'Hist Returns'!$A$12:$D$107,4,FALSE))","v":{"v":213078.574675803,"d":"213,079"}},{"$f":"($A14-$A13)/365.25*(Z13+(Main!$I20*Main!$D$3))*(1+Main!$I$4+VLOOKUP('Random Years'!X14,'Hist Returns'!$A$12:$D$107,4,FALSE))","v":{"v":691073.2745627161,"d":"691,073"}},{"$f":"($A14-$A13)/365.25*(AA13+(Main!$I20*Main!$D$3))*(1+Main!$I$4+VLOOKUP('Random Years'!Y14,'Hist Returns'!$A$12:$D$107,4,FALSE))","v":{"v":428602.2832553274,"d":"428,602"}},{"$f":"($A14-$A13)/365.25*(AB13+(Main!$I20*Main!$D$3))*(1+Main!$I$4+VLOOKUP('Random Years'!Z14,'Hist Returns'!$A$12:$D$107,4,FALSE))","v":{"v":395418.83600007195,"d":"395,419"}},{"$f":"($A14-$A13)/365.25*(AC13+(Main!$I20*Main!$D$3))*(1+Main!$I$4+VLOOKUP('Random Years'!AA14,'Hist Returns'!$A$12:$D$107,4,FALSE))","v":{"v":384491.48604465503,"d":"384,491"}},{"$f":"($A14-$A13)/365.25*(AD13+(Main!$I20*Main!$D$3))*(1+Main!$I$4+VLOOKUP('Random Years'!AB14,'Hist Returns'!$A$12:$D$107,4,FALSE))","v":{"v":432843.936157333,"d":"432,844"}},{"$f":"($A14-$A13)/365.25*(AE13+(Main!$I20*Main!$D$3))*(1+Main!$I$4+VLOOKUP('Random Years'!AC14,'Hist Returns'!$A$12:$D$107,4,FALSE))","v":{"v":414736.7010000597,"d":"414,737"}},{"$f":"($A14-$A13)/365.25*(AF13+(Main!$I20*Main!$D$3))*(1+Main!$I$4+VLOOKUP('Random Years'!AD14,'Hist Returns'!$A$12:$D$107,4,FALSE))","v":{"v":342524.7887040707,"d":"342,525"}},{"$f":"($A14-$A13)/365.25*(AG13+(Main!$I20*Main!$D$3))*(1+Main!$I$4+VLOOKUP('Random Years'!AE14,'Hist Returns'!$A$12:$D$107,4,FALSE))","v":{"v":525705.5574454395,"d":"525,706"}},{"$f":"($A14-$A13)/365.25*(AH13+(Main!$I20*Main!$D$3))*(1+Main!$I$4+VLOOKUP('Random Years'!AF14,'Hist Returns'!$A$12:$D$107,4,FALSE))","v":{"v":288843.1990240699,"d":"288,843"}},{"$f":"($A14-$A13)/365.25*(AI13+(Main!$I20*Main!$D$3))*(1+Main!$I$4+VLOOKUP('Random Years'!AG14,'Hist Returns'!$A$12:$D$107,4,FALSE))","v":{"v":414269.6499454371,"d":"414,270"}},{"$f":"($A14-$A13)/365.25*(AJ13+(Main!$I20*Main!$D$3))*(1+Main!$I$4+VLOOKUP('Random Years'!AH14,'Hist Returns'!$A$12:$D$107,4,FALSE))","v":{"v":464915.7903706124,"d":"464,916"}},{"$f":"($A14-$A13)/365.25*(AK13+(Main!$I20*Main!$D$3))*(1+Main!$I$4+VLOOKUP('Random Years'!AI14,'Hist Returns'!$A$12:$D$107,4,FALSE))","v":{"v":570585.2092993011,"d":"570,585"}},{"$f":"($A14-$A13)/365.25*(AL13+(Main!$I20*Main!$D$3))*(1+Main!$I$4+VLOOKUP('Random Years'!AJ14,'Hist Returns'!$A$12:$D$107,4,FALSE))","v":{"v":304860.6784330215,"d":"304,861"}},{"$f":"($A14-$A13)/365.25*(AM13+(Main!$I20*Main!$D$3))*(1+Main!$I$4+VLOOKUP('Random Years'!AK14,'Hist Returns'!$A$12:$D$107,4,FALSE))","v":{"v":492177.5308795562,"d":"492,178"}},{"$f":"($A14-$A13)/365.25*(AN13+(Main!$I20*Main!$D$3))*(1+Main!$I$4+VLOOKUP('Random Years'!AL14,'Hist Returns'!$A$12:$D$107,4,FALSE))","v":{"v":519192.0125107878,"d":"519,192"}},{"$f":"($A14-$A13)/365.25*(AO13+(Main!$I20*Main!$D$3))*(1+Main!$I$4+VLOOKUP('Random Years'!AM14,'Hist Returns'!$A$12:$D$107,4,FALSE))","v":{"v":340197.17261698924,"d":"340,197"}},{"$f":"($A14-$A13)/365.25*(AP13+(Main!$I20*Main!$D$3))*(1+Main!$I$4+VLOOKUP('Random Years'!AN14,'Hist Returns'!$A$12:$D$107,4,FALSE))","v":{"v":436209.80651763827,"d":"436,210"}},{"$f":"($A14-$A13)/365.25*(AQ13+(Main!$I20*Main!$D$3))*(1+Main!$I$4+VLOOKUP('Random Years'!AO14,'Hist Returns'!$A$12:$D$107,4,FALSE))","v":{"v":242166.5434252297,"d":"242,167"}},{"$f":"($A14-$A13)/365.25*(AR13+(Main!$I20*Main!$D$3))*(1+Main!$I$4+VLOOKUP('Random Years'!AP14,'Hist Returns'!$A$12:$D$107,4,FALSE))","v":{"v":355090.0856828396,"d":"355,090"}},{"$f":"($A14-$A13)/365.25*(AS13+(Main!$I20*Main!$D$3))*(1+Main!$I$4+VLOOKUP('Random Years'!AQ14,'Hist Returns'!$A$12:$D$107,4,FALSE))","v":{"v":568192.0739382202,"d":"568,192"}},{"$f":"($A14-$A13)/365.25*(AT13+(Main!$I20*Main!$D$3))*(1+Main!$I$4+VLOOKUP('Random Years'!AR14,'Hist Returns'!$A$12:$D$107,4,FALSE))","v":{"v":485169.29919850116,"d":"485,169"}},{"$f":"($A14-$A13)/365.25*(AU13+(Main!$I20*Main!$D$3))*(1+Main!$I$4+VLOOKUP('Random Years'!AS14,'Hist Returns'!$A$12:$D$107,4,FALSE))","v":{"v":260514.9442012555,"d":"260,515"}},{"$f":"($A14-$A13)/365.25*(AV13+(Main!$I20*Main!$D$3))*(1+Main!$I$4+VLOOKUP('Random Years'!AT14,'Hist Returns'!$A$12:$D$107,4,FALSE))","v":{"v":430501.5086816596,"d":"430,502"}},{"$f":"($A14-$A13)/365.25*(AW13+(Main!$I20*Main!$D$3))*(1+Main!$I$4+VLOOKUP('Random Years'!AU14,'Hist Returns'!$A$12:$D$107,4,FALSE))","v":{"v":412185.1259559398,"d":"412,185"}},{"$f":"($A14-$A13)/365.25*(AX13+(Main!$I20*Main!$D$3))*(1+Main!$I$4+VLOOKUP('Random Years'!AV14,'Hist Returns'!$A$12:$D$107,4,FALSE))","v":{"v":375046.13821623527,"d":"375,046"}},{"$f":"($A14-$A13)/365.25*(AY13+(Main!$I20*Main!$D$3))*(1+Main!$I$4+VLOOKUP('Random Years'!AW14,'Hist Returns'!$A$12:$D$107,4,FALSE))","v":{"v":242006.20391034588,"d":"242,006"}},{"$f":"($A14-$A13)/365.25*(AZ13+(Main!$I20*Main!$D$3))*(1+Main!$I$4+VLOOKUP('Random Years'!AX14,'Hist Returns'!$A$12:$D$107,4,FALSE))","v":{"v":343089.9835731295,"d":"343,090"}},{"$f":"($A14-$A13)/365.25*(BA13+(Main!$I20*Main!$D$3))*(1+Main!$I$4+VLOOKUP('Random Years'!AY14,'Hist Returns'!$A$12:$D$107,4,FALSE))","v":{"v":343977.451159738,"d":"343,977"}},{"$f":"($A14-$A13)/365.25*(BB13+(Main!$I20*Main!$D$3))*(1+Main!$I$4+VLOOKUP('Random Years'!AZ14,'Hist Returns'!$A$12:$D$107,4,FALSE))","v":{"v":257565.20332372573,"d":"257,565"}},{"$f":"($A14-$A13)/365.25*(BC13+(Main!$I20*Main!$D$3))*(1+Main!$I$4+VLOOKUP('Random Years'!BA14,'Hist Returns'!$A$12:$D$107,4,FALSE))","v":{"v":391414.90011137334,"d":"391,415"}},{"$f":"($A14-$A13)/365.25*(BD13+(Main!$I20*Main!$D$3))*(1+Main!$I$4+VLOOKUP('Random Years'!BB14,'Hist Returns'!$A$12:$D$107,4,FALSE))","v":{"v":217229.11268757153,"d":"217,229"}},{"$f":"($A14-$A13)/365.25*(BE13+(Main!$I20*Main!$D$3))*(1+Main!$I$4+VLOOKUP('Random Years'!BC14,'Hist Returns'!$A$12:$D$107,4,FALSE))","v":{"v":559990.3278749405,"d":"559,990"}},{"$f":"($A14-$A13)/365.25*(BF13+(Main!$I20*Main!$D$3))*(1+Main!$I$4+VLOOKUP('Random Years'!BD14,'Hist Returns'!$A$12:$D$107,4,FALSE))","v":{"v":681797.1854944564,"d":"681,797"}},{"$f":"($A14-$A13)/365.25*(BG13+(Main!$I20*Main!$D$3))*(1+Main!$I$4+VLOOKUP('Random Years'!BE14,'Hist Returns'!$A$12:$D$107,4,FALSE))","v":{"v":327891.98118991754,"d":"327,892"}},{"$f":"($A14-$A13)/365.25*(BH13+(Main!$I20*Main!$D$3))*(1+Main!$I$4+VLOOKUP('Random Years'!BF14,'Hist Returns'!$A$12:$D$107,4,FALSE))","v":{"v":337422.15221473266,"d":"337,422"}},{"$f":"($A14-$A13)/365.25*(BI13+(Main!$I20*Main!$D$3))*(1+Main!$I$4+VLOOKUP('Random Years'!BG14,'Hist Returns'!$A$12:$D$107,4,FALSE))","v":{"v":653397.342435307,"d":"653,397"}},{"$f":"($A14-$A13)/365.25*(BJ13+(Main!$I20*Main!$D$3))*(1+Main!$I$4+VLOOKUP('Random Years'!BH14,'Hist Returns'!$A$12:$D$107,4,FALSE))","v":{"v":512953.2953662546,"d":"512,953"}},{"$f":"($A14-$A13)/365.25*(BK13+(Main!$I20*Main!$D$3))*(1+Main!$I$4+VLOOKUP('Random Years'!BI14,'Hist Returns'!$A$12:$D$107,4,FALSE))","v":{"v":400634.4521415134,"d":"400,634"}},{"$f":"($A14-$A13)/365.25*(BL13+(Main!$I20*Main!$D$3))*(1+Main!$I$4+VLOOKUP('Random Years'!BJ14,'Hist Returns'!$A$12:$D$107,4,FALSE))","v":{"v":392067.6133002405,"d":"392,068"}},{"$f":"($A14-$A13)/365.25*(BM13+(Main!$I20*Main!$D$3))*(1+Main!$I$4+VLOOKUP('Random Years'!BK14,'Hist Returns'!$A$12:$D$107,4,FALSE))","v":{"v":374611.0769845629,"d":"374,611"}},{"$f":"($A14-$A13)/365.25*(BN13+(Main!$I20*Main!$D$3))*(1+Main!$I$4+VLOOKUP('Random Years'!BL14,'Hist Returns'!$A$12:$D$107,4,FALSE))","v":{"v":493550.0947639799,"d":"493,550"}},{"$f":"($A14-$A13)/365.25*(BO13+(Main!$I20*Main!$D$3))*(1+Main!$I$4+VLOOKUP('Random Years'!BM14,'Hist Returns'!$A$12:$D$107,4,FALSE))","v":{"v":232705.15182552667,"d":"232,705"}},{"$f":"($A14-$A13)/365.25*(BP13+(Main!$I20*Main!$D$3))*(1+Main!$I$4+VLOOKUP('Random Years'!BN14,'Hist Returns'!$A$12:$D$107,4,FALSE))","v":{"v":383721.31035673025,"d":"383,721"}},{"$f":"($A14-$A13)/365.25*(BQ13+(Main!$I20*Main!$D$3))*(1+Main!$I$4+VLOOKUP('Random Years'!BO14,'Hist Returns'!$A$12:$D$107,4,FALSE))","v":{"v":369232.18564558297,"d":"369,232"}},{"$f":"($A14-$A13)/365.25*(BR13+(Main!$I20*Main!$D$3))*(1+Main!$I$4+VLOOKUP('Random Years'!BP14,'Hist Returns'!$A$12:$D$107,4,FALSE))","v":{"v":380918.6907491399,"d":"380,919"}},{"$f":"($A14-$A13)/365.25*(BS13+(Main!$I20*Main!$D$3))*(1+Main!$I$4+VLOOKUP('Random Years'!BQ14,'Hist Returns'!$A$12:$D$107,4,FALSE))","v":{"v":482594.24662144604,"d":"482,594"}},{"$f":"($A14-$A13)/365.25*(BT13+(Main!$I20*Main!$D$3))*(1+Main!$I$4+VLOOKUP('Random Years'!BR14,'Hist Returns'!$A$12:$D$107,4,FALSE))","v":{"v":242562.0013369676,"d":"242,562"}},{"$f":"($A14-$A13)/365.25*(BU13+(Main!$I20*Main!$D$3))*(1+Main!$I$4+VLOOKUP('Random Years'!BS14,'Hist Returns'!$A$12:$D$107,4,FALSE))","v":{"v":449185.70616701775,"d":"449,186"}},{"$f":"($A14-$A13)/365.25*(BV13+(Main!$I20*Main!$D$3))*(1+Main!$I$4+VLOOKUP('Random Years'!BT14,'Hist Returns'!$A$12:$D$107,4,FALSE))","v":{"v":198148.19800651944,"d":"198,148"}},{"$f":"($A14-$A13)/365.25*(BW13+(Main!$I20*Main!$D$3))*(1+Main!$I$4+VLOOKUP('Random Years'!BU14,'Hist Returns'!$A$12:$D$107,4,FALSE))","v":{"v":450454.7098214124,"d":"450,455"}},{"$f":"($A14-$A13)/365.25*(BX13+(Main!$I20*Main!$D$3))*(1+Main!$I$4+VLOOKUP('Random Years'!BV14,'Hist Returns'!$A$12:$D$107,4,FALSE))","v":{"v":372650.3438210952,"d":"372,650"}},{"$f":"($A14-$A13)/365.25*(BY13+(Main!$I20*Main!$D$3))*(1+Main!$I$4+VLOOKUP('Random Years'!BW14,'Hist Returns'!$A$12:$D$107,4,FALSE))","v":{"v":381724.53814597003,"d":"381,725"}},{"$f":"($A14-$A13)/365.25*(BZ13+(Main!$I20*Main!$D$3))*(1+Main!$I$4+VLOOKUP('Random Years'!BX14,'Hist Returns'!$A$12:$D$107,4,FALSE))","v":{"v":284000.46303850465,"d":"284,000"}},{"$f":"($A14-$A13)/365.25*(CA13+(Main!$I20*Main!$D$3))*(1+Main!$I$4+VLOOKUP('Random Years'!BY14,'Hist Returns'!$A$12:$D$107,4,FALSE))","v":{"v":615237.8459356341,"d":"615,238"}},{"$f":"($A14-$A13)/365.25*(CB13+(Main!$I20*Main!$D$3))*(1+Main!$I$4+VLOOKUP('Random Years'!BZ14,'Hist Returns'!$A$12:$D$107,4,FALSE))","v":{"v":431245.0155524626,"d":"431,245"}},{"$f":"($A14-$A13)/365.25*(CC13+(Main!$I20*Main!$D$3))*(1+Main!$I$4+VLOOKUP('Random Years'!CA14,'Hist Returns'!$A$12:$D$107,4,FALSE))","v":{"v":532919.0365663011,"d":"532,919"}},{"$f":"($A14-$A13)/365.25*(CD13+(Main!$I20*Main!$D$3))*(1+Main!$I$4+VLOOKUP('Random Years'!CB14,'Hist Returns'!$A$12:$D$107,4,FALSE))","v":{"v":400151.5424855905,"d":"400,152"}},{"$f":"($A14-$A13)/365.25*(CE13+(Main!$I20*Main!$D$3))*(1+Main!$I$4+VLOOKUP('Random Years'!CC14,'Hist Returns'!$A$12:$D$107,4,FALSE))","v":{"v":424769.6969742354,"d":"424,770"}},{"$f":"($A14-$A13)/365.25*(CF13+(Main!$I20*Main!$D$3))*(1+Main!$I$4+VLOOKUP('Random Years'!CD14,'Hist Returns'!$A$12:$D$107,4,FALSE))","v":{"v":555048.379654551,"d":"555,048"}},{"$f":"($A14-$A13)/365.25*(CG13+(Main!$I20*Main!$D$3))*(1+Main!$I$4+VLOOKUP('Random Years'!CE14,'Hist Returns'!$A$12:$D$107,4,FALSE))","v":{"v":438022.3227125716,"d":"438,022"}},{"$f":"($A14-$A13)/365.25*(CH13+(Main!$I20*Main!$D$3))*(1+Main!$I$4+VLOOKUP('Random Years'!CF14,'Hist Returns'!$A$12:$D$107,4,FALSE))","v":{"v":527912.5595647788,"d":"527,913"}},{"$f":"($A14-$A13)/365.25*(CI13+(Main!$I20*Main!$D$3))*(1+Main!$I$4+VLOOKUP('Random Years'!CG14,'Hist Returns'!$A$12:$D$107,4,FALSE))","v":{"v":864271.4566779842,"d":"864,271"}},{"$f":"($A14-$A13)/365.25*(CJ13+(Main!$I20*Main!$D$3))*(1+Main!$I$4+VLOOKUP('Random Years'!CH14,'Hist Returns'!$A$12:$D$107,4,FALSE))","v":{"v":461168.5807172856,"d":"461,169"}},{"$f":"($A14-$A13)/365.25*(CK13+(Main!$I20*Main!$D$3))*(1+Main!$I$4+VLOOKUP('Random Years'!CI14,'Hist Returns'!$A$12:$D$107,4,FALSE))","v":{"v":417926.6225153192,"d":"417,927"}},{"$f":"($A14-$A13)/365.25*(CL13+(Main!$I20*Main!$D$3))*(1+Main!$I$4+VLOOKUP('Random Years'!CJ14,'Hist Returns'!$A$12:$D$107,4,FALSE))","v":{"v":679417.7270043094,"d":"679,418"}},{"$f":"($A14-$A13)/365.25*(CM13+(Main!$I20*Main!$D$3))*(1+Main!$I$4+VLOOKUP('Random Years'!CK14,'Hist Returns'!$A$12:$D$107,4,FALSE))","v":{"v":346364.0642294061,"d":"346,364"}},{"$f":"($A14-$A13)/365.25*(CN13+(Main!$I20*Main!$D$3))*(1+Main!$I$4+VLOOKUP('Random Years'!CL14,'Hist Returns'!$A$12:$D$107,4,FALSE))","v":{"v":515794.7816791042,"d":"515,795"}},{"$f":"($A14-$A13)/365.25*(CO13+(Main!$I20*Main!$D$3))*(1+Main!$I$4+VLOOKUP('Random Years'!CM14,'Hist Returns'!$A$12:$D$107,4,FALSE))","v":{"v":604750.7081401873,"d":"604,751"}},{"$f":"($A14-$A13)/365.25*(CP13+(Main!$I20*Main!$D$3))*(1+Main!$I$4+VLOOKUP('Random Years'!CN14,'Hist Returns'!$A$12:$D$107,4,FALSE))","v":{"v":386408.82964064943,"d":"386,409"}},{"$f":"($A14-$A13)/365.25*(CQ13+(Main!$I20*Main!$D$3))*(1+Main!$I$4+VLOOKUP('Random Years'!CO14,'Hist Returns'!$A$12:$D$107,4,FALSE))","v":{"v":364397.5422048092,"d":"364,398"}},{"$f":"($A14-$A13)/365.25*(CR13+(Main!$I20*Main!$D$3))*(1+Main!$I$4+VLOOKUP('Random Years'!CP14,'Hist Returns'!$A$12:$D$107,4,FALSE))","v":{"v":339090.012337512,"d":"339,090"}},{"$f":"($A14-$A13)/365.25*(CS13+(Main!$I20*Main!$D$3))*(1+Main!$I$4+VLOOKUP('Random Years'!CQ14,'Hist Returns'!$A$12:$D$107,4,FALSE))","v":{"v":360274.3877813672,"d":"360,274"}},{"$f":"($A14-$A13)/365.25*(CT13+(Main!$I20*Main!$D$3))*(1+Main!$I$4+VLOOKUP('Random Years'!CR14,'Hist Returns'!$A$12:$D$107,4,FALSE))","v":{"v":221308.12421118942,"d":"221,308"}},{"$f":"($A14-$A13)/365.25*(CU13+(Main!$I20*Main!$D$3))*(1+Main!$I$4+VLOOKUP('Random Years'!CS14,'Hist Returns'!$A$12:$D$107,4,FALSE))","v":{"v":675670.129221549,"d":"675,670"}},{"$f":"($A14-$A13)/365.25*(CV13+(Main!$I20*Main!$D$3))*(1+Main!$I$4+VLOOKUP('Random Years'!CT14,'Hist Returns'!$A$12:$D$107,4,FALSE))","v":{"v":356807.3039550168,"d":"356,807"}},{"$f":"($A14-$A13)/365.25*(CW13+(Main!$I20*Main!$D$3))*(1+Main!$I$4+VLOOKUP('Random Years'!CU14,'Hist Returns'!$A$12:$D$107,4,FALSE))","v":{"v":404269.2540767263,"d":"404,269"}},{"$f":"($A14-$A13)/365.25*(CX13+(Main!$I20*Main!$D$3))*(1+Main!$I$4+VLOOKUP('Random Years'!CV14,'Hist Returns'!$A$12:$D$107,4,FALSE))","v":{"v":297158.7168102159,"d":"297,159"}}]
[{"$f":"Main!A21","v":"2036-12-30"},{"$f":"Main!B21","v":82},{"$f":"($A15-$A14)/365.25*(C14+(Main!$I21*Main!$D$3))*(1+Main!$I$4+VLOOKUP('Random Years'!A15,'Hist Returns'!$A$12:$D$107,4,FALSE))","v":{"v":415241.18442476995,"d":"415,241"}},{"$f":"($A15-$A14)/365.25*(D14+(Main!$I21*Main!$D$3))*(1+Main!$I$4+VLOOKUP('Random Years'!B15,'Hist Returns'!$A$12:$D$107,4,FALSE))","v":{"v":388974.23805201723,"d":"388,974"}},{"$f":"($A15-$A14)/365.25*(E14+(Main!$I21*Main!$D$3))*(1+Main!$I$4+VLOOKUP('Random Years'!C15,'Hist Returns'!$A$12:$D$107,4,FALSE))","v":{"v":199841.6400999876,"d":"199,842"}},{"$f":"($A15-$A14)/365.25*(F14+(Main!$I21*Main!$D$3))*(1+Main!$I$4+VLOOKUP('Random Years'!D15,'Hist Returns'!$A$12:$D$107,4,FALSE))","v":{"v":487033.77806926577,"d":"487,034"}},{"$f":"($A15-$A14)/365.25*(G14+(Main!$I21*Main!$D$3))*(1+Main!$I$4+VLOOKUP('Random Years'!E15,'Hist Returns'!$A$12:$D$107,4,FALSE))","v":{"v":758520.4798164458,"d":"758,520"}},{"$f":"($A15-$A14)/365.25*(H14+(Main!$I21*Main!$D$3))*(1+Main!$I$4+VLOOKUP('Random Years'!F15,'Hist Returns'!$A$12:$D$107,4,FALSE))","v":{"v":476382.3874264478,"d":"476,382"}},{"$f":"($A15-$A14)/365.25*(I14+(Main!$I21*Main!$D$3))*(1+Main!$I$4+VLOOKUP('Random Years'!G15,'Hist Returns'!$A$12:$D$107,4,FALSE))","v":{"v":358183.3070167728,"d":"358,183"}},{"$f":"($A15-$A14)/365.25*(J14+(Main!$I21*Main!$D$3))*(1+Main!$I$4+VLOOKUP('Random Years'!H15,'Hist Returns'!$A$12:$D$107,4,FALSE))","v":{"v":554976.2840904876,"d":"554,976"}},{"$f":"($A15-$A14)/365.25*(K14+(Main!$I21*Main!$D$3))*(1+Main!$I$4+VLOOKUP('Random Years'!I15,'Hist Returns'!$A$12:$D$107,4,FALSE))","v":{"v":463456.1981862702,"d":"463,456"}},{"$f":"($A15-$A14)/365.25*(L14+(Main!$I21*Main!$D$3))*(1+Main!$I$4+VLOOKUP('Random Years'!J15,'Hist Returns'!$A$12:$D$107,4,FALSE))","v":{"v":431072.3466107026,"d":"431,072"}},{"$f":"($A15-$A14)/365.25*(M14+(Main!$I21*Main!$D$3))*(1+Main!$I$4+VLOOKUP('Random Years'!K15,'Hist Returns'!$A$12:$D$107,4,FALSE))","v":{"v":234893.86455847678,"d":"234,894"}},{"$f":"($A15-$A14)/365.25*(N14+(Main!$I21*Main!$D$3))*(1+Main!$I$4+VLOOKUP('Random Years'!L15,'Hist Returns'!$A$12:$D$107,4,FALSE))","v":{"v":407504.0593261649,"d":"407,504"}},{"$f":"($A15-$A14)/365.25*(O14+(Main!$I21*Main!$D$3))*(1+Main!$I$4+VLOOKUP('Random Years'!M15,'Hist Returns'!$A$12:$D$107,4,FALSE))","v":{"v":556481.6026970407,"d":"556,482"}},{"$f":"($A15-$A14)/365.25*(P14+(Main!$I21*Main!$D$3))*(1+Main!$I$4+VLOOKUP('Random Years'!N15,'Hist Returns'!$A$12:$D$107,4,FALSE))","v":{"v":348649.65615666204,"d":"348,650"}},{"$f":"($A15-$A14)/365.25*(Q14+(Main!$I21*Main!$D$3))*(1+Main!$I$4+VLOOKUP('Random Years'!O15,'Hist Returns'!$A$12:$D$107,4,FALSE))","v":{"v":470287.52594380244,"d":"470,288"}},{"$f":"($A15-$A14)/365.25*(R14+(Main!$I21*Main!$D$3))*(1+Main!$I$4+VLOOKUP('Random Years'!P15,'Hist Returns'!$A$12:$D$107,4,FALSE))","v":{"v":393352.214534345,"d":"393,352"}},{"$f":"($A15-$A14)/365.25*(S14+(Main!$I21*Main!$D$3))*(1+Main!$I$4+VLOOKUP('Random Years'!Q15,'Hist Returns'!$A$12:$D$107,4,FALSE))","v":{"v":242413.43163471486,"d":"242,413"}},{"$f":"($A15-$A14)/365.25*(T14+(Main!$I21*Main!$D$3))*(1+Main!$I$4+VLOOKUP('Random Years'!R15,'Hist Returns'!$A$12:$D$107,4,FALSE))","v":{"v":351789.3940409856,"d":"351,789"}},{"$f":"($A15-$A14)/365.25*(U14+(Main!$I21*Main!$D$3))*(1+Main!$I$4+VLOOKUP('Random Years'!S15,'Hist Returns'!$A$12:$D$107,4,FALSE))","v":{"v":435894.8972996314,"d":"435,895"}},{"$f":"($A15-$A14)/365.25*(V14+(Main!$I21*Main!$D$3))*(1+Main!$I$4+VLOOKUP('Random Years'!T15,'Hist Returns'!$A$12:$D$107,4,FALSE))","v":{"v":569598.483505277,"d":"569,598"}},{"$f":"($A15-$A14)/365.25*(W14+(Main!$I21*Main!$D$3))*(1+Main!$I$4+VLOOKUP('Random Years'!U15,'Hist Returns'!$A$12:$D$107,4,FALSE))","v":{"v":460061.8751606894,"d":"460,062"}},{"$f":"($A15-$A14)/365.25*(X14+(Main!$I21*Main!$D$3))*(1+Main!$I$4+VLOOKUP('Random Years'!V15,'Hist Returns'!$A$12:$D$107,4,FALSE))","v":{"v":380788.1677785735,"d":"380,788"}},{"$f":"($A15-$A14)/365.25*(Y14+(Main!$I21*Main!$D$3))*(1+Main!$I$4+VLOOKUP('Random Years'!W15,'Hist Returns'!$A$12:$D$107,4,FALSE))","v":{"v":213659.91947234797,"d":"213,660"}},{"$f":"($A15-$A14)/365.25*(Z14+(Main!$I21*Main!$D$3))*(1+Main!$I$4+VLOOKUP('Random Years'!X15,'Hist Returns'!$A$12:$D$107,4,FALSE))","v":{"v":699337.1800213199,"d":"699,337"}},{"$f":"($A15-$A14)/365.25*(AA14+(Main!$I21*Main!$D$3))*(1+Main!$I$4+VLOOKUP('Random Years'!Y15,'Hist Returns'!$A$12:$D$107,4,FALSE))","v":{"v":491535.1472585621,"d":"491,535"}},{"$f":"($A15-$A14)/365.25*(AB14+(Main!$I21*Main!$D$3))*(1+Main!$I$4+VLOOKUP('Random Years'!Z15,'Hist Returns'!$A$12:$D$107,4,FALSE))","v":{"v":396196.6948742117,"d":"396,197"}},{"$f":"($A15-$A14)/365.25*(AC14+(Main!$I21*Main!$D$3))*(1+Main!$I$4+VLOOKUP('Random Years'!AA15,'Hist Returns'!$A$12:$D$107,4,FALSE))","v":{"v":377213.4300015528,"d":"377,213"}},{"$f":"($A15-$A14)/365.25*(AD14+(Main!$I21*Main!$D$3))*(1+Main!$I$4+VLOOKUP('Random Years'!AB15,'Hist Returns'!$A$12:$D$107,4,FALSE))","v":{"v":446951.6261177612,"d":"446,952"}},{"$f":"($A15-$A14)/365.25*(AE14+(Main!$I21*Main!$D$3))*(1+Main!$I$4+VLOOKUP('Random Years'!AC15,'Hist Returns'!$A$12:$D$107,4,FALSE))","v":{"v":472845.05726326694,"d":"472,845"}},{"$f":"($A15-$A14)/365.25*(AF14+(Main!$I21*Main!$D$3))*(1+Main!$I$4+VLOOKUP('Random Years'!AD15,'Hist Returns'!$A$12:$D$107,4,FALSE))","v":{"v":328299.61905919295,"d":"328,300"}},{"$f":"($A15-$A14)/365.25*(AG14+(Main!$I21*Main!$D$3))*(1+Main!$I$4+VLOOKUP('Random Years'!AE15,'Hist Returns'!$A$12:$D$107,4,FALSE))","v":{"v":523161.4734967284,"d":"523,161"}},{"$f":"($A15-$A14)/365.25*(AH14+(Main!$I21*Main!$D$3))*(1+Main!$I$4+VLOOKUP('Random Years'!AF15,'Hist Returns'!$A$12:$D$107,4,FALSE))","v":{"v":281646.5657183237,"d":"281,647"}},{"$f":"($A15-$A14)/365.25*(AI14+(Main!$I21*Main!$D$3))*(1+Main!$I$4+VLOOKUP('Random Years'!AG15,'Hist Returns'!$A$12:$D$107,4,FALSE))","v":{"v":445139.25275388913,"d":"445,139"}},{"$f":"($A15-$A14)/365.25*(AJ14+(Main!$I21*Main!$D$3))*(1+Main!$I$4+VLOOKUP('Random Years'!AH15,'Hist Returns'!$A$12:$D$107,4,FALSE))","v":{"v":538619.8722333523,"d":"538,620"}},{"$f":"($A15-$A14)/365.25*(AK14+(Main!$I21*Main!$D$3))*(1+Main!$I$4+VLOOKUP('Random Years'!AI15,'Hist Returns'!$A$12:$D$107,4,FALSE))","v":{"v":581686.8136794528,"d":"581,687"}},{"$f":"($A15-$A14)/365.25*(AL14+(Main!$I21*Main!$D$3))*(1+Main!$I$4+VLOOKUP('Random Years'!AJ15,'Hist Returns'!$A$12:$D$107,4,FALSE))","v":{"v":325569.7070861754,"d":"325,570"}},{"$f":"($A15-$A14)/365.25*(AM14+(Main!$I21*Main!$D$3))*(1+Main!$I$4+VLOOKUP('Random Years'!AK15,'Hist Returns'!$A$12:$D$107,4,FALSE))","v":{"v":481118.3429423318,"d":"481,118"}},{"$f":"($A15-$A14)/365.25*(AN14+(Main!$I21*Main!$D$3))*(1+Main!$I$4+VLOOKUP('Random Years'!AL15,'Hist Returns'!$A$12:$D$107,4,FALSE))","v":{"v":533403.3671979979,"d":"533,403"}},{"$f":"($A15-$A14)/365.25*(AO14+(Main!$I21*Main!$D$3))*(1+Main!$I$4+VLOOKUP('Random Years'!AM15,'Hist Returns'!$A$12:$D$107,4,FALSE))","v":{"v":342561.65145226294,"d":"342,562"}},{"$f":"($A15-$A14)/365.25*(AP14+(Main!$I21*Main!$D$3))*(1+Main!$I$4+VLOOKUP('Random Years'!AN15,'Hist Returns'!$A$12:$D$107,4,FALSE))","v":{"v":437371.2253881774,"d":"437,371"}},{"$f":"($A15-$A14)/365.25*(AQ14+(Main!$I21*Main!$D$3))*(1+Main!$I$4+VLOOKUP('Random Years'!AO15,'Hist Returns'!$A$12:$D$107,4,FALSE))","v":{"v":241788.9840326969,"d":"241,789"}},{"$f":"($A15-$A14)/365.25*(AR14+(Main!$I21*Main!$D$3))*(1+Main!$I$4+VLOOKUP('Random Years'!AP15,'Hist Returns'!$A$12:$D$107,4,FALSE))","v":{"v":357871.1377594222,"d":"357,871"}},{"$f":"($A15-$A14)/365.25*(AS14+(Main!$I21*Main!$D$3))*(1+Main!$I$4+VLOOKUP('Random Years'!AQ15,'Hist Returns'!$A$12:$D$107,4,FALSE))","v":{"v":605514.3262414802,"d":"605,514"}},{"$f":"($A15-$A14)/365.25*(AT14+(Main!$I21*Main!$D$3))*(1+Main!$I$4+VLOOKUP('Random Years'!AR15,'Hist Returns'!$A$12:$D$107,4,FALSE))","v":{"v":573946.3731494177,"d":"573,946"}},{"$f":"($A15-$A14)/365.25*(AU14+(Main!$I21*Main!$D$3))*(1+Main!$I$4+VLOOKUP('Random Years'!AS15,'Hist Returns'!$A$12:$D$107,4,FALSE))","v":{"v":263884.58002569026,"d":"263,885"}},{"$f":"($A15-$A14)/365.25*(AV14+(Main!$I21*Main!$D$3))*(1+Main!$I$4+VLOOKUP('Random Years'!AT15,'Hist Returns'!$A$12:$D$107,4,FALSE))","v":{"v":486762.266346718,"d":"486,762"}},{"$f":"($A15-$A14)/365.25*(AW14+(Main!$I21*Main!$D$3))*(1+Main!$I$4+VLOOKUP('Random Years'!AU15,'Hist Returns'!$A$12:$D$107,4,FALSE))","v":{"v":444583.23572697426,"d":"444,583"}},{"$f":"($A15-$A14)/365.25*(AX14+(Main!$I21*Main!$D$3))*(1+Main!$I$4+VLOOKUP('Random Years'!AV15,'Hist Returns'!$A$12:$D$107,4,FALSE))","v":{"v":410651.9857298597,"d":"410,652"}},{"$f":"($A15-$A14)/365.25*(AY14+(Main!$I21*Main!$D$3))*(1+Main!$I$4+VLOOKUP('Random Years'!AW15,'Hist Returns'!$A$12:$D$107,4,FALSE))","v":{"v":229590.0934905028,"d":"229,590"}},{"$f":"($A15-$A14)/365.25*(AZ14+(Main!$I21*Main!$D$3))*(1+Main!$I$4+VLOOKUP('Random Years'!AX15,'Hist Returns'!$A$12:$D$107,4,FALSE))","v":{"v":340535.83806980494,"d":"340,536"}},{"$f":"($A15-$A14)/365.25*(BA14+(Main!$I21*Main!$D$3))*(1+Main!$I$4+VLOOKUP('Random Years'!AY15,'Hist Returns'!$A$12:$D$107,4,FALSE))","v":{"v":348932.23917696584,"d":"348,932"}},{"$f":"($A15-$A14)/365.25*(BB14+(Main!$I21*Main!$D$3))*(1+Main!$I$4+VLOOKUP('Random Years'!AZ15,'Hist Returns'!$A$12:$D$107,4,FALSE))","v":{"v":258271.6073606136,"d":"258,272"}},{"$f":"($A15-$A14)/365.25*(BC14+(Main!$I21*Main!$D$3))*(1+Main!$I$4+VLOOKUP('Random Years'!BA15,'Hist Returns'!$A$12:$D$107,4,FALSE))","v":{"v":389151.0468907237,"d":"389,151"}},{"$f":"($A15-$A14)/365.25*(BD14+(Main!$I21*Main!$D$3))*(1+Main!$I$4+VLOOKUP('Random Years'!BB15,'Hist Returns'!$A$12:$D$107,4,FALSE))","v":{"v":211884.08046630837,"d":"211,884"}},{"$f":"($A15-$A14)/365.25*(BE14+(Main!$I21*Main!$D$3))*(1+Main!$I$4+VLOOKUP('Random Years'!BC15,'Hist Returns'!$A$12:$D$107,4,FALSE))","v":{"v":635578.3195864205,"d":"635,578"}},{"$f":"($A15-$A14)/365.25*(BF14+(Main!$I21*Main!$D$3))*(1+Main!$I$4+VLOOKUP('Random Years'!BD15,'Hist Returns'!$A$12:$D$107,4,FALSE))","v":{"v":702791.8581623838,"d":"702,792"}},{"$f":"($A15-$A14)/365.25*(BG14+(Main!$I21*Main!$D$3))*(1+Main!$I$4+VLOOKUP('Random Years'!BE15,'Hist Returns'!$A$12:$D$107,4,FALSE))","v":{"v":325297.41048334754,"d":"325,297"}},{"$f":"($A15-$A14)/365.25*(BH14+(Main!$I21*Main!$D$3))*(1+Main!$I$4+VLOOKUP('Random Years'!BF15,'Hist Returns'!$A$12:$D$107,4,FALSE))","v":{"v":337729.1043245355,"d":"337,729"}},{"$f":"($A15-$A14)/365.25*(BI14+(Main!$I21*Main!$D$3))*(1+Main!$I$4+VLOOKUP('Random Years'!BG15,'Hist Returns'!$A$12:$D$107,4,FALSE))","v":{"v":812100.4195739892,"d":"812,100"}},{"$f":"($A15-$A14)/365.25*(BJ14+(Main!$I21*Main!$D$3))*(1+Main!$I$4+VLOOKUP('Random Years'!BH15,'Hist Returns'!$A$12:$D$107,4,FALSE))","v":{"v":548443.1380161564,"d":"548,443"}},{"$f":"($A15-$A14)/365.25*(BK14+(Main!$I21*Main!$D$3))*(1+Main!$I$4+VLOOKUP('Random Years'!BI15,'Hist Returns'!$A$12:$D$107,4,FALSE))","v":{"v":485783.6666054929,"d":"485,784"}},{"$f":"($A15-$A14)/365.25*(BL14+(Main!$I21*Main!$D$3))*(1+Main!$I$4+VLOOKUP('Random Years'!BJ15,'Hist Returns'!$A$12:$D$107,4,FALSE))","v":{"v":386291.7517471923,"d":"386,292"}},{"$f":"($A15-$A14)/365.25*(BM14+(Main!$I21*Main!$D$3))*(1+Main!$I$4+VLOOKUP('Random Years'!BK15,'Hist Returns'!$A$12:$D$107,4,FALSE))","v":{"v":351163.55814741197,"d":"351,164"}},{"$f":"($A15-$A14)/365.25*(BN14+(Main!$I21*Main!$D$3))*(1+Main!$I$4+VLOOKUP('Random Years'!BL15,'Hist Returns'!$A$12:$D$107,4,FALSE))","v":{"v":498368.2517826638,"d":"498,368"}},{"$f":"($A15-$A14)/365.25*(BO14+(Main!$I21*Main!$D$3))*(1+Main!$I$4+VLOOKUP('Random Years'!BM15,'Hist Returns'!$A$12:$D$107,4,FALSE))","v":{"v":214282.5716639099,"d":"214,283"}},{"$f":"($A15-$A14)/365.25*(BP14+(Main!$I21*Main!$D$3))*(1+Main!$I$4+VLOOKUP('Random Years'!BN15,'Hist Returns'!$A$12:$D$107,4,FALSE))","v":{"v":379969.4785309996,"d":"379,969"}},{"$f":"($A15-$A14)/365.25*(BQ14+(Main!$I21*Main!$D$3))*(1+Main!$I$4+VLOOKUP('Random Years'!BO15,'Hist Returns'!$A$12:$D$107,4,FALSE))","v":{"v":352763.7868985991,"d":"352,764"}},{"$f":"($A15-$A14)/365.25*(BR14+(Main!$I21*Main!$D$3))*(1+Main!$I$4+VLOOKUP('Random Years'!BP15,'Hist Returns'!$A$12:$D$107,4,FALSE))","v":{"v":370800.1904479438,"d":"370,800"}},{"$f":"($A15-$A14)/365.25*(BS14+(Main!$I21*Main!$D$3))*(1+Main!$I$4+VLOOKUP('Random Years'!BQ15,'Hist Returns'!$A$12:$D$107,4,FALSE))","v":{"v":488941.7481473548,"d":"488,942"}},{"$f":"($A15-$A14)/365.25*(BT14+(Main!$I21*Main!$D$3))*(1+Main!$I$4+VLOOKUP('Random Years'!BR15,'Hist Returns'!$A$12:$D$107,4,FALSE))","v":{"v":229212.73088532136,"d":"229,213"}},{"$f":"($A15-$A14)/365.25*(BU14+(Main!$I21*Main!$D$3))*(1+Main!$I$4+VLOOKUP('Random Years'!BS15,'Hist Returns'!$A$12:$D$107,4,FALSE))","v":{"v":457858.9112784731,"d":"457,859"}},{"$f":"($A15-$A14)/365.25*(BV14+(Main!$I21*Main!$D$3))*(1+Main!$I$4+VLOOKUP('Random Years'!BT15,'Hist Returns'!$A$12:$D$107,4,FALSE))","v":{"v":185348.43822323682,"d":"185,348"}},{"$f":"($A15-$A14)/365.25*(BW14+(Main!$I21*Main!$D$3))*(1+Main!$I$4+VLOOKUP('Random Years'!BU15,'Hist Returns'!$A$12:$D$107,4,FALSE))","v":{"v":452007.8848192819,"d":"452,008"}},{"$f":"($A15-$A14)/365.25*(BX14+(Main!$I21*Main!$D$3))*(1+Main!$I$4+VLOOKUP('Random Years'!BV15,'Hist Returns'!$A$12:$D$107,4,FALSE))","v":{"v":420685.2518490924,"d":"420,685"}},{"$f":"($A15-$A14)/365.25*(BY14+(Main!$I21*Main!$D$3))*(1+Main!$I$4+VLOOKUP('Random Years'!BW15,'Hist Returns'!$A$12:$D$107,4,FALSE))","v":{"v":366937.9928850332,"d":"366,938"}},{"$f":"($A15-$A14)/365.25*(BZ14+(Main!$I21*Main!$D$3))*(1+Main!$I$4+VLOOKUP('Random Years'!BX15,'Hist Returns'!$A$12:$D$107,4,FALSE))","v":{"v":279167.20166198484,"d":"279,167"}},{"$f":"($A15-$A14)/365.25*(CA14+(Main!$I21*Main!$D$3))*(1+Main!$I$4+VLOOKUP('Random Years'!BY15,'Hist Returns'!$A$12:$D$107,4,FALSE))","v":{"v":640704.6145694342,"d":"640,705"}},{"$f":"($A15-$A14)/365.25*(CB14+(Main!$I21*Main!$D$3))*(1+Main!$I$4+VLOOKUP('Random Years'!BZ15,'Hist Returns'!$A$12:$D$107,4,FALSE))","v":{"v":432736.19655962836,"d":"432,736"}},{"$f":"($A15-$A14)/365.25*(CC14+(Main!$I21*Main!$D$3))*(1+Main!$I$4+VLOOKUP('Random Years'!CA15,'Hist Returns'!$A$12:$D$107,4,FALSE))","v":{"v":517294.5825307001,"d":"517,295"}},{"$f":"($A15-$A14)/365.25*(CD14+(Main!$I21*Main!$D$3))*(1+Main!$I$4+VLOOKUP('Random Years'!CB15,'Hist Returns'!$A$12:$D$107,4,FALSE))","v":{"v":462448.6389196976,"d":"462,449"}},{"$f":"($A15-$A14)/365.25*(CE14+(Main!$I21*Main!$D$3))*(1+Main!$I$4+VLOOKUP('Random Years'!CC15,'Hist Returns'!$A$12:$D$107,4,FALSE))","v":{"v":451760.9902176983,"d":"451,761"}},{"$f":"($A15-$A14)/365.25*(CF14+(Main!$I21*Main!$D$3))*(1+Main!$I$4+VLOOKUP('Random Years'!CD15,'Hist Returns'!$A$12:$D$107,4,FALSE))","v":{"v":578236.3193516565,"d":"578,236"}},{"$f":"($A15-$A14)/365.25*(CG14+(Main!$I21*Main!$D$3))*(1+Main!$I$4+VLOOKUP('Random Years'!CE15,'Hist Returns'!$A$12:$D$107,4,FALSE))","v":{"v":443297.15793814854,"d":"443,297"}},{"$f":"($A15-$A14)/365.25*(CH14+(Main!$I21*Main!$D$3))*(1+Main!$I$4+VLOOKUP('Random Years'!CF15,'Hist Returns'!$A$12:$D$107,4,FALSE))","v":{"v":535272.1399901025,"d":"535,272"}},{"$f":"($A15-$A14)/365.25*(CI14+(Main!$I21*Main!$D$3))*(1+Main!$I$4+VLOOKUP('Random Years'!CG15,'Hist Returns'!$A$12:$D$107,4,FALSE))","v":{"v":953795.2663409675,"d":"953,795"}},{"$f":"($A15-$A14)/365.25*(CJ14+(Main!$I21*Main!$D$3))*(1+Main!$I$4+VLOOKUP('Random Years'!CH15,'Hist Returns'!$A$12:$D$107,4,FALSE))","v":{"v":470822.7430072957,"d":"470,823"}},{"$f":"($A15-$A14)/365.25*(CK14+(Main!$I21*Main!$D$3))*(1+Main!$I$4+VLOOKUP('Random Years'!CI15,'Hist Returns'!$A$12:$D$107,4,FALSE))","v":{"v":422465.2904260366,"d":"422,465"}},{"$f":"($A15-$A14)/365.25*(CL14+(Main!$I21*Main!$D$3))*(1+Main!$I$4+VLOOKUP('Random Years'!CJ15,'Hist Returns'!$A$12:$D$107,4,FALSE))","v":{"v":702178.2109527015,"d":"702,178"}},{"$f":"($A15-$A14)/365.25*(CM14+(Main!$I21*Main!$D$3))*(1+Main!$I$4+VLOOKUP('Random Years'!CK15,'Hist Returns'!$A$12:$D$107,4,FALSE))","v":{"v":390446.14470703504,"d":"390,446"}},{"$f":"($A15-$A14)/365.25*(CN14+(Main!$I21*Main!$D$3))*(1+Main!$I$4+VLOOKUP('Random Years'!CL15,'Hist Returns'!$A$12:$D$107,4,FALSE))","v":{"v":500452.5328616517,"d":"500,453"}},{"$f":"($A15-$A14)/365.25*(CO14+(Main!$I21*Main!$D$3))*(1+Main!$I$4+VLOOKUP('Random Years'!CM15,'Hist Returns'!$A$12:$D$107,4,FALSE))","v":{"v":583909.2178384317,"d":"583,909"}},{"$f":"($A15-$A14)/365.25*(CP14+(Main!$I21*Main!$D$3))*(1+Main!$I$4+VLOOKUP('Random Years'!CN15,'Hist Returns'!$A$12:$D$107,4,FALSE))","v":{"v":439804.68321387965,"d":"439,805"}},{"$f":"($A15-$A14)/365.25*(CQ14+(Main!$I21*Main!$D$3))*(1+Main!$I$4+VLOOKUP('Random Years'!CO15,'Hist Returns'!$A$12:$D$107,4,FALSE))","v":{"v":317487.80112981546,"d":"317,488"}},{"$f":"($A15-$A14)/365.25*(CR14+(Main!$I21*Main!$D$3))*(1+Main!$I$4+VLOOKUP('Random Years'!CP15,'Hist Returns'!$A$12:$D$107,4,FALSE))","v":{"v":440819.4696980499,"d":"440,819"}},{"$f":"($A15-$A14)/365.25*(CS14+(Main!$I21*Main!$D$3))*(1+Main!$I$4+VLOOKUP('Random Years'!CQ15,'Hist Returns'!$A$12:$D$107,4,FALSE))","v":{"v":389124.655968613,"d":"389,125"}},{"$f":"($A15-$A14)/365.25*(CT14+(Main!$I21*Main!$D$3))*(1+Main!$I$4+VLOOKUP('Random Years'!CR15,'Hist Returns'!$A$12:$D$107,4,FALSE))","v":{"v":194702.31983625403,"d":"194,702"}},{"$f":"($A15-$A14)/365.25*(CU14+(Main!$I21*Main!$D$3))*(1+Main!$I$4+VLOOKUP('Random Years'!CS15,'Hist Returns'!$A$12:$D$107,4,FALSE))","v":{"v":701787.9895451372,"d":"701,788"}},{"$f":"($A15-$A14)/365.25*(CV14+(Main!$I21*Main!$D$3))*(1+Main!$I$4+VLOOKUP('Random Years'!CT15,'Hist Returns'!$A$12:$D$107,4,FALSE))","v":{"v":317780.5833640299,"d":"317,781"}},{"$f":"($A15-$A14)/365.25*(CW14+(Main!$I21*Main!$D$3))*(1+Main!$I$4+VLOOKUP('Random Years'!CU15,'Hist Returns'!$A$12:$D$107,4,FALSE))","v":{"v":402516.40762697015,"d":"402,516"}},{"$f":"($A15-$A14)/365.25*(CX14+(Main!$I21*Main!$D$3))*(1+Main!$I$4+VLOOKUP('Random Years'!CV15,'Hist Returns'!$A$12:$D$107,4,FALSE))","v":{"v":292088.1175303738,"d":"292,088"}}]
[{"$f":"Main!A22","v":"2037-12-30"},{"$f":"Main!B22","v":83},{"$f":"($A16-$A15)/365.25*(C15+(Main!$I22*Main!$D$3))*(1+Main!$I$4+VLOOKUP('Random Years'!A16,'Hist Returns'!$A$12:$D$107,4,FALSE))","v":{"v":443511.6784268605,"d":"443,512"}},{"$f":"($A16-$A15)/365.25*(D15+(Main!$I22*Main!$D$3))*(1+Main!$I$4+VLOOKUP('Random Years'!B16,'Hist Returns'!$A$12:$D$107,4,FALSE))","v":{"v":405210.15285741596,"d":"405,210"}},{"$f":"($A16-$A15)/365.25*(E15+(Main!$I22*Main!$D$3))*(1+Main!$I$4+VLOOKUP('Random Years'!C16,'Hist Returns'!$A$12:$D$107,4,FALSE))","v":{"v":199360.97829409462,"d":"199,361"}},{"$f":"($A16-$A15)/365.25*(F15+(Main!$I22*Main!$D$3))*(1+Main!$I$4+VLOOKUP('Random Years'!D16,'Hist Returns'!$A$12:$D$107,4,FALSE))","v":{"v":545259.5678514496,"d":"545,260"}},{"$f":"($A16-$A15)/365.25*(G15+(Main!$I22*Main!$D$3))*(1+Main!$I$4+VLOOKUP('Random Years'!E16,'Hist Returns'!$A$12:$D$107,4,FALSE))","v":{"v":764647.9635450575,"d":"764,648"}},{"$f":"($A16-$A15)/365.25*(H15+(Main!$I22*Main!$D$3))*(1+Main!$I$4+VLOOKUP('Random Years'!F16,'Hist Returns'!$A$12:$D$107,4,FALSE))","v":{"v":485925.9924200994,"d":"485,926"}},{"$f":"($A16-$A15)/365.25*(I15+(Main!$I22*Main!$D$3))*(1+Main!$I$4+VLOOKUP('Random Years'!G16,'Hist Returns'!$A$12:$D$107,4,FALSE))","v":{"v":370196.1449951997,"d":"370,196"}},{"$f":"($A16-$A15)/365.25*(J15+(Main!$I22*Main!$D$3))*(1+Main!$I$4+VLOOKUP('Random Years'!H16,'Hist Returns'!$A$12:$D$107,4,FALSE))","v":{"v":502138.61531830777,"d":"502,139"}},{"$f":"($A16-$A15)/365.25*(K15+(Main!$I22*Main!$D$3))*(1+Main!$I$4+VLOOKUP('Random Years'!I16,'Hist Returns'!$A$12:$D$107,4,FALSE))","v":{"v":480485.37324754195,"d":"480,485"}},{"$f":"($A16-$A15)/365.25*(L15+(Main!$I22*Main!$D$3))*(1+Main!$I$4+VLOOKUP('Random Years'!J16,'Hist Returns'!$A$12:$D$107,4,FALSE))","v":{"v":460722.6600255362,"d":"460,723"}},{"$f":"($A16-$A15)/365.25*(M15+(Main!$I22*Main!$D$3))*(1+Main!$I$4+VLOOKUP('Random Years'!K16,'Hist Returns'!$A$12:$D$107,4,FALSE))","v":{"v":234567.39716512428,"d":"234,567"}},{"$f":"($A16-$A15)/365.25*(N15+(Main!$I22*Main!$D$3))*(1+Main!$I$4+VLOOKUP('Random Years'!L16,'Hist Returns'!$A$12:$D$107,4,FALSE))","v":{"v":502779.42926359765,"d":"502,779"}},{"$f":"($A16-$A15)/365.25*(O15+(Main!$I22*Main!$D$3))*(1+Main!$I$4+VLOOKUP('Random Years'!M16,'Hist Returns'!$A$12:$D$107,4,FALSE))","v":{"v":552500.5183855032,"d":"552,501"}},{"$f":"($A16-$A15)/365.25*(P15+(Main!$I22*Main!$D$3))*(1+Main!$I$4+VLOOKUP('Random Years'!N16,'Hist Returns'!$A$12:$D$107,4,FALSE))","v":{"v":369099.74671308964,"d":"369,100"}},{"$f":"($A16-$A15)/365.25*(Q15+(Main!$I22*Main!$D$3))*(1+Main!$I$4+VLOOKUP('Random Years'!O16,'Hist Returns'!$A$12:$D$107,4,FALSE))","v":{"v":483462.0872667216,"d":"483,462"}},{"$f":"($A16-$A15)/365.25*(R15+(Main!$I22*Main!$D$3))*(1+Main!$I$4+VLOOKUP('Random Years'!P16,'Hist Returns'!$A$12:$D$107,4,FALSE))","v":{"v":417434.45814607694,"d":"417,434"}},{"$f":"($A16-$A15)/365.25*(S15+(Main!$I22*Main!$D$3))*(1+Main!$I$4+VLOOKUP('Random Years'!Q16,'Hist Returns'!$A$12:$D$107,4,FALSE))","v":{"v":260225.1457692757,"d":"260,225"}},{"$f":"($A16-$A15)/365.25*(T15+(Main!$I22*Main!$D$3))*(1+Main!$I$4+VLOOKUP('Random Years'!R16,'Hist Returns'!$A$12:$D$107,4,FALSE))","v":{"v":357101.8811757323,"d":"357,102"}},{"$f":"($A16-$A15)/365.25*(U15+(Main!$I22*Main!$D$3))*(1+Main!$I$4+VLOOKUP('Random Years'!S16,'Hist Returns'!$A$12:$D$107,4,FALSE))","v":{"v":409383.76985149673,"d":"409,384"}},{"$f":"($A16-$A15)/365.25*(V15+(Main!$I22*Main!$D$3))*(1+Main!$I$4+VLOOKUP('Random Years'!T16,'Hist Returns'!$A$12:$D$107,4,FALSE))","v":{"v":616097.1766718992,"d":"616,097"}},{"$f":"($A16-$A15)/365.25*(W15+(Main!$I22*Main!$D$3))*(1+Main!$I$4+VLOOKUP('Random Years'!U16,'Hist Returns'!$A$12:$D$107,4,FALSE))","v":{"v":446418.81362805376,"d":"446,419"}},{"$f":"($A16-$A15)/365.25*(X15+(Main!$I22*Main!$D$3))*(1+Main!$I$4+VLOOKUP('Random Years'!V16,'Hist Returns'!$A$12:$D$107,4,FALSE))","v":{"v":376364.6594038277,"d":"376,365"}},{"$f":"($A16-$A15)/365.25*(Y15+(Main!$I22*Main!$D$3))*(1+Main!$I$4+VLOOKUP('Random Years'!W16,'Hist Returns'!$A$12:$D$107,4,FALSE))","v":{"v":204628.81648664625,"d":"204,629"}},{"$f":"($A16-$A15)/365.25*(Z15+(Main!$I22*Main!$D$3))*(1+Main!$I$4+VLOOKUP('Random Years'!X16,'Hist Returns'!$A$12:$D$107,4,FALSE))","v":{"v":705330.0384659069,"d":"705,330"}},{"$f":"($A16-$A15)/365.25*(AA15+(Main!$I22*Main!$D$3))*(1+Main!$I$4+VLOOKUP('Random Years'!Y16,'Hist Returns'!$A$12:$D$107,4,FALSE))","v":{"v":493358.88133493916,"d":"493,359"}},{"$f":"($A16-$A15)/365.25*(AB15+(Main!$I22*Main!$D$3))*(1+Main!$I$4+VLOOKUP('Random Years'!Z16,'Hist Returns'!$A$12:$D$107,4,FALSE))","v":{"v":426680.4894088719,"d":"426,680"}},{"$f":"($A16-$A15)/365.25*(AC15+(Main!$I22*Main!$D$3))*(1+Main!$I$4+VLOOKUP('Random Years'!AA16,'Hist Returns'!$A$12:$D$107,4,FALSE))","v":{"v":383737.9463022854,"d":"383,738"}},{"$f":"($A16-$A15)/365.25*(AD15+(Main!$I22*Main!$D$3))*(1+Main!$I$4+VLOOKUP('Random Years'!AB16,'Hist Returns'!$A$12:$D$107,4,FALSE))","v":{"v":499703.99038580706,"d":"499,704"}},{"$f":"($A16-$A15)/365.25*(AE15+(Main!$I22*Main!$D$3))*(1+Main!$I$4+VLOOKUP('Random Years'!AC16,'Hist Returns'!$A$12:$D$107,4,FALSE))","v":{"v":502289.3097514656,"d":"502,289"}},{"$f":"($A16-$A15)/365.25*(AF15+(Main!$I22*Main!$D$3))*(1+Main!$I$4+VLOOKUP('Random Years'!AD16,'Hist Returns'!$A$12:$D$107,4,FALSE))","v":{"v":352677.7741856561,"d":"352,678"}},{"$f":"($A16-$A15)/365.25*(AG15+(Main!$I22*Main!$D$3))*(1+Main!$I$4+VLOOKUP('Random Years'!AE16,'Hist Returns'!$A$12:$D$107,4,FALSE))","v":{"v":522886.94151353184,"d":"522,887"}},{"$f":"($A16-$A15)/365.25*(AH15+(Main!$I22*Main!$D$3))*(1+Main!$I$4+VLOOKUP('Random Years'!AF16,'Hist Returns'!$A$12:$D$107,4,FALSE))","v":{"v":317997.8301633262,"d":"317,998"}},{"$f":"($A16-$A15)/365.25*(AI15+(Main!$I22*Main!$D$3))*(1+Main!$I$4+VLOOKUP('Random Years'!AG16,'Hist Returns'!$A$12:$D$107,4,FALSE))","v":{"v":459509.21558213583,"d":"459,509"}},{"$f":"($A16-$A15)/365.25*(AJ15+(Main!$I22*Main!$D$3))*(1+Main!$I$4+VLOOKUP('Random Years'!AH16,'Hist Returns'!$A$12:$D$107,4,FALSE))","v":{"v":507501.0972442481,"d":"507,501"}},{"$f":"($A16-$A15)/365.25*(AK15+(Main!$I22*Main!$D$3))*(1+Main!$I$4+VLOOKUP('Random Years'!AI16,'Hist Returns'!$A$12:$D$107,4,FALSE))","v":{"v":587025.9003815921,"d":"587,026"}},{"$f":"($A16-$A15)/365.25*(AL15+(Main!$I22*Main!$D$3))*(1+Main!$I$4+VLOOKUP('Random Years'!AJ16,'Hist Returns'!$A$12:$D$107,4,FALSE))","v":{"v":302287.95567022695,"d":"302,288"}},{"$f":"($A16-$A15)/365.25*(AM15+(Main!$I22*Main!$D$3))*(1+Main!$I$4+VLOOKUP('Random Years'!AK16,'Hist Returns'!$A$12:$D$107,4,FALSE))","v":{"v":505692.18415379495,"d":"505,692"}},{"$f":"($A16-$A15)/365.25*(AN15+(Main!$I22*Main!$D$3))*(1+Main!$I$4+VLOOKUP('Random Years'!AL16,'Hist Returns'!$A$12:$D$107,4,FALSE))","v":{"v":527730.2992646584,"d":"527,730"}},{"$f":"($A16-$A15)/365.25*(AO15+(Main!$I22*Main!$D$3))*(1+Main!$I$4+VLOOKUP('Random Years'!AM16,'Hist Returns'!$A$12:$D$107,4,FALSE))","v":{"v":368346.5964877776,"d":"368,347"}},{"$f":"($A16-$A15)/365.25*(AP15+(Main!$I22*Main!$D$3))*(1+Main!$I$4+VLOOKUP('Random Years'!AN16,'Hist Returns'!$A$12:$D$107,4,FALSE))","v":{"v":443864.632411966,"d":"443,865"}},{"$f":"($A16-$A15)/365.25*(AQ15+(Main!$I22*Main!$D$3))*(1+Main!$I$4+VLOOKUP('Random Years'!AO16,'Hist Returns'!$A$12:$D$107,4,FALSE))","v":{"v":244983.57234238175,"d":"244,984"}},{"$f":"($A16-$A15)/365.25*(AR15+(Main!$I22*Main!$D$3))*(1+Main!$I$4+VLOOKUP('Random Years'!AP16,'Hist Returns'!$A$12:$D$107,4,FALSE))","v":{"v":379994.4127805697,"d":"379,994"}},{"$f":"($A16-$A15)/365.25*(AS15+(Main!$I22*Main!$D$3))*(1+Main!$I$4+VLOOKUP('Random Years'!AQ16,'Hist Returns'!$A$12:$D$107,4,FALSE))","v":{"v":608909.7994834634,"d":"608,910"}},{"$f":"($A16-$A15)/365.25*(AT15+(Main!$I22*Main!$D$3))*(1+Main!$I$4+VLOOKUP('Random Years'!AR16,'Hist Returns'!$A$12:$D$107,4,FALSE))","v":{"v":630430.9417467002,"d":"630,431"}},{"$f":"($A16-$A15)/365.25*(AU15+(Main!$I22*Main!$D$3))*(1+Main!$I$4+VLOOKUP('Random Years'!AS16,'Hist Returns'!$A$12:$D$107,4,FALSE))","v":{"v":278123.6093323194,"d":"278,124"}},{"$f":"($A16-$A15)/365.25*(AV15+(Main!$I22*Main!$D$3))*(1+Main!$I$4+VLOOKUP('Random Years'!AT16,'Hist Returns'!$A$12:$D$107,4,FALSE))","v":{"v":494910.881436077,"d":"494,911"}},{"$f":"($A16-$A15)/365.25*(AW15+(Main!$I22*Main!$D$3))*(1+Main!$I$4+VLOOKUP('Random Years'!AU16,'Hist Returns'!$A$12:$D$107,4,FALSE))","v":{"v":503056.01964737056,"d":"503,056"}},{"$f":"($A16-$A15)/365.25*(AX15+(Main!$I22*Main!$D$3))*(1+Main!$I$4+VLOOKUP('Random Years'!AV16,'Hist Returns'!$A$12:$D$107,4,FALSE))","v":{"v":421116.035210151,"d":"421,116"}},{"$f":"($A16-$A15)/365.25*(AY15+(Main!$I22*Main!$D$3))*(1+Main!$I$4+VLOOKUP('Random Years'!AW16,'Hist Returns'!$A$12:$D$107,4,FALSE))","v":{"v":247321.49933011286,"d":"247,321"}},{"$f":"($A16-$A15)/365.25*(AZ15+(Main!$I22*Main!$D$3))*(1+Main!$I$4+VLOOKUP('Random Years'!AX16,'Hist Returns'!$A$12:$D$107,4,FALSE))","v":{"v":342571.01864290977,"d":"342,571"}},{"$f":"($A16-$A15)/365.25*(BA15+(Main!$I22*Main!$D$3))*(1+Main!$I$4+VLOOKUP('Random Years'!AY16,'Hist Returns'!$A$12:$D$107,4,FALSE))","v":{"v":375345.5714071551,"d":"375,346"}},{"$f":"($A16-$A15)/365.25*(BB15+(Main!$I22*Main!$D$3))*(1+Main!$I$4+VLOOKUP('Random Years'!AZ16,'Hist Returns'!$A$12:$D$107,4,FALSE))","v":{"v":288238.5724989737,"d":"288,239"}},{"$f":"($A16-$A15)/365.25*(BC15+(Main!$I22*Main!$D$3))*(1+Main!$I$4+VLOOKUP('Random Years'!BA16,'Hist Returns'!$A$12:$D$107,4,FALSE))","v":{"v":384236.51421492704,"d":"384,237"}},{"$f":"($A16-$A15)/365.25*(BD15+(Main!$I22*Main!$D$3))*(1+Main!$I$4+VLOOKUP('Random Years'!BB16,'Hist Returns'!$A$12:$D$107,4,FALSE))","v":{"v":216098.71246906606,"d":"216,099"}},{"$f":"($A16-$A15)/365.25*(BE15+(Main!$I22*Main!$D$3))*(1+Main!$I$4+VLOOKUP('Random Years'!BC16,'Hist Returns'!$A$12:$D$107,4,FALSE))","v":{"v":636831.7390456866,"d":"636,832"}},{"$f":"($A16-$A15)/365.25*(BF15+(Main!$I22*Main!$D$3))*(1+Main!$I$4+VLOOKUP('Random Years'!BD16,'Hist Returns'!$A$12:$D$107,4,FALSE))","v":{"v":720940.740231143,"d":"720,941"}},{"$f":"($A16-$A15)/365.25*(BG15+(Main!$I22*Main!$D$3))*(1+Main!$I$4+VLOOKUP('Random Years'!BE16,'Hist Returns'!$A$12:$D$107,4,FALSE))","v":{"v":320716.256280707,"d":"320,716"}},{"$f":"($A16-$A15)/365.25*(BH15+(Main!$I22*Main!$D$3))*(1+Main!$I$4+VLOOKUP('Random Years'!BF16,'Hist Returns'!$A$12:$D$107,4,FALSE))","v":{"v":321477.0857250358,"d":"321,477"}},{"$f":"($A16-$A15)/365.25*(BI15+(Main!$I22*Main!$D$3))*(1+Main!$I$4+VLOOKUP('Random Years'!BG16,'Hist Returns'!$A$12:$D$107,4,FALSE))","v":{"v":810982.7157739507,"d":"810,983"}},{"$f":"($A16-$A15)/365.25*(BJ15+(Main!$I22*Main!$D$3))*(1+Main!$I$4+VLOOKUP('Random Years'!BH16,'Hist Returns'!$A$12:$D$107,4,FALSE))","v":{"v":543109.7078657465,"d":"543,110"}},{"$f":"($A16-$A15)/365.25*(BK15+(Main!$I22*Main!$D$3))*(1+Main!$I$4+VLOOKUP('Random Years'!BI16,'Hist Returns'!$A$12:$D$107,4,FALSE))","v":{"v":476757.8263277383,"d":"476,758"}},{"$f":"($A16-$A15)/365.25*(BL15+(Main!$I22*Main!$D$3))*(1+Main!$I$4+VLOOKUP('Random Years'!BJ16,'Hist Returns'!$A$12:$D$107,4,FALSE))","v":{"v":395457.38084148197,"d":"395,457"}},{"$f":"($A16-$A15)/365.25*(BM15+(Main!$I22*Main!$D$3))*(1+Main!$I$4+VLOOKUP('Random Years'!BK16,'Hist Returns'!$A$12:$D$107,4,FALSE))","v":{"v":350475.6566263187,"d":"350,476"}},{"$f":"($A16-$A15)/365.25*(BN15+(Main!$I22*Main!$D$3))*(1+Main!$I$4+VLOOKUP('Random Years'!BL16,'Hist Returns'!$A$12:$D$107,4,FALSE))","v":{"v":547866.2873630812,"d":"547,866"}},{"$f":"($A16-$A15)/365.25*(BO15+(Main!$I22*Main!$D$3))*(1+Main!$I$4+VLOOKUP('Random Years'!BM16,'Hist Returns'!$A$12:$D$107,4,FALSE))","v":{"v":210338.4339635809,"d":"210,338"}},{"$f":"($A16-$A15)/365.25*(BP15+(Main!$I22*Main!$D$3))*(1+Main!$I$4+VLOOKUP('Random Years'!BN16,'Hist Returns'!$A$12:$D$107,4,FALSE))","v":{"v":386312.5302080583,"d":"386,313"}},{"$f":"($A16-$A15)/365.25*(BQ15+(Main!$I22*Main!$D$3))*(1+Main!$I$4+VLOOKUP('Random Years'!BO16,'Hist Returns'!$A$12:$D$107,4,FALSE))","v":{"v":359754.35568583355,"d":"359,754"}},{"$f":"($A16-$A15)/365.25*(BR15+(Main!$I22*Main!$D$3))*(1+Main!$I$4+VLOOKUP('Random Years'!BP16,'Hist Returns'!$A$12:$D$107,4,FALSE))","v":{"v":357523.3091486523,"d":"357,523"}},{"$f":"($A16-$A15)/365.25*(BS15+(Main!$I22*Main!$D$3))*(1+Main!$I$4+VLOOKUP('Random Years'!BQ16,'Hist Returns'!$A$12:$D$107,4,FALSE))","v":{"v":501559.844682299,"d":"501,560"}},{"$f":"($A16-$A15)/365.25*(BT15+(Main!$I22*Main!$D$3))*(1+Main!$I$4+VLOOKUP('Random Years'!BR16,'Hist Returns'!$A$12:$D$107,4,FALSE))","v":{"v":226101.51070648094,"d":"226,102"}},{"$f":"($A16-$A15)/365.25*(BU15+(Main!$I22*Main!$D$3))*(1+Main!$I$4+VLOOKUP('Random Years'!BS16,'Hist Returns'!$A$12:$D$107,4,FALSE))","v":{"v":438347.4514608782,"d":"438,347"}},{"$f":"($A16-$A15)/365.25*(BV15+(Main!$I22*Main!$D$3))*(1+Main!$I$4+VLOOKUP('Random Years'!BT16,'Hist Returns'!$A$12:$D$107,4,FALSE))","v":{"v":185931.07473722505,"d":"185,931"}},{"$f":"($A16-$A15)/365.25*(BW15+(Main!$I22*Main!$D$3))*(1+Main!$I$4+VLOOKUP('Random Years'!BU16,'Hist Returns'!$A$12:$D$107,4,FALSE))","v":{"v":462833.20672673464,"d":"462,833"}},{"$f":"($A16-$A15)/365.25*(BX15+(Main!$I22*Main!$D$3))*(1+Main!$I$4+VLOOKUP('Random Years'!BV16,'Hist Returns'!$A$12:$D$107,4,FALSE))","v":{"v":402182.4122968911,"d":"402,182"}},{"$f":"($A16-$A15)/365.25*(BY15+(Main!$I22*Main!$D$3))*(1+Main!$I$4+VLOOKUP('Random Years'!BW16,'Hist Returns'!$A$12:$D$107,4,FALSE))","v":{"v":372804.4744139385,"d":"372,804"}},{"$f":"($A16-$A15)/365.25*(BZ15+(Main!$I22*Main!$D$3))*(1+Main!$I$4+VLOOKUP('Random Years'!BX16,'Hist Returns'!$A$12:$D$107,4,FALSE))","v":{"v":275441.9543186682,"d":"275,442"}},{"$f":"($A16-$A15)/365.25*(CA15+(Main!$I22*Main!$D$3))*(1+Main!$I$4+VLOOKUP('Random Years'!BY16,'Hist Returns'!$A$12:$D$107,4,FALSE))","v":{"v":722938.0460767272,"d":"722,938"}},{"$f":"($A16-$A15)/365.25*(CB15+(Main!$I22*Main!$D$3))*(1+Main!$I$4+VLOOKUP('Random Years'!BZ16,'Hist Returns'!$A$12:$D$107,4,FALSE))","v":{"v":493334.400341916,"d":"493,334"}},{"$f":"($A16-$A15)/365.25*(CC15+(Main!$I22*Main!$D$3))*(1+Main!$I$4+VLOOKUP('Random Years'!CA16,'Hist Returns'!$A$12:$D$107,4,FALSE))","v":{"v":629331.2506333438,"d":"629,331"}},{"$f":"($A16-$A15)/365.25*(CD15+(Main!$I22*Main!$D$3))*(1+Main!$I$4+VLOOKUP('Random Years'!CB16,'Hist Returns'!$A$12:$D$107,4,FALSE))","v":{"v":472155.2984596922,"d":"472,155"}},{"$f":"($A16-$A15)/365.25*(CE15+(Main!$I22*Main!$D$3))*(1+Main!$I$4+VLOOKUP('Random Years'!CC16,'Hist Returns'!$A$12:$D$107,4,FALSE))","v":{"v":450296.30005793524,"d":"450,296"}},{"$f":"($A16-$A15)/365.25*(CF15+(Main!$I22*Main!$D$3))*(1+Main!$I$4+VLOOKUP('Random Years'!CD16,'Hist Returns'!$A$12:$D$107,4,FALSE))","v":{"v":594202.3670705043,"d":"594,202"}},{"$f":"($A16-$A15)/365.25*(CG15+(Main!$I22*Main!$D$3))*(1+Main!$I$4+VLOOKUP('Random Years'!CE16,'Hist Returns'!$A$12:$D$107,4,FALSE))","v":{"v":541521.8614729657,"d":"541,522"}},{"$f":"($A16-$A15)/365.25*(CH15+(Main!$I22*Main!$D$3))*(1+Main!$I$4+VLOOKUP('Random Years'!CF16,'Hist Returns'!$A$12:$D$107,4,FALSE))","v":{"v":511849.905039076,"d":"511,850"}},{"$f":"($A16-$A15)/365.25*(CI15+(Main!$I22*Main!$D$3))*(1+Main!$I$4+VLOOKUP('Random Years'!CG16,'Hist Returns'!$A$12:$D$107,4,FALSE))","v":{"v":1104337.7487836753,"d":"1,104,338"}},{"$f":"($A16-$A15)/365.25*(CJ15+(Main!$I22*Main!$D$3))*(1+Main!$I$4+VLOOKUP('Random Years'!CH16,'Hist Returns'!$A$12:$D$107,4,FALSE))","v":{"v":476189.384162556,"d":"476,189"}},{"$f":"($A16-$A15)/365.25*(CK15+(Main!$I22*Main!$D$3))*(1+Main!$I$4+VLOOKUP('Random Years'!CI16,'Hist Returns'!$A$12:$D$107,4,FALSE))","v":{"v":432087.47313513386,"d":"432,087"}},{"$f":"($A16-$A15)/365.25*(CL15+(Main!$I22*Main!$D$3))*(1+Main!$I$4+VLOOKUP('Random Years'!CJ16,'Hist Returns'!$A$12:$D$107,4,FALSE))","v":{"v":676037.7186249681,"d":"676,038"}},{"$f":"($A16-$A15)/365.25*(CM15+(Main!$I22*Main!$D$3))*(1+Main!$I$4+VLOOKUP('Random Years'!CK16,'Hist Returns'!$A$12:$D$107,4,FALSE))","v":{"v":390001.45522638416,"d":"390,001"}},{"$f":"($A16-$A15)/365.25*(CN15+(Main!$I22*Main!$D$3))*(1+Main!$I$4+VLOOKUP('Random Years'!CL16,'Hist Returns'!$A$12:$D$107,4,FALSE))","v":{"v":608548.7908765388,"d":"608,549"}},{"$f":"($A16-$A15)/365.25*(CO15+(Main!$I22*Main!$D$3))*(1+Main!$I$4+VLOOKUP('Random Years'!CM16,'Hist Returns'!$A$12:$D$107,4,FALSE))","v":{"v":473486.8077928815,"d":"473,487"}},{"$f":"($A16-$A15)/365.25*(CP15+(Main!$I22*Main!$D$3))*(1+Main!$I$4+VLOOKUP('Random Years'!CN16,'Hist Returns'!$A$12:$D$107,4,FALSE))","v":{"v":444404.38479111565,"d":"444,404"}},{"$f":"($A16-$A15)/365.25*(CQ15+(Main!$I22*Main!$D$3))*(1+Main!$I$4+VLOOKUP('Random Years'!CO16,'Hist Returns'!$A$12:$D$107,4,FALSE))","v":{"v":323852.1229258504,"d":"323,852"}},{"$f":"($A16-$A15)/365.25*(CR15+(Main!$I22*Main!$D$3))*(1+Main!$I$4+VLOOKUP('Random Years'!CP16,'Hist Returns'!$A$12:$D$107,4,FALSE))","v":{"v":436142.3133673467,"d":"436,142"}},{"$f":"($A16-$A15)/365.25*(CS15+(Main!$I22*Main!$D$3))*(1+Main!$I$4+VLOOKUP('Random Years'!CQ16,'Hist Returns'!$A$12:$D$107,4,FALSE))","v":{"v":386499.27153473627,"d":"386,499"}},{"$f":"($A16-$A15)/365.25*(CT15+(Main!$I22*Main!$D$3))*(1+Main!$I$4+VLOOKUP('Random Years'!CR16,'Hist Returns'!$A$12:$D$107,4,FALSE))","v":{"v":217224.9510057437,"d":"217,225"}},{"$f":"($A16-$A15)/365.25*(CU15+(Main!$I22*Main!$D$3))*(1+Main!$I$4+VLOOKUP('Random Years'!CS16,'Hist Returns'!$A$12:$D$107,4,FALSE))","v":{"v":720430.065635979,"d":"720,430"}},{"$f":"($A16-$A15)/365.25*(CV15+(Main!$I22*Main!$D$3))*(1+Main!$I$4+VLOOKUP('Random Years'!CT16,'Hist Returns'!$A$12:$D$107,4,FALSE))","v":{"v":331371.7336424098,"d":"331,372"}},{"$f":"($A16-$A15)/365.25*(CW15+(Main!$I22*Main!$D$3))*(1+Main!$I$4+VLOOKUP('Random Years'!CU16,'Hist Returns'!$A$12:$D$107,4,FALSE))","v":{"v":386050.2663844156,"d":"386,050"}},{"$f":"($A16-$A15)/365.25*(CX15+(Main!$I22*Main!$D$3))*(1+Main!$I$4+VLOOKUP('Random Years'!CV16,'Hist Returns'!$A$12:$D$107,4,FALSE))","v":{"v":277324.2749138292,"d":"277,324"}}]
[{"$f":"Main!A23","v":"2038-12-30"},{"$f":"Main!B23","v":84},{"$f":"($A17-$A16)/365.25*(C16+(Main!$I23*Main!$D$3))*(1+Main!$I$4+VLOOKUP('Random Years'!A17,'Hist Returns'!$A$12:$D$107,4,FALSE))","v":{"v":443562.6833717164,"d":"443,563"}},{"$f":"($A17-$A16)/365.25*(D16+(Main!$I23*Main!$D$3))*(1+Main!$I$4+VLOOKUP('Random Years'!B17,'Hist Returns'!$A$12:$D$107,4,FALSE))","v":{"v":435513.7294620476,"d":"435,514"}},{"$f":"($A17-$A16)/365.25*(E16+(Main!$I23*Main!$D$3))*(1+Main!$I$4+VLOOKUP('Random Years'!C17,'Hist Returns'!$A$12:$D$107,4,FALSE))","v":{"v":262550.08574143704,"d":"262,550"}},{"$f":"($A17-$A16)/365.25*(F16+(Main!$I23*Main!$D$3))*(1+Main!$I$4+VLOOKUP('Random Years'!D17,'Hist Returns'!$A$12:$D$107,4,FALSE))","v":{"v":591105.1212860579,"d":"591,105"}},{"$f":"($A17-$A16)/365.25*(G16+(Main!$I23*Main!$D$3))*(1+Main!$I$4+VLOOKUP('Random Years'!E17,'Hist Returns'!$A$12:$D$107,4,FALSE))","v":{"v":837214.8784926967,"d":"837,215"}},{"$f":"($A17-$A16)/365.25*(H16+(Main!$I23*Main!$D$3))*(1+Main!$I$4+VLOOKUP('Random Years'!F17,'Hist Returns'!$A$12:$D$107,4,FALSE))","v":{"v":556680.010418499,"d":"556,680"}},{"$f":"($A17-$A16)/365.25*(I16+(Main!$I23*Main!$D$3))*(1+Main!$I$4+VLOOKUP('Random Years'!G17,'Hist Returns'!$A$12:$D$107,4,FALSE))","v":{"v":337991.4326269362,"d":"337,991"}},{"$f":"($A17-$A16)/365.25*(J16+(Main!$I23*Main!$D$3))*(1+Main!$I$4+VLOOKUP('Random Years'!H17,'Hist Returns'!$A$12:$D$107,4,FALSE))","v":{"v":518287.47442463937,"d":"518,287"}},{"$f":"($A17-$A16)/365.25*(K16+(Main!$I23*Main!$D$3))*(1+Main!$I$4+VLOOKUP('Random Years'!I17,'Hist Returns'!$A$12:$D$107,4,FALSE))","v":{"v":505282.91804385424,"d":"505,283"}},{"$f":"($A17-$A16)/365.25*(L16+(Main!$I23*Main!$D$3))*(1+Main!$I$4+VLOOKUP('Random Years'!J17,'Hist Returns'!$A$12:$D$107,4,FALSE))","v":{"v":462030.6744541057,"d":"462,031"}},{"$f":"($A17-$A16)/365.25*(M16+(Main!$I23*Main!$D$3))*(1+Main!$I$4+VLOOKUP('Random Years'!K17,'Hist Returns'!$A$12:$D$107,4,FALSE))","v":{"v":245839.64762733792,"d":"245,840"}},{"$f":"($A17-$A16)/365.25*(N16+(Main!$I23*Main!$D$3))*(1+Main!$I$4+VLOOKUP('Random Years'!L17,'Hist Returns'!$A$12:$D$107,4,FALSE))","v":{"v":502772.4349183758,"d":"502,772"}},{"$f":"($A17-$A16)/365.25*(O16+(Main!$I23*Main!$D$3))*(1+Main!$I$4+VLOOKUP('Random Years'!M17,'Hist Returns'!$A$12:$D$107,4,FALSE))","v":{"v":539022.7843711827,"d":"539,023"}},{"$f":"($A17-$A16)/365.25*(P16+(Main!$I23*Main!$D$3))*(1+Main!$I$4+VLOOKUP('Random Years'!N17,'Hist Returns'!$A$12:$D$107,4,FALSE))","v":{"v":382524.81230161095,"d":"382,525"}},{"$f":"($A17-$A16)/365.25*(Q16+(Main!$I23*Main!$D$3))*(1+Main!$I$4+VLOOKUP('Random Years'!O17,'Hist Returns'!$A$12:$D$107,4,FALSE))","v":{"v":468842.5038897206,"d":"468,843"}},{"$f":"($A17-$A16)/365.25*(R16+(Main!$I23*Main!$D$3))*(1+Main!$I$4+VLOOKUP('Random Years'!P17,'Hist Returns'!$A$12:$D$107,4,FALSE))","v":{"v":410051.6162607429,"d":"410,052"}},{"$f":"($A17-$A16)/365.25*(S16+(Main!$I23*Main!$D$3))*(1+Main!$I$4+VLOOKUP('Random Years'!Q17,'Hist Returns'!$A$12:$D$107,4,FALSE))","v":{"v":284897.30803288135,"d":"284,897"}},{"$f":"($A17-$A16)/365.25*(T16+(Main!$I23*Main!$D$3))*(1+Main!$I$4+VLOOKUP('Random Years'!R17,'Hist Returns'!$A$12:$D$107,4,FALSE))","v":{"v":365329.0175688732,"d":"365,329"}},{"$f":"($A17-$A16)/365.25*(U16+(Main!$I23*Main!$D$3))*(1+Main!$I$4+VLOOKUP('Random Years'!S17,'Hist Returns'!$A$12:$D$107,4,FALSE))","v":{"v":398367.10983596416,"d":"398,367"}},{"$f":"($A17-$A16)/365.25*(V16+(Main!$I23*Main!$D$3))*(1+Main!$I$4+VLOOKUP('Random Years'!T17,'Hist Returns'!$A$12:$D$107,4,FALSE))","v":{"v":673335.0680773536,"d":"673,335"}},{"$f":"($A17-$A16)/365.25*(W16+(Main!$I23*Main!$D$3))*(1+Main!$I$4+VLOOKUP('Random Years'!U17,'Hist Returns'!$A$12:$D$107,4,FALSE))","v":{"v":523231.18078969425,"d":"523,231"}},{"$f":"($A17-$A16)/365.25*(X16+(Main!$I23*Main!$D$3))*(1+Main!$I$4+VLOOKUP('Random Years'!V17,'Hist Returns'!$A$12:$D$107,4,FALSE))","v":{"v":379395.9798780917,"d":"379,396"}},{"$f":"($A17-$A16)/365.25*(Y16+(Main!$I23*Main!$D$3))*(1+Main!$I$4+VLOOKUP('Random Years'!W17,'Hist Returns'!$A$12:$D$107,4,FALSE))","v":{"v":206363.8912459042,"d":"206,364"}},{"$f":"($A17-$A16)/365.25*(Z16+(Main!$I23*Main!$D$3))*(1+Main!$I$4+VLOOKUP('Random Years'!X17,'Hist Returns'!$A$12:$D$107,4,FALSE))","v":{"v":760969.9105550816,"d":"760,970"}},{"$f":"($A17-$A16)/365.25*(AA16+(Main!$I23*Main!$D$3))*(1+Main!$I$4+VLOOKUP('Random Years'!Y17,'Hist Returns'!$A$12:$D$107,4,FALSE))","v":{"v":467098.5627913752,"d":"467,099"}},{"$f":"($A17-$A16)/365.25*(AB16+(Main!$I23*Main!$D$3))*(1+Main!$I$4+VLOOKUP('Random Years'!Z17,'Hist Returns'!$A$12:$D$107,4,FALSE))","v":{"v":424774.7224461007,"d":"424,775"}},{"$f":"($A17-$A16)/365.25*(AC16+(Main!$I23*Main!$D$3))*(1+Main!$I$4+VLOOKUP('Random Years'!AA17,'Hist Returns'!$A$12:$D$107,4,FALSE))","v":{"v":389527.63145537954,"d":"389,528"}},{"$f":"($A17-$A16)/365.25*(AD16+(Main!$I23*Main!$D$3))*(1+Main!$I$4+VLOOKUP('Random Years'!AB17,'Hist Returns'!$A$12:$D$107,4,FALSE))","v":{"v":555762.8377536122,"d":"555,763"}},{"$f":"($A17-$A16)/365.25*(AE16+(Main!$I23*Main!$D$3))*(1+Main!$I$4+VLOOKUP('Random Years'!AC17,'Hist Returns'!$A$12:$D$107,4,FALSE))","v":{"v":580389.8831029165,"d":"580,390"}},{"$f":"($A17-$A16)/365.25*(AF16+(Main!$I23*Main!$D$3))*(1+Main!$I$4+VLOOKUP('Random Years'!AD17,'Hist Returns'!$A$12:$D$107,4,FALSE))","v":{"v":355906.4691697674,"d":"355,906"}},{"$f":"($A17-$A16)/365.25*(AG16+(Main!$I23*Main!$D$3))*(1+Main!$I$4+VLOOKUP('Random Years'!AE17,'Hist Returns'!$A$12:$D$107,4,FALSE))","v":{"v":599157.6745314759,"d":"599,158"}},{"$f":"($A17-$A16)/365.25*(AH16+(Main!$I23*Main!$D$3))*(1+Main!$I$4+VLOOKUP('Random Years'!AF17,'Hist Returns'!$A$12:$D$107,4,FALSE))","v":{"v":334242.4832356961,"d":"334,242"}},{"$f":"($A17-$A16)/365.25*(AI16+(Main!$I23*Main!$D$3))*(1+Main!$I$4+VLOOKUP('Random Years'!AG17,'Hist Returns'!$A$12:$D$107,4,FALSE))","v":{"v":488758.5535805299,"d":"488,759"}},{"$f":"($A17-$A16)/365.25*(AJ16+(Main!$I23*Main!$D$3))*(1+Main!$I$4+VLOOKUP('Random Years'!AH17,'Hist Returns'!$A$12:$D$107,4,FALSE))","v":{"v":480259.34713761625,"d":"480,259"}},{"$f":"($A17-$A16)/365.25*(AK16+(Main!$I23*Main!$D$3))*(1+Main!$I$4+VLOOKUP('Random Years'!AI17,'Hist Returns'!$A$12:$D$107,4,FALSE))","v":{"v":614439.9504804359,"d":"614,440"}},{"$f":"($A17-$A16)/365.25*(AL16+(Main!$I23*Main!$D$3))*(1+Main!$I$4+VLOOKUP('Random Years'!AJ17,'Hist Returns'!$A$12:$D$107,4,FALSE))","v":{"v":309008.76501589356,"d":"309,009"}},{"$f":"($A17-$A16)/365.25*(AM16+(Main!$I23*Main!$D$3))*(1+Main!$I$4+VLOOKUP('Random Years'!AK17,'Hist Returns'!$A$12:$D$107,4,FALSE))","v":{"v":526427.4641028931,"d":"526,427"}},{"$f":"($A17-$A16)/365.25*(AN16+(Main!$I23*Main!$D$3))*(1+Main!$I$4+VLOOKUP('Random Years'!AL17,'Hist Returns'!$A$12:$D$107,4,FALSE))","v":{"v":482423.4533838943,"d":"482,423"}},{"$f":"($A17-$A16)/365.25*(AO16+(Main!$I23*Main!$D$3))*(1+Main!$I$4+VLOOKUP('Random Years'!AM17,'Hist Returns'!$A$12:$D$107,4,FALSE))","v":{"v":386354.5604878474,"d":"386,355"}},{"$f":"($A17-$A16)/365.25*(AP16+(Main!$I23*Main!$D$3))*(1+Main!$I$4+VLOOKUP('Random Years'!AN17,'Hist Returns'!$A$12:$D$107,4,FALSE))","v":{"v":457953.89102237957,"d":"457,954"}},{"$f":"($A17-$A16)/365.25*(AQ16+(Main!$I23*Main!$D$3))*(1+Main!$I$4+VLOOKUP('Random Years'!AO17,'Hist Returns'!$A$12:$D$107,4,FALSE))","v":{"v":267081.9725439336,"d":"267,082"}},{"$f":"($A17-$A16)/365.25*(AR16+(Main!$I23*Main!$D$3))*(1+Main!$I$4+VLOOKUP('Random Years'!AP17,'Hist Returns'!$A$12:$D$107,4,FALSE))","v":{"v":389036.2839858729,"d":"389,036"}},{"$f":"($A17-$A16)/365.25*(AS16+(Main!$I23*Main!$D$3))*(1+Main!$I$4+VLOOKUP('Random Years'!AQ17,'Hist Returns'!$A$12:$D$107,4,FALSE))","v":{"v":617172.2456453595,"d":"617,172"}},{"$f":"($A17-$A16)/365.25*(AT16+(Main!$I23*Main!$D$3))*(1+Main!$I$4+VLOOKUP('Random Years'!AR17,'Hist Returns'!$A$12:$D$107,4,FALSE))","v":{"v":781072.3926778828,"d":"781,072"}},{"$f":"($A17-$A16)/365.25*(AU16+(Main!$I23*Main!$D$3))*(1+Main!$I$4+VLOOKUP('Random Years'!AS17,'Hist Returns'!$A$12:$D$107,4,FALSE))","v":{"v":286502.6401102352,"d":"286,503"}},{"$f":"($A17-$A16)/365.25*(AV16+(Main!$I23*Main!$D$3))*(1+Main!$I$4+VLOOKUP('Random Years'!AT17,'Hist Returns'!$A$12:$D$107,4,FALSE))","v":{"v":491573.34593597933,"d":"491,573"}},{"$f":"($A17-$A16)/365.25*(AW16+(Main!$I23*Main!$D$3))*(1+Main!$I$4+VLOOKUP('Random Years'!AU17,'Hist Returns'!$A$12:$D$107,4,FALSE))","v":{"v":504771.5714733972,"d":"504,772"}},{"$f":"($A17-$A16)/365.25*(AX16+(Main!$I23*Main!$D$3))*(1+Main!$I$4+VLOOKUP('Random Years'!AV17,'Hist Returns'!$A$12:$D$107,4,FALSE))","v":{"v":481848.31869032,"d":"481,848"}},{"$f":"($A17-$A16)/365.25*(AY16+(Main!$I23*Main!$D$3))*(1+Main!$I$4+VLOOKUP('Random Years'!AW17,'Hist Returns'!$A$12:$D$107,4,FALSE))","v":{"v":255957.5487991507,"d":"255,958"}},{"$f":"($A17-$A16)/365.25*(AZ16+(Main!$I23*Main!$D$3))*(1+Main!$I$4+VLOOKUP('Random Years'!AX17,'Hist Returns'!$A$12:$D$107,4,FALSE))","v":{"v":353498.75005873374,"d":"353,499"}},{"$f":"($A17-$A16)/365.25*(BA16+(Main!$I23*Main!$D$3))*(1+Main!$I$4+VLOOKUP('Random Years'!AY17,'Hist Returns'!$A$12:$D$107,4,FALSE))","v":{"v":372442.7252291075,"d":"372,443"}},{"$f":"($A17-$A16)/365.25*(BB16+(Main!$I23*Main!$D$3))*(1+Main!$I$4+VLOOKUP('Random Years'!AZ17,'Hist Returns'!$A$12:$D$107,4,FALSE))","v":{"v":314116.9342798277,"d":"314,117"}},{"$f":"($A17-$A16)/365.25*(BC16+(Main!$I23*Main!$D$3))*(1+Main!$I$4+VLOOKUP('Random Years'!BA17,'Hist Returns'!$A$12:$D$107,4,FALSE))","v":{"v":398278.033391628,"d":"398,278"}},{"$f":"($A17-$A16)/365.25*(BD16+(Main!$I23*Main!$D$3))*(1+Main!$I$4+VLOOKUP('Random Years'!BB17,'Hist Returns'!$A$12:$D$107,4,FALSE))","v":{"v":233255.1189643979,"d":"233,255"}},{"$f":"($A17-$A16)/365.25*(BE16+(Main!$I23*Main!$D$3))*(1+Main!$I$4+VLOOKUP('Random Years'!BC17,'Hist Returns'!$A$12:$D$107,4,FALSE))","v":{"v":659005.5077285704,"d":"659,006"}},{"$f":"($A17-$A16)/365.25*(BF16+(Main!$I23*Main!$D$3))*(1+Main!$I$4+VLOOKUP('Random Years'!BD17,'Hist Returns'!$A$12:$D$107,4,FALSE))","v":{"v":739166.4364658392,"d":"739,166"}},{"$f":"($A17-$A16)/365.25*(BG16+(Main!$I23*Main!$D$3))*(1+Main!$I$4+VLOOKUP('Random Years'!BE17,'Hist Returns'!$A$12:$D$107,4,FALSE))","v":{"v":312504.0559900715,"d":"312,504"}},{"$f":"($A17-$A16)/365.25*(BH16+(Main!$I23*Main!$D$3))*(1+Main!$I$4+VLOOKUP('Random Years'!BF17,'Hist Returns'!$A$12:$D$107,4,FALSE))","v":{"v":333154.40409456106,"d":"333,154"}},{"$f":"($A17-$A16)/365.25*(BI16+(Main!$I23*Main!$D$3))*(1+Main!$I$4+VLOOKUP('Random Years'!BG17,'Hist Returns'!$A$12:$D$107,4,FALSE))","v":{"v":834189.7720538673,"d":"834,190"}},{"$f":"($A17-$A16)/365.25*(BJ16+(Main!$I23*Main!$D$3))*(1+Main!$I$4+VLOOKUP('Random Years'!BH17,'Hist Returns'!$A$12:$D$107,4,FALSE))","v":{"v":574940.716225961,"d":"574,941"}},{"$f":"($A17-$A16)/365.25*(BK16+(Main!$I23*Main!$D$3))*(1+Main!$I$4+VLOOKUP('Random Years'!BI17,'Hist Returns'!$A$12:$D$107,4,FALSE))","v":{"v":516632.87477660924,"d":"516,633"}},{"$f":"($A17-$A16)/365.25*(BL16+(Main!$I23*Main!$D$3))*(1+Main!$I$4+VLOOKUP('Random Years'!BJ17,'Hist Returns'!$A$12:$D$107,4,FALSE))","v":{"v":413396.4623347492,"d":"413,396"}},{"$f":"($A17-$A16)/365.25*(BM16+(Main!$I23*Main!$D$3))*(1+Main!$I$4+VLOOKUP('Random Years'!BK17,'Hist Returns'!$A$12:$D$107,4,FALSE))","v":{"v":389279.09653796186,"d":"389,279"}},{"$f":"($A17-$A16)/365.25*(BN16+(Main!$I23*Main!$D$3))*(1+Main!$I$4+VLOOKUP('Random Years'!BL17,'Hist Returns'!$A$12:$D$107,4,FALSE))","v":{"v":573343.5051219997,"d":"573,344"}},{"$f":"($A17-$A16)/365.25*(BO16+(Main!$I23*Main!$D$3))*(1+Main!$I$4+VLOOKUP('Random Years'!BM17,'Hist Returns'!$A$12:$D$107,4,FALSE))","v":{"v":207029.22690613047,"d":"207,029"}},{"$f":"($A17-$A16)/365.25*(BP16+(Main!$I23*Main!$D$3))*(1+Main!$I$4+VLOOKUP('Random Years'!BN17,'Hist Returns'!$A$12:$D$107,4,FALSE))","v":{"v":446162.0251065432,"d":"446,162"}},{"$f":"($A17-$A16)/365.25*(BQ16+(Main!$I23*Main!$D$3))*(1+Main!$I$4+VLOOKUP('Random Years'!BO17,'Hist Returns'!$A$12:$D$107,4,FALSE))","v":{"v":368374.73392864515,"d":"368,375"}},{"$f":"($A17-$A16)/365.25*(BR16+(Main!$I23*Main!$D$3))*(1+Main!$I$4+VLOOKUP('Random Years'!BP17,'Hist Returns'!$A$12:$D$107,4,FALSE))","v":{"v":367384.78896017314,"d":"367,385"}},{"$f":"($A17-$A16)/365.25*(BS16+(Main!$I23*Main!$D$3))*(1+Main!$I$4+VLOOKUP('Random Years'!BQ17,'Hist Returns'!$A$12:$D$107,4,FALSE))","v":{"v":484734.7754727316,"d":"484,735"}},{"$f":"($A17-$A16)/365.25*(BT16+(Main!$I23*Main!$D$3))*(1+Main!$I$4+VLOOKUP('Random Years'!BR17,'Hist Returns'!$A$12:$D$107,4,FALSE))","v":{"v":232614.13730996463,"d":"232,614"}},{"$f":"($A17-$A16)/365.25*(BU16+(Main!$I23*Main!$D$3))*(1+Main!$I$4+VLOOKUP('Random Years'!BS17,'Hist Returns'!$A$12:$D$107,4,FALSE))","v":{"v":444602.9640749987,"d":"444,603"}},{"$f":"($A17-$A16)/365.25*(BV16+(Main!$I23*Main!$D$3))*(1+Main!$I$4+VLOOKUP('Random Years'!BT17,'Hist Returns'!$A$12:$D$107,4,FALSE))","v":{"v":189736.4571400578,"d":"189,736"}},{"$f":"($A17-$A16)/365.25*(BW16+(Main!$I23*Main!$D$3))*(1+Main!$I$4+VLOOKUP('Random Years'!BU17,'Hist Returns'!$A$12:$D$107,4,FALSE))","v":{"v":460896.6639571134,"d":"460,897"}},{"$f":"($A17-$A16)/365.25*(BX16+(Main!$I23*Main!$D$3))*(1+Main!$I$4+VLOOKUP('Random Years'!BV17,'Hist Returns'!$A$12:$D$107,4,FALSE))","v":{"v":380289.8652456118,"d":"380,290"}},{"$f":"($A17-$A16)/365.25*(BY16+(Main!$I23*Main!$D$3))*(1+Main!$I$4+VLOOKUP('Random Years'!BW17,'Hist Returns'!$A$12:$D$107,4,FALSE))","v":{"v":382879.4855158669,"d":"382,879"}},{"$f":"($A17-$A16)/365.25*(BZ16+(Main!$I23*Main!$D$3))*(1+Main!$I$4+VLOOKUP('Random Years'!BX17,'Hist Returns'!$A$12:$D$107,4,FALSE))","v":{"v":273664.9325316274,"d":"273,665"}},{"$f":"($A17-$A16)/365.25*(CA16+(Main!$I23*Main!$D$3))*(1+Main!$I$4+VLOOKUP('Random Years'!BY17,'Hist Returns'!$A$12:$D$107,4,FALSE))","v":{"v":702453.6153959687,"d":"702,454"}},{"$f":"($A17-$A16)/365.25*(CB16+(Main!$I23*Main!$D$3))*(1+Main!$I$4+VLOOKUP('Random Years'!BZ17,'Hist Returns'!$A$12:$D$107,4,FALSE))","v":{"v":495973.81421774137,"d":"495,974"}},{"$f":"($A17-$A16)/365.25*(CC16+(Main!$I23*Main!$D$3))*(1+Main!$I$4+VLOOKUP('Random Years'!CA17,'Hist Returns'!$A$12:$D$107,4,FALSE))","v":{"v":833222.2944979485,"d":"833,222"}},{"$f":"($A17-$A16)/365.25*(CD16+(Main!$I23*Main!$D$3))*(1+Main!$I$4+VLOOKUP('Random Years'!CB17,'Hist Returns'!$A$12:$D$107,4,FALSE))","v":{"v":545463.0049911891,"d":"545,463"}},{"$f":"($A17-$A16)/365.25*(CE16+(Main!$I23*Main!$D$3))*(1+Main!$I$4+VLOOKUP('Random Years'!CC17,'Hist Returns'!$A$12:$D$107,4,FALSE))","v":{"v":441357.06549536256,"d":"441,357"}},{"$f":"($A17-$A16)/365.25*(CF16+(Main!$I23*Main!$D$3))*(1+Main!$I$4+VLOOKUP('Random Years'!CD17,'Hist Returns'!$A$12:$D$107,4,FALSE))","v":{"v":711303.2586638179,"d":"711,303"}},{"$f":"($A17-$A16)/365.25*(CG16+(Main!$I23*Main!$D$3))*(1+Main!$I$4+VLOOKUP('Random Years'!CE17,'Hist Returns'!$A$12:$D$107,4,FALSE))","v":{"v":515757.7151695195,"d":"515,758"}},{"$f":"($A17-$A16)/365.25*(CH16+(Main!$I23*Main!$D$3))*(1+Main!$I$4+VLOOKUP('Random Years'!CF17,'Hist Returns'!$A$12:$D$107,4,FALSE))","v":{"v":550566.8735932573,"d":"550,567"}},{"$f":"($A17-$A16)/365.25*(CI16+(Main!$I23*Main!$D$3))*(1+Main!$I$4+VLOOKUP('Random Years'!CG17,'Hist Returns'!$A$12:$D$107,4,FALSE))","v":{"v":1150663.9119062927,"d":"1,150,664"}},{"$f":"($A17-$A16)/365.25*(CJ16+(Main!$I23*Main!$D$3))*(1+Main!$I$4+VLOOKUP('Random Years'!CH17,'Hist Returns'!$A$12:$D$107,4,FALSE))","v":{"v":421591.86593709805,"d":"421,592"}},{"$f":"($A17-$A16)/365.25*(CK16+(Main!$I23*Main!$D$3))*(1+Main!$I$4+VLOOKUP('Random Years'!CI17,'Hist Returns'!$A$12:$D$107,4,FALSE))","v":{"v":431863.72634682624,"d":"431,864"}},{"$f":"($A17-$A16)/365.25*(CL16+(Main!$I23*Main!$D$3))*(1+Main!$I$4+VLOOKUP('Random Years'!CJ17,'Hist Returns'!$A$12:$D$107,4,FALSE))","v":{"v":672041.6819087263,"d":"672,042"}},{"$f":"($A17-$A16)/365.25*(CM16+(Main!$I23*Main!$D$3))*(1+Main!$I$4+VLOOKUP('Random Years'!CK17,'Hist Returns'!$A$12:$D$107,4,FALSE))","v":{"v":398197.78341271344,"d":"398,198"}},{"$f":"($A17-$A16)/365.25*(CN16+(Main!$I23*Main!$D$3))*(1+Main!$I$4+VLOOKUP('Random Years'!CL17,'Hist Returns'!$A$12:$D$107,4,FALSE))","v":{"v":597001.5783909446,"d":"597,002"}},{"$f":"($A17-$A16)/365.25*(CO16+(Main!$I23*Main!$D$3))*(1+Main!$I$4+VLOOKUP('Random Years'!CM17,'Hist Returns'!$A$12:$D$107,4,FALSE))","v":{"v":555066.6851951823,"d":"555,067"}},{"$f":"($A17-$A16)/365.25*(CP16+(Main!$I23*Main!$D$3))*(1+Main!$I$4+VLOOKUP('Random Years'!CN17,'Hist Returns'!$A$12:$D$107,4,FALSE))","v":{"v":451191.8617819248,"d":"451,192"}},{"$f":"($A17-$A16)/365.25*(CQ16+(Main!$I23*Main!$D$3))*(1+Main!$I$4+VLOOKUP('Random Years'!CO17,'Hist Returns'!$A$12:$D$107,4,FALSE))","v":{"v":358580.1863303255,"d":"358,580"}},{"$f":"($A17-$A16)/365.25*(CR16+(Main!$I23*Main!$D$3))*(1+Main!$I$4+VLOOKUP('Random Years'!CP17,'Hist Returns'!$A$12:$D$107,4,FALSE))","v":{"v":399397.71263110585,"d":"399,398"}},{"$f":"($A17-$A16)/365.25*(CS16+(Main!$I23*Main!$D$3))*(1+Main!$I$4+VLOOKUP('Random Years'!CQ17,'Hist Returns'!$A$12:$D$107,4,FALSE))","v":{"v":402631.9748641817,"d":"402,632"}},{"$f":"($A17-$A16)/365.25*(CT16+(Main!$I23*Main!$D$3))*(1+Main!$I$4+VLOOKUP('Random Years'!CR17,'Hist Returns'!$A$12:$D$107,4,FALSE))","v":{"v":216459.38800784547,"d":"216,459"}},{"$f":"($A17-$A16)/365.25*(CU16+(Main!$I23*Main!$D$3))*(1+Main!$I$4+VLOOKUP('Random Years'!CS17,'Hist Returns'!$A$12:$D$107,4,FALSE))","v":{"v":820484.8435981543,"d":"820,485"}},{"$f":"($A17-$A16)/365.25*(CV16+(Main!$I23*Main!$D$3))*(1+Main!$I$4+VLOOKUP('Random Years'!CT17,'Hist Returns'!$A$12:$D$107,4,FALSE))","v":{"v":338891.7866291441,"d":"338,892"}},{"$f":"($A17-$A16)/365.25*(CW16+(Main!$I23*Main!$D$3))*(1+Main!$I$4+VLOOKUP('Random Years'!CU17,'Hist Returns'!$A$12:$D$107,4,FALSE))","v":{"v":448622.1688557248,"d":"448,622"}},{"$f":"($A17-$A16)/365.25*(CX16+(Main!$I23*Main!$D$3))*(1+Main!$I$4+VLOOKUP('Random Years'!CV17,'Hist Returns'!$A$12:$D$107,4,FALSE))","v":{"v":316942.830855761,"d":"316,943"}}]
[{"$f":"Main!A24","v":"2039-12-31"},{"$f":"Main!B24","v":85},{"$f":"($A18-$A17)/365.25*(C17+(Main!$I24*Main!$D$3))*(1+Main!$I$4+VLOOKUP('Random Years'!A18,'Hist Returns'!$A$12:$D$107,4,FALSE))","v":{"v":455740.9280848077,"d":"455,741"}},{"$f":"($A18-$A17)/365.25*(D17+(Main!$I24*Main!$D$3))*(1+Main!$I$4+VLOOKUP('Random Years'!B18,'Hist Returns'!$A$12:$D$107,4,FALSE))","v":{"v":424989.2168833528,"d":"424,989"}},{"$f":"($A18-$A17)/365.25*(E17+(Main!$I24*Main!$D$3))*(1+Main!$I$4+VLOOKUP('Random Years'!C18,'Hist Returns'!$A$12:$D$107,4,FALSE))","v":{"v":273352.01174980943,"d":"273,352"}},{"$f":"($A18-$A17)/365.25*(F17+(Main!$I24*Main!$D$3))*(1+Main!$I$4+VLOOKUP('Random Years'!D18,'Hist Returns'!$A$12:$D$107,4,FALSE))","v":{"v":593245.7979788078,"d":"593,246"}},{"$f":"($A18-$A17)/365.25*(G17+(Main!$I24*Main!$D$3))*(1+Main!$I$4+VLOOKUP('Random Years'!E18,'Hist Returns'!$A$12:$D$107,4,FALSE))","v":{"v":864119.3549675347,"d":"864,119"}},{"$f":"($A18-$A17)/365.25*(H17+(Main!$I24*Main!$D$3))*(1+Main!$I$4+VLOOKUP('Random Years'!F18,'Hist Returns'!$A$12:$D$107,4,FALSE))","v":{"v":619231.2003253136,"d":"619,231"}},{"$f":"($A18-$A17)/365.25*(I17+(Main!$I24*Main!$D$3))*(1+Main!$I$4+VLOOKUP('Random Years'!G18,'Hist Returns'!$A$12:$D$107,4,FALSE))","v":{"v":328449.455310713,"d":"328,449"}},{"$f":"($A18-$A17)/365.25*(J17+(Main!$I24*Main!$D$3))*(1+Main!$I$4+VLOOKUP('Random Years'!H18,'Hist Returns'!$A$12:$D$107,4,FALSE))","v":{"v":527893.8780835493,"d":"527,894"}},{"$f":"($A18-$A17)/365.25*(K17+(Main!$I24*Main!$D$3))*(1+Main!$I$4+VLOOKUP('Random Years'!I18,'Hist Returns'!$A$12:$D$107,4,FALSE))","v":{"v":532833.0510275319,"d":"532,833"}},{"$f":"($A18-$A17)/365.25*(L17+(Main!$I24*Main!$D$3))*(1+Main!$I$4+VLOOKUP('Random Years'!J18,'Hist Returns'!$A$12:$D$107,4,FALSE))","v":{"v":473260.9441050891,"d":"473,261"}},{"$f":"($A18-$A17)/365.25*(M17+(Main!$I24*Main!$D$3))*(1+Main!$I$4+VLOOKUP('Random Years'!K18,'Hist Returns'!$A$12:$D$107,4,FALSE))","v":{"v":307660.8278994181,"d":"307,661"}},{"$f":"($A18-$A17)/365.25*(N17+(Main!$I24*Main!$D$3))*(1+Main!$I$4+VLOOKUP('Random Years'!L18,'Hist Returns'!$A$12:$D$107,4,FALSE))","v":{"v":513718.76558408386,"d":"513,719"}},{"$f":"($A18-$A17)/365.25*(O17+(Main!$I24*Main!$D$3))*(1+Main!$I$4+VLOOKUP('Random Years'!M18,'Hist Returns'!$A$12:$D$107,4,FALSE))","v":{"v":542234.6389197721,"d":"542,235"}},{"$f":"($A18-$A17)/365.25*(P17+(Main!$I24*Main!$D$3))*(1+Main!$I$4+VLOOKUP('Random Years'!N18,'Hist Returns'!$A$12:$D$107,4,FALSE))","v":{"v":396220.97898091614,"d":"396,221"}},{"$f":"($A18-$A17)/365.25*(Q17+(Main!$I24*Main!$D$3))*(1+Main!$I$4+VLOOKUP('Random Years'!O18,'Hist Returns'!$A$12:$D$107,4,FALSE))","v":{"v":474187.3601888074,"d":"474,187"}},{"$f":"($A18-$A17)/365.25*(R17+(Main!$I24*Main!$D$3))*(1+Main!$I$4+VLOOKUP('Random Years'!P18,'Hist Returns'!$A$12:$D$107,4,FALSE))","v":{"v":422086.76369024906,"d":"422,087"}},{"$f":"($A18-$A17)/365.25*(S17+(Main!$I24*Main!$D$3))*(1+Main!$I$4+VLOOKUP('Random Years'!Q18,'Hist Returns'!$A$12:$D$107,4,FALSE))","v":{"v":252314.42735287864,"d":"252,314"}},{"$f":"($A18-$A17)/365.25*(T17+(Main!$I24*Main!$D$3))*(1+Main!$I$4+VLOOKUP('Random Years'!R18,'Hist Returns'!$A$12:$D$107,4,FALSE))","v":{"v":357098.1594647565,"d":"357,098"}},{"$f":"($A18-$A17)/365.25*(U17+(Main!$I24*Main!$D$3))*(1+Main!$I$4+VLOOKUP('Random Years'!S18,'Hist Returns'!$A$12:$D$107,4,FALSE))","v":{"v":406698.17136179405,"d":"406,698"}},{"$f":"($A18-$A17)/365.25*(V17+(Main!$I24*Main!$D$3))*(1+Main!$I$4+VLOOKUP('Random Years'!T18,'Hist Returns'!$A$12:$D$107,4,FALSE))","v":{"v":728460.531898534,"d":"728,461"}},{"$f":"($A18-$A17)/365.25*(W17+(Main!$I24*Main!$D$3))*(1+Main!$I$4+VLOOKUP('Random Years'!U18,'Hist Returns'!$A$12:$D$107,4,FALSE))","v":{"v":510904.0158266013,"d":"510,904"}},{"$f":"($A18-$A17)/365.25*(X17+(Main!$I24*Main!$D$3))*(1+Main!$I$4+VLOOKUP('Random Years'!V18,'Hist Returns'!$A$12:$D$107,4,FALSE))","v":{"v":409695.87479518633,"d":"409,696"}},{"$f":"($A18-$A17)/365.25*(Y17+(Main!$I24*Main!$D$3))*(1+Main!$I$4+VLOOKUP('Random Years'!W18,'Hist Returns'!$A$12:$D$107,4,FALSE))","v":{"v":241480.16245011886,"d":"241,480"}},{"$f":"($A18-$A17)/365.25*(Z17+(Main!$I24*Main!$D$3))*(1+Main!$I$4+VLOOKUP('Random Years'!X18,'Hist Returns'!$A$12:$D$107,4,FALSE))","v":{"v":795474.6625308909,"d":"795,475"}},{"$f":"($A18-$A17)/365.25*(AA17+(Main!$I24*Main!$D$3))*(1+Main!$I$4+VLOOKUP('Random Years'!Y18,'Hist Returns'!$A$12:$D$107,4,FALSE))","v":{"v":472463.93076781696,"d":"472,464"}},{"$f":"($A18-$A17)/365.25*(AB17+(Main!$I24*Main!$D$3))*(1+Main!$I$4+VLOOKUP('Random Years'!Z18,'Hist Returns'!$A$12:$D$107,4,FALSE))","v":{"v":417333.7960430865,"d":"417,334"}},{"$f":"($A18-$A17)/365.25*(AC17+(Main!$I24*Main!$D$3))*(1+Main!$I$4+VLOOKUP('Random Years'!AA18,'Hist Returns'!$A$12:$D$107,4,FALSE))","v":{"v":357476.90930600365,"d":"357,477"}},{"$f":"($A18-$A17)/365.25*(AD17+(Main!$I24*Main!$D$3))*(1+Main!$I$4+VLOOKUP('Random Years'!AB18,'Hist Returns'!$A$12:$D$107,4,FALSE))","v":{"v":580229.7510971209,"d":"580,230"}},{"$f":"($A18-$A17)/365.25*(AE17+(Main!$I24*Main!$D$3))*(1+Main!$I$4+VLOOKUP('Random Years'!AC18,'Hist Returns'!$A$12:$D$107,4,FALSE))","v":{"v":604003.9678875348,"d":"604,004"}},{"$f":"($A18-$A17)/365.25*(AF17+(Main!$I24*Main!$D$3))*(1+Main!$I$4+VLOOKUP('Random Years'!AD18,'Hist Returns'!$A$12:$D$107,4,FALSE))","v":{"v":370691.2334630575,"d":"370,691"}},{"$f":"($A18-$A17)/365.25*(AG17+(Main!$I24*Main!$D$3))*(1+Main!$I$4+VLOOKUP('Random Years'!AE18,'Hist Returns'!$A$12:$D$107,4,FALSE))","v":{"v":625196.8457438997,"d":"625,197"}},{"$f":"($A18-$A17)/365.25*(AH17+(Main!$I24*Main!$D$3))*(1+Main!$I$4+VLOOKUP('Random Years'!AF18,'Hist Returns'!$A$12:$D$107,4,FALSE))","v":{"v":388833.078201347,"d":"388,833"}},{"$f":"($A18-$A17)/365.25*(AI17+(Main!$I24*Main!$D$3))*(1+Main!$I$4+VLOOKUP('Random Years'!AG18,'Hist Returns'!$A$12:$D$107,4,FALSE))","v":{"v":499353.84782770416,"d":"499,354"}},{"$f":"($A18-$A17)/365.25*(AJ17+(Main!$I24*Main!$D$3))*(1+Main!$I$4+VLOOKUP('Random Years'!AH18,'Hist Returns'!$A$12:$D$107,4,FALSE))","v":{"v":556302.2665620067,"d":"556,302"}},{"$f":"($A18-$A17)/365.25*(AK17+(Main!$I24*Main!$D$3))*(1+Main!$I$4+VLOOKUP('Random Years'!AI18,'Hist Returns'!$A$12:$D$107,4,FALSE))","v":{"v":641976.3316777284,"d":"641,976"}},{"$f":"($A18-$A17)/365.25*(AL17+(Main!$I24*Main!$D$3))*(1+Main!$I$4+VLOOKUP('Random Years'!AJ18,'Hist Returns'!$A$12:$D$107,4,FALSE))","v":{"v":359642.5724647948,"d":"359,643"}},{"$f":"($A18-$A17)/365.25*(AM17+(Main!$I24*Main!$D$3))*(1+Main!$I$4+VLOOKUP('Random Years'!AK18,'Hist Returns'!$A$12:$D$107,4,FALSE))","v":{"v":587109.5547893015,"d":"587,110"}},{"$f":"($A18-$A17)/365.25*(AN17+(Main!$I24*Main!$D$3))*(1+Main!$I$4+VLOOKUP('Random Years'!AL18,'Hist Returns'!$A$12:$D$107,4,FALSE))","v":{"v":485266.77503108134,"d":"485,267"}},{"$f":"($A18-$A17)/365.25*(AO17+(Main!$I24*Main!$D$3))*(1+Main!$I$4+VLOOKUP('Random Years'!AM18,'Hist Returns'!$A$12:$D$107,4,FALSE))","v":{"v":394384.71734644315,"d":"394,385"}},{"$f":"($A18-$A17)/365.25*(AP17+(Main!$I24*Main!$D$3))*(1+Main!$I$4+VLOOKUP('Random Years'!AN18,'Hist Returns'!$A$12:$D$107,4,FALSE))","v":{"v":574862.4654639405,"d":"574,862"}},{"$f":"($A18-$A17)/365.25*(AQ17+(Main!$I24*Main!$D$3))*(1+Main!$I$4+VLOOKUP('Random Years'!AO18,'Hist Returns'!$A$12:$D$107,4,FALSE))","v":{"v":271236.2955224187,"d":"271,236"}},{"$f":"($A18-$A17)/365.25*(AR17+(Main!$I24*Main!$D$3))*(1+Main!$I$4+VLOOKUP('Random Years'!AP18,'Hist Returns'!$A$12:$D$107,4,FALSE))","v":{"v":427861.7838135965,"d":"427,862"}},{"$f":"($A18-$A17)/365.25*(AS17+(Main!$I24*Main!$D$3))*(1+Main!$I$4+VLOOKUP('Random Years'!AQ18,'Hist Returns'!$A$12:$D$107,4,FALSE))","v":{"v":634099.9973960744,"d":"634,100"}},{"$f":"($A18-$A17)/365.25*(AT17+(Main!$I24*Main!$D$3))*(1+Main!$I$4+VLOOKUP('Random Years'!AR18,'Hist Returns'!$A$12:$D$107,4,FALSE))","v":{"v":829767.8537165197,"d":"829,768"}},{"$f":"($A18-$A17)/365.25*(AU17+(Main!$I24*Main!$D$3))*(1+Main!$I$4+VLOOKUP('Random Years'!AS18,'Hist Returns'!$A$12:$D$107,4,FALSE))","v":{"v":291954.8725746769,"d":"291,955"}},{"$f":"($A18-$A17)/365.25*(AV17+(Main!$I24*Main!$D$3))*(1+Main!$I$4+VLOOKUP('Random Years'!AT18,'Hist Returns'!$A$12:$D$107,4,FALSE))","v":{"v":446271.10581618,"d":"446,271"}},{"$f":"($A18-$A17)/365.25*(AW17+(Main!$I24*Main!$D$3))*(1+Main!$I$4+VLOOKUP('Random Years'!AU18,'Hist Returns'!$A$12:$D$107,4,FALSE))","v":{"v":490853.07112074445,"d":"490,853"}},{"$f":"($A18-$A17)/365.25*(AX17+(Main!$I24*Main!$D$3))*(1+Main!$I$4+VLOOKUP('Random Years'!AV18,'Hist Returns'!$A$12:$D$107,4,FALSE))","v":{"v":483033.12609768094,"d":"483,033"}},{"$f":"($A18-$A17)/365.25*(AY17+(Main!$I24*Main!$D$3))*(1+Main!$I$4+VLOOKUP('Random Years'!AW18,'Hist Returns'!$A$12:$D$107,4,FALSE))","v":{"v":264061.1761163472,"d":"264,061"}},{"$f":"($A18-$A17)/365.25*(AZ17+(Main!$I24*Main!$D$3))*(1+Main!$I$4+VLOOKUP('Random Years'!AX18,'Hist Returns'!$A$12:$D$107,4,FALSE))","v":{"v":381525.4422790313,"d":"381,525"}},{"$f":"($A18-$A17)/365.25*(BA17+(Main!$I24*Main!$D$3))*(1+Main!$I$4+VLOOKUP('Random Years'!AY18,'Hist Returns'!$A$12:$D$107,4,FALSE))","v":{"v":387253.04059505416,"d":"387,253"}},{"$f":"($A18-$A17)/365.25*(BB17+(Main!$I24*Main!$D$3))*(1+Main!$I$4+VLOOKUP('Random Years'!AZ18,'Hist Returns'!$A$12:$D$107,4,FALSE))","v":{"v":287303.01787308307,"d":"287,303"}},{"$f":"($A18-$A17)/365.25*(BC17+(Main!$I24*Main!$D$3))*(1+Main!$I$4+VLOOKUP('Random Years'!BA18,'Hist Returns'!$A$12:$D$107,4,FALSE))","v":{"v":400227.75143820944,"d":"400,228"}},{"$f":"($A18-$A17)/365.25*(BD17+(Main!$I24*Main!$D$3))*(1+Main!$I$4+VLOOKUP('Random Years'!BB18,'Hist Returns'!$A$12:$D$107,4,FALSE))","v":{"v":273194.41734521004,"d":"273,194"}},{"$f":"($A18-$A17)/365.25*(BE17+(Main!$I24*Main!$D$3))*(1+Main!$I$4+VLOOKUP('Random Years'!BC18,'Hist Returns'!$A$12:$D$107,4,FALSE))","v":{"v":679829.2674661559,"d":"679,829"}},{"$f":"($A18-$A17)/365.25*(BF17+(Main!$I24*Main!$D$3))*(1+Main!$I$4+VLOOKUP('Random Years'!BD18,'Hist Returns'!$A$12:$D$107,4,FALSE))","v":{"v":766113.7034062496,"d":"766,114"}},{"$f":"($A18-$A17)/365.25*(BG17+(Main!$I24*Main!$D$3))*(1+Main!$I$4+VLOOKUP('Random Years'!BE18,'Hist Returns'!$A$12:$D$107,4,FALSE))","v":{"v":303563.26764426165,"d":"303,563"}},{"$f":"($A18-$A17)/365.25*(BH17+(Main!$I24*Main!$D$3))*(1+Main!$I$4+VLOOKUP('Random Years'!BF18,'Hist Returns'!$A$12:$D$107,4,FALSE))","v":{"v":347721.1427706669,"d":"347,721"}},{"$f":"($A18-$A17)/365.25*(BI17+(Main!$I24*Main!$D$3))*(1+Main!$I$4+VLOOKUP('Random Years'!BG18,'Hist Returns'!$A$12:$D$107,4,FALSE))","v":{"v":873199.0198036757,"d":"873,199"}},{"$f":"($A18-$A17)/365.25*(BJ17+(Main!$I24*Main!$D$3))*(1+Main!$I$4+VLOOKUP('Random Years'!BH18,'Hist Returns'!$A$12:$D$107,4,FALSE))","v":{"v":633167.6221349157,"d":"633,168"}},{"$f":"($A18-$A17)/365.25*(BK17+(Main!$I24*Main!$D$3))*(1+Main!$I$4+VLOOKUP('Random Years'!BI18,'Hist Returns'!$A$12:$D$107,4,FALSE))","v":{"v":545466.3855072107,"d":"545,466"}},{"$f":"($A18-$A17)/365.25*(BL17+(Main!$I24*Main!$D$3))*(1+Main!$I$4+VLOOKUP('Random Years'!BJ18,'Hist Returns'!$A$12:$D$107,4,FALSE))","v":{"v":426146.79029666993,"d":"426,147"}},{"$f":"($A18-$A17)/365.25*(BM17+(Main!$I24*Main!$D$3))*(1+Main!$I$4+VLOOKUP('Random Years'!BK18,'Hist Returns'!$A$12:$D$107,4,FALSE))","v":{"v":420413.7017861316,"d":"420,414"}},{"$f":"($A18-$A17)/365.25*(BN17+(Main!$I24*Main!$D$3))*(1+Main!$I$4+VLOOKUP('Random Years'!BL18,'Hist Returns'!$A$12:$D$107,4,FALSE))","v":{"v":720219.483228819,"d":"720,219"}},{"$f":"($A18-$A17)/365.25*(BO17+(Main!$I24*Main!$D$3))*(1+Main!$I$4+VLOOKUP('Random Years'!BM18,'Hist Returns'!$A$12:$D$107,4,FALSE))","v":{"v":203092.6154349034,"d":"203,093"}},{"$f":"($A18-$A17)/365.25*(BP17+(Main!$I24*Main!$D$3))*(1+Main!$I$4+VLOOKUP('Random Years'!BN18,'Hist Returns'!$A$12:$D$107,4,FALSE))","v":{"v":447381.12942086195,"d":"447,381"}},{"$f":"($A18-$A17)/365.25*(BQ17+(Main!$I24*Main!$D$3))*(1+Main!$I$4+VLOOKUP('Random Years'!BO18,'Hist Returns'!$A$12:$D$107,4,FALSE))","v":{"v":370590.92753395386,"d":"370,591"}},{"$f":"($A18-$A17)/365.25*(BR17+(Main!$I24*Main!$D$3))*(1+Main!$I$4+VLOOKUP('Random Years'!BP18,'Hist Returns'!$A$12:$D$107,4,FALSE))","v":{"v":383621.4227099178,"d":"383,621"}},{"$f":"($A18-$A17)/365.25*(BS17+(Main!$I24*Main!$D$3))*(1+Main!$I$4+VLOOKUP('Random Years'!BQ18,'Hist Returns'!$A$12:$D$107,4,FALSE))","v":{"v":525090.078199062,"d":"525,090"}},{"$f":"($A18-$A17)/365.25*(BT17+(Main!$I24*Main!$D$3))*(1+Main!$I$4+VLOOKUP('Random Years'!BR18,'Hist Returns'!$A$12:$D$107,4,FALSE))","v":{"v":268599.795427591,"d":"268,600"}},{"$f":"($A18-$A17)/365.25*(BU17+(Main!$I24*Main!$D$3))*(1+Main!$I$4+VLOOKUP('Random Years'!BS18,'Hist Returns'!$A$12:$D$107,4,FALSE))","v":{"v":457792.1738961055,"d":"457,792"}},{"$f":"($A18-$A17)/365.25*(BV17+(Main!$I24*Main!$D$3))*(1+Main!$I$4+VLOOKUP('Random Years'!BT18,'Hist Returns'!$A$12:$D$107,4,FALSE))","v":{"v":191115.21266445782,"d":"191,115"}},{"$f":"($A18-$A17)/365.25*(BW17+(Main!$I24*Main!$D$3))*(1+Main!$I$4+VLOOKUP('Random Years'!BU18,'Hist Returns'!$A$12:$D$107,4,FALSE))","v":{"v":479579.5803271875,"d":"479,580"}},{"$f":"($A18-$A17)/365.25*(BX17+(Main!$I24*Main!$D$3))*(1+Main!$I$4+VLOOKUP('Random Years'!BV18,'Hist Returns'!$A$12:$D$107,4,FALSE))","v":{"v":446600.3127848804,"d":"446,600"}},{"$f":"($A18-$A17)/365.25*(BY17+(Main!$I24*Main!$D$3))*(1+Main!$I$4+VLOOKUP('Random Years'!BW18,'Hist Returns'!$A$12:$D$107,4,FALSE))","v":{"v":383488.86034468847,"d":"383,489"}},{"$f":"($A18-$A17)/365.25*(BZ17+(Main!$I24*Main!$D$3))*(1+Main!$I$4+VLOOKUP('Random Years'!BX18,'Hist Returns'!$A$12:$D$107,4,FALSE))","v":{"v":276105.6106929539,"d":"276,106"}},{"$f":"($A18-$A17)/365.25*(CA17+(Main!$I24*Main!$D$3))*(1+Main!$I$4+VLOOKUP('Random Years'!BY18,'Hist Returns'!$A$12:$D$107,4,FALSE))","v":{"v":684314.8080671738,"d":"684,315"}},{"$f":"($A18-$A17)/365.25*(CB17+(Main!$I24*Main!$D$3))*(1+Main!$I$4+VLOOKUP('Random Years'!BZ18,'Hist Returns'!$A$12:$D$107,4,FALSE))","v":{"v":513505.839707319,"d":"513,506"}},{"$f":"($A18-$A17)/365.25*(CC17+(Main!$I24*Main!$D$3))*(1+Main!$I$4+VLOOKUP('Random Years'!CA18,'Hist Returns'!$A$12:$D$107,4,FALSE))","v":{"v":930317.0748904421,"d":"930,317"}},{"$f":"($A18-$A17)/365.25*(CD17+(Main!$I24*Main!$D$3))*(1+Main!$I$4+VLOOKUP('Random Years'!CB18,'Hist Returns'!$A$12:$D$107,4,FALSE))","v":{"v":603556.8263327099,"d":"603,557"}},{"$f":"($A18-$A17)/365.25*(CE17+(Main!$I24*Main!$D$3))*(1+Main!$I$4+VLOOKUP('Random Years'!CC18,'Hist Returns'!$A$12:$D$107,4,FALSE))","v":{"v":455149.1985695061,"d":"455,149"}},{"$f":"($A18-$A17)/365.25*(CF17+(Main!$I24*Main!$D$3))*(1+Main!$I$4+VLOOKUP('Random Years'!CD18,'Hist Returns'!$A$12:$D$107,4,FALSE))","v":{"v":696772.1711146096,"d":"696,772"}},{"$f":"($A18-$A17)/365.25*(CG17+(Main!$I24*Main!$D$3))*(1+Main!$I$4+VLOOKUP('Random Years'!CE18,'Hist Returns'!$A$12:$D$107,4,FALSE))","v":{"v":543039.927648121,"d":"543,040"}},{"$f":"($A18-$A17)/365.25*(CH17+(Main!$I24*Main!$D$3))*(1+Main!$I$4+VLOOKUP('Random Years'!CF18,'Hist Returns'!$A$12:$D$107,4,FALSE))","v":{"v":557945.2332997324,"d":"557,945"}},{"$f":"($A18-$A17)/365.25*(CI17+(Main!$I24*Main!$D$3))*(1+Main!$I$4+VLOOKUP('Random Years'!CG18,'Hist Returns'!$A$12:$D$107,4,FALSE))","v":{"v":1133216.4011381269,"d":"1,133,216"}},{"$f":"($A18-$A17)/365.25*(CJ17+(Main!$I24*Main!$D$3))*(1+Main!$I$4+VLOOKUP('Random Years'!CH18,'Hist Returns'!$A$12:$D$107,4,FALSE))","v":{"v":433352.57496057614,"d":"433,353"}},{"$f":"($A18-$A17)/365.25*(CK17+(Main!$I24*Main!$D$3))*(1+Main!$I$4+VLOOKUP('Random Years'!CI18,'Hist Returns'!$A$12:$D$107,4,FALSE))","v":{"v":479987.8966295996,"d":"479,988"}},{"$f":"($A18-$A17)/365.25*(CL17+(Main!$I24*Main!$D$3))*(1+Main!$I$4+VLOOKUP('Random Years'!CJ18,'Hist Returns'!$A$12:$D$107,4,FALSE))","v":{"v":684918.174503542,"d":"684,918"}},{"$f":"($A18-$A17)/365.25*(CM17+(Main!$I24*Main!$D$3))*(1+Main!$I$4+VLOOKUP('Random Years'!CK18,'Hist Returns'!$A$12:$D$107,4,FALSE))","v":{"v":413872.5049682947,"d":"413,873"}},{"$f":"($A18-$A17)/365.25*(CN17+(Main!$I24*Main!$D$3))*(1+Main!$I$4+VLOOKUP('Random Years'!CL18,'Hist Returns'!$A$12:$D$107,4,FALSE))","v":{"v":598855.9191759492,"d":"598,856"}},{"$f":"($A18-$A17)/365.25*(CO17+(Main!$I24*Main!$D$3))*(1+Main!$I$4+VLOOKUP('Random Years'!CM18,'Hist Returns'!$A$12:$D$107,4,FALSE))","v":{"v":571075.9145035249,"d":"571,076"}},{"$f":"($A18-$A17)/365.25*(CP17+(Main!$I24*Main!$D$3))*(1+Main!$I$4+VLOOKUP('Random Years'!CN18,'Hist Returns'!$A$12:$D$107,4,FALSE))","v":{"v":460725.08011145046,"d":"460,725"}},{"$f":"($A18-$A17)/365.25*(CQ17+(Main!$I24*Main!$D$3))*(1+Main!$I$4+VLOOKUP('Random Years'!CO18,'Hist Returns'!$A$12:$D$107,4,FALSE))","v":{"v":360277.1280183808,"d":"360,277"}},{"$f":"($A18-$A17)/365.25*(CR17+(Main!$I24*Main!$D$3))*(1+Main!$I$4+VLOOKUP('Random Years'!CP18,'Hist Returns'!$A$12:$D$107,4,FALSE))","v":{"v":410198.34110892395,"d":"410,198"}},{"$f":"($A18-$A17)/365.25*(CS17+(Main!$I24*Main!$D$3))*(1+Main!$I$4+VLOOKUP('Random Years'!CQ18,'Hist Returns'!$A$12:$D$107,4,FALSE))","v":{"v":442876.3516735165,"d":"442,876"}},{"$f":"($A18-$A17)/365.25*(CT17+(Main!$I24*Main!$D$3))*(1+Main!$I$4+VLOOKUP('Random Years'!CR18,'Hist Returns'!$A$12:$D$107,4,FALSE))","v":{"v":210436.58888478004,"d":"210,437"}},{"$f":"($A18-$A17)/365.25*(CU17+(Main!$I24*Main!$D$3))*(1+Main!$I$4+VLOOKUP('Random Years'!CS18,'Hist Returns'!$A$12:$D$107,4,FALSE))","v":{"v":867277.7495490616,"d":"867,278"}},{"$f":"($A18-$A17)/365.25*(CV17+(Main!$I24*Main!$D$3))*(1+Main!$I$4+VLOOKUP('Random Years'!CT18,'Hist Returns'!$A$12:$D$107,4,FALSE))","v":{"v":331142.3534435012,"d":"331,142"}},{"$f":"($A18-$A17)/365.25*(CW17+(Main!$I24*Main!$D$3))*(1+Main!$I$4+VLOOKUP('Random Years'!CU18,'Hist Returns'!$A$12:$D$107,4,FALSE))","v":{"v":461243.2558208562,"d":"461,243"}},{"$f":"($A18-$A17)/365.25*(CX17+(Main!$I24*Main!$D$3))*(1+Main!$I$4+VLOOKUP('Random Years'!CV18,'Hist Returns'!$A$12:$D$107,4,FALSE))","v":{"v":360887.0832846064,"d":"360,887"}}]
[{"$f":"Main!A25","v":"2040-12-30"},{"$f":"Main!B25","v":86},{"$f":"($A19-$A18)/365.25*(C18+(Main!$I25*Main!$D$3))*(1+Main!$I$4+VLOOKUP('Random Years'!A19,'Hist Returns'!$A$12:$D$107,4,FALSE))","v":{"v":470771.83948717517,"d":"470,772"}},{"$f":"($A19-$A18)/365.25*(D18+(Main!$I25*Main!$D$3))*(1+Main!$I$4+VLOOKUP('Random Years'!B19,'Hist Returns'!$A$12:$D$107,4,FALSE))","v":{"v":413250.3260635474,"d":"413,250"}},{"$f":"($A19-$A18)/365.25*(E18+(Main!$I25*Main!$D$3))*(1+Main!$I$4+VLOOKUP('Random Years'!C19,'Hist Returns'!$A$12:$D$107,4,FALSE))","v":{"v":279739.8819564612,"d":"279,740"}},{"$f":"($A19-$A18)/365.25*(F18+(Main!$I25*Main!$D$3))*(1+Main!$I$4+VLOOKUP('Random Years'!D19,'Hist Returns'!$A$12:$D$107,4,FALSE))","v":{"v":617465.616993556,"d":"617,466"}},{"$f":"($A19-$A18)/365.25*(G18+(Main!$I25*Main!$D$3))*(1+Main!$I$4+VLOOKUP('Random Years'!E19,'Hist Returns'!$A$12:$D$107,4,FALSE))","v":{"v":878427.4911005348,"d":"878,427"}},{"$f":"($A19-$A18)/365.25*(H18+(Main!$I25*Main!$D$3))*(1+Main!$I$4+VLOOKUP('Random Years'!F19,'Hist Returns'!$A$12:$D$107,4,FALSE))","v":{"v":701617.1289824541,"d":"701,617"}},{"$f":"($A19-$A18)/365.25*(I18+(Main!$I25*Main!$D$3))*(1+Main!$I$4+VLOOKUP('Random Years'!G19,'Hist Returns'!$A$12:$D$107,4,FALSE))","v":{"v":337048.85278133146,"d":"337,049"}},{"$f":"($A19-$A18)/365.25*(J18+(Main!$I25*Main!$D$3))*(1+Main!$I$4+VLOOKUP('Random Years'!H19,'Hist Returns'!$A$12:$D$107,4,FALSE))","v":{"v":609639.9985378193,"d":"609,640"}},{"$f":"($A19-$A18)/365.25*(K18+(Main!$I25*Main!$D$3))*(1+Main!$I$4+VLOOKUP('Random Years'!I19,'Hist Returns'!$A$12:$D$107,4,FALSE))","v":{"v":555299.9430122621,"d":"555,300"}},{"$f":"($A19-$A18)/365.25*(L18+(Main!$I25*Main!$D$3))*(1+Main!$I$4+VLOOKUP('Random Years'!J19,'Hist Returns'!$A$12:$D$107,4,FALSE))","v":{"v":474276.22217470803,"d":"474,276"}},{"$f":"($A19-$A18)/365.25*(M18+(Main!$I25*Main!$D$3))*(1+Main!$I$4+VLOOKUP('Random Years'!K19,'Hist Returns'!$A$12:$D$107,4,FALSE))","v":{"v":307735.75803630106,"d":"307,736"}},{"$f":"($A19-$A18)/365.25*(N18+(Main!$I25*Main!$D$3))*(1+Main!$I$4+VLOOKUP('Random Years'!L19,'Hist Returns'!$A$12:$D$107,4,FALSE))","v":{"v":596640.6796379322,"d":"596,641"}},{"$f":"($A19-$A18)/365.25*(O18+(Main!$I25*Main!$D$3))*(1+Main!$I$4+VLOOKUP('Random Years'!M19,'Hist Returns'!$A$12:$D$107,4,FALSE))","v":{"v":576653.276091634,"d":"576,653"}},{"$f":"($A19-$A18)/365.25*(P18+(Main!$I25*Main!$D$3))*(1+Main!$I$4+VLOOKUP('Random Years'!N19,'Hist Returns'!$A$12:$D$107,4,FALSE))","v":{"v":404195.698504625,"d":"404,196"}},{"$f":"($A19-$A18)/365.25*(Q18+(Main!$I25*Main!$D$3))*(1+Main!$I$4+VLOOKUP('Random Years'!O19,'Hist Returns'!$A$12:$D$107,4,FALSE))","v":{"v":482655.77544144535,"d":"482,656"}},{"$f":"($A19-$A18)/365.25*(R18+(Main!$I25*Main!$D$3))*(1+Main!$I$4+VLOOKUP('Random Years'!P19,'Hist Returns'!$A$12:$D$107,4,FALSE))","v":{"v":438664.5347218831,"d":"438,665"}},{"$f":"($A19-$A18)/365.25*(S18+(Main!$I25*Main!$D$3))*(1+Main!$I$4+VLOOKUP('Random Years'!Q19,'Hist Returns'!$A$12:$D$107,4,FALSE))","v":{"v":261421.297948994,"d":"261,421"}},{"$f":"($A19-$A18)/365.25*(T18+(Main!$I25*Main!$D$3))*(1+Main!$I$4+VLOOKUP('Random Years'!R19,'Hist Returns'!$A$12:$D$107,4,FALSE))","v":{"v":371060.578438239,"d":"371,061"}},{"$f":"($A19-$A18)/365.25*(U18+(Main!$I25*Main!$D$3))*(1+Main!$I$4+VLOOKUP('Random Years'!S19,'Hist Returns'!$A$12:$D$107,4,FALSE))","v":{"v":412553.02851075627,"d":"412,553"}},{"$f":"($A19-$A18)/365.25*(V18+(Main!$I25*Main!$D$3))*(1+Main!$I$4+VLOOKUP('Random Years'!T19,'Hist Returns'!$A$12:$D$107,4,FALSE))","v":{"v":871996.6099683268,"d":"871,997"}},{"$f":"($A19-$A18)/365.25*(W18+(Main!$I25*Main!$D$3))*(1+Main!$I$4+VLOOKUP('Random Years'!U19,'Hist Returns'!$A$12:$D$107,4,FALSE))","v":{"v":495181.531740775,"d":"495,182"}},{"$f":"($A19-$A18)/365.25*(X18+(Main!$I25*Main!$D$3))*(1+Main!$I$4+VLOOKUP('Random Years'!V19,'Hist Returns'!$A$12:$D$107,4,FALSE))","v":{"v":427952.65251771745,"d":"427,953"}},{"$f":"($A19-$A18)/365.25*(Y18+(Main!$I25*Main!$D$3))*(1+Main!$I$4+VLOOKUP('Random Years'!W19,'Hist Returns'!$A$12:$D$107,4,FALSE))","v":{"v":249967.13594843904,"d":"249,967"}},{"$f":"($A19-$A18)/365.25*(Z18+(Main!$I25*Main!$D$3))*(1+Main!$I$4+VLOOKUP('Random Years'!X19,'Hist Returns'!$A$12:$D$107,4,FALSE))","v":{"v":776982.8994766112,"d":"776,983"}},{"$f":"($A19-$A18)/365.25*(AA18+(Main!$I25*Main!$D$3))*(1+Main!$I$4+VLOOKUP('Random Years'!Y19,'Hist Returns'!$A$12:$D$107,4,FALSE))","v":{"v":491258.56944455474,"d":"491,259"}},{"$f":"($A19-$A18)/365.25*(AB18+(Main!$I25*Main!$D$3))*(1+Main!$I$4+VLOOKUP('Random Years'!Z19,'Hist Returns'!$A$12:$D$107,4,FALSE))","v":{"v":396788.2062797811,"d":"396,788"}},{"$f":"($A19-$A18)/365.25*(AC18+(Main!$I25*Main!$D$3))*(1+Main!$I$4+VLOOKUP('Random Years'!AA19,'Hist Returns'!$A$12:$D$107,4,FALSE))","v":{"v":363380.0316920482,"d":"363,380"}},{"$f":"($A19-$A18)/365.25*(AD18+(Main!$I25*Main!$D$3))*(1+Main!$I$4+VLOOKUP('Random Years'!AB19,'Hist Returns'!$A$12:$D$107,4,FALSE))","v":{"v":599065.9504916461,"d":"599,066"}},{"$f":"($A19-$A18)/365.25*(AE18+(Main!$I25*Main!$D$3))*(1+Main!$I$4+VLOOKUP('Random Years'!AC19,'Hist Returns'!$A$12:$D$107,4,FALSE))","v":{"v":609381.1767198738,"d":"609,381"}},{"$f":"($A19-$A18)/365.25*(AF18+(Main!$I25*Main!$D$3))*(1+Main!$I$4+VLOOKUP('Random Years'!AD19,'Hist Returns'!$A$12:$D$107,4,FALSE))","v":{"v":352237.75897079555,"d":"352,238"}},{"$f":"($A19-$A18)/365.25*(AG18+(Main!$I25*Main!$D$3))*(1+Main!$I$4+VLOOKUP('Random Years'!AE19,'Hist Returns'!$A$12:$D$107,4,FALSE))","v":{"v":566149.5094178055,"d":"566,150"}},{"$f":"($A19-$A18)/365.25*(AH18+(Main!$I25*Main!$D$3))*(1+Main!$I$4+VLOOKUP('Random Years'!AF19,'Hist Returns'!$A$12:$D$107,4,FALSE))","v":{"v":402678.4732450395,"d":"402,678"}},{"$f":"($A19-$A18)/365.25*(AI18+(Main!$I25*Main!$D$3))*(1+Main!$I$4+VLOOKUP('Random Years'!AG19,'Hist Returns'!$A$12:$D$107,4,FALSE))","v":{"v":513379.35923761106,"d":"513,379"}},{"$f":"($A19-$A18)/365.25*(AJ18+(Main!$I25*Main!$D$3))*(1+Main!$I$4+VLOOKUP('Random Years'!AH19,'Hist Returns'!$A$12:$D$107,4,FALSE))","v":{"v":509486.6998730685,"d":"509,487"}},{"$f":"($A19-$A18)/365.25*(AK18+(Main!$I25*Main!$D$3))*(1+Main!$I$4+VLOOKUP('Random Years'!AI19,'Hist Returns'!$A$12:$D$107,4,FALSE))","v":{"v":620502.8669162247,"d":"620,503"}},{"$f":"($A19-$A18)/365.25*(AL18+(Main!$I25*Main!$D$3))*(1+Main!$I$4+VLOOKUP('Random Years'!AJ19,'Hist Returns'!$A$12:$D$107,4,FALSE))","v":{"v":411524.48286459834,"d":"411,524"}},{"$f":"($A19-$A18)/365.25*(AM18+(Main!$I25*Main!$D$3))*(1+Main!$I$4+VLOOKUP('Random Years'!AK19,'Hist Returns'!$A$12:$D$107,4,FALSE))","v":{"v":601566.0691255274,"d":"601,566"}},{"$f":"($A19-$A18)/365.25*(AN18+(Main!$I25*Main!$D$3))*(1+Main!$I$4+VLOOKUP('Random Years'!AL19,'Hist Returns'!$A$12:$D$107,4,FALSE))","v":{"v":470239.8974852638,"d":"470,240"}},{"$f":"($A19-$A18)/365.25*(AO18+(Main!$I25*Main!$D$3))*(1+Main!$I$4+VLOOKUP('Random Years'!AM19,'Hist Returns'!$A$12:$D$107,4,FALSE))","v":{"v":403257.9700488663,"d":"403,258"}},{"$f":"($A19-$A18)/365.25*(AP18+(Main!$I25*Main!$D$3))*(1+Main!$I$4+VLOOKUP('Random Years'!AN19,'Hist Returns'!$A$12:$D$107,4,FALSE))","v":{"v":631015.8578316708,"d":"631,016"}},{"$f":"($A19-$A18)/365.25*(AQ18+(Main!$I25*Main!$D$3))*(1+Main!$I$4+VLOOKUP('Random Years'!AO19,'Hist Returns'!$A$12:$D$107,4,FALSE))","v":{"v":299633.3076659789,"d":"299,633"}},{"$f":"($A19-$A18)/365.25*(AR18+(Main!$I25*Main!$D$3))*(1+Main!$I$4+VLOOKUP('Random Years'!AP19,'Hist Returns'!$A$12:$D$107,4,FALSE))","v":{"v":459555.0905379035,"d":"459,555"}},{"$f":"($A19-$A18)/365.25*(AS18+(Main!$I25*Main!$D$3))*(1+Main!$I$4+VLOOKUP('Random Years'!AQ19,'Hist Returns'!$A$12:$D$107,4,FALSE))","v":{"v":660125.2303724752,"d":"660,125"}},{"$f":"($A19-$A18)/365.25*(AT18+(Main!$I25*Main!$D$3))*(1+Main!$I$4+VLOOKUP('Random Years'!AR19,'Hist Returns'!$A$12:$D$107,4,FALSE))","v":{"v":827150.9414501615,"d":"827,151"}},{"$f":"($A19-$A18)/365.25*(AU18+(Main!$I25*Main!$D$3))*(1+Main!$I$4+VLOOKUP('Random Years'!AS19,'Hist Returns'!$A$12:$D$107,4,FALSE))","v":{"v":357901.83915026905,"d":"357,902"}},{"$f":"($A19-$A18)/365.25*(AV18+(Main!$I25*Main!$D$3))*(1+Main!$I$4+VLOOKUP('Random Years'!AT19,'Hist Returns'!$A$12:$D$107,4,FALSE))","v":{"v":456788.1941361365,"d":"456,788"}},{"$f":"($A19-$A18)/365.25*(AW18+(Main!$I25*Main!$D$3))*(1+Main!$I$4+VLOOKUP('Random Years'!AU19,'Hist Returns'!$A$12:$D$107,4,FALSE))","v":{"v":476103.4980704404,"d":"476,103"}},{"$f":"($A19-$A18)/365.25*(AX18+(Main!$I25*Main!$D$3))*(1+Main!$I$4+VLOOKUP('Random Years'!AV19,'Hist Returns'!$A$12:$D$107,4,FALSE))","v":{"v":494578.4936990658,"d":"494,578"}},{"$f":"($A19-$A18)/365.25*(AY18+(Main!$I25*Main!$D$3))*(1+Main!$I$4+VLOOKUP('Random Years'!AW19,'Hist Returns'!$A$12:$D$107,4,FALSE))","v":{"v":276566.98196962825,"d":"276,567"}},{"$f":"($A19-$A18)/365.25*(AZ18+(Main!$I25*Main!$D$3))*(1+Main!$I$4+VLOOKUP('Random Years'!AX19,'Hist Returns'!$A$12:$D$107,4,FALSE))","v":{"v":414867.1217155405,"d":"414,867"}},{"$f":"($A19-$A18)/365.25*(BA18+(Main!$I25*Main!$D$3))*(1+Main!$I$4+VLOOKUP('Random Years'!AY19,'Hist Returns'!$A$12:$D$107,4,FALSE))","v":{"v":409088.11046331836,"d":"409,088"}},{"$f":"($A19-$A18)/365.25*(BB18+(Main!$I25*Main!$D$3))*(1+Main!$I$4+VLOOKUP('Random Years'!AZ19,'Hist Returns'!$A$12:$D$107,4,FALSE))","v":{"v":295827.770016381,"d":"295,828"}},{"$f":"($A19-$A18)/365.25*(BC18+(Main!$I25*Main!$D$3))*(1+Main!$I$4+VLOOKUP('Random Years'!BA19,'Hist Returns'!$A$12:$D$107,4,FALSE))","v":{"v":438682.8108049284,"d":"438,683"}},{"$f":"($A19-$A18)/365.25*(BD18+(Main!$I25*Main!$D$3))*(1+Main!$I$4+VLOOKUP('Random Years'!BB19,'Hist Returns'!$A$12:$D$107,4,FALSE))","v":{"v":311773.26258496405,"d":"311,773"}},{"$f":"($A19-$A18)/365.25*(BE18+(Main!$I25*Main!$D$3))*(1+Main!$I$4+VLOOKUP('Random Years'!BC19,'Hist Returns'!$A$12:$D$107,4,FALSE))","v":{"v":715201.9897596892,"d":"715,202"}},{"$f":"($A19-$A18)/365.25*(BF18+(Main!$I25*Main!$D$3))*(1+Main!$I$4+VLOOKUP('Random Years'!BD19,'Hist Returns'!$A$12:$D$107,4,FALSE))","v":{"v":804936.042256867,"d":"804,936"}},{"$f":"($A19-$A18)/365.25*(BG18+(Main!$I25*Main!$D$3))*(1+Main!$I$4+VLOOKUP('Random Years'!BE19,'Hist Returns'!$A$12:$D$107,4,FALSE))","v":{"v":332221.8771292917,"d":"332,222"}},{"$f":"($A19-$A18)/365.25*(BH18+(Main!$I25*Main!$D$3))*(1+Main!$I$4+VLOOKUP('Random Years'!BF19,'Hist Returns'!$A$12:$D$107,4,FALSE))","v":{"v":348459.4233668247,"d":"348,459"}},{"$f":"($A19-$A18)/365.25*(BI18+(Main!$I25*Main!$D$3))*(1+Main!$I$4+VLOOKUP('Random Years'!BG19,'Hist Returns'!$A$12:$D$107,4,FALSE))","v":{"v":959587.2925303074,"d":"959,587"}},{"$f":"($A19-$A18)/365.25*(BJ18+(Main!$I25*Main!$D$3))*(1+Main!$I$4+VLOOKUP('Random Years'!BH19,'Hist Returns'!$A$12:$D$107,4,FALSE))","v":{"v":673700.515146049,"d":"673,701"}},{"$f":"($A19-$A18)/365.25*(BK18+(Main!$I25*Main!$D$3))*(1+Main!$I$4+VLOOKUP('Random Years'!BI19,'Hist Returns'!$A$12:$D$107,4,FALSE))","v":{"v":624232.7176765306,"d":"624,233"}},{"$f":"($A19-$A18)/365.25*(BL18+(Main!$I25*Main!$D$3))*(1+Main!$I$4+VLOOKUP('Random Years'!BJ19,'Hist Returns'!$A$12:$D$107,4,FALSE))","v":{"v":437826.797312565,"d":"437,827"}},{"$f":"($A19-$A18)/365.25*(BM18+(Main!$I25*Main!$D$3))*(1+Main!$I$4+VLOOKUP('Random Years'!BK19,'Hist Returns'!$A$12:$D$107,4,FALSE))","v":{"v":433516.15822421375,"d":"433,516"}},{"$f":"($A19-$A18)/365.25*(BN18+(Main!$I25*Main!$D$3))*(1+Main!$I$4+VLOOKUP('Random Years'!BL19,'Hist Returns'!$A$12:$D$107,4,FALSE))","v":{"v":778563.9106018653,"d":"778,564"}},{"$f":"($A19-$A18)/365.25*(BO18+(Main!$I25*Main!$D$3))*(1+Main!$I$4+VLOOKUP('Random Years'!BM19,'Hist Returns'!$A$12:$D$107,4,FALSE))","v":{"v":223820.87494832734,"d":"223,821"}},{"$f":"($A19-$A18)/365.25*(BP18+(Main!$I25*Main!$D$3))*(1+Main!$I$4+VLOOKUP('Random Years'!BN19,'Hist Returns'!$A$12:$D$107,4,FALSE))","v":{"v":465154.949912015,"d":"465,155"}},{"$f":"($A19-$A18)/365.25*(BQ18+(Main!$I25*Main!$D$3))*(1+Main!$I$4+VLOOKUP('Random Years'!BO19,'Hist Returns'!$A$12:$D$107,4,FALSE))","v":{"v":375261.7111718391,"d":"375,262"}},{"$f":"($A19-$A18)/365.25*(BR18+(Main!$I25*Main!$D$3))*(1+Main!$I$4+VLOOKUP('Random Years'!BP19,'Hist Returns'!$A$12:$D$107,4,FALSE))","v":{"v":372843.37175597885,"d":"372,843"}},{"$f":"($A19-$A18)/365.25*(BS18+(Main!$I25*Main!$D$3))*(1+Main!$I$4+VLOOKUP('Random Years'!BQ19,'Hist Returns'!$A$12:$D$107,4,FALSE))","v":{"v":541668.7804841875,"d":"541,669"}},{"$f":"($A19-$A18)/365.25*(BT18+(Main!$I25*Main!$D$3))*(1+Main!$I$4+VLOOKUP('Random Years'!BR19,'Hist Returns'!$A$12:$D$107,4,FALSE))","v":{"v":288421.3763965122,"d":"288,421"}},{"$f":"($A19-$A18)/365.25*(BU18+(Main!$I25*Main!$D$3))*(1+Main!$I$4+VLOOKUP('Random Years'!BS19,'Hist Returns'!$A$12:$D$107,4,FALSE))","v":{"v":531897.1736700437,"d":"531,897"}},{"$f":"($A19-$A18)/365.25*(BV18+(Main!$I25*Main!$D$3))*(1+Main!$I$4+VLOOKUP('Random Years'!BT19,'Hist Returns'!$A$12:$D$107,4,FALSE))","v":{"v":179593.28860777162,"d":"179,593"}},{"$f":"($A19-$A18)/365.25*(BW18+(Main!$I25*Main!$D$3))*(1+Main!$I$4+VLOOKUP('Random Years'!BU19,'Hist Returns'!$A$12:$D$107,4,FALSE))","v":{"v":491221.2315717497,"d":"491,221"}},{"$f":"($A19-$A18)/365.25*(BX18+(Main!$I25*Main!$D$3))*(1+Main!$I$4+VLOOKUP('Random Years'!BV19,'Hist Returns'!$A$12:$D$107,4,FALSE))","v":{"v":460404.92015304515,"d":"460,405"}},{"$f":"($A19-$A18)/365.25*(BY18+(Main!$I25*Main!$D$3))*(1+Main!$I$4+VLOOKUP('Random Years'!BW19,'Hist Returns'!$A$12:$D$107,4,FALSE))","v":{"v":400449.44055125787,"d":"400,449"}},{"$f":"($A19-$A18)/365.25*(BZ18+(Main!$I25*Main!$D$3))*(1+Main!$I$4+VLOOKUP('Random Years'!BX19,'Hist Returns'!$A$12:$D$107,4,FALSE))","v":{"v":275182.8709059764,"d":"275,183"}},{"$f":"($A19-$A18)/365.25*(CA18+(Main!$I25*Main!$D$3))*(1+Main!$I$4+VLOOKUP('Random Years'!BY19,'Hist Returns'!$A$12:$D$107,4,FALSE))","v":{"v":701029.7425848264,"d":"701,030"}},{"$f":"($A19-$A18)/365.25*(CB18+(Main!$I25*Main!$D$3))*(1+Main!$I$4+VLOOKUP('Random Years'!BZ19,'Hist Returns'!$A$12:$D$107,4,FALSE))","v":{"v":527237.1024746016,"d":"527,237"}},{"$f":"($A19-$A18)/365.25*(CC18+(Main!$I25*Main!$D$3))*(1+Main!$I$4+VLOOKUP('Random Years'!CA19,'Hist Returns'!$A$12:$D$107,4,FALSE))","v":{"v":966214.7180551641,"d":"966,215"}},{"$f":"($A19-$A18)/365.25*(CD18+(Main!$I25*Main!$D$3))*(1+Main!$I$4+VLOOKUP('Random Years'!CB19,'Hist Returns'!$A$12:$D$107,4,FALSE))","v":{"v":608928.6217223235,"d":"608,929"}},{"$f":"($A19-$A18)/365.25*(CE18+(Main!$I25*Main!$D$3))*(1+Main!$I$4+VLOOKUP('Random Years'!CC19,'Hist Returns'!$A$12:$D$107,4,FALSE))","v":{"v":465692.3039735543,"d":"465,692"}},{"$f":"($A19-$A18)/365.25*(CF18+(Main!$I25*Main!$D$3))*(1+Main!$I$4+VLOOKUP('Random Years'!CD19,'Hist Returns'!$A$12:$D$107,4,FALSE))","v":{"v":741581.7794742675,"d":"741,582"}},{"$f":"($A19-$A18)/365.25*(CG18+(Main!$I25*Main!$D$3))*(1+Main!$I$4+VLOOKUP('Random Years'!CE19,'Hist Returns'!$A$12:$D$107,4,FALSE))","v":{"v":560541.8624980565,"d":"560,542"}},{"$f":"($A19-$A18)/365.25*(CH18+(Main!$I25*Main!$D$3))*(1+Main!$I$4+VLOOKUP('Random Years'!CF19,'Hist Returns'!$A$12:$D$107,4,FALSE))","v":{"v":563315.726868355,"d":"563,316"}},{"$f":"($A19-$A18)/365.25*(CI18+(Main!$I25*Main!$D$3))*(1+Main!$I$4+VLOOKUP('Random Years'!CG19,'Hist Returns'!$A$12:$D$107,4,FALSE))","v":{"v":1181866.4708180954,"d":"1,181,866"}},{"$f":"($A19-$A18)/365.25*(CJ18+(Main!$I25*Main!$D$3))*(1+Main!$I$4+VLOOKUP('Random Years'!CH19,'Hist Returns'!$A$12:$D$107,4,FALSE))","v":{"v":449310.3025522146,"d":"449,310"}},{"$f":"($A19-$A18)/365.25*(CK18+(Main!$I25*Main!$D$3))*(1+Main!$I$4+VLOOKUP('Random Years'!CI19,'Hist Returns'!$A$12:$D$107,4,FALSE))","v":{"v":482142.3275771038,"d":"482,142"}},{"$f":"($A19-$A18)/365.25*(CL18+(Main!$I25*Main!$D$3))*(1+Main!$I$4+VLOOKUP('Random Years'!CJ19,'Hist Returns'!$A$12:$D$107,4,FALSE))","v":{"v":667141.9759238043,"d":"667,142"}},{"$f":"($A19-$A18)/365.25*(CM18+(Main!$I25*Main!$D$3))*(1+Main!$I$4+VLOOKUP('Random Years'!CK19,'Hist Returns'!$A$12:$D$107,4,FALSE))","v":{"v":421929.1427913135,"d":"421,929"}},{"$f":"($A19-$A18)/365.25*(CN18+(Main!$I25*Main!$D$3))*(1+Main!$I$4+VLOOKUP('Random Years'!CL19,'Hist Returns'!$A$12:$D$107,4,FALSE))","v":{"v":637081.7226937591,"d":"637,082"}},{"$f":"($A19-$A18)/365.25*(CO18+(Main!$I25*Main!$D$3))*(1+Main!$I$4+VLOOKUP('Random Years'!CM19,'Hist Returns'!$A$12:$D$107,4,FALSE))","v":{"v":595298.8602412854,"d":"595,299"}},{"$f":"($A19-$A18)/365.25*(CP18+(Main!$I25*Main!$D$3))*(1+Main!$I$4+VLOOKUP('Random Years'!CN19,'Hist Returns'!$A$12:$D$107,4,FALSE))","v":{"v":502698.1480580633,"d":"502,698"}},{"$f":"($A19-$A18)/365.25*(CQ18+(Main!$I25*Main!$D$3))*(1+Main!$I$4+VLOOKUP('Random Years'!CO19,'Hist Returns'!$A$12:$D$107,4,FALSE))","v":{"v":389599.4763291164,"d":"389,599"}},{"$f":"($A19-$A18)/365.25*(CR18+(Main!$I25*Main!$D$3))*(1+Main!$I$4+VLOOKUP('Random Years'!CP19,'Hist Returns'!$A$12:$D$107,4,FALSE))","v":{"v":370859.45185753633,"d":"370,859"}},{"$f":"($A19-$A18)/365.25*(CS18+(Main!$I25*Main!$D$3))*(1+Main!$I$4+VLOOKUP('Random Years'!CQ19,'Hist Returns'!$A$12:$D$107,4,FALSE))","v":{"v":391675.25606584176,"d":"391,675"}},{"$f":"($A19-$A18)/365.25*(CT18+(Main!$I25*Main!$D$3))*(1+Main!$I$4+VLOOKUP('Random Years'!CR19,'Hist Returns'!$A$12:$D$107,4,FALSE))","v":{"v":225518.14722155407,"d":"225,518"}},{"$f":"($A19-$A18)/365.25*(CU18+(Main!$I25*Main!$D$3))*(1+Main!$I$4+VLOOKUP('Random Years'!CS19,'Hist Returns'!$A$12:$D$107,4,FALSE))","v":{"v":851104.4697837429,"d":"851,104"}},{"$f":"($A19-$A18)/365.25*(CV18+(Main!$I25*Main!$D$3))*(1+Main!$I$4+VLOOKUP('Random Years'!CT19,'Hist Returns'!$A$12:$D$107,4,FALSE))","v":{"v":436966.27745143016,"d":"436,966"}},{"$f":"($A19-$A18)/365.25*(CW18+(Main!$I25*Main!$D$3))*(1+Main!$I$4+VLOOKUP('Random Years'!CU19,'Hist Returns'!$A$12:$D$107,4,FALSE))","v":{"v":463238.24091005954,"d":"463,238"}},{"$f":"($A19-$A18)/365.25*(CX18+(Main!$I25*Main!$D$3))*(1+Main!$I$4+VLOOKUP('Random Years'!CV19,'Hist Returns'!$A$12:$D$107,4,FALSE))","v":{"v":366961.55908498657,"d":"366,962"}}]
[{"$f":"Main!A26","v":"2041-12-30"},{"$f":"Main!B26","v":87},{"$f":"($A20-$A19)/365.25*(C19+(Main!$I26*Main!$D$3))*(1+Main!$I$4+VLOOKUP('Random Years'!A20,'Hist Returns'!$A$12:$D$107,4,FALSE))","v":{"v":477641.3722836839,"d":"477,641"}},{"$f":"($A20-$A19)/365.25*(D19+(Main!$I26*Main!$D$3))*(1+Main!$I$4+VLOOKUP('Random Years'!B20,'Hist Returns'!$A$12:$D$107,4,FALSE))","v":{"v":337696.36826236,"d":"337,696"}},{"$f":"($A20-$A19)/365.25*(E19+(Main!$I26*Main!$D$3))*(1+Main!$I$4+VLOOKUP('Random Years'!C20,'Hist Returns'!$A$12:$D$107,4,FALSE))","v":{"v":342725.54972038267,"d":"342,726"}},{"$f":"($A20-$A19)/365.25*(F19+(Main!$I26*Main!$D$3))*(1+Main!$I$4+VLOOKUP('Random Years'!D20,'Hist Returns'!$A$12:$D$107,4,FALSE))","v":{"v":650066.3836448618,"d":"650,066"}},{"$f":"($A20-$A19)/365.25*(G19+(Main!$I26*Main!$D$3))*(1+Main!$I$4+VLOOKUP('Random Years'!E20,'Hist Returns'!$A$12:$D$107,4,FALSE))","v":{"v":945577.9373275295,"d":"945,578"}},{"$f":"($A20-$A19)/365.25*(H19+(Main!$I26*Main!$D$3))*(1+Main!$I$4+VLOOKUP('Random Years'!F20,'Hist Returns'!$A$12:$D$107,4,FALSE))","v":{"v":705572.2380529909,"d":"705,572"}},{"$f":"($A20-$A19)/365.25*(I19+(Main!$I26*Main!$D$3))*(1+Main!$I$4+VLOOKUP('Random Years'!G20,'Hist Returns'!$A$12:$D$107,4,FALSE))","v":{"v":348930.4527655543,"d":"348,930"}},{"$f":"($A20-$A19)/365.25*(J19+(Main!$I26*Main!$D$3))*(1+Main!$I$4+VLOOKUP('Random Years'!H20,'Hist Returns'!$A$12:$D$107,4,FALSE))","v":{"v":634496.7657227906,"d":"634,497"}},{"$f":"($A20-$A19)/365.25*(K19+(Main!$I26*Main!$D$3))*(1+Main!$I$4+VLOOKUP('Random Years'!I20,'Hist Returns'!$A$12:$D$107,4,FALSE))","v":{"v":641588.6218109234,"d":"641,589"}},{"$f":"($A20-$A19)/365.25*(L19+(Main!$I26*Main!$D$3))*(1+Main!$I$4+VLOOKUP('Random Years'!J20,'Hist Returns'!$A$12:$D$107,4,FALSE))","v":{"v":462413.04666115216,"d":"462,413"}},{"$f":"($A20-$A19)/365.25*(M19+(Main!$I26*Main!$D$3))*(1+Main!$I$4+VLOOKUP('Random Years'!K20,'Hist Returns'!$A$12:$D$107,4,FALSE))","v":{"v":309441.2653592363,"d":"309,441"}},{"$f":"($A20-$A19)/365.25*(N19+(Main!$I26*Main!$D$3))*(1+Main!$I$4+VLOOKUP('Random Years'!L20,'Hist Returns'!$A$12:$D$107,4,FALSE))","v":{"v":584845.0071543605,"d":"584,845"}},{"$f":"($A20-$A19)/365.25*(O19+(Main!$I26*Main!$D$3))*(1+Main!$I$4+VLOOKUP('Random Years'!M20,'Hist Returns'!$A$12:$D$107,4,FALSE))","v":{"v":581671.707790491,"d":"581,672"}},{"$f":"($A20-$A19)/365.25*(P19+(Main!$I26*Main!$D$3))*(1+Main!$I$4+VLOOKUP('Random Years'!N20,'Hist Returns'!$A$12:$D$107,4,FALSE))","v":{"v":368748.6898364222,"d":"368,749"}},{"$f":"($A20-$A19)/365.25*(Q19+(Main!$I26*Main!$D$3))*(1+Main!$I$4+VLOOKUP('Random Years'!O20,'Hist Returns'!$A$12:$D$107,4,FALSE))","v":{"v":504433.16584437597,"d":"504,433"}},{"$f":"($A20-$A19)/365.25*(R19+(Main!$I26*Main!$D$3))*(1+Main!$I$4+VLOOKUP('Random Years'!P20,'Hist Returns'!$A$12:$D$107,4,FALSE))","v":{"v":449059.00736249355,"d":"449,059"}},{"$f":"($A20-$A19)/365.25*(S19+(Main!$I26*Main!$D$3))*(1+Main!$I$4+VLOOKUP('Random Years'!Q20,'Hist Returns'!$A$12:$D$107,4,FALSE))","v":{"v":270145.98195677757,"d":"270,146"}},{"$f":"($A20-$A19)/365.25*(T19+(Main!$I26*Main!$D$3))*(1+Main!$I$4+VLOOKUP('Random Years'!R20,'Hist Returns'!$A$12:$D$107,4,FALSE))","v":{"v":357785.4180587043,"d":"357,785"}},{"$f":"($A20-$A19)/365.25*(U19+(Main!$I26*Main!$D$3))*(1+Main!$I$4+VLOOKUP('Random Years'!S20,'Hist Returns'!$A$12:$D$107,4,FALSE))","v":{"v":430863.1408456227,"d":"430,863"}},{"$f":"($A20-$A19)/365.25*(V19+(Main!$I26*Main!$D$3))*(1+Main!$I$4+VLOOKUP('Random Years'!T20,'Hist Returns'!$A$12:$D$107,4,FALSE))","v":{"v":849793.2988271248,"d":"849,793"}},{"$f":"($A20-$A19)/365.25*(W19+(Main!$I26*Main!$D$3))*(1+Main!$I$4+VLOOKUP('Random Years'!U20,'Hist Returns'!$A$12:$D$107,4,FALSE))","v":{"v":499205.493739837,"d":"499,205"}},{"$f":"($A20-$A19)/365.25*(X19+(Main!$I26*Main!$D$3))*(1+Main!$I$4+VLOOKUP('Random Years'!V20,'Hist Returns'!$A$12:$D$107,4,FALSE))","v":{"v":463082.35356843384,"d":"463,082"}},{"$f":"($A20-$A19)/365.25*(Y19+(Main!$I26*Main!$D$3))*(1+Main!$I$4+VLOOKUP('Random Years'!W20,'Hist Returns'!$A$12:$D$107,4,FALSE))","v":{"v":257039.5904113406,"d":"257,040"}},{"$f":"($A20-$A19)/365.25*(Z19+(Main!$I26*Main!$D$3))*(1+Main!$I$4+VLOOKUP('Random Years'!X20,'Hist Returns'!$A$12:$D$107,4,FALSE))","v":{"v":817610.5503171735,"d":"817,611"}},{"$f":"($A20-$A19)/365.25*(AA19+(Main!$I26*Main!$D$3))*(1+Main!$I$4+VLOOKUP('Random Years'!Y20,'Hist Returns'!$A$12:$D$107,4,FALSE))","v":{"v":536060.2997623016,"d":"536,060"}},{"$f":"($A20-$A19)/365.25*(AB19+(Main!$I26*Main!$D$3))*(1+Main!$I$4+VLOOKUP('Random Years'!Z20,'Hist Returns'!$A$12:$D$107,4,FALSE))","v":{"v":397818.0865356096,"d":"397,818"}},{"$f":"($A20-$A19)/365.25*(AC19+(Main!$I26*Main!$D$3))*(1+Main!$I$4+VLOOKUP('Random Years'!AA20,'Hist Returns'!$A$12:$D$107,4,FALSE))","v":{"v":362688.0902257124,"d":"362,688"}},{"$f":"($A20-$A19)/365.25*(AD19+(Main!$I26*Main!$D$3))*(1+Main!$I$4+VLOOKUP('Random Years'!AB20,'Hist Returns'!$A$12:$D$107,4,FALSE))","v":{"v":649109.619800026,"d":"649,110"}},{"$f":"($A20-$A19)/365.25*(AE19+(Main!$I26*Main!$D$3))*(1+Main!$I$4+VLOOKUP('Random Years'!AC20,'Hist Returns'!$A$12:$D$107,4,FALSE))","v":{"v":668940.5337545709,"d":"668,941"}},{"$f":"($A20-$A19)/365.25*(AF19+(Main!$I26*Main!$D$3))*(1+Main!$I$4+VLOOKUP('Random Years'!AD20,'Hist Returns'!$A$12:$D$107,4,FALSE))","v":{"v":353220.9736160138,"d":"353,221"}},{"$f":"($A20-$A19)/365.25*(AG19+(Main!$I26*Main!$D$3))*(1+Main!$I$4+VLOOKUP('Random Years'!AE20,'Hist Returns'!$A$12:$D$107,4,FALSE))","v":{"v":618114.5248249582,"d":"618,115"}},{"$f":"($A20-$A19)/365.25*(AH19+(Main!$I26*Main!$D$3))*(1+Main!$I$4+VLOOKUP('Random Years'!AF20,'Hist Returns'!$A$12:$D$107,4,FALSE))","v":{"v":422719.67645787244,"d":"422,720"}},{"$f":"($A20-$A19)/365.25*(AI19+(Main!$I26*Main!$D$3))*(1+Main!$I$4+VLOOKUP('Random Years'!AG20,'Hist Returns'!$A$12:$D$107,4,FALSE))","v":{"v":454223.3038468949,"d":"454,223"}},{"$f":"($A20-$A19)/365.25*(AJ19+(Main!$I26*Main!$D$3))*(1+Main!$I$4+VLOOKUP('Random Years'!AH20,'Hist Returns'!$A$12:$D$107,4,FALSE))","v":{"v":528510.5348626183,"d":"528,511"}},{"$f":"($A20-$A19)/365.25*(AK19+(Main!$I26*Main!$D$3))*(1+Main!$I$4+VLOOKUP('Random Years'!AI20,'Hist Returns'!$A$12:$D$107,4,FALSE))","v":{"v":625994.9756230531,"d":"625,995"}},{"$f":"($A20-$A19)/365.25*(AL19+(Main!$I26*Main!$D$3))*(1+Main!$I$4+VLOOKUP('Random Years'!AJ20,'Hist Returns'!$A$12:$D$107,4,FALSE))","v":{"v":437064.81064363045,"d":"437,065"}},{"$f":"($A20-$A19)/365.25*(AM19+(Main!$I26*Main!$D$3))*(1+Main!$I$4+VLOOKUP('Random Years'!AK20,'Hist Returns'!$A$12:$D$107,4,FALSE))","v":{"v":601733.6349082309,"d":"601,734"}},{"$f":"($A20-$A19)/365.25*(AN19+(Main!$I26*Main!$D$3))*(1+Main!$I$4+VLOOKUP('Random Years'!AL20,'Hist Returns'!$A$12:$D$107,4,FALSE))","v":{"v":455949.90122516884,"d":"455,950"}},{"$f":"($A20-$A19)/365.25*(AO19+(Main!$I26*Main!$D$3))*(1+Main!$I$4+VLOOKUP('Random Years'!AM20,'Hist Returns'!$A$12:$D$107,4,FALSE))","v":{"v":423817.6948096878,"d":"423,818"}},{"$f":"($A20-$A19)/365.25*(AP19+(Main!$I26*Main!$D$3))*(1+Main!$I$4+VLOOKUP('Random Years'!AN20,'Hist Returns'!$A$12:$D$107,4,FALSE))","v":{"v":634370.4176363868,"d":"634,370"}},{"$f":"($A20-$A19)/365.25*(AQ19+(Main!$I26*Main!$D$3))*(1+Main!$I$4+VLOOKUP('Random Years'!AO20,'Hist Returns'!$A$12:$D$107,4,FALSE))","v":{"v":306952.0679539567,"d":"306,952"}},{"$f":"($A20-$A19)/365.25*(AR19+(Main!$I26*Main!$D$3))*(1+Main!$I$4+VLOOKUP('Random Years'!AP20,'Hist Returns'!$A$12:$D$107,4,FALSE))","v":{"v":533856.2407796803,"d":"533,856"}},{"$f":"($A20-$A19)/365.25*(AS19+(Main!$I26*Main!$D$3))*(1+Main!$I$4+VLOOKUP('Random Years'!AQ20,'Hist Returns'!$A$12:$D$107,4,FALSE))","v":{"v":763139.7409722883,"d":"763,140"}},{"$f":"($A20-$A19)/365.25*(AT19+(Main!$I26*Main!$D$3))*(1+Main!$I$4+VLOOKUP('Random Years'!AR20,'Hist Returns'!$A$12:$D$107,4,FALSE))","v":{"v":859254.2928818844,"d":"859,254"}},{"$f":"($A20-$A19)/365.25*(AU19+(Main!$I26*Main!$D$3))*(1+Main!$I$4+VLOOKUP('Random Years'!AS20,'Hist Returns'!$A$12:$D$107,4,FALSE))","v":{"v":339941.94947313884,"d":"339,942"}},{"$f":"($A20-$A19)/365.25*(AV19+(Main!$I26*Main!$D$3))*(1+Main!$I$4+VLOOKUP('Random Years'!AT20,'Hist Returns'!$A$12:$D$107,4,FALSE))","v":{"v":545837.3665658678,"d":"545,837"}},{"$f":"($A20-$A19)/365.25*(AW19+(Main!$I26*Main!$D$3))*(1+Main!$I$4+VLOOKUP('Random Years'!AU20,'Hist Returns'!$A$12:$D$107,4,FALSE))","v":{"v":500758.01621027093,"d":"500,758"}},{"$f":"($A20-$A19)/365.25*(AX19+(Main!$I26*Main!$D$3))*(1+Main!$I$4+VLOOKUP('Random Years'!AV20,'Hist Returns'!$A$12:$D$107,4,FALSE))","v":{"v":591192.9345716465,"d":"591,193"}},{"$f":"($A20-$A19)/365.25*(AY19+(Main!$I26*Main!$D$3))*(1+Main!$I$4+VLOOKUP('Random Years'!AW20,'Hist Returns'!$A$12:$D$107,4,FALSE))","v":{"v":284612.21059685544,"d":"284,612"}},{"$f":"($A20-$A19)/365.25*(AZ19+(Main!$I26*Main!$D$3))*(1+Main!$I$4+VLOOKUP('Random Years'!AX20,'Hist Returns'!$A$12:$D$107,4,FALSE))","v":{"v":474495.3960851769,"d":"474,495"}},{"$f":"($A20-$A19)/365.25*(BA19+(Main!$I26*Main!$D$3))*(1+Main!$I$4+VLOOKUP('Random Years'!AY20,'Hist Returns'!$A$12:$D$107,4,FALSE))","v":{"v":452905.42034019955,"d":"452,905"}},{"$f":"($A20-$A19)/365.25*(BB19+(Main!$I26*Main!$D$3))*(1+Main!$I$4+VLOOKUP('Random Years'!AZ20,'Hist Returns'!$A$12:$D$107,4,FALSE))","v":{"v":284851.8327127674,"d":"284,852"}},{"$f":"($A20-$A19)/365.25*(BC19+(Main!$I26*Main!$D$3))*(1+Main!$I$4+VLOOKUP('Random Years'!BA20,'Hist Returns'!$A$12:$D$107,4,FALSE))","v":{"v":448901.46652702265,"d":"448,901"}},{"$f":"($A20-$A19)/365.25*(BD19+(Main!$I26*Main!$D$3))*(1+Main!$I$4+VLOOKUP('Random Years'!BB20,'Hist Returns'!$A$12:$D$107,4,FALSE))","v":{"v":313558.4856467345,"d":"313,558"}},{"$f":"($A20-$A19)/365.25*(BE19+(Main!$I26*Main!$D$3))*(1+Main!$I$4+VLOOKUP('Random Years'!BC20,'Hist Returns'!$A$12:$D$107,4,FALSE))","v":{"v":736164.8267582611,"d":"736,165"}},{"$f":"($A20-$A19)/365.25*(BF19+(Main!$I26*Main!$D$3))*(1+Main!$I$4+VLOOKUP('Random Years'!BD20,'Hist Returns'!$A$12:$D$107,4,FALSE))","v":{"v":818125.3310282753,"d":"818,125"}},{"$f":"($A20-$A19)/365.25*(BG19+(Main!$I26*Main!$D$3))*(1+Main!$I$4+VLOOKUP('Random Years'!BE20,'Hist Returns'!$A$12:$D$107,4,FALSE))","v":{"v":340560.5204072897,"d":"340,561"}},{"$f":"($A20-$A19)/365.25*(BH19+(Main!$I26*Main!$D$3))*(1+Main!$I$4+VLOOKUP('Random Years'!BF20,'Hist Returns'!$A$12:$D$107,4,FALSE))","v":{"v":357616.43046576745,"d":"357,616"}},{"$f":"($A20-$A19)/365.25*(BI19+(Main!$I26*Main!$D$3))*(1+Main!$I$4+VLOOKUP('Random Years'!BG20,'Hist Returns'!$A$12:$D$107,4,FALSE))","v":{"v":975606.0134869913,"d":"975,606"}},{"$f":"($A20-$A19)/365.25*(BJ19+(Main!$I26*Main!$D$3))*(1+Main!$I$4+VLOOKUP('Random Years'!BH20,'Hist Returns'!$A$12:$D$107,4,FALSE))","v":{"v":653479.3699630564,"d":"653,479"}},{"$f":"($A20-$A19)/365.25*(BK19+(Main!$I26*Main!$D$3))*(1+Main!$I$4+VLOOKUP('Random Years'!BI20,'Hist Returns'!$A$12:$D$107,4,FALSE))","v":{"v":681753.3661123673,"d":"681,753"}},{"$f":"($A20-$A19)/365.25*(BL19+(Main!$I26*Main!$D$3))*(1+Main!$I$4+VLOOKUP('Random Years'!BJ20,'Hist Returns'!$A$12:$D$107,4,FALSE))","v":{"v":413694.65912895004,"d":"413,695"}},{"$f":"($A20-$A19)/365.25*(BM19+(Main!$I26*Main!$D$3))*(1+Main!$I$4+VLOOKUP('Random Years'!BK20,'Hist Returns'!$A$12:$D$107,4,FALSE))","v":{"v":441962.2805801503,"d":"441,962"}},{"$f":"($A20-$A19)/365.25*(BN19+(Main!$I26*Main!$D$3))*(1+Main!$I$4+VLOOKUP('Random Years'!BL20,'Hist Returns'!$A$12:$D$107,4,FALSE))","v":{"v":859460.2726141763,"d":"859,460"}},{"$f":"($A20-$A19)/365.25*(BO19+(Main!$I26*Main!$D$3))*(1+Main!$I$4+VLOOKUP('Random Years'!BM20,'Hist Returns'!$A$12:$D$107,4,FALSE))","v":{"v":294414.0345265888,"d":"294,414"}},{"$f":"($A20-$A19)/365.25*(BP19+(Main!$I26*Main!$D$3))*(1+Main!$I$4+VLOOKUP('Random Years'!BN20,'Hist Returns'!$A$12:$D$107,4,FALSE))","v":{"v":450998.4615331091,"d":"450,998"}},{"$f":"($A20-$A19)/365.25*(BQ19+(Main!$I26*Main!$D$3))*(1+Main!$I$4+VLOOKUP('Random Years'!BO20,'Hist Returns'!$A$12:$D$107,4,FALSE))","v":{"v":372947.9451123533,"d":"372,948"}},{"$f":"($A20-$A19)/365.25*(BR19+(Main!$I26*Main!$D$3))*(1+Main!$I$4+VLOOKUP('Random Years'!BP20,'Hist Returns'!$A$12:$D$107,4,FALSE))","v":{"v":381038.5149562893,"d":"381,039"}},{"$f":"($A20-$A19)/365.25*(BS19+(Main!$I26*Main!$D$3))*(1+Main!$I$4+VLOOKUP('Random Years'!BQ20,'Hist Returns'!$A$12:$D$107,4,FALSE))","v":{"v":551534.7594010332,"d":"551,535"}},{"$f":"($A20-$A19)/365.25*(BT19+(Main!$I26*Main!$D$3))*(1+Main!$I$4+VLOOKUP('Random Years'!BR20,'Hist Returns'!$A$12:$D$107,4,FALSE))","v":{"v":285384.0385974897,"d":"285,384"}},{"$f":"($A20-$A19)/365.25*(BU19+(Main!$I26*Main!$D$3))*(1+Main!$I$4+VLOOKUP('Random Years'!BS20,'Hist Returns'!$A$12:$D$107,4,FALSE))","v":{"v":538456.7467058905,"d":"538,457"}},{"$f":"($A20-$A19)/365.25*(BV19+(Main!$I26*Main!$D$3))*(1+Main!$I$4+VLOOKUP('Random Years'!BT20,'Hist Returns'!$A$12:$D$107,4,FALSE))","v":{"v":176951.60409388214,"d":"176,952"}},{"$f":"($A20-$A19)/365.25*(BW19+(Main!$I26*Main!$D$3))*(1+Main!$I$4+VLOOKUP('Random Years'!BU20,'Hist Returns'!$A$12:$D$107,4,FALSE))","v":{"v":504973.8918025554,"d":"504,974"}},{"$f":"($A20-$A19)/365.25*(BX19+(Main!$I26*Main!$D$3))*(1+Main!$I$4+VLOOKUP('Random Years'!BV20,'Hist Returns'!$A$12:$D$107,4,FALSE))","v":{"v":489231.92663269705,"d":"489,232"}},{"$f":"($A20-$A19)/365.25*(BY19+(Main!$I26*Main!$D$3))*(1+Main!$I$4+VLOOKUP('Random Years'!BW20,'Hist Returns'!$A$12:$D$107,4,FALSE))","v":{"v":380581.11184948037,"d":"380,581"}},{"$f":"($A20-$A19)/365.25*(BZ19+(Main!$I26*Main!$D$3))*(1+Main!$I$4+VLOOKUP('Random Years'!BX20,'Hist Returns'!$A$12:$D$107,4,FALSE))","v":{"v":274883.56848103367,"d":"274,884"}},{"$f":"($A20-$A19)/365.25*(CA19+(Main!$I26*Main!$D$3))*(1+Main!$I$4+VLOOKUP('Random Years'!BY20,'Hist Returns'!$A$12:$D$107,4,FALSE))","v":{"v":810216.2553817623,"d":"810,216"}},{"$f":"($A20-$A19)/365.25*(CB19+(Main!$I26*Main!$D$3))*(1+Main!$I$4+VLOOKUP('Random Years'!BZ20,'Hist Returns'!$A$12:$D$107,4,FALSE))","v":{"v":520800.20142243087,"d":"520,800"}},{"$f":"($A20-$A19)/365.25*(CC19+(Main!$I26*Main!$D$3))*(1+Main!$I$4+VLOOKUP('Random Years'!CA20,'Hist Returns'!$A$12:$D$107,4,FALSE))","v":{"v":1189809.837893407,"d":"1,189,810"}},{"$f":"($A20-$A19)/365.25*(CD19+(Main!$I26*Main!$D$3))*(1+Main!$I$4+VLOOKUP('Random Years'!CB20,'Hist Returns'!$A$12:$D$107,4,FALSE))","v":{"v":601801.023175602,"d":"601,801"}},{"$f":"($A20-$A19)/365.25*(CE19+(Main!$I26*Main!$D$3))*(1+Main!$I$4+VLOOKUP('Random Years'!CC20,'Hist Returns'!$A$12:$D$107,4,FALSE))","v":{"v":463301.5568552748,"d":"463,302"}},{"$f":"($A20-$A19)/365.25*(CF19+(Main!$I26*Main!$D$3))*(1+Main!$I$4+VLOOKUP('Random Years'!CD20,'Hist Returns'!$A$12:$D$107,4,FALSE))","v":{"v":849974.8097219707,"d":"849,975"}},{"$f":"($A20-$A19)/365.25*(CG19+(Main!$I26*Main!$D$3))*(1+Main!$I$4+VLOOKUP('Random Years'!CE20,'Hist Returns'!$A$12:$D$107,4,FALSE))","v":{"v":642537.7793728289,"d":"642,538"}},{"$f":"($A20-$A19)/365.25*(CH19+(Main!$I26*Main!$D$3))*(1+Main!$I$4+VLOOKUP('Random Years'!CF20,'Hist Returns'!$A$12:$D$107,4,FALSE))","v":{"v":536142.1596484857,"d":"536,142"}},{"$f":"($A20-$A19)/365.25*(CI19+(Main!$I26*Main!$D$3))*(1+Main!$I$4+VLOOKUP('Random Years'!CG20,'Hist Returns'!$A$12:$D$107,4,FALSE))","v":{"v":1231086.2143803923,"d":"1,231,086"}},{"$f":"($A20-$A19)/365.25*(CJ19+(Main!$I26*Main!$D$3))*(1+Main!$I$4+VLOOKUP('Random Years'!CH20,'Hist Returns'!$A$12:$D$107,4,FALSE))","v":{"v":427250.3585125544,"d":"427,250"}},{"$f":"($A20-$A19)/365.25*(CK19+(Main!$I26*Main!$D$3))*(1+Main!$I$4+VLOOKUP('Random Years'!CI20,'Hist Returns'!$A$12:$D$107,4,FALSE))","v":{"v":426477.80158966186,"d":"426,478"}},{"$f":"($A20-$A19)/365.25*(CL19+(Main!$I26*Main!$D$3))*(1+Main!$I$4+VLOOKUP('Random Years'!CJ20,'Hist Returns'!$A$12:$D$107,4,FALSE))","v":{"v":763872.0622680692,"d":"763,872"}},{"$f":"($A20-$A19)/365.25*(CM19+(Main!$I26*Main!$D$3))*(1+Main!$I$4+VLOOKUP('Random Years'!CK20,'Hist Returns'!$A$12:$D$107,4,FALSE))","v":{"v":425058.9631241049,"d":"425,059"}},{"$f":"($A20-$A19)/365.25*(CN19+(Main!$I26*Main!$D$3))*(1+Main!$I$4+VLOOKUP('Random Years'!CL20,'Hist Returns'!$A$12:$D$107,4,FALSE))","v":{"v":650453.825177181,"d":"650,454"}},{"$f":"($A20-$A19)/365.25*(CO19+(Main!$I26*Main!$D$3))*(1+Main!$I$4+VLOOKUP('Random Years'!CM20,'Hist Returns'!$A$12:$D$107,4,FALSE))","v":{"v":604523.463918889,"d":"604,523"}},{"$f":"($A20-$A19)/365.25*(CP19+(Main!$I26*Main!$D$3))*(1+Main!$I$4+VLOOKUP('Random Years'!CN20,'Hist Returns'!$A$12:$D$107,4,FALSE))","v":{"v":522436.586371083,"d":"522,437"}},{"$f":"($A20-$A19)/365.25*(CQ19+(Main!$I26*Main!$D$3))*(1+Main!$I$4+VLOOKUP('Random Years'!CO20,'Hist Returns'!$A$12:$D$107,4,FALSE))","v":{"v":404732.29257167765,"d":"404,732"}},{"$f":"($A20-$A19)/365.25*(CR19+(Main!$I26*Main!$D$3))*(1+Main!$I$4+VLOOKUP('Random Years'!CP20,'Hist Returns'!$A$12:$D$107,4,FALSE))","v":{"v":381900.32331659866,"d":"381,900"}},{"$f":"($A20-$A19)/365.25*(CS19+(Main!$I26*Main!$D$3))*(1+Main!$I$4+VLOOKUP('Random Years'!CQ20,'Hist Returns'!$A$12:$D$107,4,FALSE))","v":{"v":357269.574018074,"d":"357,270"}},{"$f":"($A20-$A19)/365.25*(CT19+(Main!$I26*Main!$D$3))*(1+Main!$I$4+VLOOKUP('Random Years'!CR20,'Hist Returns'!$A$12:$D$107,4,FALSE))","v":{"v":224910.38641008674,"d":"224,910"}},{"$f":"($A20-$A19)/365.25*(CU19+(Main!$I26*Main!$D$3))*(1+Main!$I$4+VLOOKUP('Random Years'!CS20,'Hist Returns'!$A$12:$D$107,4,FALSE))","v":{"v":872286.0350088209,"d":"872,286"}},{"$f":"($A20-$A19)/365.25*(CV19+(Main!$I26*Main!$D$3))*(1+Main!$I$4+VLOOKUP('Random Years'!CT20,'Hist Returns'!$A$12:$D$107,4,FALSE))","v":{"v":444530.89790283644,"d":"444,531"}},{"$f":"($A20-$A19)/365.25*(CW19+(Main!$I26*Main!$D$3))*(1+Main!$I$4+VLOOKUP('Random Years'!CU20,'Hist Returns'!$A$12:$D$107,4,FALSE))","v":{"v":448727.49707451835,"d":"448,727"}},{"$f":"($A20-$A19)/365.25*(CX19+(Main!$I26*Main!$D$3))*(1+Main!$I$4+VLOOKUP('Random Years'!CV20,'Hist Returns'!$A$12:$D$107,4,FALSE))","v":{"v":484395.564958382,"d":"484,396"}}]
[{"$f":"Main!A27","v":"2042-12-30"},{"$f":"Main!B27","v":88},{"$f":"($A21-$A20)/365.25*(C20+(Main!$I27*Main!$D$3))*(1+Main!$I$4+VLOOKUP('Random Years'!A21,'Hist Returns'!$A$12:$D$107,4,FALSE))","v":{"v":468823.64570452605,"d":"468,824"}},{"$f":"($A21-$A20)/365.25*(D20+(Main!$I27*Main!$D$3))*(1+Main!$I$4+VLOOKUP('Random Years'!B21,'Hist Returns'!$A$12:$D$107,4,FALSE))","v":{"v":371372.2612479379,"d":"371,372"}},{"$f":"($A21-$A20)/365.25*(E20+(Main!$I27*Main!$D$3))*(1+Main!$I$4+VLOOKUP('Random Years'!C21,'Hist Returns'!$A$12:$D$107,4,FALSE))","v":{"v":356222.77889596194,"d":"356,223"}},{"$f":"($A21-$A20)/365.25*(F20+(Main!$I27*Main!$D$3))*(1+Main!$I$4+VLOOKUP('Random Years'!D21,'Hist Returns'!$A$12:$D$107,4,FALSE))","v":{"v":649911.1673531918,"d":"649,911"}},{"$f":"($A21-$A20)/365.25*(G20+(Main!$I27*Main!$D$3))*(1+Main!$I$4+VLOOKUP('Random Years'!E21,'Hist Returns'!$A$12:$D$107,4,FALSE))","v":{"v":984952.3715538889,"d":"984,952"}},{"$f":"($A21-$A20)/365.25*(H20+(Main!$I27*Main!$D$3))*(1+Main!$I$4+VLOOKUP('Random Years'!F21,'Hist Returns'!$A$12:$D$107,4,FALSE))","v":{"v":720452.3412787209,"d":"720,452"}},{"$f":"($A21-$A20)/365.25*(I20+(Main!$I27*Main!$D$3))*(1+Main!$I$4+VLOOKUP('Random Years'!G21,'Hist Returns'!$A$12:$D$107,4,FALSE))","v":{"v":380995.41486070486,"d":"380,995"}},{"$f":"($A21-$A20)/365.25*(J20+(Main!$I27*Main!$D$3))*(1+Main!$I$4+VLOOKUP('Random Years'!H21,'Hist Returns'!$A$12:$D$107,4,FALSE))","v":{"v":785379.4092623001,"d":"785,379"}},{"$f":"($A21-$A20)/365.25*(K20+(Main!$I27*Main!$D$3))*(1+Main!$I$4+VLOOKUP('Random Years'!I21,'Hist Returns'!$A$12:$D$107,4,FALSE))","v":{"v":691402.8229205423,"d":"691,403"}},{"$f":"($A21-$A20)/365.25*(L20+(Main!$I27*Main!$D$3))*(1+Main!$I$4+VLOOKUP('Random Years'!J21,'Hist Returns'!$A$12:$D$107,4,FALSE))","v":{"v":461682.456289148,"d":"461,682"}},{"$f":"($A21-$A20)/365.25*(M20+(Main!$I27*Main!$D$3))*(1+Main!$I$4+VLOOKUP('Random Years'!K21,'Hist Returns'!$A$12:$D$107,4,FALSE))","v":{"v":318160.4175471067,"d":"318,160"}},{"$f":"($A21-$A20)/365.25*(N20+(Main!$I27*Main!$D$3))*(1+Main!$I$4+VLOOKUP('Random Years'!L21,'Hist Returns'!$A$12:$D$107,4,FALSE))","v":{"v":601372.5675320261,"d":"601,373"}},{"$f":"($A21-$A20)/365.25*(O20+(Main!$I27*Main!$D$3))*(1+Main!$I$4+VLOOKUP('Random Years'!M21,'Hist Returns'!$A$12:$D$107,4,FALSE))","v":{"v":603478.813408343,"d":"603,479"}},{"$f":"($A21-$A20)/365.25*(P20+(Main!$I27*Main!$D$3))*(1+Main!$I$4+VLOOKUP('Random Years'!N21,'Hist Returns'!$A$12:$D$107,4,FALSE))","v":{"v":360565.2098779092,"d":"360,565"}},{"$f":"($A21-$A20)/365.25*(Q20+(Main!$I27*Main!$D$3))*(1+Main!$I$4+VLOOKUP('Random Years'!O21,'Hist Returns'!$A$12:$D$107,4,FALSE))","v":{"v":412450.2716948928,"d":"412,450"}},{"$f":"($A21-$A20)/365.25*(R20+(Main!$I27*Main!$D$3))*(1+Main!$I$4+VLOOKUP('Random Years'!P21,'Hist Returns'!$A$12:$D$107,4,FALSE))","v":{"v":445292.3511660882,"d":"445,292"}},{"$f":"($A21-$A20)/365.25*(S20+(Main!$I27*Main!$D$3))*(1+Main!$I$4+VLOOKUP('Random Years'!Q21,'Hist Returns'!$A$12:$D$107,4,FALSE))","v":{"v":238047.8801467481,"d":"238,048"}},{"$f":"($A21-$A20)/365.25*(T20+(Main!$I27*Main!$D$3))*(1+Main!$I$4+VLOOKUP('Random Years'!R21,'Hist Returns'!$A$12:$D$107,4,FALSE))","v":{"v":384540.16326639004,"d":"384,540"}},{"$f":"($A21-$A20)/365.25*(U20+(Main!$I27*Main!$D$3))*(1+Main!$I$4+VLOOKUP('Random Years'!S21,'Hist Returns'!$A$12:$D$107,4,FALSE))","v":{"v":446478.5741185645,"d":"446,479"}},{"$f":"($A21-$A20)/365.25*(V20+(Main!$I27*Main!$D$3))*(1+Main!$I$4+VLOOKUP('Random Years'!T21,'Hist Returns'!$A$12:$D$107,4,FALSE))","v":{"v":886574.3028805581,"d":"886,574"}},{"$f":"($A21-$A20)/365.25*(W20+(Main!$I27*Main!$D$3))*(1+Main!$I$4+VLOOKUP('Random Years'!U21,'Hist Returns'!$A$12:$D$107,4,FALSE))","v":{"v":596571.1843505957,"d":"596,571"}},{"$f":"($A21-$A20)/365.25*(X20+(Main!$I27*Main!$D$3))*(1+Main!$I$4+VLOOKUP('Random Years'!V21,'Hist Returns'!$A$12:$D$107,4,FALSE))","v":{"v":523884.3142098917,"d":"523,884"}},{"$f":"($A21-$A20)/365.25*(Y20+(Main!$I27*Main!$D$3))*(1+Main!$I$4+VLOOKUP('Random Years'!W21,'Hist Returns'!$A$12:$D$107,4,FALSE))","v":{"v":261289.04497856763,"d":"261,289"}},{"$f":"($A21-$A20)/365.25*(Z20+(Main!$I27*Main!$D$3))*(1+Main!$I$4+VLOOKUP('Random Years'!X21,'Hist Returns'!$A$12:$D$107,4,FALSE))","v":{"v":848679.1305676566,"d":"848,679"}},{"$f":"($A21-$A20)/365.25*(AA20+(Main!$I27*Main!$D$3))*(1+Main!$I$4+VLOOKUP('Random Years'!Y21,'Hist Returns'!$A$12:$D$107,4,FALSE))","v":{"v":540382.4780398164,"d":"540,382"}},{"$f":"($A21-$A20)/365.25*(AB20+(Main!$I27*Main!$D$3))*(1+Main!$I$4+VLOOKUP('Random Years'!Z21,'Hist Returns'!$A$12:$D$107,4,FALSE))","v":{"v":427825.54891200596,"d":"427,826"}},{"$f":"($A21-$A20)/365.25*(AC20+(Main!$I27*Main!$D$3))*(1+Main!$I$4+VLOOKUP('Random Years'!AA21,'Hist Returns'!$A$12:$D$107,4,FALSE))","v":{"v":353013.4900018165,"d":"353,013"}},{"$f":"($A21-$A20)/365.25*(AD20+(Main!$I27*Main!$D$3))*(1+Main!$I$4+VLOOKUP('Random Years'!AB21,'Hist Returns'!$A$12:$D$107,4,FALSE))","v":{"v":676675.5364960836,"d":"676,676"}},{"$f":"($A21-$A20)/365.25*(AE20+(Main!$I27*Main!$D$3))*(1+Main!$I$4+VLOOKUP('Random Years'!AC21,'Hist Returns'!$A$12:$D$107,4,FALSE))","v":{"v":732570.90955253,"d":"732,571"}},{"$f":"($A21-$A20)/365.25*(AF20+(Main!$I27*Main!$D$3))*(1+Main!$I$4+VLOOKUP('Random Years'!AD21,'Hist Returns'!$A$12:$D$107,4,FALSE))","v":{"v":391674.71762241743,"d":"391,675"}},{"$f":"($A21-$A20)/365.25*(AG20+(Main!$I27*Main!$D$3))*(1+Main!$I$4+VLOOKUP('Random Years'!AE21,'Hist Returns'!$A$12:$D$107,4,FALSE))","v":{"v":630878.2830859626,"d":"630,878"}},{"$f":"($A21-$A20)/365.25*(AH20+(Main!$I27*Main!$D$3))*(1+Main!$I$4+VLOOKUP('Random Years'!AF21,'Hist Returns'!$A$12:$D$107,4,FALSE))","v":{"v":443709.27151282097,"d":"443,709"}},{"$f":"($A21-$A20)/365.25*(AI20+(Main!$I27*Main!$D$3))*(1+Main!$I$4+VLOOKUP('Random Years'!AG21,'Hist Returns'!$A$12:$D$107,4,FALSE))","v":{"v":463416.94404672715,"d":"463,417"}},{"$f":"($A21-$A20)/365.25*(AJ20+(Main!$I27*Main!$D$3))*(1+Main!$I$4+VLOOKUP('Random Years'!AH21,'Hist Returns'!$A$12:$D$107,4,FALSE))","v":{"v":661258.2507099546,"d":"661,258"}},{"$f":"($A21-$A20)/365.25*(AK20+(Main!$I27*Main!$D$3))*(1+Main!$I$4+VLOOKUP('Random Years'!AI21,'Hist Returns'!$A$12:$D$107,4,FALSE))","v":{"v":650933.3085255995,"d":"650,933"}},{"$f":"($A21-$A20)/365.25*(AL20+(Main!$I27*Main!$D$3))*(1+Main!$I$4+VLOOKUP('Random Years'!AJ21,'Hist Returns'!$A$12:$D$107,4,FALSE))","v":{"v":546378.2403688168,"d":"546,378"}},{"$f":"($A21-$A20)/365.25*(AM20+(Main!$I27*Main!$D$3))*(1+Main!$I$4+VLOOKUP('Random Years'!AK21,'Hist Returns'!$A$12:$D$107,4,FALSE))","v":{"v":616605.2245624654,"d":"616,605"}},{"$f":"($A21-$A20)/365.25*(AN20+(Main!$I27*Main!$D$3))*(1+Main!$I$4+VLOOKUP('Random Years'!AL21,'Hist Returns'!$A$12:$D$107,4,FALSE))","v":{"v":465186.8341381883,"d":"465,187"}},{"$f":"($A21-$A20)/365.25*(AO20+(Main!$I27*Main!$D$3))*(1+Main!$I$4+VLOOKUP('Random Years'!AM21,'Hist Returns'!$A$12:$D$107,4,FALSE))","v":{"v":433909.04513318127,"d":"433,909"}},{"$f":"($A21-$A20)/365.25*(AP20+(Main!$I27*Main!$D$3))*(1+Main!$I$4+VLOOKUP('Random Years'!AN21,'Hist Returns'!$A$12:$D$107,4,FALSE))","v":{"v":660050.0388881693,"d":"660,050"}},{"$f":"($A21-$A20)/365.25*(AQ20+(Main!$I27*Main!$D$3))*(1+Main!$I$4+VLOOKUP('Random Years'!AO21,'Hist Returns'!$A$12:$D$107,4,FALSE))","v":{"v":346433.62918557593,"d":"346,434"}},{"$f":"($A21-$A20)/365.25*(AR20+(Main!$I27*Main!$D$3))*(1+Main!$I$4+VLOOKUP('Random Years'!AP21,'Hist Returns'!$A$12:$D$107,4,FALSE))","v":{"v":520605.4933058771,"d":"520,605"}},{"$f":"($A21-$A20)/365.25*(AS20+(Main!$I27*Main!$D$3))*(1+Main!$I$4+VLOOKUP('Random Years'!AQ21,'Hist Returns'!$A$12:$D$107,4,FALSE))","v":{"v":846639.0590712585,"d":"846,639"}},{"$f":"($A21-$A20)/365.25*(AT20+(Main!$I27*Main!$D$3))*(1+Main!$I$4+VLOOKUP('Random Years'!AR21,'Hist Returns'!$A$12:$D$107,4,FALSE))","v":{"v":873558.7246235439,"d":"873,559"}},{"$f":"($A21-$A20)/365.25*(AU20+(Main!$I27*Main!$D$3))*(1+Main!$I$4+VLOOKUP('Random Years'!AS21,'Hist Returns'!$A$12:$D$107,4,FALSE))","v":{"v":356788.51823308796,"d":"356,789"}},{"$f":"($A21-$A20)/365.25*(AV20+(Main!$I27*Main!$D$3))*(1+Main!$I$4+VLOOKUP('Random Years'!AT21,'Hist Returns'!$A$12:$D$107,4,FALSE))","v":{"v":580253.1339678167,"d":"580,253"}},{"$f":"($A21-$A20)/365.25*(AW20+(Main!$I27*Main!$D$3))*(1+Main!$I$4+VLOOKUP('Random Years'!AU21,'Hist Returns'!$A$12:$D$107,4,FALSE))","v":{"v":473557.9092709519,"d":"473,558"}},{"$f":"($A21-$A20)/365.25*(AX20+(Main!$I27*Main!$D$3))*(1+Main!$I$4+VLOOKUP('Random Years'!AV21,'Hist Returns'!$A$12:$D$107,4,FALSE))","v":{"v":636912.4069672221,"d":"636,912"}},{"$f":"($A21-$A20)/365.25*(AY20+(Main!$I27*Main!$D$3))*(1+Main!$I$4+VLOOKUP('Random Years'!AW21,'Hist Returns'!$A$12:$D$107,4,FALSE))","v":{"v":231947.02512866698,"d":"231,947"}},{"$f":"($A21-$A20)/365.25*(AZ20+(Main!$I27*Main!$D$3))*(1+Main!$I$4+VLOOKUP('Random Years'!AX21,'Hist Returns'!$A$12:$D$107,4,FALSE))","v":{"v":492857.4426683871,"d":"492,857"}},{"$f":"($A21-$A20)/365.25*(BA20+(Main!$I27*Main!$D$3))*(1+Main!$I$4+VLOOKUP('Random Years'!AY21,'Hist Returns'!$A$12:$D$107,4,FALSE))","v":{"v":453563.1763880699,"d":"453,563"}},{"$f":"($A21-$A20)/365.25*(BB20+(Main!$I27*Main!$D$3))*(1+Main!$I$4+VLOOKUP('Random Years'!AZ21,'Hist Returns'!$A$12:$D$107,4,FALSE))","v":{"v":275039.3060689732,"d":"275,039"}},{"$f":"($A21-$A20)/365.25*(BC20+(Main!$I27*Main!$D$3))*(1+Main!$I$4+VLOOKUP('Random Years'!BA21,'Hist Returns'!$A$12:$D$107,4,FALSE))","v":{"v":366851.1066706347,"d":"366,851"}},{"$f":"($A21-$A20)/365.25*(BD20+(Main!$I27*Main!$D$3))*(1+Main!$I$4+VLOOKUP('Random Years'!BB21,'Hist Returns'!$A$12:$D$107,4,FALSE))","v":{"v":413323.49957649736,"d":"413,323"}},{"$f":"($A21-$A20)/365.25*(BE20+(Main!$I27*Main!$D$3))*(1+Main!$I$4+VLOOKUP('Random Years'!BC21,'Hist Returns'!$A$12:$D$107,4,FALSE))","v":{"v":718687.3274556947,"d":"718,687"}},{"$f":"($A21-$A20)/365.25*(BF20+(Main!$I27*Main!$D$3))*(1+Main!$I$4+VLOOKUP('Random Years'!BD21,'Hist Returns'!$A$12:$D$107,4,FALSE))","v":{"v":840934.5149877171,"d":"840,935"}},{"$f":"($A21-$A20)/365.25*(BG20+(Main!$I27*Main!$D$3))*(1+Main!$I$4+VLOOKUP('Random Years'!BE21,'Hist Returns'!$A$12:$D$107,4,FALSE))","v":{"v":398024.6528820133,"d":"398,025"}},{"$f":"($A21-$A20)/365.25*(BH20+(Main!$I27*Main!$D$3))*(1+Main!$I$4+VLOOKUP('Random Years'!BF21,'Hist Returns'!$A$12:$D$107,4,FALSE))","v":{"v":396578.42513066006,"d":"396,578"}},{"$f":"($A21-$A20)/365.25*(BI20+(Main!$I27*Main!$D$3))*(1+Main!$I$4+VLOOKUP('Random Years'!BG21,'Hist Returns'!$A$12:$D$107,4,FALSE))","v":{"v":1134819.9430182977,"d":"1,134,820"}},{"$f":"($A21-$A20)/365.25*(BJ20+(Main!$I27*Main!$D$3))*(1+Main!$I$4+VLOOKUP('Random Years'!BH21,'Hist Returns'!$A$12:$D$107,4,FALSE))","v":{"v":702725.0879756965,"d":"702,725"}},{"$f":"($A21-$A20)/365.25*(BK20+(Main!$I27*Main!$D$3))*(1+Main!$I$4+VLOOKUP('Random Years'!BI21,'Hist Returns'!$A$12:$D$107,4,FALSE))","v":{"v":700880.4499891804,"d":"700,880"}},{"$f":"($A21-$A20)/365.25*(BL20+(Main!$I27*Main!$D$3))*(1+Main!$I$4+VLOOKUP('Random Years'!BJ21,'Hist Returns'!$A$12:$D$107,4,FALSE))","v":{"v":429739.9986037179,"d":"429,740"}},{"$f":"($A21-$A20)/365.25*(BM20+(Main!$I27*Main!$D$3))*(1+Main!$I$4+VLOOKUP('Random Years'!BK21,'Hist Returns'!$A$12:$D$107,4,FALSE))","v":{"v":466925.0704922516,"d":"466,925"}},{"$f":"($A21-$A20)/365.25*(BN20+(Main!$I27*Main!$D$3))*(1+Main!$I$4+VLOOKUP('Random Years'!BL21,'Hist Returns'!$A$12:$D$107,4,FALSE))","v":{"v":999422.5566841887,"d":"999,423"}},{"$f":"($A21-$A20)/365.25*(BO20+(Main!$I27*Main!$D$3))*(1+Main!$I$4+VLOOKUP('Random Years'!BM21,'Hist Returns'!$A$12:$D$107,4,FALSE))","v":{"v":320227.8858131824,"d":"320,228"}},{"$f":"($A21-$A20)/365.25*(BP20+(Main!$I27*Main!$D$3))*(1+Main!$I$4+VLOOKUP('Random Years'!BN21,'Hist Returns'!$A$12:$D$107,4,FALSE))","v":{"v":479037.3422611136,"d":"479,037"}},{"$f":"($A21-$A20)/365.25*(BQ20+(Main!$I27*Main!$D$3))*(1+Main!$I$4+VLOOKUP('Random Years'!BO21,'Hist Returns'!$A$12:$D$107,4,FALSE))","v":{"v":390571.3085515011,"d":"390,571"}},{"$f":"($A21-$A20)/365.25*(BR20+(Main!$I27*Main!$D$3))*(1+Main!$I$4+VLOOKUP('Random Years'!BP21,'Hist Returns'!$A$12:$D$107,4,FALSE))","v":{"v":417295.89638694207,"d":"417,296"}},{"$f":"($A21-$A20)/365.25*(BS20+(Main!$I27*Main!$D$3))*(1+Main!$I$4+VLOOKUP('Random Years'!BQ21,'Hist Returns'!$A$12:$D$107,4,FALSE))","v":{"v":552699.2352425683,"d":"552,699"}},{"$f":"($A21-$A20)/365.25*(BT20+(Main!$I27*Main!$D$3))*(1+Main!$I$4+VLOOKUP('Random Years'!BR21,'Hist Returns'!$A$12:$D$107,4,FALSE))","v":{"v":275805.5182938118,"d":"275,806"}},{"$f":"($A21-$A20)/365.25*(BU20+(Main!$I27*Main!$D$3))*(1+Main!$I$4+VLOOKUP('Random Years'!BS21,'Hist Returns'!$A$12:$D$107,4,FALSE))","v":{"v":549292.9066865244,"d":"549,293"}},{"$f":"($A21-$A20)/365.25*(BV20+(Main!$I27*Main!$D$3))*(1+Main!$I$4+VLOOKUP('Random Years'!BT21,'Hist Returns'!$A$12:$D$107,4,FALSE))","v":{"v":171023.32352225552,"d":"171,023"}},{"$f":"($A21-$A20)/365.25*(BW20+(Main!$I27*Main!$D$3))*(1+Main!$I$4+VLOOKUP('Random Years'!BU21,'Hist Returns'!$A$12:$D$107,4,FALSE))","v":{"v":502403.99195796275,"d":"502,404"}},{"$f":"($A21-$A20)/365.25*(BX20+(Main!$I27*Main!$D$3))*(1+Main!$I$4+VLOOKUP('Random Years'!BV21,'Hist Returns'!$A$12:$D$107,4,FALSE))","v":{"v":527950.5746734784,"d":"527,951"}},{"$f":"($A21-$A20)/365.25*(BY20+(Main!$I27*Main!$D$3))*(1+Main!$I$4+VLOOKUP('Random Years'!BW21,'Hist Returns'!$A$12:$D$107,4,FALSE))","v":{"v":399712.08951614826,"d":"399,712"}},{"$f":"($A21-$A20)/365.25*(BZ20+(Main!$I27*Main!$D$3))*(1+Main!$I$4+VLOOKUP('Random Years'!BX21,'Hist Returns'!$A$12:$D$107,4,FALSE))","v":{"v":268246.97200580937,"d":"268,247"}},{"$f":"($A21-$A20)/365.25*(CA20+(Main!$I27*Main!$D$3))*(1+Main!$I$4+VLOOKUP('Random Years'!BY21,'Hist Returns'!$A$12:$D$107,4,FALSE))","v":{"v":830131.9022998018,"d":"830,132"}},{"$f":"($A21-$A20)/365.25*(CB20+(Main!$I27*Main!$D$3))*(1+Main!$I$4+VLOOKUP('Random Years'!BZ21,'Hist Returns'!$A$12:$D$107,4,FALSE))","v":{"v":541578.7101719662,"d":"541,579"}},{"$f":"($A21-$A20)/365.25*(CC20+(Main!$I27*Main!$D$3))*(1+Main!$I$4+VLOOKUP('Random Years'!CA21,'Hist Returns'!$A$12:$D$107,4,FALSE))","v":{"v":1376568.640294512,"d":"1,376,569"}},{"$f":"($A21-$A20)/365.25*(CD20+(Main!$I27*Main!$D$3))*(1+Main!$I$4+VLOOKUP('Random Years'!CB21,'Hist Returns'!$A$12:$D$107,4,FALSE))","v":{"v":621173.2270028632,"d":"621,173"}},{"$f":"($A21-$A20)/365.25*(CE20+(Main!$I27*Main!$D$3))*(1+Main!$I$4+VLOOKUP('Random Years'!CC21,'Hist Returns'!$A$12:$D$107,4,FALSE))","v":{"v":569053.8371584672,"d":"569,054"}},{"$f":"($A21-$A20)/365.25*(CF20+(Main!$I27*Main!$D$3))*(1+Main!$I$4+VLOOKUP('Random Years'!CD21,'Hist Returns'!$A$12:$D$107,4,FALSE))","v":{"v":894463.09944418,"d":"894,463"}},{"$f":"($A21-$A20)/365.25*(CG20+(Main!$I27*Main!$D$3))*(1+Main!$I$4+VLOOKUP('Random Years'!CE21,'Hist Returns'!$A$12:$D$107,4,FALSE))","v":{"v":692429.1010246171,"d":"692,429"}},{"$f":"($A21-$A20)/365.25*(CH20+(Main!$I27*Main!$D$3))*(1+Main!$I$4+VLOOKUP('Random Years'!CF21,'Hist Returns'!$A$12:$D$107,4,FALSE))","v":{"v":550712.2348847076,"d":"550,712"}},{"$f":"($A21-$A20)/365.25*(CI20+(Main!$I27*Main!$D$3))*(1+Main!$I$4+VLOOKUP('Random Years'!CG21,'Hist Returns'!$A$12:$D$107,4,FALSE))","v":{"v":1245040.5317721542,"d":"1,245,041"}},{"$f":"($A21-$A20)/365.25*(CJ20+(Main!$I27*Main!$D$3))*(1+Main!$I$4+VLOOKUP('Random Years'!CH21,'Hist Returns'!$A$12:$D$107,4,FALSE))","v":{"v":444628.83752699156,"d":"444,629"}},{"$f":"($A21-$A20)/365.25*(CK20+(Main!$I27*Main!$D$3))*(1+Main!$I$4+VLOOKUP('Random Years'!CI21,'Hist Returns'!$A$12:$D$107,4,FALSE))","v":{"v":487671.4571296507,"d":"487,671"}},{"$f":"($A21-$A20)/365.25*(CL20+(Main!$I27*Main!$D$3))*(1+Main!$I$4+VLOOKUP('Random Years'!CJ21,'Hist Returns'!$A$12:$D$107,4,FALSE))","v":{"v":700033.1015248994,"d":"700,033"}},{"$f":"($A21-$A20)/365.25*(CM20+(Main!$I27*Main!$D$3))*(1+Main!$I$4+VLOOKUP('Random Years'!CK21,'Hist Returns'!$A$12:$D$107,4,FALSE))","v":{"v":413094.11564876843,"d":"413,094"}},{"$f":"($A21-$A20)/365.25*(CN20+(Main!$I27*Main!$D$3))*(1+Main!$I$4+VLOOKUP('Random Years'!CL21,'Hist Returns'!$A$12:$D$107,4,FALSE))","v":{"v":710322.7240371328,"d":"710,323"}},{"$f":"($A21-$A20)/365.25*(CO20+(Main!$I27*Main!$D$3))*(1+Main!$I$4+VLOOKUP('Random Years'!CM21,'Hist Returns'!$A$12:$D$107,4,FALSE))","v":{"v":589796.2946056841,"d":"589,796"}},{"$f":"($A21-$A20)/365.25*(CP20+(Main!$I27*Main!$D$3))*(1+Main!$I$4+VLOOKUP('Random Years'!CN21,'Hist Returns'!$A$12:$D$107,4,FALSE))","v":{"v":642024.2531873612,"d":"642,024"}},{"$f":"($A21-$A20)/365.25*(CQ20+(Main!$I27*Main!$D$3))*(1+Main!$I$4+VLOOKUP('Random Years'!CO21,'Hist Returns'!$A$12:$D$107,4,FALSE))","v":{"v":406014.95869276347,"d":"406,015"}},{"$f":"($A21-$A20)/365.25*(CR20+(Main!$I27*Main!$D$3))*(1+Main!$I$4+VLOOKUP('Random Years'!CP21,'Hist Returns'!$A$12:$D$107,4,FALSE))","v":{"v":440159.71458894154,"d":"440,160"}},{"$f":"($A21-$A20)/365.25*(CS20+(Main!$I27*Main!$D$3))*(1+Main!$I$4+VLOOKUP('Random Years'!CQ21,'Hist Returns'!$A$12:$D$107,4,FALSE))","v":{"v":438214.3336805708,"d":"438,214"}},{"$f":"($A21-$A20)/365.25*(CT20+(Main!$I27*Main!$D$3))*(1+Main!$I$4+VLOOKUP('Random Years'!CR21,'Hist Returns'!$A$12:$D$107,4,FALSE))","v":{"v":255833.56016529485,"d":"255,834"}},{"$f":"($A21-$A20)/365.25*(CU20+(Main!$I27*Main!$D$3))*(1+Main!$I$4+VLOOKUP('Random Years'!CS21,'Hist Returns'!$A$12:$D$107,4,FALSE))","v":{"v":968068.4574013561,"d":"968,068"}},{"$f":"($A21-$A20)/365.25*(CV20+(Main!$I27*Main!$D$3))*(1+Main!$I$4+VLOOKUP('Random Years'!CT21,'Hist Returns'!$A$12:$D$107,4,FALSE))","v":{"v":445136.6413452334,"d":"445,137"}},{"$f":"($A21-$A20)/365.25*(CW20+(Main!$I27*Main!$D$3))*(1+Main!$I$4+VLOOKUP('Random Years'!CU21,'Hist Returns'!$A$12:$D$107,4,FALSE))","v":{"v":491844.80983504065,"d":"491,845"}},{"$f":"($A21-$A20)/365.25*(CX20+(Main!$I27*Main!$D$3))*(1+Main!$I$4+VLOOKUP('Random Years'!CV21,'Hist Returns'!$A$12:$D$107,4,FALSE))","v":{"v":499298.1963636679,"d":"499,298"}}]
[{"$f":"Main!A28","v":"2043-12-31"},{"$f":"Main!B28","v":89},{"$f":"($A22-$A21)/365.25*(C21+(Main!$I28*Main!$D$3))*(1+Main!$I$4+VLOOKUP('Random Years'!A22,'Hist Returns'!$A$12:$D$107,4,FALSE))","v":{"v":513372.6104935338,"d":"513,373"}},{"$f":"($A22-$A21)/365.25*(D21+(Main!$I28*Main!$D$3))*(1+Main!$I$4+VLOOKUP('Random Years'!B22,'Hist Returns'!$A$12:$D$107,4,FALSE))","v":{"v":390571.4445629654,"d":"390,571"}},{"$f":"($A22-$A21)/365.25*(E21+(Main!$I28*Main!$D$3))*(1+Main!$I$4+VLOOKUP('Random Years'!C22,'Hist Returns'!$A$12:$D$107,4,FALSE))","v":{"v":383028.5906999575,"d":"383,029"}},{"$f":"($A22-$A21)/365.25*(F21+(Main!$I28*Main!$D$3))*(1+Main!$I$4+VLOOKUP('Random Years'!D22,'Hist Returns'!$A$12:$D$107,4,FALSE))","v":{"v":709830.9950115419,"d":"709,831"}},{"$f":"($A22-$A21)/365.25*(G21+(Main!$I28*Main!$D$3))*(1+Main!$I$4+VLOOKUP('Random Years'!E22,'Hist Returns'!$A$12:$D$107,4,FALSE))","v":{"v":1013434.1202869524,"d":"1,013,434"}},{"$f":"($A22-$A21)/365.25*(H21+(Main!$I28*Main!$D$3))*(1+Main!$I$4+VLOOKUP('Random Years'!F22,'Hist Returns'!$A$12:$D$107,4,FALSE))","v":{"v":704645.8991128799,"d":"704,646"}},{"$f":"($A22-$A21)/365.25*(I21+(Main!$I28*Main!$D$3))*(1+Main!$I$4+VLOOKUP('Random Years'!G22,'Hist Returns'!$A$12:$D$107,4,FALSE))","v":{"v":455904.0935086394,"d":"455,904"}},{"$f":"($A22-$A21)/365.25*(J21+(Main!$I28*Main!$D$3))*(1+Main!$I$4+VLOOKUP('Random Years'!H22,'Hist Returns'!$A$12:$D$107,4,FALSE))","v":{"v":824195.0387615595,"d":"824,195"}},{"$f":"($A22-$A21)/365.25*(K21+(Main!$I28*Main!$D$3))*(1+Main!$I$4+VLOOKUP('Random Years'!I22,'Hist Returns'!$A$12:$D$107,4,FALSE))","v":{"v":704378.7073324551,"d":"704,379"}},{"$f":"($A22-$A21)/365.25*(L21+(Main!$I28*Main!$D$3))*(1+Main!$I$4+VLOOKUP('Random Years'!J22,'Hist Returns'!$A$12:$D$107,4,FALSE))","v":{"v":481925.5495953317,"d":"481,926"}},{"$f":"($A22-$A21)/365.25*(M21+(Main!$I28*Main!$D$3))*(1+Main!$I$4+VLOOKUP('Random Years'!K22,'Hist Returns'!$A$12:$D$107,4,FALSE))","v":{"v":324797.3105272433,"d":"324,797"}},{"$f":"($A22-$A21)/365.25*(N21+(Main!$I28*Main!$D$3))*(1+Main!$I$4+VLOOKUP('Random Years'!L22,'Hist Returns'!$A$12:$D$107,4,FALSE))","v":{"v":609007.1492557434,"d":"609,007"}},{"$f":"($A22-$A21)/365.25*(O21+(Main!$I28*Main!$D$3))*(1+Main!$I$4+VLOOKUP('Random Years'!M22,'Hist Returns'!$A$12:$D$107,4,FALSE))","v":{"v":616367.437005339,"d":"616,367"}},{"$f":"($A22-$A21)/365.25*(P21+(Main!$I28*Main!$D$3))*(1+Main!$I$4+VLOOKUP('Random Years'!N22,'Hist Returns'!$A$12:$D$107,4,FALSE))","v":{"v":367369.0437338811,"d":"367,369"}},{"$f":"($A22-$A21)/365.25*(Q21+(Main!$I28*Main!$D$3))*(1+Main!$I$4+VLOOKUP('Random Years'!O22,'Hist Returns'!$A$12:$D$107,4,FALSE))","v":{"v":402805.5005161578,"d":"402,806"}},{"$f":"($A22-$A21)/365.25*(R21+(Main!$I28*Main!$D$3))*(1+Main!$I$4+VLOOKUP('Random Years'!P22,'Hist Returns'!$A$12:$D$107,4,FALSE))","v":{"v":455473.99113566463,"d":"455,474"}},{"$f":"($A22-$A21)/365.25*(S21+(Main!$I28*Main!$D$3))*(1+Main!$I$4+VLOOKUP('Random Years'!Q22,'Hist Returns'!$A$12:$D$107,4,FALSE))","v":{"v":244098.4809295495,"d":"244,098"}},{"$f":"($A22-$A21)/365.25*(T21+(Main!$I28*Main!$D$3))*(1+Main!$I$4+VLOOKUP('Random Years'!R22,'Hist Returns'!$A$12:$D$107,4,FALSE))","v":{"v":437601.25204225234,"d":"437,601"}},{"$f":"($A22-$A21)/365.25*(U21+(Main!$I28*Main!$D$3))*(1+Main!$I$4+VLOOKUP('Random Years'!S22,'Hist Returns'!$A$12:$D$107,4,FALSE))","v":{"v":454070.947890392,"d":"454,071"}},{"$f":"($A22-$A21)/365.25*(V21+(Main!$I28*Main!$D$3))*(1+Main!$I$4+VLOOKUP('Random Years'!T22,'Hist Returns'!$A$12:$D$107,4,FALSE))","v":{"v":898877.2950227238,"d":"898,877"}},{"$f":"($A22-$A21)/365.25*(W21+(Main!$I28*Main!$D$3))*(1+Main!$I$4+VLOOKUP('Random Years'!U22,'Hist Returns'!$A$12:$D$107,4,FALSE))","v":{"v":599727.8912898684,"d":"599,728"}},{"$f":"($A22-$A21)/365.25*(X21+(Main!$I28*Main!$D$3))*(1+Main!$I$4+VLOOKUP('Random Years'!V22,'Hist Returns'!$A$12:$D$107,4,FALSE))","v":{"v":552546.8252994097,"d":"552,547"}},{"$f":"($A22-$A21)/365.25*(Y21+(Main!$I28*Main!$D$3))*(1+Main!$I$4+VLOOKUP('Random Years'!W22,'Hist Returns'!$A$12:$D$107,4,FALSE))","v":{"v":298896.88156722725,"d":"298,897"}},{"$f":"($A22-$A21)/365.25*(Z21+(Main!$I28*Main!$D$3))*(1+Main!$I$4+VLOOKUP('Random Years'!X22,'Hist Returns'!$A$12:$D$107,4,FALSE))","v":{"v":939429.9507884661,"d":"939,430"}},{"$f":"($A22-$A21)/365.25*(AA21+(Main!$I28*Main!$D$3))*(1+Main!$I$4+VLOOKUP('Random Years'!Y22,'Hist Returns'!$A$12:$D$107,4,FALSE))","v":{"v":541630.9128496638,"d":"541,631"}},{"$f":"($A22-$A21)/365.25*(AB21+(Main!$I28*Main!$D$3))*(1+Main!$I$4+VLOOKUP('Random Years'!Z22,'Hist Returns'!$A$12:$D$107,4,FALSE))","v":{"v":429469.01983672543,"d":"429,469"}},{"$f":"($A22-$A21)/365.25*(AC21+(Main!$I28*Main!$D$3))*(1+Main!$I$4+VLOOKUP('Random Years'!AA22,'Hist Returns'!$A$12:$D$107,4,FALSE))","v":{"v":373481.41846567654,"d":"373,481"}},{"$f":"($A22-$A21)/365.25*(AD21+(Main!$I28*Main!$D$3))*(1+Main!$I$4+VLOOKUP('Random Years'!AB22,'Hist Returns'!$A$12:$D$107,4,FALSE))","v":{"v":685208.4321144784,"d":"685,208"}},{"$f":"($A22-$A21)/365.25*(AE21+(Main!$I28*Main!$D$3))*(1+Main!$I$4+VLOOKUP('Random Years'!AC22,'Hist Returns'!$A$12:$D$107,4,FALSE))","v":{"v":764190.3253389772,"d":"764,190"}},{"$f":"($A22-$A21)/365.25*(AF21+(Main!$I28*Main!$D$3))*(1+Main!$I$4+VLOOKUP('Random Years'!AD22,'Hist Returns'!$A$12:$D$107,4,FALSE))","v":{"v":395876.79699460464,"d":"395,877"}},{"$f":"($A22-$A21)/365.25*(AG21+(Main!$I28*Main!$D$3))*(1+Main!$I$4+VLOOKUP('Random Years'!AE22,'Hist Returns'!$A$12:$D$107,4,FALSE))","v":{"v":644283.9485634145,"d":"644,284"}},{"$f":"($A22-$A21)/365.25*(AH21+(Main!$I28*Main!$D$3))*(1+Main!$I$4+VLOOKUP('Random Years'!AF22,'Hist Returns'!$A$12:$D$107,4,FALSE))","v":{"v":508828.6320677483,"d":"508,829"}},{"$f":"($A22-$A21)/365.25*(AI21+(Main!$I28*Main!$D$3))*(1+Main!$I$4+VLOOKUP('Random Years'!AG22,'Hist Returns'!$A$12:$D$107,4,FALSE))","v":{"v":456013.57431184466,"d":"456,014"}},{"$f":"($A22-$A21)/365.25*(AJ21+(Main!$I28*Main!$D$3))*(1+Main!$I$4+VLOOKUP('Random Years'!AH22,'Hist Returns'!$A$12:$D$107,4,FALSE))","v":{"v":735265.6479220351,"d":"735,266"}},{"$f":"($A22-$A21)/365.25*(AK21+(Main!$I28*Main!$D$3))*(1+Main!$I$4+VLOOKUP('Random Years'!AI22,'Hist Returns'!$A$12:$D$107,4,FALSE))","v":{"v":677030.6458485257,"d":"677,031"}},{"$f":"($A22-$A21)/365.25*(AL21+(Main!$I28*Main!$D$3))*(1+Main!$I$4+VLOOKUP('Random Years'!AJ22,'Hist Returns'!$A$12:$D$107,4,FALSE))","v":{"v":590167.2035617053,"d":"590,167"}},{"$f":"($A22-$A21)/365.25*(AM21+(Main!$I28*Main!$D$3))*(1+Main!$I$4+VLOOKUP('Random Years'!AK22,'Hist Returns'!$A$12:$D$107,4,FALSE))","v":{"v":675046.1386047145,"d":"675,046"}},{"$f":"($A22-$A21)/365.25*(AN21+(Main!$I28*Main!$D$3))*(1+Main!$I$4+VLOOKUP('Random Years'!AL22,'Hist Returns'!$A$12:$D$107,4,FALSE))","v":{"v":508690.1218666147,"d":"508,690"}},{"$f":"($A22-$A21)/365.25*(AO21+(Main!$I28*Main!$D$3))*(1+Main!$I$4+VLOOKUP('Random Years'!AM22,'Hist Returns'!$A$12:$D$107,4,FALSE))","v":{"v":421172.0699851827,"d":"421,172"}},{"$f":"($A22-$A21)/365.25*(AP21+(Main!$I28*Main!$D$3))*(1+Main!$I$4+VLOOKUP('Random Years'!AN22,'Hist Returns'!$A$12:$D$107,4,FALSE))","v":{"v":663775.9960400426,"d":"663,776"}},{"$f":"($A22-$A21)/365.25*(AQ21+(Main!$I28*Main!$D$3))*(1+Main!$I$4+VLOOKUP('Random Years'!AO22,'Hist Returns'!$A$12:$D$107,4,FALSE))","v":{"v":352790.77867525845,"d":"352,791"}},{"$f":"($A22-$A21)/365.25*(AR21+(Main!$I28*Main!$D$3))*(1+Main!$I$4+VLOOKUP('Random Years'!AP22,'Hist Returns'!$A$12:$D$107,4,FALSE))","v":{"v":529683.7799276644,"d":"529,684"}},{"$f":"($A22-$A21)/365.25*(AS21+(Main!$I28*Main!$D$3))*(1+Main!$I$4+VLOOKUP('Random Years'!AQ22,'Hist Returns'!$A$12:$D$107,4,FALSE))","v":{"v":808797.4699951282,"d":"808,797"}},{"$f":"($A22-$A21)/365.25*(AT21+(Main!$I28*Main!$D$3))*(1+Main!$I$4+VLOOKUP('Random Years'!AR22,'Hist Returns'!$A$12:$D$107,4,FALSE))","v":{"v":949929.1423156138,"d":"949,929"}},{"$f":"($A22-$A21)/365.25*(AU21+(Main!$I28*Main!$D$3))*(1+Main!$I$4+VLOOKUP('Random Years'!AS22,'Hist Returns'!$A$12:$D$107,4,FALSE))","v":{"v":357726.451535837,"d":"357,726"}},{"$f":"($A22-$A21)/365.25*(AV21+(Main!$I28*Main!$D$3))*(1+Main!$I$4+VLOOKUP('Random Years'!AT22,'Hist Returns'!$A$12:$D$107,4,FALSE))","v":{"v":598323.3001362362,"d":"598,323"}},{"$f":"($A22-$A21)/365.25*(AW21+(Main!$I28*Main!$D$3))*(1+Main!$I$4+VLOOKUP('Random Years'!AU22,'Hist Returns'!$A$12:$D$107,4,FALSE))","v":{"v":489381.75391302,"d":"489,382"}},{"$f":"($A22-$A21)/365.25*(AX21+(Main!$I28*Main!$D$3))*(1+Main!$I$4+VLOOKUP('Random Years'!AV22,'Hist Returns'!$A$12:$D$107,4,FALSE))","v":{"v":604491.2555846745,"d":"604,491"}},{"$f":"($A22-$A21)/365.25*(AY21+(Main!$I28*Main!$D$3))*(1+Main!$I$4+VLOOKUP('Random Years'!AW22,'Hist Returns'!$A$12:$D$107,4,FALSE))","v":{"v":262965.30721697706,"d":"262,965"}},{"$f":"($A22-$A21)/365.25*(AZ21+(Main!$I28*Main!$D$3))*(1+Main!$I$4+VLOOKUP('Random Years'!AX22,'Hist Returns'!$A$12:$D$107,4,FALSE))","v":{"v":404022.83979327115,"d":"404,023"}},{"$f":"($A22-$A21)/365.25*(BA21+(Main!$I28*Main!$D$3))*(1+Main!$I$4+VLOOKUP('Random Years'!AY22,'Hist Returns'!$A$12:$D$107,4,FALSE))","v":{"v":472855.8479656277,"d":"472,856"}},{"$f":"($A22-$A21)/365.25*(BB21+(Main!$I28*Main!$D$3))*(1+Main!$I$4+VLOOKUP('Random Years'!AZ22,'Hist Returns'!$A$12:$D$107,4,FALSE))","v":{"v":304405.1860707482,"d":"304,405"}},{"$f":"($A22-$A21)/365.25*(BC21+(Main!$I28*Main!$D$3))*(1+Main!$I$4+VLOOKUP('Random Years'!BA22,'Hist Returns'!$A$12:$D$107,4,FALSE))","v":{"v":381768.3845908067,"d":"381,768"}},{"$f":"($A22-$A21)/365.25*(BD21+(Main!$I28*Main!$D$3))*(1+Main!$I$4+VLOOKUP('Random Years'!BB22,'Hist Returns'!$A$12:$D$107,4,FALSE))","v":{"v":424882.8833176493,"d":"424,883"}},{"$f":"($A22-$A21)/365.25*(BE21+(Main!$I28*Main!$D$3))*(1+Main!$I$4+VLOOKUP('Random Years'!BC22,'Hist Returns'!$A$12:$D$107,4,FALSE))","v":{"v":789346.4877513016,"d":"789,346"}},{"$f":"($A22-$A21)/365.25*(BF21+(Main!$I28*Main!$D$3))*(1+Main!$I$4+VLOOKUP('Random Years'!BD22,'Hist Returns'!$A$12:$D$107,4,FALSE))","v":{"v":871816.9898080158,"d":"871,817"}},{"$f":"($A22-$A21)/365.25*(BG21+(Main!$I28*Main!$D$3))*(1+Main!$I$4+VLOOKUP('Random Years'!BE22,'Hist Returns'!$A$12:$D$107,4,FALSE))","v":{"v":376987.3533715452,"d":"376,987"}},{"$f":"($A22-$A21)/365.25*(BH21+(Main!$I28*Main!$D$3))*(1+Main!$I$4+VLOOKUP('Random Years'!BF22,'Hist Returns'!$A$12:$D$107,4,FALSE))","v":{"v":416566.1059119508,"d":"416,566"}},{"$f":"($A22-$A21)/365.25*(BI21+(Main!$I28*Main!$D$3))*(1+Main!$I$4+VLOOKUP('Random Years'!BG22,'Hist Returns'!$A$12:$D$107,4,FALSE))","v":{"v":1166960.729373393,"d":"1,166,961"}},{"$f":"($A22-$A21)/365.25*(BJ21+(Main!$I28*Main!$D$3))*(1+Main!$I$4+VLOOKUP('Random Years'!BH22,'Hist Returns'!$A$12:$D$107,4,FALSE))","v":{"v":701872.8261262012,"d":"701,873"}},{"$f":"($A22-$A21)/365.25*(BK21+(Main!$I28*Main!$D$3))*(1+Main!$I$4+VLOOKUP('Random Years'!BI22,'Hist Returns'!$A$12:$D$107,4,FALSE))","v":{"v":643873.6121667637,"d":"643,874"}},{"$f":"($A22-$A21)/365.25*(BL21+(Main!$I28*Main!$D$3))*(1+Main!$I$4+VLOOKUP('Random Years'!BJ22,'Hist Returns'!$A$12:$D$107,4,FALSE))","v":{"v":466105.94682304945,"d":"466,106"}},{"$f":"($A22-$A21)/365.25*(BM21+(Main!$I28*Main!$D$3))*(1+Main!$I$4+VLOOKUP('Random Years'!BK22,'Hist Returns'!$A$12:$D$107,4,FALSE))","v":{"v":467706.4508540336,"d":"467,706"}},{"$f":"($A22-$A21)/365.25*(BN21+(Main!$I28*Main!$D$3))*(1+Main!$I$4+VLOOKUP('Random Years'!BL22,'Hist Returns'!$A$12:$D$107,4,FALSE))","v":{"v":1032171.606421347,"d":"1,032,172"}},{"$f":"($A22-$A21)/365.25*(BO21+(Main!$I28*Main!$D$3))*(1+Main!$I$4+VLOOKUP('Random Years'!BM22,'Hist Returns'!$A$12:$D$107,4,FALSE))","v":{"v":346722.7454186722,"d":"346,723"}},{"$f":"($A22-$A21)/365.25*(BP21+(Main!$I28*Main!$D$3))*(1+Main!$I$4+VLOOKUP('Random Years'!BN22,'Hist Returns'!$A$12:$D$107,4,FALSE))","v":{"v":517022.31328197196,"d":"517,022"}},{"$f":"($A22-$A21)/365.25*(BQ21+(Main!$I28*Main!$D$3))*(1+Main!$I$4+VLOOKUP('Random Years'!BO22,'Hist Returns'!$A$12:$D$107,4,FALSE))","v":{"v":399227.1929886524,"d":"399,227"}},{"$f":"($A22-$A21)/365.25*(BR21+(Main!$I28*Main!$D$3))*(1+Main!$I$4+VLOOKUP('Random Years'!BP22,'Hist Returns'!$A$12:$D$107,4,FALSE))","v":{"v":444248.5714342811,"d":"444,249"}},{"$f":"($A22-$A21)/365.25*(BS21+(Main!$I28*Main!$D$3))*(1+Main!$I$4+VLOOKUP('Random Years'!BQ22,'Hist Returns'!$A$12:$D$107,4,FALSE))","v":{"v":586053.9187957145,"d":"586,054"}},{"$f":"($A22-$A21)/365.25*(BT21+(Main!$I28*Main!$D$3))*(1+Main!$I$4+VLOOKUP('Random Years'!BR22,'Hist Returns'!$A$12:$D$107,4,FALSE))","v":{"v":279646.4455816643,"d":"279,646"}},{"$f":"($A22-$A21)/365.25*(BU21+(Main!$I28*Main!$D$3))*(1+Main!$I$4+VLOOKUP('Random Years'!BS22,'Hist Returns'!$A$12:$D$107,4,FALSE))","v":{"v":558993.8153890106,"d":"558,994"}},{"$f":"($A22-$A21)/365.25*(BV21+(Main!$I28*Main!$D$3))*(1+Main!$I$4+VLOOKUP('Random Years'!BT22,'Hist Returns'!$A$12:$D$107,4,FALSE))","v":{"v":175386.78112362162,"d":"175,387"}},{"$f":"($A22-$A21)/365.25*(BW21+(Main!$I28*Main!$D$3))*(1+Main!$I$4+VLOOKUP('Random Years'!BU22,'Hist Returns'!$A$12:$D$107,4,FALSE))","v":{"v":411883.3469411299,"d":"411,883"}},{"$f":"($A22-$A21)/365.25*(BX21+(Main!$I28*Main!$D$3))*(1+Main!$I$4+VLOOKUP('Random Years'!BV22,'Hist Returns'!$A$12:$D$107,4,FALSE))","v":{"v":500439.7614326555,"d":"500,440"}},{"$f":"($A22-$A21)/365.25*(BY21+(Main!$I28*Main!$D$3))*(1+Main!$I$4+VLOOKUP('Random Years'!BW22,'Hist Returns'!$A$12:$D$107,4,FALSE))","v":{"v":413509.88248145045,"d":"413,510"}},{"$f":"($A22-$A21)/365.25*(BZ21+(Main!$I28*Main!$D$3))*(1+Main!$I$4+VLOOKUP('Random Years'!BX22,'Hist Returns'!$A$12:$D$107,4,FALSE))","v":{"v":278726.756288884,"d":"278,727"}},{"$f":"($A22-$A21)/365.25*(CA21+(Main!$I28*Main!$D$3))*(1+Main!$I$4+VLOOKUP('Random Years'!BY22,'Hist Returns'!$A$12:$D$107,4,FALSE))","v":{"v":835223.1226122229,"d":"835,223"}},{"$f":"($A22-$A21)/365.25*(CB21+(Main!$I28*Main!$D$3))*(1+Main!$I$4+VLOOKUP('Random Years'!BZ22,'Hist Returns'!$A$12:$D$107,4,FALSE))","v":{"v":584962.3136410457,"d":"584,962"}},{"$f":"($A22-$A21)/365.25*(CC21+(Main!$I28*Main!$D$3))*(1+Main!$I$4+VLOOKUP('Random Years'!CA22,'Hist Returns'!$A$12:$D$107,4,FALSE))","v":{"v":1388723.4681844362,"d":"1,388,723"}},{"$f":"($A22-$A21)/365.25*(CD21+(Main!$I28*Main!$D$3))*(1+Main!$I$4+VLOOKUP('Random Years'!CB22,'Hist Returns'!$A$12:$D$107,4,FALSE))","v":{"v":648436.7529933671,"d":"648,437"}},{"$f":"($A22-$A21)/365.25*(CE21+(Main!$I28*Main!$D$3))*(1+Main!$I$4+VLOOKUP('Random Years'!CC22,'Hist Returns'!$A$12:$D$107,4,FALSE))","v":{"v":578583.0421264573,"d":"578,583"}},{"$f":"($A22-$A21)/365.25*(CF21+(Main!$I28*Main!$D$3))*(1+Main!$I$4+VLOOKUP('Random Years'!CD22,'Hist Returns'!$A$12:$D$107,4,FALSE))","v":{"v":734699.8247383686,"d":"734,700"}},{"$f":"($A22-$A21)/365.25*(CG21+(Main!$I28*Main!$D$3))*(1+Main!$I$4+VLOOKUP('Random Years'!CE22,'Hist Returns'!$A$12:$D$107,4,FALSE))","v":{"v":711039.7169365715,"d":"711,040"}},{"$f":"($A22-$A21)/365.25*(CH21+(Main!$I28*Main!$D$3))*(1+Main!$I$4+VLOOKUP('Random Years'!CF22,'Hist Returns'!$A$12:$D$107,4,FALSE))","v":{"v":611942.0562257213,"d":"611,942"}},{"$f":"($A22-$A21)/365.25*(CI21+(Main!$I28*Main!$D$3))*(1+Main!$I$4+VLOOKUP('Random Years'!CG22,'Hist Returns'!$A$12:$D$107,4,FALSE))","v":{"v":1452846.899631419,"d":"1,452,847"}},{"$f":"($A22-$A21)/365.25*(CJ21+(Main!$I28*Main!$D$3))*(1+Main!$I$4+VLOOKUP('Random Years'!CH22,'Hist Returns'!$A$12:$D$107,4,FALSE))","v":{"v":434057.49640549865,"d":"434,057"}},{"$f":"($A22-$A21)/365.25*(CK21+(Main!$I28*Main!$D$3))*(1+Main!$I$4+VLOOKUP('Random Years'!CI22,'Hist Returns'!$A$12:$D$107,4,FALSE))","v":{"v":504631.6268941609,"d":"504,632"}},{"$f":"($A22-$A21)/365.25*(CL21+(Main!$I28*Main!$D$3))*(1+Main!$I$4+VLOOKUP('Random Years'!CJ22,'Hist Returns'!$A$12:$D$107,4,FALSE))","v":{"v":728270.0546256491,"d":"728,270"}},{"$f":"($A22-$A21)/365.25*(CM21+(Main!$I28*Main!$D$3))*(1+Main!$I$4+VLOOKUP('Random Years'!CK22,'Hist Returns'!$A$12:$D$107,4,FALSE))","v":{"v":377776.3974618456,"d":"377,776"}},{"$f":"($A22-$A21)/365.25*(CN21+(Main!$I28*Main!$D$3))*(1+Main!$I$4+VLOOKUP('Random Years'!CL22,'Hist Returns'!$A$12:$D$107,4,FALSE))","v":{"v":779051.3776633276,"d":"779,051"}},{"$f":"($A22-$A21)/365.25*(CO21+(Main!$I28*Main!$D$3))*(1+Main!$I$4+VLOOKUP('Random Years'!CM22,'Hist Returns'!$A$12:$D$107,4,FALSE))","v":{"v":587090.4300221083,"d":"587,090"}},{"$f":"($A22-$A21)/365.25*(CP21+(Main!$I28*Main!$D$3))*(1+Main!$I$4+VLOOKUP('Random Years'!CN22,'Hist Returns'!$A$12:$D$107,4,FALSE))","v":{"v":659235.4233928062,"d":"659,235"}},{"$f":"($A22-$A21)/365.25*(CQ21+(Main!$I28*Main!$D$3))*(1+Main!$I$4+VLOOKUP('Random Years'!CO22,'Hist Returns'!$A$12:$D$107,4,FALSE))","v":{"v":422525.7399818993,"d":"422,526"}},{"$f":"($A22-$A21)/365.25*(CR21+(Main!$I28*Main!$D$3))*(1+Main!$I$4+VLOOKUP('Random Years'!CP22,'Hist Returns'!$A$12:$D$107,4,FALSE))","v":{"v":425763.9295070063,"d":"425,764"}},{"$f":"($A22-$A21)/365.25*(CS21+(Main!$I28*Main!$D$3))*(1+Main!$I$4+VLOOKUP('Random Years'!CQ22,'Hist Returns'!$A$12:$D$107,4,FALSE))","v":{"v":442528.88965345675,"d":"442,529"}},{"$f":"($A22-$A21)/365.25*(CT21+(Main!$I28*Main!$D$3))*(1+Main!$I$4+VLOOKUP('Random Years'!CR22,'Hist Returns'!$A$12:$D$107,4,FALSE))","v":{"v":259945.64712268562,"d":"259,946"}},{"$f":"($A22-$A21)/365.25*(CU21+(Main!$I28*Main!$D$3))*(1+Main!$I$4+VLOOKUP('Random Years'!CS22,'Hist Returns'!$A$12:$D$107,4,FALSE))","v":{"v":1052957.6948234835,"d":"1,052,958"}},{"$f":"($A22-$A21)/365.25*(CV21+(Main!$I28*Main!$D$3))*(1+Main!$I$4+VLOOKUP('Random Years'!CT22,'Hist Returns'!$A$12:$D$107,4,FALSE))","v":{"v":434555.6621607653,"d":"434,556"}},{"$f":"($A22-$A21)/365.25*(CW21+(Main!$I28*Main!$D$3))*(1+Main!$I$4+VLOOKUP('Random Years'!CU22,'Hist Returns'!$A$12:$D$107,4,FALSE))","v":{"v":504945.2966456275,"d":"504,945"}},{"$f":"($A22-$A21)/365.25*(CX21+(Main!$I28*Main!$D$3))*(1+Main!$I$4+VLOOKUP('Random Years'!CV22,'Hist Returns'!$A$12:$D$107,4,FALSE))","v":{"v":484961.3271901117,"d":"484,961"}}]
[{"$f":"Main!A29","v":"2044-12-30"},{"$f":"Main!B29","v":90},{"$f":"($A23-$A22)/365.25*(C22+(Main!$I29*Main!$D$3))*(1+Main!$I$4+VLOOKUP('Random Years'!A23,'Hist Returns'!$A$12:$D$107,4,FALSE))","v":{"v":499305.1065359026,"d":"499,305"}},{"$f":"($A23-$A22)/365.25*(D22+(Main!$I29*Main!$D$3))*(1+Main!$I$4+VLOOKUP('Random Years'!B23,'Hist Returns'!$A$12:$D$107,4,FALSE))","v":{"v":404463.209218959,"d":"404,463"}},{"$f":"($A23-$A22)/365.25*(E22+(Main!$I29*Main!$D$3))*(1+Main!$I$4+VLOOKUP('Random Years'!C23,'Hist Returns'!$A$12:$D$107,4,FALSE))","v":{"v":383199.38864443335,"d":"383,199"}},{"$f":"($A23-$A22)/365.25*(F22+(Main!$I29*Main!$D$3))*(1+Main!$I$4+VLOOKUP('Random Years'!D23,'Hist Returns'!$A$12:$D$107,4,FALSE))","v":{"v":849298.7858479813,"d":"849,299"}},{"$f":"($A23-$A22)/365.25*(G22+(Main!$I29*Main!$D$3))*(1+Main!$I$4+VLOOKUP('Random Years'!E23,'Hist Returns'!$A$12:$D$107,4,FALSE))","v":{"v":1125042.5011142434,"d":"1,125,043"}},{"$f":"($A23-$A22)/365.25*(H22+(Main!$I29*Main!$D$3))*(1+Main!$I$4+VLOOKUP('Random Years'!F23,'Hist Returns'!$A$12:$D$107,4,FALSE))","v":{"v":708426.606564792,"d":"708,427"}},{"$f":"($A23-$A22)/365.25*(I22+(Main!$I29*Main!$D$3))*(1+Main!$I$4+VLOOKUP('Random Years'!G23,'Hist Returns'!$A$12:$D$107,4,FALSE))","v":{"v":602179.9112233167,"d":"602,180"}},{"$f":"($A23-$A22)/365.25*(J22+(Main!$I29*Main!$D$3))*(1+Main!$I$4+VLOOKUP('Random Years'!H23,'Hist Returns'!$A$12:$D$107,4,FALSE))","v":{"v":909742.4942389509,"d":"909,742"}},{"$f":"($A23-$A22)/365.25*(K22+(Main!$I29*Main!$D$3))*(1+Main!$I$4+VLOOKUP('Random Years'!I23,'Hist Returns'!$A$12:$D$107,4,FALSE))","v":{"v":706410.0649835363,"d":"706,410"}},{"$f":"($A23-$A22)/365.25*(L22+(Main!$I29*Main!$D$3))*(1+Main!$I$4+VLOOKUP('Random Years'!J23,'Hist Returns'!$A$12:$D$107,4,FALSE))","v":{"v":500841.81712255056,"d":"500,842"}},{"$f":"($A23-$A22)/365.25*(M22+(Main!$I29*Main!$D$3))*(1+Main!$I$4+VLOOKUP('Random Years'!K23,'Hist Returns'!$A$12:$D$107,4,FALSE))","v":{"v":306217.6160004639,"d":"306,218"}},{"$f":"($A23-$A22)/365.25*(N22+(Main!$I29*Main!$D$3))*(1+Main!$I$4+VLOOKUP('Random Years'!L23,'Hist Returns'!$A$12:$D$107,4,FALSE))","v":{"v":659701.5023395121,"d":"659,702"}},{"$f":"($A23-$A22)/365.25*(O22+(Main!$I29*Main!$D$3))*(1+Main!$I$4+VLOOKUP('Random Years'!M23,'Hist Returns'!$A$12:$D$107,4,FALSE))","v":{"v":633943.8196771885,"d":"633,944"}},{"$f":"($A23-$A22)/365.25*(P22+(Main!$I29*Main!$D$3))*(1+Main!$I$4+VLOOKUP('Random Years'!N23,'Hist Returns'!$A$12:$D$107,4,FALSE))","v":{"v":415041.0287361134,"d":"415,041"}},{"$f":"($A23-$A22)/365.25*(Q22+(Main!$I29*Main!$D$3))*(1+Main!$I$4+VLOOKUP('Random Years'!O23,'Hist Returns'!$A$12:$D$107,4,FALSE))","v":{"v":425299.30762707,"d":"425,299"}},{"$f":"($A23-$A22)/365.25*(R22+(Main!$I29*Main!$D$3))*(1+Main!$I$4+VLOOKUP('Random Years'!P23,'Hist Returns'!$A$12:$D$107,4,FALSE))","v":{"v":544021.862392331,"d":"544,022"}},{"$f":"($A23-$A22)/365.25*(S22+(Main!$I29*Main!$D$3))*(1+Main!$I$4+VLOOKUP('Random Years'!Q23,'Hist Returns'!$A$12:$D$107,4,FALSE))","v":{"v":252715.5903330929,"d":"252,716"}},{"$f":"($A23-$A22)/365.25*(T22+(Main!$I29*Main!$D$3))*(1+Main!$I$4+VLOOKUP('Random Years'!R23,'Hist Returns'!$A$12:$D$107,4,FALSE))","v":{"v":400140.5496205863,"d":"400,141"}},{"$f":"($A23-$A22)/365.25*(U22+(Main!$I29*Main!$D$3))*(1+Main!$I$4+VLOOKUP('Random Years'!S23,'Hist Returns'!$A$12:$D$107,4,FALSE))","v":{"v":477277.33868747274,"d":"477,277"}},{"$f":"($A23-$A22)/365.25*(V22+(Main!$I29*Main!$D$3))*(1+Main!$I$4+VLOOKUP('Random Years'!T23,'Hist Returns'!$A$12:$D$107,4,FALSE))","v":{"v":877948.7702601948,"d":"877,949"}},{"$f":"($A23-$A22)/365.25*(W22+(Main!$I29*Main!$D$3))*(1+Main!$I$4+VLOOKUP('Random Years'!U23,'Hist Returns'!$A$12:$D$107,4,FALSE))","v":{"v":629383.9463214632,"d":"629,384"}},{"$f":"($A23-$A22)/365.25*(X22+(Main!$I29*Main!$D$3))*(1+Main!$I$4+VLOOKUP('Random Years'!V23,'Hist Returns'!$A$12:$D$107,4,FALSE))","v":{"v":574570.8106727565,"d":"574,571"}},{"$f":"($A23-$A22)/365.25*(Y22+(Main!$I29*Main!$D$3))*(1+Main!$I$4+VLOOKUP('Random Years'!W23,'Hist Returns'!$A$12:$D$107,4,FALSE))","v":{"v":300294.4989881204,"d":"300,294"}},{"$f":"($A23-$A22)/365.25*(Z22+(Main!$I29*Main!$D$3))*(1+Main!$I$4+VLOOKUP('Random Years'!X23,'Hist Returns'!$A$12:$D$107,4,FALSE))","v":{"v":1015857.2833071739,"d":"1,015,857"}},{"$f":"($A23-$A22)/365.25*(AA22+(Main!$I29*Main!$D$3))*(1+Main!$I$4+VLOOKUP('Random Years'!Y23,'Hist Returns'!$A$12:$D$107,4,FALSE))","v":{"v":583266.4770063625,"d":"583,266"}},{"$f":"($A23-$A22)/365.25*(AB22+(Main!$I29*Main!$D$3))*(1+Main!$I$4+VLOOKUP('Random Years'!Z23,'Hist Returns'!$A$12:$D$107,4,FALSE))","v":{"v":432447.4449110826,"d":"432,447"}},{"$f":"($A23-$A22)/365.25*(AC22+(Main!$I29*Main!$D$3))*(1+Main!$I$4+VLOOKUP('Random Years'!AA23,'Hist Returns'!$A$12:$D$107,4,FALSE))","v":{"v":461135.196454586,"d":"461,135"}},{"$f":"($A23-$A22)/365.25*(AD22+(Main!$I29*Main!$D$3))*(1+Main!$I$4+VLOOKUP('Random Years'!AB23,'Hist Returns'!$A$12:$D$107,4,FALSE))","v":{"v":662140.0495158933,"d":"662,140"}},{"$f":"($A23-$A22)/365.25*(AE22+(Main!$I29*Main!$D$3))*(1+Main!$I$4+VLOOKUP('Random Years'!AC23,'Hist Returns'!$A$12:$D$107,4,FALSE))","v":{"v":790443.9350098516,"d":"790,444"}},{"$f":"($A23-$A22)/365.25*(AF22+(Main!$I29*Main!$D$3))*(1+Main!$I$4+VLOOKUP('Random Years'!AD23,'Hist Returns'!$A$12:$D$107,4,FALSE))","v":{"v":409988.3050218588,"d":"409,988"}},{"$f":"($A23-$A22)/365.25*(AG22+(Main!$I29*Main!$D$3))*(1+Main!$I$4+VLOOKUP('Random Years'!AE23,'Hist Returns'!$A$12:$D$107,4,FALSE))","v":{"v":677403.8692253435,"d":"677,404"}},{"$f":"($A23-$A22)/365.25*(AH22+(Main!$I29*Main!$D$3))*(1+Main!$I$4+VLOOKUP('Random Years'!AF23,'Hist Returns'!$A$12:$D$107,4,FALSE))","v":{"v":481172.93776002567,"d":"481,173"}},{"$f":"($A23-$A22)/365.25*(AI22+(Main!$I29*Main!$D$3))*(1+Main!$I$4+VLOOKUP('Random Years'!AG23,'Hist Returns'!$A$12:$D$107,4,FALSE))","v":{"v":464800.8207329809,"d":"464,801"}},{"$f":"($A23-$A22)/365.25*(AJ22+(Main!$I29*Main!$D$3))*(1+Main!$I$4+VLOOKUP('Random Years'!AH23,'Hist Returns'!$A$12:$D$107,4,FALSE))","v":{"v":746862.0955977816,"d":"746,862"}},{"$f":"($A23-$A22)/365.25*(AK22+(Main!$I29*Main!$D$3))*(1+Main!$I$4+VLOOKUP('Random Years'!AI23,'Hist Returns'!$A$12:$D$107,4,FALSE))","v":{"v":775560.8061343229,"d":"775,561"}},{"$f":"($A23-$A22)/365.25*(AL22+(Main!$I29*Main!$D$3))*(1+Main!$I$4+VLOOKUP('Random Years'!AJ23,'Hist Returns'!$A$12:$D$107,4,FALSE))","v":{"v":592974.1311447176,"d":"592,974"}},{"$f":"($A23-$A22)/365.25*(AM22+(Main!$I29*Main!$D$3))*(1+Main!$I$4+VLOOKUP('Random Years'!AK23,'Hist Returns'!$A$12:$D$107,4,FALSE))","v":{"v":731496.3470345055,"d":"731,496"}},{"$f":"($A23-$A22)/365.25*(AN22+(Main!$I29*Main!$D$3))*(1+Main!$I$4+VLOOKUP('Random Years'!AL23,'Hist Returns'!$A$12:$D$107,4,FALSE))","v":{"v":528481.5673283731,"d":"528,482"}},{"$f":"($A23-$A22)/365.25*(AO22+(Main!$I29*Main!$D$3))*(1+Main!$I$4+VLOOKUP('Random Years'!AM23,'Hist Returns'!$A$12:$D$107,4,FALSE))","v":{"v":441310.49706269626,"d":"441,310"}},{"$f":"($A23-$A22)/365.25*(AP22+(Main!$I29*Main!$D$3))*(1+Main!$I$4+VLOOKUP('Random Years'!AN23,'Hist Returns'!$A$12:$D$107,4,FALSE))","v":{"v":628333.3291048009,"d":"628,333"}},{"$f":"($A23-$A22)/365.25*(AQ22+(Main!$I29*Main!$D$3))*(1+Main!$I$4+VLOOKUP('Random Years'!AO23,'Hist Returns'!$A$12:$D$107,4,FALSE))","v":{"v":365814.9530927662,"d":"365,815"}},{"$f":"($A23-$A22)/365.25*(AR22+(Main!$I29*Main!$D$3))*(1+Main!$I$4+VLOOKUP('Random Years'!AP23,'Hist Returns'!$A$12:$D$107,4,FALSE))","v":{"v":580947.6230813395,"d":"580,948"}},{"$f":"($A23-$A22)/365.25*(AS22+(Main!$I29*Main!$D$3))*(1+Main!$I$4+VLOOKUP('Random Years'!AQ23,'Hist Returns'!$A$12:$D$107,4,FALSE))","v":{"v":805916.339220396,"d":"805,916"}},{"$f":"($A23-$A22)/365.25*(AT22+(Main!$I29*Main!$D$3))*(1+Main!$I$4+VLOOKUP('Random Years'!AR23,'Hist Returns'!$A$12:$D$107,4,FALSE))","v":{"v":994609.5548111026,"d":"994,610"}},{"$f":"($A23-$A22)/365.25*(AU22+(Main!$I29*Main!$D$3))*(1+Main!$I$4+VLOOKUP('Random Years'!AS23,'Hist Returns'!$A$12:$D$107,4,FALSE))","v":{"v":361880.1816092646,"d":"361,880"}},{"$f":"($A23-$A22)/365.25*(AV22+(Main!$I29*Main!$D$3))*(1+Main!$I$4+VLOOKUP('Random Years'!AT23,'Hist Returns'!$A$12:$D$107,4,FALSE))","v":{"v":656543.4067823001,"d":"656,543"}},{"$f":"($A23-$A22)/365.25*(AW22+(Main!$I29*Main!$D$3))*(1+Main!$I$4+VLOOKUP('Random Years'!AU23,'Hist Returns'!$A$12:$D$107,4,FALSE))","v":{"v":442527.86121836083,"d":"442,528"}},{"$f":"($A23-$A22)/365.25*(AX22+(Main!$I29*Main!$D$3))*(1+Main!$I$4+VLOOKUP('Random Years'!AV23,'Hist Returns'!$A$12:$D$107,4,FALSE))","v":{"v":615535.2317705831,"d":"615,535"}},{"$f":"($A23-$A22)/365.25*(AY22+(Main!$I29*Main!$D$3))*(1+Main!$I$4+VLOOKUP('Random Years'!AW23,'Hist Returns'!$A$12:$D$107,4,FALSE))","v":{"v":267936.9892945741,"d":"267,937"}},{"$f":"($A23-$A22)/365.25*(AZ22+(Main!$I29*Main!$D$3))*(1+Main!$I$4+VLOOKUP('Random Years'!AX23,'Hist Returns'!$A$12:$D$107,4,FALSE))","v":{"v":411903.79423326196,"d":"411,904"}},{"$f":"($A23-$A22)/365.25*(BA22+(Main!$I29*Main!$D$3))*(1+Main!$I$4+VLOOKUP('Random Years'!AY23,'Hist Returns'!$A$12:$D$107,4,FALSE))","v":{"v":473584.5463429774,"d":"473,585"}},{"$f":"($A23-$A22)/365.25*(BB22+(Main!$I29*Main!$D$3))*(1+Main!$I$4+VLOOKUP('Random Years'!AZ23,'Hist Returns'!$A$12:$D$107,4,FALSE))","v":{"v":315717.62952376157,"d":"315,718"}},{"$f":"($A23-$A22)/365.25*(BC22+(Main!$I29*Main!$D$3))*(1+Main!$I$4+VLOOKUP('Random Years'!BA23,'Hist Returns'!$A$12:$D$107,4,FALSE))","v":{"v":440138.37319691194,"d":"440,138"}},{"$f":"($A23-$A22)/365.25*(BD22+(Main!$I29*Main!$D$3))*(1+Main!$I$4+VLOOKUP('Random Years'!BB23,'Hist Returns'!$A$12:$D$107,4,FALSE))","v":{"v":471564.2330235709,"d":"471,564"}},{"$f":"($A23-$A22)/365.25*(BE22+(Main!$I29*Main!$D$3))*(1+Main!$I$4+VLOOKUP('Random Years'!BC23,'Hist Returns'!$A$12:$D$107,4,FALSE))","v":{"v":784290.2412213177,"d":"784,290"}},{"$f":"($A23-$A22)/365.25*(BF22+(Main!$I29*Main!$D$3))*(1+Main!$I$4+VLOOKUP('Random Years'!BD23,'Hist Returns'!$A$12:$D$107,4,FALSE))","v":{"v":881442.2650042273,"d":"881,442"}},{"$f":"($A23-$A22)/365.25*(BG22+(Main!$I29*Main!$D$3))*(1+Main!$I$4+VLOOKUP('Random Years'!BE23,'Hist Returns'!$A$12:$D$107,4,FALSE))","v":{"v":409599.06243512296,"d":"409,599"}},{"$f":"($A23-$A22)/365.25*(BH22+(Main!$I29*Main!$D$3))*(1+Main!$I$4+VLOOKUP('Random Years'!BF23,'Hist Returns'!$A$12:$D$107,4,FALSE))","v":{"v":415642.14120314945,"d":"415,642"}},{"$f":"($A23-$A22)/365.25*(BI22+(Main!$I29*Main!$D$3))*(1+Main!$I$4+VLOOKUP('Random Years'!BG23,'Hist Returns'!$A$12:$D$107,4,FALSE))","v":{"v":1358988.9448984414,"d":"1,358,989"}},{"$f":"($A23-$A22)/365.25*(BJ22+(Main!$I29*Main!$D$3))*(1+Main!$I$4+VLOOKUP('Random Years'!BH23,'Hist Returns'!$A$12:$D$107,4,FALSE))","v":{"v":811318.4013846429,"d":"811,318"}},{"$f":"($A23-$A22)/365.25*(BK22+(Main!$I29*Main!$D$3))*(1+Main!$I$4+VLOOKUP('Random Years'!BI23,'Hist Returns'!$A$12:$D$107,4,FALSE))","v":{"v":653814.6374346208,"d":"653,815"}},{"$f":"($A23-$A22)/365.25*(BL22+(Main!$I29*Main!$D$3))*(1+Main!$I$4+VLOOKUP('Random Years'!BJ23,'Hist Returns'!$A$12:$D$107,4,FALSE))","v":{"v":480555.27155901474,"d":"480,555"}},{"$f":"($A23-$A22)/365.25*(BM22+(Main!$I29*Main!$D$3))*(1+Main!$I$4+VLOOKUP('Random Years'!BK23,'Hist Returns'!$A$12:$D$107,4,FALSE))","v":{"v":503335.5364054005,"d":"503,336"}},{"$f":"($A23-$A22)/365.25*(BN22+(Main!$I29*Main!$D$3))*(1+Main!$I$4+VLOOKUP('Random Years'!BL23,'Hist Returns'!$A$12:$D$107,4,FALSE))","v":{"v":1116378.7536136848,"d":"1,116,379"}},{"$f":"($A23-$A22)/365.25*(BO22+(Main!$I29*Main!$D$3))*(1+Main!$I$4+VLOOKUP('Random Years'!BM23,'Hist Returns'!$A$12:$D$107,4,FALSE))","v":{"v":352865.3183526838,"d":"352,865"}},{"$f":"($A23-$A22)/365.25*(BP22+(Main!$I29*Main!$D$3))*(1+Main!$I$4+VLOOKUP('Random Years'!BN23,'Hist Returns'!$A$12:$D$107,4,FALSE))","v":{"v":537578.9056152469,"d":"537,579"}},{"$f":"($A23-$A22)/365.25*(BQ22+(Main!$I29*Main!$D$3))*(1+Main!$I$4+VLOOKUP('Random Years'!BO23,'Hist Returns'!$A$12:$D$107,4,FALSE))","v":{"v":463237.2008153578,"d":"463,237"}},{"$f":"($A23-$A22)/365.25*(BR22+(Main!$I29*Main!$D$3))*(1+Main!$I$4+VLOOKUP('Random Years'!BP23,'Hist Returns'!$A$12:$D$107,4,FALSE))","v":{"v":466366.70444325206,"d":"466,367"}},{"$f":"($A23-$A22)/365.25*(BS22+(Main!$I29*Main!$D$3))*(1+Main!$I$4+VLOOKUP('Random Years'!BQ23,'Hist Returns'!$A$12:$D$107,4,FALSE))","v":{"v":671005.0804661755,"d":"671,005"}},{"$f":"($A23-$A22)/365.25*(BT22+(Main!$I29*Main!$D$3))*(1+Main!$I$4+VLOOKUP('Random Years'!BR23,'Hist Returns'!$A$12:$D$107,4,FALSE))","v":{"v":288943.787237998,"d":"288,944"}},{"$f":"($A23-$A22)/365.25*(BU22+(Main!$I29*Main!$D$3))*(1+Main!$I$4+VLOOKUP('Random Years'!BS23,'Hist Returns'!$A$12:$D$107,4,FALSE))","v":{"v":602175.8002235366,"d":"602,176"}},{"$f":"($A23-$A22)/365.25*(BV22+(Main!$I29*Main!$D$3))*(1+Main!$I$4+VLOOKUP('Random Years'!BT23,'Hist Returns'!$A$12:$D$107,4,FALSE))","v":{"v":180932.90557366353,"d":"180,933"}},{"$f":"($A23-$A22)/365.25*(BW22+(Main!$I29*Main!$D$3))*(1+Main!$I$4+VLOOKUP('Random Years'!BU23,'Hist Returns'!$A$12:$D$107,4,FALSE))","v":{"v":406224.9572390292,"d":"406,225"}},{"$f":"($A23-$A22)/365.25*(BX22+(Main!$I29*Main!$D$3))*(1+Main!$I$4+VLOOKUP('Random Years'!BV23,'Hist Returns'!$A$12:$D$107,4,FALSE))","v":{"v":484726.5498966374,"d":"484,727"}},{"$f":"($A23-$A22)/365.25*(BY22+(Main!$I29*Main!$D$3))*(1+Main!$I$4+VLOOKUP('Random Years'!BW23,'Hist Returns'!$A$12:$D$107,4,FALSE))","v":{"v":429169.748779431,"d":"429,170"}},{"$f":"($A23-$A22)/365.25*(BZ22+(Main!$I29*Main!$D$3))*(1+Main!$I$4+VLOOKUP('Random Years'!BX23,'Hist Returns'!$A$12:$D$107,4,FALSE))","v":{"v":281734.5420535125,"d":"281,735"}},{"$f":"($A23-$A22)/365.25*(CA22+(Main!$I29*Main!$D$3))*(1+Main!$I$4+VLOOKUP('Random Years'!BY23,'Hist Returns'!$A$12:$D$107,4,FALSE))","v":{"v":926775.9963788132,"d":"926,776"}},{"$f":"($A23-$A22)/365.25*(CB22+(Main!$I29*Main!$D$3))*(1+Main!$I$4+VLOOKUP('Random Years'!BZ23,'Hist Returns'!$A$12:$D$107,4,FALSE))","v":{"v":636888.2066975116,"d":"636,888"}},{"$f":"($A23-$A22)/365.25*(CC22+(Main!$I29*Main!$D$3))*(1+Main!$I$4+VLOOKUP('Random Years'!CA23,'Hist Returns'!$A$12:$D$107,4,FALSE))","v":{"v":1437235.2684312207,"d":"1,437,235"}},{"$f":"($A23-$A22)/365.25*(CD22+(Main!$I29*Main!$D$3))*(1+Main!$I$4+VLOOKUP('Random Years'!CB23,'Hist Returns'!$A$12:$D$107,4,FALSE))","v":{"v":720967.8392236771,"d":"720,968"}},{"$f":"($A23-$A22)/365.25*(CE22+(Main!$I29*Main!$D$3))*(1+Main!$I$4+VLOOKUP('Random Years'!CC23,'Hist Returns'!$A$12:$D$107,4,FALSE))","v":{"v":629916.5060577358,"d":"629,917"}},{"$f":"($A23-$A22)/365.25*(CF22+(Main!$I29*Main!$D$3))*(1+Main!$I$4+VLOOKUP('Random Years'!CD23,'Hist Returns'!$A$12:$D$107,4,FALSE))","v":{"v":771550.3393928383,"d":"771,550"}},{"$f":"($A23-$A22)/365.25*(CG22+(Main!$I29*Main!$D$3))*(1+Main!$I$4+VLOOKUP('Random Years'!CE23,'Hist Returns'!$A$12:$D$107,4,FALSE))","v":{"v":702851.9758753882,"d":"702,852"}},{"$f":"($A23-$A22)/365.25*(CH22+(Main!$I29*Main!$D$3))*(1+Main!$I$4+VLOOKUP('Random Years'!CF23,'Hist Returns'!$A$12:$D$107,4,FALSE))","v":{"v":582397.8192692355,"d":"582,398"}},{"$f":"($A23-$A22)/365.25*(CI22+(Main!$I29*Main!$D$3))*(1+Main!$I$4+VLOOKUP('Random Years'!CG23,'Hist Returns'!$A$12:$D$107,4,FALSE))","v":{"v":1191185.2030731367,"d":"1,191,185"}},{"$f":"($A23-$A22)/365.25*(CJ22+(Main!$I29*Main!$D$3))*(1+Main!$I$4+VLOOKUP('Random Years'!CH23,'Hist Returns'!$A$12:$D$107,4,FALSE))","v":{"v":455615.12834195356,"d":"455,615"}},{"$f":"($A23-$A22)/365.25*(CK22+(Main!$I29*Main!$D$3))*(1+Main!$I$4+VLOOKUP('Random Years'!CI23,'Hist Returns'!$A$12:$D$107,4,FALSE))","v":{"v":558980.3989886277,"d":"558,980"}},{"$f":"($A23-$A22)/365.25*(CL22+(Main!$I29*Main!$D$3))*(1+Main!$I$4+VLOOKUP('Random Years'!CJ23,'Hist Returns'!$A$12:$D$107,4,FALSE))","v":{"v":841559.1415998578,"d":"841,559"}},{"$f":"($A23-$A22)/365.25*(CM22+(Main!$I29*Main!$D$3))*(1+Main!$I$4+VLOOKUP('Random Years'!CK23,'Hist Returns'!$A$12:$D$107,4,FALSE))","v":{"v":382684.95830473676,"d":"382,685"}},{"$f":"($A23-$A22)/365.25*(CN22+(Main!$I29*Main!$D$3))*(1+Main!$I$4+VLOOKUP('Random Years'!CL23,'Hist Returns'!$A$12:$D$107,4,FALSE))","v":{"v":809033.664347124,"d":"809,034"}},{"$f":"($A23-$A22)/365.25*(CO22+(Main!$I29*Main!$D$3))*(1+Main!$I$4+VLOOKUP('Random Years'!CM23,'Hist Returns'!$A$12:$D$107,4,FALSE))","v":{"v":558660.8931124225,"d":"558,661"}},{"$f":"($A23-$A22)/365.25*(CP22+(Main!$I29*Main!$D$3))*(1+Main!$I$4+VLOOKUP('Random Years'!CN23,'Hist Returns'!$A$12:$D$107,4,FALSE))","v":{"v":701219.8003706803,"d":"701,220"}},{"$f":"($A23-$A22)/365.25*(CQ22+(Main!$I29*Main!$D$3))*(1+Main!$I$4+VLOOKUP('Random Years'!CO23,'Hist Returns'!$A$12:$D$107,4,FALSE))","v":{"v":490002.9217031172,"d":"490,003"}},{"$f":"($A23-$A22)/365.25*(CR22+(Main!$I29*Main!$D$3))*(1+Main!$I$4+VLOOKUP('Random Years'!CP23,'Hist Returns'!$A$12:$D$107,4,FALSE))","v":{"v":426118.54174503137,"d":"426,119"}},{"$f":"($A23-$A22)/365.25*(CS22+(Main!$I29*Main!$D$3))*(1+Main!$I$4+VLOOKUP('Random Years'!CQ23,'Hist Returns'!$A$12:$D$107,4,FALSE))","v":{"v":404669.0682450914,"d":"404,669"}},{"$f":"($A23-$A22)/365.25*(CT22+(Main!$I29*Main!$D$3))*(1+Main!$I$4+VLOOKUP('Random Years'!CR23,'Hist Returns'!$A$12:$D$107,4,FALSE))","v":{"v":228940.93567958908,"d":"228,941"}},{"$f":"($A23-$A22)/365.25*(CU22+(Main!$I29*Main!$D$3))*(1+Main!$I$4+VLOOKUP('Random Years'!CS23,'Hist Returns'!$A$12:$D$107,4,FALSE))","v":{"v":1136395.3689013328,"d":"1,136,395"}},{"$f":"($A23-$A22)/365.25*(CV22+(Main!$I29*Main!$D$3))*(1+Main!$I$4+VLOOKUP('Random Years'!CT23,'Hist Returns'!$A$12:$D$107,4,FALSE))","v":{"v":501128.9650145834,"d":"501,129"}},{"$f":"($A23-$A22)/365.25*(CW22+(Main!$I29*Main!$D$3))*(1+Main!$I$4+VLOOKUP('Random Years'!CU23,'Hist Returns'!$A$12:$D$107,4,FALSE))","v":{"v":524874.5574671238,"d":"524,875"}},{"$f":"($A23-$A22)/365.25*(CX22+(Main!$I29*Main!$D$3))*(1+Main!$I$4+VLOOKUP('Random Years'!CV23,'Hist Returns'!$A$12:$D$107,4,FALSE))","v":{"v":491896.9830792555,"d":"491,897"}}]
[{"$f":"Main!A30","v":"2045-12-30"},{"$f":"Main!B30","v":91},{"$f":"($A24-$A23)/365.25*(C23+(Main!$I30*Main!$D$3))*(1+Main!$I$4+VLOOKUP('Random Years'!A24,'Hist Returns'!$A$12:$D$107,4,FALSE))","v":{"v":486263.5807741702,"d":"486,264"}},{"$f":"($A24-$A23)/365.25*(D23+(Main!$I30*Main!$D$3))*(1+Main!$I$4+VLOOKUP('Random Years'!B24,'Hist Returns'!$A$12:$D$107,4,FALSE))","v":{"v":384679.25039539125,"d":"384,679"}},{"$f":"($A24-$A23)/365.25*(E23+(Main!$I30*Main!$D$3))*(1+Main!$I$4+VLOOKUP('Random Years'!C24,'Hist Returns'!$A$12:$D$107,4,FALSE))","v":{"v":406472.69823257776,"d":"406,473"}},{"$f":"($A24-$A23)/365.25*(F23+(Main!$I30*Main!$D$3))*(1+Main!$I$4+VLOOKUP('Random Years'!D24,'Hist Returns'!$A$12:$D$107,4,FALSE))","v":{"v":800442.3179779038,"d":"800,442"}},{"$f":"($A24-$A23)/365.25*(G23+(Main!$I30*Main!$D$3))*(1+Main!$I$4+VLOOKUP('Random Years'!E24,'Hist Returns'!$A$12:$D$107,4,FALSE))","v":{"v":1336742.7852281248,"d":"1,336,743"}},{"$f":"($A24-$A23)/365.25*(H23+(Main!$I30*Main!$D$3))*(1+Main!$I$4+VLOOKUP('Random Years'!F24,'Hist Returns'!$A$12:$D$107,4,FALSE))","v":{"v":722654.9668553917,"d":"722,655"}},{"$f":"($A24-$A23)/365.25*(I23+(Main!$I30*Main!$D$3))*(1+Main!$I$4+VLOOKUP('Random Years'!G24,'Hist Returns'!$A$12:$D$107,4,FALSE))","v":{"v":608055.6058835428,"d":"608,056"}},{"$f":"($A24-$A23)/365.25*(J23+(Main!$I30*Main!$D$3))*(1+Main!$I$4+VLOOKUP('Random Years'!H24,'Hist Returns'!$A$12:$D$107,4,FALSE))","v":{"v":937476.2399748865,"d":"937,476"}},{"$f":"($A24-$A23)/365.25*(K23+(Main!$I30*Main!$D$3))*(1+Main!$I$4+VLOOKUP('Random Years'!I24,'Hist Returns'!$A$12:$D$107,4,FALSE))","v":{"v":697274.2554664662,"d":"697,274"}},{"$f":"($A24-$A23)/365.25*(L23+(Main!$I30*Main!$D$3))*(1+Main!$I$4+VLOOKUP('Random Years'!J24,'Hist Returns'!$A$12:$D$107,4,FALSE))","v":{"v":503466.29245937016,"d":"503,466"}},{"$f":"($A24-$A23)/365.25*(M23+(Main!$I30*Main!$D$3))*(1+Main!$I$4+VLOOKUP('Random Years'!K24,'Hist Returns'!$A$12:$D$107,4,FALSE))","v":{"v":335227.39536190755,"d":"335,227"}},{"$f":"($A24-$A23)/365.25*(N23+(Main!$I30*Main!$D$3))*(1+Main!$I$4+VLOOKUP('Random Years'!L24,'Hist Returns'!$A$12:$D$107,4,FALSE))","v":{"v":702829.4517733224,"d":"702,829"}},{"$f":"($A24-$A23)/365.25*(O23+(Main!$I30*Main!$D$3))*(1+Main!$I$4+VLOOKUP('Random Years'!M24,'Hist Returns'!$A$12:$D$107,4,FALSE))","v":{"v":661050.0437807946,"d":"661,050"}},{"$f":"($A24-$A23)/365.25*(P23+(Main!$I30*Main!$D$3))*(1+Main!$I$4+VLOOKUP('Random Years'!N24,'Hist Returns'!$A$12:$D$107,4,FALSE))","v":{"v":471102.37085578067,"d":"471,102"}},{"$f":"($A24-$A23)/365.25*(Q23+(Main!$I30*Main!$D$3))*(1+Main!$I$4+VLOOKUP('Random Years'!O24,'Hist Returns'!$A$12:$D$107,4,FALSE))","v":{"v":454241.8502956038,"d":"454,242"}},{"$f":"($A24-$A23)/365.25*(R23+(Main!$I30*Main!$D$3))*(1+Main!$I$4+VLOOKUP('Random Years'!P24,'Hist Returns'!$A$12:$D$107,4,FALSE))","v":{"v":536063.4779221378,"d":"536,063"}},{"$f":"($A24-$A23)/365.25*(S23+(Main!$I30*Main!$D$3))*(1+Main!$I$4+VLOOKUP('Random Years'!Q24,'Hist Returns'!$A$12:$D$107,4,FALSE))","v":{"v":229314.23332769767,"d":"229,314"}},{"$f":"($A24-$A23)/365.25*(T23+(Main!$I30*Main!$D$3))*(1+Main!$I$4+VLOOKUP('Random Years'!R24,'Hist Returns'!$A$12:$D$107,4,FALSE))","v":{"v":410261.05045753607,"d":"410,261"}},{"$f":"($A24-$A23)/365.25*(U23+(Main!$I30*Main!$D$3))*(1+Main!$I$4+VLOOKUP('Random Years'!S24,'Hist Returns'!$A$12:$D$107,4,FALSE))","v":{"v":477694.85442148015,"d":"477,695"}},{"$f":"($A24-$A23)/365.25*(V23+(Main!$I30*Main!$D$3))*(1+Main!$I$4+VLOOKUP('Random Years'!T24,'Hist Returns'!$A$12:$D$107,4,FALSE))","v":{"v":891824.7726166954,"d":"891,825"}},{"$f":"($A24-$A23)/365.25*(W23+(Main!$I30*Main!$D$3))*(1+Main!$I$4+VLOOKUP('Random Years'!U24,'Hist Returns'!$A$12:$D$107,4,FALSE))","v":{"v":615869.5084528183,"d":"615,870"}},{"$f":"($A24-$A23)/365.25*(X23+(Main!$I30*Main!$D$3))*(1+Main!$I$4+VLOOKUP('Random Years'!V24,'Hist Returns'!$A$12:$D$107,4,FALSE))","v":{"v":640225.6091014615,"d":"640,226"}},{"$f":"($A24-$A23)/365.25*(Y23+(Main!$I30*Main!$D$3))*(1+Main!$I$4+VLOOKUP('Random Years'!W24,'Hist Returns'!$A$12:$D$107,4,FALSE))","v":{"v":296021.2990987915,"d":"296,021"}},{"$f":"($A24-$A23)/365.25*(Z23+(Main!$I30*Main!$D$3))*(1+Main!$I$4+VLOOKUP('Random Years'!X24,'Hist Returns'!$A$12:$D$107,4,FALSE))","v":{"v":1092148.561789493,"d":"1,092,149"}},{"$f":"($A24-$A23)/365.25*(AA23+(Main!$I30*Main!$D$3))*(1+Main!$I$4+VLOOKUP('Random Years'!Y24,'Hist Returns'!$A$12:$D$107,4,FALSE))","v":{"v":575551.8335580775,"d":"575,552"}},{"$f":"($A24-$A23)/365.25*(AB23+(Main!$I30*Main!$D$3))*(1+Main!$I$4+VLOOKUP('Random Years'!Z24,'Hist Returns'!$A$12:$D$107,4,FALSE))","v":{"v":454409.42602801713,"d":"454,409"}},{"$f":"($A24-$A23)/365.25*(AC23+(Main!$I30*Main!$D$3))*(1+Main!$I$4+VLOOKUP('Random Years'!AA24,'Hist Returns'!$A$12:$D$107,4,FALSE))","v":{"v":437661.8569896596,"d":"437,662"}},{"$f":"($A24-$A23)/365.25*(AD23+(Main!$I30*Main!$D$3))*(1+Main!$I$4+VLOOKUP('Random Years'!AB24,'Hist Returns'!$A$12:$D$107,4,FALSE))","v":{"v":724120.7427510077,"d":"724,121"}},{"$f":"($A24-$A23)/365.25*(AE23+(Main!$I30*Main!$D$3))*(1+Main!$I$4+VLOOKUP('Random Years'!AC24,'Hist Returns'!$A$12:$D$107,4,FALSE))","v":{"v":796512.2328198557,"d":"796,512"}},{"$f":"($A24-$A23)/365.25*(AF23+(Main!$I30*Main!$D$3))*(1+Main!$I$4+VLOOKUP('Random Years'!AD24,'Hist Returns'!$A$12:$D$107,4,FALSE))","v":{"v":412813.23763689713,"d":"412,813"}},{"$f":"($A24-$A23)/365.25*(AG23+(Main!$I30*Main!$D$3))*(1+Main!$I$4+VLOOKUP('Random Years'!AE24,'Hist Returns'!$A$12:$D$107,4,FALSE))","v":{"v":675190.6651794224,"d":"675,191"}},{"$f":"($A24-$A23)/365.25*(AH23+(Main!$I30*Main!$D$3))*(1+Main!$I$4+VLOOKUP('Random Years'!AF24,'Hist Returns'!$A$12:$D$107,4,FALSE))","v":{"v":476292.5948891194,"d":"476,293"}},{"$f":"($A24-$A23)/365.25*(AI23+(Main!$I30*Main!$D$3))*(1+Main!$I$4+VLOOKUP('Random Years'!AG24,'Hist Returns'!$A$12:$D$107,4,FALSE))","v":{"v":505976.09670758375,"d":"505,976"}},{"$f":"($A24-$A23)/365.25*(AJ23+(Main!$I30*Main!$D$3))*(1+Main!$I$4+VLOOKUP('Random Years'!AH24,'Hist Returns'!$A$12:$D$107,4,FALSE))","v":{"v":839554.9084161719,"d":"839,555"}},{"$f":"($A24-$A23)/365.25*(AK23+(Main!$I30*Main!$D$3))*(1+Main!$I$4+VLOOKUP('Random Years'!AI24,'Hist Returns'!$A$12:$D$107,4,FALSE))","v":{"v":782788.3352134038,"d":"782,788"}},{"$f":"($A24-$A23)/365.25*(AL23+(Main!$I30*Main!$D$3))*(1+Main!$I$4+VLOOKUP('Random Years'!AJ24,'Hist Returns'!$A$12:$D$107,4,FALSE))","v":{"v":552472.8772733553,"d":"552,473"}},{"$f":"($A24-$A23)/365.25*(AM23+(Main!$I30*Main!$D$3))*(1+Main!$I$4+VLOOKUP('Random Years'!AK24,'Hist Returns'!$A$12:$D$107,4,FALSE))","v":{"v":724910.012354281,"d":"724,910"}},{"$f":"($A24-$A23)/365.25*(AN23+(Main!$I30*Main!$D$3))*(1+Main!$I$4+VLOOKUP('Random Years'!AL24,'Hist Returns'!$A$12:$D$107,4,FALSE))","v":{"v":535770.5145901423,"d":"535,771"}},{"$f":"($A24-$A23)/365.25*(AO23+(Main!$I30*Main!$D$3))*(1+Main!$I$4+VLOOKUP('Random Years'!AM24,'Hist Returns'!$A$12:$D$107,4,FALSE))","v":{"v":478439.4768445253,"d":"478,439"}},{"$f":"($A24-$A23)/365.25*(AP23+(Main!$I30*Main!$D$3))*(1+Main!$I$4+VLOOKUP('Random Years'!AN24,'Hist Returns'!$A$12:$D$107,4,FALSE))","v":{"v":638875.3165263596,"d":"638,875"}},{"$f":"($A24-$A23)/365.25*(AQ23+(Main!$I30*Main!$D$3))*(1+Main!$I$4+VLOOKUP('Random Years'!AO24,'Hist Returns'!$A$12:$D$107,4,FALSE))","v":{"v":354245.91172775184,"d":"354,246"}},{"$f":"($A24-$A23)/365.25*(AR23+(Main!$I30*Main!$D$3))*(1+Main!$I$4+VLOOKUP('Random Years'!AP24,'Hist Returns'!$A$12:$D$107,4,FALSE))","v":{"v":647473.2082826268,"d":"647,473"}},{"$f":"($A24-$A23)/365.25*(AS23+(Main!$I30*Main!$D$3))*(1+Main!$I$4+VLOOKUP('Random Years'!AQ24,'Hist Returns'!$A$12:$D$107,4,FALSE))","v":{"v":818947.7919322343,"d":"818,948"}},{"$f":"($A24-$A23)/365.25*(AT23+(Main!$I30*Main!$D$3))*(1+Main!$I$4+VLOOKUP('Random Years'!AR24,'Hist Returns'!$A$12:$D$107,4,FALSE))","v":{"v":996707.7587232146,"d":"996,708"}},{"$f":"($A24-$A23)/365.25*(AU23+(Main!$I30*Main!$D$3))*(1+Main!$I$4+VLOOKUP('Random Years'!AS24,'Hist Returns'!$A$12:$D$107,4,FALSE))","v":{"v":435458.30256303767,"d":"435,458"}},{"$f":"($A24-$A23)/365.25*(AV23+(Main!$I30*Main!$D$3))*(1+Main!$I$4+VLOOKUP('Random Years'!AT24,'Hist Returns'!$A$12:$D$107,4,FALSE))","v":{"v":810637.5131598652,"d":"810,638"}},{"$f":"($A24-$A23)/365.25*(AW23+(Main!$I30*Main!$D$3))*(1+Main!$I$4+VLOOKUP('Random Years'!AU24,'Hist Returns'!$A$12:$D$107,4,FALSE))","v":{"v":454979.6306942446,"d":"454,980"}},{"$f":"($A24-$A23)/365.25*(AX23+(Main!$I30*Main!$D$3))*(1+Main!$I$4+VLOOKUP('Random Years'!AV24,'Hist Returns'!$A$12:$D$107,4,FALSE))","v":{"v":641506.9969731036,"d":"641,507"}},{"$f":"($A24-$A23)/365.25*(AY23+(Main!$I30*Main!$D$3))*(1+Main!$I$4+VLOOKUP('Random Years'!AW24,'Hist Returns'!$A$12:$D$107,4,FALSE))","v":{"v":299213.8585136525,"d":"299,214"}},{"$f":"($A24-$A23)/365.25*(AZ23+(Main!$I30*Main!$D$3))*(1+Main!$I$4+VLOOKUP('Random Years'!AX24,'Hist Returns'!$A$12:$D$107,4,FALSE))","v":{"v":467442.00805495796,"d":"467,442"}},{"$f":"($A24-$A23)/365.25*(BA23+(Main!$I30*Main!$D$3))*(1+Main!$I$4+VLOOKUP('Random Years'!AY24,'Hist Returns'!$A$12:$D$107,4,FALSE))","v":{"v":482747.8810204724,"d":"482,748"}},{"$f":"($A24-$A23)/365.25*(BB23+(Main!$I30*Main!$D$3))*(1+Main!$I$4+VLOOKUP('Random Years'!AZ24,'Hist Returns'!$A$12:$D$107,4,FALSE))","v":{"v":289150.06728532125,"d":"289,150"}},{"$f":"($A24-$A23)/365.25*(BC23+(Main!$I30*Main!$D$3))*(1+Main!$I$4+VLOOKUP('Random Years'!BA24,'Hist Returns'!$A$12:$D$107,4,FALSE))","v":{"v":431658.4541128399,"d":"431,658"}},{"$f":"($A24-$A23)/365.25*(BD23+(Main!$I30*Main!$D$3))*(1+Main!$I$4+VLOOKUP('Random Years'!BB24,'Hist Returns'!$A$12:$D$107,4,FALSE))","v":{"v":477481.5853461334,"d":"477,482"}},{"$f":"($A24-$A23)/365.25*(BE23+(Main!$I30*Main!$D$3))*(1+Main!$I$4+VLOOKUP('Random Years'!BC24,'Hist Returns'!$A$12:$D$107,4,FALSE))","v":{"v":702161.6715301373,"d":"702,162"}},{"$f":"($A24-$A23)/365.25*(BF23+(Main!$I30*Main!$D$3))*(1+Main!$I$4+VLOOKUP('Random Years'!BD24,'Hist Returns'!$A$12:$D$107,4,FALSE))","v":{"v":906134.8544997685,"d":"906,135"}},{"$f":"($A24-$A23)/365.25*(BG23+(Main!$I30*Main!$D$3))*(1+Main!$I$4+VLOOKUP('Random Years'!BE24,'Hist Returns'!$A$12:$D$107,4,FALSE))","v":{"v":407194.1284663172,"d":"407,194"}},{"$f":"($A24-$A23)/365.25*(BH23+(Main!$I30*Main!$D$3))*(1+Main!$I$4+VLOOKUP('Random Years'!BF24,'Hist Returns'!$A$12:$D$107,4,FALSE))","v":{"v":422447.9562814734,"d":"422,448"}},{"$f":"($A24-$A23)/365.25*(BI23+(Main!$I30*Main!$D$3))*(1+Main!$I$4+VLOOKUP('Random Years'!BG24,'Hist Returns'!$A$12:$D$107,4,FALSE))","v":{"v":1311154.4448714135,"d":"1,311,154"}},{"$f":"($A24-$A23)/365.25*(BJ23+(Main!$I30*Main!$D$3))*(1+Main!$I$4+VLOOKUP('Random Years'!BH24,'Hist Returns'!$A$12:$D$107,4,FALSE))","v":{"v":710625.1954325194,"d":"710,625"}},{"$f":"($A24-$A23)/365.25*(BK23+(Main!$I30*Main!$D$3))*(1+Main!$I$4+VLOOKUP('Random Years'!BI24,'Hist Returns'!$A$12:$D$107,4,FALSE))","v":{"v":610255.8074614244,"d":"610,256"}},{"$f":"($A24-$A23)/365.25*(BL23+(Main!$I30*Main!$D$3))*(1+Main!$I$4+VLOOKUP('Random Years'!BJ24,'Hist Returns'!$A$12:$D$107,4,FALSE))","v":{"v":461554.2484200657,"d":"461,554"}},{"$f":"($A24-$A23)/365.25*(BM23+(Main!$I30*Main!$D$3))*(1+Main!$I$4+VLOOKUP('Random Years'!BK24,'Hist Returns'!$A$12:$D$107,4,FALSE))","v":{"v":566063.6130279228,"d":"566,064"}},{"$f":"($A24-$A23)/365.25*(BN23+(Main!$I30*Main!$D$3))*(1+Main!$I$4+VLOOKUP('Random Years'!BL24,'Hist Returns'!$A$12:$D$107,4,FALSE))","v":{"v":1150780.0477812258,"d":"1,150,780"}},{"$f":"($A24-$A23)/365.25*(BO23+(Main!$I30*Main!$D$3))*(1+Main!$I$4+VLOOKUP('Random Years'!BM24,'Hist Returns'!$A$12:$D$107,4,FALSE))","v":{"v":336802.1566525188,"d":"336,802"}},{"$f":"($A24-$A23)/365.25*(BP23+(Main!$I30*Main!$D$3))*(1+Main!$I$4+VLOOKUP('Random Years'!BN24,'Hist Returns'!$A$12:$D$107,4,FALSE))","v":{"v":514911.62387403386,"d":"514,912"}},{"$f":"($A24-$A23)/365.25*(BQ23+(Main!$I30*Main!$D$3))*(1+Main!$I$4+VLOOKUP('Random Years'!BO24,'Hist Returns'!$A$12:$D$107,4,FALSE))","v":{"v":502833.7677139596,"d":"502,834"}},{"$f":"($A24-$A23)/365.25*(BR23+(Main!$I30*Main!$D$3))*(1+Main!$I$4+VLOOKUP('Random Years'!BP24,'Hist Returns'!$A$12:$D$107,4,FALSE))","v":{"v":475996.95123425114,"d":"475,997"}},{"$f":"($A24-$A23)/365.25*(BS23+(Main!$I30*Main!$D$3))*(1+Main!$I$4+VLOOKUP('Random Years'!BQ24,'Hist Returns'!$A$12:$D$107,4,FALSE))","v":{"v":769747.9749535997,"d":"769,748"}},{"$f":"($A24-$A23)/365.25*(BT23+(Main!$I30*Main!$D$3))*(1+Main!$I$4+VLOOKUP('Random Years'!BR24,'Hist Returns'!$A$12:$D$107,4,FALSE))","v":{"v":300238.2192169792,"d":"300,238"}},{"$f":"($A24-$A23)/365.25*(BU23+(Main!$I30*Main!$D$3))*(1+Main!$I$4+VLOOKUP('Random Years'!BS24,'Hist Returns'!$A$12:$D$107,4,FALSE))","v":{"v":595934.9681803597,"d":"595,935"}},{"$f":"($A24-$A23)/365.25*(BV23+(Main!$I30*Main!$D$3))*(1+Main!$I$4+VLOOKUP('Random Years'!BT24,'Hist Returns'!$A$12:$D$107,4,FALSE))","v":{"v":169521.2491746106,"d":"169,521"}},{"$f":"($A24-$A23)/365.25*(BW23+(Main!$I30*Main!$D$3))*(1+Main!$I$4+VLOOKUP('Random Years'!BU24,'Hist Returns'!$A$12:$D$107,4,FALSE))","v":{"v":409702.9545422859,"d":"409,703"}},{"$f":"($A24-$A23)/365.25*(BX23+(Main!$I30*Main!$D$3))*(1+Main!$I$4+VLOOKUP('Random Years'!BV24,'Hist Returns'!$A$12:$D$107,4,FALSE))","v":{"v":490192.98594993463,"d":"490,193"}},{"$f":"($A24-$A23)/365.25*(BY23+(Main!$I30*Main!$D$3))*(1+Main!$I$4+VLOOKUP('Random Years'!BW24,'Hist Returns'!$A$12:$D$107,4,FALSE))","v":{"v":426223.2304296998,"d":"426,223"}},{"$f":"($A24-$A23)/365.25*(BZ23+(Main!$I30*Main!$D$3))*(1+Main!$I$4+VLOOKUP('Random Years'!BX24,'Hist Returns'!$A$12:$D$107,4,FALSE))","v":{"v":222090.8776261816,"d":"222,091"}},{"$f":"($A24-$A23)/365.25*(CA23+(Main!$I30*Main!$D$3))*(1+Main!$I$4+VLOOKUP('Random Years'!BY24,'Hist Returns'!$A$12:$D$107,4,FALSE))","v":{"v":953341.993501244,"d":"953,342"}},{"$f":"($A24-$A23)/365.25*(CB23+(Main!$I30*Main!$D$3))*(1+Main!$I$4+VLOOKUP('Random Years'!BZ24,'Hist Returns'!$A$12:$D$107,4,FALSE))","v":{"v":612550.1347179528,"d":"612,550"}},{"$f":"($A24-$A23)/365.25*(CC23+(Main!$I30*Main!$D$3))*(1+Main!$I$4+VLOOKUP('Random Years'!CA24,'Hist Returns'!$A$12:$D$107,4,FALSE))","v":{"v":1484041.414879283,"d":"1,484,041"}},{"$f":"($A24-$A23)/365.25*(CD23+(Main!$I30*Main!$D$3))*(1+Main!$I$4+VLOOKUP('Random Years'!CB24,'Hist Returns'!$A$12:$D$107,4,FALSE))","v":{"v":715140.1343296323,"d":"715,140"}},{"$f":"($A24-$A23)/365.25*(CE23+(Main!$I30*Main!$D$3))*(1+Main!$I$4+VLOOKUP('Random Years'!CC24,'Hist Returns'!$A$12:$D$107,4,FALSE))","v":{"v":634161.2972047887,"d":"634,161"}},{"$f":"($A24-$A23)/365.25*(CF23+(Main!$I30*Main!$D$3))*(1+Main!$I$4+VLOOKUP('Random Years'!CD24,'Hist Returns'!$A$12:$D$107,4,FALSE))","v":{"v":726181.2166241286,"d":"726,181"}},{"$f":"($A24-$A23)/365.25*(CG23+(Main!$I30*Main!$D$3))*(1+Main!$I$4+VLOOKUP('Random Years'!CE24,'Hist Returns'!$A$12:$D$107,4,FALSE))","v":{"v":700642.8226714396,"d":"700,643"}},{"$f":"($A24-$A23)/365.25*(CH23+(Main!$I30*Main!$D$3))*(1+Main!$I$4+VLOOKUP('Random Years'!CF24,'Hist Returns'!$A$12:$D$107,4,FALSE))","v":{"v":661969.9073281139,"d":"661,970"}},{"$f":"($A24-$A23)/365.25*(CI23+(Main!$I30*Main!$D$3))*(1+Main!$I$4+VLOOKUP('Random Years'!CG24,'Hist Returns'!$A$12:$D$107,4,FALSE))","v":{"v":1357349.4127335034,"d":"1,357,349"}},{"$f":"($A24-$A23)/365.25*(CJ23+(Main!$I30*Main!$D$3))*(1+Main!$I$4+VLOOKUP('Random Years'!CH24,'Hist Returns'!$A$12:$D$107,4,FALSE))","v":{"v":533302.2440875764,"d":"533,302"}},{"$f":"($A24-$A23)/365.25*(CK23+(Main!$I30*Main!$D$3))*(1+Main!$I$4+VLOOKUP('Random Years'!CI24,'Hist Returns'!$A$12:$D$107,4,FALSE))","v":{"v":571815.5143977744,"d":"571,816"}},{"$f":"($A24-$A23)/365.25*(CL23+(Main!$I30*Main!$D$3))*(1+Main!$I$4+VLOOKUP('Random Years'!CJ24,'Hist Returns'!$A$12:$D$107,4,FALSE))","v":{"v":804916.9990220967,"d":"804,917"}},{"$f":"($A24-$A23)/365.25*(CM23+(Main!$I30*Main!$D$3))*(1+Main!$I$4+VLOOKUP('Random Years'!CK24,'Hist Returns'!$A$12:$D$107,4,FALSE))","v":{"v":373831.6398283136,"d":"373,832"}},{"$f":"($A24-$A23)/365.25*(CN23+(Main!$I30*Main!$D$3))*(1+Main!$I$4+VLOOKUP('Random Years'!CL24,'Hist Returns'!$A$12:$D$107,4,FALSE))","v":{"v":779236.909263344,"d":"779,237"}},{"$f":"($A24-$A23)/365.25*(CO23+(Main!$I30*Main!$D$3))*(1+Main!$I$4+VLOOKUP('Random Years'!CM24,'Hist Returns'!$A$12:$D$107,4,FALSE))","v":{"v":564931.7897011847,"d":"564,932"}},{"$f":"($A24-$A23)/365.25*(CP23+(Main!$I30*Main!$D$3))*(1+Main!$I$4+VLOOKUP('Random Years'!CN24,'Hist Returns'!$A$12:$D$107,4,FALSE))","v":{"v":694237.7431347208,"d":"694,238"}},{"$f":"($A24-$A23)/365.25*(CQ23+(Main!$I30*Main!$D$3))*(1+Main!$I$4+VLOOKUP('Random Years'!CO24,'Hist Returns'!$A$12:$D$107,4,FALSE))","v":{"v":574574.1556204213,"d":"574,574"}},{"$f":"($A24-$A23)/365.25*(CR23+(Main!$I30*Main!$D$3))*(1+Main!$I$4+VLOOKUP('Random Years'!CP24,'Hist Returns'!$A$12:$D$107,4,FALSE))","v":{"v":487919.4539071671,"d":"487,919"}},{"$f":"($A24-$A23)/365.25*(CS23+(Main!$I30*Main!$D$3))*(1+Main!$I$4+VLOOKUP('Random Years'!CQ24,'Hist Returns'!$A$12:$D$107,4,FALSE))","v":{"v":398203.83000054315,"d":"398,204"}},{"$f":"($A24-$A23)/365.25*(CT23+(Main!$I30*Main!$D$3))*(1+Main!$I$4+VLOOKUP('Random Years'!CR24,'Hist Returns'!$A$12:$D$107,4,FALSE))","v":{"v":197720.03353161705,"d":"197,720"}},{"$f":"($A24-$A23)/365.25*(CU23+(Main!$I30*Main!$D$3))*(1+Main!$I$4+VLOOKUP('Random Years'!CS24,'Hist Returns'!$A$12:$D$107,4,FALSE))","v":{"v":1128577.9606595903,"d":"1,128,578"}},{"$f":"($A24-$A23)/365.25*(CV23+(Main!$I30*Main!$D$3))*(1+Main!$I$4+VLOOKUP('Random Years'!CT24,'Hist Returns'!$A$12:$D$107,4,FALSE))","v":{"v":499126.06795058696,"d":"499,126"}},{"$f":"($A24-$A23)/365.25*(CW23+(Main!$I30*Main!$D$3))*(1+Main!$I$4+VLOOKUP('Random Years'!CU24,'Hist Returns'!$A$12:$D$107,4,FALSE))","v":{"v":599250.4460107238,"d":"599,250"}},{"$f":"($A24-$A23)/365.25*(CX23+(Main!$I30*Main!$D$3))*(1+Main!$I$4+VLOOKUP('Random Years'!CV24,'Hist Returns'!$A$12:$D$107,4,FALSE))","v":{"v":494073.5685568067,"d":"494,074"}}]
[{"$f":"Main!A31","v":"2046-12-30"},{"$f":"Main!B31","v":92},{"$f":"($A25-$A24)/365.25*(C24+(Main!$I31*Main!$D$3))*(1+Main!$I$4+VLOOKUP('Random Years'!A25,'Hist Returns'!$A$12:$D$107,4,FALSE))","v":{"v":515180.11786147143,"d":"515,180"}},{"$f":"($A25-$A24)/365.25*(D24+(Main!$I31*Main!$D$3))*(1+Main!$I$4+VLOOKUP('Random Years'!B25,'Hist Returns'!$A$12:$D$107,4,FALSE))","v":{"v":360915.5265125486,"d":"360,916"}},{"$f":"($A25-$A24)/365.25*(E24+(Main!$I31*Main!$D$3))*(1+Main!$I$4+VLOOKUP('Random Years'!C25,'Hist Returns'!$A$12:$D$107,4,FALSE))","v":{"v":447901.3894511098,"d":"447,901"}},{"$f":"($A25-$A24)/365.25*(F24+(Main!$I31*Main!$D$3))*(1+Main!$I$4+VLOOKUP('Random Years'!D25,'Hist Returns'!$A$12:$D$107,4,FALSE))","v":{"v":822264.3297182141,"d":"822,264"}},{"$f":"($A25-$A24)/365.25*(G24+(Main!$I31*Main!$D$3))*(1+Main!$I$4+VLOOKUP('Random Years'!E25,'Hist Returns'!$A$12:$D$107,4,FALSE))","v":{"v":1335622.1409986822,"d":"1,335,622"}},{"$f":"($A25-$A24)/365.25*(H24+(Main!$I31*Main!$D$3))*(1+Main!$I$4+VLOOKUP('Random Years'!F25,'Hist Returns'!$A$12:$D$107,4,FALSE))","v":{"v":728078.3552064041,"d":"728,078"}},{"$f":"($A25-$A24)/365.25*(I24+(Main!$I31*Main!$D$3))*(1+Main!$I$4+VLOOKUP('Random Years'!G25,'Hist Returns'!$A$12:$D$107,4,FALSE))","v":{"v":700585.5458246192,"d":"700,586"}},{"$f":"($A25-$A24)/365.25*(J24+(Main!$I31*Main!$D$3))*(1+Main!$I$4+VLOOKUP('Random Years'!H25,'Hist Returns'!$A$12:$D$107,4,FALSE))","v":{"v":965971.5941136564,"d":"965,972"}},{"$f":"($A25-$A24)/365.25*(K24+(Main!$I31*Main!$D$3))*(1+Main!$I$4+VLOOKUP('Random Years'!I25,'Hist Returns'!$A$12:$D$107,4,FALSE))","v":{"v":666305.5100914699,"d":"666,306"}},{"$f":"($A25-$A24)/365.25*(L24+(Main!$I31*Main!$D$3))*(1+Main!$I$4+VLOOKUP('Random Years'!J25,'Hist Returns'!$A$12:$D$107,4,FALSE))","v":{"v":558139.9614922467,"d":"558,140"}},{"$f":"($A25-$A24)/365.25*(M24+(Main!$I31*Main!$D$3))*(1+Main!$I$4+VLOOKUP('Random Years'!K25,'Hist Returns'!$A$12:$D$107,4,FALSE))","v":{"v":316096.4955432063,"d":"316,096"}},{"$f":"($A25-$A24)/365.25*(N24+(Main!$I31*Main!$D$3))*(1+Main!$I$4+VLOOKUP('Random Years'!L25,'Hist Returns'!$A$12:$D$107,4,FALSE))","v":{"v":800610.1222862336,"d":"800,610"}},{"$f":"($A25-$A24)/365.25*(O24+(Main!$I31*Main!$D$3))*(1+Main!$I$4+VLOOKUP('Random Years'!M25,'Hist Returns'!$A$12:$D$107,4,FALSE))","v":{"v":532642.5012609998,"d":"532,643"}},{"$f":"($A25-$A24)/365.25*(P24+(Main!$I31*Main!$D$3))*(1+Main!$I$4+VLOOKUP('Random Years'!N25,'Hist Returns'!$A$12:$D$107,4,FALSE))","v":{"v":473413.43239947915,"d":"473,413"}},{"$f":"($A25-$A24)/365.25*(Q24+(Main!$I31*Main!$D$3))*(1+Main!$I$4+VLOOKUP('Random Years'!O25,'Hist Returns'!$A$12:$D$107,4,FALSE))","v":{"v":545233.7235581643,"d":"545,234"}},{"$f":"($A25-$A24)/365.25*(R24+(Main!$I31*Main!$D$3))*(1+Main!$I$4+VLOOKUP('Random Years'!P25,'Hist Returns'!$A$12:$D$107,4,FALSE))","v":{"v":553114.5433041767,"d":"553,115"}},{"$f":"($A25-$A24)/365.25*(S24+(Main!$I31*Main!$D$3))*(1+Main!$I$4+VLOOKUP('Random Years'!Q25,'Hist Returns'!$A$12:$D$107,4,FALSE))","v":{"v":218275.6324544891,"d":"218,276"}},{"$f":"($A25-$A24)/365.25*(T24+(Main!$I31*Main!$D$3))*(1+Main!$I$4+VLOOKUP('Random Years'!R25,'Hist Returns'!$A$12:$D$107,4,FALSE))","v":{"v":442651.21645855665,"d":"442,651"}},{"$f":"($A25-$A24)/365.25*(U24+(Main!$I31*Main!$D$3))*(1+Main!$I$4+VLOOKUP('Random Years'!S25,'Hist Returns'!$A$12:$D$107,4,FALSE))","v":{"v":505864.55467993306,"d":"505,865"}},{"$f":"($A25-$A24)/365.25*(V24+(Main!$I31*Main!$D$3))*(1+Main!$I$4+VLOOKUP('Random Years'!T25,'Hist Returns'!$A$12:$D$107,4,FALSE))","v":{"v":1025209.5648093784,"d":"1,025,210"}},{"$f":"($A25-$A24)/365.25*(W24+(Main!$I31*Main!$D$3))*(1+Main!$I$4+VLOOKUP('Random Years'!U25,'Hist Returns'!$A$12:$D$107,4,FALSE))","v":{"v":587109.4904078062,"d":"587,109"}},{"$f":"($A25-$A24)/365.25*(X24+(Main!$I31*Main!$D$3))*(1+Main!$I$4+VLOOKUP('Random Years'!V25,'Hist Returns'!$A$12:$D$107,4,FALSE))","v":{"v":656669.1449056189,"d":"656,669"}},{"$f":"($A25-$A24)/365.25*(Y24+(Main!$I31*Main!$D$3))*(1+Main!$I$4+VLOOKUP('Random Years'!W25,'Hist Returns'!$A$12:$D$107,4,FALSE))","v":{"v":306012.94074861804,"d":"306,013"}},{"$f":"($A25-$A24)/365.25*(Z24+(Main!$I31*Main!$D$3))*(1+Main!$I$4+VLOOKUP('Random Years'!X25,'Hist Returns'!$A$12:$D$107,4,FALSE))","v":{"v":1046763.5559103404,"d":"1,046,764"}},{"$f":"($A25-$A24)/365.25*(AA24+(Main!$I31*Main!$D$3))*(1+Main!$I$4+VLOOKUP('Random Years'!Y25,'Hist Returns'!$A$12:$D$107,4,FALSE))","v":{"v":545954.7683847238,"d":"545,955"}},{"$f":"($A25-$A24)/365.25*(AB24+(Main!$I31*Main!$D$3))*(1+Main!$I$4+VLOOKUP('Random Years'!Z25,'Hist Returns'!$A$12:$D$107,4,FALSE))","v":{"v":493135.1040961934,"d":"493,135"}},{"$f":"($A25-$A24)/365.25*(AC24+(Main!$I31*Main!$D$3))*(1+Main!$I$4+VLOOKUP('Random Years'!AA25,'Hist Returns'!$A$12:$D$107,4,FALSE))","v":{"v":442595.56305932195,"d":"442,596"}},{"$f":"($A25-$A24)/365.25*(AD24+(Main!$I31*Main!$D$3))*(1+Main!$I$4+VLOOKUP('Random Years'!AB25,'Hist Returns'!$A$12:$D$107,4,FALSE))","v":{"v":777832.1129293062,"d":"777,832"}},{"$f":"($A25-$A24)/365.25*(AE24+(Main!$I31*Main!$D$3))*(1+Main!$I$4+VLOOKUP('Random Years'!AC25,'Hist Returns'!$A$12:$D$107,4,FALSE))","v":{"v":836850.312581904,"d":"836,850"}},{"$f":"($A25-$A24)/365.25*(AF24+(Main!$I31*Main!$D$3))*(1+Main!$I$4+VLOOKUP('Random Years'!AD25,'Hist Returns'!$A$12:$D$107,4,FALSE))","v":{"v":380089.3758712606,"d":"380,089"}},{"$f":"($A25-$A24)/365.25*(AG24+(Main!$I31*Main!$D$3))*(1+Main!$I$4+VLOOKUP('Random Years'!AE25,'Hist Returns'!$A$12:$D$107,4,FALSE))","v":{"v":761733.6343417063,"d":"761,734"}},{"$f":"($A25-$A24)/365.25*(AH24+(Main!$I31*Main!$D$3))*(1+Main!$I$4+VLOOKUP('Random Years'!AF25,'Hist Returns'!$A$12:$D$107,4,FALSE))","v":{"v":453858.3447203106,"d":"453,858"}},{"$f":"($A25-$A24)/365.25*(AI24+(Main!$I31*Main!$D$3))*(1+Main!$I$4+VLOOKUP('Random Years'!AG25,'Hist Returns'!$A$12:$D$107,4,FALSE))","v":{"v":526778.7757389541,"d":"526,779"}},{"$f":"($A25-$A24)/365.25*(AJ24+(Main!$I31*Main!$D$3))*(1+Main!$I$4+VLOOKUP('Random Years'!AH25,'Hist Returns'!$A$12:$D$107,4,FALSE))","v":{"v":832544.9162057695,"d":"832,545"}},{"$f":"($A25-$A24)/365.25*(AK24+(Main!$I31*Main!$D$3))*(1+Main!$I$4+VLOOKUP('Random Years'!AI25,'Hist Returns'!$A$12:$D$107,4,FALSE))","v":{"v":813708.3001629495,"d":"813,708"}},{"$f":"($A25-$A24)/365.25*(AL24+(Main!$I31*Main!$D$3))*(1+Main!$I$4+VLOOKUP('Random Years'!AJ25,'Hist Returns'!$A$12:$D$107,4,FALSE))","v":{"v":542035.9079492398,"d":"542,036"}},{"$f":"($A25-$A24)/365.25*(AM24+(Main!$I31*Main!$D$3))*(1+Main!$I$4+VLOOKUP('Random Years'!AK25,'Hist Returns'!$A$12:$D$107,4,FALSE))","v":{"v":838021.624366184,"d":"838,022"}},{"$f":"($A25-$A24)/365.25*(AN24+(Main!$I31*Main!$D$3))*(1+Main!$I$4+VLOOKUP('Random Years'!AL25,'Hist Returns'!$A$12:$D$107,4,FALSE))","v":{"v":537767.6067445163,"d":"537,768"}},{"$f":"($A25-$A24)/365.25*(AO24+(Main!$I31*Main!$D$3))*(1+Main!$I$4+VLOOKUP('Random Years'!AM25,'Hist Returns'!$A$12:$D$107,4,FALSE))","v":{"v":486284.0050473096,"d":"486,284"}},{"$f":"($A25-$A24)/365.25*(AP24+(Main!$I31*Main!$D$3))*(1+Main!$I$4+VLOOKUP('Random Years'!AN25,'Hist Returns'!$A$12:$D$107,4,FALSE))","v":{"v":665097.8339563002,"d":"665,098"}},{"$f":"($A25-$A24)/365.25*(AQ24+(Main!$I31*Main!$D$3))*(1+Main!$I$4+VLOOKUP('Random Years'!AO25,'Hist Returns'!$A$12:$D$107,4,FALSE))","v":{"v":324496.7217295574,"d":"324,497"}},{"$f":"($A25-$A24)/365.25*(AR24+(Main!$I31*Main!$D$3))*(1+Main!$I$4+VLOOKUP('Random Years'!AP25,'Hist Returns'!$A$12:$D$107,4,FALSE))","v":{"v":688362.843156196,"d":"688,363"}},{"$f":"($A25-$A24)/365.25*(AS24+(Main!$I31*Main!$D$3))*(1+Main!$I$4+VLOOKUP('Random Years'!AQ25,'Hist Returns'!$A$12:$D$107,4,FALSE))","v":{"v":842054.9721179594,"d":"842,055"}},{"$f":"($A25-$A24)/365.25*(AT24+(Main!$I31*Main!$D$3))*(1+Main!$I$4+VLOOKUP('Random Years'!AR25,'Hist Returns'!$A$12:$D$107,4,FALSE))","v":{"v":1078471.8038475257,"d":"1,078,472"}},{"$f":"($A25-$A24)/365.25*(AU24+(Main!$I31*Main!$D$3))*(1+Main!$I$4+VLOOKUP('Random Years'!AS25,'Hist Returns'!$A$12:$D$107,4,FALSE))","v":{"v":471992.64505235996,"d":"471,993"}},{"$f":"($A25-$A24)/365.25*(AV24+(Main!$I31*Main!$D$3))*(1+Main!$I$4+VLOOKUP('Random Years'!AT25,'Hist Returns'!$A$12:$D$107,4,FALSE))","v":{"v":930565.175342516,"d":"930,565"}},{"$f":"($A25-$A24)/365.25*(AW24+(Main!$I31*Main!$D$3))*(1+Main!$I$4+VLOOKUP('Random Years'!AU25,'Hist Returns'!$A$12:$D$107,4,FALSE))","v":{"v":430973.20506826835,"d":"430,973"}},{"$f":"($A25-$A24)/365.25*(AX24+(Main!$I31*Main!$D$3))*(1+Main!$I$4+VLOOKUP('Random Years'!AV25,'Hist Returns'!$A$12:$D$107,4,FALSE))","v":{"v":671422.6575547392,"d":"671,423"}},{"$f":"($A25-$A24)/365.25*(AY24+(Main!$I31*Main!$D$3))*(1+Main!$I$4+VLOOKUP('Random Years'!AW25,'Hist Returns'!$A$12:$D$107,4,FALSE))","v":{"v":294019.881933043,"d":"294,020"}},{"$f":"($A25-$A24)/365.25*(AZ24+(Main!$I31*Main!$D$3))*(1+Main!$I$4+VLOOKUP('Random Years'!AX25,'Hist Returns'!$A$12:$D$107,4,FALSE))","v":{"v":417209.03754591435,"d":"417,209"}},{"$f":"($A25-$A24)/365.25*(BA24+(Main!$I31*Main!$D$3))*(1+Main!$I$4+VLOOKUP('Random Years'!AY25,'Hist Returns'!$A$12:$D$107,4,FALSE))","v":{"v":472059.3052614696,"d":"472,059"}},{"$f":"($A25-$A24)/365.25*(BB24+(Main!$I31*Main!$D$3))*(1+Main!$I$4+VLOOKUP('Random Years'!AZ25,'Hist Returns'!$A$12:$D$107,4,FALSE))","v":{"v":304812.7940559228,"d":"304,813"}},{"$f":"($A25-$A24)/365.25*(BC24+(Main!$I31*Main!$D$3))*(1+Main!$I$4+VLOOKUP('Random Years'!BA25,'Hist Returns'!$A$12:$D$107,4,FALSE))","v":{"v":466456.64086279797,"d":"466,457"}},{"$f":"($A25-$A24)/365.25*(BD24+(Main!$I31*Main!$D$3))*(1+Main!$I$4+VLOOKUP('Random Years'!BB25,'Hist Returns'!$A$12:$D$107,4,FALSE))","v":{"v":577644.8719133954,"d":"577,645"}},{"$f":"($A25-$A24)/365.25*(BE24+(Main!$I31*Main!$D$3))*(1+Main!$I$4+VLOOKUP('Random Years'!BC25,'Hist Returns'!$A$12:$D$107,4,FALSE))","v":{"v":804109.0063372209,"d":"804,109"}},{"$f":"($A25-$A24)/365.25*(BF24+(Main!$I31*Main!$D$3))*(1+Main!$I$4+VLOOKUP('Random Years'!BD25,'Hist Returns'!$A$12:$D$107,4,FALSE))","v":{"v":911544.0648715675,"d":"911,544"}},{"$f":"($A25-$A24)/365.25*(BG24+(Main!$I31*Main!$D$3))*(1+Main!$I$4+VLOOKUP('Random Years'!BE25,'Hist Returns'!$A$12:$D$107,4,FALSE))","v":{"v":440460.258893198,"d":"440,460"}},{"$f":"($A25-$A24)/365.25*(BH24+(Main!$I31*Main!$D$3))*(1+Main!$I$4+VLOOKUP('Random Years'!BF25,'Hist Returns'!$A$12:$D$107,4,FALSE))","v":{"v":421255.2602891229,"d":"421,255"}},{"$f":"($A25-$A24)/365.25*(BI24+(Main!$I31*Main!$D$3))*(1+Main!$I$4+VLOOKUP('Random Years'!BG25,'Hist Returns'!$A$12:$D$107,4,FALSE))","v":{"v":1355145.4235715906,"d":"1,355,145"}},{"$f":"($A25-$A24)/365.25*(BJ24+(Main!$I31*Main!$D$3))*(1+Main!$I$4+VLOOKUP('Random Years'!BH25,'Hist Returns'!$A$12:$D$107,4,FALSE))","v":{"v":719589.9633479891,"d":"719,590"}},{"$f":"($A25-$A24)/365.25*(BK24+(Main!$I31*Main!$D$3))*(1+Main!$I$4+VLOOKUP('Random Years'!BI25,'Hist Returns'!$A$12:$D$107,4,FALSE))","v":{"v":605996.0552287948,"d":"605,996"}},{"$f":"($A25-$A24)/365.25*(BL24+(Main!$I31*Main!$D$3))*(1+Main!$I$4+VLOOKUP('Random Years'!BJ25,'Hist Returns'!$A$12:$D$107,4,FALSE))","v":{"v":450789.19428705826,"d":"450,789"}},{"$f":"($A25-$A24)/365.25*(BM24+(Main!$I31*Main!$D$3))*(1+Main!$I$4+VLOOKUP('Random Years'!BK25,'Hist Returns'!$A$12:$D$107,4,FALSE))","v":{"v":695565.6117830573,"d":"695,566"}},{"$f":"($A25-$A24)/365.25*(BN24+(Main!$I31*Main!$D$3))*(1+Main!$I$4+VLOOKUP('Random Years'!BL25,'Hist Returns'!$A$12:$D$107,4,FALSE))","v":{"v":1184755.9035341863,"d":"1,184,756"}},{"$f":"($A25-$A24)/365.25*(BO24+(Main!$I31*Main!$D$3))*(1+Main!$I$4+VLOOKUP('Random Years'!BM25,'Hist Returns'!$A$12:$D$107,4,FALSE))","v":{"v":314501.62577085174,"d":"314,502"}},{"$f":"($A25-$A24)/365.25*(BP24+(Main!$I31*Main!$D$3))*(1+Main!$I$4+VLOOKUP('Random Years'!BN25,'Hist Returns'!$A$12:$D$107,4,FALSE))","v":{"v":522991.3712617077,"d":"522,991"}},{"$f":"($A25-$A24)/365.25*(BQ24+(Main!$I31*Main!$D$3))*(1+Main!$I$4+VLOOKUP('Random Years'!BO25,'Hist Returns'!$A$12:$D$107,4,FALSE))","v":{"v":512030.22220576025,"d":"512,030"}},{"$f":"($A25-$A24)/365.25*(BR24+(Main!$I31*Main!$D$3))*(1+Main!$I$4+VLOOKUP('Random Years'!BP25,'Hist Returns'!$A$12:$D$107,4,FALSE))","v":{"v":469270.0308057372,"d":"469,270"}},{"$f":"($A25-$A24)/365.25*(BS24+(Main!$I31*Main!$D$3))*(1+Main!$I$4+VLOOKUP('Random Years'!BQ25,'Hist Returns'!$A$12:$D$107,4,FALSE))","v":{"v":774212.2517345733,"d":"774,212"}},{"$f":"($A25-$A24)/365.25*(BT24+(Main!$I31*Main!$D$3))*(1+Main!$I$4+VLOOKUP('Random Years'!BR25,'Hist Returns'!$A$12:$D$107,4,FALSE))","v":{"v":328533.86417288595,"d":"328,534"}},{"$f":"($A25-$A24)/365.25*(BU24+(Main!$I31*Main!$D$3))*(1+Main!$I$4+VLOOKUP('Random Years'!BS25,'Hist Returns'!$A$12:$D$107,4,FALSE))","v":{"v":605335.094457327,"d":"605,335"}},{"$f":"($A25-$A24)/365.25*(BV24+(Main!$I31*Main!$D$3))*(1+Main!$I$4+VLOOKUP('Random Years'!BT25,'Hist Returns'!$A$12:$D$107,4,FALSE))","v":{"v":166819.06568945086,"d":"166,819"}},{"$f":"($A25-$A24)/365.25*(BW24+(Main!$I31*Main!$D$3))*(1+Main!$I$4+VLOOKUP('Random Years'!BU25,'Hist Returns'!$A$12:$D$107,4,FALSE))","v":{"v":499135.27873915,"d":"499,135"}},{"$f":"($A25-$A24)/365.25*(BX24+(Main!$I31*Main!$D$3))*(1+Main!$I$4+VLOOKUP('Random Years'!BV25,'Hist Returns'!$A$12:$D$107,4,FALSE))","v":{"v":479531.27625632216,"d":"479,531"}},{"$f":"($A25-$A24)/365.25*(BY24+(Main!$I31*Main!$D$3))*(1+Main!$I$4+VLOOKUP('Random Years'!BW25,'Hist Returns'!$A$12:$D$107,4,FALSE))","v":{"v":416327.86288017675,"d":"416,328"}},{"$f":"($A25-$A24)/365.25*(BZ24+(Main!$I31*Main!$D$3))*(1+Main!$I$4+VLOOKUP('Random Years'!BX25,'Hist Returns'!$A$12:$D$107,4,FALSE))","v":{"v":218245.3312088194,"d":"218,245"}},{"$f":"($A25-$A24)/365.25*(CA24+(Main!$I31*Main!$D$3))*(1+Main!$I$4+VLOOKUP('Random Years'!BY25,'Hist Returns'!$A$12:$D$107,4,FALSE))","v":{"v":1022968.3567898542,"d":"1,022,968"}},{"$f":"($A25-$A24)/365.25*(CB24+(Main!$I31*Main!$D$3))*(1+Main!$I$4+VLOOKUP('Random Years'!BZ25,'Hist Returns'!$A$12:$D$107,4,FALSE))","v":{"v":622570.5661544651,"d":"622,571"}},{"$f":"($A25-$A24)/365.25*(CC24+(Main!$I31*Main!$D$3))*(1+Main!$I$4+VLOOKUP('Random Years'!CA25,'Hist Returns'!$A$12:$D$107,4,FALSE))","v":{"v":1466305.1901446425,"d":"1,466,305"}},{"$f":"($A25-$A24)/365.25*(CD24+(Main!$I31*Main!$D$3))*(1+Main!$I$4+VLOOKUP('Random Years'!CB25,'Hist Returns'!$A$12:$D$107,4,FALSE))","v":{"v":715974.832780168,"d":"715,975"}},{"$f":"($A25-$A24)/365.25*(CE24+(Main!$I31*Main!$D$3))*(1+Main!$I$4+VLOOKUP('Random Years'!CC25,'Hist Returns'!$A$12:$D$107,4,FALSE))","v":{"v":570062.264471461,"d":"570,062"}},{"$f":"($A25-$A24)/365.25*(CF24+(Main!$I31*Main!$D$3))*(1+Main!$I$4+VLOOKUP('Random Years'!CD25,'Hist Returns'!$A$12:$D$107,4,FALSE))","v":{"v":723497.1036511781,"d":"723,497"}},{"$f":"($A25-$A24)/365.25*(CG24+(Main!$I31*Main!$D$3))*(1+Main!$I$4+VLOOKUP('Random Years'!CE25,'Hist Returns'!$A$12:$D$107,4,FALSE))","v":{"v":734534.7254789651,"d":"734,535"}},{"$f":"($A25-$A24)/365.25*(CH24+(Main!$I31*Main!$D$3))*(1+Main!$I$4+VLOOKUP('Random Years'!CF25,'Hist Returns'!$A$12:$D$107,4,FALSE))","v":{"v":636012.5077674097,"d":"636,013"}},{"$f":"($A25-$A24)/365.25*(CI24+(Main!$I31*Main!$D$3))*(1+Main!$I$4+VLOOKUP('Random Years'!CG25,'Hist Returns'!$A$12:$D$107,4,FALSE))","v":{"v":1353704.6539672348,"d":"1,353,705"}},{"$f":"($A25-$A24)/365.25*(CJ24+(Main!$I31*Main!$D$3))*(1+Main!$I$4+VLOOKUP('Random Years'!CH25,'Hist Returns'!$A$12:$D$107,4,FALSE))","v":{"v":536844.8538271375,"d":"536,845"}},{"$f":"($A25-$A24)/365.25*(CK24+(Main!$I31*Main!$D$3))*(1+Main!$I$4+VLOOKUP('Random Years'!CI25,'Hist Returns'!$A$12:$D$107,4,FALSE))","v":{"v":576937.3685973961,"d":"576,937"}},{"$f":"($A25-$A24)/365.25*(CL24+(Main!$I31*Main!$D$3))*(1+Main!$I$4+VLOOKUP('Random Years'!CJ25,'Hist Returns'!$A$12:$D$107,4,FALSE))","v":{"v":771027.6196756449,"d":"771,028"}},{"$f":"($A25-$A24)/365.25*(CM24+(Main!$I31*Main!$D$3))*(1+Main!$I$4+VLOOKUP('Random Years'!CK25,'Hist Returns'!$A$12:$D$107,4,FALSE))","v":{"v":373081.05671743804,"d":"373,081"}},{"$f":"($A25-$A24)/365.25*(CN24+(Main!$I31*Main!$D$3))*(1+Main!$I$4+VLOOKUP('Random Years'!CL25,'Hist Returns'!$A$12:$D$107,4,FALSE))","v":{"v":788610.4369468397,"d":"788,610"}},{"$f":"($A25-$A24)/365.25*(CO24+(Main!$I31*Main!$D$3))*(1+Main!$I$4+VLOOKUP('Random Years'!CM25,'Hist Returns'!$A$12:$D$107,4,FALSE))","v":{"v":576860.8928065221,"d":"576,861"}},{"$f":"($A25-$A24)/365.25*(CP24+(Main!$I31*Main!$D$3))*(1+Main!$I$4+VLOOKUP('Random Years'!CN25,'Hist Returns'!$A$12:$D$107,4,FALSE))","v":{"v":663351.3864166641,"d":"663,351"}},{"$f":"($A25-$A24)/365.25*(CQ24+(Main!$I31*Main!$D$3))*(1+Main!$I$4+VLOOKUP('Random Years'!CO25,'Hist Returns'!$A$12:$D$107,4,FALSE))","v":{"v":549130.440963991,"d":"549,130"}},{"$f":"($A25-$A24)/365.25*(CR24+(Main!$I31*Main!$D$3))*(1+Main!$I$4+VLOOKUP('Random Years'!CP25,'Hist Returns'!$A$12:$D$107,4,FALSE))","v":{"v":500881.09476512385,"d":"500,881"}},{"$f":"($A25-$A24)/365.25*(CS24+(Main!$I31*Main!$D$3))*(1+Main!$I$4+VLOOKUP('Random Years'!CQ25,'Hist Returns'!$A$12:$D$107,4,FALSE))","v":{"v":396765.5277301786,"d":"396,766"}},{"$f":"($A25-$A24)/365.25*(CT24+(Main!$I31*Main!$D$3))*(1+Main!$I$4+VLOOKUP('Random Years'!CR25,'Hist Returns'!$A$12:$D$107,4,FALSE))","v":{"v":206191.2611884037,"d":"206,191"}},{"$f":"($A25-$A24)/365.25*(CU24+(Main!$I31*Main!$D$3))*(1+Main!$I$4+VLOOKUP('Random Years'!CS25,'Hist Returns'!$A$12:$D$107,4,FALSE))","v":{"v":1150322.8339473824,"d":"1,150,323"}},{"$f":"($A25-$A24)/365.25*(CV24+(Main!$I31*Main!$D$3))*(1+Main!$I$4+VLOOKUP('Random Years'!CT25,'Hist Returns'!$A$12:$D$107,4,FALSE))","v":{"v":646019.2789563978,"d":"646,019"}},{"$f":"($A25-$A24)/365.25*(CW24+(Main!$I31*Main!$D$3))*(1+Main!$I$4+VLOOKUP('Random Years'!CU25,'Hist Returns'!$A$12:$D$107,4,FALSE))","v":{"v":605667.2848318748,"d":"605,667"}},{"$f":"($A25-$A24)/365.25*(CX24+(Main!$I31*Main!$D$3))*(1+Main!$I$4+VLOOKUP('Random Years'!CV25,'Hist Returns'!$A$12:$D$107,4,FALSE))","v":{"v":481277.6186909841,"d":"481,278"}}]
[{"$f":"Main!A32","v":"2047-12-31"},{"$f":"Main!B32","v":93},{"$f":"($A26-$A25)/365.25*(C25+(Main!$I32*Main!$D$3))*(1+Main!$I$4+VLOOKUP('Random Years'!A26,'Hist Returns'!$A$12:$D$107,4,FALSE))","v":{"v":447784.58273928997,"d":"447,785"}},{"$f":"($A26-$A25)/365.25*(D25+(Main!$I32*Main!$D$3))*(1+Main!$I$4+VLOOKUP('Random Years'!B26,'Hist Returns'!$A$12:$D$107,4,FALSE))","v":{"v":357221.8106372488,"d":"357,222"}},{"$f":"($A26-$A25)/365.25*(E25+(Main!$I32*Main!$D$3))*(1+Main!$I$4+VLOOKUP('Random Years'!C26,'Hist Returns'!$A$12:$D$107,4,FALSE))","v":{"v":435083.7584923871,"d":"435,084"}},{"$f":"($A26-$A25)/365.25*(F25+(Main!$I32*Main!$D$3))*(1+Main!$I$4+VLOOKUP('Random Years'!D26,'Hist Returns'!$A$12:$D$107,4,FALSE))","v":{"v":841757.4783768976,"d":"841,757"}},{"$f":"($A26-$A25)/365.25*(G25+(Main!$I32*Main!$D$3))*(1+Main!$I$4+VLOOKUP('Random Years'!E26,'Hist Returns'!$A$12:$D$107,4,FALSE))","v":{"v":1384418.894183828,"d":"1,384,419"}},{"$f":"($A26-$A25)/365.25*(H25+(Main!$I32*Main!$D$3))*(1+Main!$I$4+VLOOKUP('Random Years'!F26,'Hist Returns'!$A$12:$D$107,4,FALSE))","v":{"v":757954.5158126694,"d":"757,955"}},{"$f":"($A26-$A25)/365.25*(I25+(Main!$I32*Main!$D$3))*(1+Main!$I$4+VLOOKUP('Random Years'!G26,'Hist Returns'!$A$12:$D$107,4,FALSE))","v":{"v":715809.7697346662,"d":"715,810"}},{"$f":"($A26-$A25)/365.25*(J25+(Main!$I32*Main!$D$3))*(1+Main!$I$4+VLOOKUP('Random Years'!H26,'Hist Returns'!$A$12:$D$107,4,FALSE))","v":{"v":931056.3975991625,"d":"931,056"}},{"$f":"($A26-$A25)/365.25*(K25+(Main!$I32*Main!$D$3))*(1+Main!$I$4+VLOOKUP('Random Years'!I26,'Hist Returns'!$A$12:$D$107,4,FALSE))","v":{"v":657684.1973618257,"d":"657,684"}},{"$f":"($A26-$A25)/365.25*(L25+(Main!$I32*Main!$D$3))*(1+Main!$I$4+VLOOKUP('Random Years'!J26,'Hist Returns'!$A$12:$D$107,4,FALSE))","v":{"v":571668.871285758,"d":"571,669"}},{"$f":"($A26-$A25)/365.25*(M25+(Main!$I32*Main!$D$3))*(1+Main!$I$4+VLOOKUP('Random Years'!K26,'Hist Returns'!$A$12:$D$107,4,FALSE))","v":{"v":329321.0326254446,"d":"329,321"}},{"$f":"($A26-$A25)/365.25*(N25+(Main!$I32*Main!$D$3))*(1+Main!$I$4+VLOOKUP('Random Years'!L26,'Hist Returns'!$A$12:$D$107,4,FALSE))","v":{"v":799914.9169874339,"d":"799,915"}},{"$f":"($A26-$A25)/365.25*(O25+(Main!$I32*Main!$D$3))*(1+Main!$I$4+VLOOKUP('Random Years'!M26,'Hist Returns'!$A$12:$D$107,4,FALSE))","v":{"v":463337.5971129532,"d":"463,338"}},{"$f":"($A26-$A25)/365.25*(P25+(Main!$I32*Main!$D$3))*(1+Main!$I$4+VLOOKUP('Random Years'!N26,'Hist Returns'!$A$12:$D$107,4,FALSE))","v":{"v":499812.053642117,"d":"499,812"}},{"$f":"($A26-$A25)/365.25*(Q25+(Main!$I32*Main!$D$3))*(1+Main!$I$4+VLOOKUP('Random Years'!O26,'Hist Returns'!$A$12:$D$107,4,FALSE))","v":{"v":549430.2532328606,"d":"549,430"}},{"$f":"($A26-$A25)/365.25*(R25+(Main!$I32*Main!$D$3))*(1+Main!$I$4+VLOOKUP('Random Years'!P26,'Hist Returns'!$A$12:$D$107,4,FALSE))","v":{"v":498258.8939960079,"d":"498,259"}},{"$f":"($A26-$A25)/365.25*(S25+(Main!$I32*Main!$D$3))*(1+Main!$I$4+VLOOKUP('Random Years'!Q26,'Hist Returns'!$A$12:$D$107,4,FALSE))","v":{"v":207161.3085304996,"d":"207,161"}},{"$f":"($A26-$A25)/365.25*(T25+(Main!$I32*Main!$D$3))*(1+Main!$I$4+VLOOKUP('Random Years'!R26,'Hist Returns'!$A$12:$D$107,4,FALSE))","v":{"v":481290.70924322656,"d":"481,291"}},{"$f":"($A26-$A25)/365.25*(U25+(Main!$I32*Main!$D$3))*(1+Main!$I$4+VLOOKUP('Random Years'!S26,'Hist Returns'!$A$12:$D$107,4,FALSE))","v":{"v":544938.0431027529,"d":"544,938"}},{"$f":"($A26-$A25)/365.25*(V25+(Main!$I32*Main!$D$3))*(1+Main!$I$4+VLOOKUP('Random Years'!T26,'Hist Returns'!$A$12:$D$107,4,FALSE))","v":{"v":1069693.9911554914,"d":"1,069,694"}},{"$f":"($A26-$A25)/365.25*(W25+(Main!$I32*Main!$D$3))*(1+Main!$I$4+VLOOKUP('Random Years'!U26,'Hist Returns'!$A$12:$D$107,4,FALSE))","v":{"v":654952.2038182988,"d":"654,952"}},{"$f":"($A26-$A25)/365.25*(X25+(Main!$I32*Main!$D$3))*(1+Main!$I$4+VLOOKUP('Random Years'!V26,'Hist Returns'!$A$12:$D$107,4,FALSE))","v":{"v":631006.2902986658,"d":"631,006"}},{"$f":"($A26-$A25)/365.25*(Y25+(Main!$I32*Main!$D$3))*(1+Main!$I$4+VLOOKUP('Random Years'!W26,'Hist Returns'!$A$12:$D$107,4,FALSE))","v":{"v":303396.073479883,"d":"303,396"}},{"$f":"($A26-$A25)/365.25*(Z25+(Main!$I32*Main!$D$3))*(1+Main!$I$4+VLOOKUP('Random Years'!X26,'Hist Returns'!$A$12:$D$107,4,FALSE))","v":{"v":1056789.367516832,"d":"1,056,789"}},{"$f":"($A26-$A25)/365.25*(AA25+(Main!$I32*Main!$D$3))*(1+Main!$I$4+VLOOKUP('Random Years'!Y26,'Hist Returns'!$A$12:$D$107,4,FALSE))","v":{"v":589212.1619818188,"d":"589,212"}},{"$f":"($A26-$A25)/365.25*(AB25+(Main!$I32*Main!$D$3))*(1+Main!$I$4+VLOOKUP('Random Years'!Z26,'Hist Returns'!$A$12:$D$107,4,FALSE))","v":{"v":550153.0680513999,"d":"550,153"}},{"$f":"($A26-$A25)/365.25*(AC25+(Main!$I32*Main!$D$3))*(1+Main!$I$4+VLOOKUP('Random Years'!AA26,'Hist Returns'!$A$12:$D$107,4,FALSE))","v":{"v":490254.1563000628,"d":"490,254"}},{"$f":"($A26-$A25)/365.25*(AD25+(Main!$I32*Main!$D$3))*(1+Main!$I$4+VLOOKUP('Random Years'!AB26,'Hist Returns'!$A$12:$D$107,4,FALSE))","v":{"v":769859.2471762329,"d":"769,859"}},{"$f":"($A26-$A25)/365.25*(AE25+(Main!$I32*Main!$D$3))*(1+Main!$I$4+VLOOKUP('Random Years'!AC26,'Hist Returns'!$A$12:$D$107,4,FALSE))","v":{"v":844856.3836790256,"d":"844,856"}},{"$f":"($A26-$A25)/365.25*(AF25+(Main!$I32*Main!$D$3))*(1+Main!$I$4+VLOOKUP('Random Years'!AD26,'Hist Returns'!$A$12:$D$107,4,FALSE))","v":{"v":404478.16800169344,"d":"404,478"}},{"$f":"($A26-$A25)/365.25*(AG25+(Main!$I32*Main!$D$3))*(1+Main!$I$4+VLOOKUP('Random Years'!AE26,'Hist Returns'!$A$12:$D$107,4,FALSE))","v":{"v":797667.3503376485,"d":"797,667"}},{"$f":"($A26-$A25)/365.25*(AH25+(Main!$I32*Main!$D$3))*(1+Main!$I$4+VLOOKUP('Random Years'!AF26,'Hist Returns'!$A$12:$D$107,4,FALSE))","v":{"v":492458.91912417306,"d":"492,459"}},{"$f":"($A26-$A25)/365.25*(AI25+(Main!$I32*Main!$D$3))*(1+Main!$I$4+VLOOKUP('Random Years'!AG26,'Hist Returns'!$A$12:$D$107,4,FALSE))","v":{"v":570818.5454584176,"d":"570,819"}},{"$f":"($A26-$A25)/365.25*(AJ25+(Main!$I32*Main!$D$3))*(1+Main!$I$4+VLOOKUP('Random Years'!AH26,'Hist Returns'!$A$12:$D$107,4,FALSE))","v":{"v":902235.0579458362,"d":"902,235"}},{"$f":"($A26-$A25)/365.25*(AK25+(Main!$I32*Main!$D$3))*(1+Main!$I$4+VLOOKUP('Random Years'!AI26,'Hist Returns'!$A$12:$D$107,4,FALSE))","v":{"v":808702.3879499173,"d":"808,702"}},{"$f":"($A26-$A25)/365.25*(AL25+(Main!$I32*Main!$D$3))*(1+Main!$I$4+VLOOKUP('Random Years'!AJ26,'Hist Returns'!$A$12:$D$107,4,FALSE))","v":{"v":522311.88081051974,"d":"522,312"}},{"$f":"($A26-$A25)/365.25*(AM25+(Main!$I32*Main!$D$3))*(1+Main!$I$4+VLOOKUP('Random Years'!AK26,'Hist Returns'!$A$12:$D$107,4,FALSE))","v":{"v":854384.4536054021,"d":"854,384"}},{"$f":"($A26-$A25)/365.25*(AN25+(Main!$I32*Main!$D$3))*(1+Main!$I$4+VLOOKUP('Random Years'!AL26,'Hist Returns'!$A$12:$D$107,4,FALSE))","v":{"v":541260.1434992461,"d":"541,260"}},{"$f":"($A26-$A25)/365.25*(AO25+(Main!$I32*Main!$D$3))*(1+Main!$I$4+VLOOKUP('Random Years'!AM26,'Hist Returns'!$A$12:$D$107,4,FALSE))","v":{"v":507108.3752854647,"d":"507,108"}},{"$f":"($A26-$A25)/365.25*(AP25+(Main!$I32*Main!$D$3))*(1+Main!$I$4+VLOOKUP('Random Years'!AN26,'Hist Returns'!$A$12:$D$107,4,FALSE))","v":{"v":659478.963688811,"d":"659,479"}},{"$f":"($A26-$A25)/365.25*(AQ25+(Main!$I32*Main!$D$3))*(1+Main!$I$4+VLOOKUP('Random Years'!AO26,'Hist Returns'!$A$12:$D$107,4,FALSE))","v":{"v":328405.978663428,"d":"328,406"}},{"$f":"($A26-$A25)/365.25*(AR25+(Main!$I32*Main!$D$3))*(1+Main!$I$4+VLOOKUP('Random Years'!AP26,'Hist Returns'!$A$12:$D$107,4,FALSE))","v":{"v":622893.1519198548,"d":"622,893"}},{"$f":"($A26-$A25)/365.25*(AS25+(Main!$I32*Main!$D$3))*(1+Main!$I$4+VLOOKUP('Random Years'!AQ26,'Hist Returns'!$A$12:$D$107,4,FALSE))","v":{"v":1026539.3878309547,"d":"1,026,539"}},{"$f":"($A26-$A25)/365.25*(AT25+(Main!$I32*Main!$D$3))*(1+Main!$I$4+VLOOKUP('Random Years'!AR26,'Hist Returns'!$A$12:$D$107,4,FALSE))","v":{"v":970979.2157208123,"d":"970,979"}},{"$f":"($A26-$A25)/365.25*(AU25+(Main!$I32*Main!$D$3))*(1+Main!$I$4+VLOOKUP('Random Years'!AS26,'Hist Returns'!$A$12:$D$107,4,FALSE))","v":{"v":500993.67105265526,"d":"500,994"}},{"$f":"($A26-$A25)/365.25*(AV25+(Main!$I32*Main!$D$3))*(1+Main!$I$4+VLOOKUP('Random Years'!AT26,'Hist Returns'!$A$12:$D$107,4,FALSE))","v":{"v":945788.0736340228,"d":"945,788"}},{"$f":"($A26-$A25)/365.25*(AW25+(Main!$I32*Main!$D$3))*(1+Main!$I$4+VLOOKUP('Random Years'!AU26,'Hist Returns'!$A$12:$D$107,4,FALSE))","v":{"v":489680.43902273825,"d":"489,680"}},{"$f":"($A26-$A25)/365.25*(AX25+(Main!$I32*Main!$D$3))*(1+Main!$I$4+VLOOKUP('Random Years'!AV26,'Hist Returns'!$A$12:$D$107,4,FALSE))","v":{"v":688174.9702547635,"d":"688,175"}},{"$f":"($A26-$A25)/365.25*(AY25+(Main!$I32*Main!$D$3))*(1+Main!$I$4+VLOOKUP('Random Years'!AW26,'Hist Returns'!$A$12:$D$107,4,FALSE))","v":{"v":290559.9725257758,"d":"290,560"}},{"$f":"($A26-$A25)/365.25*(AZ25+(Main!$I32*Main!$D$3))*(1+Main!$I$4+VLOOKUP('Random Years'!AX26,'Hist Returns'!$A$12:$D$107,4,FALSE))","v":{"v":422706.70628805854,"d":"422,707"}},{"$f":"($A26-$A25)/365.25*(BA25+(Main!$I32*Main!$D$3))*(1+Main!$I$4+VLOOKUP('Random Years'!AY26,'Hist Returns'!$A$12:$D$107,4,FALSE))","v":{"v":477185.02359135216,"d":"477,185"}},{"$f":"($A26-$A25)/365.25*(BB25+(Main!$I32*Main!$D$3))*(1+Main!$I$4+VLOOKUP('Random Years'!AZ26,'Hist Returns'!$A$12:$D$107,4,FALSE))","v":{"v":308818.74685927783,"d":"308,819"}},{"$f":"($A26-$A25)/365.25*(BC25+(Main!$I32*Main!$D$3))*(1+Main!$I$4+VLOOKUP('Random Years'!BA26,'Hist Returns'!$A$12:$D$107,4,FALSE))","v":{"v":475625.46366777684,"d":"475,625"}},{"$f":"($A26-$A25)/365.25*(BD25+(Main!$I32*Main!$D$3))*(1+Main!$I$4+VLOOKUP('Random Years'!BB26,'Hist Returns'!$A$12:$D$107,4,FALSE))","v":{"v":537983.6341745812,"d":"537,984"}},{"$f":"($A26-$A25)/365.25*(BE25+(Main!$I32*Main!$D$3))*(1+Main!$I$4+VLOOKUP('Random Years'!BC26,'Hist Returns'!$A$12:$D$107,4,FALSE))","v":{"v":780772.2286479572,"d":"780,772"}},{"$f":"($A26-$A25)/365.25*(BF25+(Main!$I32*Main!$D$3))*(1+Main!$I$4+VLOOKUP('Random Years'!BD26,'Hist Returns'!$A$12:$D$107,4,FALSE))","v":{"v":1082073.0678101082,"d":"1,082,073"}},{"$f":"($A26-$A25)/365.25*(BG25+(Main!$I32*Main!$D$3))*(1+Main!$I$4+VLOOKUP('Random Years'!BE26,'Hist Returns'!$A$12:$D$107,4,FALSE))","v":{"v":430758.6218790036,"d":"430,759"}},{"$f":"($A26-$A25)/365.25*(BH25+(Main!$I32*Main!$D$3))*(1+Main!$I$4+VLOOKUP('Random Years'!BF26,'Hist Returns'!$A$12:$D$107,4,FALSE))","v":{"v":398829.0868393627,"d":"398,829"}},{"$f":"($A26-$A25)/365.25*(BI25+(Main!$I32*Main!$D$3))*(1+Main!$I$4+VLOOKUP('Random Years'!BG26,'Hist Returns'!$A$12:$D$107,4,FALSE))","v":{"v":1356720.4734139328,"d":"1,356,720"}},{"$f":"($A26-$A25)/365.25*(BJ25+(Main!$I32*Main!$D$3))*(1+Main!$I$4+VLOOKUP('Random Years'!BH26,'Hist Returns'!$A$12:$D$107,4,FALSE))","v":{"v":673088.3827088143,"d":"673,088"}},{"$f":"($A26-$A25)/365.25*(BK25+(Main!$I32*Main!$D$3))*(1+Main!$I$4+VLOOKUP('Random Years'!BI26,'Hist Returns'!$A$12:$D$107,4,FALSE))","v":{"v":616235.4725065827,"d":"616,235"}},{"$f":"($A26-$A25)/365.25*(BL25+(Main!$I32*Main!$D$3))*(1+Main!$I$4+VLOOKUP('Random Years'!BJ26,'Hist Returns'!$A$12:$D$107,4,FALSE))","v":{"v":426133.22682286403,"d":"426,133"}},{"$f":"($A26-$A25)/365.25*(BM25+(Main!$I32*Main!$D$3))*(1+Main!$I$4+VLOOKUP('Random Years'!BK26,'Hist Returns'!$A$12:$D$107,4,FALSE))","v":{"v":822147.5470204084,"d":"822,148"}},{"$f":"($A26-$A25)/365.25*(BN25+(Main!$I32*Main!$D$3))*(1+Main!$I$4+VLOOKUP('Random Years'!BL26,'Hist Returns'!$A$12:$D$107,4,FALSE))","v":{"v":1289710.577699964,"d":"1,289,711"}},{"$f":"($A26-$A25)/365.25*(BO25+(Main!$I32*Main!$D$3))*(1+Main!$I$4+VLOOKUP('Random Years'!BM26,'Hist Returns'!$A$12:$D$107,4,FALSE))","v":{"v":312656.93552550586,"d":"312,657"}},{"$f":"($A26-$A25)/365.25*(BP25+(Main!$I32*Main!$D$3))*(1+Main!$I$4+VLOOKUP('Random Years'!BN26,'Hist Returns'!$A$12:$D$107,4,FALSE))","v":{"v":588382.1613708464,"d":"588,382"}},{"$f":"($A26-$A25)/365.25*(BQ25+(Main!$I32*Main!$D$3))*(1+Main!$I$4+VLOOKUP('Random Years'!BO26,'Hist Returns'!$A$12:$D$107,4,FALSE))","v":{"v":589213.1673299728,"d":"589,213"}},{"$f":"($A26-$A25)/365.25*(BR25+(Main!$I32*Main!$D$3))*(1+Main!$I$4+VLOOKUP('Random Years'!BP26,'Hist Returns'!$A$12:$D$107,4,FALSE))","v":{"v":471097.06233128556,"d":"471,097"}},{"$f":"($A26-$A25)/365.25*(BS25+(Main!$I32*Main!$D$3))*(1+Main!$I$4+VLOOKUP('Random Years'!BQ26,'Hist Returns'!$A$12:$D$107,4,FALSE))","v":{"v":725487.1218744137,"d":"725,487"}},{"$f":"($A26-$A25)/365.25*(BT25+(Main!$I32*Main!$D$3))*(1+Main!$I$4+VLOOKUP('Random Years'!BR26,'Hist Returns'!$A$12:$D$107,4,FALSE))","v":{"v":318884.3661678651,"d":"318,884"}},{"$f":"($A26-$A25)/365.25*(BU25+(Main!$I32*Main!$D$3))*(1+Main!$I$4+VLOOKUP('Random Years'!BS26,'Hist Returns'!$A$12:$D$107,4,FALSE))","v":{"v":564339.4631493272,"d":"564,339"}},{"$f":"($A26-$A25)/365.25*(BV25+(Main!$I32*Main!$D$3))*(1+Main!$I$4+VLOOKUP('Random Years'!BT26,'Hist Returns'!$A$12:$D$107,4,FALSE))","v":{"v":150618.2513392574,"d":"150,618"}},{"$f":"($A26-$A25)/365.25*(BW25+(Main!$I32*Main!$D$3))*(1+Main!$I$4+VLOOKUP('Random Years'!BU26,'Hist Returns'!$A$12:$D$107,4,FALSE))","v":{"v":491786.2069878453,"d":"491,786"}},{"$f":"($A26-$A25)/365.25*(BX25+(Main!$I32*Main!$D$3))*(1+Main!$I$4+VLOOKUP('Random Years'!BV26,'Hist Returns'!$A$12:$D$107,4,FALSE))","v":{"v":499881.8542062215,"d":"499,882"}},{"$f":"($A26-$A25)/365.25*(BY25+(Main!$I32*Main!$D$3))*(1+Main!$I$4+VLOOKUP('Random Years'!BW26,'Hist Returns'!$A$12:$D$107,4,FALSE))","v":{"v":444344.97254231974,"d":"444,345"}},{"$f":"($A26-$A25)/365.25*(BZ25+(Main!$I32*Main!$D$3))*(1+Main!$I$4+VLOOKUP('Random Years'!BX26,'Hist Returns'!$A$12:$D$107,4,FALSE))","v":{"v":213790.6011013059,"d":"213,791"}},{"$f":"($A26-$A25)/365.25*(CA25+(Main!$I32*Main!$D$3))*(1+Main!$I$4+VLOOKUP('Random Years'!BY26,'Hist Returns'!$A$12:$D$107,4,FALSE))","v":{"v":1163717.6682794378,"d":"1,163,718"}},{"$f":"($A26-$A25)/365.25*(CB25+(Main!$I32*Main!$D$3))*(1+Main!$I$4+VLOOKUP('Random Years'!BZ26,'Hist Returns'!$A$12:$D$107,4,FALSE))","v":{"v":638376.8452916284,"d":"638,377"}},{"$f":"($A26-$A25)/365.25*(CC25+(Main!$I32*Main!$D$3))*(1+Main!$I$4+VLOOKUP('Random Years'!CA26,'Hist Returns'!$A$12:$D$107,4,FALSE))","v":{"v":1749716.401385567,"d":"1,749,716"}},{"$f":"($A26-$A25)/365.25*(CD25+(Main!$I32*Main!$D$3))*(1+Main!$I$4+VLOOKUP('Random Years'!CB26,'Hist Returns'!$A$12:$D$107,4,FALSE))","v":{"v":693853.0091857674,"d":"693,853"}},{"$f":"($A26-$A25)/365.25*(CE25+(Main!$I32*Main!$D$3))*(1+Main!$I$4+VLOOKUP('Random Years'!CC26,'Hist Returns'!$A$12:$D$107,4,FALSE))","v":{"v":562800.9940214903,"d":"562,801"}},{"$f":"($A26-$A25)/365.25*(CF25+(Main!$I32*Main!$D$3))*(1+Main!$I$4+VLOOKUP('Random Years'!CD26,'Hist Returns'!$A$12:$D$107,4,FALSE))","v":{"v":653719.9555107242,"d":"653,720"}},{"$f":"($A26-$A25)/365.25*(CG25+(Main!$I32*Main!$D$3))*(1+Main!$I$4+VLOOKUP('Random Years'!CE26,'Hist Returns'!$A$12:$D$107,4,FALSE))","v":{"v":745096.4589477971,"d":"745,096"}},{"$f":"($A26-$A25)/365.25*(CH25+(Main!$I32*Main!$D$3))*(1+Main!$I$4+VLOOKUP('Random Years'!CF26,'Hist Returns'!$A$12:$D$107,4,FALSE))","v":{"v":567978.1086986761,"d":"567,978"}},{"$f":"($A26-$A25)/365.25*(CI25+(Main!$I32*Main!$D$3))*(1+Main!$I$4+VLOOKUP('Random Years'!CG26,'Hist Returns'!$A$12:$D$107,4,FALSE))","v":{"v":1233096.0670916801,"d":"1,233,096"}},{"$f":"($A26-$A25)/365.25*(CJ25+(Main!$I32*Main!$D$3))*(1+Main!$I$4+VLOOKUP('Random Years'!CH26,'Hist Returns'!$A$12:$D$107,4,FALSE))","v":{"v":600176.8996305782,"d":"600,177"}},{"$f":"($A26-$A25)/365.25*(CK25+(Main!$I32*Main!$D$3))*(1+Main!$I$4+VLOOKUP('Random Years'!CI26,'Hist Returns'!$A$12:$D$107,4,FALSE))","v":{"v":576709.8634701284,"d":"576,710"}},{"$f":"($A26-$A25)/365.25*(CL25+(Main!$I32*Main!$D$3))*(1+Main!$I$4+VLOOKUP('Random Years'!CJ26,'Hist Returns'!$A$12:$D$107,4,FALSE))","v":{"v":846288.5336173837,"d":"846,289"}},{"$f":"($A26-$A25)/365.25*(CM25+(Main!$I32*Main!$D$3))*(1+Main!$I$4+VLOOKUP('Random Years'!CK26,'Hist Returns'!$A$12:$D$107,4,FALSE))","v":{"v":372704.3564815847,"d":"372,704"}},{"$f":"($A26-$A25)/365.25*(CN25+(Main!$I32*Main!$D$3))*(1+Main!$I$4+VLOOKUP('Random Years'!CL26,'Hist Returns'!$A$12:$D$107,4,FALSE))","v":{"v":822064.3909888384,"d":"822,064"}},{"$f":"($A26-$A25)/365.25*(CO25+(Main!$I32*Main!$D$3))*(1+Main!$I$4+VLOOKUP('Random Years'!CM26,'Hist Returns'!$A$12:$D$107,4,FALSE))","v":{"v":514101.5905136711,"d":"514,102"}},{"$f":"($A26-$A25)/365.25*(CP25+(Main!$I32*Main!$D$3))*(1+Main!$I$4+VLOOKUP('Random Years'!CN26,'Hist Returns'!$A$12:$D$107,4,FALSE))","v":{"v":635001.7816558467,"d":"635,002"}},{"$f":"($A26-$A25)/365.25*(CQ25+(Main!$I32*Main!$D$3))*(1+Main!$I$4+VLOOKUP('Random Years'!CO26,'Hist Returns'!$A$12:$D$107,4,FALSE))","v":{"v":560095.3010543172,"d":"560,095"}},{"$f":"($A26-$A25)/365.25*(CR25+(Main!$I32*Main!$D$3))*(1+Main!$I$4+VLOOKUP('Random Years'!CP26,'Hist Returns'!$A$12:$D$107,4,FALSE))","v":{"v":529712.2081230829,"d":"529,712"}},{"$f":"($A26-$A25)/365.25*(CS25+(Main!$I32*Main!$D$3))*(1+Main!$I$4+VLOOKUP('Random Years'!CQ26,'Hist Returns'!$A$12:$D$107,4,FALSE))","v":{"v":428766.9696792129,"d":"428,767"}},{"$f":"($A26-$A25)/365.25*(CT25+(Main!$I32*Main!$D$3))*(1+Main!$I$4+VLOOKUP('Random Years'!CR26,'Hist Returns'!$A$12:$D$107,4,FALSE))","v":{"v":225202.5521258172,"d":"225,203"}},{"$f":"($A26-$A25)/365.25*(CU25+(Main!$I32*Main!$D$3))*(1+Main!$I$4+VLOOKUP('Random Years'!CS26,'Hist Returns'!$A$12:$D$107,4,FALSE))","v":{"v":1173393.610978767,"d":"1,173,394"}},{"$f":"($A26-$A25)/365.25*(CV25+(Main!$I32*Main!$D$3))*(1+Main!$I$4+VLOOKUP('Random Years'!CT26,'Hist Returns'!$A$12:$D$107,4,FALSE))","v":{"v":647522.7489507904,"d":"647,523"}},{"$f":"($A26-$A25)/365.25*(CW25+(Main!$I32*Main!$D$3))*(1+Main!$I$4+VLOOKUP('Random Years'!CU26,'Hist Returns'!$A$12:$D$107,4,FALSE))","v":{"v":585066.081465306,"d":"585,066"}},{"$f":"($A26-$A25)/365.25*(CX25+(Main!$I32*Main!$D$3))*(1+Main!$I$4+VLOOKUP('Random Years'!CV26,'Hist Returns'!$A$12:$D$107,4,FALSE))","v":{"v":485273.2527857843,"d":"485,273"}}]
[{"$f":"Main!A33","v":"2048-12-30"},{"$f":"Main!B33","v":94},{"$f":"($A27-$A26)/365.25*(C26+(Main!$I33*Main!$D$3))*(1+Main!$I$4+VLOOKUP('Random Years'!A27,'Hist Returns'!$A$12:$D$107,4,FALSE))","v":{"v":424529.9161379701,"d":"424,530"}},{"$f":"($A27-$A26)/365.25*(D26+(Main!$I33*Main!$D$3))*(1+Main!$I$4+VLOOKUP('Random Years'!B27,'Hist Returns'!$A$12:$D$107,4,FALSE))","v":{"v":328629.43916208646,"d":"328,629"}},{"$f":"($A27-$A26)/365.25*(E26+(Main!$I33*Main!$D$3))*(1+Main!$I$4+VLOOKUP('Random Years'!C27,'Hist Returns'!$A$12:$D$107,4,FALSE))","v":{"v":424463.22109544656,"d":"424,463"}},{"$f":"($A27-$A26)/365.25*(F26+(Main!$I33*Main!$D$3))*(1+Main!$I$4+VLOOKUP('Random Years'!D27,'Hist Returns'!$A$12:$D$107,4,FALSE))","v":{"v":909069.0931699047,"d":"909,069"}},{"$f":"($A27-$A26)/365.25*(G26+(Main!$I33*Main!$D$3))*(1+Main!$I$4+VLOOKUP('Random Years'!E27,'Hist Returns'!$A$12:$D$107,4,FALSE))","v":{"v":1599914.1907932023,"d":"1,599,914"}},{"$f":"($A27-$A26)/365.25*(H26+(Main!$I33*Main!$D$3))*(1+Main!$I$4+VLOOKUP('Random Years'!F27,'Hist Returns'!$A$12:$D$107,4,FALSE))","v":{"v":762817.6886163474,"d":"762,818"}},{"$f":"($A27-$A26)/365.25*(I26+(Main!$I33*Main!$D$3))*(1+Main!$I$4+VLOOKUP('Random Years'!G27,'Hist Returns'!$A$12:$D$107,4,FALSE))","v":{"v":740103.6487463178,"d":"740,104"}},{"$f":"($A27-$A26)/365.25*(J26+(Main!$I33*Main!$D$3))*(1+Main!$I$4+VLOOKUP('Random Years'!H27,'Hist Returns'!$A$12:$D$107,4,FALSE))","v":{"v":905009.658601988,"d":"905,010"}},{"$f":"($A27-$A26)/365.25*(K26+(Main!$I33*Main!$D$3))*(1+Main!$I$4+VLOOKUP('Random Years'!I27,'Hist Returns'!$A$12:$D$107,4,FALSE))","v":{"v":615614.8230619988,"d":"615,615"}},{"$f":"($A27-$A26)/365.25*(L26+(Main!$I33*Main!$D$3))*(1+Main!$I$4+VLOOKUP('Random Years'!J27,'Hist Returns'!$A$12:$D$107,4,FALSE))","v":{"v":588279.5538920526,"d":"588,280"}},{"$f":"($A27-$A26)/365.25*(M26+(Main!$I33*Main!$D$3))*(1+Main!$I$4+VLOOKUP('Random Years'!K27,'Hist Returns'!$A$12:$D$107,4,FALSE))","v":{"v":287179.4726377951,"d":"287,179"}},{"$f":"($A27-$A26)/365.25*(N26+(Main!$I33*Main!$D$3))*(1+Main!$I$4+VLOOKUP('Random Years'!L27,'Hist Returns'!$A$12:$D$107,4,FALSE))","v":{"v":799457.8361816551,"d":"799,458"}},{"$f":"($A27-$A26)/365.25*(O26+(Main!$I33*Main!$D$3))*(1+Main!$I$4+VLOOKUP('Random Years'!M27,'Hist Returns'!$A$12:$D$107,4,FALSE))","v":{"v":452973.82902135816,"d":"452,974"}},{"$f":"($A27-$A26)/365.25*(P26+(Main!$I33*Main!$D$3))*(1+Main!$I$4+VLOOKUP('Random Years'!N27,'Hist Returns'!$A$12:$D$107,4,FALSE))","v":{"v":519374.3988157494,"d":"519,374"}},{"$f":"($A27-$A26)/365.25*(Q26+(Main!$I33*Main!$D$3))*(1+Main!$I$4+VLOOKUP('Random Years'!O27,'Hist Returns'!$A$12:$D$107,4,FALSE))","v":{"v":540832.1437841995,"d":"540,832"}},{"$f":"($A27-$A26)/365.25*(R26+(Main!$I33*Main!$D$3))*(1+Main!$I$4+VLOOKUP('Random Years'!P27,'Hist Returns'!$A$12:$D$107,4,FALSE))","v":{"v":562255.0176076427,"d":"562,255"}},{"$f":"($A27-$A26)/365.25*(S26+(Main!$I33*Main!$D$3))*(1+Main!$I$4+VLOOKUP('Random Years'!Q27,'Hist Returns'!$A$12:$D$107,4,FALSE))","v":{"v":224857.85571875738,"d":"224,858"}},{"$f":"($A27-$A26)/365.25*(T26+(Main!$I33*Main!$D$3))*(1+Main!$I$4+VLOOKUP('Random Years'!R27,'Hist Returns'!$A$12:$D$107,4,FALSE))","v":{"v":453824.2127110897,"d":"453,824"}},{"$f":"($A27-$A26)/365.25*(U26+(Main!$I33*Main!$D$3))*(1+Main!$I$4+VLOOKUP('Random Years'!S27,'Hist Returns'!$A$12:$D$107,4,FALSE))","v":{"v":535081.0802451834,"d":"535,081"}},{"$f":"($A27-$A26)/365.25*(V26+(Main!$I33*Main!$D$3))*(1+Main!$I$4+VLOOKUP('Random Years'!T27,'Hist Returns'!$A$12:$D$107,4,FALSE))","v":{"v":1102396.2388877587,"d":"1,102,396"}},{"$f":"($A27-$A26)/365.25*(W26+(Main!$I33*Main!$D$3))*(1+Main!$I$4+VLOOKUP('Random Years'!U27,'Hist Returns'!$A$12:$D$107,4,FALSE))","v":{"v":609538.7996591049,"d":"609,539"}},{"$f":"($A27-$A26)/365.25*(X26+(Main!$I33*Main!$D$3))*(1+Main!$I$4+VLOOKUP('Random Years'!V27,'Hist Returns'!$A$12:$D$107,4,FALSE))","v":{"v":621862.0395340965,"d":"621,862"}},{"$f":"($A27-$A26)/365.25*(Y26+(Main!$I33*Main!$D$3))*(1+Main!$I$4+VLOOKUP('Random Years'!W27,'Hist Returns'!$A$12:$D$107,4,FALSE))","v":{"v":317997.3104578368,"d":"317,997"}},{"$f":"($A27-$A26)/365.25*(Z26+(Main!$I33*Main!$D$3))*(1+Main!$I$4+VLOOKUP('Random Years'!X27,'Hist Returns'!$A$12:$D$107,4,FALSE))","v":{"v":1077066.8126088544,"d":"1,077,067"}},{"$f":"($A27-$A26)/365.25*(AA26+(Main!$I33*Main!$D$3))*(1+Main!$I$4+VLOOKUP('Random Years'!Y27,'Hist Returns'!$A$12:$D$107,4,FALSE))","v":{"v":588714.0409333771,"d":"588,714"}},{"$f":"($A27-$A26)/365.25*(AB26+(Main!$I33*Main!$D$3))*(1+Main!$I$4+VLOOKUP('Random Years'!Z27,'Hist Returns'!$A$12:$D$107,4,FALSE))","v":{"v":560723.9431907629,"d":"560,724"}},{"$f":"($A27-$A26)/365.25*(AC26+(Main!$I33*Main!$D$3))*(1+Main!$I$4+VLOOKUP('Random Years'!AA27,'Hist Returns'!$A$12:$D$107,4,FALSE))","v":{"v":515859.08750280575,"d":"515,859"}},{"$f":"($A27-$A26)/365.25*(AD26+(Main!$I33*Main!$D$3))*(1+Main!$I$4+VLOOKUP('Random Years'!AB27,'Hist Returns'!$A$12:$D$107,4,FALSE))","v":{"v":787969.967819833,"d":"787,970"}},{"$f":"($A27-$A26)/365.25*(AE26+(Main!$I33*Main!$D$3))*(1+Main!$I$4+VLOOKUP('Random Years'!AC27,'Hist Returns'!$A$12:$D$107,4,FALSE))","v":{"v":868450.6808452215,"d":"868,451"}},{"$f":"($A27-$A26)/365.25*(AF26+(Main!$I33*Main!$D$3))*(1+Main!$I$4+VLOOKUP('Random Years'!AD27,'Hist Returns'!$A$12:$D$107,4,FALSE))","v":{"v":407526.5189405718,"d":"407,527"}},{"$f":"($A27-$A26)/365.25*(AG26+(Main!$I33*Main!$D$3))*(1+Main!$I$4+VLOOKUP('Random Years'!AE27,'Hist Returns'!$A$12:$D$107,4,FALSE))","v":{"v":806451.2615159348,"d":"806,451"}},{"$f":"($A27-$A26)/365.25*(AH26+(Main!$I33*Main!$D$3))*(1+Main!$I$4+VLOOKUP('Random Years'!AF27,'Hist Returns'!$A$12:$D$107,4,FALSE))","v":{"v":508836.7643638925,"d":"508,837"}},{"$f":"($A27-$A26)/365.25*(AI26+(Main!$I33*Main!$D$3))*(1+Main!$I$4+VLOOKUP('Random Years'!AG27,'Hist Returns'!$A$12:$D$107,4,FALSE))","v":{"v":529334.9604173969,"d":"529,335"}},{"$f":"($A27-$A26)/365.25*(AJ26+(Main!$I33*Main!$D$3))*(1+Main!$I$4+VLOOKUP('Random Years'!AH27,'Hist Returns'!$A$12:$D$107,4,FALSE))","v":{"v":1067059.974256292,"d":"1,067,060"}},{"$f":"($A27-$A26)/365.25*(AK26+(Main!$I33*Main!$D$3))*(1+Main!$I$4+VLOOKUP('Random Years'!AI27,'Hist Returns'!$A$12:$D$107,4,FALSE))","v":{"v":827941.5819641764,"d":"827,942"}},{"$f":"($A27-$A26)/365.25*(AL26+(Main!$I33*Main!$D$3))*(1+Main!$I$4+VLOOKUP('Random Years'!AJ27,'Hist Returns'!$A$12:$D$107,4,FALSE))","v":{"v":527419.0647874718,"d":"527,419"}},{"$f":"($A27-$A26)/365.25*(AM26+(Main!$I33*Main!$D$3))*(1+Main!$I$4+VLOOKUP('Random Years'!AK27,'Hist Returns'!$A$12:$D$107,4,FALSE))","v":{"v":909575.543182175,"d":"909,576"}},{"$f":"($A27-$A26)/365.25*(AN26+(Main!$I33*Main!$D$3))*(1+Main!$I$4+VLOOKUP('Random Years'!AL27,'Hist Returns'!$A$12:$D$107,4,FALSE))","v":{"v":612363.6460336614,"d":"612,364"}},{"$f":"($A27-$A26)/365.25*(AO26+(Main!$I33*Main!$D$3))*(1+Main!$I$4+VLOOKUP('Random Years'!AM27,'Hist Returns'!$A$12:$D$107,4,FALSE))","v":{"v":509849.3634270004,"d":"509,849"}},{"$f":"($A27-$A26)/365.25*(AP26+(Main!$I33*Main!$D$3))*(1+Main!$I$4+VLOOKUP('Random Years'!AN27,'Hist Returns'!$A$12:$D$107,4,FALSE))","v":{"v":648651.5024403335,"d":"648,652"}},{"$f":"($A27-$A26)/365.25*(AQ26+(Main!$I33*Main!$D$3))*(1+Main!$I$4+VLOOKUP('Random Years'!AO27,'Hist Returns'!$A$12:$D$107,4,FALSE))","v":{"v":342722.61010536616,"d":"342,723"}},{"$f":"($A27-$A26)/365.25*(AR26+(Main!$I33*Main!$D$3))*(1+Main!$I$4+VLOOKUP('Random Years'!AP27,'Hist Returns'!$A$12:$D$107,4,FALSE))","v":{"v":595571.2804436965,"d":"595,571"}},{"$f":"($A27-$A26)/365.25*(AS26+(Main!$I33*Main!$D$3))*(1+Main!$I$4+VLOOKUP('Random Years'!AQ27,'Hist Returns'!$A$12:$D$107,4,FALSE))","v":{"v":1038789.1360526523,"d":"1,038,789"}},{"$f":"($A27-$A26)/365.25*(AT26+(Main!$I33*Main!$D$3))*(1+Main!$I$4+VLOOKUP('Random Years'!AR27,'Hist Returns'!$A$12:$D$107,4,FALSE))","v":{"v":931831.2861803215,"d":"931,831"}},{"$f":"($A27-$A26)/365.25*(AU26+(Main!$I33*Main!$D$3))*(1+Main!$I$4+VLOOKUP('Random Years'!AS27,'Hist Returns'!$A$12:$D$107,4,FALSE))","v":{"v":569179.3760642416,"d":"569,179"}},{"$f":"($A27-$A26)/365.25*(AV26+(Main!$I33*Main!$D$3))*(1+Main!$I$4+VLOOKUP('Random Years'!AT27,'Hist Returns'!$A$12:$D$107,4,FALSE))","v":{"v":962509.112672807,"d":"962,509"}},{"$f":"($A27-$A26)/365.25*(AW26+(Main!$I33*Main!$D$3))*(1+Main!$I$4+VLOOKUP('Random Years'!AU27,'Hist Returns'!$A$12:$D$107,4,FALSE))","v":{"v":501920.8614542821,"d":"501,921"}},{"$f":"($A27-$A26)/365.25*(AX26+(Main!$I33*Main!$D$3))*(1+Main!$I$4+VLOOKUP('Random Years'!AV27,'Hist Returns'!$A$12:$D$107,4,FALSE))","v":{"v":720402.6764677035,"d":"720,403"}},{"$f":"($A27-$A26)/365.25*(AY26+(Main!$I33*Main!$D$3))*(1+Main!$I$4+VLOOKUP('Random Years'!AW27,'Hist Returns'!$A$12:$D$107,4,FALSE))","v":{"v":288863.74391842104,"d":"288,864"}},{"$f":"($A27-$A26)/365.25*(AZ26+(Main!$I33*Main!$D$3))*(1+Main!$I$4+VLOOKUP('Random Years'!AX27,'Hist Returns'!$A$12:$D$107,4,FALSE))","v":{"v":397030.6213369842,"d":"397,031"}},{"$f":"($A27-$A26)/365.25*(BA26+(Main!$I33*Main!$D$3))*(1+Main!$I$4+VLOOKUP('Random Years'!AY27,'Hist Returns'!$A$12:$D$107,4,FALSE))","v":{"v":470102.88247677084,"d":"470,103"}},{"$f":"($A27-$A26)/365.25*(BB26+(Main!$I33*Main!$D$3))*(1+Main!$I$4+VLOOKUP('Random Years'!AZ27,'Hist Returns'!$A$12:$D$107,4,FALSE))","v":{"v":297580.54514037207,"d":"297,581"}},{"$f":"($A27-$A26)/365.25*(BC26+(Main!$I33*Main!$D$3))*(1+Main!$I$4+VLOOKUP('Random Years'!BA27,'Hist Returns'!$A$12:$D$107,4,FALSE))","v":{"v":532009.5048449605,"d":"532,010"}},{"$f":"($A27-$A26)/365.25*(BD26+(Main!$I33*Main!$D$3))*(1+Main!$I$4+VLOOKUP('Random Years'!BB27,'Hist Returns'!$A$12:$D$107,4,FALSE))","v":{"v":541248.6405194805,"d":"541,249"}},{"$f":"($A27-$A26)/365.25*(BE26+(Main!$I33*Main!$D$3))*(1+Main!$I$4+VLOOKUP('Random Years'!BC27,'Hist Returns'!$A$12:$D$107,4,FALSE))","v":{"v":838898.9982795796,"d":"838,899"}},{"$f":"($A27-$A26)/365.25*(BF26+(Main!$I33*Main!$D$3))*(1+Main!$I$4+VLOOKUP('Random Years'!BD27,'Hist Returns'!$A$12:$D$107,4,FALSE))","v":{"v":1089423.6513381747,"d":"1,089,424"}},{"$f":"($A27-$A26)/365.25*(BG26+(Main!$I33*Main!$D$3))*(1+Main!$I$4+VLOOKUP('Random Years'!BE27,'Hist Returns'!$A$12:$D$107,4,FALSE))","v":{"v":484230.59760404896,"d":"484,231"}},{"$f":"($A27-$A26)/365.25*(BH26+(Main!$I33*Main!$D$3))*(1+Main!$I$4+VLOOKUP('Random Years'!BF27,'Hist Returns'!$A$12:$D$107,4,FALSE))","v":{"v":390720.6742860406,"d":"390,721"}},{"$f":"($A27-$A26)/365.25*(BI26+(Main!$I33*Main!$D$3))*(1+Main!$I$4+VLOOKUP('Random Years'!BG27,'Hist Returns'!$A$12:$D$107,4,FALSE))","v":{"v":1398278.020083779,"d":"1,398,278"}},{"$f":"($A27-$A26)/365.25*(BJ26+(Main!$I33*Main!$D$3))*(1+Main!$I$4+VLOOKUP('Random Years'!BH27,'Hist Returns'!$A$12:$D$107,4,FALSE))","v":{"v":695105.0675947111,"d":"695,105"}},{"$f":"($A27-$A26)/365.25*(BK26+(Main!$I33*Main!$D$3))*(1+Main!$I$4+VLOOKUP('Random Years'!BI27,'Hist Returns'!$A$12:$D$107,4,FALSE))","v":{"v":625590.7641987418,"d":"625,591"}},{"$f":"($A27-$A26)/365.25*(BL26+(Main!$I33*Main!$D$3))*(1+Main!$I$4+VLOOKUP('Random Years'!BJ27,'Hist Returns'!$A$12:$D$107,4,FALSE))","v":{"v":440741.47084219416,"d":"440,741"}},{"$f":"($A27-$A26)/365.25*(BM26+(Main!$I33*Main!$D$3))*(1+Main!$I$4+VLOOKUP('Random Years'!BK27,'Hist Returns'!$A$12:$D$107,4,FALSE))","v":{"v":863383.4544473517,"d":"863,383"}},{"$f":"($A27-$A26)/365.25*(BN26+(Main!$I33*Main!$D$3))*(1+Main!$I$4+VLOOKUP('Random Years'!BL27,'Hist Returns'!$A$12:$D$107,4,FALSE))","v":{"v":1332725.975214273,"d":"1,332,726"}},{"$f":"($A27-$A26)/365.25*(BO26+(Main!$I33*Main!$D$3))*(1+Main!$I$4+VLOOKUP('Random Years'!BM27,'Hist Returns'!$A$12:$D$107,4,FALSE))","v":{"v":306744.57742331637,"d":"306,745"}},{"$f":"($A27-$A26)/365.25*(BP26+(Main!$I33*Main!$D$3))*(1+Main!$I$4+VLOOKUP('Random Years'!BN27,'Hist Returns'!$A$12:$D$107,4,FALSE))","v":{"v":666712.5471463981,"d":"666,713"}},{"$f":"($A27-$A26)/365.25*(BQ26+(Main!$I33*Main!$D$3))*(1+Main!$I$4+VLOOKUP('Random Years'!BO27,'Hist Returns'!$A$12:$D$107,4,FALSE))","v":{"v":593667.9149733494,"d":"593,668"}},{"$f":"($A27-$A26)/365.25*(BR26+(Main!$I33*Main!$D$3))*(1+Main!$I$4+VLOOKUP('Random Years'!BP27,'Hist Returns'!$A$12:$D$107,4,FALSE))","v":{"v":406751.2294041924,"d":"406,751"}},{"$f":"($A27-$A26)/365.25*(BS26+(Main!$I33*Main!$D$3))*(1+Main!$I$4+VLOOKUP('Random Years'!BQ27,'Hist Returns'!$A$12:$D$107,4,FALSE))","v":{"v":745036.365671404,"d":"745,036"}},{"$f":"($A27-$A26)/365.25*(BT26+(Main!$I33*Main!$D$3))*(1+Main!$I$4+VLOOKUP('Random Years'!BR27,'Hist Returns'!$A$12:$D$107,4,FALSE))","v":{"v":277699.5127808722,"d":"277,700"}},{"$f":"($A27-$A26)/365.25*(BU26+(Main!$I33*Main!$D$3))*(1+Main!$I$4+VLOOKUP('Random Years'!BS27,'Hist Returns'!$A$12:$D$107,4,FALSE))","v":{"v":552869.7259493694,"d":"552,870"}},{"$f":"($A27-$A26)/365.25*(BV26+(Main!$I33*Main!$D$3))*(1+Main!$I$4+VLOOKUP('Random Years'!BT27,'Hist Returns'!$A$12:$D$107,4,FALSE))","v":{"v":140058.14496820277,"d":"140,058"}},{"$f":"($A27-$A26)/365.25*(BW26+(Main!$I33*Main!$D$3))*(1+Main!$I$4+VLOOKUP('Random Years'!BU27,'Hist Returns'!$A$12:$D$107,4,FALSE))","v":{"v":496130.15785075666,"d":"496,130"}},{"$f":"($A27-$A26)/365.25*(BX26+(Main!$I33*Main!$D$3))*(1+Main!$I$4+VLOOKUP('Random Years'!BV27,'Hist Returns'!$A$12:$D$107,4,FALSE))","v":{"v":493096.9861506517,"d":"493,097"}},{"$f":"($A27-$A26)/365.25*(BY26+(Main!$I33*Main!$D$3))*(1+Main!$I$4+VLOOKUP('Random Years'!BW27,'Hist Returns'!$A$12:$D$107,4,FALSE))","v":{"v":448745.5006339757,"d":"448,746"}},{"$f":"($A27-$A26)/365.25*(BZ26+(Main!$I33*Main!$D$3))*(1+Main!$I$4+VLOOKUP('Random Years'!BX27,'Hist Returns'!$A$12:$D$107,4,FALSE))","v":{"v":201838.28837826021,"d":"201,838"}},{"$f":"($A27-$A26)/365.25*(CA26+(Main!$I33*Main!$D$3))*(1+Main!$I$4+VLOOKUP('Random Years'!BY27,'Hist Returns'!$A$12:$D$107,4,FALSE))","v":{"v":1149578.4909205611,"d":"1,149,578"}},{"$f":"($A27-$A26)/365.25*(CB26+(Main!$I33*Main!$D$3))*(1+Main!$I$4+VLOOKUP('Random Years'!BZ27,'Hist Returns'!$A$12:$D$107,4,FALSE))","v":{"v":683279.6641634183,"d":"683,280"}},{"$f":"($A27-$A26)/365.25*(CC26+(Main!$I33*Main!$D$3))*(1+Main!$I$4+VLOOKUP('Random Years'!CA27,'Hist Returns'!$A$12:$D$107,4,FALSE))","v":{"v":1807278.933922356,"d":"1,807,279"}},{"$f":"($A27-$A26)/365.25*(CD26+(Main!$I33*Main!$D$3))*(1+Main!$I$4+VLOOKUP('Random Years'!CB27,'Hist Returns'!$A$12:$D$107,4,FALSE))","v":{"v":789304.096828709,"d":"789,304"}},{"$f":"($A27-$A26)/365.25*(CE26+(Main!$I33*Main!$D$3))*(1+Main!$I$4+VLOOKUP('Random Years'!CC27,'Hist Returns'!$A$12:$D$107,4,FALSE))","v":{"v":573930.8017175564,"d":"573,931"}},{"$f":"($A27-$A26)/365.25*(CF26+(Main!$I33*Main!$D$3))*(1+Main!$I$4+VLOOKUP('Random Years'!CD27,'Hist Returns'!$A$12:$D$107,4,FALSE))","v":{"v":608025.7550773208,"d":"608,026"}},{"$f":"($A27-$A26)/365.25*(CG26+(Main!$I33*Main!$D$3))*(1+Main!$I$4+VLOOKUP('Random Years'!CE27,'Hist Returns'!$A$12:$D$107,4,FALSE))","v":{"v":712077.3294657732,"d":"712,077"}},{"$f":"($A27-$A26)/365.25*(CH26+(Main!$I33*Main!$D$3))*(1+Main!$I$4+VLOOKUP('Random Years'!CF27,'Hist Returns'!$A$12:$D$107,4,FALSE))","v":{"v":541931.7358034059,"d":"541,932"}},{"$f":"($A27-$A26)/365.25*(CI26+(Main!$I33*Main!$D$3))*(1+Main!$I$4+VLOOKUP('Random Years'!CG27,'Hist Returns'!$A$12:$D$107,4,FALSE))","v":{"v":1392347.2994580022,"d":"1,392,347"}},{"$f":"($A27-$A26)/365.25*(CJ26+(Main!$I33*Main!$D$3))*(1+Main!$I$4+VLOOKUP('Random Years'!CH27,'Hist Returns'!$A$12:$D$107,4,FALSE))","v":{"v":680681.1085988894,"d":"680,681"}},{"$f":"($A27-$A26)/365.25*(CK26+(Main!$I33*Main!$D$3))*(1+Main!$I$4+VLOOKUP('Random Years'!CI27,'Hist Returns'!$A$12:$D$107,4,FALSE))","v":{"v":578932.9982335882,"d":"578,933"}},{"$f":"($A27-$A26)/365.25*(CL26+(Main!$I33*Main!$D$3))*(1+Main!$I$4+VLOOKUP('Random Years'!CJ27,'Hist Returns'!$A$12:$D$107,4,FALSE))","v":{"v":867557.6796496526,"d":"867,558"}},{"$f":"($A27-$A26)/365.25*(CM26+(Main!$I33*Main!$D$3))*(1+Main!$I$4+VLOOKUP('Random Years'!CK27,'Hist Returns'!$A$12:$D$107,4,FALSE))","v":{"v":419498.0454617039,"d":"419,498"}},{"$f":"($A27-$A26)/365.25*(CN26+(Main!$I33*Main!$D$3))*(1+Main!$I$4+VLOOKUP('Random Years'!CL27,'Hist Returns'!$A$12:$D$107,4,FALSE))","v":{"v":831133.947373947,"d":"831,134"}},{"$f":"($A27-$A26)/365.25*(CO26+(Main!$I33*Main!$D$3))*(1+Main!$I$4+VLOOKUP('Random Years'!CM27,'Hist Returns'!$A$12:$D$107,4,FALSE))","v":{"v":460367.55990790384,"d":"460,368"}},{"$f":"($A27-$A26)/365.25*(CP26+(Main!$I33*Main!$D$3))*(1+Main!$I$4+VLOOKUP('Random Years'!CN27,'Hist Returns'!$A$12:$D$107,4,FALSE))","v":{"v":570123.3690615346,"d":"570,123"}},{"$f":"($A27-$A26)/365.25*(CQ26+(Main!$I33*Main!$D$3))*(1+Main!$I$4+VLOOKUP('Random Years'!CO27,'Hist Returns'!$A$12:$D$107,4,FALSE))","v":{"v":569537.5674455155,"d":"569,538"}},{"$f":"($A27-$A26)/365.25*(CR26+(Main!$I33*Main!$D$3))*(1+Main!$I$4+VLOOKUP('Random Years'!CP27,'Hist Returns'!$A$12:$D$107,4,FALSE))","v":{"v":593652.0248297935,"d":"593,652"}},{"$f":"($A27-$A26)/365.25*(CS26+(Main!$I33*Main!$D$3))*(1+Main!$I$4+VLOOKUP('Random Years'!CQ27,'Hist Returns'!$A$12:$D$107,4,FALSE))","v":{"v":455969.97220043134,"d":"455,970"}},{"$f":"($A27-$A26)/365.25*(CT26+(Main!$I33*Main!$D$3))*(1+Main!$I$4+VLOOKUP('Random Years'!CR27,'Hist Returns'!$A$12:$D$107,4,FALSE))","v":{"v":210250.00204267903,"d":"210,250"}},{"$f":"($A27-$A26)/365.25*(CU26+(Main!$I33*Main!$D$3))*(1+Main!$I$4+VLOOKUP('Random Years'!CS27,'Hist Returns'!$A$12:$D$107,4,FALSE))","v":{"v":1210597.246723096,"d":"1,210,597"}},{"$f":"($A27-$A26)/365.25*(CV26+(Main!$I33*Main!$D$3))*(1+Main!$I$4+VLOOKUP('Random Years'!CT27,'Hist Returns'!$A$12:$D$107,4,FALSE))","v":{"v":654687.569597252,"d":"654,688"}},{"$f":"($A27-$A26)/365.25*(CW26+(Main!$I33*Main!$D$3))*(1+Main!$I$4+VLOOKUP('Random Years'!CU27,'Hist Returns'!$A$12:$D$107,4,FALSE))","v":{"v":595594.2365123429,"d":"595,594"}},{"$f":"($A27-$A26)/365.25*(CX26+(Main!$I33*Main!$D$3))*(1+Main!$I$4+VLOOKUP('Random Years'!CV27,'Hist Returns'!$A$12:$D$107,4,FALSE))","v":{"v":486888.64939753996,"d":"486,889"}}]
[{"$f":"Main!A34","v":"2049-12-30"},{"$f":"Main!B34","v":95},{"$f":"($A28-$A27)/365.25*(C27+(Main!$I34*Main!$D$3))*(1+Main!$I$4+VLOOKUP('Random Years'!A28,'Hist Returns'!$A$12:$D$107,4,FALSE))","v":{"v":410595.9276137513,"d":"410,596"}},{"$f":"($A28-$A27)/365.25*(D27+(Main!$I34*Main!$D$3))*(1+Main!$I$4+VLOOKUP('Random Years'!B28,'Hist Returns'!$A$12:$D$107,4,FALSE))","v":{"v":342504.1325443795,"d":"342,504"}},{"$f":"($A28-$A27)/365.25*(E27+(Main!$I34*Main!$D$3))*(1+Main!$I$4+VLOOKUP('Random Years'!C28,'Hist Returns'!$A$12:$D$107,4,FALSE))","v":{"v":450179.45853152894,"d":"450,179"}},{"$f":"($A28-$A27)/365.25*(F27+(Main!$I34*Main!$D$3))*(1+Main!$I$4+VLOOKUP('Random Years'!D28,'Hist Returns'!$A$12:$D$107,4,FALSE))","v":{"v":968462.6623890834,"d":"968,463"}},{"$f":"($A28-$A27)/365.25*(G27+(Main!$I34*Main!$D$3))*(1+Main!$I$4+VLOOKUP('Random Years'!E28,'Hist Returns'!$A$12:$D$107,4,FALSE))","v":{"v":1755658.0016444298,"d":"1,755,658"}},{"$f":"($A28-$A27)/365.25*(H27+(Main!$I34*Main!$D$3))*(1+Main!$I$4+VLOOKUP('Random Years'!F28,'Hist Returns'!$A$12:$D$107,4,FALSE))","v":{"v":754102.9213502051,"d":"754,103"}},{"$f":"($A28-$A27)/365.25*(I27+(Main!$I34*Main!$D$3))*(1+Main!$I$4+VLOOKUP('Random Years'!G28,'Hist Returns'!$A$12:$D$107,4,FALSE))","v":{"v":736394.2213675106,"d":"736,394"}},{"$f":"($A28-$A27)/365.25*(J27+(Main!$I34*Main!$D$3))*(1+Main!$I$4+VLOOKUP('Random Years'!H28,'Hist Returns'!$A$12:$D$107,4,FALSE))","v":{"v":961754.9184908457,"d":"961,755"}},{"$f":"($A28-$A27)/365.25*(K27+(Main!$I34*Main!$D$3))*(1+Main!$I$4+VLOOKUP('Random Years'!I28,'Hist Returns'!$A$12:$D$107,4,FALSE))","v":{"v":628937.6815871932,"d":"628,938"}},{"$f":"($A28-$A27)/365.25*(L27+(Main!$I34*Main!$D$3))*(1+Main!$I$4+VLOOKUP('Random Years'!J28,'Hist Returns'!$A$12:$D$107,4,FALSE))","v":{"v":587481.5095255759,"d":"587,482"}},{"$f":"($A28-$A27)/365.25*(M27+(Main!$I34*Main!$D$3))*(1+Main!$I$4+VLOOKUP('Random Years'!K28,'Hist Returns'!$A$12:$D$107,4,FALSE))","v":{"v":283600.8744048162,"d":"283,601"}},{"$f":"($A28-$A27)/365.25*(N27+(Main!$I34*Main!$D$3))*(1+Main!$I$4+VLOOKUP('Random Years'!L28,'Hist Returns'!$A$12:$D$107,4,FALSE))","v":{"v":829096.1054063463,"d":"829,096"}},{"$f":"($A28-$A27)/365.25*(O27+(Main!$I34*Main!$D$3))*(1+Main!$I$4+VLOOKUP('Random Years'!M28,'Hist Returns'!$A$12:$D$107,4,FALSE))","v":{"v":442033.9799839956,"d":"442,034"}},{"$f":"($A28-$A27)/365.25*(P27+(Main!$I34*Main!$D$3))*(1+Main!$I$4+VLOOKUP('Random Years'!N28,'Hist Returns'!$A$12:$D$107,4,FALSE))","v":{"v":480371.44557626254,"d":"480,371"}},{"$f":"($A28-$A27)/365.25*(Q27+(Main!$I34*Main!$D$3))*(1+Main!$I$4+VLOOKUP('Random Years'!O28,'Hist Returns'!$A$12:$D$107,4,FALSE))","v":{"v":538836.8797949657,"d":"538,837"}},{"$f":"($A28-$A27)/365.25*(R27+(Main!$I34*Main!$D$3))*(1+Main!$I$4+VLOOKUP('Random Years'!P28,'Hist Returns'!$A$12:$D$107,4,FALSE))","v":{"v":569154.7529875693,"d":"569,155"}},{"$f":"($A28-$A27)/365.25*(S27+(Main!$I34*Main!$D$3))*(1+Main!$I$4+VLOOKUP('Random Years'!Q28,'Hist Returns'!$A$12:$D$107,4,FALSE))","v":{"v":218740.82391205162,"d":"218,741"}},{"$f":"($A28-$A27)/365.25*(T27+(Main!$I34*Main!$D$3))*(1+Main!$I$4+VLOOKUP('Random Years'!R28,'Hist Returns'!$A$12:$D$107,4,FALSE))","v":{"v":460455.2001941724,"d":"460,455"}},{"$f":"($A28-$A27)/365.25*(U27+(Main!$I34*Main!$D$3))*(1+Main!$I$4+VLOOKUP('Random Years'!S28,'Hist Returns'!$A$12:$D$107,4,FALSE))","v":{"v":533099.4489908451,"d":"533,099"}},{"$f":"($A28-$A27)/365.25*(V27+(Main!$I34*Main!$D$3))*(1+Main!$I$4+VLOOKUP('Random Years'!T28,'Hist Returns'!$A$12:$D$107,4,FALSE))","v":{"v":1252543.363627738,"d":"1,252,543"}},{"$f":"($A28-$A27)/365.25*(W27+(Main!$I34*Main!$D$3))*(1+Main!$I$4+VLOOKUP('Random Years'!U28,'Hist Returns'!$A$12:$D$107,4,FALSE))","v":{"v":620225.234277385,"d":"620,225"}},{"$f":"($A28-$A27)/365.25*(X27+(Main!$I34*Main!$D$3))*(1+Main!$I$4+VLOOKUP('Random Years'!V28,'Hist Returns'!$A$12:$D$107,4,FALSE))","v":{"v":615642.1618692346,"d":"615,642"}},{"$f":"($A28-$A27)/365.25*(Y27+(Main!$I34*Main!$D$3))*(1+Main!$I$4+VLOOKUP('Random Years'!W28,'Hist Returns'!$A$12:$D$107,4,FALSE))","v":{"v":333976.99746057263,"d":"333,977"}},{"$f":"($A28-$A27)/365.25*(Z27+(Main!$I34*Main!$D$3))*(1+Main!$I$4+VLOOKUP('Random Years'!X28,'Hist Returns'!$A$12:$D$107,4,FALSE))","v":{"v":1076357.9972479942,"d":"1,076,358"}},{"$f":"($A28-$A27)/365.25*(AA27+(Main!$I34*Main!$D$3))*(1+Main!$I$4+VLOOKUP('Random Years'!Y28,'Hist Returns'!$A$12:$D$107,4,FALSE))","v":{"v":653666.8438856408,"d":"653,667"}},{"$f":"($A28-$A27)/365.25*(AB27+(Main!$I34*Main!$D$3))*(1+Main!$I$4+VLOOKUP('Random Years'!Z28,'Hist Returns'!$A$12:$D$107,4,FALSE))","v":{"v":656672.1050418642,"d":"656,672"}},{"$f":"($A28-$A27)/365.25*(AC27+(Main!$I34*Main!$D$3))*(1+Main!$I$4+VLOOKUP('Random Years'!AA28,'Hist Returns'!$A$12:$D$107,4,FALSE))","v":{"v":523031.3392764635,"d":"523,031"}},{"$f":"($A28-$A27)/365.25*(AD27+(Main!$I34*Main!$D$3))*(1+Main!$I$4+VLOOKUP('Random Years'!AB28,'Hist Returns'!$A$12:$D$107,4,FALSE))","v":{"v":793802.7604541164,"d":"793,803"}},{"$f":"($A28-$A27)/365.25*(AE27+(Main!$I34*Main!$D$3))*(1+Main!$I$4+VLOOKUP('Random Years'!AC28,'Hist Returns'!$A$12:$D$107,4,FALSE))","v":{"v":924325.7659511842,"d":"924,326"}},{"$f":"($A28-$A27)/365.25*(AF27+(Main!$I34*Main!$D$3))*(1+Main!$I$4+VLOOKUP('Random Years'!AD28,'Hist Returns'!$A$12:$D$107,4,FALSE))","v":{"v":400302.8049232098,"d":"400,303"}},{"$f":"($A28-$A27)/365.25*(AG27+(Main!$I34*Main!$D$3))*(1+Main!$I$4+VLOOKUP('Random Years'!AE28,'Hist Returns'!$A$12:$D$107,4,FALSE))","v":{"v":996050.7327598094,"d":"996,051"}},{"$f":"($A28-$A27)/365.25*(AH27+(Main!$I34*Main!$D$3))*(1+Main!$I$4+VLOOKUP('Random Years'!AF28,'Hist Returns'!$A$12:$D$107,4,FALSE))","v":{"v":510396.37233675877,"d":"510,396"}},{"$f":"($A28-$A27)/365.25*(AI27+(Main!$I34*Main!$D$3))*(1+Main!$I$4+VLOOKUP('Random Years'!AG28,'Hist Returns'!$A$12:$D$107,4,FALSE))","v":{"v":502209.4994622198,"d":"502,209"}},{"$f":"($A28-$A27)/365.25*(AJ27+(Main!$I34*Main!$D$3))*(1+Main!$I$4+VLOOKUP('Random Years'!AH28,'Hist Returns'!$A$12:$D$107,4,FALSE))","v":{"v":1078968.3407888694,"d":"1,078,968"}},{"$f":"($A28-$A27)/365.25*(AK27+(Main!$I34*Main!$D$3))*(1+Main!$I$4+VLOOKUP('Random Years'!AI28,'Hist Returns'!$A$12:$D$107,4,FALSE))","v":{"v":1011424.971287019,"d":"1,011,425"}},{"$f":"($A28-$A27)/365.25*(AL27+(Main!$I34*Main!$D$3))*(1+Main!$I$4+VLOOKUP('Random Years'!AJ28,'Hist Returns'!$A$12:$D$107,4,FALSE))","v":{"v":556938.9460646667,"d":"556,939"}},{"$f":"($A28-$A27)/365.25*(AM27+(Main!$I34*Main!$D$3))*(1+Main!$I$4+VLOOKUP('Random Years'!AK28,'Hist Returns'!$A$12:$D$107,4,FALSE))","v":{"v":921984.9136945439,"d":"921,985"}},{"$f":"($A28-$A27)/365.25*(AN27+(Main!$I34*Main!$D$3))*(1+Main!$I$4+VLOOKUP('Random Years'!AL28,'Hist Returns'!$A$12:$D$107,4,FALSE))","v":{"v":688821.5928564833,"d":"688,822"}},{"$f":"($A28-$A27)/365.25*(AO27+(Main!$I34*Main!$D$3))*(1+Main!$I$4+VLOOKUP('Random Years'!AM28,'Hist Returns'!$A$12:$D$107,4,FALSE))","v":{"v":454990.76842540875,"d":"454,991"}},{"$f":"($A28-$A27)/365.25*(AP27+(Main!$I34*Main!$D$3))*(1+Main!$I$4+VLOOKUP('Random Years'!AN28,'Hist Returns'!$A$12:$D$107,4,FALSE))","v":{"v":640469.3570618292,"d":"640,469"}},{"$f":"($A28-$A27)/365.25*(AQ27+(Main!$I34*Main!$D$3))*(1+Main!$I$4+VLOOKUP('Random Years'!AO28,'Hist Returns'!$A$12:$D$107,4,FALSE))","v":{"v":270267.9479508326,"d":"270,268"}},{"$f":"($A28-$A27)/365.25*(AR27+(Main!$I34*Main!$D$3))*(1+Main!$I$4+VLOOKUP('Random Years'!AP28,'Hist Returns'!$A$12:$D$107,4,FALSE))","v":{"v":632712.2085059077,"d":"632,712"}},{"$f":"($A28-$A27)/365.25*(AS27+(Main!$I34*Main!$D$3))*(1+Main!$I$4+VLOOKUP('Random Years'!AQ28,'Hist Returns'!$A$12:$D$107,4,FALSE))","v":{"v":1001392.783414824,"d":"1,001,393"}},{"$f":"($A28-$A27)/365.25*(AT27+(Main!$I34*Main!$D$3))*(1+Main!$I$4+VLOOKUP('Random Years'!AR28,'Hist Returns'!$A$12:$D$107,4,FALSE))","v":{"v":894138.079763678,"d":"894,138"}},{"$f":"($A28-$A27)/365.25*(AU27+(Main!$I34*Main!$D$3))*(1+Main!$I$4+VLOOKUP('Random Years'!AS28,'Hist Returns'!$A$12:$D$107,4,FALSE))","v":{"v":611901.940983989,"d":"611,902"}},{"$f":"($A28-$A27)/365.25*(AV27+(Main!$I34*Main!$D$3))*(1+Main!$I$4+VLOOKUP('Random Years'!AT28,'Hist Returns'!$A$12:$D$107,4,FALSE))","v":{"v":900728.4485362178,"d":"900,728"}},{"$f":"($A28-$A27)/365.25*(AW27+(Main!$I34*Main!$D$3))*(1+Main!$I$4+VLOOKUP('Random Years'!AU28,'Hist Returns'!$A$12:$D$107,4,FALSE))","v":{"v":503982.6757999095,"d":"503,983"}},{"$f":"($A28-$A27)/365.25*(AX27+(Main!$I34*Main!$D$3))*(1+Main!$I$4+VLOOKUP('Random Years'!AV28,'Hist Returns'!$A$12:$D$107,4,FALSE))","v":{"v":715446.1634655962,"d":"715,446"}},{"$f":"($A28-$A27)/365.25*(AY27+(Main!$I34*Main!$D$3))*(1+Main!$I$4+VLOOKUP('Random Years'!AW28,'Hist Returns'!$A$12:$D$107,4,FALSE))","v":{"v":280760.5745559253,"d":"280,761"}},{"$f":"($A28-$A27)/365.25*(AZ27+(Main!$I34*Main!$D$3))*(1+Main!$I$4+VLOOKUP('Random Years'!AX28,'Hist Returns'!$A$12:$D$107,4,FALSE))","v":{"v":400391.5864039417,"d":"400,392"}},{"$f":"($A28-$A27)/365.25*(BA27+(Main!$I34*Main!$D$3))*(1+Main!$I$4+VLOOKUP('Random Years'!AY28,'Hist Returns'!$A$12:$D$107,4,FALSE))","v":{"v":468980.02567401057,"d":"468,980"}},{"$f":"($A28-$A27)/365.25*(BB27+(Main!$I34*Main!$D$3))*(1+Main!$I$4+VLOOKUP('Random Years'!AZ28,'Hist Returns'!$A$12:$D$107,4,FALSE))","v":{"v":285842.12354490726,"d":"285,842"}},{"$f":"($A28-$A27)/365.25*(BC27+(Main!$I34*Main!$D$3))*(1+Main!$I$4+VLOOKUP('Random Years'!BA28,'Hist Returns'!$A$12:$D$107,4,FALSE))","v":{"v":553283.818706724,"d":"553,284"}},{"$f":"($A28-$A27)/365.25*(BD27+(Main!$I34*Main!$D$3))*(1+Main!$I$4+VLOOKUP('Random Years'!BB28,'Hist Returns'!$A$12:$D$107,4,FALSE))","v":{"v":588678.8005531811,"d":"588,679"}},{"$f":"($A28-$A27)/365.25*(BE27+(Main!$I34*Main!$D$3))*(1+Main!$I$4+VLOOKUP('Random Years'!BC28,'Hist Returns'!$A$12:$D$107,4,FALSE))","v":{"v":859498.7039853157,"d":"859,499"}},{"$f":"($A28-$A27)/365.25*(BF27+(Main!$I34*Main!$D$3))*(1+Main!$I$4+VLOOKUP('Random Years'!BD28,'Hist Returns'!$A$12:$D$107,4,FALSE))","v":{"v":1021772.5313152663,"d":"1,021,773"}},{"$f":"($A28-$A27)/365.25*(BG27+(Main!$I34*Main!$D$3))*(1+Main!$I$4+VLOOKUP('Random Years'!BE28,'Hist Returns'!$A$12:$D$107,4,FALSE))","v":{"v":460813.40933646855,"d":"460,813"}},{"$f":"($A28-$A27)/365.25*(BH27+(Main!$I34*Main!$D$3))*(1+Main!$I$4+VLOOKUP('Random Years'!BF28,'Hist Returns'!$A$12:$D$107,4,FALSE))","v":{"v":402494.8483005846,"d":"402,495"}},{"$f":"($A28-$A27)/365.25*(BI27+(Main!$I34*Main!$D$3))*(1+Main!$I$4+VLOOKUP('Random Years'!BG28,'Hist Returns'!$A$12:$D$107,4,FALSE))","v":{"v":1445885.7470148774,"d":"1,445,886"}},{"$f":"($A28-$A27)/365.25*(BJ27+(Main!$I34*Main!$D$3))*(1+Main!$I$4+VLOOKUP('Random Years'!BH28,'Hist Returns'!$A$12:$D$107,4,FALSE))","v":{"v":758217.8971095798,"d":"758,218"}},{"$f":"($A28-$A27)/365.25*(BK27+(Main!$I34*Main!$D$3))*(1+Main!$I$4+VLOOKUP('Random Years'!BI28,'Hist Returns'!$A$12:$D$107,4,FALSE))","v":{"v":623749.7930254459,"d":"623,750"}},{"$f":"($A28-$A27)/365.25*(BL27+(Main!$I34*Main!$D$3))*(1+Main!$I$4+VLOOKUP('Random Years'!BJ28,'Hist Returns'!$A$12:$D$107,4,FALSE))","v":{"v":432371.3253295928,"d":"432,371"}},{"$f":"($A28-$A27)/365.25*(BM27+(Main!$I34*Main!$D$3))*(1+Main!$I$4+VLOOKUP('Random Years'!BK28,'Hist Returns'!$A$12:$D$107,4,FALSE))","v":{"v":868706.062557829,"d":"868,706"}},{"$f":"($A28-$A27)/365.25*(BN27+(Main!$I34*Main!$D$3))*(1+Main!$I$4+VLOOKUP('Random Years'!BL28,'Hist Returns'!$A$12:$D$107,4,FALSE))","v":{"v":1452830.073633459,"d":"1,452,830"}},{"$f":"($A28-$A27)/365.25*(BO27+(Main!$I34*Main!$D$3))*(1+Main!$I$4+VLOOKUP('Random Years'!BM28,'Hist Returns'!$A$12:$D$107,4,FALSE))","v":{"v":302335.08412278397,"d":"302,335"}},{"$f":"($A28-$A27)/365.25*(BP27+(Main!$I34*Main!$D$3))*(1+Main!$I$4+VLOOKUP('Random Years'!BN28,'Hist Returns'!$A$12:$D$107,4,FALSE))","v":{"v":658134.3057696238,"d":"658,134"}},{"$f":"($A28-$A27)/365.25*(BQ27+(Main!$I34*Main!$D$3))*(1+Main!$I$4+VLOOKUP('Random Years'!BO28,'Hist Returns'!$A$12:$D$107,4,FALSE))","v":{"v":645365.2114562544,"d":"645,365"}},{"$f":"($A28-$A27)/365.25*(BR27+(Main!$I34*Main!$D$3))*(1+Main!$I$4+VLOOKUP('Random Years'!BP28,'Hist Returns'!$A$12:$D$107,4,FALSE))","v":{"v":455700.9724085424,"d":"455,701"}},{"$f":"($A28-$A27)/365.25*(BS27+(Main!$I34*Main!$D$3))*(1+Main!$I$4+VLOOKUP('Random Years'!BQ28,'Hist Returns'!$A$12:$D$107,4,FALSE))","v":{"v":902584.6788234077,"d":"902,585"}},{"$f":"($A28-$A27)/365.25*(BT27+(Main!$I34*Main!$D$3))*(1+Main!$I$4+VLOOKUP('Random Years'!BR28,'Hist Returns'!$A$12:$D$107,4,FALSE))","v":{"v":275029.8664761601,"d":"275,030"}},{"$f":"($A28-$A27)/365.25*(BU27+(Main!$I34*Main!$D$3))*(1+Main!$I$4+VLOOKUP('Random Years'!BS28,'Hist Returns'!$A$12:$D$107,4,FALSE))","v":{"v":592480.0506745768,"d":"592,480"}},{"$f":"($A28-$A27)/365.25*(BV27+(Main!$I34*Main!$D$3))*(1+Main!$I$4+VLOOKUP('Random Years'!BT28,'Hist Returns'!$A$12:$D$107,4,FALSE))","v":{"v":125404.65231226069,"d":"125,405"}},{"$f":"($A28-$A27)/365.25*(BW27+(Main!$I34*Main!$D$3))*(1+Main!$I$4+VLOOKUP('Random Years'!BU28,'Hist Returns'!$A$12:$D$107,4,FALSE))","v":{"v":493152.3452999311,"d":"493,152"}},{"$f":"($A28-$A27)/365.25*(BX27+(Main!$I34*Main!$D$3))*(1+Main!$I$4+VLOOKUP('Random Years'!BV28,'Hist Returns'!$A$12:$D$107,4,FALSE))","v":{"v":490181.27126829623,"d":"490,181"}},{"$f":"($A28-$A27)/365.25*(BY27+(Main!$I34*Main!$D$3))*(1+Main!$I$4+VLOOKUP('Random Years'!BW28,'Hist Returns'!$A$12:$D$107,4,FALSE))","v":{"v":447509.0604868831,"d":"447,509"}},{"$f":"($A28-$A27)/365.25*(BZ27+(Main!$I34*Main!$D$3))*(1+Main!$I$4+VLOOKUP('Random Years'!BX28,'Hist Returns'!$A$12:$D$107,4,FALSE))","v":{"v":192442.50081661314,"d":"192,443"}},{"$f":"($A28-$A27)/365.25*(CA27+(Main!$I34*Main!$D$3))*(1+Main!$I$4+VLOOKUP('Random Years'!BY28,'Hist Returns'!$A$12:$D$107,4,FALSE))","v":{"v":1185984.2197804558,"d":"1,185,984"}},{"$f":"($A28-$A27)/365.25*(CB27+(Main!$I34*Main!$D$3))*(1+Main!$I$4+VLOOKUP('Random Years'!BZ28,'Hist Returns'!$A$12:$D$107,4,FALSE))","v":{"v":722531.4348794458,"d":"722,531"}},{"$f":"($A28-$A27)/365.25*(CC27+(Main!$I34*Main!$D$3))*(1+Main!$I$4+VLOOKUP('Random Years'!CA28,'Hist Returns'!$A$12:$D$107,4,FALSE))","v":{"v":1822655.1053030114,"d":"1,822,655"}},{"$f":"($A28-$A27)/365.25*(CD27+(Main!$I34*Main!$D$3))*(1+Main!$I$4+VLOOKUP('Random Years'!CB28,'Hist Returns'!$A$12:$D$107,4,FALSE))","v":{"v":899099.5376528441,"d":"899,100"}},{"$f":"($A28-$A27)/365.25*(CE27+(Main!$I34*Main!$D$3))*(1+Main!$I$4+VLOOKUP('Random Years'!CC28,'Hist Returns'!$A$12:$D$107,4,FALSE))","v":{"v":615618.5659021534,"d":"615,619"}},{"$f":"($A28-$A27)/365.25*(CF27+(Main!$I34*Main!$D$3))*(1+Main!$I$4+VLOOKUP('Random Years'!CD28,'Hist Returns'!$A$12:$D$107,4,FALSE))","v":{"v":693563.676341744,"d":"693,564"}},{"$f":"($A28-$A27)/365.25*(CG27+(Main!$I34*Main!$D$3))*(1+Main!$I$4+VLOOKUP('Random Years'!CE28,'Hist Returns'!$A$12:$D$107,4,FALSE))","v":{"v":667162.8088399505,"d":"667,163"}},{"$f":"($A28-$A27)/365.25*(CH27+(Main!$I34*Main!$D$3))*(1+Main!$I$4+VLOOKUP('Random Years'!CF28,'Hist Returns'!$A$12:$D$107,4,FALSE))","v":{"v":547303.174497249,"d":"547,303"}},{"$f":"($A28-$A27)/365.25*(CI27+(Main!$I34*Main!$D$3))*(1+Main!$I$4+VLOOKUP('Random Years'!CG28,'Hist Returns'!$A$12:$D$107,4,FALSE))","v":{"v":1512665.1885392538,"d":"1,512,665"}},{"$f":"($A28-$A27)/365.25*(CJ27+(Main!$I34*Main!$D$3))*(1+Main!$I$4+VLOOKUP('Random Years'!CH28,'Hist Returns'!$A$12:$D$107,4,FALSE))","v":{"v":676164.019743255,"d":"676,164"}},{"$f":"($A28-$A27)/365.25*(CK27+(Main!$I34*Main!$D$3))*(1+Main!$I$4+VLOOKUP('Random Years'!CI28,'Hist Returns'!$A$12:$D$107,4,FALSE))","v":{"v":581390.6339102766,"d":"581,391"}},{"$f":"($A28-$A27)/365.25*(CL27+(Main!$I34*Main!$D$3))*(1+Main!$I$4+VLOOKUP('Random Years'!CJ28,'Hist Returns'!$A$12:$D$107,4,FALSE))","v":{"v":938208.449773143,"d":"938,208"}},{"$f":"($A28-$A27)/365.25*(CM27+(Main!$I34*Main!$D$3))*(1+Main!$I$4+VLOOKUP('Random Years'!CK28,'Hist Returns'!$A$12:$D$107,4,FALSE))","v":{"v":420260.2590974189,"d":"420,260"}},{"$f":"($A28-$A27)/365.25*(CN27+(Main!$I34*Main!$D$3))*(1+Main!$I$4+VLOOKUP('Random Years'!CL28,'Hist Returns'!$A$12:$D$107,4,FALSE))","v":{"v":1085081.8578023263,"d":"1,085,082"}},{"$f":"($A28-$A27)/365.25*(CO27+(Main!$I34*Main!$D$3))*(1+Main!$I$4+VLOOKUP('Random Years'!CM28,'Hist Returns'!$A$12:$D$107,4,FALSE))","v":{"v":489518.03137753037,"d":"489,518"}},{"$f":"($A28-$A27)/365.25*(CP27+(Main!$I34*Main!$D$3))*(1+Main!$I$4+VLOOKUP('Random Years'!CN28,'Hist Returns'!$A$12:$D$107,4,FALSE))","v":{"v":567009.1303838935,"d":"567,009"}},{"$f":"($A28-$A27)/365.25*(CQ27+(Main!$I34*Main!$D$3))*(1+Main!$I$4+VLOOKUP('Random Years'!CO28,'Hist Returns'!$A$12:$D$107,4,FALSE))","v":{"v":538962.6681571685,"d":"538,963"}},{"$f":"($A28-$A27)/365.25*(CR27+(Main!$I34*Main!$D$3))*(1+Main!$I$4+VLOOKUP('Random Years'!CP28,'Hist Returns'!$A$12:$D$107,4,FALSE))","v":{"v":635551.09607084,"d":"635,551"}},{"$f":"($A28-$A27)/365.25*(CS27+(Main!$I34*Main!$D$3))*(1+Main!$I$4+VLOOKUP('Random Years'!CQ28,'Hist Returns'!$A$12:$D$107,4,FALSE))","v":{"v":462157.70037250407,"d":"462,158"}},{"$f":"($A28-$A27)/365.25*(CT27+(Main!$I34*Main!$D$3))*(1+Main!$I$4+VLOOKUP('Random Years'!CR28,'Hist Returns'!$A$12:$D$107,4,FALSE))","v":{"v":225856.50348984785,"d":"225,857"}},{"$f":"($A28-$A27)/365.25*(CU27+(Main!$I34*Main!$D$3))*(1+Main!$I$4+VLOOKUP('Random Years'!CS28,'Hist Returns'!$A$12:$D$107,4,FALSE))","v":{"v":1177286.484218197,"d":"1,177,286"}},{"$f":"($A28-$A27)/365.25*(CV27+(Main!$I34*Main!$D$3))*(1+Main!$I$4+VLOOKUP('Random Years'!CT28,'Hist Returns'!$A$12:$D$107,4,FALSE))","v":{"v":648928.9173612032,"d":"648,929"}},{"$f":"($A28-$A27)/365.25*(CW27+(Main!$I34*Main!$D$3))*(1+Main!$I$4+VLOOKUP('Random Years'!CU28,'Hist Returns'!$A$12:$D$107,4,FALSE))","v":{"v":637679.0794367337,"d":"637,679"}},{"$f":"($A28-$A27)/365.25*(CX27+(Main!$I34*Main!$D$3))*(1+Main!$I$4+VLOOKUP('Random Years'!CV28,'Hist Returns'!$A$12:$D$107,4,FALSE))","v":{"v":523825.9351422284,"d":"523,826"}}]
[{"$f":"Main!A35","v":"2050-12-30"},{"$f":"Main!B35","v":96},{"$f":"($A29-$A28)/365.25*(C28+(Main!$I35*Main!$D$3))*(1+Main!$I$4+VLOOKUP('Random Years'!A29,'Hist Returns'!$A$12:$D$107,4,FALSE))","v":{"v":410383.3913452433,"d":"410,383"}},{"$f":"($A29-$A28)/365.25*(D28+(Main!$I35*Main!$D$3))*(1+Main!$I$4+VLOOKUP('Random Years'!B29,'Hist Returns'!$A$12:$D$107,4,FALSE))","v":{"v":411819.9234035986,"d":"411,820"}},{"$f":"($A29-$A28)/365.25*(E28+(Main!$I35*Main!$D$3))*(1+Main!$I$4+VLOOKUP('Random Years'!C29,'Hist Returns'!$A$12:$D$107,4,FALSE))","v":{"v":448122.3343879463,"d":"448,122"}},{"$f":"($A29-$A28)/365.25*(F28+(Main!$I35*Main!$D$3))*(1+Main!$I$4+VLOOKUP('Random Years'!D29,'Hist Returns'!$A$12:$D$107,4,FALSE))","v":{"v":950304.1060199834,"d":"950,304"}},{"$f":"($A29-$A28)/365.25*(G28+(Main!$I35*Main!$D$3))*(1+Main!$I$4+VLOOKUP('Random Years'!E29,'Hist Returns'!$A$12:$D$107,4,FALSE))","v":{"v":1704593.6371921906,"d":"1,704,594"}},{"$f":"($A29-$A28)/365.25*(H28+(Main!$I35*Main!$D$3))*(1+Main!$I$4+VLOOKUP('Random Years'!F29,'Hist Returns'!$A$12:$D$107,4,FALSE))","v":{"v":797748.116423858,"d":"797,748"}},{"$f":"($A29-$A28)/365.25*(I28+(Main!$I35*Main!$D$3))*(1+Main!$I$4+VLOOKUP('Random Years'!G29,'Hist Returns'!$A$12:$D$107,4,FALSE))","v":{"v":737760.0005447962,"d":"737,760"}},{"$f":"($A29-$A28)/365.25*(J28+(Main!$I35*Main!$D$3))*(1+Main!$I$4+VLOOKUP('Random Years'!H29,'Hist Returns'!$A$12:$D$107,4,FALSE))","v":{"v":870355.4802922867,"d":"870,355"}},{"$f":"($A29-$A28)/365.25*(K28+(Main!$I35*Main!$D$3))*(1+Main!$I$4+VLOOKUP('Random Years'!I29,'Hist Returns'!$A$12:$D$107,4,FALSE))","v":{"v":612013.4956528632,"d":"612,013"}},{"$f":"($A29-$A28)/365.25*(L28+(Main!$I35*Main!$D$3))*(1+Main!$I$4+VLOOKUP('Random Years'!J29,'Hist Returns'!$A$12:$D$107,4,FALSE))","v":{"v":593737.7973242616,"d":"593,738"}},{"$f":"($A29-$A28)/365.25*(M28+(Main!$I35*Main!$D$3))*(1+Main!$I$4+VLOOKUP('Random Years'!K29,'Hist Returns'!$A$12:$D$107,4,FALSE))","v":{"v":270528.1712316916,"d":"270,528"}},{"$f":"($A29-$A28)/365.25*(N28+(Main!$I35*Main!$D$3))*(1+Main!$I$4+VLOOKUP('Random Years'!L29,'Hist Returns'!$A$12:$D$107,4,FALSE))","v":{"v":894737.0091955559,"d":"894,737"}},{"$f":"($A29-$A28)/365.25*(O28+(Main!$I35*Main!$D$3))*(1+Main!$I$4+VLOOKUP('Random Years'!M29,'Hist Returns'!$A$12:$D$107,4,FALSE))","v":{"v":436735.92456302117,"d":"436,736"}},{"$f":"($A29-$A28)/365.25*(P28+(Main!$I35*Main!$D$3))*(1+Main!$I$4+VLOOKUP('Random Years'!N29,'Hist Returns'!$A$12:$D$107,4,FALSE))","v":{"v":476041.09891294665,"d":"476,041"}},{"$f":"($A29-$A28)/365.25*(Q28+(Main!$I35*Main!$D$3))*(1+Main!$I$4+VLOOKUP('Random Years'!O29,'Hist Returns'!$A$12:$D$107,4,FALSE))","v":{"v":601943.6111293032,"d":"601,944"}},{"$f":"($A29-$A28)/365.25*(R28+(Main!$I35*Main!$D$3))*(1+Main!$I$4+VLOOKUP('Random Years'!P29,'Hist Returns'!$A$12:$D$107,4,FALSE))","v":{"v":571418.0295379441,"d":"571,418"}},{"$f":"($A29-$A28)/365.25*(S28+(Main!$I35*Main!$D$3))*(1+Main!$I$4+VLOOKUP('Random Years'!Q29,'Hist Returns'!$A$12:$D$107,4,FALSE))","v":{"v":209757.30648452404,"d":"209,757"}},{"$f":"($A29-$A28)/365.25*(T28+(Main!$I35*Main!$D$3))*(1+Main!$I$4+VLOOKUP('Random Years'!R29,'Hist Returns'!$A$12:$D$107,4,FALSE))","v":{"v":520094.54132267786,"d":"520,095"}},{"$f":"($A29-$A28)/365.25*(U28+(Main!$I35*Main!$D$3))*(1+Main!$I$4+VLOOKUP('Random Years'!S29,'Hist Returns'!$A$12:$D$107,4,FALSE))","v":{"v":544048.8579295451,"d":"544,049"}},{"$f":"($A29-$A28)/365.25*(V28+(Main!$I35*Main!$D$3))*(1+Main!$I$4+VLOOKUP('Random Years'!T29,'Hist Returns'!$A$12:$D$107,4,FALSE))","v":{"v":1277512.2683514105,"d":"1,277,512"}},{"$f":"($A29-$A28)/365.25*(W28+(Main!$I35*Main!$D$3))*(1+Main!$I$4+VLOOKUP('Random Years'!U29,'Hist Returns'!$A$12:$D$107,4,FALSE))","v":{"v":630614.9239148853,"d":"630,615"}},{"$f":"($A29-$A28)/365.25*(X28+(Main!$I35*Main!$D$3))*(1+Main!$I$4+VLOOKUP('Random Years'!V29,'Hist Returns'!$A$12:$D$107,4,FALSE))","v":{"v":649779.3410764023,"d":"649,779"}},{"$f":"($A29-$A28)/365.25*(Y28+(Main!$I35*Main!$D$3))*(1+Main!$I$4+VLOOKUP('Random Years'!W29,'Hist Returns'!$A$12:$D$107,4,FALSE))","v":{"v":375522.07804256526,"d":"375,522"}},{"$f":"($A29-$A28)/365.25*(Z28+(Main!$I35*Main!$D$3))*(1+Main!$I$4+VLOOKUP('Random Years'!X29,'Hist Returns'!$A$12:$D$107,4,FALSE))","v":{"v":1164773.4117523523,"d":"1,164,773"}},{"$f":"($A29-$A28)/365.25*(AA28+(Main!$I35*Main!$D$3))*(1+Main!$I$4+VLOOKUP('Random Years'!Y29,'Hist Returns'!$A$12:$D$107,4,FALSE))","v":{"v":654997.484249521,"d":"654,997"}},{"$f":"($A29-$A28)/365.25*(AB28+(Main!$I35*Main!$D$3))*(1+Main!$I$4+VLOOKUP('Random Years'!Z29,'Hist Returns'!$A$12:$D$107,4,FALSE))","v":{"v":710507.3775793525,"d":"710,507"}},{"$f":"($A29-$A28)/365.25*(AC28+(Main!$I35*Main!$D$3))*(1+Main!$I$4+VLOOKUP('Random Years'!AA29,'Hist Returns'!$A$12:$D$107,4,FALSE))","v":{"v":497329.50464402814,"d":"497,330"}},{"$f":"($A29-$A28)/365.25*(AD28+(Main!$I35*Main!$D$3))*(1+Main!$I$4+VLOOKUP('Random Years'!AB29,'Hist Returns'!$A$12:$D$107,4,FALSE))","v":{"v":806648.1722080262,"d":"806,648"}},{"$f":"($A29-$A28)/365.25*(AE28+(Main!$I35*Main!$D$3))*(1+Main!$I$4+VLOOKUP('Random Years'!AC29,'Hist Returns'!$A$12:$D$107,4,FALSE))","v":{"v":833980.2998865523,"d":"833,980"}},{"$f":"($A29-$A28)/365.25*(AF28+(Main!$I35*Main!$D$3))*(1+Main!$I$4+VLOOKUP('Random Years'!AD29,'Hist Returns'!$A$12:$D$107,4,FALSE))","v":{"v":388567.2940743916,"d":"388,567"}},{"$f":"($A29-$A28)/365.25*(AG28+(Main!$I35*Main!$D$3))*(1+Main!$I$4+VLOOKUP('Random Years'!AE29,'Hist Returns'!$A$12:$D$107,4,FALSE))","v":{"v":891400.5735582949,"d":"891,401"}},{"$f":"($A29-$A28)/365.25*(AH28+(Main!$I35*Main!$D$3))*(1+Main!$I$4+VLOOKUP('Random Years'!AF29,'Hist Returns'!$A$12:$D$107,4,FALSE))","v":{"v":511218.7884903791,"d":"511,219"}},{"$f":"($A29-$A28)/365.25*(AI28+(Main!$I35*Main!$D$3))*(1+Main!$I$4+VLOOKUP('Random Years'!AG29,'Hist Returns'!$A$12:$D$107,4,FALSE))","v":{"v":498365.01700635115,"d":"498,365"}},{"$f":"($A29-$A28)/365.25*(AJ28+(Main!$I35*Main!$D$3))*(1+Main!$I$4+VLOOKUP('Random Years'!AH29,'Hist Returns'!$A$12:$D$107,4,FALSE))","v":{"v":1129865.1019352744,"d":"1,129,865"}},{"$f":"($A29-$A28)/365.25*(AK28+(Main!$I35*Main!$D$3))*(1+Main!$I$4+VLOOKUP('Random Years'!AI29,'Hist Returns'!$A$12:$D$107,4,FALSE))","v":{"v":1103127.2592187112,"d":"1,103,127"}},{"$f":"($A29-$A28)/365.25*(AL28+(Main!$I35*Main!$D$3))*(1+Main!$I$4+VLOOKUP('Random Years'!AJ29,'Hist Returns'!$A$12:$D$107,4,FALSE))","v":{"v":546403.9772124982,"d":"546,404"}},{"$f":"($A29-$A28)/365.25*(AM28+(Main!$I35*Main!$D$3))*(1+Main!$I$4+VLOOKUP('Random Years'!AK29,'Hist Returns'!$A$12:$D$107,4,FALSE))","v":{"v":932672.0052752534,"d":"932,672"}},{"$f":"($A29-$A28)/365.25*(AN28+(Main!$I35*Main!$D$3))*(1+Main!$I$4+VLOOKUP('Random Years'!AL29,'Hist Returns'!$A$12:$D$107,4,FALSE))","v":{"v":705085.5930666646,"d":"705,086"}},{"$f":"($A29-$A28)/365.25*(AO28+(Main!$I35*Main!$D$3))*(1+Main!$I$4+VLOOKUP('Random Years'!AM29,'Hist Returns'!$A$12:$D$107,4,FALSE))","v":{"v":463769.18717614934,"d":"463,769"}},{"$f":"($A29-$A28)/365.25*(AP28+(Main!$I35*Main!$D$3))*(1+Main!$I$4+VLOOKUP('Random Years'!AN29,'Hist Returns'!$A$12:$D$107,4,FALSE))","v":{"v":698137.6278256922,"d":"698,138"}},{"$f":"($A29-$A28)/365.25*(AQ28+(Main!$I35*Main!$D$3))*(1+Main!$I$4+VLOOKUP('Random Years'!AO29,'Hist Returns'!$A$12:$D$107,4,FALSE))","v":{"v":250237.23980886227,"d":"250,237"}},{"$f":"($A29-$A28)/365.25*(AR28+(Main!$I35*Main!$D$3))*(1+Main!$I$4+VLOOKUP('Random Years'!AP29,'Hist Returns'!$A$12:$D$107,4,FALSE))","v":{"v":680654.4425974928,"d":"680,654"}},{"$f":"($A29-$A28)/365.25*(AS28+(Main!$I35*Main!$D$3))*(1+Main!$I$4+VLOOKUP('Random Years'!AQ29,'Hist Returns'!$A$12:$D$107,4,FALSE))","v":{"v":810217.876538294,"d":"810,218"}},{"$f":"($A29-$A28)/365.25*(AT28+(Main!$I35*Main!$D$3))*(1+Main!$I$4+VLOOKUP('Random Years'!AR29,'Hist Returns'!$A$12:$D$107,4,FALSE))","v":{"v":906338.6542720891,"d":"906,339"}},{"$f":"($A29-$A28)/365.25*(AU28+(Main!$I35*Main!$D$3))*(1+Main!$I$4+VLOOKUP('Random Years'!AS29,'Hist Returns'!$A$12:$D$107,4,FALSE))","v":{"v":678763.1405098494,"d":"678,763"}},{"$f":"($A29-$A28)/365.25*(AV28+(Main!$I35*Main!$D$3))*(1+Main!$I$4+VLOOKUP('Random Years'!AT29,'Hist Returns'!$A$12:$D$107,4,FALSE))","v":{"v":846294.8983930955,"d":"846,295"}},{"$f":"($A29-$A28)/365.25*(AW28+(Main!$I35*Main!$D$3))*(1+Main!$I$4+VLOOKUP('Random Years'!AU29,'Hist Returns'!$A$12:$D$107,4,FALSE))","v":{"v":500177.64387935295,"d":"500,178"}},{"$f":"($A29-$A28)/365.25*(AX28+(Main!$I35*Main!$D$3))*(1+Main!$I$4+VLOOKUP('Random Years'!AV29,'Hist Returns'!$A$12:$D$107,4,FALSE))","v":{"v":718325.8588651965,"d":"718,326"}},{"$f":"($A29-$A28)/365.25*(AY28+(Main!$I35*Main!$D$3))*(1+Main!$I$4+VLOOKUP('Random Years'!AW29,'Hist Returns'!$A$12:$D$107,4,FALSE))","v":{"v":278287.0374187294,"d":"278,287"}},{"$f":"($A29-$A28)/365.25*(AZ28+(Main!$I35*Main!$D$3))*(1+Main!$I$4+VLOOKUP('Random Years'!AX29,'Hist Returns'!$A$12:$D$107,4,FALSE))","v":{"v":390752.27893813,"d":"390,752"}},{"$f":"($A29-$A28)/365.25*(BA28+(Main!$I35*Main!$D$3))*(1+Main!$I$4+VLOOKUP('Random Years'!AY29,'Hist Returns'!$A$12:$D$107,4,FALSE))","v":{"v":462835.31829067925,"d":"462,835"}},{"$f":"($A29-$A28)/365.25*(BB28+(Main!$I35*Main!$D$3))*(1+Main!$I$4+VLOOKUP('Random Years'!AZ29,'Hist Returns'!$A$12:$D$107,4,FALSE))","v":{"v":272782.9085443932,"d":"272,783"}},{"$f":"($A29-$A28)/365.25*(BC28+(Main!$I35*Main!$D$3))*(1+Main!$I$4+VLOOKUP('Random Years'!BA29,'Hist Returns'!$A$12:$D$107,4,FALSE))","v":{"v":581085.2989654898,"d":"581,085"}},{"$f":"($A29-$A28)/365.25*(BD28+(Main!$I35*Main!$D$3))*(1+Main!$I$4+VLOOKUP('Random Years'!BB29,'Hist Returns'!$A$12:$D$107,4,FALSE))","v":{"v":708279.4381605403,"d":"708,279"}},{"$f":"($A29-$A28)/365.25*(BE28+(Main!$I35*Main!$D$3))*(1+Main!$I$4+VLOOKUP('Random Years'!BC29,'Hist Returns'!$A$12:$D$107,4,FALSE))","v":{"v":855035.5584872309,"d":"855,036"}},{"$f":"($A29-$A28)/365.25*(BF28+(Main!$I35*Main!$D$3))*(1+Main!$I$4+VLOOKUP('Random Years'!BD29,'Hist Returns'!$A$12:$D$107,4,FALSE))","v":{"v":1056891.6844506098,"d":"1,056,892"}},{"$f":"($A29-$A28)/365.25*(BG28+(Main!$I35*Main!$D$3))*(1+Main!$I$4+VLOOKUP('Random Years'!BE29,'Hist Returns'!$A$12:$D$107,4,FALSE))","v":{"v":535431.9380848673,"d":"535,432"}},{"$f":"($A29-$A28)/365.25*(BH28+(Main!$I35*Main!$D$3))*(1+Main!$I$4+VLOOKUP('Random Years'!BF29,'Hist Returns'!$A$12:$D$107,4,FALSE))","v":{"v":424897.0669973743,"d":"424,897"}},{"$f":"($A29-$A28)/365.25*(BI28+(Main!$I35*Main!$D$3))*(1+Main!$I$4+VLOOKUP('Random Years'!BG29,'Hist Returns'!$A$12:$D$107,4,FALSE))","v":{"v":1435582.9679992697,"d":"1,435,583"}},{"$f":"($A29-$A28)/365.25*(BJ28+(Main!$I35*Main!$D$3))*(1+Main!$I$4+VLOOKUP('Random Years'!BH29,'Hist Returns'!$A$12:$D$107,4,FALSE))","v":{"v":776757.8730566399,"d":"776,758"}},{"$f":"($A29-$A28)/365.25*(BK28+(Main!$I35*Main!$D$3))*(1+Main!$I$4+VLOOKUP('Random Years'!BI29,'Hist Returns'!$A$12:$D$107,4,FALSE))","v":{"v":646592.977435303,"d":"646,593"}},{"$f":"($A29-$A28)/365.25*(BL28+(Main!$I35*Main!$D$3))*(1+Main!$I$4+VLOOKUP('Random Years'!BJ29,'Hist Returns'!$A$12:$D$107,4,FALSE))","v":{"v":487327.73005503573,"d":"487,328"}},{"$f":"($A29-$A28)/365.25*(BM28+(Main!$I35*Main!$D$3))*(1+Main!$I$4+VLOOKUP('Random Years'!BK29,'Hist Returns'!$A$12:$D$107,4,FALSE))","v":{"v":906645.0719031774,"d":"906,645"}},{"$f":"($A29-$A28)/365.25*(BN28+(Main!$I35*Main!$D$3))*(1+Main!$I$4+VLOOKUP('Random Years'!BL29,'Hist Returns'!$A$12:$D$107,4,FALSE))","v":{"v":1641388.1201777053,"d":"1,641,388"}},{"$f":"($A29-$A28)/365.25*(BO28+(Main!$I35*Main!$D$3))*(1+Main!$I$4+VLOOKUP('Random Years'!BM29,'Hist Returns'!$A$12:$D$107,4,FALSE))","v":{"v":295689.8017857877,"d":"295,690"}},{"$f":"($A29-$A28)/365.25*(BP28+(Main!$I35*Main!$D$3))*(1+Main!$I$4+VLOOKUP('Random Years'!BN29,'Hist Returns'!$A$12:$D$107,4,FALSE))","v":{"v":663580.2880315551,"d":"663,580"}},{"$f":"($A29-$A28)/365.25*(BQ28+(Main!$I35*Main!$D$3))*(1+Main!$I$4+VLOOKUP('Random Years'!BO29,'Hist Returns'!$A$12:$D$107,4,FALSE))","v":{"v":792293.5231752539,"d":"792,294"}},{"$f":"($A29-$A28)/365.25*(BR28+(Main!$I35*Main!$D$3))*(1+Main!$I$4+VLOOKUP('Random Years'!BP29,'Hist Returns'!$A$12:$D$107,4,FALSE))","v":{"v":456832.1051271081,"d":"456,832"}},{"$f":"($A29-$A28)/365.25*(BS28+(Main!$I35*Main!$D$3))*(1+Main!$I$4+VLOOKUP('Random Years'!BQ29,'Hist Returns'!$A$12:$D$107,4,FALSE))","v":{"v":982669.1408757705,"d":"982,669"}},{"$f":"($A29-$A28)/365.25*(BT28+(Main!$I35*Main!$D$3))*(1+Main!$I$4+VLOOKUP('Random Years'!BR29,'Hist Returns'!$A$12:$D$107,4,FALSE))","v":{"v":259392.34093004465,"d":"259,392"}},{"$f":"($A29-$A28)/365.25*(BU28+(Main!$I35*Main!$D$3))*(1+Main!$I$4+VLOOKUP('Random Years'!BS29,'Hist Returns'!$A$12:$D$107,4,FALSE))","v":{"v":560130.9429230619,"d":"560,131"}},{"$f":"($A29-$A28)/365.25*(BV28+(Main!$I35*Main!$D$3))*(1+Main!$I$4+VLOOKUP('Random Years'!BT29,'Hist Returns'!$A$12:$D$107,4,FALSE))","v":{"v":129174.90788515605,"d":"129,175"}},{"$f":"($A29-$A28)/365.25*(BW28+(Main!$I35*Main!$D$3))*(1+Main!$I$4+VLOOKUP('Random Years'!BU29,'Hist Returns'!$A$12:$D$107,4,FALSE))","v":{"v":522894.96713541436,"d":"522,895"}},{"$f":"($A29-$A28)/365.25*(BX28+(Main!$I35*Main!$D$3))*(1+Main!$I$4+VLOOKUP('Random Years'!BV29,'Hist Returns'!$A$12:$D$107,4,FALSE))","v":{"v":436977.4170561825,"d":"436,977"}},{"$f":"($A29-$A28)/365.25*(BY28+(Main!$I35*Main!$D$3))*(1+Main!$I$4+VLOOKUP('Random Years'!BW29,'Hist Returns'!$A$12:$D$107,4,FALSE))","v":{"v":432449.571728948,"d":"432,450"}},{"$f":"($A29-$A28)/365.25*(BZ28+(Main!$I35*Main!$D$3))*(1+Main!$I$4+VLOOKUP('Random Years'!BX29,'Hist Returns'!$A$12:$D$107,4,FALSE))","v":{"v":184251.94778521504,"d":"184,252"}},{"$f":"($A29-$A28)/365.25*(CA28+(Main!$I35*Main!$D$3))*(1+Main!$I$4+VLOOKUP('Random Years'!BY29,'Hist Returns'!$A$12:$D$107,4,FALSE))","v":{"v":1118755.7475283823,"d":"1,118,756"}},{"$f":"($A29-$A28)/365.25*(CB28+(Main!$I35*Main!$D$3))*(1+Main!$I$4+VLOOKUP('Random Years'!BZ29,'Hist Returns'!$A$12:$D$107,4,FALSE))","v":{"v":688634.7993580475,"d":"688,635"}},{"$f":"($A29-$A28)/365.25*(CC28+(Main!$I35*Main!$D$3))*(1+Main!$I$4+VLOOKUP('Random Years'!CA29,'Hist Returns'!$A$12:$D$107,4,FALSE))","v":{"v":1863247.752824604,"d":"1,863,248"}},{"$f":"($A29-$A28)/365.25*(CD28+(Main!$I35*Main!$D$3))*(1+Main!$I$4+VLOOKUP('Random Years'!CB29,'Hist Returns'!$A$12:$D$107,4,FALSE))","v":{"v":1009400.0411173877,"d":"1,009,400"}},{"$f":"($A29-$A28)/365.25*(CE28+(Main!$I35*Main!$D$3))*(1+Main!$I$4+VLOOKUP('Random Years'!CC29,'Hist Returns'!$A$12:$D$107,4,FALSE))","v":{"v":658405.9733686306,"d":"658,406"}},{"$f":"($A29-$A28)/365.25*(CF28+(Main!$I35*Main!$D$3))*(1+Main!$I$4+VLOOKUP('Random Years'!CD29,'Hist Returns'!$A$12:$D$107,4,FALSE))","v":{"v":755271.593646732,"d":"755,272"}},{"$f":"($A29-$A28)/365.25*(CG28+(Main!$I35*Main!$D$3))*(1+Main!$I$4+VLOOKUP('Random Years'!CE29,'Hist Returns'!$A$12:$D$107,4,FALSE))","v":{"v":670722.2102429849,"d":"670,722"}},{"$f":"($A29-$A28)/365.25*(CH28+(Main!$I35*Main!$D$3))*(1+Main!$I$4+VLOOKUP('Random Years'!CF29,'Hist Returns'!$A$12:$D$107,4,FALSE))","v":{"v":547150.5107936518,"d":"547,151"}},{"$f":"($A29-$A28)/365.25*(CI28+(Main!$I35*Main!$D$3))*(1+Main!$I$4+VLOOKUP('Random Years'!CG29,'Hist Returns'!$A$12:$D$107,4,FALSE))","v":{"v":1860471.114814058,"d":"1,860,471"}},{"$f":"($A29-$A28)/365.25*(CJ28+(Main!$I35*Main!$D$3))*(1+Main!$I$4+VLOOKUP('Random Years'!CH29,'Hist Returns'!$A$12:$D$107,4,FALSE))","v":{"v":673916.9721454686,"d":"673,917"}},{"$f":"($A29-$A28)/365.25*(CK28+(Main!$I35*Main!$D$3))*(1+Main!$I$4+VLOOKUP('Random Years'!CI29,'Hist Returns'!$A$12:$D$107,4,FALSE))","v":{"v":577982.9422051738,"d":"577,983"}},{"$f":"($A29-$A28)/365.25*(CL28+(Main!$I35*Main!$D$3))*(1+Main!$I$4+VLOOKUP('Random Years'!CJ29,'Hist Returns'!$A$12:$D$107,4,FALSE))","v":{"v":922731.2422171069,"d":"922,731"}},{"$f":"($A29-$A28)/365.25*(CM28+(Main!$I35*Main!$D$3))*(1+Main!$I$4+VLOOKUP('Random Years'!CK29,'Hist Returns'!$A$12:$D$107,4,FALSE))","v":{"v":419903.4100366318,"d":"419,903"}},{"$f":"($A29-$A28)/365.25*(CN28+(Main!$I35*Main!$D$3))*(1+Main!$I$4+VLOOKUP('Random Years'!CL29,'Hist Returns'!$A$12:$D$107,4,FALSE))","v":{"v":1284673.1559562928,"d":"1,284,673"}},{"$f":"($A29-$A28)/365.25*(CO28+(Main!$I35*Main!$D$3))*(1+Main!$I$4+VLOOKUP('Random Years'!CM29,'Hist Returns'!$A$12:$D$107,4,FALSE))","v":{"v":512288.6807238402,"d":"512,289"}},{"$f":"($A29-$A28)/365.25*(CP28+(Main!$I35*Main!$D$3))*(1+Main!$I$4+VLOOKUP('Random Years'!CN29,'Hist Returns'!$A$12:$D$107,4,FALSE))","v":{"v":640445.4819385129,"d":"640,445"}},{"$f":"($A29-$A28)/365.25*(CQ28+(Main!$I35*Main!$D$3))*(1+Main!$I$4+VLOOKUP('Random Years'!CO29,'Hist Returns'!$A$12:$D$107,4,FALSE))","v":{"v":616612.059915071,"d":"616,612"}},{"$f":"($A29-$A28)/365.25*(CR28+(Main!$I35*Main!$D$3))*(1+Main!$I$4+VLOOKUP('Random Years'!CP29,'Hist Returns'!$A$12:$D$107,4,FALSE))","v":{"v":624716.0999307699,"d":"624,716"}},{"$f":"($A29-$A28)/365.25*(CS28+(Main!$I35*Main!$D$3))*(1+Main!$I$4+VLOOKUP('Random Years'!CQ29,'Hist Returns'!$A$12:$D$107,4,FALSE))","v":{"v":486467.1538070827,"d":"486,467"}},{"$f":"($A29-$A28)/365.25*(CT28+(Main!$I35*Main!$D$3))*(1+Main!$I$4+VLOOKUP('Random Years'!CR29,'Hist Returns'!$A$12:$D$107,4,FALSE))","v":{"v":228879.4872685897,"d":"228,879"}},{"$f":"($A29-$A28)/365.25*(CU28+(Main!$I35*Main!$D$3))*(1+Main!$I$4+VLOOKUP('Random Years'!CS29,'Hist Returns'!$A$12:$D$107,4,FALSE))","v":{"v":1198145.133863323,"d":"1,198,145"}},{"$f":"($A29-$A28)/365.25*(CV28+(Main!$I35*Main!$D$3))*(1+Main!$I$4+VLOOKUP('Random Years'!CT29,'Hist Returns'!$A$12:$D$107,4,FALSE))","v":{"v":707575.3747481303,"d":"707,575"}},{"$f":"($A29-$A28)/365.25*(CW28+(Main!$I35*Main!$D$3))*(1+Main!$I$4+VLOOKUP('Random Years'!CU29,'Hist Returns'!$A$12:$D$107,4,FALSE))","v":{"v":571174.0508635439,"d":"571,174"}},{"$f":"($A29-$A28)/365.25*(CX28+(Main!$I35*Main!$D$3))*(1+Main!$I$4+VLOOKUP('Random Years'!CV29,'Hist Returns'!$A$12:$D$107,4,FALSE))","v":{"v":520462.38621845684,"d":"520,462"}}]
[{"$f":"Main!A36","v":"2051-12-31"},{"$f":"Main!B36","v":97},{"$f":"($A30-$A29)/365.25*(C29+(Main!$I36*Main!$D$3))*(1+Main!$I$4+VLOOKUP('Random Years'!A30,'Hist Returns'!$A$12:$D$107,4,FALSE))","v":{"v":459155.70420924196,"d":"459,156"}},{"$f":"($A30-$A29)/365.25*(D29+(Main!$I36*Main!$D$3))*(1+Main!$I$4+VLOOKUP('Random Years'!B30,'Hist Returns'!$A$12:$D$107,4,FALSE))","v":{"v":405107.42752425885,"d":"405,107"}},{"$f":"($A30-$A29)/365.25*(E29+(Main!$I36*Main!$D$3))*(1+Main!$I$4+VLOOKUP('Random Years'!C30,'Hist Returns'!$A$12:$D$107,4,FALSE))","v":{"v":414523.77769585943,"d":"414,524"}},{"$f":"($A30-$A29)/365.25*(F29+(Main!$I36*Main!$D$3))*(1+Main!$I$4+VLOOKUP('Random Years'!D30,'Hist Returns'!$A$12:$D$107,4,FALSE))","v":{"v":1244347.4224208584,"d":"1,244,347"}},{"$f":"($A30-$A29)/365.25*(G29+(Main!$I36*Main!$D$3))*(1+Main!$I$4+VLOOKUP('Random Years'!E30,'Hist Returns'!$A$12:$D$107,4,FALSE))","v":{"v":1740141.1760641788,"d":"1,740,141"}},{"$f":"($A30-$A29)/365.25*(H29+(Main!$I36*Main!$D$3))*(1+Main!$I$4+VLOOKUP('Random Years'!F30,'Hist Returns'!$A$12:$D$107,4,FALSE))","v":{"v":820600.1438437586,"d":"820,600"}},{"$f":"($A30-$A29)/365.25*(I29+(Main!$I36*Main!$D$3))*(1+Main!$I$4+VLOOKUP('Random Years'!G30,'Hist Returns'!$A$12:$D$107,4,FALSE))","v":{"v":738049.4656129908,"d":"738,049"}},{"$f":"($A30-$A29)/365.25*(J29+(Main!$I36*Main!$D$3))*(1+Main!$I$4+VLOOKUP('Random Years'!H30,'Hist Returns'!$A$12:$D$107,4,FALSE))","v":{"v":1029019.5552063095,"d":"1,029,020"}},{"$f":"($A30-$A29)/365.25*(K29+(Main!$I36*Main!$D$3))*(1+Main!$I$4+VLOOKUP('Random Years'!I30,'Hist Returns'!$A$12:$D$107,4,FALSE))","v":{"v":615307.8829429924,"d":"615,308"}},{"$f":"($A30-$A29)/365.25*(L29+(Main!$I36*Main!$D$3))*(1+Main!$I$4+VLOOKUP('Random Years'!J30,'Hist Returns'!$A$12:$D$107,4,FALSE))","v":{"v":610920.6639311298,"d":"610,921"}},{"$f":"($A30-$A29)/365.25*(M29+(Main!$I36*Main!$D$3))*(1+Main!$I$4+VLOOKUP('Random Years'!K30,'Hist Returns'!$A$12:$D$107,4,FALSE))","v":{"v":271680.16149998043,"d":"271,680"}},{"$f":"($A30-$A29)/365.25*(N29+(Main!$I36*Main!$D$3))*(1+Main!$I$4+VLOOKUP('Random Years'!L30,'Hist Returns'!$A$12:$D$107,4,FALSE))","v":{"v":953478.2721397429,"d":"953,478"}},{"$f":"($A30-$A29)/365.25*(O29+(Main!$I36*Main!$D$3))*(1+Main!$I$4+VLOOKUP('Random Years'!M30,'Hist Returns'!$A$12:$D$107,4,FALSE))","v":{"v":383836.152034044,"d":"383,836"}},{"$f":"($A30-$A29)/365.25*(P29+(Main!$I36*Main!$D$3))*(1+Main!$I$4+VLOOKUP('Random Years'!N30,'Hist Returns'!$A$12:$D$107,4,FALSE))","v":{"v":454371.86252900376,"d":"454,372"}},{"$f":"($A30-$A29)/365.25*(Q29+(Main!$I36*Main!$D$3))*(1+Main!$I$4+VLOOKUP('Random Years'!O30,'Hist Returns'!$A$12:$D$107,4,FALSE))","v":{"v":590036.3759816285,"d":"590,036"}},{"$f":"($A30-$A29)/365.25*(R29+(Main!$I36*Main!$D$3))*(1+Main!$I$4+VLOOKUP('Random Years'!P30,'Hist Returns'!$A$12:$D$107,4,FALSE))","v":{"v":559635.7651193108,"d":"559,636"}},{"$f":"($A30-$A29)/365.25*(S29+(Main!$I36*Main!$D$3))*(1+Main!$I$4+VLOOKUP('Random Years'!Q30,'Hist Returns'!$A$12:$D$107,4,FALSE))","v":{"v":197622.00321741187,"d":"197,622"}},{"$f":"($A30-$A29)/365.25*(T29+(Main!$I36*Main!$D$3))*(1+Main!$I$4+VLOOKUP('Random Years'!R30,'Hist Returns'!$A$12:$D$107,4,FALSE))","v":{"v":497818.0159827221,"d":"497,818"}},{"$f":"($A30-$A29)/365.25*(U29+(Main!$I36*Main!$D$3))*(1+Main!$I$4+VLOOKUP('Random Years'!S30,'Hist Returns'!$A$12:$D$107,4,FALSE))","v":{"v":522735.8314966815,"d":"522,736"}},{"$f":"($A30-$A29)/365.25*(V29+(Main!$I36*Main!$D$3))*(1+Main!$I$4+VLOOKUP('Random Years'!T30,'Hist Returns'!$A$12:$D$107,4,FALSE))","v":{"v":1270219.4688622004,"d":"1,270,219"}},{"$f":"($A30-$A29)/365.25*(W29+(Main!$I36*Main!$D$3))*(1+Main!$I$4+VLOOKUP('Random Years'!U30,'Hist Returns'!$A$12:$D$107,4,FALSE))","v":{"v":640016.8542941441,"d":"640,017"}},{"$f":"($A30-$A29)/365.25*(X29+(Main!$I36*Main!$D$3))*(1+Main!$I$4+VLOOKUP('Random Years'!V30,'Hist Returns'!$A$12:$D$107,4,FALSE))","v":{"v":648231.4372705083,"d":"648,231"}},{"$f":"($A30-$A29)/365.25*(Y29+(Main!$I36*Main!$D$3))*(1+Main!$I$4+VLOOKUP('Random Years'!W30,'Hist Returns'!$A$12:$D$107,4,FALSE))","v":{"v":365921.6163151599,"d":"365,922"}},{"$f":"($A30-$A29)/365.25*(Z29+(Main!$I36*Main!$D$3))*(1+Main!$I$4+VLOOKUP('Random Years'!X30,'Hist Returns'!$A$12:$D$107,4,FALSE))","v":{"v":1166558.8891361328,"d":"1,166,559"}},{"$f":"($A30-$A29)/365.25*(AA29+(Main!$I36*Main!$D$3))*(1+Main!$I$4+VLOOKUP('Random Years'!Y30,'Hist Returns'!$A$12:$D$107,4,FALSE))","v":{"v":636008.7160744154,"d":"636,009"}},{"$f":"($A30-$A29)/365.25*(AB29+(Main!$I36*Main!$D$3))*(1+Main!$I$4+VLOOKUP('Random Years'!Z30,'Hist Returns'!$A$12:$D$107,4,FALSE))","v":{"v":633192.8716556898,"d":"633,193"}},{"$f":"($A30-$A29)/365.25*(AC29+(Main!$I36*Main!$D$3))*(1+Main!$I$4+VLOOKUP('Random Years'!AA30,'Hist Returns'!$A$12:$D$107,4,FALSE))","v":{"v":493955.66963703826,"d":"493,956"}},{"$f":"($A30-$A29)/365.25*(AD29+(Main!$I36*Main!$D$3))*(1+Main!$I$4+VLOOKUP('Random Years'!AB30,'Hist Returns'!$A$12:$D$107,4,FALSE))","v":{"v":817761.6427252745,"d":"817,762"}},{"$f":"($A30-$A29)/365.25*(AE29+(Main!$I36*Main!$D$3))*(1+Main!$I$4+VLOOKUP('Random Years'!AC30,'Hist Returns'!$A$12:$D$107,4,FALSE))","v":{"v":851552.572729605,"d":"851,553"}},{"$f":"($A30-$A29)/365.25*(AF29+(Main!$I36*Main!$D$3))*(1+Main!$I$4+VLOOKUP('Random Years'!AD30,'Hist Returns'!$A$12:$D$107,4,FALSE))","v":{"v":376596.38693885074,"d":"376,596"}},{"$f":"($A30-$A29)/365.25*(AG29+(Main!$I36*Main!$D$3))*(1+Main!$I$4+VLOOKUP('Random Years'!AE30,'Hist Returns'!$A$12:$D$107,4,FALSE))","v":{"v":962509.2438251667,"d":"962,509"}},{"$f":"($A30-$A29)/365.25*(AH29+(Main!$I36*Main!$D$3))*(1+Main!$I$4+VLOOKUP('Random Years'!AF30,'Hist Returns'!$A$12:$D$107,4,FALSE))","v":{"v":511685.33076854964,"d":"511,685"}},{"$f":"($A30-$A29)/365.25*(AI29+(Main!$I36*Main!$D$3))*(1+Main!$I$4+VLOOKUP('Random Years'!AG30,'Hist Returns'!$A$12:$D$107,4,FALSE))","v":{"v":526587.3606854283,"d":"526,587"}},{"$f":"($A30-$A29)/365.25*(AJ29+(Main!$I36*Main!$D$3))*(1+Main!$I$4+VLOOKUP('Random Years'!AH30,'Hist Returns'!$A$12:$D$107,4,FALSE))","v":{"v":1127107.1605909395,"d":"1,127,107"}},{"$f":"($A30-$A29)/365.25*(AK29+(Main!$I36*Main!$D$3))*(1+Main!$I$4+VLOOKUP('Random Years'!AI30,'Hist Returns'!$A$12:$D$107,4,FALSE))","v":{"v":1072813.4657061726,"d":"1,072,813"}},{"$f":"($A30-$A29)/365.25*(AL29+(Main!$I36*Main!$D$3))*(1+Main!$I$4+VLOOKUP('Random Years'!AJ30,'Hist Returns'!$A$12:$D$107,4,FALSE))","v":{"v":508654.26224475657,"d":"508,654"}},{"$f":"($A30-$A29)/365.25*(AM29+(Main!$I36*Main!$D$3))*(1+Main!$I$4+VLOOKUP('Random Years'!AK30,'Hist Returns'!$A$12:$D$107,4,FALSE))","v":{"v":959796.8159578737,"d":"959,797"}},{"$f":"($A30-$A29)/365.25*(AN29+(Main!$I36*Main!$D$3))*(1+Main!$I$4+VLOOKUP('Random Years'!AL30,'Hist Returns'!$A$12:$D$107,4,FALSE))","v":{"v":738163.7719900855,"d":"738,164"}},{"$f":"($A30-$A29)/365.25*(AO29+(Main!$I36*Main!$D$3))*(1+Main!$I$4+VLOOKUP('Random Years'!AM30,'Hist Returns'!$A$12:$D$107,4,FALSE))","v":{"v":453504.85037408816,"d":"453,505"}},{"$f":"($A30-$A29)/365.25*(AP29+(Main!$I36*Main!$D$3))*(1+Main!$I$4+VLOOKUP('Random Years'!AN30,'Hist Returns'!$A$12:$D$107,4,FALSE))","v":{"v":695745.0825886723,"d":"695,745"}},{"$f":"($A30-$A29)/365.25*(AQ29+(Main!$I36*Main!$D$3))*(1+Main!$I$4+VLOOKUP('Random Years'!AO30,'Hist Returns'!$A$12:$D$107,4,FALSE))","v":{"v":246379.49697018947,"d":"246,379"}},{"$f":"($A30-$A29)/365.25*(AR29+(Main!$I36*Main!$D$3))*(1+Main!$I$4+VLOOKUP('Random Years'!AP30,'Hist Returns'!$A$12:$D$107,4,FALSE))","v":{"v":672834.2380293477,"d":"672,834"}},{"$f":"($A30-$A29)/365.25*(AS29+(Main!$I36*Main!$D$3))*(1+Main!$I$4+VLOOKUP('Random Years'!AQ30,'Hist Returns'!$A$12:$D$107,4,FALSE))","v":{"v":850672.460867193,"d":"850,672"}},{"$f":"($A30-$A29)/365.25*(AT29+(Main!$I36*Main!$D$3))*(1+Main!$I$4+VLOOKUP('Random Years'!AR30,'Hist Returns'!$A$12:$D$107,4,FALSE))","v":{"v":892701.1864943734,"d":"892,701"}},{"$f":"($A30-$A29)/365.25*(AU29+(Main!$I36*Main!$D$3))*(1+Main!$I$4+VLOOKUP('Random Years'!AS30,'Hist Returns'!$A$12:$D$107,4,FALSE))","v":{"v":662844.1410494018,"d":"662,844"}},{"$f":"($A30-$A29)/365.25*(AV29+(Main!$I36*Main!$D$3))*(1+Main!$I$4+VLOOKUP('Random Years'!AT30,'Hist Returns'!$A$12:$D$107,4,FALSE))","v":{"v":905878.5828687025,"d":"905,879"}},{"$f":"($A30-$A29)/365.25*(AW29+(Main!$I36*Main!$D$3))*(1+Main!$I$4+VLOOKUP('Random Years'!AU30,'Hist Returns'!$A$12:$D$107,4,FALSE))","v":{"v":497953.0026007426,"d":"497,953"}},{"$f":"($A30-$A29)/365.25*(AX29+(Main!$I36*Main!$D$3))*(1+Main!$I$4+VLOOKUP('Random Years'!AV30,'Hist Returns'!$A$12:$D$107,4,FALSE))","v":{"v":772360.4775243815,"d":"772,360"}},{"$f":"($A30-$A29)/365.25*(AY29+(Main!$I36*Main!$D$3))*(1+Main!$I$4+VLOOKUP('Random Years'!AW30,'Hist Returns'!$A$12:$D$107,4,FALSE))","v":{"v":267273.48367209523,"d":"267,273"}},{"$f":"($A30-$A29)/365.25*(AZ29+(Main!$I36*Main!$D$3))*(1+Main!$I$4+VLOOKUP('Random Years'!AX30,'Hist Returns'!$A$12:$D$107,4,FALSE))","v":{"v":464541.0543412266,"d":"464,541"}},{"$f":"($A30-$A29)/365.25*(BA29+(Main!$I36*Main!$D$3))*(1+Main!$I$4+VLOOKUP('Random Years'!AY30,'Hist Returns'!$A$12:$D$107,4,FALSE))","v":{"v":464842.9807100685,"d":"464,843"}},{"$f":"($A30-$A29)/365.25*(BB29+(Main!$I36*Main!$D$3))*(1+Main!$I$4+VLOOKUP('Random Years'!AZ30,'Hist Returns'!$A$12:$D$107,4,FALSE))","v":{"v":275529.39720472455,"d":"275,529"}},{"$f":"($A30-$A29)/365.25*(BC29+(Main!$I36*Main!$D$3))*(1+Main!$I$4+VLOOKUP('Random Years'!BA30,'Hist Returns'!$A$12:$D$107,4,FALSE))","v":{"v":579939.2713249272,"d":"579,939"}},{"$f":"($A30-$A29)/365.25*(BD29+(Main!$I36*Main!$D$3))*(1+Main!$I$4+VLOOKUP('Random Years'!BB30,'Hist Returns'!$A$12:$D$107,4,FALSE))","v":{"v":716107.2580836685,"d":"716,107"}},{"$f":"($A30-$A29)/365.25*(BE29+(Main!$I36*Main!$D$3))*(1+Main!$I$4+VLOOKUP('Random Years'!BC30,'Hist Returns'!$A$12:$D$107,4,FALSE))","v":{"v":876893.8171415968,"d":"876,894"}},{"$f":"($A30-$A29)/365.25*(BF29+(Main!$I36*Main!$D$3))*(1+Main!$I$4+VLOOKUP('Random Years'!BD30,'Hist Returns'!$A$12:$D$107,4,FALSE))","v":{"v":1061290.2068516286,"d":"1,061,290"}},{"$f":"($A30-$A29)/365.25*(BG29+(Main!$I36*Main!$D$3))*(1+Main!$I$4+VLOOKUP('Random Years'!BE30,'Hist Returns'!$A$12:$D$107,4,FALSE))","v":{"v":541009.8271923903,"d":"541,010"}},{"$f":"($A30-$A29)/365.25*(BH29+(Main!$I36*Main!$D$3))*(1+Main!$I$4+VLOOKUP('Random Years'!BF30,'Hist Returns'!$A$12:$D$107,4,FALSE))","v":{"v":418034.4594524076,"d":"418,034"}},{"$f":"($A30-$A29)/365.25*(BI29+(Main!$I36*Main!$D$3))*(1+Main!$I$4+VLOOKUP('Random Years'!BG30,'Hist Returns'!$A$12:$D$107,4,FALSE))","v":{"v":1428522.7460911067,"d":"1,428,523"}},{"$f":"($A30-$A29)/365.25*(BJ29+(Main!$I36*Main!$D$3))*(1+Main!$I$4+VLOOKUP('Random Years'!BH30,'Hist Returns'!$A$12:$D$107,4,FALSE))","v":{"v":837677.7140546442,"d":"837,678"}},{"$f":"($A30-$A29)/365.25*(BK29+(Main!$I36*Main!$D$3))*(1+Main!$I$4+VLOOKUP('Random Years'!BI30,'Hist Returns'!$A$12:$D$107,4,FALSE))","v":{"v":650283.182273051,"d":"650,283"}},{"$f":"($A30-$A29)/365.25*(BL29+(Main!$I36*Main!$D$3))*(1+Main!$I$4+VLOOKUP('Random Years'!BJ30,'Hist Returns'!$A$12:$D$107,4,FALSE))","v":{"v":486541.73432567745,"d":"486,542"}},{"$f":"($A30-$A29)/365.25*(BM29+(Main!$I36*Main!$D$3))*(1+Main!$I$4+VLOOKUP('Random Years'!BK30,'Hist Returns'!$A$12:$D$107,4,FALSE))","v":{"v":937974.7903647193,"d":"937,975"}},{"$f":"($A30-$A29)/365.25*(BN29+(Main!$I36*Main!$D$3))*(1+Main!$I$4+VLOOKUP('Random Years'!BL30,'Hist Returns'!$A$12:$D$107,4,FALSE))","v":{"v":1701302.81790487,"d":"1,701,303"}},{"$f":"($A30-$A29)/365.25*(BO29+(Main!$I36*Main!$D$3))*(1+Main!$I$4+VLOOKUP('Random Years'!BM30,'Hist Returns'!$A$12:$D$107,4,FALSE))","v":{"v":293705.1050441486,"d":"293,705"}},{"$f":"($A30-$A29)/365.25*(BP29+(Main!$I36*Main!$D$3))*(1+Main!$I$4+VLOOKUP('Random Years'!BN30,'Hist Returns'!$A$12:$D$107,4,FALSE))","v":{"v":757784.8939733696,"d":"757,785"}},{"$f":"($A30-$A29)/365.25*(BQ29+(Main!$I36*Main!$D$3))*(1+Main!$I$4+VLOOKUP('Random Years'!BO30,'Hist Returns'!$A$12:$D$107,4,FALSE))","v":{"v":853625.1506434347,"d":"853,625"}},{"$f":"($A30-$A29)/365.25*(BR29+(Main!$I36*Main!$D$3))*(1+Main!$I$4+VLOOKUP('Random Years'!BP30,'Hist Returns'!$A$12:$D$107,4,FALSE))","v":{"v":531352.8800751804,"d":"531,353"}},{"$f":"($A30-$A29)/365.25*(BS29+(Main!$I36*Main!$D$3))*(1+Main!$I$4+VLOOKUP('Random Years'!BQ30,'Hist Returns'!$A$12:$D$107,4,FALSE))","v":{"v":1107089.5807338485,"d":"1,107,090"}},{"$f":"($A30-$A29)/365.25*(BT29+(Main!$I36*Main!$D$3))*(1+Main!$I$4+VLOOKUP('Random Years'!BR30,'Hist Returns'!$A$12:$D$107,4,FALSE))","v":{"v":270867.3433255621,"d":"270,867"}},{"$f":"($A30-$A29)/365.25*(BU29+(Main!$I36*Main!$D$3))*(1+Main!$I$4+VLOOKUP('Random Years'!BS30,'Hist Returns'!$A$12:$D$107,4,FALSE))","v":{"v":518558.33395462047,"d":"518,558"}},{"$f":"($A30-$A29)/365.25*(BV29+(Main!$I36*Main!$D$3))*(1+Main!$I$4+VLOOKUP('Random Years'!BT30,'Hist Returns'!$A$12:$D$107,4,FALSE))","v":{"v":112565.90711601623,"d":"112,566"}},{"$f":"($A30-$A29)/365.25*(BW29+(Main!$I36*Main!$D$3))*(1+Main!$I$4+VLOOKUP('Random Years'!BU30,'Hist Returns'!$A$12:$D$107,4,FALSE))","v":{"v":522954.35107186745,"d":"522,954"}},{"$f":"($A30-$A29)/365.25*(BX29+(Main!$I36*Main!$D$3))*(1+Main!$I$4+VLOOKUP('Random Years'!BV30,'Hist Returns'!$A$12:$D$107,4,FALSE))","v":{"v":375554.36667808646,"d":"375,554"}},{"$f":"($A30-$A29)/365.25*(BY29+(Main!$I36*Main!$D$3))*(1+Main!$I$4+VLOOKUP('Random Years'!BW30,'Hist Returns'!$A$12:$D$107,4,FALSE))","v":{"v":419783.722679065,"d":"419,784"}},{"$f":"($A30-$A29)/365.25*(BZ29+(Main!$I36*Main!$D$3))*(1+Main!$I$4+VLOOKUP('Random Years'!BX30,'Hist Returns'!$A$12:$D$107,4,FALSE))","v":{"v":176851.11166194084,"d":"176,851"}},{"$f":"($A30-$A29)/365.25*(CA29+(Main!$I36*Main!$D$3))*(1+Main!$I$4+VLOOKUP('Random Years'!BY30,'Hist Returns'!$A$12:$D$107,4,FALSE))","v":{"v":1272846.0594019992,"d":"1,272,846"}},{"$f":"($A30-$A29)/365.25*(CB29+(Main!$I36*Main!$D$3))*(1+Main!$I$4+VLOOKUP('Random Years'!BZ30,'Hist Returns'!$A$12:$D$107,4,FALSE))","v":{"v":687862.9724290348,"d":"687,863"}},{"$f":"($A30-$A29)/365.25*(CC29+(Main!$I36*Main!$D$3))*(1+Main!$I$4+VLOOKUP('Random Years'!CA30,'Hist Returns'!$A$12:$D$107,4,FALSE))","v":{"v":2106028.2637853916,"d":"2,106,028"}},{"$f":"($A30-$A29)/365.25*(CD29+(Main!$I36*Main!$D$3))*(1+Main!$I$4+VLOOKUP('Random Years'!CB30,'Hist Returns'!$A$12:$D$107,4,FALSE))","v":{"v":1000402.5393729385,"d":"1,000,403"}},{"$f":"($A30-$A29)/365.25*(CE29+(Main!$I36*Main!$D$3))*(1+Main!$I$4+VLOOKUP('Random Years'!CC30,'Hist Returns'!$A$12:$D$107,4,FALSE))","v":{"v":673226.694661452,"d":"673,227"}},{"$f":"($A30-$A29)/365.25*(CF29+(Main!$I36*Main!$D$3))*(1+Main!$I$4+VLOOKUP('Random Years'!CD30,'Hist Returns'!$A$12:$D$107,4,FALSE))","v":{"v":915576.6009736178,"d":"915,577"}},{"$f":"($A30-$A29)/365.25*(CG29+(Main!$I36*Main!$D$3))*(1+Main!$I$4+VLOOKUP('Random Years'!CE30,'Hist Returns'!$A$12:$D$107,4,FALSE))","v":{"v":673103.0426833918,"d":"673,103"}},{"$f":"($A30-$A29)/365.25*(CH29+(Main!$I36*Main!$D$3))*(1+Main!$I$4+VLOOKUP('Random Years'!CF30,'Hist Returns'!$A$12:$D$107,4,FALSE))","v":{"v":555327.6318366239,"d":"555,328"}},{"$f":"($A30-$A29)/365.25*(CI29+(Main!$I36*Main!$D$3))*(1+Main!$I$4+VLOOKUP('Random Years'!CG30,'Hist Returns'!$A$12:$D$107,4,FALSE))","v":{"v":1891372.6694165037,"d":"1,891,373"}},{"$f":"($A30-$A29)/365.25*(CJ29+(Main!$I36*Main!$D$3))*(1+Main!$I$4+VLOOKUP('Random Years'!CH30,'Hist Returns'!$A$12:$D$107,4,FALSE))","v":{"v":586586.5162810188,"d":"586,587"}},{"$f":"($A30-$A29)/365.25*(CK29+(Main!$I36*Main!$D$3))*(1+Main!$I$4+VLOOKUP('Random Years'!CI30,'Hist Returns'!$A$12:$D$107,4,FALSE))","v":{"v":708792.4913719536,"d":"708,792"}},{"$f":"($A30-$A29)/365.25*(CL29+(Main!$I36*Main!$D$3))*(1+Main!$I$4+VLOOKUP('Random Years'!CJ30,'Hist Returns'!$A$12:$D$107,4,FALSE))","v":{"v":942058.1955803621,"d":"942,058"}},{"$f":"($A30-$A29)/365.25*(CM29+(Main!$I36*Main!$D$3))*(1+Main!$I$4+VLOOKUP('Random Years'!CK30,'Hist Returns'!$A$12:$D$107,4,FALSE))","v":{"v":360347.2628987552,"d":"360,347"}},{"$f":"($A30-$A29)/365.25*(CN29+(Main!$I36*Main!$D$3))*(1+Main!$I$4+VLOOKUP('Random Years'!CL30,'Hist Returns'!$A$12:$D$107,4,FALSE))","v":{"v":1271749.273006466,"d":"1,271,749"}},{"$f":"($A30-$A29)/365.25*(CO29+(Main!$I36*Main!$D$3))*(1+Main!$I$4+VLOOKUP('Random Years'!CM30,'Hist Returns'!$A$12:$D$107,4,FALSE))","v":{"v":515944.955984217,"d":"515,945"}},{"$f":"($A30-$A29)/365.25*(CP29+(Main!$I36*Main!$D$3))*(1+Main!$I$4+VLOOKUP('Random Years'!CN30,'Hist Returns'!$A$12:$D$107,4,FALSE))","v":{"v":690367.1515283803,"d":"690,367"}},{"$f":"($A30-$A29)/365.25*(CQ29+(Main!$I36*Main!$D$3))*(1+Main!$I$4+VLOOKUP('Random Years'!CO30,'Hist Returns'!$A$12:$D$107,4,FALSE))","v":{"v":622259.2327758447,"d":"622,259"}},{"$f":"($A30-$A29)/365.25*(CR29+(Main!$I36*Main!$D$3))*(1+Main!$I$4+VLOOKUP('Random Years'!CP30,'Hist Returns'!$A$12:$D$107,4,FALSE))","v":{"v":702957.5964195085,"d":"702,958"}},{"$f":"($A30-$A29)/365.25*(CS29+(Main!$I36*Main!$D$3))*(1+Main!$I$4+VLOOKUP('Random Years'!CQ30,'Hist Returns'!$A$12:$D$107,4,FALSE))","v":{"v":482824.15060695185,"d":"482,824"}},{"$f":"($A30-$A29)/365.25*(CT29+(Main!$I36*Main!$D$3))*(1+Main!$I$4+VLOOKUP('Random Years'!CR30,'Hist Returns'!$A$12:$D$107,4,FALSE))","v":{"v":219516.05803703467,"d":"219,516"}},{"$f":"($A30-$A29)/365.25*(CU29+(Main!$I36*Main!$D$3))*(1+Main!$I$4+VLOOKUP('Random Years'!CS30,'Hist Returns'!$A$12:$D$107,4,FALSE))","v":{"v":1362113.0476749088,"d":"1,362,113"}},{"$f":"($A30-$A29)/365.25*(CV29+(Main!$I36*Main!$D$3))*(1+Main!$I$4+VLOOKUP('Random Years'!CT30,'Hist Returns'!$A$12:$D$107,4,FALSE))","v":{"v":715379.6779879171,"d":"715,380"}},{"$f":"($A30-$A29)/365.25*(CW29+(Main!$I36*Main!$D$3))*(1+Main!$I$4+VLOOKUP('Random Years'!CU30,'Hist Returns'!$A$12:$D$107,4,FALSE))","v":{"v":640109.3856500202,"d":"640,109"}},{"$f":"($A30-$A29)/365.25*(CX29+(Main!$I36*Main!$D$3))*(1+Main!$I$4+VLOOKUP('Random Years'!CV30,'Hist Returns'!$A$12:$D$107,4,FALSE))","v":{"v":514706.52128908,"d":"514,707"}}]
[{"$f":"Main!A37","v":"2052-12-30"},{"$f":"Main!B37","v":98},{"$f":"($A31-$A30)/365.25*(C30+(Main!$I37*Main!$D$3))*(1+Main!$I$4+VLOOKUP('Random Years'!A31,'Hist Returns'!$A$12:$D$107,4,FALSE))","v":{"v":407220.18032068823,"d":"407,220"}},{"$f":"($A31-$A30)/365.25*(D30+(Main!$I37*Main!$D$3))*(1+Main!$I$4+VLOOKUP('Random Years'!B31,'Hist Returns'!$A$12:$D$107,4,FALSE))","v":{"v":403020.5091217661,"d":"403,021"}},{"$f":"($A31-$A30)/365.25*(E30+(Main!$I37*Main!$D$3))*(1+Main!$I$4+VLOOKUP('Random Years'!C31,'Hist Returns'!$A$12:$D$107,4,FALSE))","v":{"v":401068.2025506092,"d":"401,068"}},{"$f":"($A31-$A30)/365.25*(F30+(Main!$I37*Main!$D$3))*(1+Main!$I$4+VLOOKUP('Random Years'!D31,'Hist Returns'!$A$12:$D$107,4,FALSE))","v":{"v":1244389.826860593,"d":"1,244,390"}},{"$f":"($A31-$A30)/365.25*(G30+(Main!$I37*Main!$D$3))*(1+Main!$I$4+VLOOKUP('Random Years'!E31,'Hist Returns'!$A$12:$D$107,4,FALSE))","v":{"v":1688074.9828876294,"d":"1,688,075"}},{"$f":"($A31-$A30)/365.25*(H30+(Main!$I37*Main!$D$3))*(1+Main!$I$4+VLOOKUP('Random Years'!F31,'Hist Returns'!$A$12:$D$107,4,FALSE))","v":{"v":844348.0268785924,"d":"844,348"}},{"$f":"($A31-$A30)/365.25*(I30+(Main!$I37*Main!$D$3))*(1+Main!$I$4+VLOOKUP('Random Years'!G31,'Hist Returns'!$A$12:$D$107,4,FALSE))","v":{"v":753776.1957108184,"d":"753,776"}},{"$f":"($A31-$A30)/365.25*(J30+(Main!$I37*Main!$D$3))*(1+Main!$I$4+VLOOKUP('Random Years'!H31,'Hist Returns'!$A$12:$D$107,4,FALSE))","v":{"v":985489.5171656961,"d":"985,490"}},{"$f":"($A31-$A30)/365.25*(K30+(Main!$I37*Main!$D$3))*(1+Main!$I$4+VLOOKUP('Random Years'!I31,'Hist Returns'!$A$12:$D$107,4,FALSE))","v":{"v":616024.645458854,"d":"616,025"}},{"$f":"($A31-$A30)/365.25*(L30+(Main!$I37*Main!$D$3))*(1+Main!$I$4+VLOOKUP('Random Years'!J31,'Hist Returns'!$A$12:$D$107,4,FALSE))","v":{"v":617084.189658705,"d":"617,084"}},{"$f":"($A31-$A30)/365.25*(M30+(Main!$I37*Main!$D$3))*(1+Main!$I$4+VLOOKUP('Random Years'!K31,'Hist Returns'!$A$12:$D$107,4,FALSE))","v":{"v":257296.2217033187,"d":"257,296"}},{"$f":"($A31-$A30)/365.25*(N30+(Main!$I37*Main!$D$3))*(1+Main!$I$4+VLOOKUP('Random Years'!L31,'Hist Returns'!$A$12:$D$107,4,FALSE))","v":{"v":983798.3002065195,"d":"983,798"}},{"$f":"($A31-$A30)/365.25*(O30+(Main!$I37*Main!$D$3))*(1+Main!$I$4+VLOOKUP('Random Years'!M31,'Hist Returns'!$A$12:$D$107,4,FALSE))","v":{"v":378460.7473083906,"d":"378,461"}},{"$f":"($A31-$A30)/365.25*(P30+(Main!$I37*Main!$D$3))*(1+Main!$I$4+VLOOKUP('Random Years'!N31,'Hist Returns'!$A$12:$D$107,4,FALSE))","v":{"v":540878.5282323546,"d":"540,879"}},{"$f":"($A31-$A30)/365.25*(Q30+(Main!$I37*Main!$D$3))*(1+Main!$I$4+VLOOKUP('Random Years'!O31,'Hist Returns'!$A$12:$D$107,4,FALSE))","v":{"v":526252.1240545493,"d":"526,252"}},{"$f":"($A31-$A30)/365.25*(R30+(Main!$I37*Main!$D$3))*(1+Main!$I$4+VLOOKUP('Random Years'!P31,'Hist Returns'!$A$12:$D$107,4,FALSE))","v":{"v":515981.10870335595,"d":"515,981"}},{"$f":"($A31-$A30)/365.25*(S30+(Main!$I37*Main!$D$3))*(1+Main!$I$4+VLOOKUP('Random Years'!Q31,'Hist Returns'!$A$12:$D$107,4,FALSE))","v":{"v":199978.51248117373,"d":"199,979"}},{"$f":"($A31-$A30)/365.25*(T30+(Main!$I37*Main!$D$3))*(1+Main!$I$4+VLOOKUP('Random Years'!R31,'Hist Returns'!$A$12:$D$107,4,FALSE))","v":{"v":468700.8887422137,"d":"468,701"}},{"$f":"($A31-$A30)/365.25*(U30+(Main!$I37*Main!$D$3))*(1+Main!$I$4+VLOOKUP('Random Years'!S31,'Hist Returns'!$A$12:$D$107,4,FALSE))","v":{"v":535172.5671874931,"d":"535,173"}},{"$f":"($A31-$A30)/365.25*(V30+(Main!$I37*Main!$D$3))*(1+Main!$I$4+VLOOKUP('Random Years'!T31,'Hist Returns'!$A$12:$D$107,4,FALSE))","v":{"v":1441369.5569170658,"d":"1,441,370"}},{"$f":"($A31-$A30)/365.25*(W30+(Main!$I37*Main!$D$3))*(1+Main!$I$4+VLOOKUP('Random Years'!U31,'Hist Returns'!$A$12:$D$107,4,FALSE))","v":{"v":573432.2988309044,"d":"573,432"}},{"$f":"($A31-$A30)/365.25*(X30+(Main!$I37*Main!$D$3))*(1+Main!$I$4+VLOOKUP('Random Years'!V31,'Hist Returns'!$A$12:$D$107,4,FALSE))","v":{"v":646251.2836992596,"d":"646,251"}},{"$f":"($A31-$A30)/365.25*(Y30+(Main!$I37*Main!$D$3))*(1+Main!$I$4+VLOOKUP('Random Years'!W31,'Hist Returns'!$A$12:$D$107,4,FALSE))","v":{"v":382368.51352035697,"d":"382,369"}},{"$f":"($A31-$A30)/365.25*(Z30+(Main!$I37*Main!$D$3))*(1+Main!$I$4+VLOOKUP('Random Years'!X31,'Hist Returns'!$A$12:$D$107,4,FALSE))","v":{"v":1172157.6321937235,"d":"1,172,158"}},{"$f":"($A31-$A30)/365.25*(AA30+(Main!$I37*Main!$D$3))*(1+Main!$I$4+VLOOKUP('Random Years'!Y31,'Hist Returns'!$A$12:$D$107,4,FALSE))","v":{"v":636886.1135181276,"d":"636,886"}},{"$f":"($A31-$A30)/365.25*(AB30+(Main!$I37*Main!$D$3))*(1+Main!$I$4+VLOOKUP('Random Years'!Z31,'Hist Returns'!$A$12:$D$107,4,FALSE))","v":{"v":643936.627519487,"d":"643,937"}},{"$f":"($A31-$A30)/365.25*(AC30+(Main!$I37*Main!$D$3))*(1+Main!$I$4+VLOOKUP('Random Years'!AA31,'Hist Returns'!$A$12:$D$107,4,FALSE))","v":{"v":516857.71706083056,"d":"516,858"}},{"$f":"($A31-$A30)/365.25*(AD30+(Main!$I37*Main!$D$3))*(1+Main!$I$4+VLOOKUP('Random Years'!AB31,'Hist Returns'!$A$12:$D$107,4,FALSE))","v":{"v":816878.4499804615,"d":"816,878"}},{"$f":"($A31-$A30)/365.25*(AE30+(Main!$I37*Main!$D$3))*(1+Main!$I$4+VLOOKUP('Random Years'!AC31,'Hist Returns'!$A$12:$D$107,4,FALSE))","v":{"v":872274.0530363545,"d":"872,274"}},{"$f":"($A31-$A30)/365.25*(AF30+(Main!$I37*Main!$D$3))*(1+Main!$I$4+VLOOKUP('Random Years'!AD31,'Hist Returns'!$A$12:$D$107,4,FALSE))","v":{"v":365451.5844522866,"d":"365,452"}},{"$f":"($A31-$A30)/365.25*(AG30+(Main!$I37*Main!$D$3))*(1+Main!$I$4+VLOOKUP('Random Years'!AE31,'Hist Returns'!$A$12:$D$107,4,FALSE))","v":{"v":957922.5169630703,"d":"957,923"}},{"$f":"($A31-$A30)/365.25*(AH30+(Main!$I37*Main!$D$3))*(1+Main!$I$4+VLOOKUP('Random Years'!AF31,'Hist Returns'!$A$12:$D$107,4,FALSE))","v":{"v":574723.8617114637,"d":"574,724"}},{"$f":"($A31-$A30)/365.25*(AI30+(Main!$I37*Main!$D$3))*(1+Main!$I$4+VLOOKUP('Random Years'!AG31,'Hist Returns'!$A$12:$D$107,4,FALSE))","v":{"v":521900.80739700235,"d":"521,901"}},{"$f":"($A31-$A30)/365.25*(AJ30+(Main!$I37*Main!$D$3))*(1+Main!$I$4+VLOOKUP('Random Years'!AH31,'Hist Returns'!$A$12:$D$107,4,FALSE))","v":{"v":1143294.729984058,"d":"1,143,295"}},{"$f":"($A31-$A30)/365.25*(AK30+(Main!$I37*Main!$D$3))*(1+Main!$I$4+VLOOKUP('Random Years'!AI31,'Hist Returns'!$A$12:$D$107,4,FALSE))","v":{"v":938647.5118856066,"d":"938,648"}},{"$f":"($A31-$A30)/365.25*(AL30+(Main!$I37*Main!$D$3))*(1+Main!$I$4+VLOOKUP('Random Years'!AJ31,'Hist Returns'!$A$12:$D$107,4,FALSE))","v":{"v":541199.265660615,"d":"541,199"}},{"$f":"($A31-$A30)/365.25*(AM30+(Main!$I37*Main!$D$3))*(1+Main!$I$4+VLOOKUP('Random Years'!AK31,'Hist Returns'!$A$12:$D$107,4,FALSE))","v":{"v":956112.3022801767,"d":"956,112"}},{"$f":"($A31-$A30)/365.25*(AN30+(Main!$I37*Main!$D$3))*(1+Main!$I$4+VLOOKUP('Random Years'!AL31,'Hist Returns'!$A$12:$D$107,4,FALSE))","v":{"v":842530.3862324758,"d":"842,530"}},{"$f":"($A31-$A30)/365.25*(AO30+(Main!$I37*Main!$D$3))*(1+Main!$I$4+VLOOKUP('Random Years'!AM31,'Hist Returns'!$A$12:$D$107,4,FALSE))","v":{"v":456791.54844031075,"d":"456,792"}},{"$f":"($A31-$A30)/365.25*(AP30+(Main!$I37*Main!$D$3))*(1+Main!$I$4+VLOOKUP('Random Years'!AN31,'Hist Returns'!$A$12:$D$107,4,FALSE))","v":{"v":683921.2181826765,"d":"683,921"}},{"$f":"($A31-$A30)/365.25*(AQ30+(Main!$I37*Main!$D$3))*(1+Main!$I$4+VLOOKUP('Random Years'!AO31,'Hist Returns'!$A$12:$D$107,4,FALSE))","v":{"v":239714.6344906097,"d":"239,715"}},{"$f":"($A31-$A30)/365.25*(AR30+(Main!$I37*Main!$D$3))*(1+Main!$I$4+VLOOKUP('Random Years'!AP31,'Hist Returns'!$A$12:$D$107,4,FALSE))","v":{"v":673257.2131800611,"d":"673,257"}},{"$f":"($A31-$A30)/365.25*(AS30+(Main!$I37*Main!$D$3))*(1+Main!$I$4+VLOOKUP('Random Years'!AQ31,'Hist Returns'!$A$12:$D$107,4,FALSE))","v":{"v":869196.6816839998,"d":"869,197"}},{"$f":"($A31-$A30)/365.25*(AT30+(Main!$I37*Main!$D$3))*(1+Main!$I$4+VLOOKUP('Random Years'!AR31,'Hist Returns'!$A$12:$D$107,4,FALSE))","v":{"v":901530.9799831773,"d":"901,531"}},{"$f":"($A31-$A30)/365.25*(AU30+(Main!$I37*Main!$D$3))*(1+Main!$I$4+VLOOKUP('Random Years'!AS31,'Hist Returns'!$A$12:$D$107,4,FALSE))","v":{"v":675261.4303740346,"d":"675,261"}},{"$f":"($A31-$A30)/365.25*(AV30+(Main!$I37*Main!$D$3))*(1+Main!$I$4+VLOOKUP('Random Years'!AT31,'Hist Returns'!$A$12:$D$107,4,FALSE))","v":{"v":907550.3778540664,"d":"907,550"}},{"$f":"($A31-$A30)/365.25*(AW30+(Main!$I37*Main!$D$3))*(1+Main!$I$4+VLOOKUP('Random Years'!AU31,'Hist Returns'!$A$12:$D$107,4,FALSE))","v":{"v":503445.9192135792,"d":"503,446"}},{"$f":"($A31-$A30)/365.25*(AX30+(Main!$I37*Main!$D$3))*(1+Main!$I$4+VLOOKUP('Random Years'!AV31,'Hist Returns'!$A$12:$D$107,4,FALSE))","v":{"v":758634.1030240594,"d":"758,634"}},{"$f":"($A31-$A30)/365.25*(AY30+(Main!$I37*Main!$D$3))*(1+Main!$I$4+VLOOKUP('Random Years'!AW31,'Hist Returns'!$A$12:$D$107,4,FALSE))","v":{"v":255284.3669088044,"d":"255,284"}},{"$f":"($A31-$A30)/365.25*(AZ30+(Main!$I37*Main!$D$3))*(1+Main!$I$4+VLOOKUP('Random Years'!AX31,'Hist Returns'!$A$12:$D$107,4,FALSE))","v":{"v":538280.3921111868,"d":"538,280"}},{"$f":"($A31-$A30)/365.25*(BA30+(Main!$I37*Main!$D$3))*(1+Main!$I$4+VLOOKUP('Random Years'!AY31,'Hist Returns'!$A$12:$D$107,4,FALSE))","v":{"v":439076.54623272736,"d":"439,077"}},{"$f":"($A31-$A30)/365.25*(BB30+(Main!$I37*Main!$D$3))*(1+Main!$I$4+VLOOKUP('Random Years'!AZ31,'Hist Returns'!$A$12:$D$107,4,FALSE))","v":{"v":283581.7648513533,"d":"283,582"}},{"$f":"($A31-$A30)/365.25*(BC30+(Main!$I37*Main!$D$3))*(1+Main!$I$4+VLOOKUP('Random Years'!BA31,'Hist Returns'!$A$12:$D$107,4,FALSE))","v":{"v":609711.1841785713,"d":"609,711"}},{"$f":"($A31-$A30)/365.25*(BD30+(Main!$I37*Main!$D$3))*(1+Main!$I$4+VLOOKUP('Random Years'!BB31,'Hist Returns'!$A$12:$D$107,4,FALSE))","v":{"v":730998.7864979341,"d":"730,999"}},{"$f":"($A31-$A30)/365.25*(BE30+(Main!$I37*Main!$D$3))*(1+Main!$I$4+VLOOKUP('Random Years'!BC31,'Hist Returns'!$A$12:$D$107,4,FALSE))","v":{"v":872548.9757527553,"d":"872,549"}},{"$f":"($A31-$A30)/365.25*(BF30+(Main!$I37*Main!$D$3))*(1+Main!$I$4+VLOOKUP('Random Years'!BD31,'Hist Returns'!$A$12:$D$107,4,FALSE))","v":{"v":1063908.2852301684,"d":"1,063,908"}},{"$f":"($A31-$A30)/365.25*(BG30+(Main!$I37*Main!$D$3))*(1+Main!$I$4+VLOOKUP('Random Years'!BE31,'Hist Returns'!$A$12:$D$107,4,FALSE))","v":{"v":539648.3809810457,"d":"539,648"}},{"$f":"($A31-$A30)/365.25*(BH30+(Main!$I37*Main!$D$3))*(1+Main!$I$4+VLOOKUP('Random Years'!BF31,'Hist Returns'!$A$12:$D$107,4,FALSE))","v":{"v":433704.2202152621,"d":"433,704"}},{"$f":"($A31-$A30)/365.25*(BI30+(Main!$I37*Main!$D$3))*(1+Main!$I$4+VLOOKUP('Random Years'!BG31,'Hist Returns'!$A$12:$D$107,4,FALSE))","v":{"v":1530965.8138449574,"d":"1,530,966"}},{"$f":"($A31-$A30)/365.25*(BJ30+(Main!$I37*Main!$D$3))*(1+Main!$I$4+VLOOKUP('Random Years'!BH31,'Hist Returns'!$A$12:$D$107,4,FALSE))","v":{"v":779901.1300481154,"d":"779,901"}},{"$f":"($A31-$A30)/365.25*(BK30+(Main!$I37*Main!$D$3))*(1+Main!$I$4+VLOOKUP('Random Years'!BI31,'Hist Returns'!$A$12:$D$107,4,FALSE))","v":{"v":641916.4043659623,"d":"641,916"}},{"$f":"($A31-$A30)/365.25*(BL30+(Main!$I37*Main!$D$3))*(1+Main!$I$4+VLOOKUP('Random Years'!BJ31,'Hist Returns'!$A$12:$D$107,4,FALSE))","v":{"v":488061.73802785657,"d":"488,062"}},{"$f":"($A31-$A30)/365.25*(BM30+(Main!$I37*Main!$D$3))*(1+Main!$I$4+VLOOKUP('Random Years'!BK31,'Hist Returns'!$A$12:$D$107,4,FALSE))","v":{"v":1075659.5380980014,"d":"1,075,660"}},{"$f":"($A31-$A30)/365.25*(BN30+(Main!$I37*Main!$D$3))*(1+Main!$I$4+VLOOKUP('Random Years'!BL31,'Hist Returns'!$A$12:$D$107,4,FALSE))","v":{"v":1915388.1026421834,"d":"1,915,388"}},{"$f":"($A31-$A30)/365.25*(BO30+(Main!$I37*Main!$D$3))*(1+Main!$I$4+VLOOKUP('Random Years'!BM31,'Hist Returns'!$A$12:$D$107,4,FALSE))","v":{"v":275312.15311385464,"d":"275,312"}},{"$f":"($A31-$A30)/365.25*(BP30+(Main!$I37*Main!$D$3))*(1+Main!$I$4+VLOOKUP('Random Years'!BN31,'Hist Returns'!$A$12:$D$107,4,FALSE))","v":{"v":681661.5971555605,"d":"681,662"}},{"$f":"($A31-$A30)/365.25*(BQ30+(Main!$I37*Main!$D$3))*(1+Main!$I$4+VLOOKUP('Random Years'!BO31,'Hist Returns'!$A$12:$D$107,4,FALSE))","v":{"v":848964.0453335108,"d":"848,964"}},{"$f":"($A31-$A30)/365.25*(BR30+(Main!$I37*Main!$D$3))*(1+Main!$I$4+VLOOKUP('Random Years'!BP31,'Hist Returns'!$A$12:$D$107,4,FALSE))","v":{"v":538969.6595816689,"d":"538,970"}},{"$f":"($A31-$A30)/365.25*(BS30+(Main!$I37*Main!$D$3))*(1+Main!$I$4+VLOOKUP('Random Years'!BQ31,'Hist Returns'!$A$12:$D$107,4,FALSE))","v":{"v":1105334.2426092585,"d":"1,105,334"}},{"$f":"($A31-$A30)/365.25*(BT30+(Main!$I37*Main!$D$3))*(1+Main!$I$4+VLOOKUP('Random Years'!BR31,'Hist Returns'!$A$12:$D$107,4,FALSE))","v":{"v":265352.4591245898,"d":"265,352"}},{"$f":"($A31-$A30)/365.25*(BU30+(Main!$I37*Main!$D$3))*(1+Main!$I$4+VLOOKUP('Random Years'!BS31,'Hist Returns'!$A$12:$D$107,4,FALSE))","v":{"v":527367.2454238684,"d":"527,367"}},{"$f":"($A31-$A30)/365.25*(BV30+(Main!$I37*Main!$D$3))*(1+Main!$I$4+VLOOKUP('Random Years'!BT31,'Hist Returns'!$A$12:$D$107,4,FALSE))","v":{"v":99320.70361842198,"d":"99,321"}},{"$f":"($A31-$A30)/365.25*(BW30+(Main!$I37*Main!$D$3))*(1+Main!$I$4+VLOOKUP('Random Years'!BU31,'Hist Returns'!$A$12:$D$107,4,FALSE))","v":{"v":515093.3631403998,"d":"515,093"}},{"$f":"($A31-$A30)/365.25*(BX30+(Main!$I37*Main!$D$3))*(1+Main!$I$4+VLOOKUP('Random Years'!BV31,'Hist Returns'!$A$12:$D$107,4,FALSE))","v":{"v":413168.5870742301,"d":"413,169"}},{"$f":"($A31-$A30)/365.25*(BY30+(Main!$I37*Main!$D$3))*(1+Main!$I$4+VLOOKUP('Random Years'!BW31,'Hist Returns'!$A$12:$D$107,4,FALSE))","v":{"v":418223.3477891502,"d":"418,223"}},{"$f":"($A31-$A30)/365.25*(BZ30+(Main!$I37*Main!$D$3))*(1+Main!$I$4+VLOOKUP('Random Years'!BX31,'Hist Returns'!$A$12:$D$107,4,FALSE))","v":{"v":187459.98966185906,"d":"187,460"}},{"$f":"($A31-$A30)/365.25*(CA30+(Main!$I37*Main!$D$3))*(1+Main!$I$4+VLOOKUP('Random Years'!BY31,'Hist Returns'!$A$12:$D$107,4,FALSE))","v":{"v":1297258.4459330568,"d":"1,297,258"}},{"$f":"($A31-$A30)/365.25*(CB30+(Main!$I37*Main!$D$3))*(1+Main!$I$4+VLOOKUP('Random Years'!BZ31,'Hist Returns'!$A$12:$D$107,4,FALSE))","v":{"v":695920.5146172185,"d":"695,921"}},{"$f":"($A31-$A30)/365.25*(CC30+(Main!$I37*Main!$D$3))*(1+Main!$I$4+VLOOKUP('Random Years'!CA31,'Hist Returns'!$A$12:$D$107,4,FALSE))","v":{"v":2097524.727251805,"d":"2,097,525"}},{"$f":"($A31-$A30)/365.25*(CD30+(Main!$I37*Main!$D$3))*(1+Main!$I$4+VLOOKUP('Random Years'!CB31,'Hist Returns'!$A$12:$D$107,4,FALSE))","v":{"v":1006257.6688494543,"d":"1,006,258"}},{"$f":"($A31-$A30)/365.25*(CE30+(Main!$I37*Main!$D$3))*(1+Main!$I$4+VLOOKUP('Random Years'!CC31,'Hist Returns'!$A$12:$D$107,4,FALSE))","v":{"v":647954.7081267164,"d":"647,955"}},{"$f":"($A31-$A30)/365.25*(CF30+(Main!$I37*Main!$D$3))*(1+Main!$I$4+VLOOKUP('Random Years'!CD31,'Hist Returns'!$A$12:$D$107,4,FALSE))","v":{"v":939283.0062355985,"d":"939,283"}},{"$f":"($A31-$A30)/365.25*(CG30+(Main!$I37*Main!$D$3))*(1+Main!$I$4+VLOOKUP('Random Years'!CE31,'Hist Returns'!$A$12:$D$107,4,FALSE))","v":{"v":721869.0781724432,"d":"721,869"}},{"$f":"($A31-$A30)/365.25*(CH30+(Main!$I37*Main!$D$3))*(1+Main!$I$4+VLOOKUP('Random Years'!CF31,'Hist Returns'!$A$12:$D$107,4,FALSE))","v":{"v":554366.6723710692,"d":"554,367"}},{"$f":"($A31-$A30)/365.25*(CI30+(Main!$I37*Main!$D$3))*(1+Main!$I$4+VLOOKUP('Random Years'!CG31,'Hist Returns'!$A$12:$D$107,4,FALSE))","v":{"v":1912666.281539048,"d":"1,912,666"}},{"$f":"($A31-$A30)/365.25*(CJ30+(Main!$I37*Main!$D$3))*(1+Main!$I$4+VLOOKUP('Random Years'!CH31,'Hist Returns'!$A$12:$D$107,4,FALSE))","v":{"v":757243.0155846736,"d":"757,243"}},{"$f":"($A31-$A30)/365.25*(CK30+(Main!$I37*Main!$D$3))*(1+Main!$I$4+VLOOKUP('Random Years'!CI31,'Hist Returns'!$A$12:$D$107,4,FALSE))","v":{"v":697249.4180176033,"d":"697,249"}},{"$f":"($A31-$A30)/365.25*(CL30+(Main!$I37*Main!$D$3))*(1+Main!$I$4+VLOOKUP('Random Years'!CJ31,'Hist Returns'!$A$12:$D$107,4,FALSE))","v":{"v":931585.726046996,"d":"931,586"}},{"$f":"($A31-$A30)/365.25*(CM30+(Main!$I37*Main!$D$3))*(1+Main!$I$4+VLOOKUP('Random Years'!CK31,'Hist Returns'!$A$12:$D$107,4,FALSE))","v":{"v":362654.3634510832,"d":"362,654"}},{"$f":"($A31-$A30)/365.25*(CN30+(Main!$I37*Main!$D$3))*(1+Main!$I$4+VLOOKUP('Random Years'!CL31,'Hist Returns'!$A$12:$D$107,4,FALSE))","v":{"v":1286090.063653513,"d":"1,286,090"}},{"$f":"($A31-$A30)/365.25*(CO30+(Main!$I37*Main!$D$3))*(1+Main!$I$4+VLOOKUP('Random Years'!CM31,'Hist Returns'!$A$12:$D$107,4,FALSE))","v":{"v":509852.9232340262,"d":"509,853"}},{"$f":"($A31-$A30)/365.25*(CP30+(Main!$I37*Main!$D$3))*(1+Main!$I$4+VLOOKUP('Random Years'!CN31,'Hist Returns'!$A$12:$D$107,4,FALSE))","v":{"v":693455.7081036776,"d":"693,456"}},{"$f":"($A31-$A30)/365.25*(CQ30+(Main!$I37*Main!$D$3))*(1+Main!$I$4+VLOOKUP('Random Years'!CO31,'Hist Returns'!$A$12:$D$107,4,FALSE))","v":{"v":657067.3131133306,"d":"657,067"}},{"$f":"($A31-$A30)/365.25*(CR30+(Main!$I37*Main!$D$3))*(1+Main!$I$4+VLOOKUP('Random Years'!CP31,'Hist Returns'!$A$12:$D$107,4,FALSE))","v":{"v":699834.8157741418,"d":"699,835"}},{"$f":"($A31-$A30)/365.25*(CS30+(Main!$I37*Main!$D$3))*(1+Main!$I$4+VLOOKUP('Random Years'!CQ31,'Hist Returns'!$A$12:$D$107,4,FALSE))","v":{"v":475113.39387073467,"d":"475,113"}},{"$f":"($A31-$A30)/365.25*(CT30+(Main!$I37*Main!$D$3))*(1+Main!$I$4+VLOOKUP('Random Years'!CR31,'Hist Returns'!$A$12:$D$107,4,FALSE))","v":{"v":214316.38002339457,"d":"214,316"}},{"$f":"($A31-$A30)/365.25*(CU30+(Main!$I37*Main!$D$3))*(1+Main!$I$4+VLOOKUP('Random Years'!CS31,'Hist Returns'!$A$12:$D$107,4,FALSE))","v":{"v":1405301.948510334,"d":"1,405,302"}},{"$f":"($A31-$A30)/365.25*(CV30+(Main!$I37*Main!$D$3))*(1+Main!$I$4+VLOOKUP('Random Years'!CT31,'Hist Returns'!$A$12:$D$107,4,FALSE))","v":{"v":756326.7210931528,"d":"756,327"}},{"$f":"($A31-$A30)/365.25*(CW30+(Main!$I37*Main!$D$3))*(1+Main!$I$4+VLOOKUP('Random Years'!CU31,'Hist Returns'!$A$12:$D$107,4,FALSE))","v":{"v":673299.8491343608,"d":"673,300"}},{"$f":"($A31-$A30)/365.25*(CX30+(Main!$I37*Main!$D$3))*(1+Main!$I$4+VLOOKUP('Random Years'!CV31,'Hist Returns'!$A$12:$D$107,4,FALSE))","v":{"v":586490.8094847659,"d":"586,491"}}]
[]
["This worksheet calculatates 100 scenarios of annually compounded valuation for Treasury Bonds using the randomly selected years of worksheet Random Years. "]
["The values in row 2 use the allocation percentage times the initial investment.  The values after row 2 are taken from the row above. "]
["The results are added to the similar numbers for equities and Treasury Bonds as part of the RandomYr Returns worksheet and summarized on Main. "]
["Pressing F9 or Ctrl r for a recalculation will give a new set of numbers. "]
["If there are no numbers, the allocation on Main is set to 0%.  "]

{"sheet":"Correlation","index":15,"n_rows":88,"n_cols":6,"rows_kept":88}
["Year","Stocks","Yr B4"]
[1928,{"v":0.43811155152887893,"d":"43.8%"},null,null,{"$f":"CORREL(B3:B88,C3:C88)","v":0.006124197521091274},"Correlation from one year to the next year. "]
[1929,{"v":-0.0829794661190966,"d":"-8.3%"},{"v":0.43811155152887893,"d":"43.8%"},null,null,"Pretty close to random. "]
[1930,{"v":-0.25123636363636365,"d":"-25.1%"},{"v":-0.0829794661190966,"d":"-8.3%"}]
[1931,{"v":-0.4383754889178619,"d":"-43.8%"},{"v":-0.25123636363636365,"d":"-25.1%"},"One of the objections to the methodology was that annual returns are not random, and that one year's return impacts the next year's return. "]
[1932,{"v":-0.08642364532019696,"d":"-8.6%"},{"v":-0.4383754889178619,"d":"-43.8%"},"It may be true that good or bad returns run in a series, or that there are certain cycles.  "]
[1933,{"v":0.49982225433526023,"d":"50.0%"},{"v":-0.08642364532019696,"d":"-8.6%"},"However, I couldn't find mathematical predictiveness, and so couldn't incorporate such into the model. "]
[1934,{"v":-0.011885656970912803,"d":"-1.2%"},{"v":0.49982225433526023,"d":"50.0%"},"The data of column B were taken from Hist Returns, and column C is column B moved down one row. "]
[1935,{"v":0.4674042105263158,"d":"46.7%"},{"v":-0.011885656970912803,"d":"-1.2%"},"This worksheet is not connected by formulas to any other worksheet. "]
[1936,{"v":0.3194341027550261,"d":"31.9%"},{"v":0.4674042105263158,"d":"46.7%"}]
[1937,{"v":-0.3533672875436554,"d":"-35.3%"},{"v":0.3194341027550261,"d":"31.9%"}]
[1938,{"v":0.29282654028536,"d":"29.3%"},{"v":-0.3533672875436554,"d":"-35.3%"}]
[1939,{"v":-0.010975646879756443,"d":"-1.1%"},{"v":0.29282654028536,"d":"29.3%"}]
[1940,{"v":-0.10672873194221515,"d":"-10.7%"},{"v":-0.010975646879756443,"d":"-1.1%"}]
[1941,{"v":-0.1277145557655955,"d":"-12.8%"},{"v":-0.10672873194221515,"d":"-10.7%"}]
[1942,{"v":0.19173762945914843,"d":"19.2%"},{"v":-0.1277145557655955,"d":"-12.8%"}]
[1943,{"v":0.25061310133060394,"d":"25.1%"},{"v":0.19173762945914843,"d":"19.2%"}]
[1944,{"v":0.1903067694944301,"d":"19.0%"},{"v":0.25061310133060394,"d":"25.1%"}]
[1945,{"v":0.358210853373494,"d":"35.8%"},{"v":0.1903067694944301,"d":"19.0%"}]
[1946,{"v":-0.08429147465437781,"d":"-8.4%"},{"v":0.358210853373494,"d":"35.8%"}]
[1947,{"v":0.052,"d":"5.2%"},{"v":-0.08429147465437781,"d":"-8.4%"}]
[1948,{"v":0.057045751633986834,"d":"5.7%"},{"v":0.052,"d":"5.2%"}]
[1949,{"v":0.183032236852105,"d":"18.3%"},{"v":0.057045751633986834,"d":"5.7%"}]
[1950,{"v":0.30805539011316263,"d":"30.8%"},{"v":0.183032236852105,"d":"18.3%"}]
[1951,{"v":0.236785630445423,"d":"23.7%"},{"v":0.30805539011316263,"d":"30.8%"}]
[1952,{"v":0.18150988641144306,"d":"18.2%"},{"v":0.236785630445423,"d":"23.7%"}]
[1953,{"v":-0.012082047421904465,"d":"-1.2%"},{"v":0.18150988641144306,"d":"18.2%"}]
[1954,{"v":0.525633212414349,"d":"52.6%"},{"v":-0.012082047421904465,"d":"-1.2%"}]
[1955,{"v":0.325973318510285,"d":"32.6%"},{"v":0.525633212414349,"d":"52.6%"}]
[1956,{"v":0.07439511873350935,"d":"7.4%"},{"v":0.325973318510285,"d":"32.6%"}]
[1957,{"v":-0.1045736018855796,"d":"-10.5%"},{"v":0.07439511873350935,"d":"7.4%"}]
[1958,{"v":0.43719954988747184,"d":"43.7%"},{"v":-0.1045736018855796,"d":"-10.5%"}]
[1959,{"v":0.12056457163557326,"d":"12.1%"},{"v":0.43719954988747184,"d":"43.7%"}]
[1960,{"v":3.36535314743695E-3,"d":"0.3%"},{"v":0.12056457163557326,"d":"12.1%"}]
[1961,{"v":0.2663771295818275,"d":"26.6%"},{"v":3.36535314743695E-3,"d":"0.3%"}]
[1962,{"v":-0.08811460517120888,"d":"-8.8%"},{"v":0.2663771295818275,"d":"26.6%"}]
[1963,{"v":0.226119270998515,"d":"22.6%"},{"v":-0.08811460517120888,"d":"-8.8%"}]
[1964,{"v":0.164154558785324,"d":"16.4%"},{"v":0.226119270998515,"d":"22.6%"}]
[1965,{"v":0.12399242477876114,"d":"12.4%"},{"v":0.164154558785324,"d":"16.4%"}]
[1966,{"v":-0.0997095423563779,"d":"-10.0%"},{"v":0.12399242477876114,"d":"12.4%"}]
[1967,{"v":0.23802966513133328,"d":"23.8%"},{"v":-0.0997095423563779,"d":"-10.0%"}]
[1968,{"v":0.10814862651601535,"d":"10.8%"},{"v":0.23802966513133328,"d":"23.8%"}]
[1969,{"v":-0.08241371076449064,"d":"-8.2%"},{"v":0.10814862651601535,"d":"10.8%"}]
[1970,{"v":0.03561144905496419,"d":"3.6%"},{"v":-0.08241371076449064,"d":"-8.2%"}]
[1971,{"v":0.142211502985265,"d":"14.2%"},{"v":0.03561144905496419,"d":"3.6%"}]
[1972,{"v":0.18755362915074925,"d":"18.8%"},{"v":0.142211502985265,"d":"14.2%"}]
[1973,{"v":-0.14308047437526472,"d":"-14.3%"},{"v":0.18755362915074925,"d":"18.8%"}]
[1974,{"v":-0.2590178575089697,"d":"-25.9%"},{"v":-0.14308047437526472,"d":"-14.3%"}]
[1975,{"v":0.369951371061854,"d":"37.0%"},{"v":-0.2590178575089697,"d":"-25.9%"}]
[1976,{"v":0.23830999002106662,"d":"23.8%"},{"v":0.369951371061854,"d":"37.0%"}]
[1977,{"v":-0.06979704075935232,"d":"-7.0%"},{"v":0.23830999002106662,"d":"23.8%"}]
[1978,{"v":0.0650928391167193,"d":"6.5%"},{"v":-0.06979704075935232,"d":"-7.0%"}]
[1979,{"v":0.18519490167516386,"d":"18.5%"},{"v":0.0650928391167193,"d":"6.5%"}]
[1980,{"v":0.3173524550676301,"d":"31.7%"},{"v":0.18519490167516386,"d":"18.5%"}]
[1981,{"v":-0.04702390247495576,"d":"-4.7%"},{"v":0.3173524550676301,"d":"31.7%"}]
[1982,{"v":0.20419055079559353,"d":"20.4%"},{"v":-0.04702390247495576,"d":"-4.7%"}]
[1983,{"v":0.22337155858930619,"d":"22.3%"},{"v":0.20419055079559353,"d":"20.4%"}]
[1985,{"v":0.0614614199963621,"d":"6.1%"},{"v":0.22337155858930619,"d":"22.3%"}]
[1985,{"v":0.3123514948576895,"d":"31.2%"},{"v":0.0614614199963621,"d":"6.1%"}]
[1986,{"v":0.18494578758046187,"d":"18.5%"},{"v":0.3123514948576895,"d":"31.2%"}]
[1987,{"v":0.05812721641821871,"d":"5.8%"},{"v":0.18494578758046187,"d":"18.5%"}]
[1988,{"v":0.16537192812044688,"d":"16.5%"},{"v":0.05812721641821871,"d":"5.8%"}]
[1989,{"v":0.31475183638196724,"d":"31.5%"},{"v":0.16537192812044688,"d":"16.5%"}]
[1990,{"v":-0.03064451612903212,"d":"-3.1%"},{"v":0.31475183638196724,"d":"31.5%"}]
[1991,{"v":0.302348531348798,"d":"30.2%"},{"v":-0.03064451612903212,"d":"-3.1%"}]
[1992,{"v":0.07493727972380064,"d":"7.5%"},{"v":0.302348531348798,"d":"30.2%"}]
[1993,{"v":0.0996705147919488,"d":"10.0%"},{"v":0.07493727972380064,"d":"7.5%"}]
[1994,{"v":0.013259206774573897,"d":"1.3%"},{"v":0.0996705147919488,"d":"10.0%"}]
[1995,{"v":0.3719519890260631,"d":"37.2%"},{"v":0.013259206774573897,"d":"1.3%"}]
[1996,{"v":0.23817458802136615,"d":"23.8%"},{"v":0.3719519890260631,"d":"37.2%"}]
[1997,{"v":0.31857597560649414,"d":"31.9%"},{"v":0.23817458802136615,"d":"23.8%"}]
[1998,{"v":0.283379532785436,"d":"28.3%"},{"v":0.31857597560649414,"d":"31.9%"}]
[1999,{"v":0.208853509920855,"d":"20.9%"},{"v":0.283379532785436,"d":"28.3%"}]
[2000,{"v":-0.09031818955249278,"d":"-9.0%"},{"v":0.208853509920855,"d":"20.9%"}]
[2001,{"v":-0.118597591420002,"d":"-11.9%"},{"v":-0.09031818955249278,"d":"-9.0%"}]
[2002,{"v":-0.21976500100166352,"d":"-22.0%"},{"v":-0.118597591420002,"d":"-11.9%"}]
[2003,{"v":0.28411493259985,"d":"28.4%"},{"v":-0.21976500100166352,"d":"-22.0%"}]
[2004,{"v":0.10704103749404177,"d":"10.7%"},{"v":0.28411493259985,"d":"28.4%"}]
[2005,{"v":0.0485800976962175,"d":"4.9%"},{"v":0.10704103749404177,"d":"10.7%"}]
[2006,{"v":0.1563,"d":"15.6%"},{"v":0.0485800976962175,"d":"4.9%"}]
[2007,{"v":0.0548,"d":"5.5%"},{"v":0.1563,"d":"15.6%"}]
[2008,{"v":-0.3658,"d":"-36.6%"},{"v":0.0548,"d":"5.5%"}]
[2009,{"v":0.2592,"d":"25.9%"},{"v":-0.3658,"d":"-36.6%"}]
[2010,{"v":0.1486,"d":"14.9%"},{"$f":"B83","v":{"v":0.2592,"d":"25.9%"}}]
[2011,{"v":0.0207,"d":"2.1%"},{"v":0.1486,"d":"14.9%"}]
[2012,{"v":0.15890585241730293,"d":"15.9%"},{"v":0.0207,"d":"2.1%"}]
[2013,{"v":0.32145085858125483,"d":"32.1%"},{"v":0.15890585241730293,"d":"15.9%"}]
[2014,{"v":0.1348,"d":"13.5%"},{"v":0.32145085858125483,"d":"32.1%"}]

{"sheet":"1000-20Yr","index":16,"n_rows":1000,"n_cols":10,"rows_kept":1000}
[{"v":28498.00802063715,"d":"28,498"}]
[{"v":35615.81733773775,"d":"35,616"}]
[{"v":41387.30124423858,"d":"41,387"}]
[{"v":56031.55320943326,"d":"56,032"}]
[{"v":56418.29543231375,"d":"56,418"}]
[{"v":56455.27633971946,"d":"56,455"}]
[{"v":59508.797307269466,"d":"59,509"}]
[{"v":60999.03113295557,"d":"60,999"}]
[{"v":64920.91485216481,"d":"64,921"}]
[{"v":65582.9340115348,"d":"65,583"}]
[{"v":69496.75128647206,"d":"69,497"}]
[{"v":73009.84885376462,"d":"73,010"}]
[{"v":73877.42728858619,"d":"73,877"}]
[{"v":80046.16243461698,"d":"80,046"}]
[{"v":84161.72736578163,"d":"84,162"}]
[{"v":84541.17464432429,"d":"84,541"}]
[{"v":84817.71701209158,"d":"84,818"}]
[{"v":87504.5236856889,"d":"87,505"}]
[{"v":90846.91280589168,"d":"90,847"}]
[{"v":91762.95109918289,"d":"91,763"}]
[{"v":93893.96350966401,"d":"93,894"}]
[{"v":94626.28786919829,"d":"94,626"}]
[{"v":95644.86718005675,"d":"95,645"}]
[{"v":99877.24273131066,"d":"99,877"},"$100,000 invested at 1,000 random selections of returns of S&P500 1928-2005.  Values after 20 years. "]
[{"v":100780.43974185045,"d":"100,780"},{"$nulls":8},"Goal Seek"]
[{"v":105080.13706875822,"d":"105,080"},null,"Findings",{"$nulls":6},{"v":0.15487893079952025,"d":"15.5%"}]
[{"v":106069.30124761327,"d":"106,069"},null,"Down from initial investment ",null,null,{"v":0.025,"d":"2.50%"},"of the time",null,null,{"v":100000,"d":"100,000"}]
[{"v":106367.58227386688,"d":"106,368"},null,"Minimum value",null,null,{"v":28500,"d":"28,500"},{"$f":"F28/100000","v":{"v":0.285,"d":"29%"}},"of original",null,{"$f":"(1+$J$26)*J27","v":{"v":115487.89307995202,"d":"115,488"}}]
[{"v":107934.6403566757,"d":"107,935"},null,"Maximum value",null,null,{"v":10500000,"d":"10,500,000"},"105 times","original",null,{"$f":"(1+$J$26)*J28","v":{"v":133374.5344804643,"d":"133,375"}}]
[{"v":109707.38727202805,"d":"109,707"},null,"Median",null,null,{"v":681500,"d":"681,500"},{"v":0.113,"d":"11.3%"},"return",null,{"v":154031.43977668235,"d":"154,031"}]
[{"v":111898.38945356844,"d":"111,898"},null,"95% of time end value more than ",null,null,{"v":157276,"d":"157,276"},{"v":0.025,"d":"2.5%"},"return",null,{"v":177887.66447880561,"d":"177,888"}]
[{"v":119499.06097854373,"d":"119,499"},null,"5% of time end value more than ",null,null,{"v":2300000,"d":"2,300,000"},{"v":0.19,"d":"19.0%"},"return",null,{"v":205438.71575570683,"d":"205,439"}]
[{"v":119960.28880166613,"d":"119,960"},null,"80% of time end value more than ",null,null,{"v":317846,"d":"317,846"},{"v":0.066,"d":"6.6%"},"return",null,{"v":237256.84439677725,"d":"237,257"}]
[{"v":120780.49661022589,"d":"120,780"},null,"20% of time end value more than ",null,null,{"v":1335538.0169929229,"d":"1,335,538"},{"v":0.155,"d":"15.5%"},"return",null,{"v":274002.9307818182,"d":"274,003"}]
[{"v":124546.31060899532,"d":"124,546"},{"$nulls":8},{"v":316440.2117372412,"d":"316,440"}]
[{"v":129853.82398781467,"d":"129,854"},{"$nulls":8},{"v":365450.13339307887,"d":"365,450"}]
[{"v":131126.84335898588,"d":"131,127"},{"$nulls":8},{"v":422050.65931354096,"d":"422,051"}]
[{"v":132839.72941595913,"d":"132,840"},{"$nulls":8},{"v":487417.4141712547,"d":"487,417"}]
[{"v":133974.34998568735,"d":"133,974"},{"$nulls":8},{"v":562908.1021311656,"d":"562,908"}]
[{"v":137294.9485074657,"d":"137,295"},{"$nulls":8},{"v":650090.7071276276,"d":"650,091"}]
[{"v":138846.90159224087,"d":"138,847"},{"$nulls":8},{"v":750776.0607702585,"d":"750,776"}]
[{"v":141479.14354771926,"d":"141,479"},{"$nulls":8},{"v":867055.4543322318,"d":"867,055"}]
[{"v":144871.5113836739,"d":"144,872"},{"$nulls":8},{"v":1001344.0760431001,"d":"1,001,344"}]
[{"v":145238.39910886725,"d":"145,238"},{"$nulls":8},{"v":1156431.1759030889,"d":"1,156,431"}]
[{"v":146898.80805463728,"d":"146,899"},{"$nulls":8},{"v":1335537.9999701912,"d":"1,335,538"}]
[{"v":152323.52296272304,"d":"152,324"}]
[{"v":153170.45501541437,"d":"153,170"},null,"This worksheet is an example of how to expand the 100 scenarios into 1,000 and analyze in further refinement the expected probabilities. "]
[{"v":154729.48328813032,"d":"154,729"},null,"This worksheet is not connected by formulas to any other worksheet. "]
[{"v":156577.6485095262,"d":"156,578"},null,"Column A data was taken from ten cut and pastes from the 20-year row of Random Yr Returns. "]
[{"v":157275.78245498252,"d":"157,276"},null,"To paste a row to a column, do Edit, Special, Value, Transpose. (Alt E, S, V, E)"]
[{"v":158669.24985667557,"d":"158,669"}]
[{"v":160539.64157305725,"d":"160,540"}]
[{"v":160693.28245101508,"d":"160,693"}]
[{"v":161587.75740733664,"d":"161,588"}]
[{"v":164072.06338592738,"d":"164,072"}]
[{"v":164544.21786258765,"d":"164,544"}]
[{"v":166384.59944574317,"d":"166,385"}]
[{"v":167012.36591484927,"d":"167,012"}]
[{"v":167384.5278211968,"d":"167,385"}]
[{"v":168674.37814092272,"d":"168,674"}]
[{"v":172371.58262636894,"d":"172,372"}]
[{"v":174330.81307218355,"d":"174,331"}]
[{"v":175697.21923466018,"d":"175,697"}]
[{"v":176244.97036330696,"d":"176,245"}]
[{"v":176377.27196297725,"d":"176,377"}]
[{"v":177185.41251542894,"d":"177,185"}]
[{"v":178682.76758064085,"d":"178,683"}]
[{"v":181882.80460820836,"d":"181,883"}]
[{"v":182117.1665862711,"d":"182,117"}]
[{"v":185312.2940619353,"d":"185,312"}]
[{"v":186219.91624666026,"d":"186,220"}]
[{"v":186740.16181539814,"d":"186,740"}]
[{"v":188603.76606736268,"d":"188,604"}]
[{"v":188992.07720339586,"d":"188,992"}]
[{"v":189594.0292654041,"d":"189,594"}]
[{"v":191203.88585222597,"d":"191,204"}]
[{"v":196207.77652080703,"d":"196,208"}]
[{"v":196225.3092080106,"d":"196,225"}]
[{"v":198065.69636243043,"d":"198,066"}]
[{"v":198290.50842495382,"d":"198,291"}]
[{"v":199559.10929577125,"d":"199,559"}]
[{"v":199974.91977604383,"d":"199,975"}]
[{"v":200017.7322532967,"d":"200,018"}]
[{"v":201535.8557142465,"d":"201,536"}]
[{"v":204056.4320000354,"d":"204,056"}]
[{"v":204408.93314368432,"d":"204,409"}]
[{"v":204758.44072228743,"d":"204,758"}]
[{"v":208218.0383115907,"d":"208,218"}]
[{"v":209562.14477194092,"d":"209,562"}]
[{"v":210017.90422581488,"d":"210,018"}]
[{"v":210429.2903120024,"d":"210,429"}]
[{"v":210567.5679173963,"d":"210,568"}]
[{"v":210573.5109622348,"d":"210,574"}]
[{"v":210767.1317506285,"d":"210,767"}]
[{"v":211252.2891475078,"d":"211,252"}]
[{"v":211559.38444944253,"d":"211,559"}]
[{"v":211578.1475894422,"d":"211,578"}]
[{"v":211792.44138536026,"d":"211,792"}]
[{"v":212043.21802091697,"d":"212,043"}]
[{"v":212524.4973553095,"d":"212,524"}]
[{"v":213112.32851924212,"d":"213,112"}]
[{"v":213138.40745616637,"d":"213,138"}]
[{"v":213497.5935327744,"d":"213,498"}]
[{"v":213874.1079931094,"d":"213,874"}]
[{"v":217316.86185370904,"d":"217,317"}]
[{"v":219431.14572975363,"d":"219,431"}]
[{"v":219491.0475346718,"d":"219,491"}]
[{"v":219637.5408529332,"d":"219,638"}]
[{"v":223496.86328682728,"d":"223,497"}]
[{"v":224352.748827615,"d":"224,353"}]
[{"v":226024.66170965886,"d":"226,025"}]
[{"v":226653.54777284618,"d":"226,654"}]
[{"v":228573.68073603444,"d":"228,574"}]
[{"v":229435.6505217069,"d":"229,436"}]
[{"v":230765.4278213612,"d":"230,765"}]
[{"v":231949.93479382392,"d":"231,950"}]
[{"v":235067.679980168,"d":"235,068"}]
[{"v":235690.9200914132,"d":"235,691"}]
[{"v":235877.7105981748,"d":"235,878"}]
[{"v":238211.9294294827,"d":"238,212"}]
[{"v":243411.9348545354,"d":"243,412"}]
[{"v":244478.65301259738,"d":"244,479"}]
[{"v":247069.86069623724,"d":"247,070"}]
[{"v":247508.7320730052,"d":"247,509"}]
[{"v":247709.84816957463,"d":"247,710"}]
[{"v":248880.62436479787,"d":"248,881"}]
[{"v":248902.10470086153,"d":"248,902"}]
[{"v":249726.00825787373,"d":"249,726"}]
[{"v":252825.42067739967,"d":"252,825"}]
[{"v":253189.47605022814,"d":"253,189"}]
[{"v":257817.2953116636,"d":"257,817"}]
[{"v":259254.44569140158,"d":"259,254"}]
[{"v":259976.08420335597,"d":"259,976"}]
[{"v":260493.04732927476,"d":"260,493"}]
[{"v":260989.4683346455,"d":"260,989"}]
[{"v":261064.5947286957,"d":"261,065"}]
[{"v":262637.81779438234,"d":"262,638"}]
[{"v":263949.61931726296,"d":"263,950"}]
[{"v":265761.65922106756,"d":"265,762"}]
[{"v":265806.6305818121,"d":"265,807"}]
[{"v":266919.92905819515,"d":"266,920"}]
[{"v":268720.3019257285,"d":"268,720"}]
[{"v":270129.39737215807,"d":"270,129"}]
[{"v":271421.89170964755,"d":"271,422"}]
[{"v":272575.7367464747,"d":"272,576"}]
[{"v":272672.4828109475,"d":"272,672"}]
[{"v":273360.5413802044,"d":"273,361"}]
[{"v":276111.9785568884,"d":"276,112"}]
[{"v":277408.33955191914,"d":"277,408"}]
[{"v":277560.55452597403,"d":"277,561"}]
[{"v":278531.0666890261,"d":"278,531"}]
[{"v":279484.33111682953,"d":"279,484"}]
[{"v":280414.30298707855,"d":"280,414"}]
[{"v":280784.1613857458,"d":"280,784"}]
[{"v":283024.9865436081,"d":"283,025"}]
[{"v":283696.1886470404,"d":"283,696"}]
[{"v":283984.086611799,"d":"283,984"}]
[{"v":284293.9587404382,"d":"284,294"}]
[{"v":284487.3779413059,"d":"284,487"}]
[{"v":284641.0357039734,"d":"284,641"}]
[{"v":285804.8543887521,"d":"285,805"}]
[{"v":287382.89808169333,"d":"287,383"}]
[{"v":287525.79832684563,"d":"287,526"}]
[{"v":289017.0581925348,"d":"289,017"}]
[{"v":291273.95672663697,"d":"291,274"}]
[{"v":291837.69041669526,"d":"291,838"}]
[{"v":293058.8882636708,"d":"293,059"}]
[{"v":293485.42432492366,"d":"293,485"}]
[{"v":293909.920444103,"d":"293,910"}]
[{"v":295338.4768838811,"d":"295,338"}]
[{"v":296503.953358056,"d":"296,504"}]
[{"v":296754.0273300725,"d":"296,754"}]
[{"v":297602.2123871728,"d":"297,602"}]
[{"v":297946.87567682244,"d":"297,947"}]
[{"v":298101.7677580384,"d":"298,102"}]
[{"v":298884.5444160225,"d":"298,885"}]
[{"v":299204.4131125748,"d":"299,204"}]
[{"v":299568.5777255037,"d":"299,569"}]
[{"v":299845.7716466236,"d":"299,846"}]
[{"v":300289.3467613889,"d":"300,289"}]
[{"v":301356.6632993607,"d":"301,357"}]
[{"v":302062.1810630441,"d":"302,062"}]
[{"v":302071.50909458805,"d":"302,072"}]
[{"v":303391.38205712795,"d":"303,391"}]
[{"v":303431.16888991924,"d":"303,431"}]
[{"v":303585.94526395685,"d":"303,586"}]
[{"v":304362.9992136427,"d":"304,363"}]
[{"v":305182.5241834345,"d":"305,183"}]
[{"v":305203.7075596635,"d":"305,204"}]
[{"v":305774.3601305989,"d":"305,774"}]
[{"v":309273.49592180253,"d":"309,273"}]
[{"v":310335.93525045365,"d":"310,336"}]
[{"v":311432.89788971236,"d":"311,433"}]
[{"v":311612.04304409807,"d":"311,612"}]
[{"v":312216.02489944285,"d":"312,216"}]
[{"v":312597.10979783285,"d":"312,597"}]
[{"v":314479.97555854067,"d":"314,480"}]
[{"v":315074.09077640827,"d":"315,074"}]
[{"v":316862.1810430437,"d":"316,862"}]
[{"v":317845.7880153877,"d":"317,846"}]
[{"v":318530.46987194696,"d":"318,530"}]
[{"v":318864.6537241621,"d":"318,865"}]
[{"v":318935.7949404411,"d":"318,936"}]
[{"v":322157.78186507896,"d":"322,158"}]
[{"v":322849.84492637584,"d":"322,850"}]
[{"v":324165.05634068267,"d":"324,165"}]
[{"v":324513.3314129403,"d":"324,513"}]
[{"v":327567.1663430308,"d":"327,567"}]
[{"v":331401.8536491788,"d":"331,402"}]
[{"v":331684.4177503817,"d":"331,684"}]
[{"v":331848.8887290055,"d":"331,849"}]
[{"v":332164.15524407517,"d":"332,164"}]
[{"v":332898.62977269565,"d":"332,899"}]
[{"v":333378.1275604333,"d":"333,378"}]
[{"v":335038.1769175638,"d":"335,038"}]
[{"v":336024.58534882515,"d":"336,025"}]
[{"v":337351.98193820973,"d":"337,352"}]
[{"v":337578.34011717903,"d":"337,578"}]
[{"v":338154.73502082186,"d":"338,155"}]
[{"v":339064.27822683804,"d":"339,064"}]
[{"v":339786.35220039927,"d":"339,786"}]
[{"v":339891.4944159549,"d":"339,891"}]
[{"v":341188.9755559083,"d":"341,189"}]
[{"v":345019.50270649133,"d":"345,020"}]
[{"v":346971.06829913467,"d":"346,971"}]
[{"v":350053.95517175447,"d":"350,054"}]
[{"v":350370.1199988518,"d":"350,370"}]
[{"v":350568.9381505461,"d":"350,569"}]
[{"v":353803.68219163566,"d":"353,804"}]
[{"v":354256.3107109697,"d":"354,256"}]
[{"v":355260.5535576476,"d":"355,261"}]
[{"v":358847.2354527977,"d":"358,847"}]
[{"v":360452.6023988761,"d":"360,453"}]
[{"v":360537.33728683396,"d":"360,537"}]
[{"v":362066.3846523331,"d":"362,066"}]
[{"v":363006.2694121923,"d":"363,006"}]
[{"v":364285.9511588659,"d":"364,286"}]
[{"v":366080.67048676754,"d":"366,081"}]
[{"v":373027.79102917126,"d":"373,028"}]
[{"v":375976.112023373,"d":"375,976"}]
[{"v":376403.06982737815,"d":"376,403"}]
[{"v":377826.7561889094,"d":"377,827"}]
[{"v":379038.79495273065,"d":"379,039"}]
[{"v":381759.2498382705,"d":"381,759"}]
[{"v":387859.6681920373,"d":"387,860"}]
[{"v":388569.2978176433,"d":"388,569"}]
[{"v":388824.82593360153,"d":"388,825"}]
[{"v":389251.12258469814,"d":"389,251"}]
[{"v":389583.81836322515,"d":"389,584"}]
[{"v":389747.22966551076,"d":"389,747"}]
[{"v":391530.6213546183,"d":"391,531"}]
[{"v":392025.9161053685,"d":"392,026"}]
[{"v":392694.4966664744,"d":"392,694"}]
[{"v":392744.8680846044,"d":"392,745"}]
[{"v":393131.80427260656,"d":"393,132"}]
[{"v":393458.56456528703,"d":"393,459"}]
[{"v":393692.8012468683,"d":"393,693"}]
[{"v":396208.09539543936,"d":"396,208"}]
[{"v":396678.504775427,"d":"396,679"}]
[{"v":397818.14464753034,"d":"397,818"}]
[{"v":398691.1012777642,"d":"398,691"}]
[{"v":400142.134432029,"d":"400,142"}]
[{"v":400300.42098280415,"d":"400,300"}]
[{"v":401126.84674909996,"d":"401,127"}]
[{"v":402686.32578626723,"d":"402,686"}]
[{"v":402879.3868913127,"d":"402,879"}]
[{"v":403313.29692239943,"d":"403,313"}]
[{"v":403793.29990826605,"d":"403,793"}]
[{"v":404096.8624451479,"d":"404,097"}]
[{"v":404205.44295038265,"d":"404,205"}]
[{"v":404551.62300913123,"d":"404,552"}]
[{"v":407040.6973242862,"d":"407,041"}]
[{"v":407134.91700675606,"d":"407,135"}]
[{"v":408860.227706826,"d":"408,860"}]
[{"v":410603.533333616,"d":"410,604"}]
[{"v":411620.7527656595,"d":"411,621"}]
[{"v":412213.3880806878,"d":"412,213"}]
[{"v":412434.2902726262,"d":"412,434"}]
[{"v":412441.2101063755,"d":"412,441"}]
[{"v":413406.3181499827,"d":"413,406"}]
[{"v":415024.74316408695,"d":"415,025"}]
[{"v":415088.78082351206,"d":"415,089"}]
[{"v":415944.29541752336,"d":"415,944"}]
[{"v":417716.32786981994,"d":"417,716"}]
[{"v":417904.11371731997,"d":"417,904"}]
[{"v":418175.32943849324,"d":"418,175"}]
[{"v":418460.48222448985,"d":"418,460"}]
[{"v":418816.53016729525,"d":"418,817"}]
[{"v":419401.4047868175,"d":"419,401"}]
[{"v":419601.2191648064,"d":"419,601"}]
[{"v":421887.8940920213,"d":"421,888"}]
[{"v":422941.0850584099,"d":"422,941"}]
[{"v":423538.0357679054,"d":"423,538"}]
[{"v":427422.8397379452,"d":"427,423"}]
[{"v":428671.65906994406,"d":"428,672"}]
[{"v":429172.2238871308,"d":"429,172"}]
[{"v":429494.6827384433,"d":"429,495"}]
[{"v":430235.4812800144,"d":"430,235"}]
[{"v":430430.22198776226,"d":"430,430"}]
[{"v":431971.1847922318,"d":"431,971"}]
[{"v":433512.9647729212,"d":"433,513"}]
[{"v":433553.8818586083,"d":"433,554"}]
[{"v":436258.74464037805,"d":"436,259"}]
[{"v":436683.092932724,"d":"436,683"}]
[{"v":437156.0425589208,"d":"437,156"}]
[{"v":437779.959110971,"d":"437,780"}]
[{"v":442144.32866569306,"d":"442,144"}]
[{"v":442461.2601022971,"d":"442,461"}]
[{"v":442589.5673772432,"d":"442,590"}]
[{"v":443641.1853979075,"d":"443,641"}]
[{"v":444400.05432250723,"d":"444,400"}]
[{"v":444942.8242260492,"d":"444,943"}]
[{"v":446380.3277091771,"d":"446,380"}]
[{"v":446469.42982434755,"d":"446,469"}]
[{"v":447183.183363582,"d":"447,183"}]
[{"v":449114.2244625791,"d":"449,114"}]
[{"v":449875.7862108018,"d":"449,876"}]
[{"v":450852.1348907099,"d":"450,852"}]
[{"v":450944.31142259156,"d":"450,944"}]
[{"v":452504.029509893,"d":"452,504"}]
[{"v":453845.98094871594,"d":"453,846"}]
[{"v":457614.27300025045,"d":"457,614"}]
[{"v":458130.7006382449,"d":"458,131"}]
[{"v":459094.5789773667,"d":"459,095"}]
[{"v":459263.0530646168,"d":"459,263"}]
[{"v":460487.08794537064,"d":"460,487"}]
[{"v":460571.81666938175,"d":"460,572"}]
[{"v":461237.3208944525,"d":"461,237"}]
[{"v":463314.4147549286,"d":"463,314"}]
[{"v":468040.61979250726,"d":"468,041"}]
[{"v":469991.6404357872,"d":"469,992"}]
[{"v":470348.12929670856,"d":"470,348"}]
[{"v":470629.80480092915,"d":"470,630"}]
[{"v":470649.17355012044,"d":"470,649"}]
[{"v":471967.9943371896,"d":"471,968"}]
[{"v":473070.9003979523,"d":"473,071"}]
[{"v":473449.138649189,"d":"473,449"}]
[{"v":473913.3665345048,"d":"473,913"}]
[{"v":474349.6526400503,"d":"474,350"}]
[{"v":477042.0256101429,"d":"477,042"}]
[{"v":478691.43630385655,"d":"478,691"}]
[{"v":479105.083173367,"d":"479,105"}]
[{"v":479884.6056572483,"d":"479,885"}]
[{"v":485487.8209254278,"d":"485,488"}]
[{"v":485874.3236192927,"d":"485,874"}]
[{"v":486692.50532671536,"d":"486,693"}]
[{"v":488257.67378241237,"d":"488,258"}]
[{"v":489532.07729806675,"d":"489,532"}]
[{"v":489602.2909688087,"d":"489,602"}]
[{"v":489875.1586841827,"d":"489,875"}]
[{"v":490163.1569708961,"d":"490,163"}]
[{"v":490637.3385202681,"d":"490,637"}]
[{"v":493473.70039512735,"d":"493,474"}]
[{"v":494239.0314032605,"d":"494,239"}]
[{"v":494407.3304908052,"d":"494,407"}]
[{"v":495656.9597826601,"d":"495,657"}]
[{"v":497630.00706684095,"d":"497,630"}]
[{"v":498012.5442745949,"d":"498,013"}]
[{"v":499480.8902097252,"d":"499,481"}]
[{"v":499530.4354286415,"d":"499,530"}]
[{"v":500170.6164926538,"d":"500,171"}]
[{"v":500417.1808594497,"d":"500,417"}]
[{"v":500535.2856383505,"d":"500,535"}]
[{"v":500795.3926649592,"d":"500,795"}]
[{"v":500979.5685872872,"d":"500,980"}]
[{"v":501861.1486038499,"d":"501,861"}]
[{"v":503663.644293762,"d":"503,664"}]
[{"v":503734.6769840516,"d":"503,735"}]
[{"v":504004.7027637367,"d":"504,005"}]
[{"v":507346.5143822691,"d":"507,347"}]
[{"v":508033.5648055749,"d":"508,034"}]
[{"v":514199.8180536261,"d":"514,200"}]
[{"v":514244.843813096,"d":"514,245"}]
[{"v":515901.80650919623,"d":"515,902"}]
[{"v":516946.5138812565,"d":"516,947"}]
[{"v":518454.37771537004,"d":"518,454"}]
[{"v":520385.4606190137,"d":"520,385"}]
[{"v":520690.4711946181,"d":"520,690"}]
[{"v":522150.5629558489,"d":"522,151"}]
[{"v":522242.37709439755,"d":"522,242"}]
[{"v":522291.6580467005,"d":"522,292"}]
[{"v":525554.3060931708,"d":"525,554"}]
[{"v":526627.985973498,"d":"526,628"}]
[{"v":527582.7020962562,"d":"527,583"}]
[{"v":530022.3300667452,"d":"530,022"}]
[{"v":530664.4993770043,"d":"530,664"}]
[{"v":534544.7647145023,"d":"534,545"}]
[{"v":534762.8791191737,"d":"534,763"}]
[{"v":534873.7052964654,"d":"534,874"}]
[{"v":536057.9347014838,"d":"536,058"}]
[{"v":537565.5272212079,"d":"537,566"}]
[{"v":537767.2702219686,"d":"537,767"}]
[{"v":538457.7420263455,"d":"538,458"}]
[{"v":539109.9274702389,"d":"539,110"}]
[{"v":539125.7739880964,"d":"539,126"}]
[{"v":540075.7920702192,"d":"540,076"}]
[{"v":541320.6839565128,"d":"541,321"}]
[{"v":542315.4835736112,"d":"542,315"}]
[{"v":542494.1421003197,"d":"542,494"}]
[{"v":542630.5207049882,"d":"542,631"}]
[{"v":543719.8571623857,"d":"543,720"}]
[{"v":543973.1508081411,"d":"543,973"}]
[{"v":544865.1248397392,"d":"544,865"}]
[{"v":545476.2513620135,"d":"545,476"}]
[{"v":546174.1078188982,"d":"546,174"}]
[{"v":549828.6506181695,"d":"549,829"}]
[{"v":550070.5374278256,"d":"550,071"}]
[{"v":550222.2229920315,"d":"550,222"}]
[{"v":553275.4902623935,"d":"553,275"}]
[{"v":555659.3077757423,"d":"555,659"}]
[{"v":556686.8091942631,"d":"556,687"}]
[{"v":558585.8051070826,"d":"558,586"}]
[{"v":562376.9272328746,"d":"562,377"}]
[{"v":562886.7598081211,"d":"562,887"}]
[{"v":563192.3130399995,"d":"563,192"}]
[{"v":563377.4002179897,"d":"563,377"}]
[{"v":568395.6324673487,"d":"568,396"}]
[{"v":569159.2035311199,"d":"569,159"}]
[{"v":569548.9272525819,"d":"569,549"}]
[{"v":570366.4721206472,"d":"570,366"}]
[{"v":570978.4579002606,"d":"570,978"}]
[{"v":573146.9043679365,"d":"573,147"}]
[{"v":573512.0906289794,"d":"573,512"}]
[{"v":575532.8165363655,"d":"575,533"}]
[{"v":576969.9073039178,"d":"576,970"}]
[{"v":579014.9768340238,"d":"579,015"}]
[{"v":579943.8546979933,"d":"579,944"}]
[{"v":581765.4464183998,"d":"581,765"}]
[{"v":582245.335013451,"d":"582,245"}]
[{"v":582853.1044458305,"d":"582,853"}]
[{"v":582880.295606725,"d":"582,880"}]
[{"v":583227.3620013662,"d":"583,227"}]
[{"v":584159.6190787031,"d":"584,160"}]
[{"v":586138.9382220947,"d":"586,139"}]
[{"v":589609.6470345615,"d":"589,610"}]
[{"v":589920.4706027546,"d":"589,920"}]
[{"v":591419.8109066943,"d":"591,420"}]
[{"v":593795.3852544891,"d":"593,795"}]
[{"v":593844.0838516898,"d":"593,844"}]
[{"v":596426.0196448126,"d":"596,426"}]
[{"v":596620.8525242241,"d":"596,621"}]
[{"v":596634.4133631005,"d":"596,634"}]
[{"v":600027.7751270722,"d":"600,028"}]
[{"v":600461.3232154134,"d":"600,461"}]
[{"v":601617.8604838845,"d":"601,618"}]
[{"v":605022.7193410195,"d":"605,023"}]
[{"v":606022.2340176831,"d":"606,022"}]
[{"v":609069.4978103887,"d":"609,069"}]
[{"v":610252.7889783327,"d":"610,253"}]
[{"v":611833.4689633577,"d":"611,833"}]
[{"v":612599.5624903402,"d":"612,600"}]
[{"v":613097.3377270709,"d":"613,097"}]
[{"v":613188.9131094799,"d":"613,189"}]
[{"v":614668.560710697,"d":"614,669"}]
[{"v":615171.4889539136,"d":"615,171"}]
[{"v":617107.372029042,"d":"617,107"}]
[{"v":619212.223986942,"d":"619,212"}]
[{"v":619480.5469686072,"d":"619,481"}]
[{"v":621586.7396123202,"d":"621,587"}]
[{"v":623439.5668774901,"d":"623,440"}]
[{"v":624006.1624109122,"d":"624,006"}]
[{"v":626129.7425871955,"d":"626,130"}]
[{"v":626754.2872709566,"d":"626,754"}]
[{"v":629097.8422890124,"d":"629,098"}]
[{"v":629594.6582631612,"d":"629,595"}]
[{"v":630445.1375079196,"d":"630,445"}]
[{"v":631195.1490275942,"d":"631,195"}]
[{"v":632738.5721822024,"d":"632,739"}]
[{"v":633170.7544348148,"d":"633,171"}]
[{"v":633253.7988200511,"d":"633,254"}]
[{"v":634997.888292429,"d":"634,998"}]
[{"v":635428.5719381322,"d":"635,429"}]
[{"v":641448.1793425429,"d":"641,448"}]
[{"v":642216.8994711597,"d":"642,217"}]
[{"v":645598.856789364,"d":"645,599"}]
[{"v":646304.9082625654,"d":"646,305"}]
[{"v":647240.8595604601,"d":"647,241"}]
[{"v":650952.3190543719,"d":"650,952"}]
[{"v":651733.9720293647,"d":"651,734"}]
[{"v":653380.0356416894,"d":"653,380"}]
[{"v":654145.6945904553,"d":"654,146"}]
[{"v":658183.7587745701,"d":"658,184"}]
[{"v":659038.9840472783,"d":"659,039"}]
[{"v":660793.0604265328,"d":"660,793"}]
[{"v":661262.1828747119,"d":"661,262"}]
[{"v":661517.6454410581,"d":"661,518"}]
[{"v":662453.2180766782,"d":"662,453"}]
[{"v":664563.342580375,"d":"664,563"}]
[{"v":665740.3217354885,"d":"665,740"}]
[{"v":669416.6262777454,"d":"669,417"}]
[{"v":671297.7765306564,"d":"671,298"}]
[{"v":671735.8383496053,"d":"671,736"}]
[{"v":671791.3365773205,"d":"671,791"}]
[{"v":673063.0707779065,"d":"673,063"}]
[{"v":674263.3861270671,"d":"674,263"}]
[{"v":675441.3359766682,"d":"675,441"}]
[{"v":677723.1580989201,"d":"677,723"}]
[{"v":679803.9713568422,"d":"679,804"}]
[{"v":679871.0179530036,"d":"679,871"}]
[{"v":681514.4850661547,"d":"681,514"}]
[{"v":681570.0850332389,"d":"681,570"}]
[{"v":685516.2114139224,"d":"685,516"}]
[{"v":687106.4311487621,"d":"687,106"}]
[{"v":687255.963742874,"d":"687,256"}]
[{"v":688799.9886066995,"d":"688,800"}]
[{"v":692231.5973945748,"d":"692,232"}]
[{"v":693435.3197587187,"d":"693,435"}]
[{"v":695320.2089716309,"d":"695,320"}]
[{"v":695869.324602078,"d":"695,869"}]
[{"v":695902.6108253517,"d":"695,903"}]
[{"v":696473.3382722696,"d":"696,473"}]
[{"v":698133.104665852,"d":"698,133"}]
[{"v":699688.1073713896,"d":"699,688"}]
[{"v":701532.3508015391,"d":"701,532"}]
[{"v":702430.5001197499,"d":"702,431"}]
[{"v":702820.0894878315,"d":"702,820"}]
[{"v":702985.6228894318,"d":"702,986"}]
[{"v":706333.6235971503,"d":"706,334"}]
[{"v":706886.7826632801,"d":"706,887"}]
[{"v":707160.4482863336,"d":"707,160"}]
[{"v":707371.1027904346,"d":"707,371"}]
[{"v":713139.3640885958,"d":"713,139"}]
[{"v":718018.4134634061,"d":"718,018"}]
[{"v":718918.600003797,"d":"718,919"}]
[{"v":719654.9091399444,"d":"719,655"}]
[{"v":727215.5517724241,"d":"727,216"}]
[{"v":727408.3640497886,"d":"727,408"}]
[{"v":727515.9000002117,"d":"727,516"}]
[{"v":728171.2666807779,"d":"728,171"}]
[{"v":732384.3339717272,"d":"732,384"}]
[{"v":733511.2788924712,"d":"733,511"}]
[{"v":735139.2274201252,"d":"735,139"}]
[{"v":736985.9820735003,"d":"736,986"}]
[{"v":737308.6073349972,"d":"737,309"}]
[{"v":737962.6795957767,"d":"737,963"}]
[{"v":738242.4844988964,"d":"738,242"}]
[{"v":738243.7016768799,"d":"738,244"}]
[{"v":740965.6409183344,"d":"740,966"}]
[{"v":741702.7047925228,"d":"741,703"}]
[{"v":743249.0750277067,"d":"743,249"}]
[{"v":743255.769084346,"d":"743,256"}]
[{"v":744669.8529111942,"d":"744,670"}]
[{"v":746209.7429419616,"d":"746,210"}]
[{"v":746255.8008280715,"d":"746,256"}]
[{"v":747594.1967196319,"d":"747,594"}]
[{"v":748868.8232858467,"d":"748,869"}]
[{"v":749491.3398759925,"d":"749,491"}]
[{"v":751745.6125624408,"d":"751,746"}]
[{"v":752124.4156557454,"d":"752,124"}]
[{"v":754215.948943501,"d":"754,216"}]
[{"v":755086.3775199004,"d":"755,086"}]
[{"v":759474.7924307403,"d":"759,475"}]
[{"v":761250.782812168,"d":"761,251"}]
[{"v":761694.4330482446,"d":"761,694"}]
[{"v":762623.8739531932,"d":"762,624"}]
[{"v":763332.5059343914,"d":"763,333"}]
[{"v":763708.2461376463,"d":"763,708"}]
[{"v":765624.9713875784,"d":"765,625"}]
[{"v":770732.6992335222,"d":"770,733"}]
[{"v":771100.1924756133,"d":"771,100"}]
[{"v":773316.9815576914,"d":"773,317"}]
[{"v":774946.4967514998,"d":"774,946"}]
[{"v":775562.5724818599,"d":"775,563"}]
[{"v":776963.2943687312,"d":"776,963"}]
[{"v":778054.0485642627,"d":"778,054"}]
[{"v":779096.5724628355,"d":"779,097"}]
[{"v":781135.6830083911,"d":"781,136"}]
[{"v":781349.9390783142,"d":"781,350"}]
[{"v":784387.8786117496,"d":"784,388"}]
[{"v":785588.9222140257,"d":"785,589"}]
[{"v":790377.3482261131,"d":"790,377"}]
[{"v":791537.2056396962,"d":"791,537"}]
[{"v":791781.5426583653,"d":"791,782"}]
[{"v":792435.7693474739,"d":"792,436"}]
[{"v":793245.949707528,"d":"793,246"}]
[{"v":795105.315409192,"d":"795,105"}]
[{"v":795125.257407492,"d":"795,125"}]
[{"v":796581.1166869301,"d":"796,581"}]
[{"v":799423.9586017821,"d":"799,424"}]
[{"v":800868.9866030297,"d":"800,869"}]
[{"v":803177.9016771903,"d":"803,178"}]
[{"v":803577.4308627477,"d":"803,577"}]
[{"v":803628.7161731394,"d":"803,629"}]
[{"v":806033.7824238103,"d":"806,034"}]
[{"v":808421.2497306875,"d":"808,421"}]
[{"v":811172.199856596,"d":"811,172"}]
[{"v":812727.232457979,"d":"812,727"}]
[{"v":813269.7020033246,"d":"813,270"}]
[{"v":814462.6558015567,"d":"814,463"}]
[{"v":816201.8641075452,"d":"816,202"}]
[{"v":816260.0190170865,"d":"816,260"}]
[{"v":817182.8058593955,"d":"817,183"}]
[{"v":817457.1184877072,"d":"817,457"}]
[{"v":817687.9141000713,"d":"817,688"}]
[{"v":820514.8241788702,"d":"820,515"}]
[{"v":824396.7305415557,"d":"824,397"}]
[{"v":824999.0292167623,"d":"824,999"}]
[{"v":829560.0076531152,"d":"829,560"}]
[{"v":829966.4771882199,"d":"829,966"}]
[{"v":830297.4381453174,"d":"830,297"}]
[{"v":830688.6578802834,"d":"830,689"}]
[{"v":832025.218045373,"d":"832,025"}]
[{"v":834313.4596091073,"d":"834,313"}]
[{"v":834671.3062133824,"d":"834,671"}]
[{"v":837899.0891757621,"d":"837,899"}]
[{"v":837909.5967510297,"d":"837,910"}]
[{"v":838244.2477202729,"d":"838,244"}]
[{"v":841448.5069183735,"d":"841,449"}]
[{"v":842998.4920780604,"d":"842,998"}]
[{"v":845624.733906487,"d":"845,625"}]
[{"v":845723.705282354,"d":"845,724"}]
[{"v":852485.1374115369,"d":"852,485"}]
[{"v":854236.7316569213,"d":"854,237"}]
[{"v":854672.5083701322,"d":"854,673"}]
[{"v":855765.7810299434,"d":"855,766"}]
[{"v":857889.2070508724,"d":"857,889"}]
[{"v":858790.2217161355,"d":"858,790"}]
[{"v":861681.6684785428,"d":"861,682"}]
[{"v":866785.0481395554,"d":"866,785"}]
[{"v":868635.6104281757,"d":"868,636"}]
[{"v":871499.6430086175,"d":"871,500"}]
[{"v":873106.3916978855,"d":"873,106"}]
[{"v":874727.5187710858,"d":"874,728"}]
[{"v":875617.8728974578,"d":"875,618"}]
[{"v":879245.4202570154,"d":"879,245"}]
[{"v":879951.4112428771,"d":"879,951"}]
[{"v":880126.9336747208,"d":"880,127"}]
[{"v":880797.7221823493,"d":"880,798"}]
[{"v":881345.765718925,"d":"881,346"}]
[{"v":882542.9882109233,"d":"882,543"}]
[{"v":884549.8836528156,"d":"884,550"}]
[{"v":887611.3340127133,"d":"887,611"}]
[{"v":888531.5136572922,"d":"888,532"}]
[{"v":893245.5044050354,"d":"893,246"}]
[{"v":893288.8428673344,"d":"893,289"}]
[{"v":893672.9837876132,"d":"893,673"}]
[{"v":896118.0841855654,"d":"896,118"}]
[{"v":897013.1749638952,"d":"897,013"}]
[{"v":897863.0288705359,"d":"897,863"}]
[{"v":900180.9328470354,"d":"900,181"}]
[{"v":900537.5885988732,"d":"900,538"}]
[{"v":900924.4855869992,"d":"900,924"}]
[{"v":902131.2091761833,"d":"902,131"}]
[{"v":909210.8860326853,"d":"909,211"}]
[{"v":911398.6717276227,"d":"911,399"}]
[{"v":915745.8268069264,"d":"915,746"}]
[{"v":916717.4600531325,"d":"916,717"}]
[{"v":916953.1374030039,"d":"916,953"}]
[{"v":919360.2366498018,"d":"919,360"}]
[{"v":919677.9805045304,"d":"919,678"}]
[{"v":921645.3056384011,"d":"921,645"}]
[{"v":922091.7918897317,"d":"922,092"}]
[{"v":925158.6910620413,"d":"925,159"}]
[{"v":926495.4454832523,"d":"926,495"}]
[{"v":927132.6788995021,"d":"927,133"}]
[{"v":927399.7324773263,"d":"927,400"}]
[{"v":930824.6070771308,"d":"930,825"}]
[{"v":933616.4970025385,"d":"933,616"}]
[{"v":936726.2687188889,"d":"936,726"}]
[{"v":939545.9855549448,"d":"939,546"}]
[{"v":943406.7907090567,"d":"943,407"}]
[{"v":943756.3077120896,"d":"943,756"}]
[{"v":948653.873259159,"d":"948,654"}]
[{"v":949156.9123276721,"d":"949,157"}]
[{"v":952898.8367437893,"d":"952,899"}]
[{"v":955216.6456270935,"d":"955,217"}]
[{"v":956352.5959402722,"d":"956,353"}]
[{"v":959025.4063592562,"d":"959,025"}]
[{"v":959049.9080768139,"d":"959,050"}]
[{"v":962179.041278935,"d":"962,179"}]
[{"v":962197.8321678141,"d":"962,198"}]
[{"v":962444.3851161173,"d":"962,444"}]
[{"v":962844.3187730425,"d":"962,844"}]
[{"v":962938.5901007886,"d":"962,939"}]
[{"v":963937.0231786733,"d":"963,937"}]
[{"v":967800.0430347767,"d":"967,800"}]
[{"v":967861.9516470062,"d":"967,862"}]
[{"v":969117.7267299446,"d":"969,118"}]
[{"v":971017.1588816884,"d":"971,017"}]
[{"v":985668.228276649,"d":"985,668"}]
[{"v":990988.5903760868,"d":"990,989"}]
[{"v":991861.3350833089,"d":"991,861"}]
[{"v":992094.6196786679,"d":"992,095"}]
[{"v":992356.8487072221,"d":"992,357"}]
[{"v":998782.2623740581,"d":"998,782"}]
[{"v":1000802.47344759,"d":"1,000,802"}]
[{"v":1003126.3988854624,"d":"1,003,126"}]
[{"v":1008146.8072966913,"d":"1,008,147"}]
[{"v":1008797.4477624247,"d":"1,008,797"}]
[{"v":1015866.483699296,"d":"1,015,866"}]
[{"v":1017908.9729407206,"d":"1,017,909"}]
[{"v":1025692.911764469,"d":"1,025,693"}]
[{"v":1025733.7130032493,"d":"1,025,734"}]
[{"v":1029482.0992634845,"d":"1,029,482"}]
[{"v":1030241.9824654023,"d":"1,030,242"}]
[{"v":1031067.4887716196,"d":"1,031,067"}]
[{"v":1031909.0921111048,"d":"1,031,909"}]
[{"v":1037678.3038048728,"d":"1,037,678"}]
[{"v":1038251.9916416344,"d":"1,038,252"}]
[{"v":1041005.716523137,"d":"1,041,006"}]
[{"v":1045747.4427446875,"d":"1,045,747"}]
[{"v":1045748.0155496111,"d":"1,045,748"}]
[{"v":1046436.2710812332,"d":"1,046,436"}]
[{"v":1046674.3962700487,"d":"1,046,674"}]
[{"v":1047944.855167526,"d":"1,047,945"}]
[{"v":1048444.4999014897,"d":"1,048,444"}]
[{"v":1048489.9515775568,"d":"1,048,490"}]
[{"v":1051203.6072367935,"d":"1,051,204"}]
[{"v":1054991.3976275572,"d":"1,054,991"}]
[{"v":1056334.257292329,"d":"1,056,334"}]
[{"v":1057239.8324041215,"d":"1,057,240"}]
[{"v":1064494.5666925837,"d":"1,064,495"}]
[{"v":1067649.1913937167,"d":"1,067,649"}]
[{"v":1069320.6088575632,"d":"1,069,321"}]
[{"v":1069570.8255564317,"d":"1,069,571"}]
[{"v":1077732.829080099,"d":"1,077,733"}]
[{"v":1079347.8208827828,"d":"1,079,348"}]
[{"v":1086451.0987216271,"d":"1,086,451"}]
[{"v":1086780.8418234345,"d":"1,086,781"}]
[{"v":1088344.3787623742,"d":"1,088,344"}]
[{"v":1099839.5473316663,"d":"1,099,840"}]
[{"v":1104207.9011369534,"d":"1,104,208"}]
[{"v":1106695.4092544655,"d":"1,106,695"}]
[{"v":1110150.7416411466,"d":"1,110,151"}]
[{"v":1110794.8367209525,"d":"1,110,795"}]
[{"v":1111311.864104116,"d":"1,111,312"}]
[{"v":1114612.8578117967,"d":"1,114,613"}]
[{"v":1116951.6348602644,"d":"1,116,952"}]
[{"v":1117953.7874807806,"d":"1,117,954"}]
[{"v":1120867.5174895294,"d":"1,120,868"}]
[{"v":1123670.9220601479,"d":"1,123,671"}]
[{"v":1126604.4994804107,"d":"1,126,604"}]
[{"v":1127264.76156575,"d":"1,127,265"}]
[{"v":1134407.6142746597,"d":"1,134,408"}]
[{"v":1134896.735509647,"d":"1,134,897"}]
[{"v":1135550.0303677004,"d":"1,135,550"}]
[{"v":1136185.07430093,"d":"1,136,185"}]
[{"v":1142605.6935623705,"d":"1,142,606"}]
[{"v":1143004.1710611598,"d":"1,143,004"}]
[{"v":1150209.8323626248,"d":"1,150,210"}]
[{"v":1150856.8725043426,"d":"1,150,857"}]
[{"v":1151059.6892533263,"d":"1,151,060"}]
[{"v":1152385.7873973136,"d":"1,152,386"}]
[{"v":1155042.365253202,"d":"1,155,042"}]
[{"v":1156783.3095342363,"d":"1,156,783"}]
[{"v":1157843.1469618878,"d":"1,157,843"}]
[{"v":1159072.656737735,"d":"1,159,073"}]
[{"v":1159966.7061283553,"d":"1,159,967"}]
[{"v":1162459.2657260096,"d":"1,162,459"}]
[{"v":1164786.9257333775,"d":"1,164,787"}]
[{"v":1169743.0436662282,"d":"1,169,743"}]
[{"v":1174349.7100721647,"d":"1,174,350"}]
[{"v":1175221.1835355896,"d":"1,175,221"}]
[{"v":1178033.4450768996,"d":"1,178,033"}]
[{"v":1179680.573721646,"d":"1,179,681"}]
[{"v":1184301.1071552206,"d":"1,184,301"}]
[{"v":1185835.5162439933,"d":"1,185,836"}]
[{"v":1186001.0700819585,"d":"1,186,001"}]
[{"v":1187470.2336923813,"d":"1,187,470"}]
[{"v":1193526.3503794584,"d":"1,193,526"}]
[{"v":1199484.0924073483,"d":"1,199,484"}]
[{"v":1200736.580058398,"d":"1,200,737"}]
[{"v":1200828.9274646835,"d":"1,200,829"}]
[{"v":1203367.1146448508,"d":"1,203,367"}]
[{"v":1205070.4403382165,"d":"1,205,070"}]
[{"v":1205712.8356187246,"d":"1,205,713"}]
[{"v":1205862.2981845003,"d":"1,205,862"}]
[{"v":1207389.9725090638,"d":"1,207,390"}]
[{"v":1208608.7671128975,"d":"1,208,609"}]
[{"v":1209464.5207727759,"d":"1,209,465"}]
[{"v":1211700.2769147502,"d":"1,211,700"}]
[{"v":1218611.1177883078,"d":"1,218,611"}]
[{"v":1223793.923871474,"d":"1,223,794"}]
[{"v":1238835.9109120888,"d":"1,238,836"}]
[{"v":1239917.2519263288,"d":"1,239,917"}]
[{"v":1242426.8657992026,"d":"1,242,427"}]
[{"v":1244913.048845785,"d":"1,244,913"}]
[{"v":1244948.200295937,"d":"1,244,948"}]
[{"v":1249567.9954617638,"d":"1,249,568"}]
[{"v":1251950.5967692463,"d":"1,251,951"}]
[{"v":1256805.7785656499,"d":"1,256,806"}]
[{"v":1258407.2118784294,"d":"1,258,407"}]
[{"v":1266812.6250792777,"d":"1,266,813"}]
[{"v":1268144.984041554,"d":"1,268,145"}]
[{"v":1270377.275042104,"d":"1,270,377"}]
[{"v":1277369.0804585486,"d":"1,277,369"}]
[{"v":1278135.656907722,"d":"1,278,136"}]
[{"v":1280089.8728368084,"d":"1,280,090"}]
[{"v":1289771.3116046793,"d":"1,289,771"}]
[{"v":1290031.2722170241,"d":"1,290,031"}]
[{"v":1293462.2995558793,"d":"1,293,462"}]
[{"v":1298120.9707290463,"d":"1,298,121"}]
[{"v":1303483.352160986,"d":"1,303,483"}]
[{"v":1307282.20229974,"d":"1,307,282"}]
[{"v":1310753.272932799,"d":"1,310,753"}]
[{"v":1311552.5441247437,"d":"1,311,553"}]
[{"v":1322460.4565489066,"d":"1,322,460"}]
[{"v":1324931.260089695,"d":"1,324,931"}]
[{"v":1334967.2454421772,"d":"1,334,967"}]
[{"v":1335538.0169929229,"d":"1,335,538"}]
[{"v":1350458.2599480515,"d":"1,350,458"}]
[{"v":1358481.2612806708,"d":"1,358,481"}]
[{"v":1358481.7829215515,"d":"1,358,482"}]
[{"v":1364080.4590988765,"d":"1,364,080"}]
[{"v":1365642.1954959962,"d":"1,365,642"}]
[{"v":1366844.732132367,"d":"1,366,845"}]
[{"v":1367124.8093789578,"d":"1,367,125"}]
[{"v":1367702.254297542,"d":"1,367,702"}]
[{"v":1368052.9378312966,"d":"1,368,053"}]
[{"v":1371631.4915973283,"d":"1,371,631"}]
[{"v":1374101.3519971392,"d":"1,374,101"}]
[{"v":1374801.8456891535,"d":"1,374,802"}]
[{"v":1375841.4874706324,"d":"1,375,841"}]
[{"v":1380995.7042375081,"d":"1,380,996"}]
[{"v":1407234.2100241913,"d":"1,407,234"}]
[{"v":1407637.7518139223,"d":"1,407,638"}]
[{"v":1407824.6054684073,"d":"1,407,825"}]
[{"v":1423512.1548035971,"d":"1,423,512"}]
[{"v":1426547.5081593401,"d":"1,426,548"}]
[{"v":1449049.7762484085,"d":"1,449,050"}]
[{"v":1451939.4788888309,"d":"1,451,939"}]
[{"v":1456407.7237400655,"d":"1,456,408"}]
[{"v":1467289.009623755,"d":"1,467,289"}]
[{"v":1468803.5859605055,"d":"1,468,804"}]
[{"v":1474097.9005788062,"d":"1,474,098"}]
[{"v":1478960.3783922554,"d":"1,478,960"}]
[{"v":1480561.5505470345,"d":"1,480,562"}]
[{"v":1480726.3654220277,"d":"1,480,726"}]
[{"v":1484048.704415936,"d":"1,484,049"}]
[{"v":1485092.0962574626,"d":"1,485,092"}]
[{"v":1491886.9764306634,"d":"1,491,887"}]
[{"v":1492192.874669519,"d":"1,492,193"}]
[{"v":1495202.7168204694,"d":"1,495,203"}]
[{"v":1498340.7628130428,"d":"1,498,341"}]
[{"v":1500688.3821633123,"d":"1,500,688"}]
[{"v":1503319.029834706,"d":"1,503,319"}]
[{"v":1507534.0178699326,"d":"1,507,534"}]
[{"v":1524178.2893284026,"d":"1,524,178"}]
[{"v":1524661.648603947,"d":"1,524,662"}]
[{"v":1527873.5453750952,"d":"1,527,874"}]
[{"v":1529179.3293686735,"d":"1,529,179"}]
[{"v":1531247.8049512738,"d":"1,531,248"}]
[{"v":1534428.738408074,"d":"1,534,429"}]
[{"v":1535522.38213098,"d":"1,535,522"}]
[{"v":1537348.6656936754,"d":"1,537,349"}]
[{"v":1542510.0472278816,"d":"1,542,510"}]
[{"v":1543840.4095849665,"d":"1,543,840"}]
[{"v":1547233.003020531,"d":"1,547,233"}]
[{"v":1562652.9875728337,"d":"1,562,653"}]
[{"v":1578920.3848696272,"d":"1,578,920"}]
[{"v":1582258.4786647009,"d":"1,582,258"}]
[{"v":1583099.864482785,"d":"1,583,100"}]
[{"v":1589097.2171360366,"d":"1,589,097"}]
[{"v":1591684.2215532807,"d":"1,591,684"}]
[{"v":1591853.7087271041,"d":"1,591,854"}]
[{"v":1592249.133257738,"d":"1,592,249"}]
[{"v":1593220.6162334962,"d":"1,593,221"}]
[{"v":1607398.2021839714,"d":"1,607,398"}]
[{"v":1612327.9693655004,"d":"1,612,328"}]
[{"v":1613519.4315453526,"d":"1,613,519"}]
[{"v":1614247.3134898709,"d":"1,614,247"}]
[{"v":1625610.8561216653,"d":"1,625,611"}]
[{"v":1628740.4734441116,"d":"1,628,740"}]
[{"v":1630049.7870176178,"d":"1,630,050"}]
[{"v":1637907.774804817,"d":"1,637,908"}]
[{"v":1657255.1839797096,"d":"1,657,255"}]
[{"v":1657537.8836221523,"d":"1,657,538"}]
[{"v":1659691.0585067468,"d":"1,659,691"}]
[{"v":1669500.9034290232,"d":"1,669,501"}]
[{"v":1670762.6482861396,"d":"1,670,763"}]
[{"v":1673662.7336041091,"d":"1,673,663"}]
[{"v":1679008.426956661,"d":"1,679,008"}]
[{"v":1708284.0896741855,"d":"1,708,284"}]
[{"v":1720940.7970165254,"d":"1,720,941"}]
[{"v":1728052.1506398816,"d":"1,728,052"}]
[{"v":1739472.665958756,"d":"1,739,473"}]
[{"v":1739990.5972470331,"d":"1,739,991"}]
[{"v":1743963.9458782605,"d":"1,743,964"}]
[{"v":1746899.7177364244,"d":"1,746,900"}]
[{"v":1748439.2030178772,"d":"1,748,439"}]
[{"v":1755399.274941959,"d":"1,755,399"}]
[{"v":1769971.5117463232,"d":"1,769,972"}]
[{"v":1773156.7446060444,"d":"1,773,157"}]
[{"v":1774951.3361886383,"d":"1,774,951"}]
[{"v":1775768.8827978573,"d":"1,775,769"}]
[{"v":1782702.2147620353,"d":"1,782,702"}]
[{"v":1783594.2859455477,"d":"1,783,594"}]
[{"v":1784062.5960479171,"d":"1,784,063"}]
[{"v":1792685.2053729857,"d":"1,792,685"}]
[{"v":1804231.410496974,"d":"1,804,231"}]
[{"v":1811074.7567705913,"d":"1,811,075"}]
[{"v":1813318.8275457483,"d":"1,813,319"}]
[{"v":1827885.6138516008,"d":"1,827,886"}]
[{"v":1828386.8493464699,"d":"1,828,387"}]
[{"v":1828566.051066992,"d":"1,828,566"}]
[{"v":1840436.9232922758,"d":"1,840,437"}]
[{"v":1869336.6416246658,"d":"1,869,337"}]
[{"v":1870436.5981586033,"d":"1,870,437"}]
[{"v":1870551.6270541297,"d":"1,870,552"}]
[{"v":1870962.1224146038,"d":"1,870,962"}]
[{"v":1873817.6226936262,"d":"1,873,818"}]
[{"v":1876816.6363791202,"d":"1,876,817"}]
[{"v":1885841.1421510833,"d":"1,885,841"}]
[{"v":1891310.7143858117,"d":"1,891,311"}]
[{"v":1895900.1054712501,"d":"1,895,900"}]
[{"v":1896320.7126681388,"d":"1,896,321"}]
[{"v":1940232.0709116408,"d":"1,940,232"}]
[{"v":1941955.0584381304,"d":"1,941,955"}]
[{"v":1944885.7147643329,"d":"1,944,886"}]
[{"v":1952166.6597164497,"d":"1,952,167"}]
[{"v":1954893.2149827282,"d":"1,954,893"}]
[{"v":1960698.6410177108,"d":"1,960,699"}]
[{"v":1972858.7815285416,"d":"1,972,859"}]
[{"v":1978839.8041155085,"d":"1,978,840"}]
[{"v":1989411.3457150364,"d":"1,989,411"}]
[{"v":1992806.0523489334,"d":"1,992,806"}]
[{"v":1996209.5123035714,"d":"1,996,210"}]
[{"v":2009321.2262346498,"d":"2,009,321"}]
[{"v":2028581.696917587,"d":"2,028,582"}]
[{"v":2029081.5506005348,"d":"2,029,082"}]
[{"v":2032086.3787076753,"d":"2,032,086"}]
[{"v":2033300.101274689,"d":"2,033,300"}]
[{"v":2034044.490117273,"d":"2,034,044"}]
[{"v":2061666.525770937,"d":"2,061,667"}]
[{"v":2071727.8229745883,"d":"2,071,728"}]
[{"v":2085808.5251904153,"d":"2,085,809"}]
[{"v":2088233.3358746672,"d":"2,088,233"}]
[{"v":2093822.6265916678,"d":"2,093,823"}]
[{"v":2095238.56573387,"d":"2,095,239"}]
[{"v":2137987.894511639,"d":"2,137,988"}]
[{"v":2141932.4979874804,"d":"2,141,932"}]
[{"v":2144811.2095400603,"d":"2,144,811"}]
[{"v":2146480.163560615,"d":"2,146,480"}]
[{"v":2147426.5697709313,"d":"2,147,427"}]
[{"v":2155370.937563402,"d":"2,155,371"}]
[{"v":2158472.8185938327,"d":"2,158,473"}]
[{"v":2171351.2432682817,"d":"2,171,351"}]
[{"v":2179425.039425398,"d":"2,179,425"}]
[{"v":2179911.8095053313,"d":"2,179,912"}]
[{"v":2198158.8547476316,"d":"2,198,159"}]
[{"v":2203977.907040743,"d":"2,203,978"}]
[{"v":2209844.2290943773,"d":"2,209,844"}]
[{"v":2209963.803448186,"d":"2,209,964"}]
[{"v":2210021.1358742653,"d":"2,210,021"}]
[{"v":2219188.6796125863,"d":"2,219,189"}]
[{"v":2240773.1345026954,"d":"2,240,773"}]
[{"v":2241937.6956268866,"d":"2,241,938"}]
[{"v":2285639.4501473494,"d":"2,285,639"}]
[{"v":2289423.32101285,"d":"2,289,423"}]
[{"v":2299743.800417829,"d":"2,299,744"}]
[{"v":2317094.403649294,"d":"2,317,094"}]
[{"v":2333082.584749694,"d":"2,333,083"}]
[{"v":2370480.0028815297,"d":"2,370,480"}]
[{"v":2370889.7694612476,"d":"2,370,890"}]
[{"v":2374854.0410155,"d":"2,374,854"}]
[{"v":2383439.791253012,"d":"2,383,440"}]
[{"v":2384068.64850158,"d":"2,384,069"}]
[{"v":2398464.983436255,"d":"2,398,465"}]
[{"v":2408331.6419117707,"d":"2,408,332"}]
[{"v":2424008.5386179923,"d":"2,424,009"}]
[{"v":2509427.051769334,"d":"2,509,427"}]
[{"v":2561964.4402371086,"d":"2,561,964"}]
[{"v":2567360.605671929,"d":"2,567,361"}]
[{"v":2572592.7526070136,"d":"2,572,593"}]
[{"v":2576577.9961987897,"d":"2,576,578"}]
[{"v":2676645.393349576,"d":"2,676,645"}]
[{"v":2697598.9626749987,"d":"2,697,599"}]
[{"v":2728032.0614135573,"d":"2,728,032"}]
[{"v":2757342.347696928,"d":"2,757,342"}]
[{"v":2761486.8853427665,"d":"2,761,487"}]
[{"v":2764750.937019182,"d":"2,764,751"}]
[{"v":2812067.749855287,"d":"2,812,068"}]
[{"v":2812600.6981479446,"d":"2,812,601"}]
[{"v":2837936.9170270786,"d":"2,837,937"}]
[{"v":2868317.624118433,"d":"2,868,318"}]
[{"v":2953397.9591425043,"d":"2,953,398"}]
[{"v":2970555.0144927264,"d":"2,970,555"}]
[{"v":3050713.051356089,"d":"3,050,713"}]
[{"v":3054817.522648484,"d":"3,054,818"}]
[{"v":3086314.1705964087,"d":"3,086,314"}]
[{"v":3090495.363563044,"d":"3,090,495"}]
[{"v":3099201.1644948176,"d":"3,099,201"}]
[{"v":3104985.0039410186,"d":"3,104,985"}]
[{"v":3115160.2566235187,"d":"3,115,160"}]
[{"v":3251506.837577079,"d":"3,251,507"}]
[{"v":3291952.4740467896,"d":"3,291,952"}]
[{"v":3292983.072324093,"d":"3,292,983"}]
[{"v":3301031.0264292834,"d":"3,301,031"}]
[{"v":3304657.0147142066,"d":"3,304,657"}]
[{"v":3313462.6260328004,"d":"3,313,463"}]
[{"v":3388608.769399733,"d":"3,388,609"}]
[{"v":3518811.105456313,"d":"3,518,811"}]
[{"v":3576483.1151775587,"d":"3,576,483"}]
[{"v":3745552.999322871,"d":"3,745,553"}]
[{"v":3894261.466679031,"d":"3,894,261"}]
[{"v":3975386.6677215993,"d":"3,975,387"}]
[{"v":4031489.4754481222,"d":"4,031,489"}]
[{"v":4187540.212838886,"d":"4,187,540"}]
[{"v":5313849.998625113,"d":"5,313,850"}]
[{"v":10504835.738033013,"d":"10,504,836"}]

{"sheet":"Distribution Charts","index":17,"n_rows":29,"n_cols":11,"rows_kept":29}
{"$rows_empty":28}
[{"$nulls":10},"These charts were developed from these data by Rob Jahnke. "]